{"text_format":"1","workbook":"xlsx","n_sheets":20,"sheets":["Welcome","Notes","Pivot % growth","Pivot_T","Service delivery impact","Performance impact","Pivot Infra impact","Pivot Personnel impact","Pivot HRBP","Data","Summary","SRT1","SRT2","SRT3","SRT4","Other reallocations","Metadata","Sheet1","HRBP_Data","Tables"],"not_rendered":{"charts":14,"images":5,"macros":1,"external_links":2,"defined_names":126,"comments":0,"pivot_tables":5},"unopened":[],"bounds":{"document_bytes":16777216,"sheet_cells":100000,"rows_first":2000,"rows_last":500,"rows_between":2000,"halvings":0,"cell_chars":16384,"cell_head_chars":4096},"cells_cut":0,"cells_raw":0,"read":"whole","date_system":"1900"}

{"sheet":"Welcome","index":0,"n_rows":49,"n_cols":54,"rows_kept":49,"cut":false,"hidden":false,"merged":[[9,1,9,3],[9,5,9,6],[9,8,10,13],[6,2,6,5]]}
[null,null,null,null,null,null,null,null,null,null,null,null,null,null,null,null,null,null,null,null,null,null,null,null,null,null,2,{"$f":"INDEX(AB$4:AB$45,MATCH(MyVoteNo,$AA$4:$AA$45,0))","v":"Parliament"},{"$f":"INDEX(AC$4:AC$45,MATCH(MyVoteNo,$AA$4:$AA$45,0))","v":"Timothy Murwa"},null,{"$f":"INDEX(AE$4:AE$45,MATCH(MyVoteNo,$AA$4:$AA$45,0))","v":"Timothy.Murwa@treasury.gov.za"},{"$f":"INDEX(AF$4:AF$45,MATCH(MyVoteNo,$AA$4:$AA$45,0))","v":"Maggy Makoka"},null,{"$f":"INDEX(AH$4:AH$45,MATCH(MyVoteNo,$AA$4:$AA$45,0))","v":"Maggy.Mokoka@Treasury.gov.za"}]
[null,null,null,null,"MTEC Submission Workbook - 2023 MTEF",null,null,null,null,null,null,null,null,null,null,null,null,null,null,null,null,null,null,null,null,null,null,null,null,null,null,null,null,null,"Dept Ceilings",null,null,"CoE Ceilings",null,null,null,null,null,null,"Departmental Ceilings",{"$f":"SUM(AT4:AT45)","v":1937192445},2033659738,2141771211,null,null,"Compensation Ceilings",{"$f":"SUM(AZ4:AZ45)","v":178139543},187017838,195396248]
[null,null,null,null,null,null,null,null,null,null,null,null,null,null,null,null,null,null,null,null,null,null,null,null,null,"Dept Index No.","Vote No.","Department","Contact Person","Tel","email","Contact Person","Tel","email",{"$f":"MyYear5","v":"2023/24"},{"$f":"MyYear6","v":"2024/25"},{"$f":"MyYear7","v":"2025/26"},{"$f":"AI3","v":"2023/24"},"2024/25","2025/26",null,null,null,null,"Department",{"$f":"AI3","v":"2023/24"},"2024/25","2025/26",null,null,"Department",{"$f":"AI3","v":"2023/24"},"2024/25","2025/26"]
[null,null,null,null,null,null,null,null,null,null,null,null,null,null,null,null,null,null,null,null,null,null,null,null,null,1,29,"Agriculture, Land Reform and Rural Development","Bothwell Deka","(012) 395 6784","Bothwell.Deka@treasury.gov.za","Humbelani Ramuedzisi","(012) 315 5585","Humbelani.Ramuedzisi@treasury.gov.za",{"$f":"IFERROR(INDEX((AT$4:AT$45),MATCH($AB4,$AS$4:$AS$45,0)),0)","v":17387702},{"$f":"IFERROR(INDEX((AU$4:AU$45),MATCH($AB4,$AS$4:$AS$45,0)),0)","v":18168574},{"$f":"IFERROR(INDEX((AV$4:AV$45),MATCH($AB4,$AS$4:$AS$45,0)),0)","v":18982512},{"$f":"IFERROR(INDEX((AZ$4:AZ$45),MATCH($AB4,$AY$4:$AY$45,0)),0)","v":3856499},{"$f":"IFERROR(INDEX((BA$4:BA$45),MATCH($AB4,$AY$4:$AY$45,0)),0)","v":4029693},{"$f":"IFERROR(INDEX((BB$4:BB$45),MATCH($AB4,$AY$4:$AY$45,0)),0)","v":4210223},null,null,null,null,"Agriculture, Land Reform and Rural Development",17387702,18168574,18982512,null,null,"Agriculture, Land Reform and Rural Development",3856499,4029693,4210223]
[null,null,null,null,null,null,null,null,null,null,null,null,null,null,null,null,null,null,null,null,null,null,null,null,null,2,16,"Basic Education","Spencer Janari","(012) 315 5436","Spencer.Janari@treasury.gov.za","Shaneel Ragoo","(012) 315 5323","shaneel.ragoo@treasury.gov.za",30388009,31406684,32813705,541065,565363,590690,null,null,null,null,"Basic Education",30388009,31406684,32813705,null,null,"Basic Education",541065,565363,590690]
[null,null,null,null,null,null,null,null,null,null,null,null,null,null,null,null,null,null,null,null,null,null,null,null,null,3,42,"Centre for Public Service Innovation","George Tembo","(012) 315 5514","George.Tembo@treasury.gov.za","Uvadhya Singh","(012) 315 9030","Uvadhya.Singh@treasury.gov.za",{"$f":"IFERROR(INDEX((AT$4:AT$45),MATCH($AB6,$AS$4:$AS$45,0)),0)","v":45363},{"$f":"IFERROR(INDEX((AU$4:AU$45),MATCH($AB6,$AS$4:$AS$45,0)),0)","v":47400},{"$f":"IFERROR(INDEX((AV$4:AV$45),MATCH($AB6,$AS$4:$AS$45,0)),0)","v":49526},{"$f":"IFERROR(INDEX((AZ$4:AZ$45),MATCH($AB6,$AY$4:$AY$45,0)),0)","v":24869},{"$f":"IFERROR(INDEX((BA$4:BA$45),MATCH($AB6,$AY$4:$AY$45,0)),0)","v":25985},{"$f":"IFERROR(INDEX((BB$4:BB$45),MATCH($AB6,$AY$4:$AY$45,0)),0)","v":27150},null,null,null,null,"Centre for Public Service Innovation",45363,47400,49526,null,null,"Centre for Public Service Innovation",24869,25985,27150]
[null,{"$f":"\"VOTE \" &$AA$1&\": \"","v":"VOTE 2: "},{"$f":"MyDeptName","v":"Parliament"},null,null,null,null,null,null,null,null,null,null,null,null,null,null,null,null,null,null,null,null,null,null,4,21,"Civilian Secretariat for the Police Service","Nompumelelo Radebe","(012) 315 5957","Nompumelelo.Radebe@treasury.gov.za","Velisubuhle Buti","(012) 395 6709","Velisubuhle.Buti@treasury.gov.za",150489,157245,164284,105189,109906,114831,null,null,null,null,"Civilian Secretariat for the Police Service",150489,157245,164284,null,null,"Civilian Secretariat for the Police Service",105189,109906,114831]
[null,null,null,null,null,null,null,null,null,null,null,null,null,null,null,null,null,null,null,null,null,null,null,null,null,5,30,"Communications and Digital Technologies","Rezah Atcha","(012) 315 5287","Rezah.Atcha@treasury.gov.za","Keitumetse Motshegwe","(012) 395 6750","keitumetse.motshegwe@treasury.gov.za",2426409,2535360,2583461,291288,304366,318003,null,null,null,null,"Communications and Digital Technologies",2426409,2535360,2583461,null,null,"Communications and Digital Technologies",291288,304366,318003]
[null,null,null,null,null,null,null,null,null,null,null,null,null,null,null,null,null,null,null,null,null,null,null,null,null,6,3,"Cooperative Governance","Millicent Mulaudzi","(012) 395 6576","Millicent.Mulaudzi@treasury.gov.za","Millicent Mulaudzi","(012) 395 6576","Millicent.Mulaudzi@treasury.gov.za",119225831,127419419,133127805,333973,348968,364600,null,null,null,null,"Cooperative Governance",119225831,127419419,133127805,null,null,"Cooperative Governance",333973,348968,364600]
[null,"Enquiries",null,null,null,"Department Contact Details ",null,null,"PLEASE CLICK THE BUTTON BELOW TO SUBMIT AN INPUT… (Note: Input can not be submitted if ceilings on the 'Data' sheet are exceeded.)",null,null,null,null,null,null,null,null,null,null,null,null,null,null,null,null,7,22,"Correctional Services","Elvis Ramafamba","(012) 315 5204","Elvis.Ramafamba@treasury.gov.za","Keabetswe Matlwa","(012) 395 6678","Keabetswe.Matlwa@treasury.gov.za",25593909,26743311,27941397,16928739,17689000,18481466,null,null,null,null,"Correctional Services",25593909,26743311,27941397,null,null,"Correctional Services",16928739,17689000,18481466]
[null,{"$f":"AC1","v":"Timothy Murwa"},null,{"$f":"AE1","v":"Timothy.Murwa@treasury.gov.za"},null,"Name:",null,null,null,null,null,null,null,null,null,null,null,null,null,null,null,null,null,null,null,8,23,"Defence","Mashudu Bidzha","(012) 315 5344","Mashudu.Bidzha@treasury.gov.za","Lesiba Ledwaba","(012) 315 6660","Lesiba.Ledwaba@treasury.gov.za",47959805,49277735,51485360,29649010,30980536,32368468,null,null,null,null,"Defence",47959805,49277735,51485360,null,null,"Defence",29649010,30980536,32368468]
[null,{"$f":"IF(AF1=B11,\"\",AF1)","v":"Maggy Makoka"},null,{"$f":"IF(AH1=D11,\"\",AH1)","v":"Maggy.Mokoka@Treasury.gov.za"},null,"Email:",null,null,null,null,null,null,null,null,null,null,null,null,null,null,null,null,null,null,null,9,31,"Employment and Labour","Judy Naidoo","(012) 315 5269","Judy.Naidoo@treasury.gov.za","Dennis Machobani","(012) 315 5269","Dennis.Machobani@treasury.gov.za",3983468,3772616,3941622,1378647,1440561,1505099,null,null,null,null,"Employment and Labour",3983468,3772616,3941622,null,null,"Employment and Labour",1378647,1440561,1505099]
[null,null,null,null,null,"Telephone number:",null,null,null,null,null,null,null,null,null,null,null,null,null,null,null,null,null,null,null,10,32,"Forestry, Fisheries and the Environment","Gcobisa Magazi","(012) 315 5320","Gcobisa.Magazi@treasury.gov.za","Ashley Ramasimu","(012) 315 5166","Ashley.Ramasimu@treasury.gov.za",8947150,9348937,9767746,1889993,1974872,2063344,null,null,null,null,"Forestry, Fisheries and the Environment",8947150,9348937,9767746,null,null,"Forestry, Fisheries and the Environment",1889993,1974872,2063344]
[null,null,null,null,null,"Mobile (optional):",null,null,null,null,null,null,null,null,null,null,null,null,null,null,null,null,null,null,null,11,4,"Government Communication and Information System","Mokgatla Tema","(012) 315 5948","Mokgatla.Tema@treasury.gov.za","Viwe Sobudula ","(012) 315 5015 ","Viwe.Sobudula@treasury.gov.za",714862,746830,780277,275218,287579,300460,null,null,null,null,"Government Communication and Information System",714862,746830,780277,null,null,"Government Communication and Information System",275218,287579,300460]
[null,null,null,null,null,null,null,null,null,null,null,null,null,null,null,null,null,null,null,null,null,null,null,null,null,12,18,"Health","Refiloe Thokoa","(012) 395 6559","Refiloe.thokoa@treasury.gov.za","Jonatan Daven","(012) 315 6711","Jonatan.Daven@treasury.gov.za ",60620455,62157612,64942267,760135,794290,829876,null,null,null,null,"Health",60620455,62157612,64942267,null,null,"Health",760135,794290,829876]
[null,null,null,null,null,null,null,null,null,null,null,null,null,null,null,null,null,null,null,null,null,null,null,null,null,13,17,"Higher Education and Training","Spencer Janari","(012) 315 5436","Spencer.Janari@treasury.gov.za","Barileng Sape","(012) 406 9069","barileng.sape@treasury.gov.za",136190371,144509123,151981819,10962604,11454929,11968107,null,null,null,null,"Higher Education and Training",136190371,144509123,151981819,null,null,"Higher Education and Training",10962604,11454929,11968107]
[null,null,null,null,null,null,null,null,null,null,null,null,null,null,null,null,null,null,null,null,null,null,null,null,null,14,5,"Home Affairs","Timothy Murwa","(012) 315 5002","Timothy.Murwa@treasury.gov.za","Pindi Masiso","(012) 315 5722","Pindi.Masiso@treasury.gov.za",9332567,9751680,10188556,3781770,3951607,4128639,null,null,null,null,"Home Affairs",9332567,9751680,10188556,null,null,"Home Affairs",3781770,3951607,4128639]
[null,null,null,null,null,null,null,null,null,null,null,null,null,null,null,null,null,null,null,null,null,null,null,null,null,15,33,"Human Settlements","Ulrike Britton ","(012) 315 5578","Ulrike.Britton@treasury.gov.za","Lindiwe Ngcongwane","(012) 315 5357","Lindiwe.Ngcongwane@treasury.gov.za",34457574,35508742,37099532,403176,421283,440156,null,null,null,null,"Human Settlements",34457574,35508742,37099532,null,null,"Human Settlements",403176,421283,440156]
[null,null,null,null,null,null,null,null,null,null,null,null,null,null,null,null,null,null,null,null,null,null,null,null,null,16,24,"Independent Police Investigative Directorate","Nompumelelo Radebe","(012) 315 5957","Nompumelelo.Radebe@treasury.gov.za","Velisubuhle Buti","(012) 395 6709","Velisubuhle.Buti@treasury.gov.za",357989,374064,390822,239613,250376,261591,null,null,null,null,"Independent Police Investigative Directorate",357989,374064,390822,null,null,"Independent Police Investigative Directorate",239613,250376,261591]
[null,null,null,null,null,null,null,null,null,null,null,null,null,null,null,null,null,null,null,null,null,null,null,null,null,17,6,"International Relations and Cooperation","George Tembo","(012) 315 5514","George.Tembo@treasury.gov.za","Mercy Mhlophe","(012) 315 5598","mercy.mhlope@treasury.gov.za",6611037,6907933,7217415,2839854,2967390,3100331,null,null,null,null,"International Relations and Cooperation",6611037,6907933,7217415,null,null,"International Relations and Cooperation",2839854,2967390,3100331]
[null,null,null,null,null,null,null,null,null,null,null,null,null,null,null,null,null,null,null,null,null,null,null,null,null,18,25,"Justice and Constitutional Development","Werner Krause","(012) 315 5211","Werner.Krause@treasury.gov.za","Siphamandla Khumalo","(012)315 5759","siphamandla.khumalo@treasury.gov.za",22210993,23209291,24249060,12522222,13086101,13672358,null,null,null,null,"Justice and Constitutional Development",22210993,23209291,24249060,null,null,"Justice and Constitutional Development",12522222,13086101,13672358]
[null,null,null,null,null,null,null,null,null,null,null,null,null,null,null,null,null,null,null,null,null,null,null,null,null,19,26,"Military Veterans","Mashudu Bidzha","(012) 315 5344","Mashudu.Bidzha@treasury.gov.za","Lesiba Ledwaba","(012) 315 6660","Lesiba.Ledwaba@treasury.gov.za",662993,692764,723793,130736,136607,142727,null,null,null,null,"Military Veterans",662993,692764,723793,null,null,"Military Veterans",130736,136607,142727]
[null,null,null,null,null,null,null,null,null,null,null,null,null,null,null,null,null,null,null,null,null,null,null,null,null,20,34,"Mineral Resources and Energy","Rezah Atcha","(012) 315 5287","Rezah.Atcha@treasury.gov.za","Nomagugu Madikane","(012) 315 5312","Nomagugu.Madikane@treasury.gov.za",10653456,11205147,11707142,1037131,1083709,1132261,null,null,null,null,"Mineral Resources and Energy",10653456,11205147,11707142,null,null,"Mineral Resources and Energy",1037131,1083709,1132261]
[null,null,null,null,null,null,null,null,null,null,null,null,null,null,null,null,null,null,null,null,null,null,null,null,null,21,7,"National School of Government","George Tembo","(012) 315 5514","George.Tembo@treasury.gov.za","Uvadhya Singh","(012) 315 9030","Uvadhya.Singh@treasury.gov.za",225944,235642,246196,59309,61974,64750,null,null,null,null,"National School of Government",225944,235642,246196,null,null,"National School of Government",59309,61974,64750]
[null,null,null,null,null,null,null,null,null,null,null,null,null,null,null,null,null,null,null,null,null,null,null,null,null,22,8,"National Treasury","Mokgatla Tema","(012) 315 5948","Mokgatla.Tema@treasury.gov.za","Rhoda Marais","(012) 315 5906","Rhoda.Marais@treasury.gov.za",930737811,977634759,1039728978,890023,902007,942414,null,null,null,null,"National Treasury",930737811,977634759,1039728978,null,null,"National Treasury",890023,902007,942414]
[null,null,null,null,null,null,null,null,null,null,null,null,null,null,null,null,null,null,null,null,null,null,null,null,null,23,27,"Office of the Chief Justice","Elvis Ramafamba","(012) 315 5204","Elvis.Ramafamba@treasury.gov.za","Keabetswe Matlwa","(012) 395 6678","Keabetswe.Matlwa@treasury.gov.za",2357611,2463491,2573851,1740705,1818880,1900371,null,null,null,null,"Office of the Chief Justice",2357611,2463491,2573851,null,null,"Office of the Chief Justice",1740705,1818880,1900371]
[null,null,null,null,null,null,null,null,null,null,null,null,null,null,null,null,null,null,null,null,null,null,null,null,null,24,2,"Parliament","Timothy Murwa","(012) 315 5002","Timothy.Murwa@treasury.gov.za","Maggy Makoka","(012) 315 5468","Maggy.Mokoka@Treasury.gov.za",2657570,2776916,2901323,1399164,1461998,1527497,null,null,null,null,"Parliament",2657570,2776916,2901323,null,null,"Parliament",1399164,1461998,1527497]
[null,null,null,null,null,null,null,null,null,null,null,null,null,null,null,null,null,null,null,null,null,null,null,null,null,25,9,"Planning, Monitoring and Evaluation","Mokgatla Tema","(012) 315 5948","Mokgatla.Tema@treasury.gov.za","Viwe Sobudula ","(012) 315 5015 ","Viwe.Sobudula@treasury.gov.za",466812,487769,509615,311990,326003,340607,null,null,null,null,"Planning, Monitoring and Evaluation",466812,487769,509615,null,null,"Planning, Monitoring and Evaluation",311990,326003,340607]
[null,null,null,null,null,null,null,null,null,null,null,null,null,null,null,null,null,null,null,null,null,null,null,null,null,26,28,"Police","Nompumelelo Radebe","(012) 315 5957","Nompumelelo.Radebe@treasury.gov.za","Velisubuhle Buti","(012) 395 6709","Velisubuhle.Buti@treasury.gov.za",99018831,104373725,109049663,77232311,81608782,85264855,null,null,null,null,"Police",99018831,104373725,109049663,null,null,"Police",77232311,81608782,85264855]
[null,null,null,null,null,null,null,null,null,null,null,null,null,null,null,null,null,null,null,null,null,null,null,null,null,27,10,"Public Enterprises","Isaac Kurasha","(012) 315 5213","Isaac.Kurasha@treasury.gov.za","Ntandokazi Makaula","(012) 395 6667","Ntandokazi.Makaula@treasury.gov.za",297553,310915,324839,179974,188057,196481,null,null,null,null,"Public Enterprises",297553,310915,324839,null,null,"Public Enterprises",179974,188057,196481]
[null,null,null,null,null,null,null,null,null,null,null,null,null,null,null,null,null,null,null,null,null,null,null,null,null,28,11,"Public Service and Administration","George Tembo","(012) 315 5514","George.Tembo@treasury.gov.za","Uvadhya Singh","(012) 315 9030","Uvadhya.Singh@treasury.gov.za",543462,567875,593307,290747,303804,317415,null,null,null,null,"Public Service Commission",284921,297715,311054,null,null,"Public Service Commission",212877,222437,232403]
[null,null,null,null,null,null,null,null,null,null,null,null,null,null,null,null,null,null,null,null,null,null,null,null,null,29,12,"Public Service Commission","George Tembo","(012) 315 5514","George.Tembo@treasury.gov.za","Mercy Mhlophe","(012) 315 5598","mercy.mhlope@treasury.gov.za",284921,297715,311054,212877,222437,232403,null,null,null,null,"Public Service and Administration",543462,567875,593307,null,null,"Public Service and Administration",290747,303804,317415]
[null,null,null,null,null,null,null,null,null,null,null,null,null,null,null,null,null,null,null,null,null,null,null,null,null,30,13,"Public Works and Infrastructure","George Tembo","(012) 315 5514","George.Tembo@treasury.gov.za","Uvadhya Singh","(012) 315 9030","Uvadhya.Singh@treasury.gov.za",8568946,8954214,9355359,571442,597104,623854,null,null,null,null,"Public Works and Infrastructure",8568946,8954214,9355359,null,null,"Public Works and Infrastructure",571442,597104,623854]
[null,null,null,null,null,null,null,null,null,null,null,null,null,null,null,null,null,null,null,null,null,null,null,null,null,31,35,"Science and Innovation","Gcobisa Magazi","(012) 315 5320","Gcobisa.Magazi@treasury.gov.za","Thabiso Molewa","(012) 395 6780","Thabiso.Molewa@treasury.gov.za",9244581,9659756,10092514,358376,374470,391249,null,null,null,null,"Science and Innovation",9244581,9659756,10092514,null,null,"Science and Innovation",358376,374470,391249]
[null,null,null,null,null,null,null,null,null,null,null,null,null,null,null,null,null,null,null,null,null,null,null,null,null,32,36,"Small Business Development","Isaac Kurasha","(012) 315 5213","Isaac.Kurasha@treasury.gov.za","Rudzani Sikhwari","(012) 315 5823","rudzani.sikhwari@treasury.gov.za",2569927,2685340,2805646,220264,246706,257760,null,null,null,null,"Small Business Development",2569927,2685340,2805646,null,null,"Small Business Development",220264,246706,257760]
[null,null,null,null,null,null,null,null,null,null,null,null,null,null,null,null,null,null,null,null,null,null,null,null,null,33,19,"Social Development","Pebetse Maleka","(012) 315 5566","Pebetse.Maleka@treasury.gov.za","Yusuf Mayet","(012) 315 5189","Yusuf.Mayet@treasury.gov.za",221041972,232974986,243412261,498009,520374,543688,null,null,null,null,"Social Development",221041972,232974986,243412261,null,null,"Social Development",498009,520374,543688]
[null,null,null,null,null,null,null,null,null,null,null,null,null,null,null,null,null,null,null,null,null,null,null,null,null,34,37,"Sport, Arts and Culture","Judy Naidoo","(012) 315 5269","Judy.Naidoo@treasury.gov.za","Yamkela Ngewu","(012) 315 5936","Yamkela.Ngewu@treasury.gov.za",6347204,6149504,6425006,376422,393325,410947,null,null,null,null,"Sport, Arts and Culture",6347204,6149504,6425006,null,null,"Sport, Arts and Culture",376422,393325,410947]
[null,null,null,null,null,null,null,null,null,null,null,null,null,null,null,null,null,null,null,null,null,null,null,null,null,35,14,"Statistics South Africa","Mokgatla Tema","(012) 315 5948","Mokgatla.Tema@treasury.gov.za","Thobeka Mbonambi","(012) 395 6719","Thobeka.Mbonambi@treasury.gov.za",2644134,2774713,2899018,1600931,1684662,1760135,null,null,null,null,"Statistics South Africa",2644134,2774713,2899018,null,null,"Statistics South Africa",1600931,1684662,1760135]
[null,null,null,null,null,null,null,null,null,null,null,null,null,null,null,null,null,null,null,null,null,null,null,null,null,36,1,"The Presidency","Pindi Masiso","(012) 315 5468","Pindi.Masiso@treasury.gov.za","Maggy Mokoka","(012) 315 5468","Maggy.Mokoka@treasury.gov.za",610485,637903,666479,376377,393280,410898,null,null,null,null,"The Presidency",610485,637903,666479,null,null,"The Presidency",376377,393280,410898]
[null,null,null,null,null,null,null,null,null,null,null,null,null,null,null,null,null,null,null,null,null,null,null,null,null,37,38,"Tourism","Gcobisa Magazi","(012) 315 5320","Gcobisa.Magazi@treasury.gov.za","Ashley Ramasimu","(012) 315 5166","Ashley.Ramasimu@treasury.gov.za",2492307,2604237,2720908,363524,379846,396864,null,null,null,null,"Tourism",2492307,2604237,2720908,null,null,"Tourism",363524,379846,396864]
[null,null,null,null,null,null,null,null,null,null,null,null,null,null,null,null,null,null,null,null,null,null,null,null,null,38,39,"Trade, Industry and Competition","Isaac Kurasha","(012) 315 5213","Isaac.Kurasha@treasury.gov.za","Rudzani Sikhwari","(012) 315 5823","rudzani.sikhwari@treasury.gov.za",10887653,10553269,11026040,1031246,1045762,1092612,null,null,null,null,"Trade, Industry and Competition",10887653,10553269,11026040,null,null,"Trade, Industry and Competition",1031246,1045762,1092612]
[null,null,null,null,null,null,null,null,null,null,null,null,null,null,null,null,null,null,null,null,null,null,null,null,null,39,15,"Traditional Affairs","Millicent Mulaudzi","(012) 395 6576","Millicent.Mulaudzi@treasury.gov.za","Amanda Matutu","(012) 395 6786","Amanda.Matutu@treasury.gov.za",179962,188044,196465,89020,93018,97185,null,null,null,null,"Traditional Affairs",179962,188044,196465,null,null,"Traditional Affairs",89020,93018,97185]
[null,null,null,null,null,null,null,null,null,null,null,null,null,null,null,null,null,null,null,null,null,null,null,null,null,40,40,"Transport","Dumebi Ubogu","(012) 315 5077","Dumebi.Ubogu@treasury.gov.za","Luyolo Ntlangula ","(012) 315-5571","luyolo.ntangula@treasury.gov.za",76907174,81658177,85316464,531457,555328,580210,null,null,null,null,"Transport",76907174,81658177,85316464,null,null,"Transport",531457,555328,580210]
[null,null,null,null,null,null,null,null,null,null,null,null,null,null,null,null,null,null,null,null,null,null,null,null,null,41,41,"Water and Sanitation","Millicent Mulaudzi","(012) 395 6576","Millicent.Mulaudzi@treasury.gov.za","Iqbal Mahomed Alli","(012) 315 5809","Iqbal.Mahomed-Alli@treasury.gov.za",20155237,20913287,19624487,1741701,1819924,1901455,null,null,null,null,"Water and Sanitation",20155237,20913287,19624487,null,null,"Water and Sanitation",1741701,1819924,1901455]
[null,null,null,null,null,null,null,null,null,null,null,null,null,null,null,null,null,null,null,null,null,null,null,null,null,42,20,"Women, Youth and Persons with Disabilities","Pebetse Maleka","(012) 315 5566","Pebetse.Maleka@treasury.gov.za","Lindi Mzankomo","(012) 315 5256","Lindi.Mzankomo@treasury.gov.za",1031916,817034,853637,111943,116976,122218,null,null,null,null,"Women, Youth and Persons with Disabilities",1031916,817034,853637,null,null,"Women, Youth and Persons with Disabilities",111943,116976,122218]
[]
[]
[null,null,null,null,null,null,null,null,null,null,null,null,null,null,null,null,null,null,null,null,null,null,null,null,null,null,null,null,null,null,null,null,null,null,{"$f":"SUM(AI4:AI45)","v":1937192445},2033659738,2141771211,178139543,187017838,195396248]
[null,null,null,null,null,null,null,null,null,null,null,null,null,null,null,null,null,null,null,null,null,null,null,null,null,null,null,null,null,null,null,null,null,null,1751895268.5821743,1789735539.6461465,null,174140115.2931878,173620506.60814115]

{"sheet":"Notes","index":1,"n_rows":72,"n_cols":18,"rows_kept":72,"cut":false,"hidden":false,"merged":[[42,1,42,15]]}
[]
[]
[]
[]
[]
[]
[]
[]
[]
[]
[]
[]
[]
[]
[]
[]
[]
[]
[]
[]
[]
[]
[]
[]
[]
[]
[]
[]
[]
[]
[]
[]
[]
[]
[]
[]
[]
[]
[]
[]
[]
[null,"Link to 2023 MTEF Guidelines"]
[null,"http://www.treasury.gov.za/publications/guidelines/default.aspx"]
[]
[]
[]
[]
[]
[]
[]
[]
[]
[]
[]
[]
[]
[null,null,null,null,null,null,null,null,null,null,null,null,null,null,null,null,null,"Click \"Enable Content\""]
[]
[]
[]
[]
[]
[]
[]
[]
[]
[]
[]
[null,null,null,null,null,null,null,null,null,null,null,null,null,null,null,null,null,"Tick \"Ignore Privacy Levels\" box"]
[]
[]
[null,null,null,null,null,null,null,null,null,null,null,null,null,null,null,null,null,"Click \"Save\""]

{"sheet":"Pivot % growth","index":2,"n_rows":37,"n_cols":16,"rows_kept":37,"cut":false,"hidden":false,"merged":[]}
[]
[]
[]
[]
[]
[]
[]
[]
[]
[]
[]
[]
[]
[null,"Econ3","(All)"]
[]
[null,"Row Labels"," 2023/24 \nRevised \nbaseline"," 2024/25 Revised baseline"," 2025/26 Revised baseline"," 2023/24 adjustment"," 2024/25 adjustment"," 2025/26 adjustment","% YoY 2023/24","% YoY 2024/25","% YoY 2025/26"," Ave Ann growth History"," Ave Ann growth MTEF"," 2023/24 % adjustment"," 2024/25 % adjustment"," 2025/26 % adjustment"]
[null,"Administration",689299,721277,753589,0,0,0,-2.3010939231844274E-2,4.6392059178963052E-2,4.4798322974391347E-2,3.9678610594862995E-2,2.2207040117972143E-2,0,0,0]
[null,"Current payments",677242,708678,740425,0,0,0,-2.4111819590042827E-2,4.6417676399278296E-2,4.4797496183033747E-2,3.9492105508923014E-2,2.1831020654884625E-2,0,0,0]
[null,"Transfers and subsidies",0,0,0,0,0,0,0,0,0,0,0,0,0,0]
[null,"Payments for capital assets",12057,12599,13164,0,0,0,4.3083311705164773E-2,4.4953139255204499E-2,4.4844828954679006E-2,5.1127551971823726E-2,4.4293408141215851E-2,0,0,0]
[null,"Payments for financial assets",0,0,0,0,0,0,0,0,0,0,0,0,0,0]
[null,"Direct charge against the National Revenue Fund",471709,492893,514975,0,0,0,0,4.4909043499276047E-2,4.4800798550598264E-2,-7.7323673984371899E-2,2.9684071598669703E-2,0,0,0]
[null,"Current payments",471709,492893,514975,0,0,0,0,4.4909043499276047E-2,4.4800798550598264E-2,-7.7323673984371899E-2,2.9684071598669703E-2,0,0,0]
[null,"Transfers and subsidies",0,0,0,0,0,0,0,0,0,0,0,0,0,0]
[null,"Payments for capital assets",0,0,0,0,0,0,0,0,0,0,0,0,0,0]
[null,"Payments for financial assets",0,0,0,0,0,0,0,0,0,0,0,0,0,0]
[null,"Associated Services",799292,833843,871199,0,0,0,-1.4178798896875677E-2,4.3227005900221771E-2,4.4799800442049564E-2,4.451986326718993E-2,2.424381941094933E-2,0,0,0]
[null,"Current payments",283672,294862,308072,0,0,0,-4.7303673801119661E-2,3.9446966919540971E-2,4.4800618594461161E-2,6.2618362860313193E-2,1.1416612476576882E-2,0,0,0]
[null,"Transfers and subsidies",515620,538981,563127,0,0,0,5.0464786728288136E-3,4.5306621155114302E-2,4.479935285288339E-2,3.4562390629175876E-2,3.1543580827103845E-2,0,0,0]
[null,"Payments for capital assets",0,0,0,0,0,0,0,0,0,0,0,0,0,0]
[null,"Payments for financial assets",0,0,0,0,0,0,0,0,0,0,0,0,0,0]
[null,"Legislation and Oversight",697270,728903,761560,0,0,0,1.9384384147052014E-3,4.5366931031020963E-2,4.4802943601549128E-2,2.0826683440680727E-2,3.0500154196926976E-2,0,0,0]
[null,"Current payments",695509,727063,759638,0,0,0,1.8351134702225824E-3,4.5368212345203274E-2,4.4803545222353414E-2,2.0733420672708558E-2,3.0465348325823927E-2,0,0,0]
[null,"Transfers and subsidies",0,0,0,0,0,0,0,0,0,0,0,0,0,0]
[null,"Payments for capital assets",1761,1840,1922,0,0,0,4.4483985765124467E-2,4.4860874503123149E-2,4.4565217391304257E-2,6.240657520371018E-2,4.4636680000027962E-2,0,0,0]
[null,"Payments for financial assets",0,0,0,0,0,0,0,0,0,0,0,0,0,0]
[null,"Grand Total",2657570,2776916,2901323,0,0,0,-9.8295349544254007E-3,4.4907942217890851E-2,4.4800418881953963E-2,1.1430747517781947E-2,2.6298699903047673E-2,0,0,0]

{"sheet":"Pivot_T","index":3,"n_rows":23,"n_cols":5,"rows_kept":23,"cut":false,"hidden":false,"merged":[]}
[]
[]
[]
[]
[]
[]
[]
[]
[]
[]
[null,"Econ4","(All)"]
[null,"Econ2","Current payments"]
[null,"DOR","(All)"]
[null,"Econ3","(All)"]
[]
[null," Value","Column Labels"]
[null,null,"2021/22"]
[null,"Row Labels","Adjusted appropriation","Main appropriation","Revised estimate"]
[null,"Administration",672894,672894,672894]
[null,"Associated Services",275594,275594,275594]
[null,"Direct charge against the National Revenue Fund",471710,471710,471710]
[null,"Legislation and Oversight",693179,693179,693179]
[null,"Grand Total",2113377,2113377,2113377]

{"sheet":"Service delivery impact","index":4,"n_rows":17,"n_cols":5,"rows_kept":17,"cut":false,"hidden":false,"merged":[[14,1,14,14]]}
[]
[]
[]
[]
[]
[]
[]
[]
[]
[]
[]
[]
[]
[]
[null,"Note: Data in the table below is sourced from the individual SRT sheets. Any adjustments should be made on the SRT sheets. Ajustments made directly on this table will be over-written when the data is refreshed!"]
[]
[null,"Impact area","Unit no","Unit name","Comment"]

{"sheet":"Performance impact","index":5,"n_rows":17,"n_cols":19,"rows_kept":17,"cut":false,"hidden":false,"merged":[[14,1,14,8]]}
[]
[]
[]
[]
[]
[]
[]
[]
[]
[]
[]
[]
[]
[]
[null,"Note: Data in the table below is sourced from the individual SRT sheets. Any adjustments should be made on the SRT sheets. Ajustments made directly on this table will be over-written when the data is refreshed!"]
[]
[null,"Impact area","Unit no","Unit name","Performance indicator","2022/23 Current performance","2022/23 Performance @ benchmark level","2022/23 Change","2023/24 Original target","2023/24 Revised target","2023/24 Change","2024/25 Original target","2024/25 Revised target","2024/25 Change","2025/26 Original target","2025/26 Revised target","2025/26 Change","Comment","Gov Priority"]

{"sheet":"Pivot Infra impact","index":6,"n_rows":20,"n_cols":6,"rows_kept":20,"cut":false,"hidden":false,"merged":[]}
[]
[]
[]
[]
[]
[]
[]
[]
[]
[]
[]
[]
[]
[null,"Impact area","(All)"]
[]
[null," Value","Column Labels"]
[null,null,"2022/23","2023/24","2024/25","2025/26"]
[null,"Row Labels","Change","Change","Change","Change"]
[null,"(blank)",0,0,0,0]
[null,"Grand Total",0,0,0,0]

{"sheet":"Pivot Personnel impact","index":7,"n_rows":23,"n_cols":6,"rows_kept":23,"cut":false,"hidden":false,"merged":[]}
[]
[]
[]
[]
[]
[]
[]
[]
[]
[]
[]
[]
[]
[]
[]
[null," Value","Column Labels"]
[null,null,"2022/23","2023/24","2024/25","2025/26"]
[null,"Row Labels","Change in number","Change in number","Change in number","Change in number"]
[null,"Levels 01 - 06",0,0,0,0]
[null,"Levels 07 - 12",0,0,0,0]
[null,"Levels 13 - 16",0,0,0,0]
[null,"Other",0,0,0,0]
[null,"Grand Total",0,0,0,0]

{"sheet":"Pivot HRBP","index":8,"n_rows":22,"n_cols":11,"rows_kept":22,"cut":false,"hidden":false,"merged":[]}
[]
[]
[]
[]
[]
[]
[]
[]
[]
[]
[]
[null,"Salary level","(All)"]
[null,"Programme No","(All)"]
[]
[null," Number","Columns"]
[null,null,"2022/23"]
[null,"Row Labels","\nOnce-off Payments per person","Cost of vacant posts to be filled","Headcount reductions to be made","Initial Headcount","Projected Annual Cost","Revised Headcount","Savings from headcount reductions","Unit Costs","Vacant funded posts to be filled"]
[null,"Levels 01 - 06",0,0,0,0,0,0,0,0,0]
[null,"Levels 07 - 12",0,0,0,0,0,0,0,0,0]
[null,"Levels 13 - 16",0,0,0,0,0,0,0,0,0]
[null,"Other",0,0,0,0,0,0,0,0,0]
[null,"Grand Total",0,0,0,0,0,0,0,0,0]

{"sheet":"Data","index":9,"n_rows":790,"n_cols":84,"rows_kept":790,"cut":false,"hidden":false,"merged":[[1,42,1,43],[2,42,2,43],[3,42,3,43],[4,42,4,43],[5,42,5,43]]}
[]
[null,null,null,null,null,null,null,null,null,null,null,null,null,null,null,null,null,null,null,null,null,null,null,null,null,null,null,null,null,null,null,null,null,null,null,null,null,null,null,null,null,null,"Spending review topics…"]
[null,null,null,null,null,null,null,null,null,null,null,null,null,null,null,null,null,null,null,null,null,null,null,null,null,null,null,null,null,null,null,null,null,null,null,null,null,null,null,null,null,1,"afas dfsfds",null,null,null,null,null,null,null,null,null,null,null,null,null,null,null,null,null,null,null,null,null,null,null,null,null,null,null,null,null,null,null,null,null,null,null,null,null,null,{"$f":"COUNTIF(Dataset[2023/24 Revised baseline],\"<0\")","v":1},{"$f":"COUNTIF(Dataset[2024/25 Revised baseline],\"<0\")","v":1},{"$f":"COUNTIF(Dataset[2025/26 Revised baseline],\"<0\")","v":1}]
[null,null,null,null,null,null,null,null,null,null,null,null,null,null,null,null,null,null,null,null,null,null,null,null,null,null,null,null,null,null,null,null,null,null,null,null,null,null,null,null,null,2,"Spending review topic 2"]
[null,null,null,null,null,null,null,null,null,null,null,null,null,null,null,null,null,null,null,null,null,null,null,null,null,null,null,null,null,null,null,null,null,null,null,null,null,null,null,null,null,3,"Spending review topic 3"]
[null,null,null,null,null,null,null,null,null,null,null,null,null,null,null,null,null,null,null,null,null,null,null,null,null,null,null,null,null,null,null,null,null,null,null,null,null,null,null,null,null,4,"Spending review topic 4",null,null,null,null,null,null,null,null,null,null,null,null,null,null,null,null,null,null,null,null,null,null,null,null,null,null,null,null,null,null,null,null,null,null,null,null,null,null,{"$f":"MyYear5","v":"2023/24"},{"$f":"MyYear6","v":"2024/25"},{"$f":"MyYear7","v":"2025/26"}]
[]
[null,null,null,null,null,null,null,null,null,null,null,null,null,null,null,null,null,null,null,null,null,null,null,null,null,null,null,null,null,null,null,null,null,null,null,null,null,null,null,null,null,null,null,null,null,null,null,null,null,null,null,null,null,null,null,null,null,null,null,null,null,null,null,null,null,null,null,null,null,null,null,null,null,null,null,null,null,null,null,null,"Baseline ceiling:",{"$f":"INDEX(DeptCeiling,MATCH(MyVoteNo,VoteNoList,0),1)","v":2657570},{"$f":"INDEX(DeptCeiling,MATCH(MyVoteNo,VoteNoList,0),2)","v":2776916},{"$f":"INDEX(DeptCeiling,MATCH(MyVoteNo,VoteNoList,0),3)","v":2901323}]
[null,null,null,null,null,null,null,null,null,null,null,null,null,null,null,null,null,null,null,null,null,null,null,null,null,null,null,null,null,null,null,null,null,null,null,null,null,null,null,null,null,null,null,null,null,null,null,null,null,null,null,null,null,null,null,null,null,null,null,null,null,null,null,null,null,null,null,null,null,null,null,null,null,null,null,null,null,null,null,null,"(Over)/Under",{"$f":"CD8-SUM(Dataset[2023/24 Revised baseline])","v":0},{"$f":"CE8-SUM(Dataset[2024/25 Revised baseline])","v":0},{"$f":"CF8-SUM(Dataset[2025/26 Revised baseline])","v":0}]
[]
[null,null,null,null,null,null,null,null,null,null,null,null,null,null,null,null,null,null,null,null,null,null,null,null,null,null,null,null,null,null,null,null,null,null,null,null,null,null,null,null,null,null,null,null,null,null,null,null,null,null,null,null,null,null,null,null,null,null,null,null,null,null,null,null,null,null,null,null,null,null,null,null,null,null,null,null,null,null,null,null,"CoE ceiling:",{"$f":"INDEX(CoECeiling,MATCH(MyVoteNo,VoteNoList,0),1)","v":1399164},{"$f":"INDEX(CoECeiling,MATCH(MyVoteNo,VoteNoList,0),2)","v":1461998},{"$f":"INDEX(CoECeiling,MATCH(MyVoteNo,VoteNoList,0),3)","v":1527497}]
[null,null,null,null,null,null,null,null,null,null,null,null,null,null,null,null,null,null,null,null,null,null,null,null,null,null,null,null,null,null,null,null,null,null,null,null,null,null,null,null,null,null,null,null,null,null,null,null,null,null,null,null,null,null,null,null,null,null,null,null,null,null,null,null,null,null,null,null,null,null,null,null,null,null,null,null,null,null,null,null,"(Over)/Under",{"$f":"CD11-SUMIF(Dataset[Econ3],\"Compensation of employees\",Dataset[2023/24 Revised baseline])","v":0},{"$f":"CE11-SUMIF(Dataset[Econ3],\"Compensation of employees\",Dataset[2024/25 Revised baseline])","v":0},{"$f":"CF11-SUMIF(Dataset[Econ3],\"Compensation of employees\",Dataset[2025/26 Revised baseline])","v":0}]
[]
[]
[null,null,null,null,null,null,null,null,null,null,null,null,null,null,null,null,null,null,null,null,null,null,null,null,null,null,null,null,null,null,null,null,null,null,"2018/19","2019/20","2020/21","2021/22 Main appropriation","2021/22 Adjusted appropriation","2021/22 Revised estimate","2021/22 Preliminary outcome","2022/23 Baseline","2023/24 Baseline","2024/25 Baseline","2025/26 Baseline","2023/24 From - Spending review Topic 1","2024/25 From - Spending review Topic 1","2025/26 From - Spending review Topic 1","2023/24 To - Spending review Topic 1","2024/25 To - Spending review Topic 1","2025/26 To - Spending review Topic 1","2023/24 From - Spending review Topic 2","2024/25 From - Spending review Topic 2","2025/26 From - Spending review Topic 2","2023/24 To - Spending review Topic 2","2024/25 To - Spending review Topic 2","2025/26 To - Spending review Topic 2","2023/24 From - Spending review Topic 3","2024/25 From - Spending review Topic 3","2025/26 From - Spending review Topic 3","2023/24 To - Spending review Topic 3","2024/25 To - Spending review Topic 3","2025/26 To - Spending review Topic 3","2023/24 From - Spending review Topic 4","2024/25 From - Spending review Topic 4","2025/26 From - Spending review Topic 4","2023/24 To - Spending review Topic 4","2024/25 To - Spending review Topic 4","2025/26 To - Spending review Topic 4","2023/24 From - Other reallocations","2024/25 From - Other reallocations","2025/26 From - Other reallocations","2023/24 To - Other reallocations","2024/25 To - Other reallocations","2025/26 To - Other reallocations","2023/24 From - Total","2024/25 From - Total","2025/26 From - Total","2023/24 To - Total","2024/25 To - Total","2025/26 To - Total","2023/24 Revised baseline","2024/25 Revised baseline","2025/26 Revised baseline"]
[null,null,null,null,null,null,null,null,null,null,null,null,null,null,null,null,null,null,null,null,null,null,null,null,null,null,null,null,null,null,null,null,null,"Subtotal:  ",{"$f":"SUBTOTAL(9,Dataset[2018/19])","v":2365855},{"$f":"SUBTOTAL(9,Dataset[2019/20])","v":2593978},{"$f":"SUBTOTAL(9,Dataset[2020/21])","v":2492319},{"$f":"SUBTOTAL(9,Dataset[2021/22 Main appropriation])","v":2615858},{"$f":"SUBTOTAL(9,Dataset[2021/22 Adjusted appropriation])","v":2615858},{"$f":"SUBTOTAL(9,Dataset[2021/22 Revised estimate])","v":2615858},{"$f":"SUBTOTAL(9,Dataset[2021/22 Preliminary outcome])","v":0},{"$f":"SUBTOTAL(9,Dataset[2022/23 Baseline])","v":2683952},{"$f":"SUBTOTAL(9,Dataset[2023/24 Baseline])","v":2657570},{"$f":"SUBTOTAL(9,Dataset[2024/25 Baseline])","v":2776916},{"$f":"SUBTOTAL(9,Dataset[2025/26 Baseline])","v":2901323},{"$f":"SUBTOTAL(9,Dataset[2023/24 From - Spending review Topic 1])","v":0},{"$f":"SUBTOTAL(9,Dataset[2024/25 From - Spending review Topic 1])","v":0},{"$f":"SUBTOTAL(9,Dataset[2025/26 From - Spending review Topic 1])","v":0},{"$f":"SUBTOTAL(9,Dataset[2023/24 To - Spending review Topic 1])","v":0},{"$f":"SUBTOTAL(9,Dataset[2024/25 To - Spending review Topic 1])","v":0},{"$f":"SUBTOTAL(9,Dataset[2025/26 To - Spending review Topic 1])","v":0},{"$f":"SUBTOTAL(9,Dataset[2023/24 From - Spending review Topic 2])","v":0},{"$f":"SUBTOTAL(9,Dataset[2024/25 From - Spending review Topic 2])","v":0},{"$f":"SUBTOTAL(9,Dataset[2025/26 From - Spending review Topic 2])","v":0},{"$f":"SUBTOTAL(9,Dataset[2023/24 To - Spending review Topic 2])","v":0},{"$f":"SUBTOTAL(9,Dataset[2024/25 To - Spending review Topic 2])","v":0},{"$f":"SUBTOTAL(9,Dataset[2025/26 To - Spending review Topic 2])","v":0},{"$f":"SUBTOTAL(9,Dataset[2023/24 From - Spending review Topic 3])","v":0},{"$f":"SUBTOTAL(9,Dataset[2024/25 From - Spending review Topic 3])","v":0},{"$f":"SUBTOTAL(9,Dataset[2025/26 From - Spending review Topic 3])","v":0},{"$f":"SUBTOTAL(9,Dataset[2023/24 To - Spending review Topic 3])","v":0},{"$f":"SUBTOTAL(9,Dataset[2024/25 To - Spending review Topic 3])","v":0},{"$f":"SUBTOTAL(9,Dataset[2025/26 To - Spending review Topic 3])","v":0},{"$f":"SUBTOTAL(9,Dataset[2023/24 From - Spending review Topic 4])","v":0},{"$f":"SUBTOTAL(9,Dataset[2024/25 From - Spending review Topic 4])","v":0},{"$f":"SUBTOTAL(9,Dataset[2025/26 From - Spending review Topic 4])","v":0},{"$f":"SUBTOTAL(9,Dataset[2023/24 To - Spending review Topic 4])","v":0},{"$f":"SUBTOTAL(9,Dataset[2024/25 To - Spending review Topic 4])","v":0},{"$f":"SUBTOTAL(9,Dataset[2025/26 To - Spending review Topic 4])","v":0},{"$f":"SUBTOTAL(9,Dataset[2023/24 From - Other reallocations])","v":0},{"$f":"SUBTOTAL(9,Dataset[2024/25 From - Other reallocations])","v":0},{"$f":"SUBTOTAL(9,Dataset[2025/26 From - Other reallocations])","v":0},{"$f":"SUBTOTAL(9,Dataset[2023/24 To - Other reallocations])","v":0},{"$f":"SUBTOTAL(9,Dataset[2024/25 To - Other reallocations])","v":0},{"$f":"SUBTOTAL(9,Dataset[2025/26 To - Other reallocations])","v":0},{"$f":"SUBTOTAL(9,Dataset[2023/24 From - Total])","v":0},{"$f":"SUBTOTAL(9,Dataset[2024/25 From - Total])","v":0},{"$f":"SUBTOTAL(9,Dataset[2025/26 From - Total])","v":0},{"$f":"SUBTOTAL(9,Dataset[2023/24 To - Total])","v":0},{"$f":"SUBTOTAL(9,Dataset[2024/25 To - Total])","v":0},{"$f":"SUBTOTAL(9,Dataset[2025/26 To - Total])","v":0},{"$f":"SUBTOTAL(9,Dataset[2023/24 Revised baseline])","v":2657570},{"$f":"SUBTOTAL(9,Dataset[2024/25 Revised baseline])","v":2776916},{"$f":"SUBTOTAL(9,Dataset[2025/26 Revised baseline])","v":2901323}]
[null,null,null,null,null,null,null,null,null,null,null,null,null,null,null,null,null,null,null,null,null,null,null,null,null,null,null,null,null,null,null,null,null,null,null,null,null,null,null,null,null,null,null,null,null,{"$f":"\"…\"&SRTopic1","v":"…afas dfsfds"},null,null,null,null,null,{"$f":"\"…\"&SRTopic2","v":"…Spending review topic 2"},null,null,null,null,null,{"$f":"\"…\"&SRTopic3","v":"…Spending review topic 3"},null,null,null,null,null,{"$f":"\"…\"&SRTopic4","v":"…Spending review topic 4"},null,null,null,null,null,"…Adjustments other than spending reviews",null,null,null,null,null,null,null,null,null,null,null,"…red shaded cells below indicate negative budgets."]
["Combo_DoR","Combo_Econ","Budget Year","Process","Vote No. - N","Programme No. - N","Subprogramme No. - N","Index - N","Index - N2","Vote No.","Programme No.","Subprogramme No.","Index","Index2","UID","Econ1_IDn","Econ2_IDn","Econ3_IDn","Econ4_IDn","Econ5_IDn","Econ_UID","Province","Department","Programme","Subprogramme","Transfers and subsidies / Payments for financial assets detail","Econ1","Econ2","Econ3","Econ4","Econ5","Function group","Technical group","DOR","2018/19","2019/20","2020/21","2021/22 Main appropriation","2021/22 Adjusted appropriation","2021/22 Revised estimate","2021/22 Preliminary outcome","2022/23 Baseline","2023/24 Baseline","2024/25 Baseline","2025/26 Baseline","2023/24 From - Spending review Topic 1","2024/25 From - Spending review Topic 1","2025/26 From - Spending review Topic 1","2023/24 To - Spending review Topic 1","2024/25 To - Spending review Topic 1","2025/26 To - Spending review Topic 1","2023/24 From - Spending review Topic 2","2024/25 From - Spending review Topic 2","2025/26 From - Spending review Topic 2","2023/24 To - Spending review Topic 2","2024/25 To - Spending review Topic 2","2025/26 To - Spending review Topic 2","2023/24 From - Spending review Topic 3","2024/25 From - Spending review Topic 3","2025/26 From - Spending review Topic 3","2023/24 To - Spending review Topic 3","2024/25 To - Spending review Topic 3","2025/26 To - Spending review Topic 3","2023/24 From - Spending review Topic 4","2024/25 From - Spending review Topic 4","2025/26 From - Spending review Topic 4","2023/24 To - Spending review Topic 4","2024/25 To - Spending review Topic 4","2025/26 To - Spending review Topic 4","2023/24 From - Other reallocations","2024/25 From - Other reallocations","2025/26 From - Other reallocations","2023/24 To - Other reallocations","2024/25 To - Other reallocations","2025/26 To - Other reallocations","2023/24 From - Total","2024/25 From - Total","2025/26 From - Total","2023/24 To - Total","2024/25 To - Total","2025/26 To - Total","2023/24 Revised baseline","2024/25 Revised baseline","2025/26 Revised baseline"]
["NAT|Non-transfer item","2|Salaries and wages","2023_24","MTEF2023",2,1,1,618,1,"02","01","01","000618","000001","02|01|01",1,1,1,1,1,"01|01|01|01|01","National","Parliament","Administration","Executive Authority","Non-transfer item","Current","Current payments","Compensation of employees","Salaries and wages","Salaries and wages","General public services","Executive and legislative organs","NAT",68960,56758,59171,58293,58293,58293,0,58360,58349,60939,63669,null,null,null,null,null,null,null,null,null,null,null,null,null,null,null,null,null,null,null,null,null,null,null,null,null,null,null,null,null,null,{"$f":"Dataset[[#This Row],[2023/24 From - Spending review Topic 1]]+Dataset[[#This Row],[2023/24 From - Spending review Topic 2]]+Dataset[[#This Row],[2023/24 From - Spending review Topic 3]]+Dataset[[#This Row],[2023/24 From - Spending review Topic 4]]+Dataset[[#This Row],[2023/24 From - Other reallocations]]","v":0},{"$f":"Dataset[[#This Row],[2024/25 From - Spending review Topic 1]]+Dataset[[#This Row],[2024/25 From - Spending review Topic 2]]+Dataset[[#This Row],[2024/25 From - Spending review Topic 3]]+Dataset[[#This Row],[2024/25 From - Spending review Topic 4]]+Dataset[[#This Row],[2024/25 From - Other reallocations]]","v":0},{"$f":"Dataset[[#This Row],[2025/26 From - Spending review Topic 1]]+Dataset[[#This Row],[2025/26 From - Spending review Topic 2]]+Dataset[[#This Row],[2025/26 From - Spending review Topic 3]]+Dataset[[#This Row],[2025/26 From - Spending review Topic 4]]+Dataset[[#This Row],[2025/26 From - Other reallocations]]","v":0},{"$f":"Dataset[[#This Row],[2023/24 To - Spending review Topic 1]]+Dataset[[#This Row],[2023/24 To - Spending review Topic 2]]+Dataset[[#This Row],[2023/24 To - Spending review Topic 3]]+Dataset[[#This Row],[2023/24 To - Spending review Topic 4]]+Dataset[[#This Row],[2023/24 To - Other reallocations]]","v":0},{"$f":"Dataset[[#This Row],[2024/25 To - Spending review Topic 1]]+Dataset[[#This Row],[2024/25 To - Spending review Topic 2]]+Dataset[[#This Row],[2024/25 To - Spending review Topic 3]]+Dataset[[#This Row],[2024/25 To - Spending review Topic 4]]+Dataset[[#This Row],[2024/25 To - Other reallocations]]","v":0},{"$f":"Dataset[[#This Row],[2025/26 To - Spending review Topic 1]]+Dataset[[#This Row],[2025/26 To - Spending review Topic 2]]+Dataset[[#This Row],[2025/26 To - Spending review Topic 3]]+Dataset[[#This Row],[2025/26 To - Spending review Topic 4]]+Dataset[[#This Row],[2025/26 To - Other reallocations]]","v":0},{"$f":"Dataset[[#This Row],[2023/24 Baseline]]+Dataset[[#This Row],[2023/24 From - Total]]+Dataset[[#This Row],[2023/24 To - Total]]","v":58349},{"$f":"Dataset[[#This Row],[2024/25 Baseline]]+Dataset[[#This Row],[2024/25 From - Total]]+Dataset[[#This Row],[2024/25 To - Total]]","v":60939},{"$f":"Dataset[[#This Row],[2025/26 Baseline]]+Dataset[[#This Row],[2025/26 From - Total]]+Dataset[[#This Row],[2025/26 To - Total]]","v":63669}]
["NAT|Non-transfer item","2|Social contributions","2023_24","MTEF2023",2,1,1,619,2,"02","01","01","000619","000002","02|01|01",1,1,1,2,2,"01|01|01|02|02","National","Parliament","Administration","Executive Authority","Non-transfer item","Current","Current payments","Compensation of employees","Social contributions","Social contributions","General public services","Executive and legislative organs","NAT",0,0,0,0,0,0,0,0,0,0,0,null,null,null,null,null,null,null,null,null,null,null,null,null,null,null,null,null,null,null,null,null,null,null,null,null,null,null,null,null,null,{"$f":"Dataset[[#This Row],[2023/24 From - Spending review Topic 1]]+Dataset[[#This Row],[2023/24 From - Spending review Topic 2]]+Dataset[[#This Row],[2023/24 From - Spending review Topic 3]]+Dataset[[#This Row],[2023/24 From - Spending review Topic 4]]+Dataset[[#This Row],[2023/24 From - Other reallocations]]","v":0},{"$f":"Dataset[[#This Row],[2024/25 From - Spending review Topic 1]]+Dataset[[#This Row],[2024/25 From - Spending review Topic 2]]+Dataset[[#This Row],[2024/25 From - Spending review Topic 3]]+Dataset[[#This Row],[2024/25 From - Spending review Topic 4]]+Dataset[[#This Row],[2024/25 From - Other reallocations]]","v":0},{"$f":"Dataset[[#This Row],[2025/26 From - Spending review Topic 1]]+Dataset[[#This Row],[2025/26 From - Spending review Topic 2]]+Dataset[[#This Row],[2025/26 From - Spending review Topic 3]]+Dataset[[#This Row],[2025/26 From - Spending review Topic 4]]+Dataset[[#This Row],[2025/26 From - Other reallocations]]","v":0},{"$f":"Dataset[[#This Row],[2023/24 To - Spending review Topic 1]]+Dataset[[#This Row],[2023/24 To - Spending review Topic 2]]+Dataset[[#This Row],[2023/24 To - Spending review Topic 3]]+Dataset[[#This Row],[2023/24 To - Spending review Topic 4]]+Dataset[[#This Row],[2023/24 To - Other reallocations]]","v":0},{"$f":"Dataset[[#This Row],[2024/25 To - Spending review Topic 1]]+Dataset[[#This Row],[2024/25 To - Spending review Topic 2]]+Dataset[[#This Row],[2024/25 To - Spending review Topic 3]]+Dataset[[#This Row],[2024/25 To - Spending review Topic 4]]+Dataset[[#This Row],[2024/25 To - Other reallocations]]","v":0},{"$f":"Dataset[[#This Row],[2025/26 To - Spending review Topic 1]]+Dataset[[#This Row],[2025/26 To - Spending review Topic 2]]+Dataset[[#This Row],[2025/26 To - Spending review Topic 3]]+Dataset[[#This Row],[2025/26 To - Spending review Topic 4]]+Dataset[[#This Row],[2025/26 To - Other reallocations]]","v":0},{"$f":"Dataset[[#This Row],[2023/24 Baseline]]+Dataset[[#This Row],[2023/24 From - Total]]+Dataset[[#This Row],[2023/24 To - Total]]","v":0},{"$f":"Dataset[[#This Row],[2024/25 Baseline]]+Dataset[[#This Row],[2024/25 From - Total]]+Dataset[[#This Row],[2024/25 To - Total]]","v":0},{"$f":"Dataset[[#This Row],[2025/26 Baseline]]+Dataset[[#This Row],[2025/26 From - Total]]+Dataset[[#This Row],[2025/26 To - Total]]","v":0}]
["NAT|Non-transfer item","2|Administrative fees","2023_24","MTEF2023",2,1,1,620,3,"02","01","01","000620","000003","02|01|01",1,1,2,3,3,"01|01|02|03|03","National","Parliament","Administration","Executive Authority","Non-transfer item","Current","Current payments","Goods and services","Administrative fees","Administrative fees","General public services","Executive and legislative organs","NAT",0,0,0,0,0,0,0,0,0,0,0,null,null,null,null,null,null,null,null,null,null,null,null,null,null,null,null,null,null,null,null,null,null,null,null,null,null,null,null,null,null,{"$f":"Dataset[[#This Row],[2023/24 From - Spending review Topic 1]]+Dataset[[#This Row],[2023/24 From - Spending review Topic 2]]+Dataset[[#This Row],[2023/24 From - Spending review Topic 3]]+Dataset[[#This Row],[2023/24 From - Spending review Topic 4]]+Dataset[[#This Row],[2023/24 From - Other reallocations]]","v":0},{"$f":"Dataset[[#This Row],[2024/25 From - Spending review Topic 1]]+Dataset[[#This Row],[2024/25 From - Spending review Topic 2]]+Dataset[[#This Row],[2024/25 From - Spending review Topic 3]]+Dataset[[#This Row],[2024/25 From - Spending review Topic 4]]+Dataset[[#This Row],[2024/25 From - Other reallocations]]","v":0},{"$f":"Dataset[[#This Row],[2025/26 From - Spending review Topic 1]]+Dataset[[#This Row],[2025/26 From - Spending review Topic 2]]+Dataset[[#This Row],[2025/26 From - Spending review Topic 3]]+Dataset[[#This Row],[2025/26 From - Spending review Topic 4]]+Dataset[[#This Row],[2025/26 From - Other reallocations]]","v":0},{"$f":"Dataset[[#This Row],[2023/24 To - Spending review Topic 1]]+Dataset[[#This Row],[2023/24 To - Spending review Topic 2]]+Dataset[[#This Row],[2023/24 To - Spending review Topic 3]]+Dataset[[#This Row],[2023/24 To - Spending review Topic 4]]+Dataset[[#This Row],[2023/24 To - Other reallocations]]","v":0},{"$f":"Dataset[[#This Row],[2024/25 To - Spending review Topic 1]]+Dataset[[#This Row],[2024/25 To - Spending review Topic 2]]+Dataset[[#This Row],[2024/25 To - Spending review Topic 3]]+Dataset[[#This Row],[2024/25 To - Spending review Topic 4]]+Dataset[[#This Row],[2024/25 To - Other reallocations]]","v":0},{"$f":"Dataset[[#This Row],[2025/26 To - Spending review Topic 1]]+Dataset[[#This Row],[2025/26 To - Spending review Topic 2]]+Dataset[[#This Row],[2025/26 To - Spending review Topic 3]]+Dataset[[#This Row],[2025/26 To - Spending review Topic 4]]+Dataset[[#This Row],[2025/26 To - Other reallocations]]","v":0},{"$f":"Dataset[[#This Row],[2023/24 Baseline]]+Dataset[[#This Row],[2023/24 From - Total]]+Dataset[[#This Row],[2023/24 To - Total]]","v":0},{"$f":"Dataset[[#This Row],[2024/25 Baseline]]+Dataset[[#This Row],[2024/25 From - Total]]+Dataset[[#This Row],[2024/25 To - Total]]","v":0},{"$f":"Dataset[[#This Row],[2025/26 Baseline]]+Dataset[[#This Row],[2025/26 From - Total]]+Dataset[[#This Row],[2025/26 To - Total]]","v":0}]
["NAT|Non-transfer item","2|Advertising","2023_24","MTEF2023",2,1,1,621,4,"02","01","01","000621","000004","02|01|01",1,1,2,4,4,"01|01|02|04|04","National","Parliament","Administration","Executive Authority","Non-transfer item","Current","Current payments","Goods and services","Advertising","Advertising","General public services","Executive and legislative organs","NAT",0,0,0,0,0,0,0,0,0,0,0,null,null,null,null,null,null,null,null,null,null,null,null,null,null,null,null,null,null,null,null,null,null,null,null,null,null,null,null,null,null,{"$f":"Dataset[[#This Row],[2023/24 From - Spending review Topic 1]]+Dataset[[#This Row],[2023/24 From - Spending review Topic 2]]+Dataset[[#This Row],[2023/24 From - Spending review Topic 3]]+Dataset[[#This Row],[2023/24 From - Spending review Topic 4]]+Dataset[[#This Row],[2023/24 From - Other reallocations]]","v":0},{"$f":"Dataset[[#This Row],[2024/25 From - Spending review Topic 1]]+Dataset[[#This Row],[2024/25 From - Spending review Topic 2]]+Dataset[[#This Row],[2024/25 From - Spending review Topic 3]]+Dataset[[#This Row],[2024/25 From - Spending review Topic 4]]+Dataset[[#This Row],[2024/25 From - Other reallocations]]","v":0},{"$f":"Dataset[[#This Row],[2025/26 From - Spending review Topic 1]]+Dataset[[#This Row],[2025/26 From - Spending review Topic 2]]+Dataset[[#This Row],[2025/26 From - Spending review Topic 3]]+Dataset[[#This Row],[2025/26 From - Spending review Topic 4]]+Dataset[[#This Row],[2025/26 From - Other reallocations]]","v":0},{"$f":"Dataset[[#This Row],[2023/24 To - Spending review Topic 1]]+Dataset[[#This Row],[2023/24 To - Spending review Topic 2]]+Dataset[[#This Row],[2023/24 To - Spending review Topic 3]]+Dataset[[#This Row],[2023/24 To - Spending review Topic 4]]+Dataset[[#This Row],[2023/24 To - Other reallocations]]","v":0},{"$f":"Dataset[[#This Row],[2024/25 To - Spending review Topic 1]]+Dataset[[#This Row],[2024/25 To - Spending review Topic 2]]+Dataset[[#This Row],[2024/25 To - Spending review Topic 3]]+Dataset[[#This Row],[2024/25 To - Spending review Topic 4]]+Dataset[[#This Row],[2024/25 To - Other reallocations]]","v":0},{"$f":"Dataset[[#This Row],[2025/26 To - Spending review Topic 1]]+Dataset[[#This Row],[2025/26 To - Spending review Topic 2]]+Dataset[[#This Row],[2025/26 To - Spending review Topic 3]]+Dataset[[#This Row],[2025/26 To - Spending review Topic 4]]+Dataset[[#This Row],[2025/26 To - Other reallocations]]","v":0},{"$f":"Dataset[[#This Row],[2023/24 Baseline]]+Dataset[[#This Row],[2023/24 From - Total]]+Dataset[[#This Row],[2023/24 To - Total]]","v":0},{"$f":"Dataset[[#This Row],[2024/25 Baseline]]+Dataset[[#This Row],[2024/25 From - Total]]+Dataset[[#This Row],[2024/25 To - Total]]","v":0},{"$f":"Dataset[[#This Row],[2025/26 Baseline]]+Dataset[[#This Row],[2025/26 From - Total]]+Dataset[[#This Row],[2025/26 To - Total]]","v":0}]
["NAT|Non-transfer item","2|Minor assets","2023_24","MTEF2023",2,1,1,622,5,"02","01","01","000622","000005","02|01|01",1,1,2,5,5,"01|01|02|05|05","National","Parliament","Administration","Executive Authority","Non-transfer item","Current","Current payments","Goods and services","Minor assets","Minor assets","General public services","Executive and legislative organs","NAT",316,0,18,17,17,17,0,21,18,19,20,null,null,null,null,null,null,null,null,null,null,null,null,null,null,null,null,null,null,null,null,null,null,null,null,null,null,null,null,null,null,{"$f":"Dataset[[#This Row],[2023/24 From - Spending review Topic 1]]+Dataset[[#This Row],[2023/24 From - Spending review Topic 2]]+Dataset[[#This Row],[2023/24 From - Spending review Topic 3]]+Dataset[[#This Row],[2023/24 From - Spending review Topic 4]]+Dataset[[#This Row],[2023/24 From - Other reallocations]]","v":0},{"$f":"Dataset[[#This Row],[2024/25 From - Spending review Topic 1]]+Dataset[[#This Row],[2024/25 From - Spending review Topic 2]]+Dataset[[#This Row],[2024/25 From - Spending review Topic 3]]+Dataset[[#This Row],[2024/25 From - Spending review Topic 4]]+Dataset[[#This Row],[2024/25 From - Other reallocations]]","v":0},{"$f":"Dataset[[#This Row],[2025/26 From - Spending review Topic 1]]+Dataset[[#This Row],[2025/26 From - Spending review Topic 2]]+Dataset[[#This Row],[2025/26 From - Spending review Topic 3]]+Dataset[[#This Row],[2025/26 From - Spending review Topic 4]]+Dataset[[#This Row],[2025/26 From - Other reallocations]]","v":0},{"$f":"Dataset[[#This Row],[2023/24 To - Spending review Topic 1]]+Dataset[[#This Row],[2023/24 To - Spending review Topic 2]]+Dataset[[#This Row],[2023/24 To - Spending review Topic 3]]+Dataset[[#This Row],[2023/24 To - Spending review Topic 4]]+Dataset[[#This Row],[2023/24 To - Other reallocations]]","v":0},{"$f":"Dataset[[#This Row],[2024/25 To - Spending review Topic 1]]+Dataset[[#This Row],[2024/25 To - Spending review Topic 2]]+Dataset[[#This Row],[2024/25 To - Spending review Topic 3]]+Dataset[[#This Row],[2024/25 To - Spending review Topic 4]]+Dataset[[#This Row],[2024/25 To - Other reallocations]]","v":0},{"$f":"Dataset[[#This Row],[2025/26 To - Spending review Topic 1]]+Dataset[[#This Row],[2025/26 To - Spending review Topic 2]]+Dataset[[#This Row],[2025/26 To - Spending review Topic 3]]+Dataset[[#This Row],[2025/26 To - Spending review Topic 4]]+Dataset[[#This Row],[2025/26 To - Other reallocations]]","v":0},{"$f":"Dataset[[#This Row],[2023/24 Baseline]]+Dataset[[#This Row],[2023/24 From - Total]]+Dataset[[#This Row],[2023/24 To - Total]]","v":18},{"$f":"Dataset[[#This Row],[2024/25 Baseline]]+Dataset[[#This Row],[2024/25 From - Total]]+Dataset[[#This Row],[2024/25 To - Total]]","v":19},{"$f":"Dataset[[#This Row],[2025/26 Baseline]]+Dataset[[#This Row],[2025/26 From - Total]]+Dataset[[#This Row],[2025/26 To - Total]]","v":20}]
["NAT|Non-transfer item","2|Audit costs: External","2023_24","MTEF2023",2,1,1,623,6,"02","01","01","000623","000006","02|01|01",1,1,2,6,6,"01|01|02|06|06","National","Parliament","Administration","Executive Authority","Non-transfer item","Current","Current payments","Goods and services","Audit costs: External","Audit costs: External","General public services","Executive and legislative organs","NAT",37,39,1,1,1,1,0,1,1,1,1,null,null,null,null,null,null,null,null,null,null,null,null,null,null,null,null,null,null,null,null,null,null,null,null,null,null,null,null,null,null,{"$f":"Dataset[[#This Row],[2023/24 From - Spending review Topic 1]]+Dataset[[#This Row],[2023/24 From - Spending review Topic 2]]+Dataset[[#This Row],[2023/24 From - Spending review Topic 3]]+Dataset[[#This Row],[2023/24 From - Spending review Topic 4]]+Dataset[[#This Row],[2023/24 From - Other reallocations]]","v":0},{"$f":"Dataset[[#This Row],[2024/25 From - Spending review Topic 1]]+Dataset[[#This Row],[2024/25 From - Spending review Topic 2]]+Dataset[[#This Row],[2024/25 From - Spending review Topic 3]]+Dataset[[#This Row],[2024/25 From - Spending review Topic 4]]+Dataset[[#This Row],[2024/25 From - Other reallocations]]","v":0},{"$f":"Dataset[[#This Row],[2025/26 From - Spending review Topic 1]]+Dataset[[#This Row],[2025/26 From - Spending review Topic 2]]+Dataset[[#This Row],[2025/26 From - Spending review Topic 3]]+Dataset[[#This Row],[2025/26 From - Spending review Topic 4]]+Dataset[[#This Row],[2025/26 From - Other reallocations]]","v":0},{"$f":"Dataset[[#This Row],[2023/24 To - Spending review Topic 1]]+Dataset[[#This Row],[2023/24 To - Spending review Topic 2]]+Dataset[[#This Row],[2023/24 To - Spending review Topic 3]]+Dataset[[#This Row],[2023/24 To - Spending review Topic 4]]+Dataset[[#This Row],[2023/24 To - Other reallocations]]","v":0},{"$f":"Dataset[[#This Row],[2024/25 To - Spending review Topic 1]]+Dataset[[#This Row],[2024/25 To - Spending review Topic 2]]+Dataset[[#This Row],[2024/25 To - Spending review Topic 3]]+Dataset[[#This Row],[2024/25 To - Spending review Topic 4]]+Dataset[[#This Row],[2024/25 To - Other reallocations]]","v":0},{"$f":"Dataset[[#This Row],[2025/26 To - Spending review Topic 1]]+Dataset[[#This Row],[2025/26 To - Spending review Topic 2]]+Dataset[[#This Row],[2025/26 To - Spending review Topic 3]]+Dataset[[#This Row],[2025/26 To - Spending review Topic 4]]+Dataset[[#This Row],[2025/26 To - Other reallocations]]","v":0},{"$f":"Dataset[[#This Row],[2023/24 Baseline]]+Dataset[[#This Row],[2023/24 From - Total]]+Dataset[[#This Row],[2023/24 To - Total]]","v":1},{"$f":"Dataset[[#This Row],[2024/25 Baseline]]+Dataset[[#This Row],[2024/25 From - Total]]+Dataset[[#This Row],[2024/25 To - Total]]","v":1},{"$f":"Dataset[[#This Row],[2025/26 Baseline]]+Dataset[[#This Row],[2025/26 From - Total]]+Dataset[[#This Row],[2025/26 To - Total]]","v":1}]
["NAT|Non-transfer item","2|Bursaries: Employees","2023_24","MTEF2023",2,1,1,624,7,"02","01","01","000624","000007","02|01|01",1,1,2,7,7,"01|01|02|07|07","National","Parliament","Administration","Executive Authority","Non-transfer item","Current","Current payments","Goods and services","Bursaries: Employees","Bursaries: Employees","General public services","Executive and legislative organs","NAT",0,0,0,0,0,0,0,0,0,0,0,null,null,null,null,null,null,null,null,null,null,null,null,null,null,null,null,null,null,null,null,null,null,null,null,null,null,null,null,null,null,{"$f":"Dataset[[#This Row],[2023/24 From - Spending review Topic 1]]+Dataset[[#This Row],[2023/24 From - Spending review Topic 2]]+Dataset[[#This Row],[2023/24 From - Spending review Topic 3]]+Dataset[[#This Row],[2023/24 From - Spending review Topic 4]]+Dataset[[#This Row],[2023/24 From - Other reallocations]]","v":0},{"$f":"Dataset[[#This Row],[2024/25 From - Spending review Topic 1]]+Dataset[[#This Row],[2024/25 From - Spending review Topic 2]]+Dataset[[#This Row],[2024/25 From - Spending review Topic 3]]+Dataset[[#This Row],[2024/25 From - Spending review Topic 4]]+Dataset[[#This Row],[2024/25 From - Other reallocations]]","v":0},{"$f":"Dataset[[#This Row],[2025/26 From - Spending review Topic 1]]+Dataset[[#This Row],[2025/26 From - Spending review Topic 2]]+Dataset[[#This Row],[2025/26 From - Spending review Topic 3]]+Dataset[[#This Row],[2025/26 From - Spending review Topic 4]]+Dataset[[#This Row],[2025/26 From - Other reallocations]]","v":0},{"$f":"Dataset[[#This Row],[2023/24 To - Spending review Topic 1]]+Dataset[[#This Row],[2023/24 To - Spending review Topic 2]]+Dataset[[#This Row],[2023/24 To - Spending review Topic 3]]+Dataset[[#This Row],[2023/24 To - Spending review Topic 4]]+Dataset[[#This Row],[2023/24 To - Other reallocations]]","v":0},{"$f":"Dataset[[#This Row],[2024/25 To - Spending review Topic 1]]+Dataset[[#This Row],[2024/25 To - Spending review Topic 2]]+Dataset[[#This Row],[2024/25 To - Spending review Topic 3]]+Dataset[[#This Row],[2024/25 To - Spending review Topic 4]]+Dataset[[#This Row],[2024/25 To - Other reallocations]]","v":0},{"$f":"Dataset[[#This Row],[2025/26 To - Spending review Topic 1]]+Dataset[[#This Row],[2025/26 To - Spending review Topic 2]]+Dataset[[#This Row],[2025/26 To - Spending review Topic 3]]+Dataset[[#This Row],[2025/26 To - Spending review Topic 4]]+Dataset[[#This Row],[2025/26 To - Other reallocations]]","v":0},{"$f":"Dataset[[#This Row],[2023/24 Baseline]]+Dataset[[#This Row],[2023/24 From - Total]]+Dataset[[#This Row],[2023/24 To - Total]]","v":0},{"$f":"Dataset[[#This Row],[2024/25 Baseline]]+Dataset[[#This Row],[2024/25 From - Total]]+Dataset[[#This Row],[2024/25 To - Total]]","v":0},{"$f":"Dataset[[#This Row],[2025/26 Baseline]]+Dataset[[#This Row],[2025/26 From - Total]]+Dataset[[#This Row],[2025/26 To - Total]]","v":0}]
["NAT|Non-transfer item","2|Catering: Departmental activities","2023_24","MTEF2023",2,1,1,625,8,"02","01","01","000625","000008","02|01|01",1,1,2,8,8,"01|01|02|08|08","National","Parliament","Administration","Executive Authority","Non-transfer item","Current","Current payments","Goods and services","Catering: Departmental activities","Catering: Departmental activities","General public services","Executive and legislative organs","NAT",0,234,-160,-166,-166,-166,0,-171,-171,-179,-187,null,null,null,null,null,null,null,null,null,null,null,null,null,null,null,null,null,null,null,null,null,null,null,null,null,null,null,null,null,null,{"$f":"Dataset[[#This Row],[2023/24 From - Spending review Topic 1]]+Dataset[[#This Row],[2023/24 From - Spending review Topic 2]]+Dataset[[#This Row],[2023/24 From - Spending review Topic 3]]+Dataset[[#This Row],[2023/24 From - Spending review Topic 4]]+Dataset[[#This Row],[2023/24 From - Other reallocations]]","v":0},{"$f":"Dataset[[#This Row],[2024/25 From - Spending review Topic 1]]+Dataset[[#This Row],[2024/25 From - Spending review Topic 2]]+Dataset[[#This Row],[2024/25 From - Spending review Topic 3]]+Dataset[[#This Row],[2024/25 From - Spending review Topic 4]]+Dataset[[#This Row],[2024/25 From - Other reallocations]]","v":0},{"$f":"Dataset[[#This Row],[2025/26 From - Spending review Topic 1]]+Dataset[[#This Row],[2025/26 From - Spending review Topic 2]]+Dataset[[#This Row],[2025/26 From - Spending review Topic 3]]+Dataset[[#This Row],[2025/26 From - Spending review Topic 4]]+Dataset[[#This Row],[2025/26 From - Other reallocations]]","v":0},{"$f":"Dataset[[#This Row],[2023/24 To - Spending review Topic 1]]+Dataset[[#This Row],[2023/24 To - Spending review Topic 2]]+Dataset[[#This Row],[2023/24 To - Spending review Topic 3]]+Dataset[[#This Row],[2023/24 To - Spending review Topic 4]]+Dataset[[#This Row],[2023/24 To - Other reallocations]]","v":0},{"$f":"Dataset[[#This Row],[2024/25 To - Spending review Topic 1]]+Dataset[[#This Row],[2024/25 To - Spending review Topic 2]]+Dataset[[#This Row],[2024/25 To - Spending review Topic 3]]+Dataset[[#This Row],[2024/25 To - Spending review Topic 4]]+Dataset[[#This Row],[2024/25 To - Other reallocations]]","v":0},{"$f":"Dataset[[#This Row],[2025/26 To - Spending review Topic 1]]+Dataset[[#This Row],[2025/26 To - Spending review Topic 2]]+Dataset[[#This Row],[2025/26 To - Spending review Topic 3]]+Dataset[[#This Row],[2025/26 To - Spending review Topic 4]]+Dataset[[#This Row],[2025/26 To - Other reallocations]]","v":0},{"$f":"Dataset[[#This Row],[2023/24 Baseline]]+Dataset[[#This Row],[2023/24 From - Total]]+Dataset[[#This Row],[2023/24 To - Total]]","v":-171},{"$f":"Dataset[[#This Row],[2024/25 Baseline]]+Dataset[[#This Row],[2024/25 From - Total]]+Dataset[[#This Row],[2024/25 To - Total]]","v":-179},{"$f":"Dataset[[#This Row],[2025/26 Baseline]]+Dataset[[#This Row],[2025/26 From - Total]]+Dataset[[#This Row],[2025/26 To - Total]]","v":-187}]
["NAT|Non-transfer item","2|Communication (G&S)","2023_24","MTEF2023",2,1,1,626,9,"02","01","01","000626","000009","02|01|01",1,1,2,9,9,"01|01|02|09|09","National","Parliament","Administration","Executive Authority","Non-transfer item","Current","Current payments","Goods and services","Communication (G&S)","Communication (G&S)","General public services","Executive and legislative organs","NAT",3596,3797,3337,3470,3470,3470,0,3579,3593,3752,3920,null,null,null,null,null,null,null,null,null,null,null,null,null,null,null,null,null,null,null,null,null,null,null,null,null,null,null,null,null,null,{"$f":"Dataset[[#This Row],[2023/24 From - Spending review Topic 1]]+Dataset[[#This Row],[2023/24 From - Spending review Topic 2]]+Dataset[[#This Row],[2023/24 From - Spending review Topic 3]]+Dataset[[#This Row],[2023/24 From - Spending review Topic 4]]+Dataset[[#This Row],[2023/24 From - Other reallocations]]","v":0},{"$f":"Dataset[[#This Row],[2024/25 From - Spending review Topic 1]]+Dataset[[#This Row],[2024/25 From - Spending review Topic 2]]+Dataset[[#This Row],[2024/25 From - Spending review Topic 3]]+Dataset[[#This Row],[2024/25 From - Spending review Topic 4]]+Dataset[[#This Row],[2024/25 From - Other reallocations]]","v":0},{"$f":"Dataset[[#This Row],[2025/26 From - Spending review Topic 1]]+Dataset[[#This Row],[2025/26 From - Spending review Topic 2]]+Dataset[[#This Row],[2025/26 From - Spending review Topic 3]]+Dataset[[#This Row],[2025/26 From - Spending review Topic 4]]+Dataset[[#This Row],[2025/26 From - Other reallocations]]","v":0},{"$f":"Dataset[[#This Row],[2023/24 To - Spending review Topic 1]]+Dataset[[#This Row],[2023/24 To - Spending review Topic 2]]+Dataset[[#This Row],[2023/24 To - Spending review Topic 3]]+Dataset[[#This Row],[2023/24 To - Spending review Topic 4]]+Dataset[[#This Row],[2023/24 To - Other reallocations]]","v":0},{"$f":"Dataset[[#This Row],[2024/25 To - Spending review Topic 1]]+Dataset[[#This Row],[2024/25 To - Spending review Topic 2]]+Dataset[[#This Row],[2024/25 To - Spending review Topic 3]]+Dataset[[#This Row],[2024/25 To - Spending review Topic 4]]+Dataset[[#This Row],[2024/25 To - Other reallocations]]","v":0},{"$f":"Dataset[[#This Row],[2025/26 To - Spending review Topic 1]]+Dataset[[#This Row],[2025/26 To - Spending review Topic 2]]+Dataset[[#This Row],[2025/26 To - Spending review Topic 3]]+Dataset[[#This Row],[2025/26 To - Spending review Topic 4]]+Dataset[[#This Row],[2025/26 To - Other reallocations]]","v":0},{"$f":"Dataset[[#This Row],[2023/24 Baseline]]+Dataset[[#This Row],[2023/24 From - Total]]+Dataset[[#This Row],[2023/24 To - Total]]","v":3593},{"$f":"Dataset[[#This Row],[2024/25 Baseline]]+Dataset[[#This Row],[2024/25 From - Total]]+Dataset[[#This Row],[2024/25 To - Total]]","v":3752},{"$f":"Dataset[[#This Row],[2025/26 Baseline]]+Dataset[[#This Row],[2025/26 From - Total]]+Dataset[[#This Row],[2025/26 To - Total]]","v":3920}]
["NAT|Non-transfer item","2|Computer services","2023_24","MTEF2023",2,1,1,627,10,"02","01","01","000627","000010","02|01|01",1,1,2,10,10,"01|01|02|10|10","National","Parliament","Administration","Executive Authority","Non-transfer item","Current","Current payments","Goods and services","Computer services","Computer services","General public services","Executive and legislative organs","NAT",113,119,126,130,130,130,0,135,135,141,147,null,null,null,null,null,null,null,null,null,null,null,null,null,null,null,null,null,null,null,null,null,null,null,null,null,null,null,null,null,null,{"$f":"Dataset[[#This Row],[2023/24 From - Spending review Topic 1]]+Dataset[[#This Row],[2023/24 From - Spending review Topic 2]]+Dataset[[#This Row],[2023/24 From - Spending review Topic 3]]+Dataset[[#This Row],[2023/24 From - Spending review Topic 4]]+Dataset[[#This Row],[2023/24 From - Other reallocations]]","v":0},{"$f":"Dataset[[#This Row],[2024/25 From - Spending review Topic 1]]+Dataset[[#This Row],[2024/25 From - Spending review Topic 2]]+Dataset[[#This Row],[2024/25 From - Spending review Topic 3]]+Dataset[[#This Row],[2024/25 From - Spending review Topic 4]]+Dataset[[#This Row],[2024/25 From - Other reallocations]]","v":0},{"$f":"Dataset[[#This Row],[2025/26 From - Spending review Topic 1]]+Dataset[[#This Row],[2025/26 From - Spending review Topic 2]]+Dataset[[#This Row],[2025/26 From - Spending review Topic 3]]+Dataset[[#This Row],[2025/26 From - Spending review Topic 4]]+Dataset[[#This Row],[2025/26 From - Other reallocations]]","v":0},{"$f":"Dataset[[#This Row],[2023/24 To - Spending review Topic 1]]+Dataset[[#This Row],[2023/24 To - Spending review Topic 2]]+Dataset[[#This Row],[2023/24 To - Spending review Topic 3]]+Dataset[[#This Row],[2023/24 To - Spending review Topic 4]]+Dataset[[#This Row],[2023/24 To - Other reallocations]]","v":0},{"$f":"Dataset[[#This Row],[2024/25 To - Spending review Topic 1]]+Dataset[[#This Row],[2024/25 To - Spending review Topic 2]]+Dataset[[#This Row],[2024/25 To - Spending review Topic 3]]+Dataset[[#This Row],[2024/25 To - Spending review Topic 4]]+Dataset[[#This Row],[2024/25 To - Other reallocations]]","v":0},{"$f":"Dataset[[#This Row],[2025/26 To - Spending review Topic 1]]+Dataset[[#This Row],[2025/26 To - Spending review Topic 2]]+Dataset[[#This Row],[2025/26 To - Spending review Topic 3]]+Dataset[[#This Row],[2025/26 To - Spending review Topic 4]]+Dataset[[#This Row],[2025/26 To - Other reallocations]]","v":0},{"$f":"Dataset[[#This Row],[2023/24 Baseline]]+Dataset[[#This Row],[2023/24 From - Total]]+Dataset[[#This Row],[2023/24 To - Total]]","v":135},{"$f":"Dataset[[#This Row],[2024/25 Baseline]]+Dataset[[#This Row],[2024/25 From - Total]]+Dataset[[#This Row],[2024/25 To - Total]]","v":141},{"$f":"Dataset[[#This Row],[2025/26 Baseline]]+Dataset[[#This Row],[2025/26 From - Total]]+Dataset[[#This Row],[2025/26 To - Total]]","v":147}]
["NAT|Non-transfer item","2|Consultants: Business and advisory services","2023_24","MTEF2023",2,1,1,628,11,"02","01","01","000628","000011","02|01|01",1,1,2,11,11,"01|01|02|11|11","National","Parliament","Administration","Executive Authority","Non-transfer item","Current","Current payments","Goods and services","Consultants: Business and advisory services","Consultants: Business and advisory services","General public services","Executive and legislative organs","NAT",2317,447,542,561,561,561,0,579,581,607,634,null,null,null,null,null,null,null,null,null,null,null,null,null,null,null,null,null,null,null,null,null,null,null,null,null,null,null,null,null,null,{"$f":"Dataset[[#This Row],[2023/24 From - Spending review Topic 1]]+Dataset[[#This Row],[2023/24 From - Spending review Topic 2]]+Dataset[[#This Row],[2023/24 From - Spending review Topic 3]]+Dataset[[#This Row],[2023/24 From - Spending review Topic 4]]+Dataset[[#This Row],[2023/24 From - Other reallocations]]","v":0},{"$f":"Dataset[[#This Row],[2024/25 From - Spending review Topic 1]]+Dataset[[#This Row],[2024/25 From - Spending review Topic 2]]+Dataset[[#This Row],[2024/25 From - Spending review Topic 3]]+Dataset[[#This Row],[2024/25 From - Spending review Topic 4]]+Dataset[[#This Row],[2024/25 From - Other reallocations]]","v":0},{"$f":"Dataset[[#This Row],[2025/26 From - Spending review Topic 1]]+Dataset[[#This Row],[2025/26 From - Spending review Topic 2]]+Dataset[[#This Row],[2025/26 From - Spending review Topic 3]]+Dataset[[#This Row],[2025/26 From - Spending review Topic 4]]+Dataset[[#This Row],[2025/26 From - Other reallocations]]","v":0},{"$f":"Dataset[[#This Row],[2023/24 To - Spending review Topic 1]]+Dataset[[#This Row],[2023/24 To - Spending review Topic 2]]+Dataset[[#This Row],[2023/24 To - Spending review Topic 3]]+Dataset[[#This Row],[2023/24 To - Spending review Topic 4]]+Dataset[[#This Row],[2023/24 To - Other reallocations]]","v":0},{"$f":"Dataset[[#This Row],[2024/25 To - Spending review Topic 1]]+Dataset[[#This Row],[2024/25 To - Spending review Topic 2]]+Dataset[[#This Row],[2024/25 To - Spending review Topic 3]]+Dataset[[#This Row],[2024/25 To - Spending review Topic 4]]+Dataset[[#This Row],[2024/25 To - Other reallocations]]","v":0},{"$f":"Dataset[[#This Row],[2025/26 To - Spending review Topic 1]]+Dataset[[#This Row],[2025/26 To - Spending review Topic 2]]+Dataset[[#This Row],[2025/26 To - Spending review Topic 3]]+Dataset[[#This Row],[2025/26 To - Spending review Topic 4]]+Dataset[[#This Row],[2025/26 To - Other reallocations]]","v":0},{"$f":"Dataset[[#This Row],[2023/24 Baseline]]+Dataset[[#This Row],[2023/24 From - Total]]+Dataset[[#This Row],[2023/24 To - Total]]","v":581},{"$f":"Dataset[[#This Row],[2024/25 Baseline]]+Dataset[[#This Row],[2024/25 From - Total]]+Dataset[[#This Row],[2024/25 To - Total]]","v":607},{"$f":"Dataset[[#This Row],[2025/26 Baseline]]+Dataset[[#This Row],[2025/26 From - Total]]+Dataset[[#This Row],[2025/26 To - Total]]","v":634}]
["NAT|Non-transfer item","2|Infrastructure and planning services","2023_24","MTEF2023",2,1,1,629,12,"02","01","01","000629","000012","02|01|01",1,1,2,12,12,"01|01|02|12|12","National","Parliament","Administration","Executive Authority","Non-transfer item","Current","Current payments","Goods and services","Infrastructure and planning services","Infrastructure and planning services","General public services","Executive and legislative organs","NAT",0,0,0,0,0,0,0,0,0,0,0,null,null,null,null,null,null,null,null,null,null,null,null,null,null,null,null,null,null,null,null,null,null,null,null,null,null,null,null,null,null,{"$f":"Dataset[[#This Row],[2023/24 From - Spending review Topic 1]]+Dataset[[#This Row],[2023/24 From - Spending review Topic 2]]+Dataset[[#This Row],[2023/24 From - Spending review Topic 3]]+Dataset[[#This Row],[2023/24 From - Spending review Topic 4]]+Dataset[[#This Row],[2023/24 From - Other reallocations]]","v":0},{"$f":"Dataset[[#This Row],[2024/25 From - Spending review Topic 1]]+Dataset[[#This Row],[2024/25 From - Spending review Topic 2]]+Dataset[[#This Row],[2024/25 From - Spending review Topic 3]]+Dataset[[#This Row],[2024/25 From - Spending review Topic 4]]+Dataset[[#This Row],[2024/25 From - Other reallocations]]","v":0},{"$f":"Dataset[[#This Row],[2025/26 From - Spending review Topic 1]]+Dataset[[#This Row],[2025/26 From - Spending review Topic 2]]+Dataset[[#This Row],[2025/26 From - Spending review Topic 3]]+Dataset[[#This Row],[2025/26 From - Spending review Topic 4]]+Dataset[[#This Row],[2025/26 From - Other reallocations]]","v":0},{"$f":"Dataset[[#This Row],[2023/24 To - Spending review Topic 1]]+Dataset[[#This Row],[2023/24 To - Spending review Topic 2]]+Dataset[[#This Row],[2023/24 To - Spending review Topic 3]]+Dataset[[#This Row],[2023/24 To - Spending review Topic 4]]+Dataset[[#This Row],[2023/24 To - Other reallocations]]","v":0},{"$f":"Dataset[[#This Row],[2024/25 To - Spending review Topic 1]]+Dataset[[#This Row],[2024/25 To - Spending review Topic 2]]+Dataset[[#This Row],[2024/25 To - Spending review Topic 3]]+Dataset[[#This Row],[2024/25 To - Spending review Topic 4]]+Dataset[[#This Row],[2024/25 To - Other reallocations]]","v":0},{"$f":"Dataset[[#This Row],[2025/26 To - Spending review Topic 1]]+Dataset[[#This Row],[2025/26 To - Spending review Topic 2]]+Dataset[[#This Row],[2025/26 To - Spending review Topic 3]]+Dataset[[#This Row],[2025/26 To - Spending review Topic 4]]+Dataset[[#This Row],[2025/26 To - Other reallocations]]","v":0},{"$f":"Dataset[[#This Row],[2023/24 Baseline]]+Dataset[[#This Row],[2023/24 From - Total]]+Dataset[[#This Row],[2023/24 To - Total]]","v":0},{"$f":"Dataset[[#This Row],[2024/25 Baseline]]+Dataset[[#This Row],[2024/25 From - Total]]+Dataset[[#This Row],[2024/25 To - Total]]","v":0},{"$f":"Dataset[[#This Row],[2025/26 Baseline]]+Dataset[[#This Row],[2025/26 From - Total]]+Dataset[[#This Row],[2025/26 To - Total]]","v":0}]
["NAT|Non-transfer item","2|Laboratory services","2023_24","MTEF2023",2,1,1,630,13,"02","01","01","000630","000013","02|01|01",1,1,2,13,13,"01|01|02|13|13","National","Parliament","Administration","Executive Authority","Non-transfer item","Current","Current payments","Goods and services","Laboratory services","Laboratory services","General public services","Executive and legislative organs","NAT",0,0,0,0,0,0,0,0,0,0,0,null,null,null,null,null,null,null,null,null,null,null,null,null,null,null,null,null,null,null,null,null,null,null,null,null,null,null,null,null,null,{"$f":"Dataset[[#This Row],[2023/24 From - Spending review Topic 1]]+Dataset[[#This Row],[2023/24 From - Spending review Topic 2]]+Dataset[[#This Row],[2023/24 From - Spending review Topic 3]]+Dataset[[#This Row],[2023/24 From - Spending review Topic 4]]+Dataset[[#This Row],[2023/24 From - Other reallocations]]","v":0},{"$f":"Dataset[[#This Row],[2024/25 From - Spending review Topic 1]]+Dataset[[#This Row],[2024/25 From - Spending review Topic 2]]+Dataset[[#This Row],[2024/25 From - Spending review Topic 3]]+Dataset[[#This Row],[2024/25 From - Spending review Topic 4]]+Dataset[[#This Row],[2024/25 From - Other reallocations]]","v":0},{"$f":"Dataset[[#This Row],[2025/26 From - Spending review Topic 1]]+Dataset[[#This Row],[2025/26 From - Spending review Topic 2]]+Dataset[[#This Row],[2025/26 From - Spending review Topic 3]]+Dataset[[#This Row],[2025/26 From - Spending review Topic 4]]+Dataset[[#This Row],[2025/26 From - Other reallocations]]","v":0},{"$f":"Dataset[[#This Row],[2023/24 To - Spending review Topic 1]]+Dataset[[#This Row],[2023/24 To - Spending review Topic 2]]+Dataset[[#This Row],[2023/24 To - Spending review Topic 3]]+Dataset[[#This Row],[2023/24 To - Spending review Topic 4]]+Dataset[[#This Row],[2023/24 To - Other reallocations]]","v":0},{"$f":"Dataset[[#This Row],[2024/25 To - Spending review Topic 1]]+Dataset[[#This Row],[2024/25 To - Spending review Topic 2]]+Dataset[[#This Row],[2024/25 To - Spending review Topic 3]]+Dataset[[#This Row],[2024/25 To - Spending review Topic 4]]+Dataset[[#This Row],[2024/25 To - Other reallocations]]","v":0},{"$f":"Dataset[[#This Row],[2025/26 To - Spending review Topic 1]]+Dataset[[#This Row],[2025/26 To - Spending review Topic 2]]+Dataset[[#This Row],[2025/26 To - Spending review Topic 3]]+Dataset[[#This Row],[2025/26 To - Spending review Topic 4]]+Dataset[[#This Row],[2025/26 To - Other reallocations]]","v":0},{"$f":"Dataset[[#This Row],[2023/24 Baseline]]+Dataset[[#This Row],[2023/24 From - Total]]+Dataset[[#This Row],[2023/24 To - Total]]","v":0},{"$f":"Dataset[[#This Row],[2024/25 Baseline]]+Dataset[[#This Row],[2024/25 From - Total]]+Dataset[[#This Row],[2024/25 To - Total]]","v":0},{"$f":"Dataset[[#This Row],[2025/26 Baseline]]+Dataset[[#This Row],[2025/26 From - Total]]+Dataset[[#This Row],[2025/26 To - Total]]","v":0}]
["NAT|Non-transfer item","2|Legal services (G&S)","2023_24","MTEF2023",2,1,1,631,14,"02","01","01","000631","000014","02|01|01",1,1,2,14,14,"01|01|02|14|14","National","Parliament","Administration","Executive Authority","Non-transfer item","Current","Current payments","Goods and services","Legal services (G&S)","Legal services (G&S)","General public services","Executive and legislative organs","NAT",0,0,0,0,0,0,0,0,0,0,0,null,null,null,null,null,null,null,null,null,null,null,null,null,null,null,null,null,null,null,null,null,null,null,null,null,null,null,null,null,null,{"$f":"Dataset[[#This Row],[2023/24 From - Spending review Topic 1]]+Dataset[[#This Row],[2023/24 From - Spending review Topic 2]]+Dataset[[#This Row],[2023/24 From - Spending review Topic 3]]+Dataset[[#This Row],[2023/24 From - Spending review Topic 4]]+Dataset[[#This Row],[2023/24 From - Other reallocations]]","v":0},{"$f":"Dataset[[#This Row],[2024/25 From - Spending review Topic 1]]+Dataset[[#This Row],[2024/25 From - Spending review Topic 2]]+Dataset[[#This Row],[2024/25 From - Spending review Topic 3]]+Dataset[[#This Row],[2024/25 From - Spending review Topic 4]]+Dataset[[#This Row],[2024/25 From - Other reallocations]]","v":0},{"$f":"Dataset[[#This Row],[2025/26 From - Spending review Topic 1]]+Dataset[[#This Row],[2025/26 From - Spending review Topic 2]]+Dataset[[#This Row],[2025/26 From - Spending review Topic 3]]+Dataset[[#This Row],[2025/26 From - Spending review Topic 4]]+Dataset[[#This Row],[2025/26 From - Other reallocations]]","v":0},{"$f":"Dataset[[#This Row],[2023/24 To - Spending review Topic 1]]+Dataset[[#This Row],[2023/24 To - Spending review Topic 2]]+Dataset[[#This Row],[2023/24 To - Spending review Topic 3]]+Dataset[[#This Row],[2023/24 To - Spending review Topic 4]]+Dataset[[#This Row],[2023/24 To - Other reallocations]]","v":0},{"$f":"Dataset[[#This Row],[2024/25 To - Spending review Topic 1]]+Dataset[[#This Row],[2024/25 To - Spending review Topic 2]]+Dataset[[#This Row],[2024/25 To - Spending review Topic 3]]+Dataset[[#This Row],[2024/25 To - Spending review Topic 4]]+Dataset[[#This Row],[2024/25 To - Other reallocations]]","v":0},{"$f":"Dataset[[#This Row],[2025/26 To - Spending review Topic 1]]+Dataset[[#This Row],[2025/26 To - Spending review Topic 2]]+Dataset[[#This Row],[2025/26 To - Spending review Topic 3]]+Dataset[[#This Row],[2025/26 To - Spending review Topic 4]]+Dataset[[#This Row],[2025/26 To - Other reallocations]]","v":0},{"$f":"Dataset[[#This Row],[2023/24 Baseline]]+Dataset[[#This Row],[2023/24 From - Total]]+Dataset[[#This Row],[2023/24 To - Total]]","v":0},{"$f":"Dataset[[#This Row],[2024/25 Baseline]]+Dataset[[#This Row],[2024/25 From - Total]]+Dataset[[#This Row],[2024/25 To - Total]]","v":0},{"$f":"Dataset[[#This Row],[2025/26 Baseline]]+Dataset[[#This Row],[2025/26 From - Total]]+Dataset[[#This Row],[2025/26 To - Total]]","v":0}]
["NAT|Non-transfer item","2|Science and technological services","2023_24","MTEF2023",2,1,1,632,15,"02","01","01","000632","000015","02|01|01",1,1,2,15,15,"01|01|02|15|15","National","Parliament","Administration","Executive Authority","Non-transfer item","Current","Current payments","Goods and services","Science and technological services","Science and technological services","General public services","Executive and legislative organs","NAT",0,0,0,0,0,0,0,0,0,0,0,null,null,null,null,null,null,null,null,null,null,null,null,null,null,null,null,null,null,null,null,null,null,null,null,null,null,null,null,null,null,{"$f":"Dataset[[#This Row],[2023/24 From - Spending review Topic 1]]+Dataset[[#This Row],[2023/24 From - Spending review Topic 2]]+Dataset[[#This Row],[2023/24 From - Spending review Topic 3]]+Dataset[[#This Row],[2023/24 From - Spending review Topic 4]]+Dataset[[#This Row],[2023/24 From - Other reallocations]]","v":0},{"$f":"Dataset[[#This Row],[2024/25 From - Spending review Topic 1]]+Dataset[[#This Row],[2024/25 From - Spending review Topic 2]]+Dataset[[#This Row],[2024/25 From - Spending review Topic 3]]+Dataset[[#This Row],[2024/25 From - Spending review Topic 4]]+Dataset[[#This Row],[2024/25 From - Other reallocations]]","v":0},{"$f":"Dataset[[#This Row],[2025/26 From - Spending review Topic 1]]+Dataset[[#This Row],[2025/26 From - Spending review Topic 2]]+Dataset[[#This Row],[2025/26 From - Spending review Topic 3]]+Dataset[[#This Row],[2025/26 From - Spending review Topic 4]]+Dataset[[#This Row],[2025/26 From - Other reallocations]]","v":0},{"$f":"Dataset[[#This Row],[2023/24 To - Spending review Topic 1]]+Dataset[[#This Row],[2023/24 To - Spending review Topic 2]]+Dataset[[#This Row],[2023/24 To - Spending review Topic 3]]+Dataset[[#This Row],[2023/24 To - Spending review Topic 4]]+Dataset[[#This Row],[2023/24 To - Other reallocations]]","v":0},{"$f":"Dataset[[#This Row],[2024/25 To - Spending review Topic 1]]+Dataset[[#This Row],[2024/25 To - Spending review Topic 2]]+Dataset[[#This Row],[2024/25 To - Spending review Topic 3]]+Dataset[[#This Row],[2024/25 To - Spending review Topic 4]]+Dataset[[#This Row],[2024/25 To - Other reallocations]]","v":0},{"$f":"Dataset[[#This Row],[2025/26 To - Spending review Topic 1]]+Dataset[[#This Row],[2025/26 To - Spending review Topic 2]]+Dataset[[#This Row],[2025/26 To - Spending review Topic 3]]+Dataset[[#This Row],[2025/26 To - Spending review Topic 4]]+Dataset[[#This Row],[2025/26 To - Other reallocations]]","v":0},{"$f":"Dataset[[#This Row],[2023/24 Baseline]]+Dataset[[#This Row],[2023/24 From - Total]]+Dataset[[#This Row],[2023/24 To - Total]]","v":0},{"$f":"Dataset[[#This Row],[2024/25 Baseline]]+Dataset[[#This Row],[2024/25 From - Total]]+Dataset[[#This Row],[2024/25 To - Total]]","v":0},{"$f":"Dataset[[#This Row],[2025/26 Baseline]]+Dataset[[#This Row],[2025/26 From - Total]]+Dataset[[#This Row],[2025/26 To - Total]]","v":0}]
["NAT|Non-transfer item","2|Contractors","2023_24","MTEF2023",2,1,1,633,16,"02","01","01","000633","000016","02|01|01",1,1,2,16,16,"01|01|02|16|16","National","Parliament","Administration","Executive Authority","Non-transfer item","Current","Current payments","Goods and services","Contractors","Contractors","General public services","Executive and legislative organs","NAT",1023,280,245,253,253,253,0,261,263,275,287,null,null,null,null,null,null,null,null,null,null,null,null,null,null,null,null,null,null,null,null,null,null,null,null,null,null,null,null,null,null,{"$f":"Dataset[[#This Row],[2023/24 From - Spending review Topic 1]]+Dataset[[#This Row],[2023/24 From - Spending review Topic 2]]+Dataset[[#This Row],[2023/24 From - Spending review Topic 3]]+Dataset[[#This Row],[2023/24 From - Spending review Topic 4]]+Dataset[[#This Row],[2023/24 From - Other reallocations]]","v":0},{"$f":"Dataset[[#This Row],[2024/25 From - Spending review Topic 1]]+Dataset[[#This Row],[2024/25 From - Spending review Topic 2]]+Dataset[[#This Row],[2024/25 From - Spending review Topic 3]]+Dataset[[#This Row],[2024/25 From - Spending review Topic 4]]+Dataset[[#This Row],[2024/25 From - Other reallocations]]","v":0},{"$f":"Dataset[[#This Row],[2025/26 From - Spending review Topic 1]]+Dataset[[#This Row],[2025/26 From - Spending review Topic 2]]+Dataset[[#This Row],[2025/26 From - Spending review Topic 3]]+Dataset[[#This Row],[2025/26 From - Spending review Topic 4]]+Dataset[[#This Row],[2025/26 From - Other reallocations]]","v":0},{"$f":"Dataset[[#This Row],[2023/24 To - Spending review Topic 1]]+Dataset[[#This Row],[2023/24 To - Spending review Topic 2]]+Dataset[[#This Row],[2023/24 To - Spending review Topic 3]]+Dataset[[#This Row],[2023/24 To - Spending review Topic 4]]+Dataset[[#This Row],[2023/24 To - Other reallocations]]","v":0},{"$f":"Dataset[[#This Row],[2024/25 To - Spending review Topic 1]]+Dataset[[#This Row],[2024/25 To - Spending review Topic 2]]+Dataset[[#This Row],[2024/25 To - Spending review Topic 3]]+Dataset[[#This Row],[2024/25 To - Spending review Topic 4]]+Dataset[[#This Row],[2024/25 To - Other reallocations]]","v":0},{"$f":"Dataset[[#This Row],[2025/26 To - Spending review Topic 1]]+Dataset[[#This Row],[2025/26 To - Spending review Topic 2]]+Dataset[[#This Row],[2025/26 To - Spending review Topic 3]]+Dataset[[#This Row],[2025/26 To - Spending review Topic 4]]+Dataset[[#This Row],[2025/26 To - Other reallocations]]","v":0},{"$f":"Dataset[[#This Row],[2023/24 Baseline]]+Dataset[[#This Row],[2023/24 From - Total]]+Dataset[[#This Row],[2023/24 To - Total]]","v":263},{"$f":"Dataset[[#This Row],[2024/25 Baseline]]+Dataset[[#This Row],[2024/25 From - Total]]+Dataset[[#This Row],[2024/25 To - Total]]","v":275},{"$f":"Dataset[[#This Row],[2025/26 Baseline]]+Dataset[[#This Row],[2025/26 From - Total]]+Dataset[[#This Row],[2025/26 To - Total]]","v":287}]
["NAT|Non-transfer item","2|Agency and support/outsourced services","2023_24","MTEF2023",2,1,1,634,17,"02","01","01","000634","000017","02|01|01",1,1,2,17,17,"01|01|02|17|17","National","Parliament","Administration","Executive Authority","Non-transfer item","Current","Current payments","Goods and services","Agency and support/outsourced services","Agency and support/outsourced services","General public services","Executive and legislative organs","NAT",310,0,18,19,19,19,0,19,19,20,21,null,null,null,null,null,null,null,null,null,null,null,null,null,null,null,null,null,null,null,null,null,null,null,null,null,null,null,null,null,null,{"$f":"Dataset[[#This Row],[2023/24 From - Spending review Topic 1]]+Dataset[[#This Row],[2023/24 From - Spending review Topic 2]]+Dataset[[#This Row],[2023/24 From - Spending review Topic 3]]+Dataset[[#This Row],[2023/24 From - Spending review Topic 4]]+Dataset[[#This Row],[2023/24 From - Other reallocations]]","v":0},{"$f":"Dataset[[#This Row],[2024/25 From - Spending review Topic 1]]+Dataset[[#This Row],[2024/25 From - Spending review Topic 2]]+Dataset[[#This Row],[2024/25 From - Spending review Topic 3]]+Dataset[[#This Row],[2024/25 From - Spending review Topic 4]]+Dataset[[#This Row],[2024/25 From - Other reallocations]]","v":0},{"$f":"Dataset[[#This Row],[2025/26 From - Spending review Topic 1]]+Dataset[[#This Row],[2025/26 From - Spending review Topic 2]]+Dataset[[#This Row],[2025/26 From - Spending review Topic 3]]+Dataset[[#This Row],[2025/26 From - Spending review Topic 4]]+Dataset[[#This Row],[2025/26 From - Other reallocations]]","v":0},{"$f":"Dataset[[#This Row],[2023/24 To - Spending review Topic 1]]+Dataset[[#This Row],[2023/24 To - Spending review Topic 2]]+Dataset[[#This Row],[2023/24 To - Spending review Topic 3]]+Dataset[[#This Row],[2023/24 To - Spending review Topic 4]]+Dataset[[#This Row],[2023/24 To - Other reallocations]]","v":0},{"$f":"Dataset[[#This Row],[2024/25 To - Spending review Topic 1]]+Dataset[[#This Row],[2024/25 To - Spending review Topic 2]]+Dataset[[#This Row],[2024/25 To - Spending review Topic 3]]+Dataset[[#This Row],[2024/25 To - Spending review Topic 4]]+Dataset[[#This Row],[2024/25 To - Other reallocations]]","v":0},{"$f":"Dataset[[#This Row],[2025/26 To - Spending review Topic 1]]+Dataset[[#This Row],[2025/26 To - Spending review Topic 2]]+Dataset[[#This Row],[2025/26 To - Spending review Topic 3]]+Dataset[[#This Row],[2025/26 To - Spending review Topic 4]]+Dataset[[#This Row],[2025/26 To - Other reallocations]]","v":0},{"$f":"Dataset[[#This Row],[2023/24 Baseline]]+Dataset[[#This Row],[2023/24 From - Total]]+Dataset[[#This Row],[2023/24 To - Total]]","v":19},{"$f":"Dataset[[#This Row],[2024/25 Baseline]]+Dataset[[#This Row],[2024/25 From - Total]]+Dataset[[#This Row],[2024/25 To - Total]]","v":20},{"$f":"Dataset[[#This Row],[2025/26 Baseline]]+Dataset[[#This Row],[2025/26 From - Total]]+Dataset[[#This Row],[2025/26 To - Total]]","v":21}]
["NAT|Non-transfer item","2|Entertainment","2023_24","MTEF2023",2,1,1,635,18,"02","01","01","000635","000018","02|01|01",1,1,2,18,18,"01|01|02|18|18","National","Parliament","Administration","Executive Authority","Non-transfer item","Current","Current payments","Goods and services","Entertainment","Entertainment","General public services","Executive and legislative organs","NAT",651,687,457,473,473,473,0,488,491,513,536,null,null,null,null,null,null,null,null,null,null,null,null,null,null,null,null,null,null,null,null,null,null,null,null,null,null,null,null,null,null,{"$f":"Dataset[[#This Row],[2023/24 From - Spending review Topic 1]]+Dataset[[#This Row],[2023/24 From - Spending review Topic 2]]+Dataset[[#This Row],[2023/24 From - Spending review Topic 3]]+Dataset[[#This Row],[2023/24 From - Spending review Topic 4]]+Dataset[[#This Row],[2023/24 From - Other reallocations]]","v":0},{"$f":"Dataset[[#This Row],[2024/25 From - Spending review Topic 1]]+Dataset[[#This Row],[2024/25 From - Spending review Topic 2]]+Dataset[[#This Row],[2024/25 From - Spending review Topic 3]]+Dataset[[#This Row],[2024/25 From - Spending review Topic 4]]+Dataset[[#This Row],[2024/25 From - Other reallocations]]","v":0},{"$f":"Dataset[[#This Row],[2025/26 From - Spending review Topic 1]]+Dataset[[#This Row],[2025/26 From - Spending review Topic 2]]+Dataset[[#This Row],[2025/26 From - Spending review Topic 3]]+Dataset[[#This Row],[2025/26 From - Spending review Topic 4]]+Dataset[[#This Row],[2025/26 From - Other reallocations]]","v":0},{"$f":"Dataset[[#This Row],[2023/24 To - Spending review Topic 1]]+Dataset[[#This Row],[2023/24 To - Spending review Topic 2]]+Dataset[[#This Row],[2023/24 To - Spending review Topic 3]]+Dataset[[#This Row],[2023/24 To - Spending review Topic 4]]+Dataset[[#This Row],[2023/24 To - Other reallocations]]","v":0},{"$f":"Dataset[[#This Row],[2024/25 To - Spending review Topic 1]]+Dataset[[#This Row],[2024/25 To - Spending review Topic 2]]+Dataset[[#This Row],[2024/25 To - Spending review Topic 3]]+Dataset[[#This Row],[2024/25 To - Spending review Topic 4]]+Dataset[[#This Row],[2024/25 To - Other reallocations]]","v":0},{"$f":"Dataset[[#This Row],[2025/26 To - Spending review Topic 1]]+Dataset[[#This Row],[2025/26 To - Spending review Topic 2]]+Dataset[[#This Row],[2025/26 To - Spending review Topic 3]]+Dataset[[#This Row],[2025/26 To - Spending review Topic 4]]+Dataset[[#This Row],[2025/26 To - Other reallocations]]","v":0},{"$f":"Dataset[[#This Row],[2023/24 Baseline]]+Dataset[[#This Row],[2023/24 From - Total]]+Dataset[[#This Row],[2023/24 To - Total]]","v":491},{"$f":"Dataset[[#This Row],[2024/25 Baseline]]+Dataset[[#This Row],[2024/25 From - Total]]+Dataset[[#This Row],[2024/25 To - Total]]","v":513},{"$f":"Dataset[[#This Row],[2025/26 Baseline]]+Dataset[[#This Row],[2025/26 From - Total]]+Dataset[[#This Row],[2025/26 To - Total]]","v":536}]
["NAT|Non-transfer item","2|Fleet services (including government motor transport)","2023_24","MTEF2023",2,1,1,636,19,"02","01","01","000636","000019","02|01|01",1,1,2,19,19,"01|01|02|19|19","National","Parliament","Administration","Executive Authority","Non-transfer item","Current","Current payments","Goods and services","Fleet services (including government motor transport)","Fleet services (including government motor transport)","General public services","Executive and legislative organs","NAT",0,0,0,0,0,0,0,0,0,0,0,null,null,null,null,null,null,null,null,null,null,null,null,null,null,null,null,null,null,null,null,null,null,null,null,null,null,null,null,null,null,{"$f":"Dataset[[#This Row],[2023/24 From - Spending review Topic 1]]+Dataset[[#This Row],[2023/24 From - Spending review Topic 2]]+Dataset[[#This Row],[2023/24 From - Spending review Topic 3]]+Dataset[[#This Row],[2023/24 From - Spending review Topic 4]]+Dataset[[#This Row],[2023/24 From - Other reallocations]]","v":0},{"$f":"Dataset[[#This Row],[2024/25 From - Spending review Topic 1]]+Dataset[[#This Row],[2024/25 From - Spending review Topic 2]]+Dataset[[#This Row],[2024/25 From - Spending review Topic 3]]+Dataset[[#This Row],[2024/25 From - Spending review Topic 4]]+Dataset[[#This Row],[2024/25 From - Other reallocations]]","v":0},{"$f":"Dataset[[#This Row],[2025/26 From - Spending review Topic 1]]+Dataset[[#This Row],[2025/26 From - Spending review Topic 2]]+Dataset[[#This Row],[2025/26 From - Spending review Topic 3]]+Dataset[[#This Row],[2025/26 From - Spending review Topic 4]]+Dataset[[#This Row],[2025/26 From - Other reallocations]]","v":0},{"$f":"Dataset[[#This Row],[2023/24 To - Spending review Topic 1]]+Dataset[[#This Row],[2023/24 To - Spending review Topic 2]]+Dataset[[#This Row],[2023/24 To - Spending review Topic 3]]+Dataset[[#This Row],[2023/24 To - Spending review Topic 4]]+Dataset[[#This Row],[2023/24 To - Other reallocations]]","v":0},{"$f":"Dataset[[#This Row],[2024/25 To - Spending review Topic 1]]+Dataset[[#This Row],[2024/25 To - Spending review Topic 2]]+Dataset[[#This Row],[2024/25 To - Spending review Topic 3]]+Dataset[[#This Row],[2024/25 To - Spending review Topic 4]]+Dataset[[#This Row],[2024/25 To - Other reallocations]]","v":0},{"$f":"Dataset[[#This Row],[2025/26 To - Spending review Topic 1]]+Dataset[[#This Row],[2025/26 To - Spending review Topic 2]]+Dataset[[#This Row],[2025/26 To - Spending review Topic 3]]+Dataset[[#This Row],[2025/26 To - Spending review Topic 4]]+Dataset[[#This Row],[2025/26 To - Other reallocations]]","v":0},{"$f":"Dataset[[#This Row],[2023/24 Baseline]]+Dataset[[#This Row],[2023/24 From - Total]]+Dataset[[#This Row],[2023/24 To - Total]]","v":0},{"$f":"Dataset[[#This Row],[2024/25 Baseline]]+Dataset[[#This Row],[2024/25 From - Total]]+Dataset[[#This Row],[2024/25 To - Total]]","v":0},{"$f":"Dataset[[#This Row],[2025/26 Baseline]]+Dataset[[#This Row],[2025/26 From - Total]]+Dataset[[#This Row],[2025/26 To - Total]]","v":0}]
["NAT|Non-transfer item","2|Housing","2023_24","MTEF2023",2,1,1,637,20,"02","01","01","000637","000020","02|01|01",1,1,2,20,20,"01|01|02|20|20","National","Parliament","Administration","Executive Authority","Non-transfer item","Current","Current payments","Goods and services","Housing","Housing","General public services","Executive and legislative organs","NAT",0,0,0,0,0,0,0,0,0,0,0,null,null,null,null,null,null,null,null,null,null,null,null,null,null,null,null,null,null,null,null,null,null,null,null,null,null,null,null,null,null,{"$f":"Dataset[[#This Row],[2023/24 From - Spending review Topic 1]]+Dataset[[#This Row],[2023/24 From - Spending review Topic 2]]+Dataset[[#This Row],[2023/24 From - Spending review Topic 3]]+Dataset[[#This Row],[2023/24 From - Spending review Topic 4]]+Dataset[[#This Row],[2023/24 From - Other reallocations]]","v":0},{"$f":"Dataset[[#This Row],[2024/25 From - Spending review Topic 1]]+Dataset[[#This Row],[2024/25 From - Spending review Topic 2]]+Dataset[[#This Row],[2024/25 From - Spending review Topic 3]]+Dataset[[#This Row],[2024/25 From - Spending review Topic 4]]+Dataset[[#This Row],[2024/25 From - Other reallocations]]","v":0},{"$f":"Dataset[[#This Row],[2025/26 From - Spending review Topic 1]]+Dataset[[#This Row],[2025/26 From - Spending review Topic 2]]+Dataset[[#This Row],[2025/26 From - Spending review Topic 3]]+Dataset[[#This Row],[2025/26 From - Spending review Topic 4]]+Dataset[[#This Row],[2025/26 From - Other reallocations]]","v":0},{"$f":"Dataset[[#This Row],[2023/24 To - Spending review Topic 1]]+Dataset[[#This Row],[2023/24 To - Spending review Topic 2]]+Dataset[[#This Row],[2023/24 To - Spending review Topic 3]]+Dataset[[#This Row],[2023/24 To - Spending review Topic 4]]+Dataset[[#This Row],[2023/24 To - Other reallocations]]","v":0},{"$f":"Dataset[[#This Row],[2024/25 To - Spending review Topic 1]]+Dataset[[#This Row],[2024/25 To - Spending review Topic 2]]+Dataset[[#This Row],[2024/25 To - Spending review Topic 3]]+Dataset[[#This Row],[2024/25 To - Spending review Topic 4]]+Dataset[[#This Row],[2024/25 To - Other reallocations]]","v":0},{"$f":"Dataset[[#This Row],[2025/26 To - Spending review Topic 1]]+Dataset[[#This Row],[2025/26 To - Spending review Topic 2]]+Dataset[[#This Row],[2025/26 To - Spending review Topic 3]]+Dataset[[#This Row],[2025/26 To - Spending review Topic 4]]+Dataset[[#This Row],[2025/26 To - Other reallocations]]","v":0},{"$f":"Dataset[[#This Row],[2023/24 Baseline]]+Dataset[[#This Row],[2023/24 From - Total]]+Dataset[[#This Row],[2023/24 To - Total]]","v":0},{"$f":"Dataset[[#This Row],[2024/25 Baseline]]+Dataset[[#This Row],[2024/25 From - Total]]+Dataset[[#This Row],[2024/25 To - Total]]","v":0},{"$f":"Dataset[[#This Row],[2025/26 Baseline]]+Dataset[[#This Row],[2025/26 From - Total]]+Dataset[[#This Row],[2025/26 To - Total]]","v":0}]
["NAT|Non-transfer item","2|Inventory: Clothing material and accessories","2023_24","MTEF2023",2,1,1,638,21,"02","01","01","000638","000021","02|01|01",1,1,2,21,21,"01|01|02|21|21","National","Parliament","Administration","Executive Authority","Non-transfer item","Current","Current payments","Goods and services","Inventory: Clothing material and accessories","Inventory: Clothing material and accessories","General public services","Executive and legislative organs","NAT",0,0,0,0,0,0,0,0,0,0,0,null,null,null,null,null,null,null,null,null,null,null,null,null,null,null,null,null,null,null,null,null,null,null,null,null,null,null,null,null,null,{"$f":"Dataset[[#This Row],[2023/24 From - Spending review Topic 1]]+Dataset[[#This Row],[2023/24 From - Spending review Topic 2]]+Dataset[[#This Row],[2023/24 From - Spending review Topic 3]]+Dataset[[#This Row],[2023/24 From - Spending review Topic 4]]+Dataset[[#This Row],[2023/24 From - Other reallocations]]","v":0},{"$f":"Dataset[[#This Row],[2024/25 From - Spending review Topic 1]]+Dataset[[#This Row],[2024/25 From - Spending review Topic 2]]+Dataset[[#This Row],[2024/25 From - Spending review Topic 3]]+Dataset[[#This Row],[2024/25 From - Spending review Topic 4]]+Dataset[[#This Row],[2024/25 From - Other reallocations]]","v":0},{"$f":"Dataset[[#This Row],[2025/26 From - Spending review Topic 1]]+Dataset[[#This Row],[2025/26 From - Spending review Topic 2]]+Dataset[[#This Row],[2025/26 From - Spending review Topic 3]]+Dataset[[#This Row],[2025/26 From - Spending review Topic 4]]+Dataset[[#This Row],[2025/26 From - Other reallocations]]","v":0},{"$f":"Dataset[[#This Row],[2023/24 To - Spending review Topic 1]]+Dataset[[#This Row],[2023/24 To - Spending review Topic 2]]+Dataset[[#This Row],[2023/24 To - Spending review Topic 3]]+Dataset[[#This Row],[2023/24 To - Spending review Topic 4]]+Dataset[[#This Row],[2023/24 To - Other reallocations]]","v":0},{"$f":"Dataset[[#This Row],[2024/25 To - Spending review Topic 1]]+Dataset[[#This Row],[2024/25 To - Spending review Topic 2]]+Dataset[[#This Row],[2024/25 To - Spending review Topic 3]]+Dataset[[#This Row],[2024/25 To - Spending review Topic 4]]+Dataset[[#This Row],[2024/25 To - Other reallocations]]","v":0},{"$f":"Dataset[[#This Row],[2025/26 To - Spending review Topic 1]]+Dataset[[#This Row],[2025/26 To - Spending review Topic 2]]+Dataset[[#This Row],[2025/26 To - Spending review Topic 3]]+Dataset[[#This Row],[2025/26 To - Spending review Topic 4]]+Dataset[[#This Row],[2025/26 To - Other reallocations]]","v":0},{"$f":"Dataset[[#This Row],[2023/24 Baseline]]+Dataset[[#This Row],[2023/24 From - Total]]+Dataset[[#This Row],[2023/24 To - Total]]","v":0},{"$f":"Dataset[[#This Row],[2024/25 Baseline]]+Dataset[[#This Row],[2024/25 From - Total]]+Dataset[[#This Row],[2024/25 To - Total]]","v":0},{"$f":"Dataset[[#This Row],[2025/26 Baseline]]+Dataset[[#This Row],[2025/26 From - Total]]+Dataset[[#This Row],[2025/26 To - Total]]","v":0}]
["NAT|Non-transfer item","2|Inventory: Farming supplies","2023_24","MTEF2023",2,1,1,639,22,"02","01","01","000639","000022","02|01|01",1,1,2,22,22,"01|01|02|22|22","National","Parliament","Administration","Executive Authority","Non-transfer item","Current","Current payments","Goods and services","Inventory: Farming supplies","Inventory: Farming supplies","General public services","Executive and legislative organs","NAT",0,0,0,0,0,0,0,0,0,0,0,null,null,null,null,null,null,null,null,null,null,null,null,null,null,null,null,null,null,null,null,null,null,null,null,null,null,null,null,null,null,{"$f":"Dataset[[#This Row],[2023/24 From - Spending review Topic 1]]+Dataset[[#This Row],[2023/24 From - Spending review Topic 2]]+Dataset[[#This Row],[2023/24 From - Spending review Topic 3]]+Dataset[[#This Row],[2023/24 From - Spending review Topic 4]]+Dataset[[#This Row],[2023/24 From - Other reallocations]]","v":0},{"$f":"Dataset[[#This Row],[2024/25 From - Spending review Topic 1]]+Dataset[[#This Row],[2024/25 From - Spending review Topic 2]]+Dataset[[#This Row],[2024/25 From - Spending review Topic 3]]+Dataset[[#This Row],[2024/25 From - Spending review Topic 4]]+Dataset[[#This Row],[2024/25 From - Other reallocations]]","v":0},{"$f":"Dataset[[#This Row],[2025/26 From - Spending review Topic 1]]+Dataset[[#This Row],[2025/26 From - Spending review Topic 2]]+Dataset[[#This Row],[2025/26 From - Spending review Topic 3]]+Dataset[[#This Row],[2025/26 From - Spending review Topic 4]]+Dataset[[#This Row],[2025/26 From - Other reallocations]]","v":0},{"$f":"Dataset[[#This Row],[2023/24 To - Spending review Topic 1]]+Dataset[[#This Row],[2023/24 To - Spending review Topic 2]]+Dataset[[#This Row],[2023/24 To - Spending review Topic 3]]+Dataset[[#This Row],[2023/24 To - Spending review Topic 4]]+Dataset[[#This Row],[2023/24 To - Other reallocations]]","v":0},{"$f":"Dataset[[#This Row],[2024/25 To - Spending review Topic 1]]+Dataset[[#This Row],[2024/25 To - Spending review Topic 2]]+Dataset[[#This Row],[2024/25 To - Spending review Topic 3]]+Dataset[[#This Row],[2024/25 To - Spending review Topic 4]]+Dataset[[#This Row],[2024/25 To - Other reallocations]]","v":0},{"$f":"Dataset[[#This Row],[2025/26 To - Spending review Topic 1]]+Dataset[[#This Row],[2025/26 To - Spending review Topic 2]]+Dataset[[#This Row],[2025/26 To - Spending review Topic 3]]+Dataset[[#This Row],[2025/26 To - Spending review Topic 4]]+Dataset[[#This Row],[2025/26 To - Other reallocations]]","v":0},{"$f":"Dataset[[#This Row],[2023/24 Baseline]]+Dataset[[#This Row],[2023/24 From - Total]]+Dataset[[#This Row],[2023/24 To - Total]]","v":0},{"$f":"Dataset[[#This Row],[2024/25 Baseline]]+Dataset[[#This Row],[2024/25 From - Total]]+Dataset[[#This Row],[2024/25 To - Total]]","v":0},{"$f":"Dataset[[#This Row],[2025/26 Baseline]]+Dataset[[#This Row],[2025/26 From - Total]]+Dataset[[#This Row],[2025/26 To - Total]]","v":0}]
["NAT|Non-transfer item","2|Inventory: Food and food supplies","2023_24","MTEF2023",2,1,1,640,23,"02","01","01","000640","000023","02|01|01",1,1,2,23,23,"01|01|02|23|23","National","Parliament","Administration","Executive Authority","Non-transfer item","Current","Current payments","Goods and services","Inventory: Food and food supplies","Inventory: Food and food supplies","General public services","Executive and legislative organs","NAT",0,0,0,0,0,0,0,0,0,0,0,null,null,null,null,null,null,null,null,null,null,null,null,null,null,null,null,null,null,null,null,null,null,null,null,null,null,null,null,null,null,{"$f":"Dataset[[#This Row],[2023/24 From - Spending review Topic 1]]+Dataset[[#This Row],[2023/24 From - Spending review Topic 2]]+Dataset[[#This Row],[2023/24 From - Spending review Topic 3]]+Dataset[[#This Row],[2023/24 From - Spending review Topic 4]]+Dataset[[#This Row],[2023/24 From - Other reallocations]]","v":0},{"$f":"Dataset[[#This Row],[2024/25 From - Spending review Topic 1]]+Dataset[[#This Row],[2024/25 From - Spending review Topic 2]]+Dataset[[#This Row],[2024/25 From - Spending review Topic 3]]+Dataset[[#This Row],[2024/25 From - Spending review Topic 4]]+Dataset[[#This Row],[2024/25 From - Other reallocations]]","v":0},{"$f":"Dataset[[#This Row],[2025/26 From - Spending review Topic 1]]+Dataset[[#This Row],[2025/26 From - Spending review Topic 2]]+Dataset[[#This Row],[2025/26 From - Spending review Topic 3]]+Dataset[[#This Row],[2025/26 From - Spending review Topic 4]]+Dataset[[#This Row],[2025/26 From - Other reallocations]]","v":0},{"$f":"Dataset[[#This Row],[2023/24 To - Spending review Topic 1]]+Dataset[[#This Row],[2023/24 To - Spending review Topic 2]]+Dataset[[#This Row],[2023/24 To - Spending review Topic 3]]+Dataset[[#This Row],[2023/24 To - Spending review Topic 4]]+Dataset[[#This Row],[2023/24 To - Other reallocations]]","v":0},{"$f":"Dataset[[#This Row],[2024/25 To - Spending review Topic 1]]+Dataset[[#This Row],[2024/25 To - Spending review Topic 2]]+Dataset[[#This Row],[2024/25 To - Spending review Topic 3]]+Dataset[[#This Row],[2024/25 To - Spending review Topic 4]]+Dataset[[#This Row],[2024/25 To - Other reallocations]]","v":0},{"$f":"Dataset[[#This Row],[2025/26 To - Spending review Topic 1]]+Dataset[[#This Row],[2025/26 To - Spending review Topic 2]]+Dataset[[#This Row],[2025/26 To - Spending review Topic 3]]+Dataset[[#This Row],[2025/26 To - Spending review Topic 4]]+Dataset[[#This Row],[2025/26 To - Other reallocations]]","v":0},{"$f":"Dataset[[#This Row],[2023/24 Baseline]]+Dataset[[#This Row],[2023/24 From - Total]]+Dataset[[#This Row],[2023/24 To - Total]]","v":0},{"$f":"Dataset[[#This Row],[2024/25 Baseline]]+Dataset[[#This Row],[2024/25 From - Total]]+Dataset[[#This Row],[2024/25 To - Total]]","v":0},{"$f":"Dataset[[#This Row],[2025/26 Baseline]]+Dataset[[#This Row],[2025/26 From - Total]]+Dataset[[#This Row],[2025/26 To - Total]]","v":0}]
["NAT|Non-transfer item","2|Inventory: Fuel, oil and gas","2023_24","MTEF2023",2,1,1,641,24,"02","01","01","000641","000024","02|01|01",1,1,2,24,24,"01|01|02|24|24","National","Parliament","Administration","Executive Authority","Non-transfer item","Current","Current payments","Goods and services","Inventory: Fuel, oil and gas","Inventory: Fuel, oil and gas","General public services","Executive and legislative organs","NAT",0,0,0,0,0,0,0,0,0,0,0,null,null,null,null,null,null,null,null,null,null,null,null,null,null,null,null,null,null,null,null,null,null,null,null,null,null,null,null,null,null,{"$f":"Dataset[[#This Row],[2023/24 From - Spending review Topic 1]]+Dataset[[#This Row],[2023/24 From - Spending review Topic 2]]+Dataset[[#This Row],[2023/24 From - Spending review Topic 3]]+Dataset[[#This Row],[2023/24 From - Spending review Topic 4]]+Dataset[[#This Row],[2023/24 From - Other reallocations]]","v":0},{"$f":"Dataset[[#This Row],[2024/25 From - Spending review Topic 1]]+Dataset[[#This Row],[2024/25 From - Spending review Topic 2]]+Dataset[[#This Row],[2024/25 From - Spending review Topic 3]]+Dataset[[#This Row],[2024/25 From - Spending review Topic 4]]+Dataset[[#This Row],[2024/25 From - Other reallocations]]","v":0},{"$f":"Dataset[[#This Row],[2025/26 From - Spending review Topic 1]]+Dataset[[#This Row],[2025/26 From - Spending review Topic 2]]+Dataset[[#This Row],[2025/26 From - Spending review Topic 3]]+Dataset[[#This Row],[2025/26 From - Spending review Topic 4]]+Dataset[[#This Row],[2025/26 From - Other reallocations]]","v":0},{"$f":"Dataset[[#This Row],[2023/24 To - Spending review Topic 1]]+Dataset[[#This Row],[2023/24 To - Spending review Topic 2]]+Dataset[[#This Row],[2023/24 To - Spending review Topic 3]]+Dataset[[#This Row],[2023/24 To - Spending review Topic 4]]+Dataset[[#This Row],[2023/24 To - Other reallocations]]","v":0},{"$f":"Dataset[[#This Row],[2024/25 To - Spending review Topic 1]]+Dataset[[#This Row],[2024/25 To - Spending review Topic 2]]+Dataset[[#This Row],[2024/25 To - Spending review Topic 3]]+Dataset[[#This Row],[2024/25 To - Spending review Topic 4]]+Dataset[[#This Row],[2024/25 To - Other reallocations]]","v":0},{"$f":"Dataset[[#This Row],[2025/26 To - Spending review Topic 1]]+Dataset[[#This Row],[2025/26 To - Spending review Topic 2]]+Dataset[[#This Row],[2025/26 To - Spending review Topic 3]]+Dataset[[#This Row],[2025/26 To - Spending review Topic 4]]+Dataset[[#This Row],[2025/26 To - Other reallocations]]","v":0},{"$f":"Dataset[[#This Row],[2023/24 Baseline]]+Dataset[[#This Row],[2023/24 From - Total]]+Dataset[[#This Row],[2023/24 To - Total]]","v":0},{"$f":"Dataset[[#This Row],[2024/25 Baseline]]+Dataset[[#This Row],[2024/25 From - Total]]+Dataset[[#This Row],[2024/25 To - Total]]","v":0},{"$f":"Dataset[[#This Row],[2025/26 Baseline]]+Dataset[[#This Row],[2025/26 From - Total]]+Dataset[[#This Row],[2025/26 To - Total]]","v":0}]
["NAT|Non-transfer item","2|Inventory: Learner and teacher support material","2023_24","MTEF2023",2,1,1,642,25,"02","01","01","000642","000025","02|01|01",1,1,2,25,25,"01|01|02|25|25","National","Parliament","Administration","Executive Authority","Non-transfer item","Current","Current payments","Goods and services","Inventory: Learner and teacher support material","Inventory: Learner and teacher support material","General public services","Executive and legislative organs","NAT",0,0,0,0,0,0,0,0,0,0,0,null,null,null,null,null,null,null,null,null,null,null,null,null,null,null,null,null,null,null,null,null,null,null,null,null,null,null,null,null,null,{"$f":"Dataset[[#This Row],[2023/24 From - Spending review Topic 1]]+Dataset[[#This Row],[2023/24 From - Spending review Topic 2]]+Dataset[[#This Row],[2023/24 From - Spending review Topic 3]]+Dataset[[#This Row],[2023/24 From - Spending review Topic 4]]+Dataset[[#This Row],[2023/24 From - Other reallocations]]","v":0},{"$f":"Dataset[[#This Row],[2024/25 From - Spending review Topic 1]]+Dataset[[#This Row],[2024/25 From - Spending review Topic 2]]+Dataset[[#This Row],[2024/25 From - Spending review Topic 3]]+Dataset[[#This Row],[2024/25 From - Spending review Topic 4]]+Dataset[[#This Row],[2024/25 From - Other reallocations]]","v":0},{"$f":"Dataset[[#This Row],[2025/26 From - Spending review Topic 1]]+Dataset[[#This Row],[2025/26 From - Spending review Topic 2]]+Dataset[[#This Row],[2025/26 From - Spending review Topic 3]]+Dataset[[#This Row],[2025/26 From - Spending review Topic 4]]+Dataset[[#This Row],[2025/26 From - Other reallocations]]","v":0},{"$f":"Dataset[[#This Row],[2023/24 To - Spending review Topic 1]]+Dataset[[#This Row],[2023/24 To - Spending review Topic 2]]+Dataset[[#This Row],[2023/24 To - Spending review Topic 3]]+Dataset[[#This Row],[2023/24 To - Spending review Topic 4]]+Dataset[[#This Row],[2023/24 To - Other reallocations]]","v":0},{"$f":"Dataset[[#This Row],[2024/25 To - Spending review Topic 1]]+Dataset[[#This Row],[2024/25 To - Spending review Topic 2]]+Dataset[[#This Row],[2024/25 To - Spending review Topic 3]]+Dataset[[#This Row],[2024/25 To - Spending review Topic 4]]+Dataset[[#This Row],[2024/25 To - Other reallocations]]","v":0},{"$f":"Dataset[[#This Row],[2025/26 To - Spending review Topic 1]]+Dataset[[#This Row],[2025/26 To - Spending review Topic 2]]+Dataset[[#This Row],[2025/26 To - Spending review Topic 3]]+Dataset[[#This Row],[2025/26 To - Spending review Topic 4]]+Dataset[[#This Row],[2025/26 To - Other reallocations]]","v":0},{"$f":"Dataset[[#This Row],[2023/24 Baseline]]+Dataset[[#This Row],[2023/24 From - Total]]+Dataset[[#This Row],[2023/24 To - Total]]","v":0},{"$f":"Dataset[[#This Row],[2024/25 Baseline]]+Dataset[[#This Row],[2024/25 From - Total]]+Dataset[[#This Row],[2024/25 To - Total]]","v":0},{"$f":"Dataset[[#This Row],[2025/26 Baseline]]+Dataset[[#This Row],[2025/26 From - Total]]+Dataset[[#This Row],[2025/26 To - Total]]","v":0}]
["NAT|Non-transfer item","2|Inventory: Materials and supplies","2023_24","MTEF2023",2,1,1,643,26,"02","01","01","000643","000026","02|01|01",1,1,2,26,26,"01|01|02|26|26","National","Parliament","Administration","Executive Authority","Non-transfer item","Current","Current payments","Goods and services","Inventory: Materials and supplies","Inventory: Materials and supplies","General public services","Executive and legislative organs","NAT",0,0,0,0,0,0,0,0,0,0,0,null,null,null,null,null,null,null,null,null,null,null,null,null,null,null,null,null,null,null,null,null,null,null,null,null,null,null,null,null,null,{"$f":"Dataset[[#This Row],[2023/24 From - Spending review Topic 1]]+Dataset[[#This Row],[2023/24 From - Spending review Topic 2]]+Dataset[[#This Row],[2023/24 From - Spending review Topic 3]]+Dataset[[#This Row],[2023/24 From - Spending review Topic 4]]+Dataset[[#This Row],[2023/24 From - Other reallocations]]","v":0},{"$f":"Dataset[[#This Row],[2024/25 From - Spending review Topic 1]]+Dataset[[#This Row],[2024/25 From - Spending review Topic 2]]+Dataset[[#This Row],[2024/25 From - Spending review Topic 3]]+Dataset[[#This Row],[2024/25 From - Spending review Topic 4]]+Dataset[[#This Row],[2024/25 From - Other reallocations]]","v":0},{"$f":"Dataset[[#This Row],[2025/26 From - Spending review Topic 1]]+Dataset[[#This Row],[2025/26 From - Spending review Topic 2]]+Dataset[[#This Row],[2025/26 From - Spending review Topic 3]]+Dataset[[#This Row],[2025/26 From - Spending review Topic 4]]+Dataset[[#This Row],[2025/26 From - Other reallocations]]","v":0},{"$f":"Dataset[[#This Row],[2023/24 To - Spending review Topic 1]]+Dataset[[#This Row],[2023/24 To - Spending review Topic 2]]+Dataset[[#This Row],[2023/24 To - Spending review Topic 3]]+Dataset[[#This Row],[2023/24 To - Spending review Topic 4]]+Dataset[[#This Row],[2023/24 To - Other reallocations]]","v":0},{"$f":"Dataset[[#This Row],[2024/25 To - Spending review Topic 1]]+Dataset[[#This Row],[2024/25 To - Spending review Topic 2]]+Dataset[[#This Row],[2024/25 To - Spending review Topic 3]]+Dataset[[#This Row],[2024/25 To - Spending review Topic 4]]+Dataset[[#This Row],[2024/25 To - Other reallocations]]","v":0},{"$f":"Dataset[[#This Row],[2025/26 To - Spending review Topic 1]]+Dataset[[#This Row],[2025/26 To - Spending review Topic 2]]+Dataset[[#This Row],[2025/26 To - Spending review Topic 3]]+Dataset[[#This Row],[2025/26 To - Spending review Topic 4]]+Dataset[[#This Row],[2025/26 To - Other reallocations]]","v":0},{"$f":"Dataset[[#This Row],[2023/24 Baseline]]+Dataset[[#This Row],[2023/24 From - Total]]+Dataset[[#This Row],[2023/24 To - Total]]","v":0},{"$f":"Dataset[[#This Row],[2024/25 Baseline]]+Dataset[[#This Row],[2024/25 From - Total]]+Dataset[[#This Row],[2024/25 To - Total]]","v":0},{"$f":"Dataset[[#This Row],[2025/26 Baseline]]+Dataset[[#This Row],[2025/26 From - Total]]+Dataset[[#This Row],[2025/26 To - Total]]","v":0}]
["NAT|Non-transfer item","2|Inventory: Medical supplies","2023_24","MTEF2023",2,1,1,644,27,"02","01","01","000644","000027","02|01|01",1,1,2,27,27,"01|01|02|27|27","National","Parliament","Administration","Executive Authority","Non-transfer item","Current","Current payments","Goods and services","Inventory: Medical supplies","Inventory: Medical supplies","General public services","Executive and legislative organs","NAT",0,0,0,0,0,0,0,0,0,0,0,null,null,null,null,null,null,null,null,null,null,null,null,null,null,null,null,null,null,null,null,null,null,null,null,null,null,null,null,null,null,{"$f":"Dataset[[#This Row],[2023/24 From - Spending review Topic 1]]+Dataset[[#This Row],[2023/24 From - Spending review Topic 2]]+Dataset[[#This Row],[2023/24 From - Spending review Topic 3]]+Dataset[[#This Row],[2023/24 From - Spending review Topic 4]]+Dataset[[#This Row],[2023/24 From - Other reallocations]]","v":0},{"$f":"Dataset[[#This Row],[2024/25 From - Spending review Topic 1]]+Dataset[[#This Row],[2024/25 From - Spending review Topic 2]]+Dataset[[#This Row],[2024/25 From - Spending review Topic 3]]+Dataset[[#This Row],[2024/25 From - Spending review Topic 4]]+Dataset[[#This Row],[2024/25 From - Other reallocations]]","v":0},{"$f":"Dataset[[#This Row],[2025/26 From - Spending review Topic 1]]+Dataset[[#This Row],[2025/26 From - Spending review Topic 2]]+Dataset[[#This Row],[2025/26 From - Spending review Topic 3]]+Dataset[[#This Row],[2025/26 From - Spending review Topic 4]]+Dataset[[#This Row],[2025/26 From - Other reallocations]]","v":0},{"$f":"Dataset[[#This Row],[2023/24 To - Spending review Topic 1]]+Dataset[[#This Row],[2023/24 To - Spending review Topic 2]]+Dataset[[#This Row],[2023/24 To - Spending review Topic 3]]+Dataset[[#This Row],[2023/24 To - Spending review Topic 4]]+Dataset[[#This Row],[2023/24 To - Other reallocations]]","v":0},{"$f":"Dataset[[#This Row],[2024/25 To - Spending review Topic 1]]+Dataset[[#This Row],[2024/25 To - Spending review Topic 2]]+Dataset[[#This Row],[2024/25 To - Spending review Topic 3]]+Dataset[[#This Row],[2024/25 To - Spending review Topic 4]]+Dataset[[#This Row],[2024/25 To - Other reallocations]]","v":0},{"$f":"Dataset[[#This Row],[2025/26 To - Spending review Topic 1]]+Dataset[[#This Row],[2025/26 To - Spending review Topic 2]]+Dataset[[#This Row],[2025/26 To - Spending review Topic 3]]+Dataset[[#This Row],[2025/26 To - Spending review Topic 4]]+Dataset[[#This Row],[2025/26 To - Other reallocations]]","v":0},{"$f":"Dataset[[#This Row],[2023/24 Baseline]]+Dataset[[#This Row],[2023/24 From - Total]]+Dataset[[#This Row],[2023/24 To - Total]]","v":0},{"$f":"Dataset[[#This Row],[2024/25 Baseline]]+Dataset[[#This Row],[2024/25 From - Total]]+Dataset[[#This Row],[2024/25 To - Total]]","v":0},{"$f":"Dataset[[#This Row],[2025/26 Baseline]]+Dataset[[#This Row],[2025/26 From - Total]]+Dataset[[#This Row],[2025/26 To - Total]]","v":0}]
["NAT|Non-transfer item","2|Inventory: Medicine","2023_24","MTEF2023",2,1,1,645,28,"02","01","01","000645","000028","02|01|01",1,1,2,28,28,"01|01|02|28|28","National","Parliament","Administration","Executive Authority","Non-transfer item","Current","Current payments","Goods and services","Inventory: Medicine","Inventory: Medicine","General public services","Executive and legislative organs","NAT",0,0,0,0,0,0,0,0,0,0,0,null,null,null,null,null,null,null,null,null,null,null,null,null,null,null,null,null,null,null,null,null,null,null,null,null,null,null,null,null,null,{"$f":"Dataset[[#This Row],[2023/24 From - Spending review Topic 1]]+Dataset[[#This Row],[2023/24 From - Spending review Topic 2]]+Dataset[[#This Row],[2023/24 From - Spending review Topic 3]]+Dataset[[#This Row],[2023/24 From - Spending review Topic 4]]+Dataset[[#This Row],[2023/24 From - Other reallocations]]","v":0},{"$f":"Dataset[[#This Row],[2024/25 From - Spending review Topic 1]]+Dataset[[#This Row],[2024/25 From - Spending review Topic 2]]+Dataset[[#This Row],[2024/25 From - Spending review Topic 3]]+Dataset[[#This Row],[2024/25 From - Spending review Topic 4]]+Dataset[[#This Row],[2024/25 From - Other reallocations]]","v":0},{"$f":"Dataset[[#This Row],[2025/26 From - Spending review Topic 1]]+Dataset[[#This Row],[2025/26 From - Spending review Topic 2]]+Dataset[[#This Row],[2025/26 From - Spending review Topic 3]]+Dataset[[#This Row],[2025/26 From - Spending review Topic 4]]+Dataset[[#This Row],[2025/26 From - Other reallocations]]","v":0},{"$f":"Dataset[[#This Row],[2023/24 To - Spending review Topic 1]]+Dataset[[#This Row],[2023/24 To - Spending review Topic 2]]+Dataset[[#This Row],[2023/24 To - Spending review Topic 3]]+Dataset[[#This Row],[2023/24 To - Spending review Topic 4]]+Dataset[[#This Row],[2023/24 To - Other reallocations]]","v":0},{"$f":"Dataset[[#This Row],[2024/25 To - Spending review Topic 1]]+Dataset[[#This Row],[2024/25 To - Spending review Topic 2]]+Dataset[[#This Row],[2024/25 To - Spending review Topic 3]]+Dataset[[#This Row],[2024/25 To - Spending review Topic 4]]+Dataset[[#This Row],[2024/25 To - Other reallocations]]","v":0},{"$f":"Dataset[[#This Row],[2025/26 To - Spending review Topic 1]]+Dataset[[#This Row],[2025/26 To - Spending review Topic 2]]+Dataset[[#This Row],[2025/26 To - Spending review Topic 3]]+Dataset[[#This Row],[2025/26 To - Spending review Topic 4]]+Dataset[[#This Row],[2025/26 To - Other reallocations]]","v":0},{"$f":"Dataset[[#This Row],[2023/24 Baseline]]+Dataset[[#This Row],[2023/24 From - Total]]+Dataset[[#This Row],[2023/24 To - Total]]","v":0},{"$f":"Dataset[[#This Row],[2024/25 Baseline]]+Dataset[[#This Row],[2024/25 From - Total]]+Dataset[[#This Row],[2024/25 To - Total]]","v":0},{"$f":"Dataset[[#This Row],[2025/26 Baseline]]+Dataset[[#This Row],[2025/26 From - Total]]+Dataset[[#This Row],[2025/26 To - Total]]","v":0}]
["NAT|Non-transfer item","2|Medsas inventory interface","2023_24","MTEF2023",2,1,1,646,29,"02","01","01","000646","000029","02|01|01",1,1,2,29,29,"01|01|02|29|29","National","Parliament","Administration","Executive Authority","Non-transfer item","Current","Current payments","Goods and services","Medsas inventory interface","Medsas inventory interface","General public services","Executive and legislative organs","NAT",0,0,0,0,0,0,0,0,0,0,0,null,null,null,null,null,null,null,null,null,null,null,null,null,null,null,null,null,null,null,null,null,null,null,null,null,null,null,null,null,null,{"$f":"Dataset[[#This Row],[2023/24 From - Spending review Topic 1]]+Dataset[[#This Row],[2023/24 From - Spending review Topic 2]]+Dataset[[#This Row],[2023/24 From - Spending review Topic 3]]+Dataset[[#This Row],[2023/24 From - Spending review Topic 4]]+Dataset[[#This Row],[2023/24 From - Other reallocations]]","v":0},{"$f":"Dataset[[#This Row],[2024/25 From - Spending review Topic 1]]+Dataset[[#This Row],[2024/25 From - Spending review Topic 2]]+Dataset[[#This Row],[2024/25 From - Spending review Topic 3]]+Dataset[[#This Row],[2024/25 From - Spending review Topic 4]]+Dataset[[#This Row],[2024/25 From - Other reallocations]]","v":0},{"$f":"Dataset[[#This Row],[2025/26 From - Spending review Topic 1]]+Dataset[[#This Row],[2025/26 From - Spending review Topic 2]]+Dataset[[#This Row],[2025/26 From - Spending review Topic 3]]+Dataset[[#This Row],[2025/26 From - Spending review Topic 4]]+Dataset[[#This Row],[2025/26 From - Other reallocations]]","v":0},{"$f":"Dataset[[#This Row],[2023/24 To - Spending review Topic 1]]+Dataset[[#This Row],[2023/24 To - Spending review Topic 2]]+Dataset[[#This Row],[2023/24 To - Spending review Topic 3]]+Dataset[[#This Row],[2023/24 To - Spending review Topic 4]]+Dataset[[#This Row],[2023/24 To - Other reallocations]]","v":0},{"$f":"Dataset[[#This Row],[2024/25 To - Spending review Topic 1]]+Dataset[[#This Row],[2024/25 To - Spending review Topic 2]]+Dataset[[#This Row],[2024/25 To - Spending review Topic 3]]+Dataset[[#This Row],[2024/25 To - Spending review Topic 4]]+Dataset[[#This Row],[2024/25 To - Other reallocations]]","v":0},{"$f":"Dataset[[#This Row],[2025/26 To - Spending review Topic 1]]+Dataset[[#This Row],[2025/26 To - Spending review Topic 2]]+Dataset[[#This Row],[2025/26 To - Spending review Topic 3]]+Dataset[[#This Row],[2025/26 To - Spending review Topic 4]]+Dataset[[#This Row],[2025/26 To - Other reallocations]]","v":0},{"$f":"Dataset[[#This Row],[2023/24 Baseline]]+Dataset[[#This Row],[2023/24 From - Total]]+Dataset[[#This Row],[2023/24 To - Total]]","v":0},{"$f":"Dataset[[#This Row],[2024/25 Baseline]]+Dataset[[#This Row],[2024/25 From - Total]]+Dataset[[#This Row],[2024/25 To - Total]]","v":0},{"$f":"Dataset[[#This Row],[2025/26 Baseline]]+Dataset[[#This Row],[2025/26 From - Total]]+Dataset[[#This Row],[2025/26 To - Total]]","v":0}]
["NAT|Non-transfer item","2|Inventory: Other supplies","2023_24","MTEF2023",2,1,1,647,30,"02","01","01","000647","000030","02|01|01",1,1,2,30,30,"01|01|02|30|30","National","Parliament","Administration","Executive Authority","Non-transfer item","Current","Current payments","Goods and services","Inventory: Other supplies","Inventory: Other supplies","General public services","Executive and legislative organs","NAT",0,0,0,0,0,0,0,0,0,0,0,null,null,null,null,null,null,null,null,null,null,null,null,null,null,null,null,null,null,null,null,null,null,null,null,null,null,null,null,null,null,{"$f":"Dataset[[#This Row],[2023/24 From - Spending review Topic 1]]+Dataset[[#This Row],[2023/24 From - Spending review Topic 2]]+Dataset[[#This Row],[2023/24 From - Spending review Topic 3]]+Dataset[[#This Row],[2023/24 From - Spending review Topic 4]]+Dataset[[#This Row],[2023/24 From - Other reallocations]]","v":0},{"$f":"Dataset[[#This Row],[2024/25 From - Spending review Topic 1]]+Dataset[[#This Row],[2024/25 From - Spending review Topic 2]]+Dataset[[#This Row],[2024/25 From - Spending review Topic 3]]+Dataset[[#This Row],[2024/25 From - Spending review Topic 4]]+Dataset[[#This Row],[2024/25 From - Other reallocations]]","v":0},{"$f":"Dataset[[#This Row],[2025/26 From - Spending review Topic 1]]+Dataset[[#This Row],[2025/26 From - Spending review Topic 2]]+Dataset[[#This Row],[2025/26 From - Spending review Topic 3]]+Dataset[[#This Row],[2025/26 From - Spending review Topic 4]]+Dataset[[#This Row],[2025/26 From - Other reallocations]]","v":0},{"$f":"Dataset[[#This Row],[2023/24 To - Spending review Topic 1]]+Dataset[[#This Row],[2023/24 To - Spending review Topic 2]]+Dataset[[#This Row],[2023/24 To - Spending review Topic 3]]+Dataset[[#This Row],[2023/24 To - Spending review Topic 4]]+Dataset[[#This Row],[2023/24 To - Other reallocations]]","v":0},{"$f":"Dataset[[#This Row],[2024/25 To - Spending review Topic 1]]+Dataset[[#This Row],[2024/25 To - Spending review Topic 2]]+Dataset[[#This Row],[2024/25 To - Spending review Topic 3]]+Dataset[[#This Row],[2024/25 To - Spending review Topic 4]]+Dataset[[#This Row],[2024/25 To - Other reallocations]]","v":0},{"$f":"Dataset[[#This Row],[2025/26 To - Spending review Topic 1]]+Dataset[[#This Row],[2025/26 To - Spending review Topic 2]]+Dataset[[#This Row],[2025/26 To - Spending review Topic 3]]+Dataset[[#This Row],[2025/26 To - Spending review Topic 4]]+Dataset[[#This Row],[2025/26 To - Other reallocations]]","v":0},{"$f":"Dataset[[#This Row],[2023/24 Baseline]]+Dataset[[#This Row],[2023/24 From - Total]]+Dataset[[#This Row],[2023/24 To - Total]]","v":0},{"$f":"Dataset[[#This Row],[2024/25 Baseline]]+Dataset[[#This Row],[2024/25 From - Total]]+Dataset[[#This Row],[2024/25 To - Total]]","v":0},{"$f":"Dataset[[#This Row],[2025/26 Baseline]]+Dataset[[#This Row],[2025/26 From - Total]]+Dataset[[#This Row],[2025/26 To - Total]]","v":0}]
["NAT|Non-transfer item","2|Consumable supplies","2023_24","MTEF2023",2,1,1,648,31,"02","01","01","000648","000031","02|01|01",1,1,2,31,31,"01|01|02|31|31","National","Parliament","Administration","Executive Authority","Non-transfer item","Current","Current payments","Goods and services","Consumable supplies","Consumable supplies","General public services","Executive and legislative organs","NAT",0,0,0,0,0,0,0,0,0,0,0,null,null,null,null,null,null,null,null,null,null,null,null,null,null,null,null,null,null,null,null,null,null,null,null,null,null,null,null,null,null,{"$f":"Dataset[[#This Row],[2023/24 From - Spending review Topic 1]]+Dataset[[#This Row],[2023/24 From - Spending review Topic 2]]+Dataset[[#This Row],[2023/24 From - Spending review Topic 3]]+Dataset[[#This Row],[2023/24 From - Spending review Topic 4]]+Dataset[[#This Row],[2023/24 From - Other reallocations]]","v":0},{"$f":"Dataset[[#This Row],[2024/25 From - Spending review Topic 1]]+Dataset[[#This Row],[2024/25 From - Spending review Topic 2]]+Dataset[[#This Row],[2024/25 From - Spending review Topic 3]]+Dataset[[#This Row],[2024/25 From - Spending review Topic 4]]+Dataset[[#This Row],[2024/25 From - Other reallocations]]","v":0},{"$f":"Dataset[[#This Row],[2025/26 From - Spending review Topic 1]]+Dataset[[#This Row],[2025/26 From - Spending review Topic 2]]+Dataset[[#This Row],[2025/26 From - Spending review Topic 3]]+Dataset[[#This Row],[2025/26 From - Spending review Topic 4]]+Dataset[[#This Row],[2025/26 From - Other reallocations]]","v":0},{"$f":"Dataset[[#This Row],[2023/24 To - Spending review Topic 1]]+Dataset[[#This Row],[2023/24 To - Spending review Topic 2]]+Dataset[[#This Row],[2023/24 To - Spending review Topic 3]]+Dataset[[#This Row],[2023/24 To - Spending review Topic 4]]+Dataset[[#This Row],[2023/24 To - Other reallocations]]","v":0},{"$f":"Dataset[[#This Row],[2024/25 To - Spending review Topic 1]]+Dataset[[#This Row],[2024/25 To - Spending review Topic 2]]+Dataset[[#This Row],[2024/25 To - Spending review Topic 3]]+Dataset[[#This Row],[2024/25 To - Spending review Topic 4]]+Dataset[[#This Row],[2024/25 To - Other reallocations]]","v":0},{"$f":"Dataset[[#This Row],[2025/26 To - Spending review Topic 1]]+Dataset[[#This Row],[2025/26 To - Spending review Topic 2]]+Dataset[[#This Row],[2025/26 To - Spending review Topic 3]]+Dataset[[#This Row],[2025/26 To - Spending review Topic 4]]+Dataset[[#This Row],[2025/26 To - Other reallocations]]","v":0},{"$f":"Dataset[[#This Row],[2023/24 Baseline]]+Dataset[[#This Row],[2023/24 From - Total]]+Dataset[[#This Row],[2023/24 To - Total]]","v":0},{"$f":"Dataset[[#This Row],[2024/25 Baseline]]+Dataset[[#This Row],[2024/25 From - Total]]+Dataset[[#This Row],[2024/25 To - Total]]","v":0},{"$f":"Dataset[[#This Row],[2025/26 Baseline]]+Dataset[[#This Row],[2025/26 From - Total]]+Dataset[[#This Row],[2025/26 To - Total]]","v":0}]
["NAT|Non-transfer item","2|Consumables: Stationery, printing and office supplies","2023_24","MTEF2023",2,1,1,649,32,"02","01","01","000649","000032","02|01|01",1,1,2,32,32,"01|01|02|32|32","National","Parliament","Administration","Executive Authority","Non-transfer item","Current","Current payments","Goods and services","Consumables: Stationery, printing and office supplies","Consumables: Stationery, printing and office supplies","General public services","Executive and legislative organs","NAT",434,458,483,500,500,500,0,516,518,541,565,null,null,null,null,null,null,null,null,null,null,null,null,null,null,null,null,null,null,null,null,null,null,null,null,null,null,null,null,null,null,{"$f":"Dataset[[#This Row],[2023/24 From - Spending review Topic 1]]+Dataset[[#This Row],[2023/24 From - Spending review Topic 2]]+Dataset[[#This Row],[2023/24 From - Spending review Topic 3]]+Dataset[[#This Row],[2023/24 From - Spending review Topic 4]]+Dataset[[#This Row],[2023/24 From - Other reallocations]]","v":0},{"$f":"Dataset[[#This Row],[2024/25 From - Spending review Topic 1]]+Dataset[[#This Row],[2024/25 From - Spending review Topic 2]]+Dataset[[#This Row],[2024/25 From - Spending review Topic 3]]+Dataset[[#This Row],[2024/25 From - Spending review Topic 4]]+Dataset[[#This Row],[2024/25 From - Other reallocations]]","v":0},{"$f":"Dataset[[#This Row],[2025/26 From - Spending review Topic 1]]+Dataset[[#This Row],[2025/26 From - Spending review Topic 2]]+Dataset[[#This Row],[2025/26 From - Spending review Topic 3]]+Dataset[[#This Row],[2025/26 From - Spending review Topic 4]]+Dataset[[#This Row],[2025/26 From - Other reallocations]]","v":0},{"$f":"Dataset[[#This Row],[2023/24 To - Spending review Topic 1]]+Dataset[[#This Row],[2023/24 To - Spending review Topic 2]]+Dataset[[#This Row],[2023/24 To - Spending review Topic 3]]+Dataset[[#This Row],[2023/24 To - Spending review Topic 4]]+Dataset[[#This Row],[2023/24 To - Other reallocations]]","v":0},{"$f":"Dataset[[#This Row],[2024/25 To - Spending review Topic 1]]+Dataset[[#This Row],[2024/25 To - Spending review Topic 2]]+Dataset[[#This Row],[2024/25 To - Spending review Topic 3]]+Dataset[[#This Row],[2024/25 To - Spending review Topic 4]]+Dataset[[#This Row],[2024/25 To - Other reallocations]]","v":0},{"$f":"Dataset[[#This Row],[2025/26 To - Spending review Topic 1]]+Dataset[[#This Row],[2025/26 To - Spending review Topic 2]]+Dataset[[#This Row],[2025/26 To - Spending review Topic 3]]+Dataset[[#This Row],[2025/26 To - Spending review Topic 4]]+Dataset[[#This Row],[2025/26 To - Other reallocations]]","v":0},{"$f":"Dataset[[#This Row],[2023/24 Baseline]]+Dataset[[#This Row],[2023/24 From - Total]]+Dataset[[#This Row],[2023/24 To - Total]]","v":518},{"$f":"Dataset[[#This Row],[2024/25 Baseline]]+Dataset[[#This Row],[2024/25 From - Total]]+Dataset[[#This Row],[2024/25 To - Total]]","v":541},{"$f":"Dataset[[#This Row],[2025/26 Baseline]]+Dataset[[#This Row],[2025/26 From - Total]]+Dataset[[#This Row],[2025/26 To - Total]]","v":565}]
["NAT|Non-transfer item","2|Operating leases","2023_24","MTEF2023",2,1,1,650,33,"02","01","01","000650","000033","02|01|01",1,1,2,33,33,"01|01|02|33|33","National","Parliament","Administration","Executive Authority","Non-transfer item","Current","Current payments","Goods and services","Operating leases","Operating leases","General public services","Executive and legislative organs","NAT",448,283,26,27,27,27,0,29,29,30,31,null,null,null,null,null,null,null,null,null,null,null,null,null,null,null,null,null,null,null,null,null,null,null,null,null,null,null,null,null,null,{"$f":"Dataset[[#This Row],[2023/24 From - Spending review Topic 1]]+Dataset[[#This Row],[2023/24 From - Spending review Topic 2]]+Dataset[[#This Row],[2023/24 From - Spending review Topic 3]]+Dataset[[#This Row],[2023/24 From - Spending review Topic 4]]+Dataset[[#This Row],[2023/24 From - Other reallocations]]","v":0},{"$f":"Dataset[[#This Row],[2024/25 From - Spending review Topic 1]]+Dataset[[#This Row],[2024/25 From - Spending review Topic 2]]+Dataset[[#This Row],[2024/25 From - Spending review Topic 3]]+Dataset[[#This Row],[2024/25 From - Spending review Topic 4]]+Dataset[[#This Row],[2024/25 From - Other reallocations]]","v":0},{"$f":"Dataset[[#This Row],[2025/26 From - Spending review Topic 1]]+Dataset[[#This Row],[2025/26 From - Spending review Topic 2]]+Dataset[[#This Row],[2025/26 From - Spending review Topic 3]]+Dataset[[#This Row],[2025/26 From - Spending review Topic 4]]+Dataset[[#This Row],[2025/26 From - Other reallocations]]","v":0},{"$f":"Dataset[[#This Row],[2023/24 To - Spending review Topic 1]]+Dataset[[#This Row],[2023/24 To - Spending review Topic 2]]+Dataset[[#This Row],[2023/24 To - Spending review Topic 3]]+Dataset[[#This Row],[2023/24 To - Spending review Topic 4]]+Dataset[[#This Row],[2023/24 To - Other reallocations]]","v":0},{"$f":"Dataset[[#This Row],[2024/25 To - Spending review Topic 1]]+Dataset[[#This Row],[2024/25 To - Spending review Topic 2]]+Dataset[[#This Row],[2024/25 To - Spending review Topic 3]]+Dataset[[#This Row],[2024/25 To - Spending review Topic 4]]+Dataset[[#This Row],[2024/25 To - Other reallocations]]","v":0},{"$f":"Dataset[[#This Row],[2025/26 To - Spending review Topic 1]]+Dataset[[#This Row],[2025/26 To - Spending review Topic 2]]+Dataset[[#This Row],[2025/26 To - Spending review Topic 3]]+Dataset[[#This Row],[2025/26 To - Spending review Topic 4]]+Dataset[[#This Row],[2025/26 To - Other reallocations]]","v":0},{"$f":"Dataset[[#This Row],[2023/24 Baseline]]+Dataset[[#This Row],[2023/24 From - Total]]+Dataset[[#This Row],[2023/24 To - Total]]","v":29},{"$f":"Dataset[[#This Row],[2024/25 Baseline]]+Dataset[[#This Row],[2024/25 From - Total]]+Dataset[[#This Row],[2024/25 To - Total]]","v":30},{"$f":"Dataset[[#This Row],[2025/26 Baseline]]+Dataset[[#This Row],[2025/26 From - Total]]+Dataset[[#This Row],[2025/26 To - Total]]","v":31}]
["NAT|Non-transfer item","2|Rental and hiring","2023_24","MTEF2023",2,1,1,651,34,"02","01","01","000651","000034","02|01|01",1,1,2,34,34,"01|01|02|34|34","National","Parliament","Administration","Executive Authority","Non-transfer item","Current","Current payments","Goods and services","Rental and hiring","Rental and hiring","General public services","Executive and legislative organs","NAT",0,0,0,0,0,0,0,0,0,0,0,null,null,null,null,null,null,null,null,null,null,null,null,null,null,null,null,null,null,null,null,null,null,null,null,null,null,null,null,null,null,{"$f":"Dataset[[#This Row],[2023/24 From - Spending review Topic 1]]+Dataset[[#This Row],[2023/24 From - Spending review Topic 2]]+Dataset[[#This Row],[2023/24 From - Spending review Topic 3]]+Dataset[[#This Row],[2023/24 From - Spending review Topic 4]]+Dataset[[#This Row],[2023/24 From - Other reallocations]]","v":0},{"$f":"Dataset[[#This Row],[2024/25 From - Spending review Topic 1]]+Dataset[[#This Row],[2024/25 From - Spending review Topic 2]]+Dataset[[#This Row],[2024/25 From - Spending review Topic 3]]+Dataset[[#This Row],[2024/25 From - Spending review Topic 4]]+Dataset[[#This Row],[2024/25 From - Other reallocations]]","v":0},{"$f":"Dataset[[#This Row],[2025/26 From - Spending review Topic 1]]+Dataset[[#This Row],[2025/26 From - Spending review Topic 2]]+Dataset[[#This Row],[2025/26 From - Spending review Topic 3]]+Dataset[[#This Row],[2025/26 From - Spending review Topic 4]]+Dataset[[#This Row],[2025/26 From - Other reallocations]]","v":0},{"$f":"Dataset[[#This Row],[2023/24 To - Spending review Topic 1]]+Dataset[[#This Row],[2023/24 To - Spending review Topic 2]]+Dataset[[#This Row],[2023/24 To - Spending review Topic 3]]+Dataset[[#This Row],[2023/24 To - Spending review Topic 4]]+Dataset[[#This Row],[2023/24 To - Other reallocations]]","v":0},{"$f":"Dataset[[#This Row],[2024/25 To - Spending review Topic 1]]+Dataset[[#This Row],[2024/25 To - Spending review Topic 2]]+Dataset[[#This Row],[2024/25 To - Spending review Topic 3]]+Dataset[[#This Row],[2024/25 To - Spending review Topic 4]]+Dataset[[#This Row],[2024/25 To - Other reallocations]]","v":0},{"$f":"Dataset[[#This Row],[2025/26 To - Spending review Topic 1]]+Dataset[[#This Row],[2025/26 To - Spending review Topic 2]]+Dataset[[#This Row],[2025/26 To - Spending review Topic 3]]+Dataset[[#This Row],[2025/26 To - Spending review Topic 4]]+Dataset[[#This Row],[2025/26 To - Other reallocations]]","v":0},{"$f":"Dataset[[#This Row],[2023/24 Baseline]]+Dataset[[#This Row],[2023/24 From - Total]]+Dataset[[#This Row],[2023/24 To - Total]]","v":0},{"$f":"Dataset[[#This Row],[2024/25 Baseline]]+Dataset[[#This Row],[2024/25 From - Total]]+Dataset[[#This Row],[2024/25 To - Total]]","v":0},{"$f":"Dataset[[#This Row],[2025/26 Baseline]]+Dataset[[#This Row],[2025/26 From - Total]]+Dataset[[#This Row],[2025/26 To - Total]]","v":0}]
["NAT|Non-transfer item","2|Property payments","2023_24","MTEF2023",2,1,1,652,35,"02","01","01","000652","000035","02|01|01",1,1,2,35,35,"01|01|02|35|35","National","Parliament","Administration","Executive Authority","Non-transfer item","Current","Current payments","Goods and services","Property payments","Property payments","General public services","Executive and legislative organs","NAT",81,86,177,189,189,189,0,194,195,204,213,null,null,null,null,null,null,null,null,null,null,null,null,null,null,null,null,null,null,null,null,null,null,null,null,null,null,null,null,null,null,{"$f":"Dataset[[#This Row],[2023/24 From - Spending review Topic 1]]+Dataset[[#This Row],[2023/24 From - Spending review Topic 2]]+Dataset[[#This Row],[2023/24 From - Spending review Topic 3]]+Dataset[[#This Row],[2023/24 From - Spending review Topic 4]]+Dataset[[#This Row],[2023/24 From - Other reallocations]]","v":0},{"$f":"Dataset[[#This Row],[2024/25 From - Spending review Topic 1]]+Dataset[[#This Row],[2024/25 From - Spending review Topic 2]]+Dataset[[#This Row],[2024/25 From - Spending review Topic 3]]+Dataset[[#This Row],[2024/25 From - Spending review Topic 4]]+Dataset[[#This Row],[2024/25 From - Other reallocations]]","v":0},{"$f":"Dataset[[#This Row],[2025/26 From - Spending review Topic 1]]+Dataset[[#This Row],[2025/26 From - Spending review Topic 2]]+Dataset[[#This Row],[2025/26 From - Spending review Topic 3]]+Dataset[[#This Row],[2025/26 From - Spending review Topic 4]]+Dataset[[#This Row],[2025/26 From - Other reallocations]]","v":0},{"$f":"Dataset[[#This Row],[2023/24 To - Spending review Topic 1]]+Dataset[[#This Row],[2023/24 To - Spending review Topic 2]]+Dataset[[#This Row],[2023/24 To - Spending review Topic 3]]+Dataset[[#This Row],[2023/24 To - Spending review Topic 4]]+Dataset[[#This Row],[2023/24 To - Other reallocations]]","v":0},{"$f":"Dataset[[#This Row],[2024/25 To - Spending review Topic 1]]+Dataset[[#This Row],[2024/25 To - Spending review Topic 2]]+Dataset[[#This Row],[2024/25 To - Spending review Topic 3]]+Dataset[[#This Row],[2024/25 To - Spending review Topic 4]]+Dataset[[#This Row],[2024/25 To - Other reallocations]]","v":0},{"$f":"Dataset[[#This Row],[2025/26 To - Spending review Topic 1]]+Dataset[[#This Row],[2025/26 To - Spending review Topic 2]]+Dataset[[#This Row],[2025/26 To - Spending review Topic 3]]+Dataset[[#This Row],[2025/26 To - Spending review Topic 4]]+Dataset[[#This Row],[2025/26 To - Other reallocations]]","v":0},{"$f":"Dataset[[#This Row],[2023/24 Baseline]]+Dataset[[#This Row],[2023/24 From - Total]]+Dataset[[#This Row],[2023/24 To - Total]]","v":195},{"$f":"Dataset[[#This Row],[2024/25 Baseline]]+Dataset[[#This Row],[2024/25 From - Total]]+Dataset[[#This Row],[2024/25 To - Total]]","v":204},{"$f":"Dataset[[#This Row],[2025/26 Baseline]]+Dataset[[#This Row],[2025/26 From - Total]]+Dataset[[#This Row],[2025/26 To - Total]]","v":213}]
["NAT|Non-transfer item","2|Transport provided: Departmental activity","2023_24","MTEF2023",2,1,1,653,36,"02","01","01","000653","000036","02|01|01",1,1,2,36,36,"01|01|02|36|36","National","Parliament","Administration","Executive Authority","Non-transfer item","Current","Current payments","Goods and services","Transport provided: Departmental activity","Transport provided: Departmental activity","General public services","Executive and legislative organs","NAT",0,0,0,0,0,0,0,0,0,0,0,null,null,null,null,null,null,null,null,null,null,null,null,null,null,null,null,null,null,null,null,null,null,null,null,null,null,null,null,null,null,{"$f":"Dataset[[#This Row],[2023/24 From - Spending review Topic 1]]+Dataset[[#This Row],[2023/24 From - Spending review Topic 2]]+Dataset[[#This Row],[2023/24 From - Spending review Topic 3]]+Dataset[[#This Row],[2023/24 From - Spending review Topic 4]]+Dataset[[#This Row],[2023/24 From - Other reallocations]]","v":0},{"$f":"Dataset[[#This Row],[2024/25 From - Spending review Topic 1]]+Dataset[[#This Row],[2024/25 From - Spending review Topic 2]]+Dataset[[#This Row],[2024/25 From - Spending review Topic 3]]+Dataset[[#This Row],[2024/25 From - Spending review Topic 4]]+Dataset[[#This Row],[2024/25 From - Other reallocations]]","v":0},{"$f":"Dataset[[#This Row],[2025/26 From - Spending review Topic 1]]+Dataset[[#This Row],[2025/26 From - Spending review Topic 2]]+Dataset[[#This Row],[2025/26 From - Spending review Topic 3]]+Dataset[[#This Row],[2025/26 From - Spending review Topic 4]]+Dataset[[#This Row],[2025/26 From - Other reallocations]]","v":0},{"$f":"Dataset[[#This Row],[2023/24 To - Spending review Topic 1]]+Dataset[[#This Row],[2023/24 To - Spending review Topic 2]]+Dataset[[#This Row],[2023/24 To - Spending review Topic 3]]+Dataset[[#This Row],[2023/24 To - Spending review Topic 4]]+Dataset[[#This Row],[2023/24 To - Other reallocations]]","v":0},{"$f":"Dataset[[#This Row],[2024/25 To - Spending review Topic 1]]+Dataset[[#This Row],[2024/25 To - Spending review Topic 2]]+Dataset[[#This Row],[2024/25 To - Spending review Topic 3]]+Dataset[[#This Row],[2024/25 To - Spending review Topic 4]]+Dataset[[#This Row],[2024/25 To - Other reallocations]]","v":0},{"$f":"Dataset[[#This Row],[2025/26 To - Spending review Topic 1]]+Dataset[[#This Row],[2025/26 To - Spending review Topic 2]]+Dataset[[#This Row],[2025/26 To - Spending review Topic 3]]+Dataset[[#This Row],[2025/26 To - Spending review Topic 4]]+Dataset[[#This Row],[2025/26 To - Other reallocations]]","v":0},{"$f":"Dataset[[#This Row],[2023/24 Baseline]]+Dataset[[#This Row],[2023/24 From - Total]]+Dataset[[#This Row],[2023/24 To - Total]]","v":0},{"$f":"Dataset[[#This Row],[2024/25 Baseline]]+Dataset[[#This Row],[2024/25 From - Total]]+Dataset[[#This Row],[2024/25 To - Total]]","v":0},{"$f":"Dataset[[#This Row],[2025/26 Baseline]]+Dataset[[#This Row],[2025/26 From - Total]]+Dataset[[#This Row],[2025/26 To - Total]]","v":0}]
["NAT|Non-transfer item","2|Travel and subsistence","2023_24","MTEF2023",2,1,1,654,37,"02","01","01","000654","000037","02|01|01",1,1,2,37,37,"01|01|02|37|37","National","Parliament","Administration","Executive Authority","Non-transfer item","Current","Current payments","Goods and services","Travel and subsistence","Travel and subsistence","General public services","Executive and legislative organs","NAT",16490,18191,15580,16466,16466,16466,0,26973,27039,27804,29050,null,null,null,null,null,null,null,null,null,null,null,null,null,null,null,null,null,null,null,null,null,null,null,null,null,null,null,null,null,null,{"$f":"Dataset[[#This Row],[2023/24 From - Spending review Topic 1]]+Dataset[[#This Row],[2023/24 From - Spending review Topic 2]]+Dataset[[#This Row],[2023/24 From - Spending review Topic 3]]+Dataset[[#This Row],[2023/24 From - Spending review Topic 4]]+Dataset[[#This Row],[2023/24 From - Other reallocations]]","v":0},{"$f":"Dataset[[#This Row],[2024/25 From - Spending review Topic 1]]+Dataset[[#This Row],[2024/25 From - Spending review Topic 2]]+Dataset[[#This Row],[2024/25 From - Spending review Topic 3]]+Dataset[[#This Row],[2024/25 From - Spending review Topic 4]]+Dataset[[#This Row],[2024/25 From - Other reallocations]]","v":0},{"$f":"Dataset[[#This Row],[2025/26 From - Spending review Topic 1]]+Dataset[[#This Row],[2025/26 From - Spending review Topic 2]]+Dataset[[#This Row],[2025/26 From - Spending review Topic 3]]+Dataset[[#This Row],[2025/26 From - Spending review Topic 4]]+Dataset[[#This Row],[2025/26 From - Other reallocations]]","v":0},{"$f":"Dataset[[#This Row],[2023/24 To - Spending review Topic 1]]+Dataset[[#This Row],[2023/24 To - Spending review Topic 2]]+Dataset[[#This Row],[2023/24 To - Spending review Topic 3]]+Dataset[[#This Row],[2023/24 To - Spending review Topic 4]]+Dataset[[#This Row],[2023/24 To - Other reallocations]]","v":0},{"$f":"Dataset[[#This Row],[2024/25 To - Spending review Topic 1]]+Dataset[[#This Row],[2024/25 To - Spending review Topic 2]]+Dataset[[#This Row],[2024/25 To - Spending review Topic 3]]+Dataset[[#This Row],[2024/25 To - Spending review Topic 4]]+Dataset[[#This Row],[2024/25 To - Other reallocations]]","v":0},{"$f":"Dataset[[#This Row],[2025/26 To - Spending review Topic 1]]+Dataset[[#This Row],[2025/26 To - Spending review Topic 2]]+Dataset[[#This Row],[2025/26 To - Spending review Topic 3]]+Dataset[[#This Row],[2025/26 To - Spending review Topic 4]]+Dataset[[#This Row],[2025/26 To - Other reallocations]]","v":0},{"$f":"Dataset[[#This Row],[2023/24 Baseline]]+Dataset[[#This Row],[2023/24 From - Total]]+Dataset[[#This Row],[2023/24 To - Total]]","v":27039},{"$f":"Dataset[[#This Row],[2024/25 Baseline]]+Dataset[[#This Row],[2024/25 From - Total]]+Dataset[[#This Row],[2024/25 To - Total]]","v":27804},{"$f":"Dataset[[#This Row],[2025/26 Baseline]]+Dataset[[#This Row],[2025/26 From - Total]]+Dataset[[#This Row],[2025/26 To - Total]]","v":29050}]
["NAT|Non-transfer item","2|Training and development","2023_24","MTEF2023",2,1,1,655,38,"02","01","01","000655","000038","02|01|01",1,1,2,38,38,"01|01|02|38|38","National","Parliament","Administration","Executive Authority","Non-transfer item","Current","Current payments","Goods and services","Training and development","Training and development","General public services","Executive and legislative organs","NAT",352,372,392,406,406,406,0,418,420,439,459,null,null,null,null,null,null,null,null,null,null,null,null,null,null,null,null,null,null,null,null,null,null,null,null,null,null,null,null,null,null,{"$f":"Dataset[[#This Row],[2023/24 From - Spending review Topic 1]]+Dataset[[#This Row],[2023/24 From - Spending review Topic 2]]+Dataset[[#This Row],[2023/24 From - Spending review Topic 3]]+Dataset[[#This Row],[2023/24 From - Spending review Topic 4]]+Dataset[[#This Row],[2023/24 From - Other reallocations]]","v":0},{"$f":"Dataset[[#This Row],[2024/25 From - Spending review Topic 1]]+Dataset[[#This Row],[2024/25 From - Spending review Topic 2]]+Dataset[[#This Row],[2024/25 From - Spending review Topic 3]]+Dataset[[#This Row],[2024/25 From - Spending review Topic 4]]+Dataset[[#This Row],[2024/25 From - Other reallocations]]","v":0},{"$f":"Dataset[[#This Row],[2025/26 From - Spending review Topic 1]]+Dataset[[#This Row],[2025/26 From - Spending review Topic 2]]+Dataset[[#This Row],[2025/26 From - Spending review Topic 3]]+Dataset[[#This Row],[2025/26 From - Spending review Topic 4]]+Dataset[[#This Row],[2025/26 From - Other reallocations]]","v":0},{"$f":"Dataset[[#This Row],[2023/24 To - Spending review Topic 1]]+Dataset[[#This Row],[2023/24 To - Spending review Topic 2]]+Dataset[[#This Row],[2023/24 To - Spending review Topic 3]]+Dataset[[#This Row],[2023/24 To - Spending review Topic 4]]+Dataset[[#This Row],[2023/24 To - Other reallocations]]","v":0},{"$f":"Dataset[[#This Row],[2024/25 To - Spending review Topic 1]]+Dataset[[#This Row],[2024/25 To - Spending review Topic 2]]+Dataset[[#This Row],[2024/25 To - Spending review Topic 3]]+Dataset[[#This Row],[2024/25 To - Spending review Topic 4]]+Dataset[[#This Row],[2024/25 To - Other reallocations]]","v":0},{"$f":"Dataset[[#This Row],[2025/26 To - Spending review Topic 1]]+Dataset[[#This Row],[2025/26 To - Spending review Topic 2]]+Dataset[[#This Row],[2025/26 To - Spending review Topic 3]]+Dataset[[#This Row],[2025/26 To - Spending review Topic 4]]+Dataset[[#This Row],[2025/26 To - Other reallocations]]","v":0},{"$f":"Dataset[[#This Row],[2023/24 Baseline]]+Dataset[[#This Row],[2023/24 From - Total]]+Dataset[[#This Row],[2023/24 To - Total]]","v":420},{"$f":"Dataset[[#This Row],[2024/25 Baseline]]+Dataset[[#This Row],[2024/25 From - Total]]+Dataset[[#This Row],[2024/25 To - Total]]","v":439},{"$f":"Dataset[[#This Row],[2025/26 Baseline]]+Dataset[[#This Row],[2025/26 From - Total]]+Dataset[[#This Row],[2025/26 To - Total]]","v":459}]
["NAT|Non-transfer item","2|Operating payments","2023_24","MTEF2023",2,1,1,656,39,"02","01","01","000656","000039","02|01|01",1,1,2,39,39,"01|01|02|39|39","National","Parliament","Administration","Executive Authority","Non-transfer item","Current","Current payments","Goods and services","Operating payments","Operating payments","General public services","Executive and legislative organs","NAT",1680,2347,540,5297,5297,5297,0,10466,10489,10736,11217,null,null,null,null,null,null,null,null,null,null,null,null,null,null,null,null,null,null,null,null,null,null,null,null,null,null,null,null,null,null,{"$f":"Dataset[[#This Row],[2023/24 From - Spending review Topic 1]]+Dataset[[#This Row],[2023/24 From - Spending review Topic 2]]+Dataset[[#This Row],[2023/24 From - Spending review Topic 3]]+Dataset[[#This Row],[2023/24 From - Spending review Topic 4]]+Dataset[[#This Row],[2023/24 From - Other reallocations]]","v":0},{"$f":"Dataset[[#This Row],[2024/25 From - Spending review Topic 1]]+Dataset[[#This Row],[2024/25 From - Spending review Topic 2]]+Dataset[[#This Row],[2024/25 From - Spending review Topic 3]]+Dataset[[#This Row],[2024/25 From - Spending review Topic 4]]+Dataset[[#This Row],[2024/25 From - Other reallocations]]","v":0},{"$f":"Dataset[[#This Row],[2025/26 From - Spending review Topic 1]]+Dataset[[#This Row],[2025/26 From - Spending review Topic 2]]+Dataset[[#This Row],[2025/26 From - Spending review Topic 3]]+Dataset[[#This Row],[2025/26 From - Spending review Topic 4]]+Dataset[[#This Row],[2025/26 From - Other reallocations]]","v":0},{"$f":"Dataset[[#This Row],[2023/24 To - Spending review Topic 1]]+Dataset[[#This Row],[2023/24 To - Spending review Topic 2]]+Dataset[[#This Row],[2023/24 To - Spending review Topic 3]]+Dataset[[#This Row],[2023/24 To - Spending review Topic 4]]+Dataset[[#This Row],[2023/24 To - Other reallocations]]","v":0},{"$f":"Dataset[[#This Row],[2024/25 To - Spending review Topic 1]]+Dataset[[#This Row],[2024/25 To - Spending review Topic 2]]+Dataset[[#This Row],[2024/25 To - Spending review Topic 3]]+Dataset[[#This Row],[2024/25 To - Spending review Topic 4]]+Dataset[[#This Row],[2024/25 To - Other reallocations]]","v":0},{"$f":"Dataset[[#This Row],[2025/26 To - Spending review Topic 1]]+Dataset[[#This Row],[2025/26 To - Spending review Topic 2]]+Dataset[[#This Row],[2025/26 To - Spending review Topic 3]]+Dataset[[#This Row],[2025/26 To - Spending review Topic 4]]+Dataset[[#This Row],[2025/26 To - Other reallocations]]","v":0},{"$f":"Dataset[[#This Row],[2023/24 Baseline]]+Dataset[[#This Row],[2023/24 From - Total]]+Dataset[[#This Row],[2023/24 To - Total]]","v":10489},{"$f":"Dataset[[#This Row],[2024/25 Baseline]]+Dataset[[#This Row],[2024/25 From - Total]]+Dataset[[#This Row],[2024/25 To - Total]]","v":10736},{"$f":"Dataset[[#This Row],[2025/26 Baseline]]+Dataset[[#This Row],[2025/26 From - Total]]+Dataset[[#This Row],[2025/26 To - Total]]","v":11217}]
["NAT|Non-transfer item","2|Venues and facilities","2023_24","MTEF2023",2,1,1,657,40,"02","01","01","000657","000040","02|01|01",1,1,2,40,40,"01|01|02|40|40","National","Parliament","Administration","Executive Authority","Non-transfer item","Current","Current payments","Goods and services","Venues and facilities","Venues and facilities","General public services","Executive and legislative organs","NAT",0,0,0,0,0,0,0,0,0,0,0,null,null,null,null,null,null,null,null,null,null,null,null,null,null,null,null,null,null,null,null,null,null,null,null,null,null,null,null,null,null,{"$f":"Dataset[[#This Row],[2023/24 From - Spending review Topic 1]]+Dataset[[#This Row],[2023/24 From - Spending review Topic 2]]+Dataset[[#This Row],[2023/24 From - Spending review Topic 3]]+Dataset[[#This Row],[2023/24 From - Spending review Topic 4]]+Dataset[[#This Row],[2023/24 From - Other reallocations]]","v":0},{"$f":"Dataset[[#This Row],[2024/25 From - Spending review Topic 1]]+Dataset[[#This Row],[2024/25 From - Spending review Topic 2]]+Dataset[[#This Row],[2024/25 From - Spending review Topic 3]]+Dataset[[#This Row],[2024/25 From - Spending review Topic 4]]+Dataset[[#This Row],[2024/25 From - Other reallocations]]","v":0},{"$f":"Dataset[[#This Row],[2025/26 From - Spending review Topic 1]]+Dataset[[#This Row],[2025/26 From - Spending review Topic 2]]+Dataset[[#This Row],[2025/26 From - Spending review Topic 3]]+Dataset[[#This Row],[2025/26 From - Spending review Topic 4]]+Dataset[[#This Row],[2025/26 From - Other reallocations]]","v":0},{"$f":"Dataset[[#This Row],[2023/24 To - Spending review Topic 1]]+Dataset[[#This Row],[2023/24 To - Spending review Topic 2]]+Dataset[[#This Row],[2023/24 To - Spending review Topic 3]]+Dataset[[#This Row],[2023/24 To - Spending review Topic 4]]+Dataset[[#This Row],[2023/24 To - Other reallocations]]","v":0},{"$f":"Dataset[[#This Row],[2024/25 To - Spending review Topic 1]]+Dataset[[#This Row],[2024/25 To - Spending review Topic 2]]+Dataset[[#This Row],[2024/25 To - Spending review Topic 3]]+Dataset[[#This Row],[2024/25 To - Spending review Topic 4]]+Dataset[[#This Row],[2024/25 To - Other reallocations]]","v":0},{"$f":"Dataset[[#This Row],[2025/26 To - Spending review Topic 1]]+Dataset[[#This Row],[2025/26 To - Spending review Topic 2]]+Dataset[[#This Row],[2025/26 To - Spending review Topic 3]]+Dataset[[#This Row],[2025/26 To - Spending review Topic 4]]+Dataset[[#This Row],[2025/26 To - Other reallocations]]","v":0},{"$f":"Dataset[[#This Row],[2023/24 Baseline]]+Dataset[[#This Row],[2023/24 From - Total]]+Dataset[[#This Row],[2023/24 To - Total]]","v":0},{"$f":"Dataset[[#This Row],[2024/25 Baseline]]+Dataset[[#This Row],[2024/25 From - Total]]+Dataset[[#This Row],[2024/25 To - Total]]","v":0},{"$f":"Dataset[[#This Row],[2025/26 Baseline]]+Dataset[[#This Row],[2025/26 From - Total]]+Dataset[[#This Row],[2025/26 To - Total]]","v":0}]
["NAT|Non-transfer item","2|Interest (Incl. interest on unitary payments (PPP))","2023_24","MTEF2023",2,1,1,658,41,"02","01","01","000658","000041","02|01|01",1,1,3,41,41,"01|01|03|41|41","National","Parliament","Administration","Executive Authority","Non-transfer item","Current","Current payments","Interest and rent on land","Interest (Incl. interest on unitary payments (PPP))","Interest (Incl. interest on unitary payments (PPP))","General public services","Executive and legislative organs","NAT",0,0,0,0,0,0,0,0,0,0,0,null,null,null,null,null,null,null,null,null,null,null,null,null,null,null,null,null,null,null,null,null,null,null,null,null,null,null,null,null,null,{"$f":"Dataset[[#This Row],[2023/24 From - Spending review Topic 1]]+Dataset[[#This Row],[2023/24 From - Spending review Topic 2]]+Dataset[[#This Row],[2023/24 From - Spending review Topic 3]]+Dataset[[#This Row],[2023/24 From - Spending review Topic 4]]+Dataset[[#This Row],[2023/24 From - Other reallocations]]","v":0},{"$f":"Dataset[[#This Row],[2024/25 From - Spending review Topic 1]]+Dataset[[#This Row],[2024/25 From - Spending review Topic 2]]+Dataset[[#This Row],[2024/25 From - Spending review Topic 3]]+Dataset[[#This Row],[2024/25 From - Spending review Topic 4]]+Dataset[[#This Row],[2024/25 From - Other reallocations]]","v":0},{"$f":"Dataset[[#This Row],[2025/26 From - Spending review Topic 1]]+Dataset[[#This Row],[2025/26 From - Spending review Topic 2]]+Dataset[[#This Row],[2025/26 From - Spending review Topic 3]]+Dataset[[#This Row],[2025/26 From - Spending review Topic 4]]+Dataset[[#This Row],[2025/26 From - Other reallocations]]","v":0},{"$f":"Dataset[[#This Row],[2023/24 To - Spending review Topic 1]]+Dataset[[#This Row],[2023/24 To - Spending review Topic 2]]+Dataset[[#This Row],[2023/24 To - Spending review Topic 3]]+Dataset[[#This Row],[2023/24 To - Spending review Topic 4]]+Dataset[[#This Row],[2023/24 To - Other reallocations]]","v":0},{"$f":"Dataset[[#This Row],[2024/25 To - Spending review Topic 1]]+Dataset[[#This Row],[2024/25 To - Spending review Topic 2]]+Dataset[[#This Row],[2024/25 To - Spending review Topic 3]]+Dataset[[#This Row],[2024/25 To - Spending review Topic 4]]+Dataset[[#This Row],[2024/25 To - Other reallocations]]","v":0},{"$f":"Dataset[[#This Row],[2025/26 To - Spending review Topic 1]]+Dataset[[#This Row],[2025/26 To - Spending review Topic 2]]+Dataset[[#This Row],[2025/26 To - Spending review Topic 3]]+Dataset[[#This Row],[2025/26 To - Spending review Topic 4]]+Dataset[[#This Row],[2025/26 To - Other reallocations]]","v":0},{"$f":"Dataset[[#This Row],[2023/24 Baseline]]+Dataset[[#This Row],[2023/24 From - Total]]+Dataset[[#This Row],[2023/24 To - Total]]","v":0},{"$f":"Dataset[[#This Row],[2024/25 Baseline]]+Dataset[[#This Row],[2024/25 From - Total]]+Dataset[[#This Row],[2024/25 To - Total]]","v":0},{"$f":"Dataset[[#This Row],[2025/26 Baseline]]+Dataset[[#This Row],[2025/26 From - Total]]+Dataset[[#This Row],[2025/26 To - Total]]","v":0}]
["NAT|Non-transfer item","2|Rent on land","2023_24","MTEF2023",2,1,1,659,42,"02","01","01","000659","000042","02|01|01",1,1,3,42,42,"01|01|03|42|42","National","Parliament","Administration","Executive Authority","Non-transfer item","Current","Current payments","Interest and rent on land","Rent on land","Rent on land","General public services","Executive and legislative organs","NAT",0,0,0,0,0,0,0,0,0,0,0,null,null,null,null,null,null,null,null,null,null,null,null,null,null,null,null,null,null,null,null,null,null,null,null,null,null,null,null,null,null,{"$f":"Dataset[[#This Row],[2023/24 From - Spending review Topic 1]]+Dataset[[#This Row],[2023/24 From - Spending review Topic 2]]+Dataset[[#This Row],[2023/24 From - Spending review Topic 3]]+Dataset[[#This Row],[2023/24 From - Spending review Topic 4]]+Dataset[[#This Row],[2023/24 From - Other reallocations]]","v":0},{"$f":"Dataset[[#This Row],[2024/25 From - Spending review Topic 1]]+Dataset[[#This Row],[2024/25 From - Spending review Topic 2]]+Dataset[[#This Row],[2024/25 From - Spending review Topic 3]]+Dataset[[#This Row],[2024/25 From - Spending review Topic 4]]+Dataset[[#This Row],[2024/25 From - Other reallocations]]","v":0},{"$f":"Dataset[[#This Row],[2025/26 From - Spending review Topic 1]]+Dataset[[#This Row],[2025/26 From - Spending review Topic 2]]+Dataset[[#This Row],[2025/26 From - Spending review Topic 3]]+Dataset[[#This Row],[2025/26 From - Spending review Topic 4]]+Dataset[[#This Row],[2025/26 From - Other reallocations]]","v":0},{"$f":"Dataset[[#This Row],[2023/24 To - Spending review Topic 1]]+Dataset[[#This Row],[2023/24 To - Spending review Topic 2]]+Dataset[[#This Row],[2023/24 To - Spending review Topic 3]]+Dataset[[#This Row],[2023/24 To - Spending review Topic 4]]+Dataset[[#This Row],[2023/24 To - Other reallocations]]","v":0},{"$f":"Dataset[[#This Row],[2024/25 To - Spending review Topic 1]]+Dataset[[#This Row],[2024/25 To - Spending review Topic 2]]+Dataset[[#This Row],[2024/25 To - Spending review Topic 3]]+Dataset[[#This Row],[2024/25 To - Spending review Topic 4]]+Dataset[[#This Row],[2024/25 To - Other reallocations]]","v":0},{"$f":"Dataset[[#This Row],[2025/26 To - Spending review Topic 1]]+Dataset[[#This Row],[2025/26 To - Spending review Topic 2]]+Dataset[[#This Row],[2025/26 To - Spending review Topic 3]]+Dataset[[#This Row],[2025/26 To - Spending review Topic 4]]+Dataset[[#This Row],[2025/26 To - Other reallocations]]","v":0},{"$f":"Dataset[[#This Row],[2023/24 Baseline]]+Dataset[[#This Row],[2023/24 From - Total]]+Dataset[[#This Row],[2023/24 To - Total]]","v":0},{"$f":"Dataset[[#This Row],[2024/25 Baseline]]+Dataset[[#This Row],[2024/25 From - Total]]+Dataset[[#This Row],[2024/25 To - Total]]","v":0},{"$f":"Dataset[[#This Row],[2025/26 Baseline]]+Dataset[[#This Row],[2025/26 From - Total]]+Dataset[[#This Row],[2025/26 To - Total]]","v":0}]
["NAT|Non-transfer item","2|Provincial Revenue Funds","2023_24","MTEF2023",2,1,1,660,43,"02","01","01","000660","000043","02|01|01",1,2,4,43,43,"01|02|04|43|43","National","Parliament","Administration","Executive Authority","Non-transfer item","Current","Transfers and subsidies","Provinces and municipalities","Provinces","Provincial Revenue Funds","General public services","Executive and legislative organs","NAT",0,0,0,0,0,0,0,0,0,0,0,null,null,null,null,null,null,null,null,null,null,null,null,null,null,null,null,null,null,null,null,null,null,null,null,null,null,null,null,null,null,{"$f":"Dataset[[#This Row],[2023/24 From - Spending review Topic 1]]+Dataset[[#This Row],[2023/24 From - Spending review Topic 2]]+Dataset[[#This Row],[2023/24 From - Spending review Topic 3]]+Dataset[[#This Row],[2023/24 From - Spending review Topic 4]]+Dataset[[#This Row],[2023/24 From - Other reallocations]]","v":0},{"$f":"Dataset[[#This Row],[2024/25 From - Spending review Topic 1]]+Dataset[[#This Row],[2024/25 From - Spending review Topic 2]]+Dataset[[#This Row],[2024/25 From - Spending review Topic 3]]+Dataset[[#This Row],[2024/25 From - Spending review Topic 4]]+Dataset[[#This Row],[2024/25 From - Other reallocations]]","v":0},{"$f":"Dataset[[#This Row],[2025/26 From - Spending review Topic 1]]+Dataset[[#This Row],[2025/26 From - Spending review Topic 2]]+Dataset[[#This Row],[2025/26 From - Spending review Topic 3]]+Dataset[[#This Row],[2025/26 From - Spending review Topic 4]]+Dataset[[#This Row],[2025/26 From - Other reallocations]]","v":0},{"$f":"Dataset[[#This Row],[2023/24 To - Spending review Topic 1]]+Dataset[[#This Row],[2023/24 To - Spending review Topic 2]]+Dataset[[#This Row],[2023/24 To - Spending review Topic 3]]+Dataset[[#This Row],[2023/24 To - Spending review Topic 4]]+Dataset[[#This Row],[2023/24 To - Other reallocations]]","v":0},{"$f":"Dataset[[#This Row],[2024/25 To - Spending review Topic 1]]+Dataset[[#This Row],[2024/25 To - Spending review Topic 2]]+Dataset[[#This Row],[2024/25 To - Spending review Topic 3]]+Dataset[[#This Row],[2024/25 To - Spending review Topic 4]]+Dataset[[#This Row],[2024/25 To - Other reallocations]]","v":0},{"$f":"Dataset[[#This Row],[2025/26 To - Spending review Topic 1]]+Dataset[[#This Row],[2025/26 To - Spending review Topic 2]]+Dataset[[#This Row],[2025/26 To - Spending review Topic 3]]+Dataset[[#This Row],[2025/26 To - Spending review Topic 4]]+Dataset[[#This Row],[2025/26 To - Other reallocations]]","v":0},{"$f":"Dataset[[#This Row],[2023/24 Baseline]]+Dataset[[#This Row],[2023/24 From - Total]]+Dataset[[#This Row],[2023/24 To - Total]]","v":0},{"$f":"Dataset[[#This Row],[2024/25 Baseline]]+Dataset[[#This Row],[2024/25 From - Total]]+Dataset[[#This Row],[2024/25 To - Total]]","v":0},{"$f":"Dataset[[#This Row],[2025/26 Baseline]]+Dataset[[#This Row],[2025/26 From - Total]]+Dataset[[#This Row],[2025/26 To - Total]]","v":0}]
["NAT|Non-transfer item","2|Provincial agencies and funds","2023_24","MTEF2023",2,1,1,661,44,"02","01","01","000661","000044","02|01|01",1,2,4,43,44,"01|02|04|43|44","National","Parliament","Administration","Executive Authority","Non-transfer item","Current","Transfers and subsidies","Provinces and municipalities","Provinces","Provincial agencies and funds","General public services","Executive and legislative organs","NAT",0,0,0,0,0,0,0,0,0,0,0,null,null,null,null,null,null,null,null,null,null,null,null,null,null,null,null,null,null,null,null,null,null,null,null,null,null,null,null,null,null,{"$f":"Dataset[[#This Row],[2023/24 From - Spending review Topic 1]]+Dataset[[#This Row],[2023/24 From - Spending review Topic 2]]+Dataset[[#This Row],[2023/24 From - Spending review Topic 3]]+Dataset[[#This Row],[2023/24 From - Spending review Topic 4]]+Dataset[[#This Row],[2023/24 From - Other reallocations]]","v":0},{"$f":"Dataset[[#This Row],[2024/25 From - Spending review Topic 1]]+Dataset[[#This Row],[2024/25 From - Spending review Topic 2]]+Dataset[[#This Row],[2024/25 From - Spending review Topic 3]]+Dataset[[#This Row],[2024/25 From - Spending review Topic 4]]+Dataset[[#This Row],[2024/25 From - Other reallocations]]","v":0},{"$f":"Dataset[[#This Row],[2025/26 From - Spending review Topic 1]]+Dataset[[#This Row],[2025/26 From - Spending review Topic 2]]+Dataset[[#This Row],[2025/26 From - Spending review Topic 3]]+Dataset[[#This Row],[2025/26 From - Spending review Topic 4]]+Dataset[[#This Row],[2025/26 From - Other reallocations]]","v":0},{"$f":"Dataset[[#This Row],[2023/24 To - Spending review Topic 1]]+Dataset[[#This Row],[2023/24 To - Spending review Topic 2]]+Dataset[[#This Row],[2023/24 To - Spending review Topic 3]]+Dataset[[#This Row],[2023/24 To - Spending review Topic 4]]+Dataset[[#This Row],[2023/24 To - Other reallocations]]","v":0},{"$f":"Dataset[[#This Row],[2024/25 To - Spending review Topic 1]]+Dataset[[#This Row],[2024/25 To - Spending review Topic 2]]+Dataset[[#This Row],[2024/25 To - Spending review Topic 3]]+Dataset[[#This Row],[2024/25 To - Spending review Topic 4]]+Dataset[[#This Row],[2024/25 To - Other reallocations]]","v":0},{"$f":"Dataset[[#This Row],[2025/26 To - Spending review Topic 1]]+Dataset[[#This Row],[2025/26 To - Spending review Topic 2]]+Dataset[[#This Row],[2025/26 To - Spending review Topic 3]]+Dataset[[#This Row],[2025/26 To - Spending review Topic 4]]+Dataset[[#This Row],[2025/26 To - Other reallocations]]","v":0},{"$f":"Dataset[[#This Row],[2023/24 Baseline]]+Dataset[[#This Row],[2023/24 From - Total]]+Dataset[[#This Row],[2023/24 To - Total]]","v":0},{"$f":"Dataset[[#This Row],[2024/25 Baseline]]+Dataset[[#This Row],[2024/25 From - Total]]+Dataset[[#This Row],[2024/25 To - Total]]","v":0},{"$f":"Dataset[[#This Row],[2025/26 Baseline]]+Dataset[[#This Row],[2025/26 From - Total]]+Dataset[[#This Row],[2025/26 To - Total]]","v":0}]
["NAT|Non-transfer item","2|Municipal bank accounts","2023_24","MTEF2023",2,1,1,662,45,"02","01","01","000662","000045","02|01|01",1,2,4,44,45,"01|02|04|44|45","National","Parliament","Administration","Executive Authority","Non-transfer item","Current","Transfers and subsidies","Provinces and municipalities","Municipalities","Municipal bank accounts","General public services","Executive and legislative organs","NAT",0,0,0,0,0,0,0,0,0,0,0,null,null,null,null,null,null,null,null,null,null,null,null,null,null,null,null,null,null,null,null,null,null,null,null,null,null,null,null,null,null,{"$f":"Dataset[[#This Row],[2023/24 From - Spending review Topic 1]]+Dataset[[#This Row],[2023/24 From - Spending review Topic 2]]+Dataset[[#This Row],[2023/24 From - Spending review Topic 3]]+Dataset[[#This Row],[2023/24 From - Spending review Topic 4]]+Dataset[[#This Row],[2023/24 From - Other reallocations]]","v":0},{"$f":"Dataset[[#This Row],[2024/25 From - Spending review Topic 1]]+Dataset[[#This Row],[2024/25 From - Spending review Topic 2]]+Dataset[[#This Row],[2024/25 From - Spending review Topic 3]]+Dataset[[#This Row],[2024/25 From - Spending review Topic 4]]+Dataset[[#This Row],[2024/25 From - Other reallocations]]","v":0},{"$f":"Dataset[[#This Row],[2025/26 From - Spending review Topic 1]]+Dataset[[#This Row],[2025/26 From - Spending review Topic 2]]+Dataset[[#This Row],[2025/26 From - Spending review Topic 3]]+Dataset[[#This Row],[2025/26 From - Spending review Topic 4]]+Dataset[[#This Row],[2025/26 From - Other reallocations]]","v":0},{"$f":"Dataset[[#This Row],[2023/24 To - Spending review Topic 1]]+Dataset[[#This Row],[2023/24 To - Spending review Topic 2]]+Dataset[[#This Row],[2023/24 To - Spending review Topic 3]]+Dataset[[#This Row],[2023/24 To - Spending review Topic 4]]+Dataset[[#This Row],[2023/24 To - Other reallocations]]","v":0},{"$f":"Dataset[[#This Row],[2024/25 To - Spending review Topic 1]]+Dataset[[#This Row],[2024/25 To - Spending review Topic 2]]+Dataset[[#This Row],[2024/25 To - Spending review Topic 3]]+Dataset[[#This Row],[2024/25 To - Spending review Topic 4]]+Dataset[[#This Row],[2024/25 To - Other reallocations]]","v":0},{"$f":"Dataset[[#This Row],[2025/26 To - Spending review Topic 1]]+Dataset[[#This Row],[2025/26 To - Spending review Topic 2]]+Dataset[[#This Row],[2025/26 To - Spending review Topic 3]]+Dataset[[#This Row],[2025/26 To - Spending review Topic 4]]+Dataset[[#This Row],[2025/26 To - Other reallocations]]","v":0},{"$f":"Dataset[[#This Row],[2023/24 Baseline]]+Dataset[[#This Row],[2023/24 From - Total]]+Dataset[[#This Row],[2023/24 To - Total]]","v":0},{"$f":"Dataset[[#This Row],[2024/25 Baseline]]+Dataset[[#This Row],[2024/25 From - Total]]+Dataset[[#This Row],[2024/25 To - Total]]","v":0},{"$f":"Dataset[[#This Row],[2025/26 Baseline]]+Dataset[[#This Row],[2025/26 From - Total]]+Dataset[[#This Row],[2025/26 To - Total]]","v":0}]
["NAT|Non-transfer item","2|Municipal agencies and funds","2023_24","MTEF2023",2,1,1,663,46,"02","01","01","000663","000046","02|01|01",1,2,4,44,46,"01|02|04|44|46","National","Parliament","Administration","Executive Authority","Non-transfer item","Current","Transfers and subsidies","Provinces and municipalities","Municipalities","Municipal agencies and funds","General public services","Executive and legislative organs","NAT",0,0,0,0,0,0,0,0,0,0,0,null,null,null,null,null,null,null,null,null,null,null,null,null,null,null,null,null,null,null,null,null,null,null,null,null,null,null,null,null,null,{"$f":"Dataset[[#This Row],[2023/24 From - Spending review Topic 1]]+Dataset[[#This Row],[2023/24 From - Spending review Topic 2]]+Dataset[[#This Row],[2023/24 From - Spending review Topic 3]]+Dataset[[#This Row],[2023/24 From - Spending review Topic 4]]+Dataset[[#This Row],[2023/24 From - Other reallocations]]","v":0},{"$f":"Dataset[[#This Row],[2024/25 From - Spending review Topic 1]]+Dataset[[#This Row],[2024/25 From - Spending review Topic 2]]+Dataset[[#This Row],[2024/25 From - Spending review Topic 3]]+Dataset[[#This Row],[2024/25 From - Spending review Topic 4]]+Dataset[[#This Row],[2024/25 From - Other reallocations]]","v":0},{"$f":"Dataset[[#This Row],[2025/26 From - Spending review Topic 1]]+Dataset[[#This Row],[2025/26 From - Spending review Topic 2]]+Dataset[[#This Row],[2025/26 From - Spending review Topic 3]]+Dataset[[#This Row],[2025/26 From - Spending review Topic 4]]+Dataset[[#This Row],[2025/26 From - Other reallocations]]","v":0},{"$f":"Dataset[[#This Row],[2023/24 To - Spending review Topic 1]]+Dataset[[#This Row],[2023/24 To - Spending review Topic 2]]+Dataset[[#This Row],[2023/24 To - Spending review Topic 3]]+Dataset[[#This Row],[2023/24 To - Spending review Topic 4]]+Dataset[[#This Row],[2023/24 To - Other reallocations]]","v":0},{"$f":"Dataset[[#This Row],[2024/25 To - Spending review Topic 1]]+Dataset[[#This Row],[2024/25 To - Spending review Topic 2]]+Dataset[[#This Row],[2024/25 To - Spending review Topic 3]]+Dataset[[#This Row],[2024/25 To - Spending review Topic 4]]+Dataset[[#This Row],[2024/25 To - Other reallocations]]","v":0},{"$f":"Dataset[[#This Row],[2025/26 To - Spending review Topic 1]]+Dataset[[#This Row],[2025/26 To - Spending review Topic 2]]+Dataset[[#This Row],[2025/26 To - Spending review Topic 3]]+Dataset[[#This Row],[2025/26 To - Spending review Topic 4]]+Dataset[[#This Row],[2025/26 To - Other reallocations]]","v":0},{"$f":"Dataset[[#This Row],[2023/24 Baseline]]+Dataset[[#This Row],[2023/24 From - Total]]+Dataset[[#This Row],[2023/24 To - Total]]","v":0},{"$f":"Dataset[[#This Row],[2024/25 Baseline]]+Dataset[[#This Row],[2024/25 From - Total]]+Dataset[[#This Row],[2024/25 To - Total]]","v":0},{"$f":"Dataset[[#This Row],[2025/26 Baseline]]+Dataset[[#This Row],[2025/26 From - Total]]+Dataset[[#This Row],[2025/26 To - Total]]","v":0}]
["NAT|Non-transfer item","2|Social security funds","2023_24","MTEF2023",2,1,1,664,47,"02","01","01","000664","000047","02|01|01",1,2,5,45,47,"01|02|05|45|47","National","Parliament","Administration","Executive Authority","Non-transfer item","Current","Transfers and subsidies","Departmental agencies and accounts","Social security funds","Social security funds","General public services","Executive and legislative organs","NAT",0,0,0,0,0,0,0,0,0,0,0,null,null,null,null,null,null,null,null,null,null,null,null,null,null,null,null,null,null,null,null,null,null,null,null,null,null,null,null,null,null,{"$f":"Dataset[[#This Row],[2023/24 From - Spending review Topic 1]]+Dataset[[#This Row],[2023/24 From - Spending review Topic 2]]+Dataset[[#This Row],[2023/24 From - Spending review Topic 3]]+Dataset[[#This Row],[2023/24 From - Spending review Topic 4]]+Dataset[[#This Row],[2023/24 From - Other reallocations]]","v":0},{"$f":"Dataset[[#This Row],[2024/25 From - Spending review Topic 1]]+Dataset[[#This Row],[2024/25 From - Spending review Topic 2]]+Dataset[[#This Row],[2024/25 From - Spending review Topic 3]]+Dataset[[#This Row],[2024/25 From - Spending review Topic 4]]+Dataset[[#This Row],[2024/25 From - Other reallocations]]","v":0},{"$f":"Dataset[[#This Row],[2025/26 From - Spending review Topic 1]]+Dataset[[#This Row],[2025/26 From - Spending review Topic 2]]+Dataset[[#This Row],[2025/26 From - Spending review Topic 3]]+Dataset[[#This Row],[2025/26 From - Spending review Topic 4]]+Dataset[[#This Row],[2025/26 From - Other reallocations]]","v":0},{"$f":"Dataset[[#This Row],[2023/24 To - Spending review Topic 1]]+Dataset[[#This Row],[2023/24 To - Spending review Topic 2]]+Dataset[[#This Row],[2023/24 To - Spending review Topic 3]]+Dataset[[#This Row],[2023/24 To - Spending review Topic 4]]+Dataset[[#This Row],[2023/24 To - Other reallocations]]","v":0},{"$f":"Dataset[[#This Row],[2024/25 To - Spending review Topic 1]]+Dataset[[#This Row],[2024/25 To - Spending review Topic 2]]+Dataset[[#This Row],[2024/25 To - Spending review Topic 3]]+Dataset[[#This Row],[2024/25 To - Spending review Topic 4]]+Dataset[[#This Row],[2024/25 To - Other reallocations]]","v":0},{"$f":"Dataset[[#This Row],[2025/26 To - Spending review Topic 1]]+Dataset[[#This Row],[2025/26 To - Spending review Topic 2]]+Dataset[[#This Row],[2025/26 To - Spending review Topic 3]]+Dataset[[#This Row],[2025/26 To - Spending review Topic 4]]+Dataset[[#This Row],[2025/26 To - Other reallocations]]","v":0},{"$f":"Dataset[[#This Row],[2023/24 Baseline]]+Dataset[[#This Row],[2023/24 From - Total]]+Dataset[[#This Row],[2023/24 To - Total]]","v":0},{"$f":"Dataset[[#This Row],[2024/25 Baseline]]+Dataset[[#This Row],[2024/25 From - Total]]+Dataset[[#This Row],[2024/25 To - Total]]","v":0},{"$f":"Dataset[[#This Row],[2025/26 Baseline]]+Dataset[[#This Row],[2025/26 From - Total]]+Dataset[[#This Row],[2025/26 To - Total]]","v":0}]
["NAT|Non-transfer item","2|Departmental agencies (non-business entities)","2023_24","MTEF2023",2,1,1,665,48,"02","01","01","000665","000048","02|01|01",1,2,5,46,48,"01|02|05|46|48","National","Parliament","Administration","Executive Authority","Non-transfer item","Current","Transfers and subsidies","Departmental agencies and accounts","Departmental agencies (non-business entities)","Departmental agencies (non-business entities)","General public services","Executive and legislative organs","NAT",0,0,0,0,0,0,0,0,0,0,0,null,null,null,null,null,null,null,null,null,null,null,null,null,null,null,null,null,null,null,null,null,null,null,null,null,null,null,null,null,null,{"$f":"Dataset[[#This Row],[2023/24 From - Spending review Topic 1]]+Dataset[[#This Row],[2023/24 From - Spending review Topic 2]]+Dataset[[#This Row],[2023/24 From - Spending review Topic 3]]+Dataset[[#This Row],[2023/24 From - Spending review Topic 4]]+Dataset[[#This Row],[2023/24 From - Other reallocations]]","v":0},{"$f":"Dataset[[#This Row],[2024/25 From - Spending review Topic 1]]+Dataset[[#This Row],[2024/25 From - Spending review Topic 2]]+Dataset[[#This Row],[2024/25 From - Spending review Topic 3]]+Dataset[[#This Row],[2024/25 From - Spending review Topic 4]]+Dataset[[#This Row],[2024/25 From - Other reallocations]]","v":0},{"$f":"Dataset[[#This Row],[2025/26 From - Spending review Topic 1]]+Dataset[[#This Row],[2025/26 From - Spending review Topic 2]]+Dataset[[#This Row],[2025/26 From - Spending review Topic 3]]+Dataset[[#This Row],[2025/26 From - Spending review Topic 4]]+Dataset[[#This Row],[2025/26 From - Other reallocations]]","v":0},{"$f":"Dataset[[#This Row],[2023/24 To - Spending review Topic 1]]+Dataset[[#This Row],[2023/24 To - Spending review Topic 2]]+Dataset[[#This Row],[2023/24 To - Spending review Topic 3]]+Dataset[[#This Row],[2023/24 To - Spending review Topic 4]]+Dataset[[#This Row],[2023/24 To - Other reallocations]]","v":0},{"$f":"Dataset[[#This Row],[2024/25 To - Spending review Topic 1]]+Dataset[[#This Row],[2024/25 To - Spending review Topic 2]]+Dataset[[#This Row],[2024/25 To - Spending review Topic 3]]+Dataset[[#This Row],[2024/25 To - Spending review Topic 4]]+Dataset[[#This Row],[2024/25 To - Other reallocations]]","v":0},{"$f":"Dataset[[#This Row],[2025/26 To - Spending review Topic 1]]+Dataset[[#This Row],[2025/26 To - Spending review Topic 2]]+Dataset[[#This Row],[2025/26 To - Spending review Topic 3]]+Dataset[[#This Row],[2025/26 To - Spending review Topic 4]]+Dataset[[#This Row],[2025/26 To - Other reallocations]]","v":0},{"$f":"Dataset[[#This Row],[2023/24 Baseline]]+Dataset[[#This Row],[2023/24 From - Total]]+Dataset[[#This Row],[2023/24 To - Total]]","v":0},{"$f":"Dataset[[#This Row],[2024/25 Baseline]]+Dataset[[#This Row],[2024/25 From - Total]]+Dataset[[#This Row],[2024/25 To - Total]]","v":0},{"$f":"Dataset[[#This Row],[2025/26 Baseline]]+Dataset[[#This Row],[2025/26 From - Total]]+Dataset[[#This Row],[2025/26 To - Total]]","v":0}]
["NAT|Non-transfer item","2|Higher education institutions","2023_24","MTEF2023",2,1,1,666,49,"02","01","01","000666","000049","02|01|01",1,2,6,47,49,"01|02|06|47|49","National","Parliament","Administration","Executive Authority","Non-transfer item","Current","Transfers and subsidies","Higher education institutions","Higher education institutions","Higher education institutions","General public services","Executive and legislative organs","NAT",0,0,0,0,0,0,0,0,0,0,0,null,null,null,null,null,null,null,null,null,null,null,null,null,null,null,null,null,null,null,null,null,null,null,null,null,null,null,null,null,null,{"$f":"Dataset[[#This Row],[2023/24 From - Spending review Topic 1]]+Dataset[[#This Row],[2023/24 From - Spending review Topic 2]]+Dataset[[#This Row],[2023/24 From - Spending review Topic 3]]+Dataset[[#This Row],[2023/24 From - Spending review Topic 4]]+Dataset[[#This Row],[2023/24 From - Other reallocations]]","v":0},{"$f":"Dataset[[#This Row],[2024/25 From - Spending review Topic 1]]+Dataset[[#This Row],[2024/25 From - Spending review Topic 2]]+Dataset[[#This Row],[2024/25 From - Spending review Topic 3]]+Dataset[[#This Row],[2024/25 From - Spending review Topic 4]]+Dataset[[#This Row],[2024/25 From - Other reallocations]]","v":0},{"$f":"Dataset[[#This Row],[2025/26 From - Spending review Topic 1]]+Dataset[[#This Row],[2025/26 From - Spending review Topic 2]]+Dataset[[#This Row],[2025/26 From - Spending review Topic 3]]+Dataset[[#This Row],[2025/26 From - Spending review Topic 4]]+Dataset[[#This Row],[2025/26 From - Other reallocations]]","v":0},{"$f":"Dataset[[#This Row],[2023/24 To - Spending review Topic 1]]+Dataset[[#This Row],[2023/24 To - Spending review Topic 2]]+Dataset[[#This Row],[2023/24 To - Spending review Topic 3]]+Dataset[[#This Row],[2023/24 To - Spending review Topic 4]]+Dataset[[#This Row],[2023/24 To - Other reallocations]]","v":0},{"$f":"Dataset[[#This Row],[2024/25 To - Spending review Topic 1]]+Dataset[[#This Row],[2024/25 To - Spending review Topic 2]]+Dataset[[#This Row],[2024/25 To - Spending review Topic 3]]+Dataset[[#This Row],[2024/25 To - Spending review Topic 4]]+Dataset[[#This Row],[2024/25 To - Other reallocations]]","v":0},{"$f":"Dataset[[#This Row],[2025/26 To - Spending review Topic 1]]+Dataset[[#This Row],[2025/26 To - Spending review Topic 2]]+Dataset[[#This Row],[2025/26 To - Spending review Topic 3]]+Dataset[[#This Row],[2025/26 To - Spending review Topic 4]]+Dataset[[#This Row],[2025/26 To - Other reallocations]]","v":0},{"$f":"Dataset[[#This Row],[2023/24 Baseline]]+Dataset[[#This Row],[2023/24 From - Total]]+Dataset[[#This Row],[2023/24 To - Total]]","v":0},{"$f":"Dataset[[#This Row],[2024/25 Baseline]]+Dataset[[#This Row],[2024/25 From - Total]]+Dataset[[#This Row],[2024/25 To - Total]]","v":0},{"$f":"Dataset[[#This Row],[2025/26 Baseline]]+Dataset[[#This Row],[2025/26 From - Total]]+Dataset[[#This Row],[2025/26 To - Total]]","v":0}]
["NAT|Non-transfer item","2|Foreign governments and international organisations","2023_24","MTEF2023",2,1,1,667,50,"02","01","01","000667","000050","02|01|01",1,2,7,48,50,"01|02|07|48|50","National","Parliament","Administration","Executive Authority","Non-transfer item","Current","Transfers and subsidies","Foreign governments and international organisations","Foreign governments and international organisations","Foreign governments and international organisations","General public services","Executive and legislative organs","NAT",0,0,0,0,0,0,0,0,0,0,0,null,null,null,null,null,null,null,null,null,null,null,null,null,null,null,null,null,null,null,null,null,null,null,null,null,null,null,null,null,null,{"$f":"Dataset[[#This Row],[2023/24 From - Spending review Topic 1]]+Dataset[[#This Row],[2023/24 From - Spending review Topic 2]]+Dataset[[#This Row],[2023/24 From - Spending review Topic 3]]+Dataset[[#This Row],[2023/24 From - Spending review Topic 4]]+Dataset[[#This Row],[2023/24 From - Other reallocations]]","v":0},{"$f":"Dataset[[#This Row],[2024/25 From - Spending review Topic 1]]+Dataset[[#This Row],[2024/25 From - Spending review Topic 2]]+Dataset[[#This Row],[2024/25 From - Spending review Topic 3]]+Dataset[[#This Row],[2024/25 From - Spending review Topic 4]]+Dataset[[#This Row],[2024/25 From - Other reallocations]]","v":0},{"$f":"Dataset[[#This Row],[2025/26 From - Spending review Topic 1]]+Dataset[[#This Row],[2025/26 From - Spending review Topic 2]]+Dataset[[#This Row],[2025/26 From - Spending review Topic 3]]+Dataset[[#This Row],[2025/26 From - Spending review Topic 4]]+Dataset[[#This Row],[2025/26 From - Other reallocations]]","v":0},{"$f":"Dataset[[#This Row],[2023/24 To - Spending review Topic 1]]+Dataset[[#This Row],[2023/24 To - Spending review Topic 2]]+Dataset[[#This Row],[2023/24 To - Spending review Topic 3]]+Dataset[[#This Row],[2023/24 To - Spending review Topic 4]]+Dataset[[#This Row],[2023/24 To - Other reallocations]]","v":0},{"$f":"Dataset[[#This Row],[2024/25 To - Spending review Topic 1]]+Dataset[[#This Row],[2024/25 To - Spending review Topic 2]]+Dataset[[#This Row],[2024/25 To - Spending review Topic 3]]+Dataset[[#This Row],[2024/25 To - Spending review Topic 4]]+Dataset[[#This Row],[2024/25 To - Other reallocations]]","v":0},{"$f":"Dataset[[#This Row],[2025/26 To - Spending review Topic 1]]+Dataset[[#This Row],[2025/26 To - Spending review Topic 2]]+Dataset[[#This Row],[2025/26 To - Spending review Topic 3]]+Dataset[[#This Row],[2025/26 To - Spending review Topic 4]]+Dataset[[#This Row],[2025/26 To - Other reallocations]]","v":0},{"$f":"Dataset[[#This Row],[2023/24 Baseline]]+Dataset[[#This Row],[2023/24 From - Total]]+Dataset[[#This Row],[2023/24 To - Total]]","v":0},{"$f":"Dataset[[#This Row],[2024/25 Baseline]]+Dataset[[#This Row],[2024/25 From - Total]]+Dataset[[#This Row],[2024/25 To - Total]]","v":0},{"$f":"Dataset[[#This Row],[2025/26 Baseline]]+Dataset[[#This Row],[2025/26 From - Total]]+Dataset[[#This Row],[2025/26 To - Total]]","v":0}]
["NAT|Non-transfer item","2|Subsidies on products and production (pc)","2023_24","MTEF2023",2,1,1,668,51,"02","01","01","000668","000051","02|01|01",1,2,8,49,51,"01|02|08|49|51","National","Parliament","Administration","Executive Authority","Non-transfer item","Current","Transfers and subsidies","Public corporations and private enterprises","Public corporations","Subsidies on products and production (pc)","General public services","Executive and legislative organs","NAT",0,0,0,0,0,0,0,0,0,0,0,null,null,null,null,null,null,null,null,null,null,null,null,null,null,null,null,null,null,null,null,null,null,null,null,null,null,null,null,null,null,{"$f":"Dataset[[#This Row],[2023/24 From - Spending review Topic 1]]+Dataset[[#This Row],[2023/24 From - Spending review Topic 2]]+Dataset[[#This Row],[2023/24 From - Spending review Topic 3]]+Dataset[[#This Row],[2023/24 From - Spending review Topic 4]]+Dataset[[#This Row],[2023/24 From - Other reallocations]]","v":0},{"$f":"Dataset[[#This Row],[2024/25 From - Spending review Topic 1]]+Dataset[[#This Row],[2024/25 From - Spending review Topic 2]]+Dataset[[#This Row],[2024/25 From - Spending review Topic 3]]+Dataset[[#This Row],[2024/25 From - Spending review Topic 4]]+Dataset[[#This Row],[2024/25 From - Other reallocations]]","v":0},{"$f":"Dataset[[#This Row],[2025/26 From - Spending review Topic 1]]+Dataset[[#This Row],[2025/26 From - Spending review Topic 2]]+Dataset[[#This Row],[2025/26 From - Spending review Topic 3]]+Dataset[[#This Row],[2025/26 From - Spending review Topic 4]]+Dataset[[#This Row],[2025/26 From - Other reallocations]]","v":0},{"$f":"Dataset[[#This Row],[2023/24 To - Spending review Topic 1]]+Dataset[[#This Row],[2023/24 To - Spending review Topic 2]]+Dataset[[#This Row],[2023/24 To - Spending review Topic 3]]+Dataset[[#This Row],[2023/24 To - Spending review Topic 4]]+Dataset[[#This Row],[2023/24 To - Other reallocations]]","v":0},{"$f":"Dataset[[#This Row],[2024/25 To - Spending review Topic 1]]+Dataset[[#This Row],[2024/25 To - Spending review Topic 2]]+Dataset[[#This Row],[2024/25 To - Spending review Topic 3]]+Dataset[[#This Row],[2024/25 To - Spending review Topic 4]]+Dataset[[#This Row],[2024/25 To - Other reallocations]]","v":0},{"$f":"Dataset[[#This Row],[2025/26 To - Spending review Topic 1]]+Dataset[[#This Row],[2025/26 To - Spending review Topic 2]]+Dataset[[#This Row],[2025/26 To - Spending review Topic 3]]+Dataset[[#This Row],[2025/26 To - Spending review Topic 4]]+Dataset[[#This Row],[2025/26 To - Other reallocations]]","v":0},{"$f":"Dataset[[#This Row],[2023/24 Baseline]]+Dataset[[#This Row],[2023/24 From - Total]]+Dataset[[#This Row],[2023/24 To - Total]]","v":0},{"$f":"Dataset[[#This Row],[2024/25 Baseline]]+Dataset[[#This Row],[2024/25 From - Total]]+Dataset[[#This Row],[2024/25 To - Total]]","v":0},{"$f":"Dataset[[#This Row],[2025/26 Baseline]]+Dataset[[#This Row],[2025/26 From - Total]]+Dataset[[#This Row],[2025/26 To - Total]]","v":0}]
["NAT|Non-transfer item","2|Other transfers to public corporations","2023_24","MTEF2023",2,1,1,669,52,"02","01","01","000669","000052","02|01|01",1,2,8,49,52,"01|02|08|49|52","National","Parliament","Administration","Executive Authority","Non-transfer item","Current","Transfers and subsidies","Public corporations and private enterprises","Public corporations","Other transfers to public corporations","General public services","Executive and legislative organs","NAT",0,0,0,0,0,0,0,0,0,0,0,null,null,null,null,null,null,null,null,null,null,null,null,null,null,null,null,null,null,null,null,null,null,null,null,null,null,null,null,null,null,{"$f":"Dataset[[#This Row],[2023/24 From - Spending review Topic 1]]+Dataset[[#This Row],[2023/24 From - Spending review Topic 2]]+Dataset[[#This Row],[2023/24 From - Spending review Topic 3]]+Dataset[[#This Row],[2023/24 From - Spending review Topic 4]]+Dataset[[#This Row],[2023/24 From - Other reallocations]]","v":0},{"$f":"Dataset[[#This Row],[2024/25 From - Spending review Topic 1]]+Dataset[[#This Row],[2024/25 From - Spending review Topic 2]]+Dataset[[#This Row],[2024/25 From - Spending review Topic 3]]+Dataset[[#This Row],[2024/25 From - Spending review Topic 4]]+Dataset[[#This Row],[2024/25 From - Other reallocations]]","v":0},{"$f":"Dataset[[#This Row],[2025/26 From - Spending review Topic 1]]+Dataset[[#This Row],[2025/26 From - Spending review Topic 2]]+Dataset[[#This Row],[2025/26 From - Spending review Topic 3]]+Dataset[[#This Row],[2025/26 From - Spending review Topic 4]]+Dataset[[#This Row],[2025/26 From - Other reallocations]]","v":0},{"$f":"Dataset[[#This Row],[2023/24 To - Spending review Topic 1]]+Dataset[[#This Row],[2023/24 To - Spending review Topic 2]]+Dataset[[#This Row],[2023/24 To - Spending review Topic 3]]+Dataset[[#This Row],[2023/24 To - Spending review Topic 4]]+Dataset[[#This Row],[2023/24 To - Other reallocations]]","v":0},{"$f":"Dataset[[#This Row],[2024/25 To - Spending review Topic 1]]+Dataset[[#This Row],[2024/25 To - Spending review Topic 2]]+Dataset[[#This Row],[2024/25 To - Spending review Topic 3]]+Dataset[[#This Row],[2024/25 To - Spending review Topic 4]]+Dataset[[#This Row],[2024/25 To - Other reallocations]]","v":0},{"$f":"Dataset[[#This Row],[2025/26 To - Spending review Topic 1]]+Dataset[[#This Row],[2025/26 To - Spending review Topic 2]]+Dataset[[#This Row],[2025/26 To - Spending review Topic 3]]+Dataset[[#This Row],[2025/26 To - Spending review Topic 4]]+Dataset[[#This Row],[2025/26 To - Other reallocations]]","v":0},{"$f":"Dataset[[#This Row],[2023/24 Baseline]]+Dataset[[#This Row],[2023/24 From - Total]]+Dataset[[#This Row],[2023/24 To - Total]]","v":0},{"$f":"Dataset[[#This Row],[2024/25 Baseline]]+Dataset[[#This Row],[2024/25 From - Total]]+Dataset[[#This Row],[2024/25 To - Total]]","v":0},{"$f":"Dataset[[#This Row],[2025/26 Baseline]]+Dataset[[#This Row],[2025/26 From - Total]]+Dataset[[#This Row],[2025/26 To - Total]]","v":0}]
["NAT|Non-transfer item","2|Subsidies on products and production (pe)","2023_24","MTEF2023",2,1,1,670,53,"02","01","01","000670","000053","02|01|01",1,2,8,50,53,"01|02|08|50|53","National","Parliament","Administration","Executive Authority","Non-transfer item","Current","Transfers and subsidies","Public corporations and private enterprises","Private enterprises","Subsidies on products and production (pe)","General public services","Executive and legislative organs","NAT",0,0,0,0,0,0,0,0,0,0,0,null,null,null,null,null,null,null,null,null,null,null,null,null,null,null,null,null,null,null,null,null,null,null,null,null,null,null,null,null,null,{"$f":"Dataset[[#This Row],[2023/24 From - Spending review Topic 1]]+Dataset[[#This Row],[2023/24 From - Spending review Topic 2]]+Dataset[[#This Row],[2023/24 From - Spending review Topic 3]]+Dataset[[#This Row],[2023/24 From - Spending review Topic 4]]+Dataset[[#This Row],[2023/24 From - Other reallocations]]","v":0},{"$f":"Dataset[[#This Row],[2024/25 From - Spending review Topic 1]]+Dataset[[#This Row],[2024/25 From - Spending review Topic 2]]+Dataset[[#This Row],[2024/25 From - Spending review Topic 3]]+Dataset[[#This Row],[2024/25 From - Spending review Topic 4]]+Dataset[[#This Row],[2024/25 From - Other reallocations]]","v":0},{"$f":"Dataset[[#This Row],[2025/26 From - Spending review Topic 1]]+Dataset[[#This Row],[2025/26 From - Spending review Topic 2]]+Dataset[[#This Row],[2025/26 From - Spending review Topic 3]]+Dataset[[#This Row],[2025/26 From - Spending review Topic 4]]+Dataset[[#This Row],[2025/26 From - Other reallocations]]","v":0},{"$f":"Dataset[[#This Row],[2023/24 To - Spending review Topic 1]]+Dataset[[#This Row],[2023/24 To - Spending review Topic 2]]+Dataset[[#This Row],[2023/24 To - Spending review Topic 3]]+Dataset[[#This Row],[2023/24 To - Spending review Topic 4]]+Dataset[[#This Row],[2023/24 To - Other reallocations]]","v":0},{"$f":"Dataset[[#This Row],[2024/25 To - Spending review Topic 1]]+Dataset[[#This Row],[2024/25 To - Spending review Topic 2]]+Dataset[[#This Row],[2024/25 To - Spending review Topic 3]]+Dataset[[#This Row],[2024/25 To - Spending review Topic 4]]+Dataset[[#This Row],[2024/25 To - Other reallocations]]","v":0},{"$f":"Dataset[[#This Row],[2025/26 To - Spending review Topic 1]]+Dataset[[#This Row],[2025/26 To - Spending review Topic 2]]+Dataset[[#This Row],[2025/26 To - Spending review Topic 3]]+Dataset[[#This Row],[2025/26 To - Spending review Topic 4]]+Dataset[[#This Row],[2025/26 To - Other reallocations]]","v":0},{"$f":"Dataset[[#This Row],[2023/24 Baseline]]+Dataset[[#This Row],[2023/24 From - Total]]+Dataset[[#This Row],[2023/24 To - Total]]","v":0},{"$f":"Dataset[[#This Row],[2024/25 Baseline]]+Dataset[[#This Row],[2024/25 From - Total]]+Dataset[[#This Row],[2024/25 To - Total]]","v":0},{"$f":"Dataset[[#This Row],[2025/26 Baseline]]+Dataset[[#This Row],[2025/26 From - Total]]+Dataset[[#This Row],[2025/26 To - Total]]","v":0}]
["NAT|Non-transfer item","2|Other transfers to private enterprises","2023_24","MTEF2023",2,1,1,671,54,"02","01","01","000671","000054","02|01|01",1,2,8,50,54,"01|02|08|50|54","National","Parliament","Administration","Executive Authority","Non-transfer item","Current","Transfers and subsidies","Public corporations and private enterprises","Private enterprises","Other transfers to private enterprises","General public services","Executive and legislative organs","NAT",0,0,0,0,0,0,0,0,0,0,0,null,null,null,null,null,null,null,null,null,null,null,null,null,null,null,null,null,null,null,null,null,null,null,null,null,null,null,null,null,null,{"$f":"Dataset[[#This Row],[2023/24 From - Spending review Topic 1]]+Dataset[[#This Row],[2023/24 From - Spending review Topic 2]]+Dataset[[#This Row],[2023/24 From - Spending review Topic 3]]+Dataset[[#This Row],[2023/24 From - Spending review Topic 4]]+Dataset[[#This Row],[2023/24 From - Other reallocations]]","v":0},{"$f":"Dataset[[#This Row],[2024/25 From - Spending review Topic 1]]+Dataset[[#This Row],[2024/25 From - Spending review Topic 2]]+Dataset[[#This Row],[2024/25 From - Spending review Topic 3]]+Dataset[[#This Row],[2024/25 From - Spending review Topic 4]]+Dataset[[#This Row],[2024/25 From - Other reallocations]]","v":0},{"$f":"Dataset[[#This Row],[2025/26 From - Spending review Topic 1]]+Dataset[[#This Row],[2025/26 From - Spending review Topic 2]]+Dataset[[#This Row],[2025/26 From - Spending review Topic 3]]+Dataset[[#This Row],[2025/26 From - Spending review Topic 4]]+Dataset[[#This Row],[2025/26 From - Other reallocations]]","v":0},{"$f":"Dataset[[#This Row],[2023/24 To - Spending review Topic 1]]+Dataset[[#This Row],[2023/24 To - Spending review Topic 2]]+Dataset[[#This Row],[2023/24 To - Spending review Topic 3]]+Dataset[[#This Row],[2023/24 To - Spending review Topic 4]]+Dataset[[#This Row],[2023/24 To - Other reallocations]]","v":0},{"$f":"Dataset[[#This Row],[2024/25 To - Spending review Topic 1]]+Dataset[[#This Row],[2024/25 To - Spending review Topic 2]]+Dataset[[#This Row],[2024/25 To - Spending review Topic 3]]+Dataset[[#This Row],[2024/25 To - Spending review Topic 4]]+Dataset[[#This Row],[2024/25 To - Other reallocations]]","v":0},{"$f":"Dataset[[#This Row],[2025/26 To - Spending review Topic 1]]+Dataset[[#This Row],[2025/26 To - Spending review Topic 2]]+Dataset[[#This Row],[2025/26 To - Spending review Topic 3]]+Dataset[[#This Row],[2025/26 To - Spending review Topic 4]]+Dataset[[#This Row],[2025/26 To - Other reallocations]]","v":0},{"$f":"Dataset[[#This Row],[2023/24 Baseline]]+Dataset[[#This Row],[2023/24 From - Total]]+Dataset[[#This Row],[2023/24 To - Total]]","v":0},{"$f":"Dataset[[#This Row],[2024/25 Baseline]]+Dataset[[#This Row],[2024/25 From - Total]]+Dataset[[#This Row],[2024/25 To - Total]]","v":0},{"$f":"Dataset[[#This Row],[2025/26 Baseline]]+Dataset[[#This Row],[2025/26 From - Total]]+Dataset[[#This Row],[2025/26 To - Total]]","v":0}]
["NAT|Non-transfer item","2|Non-profit institutions","2023_24","MTEF2023",2,1,1,672,55,"02","01","01","000672","000055","02|01|01",1,2,9,51,55,"01|02|09|51|55","National","Parliament","Administration","Executive Authority","Non-transfer item","Current","Transfers and subsidies","Non-profit institutions","Non-profit institutions","Non-profit institutions","General public services","Executive and legislative organs","NAT",0,0,0,0,0,0,0,0,0,0,0,null,null,null,null,null,null,null,null,null,null,null,null,null,null,null,null,null,null,null,null,null,null,null,null,null,null,null,null,null,null,{"$f":"Dataset[[#This Row],[2023/24 From - Spending review Topic 1]]+Dataset[[#This Row],[2023/24 From - Spending review Topic 2]]+Dataset[[#This Row],[2023/24 From - Spending review Topic 3]]+Dataset[[#This Row],[2023/24 From - Spending review Topic 4]]+Dataset[[#This Row],[2023/24 From - Other reallocations]]","v":0},{"$f":"Dataset[[#This Row],[2024/25 From - Spending review Topic 1]]+Dataset[[#This Row],[2024/25 From - Spending review Topic 2]]+Dataset[[#This Row],[2024/25 From - Spending review Topic 3]]+Dataset[[#This Row],[2024/25 From - Spending review Topic 4]]+Dataset[[#This Row],[2024/25 From - Other reallocations]]","v":0},{"$f":"Dataset[[#This Row],[2025/26 From - Spending review Topic 1]]+Dataset[[#This Row],[2025/26 From - Spending review Topic 2]]+Dataset[[#This Row],[2025/26 From - Spending review Topic 3]]+Dataset[[#This Row],[2025/26 From - Spending review Topic 4]]+Dataset[[#This Row],[2025/26 From - Other reallocations]]","v":0},{"$f":"Dataset[[#This Row],[2023/24 To - Spending review Topic 1]]+Dataset[[#This Row],[2023/24 To - Spending review Topic 2]]+Dataset[[#This Row],[2023/24 To - Spending review Topic 3]]+Dataset[[#This Row],[2023/24 To - Spending review Topic 4]]+Dataset[[#This Row],[2023/24 To - Other reallocations]]","v":0},{"$f":"Dataset[[#This Row],[2024/25 To - Spending review Topic 1]]+Dataset[[#This Row],[2024/25 To - Spending review Topic 2]]+Dataset[[#This Row],[2024/25 To - Spending review Topic 3]]+Dataset[[#This Row],[2024/25 To - Spending review Topic 4]]+Dataset[[#This Row],[2024/25 To - Other reallocations]]","v":0},{"$f":"Dataset[[#This Row],[2025/26 To - Spending review Topic 1]]+Dataset[[#This Row],[2025/26 To - Spending review Topic 2]]+Dataset[[#This Row],[2025/26 To - Spending review Topic 3]]+Dataset[[#This Row],[2025/26 To - Spending review Topic 4]]+Dataset[[#This Row],[2025/26 To - Other reallocations]]","v":0},{"$f":"Dataset[[#This Row],[2023/24 Baseline]]+Dataset[[#This Row],[2023/24 From - Total]]+Dataset[[#This Row],[2023/24 To - Total]]","v":0},{"$f":"Dataset[[#This Row],[2024/25 Baseline]]+Dataset[[#This Row],[2024/25 From - Total]]+Dataset[[#This Row],[2024/25 To - Total]]","v":0},{"$f":"Dataset[[#This Row],[2025/26 Baseline]]+Dataset[[#This Row],[2025/26 From - Total]]+Dataset[[#This Row],[2025/26 To - Total]]","v":0}]
["NAT|Non-transfer item","2|Social benefits","2023_24","MTEF2023",2,1,1,673,56,"02","01","01","000673","000056","02|01|01",1,2,10,52,56,"01|02|10|52|56","National","Parliament","Administration","Executive Authority","Non-transfer item","Current","Transfers and subsidies","Households","Social benefits","Social benefits","General public services","Executive and legislative organs","NAT",0,0,0,0,0,0,0,0,0,0,0,null,null,null,null,null,null,null,null,null,null,null,null,null,null,null,null,null,null,null,null,null,null,null,null,null,null,null,null,null,null,{"$f":"Dataset[[#This Row],[2023/24 From - Spending review Topic 1]]+Dataset[[#This Row],[2023/24 From - Spending review Topic 2]]+Dataset[[#This Row],[2023/24 From - Spending review Topic 3]]+Dataset[[#This Row],[2023/24 From - Spending review Topic 4]]+Dataset[[#This Row],[2023/24 From - Other reallocations]]","v":0},{"$f":"Dataset[[#This Row],[2024/25 From - Spending review Topic 1]]+Dataset[[#This Row],[2024/25 From - Spending review Topic 2]]+Dataset[[#This Row],[2024/25 From - Spending review Topic 3]]+Dataset[[#This Row],[2024/25 From - Spending review Topic 4]]+Dataset[[#This Row],[2024/25 From - Other reallocations]]","v":0},{"$f":"Dataset[[#This Row],[2025/26 From - Spending review Topic 1]]+Dataset[[#This Row],[2025/26 From - Spending review Topic 2]]+Dataset[[#This Row],[2025/26 From - Spending review Topic 3]]+Dataset[[#This Row],[2025/26 From - Spending review Topic 4]]+Dataset[[#This Row],[2025/26 From - Other reallocations]]","v":0},{"$f":"Dataset[[#This Row],[2023/24 To - Spending review Topic 1]]+Dataset[[#This Row],[2023/24 To - Spending review Topic 2]]+Dataset[[#This Row],[2023/24 To - Spending review Topic 3]]+Dataset[[#This Row],[2023/24 To - Spending review Topic 4]]+Dataset[[#This Row],[2023/24 To - Other reallocations]]","v":0},{"$f":"Dataset[[#This Row],[2024/25 To - Spending review Topic 1]]+Dataset[[#This Row],[2024/25 To - Spending review Topic 2]]+Dataset[[#This Row],[2024/25 To - Spending review Topic 3]]+Dataset[[#This Row],[2024/25 To - Spending review Topic 4]]+Dataset[[#This Row],[2024/25 To - Other reallocations]]","v":0},{"$f":"Dataset[[#This Row],[2025/26 To - Spending review Topic 1]]+Dataset[[#This Row],[2025/26 To - Spending review Topic 2]]+Dataset[[#This Row],[2025/26 To - Spending review Topic 3]]+Dataset[[#This Row],[2025/26 To - Spending review Topic 4]]+Dataset[[#This Row],[2025/26 To - Other reallocations]]","v":0},{"$f":"Dataset[[#This Row],[2023/24 Baseline]]+Dataset[[#This Row],[2023/24 From - Total]]+Dataset[[#This Row],[2023/24 To - Total]]","v":0},{"$f":"Dataset[[#This Row],[2024/25 Baseline]]+Dataset[[#This Row],[2024/25 From - Total]]+Dataset[[#This Row],[2024/25 To - Total]]","v":0},{"$f":"Dataset[[#This Row],[2025/26 Baseline]]+Dataset[[#This Row],[2025/26 From - Total]]+Dataset[[#This Row],[2025/26 To - Total]]","v":0}]
["NAT|Non-transfer item","2|Other transfers to households","2023_24","MTEF2023",2,1,1,674,57,"02","01","01","000674","000057","02|01|01",1,2,10,53,57,"01|02|10|53|57","National","Parliament","Administration","Executive Authority","Non-transfer item","Current","Transfers and subsidies","Households","Other transfers to households","Other transfers to households","General public services","Executive and legislative organs","NAT",0,0,0,0,0,0,0,0,0,0,0,null,null,null,null,null,null,null,null,null,null,null,null,null,null,null,null,null,null,null,null,null,null,null,null,null,null,null,null,null,null,{"$f":"Dataset[[#This Row],[2023/24 From - Spending review Topic 1]]+Dataset[[#This Row],[2023/24 From - Spending review Topic 2]]+Dataset[[#This Row],[2023/24 From - Spending review Topic 3]]+Dataset[[#This Row],[2023/24 From - Spending review Topic 4]]+Dataset[[#This Row],[2023/24 From - Other reallocations]]","v":0},{"$f":"Dataset[[#This Row],[2024/25 From - Spending review Topic 1]]+Dataset[[#This Row],[2024/25 From - Spending review Topic 2]]+Dataset[[#This Row],[2024/25 From - Spending review Topic 3]]+Dataset[[#This Row],[2024/25 From - Spending review Topic 4]]+Dataset[[#This Row],[2024/25 From - Other reallocations]]","v":0},{"$f":"Dataset[[#This Row],[2025/26 From - Spending review Topic 1]]+Dataset[[#This Row],[2025/26 From - Spending review Topic 2]]+Dataset[[#This Row],[2025/26 From - Spending review Topic 3]]+Dataset[[#This Row],[2025/26 From - Spending review Topic 4]]+Dataset[[#This Row],[2025/26 From - Other reallocations]]","v":0},{"$f":"Dataset[[#This Row],[2023/24 To - Spending review Topic 1]]+Dataset[[#This Row],[2023/24 To - Spending review Topic 2]]+Dataset[[#This Row],[2023/24 To - Spending review Topic 3]]+Dataset[[#This Row],[2023/24 To - Spending review Topic 4]]+Dataset[[#This Row],[2023/24 To - Other reallocations]]","v":0},{"$f":"Dataset[[#This Row],[2024/25 To - Spending review Topic 1]]+Dataset[[#This Row],[2024/25 To - Spending review Topic 2]]+Dataset[[#This Row],[2024/25 To - Spending review Topic 3]]+Dataset[[#This Row],[2024/25 To - Spending review Topic 4]]+Dataset[[#This Row],[2024/25 To - Other reallocations]]","v":0},{"$f":"Dataset[[#This Row],[2025/26 To - Spending review Topic 1]]+Dataset[[#This Row],[2025/26 To - Spending review Topic 2]]+Dataset[[#This Row],[2025/26 To - Spending review Topic 3]]+Dataset[[#This Row],[2025/26 To - Spending review Topic 4]]+Dataset[[#This Row],[2025/26 To - Other reallocations]]","v":0},{"$f":"Dataset[[#This Row],[2023/24 Baseline]]+Dataset[[#This Row],[2023/24 From - Total]]+Dataset[[#This Row],[2023/24 To - Total]]","v":0},{"$f":"Dataset[[#This Row],[2024/25 Baseline]]+Dataset[[#This Row],[2024/25 From - Total]]+Dataset[[#This Row],[2024/25 To - Total]]","v":0},{"$f":"Dataset[[#This Row],[2025/26 Baseline]]+Dataset[[#This Row],[2025/26 From - Total]]+Dataset[[#This Row],[2025/26 To - Total]]","v":0}]
["NAT|Non-transfer item","2|Provincial Revenue Funds","2023_24","MTEF2023",2,1,1,675,58,"02","01","01","000675","000058","02|01|01",2,2,4,43,43,"02|02|04|43|43","National","Parliament","Administration","Executive Authority","Non-transfer item","Capital","Transfers and subsidies","Provinces and municipalities","Provinces","Provincial Revenue Funds","General public services","Executive and legislative organs","NAT",0,0,0,0,0,0,0,0,0,0,0,null,null,null,null,null,null,null,null,null,null,null,null,null,null,null,null,null,null,null,null,null,null,null,null,null,null,null,null,null,null,{"$f":"Dataset[[#This Row],[2023/24 From - Spending review Topic 1]]+Dataset[[#This Row],[2023/24 From - Spending review Topic 2]]+Dataset[[#This Row],[2023/24 From - Spending review Topic 3]]+Dataset[[#This Row],[2023/24 From - Spending review Topic 4]]+Dataset[[#This Row],[2023/24 From - Other reallocations]]","v":0},{"$f":"Dataset[[#This Row],[2024/25 From - Spending review Topic 1]]+Dataset[[#This Row],[2024/25 From - Spending review Topic 2]]+Dataset[[#This Row],[2024/25 From - Spending review Topic 3]]+Dataset[[#This Row],[2024/25 From - Spending review Topic 4]]+Dataset[[#This Row],[2024/25 From - Other reallocations]]","v":0},{"$f":"Dataset[[#This Row],[2025/26 From - Spending review Topic 1]]+Dataset[[#This Row],[2025/26 From - Spending review Topic 2]]+Dataset[[#This Row],[2025/26 From - Spending review Topic 3]]+Dataset[[#This Row],[2025/26 From - Spending review Topic 4]]+Dataset[[#This Row],[2025/26 From - Other reallocations]]","v":0},{"$f":"Dataset[[#This Row],[2023/24 To - Spending review Topic 1]]+Dataset[[#This Row],[2023/24 To - Spending review Topic 2]]+Dataset[[#This Row],[2023/24 To - Spending review Topic 3]]+Dataset[[#This Row],[2023/24 To - Spending review Topic 4]]+Dataset[[#This Row],[2023/24 To - Other reallocations]]","v":0},{"$f":"Dataset[[#This Row],[2024/25 To - Spending review Topic 1]]+Dataset[[#This Row],[2024/25 To - Spending review Topic 2]]+Dataset[[#This Row],[2024/25 To - Spending review Topic 3]]+Dataset[[#This Row],[2024/25 To - Spending review Topic 4]]+Dataset[[#This Row],[2024/25 To - Other reallocations]]","v":0},{"$f":"Dataset[[#This Row],[2025/26 To - Spending review Topic 1]]+Dataset[[#This Row],[2025/26 To - Spending review Topic 2]]+Dataset[[#This Row],[2025/26 To - Spending review Topic 3]]+Dataset[[#This Row],[2025/26 To - Spending review Topic 4]]+Dataset[[#This Row],[2025/26 To - Other reallocations]]","v":0},{"$f":"Dataset[[#This Row],[2023/24 Baseline]]+Dataset[[#This Row],[2023/24 From - Total]]+Dataset[[#This Row],[2023/24 To - Total]]","v":0},{"$f":"Dataset[[#This Row],[2024/25 Baseline]]+Dataset[[#This Row],[2024/25 From - Total]]+Dataset[[#This Row],[2024/25 To - Total]]","v":0},{"$f":"Dataset[[#This Row],[2025/26 Baseline]]+Dataset[[#This Row],[2025/26 From - Total]]+Dataset[[#This Row],[2025/26 To - Total]]","v":0}]
["NAT|Non-transfer item","2|Municipal bank accounts","2023_24","MTEF2023",2,1,1,676,59,"02","01","01","000676","000059","02|01|01",2,2,4,44,45,"02|02|04|44|45","National","Parliament","Administration","Executive Authority","Non-transfer item","Capital","Transfers and subsidies","Provinces and municipalities","Municipalities","Municipal bank accounts","General public services","Executive and legislative organs","NAT",0,0,0,0,0,0,0,0,0,0,0,null,null,null,null,null,null,null,null,null,null,null,null,null,null,null,null,null,null,null,null,null,null,null,null,null,null,null,null,null,null,{"$f":"Dataset[[#This Row],[2023/24 From - Spending review Topic 1]]+Dataset[[#This Row],[2023/24 From - Spending review Topic 2]]+Dataset[[#This Row],[2023/24 From - Spending review Topic 3]]+Dataset[[#This Row],[2023/24 From - Spending review Topic 4]]+Dataset[[#This Row],[2023/24 From - Other reallocations]]","v":0},{"$f":"Dataset[[#This Row],[2024/25 From - Spending review Topic 1]]+Dataset[[#This Row],[2024/25 From - Spending review Topic 2]]+Dataset[[#This Row],[2024/25 From - Spending review Topic 3]]+Dataset[[#This Row],[2024/25 From - Spending review Topic 4]]+Dataset[[#This Row],[2024/25 From - Other reallocations]]","v":0},{"$f":"Dataset[[#This Row],[2025/26 From - Spending review Topic 1]]+Dataset[[#This Row],[2025/26 From - Spending review Topic 2]]+Dataset[[#This Row],[2025/26 From - Spending review Topic 3]]+Dataset[[#This Row],[2025/26 From - Spending review Topic 4]]+Dataset[[#This Row],[2025/26 From - Other reallocations]]","v":0},{"$f":"Dataset[[#This Row],[2023/24 To - Spending review Topic 1]]+Dataset[[#This Row],[2023/24 To - Spending review Topic 2]]+Dataset[[#This Row],[2023/24 To - Spending review Topic 3]]+Dataset[[#This Row],[2023/24 To - Spending review Topic 4]]+Dataset[[#This Row],[2023/24 To - Other reallocations]]","v":0},{"$f":"Dataset[[#This Row],[2024/25 To - Spending review Topic 1]]+Dataset[[#This Row],[2024/25 To - Spending review Topic 2]]+Dataset[[#This Row],[2024/25 To - Spending review Topic 3]]+Dataset[[#This Row],[2024/25 To - Spending review Topic 4]]+Dataset[[#This Row],[2024/25 To - Other reallocations]]","v":0},{"$f":"Dataset[[#This Row],[2025/26 To - Spending review Topic 1]]+Dataset[[#This Row],[2025/26 To - Spending review Topic 2]]+Dataset[[#This Row],[2025/26 To - Spending review Topic 3]]+Dataset[[#This Row],[2025/26 To - Spending review Topic 4]]+Dataset[[#This Row],[2025/26 To - Other reallocations]]","v":0},{"$f":"Dataset[[#This Row],[2023/24 Baseline]]+Dataset[[#This Row],[2023/24 From - Total]]+Dataset[[#This Row],[2023/24 To - Total]]","v":0},{"$f":"Dataset[[#This Row],[2024/25 Baseline]]+Dataset[[#This Row],[2024/25 From - Total]]+Dataset[[#This Row],[2024/25 To - Total]]","v":0},{"$f":"Dataset[[#This Row],[2025/26 Baseline]]+Dataset[[#This Row],[2025/26 From - Total]]+Dataset[[#This Row],[2025/26 To - Total]]","v":0}]
["NAT|Non-transfer item","2|Departmental agencies (non-business entities)","2023_24","MTEF2023",2,1,1,677,60,"02","01","01","000677","000060","02|01|01",2,2,5,46,48,"02|02|05|46|48","National","Parliament","Administration","Executive Authority","Non-transfer item","Capital","Transfers and subsidies","Departmental agencies and accounts","Departmental agencies (non-business entities)","Departmental agencies (non-business entities)","General public services","Executive and legislative organs","NAT",0,0,0,0,0,0,0,0,0,0,0,null,null,null,null,null,null,null,null,null,null,null,null,null,null,null,null,null,null,null,null,null,null,null,null,null,null,null,null,null,null,{"$f":"Dataset[[#This Row],[2023/24 From - Spending review Topic 1]]+Dataset[[#This Row],[2023/24 From - Spending review Topic 2]]+Dataset[[#This Row],[2023/24 From - Spending review Topic 3]]+Dataset[[#This Row],[2023/24 From - Spending review Topic 4]]+Dataset[[#This Row],[2023/24 From - Other reallocations]]","v":0},{"$f":"Dataset[[#This Row],[2024/25 From - Spending review Topic 1]]+Dataset[[#This Row],[2024/25 From - Spending review Topic 2]]+Dataset[[#This Row],[2024/25 From - Spending review Topic 3]]+Dataset[[#This Row],[2024/25 From - Spending review Topic 4]]+Dataset[[#This Row],[2024/25 From - Other reallocations]]","v":0},{"$f":"Dataset[[#This Row],[2025/26 From - Spending review Topic 1]]+Dataset[[#This Row],[2025/26 From - Spending review Topic 2]]+Dataset[[#This Row],[2025/26 From - Spending review Topic 3]]+Dataset[[#This Row],[2025/26 From - Spending review Topic 4]]+Dataset[[#This Row],[2025/26 From - Other reallocations]]","v":0},{"$f":"Dataset[[#This Row],[2023/24 To - Spending review Topic 1]]+Dataset[[#This Row],[2023/24 To - Spending review Topic 2]]+Dataset[[#This Row],[2023/24 To - Spending review Topic 3]]+Dataset[[#This Row],[2023/24 To - Spending review Topic 4]]+Dataset[[#This Row],[2023/24 To - Other reallocations]]","v":0},{"$f":"Dataset[[#This Row],[2024/25 To - Spending review Topic 1]]+Dataset[[#This Row],[2024/25 To - Spending review Topic 2]]+Dataset[[#This Row],[2024/25 To - Spending review Topic 3]]+Dataset[[#This Row],[2024/25 To - Spending review Topic 4]]+Dataset[[#This Row],[2024/25 To - Other reallocations]]","v":0},{"$f":"Dataset[[#This Row],[2025/26 To - Spending review Topic 1]]+Dataset[[#This Row],[2025/26 To - Spending review Topic 2]]+Dataset[[#This Row],[2025/26 To - Spending review Topic 3]]+Dataset[[#This Row],[2025/26 To - Spending review Topic 4]]+Dataset[[#This Row],[2025/26 To - Other reallocations]]","v":0},{"$f":"Dataset[[#This Row],[2023/24 Baseline]]+Dataset[[#This Row],[2023/24 From - Total]]+Dataset[[#This Row],[2023/24 To - Total]]","v":0},{"$f":"Dataset[[#This Row],[2024/25 Baseline]]+Dataset[[#This Row],[2024/25 From - Total]]+Dataset[[#This Row],[2024/25 To - Total]]","v":0},{"$f":"Dataset[[#This Row],[2025/26 Baseline]]+Dataset[[#This Row],[2025/26 From - Total]]+Dataset[[#This Row],[2025/26 To - Total]]","v":0}]
["NAT|Non-transfer item","2|Higher education institutions","2023_24","MTEF2023",2,1,1,678,61,"02","01","01","000678","000061","02|01|01",2,2,6,47,49,"02|02|06|47|49","National","Parliament","Administration","Executive Authority","Non-transfer item","Capital","Transfers and subsidies","Higher education institutions","Higher education institutions","Higher education institutions","General public services","Executive and legislative organs","NAT",0,0,0,0,0,0,0,0,0,0,0,null,null,null,null,null,null,null,null,null,null,null,null,null,null,null,null,null,null,null,null,null,null,null,null,null,null,null,null,null,null,{"$f":"Dataset[[#This Row],[2023/24 From - Spending review Topic 1]]+Dataset[[#This Row],[2023/24 From - Spending review Topic 2]]+Dataset[[#This Row],[2023/24 From - Spending review Topic 3]]+Dataset[[#This Row],[2023/24 From - Spending review Topic 4]]+Dataset[[#This Row],[2023/24 From - Other reallocations]]","v":0},{"$f":"Dataset[[#This Row],[2024/25 From - Spending review Topic 1]]+Dataset[[#This Row],[2024/25 From - Spending review Topic 2]]+Dataset[[#This Row],[2024/25 From - Spending review Topic 3]]+Dataset[[#This Row],[2024/25 From - Spending review Topic 4]]+Dataset[[#This Row],[2024/25 From - Other reallocations]]","v":0},{"$f":"Dataset[[#This Row],[2025/26 From - Spending review Topic 1]]+Dataset[[#This Row],[2025/26 From - Spending review Topic 2]]+Dataset[[#This Row],[2025/26 From - Spending review Topic 3]]+Dataset[[#This Row],[2025/26 From - Spending review Topic 4]]+Dataset[[#This Row],[2025/26 From - Other reallocations]]","v":0},{"$f":"Dataset[[#This Row],[2023/24 To - Spending review Topic 1]]+Dataset[[#This Row],[2023/24 To - Spending review Topic 2]]+Dataset[[#This Row],[2023/24 To - Spending review Topic 3]]+Dataset[[#This Row],[2023/24 To - Spending review Topic 4]]+Dataset[[#This Row],[2023/24 To - Other reallocations]]","v":0},{"$f":"Dataset[[#This Row],[2024/25 To - Spending review Topic 1]]+Dataset[[#This Row],[2024/25 To - Spending review Topic 2]]+Dataset[[#This Row],[2024/25 To - Spending review Topic 3]]+Dataset[[#This Row],[2024/25 To - Spending review Topic 4]]+Dataset[[#This Row],[2024/25 To - Other reallocations]]","v":0},{"$f":"Dataset[[#This Row],[2025/26 To - Spending review Topic 1]]+Dataset[[#This Row],[2025/26 To - Spending review Topic 2]]+Dataset[[#This Row],[2025/26 To - Spending review Topic 3]]+Dataset[[#This Row],[2025/26 To - Spending review Topic 4]]+Dataset[[#This Row],[2025/26 To - Other reallocations]]","v":0},{"$f":"Dataset[[#This Row],[2023/24 Baseline]]+Dataset[[#This Row],[2023/24 From - Total]]+Dataset[[#This Row],[2023/24 To - Total]]","v":0},{"$f":"Dataset[[#This Row],[2024/25 Baseline]]+Dataset[[#This Row],[2024/25 From - Total]]+Dataset[[#This Row],[2024/25 To - Total]]","v":0},{"$f":"Dataset[[#This Row],[2025/26 Baseline]]+Dataset[[#This Row],[2025/26 From - Total]]+Dataset[[#This Row],[2025/26 To - Total]]","v":0}]
["NAT|Non-transfer item","2|Foreign governments and international organisations","2023_24","MTEF2023",2,1,1,679,62,"02","01","01","000679","000062","02|01|01",2,2,7,48,50,"02|02|07|48|50","National","Parliament","Administration","Executive Authority","Non-transfer item","Capital","Transfers and subsidies","Foreign governments and international organisations","Foreign governments and international organisations","Foreign governments and international organisations","General public services","Executive and legislative organs","NAT",0,0,0,0,0,0,0,0,0,0,0,null,null,null,null,null,null,null,null,null,null,null,null,null,null,null,null,null,null,null,null,null,null,null,null,null,null,null,null,null,null,{"$f":"Dataset[[#This Row],[2023/24 From - Spending review Topic 1]]+Dataset[[#This Row],[2023/24 From - Spending review Topic 2]]+Dataset[[#This Row],[2023/24 From - Spending review Topic 3]]+Dataset[[#This Row],[2023/24 From - Spending review Topic 4]]+Dataset[[#This Row],[2023/24 From - Other reallocations]]","v":0},{"$f":"Dataset[[#This Row],[2024/25 From - Spending review Topic 1]]+Dataset[[#This Row],[2024/25 From - Spending review Topic 2]]+Dataset[[#This Row],[2024/25 From - Spending review Topic 3]]+Dataset[[#This Row],[2024/25 From - Spending review Topic 4]]+Dataset[[#This Row],[2024/25 From - Other reallocations]]","v":0},{"$f":"Dataset[[#This Row],[2025/26 From - Spending review Topic 1]]+Dataset[[#This Row],[2025/26 From - Spending review Topic 2]]+Dataset[[#This Row],[2025/26 From - Spending review Topic 3]]+Dataset[[#This Row],[2025/26 From - Spending review Topic 4]]+Dataset[[#This Row],[2025/26 From - Other reallocations]]","v":0},{"$f":"Dataset[[#This Row],[2023/24 To - Spending review Topic 1]]+Dataset[[#This Row],[2023/24 To - Spending review Topic 2]]+Dataset[[#This Row],[2023/24 To - Spending review Topic 3]]+Dataset[[#This Row],[2023/24 To - Spending review Topic 4]]+Dataset[[#This Row],[2023/24 To - Other reallocations]]","v":0},{"$f":"Dataset[[#This Row],[2024/25 To - Spending review Topic 1]]+Dataset[[#This Row],[2024/25 To - Spending review Topic 2]]+Dataset[[#This Row],[2024/25 To - Spending review Topic 3]]+Dataset[[#This Row],[2024/25 To - Spending review Topic 4]]+Dataset[[#This Row],[2024/25 To - Other reallocations]]","v":0},{"$f":"Dataset[[#This Row],[2025/26 To - Spending review Topic 1]]+Dataset[[#This Row],[2025/26 To - Spending review Topic 2]]+Dataset[[#This Row],[2025/26 To - Spending review Topic 3]]+Dataset[[#This Row],[2025/26 To - Spending review Topic 4]]+Dataset[[#This Row],[2025/26 To - Other reallocations]]","v":0},{"$f":"Dataset[[#This Row],[2023/24 Baseline]]+Dataset[[#This Row],[2023/24 From - Total]]+Dataset[[#This Row],[2023/24 To - Total]]","v":0},{"$f":"Dataset[[#This Row],[2024/25 Baseline]]+Dataset[[#This Row],[2024/25 From - Total]]+Dataset[[#This Row],[2024/25 To - Total]]","v":0},{"$f":"Dataset[[#This Row],[2025/26 Baseline]]+Dataset[[#This Row],[2025/26 From - Total]]+Dataset[[#This Row],[2025/26 To - Total]]","v":0}]
["NAT|Non-transfer item","2|Subsidies on products and production (pc)","2023_24","MTEF2023",2,1,1,680,63,"02","01","01","000680","000063","02|01|01",2,2,8,49,51,"02|02|08|49|51","National","Parliament","Administration","Executive Authority","Non-transfer item","Capital","Transfers and subsidies","Public corporations and private enterprises","Public corporations","Subsidies on products and production (pc)","General public services","Executive and legislative organs","NAT",0,0,0,0,0,0,0,0,0,0,0,null,null,null,null,null,null,null,null,null,null,null,null,null,null,null,null,null,null,null,null,null,null,null,null,null,null,null,null,null,null,{"$f":"Dataset[[#This Row],[2023/24 From - Spending review Topic 1]]+Dataset[[#This Row],[2023/24 From - Spending review Topic 2]]+Dataset[[#This Row],[2023/24 From - Spending review Topic 3]]+Dataset[[#This Row],[2023/24 From - Spending review Topic 4]]+Dataset[[#This Row],[2023/24 From - Other reallocations]]","v":0},{"$f":"Dataset[[#This Row],[2024/25 From - Spending review Topic 1]]+Dataset[[#This Row],[2024/25 From - Spending review Topic 2]]+Dataset[[#This Row],[2024/25 From - Spending review Topic 3]]+Dataset[[#This Row],[2024/25 From - Spending review Topic 4]]+Dataset[[#This Row],[2024/25 From - Other reallocations]]","v":0},{"$f":"Dataset[[#This Row],[2025/26 From - Spending review Topic 1]]+Dataset[[#This Row],[2025/26 From - Spending review Topic 2]]+Dataset[[#This Row],[2025/26 From - Spending review Topic 3]]+Dataset[[#This Row],[2025/26 From - Spending review Topic 4]]+Dataset[[#This Row],[2025/26 From - Other reallocations]]","v":0},{"$f":"Dataset[[#This Row],[2023/24 To - Spending review Topic 1]]+Dataset[[#This Row],[2023/24 To - Spending review Topic 2]]+Dataset[[#This Row],[2023/24 To - Spending review Topic 3]]+Dataset[[#This Row],[2023/24 To - Spending review Topic 4]]+Dataset[[#This Row],[2023/24 To - Other reallocations]]","v":0},{"$f":"Dataset[[#This Row],[2024/25 To - Spending review Topic 1]]+Dataset[[#This Row],[2024/25 To - Spending review Topic 2]]+Dataset[[#This Row],[2024/25 To - Spending review Topic 3]]+Dataset[[#This Row],[2024/25 To - Spending review Topic 4]]+Dataset[[#This Row],[2024/25 To - Other reallocations]]","v":0},{"$f":"Dataset[[#This Row],[2025/26 To - Spending review Topic 1]]+Dataset[[#This Row],[2025/26 To - Spending review Topic 2]]+Dataset[[#This Row],[2025/26 To - Spending review Topic 3]]+Dataset[[#This Row],[2025/26 To - Spending review Topic 4]]+Dataset[[#This Row],[2025/26 To - Other reallocations]]","v":0},{"$f":"Dataset[[#This Row],[2023/24 Baseline]]+Dataset[[#This Row],[2023/24 From - Total]]+Dataset[[#This Row],[2023/24 To - Total]]","v":0},{"$f":"Dataset[[#This Row],[2024/25 Baseline]]+Dataset[[#This Row],[2024/25 From - Total]]+Dataset[[#This Row],[2024/25 To - Total]]","v":0},{"$f":"Dataset[[#This Row],[2025/26 Baseline]]+Dataset[[#This Row],[2025/26 From - Total]]+Dataset[[#This Row],[2025/26 To - Total]]","v":0}]
["NAT|Non-transfer item","2|Other transfers to public corporations","2023_24","MTEF2023",2,1,1,681,64,"02","01","01","000681","000064","02|01|01",2,2,8,49,52,"02|02|08|49|52","National","Parliament","Administration","Executive Authority","Non-transfer item","Capital","Transfers and subsidies","Public corporations and private enterprises","Public corporations","Other transfers to public corporations","General public services","Executive and legislative organs","NAT",0,0,0,0,0,0,0,0,0,0,0,null,null,null,null,null,null,null,null,null,null,null,null,null,null,null,null,null,null,null,null,null,null,null,null,null,null,null,null,null,null,{"$f":"Dataset[[#This Row],[2023/24 From - Spending review Topic 1]]+Dataset[[#This Row],[2023/24 From - Spending review Topic 2]]+Dataset[[#This Row],[2023/24 From - Spending review Topic 3]]+Dataset[[#This Row],[2023/24 From - Spending review Topic 4]]+Dataset[[#This Row],[2023/24 From - Other reallocations]]","v":0},{"$f":"Dataset[[#This Row],[2024/25 From - Spending review Topic 1]]+Dataset[[#This Row],[2024/25 From - Spending review Topic 2]]+Dataset[[#This Row],[2024/25 From - Spending review Topic 3]]+Dataset[[#This Row],[2024/25 From - Spending review Topic 4]]+Dataset[[#This Row],[2024/25 From - Other reallocations]]","v":0},{"$f":"Dataset[[#This Row],[2025/26 From - Spending review Topic 1]]+Dataset[[#This Row],[2025/26 From - Spending review Topic 2]]+Dataset[[#This Row],[2025/26 From - Spending review Topic 3]]+Dataset[[#This Row],[2025/26 From - Spending review Topic 4]]+Dataset[[#This Row],[2025/26 From - Other reallocations]]","v":0},{"$f":"Dataset[[#This Row],[2023/24 To - Spending review Topic 1]]+Dataset[[#This Row],[2023/24 To - Spending review Topic 2]]+Dataset[[#This Row],[2023/24 To - Spending review Topic 3]]+Dataset[[#This Row],[2023/24 To - Spending review Topic 4]]+Dataset[[#This Row],[2023/24 To - Other reallocations]]","v":0},{"$f":"Dataset[[#This Row],[2024/25 To - Spending review Topic 1]]+Dataset[[#This Row],[2024/25 To - Spending review Topic 2]]+Dataset[[#This Row],[2024/25 To - Spending review Topic 3]]+Dataset[[#This Row],[2024/25 To - Spending review Topic 4]]+Dataset[[#This Row],[2024/25 To - Other reallocations]]","v":0},{"$f":"Dataset[[#This Row],[2025/26 To - Spending review Topic 1]]+Dataset[[#This Row],[2025/26 To - Spending review Topic 2]]+Dataset[[#This Row],[2025/26 To - Spending review Topic 3]]+Dataset[[#This Row],[2025/26 To - Spending review Topic 4]]+Dataset[[#This Row],[2025/26 To - Other reallocations]]","v":0},{"$f":"Dataset[[#This Row],[2023/24 Baseline]]+Dataset[[#This Row],[2023/24 From - Total]]+Dataset[[#This Row],[2023/24 To - Total]]","v":0},{"$f":"Dataset[[#This Row],[2024/25 Baseline]]+Dataset[[#This Row],[2024/25 From - Total]]+Dataset[[#This Row],[2024/25 To - Total]]","v":0},{"$f":"Dataset[[#This Row],[2025/26 Baseline]]+Dataset[[#This Row],[2025/26 From - Total]]+Dataset[[#This Row],[2025/26 To - Total]]","v":0}]
["NAT|Non-transfer item","2|Other transfers to private enterprises","2023_24","MTEF2023",2,1,1,682,65,"02","01","01","000682","000065","02|01|01",2,2,8,50,54,"02|02|08|50|54","National","Parliament","Administration","Executive Authority","Non-transfer item","Capital","Transfers and subsidies","Public corporations and private enterprises","Private enterprises","Other transfers to private enterprises","General public services","Executive and legislative organs","NAT",0,0,0,0,0,0,0,0,0,0,0,null,null,null,null,null,null,null,null,null,null,null,null,null,null,null,null,null,null,null,null,null,null,null,null,null,null,null,null,null,null,{"$f":"Dataset[[#This Row],[2023/24 From - Spending review Topic 1]]+Dataset[[#This Row],[2023/24 From - Spending review Topic 2]]+Dataset[[#This Row],[2023/24 From - Spending review Topic 3]]+Dataset[[#This Row],[2023/24 From - Spending review Topic 4]]+Dataset[[#This Row],[2023/24 From - Other reallocations]]","v":0},{"$f":"Dataset[[#This Row],[2024/25 From - Spending review Topic 1]]+Dataset[[#This Row],[2024/25 From - Spending review Topic 2]]+Dataset[[#This Row],[2024/25 From - Spending review Topic 3]]+Dataset[[#This Row],[2024/25 From - Spending review Topic 4]]+Dataset[[#This Row],[2024/25 From - Other reallocations]]","v":0},{"$f":"Dataset[[#This Row],[2025/26 From - Spending review Topic 1]]+Dataset[[#This Row],[2025/26 From - Spending review Topic 2]]+Dataset[[#This Row],[2025/26 From - Spending review Topic 3]]+Dataset[[#This Row],[2025/26 From - Spending review Topic 4]]+Dataset[[#This Row],[2025/26 From - Other reallocations]]","v":0},{"$f":"Dataset[[#This Row],[2023/24 To - Spending review Topic 1]]+Dataset[[#This Row],[2023/24 To - Spending review Topic 2]]+Dataset[[#This Row],[2023/24 To - Spending review Topic 3]]+Dataset[[#This Row],[2023/24 To - Spending review Topic 4]]+Dataset[[#This Row],[2023/24 To - Other reallocations]]","v":0},{"$f":"Dataset[[#This Row],[2024/25 To - Spending review Topic 1]]+Dataset[[#This Row],[2024/25 To - Spending review Topic 2]]+Dataset[[#This Row],[2024/25 To - Spending review Topic 3]]+Dataset[[#This Row],[2024/25 To - Spending review Topic 4]]+Dataset[[#This Row],[2024/25 To - Other reallocations]]","v":0},{"$f":"Dataset[[#This Row],[2025/26 To - Spending review Topic 1]]+Dataset[[#This Row],[2025/26 To - Spending review Topic 2]]+Dataset[[#This Row],[2025/26 To - Spending review Topic 3]]+Dataset[[#This Row],[2025/26 To - Spending review Topic 4]]+Dataset[[#This Row],[2025/26 To - Other reallocations]]","v":0},{"$f":"Dataset[[#This Row],[2023/24 Baseline]]+Dataset[[#This Row],[2023/24 From - Total]]+Dataset[[#This Row],[2023/24 To - Total]]","v":0},{"$f":"Dataset[[#This Row],[2024/25 Baseline]]+Dataset[[#This Row],[2024/25 From - Total]]+Dataset[[#This Row],[2024/25 To - Total]]","v":0},{"$f":"Dataset[[#This Row],[2025/26 Baseline]]+Dataset[[#This Row],[2025/26 From - Total]]+Dataset[[#This Row],[2025/26 To - Total]]","v":0}]
["NAT|Non-transfer item","2|Non-profit institutions","2023_24","MTEF2023",2,1,1,683,66,"02","01","01","000683","000066","02|01|01",2,2,9,51,55,"02|02|09|51|55","National","Parliament","Administration","Executive Authority","Non-transfer item","Capital","Transfers and subsidies","Non-profit institutions","Non-profit institutions","Non-profit institutions","General public services","Executive and legislative organs","NAT",0,0,0,0,0,0,0,0,0,0,0,null,null,null,null,null,null,null,null,null,null,null,null,null,null,null,null,null,null,null,null,null,null,null,null,null,null,null,null,null,null,{"$f":"Dataset[[#This Row],[2023/24 From - Spending review Topic 1]]+Dataset[[#This Row],[2023/24 From - Spending review Topic 2]]+Dataset[[#This Row],[2023/24 From - Spending review Topic 3]]+Dataset[[#This Row],[2023/24 From - Spending review Topic 4]]+Dataset[[#This Row],[2023/24 From - Other reallocations]]","v":0},{"$f":"Dataset[[#This Row],[2024/25 From - Spending review Topic 1]]+Dataset[[#This Row],[2024/25 From - Spending review Topic 2]]+Dataset[[#This Row],[2024/25 From - Spending review Topic 3]]+Dataset[[#This Row],[2024/25 From - Spending review Topic 4]]+Dataset[[#This Row],[2024/25 From - Other reallocations]]","v":0},{"$f":"Dataset[[#This Row],[2025/26 From - Spending review Topic 1]]+Dataset[[#This Row],[2025/26 From - Spending review Topic 2]]+Dataset[[#This Row],[2025/26 From - Spending review Topic 3]]+Dataset[[#This Row],[2025/26 From - Spending review Topic 4]]+Dataset[[#This Row],[2025/26 From - Other reallocations]]","v":0},{"$f":"Dataset[[#This Row],[2023/24 To - Spending review Topic 1]]+Dataset[[#This Row],[2023/24 To - Spending review Topic 2]]+Dataset[[#This Row],[2023/24 To - Spending review Topic 3]]+Dataset[[#This Row],[2023/24 To - Spending review Topic 4]]+Dataset[[#This Row],[2023/24 To - Other reallocations]]","v":0},{"$f":"Dataset[[#This Row],[2024/25 To - Spending review Topic 1]]+Dataset[[#This Row],[2024/25 To - Spending review Topic 2]]+Dataset[[#This Row],[2024/25 To - Spending review Topic 3]]+Dataset[[#This Row],[2024/25 To - Spending review Topic 4]]+Dataset[[#This Row],[2024/25 To - Other reallocations]]","v":0},{"$f":"Dataset[[#This Row],[2025/26 To - Spending review Topic 1]]+Dataset[[#This Row],[2025/26 To - Spending review Topic 2]]+Dataset[[#This Row],[2025/26 To - Spending review Topic 3]]+Dataset[[#This Row],[2025/26 To - Spending review Topic 4]]+Dataset[[#This Row],[2025/26 To - Other reallocations]]","v":0},{"$f":"Dataset[[#This Row],[2023/24 Baseline]]+Dataset[[#This Row],[2023/24 From - Total]]+Dataset[[#This Row],[2023/24 To - Total]]","v":0},{"$f":"Dataset[[#This Row],[2024/25 Baseline]]+Dataset[[#This Row],[2024/25 From - Total]]+Dataset[[#This Row],[2024/25 To - Total]]","v":0},{"$f":"Dataset[[#This Row],[2025/26 Baseline]]+Dataset[[#This Row],[2025/26 From - Total]]+Dataset[[#This Row],[2025/26 To - Total]]","v":0}]
["NAT|Non-transfer item","2|Other transfers to households","2023_24","MTEF2023",2,1,1,684,67,"02","01","01","000684","000067","02|01|01",2,2,10,53,57,"02|02|10|53|57","National","Parliament","Administration","Executive Authority","Non-transfer item","Capital","Transfers and subsidies","Households","Other transfers to households","Other transfers to households","General public services","Executive and legislative organs","NAT",0,0,0,0,0,0,0,0,0,0,0,null,null,null,null,null,null,null,null,null,null,null,null,null,null,null,null,null,null,null,null,null,null,null,null,null,null,null,null,null,null,{"$f":"Dataset[[#This Row],[2023/24 From - Spending review Topic 1]]+Dataset[[#This Row],[2023/24 From - Spending review Topic 2]]+Dataset[[#This Row],[2023/24 From - Spending review Topic 3]]+Dataset[[#This Row],[2023/24 From - Spending review Topic 4]]+Dataset[[#This Row],[2023/24 From - Other reallocations]]","v":0},{"$f":"Dataset[[#This Row],[2024/25 From - Spending review Topic 1]]+Dataset[[#This Row],[2024/25 From - Spending review Topic 2]]+Dataset[[#This Row],[2024/25 From - Spending review Topic 3]]+Dataset[[#This Row],[2024/25 From - Spending review Topic 4]]+Dataset[[#This Row],[2024/25 From - Other reallocations]]","v":0},{"$f":"Dataset[[#This Row],[2025/26 From - Spending review Topic 1]]+Dataset[[#This Row],[2025/26 From - Spending review Topic 2]]+Dataset[[#This Row],[2025/26 From - Spending review Topic 3]]+Dataset[[#This Row],[2025/26 From - Spending review Topic 4]]+Dataset[[#This Row],[2025/26 From - Other reallocations]]","v":0},{"$f":"Dataset[[#This Row],[2023/24 To - Spending review Topic 1]]+Dataset[[#This Row],[2023/24 To - Spending review Topic 2]]+Dataset[[#This Row],[2023/24 To - Spending review Topic 3]]+Dataset[[#This Row],[2023/24 To - Spending review Topic 4]]+Dataset[[#This Row],[2023/24 To - Other reallocations]]","v":0},{"$f":"Dataset[[#This Row],[2024/25 To - Spending review Topic 1]]+Dataset[[#This Row],[2024/25 To - Spending review Topic 2]]+Dataset[[#This Row],[2024/25 To - Spending review Topic 3]]+Dataset[[#This Row],[2024/25 To - Spending review Topic 4]]+Dataset[[#This Row],[2024/25 To - Other reallocations]]","v":0},{"$f":"Dataset[[#This Row],[2025/26 To - Spending review Topic 1]]+Dataset[[#This Row],[2025/26 To - Spending review Topic 2]]+Dataset[[#This Row],[2025/26 To - Spending review Topic 3]]+Dataset[[#This Row],[2025/26 To - Spending review Topic 4]]+Dataset[[#This Row],[2025/26 To - Other reallocations]]","v":0},{"$f":"Dataset[[#This Row],[2023/24 Baseline]]+Dataset[[#This Row],[2023/24 From - Total]]+Dataset[[#This Row],[2023/24 To - Total]]","v":0},{"$f":"Dataset[[#This Row],[2024/25 Baseline]]+Dataset[[#This Row],[2024/25 From - Total]]+Dataset[[#This Row],[2024/25 To - Total]]","v":0},{"$f":"Dataset[[#This Row],[2025/26 Baseline]]+Dataset[[#This Row],[2025/26 From - Total]]+Dataset[[#This Row],[2025/26 To - Total]]","v":0}]
["NAT|Non-transfer item","2|Buildings","2023_24","MTEF2023",2,1,1,685,68,"02","01","01","000685","000068","02|01|01",2,3,11,54,58,"02|03|11|54|58","National","Parliament","Administration","Executive Authority","Non-transfer item","Capital","Payments for capital assets","Buildings and other fixed structures","Buildings","Buildings","General public services","Executive and legislative organs","NAT",0,0,0,0,0,0,0,0,0,0,0,null,null,null,null,null,null,null,null,null,null,null,null,null,null,null,null,null,null,null,null,null,null,null,null,null,null,null,null,null,null,{"$f":"Dataset[[#This Row],[2023/24 From - Spending review Topic 1]]+Dataset[[#This Row],[2023/24 From - Spending review Topic 2]]+Dataset[[#This Row],[2023/24 From - Spending review Topic 3]]+Dataset[[#This Row],[2023/24 From - Spending review Topic 4]]+Dataset[[#This Row],[2023/24 From - Other reallocations]]","v":0},{"$f":"Dataset[[#This Row],[2024/25 From - Spending review Topic 1]]+Dataset[[#This Row],[2024/25 From - Spending review Topic 2]]+Dataset[[#This Row],[2024/25 From - Spending review Topic 3]]+Dataset[[#This Row],[2024/25 From - Spending review Topic 4]]+Dataset[[#This Row],[2024/25 From - Other reallocations]]","v":0},{"$f":"Dataset[[#This Row],[2025/26 From - Spending review Topic 1]]+Dataset[[#This Row],[2025/26 From - Spending review Topic 2]]+Dataset[[#This Row],[2025/26 From - Spending review Topic 3]]+Dataset[[#This Row],[2025/26 From - Spending review Topic 4]]+Dataset[[#This Row],[2025/26 From - Other reallocations]]","v":0},{"$f":"Dataset[[#This Row],[2023/24 To - Spending review Topic 1]]+Dataset[[#This Row],[2023/24 To - Spending review Topic 2]]+Dataset[[#This Row],[2023/24 To - Spending review Topic 3]]+Dataset[[#This Row],[2023/24 To - Spending review Topic 4]]+Dataset[[#This Row],[2023/24 To - Other reallocations]]","v":0},{"$f":"Dataset[[#This Row],[2024/25 To - Spending review Topic 1]]+Dataset[[#This Row],[2024/25 To - Spending review Topic 2]]+Dataset[[#This Row],[2024/25 To - Spending review Topic 3]]+Dataset[[#This Row],[2024/25 To - Spending review Topic 4]]+Dataset[[#This Row],[2024/25 To - Other reallocations]]","v":0},{"$f":"Dataset[[#This Row],[2025/26 To - Spending review Topic 1]]+Dataset[[#This Row],[2025/26 To - Spending review Topic 2]]+Dataset[[#This Row],[2025/26 To - Spending review Topic 3]]+Dataset[[#This Row],[2025/26 To - Spending review Topic 4]]+Dataset[[#This Row],[2025/26 To - Other reallocations]]","v":0},{"$f":"Dataset[[#This Row],[2023/24 Baseline]]+Dataset[[#This Row],[2023/24 From - Total]]+Dataset[[#This Row],[2023/24 To - Total]]","v":0},{"$f":"Dataset[[#This Row],[2024/25 Baseline]]+Dataset[[#This Row],[2024/25 From - Total]]+Dataset[[#This Row],[2024/25 To - Total]]","v":0},{"$f":"Dataset[[#This Row],[2025/26 Baseline]]+Dataset[[#This Row],[2025/26 From - Total]]+Dataset[[#This Row],[2025/26 To - Total]]","v":0}]
["NAT|Non-transfer item","2|Other fixed structures","2023_24","MTEF2023",2,1,1,686,69,"02","01","01","000686","000069","02|01|01",2,3,11,55,59,"02|03|11|55|59","National","Parliament","Administration","Executive Authority","Non-transfer item","Capital","Payments for capital assets","Buildings and other fixed structures","Other fixed structures","Other fixed structures","General public services","Executive and legislative organs","NAT",0,0,0,0,0,0,0,0,0,0,0,null,null,null,null,null,null,null,null,null,null,null,null,null,null,null,null,null,null,null,null,null,null,null,null,null,null,null,null,null,null,{"$f":"Dataset[[#This Row],[2023/24 From - Spending review Topic 1]]+Dataset[[#This Row],[2023/24 From - Spending review Topic 2]]+Dataset[[#This Row],[2023/24 From - Spending review Topic 3]]+Dataset[[#This Row],[2023/24 From - Spending review Topic 4]]+Dataset[[#This Row],[2023/24 From - Other reallocations]]","v":0},{"$f":"Dataset[[#This Row],[2024/25 From - Spending review Topic 1]]+Dataset[[#This Row],[2024/25 From - Spending review Topic 2]]+Dataset[[#This Row],[2024/25 From - Spending review Topic 3]]+Dataset[[#This Row],[2024/25 From - Spending review Topic 4]]+Dataset[[#This Row],[2024/25 From - Other reallocations]]","v":0},{"$f":"Dataset[[#This Row],[2025/26 From - Spending review Topic 1]]+Dataset[[#This Row],[2025/26 From - Spending review Topic 2]]+Dataset[[#This Row],[2025/26 From - Spending review Topic 3]]+Dataset[[#This Row],[2025/26 From - Spending review Topic 4]]+Dataset[[#This Row],[2025/26 From - Other reallocations]]","v":0},{"$f":"Dataset[[#This Row],[2023/24 To - Spending review Topic 1]]+Dataset[[#This Row],[2023/24 To - Spending review Topic 2]]+Dataset[[#This Row],[2023/24 To - Spending review Topic 3]]+Dataset[[#This Row],[2023/24 To - Spending review Topic 4]]+Dataset[[#This Row],[2023/24 To - Other reallocations]]","v":0},{"$f":"Dataset[[#This Row],[2024/25 To - Spending review Topic 1]]+Dataset[[#This Row],[2024/25 To - Spending review Topic 2]]+Dataset[[#This Row],[2024/25 To - Spending review Topic 3]]+Dataset[[#This Row],[2024/25 To - Spending review Topic 4]]+Dataset[[#This Row],[2024/25 To - Other reallocations]]","v":0},{"$f":"Dataset[[#This Row],[2025/26 To - Spending review Topic 1]]+Dataset[[#This Row],[2025/26 To - Spending review Topic 2]]+Dataset[[#This Row],[2025/26 To - Spending review Topic 3]]+Dataset[[#This Row],[2025/26 To - Spending review Topic 4]]+Dataset[[#This Row],[2025/26 To - Other reallocations]]","v":0},{"$f":"Dataset[[#This Row],[2023/24 Baseline]]+Dataset[[#This Row],[2023/24 From - Total]]+Dataset[[#This Row],[2023/24 To - Total]]","v":0},{"$f":"Dataset[[#This Row],[2024/25 Baseline]]+Dataset[[#This Row],[2024/25 From - Total]]+Dataset[[#This Row],[2024/25 To - Total]]","v":0},{"$f":"Dataset[[#This Row],[2025/26 Baseline]]+Dataset[[#This Row],[2025/26 From - Total]]+Dataset[[#This Row],[2025/26 To - Total]]","v":0}]
["NAT|Non-transfer item","2|Transport equipment","2023_24","MTEF2023",2,1,1,687,70,"02","01","01","000687","000070","02|01|01",2,3,12,56,60,"02|03|12|56|60","National","Parliament","Administration","Executive Authority","Non-transfer item","Capital","Payments for capital assets","Machinery and equipment","Transport equipment","Transport equipment","General public services","Executive and legislative organs","NAT",0,0,0,0,0,0,0,0,0,0,0,null,null,null,null,null,null,null,null,null,null,null,null,null,null,null,null,null,null,null,null,null,null,null,null,null,null,null,null,null,null,{"$f":"Dataset[[#This Row],[2023/24 From - Spending review Topic 1]]+Dataset[[#This Row],[2023/24 From - Spending review Topic 2]]+Dataset[[#This Row],[2023/24 From - Spending review Topic 3]]+Dataset[[#This Row],[2023/24 From - Spending review Topic 4]]+Dataset[[#This Row],[2023/24 From - Other reallocations]]","v":0},{"$f":"Dataset[[#This Row],[2024/25 From - Spending review Topic 1]]+Dataset[[#This Row],[2024/25 From - Spending review Topic 2]]+Dataset[[#This Row],[2024/25 From - Spending review Topic 3]]+Dataset[[#This Row],[2024/25 From - Spending review Topic 4]]+Dataset[[#This Row],[2024/25 From - Other reallocations]]","v":0},{"$f":"Dataset[[#This Row],[2025/26 From - Spending review Topic 1]]+Dataset[[#This Row],[2025/26 From - Spending review Topic 2]]+Dataset[[#This Row],[2025/26 From - Spending review Topic 3]]+Dataset[[#This Row],[2025/26 From - Spending review Topic 4]]+Dataset[[#This Row],[2025/26 From - Other reallocations]]","v":0},{"$f":"Dataset[[#This Row],[2023/24 To - Spending review Topic 1]]+Dataset[[#This Row],[2023/24 To - Spending review Topic 2]]+Dataset[[#This Row],[2023/24 To - Spending review Topic 3]]+Dataset[[#This Row],[2023/24 To - Spending review Topic 4]]+Dataset[[#This Row],[2023/24 To - Other reallocations]]","v":0},{"$f":"Dataset[[#This Row],[2024/25 To - Spending review Topic 1]]+Dataset[[#This Row],[2024/25 To - Spending review Topic 2]]+Dataset[[#This Row],[2024/25 To - Spending review Topic 3]]+Dataset[[#This Row],[2024/25 To - Spending review Topic 4]]+Dataset[[#This Row],[2024/25 To - Other reallocations]]","v":0},{"$f":"Dataset[[#This Row],[2025/26 To - Spending review Topic 1]]+Dataset[[#This Row],[2025/26 To - Spending review Topic 2]]+Dataset[[#This Row],[2025/26 To - Spending review Topic 3]]+Dataset[[#This Row],[2025/26 To - Spending review Topic 4]]+Dataset[[#This Row],[2025/26 To - Other reallocations]]","v":0},{"$f":"Dataset[[#This Row],[2023/24 Baseline]]+Dataset[[#This Row],[2023/24 From - Total]]+Dataset[[#This Row],[2023/24 To - Total]]","v":0},{"$f":"Dataset[[#This Row],[2024/25 Baseline]]+Dataset[[#This Row],[2024/25 From - Total]]+Dataset[[#This Row],[2024/25 To - Total]]","v":0},{"$f":"Dataset[[#This Row],[2025/26 Baseline]]+Dataset[[#This Row],[2025/26 From - Total]]+Dataset[[#This Row],[2025/26 To - Total]]","v":0}]
["NAT|Non-transfer item","2|Other machinery and equipment","2023_24","MTEF2023",2,1,1,688,71,"02","01","01","000688","000071","02|01|01",2,3,12,57,61,"02|03|12|57|61","National","Parliament","Administration","Executive Authority","Non-transfer item","Capital","Payments for capital assets","Machinery and equipment","Other machinery and equipment","Other machinery and equipment","General public services","Executive and legislative organs","NAT",118,45,48,51,51,51,0,54,56,59,62,null,null,null,null,null,null,null,null,null,null,null,null,null,null,null,null,null,null,null,null,null,null,null,null,null,null,null,null,null,null,{"$f":"Dataset[[#This Row],[2023/24 From - Spending review Topic 1]]+Dataset[[#This Row],[2023/24 From - Spending review Topic 2]]+Dataset[[#This Row],[2023/24 From - Spending review Topic 3]]+Dataset[[#This Row],[2023/24 From - Spending review Topic 4]]+Dataset[[#This Row],[2023/24 From - Other reallocations]]","v":0},{"$f":"Dataset[[#This Row],[2024/25 From - Spending review Topic 1]]+Dataset[[#This Row],[2024/25 From - Spending review Topic 2]]+Dataset[[#This Row],[2024/25 From - Spending review Topic 3]]+Dataset[[#This Row],[2024/25 From - Spending review Topic 4]]+Dataset[[#This Row],[2024/25 From - Other reallocations]]","v":0},{"$f":"Dataset[[#This Row],[2025/26 From - Spending review Topic 1]]+Dataset[[#This Row],[2025/26 From - Spending review Topic 2]]+Dataset[[#This Row],[2025/26 From - Spending review Topic 3]]+Dataset[[#This Row],[2025/26 From - Spending review Topic 4]]+Dataset[[#This Row],[2025/26 From - Other reallocations]]","v":0},{"$f":"Dataset[[#This Row],[2023/24 To - Spending review Topic 1]]+Dataset[[#This Row],[2023/24 To - Spending review Topic 2]]+Dataset[[#This Row],[2023/24 To - Spending review Topic 3]]+Dataset[[#This Row],[2023/24 To - Spending review Topic 4]]+Dataset[[#This Row],[2023/24 To - Other reallocations]]","v":0},{"$f":"Dataset[[#This Row],[2024/25 To - Spending review Topic 1]]+Dataset[[#This Row],[2024/25 To - Spending review Topic 2]]+Dataset[[#This Row],[2024/25 To - Spending review Topic 3]]+Dataset[[#This Row],[2024/25 To - Spending review Topic 4]]+Dataset[[#This Row],[2024/25 To - Other reallocations]]","v":0},{"$f":"Dataset[[#This Row],[2025/26 To - Spending review Topic 1]]+Dataset[[#This Row],[2025/26 To - Spending review Topic 2]]+Dataset[[#This Row],[2025/26 To - Spending review Topic 3]]+Dataset[[#This Row],[2025/26 To - Spending review Topic 4]]+Dataset[[#This Row],[2025/26 To - Other reallocations]]","v":0},{"$f":"Dataset[[#This Row],[2023/24 Baseline]]+Dataset[[#This Row],[2023/24 From - Total]]+Dataset[[#This Row],[2023/24 To - Total]]","v":56},{"$f":"Dataset[[#This Row],[2024/25 Baseline]]+Dataset[[#This Row],[2024/25 From - Total]]+Dataset[[#This Row],[2024/25 To - Total]]","v":59},{"$f":"Dataset[[#This Row],[2025/26 Baseline]]+Dataset[[#This Row],[2025/26 From - Total]]+Dataset[[#This Row],[2025/26 To - Total]]","v":62}]
["NAT|Non-transfer item","2|Heritage assets","2023_24","MTEF2023",2,1,1,689,72,"02","01","01","000689","000072","02|01|01",2,3,13,58,62,"02|03|13|58|62","National","Parliament","Administration","Executive Authority","Non-transfer item","Capital","Payments for capital assets","Heritage assets","Heritage assets","Heritage assets","General public services","Executive and legislative organs","NAT",0,0,0,0,0,0,0,0,0,0,0,null,null,null,null,null,null,null,null,null,null,null,null,null,null,null,null,null,null,null,null,null,null,null,null,null,null,null,null,null,null,{"$f":"Dataset[[#This Row],[2023/24 From - Spending review Topic 1]]+Dataset[[#This Row],[2023/24 From - Spending review Topic 2]]+Dataset[[#This Row],[2023/24 From - Spending review Topic 3]]+Dataset[[#This Row],[2023/24 From - Spending review Topic 4]]+Dataset[[#This Row],[2023/24 From - Other reallocations]]","v":0},{"$f":"Dataset[[#This Row],[2024/25 From - Spending review Topic 1]]+Dataset[[#This Row],[2024/25 From - Spending review Topic 2]]+Dataset[[#This Row],[2024/25 From - Spending review Topic 3]]+Dataset[[#This Row],[2024/25 From - Spending review Topic 4]]+Dataset[[#This Row],[2024/25 From - Other reallocations]]","v":0},{"$f":"Dataset[[#This Row],[2025/26 From - Spending review Topic 1]]+Dataset[[#This Row],[2025/26 From - Spending review Topic 2]]+Dataset[[#This Row],[2025/26 From - Spending review Topic 3]]+Dataset[[#This Row],[2025/26 From - Spending review Topic 4]]+Dataset[[#This Row],[2025/26 From - Other reallocations]]","v":0},{"$f":"Dataset[[#This Row],[2023/24 To - Spending review Topic 1]]+Dataset[[#This Row],[2023/24 To - Spending review Topic 2]]+Dataset[[#This Row],[2023/24 To - Spending review Topic 3]]+Dataset[[#This Row],[2023/24 To - Spending review Topic 4]]+Dataset[[#This Row],[2023/24 To - Other reallocations]]","v":0},{"$f":"Dataset[[#This Row],[2024/25 To - Spending review Topic 1]]+Dataset[[#This Row],[2024/25 To - Spending review Topic 2]]+Dataset[[#This Row],[2024/25 To - Spending review Topic 3]]+Dataset[[#This Row],[2024/25 To - Spending review Topic 4]]+Dataset[[#This Row],[2024/25 To - Other reallocations]]","v":0},{"$f":"Dataset[[#This Row],[2025/26 To - Spending review Topic 1]]+Dataset[[#This Row],[2025/26 To - Spending review Topic 2]]+Dataset[[#This Row],[2025/26 To - Spending review Topic 3]]+Dataset[[#This Row],[2025/26 To - Spending review Topic 4]]+Dataset[[#This Row],[2025/26 To - Other reallocations]]","v":0},{"$f":"Dataset[[#This Row],[2023/24 Baseline]]+Dataset[[#This Row],[2023/24 From - Total]]+Dataset[[#This Row],[2023/24 To - Total]]","v":0},{"$f":"Dataset[[#This Row],[2024/25 Baseline]]+Dataset[[#This Row],[2024/25 From - Total]]+Dataset[[#This Row],[2024/25 To - Total]]","v":0},{"$f":"Dataset[[#This Row],[2025/26 Baseline]]+Dataset[[#This Row],[2025/26 From - Total]]+Dataset[[#This Row],[2025/26 To - Total]]","v":0}]
["NAT|Non-transfer item","2|Specialised military assets","2023_24","MTEF2023",2,1,1,690,73,"02","01","01","000690","000073","02|01|01",2,3,14,59,63,"02|03|14|59|63","National","Parliament","Administration","Executive Authority","Non-transfer item","Capital","Payments for capital assets","Specialised military assets","Specialised military assets","Specialised military assets","General public services","Executive and legislative organs","NAT",0,0,0,0,0,0,0,0,0,0,0,null,null,null,null,null,null,null,null,null,null,null,null,null,null,null,null,null,null,null,null,null,null,null,null,null,null,null,null,null,null,{"$f":"Dataset[[#This Row],[2023/24 From - Spending review Topic 1]]+Dataset[[#This Row],[2023/24 From - Spending review Topic 2]]+Dataset[[#This Row],[2023/24 From - Spending review Topic 3]]+Dataset[[#This Row],[2023/24 From - Spending review Topic 4]]+Dataset[[#This Row],[2023/24 From - Other reallocations]]","v":0},{"$f":"Dataset[[#This Row],[2024/25 From - Spending review Topic 1]]+Dataset[[#This Row],[2024/25 From - Spending review Topic 2]]+Dataset[[#This Row],[2024/25 From - Spending review Topic 3]]+Dataset[[#This Row],[2024/25 From - Spending review Topic 4]]+Dataset[[#This Row],[2024/25 From - Other reallocations]]","v":0},{"$f":"Dataset[[#This Row],[2025/26 From - Spending review Topic 1]]+Dataset[[#This Row],[2025/26 From - Spending review Topic 2]]+Dataset[[#This Row],[2025/26 From - Spending review Topic 3]]+Dataset[[#This Row],[2025/26 From - Spending review Topic 4]]+Dataset[[#This Row],[2025/26 From - Other reallocations]]","v":0},{"$f":"Dataset[[#This Row],[2023/24 To - Spending review Topic 1]]+Dataset[[#This Row],[2023/24 To - Spending review Topic 2]]+Dataset[[#This Row],[2023/24 To - Spending review Topic 3]]+Dataset[[#This Row],[2023/24 To - Spending review Topic 4]]+Dataset[[#This Row],[2023/24 To - Other reallocations]]","v":0},{"$f":"Dataset[[#This Row],[2024/25 To - Spending review Topic 1]]+Dataset[[#This Row],[2024/25 To - Spending review Topic 2]]+Dataset[[#This Row],[2024/25 To - Spending review Topic 3]]+Dataset[[#This Row],[2024/25 To - Spending review Topic 4]]+Dataset[[#This Row],[2024/25 To - Other reallocations]]","v":0},{"$f":"Dataset[[#This Row],[2025/26 To - Spending review Topic 1]]+Dataset[[#This Row],[2025/26 To - Spending review Topic 2]]+Dataset[[#This Row],[2025/26 To - Spending review Topic 3]]+Dataset[[#This Row],[2025/26 To - Spending review Topic 4]]+Dataset[[#This Row],[2025/26 To - Other reallocations]]","v":0},{"$f":"Dataset[[#This Row],[2023/24 Baseline]]+Dataset[[#This Row],[2023/24 From - Total]]+Dataset[[#This Row],[2023/24 To - Total]]","v":0},{"$f":"Dataset[[#This Row],[2024/25 Baseline]]+Dataset[[#This Row],[2024/25 From - Total]]+Dataset[[#This Row],[2024/25 To - Total]]","v":0},{"$f":"Dataset[[#This Row],[2025/26 Baseline]]+Dataset[[#This Row],[2025/26 From - Total]]+Dataset[[#This Row],[2025/26 To - Total]]","v":0}]
["NAT|Non-transfer item","2|Biological assets","2023_24","MTEF2023",2,1,1,691,74,"02","01","01","000691","000074","02|01|01",2,3,15,60,64,"02|03|15|60|64","National","Parliament","Administration","Executive Authority","Non-transfer item","Capital","Payments for capital assets","Biological assets","Biological assets","Biological assets","General public services","Executive and legislative organs","NAT",0,0,0,0,0,0,0,0,0,0,0,null,null,null,null,null,null,null,null,null,null,null,null,null,null,null,null,null,null,null,null,null,null,null,null,null,null,null,null,null,null,{"$f":"Dataset[[#This Row],[2023/24 From - Spending review Topic 1]]+Dataset[[#This Row],[2023/24 From - Spending review Topic 2]]+Dataset[[#This Row],[2023/24 From - Spending review Topic 3]]+Dataset[[#This Row],[2023/24 From - Spending review Topic 4]]+Dataset[[#This Row],[2023/24 From - Other reallocations]]","v":0},{"$f":"Dataset[[#This Row],[2024/25 From - Spending review Topic 1]]+Dataset[[#This Row],[2024/25 From - Spending review Topic 2]]+Dataset[[#This Row],[2024/25 From - Spending review Topic 3]]+Dataset[[#This Row],[2024/25 From - Spending review Topic 4]]+Dataset[[#This Row],[2024/25 From - Other reallocations]]","v":0},{"$f":"Dataset[[#This Row],[2025/26 From - Spending review Topic 1]]+Dataset[[#This Row],[2025/26 From - Spending review Topic 2]]+Dataset[[#This Row],[2025/26 From - Spending review Topic 3]]+Dataset[[#This Row],[2025/26 From - Spending review Topic 4]]+Dataset[[#This Row],[2025/26 From - Other reallocations]]","v":0},{"$f":"Dataset[[#This Row],[2023/24 To - Spending review Topic 1]]+Dataset[[#This Row],[2023/24 To - Spending review Topic 2]]+Dataset[[#This Row],[2023/24 To - Spending review Topic 3]]+Dataset[[#This Row],[2023/24 To - Spending review Topic 4]]+Dataset[[#This Row],[2023/24 To - Other reallocations]]","v":0},{"$f":"Dataset[[#This Row],[2024/25 To - Spending review Topic 1]]+Dataset[[#This Row],[2024/25 To - Spending review Topic 2]]+Dataset[[#This Row],[2024/25 To - Spending review Topic 3]]+Dataset[[#This Row],[2024/25 To - Spending review Topic 4]]+Dataset[[#This Row],[2024/25 To - Other reallocations]]","v":0},{"$f":"Dataset[[#This Row],[2025/26 To - Spending review Topic 1]]+Dataset[[#This Row],[2025/26 To - Spending review Topic 2]]+Dataset[[#This Row],[2025/26 To - Spending review Topic 3]]+Dataset[[#This Row],[2025/26 To - Spending review Topic 4]]+Dataset[[#This Row],[2025/26 To - Other reallocations]]","v":0},{"$f":"Dataset[[#This Row],[2023/24 Baseline]]+Dataset[[#This Row],[2023/24 From - Total]]+Dataset[[#This Row],[2023/24 To - Total]]","v":0},{"$f":"Dataset[[#This Row],[2024/25 Baseline]]+Dataset[[#This Row],[2024/25 From - Total]]+Dataset[[#This Row],[2024/25 To - Total]]","v":0},{"$f":"Dataset[[#This Row],[2025/26 Baseline]]+Dataset[[#This Row],[2025/26 From - Total]]+Dataset[[#This Row],[2025/26 To - Total]]","v":0}]
["NAT|Non-transfer item","2|Land and sub-soil assets","2023_24","MTEF2023",2,1,1,692,75,"02","01","01","000692","000075","02|01|01",2,3,16,61,65,"02|03|16|61|65","National","Parliament","Administration","Executive Authority","Non-transfer item","Capital","Payments for capital assets","Land and sub-soil assets","Land and sub-soil assets","Land and sub-soil assets","General public services","Executive and legislative organs","NAT",0,0,0,0,0,0,0,0,0,0,0,null,null,null,null,null,null,null,null,null,null,null,null,null,null,null,null,null,null,null,null,null,null,null,null,null,null,null,null,null,null,{"$f":"Dataset[[#This Row],[2023/24 From - Spending review Topic 1]]+Dataset[[#This Row],[2023/24 From - Spending review Topic 2]]+Dataset[[#This Row],[2023/24 From - Spending review Topic 3]]+Dataset[[#This Row],[2023/24 From - Spending review Topic 4]]+Dataset[[#This Row],[2023/24 From - Other reallocations]]","v":0},{"$f":"Dataset[[#This Row],[2024/25 From - Spending review Topic 1]]+Dataset[[#This Row],[2024/25 From - Spending review Topic 2]]+Dataset[[#This Row],[2024/25 From - Spending review Topic 3]]+Dataset[[#This Row],[2024/25 From - Spending review Topic 4]]+Dataset[[#This Row],[2024/25 From - Other reallocations]]","v":0},{"$f":"Dataset[[#This Row],[2025/26 From - Spending review Topic 1]]+Dataset[[#This Row],[2025/26 From - Spending review Topic 2]]+Dataset[[#This Row],[2025/26 From - Spending review Topic 3]]+Dataset[[#This Row],[2025/26 From - Spending review Topic 4]]+Dataset[[#This Row],[2025/26 From - Other reallocations]]","v":0},{"$f":"Dataset[[#This Row],[2023/24 To - Spending review Topic 1]]+Dataset[[#This Row],[2023/24 To - Spending review Topic 2]]+Dataset[[#This Row],[2023/24 To - Spending review Topic 3]]+Dataset[[#This Row],[2023/24 To - Spending review Topic 4]]+Dataset[[#This Row],[2023/24 To - Other reallocations]]","v":0},{"$f":"Dataset[[#This Row],[2024/25 To - Spending review Topic 1]]+Dataset[[#This Row],[2024/25 To - Spending review Topic 2]]+Dataset[[#This Row],[2024/25 To - Spending review Topic 3]]+Dataset[[#This Row],[2024/25 To - Spending review Topic 4]]+Dataset[[#This Row],[2024/25 To - Other reallocations]]","v":0},{"$f":"Dataset[[#This Row],[2025/26 To - Spending review Topic 1]]+Dataset[[#This Row],[2025/26 To - Spending review Topic 2]]+Dataset[[#This Row],[2025/26 To - Spending review Topic 3]]+Dataset[[#This Row],[2025/26 To - Spending review Topic 4]]+Dataset[[#This Row],[2025/26 To - Other reallocations]]","v":0},{"$f":"Dataset[[#This Row],[2023/24 Baseline]]+Dataset[[#This Row],[2023/24 From - Total]]+Dataset[[#This Row],[2023/24 To - Total]]","v":0},{"$f":"Dataset[[#This Row],[2024/25 Baseline]]+Dataset[[#This Row],[2024/25 From - Total]]+Dataset[[#This Row],[2024/25 To - Total]]","v":0},{"$f":"Dataset[[#This Row],[2025/26 Baseline]]+Dataset[[#This Row],[2025/26 From - Total]]+Dataset[[#This Row],[2025/26 To - Total]]","v":0}]
["NAT|Non-transfer item","2|Software and other intangible assets","2023_24","MTEF2023",2,1,1,693,76,"02","01","01","000693","000076","02|01|01",2,3,17,62,66,"02|03|17|62|66","National","Parliament","Administration","Executive Authority","Non-transfer item","Capital","Payments for capital assets","Software and other intangible assets","Software and other intangible assets","Software and other intangible assets","General public services","Executive and legislative organs","NAT",0,0,0,0,0,0,0,0,0,0,0,null,null,null,null,null,null,null,null,null,null,null,null,null,null,null,null,null,null,null,null,null,null,null,null,null,null,null,null,null,null,{"$f":"Dataset[[#This Row],[2023/24 From - Spending review Topic 1]]+Dataset[[#This Row],[2023/24 From - Spending review Topic 2]]+Dataset[[#This Row],[2023/24 From - Spending review Topic 3]]+Dataset[[#This Row],[2023/24 From - Spending review Topic 4]]+Dataset[[#This Row],[2023/24 From - Other reallocations]]","v":0},{"$f":"Dataset[[#This Row],[2024/25 From - Spending review Topic 1]]+Dataset[[#This Row],[2024/25 From - Spending review Topic 2]]+Dataset[[#This Row],[2024/25 From - Spending review Topic 3]]+Dataset[[#This Row],[2024/25 From - Spending review Topic 4]]+Dataset[[#This Row],[2024/25 From - Other reallocations]]","v":0},{"$f":"Dataset[[#This Row],[2025/26 From - Spending review Topic 1]]+Dataset[[#This Row],[2025/26 From - Spending review Topic 2]]+Dataset[[#This Row],[2025/26 From - Spending review Topic 3]]+Dataset[[#This Row],[2025/26 From - Spending review Topic 4]]+Dataset[[#This Row],[2025/26 From - Other reallocations]]","v":0},{"$f":"Dataset[[#This Row],[2023/24 To - Spending review Topic 1]]+Dataset[[#This Row],[2023/24 To - Spending review Topic 2]]+Dataset[[#This Row],[2023/24 To - Spending review Topic 3]]+Dataset[[#This Row],[2023/24 To - Spending review Topic 4]]+Dataset[[#This Row],[2023/24 To - Other reallocations]]","v":0},{"$f":"Dataset[[#This Row],[2024/25 To - Spending review Topic 1]]+Dataset[[#This Row],[2024/25 To - Spending review Topic 2]]+Dataset[[#This Row],[2024/25 To - Spending review Topic 3]]+Dataset[[#This Row],[2024/25 To - Spending review Topic 4]]+Dataset[[#This Row],[2024/25 To - Other reallocations]]","v":0},{"$f":"Dataset[[#This Row],[2025/26 To - Spending review Topic 1]]+Dataset[[#This Row],[2025/26 To - Spending review Topic 2]]+Dataset[[#This Row],[2025/26 To - Spending review Topic 3]]+Dataset[[#This Row],[2025/26 To - Spending review Topic 4]]+Dataset[[#This Row],[2025/26 To - Other reallocations]]","v":0},{"$f":"Dataset[[#This Row],[2023/24 Baseline]]+Dataset[[#This Row],[2023/24 From - Total]]+Dataset[[#This Row],[2023/24 To - Total]]","v":0},{"$f":"Dataset[[#This Row],[2024/25 Baseline]]+Dataset[[#This Row],[2024/25 From - Total]]+Dataset[[#This Row],[2024/25 To - Total]]","v":0},{"$f":"Dataset[[#This Row],[2025/26 Baseline]]+Dataset[[#This Row],[2025/26 From - Total]]+Dataset[[#This Row],[2025/26 To - Total]]","v":0}]
["NAT|Non-transfer item","2|Payments for financial assets","2023_24","MTEF2023",2,1,1,694,77,"02","01","01","000694","000077","02|01|01",3,4,18,63,67,"03|04|18|63|67","National","Parliament","Administration","Executive Authority","Non-transfer item","Payments for financial assets","Payments for financial assets","Payments for financial assets","Payments for financial assets","Payments for financial assets","General public services","Executive and legislative organs","NAT",0,0,0,0,0,0,0,0,0,0,0,null,null,null,null,null,null,null,null,null,null,null,null,null,null,null,null,null,null,null,null,null,null,null,null,null,null,null,null,null,null,{"$f":"Dataset[[#This Row],[2023/24 From - Spending review Topic 1]]+Dataset[[#This Row],[2023/24 From - Spending review Topic 2]]+Dataset[[#This Row],[2023/24 From - Spending review Topic 3]]+Dataset[[#This Row],[2023/24 From - Spending review Topic 4]]+Dataset[[#This Row],[2023/24 From - Other reallocations]]","v":0},{"$f":"Dataset[[#This Row],[2024/25 From - Spending review Topic 1]]+Dataset[[#This Row],[2024/25 From - Spending review Topic 2]]+Dataset[[#This Row],[2024/25 From - Spending review Topic 3]]+Dataset[[#This Row],[2024/25 From - Spending review Topic 4]]+Dataset[[#This Row],[2024/25 From - Other reallocations]]","v":0},{"$f":"Dataset[[#This Row],[2025/26 From - Spending review Topic 1]]+Dataset[[#This Row],[2025/26 From - Spending review Topic 2]]+Dataset[[#This Row],[2025/26 From - Spending review Topic 3]]+Dataset[[#This Row],[2025/26 From - Spending review Topic 4]]+Dataset[[#This Row],[2025/26 From - Other reallocations]]","v":0},{"$f":"Dataset[[#This Row],[2023/24 To - Spending review Topic 1]]+Dataset[[#This Row],[2023/24 To - Spending review Topic 2]]+Dataset[[#This Row],[2023/24 To - Spending review Topic 3]]+Dataset[[#This Row],[2023/24 To - Spending review Topic 4]]+Dataset[[#This Row],[2023/24 To - Other reallocations]]","v":0},{"$f":"Dataset[[#This Row],[2024/25 To - Spending review Topic 1]]+Dataset[[#This Row],[2024/25 To - Spending review Topic 2]]+Dataset[[#This Row],[2024/25 To - Spending review Topic 3]]+Dataset[[#This Row],[2024/25 To - Spending review Topic 4]]+Dataset[[#This Row],[2024/25 To - Other reallocations]]","v":0},{"$f":"Dataset[[#This Row],[2025/26 To - Spending review Topic 1]]+Dataset[[#This Row],[2025/26 To - Spending review Topic 2]]+Dataset[[#This Row],[2025/26 To - Spending review Topic 3]]+Dataset[[#This Row],[2025/26 To - Spending review Topic 4]]+Dataset[[#This Row],[2025/26 To - Other reallocations]]","v":0},{"$f":"Dataset[[#This Row],[2023/24 Baseline]]+Dataset[[#This Row],[2023/24 From - Total]]+Dataset[[#This Row],[2023/24 To - Total]]","v":0},{"$f":"Dataset[[#This Row],[2024/25 Baseline]]+Dataset[[#This Row],[2024/25 From - Total]]+Dataset[[#This Row],[2024/25 To - Total]]","v":0},{"$f":"Dataset[[#This Row],[2025/26 Baseline]]+Dataset[[#This Row],[2025/26 From - Total]]+Dataset[[#This Row],[2025/26 To - Total]]","v":0}]
["NAT|Non-transfer item","2|Salaries and wages","2023_24","MTEF2023",2,1,2,695,78,"02","01","02","000695","000078","02|01|02",1,1,1,1,1,"01|01|01|01|01","National","Parliament","Administration","Office of the Secretary","Non-transfer item","Current","Current payments","Compensation of employees","Salaries and wages","Salaries and wages","General public services","Executive and legislative organs","NAT",17199,9103,10040,9339,9339,9339,0,4039,4339,4758,4971,null,null,null,null,null,null,null,null,null,null,null,null,null,null,null,null,null,null,null,null,null,null,null,null,null,null,null,null,null,null,{"$f":"Dataset[[#This Row],[2023/24 From - Spending review Topic 1]]+Dataset[[#This Row],[2023/24 From - Spending review Topic 2]]+Dataset[[#This Row],[2023/24 From - Spending review Topic 3]]+Dataset[[#This Row],[2023/24 From - Spending review Topic 4]]+Dataset[[#This Row],[2023/24 From - Other reallocations]]","v":0},{"$f":"Dataset[[#This Row],[2024/25 From - Spending review Topic 1]]+Dataset[[#This Row],[2024/25 From - Spending review Topic 2]]+Dataset[[#This Row],[2024/25 From - Spending review Topic 3]]+Dataset[[#This Row],[2024/25 From - Spending review Topic 4]]+Dataset[[#This Row],[2024/25 From - Other reallocations]]","v":0},{"$f":"Dataset[[#This Row],[2025/26 From - Spending review Topic 1]]+Dataset[[#This Row],[2025/26 From - Spending review Topic 2]]+Dataset[[#This Row],[2025/26 From - Spending review Topic 3]]+Dataset[[#This Row],[2025/26 From - Spending review Topic 4]]+Dataset[[#This Row],[2025/26 From - Other reallocations]]","v":0},{"$f":"Dataset[[#This Row],[2023/24 To - Spending review Topic 1]]+Dataset[[#This Row],[2023/24 To - Spending review Topic 2]]+Dataset[[#This Row],[2023/24 To - Spending review Topic 3]]+Dataset[[#This Row],[2023/24 To - Spending review Topic 4]]+Dataset[[#This Row],[2023/24 To - Other reallocations]]","v":0},{"$f":"Dataset[[#This Row],[2024/25 To - Spending review Topic 1]]+Dataset[[#This Row],[2024/25 To - Spending review Topic 2]]+Dataset[[#This Row],[2024/25 To - Spending review Topic 3]]+Dataset[[#This Row],[2024/25 To - Spending review Topic 4]]+Dataset[[#This Row],[2024/25 To - Other reallocations]]","v":0},{"$f":"Dataset[[#This Row],[2025/26 To - Spending review Topic 1]]+Dataset[[#This Row],[2025/26 To - Spending review Topic 2]]+Dataset[[#This Row],[2025/26 To - Spending review Topic 3]]+Dataset[[#This Row],[2025/26 To - Spending review Topic 4]]+Dataset[[#This Row],[2025/26 To - Other reallocations]]","v":0},{"$f":"Dataset[[#This Row],[2023/24 Baseline]]+Dataset[[#This Row],[2023/24 From - Total]]+Dataset[[#This Row],[2023/24 To - Total]]","v":4339},{"$f":"Dataset[[#This Row],[2024/25 Baseline]]+Dataset[[#This Row],[2024/25 From - Total]]+Dataset[[#This Row],[2024/25 To - Total]]","v":4758},{"$f":"Dataset[[#This Row],[2025/26 Baseline]]+Dataset[[#This Row],[2025/26 From - Total]]+Dataset[[#This Row],[2025/26 To - Total]]","v":4971}]
["NAT|Non-transfer item","2|Social contributions","2023_24","MTEF2023",2,1,2,696,79,"02","01","02","000696","000079","02|01|02",1,1,1,2,2,"01|01|01|02|02","National","Parliament","Administration","Office of the Secretary","Non-transfer item","Current","Current payments","Compensation of employees","Social contributions","Social contributions","General public services","Executive and legislative organs","NAT",0,0,0,0,0,0,0,0,0,0,0,null,null,null,null,null,null,null,null,null,null,null,null,null,null,null,null,null,null,null,null,null,null,null,null,null,null,null,null,null,null,{"$f":"Dataset[[#This Row],[2023/24 From - Spending review Topic 1]]+Dataset[[#This Row],[2023/24 From - Spending review Topic 2]]+Dataset[[#This Row],[2023/24 From - Spending review Topic 3]]+Dataset[[#This Row],[2023/24 From - Spending review Topic 4]]+Dataset[[#This Row],[2023/24 From - Other reallocations]]","v":0},{"$f":"Dataset[[#This Row],[2024/25 From - Spending review Topic 1]]+Dataset[[#This Row],[2024/25 From - Spending review Topic 2]]+Dataset[[#This Row],[2024/25 From - Spending review Topic 3]]+Dataset[[#This Row],[2024/25 From - Spending review Topic 4]]+Dataset[[#This Row],[2024/25 From - Other reallocations]]","v":0},{"$f":"Dataset[[#This Row],[2025/26 From - Spending review Topic 1]]+Dataset[[#This Row],[2025/26 From - Spending review Topic 2]]+Dataset[[#This Row],[2025/26 From - Spending review Topic 3]]+Dataset[[#This Row],[2025/26 From - Spending review Topic 4]]+Dataset[[#This Row],[2025/26 From - Other reallocations]]","v":0},{"$f":"Dataset[[#This Row],[2023/24 To - Spending review Topic 1]]+Dataset[[#This Row],[2023/24 To - Spending review Topic 2]]+Dataset[[#This Row],[2023/24 To - Spending review Topic 3]]+Dataset[[#This Row],[2023/24 To - Spending review Topic 4]]+Dataset[[#This Row],[2023/24 To - Other reallocations]]","v":0},{"$f":"Dataset[[#This Row],[2024/25 To - Spending review Topic 1]]+Dataset[[#This Row],[2024/25 To - Spending review Topic 2]]+Dataset[[#This Row],[2024/25 To - Spending review Topic 3]]+Dataset[[#This Row],[2024/25 To - Spending review Topic 4]]+Dataset[[#This Row],[2024/25 To - Other reallocations]]","v":0},{"$f":"Dataset[[#This Row],[2025/26 To - Spending review Topic 1]]+Dataset[[#This Row],[2025/26 To - Spending review Topic 2]]+Dataset[[#This Row],[2025/26 To - Spending review Topic 3]]+Dataset[[#This Row],[2025/26 To - Spending review Topic 4]]+Dataset[[#This Row],[2025/26 To - Other reallocations]]","v":0},{"$f":"Dataset[[#This Row],[2023/24 Baseline]]+Dataset[[#This Row],[2023/24 From - Total]]+Dataset[[#This Row],[2023/24 To - Total]]","v":0},{"$f":"Dataset[[#This Row],[2024/25 Baseline]]+Dataset[[#This Row],[2024/25 From - Total]]+Dataset[[#This Row],[2024/25 To - Total]]","v":0},{"$f":"Dataset[[#This Row],[2025/26 Baseline]]+Dataset[[#This Row],[2025/26 From - Total]]+Dataset[[#This Row],[2025/26 To - Total]]","v":0}]
["NAT|Non-transfer item","2|Administrative fees","2023_24","MTEF2023",2,1,2,697,80,"02","01","02","000697","000080","02|01|02",1,1,2,3,3,"01|01|02|03|03","National","Parliament","Administration","Office of the Secretary","Non-transfer item","Current","Current payments","Goods and services","Administrative fees","Administrative fees","General public services","Executive and legislative organs","NAT",0,0,0,0,0,0,0,0,0,0,0,null,null,null,null,null,null,null,null,null,null,null,null,null,null,null,null,null,null,null,null,null,null,null,null,null,null,null,null,null,null,{"$f":"Dataset[[#This Row],[2023/24 From - Spending review Topic 1]]+Dataset[[#This Row],[2023/24 From - Spending review Topic 2]]+Dataset[[#This Row],[2023/24 From - Spending review Topic 3]]+Dataset[[#This Row],[2023/24 From - Spending review Topic 4]]+Dataset[[#This Row],[2023/24 From - Other reallocations]]","v":0},{"$f":"Dataset[[#This Row],[2024/25 From - Spending review Topic 1]]+Dataset[[#This Row],[2024/25 From - Spending review Topic 2]]+Dataset[[#This Row],[2024/25 From - Spending review Topic 3]]+Dataset[[#This Row],[2024/25 From - Spending review Topic 4]]+Dataset[[#This Row],[2024/25 From - Other reallocations]]","v":0},{"$f":"Dataset[[#This Row],[2025/26 From - Spending review Topic 1]]+Dataset[[#This Row],[2025/26 From - Spending review Topic 2]]+Dataset[[#This Row],[2025/26 From - Spending review Topic 3]]+Dataset[[#This Row],[2025/26 From - Spending review Topic 4]]+Dataset[[#This Row],[2025/26 From - Other reallocations]]","v":0},{"$f":"Dataset[[#This Row],[2023/24 To - Spending review Topic 1]]+Dataset[[#This Row],[2023/24 To - Spending review Topic 2]]+Dataset[[#This Row],[2023/24 To - Spending review Topic 3]]+Dataset[[#This Row],[2023/24 To - Spending review Topic 4]]+Dataset[[#This Row],[2023/24 To - Other reallocations]]","v":0},{"$f":"Dataset[[#This Row],[2024/25 To - Spending review Topic 1]]+Dataset[[#This Row],[2024/25 To - Spending review Topic 2]]+Dataset[[#This Row],[2024/25 To - Spending review Topic 3]]+Dataset[[#This Row],[2024/25 To - Spending review Topic 4]]+Dataset[[#This Row],[2024/25 To - Other reallocations]]","v":0},{"$f":"Dataset[[#This Row],[2025/26 To - Spending review Topic 1]]+Dataset[[#This Row],[2025/26 To - Spending review Topic 2]]+Dataset[[#This Row],[2025/26 To - Spending review Topic 3]]+Dataset[[#This Row],[2025/26 To - Spending review Topic 4]]+Dataset[[#This Row],[2025/26 To - Other reallocations]]","v":0},{"$f":"Dataset[[#This Row],[2023/24 Baseline]]+Dataset[[#This Row],[2023/24 From - Total]]+Dataset[[#This Row],[2023/24 To - Total]]","v":0},{"$f":"Dataset[[#This Row],[2024/25 Baseline]]+Dataset[[#This Row],[2024/25 From - Total]]+Dataset[[#This Row],[2024/25 To - Total]]","v":0},{"$f":"Dataset[[#This Row],[2025/26 Baseline]]+Dataset[[#This Row],[2025/26 From - Total]]+Dataset[[#This Row],[2025/26 To - Total]]","v":0}]
["NAT|Non-transfer item","2|Advertising","2023_24","MTEF2023",2,1,2,698,81,"02","01","02","000698","000081","02|01|02",1,1,2,4,4,"01|01|02|04|04","National","Parliament","Administration","Office of the Secretary","Non-transfer item","Current","Current payments","Goods and services","Advertising","Advertising","General public services","Executive and legislative organs","NAT",0,0,0,0,0,0,0,0,0,0,0,null,null,null,null,null,null,null,null,null,null,null,null,null,null,null,null,null,null,null,null,null,null,null,null,null,null,null,null,null,null,{"$f":"Dataset[[#This Row],[2023/24 From - Spending review Topic 1]]+Dataset[[#This Row],[2023/24 From - Spending review Topic 2]]+Dataset[[#This Row],[2023/24 From - Spending review Topic 3]]+Dataset[[#This Row],[2023/24 From - Spending review Topic 4]]+Dataset[[#This Row],[2023/24 From - Other reallocations]]","v":0},{"$f":"Dataset[[#This Row],[2024/25 From - Spending review Topic 1]]+Dataset[[#This Row],[2024/25 From - Spending review Topic 2]]+Dataset[[#This Row],[2024/25 From - Spending review Topic 3]]+Dataset[[#This Row],[2024/25 From - Spending review Topic 4]]+Dataset[[#This Row],[2024/25 From - Other reallocations]]","v":0},{"$f":"Dataset[[#This Row],[2025/26 From - Spending review Topic 1]]+Dataset[[#This Row],[2025/26 From - Spending review Topic 2]]+Dataset[[#This Row],[2025/26 From - Spending review Topic 3]]+Dataset[[#This Row],[2025/26 From - Spending review Topic 4]]+Dataset[[#This Row],[2025/26 From - Other reallocations]]","v":0},{"$f":"Dataset[[#This Row],[2023/24 To - Spending review Topic 1]]+Dataset[[#This Row],[2023/24 To - Spending review Topic 2]]+Dataset[[#This Row],[2023/24 To - Spending review Topic 3]]+Dataset[[#This Row],[2023/24 To - Spending review Topic 4]]+Dataset[[#This Row],[2023/24 To - Other reallocations]]","v":0},{"$f":"Dataset[[#This Row],[2024/25 To - Spending review Topic 1]]+Dataset[[#This Row],[2024/25 To - Spending review Topic 2]]+Dataset[[#This Row],[2024/25 To - Spending review Topic 3]]+Dataset[[#This Row],[2024/25 To - Spending review Topic 4]]+Dataset[[#This Row],[2024/25 To - Other reallocations]]","v":0},{"$f":"Dataset[[#This Row],[2025/26 To - Spending review Topic 1]]+Dataset[[#This Row],[2025/26 To - Spending review Topic 2]]+Dataset[[#This Row],[2025/26 To - Spending review Topic 3]]+Dataset[[#This Row],[2025/26 To - Spending review Topic 4]]+Dataset[[#This Row],[2025/26 To - Other reallocations]]","v":0},{"$f":"Dataset[[#This Row],[2023/24 Baseline]]+Dataset[[#This Row],[2023/24 From - Total]]+Dataset[[#This Row],[2023/24 To - Total]]","v":0},{"$f":"Dataset[[#This Row],[2024/25 Baseline]]+Dataset[[#This Row],[2024/25 From - Total]]+Dataset[[#This Row],[2024/25 To - Total]]","v":0},{"$f":"Dataset[[#This Row],[2025/26 Baseline]]+Dataset[[#This Row],[2025/26 From - Total]]+Dataset[[#This Row],[2025/26 To - Total]]","v":0}]
["NAT|Non-transfer item","2|Minor assets","2023_24","MTEF2023",2,1,2,699,82,"02","01","02","000699","000082","02|01|02",1,1,2,5,5,"01|01|02|05|05","National","Parliament","Administration","Office of the Secretary","Non-transfer item","Current","Current payments","Goods and services","Minor assets","Minor assets","General public services","Executive and legislative organs","NAT",0,0,0,0,0,0,0,0,0,0,0,null,null,null,null,null,null,null,null,null,null,null,null,null,null,null,null,null,null,null,null,null,null,null,null,null,null,null,null,null,null,{"$f":"Dataset[[#This Row],[2023/24 From - Spending review Topic 1]]+Dataset[[#This Row],[2023/24 From - Spending review Topic 2]]+Dataset[[#This Row],[2023/24 From - Spending review Topic 3]]+Dataset[[#This Row],[2023/24 From - Spending review Topic 4]]+Dataset[[#This Row],[2023/24 From - Other reallocations]]","v":0},{"$f":"Dataset[[#This Row],[2024/25 From - Spending review Topic 1]]+Dataset[[#This Row],[2024/25 From - Spending review Topic 2]]+Dataset[[#This Row],[2024/25 From - Spending review Topic 3]]+Dataset[[#This Row],[2024/25 From - Spending review Topic 4]]+Dataset[[#This Row],[2024/25 From - Other reallocations]]","v":0},{"$f":"Dataset[[#This Row],[2025/26 From - Spending review Topic 1]]+Dataset[[#This Row],[2025/26 From - Spending review Topic 2]]+Dataset[[#This Row],[2025/26 From - Spending review Topic 3]]+Dataset[[#This Row],[2025/26 From - Spending review Topic 4]]+Dataset[[#This Row],[2025/26 From - Other reallocations]]","v":0},{"$f":"Dataset[[#This Row],[2023/24 To - Spending review Topic 1]]+Dataset[[#This Row],[2023/24 To - Spending review Topic 2]]+Dataset[[#This Row],[2023/24 To - Spending review Topic 3]]+Dataset[[#This Row],[2023/24 To - Spending review Topic 4]]+Dataset[[#This Row],[2023/24 To - Other reallocations]]","v":0},{"$f":"Dataset[[#This Row],[2024/25 To - Spending review Topic 1]]+Dataset[[#This Row],[2024/25 To - Spending review Topic 2]]+Dataset[[#This Row],[2024/25 To - Spending review Topic 3]]+Dataset[[#This Row],[2024/25 To - Spending review Topic 4]]+Dataset[[#This Row],[2024/25 To - Other reallocations]]","v":0},{"$f":"Dataset[[#This Row],[2025/26 To - Spending review Topic 1]]+Dataset[[#This Row],[2025/26 To - Spending review Topic 2]]+Dataset[[#This Row],[2025/26 To - Spending review Topic 3]]+Dataset[[#This Row],[2025/26 To - Spending review Topic 4]]+Dataset[[#This Row],[2025/26 To - Other reallocations]]","v":0},{"$f":"Dataset[[#This Row],[2023/24 Baseline]]+Dataset[[#This Row],[2023/24 From - Total]]+Dataset[[#This Row],[2023/24 To - Total]]","v":0},{"$f":"Dataset[[#This Row],[2024/25 Baseline]]+Dataset[[#This Row],[2024/25 From - Total]]+Dataset[[#This Row],[2024/25 To - Total]]","v":0},{"$f":"Dataset[[#This Row],[2025/26 Baseline]]+Dataset[[#This Row],[2025/26 From - Total]]+Dataset[[#This Row],[2025/26 To - Total]]","v":0}]
["NAT|Non-transfer item","2|Audit costs: External","2023_24","MTEF2023",2,1,2,700,83,"02","01","02","000700","000083","02|01|02",1,1,2,6,6,"01|01|02|06|06","National","Parliament","Administration","Office of the Secretary","Non-transfer item","Current","Current payments","Goods and services","Audit costs: External","Audit costs: External","General public services","Executive and legislative organs","NAT",0,0,0,0,0,0,0,0,0,0,0,null,null,null,null,null,null,null,null,null,null,null,null,null,null,null,null,null,null,null,null,null,null,null,null,null,null,null,null,null,null,{"$f":"Dataset[[#This Row],[2023/24 From - Spending review Topic 1]]+Dataset[[#This Row],[2023/24 From - Spending review Topic 2]]+Dataset[[#This Row],[2023/24 From - Spending review Topic 3]]+Dataset[[#This Row],[2023/24 From - Spending review Topic 4]]+Dataset[[#This Row],[2023/24 From - Other reallocations]]","v":0},{"$f":"Dataset[[#This Row],[2024/25 From - Spending review Topic 1]]+Dataset[[#This Row],[2024/25 From - Spending review Topic 2]]+Dataset[[#This Row],[2024/25 From - Spending review Topic 3]]+Dataset[[#This Row],[2024/25 From - Spending review Topic 4]]+Dataset[[#This Row],[2024/25 From - Other reallocations]]","v":0},{"$f":"Dataset[[#This Row],[2025/26 From - Spending review Topic 1]]+Dataset[[#This Row],[2025/26 From - Spending review Topic 2]]+Dataset[[#This Row],[2025/26 From - Spending review Topic 3]]+Dataset[[#This Row],[2025/26 From - Spending review Topic 4]]+Dataset[[#This Row],[2025/26 From - Other reallocations]]","v":0},{"$f":"Dataset[[#This Row],[2023/24 To - Spending review Topic 1]]+Dataset[[#This Row],[2023/24 To - Spending review Topic 2]]+Dataset[[#This Row],[2023/24 To - Spending review Topic 3]]+Dataset[[#This Row],[2023/24 To - Spending review Topic 4]]+Dataset[[#This Row],[2023/24 To - Other reallocations]]","v":0},{"$f":"Dataset[[#This Row],[2024/25 To - Spending review Topic 1]]+Dataset[[#This Row],[2024/25 To - Spending review Topic 2]]+Dataset[[#This Row],[2024/25 To - Spending review Topic 3]]+Dataset[[#This Row],[2024/25 To - Spending review Topic 4]]+Dataset[[#This Row],[2024/25 To - Other reallocations]]","v":0},{"$f":"Dataset[[#This Row],[2025/26 To - Spending review Topic 1]]+Dataset[[#This Row],[2025/26 To - Spending review Topic 2]]+Dataset[[#This Row],[2025/26 To - Spending review Topic 3]]+Dataset[[#This Row],[2025/26 To - Spending review Topic 4]]+Dataset[[#This Row],[2025/26 To - Other reallocations]]","v":0},{"$f":"Dataset[[#This Row],[2023/24 Baseline]]+Dataset[[#This Row],[2023/24 From - Total]]+Dataset[[#This Row],[2023/24 To - Total]]","v":0},{"$f":"Dataset[[#This Row],[2024/25 Baseline]]+Dataset[[#This Row],[2024/25 From - Total]]+Dataset[[#This Row],[2024/25 To - Total]]","v":0},{"$f":"Dataset[[#This Row],[2025/26 Baseline]]+Dataset[[#This Row],[2025/26 From - Total]]+Dataset[[#This Row],[2025/26 To - Total]]","v":0}]
["NAT|Non-transfer item","2|Bursaries: Employees","2023_24","MTEF2023",2,1,2,701,84,"02","01","02","000701","000084","02|01|02",1,1,2,7,7,"01|01|02|07|07","National","Parliament","Administration","Office of the Secretary","Non-transfer item","Current","Current payments","Goods and services","Bursaries: Employees","Bursaries: Employees","General public services","Executive and legislative organs","NAT",0,0,0,0,0,0,0,0,0,0,0,null,null,null,null,null,null,null,null,null,null,null,null,null,null,null,null,null,null,null,null,null,null,null,null,null,null,null,null,null,null,{"$f":"Dataset[[#This Row],[2023/24 From - Spending review Topic 1]]+Dataset[[#This Row],[2023/24 From - Spending review Topic 2]]+Dataset[[#This Row],[2023/24 From - Spending review Topic 3]]+Dataset[[#This Row],[2023/24 From - Spending review Topic 4]]+Dataset[[#This Row],[2023/24 From - Other reallocations]]","v":0},{"$f":"Dataset[[#This Row],[2024/25 From - Spending review Topic 1]]+Dataset[[#This Row],[2024/25 From - Spending review Topic 2]]+Dataset[[#This Row],[2024/25 From - Spending review Topic 3]]+Dataset[[#This Row],[2024/25 From - Spending review Topic 4]]+Dataset[[#This Row],[2024/25 From - Other reallocations]]","v":0},{"$f":"Dataset[[#This Row],[2025/26 From - Spending review Topic 1]]+Dataset[[#This Row],[2025/26 From - Spending review Topic 2]]+Dataset[[#This Row],[2025/26 From - Spending review Topic 3]]+Dataset[[#This Row],[2025/26 From - Spending review Topic 4]]+Dataset[[#This Row],[2025/26 From - Other reallocations]]","v":0},{"$f":"Dataset[[#This Row],[2023/24 To - Spending review Topic 1]]+Dataset[[#This Row],[2023/24 To - Spending review Topic 2]]+Dataset[[#This Row],[2023/24 To - Spending review Topic 3]]+Dataset[[#This Row],[2023/24 To - Spending review Topic 4]]+Dataset[[#This Row],[2023/24 To - Other reallocations]]","v":0},{"$f":"Dataset[[#This Row],[2024/25 To - Spending review Topic 1]]+Dataset[[#This Row],[2024/25 To - Spending review Topic 2]]+Dataset[[#This Row],[2024/25 To - Spending review Topic 3]]+Dataset[[#This Row],[2024/25 To - Spending review Topic 4]]+Dataset[[#This Row],[2024/25 To - Other reallocations]]","v":0},{"$f":"Dataset[[#This Row],[2025/26 To - Spending review Topic 1]]+Dataset[[#This Row],[2025/26 To - Spending review Topic 2]]+Dataset[[#This Row],[2025/26 To - Spending review Topic 3]]+Dataset[[#This Row],[2025/26 To - Spending review Topic 4]]+Dataset[[#This Row],[2025/26 To - Other reallocations]]","v":0},{"$f":"Dataset[[#This Row],[2023/24 Baseline]]+Dataset[[#This Row],[2023/24 From - Total]]+Dataset[[#This Row],[2023/24 To - Total]]","v":0},{"$f":"Dataset[[#This Row],[2024/25 Baseline]]+Dataset[[#This Row],[2024/25 From - Total]]+Dataset[[#This Row],[2024/25 To - Total]]","v":0},{"$f":"Dataset[[#This Row],[2025/26 Baseline]]+Dataset[[#This Row],[2025/26 From - Total]]+Dataset[[#This Row],[2025/26 To - Total]]","v":0}]
["NAT|Non-transfer item","2|Catering: Departmental activities","2023_24","MTEF2023",2,1,2,702,85,"02","01","02","000702","000085","02|01|02",1,1,2,8,8,"01|01|02|08|08","National","Parliament","Administration","Office of the Secretary","Non-transfer item","Current","Current payments","Goods and services","Catering: Departmental activities","Catering: Departmental activities","General public services","Executive and legislative organs","NAT",221,233,247,181,181,181,0,185,185,194,203,null,null,null,null,null,null,null,null,null,null,null,null,null,null,null,null,null,null,null,null,null,null,null,null,null,null,null,null,null,null,{"$f":"Dataset[[#This Row],[2023/24 From - Spending review Topic 1]]+Dataset[[#This Row],[2023/24 From - Spending review Topic 2]]+Dataset[[#This Row],[2023/24 From - Spending review Topic 3]]+Dataset[[#This Row],[2023/24 From - Spending review Topic 4]]+Dataset[[#This Row],[2023/24 From - Other reallocations]]","v":0},{"$f":"Dataset[[#This Row],[2024/25 From - Spending review Topic 1]]+Dataset[[#This Row],[2024/25 From - Spending review Topic 2]]+Dataset[[#This Row],[2024/25 From - Spending review Topic 3]]+Dataset[[#This Row],[2024/25 From - Spending review Topic 4]]+Dataset[[#This Row],[2024/25 From - Other reallocations]]","v":0},{"$f":"Dataset[[#This Row],[2025/26 From - Spending review Topic 1]]+Dataset[[#This Row],[2025/26 From - Spending review Topic 2]]+Dataset[[#This Row],[2025/26 From - Spending review Topic 3]]+Dataset[[#This Row],[2025/26 From - Spending review Topic 4]]+Dataset[[#This Row],[2025/26 From - Other reallocations]]","v":0},{"$f":"Dataset[[#This Row],[2023/24 To - Spending review Topic 1]]+Dataset[[#This Row],[2023/24 To - Spending review Topic 2]]+Dataset[[#This Row],[2023/24 To - Spending review Topic 3]]+Dataset[[#This Row],[2023/24 To - Spending review Topic 4]]+Dataset[[#This Row],[2023/24 To - Other reallocations]]","v":0},{"$f":"Dataset[[#This Row],[2024/25 To - Spending review Topic 1]]+Dataset[[#This Row],[2024/25 To - Spending review Topic 2]]+Dataset[[#This Row],[2024/25 To - Spending review Topic 3]]+Dataset[[#This Row],[2024/25 To - Spending review Topic 4]]+Dataset[[#This Row],[2024/25 To - Other reallocations]]","v":0},{"$f":"Dataset[[#This Row],[2025/26 To - Spending review Topic 1]]+Dataset[[#This Row],[2025/26 To - Spending review Topic 2]]+Dataset[[#This Row],[2025/26 To - Spending review Topic 3]]+Dataset[[#This Row],[2025/26 To - Spending review Topic 4]]+Dataset[[#This Row],[2025/26 To - Other reallocations]]","v":0},{"$f":"Dataset[[#This Row],[2023/24 Baseline]]+Dataset[[#This Row],[2023/24 From - Total]]+Dataset[[#This Row],[2023/24 To - Total]]","v":185},{"$f":"Dataset[[#This Row],[2024/25 Baseline]]+Dataset[[#This Row],[2024/25 From - Total]]+Dataset[[#This Row],[2024/25 To - Total]]","v":194},{"$f":"Dataset[[#This Row],[2025/26 Baseline]]+Dataset[[#This Row],[2025/26 From - Total]]+Dataset[[#This Row],[2025/26 To - Total]]","v":203}]
["NAT|Non-transfer item","2|Communication (G&S)","2023_24","MTEF2023",2,1,2,703,86,"02","01","02","000703","000086","02|01|02",1,1,2,9,9,"01|01|02|09|09","National","Parliament","Administration","Office of the Secretary","Non-transfer item","Current","Current payments","Goods and services","Communication (G&S)","Communication (G&S)","General public services","Executive and legislative organs","NAT",262,277,292,214,214,214,0,218,218,228,238,null,null,null,null,null,null,null,null,null,null,null,null,null,null,null,null,null,null,null,null,null,null,null,null,null,null,null,null,null,null,{"$f":"Dataset[[#This Row],[2023/24 From - Spending review Topic 1]]+Dataset[[#This Row],[2023/24 From - Spending review Topic 2]]+Dataset[[#This Row],[2023/24 From - Spending review Topic 3]]+Dataset[[#This Row],[2023/24 From - Spending review Topic 4]]+Dataset[[#This Row],[2023/24 From - Other reallocations]]","v":0},{"$f":"Dataset[[#This Row],[2024/25 From - Spending review Topic 1]]+Dataset[[#This Row],[2024/25 From - Spending review Topic 2]]+Dataset[[#This Row],[2024/25 From - Spending review Topic 3]]+Dataset[[#This Row],[2024/25 From - Spending review Topic 4]]+Dataset[[#This Row],[2024/25 From - Other reallocations]]","v":0},{"$f":"Dataset[[#This Row],[2025/26 From - Spending review Topic 1]]+Dataset[[#This Row],[2025/26 From - Spending review Topic 2]]+Dataset[[#This Row],[2025/26 From - Spending review Topic 3]]+Dataset[[#This Row],[2025/26 From - Spending review Topic 4]]+Dataset[[#This Row],[2025/26 From - Other reallocations]]","v":0},{"$f":"Dataset[[#This Row],[2023/24 To - Spending review Topic 1]]+Dataset[[#This Row],[2023/24 To - Spending review Topic 2]]+Dataset[[#This Row],[2023/24 To - Spending review Topic 3]]+Dataset[[#This Row],[2023/24 To - Spending review Topic 4]]+Dataset[[#This Row],[2023/24 To - Other reallocations]]","v":0},{"$f":"Dataset[[#This Row],[2024/25 To - Spending review Topic 1]]+Dataset[[#This Row],[2024/25 To - Spending review Topic 2]]+Dataset[[#This Row],[2024/25 To - Spending review Topic 3]]+Dataset[[#This Row],[2024/25 To - Spending review Topic 4]]+Dataset[[#This Row],[2024/25 To - Other reallocations]]","v":0},{"$f":"Dataset[[#This Row],[2025/26 To - Spending review Topic 1]]+Dataset[[#This Row],[2025/26 To - Spending review Topic 2]]+Dataset[[#This Row],[2025/26 To - Spending review Topic 3]]+Dataset[[#This Row],[2025/26 To - Spending review Topic 4]]+Dataset[[#This Row],[2025/26 To - Other reallocations]]","v":0},{"$f":"Dataset[[#This Row],[2023/24 Baseline]]+Dataset[[#This Row],[2023/24 From - Total]]+Dataset[[#This Row],[2023/24 To - Total]]","v":218},{"$f":"Dataset[[#This Row],[2024/25 Baseline]]+Dataset[[#This Row],[2024/25 From - Total]]+Dataset[[#This Row],[2024/25 To - Total]]","v":228},{"$f":"Dataset[[#This Row],[2025/26 Baseline]]+Dataset[[#This Row],[2025/26 From - Total]]+Dataset[[#This Row],[2025/26 To - Total]]","v":238}]
["NAT|Non-transfer item","2|Computer services","2023_24","MTEF2023",2,1,2,704,87,"02","01","02","000704","000087","02|01|02",1,1,2,10,10,"01|01|02|10|10","National","Parliament","Administration","Office of the Secretary","Non-transfer item","Current","Current payments","Goods and services","Computer services","Computer services","General public services","Executive and legislative organs","NAT",220,232,245,180,180,180,0,183,183,191,200,null,null,null,null,null,null,null,null,null,null,null,null,null,null,null,null,null,null,null,null,null,null,null,null,null,null,null,null,null,null,{"$f":"Dataset[[#This Row],[2023/24 From - Spending review Topic 1]]+Dataset[[#This Row],[2023/24 From - Spending review Topic 2]]+Dataset[[#This Row],[2023/24 From - Spending review Topic 3]]+Dataset[[#This Row],[2023/24 From - Spending review Topic 4]]+Dataset[[#This Row],[2023/24 From - Other reallocations]]","v":0},{"$f":"Dataset[[#This Row],[2024/25 From - Spending review Topic 1]]+Dataset[[#This Row],[2024/25 From - Spending review Topic 2]]+Dataset[[#This Row],[2024/25 From - Spending review Topic 3]]+Dataset[[#This Row],[2024/25 From - Spending review Topic 4]]+Dataset[[#This Row],[2024/25 From - Other reallocations]]","v":0},{"$f":"Dataset[[#This Row],[2025/26 From - Spending review Topic 1]]+Dataset[[#This Row],[2025/26 From - Spending review Topic 2]]+Dataset[[#This Row],[2025/26 From - Spending review Topic 3]]+Dataset[[#This Row],[2025/26 From - Spending review Topic 4]]+Dataset[[#This Row],[2025/26 From - Other reallocations]]","v":0},{"$f":"Dataset[[#This Row],[2023/24 To - Spending review Topic 1]]+Dataset[[#This Row],[2023/24 To - Spending review Topic 2]]+Dataset[[#This Row],[2023/24 To - Spending review Topic 3]]+Dataset[[#This Row],[2023/24 To - Spending review Topic 4]]+Dataset[[#This Row],[2023/24 To - Other reallocations]]","v":0},{"$f":"Dataset[[#This Row],[2024/25 To - Spending review Topic 1]]+Dataset[[#This Row],[2024/25 To - Spending review Topic 2]]+Dataset[[#This Row],[2024/25 To - Spending review Topic 3]]+Dataset[[#This Row],[2024/25 To - Spending review Topic 4]]+Dataset[[#This Row],[2024/25 To - Other reallocations]]","v":0},{"$f":"Dataset[[#This Row],[2025/26 To - Spending review Topic 1]]+Dataset[[#This Row],[2025/26 To - Spending review Topic 2]]+Dataset[[#This Row],[2025/26 To - Spending review Topic 3]]+Dataset[[#This Row],[2025/26 To - Spending review Topic 4]]+Dataset[[#This Row],[2025/26 To - Other reallocations]]","v":0},{"$f":"Dataset[[#This Row],[2023/24 Baseline]]+Dataset[[#This Row],[2023/24 From - Total]]+Dataset[[#This Row],[2023/24 To - Total]]","v":183},{"$f":"Dataset[[#This Row],[2024/25 Baseline]]+Dataset[[#This Row],[2024/25 From - Total]]+Dataset[[#This Row],[2024/25 To - Total]]","v":191},{"$f":"Dataset[[#This Row],[2025/26 Baseline]]+Dataset[[#This Row],[2025/26 From - Total]]+Dataset[[#This Row],[2025/26 To - Total]]","v":200}]
["NAT|Non-transfer item","2|Consultants: Business and advisory services","2023_24","MTEF2023",2,1,2,705,88,"02","01","02","000705","000088","02|01|02",1,1,2,11,11,"01|01|02|11|11","National","Parliament","Administration","Office of the Secretary","Non-transfer item","Current","Current payments","Goods and services","Consultants: Business and advisory services","Consultants: Business and advisory services","General public services","Executive and legislative organs","NAT",0,0,0,0,0,0,0,0,0,0,0,null,null,null,null,null,null,null,null,null,null,null,null,null,null,null,null,null,null,null,null,null,null,null,null,null,null,null,null,null,null,{"$f":"Dataset[[#This Row],[2023/24 From - Spending review Topic 1]]+Dataset[[#This Row],[2023/24 From - Spending review Topic 2]]+Dataset[[#This Row],[2023/24 From - Spending review Topic 3]]+Dataset[[#This Row],[2023/24 From - Spending review Topic 4]]+Dataset[[#This Row],[2023/24 From - Other reallocations]]","v":0},{"$f":"Dataset[[#This Row],[2024/25 From - Spending review Topic 1]]+Dataset[[#This Row],[2024/25 From - Spending review Topic 2]]+Dataset[[#This Row],[2024/25 From - Spending review Topic 3]]+Dataset[[#This Row],[2024/25 From - Spending review Topic 4]]+Dataset[[#This Row],[2024/25 From - Other reallocations]]","v":0},{"$f":"Dataset[[#This Row],[2025/26 From - Spending review Topic 1]]+Dataset[[#This Row],[2025/26 From - Spending review Topic 2]]+Dataset[[#This Row],[2025/26 From - Spending review Topic 3]]+Dataset[[#This Row],[2025/26 From - Spending review Topic 4]]+Dataset[[#This Row],[2025/26 From - Other reallocations]]","v":0},{"$f":"Dataset[[#This Row],[2023/24 To - Spending review Topic 1]]+Dataset[[#This Row],[2023/24 To - Spending review Topic 2]]+Dataset[[#This Row],[2023/24 To - Spending review Topic 3]]+Dataset[[#This Row],[2023/24 To - Spending review Topic 4]]+Dataset[[#This Row],[2023/24 To - Other reallocations]]","v":0},{"$f":"Dataset[[#This Row],[2024/25 To - Spending review Topic 1]]+Dataset[[#This Row],[2024/25 To - Spending review Topic 2]]+Dataset[[#This Row],[2024/25 To - Spending review Topic 3]]+Dataset[[#This Row],[2024/25 To - Spending review Topic 4]]+Dataset[[#This Row],[2024/25 To - Other reallocations]]","v":0},{"$f":"Dataset[[#This Row],[2025/26 To - Spending review Topic 1]]+Dataset[[#This Row],[2025/26 To - Spending review Topic 2]]+Dataset[[#This Row],[2025/26 To - Spending review Topic 3]]+Dataset[[#This Row],[2025/26 To - Spending review Topic 4]]+Dataset[[#This Row],[2025/26 To - Other reallocations]]","v":0},{"$f":"Dataset[[#This Row],[2023/24 Baseline]]+Dataset[[#This Row],[2023/24 From - Total]]+Dataset[[#This Row],[2023/24 To - Total]]","v":0},{"$f":"Dataset[[#This Row],[2024/25 Baseline]]+Dataset[[#This Row],[2024/25 From - Total]]+Dataset[[#This Row],[2024/25 To - Total]]","v":0},{"$f":"Dataset[[#This Row],[2025/26 Baseline]]+Dataset[[#This Row],[2025/26 From - Total]]+Dataset[[#This Row],[2025/26 To - Total]]","v":0}]
["NAT|Non-transfer item","2|Infrastructure and planning services","2023_24","MTEF2023",2,1,2,706,89,"02","01","02","000706","000089","02|01|02",1,1,2,12,12,"01|01|02|12|12","National","Parliament","Administration","Office of the Secretary","Non-transfer item","Current","Current payments","Goods and services","Infrastructure and planning services","Infrastructure and planning services","General public services","Executive and legislative organs","NAT",0,0,0,0,0,0,0,0,0,0,0,null,null,null,null,null,null,null,null,null,null,null,null,null,null,null,null,null,null,null,null,null,null,null,null,null,null,null,null,null,null,{"$f":"Dataset[[#This Row],[2023/24 From - Spending review Topic 1]]+Dataset[[#This Row],[2023/24 From - Spending review Topic 2]]+Dataset[[#This Row],[2023/24 From - Spending review Topic 3]]+Dataset[[#This Row],[2023/24 From - Spending review Topic 4]]+Dataset[[#This Row],[2023/24 From - Other reallocations]]","v":0},{"$f":"Dataset[[#This Row],[2024/25 From - Spending review Topic 1]]+Dataset[[#This Row],[2024/25 From - Spending review Topic 2]]+Dataset[[#This Row],[2024/25 From - Spending review Topic 3]]+Dataset[[#This Row],[2024/25 From - Spending review Topic 4]]+Dataset[[#This Row],[2024/25 From - Other reallocations]]","v":0},{"$f":"Dataset[[#This Row],[2025/26 From - Spending review Topic 1]]+Dataset[[#This Row],[2025/26 From - Spending review Topic 2]]+Dataset[[#This Row],[2025/26 From - Spending review Topic 3]]+Dataset[[#This Row],[2025/26 From - Spending review Topic 4]]+Dataset[[#This Row],[2025/26 From - Other reallocations]]","v":0},{"$f":"Dataset[[#This Row],[2023/24 To - Spending review Topic 1]]+Dataset[[#This Row],[2023/24 To - Spending review Topic 2]]+Dataset[[#This Row],[2023/24 To - Spending review Topic 3]]+Dataset[[#This Row],[2023/24 To - Spending review Topic 4]]+Dataset[[#This Row],[2023/24 To - Other reallocations]]","v":0},{"$f":"Dataset[[#This Row],[2024/25 To - Spending review Topic 1]]+Dataset[[#This Row],[2024/25 To - Spending review Topic 2]]+Dataset[[#This Row],[2024/25 To - Spending review Topic 3]]+Dataset[[#This Row],[2024/25 To - Spending review Topic 4]]+Dataset[[#This Row],[2024/25 To - Other reallocations]]","v":0},{"$f":"Dataset[[#This Row],[2025/26 To - Spending review Topic 1]]+Dataset[[#This Row],[2025/26 To - Spending review Topic 2]]+Dataset[[#This Row],[2025/26 To - Spending review Topic 3]]+Dataset[[#This Row],[2025/26 To - Spending review Topic 4]]+Dataset[[#This Row],[2025/26 To - Other reallocations]]","v":0},{"$f":"Dataset[[#This Row],[2023/24 Baseline]]+Dataset[[#This Row],[2023/24 From - Total]]+Dataset[[#This Row],[2023/24 To - Total]]","v":0},{"$f":"Dataset[[#This Row],[2024/25 Baseline]]+Dataset[[#This Row],[2024/25 From - Total]]+Dataset[[#This Row],[2024/25 To - Total]]","v":0},{"$f":"Dataset[[#This Row],[2025/26 Baseline]]+Dataset[[#This Row],[2025/26 From - Total]]+Dataset[[#This Row],[2025/26 To - Total]]","v":0}]
["NAT|Non-transfer item","2|Laboratory services","2023_24","MTEF2023",2,1,2,707,90,"02","01","02","000707","000090","02|01|02",1,1,2,13,13,"01|01|02|13|13","National","Parliament","Administration","Office of the Secretary","Non-transfer item","Current","Current payments","Goods and services","Laboratory services","Laboratory services","General public services","Executive and legislative organs","NAT",0,0,0,0,0,0,0,0,0,0,0,null,null,null,null,null,null,null,null,null,null,null,null,null,null,null,null,null,null,null,null,null,null,null,null,null,null,null,null,null,null,{"$f":"Dataset[[#This Row],[2023/24 From - Spending review Topic 1]]+Dataset[[#This Row],[2023/24 From - Spending review Topic 2]]+Dataset[[#This Row],[2023/24 From - Spending review Topic 3]]+Dataset[[#This Row],[2023/24 From - Spending review Topic 4]]+Dataset[[#This Row],[2023/24 From - Other reallocations]]","v":0},{"$f":"Dataset[[#This Row],[2024/25 From - Spending review Topic 1]]+Dataset[[#This Row],[2024/25 From - Spending review Topic 2]]+Dataset[[#This Row],[2024/25 From - Spending review Topic 3]]+Dataset[[#This Row],[2024/25 From - Spending review Topic 4]]+Dataset[[#This Row],[2024/25 From - Other reallocations]]","v":0},{"$f":"Dataset[[#This Row],[2025/26 From - Spending review Topic 1]]+Dataset[[#This Row],[2025/26 From - Spending review Topic 2]]+Dataset[[#This Row],[2025/26 From - Spending review Topic 3]]+Dataset[[#This Row],[2025/26 From - Spending review Topic 4]]+Dataset[[#This Row],[2025/26 From - Other reallocations]]","v":0},{"$f":"Dataset[[#This Row],[2023/24 To - Spending review Topic 1]]+Dataset[[#This Row],[2023/24 To - Spending review Topic 2]]+Dataset[[#This Row],[2023/24 To - Spending review Topic 3]]+Dataset[[#This Row],[2023/24 To - Spending review Topic 4]]+Dataset[[#This Row],[2023/24 To - Other reallocations]]","v":0},{"$f":"Dataset[[#This Row],[2024/25 To - Spending review Topic 1]]+Dataset[[#This Row],[2024/25 To - Spending review Topic 2]]+Dataset[[#This Row],[2024/25 To - Spending review Topic 3]]+Dataset[[#This Row],[2024/25 To - Spending review Topic 4]]+Dataset[[#This Row],[2024/25 To - Other reallocations]]","v":0},{"$f":"Dataset[[#This Row],[2025/26 To - Spending review Topic 1]]+Dataset[[#This Row],[2025/26 To - Spending review Topic 2]]+Dataset[[#This Row],[2025/26 To - Spending review Topic 3]]+Dataset[[#This Row],[2025/26 To - Spending review Topic 4]]+Dataset[[#This Row],[2025/26 To - Other reallocations]]","v":0},{"$f":"Dataset[[#This Row],[2023/24 Baseline]]+Dataset[[#This Row],[2023/24 From - Total]]+Dataset[[#This Row],[2023/24 To - Total]]","v":0},{"$f":"Dataset[[#This Row],[2024/25 Baseline]]+Dataset[[#This Row],[2024/25 From - Total]]+Dataset[[#This Row],[2024/25 To - Total]]","v":0},{"$f":"Dataset[[#This Row],[2025/26 Baseline]]+Dataset[[#This Row],[2025/26 From - Total]]+Dataset[[#This Row],[2025/26 To - Total]]","v":0}]
["NAT|Non-transfer item","2|Legal services (G&S)","2023_24","MTEF2023",2,1,2,708,91,"02","01","02","000708","000091","02|01|02",1,1,2,14,14,"01|01|02|14|14","National","Parliament","Administration","Office of the Secretary","Non-transfer item","Current","Current payments","Goods and services","Legal services (G&S)","Legal services (G&S)","General public services","Executive and legislative organs","NAT",0,0,0,0,0,0,0,0,0,0,0,null,null,null,null,null,null,null,null,null,null,null,null,null,null,null,null,null,null,null,null,null,null,null,null,null,null,null,null,null,null,{"$f":"Dataset[[#This Row],[2023/24 From - Spending review Topic 1]]+Dataset[[#This Row],[2023/24 From - Spending review Topic 2]]+Dataset[[#This Row],[2023/24 From - Spending review Topic 3]]+Dataset[[#This Row],[2023/24 From - Spending review Topic 4]]+Dataset[[#This Row],[2023/24 From - Other reallocations]]","v":0},{"$f":"Dataset[[#This Row],[2024/25 From - Spending review Topic 1]]+Dataset[[#This Row],[2024/25 From - Spending review Topic 2]]+Dataset[[#This Row],[2024/25 From - Spending review Topic 3]]+Dataset[[#This Row],[2024/25 From - Spending review Topic 4]]+Dataset[[#This Row],[2024/25 From - Other reallocations]]","v":0},{"$f":"Dataset[[#This Row],[2025/26 From - Spending review Topic 1]]+Dataset[[#This Row],[2025/26 From - Spending review Topic 2]]+Dataset[[#This Row],[2025/26 From - Spending review Topic 3]]+Dataset[[#This Row],[2025/26 From - Spending review Topic 4]]+Dataset[[#This Row],[2025/26 From - Other reallocations]]","v":0},{"$f":"Dataset[[#This Row],[2023/24 To - Spending review Topic 1]]+Dataset[[#This Row],[2023/24 To - Spending review Topic 2]]+Dataset[[#This Row],[2023/24 To - Spending review Topic 3]]+Dataset[[#This Row],[2023/24 To - Spending review Topic 4]]+Dataset[[#This Row],[2023/24 To - Other reallocations]]","v":0},{"$f":"Dataset[[#This Row],[2024/25 To - Spending review Topic 1]]+Dataset[[#This Row],[2024/25 To - Spending review Topic 2]]+Dataset[[#This Row],[2024/25 To - Spending review Topic 3]]+Dataset[[#This Row],[2024/25 To - Spending review Topic 4]]+Dataset[[#This Row],[2024/25 To - Other reallocations]]","v":0},{"$f":"Dataset[[#This Row],[2025/26 To - Spending review Topic 1]]+Dataset[[#This Row],[2025/26 To - Spending review Topic 2]]+Dataset[[#This Row],[2025/26 To - Spending review Topic 3]]+Dataset[[#This Row],[2025/26 To - Spending review Topic 4]]+Dataset[[#This Row],[2025/26 To - Other reallocations]]","v":0},{"$f":"Dataset[[#This Row],[2023/24 Baseline]]+Dataset[[#This Row],[2023/24 From - Total]]+Dataset[[#This Row],[2023/24 To - Total]]","v":0},{"$f":"Dataset[[#This Row],[2024/25 Baseline]]+Dataset[[#This Row],[2024/25 From - Total]]+Dataset[[#This Row],[2024/25 To - Total]]","v":0},{"$f":"Dataset[[#This Row],[2025/26 Baseline]]+Dataset[[#This Row],[2025/26 From - Total]]+Dataset[[#This Row],[2025/26 To - Total]]","v":0}]
["NAT|Non-transfer item","2|Science and technological services","2023_24","MTEF2023",2,1,2,709,92,"02","01","02","000709","000092","02|01|02",1,1,2,15,15,"01|01|02|15|15","National","Parliament","Administration","Office of the Secretary","Non-transfer item","Current","Current payments","Goods and services","Science and technological services","Science and technological services","General public services","Executive and legislative organs","NAT",0,0,0,0,0,0,0,0,0,0,0,null,null,null,null,null,null,null,null,null,null,null,null,null,null,null,null,null,null,null,null,null,null,null,null,null,null,null,null,null,null,{"$f":"Dataset[[#This Row],[2023/24 From - Spending review Topic 1]]+Dataset[[#This Row],[2023/24 From - Spending review Topic 2]]+Dataset[[#This Row],[2023/24 From - Spending review Topic 3]]+Dataset[[#This Row],[2023/24 From - Spending review Topic 4]]+Dataset[[#This Row],[2023/24 From - Other reallocations]]","v":0},{"$f":"Dataset[[#This Row],[2024/25 From - Spending review Topic 1]]+Dataset[[#This Row],[2024/25 From - Spending review Topic 2]]+Dataset[[#This Row],[2024/25 From - Spending review Topic 3]]+Dataset[[#This Row],[2024/25 From - Spending review Topic 4]]+Dataset[[#This Row],[2024/25 From - Other reallocations]]","v":0},{"$f":"Dataset[[#This Row],[2025/26 From - Spending review Topic 1]]+Dataset[[#This Row],[2025/26 From - Spending review Topic 2]]+Dataset[[#This Row],[2025/26 From - Spending review Topic 3]]+Dataset[[#This Row],[2025/26 From - Spending review Topic 4]]+Dataset[[#This Row],[2025/26 From - Other reallocations]]","v":0},{"$f":"Dataset[[#This Row],[2023/24 To - Spending review Topic 1]]+Dataset[[#This Row],[2023/24 To - Spending review Topic 2]]+Dataset[[#This Row],[2023/24 To - Spending review Topic 3]]+Dataset[[#This Row],[2023/24 To - Spending review Topic 4]]+Dataset[[#This Row],[2023/24 To - Other reallocations]]","v":0},{"$f":"Dataset[[#This Row],[2024/25 To - Spending review Topic 1]]+Dataset[[#This Row],[2024/25 To - Spending review Topic 2]]+Dataset[[#This Row],[2024/25 To - Spending review Topic 3]]+Dataset[[#This Row],[2024/25 To - Spending review Topic 4]]+Dataset[[#This Row],[2024/25 To - Other reallocations]]","v":0},{"$f":"Dataset[[#This Row],[2025/26 To - Spending review Topic 1]]+Dataset[[#This Row],[2025/26 To - Spending review Topic 2]]+Dataset[[#This Row],[2025/26 To - Spending review Topic 3]]+Dataset[[#This Row],[2025/26 To - Spending review Topic 4]]+Dataset[[#This Row],[2025/26 To - Other reallocations]]","v":0},{"$f":"Dataset[[#This Row],[2023/24 Baseline]]+Dataset[[#This Row],[2023/24 From - Total]]+Dataset[[#This Row],[2023/24 To - Total]]","v":0},{"$f":"Dataset[[#This Row],[2024/25 Baseline]]+Dataset[[#This Row],[2024/25 From - Total]]+Dataset[[#This Row],[2024/25 To - Total]]","v":0},{"$f":"Dataset[[#This Row],[2025/26 Baseline]]+Dataset[[#This Row],[2025/26 From - Total]]+Dataset[[#This Row],[2025/26 To - Total]]","v":0}]
["NAT|Non-transfer item","2|Contractors","2023_24","MTEF2023",2,1,2,710,93,"02","01","02","000710","000093","02|01|02",1,1,2,16,16,"01|01|02|16|16","National","Parliament","Administration","Office of the Secretary","Non-transfer item","Current","Current payments","Goods and services","Contractors","Contractors","General public services","Executive and legislative organs","NAT",1708,0,99,73,73,73,0,74,74,77,80,null,null,null,null,null,null,null,null,null,null,null,null,null,null,null,null,null,null,null,null,null,null,null,null,null,null,null,null,null,null,{"$f":"Dataset[[#This Row],[2023/24 From - Spending review Topic 1]]+Dataset[[#This Row],[2023/24 From - Spending review Topic 2]]+Dataset[[#This Row],[2023/24 From - Spending review Topic 3]]+Dataset[[#This Row],[2023/24 From - Spending review Topic 4]]+Dataset[[#This Row],[2023/24 From - Other reallocations]]","v":0},{"$f":"Dataset[[#This Row],[2024/25 From - Spending review Topic 1]]+Dataset[[#This Row],[2024/25 From - Spending review Topic 2]]+Dataset[[#This Row],[2024/25 From - Spending review Topic 3]]+Dataset[[#This Row],[2024/25 From - Spending review Topic 4]]+Dataset[[#This Row],[2024/25 From - Other reallocations]]","v":0},{"$f":"Dataset[[#This Row],[2025/26 From - Spending review Topic 1]]+Dataset[[#This Row],[2025/26 From - Spending review Topic 2]]+Dataset[[#This Row],[2025/26 From - Spending review Topic 3]]+Dataset[[#This Row],[2025/26 From - Spending review Topic 4]]+Dataset[[#This Row],[2025/26 From - Other reallocations]]","v":0},{"$f":"Dataset[[#This Row],[2023/24 To - Spending review Topic 1]]+Dataset[[#This Row],[2023/24 To - Spending review Topic 2]]+Dataset[[#This Row],[2023/24 To - Spending review Topic 3]]+Dataset[[#This Row],[2023/24 To - Spending review Topic 4]]+Dataset[[#This Row],[2023/24 To - Other reallocations]]","v":0},{"$f":"Dataset[[#This Row],[2024/25 To - Spending review Topic 1]]+Dataset[[#This Row],[2024/25 To - Spending review Topic 2]]+Dataset[[#This Row],[2024/25 To - Spending review Topic 3]]+Dataset[[#This Row],[2024/25 To - Spending review Topic 4]]+Dataset[[#This Row],[2024/25 To - Other reallocations]]","v":0},{"$f":"Dataset[[#This Row],[2025/26 To - Spending review Topic 1]]+Dataset[[#This Row],[2025/26 To - Spending review Topic 2]]+Dataset[[#This Row],[2025/26 To - Spending review Topic 3]]+Dataset[[#This Row],[2025/26 To - Spending review Topic 4]]+Dataset[[#This Row],[2025/26 To - Other reallocations]]","v":0},{"$f":"Dataset[[#This Row],[2023/24 Baseline]]+Dataset[[#This Row],[2023/24 From - Total]]+Dataset[[#This Row],[2023/24 To - Total]]","v":74},{"$f":"Dataset[[#This Row],[2024/25 Baseline]]+Dataset[[#This Row],[2024/25 From - Total]]+Dataset[[#This Row],[2024/25 To - Total]]","v":77},{"$f":"Dataset[[#This Row],[2025/26 Baseline]]+Dataset[[#This Row],[2025/26 From - Total]]+Dataset[[#This Row],[2025/26 To - Total]]","v":80}]
["NAT|Non-transfer item","2|Agency and support/outsourced services","2023_24","MTEF2023",2,1,2,711,94,"02","01","02","000711","000094","02|01|02",1,1,2,17,17,"01|01|02|17|17","National","Parliament","Administration","Office of the Secretary","Non-transfer item","Current","Current payments","Goods and services","Agency and support/outsourced services","Agency and support/outsourced services","General public services","Executive and legislative organs","NAT",77,81,85,62,62,62,0,64,64,67,70,null,null,null,null,null,null,null,null,null,null,null,null,null,null,null,null,null,null,null,null,null,null,null,null,null,null,null,null,null,null,{"$f":"Dataset[[#This Row],[2023/24 From - Spending review Topic 1]]+Dataset[[#This Row],[2023/24 From - Spending review Topic 2]]+Dataset[[#This Row],[2023/24 From - Spending review Topic 3]]+Dataset[[#This Row],[2023/24 From - Spending review Topic 4]]+Dataset[[#This Row],[2023/24 From - Other reallocations]]","v":0},{"$f":"Dataset[[#This Row],[2024/25 From - Spending review Topic 1]]+Dataset[[#This Row],[2024/25 From - Spending review Topic 2]]+Dataset[[#This Row],[2024/25 From - Spending review Topic 3]]+Dataset[[#This Row],[2024/25 From - Spending review Topic 4]]+Dataset[[#This Row],[2024/25 From - Other reallocations]]","v":0},{"$f":"Dataset[[#This Row],[2025/26 From - Spending review Topic 1]]+Dataset[[#This Row],[2025/26 From - Spending review Topic 2]]+Dataset[[#This Row],[2025/26 From - Spending review Topic 3]]+Dataset[[#This Row],[2025/26 From - Spending review Topic 4]]+Dataset[[#This Row],[2025/26 From - Other reallocations]]","v":0},{"$f":"Dataset[[#This Row],[2023/24 To - Spending review Topic 1]]+Dataset[[#This Row],[2023/24 To - Spending review Topic 2]]+Dataset[[#This Row],[2023/24 To - Spending review Topic 3]]+Dataset[[#This Row],[2023/24 To - Spending review Topic 4]]+Dataset[[#This Row],[2023/24 To - Other reallocations]]","v":0},{"$f":"Dataset[[#This Row],[2024/25 To - Spending review Topic 1]]+Dataset[[#This Row],[2024/25 To - Spending review Topic 2]]+Dataset[[#This Row],[2024/25 To - Spending review Topic 3]]+Dataset[[#This Row],[2024/25 To - Spending review Topic 4]]+Dataset[[#This Row],[2024/25 To - Other reallocations]]","v":0},{"$f":"Dataset[[#This Row],[2025/26 To - Spending review Topic 1]]+Dataset[[#This Row],[2025/26 To - Spending review Topic 2]]+Dataset[[#This Row],[2025/26 To - Spending review Topic 3]]+Dataset[[#This Row],[2025/26 To - Spending review Topic 4]]+Dataset[[#This Row],[2025/26 To - Other reallocations]]","v":0},{"$f":"Dataset[[#This Row],[2023/24 Baseline]]+Dataset[[#This Row],[2023/24 From - Total]]+Dataset[[#This Row],[2023/24 To - Total]]","v":64},{"$f":"Dataset[[#This Row],[2024/25 Baseline]]+Dataset[[#This Row],[2024/25 From - Total]]+Dataset[[#This Row],[2024/25 To - Total]]","v":67},{"$f":"Dataset[[#This Row],[2025/26 Baseline]]+Dataset[[#This Row],[2025/26 From - Total]]+Dataset[[#This Row],[2025/26 To - Total]]","v":70}]
["NAT|Non-transfer item","2|Entertainment","2023_24","MTEF2023",2,1,2,712,95,"02","01","02","000712","000095","02|01|02",1,1,2,18,18,"01|01|02|18|18","National","Parliament","Administration","Office of the Secretary","Non-transfer item","Current","Current payments","Goods and services","Entertainment","Entertainment","General public services","Executive and legislative organs","NAT",110,116,122,89,89,89,0,91,91,95,99,null,null,null,null,null,null,null,null,null,null,null,null,null,null,null,null,null,null,null,null,null,null,null,null,null,null,null,null,null,null,{"$f":"Dataset[[#This Row],[2023/24 From - Spending review Topic 1]]+Dataset[[#This Row],[2023/24 From - Spending review Topic 2]]+Dataset[[#This Row],[2023/24 From - Spending review Topic 3]]+Dataset[[#This Row],[2023/24 From - Spending review Topic 4]]+Dataset[[#This Row],[2023/24 From - Other reallocations]]","v":0},{"$f":"Dataset[[#This Row],[2024/25 From - Spending review Topic 1]]+Dataset[[#This Row],[2024/25 From - Spending review Topic 2]]+Dataset[[#This Row],[2024/25 From - Spending review Topic 3]]+Dataset[[#This Row],[2024/25 From - Spending review Topic 4]]+Dataset[[#This Row],[2024/25 From - Other reallocations]]","v":0},{"$f":"Dataset[[#This Row],[2025/26 From - Spending review Topic 1]]+Dataset[[#This Row],[2025/26 From - Spending review Topic 2]]+Dataset[[#This Row],[2025/26 From - Spending review Topic 3]]+Dataset[[#This Row],[2025/26 From - Spending review Topic 4]]+Dataset[[#This Row],[2025/26 From - Other reallocations]]","v":0},{"$f":"Dataset[[#This Row],[2023/24 To - Spending review Topic 1]]+Dataset[[#This Row],[2023/24 To - Spending review Topic 2]]+Dataset[[#This Row],[2023/24 To - Spending review Topic 3]]+Dataset[[#This Row],[2023/24 To - Spending review Topic 4]]+Dataset[[#This Row],[2023/24 To - Other reallocations]]","v":0},{"$f":"Dataset[[#This Row],[2024/25 To - Spending review Topic 1]]+Dataset[[#This Row],[2024/25 To - Spending review Topic 2]]+Dataset[[#This Row],[2024/25 To - Spending review Topic 3]]+Dataset[[#This Row],[2024/25 To - Spending review Topic 4]]+Dataset[[#This Row],[2024/25 To - Other reallocations]]","v":0},{"$f":"Dataset[[#This Row],[2025/26 To - Spending review Topic 1]]+Dataset[[#This Row],[2025/26 To - Spending review Topic 2]]+Dataset[[#This Row],[2025/26 To - Spending review Topic 3]]+Dataset[[#This Row],[2025/26 To - Spending review Topic 4]]+Dataset[[#This Row],[2025/26 To - Other reallocations]]","v":0},{"$f":"Dataset[[#This Row],[2023/24 Baseline]]+Dataset[[#This Row],[2023/24 From - Total]]+Dataset[[#This Row],[2023/24 To - Total]]","v":91},{"$f":"Dataset[[#This Row],[2024/25 Baseline]]+Dataset[[#This Row],[2024/25 From - Total]]+Dataset[[#This Row],[2024/25 To - Total]]","v":95},{"$f":"Dataset[[#This Row],[2025/26 Baseline]]+Dataset[[#This Row],[2025/26 From - Total]]+Dataset[[#This Row],[2025/26 To - Total]]","v":99}]
["NAT|Non-transfer item","2|Fleet services (including government motor transport)","2023_24","MTEF2023",2,1,2,713,96,"02","01","02","000713","000096","02|01|02",1,1,2,19,19,"01|01|02|19|19","National","Parliament","Administration","Office of the Secretary","Non-transfer item","Current","Current payments","Goods and services","Fleet services (including government motor transport)","Fleet services (including government motor transport)","General public services","Executive and legislative organs","NAT",0,0,0,0,0,0,0,0,0,0,0,null,null,null,null,null,null,null,null,null,null,null,null,null,null,null,null,null,null,null,null,null,null,null,null,null,null,null,null,null,null,{"$f":"Dataset[[#This Row],[2023/24 From - Spending review Topic 1]]+Dataset[[#This Row],[2023/24 From - Spending review Topic 2]]+Dataset[[#This Row],[2023/24 From - Spending review Topic 3]]+Dataset[[#This Row],[2023/24 From - Spending review Topic 4]]+Dataset[[#This Row],[2023/24 From - Other reallocations]]","v":0},{"$f":"Dataset[[#This Row],[2024/25 From - Spending review Topic 1]]+Dataset[[#This Row],[2024/25 From - Spending review Topic 2]]+Dataset[[#This Row],[2024/25 From - Spending review Topic 3]]+Dataset[[#This Row],[2024/25 From - Spending review Topic 4]]+Dataset[[#This Row],[2024/25 From - Other reallocations]]","v":0},{"$f":"Dataset[[#This Row],[2025/26 From - Spending review Topic 1]]+Dataset[[#This Row],[2025/26 From - Spending review Topic 2]]+Dataset[[#This Row],[2025/26 From - Spending review Topic 3]]+Dataset[[#This Row],[2025/26 From - Spending review Topic 4]]+Dataset[[#This Row],[2025/26 From - Other reallocations]]","v":0},{"$f":"Dataset[[#This Row],[2023/24 To - Spending review Topic 1]]+Dataset[[#This Row],[2023/24 To - Spending review Topic 2]]+Dataset[[#This Row],[2023/24 To - Spending review Topic 3]]+Dataset[[#This Row],[2023/24 To - Spending review Topic 4]]+Dataset[[#This Row],[2023/24 To - Other reallocations]]","v":0},{"$f":"Dataset[[#This Row],[2024/25 To - Spending review Topic 1]]+Dataset[[#This Row],[2024/25 To - Spending review Topic 2]]+Dataset[[#This Row],[2024/25 To - Spending review Topic 3]]+Dataset[[#This Row],[2024/25 To - Spending review Topic 4]]+Dataset[[#This Row],[2024/25 To - Other reallocations]]","v":0},{"$f":"Dataset[[#This Row],[2025/26 To - Spending review Topic 1]]+Dataset[[#This Row],[2025/26 To - Spending review Topic 2]]+Dataset[[#This Row],[2025/26 To - Spending review Topic 3]]+Dataset[[#This Row],[2025/26 To - Spending review Topic 4]]+Dataset[[#This Row],[2025/26 To - Other reallocations]]","v":0},{"$f":"Dataset[[#This Row],[2023/24 Baseline]]+Dataset[[#This Row],[2023/24 From - Total]]+Dataset[[#This Row],[2023/24 To - Total]]","v":0},{"$f":"Dataset[[#This Row],[2024/25 Baseline]]+Dataset[[#This Row],[2024/25 From - Total]]+Dataset[[#This Row],[2024/25 To - Total]]","v":0},{"$f":"Dataset[[#This Row],[2025/26 Baseline]]+Dataset[[#This Row],[2025/26 From - Total]]+Dataset[[#This Row],[2025/26 To - Total]]","v":0}]
["NAT|Non-transfer item","2|Housing","2023_24","MTEF2023",2,1,2,714,97,"02","01","02","000714","000097","02|01|02",1,1,2,20,20,"01|01|02|20|20","National","Parliament","Administration","Office of the Secretary","Non-transfer item","Current","Current payments","Goods and services","Housing","Housing","General public services","Executive and legislative organs","NAT",0,0,0,0,0,0,0,0,0,0,0,null,null,null,null,null,null,null,null,null,null,null,null,null,null,null,null,null,null,null,null,null,null,null,null,null,null,null,null,null,null,{"$f":"Dataset[[#This Row],[2023/24 From - Spending review Topic 1]]+Dataset[[#This Row],[2023/24 From - Spending review Topic 2]]+Dataset[[#This Row],[2023/24 From - Spending review Topic 3]]+Dataset[[#This Row],[2023/24 From - Spending review Topic 4]]+Dataset[[#This Row],[2023/24 From - Other reallocations]]","v":0},{"$f":"Dataset[[#This Row],[2024/25 From - Spending review Topic 1]]+Dataset[[#This Row],[2024/25 From - Spending review Topic 2]]+Dataset[[#This Row],[2024/25 From - Spending review Topic 3]]+Dataset[[#This Row],[2024/25 From - Spending review Topic 4]]+Dataset[[#This Row],[2024/25 From - Other reallocations]]","v":0},{"$f":"Dataset[[#This Row],[2025/26 From - Spending review Topic 1]]+Dataset[[#This Row],[2025/26 From - Spending review Topic 2]]+Dataset[[#This Row],[2025/26 From - Spending review Topic 3]]+Dataset[[#This Row],[2025/26 From - Spending review Topic 4]]+Dataset[[#This Row],[2025/26 From - Other reallocations]]","v":0},{"$f":"Dataset[[#This Row],[2023/24 To - Spending review Topic 1]]+Dataset[[#This Row],[2023/24 To - Spending review Topic 2]]+Dataset[[#This Row],[2023/24 To - Spending review Topic 3]]+Dataset[[#This Row],[2023/24 To - Spending review Topic 4]]+Dataset[[#This Row],[2023/24 To - Other reallocations]]","v":0},{"$f":"Dataset[[#This Row],[2024/25 To - Spending review Topic 1]]+Dataset[[#This Row],[2024/25 To - Spending review Topic 2]]+Dataset[[#This Row],[2024/25 To - Spending review Topic 3]]+Dataset[[#This Row],[2024/25 To - Spending review Topic 4]]+Dataset[[#This Row],[2024/25 To - Other reallocations]]","v":0},{"$f":"Dataset[[#This Row],[2025/26 To - Spending review Topic 1]]+Dataset[[#This Row],[2025/26 To - Spending review Topic 2]]+Dataset[[#This Row],[2025/26 To - Spending review Topic 3]]+Dataset[[#This Row],[2025/26 To - Spending review Topic 4]]+Dataset[[#This Row],[2025/26 To - Other reallocations]]","v":0},{"$f":"Dataset[[#This Row],[2023/24 Baseline]]+Dataset[[#This Row],[2023/24 From - Total]]+Dataset[[#This Row],[2023/24 To - Total]]","v":0},{"$f":"Dataset[[#This Row],[2024/25 Baseline]]+Dataset[[#This Row],[2024/25 From - Total]]+Dataset[[#This Row],[2024/25 To - Total]]","v":0},{"$f":"Dataset[[#This Row],[2025/26 Baseline]]+Dataset[[#This Row],[2025/26 From - Total]]+Dataset[[#This Row],[2025/26 To - Total]]","v":0}]
["NAT|Non-transfer item","2|Inventory: Clothing material and accessories","2023_24","MTEF2023",2,1,2,715,98,"02","01","02","000715","000098","02|01|02",1,1,2,21,21,"01|01|02|21|21","National","Parliament","Administration","Office of the Secretary","Non-transfer item","Current","Current payments","Goods and services","Inventory: Clothing material and accessories","Inventory: Clothing material and accessories","General public services","Executive and legislative organs","NAT",0,0,0,0,0,0,0,0,0,0,0,null,null,null,null,null,null,null,null,null,null,null,null,null,null,null,null,null,null,null,null,null,null,null,null,null,null,null,null,null,null,{"$f":"Dataset[[#This Row],[2023/24 From - Spending review Topic 1]]+Dataset[[#This Row],[2023/24 From - Spending review Topic 2]]+Dataset[[#This Row],[2023/24 From - Spending review Topic 3]]+Dataset[[#This Row],[2023/24 From - Spending review Topic 4]]+Dataset[[#This Row],[2023/24 From - Other reallocations]]","v":0},{"$f":"Dataset[[#This Row],[2024/25 From - Spending review Topic 1]]+Dataset[[#This Row],[2024/25 From - Spending review Topic 2]]+Dataset[[#This Row],[2024/25 From - Spending review Topic 3]]+Dataset[[#This Row],[2024/25 From - Spending review Topic 4]]+Dataset[[#This Row],[2024/25 From - Other reallocations]]","v":0},{"$f":"Dataset[[#This Row],[2025/26 From - Spending review Topic 1]]+Dataset[[#This Row],[2025/26 From - Spending review Topic 2]]+Dataset[[#This Row],[2025/26 From - Spending review Topic 3]]+Dataset[[#This Row],[2025/26 From - Spending review Topic 4]]+Dataset[[#This Row],[2025/26 From - Other reallocations]]","v":0},{"$f":"Dataset[[#This Row],[2023/24 To - Spending review Topic 1]]+Dataset[[#This Row],[2023/24 To - Spending review Topic 2]]+Dataset[[#This Row],[2023/24 To - Spending review Topic 3]]+Dataset[[#This Row],[2023/24 To - Spending review Topic 4]]+Dataset[[#This Row],[2023/24 To - Other reallocations]]","v":0},{"$f":"Dataset[[#This Row],[2024/25 To - Spending review Topic 1]]+Dataset[[#This Row],[2024/25 To - Spending review Topic 2]]+Dataset[[#This Row],[2024/25 To - Spending review Topic 3]]+Dataset[[#This Row],[2024/25 To - Spending review Topic 4]]+Dataset[[#This Row],[2024/25 To - Other reallocations]]","v":0},{"$f":"Dataset[[#This Row],[2025/26 To - Spending review Topic 1]]+Dataset[[#This Row],[2025/26 To - Spending review Topic 2]]+Dataset[[#This Row],[2025/26 To - Spending review Topic 3]]+Dataset[[#This Row],[2025/26 To - Spending review Topic 4]]+Dataset[[#This Row],[2025/26 To - Other reallocations]]","v":0},{"$f":"Dataset[[#This Row],[2023/24 Baseline]]+Dataset[[#This Row],[2023/24 From - Total]]+Dataset[[#This Row],[2023/24 To - Total]]","v":0},{"$f":"Dataset[[#This Row],[2024/25 Baseline]]+Dataset[[#This Row],[2024/25 From - Total]]+Dataset[[#This Row],[2024/25 To - Total]]","v":0},{"$f":"Dataset[[#This Row],[2025/26 Baseline]]+Dataset[[#This Row],[2025/26 From - Total]]+Dataset[[#This Row],[2025/26 To - Total]]","v":0}]
["NAT|Non-transfer item","2|Inventory: Farming supplies","2023_24","MTEF2023",2,1,2,716,99,"02","01","02","000716","000099","02|01|02",1,1,2,22,22,"01|01|02|22|22","National","Parliament","Administration","Office of the Secretary","Non-transfer item","Current","Current payments","Goods and services","Inventory: Farming supplies","Inventory: Farming supplies","General public services","Executive and legislative organs","NAT",0,0,0,0,0,0,0,0,0,0,0,null,null,null,null,null,null,null,null,null,null,null,null,null,null,null,null,null,null,null,null,null,null,null,null,null,null,null,null,null,null,{"$f":"Dataset[[#This Row],[2023/24 From - Spending review Topic 1]]+Dataset[[#This Row],[2023/24 From - Spending review Topic 2]]+Dataset[[#This Row],[2023/24 From - Spending review Topic 3]]+Dataset[[#This Row],[2023/24 From - Spending review Topic 4]]+Dataset[[#This Row],[2023/24 From - Other reallocations]]","v":0},{"$f":"Dataset[[#This Row],[2024/25 From - Spending review Topic 1]]+Dataset[[#This Row],[2024/25 From - Spending review Topic 2]]+Dataset[[#This Row],[2024/25 From - Spending review Topic 3]]+Dataset[[#This Row],[2024/25 From - Spending review Topic 4]]+Dataset[[#This Row],[2024/25 From - Other reallocations]]","v":0},{"$f":"Dataset[[#This Row],[2025/26 From - Spending review Topic 1]]+Dataset[[#This Row],[2025/26 From - Spending review Topic 2]]+Dataset[[#This Row],[2025/26 From - Spending review Topic 3]]+Dataset[[#This Row],[2025/26 From - Spending review Topic 4]]+Dataset[[#This Row],[2025/26 From - Other reallocations]]","v":0},{"$f":"Dataset[[#This Row],[2023/24 To - Spending review Topic 1]]+Dataset[[#This Row],[2023/24 To - Spending review Topic 2]]+Dataset[[#This Row],[2023/24 To - Spending review Topic 3]]+Dataset[[#This Row],[2023/24 To - Spending review Topic 4]]+Dataset[[#This Row],[2023/24 To - Other reallocations]]","v":0},{"$f":"Dataset[[#This Row],[2024/25 To - Spending review Topic 1]]+Dataset[[#This Row],[2024/25 To - Spending review Topic 2]]+Dataset[[#This Row],[2024/25 To - Spending review Topic 3]]+Dataset[[#This Row],[2024/25 To - Spending review Topic 4]]+Dataset[[#This Row],[2024/25 To - Other reallocations]]","v":0},{"$f":"Dataset[[#This Row],[2025/26 To - Spending review Topic 1]]+Dataset[[#This Row],[2025/26 To - Spending review Topic 2]]+Dataset[[#This Row],[2025/26 To - Spending review Topic 3]]+Dataset[[#This Row],[2025/26 To - Spending review Topic 4]]+Dataset[[#This Row],[2025/26 To - Other reallocations]]","v":0},{"$f":"Dataset[[#This Row],[2023/24 Baseline]]+Dataset[[#This Row],[2023/24 From - Total]]+Dataset[[#This Row],[2023/24 To - Total]]","v":0},{"$f":"Dataset[[#This Row],[2024/25 Baseline]]+Dataset[[#This Row],[2024/25 From - Total]]+Dataset[[#This Row],[2024/25 To - Total]]","v":0},{"$f":"Dataset[[#This Row],[2025/26 Baseline]]+Dataset[[#This Row],[2025/26 From - Total]]+Dataset[[#This Row],[2025/26 To - Total]]","v":0}]
["NAT|Non-transfer item","2|Inventory: Food and food supplies","2023_24","MTEF2023",2,1,2,717,100,"02","01","02","000717","000100","02|01|02",1,1,2,23,23,"01|01|02|23|23","National","Parliament","Administration","Office of the Secretary","Non-transfer item","Current","Current payments","Goods and services","Inventory: Food and food supplies","Inventory: Food and food supplies","General public services","Executive and legislative organs","NAT",0,0,0,0,0,0,0,0,0,0,0,null,null,null,null,null,null,null,null,null,null,null,null,null,null,null,null,null,null,null,null,null,null,null,null,null,null,null,null,null,null,{"$f":"Dataset[[#This Row],[2023/24 From - Spending review Topic 1]]+Dataset[[#This Row],[2023/24 From - Spending review Topic 2]]+Dataset[[#This Row],[2023/24 From - Spending review Topic 3]]+Dataset[[#This Row],[2023/24 From - Spending review Topic 4]]+Dataset[[#This Row],[2023/24 From - Other reallocations]]","v":0},{"$f":"Dataset[[#This Row],[2024/25 From - Spending review Topic 1]]+Dataset[[#This Row],[2024/25 From - Spending review Topic 2]]+Dataset[[#This Row],[2024/25 From - Spending review Topic 3]]+Dataset[[#This Row],[2024/25 From - Spending review Topic 4]]+Dataset[[#This Row],[2024/25 From - Other reallocations]]","v":0},{"$f":"Dataset[[#This Row],[2025/26 From - Spending review Topic 1]]+Dataset[[#This Row],[2025/26 From - Spending review Topic 2]]+Dataset[[#This Row],[2025/26 From - Spending review Topic 3]]+Dataset[[#This Row],[2025/26 From - Spending review Topic 4]]+Dataset[[#This Row],[2025/26 From - Other reallocations]]","v":0},{"$f":"Dataset[[#This Row],[2023/24 To - Spending review Topic 1]]+Dataset[[#This Row],[2023/24 To - Spending review Topic 2]]+Dataset[[#This Row],[2023/24 To - Spending review Topic 3]]+Dataset[[#This Row],[2023/24 To - Spending review Topic 4]]+Dataset[[#This Row],[2023/24 To - Other reallocations]]","v":0},{"$f":"Dataset[[#This Row],[2024/25 To - Spending review Topic 1]]+Dataset[[#This Row],[2024/25 To - Spending review Topic 2]]+Dataset[[#This Row],[2024/25 To - Spending review Topic 3]]+Dataset[[#This Row],[2024/25 To - Spending review Topic 4]]+Dataset[[#This Row],[2024/25 To - Other reallocations]]","v":0},{"$f":"Dataset[[#This Row],[2025/26 To - Spending review Topic 1]]+Dataset[[#This Row],[2025/26 To - Spending review Topic 2]]+Dataset[[#This Row],[2025/26 To - Spending review Topic 3]]+Dataset[[#This Row],[2025/26 To - Spending review Topic 4]]+Dataset[[#This Row],[2025/26 To - Other reallocations]]","v":0},{"$f":"Dataset[[#This Row],[2023/24 Baseline]]+Dataset[[#This Row],[2023/24 From - Total]]+Dataset[[#This Row],[2023/24 To - Total]]","v":0},{"$f":"Dataset[[#This Row],[2024/25 Baseline]]+Dataset[[#This Row],[2024/25 From - Total]]+Dataset[[#This Row],[2024/25 To - Total]]","v":0},{"$f":"Dataset[[#This Row],[2025/26 Baseline]]+Dataset[[#This Row],[2025/26 From - Total]]+Dataset[[#This Row],[2025/26 To - Total]]","v":0}]
["NAT|Non-transfer item","2|Inventory: Fuel, oil and gas","2023_24","MTEF2023",2,1,2,718,101,"02","01","02","000718","000101","02|01|02",1,1,2,24,24,"01|01|02|24|24","National","Parliament","Administration","Office of the Secretary","Non-transfer item","Current","Current payments","Goods and services","Inventory: Fuel, oil and gas","Inventory: Fuel, oil and gas","General public services","Executive and legislative organs","NAT",0,0,0,0,0,0,0,0,0,0,0,null,null,null,null,null,null,null,null,null,null,null,null,null,null,null,null,null,null,null,null,null,null,null,null,null,null,null,null,null,null,{"$f":"Dataset[[#This Row],[2023/24 From - Spending review Topic 1]]+Dataset[[#This Row],[2023/24 From - Spending review Topic 2]]+Dataset[[#This Row],[2023/24 From - Spending review Topic 3]]+Dataset[[#This Row],[2023/24 From - Spending review Topic 4]]+Dataset[[#This Row],[2023/24 From - Other reallocations]]","v":0},{"$f":"Dataset[[#This Row],[2024/25 From - Spending review Topic 1]]+Dataset[[#This Row],[2024/25 From - Spending review Topic 2]]+Dataset[[#This Row],[2024/25 From - Spending review Topic 3]]+Dataset[[#This Row],[2024/25 From - Spending review Topic 4]]+Dataset[[#This Row],[2024/25 From - Other reallocations]]","v":0},{"$f":"Dataset[[#This Row],[2025/26 From - Spending review Topic 1]]+Dataset[[#This Row],[2025/26 From - Spending review Topic 2]]+Dataset[[#This Row],[2025/26 From - Spending review Topic 3]]+Dataset[[#This Row],[2025/26 From - Spending review Topic 4]]+Dataset[[#This Row],[2025/26 From - Other reallocations]]","v":0},{"$f":"Dataset[[#This Row],[2023/24 To - Spending review Topic 1]]+Dataset[[#This Row],[2023/24 To - Spending review Topic 2]]+Dataset[[#This Row],[2023/24 To - Spending review Topic 3]]+Dataset[[#This Row],[2023/24 To - Spending review Topic 4]]+Dataset[[#This Row],[2023/24 To - Other reallocations]]","v":0},{"$f":"Dataset[[#This Row],[2024/25 To - Spending review Topic 1]]+Dataset[[#This Row],[2024/25 To - Spending review Topic 2]]+Dataset[[#This Row],[2024/25 To - Spending review Topic 3]]+Dataset[[#This Row],[2024/25 To - Spending review Topic 4]]+Dataset[[#This Row],[2024/25 To - Other reallocations]]","v":0},{"$f":"Dataset[[#This Row],[2025/26 To - Spending review Topic 1]]+Dataset[[#This Row],[2025/26 To - Spending review Topic 2]]+Dataset[[#This Row],[2025/26 To - Spending review Topic 3]]+Dataset[[#This Row],[2025/26 To - Spending review Topic 4]]+Dataset[[#This Row],[2025/26 To - Other reallocations]]","v":0},{"$f":"Dataset[[#This Row],[2023/24 Baseline]]+Dataset[[#This Row],[2023/24 From - Total]]+Dataset[[#This Row],[2023/24 To - Total]]","v":0},{"$f":"Dataset[[#This Row],[2024/25 Baseline]]+Dataset[[#This Row],[2024/25 From - Total]]+Dataset[[#This Row],[2024/25 To - Total]]","v":0},{"$f":"Dataset[[#This Row],[2025/26 Baseline]]+Dataset[[#This Row],[2025/26 From - Total]]+Dataset[[#This Row],[2025/26 To - Total]]","v":0}]
["NAT|Non-transfer item","2|Inventory: Learner and teacher support material","2023_24","MTEF2023",2,1,2,719,102,"02","01","02","000719","000102","02|01|02",1,1,2,25,25,"01|01|02|25|25","National","Parliament","Administration","Office of the Secretary","Non-transfer item","Current","Current payments","Goods and services","Inventory: Learner and teacher support material","Inventory: Learner and teacher support material","General public services","Executive and legislative organs","NAT",0,0,0,0,0,0,0,0,0,0,0,null,null,null,null,null,null,null,null,null,null,null,null,null,null,null,null,null,null,null,null,null,null,null,null,null,null,null,null,null,null,{"$f":"Dataset[[#This Row],[2023/24 From - Spending review Topic 1]]+Dataset[[#This Row],[2023/24 From - Spending review Topic 2]]+Dataset[[#This Row],[2023/24 From - Spending review Topic 3]]+Dataset[[#This Row],[2023/24 From - Spending review Topic 4]]+Dataset[[#This Row],[2023/24 From - Other reallocations]]","v":0},{"$f":"Dataset[[#This Row],[2024/25 From - Spending review Topic 1]]+Dataset[[#This Row],[2024/25 From - Spending review Topic 2]]+Dataset[[#This Row],[2024/25 From - Spending review Topic 3]]+Dataset[[#This Row],[2024/25 From - Spending review Topic 4]]+Dataset[[#This Row],[2024/25 From - Other reallocations]]","v":0},{"$f":"Dataset[[#This Row],[2025/26 From - Spending review Topic 1]]+Dataset[[#This Row],[2025/26 From - Spending review Topic 2]]+Dataset[[#This Row],[2025/26 From - Spending review Topic 3]]+Dataset[[#This Row],[2025/26 From - Spending review Topic 4]]+Dataset[[#This Row],[2025/26 From - Other reallocations]]","v":0},{"$f":"Dataset[[#This Row],[2023/24 To - Spending review Topic 1]]+Dataset[[#This Row],[2023/24 To - Spending review Topic 2]]+Dataset[[#This Row],[2023/24 To - Spending review Topic 3]]+Dataset[[#This Row],[2023/24 To - Spending review Topic 4]]+Dataset[[#This Row],[2023/24 To - Other reallocations]]","v":0},{"$f":"Dataset[[#This Row],[2024/25 To - Spending review Topic 1]]+Dataset[[#This Row],[2024/25 To - Spending review Topic 2]]+Dataset[[#This Row],[2024/25 To - Spending review Topic 3]]+Dataset[[#This Row],[2024/25 To - Spending review Topic 4]]+Dataset[[#This Row],[2024/25 To - Other reallocations]]","v":0},{"$f":"Dataset[[#This Row],[2025/26 To - Spending review Topic 1]]+Dataset[[#This Row],[2025/26 To - Spending review Topic 2]]+Dataset[[#This Row],[2025/26 To - Spending review Topic 3]]+Dataset[[#This Row],[2025/26 To - Spending review Topic 4]]+Dataset[[#This Row],[2025/26 To - Other reallocations]]","v":0},{"$f":"Dataset[[#This Row],[2023/24 Baseline]]+Dataset[[#This Row],[2023/24 From - Total]]+Dataset[[#This Row],[2023/24 To - Total]]","v":0},{"$f":"Dataset[[#This Row],[2024/25 Baseline]]+Dataset[[#This Row],[2024/25 From - Total]]+Dataset[[#This Row],[2024/25 To - Total]]","v":0},{"$f":"Dataset[[#This Row],[2025/26 Baseline]]+Dataset[[#This Row],[2025/26 From - Total]]+Dataset[[#This Row],[2025/26 To - Total]]","v":0}]
["NAT|Non-transfer item","2|Inventory: Materials and supplies","2023_24","MTEF2023",2,1,2,720,103,"02","01","02","000720","000103","02|01|02",1,1,2,26,26,"01|01|02|26|26","National","Parliament","Administration","Office of the Secretary","Non-transfer item","Current","Current payments","Goods and services","Inventory: Materials and supplies","Inventory: Materials and supplies","General public services","Executive and legislative organs","NAT",0,0,0,0,0,0,0,0,0,0,0,null,null,null,null,null,null,null,null,null,null,null,null,null,null,null,null,null,null,null,null,null,null,null,null,null,null,null,null,null,null,{"$f":"Dataset[[#This Row],[2023/24 From - Spending review Topic 1]]+Dataset[[#This Row],[2023/24 From - Spending review Topic 2]]+Dataset[[#This Row],[2023/24 From - Spending review Topic 3]]+Dataset[[#This Row],[2023/24 From - Spending review Topic 4]]+Dataset[[#This Row],[2023/24 From - Other reallocations]]","v":0},{"$f":"Dataset[[#This Row],[2024/25 From - Spending review Topic 1]]+Dataset[[#This Row],[2024/25 From - Spending review Topic 2]]+Dataset[[#This Row],[2024/25 From - Spending review Topic 3]]+Dataset[[#This Row],[2024/25 From - Spending review Topic 4]]+Dataset[[#This Row],[2024/25 From - Other reallocations]]","v":0},{"$f":"Dataset[[#This Row],[2025/26 From - Spending review Topic 1]]+Dataset[[#This Row],[2025/26 From - Spending review Topic 2]]+Dataset[[#This Row],[2025/26 From - Spending review Topic 3]]+Dataset[[#This Row],[2025/26 From - Spending review Topic 4]]+Dataset[[#This Row],[2025/26 From - Other reallocations]]","v":0},{"$f":"Dataset[[#This Row],[2023/24 To - Spending review Topic 1]]+Dataset[[#This Row],[2023/24 To - Spending review Topic 2]]+Dataset[[#This Row],[2023/24 To - Spending review Topic 3]]+Dataset[[#This Row],[2023/24 To - Spending review Topic 4]]+Dataset[[#This Row],[2023/24 To - Other reallocations]]","v":0},{"$f":"Dataset[[#This Row],[2024/25 To - Spending review Topic 1]]+Dataset[[#This Row],[2024/25 To - Spending review Topic 2]]+Dataset[[#This Row],[2024/25 To - Spending review Topic 3]]+Dataset[[#This Row],[2024/25 To - Spending review Topic 4]]+Dataset[[#This Row],[2024/25 To - Other reallocations]]","v":0},{"$f":"Dataset[[#This Row],[2025/26 To - Spending review Topic 1]]+Dataset[[#This Row],[2025/26 To - Spending review Topic 2]]+Dataset[[#This Row],[2025/26 To - Spending review Topic 3]]+Dataset[[#This Row],[2025/26 To - Spending review Topic 4]]+Dataset[[#This Row],[2025/26 To - Other reallocations]]","v":0},{"$f":"Dataset[[#This Row],[2023/24 Baseline]]+Dataset[[#This Row],[2023/24 From - Total]]+Dataset[[#This Row],[2023/24 To - Total]]","v":0},{"$f":"Dataset[[#This Row],[2024/25 Baseline]]+Dataset[[#This Row],[2024/25 From - Total]]+Dataset[[#This Row],[2024/25 To - Total]]","v":0},{"$f":"Dataset[[#This Row],[2025/26 Baseline]]+Dataset[[#This Row],[2025/26 From - Total]]+Dataset[[#This Row],[2025/26 To - Total]]","v":0}]
["NAT|Non-transfer item","2|Inventory: Medical supplies","2023_24","MTEF2023",2,1,2,721,104,"02","01","02","000721","000104","02|01|02",1,1,2,27,27,"01|01|02|27|27","National","Parliament","Administration","Office of the Secretary","Non-transfer item","Current","Current payments","Goods and services","Inventory: Medical supplies","Inventory: Medical supplies","General public services","Executive and legislative organs","NAT",0,0,0,0,0,0,0,0,0,0,0,null,null,null,null,null,null,null,null,null,null,null,null,null,null,null,null,null,null,null,null,null,null,null,null,null,null,null,null,null,null,{"$f":"Dataset[[#This Row],[2023/24 From - Spending review Topic 1]]+Dataset[[#This Row],[2023/24 From - Spending review Topic 2]]+Dataset[[#This Row],[2023/24 From - Spending review Topic 3]]+Dataset[[#This Row],[2023/24 From - Spending review Topic 4]]+Dataset[[#This Row],[2023/24 From - Other reallocations]]","v":0},{"$f":"Dataset[[#This Row],[2024/25 From - Spending review Topic 1]]+Dataset[[#This Row],[2024/25 From - Spending review Topic 2]]+Dataset[[#This Row],[2024/25 From - Spending review Topic 3]]+Dataset[[#This Row],[2024/25 From - Spending review Topic 4]]+Dataset[[#This Row],[2024/25 From - Other reallocations]]","v":0},{"$f":"Dataset[[#This Row],[2025/26 From - Spending review Topic 1]]+Dataset[[#This Row],[2025/26 From - Spending review Topic 2]]+Dataset[[#This Row],[2025/26 From - Spending review Topic 3]]+Dataset[[#This Row],[2025/26 From - Spending review Topic 4]]+Dataset[[#This Row],[2025/26 From - Other reallocations]]","v":0},{"$f":"Dataset[[#This Row],[2023/24 To - Spending review Topic 1]]+Dataset[[#This Row],[2023/24 To - Spending review Topic 2]]+Dataset[[#This Row],[2023/24 To - Spending review Topic 3]]+Dataset[[#This Row],[2023/24 To - Spending review Topic 4]]+Dataset[[#This Row],[2023/24 To - Other reallocations]]","v":0},{"$f":"Dataset[[#This Row],[2024/25 To - Spending review Topic 1]]+Dataset[[#This Row],[2024/25 To - Spending review Topic 2]]+Dataset[[#This Row],[2024/25 To - Spending review Topic 3]]+Dataset[[#This Row],[2024/25 To - Spending review Topic 4]]+Dataset[[#This Row],[2024/25 To - Other reallocations]]","v":0},{"$f":"Dataset[[#This Row],[2025/26 To - Spending review Topic 1]]+Dataset[[#This Row],[2025/26 To - Spending review Topic 2]]+Dataset[[#This Row],[2025/26 To - Spending review Topic 3]]+Dataset[[#This Row],[2025/26 To - Spending review Topic 4]]+Dataset[[#This Row],[2025/26 To - Other reallocations]]","v":0},{"$f":"Dataset[[#This Row],[2023/24 Baseline]]+Dataset[[#This Row],[2023/24 From - Total]]+Dataset[[#This Row],[2023/24 To - Total]]","v":0},{"$f":"Dataset[[#This Row],[2024/25 Baseline]]+Dataset[[#This Row],[2024/25 From - Total]]+Dataset[[#This Row],[2024/25 To - Total]]","v":0},{"$f":"Dataset[[#This Row],[2025/26 Baseline]]+Dataset[[#This Row],[2025/26 From - Total]]+Dataset[[#This Row],[2025/26 To - Total]]","v":0}]
["NAT|Non-transfer item","2|Inventory: Medicine","2023_24","MTEF2023",2,1,2,722,105,"02","01","02","000722","000105","02|01|02",1,1,2,28,28,"01|01|02|28|28","National","Parliament","Administration","Office of the Secretary","Non-transfer item","Current","Current payments","Goods and services","Inventory: Medicine","Inventory: Medicine","General public services","Executive and legislative organs","NAT",0,0,0,0,0,0,0,0,0,0,0,null,null,null,null,null,null,null,null,null,null,null,null,null,null,null,null,null,null,null,null,null,null,null,null,null,null,null,null,null,null,{"$f":"Dataset[[#This Row],[2023/24 From - Spending review Topic 1]]+Dataset[[#This Row],[2023/24 From - Spending review Topic 2]]+Dataset[[#This Row],[2023/24 From - Spending review Topic 3]]+Dataset[[#This Row],[2023/24 From - Spending review Topic 4]]+Dataset[[#This Row],[2023/24 From - Other reallocations]]","v":0},{"$f":"Dataset[[#This Row],[2024/25 From - Spending review Topic 1]]+Dataset[[#This Row],[2024/25 From - Spending review Topic 2]]+Dataset[[#This Row],[2024/25 From - Spending review Topic 3]]+Dataset[[#This Row],[2024/25 From - Spending review Topic 4]]+Dataset[[#This Row],[2024/25 From - Other reallocations]]","v":0},{"$f":"Dataset[[#This Row],[2025/26 From - Spending review Topic 1]]+Dataset[[#This Row],[2025/26 From - Spending review Topic 2]]+Dataset[[#This Row],[2025/26 From - Spending review Topic 3]]+Dataset[[#This Row],[2025/26 From - Spending review Topic 4]]+Dataset[[#This Row],[2025/26 From - Other reallocations]]","v":0},{"$f":"Dataset[[#This Row],[2023/24 To - Spending review Topic 1]]+Dataset[[#This Row],[2023/24 To - Spending review Topic 2]]+Dataset[[#This Row],[2023/24 To - Spending review Topic 3]]+Dataset[[#This Row],[2023/24 To - Spending review Topic 4]]+Dataset[[#This Row],[2023/24 To - Other reallocations]]","v":0},{"$f":"Dataset[[#This Row],[2024/25 To - Spending review Topic 1]]+Dataset[[#This Row],[2024/25 To - Spending review Topic 2]]+Dataset[[#This Row],[2024/25 To - Spending review Topic 3]]+Dataset[[#This Row],[2024/25 To - Spending review Topic 4]]+Dataset[[#This Row],[2024/25 To - Other reallocations]]","v":0},{"$f":"Dataset[[#This Row],[2025/26 To - Spending review Topic 1]]+Dataset[[#This Row],[2025/26 To - Spending review Topic 2]]+Dataset[[#This Row],[2025/26 To - Spending review Topic 3]]+Dataset[[#This Row],[2025/26 To - Spending review Topic 4]]+Dataset[[#This Row],[2025/26 To - Other reallocations]]","v":0},{"$f":"Dataset[[#This Row],[2023/24 Baseline]]+Dataset[[#This Row],[2023/24 From - Total]]+Dataset[[#This Row],[2023/24 To - Total]]","v":0},{"$f":"Dataset[[#This Row],[2024/25 Baseline]]+Dataset[[#This Row],[2024/25 From - Total]]+Dataset[[#This Row],[2024/25 To - Total]]","v":0},{"$f":"Dataset[[#This Row],[2025/26 Baseline]]+Dataset[[#This Row],[2025/26 From - Total]]+Dataset[[#This Row],[2025/26 To - Total]]","v":0}]
["NAT|Non-transfer item","2|Medsas inventory interface","2023_24","MTEF2023",2,1,2,723,106,"02","01","02","000723","000106","02|01|02",1,1,2,29,29,"01|01|02|29|29","National","Parliament","Administration","Office of the Secretary","Non-transfer item","Current","Current payments","Goods and services","Medsas inventory interface","Medsas inventory interface","General public services","Executive and legislative organs","NAT",0,0,0,0,0,0,0,0,0,0,0,null,null,null,null,null,null,null,null,null,null,null,null,null,null,null,null,null,null,null,null,null,null,null,null,null,null,null,null,null,null,{"$f":"Dataset[[#This Row],[2023/24 From - Spending review Topic 1]]+Dataset[[#This Row],[2023/24 From - Spending review Topic 2]]+Dataset[[#This Row],[2023/24 From - Spending review Topic 3]]+Dataset[[#This Row],[2023/24 From - Spending review Topic 4]]+Dataset[[#This Row],[2023/24 From - Other reallocations]]","v":0},{"$f":"Dataset[[#This Row],[2024/25 From - Spending review Topic 1]]+Dataset[[#This Row],[2024/25 From - Spending review Topic 2]]+Dataset[[#This Row],[2024/25 From - Spending review Topic 3]]+Dataset[[#This Row],[2024/25 From - Spending review Topic 4]]+Dataset[[#This Row],[2024/25 From - Other reallocations]]","v":0},{"$f":"Dataset[[#This Row],[2025/26 From - Spending review Topic 1]]+Dataset[[#This Row],[2025/26 From - Spending review Topic 2]]+Dataset[[#This Row],[2025/26 From - Spending review Topic 3]]+Dataset[[#This Row],[2025/26 From - Spending review Topic 4]]+Dataset[[#This Row],[2025/26 From - Other reallocations]]","v":0},{"$f":"Dataset[[#This Row],[2023/24 To - Spending review Topic 1]]+Dataset[[#This Row],[2023/24 To - Spending review Topic 2]]+Dataset[[#This Row],[2023/24 To - Spending review Topic 3]]+Dataset[[#This Row],[2023/24 To - Spending review Topic 4]]+Dataset[[#This Row],[2023/24 To - Other reallocations]]","v":0},{"$f":"Dataset[[#This Row],[2024/25 To - Spending review Topic 1]]+Dataset[[#This Row],[2024/25 To - Spending review Topic 2]]+Dataset[[#This Row],[2024/25 To - Spending review Topic 3]]+Dataset[[#This Row],[2024/25 To - Spending review Topic 4]]+Dataset[[#This Row],[2024/25 To - Other reallocations]]","v":0},{"$f":"Dataset[[#This Row],[2025/26 To - Spending review Topic 1]]+Dataset[[#This Row],[2025/26 To - Spending review Topic 2]]+Dataset[[#This Row],[2025/26 To - Spending review Topic 3]]+Dataset[[#This Row],[2025/26 To - Spending review Topic 4]]+Dataset[[#This Row],[2025/26 To - Other reallocations]]","v":0},{"$f":"Dataset[[#This Row],[2023/24 Baseline]]+Dataset[[#This Row],[2023/24 From - Total]]+Dataset[[#This Row],[2023/24 To - Total]]","v":0},{"$f":"Dataset[[#This Row],[2024/25 Baseline]]+Dataset[[#This Row],[2024/25 From - Total]]+Dataset[[#This Row],[2024/25 To - Total]]","v":0},{"$f":"Dataset[[#This Row],[2025/26 Baseline]]+Dataset[[#This Row],[2025/26 From - Total]]+Dataset[[#This Row],[2025/26 To - Total]]","v":0}]
["NAT|Non-transfer item","2|Inventory: Other supplies","2023_24","MTEF2023",2,1,2,724,107,"02","01","02","000724","000107","02|01|02",1,1,2,30,30,"01|01|02|30|30","National","Parliament","Administration","Office of the Secretary","Non-transfer item","Current","Current payments","Goods and services","Inventory: Other supplies","Inventory: Other supplies","General public services","Executive and legislative organs","NAT",0,0,0,0,0,0,0,0,0,0,0,null,null,null,null,null,null,null,null,null,null,null,null,null,null,null,null,null,null,null,null,null,null,null,null,null,null,null,null,null,null,{"$f":"Dataset[[#This Row],[2023/24 From - Spending review Topic 1]]+Dataset[[#This Row],[2023/24 From - Spending review Topic 2]]+Dataset[[#This Row],[2023/24 From - Spending review Topic 3]]+Dataset[[#This Row],[2023/24 From - Spending review Topic 4]]+Dataset[[#This Row],[2023/24 From - Other reallocations]]","v":0},{"$f":"Dataset[[#This Row],[2024/25 From - Spending review Topic 1]]+Dataset[[#This Row],[2024/25 From - Spending review Topic 2]]+Dataset[[#This Row],[2024/25 From - Spending review Topic 3]]+Dataset[[#This Row],[2024/25 From - Spending review Topic 4]]+Dataset[[#This Row],[2024/25 From - Other reallocations]]","v":0},{"$f":"Dataset[[#This Row],[2025/26 From - Spending review Topic 1]]+Dataset[[#This Row],[2025/26 From - Spending review Topic 2]]+Dataset[[#This Row],[2025/26 From - Spending review Topic 3]]+Dataset[[#This Row],[2025/26 From - Spending review Topic 4]]+Dataset[[#This Row],[2025/26 From - Other reallocations]]","v":0},{"$f":"Dataset[[#This Row],[2023/24 To - Spending review Topic 1]]+Dataset[[#This Row],[2023/24 To - Spending review Topic 2]]+Dataset[[#This Row],[2023/24 To - Spending review Topic 3]]+Dataset[[#This Row],[2023/24 To - Spending review Topic 4]]+Dataset[[#This Row],[2023/24 To - Other reallocations]]","v":0},{"$f":"Dataset[[#This Row],[2024/25 To - Spending review Topic 1]]+Dataset[[#This Row],[2024/25 To - Spending review Topic 2]]+Dataset[[#This Row],[2024/25 To - Spending review Topic 3]]+Dataset[[#This Row],[2024/25 To - Spending review Topic 4]]+Dataset[[#This Row],[2024/25 To - Other reallocations]]","v":0},{"$f":"Dataset[[#This Row],[2025/26 To - Spending review Topic 1]]+Dataset[[#This Row],[2025/26 To - Spending review Topic 2]]+Dataset[[#This Row],[2025/26 To - Spending review Topic 3]]+Dataset[[#This Row],[2025/26 To - Spending review Topic 4]]+Dataset[[#This Row],[2025/26 To - Other reallocations]]","v":0},{"$f":"Dataset[[#This Row],[2023/24 Baseline]]+Dataset[[#This Row],[2023/24 From - Total]]+Dataset[[#This Row],[2023/24 To - Total]]","v":0},{"$f":"Dataset[[#This Row],[2024/25 Baseline]]+Dataset[[#This Row],[2024/25 From - Total]]+Dataset[[#This Row],[2024/25 To - Total]]","v":0},{"$f":"Dataset[[#This Row],[2025/26 Baseline]]+Dataset[[#This Row],[2025/26 From - Total]]+Dataset[[#This Row],[2025/26 To - Total]]","v":0}]
["NAT|Non-transfer item","2|Consumable supplies","2023_24","MTEF2023",2,1,2,725,108,"02","01","02","000725","000108","02|01|02",1,1,2,31,31,"01|01|02|31|31","National","Parliament","Administration","Office of the Secretary","Non-transfer item","Current","Current payments","Goods and services","Consumable supplies","Consumable supplies","General public services","Executive and legislative organs","NAT",0,0,0,0,0,0,0,0,0,0,0,null,null,null,null,null,null,null,null,null,null,null,null,null,null,null,null,null,null,null,null,null,null,null,null,null,null,null,null,null,null,{"$f":"Dataset[[#This Row],[2023/24 From - Spending review Topic 1]]+Dataset[[#This Row],[2023/24 From - Spending review Topic 2]]+Dataset[[#This Row],[2023/24 From - Spending review Topic 3]]+Dataset[[#This Row],[2023/24 From - Spending review Topic 4]]+Dataset[[#This Row],[2023/24 From - Other reallocations]]","v":0},{"$f":"Dataset[[#This Row],[2024/25 From - Spending review Topic 1]]+Dataset[[#This Row],[2024/25 From - Spending review Topic 2]]+Dataset[[#This Row],[2024/25 From - Spending review Topic 3]]+Dataset[[#This Row],[2024/25 From - Spending review Topic 4]]+Dataset[[#This Row],[2024/25 From - Other reallocations]]","v":0},{"$f":"Dataset[[#This Row],[2025/26 From - Spending review Topic 1]]+Dataset[[#This Row],[2025/26 From - Spending review Topic 2]]+Dataset[[#This Row],[2025/26 From - Spending review Topic 3]]+Dataset[[#This Row],[2025/26 From - Spending review Topic 4]]+Dataset[[#This Row],[2025/26 From - Other reallocations]]","v":0},{"$f":"Dataset[[#This Row],[2023/24 To - Spending review Topic 1]]+Dataset[[#This Row],[2023/24 To - Spending review Topic 2]]+Dataset[[#This Row],[2023/24 To - Spending review Topic 3]]+Dataset[[#This Row],[2023/24 To - Spending review Topic 4]]+Dataset[[#This Row],[2023/24 To - Other reallocations]]","v":0},{"$f":"Dataset[[#This Row],[2024/25 To - Spending review Topic 1]]+Dataset[[#This Row],[2024/25 To - Spending review Topic 2]]+Dataset[[#This Row],[2024/25 To - Spending review Topic 3]]+Dataset[[#This Row],[2024/25 To - Spending review Topic 4]]+Dataset[[#This Row],[2024/25 To - Other reallocations]]","v":0},{"$f":"Dataset[[#This Row],[2025/26 To - Spending review Topic 1]]+Dataset[[#This Row],[2025/26 To - Spending review Topic 2]]+Dataset[[#This Row],[2025/26 To - Spending review Topic 3]]+Dataset[[#This Row],[2025/26 To - Spending review Topic 4]]+Dataset[[#This Row],[2025/26 To - Other reallocations]]","v":0},{"$f":"Dataset[[#This Row],[2023/24 Baseline]]+Dataset[[#This Row],[2023/24 From - Total]]+Dataset[[#This Row],[2023/24 To - Total]]","v":0},{"$f":"Dataset[[#This Row],[2024/25 Baseline]]+Dataset[[#This Row],[2024/25 From - Total]]+Dataset[[#This Row],[2024/25 To - Total]]","v":0},{"$f":"Dataset[[#This Row],[2025/26 Baseline]]+Dataset[[#This Row],[2025/26 From - Total]]+Dataset[[#This Row],[2025/26 To - Total]]","v":0}]
["NAT|Non-transfer item","2|Consumables: Stationery, printing and office supplies","2023_24","MTEF2023",2,1,2,726,109,"02","01","02","000726","000109","02|01|02",1,1,2,32,32,"01|01|02|32|32","National","Parliament","Administration","Office of the Secretary","Non-transfer item","Current","Current payments","Goods and services","Consumables: Stationery, printing and office supplies","Consumables: Stationery, printing and office supplies","General public services","Executive and legislative organs","NAT",80,84,89,65,65,65,0,67,67,70,73,null,null,null,null,null,null,null,null,null,null,null,null,null,null,null,null,null,null,null,null,null,null,null,null,null,null,null,null,null,null,{"$f":"Dataset[[#This Row],[2023/24 From - Spending review Topic 1]]+Dataset[[#This Row],[2023/24 From - Spending review Topic 2]]+Dataset[[#This Row],[2023/24 From - Spending review Topic 3]]+Dataset[[#This Row],[2023/24 From - Spending review Topic 4]]+Dataset[[#This Row],[2023/24 From - Other reallocations]]","v":0},{"$f":"Dataset[[#This Row],[2024/25 From - Spending review Topic 1]]+Dataset[[#This Row],[2024/25 From - Spending review Topic 2]]+Dataset[[#This Row],[2024/25 From - Spending review Topic 3]]+Dataset[[#This Row],[2024/25 From - Spending review Topic 4]]+Dataset[[#This Row],[2024/25 From - Other reallocations]]","v":0},{"$f":"Dataset[[#This Row],[2025/26 From - Spending review Topic 1]]+Dataset[[#This Row],[2025/26 From - Spending review Topic 2]]+Dataset[[#This Row],[2025/26 From - Spending review Topic 3]]+Dataset[[#This Row],[2025/26 From - Spending review Topic 4]]+Dataset[[#This Row],[2025/26 From - Other reallocations]]","v":0},{"$f":"Dataset[[#This Row],[2023/24 To - Spending review Topic 1]]+Dataset[[#This Row],[2023/24 To - Spending review Topic 2]]+Dataset[[#This Row],[2023/24 To - Spending review Topic 3]]+Dataset[[#This Row],[2023/24 To - Spending review Topic 4]]+Dataset[[#This Row],[2023/24 To - Other reallocations]]","v":0},{"$f":"Dataset[[#This Row],[2024/25 To - Spending review Topic 1]]+Dataset[[#This Row],[2024/25 To - Spending review Topic 2]]+Dataset[[#This Row],[2024/25 To - Spending review Topic 3]]+Dataset[[#This Row],[2024/25 To - Spending review Topic 4]]+Dataset[[#This Row],[2024/25 To - Other reallocations]]","v":0},{"$f":"Dataset[[#This Row],[2025/26 To - Spending review Topic 1]]+Dataset[[#This Row],[2025/26 To - Spending review Topic 2]]+Dataset[[#This Row],[2025/26 To - Spending review Topic 3]]+Dataset[[#This Row],[2025/26 To - Spending review Topic 4]]+Dataset[[#This Row],[2025/26 To - Other reallocations]]","v":0},{"$f":"Dataset[[#This Row],[2023/24 Baseline]]+Dataset[[#This Row],[2023/24 From - Total]]+Dataset[[#This Row],[2023/24 To - Total]]","v":67},{"$f":"Dataset[[#This Row],[2024/25 Baseline]]+Dataset[[#This Row],[2024/25 From - Total]]+Dataset[[#This Row],[2024/25 To - Total]]","v":70},{"$f":"Dataset[[#This Row],[2025/26 Baseline]]+Dataset[[#This Row],[2025/26 From - Total]]+Dataset[[#This Row],[2025/26 To - Total]]","v":73}]
["NAT|Non-transfer item","2|Operating leases","2023_24","MTEF2023",2,1,2,727,110,"02","01","02","000727","000110","02|01|02",1,1,2,33,33,"01|01|02|33|33","National","Parliament","Administration","Office of the Secretary","Non-transfer item","Current","Current payments","Goods and services","Operating leases","Operating leases","General public services","Executive and legislative organs","NAT",0,0,0,0,0,0,0,0,0,0,0,null,null,null,null,null,null,null,null,null,null,null,null,null,null,null,null,null,null,null,null,null,null,null,null,null,null,null,null,null,null,{"$f":"Dataset[[#This Row],[2023/24 From - Spending review Topic 1]]+Dataset[[#This Row],[2023/24 From - Spending review Topic 2]]+Dataset[[#This Row],[2023/24 From - Spending review Topic 3]]+Dataset[[#This Row],[2023/24 From - Spending review Topic 4]]+Dataset[[#This Row],[2023/24 From - Other reallocations]]","v":0},{"$f":"Dataset[[#This Row],[2024/25 From - Spending review Topic 1]]+Dataset[[#This Row],[2024/25 From - Spending review Topic 2]]+Dataset[[#This Row],[2024/25 From - Spending review Topic 3]]+Dataset[[#This Row],[2024/25 From - Spending review Topic 4]]+Dataset[[#This Row],[2024/25 From - Other reallocations]]","v":0},{"$f":"Dataset[[#This Row],[2025/26 From - Spending review Topic 1]]+Dataset[[#This Row],[2025/26 From - Spending review Topic 2]]+Dataset[[#This Row],[2025/26 From - Spending review Topic 3]]+Dataset[[#This Row],[2025/26 From - Spending review Topic 4]]+Dataset[[#This Row],[2025/26 From - Other reallocations]]","v":0},{"$f":"Dataset[[#This Row],[2023/24 To - Spending review Topic 1]]+Dataset[[#This Row],[2023/24 To - Spending review Topic 2]]+Dataset[[#This Row],[2023/24 To - Spending review Topic 3]]+Dataset[[#This Row],[2023/24 To - Spending review Topic 4]]+Dataset[[#This Row],[2023/24 To - Other reallocations]]","v":0},{"$f":"Dataset[[#This Row],[2024/25 To - Spending review Topic 1]]+Dataset[[#This Row],[2024/25 To - Spending review Topic 2]]+Dataset[[#This Row],[2024/25 To - Spending review Topic 3]]+Dataset[[#This Row],[2024/25 To - Spending review Topic 4]]+Dataset[[#This Row],[2024/25 To - Other reallocations]]","v":0},{"$f":"Dataset[[#This Row],[2025/26 To - Spending review Topic 1]]+Dataset[[#This Row],[2025/26 To - Spending review Topic 2]]+Dataset[[#This Row],[2025/26 To - Spending review Topic 3]]+Dataset[[#This Row],[2025/26 To - Spending review Topic 4]]+Dataset[[#This Row],[2025/26 To - Other reallocations]]","v":0},{"$f":"Dataset[[#This Row],[2023/24 Baseline]]+Dataset[[#This Row],[2023/24 From - Total]]+Dataset[[#This Row],[2023/24 To - Total]]","v":0},{"$f":"Dataset[[#This Row],[2024/25 Baseline]]+Dataset[[#This Row],[2024/25 From - Total]]+Dataset[[#This Row],[2024/25 To - Total]]","v":0},{"$f":"Dataset[[#This Row],[2025/26 Baseline]]+Dataset[[#This Row],[2025/26 From - Total]]+Dataset[[#This Row],[2025/26 To - Total]]","v":0}]
["NAT|Non-transfer item","2|Rental and hiring","2023_24","MTEF2023",2,1,2,728,111,"02","01","02","000728","000111","02|01|02",1,1,2,34,34,"01|01|02|34|34","National","Parliament","Administration","Office of the Secretary","Non-transfer item","Current","Current payments","Goods and services","Rental and hiring","Rental and hiring","General public services","Executive and legislative organs","NAT",248,262,276,202,202,202,0,206,206,215,225,null,null,null,null,null,null,null,null,null,null,null,null,null,null,null,null,null,null,null,null,null,null,null,null,null,null,null,null,null,null,{"$f":"Dataset[[#This Row],[2023/24 From - Spending review Topic 1]]+Dataset[[#This Row],[2023/24 From - Spending review Topic 2]]+Dataset[[#This Row],[2023/24 From - Spending review Topic 3]]+Dataset[[#This Row],[2023/24 From - Spending review Topic 4]]+Dataset[[#This Row],[2023/24 From - Other reallocations]]","v":0},{"$f":"Dataset[[#This Row],[2024/25 From - Spending review Topic 1]]+Dataset[[#This Row],[2024/25 From - Spending review Topic 2]]+Dataset[[#This Row],[2024/25 From - Spending review Topic 3]]+Dataset[[#This Row],[2024/25 From - Spending review Topic 4]]+Dataset[[#This Row],[2024/25 From - Other reallocations]]","v":0},{"$f":"Dataset[[#This Row],[2025/26 From - Spending review Topic 1]]+Dataset[[#This Row],[2025/26 From - Spending review Topic 2]]+Dataset[[#This Row],[2025/26 From - Spending review Topic 3]]+Dataset[[#This Row],[2025/26 From - Spending review Topic 4]]+Dataset[[#This Row],[2025/26 From - Other reallocations]]","v":0},{"$f":"Dataset[[#This Row],[2023/24 To - Spending review Topic 1]]+Dataset[[#This Row],[2023/24 To - Spending review Topic 2]]+Dataset[[#This Row],[2023/24 To - Spending review Topic 3]]+Dataset[[#This Row],[2023/24 To - Spending review Topic 4]]+Dataset[[#This Row],[2023/24 To - Other reallocations]]","v":0},{"$f":"Dataset[[#This Row],[2024/25 To - Spending review Topic 1]]+Dataset[[#This Row],[2024/25 To - Spending review Topic 2]]+Dataset[[#This Row],[2024/25 To - Spending review Topic 3]]+Dataset[[#This Row],[2024/25 To - Spending review Topic 4]]+Dataset[[#This Row],[2024/25 To - Other reallocations]]","v":0},{"$f":"Dataset[[#This Row],[2025/26 To - Spending review Topic 1]]+Dataset[[#This Row],[2025/26 To - Spending review Topic 2]]+Dataset[[#This Row],[2025/26 To - Spending review Topic 3]]+Dataset[[#This Row],[2025/26 To - Spending review Topic 4]]+Dataset[[#This Row],[2025/26 To - Other reallocations]]","v":0},{"$f":"Dataset[[#This Row],[2023/24 Baseline]]+Dataset[[#This Row],[2023/24 From - Total]]+Dataset[[#This Row],[2023/24 To - Total]]","v":206},{"$f":"Dataset[[#This Row],[2024/25 Baseline]]+Dataset[[#This Row],[2024/25 From - Total]]+Dataset[[#This Row],[2024/25 To - Total]]","v":215},{"$f":"Dataset[[#This Row],[2025/26 Baseline]]+Dataset[[#This Row],[2025/26 From - Total]]+Dataset[[#This Row],[2025/26 To - Total]]","v":225}]
["NAT|Non-transfer item","2|Property payments","2023_24","MTEF2023",2,1,2,729,112,"02","01","02","000729","000112","02|01|02",1,1,2,35,35,"01|01|02|35|35","National","Parliament","Administration","Office of the Secretary","Non-transfer item","Current","Current payments","Goods and services","Property payments","Property payments","General public services","Executive and legislative organs","NAT",0,0,0,0,0,0,0,0,0,0,0,null,null,null,null,null,null,null,null,null,null,null,null,null,null,null,null,null,null,null,null,null,null,null,null,null,null,null,null,null,null,{"$f":"Dataset[[#This Row],[2023/24 From - Spending review Topic 1]]+Dataset[[#This Row],[2023/24 From - Spending review Topic 2]]+Dataset[[#This Row],[2023/24 From - Spending review Topic 3]]+Dataset[[#This Row],[2023/24 From - Spending review Topic 4]]+Dataset[[#This Row],[2023/24 From - Other reallocations]]","v":0},{"$f":"Dataset[[#This Row],[2024/25 From - Spending review Topic 1]]+Dataset[[#This Row],[2024/25 From - Spending review Topic 2]]+Dataset[[#This Row],[2024/25 From - Spending review Topic 3]]+Dataset[[#This Row],[2024/25 From - Spending review Topic 4]]+Dataset[[#This Row],[2024/25 From - Other reallocations]]","v":0},{"$f":"Dataset[[#This Row],[2025/26 From - Spending review Topic 1]]+Dataset[[#This Row],[2025/26 From - Spending review Topic 2]]+Dataset[[#This Row],[2025/26 From - Spending review Topic 3]]+Dataset[[#This Row],[2025/26 From - Spending review Topic 4]]+Dataset[[#This Row],[2025/26 From - Other reallocations]]","v":0},{"$f":"Dataset[[#This Row],[2023/24 To - Spending review Topic 1]]+Dataset[[#This Row],[2023/24 To - Spending review Topic 2]]+Dataset[[#This Row],[2023/24 To - Spending review Topic 3]]+Dataset[[#This Row],[2023/24 To - Spending review Topic 4]]+Dataset[[#This Row],[2023/24 To - Other reallocations]]","v":0},{"$f":"Dataset[[#This Row],[2024/25 To - Spending review Topic 1]]+Dataset[[#This Row],[2024/25 To - Spending review Topic 2]]+Dataset[[#This Row],[2024/25 To - Spending review Topic 3]]+Dataset[[#This Row],[2024/25 To - Spending review Topic 4]]+Dataset[[#This Row],[2024/25 To - Other reallocations]]","v":0},{"$f":"Dataset[[#This Row],[2025/26 To - Spending review Topic 1]]+Dataset[[#This Row],[2025/26 To - Spending review Topic 2]]+Dataset[[#This Row],[2025/26 To - Spending review Topic 3]]+Dataset[[#This Row],[2025/26 To - Spending review Topic 4]]+Dataset[[#This Row],[2025/26 To - Other reallocations]]","v":0},{"$f":"Dataset[[#This Row],[2023/24 Baseline]]+Dataset[[#This Row],[2023/24 From - Total]]+Dataset[[#This Row],[2023/24 To - Total]]","v":0},{"$f":"Dataset[[#This Row],[2024/25 Baseline]]+Dataset[[#This Row],[2024/25 From - Total]]+Dataset[[#This Row],[2024/25 To - Total]]","v":0},{"$f":"Dataset[[#This Row],[2025/26 Baseline]]+Dataset[[#This Row],[2025/26 From - Total]]+Dataset[[#This Row],[2025/26 To - Total]]","v":0}]
["NAT|Non-transfer item","2|Transport provided: Departmental activity","2023_24","MTEF2023",2,1,2,730,113,"02","01","02","000730","000113","02|01|02",1,1,2,36,36,"01|01|02|36|36","National","Parliament","Administration","Office of the Secretary","Non-transfer item","Current","Current payments","Goods and services","Transport provided: Departmental activity","Transport provided: Departmental activity","General public services","Executive and legislative organs","NAT",0,0,0,0,0,0,0,0,0,0,0,null,null,null,null,null,null,null,null,null,null,null,null,null,null,null,null,null,null,null,null,null,null,null,null,null,null,null,null,null,null,{"$f":"Dataset[[#This Row],[2023/24 From - Spending review Topic 1]]+Dataset[[#This Row],[2023/24 From - Spending review Topic 2]]+Dataset[[#This Row],[2023/24 From - Spending review Topic 3]]+Dataset[[#This Row],[2023/24 From - Spending review Topic 4]]+Dataset[[#This Row],[2023/24 From - Other reallocations]]","v":0},{"$f":"Dataset[[#This Row],[2024/25 From - Spending review Topic 1]]+Dataset[[#This Row],[2024/25 From - Spending review Topic 2]]+Dataset[[#This Row],[2024/25 From - Spending review Topic 3]]+Dataset[[#This Row],[2024/25 From - Spending review Topic 4]]+Dataset[[#This Row],[2024/25 From - Other reallocations]]","v":0},{"$f":"Dataset[[#This Row],[2025/26 From - Spending review Topic 1]]+Dataset[[#This Row],[2025/26 From - Spending review Topic 2]]+Dataset[[#This Row],[2025/26 From - Spending review Topic 3]]+Dataset[[#This Row],[2025/26 From - Spending review Topic 4]]+Dataset[[#This Row],[2025/26 From - Other reallocations]]","v":0},{"$f":"Dataset[[#This Row],[2023/24 To - Spending review Topic 1]]+Dataset[[#This Row],[2023/24 To - Spending review Topic 2]]+Dataset[[#This Row],[2023/24 To - Spending review Topic 3]]+Dataset[[#This Row],[2023/24 To - Spending review Topic 4]]+Dataset[[#This Row],[2023/24 To - Other reallocations]]","v":0},{"$f":"Dataset[[#This Row],[2024/25 To - Spending review Topic 1]]+Dataset[[#This Row],[2024/25 To - Spending review Topic 2]]+Dataset[[#This Row],[2024/25 To - Spending review Topic 3]]+Dataset[[#This Row],[2024/25 To - Spending review Topic 4]]+Dataset[[#This Row],[2024/25 To - Other reallocations]]","v":0},{"$f":"Dataset[[#This Row],[2025/26 To - Spending review Topic 1]]+Dataset[[#This Row],[2025/26 To - Spending review Topic 2]]+Dataset[[#This Row],[2025/26 To - Spending review Topic 3]]+Dataset[[#This Row],[2025/26 To - Spending review Topic 4]]+Dataset[[#This Row],[2025/26 To - Other reallocations]]","v":0},{"$f":"Dataset[[#This Row],[2023/24 Baseline]]+Dataset[[#This Row],[2023/24 From - Total]]+Dataset[[#This Row],[2023/24 To - Total]]","v":0},{"$f":"Dataset[[#This Row],[2024/25 Baseline]]+Dataset[[#This Row],[2024/25 From - Total]]+Dataset[[#This Row],[2024/25 To - Total]]","v":0},{"$f":"Dataset[[#This Row],[2025/26 Baseline]]+Dataset[[#This Row],[2025/26 From - Total]]+Dataset[[#This Row],[2025/26 To - Total]]","v":0}]
["NAT|Non-transfer item","2|Travel and subsistence","2023_24","MTEF2023",2,1,2,731,114,"02","01","02","000731","000114","02|01|02",1,1,2,37,37,"01|01|02|37|37","National","Parliament","Administration","Office of the Secretary","Non-transfer item","Current","Current payments","Goods and services","Travel and subsistence","Travel and subsistence","General public services","Executive and legislative organs","NAT",6339,2211,844,2849,2849,2849,0,909,909,1040,1087,null,null,null,null,null,null,null,null,null,null,null,null,null,null,null,null,null,null,null,null,null,null,null,null,null,null,null,null,null,null,{"$f":"Dataset[[#This Row],[2023/24 From - Spending review Topic 1]]+Dataset[[#This Row],[2023/24 From - Spending review Topic 2]]+Dataset[[#This Row],[2023/24 From - Spending review Topic 3]]+Dataset[[#This Row],[2023/24 From - Spending review Topic 4]]+Dataset[[#This Row],[2023/24 From - Other reallocations]]","v":0},{"$f":"Dataset[[#This Row],[2024/25 From - Spending review Topic 1]]+Dataset[[#This Row],[2024/25 From - Spending review Topic 2]]+Dataset[[#This Row],[2024/25 From - Spending review Topic 3]]+Dataset[[#This Row],[2024/25 From - Spending review Topic 4]]+Dataset[[#This Row],[2024/25 From - Other reallocations]]","v":0},{"$f":"Dataset[[#This Row],[2025/26 From - Spending review Topic 1]]+Dataset[[#This Row],[2025/26 From - Spending review Topic 2]]+Dataset[[#This Row],[2025/26 From - Spending review Topic 3]]+Dataset[[#This Row],[2025/26 From - Spending review Topic 4]]+Dataset[[#This Row],[2025/26 From - Other reallocations]]","v":0},{"$f":"Dataset[[#This Row],[2023/24 To - Spending review Topic 1]]+Dataset[[#This Row],[2023/24 To - Spending review Topic 2]]+Dataset[[#This Row],[2023/24 To - Spending review Topic 3]]+Dataset[[#This Row],[2023/24 To - Spending review Topic 4]]+Dataset[[#This Row],[2023/24 To - Other reallocations]]","v":0},{"$f":"Dataset[[#This Row],[2024/25 To - Spending review Topic 1]]+Dataset[[#This Row],[2024/25 To - Spending review Topic 2]]+Dataset[[#This Row],[2024/25 To - Spending review Topic 3]]+Dataset[[#This Row],[2024/25 To - Spending review Topic 4]]+Dataset[[#This Row],[2024/25 To - Other reallocations]]","v":0},{"$f":"Dataset[[#This Row],[2025/26 To - Spending review Topic 1]]+Dataset[[#This Row],[2025/26 To - Spending review Topic 2]]+Dataset[[#This Row],[2025/26 To - Spending review Topic 3]]+Dataset[[#This Row],[2025/26 To - Spending review Topic 4]]+Dataset[[#This Row],[2025/26 To - Other reallocations]]","v":0},{"$f":"Dataset[[#This Row],[2023/24 Baseline]]+Dataset[[#This Row],[2023/24 From - Total]]+Dataset[[#This Row],[2023/24 To - Total]]","v":909},{"$f":"Dataset[[#This Row],[2024/25 Baseline]]+Dataset[[#This Row],[2024/25 From - Total]]+Dataset[[#This Row],[2024/25 To - Total]]","v":1040},{"$f":"Dataset[[#This Row],[2025/26 Baseline]]+Dataset[[#This Row],[2025/26 From - Total]]+Dataset[[#This Row],[2025/26 To - Total]]","v":1087}]
["NAT|Non-transfer item","2|Training and development","2023_24","MTEF2023",2,1,2,732,115,"02","01","02","000732","000115","02|01|02",1,1,2,38,38,"01|01|02|38|38","National","Parliament","Administration","Office of the Secretary","Non-transfer item","Current","Current payments","Goods and services","Training and development","Training and development","General public services","Executive and legislative organs","NAT",291,307,324,237,237,237,0,242,242,253,264,null,null,null,null,null,null,null,null,null,null,null,null,null,null,null,null,null,null,null,null,null,null,null,null,null,null,null,null,null,null,{"$f":"Dataset[[#This Row],[2023/24 From - Spending review Topic 1]]+Dataset[[#This Row],[2023/24 From - Spending review Topic 2]]+Dataset[[#This Row],[2023/24 From - Spending review Topic 3]]+Dataset[[#This Row],[2023/24 From - Spending review Topic 4]]+Dataset[[#This Row],[2023/24 From - Other reallocations]]","v":0},{"$f":"Dataset[[#This Row],[2024/25 From - Spending review Topic 1]]+Dataset[[#This Row],[2024/25 From - Spending review Topic 2]]+Dataset[[#This Row],[2024/25 From - Spending review Topic 3]]+Dataset[[#This Row],[2024/25 From - Spending review Topic 4]]+Dataset[[#This Row],[2024/25 From - Other reallocations]]","v":0},{"$f":"Dataset[[#This Row],[2025/26 From - Spending review Topic 1]]+Dataset[[#This Row],[2025/26 From - Spending review Topic 2]]+Dataset[[#This Row],[2025/26 From - Spending review Topic 3]]+Dataset[[#This Row],[2025/26 From - Spending review Topic 4]]+Dataset[[#This Row],[2025/26 From - Other reallocations]]","v":0},{"$f":"Dataset[[#This Row],[2023/24 To - Spending review Topic 1]]+Dataset[[#This Row],[2023/24 To - Spending review Topic 2]]+Dataset[[#This Row],[2023/24 To - Spending review Topic 3]]+Dataset[[#This Row],[2023/24 To - Spending review Topic 4]]+Dataset[[#This Row],[2023/24 To - Other reallocations]]","v":0},{"$f":"Dataset[[#This Row],[2024/25 To - Spending review Topic 1]]+Dataset[[#This Row],[2024/25 To - Spending review Topic 2]]+Dataset[[#This Row],[2024/25 To - Spending review Topic 3]]+Dataset[[#This Row],[2024/25 To - Spending review Topic 4]]+Dataset[[#This Row],[2024/25 To - Other reallocations]]","v":0},{"$f":"Dataset[[#This Row],[2025/26 To - Spending review Topic 1]]+Dataset[[#This Row],[2025/26 To - Spending review Topic 2]]+Dataset[[#This Row],[2025/26 To - Spending review Topic 3]]+Dataset[[#This Row],[2025/26 To - Spending review Topic 4]]+Dataset[[#This Row],[2025/26 To - Other reallocations]]","v":0},{"$f":"Dataset[[#This Row],[2023/24 Baseline]]+Dataset[[#This Row],[2023/24 From - Total]]+Dataset[[#This Row],[2023/24 To - Total]]","v":242},{"$f":"Dataset[[#This Row],[2024/25 Baseline]]+Dataset[[#This Row],[2024/25 From - Total]]+Dataset[[#This Row],[2024/25 To - Total]]","v":253},{"$f":"Dataset[[#This Row],[2025/26 Baseline]]+Dataset[[#This Row],[2025/26 From - Total]]+Dataset[[#This Row],[2025/26 To - Total]]","v":264}]
["NAT|Non-transfer item","2|Operating payments","2023_24","MTEF2023",2,1,2,733,116,"02","01","02","000733","000116","02|01|02",1,1,2,39,39,"01|01|02|39|39","National","Parliament","Administration","Office of the Secretary","Non-transfer item","Current","Current payments","Goods and services","Operating payments","Operating payments","General public services","Executive and legislative organs","NAT",9857,747,669,490,490,490,0,500,500,522,545,null,null,null,null,null,null,null,null,null,null,null,null,null,null,null,null,null,null,null,null,null,null,null,null,null,null,null,null,null,null,{"$f":"Dataset[[#This Row],[2023/24 From - Spending review Topic 1]]+Dataset[[#This Row],[2023/24 From - Spending review Topic 2]]+Dataset[[#This Row],[2023/24 From - Spending review Topic 3]]+Dataset[[#This Row],[2023/24 From - Spending review Topic 4]]+Dataset[[#This Row],[2023/24 From - Other reallocations]]","v":0},{"$f":"Dataset[[#This Row],[2024/25 From - Spending review Topic 1]]+Dataset[[#This Row],[2024/25 From - Spending review Topic 2]]+Dataset[[#This Row],[2024/25 From - Spending review Topic 3]]+Dataset[[#This Row],[2024/25 From - Spending review Topic 4]]+Dataset[[#This Row],[2024/25 From - Other reallocations]]","v":0},{"$f":"Dataset[[#This Row],[2025/26 From - Spending review Topic 1]]+Dataset[[#This Row],[2025/26 From - Spending review Topic 2]]+Dataset[[#This Row],[2025/26 From - Spending review Topic 3]]+Dataset[[#This Row],[2025/26 From - Spending review Topic 4]]+Dataset[[#This Row],[2025/26 From - Other reallocations]]","v":0},{"$f":"Dataset[[#This Row],[2023/24 To - Spending review Topic 1]]+Dataset[[#This Row],[2023/24 To - Spending review Topic 2]]+Dataset[[#This Row],[2023/24 To - Spending review Topic 3]]+Dataset[[#This Row],[2023/24 To - Spending review Topic 4]]+Dataset[[#This Row],[2023/24 To - Other reallocations]]","v":0},{"$f":"Dataset[[#This Row],[2024/25 To - Spending review Topic 1]]+Dataset[[#This Row],[2024/25 To - Spending review Topic 2]]+Dataset[[#This Row],[2024/25 To - Spending review Topic 3]]+Dataset[[#This Row],[2024/25 To - Spending review Topic 4]]+Dataset[[#This Row],[2024/25 To - Other reallocations]]","v":0},{"$f":"Dataset[[#This Row],[2025/26 To - Spending review Topic 1]]+Dataset[[#This Row],[2025/26 To - Spending review Topic 2]]+Dataset[[#This Row],[2025/26 To - Spending review Topic 3]]+Dataset[[#This Row],[2025/26 To - Spending review Topic 4]]+Dataset[[#This Row],[2025/26 To - Other reallocations]]","v":0},{"$f":"Dataset[[#This Row],[2023/24 Baseline]]+Dataset[[#This Row],[2023/24 From - Total]]+Dataset[[#This Row],[2023/24 To - Total]]","v":500},{"$f":"Dataset[[#This Row],[2024/25 Baseline]]+Dataset[[#This Row],[2024/25 From - Total]]+Dataset[[#This Row],[2024/25 To - Total]]","v":522},{"$f":"Dataset[[#This Row],[2025/26 Baseline]]+Dataset[[#This Row],[2025/26 From - Total]]+Dataset[[#This Row],[2025/26 To - Total]]","v":545}]
["NAT|Non-transfer item","2|Venues and facilities","2023_24","MTEF2023",2,1,2,734,117,"02","01","02","000734","000117","02|01|02",1,1,2,40,40,"01|01|02|40|40","National","Parliament","Administration","Office of the Secretary","Non-transfer item","Current","Current payments","Goods and services","Venues and facilities","Venues and facilities","General public services","Executive and legislative organs","NAT",0,0,0,0,0,0,0,0,0,0,0,null,null,null,null,null,null,null,null,null,null,null,null,null,null,null,null,null,null,null,null,null,null,null,null,null,null,null,null,null,null,{"$f":"Dataset[[#This Row],[2023/24 From - Spending review Topic 1]]+Dataset[[#This Row],[2023/24 From - Spending review Topic 2]]+Dataset[[#This Row],[2023/24 From - Spending review Topic 3]]+Dataset[[#This Row],[2023/24 From - Spending review Topic 4]]+Dataset[[#This Row],[2023/24 From - Other reallocations]]","v":0},{"$f":"Dataset[[#This Row],[2024/25 From - Spending review Topic 1]]+Dataset[[#This Row],[2024/25 From - Spending review Topic 2]]+Dataset[[#This Row],[2024/25 From - Spending review Topic 3]]+Dataset[[#This Row],[2024/25 From - Spending review Topic 4]]+Dataset[[#This Row],[2024/25 From - Other reallocations]]","v":0},{"$f":"Dataset[[#This Row],[2025/26 From - Spending review Topic 1]]+Dataset[[#This Row],[2025/26 From - Spending review Topic 2]]+Dataset[[#This Row],[2025/26 From - Spending review Topic 3]]+Dataset[[#This Row],[2025/26 From - Spending review Topic 4]]+Dataset[[#This Row],[2025/26 From - Other reallocations]]","v":0},{"$f":"Dataset[[#This Row],[2023/24 To - Spending review Topic 1]]+Dataset[[#This Row],[2023/24 To - Spending review Topic 2]]+Dataset[[#This Row],[2023/24 To - Spending review Topic 3]]+Dataset[[#This Row],[2023/24 To - Spending review Topic 4]]+Dataset[[#This Row],[2023/24 To - Other reallocations]]","v":0},{"$f":"Dataset[[#This Row],[2024/25 To - Spending review Topic 1]]+Dataset[[#This Row],[2024/25 To - Spending review Topic 2]]+Dataset[[#This Row],[2024/25 To - Spending review Topic 3]]+Dataset[[#This Row],[2024/25 To - Spending review Topic 4]]+Dataset[[#This Row],[2024/25 To - Other reallocations]]","v":0},{"$f":"Dataset[[#This Row],[2025/26 To - Spending review Topic 1]]+Dataset[[#This Row],[2025/26 To - Spending review Topic 2]]+Dataset[[#This Row],[2025/26 To - Spending review Topic 3]]+Dataset[[#This Row],[2025/26 To - Spending review Topic 4]]+Dataset[[#This Row],[2025/26 To - Other reallocations]]","v":0},{"$f":"Dataset[[#This Row],[2023/24 Baseline]]+Dataset[[#This Row],[2023/24 From - Total]]+Dataset[[#This Row],[2023/24 To - Total]]","v":0},{"$f":"Dataset[[#This Row],[2024/25 Baseline]]+Dataset[[#This Row],[2024/25 From - Total]]+Dataset[[#This Row],[2024/25 To - Total]]","v":0},{"$f":"Dataset[[#This Row],[2025/26 Baseline]]+Dataset[[#This Row],[2025/26 From - Total]]+Dataset[[#This Row],[2025/26 To - Total]]","v":0}]
["NAT|Non-transfer item","2|Interest (Incl. interest on unitary payments (PPP))","2023_24","MTEF2023",2,1,2,735,118,"02","01","02","000735","000118","02|01|02",1,1,3,41,41,"01|01|03|41|41","National","Parliament","Administration","Office of the Secretary","Non-transfer item","Current","Current payments","Interest and rent on land","Interest (Incl. interest on unitary payments (PPP))","Interest (Incl. interest on unitary payments (PPP))","General public services","Executive and legislative organs","NAT",0,0,0,0,0,0,0,0,0,0,0,null,null,null,null,null,null,null,null,null,null,null,null,null,null,null,null,null,null,null,null,null,null,null,null,null,null,null,null,null,null,{"$f":"Dataset[[#This Row],[2023/24 From - Spending review Topic 1]]+Dataset[[#This Row],[2023/24 From - Spending review Topic 2]]+Dataset[[#This Row],[2023/24 From - Spending review Topic 3]]+Dataset[[#This Row],[2023/24 From - Spending review Topic 4]]+Dataset[[#This Row],[2023/24 From - Other reallocations]]","v":0},{"$f":"Dataset[[#This Row],[2024/25 From - Spending review Topic 1]]+Dataset[[#This Row],[2024/25 From - Spending review Topic 2]]+Dataset[[#This Row],[2024/25 From - Spending review Topic 3]]+Dataset[[#This Row],[2024/25 From - Spending review Topic 4]]+Dataset[[#This Row],[2024/25 From - Other reallocations]]","v":0},{"$f":"Dataset[[#This Row],[2025/26 From - Spending review Topic 1]]+Dataset[[#This Row],[2025/26 From - Spending review Topic 2]]+Dataset[[#This Row],[2025/26 From - Spending review Topic 3]]+Dataset[[#This Row],[2025/26 From - Spending review Topic 4]]+Dataset[[#This Row],[2025/26 From - Other reallocations]]","v":0},{"$f":"Dataset[[#This Row],[2023/24 To - Spending review Topic 1]]+Dataset[[#This Row],[2023/24 To - Spending review Topic 2]]+Dataset[[#This Row],[2023/24 To - Spending review Topic 3]]+Dataset[[#This Row],[2023/24 To - Spending review Topic 4]]+Dataset[[#This Row],[2023/24 To - Other reallocations]]","v":0},{"$f":"Dataset[[#This Row],[2024/25 To - Spending review Topic 1]]+Dataset[[#This Row],[2024/25 To - Spending review Topic 2]]+Dataset[[#This Row],[2024/25 To - Spending review Topic 3]]+Dataset[[#This Row],[2024/25 To - Spending review Topic 4]]+Dataset[[#This Row],[2024/25 To - Other reallocations]]","v":0},{"$f":"Dataset[[#This Row],[2025/26 To - Spending review Topic 1]]+Dataset[[#This Row],[2025/26 To - Spending review Topic 2]]+Dataset[[#This Row],[2025/26 To - Spending review Topic 3]]+Dataset[[#This Row],[2025/26 To - Spending review Topic 4]]+Dataset[[#This Row],[2025/26 To - Other reallocations]]","v":0},{"$f":"Dataset[[#This Row],[2023/24 Baseline]]+Dataset[[#This Row],[2023/24 From - Total]]+Dataset[[#This Row],[2023/24 To - Total]]","v":0},{"$f":"Dataset[[#This Row],[2024/25 Baseline]]+Dataset[[#This Row],[2024/25 From - Total]]+Dataset[[#This Row],[2024/25 To - Total]]","v":0},{"$f":"Dataset[[#This Row],[2025/26 Baseline]]+Dataset[[#This Row],[2025/26 From - Total]]+Dataset[[#This Row],[2025/26 To - Total]]","v":0}]
["NAT|Non-transfer item","2|Rent on land","2023_24","MTEF2023",2,1,2,736,119,"02","01","02","000736","000119","02|01|02",1,1,3,42,42,"01|01|03|42|42","National","Parliament","Administration","Office of the Secretary","Non-transfer item","Current","Current payments","Interest and rent on land","Rent on land","Rent on land","General public services","Executive and legislative organs","NAT",0,0,0,0,0,0,0,0,0,0,0,null,null,null,null,null,null,null,null,null,null,null,null,null,null,null,null,null,null,null,null,null,null,null,null,null,null,null,null,null,null,{"$f":"Dataset[[#This Row],[2023/24 From - Spending review Topic 1]]+Dataset[[#This Row],[2023/24 From - Spending review Topic 2]]+Dataset[[#This Row],[2023/24 From - Spending review Topic 3]]+Dataset[[#This Row],[2023/24 From - Spending review Topic 4]]+Dataset[[#This Row],[2023/24 From - Other reallocations]]","v":0},{"$f":"Dataset[[#This Row],[2024/25 From - Spending review Topic 1]]+Dataset[[#This Row],[2024/25 From - Spending review Topic 2]]+Dataset[[#This Row],[2024/25 From - Spending review Topic 3]]+Dataset[[#This Row],[2024/25 From - Spending review Topic 4]]+Dataset[[#This Row],[2024/25 From - Other reallocations]]","v":0},{"$f":"Dataset[[#This Row],[2025/26 From - Spending review Topic 1]]+Dataset[[#This Row],[2025/26 From - Spending review Topic 2]]+Dataset[[#This Row],[2025/26 From - Spending review Topic 3]]+Dataset[[#This Row],[2025/26 From - Spending review Topic 4]]+Dataset[[#This Row],[2025/26 From - Other reallocations]]","v":0},{"$f":"Dataset[[#This Row],[2023/24 To - Spending review Topic 1]]+Dataset[[#This Row],[2023/24 To - Spending review Topic 2]]+Dataset[[#This Row],[2023/24 To - Spending review Topic 3]]+Dataset[[#This Row],[2023/24 To - Spending review Topic 4]]+Dataset[[#This Row],[2023/24 To - Other reallocations]]","v":0},{"$f":"Dataset[[#This Row],[2024/25 To - Spending review Topic 1]]+Dataset[[#This Row],[2024/25 To - Spending review Topic 2]]+Dataset[[#This Row],[2024/25 To - Spending review Topic 3]]+Dataset[[#This Row],[2024/25 To - Spending review Topic 4]]+Dataset[[#This Row],[2024/25 To - Other reallocations]]","v":0},{"$f":"Dataset[[#This Row],[2025/26 To - Spending review Topic 1]]+Dataset[[#This Row],[2025/26 To - Spending review Topic 2]]+Dataset[[#This Row],[2025/26 To - Spending review Topic 3]]+Dataset[[#This Row],[2025/26 To - Spending review Topic 4]]+Dataset[[#This Row],[2025/26 To - Other reallocations]]","v":0},{"$f":"Dataset[[#This Row],[2023/24 Baseline]]+Dataset[[#This Row],[2023/24 From - Total]]+Dataset[[#This Row],[2023/24 To - Total]]","v":0},{"$f":"Dataset[[#This Row],[2024/25 Baseline]]+Dataset[[#This Row],[2024/25 From - Total]]+Dataset[[#This Row],[2024/25 To - Total]]","v":0},{"$f":"Dataset[[#This Row],[2025/26 Baseline]]+Dataset[[#This Row],[2025/26 From - Total]]+Dataset[[#This Row],[2025/26 To - Total]]","v":0}]
["NAT|Non-transfer item","2|Provincial Revenue Funds","2023_24","MTEF2023",2,1,2,737,120,"02","01","02","000737","000120","02|01|02",1,2,4,43,43,"01|02|04|43|43","National","Parliament","Administration","Office of the Secretary","Non-transfer item","Current","Transfers and subsidies","Provinces and municipalities","Provinces","Provincial Revenue Funds","General public services","Executive and legislative organs","NAT",0,0,0,0,0,0,0,0,0,0,0,null,null,null,null,null,null,null,null,null,null,null,null,null,null,null,null,null,null,null,null,null,null,null,null,null,null,null,null,null,null,{"$f":"Dataset[[#This Row],[2023/24 From - Spending review Topic 1]]+Dataset[[#This Row],[2023/24 From - Spending review Topic 2]]+Dataset[[#This Row],[2023/24 From - Spending review Topic 3]]+Dataset[[#This Row],[2023/24 From - Spending review Topic 4]]+Dataset[[#This Row],[2023/24 From - Other reallocations]]","v":0},{"$f":"Dataset[[#This Row],[2024/25 From - Spending review Topic 1]]+Dataset[[#This Row],[2024/25 From - Spending review Topic 2]]+Dataset[[#This Row],[2024/25 From - Spending review Topic 3]]+Dataset[[#This Row],[2024/25 From - Spending review Topic 4]]+Dataset[[#This Row],[2024/25 From - Other reallocations]]","v":0},{"$f":"Dataset[[#This Row],[2025/26 From - Spending review Topic 1]]+Dataset[[#This Row],[2025/26 From - Spending review Topic 2]]+Dataset[[#This Row],[2025/26 From - Spending review Topic 3]]+Dataset[[#This Row],[2025/26 From - Spending review Topic 4]]+Dataset[[#This Row],[2025/26 From - Other reallocations]]","v":0},{"$f":"Dataset[[#This Row],[2023/24 To - Spending review Topic 1]]+Dataset[[#This Row],[2023/24 To - Spending review Topic 2]]+Dataset[[#This Row],[2023/24 To - Spending review Topic 3]]+Dataset[[#This Row],[2023/24 To - Spending review Topic 4]]+Dataset[[#This Row],[2023/24 To - Other reallocations]]","v":0},{"$f":"Dataset[[#This Row],[2024/25 To - Spending review Topic 1]]+Dataset[[#This Row],[2024/25 To - Spending review Topic 2]]+Dataset[[#This Row],[2024/25 To - Spending review Topic 3]]+Dataset[[#This Row],[2024/25 To - Spending review Topic 4]]+Dataset[[#This Row],[2024/25 To - Other reallocations]]","v":0},{"$f":"Dataset[[#This Row],[2025/26 To - Spending review Topic 1]]+Dataset[[#This Row],[2025/26 To - Spending review Topic 2]]+Dataset[[#This Row],[2025/26 To - Spending review Topic 3]]+Dataset[[#This Row],[2025/26 To - Spending review Topic 4]]+Dataset[[#This Row],[2025/26 To - Other reallocations]]","v":0},{"$f":"Dataset[[#This Row],[2023/24 Baseline]]+Dataset[[#This Row],[2023/24 From - Total]]+Dataset[[#This Row],[2023/24 To - Total]]","v":0},{"$f":"Dataset[[#This Row],[2024/25 Baseline]]+Dataset[[#This Row],[2024/25 From - Total]]+Dataset[[#This Row],[2024/25 To - Total]]","v":0},{"$f":"Dataset[[#This Row],[2025/26 Baseline]]+Dataset[[#This Row],[2025/26 From - Total]]+Dataset[[#This Row],[2025/26 To - Total]]","v":0}]
["NAT|Non-transfer item","2|Provincial agencies and funds","2023_24","MTEF2023",2,1,2,738,121,"02","01","02","000738","000121","02|01|02",1,2,4,43,44,"01|02|04|43|44","National","Parliament","Administration","Office of the Secretary","Non-transfer item","Current","Transfers and subsidies","Provinces and municipalities","Provinces","Provincial agencies and funds","General public services","Executive and legislative organs","NAT",0,0,0,0,0,0,0,0,0,0,0,null,null,null,null,null,null,null,null,null,null,null,null,null,null,null,null,null,null,null,null,null,null,null,null,null,null,null,null,null,null,{"$f":"Dataset[[#This Row],[2023/24 From - Spending review Topic 1]]+Dataset[[#This Row],[2023/24 From - Spending review Topic 2]]+Dataset[[#This Row],[2023/24 From - Spending review Topic 3]]+Dataset[[#This Row],[2023/24 From - Spending review Topic 4]]+Dataset[[#This Row],[2023/24 From - Other reallocations]]","v":0},{"$f":"Dataset[[#This Row],[2024/25 From - Spending review Topic 1]]+Dataset[[#This Row],[2024/25 From - Spending review Topic 2]]+Dataset[[#This Row],[2024/25 From - Spending review Topic 3]]+Dataset[[#This Row],[2024/25 From - Spending review Topic 4]]+Dataset[[#This Row],[2024/25 From - Other reallocations]]","v":0},{"$f":"Dataset[[#This Row],[2025/26 From - Spending review Topic 1]]+Dataset[[#This Row],[2025/26 From - Spending review Topic 2]]+Dataset[[#This Row],[2025/26 From - Spending review Topic 3]]+Dataset[[#This Row],[2025/26 From - Spending review Topic 4]]+Dataset[[#This Row],[2025/26 From - Other reallocations]]","v":0},{"$f":"Dataset[[#This Row],[2023/24 To - Spending review Topic 1]]+Dataset[[#This Row],[2023/24 To - Spending review Topic 2]]+Dataset[[#This Row],[2023/24 To - Spending review Topic 3]]+Dataset[[#This Row],[2023/24 To - Spending review Topic 4]]+Dataset[[#This Row],[2023/24 To - Other reallocations]]","v":0},{"$f":"Dataset[[#This Row],[2024/25 To - Spending review Topic 1]]+Dataset[[#This Row],[2024/25 To - Spending review Topic 2]]+Dataset[[#This Row],[2024/25 To - Spending review Topic 3]]+Dataset[[#This Row],[2024/25 To - Spending review Topic 4]]+Dataset[[#This Row],[2024/25 To - Other reallocations]]","v":0},{"$f":"Dataset[[#This Row],[2025/26 To - Spending review Topic 1]]+Dataset[[#This Row],[2025/26 To - Spending review Topic 2]]+Dataset[[#This Row],[2025/26 To - Spending review Topic 3]]+Dataset[[#This Row],[2025/26 To - Spending review Topic 4]]+Dataset[[#This Row],[2025/26 To - Other reallocations]]","v":0},{"$f":"Dataset[[#This Row],[2023/24 Baseline]]+Dataset[[#This Row],[2023/24 From - Total]]+Dataset[[#This Row],[2023/24 To - Total]]","v":0},{"$f":"Dataset[[#This Row],[2024/25 Baseline]]+Dataset[[#This Row],[2024/25 From - Total]]+Dataset[[#This Row],[2024/25 To - Total]]","v":0},{"$f":"Dataset[[#This Row],[2025/26 Baseline]]+Dataset[[#This Row],[2025/26 From - Total]]+Dataset[[#This Row],[2025/26 To - Total]]","v":0}]
["NAT|Non-transfer item","2|Municipal bank accounts","2023_24","MTEF2023",2,1,2,739,122,"02","01","02","000739","000122","02|01|02",1,2,4,44,45,"01|02|04|44|45","National","Parliament","Administration","Office of the Secretary","Non-transfer item","Current","Transfers and subsidies","Provinces and municipalities","Municipalities","Municipal bank accounts","General public services","Executive and legislative organs","NAT",0,0,0,0,0,0,0,0,0,0,0,null,null,null,null,null,null,null,null,null,null,null,null,null,null,null,null,null,null,null,null,null,null,null,null,null,null,null,null,null,null,{"$f":"Dataset[[#This Row],[2023/24 From - Spending review Topic 1]]+Dataset[[#This Row],[2023/24 From - Spending review Topic 2]]+Dataset[[#This Row],[2023/24 From - Spending review Topic 3]]+Dataset[[#This Row],[2023/24 From - Spending review Topic 4]]+Dataset[[#This Row],[2023/24 From - Other reallocations]]","v":0},{"$f":"Dataset[[#This Row],[2024/25 From - Spending review Topic 1]]+Dataset[[#This Row],[2024/25 From - Spending review Topic 2]]+Dataset[[#This Row],[2024/25 From - Spending review Topic 3]]+Dataset[[#This Row],[2024/25 From - Spending review Topic 4]]+Dataset[[#This Row],[2024/25 From - Other reallocations]]","v":0},{"$f":"Dataset[[#This Row],[2025/26 From - Spending review Topic 1]]+Dataset[[#This Row],[2025/26 From - Spending review Topic 2]]+Dataset[[#This Row],[2025/26 From - Spending review Topic 3]]+Dataset[[#This Row],[2025/26 From - Spending review Topic 4]]+Dataset[[#This Row],[2025/26 From - Other reallocations]]","v":0},{"$f":"Dataset[[#This Row],[2023/24 To - Spending review Topic 1]]+Dataset[[#This Row],[2023/24 To - Spending review Topic 2]]+Dataset[[#This Row],[2023/24 To - Spending review Topic 3]]+Dataset[[#This Row],[2023/24 To - Spending review Topic 4]]+Dataset[[#This Row],[2023/24 To - Other reallocations]]","v":0},{"$f":"Dataset[[#This Row],[2024/25 To - Spending review Topic 1]]+Dataset[[#This Row],[2024/25 To - Spending review Topic 2]]+Dataset[[#This Row],[2024/25 To - Spending review Topic 3]]+Dataset[[#This Row],[2024/25 To - Spending review Topic 4]]+Dataset[[#This Row],[2024/25 To - Other reallocations]]","v":0},{"$f":"Dataset[[#This Row],[2025/26 To - Spending review Topic 1]]+Dataset[[#This Row],[2025/26 To - Spending review Topic 2]]+Dataset[[#This Row],[2025/26 To - Spending review Topic 3]]+Dataset[[#This Row],[2025/26 To - Spending review Topic 4]]+Dataset[[#This Row],[2025/26 To - Other reallocations]]","v":0},{"$f":"Dataset[[#This Row],[2023/24 Baseline]]+Dataset[[#This Row],[2023/24 From - Total]]+Dataset[[#This Row],[2023/24 To - Total]]","v":0},{"$f":"Dataset[[#This Row],[2024/25 Baseline]]+Dataset[[#This Row],[2024/25 From - Total]]+Dataset[[#This Row],[2024/25 To - Total]]","v":0},{"$f":"Dataset[[#This Row],[2025/26 Baseline]]+Dataset[[#This Row],[2025/26 From - Total]]+Dataset[[#This Row],[2025/26 To - Total]]","v":0}]
["NAT|Non-transfer item","2|Municipal agencies and funds","2023_24","MTEF2023",2,1,2,740,123,"02","01","02","000740","000123","02|01|02",1,2,4,44,46,"01|02|04|44|46","National","Parliament","Administration","Office of the Secretary","Non-transfer item","Current","Transfers and subsidies","Provinces and municipalities","Municipalities","Municipal agencies and funds","General public services","Executive and legislative organs","NAT",0,0,0,0,0,0,0,0,0,0,0,null,null,null,null,null,null,null,null,null,null,null,null,null,null,null,null,null,null,null,null,null,null,null,null,null,null,null,null,null,null,{"$f":"Dataset[[#This Row],[2023/24 From - Spending review Topic 1]]+Dataset[[#This Row],[2023/24 From - Spending review Topic 2]]+Dataset[[#This Row],[2023/24 From - Spending review Topic 3]]+Dataset[[#This Row],[2023/24 From - Spending review Topic 4]]+Dataset[[#This Row],[2023/24 From - Other reallocations]]","v":0},{"$f":"Dataset[[#This Row],[2024/25 From - Spending review Topic 1]]+Dataset[[#This Row],[2024/25 From - Spending review Topic 2]]+Dataset[[#This Row],[2024/25 From - Spending review Topic 3]]+Dataset[[#This Row],[2024/25 From - Spending review Topic 4]]+Dataset[[#This Row],[2024/25 From - Other reallocations]]","v":0},{"$f":"Dataset[[#This Row],[2025/26 From - Spending review Topic 1]]+Dataset[[#This Row],[2025/26 From - Spending review Topic 2]]+Dataset[[#This Row],[2025/26 From - Spending review Topic 3]]+Dataset[[#This Row],[2025/26 From - Spending review Topic 4]]+Dataset[[#This Row],[2025/26 From - Other reallocations]]","v":0},{"$f":"Dataset[[#This Row],[2023/24 To - Spending review Topic 1]]+Dataset[[#This Row],[2023/24 To - Spending review Topic 2]]+Dataset[[#This Row],[2023/24 To - Spending review Topic 3]]+Dataset[[#This Row],[2023/24 To - Spending review Topic 4]]+Dataset[[#This Row],[2023/24 To - Other reallocations]]","v":0},{"$f":"Dataset[[#This Row],[2024/25 To - Spending review Topic 1]]+Dataset[[#This Row],[2024/25 To - Spending review Topic 2]]+Dataset[[#This Row],[2024/25 To - Spending review Topic 3]]+Dataset[[#This Row],[2024/25 To - Spending review Topic 4]]+Dataset[[#This Row],[2024/25 To - Other reallocations]]","v":0},{"$f":"Dataset[[#This Row],[2025/26 To - Spending review Topic 1]]+Dataset[[#This Row],[2025/26 To - Spending review Topic 2]]+Dataset[[#This Row],[2025/26 To - Spending review Topic 3]]+Dataset[[#This Row],[2025/26 To - Spending review Topic 4]]+Dataset[[#This Row],[2025/26 To - Other reallocations]]","v":0},{"$f":"Dataset[[#This Row],[2023/24 Baseline]]+Dataset[[#This Row],[2023/24 From - Total]]+Dataset[[#This Row],[2023/24 To - Total]]","v":0},{"$f":"Dataset[[#This Row],[2024/25 Baseline]]+Dataset[[#This Row],[2024/25 From - Total]]+Dataset[[#This Row],[2024/25 To - Total]]","v":0},{"$f":"Dataset[[#This Row],[2025/26 Baseline]]+Dataset[[#This Row],[2025/26 From - Total]]+Dataset[[#This Row],[2025/26 To - Total]]","v":0}]
["NAT|Non-transfer item","2|Social security funds","2023_24","MTEF2023",2,1,2,741,124,"02","01","02","000741","000124","02|01|02",1,2,5,45,47,"01|02|05|45|47","National","Parliament","Administration","Office of the Secretary","Non-transfer item","Current","Transfers and subsidies","Departmental agencies and accounts","Social security funds","Social security funds","General public services","Executive and legislative organs","NAT",0,0,0,0,0,0,0,0,0,0,0,null,null,null,null,null,null,null,null,null,null,null,null,null,null,null,null,null,null,null,null,null,null,null,null,null,null,null,null,null,null,{"$f":"Dataset[[#This Row],[2023/24 From - Spending review Topic 1]]+Dataset[[#This Row],[2023/24 From - Spending review Topic 2]]+Dataset[[#This Row],[2023/24 From - Spending review Topic 3]]+Dataset[[#This Row],[2023/24 From - Spending review Topic 4]]+Dataset[[#This Row],[2023/24 From - Other reallocations]]","v":0},{"$f":"Dataset[[#This Row],[2024/25 From - Spending review Topic 1]]+Dataset[[#This Row],[2024/25 From - Spending review Topic 2]]+Dataset[[#This Row],[2024/25 From - Spending review Topic 3]]+Dataset[[#This Row],[2024/25 From - Spending review Topic 4]]+Dataset[[#This Row],[2024/25 From - Other reallocations]]","v":0},{"$f":"Dataset[[#This Row],[2025/26 From - Spending review Topic 1]]+Dataset[[#This Row],[2025/26 From - Spending review Topic 2]]+Dataset[[#This Row],[2025/26 From - Spending review Topic 3]]+Dataset[[#This Row],[2025/26 From - Spending review Topic 4]]+Dataset[[#This Row],[2025/26 From - Other reallocations]]","v":0},{"$f":"Dataset[[#This Row],[2023/24 To - Spending review Topic 1]]+Dataset[[#This Row],[2023/24 To - Spending review Topic 2]]+Dataset[[#This Row],[2023/24 To - Spending review Topic 3]]+Dataset[[#This Row],[2023/24 To - Spending review Topic 4]]+Dataset[[#This Row],[2023/24 To - Other reallocations]]","v":0},{"$f":"Dataset[[#This Row],[2024/25 To - Spending review Topic 1]]+Dataset[[#This Row],[2024/25 To - Spending review Topic 2]]+Dataset[[#This Row],[2024/25 To - Spending review Topic 3]]+Dataset[[#This Row],[2024/25 To - Spending review Topic 4]]+Dataset[[#This Row],[2024/25 To - Other reallocations]]","v":0},{"$f":"Dataset[[#This Row],[2025/26 To - Spending review Topic 1]]+Dataset[[#This Row],[2025/26 To - Spending review Topic 2]]+Dataset[[#This Row],[2025/26 To - Spending review Topic 3]]+Dataset[[#This Row],[2025/26 To - Spending review Topic 4]]+Dataset[[#This Row],[2025/26 To - Other reallocations]]","v":0},{"$f":"Dataset[[#This Row],[2023/24 Baseline]]+Dataset[[#This Row],[2023/24 From - Total]]+Dataset[[#This Row],[2023/24 To - Total]]","v":0},{"$f":"Dataset[[#This Row],[2024/25 Baseline]]+Dataset[[#This Row],[2024/25 From - Total]]+Dataset[[#This Row],[2024/25 To - Total]]","v":0},{"$f":"Dataset[[#This Row],[2025/26 Baseline]]+Dataset[[#This Row],[2025/26 From - Total]]+Dataset[[#This Row],[2025/26 To - Total]]","v":0}]
["NAT|Non-transfer item","2|Departmental agencies (non-business entities)","2023_24","MTEF2023",2,1,2,742,125,"02","01","02","000742","000125","02|01|02",1,2,5,46,48,"01|02|05|46|48","National","Parliament","Administration","Office of the Secretary","Non-transfer item","Current","Transfers and subsidies","Departmental agencies and accounts","Departmental agencies (non-business entities)","Departmental agencies (non-business entities)","General public services","Executive and legislative organs","NAT",0,0,0,0,0,0,0,0,0,0,0,null,null,null,null,null,null,null,null,null,null,null,null,null,null,null,null,null,null,null,null,null,null,null,null,null,null,null,null,null,null,{"$f":"Dataset[[#This Row],[2023/24 From - Spending review Topic 1]]+Dataset[[#This Row],[2023/24 From - Spending review Topic 2]]+Dataset[[#This Row],[2023/24 From - Spending review Topic 3]]+Dataset[[#This Row],[2023/24 From - Spending review Topic 4]]+Dataset[[#This Row],[2023/24 From - Other reallocations]]","v":0},{"$f":"Dataset[[#This Row],[2024/25 From - Spending review Topic 1]]+Dataset[[#This Row],[2024/25 From - Spending review Topic 2]]+Dataset[[#This Row],[2024/25 From - Spending review Topic 3]]+Dataset[[#This Row],[2024/25 From - Spending review Topic 4]]+Dataset[[#This Row],[2024/25 From - Other reallocations]]","v":0},{"$f":"Dataset[[#This Row],[2025/26 From - Spending review Topic 1]]+Dataset[[#This Row],[2025/26 From - Spending review Topic 2]]+Dataset[[#This Row],[2025/26 From - Spending review Topic 3]]+Dataset[[#This Row],[2025/26 From - Spending review Topic 4]]+Dataset[[#This Row],[2025/26 From - Other reallocations]]","v":0},{"$f":"Dataset[[#This Row],[2023/24 To - Spending review Topic 1]]+Dataset[[#This Row],[2023/24 To - Spending review Topic 2]]+Dataset[[#This Row],[2023/24 To - Spending review Topic 3]]+Dataset[[#This Row],[2023/24 To - Spending review Topic 4]]+Dataset[[#This Row],[2023/24 To - Other reallocations]]","v":0},{"$f":"Dataset[[#This Row],[2024/25 To - Spending review Topic 1]]+Dataset[[#This Row],[2024/25 To - Spending review Topic 2]]+Dataset[[#This Row],[2024/25 To - Spending review Topic 3]]+Dataset[[#This Row],[2024/25 To - Spending review Topic 4]]+Dataset[[#This Row],[2024/25 To - Other reallocations]]","v":0},{"$f":"Dataset[[#This Row],[2025/26 To - Spending review Topic 1]]+Dataset[[#This Row],[2025/26 To - Spending review Topic 2]]+Dataset[[#This Row],[2025/26 To - Spending review Topic 3]]+Dataset[[#This Row],[2025/26 To - Spending review Topic 4]]+Dataset[[#This Row],[2025/26 To - Other reallocations]]","v":0},{"$f":"Dataset[[#This Row],[2023/24 Baseline]]+Dataset[[#This Row],[2023/24 From - Total]]+Dataset[[#This Row],[2023/24 To - Total]]","v":0},{"$f":"Dataset[[#This Row],[2024/25 Baseline]]+Dataset[[#This Row],[2024/25 From - Total]]+Dataset[[#This Row],[2024/25 To - Total]]","v":0},{"$f":"Dataset[[#This Row],[2025/26 Baseline]]+Dataset[[#This Row],[2025/26 From - Total]]+Dataset[[#This Row],[2025/26 To - Total]]","v":0}]
["NAT|Non-transfer item","2|Higher education institutions","2023_24","MTEF2023",2,1,2,743,126,"02","01","02","000743","000126","02|01|02",1,2,6,47,49,"01|02|06|47|49","National","Parliament","Administration","Office of the Secretary","Non-transfer item","Current","Transfers and subsidies","Higher education institutions","Higher education institutions","Higher education institutions","General public services","Executive and legislative organs","NAT",0,0,0,0,0,0,0,0,0,0,0,null,null,null,null,null,null,null,null,null,null,null,null,null,null,null,null,null,null,null,null,null,null,null,null,null,null,null,null,null,null,{"$f":"Dataset[[#This Row],[2023/24 From - Spending review Topic 1]]+Dataset[[#This Row],[2023/24 From - Spending review Topic 2]]+Dataset[[#This Row],[2023/24 From - Spending review Topic 3]]+Dataset[[#This Row],[2023/24 From - Spending review Topic 4]]+Dataset[[#This Row],[2023/24 From - Other reallocations]]","v":0},{"$f":"Dataset[[#This Row],[2024/25 From - Spending review Topic 1]]+Dataset[[#This Row],[2024/25 From - Spending review Topic 2]]+Dataset[[#This Row],[2024/25 From - Spending review Topic 3]]+Dataset[[#This Row],[2024/25 From - Spending review Topic 4]]+Dataset[[#This Row],[2024/25 From - Other reallocations]]","v":0},{"$f":"Dataset[[#This Row],[2025/26 From - Spending review Topic 1]]+Dataset[[#This Row],[2025/26 From - Spending review Topic 2]]+Dataset[[#This Row],[2025/26 From - Spending review Topic 3]]+Dataset[[#This Row],[2025/26 From - Spending review Topic 4]]+Dataset[[#This Row],[2025/26 From - Other reallocations]]","v":0},{"$f":"Dataset[[#This Row],[2023/24 To - Spending review Topic 1]]+Dataset[[#This Row],[2023/24 To - Spending review Topic 2]]+Dataset[[#This Row],[2023/24 To - Spending review Topic 3]]+Dataset[[#This Row],[2023/24 To - Spending review Topic 4]]+Dataset[[#This Row],[2023/24 To - Other reallocations]]","v":0},{"$f":"Dataset[[#This Row],[2024/25 To - Spending review Topic 1]]+Dataset[[#This Row],[2024/25 To - Spending review Topic 2]]+Dataset[[#This Row],[2024/25 To - Spending review Topic 3]]+Dataset[[#This Row],[2024/25 To - Spending review Topic 4]]+Dataset[[#This Row],[2024/25 To - Other reallocations]]","v":0},{"$f":"Dataset[[#This Row],[2025/26 To - Spending review Topic 1]]+Dataset[[#This Row],[2025/26 To - Spending review Topic 2]]+Dataset[[#This Row],[2025/26 To - Spending review Topic 3]]+Dataset[[#This Row],[2025/26 To - Spending review Topic 4]]+Dataset[[#This Row],[2025/26 To - Other reallocations]]","v":0},{"$f":"Dataset[[#This Row],[2023/24 Baseline]]+Dataset[[#This Row],[2023/24 From - Total]]+Dataset[[#This Row],[2023/24 To - Total]]","v":0},{"$f":"Dataset[[#This Row],[2024/25 Baseline]]+Dataset[[#This Row],[2024/25 From - Total]]+Dataset[[#This Row],[2024/25 To - Total]]","v":0},{"$f":"Dataset[[#This Row],[2025/26 Baseline]]+Dataset[[#This Row],[2025/26 From - Total]]+Dataset[[#This Row],[2025/26 To - Total]]","v":0}]
["NAT|Non-transfer item","2|Foreign governments and international organisations","2023_24","MTEF2023",2,1,2,744,127,"02","01","02","000744","000127","02|01|02",1,2,7,48,50,"01|02|07|48|50","National","Parliament","Administration","Office of the Secretary","Non-transfer item","Current","Transfers and subsidies","Foreign governments and international organisations","Foreign governments and international organisations","Foreign governments and international organisations","General public services","Executive and legislative organs","NAT",0,0,0,0,0,0,0,0,0,0,0,null,null,null,null,null,null,null,null,null,null,null,null,null,null,null,null,null,null,null,null,null,null,null,null,null,null,null,null,null,null,{"$f":"Dataset[[#This Row],[2023/24 From - Spending review Topic 1]]+Dataset[[#This Row],[2023/24 From - Spending review Topic 2]]+Dataset[[#This Row],[2023/24 From - Spending review Topic 3]]+Dataset[[#This Row],[2023/24 From - Spending review Topic 4]]+Dataset[[#This Row],[2023/24 From - Other reallocations]]","v":0},{"$f":"Dataset[[#This Row],[2024/25 From - Spending review Topic 1]]+Dataset[[#This Row],[2024/25 From - Spending review Topic 2]]+Dataset[[#This Row],[2024/25 From - Spending review Topic 3]]+Dataset[[#This Row],[2024/25 From - Spending review Topic 4]]+Dataset[[#This Row],[2024/25 From - Other reallocations]]","v":0},{"$f":"Dataset[[#This Row],[2025/26 From - Spending review Topic 1]]+Dataset[[#This Row],[2025/26 From - Spending review Topic 2]]+Dataset[[#This Row],[2025/26 From - Spending review Topic 3]]+Dataset[[#This Row],[2025/26 From - Spending review Topic 4]]+Dataset[[#This Row],[2025/26 From - Other reallocations]]","v":0},{"$f":"Dataset[[#This Row],[2023/24 To - Spending review Topic 1]]+Dataset[[#This Row],[2023/24 To - Spending review Topic 2]]+Dataset[[#This Row],[2023/24 To - Spending review Topic 3]]+Dataset[[#This Row],[2023/24 To - Spending review Topic 4]]+Dataset[[#This Row],[2023/24 To - Other reallocations]]","v":0},{"$f":"Dataset[[#This Row],[2024/25 To - Spending review Topic 1]]+Dataset[[#This Row],[2024/25 To - Spending review Topic 2]]+Dataset[[#This Row],[2024/25 To - Spending review Topic 3]]+Dataset[[#This Row],[2024/25 To - Spending review Topic 4]]+Dataset[[#This Row],[2024/25 To - Other reallocations]]","v":0},{"$f":"Dataset[[#This Row],[2025/26 To - Spending review Topic 1]]+Dataset[[#This Row],[2025/26 To - Spending review Topic 2]]+Dataset[[#This Row],[2025/26 To - Spending review Topic 3]]+Dataset[[#This Row],[2025/26 To - Spending review Topic 4]]+Dataset[[#This Row],[2025/26 To - Other reallocations]]","v":0},{"$f":"Dataset[[#This Row],[2023/24 Baseline]]+Dataset[[#This Row],[2023/24 From - Total]]+Dataset[[#This Row],[2023/24 To - Total]]","v":0},{"$f":"Dataset[[#This Row],[2024/25 Baseline]]+Dataset[[#This Row],[2024/25 From - Total]]+Dataset[[#This Row],[2024/25 To - Total]]","v":0},{"$f":"Dataset[[#This Row],[2025/26 Baseline]]+Dataset[[#This Row],[2025/26 From - Total]]+Dataset[[#This Row],[2025/26 To - Total]]","v":0}]
["NAT|Non-transfer item","2|Subsidies on products and production (pc)","2023_24","MTEF2023",2,1,2,745,128,"02","01","02","000745","000128","02|01|02",1,2,8,49,51,"01|02|08|49|51","National","Parliament","Administration","Office of the Secretary","Non-transfer item","Current","Transfers and subsidies","Public corporations and private enterprises","Public corporations","Subsidies on products and production (pc)","General public services","Executive and legislative organs","NAT",0,0,0,0,0,0,0,0,0,0,0,null,null,null,null,null,null,null,null,null,null,null,null,null,null,null,null,null,null,null,null,null,null,null,null,null,null,null,null,null,null,{"$f":"Dataset[[#This Row],[2023/24 From - Spending review Topic 1]]+Dataset[[#This Row],[2023/24 From - Spending review Topic 2]]+Dataset[[#This Row],[2023/24 From - Spending review Topic 3]]+Dataset[[#This Row],[2023/24 From - Spending review Topic 4]]+Dataset[[#This Row],[2023/24 From - Other reallocations]]","v":0},{"$f":"Dataset[[#This Row],[2024/25 From - Spending review Topic 1]]+Dataset[[#This Row],[2024/25 From - Spending review Topic 2]]+Dataset[[#This Row],[2024/25 From - Spending review Topic 3]]+Dataset[[#This Row],[2024/25 From - Spending review Topic 4]]+Dataset[[#This Row],[2024/25 From - Other reallocations]]","v":0},{"$f":"Dataset[[#This Row],[2025/26 From - Spending review Topic 1]]+Dataset[[#This Row],[2025/26 From - Spending review Topic 2]]+Dataset[[#This Row],[2025/26 From - Spending review Topic 3]]+Dataset[[#This Row],[2025/26 From - Spending review Topic 4]]+Dataset[[#This Row],[2025/26 From - Other reallocations]]","v":0},{"$f":"Dataset[[#This Row],[2023/24 To - Spending review Topic 1]]+Dataset[[#This Row],[2023/24 To - Spending review Topic 2]]+Dataset[[#This Row],[2023/24 To - Spending review Topic 3]]+Dataset[[#This Row],[2023/24 To - Spending review Topic 4]]+Dataset[[#This Row],[2023/24 To - Other reallocations]]","v":0},{"$f":"Dataset[[#This Row],[2024/25 To - Spending review Topic 1]]+Dataset[[#This Row],[2024/25 To - Spending review Topic 2]]+Dataset[[#This Row],[2024/25 To - Spending review Topic 3]]+Dataset[[#This Row],[2024/25 To - Spending review Topic 4]]+Dataset[[#This Row],[2024/25 To - Other reallocations]]","v":0},{"$f":"Dataset[[#This Row],[2025/26 To - Spending review Topic 1]]+Dataset[[#This Row],[2025/26 To - Spending review Topic 2]]+Dataset[[#This Row],[2025/26 To - Spending review Topic 3]]+Dataset[[#This Row],[2025/26 To - Spending review Topic 4]]+Dataset[[#This Row],[2025/26 To - Other reallocations]]","v":0},{"$f":"Dataset[[#This Row],[2023/24 Baseline]]+Dataset[[#This Row],[2023/24 From - Total]]+Dataset[[#This Row],[2023/24 To - Total]]","v":0},{"$f":"Dataset[[#This Row],[2024/25 Baseline]]+Dataset[[#This Row],[2024/25 From - Total]]+Dataset[[#This Row],[2024/25 To - Total]]","v":0},{"$f":"Dataset[[#This Row],[2025/26 Baseline]]+Dataset[[#This Row],[2025/26 From - Total]]+Dataset[[#This Row],[2025/26 To - Total]]","v":0}]
["NAT|Non-transfer item","2|Other transfers to public corporations","2023_24","MTEF2023",2,1,2,746,129,"02","01","02","000746","000129","02|01|02",1,2,8,49,52,"01|02|08|49|52","National","Parliament","Administration","Office of the Secretary","Non-transfer item","Current","Transfers and subsidies","Public corporations and private enterprises","Public corporations","Other transfers to public corporations","General public services","Executive and legislative organs","NAT",0,0,0,0,0,0,0,0,0,0,0,null,null,null,null,null,null,null,null,null,null,null,null,null,null,null,null,null,null,null,null,null,null,null,null,null,null,null,null,null,null,{"$f":"Dataset[[#This Row],[2023/24 From - Spending review Topic 1]]+Dataset[[#This Row],[2023/24 From - Spending review Topic 2]]+Dataset[[#This Row],[2023/24 From - Spending review Topic 3]]+Dataset[[#This Row],[2023/24 From - Spending review Topic 4]]+Dataset[[#This Row],[2023/24 From - Other reallocations]]","v":0},{"$f":"Dataset[[#This Row],[2024/25 From - Spending review Topic 1]]+Dataset[[#This Row],[2024/25 From - Spending review Topic 2]]+Dataset[[#This Row],[2024/25 From - Spending review Topic 3]]+Dataset[[#This Row],[2024/25 From - Spending review Topic 4]]+Dataset[[#This Row],[2024/25 From - Other reallocations]]","v":0},{"$f":"Dataset[[#This Row],[2025/26 From - Spending review Topic 1]]+Dataset[[#This Row],[2025/26 From - Spending review Topic 2]]+Dataset[[#This Row],[2025/26 From - Spending review Topic 3]]+Dataset[[#This Row],[2025/26 From - Spending review Topic 4]]+Dataset[[#This Row],[2025/26 From - Other reallocations]]","v":0},{"$f":"Dataset[[#This Row],[2023/24 To - Spending review Topic 1]]+Dataset[[#This Row],[2023/24 To - Spending review Topic 2]]+Dataset[[#This Row],[2023/24 To - Spending review Topic 3]]+Dataset[[#This Row],[2023/24 To - Spending review Topic 4]]+Dataset[[#This Row],[2023/24 To - Other reallocations]]","v":0},{"$f":"Dataset[[#This Row],[2024/25 To - Spending review Topic 1]]+Dataset[[#This Row],[2024/25 To - Spending review Topic 2]]+Dataset[[#This Row],[2024/25 To - Spending review Topic 3]]+Dataset[[#This Row],[2024/25 To - Spending review Topic 4]]+Dataset[[#This Row],[2024/25 To - Other reallocations]]","v":0},{"$f":"Dataset[[#This Row],[2025/26 To - Spending review Topic 1]]+Dataset[[#This Row],[2025/26 To - Spending review Topic 2]]+Dataset[[#This Row],[2025/26 To - Spending review Topic 3]]+Dataset[[#This Row],[2025/26 To - Spending review Topic 4]]+Dataset[[#This Row],[2025/26 To - Other reallocations]]","v":0},{"$f":"Dataset[[#This Row],[2023/24 Baseline]]+Dataset[[#This Row],[2023/24 From - Total]]+Dataset[[#This Row],[2023/24 To - Total]]","v":0},{"$f":"Dataset[[#This Row],[2024/25 Baseline]]+Dataset[[#This Row],[2024/25 From - Total]]+Dataset[[#This Row],[2024/25 To - Total]]","v":0},{"$f":"Dataset[[#This Row],[2025/26 Baseline]]+Dataset[[#This Row],[2025/26 From - Total]]+Dataset[[#This Row],[2025/26 To - Total]]","v":0}]
["NAT|Non-transfer item","2|Subsidies on products and production (pe)","2023_24","MTEF2023",2,1,2,747,130,"02","01","02","000747","000130","02|01|02",1,2,8,50,53,"01|02|08|50|53","National","Parliament","Administration","Office of the Secretary","Non-transfer item","Current","Transfers and subsidies","Public corporations and private enterprises","Private enterprises","Subsidies on products and production (pe)","General public services","Executive and legislative organs","NAT",0,0,0,0,0,0,0,0,0,0,0,null,null,null,null,null,null,null,null,null,null,null,null,null,null,null,null,null,null,null,null,null,null,null,null,null,null,null,null,null,null,{"$f":"Dataset[[#This Row],[2023/24 From - Spending review Topic 1]]+Dataset[[#This Row],[2023/24 From - Spending review Topic 2]]+Dataset[[#This Row],[2023/24 From - Spending review Topic 3]]+Dataset[[#This Row],[2023/24 From - Spending review Topic 4]]+Dataset[[#This Row],[2023/24 From - Other reallocations]]","v":0},{"$f":"Dataset[[#This Row],[2024/25 From - Spending review Topic 1]]+Dataset[[#This Row],[2024/25 From - Spending review Topic 2]]+Dataset[[#This Row],[2024/25 From - Spending review Topic 3]]+Dataset[[#This Row],[2024/25 From - Spending review Topic 4]]+Dataset[[#This Row],[2024/25 From - Other reallocations]]","v":0},{"$f":"Dataset[[#This Row],[2025/26 From - Spending review Topic 1]]+Dataset[[#This Row],[2025/26 From - Spending review Topic 2]]+Dataset[[#This Row],[2025/26 From - Spending review Topic 3]]+Dataset[[#This Row],[2025/26 From - Spending review Topic 4]]+Dataset[[#This Row],[2025/26 From - Other reallocations]]","v":0},{"$f":"Dataset[[#This Row],[2023/24 To - Spending review Topic 1]]+Dataset[[#This Row],[2023/24 To - Spending review Topic 2]]+Dataset[[#This Row],[2023/24 To - Spending review Topic 3]]+Dataset[[#This Row],[2023/24 To - Spending review Topic 4]]+Dataset[[#This Row],[2023/24 To - Other reallocations]]","v":0},{"$f":"Dataset[[#This Row],[2024/25 To - Spending review Topic 1]]+Dataset[[#This Row],[2024/25 To - Spending review Topic 2]]+Dataset[[#This Row],[2024/25 To - Spending review Topic 3]]+Dataset[[#This Row],[2024/25 To - Spending review Topic 4]]+Dataset[[#This Row],[2024/25 To - Other reallocations]]","v":0},{"$f":"Dataset[[#This Row],[2025/26 To - Spending review Topic 1]]+Dataset[[#This Row],[2025/26 To - Spending review Topic 2]]+Dataset[[#This Row],[2025/26 To - Spending review Topic 3]]+Dataset[[#This Row],[2025/26 To - Spending review Topic 4]]+Dataset[[#This Row],[2025/26 To - Other reallocations]]","v":0},{"$f":"Dataset[[#This Row],[2023/24 Baseline]]+Dataset[[#This Row],[2023/24 From - Total]]+Dataset[[#This Row],[2023/24 To - Total]]","v":0},{"$f":"Dataset[[#This Row],[2024/25 Baseline]]+Dataset[[#This Row],[2024/25 From - Total]]+Dataset[[#This Row],[2024/25 To - Total]]","v":0},{"$f":"Dataset[[#This Row],[2025/26 Baseline]]+Dataset[[#This Row],[2025/26 From - Total]]+Dataset[[#This Row],[2025/26 To - Total]]","v":0}]
["NAT|Non-transfer item","2|Other transfers to private enterprises","2023_24","MTEF2023",2,1,2,748,131,"02","01","02","000748","000131","02|01|02",1,2,8,50,54,"01|02|08|50|54","National","Parliament","Administration","Office of the Secretary","Non-transfer item","Current","Transfers and subsidies","Public corporations and private enterprises","Private enterprises","Other transfers to private enterprises","General public services","Executive and legislative organs","NAT",0,0,0,0,0,0,0,0,0,0,0,null,null,null,null,null,null,null,null,null,null,null,null,null,null,null,null,null,null,null,null,null,null,null,null,null,null,null,null,null,null,{"$f":"Dataset[[#This Row],[2023/24 From - Spending review Topic 1]]+Dataset[[#This Row],[2023/24 From - Spending review Topic 2]]+Dataset[[#This Row],[2023/24 From - Spending review Topic 3]]+Dataset[[#This Row],[2023/24 From - Spending review Topic 4]]+Dataset[[#This Row],[2023/24 From - Other reallocations]]","v":0},{"$f":"Dataset[[#This Row],[2024/25 From - Spending review Topic 1]]+Dataset[[#This Row],[2024/25 From - Spending review Topic 2]]+Dataset[[#This Row],[2024/25 From - Spending review Topic 3]]+Dataset[[#This Row],[2024/25 From - Spending review Topic 4]]+Dataset[[#This Row],[2024/25 From - Other reallocations]]","v":0},{"$f":"Dataset[[#This Row],[2025/26 From - Spending review Topic 1]]+Dataset[[#This Row],[2025/26 From - Spending review Topic 2]]+Dataset[[#This Row],[2025/26 From - Spending review Topic 3]]+Dataset[[#This Row],[2025/26 From - Spending review Topic 4]]+Dataset[[#This Row],[2025/26 From - Other reallocations]]","v":0},{"$f":"Dataset[[#This Row],[2023/24 To - Spending review Topic 1]]+Dataset[[#This Row],[2023/24 To - Spending review Topic 2]]+Dataset[[#This Row],[2023/24 To - Spending review Topic 3]]+Dataset[[#This Row],[2023/24 To - Spending review Topic 4]]+Dataset[[#This Row],[2023/24 To - Other reallocations]]","v":0},{"$f":"Dataset[[#This Row],[2024/25 To - Spending review Topic 1]]+Dataset[[#This Row],[2024/25 To - Spending review Topic 2]]+Dataset[[#This Row],[2024/25 To - Spending review Topic 3]]+Dataset[[#This Row],[2024/25 To - Spending review Topic 4]]+Dataset[[#This Row],[2024/25 To - Other reallocations]]","v":0},{"$f":"Dataset[[#This Row],[2025/26 To - Spending review Topic 1]]+Dataset[[#This Row],[2025/26 To - Spending review Topic 2]]+Dataset[[#This Row],[2025/26 To - Spending review Topic 3]]+Dataset[[#This Row],[2025/26 To - Spending review Topic 4]]+Dataset[[#This Row],[2025/26 To - Other reallocations]]","v":0},{"$f":"Dataset[[#This Row],[2023/24 Baseline]]+Dataset[[#This Row],[2023/24 From - Total]]+Dataset[[#This Row],[2023/24 To - Total]]","v":0},{"$f":"Dataset[[#This Row],[2024/25 Baseline]]+Dataset[[#This Row],[2024/25 From - Total]]+Dataset[[#This Row],[2024/25 To - Total]]","v":0},{"$f":"Dataset[[#This Row],[2025/26 Baseline]]+Dataset[[#This Row],[2025/26 From - Total]]+Dataset[[#This Row],[2025/26 To - Total]]","v":0}]
["NAT|Non-transfer item","2|Non-profit institutions","2023_24","MTEF2023",2,1,2,749,132,"02","01","02","000749","000132","02|01|02",1,2,9,51,55,"01|02|09|51|55","National","Parliament","Administration","Office of the Secretary","Non-transfer item","Current","Transfers and subsidies","Non-profit institutions","Non-profit institutions","Non-profit institutions","General public services","Executive and legislative organs","NAT",0,0,0,0,0,0,0,0,0,0,0,null,null,null,null,null,null,null,null,null,null,null,null,null,null,null,null,null,null,null,null,null,null,null,null,null,null,null,null,null,null,{"$f":"Dataset[[#This Row],[2023/24 From - Spending review Topic 1]]+Dataset[[#This Row],[2023/24 From - Spending review Topic 2]]+Dataset[[#This Row],[2023/24 From - Spending review Topic 3]]+Dataset[[#This Row],[2023/24 From - Spending review Topic 4]]+Dataset[[#This Row],[2023/24 From - Other reallocations]]","v":0},{"$f":"Dataset[[#This Row],[2024/25 From - Spending review Topic 1]]+Dataset[[#This Row],[2024/25 From - Spending review Topic 2]]+Dataset[[#This Row],[2024/25 From - Spending review Topic 3]]+Dataset[[#This Row],[2024/25 From - Spending review Topic 4]]+Dataset[[#This Row],[2024/25 From - Other reallocations]]","v":0},{"$f":"Dataset[[#This Row],[2025/26 From - Spending review Topic 1]]+Dataset[[#This Row],[2025/26 From - Spending review Topic 2]]+Dataset[[#This Row],[2025/26 From - Spending review Topic 3]]+Dataset[[#This Row],[2025/26 From - Spending review Topic 4]]+Dataset[[#This Row],[2025/26 From - Other reallocations]]","v":0},{"$f":"Dataset[[#This Row],[2023/24 To - Spending review Topic 1]]+Dataset[[#This Row],[2023/24 To - Spending review Topic 2]]+Dataset[[#This Row],[2023/24 To - Spending review Topic 3]]+Dataset[[#This Row],[2023/24 To - Spending review Topic 4]]+Dataset[[#This Row],[2023/24 To - Other reallocations]]","v":0},{"$f":"Dataset[[#This Row],[2024/25 To - Spending review Topic 1]]+Dataset[[#This Row],[2024/25 To - Spending review Topic 2]]+Dataset[[#This Row],[2024/25 To - Spending review Topic 3]]+Dataset[[#This Row],[2024/25 To - Spending review Topic 4]]+Dataset[[#This Row],[2024/25 To - Other reallocations]]","v":0},{"$f":"Dataset[[#This Row],[2025/26 To - Spending review Topic 1]]+Dataset[[#This Row],[2025/26 To - Spending review Topic 2]]+Dataset[[#This Row],[2025/26 To - Spending review Topic 3]]+Dataset[[#This Row],[2025/26 To - Spending review Topic 4]]+Dataset[[#This Row],[2025/26 To - Other reallocations]]","v":0},{"$f":"Dataset[[#This Row],[2023/24 Baseline]]+Dataset[[#This Row],[2023/24 From - Total]]+Dataset[[#This Row],[2023/24 To - Total]]","v":0},{"$f":"Dataset[[#This Row],[2024/25 Baseline]]+Dataset[[#This Row],[2024/25 From - Total]]+Dataset[[#This Row],[2024/25 To - Total]]","v":0},{"$f":"Dataset[[#This Row],[2025/26 Baseline]]+Dataset[[#This Row],[2025/26 From - Total]]+Dataset[[#This Row],[2025/26 To - Total]]","v":0}]
["NAT|Non-transfer item","2|Social benefits","2023_24","MTEF2023",2,1,2,750,133,"02","01","02","000750","000133","02|01|02",1,2,10,52,56,"01|02|10|52|56","National","Parliament","Administration","Office of the Secretary","Non-transfer item","Current","Transfers and subsidies","Households","Social benefits","Social benefits","General public services","Executive and legislative organs","NAT",0,0,0,0,0,0,0,0,0,0,0,null,null,null,null,null,null,null,null,null,null,null,null,null,null,null,null,null,null,null,null,null,null,null,null,null,null,null,null,null,null,{"$f":"Dataset[[#This Row],[2023/24 From - Spending review Topic 1]]+Dataset[[#This Row],[2023/24 From - Spending review Topic 2]]+Dataset[[#This Row],[2023/24 From - Spending review Topic 3]]+Dataset[[#This Row],[2023/24 From - Spending review Topic 4]]+Dataset[[#This Row],[2023/24 From - Other reallocations]]","v":0},{"$f":"Dataset[[#This Row],[2024/25 From - Spending review Topic 1]]+Dataset[[#This Row],[2024/25 From - Spending review Topic 2]]+Dataset[[#This Row],[2024/25 From - Spending review Topic 3]]+Dataset[[#This Row],[2024/25 From - Spending review Topic 4]]+Dataset[[#This Row],[2024/25 From - Other reallocations]]","v":0},{"$f":"Dataset[[#This Row],[2025/26 From - Spending review Topic 1]]+Dataset[[#This Row],[2025/26 From - Spending review Topic 2]]+Dataset[[#This Row],[2025/26 From - Spending review Topic 3]]+Dataset[[#This Row],[2025/26 From - Spending review Topic 4]]+Dataset[[#This Row],[2025/26 From - Other reallocations]]","v":0},{"$f":"Dataset[[#This Row],[2023/24 To - Spending review Topic 1]]+Dataset[[#This Row],[2023/24 To - Spending review Topic 2]]+Dataset[[#This Row],[2023/24 To - Spending review Topic 3]]+Dataset[[#This Row],[2023/24 To - Spending review Topic 4]]+Dataset[[#This Row],[2023/24 To - Other reallocations]]","v":0},{"$f":"Dataset[[#This Row],[2024/25 To - Spending review Topic 1]]+Dataset[[#This Row],[2024/25 To - Spending review Topic 2]]+Dataset[[#This Row],[2024/25 To - Spending review Topic 3]]+Dataset[[#This Row],[2024/25 To - Spending review Topic 4]]+Dataset[[#This Row],[2024/25 To - Other reallocations]]","v":0},{"$f":"Dataset[[#This Row],[2025/26 To - Spending review Topic 1]]+Dataset[[#This Row],[2025/26 To - Spending review Topic 2]]+Dataset[[#This Row],[2025/26 To - Spending review Topic 3]]+Dataset[[#This Row],[2025/26 To - Spending review Topic 4]]+Dataset[[#This Row],[2025/26 To - Other reallocations]]","v":0},{"$f":"Dataset[[#This Row],[2023/24 Baseline]]+Dataset[[#This Row],[2023/24 From - Total]]+Dataset[[#This Row],[2023/24 To - Total]]","v":0},{"$f":"Dataset[[#This Row],[2024/25 Baseline]]+Dataset[[#This Row],[2024/25 From - Total]]+Dataset[[#This Row],[2024/25 To - Total]]","v":0},{"$f":"Dataset[[#This Row],[2025/26 Baseline]]+Dataset[[#This Row],[2025/26 From - Total]]+Dataset[[#This Row],[2025/26 To - Total]]","v":0}]
["NAT|Non-transfer item","2|Other transfers to households","2023_24","MTEF2023",2,1,2,751,134,"02","01","02","000751","000134","02|01|02",1,2,10,53,57,"01|02|10|53|57","National","Parliament","Administration","Office of the Secretary","Non-transfer item","Current","Transfers and subsidies","Households","Other transfers to households","Other transfers to households","General public services","Executive and legislative organs","NAT",0,0,0,0,0,0,0,0,0,0,0,null,null,null,null,null,null,null,null,null,null,null,null,null,null,null,null,null,null,null,null,null,null,null,null,null,null,null,null,null,null,{"$f":"Dataset[[#This Row],[2023/24 From - Spending review Topic 1]]+Dataset[[#This Row],[2023/24 From - Spending review Topic 2]]+Dataset[[#This Row],[2023/24 From - Spending review Topic 3]]+Dataset[[#This Row],[2023/24 From - Spending review Topic 4]]+Dataset[[#This Row],[2023/24 From - Other reallocations]]","v":0},{"$f":"Dataset[[#This Row],[2024/25 From - Spending review Topic 1]]+Dataset[[#This Row],[2024/25 From - Spending review Topic 2]]+Dataset[[#This Row],[2024/25 From - Spending review Topic 3]]+Dataset[[#This Row],[2024/25 From - Spending review Topic 4]]+Dataset[[#This Row],[2024/25 From - Other reallocations]]","v":0},{"$f":"Dataset[[#This Row],[2025/26 From - Spending review Topic 1]]+Dataset[[#This Row],[2025/26 From - Spending review Topic 2]]+Dataset[[#This Row],[2025/26 From - Spending review Topic 3]]+Dataset[[#This Row],[2025/26 From - Spending review Topic 4]]+Dataset[[#This Row],[2025/26 From - Other reallocations]]","v":0},{"$f":"Dataset[[#This Row],[2023/24 To - Spending review Topic 1]]+Dataset[[#This Row],[2023/24 To - Spending review Topic 2]]+Dataset[[#This Row],[2023/24 To - Spending review Topic 3]]+Dataset[[#This Row],[2023/24 To - Spending review Topic 4]]+Dataset[[#This Row],[2023/24 To - Other reallocations]]","v":0},{"$f":"Dataset[[#This Row],[2024/25 To - Spending review Topic 1]]+Dataset[[#This Row],[2024/25 To - Spending review Topic 2]]+Dataset[[#This Row],[2024/25 To - Spending review Topic 3]]+Dataset[[#This Row],[2024/25 To - Spending review Topic 4]]+Dataset[[#This Row],[2024/25 To - Other reallocations]]","v":0},{"$f":"Dataset[[#This Row],[2025/26 To - Spending review Topic 1]]+Dataset[[#This Row],[2025/26 To - Spending review Topic 2]]+Dataset[[#This Row],[2025/26 To - Spending review Topic 3]]+Dataset[[#This Row],[2025/26 To - Spending review Topic 4]]+Dataset[[#This Row],[2025/26 To - Other reallocations]]","v":0},{"$f":"Dataset[[#This Row],[2023/24 Baseline]]+Dataset[[#This Row],[2023/24 From - Total]]+Dataset[[#This Row],[2023/24 To - Total]]","v":0},{"$f":"Dataset[[#This Row],[2024/25 Baseline]]+Dataset[[#This Row],[2024/25 From - Total]]+Dataset[[#This Row],[2024/25 To - Total]]","v":0},{"$f":"Dataset[[#This Row],[2025/26 Baseline]]+Dataset[[#This Row],[2025/26 From - Total]]+Dataset[[#This Row],[2025/26 To - Total]]","v":0}]
["NAT|Non-transfer item","2|Provincial Revenue Funds","2023_24","MTEF2023",2,1,2,752,135,"02","01","02","000752","000135","02|01|02",2,2,4,43,43,"02|02|04|43|43","National","Parliament","Administration","Office of the Secretary","Non-transfer item","Capital","Transfers and subsidies","Provinces and municipalities","Provinces","Provincial Revenue Funds","General public services","Executive and legislative organs","NAT",0,0,0,0,0,0,0,0,0,0,0,null,null,null,null,null,null,null,null,null,null,null,null,null,null,null,null,null,null,null,null,null,null,null,null,null,null,null,null,null,null,{"$f":"Dataset[[#This Row],[2023/24 From - Spending review Topic 1]]+Dataset[[#This Row],[2023/24 From - Spending review Topic 2]]+Dataset[[#This Row],[2023/24 From - Spending review Topic 3]]+Dataset[[#This Row],[2023/24 From - Spending review Topic 4]]+Dataset[[#This Row],[2023/24 From - Other reallocations]]","v":0},{"$f":"Dataset[[#This Row],[2024/25 From - Spending review Topic 1]]+Dataset[[#This Row],[2024/25 From - Spending review Topic 2]]+Dataset[[#This Row],[2024/25 From - Spending review Topic 3]]+Dataset[[#This Row],[2024/25 From - Spending review Topic 4]]+Dataset[[#This Row],[2024/25 From - Other reallocations]]","v":0},{"$f":"Dataset[[#This Row],[2025/26 From - Spending review Topic 1]]+Dataset[[#This Row],[2025/26 From - Spending review Topic 2]]+Dataset[[#This Row],[2025/26 From - Spending review Topic 3]]+Dataset[[#This Row],[2025/26 From - Spending review Topic 4]]+Dataset[[#This Row],[2025/26 From - Other reallocations]]","v":0},{"$f":"Dataset[[#This Row],[2023/24 To - Spending review Topic 1]]+Dataset[[#This Row],[2023/24 To - Spending review Topic 2]]+Dataset[[#This Row],[2023/24 To - Spending review Topic 3]]+Dataset[[#This Row],[2023/24 To - Spending review Topic 4]]+Dataset[[#This Row],[2023/24 To - Other reallocations]]","v":0},{"$f":"Dataset[[#This Row],[2024/25 To - Spending review Topic 1]]+Dataset[[#This Row],[2024/25 To - Spending review Topic 2]]+Dataset[[#This Row],[2024/25 To - Spending review Topic 3]]+Dataset[[#This Row],[2024/25 To - Spending review Topic 4]]+Dataset[[#This Row],[2024/25 To - Other reallocations]]","v":0},{"$f":"Dataset[[#This Row],[2025/26 To - Spending review Topic 1]]+Dataset[[#This Row],[2025/26 To - Spending review Topic 2]]+Dataset[[#This Row],[2025/26 To - Spending review Topic 3]]+Dataset[[#This Row],[2025/26 To - Spending review Topic 4]]+Dataset[[#This Row],[2025/26 To - Other reallocations]]","v":0},{"$f":"Dataset[[#This Row],[2023/24 Baseline]]+Dataset[[#This Row],[2023/24 From - Total]]+Dataset[[#This Row],[2023/24 To - Total]]","v":0},{"$f":"Dataset[[#This Row],[2024/25 Baseline]]+Dataset[[#This Row],[2024/25 From - Total]]+Dataset[[#This Row],[2024/25 To - Total]]","v":0},{"$f":"Dataset[[#This Row],[2025/26 Baseline]]+Dataset[[#This Row],[2025/26 From - Total]]+Dataset[[#This Row],[2025/26 To - Total]]","v":0}]
["NAT|Non-transfer item","2|Municipal bank accounts","2023_24","MTEF2023",2,1,2,753,136,"02","01","02","000753","000136","02|01|02",2,2,4,44,45,"02|02|04|44|45","National","Parliament","Administration","Office of the Secretary","Non-transfer item","Capital","Transfers and subsidies","Provinces and municipalities","Municipalities","Municipal bank accounts","General public services","Executive and legislative organs","NAT",0,0,0,0,0,0,0,0,0,0,0,null,null,null,null,null,null,null,null,null,null,null,null,null,null,null,null,null,null,null,null,null,null,null,null,null,null,null,null,null,null,{"$f":"Dataset[[#This Row],[2023/24 From - Spending review Topic 1]]+Dataset[[#This Row],[2023/24 From - Spending review Topic 2]]+Dataset[[#This Row],[2023/24 From - Spending review Topic 3]]+Dataset[[#This Row],[2023/24 From - Spending review Topic 4]]+Dataset[[#This Row],[2023/24 From - Other reallocations]]","v":0},{"$f":"Dataset[[#This Row],[2024/25 From - Spending review Topic 1]]+Dataset[[#This Row],[2024/25 From - Spending review Topic 2]]+Dataset[[#This Row],[2024/25 From - Spending review Topic 3]]+Dataset[[#This Row],[2024/25 From - Spending review Topic 4]]+Dataset[[#This Row],[2024/25 From - Other reallocations]]","v":0},{"$f":"Dataset[[#This Row],[2025/26 From - Spending review Topic 1]]+Dataset[[#This Row],[2025/26 From - Spending review Topic 2]]+Dataset[[#This Row],[2025/26 From - Spending review Topic 3]]+Dataset[[#This Row],[2025/26 From - Spending review Topic 4]]+Dataset[[#This Row],[2025/26 From - Other reallocations]]","v":0},{"$f":"Dataset[[#This Row],[2023/24 To - Spending review Topic 1]]+Dataset[[#This Row],[2023/24 To - Spending review Topic 2]]+Dataset[[#This Row],[2023/24 To - Spending review Topic 3]]+Dataset[[#This Row],[2023/24 To - Spending review Topic 4]]+Dataset[[#This Row],[2023/24 To - Other reallocations]]","v":0},{"$f":"Dataset[[#This Row],[2024/25 To - Spending review Topic 1]]+Dataset[[#This Row],[2024/25 To - Spending review Topic 2]]+Dataset[[#This Row],[2024/25 To - Spending review Topic 3]]+Dataset[[#This Row],[2024/25 To - Spending review Topic 4]]+Dataset[[#This Row],[2024/25 To - Other reallocations]]","v":0},{"$f":"Dataset[[#This Row],[2025/26 To - Spending review Topic 1]]+Dataset[[#This Row],[2025/26 To - Spending review Topic 2]]+Dataset[[#This Row],[2025/26 To - Spending review Topic 3]]+Dataset[[#This Row],[2025/26 To - Spending review Topic 4]]+Dataset[[#This Row],[2025/26 To - Other reallocations]]","v":0},{"$f":"Dataset[[#This Row],[2023/24 Baseline]]+Dataset[[#This Row],[2023/24 From - Total]]+Dataset[[#This Row],[2023/24 To - Total]]","v":0},{"$f":"Dataset[[#This Row],[2024/25 Baseline]]+Dataset[[#This Row],[2024/25 From - Total]]+Dataset[[#This Row],[2024/25 To - Total]]","v":0},{"$f":"Dataset[[#This Row],[2025/26 Baseline]]+Dataset[[#This Row],[2025/26 From - Total]]+Dataset[[#This Row],[2025/26 To - Total]]","v":0}]
["NAT|Non-transfer item","2|Departmental agencies (non-business entities)","2023_24","MTEF2023",2,1,2,754,137,"02","01","02","000754","000137","02|01|02",2,2,5,46,48,"02|02|05|46|48","National","Parliament","Administration","Office of the Secretary","Non-transfer item","Capital","Transfers and subsidies","Departmental agencies and accounts","Departmental agencies (non-business entities)","Departmental agencies (non-business entities)","General public services","Executive and legislative organs","NAT",0,0,0,0,0,0,0,0,0,0,0,null,null,null,null,null,null,null,null,null,null,null,null,null,null,null,null,null,null,null,null,null,null,null,null,null,null,null,null,null,null,{"$f":"Dataset[[#This Row],[2023/24 From - Spending review Topic 1]]+Dataset[[#This Row],[2023/24 From - Spending review Topic 2]]+Dataset[[#This Row],[2023/24 From - Spending review Topic 3]]+Dataset[[#This Row],[2023/24 From - Spending review Topic 4]]+Dataset[[#This Row],[2023/24 From - Other reallocations]]","v":0},{"$f":"Dataset[[#This Row],[2024/25 From - Spending review Topic 1]]+Dataset[[#This Row],[2024/25 From - Spending review Topic 2]]+Dataset[[#This Row],[2024/25 From - Spending review Topic 3]]+Dataset[[#This Row],[2024/25 From - Spending review Topic 4]]+Dataset[[#This Row],[2024/25 From - Other reallocations]]","v":0},{"$f":"Dataset[[#This Row],[2025/26 From - Spending review Topic 1]]+Dataset[[#This Row],[2025/26 From - Spending review Topic 2]]+Dataset[[#This Row],[2025/26 From - Spending review Topic 3]]+Dataset[[#This Row],[2025/26 From - Spending review Topic 4]]+Dataset[[#This Row],[2025/26 From - Other reallocations]]","v":0},{"$f":"Dataset[[#This Row],[2023/24 To - Spending review Topic 1]]+Dataset[[#This Row],[2023/24 To - Spending review Topic 2]]+Dataset[[#This Row],[2023/24 To - Spending review Topic 3]]+Dataset[[#This Row],[2023/24 To - Spending review Topic 4]]+Dataset[[#This Row],[2023/24 To - Other reallocations]]","v":0},{"$f":"Dataset[[#This Row],[2024/25 To - Spending review Topic 1]]+Dataset[[#This Row],[2024/25 To - Spending review Topic 2]]+Dataset[[#This Row],[2024/25 To - Spending review Topic 3]]+Dataset[[#This Row],[2024/25 To - Spending review Topic 4]]+Dataset[[#This Row],[2024/25 To - Other reallocations]]","v":0},{"$f":"Dataset[[#This Row],[2025/26 To - Spending review Topic 1]]+Dataset[[#This Row],[2025/26 To - Spending review Topic 2]]+Dataset[[#This Row],[2025/26 To - Spending review Topic 3]]+Dataset[[#This Row],[2025/26 To - Spending review Topic 4]]+Dataset[[#This Row],[2025/26 To - Other reallocations]]","v":0},{"$f":"Dataset[[#This Row],[2023/24 Baseline]]+Dataset[[#This Row],[2023/24 From - Total]]+Dataset[[#This Row],[2023/24 To - Total]]","v":0},{"$f":"Dataset[[#This Row],[2024/25 Baseline]]+Dataset[[#This Row],[2024/25 From - Total]]+Dataset[[#This Row],[2024/25 To - Total]]","v":0},{"$f":"Dataset[[#This Row],[2025/26 Baseline]]+Dataset[[#This Row],[2025/26 From - Total]]+Dataset[[#This Row],[2025/26 To - Total]]","v":0}]
["NAT|Non-transfer item","2|Higher education institutions","2023_24","MTEF2023",2,1,2,755,138,"02","01","02","000755","000138","02|01|02",2,2,6,47,49,"02|02|06|47|49","National","Parliament","Administration","Office of the Secretary","Non-transfer item","Capital","Transfers and subsidies","Higher education institutions","Higher education institutions","Higher education institutions","General public services","Executive and legislative organs","NAT",0,0,0,0,0,0,0,0,0,0,0,null,null,null,null,null,null,null,null,null,null,null,null,null,null,null,null,null,null,null,null,null,null,null,null,null,null,null,null,null,null,{"$f":"Dataset[[#This Row],[2023/24 From - Spending review Topic 1]]+Dataset[[#This Row],[2023/24 From - Spending review Topic 2]]+Dataset[[#This Row],[2023/24 From - Spending review Topic 3]]+Dataset[[#This Row],[2023/24 From - Spending review Topic 4]]+Dataset[[#This Row],[2023/24 From - Other reallocations]]","v":0},{"$f":"Dataset[[#This Row],[2024/25 From - Spending review Topic 1]]+Dataset[[#This Row],[2024/25 From - Spending review Topic 2]]+Dataset[[#This Row],[2024/25 From - Spending review Topic 3]]+Dataset[[#This Row],[2024/25 From - Spending review Topic 4]]+Dataset[[#This Row],[2024/25 From - Other reallocations]]","v":0},{"$f":"Dataset[[#This Row],[2025/26 From - Spending review Topic 1]]+Dataset[[#This Row],[2025/26 From - Spending review Topic 2]]+Dataset[[#This Row],[2025/26 From - Spending review Topic 3]]+Dataset[[#This Row],[2025/26 From - Spending review Topic 4]]+Dataset[[#This Row],[2025/26 From - Other reallocations]]","v":0},{"$f":"Dataset[[#This Row],[2023/24 To - Spending review Topic 1]]+Dataset[[#This Row],[2023/24 To - Spending review Topic 2]]+Dataset[[#This Row],[2023/24 To - Spending review Topic 3]]+Dataset[[#This Row],[2023/24 To - Spending review Topic 4]]+Dataset[[#This Row],[2023/24 To - Other reallocations]]","v":0},{"$f":"Dataset[[#This Row],[2024/25 To - Spending review Topic 1]]+Dataset[[#This Row],[2024/25 To - Spending review Topic 2]]+Dataset[[#This Row],[2024/25 To - Spending review Topic 3]]+Dataset[[#This Row],[2024/25 To - Spending review Topic 4]]+Dataset[[#This Row],[2024/25 To - Other reallocations]]","v":0},{"$f":"Dataset[[#This Row],[2025/26 To - Spending review Topic 1]]+Dataset[[#This Row],[2025/26 To - Spending review Topic 2]]+Dataset[[#This Row],[2025/26 To - Spending review Topic 3]]+Dataset[[#This Row],[2025/26 To - Spending review Topic 4]]+Dataset[[#This Row],[2025/26 To - Other reallocations]]","v":0},{"$f":"Dataset[[#This Row],[2023/24 Baseline]]+Dataset[[#This Row],[2023/24 From - Total]]+Dataset[[#This Row],[2023/24 To - Total]]","v":0},{"$f":"Dataset[[#This Row],[2024/25 Baseline]]+Dataset[[#This Row],[2024/25 From - Total]]+Dataset[[#This Row],[2024/25 To - Total]]","v":0},{"$f":"Dataset[[#This Row],[2025/26 Baseline]]+Dataset[[#This Row],[2025/26 From - Total]]+Dataset[[#This Row],[2025/26 To - Total]]","v":0}]
["NAT|Non-transfer item","2|Foreign governments and international organisations","2023_24","MTEF2023",2,1,2,756,139,"02","01","02","000756","000139","02|01|02",2,2,7,48,50,"02|02|07|48|50","National","Parliament","Administration","Office of the Secretary","Non-transfer item","Capital","Transfers and subsidies","Foreign governments and international organisations","Foreign governments and international organisations","Foreign governments and international organisations","General public services","Executive and legislative organs","NAT",0,0,0,0,0,0,0,0,0,0,0,null,null,null,null,null,null,null,null,null,null,null,null,null,null,null,null,null,null,null,null,null,null,null,null,null,null,null,null,null,null,{"$f":"Dataset[[#This Row],[2023/24 From - Spending review Topic 1]]+Dataset[[#This Row],[2023/24 From - Spending review Topic 2]]+Dataset[[#This Row],[2023/24 From - Spending review Topic 3]]+Dataset[[#This Row],[2023/24 From - Spending review Topic 4]]+Dataset[[#This Row],[2023/24 From - Other reallocations]]","v":0},{"$f":"Dataset[[#This Row],[2024/25 From - Spending review Topic 1]]+Dataset[[#This Row],[2024/25 From - Spending review Topic 2]]+Dataset[[#This Row],[2024/25 From - Spending review Topic 3]]+Dataset[[#This Row],[2024/25 From - Spending review Topic 4]]+Dataset[[#This Row],[2024/25 From - Other reallocations]]","v":0},{"$f":"Dataset[[#This Row],[2025/26 From - Spending review Topic 1]]+Dataset[[#This Row],[2025/26 From - Spending review Topic 2]]+Dataset[[#This Row],[2025/26 From - Spending review Topic 3]]+Dataset[[#This Row],[2025/26 From - Spending review Topic 4]]+Dataset[[#This Row],[2025/26 From - Other reallocations]]","v":0},{"$f":"Dataset[[#This Row],[2023/24 To - Spending review Topic 1]]+Dataset[[#This Row],[2023/24 To - Spending review Topic 2]]+Dataset[[#This Row],[2023/24 To - Spending review Topic 3]]+Dataset[[#This Row],[2023/24 To - Spending review Topic 4]]+Dataset[[#This Row],[2023/24 To - Other reallocations]]","v":0},{"$f":"Dataset[[#This Row],[2024/25 To - Spending review Topic 1]]+Dataset[[#This Row],[2024/25 To - Spending review Topic 2]]+Dataset[[#This Row],[2024/25 To - Spending review Topic 3]]+Dataset[[#This Row],[2024/25 To - Spending review Topic 4]]+Dataset[[#This Row],[2024/25 To - Other reallocations]]","v":0},{"$f":"Dataset[[#This Row],[2025/26 To - Spending review Topic 1]]+Dataset[[#This Row],[2025/26 To - Spending review Topic 2]]+Dataset[[#This Row],[2025/26 To - Spending review Topic 3]]+Dataset[[#This Row],[2025/26 To - Spending review Topic 4]]+Dataset[[#This Row],[2025/26 To - Other reallocations]]","v":0},{"$f":"Dataset[[#This Row],[2023/24 Baseline]]+Dataset[[#This Row],[2023/24 From - Total]]+Dataset[[#This Row],[2023/24 To - Total]]","v":0},{"$f":"Dataset[[#This Row],[2024/25 Baseline]]+Dataset[[#This Row],[2024/25 From - Total]]+Dataset[[#This Row],[2024/25 To - Total]]","v":0},{"$f":"Dataset[[#This Row],[2025/26 Baseline]]+Dataset[[#This Row],[2025/26 From - Total]]+Dataset[[#This Row],[2025/26 To - Total]]","v":0}]
["NAT|Non-transfer item","2|Subsidies on products and production (pc)","2023_24","MTEF2023",2,1,2,757,140,"02","01","02","000757","000140","02|01|02",2,2,8,49,51,"02|02|08|49|51","National","Parliament","Administration","Office of the Secretary","Non-transfer item","Capital","Transfers and subsidies","Public corporations and private enterprises","Public corporations","Subsidies on products and production (pc)","General public services","Executive and legislative organs","NAT",0,0,0,0,0,0,0,0,0,0,0,null,null,null,null,null,null,null,null,null,null,null,null,null,null,null,null,null,null,null,null,null,null,null,null,null,null,null,null,null,null,{"$f":"Dataset[[#This Row],[2023/24 From - Spending review Topic 1]]+Dataset[[#This Row],[2023/24 From - Spending review Topic 2]]+Dataset[[#This Row],[2023/24 From - Spending review Topic 3]]+Dataset[[#This Row],[2023/24 From - Spending review Topic 4]]+Dataset[[#This Row],[2023/24 From - Other reallocations]]","v":0},{"$f":"Dataset[[#This Row],[2024/25 From - Spending review Topic 1]]+Dataset[[#This Row],[2024/25 From - Spending review Topic 2]]+Dataset[[#This Row],[2024/25 From - Spending review Topic 3]]+Dataset[[#This Row],[2024/25 From - Spending review Topic 4]]+Dataset[[#This Row],[2024/25 From - Other reallocations]]","v":0},{"$f":"Dataset[[#This Row],[2025/26 From - Spending review Topic 1]]+Dataset[[#This Row],[2025/26 From - Spending review Topic 2]]+Dataset[[#This Row],[2025/26 From - Spending review Topic 3]]+Dataset[[#This Row],[2025/26 From - Spending review Topic 4]]+Dataset[[#This Row],[2025/26 From - Other reallocations]]","v":0},{"$f":"Dataset[[#This Row],[2023/24 To - Spending review Topic 1]]+Dataset[[#This Row],[2023/24 To - Spending review Topic 2]]+Dataset[[#This Row],[2023/24 To - Spending review Topic 3]]+Dataset[[#This Row],[2023/24 To - Spending review Topic 4]]+Dataset[[#This Row],[2023/24 To - Other reallocations]]","v":0},{"$f":"Dataset[[#This Row],[2024/25 To - Spending review Topic 1]]+Dataset[[#This Row],[2024/25 To - Spending review Topic 2]]+Dataset[[#This Row],[2024/25 To - Spending review Topic 3]]+Dataset[[#This Row],[2024/25 To - Spending review Topic 4]]+Dataset[[#This Row],[2024/25 To - Other reallocations]]","v":0},{"$f":"Dataset[[#This Row],[2025/26 To - Spending review Topic 1]]+Dataset[[#This Row],[2025/26 To - Spending review Topic 2]]+Dataset[[#This Row],[2025/26 To - Spending review Topic 3]]+Dataset[[#This Row],[2025/26 To - Spending review Topic 4]]+Dataset[[#This Row],[2025/26 To - Other reallocations]]","v":0},{"$f":"Dataset[[#This Row],[2023/24 Baseline]]+Dataset[[#This Row],[2023/24 From - Total]]+Dataset[[#This Row],[2023/24 To - Total]]","v":0},{"$f":"Dataset[[#This Row],[2024/25 Baseline]]+Dataset[[#This Row],[2024/25 From - Total]]+Dataset[[#This Row],[2024/25 To - Total]]","v":0},{"$f":"Dataset[[#This Row],[2025/26 Baseline]]+Dataset[[#This Row],[2025/26 From - Total]]+Dataset[[#This Row],[2025/26 To - Total]]","v":0}]
["NAT|Non-transfer item","2|Other transfers to public corporations","2023_24","MTEF2023",2,1,2,758,141,"02","01","02","000758","000141","02|01|02",2,2,8,49,52,"02|02|08|49|52","National","Parliament","Administration","Office of the Secretary","Non-transfer item","Capital","Transfers and subsidies","Public corporations and private enterprises","Public corporations","Other transfers to public corporations","General public services","Executive and legislative organs","NAT",0,0,0,0,0,0,0,0,0,0,0,null,null,null,null,null,null,null,null,null,null,null,null,null,null,null,null,null,null,null,null,null,null,null,null,null,null,null,null,null,null,{"$f":"Dataset[[#This Row],[2023/24 From - Spending review Topic 1]]+Dataset[[#This Row],[2023/24 From - Spending review Topic 2]]+Dataset[[#This Row],[2023/24 From - Spending review Topic 3]]+Dataset[[#This Row],[2023/24 From - Spending review Topic 4]]+Dataset[[#This Row],[2023/24 From - Other reallocations]]","v":0},{"$f":"Dataset[[#This Row],[2024/25 From - Spending review Topic 1]]+Dataset[[#This Row],[2024/25 From - Spending review Topic 2]]+Dataset[[#This Row],[2024/25 From - Spending review Topic 3]]+Dataset[[#This Row],[2024/25 From - Spending review Topic 4]]+Dataset[[#This Row],[2024/25 From - Other reallocations]]","v":0},{"$f":"Dataset[[#This Row],[2025/26 From - Spending review Topic 1]]+Dataset[[#This Row],[2025/26 From - Spending review Topic 2]]+Dataset[[#This Row],[2025/26 From - Spending review Topic 3]]+Dataset[[#This Row],[2025/26 From - Spending review Topic 4]]+Dataset[[#This Row],[2025/26 From - Other reallocations]]","v":0},{"$f":"Dataset[[#This Row],[2023/24 To - Spending review Topic 1]]+Dataset[[#This Row],[2023/24 To - Spending review Topic 2]]+Dataset[[#This Row],[2023/24 To - Spending review Topic 3]]+Dataset[[#This Row],[2023/24 To - Spending review Topic 4]]+Dataset[[#This Row],[2023/24 To - Other reallocations]]","v":0},{"$f":"Dataset[[#This Row],[2024/25 To - Spending review Topic 1]]+Dataset[[#This Row],[2024/25 To - Spending review Topic 2]]+Dataset[[#This Row],[2024/25 To - Spending review Topic 3]]+Dataset[[#This Row],[2024/25 To - Spending review Topic 4]]+Dataset[[#This Row],[2024/25 To - Other reallocations]]","v":0},{"$f":"Dataset[[#This Row],[2025/26 To - Spending review Topic 1]]+Dataset[[#This Row],[2025/26 To - Spending review Topic 2]]+Dataset[[#This Row],[2025/26 To - Spending review Topic 3]]+Dataset[[#This Row],[2025/26 To - Spending review Topic 4]]+Dataset[[#This Row],[2025/26 To - Other reallocations]]","v":0},{"$f":"Dataset[[#This Row],[2023/24 Baseline]]+Dataset[[#This Row],[2023/24 From - Total]]+Dataset[[#This Row],[2023/24 To - Total]]","v":0},{"$f":"Dataset[[#This Row],[2024/25 Baseline]]+Dataset[[#This Row],[2024/25 From - Total]]+Dataset[[#This Row],[2024/25 To - Total]]","v":0},{"$f":"Dataset[[#This Row],[2025/26 Baseline]]+Dataset[[#This Row],[2025/26 From - Total]]+Dataset[[#This Row],[2025/26 To - Total]]","v":0}]
["NAT|Non-transfer item","2|Other transfers to private enterprises","2023_24","MTEF2023",2,1,2,759,142,"02","01","02","000759","000142","02|01|02",2,2,8,50,54,"02|02|08|50|54","National","Parliament","Administration","Office of the Secretary","Non-transfer item","Capital","Transfers and subsidies","Public corporations and private enterprises","Private enterprises","Other transfers to private enterprises","General public services","Executive and legislative organs","NAT",0,0,0,0,0,0,0,0,0,0,0,null,null,null,null,null,null,null,null,null,null,null,null,null,null,null,null,null,null,null,null,null,null,null,null,null,null,null,null,null,null,{"$f":"Dataset[[#This Row],[2023/24 From - Spending review Topic 1]]+Dataset[[#This Row],[2023/24 From - Spending review Topic 2]]+Dataset[[#This Row],[2023/24 From - Spending review Topic 3]]+Dataset[[#This Row],[2023/24 From - Spending review Topic 4]]+Dataset[[#This Row],[2023/24 From - Other reallocations]]","v":0},{"$f":"Dataset[[#This Row],[2024/25 From - Spending review Topic 1]]+Dataset[[#This Row],[2024/25 From - Spending review Topic 2]]+Dataset[[#This Row],[2024/25 From - Spending review Topic 3]]+Dataset[[#This Row],[2024/25 From - Spending review Topic 4]]+Dataset[[#This Row],[2024/25 From - Other reallocations]]","v":0},{"$f":"Dataset[[#This Row],[2025/26 From - Spending review Topic 1]]+Dataset[[#This Row],[2025/26 From - Spending review Topic 2]]+Dataset[[#This Row],[2025/26 From - Spending review Topic 3]]+Dataset[[#This Row],[2025/26 From - Spending review Topic 4]]+Dataset[[#This Row],[2025/26 From - Other reallocations]]","v":0},{"$f":"Dataset[[#This Row],[2023/24 To - Spending review Topic 1]]+Dataset[[#This Row],[2023/24 To - Spending review Topic 2]]+Dataset[[#This Row],[2023/24 To - Spending review Topic 3]]+Dataset[[#This Row],[2023/24 To - Spending review Topic 4]]+Dataset[[#This Row],[2023/24 To - Other reallocations]]","v":0},{"$f":"Dataset[[#This Row],[2024/25 To - Spending review Topic 1]]+Dataset[[#This Row],[2024/25 To - Spending review Topic 2]]+Dataset[[#This Row],[2024/25 To - Spending review Topic 3]]+Dataset[[#This Row],[2024/25 To - Spending review Topic 4]]+Dataset[[#This Row],[2024/25 To - Other reallocations]]","v":0},{"$f":"Dataset[[#This Row],[2025/26 To - Spending review Topic 1]]+Dataset[[#This Row],[2025/26 To - Spending review Topic 2]]+Dataset[[#This Row],[2025/26 To - Spending review Topic 3]]+Dataset[[#This Row],[2025/26 To - Spending review Topic 4]]+Dataset[[#This Row],[2025/26 To - Other reallocations]]","v":0},{"$f":"Dataset[[#This Row],[2023/24 Baseline]]+Dataset[[#This Row],[2023/24 From - Total]]+Dataset[[#This Row],[2023/24 To - Total]]","v":0},{"$f":"Dataset[[#This Row],[2024/25 Baseline]]+Dataset[[#This Row],[2024/25 From - Total]]+Dataset[[#This Row],[2024/25 To - Total]]","v":0},{"$f":"Dataset[[#This Row],[2025/26 Baseline]]+Dataset[[#This Row],[2025/26 From - Total]]+Dataset[[#This Row],[2025/26 To - Total]]","v":0}]
["NAT|Non-transfer item","2|Non-profit institutions","2023_24","MTEF2023",2,1,2,760,143,"02","01","02","000760","000143","02|01|02",2,2,9,51,55,"02|02|09|51|55","National","Parliament","Administration","Office of the Secretary","Non-transfer item","Capital","Transfers and subsidies","Non-profit institutions","Non-profit institutions","Non-profit institutions","General public services","Executive and legislative organs","NAT",0,0,0,0,0,0,0,0,0,0,0,null,null,null,null,null,null,null,null,null,null,null,null,null,null,null,null,null,null,null,null,null,null,null,null,null,null,null,null,null,null,{"$f":"Dataset[[#This Row],[2023/24 From - Spending review Topic 1]]+Dataset[[#This Row],[2023/24 From - Spending review Topic 2]]+Dataset[[#This Row],[2023/24 From - Spending review Topic 3]]+Dataset[[#This Row],[2023/24 From - Spending review Topic 4]]+Dataset[[#This Row],[2023/24 From - Other reallocations]]","v":0},{"$f":"Dataset[[#This Row],[2024/25 From - Spending review Topic 1]]+Dataset[[#This Row],[2024/25 From - Spending review Topic 2]]+Dataset[[#This Row],[2024/25 From - Spending review Topic 3]]+Dataset[[#This Row],[2024/25 From - Spending review Topic 4]]+Dataset[[#This Row],[2024/25 From - Other reallocations]]","v":0},{"$f":"Dataset[[#This Row],[2025/26 From - Spending review Topic 1]]+Dataset[[#This Row],[2025/26 From - Spending review Topic 2]]+Dataset[[#This Row],[2025/26 From - Spending review Topic 3]]+Dataset[[#This Row],[2025/26 From - Spending review Topic 4]]+Dataset[[#This Row],[2025/26 From - Other reallocations]]","v":0},{"$f":"Dataset[[#This Row],[2023/24 To - Spending review Topic 1]]+Dataset[[#This Row],[2023/24 To - Spending review Topic 2]]+Dataset[[#This Row],[2023/24 To - Spending review Topic 3]]+Dataset[[#This Row],[2023/24 To - Spending review Topic 4]]+Dataset[[#This Row],[2023/24 To - Other reallocations]]","v":0},{"$f":"Dataset[[#This Row],[2024/25 To - Spending review Topic 1]]+Dataset[[#This Row],[2024/25 To - Spending review Topic 2]]+Dataset[[#This Row],[2024/25 To - Spending review Topic 3]]+Dataset[[#This Row],[2024/25 To - Spending review Topic 4]]+Dataset[[#This Row],[2024/25 To - Other reallocations]]","v":0},{"$f":"Dataset[[#This Row],[2025/26 To - Spending review Topic 1]]+Dataset[[#This Row],[2025/26 To - Spending review Topic 2]]+Dataset[[#This Row],[2025/26 To - Spending review Topic 3]]+Dataset[[#This Row],[2025/26 To - Spending review Topic 4]]+Dataset[[#This Row],[2025/26 To - Other reallocations]]","v":0},{"$f":"Dataset[[#This Row],[2023/24 Baseline]]+Dataset[[#This Row],[2023/24 From - Total]]+Dataset[[#This Row],[2023/24 To - Total]]","v":0},{"$f":"Dataset[[#This Row],[2024/25 Baseline]]+Dataset[[#This Row],[2024/25 From - Total]]+Dataset[[#This Row],[2024/25 To - Total]]","v":0},{"$f":"Dataset[[#This Row],[2025/26 Baseline]]+Dataset[[#This Row],[2025/26 From - Total]]+Dataset[[#This Row],[2025/26 To - Total]]","v":0}]
["NAT|Non-transfer item","2|Other transfers to households","2023_24","MTEF2023",2,1,2,761,144,"02","01","02","000761","000144","02|01|02",2,2,10,53,57,"02|02|10|53|57","National","Parliament","Administration","Office of the Secretary","Non-transfer item","Capital","Transfers and subsidies","Households","Other transfers to households","Other transfers to households","General public services","Executive and legislative organs","NAT",0,0,0,0,0,0,0,0,0,0,0,null,null,null,null,null,null,null,null,null,null,null,null,null,null,null,null,null,null,null,null,null,null,null,null,null,null,null,null,null,null,{"$f":"Dataset[[#This Row],[2023/24 From - Spending review Topic 1]]+Dataset[[#This Row],[2023/24 From - Spending review Topic 2]]+Dataset[[#This Row],[2023/24 From - Spending review Topic 3]]+Dataset[[#This Row],[2023/24 From - Spending review Topic 4]]+Dataset[[#This Row],[2023/24 From - Other reallocations]]","v":0},{"$f":"Dataset[[#This Row],[2024/25 From - Spending review Topic 1]]+Dataset[[#This Row],[2024/25 From - Spending review Topic 2]]+Dataset[[#This Row],[2024/25 From - Spending review Topic 3]]+Dataset[[#This Row],[2024/25 From - Spending review Topic 4]]+Dataset[[#This Row],[2024/25 From - Other reallocations]]","v":0},{"$f":"Dataset[[#This Row],[2025/26 From - Spending review Topic 1]]+Dataset[[#This Row],[2025/26 From - Spending review Topic 2]]+Dataset[[#This Row],[2025/26 From - Spending review Topic 3]]+Dataset[[#This Row],[2025/26 From - Spending review Topic 4]]+Dataset[[#This Row],[2025/26 From - Other reallocations]]","v":0},{"$f":"Dataset[[#This Row],[2023/24 To - Spending review Topic 1]]+Dataset[[#This Row],[2023/24 To - Spending review Topic 2]]+Dataset[[#This Row],[2023/24 To - Spending review Topic 3]]+Dataset[[#This Row],[2023/24 To - Spending review Topic 4]]+Dataset[[#This Row],[2023/24 To - Other reallocations]]","v":0},{"$f":"Dataset[[#This Row],[2024/25 To - Spending review Topic 1]]+Dataset[[#This Row],[2024/25 To - Spending review Topic 2]]+Dataset[[#This Row],[2024/25 To - Spending review Topic 3]]+Dataset[[#This Row],[2024/25 To - Spending review Topic 4]]+Dataset[[#This Row],[2024/25 To - Other reallocations]]","v":0},{"$f":"Dataset[[#This Row],[2025/26 To - Spending review Topic 1]]+Dataset[[#This Row],[2025/26 To - Spending review Topic 2]]+Dataset[[#This Row],[2025/26 To - Spending review Topic 3]]+Dataset[[#This Row],[2025/26 To - Spending review Topic 4]]+Dataset[[#This Row],[2025/26 To - Other reallocations]]","v":0},{"$f":"Dataset[[#This Row],[2023/24 Baseline]]+Dataset[[#This Row],[2023/24 From - Total]]+Dataset[[#This Row],[2023/24 To - Total]]","v":0},{"$f":"Dataset[[#This Row],[2024/25 Baseline]]+Dataset[[#This Row],[2024/25 From - Total]]+Dataset[[#This Row],[2024/25 To - Total]]","v":0},{"$f":"Dataset[[#This Row],[2025/26 Baseline]]+Dataset[[#This Row],[2025/26 From - Total]]+Dataset[[#This Row],[2025/26 To - Total]]","v":0}]
["NAT|Non-transfer item","2|Buildings","2023_24","MTEF2023",2,1,2,762,145,"02","01","02","000762","000145","02|01|02",2,3,11,54,58,"02|03|11|54|58","National","Parliament","Administration","Office of the Secretary","Non-transfer item","Capital","Payments for capital assets","Buildings and other fixed structures","Buildings","Buildings","General public services","Executive and legislative organs","NAT",0,0,0,0,0,0,0,0,0,0,0,null,null,null,null,null,null,null,null,null,null,null,null,null,null,null,null,null,null,null,null,null,null,null,null,null,null,null,null,null,null,{"$f":"Dataset[[#This Row],[2023/24 From - Spending review Topic 1]]+Dataset[[#This Row],[2023/24 From - Spending review Topic 2]]+Dataset[[#This Row],[2023/24 From - Spending review Topic 3]]+Dataset[[#This Row],[2023/24 From - Spending review Topic 4]]+Dataset[[#This Row],[2023/24 From - Other reallocations]]","v":0},{"$f":"Dataset[[#This Row],[2024/25 From - Spending review Topic 1]]+Dataset[[#This Row],[2024/25 From - Spending review Topic 2]]+Dataset[[#This Row],[2024/25 From - Spending review Topic 3]]+Dataset[[#This Row],[2024/25 From - Spending review Topic 4]]+Dataset[[#This Row],[2024/25 From - Other reallocations]]","v":0},{"$f":"Dataset[[#This Row],[2025/26 From - Spending review Topic 1]]+Dataset[[#This Row],[2025/26 From - Spending review Topic 2]]+Dataset[[#This Row],[2025/26 From - Spending review Topic 3]]+Dataset[[#This Row],[2025/26 From - Spending review Topic 4]]+Dataset[[#This Row],[2025/26 From - Other reallocations]]","v":0},{"$f":"Dataset[[#This Row],[2023/24 To - Spending review Topic 1]]+Dataset[[#This Row],[2023/24 To - Spending review Topic 2]]+Dataset[[#This Row],[2023/24 To - Spending review Topic 3]]+Dataset[[#This Row],[2023/24 To - Spending review Topic 4]]+Dataset[[#This Row],[2023/24 To - Other reallocations]]","v":0},{"$f":"Dataset[[#This Row],[2024/25 To - Spending review Topic 1]]+Dataset[[#This Row],[2024/25 To - Spending review Topic 2]]+Dataset[[#This Row],[2024/25 To - Spending review Topic 3]]+Dataset[[#This Row],[2024/25 To - Spending review Topic 4]]+Dataset[[#This Row],[2024/25 To - Other reallocations]]","v":0},{"$f":"Dataset[[#This Row],[2025/26 To - Spending review Topic 1]]+Dataset[[#This Row],[2025/26 To - Spending review Topic 2]]+Dataset[[#This Row],[2025/26 To - Spending review Topic 3]]+Dataset[[#This Row],[2025/26 To - Spending review Topic 4]]+Dataset[[#This Row],[2025/26 To - Other reallocations]]","v":0},{"$f":"Dataset[[#This Row],[2023/24 Baseline]]+Dataset[[#This Row],[2023/24 From - Total]]+Dataset[[#This Row],[2023/24 To - Total]]","v":0},{"$f":"Dataset[[#This Row],[2024/25 Baseline]]+Dataset[[#This Row],[2024/25 From - Total]]+Dataset[[#This Row],[2024/25 To - Total]]","v":0},{"$f":"Dataset[[#This Row],[2025/26 Baseline]]+Dataset[[#This Row],[2025/26 From - Total]]+Dataset[[#This Row],[2025/26 To - Total]]","v":0}]
["NAT|Non-transfer item","2|Other fixed structures","2023_24","MTEF2023",2,1,2,763,146,"02","01","02","000763","000146","02|01|02",2,3,11,55,59,"02|03|11|55|59","National","Parliament","Administration","Office of the Secretary","Non-transfer item","Capital","Payments for capital assets","Buildings and other fixed structures","Other fixed structures","Other fixed structures","General public services","Executive and legislative organs","NAT",0,0,0,0,0,0,0,0,0,0,0,null,null,null,null,null,null,null,null,null,null,null,null,null,null,null,null,null,null,null,null,null,null,null,null,null,null,null,null,null,null,{"$f":"Dataset[[#This Row],[2023/24 From - Spending review Topic 1]]+Dataset[[#This Row],[2023/24 From - Spending review Topic 2]]+Dataset[[#This Row],[2023/24 From - Spending review Topic 3]]+Dataset[[#This Row],[2023/24 From - Spending review Topic 4]]+Dataset[[#This Row],[2023/24 From - Other reallocations]]","v":0},{"$f":"Dataset[[#This Row],[2024/25 From - Spending review Topic 1]]+Dataset[[#This Row],[2024/25 From - Spending review Topic 2]]+Dataset[[#This Row],[2024/25 From - Spending review Topic 3]]+Dataset[[#This Row],[2024/25 From - Spending review Topic 4]]+Dataset[[#This Row],[2024/25 From - Other reallocations]]","v":0},{"$f":"Dataset[[#This Row],[2025/26 From - Spending review Topic 1]]+Dataset[[#This Row],[2025/26 From - Spending review Topic 2]]+Dataset[[#This Row],[2025/26 From - Spending review Topic 3]]+Dataset[[#This Row],[2025/26 From - Spending review Topic 4]]+Dataset[[#This Row],[2025/26 From - Other reallocations]]","v":0},{"$f":"Dataset[[#This Row],[2023/24 To - Spending review Topic 1]]+Dataset[[#This Row],[2023/24 To - Spending review Topic 2]]+Dataset[[#This Row],[2023/24 To - Spending review Topic 3]]+Dataset[[#This Row],[2023/24 To - Spending review Topic 4]]+Dataset[[#This Row],[2023/24 To - Other reallocations]]","v":0},{"$f":"Dataset[[#This Row],[2024/25 To - Spending review Topic 1]]+Dataset[[#This Row],[2024/25 To - Spending review Topic 2]]+Dataset[[#This Row],[2024/25 To - Spending review Topic 3]]+Dataset[[#This Row],[2024/25 To - Spending review Topic 4]]+Dataset[[#This Row],[2024/25 To - Other reallocations]]","v":0},{"$f":"Dataset[[#This Row],[2025/26 To - Spending review Topic 1]]+Dataset[[#This Row],[2025/26 To - Spending review Topic 2]]+Dataset[[#This Row],[2025/26 To - Spending review Topic 3]]+Dataset[[#This Row],[2025/26 To - Spending review Topic 4]]+Dataset[[#This Row],[2025/26 To - Other reallocations]]","v":0},{"$f":"Dataset[[#This Row],[2023/24 Baseline]]+Dataset[[#This Row],[2023/24 From - Total]]+Dataset[[#This Row],[2023/24 To - Total]]","v":0},{"$f":"Dataset[[#This Row],[2024/25 Baseline]]+Dataset[[#This Row],[2024/25 From - Total]]+Dataset[[#This Row],[2024/25 To - Total]]","v":0},{"$f":"Dataset[[#This Row],[2025/26 Baseline]]+Dataset[[#This Row],[2025/26 From - Total]]+Dataset[[#This Row],[2025/26 To - Total]]","v":0}]
["NAT|Non-transfer item","2|Transport equipment","2023_24","MTEF2023",2,1,2,764,147,"02","01","02","000764","000147","02|01|02",2,3,12,56,60,"02|03|12|56|60","National","Parliament","Administration","Office of the Secretary","Non-transfer item","Capital","Payments for capital assets","Machinery and equipment","Transport equipment","Transport equipment","General public services","Executive and legislative organs","NAT",0,0,0,0,0,0,0,0,0,0,0,null,null,null,null,null,null,null,null,null,null,null,null,null,null,null,null,null,null,null,null,null,null,null,null,null,null,null,null,null,null,{"$f":"Dataset[[#This Row],[2023/24 From - Spending review Topic 1]]+Dataset[[#This Row],[2023/24 From - Spending review Topic 2]]+Dataset[[#This Row],[2023/24 From - Spending review Topic 3]]+Dataset[[#This Row],[2023/24 From - Spending review Topic 4]]+Dataset[[#This Row],[2023/24 From - Other reallocations]]","v":0},{"$f":"Dataset[[#This Row],[2024/25 From - Spending review Topic 1]]+Dataset[[#This Row],[2024/25 From - Spending review Topic 2]]+Dataset[[#This Row],[2024/25 From - Spending review Topic 3]]+Dataset[[#This Row],[2024/25 From - Spending review Topic 4]]+Dataset[[#This Row],[2024/25 From - Other reallocations]]","v":0},{"$f":"Dataset[[#This Row],[2025/26 From - Spending review Topic 1]]+Dataset[[#This Row],[2025/26 From - Spending review Topic 2]]+Dataset[[#This Row],[2025/26 From - Spending review Topic 3]]+Dataset[[#This Row],[2025/26 From - Spending review Topic 4]]+Dataset[[#This Row],[2025/26 From - Other reallocations]]","v":0},{"$f":"Dataset[[#This Row],[2023/24 To - Spending review Topic 1]]+Dataset[[#This Row],[2023/24 To - Spending review Topic 2]]+Dataset[[#This Row],[2023/24 To - Spending review Topic 3]]+Dataset[[#This Row],[2023/24 To - Spending review Topic 4]]+Dataset[[#This Row],[2023/24 To - Other reallocations]]","v":0},{"$f":"Dataset[[#This Row],[2024/25 To - Spending review Topic 1]]+Dataset[[#This Row],[2024/25 To - Spending review Topic 2]]+Dataset[[#This Row],[2024/25 To - Spending review Topic 3]]+Dataset[[#This Row],[2024/25 To - Spending review Topic 4]]+Dataset[[#This Row],[2024/25 To - Other reallocations]]","v":0},{"$f":"Dataset[[#This Row],[2025/26 To - Spending review Topic 1]]+Dataset[[#This Row],[2025/26 To - Spending review Topic 2]]+Dataset[[#This Row],[2025/26 To - Spending review Topic 3]]+Dataset[[#This Row],[2025/26 To - Spending review Topic 4]]+Dataset[[#This Row],[2025/26 To - Other reallocations]]","v":0},{"$f":"Dataset[[#This Row],[2023/24 Baseline]]+Dataset[[#This Row],[2023/24 From - Total]]+Dataset[[#This Row],[2023/24 To - Total]]","v":0},{"$f":"Dataset[[#This Row],[2024/25 Baseline]]+Dataset[[#This Row],[2024/25 From - Total]]+Dataset[[#This Row],[2024/25 To - Total]]","v":0},{"$f":"Dataset[[#This Row],[2025/26 Baseline]]+Dataset[[#This Row],[2025/26 From - Total]]+Dataset[[#This Row],[2025/26 To - Total]]","v":0}]
["NAT|Non-transfer item","2|Other machinery and equipment","2023_24","MTEF2023",2,1,2,765,148,"02","01","02","000765","000148","02|01|02",2,3,12,57,61,"02|03|12|57|61","National","Parliament","Administration","Office of the Secretary","Non-transfer item","Capital","Payments for capital assets","Machinery and equipment","Other machinery and equipment","Other machinery and equipment","General public services","Executive and legislative organs","NAT",481,200,212,224,224,224,0,237,237,248,259,null,null,null,null,null,null,null,null,null,null,null,null,null,null,null,null,null,null,null,null,null,null,null,null,null,null,null,null,null,null,{"$f":"Dataset[[#This Row],[2023/24 From - Spending review Topic 1]]+Dataset[[#This Row],[2023/24 From - Spending review Topic 2]]+Dataset[[#This Row],[2023/24 From - Spending review Topic 3]]+Dataset[[#This Row],[2023/24 From - Spending review Topic 4]]+Dataset[[#This Row],[2023/24 From - Other reallocations]]","v":0},{"$f":"Dataset[[#This Row],[2024/25 From - Spending review Topic 1]]+Dataset[[#This Row],[2024/25 From - Spending review Topic 2]]+Dataset[[#This Row],[2024/25 From - Spending review Topic 3]]+Dataset[[#This Row],[2024/25 From - Spending review Topic 4]]+Dataset[[#This Row],[2024/25 From - Other reallocations]]","v":0},{"$f":"Dataset[[#This Row],[2025/26 From - Spending review Topic 1]]+Dataset[[#This Row],[2025/26 From - Spending review Topic 2]]+Dataset[[#This Row],[2025/26 From - Spending review Topic 3]]+Dataset[[#This Row],[2025/26 From - Spending review Topic 4]]+Dataset[[#This Row],[2025/26 From - Other reallocations]]","v":0},{"$f":"Dataset[[#This Row],[2023/24 To - Spending review Topic 1]]+Dataset[[#This Row],[2023/24 To - Spending review Topic 2]]+Dataset[[#This Row],[2023/24 To - Spending review Topic 3]]+Dataset[[#This Row],[2023/24 To - Spending review Topic 4]]+Dataset[[#This Row],[2023/24 To - Other reallocations]]","v":0},{"$f":"Dataset[[#This Row],[2024/25 To - Spending review Topic 1]]+Dataset[[#This Row],[2024/25 To - Spending review Topic 2]]+Dataset[[#This Row],[2024/25 To - Spending review Topic 3]]+Dataset[[#This Row],[2024/25 To - Spending review Topic 4]]+Dataset[[#This Row],[2024/25 To - Other reallocations]]","v":0},{"$f":"Dataset[[#This Row],[2025/26 To - Spending review Topic 1]]+Dataset[[#This Row],[2025/26 To - Spending review Topic 2]]+Dataset[[#This Row],[2025/26 To - Spending review Topic 3]]+Dataset[[#This Row],[2025/26 To - Spending review Topic 4]]+Dataset[[#This Row],[2025/26 To - Other reallocations]]","v":0},{"$f":"Dataset[[#This Row],[2023/24 Baseline]]+Dataset[[#This Row],[2023/24 From - Total]]+Dataset[[#This Row],[2023/24 To - Total]]","v":237},{"$f":"Dataset[[#This Row],[2024/25 Baseline]]+Dataset[[#This Row],[2024/25 From - Total]]+Dataset[[#This Row],[2024/25 To - Total]]","v":248},{"$f":"Dataset[[#This Row],[2025/26 Baseline]]+Dataset[[#This Row],[2025/26 From - Total]]+Dataset[[#This Row],[2025/26 To - Total]]","v":259}]
["NAT|Non-transfer item","2|Heritage assets","2023_24","MTEF2023",2,1,2,766,149,"02","01","02","000766","000149","02|01|02",2,3,13,58,62,"02|03|13|58|62","National","Parliament","Administration","Office of the Secretary","Non-transfer item","Capital","Payments for capital assets","Heritage assets","Heritage assets","Heritage assets","General public services","Executive and legislative organs","NAT",0,0,0,0,0,0,0,0,0,0,0,null,null,null,null,null,null,null,null,null,null,null,null,null,null,null,null,null,null,null,null,null,null,null,null,null,null,null,null,null,null,{"$f":"Dataset[[#This Row],[2023/24 From - Spending review Topic 1]]+Dataset[[#This Row],[2023/24 From - Spending review Topic 2]]+Dataset[[#This Row],[2023/24 From - Spending review Topic 3]]+Dataset[[#This Row],[2023/24 From - Spending review Topic 4]]+Dataset[[#This Row],[2023/24 From - Other reallocations]]","v":0},{"$f":"Dataset[[#This Row],[2024/25 From - Spending review Topic 1]]+Dataset[[#This Row],[2024/25 From - Spending review Topic 2]]+Dataset[[#This Row],[2024/25 From - Spending review Topic 3]]+Dataset[[#This Row],[2024/25 From - Spending review Topic 4]]+Dataset[[#This Row],[2024/25 From - Other reallocations]]","v":0},{"$f":"Dataset[[#This Row],[2025/26 From - Spending review Topic 1]]+Dataset[[#This Row],[2025/26 From - Spending review Topic 2]]+Dataset[[#This Row],[2025/26 From - Spending review Topic 3]]+Dataset[[#This Row],[2025/26 From - Spending review Topic 4]]+Dataset[[#This Row],[2025/26 From - Other reallocations]]","v":0},{"$f":"Dataset[[#This Row],[2023/24 To - Spending review Topic 1]]+Dataset[[#This Row],[2023/24 To - Spending review Topic 2]]+Dataset[[#This Row],[2023/24 To - Spending review Topic 3]]+Dataset[[#This Row],[2023/24 To - Spending review Topic 4]]+Dataset[[#This Row],[2023/24 To - Other reallocations]]","v":0},{"$f":"Dataset[[#This Row],[2024/25 To - Spending review Topic 1]]+Dataset[[#This Row],[2024/25 To - Spending review Topic 2]]+Dataset[[#This Row],[2024/25 To - Spending review Topic 3]]+Dataset[[#This Row],[2024/25 To - Spending review Topic 4]]+Dataset[[#This Row],[2024/25 To - Other reallocations]]","v":0},{"$f":"Dataset[[#This Row],[2025/26 To - Spending review Topic 1]]+Dataset[[#This Row],[2025/26 To - Spending review Topic 2]]+Dataset[[#This Row],[2025/26 To - Spending review Topic 3]]+Dataset[[#This Row],[2025/26 To - Spending review Topic 4]]+Dataset[[#This Row],[2025/26 To - Other reallocations]]","v":0},{"$f":"Dataset[[#This Row],[2023/24 Baseline]]+Dataset[[#This Row],[2023/24 From - Total]]+Dataset[[#This Row],[2023/24 To - Total]]","v":0},{"$f":"Dataset[[#This Row],[2024/25 Baseline]]+Dataset[[#This Row],[2024/25 From - Total]]+Dataset[[#This Row],[2024/25 To - Total]]","v":0},{"$f":"Dataset[[#This Row],[2025/26 Baseline]]+Dataset[[#This Row],[2025/26 From - Total]]+Dataset[[#This Row],[2025/26 To - Total]]","v":0}]
["NAT|Non-transfer item","2|Specialised military assets","2023_24","MTEF2023",2,1,2,767,150,"02","01","02","000767","000150","02|01|02",2,3,14,59,63,"02|03|14|59|63","National","Parliament","Administration","Office of the Secretary","Non-transfer item","Capital","Payments for capital assets","Specialised military assets","Specialised military assets","Specialised military assets","General public services","Executive and legislative organs","NAT",0,0,0,0,0,0,0,0,0,0,0,null,null,null,null,null,null,null,null,null,null,null,null,null,null,null,null,null,null,null,null,null,null,null,null,null,null,null,null,null,null,{"$f":"Dataset[[#This Row],[2023/24 From - Spending review Topic 1]]+Dataset[[#This Row],[2023/24 From - Spending review Topic 2]]+Dataset[[#This Row],[2023/24 From - Spending review Topic 3]]+Dataset[[#This Row],[2023/24 From - Spending review Topic 4]]+Dataset[[#This Row],[2023/24 From - Other reallocations]]","v":0},{"$f":"Dataset[[#This Row],[2024/25 From - Spending review Topic 1]]+Dataset[[#This Row],[2024/25 From - Spending review Topic 2]]+Dataset[[#This Row],[2024/25 From - Spending review Topic 3]]+Dataset[[#This Row],[2024/25 From - Spending review Topic 4]]+Dataset[[#This Row],[2024/25 From - Other reallocations]]","v":0},{"$f":"Dataset[[#This Row],[2025/26 From - Spending review Topic 1]]+Dataset[[#This Row],[2025/26 From - Spending review Topic 2]]+Dataset[[#This Row],[2025/26 From - Spending review Topic 3]]+Dataset[[#This Row],[2025/26 From - Spending review Topic 4]]+Dataset[[#This Row],[2025/26 From - Other reallocations]]","v":0},{"$f":"Dataset[[#This Row],[2023/24 To - Spending review Topic 1]]+Dataset[[#This Row],[2023/24 To - Spending review Topic 2]]+Dataset[[#This Row],[2023/24 To - Spending review Topic 3]]+Dataset[[#This Row],[2023/24 To - Spending review Topic 4]]+Dataset[[#This Row],[2023/24 To - Other reallocations]]","v":0},{"$f":"Dataset[[#This Row],[2024/25 To - Spending review Topic 1]]+Dataset[[#This Row],[2024/25 To - Spending review Topic 2]]+Dataset[[#This Row],[2024/25 To - Spending review Topic 3]]+Dataset[[#This Row],[2024/25 To - Spending review Topic 4]]+Dataset[[#This Row],[2024/25 To - Other reallocations]]","v":0},{"$f":"Dataset[[#This Row],[2025/26 To - Spending review Topic 1]]+Dataset[[#This Row],[2025/26 To - Spending review Topic 2]]+Dataset[[#This Row],[2025/26 To - Spending review Topic 3]]+Dataset[[#This Row],[2025/26 To - Spending review Topic 4]]+Dataset[[#This Row],[2025/26 To - Other reallocations]]","v":0},{"$f":"Dataset[[#This Row],[2023/24 Baseline]]+Dataset[[#This Row],[2023/24 From - Total]]+Dataset[[#This Row],[2023/24 To - Total]]","v":0},{"$f":"Dataset[[#This Row],[2024/25 Baseline]]+Dataset[[#This Row],[2024/25 From - Total]]+Dataset[[#This Row],[2024/25 To - Total]]","v":0},{"$f":"Dataset[[#This Row],[2025/26 Baseline]]+Dataset[[#This Row],[2025/26 From - Total]]+Dataset[[#This Row],[2025/26 To - Total]]","v":0}]
["NAT|Non-transfer item","2|Biological assets","2023_24","MTEF2023",2,1,2,768,151,"02","01","02","000768","000151","02|01|02",2,3,15,60,64,"02|03|15|60|64","National","Parliament","Administration","Office of the Secretary","Non-transfer item","Capital","Payments for capital assets","Biological assets","Biological assets","Biological assets","General public services","Executive and legislative organs","NAT",0,0,0,0,0,0,0,0,0,0,0,null,null,null,null,null,null,null,null,null,null,null,null,null,null,null,null,null,null,null,null,null,null,null,null,null,null,null,null,null,null,{"$f":"Dataset[[#This Row],[2023/24 From - Spending review Topic 1]]+Dataset[[#This Row],[2023/24 From - Spending review Topic 2]]+Dataset[[#This Row],[2023/24 From - Spending review Topic 3]]+Dataset[[#This Row],[2023/24 From - Spending review Topic 4]]+Dataset[[#This Row],[2023/24 From - Other reallocations]]","v":0},{"$f":"Dataset[[#This Row],[2024/25 From - Spending review Topic 1]]+Dataset[[#This Row],[2024/25 From - Spending review Topic 2]]+Dataset[[#This Row],[2024/25 From - Spending review Topic 3]]+Dataset[[#This Row],[2024/25 From - Spending review Topic 4]]+Dataset[[#This Row],[2024/25 From - Other reallocations]]","v":0},{"$f":"Dataset[[#This Row],[2025/26 From - Spending review Topic 1]]+Dataset[[#This Row],[2025/26 From - Spending review Topic 2]]+Dataset[[#This Row],[2025/26 From - Spending review Topic 3]]+Dataset[[#This Row],[2025/26 From - Spending review Topic 4]]+Dataset[[#This Row],[2025/26 From - Other reallocations]]","v":0},{"$f":"Dataset[[#This Row],[2023/24 To - Spending review Topic 1]]+Dataset[[#This Row],[2023/24 To - Spending review Topic 2]]+Dataset[[#This Row],[2023/24 To - Spending review Topic 3]]+Dataset[[#This Row],[2023/24 To - Spending review Topic 4]]+Dataset[[#This Row],[2023/24 To - Other reallocations]]","v":0},{"$f":"Dataset[[#This Row],[2024/25 To - Spending review Topic 1]]+Dataset[[#This Row],[2024/25 To - Spending review Topic 2]]+Dataset[[#This Row],[2024/25 To - Spending review Topic 3]]+Dataset[[#This Row],[2024/25 To - Spending review Topic 4]]+Dataset[[#This Row],[2024/25 To - Other reallocations]]","v":0},{"$f":"Dataset[[#This Row],[2025/26 To - Spending review Topic 1]]+Dataset[[#This Row],[2025/26 To - Spending review Topic 2]]+Dataset[[#This Row],[2025/26 To - Spending review Topic 3]]+Dataset[[#This Row],[2025/26 To - Spending review Topic 4]]+Dataset[[#This Row],[2025/26 To - Other reallocations]]","v":0},{"$f":"Dataset[[#This Row],[2023/24 Baseline]]+Dataset[[#This Row],[2023/24 From - Total]]+Dataset[[#This Row],[2023/24 To - Total]]","v":0},{"$f":"Dataset[[#This Row],[2024/25 Baseline]]+Dataset[[#This Row],[2024/25 From - Total]]+Dataset[[#This Row],[2024/25 To - Total]]","v":0},{"$f":"Dataset[[#This Row],[2025/26 Baseline]]+Dataset[[#This Row],[2025/26 From - Total]]+Dataset[[#This Row],[2025/26 To - Total]]","v":0}]
["NAT|Non-transfer item","2|Land and sub-soil assets","2023_24","MTEF2023",2,1,2,769,152,"02","01","02","000769","000152","02|01|02",2,3,16,61,65,"02|03|16|61|65","National","Parliament","Administration","Office of the Secretary","Non-transfer item","Capital","Payments for capital assets","Land and sub-soil assets","Land and sub-soil assets","Land and sub-soil assets","General public services","Executive and legislative organs","NAT",0,0,0,0,0,0,0,0,0,0,0,null,null,null,null,null,null,null,null,null,null,null,null,null,null,null,null,null,null,null,null,null,null,null,null,null,null,null,null,null,null,{"$f":"Dataset[[#This Row],[2023/24 From - Spending review Topic 1]]+Dataset[[#This Row],[2023/24 From - Spending review Topic 2]]+Dataset[[#This Row],[2023/24 From - Spending review Topic 3]]+Dataset[[#This Row],[2023/24 From - Spending review Topic 4]]+Dataset[[#This Row],[2023/24 From - Other reallocations]]","v":0},{"$f":"Dataset[[#This Row],[2024/25 From - Spending review Topic 1]]+Dataset[[#This Row],[2024/25 From - Spending review Topic 2]]+Dataset[[#This Row],[2024/25 From - Spending review Topic 3]]+Dataset[[#This Row],[2024/25 From - Spending review Topic 4]]+Dataset[[#This Row],[2024/25 From - Other reallocations]]","v":0},{"$f":"Dataset[[#This Row],[2025/26 From - Spending review Topic 1]]+Dataset[[#This Row],[2025/26 From - Spending review Topic 2]]+Dataset[[#This Row],[2025/26 From - Spending review Topic 3]]+Dataset[[#This Row],[2025/26 From - Spending review Topic 4]]+Dataset[[#This Row],[2025/26 From - Other reallocations]]","v":0},{"$f":"Dataset[[#This Row],[2023/24 To - Spending review Topic 1]]+Dataset[[#This Row],[2023/24 To - Spending review Topic 2]]+Dataset[[#This Row],[2023/24 To - Spending review Topic 3]]+Dataset[[#This Row],[2023/24 To - Spending review Topic 4]]+Dataset[[#This Row],[2023/24 To - Other reallocations]]","v":0},{"$f":"Dataset[[#This Row],[2024/25 To - Spending review Topic 1]]+Dataset[[#This Row],[2024/25 To - Spending review Topic 2]]+Dataset[[#This Row],[2024/25 To - Spending review Topic 3]]+Dataset[[#This Row],[2024/25 To - Spending review Topic 4]]+Dataset[[#This Row],[2024/25 To - Other reallocations]]","v":0},{"$f":"Dataset[[#This Row],[2025/26 To - Spending review Topic 1]]+Dataset[[#This Row],[2025/26 To - Spending review Topic 2]]+Dataset[[#This Row],[2025/26 To - Spending review Topic 3]]+Dataset[[#This Row],[2025/26 To - Spending review Topic 4]]+Dataset[[#This Row],[2025/26 To - Other reallocations]]","v":0},{"$f":"Dataset[[#This Row],[2023/24 Baseline]]+Dataset[[#This Row],[2023/24 From - Total]]+Dataset[[#This Row],[2023/24 To - Total]]","v":0},{"$f":"Dataset[[#This Row],[2024/25 Baseline]]+Dataset[[#This Row],[2024/25 From - Total]]+Dataset[[#This Row],[2024/25 To - Total]]","v":0},{"$f":"Dataset[[#This Row],[2025/26 Baseline]]+Dataset[[#This Row],[2025/26 From - Total]]+Dataset[[#This Row],[2025/26 To - Total]]","v":0}]
["NAT|Non-transfer item","2|Software and other intangible assets","2023_24","MTEF2023",2,1,2,770,153,"02","01","02","000770","000153","02|01|02",2,3,17,62,66,"02|03|17|62|66","National","Parliament","Administration","Office of the Secretary","Non-transfer item","Capital","Payments for capital assets","Software and other intangible assets","Software and other intangible assets","Software and other intangible assets","General public services","Executive and legislative organs","NAT",0,0,0,0,0,0,0,0,0,0,0,null,null,null,null,null,null,null,null,null,null,null,null,null,null,null,null,null,null,null,null,null,null,null,null,null,null,null,null,null,null,{"$f":"Dataset[[#This Row],[2023/24 From - Spending review Topic 1]]+Dataset[[#This Row],[2023/24 From - Spending review Topic 2]]+Dataset[[#This Row],[2023/24 From - Spending review Topic 3]]+Dataset[[#This Row],[2023/24 From - Spending review Topic 4]]+Dataset[[#This Row],[2023/24 From - Other reallocations]]","v":0},{"$f":"Dataset[[#This Row],[2024/25 From - Spending review Topic 1]]+Dataset[[#This Row],[2024/25 From - Spending review Topic 2]]+Dataset[[#This Row],[2024/25 From - Spending review Topic 3]]+Dataset[[#This Row],[2024/25 From - Spending review Topic 4]]+Dataset[[#This Row],[2024/25 From - Other reallocations]]","v":0},{"$f":"Dataset[[#This Row],[2025/26 From - Spending review Topic 1]]+Dataset[[#This Row],[2025/26 From - Spending review Topic 2]]+Dataset[[#This Row],[2025/26 From - Spending review Topic 3]]+Dataset[[#This Row],[2025/26 From - Spending review Topic 4]]+Dataset[[#This Row],[2025/26 From - Other reallocations]]","v":0},{"$f":"Dataset[[#This Row],[2023/24 To - Spending review Topic 1]]+Dataset[[#This Row],[2023/24 To - Spending review Topic 2]]+Dataset[[#This Row],[2023/24 To - Spending review Topic 3]]+Dataset[[#This Row],[2023/24 To - Spending review Topic 4]]+Dataset[[#This Row],[2023/24 To - Other reallocations]]","v":0},{"$f":"Dataset[[#This Row],[2024/25 To - Spending review Topic 1]]+Dataset[[#This Row],[2024/25 To - Spending review Topic 2]]+Dataset[[#This Row],[2024/25 To - Spending review Topic 3]]+Dataset[[#This Row],[2024/25 To - Spending review Topic 4]]+Dataset[[#This Row],[2024/25 To - Other reallocations]]","v":0},{"$f":"Dataset[[#This Row],[2025/26 To - Spending review Topic 1]]+Dataset[[#This Row],[2025/26 To - Spending review Topic 2]]+Dataset[[#This Row],[2025/26 To - Spending review Topic 3]]+Dataset[[#This Row],[2025/26 To - Spending review Topic 4]]+Dataset[[#This Row],[2025/26 To - Other reallocations]]","v":0},{"$f":"Dataset[[#This Row],[2023/24 Baseline]]+Dataset[[#This Row],[2023/24 From - Total]]+Dataset[[#This Row],[2023/24 To - Total]]","v":0},{"$f":"Dataset[[#This Row],[2024/25 Baseline]]+Dataset[[#This Row],[2024/25 From - Total]]+Dataset[[#This Row],[2024/25 To - Total]]","v":0},{"$f":"Dataset[[#This Row],[2025/26 Baseline]]+Dataset[[#This Row],[2025/26 From - Total]]+Dataset[[#This Row],[2025/26 To - Total]]","v":0}]
["NAT|Non-transfer item","2|Payments for financial assets","2023_24","MTEF2023",2,1,2,771,154,"02","01","02","000771","000154","02|01|02",3,4,18,63,67,"03|04|18|63|67","National","Parliament","Administration","Office of the Secretary","Non-transfer item","Payments for financial assets","Payments for financial assets","Payments for financial assets","Payments for financial assets","Payments for financial assets","General public services","Executive and legislative organs","NAT",0,0,0,0,0,0,0,0,0,0,0,null,null,null,null,null,null,null,null,null,null,null,null,null,null,null,null,null,null,null,null,null,null,null,null,null,null,null,null,null,null,{"$f":"Dataset[[#This Row],[2023/24 From - Spending review Topic 1]]+Dataset[[#This Row],[2023/24 From - Spending review Topic 2]]+Dataset[[#This Row],[2023/24 From - Spending review Topic 3]]+Dataset[[#This Row],[2023/24 From - Spending review Topic 4]]+Dataset[[#This Row],[2023/24 From - Other reallocations]]","v":0},{"$f":"Dataset[[#This Row],[2024/25 From - Spending review Topic 1]]+Dataset[[#This Row],[2024/25 From - Spending review Topic 2]]+Dataset[[#This Row],[2024/25 From - Spending review Topic 3]]+Dataset[[#This Row],[2024/25 From - Spending review Topic 4]]+Dataset[[#This Row],[2024/25 From - Other reallocations]]","v":0},{"$f":"Dataset[[#This Row],[2025/26 From - Spending review Topic 1]]+Dataset[[#This Row],[2025/26 From - Spending review Topic 2]]+Dataset[[#This Row],[2025/26 From - Spending review Topic 3]]+Dataset[[#This Row],[2025/26 From - Spending review Topic 4]]+Dataset[[#This Row],[2025/26 From - Other reallocations]]","v":0},{"$f":"Dataset[[#This Row],[2023/24 To - Spending review Topic 1]]+Dataset[[#This Row],[2023/24 To - Spending review Topic 2]]+Dataset[[#This Row],[2023/24 To - Spending review Topic 3]]+Dataset[[#This Row],[2023/24 To - Spending review Topic 4]]+Dataset[[#This Row],[2023/24 To - Other reallocations]]","v":0},{"$f":"Dataset[[#This Row],[2024/25 To - Spending review Topic 1]]+Dataset[[#This Row],[2024/25 To - Spending review Topic 2]]+Dataset[[#This Row],[2024/25 To - Spending review Topic 3]]+Dataset[[#This Row],[2024/25 To - Spending review Topic 4]]+Dataset[[#This Row],[2024/25 To - Other reallocations]]","v":0},{"$f":"Dataset[[#This Row],[2025/26 To - Spending review Topic 1]]+Dataset[[#This Row],[2025/26 To - Spending review Topic 2]]+Dataset[[#This Row],[2025/26 To - Spending review Topic 3]]+Dataset[[#This Row],[2025/26 To - Spending review Topic 4]]+Dataset[[#This Row],[2025/26 To - Other reallocations]]","v":0},{"$f":"Dataset[[#This Row],[2023/24 Baseline]]+Dataset[[#This Row],[2023/24 From - Total]]+Dataset[[#This Row],[2023/24 To - Total]]","v":0},{"$f":"Dataset[[#This Row],[2024/25 Baseline]]+Dataset[[#This Row],[2024/25 From - Total]]+Dataset[[#This Row],[2024/25 To - Total]]","v":0},{"$f":"Dataset[[#This Row],[2025/26 Baseline]]+Dataset[[#This Row],[2025/26 From - Total]]+Dataset[[#This Row],[2025/26 To - Total]]","v":0}]
["NAT|Non-transfer item","2|Salaries and wages","2023_24","MTEF2023",2,1,3,772,155,"02","01","03","000772","000155","02|01|03",1,1,1,1,1,"01|01|01|01|01","National","Parliament","Administration","Corporate and Support Services","Non-transfer item","Current","Current payments","Compensation of employees","Salaries and wages","Salaries and wages","General public services","Executive and legislative organs","NAT",337589,316964,356783,351205,351205,351205,0,386011,354292,370203,386788,null,null,null,null,null,null,null,null,null,null,null,null,null,null,null,null,null,null,null,null,null,null,null,null,null,null,null,null,null,null,{"$f":"Dataset[[#This Row],[2023/24 From - Spending review Topic 1]]+Dataset[[#This Row],[2023/24 From - Spending review Topic 2]]+Dataset[[#This Row],[2023/24 From - Spending review Topic 3]]+Dataset[[#This Row],[2023/24 From - Spending review Topic 4]]+Dataset[[#This Row],[2023/24 From - Other reallocations]]","v":0},{"$f":"Dataset[[#This Row],[2024/25 From - Spending review Topic 1]]+Dataset[[#This Row],[2024/25 From - Spending review Topic 2]]+Dataset[[#This Row],[2024/25 From - Spending review Topic 3]]+Dataset[[#This Row],[2024/25 From - Spending review Topic 4]]+Dataset[[#This Row],[2024/25 From - Other reallocations]]","v":0},{"$f":"Dataset[[#This Row],[2025/26 From - Spending review Topic 1]]+Dataset[[#This Row],[2025/26 From - Spending review Topic 2]]+Dataset[[#This Row],[2025/26 From - Spending review Topic 3]]+Dataset[[#This Row],[2025/26 From - Spending review Topic 4]]+Dataset[[#This Row],[2025/26 From - Other reallocations]]","v":0},{"$f":"Dataset[[#This Row],[2023/24 To - Spending review Topic 1]]+Dataset[[#This Row],[2023/24 To - Spending review Topic 2]]+Dataset[[#This Row],[2023/24 To - Spending review Topic 3]]+Dataset[[#This Row],[2023/24 To - Spending review Topic 4]]+Dataset[[#This Row],[2023/24 To - Other reallocations]]","v":0},{"$f":"Dataset[[#This Row],[2024/25 To - Spending review Topic 1]]+Dataset[[#This Row],[2024/25 To - Spending review Topic 2]]+Dataset[[#This Row],[2024/25 To - Spending review Topic 3]]+Dataset[[#This Row],[2024/25 To - Spending review Topic 4]]+Dataset[[#This Row],[2024/25 To - Other reallocations]]","v":0},{"$f":"Dataset[[#This Row],[2025/26 To - Spending review Topic 1]]+Dataset[[#This Row],[2025/26 To - Spending review Topic 2]]+Dataset[[#This Row],[2025/26 To - Spending review Topic 3]]+Dataset[[#This Row],[2025/26 To - Spending review Topic 4]]+Dataset[[#This Row],[2025/26 To - Other reallocations]]","v":0},{"$f":"Dataset[[#This Row],[2023/24 Baseline]]+Dataset[[#This Row],[2023/24 From - Total]]+Dataset[[#This Row],[2023/24 To - Total]]","v":354292},{"$f":"Dataset[[#This Row],[2024/25 Baseline]]+Dataset[[#This Row],[2024/25 From - Total]]+Dataset[[#This Row],[2024/25 To - Total]]","v":370203},{"$f":"Dataset[[#This Row],[2025/26 Baseline]]+Dataset[[#This Row],[2025/26 From - Total]]+Dataset[[#This Row],[2025/26 To - Total]]","v":386788}]
["NAT|Non-transfer item","2|Social contributions","2023_24","MTEF2023",2,1,3,773,156,"02","01","03","000773","000156","02|01|03",1,1,1,2,2,"01|01|01|02|02","National","Parliament","Administration","Corporate and Support Services","Non-transfer item","Current","Current payments","Compensation of employees","Social contributions","Social contributions","General public services","Executive and legislative organs","NAT",0,0,0,0,0,0,0,0,0,0,0,null,null,null,null,null,null,null,null,null,null,null,null,null,null,null,null,null,null,null,null,null,null,null,null,null,null,null,null,null,null,{"$f":"Dataset[[#This Row],[2023/24 From - Spending review Topic 1]]+Dataset[[#This Row],[2023/24 From - Spending review Topic 2]]+Dataset[[#This Row],[2023/24 From - Spending review Topic 3]]+Dataset[[#This Row],[2023/24 From - Spending review Topic 4]]+Dataset[[#This Row],[2023/24 From - Other reallocations]]","v":0},{"$f":"Dataset[[#This Row],[2024/25 From - Spending review Topic 1]]+Dataset[[#This Row],[2024/25 From - Spending review Topic 2]]+Dataset[[#This Row],[2024/25 From - Spending review Topic 3]]+Dataset[[#This Row],[2024/25 From - Spending review Topic 4]]+Dataset[[#This Row],[2024/25 From - Other reallocations]]","v":0},{"$f":"Dataset[[#This Row],[2025/26 From - Spending review Topic 1]]+Dataset[[#This Row],[2025/26 From - Spending review Topic 2]]+Dataset[[#This Row],[2025/26 From - Spending review Topic 3]]+Dataset[[#This Row],[2025/26 From - Spending review Topic 4]]+Dataset[[#This Row],[2025/26 From - Other reallocations]]","v":0},{"$f":"Dataset[[#This Row],[2023/24 To - Spending review Topic 1]]+Dataset[[#This Row],[2023/24 To - Spending review Topic 2]]+Dataset[[#This Row],[2023/24 To - Spending review Topic 3]]+Dataset[[#This Row],[2023/24 To - Spending review Topic 4]]+Dataset[[#This Row],[2023/24 To - Other reallocations]]","v":0},{"$f":"Dataset[[#This Row],[2024/25 To - Spending review Topic 1]]+Dataset[[#This Row],[2024/25 To - Spending review Topic 2]]+Dataset[[#This Row],[2024/25 To - Spending review Topic 3]]+Dataset[[#This Row],[2024/25 To - Spending review Topic 4]]+Dataset[[#This Row],[2024/25 To - Other reallocations]]","v":0},{"$f":"Dataset[[#This Row],[2025/26 To - Spending review Topic 1]]+Dataset[[#This Row],[2025/26 To - Spending review Topic 2]]+Dataset[[#This Row],[2025/26 To - Spending review Topic 3]]+Dataset[[#This Row],[2025/26 To - Spending review Topic 4]]+Dataset[[#This Row],[2025/26 To - Other reallocations]]","v":0},{"$f":"Dataset[[#This Row],[2023/24 Baseline]]+Dataset[[#This Row],[2023/24 From - Total]]+Dataset[[#This Row],[2023/24 To - Total]]","v":0},{"$f":"Dataset[[#This Row],[2024/25 Baseline]]+Dataset[[#This Row],[2024/25 From - Total]]+Dataset[[#This Row],[2024/25 To - Total]]","v":0},{"$f":"Dataset[[#This Row],[2025/26 Baseline]]+Dataset[[#This Row],[2025/26 From - Total]]+Dataset[[#This Row],[2025/26 To - Total]]","v":0}]
["NAT|Non-transfer item","2|Administrative fees","2023_24","MTEF2023",2,1,3,774,157,"02","01","03","000774","000157","02|01|03",1,1,2,3,3,"01|01|02|03|03","National","Parliament","Administration","Corporate and Support Services","Non-transfer item","Current","Current payments","Goods and services","Administrative fees","Administrative fees","General public services","Executive and legislative organs","NAT",522,190,-13064,56,56,56,0,56,56,58,61,null,null,null,null,null,null,null,null,null,null,null,null,null,null,null,null,null,null,null,null,null,null,null,null,null,null,null,null,null,null,{"$f":"Dataset[[#This Row],[2023/24 From - Spending review Topic 1]]+Dataset[[#This Row],[2023/24 From - Spending review Topic 2]]+Dataset[[#This Row],[2023/24 From - Spending review Topic 3]]+Dataset[[#This Row],[2023/24 From - Spending review Topic 4]]+Dataset[[#This Row],[2023/24 From - Other reallocations]]","v":0},{"$f":"Dataset[[#This Row],[2024/25 From - Spending review Topic 1]]+Dataset[[#This Row],[2024/25 From - Spending review Topic 2]]+Dataset[[#This Row],[2024/25 From - Spending review Topic 3]]+Dataset[[#This Row],[2024/25 From - Spending review Topic 4]]+Dataset[[#This Row],[2024/25 From - Other reallocations]]","v":0},{"$f":"Dataset[[#This Row],[2025/26 From - Spending review Topic 1]]+Dataset[[#This Row],[2025/26 From - Spending review Topic 2]]+Dataset[[#This Row],[2025/26 From - Spending review Topic 3]]+Dataset[[#This Row],[2025/26 From - Spending review Topic 4]]+Dataset[[#This Row],[2025/26 From - Other reallocations]]","v":0},{"$f":"Dataset[[#This Row],[2023/24 To - Spending review Topic 1]]+Dataset[[#This Row],[2023/24 To - Spending review Topic 2]]+Dataset[[#This Row],[2023/24 To - Spending review Topic 3]]+Dataset[[#This Row],[2023/24 To - Spending review Topic 4]]+Dataset[[#This Row],[2023/24 To - Other reallocations]]","v":0},{"$f":"Dataset[[#This Row],[2024/25 To - Spending review Topic 1]]+Dataset[[#This Row],[2024/25 To - Spending review Topic 2]]+Dataset[[#This Row],[2024/25 To - Spending review Topic 3]]+Dataset[[#This Row],[2024/25 To - Spending review Topic 4]]+Dataset[[#This Row],[2024/25 To - Other reallocations]]","v":0},{"$f":"Dataset[[#This Row],[2025/26 To - Spending review Topic 1]]+Dataset[[#This Row],[2025/26 To - Spending review Topic 2]]+Dataset[[#This Row],[2025/26 To - Spending review Topic 3]]+Dataset[[#This Row],[2025/26 To - Spending review Topic 4]]+Dataset[[#This Row],[2025/26 To - Other reallocations]]","v":0},{"$f":"Dataset[[#This Row],[2023/24 Baseline]]+Dataset[[#This Row],[2023/24 From - Total]]+Dataset[[#This Row],[2023/24 To - Total]]","v":56},{"$f":"Dataset[[#This Row],[2024/25 Baseline]]+Dataset[[#This Row],[2024/25 From - Total]]+Dataset[[#This Row],[2024/25 To - Total]]","v":58},{"$f":"Dataset[[#This Row],[2025/26 Baseline]]+Dataset[[#This Row],[2025/26 From - Total]]+Dataset[[#This Row],[2025/26 To - Total]]","v":61}]
["NAT|Non-transfer item","2|Advertising","2023_24","MTEF2023",2,1,3,775,158,"02","01","03","000775","000158","02|01|03",1,1,2,4,4,"01|01|02|04|04","National","Parliament","Administration","Corporate and Support Services","Non-transfer item","Current","Current payments","Goods and services","Advertising","Advertising","General public services","Executive and legislative organs","NAT",9915,14277,14807,15006,15006,15006,0,15430,15489,16185,16910,null,null,null,null,null,null,null,null,null,null,null,null,null,null,null,null,null,null,null,null,null,null,null,null,null,null,null,null,null,null,{"$f":"Dataset[[#This Row],[2023/24 From - Spending review Topic 1]]+Dataset[[#This Row],[2023/24 From - Spending review Topic 2]]+Dataset[[#This Row],[2023/24 From - Spending review Topic 3]]+Dataset[[#This Row],[2023/24 From - Spending review Topic 4]]+Dataset[[#This Row],[2023/24 From - Other reallocations]]","v":0},{"$f":"Dataset[[#This Row],[2024/25 From - Spending review Topic 1]]+Dataset[[#This Row],[2024/25 From - Spending review Topic 2]]+Dataset[[#This Row],[2024/25 From - Spending review Topic 3]]+Dataset[[#This Row],[2024/25 From - Spending review Topic 4]]+Dataset[[#This Row],[2024/25 From - Other reallocations]]","v":0},{"$f":"Dataset[[#This Row],[2025/26 From - Spending review Topic 1]]+Dataset[[#This Row],[2025/26 From - Spending review Topic 2]]+Dataset[[#This Row],[2025/26 From - Spending review Topic 3]]+Dataset[[#This Row],[2025/26 From - Spending review Topic 4]]+Dataset[[#This Row],[2025/26 From - Other reallocations]]","v":0},{"$f":"Dataset[[#This Row],[2023/24 To - Spending review Topic 1]]+Dataset[[#This Row],[2023/24 To - Spending review Topic 2]]+Dataset[[#This Row],[2023/24 To - Spending review Topic 3]]+Dataset[[#This Row],[2023/24 To - Spending review Topic 4]]+Dataset[[#This Row],[2023/24 To - Other reallocations]]","v":0},{"$f":"Dataset[[#This Row],[2024/25 To - Spending review Topic 1]]+Dataset[[#This Row],[2024/25 To - Spending review Topic 2]]+Dataset[[#This Row],[2024/25 To - Spending review Topic 3]]+Dataset[[#This Row],[2024/25 To - Spending review Topic 4]]+Dataset[[#This Row],[2024/25 To - Other reallocations]]","v":0},{"$f":"Dataset[[#This Row],[2025/26 To - Spending review Topic 1]]+Dataset[[#This Row],[2025/26 To - Spending review Topic 2]]+Dataset[[#This Row],[2025/26 To - Spending review Topic 3]]+Dataset[[#This Row],[2025/26 To - Spending review Topic 4]]+Dataset[[#This Row],[2025/26 To - Other reallocations]]","v":0},{"$f":"Dataset[[#This Row],[2023/24 Baseline]]+Dataset[[#This Row],[2023/24 From - Total]]+Dataset[[#This Row],[2023/24 To - Total]]","v":15489},{"$f":"Dataset[[#This Row],[2024/25 Baseline]]+Dataset[[#This Row],[2024/25 From - Total]]+Dataset[[#This Row],[2024/25 To - Total]]","v":16185},{"$f":"Dataset[[#This Row],[2025/26 Baseline]]+Dataset[[#This Row],[2025/26 From - Total]]+Dataset[[#This Row],[2025/26 To - Total]]","v":16910}]
["NAT|Non-transfer item","2|Minor assets","2023_24","MTEF2023",2,1,3,776,159,"02","01","03","000776","000159","02|01|03",1,1,2,5,5,"01|01|02|05|05","National","Parliament","Administration","Corporate and Support Services","Non-transfer item","Current","Current payments","Goods and services","Minor assets","Minor assets","General public services","Executive and legislative organs","NAT",633,669,53,59,59,59,0,60,60,63,66,null,null,null,null,null,null,null,null,null,null,null,null,null,null,null,null,null,null,null,null,null,null,null,null,null,null,null,null,null,null,{"$f":"Dataset[[#This Row],[2023/24 From - Spending review Topic 1]]+Dataset[[#This Row],[2023/24 From - Spending review Topic 2]]+Dataset[[#This Row],[2023/24 From - Spending review Topic 3]]+Dataset[[#This Row],[2023/24 From - Spending review Topic 4]]+Dataset[[#This Row],[2023/24 From - Other reallocations]]","v":0},{"$f":"Dataset[[#This Row],[2024/25 From - Spending review Topic 1]]+Dataset[[#This Row],[2024/25 From - Spending review Topic 2]]+Dataset[[#This Row],[2024/25 From - Spending review Topic 3]]+Dataset[[#This Row],[2024/25 From - Spending review Topic 4]]+Dataset[[#This Row],[2024/25 From - Other reallocations]]","v":0},{"$f":"Dataset[[#This Row],[2025/26 From - Spending review Topic 1]]+Dataset[[#This Row],[2025/26 From - Spending review Topic 2]]+Dataset[[#This Row],[2025/26 From - Spending review Topic 3]]+Dataset[[#This Row],[2025/26 From - Spending review Topic 4]]+Dataset[[#This Row],[2025/26 From - Other reallocations]]","v":0},{"$f":"Dataset[[#This Row],[2023/24 To - Spending review Topic 1]]+Dataset[[#This Row],[2023/24 To - Spending review Topic 2]]+Dataset[[#This Row],[2023/24 To - Spending review Topic 3]]+Dataset[[#This Row],[2023/24 To - Spending review Topic 4]]+Dataset[[#This Row],[2023/24 To - Other reallocations]]","v":0},{"$f":"Dataset[[#This Row],[2024/25 To - Spending review Topic 1]]+Dataset[[#This Row],[2024/25 To - Spending review Topic 2]]+Dataset[[#This Row],[2024/25 To - Spending review Topic 3]]+Dataset[[#This Row],[2024/25 To - Spending review Topic 4]]+Dataset[[#This Row],[2024/25 To - Other reallocations]]","v":0},{"$f":"Dataset[[#This Row],[2025/26 To - Spending review Topic 1]]+Dataset[[#This Row],[2025/26 To - Spending review Topic 2]]+Dataset[[#This Row],[2025/26 To - Spending review Topic 3]]+Dataset[[#This Row],[2025/26 To - Spending review Topic 4]]+Dataset[[#This Row],[2025/26 To - Other reallocations]]","v":0},{"$f":"Dataset[[#This Row],[2023/24 Baseline]]+Dataset[[#This Row],[2023/24 From - Total]]+Dataset[[#This Row],[2023/24 To - Total]]","v":60},{"$f":"Dataset[[#This Row],[2024/25 Baseline]]+Dataset[[#This Row],[2024/25 From - Total]]+Dataset[[#This Row],[2024/25 To - Total]]","v":63},{"$f":"Dataset[[#This Row],[2025/26 Baseline]]+Dataset[[#This Row],[2025/26 From - Total]]+Dataset[[#This Row],[2025/26 To - Total]]","v":66}]
["NAT|Non-transfer item","2|Audit costs: External","2023_24","MTEF2023",2,1,3,777,160,"02","01","03","000777","000160","02|01|03",1,1,2,6,6,"01|01|02|06|06","National","Parliament","Administration","Corporate and Support Services","Non-transfer item","Current","Current payments","Goods and services","Audit costs: External","Audit costs: External","General public services","Executive and legislative organs","NAT",4687,4312,4890,3964,3964,3964,0,3923,3938,4115,4299,null,null,null,null,null,null,null,null,null,null,null,null,null,null,null,null,null,null,null,null,null,null,null,null,null,null,null,null,null,null,{"$f":"Dataset[[#This Row],[2023/24 From - Spending review Topic 1]]+Dataset[[#This Row],[2023/24 From - Spending review Topic 2]]+Dataset[[#This Row],[2023/24 From - Spending review Topic 3]]+Dataset[[#This Row],[2023/24 From - Spending review Topic 4]]+Dataset[[#This Row],[2023/24 From - Other reallocations]]","v":0},{"$f":"Dataset[[#This Row],[2024/25 From - Spending review Topic 1]]+Dataset[[#This Row],[2024/25 From - Spending review Topic 2]]+Dataset[[#This Row],[2024/25 From - Spending review Topic 3]]+Dataset[[#This Row],[2024/25 From - Spending review Topic 4]]+Dataset[[#This Row],[2024/25 From - Other reallocations]]","v":0},{"$f":"Dataset[[#This Row],[2025/26 From - Spending review Topic 1]]+Dataset[[#This Row],[2025/26 From - Spending review Topic 2]]+Dataset[[#This Row],[2025/26 From - Spending review Topic 3]]+Dataset[[#This Row],[2025/26 From - Spending review Topic 4]]+Dataset[[#This Row],[2025/26 From - Other reallocations]]","v":0},{"$f":"Dataset[[#This Row],[2023/24 To - Spending review Topic 1]]+Dataset[[#This Row],[2023/24 To - Spending review Topic 2]]+Dataset[[#This Row],[2023/24 To - Spending review Topic 3]]+Dataset[[#This Row],[2023/24 To - Spending review Topic 4]]+Dataset[[#This Row],[2023/24 To - Other reallocations]]","v":0},{"$f":"Dataset[[#This Row],[2024/25 To - Spending review Topic 1]]+Dataset[[#This Row],[2024/25 To - Spending review Topic 2]]+Dataset[[#This Row],[2024/25 To - Spending review Topic 3]]+Dataset[[#This Row],[2024/25 To - Spending review Topic 4]]+Dataset[[#This Row],[2024/25 To - Other reallocations]]","v":0},{"$f":"Dataset[[#This Row],[2025/26 To - Spending review Topic 1]]+Dataset[[#This Row],[2025/26 To - Spending review Topic 2]]+Dataset[[#This Row],[2025/26 To - Spending review Topic 3]]+Dataset[[#This Row],[2025/26 To - Spending review Topic 4]]+Dataset[[#This Row],[2025/26 To - Other reallocations]]","v":0},{"$f":"Dataset[[#This Row],[2023/24 Baseline]]+Dataset[[#This Row],[2023/24 From - Total]]+Dataset[[#This Row],[2023/24 To - Total]]","v":3938},{"$f":"Dataset[[#This Row],[2024/25 Baseline]]+Dataset[[#This Row],[2024/25 From - Total]]+Dataset[[#This Row],[2024/25 To - Total]]","v":4115},{"$f":"Dataset[[#This Row],[2025/26 Baseline]]+Dataset[[#This Row],[2025/26 From - Total]]+Dataset[[#This Row],[2025/26 To - Total]]","v":4299}]
["NAT|Non-transfer item","2|Bursaries: Employees","2023_24","MTEF2023",2,1,3,778,161,"02","01","03","000778","000161","02|01|03",1,1,2,7,7,"01|01|02|07|07","National","Parliament","Administration","Corporate and Support Services","Non-transfer item","Current","Current payments","Goods and services","Bursaries: Employees","Bursaries: Employees","General public services","Executive and legislative organs","NAT",2338,3239,2228,3075,3075,3075,0,3160,3172,3314,3462,null,null,null,null,null,null,null,null,null,null,null,null,null,null,null,null,null,null,null,null,null,null,null,null,null,null,null,null,null,null,{"$f":"Dataset[[#This Row],[2023/24 From - Spending review Topic 1]]+Dataset[[#This Row],[2023/24 From - Spending review Topic 2]]+Dataset[[#This Row],[2023/24 From - Spending review Topic 3]]+Dataset[[#This Row],[2023/24 From - Spending review Topic 4]]+Dataset[[#This Row],[2023/24 From - Other reallocations]]","v":0},{"$f":"Dataset[[#This Row],[2024/25 From - Spending review Topic 1]]+Dataset[[#This Row],[2024/25 From - Spending review Topic 2]]+Dataset[[#This Row],[2024/25 From - Spending review Topic 3]]+Dataset[[#This Row],[2024/25 From - Spending review Topic 4]]+Dataset[[#This Row],[2024/25 From - Other reallocations]]","v":0},{"$f":"Dataset[[#This Row],[2025/26 From - Spending review Topic 1]]+Dataset[[#This Row],[2025/26 From - Spending review Topic 2]]+Dataset[[#This Row],[2025/26 From - Spending review Topic 3]]+Dataset[[#This Row],[2025/26 From - Spending review Topic 4]]+Dataset[[#This Row],[2025/26 From - Other reallocations]]","v":0},{"$f":"Dataset[[#This Row],[2023/24 To - Spending review Topic 1]]+Dataset[[#This Row],[2023/24 To - Spending review Topic 2]]+Dataset[[#This Row],[2023/24 To - Spending review Topic 3]]+Dataset[[#This Row],[2023/24 To - Spending review Topic 4]]+Dataset[[#This Row],[2023/24 To - Other reallocations]]","v":0},{"$f":"Dataset[[#This Row],[2024/25 To - Spending review Topic 1]]+Dataset[[#This Row],[2024/25 To - Spending review Topic 2]]+Dataset[[#This Row],[2024/25 To - Spending review Topic 3]]+Dataset[[#This Row],[2024/25 To - Spending review Topic 4]]+Dataset[[#This Row],[2024/25 To - Other reallocations]]","v":0},{"$f":"Dataset[[#This Row],[2025/26 To - Spending review Topic 1]]+Dataset[[#This Row],[2025/26 To - Spending review Topic 2]]+Dataset[[#This Row],[2025/26 To - Spending review Topic 3]]+Dataset[[#This Row],[2025/26 To - Spending review Topic 4]]+Dataset[[#This Row],[2025/26 To - Other reallocations]]","v":0},{"$f":"Dataset[[#This Row],[2023/24 Baseline]]+Dataset[[#This Row],[2023/24 From - Total]]+Dataset[[#This Row],[2023/24 To - Total]]","v":3172},{"$f":"Dataset[[#This Row],[2024/25 Baseline]]+Dataset[[#This Row],[2024/25 From - Total]]+Dataset[[#This Row],[2024/25 To - Total]]","v":3314},{"$f":"Dataset[[#This Row],[2025/26 Baseline]]+Dataset[[#This Row],[2025/26 From - Total]]+Dataset[[#This Row],[2025/26 To - Total]]","v":3462}]
["NAT|Non-transfer item","2|Catering: Departmental activities","2023_24","MTEF2023",2,1,3,779,162,"02","01","03","000779","000162","02|01|03",1,1,2,8,8,"01|01|02|08|08","National","Parliament","Administration","Corporate and Support Services","Non-transfer item","Current","Current payments","Goods and services","Catering: Departmental activities","Catering: Departmental activities","General public services","Executive and legislative organs","NAT",1676,4741,1885,2225,2225,2225,0,2291,2297,2400,2508,null,null,null,null,null,null,null,null,null,null,null,null,null,null,null,null,null,null,null,null,null,null,null,null,null,null,null,null,null,null,{"$f":"Dataset[[#This Row],[2023/24 From - Spending review Topic 1]]+Dataset[[#This Row],[2023/24 From - Spending review Topic 2]]+Dataset[[#This Row],[2023/24 From - Spending review Topic 3]]+Dataset[[#This Row],[2023/24 From - Spending review Topic 4]]+Dataset[[#This Row],[2023/24 From - Other reallocations]]","v":0},{"$f":"Dataset[[#This Row],[2024/25 From - Spending review Topic 1]]+Dataset[[#This Row],[2024/25 From - Spending review Topic 2]]+Dataset[[#This Row],[2024/25 From - Spending review Topic 3]]+Dataset[[#This Row],[2024/25 From - Spending review Topic 4]]+Dataset[[#This Row],[2024/25 From - Other reallocations]]","v":0},{"$f":"Dataset[[#This Row],[2025/26 From - Spending review Topic 1]]+Dataset[[#This Row],[2025/26 From - Spending review Topic 2]]+Dataset[[#This Row],[2025/26 From - Spending review Topic 3]]+Dataset[[#This Row],[2025/26 From - Spending review Topic 4]]+Dataset[[#This Row],[2025/26 From - Other reallocations]]","v":0},{"$f":"Dataset[[#This Row],[2023/24 To - Spending review Topic 1]]+Dataset[[#This Row],[2023/24 To - Spending review Topic 2]]+Dataset[[#This Row],[2023/24 To - Spending review Topic 3]]+Dataset[[#This Row],[2023/24 To - Spending review Topic 4]]+Dataset[[#This Row],[2023/24 To - Other reallocations]]","v":0},{"$f":"Dataset[[#This Row],[2024/25 To - Spending review Topic 1]]+Dataset[[#This Row],[2024/25 To - Spending review Topic 2]]+Dataset[[#This Row],[2024/25 To - Spending review Topic 3]]+Dataset[[#This Row],[2024/25 To - Spending review Topic 4]]+Dataset[[#This Row],[2024/25 To - Other reallocations]]","v":0},{"$f":"Dataset[[#This Row],[2025/26 To - Spending review Topic 1]]+Dataset[[#This Row],[2025/26 To - Spending review Topic 2]]+Dataset[[#This Row],[2025/26 To - Spending review Topic 3]]+Dataset[[#This Row],[2025/26 To - Spending review Topic 4]]+Dataset[[#This Row],[2025/26 To - Other reallocations]]","v":0},{"$f":"Dataset[[#This Row],[2023/24 Baseline]]+Dataset[[#This Row],[2023/24 From - Total]]+Dataset[[#This Row],[2023/24 To - Total]]","v":2297},{"$f":"Dataset[[#This Row],[2024/25 Baseline]]+Dataset[[#This Row],[2024/25 From - Total]]+Dataset[[#This Row],[2024/25 To - Total]]","v":2400},{"$f":"Dataset[[#This Row],[2025/26 Baseline]]+Dataset[[#This Row],[2025/26 From - Total]]+Dataset[[#This Row],[2025/26 To - Total]]","v":2508}]
["NAT|Non-transfer item","2|Communication (G&S)","2023_24","MTEF2023",2,1,3,780,163,"02","01","03","000780","000163","02|01|03",1,1,2,9,9,"01|01|02|09|09","National","Parliament","Administration","Corporate and Support Services","Non-transfer item","Current","Current payments","Goods and services","Communication (G&S)","Communication (G&S)","General public services","Executive and legislative organs","NAT",12618,11619,8724,12239,12239,12239,0,12586,12632,13199,13790,null,null,null,null,null,null,null,null,null,null,null,null,null,null,null,null,null,null,null,null,null,null,null,null,null,null,null,null,null,null,{"$f":"Dataset[[#This Row],[2023/24 From - Spending review Topic 1]]+Dataset[[#This Row],[2023/24 From - Spending review Topic 2]]+Dataset[[#This Row],[2023/24 From - Spending review Topic 3]]+Dataset[[#This Row],[2023/24 From - Spending review Topic 4]]+Dataset[[#This Row],[2023/24 From - Other reallocations]]","v":0},{"$f":"Dataset[[#This Row],[2024/25 From - Spending review Topic 1]]+Dataset[[#This Row],[2024/25 From - Spending review Topic 2]]+Dataset[[#This Row],[2024/25 From - Spending review Topic 3]]+Dataset[[#This Row],[2024/25 From - Spending review Topic 4]]+Dataset[[#This Row],[2024/25 From - Other reallocations]]","v":0},{"$f":"Dataset[[#This Row],[2025/26 From - Spending review Topic 1]]+Dataset[[#This Row],[2025/26 From - Spending review Topic 2]]+Dataset[[#This Row],[2025/26 From - Spending review Topic 3]]+Dataset[[#This Row],[2025/26 From - Spending review Topic 4]]+Dataset[[#This Row],[2025/26 From - Other reallocations]]","v":0},{"$f":"Dataset[[#This Row],[2023/24 To - Spending review Topic 1]]+Dataset[[#This Row],[2023/24 To - Spending review Topic 2]]+Dataset[[#This Row],[2023/24 To - Spending review Topic 3]]+Dataset[[#This Row],[2023/24 To - Spending review Topic 4]]+Dataset[[#This Row],[2023/24 To - Other reallocations]]","v":0},{"$f":"Dataset[[#This Row],[2024/25 To - Spending review Topic 1]]+Dataset[[#This Row],[2024/25 To - Spending review Topic 2]]+Dataset[[#This Row],[2024/25 To - Spending review Topic 3]]+Dataset[[#This Row],[2024/25 To - Spending review Topic 4]]+Dataset[[#This Row],[2024/25 To - Other reallocations]]","v":0},{"$f":"Dataset[[#This Row],[2025/26 To - Spending review Topic 1]]+Dataset[[#This Row],[2025/26 To - Spending review Topic 2]]+Dataset[[#This Row],[2025/26 To - Spending review Topic 3]]+Dataset[[#This Row],[2025/26 To - Spending review Topic 4]]+Dataset[[#This Row],[2025/26 To - Other reallocations]]","v":0},{"$f":"Dataset[[#This Row],[2023/24 Baseline]]+Dataset[[#This Row],[2023/24 From - Total]]+Dataset[[#This Row],[2023/24 To - Total]]","v":12632},{"$f":"Dataset[[#This Row],[2024/25 Baseline]]+Dataset[[#This Row],[2024/25 From - Total]]+Dataset[[#This Row],[2024/25 To - Total]]","v":13199},{"$f":"Dataset[[#This Row],[2025/26 Baseline]]+Dataset[[#This Row],[2025/26 From - Total]]+Dataset[[#This Row],[2025/26 To - Total]]","v":13790}]
["NAT|Non-transfer item","2|Computer services","2023_24","MTEF2023",2,1,3,781,164,"02","01","03","000781","000164","02|01|03",1,1,2,10,10,"01|01|02|10|10","National","Parliament","Administration","Corporate and Support Services","Non-transfer item","Current","Current payments","Goods and services","Computer services","Computer services","General public services","Executive and legislative organs","NAT",10457,11097,11651,12816,12816,12816,0,13172,13222,13816,14435,null,null,null,null,null,null,null,null,null,null,null,null,null,null,null,null,null,null,null,null,null,null,null,null,null,null,null,null,null,null,{"$f":"Dataset[[#This Row],[2023/24 From - Spending review Topic 1]]+Dataset[[#This Row],[2023/24 From - Spending review Topic 2]]+Dataset[[#This Row],[2023/24 From - Spending review Topic 3]]+Dataset[[#This Row],[2023/24 From - Spending review Topic 4]]+Dataset[[#This Row],[2023/24 From - Other reallocations]]","v":0},{"$f":"Dataset[[#This Row],[2024/25 From - Spending review Topic 1]]+Dataset[[#This Row],[2024/25 From - Spending review Topic 2]]+Dataset[[#This Row],[2024/25 From - Spending review Topic 3]]+Dataset[[#This Row],[2024/25 From - Spending review Topic 4]]+Dataset[[#This Row],[2024/25 From - Other reallocations]]","v":0},{"$f":"Dataset[[#This Row],[2025/26 From - Spending review Topic 1]]+Dataset[[#This Row],[2025/26 From - Spending review Topic 2]]+Dataset[[#This Row],[2025/26 From - Spending review Topic 3]]+Dataset[[#This Row],[2025/26 From - Spending review Topic 4]]+Dataset[[#This Row],[2025/26 From - Other reallocations]]","v":0},{"$f":"Dataset[[#This Row],[2023/24 To - Spending review Topic 1]]+Dataset[[#This Row],[2023/24 To - Spending review Topic 2]]+Dataset[[#This Row],[2023/24 To - Spending review Topic 3]]+Dataset[[#This Row],[2023/24 To - Spending review Topic 4]]+Dataset[[#This Row],[2023/24 To - Other reallocations]]","v":0},{"$f":"Dataset[[#This Row],[2024/25 To - Spending review Topic 1]]+Dataset[[#This Row],[2024/25 To - Spending review Topic 2]]+Dataset[[#This Row],[2024/25 To - Spending review Topic 3]]+Dataset[[#This Row],[2024/25 To - Spending review Topic 4]]+Dataset[[#This Row],[2024/25 To - Other reallocations]]","v":0},{"$f":"Dataset[[#This Row],[2025/26 To - Spending review Topic 1]]+Dataset[[#This Row],[2025/26 To - Spending review Topic 2]]+Dataset[[#This Row],[2025/26 To - Spending review Topic 3]]+Dataset[[#This Row],[2025/26 To - Spending review Topic 4]]+Dataset[[#This Row],[2025/26 To - Other reallocations]]","v":0},{"$f":"Dataset[[#This Row],[2023/24 Baseline]]+Dataset[[#This Row],[2023/24 From - Total]]+Dataset[[#This Row],[2023/24 To - Total]]","v":13222},{"$f":"Dataset[[#This Row],[2024/25 Baseline]]+Dataset[[#This Row],[2024/25 From - Total]]+Dataset[[#This Row],[2024/25 To - Total]]","v":13816},{"$f":"Dataset[[#This Row],[2025/26 Baseline]]+Dataset[[#This Row],[2025/26 From - Total]]+Dataset[[#This Row],[2025/26 To - Total]]","v":14435}]
["NAT|Non-transfer item","2|Consultants: Business and advisory services","2023_24","MTEF2023",2,1,3,782,165,"02","01","03","000782","000165","02|01|03",1,1,2,11,11,"01|01|02|11|11","National","Parliament","Administration","Corporate and Support Services","Non-transfer item","Current","Current payments","Goods and services","Consultants: Business and advisory services","Consultants: Business and advisory services","General public services","Executive and legislative organs","NAT",8518,1070,968,1046,1046,1046,0,1077,1081,1130,1181,null,null,null,null,null,null,null,null,null,null,null,null,null,null,null,null,null,null,null,null,null,null,null,null,null,null,null,null,null,null,{"$f":"Dataset[[#This Row],[2023/24 From - Spending review Topic 1]]+Dataset[[#This Row],[2023/24 From - Spending review Topic 2]]+Dataset[[#This Row],[2023/24 From - Spending review Topic 3]]+Dataset[[#This Row],[2023/24 From - Spending review Topic 4]]+Dataset[[#This Row],[2023/24 From - Other reallocations]]","v":0},{"$f":"Dataset[[#This Row],[2024/25 From - Spending review Topic 1]]+Dataset[[#This Row],[2024/25 From - Spending review Topic 2]]+Dataset[[#This Row],[2024/25 From - Spending review Topic 3]]+Dataset[[#This Row],[2024/25 From - Spending review Topic 4]]+Dataset[[#This Row],[2024/25 From - Other reallocations]]","v":0},{"$f":"Dataset[[#This Row],[2025/26 From - Spending review Topic 1]]+Dataset[[#This Row],[2025/26 From - Spending review Topic 2]]+Dataset[[#This Row],[2025/26 From - Spending review Topic 3]]+Dataset[[#This Row],[2025/26 From - Spending review Topic 4]]+Dataset[[#This Row],[2025/26 From - Other reallocations]]","v":0},{"$f":"Dataset[[#This Row],[2023/24 To - Spending review Topic 1]]+Dataset[[#This Row],[2023/24 To - Spending review Topic 2]]+Dataset[[#This Row],[2023/24 To - Spending review Topic 3]]+Dataset[[#This Row],[2023/24 To - Spending review Topic 4]]+Dataset[[#This Row],[2023/24 To - Other reallocations]]","v":0},{"$f":"Dataset[[#This Row],[2024/25 To - Spending review Topic 1]]+Dataset[[#This Row],[2024/25 To - Spending review Topic 2]]+Dataset[[#This Row],[2024/25 To - Spending review Topic 3]]+Dataset[[#This Row],[2024/25 To - Spending review Topic 4]]+Dataset[[#This Row],[2024/25 To - Other reallocations]]","v":0},{"$f":"Dataset[[#This Row],[2025/26 To - Spending review Topic 1]]+Dataset[[#This Row],[2025/26 To - Spending review Topic 2]]+Dataset[[#This Row],[2025/26 To - Spending review Topic 3]]+Dataset[[#This Row],[2025/26 To - Spending review Topic 4]]+Dataset[[#This Row],[2025/26 To - Other reallocations]]","v":0},{"$f":"Dataset[[#This Row],[2023/24 Baseline]]+Dataset[[#This Row],[2023/24 From - Total]]+Dataset[[#This Row],[2023/24 To - Total]]","v":1081},{"$f":"Dataset[[#This Row],[2024/25 Baseline]]+Dataset[[#This Row],[2024/25 From - Total]]+Dataset[[#This Row],[2024/25 To - Total]]","v":1130},{"$f":"Dataset[[#This Row],[2025/26 Baseline]]+Dataset[[#This Row],[2025/26 From - Total]]+Dataset[[#This Row],[2025/26 To - Total]]","v":1181}]
["NAT|Non-transfer item","2|Infrastructure and planning services","2023_24","MTEF2023",2,1,3,783,166,"02","01","03","000783","000166","02|01|03",1,1,2,12,12,"01|01|02|12|12","National","Parliament","Administration","Corporate and Support Services","Non-transfer item","Current","Current payments","Goods and services","Infrastructure and planning services","Infrastructure and planning services","General public services","Executive and legislative organs","NAT",0,0,0,0,0,0,0,0,0,0,0,null,null,null,null,null,null,null,null,null,null,null,null,null,null,null,null,null,null,null,null,null,null,null,null,null,null,null,null,null,null,{"$f":"Dataset[[#This Row],[2023/24 From - Spending review Topic 1]]+Dataset[[#This Row],[2023/24 From - Spending review Topic 2]]+Dataset[[#This Row],[2023/24 From - Spending review Topic 3]]+Dataset[[#This Row],[2023/24 From - Spending review Topic 4]]+Dataset[[#This Row],[2023/24 From - Other reallocations]]","v":0},{"$f":"Dataset[[#This Row],[2024/25 From - Spending review Topic 1]]+Dataset[[#This Row],[2024/25 From - Spending review Topic 2]]+Dataset[[#This Row],[2024/25 From - Spending review Topic 3]]+Dataset[[#This Row],[2024/25 From - Spending review Topic 4]]+Dataset[[#This Row],[2024/25 From - Other reallocations]]","v":0},{"$f":"Dataset[[#This Row],[2025/26 From - Spending review Topic 1]]+Dataset[[#This Row],[2025/26 From - Spending review Topic 2]]+Dataset[[#This Row],[2025/26 From - Spending review Topic 3]]+Dataset[[#This Row],[2025/26 From - Spending review Topic 4]]+Dataset[[#This Row],[2025/26 From - Other reallocations]]","v":0},{"$f":"Dataset[[#This Row],[2023/24 To - Spending review Topic 1]]+Dataset[[#This Row],[2023/24 To - Spending review Topic 2]]+Dataset[[#This Row],[2023/24 To - Spending review Topic 3]]+Dataset[[#This Row],[2023/24 To - Spending review Topic 4]]+Dataset[[#This Row],[2023/24 To - Other reallocations]]","v":0},{"$f":"Dataset[[#This Row],[2024/25 To - Spending review Topic 1]]+Dataset[[#This Row],[2024/25 To - Spending review Topic 2]]+Dataset[[#This Row],[2024/25 To - Spending review Topic 3]]+Dataset[[#This Row],[2024/25 To - Spending review Topic 4]]+Dataset[[#This Row],[2024/25 To - Other reallocations]]","v":0},{"$f":"Dataset[[#This Row],[2025/26 To - Spending review Topic 1]]+Dataset[[#This Row],[2025/26 To - Spending review Topic 2]]+Dataset[[#This Row],[2025/26 To - Spending review Topic 3]]+Dataset[[#This Row],[2025/26 To - Spending review Topic 4]]+Dataset[[#This Row],[2025/26 To - Other reallocations]]","v":0},{"$f":"Dataset[[#This Row],[2023/24 Baseline]]+Dataset[[#This Row],[2023/24 From - Total]]+Dataset[[#This Row],[2023/24 To - Total]]","v":0},{"$f":"Dataset[[#This Row],[2024/25 Baseline]]+Dataset[[#This Row],[2024/25 From - Total]]+Dataset[[#This Row],[2024/25 To - Total]]","v":0},{"$f":"Dataset[[#This Row],[2025/26 Baseline]]+Dataset[[#This Row],[2025/26 From - Total]]+Dataset[[#This Row],[2025/26 To - Total]]","v":0}]
["NAT|Non-transfer item","2|Laboratory services","2023_24","MTEF2023",2,1,3,784,167,"02","01","03","000784","000167","02|01|03",1,1,2,13,13,"01|01|02|13|13","National","Parliament","Administration","Corporate and Support Services","Non-transfer item","Current","Current payments","Goods and services","Laboratory services","Laboratory services","General public services","Executive and legislative organs","NAT",0,0,0,0,0,0,0,0,0,0,0,null,null,null,null,null,null,null,null,null,null,null,null,null,null,null,null,null,null,null,null,null,null,null,null,null,null,null,null,null,null,{"$f":"Dataset[[#This Row],[2023/24 From - Spending review Topic 1]]+Dataset[[#This Row],[2023/24 From - Spending review Topic 2]]+Dataset[[#This Row],[2023/24 From - Spending review Topic 3]]+Dataset[[#This Row],[2023/24 From - Spending review Topic 4]]+Dataset[[#This Row],[2023/24 From - Other reallocations]]","v":0},{"$f":"Dataset[[#This Row],[2024/25 From - Spending review Topic 1]]+Dataset[[#This Row],[2024/25 From - Spending review Topic 2]]+Dataset[[#This Row],[2024/25 From - Spending review Topic 3]]+Dataset[[#This Row],[2024/25 From - Spending review Topic 4]]+Dataset[[#This Row],[2024/25 From - Other reallocations]]","v":0},{"$f":"Dataset[[#This Row],[2025/26 From - Spending review Topic 1]]+Dataset[[#This Row],[2025/26 From - Spending review Topic 2]]+Dataset[[#This Row],[2025/26 From - Spending review Topic 3]]+Dataset[[#This Row],[2025/26 From - Spending review Topic 4]]+Dataset[[#This Row],[2025/26 From - Other reallocations]]","v":0},{"$f":"Dataset[[#This Row],[2023/24 To - Spending review Topic 1]]+Dataset[[#This Row],[2023/24 To - Spending review Topic 2]]+Dataset[[#This Row],[2023/24 To - Spending review Topic 3]]+Dataset[[#This Row],[2023/24 To - Spending review Topic 4]]+Dataset[[#This Row],[2023/24 To - Other reallocations]]","v":0},{"$f":"Dataset[[#This Row],[2024/25 To - Spending review Topic 1]]+Dataset[[#This Row],[2024/25 To - Spending review Topic 2]]+Dataset[[#This Row],[2024/25 To - Spending review Topic 3]]+Dataset[[#This Row],[2024/25 To - Spending review Topic 4]]+Dataset[[#This Row],[2024/25 To - Other reallocations]]","v":0},{"$f":"Dataset[[#This Row],[2025/26 To - Spending review Topic 1]]+Dataset[[#This Row],[2025/26 To - Spending review Topic 2]]+Dataset[[#This Row],[2025/26 To - Spending review Topic 3]]+Dataset[[#This Row],[2025/26 To - Spending review Topic 4]]+Dataset[[#This Row],[2025/26 To - Other reallocations]]","v":0},{"$f":"Dataset[[#This Row],[2023/24 Baseline]]+Dataset[[#This Row],[2023/24 From - Total]]+Dataset[[#This Row],[2023/24 To - Total]]","v":0},{"$f":"Dataset[[#This Row],[2024/25 Baseline]]+Dataset[[#This Row],[2024/25 From - Total]]+Dataset[[#This Row],[2024/25 To - Total]]","v":0},{"$f":"Dataset[[#This Row],[2025/26 Baseline]]+Dataset[[#This Row],[2025/26 From - Total]]+Dataset[[#This Row],[2025/26 To - Total]]","v":0}]
["NAT|Non-transfer item","2|Legal services (G&S)","2023_24","MTEF2023",2,1,3,785,168,"02","01","03","000785","000168","02|01|03",1,1,2,14,14,"01|01|02|14|14","National","Parliament","Administration","Corporate and Support Services","Non-transfer item","Current","Current payments","Goods and services","Legal services (G&S)","Legal services (G&S)","General public services","Executive and legislative organs","NAT",0,0,0,0,0,0,0,0,0,0,0,null,null,null,null,null,null,null,null,null,null,null,null,null,null,null,null,null,null,null,null,null,null,null,null,null,null,null,null,null,null,{"$f":"Dataset[[#This Row],[2023/24 From - Spending review Topic 1]]+Dataset[[#This Row],[2023/24 From - Spending review Topic 2]]+Dataset[[#This Row],[2023/24 From - Spending review Topic 3]]+Dataset[[#This Row],[2023/24 From - Spending review Topic 4]]+Dataset[[#This Row],[2023/24 From - Other reallocations]]","v":0},{"$f":"Dataset[[#This Row],[2024/25 From - Spending review Topic 1]]+Dataset[[#This Row],[2024/25 From - Spending review Topic 2]]+Dataset[[#This Row],[2024/25 From - Spending review Topic 3]]+Dataset[[#This Row],[2024/25 From - Spending review Topic 4]]+Dataset[[#This Row],[2024/25 From - Other reallocations]]","v":0},{"$f":"Dataset[[#This Row],[2025/26 From - Spending review Topic 1]]+Dataset[[#This Row],[2025/26 From - Spending review Topic 2]]+Dataset[[#This Row],[2025/26 From - Spending review Topic 3]]+Dataset[[#This Row],[2025/26 From - Spending review Topic 4]]+Dataset[[#This Row],[2025/26 From - Other reallocations]]","v":0},{"$f":"Dataset[[#This Row],[2023/24 To - Spending review Topic 1]]+Dataset[[#This Row],[2023/24 To - Spending review Topic 2]]+Dataset[[#This Row],[2023/24 To - Spending review Topic 3]]+Dataset[[#This Row],[2023/24 To - Spending review Topic 4]]+Dataset[[#This Row],[2023/24 To - Other reallocations]]","v":0},{"$f":"Dataset[[#This Row],[2024/25 To - Spending review Topic 1]]+Dataset[[#This Row],[2024/25 To - Spending review Topic 2]]+Dataset[[#This Row],[2024/25 To - Spending review Topic 3]]+Dataset[[#This Row],[2024/25 To - Spending review Topic 4]]+Dataset[[#This Row],[2024/25 To - Other reallocations]]","v":0},{"$f":"Dataset[[#This Row],[2025/26 To - Spending review Topic 1]]+Dataset[[#This Row],[2025/26 To - Spending review Topic 2]]+Dataset[[#This Row],[2025/26 To - Spending review Topic 3]]+Dataset[[#This Row],[2025/26 To - Spending review Topic 4]]+Dataset[[#This Row],[2025/26 To - Other reallocations]]","v":0},{"$f":"Dataset[[#This Row],[2023/24 Baseline]]+Dataset[[#This Row],[2023/24 From - Total]]+Dataset[[#This Row],[2023/24 To - Total]]","v":0},{"$f":"Dataset[[#This Row],[2024/25 Baseline]]+Dataset[[#This Row],[2024/25 From - Total]]+Dataset[[#This Row],[2024/25 To - Total]]","v":0},{"$f":"Dataset[[#This Row],[2025/26 Baseline]]+Dataset[[#This Row],[2025/26 From - Total]]+Dataset[[#This Row],[2025/26 To - Total]]","v":0}]
["NAT|Non-transfer item","2|Science and technological services","2023_24","MTEF2023",2,1,3,786,169,"02","01","03","000786","000169","02|01|03",1,1,2,15,15,"01|01|02|15|15","National","Parliament","Administration","Corporate and Support Services","Non-transfer item","Current","Current payments","Goods and services","Science and technological services","Science and technological services","General public services","Executive and legislative organs","NAT",0,0,0,0,0,0,0,0,0,0,0,null,null,null,null,null,null,null,null,null,null,null,null,null,null,null,null,null,null,null,null,null,null,null,null,null,null,null,null,null,null,{"$f":"Dataset[[#This Row],[2023/24 From - Spending review Topic 1]]+Dataset[[#This Row],[2023/24 From - Spending review Topic 2]]+Dataset[[#This Row],[2023/24 From - Spending review Topic 3]]+Dataset[[#This Row],[2023/24 From - Spending review Topic 4]]+Dataset[[#This Row],[2023/24 From - Other reallocations]]","v":0},{"$f":"Dataset[[#This Row],[2024/25 From - Spending review Topic 1]]+Dataset[[#This Row],[2024/25 From - Spending review Topic 2]]+Dataset[[#This Row],[2024/25 From - Spending review Topic 3]]+Dataset[[#This Row],[2024/25 From - Spending review Topic 4]]+Dataset[[#This Row],[2024/25 From - Other reallocations]]","v":0},{"$f":"Dataset[[#This Row],[2025/26 From - Spending review Topic 1]]+Dataset[[#This Row],[2025/26 From - Spending review Topic 2]]+Dataset[[#This Row],[2025/26 From - Spending review Topic 3]]+Dataset[[#This Row],[2025/26 From - Spending review Topic 4]]+Dataset[[#This Row],[2025/26 From - Other reallocations]]","v":0},{"$f":"Dataset[[#This Row],[2023/24 To - Spending review Topic 1]]+Dataset[[#This Row],[2023/24 To - Spending review Topic 2]]+Dataset[[#This Row],[2023/24 To - Spending review Topic 3]]+Dataset[[#This Row],[2023/24 To - Spending review Topic 4]]+Dataset[[#This Row],[2023/24 To - Other reallocations]]","v":0},{"$f":"Dataset[[#This Row],[2024/25 To - Spending review Topic 1]]+Dataset[[#This Row],[2024/25 To - Spending review Topic 2]]+Dataset[[#This Row],[2024/25 To - Spending review Topic 3]]+Dataset[[#This Row],[2024/25 To - Spending review Topic 4]]+Dataset[[#This Row],[2024/25 To - Other reallocations]]","v":0},{"$f":"Dataset[[#This Row],[2025/26 To - Spending review Topic 1]]+Dataset[[#This Row],[2025/26 To - Spending review Topic 2]]+Dataset[[#This Row],[2025/26 To - Spending review Topic 3]]+Dataset[[#This Row],[2025/26 To - Spending review Topic 4]]+Dataset[[#This Row],[2025/26 To - Other reallocations]]","v":0},{"$f":"Dataset[[#This Row],[2023/24 Baseline]]+Dataset[[#This Row],[2023/24 From - Total]]+Dataset[[#This Row],[2023/24 To - Total]]","v":0},{"$f":"Dataset[[#This Row],[2024/25 Baseline]]+Dataset[[#This Row],[2024/25 From - Total]]+Dataset[[#This Row],[2024/25 To - Total]]","v":0},{"$f":"Dataset[[#This Row],[2025/26 Baseline]]+Dataset[[#This Row],[2025/26 From - Total]]+Dataset[[#This Row],[2025/26 To - Total]]","v":0}]
["NAT|Non-transfer item","2|Contractors","2023_24","MTEF2023",2,1,3,787,170,"02","01","03","000787","000170","02|01|03",1,1,2,16,16,"01|01|02|16|16","National","Parliament","Administration","Corporate and Support Services","Non-transfer item","Current","Current payments","Goods and services","Contractors","Contractors","General public services","Executive and legislative organs","NAT",19206,17262,69764,65980,65980,65980,0,67673,67933,70984,74164,null,null,null,null,null,null,null,null,null,null,null,null,null,null,null,null,null,null,null,null,null,null,null,null,null,null,null,null,null,null,{"$f":"Dataset[[#This Row],[2023/24 From - Spending review Topic 1]]+Dataset[[#This Row],[2023/24 From - Spending review Topic 2]]+Dataset[[#This Row],[2023/24 From - Spending review Topic 3]]+Dataset[[#This Row],[2023/24 From - Spending review Topic 4]]+Dataset[[#This Row],[2023/24 From - Other reallocations]]","v":0},{"$f":"Dataset[[#This Row],[2024/25 From - Spending review Topic 1]]+Dataset[[#This Row],[2024/25 From - Spending review Topic 2]]+Dataset[[#This Row],[2024/25 From - Spending review Topic 3]]+Dataset[[#This Row],[2024/25 From - Spending review Topic 4]]+Dataset[[#This Row],[2024/25 From - Other reallocations]]","v":0},{"$f":"Dataset[[#This Row],[2025/26 From - Spending review Topic 1]]+Dataset[[#This Row],[2025/26 From - Spending review Topic 2]]+Dataset[[#This Row],[2025/26 From - Spending review Topic 3]]+Dataset[[#This Row],[2025/26 From - Spending review Topic 4]]+Dataset[[#This Row],[2025/26 From - Other reallocations]]","v":0},{"$f":"Dataset[[#This Row],[2023/24 To - Spending review Topic 1]]+Dataset[[#This Row],[2023/24 To - Spending review Topic 2]]+Dataset[[#This Row],[2023/24 To - Spending review Topic 3]]+Dataset[[#This Row],[2023/24 To - Spending review Topic 4]]+Dataset[[#This Row],[2023/24 To - Other reallocations]]","v":0},{"$f":"Dataset[[#This Row],[2024/25 To - Spending review Topic 1]]+Dataset[[#This Row],[2024/25 To - Spending review Topic 2]]+Dataset[[#This Row],[2024/25 To - Spending review Topic 3]]+Dataset[[#This Row],[2024/25 To - Spending review Topic 4]]+Dataset[[#This Row],[2024/25 To - Other reallocations]]","v":0},{"$f":"Dataset[[#This Row],[2025/26 To - Spending review Topic 1]]+Dataset[[#This Row],[2025/26 To - Spending review Topic 2]]+Dataset[[#This Row],[2025/26 To - Spending review Topic 3]]+Dataset[[#This Row],[2025/26 To - Spending review Topic 4]]+Dataset[[#This Row],[2025/26 To - Other reallocations]]","v":0},{"$f":"Dataset[[#This Row],[2023/24 Baseline]]+Dataset[[#This Row],[2023/24 From - Total]]+Dataset[[#This Row],[2023/24 To - Total]]","v":67933},{"$f":"Dataset[[#This Row],[2024/25 Baseline]]+Dataset[[#This Row],[2024/25 From - Total]]+Dataset[[#This Row],[2024/25 To - Total]]","v":70984},{"$f":"Dataset[[#This Row],[2025/26 Baseline]]+Dataset[[#This Row],[2025/26 From - Total]]+Dataset[[#This Row],[2025/26 To - Total]]","v":74164}]
["NAT|Non-transfer item","2|Agency and support/outsourced services","2023_24","MTEF2023",2,1,3,788,171,"02","01","03","000788","000171","02|01|03",1,1,2,17,17,"01|01|02|17|17","National","Parliament","Administration","Corporate and Support Services","Non-transfer item","Current","Current payments","Goods and services","Agency and support/outsourced services","Agency and support/outsourced services","General public services","Executive and legislative organs","NAT",1888,779,776,911,911,911,0,937,940,982,1026,null,null,null,null,null,null,null,null,null,null,null,null,null,null,null,null,null,null,null,null,null,null,null,null,null,null,null,null,null,null,{"$f":"Dataset[[#This Row],[2023/24 From - Spending review Topic 1]]+Dataset[[#This Row],[2023/24 From - Spending review Topic 2]]+Dataset[[#This Row],[2023/24 From - Spending review Topic 3]]+Dataset[[#This Row],[2023/24 From - Spending review Topic 4]]+Dataset[[#This Row],[2023/24 From - Other reallocations]]","v":0},{"$f":"Dataset[[#This Row],[2024/25 From - Spending review Topic 1]]+Dataset[[#This Row],[2024/25 From - Spending review Topic 2]]+Dataset[[#This Row],[2024/25 From - Spending review Topic 3]]+Dataset[[#This Row],[2024/25 From - Spending review Topic 4]]+Dataset[[#This Row],[2024/25 From - Other reallocations]]","v":0},{"$f":"Dataset[[#This Row],[2025/26 From - Spending review Topic 1]]+Dataset[[#This Row],[2025/26 From - Spending review Topic 2]]+Dataset[[#This Row],[2025/26 From - Spending review Topic 3]]+Dataset[[#This Row],[2025/26 From - Spending review Topic 4]]+Dataset[[#This Row],[2025/26 From - Other reallocations]]","v":0},{"$f":"Dataset[[#This Row],[2023/24 To - Spending review Topic 1]]+Dataset[[#This Row],[2023/24 To - Spending review Topic 2]]+Dataset[[#This Row],[2023/24 To - Spending review Topic 3]]+Dataset[[#This Row],[2023/24 To - Spending review Topic 4]]+Dataset[[#This Row],[2023/24 To - Other reallocations]]","v":0},{"$f":"Dataset[[#This Row],[2024/25 To - Spending review Topic 1]]+Dataset[[#This Row],[2024/25 To - Spending review Topic 2]]+Dataset[[#This Row],[2024/25 To - Spending review Topic 3]]+Dataset[[#This Row],[2024/25 To - Spending review Topic 4]]+Dataset[[#This Row],[2024/25 To - Other reallocations]]","v":0},{"$f":"Dataset[[#This Row],[2025/26 To - Spending review Topic 1]]+Dataset[[#This Row],[2025/26 To - Spending review Topic 2]]+Dataset[[#This Row],[2025/26 To - Spending review Topic 3]]+Dataset[[#This Row],[2025/26 To - Spending review Topic 4]]+Dataset[[#This Row],[2025/26 To - Other reallocations]]","v":0},{"$f":"Dataset[[#This Row],[2023/24 Baseline]]+Dataset[[#This Row],[2023/24 From - Total]]+Dataset[[#This Row],[2023/24 To - Total]]","v":940},{"$f":"Dataset[[#This Row],[2024/25 Baseline]]+Dataset[[#This Row],[2024/25 From - Total]]+Dataset[[#This Row],[2024/25 To - Total]]","v":982},{"$f":"Dataset[[#This Row],[2025/26 Baseline]]+Dataset[[#This Row],[2025/26 From - Total]]+Dataset[[#This Row],[2025/26 To - Total]]","v":1026}]
["NAT|Non-transfer item","2|Entertainment","2023_24","MTEF2023",2,1,3,789,172,"02","01","03","000789","000172","02|01|03",1,1,2,18,18,"01|01|02|18|18","National","Parliament","Administration","Corporate and Support Services","Non-transfer item","Current","Current payments","Goods and services","Entertainment","Entertainment","General public services","Executive and legislative organs","NAT",110,116,122,127,127,127,0,131,131,137,143,null,null,null,null,null,null,null,null,null,null,null,null,null,null,null,null,null,null,null,null,null,null,null,null,null,null,null,null,null,null,{"$f":"Dataset[[#This Row],[2023/24 From - Spending review Topic 1]]+Dataset[[#This Row],[2023/24 From - Spending review Topic 2]]+Dataset[[#This Row],[2023/24 From - Spending review Topic 3]]+Dataset[[#This Row],[2023/24 From - Spending review Topic 4]]+Dataset[[#This Row],[2023/24 From - Other reallocations]]","v":0},{"$f":"Dataset[[#This Row],[2024/25 From - Spending review Topic 1]]+Dataset[[#This Row],[2024/25 From - Spending review Topic 2]]+Dataset[[#This Row],[2024/25 From - Spending review Topic 3]]+Dataset[[#This Row],[2024/25 From - Spending review Topic 4]]+Dataset[[#This Row],[2024/25 From - Other reallocations]]","v":0},{"$f":"Dataset[[#This Row],[2025/26 From - Spending review Topic 1]]+Dataset[[#This Row],[2025/26 From - Spending review Topic 2]]+Dataset[[#This Row],[2025/26 From - Spending review Topic 3]]+Dataset[[#This Row],[2025/26 From - Spending review Topic 4]]+Dataset[[#This Row],[2025/26 From - Other reallocations]]","v":0},{"$f":"Dataset[[#This Row],[2023/24 To - Spending review Topic 1]]+Dataset[[#This Row],[2023/24 To - Spending review Topic 2]]+Dataset[[#This Row],[2023/24 To - Spending review Topic 3]]+Dataset[[#This Row],[2023/24 To - Spending review Topic 4]]+Dataset[[#This Row],[2023/24 To - Other reallocations]]","v":0},{"$f":"Dataset[[#This Row],[2024/25 To - Spending review Topic 1]]+Dataset[[#This Row],[2024/25 To - Spending review Topic 2]]+Dataset[[#This Row],[2024/25 To - Spending review Topic 3]]+Dataset[[#This Row],[2024/25 To - Spending review Topic 4]]+Dataset[[#This Row],[2024/25 To - Other reallocations]]","v":0},{"$f":"Dataset[[#This Row],[2025/26 To - Spending review Topic 1]]+Dataset[[#This Row],[2025/26 To - Spending review Topic 2]]+Dataset[[#This Row],[2025/26 To - Spending review Topic 3]]+Dataset[[#This Row],[2025/26 To - Spending review Topic 4]]+Dataset[[#This Row],[2025/26 To - Other reallocations]]","v":0},{"$f":"Dataset[[#This Row],[2023/24 Baseline]]+Dataset[[#This Row],[2023/24 From - Total]]+Dataset[[#This Row],[2023/24 To - Total]]","v":131},{"$f":"Dataset[[#This Row],[2024/25 Baseline]]+Dataset[[#This Row],[2024/25 From - Total]]+Dataset[[#This Row],[2024/25 To - Total]]","v":137},{"$f":"Dataset[[#This Row],[2025/26 Baseline]]+Dataset[[#This Row],[2025/26 From - Total]]+Dataset[[#This Row],[2025/26 To - Total]]","v":143}]
["NAT|Non-transfer item","2|Fleet services (including government motor transport)","2023_24","MTEF2023",2,1,3,790,173,"02","01","03","000790","000173","02|01|03",1,1,2,19,19,"01|01|02|19|19","National","Parliament","Administration","Corporate and Support Services","Non-transfer item","Current","Current payments","Goods and services","Fleet services (including government motor transport)","Fleet services (including government motor transport)","General public services","Executive and legislative organs","NAT",0,0,0,0,0,0,0,0,0,0,0,null,null,null,null,null,null,null,null,null,null,null,null,null,null,null,null,null,null,null,null,null,null,null,null,null,null,null,null,null,null,{"$f":"Dataset[[#This Row],[2023/24 From - Spending review Topic 1]]+Dataset[[#This Row],[2023/24 From - Spending review Topic 2]]+Dataset[[#This Row],[2023/24 From - Spending review Topic 3]]+Dataset[[#This Row],[2023/24 From - Spending review Topic 4]]+Dataset[[#This Row],[2023/24 From - Other reallocations]]","v":0},{"$f":"Dataset[[#This Row],[2024/25 From - Spending review Topic 1]]+Dataset[[#This Row],[2024/25 From - Spending review Topic 2]]+Dataset[[#This Row],[2024/25 From - Spending review Topic 3]]+Dataset[[#This Row],[2024/25 From - Spending review Topic 4]]+Dataset[[#This Row],[2024/25 From - Other reallocations]]","v":0},{"$f":"Dataset[[#This Row],[2025/26 From - Spending review Topic 1]]+Dataset[[#This Row],[2025/26 From - Spending review Topic 2]]+Dataset[[#This Row],[2025/26 From - Spending review Topic 3]]+Dataset[[#This Row],[2025/26 From - Spending review Topic 4]]+Dataset[[#This Row],[2025/26 From - Other reallocations]]","v":0},{"$f":"Dataset[[#This Row],[2023/24 To - Spending review Topic 1]]+Dataset[[#This Row],[2023/24 To - Spending review Topic 2]]+Dataset[[#This Row],[2023/24 To - Spending review Topic 3]]+Dataset[[#This Row],[2023/24 To - Spending review Topic 4]]+Dataset[[#This Row],[2023/24 To - Other reallocations]]","v":0},{"$f":"Dataset[[#This Row],[2024/25 To - Spending review Topic 1]]+Dataset[[#This Row],[2024/25 To - Spending review Topic 2]]+Dataset[[#This Row],[2024/25 To - Spending review Topic 3]]+Dataset[[#This Row],[2024/25 To - Spending review Topic 4]]+Dataset[[#This Row],[2024/25 To - Other reallocations]]","v":0},{"$f":"Dataset[[#This Row],[2025/26 To - Spending review Topic 1]]+Dataset[[#This Row],[2025/26 To - Spending review Topic 2]]+Dataset[[#This Row],[2025/26 To - Spending review Topic 3]]+Dataset[[#This Row],[2025/26 To - Spending review Topic 4]]+Dataset[[#This Row],[2025/26 To - Other reallocations]]","v":0},{"$f":"Dataset[[#This Row],[2023/24 Baseline]]+Dataset[[#This Row],[2023/24 From - Total]]+Dataset[[#This Row],[2023/24 To - Total]]","v":0},{"$f":"Dataset[[#This Row],[2024/25 Baseline]]+Dataset[[#This Row],[2024/25 From - Total]]+Dataset[[#This Row],[2024/25 To - Total]]","v":0},{"$f":"Dataset[[#This Row],[2025/26 Baseline]]+Dataset[[#This Row],[2025/26 From - Total]]+Dataset[[#This Row],[2025/26 To - Total]]","v":0}]
["NAT|Non-transfer item","2|Housing","2023_24","MTEF2023",2,1,3,791,174,"02","01","03","000791","000174","02|01|03",1,1,2,20,20,"01|01|02|20|20","National","Parliament","Administration","Corporate and Support Services","Non-transfer item","Current","Current payments","Goods and services","Housing","Housing","General public services","Executive and legislative organs","NAT",0,0,0,0,0,0,0,0,0,0,0,null,null,null,null,null,null,null,null,null,null,null,null,null,null,null,null,null,null,null,null,null,null,null,null,null,null,null,null,null,null,{"$f":"Dataset[[#This Row],[2023/24 From - Spending review Topic 1]]+Dataset[[#This Row],[2023/24 From - Spending review Topic 2]]+Dataset[[#This Row],[2023/24 From - Spending review Topic 3]]+Dataset[[#This Row],[2023/24 From - Spending review Topic 4]]+Dataset[[#This Row],[2023/24 From - Other reallocations]]","v":0},{"$f":"Dataset[[#This Row],[2024/25 From - Spending review Topic 1]]+Dataset[[#This Row],[2024/25 From - Spending review Topic 2]]+Dataset[[#This Row],[2024/25 From - Spending review Topic 3]]+Dataset[[#This Row],[2024/25 From - Spending review Topic 4]]+Dataset[[#This Row],[2024/25 From - Other reallocations]]","v":0},{"$f":"Dataset[[#This Row],[2025/26 From - Spending review Topic 1]]+Dataset[[#This Row],[2025/26 From - Spending review Topic 2]]+Dataset[[#This Row],[2025/26 From - Spending review Topic 3]]+Dataset[[#This Row],[2025/26 From - Spending review Topic 4]]+Dataset[[#This Row],[2025/26 From - Other reallocations]]","v":0},{"$f":"Dataset[[#This Row],[2023/24 To - Spending review Topic 1]]+Dataset[[#This Row],[2023/24 To - Spending review Topic 2]]+Dataset[[#This Row],[2023/24 To - Spending review Topic 3]]+Dataset[[#This Row],[2023/24 To - Spending review Topic 4]]+Dataset[[#This Row],[2023/24 To - Other reallocations]]","v":0},{"$f":"Dataset[[#This Row],[2024/25 To - Spending review Topic 1]]+Dataset[[#This Row],[2024/25 To - Spending review Topic 2]]+Dataset[[#This Row],[2024/25 To - Spending review Topic 3]]+Dataset[[#This Row],[2024/25 To - Spending review Topic 4]]+Dataset[[#This Row],[2024/25 To - Other reallocations]]","v":0},{"$f":"Dataset[[#This Row],[2025/26 To - Spending review Topic 1]]+Dataset[[#This Row],[2025/26 To - Spending review Topic 2]]+Dataset[[#This Row],[2025/26 To - Spending review Topic 3]]+Dataset[[#This Row],[2025/26 To - Spending review Topic 4]]+Dataset[[#This Row],[2025/26 To - Other reallocations]]","v":0},{"$f":"Dataset[[#This Row],[2023/24 Baseline]]+Dataset[[#This Row],[2023/24 From - Total]]+Dataset[[#This Row],[2023/24 To - Total]]","v":0},{"$f":"Dataset[[#This Row],[2024/25 Baseline]]+Dataset[[#This Row],[2024/25 From - Total]]+Dataset[[#This Row],[2024/25 To - Total]]","v":0},{"$f":"Dataset[[#This Row],[2025/26 Baseline]]+Dataset[[#This Row],[2025/26 From - Total]]+Dataset[[#This Row],[2025/26 To - Total]]","v":0}]
["NAT|Non-transfer item","2|Inventory: Clothing material and accessories","2023_24","MTEF2023",2,1,3,792,175,"02","01","03","000792","000175","02|01|03",1,1,2,21,21,"01|01|02|21|21","National","Parliament","Administration","Corporate and Support Services","Non-transfer item","Current","Current payments","Goods and services","Inventory: Clothing material and accessories","Inventory: Clothing material and accessories","General public services","Executive and legislative organs","NAT",0,0,0,0,0,0,0,0,0,0,0,null,null,null,null,null,null,null,null,null,null,null,null,null,null,null,null,null,null,null,null,null,null,null,null,null,null,null,null,null,null,{"$f":"Dataset[[#This Row],[2023/24 From - Spending review Topic 1]]+Dataset[[#This Row],[2023/24 From - Spending review Topic 2]]+Dataset[[#This Row],[2023/24 From - Spending review Topic 3]]+Dataset[[#This Row],[2023/24 From - Spending review Topic 4]]+Dataset[[#This Row],[2023/24 From - Other reallocations]]","v":0},{"$f":"Dataset[[#This Row],[2024/25 From - Spending review Topic 1]]+Dataset[[#This Row],[2024/25 From - Spending review Topic 2]]+Dataset[[#This Row],[2024/25 From - Spending review Topic 3]]+Dataset[[#This Row],[2024/25 From - Spending review Topic 4]]+Dataset[[#This Row],[2024/25 From - Other reallocations]]","v":0},{"$f":"Dataset[[#This Row],[2025/26 From - Spending review Topic 1]]+Dataset[[#This Row],[2025/26 From - Spending review Topic 2]]+Dataset[[#This Row],[2025/26 From - Spending review Topic 3]]+Dataset[[#This Row],[2025/26 From - Spending review Topic 4]]+Dataset[[#This Row],[2025/26 From - Other reallocations]]","v":0},{"$f":"Dataset[[#This Row],[2023/24 To - Spending review Topic 1]]+Dataset[[#This Row],[2023/24 To - Spending review Topic 2]]+Dataset[[#This Row],[2023/24 To - Spending review Topic 3]]+Dataset[[#This Row],[2023/24 To - Spending review Topic 4]]+Dataset[[#This Row],[2023/24 To - Other reallocations]]","v":0},{"$f":"Dataset[[#This Row],[2024/25 To - Spending review Topic 1]]+Dataset[[#This Row],[2024/25 To - Spending review Topic 2]]+Dataset[[#This Row],[2024/25 To - Spending review Topic 3]]+Dataset[[#This Row],[2024/25 To - Spending review Topic 4]]+Dataset[[#This Row],[2024/25 To - Other reallocations]]","v":0},{"$f":"Dataset[[#This Row],[2025/26 To - Spending review Topic 1]]+Dataset[[#This Row],[2025/26 To - Spending review Topic 2]]+Dataset[[#This Row],[2025/26 To - Spending review Topic 3]]+Dataset[[#This Row],[2025/26 To - Spending review Topic 4]]+Dataset[[#This Row],[2025/26 To - Other reallocations]]","v":0},{"$f":"Dataset[[#This Row],[2023/24 Baseline]]+Dataset[[#This Row],[2023/24 From - Total]]+Dataset[[#This Row],[2023/24 To - Total]]","v":0},{"$f":"Dataset[[#This Row],[2024/25 Baseline]]+Dataset[[#This Row],[2024/25 From - Total]]+Dataset[[#This Row],[2024/25 To - Total]]","v":0},{"$f":"Dataset[[#This Row],[2025/26 Baseline]]+Dataset[[#This Row],[2025/26 From - Total]]+Dataset[[#This Row],[2025/26 To - Total]]","v":0}]
["NAT|Non-transfer item","2|Inventory: Farming supplies","2023_24","MTEF2023",2,1,3,793,176,"02","01","03","000793","000176","02|01|03",1,1,2,22,22,"01|01|02|22|22","National","Parliament","Administration","Corporate and Support Services","Non-transfer item","Current","Current payments","Goods and services","Inventory: Farming supplies","Inventory: Farming supplies","General public services","Executive and legislative organs","NAT",0,0,0,0,0,0,0,0,0,0,0,null,null,null,null,null,null,null,null,null,null,null,null,null,null,null,null,null,null,null,null,null,null,null,null,null,null,null,null,null,null,{"$f":"Dataset[[#This Row],[2023/24 From - Spending review Topic 1]]+Dataset[[#This Row],[2023/24 From - Spending review Topic 2]]+Dataset[[#This Row],[2023/24 From - Spending review Topic 3]]+Dataset[[#This Row],[2023/24 From - Spending review Topic 4]]+Dataset[[#This Row],[2023/24 From - Other reallocations]]","v":0},{"$f":"Dataset[[#This Row],[2024/25 From - Spending review Topic 1]]+Dataset[[#This Row],[2024/25 From - Spending review Topic 2]]+Dataset[[#This Row],[2024/25 From - Spending review Topic 3]]+Dataset[[#This Row],[2024/25 From - Spending review Topic 4]]+Dataset[[#This Row],[2024/25 From - Other reallocations]]","v":0},{"$f":"Dataset[[#This Row],[2025/26 From - Spending review Topic 1]]+Dataset[[#This Row],[2025/26 From - Spending review Topic 2]]+Dataset[[#This Row],[2025/26 From - Spending review Topic 3]]+Dataset[[#This Row],[2025/26 From - Spending review Topic 4]]+Dataset[[#This Row],[2025/26 From - Other reallocations]]","v":0},{"$f":"Dataset[[#This Row],[2023/24 To - Spending review Topic 1]]+Dataset[[#This Row],[2023/24 To - Spending review Topic 2]]+Dataset[[#This Row],[2023/24 To - Spending review Topic 3]]+Dataset[[#This Row],[2023/24 To - Spending review Topic 4]]+Dataset[[#This Row],[2023/24 To - Other reallocations]]","v":0},{"$f":"Dataset[[#This Row],[2024/25 To - Spending review Topic 1]]+Dataset[[#This Row],[2024/25 To - Spending review Topic 2]]+Dataset[[#This Row],[2024/25 To - Spending review Topic 3]]+Dataset[[#This Row],[2024/25 To - Spending review Topic 4]]+Dataset[[#This Row],[2024/25 To - Other reallocations]]","v":0},{"$f":"Dataset[[#This Row],[2025/26 To - Spending review Topic 1]]+Dataset[[#This Row],[2025/26 To - Spending review Topic 2]]+Dataset[[#This Row],[2025/26 To - Spending review Topic 3]]+Dataset[[#This Row],[2025/26 To - Spending review Topic 4]]+Dataset[[#This Row],[2025/26 To - Other reallocations]]","v":0},{"$f":"Dataset[[#This Row],[2023/24 Baseline]]+Dataset[[#This Row],[2023/24 From - Total]]+Dataset[[#This Row],[2023/24 To - Total]]","v":0},{"$f":"Dataset[[#This Row],[2024/25 Baseline]]+Dataset[[#This Row],[2024/25 From - Total]]+Dataset[[#This Row],[2024/25 To - Total]]","v":0},{"$f":"Dataset[[#This Row],[2025/26 Baseline]]+Dataset[[#This Row],[2025/26 From - Total]]+Dataset[[#This Row],[2025/26 To - Total]]","v":0}]
["NAT|Non-transfer item","2|Inventory: Food and food supplies","2023_24","MTEF2023",2,1,3,794,177,"02","01","03","000794","000177","02|01|03",1,1,2,23,23,"01|01|02|23|23","National","Parliament","Administration","Corporate and Support Services","Non-transfer item","Current","Current payments","Goods and services","Inventory: Food and food supplies","Inventory: Food and food supplies","General public services","Executive and legislative organs","NAT",0,0,0,0,0,0,0,0,0,0,0,null,null,null,null,null,null,null,null,null,null,null,null,null,null,null,null,null,null,null,null,null,null,null,null,null,null,null,null,null,null,{"$f":"Dataset[[#This Row],[2023/24 From - Spending review Topic 1]]+Dataset[[#This Row],[2023/24 From - Spending review Topic 2]]+Dataset[[#This Row],[2023/24 From - Spending review Topic 3]]+Dataset[[#This Row],[2023/24 From - Spending review Topic 4]]+Dataset[[#This Row],[2023/24 From - Other reallocations]]","v":0},{"$f":"Dataset[[#This Row],[2024/25 From - Spending review Topic 1]]+Dataset[[#This Row],[2024/25 From - Spending review Topic 2]]+Dataset[[#This Row],[2024/25 From - Spending review Topic 3]]+Dataset[[#This Row],[2024/25 From - Spending review Topic 4]]+Dataset[[#This Row],[2024/25 From - Other reallocations]]","v":0},{"$f":"Dataset[[#This Row],[2025/26 From - Spending review Topic 1]]+Dataset[[#This Row],[2025/26 From - Spending review Topic 2]]+Dataset[[#This Row],[2025/26 From - Spending review Topic 3]]+Dataset[[#This Row],[2025/26 From - Spending review Topic 4]]+Dataset[[#This Row],[2025/26 From - Other reallocations]]","v":0},{"$f":"Dataset[[#This Row],[2023/24 To - Spending review Topic 1]]+Dataset[[#This Row],[2023/24 To - Spending review Topic 2]]+Dataset[[#This Row],[2023/24 To - Spending review Topic 3]]+Dataset[[#This Row],[2023/24 To - Spending review Topic 4]]+Dataset[[#This Row],[2023/24 To - Other reallocations]]","v":0},{"$f":"Dataset[[#This Row],[2024/25 To - Spending review Topic 1]]+Dataset[[#This Row],[2024/25 To - Spending review Topic 2]]+Dataset[[#This Row],[2024/25 To - Spending review Topic 3]]+Dataset[[#This Row],[2024/25 To - Spending review Topic 4]]+Dataset[[#This Row],[2024/25 To - Other reallocations]]","v":0},{"$f":"Dataset[[#This Row],[2025/26 To - Spending review Topic 1]]+Dataset[[#This Row],[2025/26 To - Spending review Topic 2]]+Dataset[[#This Row],[2025/26 To - Spending review Topic 3]]+Dataset[[#This Row],[2025/26 To - Spending review Topic 4]]+Dataset[[#This Row],[2025/26 To - Other reallocations]]","v":0},{"$f":"Dataset[[#This Row],[2023/24 Baseline]]+Dataset[[#This Row],[2023/24 From - Total]]+Dataset[[#This Row],[2023/24 To - Total]]","v":0},{"$f":"Dataset[[#This Row],[2024/25 Baseline]]+Dataset[[#This Row],[2024/25 From - Total]]+Dataset[[#This Row],[2024/25 To - Total]]","v":0},{"$f":"Dataset[[#This Row],[2025/26 Baseline]]+Dataset[[#This Row],[2025/26 From - Total]]+Dataset[[#This Row],[2025/26 To - Total]]","v":0}]
["NAT|Non-transfer item","2|Inventory: Fuel, oil and gas","2023_24","MTEF2023",2,1,3,795,178,"02","01","03","000795","000178","02|01|03",1,1,2,24,24,"01|01|02|24|24","National","Parliament","Administration","Corporate and Support Services","Non-transfer item","Current","Current payments","Goods and services","Inventory: Fuel, oil and gas","Inventory: Fuel, oil and gas","General public services","Executive and legislative organs","NAT",0,0,0,0,0,0,0,0,0,0,0,null,null,null,null,null,null,null,null,null,null,null,null,null,null,null,null,null,null,null,null,null,null,null,null,null,null,null,null,null,null,{"$f":"Dataset[[#This Row],[2023/24 From - Spending review Topic 1]]+Dataset[[#This Row],[2023/24 From - Spending review Topic 2]]+Dataset[[#This Row],[2023/24 From - Spending review Topic 3]]+Dataset[[#This Row],[2023/24 From - Spending review Topic 4]]+Dataset[[#This Row],[2023/24 From - Other reallocations]]","v":0},{"$f":"Dataset[[#This Row],[2024/25 From - Spending review Topic 1]]+Dataset[[#This Row],[2024/25 From - Spending review Topic 2]]+Dataset[[#This Row],[2024/25 From - Spending review Topic 3]]+Dataset[[#This Row],[2024/25 From - Spending review Topic 4]]+Dataset[[#This Row],[2024/25 From - Other reallocations]]","v":0},{"$f":"Dataset[[#This Row],[2025/26 From - Spending review Topic 1]]+Dataset[[#This Row],[2025/26 From - Spending review Topic 2]]+Dataset[[#This Row],[2025/26 From - Spending review Topic 3]]+Dataset[[#This Row],[2025/26 From - Spending review Topic 4]]+Dataset[[#This Row],[2025/26 From - Other reallocations]]","v":0},{"$f":"Dataset[[#This Row],[2023/24 To - Spending review Topic 1]]+Dataset[[#This Row],[2023/24 To - Spending review Topic 2]]+Dataset[[#This Row],[2023/24 To - Spending review Topic 3]]+Dataset[[#This Row],[2023/24 To - Spending review Topic 4]]+Dataset[[#This Row],[2023/24 To - Other reallocations]]","v":0},{"$f":"Dataset[[#This Row],[2024/25 To - Spending review Topic 1]]+Dataset[[#This Row],[2024/25 To - Spending review Topic 2]]+Dataset[[#This Row],[2024/25 To - Spending review Topic 3]]+Dataset[[#This Row],[2024/25 To - Spending review Topic 4]]+Dataset[[#This Row],[2024/25 To - Other reallocations]]","v":0},{"$f":"Dataset[[#This Row],[2025/26 To - Spending review Topic 1]]+Dataset[[#This Row],[2025/26 To - Spending review Topic 2]]+Dataset[[#This Row],[2025/26 To - Spending review Topic 3]]+Dataset[[#This Row],[2025/26 To - Spending review Topic 4]]+Dataset[[#This Row],[2025/26 To - Other reallocations]]","v":0},{"$f":"Dataset[[#This Row],[2023/24 Baseline]]+Dataset[[#This Row],[2023/24 From - Total]]+Dataset[[#This Row],[2023/24 To - Total]]","v":0},{"$f":"Dataset[[#This Row],[2024/25 Baseline]]+Dataset[[#This Row],[2024/25 From - Total]]+Dataset[[#This Row],[2024/25 To - Total]]","v":0},{"$f":"Dataset[[#This Row],[2025/26 Baseline]]+Dataset[[#This Row],[2025/26 From - Total]]+Dataset[[#This Row],[2025/26 To - Total]]","v":0}]
["NAT|Non-transfer item","2|Inventory: Learner and teacher support material","2023_24","MTEF2023",2,1,3,796,179,"02","01","03","000796","000179","02|01|03",1,1,2,25,25,"01|01|02|25|25","National","Parliament","Administration","Corporate and Support Services","Non-transfer item","Current","Current payments","Goods and services","Inventory: Learner and teacher support material","Inventory: Learner and teacher support material","General public services","Executive and legislative organs","NAT",0,0,0,0,0,0,0,0,0,0,0,null,null,null,null,null,null,null,null,null,null,null,null,null,null,null,null,null,null,null,null,null,null,null,null,null,null,null,null,null,null,{"$f":"Dataset[[#This Row],[2023/24 From - Spending review Topic 1]]+Dataset[[#This Row],[2023/24 From - Spending review Topic 2]]+Dataset[[#This Row],[2023/24 From - Spending review Topic 3]]+Dataset[[#This Row],[2023/24 From - Spending review Topic 4]]+Dataset[[#This Row],[2023/24 From - Other reallocations]]","v":0},{"$f":"Dataset[[#This Row],[2024/25 From - Spending review Topic 1]]+Dataset[[#This Row],[2024/25 From - Spending review Topic 2]]+Dataset[[#This Row],[2024/25 From - Spending review Topic 3]]+Dataset[[#This Row],[2024/25 From - Spending review Topic 4]]+Dataset[[#This Row],[2024/25 From - Other reallocations]]","v":0},{"$f":"Dataset[[#This Row],[2025/26 From - Spending review Topic 1]]+Dataset[[#This Row],[2025/26 From - Spending review Topic 2]]+Dataset[[#This Row],[2025/26 From - Spending review Topic 3]]+Dataset[[#This Row],[2025/26 From - Spending review Topic 4]]+Dataset[[#This Row],[2025/26 From - Other reallocations]]","v":0},{"$f":"Dataset[[#This Row],[2023/24 To - Spending review Topic 1]]+Dataset[[#This Row],[2023/24 To - Spending review Topic 2]]+Dataset[[#This Row],[2023/24 To - Spending review Topic 3]]+Dataset[[#This Row],[2023/24 To - Spending review Topic 4]]+Dataset[[#This Row],[2023/24 To - Other reallocations]]","v":0},{"$f":"Dataset[[#This Row],[2024/25 To - Spending review Topic 1]]+Dataset[[#This Row],[2024/25 To - Spending review Topic 2]]+Dataset[[#This Row],[2024/25 To - Spending review Topic 3]]+Dataset[[#This Row],[2024/25 To - Spending review Topic 4]]+Dataset[[#This Row],[2024/25 To - Other reallocations]]","v":0},{"$f":"Dataset[[#This Row],[2025/26 To - Spending review Topic 1]]+Dataset[[#This Row],[2025/26 To - Spending review Topic 2]]+Dataset[[#This Row],[2025/26 To - Spending review Topic 3]]+Dataset[[#This Row],[2025/26 To - Spending review Topic 4]]+Dataset[[#This Row],[2025/26 To - Other reallocations]]","v":0},{"$f":"Dataset[[#This Row],[2023/24 Baseline]]+Dataset[[#This Row],[2023/24 From - Total]]+Dataset[[#This Row],[2023/24 To - Total]]","v":0},{"$f":"Dataset[[#This Row],[2024/25 Baseline]]+Dataset[[#This Row],[2024/25 From - Total]]+Dataset[[#This Row],[2024/25 To - Total]]","v":0},{"$f":"Dataset[[#This Row],[2025/26 Baseline]]+Dataset[[#This Row],[2025/26 From - Total]]+Dataset[[#This Row],[2025/26 To - Total]]","v":0}]
["NAT|Non-transfer item","2|Inventory: Materials and supplies","2023_24","MTEF2023",2,1,3,797,180,"02","01","03","000797","000180","02|01|03",1,1,2,26,26,"01|01|02|26|26","National","Parliament","Administration","Corporate and Support Services","Non-transfer item","Current","Current payments","Goods and services","Inventory: Materials and supplies","Inventory: Materials and supplies","General public services","Executive and legislative organs","NAT",0,0,0,0,0,0,0,0,0,0,0,null,null,null,null,null,null,null,null,null,null,null,null,null,null,null,null,null,null,null,null,null,null,null,null,null,null,null,null,null,null,{"$f":"Dataset[[#This Row],[2023/24 From - Spending review Topic 1]]+Dataset[[#This Row],[2023/24 From - Spending review Topic 2]]+Dataset[[#This Row],[2023/24 From - Spending review Topic 3]]+Dataset[[#This Row],[2023/24 From - Spending review Topic 4]]+Dataset[[#This Row],[2023/24 From - Other reallocations]]","v":0},{"$f":"Dataset[[#This Row],[2024/25 From - Spending review Topic 1]]+Dataset[[#This Row],[2024/25 From - Spending review Topic 2]]+Dataset[[#This Row],[2024/25 From - Spending review Topic 3]]+Dataset[[#This Row],[2024/25 From - Spending review Topic 4]]+Dataset[[#This Row],[2024/25 From - Other reallocations]]","v":0},{"$f":"Dataset[[#This Row],[2025/26 From - Spending review Topic 1]]+Dataset[[#This Row],[2025/26 From - Spending review Topic 2]]+Dataset[[#This Row],[2025/26 From - Spending review Topic 3]]+Dataset[[#This Row],[2025/26 From - Spending review Topic 4]]+Dataset[[#This Row],[2025/26 From - Other reallocations]]","v":0},{"$f":"Dataset[[#This Row],[2023/24 To - Spending review Topic 1]]+Dataset[[#This Row],[2023/24 To - Spending review Topic 2]]+Dataset[[#This Row],[2023/24 To - Spending review Topic 3]]+Dataset[[#This Row],[2023/24 To - Spending review Topic 4]]+Dataset[[#This Row],[2023/24 To - Other reallocations]]","v":0},{"$f":"Dataset[[#This Row],[2024/25 To - Spending review Topic 1]]+Dataset[[#This Row],[2024/25 To - Spending review Topic 2]]+Dataset[[#This Row],[2024/25 To - Spending review Topic 3]]+Dataset[[#This Row],[2024/25 To - Spending review Topic 4]]+Dataset[[#This Row],[2024/25 To - Other reallocations]]","v":0},{"$f":"Dataset[[#This Row],[2025/26 To - Spending review Topic 1]]+Dataset[[#This Row],[2025/26 To - Spending review Topic 2]]+Dataset[[#This Row],[2025/26 To - Spending review Topic 3]]+Dataset[[#This Row],[2025/26 To - Spending review Topic 4]]+Dataset[[#This Row],[2025/26 To - Other reallocations]]","v":0},{"$f":"Dataset[[#This Row],[2023/24 Baseline]]+Dataset[[#This Row],[2023/24 From - Total]]+Dataset[[#This Row],[2023/24 To - Total]]","v":0},{"$f":"Dataset[[#This Row],[2024/25 Baseline]]+Dataset[[#This Row],[2024/25 From - Total]]+Dataset[[#This Row],[2024/25 To - Total]]","v":0},{"$f":"Dataset[[#This Row],[2025/26 Baseline]]+Dataset[[#This Row],[2025/26 From - Total]]+Dataset[[#This Row],[2025/26 To - Total]]","v":0}]
["NAT|Non-transfer item","2|Inventory: Medical supplies","2023_24","MTEF2023",2,1,3,798,181,"02","01","03","000798","000181","02|01|03",1,1,2,27,27,"01|01|02|27|27","National","Parliament","Administration","Corporate and Support Services","Non-transfer item","Current","Current payments","Goods and services","Inventory: Medical supplies","Inventory: Medical supplies","General public services","Executive and legislative organs","NAT",0,0,0,0,0,0,0,0,0,0,0,null,null,null,null,null,null,null,null,null,null,null,null,null,null,null,null,null,null,null,null,null,null,null,null,null,null,null,null,null,null,{"$f":"Dataset[[#This Row],[2023/24 From - Spending review Topic 1]]+Dataset[[#This Row],[2023/24 From - Spending review Topic 2]]+Dataset[[#This Row],[2023/24 From - Spending review Topic 3]]+Dataset[[#This Row],[2023/24 From - Spending review Topic 4]]+Dataset[[#This Row],[2023/24 From - Other reallocations]]","v":0},{"$f":"Dataset[[#This Row],[2024/25 From - Spending review Topic 1]]+Dataset[[#This Row],[2024/25 From - Spending review Topic 2]]+Dataset[[#This Row],[2024/25 From - Spending review Topic 3]]+Dataset[[#This Row],[2024/25 From - Spending review Topic 4]]+Dataset[[#This Row],[2024/25 From - Other reallocations]]","v":0},{"$f":"Dataset[[#This Row],[2025/26 From - Spending review Topic 1]]+Dataset[[#This Row],[2025/26 From - Spending review Topic 2]]+Dataset[[#This Row],[2025/26 From - Spending review Topic 3]]+Dataset[[#This Row],[2025/26 From - Spending review Topic 4]]+Dataset[[#This Row],[2025/26 From - Other reallocations]]","v":0},{"$f":"Dataset[[#This Row],[2023/24 To - Spending review Topic 1]]+Dataset[[#This Row],[2023/24 To - Spending review Topic 2]]+Dataset[[#This Row],[2023/24 To - Spending review Topic 3]]+Dataset[[#This Row],[2023/24 To - Spending review Topic 4]]+Dataset[[#This Row],[2023/24 To - Other reallocations]]","v":0},{"$f":"Dataset[[#This Row],[2024/25 To - Spending review Topic 1]]+Dataset[[#This Row],[2024/25 To - Spending review Topic 2]]+Dataset[[#This Row],[2024/25 To - Spending review Topic 3]]+Dataset[[#This Row],[2024/25 To - Spending review Topic 4]]+Dataset[[#This Row],[2024/25 To - Other reallocations]]","v":0},{"$f":"Dataset[[#This Row],[2025/26 To - Spending review Topic 1]]+Dataset[[#This Row],[2025/26 To - Spending review Topic 2]]+Dataset[[#This Row],[2025/26 To - Spending review Topic 3]]+Dataset[[#This Row],[2025/26 To - Spending review Topic 4]]+Dataset[[#This Row],[2025/26 To - Other reallocations]]","v":0},{"$f":"Dataset[[#This Row],[2023/24 Baseline]]+Dataset[[#This Row],[2023/24 From - Total]]+Dataset[[#This Row],[2023/24 To - Total]]","v":0},{"$f":"Dataset[[#This Row],[2024/25 Baseline]]+Dataset[[#This Row],[2024/25 From - Total]]+Dataset[[#This Row],[2024/25 To - Total]]","v":0},{"$f":"Dataset[[#This Row],[2025/26 Baseline]]+Dataset[[#This Row],[2025/26 From - Total]]+Dataset[[#This Row],[2025/26 To - Total]]","v":0}]
["NAT|Non-transfer item","2|Inventory: Medicine","2023_24","MTEF2023",2,1,3,799,182,"02","01","03","000799","000182","02|01|03",1,1,2,28,28,"01|01|02|28|28","National","Parliament","Administration","Corporate and Support Services","Non-transfer item","Current","Current payments","Goods and services","Inventory: Medicine","Inventory: Medicine","General public services","Executive and legislative organs","NAT",0,0,0,0,0,0,0,0,0,0,0,null,null,null,null,null,null,null,null,null,null,null,null,null,null,null,null,null,null,null,null,null,null,null,null,null,null,null,null,null,null,{"$f":"Dataset[[#This Row],[2023/24 From - Spending review Topic 1]]+Dataset[[#This Row],[2023/24 From - Spending review Topic 2]]+Dataset[[#This Row],[2023/24 From - Spending review Topic 3]]+Dataset[[#This Row],[2023/24 From - Spending review Topic 4]]+Dataset[[#This Row],[2023/24 From - Other reallocations]]","v":0},{"$f":"Dataset[[#This Row],[2024/25 From - Spending review Topic 1]]+Dataset[[#This Row],[2024/25 From - Spending review Topic 2]]+Dataset[[#This Row],[2024/25 From - Spending review Topic 3]]+Dataset[[#This Row],[2024/25 From - Spending review Topic 4]]+Dataset[[#This Row],[2024/25 From - Other reallocations]]","v":0},{"$f":"Dataset[[#This Row],[2025/26 From - Spending review Topic 1]]+Dataset[[#This Row],[2025/26 From - Spending review Topic 2]]+Dataset[[#This Row],[2025/26 From - Spending review Topic 3]]+Dataset[[#This Row],[2025/26 From - Spending review Topic 4]]+Dataset[[#This Row],[2025/26 From - Other reallocations]]","v":0},{"$f":"Dataset[[#This Row],[2023/24 To - Spending review Topic 1]]+Dataset[[#This Row],[2023/24 To - Spending review Topic 2]]+Dataset[[#This Row],[2023/24 To - Spending review Topic 3]]+Dataset[[#This Row],[2023/24 To - Spending review Topic 4]]+Dataset[[#This Row],[2023/24 To - Other reallocations]]","v":0},{"$f":"Dataset[[#This Row],[2024/25 To - Spending review Topic 1]]+Dataset[[#This Row],[2024/25 To - Spending review Topic 2]]+Dataset[[#This Row],[2024/25 To - Spending review Topic 3]]+Dataset[[#This Row],[2024/25 To - Spending review Topic 4]]+Dataset[[#This Row],[2024/25 To - Other reallocations]]","v":0},{"$f":"Dataset[[#This Row],[2025/26 To - Spending review Topic 1]]+Dataset[[#This Row],[2025/26 To - Spending review Topic 2]]+Dataset[[#This Row],[2025/26 To - Spending review Topic 3]]+Dataset[[#This Row],[2025/26 To - Spending review Topic 4]]+Dataset[[#This Row],[2025/26 To - Other reallocations]]","v":0},{"$f":"Dataset[[#This Row],[2023/24 Baseline]]+Dataset[[#This Row],[2023/24 From - Total]]+Dataset[[#This Row],[2023/24 To - Total]]","v":0},{"$f":"Dataset[[#This Row],[2024/25 Baseline]]+Dataset[[#This Row],[2024/25 From - Total]]+Dataset[[#This Row],[2024/25 To - Total]]","v":0},{"$f":"Dataset[[#This Row],[2025/26 Baseline]]+Dataset[[#This Row],[2025/26 From - Total]]+Dataset[[#This Row],[2025/26 To - Total]]","v":0}]
["NAT|Non-transfer item","2|Medsas inventory interface","2023_24","MTEF2023",2,1,3,800,183,"02","01","03","000800","000183","02|01|03",1,1,2,29,29,"01|01|02|29|29","National","Parliament","Administration","Corporate and Support Services","Non-transfer item","Current","Current payments","Goods and services","Medsas inventory interface","Medsas inventory interface","General public services","Executive and legislative organs","NAT",0,0,0,0,0,0,0,0,0,0,0,null,null,null,null,null,null,null,null,null,null,null,null,null,null,null,null,null,null,null,null,null,null,null,null,null,null,null,null,null,null,{"$f":"Dataset[[#This Row],[2023/24 From - Spending review Topic 1]]+Dataset[[#This Row],[2023/24 From - Spending review Topic 2]]+Dataset[[#This Row],[2023/24 From - Spending review Topic 3]]+Dataset[[#This Row],[2023/24 From - Spending review Topic 4]]+Dataset[[#This Row],[2023/24 From - Other reallocations]]","v":0},{"$f":"Dataset[[#This Row],[2024/25 From - Spending review Topic 1]]+Dataset[[#This Row],[2024/25 From - Spending review Topic 2]]+Dataset[[#This Row],[2024/25 From - Spending review Topic 3]]+Dataset[[#This Row],[2024/25 From - Spending review Topic 4]]+Dataset[[#This Row],[2024/25 From - Other reallocations]]","v":0},{"$f":"Dataset[[#This Row],[2025/26 From - Spending review Topic 1]]+Dataset[[#This Row],[2025/26 From - Spending review Topic 2]]+Dataset[[#This Row],[2025/26 From - Spending review Topic 3]]+Dataset[[#This Row],[2025/26 From - Spending review Topic 4]]+Dataset[[#This Row],[2025/26 From - Other reallocations]]","v":0},{"$f":"Dataset[[#This Row],[2023/24 To - Spending review Topic 1]]+Dataset[[#This Row],[2023/24 To - Spending review Topic 2]]+Dataset[[#This Row],[2023/24 To - Spending review Topic 3]]+Dataset[[#This Row],[2023/24 To - Spending review Topic 4]]+Dataset[[#This Row],[2023/24 To - Other reallocations]]","v":0},{"$f":"Dataset[[#This Row],[2024/25 To - Spending review Topic 1]]+Dataset[[#This Row],[2024/25 To - Spending review Topic 2]]+Dataset[[#This Row],[2024/25 To - Spending review Topic 3]]+Dataset[[#This Row],[2024/25 To - Spending review Topic 4]]+Dataset[[#This Row],[2024/25 To - Other reallocations]]","v":0},{"$f":"Dataset[[#This Row],[2025/26 To - Spending review Topic 1]]+Dataset[[#This Row],[2025/26 To - Spending review Topic 2]]+Dataset[[#This Row],[2025/26 To - Spending review Topic 3]]+Dataset[[#This Row],[2025/26 To - Spending review Topic 4]]+Dataset[[#This Row],[2025/26 To - Other reallocations]]","v":0},{"$f":"Dataset[[#This Row],[2023/24 Baseline]]+Dataset[[#This Row],[2023/24 From - Total]]+Dataset[[#This Row],[2023/24 To - Total]]","v":0},{"$f":"Dataset[[#This Row],[2024/25 Baseline]]+Dataset[[#This Row],[2024/25 From - Total]]+Dataset[[#This Row],[2024/25 To - Total]]","v":0},{"$f":"Dataset[[#This Row],[2025/26 Baseline]]+Dataset[[#This Row],[2025/26 From - Total]]+Dataset[[#This Row],[2025/26 To - Total]]","v":0}]
["NAT|Non-transfer item","2|Inventory: Other supplies","2023_24","MTEF2023",2,1,3,801,184,"02","01","03","000801","000184","02|01|03",1,1,2,30,30,"01|01|02|30|30","National","Parliament","Administration","Corporate and Support Services","Non-transfer item","Current","Current payments","Goods and services","Inventory: Other supplies","Inventory: Other supplies","General public services","Executive and legislative organs","NAT",0,0,0,0,0,0,0,0,0,0,0,null,null,null,null,null,null,null,null,null,null,null,null,null,null,null,null,null,null,null,null,null,null,null,null,null,null,null,null,null,null,{"$f":"Dataset[[#This Row],[2023/24 From - Spending review Topic 1]]+Dataset[[#This Row],[2023/24 From - Spending review Topic 2]]+Dataset[[#This Row],[2023/24 From - Spending review Topic 3]]+Dataset[[#This Row],[2023/24 From - Spending review Topic 4]]+Dataset[[#This Row],[2023/24 From - Other reallocations]]","v":0},{"$f":"Dataset[[#This Row],[2024/25 From - Spending review Topic 1]]+Dataset[[#This Row],[2024/25 From - Spending review Topic 2]]+Dataset[[#This Row],[2024/25 From - Spending review Topic 3]]+Dataset[[#This Row],[2024/25 From - Spending review Topic 4]]+Dataset[[#This Row],[2024/25 From - Other reallocations]]","v":0},{"$f":"Dataset[[#This Row],[2025/26 From - Spending review Topic 1]]+Dataset[[#This Row],[2025/26 From - Spending review Topic 2]]+Dataset[[#This Row],[2025/26 From - Spending review Topic 3]]+Dataset[[#This Row],[2025/26 From - Spending review Topic 4]]+Dataset[[#This Row],[2025/26 From - Other reallocations]]","v":0},{"$f":"Dataset[[#This Row],[2023/24 To - Spending review Topic 1]]+Dataset[[#This Row],[2023/24 To - Spending review Topic 2]]+Dataset[[#This Row],[2023/24 To - Spending review Topic 3]]+Dataset[[#This Row],[2023/24 To - Spending review Topic 4]]+Dataset[[#This Row],[2023/24 To - Other reallocations]]","v":0},{"$f":"Dataset[[#This Row],[2024/25 To - Spending review Topic 1]]+Dataset[[#This Row],[2024/25 To - Spending review Topic 2]]+Dataset[[#This Row],[2024/25 To - Spending review Topic 3]]+Dataset[[#This Row],[2024/25 To - Spending review Topic 4]]+Dataset[[#This Row],[2024/25 To - Other reallocations]]","v":0},{"$f":"Dataset[[#This Row],[2025/26 To - Spending review Topic 1]]+Dataset[[#This Row],[2025/26 To - Spending review Topic 2]]+Dataset[[#This Row],[2025/26 To - Spending review Topic 3]]+Dataset[[#This Row],[2025/26 To - Spending review Topic 4]]+Dataset[[#This Row],[2025/26 To - Other reallocations]]","v":0},{"$f":"Dataset[[#This Row],[2023/24 Baseline]]+Dataset[[#This Row],[2023/24 From - Total]]+Dataset[[#This Row],[2023/24 To - Total]]","v":0},{"$f":"Dataset[[#This Row],[2024/25 Baseline]]+Dataset[[#This Row],[2024/25 From - Total]]+Dataset[[#This Row],[2024/25 To - Total]]","v":0},{"$f":"Dataset[[#This Row],[2025/26 Baseline]]+Dataset[[#This Row],[2025/26 From - Total]]+Dataset[[#This Row],[2025/26 To - Total]]","v":0}]
["NAT|Non-transfer item","2|Consumable supplies","2023_24","MTEF2023",2,1,3,802,185,"02","01","03","000802","000185","02|01|03",1,1,2,31,31,"01|01|02|31|31","National","Parliament","Administration","Corporate and Support Services","Non-transfer item","Current","Current payments","Goods and services","Consumable supplies","Consumable supplies","General public services","Executive and legislative organs","NAT",0,0,0,0,0,0,0,0,0,0,0,null,null,null,null,null,null,null,null,null,null,null,null,null,null,null,null,null,null,null,null,null,null,null,null,null,null,null,null,null,null,{"$f":"Dataset[[#This Row],[2023/24 From - Spending review Topic 1]]+Dataset[[#This Row],[2023/24 From - Spending review Topic 2]]+Dataset[[#This Row],[2023/24 From - Spending review Topic 3]]+Dataset[[#This Row],[2023/24 From - Spending review Topic 4]]+Dataset[[#This Row],[2023/24 From - Other reallocations]]","v":0},{"$f":"Dataset[[#This Row],[2024/25 From - Spending review Topic 1]]+Dataset[[#This Row],[2024/25 From - Spending review Topic 2]]+Dataset[[#This Row],[2024/25 From - Spending review Topic 3]]+Dataset[[#This Row],[2024/25 From - Spending review Topic 4]]+Dataset[[#This Row],[2024/25 From - Other reallocations]]","v":0},{"$f":"Dataset[[#This Row],[2025/26 From - Spending review Topic 1]]+Dataset[[#This Row],[2025/26 From - Spending review Topic 2]]+Dataset[[#This Row],[2025/26 From - Spending review Topic 3]]+Dataset[[#This Row],[2025/26 From - Spending review Topic 4]]+Dataset[[#This Row],[2025/26 From - Other reallocations]]","v":0},{"$f":"Dataset[[#This Row],[2023/24 To - Spending review Topic 1]]+Dataset[[#This Row],[2023/24 To - Spending review Topic 2]]+Dataset[[#This Row],[2023/24 To - Spending review Topic 3]]+Dataset[[#This Row],[2023/24 To - Spending review Topic 4]]+Dataset[[#This Row],[2023/24 To - Other reallocations]]","v":0},{"$f":"Dataset[[#This Row],[2024/25 To - Spending review Topic 1]]+Dataset[[#This Row],[2024/25 To - Spending review Topic 2]]+Dataset[[#This Row],[2024/25 To - Spending review Topic 3]]+Dataset[[#This Row],[2024/25 To - Spending review Topic 4]]+Dataset[[#This Row],[2024/25 To - Other reallocations]]","v":0},{"$f":"Dataset[[#This Row],[2025/26 To - Spending review Topic 1]]+Dataset[[#This Row],[2025/26 To - Spending review Topic 2]]+Dataset[[#This Row],[2025/26 To - Spending review Topic 3]]+Dataset[[#This Row],[2025/26 To - Spending review Topic 4]]+Dataset[[#This Row],[2025/26 To - Other reallocations]]","v":0},{"$f":"Dataset[[#This Row],[2023/24 Baseline]]+Dataset[[#This Row],[2023/24 From - Total]]+Dataset[[#This Row],[2023/24 To - Total]]","v":0},{"$f":"Dataset[[#This Row],[2024/25 Baseline]]+Dataset[[#This Row],[2024/25 From - Total]]+Dataset[[#This Row],[2024/25 To - Total]]","v":0},{"$f":"Dataset[[#This Row],[2025/26 Baseline]]+Dataset[[#This Row],[2025/26 From - Total]]+Dataset[[#This Row],[2025/26 To - Total]]","v":0}]
["NAT|Non-transfer item","2|Consumables: Stationery, printing and office supplies","2023_24","MTEF2023",2,1,3,803,186,"02","01","03","000803","000186","02|01|03",1,1,2,32,32,"01|01|02|32|32","National","Parliament","Administration","Corporate and Support Services","Non-transfer item","Current","Current payments","Goods and services","Consumables: Stationery, printing and office supplies","Consumables: Stationery, printing and office supplies","General public services","Executive and legislative organs","NAT",4286,2694,3712,3961,3961,3961,0,4071,4086,4270,4461,null,null,null,null,null,null,null,null,null,null,null,null,null,null,null,null,null,null,null,null,null,null,null,null,null,null,null,null,null,null,{"$f":"Dataset[[#This Row],[2023/24 From - Spending review Topic 1]]+Dataset[[#This Row],[2023/24 From - Spending review Topic 2]]+Dataset[[#This Row],[2023/24 From - Spending review Topic 3]]+Dataset[[#This Row],[2023/24 From - Spending review Topic 4]]+Dataset[[#This Row],[2023/24 From - Other reallocations]]","v":0},{"$f":"Dataset[[#This Row],[2024/25 From - Spending review Topic 1]]+Dataset[[#This Row],[2024/25 From - Spending review Topic 2]]+Dataset[[#This Row],[2024/25 From - Spending review Topic 3]]+Dataset[[#This Row],[2024/25 From - Spending review Topic 4]]+Dataset[[#This Row],[2024/25 From - Other reallocations]]","v":0},{"$f":"Dataset[[#This Row],[2025/26 From - Spending review Topic 1]]+Dataset[[#This Row],[2025/26 From - Spending review Topic 2]]+Dataset[[#This Row],[2025/26 From - Spending review Topic 3]]+Dataset[[#This Row],[2025/26 From - Spending review Topic 4]]+Dataset[[#This Row],[2025/26 From - Other reallocations]]","v":0},{"$f":"Dataset[[#This Row],[2023/24 To - Spending review Topic 1]]+Dataset[[#This Row],[2023/24 To - Spending review Topic 2]]+Dataset[[#This Row],[2023/24 To - Spending review Topic 3]]+Dataset[[#This Row],[2023/24 To - Spending review Topic 4]]+Dataset[[#This Row],[2023/24 To - Other reallocations]]","v":0},{"$f":"Dataset[[#This Row],[2024/25 To - Spending review Topic 1]]+Dataset[[#This Row],[2024/25 To - Spending review Topic 2]]+Dataset[[#This Row],[2024/25 To - Spending review Topic 3]]+Dataset[[#This Row],[2024/25 To - Spending review Topic 4]]+Dataset[[#This Row],[2024/25 To - Other reallocations]]","v":0},{"$f":"Dataset[[#This Row],[2025/26 To - Spending review Topic 1]]+Dataset[[#This Row],[2025/26 To - Spending review Topic 2]]+Dataset[[#This Row],[2025/26 To - Spending review Topic 3]]+Dataset[[#This Row],[2025/26 To - Spending review Topic 4]]+Dataset[[#This Row],[2025/26 To - Other reallocations]]","v":0},{"$f":"Dataset[[#This Row],[2023/24 Baseline]]+Dataset[[#This Row],[2023/24 From - Total]]+Dataset[[#This Row],[2023/24 To - Total]]","v":4086},{"$f":"Dataset[[#This Row],[2024/25 Baseline]]+Dataset[[#This Row],[2024/25 From - Total]]+Dataset[[#This Row],[2024/25 To - Total]]","v":4270},{"$f":"Dataset[[#This Row],[2025/26 Baseline]]+Dataset[[#This Row],[2025/26 From - Total]]+Dataset[[#This Row],[2025/26 To - Total]]","v":4461}]
["NAT|Non-transfer item","2|Operating leases","2023_24","MTEF2023",2,1,3,804,187,"02","01","03","000804","000187","02|01|03",1,1,2,33,33,"01|01|02|33|33","National","Parliament","Administration","Corporate and Support Services","Non-transfer item","Current","Current payments","Goods and services","Operating leases","Operating leases","General public services","Executive and legislative organs","NAT",0,0,0,0,0,0,0,0,0,0,0,null,null,null,null,null,null,null,null,null,null,null,null,null,null,null,null,null,null,null,null,null,null,null,null,null,null,null,null,null,null,{"$f":"Dataset[[#This Row],[2023/24 From - Spending review Topic 1]]+Dataset[[#This Row],[2023/24 From - Spending review Topic 2]]+Dataset[[#This Row],[2023/24 From - Spending review Topic 3]]+Dataset[[#This Row],[2023/24 From - Spending review Topic 4]]+Dataset[[#This Row],[2023/24 From - Other reallocations]]","v":0},{"$f":"Dataset[[#This Row],[2024/25 From - Spending review Topic 1]]+Dataset[[#This Row],[2024/25 From - Spending review Topic 2]]+Dataset[[#This Row],[2024/25 From - Spending review Topic 3]]+Dataset[[#This Row],[2024/25 From - Spending review Topic 4]]+Dataset[[#This Row],[2024/25 From - Other reallocations]]","v":0},{"$f":"Dataset[[#This Row],[2025/26 From - Spending review Topic 1]]+Dataset[[#This Row],[2025/26 From - Spending review Topic 2]]+Dataset[[#This Row],[2025/26 From - Spending review Topic 3]]+Dataset[[#This Row],[2025/26 From - Spending review Topic 4]]+Dataset[[#This Row],[2025/26 From - Other reallocations]]","v":0},{"$f":"Dataset[[#This Row],[2023/24 To - Spending review Topic 1]]+Dataset[[#This Row],[2023/24 To - Spending review Topic 2]]+Dataset[[#This Row],[2023/24 To - Spending review Topic 3]]+Dataset[[#This Row],[2023/24 To - Spending review Topic 4]]+Dataset[[#This Row],[2023/24 To - Other reallocations]]","v":0},{"$f":"Dataset[[#This Row],[2024/25 To - Spending review Topic 1]]+Dataset[[#This Row],[2024/25 To - Spending review Topic 2]]+Dataset[[#This Row],[2024/25 To - Spending review Topic 3]]+Dataset[[#This Row],[2024/25 To - Spending review Topic 4]]+Dataset[[#This Row],[2024/25 To - Other reallocations]]","v":0},{"$f":"Dataset[[#This Row],[2025/26 To - Spending review Topic 1]]+Dataset[[#This Row],[2025/26 To - Spending review Topic 2]]+Dataset[[#This Row],[2025/26 To - Spending review Topic 3]]+Dataset[[#This Row],[2025/26 To - Spending review Topic 4]]+Dataset[[#This Row],[2025/26 To - Other reallocations]]","v":0},{"$f":"Dataset[[#This Row],[2023/24 Baseline]]+Dataset[[#This Row],[2023/24 From - Total]]+Dataset[[#This Row],[2023/24 To - Total]]","v":0},{"$f":"Dataset[[#This Row],[2024/25 Baseline]]+Dataset[[#This Row],[2024/25 From - Total]]+Dataset[[#This Row],[2024/25 To - Total]]","v":0},{"$f":"Dataset[[#This Row],[2025/26 Baseline]]+Dataset[[#This Row],[2025/26 From - Total]]+Dataset[[#This Row],[2025/26 To - Total]]","v":0}]
["NAT|Non-transfer item","2|Rental and hiring","2023_24","MTEF2023",2,1,3,805,188,"02","01","03","000805","000188","02|01|03",1,1,2,34,34,"01|01|02|34|34","National","Parliament","Administration","Corporate and Support Services","Non-transfer item","Current","Current payments","Goods and services","Rental and hiring","Rental and hiring","General public services","Executive and legislative organs","NAT",1399,1441,1465,1503,1503,1503,0,1544,1549,1619,1692,null,null,null,null,null,null,null,null,null,null,null,null,null,null,null,null,null,null,null,null,null,null,null,null,null,null,null,null,null,null,{"$f":"Dataset[[#This Row],[2023/24 From - Spending review Topic 1]]+Dataset[[#This Row],[2023/24 From - Spending review Topic 2]]+Dataset[[#This Row],[2023/24 From - Spending review Topic 3]]+Dataset[[#This Row],[2023/24 From - Spending review Topic 4]]+Dataset[[#This Row],[2023/24 From - Other reallocations]]","v":0},{"$f":"Dataset[[#This Row],[2024/25 From - Spending review Topic 1]]+Dataset[[#This Row],[2024/25 From - Spending review Topic 2]]+Dataset[[#This Row],[2024/25 From - Spending review Topic 3]]+Dataset[[#This Row],[2024/25 From - Spending review Topic 4]]+Dataset[[#This Row],[2024/25 From - Other reallocations]]","v":0},{"$f":"Dataset[[#This Row],[2025/26 From - Spending review Topic 1]]+Dataset[[#This Row],[2025/26 From - Spending review Topic 2]]+Dataset[[#This Row],[2025/26 From - Spending review Topic 3]]+Dataset[[#This Row],[2025/26 From - Spending review Topic 4]]+Dataset[[#This Row],[2025/26 From - Other reallocations]]","v":0},{"$f":"Dataset[[#This Row],[2023/24 To - Spending review Topic 1]]+Dataset[[#This Row],[2023/24 To - Spending review Topic 2]]+Dataset[[#This Row],[2023/24 To - Spending review Topic 3]]+Dataset[[#This Row],[2023/24 To - Spending review Topic 4]]+Dataset[[#This Row],[2023/24 To - Other reallocations]]","v":0},{"$f":"Dataset[[#This Row],[2024/25 To - Spending review Topic 1]]+Dataset[[#This Row],[2024/25 To - Spending review Topic 2]]+Dataset[[#This Row],[2024/25 To - Spending review Topic 3]]+Dataset[[#This Row],[2024/25 To - Spending review Topic 4]]+Dataset[[#This Row],[2024/25 To - Other reallocations]]","v":0},{"$f":"Dataset[[#This Row],[2025/26 To - Spending review Topic 1]]+Dataset[[#This Row],[2025/26 To - Spending review Topic 2]]+Dataset[[#This Row],[2025/26 To - Spending review Topic 3]]+Dataset[[#This Row],[2025/26 To - Spending review Topic 4]]+Dataset[[#This Row],[2025/26 To - Other reallocations]]","v":0},{"$f":"Dataset[[#This Row],[2023/24 Baseline]]+Dataset[[#This Row],[2023/24 From - Total]]+Dataset[[#This Row],[2023/24 To - Total]]","v":1549},{"$f":"Dataset[[#This Row],[2024/25 Baseline]]+Dataset[[#This Row],[2024/25 From - Total]]+Dataset[[#This Row],[2024/25 To - Total]]","v":1619},{"$f":"Dataset[[#This Row],[2025/26 Baseline]]+Dataset[[#This Row],[2025/26 From - Total]]+Dataset[[#This Row],[2025/26 To - Total]]","v":1692}]
["NAT|Non-transfer item","2|Property payments","2023_24","MTEF2023",2,1,3,806,189,"02","01","03","000806","000189","02|01|03",1,1,2,35,35,"01|01|02|35|35","National","Parliament","Administration","Corporate and Support Services","Non-transfer item","Current","Current payments","Goods and services","Property payments","Property payments","General public services","Executive and legislative organs","NAT",0,0,0,0,0,0,0,0,0,0,0,null,null,null,null,null,null,null,null,null,null,null,null,null,null,null,null,null,null,null,null,null,null,null,null,null,null,null,null,null,null,{"$f":"Dataset[[#This Row],[2023/24 From - Spending review Topic 1]]+Dataset[[#This Row],[2023/24 From - Spending review Topic 2]]+Dataset[[#This Row],[2023/24 From - Spending review Topic 3]]+Dataset[[#This Row],[2023/24 From - Spending review Topic 4]]+Dataset[[#This Row],[2023/24 From - Other reallocations]]","v":0},{"$f":"Dataset[[#This Row],[2024/25 From - Spending review Topic 1]]+Dataset[[#This Row],[2024/25 From - Spending review Topic 2]]+Dataset[[#This Row],[2024/25 From - Spending review Topic 3]]+Dataset[[#This Row],[2024/25 From - Spending review Topic 4]]+Dataset[[#This Row],[2024/25 From - Other reallocations]]","v":0},{"$f":"Dataset[[#This Row],[2025/26 From - Spending review Topic 1]]+Dataset[[#This Row],[2025/26 From - Spending review Topic 2]]+Dataset[[#This Row],[2025/26 From - Spending review Topic 3]]+Dataset[[#This Row],[2025/26 From - Spending review Topic 4]]+Dataset[[#This Row],[2025/26 From - Other reallocations]]","v":0},{"$f":"Dataset[[#This Row],[2023/24 To - Spending review Topic 1]]+Dataset[[#This Row],[2023/24 To - Spending review Topic 2]]+Dataset[[#This Row],[2023/24 To - Spending review Topic 3]]+Dataset[[#This Row],[2023/24 To - Spending review Topic 4]]+Dataset[[#This Row],[2023/24 To - Other reallocations]]","v":0},{"$f":"Dataset[[#This Row],[2024/25 To - Spending review Topic 1]]+Dataset[[#This Row],[2024/25 To - Spending review Topic 2]]+Dataset[[#This Row],[2024/25 To - Spending review Topic 3]]+Dataset[[#This Row],[2024/25 To - Spending review Topic 4]]+Dataset[[#This Row],[2024/25 To - Other reallocations]]","v":0},{"$f":"Dataset[[#This Row],[2025/26 To - Spending review Topic 1]]+Dataset[[#This Row],[2025/26 To - Spending review Topic 2]]+Dataset[[#This Row],[2025/26 To - Spending review Topic 3]]+Dataset[[#This Row],[2025/26 To - Spending review Topic 4]]+Dataset[[#This Row],[2025/26 To - Other reallocations]]","v":0},{"$f":"Dataset[[#This Row],[2023/24 Baseline]]+Dataset[[#This Row],[2023/24 From - Total]]+Dataset[[#This Row],[2023/24 To - Total]]","v":0},{"$f":"Dataset[[#This Row],[2024/25 Baseline]]+Dataset[[#This Row],[2024/25 From - Total]]+Dataset[[#This Row],[2024/25 To - Total]]","v":0},{"$f":"Dataset[[#This Row],[2025/26 Baseline]]+Dataset[[#This Row],[2025/26 From - Total]]+Dataset[[#This Row],[2025/26 To - Total]]","v":0}]
["NAT|Non-transfer item","2|Transport provided: Departmental activity","2023_24","MTEF2023",2,1,3,807,190,"02","01","03","000807","000190","02|01|03",1,1,2,36,36,"01|01|02|36|36","National","Parliament","Administration","Corporate and Support Services","Non-transfer item","Current","Current payments","Goods and services","Transport provided: Departmental activity","Transport provided: Departmental activity","General public services","Executive and legislative organs","NAT",660,197,235,245,245,245,0,252,253,264,276,null,null,null,null,null,null,null,null,null,null,null,null,null,null,null,null,null,null,null,null,null,null,null,null,null,null,null,null,null,null,{"$f":"Dataset[[#This Row],[2023/24 From - Spending review Topic 1]]+Dataset[[#This Row],[2023/24 From - Spending review Topic 2]]+Dataset[[#This Row],[2023/24 From - Spending review Topic 3]]+Dataset[[#This Row],[2023/24 From - Spending review Topic 4]]+Dataset[[#This Row],[2023/24 From - Other reallocations]]","v":0},{"$f":"Dataset[[#This Row],[2024/25 From - Spending review Topic 1]]+Dataset[[#This Row],[2024/25 From - Spending review Topic 2]]+Dataset[[#This Row],[2024/25 From - Spending review Topic 3]]+Dataset[[#This Row],[2024/25 From - Spending review Topic 4]]+Dataset[[#This Row],[2024/25 From - Other reallocations]]","v":0},{"$f":"Dataset[[#This Row],[2025/26 From - Spending review Topic 1]]+Dataset[[#This Row],[2025/26 From - Spending review Topic 2]]+Dataset[[#This Row],[2025/26 From - Spending review Topic 3]]+Dataset[[#This Row],[2025/26 From - Spending review Topic 4]]+Dataset[[#This Row],[2025/26 From - Other reallocations]]","v":0},{"$f":"Dataset[[#This Row],[2023/24 To - Spending review Topic 1]]+Dataset[[#This Row],[2023/24 To - Spending review Topic 2]]+Dataset[[#This Row],[2023/24 To - Spending review Topic 3]]+Dataset[[#This Row],[2023/24 To - Spending review Topic 4]]+Dataset[[#This Row],[2023/24 To - Other reallocations]]","v":0},{"$f":"Dataset[[#This Row],[2024/25 To - Spending review Topic 1]]+Dataset[[#This Row],[2024/25 To - Spending review Topic 2]]+Dataset[[#This Row],[2024/25 To - Spending review Topic 3]]+Dataset[[#This Row],[2024/25 To - Spending review Topic 4]]+Dataset[[#This Row],[2024/25 To - Other reallocations]]","v":0},{"$f":"Dataset[[#This Row],[2025/26 To - Spending review Topic 1]]+Dataset[[#This Row],[2025/26 To - Spending review Topic 2]]+Dataset[[#This Row],[2025/26 To - Spending review Topic 3]]+Dataset[[#This Row],[2025/26 To - Spending review Topic 4]]+Dataset[[#This Row],[2025/26 To - Other reallocations]]","v":0},{"$f":"Dataset[[#This Row],[2023/24 Baseline]]+Dataset[[#This Row],[2023/24 From - Total]]+Dataset[[#This Row],[2023/24 To - Total]]","v":253},{"$f":"Dataset[[#This Row],[2024/25 Baseline]]+Dataset[[#This Row],[2024/25 From - Total]]+Dataset[[#This Row],[2024/25 To - Total]]","v":264},{"$f":"Dataset[[#This Row],[2025/26 Baseline]]+Dataset[[#This Row],[2025/26 From - Total]]+Dataset[[#This Row],[2025/26 To - Total]]","v":276}]
["NAT|Non-transfer item","2|Travel and subsistence","2023_24","MTEF2023",2,1,3,808,191,"02","01","03","000808","000191","02|01|03",1,1,2,37,37,"01|01|02|37|37","National","Parliament","Administration","Corporate and Support Services","Non-transfer item","Current","Current payments","Goods and services","Travel and subsistence","Travel and subsistence","General public services","Executive and legislative organs","NAT",26092,110501,36345,37602,37602,37602,0,38762,38911,40658,42479,null,null,null,null,null,null,null,null,null,null,null,null,null,null,null,null,null,null,null,null,null,null,null,null,null,null,null,null,null,null,{"$f":"Dataset[[#This Row],[2023/24 From - Spending review Topic 1]]+Dataset[[#This Row],[2023/24 From - Spending review Topic 2]]+Dataset[[#This Row],[2023/24 From - Spending review Topic 3]]+Dataset[[#This Row],[2023/24 From - Spending review Topic 4]]+Dataset[[#This Row],[2023/24 From - Other reallocations]]","v":0},{"$f":"Dataset[[#This Row],[2024/25 From - Spending review Topic 1]]+Dataset[[#This Row],[2024/25 From - Spending review Topic 2]]+Dataset[[#This Row],[2024/25 From - Spending review Topic 3]]+Dataset[[#This Row],[2024/25 From - Spending review Topic 4]]+Dataset[[#This Row],[2024/25 From - Other reallocations]]","v":0},{"$f":"Dataset[[#This Row],[2025/26 From - Spending review Topic 1]]+Dataset[[#This Row],[2025/26 From - Spending review Topic 2]]+Dataset[[#This Row],[2025/26 From - Spending review Topic 3]]+Dataset[[#This Row],[2025/26 From - Spending review Topic 4]]+Dataset[[#This Row],[2025/26 From - Other reallocations]]","v":0},{"$f":"Dataset[[#This Row],[2023/24 To - Spending review Topic 1]]+Dataset[[#This Row],[2023/24 To - Spending review Topic 2]]+Dataset[[#This Row],[2023/24 To - Spending review Topic 3]]+Dataset[[#This Row],[2023/24 To - Spending review Topic 4]]+Dataset[[#This Row],[2023/24 To - Other reallocations]]","v":0},{"$f":"Dataset[[#This Row],[2024/25 To - Spending review Topic 1]]+Dataset[[#This Row],[2024/25 To - Spending review Topic 2]]+Dataset[[#This Row],[2024/25 To - Spending review Topic 3]]+Dataset[[#This Row],[2024/25 To - Spending review Topic 4]]+Dataset[[#This Row],[2024/25 To - Other reallocations]]","v":0},{"$f":"Dataset[[#This Row],[2025/26 To - Spending review Topic 1]]+Dataset[[#This Row],[2025/26 To - Spending review Topic 2]]+Dataset[[#This Row],[2025/26 To - Spending review Topic 3]]+Dataset[[#This Row],[2025/26 To - Spending review Topic 4]]+Dataset[[#This Row],[2025/26 To - Other reallocations]]","v":0},{"$f":"Dataset[[#This Row],[2023/24 Baseline]]+Dataset[[#This Row],[2023/24 From - Total]]+Dataset[[#This Row],[2023/24 To - Total]]","v":38911},{"$f":"Dataset[[#This Row],[2024/25 Baseline]]+Dataset[[#This Row],[2024/25 From - Total]]+Dataset[[#This Row],[2024/25 To - Total]]","v":40658},{"$f":"Dataset[[#This Row],[2025/26 Baseline]]+Dataset[[#This Row],[2025/26 From - Total]]+Dataset[[#This Row],[2025/26 To - Total]]","v":42479}]
["NAT|Non-transfer item","2|Training and development","2023_24","MTEF2023",2,1,3,809,192,"02","01","03","000809","000192","02|01|03",1,1,2,38,38,"01|01|02|38|38","National","Parliament","Administration","Corporate and Support Services","Non-transfer item","Current","Current payments","Goods and services","Training and development","Training and development","General public services","Executive and legislative organs","NAT",4362,3741,7770,6218,6218,6218,0,6298,6322,6606,6902,null,null,null,null,null,null,null,null,null,null,null,null,null,null,null,null,null,null,null,null,null,null,null,null,null,null,null,null,null,null,{"$f":"Dataset[[#This Row],[2023/24 From - Spending review Topic 1]]+Dataset[[#This Row],[2023/24 From - Spending review Topic 2]]+Dataset[[#This Row],[2023/24 From - Spending review Topic 3]]+Dataset[[#This Row],[2023/24 From - Spending review Topic 4]]+Dataset[[#This Row],[2023/24 From - Other reallocations]]","v":0},{"$f":"Dataset[[#This Row],[2024/25 From - Spending review Topic 1]]+Dataset[[#This Row],[2024/25 From - Spending review Topic 2]]+Dataset[[#This Row],[2024/25 From - Spending review Topic 3]]+Dataset[[#This Row],[2024/25 From - Spending review Topic 4]]+Dataset[[#This Row],[2024/25 From - Other reallocations]]","v":0},{"$f":"Dataset[[#This Row],[2025/26 From - Spending review Topic 1]]+Dataset[[#This Row],[2025/26 From - Spending review Topic 2]]+Dataset[[#This Row],[2025/26 From - Spending review Topic 3]]+Dataset[[#This Row],[2025/26 From - Spending review Topic 4]]+Dataset[[#This Row],[2025/26 From - Other reallocations]]","v":0},{"$f":"Dataset[[#This Row],[2023/24 To - Spending review Topic 1]]+Dataset[[#This Row],[2023/24 To - Spending review Topic 2]]+Dataset[[#This Row],[2023/24 To - Spending review Topic 3]]+Dataset[[#This Row],[2023/24 To - Spending review Topic 4]]+Dataset[[#This Row],[2023/24 To - Other reallocations]]","v":0},{"$f":"Dataset[[#This Row],[2024/25 To - Spending review Topic 1]]+Dataset[[#This Row],[2024/25 To - Spending review Topic 2]]+Dataset[[#This Row],[2024/25 To - Spending review Topic 3]]+Dataset[[#This Row],[2024/25 To - Spending review Topic 4]]+Dataset[[#This Row],[2024/25 To - Other reallocations]]","v":0},{"$f":"Dataset[[#This Row],[2025/26 To - Spending review Topic 1]]+Dataset[[#This Row],[2025/26 To - Spending review Topic 2]]+Dataset[[#This Row],[2025/26 To - Spending review Topic 3]]+Dataset[[#This Row],[2025/26 To - Spending review Topic 4]]+Dataset[[#This Row],[2025/26 To - Other reallocations]]","v":0},{"$f":"Dataset[[#This Row],[2023/24 Baseline]]+Dataset[[#This Row],[2023/24 From - Total]]+Dataset[[#This Row],[2023/24 To - Total]]","v":6322},{"$f":"Dataset[[#This Row],[2024/25 Baseline]]+Dataset[[#This Row],[2024/25 From - Total]]+Dataset[[#This Row],[2024/25 To - Total]]","v":6606},{"$f":"Dataset[[#This Row],[2025/26 Baseline]]+Dataset[[#This Row],[2025/26 From - Total]]+Dataset[[#This Row],[2025/26 To - Total]]","v":6902}]
["NAT|Non-transfer item","2|Operating payments","2023_24","MTEF2023",2,1,3,810,193,"02","01","03","000810","000193","02|01|03",1,1,2,39,39,"01|01|02|39|39","National","Parliament","Administration","Corporate and Support Services","Non-transfer item","Current","Current payments","Goods and services","Operating payments","Operating payments","General public services","Executive and legislative organs","NAT",16345,14308,44358,53745,53745,53745,0,26872,40804,44050,46023,null,null,null,null,null,null,null,null,null,null,null,null,null,null,null,null,null,null,null,null,null,null,null,null,null,null,null,null,null,null,{"$f":"Dataset[[#This Row],[2023/24 From - Spending review Topic 1]]+Dataset[[#This Row],[2023/24 From - Spending review Topic 2]]+Dataset[[#This Row],[2023/24 From - Spending review Topic 3]]+Dataset[[#This Row],[2023/24 From - Spending review Topic 4]]+Dataset[[#This Row],[2023/24 From - Other reallocations]]","v":0},{"$f":"Dataset[[#This Row],[2024/25 From - Spending review Topic 1]]+Dataset[[#This Row],[2024/25 From - Spending review Topic 2]]+Dataset[[#This Row],[2024/25 From - Spending review Topic 3]]+Dataset[[#This Row],[2024/25 From - Spending review Topic 4]]+Dataset[[#This Row],[2024/25 From - Other reallocations]]","v":0},{"$f":"Dataset[[#This Row],[2025/26 From - Spending review Topic 1]]+Dataset[[#This Row],[2025/26 From - Spending review Topic 2]]+Dataset[[#This Row],[2025/26 From - Spending review Topic 3]]+Dataset[[#This Row],[2025/26 From - Spending review Topic 4]]+Dataset[[#This Row],[2025/26 From - Other reallocations]]","v":0},{"$f":"Dataset[[#This Row],[2023/24 To - Spending review Topic 1]]+Dataset[[#This Row],[2023/24 To - Spending review Topic 2]]+Dataset[[#This Row],[2023/24 To - Spending review Topic 3]]+Dataset[[#This Row],[2023/24 To - Spending review Topic 4]]+Dataset[[#This Row],[2023/24 To - Other reallocations]]","v":0},{"$f":"Dataset[[#This Row],[2024/25 To - Spending review Topic 1]]+Dataset[[#This Row],[2024/25 To - Spending review Topic 2]]+Dataset[[#This Row],[2024/25 To - Spending review Topic 3]]+Dataset[[#This Row],[2024/25 To - Spending review Topic 4]]+Dataset[[#This Row],[2024/25 To - Other reallocations]]","v":0},{"$f":"Dataset[[#This Row],[2025/26 To - Spending review Topic 1]]+Dataset[[#This Row],[2025/26 To - Spending review Topic 2]]+Dataset[[#This Row],[2025/26 To - Spending review Topic 3]]+Dataset[[#This Row],[2025/26 To - Spending review Topic 4]]+Dataset[[#This Row],[2025/26 To - Other reallocations]]","v":0},{"$f":"Dataset[[#This Row],[2023/24 Baseline]]+Dataset[[#This Row],[2023/24 From - Total]]+Dataset[[#This Row],[2023/24 To - Total]]","v":40804},{"$f":"Dataset[[#This Row],[2024/25 Baseline]]+Dataset[[#This Row],[2024/25 From - Total]]+Dataset[[#This Row],[2024/25 To - Total]]","v":44050},{"$f":"Dataset[[#This Row],[2025/26 Baseline]]+Dataset[[#This Row],[2025/26 From - Total]]+Dataset[[#This Row],[2025/26 To - Total]]","v":46023}]
["NAT|Non-transfer item","2|Venues and facilities","2023_24","MTEF2023",2,1,3,811,194,"02","01","03","000811","000194","02|01|03",1,1,2,40,40,"01|01|02|40|40","National","Parliament","Administration","Corporate and Support Services","Non-transfer item","Current","Current payments","Goods and services","Venues and facilities","Venues and facilities","General public services","Executive and legislative organs","NAT",1305,878,954,994,994,994,0,1023,1027,1073,1121,null,null,null,null,null,null,null,null,null,null,null,null,null,null,null,null,null,null,null,null,null,null,null,null,null,null,null,null,null,null,{"$f":"Dataset[[#This Row],[2023/24 From - Spending review Topic 1]]+Dataset[[#This Row],[2023/24 From - Spending review Topic 2]]+Dataset[[#This Row],[2023/24 From - Spending review Topic 3]]+Dataset[[#This Row],[2023/24 From - Spending review Topic 4]]+Dataset[[#This Row],[2023/24 From - Other reallocations]]","v":0},{"$f":"Dataset[[#This Row],[2024/25 From - Spending review Topic 1]]+Dataset[[#This Row],[2024/25 From - Spending review Topic 2]]+Dataset[[#This Row],[2024/25 From - Spending review Topic 3]]+Dataset[[#This Row],[2024/25 From - Spending review Topic 4]]+Dataset[[#This Row],[2024/25 From - Other reallocations]]","v":0},{"$f":"Dataset[[#This Row],[2025/26 From - Spending review Topic 1]]+Dataset[[#This Row],[2025/26 From - Spending review Topic 2]]+Dataset[[#This Row],[2025/26 From - Spending review Topic 3]]+Dataset[[#This Row],[2025/26 From - Spending review Topic 4]]+Dataset[[#This Row],[2025/26 From - Other reallocations]]","v":0},{"$f":"Dataset[[#This Row],[2023/24 To - Spending review Topic 1]]+Dataset[[#This Row],[2023/24 To - Spending review Topic 2]]+Dataset[[#This Row],[2023/24 To - Spending review Topic 3]]+Dataset[[#This Row],[2023/24 To - Spending review Topic 4]]+Dataset[[#This Row],[2023/24 To - Other reallocations]]","v":0},{"$f":"Dataset[[#This Row],[2024/25 To - Spending review Topic 1]]+Dataset[[#This Row],[2024/25 To - Spending review Topic 2]]+Dataset[[#This Row],[2024/25 To - Spending review Topic 3]]+Dataset[[#This Row],[2024/25 To - Spending review Topic 4]]+Dataset[[#This Row],[2024/25 To - Other reallocations]]","v":0},{"$f":"Dataset[[#This Row],[2025/26 To - Spending review Topic 1]]+Dataset[[#This Row],[2025/26 To - Spending review Topic 2]]+Dataset[[#This Row],[2025/26 To - Spending review Topic 3]]+Dataset[[#This Row],[2025/26 To - Spending review Topic 4]]+Dataset[[#This Row],[2025/26 To - Other reallocations]]","v":0},{"$f":"Dataset[[#This Row],[2023/24 Baseline]]+Dataset[[#This Row],[2023/24 From - Total]]+Dataset[[#This Row],[2023/24 To - Total]]","v":1027},{"$f":"Dataset[[#This Row],[2024/25 Baseline]]+Dataset[[#This Row],[2024/25 From - Total]]+Dataset[[#This Row],[2024/25 To - Total]]","v":1073},{"$f":"Dataset[[#This Row],[2025/26 Baseline]]+Dataset[[#This Row],[2025/26 From - Total]]+Dataset[[#This Row],[2025/26 To - Total]]","v":1121}]
["NAT|Non-transfer item","2|Interest (Incl. interest on unitary payments (PPP))","2023_24","MTEF2023",2,1,3,812,195,"02","01","03","000812","000195","02|01|03",1,1,3,41,41,"01|01|03|41|41","National","Parliament","Administration","Corporate and Support Services","Non-transfer item","Current","Current payments","Interest and rent on land","Interest (Incl. interest on unitary payments (PPP))","Interest (Incl. interest on unitary payments (PPP))","General public services","Executive and legislative organs","NAT",0,0,0,0,0,0,0,0,0,0,0,null,null,null,null,null,null,null,null,null,null,null,null,null,null,null,null,null,null,null,null,null,null,null,null,null,null,null,null,null,null,{"$f":"Dataset[[#This Row],[2023/24 From - Spending review Topic 1]]+Dataset[[#This Row],[2023/24 From - Spending review Topic 2]]+Dataset[[#This Row],[2023/24 From - Spending review Topic 3]]+Dataset[[#This Row],[2023/24 From - Spending review Topic 4]]+Dataset[[#This Row],[2023/24 From - Other reallocations]]","v":0},{"$f":"Dataset[[#This Row],[2024/25 From - Spending review Topic 1]]+Dataset[[#This Row],[2024/25 From - Spending review Topic 2]]+Dataset[[#This Row],[2024/25 From - Spending review Topic 3]]+Dataset[[#This Row],[2024/25 From - Spending review Topic 4]]+Dataset[[#This Row],[2024/25 From - Other reallocations]]","v":0},{"$f":"Dataset[[#This Row],[2025/26 From - Spending review Topic 1]]+Dataset[[#This Row],[2025/26 From - Spending review Topic 2]]+Dataset[[#This Row],[2025/26 From - Spending review Topic 3]]+Dataset[[#This Row],[2025/26 From - Spending review Topic 4]]+Dataset[[#This Row],[2025/26 From - Other reallocations]]","v":0},{"$f":"Dataset[[#This Row],[2023/24 To - Spending review Topic 1]]+Dataset[[#This Row],[2023/24 To - Spending review Topic 2]]+Dataset[[#This Row],[2023/24 To - Spending review Topic 3]]+Dataset[[#This Row],[2023/24 To - Spending review Topic 4]]+Dataset[[#This Row],[2023/24 To - Other reallocations]]","v":0},{"$f":"Dataset[[#This Row],[2024/25 To - Spending review Topic 1]]+Dataset[[#This Row],[2024/25 To - Spending review Topic 2]]+Dataset[[#This Row],[2024/25 To - Spending review Topic 3]]+Dataset[[#This Row],[2024/25 To - Spending review Topic 4]]+Dataset[[#This Row],[2024/25 To - Other reallocations]]","v":0},{"$f":"Dataset[[#This Row],[2025/26 To - Spending review Topic 1]]+Dataset[[#This Row],[2025/26 To - Spending review Topic 2]]+Dataset[[#This Row],[2025/26 To - Spending review Topic 3]]+Dataset[[#This Row],[2025/26 To - Spending review Topic 4]]+Dataset[[#This Row],[2025/26 To - Other reallocations]]","v":0},{"$f":"Dataset[[#This Row],[2023/24 Baseline]]+Dataset[[#This Row],[2023/24 From - Total]]+Dataset[[#This Row],[2023/24 To - Total]]","v":0},{"$f":"Dataset[[#This Row],[2024/25 Baseline]]+Dataset[[#This Row],[2024/25 From - Total]]+Dataset[[#This Row],[2024/25 To - Total]]","v":0},{"$f":"Dataset[[#This Row],[2025/26 Baseline]]+Dataset[[#This Row],[2025/26 From - Total]]+Dataset[[#This Row],[2025/26 To - Total]]","v":0}]
["NAT|Non-transfer item","2|Rent on land","2023_24","MTEF2023",2,1,3,813,196,"02","01","03","000813","000196","02|01|03",1,1,3,42,42,"01|01|03|42|42","National","Parliament","Administration","Corporate and Support Services","Non-transfer item","Current","Current payments","Interest and rent on land","Rent on land","Rent on land","General public services","Executive and legislative organs","NAT",0,0,0,0,0,0,0,0,0,0,0,null,null,null,null,null,null,null,null,null,null,null,null,null,null,null,null,null,null,null,null,null,null,null,null,null,null,null,null,null,null,{"$f":"Dataset[[#This Row],[2023/24 From - Spending review Topic 1]]+Dataset[[#This Row],[2023/24 From - Spending review Topic 2]]+Dataset[[#This Row],[2023/24 From - Spending review Topic 3]]+Dataset[[#This Row],[2023/24 From - Spending review Topic 4]]+Dataset[[#This Row],[2023/24 From - Other reallocations]]","v":0},{"$f":"Dataset[[#This Row],[2024/25 From - Spending review Topic 1]]+Dataset[[#This Row],[2024/25 From - Spending review Topic 2]]+Dataset[[#This Row],[2024/25 From - Spending review Topic 3]]+Dataset[[#This Row],[2024/25 From - Spending review Topic 4]]+Dataset[[#This Row],[2024/25 From - Other reallocations]]","v":0},{"$f":"Dataset[[#This Row],[2025/26 From - Spending review Topic 1]]+Dataset[[#This Row],[2025/26 From - Spending review Topic 2]]+Dataset[[#This Row],[2025/26 From - Spending review Topic 3]]+Dataset[[#This Row],[2025/26 From - Spending review Topic 4]]+Dataset[[#This Row],[2025/26 From - Other reallocations]]","v":0},{"$f":"Dataset[[#This Row],[2023/24 To - Spending review Topic 1]]+Dataset[[#This Row],[2023/24 To - Spending review Topic 2]]+Dataset[[#This Row],[2023/24 To - Spending review Topic 3]]+Dataset[[#This Row],[2023/24 To - Spending review Topic 4]]+Dataset[[#This Row],[2023/24 To - Other reallocations]]","v":0},{"$f":"Dataset[[#This Row],[2024/25 To - Spending review Topic 1]]+Dataset[[#This Row],[2024/25 To - Spending review Topic 2]]+Dataset[[#This Row],[2024/25 To - Spending review Topic 3]]+Dataset[[#This Row],[2024/25 To - Spending review Topic 4]]+Dataset[[#This Row],[2024/25 To - Other reallocations]]","v":0},{"$f":"Dataset[[#This Row],[2025/26 To - Spending review Topic 1]]+Dataset[[#This Row],[2025/26 To - Spending review Topic 2]]+Dataset[[#This Row],[2025/26 To - Spending review Topic 3]]+Dataset[[#This Row],[2025/26 To - Spending review Topic 4]]+Dataset[[#This Row],[2025/26 To - Other reallocations]]","v":0},{"$f":"Dataset[[#This Row],[2023/24 Baseline]]+Dataset[[#This Row],[2023/24 From - Total]]+Dataset[[#This Row],[2023/24 To - Total]]","v":0},{"$f":"Dataset[[#This Row],[2024/25 Baseline]]+Dataset[[#This Row],[2024/25 From - Total]]+Dataset[[#This Row],[2024/25 To - Total]]","v":0},{"$f":"Dataset[[#This Row],[2025/26 Baseline]]+Dataset[[#This Row],[2025/26 From - Total]]+Dataset[[#This Row],[2025/26 To - Total]]","v":0}]
["NAT|Non-transfer item","2|Provincial Revenue Funds","2023_24","MTEF2023",2,1,3,814,197,"02","01","03","000814","000197","02|01|03",1,2,4,43,43,"01|02|04|43|43","National","Parliament","Administration","Corporate and Support Services","Non-transfer item","Current","Transfers and subsidies","Provinces and municipalities","Provinces","Provincial Revenue Funds","General public services","Executive and legislative organs","NAT",0,0,0,0,0,0,0,0,0,0,0,null,null,null,null,null,null,null,null,null,null,null,null,null,null,null,null,null,null,null,null,null,null,null,null,null,null,null,null,null,null,{"$f":"Dataset[[#This Row],[2023/24 From - Spending review Topic 1]]+Dataset[[#This Row],[2023/24 From - Spending review Topic 2]]+Dataset[[#This Row],[2023/24 From - Spending review Topic 3]]+Dataset[[#This Row],[2023/24 From - Spending review Topic 4]]+Dataset[[#This Row],[2023/24 From - Other reallocations]]","v":0},{"$f":"Dataset[[#This Row],[2024/25 From - Spending review Topic 1]]+Dataset[[#This Row],[2024/25 From - Spending review Topic 2]]+Dataset[[#This Row],[2024/25 From - Spending review Topic 3]]+Dataset[[#This Row],[2024/25 From - Spending review Topic 4]]+Dataset[[#This Row],[2024/25 From - Other reallocations]]","v":0},{"$f":"Dataset[[#This Row],[2025/26 From - Spending review Topic 1]]+Dataset[[#This Row],[2025/26 From - Spending review Topic 2]]+Dataset[[#This Row],[2025/26 From - Spending review Topic 3]]+Dataset[[#This Row],[2025/26 From - Spending review Topic 4]]+Dataset[[#This Row],[2025/26 From - Other reallocations]]","v":0},{"$f":"Dataset[[#This Row],[2023/24 To - Spending review Topic 1]]+Dataset[[#This Row],[2023/24 To - Spending review Topic 2]]+Dataset[[#This Row],[2023/24 To - Spending review Topic 3]]+Dataset[[#This Row],[2023/24 To - Spending review Topic 4]]+Dataset[[#This Row],[2023/24 To - Other reallocations]]","v":0},{"$f":"Dataset[[#This Row],[2024/25 To - Spending review Topic 1]]+Dataset[[#This Row],[2024/25 To - Spending review Topic 2]]+Dataset[[#This Row],[2024/25 To - Spending review Topic 3]]+Dataset[[#This Row],[2024/25 To - Spending review Topic 4]]+Dataset[[#This Row],[2024/25 To - Other reallocations]]","v":0},{"$f":"Dataset[[#This Row],[2025/26 To - Spending review Topic 1]]+Dataset[[#This Row],[2025/26 To - Spending review Topic 2]]+Dataset[[#This Row],[2025/26 To - Spending review Topic 3]]+Dataset[[#This Row],[2025/26 To - Spending review Topic 4]]+Dataset[[#This Row],[2025/26 To - Other reallocations]]","v":0},{"$f":"Dataset[[#This Row],[2023/24 Baseline]]+Dataset[[#This Row],[2023/24 From - Total]]+Dataset[[#This Row],[2023/24 To - Total]]","v":0},{"$f":"Dataset[[#This Row],[2024/25 Baseline]]+Dataset[[#This Row],[2024/25 From - Total]]+Dataset[[#This Row],[2024/25 To - Total]]","v":0},{"$f":"Dataset[[#This Row],[2025/26 Baseline]]+Dataset[[#This Row],[2025/26 From - Total]]+Dataset[[#This Row],[2025/26 To - Total]]","v":0}]
["NAT|Non-transfer item","2|Provincial agencies and funds","2023_24","MTEF2023",2,1,3,815,198,"02","01","03","000815","000198","02|01|03",1,2,4,43,44,"01|02|04|43|44","National","Parliament","Administration","Corporate and Support Services","Non-transfer item","Current","Transfers and subsidies","Provinces and municipalities","Provinces","Provincial agencies and funds","General public services","Executive and legislative organs","NAT",0,0,0,0,0,0,0,0,0,0,0,null,null,null,null,null,null,null,null,null,null,null,null,null,null,null,null,null,null,null,null,null,null,null,null,null,null,null,null,null,null,{"$f":"Dataset[[#This Row],[2023/24 From - Spending review Topic 1]]+Dataset[[#This Row],[2023/24 From - Spending review Topic 2]]+Dataset[[#This Row],[2023/24 From - Spending review Topic 3]]+Dataset[[#This Row],[2023/24 From - Spending review Topic 4]]+Dataset[[#This Row],[2023/24 From - Other reallocations]]","v":0},{"$f":"Dataset[[#This Row],[2024/25 From - Spending review Topic 1]]+Dataset[[#This Row],[2024/25 From - Spending review Topic 2]]+Dataset[[#This Row],[2024/25 From - Spending review Topic 3]]+Dataset[[#This Row],[2024/25 From - Spending review Topic 4]]+Dataset[[#This Row],[2024/25 From - Other reallocations]]","v":0},{"$f":"Dataset[[#This Row],[2025/26 From - Spending review Topic 1]]+Dataset[[#This Row],[2025/26 From - Spending review Topic 2]]+Dataset[[#This Row],[2025/26 From - Spending review Topic 3]]+Dataset[[#This Row],[2025/26 From - Spending review Topic 4]]+Dataset[[#This Row],[2025/26 From - Other reallocations]]","v":0},{"$f":"Dataset[[#This Row],[2023/24 To - Spending review Topic 1]]+Dataset[[#This Row],[2023/24 To - Spending review Topic 2]]+Dataset[[#This Row],[2023/24 To - Spending review Topic 3]]+Dataset[[#This Row],[2023/24 To - Spending review Topic 4]]+Dataset[[#This Row],[2023/24 To - Other reallocations]]","v":0},{"$f":"Dataset[[#This Row],[2024/25 To - Spending review Topic 1]]+Dataset[[#This Row],[2024/25 To - Spending review Topic 2]]+Dataset[[#This Row],[2024/25 To - Spending review Topic 3]]+Dataset[[#This Row],[2024/25 To - Spending review Topic 4]]+Dataset[[#This Row],[2024/25 To - Other reallocations]]","v":0},{"$f":"Dataset[[#This Row],[2025/26 To - Spending review Topic 1]]+Dataset[[#This Row],[2025/26 To - Spending review Topic 2]]+Dataset[[#This Row],[2025/26 To - Spending review Topic 3]]+Dataset[[#This Row],[2025/26 To - Spending review Topic 4]]+Dataset[[#This Row],[2025/26 To - Other reallocations]]","v":0},{"$f":"Dataset[[#This Row],[2023/24 Baseline]]+Dataset[[#This Row],[2023/24 From - Total]]+Dataset[[#This Row],[2023/24 To - Total]]","v":0},{"$f":"Dataset[[#This Row],[2024/25 Baseline]]+Dataset[[#This Row],[2024/25 From - Total]]+Dataset[[#This Row],[2024/25 To - Total]]","v":0},{"$f":"Dataset[[#This Row],[2025/26 Baseline]]+Dataset[[#This Row],[2025/26 From - Total]]+Dataset[[#This Row],[2025/26 To - Total]]","v":0}]
["NAT|Non-transfer item","2|Municipal bank accounts","2023_24","MTEF2023",2,1,3,816,199,"02","01","03","000816","000199","02|01|03",1,2,4,44,45,"01|02|04|44|45","National","Parliament","Administration","Corporate and Support Services","Non-transfer item","Current","Transfers and subsidies","Provinces and municipalities","Municipalities","Municipal bank accounts","General public services","Executive and legislative organs","NAT",0,0,0,0,0,0,0,0,0,0,0,null,null,null,null,null,null,null,null,null,null,null,null,null,null,null,null,null,null,null,null,null,null,null,null,null,null,null,null,null,null,{"$f":"Dataset[[#This Row],[2023/24 From - Spending review Topic 1]]+Dataset[[#This Row],[2023/24 From - Spending review Topic 2]]+Dataset[[#This Row],[2023/24 From - Spending review Topic 3]]+Dataset[[#This Row],[2023/24 From - Spending review Topic 4]]+Dataset[[#This Row],[2023/24 From - Other reallocations]]","v":0},{"$f":"Dataset[[#This Row],[2024/25 From - Spending review Topic 1]]+Dataset[[#This Row],[2024/25 From - Spending review Topic 2]]+Dataset[[#This Row],[2024/25 From - Spending review Topic 3]]+Dataset[[#This Row],[2024/25 From - Spending review Topic 4]]+Dataset[[#This Row],[2024/25 From - Other reallocations]]","v":0},{"$f":"Dataset[[#This Row],[2025/26 From - Spending review Topic 1]]+Dataset[[#This Row],[2025/26 From - Spending review Topic 2]]+Dataset[[#This Row],[2025/26 From - Spending review Topic 3]]+Dataset[[#This Row],[2025/26 From - Spending review Topic 4]]+Dataset[[#This Row],[2025/26 From - Other reallocations]]","v":0},{"$f":"Dataset[[#This Row],[2023/24 To - Spending review Topic 1]]+Dataset[[#This Row],[2023/24 To - Spending review Topic 2]]+Dataset[[#This Row],[2023/24 To - Spending review Topic 3]]+Dataset[[#This Row],[2023/24 To - Spending review Topic 4]]+Dataset[[#This Row],[2023/24 To - Other reallocations]]","v":0},{"$f":"Dataset[[#This Row],[2024/25 To - Spending review Topic 1]]+Dataset[[#This Row],[2024/25 To - Spending review Topic 2]]+Dataset[[#This Row],[2024/25 To - Spending review Topic 3]]+Dataset[[#This Row],[2024/25 To - Spending review Topic 4]]+Dataset[[#This Row],[2024/25 To - Other reallocations]]","v":0},{"$f":"Dataset[[#This Row],[2025/26 To - Spending review Topic 1]]+Dataset[[#This Row],[2025/26 To - Spending review Topic 2]]+Dataset[[#This Row],[2025/26 To - Spending review Topic 3]]+Dataset[[#This Row],[2025/26 To - Spending review Topic 4]]+Dataset[[#This Row],[2025/26 To - Other reallocations]]","v":0},{"$f":"Dataset[[#This Row],[2023/24 Baseline]]+Dataset[[#This Row],[2023/24 From - Total]]+Dataset[[#This Row],[2023/24 To - Total]]","v":0},{"$f":"Dataset[[#This Row],[2024/25 Baseline]]+Dataset[[#This Row],[2024/25 From - Total]]+Dataset[[#This Row],[2024/25 To - Total]]","v":0},{"$f":"Dataset[[#This Row],[2025/26 Baseline]]+Dataset[[#This Row],[2025/26 From - Total]]+Dataset[[#This Row],[2025/26 To - Total]]","v":0}]
["NAT|Non-transfer item","2|Municipal agencies and funds","2023_24","MTEF2023",2,1,3,817,200,"02","01","03","000817","000200","02|01|03",1,2,4,44,46,"01|02|04|44|46","National","Parliament","Administration","Corporate and Support Services","Non-transfer item","Current","Transfers and subsidies","Provinces and municipalities","Municipalities","Municipal agencies and funds","General public services","Executive and legislative organs","NAT",0,0,0,0,0,0,0,0,0,0,0,null,null,null,null,null,null,null,null,null,null,null,null,null,null,null,null,null,null,null,null,null,null,null,null,null,null,null,null,null,null,{"$f":"Dataset[[#This Row],[2023/24 From - Spending review Topic 1]]+Dataset[[#This Row],[2023/24 From - Spending review Topic 2]]+Dataset[[#This Row],[2023/24 From - Spending review Topic 3]]+Dataset[[#This Row],[2023/24 From - Spending review Topic 4]]+Dataset[[#This Row],[2023/24 From - Other reallocations]]","v":0},{"$f":"Dataset[[#This Row],[2024/25 From - Spending review Topic 1]]+Dataset[[#This Row],[2024/25 From - Spending review Topic 2]]+Dataset[[#This Row],[2024/25 From - Spending review Topic 3]]+Dataset[[#This Row],[2024/25 From - Spending review Topic 4]]+Dataset[[#This Row],[2024/25 From - Other reallocations]]","v":0},{"$f":"Dataset[[#This Row],[2025/26 From - Spending review Topic 1]]+Dataset[[#This Row],[2025/26 From - Spending review Topic 2]]+Dataset[[#This Row],[2025/26 From - Spending review Topic 3]]+Dataset[[#This Row],[2025/26 From - Spending review Topic 4]]+Dataset[[#This Row],[2025/26 From - Other reallocations]]","v":0},{"$f":"Dataset[[#This Row],[2023/24 To - Spending review Topic 1]]+Dataset[[#This Row],[2023/24 To - Spending review Topic 2]]+Dataset[[#This Row],[2023/24 To - Spending review Topic 3]]+Dataset[[#This Row],[2023/24 To - Spending review Topic 4]]+Dataset[[#This Row],[2023/24 To - Other reallocations]]","v":0},{"$f":"Dataset[[#This Row],[2024/25 To - Spending review Topic 1]]+Dataset[[#This Row],[2024/25 To - Spending review Topic 2]]+Dataset[[#This Row],[2024/25 To - Spending review Topic 3]]+Dataset[[#This Row],[2024/25 To - Spending review Topic 4]]+Dataset[[#This Row],[2024/25 To - Other reallocations]]","v":0},{"$f":"Dataset[[#This Row],[2025/26 To - Spending review Topic 1]]+Dataset[[#This Row],[2025/26 To - Spending review Topic 2]]+Dataset[[#This Row],[2025/26 To - Spending review Topic 3]]+Dataset[[#This Row],[2025/26 To - Spending review Topic 4]]+Dataset[[#This Row],[2025/26 To - Other reallocations]]","v":0},{"$f":"Dataset[[#This Row],[2023/24 Baseline]]+Dataset[[#This Row],[2023/24 From - Total]]+Dataset[[#This Row],[2023/24 To - Total]]","v":0},{"$f":"Dataset[[#This Row],[2024/25 Baseline]]+Dataset[[#This Row],[2024/25 From - Total]]+Dataset[[#This Row],[2024/25 To - Total]]","v":0},{"$f":"Dataset[[#This Row],[2025/26 Baseline]]+Dataset[[#This Row],[2025/26 From - Total]]+Dataset[[#This Row],[2025/26 To - Total]]","v":0}]
["NAT|Non-transfer item","2|Social security funds","2023_24","MTEF2023",2,1,3,818,201,"02","01","03","000818","000201","02|01|03",1,2,5,45,47,"01|02|05|45|47","National","Parliament","Administration","Corporate and Support Services","Non-transfer item","Current","Transfers and subsidies","Departmental agencies and accounts","Social security funds","Social security funds","General public services","Executive and legislative organs","NAT",0,0,0,0,0,0,0,0,0,0,0,null,null,null,null,null,null,null,null,null,null,null,null,null,null,null,null,null,null,null,null,null,null,null,null,null,null,null,null,null,null,{"$f":"Dataset[[#This Row],[2023/24 From - Spending review Topic 1]]+Dataset[[#This Row],[2023/24 From - Spending review Topic 2]]+Dataset[[#This Row],[2023/24 From - Spending review Topic 3]]+Dataset[[#This Row],[2023/24 From - Spending review Topic 4]]+Dataset[[#This Row],[2023/24 From - Other reallocations]]","v":0},{"$f":"Dataset[[#This Row],[2024/25 From - Spending review Topic 1]]+Dataset[[#This Row],[2024/25 From - Spending review Topic 2]]+Dataset[[#This Row],[2024/25 From - Spending review Topic 3]]+Dataset[[#This Row],[2024/25 From - Spending review Topic 4]]+Dataset[[#This Row],[2024/25 From - Other reallocations]]","v":0},{"$f":"Dataset[[#This Row],[2025/26 From - Spending review Topic 1]]+Dataset[[#This Row],[2025/26 From - Spending review Topic 2]]+Dataset[[#This Row],[2025/26 From - Spending review Topic 3]]+Dataset[[#This Row],[2025/26 From - Spending review Topic 4]]+Dataset[[#This Row],[2025/26 From - Other reallocations]]","v":0},{"$f":"Dataset[[#This Row],[2023/24 To - Spending review Topic 1]]+Dataset[[#This Row],[2023/24 To - Spending review Topic 2]]+Dataset[[#This Row],[2023/24 To - Spending review Topic 3]]+Dataset[[#This Row],[2023/24 To - Spending review Topic 4]]+Dataset[[#This Row],[2023/24 To - Other reallocations]]","v":0},{"$f":"Dataset[[#This Row],[2024/25 To - Spending review Topic 1]]+Dataset[[#This Row],[2024/25 To - Spending review Topic 2]]+Dataset[[#This Row],[2024/25 To - Spending review Topic 3]]+Dataset[[#This Row],[2024/25 To - Spending review Topic 4]]+Dataset[[#This Row],[2024/25 To - Other reallocations]]","v":0},{"$f":"Dataset[[#This Row],[2025/26 To - Spending review Topic 1]]+Dataset[[#This Row],[2025/26 To - Spending review Topic 2]]+Dataset[[#This Row],[2025/26 To - Spending review Topic 3]]+Dataset[[#This Row],[2025/26 To - Spending review Topic 4]]+Dataset[[#This Row],[2025/26 To - Other reallocations]]","v":0},{"$f":"Dataset[[#This Row],[2023/24 Baseline]]+Dataset[[#This Row],[2023/24 From - Total]]+Dataset[[#This Row],[2023/24 To - Total]]","v":0},{"$f":"Dataset[[#This Row],[2024/25 Baseline]]+Dataset[[#This Row],[2024/25 From - Total]]+Dataset[[#This Row],[2024/25 To - Total]]","v":0},{"$f":"Dataset[[#This Row],[2025/26 Baseline]]+Dataset[[#This Row],[2025/26 From - Total]]+Dataset[[#This Row],[2025/26 To - Total]]","v":0}]
["NAT|Non-transfer item","2|Departmental agencies (non-business entities)","2023_24","MTEF2023",2,1,3,819,202,"02","01","03","000819","000202","02|01|03",1,2,5,46,48,"01|02|05|46|48","National","Parliament","Administration","Corporate and Support Services","Non-transfer item","Current","Transfers and subsidies","Departmental agencies and accounts","Departmental agencies (non-business entities)","Departmental agencies (non-business entities)","General public services","Executive and legislative organs","NAT",0,0,0,0,0,0,0,0,0,0,0,null,null,null,null,null,null,null,null,null,null,null,null,null,null,null,null,null,null,null,null,null,null,null,null,null,null,null,null,null,null,{"$f":"Dataset[[#This Row],[2023/24 From - Spending review Topic 1]]+Dataset[[#This Row],[2023/24 From - Spending review Topic 2]]+Dataset[[#This Row],[2023/24 From - Spending review Topic 3]]+Dataset[[#This Row],[2023/24 From - Spending review Topic 4]]+Dataset[[#This Row],[2023/24 From - Other reallocations]]","v":0},{"$f":"Dataset[[#This Row],[2024/25 From - Spending review Topic 1]]+Dataset[[#This Row],[2024/25 From - Spending review Topic 2]]+Dataset[[#This Row],[2024/25 From - Spending review Topic 3]]+Dataset[[#This Row],[2024/25 From - Spending review Topic 4]]+Dataset[[#This Row],[2024/25 From - Other reallocations]]","v":0},{"$f":"Dataset[[#This Row],[2025/26 From - Spending review Topic 1]]+Dataset[[#This Row],[2025/26 From - Spending review Topic 2]]+Dataset[[#This Row],[2025/26 From - Spending review Topic 3]]+Dataset[[#This Row],[2025/26 From - Spending review Topic 4]]+Dataset[[#This Row],[2025/26 From - Other reallocations]]","v":0},{"$f":"Dataset[[#This Row],[2023/24 To - Spending review Topic 1]]+Dataset[[#This Row],[2023/24 To - Spending review Topic 2]]+Dataset[[#This Row],[2023/24 To - Spending review Topic 3]]+Dataset[[#This Row],[2023/24 To - Spending review Topic 4]]+Dataset[[#This Row],[2023/24 To - Other reallocations]]","v":0},{"$f":"Dataset[[#This Row],[2024/25 To - Spending review Topic 1]]+Dataset[[#This Row],[2024/25 To - Spending review Topic 2]]+Dataset[[#This Row],[2024/25 To - Spending review Topic 3]]+Dataset[[#This Row],[2024/25 To - Spending review Topic 4]]+Dataset[[#This Row],[2024/25 To - Other reallocations]]","v":0},{"$f":"Dataset[[#This Row],[2025/26 To - Spending review Topic 1]]+Dataset[[#This Row],[2025/26 To - Spending review Topic 2]]+Dataset[[#This Row],[2025/26 To - Spending review Topic 3]]+Dataset[[#This Row],[2025/26 To - Spending review Topic 4]]+Dataset[[#This Row],[2025/26 To - Other reallocations]]","v":0},{"$f":"Dataset[[#This Row],[2023/24 Baseline]]+Dataset[[#This Row],[2023/24 From - Total]]+Dataset[[#This Row],[2023/24 To - Total]]","v":0},{"$f":"Dataset[[#This Row],[2024/25 Baseline]]+Dataset[[#This Row],[2024/25 From - Total]]+Dataset[[#This Row],[2024/25 To - Total]]","v":0},{"$f":"Dataset[[#This Row],[2025/26 Baseline]]+Dataset[[#This Row],[2025/26 From - Total]]+Dataset[[#This Row],[2025/26 To - Total]]","v":0}]
["NAT|Non-transfer item","2|Higher education institutions","2023_24","MTEF2023",2,1,3,820,203,"02","01","03","000820","000203","02|01|03",1,2,6,47,49,"01|02|06|47|49","National","Parliament","Administration","Corporate and Support Services","Non-transfer item","Current","Transfers and subsidies","Higher education institutions","Higher education institutions","Higher education institutions","General public services","Executive and legislative organs","NAT",0,0,0,0,0,0,0,0,0,0,0,null,null,null,null,null,null,null,null,null,null,null,null,null,null,null,null,null,null,null,null,null,null,null,null,null,null,null,null,null,null,{"$f":"Dataset[[#This Row],[2023/24 From - Spending review Topic 1]]+Dataset[[#This Row],[2023/24 From - Spending review Topic 2]]+Dataset[[#This Row],[2023/24 From - Spending review Topic 3]]+Dataset[[#This Row],[2023/24 From - Spending review Topic 4]]+Dataset[[#This Row],[2023/24 From - Other reallocations]]","v":0},{"$f":"Dataset[[#This Row],[2024/25 From - Spending review Topic 1]]+Dataset[[#This Row],[2024/25 From - Spending review Topic 2]]+Dataset[[#This Row],[2024/25 From - Spending review Topic 3]]+Dataset[[#This Row],[2024/25 From - Spending review Topic 4]]+Dataset[[#This Row],[2024/25 From - Other reallocations]]","v":0},{"$f":"Dataset[[#This Row],[2025/26 From - Spending review Topic 1]]+Dataset[[#This Row],[2025/26 From - Spending review Topic 2]]+Dataset[[#This Row],[2025/26 From - Spending review Topic 3]]+Dataset[[#This Row],[2025/26 From - Spending review Topic 4]]+Dataset[[#This Row],[2025/26 From - Other reallocations]]","v":0},{"$f":"Dataset[[#This Row],[2023/24 To - Spending review Topic 1]]+Dataset[[#This Row],[2023/24 To - Spending review Topic 2]]+Dataset[[#This Row],[2023/24 To - Spending review Topic 3]]+Dataset[[#This Row],[2023/24 To - Spending review Topic 4]]+Dataset[[#This Row],[2023/24 To - Other reallocations]]","v":0},{"$f":"Dataset[[#This Row],[2024/25 To - Spending review Topic 1]]+Dataset[[#This Row],[2024/25 To - Spending review Topic 2]]+Dataset[[#This Row],[2024/25 To - Spending review Topic 3]]+Dataset[[#This Row],[2024/25 To - Spending review Topic 4]]+Dataset[[#This Row],[2024/25 To - Other reallocations]]","v":0},{"$f":"Dataset[[#This Row],[2025/26 To - Spending review Topic 1]]+Dataset[[#This Row],[2025/26 To - Spending review Topic 2]]+Dataset[[#This Row],[2025/26 To - Spending review Topic 3]]+Dataset[[#This Row],[2025/26 To - Spending review Topic 4]]+Dataset[[#This Row],[2025/26 To - Other reallocations]]","v":0},{"$f":"Dataset[[#This Row],[2023/24 Baseline]]+Dataset[[#This Row],[2023/24 From - Total]]+Dataset[[#This Row],[2023/24 To - Total]]","v":0},{"$f":"Dataset[[#This Row],[2024/25 Baseline]]+Dataset[[#This Row],[2024/25 From - Total]]+Dataset[[#This Row],[2024/25 To - Total]]","v":0},{"$f":"Dataset[[#This Row],[2025/26 Baseline]]+Dataset[[#This Row],[2025/26 From - Total]]+Dataset[[#This Row],[2025/26 To - Total]]","v":0}]
["NAT|Non-transfer item","2|Foreign governments and international organisations","2023_24","MTEF2023",2,1,3,821,204,"02","01","03","000821","000204","02|01|03",1,2,7,48,50,"01|02|07|48|50","National","Parliament","Administration","Corporate and Support Services","Non-transfer item","Current","Transfers and subsidies","Foreign governments and international organisations","Foreign governments and international organisations","Foreign governments and international organisations","General public services","Executive and legislative organs","NAT",0,0,0,0,0,0,0,0,0,0,0,null,null,null,null,null,null,null,null,null,null,null,null,null,null,null,null,null,null,null,null,null,null,null,null,null,null,null,null,null,null,{"$f":"Dataset[[#This Row],[2023/24 From - Spending review Topic 1]]+Dataset[[#This Row],[2023/24 From - Spending review Topic 2]]+Dataset[[#This Row],[2023/24 From - Spending review Topic 3]]+Dataset[[#This Row],[2023/24 From - Spending review Topic 4]]+Dataset[[#This Row],[2023/24 From - Other reallocations]]","v":0},{"$f":"Dataset[[#This Row],[2024/25 From - Spending review Topic 1]]+Dataset[[#This Row],[2024/25 From - Spending review Topic 2]]+Dataset[[#This Row],[2024/25 From - Spending review Topic 3]]+Dataset[[#This Row],[2024/25 From - Spending review Topic 4]]+Dataset[[#This Row],[2024/25 From - Other reallocations]]","v":0},{"$f":"Dataset[[#This Row],[2025/26 From - Spending review Topic 1]]+Dataset[[#This Row],[2025/26 From - Spending review Topic 2]]+Dataset[[#This Row],[2025/26 From - Spending review Topic 3]]+Dataset[[#This Row],[2025/26 From - Spending review Topic 4]]+Dataset[[#This Row],[2025/26 From - Other reallocations]]","v":0},{"$f":"Dataset[[#This Row],[2023/24 To - Spending review Topic 1]]+Dataset[[#This Row],[2023/24 To - Spending review Topic 2]]+Dataset[[#This Row],[2023/24 To - Spending review Topic 3]]+Dataset[[#This Row],[2023/24 To - Spending review Topic 4]]+Dataset[[#This Row],[2023/24 To - Other reallocations]]","v":0},{"$f":"Dataset[[#This Row],[2024/25 To - Spending review Topic 1]]+Dataset[[#This Row],[2024/25 To - Spending review Topic 2]]+Dataset[[#This Row],[2024/25 To - Spending review Topic 3]]+Dataset[[#This Row],[2024/25 To - Spending review Topic 4]]+Dataset[[#This Row],[2024/25 To - Other reallocations]]","v":0},{"$f":"Dataset[[#This Row],[2025/26 To - Spending review Topic 1]]+Dataset[[#This Row],[2025/26 To - Spending review Topic 2]]+Dataset[[#This Row],[2025/26 To - Spending review Topic 3]]+Dataset[[#This Row],[2025/26 To - Spending review Topic 4]]+Dataset[[#This Row],[2025/26 To - Other reallocations]]","v":0},{"$f":"Dataset[[#This Row],[2023/24 Baseline]]+Dataset[[#This Row],[2023/24 From - Total]]+Dataset[[#This Row],[2023/24 To - Total]]","v":0},{"$f":"Dataset[[#This Row],[2024/25 Baseline]]+Dataset[[#This Row],[2024/25 From - Total]]+Dataset[[#This Row],[2024/25 To - Total]]","v":0},{"$f":"Dataset[[#This Row],[2025/26 Baseline]]+Dataset[[#This Row],[2025/26 From - Total]]+Dataset[[#This Row],[2025/26 To - Total]]","v":0}]
["NAT|Non-transfer item","2|Subsidies on products and production (pc)","2023_24","MTEF2023",2,1,3,822,205,"02","01","03","000822","000205","02|01|03",1,2,8,49,51,"01|02|08|49|51","National","Parliament","Administration","Corporate and Support Services","Non-transfer item","Current","Transfers and subsidies","Public corporations and private enterprises","Public corporations","Subsidies on products and production (pc)","General public services","Executive and legislative organs","NAT",0,0,0,0,0,0,0,0,0,0,0,null,null,null,null,null,null,null,null,null,null,null,null,null,null,null,null,null,null,null,null,null,null,null,null,null,null,null,null,null,null,{"$f":"Dataset[[#This Row],[2023/24 From - Spending review Topic 1]]+Dataset[[#This Row],[2023/24 From - Spending review Topic 2]]+Dataset[[#This Row],[2023/24 From - Spending review Topic 3]]+Dataset[[#This Row],[2023/24 From - Spending review Topic 4]]+Dataset[[#This Row],[2023/24 From - Other reallocations]]","v":0},{"$f":"Dataset[[#This Row],[2024/25 From - Spending review Topic 1]]+Dataset[[#This Row],[2024/25 From - Spending review Topic 2]]+Dataset[[#This Row],[2024/25 From - Spending review Topic 3]]+Dataset[[#This Row],[2024/25 From - Spending review Topic 4]]+Dataset[[#This Row],[2024/25 From - Other reallocations]]","v":0},{"$f":"Dataset[[#This Row],[2025/26 From - Spending review Topic 1]]+Dataset[[#This Row],[2025/26 From - Spending review Topic 2]]+Dataset[[#This Row],[2025/26 From - Spending review Topic 3]]+Dataset[[#This Row],[2025/26 From - Spending review Topic 4]]+Dataset[[#This Row],[2025/26 From - Other reallocations]]","v":0},{"$f":"Dataset[[#This Row],[2023/24 To - Spending review Topic 1]]+Dataset[[#This Row],[2023/24 To - Spending review Topic 2]]+Dataset[[#This Row],[2023/24 To - Spending review Topic 3]]+Dataset[[#This Row],[2023/24 To - Spending review Topic 4]]+Dataset[[#This Row],[2023/24 To - Other reallocations]]","v":0},{"$f":"Dataset[[#This Row],[2024/25 To - Spending review Topic 1]]+Dataset[[#This Row],[2024/25 To - Spending review Topic 2]]+Dataset[[#This Row],[2024/25 To - Spending review Topic 3]]+Dataset[[#This Row],[2024/25 To - Spending review Topic 4]]+Dataset[[#This Row],[2024/25 To - Other reallocations]]","v":0},{"$f":"Dataset[[#This Row],[2025/26 To - Spending review Topic 1]]+Dataset[[#This Row],[2025/26 To - Spending review Topic 2]]+Dataset[[#This Row],[2025/26 To - Spending review Topic 3]]+Dataset[[#This Row],[2025/26 To - Spending review Topic 4]]+Dataset[[#This Row],[2025/26 To - Other reallocations]]","v":0},{"$f":"Dataset[[#This Row],[2023/24 Baseline]]+Dataset[[#This Row],[2023/24 From - Total]]+Dataset[[#This Row],[2023/24 To - Total]]","v":0},{"$f":"Dataset[[#This Row],[2024/25 Baseline]]+Dataset[[#This Row],[2024/25 From - Total]]+Dataset[[#This Row],[2024/25 To - Total]]","v":0},{"$f":"Dataset[[#This Row],[2025/26 Baseline]]+Dataset[[#This Row],[2025/26 From - Total]]+Dataset[[#This Row],[2025/26 To - Total]]","v":0}]
["NAT|Non-transfer item","2|Other transfers to public corporations","2023_24","MTEF2023",2,1,3,823,206,"02","01","03","000823","000206","02|01|03",1,2,8,49,52,"01|02|08|49|52","National","Parliament","Administration","Corporate and Support Services","Non-transfer item","Current","Transfers and subsidies","Public corporations and private enterprises","Public corporations","Other transfers to public corporations","General public services","Executive and legislative organs","NAT",0,0,0,0,0,0,0,0,0,0,0,null,null,null,null,null,null,null,null,null,null,null,null,null,null,null,null,null,null,null,null,null,null,null,null,null,null,null,null,null,null,{"$f":"Dataset[[#This Row],[2023/24 From - Spending review Topic 1]]+Dataset[[#This Row],[2023/24 From - Spending review Topic 2]]+Dataset[[#This Row],[2023/24 From - Spending review Topic 3]]+Dataset[[#This Row],[2023/24 From - Spending review Topic 4]]+Dataset[[#This Row],[2023/24 From - Other reallocations]]","v":0},{"$f":"Dataset[[#This Row],[2024/25 From - Spending review Topic 1]]+Dataset[[#This Row],[2024/25 From - Spending review Topic 2]]+Dataset[[#This Row],[2024/25 From - Spending review Topic 3]]+Dataset[[#This Row],[2024/25 From - Spending review Topic 4]]+Dataset[[#This Row],[2024/25 From - Other reallocations]]","v":0},{"$f":"Dataset[[#This Row],[2025/26 From - Spending review Topic 1]]+Dataset[[#This Row],[2025/26 From - Spending review Topic 2]]+Dataset[[#This Row],[2025/26 From - Spending review Topic 3]]+Dataset[[#This Row],[2025/26 From - Spending review Topic 4]]+Dataset[[#This Row],[2025/26 From - Other reallocations]]","v":0},{"$f":"Dataset[[#This Row],[2023/24 To - Spending review Topic 1]]+Dataset[[#This Row],[2023/24 To - Spending review Topic 2]]+Dataset[[#This Row],[2023/24 To - Spending review Topic 3]]+Dataset[[#This Row],[2023/24 To - Spending review Topic 4]]+Dataset[[#This Row],[2023/24 To - Other reallocations]]","v":0},{"$f":"Dataset[[#This Row],[2024/25 To - Spending review Topic 1]]+Dataset[[#This Row],[2024/25 To - Spending review Topic 2]]+Dataset[[#This Row],[2024/25 To - Spending review Topic 3]]+Dataset[[#This Row],[2024/25 To - Spending review Topic 4]]+Dataset[[#This Row],[2024/25 To - Other reallocations]]","v":0},{"$f":"Dataset[[#This Row],[2025/26 To - Spending review Topic 1]]+Dataset[[#This Row],[2025/26 To - Spending review Topic 2]]+Dataset[[#This Row],[2025/26 To - Spending review Topic 3]]+Dataset[[#This Row],[2025/26 To - Spending review Topic 4]]+Dataset[[#This Row],[2025/26 To - Other reallocations]]","v":0},{"$f":"Dataset[[#This Row],[2023/24 Baseline]]+Dataset[[#This Row],[2023/24 From - Total]]+Dataset[[#This Row],[2023/24 To - Total]]","v":0},{"$f":"Dataset[[#This Row],[2024/25 Baseline]]+Dataset[[#This Row],[2024/25 From - Total]]+Dataset[[#This Row],[2024/25 To - Total]]","v":0},{"$f":"Dataset[[#This Row],[2025/26 Baseline]]+Dataset[[#This Row],[2025/26 From - Total]]+Dataset[[#This Row],[2025/26 To - Total]]","v":0}]
["NAT|Non-transfer item","2|Subsidies on products and production (pe)","2023_24","MTEF2023",2,1,3,824,207,"02","01","03","000824","000207","02|01|03",1,2,8,50,53,"01|02|08|50|53","National","Parliament","Administration","Corporate and Support Services","Non-transfer item","Current","Transfers and subsidies","Public corporations and private enterprises","Private enterprises","Subsidies on products and production (pe)","General public services","Executive and legislative organs","NAT",0,0,0,0,0,0,0,0,0,0,0,null,null,null,null,null,null,null,null,null,null,null,null,null,null,null,null,null,null,null,null,null,null,null,null,null,null,null,null,null,null,{"$f":"Dataset[[#This Row],[2023/24 From - Spending review Topic 1]]+Dataset[[#This Row],[2023/24 From - Spending review Topic 2]]+Dataset[[#This Row],[2023/24 From - Spending review Topic 3]]+Dataset[[#This Row],[2023/24 From - Spending review Topic 4]]+Dataset[[#This Row],[2023/24 From - Other reallocations]]","v":0},{"$f":"Dataset[[#This Row],[2024/25 From - Spending review Topic 1]]+Dataset[[#This Row],[2024/25 From - Spending review Topic 2]]+Dataset[[#This Row],[2024/25 From - Spending review Topic 3]]+Dataset[[#This Row],[2024/25 From - Spending review Topic 4]]+Dataset[[#This Row],[2024/25 From - Other reallocations]]","v":0},{"$f":"Dataset[[#This Row],[2025/26 From - Spending review Topic 1]]+Dataset[[#This Row],[2025/26 From - Spending review Topic 2]]+Dataset[[#This Row],[2025/26 From - Spending review Topic 3]]+Dataset[[#This Row],[2025/26 From - Spending review Topic 4]]+Dataset[[#This Row],[2025/26 From - Other reallocations]]","v":0},{"$f":"Dataset[[#This Row],[2023/24 To - Spending review Topic 1]]+Dataset[[#This Row],[2023/24 To - Spending review Topic 2]]+Dataset[[#This Row],[2023/24 To - Spending review Topic 3]]+Dataset[[#This Row],[2023/24 To - Spending review Topic 4]]+Dataset[[#This Row],[2023/24 To - Other reallocations]]","v":0},{"$f":"Dataset[[#This Row],[2024/25 To - Spending review Topic 1]]+Dataset[[#This Row],[2024/25 To - Spending review Topic 2]]+Dataset[[#This Row],[2024/25 To - Spending review Topic 3]]+Dataset[[#This Row],[2024/25 To - Spending review Topic 4]]+Dataset[[#This Row],[2024/25 To - Other reallocations]]","v":0},{"$f":"Dataset[[#This Row],[2025/26 To - Spending review Topic 1]]+Dataset[[#This Row],[2025/26 To - Spending review Topic 2]]+Dataset[[#This Row],[2025/26 To - Spending review Topic 3]]+Dataset[[#This Row],[2025/26 To - Spending review Topic 4]]+Dataset[[#This Row],[2025/26 To - Other reallocations]]","v":0},{"$f":"Dataset[[#This Row],[2023/24 Baseline]]+Dataset[[#This Row],[2023/24 From - Total]]+Dataset[[#This Row],[2023/24 To - Total]]","v":0},{"$f":"Dataset[[#This Row],[2024/25 Baseline]]+Dataset[[#This Row],[2024/25 From - Total]]+Dataset[[#This Row],[2024/25 To - Total]]","v":0},{"$f":"Dataset[[#This Row],[2025/26 Baseline]]+Dataset[[#This Row],[2025/26 From - Total]]+Dataset[[#This Row],[2025/26 To - Total]]","v":0}]
["NAT|Non-transfer item","2|Other transfers to private enterprises","2023_24","MTEF2023",2,1,3,825,208,"02","01","03","000825","000208","02|01|03",1,2,8,50,54,"01|02|08|50|54","National","Parliament","Administration","Corporate and Support Services","Non-transfer item","Current","Transfers and subsidies","Public corporations and private enterprises","Private enterprises","Other transfers to private enterprises","General public services","Executive and legislative organs","NAT",0,0,0,0,0,0,0,0,0,0,0,null,null,null,null,null,null,null,null,null,null,null,null,null,null,null,null,null,null,null,null,null,null,null,null,null,null,null,null,null,null,{"$f":"Dataset[[#This Row],[2023/24 From - Spending review Topic 1]]+Dataset[[#This Row],[2023/24 From - Spending review Topic 2]]+Dataset[[#This Row],[2023/24 From - Spending review Topic 3]]+Dataset[[#This Row],[2023/24 From - Spending review Topic 4]]+Dataset[[#This Row],[2023/24 From - Other reallocations]]","v":0},{"$f":"Dataset[[#This Row],[2024/25 From - Spending review Topic 1]]+Dataset[[#This Row],[2024/25 From - Spending review Topic 2]]+Dataset[[#This Row],[2024/25 From - Spending review Topic 3]]+Dataset[[#This Row],[2024/25 From - Spending review Topic 4]]+Dataset[[#This Row],[2024/25 From - Other reallocations]]","v":0},{"$f":"Dataset[[#This Row],[2025/26 From - Spending review Topic 1]]+Dataset[[#This Row],[2025/26 From - Spending review Topic 2]]+Dataset[[#This Row],[2025/26 From - Spending review Topic 3]]+Dataset[[#This Row],[2025/26 From - Spending review Topic 4]]+Dataset[[#This Row],[2025/26 From - Other reallocations]]","v":0},{"$f":"Dataset[[#This Row],[2023/24 To - Spending review Topic 1]]+Dataset[[#This Row],[2023/24 To - Spending review Topic 2]]+Dataset[[#This Row],[2023/24 To - Spending review Topic 3]]+Dataset[[#This Row],[2023/24 To - Spending review Topic 4]]+Dataset[[#This Row],[2023/24 To - Other reallocations]]","v":0},{"$f":"Dataset[[#This Row],[2024/25 To - Spending review Topic 1]]+Dataset[[#This Row],[2024/25 To - Spending review Topic 2]]+Dataset[[#This Row],[2024/25 To - Spending review Topic 3]]+Dataset[[#This Row],[2024/25 To - Spending review Topic 4]]+Dataset[[#This Row],[2024/25 To - Other reallocations]]","v":0},{"$f":"Dataset[[#This Row],[2025/26 To - Spending review Topic 1]]+Dataset[[#This Row],[2025/26 To - Spending review Topic 2]]+Dataset[[#This Row],[2025/26 To - Spending review Topic 3]]+Dataset[[#This Row],[2025/26 To - Spending review Topic 4]]+Dataset[[#This Row],[2025/26 To - Other reallocations]]","v":0},{"$f":"Dataset[[#This Row],[2023/24 Baseline]]+Dataset[[#This Row],[2023/24 From - Total]]+Dataset[[#This Row],[2023/24 To - Total]]","v":0},{"$f":"Dataset[[#This Row],[2024/25 Baseline]]+Dataset[[#This Row],[2024/25 From - Total]]+Dataset[[#This Row],[2024/25 To - Total]]","v":0},{"$f":"Dataset[[#This Row],[2025/26 Baseline]]+Dataset[[#This Row],[2025/26 From - Total]]+Dataset[[#This Row],[2025/26 To - Total]]","v":0}]
["NAT|Non-transfer item","2|Non-profit institutions","2023_24","MTEF2023",2,1,3,826,209,"02","01","03","000826","000209","02|01|03",1,2,9,51,55,"01|02|09|51|55","National","Parliament","Administration","Corporate and Support Services","Non-transfer item","Current","Transfers and subsidies","Non-profit institutions","Non-profit institutions","Non-profit institutions","General public services","Executive and legislative organs","NAT",0,0,0,0,0,0,0,0,0,0,0,null,null,null,null,null,null,null,null,null,null,null,null,null,null,null,null,null,null,null,null,null,null,null,null,null,null,null,null,null,null,{"$f":"Dataset[[#This Row],[2023/24 From - Spending review Topic 1]]+Dataset[[#This Row],[2023/24 From - Spending review Topic 2]]+Dataset[[#This Row],[2023/24 From - Spending review Topic 3]]+Dataset[[#This Row],[2023/24 From - Spending review Topic 4]]+Dataset[[#This Row],[2023/24 From - Other reallocations]]","v":0},{"$f":"Dataset[[#This Row],[2024/25 From - Spending review Topic 1]]+Dataset[[#This Row],[2024/25 From - Spending review Topic 2]]+Dataset[[#This Row],[2024/25 From - Spending review Topic 3]]+Dataset[[#This Row],[2024/25 From - Spending review Topic 4]]+Dataset[[#This Row],[2024/25 From - Other reallocations]]","v":0},{"$f":"Dataset[[#This Row],[2025/26 From - Spending review Topic 1]]+Dataset[[#This Row],[2025/26 From - Spending review Topic 2]]+Dataset[[#This Row],[2025/26 From - Spending review Topic 3]]+Dataset[[#This Row],[2025/26 From - Spending review Topic 4]]+Dataset[[#This Row],[2025/26 From - Other reallocations]]","v":0},{"$f":"Dataset[[#This Row],[2023/24 To - Spending review Topic 1]]+Dataset[[#This Row],[2023/24 To - Spending review Topic 2]]+Dataset[[#This Row],[2023/24 To - Spending review Topic 3]]+Dataset[[#This Row],[2023/24 To - Spending review Topic 4]]+Dataset[[#This Row],[2023/24 To - Other reallocations]]","v":0},{"$f":"Dataset[[#This Row],[2024/25 To - Spending review Topic 1]]+Dataset[[#This Row],[2024/25 To - Spending review Topic 2]]+Dataset[[#This Row],[2024/25 To - Spending review Topic 3]]+Dataset[[#This Row],[2024/25 To - Spending review Topic 4]]+Dataset[[#This Row],[2024/25 To - Other reallocations]]","v":0},{"$f":"Dataset[[#This Row],[2025/26 To - Spending review Topic 1]]+Dataset[[#This Row],[2025/26 To - Spending review Topic 2]]+Dataset[[#This Row],[2025/26 To - Spending review Topic 3]]+Dataset[[#This Row],[2025/26 To - Spending review Topic 4]]+Dataset[[#This Row],[2025/26 To - Other reallocations]]","v":0},{"$f":"Dataset[[#This Row],[2023/24 Baseline]]+Dataset[[#This Row],[2023/24 From - Total]]+Dataset[[#This Row],[2023/24 To - Total]]","v":0},{"$f":"Dataset[[#This Row],[2024/25 Baseline]]+Dataset[[#This Row],[2024/25 From - Total]]+Dataset[[#This Row],[2024/25 To - Total]]","v":0},{"$f":"Dataset[[#This Row],[2025/26 Baseline]]+Dataset[[#This Row],[2025/26 From - Total]]+Dataset[[#This Row],[2025/26 To - Total]]","v":0}]
["NAT|Non-transfer item","2|Social benefits","2023_24","MTEF2023",2,1,3,827,210,"02","01","03","000827","000210","02|01|03",1,2,10,52,56,"01|02|10|52|56","National","Parliament","Administration","Corporate and Support Services","Non-transfer item","Current","Transfers and subsidies","Households","Social benefits","Social benefits","General public services","Executive and legislative organs","NAT",0,0,0,0,0,0,0,0,0,0,0,null,null,null,null,null,null,null,null,null,null,null,null,null,null,null,null,null,null,null,null,null,null,null,null,null,null,null,null,null,null,{"$f":"Dataset[[#This Row],[2023/24 From - Spending review Topic 1]]+Dataset[[#This Row],[2023/24 From - Spending review Topic 2]]+Dataset[[#This Row],[2023/24 From - Spending review Topic 3]]+Dataset[[#This Row],[2023/24 From - Spending review Topic 4]]+Dataset[[#This Row],[2023/24 From - Other reallocations]]","v":0},{"$f":"Dataset[[#This Row],[2024/25 From - Spending review Topic 1]]+Dataset[[#This Row],[2024/25 From - Spending review Topic 2]]+Dataset[[#This Row],[2024/25 From - Spending review Topic 3]]+Dataset[[#This Row],[2024/25 From - Spending review Topic 4]]+Dataset[[#This Row],[2024/25 From - Other reallocations]]","v":0},{"$f":"Dataset[[#This Row],[2025/26 From - Spending review Topic 1]]+Dataset[[#This Row],[2025/26 From - Spending review Topic 2]]+Dataset[[#This Row],[2025/26 From - Spending review Topic 3]]+Dataset[[#This Row],[2025/26 From - Spending review Topic 4]]+Dataset[[#This Row],[2025/26 From - Other reallocations]]","v":0},{"$f":"Dataset[[#This Row],[2023/24 To - Spending review Topic 1]]+Dataset[[#This Row],[2023/24 To - Spending review Topic 2]]+Dataset[[#This Row],[2023/24 To - Spending review Topic 3]]+Dataset[[#This Row],[2023/24 To - Spending review Topic 4]]+Dataset[[#This Row],[2023/24 To - Other reallocations]]","v":0},{"$f":"Dataset[[#This Row],[2024/25 To - Spending review Topic 1]]+Dataset[[#This Row],[2024/25 To - Spending review Topic 2]]+Dataset[[#This Row],[2024/25 To - Spending review Topic 3]]+Dataset[[#This Row],[2024/25 To - Spending review Topic 4]]+Dataset[[#This Row],[2024/25 To - Other reallocations]]","v":0},{"$f":"Dataset[[#This Row],[2025/26 To - Spending review Topic 1]]+Dataset[[#This Row],[2025/26 To - Spending review Topic 2]]+Dataset[[#This Row],[2025/26 To - Spending review Topic 3]]+Dataset[[#This Row],[2025/26 To - Spending review Topic 4]]+Dataset[[#This Row],[2025/26 To - Other reallocations]]","v":0},{"$f":"Dataset[[#This Row],[2023/24 Baseline]]+Dataset[[#This Row],[2023/24 From - Total]]+Dataset[[#This Row],[2023/24 To - Total]]","v":0},{"$f":"Dataset[[#This Row],[2024/25 Baseline]]+Dataset[[#This Row],[2024/25 From - Total]]+Dataset[[#This Row],[2024/25 To - Total]]","v":0},{"$f":"Dataset[[#This Row],[2025/26 Baseline]]+Dataset[[#This Row],[2025/26 From - Total]]+Dataset[[#This Row],[2025/26 To - Total]]","v":0}]
["NAT|Non-transfer item","2|Other transfers to households","2023_24","MTEF2023",2,1,3,828,211,"02","01","03","000828","000211","02|01|03",1,2,10,53,57,"01|02|10|53|57","National","Parliament","Administration","Corporate and Support Services","Non-transfer item","Current","Transfers and subsidies","Households","Other transfers to households","Other transfers to households","General public services","Executive and legislative organs","NAT",0,0,0,0,0,0,0,0,0,0,0,null,null,null,null,null,null,null,null,null,null,null,null,null,null,null,null,null,null,null,null,null,null,null,null,null,null,null,null,null,null,{"$f":"Dataset[[#This Row],[2023/24 From - Spending review Topic 1]]+Dataset[[#This Row],[2023/24 From - Spending review Topic 2]]+Dataset[[#This Row],[2023/24 From - Spending review Topic 3]]+Dataset[[#This Row],[2023/24 From - Spending review Topic 4]]+Dataset[[#This Row],[2023/24 From - Other reallocations]]","v":0},{"$f":"Dataset[[#This Row],[2024/25 From - Spending review Topic 1]]+Dataset[[#This Row],[2024/25 From - Spending review Topic 2]]+Dataset[[#This Row],[2024/25 From - Spending review Topic 3]]+Dataset[[#This Row],[2024/25 From - Spending review Topic 4]]+Dataset[[#This Row],[2024/25 From - Other reallocations]]","v":0},{"$f":"Dataset[[#This Row],[2025/26 From - Spending review Topic 1]]+Dataset[[#This Row],[2025/26 From - Spending review Topic 2]]+Dataset[[#This Row],[2025/26 From - Spending review Topic 3]]+Dataset[[#This Row],[2025/26 From - Spending review Topic 4]]+Dataset[[#This Row],[2025/26 From - Other reallocations]]","v":0},{"$f":"Dataset[[#This Row],[2023/24 To - Spending review Topic 1]]+Dataset[[#This Row],[2023/24 To - Spending review Topic 2]]+Dataset[[#This Row],[2023/24 To - Spending review Topic 3]]+Dataset[[#This Row],[2023/24 To - Spending review Topic 4]]+Dataset[[#This Row],[2023/24 To - Other reallocations]]","v":0},{"$f":"Dataset[[#This Row],[2024/25 To - Spending review Topic 1]]+Dataset[[#This Row],[2024/25 To - Spending review Topic 2]]+Dataset[[#This Row],[2024/25 To - Spending review Topic 3]]+Dataset[[#This Row],[2024/25 To - Spending review Topic 4]]+Dataset[[#This Row],[2024/25 To - Other reallocations]]","v":0},{"$f":"Dataset[[#This Row],[2025/26 To - Spending review Topic 1]]+Dataset[[#This Row],[2025/26 To - Spending review Topic 2]]+Dataset[[#This Row],[2025/26 To - Spending review Topic 3]]+Dataset[[#This Row],[2025/26 To - Spending review Topic 4]]+Dataset[[#This Row],[2025/26 To - Other reallocations]]","v":0},{"$f":"Dataset[[#This Row],[2023/24 Baseline]]+Dataset[[#This Row],[2023/24 From - Total]]+Dataset[[#This Row],[2023/24 To - Total]]","v":0},{"$f":"Dataset[[#This Row],[2024/25 Baseline]]+Dataset[[#This Row],[2024/25 From - Total]]+Dataset[[#This Row],[2024/25 To - Total]]","v":0},{"$f":"Dataset[[#This Row],[2025/26 Baseline]]+Dataset[[#This Row],[2025/26 From - Total]]+Dataset[[#This Row],[2025/26 To - Total]]","v":0}]
["NAT|Non-transfer item","2|Provincial Revenue Funds","2023_24","MTEF2023",2,1,3,829,212,"02","01","03","000829","000212","02|01|03",2,2,4,43,43,"02|02|04|43|43","National","Parliament","Administration","Corporate and Support Services","Non-transfer item","Capital","Transfers and subsidies","Provinces and municipalities","Provinces","Provincial Revenue Funds","General public services","Executive and legislative organs","NAT",0,0,0,0,0,0,0,0,0,0,0,null,null,null,null,null,null,null,null,null,null,null,null,null,null,null,null,null,null,null,null,null,null,null,null,null,null,null,null,null,null,{"$f":"Dataset[[#This Row],[2023/24 From - Spending review Topic 1]]+Dataset[[#This Row],[2023/24 From - Spending review Topic 2]]+Dataset[[#This Row],[2023/24 From - Spending review Topic 3]]+Dataset[[#This Row],[2023/24 From - Spending review Topic 4]]+Dataset[[#This Row],[2023/24 From - Other reallocations]]","v":0},{"$f":"Dataset[[#This Row],[2024/25 From - Spending review Topic 1]]+Dataset[[#This Row],[2024/25 From - Spending review Topic 2]]+Dataset[[#This Row],[2024/25 From - Spending review Topic 3]]+Dataset[[#This Row],[2024/25 From - Spending review Topic 4]]+Dataset[[#This Row],[2024/25 From - Other reallocations]]","v":0},{"$f":"Dataset[[#This Row],[2025/26 From - Spending review Topic 1]]+Dataset[[#This Row],[2025/26 From - Spending review Topic 2]]+Dataset[[#This Row],[2025/26 From - Spending review Topic 3]]+Dataset[[#This Row],[2025/26 From - Spending review Topic 4]]+Dataset[[#This Row],[2025/26 From - Other reallocations]]","v":0},{"$f":"Dataset[[#This Row],[2023/24 To - Spending review Topic 1]]+Dataset[[#This Row],[2023/24 To - Spending review Topic 2]]+Dataset[[#This Row],[2023/24 To - Spending review Topic 3]]+Dataset[[#This Row],[2023/24 To - Spending review Topic 4]]+Dataset[[#This Row],[2023/24 To - Other reallocations]]","v":0},{"$f":"Dataset[[#This Row],[2024/25 To - Spending review Topic 1]]+Dataset[[#This Row],[2024/25 To - Spending review Topic 2]]+Dataset[[#This Row],[2024/25 To - Spending review Topic 3]]+Dataset[[#This Row],[2024/25 To - Spending review Topic 4]]+Dataset[[#This Row],[2024/25 To - Other reallocations]]","v":0},{"$f":"Dataset[[#This Row],[2025/26 To - Spending review Topic 1]]+Dataset[[#This Row],[2025/26 To - Spending review Topic 2]]+Dataset[[#This Row],[2025/26 To - Spending review Topic 3]]+Dataset[[#This Row],[2025/26 To - Spending review Topic 4]]+Dataset[[#This Row],[2025/26 To - Other reallocations]]","v":0},{"$f":"Dataset[[#This Row],[2023/24 Baseline]]+Dataset[[#This Row],[2023/24 From - Total]]+Dataset[[#This Row],[2023/24 To - Total]]","v":0},{"$f":"Dataset[[#This Row],[2024/25 Baseline]]+Dataset[[#This Row],[2024/25 From - Total]]+Dataset[[#This Row],[2024/25 To - Total]]","v":0},{"$f":"Dataset[[#This Row],[2025/26 Baseline]]+Dataset[[#This Row],[2025/26 From - Total]]+Dataset[[#This Row],[2025/26 To - Total]]","v":0}]
["NAT|Non-transfer item","2|Municipal bank accounts","2023_24","MTEF2023",2,1,3,830,213,"02","01","03","000830","000213","02|01|03",2,2,4,44,45,"02|02|04|44|45","National","Parliament","Administration","Corporate and Support Services","Non-transfer item","Capital","Transfers and subsidies","Provinces and municipalities","Municipalities","Municipal bank accounts","General public services","Executive and legislative organs","NAT",0,0,0,0,0,0,0,0,0,0,0,null,null,null,null,null,null,null,null,null,null,null,null,null,null,null,null,null,null,null,null,null,null,null,null,null,null,null,null,null,null,{"$f":"Dataset[[#This Row],[2023/24 From - Spending review Topic 1]]+Dataset[[#This Row],[2023/24 From - Spending review Topic 2]]+Dataset[[#This Row],[2023/24 From - Spending review Topic 3]]+Dataset[[#This Row],[2023/24 From - Spending review Topic 4]]+Dataset[[#This Row],[2023/24 From - Other reallocations]]","v":0},{"$f":"Dataset[[#This Row],[2024/25 From - Spending review Topic 1]]+Dataset[[#This Row],[2024/25 From - Spending review Topic 2]]+Dataset[[#This Row],[2024/25 From - Spending review Topic 3]]+Dataset[[#This Row],[2024/25 From - Spending review Topic 4]]+Dataset[[#This Row],[2024/25 From - Other reallocations]]","v":0},{"$f":"Dataset[[#This Row],[2025/26 From - Spending review Topic 1]]+Dataset[[#This Row],[2025/26 From - Spending review Topic 2]]+Dataset[[#This Row],[2025/26 From - Spending review Topic 3]]+Dataset[[#This Row],[2025/26 From - Spending review Topic 4]]+Dataset[[#This Row],[2025/26 From - Other reallocations]]","v":0},{"$f":"Dataset[[#This Row],[2023/24 To - Spending review Topic 1]]+Dataset[[#This Row],[2023/24 To - Spending review Topic 2]]+Dataset[[#This Row],[2023/24 To - Spending review Topic 3]]+Dataset[[#This Row],[2023/24 To - Spending review Topic 4]]+Dataset[[#This Row],[2023/24 To - Other reallocations]]","v":0},{"$f":"Dataset[[#This Row],[2024/25 To - Spending review Topic 1]]+Dataset[[#This Row],[2024/25 To - Spending review Topic 2]]+Dataset[[#This Row],[2024/25 To - Spending review Topic 3]]+Dataset[[#This Row],[2024/25 To - Spending review Topic 4]]+Dataset[[#This Row],[2024/25 To - Other reallocations]]","v":0},{"$f":"Dataset[[#This Row],[2025/26 To - Spending review Topic 1]]+Dataset[[#This Row],[2025/26 To - Spending review Topic 2]]+Dataset[[#This Row],[2025/26 To - Spending review Topic 3]]+Dataset[[#This Row],[2025/26 To - Spending review Topic 4]]+Dataset[[#This Row],[2025/26 To - Other reallocations]]","v":0},{"$f":"Dataset[[#This Row],[2023/24 Baseline]]+Dataset[[#This Row],[2023/24 From - Total]]+Dataset[[#This Row],[2023/24 To - Total]]","v":0},{"$f":"Dataset[[#This Row],[2024/25 Baseline]]+Dataset[[#This Row],[2024/25 From - Total]]+Dataset[[#This Row],[2024/25 To - Total]]","v":0},{"$f":"Dataset[[#This Row],[2025/26 Baseline]]+Dataset[[#This Row],[2025/26 From - Total]]+Dataset[[#This Row],[2025/26 To - Total]]","v":0}]
["NAT|Non-transfer item","2|Departmental agencies (non-business entities)","2023_24","MTEF2023",2,1,3,831,214,"02","01","03","000831","000214","02|01|03",2,2,5,46,48,"02|02|05|46|48","National","Parliament","Administration","Corporate and Support Services","Non-transfer item","Capital","Transfers and subsidies","Departmental agencies and accounts","Departmental agencies (non-business entities)","Departmental agencies (non-business entities)","General public services","Executive and legislative organs","NAT",0,0,0,0,0,0,0,0,0,0,0,null,null,null,null,null,null,null,null,null,null,null,null,null,null,null,null,null,null,null,null,null,null,null,null,null,null,null,null,null,null,{"$f":"Dataset[[#This Row],[2023/24 From - Spending review Topic 1]]+Dataset[[#This Row],[2023/24 From - Spending review Topic 2]]+Dataset[[#This Row],[2023/24 From - Spending review Topic 3]]+Dataset[[#This Row],[2023/24 From - Spending review Topic 4]]+Dataset[[#This Row],[2023/24 From - Other reallocations]]","v":0},{"$f":"Dataset[[#This Row],[2024/25 From - Spending review Topic 1]]+Dataset[[#This Row],[2024/25 From - Spending review Topic 2]]+Dataset[[#This Row],[2024/25 From - Spending review Topic 3]]+Dataset[[#This Row],[2024/25 From - Spending review Topic 4]]+Dataset[[#This Row],[2024/25 From - Other reallocations]]","v":0},{"$f":"Dataset[[#This Row],[2025/26 From - Spending review Topic 1]]+Dataset[[#This Row],[2025/26 From - Spending review Topic 2]]+Dataset[[#This Row],[2025/26 From - Spending review Topic 3]]+Dataset[[#This Row],[2025/26 From - Spending review Topic 4]]+Dataset[[#This Row],[2025/26 From - Other reallocations]]","v":0},{"$f":"Dataset[[#This Row],[2023/24 To - Spending review Topic 1]]+Dataset[[#This Row],[2023/24 To - Spending review Topic 2]]+Dataset[[#This Row],[2023/24 To - Spending review Topic 3]]+Dataset[[#This Row],[2023/24 To - Spending review Topic 4]]+Dataset[[#This Row],[2023/24 To - Other reallocations]]","v":0},{"$f":"Dataset[[#This Row],[2024/25 To - Spending review Topic 1]]+Dataset[[#This Row],[2024/25 To - Spending review Topic 2]]+Dataset[[#This Row],[2024/25 To - Spending review Topic 3]]+Dataset[[#This Row],[2024/25 To - Spending review Topic 4]]+Dataset[[#This Row],[2024/25 To - Other reallocations]]","v":0},{"$f":"Dataset[[#This Row],[2025/26 To - Spending review Topic 1]]+Dataset[[#This Row],[2025/26 To - Spending review Topic 2]]+Dataset[[#This Row],[2025/26 To - Spending review Topic 3]]+Dataset[[#This Row],[2025/26 To - Spending review Topic 4]]+Dataset[[#This Row],[2025/26 To - Other reallocations]]","v":0},{"$f":"Dataset[[#This Row],[2023/24 Baseline]]+Dataset[[#This Row],[2023/24 From - Total]]+Dataset[[#This Row],[2023/24 To - Total]]","v":0},{"$f":"Dataset[[#This Row],[2024/25 Baseline]]+Dataset[[#This Row],[2024/25 From - Total]]+Dataset[[#This Row],[2024/25 To - Total]]","v":0},{"$f":"Dataset[[#This Row],[2025/26 Baseline]]+Dataset[[#This Row],[2025/26 From - Total]]+Dataset[[#This Row],[2025/26 To - Total]]","v":0}]
["NAT|Non-transfer item","2|Higher education institutions","2023_24","MTEF2023",2,1,3,832,215,"02","01","03","000832","000215","02|01|03",2,2,6,47,49,"02|02|06|47|49","National","Parliament","Administration","Corporate and Support Services","Non-transfer item","Capital","Transfers and subsidies","Higher education institutions","Higher education institutions","Higher education institutions","General public services","Executive and legislative organs","NAT",0,0,0,0,0,0,0,0,0,0,0,null,null,null,null,null,null,null,null,null,null,null,null,null,null,null,null,null,null,null,null,null,null,null,null,null,null,null,null,null,null,{"$f":"Dataset[[#This Row],[2023/24 From - Spending review Topic 1]]+Dataset[[#This Row],[2023/24 From - Spending review Topic 2]]+Dataset[[#This Row],[2023/24 From - Spending review Topic 3]]+Dataset[[#This Row],[2023/24 From - Spending review Topic 4]]+Dataset[[#This Row],[2023/24 From - Other reallocations]]","v":0},{"$f":"Dataset[[#This Row],[2024/25 From - Spending review Topic 1]]+Dataset[[#This Row],[2024/25 From - Spending review Topic 2]]+Dataset[[#This Row],[2024/25 From - Spending review Topic 3]]+Dataset[[#This Row],[2024/25 From - Spending review Topic 4]]+Dataset[[#This Row],[2024/25 From - Other reallocations]]","v":0},{"$f":"Dataset[[#This Row],[2025/26 From - Spending review Topic 1]]+Dataset[[#This Row],[2025/26 From - Spending review Topic 2]]+Dataset[[#This Row],[2025/26 From - Spending review Topic 3]]+Dataset[[#This Row],[2025/26 From - Spending review Topic 4]]+Dataset[[#This Row],[2025/26 From - Other reallocations]]","v":0},{"$f":"Dataset[[#This Row],[2023/24 To - Spending review Topic 1]]+Dataset[[#This Row],[2023/24 To - Spending review Topic 2]]+Dataset[[#This Row],[2023/24 To - Spending review Topic 3]]+Dataset[[#This Row],[2023/24 To - Spending review Topic 4]]+Dataset[[#This Row],[2023/24 To - Other reallocations]]","v":0},{"$f":"Dataset[[#This Row],[2024/25 To - Spending review Topic 1]]+Dataset[[#This Row],[2024/25 To - Spending review Topic 2]]+Dataset[[#This Row],[2024/25 To - Spending review Topic 3]]+Dataset[[#This Row],[2024/25 To - Spending review Topic 4]]+Dataset[[#This Row],[2024/25 To - Other reallocations]]","v":0},{"$f":"Dataset[[#This Row],[2025/26 To - Spending review Topic 1]]+Dataset[[#This Row],[2025/26 To - Spending review Topic 2]]+Dataset[[#This Row],[2025/26 To - Spending review Topic 3]]+Dataset[[#This Row],[2025/26 To - Spending review Topic 4]]+Dataset[[#This Row],[2025/26 To - Other reallocations]]","v":0},{"$f":"Dataset[[#This Row],[2023/24 Baseline]]+Dataset[[#This Row],[2023/24 From - Total]]+Dataset[[#This Row],[2023/24 To - Total]]","v":0},{"$f":"Dataset[[#This Row],[2024/25 Baseline]]+Dataset[[#This Row],[2024/25 From - Total]]+Dataset[[#This Row],[2024/25 To - Total]]","v":0},{"$f":"Dataset[[#This Row],[2025/26 Baseline]]+Dataset[[#This Row],[2025/26 From - Total]]+Dataset[[#This Row],[2025/26 To - Total]]","v":0}]
["NAT|Non-transfer item","2|Foreign governments and international organisations","2023_24","MTEF2023",2,1,3,833,216,"02","01","03","000833","000216","02|01|03",2,2,7,48,50,"02|02|07|48|50","National","Parliament","Administration","Corporate and Support Services","Non-transfer item","Capital","Transfers and subsidies","Foreign governments and international organisations","Foreign governments and international organisations","Foreign governments and international organisations","General public services","Executive and legislative organs","NAT",0,0,0,0,0,0,0,0,0,0,0,null,null,null,null,null,null,null,null,null,null,null,null,null,null,null,null,null,null,null,null,null,null,null,null,null,null,null,null,null,null,{"$f":"Dataset[[#This Row],[2023/24 From - Spending review Topic 1]]+Dataset[[#This Row],[2023/24 From - Spending review Topic 2]]+Dataset[[#This Row],[2023/24 From - Spending review Topic 3]]+Dataset[[#This Row],[2023/24 From - Spending review Topic 4]]+Dataset[[#This Row],[2023/24 From - Other reallocations]]","v":0},{"$f":"Dataset[[#This Row],[2024/25 From - Spending review Topic 1]]+Dataset[[#This Row],[2024/25 From - Spending review Topic 2]]+Dataset[[#This Row],[2024/25 From - Spending review Topic 3]]+Dataset[[#This Row],[2024/25 From - Spending review Topic 4]]+Dataset[[#This Row],[2024/25 From - Other reallocations]]","v":0},{"$f":"Dataset[[#This Row],[2025/26 From - Spending review Topic 1]]+Dataset[[#This Row],[2025/26 From - Spending review Topic 2]]+Dataset[[#This Row],[2025/26 From - Spending review Topic 3]]+Dataset[[#This Row],[2025/26 From - Spending review Topic 4]]+Dataset[[#This Row],[2025/26 From - Other reallocations]]","v":0},{"$f":"Dataset[[#This Row],[2023/24 To - Spending review Topic 1]]+Dataset[[#This Row],[2023/24 To - Spending review Topic 2]]+Dataset[[#This Row],[2023/24 To - Spending review Topic 3]]+Dataset[[#This Row],[2023/24 To - Spending review Topic 4]]+Dataset[[#This Row],[2023/24 To - Other reallocations]]","v":0},{"$f":"Dataset[[#This Row],[2024/25 To - Spending review Topic 1]]+Dataset[[#This Row],[2024/25 To - Spending review Topic 2]]+Dataset[[#This Row],[2024/25 To - Spending review Topic 3]]+Dataset[[#This Row],[2024/25 To - Spending review Topic 4]]+Dataset[[#This Row],[2024/25 To - Other reallocations]]","v":0},{"$f":"Dataset[[#This Row],[2025/26 To - Spending review Topic 1]]+Dataset[[#This Row],[2025/26 To - Spending review Topic 2]]+Dataset[[#This Row],[2025/26 To - Spending review Topic 3]]+Dataset[[#This Row],[2025/26 To - Spending review Topic 4]]+Dataset[[#This Row],[2025/26 To - Other reallocations]]","v":0},{"$f":"Dataset[[#This Row],[2023/24 Baseline]]+Dataset[[#This Row],[2023/24 From - Total]]+Dataset[[#This Row],[2023/24 To - Total]]","v":0},{"$f":"Dataset[[#This Row],[2024/25 Baseline]]+Dataset[[#This Row],[2024/25 From - Total]]+Dataset[[#This Row],[2024/25 To - Total]]","v":0},{"$f":"Dataset[[#This Row],[2025/26 Baseline]]+Dataset[[#This Row],[2025/26 From - Total]]+Dataset[[#This Row],[2025/26 To - Total]]","v":0}]
["NAT|Non-transfer item","2|Subsidies on products and production (pc)","2023_24","MTEF2023",2,1,3,834,217,"02","01","03","000834","000217","02|01|03",2,2,8,49,51,"02|02|08|49|51","National","Parliament","Administration","Corporate and Support Services","Non-transfer item","Capital","Transfers and subsidies","Public corporations and private enterprises","Public corporations","Subsidies on products and production (pc)","General public services","Executive and legislative organs","NAT",0,0,0,0,0,0,0,0,0,0,0,null,null,null,null,null,null,null,null,null,null,null,null,null,null,null,null,null,null,null,null,null,null,null,null,null,null,null,null,null,null,{"$f":"Dataset[[#This Row],[2023/24 From - Spending review Topic 1]]+Dataset[[#This Row],[2023/24 From - Spending review Topic 2]]+Dataset[[#This Row],[2023/24 From - Spending review Topic 3]]+Dataset[[#This Row],[2023/24 From - Spending review Topic 4]]+Dataset[[#This Row],[2023/24 From - Other reallocations]]","v":0},{"$f":"Dataset[[#This Row],[2024/25 From - Spending review Topic 1]]+Dataset[[#This Row],[2024/25 From - Spending review Topic 2]]+Dataset[[#This Row],[2024/25 From - Spending review Topic 3]]+Dataset[[#This Row],[2024/25 From - Spending review Topic 4]]+Dataset[[#This Row],[2024/25 From - Other reallocations]]","v":0},{"$f":"Dataset[[#This Row],[2025/26 From - Spending review Topic 1]]+Dataset[[#This Row],[2025/26 From - Spending review Topic 2]]+Dataset[[#This Row],[2025/26 From - Spending review Topic 3]]+Dataset[[#This Row],[2025/26 From - Spending review Topic 4]]+Dataset[[#This Row],[2025/26 From - Other reallocations]]","v":0},{"$f":"Dataset[[#This Row],[2023/24 To - Spending review Topic 1]]+Dataset[[#This Row],[2023/24 To - Spending review Topic 2]]+Dataset[[#This Row],[2023/24 To - Spending review Topic 3]]+Dataset[[#This Row],[2023/24 To - Spending review Topic 4]]+Dataset[[#This Row],[2023/24 To - Other reallocations]]","v":0},{"$f":"Dataset[[#This Row],[2024/25 To - Spending review Topic 1]]+Dataset[[#This Row],[2024/25 To - Spending review Topic 2]]+Dataset[[#This Row],[2024/25 To - Spending review Topic 3]]+Dataset[[#This Row],[2024/25 To - Spending review Topic 4]]+Dataset[[#This Row],[2024/25 To - Other reallocations]]","v":0},{"$f":"Dataset[[#This Row],[2025/26 To - Spending review Topic 1]]+Dataset[[#This Row],[2025/26 To - Spending review Topic 2]]+Dataset[[#This Row],[2025/26 To - Spending review Topic 3]]+Dataset[[#This Row],[2025/26 To - Spending review Topic 4]]+Dataset[[#This Row],[2025/26 To - Other reallocations]]","v":0},{"$f":"Dataset[[#This Row],[2023/24 Baseline]]+Dataset[[#This Row],[2023/24 From - Total]]+Dataset[[#This Row],[2023/24 To - Total]]","v":0},{"$f":"Dataset[[#This Row],[2024/25 Baseline]]+Dataset[[#This Row],[2024/25 From - Total]]+Dataset[[#This Row],[2024/25 To - Total]]","v":0},{"$f":"Dataset[[#This Row],[2025/26 Baseline]]+Dataset[[#This Row],[2025/26 From - Total]]+Dataset[[#This Row],[2025/26 To - Total]]","v":0}]
["NAT|Non-transfer item","2|Other transfers to public corporations","2023_24","MTEF2023",2,1,3,835,218,"02","01","03","000835","000218","02|01|03",2,2,8,49,52,"02|02|08|49|52","National","Parliament","Administration","Corporate and Support Services","Non-transfer item","Capital","Transfers and subsidies","Public corporations and private enterprises","Public corporations","Other transfers to public corporations","General public services","Executive and legislative organs","NAT",0,0,0,0,0,0,0,0,0,0,0,null,null,null,null,null,null,null,null,null,null,null,null,null,null,null,null,null,null,null,null,null,null,null,null,null,null,null,null,null,null,{"$f":"Dataset[[#This Row],[2023/24 From - Spending review Topic 1]]+Dataset[[#This Row],[2023/24 From - Spending review Topic 2]]+Dataset[[#This Row],[2023/24 From - Spending review Topic 3]]+Dataset[[#This Row],[2023/24 From - Spending review Topic 4]]+Dataset[[#This Row],[2023/24 From - Other reallocations]]","v":0},{"$f":"Dataset[[#This Row],[2024/25 From - Spending review Topic 1]]+Dataset[[#This Row],[2024/25 From - Spending review Topic 2]]+Dataset[[#This Row],[2024/25 From - Spending review Topic 3]]+Dataset[[#This Row],[2024/25 From - Spending review Topic 4]]+Dataset[[#This Row],[2024/25 From - Other reallocations]]","v":0},{"$f":"Dataset[[#This Row],[2025/26 From - Spending review Topic 1]]+Dataset[[#This Row],[2025/26 From - Spending review Topic 2]]+Dataset[[#This Row],[2025/26 From - Spending review Topic 3]]+Dataset[[#This Row],[2025/26 From - Spending review Topic 4]]+Dataset[[#This Row],[2025/26 From - Other reallocations]]","v":0},{"$f":"Dataset[[#This Row],[2023/24 To - Spending review Topic 1]]+Dataset[[#This Row],[2023/24 To - Spending review Topic 2]]+Dataset[[#This Row],[2023/24 To - Spending review Topic 3]]+Dataset[[#This Row],[2023/24 To - Spending review Topic 4]]+Dataset[[#This Row],[2023/24 To - Other reallocations]]","v":0},{"$f":"Dataset[[#This Row],[2024/25 To - Spending review Topic 1]]+Dataset[[#This Row],[2024/25 To - Spending review Topic 2]]+Dataset[[#This Row],[2024/25 To - Spending review Topic 3]]+Dataset[[#This Row],[2024/25 To - Spending review Topic 4]]+Dataset[[#This Row],[2024/25 To - Other reallocations]]","v":0},{"$f":"Dataset[[#This Row],[2025/26 To - Spending review Topic 1]]+Dataset[[#This Row],[2025/26 To - Spending review Topic 2]]+Dataset[[#This Row],[2025/26 To - Spending review Topic 3]]+Dataset[[#This Row],[2025/26 To - Spending review Topic 4]]+Dataset[[#This Row],[2025/26 To - Other reallocations]]","v":0},{"$f":"Dataset[[#This Row],[2023/24 Baseline]]+Dataset[[#This Row],[2023/24 From - Total]]+Dataset[[#This Row],[2023/24 To - Total]]","v":0},{"$f":"Dataset[[#This Row],[2024/25 Baseline]]+Dataset[[#This Row],[2024/25 From - Total]]+Dataset[[#This Row],[2024/25 To - Total]]","v":0},{"$f":"Dataset[[#This Row],[2025/26 Baseline]]+Dataset[[#This Row],[2025/26 From - Total]]+Dataset[[#This Row],[2025/26 To - Total]]","v":0}]
["NAT|Non-transfer item","2|Other transfers to private enterprises","2023_24","MTEF2023",2,1,3,836,219,"02","01","03","000836","000219","02|01|03",2,2,8,50,54,"02|02|08|50|54","National","Parliament","Administration","Corporate and Support Services","Non-transfer item","Capital","Transfers and subsidies","Public corporations and private enterprises","Private enterprises","Other transfers to private enterprises","General public services","Executive and legislative organs","NAT",0,0,0,0,0,0,0,0,0,0,0,null,null,null,null,null,null,null,null,null,null,null,null,null,null,null,null,null,null,null,null,null,null,null,null,null,null,null,null,null,null,{"$f":"Dataset[[#This Row],[2023/24 From - Spending review Topic 1]]+Dataset[[#This Row],[2023/24 From - Spending review Topic 2]]+Dataset[[#This Row],[2023/24 From - Spending review Topic 3]]+Dataset[[#This Row],[2023/24 From - Spending review Topic 4]]+Dataset[[#This Row],[2023/24 From - Other reallocations]]","v":0},{"$f":"Dataset[[#This Row],[2024/25 From - Spending review Topic 1]]+Dataset[[#This Row],[2024/25 From - Spending review Topic 2]]+Dataset[[#This Row],[2024/25 From - Spending review Topic 3]]+Dataset[[#This Row],[2024/25 From - Spending review Topic 4]]+Dataset[[#This Row],[2024/25 From - Other reallocations]]","v":0},{"$f":"Dataset[[#This Row],[2025/26 From - Spending review Topic 1]]+Dataset[[#This Row],[2025/26 From - Spending review Topic 2]]+Dataset[[#This Row],[2025/26 From - Spending review Topic 3]]+Dataset[[#This Row],[2025/26 From - Spending review Topic 4]]+Dataset[[#This Row],[2025/26 From - Other reallocations]]","v":0},{"$f":"Dataset[[#This Row],[2023/24 To - Spending review Topic 1]]+Dataset[[#This Row],[2023/24 To - Spending review Topic 2]]+Dataset[[#This Row],[2023/24 To - Spending review Topic 3]]+Dataset[[#This Row],[2023/24 To - Spending review Topic 4]]+Dataset[[#This Row],[2023/24 To - Other reallocations]]","v":0},{"$f":"Dataset[[#This Row],[2024/25 To - Spending review Topic 1]]+Dataset[[#This Row],[2024/25 To - Spending review Topic 2]]+Dataset[[#This Row],[2024/25 To - Spending review Topic 3]]+Dataset[[#This Row],[2024/25 To - Spending review Topic 4]]+Dataset[[#This Row],[2024/25 To - Other reallocations]]","v":0},{"$f":"Dataset[[#This Row],[2025/26 To - Spending review Topic 1]]+Dataset[[#This Row],[2025/26 To - Spending review Topic 2]]+Dataset[[#This Row],[2025/26 To - Spending review Topic 3]]+Dataset[[#This Row],[2025/26 To - Spending review Topic 4]]+Dataset[[#This Row],[2025/26 To - Other reallocations]]","v":0},{"$f":"Dataset[[#This Row],[2023/24 Baseline]]+Dataset[[#This Row],[2023/24 From - Total]]+Dataset[[#This Row],[2023/24 To - Total]]","v":0},{"$f":"Dataset[[#This Row],[2024/25 Baseline]]+Dataset[[#This Row],[2024/25 From - Total]]+Dataset[[#This Row],[2024/25 To - Total]]","v":0},{"$f":"Dataset[[#This Row],[2025/26 Baseline]]+Dataset[[#This Row],[2025/26 From - Total]]+Dataset[[#This Row],[2025/26 To - Total]]","v":0}]
["NAT|Non-transfer item","2|Non-profit institutions","2023_24","MTEF2023",2,1,3,837,220,"02","01","03","000837","000220","02|01|03",2,2,9,51,55,"02|02|09|51|55","National","Parliament","Administration","Corporate and Support Services","Non-transfer item","Capital","Transfers and subsidies","Non-profit institutions","Non-profit institutions","Non-profit institutions","General public services","Executive and legislative organs","NAT",0,0,0,0,0,0,0,0,0,0,0,null,null,null,null,null,null,null,null,null,null,null,null,null,null,null,null,null,null,null,null,null,null,null,null,null,null,null,null,null,null,{"$f":"Dataset[[#This Row],[2023/24 From - Spending review Topic 1]]+Dataset[[#This Row],[2023/24 From - Spending review Topic 2]]+Dataset[[#This Row],[2023/24 From - Spending review Topic 3]]+Dataset[[#This Row],[2023/24 From - Spending review Topic 4]]+Dataset[[#This Row],[2023/24 From - Other reallocations]]","v":0},{"$f":"Dataset[[#This Row],[2024/25 From - Spending review Topic 1]]+Dataset[[#This Row],[2024/25 From - Spending review Topic 2]]+Dataset[[#This Row],[2024/25 From - Spending review Topic 3]]+Dataset[[#This Row],[2024/25 From - Spending review Topic 4]]+Dataset[[#This Row],[2024/25 From - Other reallocations]]","v":0},{"$f":"Dataset[[#This Row],[2025/26 From - Spending review Topic 1]]+Dataset[[#This Row],[2025/26 From - Spending review Topic 2]]+Dataset[[#This Row],[2025/26 From - Spending review Topic 3]]+Dataset[[#This Row],[2025/26 From - Spending review Topic 4]]+Dataset[[#This Row],[2025/26 From - Other reallocations]]","v":0},{"$f":"Dataset[[#This Row],[2023/24 To - Spending review Topic 1]]+Dataset[[#This Row],[2023/24 To - Spending review Topic 2]]+Dataset[[#This Row],[2023/24 To - Spending review Topic 3]]+Dataset[[#This Row],[2023/24 To - Spending review Topic 4]]+Dataset[[#This Row],[2023/24 To - Other reallocations]]","v":0},{"$f":"Dataset[[#This Row],[2024/25 To - Spending review Topic 1]]+Dataset[[#This Row],[2024/25 To - Spending review Topic 2]]+Dataset[[#This Row],[2024/25 To - Spending review Topic 3]]+Dataset[[#This Row],[2024/25 To - Spending review Topic 4]]+Dataset[[#This Row],[2024/25 To - Other reallocations]]","v":0},{"$f":"Dataset[[#This Row],[2025/26 To - Spending review Topic 1]]+Dataset[[#This Row],[2025/26 To - Spending review Topic 2]]+Dataset[[#This Row],[2025/26 To - Spending review Topic 3]]+Dataset[[#This Row],[2025/26 To - Spending review Topic 4]]+Dataset[[#This Row],[2025/26 To - Other reallocations]]","v":0},{"$f":"Dataset[[#This Row],[2023/24 Baseline]]+Dataset[[#This Row],[2023/24 From - Total]]+Dataset[[#This Row],[2023/24 To - Total]]","v":0},{"$f":"Dataset[[#This Row],[2024/25 Baseline]]+Dataset[[#This Row],[2024/25 From - Total]]+Dataset[[#This Row],[2024/25 To - Total]]","v":0},{"$f":"Dataset[[#This Row],[2025/26 Baseline]]+Dataset[[#This Row],[2025/26 From - Total]]+Dataset[[#This Row],[2025/26 To - Total]]","v":0}]
["NAT|Non-transfer item","2|Other transfers to households","2023_24","MTEF2023",2,1,3,838,221,"02","01","03","000838","000221","02|01|03",2,2,10,53,57,"02|02|10|53|57","National","Parliament","Administration","Corporate and Support Services","Non-transfer item","Capital","Transfers and subsidies","Households","Other transfers to households","Other transfers to households","General public services","Executive and legislative organs","NAT",0,0,0,0,0,0,0,0,0,0,0,null,null,null,null,null,null,null,null,null,null,null,null,null,null,null,null,null,null,null,null,null,null,null,null,null,null,null,null,null,null,{"$f":"Dataset[[#This Row],[2023/24 From - Spending review Topic 1]]+Dataset[[#This Row],[2023/24 From - Spending review Topic 2]]+Dataset[[#This Row],[2023/24 From - Spending review Topic 3]]+Dataset[[#This Row],[2023/24 From - Spending review Topic 4]]+Dataset[[#This Row],[2023/24 From - Other reallocations]]","v":0},{"$f":"Dataset[[#This Row],[2024/25 From - Spending review Topic 1]]+Dataset[[#This Row],[2024/25 From - Spending review Topic 2]]+Dataset[[#This Row],[2024/25 From - Spending review Topic 3]]+Dataset[[#This Row],[2024/25 From - Spending review Topic 4]]+Dataset[[#This Row],[2024/25 From - Other reallocations]]","v":0},{"$f":"Dataset[[#This Row],[2025/26 From - Spending review Topic 1]]+Dataset[[#This Row],[2025/26 From - Spending review Topic 2]]+Dataset[[#This Row],[2025/26 From - Spending review Topic 3]]+Dataset[[#This Row],[2025/26 From - Spending review Topic 4]]+Dataset[[#This Row],[2025/26 From - Other reallocations]]","v":0},{"$f":"Dataset[[#This Row],[2023/24 To - Spending review Topic 1]]+Dataset[[#This Row],[2023/24 To - Spending review Topic 2]]+Dataset[[#This Row],[2023/24 To - Spending review Topic 3]]+Dataset[[#This Row],[2023/24 To - Spending review Topic 4]]+Dataset[[#This Row],[2023/24 To - Other reallocations]]","v":0},{"$f":"Dataset[[#This Row],[2024/25 To - Spending review Topic 1]]+Dataset[[#This Row],[2024/25 To - Spending review Topic 2]]+Dataset[[#This Row],[2024/25 To - Spending review Topic 3]]+Dataset[[#This Row],[2024/25 To - Spending review Topic 4]]+Dataset[[#This Row],[2024/25 To - Other reallocations]]","v":0},{"$f":"Dataset[[#This Row],[2025/26 To - Spending review Topic 1]]+Dataset[[#This Row],[2025/26 To - Spending review Topic 2]]+Dataset[[#This Row],[2025/26 To - Spending review Topic 3]]+Dataset[[#This Row],[2025/26 To - Spending review Topic 4]]+Dataset[[#This Row],[2025/26 To - Other reallocations]]","v":0},{"$f":"Dataset[[#This Row],[2023/24 Baseline]]+Dataset[[#This Row],[2023/24 From - Total]]+Dataset[[#This Row],[2023/24 To - Total]]","v":0},{"$f":"Dataset[[#This Row],[2024/25 Baseline]]+Dataset[[#This Row],[2024/25 From - Total]]+Dataset[[#This Row],[2024/25 To - Total]]","v":0},{"$f":"Dataset[[#This Row],[2025/26 Baseline]]+Dataset[[#This Row],[2025/26 From - Total]]+Dataset[[#This Row],[2025/26 To - Total]]","v":0}]
["NAT|Non-transfer item","2|Buildings","2023_24","MTEF2023",2,1,3,839,222,"02","01","03","000839","000222","02|01|03",2,3,11,54,58,"02|03|11|54|58","National","Parliament","Administration","Corporate and Support Services","Non-transfer item","Capital","Payments for capital assets","Buildings and other fixed structures","Buildings","Buildings","General public services","Executive and legislative organs","NAT",0,0,0,0,0,0,0,0,0,0,0,null,null,null,null,null,null,null,null,null,null,null,null,null,null,null,null,null,null,null,null,null,null,null,null,null,null,null,null,null,null,{"$f":"Dataset[[#This Row],[2023/24 From - Spending review Topic 1]]+Dataset[[#This Row],[2023/24 From - Spending review Topic 2]]+Dataset[[#This Row],[2023/24 From - Spending review Topic 3]]+Dataset[[#This Row],[2023/24 From - Spending review Topic 4]]+Dataset[[#This Row],[2023/24 From - Other reallocations]]","v":0},{"$f":"Dataset[[#This Row],[2024/25 From - Spending review Topic 1]]+Dataset[[#This Row],[2024/25 From - Spending review Topic 2]]+Dataset[[#This Row],[2024/25 From - Spending review Topic 3]]+Dataset[[#This Row],[2024/25 From - Spending review Topic 4]]+Dataset[[#This Row],[2024/25 From - Other reallocations]]","v":0},{"$f":"Dataset[[#This Row],[2025/26 From - Spending review Topic 1]]+Dataset[[#This Row],[2025/26 From - Spending review Topic 2]]+Dataset[[#This Row],[2025/26 From - Spending review Topic 3]]+Dataset[[#This Row],[2025/26 From - Spending review Topic 4]]+Dataset[[#This Row],[2025/26 From - Other reallocations]]","v":0},{"$f":"Dataset[[#This Row],[2023/24 To - Spending review Topic 1]]+Dataset[[#This Row],[2023/24 To - Spending review Topic 2]]+Dataset[[#This Row],[2023/24 To - Spending review Topic 3]]+Dataset[[#This Row],[2023/24 To - Spending review Topic 4]]+Dataset[[#This Row],[2023/24 To - Other reallocations]]","v":0},{"$f":"Dataset[[#This Row],[2024/25 To - Spending review Topic 1]]+Dataset[[#This Row],[2024/25 To - Spending review Topic 2]]+Dataset[[#This Row],[2024/25 To - Spending review Topic 3]]+Dataset[[#This Row],[2024/25 To - Spending review Topic 4]]+Dataset[[#This Row],[2024/25 To - Other reallocations]]","v":0},{"$f":"Dataset[[#This Row],[2025/26 To - Spending review Topic 1]]+Dataset[[#This Row],[2025/26 To - Spending review Topic 2]]+Dataset[[#This Row],[2025/26 To - Spending review Topic 3]]+Dataset[[#This Row],[2025/26 To - Spending review Topic 4]]+Dataset[[#This Row],[2025/26 To - Other reallocations]]","v":0},{"$f":"Dataset[[#This Row],[2023/24 Baseline]]+Dataset[[#This Row],[2023/24 From - Total]]+Dataset[[#This Row],[2023/24 To - Total]]","v":0},{"$f":"Dataset[[#This Row],[2024/25 Baseline]]+Dataset[[#This Row],[2024/25 From - Total]]+Dataset[[#This Row],[2024/25 To - Total]]","v":0},{"$f":"Dataset[[#This Row],[2025/26 Baseline]]+Dataset[[#This Row],[2025/26 From - Total]]+Dataset[[#This Row],[2025/26 To - Total]]","v":0}]
["NAT|Non-transfer item","2|Other fixed structures","2023_24","MTEF2023",2,1,3,840,223,"02","01","03","000840","000223","02|01|03",2,3,11,55,59,"02|03|11|55|59","National","Parliament","Administration","Corporate and Support Services","Non-transfer item","Capital","Payments for capital assets","Buildings and other fixed structures","Other fixed structures","Other fixed structures","General public services","Executive and legislative organs","NAT",0,0,0,0,0,0,0,0,0,0,0,null,null,null,null,null,null,null,null,null,null,null,null,null,null,null,null,null,null,null,null,null,null,null,null,null,null,null,null,null,null,{"$f":"Dataset[[#This Row],[2023/24 From - Spending review Topic 1]]+Dataset[[#This Row],[2023/24 From - Spending review Topic 2]]+Dataset[[#This Row],[2023/24 From - Spending review Topic 3]]+Dataset[[#This Row],[2023/24 From - Spending review Topic 4]]+Dataset[[#This Row],[2023/24 From - Other reallocations]]","v":0},{"$f":"Dataset[[#This Row],[2024/25 From - Spending review Topic 1]]+Dataset[[#This Row],[2024/25 From - Spending review Topic 2]]+Dataset[[#This Row],[2024/25 From - Spending review Topic 3]]+Dataset[[#This Row],[2024/25 From - Spending review Topic 4]]+Dataset[[#This Row],[2024/25 From - Other reallocations]]","v":0},{"$f":"Dataset[[#This Row],[2025/26 From - Spending review Topic 1]]+Dataset[[#This Row],[2025/26 From - Spending review Topic 2]]+Dataset[[#This Row],[2025/26 From - Spending review Topic 3]]+Dataset[[#This Row],[2025/26 From - Spending review Topic 4]]+Dataset[[#This Row],[2025/26 From - Other reallocations]]","v":0},{"$f":"Dataset[[#This Row],[2023/24 To - Spending review Topic 1]]+Dataset[[#This Row],[2023/24 To - Spending review Topic 2]]+Dataset[[#This Row],[2023/24 To - Spending review Topic 3]]+Dataset[[#This Row],[2023/24 To - Spending review Topic 4]]+Dataset[[#This Row],[2023/24 To - Other reallocations]]","v":0},{"$f":"Dataset[[#This Row],[2024/25 To - Spending review Topic 1]]+Dataset[[#This Row],[2024/25 To - Spending review Topic 2]]+Dataset[[#This Row],[2024/25 To - Spending review Topic 3]]+Dataset[[#This Row],[2024/25 To - Spending review Topic 4]]+Dataset[[#This Row],[2024/25 To - Other reallocations]]","v":0},{"$f":"Dataset[[#This Row],[2025/26 To - Spending review Topic 1]]+Dataset[[#This Row],[2025/26 To - Spending review Topic 2]]+Dataset[[#This Row],[2025/26 To - Spending review Topic 3]]+Dataset[[#This Row],[2025/26 To - Spending review Topic 4]]+Dataset[[#This Row],[2025/26 To - Other reallocations]]","v":0},{"$f":"Dataset[[#This Row],[2023/24 Baseline]]+Dataset[[#This Row],[2023/24 From - Total]]+Dataset[[#This Row],[2023/24 To - Total]]","v":0},{"$f":"Dataset[[#This Row],[2024/25 Baseline]]+Dataset[[#This Row],[2024/25 From - Total]]+Dataset[[#This Row],[2024/25 To - Total]]","v":0},{"$f":"Dataset[[#This Row],[2025/26 Baseline]]+Dataset[[#This Row],[2025/26 From - Total]]+Dataset[[#This Row],[2025/26 To - Total]]","v":0}]
["NAT|Non-transfer item","2|Transport equipment","2023_24","MTEF2023",2,1,3,841,224,"02","01","03","000841","000224","02|01|03",2,3,12,56,60,"02|03|12|56|60","National","Parliament","Administration","Corporate and Support Services","Non-transfer item","Capital","Payments for capital assets","Machinery and equipment","Transport equipment","Transport equipment","General public services","Executive and legislative organs","NAT",0,0,0,0,0,0,0,0,0,0,0,null,null,null,null,null,null,null,null,null,null,null,null,null,null,null,null,null,null,null,null,null,null,null,null,null,null,null,null,null,null,{"$f":"Dataset[[#This Row],[2023/24 From - Spending review Topic 1]]+Dataset[[#This Row],[2023/24 From - Spending review Topic 2]]+Dataset[[#This Row],[2023/24 From - Spending review Topic 3]]+Dataset[[#This Row],[2023/24 From - Spending review Topic 4]]+Dataset[[#This Row],[2023/24 From - Other reallocations]]","v":0},{"$f":"Dataset[[#This Row],[2024/25 From - Spending review Topic 1]]+Dataset[[#This Row],[2024/25 From - Spending review Topic 2]]+Dataset[[#This Row],[2024/25 From - Spending review Topic 3]]+Dataset[[#This Row],[2024/25 From - Spending review Topic 4]]+Dataset[[#This Row],[2024/25 From - Other reallocations]]","v":0},{"$f":"Dataset[[#This Row],[2025/26 From - Spending review Topic 1]]+Dataset[[#This Row],[2025/26 From - Spending review Topic 2]]+Dataset[[#This Row],[2025/26 From - Spending review Topic 3]]+Dataset[[#This Row],[2025/26 From - Spending review Topic 4]]+Dataset[[#This Row],[2025/26 From - Other reallocations]]","v":0},{"$f":"Dataset[[#This Row],[2023/24 To - Spending review Topic 1]]+Dataset[[#This Row],[2023/24 To - Spending review Topic 2]]+Dataset[[#This Row],[2023/24 To - Spending review Topic 3]]+Dataset[[#This Row],[2023/24 To - Spending review Topic 4]]+Dataset[[#This Row],[2023/24 To - Other reallocations]]","v":0},{"$f":"Dataset[[#This Row],[2024/25 To - Spending review Topic 1]]+Dataset[[#This Row],[2024/25 To - Spending review Topic 2]]+Dataset[[#This Row],[2024/25 To - Spending review Topic 3]]+Dataset[[#This Row],[2024/25 To - Spending review Topic 4]]+Dataset[[#This Row],[2024/25 To - Other reallocations]]","v":0},{"$f":"Dataset[[#This Row],[2025/26 To - Spending review Topic 1]]+Dataset[[#This Row],[2025/26 To - Spending review Topic 2]]+Dataset[[#This Row],[2025/26 To - Spending review Topic 3]]+Dataset[[#This Row],[2025/26 To - Spending review Topic 4]]+Dataset[[#This Row],[2025/26 To - Other reallocations]]","v":0},{"$f":"Dataset[[#This Row],[2023/24 Baseline]]+Dataset[[#This Row],[2023/24 From - Total]]+Dataset[[#This Row],[2023/24 To - Total]]","v":0},{"$f":"Dataset[[#This Row],[2024/25 Baseline]]+Dataset[[#This Row],[2024/25 From - Total]]+Dataset[[#This Row],[2024/25 To - Total]]","v":0},{"$f":"Dataset[[#This Row],[2025/26 Baseline]]+Dataset[[#This Row],[2025/26 From - Total]]+Dataset[[#This Row],[2025/26 To - Total]]","v":0}]
["NAT|Non-transfer item","2|Other machinery and equipment","2023_24","MTEF2023",2,1,3,842,225,"02","01","03","000842","000225","02|01|03",2,3,12,57,61,"02|03|12|57|61","National","Parliament","Administration","Corporate and Support Services","Non-transfer item","Capital","Payments for capital assets","Machinery and equipment","Other machinery and equipment","Other machinery and equipment","General public services","Executive and legislative organs","NAT",1896,9708,11481,10654,10654,10654,0,11268,11764,12292,12843,null,null,null,null,null,null,null,null,null,null,null,null,null,null,null,null,null,null,null,null,null,null,null,null,null,null,null,null,null,null,{"$f":"Dataset[[#This Row],[2023/24 From - Spending review Topic 1]]+Dataset[[#This Row],[2023/24 From - Spending review Topic 2]]+Dataset[[#This Row],[2023/24 From - Spending review Topic 3]]+Dataset[[#This Row],[2023/24 From - Spending review Topic 4]]+Dataset[[#This Row],[2023/24 From - Other reallocations]]","v":0},{"$f":"Dataset[[#This Row],[2024/25 From - Spending review Topic 1]]+Dataset[[#This Row],[2024/25 From - Spending review Topic 2]]+Dataset[[#This Row],[2024/25 From - Spending review Topic 3]]+Dataset[[#This Row],[2024/25 From - Spending review Topic 4]]+Dataset[[#This Row],[2024/25 From - Other reallocations]]","v":0},{"$f":"Dataset[[#This Row],[2025/26 From - Spending review Topic 1]]+Dataset[[#This Row],[2025/26 From - Spending review Topic 2]]+Dataset[[#This Row],[2025/26 From - Spending review Topic 3]]+Dataset[[#This Row],[2025/26 From - Spending review Topic 4]]+Dataset[[#This Row],[2025/26 From - Other reallocations]]","v":0},{"$f":"Dataset[[#This Row],[2023/24 To - Spending review Topic 1]]+Dataset[[#This Row],[2023/24 To - Spending review Topic 2]]+Dataset[[#This Row],[2023/24 To - Spending review Topic 3]]+Dataset[[#This Row],[2023/24 To - Spending review Topic 4]]+Dataset[[#This Row],[2023/24 To - Other reallocations]]","v":0},{"$f":"Dataset[[#This Row],[2024/25 To - Spending review Topic 1]]+Dataset[[#This Row],[2024/25 To - Spending review Topic 2]]+Dataset[[#This Row],[2024/25 To - Spending review Topic 3]]+Dataset[[#This Row],[2024/25 To - Spending review Topic 4]]+Dataset[[#This Row],[2024/25 To - Other reallocations]]","v":0},{"$f":"Dataset[[#This Row],[2025/26 To - Spending review Topic 1]]+Dataset[[#This Row],[2025/26 To - Spending review Topic 2]]+Dataset[[#This Row],[2025/26 To - Spending review Topic 3]]+Dataset[[#This Row],[2025/26 To - Spending review Topic 4]]+Dataset[[#This Row],[2025/26 To - Other reallocations]]","v":0},{"$f":"Dataset[[#This Row],[2023/24 Baseline]]+Dataset[[#This Row],[2023/24 From - Total]]+Dataset[[#This Row],[2023/24 To - Total]]","v":11764},{"$f":"Dataset[[#This Row],[2024/25 Baseline]]+Dataset[[#This Row],[2024/25 From - Total]]+Dataset[[#This Row],[2024/25 To - Total]]","v":12292},{"$f":"Dataset[[#This Row],[2025/26 Baseline]]+Dataset[[#This Row],[2025/26 From - Total]]+Dataset[[#This Row],[2025/26 To - Total]]","v":12843}]
["NAT|Non-transfer item","2|Heritage assets","2023_24","MTEF2023",2,1,3,843,226,"02","01","03","000843","000226","02|01|03",2,3,13,58,62,"02|03|13|58|62","National","Parliament","Administration","Corporate and Support Services","Non-transfer item","Capital","Payments for capital assets","Heritage assets","Heritage assets","Heritage assets","General public services","Executive and legislative organs","NAT",0,0,0,0,0,0,0,0,0,0,0,null,null,null,null,null,null,null,null,null,null,null,null,null,null,null,null,null,null,null,null,null,null,null,null,null,null,null,null,null,null,{"$f":"Dataset[[#This Row],[2023/24 From - Spending review Topic 1]]+Dataset[[#This Row],[2023/24 From - Spending review Topic 2]]+Dataset[[#This Row],[2023/24 From - Spending review Topic 3]]+Dataset[[#This Row],[2023/24 From - Spending review Topic 4]]+Dataset[[#This Row],[2023/24 From - Other reallocations]]","v":0},{"$f":"Dataset[[#This Row],[2024/25 From - Spending review Topic 1]]+Dataset[[#This Row],[2024/25 From - Spending review Topic 2]]+Dataset[[#This Row],[2024/25 From - Spending review Topic 3]]+Dataset[[#This Row],[2024/25 From - Spending review Topic 4]]+Dataset[[#This Row],[2024/25 From - Other reallocations]]","v":0},{"$f":"Dataset[[#This Row],[2025/26 From - Spending review Topic 1]]+Dataset[[#This Row],[2025/26 From - Spending review Topic 2]]+Dataset[[#This Row],[2025/26 From - Spending review Topic 3]]+Dataset[[#This Row],[2025/26 From - Spending review Topic 4]]+Dataset[[#This Row],[2025/26 From - Other reallocations]]","v":0},{"$f":"Dataset[[#This Row],[2023/24 To - Spending review Topic 1]]+Dataset[[#This Row],[2023/24 To - Spending review Topic 2]]+Dataset[[#This Row],[2023/24 To - Spending review Topic 3]]+Dataset[[#This Row],[2023/24 To - Spending review Topic 4]]+Dataset[[#This Row],[2023/24 To - Other reallocations]]","v":0},{"$f":"Dataset[[#This Row],[2024/25 To - Spending review Topic 1]]+Dataset[[#This Row],[2024/25 To - Spending review Topic 2]]+Dataset[[#This Row],[2024/25 To - Spending review Topic 3]]+Dataset[[#This Row],[2024/25 To - Spending review Topic 4]]+Dataset[[#This Row],[2024/25 To - Other reallocations]]","v":0},{"$f":"Dataset[[#This Row],[2025/26 To - Spending review Topic 1]]+Dataset[[#This Row],[2025/26 To - Spending review Topic 2]]+Dataset[[#This Row],[2025/26 To - Spending review Topic 3]]+Dataset[[#This Row],[2025/26 To - Spending review Topic 4]]+Dataset[[#This Row],[2025/26 To - Other reallocations]]","v":0},{"$f":"Dataset[[#This Row],[2023/24 Baseline]]+Dataset[[#This Row],[2023/24 From - Total]]+Dataset[[#This Row],[2023/24 To - Total]]","v":0},{"$f":"Dataset[[#This Row],[2024/25 Baseline]]+Dataset[[#This Row],[2024/25 From - Total]]+Dataset[[#This Row],[2024/25 To - Total]]","v":0},{"$f":"Dataset[[#This Row],[2025/26 Baseline]]+Dataset[[#This Row],[2025/26 From - Total]]+Dataset[[#This Row],[2025/26 To - Total]]","v":0}]
["NAT|Non-transfer item","2|Specialised military assets","2023_24","MTEF2023",2,1,3,844,227,"02","01","03","000844","000227","02|01|03",2,3,14,59,63,"02|03|14|59|63","National","Parliament","Administration","Corporate and Support Services","Non-transfer item","Capital","Payments for capital assets","Specialised military assets","Specialised military assets","Specialised military assets","General public services","Executive and legislative organs","NAT",0,0,0,0,0,0,0,0,0,0,0,null,null,null,null,null,null,null,null,null,null,null,null,null,null,null,null,null,null,null,null,null,null,null,null,null,null,null,null,null,null,{"$f":"Dataset[[#This Row],[2023/24 From - Spending review Topic 1]]+Dataset[[#This Row],[2023/24 From - Spending review Topic 2]]+Dataset[[#This Row],[2023/24 From - Spending review Topic 3]]+Dataset[[#This Row],[2023/24 From - Spending review Topic 4]]+Dataset[[#This Row],[2023/24 From - Other reallocations]]","v":0},{"$f":"Dataset[[#This Row],[2024/25 From - Spending review Topic 1]]+Dataset[[#This Row],[2024/25 From - Spending review Topic 2]]+Dataset[[#This Row],[2024/25 From - Spending review Topic 3]]+Dataset[[#This Row],[2024/25 From - Spending review Topic 4]]+Dataset[[#This Row],[2024/25 From - Other reallocations]]","v":0},{"$f":"Dataset[[#This Row],[2025/26 From - Spending review Topic 1]]+Dataset[[#This Row],[2025/26 From - Spending review Topic 2]]+Dataset[[#This Row],[2025/26 From - Spending review Topic 3]]+Dataset[[#This Row],[2025/26 From - Spending review Topic 4]]+Dataset[[#This Row],[2025/26 From - Other reallocations]]","v":0},{"$f":"Dataset[[#This Row],[2023/24 To - Spending review Topic 1]]+Dataset[[#This Row],[2023/24 To - Spending review Topic 2]]+Dataset[[#This Row],[2023/24 To - Spending review Topic 3]]+Dataset[[#This Row],[2023/24 To - Spending review Topic 4]]+Dataset[[#This Row],[2023/24 To - Other reallocations]]","v":0},{"$f":"Dataset[[#This Row],[2024/25 To - Spending review Topic 1]]+Dataset[[#This Row],[2024/25 To - Spending review Topic 2]]+Dataset[[#This Row],[2024/25 To - Spending review Topic 3]]+Dataset[[#This Row],[2024/25 To - Spending review Topic 4]]+Dataset[[#This Row],[2024/25 To - Other reallocations]]","v":0},{"$f":"Dataset[[#This Row],[2025/26 To - Spending review Topic 1]]+Dataset[[#This Row],[2025/26 To - Spending review Topic 2]]+Dataset[[#This Row],[2025/26 To - Spending review Topic 3]]+Dataset[[#This Row],[2025/26 To - Spending review Topic 4]]+Dataset[[#This Row],[2025/26 To - Other reallocations]]","v":0},{"$f":"Dataset[[#This Row],[2023/24 Baseline]]+Dataset[[#This Row],[2023/24 From - Total]]+Dataset[[#This Row],[2023/24 To - Total]]","v":0},{"$f":"Dataset[[#This Row],[2024/25 Baseline]]+Dataset[[#This Row],[2024/25 From - Total]]+Dataset[[#This Row],[2024/25 To - Total]]","v":0},{"$f":"Dataset[[#This Row],[2025/26 Baseline]]+Dataset[[#This Row],[2025/26 From - Total]]+Dataset[[#This Row],[2025/26 To - Total]]","v":0}]
["NAT|Non-transfer item","2|Biological assets","2023_24","MTEF2023",2,1,3,845,228,"02","01","03","000845","000228","02|01|03",2,3,15,60,64,"02|03|15|60|64","National","Parliament","Administration","Corporate and Support Services","Non-transfer item","Capital","Payments for capital assets","Biological assets","Biological assets","Biological assets","General public services","Executive and legislative organs","NAT",0,0,0,0,0,0,0,0,0,0,0,null,null,null,null,null,null,null,null,null,null,null,null,null,null,null,null,null,null,null,null,null,null,null,null,null,null,null,null,null,null,{"$f":"Dataset[[#This Row],[2023/24 From - Spending review Topic 1]]+Dataset[[#This Row],[2023/24 From - Spending review Topic 2]]+Dataset[[#This Row],[2023/24 From - Spending review Topic 3]]+Dataset[[#This Row],[2023/24 From - Spending review Topic 4]]+Dataset[[#This Row],[2023/24 From - Other reallocations]]","v":0},{"$f":"Dataset[[#This Row],[2024/25 From - Spending review Topic 1]]+Dataset[[#This Row],[2024/25 From - Spending review Topic 2]]+Dataset[[#This Row],[2024/25 From - Spending review Topic 3]]+Dataset[[#This Row],[2024/25 From - Spending review Topic 4]]+Dataset[[#This Row],[2024/25 From - Other reallocations]]","v":0},{"$f":"Dataset[[#This Row],[2025/26 From - Spending review Topic 1]]+Dataset[[#This Row],[2025/26 From - Spending review Topic 2]]+Dataset[[#This Row],[2025/26 From - Spending review Topic 3]]+Dataset[[#This Row],[2025/26 From - Spending review Topic 4]]+Dataset[[#This Row],[2025/26 From - Other reallocations]]","v":0},{"$f":"Dataset[[#This Row],[2023/24 To - Spending review Topic 1]]+Dataset[[#This Row],[2023/24 To - Spending review Topic 2]]+Dataset[[#This Row],[2023/24 To - Spending review Topic 3]]+Dataset[[#This Row],[2023/24 To - Spending review Topic 4]]+Dataset[[#This Row],[2023/24 To - Other reallocations]]","v":0},{"$f":"Dataset[[#This Row],[2024/25 To - Spending review Topic 1]]+Dataset[[#This Row],[2024/25 To - Spending review Topic 2]]+Dataset[[#This Row],[2024/25 To - Spending review Topic 3]]+Dataset[[#This Row],[2024/25 To - Spending review Topic 4]]+Dataset[[#This Row],[2024/25 To - Other reallocations]]","v":0},{"$f":"Dataset[[#This Row],[2025/26 To - Spending review Topic 1]]+Dataset[[#This Row],[2025/26 To - Spending review Topic 2]]+Dataset[[#This Row],[2025/26 To - Spending review Topic 3]]+Dataset[[#This Row],[2025/26 To - Spending review Topic 4]]+Dataset[[#This Row],[2025/26 To - Other reallocations]]","v":0},{"$f":"Dataset[[#This Row],[2023/24 Baseline]]+Dataset[[#This Row],[2023/24 From - Total]]+Dataset[[#This Row],[2023/24 To - Total]]","v":0},{"$f":"Dataset[[#This Row],[2024/25 Baseline]]+Dataset[[#This Row],[2024/25 From - Total]]+Dataset[[#This Row],[2024/25 To - Total]]","v":0},{"$f":"Dataset[[#This Row],[2025/26 Baseline]]+Dataset[[#This Row],[2025/26 From - Total]]+Dataset[[#This Row],[2025/26 To - Total]]","v":0}]
["NAT|Non-transfer item","2|Land and sub-soil assets","2023_24","MTEF2023",2,1,3,846,229,"02","01","03","000846","000229","02|01|03",2,3,16,61,65,"02|03|16|61|65","National","Parliament","Administration","Corporate and Support Services","Non-transfer item","Capital","Payments for capital assets","Land and sub-soil assets","Land and sub-soil assets","Land and sub-soil assets","General public services","Executive and legislative organs","NAT",0,0,0,0,0,0,0,0,0,0,0,null,null,null,null,null,null,null,null,null,null,null,null,null,null,null,null,null,null,null,null,null,null,null,null,null,null,null,null,null,null,{"$f":"Dataset[[#This Row],[2023/24 From - Spending review Topic 1]]+Dataset[[#This Row],[2023/24 From - Spending review Topic 2]]+Dataset[[#This Row],[2023/24 From - Spending review Topic 3]]+Dataset[[#This Row],[2023/24 From - Spending review Topic 4]]+Dataset[[#This Row],[2023/24 From - Other reallocations]]","v":0},{"$f":"Dataset[[#This Row],[2024/25 From - Spending review Topic 1]]+Dataset[[#This Row],[2024/25 From - Spending review Topic 2]]+Dataset[[#This Row],[2024/25 From - Spending review Topic 3]]+Dataset[[#This Row],[2024/25 From - Spending review Topic 4]]+Dataset[[#This Row],[2024/25 From - Other reallocations]]","v":0},{"$f":"Dataset[[#This Row],[2025/26 From - Spending review Topic 1]]+Dataset[[#This Row],[2025/26 From - Spending review Topic 2]]+Dataset[[#This Row],[2025/26 From - Spending review Topic 3]]+Dataset[[#This Row],[2025/26 From - Spending review Topic 4]]+Dataset[[#This Row],[2025/26 From - Other reallocations]]","v":0},{"$f":"Dataset[[#This Row],[2023/24 To - Spending review Topic 1]]+Dataset[[#This Row],[2023/24 To - Spending review Topic 2]]+Dataset[[#This Row],[2023/24 To - Spending review Topic 3]]+Dataset[[#This Row],[2023/24 To - Spending review Topic 4]]+Dataset[[#This Row],[2023/24 To - Other reallocations]]","v":0},{"$f":"Dataset[[#This Row],[2024/25 To - Spending review Topic 1]]+Dataset[[#This Row],[2024/25 To - Spending review Topic 2]]+Dataset[[#This Row],[2024/25 To - Spending review Topic 3]]+Dataset[[#This Row],[2024/25 To - Spending review Topic 4]]+Dataset[[#This Row],[2024/25 To - Other reallocations]]","v":0},{"$f":"Dataset[[#This Row],[2025/26 To - Spending review Topic 1]]+Dataset[[#This Row],[2025/26 To - Spending review Topic 2]]+Dataset[[#This Row],[2025/26 To - Spending review Topic 3]]+Dataset[[#This Row],[2025/26 To - Spending review Topic 4]]+Dataset[[#This Row],[2025/26 To - Other reallocations]]","v":0},{"$f":"Dataset[[#This Row],[2023/24 Baseline]]+Dataset[[#This Row],[2023/24 From - Total]]+Dataset[[#This Row],[2023/24 To - Total]]","v":0},{"$f":"Dataset[[#This Row],[2024/25 Baseline]]+Dataset[[#This Row],[2024/25 From - Total]]+Dataset[[#This Row],[2024/25 To - Total]]","v":0},{"$f":"Dataset[[#This Row],[2025/26 Baseline]]+Dataset[[#This Row],[2025/26 From - Total]]+Dataset[[#This Row],[2025/26 To - Total]]","v":0}]
["NAT|Non-transfer item","2|Software and other intangible assets","2023_24","MTEF2023",2,1,3,847,230,"02","01","03","000847","000230","02|01|03",2,3,17,62,66,"02|03|17|62|66","National","Parliament","Administration","Corporate and Support Services","Non-transfer item","Capital","Payments for capital assets","Software and other intangible assets","Software and other intangible assets","Software and other intangible assets","General public services","Executive and legislative organs","NAT",0,0,0,0,0,0,0,0,0,0,0,null,null,null,null,null,null,null,null,null,null,null,null,null,null,null,null,null,null,null,null,null,null,null,null,null,null,null,null,null,null,{"$f":"Dataset[[#This Row],[2023/24 From - Spending review Topic 1]]+Dataset[[#This Row],[2023/24 From - Spending review Topic 2]]+Dataset[[#This Row],[2023/24 From - Spending review Topic 3]]+Dataset[[#This Row],[2023/24 From - Spending review Topic 4]]+Dataset[[#This Row],[2023/24 From - Other reallocations]]","v":0},{"$f":"Dataset[[#This Row],[2024/25 From - Spending review Topic 1]]+Dataset[[#This Row],[2024/25 From - Spending review Topic 2]]+Dataset[[#This Row],[2024/25 From - Spending review Topic 3]]+Dataset[[#This Row],[2024/25 From - Spending review Topic 4]]+Dataset[[#This Row],[2024/25 From - Other reallocations]]","v":0},{"$f":"Dataset[[#This Row],[2025/26 From - Spending review Topic 1]]+Dataset[[#This Row],[2025/26 From - Spending review Topic 2]]+Dataset[[#This Row],[2025/26 From - Spending review Topic 3]]+Dataset[[#This Row],[2025/26 From - Spending review Topic 4]]+Dataset[[#This Row],[2025/26 From - Other reallocations]]","v":0},{"$f":"Dataset[[#This Row],[2023/24 To - Spending review Topic 1]]+Dataset[[#This Row],[2023/24 To - Spending review Topic 2]]+Dataset[[#This Row],[2023/24 To - Spending review Topic 3]]+Dataset[[#This Row],[2023/24 To - Spending review Topic 4]]+Dataset[[#This Row],[2023/24 To - Other reallocations]]","v":0},{"$f":"Dataset[[#This Row],[2024/25 To - Spending review Topic 1]]+Dataset[[#This Row],[2024/25 To - Spending review Topic 2]]+Dataset[[#This Row],[2024/25 To - Spending review Topic 3]]+Dataset[[#This Row],[2024/25 To - Spending review Topic 4]]+Dataset[[#This Row],[2024/25 To - Other reallocations]]","v":0},{"$f":"Dataset[[#This Row],[2025/26 To - Spending review Topic 1]]+Dataset[[#This Row],[2025/26 To - Spending review Topic 2]]+Dataset[[#This Row],[2025/26 To - Spending review Topic 3]]+Dataset[[#This Row],[2025/26 To - Spending review Topic 4]]+Dataset[[#This Row],[2025/26 To - Other reallocations]]","v":0},{"$f":"Dataset[[#This Row],[2023/24 Baseline]]+Dataset[[#This Row],[2023/24 From - Total]]+Dataset[[#This Row],[2023/24 To - Total]]","v":0},{"$f":"Dataset[[#This Row],[2024/25 Baseline]]+Dataset[[#This Row],[2024/25 From - Total]]+Dataset[[#This Row],[2024/25 To - Total]]","v":0},{"$f":"Dataset[[#This Row],[2025/26 Baseline]]+Dataset[[#This Row],[2025/26 From - Total]]+Dataset[[#This Row],[2025/26 To - Total]]","v":0}]
["NAT|Non-transfer item","2|Payments for financial assets","2023_24","MTEF2023",2,1,3,848,231,"02","01","03","000848","000231","02|01|03",3,4,18,63,67,"03|04|18|63|67","National","Parliament","Administration","Corporate and Support Services","Non-transfer item","Payments for financial assets","Payments for financial assets","Payments for financial assets","Payments for financial assets","Payments for financial assets","General public services","Executive and legislative organs","NAT",0,0,0,0,0,0,0,0,0,0,0,null,null,null,null,null,null,null,null,null,null,null,null,null,null,null,null,null,null,null,null,null,null,null,null,null,null,null,null,null,null,{"$f":"Dataset[[#This Row],[2023/24 From - Spending review Topic 1]]+Dataset[[#This Row],[2023/24 From - Spending review Topic 2]]+Dataset[[#This Row],[2023/24 From - Spending review Topic 3]]+Dataset[[#This Row],[2023/24 From - Spending review Topic 4]]+Dataset[[#This Row],[2023/24 From - Other reallocations]]","v":0},{"$f":"Dataset[[#This Row],[2024/25 From - Spending review Topic 1]]+Dataset[[#This Row],[2024/25 From - Spending review Topic 2]]+Dataset[[#This Row],[2024/25 From - Spending review Topic 3]]+Dataset[[#This Row],[2024/25 From - Spending review Topic 4]]+Dataset[[#This Row],[2024/25 From - Other reallocations]]","v":0},{"$f":"Dataset[[#This Row],[2025/26 From - Spending review Topic 1]]+Dataset[[#This Row],[2025/26 From - Spending review Topic 2]]+Dataset[[#This Row],[2025/26 From - Spending review Topic 3]]+Dataset[[#This Row],[2025/26 From - Spending review Topic 4]]+Dataset[[#This Row],[2025/26 From - Other reallocations]]","v":0},{"$f":"Dataset[[#This Row],[2023/24 To - Spending review Topic 1]]+Dataset[[#This Row],[2023/24 To - Spending review Topic 2]]+Dataset[[#This Row],[2023/24 To - Spending review Topic 3]]+Dataset[[#This Row],[2023/24 To - Spending review Topic 4]]+Dataset[[#This Row],[2023/24 To - Other reallocations]]","v":0},{"$f":"Dataset[[#This Row],[2024/25 To - Spending review Topic 1]]+Dataset[[#This Row],[2024/25 To - Spending review Topic 2]]+Dataset[[#This Row],[2024/25 To - Spending review Topic 3]]+Dataset[[#This Row],[2024/25 To - Spending review Topic 4]]+Dataset[[#This Row],[2024/25 To - Other reallocations]]","v":0},{"$f":"Dataset[[#This Row],[2025/26 To - Spending review Topic 1]]+Dataset[[#This Row],[2025/26 To - Spending review Topic 2]]+Dataset[[#This Row],[2025/26 To - Spending review Topic 3]]+Dataset[[#This Row],[2025/26 To - Spending review Topic 4]]+Dataset[[#This Row],[2025/26 To - Other reallocations]]","v":0},{"$f":"Dataset[[#This Row],[2023/24 Baseline]]+Dataset[[#This Row],[2023/24 From - Total]]+Dataset[[#This Row],[2023/24 To - Total]]","v":0},{"$f":"Dataset[[#This Row],[2024/25 Baseline]]+Dataset[[#This Row],[2024/25 From - Total]]+Dataset[[#This Row],[2024/25 To - Total]]","v":0},{"$f":"Dataset[[#This Row],[2025/26 Baseline]]+Dataset[[#This Row],[2025/26 From - Total]]+Dataset[[#This Row],[2025/26 To - Total]]","v":0}]
["NAT|Non-transfer item","2|Salaries and wages","2023_24","MTEF2023",2,2,1,849,232,"02","02","01","000849","000232","02|02|01",1,1,1,1,1,"01|01|01|01|01","National","Parliament","Legislation and Oversight","National Assembly","Non-transfer item","Current","Current payments","Compensation of employees","Salaries and wages","Salaries and wages","General public services","Executive and legislative organs","NAT",21206,32880,39023,36294,36294,36294,0,38298,38296,39926,41715,null,null,null,null,null,null,null,null,null,null,null,null,null,null,null,null,null,null,null,null,null,null,null,null,null,null,null,null,null,null,{"$f":"Dataset[[#This Row],[2023/24 From - Spending review Topic 1]]+Dataset[[#This Row],[2023/24 From - Spending review Topic 2]]+Dataset[[#This Row],[2023/24 From - Spending review Topic 3]]+Dataset[[#This Row],[2023/24 From - Spending review Topic 4]]+Dataset[[#This Row],[2023/24 From - Other reallocations]]","v":0},{"$f":"Dataset[[#This Row],[2024/25 From - Spending review Topic 1]]+Dataset[[#This Row],[2024/25 From - Spending review Topic 2]]+Dataset[[#This Row],[2024/25 From - Spending review Topic 3]]+Dataset[[#This Row],[2024/25 From - Spending review Topic 4]]+Dataset[[#This Row],[2024/25 From - Other reallocations]]","v":0},{"$f":"Dataset[[#This Row],[2025/26 From - Spending review Topic 1]]+Dataset[[#This Row],[2025/26 From - Spending review Topic 2]]+Dataset[[#This Row],[2025/26 From - Spending review Topic 3]]+Dataset[[#This Row],[2025/26 From - Spending review Topic 4]]+Dataset[[#This Row],[2025/26 From - Other reallocations]]","v":0},{"$f":"Dataset[[#This Row],[2023/24 To - Spending review Topic 1]]+Dataset[[#This Row],[2023/24 To - Spending review Topic 2]]+Dataset[[#This Row],[2023/24 To - Spending review Topic 3]]+Dataset[[#This Row],[2023/24 To - Spending review Topic 4]]+Dataset[[#This Row],[2023/24 To - Other reallocations]]","v":0},{"$f":"Dataset[[#This Row],[2024/25 To - Spending review Topic 1]]+Dataset[[#This Row],[2024/25 To - Spending review Topic 2]]+Dataset[[#This Row],[2024/25 To - Spending review Topic 3]]+Dataset[[#This Row],[2024/25 To - Spending review Topic 4]]+Dataset[[#This Row],[2024/25 To - Other reallocations]]","v":0},{"$f":"Dataset[[#This Row],[2025/26 To - Spending review Topic 1]]+Dataset[[#This Row],[2025/26 To - Spending review Topic 2]]+Dataset[[#This Row],[2025/26 To - Spending review Topic 3]]+Dataset[[#This Row],[2025/26 To - Spending review Topic 4]]+Dataset[[#This Row],[2025/26 To - Other reallocations]]","v":0},{"$f":"Dataset[[#This Row],[2023/24 Baseline]]+Dataset[[#This Row],[2023/24 From - Total]]+Dataset[[#This Row],[2023/24 To - Total]]","v":38296},{"$f":"Dataset[[#This Row],[2024/25 Baseline]]+Dataset[[#This Row],[2024/25 From - Total]]+Dataset[[#This Row],[2024/25 To - Total]]","v":39926},{"$f":"Dataset[[#This Row],[2025/26 Baseline]]+Dataset[[#This Row],[2025/26 From - Total]]+Dataset[[#This Row],[2025/26 To - Total]]","v":41715}]
["NAT|Non-transfer item","2|Social contributions","2023_24","MTEF2023",2,2,1,850,233,"02","02","01","000850","000233","02|02|01",1,1,1,2,2,"01|01|01|02|02","National","Parliament","Legislation and Oversight","National Assembly","Non-transfer item","Current","Current payments","Compensation of employees","Social contributions","Social contributions","General public services","Executive and legislative organs","NAT",0,0,0,0,0,0,0,0,0,0,0,null,null,null,null,null,null,null,null,null,null,null,null,null,null,null,null,null,null,null,null,null,null,null,null,null,null,null,null,null,null,{"$f":"Dataset[[#This Row],[2023/24 From - Spending review Topic 1]]+Dataset[[#This Row],[2023/24 From - Spending review Topic 2]]+Dataset[[#This Row],[2023/24 From - Spending review Topic 3]]+Dataset[[#This Row],[2023/24 From - Spending review Topic 4]]+Dataset[[#This Row],[2023/24 From - Other reallocations]]","v":0},{"$f":"Dataset[[#This Row],[2024/25 From - Spending review Topic 1]]+Dataset[[#This Row],[2024/25 From - Spending review Topic 2]]+Dataset[[#This Row],[2024/25 From - Spending review Topic 3]]+Dataset[[#This Row],[2024/25 From - Spending review Topic 4]]+Dataset[[#This Row],[2024/25 From - Other reallocations]]","v":0},{"$f":"Dataset[[#This Row],[2025/26 From - Spending review Topic 1]]+Dataset[[#This Row],[2025/26 From - Spending review Topic 2]]+Dataset[[#This Row],[2025/26 From - Spending review Topic 3]]+Dataset[[#This Row],[2025/26 From - Spending review Topic 4]]+Dataset[[#This Row],[2025/26 From - Other reallocations]]","v":0},{"$f":"Dataset[[#This Row],[2023/24 To - Spending review Topic 1]]+Dataset[[#This Row],[2023/24 To - Spending review Topic 2]]+Dataset[[#This Row],[2023/24 To - Spending review Topic 3]]+Dataset[[#This Row],[2023/24 To - Spending review Topic 4]]+Dataset[[#This Row],[2023/24 To - Other reallocations]]","v":0},{"$f":"Dataset[[#This Row],[2024/25 To - Spending review Topic 1]]+Dataset[[#This Row],[2024/25 To - Spending review Topic 2]]+Dataset[[#This Row],[2024/25 To - Spending review Topic 3]]+Dataset[[#This Row],[2024/25 To - Spending review Topic 4]]+Dataset[[#This Row],[2024/25 To - Other reallocations]]","v":0},{"$f":"Dataset[[#This Row],[2025/26 To - Spending review Topic 1]]+Dataset[[#This Row],[2025/26 To - Spending review Topic 2]]+Dataset[[#This Row],[2025/26 To - Spending review Topic 3]]+Dataset[[#This Row],[2025/26 To - Spending review Topic 4]]+Dataset[[#This Row],[2025/26 To - Other reallocations]]","v":0},{"$f":"Dataset[[#This Row],[2023/24 Baseline]]+Dataset[[#This Row],[2023/24 From - Total]]+Dataset[[#This Row],[2023/24 To - Total]]","v":0},{"$f":"Dataset[[#This Row],[2024/25 Baseline]]+Dataset[[#This Row],[2024/25 From - Total]]+Dataset[[#This Row],[2024/25 To - Total]]","v":0},{"$f":"Dataset[[#This Row],[2025/26 Baseline]]+Dataset[[#This Row],[2025/26 From - Total]]+Dataset[[#This Row],[2025/26 To - Total]]","v":0}]
["NAT|Non-transfer item","2|Administrative fees","2023_24","MTEF2023",2,2,1,851,234,"02","02","01","000851","000234","02|02|01",1,1,2,3,3,"01|01|02|03|03","National","Parliament","Legislation and Oversight","National Assembly","Non-transfer item","Current","Current payments","Goods and services","Administrative fees","Administrative fees","General public services","Executive and legislative organs","NAT",0,0,0,0,0,0,0,0,0,0,0,null,null,null,null,null,null,null,null,null,null,null,null,null,null,null,null,null,null,null,null,null,null,null,null,null,null,null,null,null,null,{"$f":"Dataset[[#This Row],[2023/24 From - Spending review Topic 1]]+Dataset[[#This Row],[2023/24 From - Spending review Topic 2]]+Dataset[[#This Row],[2023/24 From - Spending review Topic 3]]+Dataset[[#This Row],[2023/24 From - Spending review Topic 4]]+Dataset[[#This Row],[2023/24 From - Other reallocations]]","v":0},{"$f":"Dataset[[#This Row],[2024/25 From - Spending review Topic 1]]+Dataset[[#This Row],[2024/25 From - Spending review Topic 2]]+Dataset[[#This Row],[2024/25 From - Spending review Topic 3]]+Dataset[[#This Row],[2024/25 From - Spending review Topic 4]]+Dataset[[#This Row],[2024/25 From - Other reallocations]]","v":0},{"$f":"Dataset[[#This Row],[2025/26 From - Spending review Topic 1]]+Dataset[[#This Row],[2025/26 From - Spending review Topic 2]]+Dataset[[#This Row],[2025/26 From - Spending review Topic 3]]+Dataset[[#This Row],[2025/26 From - Spending review Topic 4]]+Dataset[[#This Row],[2025/26 From - Other reallocations]]","v":0},{"$f":"Dataset[[#This Row],[2023/24 To - Spending review Topic 1]]+Dataset[[#This Row],[2023/24 To - Spending review Topic 2]]+Dataset[[#This Row],[2023/24 To - Spending review Topic 3]]+Dataset[[#This Row],[2023/24 To - Spending review Topic 4]]+Dataset[[#This Row],[2023/24 To - Other reallocations]]","v":0},{"$f":"Dataset[[#This Row],[2024/25 To - Spending review Topic 1]]+Dataset[[#This Row],[2024/25 To - Spending review Topic 2]]+Dataset[[#This Row],[2024/25 To - Spending review Topic 3]]+Dataset[[#This Row],[2024/25 To - Spending review Topic 4]]+Dataset[[#This Row],[2024/25 To - Other reallocations]]","v":0},{"$f":"Dataset[[#This Row],[2025/26 To - Spending review Topic 1]]+Dataset[[#This Row],[2025/26 To - Spending review Topic 2]]+Dataset[[#This Row],[2025/26 To - Spending review Topic 3]]+Dataset[[#This Row],[2025/26 To - Spending review Topic 4]]+Dataset[[#This Row],[2025/26 To - Other reallocations]]","v":0},{"$f":"Dataset[[#This Row],[2023/24 Baseline]]+Dataset[[#This Row],[2023/24 From - Total]]+Dataset[[#This Row],[2023/24 To - Total]]","v":0},{"$f":"Dataset[[#This Row],[2024/25 Baseline]]+Dataset[[#This Row],[2024/25 From - Total]]+Dataset[[#This Row],[2024/25 To - Total]]","v":0},{"$f":"Dataset[[#This Row],[2025/26 Baseline]]+Dataset[[#This Row],[2025/26 From - Total]]+Dataset[[#This Row],[2025/26 To - Total]]","v":0}]
["NAT|Non-transfer item","2|Advertising","2023_24","MTEF2023",2,2,1,852,235,"02","02","01","000852","000235","02|02|01",1,1,2,4,4,"01|01|02|04|04","National","Parliament","Legislation and Oversight","National Assembly","Non-transfer item","Current","Current payments","Goods and services","Advertising","Advertising","General public services","Executive and legislative organs","NAT",148,0,0,0,0,0,0,0,0,0,0,null,null,null,null,null,null,null,null,null,null,null,null,null,null,null,null,null,null,null,null,null,null,null,null,null,null,null,null,null,null,{"$f":"Dataset[[#This Row],[2023/24 From - Spending review Topic 1]]+Dataset[[#This Row],[2023/24 From - Spending review Topic 2]]+Dataset[[#This Row],[2023/24 From - Spending review Topic 3]]+Dataset[[#This Row],[2023/24 From - Spending review Topic 4]]+Dataset[[#This Row],[2023/24 From - Other reallocations]]","v":0},{"$f":"Dataset[[#This Row],[2024/25 From - Spending review Topic 1]]+Dataset[[#This Row],[2024/25 From - Spending review Topic 2]]+Dataset[[#This Row],[2024/25 From - Spending review Topic 3]]+Dataset[[#This Row],[2024/25 From - Spending review Topic 4]]+Dataset[[#This Row],[2024/25 From - Other reallocations]]","v":0},{"$f":"Dataset[[#This Row],[2025/26 From - Spending review Topic 1]]+Dataset[[#This Row],[2025/26 From - Spending review Topic 2]]+Dataset[[#This Row],[2025/26 From - Spending review Topic 3]]+Dataset[[#This Row],[2025/26 From - Spending review Topic 4]]+Dataset[[#This Row],[2025/26 From - Other reallocations]]","v":0},{"$f":"Dataset[[#This Row],[2023/24 To - Spending review Topic 1]]+Dataset[[#This Row],[2023/24 To - Spending review Topic 2]]+Dataset[[#This Row],[2023/24 To - Spending review Topic 3]]+Dataset[[#This Row],[2023/24 To - Spending review Topic 4]]+Dataset[[#This Row],[2023/24 To - Other reallocations]]","v":0},{"$f":"Dataset[[#This Row],[2024/25 To - Spending review Topic 1]]+Dataset[[#This Row],[2024/25 To - Spending review Topic 2]]+Dataset[[#This Row],[2024/25 To - Spending review Topic 3]]+Dataset[[#This Row],[2024/25 To - Spending review Topic 4]]+Dataset[[#This Row],[2024/25 To - Other reallocations]]","v":0},{"$f":"Dataset[[#This Row],[2025/26 To - Spending review Topic 1]]+Dataset[[#This Row],[2025/26 To - Spending review Topic 2]]+Dataset[[#This Row],[2025/26 To - Spending review Topic 3]]+Dataset[[#This Row],[2025/26 To - Spending review Topic 4]]+Dataset[[#This Row],[2025/26 To - Other reallocations]]","v":0},{"$f":"Dataset[[#This Row],[2023/24 Baseline]]+Dataset[[#This Row],[2023/24 From - Total]]+Dataset[[#This Row],[2023/24 To - Total]]","v":0},{"$f":"Dataset[[#This Row],[2024/25 Baseline]]+Dataset[[#This Row],[2024/25 From - Total]]+Dataset[[#This Row],[2024/25 To - Total]]","v":0},{"$f":"Dataset[[#This Row],[2025/26 Baseline]]+Dataset[[#This Row],[2025/26 From - Total]]+Dataset[[#This Row],[2025/26 To - Total]]","v":0}]
["NAT|Non-transfer item","2|Minor assets","2023_24","MTEF2023",2,2,1,853,236,"02","02","01","000853","000236","02|02|01",1,1,2,5,5,"01|01|02|05|05","National","Parliament","Legislation and Oversight","National Assembly","Non-transfer item","Current","Current payments","Goods and services","Minor assets","Minor assets","General public services","Executive and legislative organs","NAT",208,220,0,0,0,0,0,0,0,0,0,null,null,null,null,null,null,null,null,null,null,null,null,null,null,null,null,null,null,null,null,null,null,null,null,null,null,null,null,null,null,{"$f":"Dataset[[#This Row],[2023/24 From - Spending review Topic 1]]+Dataset[[#This Row],[2023/24 From - Spending review Topic 2]]+Dataset[[#This Row],[2023/24 From - Spending review Topic 3]]+Dataset[[#This Row],[2023/24 From - Spending review Topic 4]]+Dataset[[#This Row],[2023/24 From - Other reallocations]]","v":0},{"$f":"Dataset[[#This Row],[2024/25 From - Spending review Topic 1]]+Dataset[[#This Row],[2024/25 From - Spending review Topic 2]]+Dataset[[#This Row],[2024/25 From - Spending review Topic 3]]+Dataset[[#This Row],[2024/25 From - Spending review Topic 4]]+Dataset[[#This Row],[2024/25 From - Other reallocations]]","v":0},{"$f":"Dataset[[#This Row],[2025/26 From - Spending review Topic 1]]+Dataset[[#This Row],[2025/26 From - Spending review Topic 2]]+Dataset[[#This Row],[2025/26 From - Spending review Topic 3]]+Dataset[[#This Row],[2025/26 From - Spending review Topic 4]]+Dataset[[#This Row],[2025/26 From - Other reallocations]]","v":0},{"$f":"Dataset[[#This Row],[2023/24 To - Spending review Topic 1]]+Dataset[[#This Row],[2023/24 To - Spending review Topic 2]]+Dataset[[#This Row],[2023/24 To - Spending review Topic 3]]+Dataset[[#This Row],[2023/24 To - Spending review Topic 4]]+Dataset[[#This Row],[2023/24 To - Other reallocations]]","v":0},{"$f":"Dataset[[#This Row],[2024/25 To - Spending review Topic 1]]+Dataset[[#This Row],[2024/25 To - Spending review Topic 2]]+Dataset[[#This Row],[2024/25 To - Spending review Topic 3]]+Dataset[[#This Row],[2024/25 To - Spending review Topic 4]]+Dataset[[#This Row],[2024/25 To - Other reallocations]]","v":0},{"$f":"Dataset[[#This Row],[2025/26 To - Spending review Topic 1]]+Dataset[[#This Row],[2025/26 To - Spending review Topic 2]]+Dataset[[#This Row],[2025/26 To - Spending review Topic 3]]+Dataset[[#This Row],[2025/26 To - Spending review Topic 4]]+Dataset[[#This Row],[2025/26 To - Other reallocations]]","v":0},{"$f":"Dataset[[#This Row],[2023/24 Baseline]]+Dataset[[#This Row],[2023/24 From - Total]]+Dataset[[#This Row],[2023/24 To - Total]]","v":0},{"$f":"Dataset[[#This Row],[2024/25 Baseline]]+Dataset[[#This Row],[2024/25 From - Total]]+Dataset[[#This Row],[2024/25 To - Total]]","v":0},{"$f":"Dataset[[#This Row],[2025/26 Baseline]]+Dataset[[#This Row],[2025/26 From - Total]]+Dataset[[#This Row],[2025/26 To - Total]]","v":0}]
["NAT|Non-transfer item","2|Audit costs: External","2023_24","MTEF2023",2,2,1,854,237,"02","02","01","000854","000237","02|02|01",1,1,2,6,6,"01|01|02|06|06","National","Parliament","Legislation and Oversight","National Assembly","Non-transfer item","Current","Current payments","Goods and services","Audit costs: External","Audit costs: External","General public services","Executive and legislative organs","NAT",0,0,0,0,0,0,0,0,0,0,0,null,null,null,null,null,null,null,null,null,null,null,null,null,null,null,null,null,null,null,null,null,null,null,null,null,null,null,null,null,null,{"$f":"Dataset[[#This Row],[2023/24 From - Spending review Topic 1]]+Dataset[[#This Row],[2023/24 From - Spending review Topic 2]]+Dataset[[#This Row],[2023/24 From - Spending review Topic 3]]+Dataset[[#This Row],[2023/24 From - Spending review Topic 4]]+Dataset[[#This Row],[2023/24 From - Other reallocations]]","v":0},{"$f":"Dataset[[#This Row],[2024/25 From - Spending review Topic 1]]+Dataset[[#This Row],[2024/25 From - Spending review Topic 2]]+Dataset[[#This Row],[2024/25 From - Spending review Topic 3]]+Dataset[[#This Row],[2024/25 From - Spending review Topic 4]]+Dataset[[#This Row],[2024/25 From - Other reallocations]]","v":0},{"$f":"Dataset[[#This Row],[2025/26 From - Spending review Topic 1]]+Dataset[[#This Row],[2025/26 From - Spending review Topic 2]]+Dataset[[#This Row],[2025/26 From - Spending review Topic 3]]+Dataset[[#This Row],[2025/26 From - Spending review Topic 4]]+Dataset[[#This Row],[2025/26 From - Other reallocations]]","v":0},{"$f":"Dataset[[#This Row],[2023/24 To - Spending review Topic 1]]+Dataset[[#This Row],[2023/24 To - Spending review Topic 2]]+Dataset[[#This Row],[2023/24 To - Spending review Topic 3]]+Dataset[[#This Row],[2023/24 To - Spending review Topic 4]]+Dataset[[#This Row],[2023/24 To - Other reallocations]]","v":0},{"$f":"Dataset[[#This Row],[2024/25 To - Spending review Topic 1]]+Dataset[[#This Row],[2024/25 To - Spending review Topic 2]]+Dataset[[#This Row],[2024/25 To - Spending review Topic 3]]+Dataset[[#This Row],[2024/25 To - Spending review Topic 4]]+Dataset[[#This Row],[2024/25 To - Other reallocations]]","v":0},{"$f":"Dataset[[#This Row],[2025/26 To - Spending review Topic 1]]+Dataset[[#This Row],[2025/26 To - Spending review Topic 2]]+Dataset[[#This Row],[2025/26 To - Spending review Topic 3]]+Dataset[[#This Row],[2025/26 To - Spending review Topic 4]]+Dataset[[#This Row],[2025/26 To - Other reallocations]]","v":0},{"$f":"Dataset[[#This Row],[2023/24 Baseline]]+Dataset[[#This Row],[2023/24 From - Total]]+Dataset[[#This Row],[2023/24 To - Total]]","v":0},{"$f":"Dataset[[#This Row],[2024/25 Baseline]]+Dataset[[#This Row],[2024/25 From - Total]]+Dataset[[#This Row],[2024/25 To - Total]]","v":0},{"$f":"Dataset[[#This Row],[2025/26 Baseline]]+Dataset[[#This Row],[2025/26 From - Total]]+Dataset[[#This Row],[2025/26 To - Total]]","v":0}]
["NAT|Non-transfer item","2|Bursaries: Employees","2023_24","MTEF2023",2,2,1,855,238,"02","02","01","000855","000238","02|02|01",1,1,2,7,7,"01|01|02|07|07","National","Parliament","Legislation and Oversight","National Assembly","Non-transfer item","Current","Current payments","Goods and services","Bursaries: Employees","Bursaries: Employees","General public services","Executive and legislative organs","NAT",0,0,0,0,0,0,0,0,0,0,0,null,null,null,null,null,null,null,null,null,null,null,null,null,null,null,null,null,null,null,null,null,null,null,null,null,null,null,null,null,null,{"$f":"Dataset[[#This Row],[2023/24 From - Spending review Topic 1]]+Dataset[[#This Row],[2023/24 From - Spending review Topic 2]]+Dataset[[#This Row],[2023/24 From - Spending review Topic 3]]+Dataset[[#This Row],[2023/24 From - Spending review Topic 4]]+Dataset[[#This Row],[2023/24 From - Other reallocations]]","v":0},{"$f":"Dataset[[#This Row],[2024/25 From - Spending review Topic 1]]+Dataset[[#This Row],[2024/25 From - Spending review Topic 2]]+Dataset[[#This Row],[2024/25 From - Spending review Topic 3]]+Dataset[[#This Row],[2024/25 From - Spending review Topic 4]]+Dataset[[#This Row],[2024/25 From - Other reallocations]]","v":0},{"$f":"Dataset[[#This Row],[2025/26 From - Spending review Topic 1]]+Dataset[[#This Row],[2025/26 From - Spending review Topic 2]]+Dataset[[#This Row],[2025/26 From - Spending review Topic 3]]+Dataset[[#This Row],[2025/26 From - Spending review Topic 4]]+Dataset[[#This Row],[2025/26 From - Other reallocations]]","v":0},{"$f":"Dataset[[#This Row],[2023/24 To - Spending review Topic 1]]+Dataset[[#This Row],[2023/24 To - Spending review Topic 2]]+Dataset[[#This Row],[2023/24 To - Spending review Topic 3]]+Dataset[[#This Row],[2023/24 To - Spending review Topic 4]]+Dataset[[#This Row],[2023/24 To - Other reallocations]]","v":0},{"$f":"Dataset[[#This Row],[2024/25 To - Spending review Topic 1]]+Dataset[[#This Row],[2024/25 To - Spending review Topic 2]]+Dataset[[#This Row],[2024/25 To - Spending review Topic 3]]+Dataset[[#This Row],[2024/25 To - Spending review Topic 4]]+Dataset[[#This Row],[2024/25 To - Other reallocations]]","v":0},{"$f":"Dataset[[#This Row],[2025/26 To - Spending review Topic 1]]+Dataset[[#This Row],[2025/26 To - Spending review Topic 2]]+Dataset[[#This Row],[2025/26 To - Spending review Topic 3]]+Dataset[[#This Row],[2025/26 To - Spending review Topic 4]]+Dataset[[#This Row],[2025/26 To - Other reallocations]]","v":0},{"$f":"Dataset[[#This Row],[2023/24 Baseline]]+Dataset[[#This Row],[2023/24 From - Total]]+Dataset[[#This Row],[2023/24 To - Total]]","v":0},{"$f":"Dataset[[#This Row],[2024/25 Baseline]]+Dataset[[#This Row],[2024/25 From - Total]]+Dataset[[#This Row],[2024/25 To - Total]]","v":0},{"$f":"Dataset[[#This Row],[2025/26 Baseline]]+Dataset[[#This Row],[2025/26 From - Total]]+Dataset[[#This Row],[2025/26 To - Total]]","v":0}]
["NAT|Non-transfer item","2|Catering: Departmental activities","2023_24","MTEF2023",2,2,1,856,239,"02","02","01","000856","000239","02|02|01",1,1,2,8,8,"01|01|02|08|08","National","Parliament","Legislation and Oversight","National Assembly","Non-transfer item","Current","Current payments","Goods and services","Catering: Departmental activities","Catering: Departmental activities","General public services","Executive and legislative organs","NAT",194,205,41,174,174,174,0,179,180,187,195,null,null,null,null,null,null,null,null,null,null,null,null,null,null,null,null,null,null,null,null,null,null,null,null,null,null,null,null,null,null,{"$f":"Dataset[[#This Row],[2023/24 From - Spending review Topic 1]]+Dataset[[#This Row],[2023/24 From - Spending review Topic 2]]+Dataset[[#This Row],[2023/24 From - Spending review Topic 3]]+Dataset[[#This Row],[2023/24 From - Spending review Topic 4]]+Dataset[[#This Row],[2023/24 From - Other reallocations]]","v":0},{"$f":"Dataset[[#This Row],[2024/25 From - Spending review Topic 1]]+Dataset[[#This Row],[2024/25 From - Spending review Topic 2]]+Dataset[[#This Row],[2024/25 From - Spending review Topic 3]]+Dataset[[#This Row],[2024/25 From - Spending review Topic 4]]+Dataset[[#This Row],[2024/25 From - Other reallocations]]","v":0},{"$f":"Dataset[[#This Row],[2025/26 From - Spending review Topic 1]]+Dataset[[#This Row],[2025/26 From - Spending review Topic 2]]+Dataset[[#This Row],[2025/26 From - Spending review Topic 3]]+Dataset[[#This Row],[2025/26 From - Spending review Topic 4]]+Dataset[[#This Row],[2025/26 From - Other reallocations]]","v":0},{"$f":"Dataset[[#This Row],[2023/24 To - Spending review Topic 1]]+Dataset[[#This Row],[2023/24 To - Spending review Topic 2]]+Dataset[[#This Row],[2023/24 To - Spending review Topic 3]]+Dataset[[#This Row],[2023/24 To - Spending review Topic 4]]+Dataset[[#This Row],[2023/24 To - Other reallocations]]","v":0},{"$f":"Dataset[[#This Row],[2024/25 To - Spending review Topic 1]]+Dataset[[#This Row],[2024/25 To - Spending review Topic 2]]+Dataset[[#This Row],[2024/25 To - Spending review Topic 3]]+Dataset[[#This Row],[2024/25 To - Spending review Topic 4]]+Dataset[[#This Row],[2024/25 To - Other reallocations]]","v":0},{"$f":"Dataset[[#This Row],[2025/26 To - Spending review Topic 1]]+Dataset[[#This Row],[2025/26 To - Spending review Topic 2]]+Dataset[[#This Row],[2025/26 To - Spending review Topic 3]]+Dataset[[#This Row],[2025/26 To - Spending review Topic 4]]+Dataset[[#This Row],[2025/26 To - Other reallocations]]","v":0},{"$f":"Dataset[[#This Row],[2023/24 Baseline]]+Dataset[[#This Row],[2023/24 From - Total]]+Dataset[[#This Row],[2023/24 To - Total]]","v":180},{"$f":"Dataset[[#This Row],[2024/25 Baseline]]+Dataset[[#This Row],[2024/25 From - Total]]+Dataset[[#This Row],[2024/25 To - Total]]","v":187},{"$f":"Dataset[[#This Row],[2025/26 Baseline]]+Dataset[[#This Row],[2025/26 From - Total]]+Dataset[[#This Row],[2025/26 To - Total]]","v":195}]
["NAT|Non-transfer item","2|Communication (G&S)","2023_24","MTEF2023",2,2,1,857,240,"02","02","01","000857","000240","02|02|01",1,1,2,9,9,"01|01|02|09|09","National","Parliament","Legislation and Oversight","National Assembly","Non-transfer item","Current","Current payments","Goods and services","Communication (G&S)","Communication (G&S)","General public services","Executive and legislative organs","NAT",251,265,80,339,339,339,0,349,351,367,383,null,null,null,null,null,null,null,null,null,null,null,null,null,null,null,null,null,null,null,null,null,null,null,null,null,null,null,null,null,null,{"$f":"Dataset[[#This Row],[2023/24 From - Spending review Topic 1]]+Dataset[[#This Row],[2023/24 From - Spending review Topic 2]]+Dataset[[#This Row],[2023/24 From - Spending review Topic 3]]+Dataset[[#This Row],[2023/24 From - Spending review Topic 4]]+Dataset[[#This Row],[2023/24 From - Other reallocations]]","v":0},{"$f":"Dataset[[#This Row],[2024/25 From - Spending review Topic 1]]+Dataset[[#This Row],[2024/25 From - Spending review Topic 2]]+Dataset[[#This Row],[2024/25 From - Spending review Topic 3]]+Dataset[[#This Row],[2024/25 From - Spending review Topic 4]]+Dataset[[#This Row],[2024/25 From - Other reallocations]]","v":0},{"$f":"Dataset[[#This Row],[2025/26 From - Spending review Topic 1]]+Dataset[[#This Row],[2025/26 From - Spending review Topic 2]]+Dataset[[#This Row],[2025/26 From - Spending review Topic 3]]+Dataset[[#This Row],[2025/26 From - Spending review Topic 4]]+Dataset[[#This Row],[2025/26 From - Other reallocations]]","v":0},{"$f":"Dataset[[#This Row],[2023/24 To - Spending review Topic 1]]+Dataset[[#This Row],[2023/24 To - Spending review Topic 2]]+Dataset[[#This Row],[2023/24 To - Spending review Topic 3]]+Dataset[[#This Row],[2023/24 To - Spending review Topic 4]]+Dataset[[#This Row],[2023/24 To - Other reallocations]]","v":0},{"$f":"Dataset[[#This Row],[2024/25 To - Spending review Topic 1]]+Dataset[[#This Row],[2024/25 To - Spending review Topic 2]]+Dataset[[#This Row],[2024/25 To - Spending review Topic 3]]+Dataset[[#This Row],[2024/25 To - Spending review Topic 4]]+Dataset[[#This Row],[2024/25 To - Other reallocations]]","v":0},{"$f":"Dataset[[#This Row],[2025/26 To - Spending review Topic 1]]+Dataset[[#This Row],[2025/26 To - Spending review Topic 2]]+Dataset[[#This Row],[2025/26 To - Spending review Topic 3]]+Dataset[[#This Row],[2025/26 To - Spending review Topic 4]]+Dataset[[#This Row],[2025/26 To - Other reallocations]]","v":0},{"$f":"Dataset[[#This Row],[2023/24 Baseline]]+Dataset[[#This Row],[2023/24 From - Total]]+Dataset[[#This Row],[2023/24 To - Total]]","v":351},{"$f":"Dataset[[#This Row],[2024/25 Baseline]]+Dataset[[#This Row],[2024/25 From - Total]]+Dataset[[#This Row],[2024/25 To - Total]]","v":367},{"$f":"Dataset[[#This Row],[2025/26 Baseline]]+Dataset[[#This Row],[2025/26 From - Total]]+Dataset[[#This Row],[2025/26 To - Total]]","v":383}]
["NAT|Non-transfer item","2|Computer services","2023_24","MTEF2023",2,2,1,858,241,"02","02","01","000858","000241","02|02|01",1,1,2,10,10,"01|01|02|10|10","National","Parliament","Legislation and Oversight","National Assembly","Non-transfer item","Current","Current payments","Goods and services","Computer services","Computer services","General public services","Executive and legislative organs","NAT",0,0,0,0,0,0,0,0,0,0,0,null,null,null,null,null,null,null,null,null,null,null,null,null,null,null,null,null,null,null,null,null,null,null,null,null,null,null,null,null,null,{"$f":"Dataset[[#This Row],[2023/24 From - Spending review Topic 1]]+Dataset[[#This Row],[2023/24 From - Spending review Topic 2]]+Dataset[[#This Row],[2023/24 From - Spending review Topic 3]]+Dataset[[#This Row],[2023/24 From - Spending review Topic 4]]+Dataset[[#This Row],[2023/24 From - Other reallocations]]","v":0},{"$f":"Dataset[[#This Row],[2024/25 From - Spending review Topic 1]]+Dataset[[#This Row],[2024/25 From - Spending review Topic 2]]+Dataset[[#This Row],[2024/25 From - Spending review Topic 3]]+Dataset[[#This Row],[2024/25 From - Spending review Topic 4]]+Dataset[[#This Row],[2024/25 From - Other reallocations]]","v":0},{"$f":"Dataset[[#This Row],[2025/26 From - Spending review Topic 1]]+Dataset[[#This Row],[2025/26 From - Spending review Topic 2]]+Dataset[[#This Row],[2025/26 From - Spending review Topic 3]]+Dataset[[#This Row],[2025/26 From - Spending review Topic 4]]+Dataset[[#This Row],[2025/26 From - Other reallocations]]","v":0},{"$f":"Dataset[[#This Row],[2023/24 To - Spending review Topic 1]]+Dataset[[#This Row],[2023/24 To - Spending review Topic 2]]+Dataset[[#This Row],[2023/24 To - Spending review Topic 3]]+Dataset[[#This Row],[2023/24 To - Spending review Topic 4]]+Dataset[[#This Row],[2023/24 To - Other reallocations]]","v":0},{"$f":"Dataset[[#This Row],[2024/25 To - Spending review Topic 1]]+Dataset[[#This Row],[2024/25 To - Spending review Topic 2]]+Dataset[[#This Row],[2024/25 To - Spending review Topic 3]]+Dataset[[#This Row],[2024/25 To - Spending review Topic 4]]+Dataset[[#This Row],[2024/25 To - Other reallocations]]","v":0},{"$f":"Dataset[[#This Row],[2025/26 To - Spending review Topic 1]]+Dataset[[#This Row],[2025/26 To - Spending review Topic 2]]+Dataset[[#This Row],[2025/26 To - Spending review Topic 3]]+Dataset[[#This Row],[2025/26 To - Spending review Topic 4]]+Dataset[[#This Row],[2025/26 To - Other reallocations]]","v":0},{"$f":"Dataset[[#This Row],[2023/24 Baseline]]+Dataset[[#This Row],[2023/24 From - Total]]+Dataset[[#This Row],[2023/24 To - Total]]","v":0},{"$f":"Dataset[[#This Row],[2024/25 Baseline]]+Dataset[[#This Row],[2024/25 From - Total]]+Dataset[[#This Row],[2024/25 To - Total]]","v":0},{"$f":"Dataset[[#This Row],[2025/26 Baseline]]+Dataset[[#This Row],[2025/26 From - Total]]+Dataset[[#This Row],[2025/26 To - Total]]","v":0}]
["NAT|Non-transfer item","2|Consultants: Business and advisory services","2023_24","MTEF2023",2,2,1,859,242,"02","02","01","000859","000242","02|02|01",1,1,2,11,11,"01|01|02|11|11","National","Parliament","Legislation and Oversight","National Assembly","Non-transfer item","Current","Current payments","Goods and services","Consultants: Business and advisory services","Consultants: Business and advisory services","General public services","Executive and legislative organs","NAT",101,107,0,0,0,0,0,0,0,0,0,null,null,null,null,null,null,null,null,null,null,null,null,null,null,null,null,null,null,null,null,null,null,null,null,null,null,null,null,null,null,{"$f":"Dataset[[#This Row],[2023/24 From - Spending review Topic 1]]+Dataset[[#This Row],[2023/24 From - Spending review Topic 2]]+Dataset[[#This Row],[2023/24 From - Spending review Topic 3]]+Dataset[[#This Row],[2023/24 From - Spending review Topic 4]]+Dataset[[#This Row],[2023/24 From - Other reallocations]]","v":0},{"$f":"Dataset[[#This Row],[2024/25 From - Spending review Topic 1]]+Dataset[[#This Row],[2024/25 From - Spending review Topic 2]]+Dataset[[#This Row],[2024/25 From - Spending review Topic 3]]+Dataset[[#This Row],[2024/25 From - Spending review Topic 4]]+Dataset[[#This Row],[2024/25 From - Other reallocations]]","v":0},{"$f":"Dataset[[#This Row],[2025/26 From - Spending review Topic 1]]+Dataset[[#This Row],[2025/26 From - Spending review Topic 2]]+Dataset[[#This Row],[2025/26 From - Spending review Topic 3]]+Dataset[[#This Row],[2025/26 From - Spending review Topic 4]]+Dataset[[#This Row],[2025/26 From - Other reallocations]]","v":0},{"$f":"Dataset[[#This Row],[2023/24 To - Spending review Topic 1]]+Dataset[[#This Row],[2023/24 To - Spending review Topic 2]]+Dataset[[#This Row],[2023/24 To - Spending review Topic 3]]+Dataset[[#This Row],[2023/24 To - Spending review Topic 4]]+Dataset[[#This Row],[2023/24 To - Other reallocations]]","v":0},{"$f":"Dataset[[#This Row],[2024/25 To - Spending review Topic 1]]+Dataset[[#This Row],[2024/25 To - Spending review Topic 2]]+Dataset[[#This Row],[2024/25 To - Spending review Topic 3]]+Dataset[[#This Row],[2024/25 To - Spending review Topic 4]]+Dataset[[#This Row],[2024/25 To - Other reallocations]]","v":0},{"$f":"Dataset[[#This Row],[2025/26 To - Spending review Topic 1]]+Dataset[[#This Row],[2025/26 To - Spending review Topic 2]]+Dataset[[#This Row],[2025/26 To - Spending review Topic 3]]+Dataset[[#This Row],[2025/26 To - Spending review Topic 4]]+Dataset[[#This Row],[2025/26 To - Other reallocations]]","v":0},{"$f":"Dataset[[#This Row],[2023/24 Baseline]]+Dataset[[#This Row],[2023/24 From - Total]]+Dataset[[#This Row],[2023/24 To - Total]]","v":0},{"$f":"Dataset[[#This Row],[2024/25 Baseline]]+Dataset[[#This Row],[2024/25 From - Total]]+Dataset[[#This Row],[2024/25 To - Total]]","v":0},{"$f":"Dataset[[#This Row],[2025/26 Baseline]]+Dataset[[#This Row],[2025/26 From - Total]]+Dataset[[#This Row],[2025/26 To - Total]]","v":0}]
["NAT|Non-transfer item","2|Infrastructure and planning services","2023_24","MTEF2023",2,2,1,860,243,"02","02","01","000860","000243","02|02|01",1,1,2,12,12,"01|01|02|12|12","National","Parliament","Legislation and Oversight","National Assembly","Non-transfer item","Current","Current payments","Goods and services","Infrastructure and planning services","Infrastructure and planning services","General public services","Executive and legislative organs","NAT",0,0,0,0,0,0,0,0,0,0,0,null,null,null,null,null,null,null,null,null,null,null,null,null,null,null,null,null,null,null,null,null,null,null,null,null,null,null,null,null,null,{"$f":"Dataset[[#This Row],[2023/24 From - Spending review Topic 1]]+Dataset[[#This Row],[2023/24 From - Spending review Topic 2]]+Dataset[[#This Row],[2023/24 From - Spending review Topic 3]]+Dataset[[#This Row],[2023/24 From - Spending review Topic 4]]+Dataset[[#This Row],[2023/24 From - Other reallocations]]","v":0},{"$f":"Dataset[[#This Row],[2024/25 From - Spending review Topic 1]]+Dataset[[#This Row],[2024/25 From - Spending review Topic 2]]+Dataset[[#This Row],[2024/25 From - Spending review Topic 3]]+Dataset[[#This Row],[2024/25 From - Spending review Topic 4]]+Dataset[[#This Row],[2024/25 From - Other reallocations]]","v":0},{"$f":"Dataset[[#This Row],[2025/26 From - Spending review Topic 1]]+Dataset[[#This Row],[2025/26 From - Spending review Topic 2]]+Dataset[[#This Row],[2025/26 From - Spending review Topic 3]]+Dataset[[#This Row],[2025/26 From - Spending review Topic 4]]+Dataset[[#This Row],[2025/26 From - Other reallocations]]","v":0},{"$f":"Dataset[[#This Row],[2023/24 To - Spending review Topic 1]]+Dataset[[#This Row],[2023/24 To - Spending review Topic 2]]+Dataset[[#This Row],[2023/24 To - Spending review Topic 3]]+Dataset[[#This Row],[2023/24 To - Spending review Topic 4]]+Dataset[[#This Row],[2023/24 To - Other reallocations]]","v":0},{"$f":"Dataset[[#This Row],[2024/25 To - Spending review Topic 1]]+Dataset[[#This Row],[2024/25 To - Spending review Topic 2]]+Dataset[[#This Row],[2024/25 To - Spending review Topic 3]]+Dataset[[#This Row],[2024/25 To - Spending review Topic 4]]+Dataset[[#This Row],[2024/25 To - Other reallocations]]","v":0},{"$f":"Dataset[[#This Row],[2025/26 To - Spending review Topic 1]]+Dataset[[#This Row],[2025/26 To - Spending review Topic 2]]+Dataset[[#This Row],[2025/26 To - Spending review Topic 3]]+Dataset[[#This Row],[2025/26 To - Spending review Topic 4]]+Dataset[[#This Row],[2025/26 To - Other reallocations]]","v":0},{"$f":"Dataset[[#This Row],[2023/24 Baseline]]+Dataset[[#This Row],[2023/24 From - Total]]+Dataset[[#This Row],[2023/24 To - Total]]","v":0},{"$f":"Dataset[[#This Row],[2024/25 Baseline]]+Dataset[[#This Row],[2024/25 From - Total]]+Dataset[[#This Row],[2024/25 To - Total]]","v":0},{"$f":"Dataset[[#This Row],[2025/26 Baseline]]+Dataset[[#This Row],[2025/26 From - Total]]+Dataset[[#This Row],[2025/26 To - Total]]","v":0}]
["NAT|Non-transfer item","2|Laboratory services","2023_24","MTEF2023",2,2,1,861,244,"02","02","01","000861","000244","02|02|01",1,1,2,13,13,"01|01|02|13|13","National","Parliament","Legislation and Oversight","National Assembly","Non-transfer item","Current","Current payments","Goods and services","Laboratory services","Laboratory services","General public services","Executive and legislative organs","NAT",0,0,0,0,0,0,0,0,0,0,0,null,null,null,null,null,null,null,null,null,null,null,null,null,null,null,null,null,null,null,null,null,null,null,null,null,null,null,null,null,null,{"$f":"Dataset[[#This Row],[2023/24 From - Spending review Topic 1]]+Dataset[[#This Row],[2023/24 From - Spending review Topic 2]]+Dataset[[#This Row],[2023/24 From - Spending review Topic 3]]+Dataset[[#This Row],[2023/24 From - Spending review Topic 4]]+Dataset[[#This Row],[2023/24 From - Other reallocations]]","v":0},{"$f":"Dataset[[#This Row],[2024/25 From - Spending review Topic 1]]+Dataset[[#This Row],[2024/25 From - Spending review Topic 2]]+Dataset[[#This Row],[2024/25 From - Spending review Topic 3]]+Dataset[[#This Row],[2024/25 From - Spending review Topic 4]]+Dataset[[#This Row],[2024/25 From - Other reallocations]]","v":0},{"$f":"Dataset[[#This Row],[2025/26 From - Spending review Topic 1]]+Dataset[[#This Row],[2025/26 From - Spending review Topic 2]]+Dataset[[#This Row],[2025/26 From - Spending review Topic 3]]+Dataset[[#This Row],[2025/26 From - Spending review Topic 4]]+Dataset[[#This Row],[2025/26 From - Other reallocations]]","v":0},{"$f":"Dataset[[#This Row],[2023/24 To - Spending review Topic 1]]+Dataset[[#This Row],[2023/24 To - Spending review Topic 2]]+Dataset[[#This Row],[2023/24 To - Spending review Topic 3]]+Dataset[[#This Row],[2023/24 To - Spending review Topic 4]]+Dataset[[#This Row],[2023/24 To - Other reallocations]]","v":0},{"$f":"Dataset[[#This Row],[2024/25 To - Spending review Topic 1]]+Dataset[[#This Row],[2024/25 To - Spending review Topic 2]]+Dataset[[#This Row],[2024/25 To - Spending review Topic 3]]+Dataset[[#This Row],[2024/25 To - Spending review Topic 4]]+Dataset[[#This Row],[2024/25 To - Other reallocations]]","v":0},{"$f":"Dataset[[#This Row],[2025/26 To - Spending review Topic 1]]+Dataset[[#This Row],[2025/26 To - Spending review Topic 2]]+Dataset[[#This Row],[2025/26 To - Spending review Topic 3]]+Dataset[[#This Row],[2025/26 To - Spending review Topic 4]]+Dataset[[#This Row],[2025/26 To - Other reallocations]]","v":0},{"$f":"Dataset[[#This Row],[2023/24 Baseline]]+Dataset[[#This Row],[2023/24 From - Total]]+Dataset[[#This Row],[2023/24 To - Total]]","v":0},{"$f":"Dataset[[#This Row],[2024/25 Baseline]]+Dataset[[#This Row],[2024/25 From - Total]]+Dataset[[#This Row],[2024/25 To - Total]]","v":0},{"$f":"Dataset[[#This Row],[2025/26 Baseline]]+Dataset[[#This Row],[2025/26 From - Total]]+Dataset[[#This Row],[2025/26 To - Total]]","v":0}]
["NAT|Non-transfer item","2|Legal services (G&S)","2023_24","MTEF2023",2,2,1,862,245,"02","02","01","000862","000245","02|02|01",1,1,2,14,14,"01|01|02|14|14","National","Parliament","Legislation and Oversight","National Assembly","Non-transfer item","Current","Current payments","Goods and services","Legal services (G&S)","Legal services (G&S)","General public services","Executive and legislative organs","NAT",0,0,0,0,0,0,0,0,0,0,0,null,null,null,null,null,null,null,null,null,null,null,null,null,null,null,null,null,null,null,null,null,null,null,null,null,null,null,null,null,null,{"$f":"Dataset[[#This Row],[2023/24 From - Spending review Topic 1]]+Dataset[[#This Row],[2023/24 From - Spending review Topic 2]]+Dataset[[#This Row],[2023/24 From - Spending review Topic 3]]+Dataset[[#This Row],[2023/24 From - Spending review Topic 4]]+Dataset[[#This Row],[2023/24 From - Other reallocations]]","v":0},{"$f":"Dataset[[#This Row],[2024/25 From - Spending review Topic 1]]+Dataset[[#This Row],[2024/25 From - Spending review Topic 2]]+Dataset[[#This Row],[2024/25 From - Spending review Topic 3]]+Dataset[[#This Row],[2024/25 From - Spending review Topic 4]]+Dataset[[#This Row],[2024/25 From - Other reallocations]]","v":0},{"$f":"Dataset[[#This Row],[2025/26 From - Spending review Topic 1]]+Dataset[[#This Row],[2025/26 From - Spending review Topic 2]]+Dataset[[#This Row],[2025/26 From - Spending review Topic 3]]+Dataset[[#This Row],[2025/26 From - Spending review Topic 4]]+Dataset[[#This Row],[2025/26 From - Other reallocations]]","v":0},{"$f":"Dataset[[#This Row],[2023/24 To - Spending review Topic 1]]+Dataset[[#This Row],[2023/24 To - Spending review Topic 2]]+Dataset[[#This Row],[2023/24 To - Spending review Topic 3]]+Dataset[[#This Row],[2023/24 To - Spending review Topic 4]]+Dataset[[#This Row],[2023/24 To - Other reallocations]]","v":0},{"$f":"Dataset[[#This Row],[2024/25 To - Spending review Topic 1]]+Dataset[[#This Row],[2024/25 To - Spending review Topic 2]]+Dataset[[#This Row],[2024/25 To - Spending review Topic 3]]+Dataset[[#This Row],[2024/25 To - Spending review Topic 4]]+Dataset[[#This Row],[2024/25 To - Other reallocations]]","v":0},{"$f":"Dataset[[#This Row],[2025/26 To - Spending review Topic 1]]+Dataset[[#This Row],[2025/26 To - Spending review Topic 2]]+Dataset[[#This Row],[2025/26 To - Spending review Topic 3]]+Dataset[[#This Row],[2025/26 To - Spending review Topic 4]]+Dataset[[#This Row],[2025/26 To - Other reallocations]]","v":0},{"$f":"Dataset[[#This Row],[2023/24 Baseline]]+Dataset[[#This Row],[2023/24 From - Total]]+Dataset[[#This Row],[2023/24 To - Total]]","v":0},{"$f":"Dataset[[#This Row],[2024/25 Baseline]]+Dataset[[#This Row],[2024/25 From - Total]]+Dataset[[#This Row],[2024/25 To - Total]]","v":0},{"$f":"Dataset[[#This Row],[2025/26 Baseline]]+Dataset[[#This Row],[2025/26 From - Total]]+Dataset[[#This Row],[2025/26 To - Total]]","v":0}]
["NAT|Non-transfer item","2|Science and technological services","2023_24","MTEF2023",2,2,1,863,246,"02","02","01","000863","000246","02|02|01",1,1,2,15,15,"01|01|02|15|15","National","Parliament","Legislation and Oversight","National Assembly","Non-transfer item","Current","Current payments","Goods and services","Science and technological services","Science and technological services","General public services","Executive and legislative organs","NAT",0,0,0,0,0,0,0,0,0,0,0,null,null,null,null,null,null,null,null,null,null,null,null,null,null,null,null,null,null,null,null,null,null,null,null,null,null,null,null,null,null,{"$f":"Dataset[[#This Row],[2023/24 From - Spending review Topic 1]]+Dataset[[#This Row],[2023/24 From - Spending review Topic 2]]+Dataset[[#This Row],[2023/24 From - Spending review Topic 3]]+Dataset[[#This Row],[2023/24 From - Spending review Topic 4]]+Dataset[[#This Row],[2023/24 From - Other reallocations]]","v":0},{"$f":"Dataset[[#This Row],[2024/25 From - Spending review Topic 1]]+Dataset[[#This Row],[2024/25 From - Spending review Topic 2]]+Dataset[[#This Row],[2024/25 From - Spending review Topic 3]]+Dataset[[#This Row],[2024/25 From - Spending review Topic 4]]+Dataset[[#This Row],[2024/25 From - Other reallocations]]","v":0},{"$f":"Dataset[[#This Row],[2025/26 From - Spending review Topic 1]]+Dataset[[#This Row],[2025/26 From - Spending review Topic 2]]+Dataset[[#This Row],[2025/26 From - Spending review Topic 3]]+Dataset[[#This Row],[2025/26 From - Spending review Topic 4]]+Dataset[[#This Row],[2025/26 From - Other reallocations]]","v":0},{"$f":"Dataset[[#This Row],[2023/24 To - Spending review Topic 1]]+Dataset[[#This Row],[2023/24 To - Spending review Topic 2]]+Dataset[[#This Row],[2023/24 To - Spending review Topic 3]]+Dataset[[#This Row],[2023/24 To - Spending review Topic 4]]+Dataset[[#This Row],[2023/24 To - Other reallocations]]","v":0},{"$f":"Dataset[[#This Row],[2024/25 To - Spending review Topic 1]]+Dataset[[#This Row],[2024/25 To - Spending review Topic 2]]+Dataset[[#This Row],[2024/25 To - Spending review Topic 3]]+Dataset[[#This Row],[2024/25 To - Spending review Topic 4]]+Dataset[[#This Row],[2024/25 To - Other reallocations]]","v":0},{"$f":"Dataset[[#This Row],[2025/26 To - Spending review Topic 1]]+Dataset[[#This Row],[2025/26 To - Spending review Topic 2]]+Dataset[[#This Row],[2025/26 To - Spending review Topic 3]]+Dataset[[#This Row],[2025/26 To - Spending review Topic 4]]+Dataset[[#This Row],[2025/26 To - Other reallocations]]","v":0},{"$f":"Dataset[[#This Row],[2023/24 Baseline]]+Dataset[[#This Row],[2023/24 From - Total]]+Dataset[[#This Row],[2023/24 To - Total]]","v":0},{"$f":"Dataset[[#This Row],[2024/25 Baseline]]+Dataset[[#This Row],[2024/25 From - Total]]+Dataset[[#This Row],[2024/25 To - Total]]","v":0},{"$f":"Dataset[[#This Row],[2025/26 Baseline]]+Dataset[[#This Row],[2025/26 From - Total]]+Dataset[[#This Row],[2025/26 To - Total]]","v":0}]
["NAT|Non-transfer item","2|Contractors","2023_24","MTEF2023",2,2,1,864,247,"02","02","01","000864","000247","02|02|01",1,1,2,16,16,"01|01|02|16|16","National","Parliament","Legislation and Oversight","National Assembly","Non-transfer item","Current","Current payments","Goods and services","Contractors","Contractors","General public services","Executive and legislative organs","NAT",170,180,90,381,381,381,0,393,395,413,432,null,null,null,null,null,null,null,null,null,null,null,null,null,null,null,null,null,null,null,null,null,null,null,null,null,null,null,null,null,null,{"$f":"Dataset[[#This Row],[2023/24 From - Spending review Topic 1]]+Dataset[[#This Row],[2023/24 From - Spending review Topic 2]]+Dataset[[#This Row],[2023/24 From - Spending review Topic 3]]+Dataset[[#This Row],[2023/24 From - Spending review Topic 4]]+Dataset[[#This Row],[2023/24 From - Other reallocations]]","v":0},{"$f":"Dataset[[#This Row],[2024/25 From - Spending review Topic 1]]+Dataset[[#This Row],[2024/25 From - Spending review Topic 2]]+Dataset[[#This Row],[2024/25 From - Spending review Topic 3]]+Dataset[[#This Row],[2024/25 From - Spending review Topic 4]]+Dataset[[#This Row],[2024/25 From - Other reallocations]]","v":0},{"$f":"Dataset[[#This Row],[2025/26 From - Spending review Topic 1]]+Dataset[[#This Row],[2025/26 From - Spending review Topic 2]]+Dataset[[#This Row],[2025/26 From - Spending review Topic 3]]+Dataset[[#This Row],[2025/26 From - Spending review Topic 4]]+Dataset[[#This Row],[2025/26 From - Other reallocations]]","v":0},{"$f":"Dataset[[#This Row],[2023/24 To - Spending review Topic 1]]+Dataset[[#This Row],[2023/24 To - Spending review Topic 2]]+Dataset[[#This Row],[2023/24 To - Spending review Topic 3]]+Dataset[[#This Row],[2023/24 To - Spending review Topic 4]]+Dataset[[#This Row],[2023/24 To - Other reallocations]]","v":0},{"$f":"Dataset[[#This Row],[2024/25 To - Spending review Topic 1]]+Dataset[[#This Row],[2024/25 To - Spending review Topic 2]]+Dataset[[#This Row],[2024/25 To - Spending review Topic 3]]+Dataset[[#This Row],[2024/25 To - Spending review Topic 4]]+Dataset[[#This Row],[2024/25 To - Other reallocations]]","v":0},{"$f":"Dataset[[#This Row],[2025/26 To - Spending review Topic 1]]+Dataset[[#This Row],[2025/26 To - Spending review Topic 2]]+Dataset[[#This Row],[2025/26 To - Spending review Topic 3]]+Dataset[[#This Row],[2025/26 To - Spending review Topic 4]]+Dataset[[#This Row],[2025/26 To - Other reallocations]]","v":0},{"$f":"Dataset[[#This Row],[2023/24 Baseline]]+Dataset[[#This Row],[2023/24 From - Total]]+Dataset[[#This Row],[2023/24 To - Total]]","v":395},{"$f":"Dataset[[#This Row],[2024/25 Baseline]]+Dataset[[#This Row],[2024/25 From - Total]]+Dataset[[#This Row],[2024/25 To - Total]]","v":413},{"$f":"Dataset[[#This Row],[2025/26 Baseline]]+Dataset[[#This Row],[2025/26 From - Total]]+Dataset[[#This Row],[2025/26 To - Total]]","v":432}]
["NAT|Non-transfer item","2|Agency and support/outsourced services","2023_24","MTEF2023",2,2,1,865,248,"02","02","01","000865","000248","02|02|01",1,1,2,17,17,"01|01|02|17|17","National","Parliament","Legislation and Oversight","National Assembly","Non-transfer item","Current","Current payments","Goods and services","Agency and support/outsourced services","Agency and support/outsourced services","General public services","Executive and legislative organs","NAT",3882,0,0,0,0,0,0,0,0,0,0,null,null,null,null,null,null,null,null,null,null,null,null,null,null,null,null,null,null,null,null,null,null,null,null,null,null,null,null,null,null,{"$f":"Dataset[[#This Row],[2023/24 From - Spending review Topic 1]]+Dataset[[#This Row],[2023/24 From - Spending review Topic 2]]+Dataset[[#This Row],[2023/24 From - Spending review Topic 3]]+Dataset[[#This Row],[2023/24 From - Spending review Topic 4]]+Dataset[[#This Row],[2023/24 From - Other reallocations]]","v":0},{"$f":"Dataset[[#This Row],[2024/25 From - Spending review Topic 1]]+Dataset[[#This Row],[2024/25 From - Spending review Topic 2]]+Dataset[[#This Row],[2024/25 From - Spending review Topic 3]]+Dataset[[#This Row],[2024/25 From - Spending review Topic 4]]+Dataset[[#This Row],[2024/25 From - Other reallocations]]","v":0},{"$f":"Dataset[[#This Row],[2025/26 From - Spending review Topic 1]]+Dataset[[#This Row],[2025/26 From - Spending review Topic 2]]+Dataset[[#This Row],[2025/26 From - Spending review Topic 3]]+Dataset[[#This Row],[2025/26 From - Spending review Topic 4]]+Dataset[[#This Row],[2025/26 From - Other reallocations]]","v":0},{"$f":"Dataset[[#This Row],[2023/24 To - Spending review Topic 1]]+Dataset[[#This Row],[2023/24 To - Spending review Topic 2]]+Dataset[[#This Row],[2023/24 To - Spending review Topic 3]]+Dataset[[#This Row],[2023/24 To - Spending review Topic 4]]+Dataset[[#This Row],[2023/24 To - Other reallocations]]","v":0},{"$f":"Dataset[[#This Row],[2024/25 To - Spending review Topic 1]]+Dataset[[#This Row],[2024/25 To - Spending review Topic 2]]+Dataset[[#This Row],[2024/25 To - Spending review Topic 3]]+Dataset[[#This Row],[2024/25 To - Spending review Topic 4]]+Dataset[[#This Row],[2024/25 To - Other reallocations]]","v":0},{"$f":"Dataset[[#This Row],[2025/26 To - Spending review Topic 1]]+Dataset[[#This Row],[2025/26 To - Spending review Topic 2]]+Dataset[[#This Row],[2025/26 To - Spending review Topic 3]]+Dataset[[#This Row],[2025/26 To - Spending review Topic 4]]+Dataset[[#This Row],[2025/26 To - Other reallocations]]","v":0},{"$f":"Dataset[[#This Row],[2023/24 Baseline]]+Dataset[[#This Row],[2023/24 From - Total]]+Dataset[[#This Row],[2023/24 To - Total]]","v":0},{"$f":"Dataset[[#This Row],[2024/25 Baseline]]+Dataset[[#This Row],[2024/25 From - Total]]+Dataset[[#This Row],[2024/25 To - Total]]","v":0},{"$f":"Dataset[[#This Row],[2025/26 Baseline]]+Dataset[[#This Row],[2025/26 From - Total]]+Dataset[[#This Row],[2025/26 To - Total]]","v":0}]
["NAT|Non-transfer item","2|Entertainment","2023_24","MTEF2023",2,2,1,866,249,"02","02","01","000866","000249","02|02|01",1,1,2,18,18,"01|01|02|18|18","National","Parliament","Legislation and Oversight","National Assembly","Non-transfer item","Current","Current payments","Goods and services","Entertainment","Entertainment","General public services","Executive and legislative organs","NAT",0,0,0,0,0,0,0,0,0,0,0,null,null,null,null,null,null,null,null,null,null,null,null,null,null,null,null,null,null,null,null,null,null,null,null,null,null,null,null,null,null,{"$f":"Dataset[[#This Row],[2023/24 From - Spending review Topic 1]]+Dataset[[#This Row],[2023/24 From - Spending review Topic 2]]+Dataset[[#This Row],[2023/24 From - Spending review Topic 3]]+Dataset[[#This Row],[2023/24 From - Spending review Topic 4]]+Dataset[[#This Row],[2023/24 From - Other reallocations]]","v":0},{"$f":"Dataset[[#This Row],[2024/25 From - Spending review Topic 1]]+Dataset[[#This Row],[2024/25 From - Spending review Topic 2]]+Dataset[[#This Row],[2024/25 From - Spending review Topic 3]]+Dataset[[#This Row],[2024/25 From - Spending review Topic 4]]+Dataset[[#This Row],[2024/25 From - Other reallocations]]","v":0},{"$f":"Dataset[[#This Row],[2025/26 From - Spending review Topic 1]]+Dataset[[#This Row],[2025/26 From - Spending review Topic 2]]+Dataset[[#This Row],[2025/26 From - Spending review Topic 3]]+Dataset[[#This Row],[2025/26 From - Spending review Topic 4]]+Dataset[[#This Row],[2025/26 From - Other reallocations]]","v":0},{"$f":"Dataset[[#This Row],[2023/24 To - Spending review Topic 1]]+Dataset[[#This Row],[2023/24 To - Spending review Topic 2]]+Dataset[[#This Row],[2023/24 To - Spending review Topic 3]]+Dataset[[#This Row],[2023/24 To - Spending review Topic 4]]+Dataset[[#This Row],[2023/24 To - Other reallocations]]","v":0},{"$f":"Dataset[[#This Row],[2024/25 To - Spending review Topic 1]]+Dataset[[#This Row],[2024/25 To - Spending review Topic 2]]+Dataset[[#This Row],[2024/25 To - Spending review Topic 3]]+Dataset[[#This Row],[2024/25 To - Spending review Topic 4]]+Dataset[[#This Row],[2024/25 To - Other reallocations]]","v":0},{"$f":"Dataset[[#This Row],[2025/26 To - Spending review Topic 1]]+Dataset[[#This Row],[2025/26 To - Spending review Topic 2]]+Dataset[[#This Row],[2025/26 To - Spending review Topic 3]]+Dataset[[#This Row],[2025/26 To - Spending review Topic 4]]+Dataset[[#This Row],[2025/26 To - Other reallocations]]","v":0},{"$f":"Dataset[[#This Row],[2023/24 Baseline]]+Dataset[[#This Row],[2023/24 From - Total]]+Dataset[[#This Row],[2023/24 To - Total]]","v":0},{"$f":"Dataset[[#This Row],[2024/25 Baseline]]+Dataset[[#This Row],[2024/25 From - Total]]+Dataset[[#This Row],[2024/25 To - Total]]","v":0},{"$f":"Dataset[[#This Row],[2025/26 Baseline]]+Dataset[[#This Row],[2025/26 From - Total]]+Dataset[[#This Row],[2025/26 To - Total]]","v":0}]
["NAT|Non-transfer item","2|Fleet services (including government motor transport)","2023_24","MTEF2023",2,2,1,867,250,"02","02","01","000867","000250","02|02|01",1,1,2,19,19,"01|01|02|19|19","National","Parliament","Legislation and Oversight","National Assembly","Non-transfer item","Current","Current payments","Goods and services","Fleet services (including government motor transport)","Fleet services (including government motor transport)","General public services","Executive and legislative organs","NAT",0,0,0,0,0,0,0,0,0,0,0,null,null,null,null,null,null,null,null,null,null,null,null,null,null,null,null,null,null,null,null,null,null,null,null,null,null,null,null,null,null,{"$f":"Dataset[[#This Row],[2023/24 From - Spending review Topic 1]]+Dataset[[#This Row],[2023/24 From - Spending review Topic 2]]+Dataset[[#This Row],[2023/24 From - Spending review Topic 3]]+Dataset[[#This Row],[2023/24 From - Spending review Topic 4]]+Dataset[[#This Row],[2023/24 From - Other reallocations]]","v":0},{"$f":"Dataset[[#This Row],[2024/25 From - Spending review Topic 1]]+Dataset[[#This Row],[2024/25 From - Spending review Topic 2]]+Dataset[[#This Row],[2024/25 From - Spending review Topic 3]]+Dataset[[#This Row],[2024/25 From - Spending review Topic 4]]+Dataset[[#This Row],[2024/25 From - Other reallocations]]","v":0},{"$f":"Dataset[[#This Row],[2025/26 From - Spending review Topic 1]]+Dataset[[#This Row],[2025/26 From - Spending review Topic 2]]+Dataset[[#This Row],[2025/26 From - Spending review Topic 3]]+Dataset[[#This Row],[2025/26 From - Spending review Topic 4]]+Dataset[[#This Row],[2025/26 From - Other reallocations]]","v":0},{"$f":"Dataset[[#This Row],[2023/24 To - Spending review Topic 1]]+Dataset[[#This Row],[2023/24 To - Spending review Topic 2]]+Dataset[[#This Row],[2023/24 To - Spending review Topic 3]]+Dataset[[#This Row],[2023/24 To - Spending review Topic 4]]+Dataset[[#This Row],[2023/24 To - Other reallocations]]","v":0},{"$f":"Dataset[[#This Row],[2024/25 To - Spending review Topic 1]]+Dataset[[#This Row],[2024/25 To - Spending review Topic 2]]+Dataset[[#This Row],[2024/25 To - Spending review Topic 3]]+Dataset[[#This Row],[2024/25 To - Spending review Topic 4]]+Dataset[[#This Row],[2024/25 To - Other reallocations]]","v":0},{"$f":"Dataset[[#This Row],[2025/26 To - Spending review Topic 1]]+Dataset[[#This Row],[2025/26 To - Spending review Topic 2]]+Dataset[[#This Row],[2025/26 To - Spending review Topic 3]]+Dataset[[#This Row],[2025/26 To - Spending review Topic 4]]+Dataset[[#This Row],[2025/26 To - Other reallocations]]","v":0},{"$f":"Dataset[[#This Row],[2023/24 Baseline]]+Dataset[[#This Row],[2023/24 From - Total]]+Dataset[[#This Row],[2023/24 To - Total]]","v":0},{"$f":"Dataset[[#This Row],[2024/25 Baseline]]+Dataset[[#This Row],[2024/25 From - Total]]+Dataset[[#This Row],[2024/25 To - Total]]","v":0},{"$f":"Dataset[[#This Row],[2025/26 Baseline]]+Dataset[[#This Row],[2025/26 From - Total]]+Dataset[[#This Row],[2025/26 To - Total]]","v":0}]
["NAT|Non-transfer item","2|Housing","2023_24","MTEF2023",2,2,1,868,251,"02","02","01","000868","000251","02|02|01",1,1,2,20,20,"01|01|02|20|20","National","Parliament","Legislation and Oversight","National Assembly","Non-transfer item","Current","Current payments","Goods and services","Housing","Housing","General public services","Executive and legislative organs","NAT",0,0,0,0,0,0,0,0,0,0,0,null,null,null,null,null,null,null,null,null,null,null,null,null,null,null,null,null,null,null,null,null,null,null,null,null,null,null,null,null,null,{"$f":"Dataset[[#This Row],[2023/24 From - Spending review Topic 1]]+Dataset[[#This Row],[2023/24 From - Spending review Topic 2]]+Dataset[[#This Row],[2023/24 From - Spending review Topic 3]]+Dataset[[#This Row],[2023/24 From - Spending review Topic 4]]+Dataset[[#This Row],[2023/24 From - Other reallocations]]","v":0},{"$f":"Dataset[[#This Row],[2024/25 From - Spending review Topic 1]]+Dataset[[#This Row],[2024/25 From - Spending review Topic 2]]+Dataset[[#This Row],[2024/25 From - Spending review Topic 3]]+Dataset[[#This Row],[2024/25 From - Spending review Topic 4]]+Dataset[[#This Row],[2024/25 From - Other reallocations]]","v":0},{"$f":"Dataset[[#This Row],[2025/26 From - Spending review Topic 1]]+Dataset[[#This Row],[2025/26 From - Spending review Topic 2]]+Dataset[[#This Row],[2025/26 From - Spending review Topic 3]]+Dataset[[#This Row],[2025/26 From - Spending review Topic 4]]+Dataset[[#This Row],[2025/26 From - Other reallocations]]","v":0},{"$f":"Dataset[[#This Row],[2023/24 To - Spending review Topic 1]]+Dataset[[#This Row],[2023/24 To - Spending review Topic 2]]+Dataset[[#This Row],[2023/24 To - Spending review Topic 3]]+Dataset[[#This Row],[2023/24 To - Spending review Topic 4]]+Dataset[[#This Row],[2023/24 To - Other reallocations]]","v":0},{"$f":"Dataset[[#This Row],[2024/25 To - Spending review Topic 1]]+Dataset[[#This Row],[2024/25 To - Spending review Topic 2]]+Dataset[[#This Row],[2024/25 To - Spending review Topic 3]]+Dataset[[#This Row],[2024/25 To - Spending review Topic 4]]+Dataset[[#This Row],[2024/25 To - Other reallocations]]","v":0},{"$f":"Dataset[[#This Row],[2025/26 To - Spending review Topic 1]]+Dataset[[#This Row],[2025/26 To - Spending review Topic 2]]+Dataset[[#This Row],[2025/26 To - Spending review Topic 3]]+Dataset[[#This Row],[2025/26 To - Spending review Topic 4]]+Dataset[[#This Row],[2025/26 To - Other reallocations]]","v":0},{"$f":"Dataset[[#This Row],[2023/24 Baseline]]+Dataset[[#This Row],[2023/24 From - Total]]+Dataset[[#This Row],[2023/24 To - Total]]","v":0},{"$f":"Dataset[[#This Row],[2024/25 Baseline]]+Dataset[[#This Row],[2024/25 From - Total]]+Dataset[[#This Row],[2024/25 To - Total]]","v":0},{"$f":"Dataset[[#This Row],[2025/26 Baseline]]+Dataset[[#This Row],[2025/26 From - Total]]+Dataset[[#This Row],[2025/26 To - Total]]","v":0}]
["NAT|Non-transfer item","2|Inventory: Clothing material and accessories","2023_24","MTEF2023",2,2,1,869,252,"02","02","01","000869","000252","02|02|01",1,1,2,21,21,"01|01|02|21|21","National","Parliament","Legislation and Oversight","National Assembly","Non-transfer item","Current","Current payments","Goods and services","Inventory: Clothing material and accessories","Inventory: Clothing material and accessories","General public services","Executive and legislative organs","NAT",0,0,0,0,0,0,0,0,0,0,0,null,null,null,null,null,null,null,null,null,null,null,null,null,null,null,null,null,null,null,null,null,null,null,null,null,null,null,null,null,null,{"$f":"Dataset[[#This Row],[2023/24 From - Spending review Topic 1]]+Dataset[[#This Row],[2023/24 From - Spending review Topic 2]]+Dataset[[#This Row],[2023/24 From - Spending review Topic 3]]+Dataset[[#This Row],[2023/24 From - Spending review Topic 4]]+Dataset[[#This Row],[2023/24 From - Other reallocations]]","v":0},{"$f":"Dataset[[#This Row],[2024/25 From - Spending review Topic 1]]+Dataset[[#This Row],[2024/25 From - Spending review Topic 2]]+Dataset[[#This Row],[2024/25 From - Spending review Topic 3]]+Dataset[[#This Row],[2024/25 From - Spending review Topic 4]]+Dataset[[#This Row],[2024/25 From - Other reallocations]]","v":0},{"$f":"Dataset[[#This Row],[2025/26 From - Spending review Topic 1]]+Dataset[[#This Row],[2025/26 From - Spending review Topic 2]]+Dataset[[#This Row],[2025/26 From - Spending review Topic 3]]+Dataset[[#This Row],[2025/26 From - Spending review Topic 4]]+Dataset[[#This Row],[2025/26 From - Other reallocations]]","v":0},{"$f":"Dataset[[#This Row],[2023/24 To - Spending review Topic 1]]+Dataset[[#This Row],[2023/24 To - Spending review Topic 2]]+Dataset[[#This Row],[2023/24 To - Spending review Topic 3]]+Dataset[[#This Row],[2023/24 To - Spending review Topic 4]]+Dataset[[#This Row],[2023/24 To - Other reallocations]]","v":0},{"$f":"Dataset[[#This Row],[2024/25 To - Spending review Topic 1]]+Dataset[[#This Row],[2024/25 To - Spending review Topic 2]]+Dataset[[#This Row],[2024/25 To - Spending review Topic 3]]+Dataset[[#This Row],[2024/25 To - Spending review Topic 4]]+Dataset[[#This Row],[2024/25 To - Other reallocations]]","v":0},{"$f":"Dataset[[#This Row],[2025/26 To - Spending review Topic 1]]+Dataset[[#This Row],[2025/26 To - Spending review Topic 2]]+Dataset[[#This Row],[2025/26 To - Spending review Topic 3]]+Dataset[[#This Row],[2025/26 To - Spending review Topic 4]]+Dataset[[#This Row],[2025/26 To - Other reallocations]]","v":0},{"$f":"Dataset[[#This Row],[2023/24 Baseline]]+Dataset[[#This Row],[2023/24 From - Total]]+Dataset[[#This Row],[2023/24 To - Total]]","v":0},{"$f":"Dataset[[#This Row],[2024/25 Baseline]]+Dataset[[#This Row],[2024/25 From - Total]]+Dataset[[#This Row],[2024/25 To - Total]]","v":0},{"$f":"Dataset[[#This Row],[2025/26 Baseline]]+Dataset[[#This Row],[2025/26 From - Total]]+Dataset[[#This Row],[2025/26 To - Total]]","v":0}]
["NAT|Non-transfer item","2|Inventory: Farming supplies","2023_24","MTEF2023",2,2,1,870,253,"02","02","01","000870","000253","02|02|01",1,1,2,22,22,"01|01|02|22|22","National","Parliament","Legislation and Oversight","National Assembly","Non-transfer item","Current","Current payments","Goods and services","Inventory: Farming supplies","Inventory: Farming supplies","General public services","Executive and legislative organs","NAT",0,0,0,0,0,0,0,0,0,0,0,null,null,null,null,null,null,null,null,null,null,null,null,null,null,null,null,null,null,null,null,null,null,null,null,null,null,null,null,null,null,{"$f":"Dataset[[#This Row],[2023/24 From - Spending review Topic 1]]+Dataset[[#This Row],[2023/24 From - Spending review Topic 2]]+Dataset[[#This Row],[2023/24 From - Spending review Topic 3]]+Dataset[[#This Row],[2023/24 From - Spending review Topic 4]]+Dataset[[#This Row],[2023/24 From - Other reallocations]]","v":0},{"$f":"Dataset[[#This Row],[2024/25 From - Spending review Topic 1]]+Dataset[[#This Row],[2024/25 From - Spending review Topic 2]]+Dataset[[#This Row],[2024/25 From - Spending review Topic 3]]+Dataset[[#This Row],[2024/25 From - Spending review Topic 4]]+Dataset[[#This Row],[2024/25 From - Other reallocations]]","v":0},{"$f":"Dataset[[#This Row],[2025/26 From - Spending review Topic 1]]+Dataset[[#This Row],[2025/26 From - Spending review Topic 2]]+Dataset[[#This Row],[2025/26 From - Spending review Topic 3]]+Dataset[[#This Row],[2025/26 From - Spending review Topic 4]]+Dataset[[#This Row],[2025/26 From - Other reallocations]]","v":0},{"$f":"Dataset[[#This Row],[2023/24 To - Spending review Topic 1]]+Dataset[[#This Row],[2023/24 To - Spending review Topic 2]]+Dataset[[#This Row],[2023/24 To - Spending review Topic 3]]+Dataset[[#This Row],[2023/24 To - Spending review Topic 4]]+Dataset[[#This Row],[2023/24 To - Other reallocations]]","v":0},{"$f":"Dataset[[#This Row],[2024/25 To - Spending review Topic 1]]+Dataset[[#This Row],[2024/25 To - Spending review Topic 2]]+Dataset[[#This Row],[2024/25 To - Spending review Topic 3]]+Dataset[[#This Row],[2024/25 To - Spending review Topic 4]]+Dataset[[#This Row],[2024/25 To - Other reallocations]]","v":0},{"$f":"Dataset[[#This Row],[2025/26 To - Spending review Topic 1]]+Dataset[[#This Row],[2025/26 To - Spending review Topic 2]]+Dataset[[#This Row],[2025/26 To - Spending review Topic 3]]+Dataset[[#This Row],[2025/26 To - Spending review Topic 4]]+Dataset[[#This Row],[2025/26 To - Other reallocations]]","v":0},{"$f":"Dataset[[#This Row],[2023/24 Baseline]]+Dataset[[#This Row],[2023/24 From - Total]]+Dataset[[#This Row],[2023/24 To - Total]]","v":0},{"$f":"Dataset[[#This Row],[2024/25 Baseline]]+Dataset[[#This Row],[2024/25 From - Total]]+Dataset[[#This Row],[2024/25 To - Total]]","v":0},{"$f":"Dataset[[#This Row],[2025/26 Baseline]]+Dataset[[#This Row],[2025/26 From - Total]]+Dataset[[#This Row],[2025/26 To - Total]]","v":0}]
["NAT|Non-transfer item","2|Inventory: Food and food supplies","2023_24","MTEF2023",2,2,1,871,254,"02","02","01","000871","000254","02|02|01",1,1,2,23,23,"01|01|02|23|23","National","Parliament","Legislation and Oversight","National Assembly","Non-transfer item","Current","Current payments","Goods and services","Inventory: Food and food supplies","Inventory: Food and food supplies","General public services","Executive and legislative organs","NAT",0,0,0,0,0,0,0,0,0,0,0,null,null,null,null,null,null,null,null,null,null,null,null,null,null,null,null,null,null,null,null,null,null,null,null,null,null,null,null,null,null,{"$f":"Dataset[[#This Row],[2023/24 From - Spending review Topic 1]]+Dataset[[#This Row],[2023/24 From - Spending review Topic 2]]+Dataset[[#This Row],[2023/24 From - Spending review Topic 3]]+Dataset[[#This Row],[2023/24 From - Spending review Topic 4]]+Dataset[[#This Row],[2023/24 From - Other reallocations]]","v":0},{"$f":"Dataset[[#This Row],[2024/25 From - Spending review Topic 1]]+Dataset[[#This Row],[2024/25 From - Spending review Topic 2]]+Dataset[[#This Row],[2024/25 From - Spending review Topic 3]]+Dataset[[#This Row],[2024/25 From - Spending review Topic 4]]+Dataset[[#This Row],[2024/25 From - Other reallocations]]","v":0},{"$f":"Dataset[[#This Row],[2025/26 From - Spending review Topic 1]]+Dataset[[#This Row],[2025/26 From - Spending review Topic 2]]+Dataset[[#This Row],[2025/26 From - Spending review Topic 3]]+Dataset[[#This Row],[2025/26 From - Spending review Topic 4]]+Dataset[[#This Row],[2025/26 From - Other reallocations]]","v":0},{"$f":"Dataset[[#This Row],[2023/24 To - Spending review Topic 1]]+Dataset[[#This Row],[2023/24 To - Spending review Topic 2]]+Dataset[[#This Row],[2023/24 To - Spending review Topic 3]]+Dataset[[#This Row],[2023/24 To - Spending review Topic 4]]+Dataset[[#This Row],[2023/24 To - Other reallocations]]","v":0},{"$f":"Dataset[[#This Row],[2024/25 To - Spending review Topic 1]]+Dataset[[#This Row],[2024/25 To - Spending review Topic 2]]+Dataset[[#This Row],[2024/25 To - Spending review Topic 3]]+Dataset[[#This Row],[2024/25 To - Spending review Topic 4]]+Dataset[[#This Row],[2024/25 To - Other reallocations]]","v":0},{"$f":"Dataset[[#This Row],[2025/26 To - Spending review Topic 1]]+Dataset[[#This Row],[2025/26 To - Spending review Topic 2]]+Dataset[[#This Row],[2025/26 To - Spending review Topic 3]]+Dataset[[#This Row],[2025/26 To - Spending review Topic 4]]+Dataset[[#This Row],[2025/26 To - Other reallocations]]","v":0},{"$f":"Dataset[[#This Row],[2023/24 Baseline]]+Dataset[[#This Row],[2023/24 From - Total]]+Dataset[[#This Row],[2023/24 To - Total]]","v":0},{"$f":"Dataset[[#This Row],[2024/25 Baseline]]+Dataset[[#This Row],[2024/25 From - Total]]+Dataset[[#This Row],[2024/25 To - Total]]","v":0},{"$f":"Dataset[[#This Row],[2025/26 Baseline]]+Dataset[[#This Row],[2025/26 From - Total]]+Dataset[[#This Row],[2025/26 To - Total]]","v":0}]
["NAT|Non-transfer item","2|Inventory: Fuel, oil and gas","2023_24","MTEF2023",2,2,1,872,255,"02","02","01","000872","000255","02|02|01",1,1,2,24,24,"01|01|02|24|24","National","Parliament","Legislation and Oversight","National Assembly","Non-transfer item","Current","Current payments","Goods and services","Inventory: Fuel, oil and gas","Inventory: Fuel, oil and gas","General public services","Executive and legislative organs","NAT",0,0,0,0,0,0,0,0,0,0,0,null,null,null,null,null,null,null,null,null,null,null,null,null,null,null,null,null,null,null,null,null,null,null,null,null,null,null,null,null,null,{"$f":"Dataset[[#This Row],[2023/24 From - Spending review Topic 1]]+Dataset[[#This Row],[2023/24 From - Spending review Topic 2]]+Dataset[[#This Row],[2023/24 From - Spending review Topic 3]]+Dataset[[#This Row],[2023/24 From - Spending review Topic 4]]+Dataset[[#This Row],[2023/24 From - Other reallocations]]","v":0},{"$f":"Dataset[[#This Row],[2024/25 From - Spending review Topic 1]]+Dataset[[#This Row],[2024/25 From - Spending review Topic 2]]+Dataset[[#This Row],[2024/25 From - Spending review Topic 3]]+Dataset[[#This Row],[2024/25 From - Spending review Topic 4]]+Dataset[[#This Row],[2024/25 From - Other reallocations]]","v":0},{"$f":"Dataset[[#This Row],[2025/26 From - Spending review Topic 1]]+Dataset[[#This Row],[2025/26 From - Spending review Topic 2]]+Dataset[[#This Row],[2025/26 From - Spending review Topic 3]]+Dataset[[#This Row],[2025/26 From - Spending review Topic 4]]+Dataset[[#This Row],[2025/26 From - Other reallocations]]","v":0},{"$f":"Dataset[[#This Row],[2023/24 To - Spending review Topic 1]]+Dataset[[#This Row],[2023/24 To - Spending review Topic 2]]+Dataset[[#This Row],[2023/24 To - Spending review Topic 3]]+Dataset[[#This Row],[2023/24 To - Spending review Topic 4]]+Dataset[[#This Row],[2023/24 To - Other reallocations]]","v":0},{"$f":"Dataset[[#This Row],[2024/25 To - Spending review Topic 1]]+Dataset[[#This Row],[2024/25 To - Spending review Topic 2]]+Dataset[[#This Row],[2024/25 To - Spending review Topic 3]]+Dataset[[#This Row],[2024/25 To - Spending review Topic 4]]+Dataset[[#This Row],[2024/25 To - Other reallocations]]","v":0},{"$f":"Dataset[[#This Row],[2025/26 To - Spending review Topic 1]]+Dataset[[#This Row],[2025/26 To - Spending review Topic 2]]+Dataset[[#This Row],[2025/26 To - Spending review Topic 3]]+Dataset[[#This Row],[2025/26 To - Spending review Topic 4]]+Dataset[[#This Row],[2025/26 To - Other reallocations]]","v":0},{"$f":"Dataset[[#This Row],[2023/24 Baseline]]+Dataset[[#This Row],[2023/24 From - Total]]+Dataset[[#This Row],[2023/24 To - Total]]","v":0},{"$f":"Dataset[[#This Row],[2024/25 Baseline]]+Dataset[[#This Row],[2024/25 From - Total]]+Dataset[[#This Row],[2024/25 To - Total]]","v":0},{"$f":"Dataset[[#This Row],[2025/26 Baseline]]+Dataset[[#This Row],[2025/26 From - Total]]+Dataset[[#This Row],[2025/26 To - Total]]","v":0}]
["NAT|Non-transfer item","2|Inventory: Learner and teacher support material","2023_24","MTEF2023",2,2,1,873,256,"02","02","01","000873","000256","02|02|01",1,1,2,25,25,"01|01|02|25|25","National","Parliament","Legislation and Oversight","National Assembly","Non-transfer item","Current","Current payments","Goods and services","Inventory: Learner and teacher support material","Inventory: Learner and teacher support material","General public services","Executive and legislative organs","NAT",0,0,0,0,0,0,0,0,0,0,0,null,null,null,null,null,null,null,null,null,null,null,null,null,null,null,null,null,null,null,null,null,null,null,null,null,null,null,null,null,null,{"$f":"Dataset[[#This Row],[2023/24 From - Spending review Topic 1]]+Dataset[[#This Row],[2023/24 From - Spending review Topic 2]]+Dataset[[#This Row],[2023/24 From - Spending review Topic 3]]+Dataset[[#This Row],[2023/24 From - Spending review Topic 4]]+Dataset[[#This Row],[2023/24 From - Other reallocations]]","v":0},{"$f":"Dataset[[#This Row],[2024/25 From - Spending review Topic 1]]+Dataset[[#This Row],[2024/25 From - Spending review Topic 2]]+Dataset[[#This Row],[2024/25 From - Spending review Topic 3]]+Dataset[[#This Row],[2024/25 From - Spending review Topic 4]]+Dataset[[#This Row],[2024/25 From - Other reallocations]]","v":0},{"$f":"Dataset[[#This Row],[2025/26 From - Spending review Topic 1]]+Dataset[[#This Row],[2025/26 From - Spending review Topic 2]]+Dataset[[#This Row],[2025/26 From - Spending review Topic 3]]+Dataset[[#This Row],[2025/26 From - Spending review Topic 4]]+Dataset[[#This Row],[2025/26 From - Other reallocations]]","v":0},{"$f":"Dataset[[#This Row],[2023/24 To - Spending review Topic 1]]+Dataset[[#This Row],[2023/24 To - Spending review Topic 2]]+Dataset[[#This Row],[2023/24 To - Spending review Topic 3]]+Dataset[[#This Row],[2023/24 To - Spending review Topic 4]]+Dataset[[#This Row],[2023/24 To - Other reallocations]]","v":0},{"$f":"Dataset[[#This Row],[2024/25 To - Spending review Topic 1]]+Dataset[[#This Row],[2024/25 To - Spending review Topic 2]]+Dataset[[#This Row],[2024/25 To - Spending review Topic 3]]+Dataset[[#This Row],[2024/25 To - Spending review Topic 4]]+Dataset[[#This Row],[2024/25 To - Other reallocations]]","v":0},{"$f":"Dataset[[#This Row],[2025/26 To - Spending review Topic 1]]+Dataset[[#This Row],[2025/26 To - Spending review Topic 2]]+Dataset[[#This Row],[2025/26 To - Spending review Topic 3]]+Dataset[[#This Row],[2025/26 To - Spending review Topic 4]]+Dataset[[#This Row],[2025/26 To - Other reallocations]]","v":0},{"$f":"Dataset[[#This Row],[2023/24 Baseline]]+Dataset[[#This Row],[2023/24 From - Total]]+Dataset[[#This Row],[2023/24 To - Total]]","v":0},{"$f":"Dataset[[#This Row],[2024/25 Baseline]]+Dataset[[#This Row],[2024/25 From - Total]]+Dataset[[#This Row],[2024/25 To - Total]]","v":0},{"$f":"Dataset[[#This Row],[2025/26 Baseline]]+Dataset[[#This Row],[2025/26 From - Total]]+Dataset[[#This Row],[2025/26 To - Total]]","v":0}]
["NAT|Non-transfer item","2|Inventory: Materials and supplies","2023_24","MTEF2023",2,2,1,874,257,"02","02","01","000874","000257","02|02|01",1,1,2,26,26,"01|01|02|26|26","National","Parliament","Legislation and Oversight","National Assembly","Non-transfer item","Current","Current payments","Goods and services","Inventory: Materials and supplies","Inventory: Materials and supplies","General public services","Executive and legislative organs","NAT",0,0,0,0,0,0,0,0,0,0,0,null,null,null,null,null,null,null,null,null,null,null,null,null,null,null,null,null,null,null,null,null,null,null,null,null,null,null,null,null,null,{"$f":"Dataset[[#This Row],[2023/24 From - Spending review Topic 1]]+Dataset[[#This Row],[2023/24 From - Spending review Topic 2]]+Dataset[[#This Row],[2023/24 From - Spending review Topic 3]]+Dataset[[#This Row],[2023/24 From - Spending review Topic 4]]+Dataset[[#This Row],[2023/24 From - Other reallocations]]","v":0},{"$f":"Dataset[[#This Row],[2024/25 From - Spending review Topic 1]]+Dataset[[#This Row],[2024/25 From - Spending review Topic 2]]+Dataset[[#This Row],[2024/25 From - Spending review Topic 3]]+Dataset[[#This Row],[2024/25 From - Spending review Topic 4]]+Dataset[[#This Row],[2024/25 From - Other reallocations]]","v":0},{"$f":"Dataset[[#This Row],[2025/26 From - Spending review Topic 1]]+Dataset[[#This Row],[2025/26 From - Spending review Topic 2]]+Dataset[[#This Row],[2025/26 From - Spending review Topic 3]]+Dataset[[#This Row],[2025/26 From - Spending review Topic 4]]+Dataset[[#This Row],[2025/26 From - Other reallocations]]","v":0},{"$f":"Dataset[[#This Row],[2023/24 To - Spending review Topic 1]]+Dataset[[#This Row],[2023/24 To - Spending review Topic 2]]+Dataset[[#This Row],[2023/24 To - Spending review Topic 3]]+Dataset[[#This Row],[2023/24 To - Spending review Topic 4]]+Dataset[[#This Row],[2023/24 To - Other reallocations]]","v":0},{"$f":"Dataset[[#This Row],[2024/25 To - Spending review Topic 1]]+Dataset[[#This Row],[2024/25 To - Spending review Topic 2]]+Dataset[[#This Row],[2024/25 To - Spending review Topic 3]]+Dataset[[#This Row],[2024/25 To - Spending review Topic 4]]+Dataset[[#This Row],[2024/25 To - Other reallocations]]","v":0},{"$f":"Dataset[[#This Row],[2025/26 To - Spending review Topic 1]]+Dataset[[#This Row],[2025/26 To - Spending review Topic 2]]+Dataset[[#This Row],[2025/26 To - Spending review Topic 3]]+Dataset[[#This Row],[2025/26 To - Spending review Topic 4]]+Dataset[[#This Row],[2025/26 To - Other reallocations]]","v":0},{"$f":"Dataset[[#This Row],[2023/24 Baseline]]+Dataset[[#This Row],[2023/24 From - Total]]+Dataset[[#This Row],[2023/24 To - Total]]","v":0},{"$f":"Dataset[[#This Row],[2024/25 Baseline]]+Dataset[[#This Row],[2024/25 From - Total]]+Dataset[[#This Row],[2024/25 To - Total]]","v":0},{"$f":"Dataset[[#This Row],[2025/26 Baseline]]+Dataset[[#This Row],[2025/26 From - Total]]+Dataset[[#This Row],[2025/26 To - Total]]","v":0}]
["NAT|Non-transfer item","2|Inventory: Medical supplies","2023_24","MTEF2023",2,2,1,875,258,"02","02","01","000875","000258","02|02|01",1,1,2,27,27,"01|01|02|27|27","National","Parliament","Legislation and Oversight","National Assembly","Non-transfer item","Current","Current payments","Goods and services","Inventory: Medical supplies","Inventory: Medical supplies","General public services","Executive and legislative organs","NAT",0,0,0,0,0,0,0,0,0,0,0,null,null,null,null,null,null,null,null,null,null,null,null,null,null,null,null,null,null,null,null,null,null,null,null,null,null,null,null,null,null,{"$f":"Dataset[[#This Row],[2023/24 From - Spending review Topic 1]]+Dataset[[#This Row],[2023/24 From - Spending review Topic 2]]+Dataset[[#This Row],[2023/24 From - Spending review Topic 3]]+Dataset[[#This Row],[2023/24 From - Spending review Topic 4]]+Dataset[[#This Row],[2023/24 From - Other reallocations]]","v":0},{"$f":"Dataset[[#This Row],[2024/25 From - Spending review Topic 1]]+Dataset[[#This Row],[2024/25 From - Spending review Topic 2]]+Dataset[[#This Row],[2024/25 From - Spending review Topic 3]]+Dataset[[#This Row],[2024/25 From - Spending review Topic 4]]+Dataset[[#This Row],[2024/25 From - Other reallocations]]","v":0},{"$f":"Dataset[[#This Row],[2025/26 From - Spending review Topic 1]]+Dataset[[#This Row],[2025/26 From - Spending review Topic 2]]+Dataset[[#This Row],[2025/26 From - Spending review Topic 3]]+Dataset[[#This Row],[2025/26 From - Spending review Topic 4]]+Dataset[[#This Row],[2025/26 From - Other reallocations]]","v":0},{"$f":"Dataset[[#This Row],[2023/24 To - Spending review Topic 1]]+Dataset[[#This Row],[2023/24 To - Spending review Topic 2]]+Dataset[[#This Row],[2023/24 To - Spending review Topic 3]]+Dataset[[#This Row],[2023/24 To - Spending review Topic 4]]+Dataset[[#This Row],[2023/24 To - Other reallocations]]","v":0},{"$f":"Dataset[[#This Row],[2024/25 To - Spending review Topic 1]]+Dataset[[#This Row],[2024/25 To - Spending review Topic 2]]+Dataset[[#This Row],[2024/25 To - Spending review Topic 3]]+Dataset[[#This Row],[2024/25 To - Spending review Topic 4]]+Dataset[[#This Row],[2024/25 To - Other reallocations]]","v":0},{"$f":"Dataset[[#This Row],[2025/26 To - Spending review Topic 1]]+Dataset[[#This Row],[2025/26 To - Spending review Topic 2]]+Dataset[[#This Row],[2025/26 To - Spending review Topic 3]]+Dataset[[#This Row],[2025/26 To - Spending review Topic 4]]+Dataset[[#This Row],[2025/26 To - Other reallocations]]","v":0},{"$f":"Dataset[[#This Row],[2023/24 Baseline]]+Dataset[[#This Row],[2023/24 From - Total]]+Dataset[[#This Row],[2023/24 To - Total]]","v":0},{"$f":"Dataset[[#This Row],[2024/25 Baseline]]+Dataset[[#This Row],[2024/25 From - Total]]+Dataset[[#This Row],[2024/25 To - Total]]","v":0},{"$f":"Dataset[[#This Row],[2025/26 Baseline]]+Dataset[[#This Row],[2025/26 From - Total]]+Dataset[[#This Row],[2025/26 To - Total]]","v":0}]
["NAT|Non-transfer item","2|Inventory: Medicine","2023_24","MTEF2023",2,2,1,876,259,"02","02","01","000876","000259","02|02|01",1,1,2,28,28,"01|01|02|28|28","National","Parliament","Legislation and Oversight","National Assembly","Non-transfer item","Current","Current payments","Goods and services","Inventory: Medicine","Inventory: Medicine","General public services","Executive and legislative organs","NAT",0,0,0,0,0,0,0,0,0,0,0,null,null,null,null,null,null,null,null,null,null,null,null,null,null,null,null,null,null,null,null,null,null,null,null,null,null,null,null,null,null,{"$f":"Dataset[[#This Row],[2023/24 From - Spending review Topic 1]]+Dataset[[#This Row],[2023/24 From - Spending review Topic 2]]+Dataset[[#This Row],[2023/24 From - Spending review Topic 3]]+Dataset[[#This Row],[2023/24 From - Spending review Topic 4]]+Dataset[[#This Row],[2023/24 From - Other reallocations]]","v":0},{"$f":"Dataset[[#This Row],[2024/25 From - Spending review Topic 1]]+Dataset[[#This Row],[2024/25 From - Spending review Topic 2]]+Dataset[[#This Row],[2024/25 From - Spending review Topic 3]]+Dataset[[#This Row],[2024/25 From - Spending review Topic 4]]+Dataset[[#This Row],[2024/25 From - Other reallocations]]","v":0},{"$f":"Dataset[[#This Row],[2025/26 From - Spending review Topic 1]]+Dataset[[#This Row],[2025/26 From - Spending review Topic 2]]+Dataset[[#This Row],[2025/26 From - Spending review Topic 3]]+Dataset[[#This Row],[2025/26 From - Spending review Topic 4]]+Dataset[[#This Row],[2025/26 From - Other reallocations]]","v":0},{"$f":"Dataset[[#This Row],[2023/24 To - Spending review Topic 1]]+Dataset[[#This Row],[2023/24 To - Spending review Topic 2]]+Dataset[[#This Row],[2023/24 To - Spending review Topic 3]]+Dataset[[#This Row],[2023/24 To - Spending review Topic 4]]+Dataset[[#This Row],[2023/24 To - Other reallocations]]","v":0},{"$f":"Dataset[[#This Row],[2024/25 To - Spending review Topic 1]]+Dataset[[#This Row],[2024/25 To - Spending review Topic 2]]+Dataset[[#This Row],[2024/25 To - Spending review Topic 3]]+Dataset[[#This Row],[2024/25 To - Spending review Topic 4]]+Dataset[[#This Row],[2024/25 To - Other reallocations]]","v":0},{"$f":"Dataset[[#This Row],[2025/26 To - Spending review Topic 1]]+Dataset[[#This Row],[2025/26 To - Spending review Topic 2]]+Dataset[[#This Row],[2025/26 To - Spending review Topic 3]]+Dataset[[#This Row],[2025/26 To - Spending review Topic 4]]+Dataset[[#This Row],[2025/26 To - Other reallocations]]","v":0},{"$f":"Dataset[[#This Row],[2023/24 Baseline]]+Dataset[[#This Row],[2023/24 From - Total]]+Dataset[[#This Row],[2023/24 To - Total]]","v":0},{"$f":"Dataset[[#This Row],[2024/25 Baseline]]+Dataset[[#This Row],[2024/25 From - Total]]+Dataset[[#This Row],[2024/25 To - Total]]","v":0},{"$f":"Dataset[[#This Row],[2025/26 Baseline]]+Dataset[[#This Row],[2025/26 From - Total]]+Dataset[[#This Row],[2025/26 To - Total]]","v":0}]
["NAT|Non-transfer item","2|Medsas inventory interface","2023_24","MTEF2023",2,2,1,877,260,"02","02","01","000877","000260","02|02|01",1,1,2,29,29,"01|01|02|29|29","National","Parliament","Legislation and Oversight","National Assembly","Non-transfer item","Current","Current payments","Goods and services","Medsas inventory interface","Medsas inventory interface","General public services","Executive and legislative organs","NAT",0,0,0,0,0,0,0,0,0,0,0,null,null,null,null,null,null,null,null,null,null,null,null,null,null,null,null,null,null,null,null,null,null,null,null,null,null,null,null,null,null,{"$f":"Dataset[[#This Row],[2023/24 From - Spending review Topic 1]]+Dataset[[#This Row],[2023/24 From - Spending review Topic 2]]+Dataset[[#This Row],[2023/24 From - Spending review Topic 3]]+Dataset[[#This Row],[2023/24 From - Spending review Topic 4]]+Dataset[[#This Row],[2023/24 From - Other reallocations]]","v":0},{"$f":"Dataset[[#This Row],[2024/25 From - Spending review Topic 1]]+Dataset[[#This Row],[2024/25 From - Spending review Topic 2]]+Dataset[[#This Row],[2024/25 From - Spending review Topic 3]]+Dataset[[#This Row],[2024/25 From - Spending review Topic 4]]+Dataset[[#This Row],[2024/25 From - Other reallocations]]","v":0},{"$f":"Dataset[[#This Row],[2025/26 From - Spending review Topic 1]]+Dataset[[#This Row],[2025/26 From - Spending review Topic 2]]+Dataset[[#This Row],[2025/26 From - Spending review Topic 3]]+Dataset[[#This Row],[2025/26 From - Spending review Topic 4]]+Dataset[[#This Row],[2025/26 From - Other reallocations]]","v":0},{"$f":"Dataset[[#This Row],[2023/24 To - Spending review Topic 1]]+Dataset[[#This Row],[2023/24 To - Spending review Topic 2]]+Dataset[[#This Row],[2023/24 To - Spending review Topic 3]]+Dataset[[#This Row],[2023/24 To - Spending review Topic 4]]+Dataset[[#This Row],[2023/24 To - Other reallocations]]","v":0},{"$f":"Dataset[[#This Row],[2024/25 To - Spending review Topic 1]]+Dataset[[#This Row],[2024/25 To - Spending review Topic 2]]+Dataset[[#This Row],[2024/25 To - Spending review Topic 3]]+Dataset[[#This Row],[2024/25 To - Spending review Topic 4]]+Dataset[[#This Row],[2024/25 To - Other reallocations]]","v":0},{"$f":"Dataset[[#This Row],[2025/26 To - Spending review Topic 1]]+Dataset[[#This Row],[2025/26 To - Spending review Topic 2]]+Dataset[[#This Row],[2025/26 To - Spending review Topic 3]]+Dataset[[#This Row],[2025/26 To - Spending review Topic 4]]+Dataset[[#This Row],[2025/26 To - Other reallocations]]","v":0},{"$f":"Dataset[[#This Row],[2023/24 Baseline]]+Dataset[[#This Row],[2023/24 From - Total]]+Dataset[[#This Row],[2023/24 To - Total]]","v":0},{"$f":"Dataset[[#This Row],[2024/25 Baseline]]+Dataset[[#This Row],[2024/25 From - Total]]+Dataset[[#This Row],[2024/25 To - Total]]","v":0},{"$f":"Dataset[[#This Row],[2025/26 Baseline]]+Dataset[[#This Row],[2025/26 From - Total]]+Dataset[[#This Row],[2025/26 To - Total]]","v":0}]
["NAT|Non-transfer item","2|Inventory: Other supplies","2023_24","MTEF2023",2,2,1,878,261,"02","02","01","000878","000261","02|02|01",1,1,2,30,30,"01|01|02|30|30","National","Parliament","Legislation and Oversight","National Assembly","Non-transfer item","Current","Current payments","Goods and services","Inventory: Other supplies","Inventory: Other supplies","General public services","Executive and legislative organs","NAT",0,0,0,0,0,0,0,0,0,0,0,null,null,null,null,null,null,null,null,null,null,null,null,null,null,null,null,null,null,null,null,null,null,null,null,null,null,null,null,null,null,{"$f":"Dataset[[#This Row],[2023/24 From - Spending review Topic 1]]+Dataset[[#This Row],[2023/24 From - Spending review Topic 2]]+Dataset[[#This Row],[2023/24 From - Spending review Topic 3]]+Dataset[[#This Row],[2023/24 From - Spending review Topic 4]]+Dataset[[#This Row],[2023/24 From - Other reallocations]]","v":0},{"$f":"Dataset[[#This Row],[2024/25 From - Spending review Topic 1]]+Dataset[[#This Row],[2024/25 From - Spending review Topic 2]]+Dataset[[#This Row],[2024/25 From - Spending review Topic 3]]+Dataset[[#This Row],[2024/25 From - Spending review Topic 4]]+Dataset[[#This Row],[2024/25 From - Other reallocations]]","v":0},{"$f":"Dataset[[#This Row],[2025/26 From - Spending review Topic 1]]+Dataset[[#This Row],[2025/26 From - Spending review Topic 2]]+Dataset[[#This Row],[2025/26 From - Spending review Topic 3]]+Dataset[[#This Row],[2025/26 From - Spending review Topic 4]]+Dataset[[#This Row],[2025/26 From - Other reallocations]]","v":0},{"$f":"Dataset[[#This Row],[2023/24 To - Spending review Topic 1]]+Dataset[[#This Row],[2023/24 To - Spending review Topic 2]]+Dataset[[#This Row],[2023/24 To - Spending review Topic 3]]+Dataset[[#This Row],[2023/24 To - Spending review Topic 4]]+Dataset[[#This Row],[2023/24 To - Other reallocations]]","v":0},{"$f":"Dataset[[#This Row],[2024/25 To - Spending review Topic 1]]+Dataset[[#This Row],[2024/25 To - Spending review Topic 2]]+Dataset[[#This Row],[2024/25 To - Spending review Topic 3]]+Dataset[[#This Row],[2024/25 To - Spending review Topic 4]]+Dataset[[#This Row],[2024/25 To - Other reallocations]]","v":0},{"$f":"Dataset[[#This Row],[2025/26 To - Spending review Topic 1]]+Dataset[[#This Row],[2025/26 To - Spending review Topic 2]]+Dataset[[#This Row],[2025/26 To - Spending review Topic 3]]+Dataset[[#This Row],[2025/26 To - Spending review Topic 4]]+Dataset[[#This Row],[2025/26 To - Other reallocations]]","v":0},{"$f":"Dataset[[#This Row],[2023/24 Baseline]]+Dataset[[#This Row],[2023/24 From - Total]]+Dataset[[#This Row],[2023/24 To - Total]]","v":0},{"$f":"Dataset[[#This Row],[2024/25 Baseline]]+Dataset[[#This Row],[2024/25 From - Total]]+Dataset[[#This Row],[2024/25 To - Total]]","v":0},{"$f":"Dataset[[#This Row],[2025/26 Baseline]]+Dataset[[#This Row],[2025/26 From - Total]]+Dataset[[#This Row],[2025/26 To - Total]]","v":0}]
["NAT|Non-transfer item","2|Consumable supplies","2023_24","MTEF2023",2,2,1,879,262,"02","02","01","000879","000262","02|02|01",1,1,2,31,31,"01|01|02|31|31","National","Parliament","Legislation and Oversight","National Assembly","Non-transfer item","Current","Current payments","Goods and services","Consumable supplies","Consumable supplies","General public services","Executive and legislative organs","NAT",0,0,0,0,0,0,0,0,0,0,0,null,null,null,null,null,null,null,null,null,null,null,null,null,null,null,null,null,null,null,null,null,null,null,null,null,null,null,null,null,null,{"$f":"Dataset[[#This Row],[2023/24 From - Spending review Topic 1]]+Dataset[[#This Row],[2023/24 From - Spending review Topic 2]]+Dataset[[#This Row],[2023/24 From - Spending review Topic 3]]+Dataset[[#This Row],[2023/24 From - Spending review Topic 4]]+Dataset[[#This Row],[2023/24 From - Other reallocations]]","v":0},{"$f":"Dataset[[#This Row],[2024/25 From - Spending review Topic 1]]+Dataset[[#This Row],[2024/25 From - Spending review Topic 2]]+Dataset[[#This Row],[2024/25 From - Spending review Topic 3]]+Dataset[[#This Row],[2024/25 From - Spending review Topic 4]]+Dataset[[#This Row],[2024/25 From - Other reallocations]]","v":0},{"$f":"Dataset[[#This Row],[2025/26 From - Spending review Topic 1]]+Dataset[[#This Row],[2025/26 From - Spending review Topic 2]]+Dataset[[#This Row],[2025/26 From - Spending review Topic 3]]+Dataset[[#This Row],[2025/26 From - Spending review Topic 4]]+Dataset[[#This Row],[2025/26 From - Other reallocations]]","v":0},{"$f":"Dataset[[#This Row],[2023/24 To - Spending review Topic 1]]+Dataset[[#This Row],[2023/24 To - Spending review Topic 2]]+Dataset[[#This Row],[2023/24 To - Spending review Topic 3]]+Dataset[[#This Row],[2023/24 To - Spending review Topic 4]]+Dataset[[#This Row],[2023/24 To - Other reallocations]]","v":0},{"$f":"Dataset[[#This Row],[2024/25 To - Spending review Topic 1]]+Dataset[[#This Row],[2024/25 To - Spending review Topic 2]]+Dataset[[#This Row],[2024/25 To - Spending review Topic 3]]+Dataset[[#This Row],[2024/25 To - Spending review Topic 4]]+Dataset[[#This Row],[2024/25 To - Other reallocations]]","v":0},{"$f":"Dataset[[#This Row],[2025/26 To - Spending review Topic 1]]+Dataset[[#This Row],[2025/26 To - Spending review Topic 2]]+Dataset[[#This Row],[2025/26 To - Spending review Topic 3]]+Dataset[[#This Row],[2025/26 To - Spending review Topic 4]]+Dataset[[#This Row],[2025/26 To - Other reallocations]]","v":0},{"$f":"Dataset[[#This Row],[2023/24 Baseline]]+Dataset[[#This Row],[2023/24 From - Total]]+Dataset[[#This Row],[2023/24 To - Total]]","v":0},{"$f":"Dataset[[#This Row],[2024/25 Baseline]]+Dataset[[#This Row],[2024/25 From - Total]]+Dataset[[#This Row],[2024/25 To - Total]]","v":0},{"$f":"Dataset[[#This Row],[2025/26 Baseline]]+Dataset[[#This Row],[2025/26 From - Total]]+Dataset[[#This Row],[2025/26 To - Total]]","v":0}]
["NAT|Non-transfer item","2|Consumables: Stationery, printing and office supplies","2023_24","MTEF2023",2,2,1,880,263,"02","02","01","000880","000263","02|02|01",1,1,2,32,32,"01|01|02|32|32","National","Parliament","Legislation and Oversight","National Assembly","Non-transfer item","Current","Current payments","Goods and services","Consumables: Stationery, printing and office supplies","Consumables: Stationery, printing and office supplies","General public services","Executive and legislative organs","NAT",206,313,240,1017,1017,1017,0,48,52,99,103,null,null,null,null,null,null,null,null,null,null,null,null,null,null,null,null,null,null,null,null,null,null,null,null,null,null,null,null,null,null,{"$f":"Dataset[[#This Row],[2023/24 From - Spending review Topic 1]]+Dataset[[#This Row],[2023/24 From - Spending review Topic 2]]+Dataset[[#This Row],[2023/24 From - Spending review Topic 3]]+Dataset[[#This Row],[2023/24 From - Spending review Topic 4]]+Dataset[[#This Row],[2023/24 From - Other reallocations]]","v":0},{"$f":"Dataset[[#This Row],[2024/25 From - Spending review Topic 1]]+Dataset[[#This Row],[2024/25 From - Spending review Topic 2]]+Dataset[[#This Row],[2024/25 From - Spending review Topic 3]]+Dataset[[#This Row],[2024/25 From - Spending review Topic 4]]+Dataset[[#This Row],[2024/25 From - Other reallocations]]","v":0},{"$f":"Dataset[[#This Row],[2025/26 From - Spending review Topic 1]]+Dataset[[#This Row],[2025/26 From - Spending review Topic 2]]+Dataset[[#This Row],[2025/26 From - Spending review Topic 3]]+Dataset[[#This Row],[2025/26 From - Spending review Topic 4]]+Dataset[[#This Row],[2025/26 From - Other reallocations]]","v":0},{"$f":"Dataset[[#This Row],[2023/24 To - Spending review Topic 1]]+Dataset[[#This Row],[2023/24 To - Spending review Topic 2]]+Dataset[[#This Row],[2023/24 To - Spending review Topic 3]]+Dataset[[#This Row],[2023/24 To - Spending review Topic 4]]+Dataset[[#This Row],[2023/24 To - Other reallocations]]","v":0},{"$f":"Dataset[[#This Row],[2024/25 To - Spending review Topic 1]]+Dataset[[#This Row],[2024/25 To - Spending review Topic 2]]+Dataset[[#This Row],[2024/25 To - Spending review Topic 3]]+Dataset[[#This Row],[2024/25 To - Spending review Topic 4]]+Dataset[[#This Row],[2024/25 To - Other reallocations]]","v":0},{"$f":"Dataset[[#This Row],[2025/26 To - Spending review Topic 1]]+Dataset[[#This Row],[2025/26 To - Spending review Topic 2]]+Dataset[[#This Row],[2025/26 To - Spending review Topic 3]]+Dataset[[#This Row],[2025/26 To - Spending review Topic 4]]+Dataset[[#This Row],[2025/26 To - Other reallocations]]","v":0},{"$f":"Dataset[[#This Row],[2023/24 Baseline]]+Dataset[[#This Row],[2023/24 From - Total]]+Dataset[[#This Row],[2023/24 To - Total]]","v":52},{"$f":"Dataset[[#This Row],[2024/25 Baseline]]+Dataset[[#This Row],[2024/25 From - Total]]+Dataset[[#This Row],[2024/25 To - Total]]","v":99},{"$f":"Dataset[[#This Row],[2025/26 Baseline]]+Dataset[[#This Row],[2025/26 From - Total]]+Dataset[[#This Row],[2025/26 To - Total]]","v":103}]
["NAT|Non-transfer item","2|Operating leases","2023_24","MTEF2023",2,2,1,881,264,"02","02","01","000881","000264","02|02|01",1,1,2,33,33,"01|01|02|33|33","National","Parliament","Legislation and Oversight","National Assembly","Non-transfer item","Current","Current payments","Goods and services","Operating leases","Operating leases","General public services","Executive and legislative organs","NAT",0,0,0,0,0,0,0,0,0,0,0,null,null,null,null,null,null,null,null,null,null,null,null,null,null,null,null,null,null,null,null,null,null,null,null,null,null,null,null,null,null,{"$f":"Dataset[[#This Row],[2023/24 From - Spending review Topic 1]]+Dataset[[#This Row],[2023/24 From - Spending review Topic 2]]+Dataset[[#This Row],[2023/24 From - Spending review Topic 3]]+Dataset[[#This Row],[2023/24 From - Spending review Topic 4]]+Dataset[[#This Row],[2023/24 From - Other reallocations]]","v":0},{"$f":"Dataset[[#This Row],[2024/25 From - Spending review Topic 1]]+Dataset[[#This Row],[2024/25 From - Spending review Topic 2]]+Dataset[[#This Row],[2024/25 From - Spending review Topic 3]]+Dataset[[#This Row],[2024/25 From - Spending review Topic 4]]+Dataset[[#This Row],[2024/25 From - Other reallocations]]","v":0},{"$f":"Dataset[[#This Row],[2025/26 From - Spending review Topic 1]]+Dataset[[#This Row],[2025/26 From - Spending review Topic 2]]+Dataset[[#This Row],[2025/26 From - Spending review Topic 3]]+Dataset[[#This Row],[2025/26 From - Spending review Topic 4]]+Dataset[[#This Row],[2025/26 From - Other reallocations]]","v":0},{"$f":"Dataset[[#This Row],[2023/24 To - Spending review Topic 1]]+Dataset[[#This Row],[2023/24 To - Spending review Topic 2]]+Dataset[[#This Row],[2023/24 To - Spending review Topic 3]]+Dataset[[#This Row],[2023/24 To - Spending review Topic 4]]+Dataset[[#This Row],[2023/24 To - Other reallocations]]","v":0},{"$f":"Dataset[[#This Row],[2024/25 To - Spending review Topic 1]]+Dataset[[#This Row],[2024/25 To - Spending review Topic 2]]+Dataset[[#This Row],[2024/25 To - Spending review Topic 3]]+Dataset[[#This Row],[2024/25 To - Spending review Topic 4]]+Dataset[[#This Row],[2024/25 To - Other reallocations]]","v":0},{"$f":"Dataset[[#This Row],[2025/26 To - Spending review Topic 1]]+Dataset[[#This Row],[2025/26 To - Spending review Topic 2]]+Dataset[[#This Row],[2025/26 To - Spending review Topic 3]]+Dataset[[#This Row],[2025/26 To - Spending review Topic 4]]+Dataset[[#This Row],[2025/26 To - Other reallocations]]","v":0},{"$f":"Dataset[[#This Row],[2023/24 Baseline]]+Dataset[[#This Row],[2023/24 From - Total]]+Dataset[[#This Row],[2023/24 To - Total]]","v":0},{"$f":"Dataset[[#This Row],[2024/25 Baseline]]+Dataset[[#This Row],[2024/25 From - Total]]+Dataset[[#This Row],[2024/25 To - Total]]","v":0},{"$f":"Dataset[[#This Row],[2025/26 Baseline]]+Dataset[[#This Row],[2025/26 From - Total]]+Dataset[[#This Row],[2025/26 To - Total]]","v":0}]
["NAT|Non-transfer item","2|Rental and hiring","2023_24","MTEF2023",2,2,1,882,265,"02","02","01","000882","000265","02|02|01",1,1,2,34,34,"01|01|02|34|34","National","Parliament","Legislation and Oversight","National Assembly","Non-transfer item","Current","Current payments","Goods and services","Rental and hiring","Rental and hiring","General public services","Executive and legislative organs","NAT",0,0,0,0,0,0,0,0,0,0,0,null,null,null,null,null,null,null,null,null,null,null,null,null,null,null,null,null,null,null,null,null,null,null,null,null,null,null,null,null,null,{"$f":"Dataset[[#This Row],[2023/24 From - Spending review Topic 1]]+Dataset[[#This Row],[2023/24 From - Spending review Topic 2]]+Dataset[[#This Row],[2023/24 From - Spending review Topic 3]]+Dataset[[#This Row],[2023/24 From - Spending review Topic 4]]+Dataset[[#This Row],[2023/24 From - Other reallocations]]","v":0},{"$f":"Dataset[[#This Row],[2024/25 From - Spending review Topic 1]]+Dataset[[#This Row],[2024/25 From - Spending review Topic 2]]+Dataset[[#This Row],[2024/25 From - Spending review Topic 3]]+Dataset[[#This Row],[2024/25 From - Spending review Topic 4]]+Dataset[[#This Row],[2024/25 From - Other reallocations]]","v":0},{"$f":"Dataset[[#This Row],[2025/26 From - Spending review Topic 1]]+Dataset[[#This Row],[2025/26 From - Spending review Topic 2]]+Dataset[[#This Row],[2025/26 From - Spending review Topic 3]]+Dataset[[#This Row],[2025/26 From - Spending review Topic 4]]+Dataset[[#This Row],[2025/26 From - Other reallocations]]","v":0},{"$f":"Dataset[[#This Row],[2023/24 To - Spending review Topic 1]]+Dataset[[#This Row],[2023/24 To - Spending review Topic 2]]+Dataset[[#This Row],[2023/24 To - Spending review Topic 3]]+Dataset[[#This Row],[2023/24 To - Spending review Topic 4]]+Dataset[[#This Row],[2023/24 To - Other reallocations]]","v":0},{"$f":"Dataset[[#This Row],[2024/25 To - Spending review Topic 1]]+Dataset[[#This Row],[2024/25 To - Spending review Topic 2]]+Dataset[[#This Row],[2024/25 To - Spending review Topic 3]]+Dataset[[#This Row],[2024/25 To - Spending review Topic 4]]+Dataset[[#This Row],[2024/25 To - Other reallocations]]","v":0},{"$f":"Dataset[[#This Row],[2025/26 To - Spending review Topic 1]]+Dataset[[#This Row],[2025/26 To - Spending review Topic 2]]+Dataset[[#This Row],[2025/26 To - Spending review Topic 3]]+Dataset[[#This Row],[2025/26 To - Spending review Topic 4]]+Dataset[[#This Row],[2025/26 To - Other reallocations]]","v":0},{"$f":"Dataset[[#This Row],[2023/24 Baseline]]+Dataset[[#This Row],[2023/24 From - Total]]+Dataset[[#This Row],[2023/24 To - Total]]","v":0},{"$f":"Dataset[[#This Row],[2024/25 Baseline]]+Dataset[[#This Row],[2024/25 From - Total]]+Dataset[[#This Row],[2024/25 To - Total]]","v":0},{"$f":"Dataset[[#This Row],[2025/26 Baseline]]+Dataset[[#This Row],[2025/26 From - Total]]+Dataset[[#This Row],[2025/26 To - Total]]","v":0}]
["NAT|Non-transfer item","2|Property payments","2023_24","MTEF2023",2,2,1,883,266,"02","02","01","000883","000266","02|02|01",1,1,2,35,35,"01|01|02|35|35","National","Parliament","Legislation and Oversight","National Assembly","Non-transfer item","Current","Current payments","Goods and services","Property payments","Property payments","General public services","Executive and legislative organs","NAT",0,0,0,0,0,0,0,0,0,0,0,null,null,null,null,null,null,null,null,null,null,null,null,null,null,null,null,null,null,null,null,null,null,null,null,null,null,null,null,null,null,{"$f":"Dataset[[#This Row],[2023/24 From - Spending review Topic 1]]+Dataset[[#This Row],[2023/24 From - Spending review Topic 2]]+Dataset[[#This Row],[2023/24 From - Spending review Topic 3]]+Dataset[[#This Row],[2023/24 From - Spending review Topic 4]]+Dataset[[#This Row],[2023/24 From - Other reallocations]]","v":0},{"$f":"Dataset[[#This Row],[2024/25 From - Spending review Topic 1]]+Dataset[[#This Row],[2024/25 From - Spending review Topic 2]]+Dataset[[#This Row],[2024/25 From - Spending review Topic 3]]+Dataset[[#This Row],[2024/25 From - Spending review Topic 4]]+Dataset[[#This Row],[2024/25 From - Other reallocations]]","v":0},{"$f":"Dataset[[#This Row],[2025/26 From - Spending review Topic 1]]+Dataset[[#This Row],[2025/26 From - Spending review Topic 2]]+Dataset[[#This Row],[2025/26 From - Spending review Topic 3]]+Dataset[[#This Row],[2025/26 From - Spending review Topic 4]]+Dataset[[#This Row],[2025/26 From - Other reallocations]]","v":0},{"$f":"Dataset[[#This Row],[2023/24 To - Spending review Topic 1]]+Dataset[[#This Row],[2023/24 To - Spending review Topic 2]]+Dataset[[#This Row],[2023/24 To - Spending review Topic 3]]+Dataset[[#This Row],[2023/24 To - Spending review Topic 4]]+Dataset[[#This Row],[2023/24 To - Other reallocations]]","v":0},{"$f":"Dataset[[#This Row],[2024/25 To - Spending review Topic 1]]+Dataset[[#This Row],[2024/25 To - Spending review Topic 2]]+Dataset[[#This Row],[2024/25 To - Spending review Topic 3]]+Dataset[[#This Row],[2024/25 To - Spending review Topic 4]]+Dataset[[#This Row],[2024/25 To - Other reallocations]]","v":0},{"$f":"Dataset[[#This Row],[2025/26 To - Spending review Topic 1]]+Dataset[[#This Row],[2025/26 To - Spending review Topic 2]]+Dataset[[#This Row],[2025/26 To - Spending review Topic 3]]+Dataset[[#This Row],[2025/26 To - Spending review Topic 4]]+Dataset[[#This Row],[2025/26 To - Other reallocations]]","v":0},{"$f":"Dataset[[#This Row],[2023/24 Baseline]]+Dataset[[#This Row],[2023/24 From - Total]]+Dataset[[#This Row],[2023/24 To - Total]]","v":0},{"$f":"Dataset[[#This Row],[2024/25 Baseline]]+Dataset[[#This Row],[2024/25 From - Total]]+Dataset[[#This Row],[2024/25 To - Total]]","v":0},{"$f":"Dataset[[#This Row],[2025/26 Baseline]]+Dataset[[#This Row],[2025/26 From - Total]]+Dataset[[#This Row],[2025/26 To - Total]]","v":0}]
["NAT|Non-transfer item","2|Transport provided: Departmental activity","2023_24","MTEF2023",2,2,1,884,267,"02","02","01","000884","000267","02|02|01",1,1,2,36,36,"01|01|02|36|36","National","Parliament","Legislation and Oversight","National Assembly","Non-transfer item","Current","Current payments","Goods and services","Transport provided: Departmental activity","Transport provided: Departmental activity","General public services","Executive and legislative organs","NAT",0,0,0,0,0,0,0,0,0,0,0,null,null,null,null,null,null,null,null,null,null,null,null,null,null,null,null,null,null,null,null,null,null,null,null,null,null,null,null,null,null,{"$f":"Dataset[[#This Row],[2023/24 From - Spending review Topic 1]]+Dataset[[#This Row],[2023/24 From - Spending review Topic 2]]+Dataset[[#This Row],[2023/24 From - Spending review Topic 3]]+Dataset[[#This Row],[2023/24 From - Spending review Topic 4]]+Dataset[[#This Row],[2023/24 From - Other reallocations]]","v":0},{"$f":"Dataset[[#This Row],[2024/25 From - Spending review Topic 1]]+Dataset[[#This Row],[2024/25 From - Spending review Topic 2]]+Dataset[[#This Row],[2024/25 From - Spending review Topic 3]]+Dataset[[#This Row],[2024/25 From - Spending review Topic 4]]+Dataset[[#This Row],[2024/25 From - Other reallocations]]","v":0},{"$f":"Dataset[[#This Row],[2025/26 From - Spending review Topic 1]]+Dataset[[#This Row],[2025/26 From - Spending review Topic 2]]+Dataset[[#This Row],[2025/26 From - Spending review Topic 3]]+Dataset[[#This Row],[2025/26 From - Spending review Topic 4]]+Dataset[[#This Row],[2025/26 From - Other reallocations]]","v":0},{"$f":"Dataset[[#This Row],[2023/24 To - Spending review Topic 1]]+Dataset[[#This Row],[2023/24 To - Spending review Topic 2]]+Dataset[[#This Row],[2023/24 To - Spending review Topic 3]]+Dataset[[#This Row],[2023/24 To - Spending review Topic 4]]+Dataset[[#This Row],[2023/24 To - Other reallocations]]","v":0},{"$f":"Dataset[[#This Row],[2024/25 To - Spending review Topic 1]]+Dataset[[#This Row],[2024/25 To - Spending review Topic 2]]+Dataset[[#This Row],[2024/25 To - Spending review Topic 3]]+Dataset[[#This Row],[2024/25 To - Spending review Topic 4]]+Dataset[[#This Row],[2024/25 To - Other reallocations]]","v":0},{"$f":"Dataset[[#This Row],[2025/26 To - Spending review Topic 1]]+Dataset[[#This Row],[2025/26 To - Spending review Topic 2]]+Dataset[[#This Row],[2025/26 To - Spending review Topic 3]]+Dataset[[#This Row],[2025/26 To - Spending review Topic 4]]+Dataset[[#This Row],[2025/26 To - Other reallocations]]","v":0},{"$f":"Dataset[[#This Row],[2023/24 Baseline]]+Dataset[[#This Row],[2023/24 From - Total]]+Dataset[[#This Row],[2023/24 To - Total]]","v":0},{"$f":"Dataset[[#This Row],[2024/25 Baseline]]+Dataset[[#This Row],[2024/25 From - Total]]+Dataset[[#This Row],[2024/25 To - Total]]","v":0},{"$f":"Dataset[[#This Row],[2025/26 Baseline]]+Dataset[[#This Row],[2025/26 From - Total]]+Dataset[[#This Row],[2025/26 To - Total]]","v":0}]
["NAT|Non-transfer item","2|Travel and subsistence","2023_24","MTEF2023",2,2,1,885,268,"02","02","01","000885","000268","02|02|01",1,1,2,37,37,"01|01|02|37|37","National","Parliament","Legislation and Oversight","National Assembly","Non-transfer item","Current","Current payments","Goods and services","Travel and subsistence","Travel and subsistence","General public services","Executive and legislative organs","NAT",596,629,664,2812,2812,2812,0,1,12,143,149,null,null,null,null,null,null,null,null,null,null,null,null,null,null,null,null,null,null,null,null,null,null,null,null,null,null,null,null,null,null,{"$f":"Dataset[[#This Row],[2023/24 From - Spending review Topic 1]]+Dataset[[#This Row],[2023/24 From - Spending review Topic 2]]+Dataset[[#This Row],[2023/24 From - Spending review Topic 3]]+Dataset[[#This Row],[2023/24 From - Spending review Topic 4]]+Dataset[[#This Row],[2023/24 From - Other reallocations]]","v":0},{"$f":"Dataset[[#This Row],[2024/25 From - Spending review Topic 1]]+Dataset[[#This Row],[2024/25 From - Spending review Topic 2]]+Dataset[[#This Row],[2024/25 From - Spending review Topic 3]]+Dataset[[#This Row],[2024/25 From - Spending review Topic 4]]+Dataset[[#This Row],[2024/25 From - Other reallocations]]","v":0},{"$f":"Dataset[[#This Row],[2025/26 From - Spending review Topic 1]]+Dataset[[#This Row],[2025/26 From - Spending review Topic 2]]+Dataset[[#This Row],[2025/26 From - Spending review Topic 3]]+Dataset[[#This Row],[2025/26 From - Spending review Topic 4]]+Dataset[[#This Row],[2025/26 From - Other reallocations]]","v":0},{"$f":"Dataset[[#This Row],[2023/24 To - Spending review Topic 1]]+Dataset[[#This Row],[2023/24 To - Spending review Topic 2]]+Dataset[[#This Row],[2023/24 To - Spending review Topic 3]]+Dataset[[#This Row],[2023/24 To - Spending review Topic 4]]+Dataset[[#This Row],[2023/24 To - Other reallocations]]","v":0},{"$f":"Dataset[[#This Row],[2024/25 To - Spending review Topic 1]]+Dataset[[#This Row],[2024/25 To - Spending review Topic 2]]+Dataset[[#This Row],[2024/25 To - Spending review Topic 3]]+Dataset[[#This Row],[2024/25 To - Spending review Topic 4]]+Dataset[[#This Row],[2024/25 To - Other reallocations]]","v":0},{"$f":"Dataset[[#This Row],[2025/26 To - Spending review Topic 1]]+Dataset[[#This Row],[2025/26 To - Spending review Topic 2]]+Dataset[[#This Row],[2025/26 To - Spending review Topic 3]]+Dataset[[#This Row],[2025/26 To - Spending review Topic 4]]+Dataset[[#This Row],[2025/26 To - Other reallocations]]","v":0},{"$f":"Dataset[[#This Row],[2023/24 Baseline]]+Dataset[[#This Row],[2023/24 From - Total]]+Dataset[[#This Row],[2023/24 To - Total]]","v":12},{"$f":"Dataset[[#This Row],[2024/25 Baseline]]+Dataset[[#This Row],[2024/25 From - Total]]+Dataset[[#This Row],[2024/25 To - Total]]","v":143},{"$f":"Dataset[[#This Row],[2025/26 Baseline]]+Dataset[[#This Row],[2025/26 From - Total]]+Dataset[[#This Row],[2025/26 To - Total]]","v":149}]
["NAT|Non-transfer item","2|Training and development","2023_24","MTEF2023",2,2,1,886,269,"02","02","01","000886","000269","02|02|01",1,1,2,38,38,"01|01|02|38|38","National","Parliament","Legislation and Oversight","National Assembly","Non-transfer item","Current","Current payments","Goods and services","Training and development","Training and development","General public services","Executive and legislative organs","NAT",154,163,172,729,729,729,0,651,654,688,719,null,null,null,null,null,null,null,null,null,null,null,null,null,null,null,null,null,null,null,null,null,null,null,null,null,null,null,null,null,null,{"$f":"Dataset[[#This Row],[2023/24 From - Spending review Topic 1]]+Dataset[[#This Row],[2023/24 From - Spending review Topic 2]]+Dataset[[#This Row],[2023/24 From - Spending review Topic 3]]+Dataset[[#This Row],[2023/24 From - Spending review Topic 4]]+Dataset[[#This Row],[2023/24 From - Other reallocations]]","v":0},{"$f":"Dataset[[#This Row],[2024/25 From - Spending review Topic 1]]+Dataset[[#This Row],[2024/25 From - Spending review Topic 2]]+Dataset[[#This Row],[2024/25 From - Spending review Topic 3]]+Dataset[[#This Row],[2024/25 From - Spending review Topic 4]]+Dataset[[#This Row],[2024/25 From - Other reallocations]]","v":0},{"$f":"Dataset[[#This Row],[2025/26 From - Spending review Topic 1]]+Dataset[[#This Row],[2025/26 From - Spending review Topic 2]]+Dataset[[#This Row],[2025/26 From - Spending review Topic 3]]+Dataset[[#This Row],[2025/26 From - Spending review Topic 4]]+Dataset[[#This Row],[2025/26 From - Other reallocations]]","v":0},{"$f":"Dataset[[#This Row],[2023/24 To - Spending review Topic 1]]+Dataset[[#This Row],[2023/24 To - Spending review Topic 2]]+Dataset[[#This Row],[2023/24 To - Spending review Topic 3]]+Dataset[[#This Row],[2023/24 To - Spending review Topic 4]]+Dataset[[#This Row],[2023/24 To - Other reallocations]]","v":0},{"$f":"Dataset[[#This Row],[2024/25 To - Spending review Topic 1]]+Dataset[[#This Row],[2024/25 To - Spending review Topic 2]]+Dataset[[#This Row],[2024/25 To - Spending review Topic 3]]+Dataset[[#This Row],[2024/25 To - Spending review Topic 4]]+Dataset[[#This Row],[2024/25 To - Other reallocations]]","v":0},{"$f":"Dataset[[#This Row],[2025/26 To - Spending review Topic 1]]+Dataset[[#This Row],[2025/26 To - Spending review Topic 2]]+Dataset[[#This Row],[2025/26 To - Spending review Topic 3]]+Dataset[[#This Row],[2025/26 To - Spending review Topic 4]]+Dataset[[#This Row],[2025/26 To - Other reallocations]]","v":0},{"$f":"Dataset[[#This Row],[2023/24 Baseline]]+Dataset[[#This Row],[2023/24 From - Total]]+Dataset[[#This Row],[2023/24 To - Total]]","v":654},{"$f":"Dataset[[#This Row],[2024/25 Baseline]]+Dataset[[#This Row],[2024/25 From - Total]]+Dataset[[#This Row],[2024/25 To - Total]]","v":688},{"$f":"Dataset[[#This Row],[2025/26 Baseline]]+Dataset[[#This Row],[2025/26 From - Total]]+Dataset[[#This Row],[2025/26 To - Total]]","v":719}]
["NAT|Non-transfer item","2|Operating payments","2023_24","MTEF2023",2,2,1,887,270,"02","02","01","000887","000270","02|02|01",1,1,2,39,39,"01|01|02|39|39","National","Parliament","Legislation and Oversight","National Assembly","Non-transfer item","Current","Current payments","Goods and services","Operating payments","Operating payments","General public services","Executive and legislative organs","NAT",1813,270,934,3956,3956,3956,0,4080,4096,4280,4472,null,null,null,null,null,null,null,null,null,null,null,null,null,null,null,null,null,null,null,null,null,null,null,null,null,null,null,null,null,null,{"$f":"Dataset[[#This Row],[2023/24 From - Spending review Topic 1]]+Dataset[[#This Row],[2023/24 From - Spending review Topic 2]]+Dataset[[#This Row],[2023/24 From - Spending review Topic 3]]+Dataset[[#This Row],[2023/24 From - Spending review Topic 4]]+Dataset[[#This Row],[2023/24 From - Other reallocations]]","v":0},{"$f":"Dataset[[#This Row],[2024/25 From - Spending review Topic 1]]+Dataset[[#This Row],[2024/25 From - Spending review Topic 2]]+Dataset[[#This Row],[2024/25 From - Spending review Topic 3]]+Dataset[[#This Row],[2024/25 From - Spending review Topic 4]]+Dataset[[#This Row],[2024/25 From - Other reallocations]]","v":0},{"$f":"Dataset[[#This Row],[2025/26 From - Spending review Topic 1]]+Dataset[[#This Row],[2025/26 From - Spending review Topic 2]]+Dataset[[#This Row],[2025/26 From - Spending review Topic 3]]+Dataset[[#This Row],[2025/26 From - Spending review Topic 4]]+Dataset[[#This Row],[2025/26 From - Other reallocations]]","v":0},{"$f":"Dataset[[#This Row],[2023/24 To - Spending review Topic 1]]+Dataset[[#This Row],[2023/24 To - Spending review Topic 2]]+Dataset[[#This Row],[2023/24 To - Spending review Topic 3]]+Dataset[[#This Row],[2023/24 To - Spending review Topic 4]]+Dataset[[#This Row],[2023/24 To - Other reallocations]]","v":0},{"$f":"Dataset[[#This Row],[2024/25 To - Spending review Topic 1]]+Dataset[[#This Row],[2024/25 To - Spending review Topic 2]]+Dataset[[#This Row],[2024/25 To - Spending review Topic 3]]+Dataset[[#This Row],[2024/25 To - Spending review Topic 4]]+Dataset[[#This Row],[2024/25 To - Other reallocations]]","v":0},{"$f":"Dataset[[#This Row],[2025/26 To - Spending review Topic 1]]+Dataset[[#This Row],[2025/26 To - Spending review Topic 2]]+Dataset[[#This Row],[2025/26 To - Spending review Topic 3]]+Dataset[[#This Row],[2025/26 To - Spending review Topic 4]]+Dataset[[#This Row],[2025/26 To - Other reallocations]]","v":0},{"$f":"Dataset[[#This Row],[2023/24 Baseline]]+Dataset[[#This Row],[2023/24 From - Total]]+Dataset[[#This Row],[2023/24 To - Total]]","v":4096},{"$f":"Dataset[[#This Row],[2024/25 Baseline]]+Dataset[[#This Row],[2024/25 From - Total]]+Dataset[[#This Row],[2024/25 To - Total]]","v":4280},{"$f":"Dataset[[#This Row],[2025/26 Baseline]]+Dataset[[#This Row],[2025/26 From - Total]]+Dataset[[#This Row],[2025/26 To - Total]]","v":4472}]
["NAT|Non-transfer item","2|Venues and facilities","2023_24","MTEF2023",2,2,1,888,271,"02","02","01","000888","000271","02|02|01",1,1,2,40,40,"01|01|02|40|40","National","Parliament","Legislation and Oversight","National Assembly","Non-transfer item","Current","Current payments","Goods and services","Venues and facilities","Venues and facilities","General public services","Executive and legislative organs","NAT",140,148,156,661,661,661,0,681,684,715,747,null,null,null,null,null,null,null,null,null,null,null,null,null,null,null,null,null,null,null,null,null,null,null,null,null,null,null,null,null,null,{"$f":"Dataset[[#This Row],[2023/24 From - Spending review Topic 1]]+Dataset[[#This Row],[2023/24 From - Spending review Topic 2]]+Dataset[[#This Row],[2023/24 From - Spending review Topic 3]]+Dataset[[#This Row],[2023/24 From - Spending review Topic 4]]+Dataset[[#This Row],[2023/24 From - Other reallocations]]","v":0},{"$f":"Dataset[[#This Row],[2024/25 From - Spending review Topic 1]]+Dataset[[#This Row],[2024/25 From - Spending review Topic 2]]+Dataset[[#This Row],[2024/25 From - Spending review Topic 3]]+Dataset[[#This Row],[2024/25 From - Spending review Topic 4]]+Dataset[[#This Row],[2024/25 From - Other reallocations]]","v":0},{"$f":"Dataset[[#This Row],[2025/26 From - Spending review Topic 1]]+Dataset[[#This Row],[2025/26 From - Spending review Topic 2]]+Dataset[[#This Row],[2025/26 From - Spending review Topic 3]]+Dataset[[#This Row],[2025/26 From - Spending review Topic 4]]+Dataset[[#This Row],[2025/26 From - Other reallocations]]","v":0},{"$f":"Dataset[[#This Row],[2023/24 To - Spending review Topic 1]]+Dataset[[#This Row],[2023/24 To - Spending review Topic 2]]+Dataset[[#This Row],[2023/24 To - Spending review Topic 3]]+Dataset[[#This Row],[2023/24 To - Spending review Topic 4]]+Dataset[[#This Row],[2023/24 To - Other reallocations]]","v":0},{"$f":"Dataset[[#This Row],[2024/25 To - Spending review Topic 1]]+Dataset[[#This Row],[2024/25 To - Spending review Topic 2]]+Dataset[[#This Row],[2024/25 To - Spending review Topic 3]]+Dataset[[#This Row],[2024/25 To - Spending review Topic 4]]+Dataset[[#This Row],[2024/25 To - Other reallocations]]","v":0},{"$f":"Dataset[[#This Row],[2025/26 To - Spending review Topic 1]]+Dataset[[#This Row],[2025/26 To - Spending review Topic 2]]+Dataset[[#This Row],[2025/26 To - Spending review Topic 3]]+Dataset[[#This Row],[2025/26 To - Spending review Topic 4]]+Dataset[[#This Row],[2025/26 To - Other reallocations]]","v":0},{"$f":"Dataset[[#This Row],[2023/24 Baseline]]+Dataset[[#This Row],[2023/24 From - Total]]+Dataset[[#This Row],[2023/24 To - Total]]","v":684},{"$f":"Dataset[[#This Row],[2024/25 Baseline]]+Dataset[[#This Row],[2024/25 From - Total]]+Dataset[[#This Row],[2024/25 To - Total]]","v":715},{"$f":"Dataset[[#This Row],[2025/26 Baseline]]+Dataset[[#This Row],[2025/26 From - Total]]+Dataset[[#This Row],[2025/26 To - Total]]","v":747}]
["NAT|Non-transfer item","2|Interest (Incl. interest on unitary payments (PPP))","2023_24","MTEF2023",2,2,1,889,272,"02","02","01","000889","000272","02|02|01",1,1,3,41,41,"01|01|03|41|41","National","Parliament","Legislation and Oversight","National Assembly","Non-transfer item","Current","Current payments","Interest and rent on land","Interest (Incl. interest on unitary payments (PPP))","Interest (Incl. interest on unitary payments (PPP))","General public services","Executive and legislative organs","NAT",0,0,0,0,0,0,0,0,0,0,0,null,null,null,null,null,null,null,null,null,null,null,null,null,null,null,null,null,null,null,null,null,null,null,null,null,null,null,null,null,null,{"$f":"Dataset[[#This Row],[2023/24 From - Spending review Topic 1]]+Dataset[[#This Row],[2023/24 From - Spending review Topic 2]]+Dataset[[#This Row],[2023/24 From - Spending review Topic 3]]+Dataset[[#This Row],[2023/24 From - Spending review Topic 4]]+Dataset[[#This Row],[2023/24 From - Other reallocations]]","v":0},{"$f":"Dataset[[#This Row],[2024/25 From - Spending review Topic 1]]+Dataset[[#This Row],[2024/25 From - Spending review Topic 2]]+Dataset[[#This Row],[2024/25 From - Spending review Topic 3]]+Dataset[[#This Row],[2024/25 From - Spending review Topic 4]]+Dataset[[#This Row],[2024/25 From - Other reallocations]]","v":0},{"$f":"Dataset[[#This Row],[2025/26 From - Spending review Topic 1]]+Dataset[[#This Row],[2025/26 From - Spending review Topic 2]]+Dataset[[#This Row],[2025/26 From - Spending review Topic 3]]+Dataset[[#This Row],[2025/26 From - Spending review Topic 4]]+Dataset[[#This Row],[2025/26 From - Other reallocations]]","v":0},{"$f":"Dataset[[#This Row],[2023/24 To - Spending review Topic 1]]+Dataset[[#This Row],[2023/24 To - Spending review Topic 2]]+Dataset[[#This Row],[2023/24 To - Spending review Topic 3]]+Dataset[[#This Row],[2023/24 To - Spending review Topic 4]]+Dataset[[#This Row],[2023/24 To - Other reallocations]]","v":0},{"$f":"Dataset[[#This Row],[2024/25 To - Spending review Topic 1]]+Dataset[[#This Row],[2024/25 To - Spending review Topic 2]]+Dataset[[#This Row],[2024/25 To - Spending review Topic 3]]+Dataset[[#This Row],[2024/25 To - Spending review Topic 4]]+Dataset[[#This Row],[2024/25 To - Other reallocations]]","v":0},{"$f":"Dataset[[#This Row],[2025/26 To - Spending review Topic 1]]+Dataset[[#This Row],[2025/26 To - Spending review Topic 2]]+Dataset[[#This Row],[2025/26 To - Spending review Topic 3]]+Dataset[[#This Row],[2025/26 To - Spending review Topic 4]]+Dataset[[#This Row],[2025/26 To - Other reallocations]]","v":0},{"$f":"Dataset[[#This Row],[2023/24 Baseline]]+Dataset[[#This Row],[2023/24 From - Total]]+Dataset[[#This Row],[2023/24 To - Total]]","v":0},{"$f":"Dataset[[#This Row],[2024/25 Baseline]]+Dataset[[#This Row],[2024/25 From - Total]]+Dataset[[#This Row],[2024/25 To - Total]]","v":0},{"$f":"Dataset[[#This Row],[2025/26 Baseline]]+Dataset[[#This Row],[2025/26 From - Total]]+Dataset[[#This Row],[2025/26 To - Total]]","v":0}]
["NAT|Non-transfer item","2|Rent on land","2023_24","MTEF2023",2,2,1,890,273,"02","02","01","000890","000273","02|02|01",1,1,3,42,42,"01|01|03|42|42","National","Parliament","Legislation and Oversight","National Assembly","Non-transfer item","Current","Current payments","Interest and rent on land","Rent on land","Rent on land","General public services","Executive and legislative organs","NAT",0,0,0,0,0,0,0,0,0,0,0,null,null,null,null,null,null,null,null,null,null,null,null,null,null,null,null,null,null,null,null,null,null,null,null,null,null,null,null,null,null,{"$f":"Dataset[[#This Row],[2023/24 From - Spending review Topic 1]]+Dataset[[#This Row],[2023/24 From - Spending review Topic 2]]+Dataset[[#This Row],[2023/24 From - Spending review Topic 3]]+Dataset[[#This Row],[2023/24 From - Spending review Topic 4]]+Dataset[[#This Row],[2023/24 From - Other reallocations]]","v":0},{"$f":"Dataset[[#This Row],[2024/25 From - Spending review Topic 1]]+Dataset[[#This Row],[2024/25 From - Spending review Topic 2]]+Dataset[[#This Row],[2024/25 From - Spending review Topic 3]]+Dataset[[#This Row],[2024/25 From - Spending review Topic 4]]+Dataset[[#This Row],[2024/25 From - Other reallocations]]","v":0},{"$f":"Dataset[[#This Row],[2025/26 From - Spending review Topic 1]]+Dataset[[#This Row],[2025/26 From - Spending review Topic 2]]+Dataset[[#This Row],[2025/26 From - Spending review Topic 3]]+Dataset[[#This Row],[2025/26 From - Spending review Topic 4]]+Dataset[[#This Row],[2025/26 From - Other reallocations]]","v":0},{"$f":"Dataset[[#This Row],[2023/24 To - Spending review Topic 1]]+Dataset[[#This Row],[2023/24 To - Spending review Topic 2]]+Dataset[[#This Row],[2023/24 To - Spending review Topic 3]]+Dataset[[#This Row],[2023/24 To - Spending review Topic 4]]+Dataset[[#This Row],[2023/24 To - Other reallocations]]","v":0},{"$f":"Dataset[[#This Row],[2024/25 To - Spending review Topic 1]]+Dataset[[#This Row],[2024/25 To - Spending review Topic 2]]+Dataset[[#This Row],[2024/25 To - Spending review Topic 3]]+Dataset[[#This Row],[2024/25 To - Spending review Topic 4]]+Dataset[[#This Row],[2024/25 To - Other reallocations]]","v":0},{"$f":"Dataset[[#This Row],[2025/26 To - Spending review Topic 1]]+Dataset[[#This Row],[2025/26 To - Spending review Topic 2]]+Dataset[[#This Row],[2025/26 To - Spending review Topic 3]]+Dataset[[#This Row],[2025/26 To - Spending review Topic 4]]+Dataset[[#This Row],[2025/26 To - Other reallocations]]","v":0},{"$f":"Dataset[[#This Row],[2023/24 Baseline]]+Dataset[[#This Row],[2023/24 From - Total]]+Dataset[[#This Row],[2023/24 To - Total]]","v":0},{"$f":"Dataset[[#This Row],[2024/25 Baseline]]+Dataset[[#This Row],[2024/25 From - Total]]+Dataset[[#This Row],[2024/25 To - Total]]","v":0},{"$f":"Dataset[[#This Row],[2025/26 Baseline]]+Dataset[[#This Row],[2025/26 From - Total]]+Dataset[[#This Row],[2025/26 To - Total]]","v":0}]
["NAT|Non-transfer item","2|Provincial Revenue Funds","2023_24","MTEF2023",2,2,1,891,274,"02","02","01","000891","000274","02|02|01",1,2,4,43,43,"01|02|04|43|43","National","Parliament","Legislation and Oversight","National Assembly","Non-transfer item","Current","Transfers and subsidies","Provinces and municipalities","Provinces","Provincial Revenue Funds","General public services","Executive and legislative organs","NAT",0,0,0,0,0,0,0,0,0,0,0,null,null,null,null,null,null,null,null,null,null,null,null,null,null,null,null,null,null,null,null,null,null,null,null,null,null,null,null,null,null,{"$f":"Dataset[[#This Row],[2023/24 From - Spending review Topic 1]]+Dataset[[#This Row],[2023/24 From - Spending review Topic 2]]+Dataset[[#This Row],[2023/24 From - Spending review Topic 3]]+Dataset[[#This Row],[2023/24 From - Spending review Topic 4]]+Dataset[[#This Row],[2023/24 From - Other reallocations]]","v":0},{"$f":"Dataset[[#This Row],[2024/25 From - Spending review Topic 1]]+Dataset[[#This Row],[2024/25 From - Spending review Topic 2]]+Dataset[[#This Row],[2024/25 From - Spending review Topic 3]]+Dataset[[#This Row],[2024/25 From - Spending review Topic 4]]+Dataset[[#This Row],[2024/25 From - Other reallocations]]","v":0},{"$f":"Dataset[[#This Row],[2025/26 From - Spending review Topic 1]]+Dataset[[#This Row],[2025/26 From - Spending review Topic 2]]+Dataset[[#This Row],[2025/26 From - Spending review Topic 3]]+Dataset[[#This Row],[2025/26 From - Spending review Topic 4]]+Dataset[[#This Row],[2025/26 From - Other reallocations]]","v":0},{"$f":"Dataset[[#This Row],[2023/24 To - Spending review Topic 1]]+Dataset[[#This Row],[2023/24 To - Spending review Topic 2]]+Dataset[[#This Row],[2023/24 To - Spending review Topic 3]]+Dataset[[#This Row],[2023/24 To - Spending review Topic 4]]+Dataset[[#This Row],[2023/24 To - Other reallocations]]","v":0},{"$f":"Dataset[[#This Row],[2024/25 To - Spending review Topic 1]]+Dataset[[#This Row],[2024/25 To - Spending review Topic 2]]+Dataset[[#This Row],[2024/25 To - Spending review Topic 3]]+Dataset[[#This Row],[2024/25 To - Spending review Topic 4]]+Dataset[[#This Row],[2024/25 To - Other reallocations]]","v":0},{"$f":"Dataset[[#This Row],[2025/26 To - Spending review Topic 1]]+Dataset[[#This Row],[2025/26 To - Spending review Topic 2]]+Dataset[[#This Row],[2025/26 To - Spending review Topic 3]]+Dataset[[#This Row],[2025/26 To - Spending review Topic 4]]+Dataset[[#This Row],[2025/26 To - Other reallocations]]","v":0},{"$f":"Dataset[[#This Row],[2023/24 Baseline]]+Dataset[[#This Row],[2023/24 From - Total]]+Dataset[[#This Row],[2023/24 To - Total]]","v":0},{"$f":"Dataset[[#This Row],[2024/25 Baseline]]+Dataset[[#This Row],[2024/25 From - Total]]+Dataset[[#This Row],[2024/25 To - Total]]","v":0},{"$f":"Dataset[[#This Row],[2025/26 Baseline]]+Dataset[[#This Row],[2025/26 From - Total]]+Dataset[[#This Row],[2025/26 To - Total]]","v":0}]
["NAT|Non-transfer item","2|Provincial agencies and funds","2023_24","MTEF2023",2,2,1,892,275,"02","02","01","000892","000275","02|02|01",1,2,4,43,44,"01|02|04|43|44","National","Parliament","Legislation and Oversight","National Assembly","Non-transfer item","Current","Transfers and subsidies","Provinces and municipalities","Provinces","Provincial agencies and funds","General public services","Executive and legislative organs","NAT",0,0,0,0,0,0,0,0,0,0,0,null,null,null,null,null,null,null,null,null,null,null,null,null,null,null,null,null,null,null,null,null,null,null,null,null,null,null,null,null,null,{"$f":"Dataset[[#This Row],[2023/24 From - Spending review Topic 1]]+Dataset[[#This Row],[2023/24 From - Spending review Topic 2]]+Dataset[[#This Row],[2023/24 From - Spending review Topic 3]]+Dataset[[#This Row],[2023/24 From - Spending review Topic 4]]+Dataset[[#This Row],[2023/24 From - Other reallocations]]","v":0},{"$f":"Dataset[[#This Row],[2024/25 From - Spending review Topic 1]]+Dataset[[#This Row],[2024/25 From - Spending review Topic 2]]+Dataset[[#This Row],[2024/25 From - Spending review Topic 3]]+Dataset[[#This Row],[2024/25 From - Spending review Topic 4]]+Dataset[[#This Row],[2024/25 From - Other reallocations]]","v":0},{"$f":"Dataset[[#This Row],[2025/26 From - Spending review Topic 1]]+Dataset[[#This Row],[2025/26 From - Spending review Topic 2]]+Dataset[[#This Row],[2025/26 From - Spending review Topic 3]]+Dataset[[#This Row],[2025/26 From - Spending review Topic 4]]+Dataset[[#This Row],[2025/26 From - Other reallocations]]","v":0},{"$f":"Dataset[[#This Row],[2023/24 To - Spending review Topic 1]]+Dataset[[#This Row],[2023/24 To - Spending review Topic 2]]+Dataset[[#This Row],[2023/24 To - Spending review Topic 3]]+Dataset[[#This Row],[2023/24 To - Spending review Topic 4]]+Dataset[[#This Row],[2023/24 To - Other reallocations]]","v":0},{"$f":"Dataset[[#This Row],[2024/25 To - Spending review Topic 1]]+Dataset[[#This Row],[2024/25 To - Spending review Topic 2]]+Dataset[[#This Row],[2024/25 To - Spending review Topic 3]]+Dataset[[#This Row],[2024/25 To - Spending review Topic 4]]+Dataset[[#This Row],[2024/25 To - Other reallocations]]","v":0},{"$f":"Dataset[[#This Row],[2025/26 To - Spending review Topic 1]]+Dataset[[#This Row],[2025/26 To - Spending review Topic 2]]+Dataset[[#This Row],[2025/26 To - Spending review Topic 3]]+Dataset[[#This Row],[2025/26 To - Spending review Topic 4]]+Dataset[[#This Row],[2025/26 To - Other reallocations]]","v":0},{"$f":"Dataset[[#This Row],[2023/24 Baseline]]+Dataset[[#This Row],[2023/24 From - Total]]+Dataset[[#This Row],[2023/24 To - Total]]","v":0},{"$f":"Dataset[[#This Row],[2024/25 Baseline]]+Dataset[[#This Row],[2024/25 From - Total]]+Dataset[[#This Row],[2024/25 To - Total]]","v":0},{"$f":"Dataset[[#This Row],[2025/26 Baseline]]+Dataset[[#This Row],[2025/26 From - Total]]+Dataset[[#This Row],[2025/26 To - Total]]","v":0}]
["NAT|Non-transfer item","2|Municipal bank accounts","2023_24","MTEF2023",2,2,1,893,276,"02","02","01","000893","000276","02|02|01",1,2,4,44,45,"01|02|04|44|45","National","Parliament","Legislation and Oversight","National Assembly","Non-transfer item","Current","Transfers and subsidies","Provinces and municipalities","Municipalities","Municipal bank accounts","General public services","Executive and legislative organs","NAT",0,0,0,0,0,0,0,0,0,0,0,null,null,null,null,null,null,null,null,null,null,null,null,null,null,null,null,null,null,null,null,null,null,null,null,null,null,null,null,null,null,{"$f":"Dataset[[#This Row],[2023/24 From - Spending review Topic 1]]+Dataset[[#This Row],[2023/24 From - Spending review Topic 2]]+Dataset[[#This Row],[2023/24 From - Spending review Topic 3]]+Dataset[[#This Row],[2023/24 From - Spending review Topic 4]]+Dataset[[#This Row],[2023/24 From - Other reallocations]]","v":0},{"$f":"Dataset[[#This Row],[2024/25 From - Spending review Topic 1]]+Dataset[[#This Row],[2024/25 From - Spending review Topic 2]]+Dataset[[#This Row],[2024/25 From - Spending review Topic 3]]+Dataset[[#This Row],[2024/25 From - Spending review Topic 4]]+Dataset[[#This Row],[2024/25 From - Other reallocations]]","v":0},{"$f":"Dataset[[#This Row],[2025/26 From - Spending review Topic 1]]+Dataset[[#This Row],[2025/26 From - Spending review Topic 2]]+Dataset[[#This Row],[2025/26 From - Spending review Topic 3]]+Dataset[[#This Row],[2025/26 From - Spending review Topic 4]]+Dataset[[#This Row],[2025/26 From - Other reallocations]]","v":0},{"$f":"Dataset[[#This Row],[2023/24 To - Spending review Topic 1]]+Dataset[[#This Row],[2023/24 To - Spending review Topic 2]]+Dataset[[#This Row],[2023/24 To - Spending review Topic 3]]+Dataset[[#This Row],[2023/24 To - Spending review Topic 4]]+Dataset[[#This Row],[2023/24 To - Other reallocations]]","v":0},{"$f":"Dataset[[#This Row],[2024/25 To - Spending review Topic 1]]+Dataset[[#This Row],[2024/25 To - Spending review Topic 2]]+Dataset[[#This Row],[2024/25 To - Spending review Topic 3]]+Dataset[[#This Row],[2024/25 To - Spending review Topic 4]]+Dataset[[#This Row],[2024/25 To - Other reallocations]]","v":0},{"$f":"Dataset[[#This Row],[2025/26 To - Spending review Topic 1]]+Dataset[[#This Row],[2025/26 To - Spending review Topic 2]]+Dataset[[#This Row],[2025/26 To - Spending review Topic 3]]+Dataset[[#This Row],[2025/26 To - Spending review Topic 4]]+Dataset[[#This Row],[2025/26 To - Other reallocations]]","v":0},{"$f":"Dataset[[#This Row],[2023/24 Baseline]]+Dataset[[#This Row],[2023/24 From - Total]]+Dataset[[#This Row],[2023/24 To - Total]]","v":0},{"$f":"Dataset[[#This Row],[2024/25 Baseline]]+Dataset[[#This Row],[2024/25 From - Total]]+Dataset[[#This Row],[2024/25 To - Total]]","v":0},{"$f":"Dataset[[#This Row],[2025/26 Baseline]]+Dataset[[#This Row],[2025/26 From - Total]]+Dataset[[#This Row],[2025/26 To - Total]]","v":0}]
["NAT|Non-transfer item","2|Municipal agencies and funds","2023_24","MTEF2023",2,2,1,894,277,"02","02","01","000894","000277","02|02|01",1,2,4,44,46,"01|02|04|44|46","National","Parliament","Legislation and Oversight","National Assembly","Non-transfer item","Current","Transfers and subsidies","Provinces and municipalities","Municipalities","Municipal agencies and funds","General public services","Executive and legislative organs","NAT",0,0,0,0,0,0,0,0,0,0,0,null,null,null,null,null,null,null,null,null,null,null,null,null,null,null,null,null,null,null,null,null,null,null,null,null,null,null,null,null,null,{"$f":"Dataset[[#This Row],[2023/24 From - Spending review Topic 1]]+Dataset[[#This Row],[2023/24 From - Spending review Topic 2]]+Dataset[[#This Row],[2023/24 From - Spending review Topic 3]]+Dataset[[#This Row],[2023/24 From - Spending review Topic 4]]+Dataset[[#This Row],[2023/24 From - Other reallocations]]","v":0},{"$f":"Dataset[[#This Row],[2024/25 From - Spending review Topic 1]]+Dataset[[#This Row],[2024/25 From - Spending review Topic 2]]+Dataset[[#This Row],[2024/25 From - Spending review Topic 3]]+Dataset[[#This Row],[2024/25 From - Spending review Topic 4]]+Dataset[[#This Row],[2024/25 From - Other reallocations]]","v":0},{"$f":"Dataset[[#This Row],[2025/26 From - Spending review Topic 1]]+Dataset[[#This Row],[2025/26 From - Spending review Topic 2]]+Dataset[[#This Row],[2025/26 From - Spending review Topic 3]]+Dataset[[#This Row],[2025/26 From - Spending review Topic 4]]+Dataset[[#This Row],[2025/26 From - Other reallocations]]","v":0},{"$f":"Dataset[[#This Row],[2023/24 To - Spending review Topic 1]]+Dataset[[#This Row],[2023/24 To - Spending review Topic 2]]+Dataset[[#This Row],[2023/24 To - Spending review Topic 3]]+Dataset[[#This Row],[2023/24 To - Spending review Topic 4]]+Dataset[[#This Row],[2023/24 To - Other reallocations]]","v":0},{"$f":"Dataset[[#This Row],[2024/25 To - Spending review Topic 1]]+Dataset[[#This Row],[2024/25 To - Spending review Topic 2]]+Dataset[[#This Row],[2024/25 To - Spending review Topic 3]]+Dataset[[#This Row],[2024/25 To - Spending review Topic 4]]+Dataset[[#This Row],[2024/25 To - Other reallocations]]","v":0},{"$f":"Dataset[[#This Row],[2025/26 To - Spending review Topic 1]]+Dataset[[#This Row],[2025/26 To - Spending review Topic 2]]+Dataset[[#This Row],[2025/26 To - Spending review Topic 3]]+Dataset[[#This Row],[2025/26 To - Spending review Topic 4]]+Dataset[[#This Row],[2025/26 To - Other reallocations]]","v":0},{"$f":"Dataset[[#This Row],[2023/24 Baseline]]+Dataset[[#This Row],[2023/24 From - Total]]+Dataset[[#This Row],[2023/24 To - Total]]","v":0},{"$f":"Dataset[[#This Row],[2024/25 Baseline]]+Dataset[[#This Row],[2024/25 From - Total]]+Dataset[[#This Row],[2024/25 To - Total]]","v":0},{"$f":"Dataset[[#This Row],[2025/26 Baseline]]+Dataset[[#This Row],[2025/26 From - Total]]+Dataset[[#This Row],[2025/26 To - Total]]","v":0}]
["NAT|Non-transfer item","2|Social security funds","2023_24","MTEF2023",2,2,1,895,278,"02","02","01","000895","000278","02|02|01",1,2,5,45,47,"01|02|05|45|47","National","Parliament","Legislation and Oversight","National Assembly","Non-transfer item","Current","Transfers and subsidies","Departmental agencies and accounts","Social security funds","Social security funds","General public services","Executive and legislative organs","NAT",0,0,0,0,0,0,0,0,0,0,0,null,null,null,null,null,null,null,null,null,null,null,null,null,null,null,null,null,null,null,null,null,null,null,null,null,null,null,null,null,null,{"$f":"Dataset[[#This Row],[2023/24 From - Spending review Topic 1]]+Dataset[[#This Row],[2023/24 From - Spending review Topic 2]]+Dataset[[#This Row],[2023/24 From - Spending review Topic 3]]+Dataset[[#This Row],[2023/24 From - Spending review Topic 4]]+Dataset[[#This Row],[2023/24 From - Other reallocations]]","v":0},{"$f":"Dataset[[#This Row],[2024/25 From - Spending review Topic 1]]+Dataset[[#This Row],[2024/25 From - Spending review Topic 2]]+Dataset[[#This Row],[2024/25 From - Spending review Topic 3]]+Dataset[[#This Row],[2024/25 From - Spending review Topic 4]]+Dataset[[#This Row],[2024/25 From - Other reallocations]]","v":0},{"$f":"Dataset[[#This Row],[2025/26 From - Spending review Topic 1]]+Dataset[[#This Row],[2025/26 From - Spending review Topic 2]]+Dataset[[#This Row],[2025/26 From - Spending review Topic 3]]+Dataset[[#This Row],[2025/26 From - Spending review Topic 4]]+Dataset[[#This Row],[2025/26 From - Other reallocations]]","v":0},{"$f":"Dataset[[#This Row],[2023/24 To - Spending review Topic 1]]+Dataset[[#This Row],[2023/24 To - Spending review Topic 2]]+Dataset[[#This Row],[2023/24 To - Spending review Topic 3]]+Dataset[[#This Row],[2023/24 To - Spending review Topic 4]]+Dataset[[#This Row],[2023/24 To - Other reallocations]]","v":0},{"$f":"Dataset[[#This Row],[2024/25 To - Spending review Topic 1]]+Dataset[[#This Row],[2024/25 To - Spending review Topic 2]]+Dataset[[#This Row],[2024/25 To - Spending review Topic 3]]+Dataset[[#This Row],[2024/25 To - Spending review Topic 4]]+Dataset[[#This Row],[2024/25 To - Other reallocations]]","v":0},{"$f":"Dataset[[#This Row],[2025/26 To - Spending review Topic 1]]+Dataset[[#This Row],[2025/26 To - Spending review Topic 2]]+Dataset[[#This Row],[2025/26 To - Spending review Topic 3]]+Dataset[[#This Row],[2025/26 To - Spending review Topic 4]]+Dataset[[#This Row],[2025/26 To - Other reallocations]]","v":0},{"$f":"Dataset[[#This Row],[2023/24 Baseline]]+Dataset[[#This Row],[2023/24 From - Total]]+Dataset[[#This Row],[2023/24 To - Total]]","v":0},{"$f":"Dataset[[#This Row],[2024/25 Baseline]]+Dataset[[#This Row],[2024/25 From - Total]]+Dataset[[#This Row],[2024/25 To - Total]]","v":0},{"$f":"Dataset[[#This Row],[2025/26 Baseline]]+Dataset[[#This Row],[2025/26 From - Total]]+Dataset[[#This Row],[2025/26 To - Total]]","v":0}]
["NAT|Non-transfer item","2|Departmental agencies (non-business entities)","2023_24","MTEF2023",2,2,1,896,279,"02","02","01","000896","000279","02|02|01",1,2,5,46,48,"01|02|05|46|48","National","Parliament","Legislation and Oversight","National Assembly","Non-transfer item","Current","Transfers and subsidies","Departmental agencies and accounts","Departmental agencies (non-business entities)","Departmental agencies (non-business entities)","General public services","Executive and legislative organs","NAT",0,0,0,0,0,0,0,0,0,0,0,null,null,null,null,null,null,null,null,null,null,null,null,null,null,null,null,null,null,null,null,null,null,null,null,null,null,null,null,null,null,{"$f":"Dataset[[#This Row],[2023/24 From - Spending review Topic 1]]+Dataset[[#This Row],[2023/24 From - Spending review Topic 2]]+Dataset[[#This Row],[2023/24 From - Spending review Topic 3]]+Dataset[[#This Row],[2023/24 From - Spending review Topic 4]]+Dataset[[#This Row],[2023/24 From - Other reallocations]]","v":0},{"$f":"Dataset[[#This Row],[2024/25 From - Spending review Topic 1]]+Dataset[[#This Row],[2024/25 From - Spending review Topic 2]]+Dataset[[#This Row],[2024/25 From - Spending review Topic 3]]+Dataset[[#This Row],[2024/25 From - Spending review Topic 4]]+Dataset[[#This Row],[2024/25 From - Other reallocations]]","v":0},{"$f":"Dataset[[#This Row],[2025/26 From - Spending review Topic 1]]+Dataset[[#This Row],[2025/26 From - Spending review Topic 2]]+Dataset[[#This Row],[2025/26 From - Spending review Topic 3]]+Dataset[[#This Row],[2025/26 From - Spending review Topic 4]]+Dataset[[#This Row],[2025/26 From - Other reallocations]]","v":0},{"$f":"Dataset[[#This Row],[2023/24 To - Spending review Topic 1]]+Dataset[[#This Row],[2023/24 To - Spending review Topic 2]]+Dataset[[#This Row],[2023/24 To - Spending review Topic 3]]+Dataset[[#This Row],[2023/24 To - Spending review Topic 4]]+Dataset[[#This Row],[2023/24 To - Other reallocations]]","v":0},{"$f":"Dataset[[#This Row],[2024/25 To - Spending review Topic 1]]+Dataset[[#This Row],[2024/25 To - Spending review Topic 2]]+Dataset[[#This Row],[2024/25 To - Spending review Topic 3]]+Dataset[[#This Row],[2024/25 To - Spending review Topic 4]]+Dataset[[#This Row],[2024/25 To - Other reallocations]]","v":0},{"$f":"Dataset[[#This Row],[2025/26 To - Spending review Topic 1]]+Dataset[[#This Row],[2025/26 To - Spending review Topic 2]]+Dataset[[#This Row],[2025/26 To - Spending review Topic 3]]+Dataset[[#This Row],[2025/26 To - Spending review Topic 4]]+Dataset[[#This Row],[2025/26 To - Other reallocations]]","v":0},{"$f":"Dataset[[#This Row],[2023/24 Baseline]]+Dataset[[#This Row],[2023/24 From - Total]]+Dataset[[#This Row],[2023/24 To - Total]]","v":0},{"$f":"Dataset[[#This Row],[2024/25 Baseline]]+Dataset[[#This Row],[2024/25 From - Total]]+Dataset[[#This Row],[2024/25 To - Total]]","v":0},{"$f":"Dataset[[#This Row],[2025/26 Baseline]]+Dataset[[#This Row],[2025/26 From - Total]]+Dataset[[#This Row],[2025/26 To - Total]]","v":0}]
["NAT|Non-transfer item","2|Higher education institutions","2023_24","MTEF2023",2,2,1,897,280,"02","02","01","000897","000280","02|02|01",1,2,6,47,49,"01|02|06|47|49","National","Parliament","Legislation and Oversight","National Assembly","Non-transfer item","Current","Transfers and subsidies","Higher education institutions","Higher education institutions","Higher education institutions","General public services","Executive and legislative organs","NAT",0,0,0,0,0,0,0,0,0,0,0,null,null,null,null,null,null,null,null,null,null,null,null,null,null,null,null,null,null,null,null,null,null,null,null,null,null,null,null,null,null,{"$f":"Dataset[[#This Row],[2023/24 From - Spending review Topic 1]]+Dataset[[#This Row],[2023/24 From - Spending review Topic 2]]+Dataset[[#This Row],[2023/24 From - Spending review Topic 3]]+Dataset[[#This Row],[2023/24 From - Spending review Topic 4]]+Dataset[[#This Row],[2023/24 From - Other reallocations]]","v":0},{"$f":"Dataset[[#This Row],[2024/25 From - Spending review Topic 1]]+Dataset[[#This Row],[2024/25 From - Spending review Topic 2]]+Dataset[[#This Row],[2024/25 From - Spending review Topic 3]]+Dataset[[#This Row],[2024/25 From - Spending review Topic 4]]+Dataset[[#This Row],[2024/25 From - Other reallocations]]","v":0},{"$f":"Dataset[[#This Row],[2025/26 From - Spending review Topic 1]]+Dataset[[#This Row],[2025/26 From - Spending review Topic 2]]+Dataset[[#This Row],[2025/26 From - Spending review Topic 3]]+Dataset[[#This Row],[2025/26 From - Spending review Topic 4]]+Dataset[[#This Row],[2025/26 From - Other reallocations]]","v":0},{"$f":"Dataset[[#This Row],[2023/24 To - Spending review Topic 1]]+Dataset[[#This Row],[2023/24 To - Spending review Topic 2]]+Dataset[[#This Row],[2023/24 To - Spending review Topic 3]]+Dataset[[#This Row],[2023/24 To - Spending review Topic 4]]+Dataset[[#This Row],[2023/24 To - Other reallocations]]","v":0},{"$f":"Dataset[[#This Row],[2024/25 To - Spending review Topic 1]]+Dataset[[#This Row],[2024/25 To - Spending review Topic 2]]+Dataset[[#This Row],[2024/25 To - Spending review Topic 3]]+Dataset[[#This Row],[2024/25 To - Spending review Topic 4]]+Dataset[[#This Row],[2024/25 To - Other reallocations]]","v":0},{"$f":"Dataset[[#This Row],[2025/26 To - Spending review Topic 1]]+Dataset[[#This Row],[2025/26 To - Spending review Topic 2]]+Dataset[[#This Row],[2025/26 To - Spending review Topic 3]]+Dataset[[#This Row],[2025/26 To - Spending review Topic 4]]+Dataset[[#This Row],[2025/26 To - Other reallocations]]","v":0},{"$f":"Dataset[[#This Row],[2023/24 Baseline]]+Dataset[[#This Row],[2023/24 From - Total]]+Dataset[[#This Row],[2023/24 To - Total]]","v":0},{"$f":"Dataset[[#This Row],[2024/25 Baseline]]+Dataset[[#This Row],[2024/25 From - Total]]+Dataset[[#This Row],[2024/25 To - Total]]","v":0},{"$f":"Dataset[[#This Row],[2025/26 Baseline]]+Dataset[[#This Row],[2025/26 From - Total]]+Dataset[[#This Row],[2025/26 To - Total]]","v":0}]
["NAT|Non-transfer item","2|Foreign governments and international organisations","2023_24","MTEF2023",2,2,1,898,281,"02","02","01","000898","000281","02|02|01",1,2,7,48,50,"01|02|07|48|50","National","Parliament","Legislation and Oversight","National Assembly","Non-transfer item","Current","Transfers and subsidies","Foreign governments and international organisations","Foreign governments and international organisations","Foreign governments and international organisations","General public services","Executive and legislative organs","NAT",0,0,0,0,0,0,0,0,0,0,0,null,null,null,null,null,null,null,null,null,null,null,null,null,null,null,null,null,null,null,null,null,null,null,null,null,null,null,null,null,null,{"$f":"Dataset[[#This Row],[2023/24 From - Spending review Topic 1]]+Dataset[[#This Row],[2023/24 From - Spending review Topic 2]]+Dataset[[#This Row],[2023/24 From - Spending review Topic 3]]+Dataset[[#This Row],[2023/24 From - Spending review Topic 4]]+Dataset[[#This Row],[2023/24 From - Other reallocations]]","v":0},{"$f":"Dataset[[#This Row],[2024/25 From - Spending review Topic 1]]+Dataset[[#This Row],[2024/25 From - Spending review Topic 2]]+Dataset[[#This Row],[2024/25 From - Spending review Topic 3]]+Dataset[[#This Row],[2024/25 From - Spending review Topic 4]]+Dataset[[#This Row],[2024/25 From - Other reallocations]]","v":0},{"$f":"Dataset[[#This Row],[2025/26 From - Spending review Topic 1]]+Dataset[[#This Row],[2025/26 From - Spending review Topic 2]]+Dataset[[#This Row],[2025/26 From - Spending review Topic 3]]+Dataset[[#This Row],[2025/26 From - Spending review Topic 4]]+Dataset[[#This Row],[2025/26 From - Other reallocations]]","v":0},{"$f":"Dataset[[#This Row],[2023/24 To - Spending review Topic 1]]+Dataset[[#This Row],[2023/24 To - Spending review Topic 2]]+Dataset[[#This Row],[2023/24 To - Spending review Topic 3]]+Dataset[[#This Row],[2023/24 To - Spending review Topic 4]]+Dataset[[#This Row],[2023/24 To - Other reallocations]]","v":0},{"$f":"Dataset[[#This Row],[2024/25 To - Spending review Topic 1]]+Dataset[[#This Row],[2024/25 To - Spending review Topic 2]]+Dataset[[#This Row],[2024/25 To - Spending review Topic 3]]+Dataset[[#This Row],[2024/25 To - Spending review Topic 4]]+Dataset[[#This Row],[2024/25 To - Other reallocations]]","v":0},{"$f":"Dataset[[#This Row],[2025/26 To - Spending review Topic 1]]+Dataset[[#This Row],[2025/26 To - Spending review Topic 2]]+Dataset[[#This Row],[2025/26 To - Spending review Topic 3]]+Dataset[[#This Row],[2025/26 To - Spending review Topic 4]]+Dataset[[#This Row],[2025/26 To - Other reallocations]]","v":0},{"$f":"Dataset[[#This Row],[2023/24 Baseline]]+Dataset[[#This Row],[2023/24 From - Total]]+Dataset[[#This Row],[2023/24 To - Total]]","v":0},{"$f":"Dataset[[#This Row],[2024/25 Baseline]]+Dataset[[#This Row],[2024/25 From - Total]]+Dataset[[#This Row],[2024/25 To - Total]]","v":0},{"$f":"Dataset[[#This Row],[2025/26 Baseline]]+Dataset[[#This Row],[2025/26 From - Total]]+Dataset[[#This Row],[2025/26 To - Total]]","v":0}]
["NAT|Non-transfer item","2|Subsidies on products and production (pc)","2023_24","MTEF2023",2,2,1,899,282,"02","02","01","000899","000282","02|02|01",1,2,8,49,51,"01|02|08|49|51","National","Parliament","Legislation and Oversight","National Assembly","Non-transfer item","Current","Transfers and subsidies","Public corporations and private enterprises","Public corporations","Subsidies on products and production (pc)","General public services","Executive and legislative organs","NAT",0,0,0,0,0,0,0,0,0,0,0,null,null,null,null,null,null,null,null,null,null,null,null,null,null,null,null,null,null,null,null,null,null,null,null,null,null,null,null,null,null,{"$f":"Dataset[[#This Row],[2023/24 From - Spending review Topic 1]]+Dataset[[#This Row],[2023/24 From - Spending review Topic 2]]+Dataset[[#This Row],[2023/24 From - Spending review Topic 3]]+Dataset[[#This Row],[2023/24 From - Spending review Topic 4]]+Dataset[[#This Row],[2023/24 From - Other reallocations]]","v":0},{"$f":"Dataset[[#This Row],[2024/25 From - Spending review Topic 1]]+Dataset[[#This Row],[2024/25 From - Spending review Topic 2]]+Dataset[[#This Row],[2024/25 From - Spending review Topic 3]]+Dataset[[#This Row],[2024/25 From - Spending review Topic 4]]+Dataset[[#This Row],[2024/25 From - Other reallocations]]","v":0},{"$f":"Dataset[[#This Row],[2025/26 From - Spending review Topic 1]]+Dataset[[#This Row],[2025/26 From - Spending review Topic 2]]+Dataset[[#This Row],[2025/26 From - Spending review Topic 3]]+Dataset[[#This Row],[2025/26 From - Spending review Topic 4]]+Dataset[[#This Row],[2025/26 From - Other reallocations]]","v":0},{"$f":"Dataset[[#This Row],[2023/24 To - Spending review Topic 1]]+Dataset[[#This Row],[2023/24 To - Spending review Topic 2]]+Dataset[[#This Row],[2023/24 To - Spending review Topic 3]]+Dataset[[#This Row],[2023/24 To - Spending review Topic 4]]+Dataset[[#This Row],[2023/24 To - Other reallocations]]","v":0},{"$f":"Dataset[[#This Row],[2024/25 To - Spending review Topic 1]]+Dataset[[#This Row],[2024/25 To - Spending review Topic 2]]+Dataset[[#This Row],[2024/25 To - Spending review Topic 3]]+Dataset[[#This Row],[2024/25 To - Spending review Topic 4]]+Dataset[[#This Row],[2024/25 To - Other reallocations]]","v":0},{"$f":"Dataset[[#This Row],[2025/26 To - Spending review Topic 1]]+Dataset[[#This Row],[2025/26 To - Spending review Topic 2]]+Dataset[[#This Row],[2025/26 To - Spending review Topic 3]]+Dataset[[#This Row],[2025/26 To - Spending review Topic 4]]+Dataset[[#This Row],[2025/26 To - Other reallocations]]","v":0},{"$f":"Dataset[[#This Row],[2023/24 Baseline]]+Dataset[[#This Row],[2023/24 From - Total]]+Dataset[[#This Row],[2023/24 To - Total]]","v":0},{"$f":"Dataset[[#This Row],[2024/25 Baseline]]+Dataset[[#This Row],[2024/25 From - Total]]+Dataset[[#This Row],[2024/25 To - Total]]","v":0},{"$f":"Dataset[[#This Row],[2025/26 Baseline]]+Dataset[[#This Row],[2025/26 From - Total]]+Dataset[[#This Row],[2025/26 To - Total]]","v":0}]
["NAT|Non-transfer item","2|Other transfers to public corporations","2023_24","MTEF2023",2,2,1,900,283,"02","02","01","000900","000283","02|02|01",1,2,8,49,52,"01|02|08|49|52","National","Parliament","Legislation and Oversight","National Assembly","Non-transfer item","Current","Transfers and subsidies","Public corporations and private enterprises","Public corporations","Other transfers to public corporations","General public services","Executive and legislative organs","NAT",0,0,0,0,0,0,0,0,0,0,0,null,null,null,null,null,null,null,null,null,null,null,null,null,null,null,null,null,null,null,null,null,null,null,null,null,null,null,null,null,null,{"$f":"Dataset[[#This Row],[2023/24 From - Spending review Topic 1]]+Dataset[[#This Row],[2023/24 From - Spending review Topic 2]]+Dataset[[#This Row],[2023/24 From - Spending review Topic 3]]+Dataset[[#This Row],[2023/24 From - Spending review Topic 4]]+Dataset[[#This Row],[2023/24 From - Other reallocations]]","v":0},{"$f":"Dataset[[#This Row],[2024/25 From - Spending review Topic 1]]+Dataset[[#This Row],[2024/25 From - Spending review Topic 2]]+Dataset[[#This Row],[2024/25 From - Spending review Topic 3]]+Dataset[[#This Row],[2024/25 From - Spending review Topic 4]]+Dataset[[#This Row],[2024/25 From - Other reallocations]]","v":0},{"$f":"Dataset[[#This Row],[2025/26 From - Spending review Topic 1]]+Dataset[[#This Row],[2025/26 From - Spending review Topic 2]]+Dataset[[#This Row],[2025/26 From - Spending review Topic 3]]+Dataset[[#This Row],[2025/26 From - Spending review Topic 4]]+Dataset[[#This Row],[2025/26 From - Other reallocations]]","v":0},{"$f":"Dataset[[#This Row],[2023/24 To - Spending review Topic 1]]+Dataset[[#This Row],[2023/24 To - Spending review Topic 2]]+Dataset[[#This Row],[2023/24 To - Spending review Topic 3]]+Dataset[[#This Row],[2023/24 To - Spending review Topic 4]]+Dataset[[#This Row],[2023/24 To - Other reallocations]]","v":0},{"$f":"Dataset[[#This Row],[2024/25 To - Spending review Topic 1]]+Dataset[[#This Row],[2024/25 To - Spending review Topic 2]]+Dataset[[#This Row],[2024/25 To - Spending review Topic 3]]+Dataset[[#This Row],[2024/25 To - Spending review Topic 4]]+Dataset[[#This Row],[2024/25 To - Other reallocations]]","v":0},{"$f":"Dataset[[#This Row],[2025/26 To - Spending review Topic 1]]+Dataset[[#This Row],[2025/26 To - Spending review Topic 2]]+Dataset[[#This Row],[2025/26 To - Spending review Topic 3]]+Dataset[[#This Row],[2025/26 To - Spending review Topic 4]]+Dataset[[#This Row],[2025/26 To - Other reallocations]]","v":0},{"$f":"Dataset[[#This Row],[2023/24 Baseline]]+Dataset[[#This Row],[2023/24 From - Total]]+Dataset[[#This Row],[2023/24 To - Total]]","v":0},{"$f":"Dataset[[#This Row],[2024/25 Baseline]]+Dataset[[#This Row],[2024/25 From - Total]]+Dataset[[#This Row],[2024/25 To - Total]]","v":0},{"$f":"Dataset[[#This Row],[2025/26 Baseline]]+Dataset[[#This Row],[2025/26 From - Total]]+Dataset[[#This Row],[2025/26 To - Total]]","v":0}]
["NAT|Non-transfer item","2|Subsidies on products and production (pe)","2023_24","MTEF2023",2,2,1,901,284,"02","02","01","000901","000284","02|02|01",1,2,8,50,53,"01|02|08|50|53","National","Parliament","Legislation and Oversight","National Assembly","Non-transfer item","Current","Transfers and subsidies","Public corporations and private enterprises","Private enterprises","Subsidies on products and production (pe)","General public services","Executive and legislative organs","NAT",0,0,0,0,0,0,0,0,0,0,0,null,null,null,null,null,null,null,null,null,null,null,null,null,null,null,null,null,null,null,null,null,null,null,null,null,null,null,null,null,null,{"$f":"Dataset[[#This Row],[2023/24 From - Spending review Topic 1]]+Dataset[[#This Row],[2023/24 From - Spending review Topic 2]]+Dataset[[#This Row],[2023/24 From - Spending review Topic 3]]+Dataset[[#This Row],[2023/24 From - Spending review Topic 4]]+Dataset[[#This Row],[2023/24 From - Other reallocations]]","v":0},{"$f":"Dataset[[#This Row],[2024/25 From - Spending review Topic 1]]+Dataset[[#This Row],[2024/25 From - Spending review Topic 2]]+Dataset[[#This Row],[2024/25 From - Spending review Topic 3]]+Dataset[[#This Row],[2024/25 From - Spending review Topic 4]]+Dataset[[#This Row],[2024/25 From - Other reallocations]]","v":0},{"$f":"Dataset[[#This Row],[2025/26 From - Spending review Topic 1]]+Dataset[[#This Row],[2025/26 From - Spending review Topic 2]]+Dataset[[#This Row],[2025/26 From - Spending review Topic 3]]+Dataset[[#This Row],[2025/26 From - Spending review Topic 4]]+Dataset[[#This Row],[2025/26 From - Other reallocations]]","v":0},{"$f":"Dataset[[#This Row],[2023/24 To - Spending review Topic 1]]+Dataset[[#This Row],[2023/24 To - Spending review Topic 2]]+Dataset[[#This Row],[2023/24 To - Spending review Topic 3]]+Dataset[[#This Row],[2023/24 To - Spending review Topic 4]]+Dataset[[#This Row],[2023/24 To - Other reallocations]]","v":0},{"$f":"Dataset[[#This Row],[2024/25 To - Spending review Topic 1]]+Dataset[[#This Row],[2024/25 To - Spending review Topic 2]]+Dataset[[#This Row],[2024/25 To - Spending review Topic 3]]+Dataset[[#This Row],[2024/25 To - Spending review Topic 4]]+Dataset[[#This Row],[2024/25 To - Other reallocations]]","v":0},{"$f":"Dataset[[#This Row],[2025/26 To - Spending review Topic 1]]+Dataset[[#This Row],[2025/26 To - Spending review Topic 2]]+Dataset[[#This Row],[2025/26 To - Spending review Topic 3]]+Dataset[[#This Row],[2025/26 To - Spending review Topic 4]]+Dataset[[#This Row],[2025/26 To - Other reallocations]]","v":0},{"$f":"Dataset[[#This Row],[2023/24 Baseline]]+Dataset[[#This Row],[2023/24 From - Total]]+Dataset[[#This Row],[2023/24 To - Total]]","v":0},{"$f":"Dataset[[#This Row],[2024/25 Baseline]]+Dataset[[#This Row],[2024/25 From - Total]]+Dataset[[#This Row],[2024/25 To - Total]]","v":0},{"$f":"Dataset[[#This Row],[2025/26 Baseline]]+Dataset[[#This Row],[2025/26 From - Total]]+Dataset[[#This Row],[2025/26 To - Total]]","v":0}]
["NAT|Non-transfer item","2|Other transfers to private enterprises","2023_24","MTEF2023",2,2,1,902,285,"02","02","01","000902","000285","02|02|01",1,2,8,50,54,"01|02|08|50|54","National","Parliament","Legislation and Oversight","National Assembly","Non-transfer item","Current","Transfers and subsidies","Public corporations and private enterprises","Private enterprises","Other transfers to private enterprises","General public services","Executive and legislative organs","NAT",0,0,0,0,0,0,0,0,0,0,0,null,null,null,null,null,null,null,null,null,null,null,null,null,null,null,null,null,null,null,null,null,null,null,null,null,null,null,null,null,null,{"$f":"Dataset[[#This Row],[2023/24 From - Spending review Topic 1]]+Dataset[[#This Row],[2023/24 From - Spending review Topic 2]]+Dataset[[#This Row],[2023/24 From - Spending review Topic 3]]+Dataset[[#This Row],[2023/24 From - Spending review Topic 4]]+Dataset[[#This Row],[2023/24 From - Other reallocations]]","v":0},{"$f":"Dataset[[#This Row],[2024/25 From - Spending review Topic 1]]+Dataset[[#This Row],[2024/25 From - Spending review Topic 2]]+Dataset[[#This Row],[2024/25 From - Spending review Topic 3]]+Dataset[[#This Row],[2024/25 From - Spending review Topic 4]]+Dataset[[#This Row],[2024/25 From - Other reallocations]]","v":0},{"$f":"Dataset[[#This Row],[2025/26 From - Spending review Topic 1]]+Dataset[[#This Row],[2025/26 From - Spending review Topic 2]]+Dataset[[#This Row],[2025/26 From - Spending review Topic 3]]+Dataset[[#This Row],[2025/26 From - Spending review Topic 4]]+Dataset[[#This Row],[2025/26 From - Other reallocations]]","v":0},{"$f":"Dataset[[#This Row],[2023/24 To - Spending review Topic 1]]+Dataset[[#This Row],[2023/24 To - Spending review Topic 2]]+Dataset[[#This Row],[2023/24 To - Spending review Topic 3]]+Dataset[[#This Row],[2023/24 To - Spending review Topic 4]]+Dataset[[#This Row],[2023/24 To - Other reallocations]]","v":0},{"$f":"Dataset[[#This Row],[2024/25 To - Spending review Topic 1]]+Dataset[[#This Row],[2024/25 To - Spending review Topic 2]]+Dataset[[#This Row],[2024/25 To - Spending review Topic 3]]+Dataset[[#This Row],[2024/25 To - Spending review Topic 4]]+Dataset[[#This Row],[2024/25 To - Other reallocations]]","v":0},{"$f":"Dataset[[#This Row],[2025/26 To - Spending review Topic 1]]+Dataset[[#This Row],[2025/26 To - Spending review Topic 2]]+Dataset[[#This Row],[2025/26 To - Spending review Topic 3]]+Dataset[[#This Row],[2025/26 To - Spending review Topic 4]]+Dataset[[#This Row],[2025/26 To - Other reallocations]]","v":0},{"$f":"Dataset[[#This Row],[2023/24 Baseline]]+Dataset[[#This Row],[2023/24 From - Total]]+Dataset[[#This Row],[2023/24 To - Total]]","v":0},{"$f":"Dataset[[#This Row],[2024/25 Baseline]]+Dataset[[#This Row],[2024/25 From - Total]]+Dataset[[#This Row],[2024/25 To - Total]]","v":0},{"$f":"Dataset[[#This Row],[2025/26 Baseline]]+Dataset[[#This Row],[2025/26 From - Total]]+Dataset[[#This Row],[2025/26 To - Total]]","v":0}]
["NAT|Non-transfer item","2|Non-profit institutions","2023_24","MTEF2023",2,2,1,903,286,"02","02","01","000903","000286","02|02|01",1,2,9,51,55,"01|02|09|51|55","National","Parliament","Legislation and Oversight","National Assembly","Non-transfer item","Current","Transfers and subsidies","Non-profit institutions","Non-profit institutions","Non-profit institutions","General public services","Executive and legislative organs","NAT",0,0,0,0,0,0,0,0,0,0,0,null,null,null,null,null,null,null,null,null,null,null,null,null,null,null,null,null,null,null,null,null,null,null,null,null,null,null,null,null,null,{"$f":"Dataset[[#This Row],[2023/24 From - Spending review Topic 1]]+Dataset[[#This Row],[2023/24 From - Spending review Topic 2]]+Dataset[[#This Row],[2023/24 From - Spending review Topic 3]]+Dataset[[#This Row],[2023/24 From - Spending review Topic 4]]+Dataset[[#This Row],[2023/24 From - Other reallocations]]","v":0},{"$f":"Dataset[[#This Row],[2024/25 From - Spending review Topic 1]]+Dataset[[#This Row],[2024/25 From - Spending review Topic 2]]+Dataset[[#This Row],[2024/25 From - Spending review Topic 3]]+Dataset[[#This Row],[2024/25 From - Spending review Topic 4]]+Dataset[[#This Row],[2024/25 From - Other reallocations]]","v":0},{"$f":"Dataset[[#This Row],[2025/26 From - Spending review Topic 1]]+Dataset[[#This Row],[2025/26 From - Spending review Topic 2]]+Dataset[[#This Row],[2025/26 From - Spending review Topic 3]]+Dataset[[#This Row],[2025/26 From - Spending review Topic 4]]+Dataset[[#This Row],[2025/26 From - Other reallocations]]","v":0},{"$f":"Dataset[[#This Row],[2023/24 To - Spending review Topic 1]]+Dataset[[#This Row],[2023/24 To - Spending review Topic 2]]+Dataset[[#This Row],[2023/24 To - Spending review Topic 3]]+Dataset[[#This Row],[2023/24 To - Spending review Topic 4]]+Dataset[[#This Row],[2023/24 To - Other reallocations]]","v":0},{"$f":"Dataset[[#This Row],[2024/25 To - Spending review Topic 1]]+Dataset[[#This Row],[2024/25 To - Spending review Topic 2]]+Dataset[[#This Row],[2024/25 To - Spending review Topic 3]]+Dataset[[#This Row],[2024/25 To - Spending review Topic 4]]+Dataset[[#This Row],[2024/25 To - Other reallocations]]","v":0},{"$f":"Dataset[[#This Row],[2025/26 To - Spending review Topic 1]]+Dataset[[#This Row],[2025/26 To - Spending review Topic 2]]+Dataset[[#This Row],[2025/26 To - Spending review Topic 3]]+Dataset[[#This Row],[2025/26 To - Spending review Topic 4]]+Dataset[[#This Row],[2025/26 To - Other reallocations]]","v":0},{"$f":"Dataset[[#This Row],[2023/24 Baseline]]+Dataset[[#This Row],[2023/24 From - Total]]+Dataset[[#This Row],[2023/24 To - Total]]","v":0},{"$f":"Dataset[[#This Row],[2024/25 Baseline]]+Dataset[[#This Row],[2024/25 From - Total]]+Dataset[[#This Row],[2024/25 To - Total]]","v":0},{"$f":"Dataset[[#This Row],[2025/26 Baseline]]+Dataset[[#This Row],[2025/26 From - Total]]+Dataset[[#This Row],[2025/26 To - Total]]","v":0}]
["NAT|Non-transfer item","2|Social benefits","2023_24","MTEF2023",2,2,1,904,287,"02","02","01","000904","000287","02|02|01",1,2,10,52,56,"01|02|10|52|56","National","Parliament","Legislation and Oversight","National Assembly","Non-transfer item","Current","Transfers and subsidies","Households","Social benefits","Social benefits","General public services","Executive and legislative organs","NAT",0,0,0,0,0,0,0,0,0,0,0,null,null,null,null,null,null,null,null,null,null,null,null,null,null,null,null,null,null,null,null,null,null,null,null,null,null,null,null,null,null,{"$f":"Dataset[[#This Row],[2023/24 From - Spending review Topic 1]]+Dataset[[#This Row],[2023/24 From - Spending review Topic 2]]+Dataset[[#This Row],[2023/24 From - Spending review Topic 3]]+Dataset[[#This Row],[2023/24 From - Spending review Topic 4]]+Dataset[[#This Row],[2023/24 From - Other reallocations]]","v":0},{"$f":"Dataset[[#This Row],[2024/25 From - Spending review Topic 1]]+Dataset[[#This Row],[2024/25 From - Spending review Topic 2]]+Dataset[[#This Row],[2024/25 From - Spending review Topic 3]]+Dataset[[#This Row],[2024/25 From - Spending review Topic 4]]+Dataset[[#This Row],[2024/25 From - Other reallocations]]","v":0},{"$f":"Dataset[[#This Row],[2025/26 From - Spending review Topic 1]]+Dataset[[#This Row],[2025/26 From - Spending review Topic 2]]+Dataset[[#This Row],[2025/26 From - Spending review Topic 3]]+Dataset[[#This Row],[2025/26 From - Spending review Topic 4]]+Dataset[[#This Row],[2025/26 From - Other reallocations]]","v":0},{"$f":"Dataset[[#This Row],[2023/24 To - Spending review Topic 1]]+Dataset[[#This Row],[2023/24 To - Spending review Topic 2]]+Dataset[[#This Row],[2023/24 To - Spending review Topic 3]]+Dataset[[#This Row],[2023/24 To - Spending review Topic 4]]+Dataset[[#This Row],[2023/24 To - Other reallocations]]","v":0},{"$f":"Dataset[[#This Row],[2024/25 To - Spending review Topic 1]]+Dataset[[#This Row],[2024/25 To - Spending review Topic 2]]+Dataset[[#This Row],[2024/25 To - Spending review Topic 3]]+Dataset[[#This Row],[2024/25 To - Spending review Topic 4]]+Dataset[[#This Row],[2024/25 To - Other reallocations]]","v":0},{"$f":"Dataset[[#This Row],[2025/26 To - Spending review Topic 1]]+Dataset[[#This Row],[2025/26 To - Spending review Topic 2]]+Dataset[[#This Row],[2025/26 To - Spending review Topic 3]]+Dataset[[#This Row],[2025/26 To - Spending review Topic 4]]+Dataset[[#This Row],[2025/26 To - Other reallocations]]","v":0},{"$f":"Dataset[[#This Row],[2023/24 Baseline]]+Dataset[[#This Row],[2023/24 From - Total]]+Dataset[[#This Row],[2023/24 To - Total]]","v":0},{"$f":"Dataset[[#This Row],[2024/25 Baseline]]+Dataset[[#This Row],[2024/25 From - Total]]+Dataset[[#This Row],[2024/25 To - Total]]","v":0},{"$f":"Dataset[[#This Row],[2025/26 Baseline]]+Dataset[[#This Row],[2025/26 From - Total]]+Dataset[[#This Row],[2025/26 To - Total]]","v":0}]
["NAT|Non-transfer item","2|Other transfers to households","2023_24","MTEF2023",2,2,1,905,288,"02","02","01","000905","000288","02|02|01",1,2,10,53,57,"01|02|10|53|57","National","Parliament","Legislation and Oversight","National Assembly","Non-transfer item","Current","Transfers and subsidies","Households","Other transfers to households","Other transfers to households","General public services","Executive and legislative organs","NAT",0,0,0,0,0,0,0,0,0,0,0,null,null,null,null,null,null,null,null,null,null,null,null,null,null,null,null,null,null,null,null,null,null,null,null,null,null,null,null,null,null,{"$f":"Dataset[[#This Row],[2023/24 From - Spending review Topic 1]]+Dataset[[#This Row],[2023/24 From - Spending review Topic 2]]+Dataset[[#This Row],[2023/24 From - Spending review Topic 3]]+Dataset[[#This Row],[2023/24 From - Spending review Topic 4]]+Dataset[[#This Row],[2023/24 From - Other reallocations]]","v":0},{"$f":"Dataset[[#This Row],[2024/25 From - Spending review Topic 1]]+Dataset[[#This Row],[2024/25 From - Spending review Topic 2]]+Dataset[[#This Row],[2024/25 From - Spending review Topic 3]]+Dataset[[#This Row],[2024/25 From - Spending review Topic 4]]+Dataset[[#This Row],[2024/25 From - Other reallocations]]","v":0},{"$f":"Dataset[[#This Row],[2025/26 From - Spending review Topic 1]]+Dataset[[#This Row],[2025/26 From - Spending review Topic 2]]+Dataset[[#This Row],[2025/26 From - Spending review Topic 3]]+Dataset[[#This Row],[2025/26 From - Spending review Topic 4]]+Dataset[[#This Row],[2025/26 From - Other reallocations]]","v":0},{"$f":"Dataset[[#This Row],[2023/24 To - Spending review Topic 1]]+Dataset[[#This Row],[2023/24 To - Spending review Topic 2]]+Dataset[[#This Row],[2023/24 To - Spending review Topic 3]]+Dataset[[#This Row],[2023/24 To - Spending review Topic 4]]+Dataset[[#This Row],[2023/24 To - Other reallocations]]","v":0},{"$f":"Dataset[[#This Row],[2024/25 To - Spending review Topic 1]]+Dataset[[#This Row],[2024/25 To - Spending review Topic 2]]+Dataset[[#This Row],[2024/25 To - Spending review Topic 3]]+Dataset[[#This Row],[2024/25 To - Spending review Topic 4]]+Dataset[[#This Row],[2024/25 To - Other reallocations]]","v":0},{"$f":"Dataset[[#This Row],[2025/26 To - Spending review Topic 1]]+Dataset[[#This Row],[2025/26 To - Spending review Topic 2]]+Dataset[[#This Row],[2025/26 To - Spending review Topic 3]]+Dataset[[#This Row],[2025/26 To - Spending review Topic 4]]+Dataset[[#This Row],[2025/26 To - Other reallocations]]","v":0},{"$f":"Dataset[[#This Row],[2023/24 Baseline]]+Dataset[[#This Row],[2023/24 From - Total]]+Dataset[[#This Row],[2023/24 To - Total]]","v":0},{"$f":"Dataset[[#This Row],[2024/25 Baseline]]+Dataset[[#This Row],[2024/25 From - Total]]+Dataset[[#This Row],[2024/25 To - Total]]","v":0},{"$f":"Dataset[[#This Row],[2025/26 Baseline]]+Dataset[[#This Row],[2025/26 From - Total]]+Dataset[[#This Row],[2025/26 To - Total]]","v":0}]
["NAT|Non-transfer item","2|Provincial Revenue Funds","2023_24","MTEF2023",2,2,1,906,289,"02","02","01","000906","000289","02|02|01",2,2,4,43,43,"02|02|04|43|43","National","Parliament","Legislation and Oversight","National Assembly","Non-transfer item","Capital","Transfers and subsidies","Provinces and municipalities","Provinces","Provincial Revenue Funds","General public services","Executive and legislative organs","NAT",0,0,0,0,0,0,0,0,0,0,0,null,null,null,null,null,null,null,null,null,null,null,null,null,null,null,null,null,null,null,null,null,null,null,null,null,null,null,null,null,null,{"$f":"Dataset[[#This Row],[2023/24 From - Spending review Topic 1]]+Dataset[[#This Row],[2023/24 From - Spending review Topic 2]]+Dataset[[#This Row],[2023/24 From - Spending review Topic 3]]+Dataset[[#This Row],[2023/24 From - Spending review Topic 4]]+Dataset[[#This Row],[2023/24 From - Other reallocations]]","v":0},{"$f":"Dataset[[#This Row],[2024/25 From - Spending review Topic 1]]+Dataset[[#This Row],[2024/25 From - Spending review Topic 2]]+Dataset[[#This Row],[2024/25 From - Spending review Topic 3]]+Dataset[[#This Row],[2024/25 From - Spending review Topic 4]]+Dataset[[#This Row],[2024/25 From - Other reallocations]]","v":0},{"$f":"Dataset[[#This Row],[2025/26 From - Spending review Topic 1]]+Dataset[[#This Row],[2025/26 From - Spending review Topic 2]]+Dataset[[#This Row],[2025/26 From - Spending review Topic 3]]+Dataset[[#This Row],[2025/26 From - Spending review Topic 4]]+Dataset[[#This Row],[2025/26 From - Other reallocations]]","v":0},{"$f":"Dataset[[#This Row],[2023/24 To - Spending review Topic 1]]+Dataset[[#This Row],[2023/24 To - Spending review Topic 2]]+Dataset[[#This Row],[2023/24 To - Spending review Topic 3]]+Dataset[[#This Row],[2023/24 To - Spending review Topic 4]]+Dataset[[#This Row],[2023/24 To - Other reallocations]]","v":0},{"$f":"Dataset[[#This Row],[2024/25 To - Spending review Topic 1]]+Dataset[[#This Row],[2024/25 To - Spending review Topic 2]]+Dataset[[#This Row],[2024/25 To - Spending review Topic 3]]+Dataset[[#This Row],[2024/25 To - Spending review Topic 4]]+Dataset[[#This Row],[2024/25 To - Other reallocations]]","v":0},{"$f":"Dataset[[#This Row],[2025/26 To - Spending review Topic 1]]+Dataset[[#This Row],[2025/26 To - Spending review Topic 2]]+Dataset[[#This Row],[2025/26 To - Spending review Topic 3]]+Dataset[[#This Row],[2025/26 To - Spending review Topic 4]]+Dataset[[#This Row],[2025/26 To - Other reallocations]]","v":0},{"$f":"Dataset[[#This Row],[2023/24 Baseline]]+Dataset[[#This Row],[2023/24 From - Total]]+Dataset[[#This Row],[2023/24 To - Total]]","v":0},{"$f":"Dataset[[#This Row],[2024/25 Baseline]]+Dataset[[#This Row],[2024/25 From - Total]]+Dataset[[#This Row],[2024/25 To - Total]]","v":0},{"$f":"Dataset[[#This Row],[2025/26 Baseline]]+Dataset[[#This Row],[2025/26 From - Total]]+Dataset[[#This Row],[2025/26 To - Total]]","v":0}]
["NAT|Non-transfer item","2|Municipal bank accounts","2023_24","MTEF2023",2,2,1,907,290,"02","02","01","000907","000290","02|02|01",2,2,4,44,45,"02|02|04|44|45","National","Parliament","Legislation and Oversight","National Assembly","Non-transfer item","Capital","Transfers and subsidies","Provinces and municipalities","Municipalities","Municipal bank accounts","General public services","Executive and legislative organs","NAT",0,0,0,0,0,0,0,0,0,0,0,null,null,null,null,null,null,null,null,null,null,null,null,null,null,null,null,null,null,null,null,null,null,null,null,null,null,null,null,null,null,{"$f":"Dataset[[#This Row],[2023/24 From - Spending review Topic 1]]+Dataset[[#This Row],[2023/24 From - Spending review Topic 2]]+Dataset[[#This Row],[2023/24 From - Spending review Topic 3]]+Dataset[[#This Row],[2023/24 From - Spending review Topic 4]]+Dataset[[#This Row],[2023/24 From - Other reallocations]]","v":0},{"$f":"Dataset[[#This Row],[2024/25 From - Spending review Topic 1]]+Dataset[[#This Row],[2024/25 From - Spending review Topic 2]]+Dataset[[#This Row],[2024/25 From - Spending review Topic 3]]+Dataset[[#This Row],[2024/25 From - Spending review Topic 4]]+Dataset[[#This Row],[2024/25 From - Other reallocations]]","v":0},{"$f":"Dataset[[#This Row],[2025/26 From - Spending review Topic 1]]+Dataset[[#This Row],[2025/26 From - Spending review Topic 2]]+Dataset[[#This Row],[2025/26 From - Spending review Topic 3]]+Dataset[[#This Row],[2025/26 From - Spending review Topic 4]]+Dataset[[#This Row],[2025/26 From - Other reallocations]]","v":0},{"$f":"Dataset[[#This Row],[2023/24 To - Spending review Topic 1]]+Dataset[[#This Row],[2023/24 To - Spending review Topic 2]]+Dataset[[#This Row],[2023/24 To - Spending review Topic 3]]+Dataset[[#This Row],[2023/24 To - Spending review Topic 4]]+Dataset[[#This Row],[2023/24 To - Other reallocations]]","v":0},{"$f":"Dataset[[#This Row],[2024/25 To - Spending review Topic 1]]+Dataset[[#This Row],[2024/25 To - Spending review Topic 2]]+Dataset[[#This Row],[2024/25 To - Spending review Topic 3]]+Dataset[[#This Row],[2024/25 To - Spending review Topic 4]]+Dataset[[#This Row],[2024/25 To - Other reallocations]]","v":0},{"$f":"Dataset[[#This Row],[2025/26 To - Spending review Topic 1]]+Dataset[[#This Row],[2025/26 To - Spending review Topic 2]]+Dataset[[#This Row],[2025/26 To - Spending review Topic 3]]+Dataset[[#This Row],[2025/26 To - Spending review Topic 4]]+Dataset[[#This Row],[2025/26 To - Other reallocations]]","v":0},{"$f":"Dataset[[#This Row],[2023/24 Baseline]]+Dataset[[#This Row],[2023/24 From - Total]]+Dataset[[#This Row],[2023/24 To - Total]]","v":0},{"$f":"Dataset[[#This Row],[2024/25 Baseline]]+Dataset[[#This Row],[2024/25 From - Total]]+Dataset[[#This Row],[2024/25 To - Total]]","v":0},{"$f":"Dataset[[#This Row],[2025/26 Baseline]]+Dataset[[#This Row],[2025/26 From - Total]]+Dataset[[#This Row],[2025/26 To - Total]]","v":0}]
["NAT|Non-transfer item","2|Departmental agencies (non-business entities)","2023_24","MTEF2023",2,2,1,908,291,"02","02","01","000908","000291","02|02|01",2,2,5,46,48,"02|02|05|46|48","National","Parliament","Legislation and Oversight","National Assembly","Non-transfer item","Capital","Transfers and subsidies","Departmental agencies and accounts","Departmental agencies (non-business entities)","Departmental agencies (non-business entities)","General public services","Executive and legislative organs","NAT",0,0,0,0,0,0,0,0,0,0,0,null,null,null,null,null,null,null,null,null,null,null,null,null,null,null,null,null,null,null,null,null,null,null,null,null,null,null,null,null,null,{"$f":"Dataset[[#This Row],[2023/24 From - Spending review Topic 1]]+Dataset[[#This Row],[2023/24 From - Spending review Topic 2]]+Dataset[[#This Row],[2023/24 From - Spending review Topic 3]]+Dataset[[#This Row],[2023/24 From - Spending review Topic 4]]+Dataset[[#This Row],[2023/24 From - Other reallocations]]","v":0},{"$f":"Dataset[[#This Row],[2024/25 From - Spending review Topic 1]]+Dataset[[#This Row],[2024/25 From - Spending review Topic 2]]+Dataset[[#This Row],[2024/25 From - Spending review Topic 3]]+Dataset[[#This Row],[2024/25 From - Spending review Topic 4]]+Dataset[[#This Row],[2024/25 From - Other reallocations]]","v":0},{"$f":"Dataset[[#This Row],[2025/26 From - Spending review Topic 1]]+Dataset[[#This Row],[2025/26 From - Spending review Topic 2]]+Dataset[[#This Row],[2025/26 From - Spending review Topic 3]]+Dataset[[#This Row],[2025/26 From - Spending review Topic 4]]+Dataset[[#This Row],[2025/26 From - Other reallocations]]","v":0},{"$f":"Dataset[[#This Row],[2023/24 To - Spending review Topic 1]]+Dataset[[#This Row],[2023/24 To - Spending review Topic 2]]+Dataset[[#This Row],[2023/24 To - Spending review Topic 3]]+Dataset[[#This Row],[2023/24 To - Spending review Topic 4]]+Dataset[[#This Row],[2023/24 To - Other reallocations]]","v":0},{"$f":"Dataset[[#This Row],[2024/25 To - Spending review Topic 1]]+Dataset[[#This Row],[2024/25 To - Spending review Topic 2]]+Dataset[[#This Row],[2024/25 To - Spending review Topic 3]]+Dataset[[#This Row],[2024/25 To - Spending review Topic 4]]+Dataset[[#This Row],[2024/25 To - Other reallocations]]","v":0},{"$f":"Dataset[[#This Row],[2025/26 To - Spending review Topic 1]]+Dataset[[#This Row],[2025/26 To - Spending review Topic 2]]+Dataset[[#This Row],[2025/26 To - Spending review Topic 3]]+Dataset[[#This Row],[2025/26 To - Spending review Topic 4]]+Dataset[[#This Row],[2025/26 To - Other reallocations]]","v":0},{"$f":"Dataset[[#This Row],[2023/24 Baseline]]+Dataset[[#This Row],[2023/24 From - Total]]+Dataset[[#This Row],[2023/24 To - Total]]","v":0},{"$f":"Dataset[[#This Row],[2024/25 Baseline]]+Dataset[[#This Row],[2024/25 From - Total]]+Dataset[[#This Row],[2024/25 To - Total]]","v":0},{"$f":"Dataset[[#This Row],[2025/26 Baseline]]+Dataset[[#This Row],[2025/26 From - Total]]+Dataset[[#This Row],[2025/26 To - Total]]","v":0}]
["NAT|Non-transfer item","2|Higher education institutions","2023_24","MTEF2023",2,2,1,909,292,"02","02","01","000909","000292","02|02|01",2,2,6,47,49,"02|02|06|47|49","National","Parliament","Legislation and Oversight","National Assembly","Non-transfer item","Capital","Transfers and subsidies","Higher education institutions","Higher education institutions","Higher education institutions","General public services","Executive and legislative organs","NAT",0,0,0,0,0,0,0,0,0,0,0,null,null,null,null,null,null,null,null,null,null,null,null,null,null,null,null,null,null,null,null,null,null,null,null,null,null,null,null,null,null,{"$f":"Dataset[[#This Row],[2023/24 From - Spending review Topic 1]]+Dataset[[#This Row],[2023/24 From - Spending review Topic 2]]+Dataset[[#This Row],[2023/24 From - Spending review Topic 3]]+Dataset[[#This Row],[2023/24 From - Spending review Topic 4]]+Dataset[[#This Row],[2023/24 From - Other reallocations]]","v":0},{"$f":"Dataset[[#This Row],[2024/25 From - Spending review Topic 1]]+Dataset[[#This Row],[2024/25 From - Spending review Topic 2]]+Dataset[[#This Row],[2024/25 From - Spending review Topic 3]]+Dataset[[#This Row],[2024/25 From - Spending review Topic 4]]+Dataset[[#This Row],[2024/25 From - Other reallocations]]","v":0},{"$f":"Dataset[[#This Row],[2025/26 From - Spending review Topic 1]]+Dataset[[#This Row],[2025/26 From - Spending review Topic 2]]+Dataset[[#This Row],[2025/26 From - Spending review Topic 3]]+Dataset[[#This Row],[2025/26 From - Spending review Topic 4]]+Dataset[[#This Row],[2025/26 From - Other reallocations]]","v":0},{"$f":"Dataset[[#This Row],[2023/24 To - Spending review Topic 1]]+Dataset[[#This Row],[2023/24 To - Spending review Topic 2]]+Dataset[[#This Row],[2023/24 To - Spending review Topic 3]]+Dataset[[#This Row],[2023/24 To - Spending review Topic 4]]+Dataset[[#This Row],[2023/24 To - Other reallocations]]","v":0},{"$f":"Dataset[[#This Row],[2024/25 To - Spending review Topic 1]]+Dataset[[#This Row],[2024/25 To - Spending review Topic 2]]+Dataset[[#This Row],[2024/25 To - Spending review Topic 3]]+Dataset[[#This Row],[2024/25 To - Spending review Topic 4]]+Dataset[[#This Row],[2024/25 To - Other reallocations]]","v":0},{"$f":"Dataset[[#This Row],[2025/26 To - Spending review Topic 1]]+Dataset[[#This Row],[2025/26 To - Spending review Topic 2]]+Dataset[[#This Row],[2025/26 To - Spending review Topic 3]]+Dataset[[#This Row],[2025/26 To - Spending review Topic 4]]+Dataset[[#This Row],[2025/26 To - Other reallocations]]","v":0},{"$f":"Dataset[[#This Row],[2023/24 Baseline]]+Dataset[[#This Row],[2023/24 From - Total]]+Dataset[[#This Row],[2023/24 To - Total]]","v":0},{"$f":"Dataset[[#This Row],[2024/25 Baseline]]+Dataset[[#This Row],[2024/25 From - Total]]+Dataset[[#This Row],[2024/25 To - Total]]","v":0},{"$f":"Dataset[[#This Row],[2025/26 Baseline]]+Dataset[[#This Row],[2025/26 From - Total]]+Dataset[[#This Row],[2025/26 To - Total]]","v":0}]
["NAT|Non-transfer item","2|Foreign governments and international organisations","2023_24","MTEF2023",2,2,1,910,293,"02","02","01","000910","000293","02|02|01",2,2,7,48,50,"02|02|07|48|50","National","Parliament","Legislation and Oversight","National Assembly","Non-transfer item","Capital","Transfers and subsidies","Foreign governments and international organisations","Foreign governments and international organisations","Foreign governments and international organisations","General public services","Executive and legislative organs","NAT",0,0,0,0,0,0,0,0,0,0,0,null,null,null,null,null,null,null,null,null,null,null,null,null,null,null,null,null,null,null,null,null,null,null,null,null,null,null,null,null,null,{"$f":"Dataset[[#This Row],[2023/24 From - Spending review Topic 1]]+Dataset[[#This Row],[2023/24 From - Spending review Topic 2]]+Dataset[[#This Row],[2023/24 From - Spending review Topic 3]]+Dataset[[#This Row],[2023/24 From - Spending review Topic 4]]+Dataset[[#This Row],[2023/24 From - Other reallocations]]","v":0},{"$f":"Dataset[[#This Row],[2024/25 From - Spending review Topic 1]]+Dataset[[#This Row],[2024/25 From - Spending review Topic 2]]+Dataset[[#This Row],[2024/25 From - Spending review Topic 3]]+Dataset[[#This Row],[2024/25 From - Spending review Topic 4]]+Dataset[[#This Row],[2024/25 From - Other reallocations]]","v":0},{"$f":"Dataset[[#This Row],[2025/26 From - Spending review Topic 1]]+Dataset[[#This Row],[2025/26 From - Spending review Topic 2]]+Dataset[[#This Row],[2025/26 From - Spending review Topic 3]]+Dataset[[#This Row],[2025/26 From - Spending review Topic 4]]+Dataset[[#This Row],[2025/26 From - Other reallocations]]","v":0},{"$f":"Dataset[[#This Row],[2023/24 To - Spending review Topic 1]]+Dataset[[#This Row],[2023/24 To - Spending review Topic 2]]+Dataset[[#This Row],[2023/24 To - Spending review Topic 3]]+Dataset[[#This Row],[2023/24 To - Spending review Topic 4]]+Dataset[[#This Row],[2023/24 To - Other reallocations]]","v":0},{"$f":"Dataset[[#This Row],[2024/25 To - Spending review Topic 1]]+Dataset[[#This Row],[2024/25 To - Spending review Topic 2]]+Dataset[[#This Row],[2024/25 To - Spending review Topic 3]]+Dataset[[#This Row],[2024/25 To - Spending review Topic 4]]+Dataset[[#This Row],[2024/25 To - Other reallocations]]","v":0},{"$f":"Dataset[[#This Row],[2025/26 To - Spending review Topic 1]]+Dataset[[#This Row],[2025/26 To - Spending review Topic 2]]+Dataset[[#This Row],[2025/26 To - Spending review Topic 3]]+Dataset[[#This Row],[2025/26 To - Spending review Topic 4]]+Dataset[[#This Row],[2025/26 To - Other reallocations]]","v":0},{"$f":"Dataset[[#This Row],[2023/24 Baseline]]+Dataset[[#This Row],[2023/24 From - Total]]+Dataset[[#This Row],[2023/24 To - Total]]","v":0},{"$f":"Dataset[[#This Row],[2024/25 Baseline]]+Dataset[[#This Row],[2024/25 From - Total]]+Dataset[[#This Row],[2024/25 To - Total]]","v":0},{"$f":"Dataset[[#This Row],[2025/26 Baseline]]+Dataset[[#This Row],[2025/26 From - Total]]+Dataset[[#This Row],[2025/26 To - Total]]","v":0}]
["NAT|Non-transfer item","2|Subsidies on products and production (pc)","2023_24","MTEF2023",2,2,1,911,294,"02","02","01","000911","000294","02|02|01",2,2,8,49,51,"02|02|08|49|51","National","Parliament","Legislation and Oversight","National Assembly","Non-transfer item","Capital","Transfers and subsidies","Public corporations and private enterprises","Public corporations","Subsidies on products and production (pc)","General public services","Executive and legislative organs","NAT",0,0,0,0,0,0,0,0,0,0,0,null,null,null,null,null,null,null,null,null,null,null,null,null,null,null,null,null,null,null,null,null,null,null,null,null,null,null,null,null,null,{"$f":"Dataset[[#This Row],[2023/24 From - Spending review Topic 1]]+Dataset[[#This Row],[2023/24 From - Spending review Topic 2]]+Dataset[[#This Row],[2023/24 From - Spending review Topic 3]]+Dataset[[#This Row],[2023/24 From - Spending review Topic 4]]+Dataset[[#This Row],[2023/24 From - Other reallocations]]","v":0},{"$f":"Dataset[[#This Row],[2024/25 From - Spending review Topic 1]]+Dataset[[#This Row],[2024/25 From - Spending review Topic 2]]+Dataset[[#This Row],[2024/25 From - Spending review Topic 3]]+Dataset[[#This Row],[2024/25 From - Spending review Topic 4]]+Dataset[[#This Row],[2024/25 From - Other reallocations]]","v":0},{"$f":"Dataset[[#This Row],[2025/26 From - Spending review Topic 1]]+Dataset[[#This Row],[2025/26 From - Spending review Topic 2]]+Dataset[[#This Row],[2025/26 From - Spending review Topic 3]]+Dataset[[#This Row],[2025/26 From - Spending review Topic 4]]+Dataset[[#This Row],[2025/26 From - Other reallocations]]","v":0},{"$f":"Dataset[[#This Row],[2023/24 To - Spending review Topic 1]]+Dataset[[#This Row],[2023/24 To - Spending review Topic 2]]+Dataset[[#This Row],[2023/24 To - Spending review Topic 3]]+Dataset[[#This Row],[2023/24 To - Spending review Topic 4]]+Dataset[[#This Row],[2023/24 To - Other reallocations]]","v":0},{"$f":"Dataset[[#This Row],[2024/25 To - Spending review Topic 1]]+Dataset[[#This Row],[2024/25 To - Spending review Topic 2]]+Dataset[[#This Row],[2024/25 To - Spending review Topic 3]]+Dataset[[#This Row],[2024/25 To - Spending review Topic 4]]+Dataset[[#This Row],[2024/25 To - Other reallocations]]","v":0},{"$f":"Dataset[[#This Row],[2025/26 To - Spending review Topic 1]]+Dataset[[#This Row],[2025/26 To - Spending review Topic 2]]+Dataset[[#This Row],[2025/26 To - Spending review Topic 3]]+Dataset[[#This Row],[2025/26 To - Spending review Topic 4]]+Dataset[[#This Row],[2025/26 To - Other reallocations]]","v":0},{"$f":"Dataset[[#This Row],[2023/24 Baseline]]+Dataset[[#This Row],[2023/24 From - Total]]+Dataset[[#This Row],[2023/24 To - Total]]","v":0},{"$f":"Dataset[[#This Row],[2024/25 Baseline]]+Dataset[[#This Row],[2024/25 From - Total]]+Dataset[[#This Row],[2024/25 To - Total]]","v":0},{"$f":"Dataset[[#This Row],[2025/26 Baseline]]+Dataset[[#This Row],[2025/26 From - Total]]+Dataset[[#This Row],[2025/26 To - Total]]","v":0}]
["NAT|Non-transfer item","2|Other transfers to public corporations","2023_24","MTEF2023",2,2,1,912,295,"02","02","01","000912","000295","02|02|01",2,2,8,49,52,"02|02|08|49|52","National","Parliament","Legislation and Oversight","National Assembly","Non-transfer item","Capital","Transfers and subsidies","Public corporations and private enterprises","Public corporations","Other transfers to public corporations","General public services","Executive and legislative organs","NAT",0,0,0,0,0,0,0,0,0,0,0,null,null,null,null,null,null,null,null,null,null,null,null,null,null,null,null,null,null,null,null,null,null,null,null,null,null,null,null,null,null,{"$f":"Dataset[[#This Row],[2023/24 From - Spending review Topic 1]]+Dataset[[#This Row],[2023/24 From - Spending review Topic 2]]+Dataset[[#This Row],[2023/24 From - Spending review Topic 3]]+Dataset[[#This Row],[2023/24 From - Spending review Topic 4]]+Dataset[[#This Row],[2023/24 From - Other reallocations]]","v":0},{"$f":"Dataset[[#This Row],[2024/25 From - Spending review Topic 1]]+Dataset[[#This Row],[2024/25 From - Spending review Topic 2]]+Dataset[[#This Row],[2024/25 From - Spending review Topic 3]]+Dataset[[#This Row],[2024/25 From - Spending review Topic 4]]+Dataset[[#This Row],[2024/25 From - Other reallocations]]","v":0},{"$f":"Dataset[[#This Row],[2025/26 From - Spending review Topic 1]]+Dataset[[#This Row],[2025/26 From - Spending review Topic 2]]+Dataset[[#This Row],[2025/26 From - Spending review Topic 3]]+Dataset[[#This Row],[2025/26 From - Spending review Topic 4]]+Dataset[[#This Row],[2025/26 From - Other reallocations]]","v":0},{"$f":"Dataset[[#This Row],[2023/24 To - Spending review Topic 1]]+Dataset[[#This Row],[2023/24 To - Spending review Topic 2]]+Dataset[[#This Row],[2023/24 To - Spending review Topic 3]]+Dataset[[#This Row],[2023/24 To - Spending review Topic 4]]+Dataset[[#This Row],[2023/24 To - Other reallocations]]","v":0},{"$f":"Dataset[[#This Row],[2024/25 To - Spending review Topic 1]]+Dataset[[#This Row],[2024/25 To - Spending review Topic 2]]+Dataset[[#This Row],[2024/25 To - Spending review Topic 3]]+Dataset[[#This Row],[2024/25 To - Spending review Topic 4]]+Dataset[[#This Row],[2024/25 To - Other reallocations]]","v":0},{"$f":"Dataset[[#This Row],[2025/26 To - Spending review Topic 1]]+Dataset[[#This Row],[2025/26 To - Spending review Topic 2]]+Dataset[[#This Row],[2025/26 To - Spending review Topic 3]]+Dataset[[#This Row],[2025/26 To - Spending review Topic 4]]+Dataset[[#This Row],[2025/26 To - Other reallocations]]","v":0},{"$f":"Dataset[[#This Row],[2023/24 Baseline]]+Dataset[[#This Row],[2023/24 From - Total]]+Dataset[[#This Row],[2023/24 To - Total]]","v":0},{"$f":"Dataset[[#This Row],[2024/25 Baseline]]+Dataset[[#This Row],[2024/25 From - Total]]+Dataset[[#This Row],[2024/25 To - Total]]","v":0},{"$f":"Dataset[[#This Row],[2025/26 Baseline]]+Dataset[[#This Row],[2025/26 From - Total]]+Dataset[[#This Row],[2025/26 To - Total]]","v":0}]
["NAT|Non-transfer item","2|Other transfers to private enterprises","2023_24","MTEF2023",2,2,1,913,296,"02","02","01","000913","000296","02|02|01",2,2,8,50,54,"02|02|08|50|54","National","Parliament","Legislation and Oversight","National Assembly","Non-transfer item","Capital","Transfers and subsidies","Public corporations and private enterprises","Private enterprises","Other transfers to private enterprises","General public services","Executive and legislative organs","NAT",0,0,0,0,0,0,0,0,0,0,0,null,null,null,null,null,null,null,null,null,null,null,null,null,null,null,null,null,null,null,null,null,null,null,null,null,null,null,null,null,null,{"$f":"Dataset[[#This Row],[2023/24 From - Spending review Topic 1]]+Dataset[[#This Row],[2023/24 From - Spending review Topic 2]]+Dataset[[#This Row],[2023/24 From - Spending review Topic 3]]+Dataset[[#This Row],[2023/24 From - Spending review Topic 4]]+Dataset[[#This Row],[2023/24 From - Other reallocations]]","v":0},{"$f":"Dataset[[#This Row],[2024/25 From - Spending review Topic 1]]+Dataset[[#This Row],[2024/25 From - Spending review Topic 2]]+Dataset[[#This Row],[2024/25 From - Spending review Topic 3]]+Dataset[[#This Row],[2024/25 From - Spending review Topic 4]]+Dataset[[#This Row],[2024/25 From - Other reallocations]]","v":0},{"$f":"Dataset[[#This Row],[2025/26 From - Spending review Topic 1]]+Dataset[[#This Row],[2025/26 From - Spending review Topic 2]]+Dataset[[#This Row],[2025/26 From - Spending review Topic 3]]+Dataset[[#This Row],[2025/26 From - Spending review Topic 4]]+Dataset[[#This Row],[2025/26 From - Other reallocations]]","v":0},{"$f":"Dataset[[#This Row],[2023/24 To - Spending review Topic 1]]+Dataset[[#This Row],[2023/24 To - Spending review Topic 2]]+Dataset[[#This Row],[2023/24 To - Spending review Topic 3]]+Dataset[[#This Row],[2023/24 To - Spending review Topic 4]]+Dataset[[#This Row],[2023/24 To - Other reallocations]]","v":0},{"$f":"Dataset[[#This Row],[2024/25 To - Spending review Topic 1]]+Dataset[[#This Row],[2024/25 To - Spending review Topic 2]]+Dataset[[#This Row],[2024/25 To - Spending review Topic 3]]+Dataset[[#This Row],[2024/25 To - Spending review Topic 4]]+Dataset[[#This Row],[2024/25 To - Other reallocations]]","v":0},{"$f":"Dataset[[#This Row],[2025/26 To - Spending review Topic 1]]+Dataset[[#This Row],[2025/26 To - Spending review Topic 2]]+Dataset[[#This Row],[2025/26 To - Spending review Topic 3]]+Dataset[[#This Row],[2025/26 To - Spending review Topic 4]]+Dataset[[#This Row],[2025/26 To - Other reallocations]]","v":0},{"$f":"Dataset[[#This Row],[2023/24 Baseline]]+Dataset[[#This Row],[2023/24 From - Total]]+Dataset[[#This Row],[2023/24 To - Total]]","v":0},{"$f":"Dataset[[#This Row],[2024/25 Baseline]]+Dataset[[#This Row],[2024/25 From - Total]]+Dataset[[#This Row],[2024/25 To - Total]]","v":0},{"$f":"Dataset[[#This Row],[2025/26 Baseline]]+Dataset[[#This Row],[2025/26 From - Total]]+Dataset[[#This Row],[2025/26 To - Total]]","v":0}]
["NAT|Non-transfer item","2|Non-profit institutions","2023_24","MTEF2023",2,2,1,914,297,"02","02","01","000914","000297","02|02|01",2,2,9,51,55,"02|02|09|51|55","National","Parliament","Legislation and Oversight","National Assembly","Non-transfer item","Capital","Transfers and subsidies","Non-profit institutions","Non-profit institutions","Non-profit institutions","General public services","Executive and legislative organs","NAT",0,0,0,0,0,0,0,0,0,0,0,null,null,null,null,null,null,null,null,null,null,null,null,null,null,null,null,null,null,null,null,null,null,null,null,null,null,null,null,null,null,{"$f":"Dataset[[#This Row],[2023/24 From - Spending review Topic 1]]+Dataset[[#This Row],[2023/24 From - Spending review Topic 2]]+Dataset[[#This Row],[2023/24 From - Spending review Topic 3]]+Dataset[[#This Row],[2023/24 From - Spending review Topic 4]]+Dataset[[#This Row],[2023/24 From - Other reallocations]]","v":0},{"$f":"Dataset[[#This Row],[2024/25 From - Spending review Topic 1]]+Dataset[[#This Row],[2024/25 From - Spending review Topic 2]]+Dataset[[#This Row],[2024/25 From - Spending review Topic 3]]+Dataset[[#This Row],[2024/25 From - Spending review Topic 4]]+Dataset[[#This Row],[2024/25 From - Other reallocations]]","v":0},{"$f":"Dataset[[#This Row],[2025/26 From - Spending review Topic 1]]+Dataset[[#This Row],[2025/26 From - Spending review Topic 2]]+Dataset[[#This Row],[2025/26 From - Spending review Topic 3]]+Dataset[[#This Row],[2025/26 From - Spending review Topic 4]]+Dataset[[#This Row],[2025/26 From - Other reallocations]]","v":0},{"$f":"Dataset[[#This Row],[2023/24 To - Spending review Topic 1]]+Dataset[[#This Row],[2023/24 To - Spending review Topic 2]]+Dataset[[#This Row],[2023/24 To - Spending review Topic 3]]+Dataset[[#This Row],[2023/24 To - Spending review Topic 4]]+Dataset[[#This Row],[2023/24 To - Other reallocations]]","v":0},{"$f":"Dataset[[#This Row],[2024/25 To - Spending review Topic 1]]+Dataset[[#This Row],[2024/25 To - Spending review Topic 2]]+Dataset[[#This Row],[2024/25 To - Spending review Topic 3]]+Dataset[[#This Row],[2024/25 To - Spending review Topic 4]]+Dataset[[#This Row],[2024/25 To - Other reallocations]]","v":0},{"$f":"Dataset[[#This Row],[2025/26 To - Spending review Topic 1]]+Dataset[[#This Row],[2025/26 To - Spending review Topic 2]]+Dataset[[#This Row],[2025/26 To - Spending review Topic 3]]+Dataset[[#This Row],[2025/26 To - Spending review Topic 4]]+Dataset[[#This Row],[2025/26 To - Other reallocations]]","v":0},{"$f":"Dataset[[#This Row],[2023/24 Baseline]]+Dataset[[#This Row],[2023/24 From - Total]]+Dataset[[#This Row],[2023/24 To - Total]]","v":0},{"$f":"Dataset[[#This Row],[2024/25 Baseline]]+Dataset[[#This Row],[2024/25 From - Total]]+Dataset[[#This Row],[2024/25 To - Total]]","v":0},{"$f":"Dataset[[#This Row],[2025/26 Baseline]]+Dataset[[#This Row],[2025/26 From - Total]]+Dataset[[#This Row],[2025/26 To - Total]]","v":0}]
["NAT|Non-transfer item","2|Other transfers to households","2023_24","MTEF2023",2,2,1,915,298,"02","02","01","000915","000298","02|02|01",2,2,10,53,57,"02|02|10|53|57","National","Parliament","Legislation and Oversight","National Assembly","Non-transfer item","Capital","Transfers and subsidies","Households","Other transfers to households","Other transfers to households","General public services","Executive and legislative organs","NAT",0,0,0,0,0,0,0,0,0,0,0,null,null,null,null,null,null,null,null,null,null,null,null,null,null,null,null,null,null,null,null,null,null,null,null,null,null,null,null,null,null,{"$f":"Dataset[[#This Row],[2023/24 From - Spending review Topic 1]]+Dataset[[#This Row],[2023/24 From - Spending review Topic 2]]+Dataset[[#This Row],[2023/24 From - Spending review Topic 3]]+Dataset[[#This Row],[2023/24 From - Spending review Topic 4]]+Dataset[[#This Row],[2023/24 From - Other reallocations]]","v":0},{"$f":"Dataset[[#This Row],[2024/25 From - Spending review Topic 1]]+Dataset[[#This Row],[2024/25 From - Spending review Topic 2]]+Dataset[[#This Row],[2024/25 From - Spending review Topic 3]]+Dataset[[#This Row],[2024/25 From - Spending review Topic 4]]+Dataset[[#This Row],[2024/25 From - Other reallocations]]","v":0},{"$f":"Dataset[[#This Row],[2025/26 From - Spending review Topic 1]]+Dataset[[#This Row],[2025/26 From - Spending review Topic 2]]+Dataset[[#This Row],[2025/26 From - Spending review Topic 3]]+Dataset[[#This Row],[2025/26 From - Spending review Topic 4]]+Dataset[[#This Row],[2025/26 From - Other reallocations]]","v":0},{"$f":"Dataset[[#This Row],[2023/24 To - Spending review Topic 1]]+Dataset[[#This Row],[2023/24 To - Spending review Topic 2]]+Dataset[[#This Row],[2023/24 To - Spending review Topic 3]]+Dataset[[#This Row],[2023/24 To - Spending review Topic 4]]+Dataset[[#This Row],[2023/24 To - Other reallocations]]","v":0},{"$f":"Dataset[[#This Row],[2024/25 To - Spending review Topic 1]]+Dataset[[#This Row],[2024/25 To - Spending review Topic 2]]+Dataset[[#This Row],[2024/25 To - Spending review Topic 3]]+Dataset[[#This Row],[2024/25 To - Spending review Topic 4]]+Dataset[[#This Row],[2024/25 To - Other reallocations]]","v":0},{"$f":"Dataset[[#This Row],[2025/26 To - Spending review Topic 1]]+Dataset[[#This Row],[2025/26 To - Spending review Topic 2]]+Dataset[[#This Row],[2025/26 To - Spending review Topic 3]]+Dataset[[#This Row],[2025/26 To - Spending review Topic 4]]+Dataset[[#This Row],[2025/26 To - Other reallocations]]","v":0},{"$f":"Dataset[[#This Row],[2023/24 Baseline]]+Dataset[[#This Row],[2023/24 From - Total]]+Dataset[[#This Row],[2023/24 To - Total]]","v":0},{"$f":"Dataset[[#This Row],[2024/25 Baseline]]+Dataset[[#This Row],[2024/25 From - Total]]+Dataset[[#This Row],[2024/25 To - Total]]","v":0},{"$f":"Dataset[[#This Row],[2025/26 Baseline]]+Dataset[[#This Row],[2025/26 From - Total]]+Dataset[[#This Row],[2025/26 To - Total]]","v":0}]
["NAT|Non-transfer item","2|Buildings","2023_24","MTEF2023",2,2,1,916,299,"02","02","01","000916","000299","02|02|01",2,3,11,54,58,"02|03|11|54|58","National","Parliament","Legislation and Oversight","National Assembly","Non-transfer item","Capital","Payments for capital assets","Buildings and other fixed structures","Buildings","Buildings","General public services","Executive and legislative organs","NAT",0,0,0,0,0,0,0,0,0,0,0,null,null,null,null,null,null,null,null,null,null,null,null,null,null,null,null,null,null,null,null,null,null,null,null,null,null,null,null,null,null,{"$f":"Dataset[[#This Row],[2023/24 From - Spending review Topic 1]]+Dataset[[#This Row],[2023/24 From - Spending review Topic 2]]+Dataset[[#This Row],[2023/24 From - Spending review Topic 3]]+Dataset[[#This Row],[2023/24 From - Spending review Topic 4]]+Dataset[[#This Row],[2023/24 From - Other reallocations]]","v":0},{"$f":"Dataset[[#This Row],[2024/25 From - Spending review Topic 1]]+Dataset[[#This Row],[2024/25 From - Spending review Topic 2]]+Dataset[[#This Row],[2024/25 From - Spending review Topic 3]]+Dataset[[#This Row],[2024/25 From - Spending review Topic 4]]+Dataset[[#This Row],[2024/25 From - Other reallocations]]","v":0},{"$f":"Dataset[[#This Row],[2025/26 From - Spending review Topic 1]]+Dataset[[#This Row],[2025/26 From - Spending review Topic 2]]+Dataset[[#This Row],[2025/26 From - Spending review Topic 3]]+Dataset[[#This Row],[2025/26 From - Spending review Topic 4]]+Dataset[[#This Row],[2025/26 From - Other reallocations]]","v":0},{"$f":"Dataset[[#This Row],[2023/24 To - Spending review Topic 1]]+Dataset[[#This Row],[2023/24 To - Spending review Topic 2]]+Dataset[[#This Row],[2023/24 To - Spending review Topic 3]]+Dataset[[#This Row],[2023/24 To - Spending review Topic 4]]+Dataset[[#This Row],[2023/24 To - Other reallocations]]","v":0},{"$f":"Dataset[[#This Row],[2024/25 To - Spending review Topic 1]]+Dataset[[#This Row],[2024/25 To - Spending review Topic 2]]+Dataset[[#This Row],[2024/25 To - Spending review Topic 3]]+Dataset[[#This Row],[2024/25 To - Spending review Topic 4]]+Dataset[[#This Row],[2024/25 To - Other reallocations]]","v":0},{"$f":"Dataset[[#This Row],[2025/26 To - Spending review Topic 1]]+Dataset[[#This Row],[2025/26 To - Spending review Topic 2]]+Dataset[[#This Row],[2025/26 To - Spending review Topic 3]]+Dataset[[#This Row],[2025/26 To - Spending review Topic 4]]+Dataset[[#This Row],[2025/26 To - Other reallocations]]","v":0},{"$f":"Dataset[[#This Row],[2023/24 Baseline]]+Dataset[[#This Row],[2023/24 From - Total]]+Dataset[[#This Row],[2023/24 To - Total]]","v":0},{"$f":"Dataset[[#This Row],[2024/25 Baseline]]+Dataset[[#This Row],[2024/25 From - Total]]+Dataset[[#This Row],[2024/25 To - Total]]","v":0},{"$f":"Dataset[[#This Row],[2025/26 Baseline]]+Dataset[[#This Row],[2025/26 From - Total]]+Dataset[[#This Row],[2025/26 To - Total]]","v":0}]
["NAT|Non-transfer item","2|Other fixed structures","2023_24","MTEF2023",2,2,1,917,300,"02","02","01","000917","000300","02|02|01",2,3,11,55,59,"02|03|11|55|59","National","Parliament","Legislation and Oversight","National Assembly","Non-transfer item","Capital","Payments for capital assets","Buildings and other fixed structures","Other fixed structures","Other fixed structures","General public services","Executive and legislative organs","NAT",0,0,0,0,0,0,0,0,0,0,0,null,null,null,null,null,null,null,null,null,null,null,null,null,null,null,null,null,null,null,null,null,null,null,null,null,null,null,null,null,null,{"$f":"Dataset[[#This Row],[2023/24 From - Spending review Topic 1]]+Dataset[[#This Row],[2023/24 From - Spending review Topic 2]]+Dataset[[#This Row],[2023/24 From - Spending review Topic 3]]+Dataset[[#This Row],[2023/24 From - Spending review Topic 4]]+Dataset[[#This Row],[2023/24 From - Other reallocations]]","v":0},{"$f":"Dataset[[#This Row],[2024/25 From - Spending review Topic 1]]+Dataset[[#This Row],[2024/25 From - Spending review Topic 2]]+Dataset[[#This Row],[2024/25 From - Spending review Topic 3]]+Dataset[[#This Row],[2024/25 From - Spending review Topic 4]]+Dataset[[#This Row],[2024/25 From - Other reallocations]]","v":0},{"$f":"Dataset[[#This Row],[2025/26 From - Spending review Topic 1]]+Dataset[[#This Row],[2025/26 From - Spending review Topic 2]]+Dataset[[#This Row],[2025/26 From - Spending review Topic 3]]+Dataset[[#This Row],[2025/26 From - Spending review Topic 4]]+Dataset[[#This Row],[2025/26 From - Other reallocations]]","v":0},{"$f":"Dataset[[#This Row],[2023/24 To - Spending review Topic 1]]+Dataset[[#This Row],[2023/24 To - Spending review Topic 2]]+Dataset[[#This Row],[2023/24 To - Spending review Topic 3]]+Dataset[[#This Row],[2023/24 To - Spending review Topic 4]]+Dataset[[#This Row],[2023/24 To - Other reallocations]]","v":0},{"$f":"Dataset[[#This Row],[2024/25 To - Spending review Topic 1]]+Dataset[[#This Row],[2024/25 To - Spending review Topic 2]]+Dataset[[#This Row],[2024/25 To - Spending review Topic 3]]+Dataset[[#This Row],[2024/25 To - Spending review Topic 4]]+Dataset[[#This Row],[2024/25 To - Other reallocations]]","v":0},{"$f":"Dataset[[#This Row],[2025/26 To - Spending review Topic 1]]+Dataset[[#This Row],[2025/26 To - Spending review Topic 2]]+Dataset[[#This Row],[2025/26 To - Spending review Topic 3]]+Dataset[[#This Row],[2025/26 To - Spending review Topic 4]]+Dataset[[#This Row],[2025/26 To - Other reallocations]]","v":0},{"$f":"Dataset[[#This Row],[2023/24 Baseline]]+Dataset[[#This Row],[2023/24 From - Total]]+Dataset[[#This Row],[2023/24 To - Total]]","v":0},{"$f":"Dataset[[#This Row],[2024/25 Baseline]]+Dataset[[#This Row],[2024/25 From - Total]]+Dataset[[#This Row],[2024/25 To - Total]]","v":0},{"$f":"Dataset[[#This Row],[2025/26 Baseline]]+Dataset[[#This Row],[2025/26 From - Total]]+Dataset[[#This Row],[2025/26 To - Total]]","v":0}]
["NAT|Non-transfer item","2|Transport equipment","2023_24","MTEF2023",2,2,1,918,301,"02","02","01","000918","000301","02|02|01",2,3,12,56,60,"02|03|12|56|60","National","Parliament","Legislation and Oversight","National Assembly","Non-transfer item","Capital","Payments for capital assets","Machinery and equipment","Transport equipment","Transport equipment","General public services","Executive and legislative organs","NAT",0,0,0,0,0,0,0,0,0,0,0,null,null,null,null,null,null,null,null,null,null,null,null,null,null,null,null,null,null,null,null,null,null,null,null,null,null,null,null,null,null,{"$f":"Dataset[[#This Row],[2023/24 From - Spending review Topic 1]]+Dataset[[#This Row],[2023/24 From - Spending review Topic 2]]+Dataset[[#This Row],[2023/24 From - Spending review Topic 3]]+Dataset[[#This Row],[2023/24 From - Spending review Topic 4]]+Dataset[[#This Row],[2023/24 From - Other reallocations]]","v":0},{"$f":"Dataset[[#This Row],[2024/25 From - Spending review Topic 1]]+Dataset[[#This Row],[2024/25 From - Spending review Topic 2]]+Dataset[[#This Row],[2024/25 From - Spending review Topic 3]]+Dataset[[#This Row],[2024/25 From - Spending review Topic 4]]+Dataset[[#This Row],[2024/25 From - Other reallocations]]","v":0},{"$f":"Dataset[[#This Row],[2025/26 From - Spending review Topic 1]]+Dataset[[#This Row],[2025/26 From - Spending review Topic 2]]+Dataset[[#This Row],[2025/26 From - Spending review Topic 3]]+Dataset[[#This Row],[2025/26 From - Spending review Topic 4]]+Dataset[[#This Row],[2025/26 From - Other reallocations]]","v":0},{"$f":"Dataset[[#This Row],[2023/24 To - Spending review Topic 1]]+Dataset[[#This Row],[2023/24 To - Spending review Topic 2]]+Dataset[[#This Row],[2023/24 To - Spending review Topic 3]]+Dataset[[#This Row],[2023/24 To - Spending review Topic 4]]+Dataset[[#This Row],[2023/24 To - Other reallocations]]","v":0},{"$f":"Dataset[[#This Row],[2024/25 To - Spending review Topic 1]]+Dataset[[#This Row],[2024/25 To - Spending review Topic 2]]+Dataset[[#This Row],[2024/25 To - Spending review Topic 3]]+Dataset[[#This Row],[2024/25 To - Spending review Topic 4]]+Dataset[[#This Row],[2024/25 To - Other reallocations]]","v":0},{"$f":"Dataset[[#This Row],[2025/26 To - Spending review Topic 1]]+Dataset[[#This Row],[2025/26 To - Spending review Topic 2]]+Dataset[[#This Row],[2025/26 To - Spending review Topic 3]]+Dataset[[#This Row],[2025/26 To - Spending review Topic 4]]+Dataset[[#This Row],[2025/26 To - Other reallocations]]","v":0},{"$f":"Dataset[[#This Row],[2023/24 Baseline]]+Dataset[[#This Row],[2023/24 From - Total]]+Dataset[[#This Row],[2023/24 To - Total]]","v":0},{"$f":"Dataset[[#This Row],[2024/25 Baseline]]+Dataset[[#This Row],[2024/25 From - Total]]+Dataset[[#This Row],[2024/25 To - Total]]","v":0},{"$f":"Dataset[[#This Row],[2025/26 Baseline]]+Dataset[[#This Row],[2025/26 From - Total]]+Dataset[[#This Row],[2025/26 To - Total]]","v":0}]
["NAT|Non-transfer item","2|Other machinery and equipment","2023_24","MTEF2023",2,2,1,919,302,"02","02","01","000919","000302","02|02|01",2,3,12,57,61,"02|03|12|57|61","National","Parliament","Legislation and Oversight","National Assembly","Non-transfer item","Capital","Payments for capital assets","Machinery and equipment","Other machinery and equipment","Other machinery and equipment","General public services","Executive and legislative organs","NAT",0,0,0,22,22,22,0,23,24,25,26,null,null,null,null,null,null,null,null,null,null,null,null,null,null,null,null,null,null,null,null,null,null,null,null,null,null,null,null,null,null,{"$f":"Dataset[[#This Row],[2023/24 From - Spending review Topic 1]]+Dataset[[#This Row],[2023/24 From - Spending review Topic 2]]+Dataset[[#This Row],[2023/24 From - Spending review Topic 3]]+Dataset[[#This Row],[2023/24 From - Spending review Topic 4]]+Dataset[[#This Row],[2023/24 From - Other reallocations]]","v":0},{"$f":"Dataset[[#This Row],[2024/25 From - Spending review Topic 1]]+Dataset[[#This Row],[2024/25 From - Spending review Topic 2]]+Dataset[[#This Row],[2024/25 From - Spending review Topic 3]]+Dataset[[#This Row],[2024/25 From - Spending review Topic 4]]+Dataset[[#This Row],[2024/25 From - Other reallocations]]","v":0},{"$f":"Dataset[[#This Row],[2025/26 From - Spending review Topic 1]]+Dataset[[#This Row],[2025/26 From - Spending review Topic 2]]+Dataset[[#This Row],[2025/26 From - Spending review Topic 3]]+Dataset[[#This Row],[2025/26 From - Spending review Topic 4]]+Dataset[[#This Row],[2025/26 From - Other reallocations]]","v":0},{"$f":"Dataset[[#This Row],[2023/24 To - Spending review Topic 1]]+Dataset[[#This Row],[2023/24 To - Spending review Topic 2]]+Dataset[[#This Row],[2023/24 To - Spending review Topic 3]]+Dataset[[#This Row],[2023/24 To - Spending review Topic 4]]+Dataset[[#This Row],[2023/24 To - Other reallocations]]","v":0},{"$f":"Dataset[[#This Row],[2024/25 To - Spending review Topic 1]]+Dataset[[#This Row],[2024/25 To - Spending review Topic 2]]+Dataset[[#This Row],[2024/25 To - Spending review Topic 3]]+Dataset[[#This Row],[2024/25 To - Spending review Topic 4]]+Dataset[[#This Row],[2024/25 To - Other reallocations]]","v":0},{"$f":"Dataset[[#This Row],[2025/26 To - Spending review Topic 1]]+Dataset[[#This Row],[2025/26 To - Spending review Topic 2]]+Dataset[[#This Row],[2025/26 To - Spending review Topic 3]]+Dataset[[#This Row],[2025/26 To - Spending review Topic 4]]+Dataset[[#This Row],[2025/26 To - Other reallocations]]","v":0},{"$f":"Dataset[[#This Row],[2023/24 Baseline]]+Dataset[[#This Row],[2023/24 From - Total]]+Dataset[[#This Row],[2023/24 To - Total]]","v":24},{"$f":"Dataset[[#This Row],[2024/25 Baseline]]+Dataset[[#This Row],[2024/25 From - Total]]+Dataset[[#This Row],[2024/25 To - Total]]","v":25},{"$f":"Dataset[[#This Row],[2025/26 Baseline]]+Dataset[[#This Row],[2025/26 From - Total]]+Dataset[[#This Row],[2025/26 To - Total]]","v":26}]
["NAT|Non-transfer item","2|Heritage assets","2023_24","MTEF2023",2,2,1,920,303,"02","02","01","000920","000303","02|02|01",2,3,13,58,62,"02|03|13|58|62","National","Parliament","Legislation and Oversight","National Assembly","Non-transfer item","Capital","Payments for capital assets","Heritage assets","Heritage assets","Heritage assets","General public services","Executive and legislative organs","NAT",0,0,0,0,0,0,0,0,0,0,0,null,null,null,null,null,null,null,null,null,null,null,null,null,null,null,null,null,null,null,null,null,null,null,null,null,null,null,null,null,null,{"$f":"Dataset[[#This Row],[2023/24 From - Spending review Topic 1]]+Dataset[[#This Row],[2023/24 From - Spending review Topic 2]]+Dataset[[#This Row],[2023/24 From - Spending review Topic 3]]+Dataset[[#This Row],[2023/24 From - Spending review Topic 4]]+Dataset[[#This Row],[2023/24 From - Other reallocations]]","v":0},{"$f":"Dataset[[#This Row],[2024/25 From - Spending review Topic 1]]+Dataset[[#This Row],[2024/25 From - Spending review Topic 2]]+Dataset[[#This Row],[2024/25 From - Spending review Topic 3]]+Dataset[[#This Row],[2024/25 From - Spending review Topic 4]]+Dataset[[#This Row],[2024/25 From - Other reallocations]]","v":0},{"$f":"Dataset[[#This Row],[2025/26 From - Spending review Topic 1]]+Dataset[[#This Row],[2025/26 From - Spending review Topic 2]]+Dataset[[#This Row],[2025/26 From - Spending review Topic 3]]+Dataset[[#This Row],[2025/26 From - Spending review Topic 4]]+Dataset[[#This Row],[2025/26 From - Other reallocations]]","v":0},{"$f":"Dataset[[#This Row],[2023/24 To - Spending review Topic 1]]+Dataset[[#This Row],[2023/24 To - Spending review Topic 2]]+Dataset[[#This Row],[2023/24 To - Spending review Topic 3]]+Dataset[[#This Row],[2023/24 To - Spending review Topic 4]]+Dataset[[#This Row],[2023/24 To - Other reallocations]]","v":0},{"$f":"Dataset[[#This Row],[2024/25 To - Spending review Topic 1]]+Dataset[[#This Row],[2024/25 To - Spending review Topic 2]]+Dataset[[#This Row],[2024/25 To - Spending review Topic 3]]+Dataset[[#This Row],[2024/25 To - Spending review Topic 4]]+Dataset[[#This Row],[2024/25 To - Other reallocations]]","v":0},{"$f":"Dataset[[#This Row],[2025/26 To - Spending review Topic 1]]+Dataset[[#This Row],[2025/26 To - Spending review Topic 2]]+Dataset[[#This Row],[2025/26 To - Spending review Topic 3]]+Dataset[[#This Row],[2025/26 To - Spending review Topic 4]]+Dataset[[#This Row],[2025/26 To - Other reallocations]]","v":0},{"$f":"Dataset[[#This Row],[2023/24 Baseline]]+Dataset[[#This Row],[2023/24 From - Total]]+Dataset[[#This Row],[2023/24 To - Total]]","v":0},{"$f":"Dataset[[#This Row],[2024/25 Baseline]]+Dataset[[#This Row],[2024/25 From - Total]]+Dataset[[#This Row],[2024/25 To - Total]]","v":0},{"$f":"Dataset[[#This Row],[2025/26 Baseline]]+Dataset[[#This Row],[2025/26 From - Total]]+Dataset[[#This Row],[2025/26 To - Total]]","v":0}]
["NAT|Non-transfer item","2|Specialised military assets","2023_24","MTEF2023",2,2,1,921,304,"02","02","01","000921","000304","02|02|01",2,3,14,59,63,"02|03|14|59|63","National","Parliament","Legislation and Oversight","National Assembly","Non-transfer item","Capital","Payments for capital assets","Specialised military assets","Specialised military assets","Specialised military assets","General public services","Executive and legislative organs","NAT",0,0,0,0,0,0,0,0,0,0,0,null,null,null,null,null,null,null,null,null,null,null,null,null,null,null,null,null,null,null,null,null,null,null,null,null,null,null,null,null,null,{"$f":"Dataset[[#This Row],[2023/24 From - Spending review Topic 1]]+Dataset[[#This Row],[2023/24 From - Spending review Topic 2]]+Dataset[[#This Row],[2023/24 From - Spending review Topic 3]]+Dataset[[#This Row],[2023/24 From - Spending review Topic 4]]+Dataset[[#This Row],[2023/24 From - Other reallocations]]","v":0},{"$f":"Dataset[[#This Row],[2024/25 From - Spending review Topic 1]]+Dataset[[#This Row],[2024/25 From - Spending review Topic 2]]+Dataset[[#This Row],[2024/25 From - Spending review Topic 3]]+Dataset[[#This Row],[2024/25 From - Spending review Topic 4]]+Dataset[[#This Row],[2024/25 From - Other reallocations]]","v":0},{"$f":"Dataset[[#This Row],[2025/26 From - Spending review Topic 1]]+Dataset[[#This Row],[2025/26 From - Spending review Topic 2]]+Dataset[[#This Row],[2025/26 From - Spending review Topic 3]]+Dataset[[#This Row],[2025/26 From - Spending review Topic 4]]+Dataset[[#This Row],[2025/26 From - Other reallocations]]","v":0},{"$f":"Dataset[[#This Row],[2023/24 To - Spending review Topic 1]]+Dataset[[#This Row],[2023/24 To - Spending review Topic 2]]+Dataset[[#This Row],[2023/24 To - Spending review Topic 3]]+Dataset[[#This Row],[2023/24 To - Spending review Topic 4]]+Dataset[[#This Row],[2023/24 To - Other reallocations]]","v":0},{"$f":"Dataset[[#This Row],[2024/25 To - Spending review Topic 1]]+Dataset[[#This Row],[2024/25 To - Spending review Topic 2]]+Dataset[[#This Row],[2024/25 To - Spending review Topic 3]]+Dataset[[#This Row],[2024/25 To - Spending review Topic 4]]+Dataset[[#This Row],[2024/25 To - Other reallocations]]","v":0},{"$f":"Dataset[[#This Row],[2025/26 To - Spending review Topic 1]]+Dataset[[#This Row],[2025/26 To - Spending review Topic 2]]+Dataset[[#This Row],[2025/26 To - Spending review Topic 3]]+Dataset[[#This Row],[2025/26 To - Spending review Topic 4]]+Dataset[[#This Row],[2025/26 To - Other reallocations]]","v":0},{"$f":"Dataset[[#This Row],[2023/24 Baseline]]+Dataset[[#This Row],[2023/24 From - Total]]+Dataset[[#This Row],[2023/24 To - Total]]","v":0},{"$f":"Dataset[[#This Row],[2024/25 Baseline]]+Dataset[[#This Row],[2024/25 From - Total]]+Dataset[[#This Row],[2024/25 To - Total]]","v":0},{"$f":"Dataset[[#This Row],[2025/26 Baseline]]+Dataset[[#This Row],[2025/26 From - Total]]+Dataset[[#This Row],[2025/26 To - Total]]","v":0}]
["NAT|Non-transfer item","2|Biological assets","2023_24","MTEF2023",2,2,1,922,305,"02","02","01","000922","000305","02|02|01",2,3,15,60,64,"02|03|15|60|64","National","Parliament","Legislation and Oversight","National Assembly","Non-transfer item","Capital","Payments for capital assets","Biological assets","Biological assets","Biological assets","General public services","Executive and legislative organs","NAT",0,0,0,0,0,0,0,0,0,0,0,null,null,null,null,null,null,null,null,null,null,null,null,null,null,null,null,null,null,null,null,null,null,null,null,null,null,null,null,null,null,{"$f":"Dataset[[#This Row],[2023/24 From - Spending review Topic 1]]+Dataset[[#This Row],[2023/24 From - Spending review Topic 2]]+Dataset[[#This Row],[2023/24 From - Spending review Topic 3]]+Dataset[[#This Row],[2023/24 From - Spending review Topic 4]]+Dataset[[#This Row],[2023/24 From - Other reallocations]]","v":0},{"$f":"Dataset[[#This Row],[2024/25 From - Spending review Topic 1]]+Dataset[[#This Row],[2024/25 From - Spending review Topic 2]]+Dataset[[#This Row],[2024/25 From - Spending review Topic 3]]+Dataset[[#This Row],[2024/25 From - Spending review Topic 4]]+Dataset[[#This Row],[2024/25 From - Other reallocations]]","v":0},{"$f":"Dataset[[#This Row],[2025/26 From - Spending review Topic 1]]+Dataset[[#This Row],[2025/26 From - Spending review Topic 2]]+Dataset[[#This Row],[2025/26 From - Spending review Topic 3]]+Dataset[[#This Row],[2025/26 From - Spending review Topic 4]]+Dataset[[#This Row],[2025/26 From - Other reallocations]]","v":0},{"$f":"Dataset[[#This Row],[2023/24 To - Spending review Topic 1]]+Dataset[[#This Row],[2023/24 To - Spending review Topic 2]]+Dataset[[#This Row],[2023/24 To - Spending review Topic 3]]+Dataset[[#This Row],[2023/24 To - Spending review Topic 4]]+Dataset[[#This Row],[2023/24 To - Other reallocations]]","v":0},{"$f":"Dataset[[#This Row],[2024/25 To - Spending review Topic 1]]+Dataset[[#This Row],[2024/25 To - Spending review Topic 2]]+Dataset[[#This Row],[2024/25 To - Spending review Topic 3]]+Dataset[[#This Row],[2024/25 To - Spending review Topic 4]]+Dataset[[#This Row],[2024/25 To - Other reallocations]]","v":0},{"$f":"Dataset[[#This Row],[2025/26 To - Spending review Topic 1]]+Dataset[[#This Row],[2025/26 To - Spending review Topic 2]]+Dataset[[#This Row],[2025/26 To - Spending review Topic 3]]+Dataset[[#This Row],[2025/26 To - Spending review Topic 4]]+Dataset[[#This Row],[2025/26 To - Other reallocations]]","v":0},{"$f":"Dataset[[#This Row],[2023/24 Baseline]]+Dataset[[#This Row],[2023/24 From - Total]]+Dataset[[#This Row],[2023/24 To - Total]]","v":0},{"$f":"Dataset[[#This Row],[2024/25 Baseline]]+Dataset[[#This Row],[2024/25 From - Total]]+Dataset[[#This Row],[2024/25 To - Total]]","v":0},{"$f":"Dataset[[#This Row],[2025/26 Baseline]]+Dataset[[#This Row],[2025/26 From - Total]]+Dataset[[#This Row],[2025/26 To - Total]]","v":0}]
["NAT|Non-transfer item","2|Land and sub-soil assets","2023_24","MTEF2023",2,2,1,923,306,"02","02","01","000923","000306","02|02|01",2,3,16,61,65,"02|03|16|61|65","National","Parliament","Legislation and Oversight","National Assembly","Non-transfer item","Capital","Payments for capital assets","Land and sub-soil assets","Land and sub-soil assets","Land and sub-soil assets","General public services","Executive and legislative organs","NAT",0,0,0,0,0,0,0,0,0,0,0,null,null,null,null,null,null,null,null,null,null,null,null,null,null,null,null,null,null,null,null,null,null,null,null,null,null,null,null,null,null,{"$f":"Dataset[[#This Row],[2023/24 From - Spending review Topic 1]]+Dataset[[#This Row],[2023/24 From - Spending review Topic 2]]+Dataset[[#This Row],[2023/24 From - Spending review Topic 3]]+Dataset[[#This Row],[2023/24 From - Spending review Topic 4]]+Dataset[[#This Row],[2023/24 From - Other reallocations]]","v":0},{"$f":"Dataset[[#This Row],[2024/25 From - Spending review Topic 1]]+Dataset[[#This Row],[2024/25 From - Spending review Topic 2]]+Dataset[[#This Row],[2024/25 From - Spending review Topic 3]]+Dataset[[#This Row],[2024/25 From - Spending review Topic 4]]+Dataset[[#This Row],[2024/25 From - Other reallocations]]","v":0},{"$f":"Dataset[[#This Row],[2025/26 From - Spending review Topic 1]]+Dataset[[#This Row],[2025/26 From - Spending review Topic 2]]+Dataset[[#This Row],[2025/26 From - Spending review Topic 3]]+Dataset[[#This Row],[2025/26 From - Spending review Topic 4]]+Dataset[[#This Row],[2025/26 From - Other reallocations]]","v":0},{"$f":"Dataset[[#This Row],[2023/24 To - Spending review Topic 1]]+Dataset[[#This Row],[2023/24 To - Spending review Topic 2]]+Dataset[[#This Row],[2023/24 To - Spending review Topic 3]]+Dataset[[#This Row],[2023/24 To - Spending review Topic 4]]+Dataset[[#This Row],[2023/24 To - Other reallocations]]","v":0},{"$f":"Dataset[[#This Row],[2024/25 To - Spending review Topic 1]]+Dataset[[#This Row],[2024/25 To - Spending review Topic 2]]+Dataset[[#This Row],[2024/25 To - Spending review Topic 3]]+Dataset[[#This Row],[2024/25 To - Spending review Topic 4]]+Dataset[[#This Row],[2024/25 To - Other reallocations]]","v":0},{"$f":"Dataset[[#This Row],[2025/26 To - Spending review Topic 1]]+Dataset[[#This Row],[2025/26 To - Spending review Topic 2]]+Dataset[[#This Row],[2025/26 To - Spending review Topic 3]]+Dataset[[#This Row],[2025/26 To - Spending review Topic 4]]+Dataset[[#This Row],[2025/26 To - Other reallocations]]","v":0},{"$f":"Dataset[[#This Row],[2023/24 Baseline]]+Dataset[[#This Row],[2023/24 From - Total]]+Dataset[[#This Row],[2023/24 To - Total]]","v":0},{"$f":"Dataset[[#This Row],[2024/25 Baseline]]+Dataset[[#This Row],[2024/25 From - Total]]+Dataset[[#This Row],[2024/25 To - Total]]","v":0},{"$f":"Dataset[[#This Row],[2025/26 Baseline]]+Dataset[[#This Row],[2025/26 From - Total]]+Dataset[[#This Row],[2025/26 To - Total]]","v":0}]
["NAT|Non-transfer item","2|Software and other intangible assets","2023_24","MTEF2023",2,2,1,924,307,"02","02","01","000924","000307","02|02|01",2,3,17,62,66,"02|03|17|62|66","National","Parliament","Legislation and Oversight","National Assembly","Non-transfer item","Capital","Payments for capital assets","Software and other intangible assets","Software and other intangible assets","Software and other intangible assets","General public services","Executive and legislative organs","NAT",0,0,0,0,0,0,0,0,0,0,0,null,null,null,null,null,null,null,null,null,null,null,null,null,null,null,null,null,null,null,null,null,null,null,null,null,null,null,null,null,null,{"$f":"Dataset[[#This Row],[2023/24 From - Spending review Topic 1]]+Dataset[[#This Row],[2023/24 From - Spending review Topic 2]]+Dataset[[#This Row],[2023/24 From - Spending review Topic 3]]+Dataset[[#This Row],[2023/24 From - Spending review Topic 4]]+Dataset[[#This Row],[2023/24 From - Other reallocations]]","v":0},{"$f":"Dataset[[#This Row],[2024/25 From - Spending review Topic 1]]+Dataset[[#This Row],[2024/25 From - Spending review Topic 2]]+Dataset[[#This Row],[2024/25 From - Spending review Topic 3]]+Dataset[[#This Row],[2024/25 From - Spending review Topic 4]]+Dataset[[#This Row],[2024/25 From - Other reallocations]]","v":0},{"$f":"Dataset[[#This Row],[2025/26 From - Spending review Topic 1]]+Dataset[[#This Row],[2025/26 From - Spending review Topic 2]]+Dataset[[#This Row],[2025/26 From - Spending review Topic 3]]+Dataset[[#This Row],[2025/26 From - Spending review Topic 4]]+Dataset[[#This Row],[2025/26 From - Other reallocations]]","v":0},{"$f":"Dataset[[#This Row],[2023/24 To - Spending review Topic 1]]+Dataset[[#This Row],[2023/24 To - Spending review Topic 2]]+Dataset[[#This Row],[2023/24 To - Spending review Topic 3]]+Dataset[[#This Row],[2023/24 To - Spending review Topic 4]]+Dataset[[#This Row],[2023/24 To - Other reallocations]]","v":0},{"$f":"Dataset[[#This Row],[2024/25 To - Spending review Topic 1]]+Dataset[[#This Row],[2024/25 To - Spending review Topic 2]]+Dataset[[#This Row],[2024/25 To - Spending review Topic 3]]+Dataset[[#This Row],[2024/25 To - Spending review Topic 4]]+Dataset[[#This Row],[2024/25 To - Other reallocations]]","v":0},{"$f":"Dataset[[#This Row],[2025/26 To - Spending review Topic 1]]+Dataset[[#This Row],[2025/26 To - Spending review Topic 2]]+Dataset[[#This Row],[2025/26 To - Spending review Topic 3]]+Dataset[[#This Row],[2025/26 To - Spending review Topic 4]]+Dataset[[#This Row],[2025/26 To - Other reallocations]]","v":0},{"$f":"Dataset[[#This Row],[2023/24 Baseline]]+Dataset[[#This Row],[2023/24 From - Total]]+Dataset[[#This Row],[2023/24 To - Total]]","v":0},{"$f":"Dataset[[#This Row],[2024/25 Baseline]]+Dataset[[#This Row],[2024/25 From - Total]]+Dataset[[#This Row],[2024/25 To - Total]]","v":0},{"$f":"Dataset[[#This Row],[2025/26 Baseline]]+Dataset[[#This Row],[2025/26 From - Total]]+Dataset[[#This Row],[2025/26 To - Total]]","v":0}]
["NAT|Non-transfer item","2|Payments for financial assets","2023_24","MTEF2023",2,2,1,925,308,"02","02","01","000925","000308","02|02|01",3,4,18,63,67,"03|04|18|63|67","National","Parliament","Legislation and Oversight","National Assembly","Non-transfer item","Payments for financial assets","Payments for financial assets","Payments for financial assets","Payments for financial assets","Payments for financial assets","General public services","Executive and legislative organs","NAT",0,0,0,0,0,0,0,0,0,0,0,null,null,null,null,null,null,null,null,null,null,null,null,null,null,null,null,null,null,null,null,null,null,null,null,null,null,null,null,null,null,{"$f":"Dataset[[#This Row],[2023/24 From - Spending review Topic 1]]+Dataset[[#This Row],[2023/24 From - Spending review Topic 2]]+Dataset[[#This Row],[2023/24 From - Spending review Topic 3]]+Dataset[[#This Row],[2023/24 From - Spending review Topic 4]]+Dataset[[#This Row],[2023/24 From - Other reallocations]]","v":0},{"$f":"Dataset[[#This Row],[2024/25 From - Spending review Topic 1]]+Dataset[[#This Row],[2024/25 From - Spending review Topic 2]]+Dataset[[#This Row],[2024/25 From - Spending review Topic 3]]+Dataset[[#This Row],[2024/25 From - Spending review Topic 4]]+Dataset[[#This Row],[2024/25 From - Other reallocations]]","v":0},{"$f":"Dataset[[#This Row],[2025/26 From - Spending review Topic 1]]+Dataset[[#This Row],[2025/26 From - Spending review Topic 2]]+Dataset[[#This Row],[2025/26 From - Spending review Topic 3]]+Dataset[[#This Row],[2025/26 From - Spending review Topic 4]]+Dataset[[#This Row],[2025/26 From - Other reallocations]]","v":0},{"$f":"Dataset[[#This Row],[2023/24 To - Spending review Topic 1]]+Dataset[[#This Row],[2023/24 To - Spending review Topic 2]]+Dataset[[#This Row],[2023/24 To - Spending review Topic 3]]+Dataset[[#This Row],[2023/24 To - Spending review Topic 4]]+Dataset[[#This Row],[2023/24 To - Other reallocations]]","v":0},{"$f":"Dataset[[#This Row],[2024/25 To - Spending review Topic 1]]+Dataset[[#This Row],[2024/25 To - Spending review Topic 2]]+Dataset[[#This Row],[2024/25 To - Spending review Topic 3]]+Dataset[[#This Row],[2024/25 To - Spending review Topic 4]]+Dataset[[#This Row],[2024/25 To - Other reallocations]]","v":0},{"$f":"Dataset[[#This Row],[2025/26 To - Spending review Topic 1]]+Dataset[[#This Row],[2025/26 To - Spending review Topic 2]]+Dataset[[#This Row],[2025/26 To - Spending review Topic 3]]+Dataset[[#This Row],[2025/26 To - Spending review Topic 4]]+Dataset[[#This Row],[2025/26 To - Other reallocations]]","v":0},{"$f":"Dataset[[#This Row],[2023/24 Baseline]]+Dataset[[#This Row],[2023/24 From - Total]]+Dataset[[#This Row],[2023/24 To - Total]]","v":0},{"$f":"Dataset[[#This Row],[2024/25 Baseline]]+Dataset[[#This Row],[2024/25 From - Total]]+Dataset[[#This Row],[2024/25 To - Total]]","v":0},{"$f":"Dataset[[#This Row],[2025/26 Baseline]]+Dataset[[#This Row],[2025/26 From - Total]]+Dataset[[#This Row],[2025/26 To - Total]]","v":0}]
["NAT|Non-transfer item","2|Salaries and wages","2023_24","MTEF2023",2,2,2,926,309,"02","02","02","000926","000309","02|02|02",1,1,1,1,1,"01|01|01|01|01","National","Parliament","Legislation and Oversight","National Council of Provinces","Non-transfer item","Current","Current payments","Compensation of employees","Salaries and wages","Salaries and wages","General public services","Executive and legislative organs","NAT",24302,25197,30549,28414,28414,28414,0,30414,30411,31687,33107,null,null,null,null,null,null,null,null,null,null,null,null,null,null,null,null,null,null,null,null,null,null,null,null,null,null,null,null,null,null,{"$f":"Dataset[[#This Row],[2023/24 From - Spending review Topic 1]]+Dataset[[#This Row],[2023/24 From - Spending review Topic 2]]+Dataset[[#This Row],[2023/24 From - Spending review Topic 3]]+Dataset[[#This Row],[2023/24 From - Spending review Topic 4]]+Dataset[[#This Row],[2023/24 From - Other reallocations]]","v":0},{"$f":"Dataset[[#This Row],[2024/25 From - Spending review Topic 1]]+Dataset[[#This Row],[2024/25 From - Spending review Topic 2]]+Dataset[[#This Row],[2024/25 From - Spending review Topic 3]]+Dataset[[#This Row],[2024/25 From - Spending review Topic 4]]+Dataset[[#This Row],[2024/25 From - Other reallocations]]","v":0},{"$f":"Dataset[[#This Row],[2025/26 From - Spending review Topic 1]]+Dataset[[#This Row],[2025/26 From - Spending review Topic 2]]+Dataset[[#This Row],[2025/26 From - Spending review Topic 3]]+Dataset[[#This Row],[2025/26 From - Spending review Topic 4]]+Dataset[[#This Row],[2025/26 From - Other reallocations]]","v":0},{"$f":"Dataset[[#This Row],[2023/24 To - Spending review Topic 1]]+Dataset[[#This Row],[2023/24 To - Spending review Topic 2]]+Dataset[[#This Row],[2023/24 To - Spending review Topic 3]]+Dataset[[#This Row],[2023/24 To - Spending review Topic 4]]+Dataset[[#This Row],[2023/24 To - Other reallocations]]","v":0},{"$f":"Dataset[[#This Row],[2024/25 To - Spending review Topic 1]]+Dataset[[#This Row],[2024/25 To - Spending review Topic 2]]+Dataset[[#This Row],[2024/25 To - Spending review Topic 3]]+Dataset[[#This Row],[2024/25 To - Spending review Topic 4]]+Dataset[[#This Row],[2024/25 To - Other reallocations]]","v":0},{"$f":"Dataset[[#This Row],[2025/26 To - Spending review Topic 1]]+Dataset[[#This Row],[2025/26 To - Spending review Topic 2]]+Dataset[[#This Row],[2025/26 To - Spending review Topic 3]]+Dataset[[#This Row],[2025/26 To - Spending review Topic 4]]+Dataset[[#This Row],[2025/26 To - Other reallocations]]","v":0},{"$f":"Dataset[[#This Row],[2023/24 Baseline]]+Dataset[[#This Row],[2023/24 From - Total]]+Dataset[[#This Row],[2023/24 To - Total]]","v":30411},{"$f":"Dataset[[#This Row],[2024/25 Baseline]]+Dataset[[#This Row],[2024/25 From - Total]]+Dataset[[#This Row],[2024/25 To - Total]]","v":31687},{"$f":"Dataset[[#This Row],[2025/26 Baseline]]+Dataset[[#This Row],[2025/26 From - Total]]+Dataset[[#This Row],[2025/26 To - Total]]","v":33107}]
["NAT|Non-transfer item","2|Social contributions","2023_24","MTEF2023",2,2,2,927,310,"02","02","02","000927","000310","02|02|02",1,1,1,2,2,"01|01|01|02|02","National","Parliament","Legislation and Oversight","National Council of Provinces","Non-transfer item","Current","Current payments","Compensation of employees","Social contributions","Social contributions","General public services","Executive and legislative organs","NAT",0,0,0,0,0,0,0,0,0,0,0,null,null,null,null,null,null,null,null,null,null,null,null,null,null,null,null,null,null,null,null,null,null,null,null,null,null,null,null,null,null,{"$f":"Dataset[[#This Row],[2023/24 From - Spending review Topic 1]]+Dataset[[#This Row],[2023/24 From - Spending review Topic 2]]+Dataset[[#This Row],[2023/24 From - Spending review Topic 3]]+Dataset[[#This Row],[2023/24 From - Spending review Topic 4]]+Dataset[[#This Row],[2023/24 From - Other reallocations]]","v":0},{"$f":"Dataset[[#This Row],[2024/25 From - Spending review Topic 1]]+Dataset[[#This Row],[2024/25 From - Spending review Topic 2]]+Dataset[[#This Row],[2024/25 From - Spending review Topic 3]]+Dataset[[#This Row],[2024/25 From - Spending review Topic 4]]+Dataset[[#This Row],[2024/25 From - Other reallocations]]","v":0},{"$f":"Dataset[[#This Row],[2025/26 From - Spending review Topic 1]]+Dataset[[#This Row],[2025/26 From - Spending review Topic 2]]+Dataset[[#This Row],[2025/26 From - Spending review Topic 3]]+Dataset[[#This Row],[2025/26 From - Spending review Topic 4]]+Dataset[[#This Row],[2025/26 From - Other reallocations]]","v":0},{"$f":"Dataset[[#This Row],[2023/24 To - Spending review Topic 1]]+Dataset[[#This Row],[2023/24 To - Spending review Topic 2]]+Dataset[[#This Row],[2023/24 To - Spending review Topic 3]]+Dataset[[#This Row],[2023/24 To - Spending review Topic 4]]+Dataset[[#This Row],[2023/24 To - Other reallocations]]","v":0},{"$f":"Dataset[[#This Row],[2024/25 To - Spending review Topic 1]]+Dataset[[#This Row],[2024/25 To - Spending review Topic 2]]+Dataset[[#This Row],[2024/25 To - Spending review Topic 3]]+Dataset[[#This Row],[2024/25 To - Spending review Topic 4]]+Dataset[[#This Row],[2024/25 To - Other reallocations]]","v":0},{"$f":"Dataset[[#This Row],[2025/26 To - Spending review Topic 1]]+Dataset[[#This Row],[2025/26 To - Spending review Topic 2]]+Dataset[[#This Row],[2025/26 To - Spending review Topic 3]]+Dataset[[#This Row],[2025/26 To - Spending review Topic 4]]+Dataset[[#This Row],[2025/26 To - Other reallocations]]","v":0},{"$f":"Dataset[[#This Row],[2023/24 Baseline]]+Dataset[[#This Row],[2023/24 From - Total]]+Dataset[[#This Row],[2023/24 To - Total]]","v":0},{"$f":"Dataset[[#This Row],[2024/25 Baseline]]+Dataset[[#This Row],[2024/25 From - Total]]+Dataset[[#This Row],[2024/25 To - Total]]","v":0},{"$f":"Dataset[[#This Row],[2025/26 Baseline]]+Dataset[[#This Row],[2025/26 From - Total]]+Dataset[[#This Row],[2025/26 To - Total]]","v":0}]
["NAT|Non-transfer item","2|Administrative fees","2023_24","MTEF2023",2,2,2,928,311,"02","02","02","000928","000311","02|02|02",1,1,2,3,3,"01|01|02|03|03","National","Parliament","Legislation and Oversight","National Council of Provinces","Non-transfer item","Current","Current payments","Goods and services","Administrative fees","Administrative fees","General public services","Executive and legislative organs","NAT",0,0,0,0,0,0,0,0,0,0,0,null,null,null,null,null,null,null,null,null,null,null,null,null,null,null,null,null,null,null,null,null,null,null,null,null,null,null,null,null,null,{"$f":"Dataset[[#This Row],[2023/24 From - Spending review Topic 1]]+Dataset[[#This Row],[2023/24 From - Spending review Topic 2]]+Dataset[[#This Row],[2023/24 From - Spending review Topic 3]]+Dataset[[#This Row],[2023/24 From - Spending review Topic 4]]+Dataset[[#This Row],[2023/24 From - Other reallocations]]","v":0},{"$f":"Dataset[[#This Row],[2024/25 From - Spending review Topic 1]]+Dataset[[#This Row],[2024/25 From - Spending review Topic 2]]+Dataset[[#This Row],[2024/25 From - Spending review Topic 3]]+Dataset[[#This Row],[2024/25 From - Spending review Topic 4]]+Dataset[[#This Row],[2024/25 From - Other reallocations]]","v":0},{"$f":"Dataset[[#This Row],[2025/26 From - Spending review Topic 1]]+Dataset[[#This Row],[2025/26 From - Spending review Topic 2]]+Dataset[[#This Row],[2025/26 From - Spending review Topic 3]]+Dataset[[#This Row],[2025/26 From - Spending review Topic 4]]+Dataset[[#This Row],[2025/26 From - Other reallocations]]","v":0},{"$f":"Dataset[[#This Row],[2023/24 To - Spending review Topic 1]]+Dataset[[#This Row],[2023/24 To - Spending review Topic 2]]+Dataset[[#This Row],[2023/24 To - Spending review Topic 3]]+Dataset[[#This Row],[2023/24 To - Spending review Topic 4]]+Dataset[[#This Row],[2023/24 To - Other reallocations]]","v":0},{"$f":"Dataset[[#This Row],[2024/25 To - Spending review Topic 1]]+Dataset[[#This Row],[2024/25 To - Spending review Topic 2]]+Dataset[[#This Row],[2024/25 To - Spending review Topic 3]]+Dataset[[#This Row],[2024/25 To - Spending review Topic 4]]+Dataset[[#This Row],[2024/25 To - Other reallocations]]","v":0},{"$f":"Dataset[[#This Row],[2025/26 To - Spending review Topic 1]]+Dataset[[#This Row],[2025/26 To - Spending review Topic 2]]+Dataset[[#This Row],[2025/26 To - Spending review Topic 3]]+Dataset[[#This Row],[2025/26 To - Spending review Topic 4]]+Dataset[[#This Row],[2025/26 To - Other reallocations]]","v":0},{"$f":"Dataset[[#This Row],[2023/24 Baseline]]+Dataset[[#This Row],[2023/24 From - Total]]+Dataset[[#This Row],[2023/24 To - Total]]","v":0},{"$f":"Dataset[[#This Row],[2024/25 Baseline]]+Dataset[[#This Row],[2024/25 From - Total]]+Dataset[[#This Row],[2024/25 To - Total]]","v":0},{"$f":"Dataset[[#This Row],[2025/26 Baseline]]+Dataset[[#This Row],[2025/26 From - Total]]+Dataset[[#This Row],[2025/26 To - Total]]","v":0}]
["NAT|Non-transfer item","2|Advertising","2023_24","MTEF2023",2,2,2,929,312,"02","02","02","000929","000312","02|02|02",1,1,2,4,4,"01|01|02|04|04","National","Parliament","Legislation and Oversight","National Council of Provinces","Non-transfer item","Current","Current payments","Goods and services","Advertising","Advertising","General public services","Executive and legislative organs","NAT",2208,2332,0,0,0,0,0,0,0,0,0,null,null,null,null,null,null,null,null,null,null,null,null,null,null,null,null,null,null,null,null,null,null,null,null,null,null,null,null,null,null,{"$f":"Dataset[[#This Row],[2023/24 From - Spending review Topic 1]]+Dataset[[#This Row],[2023/24 From - Spending review Topic 2]]+Dataset[[#This Row],[2023/24 From - Spending review Topic 3]]+Dataset[[#This Row],[2023/24 From - Spending review Topic 4]]+Dataset[[#This Row],[2023/24 From - Other reallocations]]","v":0},{"$f":"Dataset[[#This Row],[2024/25 From - Spending review Topic 1]]+Dataset[[#This Row],[2024/25 From - Spending review Topic 2]]+Dataset[[#This Row],[2024/25 From - Spending review Topic 3]]+Dataset[[#This Row],[2024/25 From - Spending review Topic 4]]+Dataset[[#This Row],[2024/25 From - Other reallocations]]","v":0},{"$f":"Dataset[[#This Row],[2025/26 From - Spending review Topic 1]]+Dataset[[#This Row],[2025/26 From - Spending review Topic 2]]+Dataset[[#This Row],[2025/26 From - Spending review Topic 3]]+Dataset[[#This Row],[2025/26 From - Spending review Topic 4]]+Dataset[[#This Row],[2025/26 From - Other reallocations]]","v":0},{"$f":"Dataset[[#This Row],[2023/24 To - Spending review Topic 1]]+Dataset[[#This Row],[2023/24 To - Spending review Topic 2]]+Dataset[[#This Row],[2023/24 To - Spending review Topic 3]]+Dataset[[#This Row],[2023/24 To - Spending review Topic 4]]+Dataset[[#This Row],[2023/24 To - Other reallocations]]","v":0},{"$f":"Dataset[[#This Row],[2024/25 To - Spending review Topic 1]]+Dataset[[#This Row],[2024/25 To - Spending review Topic 2]]+Dataset[[#This Row],[2024/25 To - Spending review Topic 3]]+Dataset[[#This Row],[2024/25 To - Spending review Topic 4]]+Dataset[[#This Row],[2024/25 To - Other reallocations]]","v":0},{"$f":"Dataset[[#This Row],[2025/26 To - Spending review Topic 1]]+Dataset[[#This Row],[2025/26 To - Spending review Topic 2]]+Dataset[[#This Row],[2025/26 To - Spending review Topic 3]]+Dataset[[#This Row],[2025/26 To - Spending review Topic 4]]+Dataset[[#This Row],[2025/26 To - Other reallocations]]","v":0},{"$f":"Dataset[[#This Row],[2023/24 Baseline]]+Dataset[[#This Row],[2023/24 From - Total]]+Dataset[[#This Row],[2023/24 To - Total]]","v":0},{"$f":"Dataset[[#This Row],[2024/25 Baseline]]+Dataset[[#This Row],[2024/25 From - Total]]+Dataset[[#This Row],[2024/25 To - Total]]","v":0},{"$f":"Dataset[[#This Row],[2025/26 Baseline]]+Dataset[[#This Row],[2025/26 From - Total]]+Dataset[[#This Row],[2025/26 To - Total]]","v":0}]
["NAT|Non-transfer item","2|Minor assets","2023_24","MTEF2023",2,2,2,930,313,"02","02","02","000930","000313","02|02|02",1,1,2,5,5,"01|01|02|05|05","National","Parliament","Legislation and Oversight","National Council of Provinces","Non-transfer item","Current","Current payments","Goods and services","Minor assets","Minor assets","General public services","Executive and legislative organs","NAT",0,0,0,0,0,0,0,0,0,0,0,null,null,null,null,null,null,null,null,null,null,null,null,null,null,null,null,null,null,null,null,null,null,null,null,null,null,null,null,null,null,{"$f":"Dataset[[#This Row],[2023/24 From - Spending review Topic 1]]+Dataset[[#This Row],[2023/24 From - Spending review Topic 2]]+Dataset[[#This Row],[2023/24 From - Spending review Topic 3]]+Dataset[[#This Row],[2023/24 From - Spending review Topic 4]]+Dataset[[#This Row],[2023/24 From - Other reallocations]]","v":0},{"$f":"Dataset[[#This Row],[2024/25 From - Spending review Topic 1]]+Dataset[[#This Row],[2024/25 From - Spending review Topic 2]]+Dataset[[#This Row],[2024/25 From - Spending review Topic 3]]+Dataset[[#This Row],[2024/25 From - Spending review Topic 4]]+Dataset[[#This Row],[2024/25 From - Other reallocations]]","v":0},{"$f":"Dataset[[#This Row],[2025/26 From - Spending review Topic 1]]+Dataset[[#This Row],[2025/26 From - Spending review Topic 2]]+Dataset[[#This Row],[2025/26 From - Spending review Topic 3]]+Dataset[[#This Row],[2025/26 From - Spending review Topic 4]]+Dataset[[#This Row],[2025/26 From - Other reallocations]]","v":0},{"$f":"Dataset[[#This Row],[2023/24 To - Spending review Topic 1]]+Dataset[[#This Row],[2023/24 To - Spending review Topic 2]]+Dataset[[#This Row],[2023/24 To - Spending review Topic 3]]+Dataset[[#This Row],[2023/24 To - Spending review Topic 4]]+Dataset[[#This Row],[2023/24 To - Other reallocations]]","v":0},{"$f":"Dataset[[#This Row],[2024/25 To - Spending review Topic 1]]+Dataset[[#This Row],[2024/25 To - Spending review Topic 2]]+Dataset[[#This Row],[2024/25 To - Spending review Topic 3]]+Dataset[[#This Row],[2024/25 To - Spending review Topic 4]]+Dataset[[#This Row],[2024/25 To - Other reallocations]]","v":0},{"$f":"Dataset[[#This Row],[2025/26 To - Spending review Topic 1]]+Dataset[[#This Row],[2025/26 To - Spending review Topic 2]]+Dataset[[#This Row],[2025/26 To - Spending review Topic 3]]+Dataset[[#This Row],[2025/26 To - Spending review Topic 4]]+Dataset[[#This Row],[2025/26 To - Other reallocations]]","v":0},{"$f":"Dataset[[#This Row],[2023/24 Baseline]]+Dataset[[#This Row],[2023/24 From - Total]]+Dataset[[#This Row],[2023/24 To - Total]]","v":0},{"$f":"Dataset[[#This Row],[2024/25 Baseline]]+Dataset[[#This Row],[2024/25 From - Total]]+Dataset[[#This Row],[2024/25 To - Total]]","v":0},{"$f":"Dataset[[#This Row],[2025/26 Baseline]]+Dataset[[#This Row],[2025/26 From - Total]]+Dataset[[#This Row],[2025/26 To - Total]]","v":0}]
["NAT|Non-transfer item","2|Audit costs: External","2023_24","MTEF2023",2,2,2,931,314,"02","02","02","000931","000314","02|02|02",1,1,2,6,6,"01|01|02|06|06","National","Parliament","Legislation and Oversight","National Council of Provinces","Non-transfer item","Current","Current payments","Goods and services","Audit costs: External","Audit costs: External","General public services","Executive and legislative organs","NAT",0,0,0,0,0,0,0,0,0,0,0,null,null,null,null,null,null,null,null,null,null,null,null,null,null,null,null,null,null,null,null,null,null,null,null,null,null,null,null,null,null,{"$f":"Dataset[[#This Row],[2023/24 From - Spending review Topic 1]]+Dataset[[#This Row],[2023/24 From - Spending review Topic 2]]+Dataset[[#This Row],[2023/24 From - Spending review Topic 3]]+Dataset[[#This Row],[2023/24 From - Spending review Topic 4]]+Dataset[[#This Row],[2023/24 From - Other reallocations]]","v":0},{"$f":"Dataset[[#This Row],[2024/25 From - Spending review Topic 1]]+Dataset[[#This Row],[2024/25 From - Spending review Topic 2]]+Dataset[[#This Row],[2024/25 From - Spending review Topic 3]]+Dataset[[#This Row],[2024/25 From - Spending review Topic 4]]+Dataset[[#This Row],[2024/25 From - Other reallocations]]","v":0},{"$f":"Dataset[[#This Row],[2025/26 From - Spending review Topic 1]]+Dataset[[#This Row],[2025/26 From - Spending review Topic 2]]+Dataset[[#This Row],[2025/26 From - Spending review Topic 3]]+Dataset[[#This Row],[2025/26 From - Spending review Topic 4]]+Dataset[[#This Row],[2025/26 From - Other reallocations]]","v":0},{"$f":"Dataset[[#This Row],[2023/24 To - Spending review Topic 1]]+Dataset[[#This Row],[2023/24 To - Spending review Topic 2]]+Dataset[[#This Row],[2023/24 To - Spending review Topic 3]]+Dataset[[#This Row],[2023/24 To - Spending review Topic 4]]+Dataset[[#This Row],[2023/24 To - Other reallocations]]","v":0},{"$f":"Dataset[[#This Row],[2024/25 To - Spending review Topic 1]]+Dataset[[#This Row],[2024/25 To - Spending review Topic 2]]+Dataset[[#This Row],[2024/25 To - Spending review Topic 3]]+Dataset[[#This Row],[2024/25 To - Spending review Topic 4]]+Dataset[[#This Row],[2024/25 To - Other reallocations]]","v":0},{"$f":"Dataset[[#This Row],[2025/26 To - Spending review Topic 1]]+Dataset[[#This Row],[2025/26 To - Spending review Topic 2]]+Dataset[[#This Row],[2025/26 To - Spending review Topic 3]]+Dataset[[#This Row],[2025/26 To - Spending review Topic 4]]+Dataset[[#This Row],[2025/26 To - Other reallocations]]","v":0},{"$f":"Dataset[[#This Row],[2023/24 Baseline]]+Dataset[[#This Row],[2023/24 From - Total]]+Dataset[[#This Row],[2023/24 To - Total]]","v":0},{"$f":"Dataset[[#This Row],[2024/25 Baseline]]+Dataset[[#This Row],[2024/25 From - Total]]+Dataset[[#This Row],[2024/25 To - Total]]","v":0},{"$f":"Dataset[[#This Row],[2025/26 Baseline]]+Dataset[[#This Row],[2025/26 From - Total]]+Dataset[[#This Row],[2025/26 To - Total]]","v":0}]
["NAT|Non-transfer item","2|Bursaries: Employees","2023_24","MTEF2023",2,2,2,932,315,"02","02","02","000932","000315","02|02|02",1,1,2,7,7,"01|01|02|07|07","National","Parliament","Legislation and Oversight","National Council of Provinces","Non-transfer item","Current","Current payments","Goods and services","Bursaries: Employees","Bursaries: Employees","General public services","Executive and legislative organs","NAT",0,0,0,0,0,0,0,0,0,0,0,null,null,null,null,null,null,null,null,null,null,null,null,null,null,null,null,null,null,null,null,null,null,null,null,null,null,null,null,null,null,{"$f":"Dataset[[#This Row],[2023/24 From - Spending review Topic 1]]+Dataset[[#This Row],[2023/24 From - Spending review Topic 2]]+Dataset[[#This Row],[2023/24 From - Spending review Topic 3]]+Dataset[[#This Row],[2023/24 From - Spending review Topic 4]]+Dataset[[#This Row],[2023/24 From - Other reallocations]]","v":0},{"$f":"Dataset[[#This Row],[2024/25 From - Spending review Topic 1]]+Dataset[[#This Row],[2024/25 From - Spending review Topic 2]]+Dataset[[#This Row],[2024/25 From - Spending review Topic 3]]+Dataset[[#This Row],[2024/25 From - Spending review Topic 4]]+Dataset[[#This Row],[2024/25 From - Other reallocations]]","v":0},{"$f":"Dataset[[#This Row],[2025/26 From - Spending review Topic 1]]+Dataset[[#This Row],[2025/26 From - Spending review Topic 2]]+Dataset[[#This Row],[2025/26 From - Spending review Topic 3]]+Dataset[[#This Row],[2025/26 From - Spending review Topic 4]]+Dataset[[#This Row],[2025/26 From - Other reallocations]]","v":0},{"$f":"Dataset[[#This Row],[2023/24 To - Spending review Topic 1]]+Dataset[[#This Row],[2023/24 To - Spending review Topic 2]]+Dataset[[#This Row],[2023/24 To - Spending review Topic 3]]+Dataset[[#This Row],[2023/24 To - Spending review Topic 4]]+Dataset[[#This Row],[2023/24 To - Other reallocations]]","v":0},{"$f":"Dataset[[#This Row],[2024/25 To - Spending review Topic 1]]+Dataset[[#This Row],[2024/25 To - Spending review Topic 2]]+Dataset[[#This Row],[2024/25 To - Spending review Topic 3]]+Dataset[[#This Row],[2024/25 To - Spending review Topic 4]]+Dataset[[#This Row],[2024/25 To - Other reallocations]]","v":0},{"$f":"Dataset[[#This Row],[2025/26 To - Spending review Topic 1]]+Dataset[[#This Row],[2025/26 To - Spending review Topic 2]]+Dataset[[#This Row],[2025/26 To - Spending review Topic 3]]+Dataset[[#This Row],[2025/26 To - Spending review Topic 4]]+Dataset[[#This Row],[2025/26 To - Other reallocations]]","v":0},{"$f":"Dataset[[#This Row],[2023/24 Baseline]]+Dataset[[#This Row],[2023/24 From - Total]]+Dataset[[#This Row],[2023/24 To - Total]]","v":0},{"$f":"Dataset[[#This Row],[2024/25 Baseline]]+Dataset[[#This Row],[2024/25 From - Total]]+Dataset[[#This Row],[2024/25 To - Total]]","v":0},{"$f":"Dataset[[#This Row],[2025/26 Baseline]]+Dataset[[#This Row],[2025/26 From - Total]]+Dataset[[#This Row],[2025/26 To - Total]]","v":0}]
["NAT|Non-transfer item","2|Catering: Departmental activities","2023_24","MTEF2023",2,2,2,933,316,"02","02","02","000933","000316","02|02|02",1,1,2,8,8,"01|01|02|08|08","National","Parliament","Legislation and Oversight","National Council of Provinces","Non-transfer item","Current","Current payments","Goods and services","Catering: Departmental activities","Catering: Departmental activities","General public services","Executive and legislative organs","NAT",0,0,0,0,0,0,0,0,0,0,0,null,null,null,null,null,null,null,null,null,null,null,null,null,null,null,null,null,null,null,null,null,null,null,null,null,null,null,null,null,null,{"$f":"Dataset[[#This Row],[2023/24 From - Spending review Topic 1]]+Dataset[[#This Row],[2023/24 From - Spending review Topic 2]]+Dataset[[#This Row],[2023/24 From - Spending review Topic 3]]+Dataset[[#This Row],[2023/24 From - Spending review Topic 4]]+Dataset[[#This Row],[2023/24 From - Other reallocations]]","v":0},{"$f":"Dataset[[#This Row],[2024/25 From - Spending review Topic 1]]+Dataset[[#This Row],[2024/25 From - Spending review Topic 2]]+Dataset[[#This Row],[2024/25 From - Spending review Topic 3]]+Dataset[[#This Row],[2024/25 From - Spending review Topic 4]]+Dataset[[#This Row],[2024/25 From - Other reallocations]]","v":0},{"$f":"Dataset[[#This Row],[2025/26 From - Spending review Topic 1]]+Dataset[[#This Row],[2025/26 From - Spending review Topic 2]]+Dataset[[#This Row],[2025/26 From - Spending review Topic 3]]+Dataset[[#This Row],[2025/26 From - Spending review Topic 4]]+Dataset[[#This Row],[2025/26 From - Other reallocations]]","v":0},{"$f":"Dataset[[#This Row],[2023/24 To - Spending review Topic 1]]+Dataset[[#This Row],[2023/24 To - Spending review Topic 2]]+Dataset[[#This Row],[2023/24 To - Spending review Topic 3]]+Dataset[[#This Row],[2023/24 To - Spending review Topic 4]]+Dataset[[#This Row],[2023/24 To - Other reallocations]]","v":0},{"$f":"Dataset[[#This Row],[2024/25 To - Spending review Topic 1]]+Dataset[[#This Row],[2024/25 To - Spending review Topic 2]]+Dataset[[#This Row],[2024/25 To - Spending review Topic 3]]+Dataset[[#This Row],[2024/25 To - Spending review Topic 4]]+Dataset[[#This Row],[2024/25 To - Other reallocations]]","v":0},{"$f":"Dataset[[#This Row],[2025/26 To - Spending review Topic 1]]+Dataset[[#This Row],[2025/26 To - Spending review Topic 2]]+Dataset[[#This Row],[2025/26 To - Spending review Topic 3]]+Dataset[[#This Row],[2025/26 To - Spending review Topic 4]]+Dataset[[#This Row],[2025/26 To - Other reallocations]]","v":0},{"$f":"Dataset[[#This Row],[2023/24 Baseline]]+Dataset[[#This Row],[2023/24 From - Total]]+Dataset[[#This Row],[2023/24 To - Total]]","v":0},{"$f":"Dataset[[#This Row],[2024/25 Baseline]]+Dataset[[#This Row],[2024/25 From - Total]]+Dataset[[#This Row],[2024/25 To - Total]]","v":0},{"$f":"Dataset[[#This Row],[2025/26 Baseline]]+Dataset[[#This Row],[2025/26 From - Total]]+Dataset[[#This Row],[2025/26 To - Total]]","v":0}]
["NAT|Non-transfer item","2|Communication (G&S)","2023_24","MTEF2023",2,2,2,934,317,"02","02","02","000934","000317","02|02|02",1,1,2,9,9,"01|01|02|09|09","National","Parliament","Legislation and Oversight","National Council of Provinces","Non-transfer item","Current","Current payments","Goods and services","Communication (G&S)","Communication (G&S)","General public services","Executive and legislative organs","NAT",708,748,789,820,820,820,0,843,847,887,927,null,null,null,null,null,null,null,null,null,null,null,null,null,null,null,null,null,null,null,null,null,null,null,null,null,null,null,null,null,null,{"$f":"Dataset[[#This Row],[2023/24 From - Spending review Topic 1]]+Dataset[[#This Row],[2023/24 From - Spending review Topic 2]]+Dataset[[#This Row],[2023/24 From - Spending review Topic 3]]+Dataset[[#This Row],[2023/24 From - Spending review Topic 4]]+Dataset[[#This Row],[2023/24 From - Other reallocations]]","v":0},{"$f":"Dataset[[#This Row],[2024/25 From - Spending review Topic 1]]+Dataset[[#This Row],[2024/25 From - Spending review Topic 2]]+Dataset[[#This Row],[2024/25 From - Spending review Topic 3]]+Dataset[[#This Row],[2024/25 From - Spending review Topic 4]]+Dataset[[#This Row],[2024/25 From - Other reallocations]]","v":0},{"$f":"Dataset[[#This Row],[2025/26 From - Spending review Topic 1]]+Dataset[[#This Row],[2025/26 From - Spending review Topic 2]]+Dataset[[#This Row],[2025/26 From - Spending review Topic 3]]+Dataset[[#This Row],[2025/26 From - Spending review Topic 4]]+Dataset[[#This Row],[2025/26 From - Other reallocations]]","v":0},{"$f":"Dataset[[#This Row],[2023/24 To - Spending review Topic 1]]+Dataset[[#This Row],[2023/24 To - Spending review Topic 2]]+Dataset[[#This Row],[2023/24 To - Spending review Topic 3]]+Dataset[[#This Row],[2023/24 To - Spending review Topic 4]]+Dataset[[#This Row],[2023/24 To - Other reallocations]]","v":0},{"$f":"Dataset[[#This Row],[2024/25 To - Spending review Topic 1]]+Dataset[[#This Row],[2024/25 To - Spending review Topic 2]]+Dataset[[#This Row],[2024/25 To - Spending review Topic 3]]+Dataset[[#This Row],[2024/25 To - Spending review Topic 4]]+Dataset[[#This Row],[2024/25 To - Other reallocations]]","v":0},{"$f":"Dataset[[#This Row],[2025/26 To - Spending review Topic 1]]+Dataset[[#This Row],[2025/26 To - Spending review Topic 2]]+Dataset[[#This Row],[2025/26 To - Spending review Topic 3]]+Dataset[[#This Row],[2025/26 To - Spending review Topic 4]]+Dataset[[#This Row],[2025/26 To - Other reallocations]]","v":0},{"$f":"Dataset[[#This Row],[2023/24 Baseline]]+Dataset[[#This Row],[2023/24 From - Total]]+Dataset[[#This Row],[2023/24 To - Total]]","v":847},{"$f":"Dataset[[#This Row],[2024/25 Baseline]]+Dataset[[#This Row],[2024/25 From - Total]]+Dataset[[#This Row],[2024/25 To - Total]]","v":887},{"$f":"Dataset[[#This Row],[2025/26 Baseline]]+Dataset[[#This Row],[2025/26 From - Total]]+Dataset[[#This Row],[2025/26 To - Total]]","v":927}]
["NAT|Non-transfer item","2|Computer services","2023_24","MTEF2023",2,2,2,935,318,"02","02","02","000935","000318","02|02|02",1,1,2,10,10,"01|01|02|10|10","National","Parliament","Legislation and Oversight","National Council of Provinces","Non-transfer item","Current","Current payments","Goods and services","Computer services","Computer services","General public services","Executive and legislative organs","NAT",0,0,0,0,0,0,0,0,0,0,0,null,null,null,null,null,null,null,null,null,null,null,null,null,null,null,null,null,null,null,null,null,null,null,null,null,null,null,null,null,null,{"$f":"Dataset[[#This Row],[2023/24 From - Spending review Topic 1]]+Dataset[[#This Row],[2023/24 From - Spending review Topic 2]]+Dataset[[#This Row],[2023/24 From - Spending review Topic 3]]+Dataset[[#This Row],[2023/24 From - Spending review Topic 4]]+Dataset[[#This Row],[2023/24 From - Other reallocations]]","v":0},{"$f":"Dataset[[#This Row],[2024/25 From - Spending review Topic 1]]+Dataset[[#This Row],[2024/25 From - Spending review Topic 2]]+Dataset[[#This Row],[2024/25 From - Spending review Topic 3]]+Dataset[[#This Row],[2024/25 From - Spending review Topic 4]]+Dataset[[#This Row],[2024/25 From - Other reallocations]]","v":0},{"$f":"Dataset[[#This Row],[2025/26 From - Spending review Topic 1]]+Dataset[[#This Row],[2025/26 From - Spending review Topic 2]]+Dataset[[#This Row],[2025/26 From - Spending review Topic 3]]+Dataset[[#This Row],[2025/26 From - Spending review Topic 4]]+Dataset[[#This Row],[2025/26 From - Other reallocations]]","v":0},{"$f":"Dataset[[#This Row],[2023/24 To - Spending review Topic 1]]+Dataset[[#This Row],[2023/24 To - Spending review Topic 2]]+Dataset[[#This Row],[2023/24 To - Spending review Topic 3]]+Dataset[[#This Row],[2023/24 To - Spending review Topic 4]]+Dataset[[#This Row],[2023/24 To - Other reallocations]]","v":0},{"$f":"Dataset[[#This Row],[2024/25 To - Spending review Topic 1]]+Dataset[[#This Row],[2024/25 To - Spending review Topic 2]]+Dataset[[#This Row],[2024/25 To - Spending review Topic 3]]+Dataset[[#This Row],[2024/25 To - Spending review Topic 4]]+Dataset[[#This Row],[2024/25 To - Other reallocations]]","v":0},{"$f":"Dataset[[#This Row],[2025/26 To - Spending review Topic 1]]+Dataset[[#This Row],[2025/26 To - Spending review Topic 2]]+Dataset[[#This Row],[2025/26 To - Spending review Topic 3]]+Dataset[[#This Row],[2025/26 To - Spending review Topic 4]]+Dataset[[#This Row],[2025/26 To - Other reallocations]]","v":0},{"$f":"Dataset[[#This Row],[2023/24 Baseline]]+Dataset[[#This Row],[2023/24 From - Total]]+Dataset[[#This Row],[2023/24 To - Total]]","v":0},{"$f":"Dataset[[#This Row],[2024/25 Baseline]]+Dataset[[#This Row],[2024/25 From - Total]]+Dataset[[#This Row],[2024/25 To - Total]]","v":0},{"$f":"Dataset[[#This Row],[2025/26 Baseline]]+Dataset[[#This Row],[2025/26 From - Total]]+Dataset[[#This Row],[2025/26 To - Total]]","v":0}]
["NAT|Non-transfer item","2|Consultants: Business and advisory services","2023_24","MTEF2023",2,2,2,936,319,"02","02","02","000936","000319","02|02|02",1,1,2,11,11,"01|01|02|11|11","National","Parliament","Legislation and Oversight","National Council of Provinces","Non-transfer item","Current","Current payments","Goods and services","Consultants: Business and advisory services","Consultants: Business and advisory services","General public services","Executive and legislative organs","NAT",1396,1474,1555,1617,1617,1617,0,1662,1669,1744,1822,null,null,null,null,null,null,null,null,null,null,null,null,null,null,null,null,null,null,null,null,null,null,null,null,null,null,null,null,null,null,{"$f":"Dataset[[#This Row],[2023/24 From - Spending review Topic 1]]+Dataset[[#This Row],[2023/24 From - Spending review Topic 2]]+Dataset[[#This Row],[2023/24 From - Spending review Topic 3]]+Dataset[[#This Row],[2023/24 From - Spending review Topic 4]]+Dataset[[#This Row],[2023/24 From - Other reallocations]]","v":0},{"$f":"Dataset[[#This Row],[2024/25 From - Spending review Topic 1]]+Dataset[[#This Row],[2024/25 From - Spending review Topic 2]]+Dataset[[#This Row],[2024/25 From - Spending review Topic 3]]+Dataset[[#This Row],[2024/25 From - Spending review Topic 4]]+Dataset[[#This Row],[2024/25 From - Other reallocations]]","v":0},{"$f":"Dataset[[#This Row],[2025/26 From - Spending review Topic 1]]+Dataset[[#This Row],[2025/26 From - Spending review Topic 2]]+Dataset[[#This Row],[2025/26 From - Spending review Topic 3]]+Dataset[[#This Row],[2025/26 From - Spending review Topic 4]]+Dataset[[#This Row],[2025/26 From - Other reallocations]]","v":0},{"$f":"Dataset[[#This Row],[2023/24 To - Spending review Topic 1]]+Dataset[[#This Row],[2023/24 To - Spending review Topic 2]]+Dataset[[#This Row],[2023/24 To - Spending review Topic 3]]+Dataset[[#This Row],[2023/24 To - Spending review Topic 4]]+Dataset[[#This Row],[2023/24 To - Other reallocations]]","v":0},{"$f":"Dataset[[#This Row],[2024/25 To - Spending review Topic 1]]+Dataset[[#This Row],[2024/25 To - Spending review Topic 2]]+Dataset[[#This Row],[2024/25 To - Spending review Topic 3]]+Dataset[[#This Row],[2024/25 To - Spending review Topic 4]]+Dataset[[#This Row],[2024/25 To - Other reallocations]]","v":0},{"$f":"Dataset[[#This Row],[2025/26 To - Spending review Topic 1]]+Dataset[[#This Row],[2025/26 To - Spending review Topic 2]]+Dataset[[#This Row],[2025/26 To - Spending review Topic 3]]+Dataset[[#This Row],[2025/26 To - Spending review Topic 4]]+Dataset[[#This Row],[2025/26 To - Other reallocations]]","v":0},{"$f":"Dataset[[#This Row],[2023/24 Baseline]]+Dataset[[#This Row],[2023/24 From - Total]]+Dataset[[#This Row],[2023/24 To - Total]]","v":1669},{"$f":"Dataset[[#This Row],[2024/25 Baseline]]+Dataset[[#This Row],[2024/25 From - Total]]+Dataset[[#This Row],[2024/25 To - Total]]","v":1744},{"$f":"Dataset[[#This Row],[2025/26 Baseline]]+Dataset[[#This Row],[2025/26 From - Total]]+Dataset[[#This Row],[2025/26 To - Total]]","v":1822}]
["NAT|Non-transfer item","2|Infrastructure and planning services","2023_24","MTEF2023",2,2,2,937,320,"02","02","02","000937","000320","02|02|02",1,1,2,12,12,"01|01|02|12|12","National","Parliament","Legislation and Oversight","National Council of Provinces","Non-transfer item","Current","Current payments","Goods and services","Infrastructure and planning services","Infrastructure and planning services","General public services","Executive and legislative organs","NAT",0,0,0,0,0,0,0,0,0,0,0,null,null,null,null,null,null,null,null,null,null,null,null,null,null,null,null,null,null,null,null,null,null,null,null,null,null,null,null,null,null,{"$f":"Dataset[[#This Row],[2023/24 From - Spending review Topic 1]]+Dataset[[#This Row],[2023/24 From - Spending review Topic 2]]+Dataset[[#This Row],[2023/24 From - Spending review Topic 3]]+Dataset[[#This Row],[2023/24 From - Spending review Topic 4]]+Dataset[[#This Row],[2023/24 From - Other reallocations]]","v":0},{"$f":"Dataset[[#This Row],[2024/25 From - Spending review Topic 1]]+Dataset[[#This Row],[2024/25 From - Spending review Topic 2]]+Dataset[[#This Row],[2024/25 From - Spending review Topic 3]]+Dataset[[#This Row],[2024/25 From - Spending review Topic 4]]+Dataset[[#This Row],[2024/25 From - Other reallocations]]","v":0},{"$f":"Dataset[[#This Row],[2025/26 From - Spending review Topic 1]]+Dataset[[#This Row],[2025/26 From - Spending review Topic 2]]+Dataset[[#This Row],[2025/26 From - Spending review Topic 3]]+Dataset[[#This Row],[2025/26 From - Spending review Topic 4]]+Dataset[[#This Row],[2025/26 From - Other reallocations]]","v":0},{"$f":"Dataset[[#This Row],[2023/24 To - Spending review Topic 1]]+Dataset[[#This Row],[2023/24 To - Spending review Topic 2]]+Dataset[[#This Row],[2023/24 To - Spending review Topic 3]]+Dataset[[#This Row],[2023/24 To - Spending review Topic 4]]+Dataset[[#This Row],[2023/24 To - Other reallocations]]","v":0},{"$f":"Dataset[[#This Row],[2024/25 To - Spending review Topic 1]]+Dataset[[#This Row],[2024/25 To - Spending review Topic 2]]+Dataset[[#This Row],[2024/25 To - Spending review Topic 3]]+Dataset[[#This Row],[2024/25 To - Spending review Topic 4]]+Dataset[[#This Row],[2024/25 To - Other reallocations]]","v":0},{"$f":"Dataset[[#This Row],[2025/26 To - Spending review Topic 1]]+Dataset[[#This Row],[2025/26 To - Spending review Topic 2]]+Dataset[[#This Row],[2025/26 To - Spending review Topic 3]]+Dataset[[#This Row],[2025/26 To - Spending review Topic 4]]+Dataset[[#This Row],[2025/26 To - Other reallocations]]","v":0},{"$f":"Dataset[[#This Row],[2023/24 Baseline]]+Dataset[[#This Row],[2023/24 From - Total]]+Dataset[[#This Row],[2023/24 To - Total]]","v":0},{"$f":"Dataset[[#This Row],[2024/25 Baseline]]+Dataset[[#This Row],[2024/25 From - Total]]+Dataset[[#This Row],[2024/25 To - Total]]","v":0},{"$f":"Dataset[[#This Row],[2025/26 Baseline]]+Dataset[[#This Row],[2025/26 From - Total]]+Dataset[[#This Row],[2025/26 To - Total]]","v":0}]
["NAT|Non-transfer item","2|Laboratory services","2023_24","MTEF2023",2,2,2,938,321,"02","02","02","000938","000321","02|02|02",1,1,2,13,13,"01|01|02|13|13","National","Parliament","Legislation and Oversight","National Council of Provinces","Non-transfer item","Current","Current payments","Goods and services","Laboratory services","Laboratory services","General public services","Executive and legislative organs","NAT",0,0,0,0,0,0,0,0,0,0,0,null,null,null,null,null,null,null,null,null,null,null,null,null,null,null,null,null,null,null,null,null,null,null,null,null,null,null,null,null,null,{"$f":"Dataset[[#This Row],[2023/24 From - Spending review Topic 1]]+Dataset[[#This Row],[2023/24 From - Spending review Topic 2]]+Dataset[[#This Row],[2023/24 From - Spending review Topic 3]]+Dataset[[#This Row],[2023/24 From - Spending review Topic 4]]+Dataset[[#This Row],[2023/24 From - Other reallocations]]","v":0},{"$f":"Dataset[[#This Row],[2024/25 From - Spending review Topic 1]]+Dataset[[#This Row],[2024/25 From - Spending review Topic 2]]+Dataset[[#This Row],[2024/25 From - Spending review Topic 3]]+Dataset[[#This Row],[2024/25 From - Spending review Topic 4]]+Dataset[[#This Row],[2024/25 From - Other reallocations]]","v":0},{"$f":"Dataset[[#This Row],[2025/26 From - Spending review Topic 1]]+Dataset[[#This Row],[2025/26 From - Spending review Topic 2]]+Dataset[[#This Row],[2025/26 From - Spending review Topic 3]]+Dataset[[#This Row],[2025/26 From - Spending review Topic 4]]+Dataset[[#This Row],[2025/26 From - Other reallocations]]","v":0},{"$f":"Dataset[[#This Row],[2023/24 To - Spending review Topic 1]]+Dataset[[#This Row],[2023/24 To - Spending review Topic 2]]+Dataset[[#This Row],[2023/24 To - Spending review Topic 3]]+Dataset[[#This Row],[2023/24 To - Spending review Topic 4]]+Dataset[[#This Row],[2023/24 To - Other reallocations]]","v":0},{"$f":"Dataset[[#This Row],[2024/25 To - Spending review Topic 1]]+Dataset[[#This Row],[2024/25 To - Spending review Topic 2]]+Dataset[[#This Row],[2024/25 To - Spending review Topic 3]]+Dataset[[#This Row],[2024/25 To - Spending review Topic 4]]+Dataset[[#This Row],[2024/25 To - Other reallocations]]","v":0},{"$f":"Dataset[[#This Row],[2025/26 To - Spending review Topic 1]]+Dataset[[#This Row],[2025/26 To - Spending review Topic 2]]+Dataset[[#This Row],[2025/26 To - Spending review Topic 3]]+Dataset[[#This Row],[2025/26 To - Spending review Topic 4]]+Dataset[[#This Row],[2025/26 To - Other reallocations]]","v":0},{"$f":"Dataset[[#This Row],[2023/24 Baseline]]+Dataset[[#This Row],[2023/24 From - Total]]+Dataset[[#This Row],[2023/24 To - Total]]","v":0},{"$f":"Dataset[[#This Row],[2024/25 Baseline]]+Dataset[[#This Row],[2024/25 From - Total]]+Dataset[[#This Row],[2024/25 To - Total]]","v":0},{"$f":"Dataset[[#This Row],[2025/26 Baseline]]+Dataset[[#This Row],[2025/26 From - Total]]+Dataset[[#This Row],[2025/26 To - Total]]","v":0}]
["NAT|Non-transfer item","2|Legal services (G&S)","2023_24","MTEF2023",2,2,2,939,322,"02","02","02","000939","000322","02|02|02",1,1,2,14,14,"01|01|02|14|14","National","Parliament","Legislation and Oversight","National Council of Provinces","Non-transfer item","Current","Current payments","Goods and services","Legal services (G&S)","Legal services (G&S)","General public services","Executive and legislative organs","NAT",0,0,0,0,0,0,0,0,0,0,0,null,null,null,null,null,null,null,null,null,null,null,null,null,null,null,null,null,null,null,null,null,null,null,null,null,null,null,null,null,null,{"$f":"Dataset[[#This Row],[2023/24 From - Spending review Topic 1]]+Dataset[[#This Row],[2023/24 From - Spending review Topic 2]]+Dataset[[#This Row],[2023/24 From - Spending review Topic 3]]+Dataset[[#This Row],[2023/24 From - Spending review Topic 4]]+Dataset[[#This Row],[2023/24 From - Other reallocations]]","v":0},{"$f":"Dataset[[#This Row],[2024/25 From - Spending review Topic 1]]+Dataset[[#This Row],[2024/25 From - Spending review Topic 2]]+Dataset[[#This Row],[2024/25 From - Spending review Topic 3]]+Dataset[[#This Row],[2024/25 From - Spending review Topic 4]]+Dataset[[#This Row],[2024/25 From - Other reallocations]]","v":0},{"$f":"Dataset[[#This Row],[2025/26 From - Spending review Topic 1]]+Dataset[[#This Row],[2025/26 From - Spending review Topic 2]]+Dataset[[#This Row],[2025/26 From - Spending review Topic 3]]+Dataset[[#This Row],[2025/26 From - Spending review Topic 4]]+Dataset[[#This Row],[2025/26 From - Other reallocations]]","v":0},{"$f":"Dataset[[#This Row],[2023/24 To - Spending review Topic 1]]+Dataset[[#This Row],[2023/24 To - Spending review Topic 2]]+Dataset[[#This Row],[2023/24 To - Spending review Topic 3]]+Dataset[[#This Row],[2023/24 To - Spending review Topic 4]]+Dataset[[#This Row],[2023/24 To - Other reallocations]]","v":0},{"$f":"Dataset[[#This Row],[2024/25 To - Spending review Topic 1]]+Dataset[[#This Row],[2024/25 To - Spending review Topic 2]]+Dataset[[#This Row],[2024/25 To - Spending review Topic 3]]+Dataset[[#This Row],[2024/25 To - Spending review Topic 4]]+Dataset[[#This Row],[2024/25 To - Other reallocations]]","v":0},{"$f":"Dataset[[#This Row],[2025/26 To - Spending review Topic 1]]+Dataset[[#This Row],[2025/26 To - Spending review Topic 2]]+Dataset[[#This Row],[2025/26 To - Spending review Topic 3]]+Dataset[[#This Row],[2025/26 To - Spending review Topic 4]]+Dataset[[#This Row],[2025/26 To - Other reallocations]]","v":0},{"$f":"Dataset[[#This Row],[2023/24 Baseline]]+Dataset[[#This Row],[2023/24 From - Total]]+Dataset[[#This Row],[2023/24 To - Total]]","v":0},{"$f":"Dataset[[#This Row],[2024/25 Baseline]]+Dataset[[#This Row],[2024/25 From - Total]]+Dataset[[#This Row],[2024/25 To - Total]]","v":0},{"$f":"Dataset[[#This Row],[2025/26 Baseline]]+Dataset[[#This Row],[2025/26 From - Total]]+Dataset[[#This Row],[2025/26 To - Total]]","v":0}]
["NAT|Non-transfer item","2|Science and technological services","2023_24","MTEF2023",2,2,2,940,323,"02","02","02","000940","000323","02|02|02",1,1,2,15,15,"01|01|02|15|15","National","Parliament","Legislation and Oversight","National Council of Provinces","Non-transfer item","Current","Current payments","Goods and services","Science and technological services","Science and technological services","General public services","Executive and legislative organs","NAT",0,0,0,0,0,0,0,0,0,0,0,null,null,null,null,null,null,null,null,null,null,null,null,null,null,null,null,null,null,null,null,null,null,null,null,null,null,null,null,null,null,{"$f":"Dataset[[#This Row],[2023/24 From - Spending review Topic 1]]+Dataset[[#This Row],[2023/24 From - Spending review Topic 2]]+Dataset[[#This Row],[2023/24 From - Spending review Topic 3]]+Dataset[[#This Row],[2023/24 From - Spending review Topic 4]]+Dataset[[#This Row],[2023/24 From - Other reallocations]]","v":0},{"$f":"Dataset[[#This Row],[2024/25 From - Spending review Topic 1]]+Dataset[[#This Row],[2024/25 From - Spending review Topic 2]]+Dataset[[#This Row],[2024/25 From - Spending review Topic 3]]+Dataset[[#This Row],[2024/25 From - Spending review Topic 4]]+Dataset[[#This Row],[2024/25 From - Other reallocations]]","v":0},{"$f":"Dataset[[#This Row],[2025/26 From - Spending review Topic 1]]+Dataset[[#This Row],[2025/26 From - Spending review Topic 2]]+Dataset[[#This Row],[2025/26 From - Spending review Topic 3]]+Dataset[[#This Row],[2025/26 From - Spending review Topic 4]]+Dataset[[#This Row],[2025/26 From - Other reallocations]]","v":0},{"$f":"Dataset[[#This Row],[2023/24 To - Spending review Topic 1]]+Dataset[[#This Row],[2023/24 To - Spending review Topic 2]]+Dataset[[#This Row],[2023/24 To - Spending review Topic 3]]+Dataset[[#This Row],[2023/24 To - Spending review Topic 4]]+Dataset[[#This Row],[2023/24 To - Other reallocations]]","v":0},{"$f":"Dataset[[#This Row],[2024/25 To - Spending review Topic 1]]+Dataset[[#This Row],[2024/25 To - Spending review Topic 2]]+Dataset[[#This Row],[2024/25 To - Spending review Topic 3]]+Dataset[[#This Row],[2024/25 To - Spending review Topic 4]]+Dataset[[#This Row],[2024/25 To - Other reallocations]]","v":0},{"$f":"Dataset[[#This Row],[2025/26 To - Spending review Topic 1]]+Dataset[[#This Row],[2025/26 To - Spending review Topic 2]]+Dataset[[#This Row],[2025/26 To - Spending review Topic 3]]+Dataset[[#This Row],[2025/26 To - Spending review Topic 4]]+Dataset[[#This Row],[2025/26 To - Other reallocations]]","v":0},{"$f":"Dataset[[#This Row],[2023/24 Baseline]]+Dataset[[#This Row],[2023/24 From - Total]]+Dataset[[#This Row],[2023/24 To - Total]]","v":0},{"$f":"Dataset[[#This Row],[2024/25 Baseline]]+Dataset[[#This Row],[2024/25 From - Total]]+Dataset[[#This Row],[2024/25 To - Total]]","v":0},{"$f":"Dataset[[#This Row],[2025/26 Baseline]]+Dataset[[#This Row],[2025/26 From - Total]]+Dataset[[#This Row],[2025/26 To - Total]]","v":0}]
["NAT|Non-transfer item","2|Contractors","2023_24","MTEF2023",2,2,2,941,324,"02","02","02","000941","000324","02|02|02",1,1,2,16,16,"01|01|02|16|16","National","Parliament","Legislation and Oversight","National Council of Provinces","Non-transfer item","Current","Current payments","Goods and services","Contractors","Contractors","General public services","Executive and legislative organs","NAT",1466,1548,3633,3777,3777,3777,0,3884,3899,4074,4257,null,null,null,null,null,null,null,null,null,null,null,null,null,null,null,null,null,null,null,null,null,null,null,null,null,null,null,null,null,null,{"$f":"Dataset[[#This Row],[2023/24 From - Spending review Topic 1]]+Dataset[[#This Row],[2023/24 From - Spending review Topic 2]]+Dataset[[#This Row],[2023/24 From - Spending review Topic 3]]+Dataset[[#This Row],[2023/24 From - Spending review Topic 4]]+Dataset[[#This Row],[2023/24 From - Other reallocations]]","v":0},{"$f":"Dataset[[#This Row],[2024/25 From - Spending review Topic 1]]+Dataset[[#This Row],[2024/25 From - Spending review Topic 2]]+Dataset[[#This Row],[2024/25 From - Spending review Topic 3]]+Dataset[[#This Row],[2024/25 From - Spending review Topic 4]]+Dataset[[#This Row],[2024/25 From - Other reallocations]]","v":0},{"$f":"Dataset[[#This Row],[2025/26 From - Spending review Topic 1]]+Dataset[[#This Row],[2025/26 From - Spending review Topic 2]]+Dataset[[#This Row],[2025/26 From - Spending review Topic 3]]+Dataset[[#This Row],[2025/26 From - Spending review Topic 4]]+Dataset[[#This Row],[2025/26 From - Other reallocations]]","v":0},{"$f":"Dataset[[#This Row],[2023/24 To - Spending review Topic 1]]+Dataset[[#This Row],[2023/24 To - Spending review Topic 2]]+Dataset[[#This Row],[2023/24 To - Spending review Topic 3]]+Dataset[[#This Row],[2023/24 To - Spending review Topic 4]]+Dataset[[#This Row],[2023/24 To - Other reallocations]]","v":0},{"$f":"Dataset[[#This Row],[2024/25 To - Spending review Topic 1]]+Dataset[[#This Row],[2024/25 To - Spending review Topic 2]]+Dataset[[#This Row],[2024/25 To - Spending review Topic 3]]+Dataset[[#This Row],[2024/25 To - Spending review Topic 4]]+Dataset[[#This Row],[2024/25 To - Other reallocations]]","v":0},{"$f":"Dataset[[#This Row],[2025/26 To - Spending review Topic 1]]+Dataset[[#This Row],[2025/26 To - Spending review Topic 2]]+Dataset[[#This Row],[2025/26 To - Spending review Topic 3]]+Dataset[[#This Row],[2025/26 To - Spending review Topic 4]]+Dataset[[#This Row],[2025/26 To - Other reallocations]]","v":0},{"$f":"Dataset[[#This Row],[2023/24 Baseline]]+Dataset[[#This Row],[2023/24 From - Total]]+Dataset[[#This Row],[2023/24 To - Total]]","v":3899},{"$f":"Dataset[[#This Row],[2024/25 Baseline]]+Dataset[[#This Row],[2024/25 From - Total]]+Dataset[[#This Row],[2024/25 To - Total]]","v":4074},{"$f":"Dataset[[#This Row],[2025/26 Baseline]]+Dataset[[#This Row],[2025/26 From - Total]]+Dataset[[#This Row],[2025/26 To - Total]]","v":4257}]
["NAT|Non-transfer item","2|Agency and support/outsourced services","2023_24","MTEF2023",2,2,2,942,325,"02","02","02","000942","000325","02|02|02",1,1,2,17,17,"01|01|02|17|17","National","Parliament","Legislation and Oversight","National Council of Provinces","Non-transfer item","Current","Current payments","Goods and services","Agency and support/outsourced services","Agency and support/outsourced services","General public services","Executive and legislative organs","NAT",2724,2877,1035,1076,1076,1076,0,1106,1111,1161,1213,null,null,null,null,null,null,null,null,null,null,null,null,null,null,null,null,null,null,null,null,null,null,null,null,null,null,null,null,null,null,{"$f":"Dataset[[#This Row],[2023/24 From - Spending review Topic 1]]+Dataset[[#This Row],[2023/24 From - Spending review Topic 2]]+Dataset[[#This Row],[2023/24 From - Spending review Topic 3]]+Dataset[[#This Row],[2023/24 From - Spending review Topic 4]]+Dataset[[#This Row],[2023/24 From - Other reallocations]]","v":0},{"$f":"Dataset[[#This Row],[2024/25 From - Spending review Topic 1]]+Dataset[[#This Row],[2024/25 From - Spending review Topic 2]]+Dataset[[#This Row],[2024/25 From - Spending review Topic 3]]+Dataset[[#This Row],[2024/25 From - Spending review Topic 4]]+Dataset[[#This Row],[2024/25 From - Other reallocations]]","v":0},{"$f":"Dataset[[#This Row],[2025/26 From - Spending review Topic 1]]+Dataset[[#This Row],[2025/26 From - Spending review Topic 2]]+Dataset[[#This Row],[2025/26 From - Spending review Topic 3]]+Dataset[[#This Row],[2025/26 From - Spending review Topic 4]]+Dataset[[#This Row],[2025/26 From - Other reallocations]]","v":0},{"$f":"Dataset[[#This Row],[2023/24 To - Spending review Topic 1]]+Dataset[[#This Row],[2023/24 To - Spending review Topic 2]]+Dataset[[#This Row],[2023/24 To - Spending review Topic 3]]+Dataset[[#This Row],[2023/24 To - Spending review Topic 4]]+Dataset[[#This Row],[2023/24 To - Other reallocations]]","v":0},{"$f":"Dataset[[#This Row],[2024/25 To - Spending review Topic 1]]+Dataset[[#This Row],[2024/25 To - Spending review Topic 2]]+Dataset[[#This Row],[2024/25 To - Spending review Topic 3]]+Dataset[[#This Row],[2024/25 To - Spending review Topic 4]]+Dataset[[#This Row],[2024/25 To - Other reallocations]]","v":0},{"$f":"Dataset[[#This Row],[2025/26 To - Spending review Topic 1]]+Dataset[[#This Row],[2025/26 To - Spending review Topic 2]]+Dataset[[#This Row],[2025/26 To - Spending review Topic 3]]+Dataset[[#This Row],[2025/26 To - Spending review Topic 4]]+Dataset[[#This Row],[2025/26 To - Other reallocations]]","v":0},{"$f":"Dataset[[#This Row],[2023/24 Baseline]]+Dataset[[#This Row],[2023/24 From - Total]]+Dataset[[#This Row],[2023/24 To - Total]]","v":1111},{"$f":"Dataset[[#This Row],[2024/25 Baseline]]+Dataset[[#This Row],[2024/25 From - Total]]+Dataset[[#This Row],[2024/25 To - Total]]","v":1161},{"$f":"Dataset[[#This Row],[2025/26 Baseline]]+Dataset[[#This Row],[2025/26 From - Total]]+Dataset[[#This Row],[2025/26 To - Total]]","v":1213}]
["NAT|Non-transfer item","2|Entertainment","2023_24","MTEF2023",2,2,2,943,326,"02","02","02","000943","000326","02|02|02",1,1,2,18,18,"01|01|02|18|18","National","Parliament","Legislation and Oversight","National Council of Provinces","Non-transfer item","Current","Current payments","Goods and services","Entertainment","Entertainment","General public services","Executive and legislative organs","NAT",0,0,0,0,0,0,0,0,0,0,0,null,null,null,null,null,null,null,null,null,null,null,null,null,null,null,null,null,null,null,null,null,null,null,null,null,null,null,null,null,null,{"$f":"Dataset[[#This Row],[2023/24 From - Spending review Topic 1]]+Dataset[[#This Row],[2023/24 From - Spending review Topic 2]]+Dataset[[#This Row],[2023/24 From - Spending review Topic 3]]+Dataset[[#This Row],[2023/24 From - Spending review Topic 4]]+Dataset[[#This Row],[2023/24 From - Other reallocations]]","v":0},{"$f":"Dataset[[#This Row],[2024/25 From - Spending review Topic 1]]+Dataset[[#This Row],[2024/25 From - Spending review Topic 2]]+Dataset[[#This Row],[2024/25 From - Spending review Topic 3]]+Dataset[[#This Row],[2024/25 From - Spending review Topic 4]]+Dataset[[#This Row],[2024/25 From - Other reallocations]]","v":0},{"$f":"Dataset[[#This Row],[2025/26 From - Spending review Topic 1]]+Dataset[[#This Row],[2025/26 From - Spending review Topic 2]]+Dataset[[#This Row],[2025/26 From - Spending review Topic 3]]+Dataset[[#This Row],[2025/26 From - Spending review Topic 4]]+Dataset[[#This Row],[2025/26 From - Other reallocations]]","v":0},{"$f":"Dataset[[#This Row],[2023/24 To - Spending review Topic 1]]+Dataset[[#This Row],[2023/24 To - Spending review Topic 2]]+Dataset[[#This Row],[2023/24 To - Spending review Topic 3]]+Dataset[[#This Row],[2023/24 To - Spending review Topic 4]]+Dataset[[#This Row],[2023/24 To - Other reallocations]]","v":0},{"$f":"Dataset[[#This Row],[2024/25 To - Spending review Topic 1]]+Dataset[[#This Row],[2024/25 To - Spending review Topic 2]]+Dataset[[#This Row],[2024/25 To - Spending review Topic 3]]+Dataset[[#This Row],[2024/25 To - Spending review Topic 4]]+Dataset[[#This Row],[2024/25 To - Other reallocations]]","v":0},{"$f":"Dataset[[#This Row],[2025/26 To - Spending review Topic 1]]+Dataset[[#This Row],[2025/26 To - Spending review Topic 2]]+Dataset[[#This Row],[2025/26 To - Spending review Topic 3]]+Dataset[[#This Row],[2025/26 To - Spending review Topic 4]]+Dataset[[#This Row],[2025/26 To - Other reallocations]]","v":0},{"$f":"Dataset[[#This Row],[2023/24 Baseline]]+Dataset[[#This Row],[2023/24 From - Total]]+Dataset[[#This Row],[2023/24 To - Total]]","v":0},{"$f":"Dataset[[#This Row],[2024/25 Baseline]]+Dataset[[#This Row],[2024/25 From - Total]]+Dataset[[#This Row],[2024/25 To - Total]]","v":0},{"$f":"Dataset[[#This Row],[2025/26 Baseline]]+Dataset[[#This Row],[2025/26 From - Total]]+Dataset[[#This Row],[2025/26 To - Total]]","v":0}]
["NAT|Non-transfer item","2|Fleet services (including government motor transport)","2023_24","MTEF2023",2,2,2,944,327,"02","02","02","000944","000327","02|02|02",1,1,2,19,19,"01|01|02|19|19","National","Parliament","Legislation and Oversight","National Council of Provinces","Non-transfer item","Current","Current payments","Goods and services","Fleet services (including government motor transport)","Fleet services (including government motor transport)","General public services","Executive and legislative organs","NAT",0,0,0,0,0,0,0,0,0,0,0,null,null,null,null,null,null,null,null,null,null,null,null,null,null,null,null,null,null,null,null,null,null,null,null,null,null,null,null,null,null,{"$f":"Dataset[[#This Row],[2023/24 From - Spending review Topic 1]]+Dataset[[#This Row],[2023/24 From - Spending review Topic 2]]+Dataset[[#This Row],[2023/24 From - Spending review Topic 3]]+Dataset[[#This Row],[2023/24 From - Spending review Topic 4]]+Dataset[[#This Row],[2023/24 From - Other reallocations]]","v":0},{"$f":"Dataset[[#This Row],[2024/25 From - Spending review Topic 1]]+Dataset[[#This Row],[2024/25 From - Spending review Topic 2]]+Dataset[[#This Row],[2024/25 From - Spending review Topic 3]]+Dataset[[#This Row],[2024/25 From - Spending review Topic 4]]+Dataset[[#This Row],[2024/25 From - Other reallocations]]","v":0},{"$f":"Dataset[[#This Row],[2025/26 From - Spending review Topic 1]]+Dataset[[#This Row],[2025/26 From - Spending review Topic 2]]+Dataset[[#This Row],[2025/26 From - Spending review Topic 3]]+Dataset[[#This Row],[2025/26 From - Spending review Topic 4]]+Dataset[[#This Row],[2025/26 From - Other reallocations]]","v":0},{"$f":"Dataset[[#This Row],[2023/24 To - Spending review Topic 1]]+Dataset[[#This Row],[2023/24 To - Spending review Topic 2]]+Dataset[[#This Row],[2023/24 To - Spending review Topic 3]]+Dataset[[#This Row],[2023/24 To - Spending review Topic 4]]+Dataset[[#This Row],[2023/24 To - Other reallocations]]","v":0},{"$f":"Dataset[[#This Row],[2024/25 To - Spending review Topic 1]]+Dataset[[#This Row],[2024/25 To - Spending review Topic 2]]+Dataset[[#This Row],[2024/25 To - Spending review Topic 3]]+Dataset[[#This Row],[2024/25 To - Spending review Topic 4]]+Dataset[[#This Row],[2024/25 To - Other reallocations]]","v":0},{"$f":"Dataset[[#This Row],[2025/26 To - Spending review Topic 1]]+Dataset[[#This Row],[2025/26 To - Spending review Topic 2]]+Dataset[[#This Row],[2025/26 To - Spending review Topic 3]]+Dataset[[#This Row],[2025/26 To - Spending review Topic 4]]+Dataset[[#This Row],[2025/26 To - Other reallocations]]","v":0},{"$f":"Dataset[[#This Row],[2023/24 Baseline]]+Dataset[[#This Row],[2023/24 From - Total]]+Dataset[[#This Row],[2023/24 To - Total]]","v":0},{"$f":"Dataset[[#This Row],[2024/25 Baseline]]+Dataset[[#This Row],[2024/25 From - Total]]+Dataset[[#This Row],[2024/25 To - Total]]","v":0},{"$f":"Dataset[[#This Row],[2025/26 Baseline]]+Dataset[[#This Row],[2025/26 From - Total]]+Dataset[[#This Row],[2025/26 To - Total]]","v":0}]
["NAT|Non-transfer item","2|Housing","2023_24","MTEF2023",2,2,2,945,328,"02","02","02","000945","000328","02|02|02",1,1,2,20,20,"01|01|02|20|20","National","Parliament","Legislation and Oversight","National Council of Provinces","Non-transfer item","Current","Current payments","Goods and services","Housing","Housing","General public services","Executive and legislative organs","NAT",0,0,0,0,0,0,0,0,0,0,0,null,null,null,null,null,null,null,null,null,null,null,null,null,null,null,null,null,null,null,null,null,null,null,null,null,null,null,null,null,null,{"$f":"Dataset[[#This Row],[2023/24 From - Spending review Topic 1]]+Dataset[[#This Row],[2023/24 From - Spending review Topic 2]]+Dataset[[#This Row],[2023/24 From - Spending review Topic 3]]+Dataset[[#This Row],[2023/24 From - Spending review Topic 4]]+Dataset[[#This Row],[2023/24 From - Other reallocations]]","v":0},{"$f":"Dataset[[#This Row],[2024/25 From - Spending review Topic 1]]+Dataset[[#This Row],[2024/25 From - Spending review Topic 2]]+Dataset[[#This Row],[2024/25 From - Spending review Topic 3]]+Dataset[[#This Row],[2024/25 From - Spending review Topic 4]]+Dataset[[#This Row],[2024/25 From - Other reallocations]]","v":0},{"$f":"Dataset[[#This Row],[2025/26 From - Spending review Topic 1]]+Dataset[[#This Row],[2025/26 From - Spending review Topic 2]]+Dataset[[#This Row],[2025/26 From - Spending review Topic 3]]+Dataset[[#This Row],[2025/26 From - Spending review Topic 4]]+Dataset[[#This Row],[2025/26 From - Other reallocations]]","v":0},{"$f":"Dataset[[#This Row],[2023/24 To - Spending review Topic 1]]+Dataset[[#This Row],[2023/24 To - Spending review Topic 2]]+Dataset[[#This Row],[2023/24 To - Spending review Topic 3]]+Dataset[[#This Row],[2023/24 To - Spending review Topic 4]]+Dataset[[#This Row],[2023/24 To - Other reallocations]]","v":0},{"$f":"Dataset[[#This Row],[2024/25 To - Spending review Topic 1]]+Dataset[[#This Row],[2024/25 To - Spending review Topic 2]]+Dataset[[#This Row],[2024/25 To - Spending review Topic 3]]+Dataset[[#This Row],[2024/25 To - Spending review Topic 4]]+Dataset[[#This Row],[2024/25 To - Other reallocations]]","v":0},{"$f":"Dataset[[#This Row],[2025/26 To - Spending review Topic 1]]+Dataset[[#This Row],[2025/26 To - Spending review Topic 2]]+Dataset[[#This Row],[2025/26 To - Spending review Topic 3]]+Dataset[[#This Row],[2025/26 To - Spending review Topic 4]]+Dataset[[#This Row],[2025/26 To - Other reallocations]]","v":0},{"$f":"Dataset[[#This Row],[2023/24 Baseline]]+Dataset[[#This Row],[2023/24 From - Total]]+Dataset[[#This Row],[2023/24 To - Total]]","v":0},{"$f":"Dataset[[#This Row],[2024/25 Baseline]]+Dataset[[#This Row],[2024/25 From - Total]]+Dataset[[#This Row],[2024/25 To - Total]]","v":0},{"$f":"Dataset[[#This Row],[2025/26 Baseline]]+Dataset[[#This Row],[2025/26 From - Total]]+Dataset[[#This Row],[2025/26 To - Total]]","v":0}]
["NAT|Non-transfer item","2|Inventory: Clothing material and accessories","2023_24","MTEF2023",2,2,2,946,329,"02","02","02","000946","000329","02|02|02",1,1,2,21,21,"01|01|02|21|21","National","Parliament","Legislation and Oversight","National Council of Provinces","Non-transfer item","Current","Current payments","Goods and services","Inventory: Clothing material and accessories","Inventory: Clothing material and accessories","General public services","Executive and legislative organs","NAT",0,0,0,0,0,0,0,0,0,0,0,null,null,null,null,null,null,null,null,null,null,null,null,null,null,null,null,null,null,null,null,null,null,null,null,null,null,null,null,null,null,{"$f":"Dataset[[#This Row],[2023/24 From - Spending review Topic 1]]+Dataset[[#This Row],[2023/24 From - Spending review Topic 2]]+Dataset[[#This Row],[2023/24 From - Spending review Topic 3]]+Dataset[[#This Row],[2023/24 From - Spending review Topic 4]]+Dataset[[#This Row],[2023/24 From - Other reallocations]]","v":0},{"$f":"Dataset[[#This Row],[2024/25 From - Spending review Topic 1]]+Dataset[[#This Row],[2024/25 From - Spending review Topic 2]]+Dataset[[#This Row],[2024/25 From - Spending review Topic 3]]+Dataset[[#This Row],[2024/25 From - Spending review Topic 4]]+Dataset[[#This Row],[2024/25 From - Other reallocations]]","v":0},{"$f":"Dataset[[#This Row],[2025/26 From - Spending review Topic 1]]+Dataset[[#This Row],[2025/26 From - Spending review Topic 2]]+Dataset[[#This Row],[2025/26 From - Spending review Topic 3]]+Dataset[[#This Row],[2025/26 From - Spending review Topic 4]]+Dataset[[#This Row],[2025/26 From - Other reallocations]]","v":0},{"$f":"Dataset[[#This Row],[2023/24 To - Spending review Topic 1]]+Dataset[[#This Row],[2023/24 To - Spending review Topic 2]]+Dataset[[#This Row],[2023/24 To - Spending review Topic 3]]+Dataset[[#This Row],[2023/24 To - Spending review Topic 4]]+Dataset[[#This Row],[2023/24 To - Other reallocations]]","v":0},{"$f":"Dataset[[#This Row],[2024/25 To - Spending review Topic 1]]+Dataset[[#This Row],[2024/25 To - Spending review Topic 2]]+Dataset[[#This Row],[2024/25 To - Spending review Topic 3]]+Dataset[[#This Row],[2024/25 To - Spending review Topic 4]]+Dataset[[#This Row],[2024/25 To - Other reallocations]]","v":0},{"$f":"Dataset[[#This Row],[2025/26 To - Spending review Topic 1]]+Dataset[[#This Row],[2025/26 To - Spending review Topic 2]]+Dataset[[#This Row],[2025/26 To - Spending review Topic 3]]+Dataset[[#This Row],[2025/26 To - Spending review Topic 4]]+Dataset[[#This Row],[2025/26 To - Other reallocations]]","v":0},{"$f":"Dataset[[#This Row],[2023/24 Baseline]]+Dataset[[#This Row],[2023/24 From - Total]]+Dataset[[#This Row],[2023/24 To - Total]]","v":0},{"$f":"Dataset[[#This Row],[2024/25 Baseline]]+Dataset[[#This Row],[2024/25 From - Total]]+Dataset[[#This Row],[2024/25 To - Total]]","v":0},{"$f":"Dataset[[#This Row],[2025/26 Baseline]]+Dataset[[#This Row],[2025/26 From - Total]]+Dataset[[#This Row],[2025/26 To - Total]]","v":0}]
["NAT|Non-transfer item","2|Inventory: Farming supplies","2023_24","MTEF2023",2,2,2,947,330,"02","02","02","000947","000330","02|02|02",1,1,2,22,22,"01|01|02|22|22","National","Parliament","Legislation and Oversight","National Council of Provinces","Non-transfer item","Current","Current payments","Goods and services","Inventory: Farming supplies","Inventory: Farming supplies","General public services","Executive and legislative organs","NAT",0,0,0,0,0,0,0,0,0,0,0,null,null,null,null,null,null,null,null,null,null,null,null,null,null,null,null,null,null,null,null,null,null,null,null,null,null,null,null,null,null,{"$f":"Dataset[[#This Row],[2023/24 From - Spending review Topic 1]]+Dataset[[#This Row],[2023/24 From - Spending review Topic 2]]+Dataset[[#This Row],[2023/24 From - Spending review Topic 3]]+Dataset[[#This Row],[2023/24 From - Spending review Topic 4]]+Dataset[[#This Row],[2023/24 From - Other reallocations]]","v":0},{"$f":"Dataset[[#This Row],[2024/25 From - Spending review Topic 1]]+Dataset[[#This Row],[2024/25 From - Spending review Topic 2]]+Dataset[[#This Row],[2024/25 From - Spending review Topic 3]]+Dataset[[#This Row],[2024/25 From - Spending review Topic 4]]+Dataset[[#This Row],[2024/25 From - Other reallocations]]","v":0},{"$f":"Dataset[[#This Row],[2025/26 From - Spending review Topic 1]]+Dataset[[#This Row],[2025/26 From - Spending review Topic 2]]+Dataset[[#This Row],[2025/26 From - Spending review Topic 3]]+Dataset[[#This Row],[2025/26 From - Spending review Topic 4]]+Dataset[[#This Row],[2025/26 From - Other reallocations]]","v":0},{"$f":"Dataset[[#This Row],[2023/24 To - Spending review Topic 1]]+Dataset[[#This Row],[2023/24 To - Spending review Topic 2]]+Dataset[[#This Row],[2023/24 To - Spending review Topic 3]]+Dataset[[#This Row],[2023/24 To - Spending review Topic 4]]+Dataset[[#This Row],[2023/24 To - Other reallocations]]","v":0},{"$f":"Dataset[[#This Row],[2024/25 To - Spending review Topic 1]]+Dataset[[#This Row],[2024/25 To - Spending review Topic 2]]+Dataset[[#This Row],[2024/25 To - Spending review Topic 3]]+Dataset[[#This Row],[2024/25 To - Spending review Topic 4]]+Dataset[[#This Row],[2024/25 To - Other reallocations]]","v":0},{"$f":"Dataset[[#This Row],[2025/26 To - Spending review Topic 1]]+Dataset[[#This Row],[2025/26 To - Spending review Topic 2]]+Dataset[[#This Row],[2025/26 To - Spending review Topic 3]]+Dataset[[#This Row],[2025/26 To - Spending review Topic 4]]+Dataset[[#This Row],[2025/26 To - Other reallocations]]","v":0},{"$f":"Dataset[[#This Row],[2023/24 Baseline]]+Dataset[[#This Row],[2023/24 From - Total]]+Dataset[[#This Row],[2023/24 To - Total]]","v":0},{"$f":"Dataset[[#This Row],[2024/25 Baseline]]+Dataset[[#This Row],[2024/25 From - Total]]+Dataset[[#This Row],[2024/25 To - Total]]","v":0},{"$f":"Dataset[[#This Row],[2025/26 Baseline]]+Dataset[[#This Row],[2025/26 From - Total]]+Dataset[[#This Row],[2025/26 To - Total]]","v":0}]
["NAT|Non-transfer item","2|Inventory: Food and food supplies","2023_24","MTEF2023",2,2,2,948,331,"02","02","02","000948","000331","02|02|02",1,1,2,23,23,"01|01|02|23|23","National","Parliament","Legislation and Oversight","National Council of Provinces","Non-transfer item","Current","Current payments","Goods and services","Inventory: Food and food supplies","Inventory: Food and food supplies","General public services","Executive and legislative organs","NAT",503,531,560,582,582,582,0,599,601,628,656,null,null,null,null,null,null,null,null,null,null,null,null,null,null,null,null,null,null,null,null,null,null,null,null,null,null,null,null,null,null,{"$f":"Dataset[[#This Row],[2023/24 From - Spending review Topic 1]]+Dataset[[#This Row],[2023/24 From - Spending review Topic 2]]+Dataset[[#This Row],[2023/24 From - Spending review Topic 3]]+Dataset[[#This Row],[2023/24 From - Spending review Topic 4]]+Dataset[[#This Row],[2023/24 From - Other reallocations]]","v":0},{"$f":"Dataset[[#This Row],[2024/25 From - Spending review Topic 1]]+Dataset[[#This Row],[2024/25 From - Spending review Topic 2]]+Dataset[[#This Row],[2024/25 From - Spending review Topic 3]]+Dataset[[#This Row],[2024/25 From - Spending review Topic 4]]+Dataset[[#This Row],[2024/25 From - Other reallocations]]","v":0},{"$f":"Dataset[[#This Row],[2025/26 From - Spending review Topic 1]]+Dataset[[#This Row],[2025/26 From - Spending review Topic 2]]+Dataset[[#This Row],[2025/26 From - Spending review Topic 3]]+Dataset[[#This Row],[2025/26 From - Spending review Topic 4]]+Dataset[[#This Row],[2025/26 From - Other reallocations]]","v":0},{"$f":"Dataset[[#This Row],[2023/24 To - Spending review Topic 1]]+Dataset[[#This Row],[2023/24 To - Spending review Topic 2]]+Dataset[[#This Row],[2023/24 To - Spending review Topic 3]]+Dataset[[#This Row],[2023/24 To - Spending review Topic 4]]+Dataset[[#This Row],[2023/24 To - Other reallocations]]","v":0},{"$f":"Dataset[[#This Row],[2024/25 To - Spending review Topic 1]]+Dataset[[#This Row],[2024/25 To - Spending review Topic 2]]+Dataset[[#This Row],[2024/25 To - Spending review Topic 3]]+Dataset[[#This Row],[2024/25 To - Spending review Topic 4]]+Dataset[[#This Row],[2024/25 To - Other reallocations]]","v":0},{"$f":"Dataset[[#This Row],[2025/26 To - Spending review Topic 1]]+Dataset[[#This Row],[2025/26 To - Spending review Topic 2]]+Dataset[[#This Row],[2025/26 To - Spending review Topic 3]]+Dataset[[#This Row],[2025/26 To - Spending review Topic 4]]+Dataset[[#This Row],[2025/26 To - Other reallocations]]","v":0},{"$f":"Dataset[[#This Row],[2023/24 Baseline]]+Dataset[[#This Row],[2023/24 From - Total]]+Dataset[[#This Row],[2023/24 To - Total]]","v":601},{"$f":"Dataset[[#This Row],[2024/25 Baseline]]+Dataset[[#This Row],[2024/25 From - Total]]+Dataset[[#This Row],[2024/25 To - Total]]","v":628},{"$f":"Dataset[[#This Row],[2025/26 Baseline]]+Dataset[[#This Row],[2025/26 From - Total]]+Dataset[[#This Row],[2025/26 To - Total]]","v":656}]
["NAT|Non-transfer item","2|Inventory: Fuel, oil and gas","2023_24","MTEF2023",2,2,2,949,332,"02","02","02","000949","000332","02|02|02",1,1,2,24,24,"01|01|02|24|24","National","Parliament","Legislation and Oversight","National Council of Provinces","Non-transfer item","Current","Current payments","Goods and services","Inventory: Fuel, oil and gas","Inventory: Fuel, oil and gas","General public services","Executive and legislative organs","NAT",0,0,0,0,0,0,0,0,0,0,0,null,null,null,null,null,null,null,null,null,null,null,null,null,null,null,null,null,null,null,null,null,null,null,null,null,null,null,null,null,null,{"$f":"Dataset[[#This Row],[2023/24 From - Spending review Topic 1]]+Dataset[[#This Row],[2023/24 From - Spending review Topic 2]]+Dataset[[#This Row],[2023/24 From - Spending review Topic 3]]+Dataset[[#This Row],[2023/24 From - Spending review Topic 4]]+Dataset[[#This Row],[2023/24 From - Other reallocations]]","v":0},{"$f":"Dataset[[#This Row],[2024/25 From - Spending review Topic 1]]+Dataset[[#This Row],[2024/25 From - Spending review Topic 2]]+Dataset[[#This Row],[2024/25 From - Spending review Topic 3]]+Dataset[[#This Row],[2024/25 From - Spending review Topic 4]]+Dataset[[#This Row],[2024/25 From - Other reallocations]]","v":0},{"$f":"Dataset[[#This Row],[2025/26 From - Spending review Topic 1]]+Dataset[[#This Row],[2025/26 From - Spending review Topic 2]]+Dataset[[#This Row],[2025/26 From - Spending review Topic 3]]+Dataset[[#This Row],[2025/26 From - Spending review Topic 4]]+Dataset[[#This Row],[2025/26 From - Other reallocations]]","v":0},{"$f":"Dataset[[#This Row],[2023/24 To - Spending review Topic 1]]+Dataset[[#This Row],[2023/24 To - Spending review Topic 2]]+Dataset[[#This Row],[2023/24 To - Spending review Topic 3]]+Dataset[[#This Row],[2023/24 To - Spending review Topic 4]]+Dataset[[#This Row],[2023/24 To - Other reallocations]]","v":0},{"$f":"Dataset[[#This Row],[2024/25 To - Spending review Topic 1]]+Dataset[[#This Row],[2024/25 To - Spending review Topic 2]]+Dataset[[#This Row],[2024/25 To - Spending review Topic 3]]+Dataset[[#This Row],[2024/25 To - Spending review Topic 4]]+Dataset[[#This Row],[2024/25 To - Other reallocations]]","v":0},{"$f":"Dataset[[#This Row],[2025/26 To - Spending review Topic 1]]+Dataset[[#This Row],[2025/26 To - Spending review Topic 2]]+Dataset[[#This Row],[2025/26 To - Spending review Topic 3]]+Dataset[[#This Row],[2025/26 To - Spending review Topic 4]]+Dataset[[#This Row],[2025/26 To - Other reallocations]]","v":0},{"$f":"Dataset[[#This Row],[2023/24 Baseline]]+Dataset[[#This Row],[2023/24 From - Total]]+Dataset[[#This Row],[2023/24 To - Total]]","v":0},{"$f":"Dataset[[#This Row],[2024/25 Baseline]]+Dataset[[#This Row],[2024/25 From - Total]]+Dataset[[#This Row],[2024/25 To - Total]]","v":0},{"$f":"Dataset[[#This Row],[2025/26 Baseline]]+Dataset[[#This Row],[2025/26 From - Total]]+Dataset[[#This Row],[2025/26 To - Total]]","v":0}]
["NAT|Non-transfer item","2|Inventory: Learner and teacher support material","2023_24","MTEF2023",2,2,2,950,333,"02","02","02","000950","000333","02|02|02",1,1,2,25,25,"01|01|02|25|25","National","Parliament","Legislation and Oversight","National Council of Provinces","Non-transfer item","Current","Current payments","Goods and services","Inventory: Learner and teacher support material","Inventory: Learner and teacher support material","General public services","Executive and legislative organs","NAT",0,0,0,0,0,0,0,0,0,0,0,null,null,null,null,null,null,null,null,null,null,null,null,null,null,null,null,null,null,null,null,null,null,null,null,null,null,null,null,null,null,{"$f":"Dataset[[#This Row],[2023/24 From - Spending review Topic 1]]+Dataset[[#This Row],[2023/24 From - Spending review Topic 2]]+Dataset[[#This Row],[2023/24 From - Spending review Topic 3]]+Dataset[[#This Row],[2023/24 From - Spending review Topic 4]]+Dataset[[#This Row],[2023/24 From - Other reallocations]]","v":0},{"$f":"Dataset[[#This Row],[2024/25 From - Spending review Topic 1]]+Dataset[[#This Row],[2024/25 From - Spending review Topic 2]]+Dataset[[#This Row],[2024/25 From - Spending review Topic 3]]+Dataset[[#This Row],[2024/25 From - Spending review Topic 4]]+Dataset[[#This Row],[2024/25 From - Other reallocations]]","v":0},{"$f":"Dataset[[#This Row],[2025/26 From - Spending review Topic 1]]+Dataset[[#This Row],[2025/26 From - Spending review Topic 2]]+Dataset[[#This Row],[2025/26 From - Spending review Topic 3]]+Dataset[[#This Row],[2025/26 From - Spending review Topic 4]]+Dataset[[#This Row],[2025/26 From - Other reallocations]]","v":0},{"$f":"Dataset[[#This Row],[2023/24 To - Spending review Topic 1]]+Dataset[[#This Row],[2023/24 To - Spending review Topic 2]]+Dataset[[#This Row],[2023/24 To - Spending review Topic 3]]+Dataset[[#This Row],[2023/24 To - Spending review Topic 4]]+Dataset[[#This Row],[2023/24 To - Other reallocations]]","v":0},{"$f":"Dataset[[#This Row],[2024/25 To - Spending review Topic 1]]+Dataset[[#This Row],[2024/25 To - Spending review Topic 2]]+Dataset[[#This Row],[2024/25 To - Spending review Topic 3]]+Dataset[[#This Row],[2024/25 To - Spending review Topic 4]]+Dataset[[#This Row],[2024/25 To - Other reallocations]]","v":0},{"$f":"Dataset[[#This Row],[2025/26 To - Spending review Topic 1]]+Dataset[[#This Row],[2025/26 To - Spending review Topic 2]]+Dataset[[#This Row],[2025/26 To - Spending review Topic 3]]+Dataset[[#This Row],[2025/26 To - Spending review Topic 4]]+Dataset[[#This Row],[2025/26 To - Other reallocations]]","v":0},{"$f":"Dataset[[#This Row],[2023/24 Baseline]]+Dataset[[#This Row],[2023/24 From - Total]]+Dataset[[#This Row],[2023/24 To - Total]]","v":0},{"$f":"Dataset[[#This Row],[2024/25 Baseline]]+Dataset[[#This Row],[2024/25 From - Total]]+Dataset[[#This Row],[2024/25 To - Total]]","v":0},{"$f":"Dataset[[#This Row],[2025/26 Baseline]]+Dataset[[#This Row],[2025/26 From - Total]]+Dataset[[#This Row],[2025/26 To - Total]]","v":0}]
["NAT|Non-transfer item","2|Inventory: Materials and supplies","2023_24","MTEF2023",2,2,2,951,334,"02","02","02","000951","000334","02|02|02",1,1,2,26,26,"01|01|02|26|26","National","Parliament","Legislation and Oversight","National Council of Provinces","Non-transfer item","Current","Current payments","Goods and services","Inventory: Materials and supplies","Inventory: Materials and supplies","General public services","Executive and legislative organs","NAT",0,0,0,0,0,0,0,0,0,0,0,null,null,null,null,null,null,null,null,null,null,null,null,null,null,null,null,null,null,null,null,null,null,null,null,null,null,null,null,null,null,{"$f":"Dataset[[#This Row],[2023/24 From - Spending review Topic 1]]+Dataset[[#This Row],[2023/24 From - Spending review Topic 2]]+Dataset[[#This Row],[2023/24 From - Spending review Topic 3]]+Dataset[[#This Row],[2023/24 From - Spending review Topic 4]]+Dataset[[#This Row],[2023/24 From - Other reallocations]]","v":0},{"$f":"Dataset[[#This Row],[2024/25 From - Spending review Topic 1]]+Dataset[[#This Row],[2024/25 From - Spending review Topic 2]]+Dataset[[#This Row],[2024/25 From - Spending review Topic 3]]+Dataset[[#This Row],[2024/25 From - Spending review Topic 4]]+Dataset[[#This Row],[2024/25 From - Other reallocations]]","v":0},{"$f":"Dataset[[#This Row],[2025/26 From - Spending review Topic 1]]+Dataset[[#This Row],[2025/26 From - Spending review Topic 2]]+Dataset[[#This Row],[2025/26 From - Spending review Topic 3]]+Dataset[[#This Row],[2025/26 From - Spending review Topic 4]]+Dataset[[#This Row],[2025/26 From - Other reallocations]]","v":0},{"$f":"Dataset[[#This Row],[2023/24 To - Spending review Topic 1]]+Dataset[[#This Row],[2023/24 To - Spending review Topic 2]]+Dataset[[#This Row],[2023/24 To - Spending review Topic 3]]+Dataset[[#This Row],[2023/24 To - Spending review Topic 4]]+Dataset[[#This Row],[2023/24 To - Other reallocations]]","v":0},{"$f":"Dataset[[#This Row],[2024/25 To - Spending review Topic 1]]+Dataset[[#This Row],[2024/25 To - Spending review Topic 2]]+Dataset[[#This Row],[2024/25 To - Spending review Topic 3]]+Dataset[[#This Row],[2024/25 To - Spending review Topic 4]]+Dataset[[#This Row],[2024/25 To - Other reallocations]]","v":0},{"$f":"Dataset[[#This Row],[2025/26 To - Spending review Topic 1]]+Dataset[[#This Row],[2025/26 To - Spending review Topic 2]]+Dataset[[#This Row],[2025/26 To - Spending review Topic 3]]+Dataset[[#This Row],[2025/26 To - Spending review Topic 4]]+Dataset[[#This Row],[2025/26 To - Other reallocations]]","v":0},{"$f":"Dataset[[#This Row],[2023/24 Baseline]]+Dataset[[#This Row],[2023/24 From - Total]]+Dataset[[#This Row],[2023/24 To - Total]]","v":0},{"$f":"Dataset[[#This Row],[2024/25 Baseline]]+Dataset[[#This Row],[2024/25 From - Total]]+Dataset[[#This Row],[2024/25 To - Total]]","v":0},{"$f":"Dataset[[#This Row],[2025/26 Baseline]]+Dataset[[#This Row],[2025/26 From - Total]]+Dataset[[#This Row],[2025/26 To - Total]]","v":0}]
["NAT|Non-transfer item","2|Inventory: Medical supplies","2023_24","MTEF2023",2,2,2,952,335,"02","02","02","000952","000335","02|02|02",1,1,2,27,27,"01|01|02|27|27","National","Parliament","Legislation and Oversight","National Council of Provinces","Non-transfer item","Current","Current payments","Goods and services","Inventory: Medical supplies","Inventory: Medical supplies","General public services","Executive and legislative organs","NAT",0,0,0,0,0,0,0,0,0,0,0,null,null,null,null,null,null,null,null,null,null,null,null,null,null,null,null,null,null,null,null,null,null,null,null,null,null,null,null,null,null,{"$f":"Dataset[[#This Row],[2023/24 From - Spending review Topic 1]]+Dataset[[#This Row],[2023/24 From - Spending review Topic 2]]+Dataset[[#This Row],[2023/24 From - Spending review Topic 3]]+Dataset[[#This Row],[2023/24 From - Spending review Topic 4]]+Dataset[[#This Row],[2023/24 From - Other reallocations]]","v":0},{"$f":"Dataset[[#This Row],[2024/25 From - Spending review Topic 1]]+Dataset[[#This Row],[2024/25 From - Spending review Topic 2]]+Dataset[[#This Row],[2024/25 From - Spending review Topic 3]]+Dataset[[#This Row],[2024/25 From - Spending review Topic 4]]+Dataset[[#This Row],[2024/25 From - Other reallocations]]","v":0},{"$f":"Dataset[[#This Row],[2025/26 From - Spending review Topic 1]]+Dataset[[#This Row],[2025/26 From - Spending review Topic 2]]+Dataset[[#This Row],[2025/26 From - Spending review Topic 3]]+Dataset[[#This Row],[2025/26 From - Spending review Topic 4]]+Dataset[[#This Row],[2025/26 From - Other reallocations]]","v":0},{"$f":"Dataset[[#This Row],[2023/24 To - Spending review Topic 1]]+Dataset[[#This Row],[2023/24 To - Spending review Topic 2]]+Dataset[[#This Row],[2023/24 To - Spending review Topic 3]]+Dataset[[#This Row],[2023/24 To - Spending review Topic 4]]+Dataset[[#This Row],[2023/24 To - Other reallocations]]","v":0},{"$f":"Dataset[[#This Row],[2024/25 To - Spending review Topic 1]]+Dataset[[#This Row],[2024/25 To - Spending review Topic 2]]+Dataset[[#This Row],[2024/25 To - Spending review Topic 3]]+Dataset[[#This Row],[2024/25 To - Spending review Topic 4]]+Dataset[[#This Row],[2024/25 To - Other reallocations]]","v":0},{"$f":"Dataset[[#This Row],[2025/26 To - Spending review Topic 1]]+Dataset[[#This Row],[2025/26 To - Spending review Topic 2]]+Dataset[[#This Row],[2025/26 To - Spending review Topic 3]]+Dataset[[#This Row],[2025/26 To - Spending review Topic 4]]+Dataset[[#This Row],[2025/26 To - Other reallocations]]","v":0},{"$f":"Dataset[[#This Row],[2023/24 Baseline]]+Dataset[[#This Row],[2023/24 From - Total]]+Dataset[[#This Row],[2023/24 To - Total]]","v":0},{"$f":"Dataset[[#This Row],[2024/25 Baseline]]+Dataset[[#This Row],[2024/25 From - Total]]+Dataset[[#This Row],[2024/25 To - Total]]","v":0},{"$f":"Dataset[[#This Row],[2025/26 Baseline]]+Dataset[[#This Row],[2025/26 From - Total]]+Dataset[[#This Row],[2025/26 To - Total]]","v":0}]
["NAT|Non-transfer item","2|Inventory: Medicine","2023_24","MTEF2023",2,2,2,953,336,"02","02","02","000953","000336","02|02|02",1,1,2,28,28,"01|01|02|28|28","National","Parliament","Legislation and Oversight","National Council of Provinces","Non-transfer item","Current","Current payments","Goods and services","Inventory: Medicine","Inventory: Medicine","General public services","Executive and legislative organs","NAT",0,0,0,0,0,0,0,0,0,0,0,null,null,null,null,null,null,null,null,null,null,null,null,null,null,null,null,null,null,null,null,null,null,null,null,null,null,null,null,null,null,{"$f":"Dataset[[#This Row],[2023/24 From - Spending review Topic 1]]+Dataset[[#This Row],[2023/24 From - Spending review Topic 2]]+Dataset[[#This Row],[2023/24 From - Spending review Topic 3]]+Dataset[[#This Row],[2023/24 From - Spending review Topic 4]]+Dataset[[#This Row],[2023/24 From - Other reallocations]]","v":0},{"$f":"Dataset[[#This Row],[2024/25 From - Spending review Topic 1]]+Dataset[[#This Row],[2024/25 From - Spending review Topic 2]]+Dataset[[#This Row],[2024/25 From - Spending review Topic 3]]+Dataset[[#This Row],[2024/25 From - Spending review Topic 4]]+Dataset[[#This Row],[2024/25 From - Other reallocations]]","v":0},{"$f":"Dataset[[#This Row],[2025/26 From - Spending review Topic 1]]+Dataset[[#This Row],[2025/26 From - Spending review Topic 2]]+Dataset[[#This Row],[2025/26 From - Spending review Topic 3]]+Dataset[[#This Row],[2025/26 From - Spending review Topic 4]]+Dataset[[#This Row],[2025/26 From - Other reallocations]]","v":0},{"$f":"Dataset[[#This Row],[2023/24 To - Spending review Topic 1]]+Dataset[[#This Row],[2023/24 To - Spending review Topic 2]]+Dataset[[#This Row],[2023/24 To - Spending review Topic 3]]+Dataset[[#This Row],[2023/24 To - Spending review Topic 4]]+Dataset[[#This Row],[2023/24 To - Other reallocations]]","v":0},{"$f":"Dataset[[#This Row],[2024/25 To - Spending review Topic 1]]+Dataset[[#This Row],[2024/25 To - Spending review Topic 2]]+Dataset[[#This Row],[2024/25 To - Spending review Topic 3]]+Dataset[[#This Row],[2024/25 To - Spending review Topic 4]]+Dataset[[#This Row],[2024/25 To - Other reallocations]]","v":0},{"$f":"Dataset[[#This Row],[2025/26 To - Spending review Topic 1]]+Dataset[[#This Row],[2025/26 To - Spending review Topic 2]]+Dataset[[#This Row],[2025/26 To - Spending review Topic 3]]+Dataset[[#This Row],[2025/26 To - Spending review Topic 4]]+Dataset[[#This Row],[2025/26 To - Other reallocations]]","v":0},{"$f":"Dataset[[#This Row],[2023/24 Baseline]]+Dataset[[#This Row],[2023/24 From - Total]]+Dataset[[#This Row],[2023/24 To - Total]]","v":0},{"$f":"Dataset[[#This Row],[2024/25 Baseline]]+Dataset[[#This Row],[2024/25 From - Total]]+Dataset[[#This Row],[2024/25 To - Total]]","v":0},{"$f":"Dataset[[#This Row],[2025/26 Baseline]]+Dataset[[#This Row],[2025/26 From - Total]]+Dataset[[#This Row],[2025/26 To - Total]]","v":0}]
["NAT|Non-transfer item","2|Medsas inventory interface","2023_24","MTEF2023",2,2,2,954,337,"02","02","02","000954","000337","02|02|02",1,1,2,29,29,"01|01|02|29|29","National","Parliament","Legislation and Oversight","National Council of Provinces","Non-transfer item","Current","Current payments","Goods and services","Medsas inventory interface","Medsas inventory interface","General public services","Executive and legislative organs","NAT",0,0,0,0,0,0,0,0,0,0,0,null,null,null,null,null,null,null,null,null,null,null,null,null,null,null,null,null,null,null,null,null,null,null,null,null,null,null,null,null,null,{"$f":"Dataset[[#This Row],[2023/24 From - Spending review Topic 1]]+Dataset[[#This Row],[2023/24 From - Spending review Topic 2]]+Dataset[[#This Row],[2023/24 From - Spending review Topic 3]]+Dataset[[#This Row],[2023/24 From - Spending review Topic 4]]+Dataset[[#This Row],[2023/24 From - Other reallocations]]","v":0},{"$f":"Dataset[[#This Row],[2024/25 From - Spending review Topic 1]]+Dataset[[#This Row],[2024/25 From - Spending review Topic 2]]+Dataset[[#This Row],[2024/25 From - Spending review Topic 3]]+Dataset[[#This Row],[2024/25 From - Spending review Topic 4]]+Dataset[[#This Row],[2024/25 From - Other reallocations]]","v":0},{"$f":"Dataset[[#This Row],[2025/26 From - Spending review Topic 1]]+Dataset[[#This Row],[2025/26 From - Spending review Topic 2]]+Dataset[[#This Row],[2025/26 From - Spending review Topic 3]]+Dataset[[#This Row],[2025/26 From - Spending review Topic 4]]+Dataset[[#This Row],[2025/26 From - Other reallocations]]","v":0},{"$f":"Dataset[[#This Row],[2023/24 To - Spending review Topic 1]]+Dataset[[#This Row],[2023/24 To - Spending review Topic 2]]+Dataset[[#This Row],[2023/24 To - Spending review Topic 3]]+Dataset[[#This Row],[2023/24 To - Spending review Topic 4]]+Dataset[[#This Row],[2023/24 To - Other reallocations]]","v":0},{"$f":"Dataset[[#This Row],[2024/25 To - Spending review Topic 1]]+Dataset[[#This Row],[2024/25 To - Spending review Topic 2]]+Dataset[[#This Row],[2024/25 To - Spending review Topic 3]]+Dataset[[#This Row],[2024/25 To - Spending review Topic 4]]+Dataset[[#This Row],[2024/25 To - Other reallocations]]","v":0},{"$f":"Dataset[[#This Row],[2025/26 To - Spending review Topic 1]]+Dataset[[#This Row],[2025/26 To - Spending review Topic 2]]+Dataset[[#This Row],[2025/26 To - Spending review Topic 3]]+Dataset[[#This Row],[2025/26 To - Spending review Topic 4]]+Dataset[[#This Row],[2025/26 To - Other reallocations]]","v":0},{"$f":"Dataset[[#This Row],[2023/24 Baseline]]+Dataset[[#This Row],[2023/24 From - Total]]+Dataset[[#This Row],[2023/24 To - Total]]","v":0},{"$f":"Dataset[[#This Row],[2024/25 Baseline]]+Dataset[[#This Row],[2024/25 From - Total]]+Dataset[[#This Row],[2024/25 To - Total]]","v":0},{"$f":"Dataset[[#This Row],[2025/26 Baseline]]+Dataset[[#This Row],[2025/26 From - Total]]+Dataset[[#This Row],[2025/26 To - Total]]","v":0}]
["NAT|Non-transfer item","2|Inventory: Other supplies","2023_24","MTEF2023",2,2,2,955,338,"02","02","02","000955","000338","02|02|02",1,1,2,30,30,"01|01|02|30|30","National","Parliament","Legislation and Oversight","National Council of Provinces","Non-transfer item","Current","Current payments","Goods and services","Inventory: Other supplies","Inventory: Other supplies","General public services","Executive and legislative organs","NAT",0,0,0,0,0,0,0,0,0,0,0,null,null,null,null,null,null,null,null,null,null,null,null,null,null,null,null,null,null,null,null,null,null,null,null,null,null,null,null,null,null,{"$f":"Dataset[[#This Row],[2023/24 From - Spending review Topic 1]]+Dataset[[#This Row],[2023/24 From - Spending review Topic 2]]+Dataset[[#This Row],[2023/24 From - Spending review Topic 3]]+Dataset[[#This Row],[2023/24 From - Spending review Topic 4]]+Dataset[[#This Row],[2023/24 From - Other reallocations]]","v":0},{"$f":"Dataset[[#This Row],[2024/25 From - Spending review Topic 1]]+Dataset[[#This Row],[2024/25 From - Spending review Topic 2]]+Dataset[[#This Row],[2024/25 From - Spending review Topic 3]]+Dataset[[#This Row],[2024/25 From - Spending review Topic 4]]+Dataset[[#This Row],[2024/25 From - Other reallocations]]","v":0},{"$f":"Dataset[[#This Row],[2025/26 From - Spending review Topic 1]]+Dataset[[#This Row],[2025/26 From - Spending review Topic 2]]+Dataset[[#This Row],[2025/26 From - Spending review Topic 3]]+Dataset[[#This Row],[2025/26 From - Spending review Topic 4]]+Dataset[[#This Row],[2025/26 From - Other reallocations]]","v":0},{"$f":"Dataset[[#This Row],[2023/24 To - Spending review Topic 1]]+Dataset[[#This Row],[2023/24 To - Spending review Topic 2]]+Dataset[[#This Row],[2023/24 To - Spending review Topic 3]]+Dataset[[#This Row],[2023/24 To - Spending review Topic 4]]+Dataset[[#This Row],[2023/24 To - Other reallocations]]","v":0},{"$f":"Dataset[[#This Row],[2024/25 To - Spending review Topic 1]]+Dataset[[#This Row],[2024/25 To - Spending review Topic 2]]+Dataset[[#This Row],[2024/25 To - Spending review Topic 3]]+Dataset[[#This Row],[2024/25 To - Spending review Topic 4]]+Dataset[[#This Row],[2024/25 To - Other reallocations]]","v":0},{"$f":"Dataset[[#This Row],[2025/26 To - Spending review Topic 1]]+Dataset[[#This Row],[2025/26 To - Spending review Topic 2]]+Dataset[[#This Row],[2025/26 To - Spending review Topic 3]]+Dataset[[#This Row],[2025/26 To - Spending review Topic 4]]+Dataset[[#This Row],[2025/26 To - Other reallocations]]","v":0},{"$f":"Dataset[[#This Row],[2023/24 Baseline]]+Dataset[[#This Row],[2023/24 From - Total]]+Dataset[[#This Row],[2023/24 To - Total]]","v":0},{"$f":"Dataset[[#This Row],[2024/25 Baseline]]+Dataset[[#This Row],[2024/25 From - Total]]+Dataset[[#This Row],[2024/25 To - Total]]","v":0},{"$f":"Dataset[[#This Row],[2025/26 Baseline]]+Dataset[[#This Row],[2025/26 From - Total]]+Dataset[[#This Row],[2025/26 To - Total]]","v":0}]
["NAT|Non-transfer item","2|Consumable supplies","2023_24","MTEF2023",2,2,2,956,339,"02","02","02","000956","000339","02|02|02",1,1,2,31,31,"01|01|02|31|31","National","Parliament","Legislation and Oversight","National Council of Provinces","Non-transfer item","Current","Current payments","Goods and services","Consumable supplies","Consumable supplies","General public services","Executive and legislative organs","NAT",0,0,0,0,0,0,0,0,0,0,0,null,null,null,null,null,null,null,null,null,null,null,null,null,null,null,null,null,null,null,null,null,null,null,null,null,null,null,null,null,null,{"$f":"Dataset[[#This Row],[2023/24 From - Spending review Topic 1]]+Dataset[[#This Row],[2023/24 From - Spending review Topic 2]]+Dataset[[#This Row],[2023/24 From - Spending review Topic 3]]+Dataset[[#This Row],[2023/24 From - Spending review Topic 4]]+Dataset[[#This Row],[2023/24 From - Other reallocations]]","v":0},{"$f":"Dataset[[#This Row],[2024/25 From - Spending review Topic 1]]+Dataset[[#This Row],[2024/25 From - Spending review Topic 2]]+Dataset[[#This Row],[2024/25 From - Spending review Topic 3]]+Dataset[[#This Row],[2024/25 From - Spending review Topic 4]]+Dataset[[#This Row],[2024/25 From - Other reallocations]]","v":0},{"$f":"Dataset[[#This Row],[2025/26 From - Spending review Topic 1]]+Dataset[[#This Row],[2025/26 From - Spending review Topic 2]]+Dataset[[#This Row],[2025/26 From - Spending review Topic 3]]+Dataset[[#This Row],[2025/26 From - Spending review Topic 4]]+Dataset[[#This Row],[2025/26 From - Other reallocations]]","v":0},{"$f":"Dataset[[#This Row],[2023/24 To - Spending review Topic 1]]+Dataset[[#This Row],[2023/24 To - Spending review Topic 2]]+Dataset[[#This Row],[2023/24 To - Spending review Topic 3]]+Dataset[[#This Row],[2023/24 To - Spending review Topic 4]]+Dataset[[#This Row],[2023/24 To - Other reallocations]]","v":0},{"$f":"Dataset[[#This Row],[2024/25 To - Spending review Topic 1]]+Dataset[[#This Row],[2024/25 To - Spending review Topic 2]]+Dataset[[#This Row],[2024/25 To - Spending review Topic 3]]+Dataset[[#This Row],[2024/25 To - Spending review Topic 4]]+Dataset[[#This Row],[2024/25 To - Other reallocations]]","v":0},{"$f":"Dataset[[#This Row],[2025/26 To - Spending review Topic 1]]+Dataset[[#This Row],[2025/26 To - Spending review Topic 2]]+Dataset[[#This Row],[2025/26 To - Spending review Topic 3]]+Dataset[[#This Row],[2025/26 To - Spending review Topic 4]]+Dataset[[#This Row],[2025/26 To - Other reallocations]]","v":0},{"$f":"Dataset[[#This Row],[2023/24 Baseline]]+Dataset[[#This Row],[2023/24 From - Total]]+Dataset[[#This Row],[2023/24 To - Total]]","v":0},{"$f":"Dataset[[#This Row],[2024/25 Baseline]]+Dataset[[#This Row],[2024/25 From - Total]]+Dataset[[#This Row],[2024/25 To - Total]]","v":0},{"$f":"Dataset[[#This Row],[2025/26 Baseline]]+Dataset[[#This Row],[2025/26 From - Total]]+Dataset[[#This Row],[2025/26 To - Total]]","v":0}]
["NAT|Non-transfer item","2|Consumables: Stationery, printing and office supplies","2023_24","MTEF2023",2,2,2,957,340,"02","02","02","000957","000340","02|02|02",1,1,2,32,32,"01|01|02|32|32","National","Parliament","Legislation and Oversight","National Council of Provinces","Non-transfer item","Current","Current payments","Goods and services","Consumables: Stationery, printing and office supplies","Consumables: Stationery, printing and office supplies","General public services","Executive and legislative organs","NAT",673,711,750,780,780,780,0,802,805,841,879,null,null,null,null,null,null,null,null,null,null,null,null,null,null,null,null,null,null,null,null,null,null,null,null,null,null,null,null,null,null,{"$f":"Dataset[[#This Row],[2023/24 From - Spending review Topic 1]]+Dataset[[#This Row],[2023/24 From - Spending review Topic 2]]+Dataset[[#This Row],[2023/24 From - Spending review Topic 3]]+Dataset[[#This Row],[2023/24 From - Spending review Topic 4]]+Dataset[[#This Row],[2023/24 From - Other reallocations]]","v":0},{"$f":"Dataset[[#This Row],[2024/25 From - Spending review Topic 1]]+Dataset[[#This Row],[2024/25 From - Spending review Topic 2]]+Dataset[[#This Row],[2024/25 From - Spending review Topic 3]]+Dataset[[#This Row],[2024/25 From - Spending review Topic 4]]+Dataset[[#This Row],[2024/25 From - Other reallocations]]","v":0},{"$f":"Dataset[[#This Row],[2025/26 From - Spending review Topic 1]]+Dataset[[#This Row],[2025/26 From - Spending review Topic 2]]+Dataset[[#This Row],[2025/26 From - Spending review Topic 3]]+Dataset[[#This Row],[2025/26 From - Spending review Topic 4]]+Dataset[[#This Row],[2025/26 From - Other reallocations]]","v":0},{"$f":"Dataset[[#This Row],[2023/24 To - Spending review Topic 1]]+Dataset[[#This Row],[2023/24 To - Spending review Topic 2]]+Dataset[[#This Row],[2023/24 To - Spending review Topic 3]]+Dataset[[#This Row],[2023/24 To - Spending review Topic 4]]+Dataset[[#This Row],[2023/24 To - Other reallocations]]","v":0},{"$f":"Dataset[[#This Row],[2024/25 To - Spending review Topic 1]]+Dataset[[#This Row],[2024/25 To - Spending review Topic 2]]+Dataset[[#This Row],[2024/25 To - Spending review Topic 3]]+Dataset[[#This Row],[2024/25 To - Spending review Topic 4]]+Dataset[[#This Row],[2024/25 To - Other reallocations]]","v":0},{"$f":"Dataset[[#This Row],[2025/26 To - Spending review Topic 1]]+Dataset[[#This Row],[2025/26 To - Spending review Topic 2]]+Dataset[[#This Row],[2025/26 To - Spending review Topic 3]]+Dataset[[#This Row],[2025/26 To - Spending review Topic 4]]+Dataset[[#This Row],[2025/26 To - Other reallocations]]","v":0},{"$f":"Dataset[[#This Row],[2023/24 Baseline]]+Dataset[[#This Row],[2023/24 From - Total]]+Dataset[[#This Row],[2023/24 To - Total]]","v":805},{"$f":"Dataset[[#This Row],[2024/25 Baseline]]+Dataset[[#This Row],[2024/25 From - Total]]+Dataset[[#This Row],[2024/25 To - Total]]","v":841},{"$f":"Dataset[[#This Row],[2025/26 Baseline]]+Dataset[[#This Row],[2025/26 From - Total]]+Dataset[[#This Row],[2025/26 To - Total]]","v":879}]
["NAT|Non-transfer item","2|Operating leases","2023_24","MTEF2023",2,2,2,958,341,"02","02","02","000958","000341","02|02|02",1,1,2,33,33,"01|01|02|33|33","National","Parliament","Legislation and Oversight","National Council of Provinces","Non-transfer item","Current","Current payments","Goods and services","Operating leases","Operating leases","General public services","Executive and legislative organs","NAT",0,0,0,0,0,0,0,0,0,0,0,null,null,null,null,null,null,null,null,null,null,null,null,null,null,null,null,null,null,null,null,null,null,null,null,null,null,null,null,null,null,{"$f":"Dataset[[#This Row],[2023/24 From - Spending review Topic 1]]+Dataset[[#This Row],[2023/24 From - Spending review Topic 2]]+Dataset[[#This Row],[2023/24 From - Spending review Topic 3]]+Dataset[[#This Row],[2023/24 From - Spending review Topic 4]]+Dataset[[#This Row],[2023/24 From - Other reallocations]]","v":0},{"$f":"Dataset[[#This Row],[2024/25 From - Spending review Topic 1]]+Dataset[[#This Row],[2024/25 From - Spending review Topic 2]]+Dataset[[#This Row],[2024/25 From - Spending review Topic 3]]+Dataset[[#This Row],[2024/25 From - Spending review Topic 4]]+Dataset[[#This Row],[2024/25 From - Other reallocations]]","v":0},{"$f":"Dataset[[#This Row],[2025/26 From - Spending review Topic 1]]+Dataset[[#This Row],[2025/26 From - Spending review Topic 2]]+Dataset[[#This Row],[2025/26 From - Spending review Topic 3]]+Dataset[[#This Row],[2025/26 From - Spending review Topic 4]]+Dataset[[#This Row],[2025/26 From - Other reallocations]]","v":0},{"$f":"Dataset[[#This Row],[2023/24 To - Spending review Topic 1]]+Dataset[[#This Row],[2023/24 To - Spending review Topic 2]]+Dataset[[#This Row],[2023/24 To - Spending review Topic 3]]+Dataset[[#This Row],[2023/24 To - Spending review Topic 4]]+Dataset[[#This Row],[2023/24 To - Other reallocations]]","v":0},{"$f":"Dataset[[#This Row],[2024/25 To - Spending review Topic 1]]+Dataset[[#This Row],[2024/25 To - Spending review Topic 2]]+Dataset[[#This Row],[2024/25 To - Spending review Topic 3]]+Dataset[[#This Row],[2024/25 To - Spending review Topic 4]]+Dataset[[#This Row],[2024/25 To - Other reallocations]]","v":0},{"$f":"Dataset[[#This Row],[2025/26 To - Spending review Topic 1]]+Dataset[[#This Row],[2025/26 To - Spending review Topic 2]]+Dataset[[#This Row],[2025/26 To - Spending review Topic 3]]+Dataset[[#This Row],[2025/26 To - Spending review Topic 4]]+Dataset[[#This Row],[2025/26 To - Other reallocations]]","v":0},{"$f":"Dataset[[#This Row],[2023/24 Baseline]]+Dataset[[#This Row],[2023/24 From - Total]]+Dataset[[#This Row],[2023/24 To - Total]]","v":0},{"$f":"Dataset[[#This Row],[2024/25 Baseline]]+Dataset[[#This Row],[2024/25 From - Total]]+Dataset[[#This Row],[2024/25 To - Total]]","v":0},{"$f":"Dataset[[#This Row],[2025/26 Baseline]]+Dataset[[#This Row],[2025/26 From - Total]]+Dataset[[#This Row],[2025/26 To - Total]]","v":0}]
["NAT|Non-transfer item","2|Rental and hiring","2023_24","MTEF2023",2,2,2,959,342,"02","02","02","000959","000342","02|02|02",1,1,2,34,34,"01|01|02|34|34","National","Parliament","Legislation and Oversight","National Council of Provinces","Non-transfer item","Current","Current payments","Goods and services","Rental and hiring","Rental and hiring","General public services","Executive and legislative organs","NAT",0,930,0,0,0,0,0,0,0,0,0,null,null,null,null,null,null,null,null,null,null,null,null,null,null,null,null,null,null,null,null,null,null,null,null,null,null,null,null,null,null,{"$f":"Dataset[[#This Row],[2023/24 From - Spending review Topic 1]]+Dataset[[#This Row],[2023/24 From - Spending review Topic 2]]+Dataset[[#This Row],[2023/24 From - Spending review Topic 3]]+Dataset[[#This Row],[2023/24 From - Spending review Topic 4]]+Dataset[[#This Row],[2023/24 From - Other reallocations]]","v":0},{"$f":"Dataset[[#This Row],[2024/25 From - Spending review Topic 1]]+Dataset[[#This Row],[2024/25 From - Spending review Topic 2]]+Dataset[[#This Row],[2024/25 From - Spending review Topic 3]]+Dataset[[#This Row],[2024/25 From - Spending review Topic 4]]+Dataset[[#This Row],[2024/25 From - Other reallocations]]","v":0},{"$f":"Dataset[[#This Row],[2025/26 From - Spending review Topic 1]]+Dataset[[#This Row],[2025/26 From - Spending review Topic 2]]+Dataset[[#This Row],[2025/26 From - Spending review Topic 3]]+Dataset[[#This Row],[2025/26 From - Spending review Topic 4]]+Dataset[[#This Row],[2025/26 From - Other reallocations]]","v":0},{"$f":"Dataset[[#This Row],[2023/24 To - Spending review Topic 1]]+Dataset[[#This Row],[2023/24 To - Spending review Topic 2]]+Dataset[[#This Row],[2023/24 To - Spending review Topic 3]]+Dataset[[#This Row],[2023/24 To - Spending review Topic 4]]+Dataset[[#This Row],[2023/24 To - Other reallocations]]","v":0},{"$f":"Dataset[[#This Row],[2024/25 To - Spending review Topic 1]]+Dataset[[#This Row],[2024/25 To - Spending review Topic 2]]+Dataset[[#This Row],[2024/25 To - Spending review Topic 3]]+Dataset[[#This Row],[2024/25 To - Spending review Topic 4]]+Dataset[[#This Row],[2024/25 To - Other reallocations]]","v":0},{"$f":"Dataset[[#This Row],[2025/26 To - Spending review Topic 1]]+Dataset[[#This Row],[2025/26 To - Spending review Topic 2]]+Dataset[[#This Row],[2025/26 To - Spending review Topic 3]]+Dataset[[#This Row],[2025/26 To - Spending review Topic 4]]+Dataset[[#This Row],[2025/26 To - Other reallocations]]","v":0},{"$f":"Dataset[[#This Row],[2023/24 Baseline]]+Dataset[[#This Row],[2023/24 From - Total]]+Dataset[[#This Row],[2023/24 To - Total]]","v":0},{"$f":"Dataset[[#This Row],[2024/25 Baseline]]+Dataset[[#This Row],[2024/25 From - Total]]+Dataset[[#This Row],[2024/25 To - Total]]","v":0},{"$f":"Dataset[[#This Row],[2025/26 Baseline]]+Dataset[[#This Row],[2025/26 From - Total]]+Dataset[[#This Row],[2025/26 To - Total]]","v":0}]
["NAT|Non-transfer item","2|Property payments","2023_24","MTEF2023",2,2,2,960,343,"02","02","02","000960","000343","02|02|02",1,1,2,35,35,"01|01|02|35|35","National","Parliament","Legislation and Oversight","National Council of Provinces","Non-transfer item","Current","Current payments","Goods and services","Property payments","Property payments","General public services","Executive and legislative organs","NAT",0,0,0,0,0,0,0,0,0,0,0,null,null,null,null,null,null,null,null,null,null,null,null,null,null,null,null,null,null,null,null,null,null,null,null,null,null,null,null,null,null,{"$f":"Dataset[[#This Row],[2023/24 From - Spending review Topic 1]]+Dataset[[#This Row],[2023/24 From - Spending review Topic 2]]+Dataset[[#This Row],[2023/24 From - Spending review Topic 3]]+Dataset[[#This Row],[2023/24 From - Spending review Topic 4]]+Dataset[[#This Row],[2023/24 From - Other reallocations]]","v":0},{"$f":"Dataset[[#This Row],[2024/25 From - Spending review Topic 1]]+Dataset[[#This Row],[2024/25 From - Spending review Topic 2]]+Dataset[[#This Row],[2024/25 From - Spending review Topic 3]]+Dataset[[#This Row],[2024/25 From - Spending review Topic 4]]+Dataset[[#This Row],[2024/25 From - Other reallocations]]","v":0},{"$f":"Dataset[[#This Row],[2025/26 From - Spending review Topic 1]]+Dataset[[#This Row],[2025/26 From - Spending review Topic 2]]+Dataset[[#This Row],[2025/26 From - Spending review Topic 3]]+Dataset[[#This Row],[2025/26 From - Spending review Topic 4]]+Dataset[[#This Row],[2025/26 From - Other reallocations]]","v":0},{"$f":"Dataset[[#This Row],[2023/24 To - Spending review Topic 1]]+Dataset[[#This Row],[2023/24 To - Spending review Topic 2]]+Dataset[[#This Row],[2023/24 To - Spending review Topic 3]]+Dataset[[#This Row],[2023/24 To - Spending review Topic 4]]+Dataset[[#This Row],[2023/24 To - Other reallocations]]","v":0},{"$f":"Dataset[[#This Row],[2024/25 To - Spending review Topic 1]]+Dataset[[#This Row],[2024/25 To - Spending review Topic 2]]+Dataset[[#This Row],[2024/25 To - Spending review Topic 3]]+Dataset[[#This Row],[2024/25 To - Spending review Topic 4]]+Dataset[[#This Row],[2024/25 To - Other reallocations]]","v":0},{"$f":"Dataset[[#This Row],[2025/26 To - Spending review Topic 1]]+Dataset[[#This Row],[2025/26 To - Spending review Topic 2]]+Dataset[[#This Row],[2025/26 To - Spending review Topic 3]]+Dataset[[#This Row],[2025/26 To - Spending review Topic 4]]+Dataset[[#This Row],[2025/26 To - Other reallocations]]","v":0},{"$f":"Dataset[[#This Row],[2023/24 Baseline]]+Dataset[[#This Row],[2023/24 From - Total]]+Dataset[[#This Row],[2023/24 To - Total]]","v":0},{"$f":"Dataset[[#This Row],[2024/25 Baseline]]+Dataset[[#This Row],[2024/25 From - Total]]+Dataset[[#This Row],[2024/25 To - Total]]","v":0},{"$f":"Dataset[[#This Row],[2025/26 Baseline]]+Dataset[[#This Row],[2025/26 From - Total]]+Dataset[[#This Row],[2025/26 To - Total]]","v":0}]
["NAT|Non-transfer item","2|Transport provided: Departmental activity","2023_24","MTEF2023",2,2,2,961,344,"02","02","02","000961","000344","02|02|02",1,1,2,36,36,"01|01|02|36|36","National","Parliament","Legislation and Oversight","National Council of Provinces","Non-transfer item","Current","Current payments","Goods and services","Transport provided: Departmental activity","Transport provided: Departmental activity","General public services","Executive and legislative organs","NAT",0,0,0,0,0,0,0,0,0,0,0,null,null,null,null,null,null,null,null,null,null,null,null,null,null,null,null,null,null,null,null,null,null,null,null,null,null,null,null,null,null,{"$f":"Dataset[[#This Row],[2023/24 From - Spending review Topic 1]]+Dataset[[#This Row],[2023/24 From - Spending review Topic 2]]+Dataset[[#This Row],[2023/24 From - Spending review Topic 3]]+Dataset[[#This Row],[2023/24 From - Spending review Topic 4]]+Dataset[[#This Row],[2023/24 From - Other reallocations]]","v":0},{"$f":"Dataset[[#This Row],[2024/25 From - Spending review Topic 1]]+Dataset[[#This Row],[2024/25 From - Spending review Topic 2]]+Dataset[[#This Row],[2024/25 From - Spending review Topic 3]]+Dataset[[#This Row],[2024/25 From - Spending review Topic 4]]+Dataset[[#This Row],[2024/25 From - Other reallocations]]","v":0},{"$f":"Dataset[[#This Row],[2025/26 From - Spending review Topic 1]]+Dataset[[#This Row],[2025/26 From - Spending review Topic 2]]+Dataset[[#This Row],[2025/26 From - Spending review Topic 3]]+Dataset[[#This Row],[2025/26 From - Spending review Topic 4]]+Dataset[[#This Row],[2025/26 From - Other reallocations]]","v":0},{"$f":"Dataset[[#This Row],[2023/24 To - Spending review Topic 1]]+Dataset[[#This Row],[2023/24 To - Spending review Topic 2]]+Dataset[[#This Row],[2023/24 To - Spending review Topic 3]]+Dataset[[#This Row],[2023/24 To - Spending review Topic 4]]+Dataset[[#This Row],[2023/24 To - Other reallocations]]","v":0},{"$f":"Dataset[[#This Row],[2024/25 To - Spending review Topic 1]]+Dataset[[#This Row],[2024/25 To - Spending review Topic 2]]+Dataset[[#This Row],[2024/25 To - Spending review Topic 3]]+Dataset[[#This Row],[2024/25 To - Spending review Topic 4]]+Dataset[[#This Row],[2024/25 To - Other reallocations]]","v":0},{"$f":"Dataset[[#This Row],[2025/26 To - Spending review Topic 1]]+Dataset[[#This Row],[2025/26 To - Spending review Topic 2]]+Dataset[[#This Row],[2025/26 To - Spending review Topic 3]]+Dataset[[#This Row],[2025/26 To - Spending review Topic 4]]+Dataset[[#This Row],[2025/26 To - Other reallocations]]","v":0},{"$f":"Dataset[[#This Row],[2023/24 Baseline]]+Dataset[[#This Row],[2023/24 From - Total]]+Dataset[[#This Row],[2023/24 To - Total]]","v":0},{"$f":"Dataset[[#This Row],[2024/25 Baseline]]+Dataset[[#This Row],[2024/25 From - Total]]+Dataset[[#This Row],[2024/25 To - Total]]","v":0},{"$f":"Dataset[[#This Row],[2025/26 Baseline]]+Dataset[[#This Row],[2025/26 From - Total]]+Dataset[[#This Row],[2025/26 To - Total]]","v":0}]
["NAT|Non-transfer item","2|Travel and subsistence","2023_24","MTEF2023",2,2,2,962,345,"02","02","02","000962","000345","02|02|02",1,1,2,37,37,"01|01|02|37|37","National","Parliament","Legislation and Oversight","National Council of Provinces","Non-transfer item","Current","Current payments","Goods and services","Travel and subsistence","Travel and subsistence","General public services","Executive and legislative organs","NAT",2065,6677,11747,12212,12212,12212,0,8058,8106,8672,9061,null,null,null,null,null,null,null,null,null,null,null,null,null,null,null,null,null,null,null,null,null,null,null,null,null,null,null,null,null,null,{"$f":"Dataset[[#This Row],[2023/24 From - Spending review Topic 1]]+Dataset[[#This Row],[2023/24 From - Spending review Topic 2]]+Dataset[[#This Row],[2023/24 From - Spending review Topic 3]]+Dataset[[#This Row],[2023/24 From - Spending review Topic 4]]+Dataset[[#This Row],[2023/24 From - Other reallocations]]","v":0},{"$f":"Dataset[[#This Row],[2024/25 From - Spending review Topic 1]]+Dataset[[#This Row],[2024/25 From - Spending review Topic 2]]+Dataset[[#This Row],[2024/25 From - Spending review Topic 3]]+Dataset[[#This Row],[2024/25 From - Spending review Topic 4]]+Dataset[[#This Row],[2024/25 From - Other reallocations]]","v":0},{"$f":"Dataset[[#This Row],[2025/26 From - Spending review Topic 1]]+Dataset[[#This Row],[2025/26 From - Spending review Topic 2]]+Dataset[[#This Row],[2025/26 From - Spending review Topic 3]]+Dataset[[#This Row],[2025/26 From - Spending review Topic 4]]+Dataset[[#This Row],[2025/26 From - Other reallocations]]","v":0},{"$f":"Dataset[[#This Row],[2023/24 To - Spending review Topic 1]]+Dataset[[#This Row],[2023/24 To - Spending review Topic 2]]+Dataset[[#This Row],[2023/24 To - Spending review Topic 3]]+Dataset[[#This Row],[2023/24 To - Spending review Topic 4]]+Dataset[[#This Row],[2023/24 To - Other reallocations]]","v":0},{"$f":"Dataset[[#This Row],[2024/25 To - Spending review Topic 1]]+Dataset[[#This Row],[2024/25 To - Spending review Topic 2]]+Dataset[[#This Row],[2024/25 To - Spending review Topic 3]]+Dataset[[#This Row],[2024/25 To - Spending review Topic 4]]+Dataset[[#This Row],[2024/25 To - Other reallocations]]","v":0},{"$f":"Dataset[[#This Row],[2025/26 To - Spending review Topic 1]]+Dataset[[#This Row],[2025/26 To - Spending review Topic 2]]+Dataset[[#This Row],[2025/26 To - Spending review Topic 3]]+Dataset[[#This Row],[2025/26 To - Spending review Topic 4]]+Dataset[[#This Row],[2025/26 To - Other reallocations]]","v":0},{"$f":"Dataset[[#This Row],[2023/24 Baseline]]+Dataset[[#This Row],[2023/24 From - Total]]+Dataset[[#This Row],[2023/24 To - Total]]","v":8106},{"$f":"Dataset[[#This Row],[2024/25 Baseline]]+Dataset[[#This Row],[2024/25 From - Total]]+Dataset[[#This Row],[2024/25 To - Total]]","v":8672},{"$f":"Dataset[[#This Row],[2025/26 Baseline]]+Dataset[[#This Row],[2025/26 From - Total]]+Dataset[[#This Row],[2025/26 To - Total]]","v":9061}]
["NAT|Non-transfer item","2|Training and development","2023_24","MTEF2023",2,2,2,963,346,"02","02","02","000963","000346","02|02|02",1,1,2,38,38,"01|01|02|38|38","National","Parliament","Legislation and Oversight","National Council of Provinces","Non-transfer item","Current","Current payments","Goods and services","Training and development","Training and development","General public services","Executive and legislative organs","NAT",667,704,1089,1132,1132,1132,0,1164,1169,1221,1276,null,null,null,null,null,null,null,null,null,null,null,null,null,null,null,null,null,null,null,null,null,null,null,null,null,null,null,null,null,null,{"$f":"Dataset[[#This Row],[2023/24 From - Spending review Topic 1]]+Dataset[[#This Row],[2023/24 From - Spending review Topic 2]]+Dataset[[#This Row],[2023/24 From - Spending review Topic 3]]+Dataset[[#This Row],[2023/24 From - Spending review Topic 4]]+Dataset[[#This Row],[2023/24 From - Other reallocations]]","v":0},{"$f":"Dataset[[#This Row],[2024/25 From - Spending review Topic 1]]+Dataset[[#This Row],[2024/25 From - Spending review Topic 2]]+Dataset[[#This Row],[2024/25 From - Spending review Topic 3]]+Dataset[[#This Row],[2024/25 From - Spending review Topic 4]]+Dataset[[#This Row],[2024/25 From - Other reallocations]]","v":0},{"$f":"Dataset[[#This Row],[2025/26 From - Spending review Topic 1]]+Dataset[[#This Row],[2025/26 From - Spending review Topic 2]]+Dataset[[#This Row],[2025/26 From - Spending review Topic 3]]+Dataset[[#This Row],[2025/26 From - Spending review Topic 4]]+Dataset[[#This Row],[2025/26 From - Other reallocations]]","v":0},{"$f":"Dataset[[#This Row],[2023/24 To - Spending review Topic 1]]+Dataset[[#This Row],[2023/24 To - Spending review Topic 2]]+Dataset[[#This Row],[2023/24 To - Spending review Topic 3]]+Dataset[[#This Row],[2023/24 To - Spending review Topic 4]]+Dataset[[#This Row],[2023/24 To - Other reallocations]]","v":0},{"$f":"Dataset[[#This Row],[2024/25 To - Spending review Topic 1]]+Dataset[[#This Row],[2024/25 To - Spending review Topic 2]]+Dataset[[#This Row],[2024/25 To - Spending review Topic 3]]+Dataset[[#This Row],[2024/25 To - Spending review Topic 4]]+Dataset[[#This Row],[2024/25 To - Other reallocations]]","v":0},{"$f":"Dataset[[#This Row],[2025/26 To - Spending review Topic 1]]+Dataset[[#This Row],[2025/26 To - Spending review Topic 2]]+Dataset[[#This Row],[2025/26 To - Spending review Topic 3]]+Dataset[[#This Row],[2025/26 To - Spending review Topic 4]]+Dataset[[#This Row],[2025/26 To - Other reallocations]]","v":0},{"$f":"Dataset[[#This Row],[2023/24 Baseline]]+Dataset[[#This Row],[2023/24 From - Total]]+Dataset[[#This Row],[2023/24 To - Total]]","v":1169},{"$f":"Dataset[[#This Row],[2024/25 Baseline]]+Dataset[[#This Row],[2024/25 From - Total]]+Dataset[[#This Row],[2024/25 To - Total]]","v":1221},{"$f":"Dataset[[#This Row],[2025/26 Baseline]]+Dataset[[#This Row],[2025/26 From - Total]]+Dataset[[#This Row],[2025/26 To - Total]]","v":1276}]
["NAT|Non-transfer item","2|Operating payments","2023_24","MTEF2023",2,2,2,964,347,"02","02","02","000964","000347","02|02|02",1,1,2,39,39,"01|01|02|39|39","National","Parliament","Legislation and Oversight","National Council of Provinces","Non-transfer item","Current","Current payments","Goods and services","Operating payments","Operating payments","General public services","Executive and legislative organs","NAT",1413,3454,3973,4130,4130,4130,0,1247,1264,1455,1520,null,null,null,null,null,null,null,null,null,null,null,null,null,null,null,null,null,null,null,null,null,null,null,null,null,null,null,null,null,null,{"$f":"Dataset[[#This Row],[2023/24 From - Spending review Topic 1]]+Dataset[[#This Row],[2023/24 From - Spending review Topic 2]]+Dataset[[#This Row],[2023/24 From - Spending review Topic 3]]+Dataset[[#This Row],[2023/24 From - Spending review Topic 4]]+Dataset[[#This Row],[2023/24 From - Other reallocations]]","v":0},{"$f":"Dataset[[#This Row],[2024/25 From - Spending review Topic 1]]+Dataset[[#This Row],[2024/25 From - Spending review Topic 2]]+Dataset[[#This Row],[2024/25 From - Spending review Topic 3]]+Dataset[[#This Row],[2024/25 From - Spending review Topic 4]]+Dataset[[#This Row],[2024/25 From - Other reallocations]]","v":0},{"$f":"Dataset[[#This Row],[2025/26 From - Spending review Topic 1]]+Dataset[[#This Row],[2025/26 From - Spending review Topic 2]]+Dataset[[#This Row],[2025/26 From - Spending review Topic 3]]+Dataset[[#This Row],[2025/26 From - Spending review Topic 4]]+Dataset[[#This Row],[2025/26 From - Other reallocations]]","v":0},{"$f":"Dataset[[#This Row],[2023/24 To - Spending review Topic 1]]+Dataset[[#This Row],[2023/24 To - Spending review Topic 2]]+Dataset[[#This Row],[2023/24 To - Spending review Topic 3]]+Dataset[[#This Row],[2023/24 To - Spending review Topic 4]]+Dataset[[#This Row],[2023/24 To - Other reallocations]]","v":0},{"$f":"Dataset[[#This Row],[2024/25 To - Spending review Topic 1]]+Dataset[[#This Row],[2024/25 To - Spending review Topic 2]]+Dataset[[#This Row],[2024/25 To - Spending review Topic 3]]+Dataset[[#This Row],[2024/25 To - Spending review Topic 4]]+Dataset[[#This Row],[2024/25 To - Other reallocations]]","v":0},{"$f":"Dataset[[#This Row],[2025/26 To - Spending review Topic 1]]+Dataset[[#This Row],[2025/26 To - Spending review Topic 2]]+Dataset[[#This Row],[2025/26 To - Spending review Topic 3]]+Dataset[[#This Row],[2025/26 To - Spending review Topic 4]]+Dataset[[#This Row],[2025/26 To - Other reallocations]]","v":0},{"$f":"Dataset[[#This Row],[2023/24 Baseline]]+Dataset[[#This Row],[2023/24 From - Total]]+Dataset[[#This Row],[2023/24 To - Total]]","v":1264},{"$f":"Dataset[[#This Row],[2024/25 Baseline]]+Dataset[[#This Row],[2024/25 From - Total]]+Dataset[[#This Row],[2024/25 To - Total]]","v":1455},{"$f":"Dataset[[#This Row],[2025/26 Baseline]]+Dataset[[#This Row],[2025/26 From - Total]]+Dataset[[#This Row],[2025/26 To - Total]]","v":1520}]
["NAT|Non-transfer item","2|Venues and facilities","2023_24","MTEF2023",2,2,2,965,348,"02","02","02","000965","000348","02|02|02",1,1,2,40,40,"01|01|02|40|40","National","Parliament","Legislation and Oversight","National Council of Provinces","Non-transfer item","Current","Current payments","Goods and services","Venues and facilities","Venues and facilities","General public services","Executive and legislative organs","NAT",487,514,1087,1130,1130,1130,0,1162,1167,1219,1274,null,null,null,null,null,null,null,null,null,null,null,null,null,null,null,null,null,null,null,null,null,null,null,null,null,null,null,null,null,null,{"$f":"Dataset[[#This Row],[2023/24 From - Spending review Topic 1]]+Dataset[[#This Row],[2023/24 From - Spending review Topic 2]]+Dataset[[#This Row],[2023/24 From - Spending review Topic 3]]+Dataset[[#This Row],[2023/24 From - Spending review Topic 4]]+Dataset[[#This Row],[2023/24 From - Other reallocations]]","v":0},{"$f":"Dataset[[#This Row],[2024/25 From - Spending review Topic 1]]+Dataset[[#This Row],[2024/25 From - Spending review Topic 2]]+Dataset[[#This Row],[2024/25 From - Spending review Topic 3]]+Dataset[[#This Row],[2024/25 From - Spending review Topic 4]]+Dataset[[#This Row],[2024/25 From - Other reallocations]]","v":0},{"$f":"Dataset[[#This Row],[2025/26 From - Spending review Topic 1]]+Dataset[[#This Row],[2025/26 From - Spending review Topic 2]]+Dataset[[#This Row],[2025/26 From - Spending review Topic 3]]+Dataset[[#This Row],[2025/26 From - Spending review Topic 4]]+Dataset[[#This Row],[2025/26 From - Other reallocations]]","v":0},{"$f":"Dataset[[#This Row],[2023/24 To - Spending review Topic 1]]+Dataset[[#This Row],[2023/24 To - Spending review Topic 2]]+Dataset[[#This Row],[2023/24 To - Spending review Topic 3]]+Dataset[[#This Row],[2023/24 To - Spending review Topic 4]]+Dataset[[#This Row],[2023/24 To - Other reallocations]]","v":0},{"$f":"Dataset[[#This Row],[2024/25 To - Spending review Topic 1]]+Dataset[[#This Row],[2024/25 To - Spending review Topic 2]]+Dataset[[#This Row],[2024/25 To - Spending review Topic 3]]+Dataset[[#This Row],[2024/25 To - Spending review Topic 4]]+Dataset[[#This Row],[2024/25 To - Other reallocations]]","v":0},{"$f":"Dataset[[#This Row],[2025/26 To - Spending review Topic 1]]+Dataset[[#This Row],[2025/26 To - Spending review Topic 2]]+Dataset[[#This Row],[2025/26 To - Spending review Topic 3]]+Dataset[[#This Row],[2025/26 To - Spending review Topic 4]]+Dataset[[#This Row],[2025/26 To - Other reallocations]]","v":0},{"$f":"Dataset[[#This Row],[2023/24 Baseline]]+Dataset[[#This Row],[2023/24 From - Total]]+Dataset[[#This Row],[2023/24 To - Total]]","v":1167},{"$f":"Dataset[[#This Row],[2024/25 Baseline]]+Dataset[[#This Row],[2024/25 From - Total]]+Dataset[[#This Row],[2024/25 To - Total]]","v":1219},{"$f":"Dataset[[#This Row],[2025/26 Baseline]]+Dataset[[#This Row],[2025/26 From - Total]]+Dataset[[#This Row],[2025/26 To - Total]]","v":1274}]
["NAT|Non-transfer item","2|Interest (Incl. interest on unitary payments (PPP))","2023_24","MTEF2023",2,2,2,966,349,"02","02","02","000966","000349","02|02|02",1,1,3,41,41,"01|01|03|41|41","National","Parliament","Legislation and Oversight","National Council of Provinces","Non-transfer item","Current","Current payments","Interest and rent on land","Interest (Incl. interest on unitary payments (PPP))","Interest (Incl. interest on unitary payments (PPP))","General public services","Executive and legislative organs","NAT",0,0,0,0,0,0,0,0,0,0,0,null,null,null,null,null,null,null,null,null,null,null,null,null,null,null,null,null,null,null,null,null,null,null,null,null,null,null,null,null,null,{"$f":"Dataset[[#This Row],[2023/24 From - Spending review Topic 1]]+Dataset[[#This Row],[2023/24 From - Spending review Topic 2]]+Dataset[[#This Row],[2023/24 From - Spending review Topic 3]]+Dataset[[#This Row],[2023/24 From - Spending review Topic 4]]+Dataset[[#This Row],[2023/24 From - Other reallocations]]","v":0},{"$f":"Dataset[[#This Row],[2024/25 From - Spending review Topic 1]]+Dataset[[#This Row],[2024/25 From - Spending review Topic 2]]+Dataset[[#This Row],[2024/25 From - Spending review Topic 3]]+Dataset[[#This Row],[2024/25 From - Spending review Topic 4]]+Dataset[[#This Row],[2024/25 From - Other reallocations]]","v":0},{"$f":"Dataset[[#This Row],[2025/26 From - Spending review Topic 1]]+Dataset[[#This Row],[2025/26 From - Spending review Topic 2]]+Dataset[[#This Row],[2025/26 From - Spending review Topic 3]]+Dataset[[#This Row],[2025/26 From - Spending review Topic 4]]+Dataset[[#This Row],[2025/26 From - Other reallocations]]","v":0},{"$f":"Dataset[[#This Row],[2023/24 To - Spending review Topic 1]]+Dataset[[#This Row],[2023/24 To - Spending review Topic 2]]+Dataset[[#This Row],[2023/24 To - Spending review Topic 3]]+Dataset[[#This Row],[2023/24 To - Spending review Topic 4]]+Dataset[[#This Row],[2023/24 To - Other reallocations]]","v":0},{"$f":"Dataset[[#This Row],[2024/25 To - Spending review Topic 1]]+Dataset[[#This Row],[2024/25 To - Spending review Topic 2]]+Dataset[[#This Row],[2024/25 To - Spending review Topic 3]]+Dataset[[#This Row],[2024/25 To - Spending review Topic 4]]+Dataset[[#This Row],[2024/25 To - Other reallocations]]","v":0},{"$f":"Dataset[[#This Row],[2025/26 To - Spending review Topic 1]]+Dataset[[#This Row],[2025/26 To - Spending review Topic 2]]+Dataset[[#This Row],[2025/26 To - Spending review Topic 3]]+Dataset[[#This Row],[2025/26 To - Spending review Topic 4]]+Dataset[[#This Row],[2025/26 To - Other reallocations]]","v":0},{"$f":"Dataset[[#This Row],[2023/24 Baseline]]+Dataset[[#This Row],[2023/24 From - Total]]+Dataset[[#This Row],[2023/24 To - Total]]","v":0},{"$f":"Dataset[[#This Row],[2024/25 Baseline]]+Dataset[[#This Row],[2024/25 From - Total]]+Dataset[[#This Row],[2024/25 To - Total]]","v":0},{"$f":"Dataset[[#This Row],[2025/26 Baseline]]+Dataset[[#This Row],[2025/26 From - Total]]+Dataset[[#This Row],[2025/26 To - Total]]","v":0}]
["NAT|Non-transfer item","2|Rent on land","2023_24","MTEF2023",2,2,2,967,350,"02","02","02","000967","000350","02|02|02",1,1,3,42,42,"01|01|03|42|42","National","Parliament","Legislation and Oversight","National Council of Provinces","Non-transfer item","Current","Current payments","Interest and rent on land","Rent on land","Rent on land","General public services","Executive and legislative organs","NAT",0,0,0,0,0,0,0,0,0,0,0,null,null,null,null,null,null,null,null,null,null,null,null,null,null,null,null,null,null,null,null,null,null,null,null,null,null,null,null,null,null,{"$f":"Dataset[[#This Row],[2023/24 From - Spending review Topic 1]]+Dataset[[#This Row],[2023/24 From - Spending review Topic 2]]+Dataset[[#This Row],[2023/24 From - Spending review Topic 3]]+Dataset[[#This Row],[2023/24 From - Spending review Topic 4]]+Dataset[[#This Row],[2023/24 From - Other reallocations]]","v":0},{"$f":"Dataset[[#This Row],[2024/25 From - Spending review Topic 1]]+Dataset[[#This Row],[2024/25 From - Spending review Topic 2]]+Dataset[[#This Row],[2024/25 From - Spending review Topic 3]]+Dataset[[#This Row],[2024/25 From - Spending review Topic 4]]+Dataset[[#This Row],[2024/25 From - Other reallocations]]","v":0},{"$f":"Dataset[[#This Row],[2025/26 From - Spending review Topic 1]]+Dataset[[#This Row],[2025/26 From - Spending review Topic 2]]+Dataset[[#This Row],[2025/26 From - Spending review Topic 3]]+Dataset[[#This Row],[2025/26 From - Spending review Topic 4]]+Dataset[[#This Row],[2025/26 From - Other reallocations]]","v":0},{"$f":"Dataset[[#This Row],[2023/24 To - Spending review Topic 1]]+Dataset[[#This Row],[2023/24 To - Spending review Topic 2]]+Dataset[[#This Row],[2023/24 To - Spending review Topic 3]]+Dataset[[#This Row],[2023/24 To - Spending review Topic 4]]+Dataset[[#This Row],[2023/24 To - Other reallocations]]","v":0},{"$f":"Dataset[[#This Row],[2024/25 To - Spending review Topic 1]]+Dataset[[#This Row],[2024/25 To - Spending review Topic 2]]+Dataset[[#This Row],[2024/25 To - Spending review Topic 3]]+Dataset[[#This Row],[2024/25 To - Spending review Topic 4]]+Dataset[[#This Row],[2024/25 To - Other reallocations]]","v":0},{"$f":"Dataset[[#This Row],[2025/26 To - Spending review Topic 1]]+Dataset[[#This Row],[2025/26 To - Spending review Topic 2]]+Dataset[[#This Row],[2025/26 To - Spending review Topic 3]]+Dataset[[#This Row],[2025/26 To - Spending review Topic 4]]+Dataset[[#This Row],[2025/26 To - Other reallocations]]","v":0},{"$f":"Dataset[[#This Row],[2023/24 Baseline]]+Dataset[[#This Row],[2023/24 From - Total]]+Dataset[[#This Row],[2023/24 To - Total]]","v":0},{"$f":"Dataset[[#This Row],[2024/25 Baseline]]+Dataset[[#This Row],[2024/25 From - Total]]+Dataset[[#This Row],[2024/25 To - Total]]","v":0},{"$f":"Dataset[[#This Row],[2025/26 Baseline]]+Dataset[[#This Row],[2025/26 From - Total]]+Dataset[[#This Row],[2025/26 To - Total]]","v":0}]
["NAT|Non-transfer item","2|Provincial Revenue Funds","2023_24","MTEF2023",2,2,2,968,351,"02","02","02","000968","000351","02|02|02",1,2,4,43,43,"01|02|04|43|43","National","Parliament","Legislation and Oversight","National Council of Provinces","Non-transfer item","Current","Transfers and subsidies","Provinces and municipalities","Provinces","Provincial Revenue Funds","General public services","Executive and legislative organs","NAT",0,0,0,0,0,0,0,0,0,0,0,null,null,null,null,null,null,null,null,null,null,null,null,null,null,null,null,null,null,null,null,null,null,null,null,null,null,null,null,null,null,{"$f":"Dataset[[#This Row],[2023/24 From - Spending review Topic 1]]+Dataset[[#This Row],[2023/24 From - Spending review Topic 2]]+Dataset[[#This Row],[2023/24 From - Spending review Topic 3]]+Dataset[[#This Row],[2023/24 From - Spending review Topic 4]]+Dataset[[#This Row],[2023/24 From - Other reallocations]]","v":0},{"$f":"Dataset[[#This Row],[2024/25 From - Spending review Topic 1]]+Dataset[[#This Row],[2024/25 From - Spending review Topic 2]]+Dataset[[#This Row],[2024/25 From - Spending review Topic 3]]+Dataset[[#This Row],[2024/25 From - Spending review Topic 4]]+Dataset[[#This Row],[2024/25 From - Other reallocations]]","v":0},{"$f":"Dataset[[#This Row],[2025/26 From - Spending review Topic 1]]+Dataset[[#This Row],[2025/26 From - Spending review Topic 2]]+Dataset[[#This Row],[2025/26 From - Spending review Topic 3]]+Dataset[[#This Row],[2025/26 From - Spending review Topic 4]]+Dataset[[#This Row],[2025/26 From - Other reallocations]]","v":0},{"$f":"Dataset[[#This Row],[2023/24 To - Spending review Topic 1]]+Dataset[[#This Row],[2023/24 To - Spending review Topic 2]]+Dataset[[#This Row],[2023/24 To - Spending review Topic 3]]+Dataset[[#This Row],[2023/24 To - Spending review Topic 4]]+Dataset[[#This Row],[2023/24 To - Other reallocations]]","v":0},{"$f":"Dataset[[#This Row],[2024/25 To - Spending review Topic 1]]+Dataset[[#This Row],[2024/25 To - Spending review Topic 2]]+Dataset[[#This Row],[2024/25 To - Spending review Topic 3]]+Dataset[[#This Row],[2024/25 To - Spending review Topic 4]]+Dataset[[#This Row],[2024/25 To - Other reallocations]]","v":0},{"$f":"Dataset[[#This Row],[2025/26 To - Spending review Topic 1]]+Dataset[[#This Row],[2025/26 To - Spending review Topic 2]]+Dataset[[#This Row],[2025/26 To - Spending review Topic 3]]+Dataset[[#This Row],[2025/26 To - Spending review Topic 4]]+Dataset[[#This Row],[2025/26 To - Other reallocations]]","v":0},{"$f":"Dataset[[#This Row],[2023/24 Baseline]]+Dataset[[#This Row],[2023/24 From - Total]]+Dataset[[#This Row],[2023/24 To - Total]]","v":0},{"$f":"Dataset[[#This Row],[2024/25 Baseline]]+Dataset[[#This Row],[2024/25 From - Total]]+Dataset[[#This Row],[2024/25 To - Total]]","v":0},{"$f":"Dataset[[#This Row],[2025/26 Baseline]]+Dataset[[#This Row],[2025/26 From - Total]]+Dataset[[#This Row],[2025/26 To - Total]]","v":0}]
["NAT|Non-transfer item","2|Provincial agencies and funds","2023_24","MTEF2023",2,2,2,969,352,"02","02","02","000969","000352","02|02|02",1,2,4,43,44,"01|02|04|43|44","National","Parliament","Legislation and Oversight","National Council of Provinces","Non-transfer item","Current","Transfers and subsidies","Provinces and municipalities","Provinces","Provincial agencies and funds","General public services","Executive and legislative organs","NAT",0,0,0,0,0,0,0,0,0,0,0,null,null,null,null,null,null,null,null,null,null,null,null,null,null,null,null,null,null,null,null,null,null,null,null,null,null,null,null,null,null,{"$f":"Dataset[[#This Row],[2023/24 From - Spending review Topic 1]]+Dataset[[#This Row],[2023/24 From - Spending review Topic 2]]+Dataset[[#This Row],[2023/24 From - Spending review Topic 3]]+Dataset[[#This Row],[2023/24 From - Spending review Topic 4]]+Dataset[[#This Row],[2023/24 From - Other reallocations]]","v":0},{"$f":"Dataset[[#This Row],[2024/25 From - Spending review Topic 1]]+Dataset[[#This Row],[2024/25 From - Spending review Topic 2]]+Dataset[[#This Row],[2024/25 From - Spending review Topic 3]]+Dataset[[#This Row],[2024/25 From - Spending review Topic 4]]+Dataset[[#This Row],[2024/25 From - Other reallocations]]","v":0},{"$f":"Dataset[[#This Row],[2025/26 From - Spending review Topic 1]]+Dataset[[#This Row],[2025/26 From - Spending review Topic 2]]+Dataset[[#This Row],[2025/26 From - Spending review Topic 3]]+Dataset[[#This Row],[2025/26 From - Spending review Topic 4]]+Dataset[[#This Row],[2025/26 From - Other reallocations]]","v":0},{"$f":"Dataset[[#This Row],[2023/24 To - Spending review Topic 1]]+Dataset[[#This Row],[2023/24 To - Spending review Topic 2]]+Dataset[[#This Row],[2023/24 To - Spending review Topic 3]]+Dataset[[#This Row],[2023/24 To - Spending review Topic 4]]+Dataset[[#This Row],[2023/24 To - Other reallocations]]","v":0},{"$f":"Dataset[[#This Row],[2024/25 To - Spending review Topic 1]]+Dataset[[#This Row],[2024/25 To - Spending review Topic 2]]+Dataset[[#This Row],[2024/25 To - Spending review Topic 3]]+Dataset[[#This Row],[2024/25 To - Spending review Topic 4]]+Dataset[[#This Row],[2024/25 To - Other reallocations]]","v":0},{"$f":"Dataset[[#This Row],[2025/26 To - Spending review Topic 1]]+Dataset[[#This Row],[2025/26 To - Spending review Topic 2]]+Dataset[[#This Row],[2025/26 To - Spending review Topic 3]]+Dataset[[#This Row],[2025/26 To - Spending review Topic 4]]+Dataset[[#This Row],[2025/26 To - Other reallocations]]","v":0},{"$f":"Dataset[[#This Row],[2023/24 Baseline]]+Dataset[[#This Row],[2023/24 From - Total]]+Dataset[[#This Row],[2023/24 To - Total]]","v":0},{"$f":"Dataset[[#This Row],[2024/25 Baseline]]+Dataset[[#This Row],[2024/25 From - Total]]+Dataset[[#This Row],[2024/25 To - Total]]","v":0},{"$f":"Dataset[[#This Row],[2025/26 Baseline]]+Dataset[[#This Row],[2025/26 From - Total]]+Dataset[[#This Row],[2025/26 To - Total]]","v":0}]
["NAT|Non-transfer item","2|Municipal bank accounts","2023_24","MTEF2023",2,2,2,970,353,"02","02","02","000970","000353","02|02|02",1,2,4,44,45,"01|02|04|44|45","National","Parliament","Legislation and Oversight","National Council of Provinces","Non-transfer item","Current","Transfers and subsidies","Provinces and municipalities","Municipalities","Municipal bank accounts","General public services","Executive and legislative organs","NAT",0,0,0,0,0,0,0,0,0,0,0,null,null,null,null,null,null,null,null,null,null,null,null,null,null,null,null,null,null,null,null,null,null,null,null,null,null,null,null,null,null,{"$f":"Dataset[[#This Row],[2023/24 From - Spending review Topic 1]]+Dataset[[#This Row],[2023/24 From - Spending review Topic 2]]+Dataset[[#This Row],[2023/24 From - Spending review Topic 3]]+Dataset[[#This Row],[2023/24 From - Spending review Topic 4]]+Dataset[[#This Row],[2023/24 From - Other reallocations]]","v":0},{"$f":"Dataset[[#This Row],[2024/25 From - Spending review Topic 1]]+Dataset[[#This Row],[2024/25 From - Spending review Topic 2]]+Dataset[[#This Row],[2024/25 From - Spending review Topic 3]]+Dataset[[#This Row],[2024/25 From - Spending review Topic 4]]+Dataset[[#This Row],[2024/25 From - Other reallocations]]","v":0},{"$f":"Dataset[[#This Row],[2025/26 From - Spending review Topic 1]]+Dataset[[#This Row],[2025/26 From - Spending review Topic 2]]+Dataset[[#This Row],[2025/26 From - Spending review Topic 3]]+Dataset[[#This Row],[2025/26 From - Spending review Topic 4]]+Dataset[[#This Row],[2025/26 From - Other reallocations]]","v":0},{"$f":"Dataset[[#This Row],[2023/24 To - Spending review Topic 1]]+Dataset[[#This Row],[2023/24 To - Spending review Topic 2]]+Dataset[[#This Row],[2023/24 To - Spending review Topic 3]]+Dataset[[#This Row],[2023/24 To - Spending review Topic 4]]+Dataset[[#This Row],[2023/24 To - Other reallocations]]","v":0},{"$f":"Dataset[[#This Row],[2024/25 To - Spending review Topic 1]]+Dataset[[#This Row],[2024/25 To - Spending review Topic 2]]+Dataset[[#This Row],[2024/25 To - Spending review Topic 3]]+Dataset[[#This Row],[2024/25 To - Spending review Topic 4]]+Dataset[[#This Row],[2024/25 To - Other reallocations]]","v":0},{"$f":"Dataset[[#This Row],[2025/26 To - Spending review Topic 1]]+Dataset[[#This Row],[2025/26 To - Spending review Topic 2]]+Dataset[[#This Row],[2025/26 To - Spending review Topic 3]]+Dataset[[#This Row],[2025/26 To - Spending review Topic 4]]+Dataset[[#This Row],[2025/26 To - Other reallocations]]","v":0},{"$f":"Dataset[[#This Row],[2023/24 Baseline]]+Dataset[[#This Row],[2023/24 From - Total]]+Dataset[[#This Row],[2023/24 To - Total]]","v":0},{"$f":"Dataset[[#This Row],[2024/25 Baseline]]+Dataset[[#This Row],[2024/25 From - Total]]+Dataset[[#This Row],[2024/25 To - Total]]","v":0},{"$f":"Dataset[[#This Row],[2025/26 Baseline]]+Dataset[[#This Row],[2025/26 From - Total]]+Dataset[[#This Row],[2025/26 To - Total]]","v":0}]
["NAT|Non-transfer item","2|Municipal agencies and funds","2023_24","MTEF2023",2,2,2,971,354,"02","02","02","000971","000354","02|02|02",1,2,4,44,46,"01|02|04|44|46","National","Parliament","Legislation and Oversight","National Council of Provinces","Non-transfer item","Current","Transfers and subsidies","Provinces and municipalities","Municipalities","Municipal agencies and funds","General public services","Executive and legislative organs","NAT",0,0,0,0,0,0,0,0,0,0,0,null,null,null,null,null,null,null,null,null,null,null,null,null,null,null,null,null,null,null,null,null,null,null,null,null,null,null,null,null,null,{"$f":"Dataset[[#This Row],[2023/24 From - Spending review Topic 1]]+Dataset[[#This Row],[2023/24 From - Spending review Topic 2]]+Dataset[[#This Row],[2023/24 From - Spending review Topic 3]]+Dataset[[#This Row],[2023/24 From - Spending review Topic 4]]+Dataset[[#This Row],[2023/24 From - Other reallocations]]","v":0},{"$f":"Dataset[[#This Row],[2024/25 From - Spending review Topic 1]]+Dataset[[#This Row],[2024/25 From - Spending review Topic 2]]+Dataset[[#This Row],[2024/25 From - Spending review Topic 3]]+Dataset[[#This Row],[2024/25 From - Spending review Topic 4]]+Dataset[[#This Row],[2024/25 From - Other reallocations]]","v":0},{"$f":"Dataset[[#This Row],[2025/26 From - Spending review Topic 1]]+Dataset[[#This Row],[2025/26 From - Spending review Topic 2]]+Dataset[[#This Row],[2025/26 From - Spending review Topic 3]]+Dataset[[#This Row],[2025/26 From - Spending review Topic 4]]+Dataset[[#This Row],[2025/26 From - Other reallocations]]","v":0},{"$f":"Dataset[[#This Row],[2023/24 To - Spending review Topic 1]]+Dataset[[#This Row],[2023/24 To - Spending review Topic 2]]+Dataset[[#This Row],[2023/24 To - Spending review Topic 3]]+Dataset[[#This Row],[2023/24 To - Spending review Topic 4]]+Dataset[[#This Row],[2023/24 To - Other reallocations]]","v":0},{"$f":"Dataset[[#This Row],[2024/25 To - Spending review Topic 1]]+Dataset[[#This Row],[2024/25 To - Spending review Topic 2]]+Dataset[[#This Row],[2024/25 To - Spending review Topic 3]]+Dataset[[#This Row],[2024/25 To - Spending review Topic 4]]+Dataset[[#This Row],[2024/25 To - Other reallocations]]","v":0},{"$f":"Dataset[[#This Row],[2025/26 To - Spending review Topic 1]]+Dataset[[#This Row],[2025/26 To - Spending review Topic 2]]+Dataset[[#This Row],[2025/26 To - Spending review Topic 3]]+Dataset[[#This Row],[2025/26 To - Spending review Topic 4]]+Dataset[[#This Row],[2025/26 To - Other reallocations]]","v":0},{"$f":"Dataset[[#This Row],[2023/24 Baseline]]+Dataset[[#This Row],[2023/24 From - Total]]+Dataset[[#This Row],[2023/24 To - Total]]","v":0},{"$f":"Dataset[[#This Row],[2024/25 Baseline]]+Dataset[[#This Row],[2024/25 From - Total]]+Dataset[[#This Row],[2024/25 To - Total]]","v":0},{"$f":"Dataset[[#This Row],[2025/26 Baseline]]+Dataset[[#This Row],[2025/26 From - Total]]+Dataset[[#This Row],[2025/26 To - Total]]","v":0}]
["NAT|Non-transfer item","2|Social security funds","2023_24","MTEF2023",2,2,2,972,355,"02","02","02","000972","000355","02|02|02",1,2,5,45,47,"01|02|05|45|47","National","Parliament","Legislation and Oversight","National Council of Provinces","Non-transfer item","Current","Transfers and subsidies","Departmental agencies and accounts","Social security funds","Social security funds","General public services","Executive and legislative organs","NAT",0,0,0,0,0,0,0,0,0,0,0,null,null,null,null,null,null,null,null,null,null,null,null,null,null,null,null,null,null,null,null,null,null,null,null,null,null,null,null,null,null,{"$f":"Dataset[[#This Row],[2023/24 From - Spending review Topic 1]]+Dataset[[#This Row],[2023/24 From - Spending review Topic 2]]+Dataset[[#This Row],[2023/24 From - Spending review Topic 3]]+Dataset[[#This Row],[2023/24 From - Spending review Topic 4]]+Dataset[[#This Row],[2023/24 From - Other reallocations]]","v":0},{"$f":"Dataset[[#This Row],[2024/25 From - Spending review Topic 1]]+Dataset[[#This Row],[2024/25 From - Spending review Topic 2]]+Dataset[[#This Row],[2024/25 From - Spending review Topic 3]]+Dataset[[#This Row],[2024/25 From - Spending review Topic 4]]+Dataset[[#This Row],[2024/25 From - Other reallocations]]","v":0},{"$f":"Dataset[[#This Row],[2025/26 From - Spending review Topic 1]]+Dataset[[#This Row],[2025/26 From - Spending review Topic 2]]+Dataset[[#This Row],[2025/26 From - Spending review Topic 3]]+Dataset[[#This Row],[2025/26 From - Spending review Topic 4]]+Dataset[[#This Row],[2025/26 From - Other reallocations]]","v":0},{"$f":"Dataset[[#This Row],[2023/24 To - Spending review Topic 1]]+Dataset[[#This Row],[2023/24 To - Spending review Topic 2]]+Dataset[[#This Row],[2023/24 To - Spending review Topic 3]]+Dataset[[#This Row],[2023/24 To - Spending review Topic 4]]+Dataset[[#This Row],[2023/24 To - Other reallocations]]","v":0},{"$f":"Dataset[[#This Row],[2024/25 To - Spending review Topic 1]]+Dataset[[#This Row],[2024/25 To - Spending review Topic 2]]+Dataset[[#This Row],[2024/25 To - Spending review Topic 3]]+Dataset[[#This Row],[2024/25 To - Spending review Topic 4]]+Dataset[[#This Row],[2024/25 To - Other reallocations]]","v":0},{"$f":"Dataset[[#This Row],[2025/26 To - Spending review Topic 1]]+Dataset[[#This Row],[2025/26 To - Spending review Topic 2]]+Dataset[[#This Row],[2025/26 To - Spending review Topic 3]]+Dataset[[#This Row],[2025/26 To - Spending review Topic 4]]+Dataset[[#This Row],[2025/26 To - Other reallocations]]","v":0},{"$f":"Dataset[[#This Row],[2023/24 Baseline]]+Dataset[[#This Row],[2023/24 From - Total]]+Dataset[[#This Row],[2023/24 To - Total]]","v":0},{"$f":"Dataset[[#This Row],[2024/25 Baseline]]+Dataset[[#This Row],[2024/25 From - Total]]+Dataset[[#This Row],[2024/25 To - Total]]","v":0},{"$f":"Dataset[[#This Row],[2025/26 Baseline]]+Dataset[[#This Row],[2025/26 From - Total]]+Dataset[[#This Row],[2025/26 To - Total]]","v":0}]
["NAT|Non-transfer item","2|Departmental agencies (non-business entities)","2023_24","MTEF2023",2,2,2,973,356,"02","02","02","000973","000356","02|02|02",1,2,5,46,48,"01|02|05|46|48","National","Parliament","Legislation and Oversight","National Council of Provinces","Non-transfer item","Current","Transfers and subsidies","Departmental agencies and accounts","Departmental agencies (non-business entities)","Departmental agencies (non-business entities)","General public services","Executive and legislative organs","NAT",0,0,0,0,0,0,0,0,0,0,0,null,null,null,null,null,null,null,null,null,null,null,null,null,null,null,null,null,null,null,null,null,null,null,null,null,null,null,null,null,null,{"$f":"Dataset[[#This Row],[2023/24 From - Spending review Topic 1]]+Dataset[[#This Row],[2023/24 From - Spending review Topic 2]]+Dataset[[#This Row],[2023/24 From - Spending review Topic 3]]+Dataset[[#This Row],[2023/24 From - Spending review Topic 4]]+Dataset[[#This Row],[2023/24 From - Other reallocations]]","v":0},{"$f":"Dataset[[#This Row],[2024/25 From - Spending review Topic 1]]+Dataset[[#This Row],[2024/25 From - Spending review Topic 2]]+Dataset[[#This Row],[2024/25 From - Spending review Topic 3]]+Dataset[[#This Row],[2024/25 From - Spending review Topic 4]]+Dataset[[#This Row],[2024/25 From - Other reallocations]]","v":0},{"$f":"Dataset[[#This Row],[2025/26 From - Spending review Topic 1]]+Dataset[[#This Row],[2025/26 From - Spending review Topic 2]]+Dataset[[#This Row],[2025/26 From - Spending review Topic 3]]+Dataset[[#This Row],[2025/26 From - Spending review Topic 4]]+Dataset[[#This Row],[2025/26 From - Other reallocations]]","v":0},{"$f":"Dataset[[#This Row],[2023/24 To - Spending review Topic 1]]+Dataset[[#This Row],[2023/24 To - Spending review Topic 2]]+Dataset[[#This Row],[2023/24 To - Spending review Topic 3]]+Dataset[[#This Row],[2023/24 To - Spending review Topic 4]]+Dataset[[#This Row],[2023/24 To - Other reallocations]]","v":0},{"$f":"Dataset[[#This Row],[2024/25 To - Spending review Topic 1]]+Dataset[[#This Row],[2024/25 To - Spending review Topic 2]]+Dataset[[#This Row],[2024/25 To - Spending review Topic 3]]+Dataset[[#This Row],[2024/25 To - Spending review Topic 4]]+Dataset[[#This Row],[2024/25 To - Other reallocations]]","v":0},{"$f":"Dataset[[#This Row],[2025/26 To - Spending review Topic 1]]+Dataset[[#This Row],[2025/26 To - Spending review Topic 2]]+Dataset[[#This Row],[2025/26 To - Spending review Topic 3]]+Dataset[[#This Row],[2025/26 To - Spending review Topic 4]]+Dataset[[#This Row],[2025/26 To - Other reallocations]]","v":0},{"$f":"Dataset[[#This Row],[2023/24 Baseline]]+Dataset[[#This Row],[2023/24 From - Total]]+Dataset[[#This Row],[2023/24 To - Total]]","v":0},{"$f":"Dataset[[#This Row],[2024/25 Baseline]]+Dataset[[#This Row],[2024/25 From - Total]]+Dataset[[#This Row],[2024/25 To - Total]]","v":0},{"$f":"Dataset[[#This Row],[2025/26 Baseline]]+Dataset[[#This Row],[2025/26 From - Total]]+Dataset[[#This Row],[2025/26 To - Total]]","v":0}]
["NAT|Non-transfer item","2|Higher education institutions","2023_24","MTEF2023",2,2,2,974,357,"02","02","02","000974","000357","02|02|02",1,2,6,47,49,"01|02|06|47|49","National","Parliament","Legislation and Oversight","National Council of Provinces","Non-transfer item","Current","Transfers and subsidies","Higher education institutions","Higher education institutions","Higher education institutions","General public services","Executive and legislative organs","NAT",0,0,0,0,0,0,0,0,0,0,0,null,null,null,null,null,null,null,null,null,null,null,null,null,null,null,null,null,null,null,null,null,null,null,null,null,null,null,null,null,null,{"$f":"Dataset[[#This Row],[2023/24 From - Spending review Topic 1]]+Dataset[[#This Row],[2023/24 From - Spending review Topic 2]]+Dataset[[#This Row],[2023/24 From - Spending review Topic 3]]+Dataset[[#This Row],[2023/24 From - Spending review Topic 4]]+Dataset[[#This Row],[2023/24 From - Other reallocations]]","v":0},{"$f":"Dataset[[#This Row],[2024/25 From - Spending review Topic 1]]+Dataset[[#This Row],[2024/25 From - Spending review Topic 2]]+Dataset[[#This Row],[2024/25 From - Spending review Topic 3]]+Dataset[[#This Row],[2024/25 From - Spending review Topic 4]]+Dataset[[#This Row],[2024/25 From - Other reallocations]]","v":0},{"$f":"Dataset[[#This Row],[2025/26 From - Spending review Topic 1]]+Dataset[[#This Row],[2025/26 From - Spending review Topic 2]]+Dataset[[#This Row],[2025/26 From - Spending review Topic 3]]+Dataset[[#This Row],[2025/26 From - Spending review Topic 4]]+Dataset[[#This Row],[2025/26 From - Other reallocations]]","v":0},{"$f":"Dataset[[#This Row],[2023/24 To - Spending review Topic 1]]+Dataset[[#This Row],[2023/24 To - Spending review Topic 2]]+Dataset[[#This Row],[2023/24 To - Spending review Topic 3]]+Dataset[[#This Row],[2023/24 To - Spending review Topic 4]]+Dataset[[#This Row],[2023/24 To - Other reallocations]]","v":0},{"$f":"Dataset[[#This Row],[2024/25 To - Spending review Topic 1]]+Dataset[[#This Row],[2024/25 To - Spending review Topic 2]]+Dataset[[#This Row],[2024/25 To - Spending review Topic 3]]+Dataset[[#This Row],[2024/25 To - Spending review Topic 4]]+Dataset[[#This Row],[2024/25 To - Other reallocations]]","v":0},{"$f":"Dataset[[#This Row],[2025/26 To - Spending review Topic 1]]+Dataset[[#This Row],[2025/26 To - Spending review Topic 2]]+Dataset[[#This Row],[2025/26 To - Spending review Topic 3]]+Dataset[[#This Row],[2025/26 To - Spending review Topic 4]]+Dataset[[#This Row],[2025/26 To - Other reallocations]]","v":0},{"$f":"Dataset[[#This Row],[2023/24 Baseline]]+Dataset[[#This Row],[2023/24 From - Total]]+Dataset[[#This Row],[2023/24 To - Total]]","v":0},{"$f":"Dataset[[#This Row],[2024/25 Baseline]]+Dataset[[#This Row],[2024/25 From - Total]]+Dataset[[#This Row],[2024/25 To - Total]]","v":0},{"$f":"Dataset[[#This Row],[2025/26 Baseline]]+Dataset[[#This Row],[2025/26 From - Total]]+Dataset[[#This Row],[2025/26 To - Total]]","v":0}]
["NAT|Non-transfer item","2|Foreign governments and international organisations","2023_24","MTEF2023",2,2,2,975,358,"02","02","02","000975","000358","02|02|02",1,2,7,48,50,"01|02|07|48|50","National","Parliament","Legislation and Oversight","National Council of Provinces","Non-transfer item","Current","Transfers and subsidies","Foreign governments and international organisations","Foreign governments and international organisations","Foreign governments and international organisations","General public services","Executive and legislative organs","NAT",0,0,0,0,0,0,0,0,0,0,0,null,null,null,null,null,null,null,null,null,null,null,null,null,null,null,null,null,null,null,null,null,null,null,null,null,null,null,null,null,null,{"$f":"Dataset[[#This Row],[2023/24 From - Spending review Topic 1]]+Dataset[[#This Row],[2023/24 From - Spending review Topic 2]]+Dataset[[#This Row],[2023/24 From - Spending review Topic 3]]+Dataset[[#This Row],[2023/24 From - Spending review Topic 4]]+Dataset[[#This Row],[2023/24 From - Other reallocations]]","v":0},{"$f":"Dataset[[#This Row],[2024/25 From - Spending review Topic 1]]+Dataset[[#This Row],[2024/25 From - Spending review Topic 2]]+Dataset[[#This Row],[2024/25 From - Spending review Topic 3]]+Dataset[[#This Row],[2024/25 From - Spending review Topic 4]]+Dataset[[#This Row],[2024/25 From - Other reallocations]]","v":0},{"$f":"Dataset[[#This Row],[2025/26 From - Spending review Topic 1]]+Dataset[[#This Row],[2025/26 From - Spending review Topic 2]]+Dataset[[#This Row],[2025/26 From - Spending review Topic 3]]+Dataset[[#This Row],[2025/26 From - Spending review Topic 4]]+Dataset[[#This Row],[2025/26 From - Other reallocations]]","v":0},{"$f":"Dataset[[#This Row],[2023/24 To - Spending review Topic 1]]+Dataset[[#This Row],[2023/24 To - Spending review Topic 2]]+Dataset[[#This Row],[2023/24 To - Spending review Topic 3]]+Dataset[[#This Row],[2023/24 To - Spending review Topic 4]]+Dataset[[#This Row],[2023/24 To - Other reallocations]]","v":0},{"$f":"Dataset[[#This Row],[2024/25 To - Spending review Topic 1]]+Dataset[[#This Row],[2024/25 To - Spending review Topic 2]]+Dataset[[#This Row],[2024/25 To - Spending review Topic 3]]+Dataset[[#This Row],[2024/25 To - Spending review Topic 4]]+Dataset[[#This Row],[2024/25 To - Other reallocations]]","v":0},{"$f":"Dataset[[#This Row],[2025/26 To - Spending review Topic 1]]+Dataset[[#This Row],[2025/26 To - Spending review Topic 2]]+Dataset[[#This Row],[2025/26 To - Spending review Topic 3]]+Dataset[[#This Row],[2025/26 To - Spending review Topic 4]]+Dataset[[#This Row],[2025/26 To - Other reallocations]]","v":0},{"$f":"Dataset[[#This Row],[2023/24 Baseline]]+Dataset[[#This Row],[2023/24 From - Total]]+Dataset[[#This Row],[2023/24 To - Total]]","v":0},{"$f":"Dataset[[#This Row],[2024/25 Baseline]]+Dataset[[#This Row],[2024/25 From - Total]]+Dataset[[#This Row],[2024/25 To - Total]]","v":0},{"$f":"Dataset[[#This Row],[2025/26 Baseline]]+Dataset[[#This Row],[2025/26 From - Total]]+Dataset[[#This Row],[2025/26 To - Total]]","v":0}]
["NAT|Non-transfer item","2|Subsidies on products and production (pc)","2023_24","MTEF2023",2,2,2,976,359,"02","02","02","000976","000359","02|02|02",1,2,8,49,51,"01|02|08|49|51","National","Parliament","Legislation and Oversight","National Council of Provinces","Non-transfer item","Current","Transfers and subsidies","Public corporations and private enterprises","Public corporations","Subsidies on products and production (pc)","General public services","Executive and legislative organs","NAT",0,0,0,0,0,0,0,0,0,0,0,null,null,null,null,null,null,null,null,null,null,null,null,null,null,null,null,null,null,null,null,null,null,null,null,null,null,null,null,null,null,{"$f":"Dataset[[#This Row],[2023/24 From - Spending review Topic 1]]+Dataset[[#This Row],[2023/24 From - Spending review Topic 2]]+Dataset[[#This Row],[2023/24 From - Spending review Topic 3]]+Dataset[[#This Row],[2023/24 From - Spending review Topic 4]]+Dataset[[#This Row],[2023/24 From - Other reallocations]]","v":0},{"$f":"Dataset[[#This Row],[2024/25 From - Spending review Topic 1]]+Dataset[[#This Row],[2024/25 From - Spending review Topic 2]]+Dataset[[#This Row],[2024/25 From - Spending review Topic 3]]+Dataset[[#This Row],[2024/25 From - Spending review Topic 4]]+Dataset[[#This Row],[2024/25 From - Other reallocations]]","v":0},{"$f":"Dataset[[#This Row],[2025/26 From - Spending review Topic 1]]+Dataset[[#This Row],[2025/26 From - Spending review Topic 2]]+Dataset[[#This Row],[2025/26 From - Spending review Topic 3]]+Dataset[[#This Row],[2025/26 From - Spending review Topic 4]]+Dataset[[#This Row],[2025/26 From - Other reallocations]]","v":0},{"$f":"Dataset[[#This Row],[2023/24 To - Spending review Topic 1]]+Dataset[[#This Row],[2023/24 To - Spending review Topic 2]]+Dataset[[#This Row],[2023/24 To - Spending review Topic 3]]+Dataset[[#This Row],[2023/24 To - Spending review Topic 4]]+Dataset[[#This Row],[2023/24 To - Other reallocations]]","v":0},{"$f":"Dataset[[#This Row],[2024/25 To - Spending review Topic 1]]+Dataset[[#This Row],[2024/25 To - Spending review Topic 2]]+Dataset[[#This Row],[2024/25 To - Spending review Topic 3]]+Dataset[[#This Row],[2024/25 To - Spending review Topic 4]]+Dataset[[#This Row],[2024/25 To - Other reallocations]]","v":0},{"$f":"Dataset[[#This Row],[2025/26 To - Spending review Topic 1]]+Dataset[[#This Row],[2025/26 To - Spending review Topic 2]]+Dataset[[#This Row],[2025/26 To - Spending review Topic 3]]+Dataset[[#This Row],[2025/26 To - Spending review Topic 4]]+Dataset[[#This Row],[2025/26 To - Other reallocations]]","v":0},{"$f":"Dataset[[#This Row],[2023/24 Baseline]]+Dataset[[#This Row],[2023/24 From - Total]]+Dataset[[#This Row],[2023/24 To - Total]]","v":0},{"$f":"Dataset[[#This Row],[2024/25 Baseline]]+Dataset[[#This Row],[2024/25 From - Total]]+Dataset[[#This Row],[2024/25 To - Total]]","v":0},{"$f":"Dataset[[#This Row],[2025/26 Baseline]]+Dataset[[#This Row],[2025/26 From - Total]]+Dataset[[#This Row],[2025/26 To - Total]]","v":0}]
["NAT|Non-transfer item","2|Other transfers to public corporations","2023_24","MTEF2023",2,2,2,977,360,"02","02","02","000977","000360","02|02|02",1,2,8,49,52,"01|02|08|49|52","National","Parliament","Legislation and Oversight","National Council of Provinces","Non-transfer item","Current","Transfers and subsidies","Public corporations and private enterprises","Public corporations","Other transfers to public corporations","General public services","Executive and legislative organs","NAT",0,0,0,0,0,0,0,0,0,0,0,null,null,null,null,null,null,null,null,null,null,null,null,null,null,null,null,null,null,null,null,null,null,null,null,null,null,null,null,null,null,{"$f":"Dataset[[#This Row],[2023/24 From - Spending review Topic 1]]+Dataset[[#This Row],[2023/24 From - Spending review Topic 2]]+Dataset[[#This Row],[2023/24 From - Spending review Topic 3]]+Dataset[[#This Row],[2023/24 From - Spending review Topic 4]]+Dataset[[#This Row],[2023/24 From - Other reallocations]]","v":0},{"$f":"Dataset[[#This Row],[2024/25 From - Spending review Topic 1]]+Dataset[[#This Row],[2024/25 From - Spending review Topic 2]]+Dataset[[#This Row],[2024/25 From - Spending review Topic 3]]+Dataset[[#This Row],[2024/25 From - Spending review Topic 4]]+Dataset[[#This Row],[2024/25 From - Other reallocations]]","v":0},{"$f":"Dataset[[#This Row],[2025/26 From - Spending review Topic 1]]+Dataset[[#This Row],[2025/26 From - Spending review Topic 2]]+Dataset[[#This Row],[2025/26 From - Spending review Topic 3]]+Dataset[[#This Row],[2025/26 From - Spending review Topic 4]]+Dataset[[#This Row],[2025/26 From - Other reallocations]]","v":0},{"$f":"Dataset[[#This Row],[2023/24 To - Spending review Topic 1]]+Dataset[[#This Row],[2023/24 To - Spending review Topic 2]]+Dataset[[#This Row],[2023/24 To - Spending review Topic 3]]+Dataset[[#This Row],[2023/24 To - Spending review Topic 4]]+Dataset[[#This Row],[2023/24 To - Other reallocations]]","v":0},{"$f":"Dataset[[#This Row],[2024/25 To - Spending review Topic 1]]+Dataset[[#This Row],[2024/25 To - Spending review Topic 2]]+Dataset[[#This Row],[2024/25 To - Spending review Topic 3]]+Dataset[[#This Row],[2024/25 To - Spending review Topic 4]]+Dataset[[#This Row],[2024/25 To - Other reallocations]]","v":0},{"$f":"Dataset[[#This Row],[2025/26 To - Spending review Topic 1]]+Dataset[[#This Row],[2025/26 To - Spending review Topic 2]]+Dataset[[#This Row],[2025/26 To - Spending review Topic 3]]+Dataset[[#This Row],[2025/26 To - Spending review Topic 4]]+Dataset[[#This Row],[2025/26 To - Other reallocations]]","v":0},{"$f":"Dataset[[#This Row],[2023/24 Baseline]]+Dataset[[#This Row],[2023/24 From - Total]]+Dataset[[#This Row],[2023/24 To - Total]]","v":0},{"$f":"Dataset[[#This Row],[2024/25 Baseline]]+Dataset[[#This Row],[2024/25 From - Total]]+Dataset[[#This Row],[2024/25 To - Total]]","v":0},{"$f":"Dataset[[#This Row],[2025/26 Baseline]]+Dataset[[#This Row],[2025/26 From - Total]]+Dataset[[#This Row],[2025/26 To - Total]]","v":0}]
["NAT|Non-transfer item","2|Subsidies on products and production (pe)","2023_24","MTEF2023",2,2,2,978,361,"02","02","02","000978","000361","02|02|02",1,2,8,50,53,"01|02|08|50|53","National","Parliament","Legislation and Oversight","National Council of Provinces","Non-transfer item","Current","Transfers and subsidies","Public corporations and private enterprises","Private enterprises","Subsidies on products and production (pe)","General public services","Executive and legislative organs","NAT",0,0,0,0,0,0,0,0,0,0,0,null,null,null,null,null,null,null,null,null,null,null,null,null,null,null,null,null,null,null,null,null,null,null,null,null,null,null,null,null,null,{"$f":"Dataset[[#This Row],[2023/24 From - Spending review Topic 1]]+Dataset[[#This Row],[2023/24 From - Spending review Topic 2]]+Dataset[[#This Row],[2023/24 From - Spending review Topic 3]]+Dataset[[#This Row],[2023/24 From - Spending review Topic 4]]+Dataset[[#This Row],[2023/24 From - Other reallocations]]","v":0},{"$f":"Dataset[[#This Row],[2024/25 From - Spending review Topic 1]]+Dataset[[#This Row],[2024/25 From - Spending review Topic 2]]+Dataset[[#This Row],[2024/25 From - Spending review Topic 3]]+Dataset[[#This Row],[2024/25 From - Spending review Topic 4]]+Dataset[[#This Row],[2024/25 From - Other reallocations]]","v":0},{"$f":"Dataset[[#This Row],[2025/26 From - Spending review Topic 1]]+Dataset[[#This Row],[2025/26 From - Spending review Topic 2]]+Dataset[[#This Row],[2025/26 From - Spending review Topic 3]]+Dataset[[#This Row],[2025/26 From - Spending review Topic 4]]+Dataset[[#This Row],[2025/26 From - Other reallocations]]","v":0},{"$f":"Dataset[[#This Row],[2023/24 To - Spending review Topic 1]]+Dataset[[#This Row],[2023/24 To - Spending review Topic 2]]+Dataset[[#This Row],[2023/24 To - Spending review Topic 3]]+Dataset[[#This Row],[2023/24 To - Spending review Topic 4]]+Dataset[[#This Row],[2023/24 To - Other reallocations]]","v":0},{"$f":"Dataset[[#This Row],[2024/25 To - Spending review Topic 1]]+Dataset[[#This Row],[2024/25 To - Spending review Topic 2]]+Dataset[[#This Row],[2024/25 To - Spending review Topic 3]]+Dataset[[#This Row],[2024/25 To - Spending review Topic 4]]+Dataset[[#This Row],[2024/25 To - Other reallocations]]","v":0},{"$f":"Dataset[[#This Row],[2025/26 To - Spending review Topic 1]]+Dataset[[#This Row],[2025/26 To - Spending review Topic 2]]+Dataset[[#This Row],[2025/26 To - Spending review Topic 3]]+Dataset[[#This Row],[2025/26 To - Spending review Topic 4]]+Dataset[[#This Row],[2025/26 To - Other reallocations]]","v":0},{"$f":"Dataset[[#This Row],[2023/24 Baseline]]+Dataset[[#This Row],[2023/24 From - Total]]+Dataset[[#This Row],[2023/24 To - Total]]","v":0},{"$f":"Dataset[[#This Row],[2024/25 Baseline]]+Dataset[[#This Row],[2024/25 From - Total]]+Dataset[[#This Row],[2024/25 To - Total]]","v":0},{"$f":"Dataset[[#This Row],[2025/26 Baseline]]+Dataset[[#This Row],[2025/26 From - Total]]+Dataset[[#This Row],[2025/26 To - Total]]","v":0}]
["NAT|Non-transfer item","2|Other transfers to private enterprises","2023_24","MTEF2023",2,2,2,979,362,"02","02","02","000979","000362","02|02|02",1,2,8,50,54,"01|02|08|50|54","National","Parliament","Legislation and Oversight","National Council of Provinces","Non-transfer item","Current","Transfers and subsidies","Public corporations and private enterprises","Private enterprises","Other transfers to private enterprises","General public services","Executive and legislative organs","NAT",0,0,0,0,0,0,0,0,0,0,0,null,null,null,null,null,null,null,null,null,null,null,null,null,null,null,null,null,null,null,null,null,null,null,null,null,null,null,null,null,null,{"$f":"Dataset[[#This Row],[2023/24 From - Spending review Topic 1]]+Dataset[[#This Row],[2023/24 From - Spending review Topic 2]]+Dataset[[#This Row],[2023/24 From - Spending review Topic 3]]+Dataset[[#This Row],[2023/24 From - Spending review Topic 4]]+Dataset[[#This Row],[2023/24 From - Other reallocations]]","v":0},{"$f":"Dataset[[#This Row],[2024/25 From - Spending review Topic 1]]+Dataset[[#This Row],[2024/25 From - Spending review Topic 2]]+Dataset[[#This Row],[2024/25 From - Spending review Topic 3]]+Dataset[[#This Row],[2024/25 From - Spending review Topic 4]]+Dataset[[#This Row],[2024/25 From - Other reallocations]]","v":0},{"$f":"Dataset[[#This Row],[2025/26 From - Spending review Topic 1]]+Dataset[[#This Row],[2025/26 From - Spending review Topic 2]]+Dataset[[#This Row],[2025/26 From - Spending review Topic 3]]+Dataset[[#This Row],[2025/26 From - Spending review Topic 4]]+Dataset[[#This Row],[2025/26 From - Other reallocations]]","v":0},{"$f":"Dataset[[#This Row],[2023/24 To - Spending review Topic 1]]+Dataset[[#This Row],[2023/24 To - Spending review Topic 2]]+Dataset[[#This Row],[2023/24 To - Spending review Topic 3]]+Dataset[[#This Row],[2023/24 To - Spending review Topic 4]]+Dataset[[#This Row],[2023/24 To - Other reallocations]]","v":0},{"$f":"Dataset[[#This Row],[2024/25 To - Spending review Topic 1]]+Dataset[[#This Row],[2024/25 To - Spending review Topic 2]]+Dataset[[#This Row],[2024/25 To - Spending review Topic 3]]+Dataset[[#This Row],[2024/25 To - Spending review Topic 4]]+Dataset[[#This Row],[2024/25 To - Other reallocations]]","v":0},{"$f":"Dataset[[#This Row],[2025/26 To - Spending review Topic 1]]+Dataset[[#This Row],[2025/26 To - Spending review Topic 2]]+Dataset[[#This Row],[2025/26 To - Spending review Topic 3]]+Dataset[[#This Row],[2025/26 To - Spending review Topic 4]]+Dataset[[#This Row],[2025/26 To - Other reallocations]]","v":0},{"$f":"Dataset[[#This Row],[2023/24 Baseline]]+Dataset[[#This Row],[2023/24 From - Total]]+Dataset[[#This Row],[2023/24 To - Total]]","v":0},{"$f":"Dataset[[#This Row],[2024/25 Baseline]]+Dataset[[#This Row],[2024/25 From - Total]]+Dataset[[#This Row],[2024/25 To - Total]]","v":0},{"$f":"Dataset[[#This Row],[2025/26 Baseline]]+Dataset[[#This Row],[2025/26 From - Total]]+Dataset[[#This Row],[2025/26 To - Total]]","v":0}]
["NAT|Non-transfer item","2|Non-profit institutions","2023_24","MTEF2023",2,2,2,980,363,"02","02","02","000980","000363","02|02|02",1,2,9,51,55,"01|02|09|51|55","National","Parliament","Legislation and Oversight","National Council of Provinces","Non-transfer item","Current","Transfers and subsidies","Non-profit institutions","Non-profit institutions","Non-profit institutions","General public services","Executive and legislative organs","NAT",0,0,0,0,0,0,0,0,0,0,0,null,null,null,null,null,null,null,null,null,null,null,null,null,null,null,null,null,null,null,null,null,null,null,null,null,null,null,null,null,null,{"$f":"Dataset[[#This Row],[2023/24 From - Spending review Topic 1]]+Dataset[[#This Row],[2023/24 From - Spending review Topic 2]]+Dataset[[#This Row],[2023/24 From - Spending review Topic 3]]+Dataset[[#This Row],[2023/24 From - Spending review Topic 4]]+Dataset[[#This Row],[2023/24 From - Other reallocations]]","v":0},{"$f":"Dataset[[#This Row],[2024/25 From - Spending review Topic 1]]+Dataset[[#This Row],[2024/25 From - Spending review Topic 2]]+Dataset[[#This Row],[2024/25 From - Spending review Topic 3]]+Dataset[[#This Row],[2024/25 From - Spending review Topic 4]]+Dataset[[#This Row],[2024/25 From - Other reallocations]]","v":0},{"$f":"Dataset[[#This Row],[2025/26 From - Spending review Topic 1]]+Dataset[[#This Row],[2025/26 From - Spending review Topic 2]]+Dataset[[#This Row],[2025/26 From - Spending review Topic 3]]+Dataset[[#This Row],[2025/26 From - Spending review Topic 4]]+Dataset[[#This Row],[2025/26 From - Other reallocations]]","v":0},{"$f":"Dataset[[#This Row],[2023/24 To - Spending review Topic 1]]+Dataset[[#This Row],[2023/24 To - Spending review Topic 2]]+Dataset[[#This Row],[2023/24 To - Spending review Topic 3]]+Dataset[[#This Row],[2023/24 To - Spending review Topic 4]]+Dataset[[#This Row],[2023/24 To - Other reallocations]]","v":0},{"$f":"Dataset[[#This Row],[2024/25 To - Spending review Topic 1]]+Dataset[[#This Row],[2024/25 To - Spending review Topic 2]]+Dataset[[#This Row],[2024/25 To - Spending review Topic 3]]+Dataset[[#This Row],[2024/25 To - Spending review Topic 4]]+Dataset[[#This Row],[2024/25 To - Other reallocations]]","v":0},{"$f":"Dataset[[#This Row],[2025/26 To - Spending review Topic 1]]+Dataset[[#This Row],[2025/26 To - Spending review Topic 2]]+Dataset[[#This Row],[2025/26 To - Spending review Topic 3]]+Dataset[[#This Row],[2025/26 To - Spending review Topic 4]]+Dataset[[#This Row],[2025/26 To - Other reallocations]]","v":0},{"$f":"Dataset[[#This Row],[2023/24 Baseline]]+Dataset[[#This Row],[2023/24 From - Total]]+Dataset[[#This Row],[2023/24 To - Total]]","v":0},{"$f":"Dataset[[#This Row],[2024/25 Baseline]]+Dataset[[#This Row],[2024/25 From - Total]]+Dataset[[#This Row],[2024/25 To - Total]]","v":0},{"$f":"Dataset[[#This Row],[2025/26 Baseline]]+Dataset[[#This Row],[2025/26 From - Total]]+Dataset[[#This Row],[2025/26 To - Total]]","v":0}]
["NAT|Non-transfer item","2|Social benefits","2023_24","MTEF2023",2,2,2,981,364,"02","02","02","000981","000364","02|02|02",1,2,10,52,56,"01|02|10|52|56","National","Parliament","Legislation and Oversight","National Council of Provinces","Non-transfer item","Current","Transfers and subsidies","Households","Social benefits","Social benefits","General public services","Executive and legislative organs","NAT",0,0,0,0,0,0,0,0,0,0,0,null,null,null,null,null,null,null,null,null,null,null,null,null,null,null,null,null,null,null,null,null,null,null,null,null,null,null,null,null,null,{"$f":"Dataset[[#This Row],[2023/24 From - Spending review Topic 1]]+Dataset[[#This Row],[2023/24 From - Spending review Topic 2]]+Dataset[[#This Row],[2023/24 From - Spending review Topic 3]]+Dataset[[#This Row],[2023/24 From - Spending review Topic 4]]+Dataset[[#This Row],[2023/24 From - Other reallocations]]","v":0},{"$f":"Dataset[[#This Row],[2024/25 From - Spending review Topic 1]]+Dataset[[#This Row],[2024/25 From - Spending review Topic 2]]+Dataset[[#This Row],[2024/25 From - Spending review Topic 3]]+Dataset[[#This Row],[2024/25 From - Spending review Topic 4]]+Dataset[[#This Row],[2024/25 From - Other reallocations]]","v":0},{"$f":"Dataset[[#This Row],[2025/26 From - Spending review Topic 1]]+Dataset[[#This Row],[2025/26 From - Spending review Topic 2]]+Dataset[[#This Row],[2025/26 From - Spending review Topic 3]]+Dataset[[#This Row],[2025/26 From - Spending review Topic 4]]+Dataset[[#This Row],[2025/26 From - Other reallocations]]","v":0},{"$f":"Dataset[[#This Row],[2023/24 To - Spending review Topic 1]]+Dataset[[#This Row],[2023/24 To - Spending review Topic 2]]+Dataset[[#This Row],[2023/24 To - Spending review Topic 3]]+Dataset[[#This Row],[2023/24 To - Spending review Topic 4]]+Dataset[[#This Row],[2023/24 To - Other reallocations]]","v":0},{"$f":"Dataset[[#This Row],[2024/25 To - Spending review Topic 1]]+Dataset[[#This Row],[2024/25 To - Spending review Topic 2]]+Dataset[[#This Row],[2024/25 To - Spending review Topic 3]]+Dataset[[#This Row],[2024/25 To - Spending review Topic 4]]+Dataset[[#This Row],[2024/25 To - Other reallocations]]","v":0},{"$f":"Dataset[[#This Row],[2025/26 To - Spending review Topic 1]]+Dataset[[#This Row],[2025/26 To - Spending review Topic 2]]+Dataset[[#This Row],[2025/26 To - Spending review Topic 3]]+Dataset[[#This Row],[2025/26 To - Spending review Topic 4]]+Dataset[[#This Row],[2025/26 To - Other reallocations]]","v":0},{"$f":"Dataset[[#This Row],[2023/24 Baseline]]+Dataset[[#This Row],[2023/24 From - Total]]+Dataset[[#This Row],[2023/24 To - Total]]","v":0},{"$f":"Dataset[[#This Row],[2024/25 Baseline]]+Dataset[[#This Row],[2024/25 From - Total]]+Dataset[[#This Row],[2024/25 To - Total]]","v":0},{"$f":"Dataset[[#This Row],[2025/26 Baseline]]+Dataset[[#This Row],[2025/26 From - Total]]+Dataset[[#This Row],[2025/26 To - Total]]","v":0}]
["NAT|Non-transfer item","2|Other transfers to households","2023_24","MTEF2023",2,2,2,982,365,"02","02","02","000982","000365","02|02|02",1,2,10,53,57,"01|02|10|53|57","National","Parliament","Legislation and Oversight","National Council of Provinces","Non-transfer item","Current","Transfers and subsidies","Households","Other transfers to households","Other transfers to households","General public services","Executive and legislative organs","NAT",0,0,0,0,0,0,0,0,0,0,0,null,null,null,null,null,null,null,null,null,null,null,null,null,null,null,null,null,null,null,null,null,null,null,null,null,null,null,null,null,null,{"$f":"Dataset[[#This Row],[2023/24 From - Spending review Topic 1]]+Dataset[[#This Row],[2023/24 From - Spending review Topic 2]]+Dataset[[#This Row],[2023/24 From - Spending review Topic 3]]+Dataset[[#This Row],[2023/24 From - Spending review Topic 4]]+Dataset[[#This Row],[2023/24 From - Other reallocations]]","v":0},{"$f":"Dataset[[#This Row],[2024/25 From - Spending review Topic 1]]+Dataset[[#This Row],[2024/25 From - Spending review Topic 2]]+Dataset[[#This Row],[2024/25 From - Spending review Topic 3]]+Dataset[[#This Row],[2024/25 From - Spending review Topic 4]]+Dataset[[#This Row],[2024/25 From - Other reallocations]]","v":0},{"$f":"Dataset[[#This Row],[2025/26 From - Spending review Topic 1]]+Dataset[[#This Row],[2025/26 From - Spending review Topic 2]]+Dataset[[#This Row],[2025/26 From - Spending review Topic 3]]+Dataset[[#This Row],[2025/26 From - Spending review Topic 4]]+Dataset[[#This Row],[2025/26 From - Other reallocations]]","v":0},{"$f":"Dataset[[#This Row],[2023/24 To - Spending review Topic 1]]+Dataset[[#This Row],[2023/24 To - Spending review Topic 2]]+Dataset[[#This Row],[2023/24 To - Spending review Topic 3]]+Dataset[[#This Row],[2023/24 To - Spending review Topic 4]]+Dataset[[#This Row],[2023/24 To - Other reallocations]]","v":0},{"$f":"Dataset[[#This Row],[2024/25 To - Spending review Topic 1]]+Dataset[[#This Row],[2024/25 To - Spending review Topic 2]]+Dataset[[#This Row],[2024/25 To - Spending review Topic 3]]+Dataset[[#This Row],[2024/25 To - Spending review Topic 4]]+Dataset[[#This Row],[2024/25 To - Other reallocations]]","v":0},{"$f":"Dataset[[#This Row],[2025/26 To - Spending review Topic 1]]+Dataset[[#This Row],[2025/26 To - Spending review Topic 2]]+Dataset[[#This Row],[2025/26 To - Spending review Topic 3]]+Dataset[[#This Row],[2025/26 To - Spending review Topic 4]]+Dataset[[#This Row],[2025/26 To - Other reallocations]]","v":0},{"$f":"Dataset[[#This Row],[2023/24 Baseline]]+Dataset[[#This Row],[2023/24 From - Total]]+Dataset[[#This Row],[2023/24 To - Total]]","v":0},{"$f":"Dataset[[#This Row],[2024/25 Baseline]]+Dataset[[#This Row],[2024/25 From - Total]]+Dataset[[#This Row],[2024/25 To - Total]]","v":0},{"$f":"Dataset[[#This Row],[2025/26 Baseline]]+Dataset[[#This Row],[2025/26 From - Total]]+Dataset[[#This Row],[2025/26 To - Total]]","v":0}]
["NAT|Non-transfer item","2|Provincial Revenue Funds","2023_24","MTEF2023",2,2,2,983,366,"02","02","02","000983","000366","02|02|02",2,2,4,43,43,"02|02|04|43|43","National","Parliament","Legislation and Oversight","National Council of Provinces","Non-transfer item","Capital","Transfers and subsidies","Provinces and municipalities","Provinces","Provincial Revenue Funds","General public services","Executive and legislative organs","NAT",0,0,0,0,0,0,0,0,0,0,0,null,null,null,null,null,null,null,null,null,null,null,null,null,null,null,null,null,null,null,null,null,null,null,null,null,null,null,null,null,null,{"$f":"Dataset[[#This Row],[2023/24 From - Spending review Topic 1]]+Dataset[[#This Row],[2023/24 From - Spending review Topic 2]]+Dataset[[#This Row],[2023/24 From - Spending review Topic 3]]+Dataset[[#This Row],[2023/24 From - Spending review Topic 4]]+Dataset[[#This Row],[2023/24 From - Other reallocations]]","v":0},{"$f":"Dataset[[#This Row],[2024/25 From - Spending review Topic 1]]+Dataset[[#This Row],[2024/25 From - Spending review Topic 2]]+Dataset[[#This Row],[2024/25 From - Spending review Topic 3]]+Dataset[[#This Row],[2024/25 From - Spending review Topic 4]]+Dataset[[#This Row],[2024/25 From - Other reallocations]]","v":0},{"$f":"Dataset[[#This Row],[2025/26 From - Spending review Topic 1]]+Dataset[[#This Row],[2025/26 From - Spending review Topic 2]]+Dataset[[#This Row],[2025/26 From - Spending review Topic 3]]+Dataset[[#This Row],[2025/26 From - Spending review Topic 4]]+Dataset[[#This Row],[2025/26 From - Other reallocations]]","v":0},{"$f":"Dataset[[#This Row],[2023/24 To - Spending review Topic 1]]+Dataset[[#This Row],[2023/24 To - Spending review Topic 2]]+Dataset[[#This Row],[2023/24 To - Spending review Topic 3]]+Dataset[[#This Row],[2023/24 To - Spending review Topic 4]]+Dataset[[#This Row],[2023/24 To - Other reallocations]]","v":0},{"$f":"Dataset[[#This Row],[2024/25 To - Spending review Topic 1]]+Dataset[[#This Row],[2024/25 To - Spending review Topic 2]]+Dataset[[#This Row],[2024/25 To - Spending review Topic 3]]+Dataset[[#This Row],[2024/25 To - Spending review Topic 4]]+Dataset[[#This Row],[2024/25 To - Other reallocations]]","v":0},{"$f":"Dataset[[#This Row],[2025/26 To - Spending review Topic 1]]+Dataset[[#This Row],[2025/26 To - Spending review Topic 2]]+Dataset[[#This Row],[2025/26 To - Spending review Topic 3]]+Dataset[[#This Row],[2025/26 To - Spending review Topic 4]]+Dataset[[#This Row],[2025/26 To - Other reallocations]]","v":0},{"$f":"Dataset[[#This Row],[2023/24 Baseline]]+Dataset[[#This Row],[2023/24 From - Total]]+Dataset[[#This Row],[2023/24 To - Total]]","v":0},{"$f":"Dataset[[#This Row],[2024/25 Baseline]]+Dataset[[#This Row],[2024/25 From - Total]]+Dataset[[#This Row],[2024/25 To - Total]]","v":0},{"$f":"Dataset[[#This Row],[2025/26 Baseline]]+Dataset[[#This Row],[2025/26 From - Total]]+Dataset[[#This Row],[2025/26 To - Total]]","v":0}]
["NAT|Non-transfer item","2|Municipal bank accounts","2023_24","MTEF2023",2,2,2,984,367,"02","02","02","000984","000367","02|02|02",2,2,4,44,45,"02|02|04|44|45","National","Parliament","Legislation and Oversight","National Council of Provinces","Non-transfer item","Capital","Transfers and subsidies","Provinces and municipalities","Municipalities","Municipal bank accounts","General public services","Executive and legislative organs","NAT",0,0,0,0,0,0,0,0,0,0,0,null,null,null,null,null,null,null,null,null,null,null,null,null,null,null,null,null,null,null,null,null,null,null,null,null,null,null,null,null,null,{"$f":"Dataset[[#This Row],[2023/24 From - Spending review Topic 1]]+Dataset[[#This Row],[2023/24 From - Spending review Topic 2]]+Dataset[[#This Row],[2023/24 From - Spending review Topic 3]]+Dataset[[#This Row],[2023/24 From - Spending review Topic 4]]+Dataset[[#This Row],[2023/24 From - Other reallocations]]","v":0},{"$f":"Dataset[[#This Row],[2024/25 From - Spending review Topic 1]]+Dataset[[#This Row],[2024/25 From - Spending review Topic 2]]+Dataset[[#This Row],[2024/25 From - Spending review Topic 3]]+Dataset[[#This Row],[2024/25 From - Spending review Topic 4]]+Dataset[[#This Row],[2024/25 From - Other reallocations]]","v":0},{"$f":"Dataset[[#This Row],[2025/26 From - Spending review Topic 1]]+Dataset[[#This Row],[2025/26 From - Spending review Topic 2]]+Dataset[[#This Row],[2025/26 From - Spending review Topic 3]]+Dataset[[#This Row],[2025/26 From - Spending review Topic 4]]+Dataset[[#This Row],[2025/26 From - Other reallocations]]","v":0},{"$f":"Dataset[[#This Row],[2023/24 To - Spending review Topic 1]]+Dataset[[#This Row],[2023/24 To - Spending review Topic 2]]+Dataset[[#This Row],[2023/24 To - Spending review Topic 3]]+Dataset[[#This Row],[2023/24 To - Spending review Topic 4]]+Dataset[[#This Row],[2023/24 To - Other reallocations]]","v":0},{"$f":"Dataset[[#This Row],[2024/25 To - Spending review Topic 1]]+Dataset[[#This Row],[2024/25 To - Spending review Topic 2]]+Dataset[[#This Row],[2024/25 To - Spending review Topic 3]]+Dataset[[#This Row],[2024/25 To - Spending review Topic 4]]+Dataset[[#This Row],[2024/25 To - Other reallocations]]","v":0},{"$f":"Dataset[[#This Row],[2025/26 To - Spending review Topic 1]]+Dataset[[#This Row],[2025/26 To - Spending review Topic 2]]+Dataset[[#This Row],[2025/26 To - Spending review Topic 3]]+Dataset[[#This Row],[2025/26 To - Spending review Topic 4]]+Dataset[[#This Row],[2025/26 To - Other reallocations]]","v":0},{"$f":"Dataset[[#This Row],[2023/24 Baseline]]+Dataset[[#This Row],[2023/24 From - Total]]+Dataset[[#This Row],[2023/24 To - Total]]","v":0},{"$f":"Dataset[[#This Row],[2024/25 Baseline]]+Dataset[[#This Row],[2024/25 From - Total]]+Dataset[[#This Row],[2024/25 To - Total]]","v":0},{"$f":"Dataset[[#This Row],[2025/26 Baseline]]+Dataset[[#This Row],[2025/26 From - Total]]+Dataset[[#This Row],[2025/26 To - Total]]","v":0}]
["NAT|Non-transfer item","2|Departmental agencies (non-business entities)","2023_24","MTEF2023",2,2,2,985,368,"02","02","02","000985","000368","02|02|02",2,2,5,46,48,"02|02|05|46|48","National","Parliament","Legislation and Oversight","National Council of Provinces","Non-transfer item","Capital","Transfers and subsidies","Departmental agencies and accounts","Departmental agencies (non-business entities)","Departmental agencies (non-business entities)","General public services","Executive and legislative organs","NAT",0,0,0,0,0,0,0,0,0,0,0,null,null,null,null,null,null,null,null,null,null,null,null,null,null,null,null,null,null,null,null,null,null,null,null,null,null,null,null,null,null,{"$f":"Dataset[[#This Row],[2023/24 From - Spending review Topic 1]]+Dataset[[#This Row],[2023/24 From - Spending review Topic 2]]+Dataset[[#This Row],[2023/24 From - Spending review Topic 3]]+Dataset[[#This Row],[2023/24 From - Spending review Topic 4]]+Dataset[[#This Row],[2023/24 From - Other reallocations]]","v":0},{"$f":"Dataset[[#This Row],[2024/25 From - Spending review Topic 1]]+Dataset[[#This Row],[2024/25 From - Spending review Topic 2]]+Dataset[[#This Row],[2024/25 From - Spending review Topic 3]]+Dataset[[#This Row],[2024/25 From - Spending review Topic 4]]+Dataset[[#This Row],[2024/25 From - Other reallocations]]","v":0},{"$f":"Dataset[[#This Row],[2025/26 From - Spending review Topic 1]]+Dataset[[#This Row],[2025/26 From - Spending review Topic 2]]+Dataset[[#This Row],[2025/26 From - Spending review Topic 3]]+Dataset[[#This Row],[2025/26 From - Spending review Topic 4]]+Dataset[[#This Row],[2025/26 From - Other reallocations]]","v":0},{"$f":"Dataset[[#This Row],[2023/24 To - Spending review Topic 1]]+Dataset[[#This Row],[2023/24 To - Spending review Topic 2]]+Dataset[[#This Row],[2023/24 To - Spending review Topic 3]]+Dataset[[#This Row],[2023/24 To - Spending review Topic 4]]+Dataset[[#This Row],[2023/24 To - Other reallocations]]","v":0},{"$f":"Dataset[[#This Row],[2024/25 To - Spending review Topic 1]]+Dataset[[#This Row],[2024/25 To - Spending review Topic 2]]+Dataset[[#This Row],[2024/25 To - Spending review Topic 3]]+Dataset[[#This Row],[2024/25 To - Spending review Topic 4]]+Dataset[[#This Row],[2024/25 To - Other reallocations]]","v":0},{"$f":"Dataset[[#This Row],[2025/26 To - Spending review Topic 1]]+Dataset[[#This Row],[2025/26 To - Spending review Topic 2]]+Dataset[[#This Row],[2025/26 To - Spending review Topic 3]]+Dataset[[#This Row],[2025/26 To - Spending review Topic 4]]+Dataset[[#This Row],[2025/26 To - Other reallocations]]","v":0},{"$f":"Dataset[[#This Row],[2023/24 Baseline]]+Dataset[[#This Row],[2023/24 From - Total]]+Dataset[[#This Row],[2023/24 To - Total]]","v":0},{"$f":"Dataset[[#This Row],[2024/25 Baseline]]+Dataset[[#This Row],[2024/25 From - Total]]+Dataset[[#This Row],[2024/25 To - Total]]","v":0},{"$f":"Dataset[[#This Row],[2025/26 Baseline]]+Dataset[[#This Row],[2025/26 From - Total]]+Dataset[[#This Row],[2025/26 To - Total]]","v":0}]
["NAT|Non-transfer item","2|Higher education institutions","2023_24","MTEF2023",2,2,2,986,369,"02","02","02","000986","000369","02|02|02",2,2,6,47,49,"02|02|06|47|49","National","Parliament","Legislation and Oversight","National Council of Provinces","Non-transfer item","Capital","Transfers and subsidies","Higher education institutions","Higher education institutions","Higher education institutions","General public services","Executive and legislative organs","NAT",0,0,0,0,0,0,0,0,0,0,0,null,null,null,null,null,null,null,null,null,null,null,null,null,null,null,null,null,null,null,null,null,null,null,null,null,null,null,null,null,null,{"$f":"Dataset[[#This Row],[2023/24 From - Spending review Topic 1]]+Dataset[[#This Row],[2023/24 From - Spending review Topic 2]]+Dataset[[#This Row],[2023/24 From - Spending review Topic 3]]+Dataset[[#This Row],[2023/24 From - Spending review Topic 4]]+Dataset[[#This Row],[2023/24 From - Other reallocations]]","v":0},{"$f":"Dataset[[#This Row],[2024/25 From - Spending review Topic 1]]+Dataset[[#This Row],[2024/25 From - Spending review Topic 2]]+Dataset[[#This Row],[2024/25 From - Spending review Topic 3]]+Dataset[[#This Row],[2024/25 From - Spending review Topic 4]]+Dataset[[#This Row],[2024/25 From - Other reallocations]]","v":0},{"$f":"Dataset[[#This Row],[2025/26 From - Spending review Topic 1]]+Dataset[[#This Row],[2025/26 From - Spending review Topic 2]]+Dataset[[#This Row],[2025/26 From - Spending review Topic 3]]+Dataset[[#This Row],[2025/26 From - Spending review Topic 4]]+Dataset[[#This Row],[2025/26 From - Other reallocations]]","v":0},{"$f":"Dataset[[#This Row],[2023/24 To - Spending review Topic 1]]+Dataset[[#This Row],[2023/24 To - Spending review Topic 2]]+Dataset[[#This Row],[2023/24 To - Spending review Topic 3]]+Dataset[[#This Row],[2023/24 To - Spending review Topic 4]]+Dataset[[#This Row],[2023/24 To - Other reallocations]]","v":0},{"$f":"Dataset[[#This Row],[2024/25 To - Spending review Topic 1]]+Dataset[[#This Row],[2024/25 To - Spending review Topic 2]]+Dataset[[#This Row],[2024/25 To - Spending review Topic 3]]+Dataset[[#This Row],[2024/25 To - Spending review Topic 4]]+Dataset[[#This Row],[2024/25 To - Other reallocations]]","v":0},{"$f":"Dataset[[#This Row],[2025/26 To - Spending review Topic 1]]+Dataset[[#This Row],[2025/26 To - Spending review Topic 2]]+Dataset[[#This Row],[2025/26 To - Spending review Topic 3]]+Dataset[[#This Row],[2025/26 To - Spending review Topic 4]]+Dataset[[#This Row],[2025/26 To - Other reallocations]]","v":0},{"$f":"Dataset[[#This Row],[2023/24 Baseline]]+Dataset[[#This Row],[2023/24 From - Total]]+Dataset[[#This Row],[2023/24 To - Total]]","v":0},{"$f":"Dataset[[#This Row],[2024/25 Baseline]]+Dataset[[#This Row],[2024/25 From - Total]]+Dataset[[#This Row],[2024/25 To - Total]]","v":0},{"$f":"Dataset[[#This Row],[2025/26 Baseline]]+Dataset[[#This Row],[2025/26 From - Total]]+Dataset[[#This Row],[2025/26 To - Total]]","v":0}]
["NAT|Non-transfer item","2|Foreign governments and international organisations","2023_24","MTEF2023",2,2,2,987,370,"02","02","02","000987","000370","02|02|02",2,2,7,48,50,"02|02|07|48|50","National","Parliament","Legislation and Oversight","National Council of Provinces","Non-transfer item","Capital","Transfers and subsidies","Foreign governments and international organisations","Foreign governments and international organisations","Foreign governments and international organisations","General public services","Executive and legislative organs","NAT",0,0,0,0,0,0,0,0,0,0,0,null,null,null,null,null,null,null,null,null,null,null,null,null,null,null,null,null,null,null,null,null,null,null,null,null,null,null,null,null,null,{"$f":"Dataset[[#This Row],[2023/24 From - Spending review Topic 1]]+Dataset[[#This Row],[2023/24 From - Spending review Topic 2]]+Dataset[[#This Row],[2023/24 From - Spending review Topic 3]]+Dataset[[#This Row],[2023/24 From - Spending review Topic 4]]+Dataset[[#This Row],[2023/24 From - Other reallocations]]","v":0},{"$f":"Dataset[[#This Row],[2024/25 From - Spending review Topic 1]]+Dataset[[#This Row],[2024/25 From - Spending review Topic 2]]+Dataset[[#This Row],[2024/25 From - Spending review Topic 3]]+Dataset[[#This Row],[2024/25 From - Spending review Topic 4]]+Dataset[[#This Row],[2024/25 From - Other reallocations]]","v":0},{"$f":"Dataset[[#This Row],[2025/26 From - Spending review Topic 1]]+Dataset[[#This Row],[2025/26 From - Spending review Topic 2]]+Dataset[[#This Row],[2025/26 From - Spending review Topic 3]]+Dataset[[#This Row],[2025/26 From - Spending review Topic 4]]+Dataset[[#This Row],[2025/26 From - Other reallocations]]","v":0},{"$f":"Dataset[[#This Row],[2023/24 To - Spending review Topic 1]]+Dataset[[#This Row],[2023/24 To - Spending review Topic 2]]+Dataset[[#This Row],[2023/24 To - Spending review Topic 3]]+Dataset[[#This Row],[2023/24 To - Spending review Topic 4]]+Dataset[[#This Row],[2023/24 To - Other reallocations]]","v":0},{"$f":"Dataset[[#This Row],[2024/25 To - Spending review Topic 1]]+Dataset[[#This Row],[2024/25 To - Spending review Topic 2]]+Dataset[[#This Row],[2024/25 To - Spending review Topic 3]]+Dataset[[#This Row],[2024/25 To - Spending review Topic 4]]+Dataset[[#This Row],[2024/25 To - Other reallocations]]","v":0},{"$f":"Dataset[[#This Row],[2025/26 To - Spending review Topic 1]]+Dataset[[#This Row],[2025/26 To - Spending review Topic 2]]+Dataset[[#This Row],[2025/26 To - Spending review Topic 3]]+Dataset[[#This Row],[2025/26 To - Spending review Topic 4]]+Dataset[[#This Row],[2025/26 To - Other reallocations]]","v":0},{"$f":"Dataset[[#This Row],[2023/24 Baseline]]+Dataset[[#This Row],[2023/24 From - Total]]+Dataset[[#This Row],[2023/24 To - Total]]","v":0},{"$f":"Dataset[[#This Row],[2024/25 Baseline]]+Dataset[[#This Row],[2024/25 From - Total]]+Dataset[[#This Row],[2024/25 To - Total]]","v":0},{"$f":"Dataset[[#This Row],[2025/26 Baseline]]+Dataset[[#This Row],[2025/26 From - Total]]+Dataset[[#This Row],[2025/26 To - Total]]","v":0}]
["NAT|Non-transfer item","2|Subsidies on products and production (pc)","2023_24","MTEF2023",2,2,2,988,371,"02","02","02","000988","000371","02|02|02",2,2,8,49,51,"02|02|08|49|51","National","Parliament","Legislation and Oversight","National Council of Provinces","Non-transfer item","Capital","Transfers and subsidies","Public corporations and private enterprises","Public corporations","Subsidies on products and production (pc)","General public services","Executive and legislative organs","NAT",0,0,0,0,0,0,0,0,0,0,0,null,null,null,null,null,null,null,null,null,null,null,null,null,null,null,null,null,null,null,null,null,null,null,null,null,null,null,null,null,null,{"$f":"Dataset[[#This Row],[2023/24 From - Spending review Topic 1]]+Dataset[[#This Row],[2023/24 From - Spending review Topic 2]]+Dataset[[#This Row],[2023/24 From - Spending review Topic 3]]+Dataset[[#This Row],[2023/24 From - Spending review Topic 4]]+Dataset[[#This Row],[2023/24 From - Other reallocations]]","v":0},{"$f":"Dataset[[#This Row],[2024/25 From - Spending review Topic 1]]+Dataset[[#This Row],[2024/25 From - Spending review Topic 2]]+Dataset[[#This Row],[2024/25 From - Spending review Topic 3]]+Dataset[[#This Row],[2024/25 From - Spending review Topic 4]]+Dataset[[#This Row],[2024/25 From - Other reallocations]]","v":0},{"$f":"Dataset[[#This Row],[2025/26 From - Spending review Topic 1]]+Dataset[[#This Row],[2025/26 From - Spending review Topic 2]]+Dataset[[#This Row],[2025/26 From - Spending review Topic 3]]+Dataset[[#This Row],[2025/26 From - Spending review Topic 4]]+Dataset[[#This Row],[2025/26 From - Other reallocations]]","v":0},{"$f":"Dataset[[#This Row],[2023/24 To - Spending review Topic 1]]+Dataset[[#This Row],[2023/24 To - Spending review Topic 2]]+Dataset[[#This Row],[2023/24 To - Spending review Topic 3]]+Dataset[[#This Row],[2023/24 To - Spending review Topic 4]]+Dataset[[#This Row],[2023/24 To - Other reallocations]]","v":0},{"$f":"Dataset[[#This Row],[2024/25 To - Spending review Topic 1]]+Dataset[[#This Row],[2024/25 To - Spending review Topic 2]]+Dataset[[#This Row],[2024/25 To - Spending review Topic 3]]+Dataset[[#This Row],[2024/25 To - Spending review Topic 4]]+Dataset[[#This Row],[2024/25 To - Other reallocations]]","v":0},{"$f":"Dataset[[#This Row],[2025/26 To - Spending review Topic 1]]+Dataset[[#This Row],[2025/26 To - Spending review Topic 2]]+Dataset[[#This Row],[2025/26 To - Spending review Topic 3]]+Dataset[[#This Row],[2025/26 To - Spending review Topic 4]]+Dataset[[#This Row],[2025/26 To - Other reallocations]]","v":0},{"$f":"Dataset[[#This Row],[2023/24 Baseline]]+Dataset[[#This Row],[2023/24 From - Total]]+Dataset[[#This Row],[2023/24 To - Total]]","v":0},{"$f":"Dataset[[#This Row],[2024/25 Baseline]]+Dataset[[#This Row],[2024/25 From - Total]]+Dataset[[#This Row],[2024/25 To - Total]]","v":0},{"$f":"Dataset[[#This Row],[2025/26 Baseline]]+Dataset[[#This Row],[2025/26 From - Total]]+Dataset[[#This Row],[2025/26 To - Total]]","v":0}]
["NAT|Non-transfer item","2|Other transfers to public corporations","2023_24","MTEF2023",2,2,2,989,372,"02","02","02","000989","000372","02|02|02",2,2,8,49,52,"02|02|08|49|52","National","Parliament","Legislation and Oversight","National Council of Provinces","Non-transfer item","Capital","Transfers and subsidies","Public corporations and private enterprises","Public corporations","Other transfers to public corporations","General public services","Executive and legislative organs","NAT",0,0,0,0,0,0,0,0,0,0,0,null,null,null,null,null,null,null,null,null,null,null,null,null,null,null,null,null,null,null,null,null,null,null,null,null,null,null,null,null,null,{"$f":"Dataset[[#This Row],[2023/24 From - Spending review Topic 1]]+Dataset[[#This Row],[2023/24 From - Spending review Topic 2]]+Dataset[[#This Row],[2023/24 From - Spending review Topic 3]]+Dataset[[#This Row],[2023/24 From - Spending review Topic 4]]+Dataset[[#This Row],[2023/24 From - Other reallocations]]","v":0},{"$f":"Dataset[[#This Row],[2024/25 From - Spending review Topic 1]]+Dataset[[#This Row],[2024/25 From - Spending review Topic 2]]+Dataset[[#This Row],[2024/25 From - Spending review Topic 3]]+Dataset[[#This Row],[2024/25 From - Spending review Topic 4]]+Dataset[[#This Row],[2024/25 From - Other reallocations]]","v":0},{"$f":"Dataset[[#This Row],[2025/26 From - Spending review Topic 1]]+Dataset[[#This Row],[2025/26 From - Spending review Topic 2]]+Dataset[[#This Row],[2025/26 From - Spending review Topic 3]]+Dataset[[#This Row],[2025/26 From - Spending review Topic 4]]+Dataset[[#This Row],[2025/26 From - Other reallocations]]","v":0},{"$f":"Dataset[[#This Row],[2023/24 To - Spending review Topic 1]]+Dataset[[#This Row],[2023/24 To - Spending review Topic 2]]+Dataset[[#This Row],[2023/24 To - Spending review Topic 3]]+Dataset[[#This Row],[2023/24 To - Spending review Topic 4]]+Dataset[[#This Row],[2023/24 To - Other reallocations]]","v":0},{"$f":"Dataset[[#This Row],[2024/25 To - Spending review Topic 1]]+Dataset[[#This Row],[2024/25 To - Spending review Topic 2]]+Dataset[[#This Row],[2024/25 To - Spending review Topic 3]]+Dataset[[#This Row],[2024/25 To - Spending review Topic 4]]+Dataset[[#This Row],[2024/25 To - Other reallocations]]","v":0},{"$f":"Dataset[[#This Row],[2025/26 To - Spending review Topic 1]]+Dataset[[#This Row],[2025/26 To - Spending review Topic 2]]+Dataset[[#This Row],[2025/26 To - Spending review Topic 3]]+Dataset[[#This Row],[2025/26 To - Spending review Topic 4]]+Dataset[[#This Row],[2025/26 To - Other reallocations]]","v":0},{"$f":"Dataset[[#This Row],[2023/24 Baseline]]+Dataset[[#This Row],[2023/24 From - Total]]+Dataset[[#This Row],[2023/24 To - Total]]","v":0},{"$f":"Dataset[[#This Row],[2024/25 Baseline]]+Dataset[[#This Row],[2024/25 From - Total]]+Dataset[[#This Row],[2024/25 To - Total]]","v":0},{"$f":"Dataset[[#This Row],[2025/26 Baseline]]+Dataset[[#This Row],[2025/26 From - Total]]+Dataset[[#This Row],[2025/26 To - Total]]","v":0}]
["NAT|Non-transfer item","2|Other transfers to private enterprises","2023_24","MTEF2023",2,2,2,990,373,"02","02","02","000990","000373","02|02|02",2,2,8,50,54,"02|02|08|50|54","National","Parliament","Legislation and Oversight","National Council of Provinces","Non-transfer item","Capital","Transfers and subsidies","Public corporations and private enterprises","Private enterprises","Other transfers to private enterprises","General public services","Executive and legislative organs","NAT",0,0,0,0,0,0,0,0,0,0,0,null,null,null,null,null,null,null,null,null,null,null,null,null,null,null,null,null,null,null,null,null,null,null,null,null,null,null,null,null,null,{"$f":"Dataset[[#This Row],[2023/24 From - Spending review Topic 1]]+Dataset[[#This Row],[2023/24 From - Spending review Topic 2]]+Dataset[[#This Row],[2023/24 From - Spending review Topic 3]]+Dataset[[#This Row],[2023/24 From - Spending review Topic 4]]+Dataset[[#This Row],[2023/24 From - Other reallocations]]","v":0},{"$f":"Dataset[[#This Row],[2024/25 From - Spending review Topic 1]]+Dataset[[#This Row],[2024/25 From - Spending review Topic 2]]+Dataset[[#This Row],[2024/25 From - Spending review Topic 3]]+Dataset[[#This Row],[2024/25 From - Spending review Topic 4]]+Dataset[[#This Row],[2024/25 From - Other reallocations]]","v":0},{"$f":"Dataset[[#This Row],[2025/26 From - Spending review Topic 1]]+Dataset[[#This Row],[2025/26 From - Spending review Topic 2]]+Dataset[[#This Row],[2025/26 From - Spending review Topic 3]]+Dataset[[#This Row],[2025/26 From - Spending review Topic 4]]+Dataset[[#This Row],[2025/26 From - Other reallocations]]","v":0},{"$f":"Dataset[[#This Row],[2023/24 To - Spending review Topic 1]]+Dataset[[#This Row],[2023/24 To - Spending review Topic 2]]+Dataset[[#This Row],[2023/24 To - Spending review Topic 3]]+Dataset[[#This Row],[2023/24 To - Spending review Topic 4]]+Dataset[[#This Row],[2023/24 To - Other reallocations]]","v":0},{"$f":"Dataset[[#This Row],[2024/25 To - Spending review Topic 1]]+Dataset[[#This Row],[2024/25 To - Spending review Topic 2]]+Dataset[[#This Row],[2024/25 To - Spending review Topic 3]]+Dataset[[#This Row],[2024/25 To - Spending review Topic 4]]+Dataset[[#This Row],[2024/25 To - Other reallocations]]","v":0},{"$f":"Dataset[[#This Row],[2025/26 To - Spending review Topic 1]]+Dataset[[#This Row],[2025/26 To - Spending review Topic 2]]+Dataset[[#This Row],[2025/26 To - Spending review Topic 3]]+Dataset[[#This Row],[2025/26 To - Spending review Topic 4]]+Dataset[[#This Row],[2025/26 To - Other reallocations]]","v":0},{"$f":"Dataset[[#This Row],[2023/24 Baseline]]+Dataset[[#This Row],[2023/24 From - Total]]+Dataset[[#This Row],[2023/24 To - Total]]","v":0},{"$f":"Dataset[[#This Row],[2024/25 Baseline]]+Dataset[[#This Row],[2024/25 From - Total]]+Dataset[[#This Row],[2024/25 To - Total]]","v":0},{"$f":"Dataset[[#This Row],[2025/26 Baseline]]+Dataset[[#This Row],[2025/26 From - Total]]+Dataset[[#This Row],[2025/26 To - Total]]","v":0}]
["NAT|Non-transfer item","2|Non-profit institutions","2023_24","MTEF2023",2,2,2,991,374,"02","02","02","000991","000374","02|02|02",2,2,9,51,55,"02|02|09|51|55","National","Parliament","Legislation and Oversight","National Council of Provinces","Non-transfer item","Capital","Transfers and subsidies","Non-profit institutions","Non-profit institutions","Non-profit institutions","General public services","Executive and legislative organs","NAT",0,0,0,0,0,0,0,0,0,0,0,null,null,null,null,null,null,null,null,null,null,null,null,null,null,null,null,null,null,null,null,null,null,null,null,null,null,null,null,null,null,{"$f":"Dataset[[#This Row],[2023/24 From - Spending review Topic 1]]+Dataset[[#This Row],[2023/24 From - Spending review Topic 2]]+Dataset[[#This Row],[2023/24 From - Spending review Topic 3]]+Dataset[[#This Row],[2023/24 From - Spending review Topic 4]]+Dataset[[#This Row],[2023/24 From - Other reallocations]]","v":0},{"$f":"Dataset[[#This Row],[2024/25 From - Spending review Topic 1]]+Dataset[[#This Row],[2024/25 From - Spending review Topic 2]]+Dataset[[#This Row],[2024/25 From - Spending review Topic 3]]+Dataset[[#This Row],[2024/25 From - Spending review Topic 4]]+Dataset[[#This Row],[2024/25 From - Other reallocations]]","v":0},{"$f":"Dataset[[#This Row],[2025/26 From - Spending review Topic 1]]+Dataset[[#This Row],[2025/26 From - Spending review Topic 2]]+Dataset[[#This Row],[2025/26 From - Spending review Topic 3]]+Dataset[[#This Row],[2025/26 From - Spending review Topic 4]]+Dataset[[#This Row],[2025/26 From - Other reallocations]]","v":0},{"$f":"Dataset[[#This Row],[2023/24 To - Spending review Topic 1]]+Dataset[[#This Row],[2023/24 To - Spending review Topic 2]]+Dataset[[#This Row],[2023/24 To - Spending review Topic 3]]+Dataset[[#This Row],[2023/24 To - Spending review Topic 4]]+Dataset[[#This Row],[2023/24 To - Other reallocations]]","v":0},{"$f":"Dataset[[#This Row],[2024/25 To - Spending review Topic 1]]+Dataset[[#This Row],[2024/25 To - Spending review Topic 2]]+Dataset[[#This Row],[2024/25 To - Spending review Topic 3]]+Dataset[[#This Row],[2024/25 To - Spending review Topic 4]]+Dataset[[#This Row],[2024/25 To - Other reallocations]]","v":0},{"$f":"Dataset[[#This Row],[2025/26 To - Spending review Topic 1]]+Dataset[[#This Row],[2025/26 To - Spending review Topic 2]]+Dataset[[#This Row],[2025/26 To - Spending review Topic 3]]+Dataset[[#This Row],[2025/26 To - Spending review Topic 4]]+Dataset[[#This Row],[2025/26 To - Other reallocations]]","v":0},{"$f":"Dataset[[#This Row],[2023/24 Baseline]]+Dataset[[#This Row],[2023/24 From - Total]]+Dataset[[#This Row],[2023/24 To - Total]]","v":0},{"$f":"Dataset[[#This Row],[2024/25 Baseline]]+Dataset[[#This Row],[2024/25 From - Total]]+Dataset[[#This Row],[2024/25 To - Total]]","v":0},{"$f":"Dataset[[#This Row],[2025/26 Baseline]]+Dataset[[#This Row],[2025/26 From - Total]]+Dataset[[#This Row],[2025/26 To - Total]]","v":0}]
["NAT|Non-transfer item","2|Other transfers to households","2023_24","MTEF2023",2,2,2,992,375,"02","02","02","000992","000375","02|02|02",2,2,10,53,57,"02|02|10|53|57","National","Parliament","Legislation and Oversight","National Council of Provinces","Non-transfer item","Capital","Transfers and subsidies","Households","Other transfers to households","Other transfers to households","General public services","Executive and legislative organs","NAT",0,0,0,0,0,0,0,0,0,0,0,null,null,null,null,null,null,null,null,null,null,null,null,null,null,null,null,null,null,null,null,null,null,null,null,null,null,null,null,null,null,{"$f":"Dataset[[#This Row],[2023/24 From - Spending review Topic 1]]+Dataset[[#This Row],[2023/24 From - Spending review Topic 2]]+Dataset[[#This Row],[2023/24 From - Spending review Topic 3]]+Dataset[[#This Row],[2023/24 From - Spending review Topic 4]]+Dataset[[#This Row],[2023/24 From - Other reallocations]]","v":0},{"$f":"Dataset[[#This Row],[2024/25 From - Spending review Topic 1]]+Dataset[[#This Row],[2024/25 From - Spending review Topic 2]]+Dataset[[#This Row],[2024/25 From - Spending review Topic 3]]+Dataset[[#This Row],[2024/25 From - Spending review Topic 4]]+Dataset[[#This Row],[2024/25 From - Other reallocations]]","v":0},{"$f":"Dataset[[#This Row],[2025/26 From - Spending review Topic 1]]+Dataset[[#This Row],[2025/26 From - Spending review Topic 2]]+Dataset[[#This Row],[2025/26 From - Spending review Topic 3]]+Dataset[[#This Row],[2025/26 From - Spending review Topic 4]]+Dataset[[#This Row],[2025/26 From - Other reallocations]]","v":0},{"$f":"Dataset[[#This Row],[2023/24 To - Spending review Topic 1]]+Dataset[[#This Row],[2023/24 To - Spending review Topic 2]]+Dataset[[#This Row],[2023/24 To - Spending review Topic 3]]+Dataset[[#This Row],[2023/24 To - Spending review Topic 4]]+Dataset[[#This Row],[2023/24 To - Other reallocations]]","v":0},{"$f":"Dataset[[#This Row],[2024/25 To - Spending review Topic 1]]+Dataset[[#This Row],[2024/25 To - Spending review Topic 2]]+Dataset[[#This Row],[2024/25 To - Spending review Topic 3]]+Dataset[[#This Row],[2024/25 To - Spending review Topic 4]]+Dataset[[#This Row],[2024/25 To - Other reallocations]]","v":0},{"$f":"Dataset[[#This Row],[2025/26 To - Spending review Topic 1]]+Dataset[[#This Row],[2025/26 To - Spending review Topic 2]]+Dataset[[#This Row],[2025/26 To - Spending review Topic 3]]+Dataset[[#This Row],[2025/26 To - Spending review Topic 4]]+Dataset[[#This Row],[2025/26 To - Other reallocations]]","v":0},{"$f":"Dataset[[#This Row],[2023/24 Baseline]]+Dataset[[#This Row],[2023/24 From - Total]]+Dataset[[#This Row],[2023/24 To - Total]]","v":0},{"$f":"Dataset[[#This Row],[2024/25 Baseline]]+Dataset[[#This Row],[2024/25 From - Total]]+Dataset[[#This Row],[2024/25 To - Total]]","v":0},{"$f":"Dataset[[#This Row],[2025/26 Baseline]]+Dataset[[#This Row],[2025/26 From - Total]]+Dataset[[#This Row],[2025/26 To - Total]]","v":0}]
["NAT|Non-transfer item","2|Buildings","2023_24","MTEF2023",2,2,2,993,376,"02","02","02","000993","000376","02|02|02",2,3,11,54,58,"02|03|11|54|58","National","Parliament","Legislation and Oversight","National Council of Provinces","Non-transfer item","Capital","Payments for capital assets","Buildings and other fixed structures","Buildings","Buildings","General public services","Executive and legislative organs","NAT",0,0,0,0,0,0,0,0,0,0,0,null,null,null,null,null,null,null,null,null,null,null,null,null,null,null,null,null,null,null,null,null,null,null,null,null,null,null,null,null,null,{"$f":"Dataset[[#This Row],[2023/24 From - Spending review Topic 1]]+Dataset[[#This Row],[2023/24 From - Spending review Topic 2]]+Dataset[[#This Row],[2023/24 From - Spending review Topic 3]]+Dataset[[#This Row],[2023/24 From - Spending review Topic 4]]+Dataset[[#This Row],[2023/24 From - Other reallocations]]","v":0},{"$f":"Dataset[[#This Row],[2024/25 From - Spending review Topic 1]]+Dataset[[#This Row],[2024/25 From - Spending review Topic 2]]+Dataset[[#This Row],[2024/25 From - Spending review Topic 3]]+Dataset[[#This Row],[2024/25 From - Spending review Topic 4]]+Dataset[[#This Row],[2024/25 From - Other reallocations]]","v":0},{"$f":"Dataset[[#This Row],[2025/26 From - Spending review Topic 1]]+Dataset[[#This Row],[2025/26 From - Spending review Topic 2]]+Dataset[[#This Row],[2025/26 From - Spending review Topic 3]]+Dataset[[#This Row],[2025/26 From - Spending review Topic 4]]+Dataset[[#This Row],[2025/26 From - Other reallocations]]","v":0},{"$f":"Dataset[[#This Row],[2023/24 To - Spending review Topic 1]]+Dataset[[#This Row],[2023/24 To - Spending review Topic 2]]+Dataset[[#This Row],[2023/24 To - Spending review Topic 3]]+Dataset[[#This Row],[2023/24 To - Spending review Topic 4]]+Dataset[[#This Row],[2023/24 To - Other reallocations]]","v":0},{"$f":"Dataset[[#This Row],[2024/25 To - Spending review Topic 1]]+Dataset[[#This Row],[2024/25 To - Spending review Topic 2]]+Dataset[[#This Row],[2024/25 To - Spending review Topic 3]]+Dataset[[#This Row],[2024/25 To - Spending review Topic 4]]+Dataset[[#This Row],[2024/25 To - Other reallocations]]","v":0},{"$f":"Dataset[[#This Row],[2025/26 To - Spending review Topic 1]]+Dataset[[#This Row],[2025/26 To - Spending review Topic 2]]+Dataset[[#This Row],[2025/26 To - Spending review Topic 3]]+Dataset[[#This Row],[2025/26 To - Spending review Topic 4]]+Dataset[[#This Row],[2025/26 To - Other reallocations]]","v":0},{"$f":"Dataset[[#This Row],[2023/24 Baseline]]+Dataset[[#This Row],[2023/24 From - Total]]+Dataset[[#This Row],[2023/24 To - Total]]","v":0},{"$f":"Dataset[[#This Row],[2024/25 Baseline]]+Dataset[[#This Row],[2024/25 From - Total]]+Dataset[[#This Row],[2024/25 To - Total]]","v":0},{"$f":"Dataset[[#This Row],[2025/26 Baseline]]+Dataset[[#This Row],[2025/26 From - Total]]+Dataset[[#This Row],[2025/26 To - Total]]","v":0}]
["NAT|Non-transfer item","2|Other fixed structures","2023_24","MTEF2023",2,2,2,994,377,"02","02","02","000994","000377","02|02|02",2,3,11,55,59,"02|03|11|55|59","National","Parliament","Legislation and Oversight","National Council of Provinces","Non-transfer item","Capital","Payments for capital assets","Buildings and other fixed structures","Other fixed structures","Other fixed structures","General public services","Executive and legislative organs","NAT",0,0,0,0,0,0,0,0,0,0,0,null,null,null,null,null,null,null,null,null,null,null,null,null,null,null,null,null,null,null,null,null,null,null,null,null,null,null,null,null,null,{"$f":"Dataset[[#This Row],[2023/24 From - Spending review Topic 1]]+Dataset[[#This Row],[2023/24 From - Spending review Topic 2]]+Dataset[[#This Row],[2023/24 From - Spending review Topic 3]]+Dataset[[#This Row],[2023/24 From - Spending review Topic 4]]+Dataset[[#This Row],[2023/24 From - Other reallocations]]","v":0},{"$f":"Dataset[[#This Row],[2024/25 From - Spending review Topic 1]]+Dataset[[#This Row],[2024/25 From - Spending review Topic 2]]+Dataset[[#This Row],[2024/25 From - Spending review Topic 3]]+Dataset[[#This Row],[2024/25 From - Spending review Topic 4]]+Dataset[[#This Row],[2024/25 From - Other reallocations]]","v":0},{"$f":"Dataset[[#This Row],[2025/26 From - Spending review Topic 1]]+Dataset[[#This Row],[2025/26 From - Spending review Topic 2]]+Dataset[[#This Row],[2025/26 From - Spending review Topic 3]]+Dataset[[#This Row],[2025/26 From - Spending review Topic 4]]+Dataset[[#This Row],[2025/26 From - Other reallocations]]","v":0},{"$f":"Dataset[[#This Row],[2023/24 To - Spending review Topic 1]]+Dataset[[#This Row],[2023/24 To - Spending review Topic 2]]+Dataset[[#This Row],[2023/24 To - Spending review Topic 3]]+Dataset[[#This Row],[2023/24 To - Spending review Topic 4]]+Dataset[[#This Row],[2023/24 To - Other reallocations]]","v":0},{"$f":"Dataset[[#This Row],[2024/25 To - Spending review Topic 1]]+Dataset[[#This Row],[2024/25 To - Spending review Topic 2]]+Dataset[[#This Row],[2024/25 To - Spending review Topic 3]]+Dataset[[#This Row],[2024/25 To - Spending review Topic 4]]+Dataset[[#This Row],[2024/25 To - Other reallocations]]","v":0},{"$f":"Dataset[[#This Row],[2025/26 To - Spending review Topic 1]]+Dataset[[#This Row],[2025/26 To - Spending review Topic 2]]+Dataset[[#This Row],[2025/26 To - Spending review Topic 3]]+Dataset[[#This Row],[2025/26 To - Spending review Topic 4]]+Dataset[[#This Row],[2025/26 To - Other reallocations]]","v":0},{"$f":"Dataset[[#This Row],[2023/24 Baseline]]+Dataset[[#This Row],[2023/24 From - Total]]+Dataset[[#This Row],[2023/24 To - Total]]","v":0},{"$f":"Dataset[[#This Row],[2024/25 Baseline]]+Dataset[[#This Row],[2024/25 From - Total]]+Dataset[[#This Row],[2024/25 To - Total]]","v":0},{"$f":"Dataset[[#This Row],[2025/26 Baseline]]+Dataset[[#This Row],[2025/26 From - Total]]+Dataset[[#This Row],[2025/26 To - Total]]","v":0}]
["NAT|Non-transfer item","2|Transport equipment","2023_24","MTEF2023",2,2,2,995,378,"02","02","02","000995","000378","02|02|02",2,3,12,56,60,"02|03|12|56|60","National","Parliament","Legislation and Oversight","National Council of Provinces","Non-transfer item","Capital","Payments for capital assets","Machinery and equipment","Transport equipment","Transport equipment","General public services","Executive and legislative organs","NAT",0,0,0,0,0,0,0,0,0,0,0,null,null,null,null,null,null,null,null,null,null,null,null,null,null,null,null,null,null,null,null,null,null,null,null,null,null,null,null,null,null,{"$f":"Dataset[[#This Row],[2023/24 From - Spending review Topic 1]]+Dataset[[#This Row],[2023/24 From - Spending review Topic 2]]+Dataset[[#This Row],[2023/24 From - Spending review Topic 3]]+Dataset[[#This Row],[2023/24 From - Spending review Topic 4]]+Dataset[[#This Row],[2023/24 From - Other reallocations]]","v":0},{"$f":"Dataset[[#This Row],[2024/25 From - Spending review Topic 1]]+Dataset[[#This Row],[2024/25 From - Spending review Topic 2]]+Dataset[[#This Row],[2024/25 From - Spending review Topic 3]]+Dataset[[#This Row],[2024/25 From - Spending review Topic 4]]+Dataset[[#This Row],[2024/25 From - Other reallocations]]","v":0},{"$f":"Dataset[[#This Row],[2025/26 From - Spending review Topic 1]]+Dataset[[#This Row],[2025/26 From - Spending review Topic 2]]+Dataset[[#This Row],[2025/26 From - Spending review Topic 3]]+Dataset[[#This Row],[2025/26 From - Spending review Topic 4]]+Dataset[[#This Row],[2025/26 From - Other reallocations]]","v":0},{"$f":"Dataset[[#This Row],[2023/24 To - Spending review Topic 1]]+Dataset[[#This Row],[2023/24 To - Spending review Topic 2]]+Dataset[[#This Row],[2023/24 To - Spending review Topic 3]]+Dataset[[#This Row],[2023/24 To - Spending review Topic 4]]+Dataset[[#This Row],[2023/24 To - Other reallocations]]","v":0},{"$f":"Dataset[[#This Row],[2024/25 To - Spending review Topic 1]]+Dataset[[#This Row],[2024/25 To - Spending review Topic 2]]+Dataset[[#This Row],[2024/25 To - Spending review Topic 3]]+Dataset[[#This Row],[2024/25 To - Spending review Topic 4]]+Dataset[[#This Row],[2024/25 To - Other reallocations]]","v":0},{"$f":"Dataset[[#This Row],[2025/26 To - Spending review Topic 1]]+Dataset[[#This Row],[2025/26 To - Spending review Topic 2]]+Dataset[[#This Row],[2025/26 To - Spending review Topic 3]]+Dataset[[#This Row],[2025/26 To - Spending review Topic 4]]+Dataset[[#This Row],[2025/26 To - Other reallocations]]","v":0},{"$f":"Dataset[[#This Row],[2023/24 Baseline]]+Dataset[[#This Row],[2023/24 From - Total]]+Dataset[[#This Row],[2023/24 To - Total]]","v":0},{"$f":"Dataset[[#This Row],[2024/25 Baseline]]+Dataset[[#This Row],[2024/25 From - Total]]+Dataset[[#This Row],[2024/25 To - Total]]","v":0},{"$f":"Dataset[[#This Row],[2025/26 Baseline]]+Dataset[[#This Row],[2025/26 From - Total]]+Dataset[[#This Row],[2025/26 To - Total]]","v":0}]
["NAT|Non-transfer item","2|Other machinery and equipment","2023_24","MTEF2023",2,2,2,996,379,"02","02","02","000996","000379","02|02|02",2,3,12,57,61,"02|03|12|57|61","National","Parliament","Legislation and Oversight","National Council of Provinces","Non-transfer item","Capital","Payments for capital assets","Machinery and equipment","Other machinery and equipment","Other machinery and equipment","General public services","Executive and legislative organs","NAT",0,0,0,0,0,0,0,0,0,0,0,null,null,null,null,null,null,null,null,null,null,null,null,null,null,null,null,null,null,null,null,null,null,null,null,null,null,null,null,null,null,{"$f":"Dataset[[#This Row],[2023/24 From - Spending review Topic 1]]+Dataset[[#This Row],[2023/24 From - Spending review Topic 2]]+Dataset[[#This Row],[2023/24 From - Spending review Topic 3]]+Dataset[[#This Row],[2023/24 From - Spending review Topic 4]]+Dataset[[#This Row],[2023/24 From - Other reallocations]]","v":0},{"$f":"Dataset[[#This Row],[2024/25 From - Spending review Topic 1]]+Dataset[[#This Row],[2024/25 From - Spending review Topic 2]]+Dataset[[#This Row],[2024/25 From - Spending review Topic 3]]+Dataset[[#This Row],[2024/25 From - Spending review Topic 4]]+Dataset[[#This Row],[2024/25 From - Other reallocations]]","v":0},{"$f":"Dataset[[#This Row],[2025/26 From - Spending review Topic 1]]+Dataset[[#This Row],[2025/26 From - Spending review Topic 2]]+Dataset[[#This Row],[2025/26 From - Spending review Topic 3]]+Dataset[[#This Row],[2025/26 From - Spending review Topic 4]]+Dataset[[#This Row],[2025/26 From - Other reallocations]]","v":0},{"$f":"Dataset[[#This Row],[2023/24 To - Spending review Topic 1]]+Dataset[[#This Row],[2023/24 To - Spending review Topic 2]]+Dataset[[#This Row],[2023/24 To - Spending review Topic 3]]+Dataset[[#This Row],[2023/24 To - Spending review Topic 4]]+Dataset[[#This Row],[2023/24 To - Other reallocations]]","v":0},{"$f":"Dataset[[#This Row],[2024/25 To - Spending review Topic 1]]+Dataset[[#This Row],[2024/25 To - Spending review Topic 2]]+Dataset[[#This Row],[2024/25 To - Spending review Topic 3]]+Dataset[[#This Row],[2024/25 To - Spending review Topic 4]]+Dataset[[#This Row],[2024/25 To - Other reallocations]]","v":0},{"$f":"Dataset[[#This Row],[2025/26 To - Spending review Topic 1]]+Dataset[[#This Row],[2025/26 To - Spending review Topic 2]]+Dataset[[#This Row],[2025/26 To - Spending review Topic 3]]+Dataset[[#This Row],[2025/26 To - Spending review Topic 4]]+Dataset[[#This Row],[2025/26 To - Other reallocations]]","v":0},{"$f":"Dataset[[#This Row],[2023/24 Baseline]]+Dataset[[#This Row],[2023/24 From - Total]]+Dataset[[#This Row],[2023/24 To - Total]]","v":0},{"$f":"Dataset[[#This Row],[2024/25 Baseline]]+Dataset[[#This Row],[2024/25 From - Total]]+Dataset[[#This Row],[2024/25 To - Total]]","v":0},{"$f":"Dataset[[#This Row],[2025/26 Baseline]]+Dataset[[#This Row],[2025/26 From - Total]]+Dataset[[#This Row],[2025/26 To - Total]]","v":0}]
["NAT|Non-transfer item","2|Heritage assets","2023_24","MTEF2023",2,2,2,997,380,"02","02","02","000997","000380","02|02|02",2,3,13,58,62,"02|03|13|58|62","National","Parliament","Legislation and Oversight","National Council of Provinces","Non-transfer item","Capital","Payments for capital assets","Heritage assets","Heritage assets","Heritage assets","General public services","Executive and legislative organs","NAT",0,0,0,0,0,0,0,0,0,0,0,null,null,null,null,null,null,null,null,null,null,null,null,null,null,null,null,null,null,null,null,null,null,null,null,null,null,null,null,null,null,{"$f":"Dataset[[#This Row],[2023/24 From - Spending review Topic 1]]+Dataset[[#This Row],[2023/24 From - Spending review Topic 2]]+Dataset[[#This Row],[2023/24 From - Spending review Topic 3]]+Dataset[[#This Row],[2023/24 From - Spending review Topic 4]]+Dataset[[#This Row],[2023/24 From - Other reallocations]]","v":0},{"$f":"Dataset[[#This Row],[2024/25 From - Spending review Topic 1]]+Dataset[[#This Row],[2024/25 From - Spending review Topic 2]]+Dataset[[#This Row],[2024/25 From - Spending review Topic 3]]+Dataset[[#This Row],[2024/25 From - Spending review Topic 4]]+Dataset[[#This Row],[2024/25 From - Other reallocations]]","v":0},{"$f":"Dataset[[#This Row],[2025/26 From - Spending review Topic 1]]+Dataset[[#This Row],[2025/26 From - Spending review Topic 2]]+Dataset[[#This Row],[2025/26 From - Spending review Topic 3]]+Dataset[[#This Row],[2025/26 From - Spending review Topic 4]]+Dataset[[#This Row],[2025/26 From - Other reallocations]]","v":0},{"$f":"Dataset[[#This Row],[2023/24 To - Spending review Topic 1]]+Dataset[[#This Row],[2023/24 To - Spending review Topic 2]]+Dataset[[#This Row],[2023/24 To - Spending review Topic 3]]+Dataset[[#This Row],[2023/24 To - Spending review Topic 4]]+Dataset[[#This Row],[2023/24 To - Other reallocations]]","v":0},{"$f":"Dataset[[#This Row],[2024/25 To - Spending review Topic 1]]+Dataset[[#This Row],[2024/25 To - Spending review Topic 2]]+Dataset[[#This Row],[2024/25 To - Spending review Topic 3]]+Dataset[[#This Row],[2024/25 To - Spending review Topic 4]]+Dataset[[#This Row],[2024/25 To - Other reallocations]]","v":0},{"$f":"Dataset[[#This Row],[2025/26 To - Spending review Topic 1]]+Dataset[[#This Row],[2025/26 To - Spending review Topic 2]]+Dataset[[#This Row],[2025/26 To - Spending review Topic 3]]+Dataset[[#This Row],[2025/26 To - Spending review Topic 4]]+Dataset[[#This Row],[2025/26 To - Other reallocations]]","v":0},{"$f":"Dataset[[#This Row],[2023/24 Baseline]]+Dataset[[#This Row],[2023/24 From - Total]]+Dataset[[#This Row],[2023/24 To - Total]]","v":0},{"$f":"Dataset[[#This Row],[2024/25 Baseline]]+Dataset[[#This Row],[2024/25 From - Total]]+Dataset[[#This Row],[2024/25 To - Total]]","v":0},{"$f":"Dataset[[#This Row],[2025/26 Baseline]]+Dataset[[#This Row],[2025/26 From - Total]]+Dataset[[#This Row],[2025/26 To - Total]]","v":0}]
["NAT|Non-transfer item","2|Specialised military assets","2023_24","MTEF2023",2,2,2,998,381,"02","02","02","000998","000381","02|02|02",2,3,14,59,63,"02|03|14|59|63","National","Parliament","Legislation and Oversight","National Council of Provinces","Non-transfer item","Capital","Payments for capital assets","Specialised military assets","Specialised military assets","Specialised military assets","General public services","Executive and legislative organs","NAT",0,0,0,0,0,0,0,0,0,0,0,null,null,null,null,null,null,null,null,null,null,null,null,null,null,null,null,null,null,null,null,null,null,null,null,null,null,null,null,null,null,{"$f":"Dataset[[#This Row],[2023/24 From - Spending review Topic 1]]+Dataset[[#This Row],[2023/24 From - Spending review Topic 2]]+Dataset[[#This Row],[2023/24 From - Spending review Topic 3]]+Dataset[[#This Row],[2023/24 From - Spending review Topic 4]]+Dataset[[#This Row],[2023/24 From - Other reallocations]]","v":0},{"$f":"Dataset[[#This Row],[2024/25 From - Spending review Topic 1]]+Dataset[[#This Row],[2024/25 From - Spending review Topic 2]]+Dataset[[#This Row],[2024/25 From - Spending review Topic 3]]+Dataset[[#This Row],[2024/25 From - Spending review Topic 4]]+Dataset[[#This Row],[2024/25 From - Other reallocations]]","v":0},{"$f":"Dataset[[#This Row],[2025/26 From - Spending review Topic 1]]+Dataset[[#This Row],[2025/26 From - Spending review Topic 2]]+Dataset[[#This Row],[2025/26 From - Spending review Topic 3]]+Dataset[[#This Row],[2025/26 From - Spending review Topic 4]]+Dataset[[#This Row],[2025/26 From - Other reallocations]]","v":0},{"$f":"Dataset[[#This Row],[2023/24 To - Spending review Topic 1]]+Dataset[[#This Row],[2023/24 To - Spending review Topic 2]]+Dataset[[#This Row],[2023/24 To - Spending review Topic 3]]+Dataset[[#This Row],[2023/24 To - Spending review Topic 4]]+Dataset[[#This Row],[2023/24 To - Other reallocations]]","v":0},{"$f":"Dataset[[#This Row],[2024/25 To - Spending review Topic 1]]+Dataset[[#This Row],[2024/25 To - Spending review Topic 2]]+Dataset[[#This Row],[2024/25 To - Spending review Topic 3]]+Dataset[[#This Row],[2024/25 To - Spending review Topic 4]]+Dataset[[#This Row],[2024/25 To - Other reallocations]]","v":0},{"$f":"Dataset[[#This Row],[2025/26 To - Spending review Topic 1]]+Dataset[[#This Row],[2025/26 To - Spending review Topic 2]]+Dataset[[#This Row],[2025/26 To - Spending review Topic 3]]+Dataset[[#This Row],[2025/26 To - Spending review Topic 4]]+Dataset[[#This Row],[2025/26 To - Other reallocations]]","v":0},{"$f":"Dataset[[#This Row],[2023/24 Baseline]]+Dataset[[#This Row],[2023/24 From - Total]]+Dataset[[#This Row],[2023/24 To - Total]]","v":0},{"$f":"Dataset[[#This Row],[2024/25 Baseline]]+Dataset[[#This Row],[2024/25 From - Total]]+Dataset[[#This Row],[2024/25 To - Total]]","v":0},{"$f":"Dataset[[#This Row],[2025/26 Baseline]]+Dataset[[#This Row],[2025/26 From - Total]]+Dataset[[#This Row],[2025/26 To - Total]]","v":0}]
["NAT|Non-transfer item","2|Biological assets","2023_24","MTEF2023",2,2,2,999,382,"02","02","02","000999","000382","02|02|02",2,3,15,60,64,"02|03|15|60|64","National","Parliament","Legislation and Oversight","National Council of Provinces","Non-transfer item","Capital","Payments for capital assets","Biological assets","Biological assets","Biological assets","General public services","Executive and legislative organs","NAT",0,0,0,0,0,0,0,0,0,0,0,null,null,null,null,null,null,null,null,null,null,null,null,null,null,null,null,null,null,null,null,null,null,null,null,null,null,null,null,null,null,{"$f":"Dataset[[#This Row],[2023/24 From - Spending review Topic 1]]+Dataset[[#This Row],[2023/24 From - Spending review Topic 2]]+Dataset[[#This Row],[2023/24 From - Spending review Topic 3]]+Dataset[[#This Row],[2023/24 From - Spending review Topic 4]]+Dataset[[#This Row],[2023/24 From - Other reallocations]]","v":0},{"$f":"Dataset[[#This Row],[2024/25 From - Spending review Topic 1]]+Dataset[[#This Row],[2024/25 From - Spending review Topic 2]]+Dataset[[#This Row],[2024/25 From - Spending review Topic 3]]+Dataset[[#This Row],[2024/25 From - Spending review Topic 4]]+Dataset[[#This Row],[2024/25 From - Other reallocations]]","v":0},{"$f":"Dataset[[#This Row],[2025/26 From - Spending review Topic 1]]+Dataset[[#This Row],[2025/26 From - Spending review Topic 2]]+Dataset[[#This Row],[2025/26 From - Spending review Topic 3]]+Dataset[[#This Row],[2025/26 From - Spending review Topic 4]]+Dataset[[#This Row],[2025/26 From - Other reallocations]]","v":0},{"$f":"Dataset[[#This Row],[2023/24 To - Spending review Topic 1]]+Dataset[[#This Row],[2023/24 To - Spending review Topic 2]]+Dataset[[#This Row],[2023/24 To - Spending review Topic 3]]+Dataset[[#This Row],[2023/24 To - Spending review Topic 4]]+Dataset[[#This Row],[2023/24 To - Other reallocations]]","v":0},{"$f":"Dataset[[#This Row],[2024/25 To - Spending review Topic 1]]+Dataset[[#This Row],[2024/25 To - Spending review Topic 2]]+Dataset[[#This Row],[2024/25 To - Spending review Topic 3]]+Dataset[[#This Row],[2024/25 To - Spending review Topic 4]]+Dataset[[#This Row],[2024/25 To - Other reallocations]]","v":0},{"$f":"Dataset[[#This Row],[2025/26 To - Spending review Topic 1]]+Dataset[[#This Row],[2025/26 To - Spending review Topic 2]]+Dataset[[#This Row],[2025/26 To - Spending review Topic 3]]+Dataset[[#This Row],[2025/26 To - Spending review Topic 4]]+Dataset[[#This Row],[2025/26 To - Other reallocations]]","v":0},{"$f":"Dataset[[#This Row],[2023/24 Baseline]]+Dataset[[#This Row],[2023/24 From - Total]]+Dataset[[#This Row],[2023/24 To - Total]]","v":0},{"$f":"Dataset[[#This Row],[2024/25 Baseline]]+Dataset[[#This Row],[2024/25 From - Total]]+Dataset[[#This Row],[2024/25 To - Total]]","v":0},{"$f":"Dataset[[#This Row],[2025/26 Baseline]]+Dataset[[#This Row],[2025/26 From - Total]]+Dataset[[#This Row],[2025/26 To - Total]]","v":0}]
["NAT|Non-transfer item","2|Land and sub-soil assets","2023_24","MTEF2023",2,2,2,1000,383,"02","02","02","001000","000383","02|02|02",2,3,16,61,65,"02|03|16|61|65","National","Parliament","Legislation and Oversight","National Council of Provinces","Non-transfer item","Capital","Payments for capital assets","Land and sub-soil assets","Land and sub-soil assets","Land and sub-soil assets","General public services","Executive and legislative organs","NAT",0,0,0,0,0,0,0,0,0,0,0,null,null,null,null,null,null,null,null,null,null,null,null,null,null,null,null,null,null,null,null,null,null,null,null,null,null,null,null,null,null,{"$f":"Dataset[[#This Row],[2023/24 From - Spending review Topic 1]]+Dataset[[#This Row],[2023/24 From - Spending review Topic 2]]+Dataset[[#This Row],[2023/24 From - Spending review Topic 3]]+Dataset[[#This Row],[2023/24 From - Spending review Topic 4]]+Dataset[[#This Row],[2023/24 From - Other reallocations]]","v":0},{"$f":"Dataset[[#This Row],[2024/25 From - Spending review Topic 1]]+Dataset[[#This Row],[2024/25 From - Spending review Topic 2]]+Dataset[[#This Row],[2024/25 From - Spending review Topic 3]]+Dataset[[#This Row],[2024/25 From - Spending review Topic 4]]+Dataset[[#This Row],[2024/25 From - Other reallocations]]","v":0},{"$f":"Dataset[[#This Row],[2025/26 From - Spending review Topic 1]]+Dataset[[#This Row],[2025/26 From - Spending review Topic 2]]+Dataset[[#This Row],[2025/26 From - Spending review Topic 3]]+Dataset[[#This Row],[2025/26 From - Spending review Topic 4]]+Dataset[[#This Row],[2025/26 From - Other reallocations]]","v":0},{"$f":"Dataset[[#This Row],[2023/24 To - Spending review Topic 1]]+Dataset[[#This Row],[2023/24 To - Spending review Topic 2]]+Dataset[[#This Row],[2023/24 To - Spending review Topic 3]]+Dataset[[#This Row],[2023/24 To - Spending review Topic 4]]+Dataset[[#This Row],[2023/24 To - Other reallocations]]","v":0},{"$f":"Dataset[[#This Row],[2024/25 To - Spending review Topic 1]]+Dataset[[#This Row],[2024/25 To - Spending review Topic 2]]+Dataset[[#This Row],[2024/25 To - Spending review Topic 3]]+Dataset[[#This Row],[2024/25 To - Spending review Topic 4]]+Dataset[[#This Row],[2024/25 To - Other reallocations]]","v":0},{"$f":"Dataset[[#This Row],[2025/26 To - Spending review Topic 1]]+Dataset[[#This Row],[2025/26 To - Spending review Topic 2]]+Dataset[[#This Row],[2025/26 To - Spending review Topic 3]]+Dataset[[#This Row],[2025/26 To - Spending review Topic 4]]+Dataset[[#This Row],[2025/26 To - Other reallocations]]","v":0},{"$f":"Dataset[[#This Row],[2023/24 Baseline]]+Dataset[[#This Row],[2023/24 From - Total]]+Dataset[[#This Row],[2023/24 To - Total]]","v":0},{"$f":"Dataset[[#This Row],[2024/25 Baseline]]+Dataset[[#This Row],[2024/25 From - Total]]+Dataset[[#This Row],[2024/25 To - Total]]","v":0},{"$f":"Dataset[[#This Row],[2025/26 Baseline]]+Dataset[[#This Row],[2025/26 From - Total]]+Dataset[[#This Row],[2025/26 To - Total]]","v":0}]
["NAT|Non-transfer item","2|Software and other intangible assets","2023_24","MTEF2023",2,2,2,1001,384,"02","02","02","001001","000384","02|02|02",2,3,17,62,66,"02|03|17|62|66","National","Parliament","Legislation and Oversight","National Council of Provinces","Non-transfer item","Capital","Payments for capital assets","Software and other intangible assets","Software and other intangible assets","Software and other intangible assets","General public services","Executive and legislative organs","NAT",0,0,0,0,0,0,0,0,0,0,0,null,null,null,null,null,null,null,null,null,null,null,null,null,null,null,null,null,null,null,null,null,null,null,null,null,null,null,null,null,null,{"$f":"Dataset[[#This Row],[2023/24 From - Spending review Topic 1]]+Dataset[[#This Row],[2023/24 From - Spending review Topic 2]]+Dataset[[#This Row],[2023/24 From - Spending review Topic 3]]+Dataset[[#This Row],[2023/24 From - Spending review Topic 4]]+Dataset[[#This Row],[2023/24 From - Other reallocations]]","v":0},{"$f":"Dataset[[#This Row],[2024/25 From - Spending review Topic 1]]+Dataset[[#This Row],[2024/25 From - Spending review Topic 2]]+Dataset[[#This Row],[2024/25 From - Spending review Topic 3]]+Dataset[[#This Row],[2024/25 From - Spending review Topic 4]]+Dataset[[#This Row],[2024/25 From - Other reallocations]]","v":0},{"$f":"Dataset[[#This Row],[2025/26 From - Spending review Topic 1]]+Dataset[[#This Row],[2025/26 From - Spending review Topic 2]]+Dataset[[#This Row],[2025/26 From - Spending review Topic 3]]+Dataset[[#This Row],[2025/26 From - Spending review Topic 4]]+Dataset[[#This Row],[2025/26 From - Other reallocations]]","v":0},{"$f":"Dataset[[#This Row],[2023/24 To - Spending review Topic 1]]+Dataset[[#This Row],[2023/24 To - Spending review Topic 2]]+Dataset[[#This Row],[2023/24 To - Spending review Topic 3]]+Dataset[[#This Row],[2023/24 To - Spending review Topic 4]]+Dataset[[#This Row],[2023/24 To - Other reallocations]]","v":0},{"$f":"Dataset[[#This Row],[2024/25 To - Spending review Topic 1]]+Dataset[[#This Row],[2024/25 To - Spending review Topic 2]]+Dataset[[#This Row],[2024/25 To - Spending review Topic 3]]+Dataset[[#This Row],[2024/25 To - Spending review Topic 4]]+Dataset[[#This Row],[2024/25 To - Other reallocations]]","v":0},{"$f":"Dataset[[#This Row],[2025/26 To - Spending review Topic 1]]+Dataset[[#This Row],[2025/26 To - Spending review Topic 2]]+Dataset[[#This Row],[2025/26 To - Spending review Topic 3]]+Dataset[[#This Row],[2025/26 To - Spending review Topic 4]]+Dataset[[#This Row],[2025/26 To - Other reallocations]]","v":0},{"$f":"Dataset[[#This Row],[2023/24 Baseline]]+Dataset[[#This Row],[2023/24 From - Total]]+Dataset[[#This Row],[2023/24 To - Total]]","v":0},{"$f":"Dataset[[#This Row],[2024/25 Baseline]]+Dataset[[#This Row],[2024/25 From - Total]]+Dataset[[#This Row],[2024/25 To - Total]]","v":0},{"$f":"Dataset[[#This Row],[2025/26 Baseline]]+Dataset[[#This Row],[2025/26 From - Total]]+Dataset[[#This Row],[2025/26 To - Total]]","v":0}]
["NAT|Non-transfer item","2|Payments for financial assets","2023_24","MTEF2023",2,2,2,1002,385,"02","02","02","001002","000385","02|02|02",3,4,18,63,67,"03|04|18|63|67","National","Parliament","Legislation and Oversight","National Council of Provinces","Non-transfer item","Payments for financial assets","Payments for financial assets","Payments for financial assets","Payments for financial assets","Payments for financial assets","General public services","Executive and legislative organs","NAT",0,0,0,0,0,0,0,0,0,0,0,null,null,null,null,null,null,null,null,null,null,null,null,null,null,null,null,null,null,null,null,null,null,null,null,null,null,null,null,null,null,{"$f":"Dataset[[#This Row],[2023/24 From - Spending review Topic 1]]+Dataset[[#This Row],[2023/24 From - Spending review Topic 2]]+Dataset[[#This Row],[2023/24 From - Spending review Topic 3]]+Dataset[[#This Row],[2023/24 From - Spending review Topic 4]]+Dataset[[#This Row],[2023/24 From - Other reallocations]]","v":0},{"$f":"Dataset[[#This Row],[2024/25 From - Spending review Topic 1]]+Dataset[[#This Row],[2024/25 From - Spending review Topic 2]]+Dataset[[#This Row],[2024/25 From - Spending review Topic 3]]+Dataset[[#This Row],[2024/25 From - Spending review Topic 4]]+Dataset[[#This Row],[2024/25 From - Other reallocations]]","v":0},{"$f":"Dataset[[#This Row],[2025/26 From - Spending review Topic 1]]+Dataset[[#This Row],[2025/26 From - Spending review Topic 2]]+Dataset[[#This Row],[2025/26 From - Spending review Topic 3]]+Dataset[[#This Row],[2025/26 From - Spending review Topic 4]]+Dataset[[#This Row],[2025/26 From - Other reallocations]]","v":0},{"$f":"Dataset[[#This Row],[2023/24 To - Spending review Topic 1]]+Dataset[[#This Row],[2023/24 To - Spending review Topic 2]]+Dataset[[#This Row],[2023/24 To - Spending review Topic 3]]+Dataset[[#This Row],[2023/24 To - Spending review Topic 4]]+Dataset[[#This Row],[2023/24 To - Other reallocations]]","v":0},{"$f":"Dataset[[#This Row],[2024/25 To - Spending review Topic 1]]+Dataset[[#This Row],[2024/25 To - Spending review Topic 2]]+Dataset[[#This Row],[2024/25 To - Spending review Topic 3]]+Dataset[[#This Row],[2024/25 To - Spending review Topic 4]]+Dataset[[#This Row],[2024/25 To - Other reallocations]]","v":0},{"$f":"Dataset[[#This Row],[2025/26 To - Spending review Topic 1]]+Dataset[[#This Row],[2025/26 To - Spending review Topic 2]]+Dataset[[#This Row],[2025/26 To - Spending review Topic 3]]+Dataset[[#This Row],[2025/26 To - Spending review Topic 4]]+Dataset[[#This Row],[2025/26 To - Other reallocations]]","v":0},{"$f":"Dataset[[#This Row],[2023/24 Baseline]]+Dataset[[#This Row],[2023/24 From - Total]]+Dataset[[#This Row],[2023/24 To - Total]]","v":0},{"$f":"Dataset[[#This Row],[2024/25 Baseline]]+Dataset[[#This Row],[2024/25 From - Total]]+Dataset[[#This Row],[2024/25 To - Total]]","v":0},{"$f":"Dataset[[#This Row],[2025/26 Baseline]]+Dataset[[#This Row],[2025/26 From - Total]]+Dataset[[#This Row],[2025/26 To - Total]]","v":0}]
["NAT|Non-transfer item","2|Salaries and wages","2023_24","MTEF2023",2,2,3,1003,386,"02","02","03","001003","000386","02|02|03",1,1,1,1,1,"01|01|01|01|01","National","Parliament","Legislation and Oversight","Public Participation and external relations: Shared Services","Non-transfer item","Current","Current payments","Compensation of employees","Salaries and wages","Salaries and wages","General public services","Executive and legislative organs","NAT",369452,352640,356898,362366,362366,362366,0,363621,363320,379635,396643,null,null,null,null,null,null,null,null,null,null,null,null,null,null,null,null,null,null,null,null,null,null,null,null,null,null,null,null,null,null,{"$f":"Dataset[[#This Row],[2023/24 From - Spending review Topic 1]]+Dataset[[#This Row],[2023/24 From - Spending review Topic 2]]+Dataset[[#This Row],[2023/24 From - Spending review Topic 3]]+Dataset[[#This Row],[2023/24 From - Spending review Topic 4]]+Dataset[[#This Row],[2023/24 From - Other reallocations]]","v":0},{"$f":"Dataset[[#This Row],[2024/25 From - Spending review Topic 1]]+Dataset[[#This Row],[2024/25 From - Spending review Topic 2]]+Dataset[[#This Row],[2024/25 From - Spending review Topic 3]]+Dataset[[#This Row],[2024/25 From - Spending review Topic 4]]+Dataset[[#This Row],[2024/25 From - Other reallocations]]","v":0},{"$f":"Dataset[[#This Row],[2025/26 From - Spending review Topic 1]]+Dataset[[#This Row],[2025/26 From - Spending review Topic 2]]+Dataset[[#This Row],[2025/26 From - Spending review Topic 3]]+Dataset[[#This Row],[2025/26 From - Spending review Topic 4]]+Dataset[[#This Row],[2025/26 From - Other reallocations]]","v":0},{"$f":"Dataset[[#This Row],[2023/24 To - Spending review Topic 1]]+Dataset[[#This Row],[2023/24 To - Spending review Topic 2]]+Dataset[[#This Row],[2023/24 To - Spending review Topic 3]]+Dataset[[#This Row],[2023/24 To - Spending review Topic 4]]+Dataset[[#This Row],[2023/24 To - Other reallocations]]","v":0},{"$f":"Dataset[[#This Row],[2024/25 To - Spending review Topic 1]]+Dataset[[#This Row],[2024/25 To - Spending review Topic 2]]+Dataset[[#This Row],[2024/25 To - Spending review Topic 3]]+Dataset[[#This Row],[2024/25 To - Spending review Topic 4]]+Dataset[[#This Row],[2024/25 To - Other reallocations]]","v":0},{"$f":"Dataset[[#This Row],[2025/26 To - Spending review Topic 1]]+Dataset[[#This Row],[2025/26 To - Spending review Topic 2]]+Dataset[[#This Row],[2025/26 To - Spending review Topic 3]]+Dataset[[#This Row],[2025/26 To - Spending review Topic 4]]+Dataset[[#This Row],[2025/26 To - Other reallocations]]","v":0},{"$f":"Dataset[[#This Row],[2023/24 Baseline]]+Dataset[[#This Row],[2023/24 From - Total]]+Dataset[[#This Row],[2023/24 To - Total]]","v":363320},{"$f":"Dataset[[#This Row],[2024/25 Baseline]]+Dataset[[#This Row],[2024/25 From - Total]]+Dataset[[#This Row],[2024/25 To - Total]]","v":379635},{"$f":"Dataset[[#This Row],[2025/26 Baseline]]+Dataset[[#This Row],[2025/26 From - Total]]+Dataset[[#This Row],[2025/26 To - Total]]","v":396643}]
["NAT|Non-transfer item","2|Social contributions","2023_24","MTEF2023",2,2,3,1004,387,"02","02","03","001004","000387","02|02|03",1,1,1,2,2,"01|01|01|02|02","National","Parliament","Legislation and Oversight","Public Participation and external relations: Shared Services","Non-transfer item","Current","Current payments","Compensation of employees","Social contributions","Social contributions","General public services","Executive and legislative organs","NAT",0,0,0,0,0,0,0,0,0,0,0,null,null,null,null,null,null,null,null,null,null,null,null,null,null,null,null,null,null,null,null,null,null,null,null,null,null,null,null,null,null,{"$f":"Dataset[[#This Row],[2023/24 From - Spending review Topic 1]]+Dataset[[#This Row],[2023/24 From - Spending review Topic 2]]+Dataset[[#This Row],[2023/24 From - Spending review Topic 3]]+Dataset[[#This Row],[2023/24 From - Spending review Topic 4]]+Dataset[[#This Row],[2023/24 From - Other reallocations]]","v":0},{"$f":"Dataset[[#This Row],[2024/25 From - Spending review Topic 1]]+Dataset[[#This Row],[2024/25 From - Spending review Topic 2]]+Dataset[[#This Row],[2024/25 From - Spending review Topic 3]]+Dataset[[#This Row],[2024/25 From - Spending review Topic 4]]+Dataset[[#This Row],[2024/25 From - Other reallocations]]","v":0},{"$f":"Dataset[[#This Row],[2025/26 From - Spending review Topic 1]]+Dataset[[#This Row],[2025/26 From - Spending review Topic 2]]+Dataset[[#This Row],[2025/26 From - Spending review Topic 3]]+Dataset[[#This Row],[2025/26 From - Spending review Topic 4]]+Dataset[[#This Row],[2025/26 From - Other reallocations]]","v":0},{"$f":"Dataset[[#This Row],[2023/24 To - Spending review Topic 1]]+Dataset[[#This Row],[2023/24 To - Spending review Topic 2]]+Dataset[[#This Row],[2023/24 To - Spending review Topic 3]]+Dataset[[#This Row],[2023/24 To - Spending review Topic 4]]+Dataset[[#This Row],[2023/24 To - Other reallocations]]","v":0},{"$f":"Dataset[[#This Row],[2024/25 To - Spending review Topic 1]]+Dataset[[#This Row],[2024/25 To - Spending review Topic 2]]+Dataset[[#This Row],[2024/25 To - Spending review Topic 3]]+Dataset[[#This Row],[2024/25 To - Spending review Topic 4]]+Dataset[[#This Row],[2024/25 To - Other reallocations]]","v":0},{"$f":"Dataset[[#This Row],[2025/26 To - Spending review Topic 1]]+Dataset[[#This Row],[2025/26 To - Spending review Topic 2]]+Dataset[[#This Row],[2025/26 To - Spending review Topic 3]]+Dataset[[#This Row],[2025/26 To - Spending review Topic 4]]+Dataset[[#This Row],[2025/26 To - Other reallocations]]","v":0},{"$f":"Dataset[[#This Row],[2023/24 Baseline]]+Dataset[[#This Row],[2023/24 From - Total]]+Dataset[[#This Row],[2023/24 To - Total]]","v":0},{"$f":"Dataset[[#This Row],[2024/25 Baseline]]+Dataset[[#This Row],[2024/25 From - Total]]+Dataset[[#This Row],[2024/25 To - Total]]","v":0},{"$f":"Dataset[[#This Row],[2025/26 Baseline]]+Dataset[[#This Row],[2025/26 From - Total]]+Dataset[[#This Row],[2025/26 To - Total]]","v":0}]
["NAT|Non-transfer item","2|Administrative fees","2023_24","MTEF2023",2,2,3,1005,388,"02","02","03","001005","000388","02|02|03",1,1,2,3,3,"01|01|02|03|03","National","Parliament","Legislation and Oversight","Public Participation and external relations: Shared Services","Non-transfer item","Current","Current payments","Goods and services","Administrative fees","Administrative fees","General public services","Executive and legislative organs","NAT",0,0,0,0,0,0,0,0,0,0,0,null,null,null,null,null,null,null,null,null,null,null,null,null,null,null,null,null,null,null,null,null,null,null,null,null,null,null,null,null,null,{"$f":"Dataset[[#This Row],[2023/24 From - Spending review Topic 1]]+Dataset[[#This Row],[2023/24 From - Spending review Topic 2]]+Dataset[[#This Row],[2023/24 From - Spending review Topic 3]]+Dataset[[#This Row],[2023/24 From - Spending review Topic 4]]+Dataset[[#This Row],[2023/24 From - Other reallocations]]","v":0},{"$f":"Dataset[[#This Row],[2024/25 From - Spending review Topic 1]]+Dataset[[#This Row],[2024/25 From - Spending review Topic 2]]+Dataset[[#This Row],[2024/25 From - Spending review Topic 3]]+Dataset[[#This Row],[2024/25 From - Spending review Topic 4]]+Dataset[[#This Row],[2024/25 From - Other reallocations]]","v":0},{"$f":"Dataset[[#This Row],[2025/26 From - Spending review Topic 1]]+Dataset[[#This Row],[2025/26 From - Spending review Topic 2]]+Dataset[[#This Row],[2025/26 From - Spending review Topic 3]]+Dataset[[#This Row],[2025/26 From - Spending review Topic 4]]+Dataset[[#This Row],[2025/26 From - Other reallocations]]","v":0},{"$f":"Dataset[[#This Row],[2023/24 To - Spending review Topic 1]]+Dataset[[#This Row],[2023/24 To - Spending review Topic 2]]+Dataset[[#This Row],[2023/24 To - Spending review Topic 3]]+Dataset[[#This Row],[2023/24 To - Spending review Topic 4]]+Dataset[[#This Row],[2023/24 To - Other reallocations]]","v":0},{"$f":"Dataset[[#This Row],[2024/25 To - Spending review Topic 1]]+Dataset[[#This Row],[2024/25 To - Spending review Topic 2]]+Dataset[[#This Row],[2024/25 To - Spending review Topic 3]]+Dataset[[#This Row],[2024/25 To - Spending review Topic 4]]+Dataset[[#This Row],[2024/25 To - Other reallocations]]","v":0},{"$f":"Dataset[[#This Row],[2025/26 To - Spending review Topic 1]]+Dataset[[#This Row],[2025/26 To - Spending review Topic 2]]+Dataset[[#This Row],[2025/26 To - Spending review Topic 3]]+Dataset[[#This Row],[2025/26 To - Spending review Topic 4]]+Dataset[[#This Row],[2025/26 To - Other reallocations]]","v":0},{"$f":"Dataset[[#This Row],[2023/24 Baseline]]+Dataset[[#This Row],[2023/24 From - Total]]+Dataset[[#This Row],[2023/24 To - Total]]","v":0},{"$f":"Dataset[[#This Row],[2024/25 Baseline]]+Dataset[[#This Row],[2024/25 From - Total]]+Dataset[[#This Row],[2024/25 To - Total]]","v":0},{"$f":"Dataset[[#This Row],[2025/26 Baseline]]+Dataset[[#This Row],[2025/26 From - Total]]+Dataset[[#This Row],[2025/26 To - Total]]","v":0}]
["NAT|Non-transfer item","2|Advertising","2023_24","MTEF2023",2,2,3,1006,389,"02","02","03","001006","000389","02|02|03",1,1,2,4,4,"01|01|02|04|04","National","Parliament","Legislation and Oversight","Public Participation and external relations: Shared Services","Non-transfer item","Current","Current payments","Goods and services","Advertising","Advertising","General public services","Executive and legislative organs","NAT",1854,932,1973,2242,2242,2242,0,2304,2313,2419,2527,null,null,null,null,null,null,null,null,null,null,null,null,null,null,null,null,null,null,null,null,null,null,null,null,null,null,null,null,null,null,{"$f":"Dataset[[#This Row],[2023/24 From - Spending review Topic 1]]+Dataset[[#This Row],[2023/24 From - Spending review Topic 2]]+Dataset[[#This Row],[2023/24 From - Spending review Topic 3]]+Dataset[[#This Row],[2023/24 From - Spending review Topic 4]]+Dataset[[#This Row],[2023/24 From - Other reallocations]]","v":0},{"$f":"Dataset[[#This Row],[2024/25 From - Spending review Topic 1]]+Dataset[[#This Row],[2024/25 From - Spending review Topic 2]]+Dataset[[#This Row],[2024/25 From - Spending review Topic 3]]+Dataset[[#This Row],[2024/25 From - Spending review Topic 4]]+Dataset[[#This Row],[2024/25 From - Other reallocations]]","v":0},{"$f":"Dataset[[#This Row],[2025/26 From - Spending review Topic 1]]+Dataset[[#This Row],[2025/26 From - Spending review Topic 2]]+Dataset[[#This Row],[2025/26 From - Spending review Topic 3]]+Dataset[[#This Row],[2025/26 From - Spending review Topic 4]]+Dataset[[#This Row],[2025/26 From - Other reallocations]]","v":0},{"$f":"Dataset[[#This Row],[2023/24 To - Spending review Topic 1]]+Dataset[[#This Row],[2023/24 To - Spending review Topic 2]]+Dataset[[#This Row],[2023/24 To - Spending review Topic 3]]+Dataset[[#This Row],[2023/24 To - Spending review Topic 4]]+Dataset[[#This Row],[2023/24 To - Other reallocations]]","v":0},{"$f":"Dataset[[#This Row],[2024/25 To - Spending review Topic 1]]+Dataset[[#This Row],[2024/25 To - Spending review Topic 2]]+Dataset[[#This Row],[2024/25 To - Spending review Topic 3]]+Dataset[[#This Row],[2024/25 To - Spending review Topic 4]]+Dataset[[#This Row],[2024/25 To - Other reallocations]]","v":0},{"$f":"Dataset[[#This Row],[2025/26 To - Spending review Topic 1]]+Dataset[[#This Row],[2025/26 To - Spending review Topic 2]]+Dataset[[#This Row],[2025/26 To - Spending review Topic 3]]+Dataset[[#This Row],[2025/26 To - Spending review Topic 4]]+Dataset[[#This Row],[2025/26 To - Other reallocations]]","v":0},{"$f":"Dataset[[#This Row],[2023/24 Baseline]]+Dataset[[#This Row],[2023/24 From - Total]]+Dataset[[#This Row],[2023/24 To - Total]]","v":2313},{"$f":"Dataset[[#This Row],[2024/25 Baseline]]+Dataset[[#This Row],[2024/25 From - Total]]+Dataset[[#This Row],[2024/25 To - Total]]","v":2419},{"$f":"Dataset[[#This Row],[2025/26 Baseline]]+Dataset[[#This Row],[2025/26 From - Total]]+Dataset[[#This Row],[2025/26 To - Total]]","v":2527}]
["NAT|Non-transfer item","2|Minor assets","2023_24","MTEF2023",2,2,3,1007,390,"02","02","03","001007","000390","02|02|03",1,1,2,5,5,"01|01|02|05|05","National","Parliament","Legislation and Oversight","Public Participation and external relations: Shared Services","Non-transfer item","Current","Current payments","Goods and services","Minor assets","Minor assets","General public services","Executive and legislative organs","NAT",359,0,0,0,0,0,0,0,0,0,0,null,null,null,null,null,null,null,null,null,null,null,null,null,null,null,null,null,null,null,null,null,null,null,null,null,null,null,null,null,null,{"$f":"Dataset[[#This Row],[2023/24 From - Spending review Topic 1]]+Dataset[[#This Row],[2023/24 From - Spending review Topic 2]]+Dataset[[#This Row],[2023/24 From - Spending review Topic 3]]+Dataset[[#This Row],[2023/24 From - Spending review Topic 4]]+Dataset[[#This Row],[2023/24 From - Other reallocations]]","v":0},{"$f":"Dataset[[#This Row],[2024/25 From - Spending review Topic 1]]+Dataset[[#This Row],[2024/25 From - Spending review Topic 2]]+Dataset[[#This Row],[2024/25 From - Spending review Topic 3]]+Dataset[[#This Row],[2024/25 From - Spending review Topic 4]]+Dataset[[#This Row],[2024/25 From - Other reallocations]]","v":0},{"$f":"Dataset[[#This Row],[2025/26 From - Spending review Topic 1]]+Dataset[[#This Row],[2025/26 From - Spending review Topic 2]]+Dataset[[#This Row],[2025/26 From - Spending review Topic 3]]+Dataset[[#This Row],[2025/26 From - Spending review Topic 4]]+Dataset[[#This Row],[2025/26 From - Other reallocations]]","v":0},{"$f":"Dataset[[#This Row],[2023/24 To - Spending review Topic 1]]+Dataset[[#This Row],[2023/24 To - Spending review Topic 2]]+Dataset[[#This Row],[2023/24 To - Spending review Topic 3]]+Dataset[[#This Row],[2023/24 To - Spending review Topic 4]]+Dataset[[#This Row],[2023/24 To - Other reallocations]]","v":0},{"$f":"Dataset[[#This Row],[2024/25 To - Spending review Topic 1]]+Dataset[[#This Row],[2024/25 To - Spending review Topic 2]]+Dataset[[#This Row],[2024/25 To - Spending review Topic 3]]+Dataset[[#This Row],[2024/25 To - Spending review Topic 4]]+Dataset[[#This Row],[2024/25 To - Other reallocations]]","v":0},{"$f":"Dataset[[#This Row],[2025/26 To - Spending review Topic 1]]+Dataset[[#This Row],[2025/26 To - Spending review Topic 2]]+Dataset[[#This Row],[2025/26 To - Spending review Topic 3]]+Dataset[[#This Row],[2025/26 To - Spending review Topic 4]]+Dataset[[#This Row],[2025/26 To - Other reallocations]]","v":0},{"$f":"Dataset[[#This Row],[2023/24 Baseline]]+Dataset[[#This Row],[2023/24 From - Total]]+Dataset[[#This Row],[2023/24 To - Total]]","v":0},{"$f":"Dataset[[#This Row],[2024/25 Baseline]]+Dataset[[#This Row],[2024/25 From - Total]]+Dataset[[#This Row],[2024/25 To - Total]]","v":0},{"$f":"Dataset[[#This Row],[2025/26 Baseline]]+Dataset[[#This Row],[2025/26 From - Total]]+Dataset[[#This Row],[2025/26 To - Total]]","v":0}]
["NAT|Non-transfer item","2|Audit costs: External","2023_24","MTEF2023",2,2,3,1008,391,"02","02","03","001008","000391","02|02|03",1,1,2,6,6,"01|01|02|06|06","National","Parliament","Legislation and Oversight","Public Participation and external relations: Shared Services","Non-transfer item","Current","Current payments","Goods and services","Audit costs: External","Audit costs: External","General public services","Executive and legislative organs","NAT",0,0,0,0,0,0,0,0,0,0,0,null,null,null,null,null,null,null,null,null,null,null,null,null,null,null,null,null,null,null,null,null,null,null,null,null,null,null,null,null,null,{"$f":"Dataset[[#This Row],[2023/24 From - Spending review Topic 1]]+Dataset[[#This Row],[2023/24 From - Spending review Topic 2]]+Dataset[[#This Row],[2023/24 From - Spending review Topic 3]]+Dataset[[#This Row],[2023/24 From - Spending review Topic 4]]+Dataset[[#This Row],[2023/24 From - Other reallocations]]","v":0},{"$f":"Dataset[[#This Row],[2024/25 From - Spending review Topic 1]]+Dataset[[#This Row],[2024/25 From - Spending review Topic 2]]+Dataset[[#This Row],[2024/25 From - Spending review Topic 3]]+Dataset[[#This Row],[2024/25 From - Spending review Topic 4]]+Dataset[[#This Row],[2024/25 From - Other reallocations]]","v":0},{"$f":"Dataset[[#This Row],[2025/26 From - Spending review Topic 1]]+Dataset[[#This Row],[2025/26 From - Spending review Topic 2]]+Dataset[[#This Row],[2025/26 From - Spending review Topic 3]]+Dataset[[#This Row],[2025/26 From - Spending review Topic 4]]+Dataset[[#This Row],[2025/26 From - Other reallocations]]","v":0},{"$f":"Dataset[[#This Row],[2023/24 To - Spending review Topic 1]]+Dataset[[#This Row],[2023/24 To - Spending review Topic 2]]+Dataset[[#This Row],[2023/24 To - Spending review Topic 3]]+Dataset[[#This Row],[2023/24 To - Spending review Topic 4]]+Dataset[[#This Row],[2023/24 To - Other reallocations]]","v":0},{"$f":"Dataset[[#This Row],[2024/25 To - Spending review Topic 1]]+Dataset[[#This Row],[2024/25 To - Spending review Topic 2]]+Dataset[[#This Row],[2024/25 To - Spending review Topic 3]]+Dataset[[#This Row],[2024/25 To - Spending review Topic 4]]+Dataset[[#This Row],[2024/25 To - Other reallocations]]","v":0},{"$f":"Dataset[[#This Row],[2025/26 To - Spending review Topic 1]]+Dataset[[#This Row],[2025/26 To - Spending review Topic 2]]+Dataset[[#This Row],[2025/26 To - Spending review Topic 3]]+Dataset[[#This Row],[2025/26 To - Spending review Topic 4]]+Dataset[[#This Row],[2025/26 To - Other reallocations]]","v":0},{"$f":"Dataset[[#This Row],[2023/24 Baseline]]+Dataset[[#This Row],[2023/24 From - Total]]+Dataset[[#This Row],[2023/24 To - Total]]","v":0},{"$f":"Dataset[[#This Row],[2024/25 Baseline]]+Dataset[[#This Row],[2024/25 From - Total]]+Dataset[[#This Row],[2024/25 To - Total]]","v":0},{"$f":"Dataset[[#This Row],[2025/26 Baseline]]+Dataset[[#This Row],[2025/26 From - Total]]+Dataset[[#This Row],[2025/26 To - Total]]","v":0}]
["NAT|Non-transfer item","2|Bursaries: Employees","2023_24","MTEF2023",2,2,3,1009,392,"02","02","03","001009","000392","02|02|03",1,1,2,7,7,"01|01|02|07|07","National","Parliament","Legislation and Oversight","Public Participation and external relations: Shared Services","Non-transfer item","Current","Current payments","Goods and services","Bursaries: Employees","Bursaries: Employees","General public services","Executive and legislative organs","NAT",0,0,0,0,0,0,0,0,0,0,0,null,null,null,null,null,null,null,null,null,null,null,null,null,null,null,null,null,null,null,null,null,null,null,null,null,null,null,null,null,null,{"$f":"Dataset[[#This Row],[2023/24 From - Spending review Topic 1]]+Dataset[[#This Row],[2023/24 From - Spending review Topic 2]]+Dataset[[#This Row],[2023/24 From - Spending review Topic 3]]+Dataset[[#This Row],[2023/24 From - Spending review Topic 4]]+Dataset[[#This Row],[2023/24 From - Other reallocations]]","v":0},{"$f":"Dataset[[#This Row],[2024/25 From - Spending review Topic 1]]+Dataset[[#This Row],[2024/25 From - Spending review Topic 2]]+Dataset[[#This Row],[2024/25 From - Spending review Topic 3]]+Dataset[[#This Row],[2024/25 From - Spending review Topic 4]]+Dataset[[#This Row],[2024/25 From - Other reallocations]]","v":0},{"$f":"Dataset[[#This Row],[2025/26 From - Spending review Topic 1]]+Dataset[[#This Row],[2025/26 From - Spending review Topic 2]]+Dataset[[#This Row],[2025/26 From - Spending review Topic 3]]+Dataset[[#This Row],[2025/26 From - Spending review Topic 4]]+Dataset[[#This Row],[2025/26 From - Other reallocations]]","v":0},{"$f":"Dataset[[#This Row],[2023/24 To - Spending review Topic 1]]+Dataset[[#This Row],[2023/24 To - Spending review Topic 2]]+Dataset[[#This Row],[2023/24 To - Spending review Topic 3]]+Dataset[[#This Row],[2023/24 To - Spending review Topic 4]]+Dataset[[#This Row],[2023/24 To - Other reallocations]]","v":0},{"$f":"Dataset[[#This Row],[2024/25 To - Spending review Topic 1]]+Dataset[[#This Row],[2024/25 To - Spending review Topic 2]]+Dataset[[#This Row],[2024/25 To - Spending review Topic 3]]+Dataset[[#This Row],[2024/25 To - Spending review Topic 4]]+Dataset[[#This Row],[2024/25 To - Other reallocations]]","v":0},{"$f":"Dataset[[#This Row],[2025/26 To - Spending review Topic 1]]+Dataset[[#This Row],[2025/26 To - Spending review Topic 2]]+Dataset[[#This Row],[2025/26 To - Spending review Topic 3]]+Dataset[[#This Row],[2025/26 To - Spending review Topic 4]]+Dataset[[#This Row],[2025/26 To - Other reallocations]]","v":0},{"$f":"Dataset[[#This Row],[2023/24 Baseline]]+Dataset[[#This Row],[2023/24 From - Total]]+Dataset[[#This Row],[2023/24 To - Total]]","v":0},{"$f":"Dataset[[#This Row],[2024/25 Baseline]]+Dataset[[#This Row],[2024/25 From - Total]]+Dataset[[#This Row],[2024/25 To - Total]]","v":0},{"$f":"Dataset[[#This Row],[2025/26 Baseline]]+Dataset[[#This Row],[2025/26 From - Total]]+Dataset[[#This Row],[2025/26 To - Total]]","v":0}]
["NAT|Non-transfer item","2|Catering: Departmental activities","2023_24","MTEF2023",2,2,3,1010,393,"02","02","03","001010","000393","02|02|03",1,1,2,8,8,"01|01|02|08|08","National","Parliament","Legislation and Oversight","Public Participation and external relations: Shared Services","Non-transfer item","Current","Current payments","Goods and services","Catering: Departmental activities","Catering: Departmental activities","General public services","Executive and legislative organs","NAT",2019,2577,2752,3022,3022,3022,0,3107,3117,3257,3403,null,null,null,null,null,null,null,null,null,null,null,null,null,null,null,null,null,null,null,null,null,null,null,null,null,null,null,null,null,null,{"$f":"Dataset[[#This Row],[2023/24 From - Spending review Topic 1]]+Dataset[[#This Row],[2023/24 From - Spending review Topic 2]]+Dataset[[#This Row],[2023/24 From - Spending review Topic 3]]+Dataset[[#This Row],[2023/24 From - Spending review Topic 4]]+Dataset[[#This Row],[2023/24 From - Other reallocations]]","v":0},{"$f":"Dataset[[#This Row],[2024/25 From - Spending review Topic 1]]+Dataset[[#This Row],[2024/25 From - Spending review Topic 2]]+Dataset[[#This Row],[2024/25 From - Spending review Topic 3]]+Dataset[[#This Row],[2024/25 From - Spending review Topic 4]]+Dataset[[#This Row],[2024/25 From - Other reallocations]]","v":0},{"$f":"Dataset[[#This Row],[2025/26 From - Spending review Topic 1]]+Dataset[[#This Row],[2025/26 From - Spending review Topic 2]]+Dataset[[#This Row],[2025/26 From - Spending review Topic 3]]+Dataset[[#This Row],[2025/26 From - Spending review Topic 4]]+Dataset[[#This Row],[2025/26 From - Other reallocations]]","v":0},{"$f":"Dataset[[#This Row],[2023/24 To - Spending review Topic 1]]+Dataset[[#This Row],[2023/24 To - Spending review Topic 2]]+Dataset[[#This Row],[2023/24 To - Spending review Topic 3]]+Dataset[[#This Row],[2023/24 To - Spending review Topic 4]]+Dataset[[#This Row],[2023/24 To - Other reallocations]]","v":0},{"$f":"Dataset[[#This Row],[2024/25 To - Spending review Topic 1]]+Dataset[[#This Row],[2024/25 To - Spending review Topic 2]]+Dataset[[#This Row],[2024/25 To - Spending review Topic 3]]+Dataset[[#This Row],[2024/25 To - Spending review Topic 4]]+Dataset[[#This Row],[2024/25 To - Other reallocations]]","v":0},{"$f":"Dataset[[#This Row],[2025/26 To - Spending review Topic 1]]+Dataset[[#This Row],[2025/26 To - Spending review Topic 2]]+Dataset[[#This Row],[2025/26 To - Spending review Topic 3]]+Dataset[[#This Row],[2025/26 To - Spending review Topic 4]]+Dataset[[#This Row],[2025/26 To - Other reallocations]]","v":0},{"$f":"Dataset[[#This Row],[2023/24 Baseline]]+Dataset[[#This Row],[2023/24 From - Total]]+Dataset[[#This Row],[2023/24 To - Total]]","v":3117},{"$f":"Dataset[[#This Row],[2024/25 Baseline]]+Dataset[[#This Row],[2024/25 From - Total]]+Dataset[[#This Row],[2024/25 To - Total]]","v":3257},{"$f":"Dataset[[#This Row],[2025/26 Baseline]]+Dataset[[#This Row],[2025/26 From - Total]]+Dataset[[#This Row],[2025/26 To - Total]]","v":3403}]
["NAT|Non-transfer item","2|Communication (G&S)","2023_24","MTEF2023",2,2,3,1011,394,"02","02","03","001011","000394","02|02|03",1,1,2,9,9,"01|01|02|09|09","National","Parliament","Legislation and Oversight","Public Participation and external relations: Shared Services","Non-transfer item","Current","Current payments","Goods and services","Communication (G&S)","Communication (G&S)","General public services","Executive and legislative organs","NAT",5140,5444,5398,5923,5923,5923,0,6088,6111,6385,6671,null,null,null,null,null,null,null,null,null,null,null,null,null,null,null,null,null,null,null,null,null,null,null,null,null,null,null,null,null,null,{"$f":"Dataset[[#This Row],[2023/24 From - Spending review Topic 1]]+Dataset[[#This Row],[2023/24 From - Spending review Topic 2]]+Dataset[[#This Row],[2023/24 From - Spending review Topic 3]]+Dataset[[#This Row],[2023/24 From - Spending review Topic 4]]+Dataset[[#This Row],[2023/24 From - Other reallocations]]","v":0},{"$f":"Dataset[[#This Row],[2024/25 From - Spending review Topic 1]]+Dataset[[#This Row],[2024/25 From - Spending review Topic 2]]+Dataset[[#This Row],[2024/25 From - Spending review Topic 3]]+Dataset[[#This Row],[2024/25 From - Spending review Topic 4]]+Dataset[[#This Row],[2024/25 From - Other reallocations]]","v":0},{"$f":"Dataset[[#This Row],[2025/26 From - Spending review Topic 1]]+Dataset[[#This Row],[2025/26 From - Spending review Topic 2]]+Dataset[[#This Row],[2025/26 From - Spending review Topic 3]]+Dataset[[#This Row],[2025/26 From - Spending review Topic 4]]+Dataset[[#This Row],[2025/26 From - Other reallocations]]","v":0},{"$f":"Dataset[[#This Row],[2023/24 To - Spending review Topic 1]]+Dataset[[#This Row],[2023/24 To - Spending review Topic 2]]+Dataset[[#This Row],[2023/24 To - Spending review Topic 3]]+Dataset[[#This Row],[2023/24 To - Spending review Topic 4]]+Dataset[[#This Row],[2023/24 To - Other reallocations]]","v":0},{"$f":"Dataset[[#This Row],[2024/25 To - Spending review Topic 1]]+Dataset[[#This Row],[2024/25 To - Spending review Topic 2]]+Dataset[[#This Row],[2024/25 To - Spending review Topic 3]]+Dataset[[#This Row],[2024/25 To - Spending review Topic 4]]+Dataset[[#This Row],[2024/25 To - Other reallocations]]","v":0},{"$f":"Dataset[[#This Row],[2025/26 To - Spending review Topic 1]]+Dataset[[#This Row],[2025/26 To - Spending review Topic 2]]+Dataset[[#This Row],[2025/26 To - Spending review Topic 3]]+Dataset[[#This Row],[2025/26 To - Spending review Topic 4]]+Dataset[[#This Row],[2025/26 To - Other reallocations]]","v":0},{"$f":"Dataset[[#This Row],[2023/24 Baseline]]+Dataset[[#This Row],[2023/24 From - Total]]+Dataset[[#This Row],[2023/24 To - Total]]","v":6111},{"$f":"Dataset[[#This Row],[2024/25 Baseline]]+Dataset[[#This Row],[2024/25 From - Total]]+Dataset[[#This Row],[2024/25 To - Total]]","v":6385},{"$f":"Dataset[[#This Row],[2025/26 Baseline]]+Dataset[[#This Row],[2025/26 From - Total]]+Dataset[[#This Row],[2025/26 To - Total]]","v":6671}]
["NAT|Non-transfer item","2|Computer services","2023_24","MTEF2023",2,2,3,1012,395,"02","02","03","001012","000395","02|02|03",1,1,2,10,10,"01|01|02|10|10","National","Parliament","Legislation and Oversight","Public Participation and external relations: Shared Services","Non-transfer item","Current","Current payments","Goods and services","Computer services","Computer services","General public services","Executive and legislative organs","NAT",1145,1038,1307,1366,1366,1366,0,1405,1410,1473,1539,null,null,null,null,null,null,null,null,null,null,null,null,null,null,null,null,null,null,null,null,null,null,null,null,null,null,null,null,null,null,{"$f":"Dataset[[#This Row],[2023/24 From - Spending review Topic 1]]+Dataset[[#This Row],[2023/24 From - Spending review Topic 2]]+Dataset[[#This Row],[2023/24 From - Spending review Topic 3]]+Dataset[[#This Row],[2023/24 From - Spending review Topic 4]]+Dataset[[#This Row],[2023/24 From - Other reallocations]]","v":0},{"$f":"Dataset[[#This Row],[2024/25 From - Spending review Topic 1]]+Dataset[[#This Row],[2024/25 From - Spending review Topic 2]]+Dataset[[#This Row],[2024/25 From - Spending review Topic 3]]+Dataset[[#This Row],[2024/25 From - Spending review Topic 4]]+Dataset[[#This Row],[2024/25 From - Other reallocations]]","v":0},{"$f":"Dataset[[#This Row],[2025/26 From - Spending review Topic 1]]+Dataset[[#This Row],[2025/26 From - Spending review Topic 2]]+Dataset[[#This Row],[2025/26 From - Spending review Topic 3]]+Dataset[[#This Row],[2025/26 From - Spending review Topic 4]]+Dataset[[#This Row],[2025/26 From - Other reallocations]]","v":0},{"$f":"Dataset[[#This Row],[2023/24 To - Spending review Topic 1]]+Dataset[[#This Row],[2023/24 To - Spending review Topic 2]]+Dataset[[#This Row],[2023/24 To - Spending review Topic 3]]+Dataset[[#This Row],[2023/24 To - Spending review Topic 4]]+Dataset[[#This Row],[2023/24 To - Other reallocations]]","v":0},{"$f":"Dataset[[#This Row],[2024/25 To - Spending review Topic 1]]+Dataset[[#This Row],[2024/25 To - Spending review Topic 2]]+Dataset[[#This Row],[2024/25 To - Spending review Topic 3]]+Dataset[[#This Row],[2024/25 To - Spending review Topic 4]]+Dataset[[#This Row],[2024/25 To - Other reallocations]]","v":0},{"$f":"Dataset[[#This Row],[2025/26 To - Spending review Topic 1]]+Dataset[[#This Row],[2025/26 To - Spending review Topic 2]]+Dataset[[#This Row],[2025/26 To - Spending review Topic 3]]+Dataset[[#This Row],[2025/26 To - Spending review Topic 4]]+Dataset[[#This Row],[2025/26 To - Other reallocations]]","v":0},{"$f":"Dataset[[#This Row],[2023/24 Baseline]]+Dataset[[#This Row],[2023/24 From - Total]]+Dataset[[#This Row],[2023/24 To - Total]]","v":1410},{"$f":"Dataset[[#This Row],[2024/25 Baseline]]+Dataset[[#This Row],[2024/25 From - Total]]+Dataset[[#This Row],[2024/25 To - Total]]","v":1473},{"$f":"Dataset[[#This Row],[2025/26 Baseline]]+Dataset[[#This Row],[2025/26 From - Total]]+Dataset[[#This Row],[2025/26 To - Total]]","v":1539}]
["NAT|Non-transfer item","2|Consultants: Business and advisory services","2023_24","MTEF2023",2,2,3,1013,396,"02","02","03","001013","000396","02|02|03",1,1,2,11,11,"01|01|02|11|11","National","Parliament","Legislation and Oversight","Public Participation and external relations: Shared Services","Non-transfer item","Current","Current payments","Goods and services","Consultants: Business and advisory services","Consultants: Business and advisory services","General public services","Executive and legislative organs","NAT",0,0,0,0,0,0,0,0,0,0,0,null,null,null,null,null,null,null,null,null,null,null,null,null,null,null,null,null,null,null,null,null,null,null,null,null,null,null,null,null,null,{"$f":"Dataset[[#This Row],[2023/24 From - Spending review Topic 1]]+Dataset[[#This Row],[2023/24 From - Spending review Topic 2]]+Dataset[[#This Row],[2023/24 From - Spending review Topic 3]]+Dataset[[#This Row],[2023/24 From - Spending review Topic 4]]+Dataset[[#This Row],[2023/24 From - Other reallocations]]","v":0},{"$f":"Dataset[[#This Row],[2024/25 From - Spending review Topic 1]]+Dataset[[#This Row],[2024/25 From - Spending review Topic 2]]+Dataset[[#This Row],[2024/25 From - Spending review Topic 3]]+Dataset[[#This Row],[2024/25 From - Spending review Topic 4]]+Dataset[[#This Row],[2024/25 From - Other reallocations]]","v":0},{"$f":"Dataset[[#This Row],[2025/26 From - Spending review Topic 1]]+Dataset[[#This Row],[2025/26 From - Spending review Topic 2]]+Dataset[[#This Row],[2025/26 From - Spending review Topic 3]]+Dataset[[#This Row],[2025/26 From - Spending review Topic 4]]+Dataset[[#This Row],[2025/26 From - Other reallocations]]","v":0},{"$f":"Dataset[[#This Row],[2023/24 To - Spending review Topic 1]]+Dataset[[#This Row],[2023/24 To - Spending review Topic 2]]+Dataset[[#This Row],[2023/24 To - Spending review Topic 3]]+Dataset[[#This Row],[2023/24 To - Spending review Topic 4]]+Dataset[[#This Row],[2023/24 To - Other reallocations]]","v":0},{"$f":"Dataset[[#This Row],[2024/25 To - Spending review Topic 1]]+Dataset[[#This Row],[2024/25 To - Spending review Topic 2]]+Dataset[[#This Row],[2024/25 To - Spending review Topic 3]]+Dataset[[#This Row],[2024/25 To - Spending review Topic 4]]+Dataset[[#This Row],[2024/25 To - Other reallocations]]","v":0},{"$f":"Dataset[[#This Row],[2025/26 To - Spending review Topic 1]]+Dataset[[#This Row],[2025/26 To - Spending review Topic 2]]+Dataset[[#This Row],[2025/26 To - Spending review Topic 3]]+Dataset[[#This Row],[2025/26 To - Spending review Topic 4]]+Dataset[[#This Row],[2025/26 To - Other reallocations]]","v":0},{"$f":"Dataset[[#This Row],[2023/24 Baseline]]+Dataset[[#This Row],[2023/24 From - Total]]+Dataset[[#This Row],[2023/24 To - Total]]","v":0},{"$f":"Dataset[[#This Row],[2024/25 Baseline]]+Dataset[[#This Row],[2024/25 From - Total]]+Dataset[[#This Row],[2024/25 To - Total]]","v":0},{"$f":"Dataset[[#This Row],[2025/26 Baseline]]+Dataset[[#This Row],[2025/26 From - Total]]+Dataset[[#This Row],[2025/26 To - Total]]","v":0}]
["NAT|Non-transfer item","2|Infrastructure and planning services","2023_24","MTEF2023",2,2,3,1014,397,"02","02","03","001014","000397","02|02|03",1,1,2,12,12,"01|01|02|12|12","National","Parliament","Legislation and Oversight","Public Participation and external relations: Shared Services","Non-transfer item","Current","Current payments","Goods and services","Infrastructure and planning services","Infrastructure and planning services","General public services","Executive and legislative organs","NAT",0,0,0,0,0,0,0,0,0,0,0,null,null,null,null,null,null,null,null,null,null,null,null,null,null,null,null,null,null,null,null,null,null,null,null,null,null,null,null,null,null,{"$f":"Dataset[[#This Row],[2023/24 From - Spending review Topic 1]]+Dataset[[#This Row],[2023/24 From - Spending review Topic 2]]+Dataset[[#This Row],[2023/24 From - Spending review Topic 3]]+Dataset[[#This Row],[2023/24 From - Spending review Topic 4]]+Dataset[[#This Row],[2023/24 From - Other reallocations]]","v":0},{"$f":"Dataset[[#This Row],[2024/25 From - Spending review Topic 1]]+Dataset[[#This Row],[2024/25 From - Spending review Topic 2]]+Dataset[[#This Row],[2024/25 From - Spending review Topic 3]]+Dataset[[#This Row],[2024/25 From - Spending review Topic 4]]+Dataset[[#This Row],[2024/25 From - Other reallocations]]","v":0},{"$f":"Dataset[[#This Row],[2025/26 From - Spending review Topic 1]]+Dataset[[#This Row],[2025/26 From - Spending review Topic 2]]+Dataset[[#This Row],[2025/26 From - Spending review Topic 3]]+Dataset[[#This Row],[2025/26 From - Spending review Topic 4]]+Dataset[[#This Row],[2025/26 From - Other reallocations]]","v":0},{"$f":"Dataset[[#This Row],[2023/24 To - Spending review Topic 1]]+Dataset[[#This Row],[2023/24 To - Spending review Topic 2]]+Dataset[[#This Row],[2023/24 To - Spending review Topic 3]]+Dataset[[#This Row],[2023/24 To - Spending review Topic 4]]+Dataset[[#This Row],[2023/24 To - Other reallocations]]","v":0},{"$f":"Dataset[[#This Row],[2024/25 To - Spending review Topic 1]]+Dataset[[#This Row],[2024/25 To - Spending review Topic 2]]+Dataset[[#This Row],[2024/25 To - Spending review Topic 3]]+Dataset[[#This Row],[2024/25 To - Spending review Topic 4]]+Dataset[[#This Row],[2024/25 To - Other reallocations]]","v":0},{"$f":"Dataset[[#This Row],[2025/26 To - Spending review Topic 1]]+Dataset[[#This Row],[2025/26 To - Spending review Topic 2]]+Dataset[[#This Row],[2025/26 To - Spending review Topic 3]]+Dataset[[#This Row],[2025/26 To - Spending review Topic 4]]+Dataset[[#This Row],[2025/26 To - Other reallocations]]","v":0},{"$f":"Dataset[[#This Row],[2023/24 Baseline]]+Dataset[[#This Row],[2023/24 From - Total]]+Dataset[[#This Row],[2023/24 To - Total]]","v":0},{"$f":"Dataset[[#This Row],[2024/25 Baseline]]+Dataset[[#This Row],[2024/25 From - Total]]+Dataset[[#This Row],[2024/25 To - Total]]","v":0},{"$f":"Dataset[[#This Row],[2025/26 Baseline]]+Dataset[[#This Row],[2025/26 From - Total]]+Dataset[[#This Row],[2025/26 To - Total]]","v":0}]
["NAT|Non-transfer item","2|Laboratory services","2023_24","MTEF2023",2,2,3,1015,398,"02","02","03","001015","000398","02|02|03",1,1,2,13,13,"01|01|02|13|13","National","Parliament","Legislation and Oversight","Public Participation and external relations: Shared Services","Non-transfer item","Current","Current payments","Goods and services","Laboratory services","Laboratory services","General public services","Executive and legislative organs","NAT",0,0,0,0,0,0,0,0,0,0,0,null,null,null,null,null,null,null,null,null,null,null,null,null,null,null,null,null,null,null,null,null,null,null,null,null,null,null,null,null,null,{"$f":"Dataset[[#This Row],[2023/24 From - Spending review Topic 1]]+Dataset[[#This Row],[2023/24 From - Spending review Topic 2]]+Dataset[[#This Row],[2023/24 From - Spending review Topic 3]]+Dataset[[#This Row],[2023/24 From - Spending review Topic 4]]+Dataset[[#This Row],[2023/24 From - Other reallocations]]","v":0},{"$f":"Dataset[[#This Row],[2024/25 From - Spending review Topic 1]]+Dataset[[#This Row],[2024/25 From - Spending review Topic 2]]+Dataset[[#This Row],[2024/25 From - Spending review Topic 3]]+Dataset[[#This Row],[2024/25 From - Spending review Topic 4]]+Dataset[[#This Row],[2024/25 From - Other reallocations]]","v":0},{"$f":"Dataset[[#This Row],[2025/26 From - Spending review Topic 1]]+Dataset[[#This Row],[2025/26 From - Spending review Topic 2]]+Dataset[[#This Row],[2025/26 From - Spending review Topic 3]]+Dataset[[#This Row],[2025/26 From - Spending review Topic 4]]+Dataset[[#This Row],[2025/26 From - Other reallocations]]","v":0},{"$f":"Dataset[[#This Row],[2023/24 To - Spending review Topic 1]]+Dataset[[#This Row],[2023/24 To - Spending review Topic 2]]+Dataset[[#This Row],[2023/24 To - Spending review Topic 3]]+Dataset[[#This Row],[2023/24 To - Spending review Topic 4]]+Dataset[[#This Row],[2023/24 To - Other reallocations]]","v":0},{"$f":"Dataset[[#This Row],[2024/25 To - Spending review Topic 1]]+Dataset[[#This Row],[2024/25 To - Spending review Topic 2]]+Dataset[[#This Row],[2024/25 To - Spending review Topic 3]]+Dataset[[#This Row],[2024/25 To - Spending review Topic 4]]+Dataset[[#This Row],[2024/25 To - Other reallocations]]","v":0},{"$f":"Dataset[[#This Row],[2025/26 To - Spending review Topic 1]]+Dataset[[#This Row],[2025/26 To - Spending review Topic 2]]+Dataset[[#This Row],[2025/26 To - Spending review Topic 3]]+Dataset[[#This Row],[2025/26 To - Spending review Topic 4]]+Dataset[[#This Row],[2025/26 To - Other reallocations]]","v":0},{"$f":"Dataset[[#This Row],[2023/24 Baseline]]+Dataset[[#This Row],[2023/24 From - Total]]+Dataset[[#This Row],[2023/24 To - Total]]","v":0},{"$f":"Dataset[[#This Row],[2024/25 Baseline]]+Dataset[[#This Row],[2024/25 From - Total]]+Dataset[[#This Row],[2024/25 To - Total]]","v":0},{"$f":"Dataset[[#This Row],[2025/26 Baseline]]+Dataset[[#This Row],[2025/26 From - Total]]+Dataset[[#This Row],[2025/26 To - Total]]","v":0}]
["NAT|Non-transfer item","2|Legal services (G&S)","2023_24","MTEF2023",2,2,3,1016,399,"02","02","03","001016","000399","02|02|03",1,1,2,14,14,"01|01|02|14|14","National","Parliament","Legislation and Oversight","Public Participation and external relations: Shared Services","Non-transfer item","Current","Current payments","Goods and services","Legal services (G&S)","Legal services (G&S)","General public services","Executive and legislative organs","NAT",0,0,15263,17346,17346,17346,0,17826,17894,18698,19536,null,null,null,null,null,null,null,null,null,null,null,null,null,null,null,null,null,null,null,null,null,null,null,null,null,null,null,null,null,null,{"$f":"Dataset[[#This Row],[2023/24 From - Spending review Topic 1]]+Dataset[[#This Row],[2023/24 From - Spending review Topic 2]]+Dataset[[#This Row],[2023/24 From - Spending review Topic 3]]+Dataset[[#This Row],[2023/24 From - Spending review Topic 4]]+Dataset[[#This Row],[2023/24 From - Other reallocations]]","v":0},{"$f":"Dataset[[#This Row],[2024/25 From - Spending review Topic 1]]+Dataset[[#This Row],[2024/25 From - Spending review Topic 2]]+Dataset[[#This Row],[2024/25 From - Spending review Topic 3]]+Dataset[[#This Row],[2024/25 From - Spending review Topic 4]]+Dataset[[#This Row],[2024/25 From - Other reallocations]]","v":0},{"$f":"Dataset[[#This Row],[2025/26 From - Spending review Topic 1]]+Dataset[[#This Row],[2025/26 From - Spending review Topic 2]]+Dataset[[#This Row],[2025/26 From - Spending review Topic 3]]+Dataset[[#This Row],[2025/26 From - Spending review Topic 4]]+Dataset[[#This Row],[2025/26 From - Other reallocations]]","v":0},{"$f":"Dataset[[#This Row],[2023/24 To - Spending review Topic 1]]+Dataset[[#This Row],[2023/24 To - Spending review Topic 2]]+Dataset[[#This Row],[2023/24 To - Spending review Topic 3]]+Dataset[[#This Row],[2023/24 To - Spending review Topic 4]]+Dataset[[#This Row],[2023/24 To - Other reallocations]]","v":0},{"$f":"Dataset[[#This Row],[2024/25 To - Spending review Topic 1]]+Dataset[[#This Row],[2024/25 To - Spending review Topic 2]]+Dataset[[#This Row],[2024/25 To - Spending review Topic 3]]+Dataset[[#This Row],[2024/25 To - Spending review Topic 4]]+Dataset[[#This Row],[2024/25 To - Other reallocations]]","v":0},{"$f":"Dataset[[#This Row],[2025/26 To - Spending review Topic 1]]+Dataset[[#This Row],[2025/26 To - Spending review Topic 2]]+Dataset[[#This Row],[2025/26 To - Spending review Topic 3]]+Dataset[[#This Row],[2025/26 To - Spending review Topic 4]]+Dataset[[#This Row],[2025/26 To - Other reallocations]]","v":0},{"$f":"Dataset[[#This Row],[2023/24 Baseline]]+Dataset[[#This Row],[2023/24 From - Total]]+Dataset[[#This Row],[2023/24 To - Total]]","v":17894},{"$f":"Dataset[[#This Row],[2024/25 Baseline]]+Dataset[[#This Row],[2024/25 From - Total]]+Dataset[[#This Row],[2024/25 To - Total]]","v":18698},{"$f":"Dataset[[#This Row],[2025/26 Baseline]]+Dataset[[#This Row],[2025/26 From - Total]]+Dataset[[#This Row],[2025/26 To - Total]]","v":19536}]
["NAT|Non-transfer item","2|Science and technological services","2023_24","MTEF2023",2,2,3,1017,400,"02","02","03","001017","000400","02|02|03",1,1,2,15,15,"01|01|02|15|15","National","Parliament","Legislation and Oversight","Public Participation and external relations: Shared Services","Non-transfer item","Current","Current payments","Goods and services","Science and technological services","Science and technological services","General public services","Executive and legislative organs","NAT",0,0,0,0,0,0,0,0,0,0,0,null,null,null,null,null,null,null,null,null,null,null,null,null,null,null,null,null,null,null,null,null,null,null,null,null,null,null,null,null,null,{"$f":"Dataset[[#This Row],[2023/24 From - Spending review Topic 1]]+Dataset[[#This Row],[2023/24 From - Spending review Topic 2]]+Dataset[[#This Row],[2023/24 From - Spending review Topic 3]]+Dataset[[#This Row],[2023/24 From - Spending review Topic 4]]+Dataset[[#This Row],[2023/24 From - Other reallocations]]","v":0},{"$f":"Dataset[[#This Row],[2024/25 From - Spending review Topic 1]]+Dataset[[#This Row],[2024/25 From - Spending review Topic 2]]+Dataset[[#This Row],[2024/25 From - Spending review Topic 3]]+Dataset[[#This Row],[2024/25 From - Spending review Topic 4]]+Dataset[[#This Row],[2024/25 From - Other reallocations]]","v":0},{"$f":"Dataset[[#This Row],[2025/26 From - Spending review Topic 1]]+Dataset[[#This Row],[2025/26 From - Spending review Topic 2]]+Dataset[[#This Row],[2025/26 From - Spending review Topic 3]]+Dataset[[#This Row],[2025/26 From - Spending review Topic 4]]+Dataset[[#This Row],[2025/26 From - Other reallocations]]","v":0},{"$f":"Dataset[[#This Row],[2023/24 To - Spending review Topic 1]]+Dataset[[#This Row],[2023/24 To - Spending review Topic 2]]+Dataset[[#This Row],[2023/24 To - Spending review Topic 3]]+Dataset[[#This Row],[2023/24 To - Spending review Topic 4]]+Dataset[[#This Row],[2023/24 To - Other reallocations]]","v":0},{"$f":"Dataset[[#This Row],[2024/25 To - Spending review Topic 1]]+Dataset[[#This Row],[2024/25 To - Spending review Topic 2]]+Dataset[[#This Row],[2024/25 To - Spending review Topic 3]]+Dataset[[#This Row],[2024/25 To - Spending review Topic 4]]+Dataset[[#This Row],[2024/25 To - Other reallocations]]","v":0},{"$f":"Dataset[[#This Row],[2025/26 To - Spending review Topic 1]]+Dataset[[#This Row],[2025/26 To - Spending review Topic 2]]+Dataset[[#This Row],[2025/26 To - Spending review Topic 3]]+Dataset[[#This Row],[2025/26 To - Spending review Topic 4]]+Dataset[[#This Row],[2025/26 To - Other reallocations]]","v":0},{"$f":"Dataset[[#This Row],[2023/24 Baseline]]+Dataset[[#This Row],[2023/24 From - Total]]+Dataset[[#This Row],[2023/24 To - Total]]","v":0},{"$f":"Dataset[[#This Row],[2024/25 Baseline]]+Dataset[[#This Row],[2024/25 From - Total]]+Dataset[[#This Row],[2024/25 To - Total]]","v":0},{"$f":"Dataset[[#This Row],[2025/26 Baseline]]+Dataset[[#This Row],[2025/26 From - Total]]+Dataset[[#This Row],[2025/26 To - Total]]","v":0}]
["NAT|Non-transfer item","2|Contractors","2023_24","MTEF2023",2,2,3,1018,401,"02","02","03","001018","000401","02|02|03",1,1,2,16,16,"01|01|02|16|16","National","Parliament","Legislation and Oversight","Public Participation and external relations: Shared Services","Non-transfer item","Current","Current payments","Goods and services","Contractors","Contractors","General public services","Executive and legislative organs","NAT",41885,43260,1246,1173,1173,1173,0,1205,1210,1264,1321,null,null,null,null,null,null,null,null,null,null,null,null,null,null,null,null,null,null,null,null,null,null,null,null,null,null,null,null,null,null,{"$f":"Dataset[[#This Row],[2023/24 From - Spending review Topic 1]]+Dataset[[#This Row],[2023/24 From - Spending review Topic 2]]+Dataset[[#This Row],[2023/24 From - Spending review Topic 3]]+Dataset[[#This Row],[2023/24 From - Spending review Topic 4]]+Dataset[[#This Row],[2023/24 From - Other reallocations]]","v":0},{"$f":"Dataset[[#This Row],[2024/25 From - Spending review Topic 1]]+Dataset[[#This Row],[2024/25 From - Spending review Topic 2]]+Dataset[[#This Row],[2024/25 From - Spending review Topic 3]]+Dataset[[#This Row],[2024/25 From - Spending review Topic 4]]+Dataset[[#This Row],[2024/25 From - Other reallocations]]","v":0},{"$f":"Dataset[[#This Row],[2025/26 From - Spending review Topic 1]]+Dataset[[#This Row],[2025/26 From - Spending review Topic 2]]+Dataset[[#This Row],[2025/26 From - Spending review Topic 3]]+Dataset[[#This Row],[2025/26 From - Spending review Topic 4]]+Dataset[[#This Row],[2025/26 From - Other reallocations]]","v":0},{"$f":"Dataset[[#This Row],[2023/24 To - Spending review Topic 1]]+Dataset[[#This Row],[2023/24 To - Spending review Topic 2]]+Dataset[[#This Row],[2023/24 To - Spending review Topic 3]]+Dataset[[#This Row],[2023/24 To - Spending review Topic 4]]+Dataset[[#This Row],[2023/24 To - Other reallocations]]","v":0},{"$f":"Dataset[[#This Row],[2024/25 To - Spending review Topic 1]]+Dataset[[#This Row],[2024/25 To - Spending review Topic 2]]+Dataset[[#This Row],[2024/25 To - Spending review Topic 3]]+Dataset[[#This Row],[2024/25 To - Spending review Topic 4]]+Dataset[[#This Row],[2024/25 To - Other reallocations]]","v":0},{"$f":"Dataset[[#This Row],[2025/26 To - Spending review Topic 1]]+Dataset[[#This Row],[2025/26 To - Spending review Topic 2]]+Dataset[[#This Row],[2025/26 To - Spending review Topic 3]]+Dataset[[#This Row],[2025/26 To - Spending review Topic 4]]+Dataset[[#This Row],[2025/26 To - Other reallocations]]","v":0},{"$f":"Dataset[[#This Row],[2023/24 Baseline]]+Dataset[[#This Row],[2023/24 From - Total]]+Dataset[[#This Row],[2023/24 To - Total]]","v":1210},{"$f":"Dataset[[#This Row],[2024/25 Baseline]]+Dataset[[#This Row],[2024/25 From - Total]]+Dataset[[#This Row],[2024/25 To - Total]]","v":1264},{"$f":"Dataset[[#This Row],[2025/26 Baseline]]+Dataset[[#This Row],[2025/26 From - Total]]+Dataset[[#This Row],[2025/26 To - Total]]","v":1321}]
["NAT|Non-transfer item","2|Agency and support/outsourced services","2023_24","MTEF2023",2,2,3,1019,402,"02","02","03","001019","000402","02|02|03",1,1,2,17,17,"01|01|02|17|17","National","Parliament","Legislation and Oversight","Public Participation and external relations: Shared Services","Non-transfer item","Current","Current payments","Goods and services","Agency and support/outsourced services","Agency and support/outsourced services","General public services","Executive and legislative organs","NAT",1438,1518,407,463,463,463,0,475,477,498,520,null,null,null,null,null,null,null,null,null,null,null,null,null,null,null,null,null,null,null,null,null,null,null,null,null,null,null,null,null,null,{"$f":"Dataset[[#This Row],[2023/24 From - Spending review Topic 1]]+Dataset[[#This Row],[2023/24 From - Spending review Topic 2]]+Dataset[[#This Row],[2023/24 From - Spending review Topic 3]]+Dataset[[#This Row],[2023/24 From - Spending review Topic 4]]+Dataset[[#This Row],[2023/24 From - Other reallocations]]","v":0},{"$f":"Dataset[[#This Row],[2024/25 From - Spending review Topic 1]]+Dataset[[#This Row],[2024/25 From - Spending review Topic 2]]+Dataset[[#This Row],[2024/25 From - Spending review Topic 3]]+Dataset[[#This Row],[2024/25 From - Spending review Topic 4]]+Dataset[[#This Row],[2024/25 From - Other reallocations]]","v":0},{"$f":"Dataset[[#This Row],[2025/26 From - Spending review Topic 1]]+Dataset[[#This Row],[2025/26 From - Spending review Topic 2]]+Dataset[[#This Row],[2025/26 From - Spending review Topic 3]]+Dataset[[#This Row],[2025/26 From - Spending review Topic 4]]+Dataset[[#This Row],[2025/26 From - Other reallocations]]","v":0},{"$f":"Dataset[[#This Row],[2023/24 To - Spending review Topic 1]]+Dataset[[#This Row],[2023/24 To - Spending review Topic 2]]+Dataset[[#This Row],[2023/24 To - Spending review Topic 3]]+Dataset[[#This Row],[2023/24 To - Spending review Topic 4]]+Dataset[[#This Row],[2023/24 To - Other reallocations]]","v":0},{"$f":"Dataset[[#This Row],[2024/25 To - Spending review Topic 1]]+Dataset[[#This Row],[2024/25 To - Spending review Topic 2]]+Dataset[[#This Row],[2024/25 To - Spending review Topic 3]]+Dataset[[#This Row],[2024/25 To - Spending review Topic 4]]+Dataset[[#This Row],[2024/25 To - Other reallocations]]","v":0},{"$f":"Dataset[[#This Row],[2025/26 To - Spending review Topic 1]]+Dataset[[#This Row],[2025/26 To - Spending review Topic 2]]+Dataset[[#This Row],[2025/26 To - Spending review Topic 3]]+Dataset[[#This Row],[2025/26 To - Spending review Topic 4]]+Dataset[[#This Row],[2025/26 To - Other reallocations]]","v":0},{"$f":"Dataset[[#This Row],[2023/24 Baseline]]+Dataset[[#This Row],[2023/24 From - Total]]+Dataset[[#This Row],[2023/24 To - Total]]","v":477},{"$f":"Dataset[[#This Row],[2024/25 Baseline]]+Dataset[[#This Row],[2024/25 From - Total]]+Dataset[[#This Row],[2024/25 To - Total]]","v":498},{"$f":"Dataset[[#This Row],[2025/26 Baseline]]+Dataset[[#This Row],[2025/26 From - Total]]+Dataset[[#This Row],[2025/26 To - Total]]","v":520}]
["NAT|Non-transfer item","2|Entertainment","2023_24","MTEF2023",2,2,3,1020,403,"02","02","03","001020","000403","02|02|03",1,1,2,18,18,"01|01|02|18|18","National","Parliament","Legislation and Oversight","Public Participation and external relations: Shared Services","Non-transfer item","Current","Current payments","Goods and services","Entertainment","Entertainment","General public services","Executive and legislative organs","NAT",853,138,347,354,354,354,0,364,365,381,398,null,null,null,null,null,null,null,null,null,null,null,null,null,null,null,null,null,null,null,null,null,null,null,null,null,null,null,null,null,null,{"$f":"Dataset[[#This Row],[2023/24 From - Spending review Topic 1]]+Dataset[[#This Row],[2023/24 From - Spending review Topic 2]]+Dataset[[#This Row],[2023/24 From - Spending review Topic 3]]+Dataset[[#This Row],[2023/24 From - Spending review Topic 4]]+Dataset[[#This Row],[2023/24 From - Other reallocations]]","v":0},{"$f":"Dataset[[#This Row],[2024/25 From - Spending review Topic 1]]+Dataset[[#This Row],[2024/25 From - Spending review Topic 2]]+Dataset[[#This Row],[2024/25 From - Spending review Topic 3]]+Dataset[[#This Row],[2024/25 From - Spending review Topic 4]]+Dataset[[#This Row],[2024/25 From - Other reallocations]]","v":0},{"$f":"Dataset[[#This Row],[2025/26 From - Spending review Topic 1]]+Dataset[[#This Row],[2025/26 From - Spending review Topic 2]]+Dataset[[#This Row],[2025/26 From - Spending review Topic 3]]+Dataset[[#This Row],[2025/26 From - Spending review Topic 4]]+Dataset[[#This Row],[2025/26 From - Other reallocations]]","v":0},{"$f":"Dataset[[#This Row],[2023/24 To - Spending review Topic 1]]+Dataset[[#This Row],[2023/24 To - Spending review Topic 2]]+Dataset[[#This Row],[2023/24 To - Spending review Topic 3]]+Dataset[[#This Row],[2023/24 To - Spending review Topic 4]]+Dataset[[#This Row],[2023/24 To - Other reallocations]]","v":0},{"$f":"Dataset[[#This Row],[2024/25 To - Spending review Topic 1]]+Dataset[[#This Row],[2024/25 To - Spending review Topic 2]]+Dataset[[#This Row],[2024/25 To - Spending review Topic 3]]+Dataset[[#This Row],[2024/25 To - Spending review Topic 4]]+Dataset[[#This Row],[2024/25 To - Other reallocations]]","v":0},{"$f":"Dataset[[#This Row],[2025/26 To - Spending review Topic 1]]+Dataset[[#This Row],[2025/26 To - Spending review Topic 2]]+Dataset[[#This Row],[2025/26 To - Spending review Topic 3]]+Dataset[[#This Row],[2025/26 To - Spending review Topic 4]]+Dataset[[#This Row],[2025/26 To - Other reallocations]]","v":0},{"$f":"Dataset[[#This Row],[2023/24 Baseline]]+Dataset[[#This Row],[2023/24 From - Total]]+Dataset[[#This Row],[2023/24 To - Total]]","v":365},{"$f":"Dataset[[#This Row],[2024/25 Baseline]]+Dataset[[#This Row],[2024/25 From - Total]]+Dataset[[#This Row],[2024/25 To - Total]]","v":381},{"$f":"Dataset[[#This Row],[2025/26 Baseline]]+Dataset[[#This Row],[2025/26 From - Total]]+Dataset[[#This Row],[2025/26 To - Total]]","v":398}]
["NAT|Non-transfer item","2|Fleet services (including government motor transport)","2023_24","MTEF2023",2,2,3,1021,404,"02","02","03","001021","000404","02|02|03",1,1,2,19,19,"01|01|02|19|19","National","Parliament","Legislation and Oversight","Public Participation and external relations: Shared Services","Non-transfer item","Current","Current payments","Goods and services","Fleet services (including government motor transport)","Fleet services (including government motor transport)","General public services","Executive and legislative organs","NAT",0,0,0,0,0,0,0,0,0,0,0,null,null,null,null,null,null,null,null,null,null,null,null,null,null,null,null,null,null,null,null,null,null,null,null,null,null,null,null,null,null,{"$f":"Dataset[[#This Row],[2023/24 From - Spending review Topic 1]]+Dataset[[#This Row],[2023/24 From - Spending review Topic 2]]+Dataset[[#This Row],[2023/24 From - Spending review Topic 3]]+Dataset[[#This Row],[2023/24 From - Spending review Topic 4]]+Dataset[[#This Row],[2023/24 From - Other reallocations]]","v":0},{"$f":"Dataset[[#This Row],[2024/25 From - Spending review Topic 1]]+Dataset[[#This Row],[2024/25 From - Spending review Topic 2]]+Dataset[[#This Row],[2024/25 From - Spending review Topic 3]]+Dataset[[#This Row],[2024/25 From - Spending review Topic 4]]+Dataset[[#This Row],[2024/25 From - Other reallocations]]","v":0},{"$f":"Dataset[[#This Row],[2025/26 From - Spending review Topic 1]]+Dataset[[#This Row],[2025/26 From - Spending review Topic 2]]+Dataset[[#This Row],[2025/26 From - Spending review Topic 3]]+Dataset[[#This Row],[2025/26 From - Spending review Topic 4]]+Dataset[[#This Row],[2025/26 From - Other reallocations]]","v":0},{"$f":"Dataset[[#This Row],[2023/24 To - Spending review Topic 1]]+Dataset[[#This Row],[2023/24 To - Spending review Topic 2]]+Dataset[[#This Row],[2023/24 To - Spending review Topic 3]]+Dataset[[#This Row],[2023/24 To - Spending review Topic 4]]+Dataset[[#This Row],[2023/24 To - Other reallocations]]","v":0},{"$f":"Dataset[[#This Row],[2024/25 To - Spending review Topic 1]]+Dataset[[#This Row],[2024/25 To - Spending review Topic 2]]+Dataset[[#This Row],[2024/25 To - Spending review Topic 3]]+Dataset[[#This Row],[2024/25 To - Spending review Topic 4]]+Dataset[[#This Row],[2024/25 To - Other reallocations]]","v":0},{"$f":"Dataset[[#This Row],[2025/26 To - Spending review Topic 1]]+Dataset[[#This Row],[2025/26 To - Spending review Topic 2]]+Dataset[[#This Row],[2025/26 To - Spending review Topic 3]]+Dataset[[#This Row],[2025/26 To - Spending review Topic 4]]+Dataset[[#This Row],[2025/26 To - Other reallocations]]","v":0},{"$f":"Dataset[[#This Row],[2023/24 Baseline]]+Dataset[[#This Row],[2023/24 From - Total]]+Dataset[[#This Row],[2023/24 To - Total]]","v":0},{"$f":"Dataset[[#This Row],[2024/25 Baseline]]+Dataset[[#This Row],[2024/25 From - Total]]+Dataset[[#This Row],[2024/25 To - Total]]","v":0},{"$f":"Dataset[[#This Row],[2025/26 Baseline]]+Dataset[[#This Row],[2025/26 From - Total]]+Dataset[[#This Row],[2025/26 To - Total]]","v":0}]
["NAT|Non-transfer item","2|Housing","2023_24","MTEF2023",2,2,3,1022,405,"02","02","03","001022","000405","02|02|03",1,1,2,20,20,"01|01|02|20|20","National","Parliament","Legislation and Oversight","Public Participation and external relations: Shared Services","Non-transfer item","Current","Current payments","Goods and services","Housing","Housing","General public services","Executive and legislative organs","NAT",0,0,0,0,0,0,0,0,0,0,0,null,null,null,null,null,null,null,null,null,null,null,null,null,null,null,null,null,null,null,null,null,null,null,null,null,null,null,null,null,null,{"$f":"Dataset[[#This Row],[2023/24 From - Spending review Topic 1]]+Dataset[[#This Row],[2023/24 From - Spending review Topic 2]]+Dataset[[#This Row],[2023/24 From - Spending review Topic 3]]+Dataset[[#This Row],[2023/24 From - Spending review Topic 4]]+Dataset[[#This Row],[2023/24 From - Other reallocations]]","v":0},{"$f":"Dataset[[#This Row],[2024/25 From - Spending review Topic 1]]+Dataset[[#This Row],[2024/25 From - Spending review Topic 2]]+Dataset[[#This Row],[2024/25 From - Spending review Topic 3]]+Dataset[[#This Row],[2024/25 From - Spending review Topic 4]]+Dataset[[#This Row],[2024/25 From - Other reallocations]]","v":0},{"$f":"Dataset[[#This Row],[2025/26 From - Spending review Topic 1]]+Dataset[[#This Row],[2025/26 From - Spending review Topic 2]]+Dataset[[#This Row],[2025/26 From - Spending review Topic 3]]+Dataset[[#This Row],[2025/26 From - Spending review Topic 4]]+Dataset[[#This Row],[2025/26 From - Other reallocations]]","v":0},{"$f":"Dataset[[#This Row],[2023/24 To - Spending review Topic 1]]+Dataset[[#This Row],[2023/24 To - Spending review Topic 2]]+Dataset[[#This Row],[2023/24 To - Spending review Topic 3]]+Dataset[[#This Row],[2023/24 To - Spending review Topic 4]]+Dataset[[#This Row],[2023/24 To - Other reallocations]]","v":0},{"$f":"Dataset[[#This Row],[2024/25 To - Spending review Topic 1]]+Dataset[[#This Row],[2024/25 To - Spending review Topic 2]]+Dataset[[#This Row],[2024/25 To - Spending review Topic 3]]+Dataset[[#This Row],[2024/25 To - Spending review Topic 4]]+Dataset[[#This Row],[2024/25 To - Other reallocations]]","v":0},{"$f":"Dataset[[#This Row],[2025/26 To - Spending review Topic 1]]+Dataset[[#This Row],[2025/26 To - Spending review Topic 2]]+Dataset[[#This Row],[2025/26 To - Spending review Topic 3]]+Dataset[[#This Row],[2025/26 To - Spending review Topic 4]]+Dataset[[#This Row],[2025/26 To - Other reallocations]]","v":0},{"$f":"Dataset[[#This Row],[2023/24 Baseline]]+Dataset[[#This Row],[2023/24 From - Total]]+Dataset[[#This Row],[2023/24 To - Total]]","v":0},{"$f":"Dataset[[#This Row],[2024/25 Baseline]]+Dataset[[#This Row],[2024/25 From - Total]]+Dataset[[#This Row],[2024/25 To - Total]]","v":0},{"$f":"Dataset[[#This Row],[2025/26 Baseline]]+Dataset[[#This Row],[2025/26 From - Total]]+Dataset[[#This Row],[2025/26 To - Total]]","v":0}]
["NAT|Non-transfer item","2|Inventory: Clothing material and accessories","2023_24","MTEF2023",2,2,3,1023,406,"02","02","03","001023","000406","02|02|03",1,1,2,21,21,"01|01|02|21|21","National","Parliament","Legislation and Oversight","Public Participation and external relations: Shared Services","Non-transfer item","Current","Current payments","Goods and services","Inventory: Clothing material and accessories","Inventory: Clothing material and accessories","General public services","Executive and legislative organs","NAT",0,0,0,0,0,0,0,0,0,0,0,null,null,null,null,null,null,null,null,null,null,null,null,null,null,null,null,null,null,null,null,null,null,null,null,null,null,null,null,null,null,{"$f":"Dataset[[#This Row],[2023/24 From - Spending review Topic 1]]+Dataset[[#This Row],[2023/24 From - Spending review Topic 2]]+Dataset[[#This Row],[2023/24 From - Spending review Topic 3]]+Dataset[[#This Row],[2023/24 From - Spending review Topic 4]]+Dataset[[#This Row],[2023/24 From - Other reallocations]]","v":0},{"$f":"Dataset[[#This Row],[2024/25 From - Spending review Topic 1]]+Dataset[[#This Row],[2024/25 From - Spending review Topic 2]]+Dataset[[#This Row],[2024/25 From - Spending review Topic 3]]+Dataset[[#This Row],[2024/25 From - Spending review Topic 4]]+Dataset[[#This Row],[2024/25 From - Other reallocations]]","v":0},{"$f":"Dataset[[#This Row],[2025/26 From - Spending review Topic 1]]+Dataset[[#This Row],[2025/26 From - Spending review Topic 2]]+Dataset[[#This Row],[2025/26 From - Spending review Topic 3]]+Dataset[[#This Row],[2025/26 From - Spending review Topic 4]]+Dataset[[#This Row],[2025/26 From - Other reallocations]]","v":0},{"$f":"Dataset[[#This Row],[2023/24 To - Spending review Topic 1]]+Dataset[[#This Row],[2023/24 To - Spending review Topic 2]]+Dataset[[#This Row],[2023/24 To - Spending review Topic 3]]+Dataset[[#This Row],[2023/24 To - Spending review Topic 4]]+Dataset[[#This Row],[2023/24 To - Other reallocations]]","v":0},{"$f":"Dataset[[#This Row],[2024/25 To - Spending review Topic 1]]+Dataset[[#This Row],[2024/25 To - Spending review Topic 2]]+Dataset[[#This Row],[2024/25 To - Spending review Topic 3]]+Dataset[[#This Row],[2024/25 To - Spending review Topic 4]]+Dataset[[#This Row],[2024/25 To - Other reallocations]]","v":0},{"$f":"Dataset[[#This Row],[2025/26 To - Spending review Topic 1]]+Dataset[[#This Row],[2025/26 To - Spending review Topic 2]]+Dataset[[#This Row],[2025/26 To - Spending review Topic 3]]+Dataset[[#This Row],[2025/26 To - Spending review Topic 4]]+Dataset[[#This Row],[2025/26 To - Other reallocations]]","v":0},{"$f":"Dataset[[#This Row],[2023/24 Baseline]]+Dataset[[#This Row],[2023/24 From - Total]]+Dataset[[#This Row],[2023/24 To - Total]]","v":0},{"$f":"Dataset[[#This Row],[2024/25 Baseline]]+Dataset[[#This Row],[2024/25 From - Total]]+Dataset[[#This Row],[2024/25 To - Total]]","v":0},{"$f":"Dataset[[#This Row],[2025/26 Baseline]]+Dataset[[#This Row],[2025/26 From - Total]]+Dataset[[#This Row],[2025/26 To - Total]]","v":0}]
["NAT|Non-transfer item","2|Inventory: Farming supplies","2023_24","MTEF2023",2,2,3,1024,407,"02","02","03","001024","000407","02|02|03",1,1,2,22,22,"01|01|02|22|22","National","Parliament","Legislation and Oversight","Public Participation and external relations: Shared Services","Non-transfer item","Current","Current payments","Goods and services","Inventory: Farming supplies","Inventory: Farming supplies","General public services","Executive and legislative organs","NAT",0,0,0,0,0,0,0,0,0,0,0,null,null,null,null,null,null,null,null,null,null,null,null,null,null,null,null,null,null,null,null,null,null,null,null,null,null,null,null,null,null,{"$f":"Dataset[[#This Row],[2023/24 From - Spending review Topic 1]]+Dataset[[#This Row],[2023/24 From - Spending review Topic 2]]+Dataset[[#This Row],[2023/24 From - Spending review Topic 3]]+Dataset[[#This Row],[2023/24 From - Spending review Topic 4]]+Dataset[[#This Row],[2023/24 From - Other reallocations]]","v":0},{"$f":"Dataset[[#This Row],[2024/25 From - Spending review Topic 1]]+Dataset[[#This Row],[2024/25 From - Spending review Topic 2]]+Dataset[[#This Row],[2024/25 From - Spending review Topic 3]]+Dataset[[#This Row],[2024/25 From - Spending review Topic 4]]+Dataset[[#This Row],[2024/25 From - Other reallocations]]","v":0},{"$f":"Dataset[[#This Row],[2025/26 From - Spending review Topic 1]]+Dataset[[#This Row],[2025/26 From - Spending review Topic 2]]+Dataset[[#This Row],[2025/26 From - Spending review Topic 3]]+Dataset[[#This Row],[2025/26 From - Spending review Topic 4]]+Dataset[[#This Row],[2025/26 From - Other reallocations]]","v":0},{"$f":"Dataset[[#This Row],[2023/24 To - Spending review Topic 1]]+Dataset[[#This Row],[2023/24 To - Spending review Topic 2]]+Dataset[[#This Row],[2023/24 To - Spending review Topic 3]]+Dataset[[#This Row],[2023/24 To - Spending review Topic 4]]+Dataset[[#This Row],[2023/24 To - Other reallocations]]","v":0},{"$f":"Dataset[[#This Row],[2024/25 To - Spending review Topic 1]]+Dataset[[#This Row],[2024/25 To - Spending review Topic 2]]+Dataset[[#This Row],[2024/25 To - Spending review Topic 3]]+Dataset[[#This Row],[2024/25 To - Spending review Topic 4]]+Dataset[[#This Row],[2024/25 To - Other reallocations]]","v":0},{"$f":"Dataset[[#This Row],[2025/26 To - Spending review Topic 1]]+Dataset[[#This Row],[2025/26 To - Spending review Topic 2]]+Dataset[[#This Row],[2025/26 To - Spending review Topic 3]]+Dataset[[#This Row],[2025/26 To - Spending review Topic 4]]+Dataset[[#This Row],[2025/26 To - Other reallocations]]","v":0},{"$f":"Dataset[[#This Row],[2023/24 Baseline]]+Dataset[[#This Row],[2023/24 From - Total]]+Dataset[[#This Row],[2023/24 To - Total]]","v":0},{"$f":"Dataset[[#This Row],[2024/25 Baseline]]+Dataset[[#This Row],[2024/25 From - Total]]+Dataset[[#This Row],[2024/25 To - Total]]","v":0},{"$f":"Dataset[[#This Row],[2025/26 Baseline]]+Dataset[[#This Row],[2025/26 From - Total]]+Dataset[[#This Row],[2025/26 To - Total]]","v":0}]
["NAT|Non-transfer item","2|Inventory: Food and food supplies","2023_24","MTEF2023",2,2,3,1025,408,"02","02","03","001025","000408","02|02|03",1,1,2,23,23,"01|01|02|23|23","National","Parliament","Legislation and Oversight","Public Participation and external relations: Shared Services","Non-transfer item","Current","Current payments","Goods and services","Inventory: Food and food supplies","Inventory: Food and food supplies","General public services","Executive and legislative organs","NAT",0,0,0,0,0,0,0,0,0,0,0,null,null,null,null,null,null,null,null,null,null,null,null,null,null,null,null,null,null,null,null,null,null,null,null,null,null,null,null,null,null,{"$f":"Dataset[[#This Row],[2023/24 From - Spending review Topic 1]]+Dataset[[#This Row],[2023/24 From - Spending review Topic 2]]+Dataset[[#This Row],[2023/24 From - Spending review Topic 3]]+Dataset[[#This Row],[2023/24 From - Spending review Topic 4]]+Dataset[[#This Row],[2023/24 From - Other reallocations]]","v":0},{"$f":"Dataset[[#This Row],[2024/25 From - Spending review Topic 1]]+Dataset[[#This Row],[2024/25 From - Spending review Topic 2]]+Dataset[[#This Row],[2024/25 From - Spending review Topic 3]]+Dataset[[#This Row],[2024/25 From - Spending review Topic 4]]+Dataset[[#This Row],[2024/25 From - Other reallocations]]","v":0},{"$f":"Dataset[[#This Row],[2025/26 From - Spending review Topic 1]]+Dataset[[#This Row],[2025/26 From - Spending review Topic 2]]+Dataset[[#This Row],[2025/26 From - Spending review Topic 3]]+Dataset[[#This Row],[2025/26 From - Spending review Topic 4]]+Dataset[[#This Row],[2025/26 From - Other reallocations]]","v":0},{"$f":"Dataset[[#This Row],[2023/24 To - Spending review Topic 1]]+Dataset[[#This Row],[2023/24 To - Spending review Topic 2]]+Dataset[[#This Row],[2023/24 To - Spending review Topic 3]]+Dataset[[#This Row],[2023/24 To - Spending review Topic 4]]+Dataset[[#This Row],[2023/24 To - Other reallocations]]","v":0},{"$f":"Dataset[[#This Row],[2024/25 To - Spending review Topic 1]]+Dataset[[#This Row],[2024/25 To - Spending review Topic 2]]+Dataset[[#This Row],[2024/25 To - Spending review Topic 3]]+Dataset[[#This Row],[2024/25 To - Spending review Topic 4]]+Dataset[[#This Row],[2024/25 To - Other reallocations]]","v":0},{"$f":"Dataset[[#This Row],[2025/26 To - Spending review Topic 1]]+Dataset[[#This Row],[2025/26 To - Spending review Topic 2]]+Dataset[[#This Row],[2025/26 To - Spending review Topic 3]]+Dataset[[#This Row],[2025/26 To - Spending review Topic 4]]+Dataset[[#This Row],[2025/26 To - Other reallocations]]","v":0},{"$f":"Dataset[[#This Row],[2023/24 Baseline]]+Dataset[[#This Row],[2023/24 From - Total]]+Dataset[[#This Row],[2023/24 To - Total]]","v":0},{"$f":"Dataset[[#This Row],[2024/25 Baseline]]+Dataset[[#This Row],[2024/25 From - Total]]+Dataset[[#This Row],[2024/25 To - Total]]","v":0},{"$f":"Dataset[[#This Row],[2025/26 Baseline]]+Dataset[[#This Row],[2025/26 From - Total]]+Dataset[[#This Row],[2025/26 To - Total]]","v":0}]
["NAT|Non-transfer item","2|Inventory: Fuel, oil and gas","2023_24","MTEF2023",2,2,3,1026,409,"02","02","03","001026","000409","02|02|03",1,1,2,24,24,"01|01|02|24|24","National","Parliament","Legislation and Oversight","Public Participation and external relations: Shared Services","Non-transfer item","Current","Current payments","Goods and services","Inventory: Fuel, oil and gas","Inventory: Fuel, oil and gas","General public services","Executive and legislative organs","NAT",0,0,0,0,0,0,0,0,0,0,0,null,null,null,null,null,null,null,null,null,null,null,null,null,null,null,null,null,null,null,null,null,null,null,null,null,null,null,null,null,null,{"$f":"Dataset[[#This Row],[2023/24 From - Spending review Topic 1]]+Dataset[[#This Row],[2023/24 From - Spending review Topic 2]]+Dataset[[#This Row],[2023/24 From - Spending review Topic 3]]+Dataset[[#This Row],[2023/24 From - Spending review Topic 4]]+Dataset[[#This Row],[2023/24 From - Other reallocations]]","v":0},{"$f":"Dataset[[#This Row],[2024/25 From - Spending review Topic 1]]+Dataset[[#This Row],[2024/25 From - Spending review Topic 2]]+Dataset[[#This Row],[2024/25 From - Spending review Topic 3]]+Dataset[[#This Row],[2024/25 From - Spending review Topic 4]]+Dataset[[#This Row],[2024/25 From - Other reallocations]]","v":0},{"$f":"Dataset[[#This Row],[2025/26 From - Spending review Topic 1]]+Dataset[[#This Row],[2025/26 From - Spending review Topic 2]]+Dataset[[#This Row],[2025/26 From - Spending review Topic 3]]+Dataset[[#This Row],[2025/26 From - Spending review Topic 4]]+Dataset[[#This Row],[2025/26 From - Other reallocations]]","v":0},{"$f":"Dataset[[#This Row],[2023/24 To - Spending review Topic 1]]+Dataset[[#This Row],[2023/24 To - Spending review Topic 2]]+Dataset[[#This Row],[2023/24 To - Spending review Topic 3]]+Dataset[[#This Row],[2023/24 To - Spending review Topic 4]]+Dataset[[#This Row],[2023/24 To - Other reallocations]]","v":0},{"$f":"Dataset[[#This Row],[2024/25 To - Spending review Topic 1]]+Dataset[[#This Row],[2024/25 To - Spending review Topic 2]]+Dataset[[#This Row],[2024/25 To - Spending review Topic 3]]+Dataset[[#This Row],[2024/25 To - Spending review Topic 4]]+Dataset[[#This Row],[2024/25 To - Other reallocations]]","v":0},{"$f":"Dataset[[#This Row],[2025/26 To - Spending review Topic 1]]+Dataset[[#This Row],[2025/26 To - Spending review Topic 2]]+Dataset[[#This Row],[2025/26 To - Spending review Topic 3]]+Dataset[[#This Row],[2025/26 To - Spending review Topic 4]]+Dataset[[#This Row],[2025/26 To - Other reallocations]]","v":0},{"$f":"Dataset[[#This Row],[2023/24 Baseline]]+Dataset[[#This Row],[2023/24 From - Total]]+Dataset[[#This Row],[2023/24 To - Total]]","v":0},{"$f":"Dataset[[#This Row],[2024/25 Baseline]]+Dataset[[#This Row],[2024/25 From - Total]]+Dataset[[#This Row],[2024/25 To - Total]]","v":0},{"$f":"Dataset[[#This Row],[2025/26 Baseline]]+Dataset[[#This Row],[2025/26 From - Total]]+Dataset[[#This Row],[2025/26 To - Total]]","v":0}]
["NAT|Non-transfer item","2|Inventory: Learner and teacher support material","2023_24","MTEF2023",2,2,3,1027,410,"02","02","03","001027","000410","02|02|03",1,1,2,25,25,"01|01|02|25|25","National","Parliament","Legislation and Oversight","Public Participation and external relations: Shared Services","Non-transfer item","Current","Current payments","Goods and services","Inventory: Learner and teacher support material","Inventory: Learner and teacher support material","General public services","Executive and legislative organs","NAT",0,0,0,0,0,0,0,0,0,0,0,null,null,null,null,null,null,null,null,null,null,null,null,null,null,null,null,null,null,null,null,null,null,null,null,null,null,null,null,null,null,{"$f":"Dataset[[#This Row],[2023/24 From - Spending review Topic 1]]+Dataset[[#This Row],[2023/24 From - Spending review Topic 2]]+Dataset[[#This Row],[2023/24 From - Spending review Topic 3]]+Dataset[[#This Row],[2023/24 From - Spending review Topic 4]]+Dataset[[#This Row],[2023/24 From - Other reallocations]]","v":0},{"$f":"Dataset[[#This Row],[2024/25 From - Spending review Topic 1]]+Dataset[[#This Row],[2024/25 From - Spending review Topic 2]]+Dataset[[#This Row],[2024/25 From - Spending review Topic 3]]+Dataset[[#This Row],[2024/25 From - Spending review Topic 4]]+Dataset[[#This Row],[2024/25 From - Other reallocations]]","v":0},{"$f":"Dataset[[#This Row],[2025/26 From - Spending review Topic 1]]+Dataset[[#This Row],[2025/26 From - Spending review Topic 2]]+Dataset[[#This Row],[2025/26 From - Spending review Topic 3]]+Dataset[[#This Row],[2025/26 From - Spending review Topic 4]]+Dataset[[#This Row],[2025/26 From - Other reallocations]]","v":0},{"$f":"Dataset[[#This Row],[2023/24 To - Spending review Topic 1]]+Dataset[[#This Row],[2023/24 To - Spending review Topic 2]]+Dataset[[#This Row],[2023/24 To - Spending review Topic 3]]+Dataset[[#This Row],[2023/24 To - Spending review Topic 4]]+Dataset[[#This Row],[2023/24 To - Other reallocations]]","v":0},{"$f":"Dataset[[#This Row],[2024/25 To - Spending review Topic 1]]+Dataset[[#This Row],[2024/25 To - Spending review Topic 2]]+Dataset[[#This Row],[2024/25 To - Spending review Topic 3]]+Dataset[[#This Row],[2024/25 To - Spending review Topic 4]]+Dataset[[#This Row],[2024/25 To - Other reallocations]]","v":0},{"$f":"Dataset[[#This Row],[2025/26 To - Spending review Topic 1]]+Dataset[[#This Row],[2025/26 To - Spending review Topic 2]]+Dataset[[#This Row],[2025/26 To - Spending review Topic 3]]+Dataset[[#This Row],[2025/26 To - Spending review Topic 4]]+Dataset[[#This Row],[2025/26 To - Other reallocations]]","v":0},{"$f":"Dataset[[#This Row],[2023/24 Baseline]]+Dataset[[#This Row],[2023/24 From - Total]]+Dataset[[#This Row],[2023/24 To - Total]]","v":0},{"$f":"Dataset[[#This Row],[2024/25 Baseline]]+Dataset[[#This Row],[2024/25 From - Total]]+Dataset[[#This Row],[2024/25 To - Total]]","v":0},{"$f":"Dataset[[#This Row],[2025/26 Baseline]]+Dataset[[#This Row],[2025/26 From - Total]]+Dataset[[#This Row],[2025/26 To - Total]]","v":0}]
["NAT|Non-transfer item","2|Inventory: Materials and supplies","2023_24","MTEF2023",2,2,3,1028,411,"02","02","03","001028","000411","02|02|03",1,1,2,26,26,"01|01|02|26|26","National","Parliament","Legislation and Oversight","Public Participation and external relations: Shared Services","Non-transfer item","Current","Current payments","Goods and services","Inventory: Materials and supplies","Inventory: Materials and supplies","General public services","Executive and legislative organs","NAT",0,0,0,0,0,0,0,0,0,0,0,null,null,null,null,null,null,null,null,null,null,null,null,null,null,null,null,null,null,null,null,null,null,null,null,null,null,null,null,null,null,{"$f":"Dataset[[#This Row],[2023/24 From - Spending review Topic 1]]+Dataset[[#This Row],[2023/24 From - Spending review Topic 2]]+Dataset[[#This Row],[2023/24 From - Spending review Topic 3]]+Dataset[[#This Row],[2023/24 From - Spending review Topic 4]]+Dataset[[#This Row],[2023/24 From - Other reallocations]]","v":0},{"$f":"Dataset[[#This Row],[2024/25 From - Spending review Topic 1]]+Dataset[[#This Row],[2024/25 From - Spending review Topic 2]]+Dataset[[#This Row],[2024/25 From - Spending review Topic 3]]+Dataset[[#This Row],[2024/25 From - Spending review Topic 4]]+Dataset[[#This Row],[2024/25 From - Other reallocations]]","v":0},{"$f":"Dataset[[#This Row],[2025/26 From - Spending review Topic 1]]+Dataset[[#This Row],[2025/26 From - Spending review Topic 2]]+Dataset[[#This Row],[2025/26 From - Spending review Topic 3]]+Dataset[[#This Row],[2025/26 From - Spending review Topic 4]]+Dataset[[#This Row],[2025/26 From - Other reallocations]]","v":0},{"$f":"Dataset[[#This Row],[2023/24 To - Spending review Topic 1]]+Dataset[[#This Row],[2023/24 To - Spending review Topic 2]]+Dataset[[#This Row],[2023/24 To - Spending review Topic 3]]+Dataset[[#This Row],[2023/24 To - Spending review Topic 4]]+Dataset[[#This Row],[2023/24 To - Other reallocations]]","v":0},{"$f":"Dataset[[#This Row],[2024/25 To - Spending review Topic 1]]+Dataset[[#This Row],[2024/25 To - Spending review Topic 2]]+Dataset[[#This Row],[2024/25 To - Spending review Topic 3]]+Dataset[[#This Row],[2024/25 To - Spending review Topic 4]]+Dataset[[#This Row],[2024/25 To - Other reallocations]]","v":0},{"$f":"Dataset[[#This Row],[2025/26 To - Spending review Topic 1]]+Dataset[[#This Row],[2025/26 To - Spending review Topic 2]]+Dataset[[#This Row],[2025/26 To - Spending review Topic 3]]+Dataset[[#This Row],[2025/26 To - Spending review Topic 4]]+Dataset[[#This Row],[2025/26 To - Other reallocations]]","v":0},{"$f":"Dataset[[#This Row],[2023/24 Baseline]]+Dataset[[#This Row],[2023/24 From - Total]]+Dataset[[#This Row],[2023/24 To - Total]]","v":0},{"$f":"Dataset[[#This Row],[2024/25 Baseline]]+Dataset[[#This Row],[2024/25 From - Total]]+Dataset[[#This Row],[2024/25 To - Total]]","v":0},{"$f":"Dataset[[#This Row],[2025/26 Baseline]]+Dataset[[#This Row],[2025/26 From - Total]]+Dataset[[#This Row],[2025/26 To - Total]]","v":0}]
["NAT|Non-transfer item","2|Inventory: Medical supplies","2023_24","MTEF2023",2,2,3,1029,412,"02","02","03","001029","000412","02|02|03",1,1,2,27,27,"01|01|02|27|27","National","Parliament","Legislation and Oversight","Public Participation and external relations: Shared Services","Non-transfer item","Current","Current payments","Goods and services","Inventory: Medical supplies","Inventory: Medical supplies","General public services","Executive and legislative organs","NAT",0,0,0,0,0,0,0,0,0,0,0,null,null,null,null,null,null,null,null,null,null,null,null,null,null,null,null,null,null,null,null,null,null,null,null,null,null,null,null,null,null,{"$f":"Dataset[[#This Row],[2023/24 From - Spending review Topic 1]]+Dataset[[#This Row],[2023/24 From - Spending review Topic 2]]+Dataset[[#This Row],[2023/24 From - Spending review Topic 3]]+Dataset[[#This Row],[2023/24 From - Spending review Topic 4]]+Dataset[[#This Row],[2023/24 From - Other reallocations]]","v":0},{"$f":"Dataset[[#This Row],[2024/25 From - Spending review Topic 1]]+Dataset[[#This Row],[2024/25 From - Spending review Topic 2]]+Dataset[[#This Row],[2024/25 From - Spending review Topic 3]]+Dataset[[#This Row],[2024/25 From - Spending review Topic 4]]+Dataset[[#This Row],[2024/25 From - Other reallocations]]","v":0},{"$f":"Dataset[[#This Row],[2025/26 From - Spending review Topic 1]]+Dataset[[#This Row],[2025/26 From - Spending review Topic 2]]+Dataset[[#This Row],[2025/26 From - Spending review Topic 3]]+Dataset[[#This Row],[2025/26 From - Spending review Topic 4]]+Dataset[[#This Row],[2025/26 From - Other reallocations]]","v":0},{"$f":"Dataset[[#This Row],[2023/24 To - Spending review Topic 1]]+Dataset[[#This Row],[2023/24 To - Spending review Topic 2]]+Dataset[[#This Row],[2023/24 To - Spending review Topic 3]]+Dataset[[#This Row],[2023/24 To - Spending review Topic 4]]+Dataset[[#This Row],[2023/24 To - Other reallocations]]","v":0},{"$f":"Dataset[[#This Row],[2024/25 To - Spending review Topic 1]]+Dataset[[#This Row],[2024/25 To - Spending review Topic 2]]+Dataset[[#This Row],[2024/25 To - Spending review Topic 3]]+Dataset[[#This Row],[2024/25 To - Spending review Topic 4]]+Dataset[[#This Row],[2024/25 To - Other reallocations]]","v":0},{"$f":"Dataset[[#This Row],[2025/26 To - Spending review Topic 1]]+Dataset[[#This Row],[2025/26 To - Spending review Topic 2]]+Dataset[[#This Row],[2025/26 To - Spending review Topic 3]]+Dataset[[#This Row],[2025/26 To - Spending review Topic 4]]+Dataset[[#This Row],[2025/26 To - Other reallocations]]","v":0},{"$f":"Dataset[[#This Row],[2023/24 Baseline]]+Dataset[[#This Row],[2023/24 From - Total]]+Dataset[[#This Row],[2023/24 To - Total]]","v":0},{"$f":"Dataset[[#This Row],[2024/25 Baseline]]+Dataset[[#This Row],[2024/25 From - Total]]+Dataset[[#This Row],[2024/25 To - Total]]","v":0},{"$f":"Dataset[[#This Row],[2025/26 Baseline]]+Dataset[[#This Row],[2025/26 From - Total]]+Dataset[[#This Row],[2025/26 To - Total]]","v":0}]
["NAT|Non-transfer item","2|Inventory: Medicine","2023_24","MTEF2023",2,2,3,1030,413,"02","02","03","001030","000413","02|02|03",1,1,2,28,28,"01|01|02|28|28","National","Parliament","Legislation and Oversight","Public Participation and external relations: Shared Services","Non-transfer item","Current","Current payments","Goods and services","Inventory: Medicine","Inventory: Medicine","General public services","Executive and legislative organs","NAT",0,0,0,0,0,0,0,0,0,0,0,null,null,null,null,null,null,null,null,null,null,null,null,null,null,null,null,null,null,null,null,null,null,null,null,null,null,null,null,null,null,{"$f":"Dataset[[#This Row],[2023/24 From - Spending review Topic 1]]+Dataset[[#This Row],[2023/24 From - Spending review Topic 2]]+Dataset[[#This Row],[2023/24 From - Spending review Topic 3]]+Dataset[[#This Row],[2023/24 From - Spending review Topic 4]]+Dataset[[#This Row],[2023/24 From - Other reallocations]]","v":0},{"$f":"Dataset[[#This Row],[2024/25 From - Spending review Topic 1]]+Dataset[[#This Row],[2024/25 From - Spending review Topic 2]]+Dataset[[#This Row],[2024/25 From - Spending review Topic 3]]+Dataset[[#This Row],[2024/25 From - Spending review Topic 4]]+Dataset[[#This Row],[2024/25 From - Other reallocations]]","v":0},{"$f":"Dataset[[#This Row],[2025/26 From - Spending review Topic 1]]+Dataset[[#This Row],[2025/26 From - Spending review Topic 2]]+Dataset[[#This Row],[2025/26 From - Spending review Topic 3]]+Dataset[[#This Row],[2025/26 From - Spending review Topic 4]]+Dataset[[#This Row],[2025/26 From - Other reallocations]]","v":0},{"$f":"Dataset[[#This Row],[2023/24 To - Spending review Topic 1]]+Dataset[[#This Row],[2023/24 To - Spending review Topic 2]]+Dataset[[#This Row],[2023/24 To - Spending review Topic 3]]+Dataset[[#This Row],[2023/24 To - Spending review Topic 4]]+Dataset[[#This Row],[2023/24 To - Other reallocations]]","v":0},{"$f":"Dataset[[#This Row],[2024/25 To - Spending review Topic 1]]+Dataset[[#This Row],[2024/25 To - Spending review Topic 2]]+Dataset[[#This Row],[2024/25 To - Spending review Topic 3]]+Dataset[[#This Row],[2024/25 To - Spending review Topic 4]]+Dataset[[#This Row],[2024/25 To - Other reallocations]]","v":0},{"$f":"Dataset[[#This Row],[2025/26 To - Spending review Topic 1]]+Dataset[[#This Row],[2025/26 To - Spending review Topic 2]]+Dataset[[#This Row],[2025/26 To - Spending review Topic 3]]+Dataset[[#This Row],[2025/26 To - Spending review Topic 4]]+Dataset[[#This Row],[2025/26 To - Other reallocations]]","v":0},{"$f":"Dataset[[#This Row],[2023/24 Baseline]]+Dataset[[#This Row],[2023/24 From - Total]]+Dataset[[#This Row],[2023/24 To - Total]]","v":0},{"$f":"Dataset[[#This Row],[2024/25 Baseline]]+Dataset[[#This Row],[2024/25 From - Total]]+Dataset[[#This Row],[2024/25 To - Total]]","v":0},{"$f":"Dataset[[#This Row],[2025/26 Baseline]]+Dataset[[#This Row],[2025/26 From - Total]]+Dataset[[#This Row],[2025/26 To - Total]]","v":0}]
["NAT|Non-transfer item","2|Medsas inventory interface","2023_24","MTEF2023",2,2,3,1031,414,"02","02","03","001031","000414","02|02|03",1,1,2,29,29,"01|01|02|29|29","National","Parliament","Legislation and Oversight","Public Participation and external relations: Shared Services","Non-transfer item","Current","Current payments","Goods and services","Medsas inventory interface","Medsas inventory interface","General public services","Executive and legislative organs","NAT",0,0,0,0,0,0,0,0,0,0,0,null,null,null,null,null,null,null,null,null,null,null,null,null,null,null,null,null,null,null,null,null,null,null,null,null,null,null,null,null,null,{"$f":"Dataset[[#This Row],[2023/24 From - Spending review Topic 1]]+Dataset[[#This Row],[2023/24 From - Spending review Topic 2]]+Dataset[[#This Row],[2023/24 From - Spending review Topic 3]]+Dataset[[#This Row],[2023/24 From - Spending review Topic 4]]+Dataset[[#This Row],[2023/24 From - Other reallocations]]","v":0},{"$f":"Dataset[[#This Row],[2024/25 From - Spending review Topic 1]]+Dataset[[#This Row],[2024/25 From - Spending review Topic 2]]+Dataset[[#This Row],[2024/25 From - Spending review Topic 3]]+Dataset[[#This Row],[2024/25 From - Spending review Topic 4]]+Dataset[[#This Row],[2024/25 From - Other reallocations]]","v":0},{"$f":"Dataset[[#This Row],[2025/26 From - Spending review Topic 1]]+Dataset[[#This Row],[2025/26 From - Spending review Topic 2]]+Dataset[[#This Row],[2025/26 From - Spending review Topic 3]]+Dataset[[#This Row],[2025/26 From - Spending review Topic 4]]+Dataset[[#This Row],[2025/26 From - Other reallocations]]","v":0},{"$f":"Dataset[[#This Row],[2023/24 To - Spending review Topic 1]]+Dataset[[#This Row],[2023/24 To - Spending review Topic 2]]+Dataset[[#This Row],[2023/24 To - Spending review Topic 3]]+Dataset[[#This Row],[2023/24 To - Spending review Topic 4]]+Dataset[[#This Row],[2023/24 To - Other reallocations]]","v":0},{"$f":"Dataset[[#This Row],[2024/25 To - Spending review Topic 1]]+Dataset[[#This Row],[2024/25 To - Spending review Topic 2]]+Dataset[[#This Row],[2024/25 To - Spending review Topic 3]]+Dataset[[#This Row],[2024/25 To - Spending review Topic 4]]+Dataset[[#This Row],[2024/25 To - Other reallocations]]","v":0},{"$f":"Dataset[[#This Row],[2025/26 To - Spending review Topic 1]]+Dataset[[#This Row],[2025/26 To - Spending review Topic 2]]+Dataset[[#This Row],[2025/26 To - Spending review Topic 3]]+Dataset[[#This Row],[2025/26 To - Spending review Topic 4]]+Dataset[[#This Row],[2025/26 To - Other reallocations]]","v":0},{"$f":"Dataset[[#This Row],[2023/24 Baseline]]+Dataset[[#This Row],[2023/24 From - Total]]+Dataset[[#This Row],[2023/24 To - Total]]","v":0},{"$f":"Dataset[[#This Row],[2024/25 Baseline]]+Dataset[[#This Row],[2024/25 From - Total]]+Dataset[[#This Row],[2024/25 To - Total]]","v":0},{"$f":"Dataset[[#This Row],[2025/26 Baseline]]+Dataset[[#This Row],[2025/26 From - Total]]+Dataset[[#This Row],[2025/26 To - Total]]","v":0}]
["NAT|Non-transfer item","2|Inventory: Other supplies","2023_24","MTEF2023",2,2,3,1032,415,"02","02","03","001032","000415","02|02|03",1,1,2,30,30,"01|01|02|30|30","National","Parliament","Legislation and Oversight","Public Participation and external relations: Shared Services","Non-transfer item","Current","Current payments","Goods and services","Inventory: Other supplies","Inventory: Other supplies","General public services","Executive and legislative organs","NAT",0,0,0,0,0,0,0,0,0,0,0,null,null,null,null,null,null,null,null,null,null,null,null,null,null,null,null,null,null,null,null,null,null,null,null,null,null,null,null,null,null,{"$f":"Dataset[[#This Row],[2023/24 From - Spending review Topic 1]]+Dataset[[#This Row],[2023/24 From - Spending review Topic 2]]+Dataset[[#This Row],[2023/24 From - Spending review Topic 3]]+Dataset[[#This Row],[2023/24 From - Spending review Topic 4]]+Dataset[[#This Row],[2023/24 From - Other reallocations]]","v":0},{"$f":"Dataset[[#This Row],[2024/25 From - Spending review Topic 1]]+Dataset[[#This Row],[2024/25 From - Spending review Topic 2]]+Dataset[[#This Row],[2024/25 From - Spending review Topic 3]]+Dataset[[#This Row],[2024/25 From - Spending review Topic 4]]+Dataset[[#This Row],[2024/25 From - Other reallocations]]","v":0},{"$f":"Dataset[[#This Row],[2025/26 From - Spending review Topic 1]]+Dataset[[#This Row],[2025/26 From - Spending review Topic 2]]+Dataset[[#This Row],[2025/26 From - Spending review Topic 3]]+Dataset[[#This Row],[2025/26 From - Spending review Topic 4]]+Dataset[[#This Row],[2025/26 From - Other reallocations]]","v":0},{"$f":"Dataset[[#This Row],[2023/24 To - Spending review Topic 1]]+Dataset[[#This Row],[2023/24 To - Spending review Topic 2]]+Dataset[[#This Row],[2023/24 To - Spending review Topic 3]]+Dataset[[#This Row],[2023/24 To - Spending review Topic 4]]+Dataset[[#This Row],[2023/24 To - Other reallocations]]","v":0},{"$f":"Dataset[[#This Row],[2024/25 To - Spending review Topic 1]]+Dataset[[#This Row],[2024/25 To - Spending review Topic 2]]+Dataset[[#This Row],[2024/25 To - Spending review Topic 3]]+Dataset[[#This Row],[2024/25 To - Spending review Topic 4]]+Dataset[[#This Row],[2024/25 To - Other reallocations]]","v":0},{"$f":"Dataset[[#This Row],[2025/26 To - Spending review Topic 1]]+Dataset[[#This Row],[2025/26 To - Spending review Topic 2]]+Dataset[[#This Row],[2025/26 To - Spending review Topic 3]]+Dataset[[#This Row],[2025/26 To - Spending review Topic 4]]+Dataset[[#This Row],[2025/26 To - Other reallocations]]","v":0},{"$f":"Dataset[[#This Row],[2023/24 Baseline]]+Dataset[[#This Row],[2023/24 From - Total]]+Dataset[[#This Row],[2023/24 To - Total]]","v":0},{"$f":"Dataset[[#This Row],[2024/25 Baseline]]+Dataset[[#This Row],[2024/25 From - Total]]+Dataset[[#This Row],[2024/25 To - Total]]","v":0},{"$f":"Dataset[[#This Row],[2025/26 Baseline]]+Dataset[[#This Row],[2025/26 From - Total]]+Dataset[[#This Row],[2025/26 To - Total]]","v":0}]
["NAT|Non-transfer item","2|Consumable supplies","2023_24","MTEF2023",2,2,3,1033,416,"02","02","03","001033","000416","02|02|03",1,1,2,31,31,"01|01|02|31|31","National","Parliament","Legislation and Oversight","Public Participation and external relations: Shared Services","Non-transfer item","Current","Current payments","Goods and services","Consumable supplies","Consumable supplies","General public services","Executive and legislative organs","NAT",0,43,46,51,51,51,0,53,53,55,57,null,null,null,null,null,null,null,null,null,null,null,null,null,null,null,null,null,null,null,null,null,null,null,null,null,null,null,null,null,null,{"$f":"Dataset[[#This Row],[2023/24 From - Spending review Topic 1]]+Dataset[[#This Row],[2023/24 From - Spending review Topic 2]]+Dataset[[#This Row],[2023/24 From - Spending review Topic 3]]+Dataset[[#This Row],[2023/24 From - Spending review Topic 4]]+Dataset[[#This Row],[2023/24 From - Other reallocations]]","v":0},{"$f":"Dataset[[#This Row],[2024/25 From - Spending review Topic 1]]+Dataset[[#This Row],[2024/25 From - Spending review Topic 2]]+Dataset[[#This Row],[2024/25 From - Spending review Topic 3]]+Dataset[[#This Row],[2024/25 From - Spending review Topic 4]]+Dataset[[#This Row],[2024/25 From - Other reallocations]]","v":0},{"$f":"Dataset[[#This Row],[2025/26 From - Spending review Topic 1]]+Dataset[[#This Row],[2025/26 From - Spending review Topic 2]]+Dataset[[#This Row],[2025/26 From - Spending review Topic 3]]+Dataset[[#This Row],[2025/26 From - Spending review Topic 4]]+Dataset[[#This Row],[2025/26 From - Other reallocations]]","v":0},{"$f":"Dataset[[#This Row],[2023/24 To - Spending review Topic 1]]+Dataset[[#This Row],[2023/24 To - Spending review Topic 2]]+Dataset[[#This Row],[2023/24 To - Spending review Topic 3]]+Dataset[[#This Row],[2023/24 To - Spending review Topic 4]]+Dataset[[#This Row],[2023/24 To - Other reallocations]]","v":0},{"$f":"Dataset[[#This Row],[2024/25 To - Spending review Topic 1]]+Dataset[[#This Row],[2024/25 To - Spending review Topic 2]]+Dataset[[#This Row],[2024/25 To - Spending review Topic 3]]+Dataset[[#This Row],[2024/25 To - Spending review Topic 4]]+Dataset[[#This Row],[2024/25 To - Other reallocations]]","v":0},{"$f":"Dataset[[#This Row],[2025/26 To - Spending review Topic 1]]+Dataset[[#This Row],[2025/26 To - Spending review Topic 2]]+Dataset[[#This Row],[2025/26 To - Spending review Topic 3]]+Dataset[[#This Row],[2025/26 To - Spending review Topic 4]]+Dataset[[#This Row],[2025/26 To - Other reallocations]]","v":0},{"$f":"Dataset[[#This Row],[2023/24 Baseline]]+Dataset[[#This Row],[2023/24 From - Total]]+Dataset[[#This Row],[2023/24 To - Total]]","v":53},{"$f":"Dataset[[#This Row],[2024/25 Baseline]]+Dataset[[#This Row],[2024/25 From - Total]]+Dataset[[#This Row],[2024/25 To - Total]]","v":55},{"$f":"Dataset[[#This Row],[2025/26 Baseline]]+Dataset[[#This Row],[2025/26 From - Total]]+Dataset[[#This Row],[2025/26 To - Total]]","v":57}]
["NAT|Non-transfer item","2|Consumables: Stationery, printing and office supplies","2023_24","MTEF2023",2,2,3,1034,417,"02","02","03","001034","000417","02|02|03",1,1,2,32,32,"01|01|02|32|32","National","Parliament","Legislation and Oversight","Public Participation and external relations: Shared Services","Non-transfer item","Current","Current payments","Goods and services","Consumables: Stationery, printing and office supplies","Consumables: Stationery, printing and office supplies","General public services","Executive and legislative organs","NAT",6233,5407,6586,7291,7291,7291,0,7494,7523,7861,8213,null,null,null,null,null,null,null,null,null,null,null,null,null,null,null,null,null,null,null,null,null,null,null,null,null,null,null,null,null,null,{"$f":"Dataset[[#This Row],[2023/24 From - Spending review Topic 1]]+Dataset[[#This Row],[2023/24 From - Spending review Topic 2]]+Dataset[[#This Row],[2023/24 From - Spending review Topic 3]]+Dataset[[#This Row],[2023/24 From - Spending review Topic 4]]+Dataset[[#This Row],[2023/24 From - Other reallocations]]","v":0},{"$f":"Dataset[[#This Row],[2024/25 From - Spending review Topic 1]]+Dataset[[#This Row],[2024/25 From - Spending review Topic 2]]+Dataset[[#This Row],[2024/25 From - Spending review Topic 3]]+Dataset[[#This Row],[2024/25 From - Spending review Topic 4]]+Dataset[[#This Row],[2024/25 From - Other reallocations]]","v":0},{"$f":"Dataset[[#This Row],[2025/26 From - Spending review Topic 1]]+Dataset[[#This Row],[2025/26 From - Spending review Topic 2]]+Dataset[[#This Row],[2025/26 From - Spending review Topic 3]]+Dataset[[#This Row],[2025/26 From - Spending review Topic 4]]+Dataset[[#This Row],[2025/26 From - Other reallocations]]","v":0},{"$f":"Dataset[[#This Row],[2023/24 To - Spending review Topic 1]]+Dataset[[#This Row],[2023/24 To - Spending review Topic 2]]+Dataset[[#This Row],[2023/24 To - Spending review Topic 3]]+Dataset[[#This Row],[2023/24 To - Spending review Topic 4]]+Dataset[[#This Row],[2023/24 To - Other reallocations]]","v":0},{"$f":"Dataset[[#This Row],[2024/25 To - Spending review Topic 1]]+Dataset[[#This Row],[2024/25 To - Spending review Topic 2]]+Dataset[[#This Row],[2024/25 To - Spending review Topic 3]]+Dataset[[#This Row],[2024/25 To - Spending review Topic 4]]+Dataset[[#This Row],[2024/25 To - Other reallocations]]","v":0},{"$f":"Dataset[[#This Row],[2025/26 To - Spending review Topic 1]]+Dataset[[#This Row],[2025/26 To - Spending review Topic 2]]+Dataset[[#This Row],[2025/26 To - Spending review Topic 3]]+Dataset[[#This Row],[2025/26 To - Spending review Topic 4]]+Dataset[[#This Row],[2025/26 To - Other reallocations]]","v":0},{"$f":"Dataset[[#This Row],[2023/24 Baseline]]+Dataset[[#This Row],[2023/24 From - Total]]+Dataset[[#This Row],[2023/24 To - Total]]","v":7523},{"$f":"Dataset[[#This Row],[2024/25 Baseline]]+Dataset[[#This Row],[2024/25 From - Total]]+Dataset[[#This Row],[2024/25 To - Total]]","v":7861},{"$f":"Dataset[[#This Row],[2025/26 Baseline]]+Dataset[[#This Row],[2025/26 From - Total]]+Dataset[[#This Row],[2025/26 To - Total]]","v":8213}]
["NAT|Non-transfer item","2|Operating leases","2023_24","MTEF2023",2,2,3,1035,418,"02","02","03","001035","000418","02|02|03",1,1,2,33,33,"01|01|02|33|33","National","Parliament","Legislation and Oversight","Public Participation and external relations: Shared Services","Non-transfer item","Current","Current payments","Goods and services","Operating leases","Operating leases","General public services","Executive and legislative organs","NAT",8015,7271,9260,10348,10348,10348,0,10635,10675,11154,11654,null,null,null,null,null,null,null,null,null,null,null,null,null,null,null,null,null,null,null,null,null,null,null,null,null,null,null,null,null,null,{"$f":"Dataset[[#This Row],[2023/24 From - Spending review Topic 1]]+Dataset[[#This Row],[2023/24 From - Spending review Topic 2]]+Dataset[[#This Row],[2023/24 From - Spending review Topic 3]]+Dataset[[#This Row],[2023/24 From - Spending review Topic 4]]+Dataset[[#This Row],[2023/24 From - Other reallocations]]","v":0},{"$f":"Dataset[[#This Row],[2024/25 From - Spending review Topic 1]]+Dataset[[#This Row],[2024/25 From - Spending review Topic 2]]+Dataset[[#This Row],[2024/25 From - Spending review Topic 3]]+Dataset[[#This Row],[2024/25 From - Spending review Topic 4]]+Dataset[[#This Row],[2024/25 From - Other reallocations]]","v":0},{"$f":"Dataset[[#This Row],[2025/26 From - Spending review Topic 1]]+Dataset[[#This Row],[2025/26 From - Spending review Topic 2]]+Dataset[[#This Row],[2025/26 From - Spending review Topic 3]]+Dataset[[#This Row],[2025/26 From - Spending review Topic 4]]+Dataset[[#This Row],[2025/26 From - Other reallocations]]","v":0},{"$f":"Dataset[[#This Row],[2023/24 To - Spending review Topic 1]]+Dataset[[#This Row],[2023/24 To - Spending review Topic 2]]+Dataset[[#This Row],[2023/24 To - Spending review Topic 3]]+Dataset[[#This Row],[2023/24 To - Spending review Topic 4]]+Dataset[[#This Row],[2023/24 To - Other reallocations]]","v":0},{"$f":"Dataset[[#This Row],[2024/25 To - Spending review Topic 1]]+Dataset[[#This Row],[2024/25 To - Spending review Topic 2]]+Dataset[[#This Row],[2024/25 To - Spending review Topic 3]]+Dataset[[#This Row],[2024/25 To - Spending review Topic 4]]+Dataset[[#This Row],[2024/25 To - Other reallocations]]","v":0},{"$f":"Dataset[[#This Row],[2025/26 To - Spending review Topic 1]]+Dataset[[#This Row],[2025/26 To - Spending review Topic 2]]+Dataset[[#This Row],[2025/26 To - Spending review Topic 3]]+Dataset[[#This Row],[2025/26 To - Spending review Topic 4]]+Dataset[[#This Row],[2025/26 To - Other reallocations]]","v":0},{"$f":"Dataset[[#This Row],[2023/24 Baseline]]+Dataset[[#This Row],[2023/24 From - Total]]+Dataset[[#This Row],[2023/24 To - Total]]","v":10675},{"$f":"Dataset[[#This Row],[2024/25 Baseline]]+Dataset[[#This Row],[2024/25 From - Total]]+Dataset[[#This Row],[2024/25 To - Total]]","v":11154},{"$f":"Dataset[[#This Row],[2025/26 Baseline]]+Dataset[[#This Row],[2025/26 From - Total]]+Dataset[[#This Row],[2025/26 To - Total]]","v":11654}]
["NAT|Non-transfer item","2|Rental and hiring","2023_24","MTEF2023",2,2,3,1036,419,"02","02","03","001036","000419","02|02|03",1,1,2,34,34,"01|01|02|34|34","National","Parliament","Legislation and Oversight","Public Participation and external relations: Shared Services","Non-transfer item","Current","Current payments","Goods and services","Rental and hiring","Rental and hiring","General public services","Executive and legislative organs","NAT",0,0,0,0,0,0,0,0,0,0,0,null,null,null,null,null,null,null,null,null,null,null,null,null,null,null,null,null,null,null,null,null,null,null,null,null,null,null,null,null,null,{"$f":"Dataset[[#This Row],[2023/24 From - Spending review Topic 1]]+Dataset[[#This Row],[2023/24 From - Spending review Topic 2]]+Dataset[[#This Row],[2023/24 From - Spending review Topic 3]]+Dataset[[#This Row],[2023/24 From - Spending review Topic 4]]+Dataset[[#This Row],[2023/24 From - Other reallocations]]","v":0},{"$f":"Dataset[[#This Row],[2024/25 From - Spending review Topic 1]]+Dataset[[#This Row],[2024/25 From - Spending review Topic 2]]+Dataset[[#This Row],[2024/25 From - Spending review Topic 3]]+Dataset[[#This Row],[2024/25 From - Spending review Topic 4]]+Dataset[[#This Row],[2024/25 From - Other reallocations]]","v":0},{"$f":"Dataset[[#This Row],[2025/26 From - Spending review Topic 1]]+Dataset[[#This Row],[2025/26 From - Spending review Topic 2]]+Dataset[[#This Row],[2025/26 From - Spending review Topic 3]]+Dataset[[#This Row],[2025/26 From - Spending review Topic 4]]+Dataset[[#This Row],[2025/26 From - Other reallocations]]","v":0},{"$f":"Dataset[[#This Row],[2023/24 To - Spending review Topic 1]]+Dataset[[#This Row],[2023/24 To - Spending review Topic 2]]+Dataset[[#This Row],[2023/24 To - Spending review Topic 3]]+Dataset[[#This Row],[2023/24 To - Spending review Topic 4]]+Dataset[[#This Row],[2023/24 To - Other reallocations]]","v":0},{"$f":"Dataset[[#This Row],[2024/25 To - Spending review Topic 1]]+Dataset[[#This Row],[2024/25 To - Spending review Topic 2]]+Dataset[[#This Row],[2024/25 To - Spending review Topic 3]]+Dataset[[#This Row],[2024/25 To - Spending review Topic 4]]+Dataset[[#This Row],[2024/25 To - Other reallocations]]","v":0},{"$f":"Dataset[[#This Row],[2025/26 To - Spending review Topic 1]]+Dataset[[#This Row],[2025/26 To - Spending review Topic 2]]+Dataset[[#This Row],[2025/26 To - Spending review Topic 3]]+Dataset[[#This Row],[2025/26 To - Spending review Topic 4]]+Dataset[[#This Row],[2025/26 To - Other reallocations]]","v":0},{"$f":"Dataset[[#This Row],[2023/24 Baseline]]+Dataset[[#This Row],[2023/24 From - Total]]+Dataset[[#This Row],[2023/24 To - Total]]","v":0},{"$f":"Dataset[[#This Row],[2024/25 Baseline]]+Dataset[[#This Row],[2024/25 From - Total]]+Dataset[[#This Row],[2024/25 To - Total]]","v":0},{"$f":"Dataset[[#This Row],[2025/26 Baseline]]+Dataset[[#This Row],[2025/26 From - Total]]+Dataset[[#This Row],[2025/26 To - Total]]","v":0}]
["NAT|Non-transfer item","2|Property payments","2023_24","MTEF2023",2,2,3,1037,420,"02","02","03","001037","000420","02|02|03",1,1,2,35,35,"01|01|02|35|35","National","Parliament","Legislation and Oversight","Public Participation and external relations: Shared Services","Non-transfer item","Current","Current payments","Goods and services","Property payments","Property payments","General public services","Executive and legislative organs","NAT",0,0,0,0,0,0,0,0,0,0,0,null,null,null,null,null,null,null,null,null,null,null,null,null,null,null,null,null,null,null,null,null,null,null,null,null,null,null,null,null,null,{"$f":"Dataset[[#This Row],[2023/24 From - Spending review Topic 1]]+Dataset[[#This Row],[2023/24 From - Spending review Topic 2]]+Dataset[[#This Row],[2023/24 From - Spending review Topic 3]]+Dataset[[#This Row],[2023/24 From - Spending review Topic 4]]+Dataset[[#This Row],[2023/24 From - Other reallocations]]","v":0},{"$f":"Dataset[[#This Row],[2024/25 From - Spending review Topic 1]]+Dataset[[#This Row],[2024/25 From - Spending review Topic 2]]+Dataset[[#This Row],[2024/25 From - Spending review Topic 3]]+Dataset[[#This Row],[2024/25 From - Spending review Topic 4]]+Dataset[[#This Row],[2024/25 From - Other reallocations]]","v":0},{"$f":"Dataset[[#This Row],[2025/26 From - Spending review Topic 1]]+Dataset[[#This Row],[2025/26 From - Spending review Topic 2]]+Dataset[[#This Row],[2025/26 From - Spending review Topic 3]]+Dataset[[#This Row],[2025/26 From - Spending review Topic 4]]+Dataset[[#This Row],[2025/26 From - Other reallocations]]","v":0},{"$f":"Dataset[[#This Row],[2023/24 To - Spending review Topic 1]]+Dataset[[#This Row],[2023/24 To - Spending review Topic 2]]+Dataset[[#This Row],[2023/24 To - Spending review Topic 3]]+Dataset[[#This Row],[2023/24 To - Spending review Topic 4]]+Dataset[[#This Row],[2023/24 To - Other reallocations]]","v":0},{"$f":"Dataset[[#This Row],[2024/25 To - Spending review Topic 1]]+Dataset[[#This Row],[2024/25 To - Spending review Topic 2]]+Dataset[[#This Row],[2024/25 To - Spending review Topic 3]]+Dataset[[#This Row],[2024/25 To - Spending review Topic 4]]+Dataset[[#This Row],[2024/25 To - Other reallocations]]","v":0},{"$f":"Dataset[[#This Row],[2025/26 To - Spending review Topic 1]]+Dataset[[#This Row],[2025/26 To - Spending review Topic 2]]+Dataset[[#This Row],[2025/26 To - Spending review Topic 3]]+Dataset[[#This Row],[2025/26 To - Spending review Topic 4]]+Dataset[[#This Row],[2025/26 To - Other reallocations]]","v":0},{"$f":"Dataset[[#This Row],[2023/24 Baseline]]+Dataset[[#This Row],[2023/24 From - Total]]+Dataset[[#This Row],[2023/24 To - Total]]","v":0},{"$f":"Dataset[[#This Row],[2024/25 Baseline]]+Dataset[[#This Row],[2024/25 From - Total]]+Dataset[[#This Row],[2024/25 To - Total]]","v":0},{"$f":"Dataset[[#This Row],[2025/26 Baseline]]+Dataset[[#This Row],[2025/26 From - Total]]+Dataset[[#This Row],[2025/26 To - Total]]","v":0}]
["NAT|Non-transfer item","2|Transport provided: Departmental activity","2023_24","MTEF2023",2,2,3,1038,421,"02","02","03","001038","000421","02|02|03",1,1,2,36,36,"01|01|02|36|36","National","Parliament","Legislation and Oversight","Public Participation and external relations: Shared Services","Non-transfer item","Current","Current payments","Goods and services","Transport provided: Departmental activity","Transport provided: Departmental activity","General public services","Executive and legislative organs","NAT",39131,129790,88164,142045,142045,142045,0,133856,134943,141526,147866,null,null,null,null,null,null,null,null,null,null,null,null,null,null,null,null,null,null,null,null,null,null,null,null,null,null,null,null,null,null,{"$f":"Dataset[[#This Row],[2023/24 From - Spending review Topic 1]]+Dataset[[#This Row],[2023/24 From - Spending review Topic 2]]+Dataset[[#This Row],[2023/24 From - Spending review Topic 3]]+Dataset[[#This Row],[2023/24 From - Spending review Topic 4]]+Dataset[[#This Row],[2023/24 From - Other reallocations]]","v":0},{"$f":"Dataset[[#This Row],[2024/25 From - Spending review Topic 1]]+Dataset[[#This Row],[2024/25 From - Spending review Topic 2]]+Dataset[[#This Row],[2024/25 From - Spending review Topic 3]]+Dataset[[#This Row],[2024/25 From - Spending review Topic 4]]+Dataset[[#This Row],[2024/25 From - Other reallocations]]","v":0},{"$f":"Dataset[[#This Row],[2025/26 From - Spending review Topic 1]]+Dataset[[#This Row],[2025/26 From - Spending review Topic 2]]+Dataset[[#This Row],[2025/26 From - Spending review Topic 3]]+Dataset[[#This Row],[2025/26 From - Spending review Topic 4]]+Dataset[[#This Row],[2025/26 From - Other reallocations]]","v":0},{"$f":"Dataset[[#This Row],[2023/24 To - Spending review Topic 1]]+Dataset[[#This Row],[2023/24 To - Spending review Topic 2]]+Dataset[[#This Row],[2023/24 To - Spending review Topic 3]]+Dataset[[#This Row],[2023/24 To - Spending review Topic 4]]+Dataset[[#This Row],[2023/24 To - Other reallocations]]","v":0},{"$f":"Dataset[[#This Row],[2024/25 To - Spending review Topic 1]]+Dataset[[#This Row],[2024/25 To - Spending review Topic 2]]+Dataset[[#This Row],[2024/25 To - Spending review Topic 3]]+Dataset[[#This Row],[2024/25 To - Spending review Topic 4]]+Dataset[[#This Row],[2024/25 To - Other reallocations]]","v":0},{"$f":"Dataset[[#This Row],[2025/26 To - Spending review Topic 1]]+Dataset[[#This Row],[2025/26 To - Spending review Topic 2]]+Dataset[[#This Row],[2025/26 To - Spending review Topic 3]]+Dataset[[#This Row],[2025/26 To - Spending review Topic 4]]+Dataset[[#This Row],[2025/26 To - Other reallocations]]","v":0},{"$f":"Dataset[[#This Row],[2023/24 Baseline]]+Dataset[[#This Row],[2023/24 From - Total]]+Dataset[[#This Row],[2023/24 To - Total]]","v":134943},{"$f":"Dataset[[#This Row],[2024/25 Baseline]]+Dataset[[#This Row],[2024/25 From - Total]]+Dataset[[#This Row],[2024/25 To - Total]]","v":141526},{"$f":"Dataset[[#This Row],[2025/26 Baseline]]+Dataset[[#This Row],[2025/26 From - Total]]+Dataset[[#This Row],[2025/26 To - Total]]","v":147866}]
["NAT|Non-transfer item","2|Travel and subsistence","2023_24","MTEF2023",2,2,3,1039,422,"02","02","03","001039","000422","02|02|03",1,1,2,37,37,"01|01|02|37|37","National","Parliament","Legislation and Oversight","Public Participation and external relations: Shared Services","Non-transfer item","Current","Current payments","Goods and services","Travel and subsistence","Travel and subsistence","General public services","Executive and legislative organs","NAT",6463,5279,6298,6884,6884,6884,0,7075,7103,7422,7755,null,null,null,null,null,null,null,null,null,null,null,null,null,null,null,null,null,null,null,null,null,null,null,null,null,null,null,null,null,null,{"$f":"Dataset[[#This Row],[2023/24 From - Spending review Topic 1]]+Dataset[[#This Row],[2023/24 From - Spending review Topic 2]]+Dataset[[#This Row],[2023/24 From - Spending review Topic 3]]+Dataset[[#This Row],[2023/24 From - Spending review Topic 4]]+Dataset[[#This Row],[2023/24 From - Other reallocations]]","v":0},{"$f":"Dataset[[#This Row],[2024/25 From - Spending review Topic 1]]+Dataset[[#This Row],[2024/25 From - Spending review Topic 2]]+Dataset[[#This Row],[2024/25 From - Spending review Topic 3]]+Dataset[[#This Row],[2024/25 From - Spending review Topic 4]]+Dataset[[#This Row],[2024/25 From - Other reallocations]]","v":0},{"$f":"Dataset[[#This Row],[2025/26 From - Spending review Topic 1]]+Dataset[[#This Row],[2025/26 From - Spending review Topic 2]]+Dataset[[#This Row],[2025/26 From - Spending review Topic 3]]+Dataset[[#This Row],[2025/26 From - Spending review Topic 4]]+Dataset[[#This Row],[2025/26 From - Other reallocations]]","v":0},{"$f":"Dataset[[#This Row],[2023/24 To - Spending review Topic 1]]+Dataset[[#This Row],[2023/24 To - Spending review Topic 2]]+Dataset[[#This Row],[2023/24 To - Spending review Topic 3]]+Dataset[[#This Row],[2023/24 To - Spending review Topic 4]]+Dataset[[#This Row],[2023/24 To - Other reallocations]]","v":0},{"$f":"Dataset[[#This Row],[2024/25 To - Spending review Topic 1]]+Dataset[[#This Row],[2024/25 To - Spending review Topic 2]]+Dataset[[#This Row],[2024/25 To - Spending review Topic 3]]+Dataset[[#This Row],[2024/25 To - Spending review Topic 4]]+Dataset[[#This Row],[2024/25 To - Other reallocations]]","v":0},{"$f":"Dataset[[#This Row],[2025/26 To - Spending review Topic 1]]+Dataset[[#This Row],[2025/26 To - Spending review Topic 2]]+Dataset[[#This Row],[2025/26 To - Spending review Topic 3]]+Dataset[[#This Row],[2025/26 To - Spending review Topic 4]]+Dataset[[#This Row],[2025/26 To - Other reallocations]]","v":0},{"$f":"Dataset[[#This Row],[2023/24 Baseline]]+Dataset[[#This Row],[2023/24 From - Total]]+Dataset[[#This Row],[2023/24 To - Total]]","v":7103},{"$f":"Dataset[[#This Row],[2024/25 Baseline]]+Dataset[[#This Row],[2024/25 From - Total]]+Dataset[[#This Row],[2024/25 To - Total]]","v":7422},{"$f":"Dataset[[#This Row],[2025/26 Baseline]]+Dataset[[#This Row],[2025/26 From - Total]]+Dataset[[#This Row],[2025/26 To - Total]]","v":7755}]
["NAT|Non-transfer item","2|Training and development","2023_24","MTEF2023",2,2,3,1040,423,"02","02","03","001040","000423","02|02|03",1,1,2,38,38,"01|01|02|38|38","National","Parliament","Legislation and Oversight","Public Participation and external relations: Shared Services","Non-transfer item","Current","Current payments","Goods and services","Training and development","Training and development","General public services","Executive and legislative organs","NAT",21070,14370,27361,30272,30272,30272,0,31106,31226,32628,34090,null,null,null,null,null,null,null,null,null,null,null,null,null,null,null,null,null,null,null,null,null,null,null,null,null,null,null,null,null,null,{"$f":"Dataset[[#This Row],[2023/24 From - Spending review Topic 1]]+Dataset[[#This Row],[2023/24 From - Spending review Topic 2]]+Dataset[[#This Row],[2023/24 From - Spending review Topic 3]]+Dataset[[#This Row],[2023/24 From - Spending review Topic 4]]+Dataset[[#This Row],[2023/24 From - Other reallocations]]","v":0},{"$f":"Dataset[[#This Row],[2024/25 From - Spending review Topic 1]]+Dataset[[#This Row],[2024/25 From - Spending review Topic 2]]+Dataset[[#This Row],[2024/25 From - Spending review Topic 3]]+Dataset[[#This Row],[2024/25 From - Spending review Topic 4]]+Dataset[[#This Row],[2024/25 From - Other reallocations]]","v":0},{"$f":"Dataset[[#This Row],[2025/26 From - Spending review Topic 1]]+Dataset[[#This Row],[2025/26 From - Spending review Topic 2]]+Dataset[[#This Row],[2025/26 From - Spending review Topic 3]]+Dataset[[#This Row],[2025/26 From - Spending review Topic 4]]+Dataset[[#This Row],[2025/26 From - Other reallocations]]","v":0},{"$f":"Dataset[[#This Row],[2023/24 To - Spending review Topic 1]]+Dataset[[#This Row],[2023/24 To - Spending review Topic 2]]+Dataset[[#This Row],[2023/24 To - Spending review Topic 3]]+Dataset[[#This Row],[2023/24 To - Spending review Topic 4]]+Dataset[[#This Row],[2023/24 To - Other reallocations]]","v":0},{"$f":"Dataset[[#This Row],[2024/25 To - Spending review Topic 1]]+Dataset[[#This Row],[2024/25 To - Spending review Topic 2]]+Dataset[[#This Row],[2024/25 To - Spending review Topic 3]]+Dataset[[#This Row],[2024/25 To - Spending review Topic 4]]+Dataset[[#This Row],[2024/25 To - Other reallocations]]","v":0},{"$f":"Dataset[[#This Row],[2025/26 To - Spending review Topic 1]]+Dataset[[#This Row],[2025/26 To - Spending review Topic 2]]+Dataset[[#This Row],[2025/26 To - Spending review Topic 3]]+Dataset[[#This Row],[2025/26 To - Spending review Topic 4]]+Dataset[[#This Row],[2025/26 To - Other reallocations]]","v":0},{"$f":"Dataset[[#This Row],[2023/24 Baseline]]+Dataset[[#This Row],[2023/24 From - Total]]+Dataset[[#This Row],[2023/24 To - Total]]","v":31226},{"$f":"Dataset[[#This Row],[2024/25 Baseline]]+Dataset[[#This Row],[2024/25 From - Total]]+Dataset[[#This Row],[2024/25 To - Total]]","v":32628},{"$f":"Dataset[[#This Row],[2025/26 Baseline]]+Dataset[[#This Row],[2025/26 From - Total]]+Dataset[[#This Row],[2025/26 To - Total]]","v":34090}]
["NAT|Non-transfer item","2|Operating payments","2023_24","MTEF2023",2,2,3,1041,424,"02","02","03","001041","000424","02|02|03",1,1,2,39,39,"01|01|02|39|39","National","Parliament","Legislation and Oversight","Public Participation and external relations: Shared Services","Non-transfer item","Current","Current payments","Goods and services","Operating payments","Operating payments","General public services","Executive and legislative organs","NAT",0,0,0,0,0,0,0,12000,12000,12000,12538,null,null,null,null,null,null,null,null,null,null,null,null,null,null,null,null,null,null,null,null,null,null,null,null,null,null,null,null,null,null,{"$f":"Dataset[[#This Row],[2023/24 From - Spending review Topic 1]]+Dataset[[#This Row],[2023/24 From - Spending review Topic 2]]+Dataset[[#This Row],[2023/24 From - Spending review Topic 3]]+Dataset[[#This Row],[2023/24 From - Spending review Topic 4]]+Dataset[[#This Row],[2023/24 From - Other reallocations]]","v":0},{"$f":"Dataset[[#This Row],[2024/25 From - Spending review Topic 1]]+Dataset[[#This Row],[2024/25 From - Spending review Topic 2]]+Dataset[[#This Row],[2024/25 From - Spending review Topic 3]]+Dataset[[#This Row],[2024/25 From - Spending review Topic 4]]+Dataset[[#This Row],[2024/25 From - Other reallocations]]","v":0},{"$f":"Dataset[[#This Row],[2025/26 From - Spending review Topic 1]]+Dataset[[#This Row],[2025/26 From - Spending review Topic 2]]+Dataset[[#This Row],[2025/26 From - Spending review Topic 3]]+Dataset[[#This Row],[2025/26 From - Spending review Topic 4]]+Dataset[[#This Row],[2025/26 From - Other reallocations]]","v":0},{"$f":"Dataset[[#This Row],[2023/24 To - Spending review Topic 1]]+Dataset[[#This Row],[2023/24 To - Spending review Topic 2]]+Dataset[[#This Row],[2023/24 To - Spending review Topic 3]]+Dataset[[#This Row],[2023/24 To - Spending review Topic 4]]+Dataset[[#This Row],[2023/24 To - Other reallocations]]","v":0},{"$f":"Dataset[[#This Row],[2024/25 To - Spending review Topic 1]]+Dataset[[#This Row],[2024/25 To - Spending review Topic 2]]+Dataset[[#This Row],[2024/25 To - Spending review Topic 3]]+Dataset[[#This Row],[2024/25 To - Spending review Topic 4]]+Dataset[[#This Row],[2024/25 To - Other reallocations]]","v":0},{"$f":"Dataset[[#This Row],[2025/26 To - Spending review Topic 1]]+Dataset[[#This Row],[2025/26 To - Spending review Topic 2]]+Dataset[[#This Row],[2025/26 To - Spending review Topic 3]]+Dataset[[#This Row],[2025/26 To - Spending review Topic 4]]+Dataset[[#This Row],[2025/26 To - Other reallocations]]","v":0},{"$f":"Dataset[[#This Row],[2023/24 Baseline]]+Dataset[[#This Row],[2023/24 From - Total]]+Dataset[[#This Row],[2023/24 To - Total]]","v":12000},{"$f":"Dataset[[#This Row],[2024/25 Baseline]]+Dataset[[#This Row],[2024/25 From - Total]]+Dataset[[#This Row],[2024/25 To - Total]]","v":12000},{"$f":"Dataset[[#This Row],[2025/26 Baseline]]+Dataset[[#This Row],[2025/26 From - Total]]+Dataset[[#This Row],[2025/26 To - Total]]","v":12538}]
["NAT|Non-transfer item","2|Venues and facilities","2023_24","MTEF2023",2,2,3,1042,425,"02","02","03","001042","000425","02|02|03",1,1,2,40,40,"01|01|02|40|40","National","Parliament","Legislation and Oversight","Public Participation and external relations: Shared Services","Non-transfer item","Current","Current payments","Goods and services","Venues and facilities","Venues and facilities","General public services","Executive and legislative organs","NAT",0,0,0,0,0,0,0,0,0,0,0,null,null,null,null,null,null,null,null,null,null,null,null,null,null,null,null,null,null,null,null,null,null,null,null,null,null,null,null,null,null,{"$f":"Dataset[[#This Row],[2023/24 From - Spending review Topic 1]]+Dataset[[#This Row],[2023/24 From - Spending review Topic 2]]+Dataset[[#This Row],[2023/24 From - Spending review Topic 3]]+Dataset[[#This Row],[2023/24 From - Spending review Topic 4]]+Dataset[[#This Row],[2023/24 From - Other reallocations]]","v":0},{"$f":"Dataset[[#This Row],[2024/25 From - Spending review Topic 1]]+Dataset[[#This Row],[2024/25 From - Spending review Topic 2]]+Dataset[[#This Row],[2024/25 From - Spending review Topic 3]]+Dataset[[#This Row],[2024/25 From - Spending review Topic 4]]+Dataset[[#This Row],[2024/25 From - Other reallocations]]","v":0},{"$f":"Dataset[[#This Row],[2025/26 From - Spending review Topic 1]]+Dataset[[#This Row],[2025/26 From - Spending review Topic 2]]+Dataset[[#This Row],[2025/26 From - Spending review Topic 3]]+Dataset[[#This Row],[2025/26 From - Spending review Topic 4]]+Dataset[[#This Row],[2025/26 From - Other reallocations]]","v":0},{"$f":"Dataset[[#This Row],[2023/24 To - Spending review Topic 1]]+Dataset[[#This Row],[2023/24 To - Spending review Topic 2]]+Dataset[[#This Row],[2023/24 To - Spending review Topic 3]]+Dataset[[#This Row],[2023/24 To - Spending review Topic 4]]+Dataset[[#This Row],[2023/24 To - Other reallocations]]","v":0},{"$f":"Dataset[[#This Row],[2024/25 To - Spending review Topic 1]]+Dataset[[#This Row],[2024/25 To - Spending review Topic 2]]+Dataset[[#This Row],[2024/25 To - Spending review Topic 3]]+Dataset[[#This Row],[2024/25 To - Spending review Topic 4]]+Dataset[[#This Row],[2024/25 To - Other reallocations]]","v":0},{"$f":"Dataset[[#This Row],[2025/26 To - Spending review Topic 1]]+Dataset[[#This Row],[2025/26 To - Spending review Topic 2]]+Dataset[[#This Row],[2025/26 To - Spending review Topic 3]]+Dataset[[#This Row],[2025/26 To - Spending review Topic 4]]+Dataset[[#This Row],[2025/26 To - Other reallocations]]","v":0},{"$f":"Dataset[[#This Row],[2023/24 Baseline]]+Dataset[[#This Row],[2023/24 From - Total]]+Dataset[[#This Row],[2023/24 To - Total]]","v":0},{"$f":"Dataset[[#This Row],[2024/25 Baseline]]+Dataset[[#This Row],[2024/25 From - Total]]+Dataset[[#This Row],[2024/25 To - Total]]","v":0},{"$f":"Dataset[[#This Row],[2025/26 Baseline]]+Dataset[[#This Row],[2025/26 From - Total]]+Dataset[[#This Row],[2025/26 To - Total]]","v":0}]
["NAT|Non-transfer item","2|Interest (Incl. interest on unitary payments (PPP))","2023_24","MTEF2023",2,2,3,1043,426,"02","02","03","001043","000426","02|02|03",1,1,3,41,41,"01|01|03|41|41","National","Parliament","Legislation and Oversight","Public Participation and external relations: Shared Services","Non-transfer item","Current","Current payments","Interest and rent on land","Interest (Incl. interest on unitary payments (PPP))","Interest (Incl. interest on unitary payments (PPP))","General public services","Executive and legislative organs","NAT",0,0,0,0,0,0,0,0,0,0,0,null,null,null,null,null,null,null,null,null,null,null,null,null,null,null,null,null,null,null,null,null,null,null,null,null,null,null,null,null,null,{"$f":"Dataset[[#This Row],[2023/24 From - Spending review Topic 1]]+Dataset[[#This Row],[2023/24 From - Spending review Topic 2]]+Dataset[[#This Row],[2023/24 From - Spending review Topic 3]]+Dataset[[#This Row],[2023/24 From - Spending review Topic 4]]+Dataset[[#This Row],[2023/24 From - Other reallocations]]","v":0},{"$f":"Dataset[[#This Row],[2024/25 From - Spending review Topic 1]]+Dataset[[#This Row],[2024/25 From - Spending review Topic 2]]+Dataset[[#This Row],[2024/25 From - Spending review Topic 3]]+Dataset[[#This Row],[2024/25 From - Spending review Topic 4]]+Dataset[[#This Row],[2024/25 From - Other reallocations]]","v":0},{"$f":"Dataset[[#This Row],[2025/26 From - Spending review Topic 1]]+Dataset[[#This Row],[2025/26 From - Spending review Topic 2]]+Dataset[[#This Row],[2025/26 From - Spending review Topic 3]]+Dataset[[#This Row],[2025/26 From - Spending review Topic 4]]+Dataset[[#This Row],[2025/26 From - Other reallocations]]","v":0},{"$f":"Dataset[[#This Row],[2023/24 To - Spending review Topic 1]]+Dataset[[#This Row],[2023/24 To - Spending review Topic 2]]+Dataset[[#This Row],[2023/24 To - Spending review Topic 3]]+Dataset[[#This Row],[2023/24 To - Spending review Topic 4]]+Dataset[[#This Row],[2023/24 To - Other reallocations]]","v":0},{"$f":"Dataset[[#This Row],[2024/25 To - Spending review Topic 1]]+Dataset[[#This Row],[2024/25 To - Spending review Topic 2]]+Dataset[[#This Row],[2024/25 To - Spending review Topic 3]]+Dataset[[#This Row],[2024/25 To - Spending review Topic 4]]+Dataset[[#This Row],[2024/25 To - Other reallocations]]","v":0},{"$f":"Dataset[[#This Row],[2025/26 To - Spending review Topic 1]]+Dataset[[#This Row],[2025/26 To - Spending review Topic 2]]+Dataset[[#This Row],[2025/26 To - Spending review Topic 3]]+Dataset[[#This Row],[2025/26 To - Spending review Topic 4]]+Dataset[[#This Row],[2025/26 To - Other reallocations]]","v":0},{"$f":"Dataset[[#This Row],[2023/24 Baseline]]+Dataset[[#This Row],[2023/24 From - Total]]+Dataset[[#This Row],[2023/24 To - Total]]","v":0},{"$f":"Dataset[[#This Row],[2024/25 Baseline]]+Dataset[[#This Row],[2024/25 From - Total]]+Dataset[[#This Row],[2024/25 To - Total]]","v":0},{"$f":"Dataset[[#This Row],[2025/26 Baseline]]+Dataset[[#This Row],[2025/26 From - Total]]+Dataset[[#This Row],[2025/26 To - Total]]","v":0}]
["NAT|Non-transfer item","2|Rent on land","2023_24","MTEF2023",2,2,3,1044,427,"02","02","03","001044","000427","02|02|03",1,1,3,42,42,"01|01|03|42|42","National","Parliament","Legislation and Oversight","Public Participation and external relations: Shared Services","Non-transfer item","Current","Current payments","Interest and rent on land","Rent on land","Rent on land","General public services","Executive and legislative organs","NAT",0,0,0,0,0,0,0,0,0,0,0,null,null,null,null,null,null,null,null,null,null,null,null,null,null,null,null,null,null,null,null,null,null,null,null,null,null,null,null,null,null,{"$f":"Dataset[[#This Row],[2023/24 From - Spending review Topic 1]]+Dataset[[#This Row],[2023/24 From - Spending review Topic 2]]+Dataset[[#This Row],[2023/24 From - Spending review Topic 3]]+Dataset[[#This Row],[2023/24 From - Spending review Topic 4]]+Dataset[[#This Row],[2023/24 From - Other reallocations]]","v":0},{"$f":"Dataset[[#This Row],[2024/25 From - Spending review Topic 1]]+Dataset[[#This Row],[2024/25 From - Spending review Topic 2]]+Dataset[[#This Row],[2024/25 From - Spending review Topic 3]]+Dataset[[#This Row],[2024/25 From - Spending review Topic 4]]+Dataset[[#This Row],[2024/25 From - Other reallocations]]","v":0},{"$f":"Dataset[[#This Row],[2025/26 From - Spending review Topic 1]]+Dataset[[#This Row],[2025/26 From - Spending review Topic 2]]+Dataset[[#This Row],[2025/26 From - Spending review Topic 3]]+Dataset[[#This Row],[2025/26 From - Spending review Topic 4]]+Dataset[[#This Row],[2025/26 From - Other reallocations]]","v":0},{"$f":"Dataset[[#This Row],[2023/24 To - Spending review Topic 1]]+Dataset[[#This Row],[2023/24 To - Spending review Topic 2]]+Dataset[[#This Row],[2023/24 To - Spending review Topic 3]]+Dataset[[#This Row],[2023/24 To - Spending review Topic 4]]+Dataset[[#This Row],[2023/24 To - Other reallocations]]","v":0},{"$f":"Dataset[[#This Row],[2024/25 To - Spending review Topic 1]]+Dataset[[#This Row],[2024/25 To - Spending review Topic 2]]+Dataset[[#This Row],[2024/25 To - Spending review Topic 3]]+Dataset[[#This Row],[2024/25 To - Spending review Topic 4]]+Dataset[[#This Row],[2024/25 To - Other reallocations]]","v":0},{"$f":"Dataset[[#This Row],[2025/26 To - Spending review Topic 1]]+Dataset[[#This Row],[2025/26 To - Spending review Topic 2]]+Dataset[[#This Row],[2025/26 To - Spending review Topic 3]]+Dataset[[#This Row],[2025/26 To - Spending review Topic 4]]+Dataset[[#This Row],[2025/26 To - Other reallocations]]","v":0},{"$f":"Dataset[[#This Row],[2023/24 Baseline]]+Dataset[[#This Row],[2023/24 From - Total]]+Dataset[[#This Row],[2023/24 To - Total]]","v":0},{"$f":"Dataset[[#This Row],[2024/25 Baseline]]+Dataset[[#This Row],[2024/25 From - Total]]+Dataset[[#This Row],[2024/25 To - Total]]","v":0},{"$f":"Dataset[[#This Row],[2025/26 Baseline]]+Dataset[[#This Row],[2025/26 From - Total]]+Dataset[[#This Row],[2025/26 To - Total]]","v":0}]
["NAT|Non-transfer item","2|Provincial Revenue Funds","2023_24","MTEF2023",2,2,3,1045,428,"02","02","03","001045","000428","02|02|03",1,2,4,43,43,"01|02|04|43|43","National","Parliament","Legislation and Oversight","Public Participation and external relations: Shared Services","Non-transfer item","Current","Transfers and subsidies","Provinces and municipalities","Provinces","Provincial Revenue Funds","General public services","Executive and legislative organs","NAT",0,0,0,0,0,0,0,0,0,0,0,null,null,null,null,null,null,null,null,null,null,null,null,null,null,null,null,null,null,null,null,null,null,null,null,null,null,null,null,null,null,{"$f":"Dataset[[#This Row],[2023/24 From - Spending review Topic 1]]+Dataset[[#This Row],[2023/24 From - Spending review Topic 2]]+Dataset[[#This Row],[2023/24 From - Spending review Topic 3]]+Dataset[[#This Row],[2023/24 From - Spending review Topic 4]]+Dataset[[#This Row],[2023/24 From - Other reallocations]]","v":0},{"$f":"Dataset[[#This Row],[2024/25 From - Spending review Topic 1]]+Dataset[[#This Row],[2024/25 From - Spending review Topic 2]]+Dataset[[#This Row],[2024/25 From - Spending review Topic 3]]+Dataset[[#This Row],[2024/25 From - Spending review Topic 4]]+Dataset[[#This Row],[2024/25 From - Other reallocations]]","v":0},{"$f":"Dataset[[#This Row],[2025/26 From - Spending review Topic 1]]+Dataset[[#This Row],[2025/26 From - Spending review Topic 2]]+Dataset[[#This Row],[2025/26 From - Spending review Topic 3]]+Dataset[[#This Row],[2025/26 From - Spending review Topic 4]]+Dataset[[#This Row],[2025/26 From - Other reallocations]]","v":0},{"$f":"Dataset[[#This Row],[2023/24 To - Spending review Topic 1]]+Dataset[[#This Row],[2023/24 To - Spending review Topic 2]]+Dataset[[#This Row],[2023/24 To - Spending review Topic 3]]+Dataset[[#This Row],[2023/24 To - Spending review Topic 4]]+Dataset[[#This Row],[2023/24 To - Other reallocations]]","v":0},{"$f":"Dataset[[#This Row],[2024/25 To - Spending review Topic 1]]+Dataset[[#This Row],[2024/25 To - Spending review Topic 2]]+Dataset[[#This Row],[2024/25 To - Spending review Topic 3]]+Dataset[[#This Row],[2024/25 To - Spending review Topic 4]]+Dataset[[#This Row],[2024/25 To - Other reallocations]]","v":0},{"$f":"Dataset[[#This Row],[2025/26 To - Spending review Topic 1]]+Dataset[[#This Row],[2025/26 To - Spending review Topic 2]]+Dataset[[#This Row],[2025/26 To - Spending review Topic 3]]+Dataset[[#This Row],[2025/26 To - Spending review Topic 4]]+Dataset[[#This Row],[2025/26 To - Other reallocations]]","v":0},{"$f":"Dataset[[#This Row],[2023/24 Baseline]]+Dataset[[#This Row],[2023/24 From - Total]]+Dataset[[#This Row],[2023/24 To - Total]]","v":0},{"$f":"Dataset[[#This Row],[2024/25 Baseline]]+Dataset[[#This Row],[2024/25 From - Total]]+Dataset[[#This Row],[2024/25 To - Total]]","v":0},{"$f":"Dataset[[#This Row],[2025/26 Baseline]]+Dataset[[#This Row],[2025/26 From - Total]]+Dataset[[#This Row],[2025/26 To - Total]]","v":0}]
["NAT|Non-transfer item","2|Provincial agencies and funds","2023_24","MTEF2023",2,2,3,1046,429,"02","02","03","001046","000429","02|02|03",1,2,4,43,44,"01|02|04|43|44","National","Parliament","Legislation and Oversight","Public Participation and external relations: Shared Services","Non-transfer item","Current","Transfers and subsidies","Provinces and municipalities","Provinces","Provincial agencies and funds","General public services","Executive and legislative organs","NAT",0,0,0,0,0,0,0,0,0,0,0,null,null,null,null,null,null,null,null,null,null,null,null,null,null,null,null,null,null,null,null,null,null,null,null,null,null,null,null,null,null,{"$f":"Dataset[[#This Row],[2023/24 From - Spending review Topic 1]]+Dataset[[#This Row],[2023/24 From - Spending review Topic 2]]+Dataset[[#This Row],[2023/24 From - Spending review Topic 3]]+Dataset[[#This Row],[2023/24 From - Spending review Topic 4]]+Dataset[[#This Row],[2023/24 From - Other reallocations]]","v":0},{"$f":"Dataset[[#This Row],[2024/25 From - Spending review Topic 1]]+Dataset[[#This Row],[2024/25 From - Spending review Topic 2]]+Dataset[[#This Row],[2024/25 From - Spending review Topic 3]]+Dataset[[#This Row],[2024/25 From - Spending review Topic 4]]+Dataset[[#This Row],[2024/25 From - Other reallocations]]","v":0},{"$f":"Dataset[[#This Row],[2025/26 From - Spending review Topic 1]]+Dataset[[#This Row],[2025/26 From - Spending review Topic 2]]+Dataset[[#This Row],[2025/26 From - Spending review Topic 3]]+Dataset[[#This Row],[2025/26 From - Spending review Topic 4]]+Dataset[[#This Row],[2025/26 From - Other reallocations]]","v":0},{"$f":"Dataset[[#This Row],[2023/24 To - Spending review Topic 1]]+Dataset[[#This Row],[2023/24 To - Spending review Topic 2]]+Dataset[[#This Row],[2023/24 To - Spending review Topic 3]]+Dataset[[#This Row],[2023/24 To - Spending review Topic 4]]+Dataset[[#This Row],[2023/24 To - Other reallocations]]","v":0},{"$f":"Dataset[[#This Row],[2024/25 To - Spending review Topic 1]]+Dataset[[#This Row],[2024/25 To - Spending review Topic 2]]+Dataset[[#This Row],[2024/25 To - Spending review Topic 3]]+Dataset[[#This Row],[2024/25 To - Spending review Topic 4]]+Dataset[[#This Row],[2024/25 To - Other reallocations]]","v":0},{"$f":"Dataset[[#This Row],[2025/26 To - Spending review Topic 1]]+Dataset[[#This Row],[2025/26 To - Spending review Topic 2]]+Dataset[[#This Row],[2025/26 To - Spending review Topic 3]]+Dataset[[#This Row],[2025/26 To - Spending review Topic 4]]+Dataset[[#This Row],[2025/26 To - Other reallocations]]","v":0},{"$f":"Dataset[[#This Row],[2023/24 Baseline]]+Dataset[[#This Row],[2023/24 From - Total]]+Dataset[[#This Row],[2023/24 To - Total]]","v":0},{"$f":"Dataset[[#This Row],[2024/25 Baseline]]+Dataset[[#This Row],[2024/25 From - Total]]+Dataset[[#This Row],[2024/25 To - Total]]","v":0},{"$f":"Dataset[[#This Row],[2025/26 Baseline]]+Dataset[[#This Row],[2025/26 From - Total]]+Dataset[[#This Row],[2025/26 To - Total]]","v":0}]
["NAT|Non-transfer item","2|Municipal bank accounts","2023_24","MTEF2023",2,2,3,1047,430,"02","02","03","001047","000430","02|02|03",1,2,4,44,45,"01|02|04|44|45","National","Parliament","Legislation and Oversight","Public Participation and external relations: Shared Services","Non-transfer item","Current","Transfers and subsidies","Provinces and municipalities","Municipalities","Municipal bank accounts","General public services","Executive and legislative organs","NAT",0,0,0,0,0,0,0,0,0,0,0,null,null,null,null,null,null,null,null,null,null,null,null,null,null,null,null,null,null,null,null,null,null,null,null,null,null,null,null,null,null,{"$f":"Dataset[[#This Row],[2023/24 From - Spending review Topic 1]]+Dataset[[#This Row],[2023/24 From - Spending review Topic 2]]+Dataset[[#This Row],[2023/24 From - Spending review Topic 3]]+Dataset[[#This Row],[2023/24 From - Spending review Topic 4]]+Dataset[[#This Row],[2023/24 From - Other reallocations]]","v":0},{"$f":"Dataset[[#This Row],[2024/25 From - Spending review Topic 1]]+Dataset[[#This Row],[2024/25 From - Spending review Topic 2]]+Dataset[[#This Row],[2024/25 From - Spending review Topic 3]]+Dataset[[#This Row],[2024/25 From - Spending review Topic 4]]+Dataset[[#This Row],[2024/25 From - Other reallocations]]","v":0},{"$f":"Dataset[[#This Row],[2025/26 From - Spending review Topic 1]]+Dataset[[#This Row],[2025/26 From - Spending review Topic 2]]+Dataset[[#This Row],[2025/26 From - Spending review Topic 3]]+Dataset[[#This Row],[2025/26 From - Spending review Topic 4]]+Dataset[[#This Row],[2025/26 From - Other reallocations]]","v":0},{"$f":"Dataset[[#This Row],[2023/24 To - Spending review Topic 1]]+Dataset[[#This Row],[2023/24 To - Spending review Topic 2]]+Dataset[[#This Row],[2023/24 To - Spending review Topic 3]]+Dataset[[#This Row],[2023/24 To - Spending review Topic 4]]+Dataset[[#This Row],[2023/24 To - Other reallocations]]","v":0},{"$f":"Dataset[[#This Row],[2024/25 To - Spending review Topic 1]]+Dataset[[#This Row],[2024/25 To - Spending review Topic 2]]+Dataset[[#This Row],[2024/25 To - Spending review Topic 3]]+Dataset[[#This Row],[2024/25 To - Spending review Topic 4]]+Dataset[[#This Row],[2024/25 To - Other reallocations]]","v":0},{"$f":"Dataset[[#This Row],[2025/26 To - Spending review Topic 1]]+Dataset[[#This Row],[2025/26 To - Spending review Topic 2]]+Dataset[[#This Row],[2025/26 To - Spending review Topic 3]]+Dataset[[#This Row],[2025/26 To - Spending review Topic 4]]+Dataset[[#This Row],[2025/26 To - Other reallocations]]","v":0},{"$f":"Dataset[[#This Row],[2023/24 Baseline]]+Dataset[[#This Row],[2023/24 From - Total]]+Dataset[[#This Row],[2023/24 To - Total]]","v":0},{"$f":"Dataset[[#This Row],[2024/25 Baseline]]+Dataset[[#This Row],[2024/25 From - Total]]+Dataset[[#This Row],[2024/25 To - Total]]","v":0},{"$f":"Dataset[[#This Row],[2025/26 Baseline]]+Dataset[[#This Row],[2025/26 From - Total]]+Dataset[[#This Row],[2025/26 To - Total]]","v":0}]
["NAT|Non-transfer item","2|Municipal agencies and funds","2023_24","MTEF2023",2,2,3,1048,431,"02","02","03","001048","000431","02|02|03",1,2,4,44,46,"01|02|04|44|46","National","Parliament","Legislation and Oversight","Public Participation and external relations: Shared Services","Non-transfer item","Current","Transfers and subsidies","Provinces and municipalities","Municipalities","Municipal agencies and funds","General public services","Executive and legislative organs","NAT",0,0,0,0,0,0,0,0,0,0,0,null,null,null,null,null,null,null,null,null,null,null,null,null,null,null,null,null,null,null,null,null,null,null,null,null,null,null,null,null,null,{"$f":"Dataset[[#This Row],[2023/24 From - Spending review Topic 1]]+Dataset[[#This Row],[2023/24 From - Spending review Topic 2]]+Dataset[[#This Row],[2023/24 From - Spending review Topic 3]]+Dataset[[#This Row],[2023/24 From - Spending review Topic 4]]+Dataset[[#This Row],[2023/24 From - Other reallocations]]","v":0},{"$f":"Dataset[[#This Row],[2024/25 From - Spending review Topic 1]]+Dataset[[#This Row],[2024/25 From - Spending review Topic 2]]+Dataset[[#This Row],[2024/25 From - Spending review Topic 3]]+Dataset[[#This Row],[2024/25 From - Spending review Topic 4]]+Dataset[[#This Row],[2024/25 From - Other reallocations]]","v":0},{"$f":"Dataset[[#This Row],[2025/26 From - Spending review Topic 1]]+Dataset[[#This Row],[2025/26 From - Spending review Topic 2]]+Dataset[[#This Row],[2025/26 From - Spending review Topic 3]]+Dataset[[#This Row],[2025/26 From - Spending review Topic 4]]+Dataset[[#This Row],[2025/26 From - Other reallocations]]","v":0},{"$f":"Dataset[[#This Row],[2023/24 To - Spending review Topic 1]]+Dataset[[#This Row],[2023/24 To - Spending review Topic 2]]+Dataset[[#This Row],[2023/24 To - Spending review Topic 3]]+Dataset[[#This Row],[2023/24 To - Spending review Topic 4]]+Dataset[[#This Row],[2023/24 To - Other reallocations]]","v":0},{"$f":"Dataset[[#This Row],[2024/25 To - Spending review Topic 1]]+Dataset[[#This Row],[2024/25 To - Spending review Topic 2]]+Dataset[[#This Row],[2024/25 To - Spending review Topic 3]]+Dataset[[#This Row],[2024/25 To - Spending review Topic 4]]+Dataset[[#This Row],[2024/25 To - Other reallocations]]","v":0},{"$f":"Dataset[[#This Row],[2025/26 To - Spending review Topic 1]]+Dataset[[#This Row],[2025/26 To - Spending review Topic 2]]+Dataset[[#This Row],[2025/26 To - Spending review Topic 3]]+Dataset[[#This Row],[2025/26 To - Spending review Topic 4]]+Dataset[[#This Row],[2025/26 To - Other reallocations]]","v":0},{"$f":"Dataset[[#This Row],[2023/24 Baseline]]+Dataset[[#This Row],[2023/24 From - Total]]+Dataset[[#This Row],[2023/24 To - Total]]","v":0},{"$f":"Dataset[[#This Row],[2024/25 Baseline]]+Dataset[[#This Row],[2024/25 From - Total]]+Dataset[[#This Row],[2024/25 To - Total]]","v":0},{"$f":"Dataset[[#This Row],[2025/26 Baseline]]+Dataset[[#This Row],[2025/26 From - Total]]+Dataset[[#This Row],[2025/26 To - Total]]","v":0}]
["NAT|Non-transfer item","2|Social security funds","2023_24","MTEF2023",2,2,3,1049,432,"02","02","03","001049","000432","02|02|03",1,2,5,45,47,"01|02|05|45|47","National","Parliament","Legislation and Oversight","Public Participation and external relations: Shared Services","Non-transfer item","Current","Transfers and subsidies","Departmental agencies and accounts","Social security funds","Social security funds","General public services","Executive and legislative organs","NAT",0,0,0,0,0,0,0,0,0,0,0,null,null,null,null,null,null,null,null,null,null,null,null,null,null,null,null,null,null,null,null,null,null,null,null,null,null,null,null,null,null,{"$f":"Dataset[[#This Row],[2023/24 From - Spending review Topic 1]]+Dataset[[#This Row],[2023/24 From - Spending review Topic 2]]+Dataset[[#This Row],[2023/24 From - Spending review Topic 3]]+Dataset[[#This Row],[2023/24 From - Spending review Topic 4]]+Dataset[[#This Row],[2023/24 From - Other reallocations]]","v":0},{"$f":"Dataset[[#This Row],[2024/25 From - Spending review Topic 1]]+Dataset[[#This Row],[2024/25 From - Spending review Topic 2]]+Dataset[[#This Row],[2024/25 From - Spending review Topic 3]]+Dataset[[#This Row],[2024/25 From - Spending review Topic 4]]+Dataset[[#This Row],[2024/25 From - Other reallocations]]","v":0},{"$f":"Dataset[[#This Row],[2025/26 From - Spending review Topic 1]]+Dataset[[#This Row],[2025/26 From - Spending review Topic 2]]+Dataset[[#This Row],[2025/26 From - Spending review Topic 3]]+Dataset[[#This Row],[2025/26 From - Spending review Topic 4]]+Dataset[[#This Row],[2025/26 From - Other reallocations]]","v":0},{"$f":"Dataset[[#This Row],[2023/24 To - Spending review Topic 1]]+Dataset[[#This Row],[2023/24 To - Spending review Topic 2]]+Dataset[[#This Row],[2023/24 To - Spending review Topic 3]]+Dataset[[#This Row],[2023/24 To - Spending review Topic 4]]+Dataset[[#This Row],[2023/24 To - Other reallocations]]","v":0},{"$f":"Dataset[[#This Row],[2024/25 To - Spending review Topic 1]]+Dataset[[#This Row],[2024/25 To - Spending review Topic 2]]+Dataset[[#This Row],[2024/25 To - Spending review Topic 3]]+Dataset[[#This Row],[2024/25 To - Spending review Topic 4]]+Dataset[[#This Row],[2024/25 To - Other reallocations]]","v":0},{"$f":"Dataset[[#This Row],[2025/26 To - Spending review Topic 1]]+Dataset[[#This Row],[2025/26 To - Spending review Topic 2]]+Dataset[[#This Row],[2025/26 To - Spending review Topic 3]]+Dataset[[#This Row],[2025/26 To - Spending review Topic 4]]+Dataset[[#This Row],[2025/26 To - Other reallocations]]","v":0},{"$f":"Dataset[[#This Row],[2023/24 Baseline]]+Dataset[[#This Row],[2023/24 From - Total]]+Dataset[[#This Row],[2023/24 To - Total]]","v":0},{"$f":"Dataset[[#This Row],[2024/25 Baseline]]+Dataset[[#This Row],[2024/25 From - Total]]+Dataset[[#This Row],[2024/25 To - Total]]","v":0},{"$f":"Dataset[[#This Row],[2025/26 Baseline]]+Dataset[[#This Row],[2025/26 From - Total]]+Dataset[[#This Row],[2025/26 To - Total]]","v":0}]
["NAT|Non-transfer item","2|Departmental agencies (non-business entities)","2023_24","MTEF2023",2,2,3,1050,433,"02","02","03","001050","000433","02|02|03",1,2,5,46,48,"01|02|05|46|48","National","Parliament","Legislation and Oversight","Public Participation and external relations: Shared Services","Non-transfer item","Current","Transfers and subsidies","Departmental agencies and accounts","Departmental agencies (non-business entities)","Departmental agencies (non-business entities)","General public services","Executive and legislative organs","NAT",0,0,0,0,0,0,0,0,0,0,0,null,null,null,null,null,null,null,null,null,null,null,null,null,null,null,null,null,null,null,null,null,null,null,null,null,null,null,null,null,null,{"$f":"Dataset[[#This Row],[2023/24 From - Spending review Topic 1]]+Dataset[[#This Row],[2023/24 From - Spending review Topic 2]]+Dataset[[#This Row],[2023/24 From - Spending review Topic 3]]+Dataset[[#This Row],[2023/24 From - Spending review Topic 4]]+Dataset[[#This Row],[2023/24 From - Other reallocations]]","v":0},{"$f":"Dataset[[#This Row],[2024/25 From - Spending review Topic 1]]+Dataset[[#This Row],[2024/25 From - Spending review Topic 2]]+Dataset[[#This Row],[2024/25 From - Spending review Topic 3]]+Dataset[[#This Row],[2024/25 From - Spending review Topic 4]]+Dataset[[#This Row],[2024/25 From - Other reallocations]]","v":0},{"$f":"Dataset[[#This Row],[2025/26 From - Spending review Topic 1]]+Dataset[[#This Row],[2025/26 From - Spending review Topic 2]]+Dataset[[#This Row],[2025/26 From - Spending review Topic 3]]+Dataset[[#This Row],[2025/26 From - Spending review Topic 4]]+Dataset[[#This Row],[2025/26 From - Other reallocations]]","v":0},{"$f":"Dataset[[#This Row],[2023/24 To - Spending review Topic 1]]+Dataset[[#This Row],[2023/24 To - Spending review Topic 2]]+Dataset[[#This Row],[2023/24 To - Spending review Topic 3]]+Dataset[[#This Row],[2023/24 To - Spending review Topic 4]]+Dataset[[#This Row],[2023/24 To - Other reallocations]]","v":0},{"$f":"Dataset[[#This Row],[2024/25 To - Spending review Topic 1]]+Dataset[[#This Row],[2024/25 To - Spending review Topic 2]]+Dataset[[#This Row],[2024/25 To - Spending review Topic 3]]+Dataset[[#This Row],[2024/25 To - Spending review Topic 4]]+Dataset[[#This Row],[2024/25 To - Other reallocations]]","v":0},{"$f":"Dataset[[#This Row],[2025/26 To - Spending review Topic 1]]+Dataset[[#This Row],[2025/26 To - Spending review Topic 2]]+Dataset[[#This Row],[2025/26 To - Spending review Topic 3]]+Dataset[[#This Row],[2025/26 To - Spending review Topic 4]]+Dataset[[#This Row],[2025/26 To - Other reallocations]]","v":0},{"$f":"Dataset[[#This Row],[2023/24 Baseline]]+Dataset[[#This Row],[2023/24 From - Total]]+Dataset[[#This Row],[2023/24 To - Total]]","v":0},{"$f":"Dataset[[#This Row],[2024/25 Baseline]]+Dataset[[#This Row],[2024/25 From - Total]]+Dataset[[#This Row],[2024/25 To - Total]]","v":0},{"$f":"Dataset[[#This Row],[2025/26 Baseline]]+Dataset[[#This Row],[2025/26 From - Total]]+Dataset[[#This Row],[2025/26 To - Total]]","v":0}]
["NAT|Non-transfer item","2|Higher education institutions","2023_24","MTEF2023",2,2,3,1051,434,"02","02","03","001051","000434","02|02|03",1,2,6,47,49,"01|02|06|47|49","National","Parliament","Legislation and Oversight","Public Participation and external relations: Shared Services","Non-transfer item","Current","Transfers and subsidies","Higher education institutions","Higher education institutions","Higher education institutions","General public services","Executive and legislative organs","NAT",0,0,0,0,0,0,0,0,0,0,0,null,null,null,null,null,null,null,null,null,null,null,null,null,null,null,null,null,null,null,null,null,null,null,null,null,null,null,null,null,null,{"$f":"Dataset[[#This Row],[2023/24 From - Spending review Topic 1]]+Dataset[[#This Row],[2023/24 From - Spending review Topic 2]]+Dataset[[#This Row],[2023/24 From - Spending review Topic 3]]+Dataset[[#This Row],[2023/24 From - Spending review Topic 4]]+Dataset[[#This Row],[2023/24 From - Other reallocations]]","v":0},{"$f":"Dataset[[#This Row],[2024/25 From - Spending review Topic 1]]+Dataset[[#This Row],[2024/25 From - Spending review Topic 2]]+Dataset[[#This Row],[2024/25 From - Spending review Topic 3]]+Dataset[[#This Row],[2024/25 From - Spending review Topic 4]]+Dataset[[#This Row],[2024/25 From - Other reallocations]]","v":0},{"$f":"Dataset[[#This Row],[2025/26 From - Spending review Topic 1]]+Dataset[[#This Row],[2025/26 From - Spending review Topic 2]]+Dataset[[#This Row],[2025/26 From - Spending review Topic 3]]+Dataset[[#This Row],[2025/26 From - Spending review Topic 4]]+Dataset[[#This Row],[2025/26 From - Other reallocations]]","v":0},{"$f":"Dataset[[#This Row],[2023/24 To - Spending review Topic 1]]+Dataset[[#This Row],[2023/24 To - Spending review Topic 2]]+Dataset[[#This Row],[2023/24 To - Spending review Topic 3]]+Dataset[[#This Row],[2023/24 To - Spending review Topic 4]]+Dataset[[#This Row],[2023/24 To - Other reallocations]]","v":0},{"$f":"Dataset[[#This Row],[2024/25 To - Spending review Topic 1]]+Dataset[[#This Row],[2024/25 To - Spending review Topic 2]]+Dataset[[#This Row],[2024/25 To - Spending review Topic 3]]+Dataset[[#This Row],[2024/25 To - Spending review Topic 4]]+Dataset[[#This Row],[2024/25 To - Other reallocations]]","v":0},{"$f":"Dataset[[#This Row],[2025/26 To - Spending review Topic 1]]+Dataset[[#This Row],[2025/26 To - Spending review Topic 2]]+Dataset[[#This Row],[2025/26 To - Spending review Topic 3]]+Dataset[[#This Row],[2025/26 To - Spending review Topic 4]]+Dataset[[#This Row],[2025/26 To - Other reallocations]]","v":0},{"$f":"Dataset[[#This Row],[2023/24 Baseline]]+Dataset[[#This Row],[2023/24 From - Total]]+Dataset[[#This Row],[2023/24 To - Total]]","v":0},{"$f":"Dataset[[#This Row],[2024/25 Baseline]]+Dataset[[#This Row],[2024/25 From - Total]]+Dataset[[#This Row],[2024/25 To - Total]]","v":0},{"$f":"Dataset[[#This Row],[2025/26 Baseline]]+Dataset[[#This Row],[2025/26 From - Total]]+Dataset[[#This Row],[2025/26 To - Total]]","v":0}]
["NAT|Non-transfer item","2|Foreign governments and international organisations","2023_24","MTEF2023",2,2,3,1052,435,"02","02","03","001052","000435","02|02|03",1,2,7,48,50,"01|02|07|48|50","National","Parliament","Legislation and Oversight","Public Participation and external relations: Shared Services","Non-transfer item","Current","Transfers and subsidies","Foreign governments and international organisations","Foreign governments and international organisations","Foreign governments and international organisations","General public services","Executive and legislative organs","NAT",0,0,0,0,0,0,0,0,0,0,0,null,null,null,null,null,null,null,null,null,null,null,null,null,null,null,null,null,null,null,null,null,null,null,null,null,null,null,null,null,null,{"$f":"Dataset[[#This Row],[2023/24 From - Spending review Topic 1]]+Dataset[[#This Row],[2023/24 From - Spending review Topic 2]]+Dataset[[#This Row],[2023/24 From - Spending review Topic 3]]+Dataset[[#This Row],[2023/24 From - Spending review Topic 4]]+Dataset[[#This Row],[2023/24 From - Other reallocations]]","v":0},{"$f":"Dataset[[#This Row],[2024/25 From - Spending review Topic 1]]+Dataset[[#This Row],[2024/25 From - Spending review Topic 2]]+Dataset[[#This Row],[2024/25 From - Spending review Topic 3]]+Dataset[[#This Row],[2024/25 From - Spending review Topic 4]]+Dataset[[#This Row],[2024/25 From - Other reallocations]]","v":0},{"$f":"Dataset[[#This Row],[2025/26 From - Spending review Topic 1]]+Dataset[[#This Row],[2025/26 From - Spending review Topic 2]]+Dataset[[#This Row],[2025/26 From - Spending review Topic 3]]+Dataset[[#This Row],[2025/26 From - Spending review Topic 4]]+Dataset[[#This Row],[2025/26 From - Other reallocations]]","v":0},{"$f":"Dataset[[#This Row],[2023/24 To - Spending review Topic 1]]+Dataset[[#This Row],[2023/24 To - Spending review Topic 2]]+Dataset[[#This Row],[2023/24 To - Spending review Topic 3]]+Dataset[[#This Row],[2023/24 To - Spending review Topic 4]]+Dataset[[#This Row],[2023/24 To - Other reallocations]]","v":0},{"$f":"Dataset[[#This Row],[2024/25 To - Spending review Topic 1]]+Dataset[[#This Row],[2024/25 To - Spending review Topic 2]]+Dataset[[#This Row],[2024/25 To - Spending review Topic 3]]+Dataset[[#This Row],[2024/25 To - Spending review Topic 4]]+Dataset[[#This Row],[2024/25 To - Other reallocations]]","v":0},{"$f":"Dataset[[#This Row],[2025/26 To - Spending review Topic 1]]+Dataset[[#This Row],[2025/26 To - Spending review Topic 2]]+Dataset[[#This Row],[2025/26 To - Spending review Topic 3]]+Dataset[[#This Row],[2025/26 To - Spending review Topic 4]]+Dataset[[#This Row],[2025/26 To - Other reallocations]]","v":0},{"$f":"Dataset[[#This Row],[2023/24 Baseline]]+Dataset[[#This Row],[2023/24 From - Total]]+Dataset[[#This Row],[2023/24 To - Total]]","v":0},{"$f":"Dataset[[#This Row],[2024/25 Baseline]]+Dataset[[#This Row],[2024/25 From - Total]]+Dataset[[#This Row],[2024/25 To - Total]]","v":0},{"$f":"Dataset[[#This Row],[2025/26 Baseline]]+Dataset[[#This Row],[2025/26 From - Total]]+Dataset[[#This Row],[2025/26 To - Total]]","v":0}]
["NAT|Non-transfer item","2|Subsidies on products and production (pc)","2023_24","MTEF2023",2,2,3,1053,436,"02","02","03","001053","000436","02|02|03",1,2,8,49,51,"01|02|08|49|51","National","Parliament","Legislation and Oversight","Public Participation and external relations: Shared Services","Non-transfer item","Current","Transfers and subsidies","Public corporations and private enterprises","Public corporations","Subsidies on products and production (pc)","General public services","Executive and legislative organs","NAT",0,0,0,0,0,0,0,0,0,0,0,null,null,null,null,null,null,null,null,null,null,null,null,null,null,null,null,null,null,null,null,null,null,null,null,null,null,null,null,null,null,{"$f":"Dataset[[#This Row],[2023/24 From - Spending review Topic 1]]+Dataset[[#This Row],[2023/24 From - Spending review Topic 2]]+Dataset[[#This Row],[2023/24 From - Spending review Topic 3]]+Dataset[[#This Row],[2023/24 From - Spending review Topic 4]]+Dataset[[#This Row],[2023/24 From - Other reallocations]]","v":0},{"$f":"Dataset[[#This Row],[2024/25 From - Spending review Topic 1]]+Dataset[[#This Row],[2024/25 From - Spending review Topic 2]]+Dataset[[#This Row],[2024/25 From - Spending review Topic 3]]+Dataset[[#This Row],[2024/25 From - Spending review Topic 4]]+Dataset[[#This Row],[2024/25 From - Other reallocations]]","v":0},{"$f":"Dataset[[#This Row],[2025/26 From - Spending review Topic 1]]+Dataset[[#This Row],[2025/26 From - Spending review Topic 2]]+Dataset[[#This Row],[2025/26 From - Spending review Topic 3]]+Dataset[[#This Row],[2025/26 From - Spending review Topic 4]]+Dataset[[#This Row],[2025/26 From - Other reallocations]]","v":0},{"$f":"Dataset[[#This Row],[2023/24 To - Spending review Topic 1]]+Dataset[[#This Row],[2023/24 To - Spending review Topic 2]]+Dataset[[#This Row],[2023/24 To - Spending review Topic 3]]+Dataset[[#This Row],[2023/24 To - Spending review Topic 4]]+Dataset[[#This Row],[2023/24 To - Other reallocations]]","v":0},{"$f":"Dataset[[#This Row],[2024/25 To - Spending review Topic 1]]+Dataset[[#This Row],[2024/25 To - Spending review Topic 2]]+Dataset[[#This Row],[2024/25 To - Spending review Topic 3]]+Dataset[[#This Row],[2024/25 To - Spending review Topic 4]]+Dataset[[#This Row],[2024/25 To - Other reallocations]]","v":0},{"$f":"Dataset[[#This Row],[2025/26 To - Spending review Topic 1]]+Dataset[[#This Row],[2025/26 To - Spending review Topic 2]]+Dataset[[#This Row],[2025/26 To - Spending review Topic 3]]+Dataset[[#This Row],[2025/26 To - Spending review Topic 4]]+Dataset[[#This Row],[2025/26 To - Other reallocations]]","v":0},{"$f":"Dataset[[#This Row],[2023/24 Baseline]]+Dataset[[#This Row],[2023/24 From - Total]]+Dataset[[#This Row],[2023/24 To - Total]]","v":0},{"$f":"Dataset[[#This Row],[2024/25 Baseline]]+Dataset[[#This Row],[2024/25 From - Total]]+Dataset[[#This Row],[2024/25 To - Total]]","v":0},{"$f":"Dataset[[#This Row],[2025/26 Baseline]]+Dataset[[#This Row],[2025/26 From - Total]]+Dataset[[#This Row],[2025/26 To - Total]]","v":0}]
["NAT|Non-transfer item","2|Other transfers to public corporations","2023_24","MTEF2023",2,2,3,1054,437,"02","02","03","001054","000437","02|02|03",1,2,8,49,52,"01|02|08|49|52","National","Parliament","Legislation and Oversight","Public Participation and external relations: Shared Services","Non-transfer item","Current","Transfers and subsidies","Public corporations and private enterprises","Public corporations","Other transfers to public corporations","General public services","Executive and legislative organs","NAT",0,0,0,0,0,0,0,0,0,0,0,null,null,null,null,null,null,null,null,null,null,null,null,null,null,null,null,null,null,null,null,null,null,null,null,null,null,null,null,null,null,{"$f":"Dataset[[#This Row],[2023/24 From - Spending review Topic 1]]+Dataset[[#This Row],[2023/24 From - Spending review Topic 2]]+Dataset[[#This Row],[2023/24 From - Spending review Topic 3]]+Dataset[[#This Row],[2023/24 From - Spending review Topic 4]]+Dataset[[#This Row],[2023/24 From - Other reallocations]]","v":0},{"$f":"Dataset[[#This Row],[2024/25 From - Spending review Topic 1]]+Dataset[[#This Row],[2024/25 From - Spending review Topic 2]]+Dataset[[#This Row],[2024/25 From - Spending review Topic 3]]+Dataset[[#This Row],[2024/25 From - Spending review Topic 4]]+Dataset[[#This Row],[2024/25 From - Other reallocations]]","v":0},{"$f":"Dataset[[#This Row],[2025/26 From - Spending review Topic 1]]+Dataset[[#This Row],[2025/26 From - Spending review Topic 2]]+Dataset[[#This Row],[2025/26 From - Spending review Topic 3]]+Dataset[[#This Row],[2025/26 From - Spending review Topic 4]]+Dataset[[#This Row],[2025/26 From - Other reallocations]]","v":0},{"$f":"Dataset[[#This Row],[2023/24 To - Spending review Topic 1]]+Dataset[[#This Row],[2023/24 To - Spending review Topic 2]]+Dataset[[#This Row],[2023/24 To - Spending review Topic 3]]+Dataset[[#This Row],[2023/24 To - Spending review Topic 4]]+Dataset[[#This Row],[2023/24 To - Other reallocations]]","v":0},{"$f":"Dataset[[#This Row],[2024/25 To - Spending review Topic 1]]+Dataset[[#This Row],[2024/25 To - Spending review Topic 2]]+Dataset[[#This Row],[2024/25 To - Spending review Topic 3]]+Dataset[[#This Row],[2024/25 To - Spending review Topic 4]]+Dataset[[#This Row],[2024/25 To - Other reallocations]]","v":0},{"$f":"Dataset[[#This Row],[2025/26 To - Spending review Topic 1]]+Dataset[[#This Row],[2025/26 To - Spending review Topic 2]]+Dataset[[#This Row],[2025/26 To - Spending review Topic 3]]+Dataset[[#This Row],[2025/26 To - Spending review Topic 4]]+Dataset[[#This Row],[2025/26 To - Other reallocations]]","v":0},{"$f":"Dataset[[#This Row],[2023/24 Baseline]]+Dataset[[#This Row],[2023/24 From - Total]]+Dataset[[#This Row],[2023/24 To - Total]]","v":0},{"$f":"Dataset[[#This Row],[2024/25 Baseline]]+Dataset[[#This Row],[2024/25 From - Total]]+Dataset[[#This Row],[2024/25 To - Total]]","v":0},{"$f":"Dataset[[#This Row],[2025/26 Baseline]]+Dataset[[#This Row],[2025/26 From - Total]]+Dataset[[#This Row],[2025/26 To - Total]]","v":0}]
["NAT|Non-transfer item","2|Subsidies on products and production (pe)","2023_24","MTEF2023",2,2,3,1055,438,"02","02","03","001055","000438","02|02|03",1,2,8,50,53,"01|02|08|50|53","National","Parliament","Legislation and Oversight","Public Participation and external relations: Shared Services","Non-transfer item","Current","Transfers and subsidies","Public corporations and private enterprises","Private enterprises","Subsidies on products and production (pe)","General public services","Executive and legislative organs","NAT",0,0,0,0,0,0,0,0,0,0,0,null,null,null,null,null,null,null,null,null,null,null,null,null,null,null,null,null,null,null,null,null,null,null,null,null,null,null,null,null,null,{"$f":"Dataset[[#This Row],[2023/24 From - Spending review Topic 1]]+Dataset[[#This Row],[2023/24 From - Spending review Topic 2]]+Dataset[[#This Row],[2023/24 From - Spending review Topic 3]]+Dataset[[#This Row],[2023/24 From - Spending review Topic 4]]+Dataset[[#This Row],[2023/24 From - Other reallocations]]","v":0},{"$f":"Dataset[[#This Row],[2024/25 From - Spending review Topic 1]]+Dataset[[#This Row],[2024/25 From - Spending review Topic 2]]+Dataset[[#This Row],[2024/25 From - Spending review Topic 3]]+Dataset[[#This Row],[2024/25 From - Spending review Topic 4]]+Dataset[[#This Row],[2024/25 From - Other reallocations]]","v":0},{"$f":"Dataset[[#This Row],[2025/26 From - Spending review Topic 1]]+Dataset[[#This Row],[2025/26 From - Spending review Topic 2]]+Dataset[[#This Row],[2025/26 From - Spending review Topic 3]]+Dataset[[#This Row],[2025/26 From - Spending review Topic 4]]+Dataset[[#This Row],[2025/26 From - Other reallocations]]","v":0},{"$f":"Dataset[[#This Row],[2023/24 To - Spending review Topic 1]]+Dataset[[#This Row],[2023/24 To - Spending review Topic 2]]+Dataset[[#This Row],[2023/24 To - Spending review Topic 3]]+Dataset[[#This Row],[2023/24 To - Spending review Topic 4]]+Dataset[[#This Row],[2023/24 To - Other reallocations]]","v":0},{"$f":"Dataset[[#This Row],[2024/25 To - Spending review Topic 1]]+Dataset[[#This Row],[2024/25 To - Spending review Topic 2]]+Dataset[[#This Row],[2024/25 To - Spending review Topic 3]]+Dataset[[#This Row],[2024/25 To - Spending review Topic 4]]+Dataset[[#This Row],[2024/25 To - Other reallocations]]","v":0},{"$f":"Dataset[[#This Row],[2025/26 To - Spending review Topic 1]]+Dataset[[#This Row],[2025/26 To - Spending review Topic 2]]+Dataset[[#This Row],[2025/26 To - Spending review Topic 3]]+Dataset[[#This Row],[2025/26 To - Spending review Topic 4]]+Dataset[[#This Row],[2025/26 To - Other reallocations]]","v":0},{"$f":"Dataset[[#This Row],[2023/24 Baseline]]+Dataset[[#This Row],[2023/24 From - Total]]+Dataset[[#This Row],[2023/24 To - Total]]","v":0},{"$f":"Dataset[[#This Row],[2024/25 Baseline]]+Dataset[[#This Row],[2024/25 From - Total]]+Dataset[[#This Row],[2024/25 To - Total]]","v":0},{"$f":"Dataset[[#This Row],[2025/26 Baseline]]+Dataset[[#This Row],[2025/26 From - Total]]+Dataset[[#This Row],[2025/26 To - Total]]","v":0}]
["NAT|Non-transfer item","2|Other transfers to private enterprises","2023_24","MTEF2023",2,2,3,1056,439,"02","02","03","001056","000439","02|02|03",1,2,8,50,54,"01|02|08|50|54","National","Parliament","Legislation and Oversight","Public Participation and external relations: Shared Services","Non-transfer item","Current","Transfers and subsidies","Public corporations and private enterprises","Private enterprises","Other transfers to private enterprises","General public services","Executive and legislative organs","NAT",0,0,0,0,0,0,0,0,0,0,0,null,null,null,null,null,null,null,null,null,null,null,null,null,null,null,null,null,null,null,null,null,null,null,null,null,null,null,null,null,null,{"$f":"Dataset[[#This Row],[2023/24 From - Spending review Topic 1]]+Dataset[[#This Row],[2023/24 From - Spending review Topic 2]]+Dataset[[#This Row],[2023/24 From - Spending review Topic 3]]+Dataset[[#This Row],[2023/24 From - Spending review Topic 4]]+Dataset[[#This Row],[2023/24 From - Other reallocations]]","v":0},{"$f":"Dataset[[#This Row],[2024/25 From - Spending review Topic 1]]+Dataset[[#This Row],[2024/25 From - Spending review Topic 2]]+Dataset[[#This Row],[2024/25 From - Spending review Topic 3]]+Dataset[[#This Row],[2024/25 From - Spending review Topic 4]]+Dataset[[#This Row],[2024/25 From - Other reallocations]]","v":0},{"$f":"Dataset[[#This Row],[2025/26 From - Spending review Topic 1]]+Dataset[[#This Row],[2025/26 From - Spending review Topic 2]]+Dataset[[#This Row],[2025/26 From - Spending review Topic 3]]+Dataset[[#This Row],[2025/26 From - Spending review Topic 4]]+Dataset[[#This Row],[2025/26 From - Other reallocations]]","v":0},{"$f":"Dataset[[#This Row],[2023/24 To - Spending review Topic 1]]+Dataset[[#This Row],[2023/24 To - Spending review Topic 2]]+Dataset[[#This Row],[2023/24 To - Spending review Topic 3]]+Dataset[[#This Row],[2023/24 To - Spending review Topic 4]]+Dataset[[#This Row],[2023/24 To - Other reallocations]]","v":0},{"$f":"Dataset[[#This Row],[2024/25 To - Spending review Topic 1]]+Dataset[[#This Row],[2024/25 To - Spending review Topic 2]]+Dataset[[#This Row],[2024/25 To - Spending review Topic 3]]+Dataset[[#This Row],[2024/25 To - Spending review Topic 4]]+Dataset[[#This Row],[2024/25 To - Other reallocations]]","v":0},{"$f":"Dataset[[#This Row],[2025/26 To - Spending review Topic 1]]+Dataset[[#This Row],[2025/26 To - Spending review Topic 2]]+Dataset[[#This Row],[2025/26 To - Spending review Topic 3]]+Dataset[[#This Row],[2025/26 To - Spending review Topic 4]]+Dataset[[#This Row],[2025/26 To - Other reallocations]]","v":0},{"$f":"Dataset[[#This Row],[2023/24 Baseline]]+Dataset[[#This Row],[2023/24 From - Total]]+Dataset[[#This Row],[2023/24 To - Total]]","v":0},{"$f":"Dataset[[#This Row],[2024/25 Baseline]]+Dataset[[#This Row],[2024/25 From - Total]]+Dataset[[#This Row],[2024/25 To - Total]]","v":0},{"$f":"Dataset[[#This Row],[2025/26 Baseline]]+Dataset[[#This Row],[2025/26 From - Total]]+Dataset[[#This Row],[2025/26 To - Total]]","v":0}]
["NAT|Non-transfer item","2|Non-profit institutions","2023_24","MTEF2023",2,2,3,1057,440,"02","02","03","001057","000440","02|02|03",1,2,9,51,55,"01|02|09|51|55","National","Parliament","Legislation and Oversight","Public Participation and external relations: Shared Services","Non-transfer item","Current","Transfers and subsidies","Non-profit institutions","Non-profit institutions","Non-profit institutions","General public services","Executive and legislative organs","NAT",0,0,0,0,0,0,0,0,0,0,0,null,null,null,null,null,null,null,null,null,null,null,null,null,null,null,null,null,null,null,null,null,null,null,null,null,null,null,null,null,null,{"$f":"Dataset[[#This Row],[2023/24 From - Spending review Topic 1]]+Dataset[[#This Row],[2023/24 From - Spending review Topic 2]]+Dataset[[#This Row],[2023/24 From - Spending review Topic 3]]+Dataset[[#This Row],[2023/24 From - Spending review Topic 4]]+Dataset[[#This Row],[2023/24 From - Other reallocations]]","v":0},{"$f":"Dataset[[#This Row],[2024/25 From - Spending review Topic 1]]+Dataset[[#This Row],[2024/25 From - Spending review Topic 2]]+Dataset[[#This Row],[2024/25 From - Spending review Topic 3]]+Dataset[[#This Row],[2024/25 From - Spending review Topic 4]]+Dataset[[#This Row],[2024/25 From - Other reallocations]]","v":0},{"$f":"Dataset[[#This Row],[2025/26 From - Spending review Topic 1]]+Dataset[[#This Row],[2025/26 From - Spending review Topic 2]]+Dataset[[#This Row],[2025/26 From - Spending review Topic 3]]+Dataset[[#This Row],[2025/26 From - Spending review Topic 4]]+Dataset[[#This Row],[2025/26 From - Other reallocations]]","v":0},{"$f":"Dataset[[#This Row],[2023/24 To - Spending review Topic 1]]+Dataset[[#This Row],[2023/24 To - Spending review Topic 2]]+Dataset[[#This Row],[2023/24 To - Spending review Topic 3]]+Dataset[[#This Row],[2023/24 To - Spending review Topic 4]]+Dataset[[#This Row],[2023/24 To - Other reallocations]]","v":0},{"$f":"Dataset[[#This Row],[2024/25 To - Spending review Topic 1]]+Dataset[[#This Row],[2024/25 To - Spending review Topic 2]]+Dataset[[#This Row],[2024/25 To - Spending review Topic 3]]+Dataset[[#This Row],[2024/25 To - Spending review Topic 4]]+Dataset[[#This Row],[2024/25 To - Other reallocations]]","v":0},{"$f":"Dataset[[#This Row],[2025/26 To - Spending review Topic 1]]+Dataset[[#This Row],[2025/26 To - Spending review Topic 2]]+Dataset[[#This Row],[2025/26 To - Spending review Topic 3]]+Dataset[[#This Row],[2025/26 To - Spending review Topic 4]]+Dataset[[#This Row],[2025/26 To - Other reallocations]]","v":0},{"$f":"Dataset[[#This Row],[2023/24 Baseline]]+Dataset[[#This Row],[2023/24 From - Total]]+Dataset[[#This Row],[2023/24 To - Total]]","v":0},{"$f":"Dataset[[#This Row],[2024/25 Baseline]]+Dataset[[#This Row],[2024/25 From - Total]]+Dataset[[#This Row],[2024/25 To - Total]]","v":0},{"$f":"Dataset[[#This Row],[2025/26 Baseline]]+Dataset[[#This Row],[2025/26 From - Total]]+Dataset[[#This Row],[2025/26 To - Total]]","v":0}]
["NAT|Non-transfer item","2|Social benefits","2023_24","MTEF2023",2,2,3,1058,441,"02","02","03","001058","000441","02|02|03",1,2,10,52,56,"01|02|10|52|56","National","Parliament","Legislation and Oversight","Public Participation and external relations: Shared Services","Non-transfer item","Current","Transfers and subsidies","Households","Social benefits","Social benefits","General public services","Executive and legislative organs","NAT",0,0,0,0,0,0,0,0,0,0,0,null,null,null,null,null,null,null,null,null,null,null,null,null,null,null,null,null,null,null,null,null,null,null,null,null,null,null,null,null,null,{"$f":"Dataset[[#This Row],[2023/24 From - Spending review Topic 1]]+Dataset[[#This Row],[2023/24 From - Spending review Topic 2]]+Dataset[[#This Row],[2023/24 From - Spending review Topic 3]]+Dataset[[#This Row],[2023/24 From - Spending review Topic 4]]+Dataset[[#This Row],[2023/24 From - Other reallocations]]","v":0},{"$f":"Dataset[[#This Row],[2024/25 From - Spending review Topic 1]]+Dataset[[#This Row],[2024/25 From - Spending review Topic 2]]+Dataset[[#This Row],[2024/25 From - Spending review Topic 3]]+Dataset[[#This Row],[2024/25 From - Spending review Topic 4]]+Dataset[[#This Row],[2024/25 From - Other reallocations]]","v":0},{"$f":"Dataset[[#This Row],[2025/26 From - Spending review Topic 1]]+Dataset[[#This Row],[2025/26 From - Spending review Topic 2]]+Dataset[[#This Row],[2025/26 From - Spending review Topic 3]]+Dataset[[#This Row],[2025/26 From - Spending review Topic 4]]+Dataset[[#This Row],[2025/26 From - Other reallocations]]","v":0},{"$f":"Dataset[[#This Row],[2023/24 To - Spending review Topic 1]]+Dataset[[#This Row],[2023/24 To - Spending review Topic 2]]+Dataset[[#This Row],[2023/24 To - Spending review Topic 3]]+Dataset[[#This Row],[2023/24 To - Spending review Topic 4]]+Dataset[[#This Row],[2023/24 To - Other reallocations]]","v":0},{"$f":"Dataset[[#This Row],[2024/25 To - Spending review Topic 1]]+Dataset[[#This Row],[2024/25 To - Spending review Topic 2]]+Dataset[[#This Row],[2024/25 To - Spending review Topic 3]]+Dataset[[#This Row],[2024/25 To - Spending review Topic 4]]+Dataset[[#This Row],[2024/25 To - Other reallocations]]","v":0},{"$f":"Dataset[[#This Row],[2025/26 To - Spending review Topic 1]]+Dataset[[#This Row],[2025/26 To - Spending review Topic 2]]+Dataset[[#This Row],[2025/26 To - Spending review Topic 3]]+Dataset[[#This Row],[2025/26 To - Spending review Topic 4]]+Dataset[[#This Row],[2025/26 To - Other reallocations]]","v":0},{"$f":"Dataset[[#This Row],[2023/24 Baseline]]+Dataset[[#This Row],[2023/24 From - Total]]+Dataset[[#This Row],[2023/24 To - Total]]","v":0},{"$f":"Dataset[[#This Row],[2024/25 Baseline]]+Dataset[[#This Row],[2024/25 From - Total]]+Dataset[[#This Row],[2024/25 To - Total]]","v":0},{"$f":"Dataset[[#This Row],[2025/26 Baseline]]+Dataset[[#This Row],[2025/26 From - Total]]+Dataset[[#This Row],[2025/26 To - Total]]","v":0}]
["NAT|Non-transfer item","2|Other transfers to households","2023_24","MTEF2023",2,2,3,1059,442,"02","02","03","001059","000442","02|02|03",1,2,10,53,57,"01|02|10|53|57","National","Parliament","Legislation and Oversight","Public Participation and external relations: Shared Services","Non-transfer item","Current","Transfers and subsidies","Households","Other transfers to households","Other transfers to households","General public services","Executive and legislative organs","NAT",0,0,0,0,0,0,0,0,0,0,0,null,null,null,null,null,null,null,null,null,null,null,null,null,null,null,null,null,null,null,null,null,null,null,null,null,null,null,null,null,null,{"$f":"Dataset[[#This Row],[2023/24 From - Spending review Topic 1]]+Dataset[[#This Row],[2023/24 From - Spending review Topic 2]]+Dataset[[#This Row],[2023/24 From - Spending review Topic 3]]+Dataset[[#This Row],[2023/24 From - Spending review Topic 4]]+Dataset[[#This Row],[2023/24 From - Other reallocations]]","v":0},{"$f":"Dataset[[#This Row],[2024/25 From - Spending review Topic 1]]+Dataset[[#This Row],[2024/25 From - Spending review Topic 2]]+Dataset[[#This Row],[2024/25 From - Spending review Topic 3]]+Dataset[[#This Row],[2024/25 From - Spending review Topic 4]]+Dataset[[#This Row],[2024/25 From - Other reallocations]]","v":0},{"$f":"Dataset[[#This Row],[2025/26 From - Spending review Topic 1]]+Dataset[[#This Row],[2025/26 From - Spending review Topic 2]]+Dataset[[#This Row],[2025/26 From - Spending review Topic 3]]+Dataset[[#This Row],[2025/26 From - Spending review Topic 4]]+Dataset[[#This Row],[2025/26 From - Other reallocations]]","v":0},{"$f":"Dataset[[#This Row],[2023/24 To - Spending review Topic 1]]+Dataset[[#This Row],[2023/24 To - Spending review Topic 2]]+Dataset[[#This Row],[2023/24 To - Spending review Topic 3]]+Dataset[[#This Row],[2023/24 To - Spending review Topic 4]]+Dataset[[#This Row],[2023/24 To - Other reallocations]]","v":0},{"$f":"Dataset[[#This Row],[2024/25 To - Spending review Topic 1]]+Dataset[[#This Row],[2024/25 To - Spending review Topic 2]]+Dataset[[#This Row],[2024/25 To - Spending review Topic 3]]+Dataset[[#This Row],[2024/25 To - Spending review Topic 4]]+Dataset[[#This Row],[2024/25 To - Other reallocations]]","v":0},{"$f":"Dataset[[#This Row],[2025/26 To - Spending review Topic 1]]+Dataset[[#This Row],[2025/26 To - Spending review Topic 2]]+Dataset[[#This Row],[2025/26 To - Spending review Topic 3]]+Dataset[[#This Row],[2025/26 To - Spending review Topic 4]]+Dataset[[#This Row],[2025/26 To - Other reallocations]]","v":0},{"$f":"Dataset[[#This Row],[2023/24 Baseline]]+Dataset[[#This Row],[2023/24 From - Total]]+Dataset[[#This Row],[2023/24 To - Total]]","v":0},{"$f":"Dataset[[#This Row],[2024/25 Baseline]]+Dataset[[#This Row],[2024/25 From - Total]]+Dataset[[#This Row],[2024/25 To - Total]]","v":0},{"$f":"Dataset[[#This Row],[2025/26 Baseline]]+Dataset[[#This Row],[2025/26 From - Total]]+Dataset[[#This Row],[2025/26 To - Total]]","v":0}]
["NAT|Non-transfer item","2|Provincial Revenue Funds","2023_24","MTEF2023",2,2,3,1060,443,"02","02","03","001060","000443","02|02|03",2,2,4,43,43,"02|02|04|43|43","National","Parliament","Legislation and Oversight","Public Participation and external relations: Shared Services","Non-transfer item","Capital","Transfers and subsidies","Provinces and municipalities","Provinces","Provincial Revenue Funds","General public services","Executive and legislative organs","NAT",0,0,0,0,0,0,0,0,0,0,0,null,null,null,null,null,null,null,null,null,null,null,null,null,null,null,null,null,null,null,null,null,null,null,null,null,null,null,null,null,null,{"$f":"Dataset[[#This Row],[2023/24 From - Spending review Topic 1]]+Dataset[[#This Row],[2023/24 From - Spending review Topic 2]]+Dataset[[#This Row],[2023/24 From - Spending review Topic 3]]+Dataset[[#This Row],[2023/24 From - Spending review Topic 4]]+Dataset[[#This Row],[2023/24 From - Other reallocations]]","v":0},{"$f":"Dataset[[#This Row],[2024/25 From - Spending review Topic 1]]+Dataset[[#This Row],[2024/25 From - Spending review Topic 2]]+Dataset[[#This Row],[2024/25 From - Spending review Topic 3]]+Dataset[[#This Row],[2024/25 From - Spending review Topic 4]]+Dataset[[#This Row],[2024/25 From - Other reallocations]]","v":0},{"$f":"Dataset[[#This Row],[2025/26 From - Spending review Topic 1]]+Dataset[[#This Row],[2025/26 From - Spending review Topic 2]]+Dataset[[#This Row],[2025/26 From - Spending review Topic 3]]+Dataset[[#This Row],[2025/26 From - Spending review Topic 4]]+Dataset[[#This Row],[2025/26 From - Other reallocations]]","v":0},{"$f":"Dataset[[#This Row],[2023/24 To - Spending review Topic 1]]+Dataset[[#This Row],[2023/24 To - Spending review Topic 2]]+Dataset[[#This Row],[2023/24 To - Spending review Topic 3]]+Dataset[[#This Row],[2023/24 To - Spending review Topic 4]]+Dataset[[#This Row],[2023/24 To - Other reallocations]]","v":0},{"$f":"Dataset[[#This Row],[2024/25 To - Spending review Topic 1]]+Dataset[[#This Row],[2024/25 To - Spending review Topic 2]]+Dataset[[#This Row],[2024/25 To - Spending review Topic 3]]+Dataset[[#This Row],[2024/25 To - Spending review Topic 4]]+Dataset[[#This Row],[2024/25 To - Other reallocations]]","v":0},{"$f":"Dataset[[#This Row],[2025/26 To - Spending review Topic 1]]+Dataset[[#This Row],[2025/26 To - Spending review Topic 2]]+Dataset[[#This Row],[2025/26 To - Spending review Topic 3]]+Dataset[[#This Row],[2025/26 To - Spending review Topic 4]]+Dataset[[#This Row],[2025/26 To - Other reallocations]]","v":0},{"$f":"Dataset[[#This Row],[2023/24 Baseline]]+Dataset[[#This Row],[2023/24 From - Total]]+Dataset[[#This Row],[2023/24 To - Total]]","v":0},{"$f":"Dataset[[#This Row],[2024/25 Baseline]]+Dataset[[#This Row],[2024/25 From - Total]]+Dataset[[#This Row],[2024/25 To - Total]]","v":0},{"$f":"Dataset[[#This Row],[2025/26 Baseline]]+Dataset[[#This Row],[2025/26 From - Total]]+Dataset[[#This Row],[2025/26 To - Total]]","v":0}]
["NAT|Non-transfer item","2|Municipal bank accounts","2023_24","MTEF2023",2,2,3,1061,444,"02","02","03","001061","000444","02|02|03",2,2,4,44,45,"02|02|04|44|45","National","Parliament","Legislation and Oversight","Public Participation and external relations: Shared Services","Non-transfer item","Capital","Transfers and subsidies","Provinces and municipalities","Municipalities","Municipal bank accounts","General public services","Executive and legislative organs","NAT",0,0,0,0,0,0,0,0,0,0,0,null,null,null,null,null,null,null,null,null,null,null,null,null,null,null,null,null,null,null,null,null,null,null,null,null,null,null,null,null,null,{"$f":"Dataset[[#This Row],[2023/24 From - Spending review Topic 1]]+Dataset[[#This Row],[2023/24 From - Spending review Topic 2]]+Dataset[[#This Row],[2023/24 From - Spending review Topic 3]]+Dataset[[#This Row],[2023/24 From - Spending review Topic 4]]+Dataset[[#This Row],[2023/24 From - Other reallocations]]","v":0},{"$f":"Dataset[[#This Row],[2024/25 From - Spending review Topic 1]]+Dataset[[#This Row],[2024/25 From - Spending review Topic 2]]+Dataset[[#This Row],[2024/25 From - Spending review Topic 3]]+Dataset[[#This Row],[2024/25 From - Spending review Topic 4]]+Dataset[[#This Row],[2024/25 From - Other reallocations]]","v":0},{"$f":"Dataset[[#This Row],[2025/26 From - Spending review Topic 1]]+Dataset[[#This Row],[2025/26 From - Spending review Topic 2]]+Dataset[[#This Row],[2025/26 From - Spending review Topic 3]]+Dataset[[#This Row],[2025/26 From - Spending review Topic 4]]+Dataset[[#This Row],[2025/26 From - Other reallocations]]","v":0},{"$f":"Dataset[[#This Row],[2023/24 To - Spending review Topic 1]]+Dataset[[#This Row],[2023/24 To - Spending review Topic 2]]+Dataset[[#This Row],[2023/24 To - Spending review Topic 3]]+Dataset[[#This Row],[2023/24 To - Spending review Topic 4]]+Dataset[[#This Row],[2023/24 To - Other reallocations]]","v":0},{"$f":"Dataset[[#This Row],[2024/25 To - Spending review Topic 1]]+Dataset[[#This Row],[2024/25 To - Spending review Topic 2]]+Dataset[[#This Row],[2024/25 To - Spending review Topic 3]]+Dataset[[#This Row],[2024/25 To - Spending review Topic 4]]+Dataset[[#This Row],[2024/25 To - Other reallocations]]","v":0},{"$f":"Dataset[[#This Row],[2025/26 To - Spending review Topic 1]]+Dataset[[#This Row],[2025/26 To - Spending review Topic 2]]+Dataset[[#This Row],[2025/26 To - Spending review Topic 3]]+Dataset[[#This Row],[2025/26 To - Spending review Topic 4]]+Dataset[[#This Row],[2025/26 To - Other reallocations]]","v":0},{"$f":"Dataset[[#This Row],[2023/24 Baseline]]+Dataset[[#This Row],[2023/24 From - Total]]+Dataset[[#This Row],[2023/24 To - Total]]","v":0},{"$f":"Dataset[[#This Row],[2024/25 Baseline]]+Dataset[[#This Row],[2024/25 From - Total]]+Dataset[[#This Row],[2024/25 To - Total]]","v":0},{"$f":"Dataset[[#This Row],[2025/26 Baseline]]+Dataset[[#This Row],[2025/26 From - Total]]+Dataset[[#This Row],[2025/26 To - Total]]","v":0}]
["NAT|Non-transfer item","2|Departmental agencies (non-business entities)","2023_24","MTEF2023",2,2,3,1062,445,"02","02","03","001062","000445","02|02|03",2,2,5,46,48,"02|02|05|46|48","National","Parliament","Legislation and Oversight","Public Participation and external relations: Shared Services","Non-transfer item","Capital","Transfers and subsidies","Departmental agencies and accounts","Departmental agencies (non-business entities)","Departmental agencies (non-business entities)","General public services","Executive and legislative organs","NAT",0,0,0,0,0,0,0,0,0,0,0,null,null,null,null,null,null,null,null,null,null,null,null,null,null,null,null,null,null,null,null,null,null,null,null,null,null,null,null,null,null,{"$f":"Dataset[[#This Row],[2023/24 From - Spending review Topic 1]]+Dataset[[#This Row],[2023/24 From - Spending review Topic 2]]+Dataset[[#This Row],[2023/24 From - Spending review Topic 3]]+Dataset[[#This Row],[2023/24 From - Spending review Topic 4]]+Dataset[[#This Row],[2023/24 From - Other reallocations]]","v":0},{"$f":"Dataset[[#This Row],[2024/25 From - Spending review Topic 1]]+Dataset[[#This Row],[2024/25 From - Spending review Topic 2]]+Dataset[[#This Row],[2024/25 From - Spending review Topic 3]]+Dataset[[#This Row],[2024/25 From - Spending review Topic 4]]+Dataset[[#This Row],[2024/25 From - Other reallocations]]","v":0},{"$f":"Dataset[[#This Row],[2025/26 From - Spending review Topic 1]]+Dataset[[#This Row],[2025/26 From - Spending review Topic 2]]+Dataset[[#This Row],[2025/26 From - Spending review Topic 3]]+Dataset[[#This Row],[2025/26 From - Spending review Topic 4]]+Dataset[[#This Row],[2025/26 From - Other reallocations]]","v":0},{"$f":"Dataset[[#This Row],[2023/24 To - Spending review Topic 1]]+Dataset[[#This Row],[2023/24 To - Spending review Topic 2]]+Dataset[[#This Row],[2023/24 To - Spending review Topic 3]]+Dataset[[#This Row],[2023/24 To - Spending review Topic 4]]+Dataset[[#This Row],[2023/24 To - Other reallocations]]","v":0},{"$f":"Dataset[[#This Row],[2024/25 To - Spending review Topic 1]]+Dataset[[#This Row],[2024/25 To - Spending review Topic 2]]+Dataset[[#This Row],[2024/25 To - Spending review Topic 3]]+Dataset[[#This Row],[2024/25 To - Spending review Topic 4]]+Dataset[[#This Row],[2024/25 To - Other reallocations]]","v":0},{"$f":"Dataset[[#This Row],[2025/26 To - Spending review Topic 1]]+Dataset[[#This Row],[2025/26 To - Spending review Topic 2]]+Dataset[[#This Row],[2025/26 To - Spending review Topic 3]]+Dataset[[#This Row],[2025/26 To - Spending review Topic 4]]+Dataset[[#This Row],[2025/26 To - Other reallocations]]","v":0},{"$f":"Dataset[[#This Row],[2023/24 Baseline]]+Dataset[[#This Row],[2023/24 From - Total]]+Dataset[[#This Row],[2023/24 To - Total]]","v":0},{"$f":"Dataset[[#This Row],[2024/25 Baseline]]+Dataset[[#This Row],[2024/25 From - Total]]+Dataset[[#This Row],[2024/25 To - Total]]","v":0},{"$f":"Dataset[[#This Row],[2025/26 Baseline]]+Dataset[[#This Row],[2025/26 From - Total]]+Dataset[[#This Row],[2025/26 To - Total]]","v":0}]
["NAT|Non-transfer item","2|Higher education institutions","2023_24","MTEF2023",2,2,3,1063,446,"02","02","03","001063","000446","02|02|03",2,2,6,47,49,"02|02|06|47|49","National","Parliament","Legislation and Oversight","Public Participation and external relations: Shared Services","Non-transfer item","Capital","Transfers and subsidies","Higher education institutions","Higher education institutions","Higher education institutions","General public services","Executive and legislative organs","NAT",0,0,0,0,0,0,0,0,0,0,0,null,null,null,null,null,null,null,null,null,null,null,null,null,null,null,null,null,null,null,null,null,null,null,null,null,null,null,null,null,null,{"$f":"Dataset[[#This Row],[2023/24 From - Spending review Topic 1]]+Dataset[[#This Row],[2023/24 From - Spending review Topic 2]]+Dataset[[#This Row],[2023/24 From - Spending review Topic 3]]+Dataset[[#This Row],[2023/24 From - Spending review Topic 4]]+Dataset[[#This Row],[2023/24 From - Other reallocations]]","v":0},{"$f":"Dataset[[#This Row],[2024/25 From - Spending review Topic 1]]+Dataset[[#This Row],[2024/25 From - Spending review Topic 2]]+Dataset[[#This Row],[2024/25 From - Spending review Topic 3]]+Dataset[[#This Row],[2024/25 From - Spending review Topic 4]]+Dataset[[#This Row],[2024/25 From - Other reallocations]]","v":0},{"$f":"Dataset[[#This Row],[2025/26 From - Spending review Topic 1]]+Dataset[[#This Row],[2025/26 From - Spending review Topic 2]]+Dataset[[#This Row],[2025/26 From - Spending review Topic 3]]+Dataset[[#This Row],[2025/26 From - Spending review Topic 4]]+Dataset[[#This Row],[2025/26 From - Other reallocations]]","v":0},{"$f":"Dataset[[#This Row],[2023/24 To - Spending review Topic 1]]+Dataset[[#This Row],[2023/24 To - Spending review Topic 2]]+Dataset[[#This Row],[2023/24 To - Spending review Topic 3]]+Dataset[[#This Row],[2023/24 To - Spending review Topic 4]]+Dataset[[#This Row],[2023/24 To - Other reallocations]]","v":0},{"$f":"Dataset[[#This Row],[2024/25 To - Spending review Topic 1]]+Dataset[[#This Row],[2024/25 To - Spending review Topic 2]]+Dataset[[#This Row],[2024/25 To - Spending review Topic 3]]+Dataset[[#This Row],[2024/25 To - Spending review Topic 4]]+Dataset[[#This Row],[2024/25 To - Other reallocations]]","v":0},{"$f":"Dataset[[#This Row],[2025/26 To - Spending review Topic 1]]+Dataset[[#This Row],[2025/26 To - Spending review Topic 2]]+Dataset[[#This Row],[2025/26 To - Spending review Topic 3]]+Dataset[[#This Row],[2025/26 To - Spending review Topic 4]]+Dataset[[#This Row],[2025/26 To - Other reallocations]]","v":0},{"$f":"Dataset[[#This Row],[2023/24 Baseline]]+Dataset[[#This Row],[2023/24 From - Total]]+Dataset[[#This Row],[2023/24 To - Total]]","v":0},{"$f":"Dataset[[#This Row],[2024/25 Baseline]]+Dataset[[#This Row],[2024/25 From - Total]]+Dataset[[#This Row],[2024/25 To - Total]]","v":0},{"$f":"Dataset[[#This Row],[2025/26 Baseline]]+Dataset[[#This Row],[2025/26 From - Total]]+Dataset[[#This Row],[2025/26 To - Total]]","v":0}]
["NAT|Non-transfer item","2|Foreign governments and international organisations","2023_24","MTEF2023",2,2,3,1064,447,"02","02","03","001064","000447","02|02|03",2,2,7,48,50,"02|02|07|48|50","National","Parliament","Legislation and Oversight","Public Participation and external relations: Shared Services","Non-transfer item","Capital","Transfers and subsidies","Foreign governments and international organisations","Foreign governments and international organisations","Foreign governments and international organisations","General public services","Executive and legislative organs","NAT",0,0,0,0,0,0,0,0,0,0,0,null,null,null,null,null,null,null,null,null,null,null,null,null,null,null,null,null,null,null,null,null,null,null,null,null,null,null,null,null,null,{"$f":"Dataset[[#This Row],[2023/24 From - Spending review Topic 1]]+Dataset[[#This Row],[2023/24 From - Spending review Topic 2]]+Dataset[[#This Row],[2023/24 From - Spending review Topic 3]]+Dataset[[#This Row],[2023/24 From - Spending review Topic 4]]+Dataset[[#This Row],[2023/24 From - Other reallocations]]","v":0},{"$f":"Dataset[[#This Row],[2024/25 From - Spending review Topic 1]]+Dataset[[#This Row],[2024/25 From - Spending review Topic 2]]+Dataset[[#This Row],[2024/25 From - Spending review Topic 3]]+Dataset[[#This Row],[2024/25 From - Spending review Topic 4]]+Dataset[[#This Row],[2024/25 From - Other reallocations]]","v":0},{"$f":"Dataset[[#This Row],[2025/26 From - Spending review Topic 1]]+Dataset[[#This Row],[2025/26 From - Spending review Topic 2]]+Dataset[[#This Row],[2025/26 From - Spending review Topic 3]]+Dataset[[#This Row],[2025/26 From - Spending review Topic 4]]+Dataset[[#This Row],[2025/26 From - Other reallocations]]","v":0},{"$f":"Dataset[[#This Row],[2023/24 To - Spending review Topic 1]]+Dataset[[#This Row],[2023/24 To - Spending review Topic 2]]+Dataset[[#This Row],[2023/24 To - Spending review Topic 3]]+Dataset[[#This Row],[2023/24 To - Spending review Topic 4]]+Dataset[[#This Row],[2023/24 To - Other reallocations]]","v":0},{"$f":"Dataset[[#This Row],[2024/25 To - Spending review Topic 1]]+Dataset[[#This Row],[2024/25 To - Spending review Topic 2]]+Dataset[[#This Row],[2024/25 To - Spending review Topic 3]]+Dataset[[#This Row],[2024/25 To - Spending review Topic 4]]+Dataset[[#This Row],[2024/25 To - Other reallocations]]","v":0},{"$f":"Dataset[[#This Row],[2025/26 To - Spending review Topic 1]]+Dataset[[#This Row],[2025/26 To - Spending review Topic 2]]+Dataset[[#This Row],[2025/26 To - Spending review Topic 3]]+Dataset[[#This Row],[2025/26 To - Spending review Topic 4]]+Dataset[[#This Row],[2025/26 To - Other reallocations]]","v":0},{"$f":"Dataset[[#This Row],[2023/24 Baseline]]+Dataset[[#This Row],[2023/24 From - Total]]+Dataset[[#This Row],[2023/24 To - Total]]","v":0},{"$f":"Dataset[[#This Row],[2024/25 Baseline]]+Dataset[[#This Row],[2024/25 From - Total]]+Dataset[[#This Row],[2024/25 To - Total]]","v":0},{"$f":"Dataset[[#This Row],[2025/26 Baseline]]+Dataset[[#This Row],[2025/26 From - Total]]+Dataset[[#This Row],[2025/26 To - Total]]","v":0}]
["NAT|Non-transfer item","2|Subsidies on products and production (pc)","2023_24","MTEF2023",2,2,3,1065,448,"02","02","03","001065","000448","02|02|03",2,2,8,49,51,"02|02|08|49|51","National","Parliament","Legislation and Oversight","Public Participation and external relations: Shared Services","Non-transfer item","Capital","Transfers and subsidies","Public corporations and private enterprises","Public corporations","Subsidies on products and production (pc)","General public services","Executive and legislative organs","NAT",0,0,0,0,0,0,0,0,0,0,0,null,null,null,null,null,null,null,null,null,null,null,null,null,null,null,null,null,null,null,null,null,null,null,null,null,null,null,null,null,null,{"$f":"Dataset[[#This Row],[2023/24 From - Spending review Topic 1]]+Dataset[[#This Row],[2023/24 From - Spending review Topic 2]]+Dataset[[#This Row],[2023/24 From - Spending review Topic 3]]+Dataset[[#This Row],[2023/24 From - Spending review Topic 4]]+Dataset[[#This Row],[2023/24 From - Other reallocations]]","v":0},{"$f":"Dataset[[#This Row],[2024/25 From - Spending review Topic 1]]+Dataset[[#This Row],[2024/25 From - Spending review Topic 2]]+Dataset[[#This Row],[2024/25 From - Spending review Topic 3]]+Dataset[[#This Row],[2024/25 From - Spending review Topic 4]]+Dataset[[#This Row],[2024/25 From - Other reallocations]]","v":0},{"$f":"Dataset[[#This Row],[2025/26 From - Spending review Topic 1]]+Dataset[[#This Row],[2025/26 From - Spending review Topic 2]]+Dataset[[#This Row],[2025/26 From - Spending review Topic 3]]+Dataset[[#This Row],[2025/26 From - Spending review Topic 4]]+Dataset[[#This Row],[2025/26 From - Other reallocations]]","v":0},{"$f":"Dataset[[#This Row],[2023/24 To - Spending review Topic 1]]+Dataset[[#This Row],[2023/24 To - Spending review Topic 2]]+Dataset[[#This Row],[2023/24 To - Spending review Topic 3]]+Dataset[[#This Row],[2023/24 To - Spending review Topic 4]]+Dataset[[#This Row],[2023/24 To - Other reallocations]]","v":0},{"$f":"Dataset[[#This Row],[2024/25 To - Spending review Topic 1]]+Dataset[[#This Row],[2024/25 To - Spending review Topic 2]]+Dataset[[#This Row],[2024/25 To - Spending review Topic 3]]+Dataset[[#This Row],[2024/25 To - Spending review Topic 4]]+Dataset[[#This Row],[2024/25 To - Other reallocations]]","v":0},{"$f":"Dataset[[#This Row],[2025/26 To - Spending review Topic 1]]+Dataset[[#This Row],[2025/26 To - Spending review Topic 2]]+Dataset[[#This Row],[2025/26 To - Spending review Topic 3]]+Dataset[[#This Row],[2025/26 To - Spending review Topic 4]]+Dataset[[#This Row],[2025/26 To - Other reallocations]]","v":0},{"$f":"Dataset[[#This Row],[2023/24 Baseline]]+Dataset[[#This Row],[2023/24 From - Total]]+Dataset[[#This Row],[2023/24 To - Total]]","v":0},{"$f":"Dataset[[#This Row],[2024/25 Baseline]]+Dataset[[#This Row],[2024/25 From - Total]]+Dataset[[#This Row],[2024/25 To - Total]]","v":0},{"$f":"Dataset[[#This Row],[2025/26 Baseline]]+Dataset[[#This Row],[2025/26 From - Total]]+Dataset[[#This Row],[2025/26 To - Total]]","v":0}]
["NAT|Non-transfer item","2|Other transfers to public corporations","2023_24","MTEF2023",2,2,3,1066,449,"02","02","03","001066","000449","02|02|03",2,2,8,49,52,"02|02|08|49|52","National","Parliament","Legislation and Oversight","Public Participation and external relations: Shared Services","Non-transfer item","Capital","Transfers and subsidies","Public corporations and private enterprises","Public corporations","Other transfers to public corporations","General public services","Executive and legislative organs","NAT",0,0,0,0,0,0,0,0,0,0,0,null,null,null,null,null,null,null,null,null,null,null,null,null,null,null,null,null,null,null,null,null,null,null,null,null,null,null,null,null,null,{"$f":"Dataset[[#This Row],[2023/24 From - Spending review Topic 1]]+Dataset[[#This Row],[2023/24 From - Spending review Topic 2]]+Dataset[[#This Row],[2023/24 From - Spending review Topic 3]]+Dataset[[#This Row],[2023/24 From - Spending review Topic 4]]+Dataset[[#This Row],[2023/24 From - Other reallocations]]","v":0},{"$f":"Dataset[[#This Row],[2024/25 From - Spending review Topic 1]]+Dataset[[#This Row],[2024/25 From - Spending review Topic 2]]+Dataset[[#This Row],[2024/25 From - Spending review Topic 3]]+Dataset[[#This Row],[2024/25 From - Spending review Topic 4]]+Dataset[[#This Row],[2024/25 From - Other reallocations]]","v":0},{"$f":"Dataset[[#This Row],[2025/26 From - Spending review Topic 1]]+Dataset[[#This Row],[2025/26 From - Spending review Topic 2]]+Dataset[[#This Row],[2025/26 From - Spending review Topic 3]]+Dataset[[#This Row],[2025/26 From - Spending review Topic 4]]+Dataset[[#This Row],[2025/26 From - Other reallocations]]","v":0},{"$f":"Dataset[[#This Row],[2023/24 To - Spending review Topic 1]]+Dataset[[#This Row],[2023/24 To - Spending review Topic 2]]+Dataset[[#This Row],[2023/24 To - Spending review Topic 3]]+Dataset[[#This Row],[2023/24 To - Spending review Topic 4]]+Dataset[[#This Row],[2023/24 To - Other reallocations]]","v":0},{"$f":"Dataset[[#This Row],[2024/25 To - Spending review Topic 1]]+Dataset[[#This Row],[2024/25 To - Spending review Topic 2]]+Dataset[[#This Row],[2024/25 To - Spending review Topic 3]]+Dataset[[#This Row],[2024/25 To - Spending review Topic 4]]+Dataset[[#This Row],[2024/25 To - Other reallocations]]","v":0},{"$f":"Dataset[[#This Row],[2025/26 To - Spending review Topic 1]]+Dataset[[#This Row],[2025/26 To - Spending review Topic 2]]+Dataset[[#This Row],[2025/26 To - Spending review Topic 3]]+Dataset[[#This Row],[2025/26 To - Spending review Topic 4]]+Dataset[[#This Row],[2025/26 To - Other reallocations]]","v":0},{"$f":"Dataset[[#This Row],[2023/24 Baseline]]+Dataset[[#This Row],[2023/24 From - Total]]+Dataset[[#This Row],[2023/24 To - Total]]","v":0},{"$f":"Dataset[[#This Row],[2024/25 Baseline]]+Dataset[[#This Row],[2024/25 From - Total]]+Dataset[[#This Row],[2024/25 To - Total]]","v":0},{"$f":"Dataset[[#This Row],[2025/26 Baseline]]+Dataset[[#This Row],[2025/26 From - Total]]+Dataset[[#This Row],[2025/26 To - Total]]","v":0}]
["NAT|Non-transfer item","2|Other transfers to private enterprises","2023_24","MTEF2023",2,2,3,1067,450,"02","02","03","001067","000450","02|02|03",2,2,8,50,54,"02|02|08|50|54","National","Parliament","Legislation and Oversight","Public Participation and external relations: Shared Services","Non-transfer item","Capital","Transfers and subsidies","Public corporations and private enterprises","Private enterprises","Other transfers to private enterprises","General public services","Executive and legislative organs","NAT",0,0,0,0,0,0,0,0,0,0,0,null,null,null,null,null,null,null,null,null,null,null,null,null,null,null,null,null,null,null,null,null,null,null,null,null,null,null,null,null,null,{"$f":"Dataset[[#This Row],[2023/24 From - Spending review Topic 1]]+Dataset[[#This Row],[2023/24 From - Spending review Topic 2]]+Dataset[[#This Row],[2023/24 From - Spending review Topic 3]]+Dataset[[#This Row],[2023/24 From - Spending review Topic 4]]+Dataset[[#This Row],[2023/24 From - Other reallocations]]","v":0},{"$f":"Dataset[[#This Row],[2024/25 From - Spending review Topic 1]]+Dataset[[#This Row],[2024/25 From - Spending review Topic 2]]+Dataset[[#This Row],[2024/25 From - Spending review Topic 3]]+Dataset[[#This Row],[2024/25 From - Spending review Topic 4]]+Dataset[[#This Row],[2024/25 From - Other reallocations]]","v":0},{"$f":"Dataset[[#This Row],[2025/26 From - Spending review Topic 1]]+Dataset[[#This Row],[2025/26 From - Spending review Topic 2]]+Dataset[[#This Row],[2025/26 From - Spending review Topic 3]]+Dataset[[#This Row],[2025/26 From - Spending review Topic 4]]+Dataset[[#This Row],[2025/26 From - Other reallocations]]","v":0},{"$f":"Dataset[[#This Row],[2023/24 To - Spending review Topic 1]]+Dataset[[#This Row],[2023/24 To - Spending review Topic 2]]+Dataset[[#This Row],[2023/24 To - Spending review Topic 3]]+Dataset[[#This Row],[2023/24 To - Spending review Topic 4]]+Dataset[[#This Row],[2023/24 To - Other reallocations]]","v":0},{"$f":"Dataset[[#This Row],[2024/25 To - Spending review Topic 1]]+Dataset[[#This Row],[2024/25 To - Spending review Topic 2]]+Dataset[[#This Row],[2024/25 To - Spending review Topic 3]]+Dataset[[#This Row],[2024/25 To - Spending review Topic 4]]+Dataset[[#This Row],[2024/25 To - Other reallocations]]","v":0},{"$f":"Dataset[[#This Row],[2025/26 To - Spending review Topic 1]]+Dataset[[#This Row],[2025/26 To - Spending review Topic 2]]+Dataset[[#This Row],[2025/26 To - Spending review Topic 3]]+Dataset[[#This Row],[2025/26 To - Spending review Topic 4]]+Dataset[[#This Row],[2025/26 To - Other reallocations]]","v":0},{"$f":"Dataset[[#This Row],[2023/24 Baseline]]+Dataset[[#This Row],[2023/24 From - Total]]+Dataset[[#This Row],[2023/24 To - Total]]","v":0},{"$f":"Dataset[[#This Row],[2024/25 Baseline]]+Dataset[[#This Row],[2024/25 From - Total]]+Dataset[[#This Row],[2024/25 To - Total]]","v":0},{"$f":"Dataset[[#This Row],[2025/26 Baseline]]+Dataset[[#This Row],[2025/26 From - Total]]+Dataset[[#This Row],[2025/26 To - Total]]","v":0}]
["NAT|Non-transfer item","2|Non-profit institutions","2023_24","MTEF2023",2,2,3,1068,451,"02","02","03","001068","000451","02|02|03",2,2,9,51,55,"02|02|09|51|55","National","Parliament","Legislation and Oversight","Public Participation and external relations: Shared Services","Non-transfer item","Capital","Transfers and subsidies","Non-profit institutions","Non-profit institutions","Non-profit institutions","General public services","Executive and legislative organs","NAT",0,0,0,0,0,0,0,0,0,0,0,null,null,null,null,null,null,null,null,null,null,null,null,null,null,null,null,null,null,null,null,null,null,null,null,null,null,null,null,null,null,{"$f":"Dataset[[#This Row],[2023/24 From - Spending review Topic 1]]+Dataset[[#This Row],[2023/24 From - Spending review Topic 2]]+Dataset[[#This Row],[2023/24 From - Spending review Topic 3]]+Dataset[[#This Row],[2023/24 From - Spending review Topic 4]]+Dataset[[#This Row],[2023/24 From - Other reallocations]]","v":0},{"$f":"Dataset[[#This Row],[2024/25 From - Spending review Topic 1]]+Dataset[[#This Row],[2024/25 From - Spending review Topic 2]]+Dataset[[#This Row],[2024/25 From - Spending review Topic 3]]+Dataset[[#This Row],[2024/25 From - Spending review Topic 4]]+Dataset[[#This Row],[2024/25 From - Other reallocations]]","v":0},{"$f":"Dataset[[#This Row],[2025/26 From - Spending review Topic 1]]+Dataset[[#This Row],[2025/26 From - Spending review Topic 2]]+Dataset[[#This Row],[2025/26 From - Spending review Topic 3]]+Dataset[[#This Row],[2025/26 From - Spending review Topic 4]]+Dataset[[#This Row],[2025/26 From - Other reallocations]]","v":0},{"$f":"Dataset[[#This Row],[2023/24 To - Spending review Topic 1]]+Dataset[[#This Row],[2023/24 To - Spending review Topic 2]]+Dataset[[#This Row],[2023/24 To - Spending review Topic 3]]+Dataset[[#This Row],[2023/24 To - Spending review Topic 4]]+Dataset[[#This Row],[2023/24 To - Other reallocations]]","v":0},{"$f":"Dataset[[#This Row],[2024/25 To - Spending review Topic 1]]+Dataset[[#This Row],[2024/25 To - Spending review Topic 2]]+Dataset[[#This Row],[2024/25 To - Spending review Topic 3]]+Dataset[[#This Row],[2024/25 To - Spending review Topic 4]]+Dataset[[#This Row],[2024/25 To - Other reallocations]]","v":0},{"$f":"Dataset[[#This Row],[2025/26 To - Spending review Topic 1]]+Dataset[[#This Row],[2025/26 To - Spending review Topic 2]]+Dataset[[#This Row],[2025/26 To - Spending review Topic 3]]+Dataset[[#This Row],[2025/26 To - Spending review Topic 4]]+Dataset[[#This Row],[2025/26 To - Other reallocations]]","v":0},{"$f":"Dataset[[#This Row],[2023/24 Baseline]]+Dataset[[#This Row],[2023/24 From - Total]]+Dataset[[#This Row],[2023/24 To - Total]]","v":0},{"$f":"Dataset[[#This Row],[2024/25 Baseline]]+Dataset[[#This Row],[2024/25 From - Total]]+Dataset[[#This Row],[2024/25 To - Total]]","v":0},{"$f":"Dataset[[#This Row],[2025/26 Baseline]]+Dataset[[#This Row],[2025/26 From - Total]]+Dataset[[#This Row],[2025/26 To - Total]]","v":0}]
["NAT|Non-transfer item","2|Other transfers to households","2023_24","MTEF2023",2,2,3,1069,452,"02","02","03","001069","000452","02|02|03",2,2,10,53,57,"02|02|10|53|57","National","Parliament","Legislation and Oversight","Public Participation and external relations: Shared Services","Non-transfer item","Capital","Transfers and subsidies","Households","Other transfers to households","Other transfers to households","General public services","Executive and legislative organs","NAT",0,0,0,0,0,0,0,0,0,0,0,null,null,null,null,null,null,null,null,null,null,null,null,null,null,null,null,null,null,null,null,null,null,null,null,null,null,null,null,null,null,{"$f":"Dataset[[#This Row],[2023/24 From - Spending review Topic 1]]+Dataset[[#This Row],[2023/24 From - Spending review Topic 2]]+Dataset[[#This Row],[2023/24 From - Spending review Topic 3]]+Dataset[[#This Row],[2023/24 From - Spending review Topic 4]]+Dataset[[#This Row],[2023/24 From - Other reallocations]]","v":0},{"$f":"Dataset[[#This Row],[2024/25 From - Spending review Topic 1]]+Dataset[[#This Row],[2024/25 From - Spending review Topic 2]]+Dataset[[#This Row],[2024/25 From - Spending review Topic 3]]+Dataset[[#This Row],[2024/25 From - Spending review Topic 4]]+Dataset[[#This Row],[2024/25 From - Other reallocations]]","v":0},{"$f":"Dataset[[#This Row],[2025/26 From - Spending review Topic 1]]+Dataset[[#This Row],[2025/26 From - Spending review Topic 2]]+Dataset[[#This Row],[2025/26 From - Spending review Topic 3]]+Dataset[[#This Row],[2025/26 From - Spending review Topic 4]]+Dataset[[#This Row],[2025/26 From - Other reallocations]]","v":0},{"$f":"Dataset[[#This Row],[2023/24 To - Spending review Topic 1]]+Dataset[[#This Row],[2023/24 To - Spending review Topic 2]]+Dataset[[#This Row],[2023/24 To - Spending review Topic 3]]+Dataset[[#This Row],[2023/24 To - Spending review Topic 4]]+Dataset[[#This Row],[2023/24 To - Other reallocations]]","v":0},{"$f":"Dataset[[#This Row],[2024/25 To - Spending review Topic 1]]+Dataset[[#This Row],[2024/25 To - Spending review Topic 2]]+Dataset[[#This Row],[2024/25 To - Spending review Topic 3]]+Dataset[[#This Row],[2024/25 To - Spending review Topic 4]]+Dataset[[#This Row],[2024/25 To - Other reallocations]]","v":0},{"$f":"Dataset[[#This Row],[2025/26 To - Spending review Topic 1]]+Dataset[[#This Row],[2025/26 To - Spending review Topic 2]]+Dataset[[#This Row],[2025/26 To - Spending review Topic 3]]+Dataset[[#This Row],[2025/26 To - Spending review Topic 4]]+Dataset[[#This Row],[2025/26 To - Other reallocations]]","v":0},{"$f":"Dataset[[#This Row],[2023/24 Baseline]]+Dataset[[#This Row],[2023/24 From - Total]]+Dataset[[#This Row],[2023/24 To - Total]]","v":0},{"$f":"Dataset[[#This Row],[2024/25 Baseline]]+Dataset[[#This Row],[2024/25 From - Total]]+Dataset[[#This Row],[2024/25 To - Total]]","v":0},{"$f":"Dataset[[#This Row],[2025/26 Baseline]]+Dataset[[#This Row],[2025/26 From - Total]]+Dataset[[#This Row],[2025/26 To - Total]]","v":0}]
["NAT|Non-transfer item","2|Buildings","2023_24","MTEF2023",2,2,3,1070,453,"02","02","03","001070","000453","02|02|03",2,3,11,54,58,"02|03|11|54|58","National","Parliament","Legislation and Oversight","Public Participation and external relations: Shared Services","Non-transfer item","Capital","Payments for capital assets","Buildings and other fixed structures","Buildings","Buildings","General public services","Executive and legislative organs","NAT",0,0,0,0,0,0,0,0,0,0,0,null,null,null,null,null,null,null,null,null,null,null,null,null,null,null,null,null,null,null,null,null,null,null,null,null,null,null,null,null,null,{"$f":"Dataset[[#This Row],[2023/24 From - Spending review Topic 1]]+Dataset[[#This Row],[2023/24 From - Spending review Topic 2]]+Dataset[[#This Row],[2023/24 From - Spending review Topic 3]]+Dataset[[#This Row],[2023/24 From - Spending review Topic 4]]+Dataset[[#This Row],[2023/24 From - Other reallocations]]","v":0},{"$f":"Dataset[[#This Row],[2024/25 From - Spending review Topic 1]]+Dataset[[#This Row],[2024/25 From - Spending review Topic 2]]+Dataset[[#This Row],[2024/25 From - Spending review Topic 3]]+Dataset[[#This Row],[2024/25 From - Spending review Topic 4]]+Dataset[[#This Row],[2024/25 From - Other reallocations]]","v":0},{"$f":"Dataset[[#This Row],[2025/26 From - Spending review Topic 1]]+Dataset[[#This Row],[2025/26 From - Spending review Topic 2]]+Dataset[[#This Row],[2025/26 From - Spending review Topic 3]]+Dataset[[#This Row],[2025/26 From - Spending review Topic 4]]+Dataset[[#This Row],[2025/26 From - Other reallocations]]","v":0},{"$f":"Dataset[[#This Row],[2023/24 To - Spending review Topic 1]]+Dataset[[#This Row],[2023/24 To - Spending review Topic 2]]+Dataset[[#This Row],[2023/24 To - Spending review Topic 3]]+Dataset[[#This Row],[2023/24 To - Spending review Topic 4]]+Dataset[[#This Row],[2023/24 To - Other reallocations]]","v":0},{"$f":"Dataset[[#This Row],[2024/25 To - Spending review Topic 1]]+Dataset[[#This Row],[2024/25 To - Spending review Topic 2]]+Dataset[[#This Row],[2024/25 To - Spending review Topic 3]]+Dataset[[#This Row],[2024/25 To - Spending review Topic 4]]+Dataset[[#This Row],[2024/25 To - Other reallocations]]","v":0},{"$f":"Dataset[[#This Row],[2025/26 To - Spending review Topic 1]]+Dataset[[#This Row],[2025/26 To - Spending review Topic 2]]+Dataset[[#This Row],[2025/26 To - Spending review Topic 3]]+Dataset[[#This Row],[2025/26 To - Spending review Topic 4]]+Dataset[[#This Row],[2025/26 To - Other reallocations]]","v":0},{"$f":"Dataset[[#This Row],[2023/24 Baseline]]+Dataset[[#This Row],[2023/24 From - Total]]+Dataset[[#This Row],[2023/24 To - Total]]","v":0},{"$f":"Dataset[[#This Row],[2024/25 Baseline]]+Dataset[[#This Row],[2024/25 From - Total]]+Dataset[[#This Row],[2024/25 To - Total]]","v":0},{"$f":"Dataset[[#This Row],[2025/26 Baseline]]+Dataset[[#This Row],[2025/26 From - Total]]+Dataset[[#This Row],[2025/26 To - Total]]","v":0}]
["NAT|Non-transfer item","2|Other fixed structures","2023_24","MTEF2023",2,2,3,1071,454,"02","02","03","001071","000454","02|02|03",2,3,11,55,59,"02|03|11|55|59","National","Parliament","Legislation and Oversight","Public Participation and external relations: Shared Services","Non-transfer item","Capital","Payments for capital assets","Buildings and other fixed structures","Other fixed structures","Other fixed structures","General public services","Executive and legislative organs","NAT",0,0,0,0,0,0,0,0,0,0,0,null,null,null,null,null,null,null,null,null,null,null,null,null,null,null,null,null,null,null,null,null,null,null,null,null,null,null,null,null,null,{"$f":"Dataset[[#This Row],[2023/24 From - Spending review Topic 1]]+Dataset[[#This Row],[2023/24 From - Spending review Topic 2]]+Dataset[[#This Row],[2023/24 From - Spending review Topic 3]]+Dataset[[#This Row],[2023/24 From - Spending review Topic 4]]+Dataset[[#This Row],[2023/24 From - Other reallocations]]","v":0},{"$f":"Dataset[[#This Row],[2024/25 From - Spending review Topic 1]]+Dataset[[#This Row],[2024/25 From - Spending review Topic 2]]+Dataset[[#This Row],[2024/25 From - Spending review Topic 3]]+Dataset[[#This Row],[2024/25 From - Spending review Topic 4]]+Dataset[[#This Row],[2024/25 From - Other reallocations]]","v":0},{"$f":"Dataset[[#This Row],[2025/26 From - Spending review Topic 1]]+Dataset[[#This Row],[2025/26 From - Spending review Topic 2]]+Dataset[[#This Row],[2025/26 From - Spending review Topic 3]]+Dataset[[#This Row],[2025/26 From - Spending review Topic 4]]+Dataset[[#This Row],[2025/26 From - Other reallocations]]","v":0},{"$f":"Dataset[[#This Row],[2023/24 To - Spending review Topic 1]]+Dataset[[#This Row],[2023/24 To - Spending review Topic 2]]+Dataset[[#This Row],[2023/24 To - Spending review Topic 3]]+Dataset[[#This Row],[2023/24 To - Spending review Topic 4]]+Dataset[[#This Row],[2023/24 To - Other reallocations]]","v":0},{"$f":"Dataset[[#This Row],[2024/25 To - Spending review Topic 1]]+Dataset[[#This Row],[2024/25 To - Spending review Topic 2]]+Dataset[[#This Row],[2024/25 To - Spending review Topic 3]]+Dataset[[#This Row],[2024/25 To - Spending review Topic 4]]+Dataset[[#This Row],[2024/25 To - Other reallocations]]","v":0},{"$f":"Dataset[[#This Row],[2025/26 To - Spending review Topic 1]]+Dataset[[#This Row],[2025/26 To - Spending review Topic 2]]+Dataset[[#This Row],[2025/26 To - Spending review Topic 3]]+Dataset[[#This Row],[2025/26 To - Spending review Topic 4]]+Dataset[[#This Row],[2025/26 To - Other reallocations]]","v":0},{"$f":"Dataset[[#This Row],[2023/24 Baseline]]+Dataset[[#This Row],[2023/24 From - Total]]+Dataset[[#This Row],[2023/24 To - Total]]","v":0},{"$f":"Dataset[[#This Row],[2024/25 Baseline]]+Dataset[[#This Row],[2024/25 From - Total]]+Dataset[[#This Row],[2024/25 To - Total]]","v":0},{"$f":"Dataset[[#This Row],[2025/26 Baseline]]+Dataset[[#This Row],[2025/26 From - Total]]+Dataset[[#This Row],[2025/26 To - Total]]","v":0}]
["NAT|Non-transfer item","2|Transport equipment","2023_24","MTEF2023",2,2,3,1072,455,"02","02","03","001072","000455","02|02|03",2,3,12,56,60,"02|03|12|56|60","National","Parliament","Legislation and Oversight","Public Participation and external relations: Shared Services","Non-transfer item","Capital","Payments for capital assets","Machinery and equipment","Transport equipment","Transport equipment","General public services","Executive and legislative organs","NAT",0,0,0,0,0,0,0,0,0,0,0,null,null,null,null,null,null,null,null,null,null,null,null,null,null,null,null,null,null,null,null,null,null,null,null,null,null,null,null,null,null,{"$f":"Dataset[[#This Row],[2023/24 From - Spending review Topic 1]]+Dataset[[#This Row],[2023/24 From - Spending review Topic 2]]+Dataset[[#This Row],[2023/24 From - Spending review Topic 3]]+Dataset[[#This Row],[2023/24 From - Spending review Topic 4]]+Dataset[[#This Row],[2023/24 From - Other reallocations]]","v":0},{"$f":"Dataset[[#This Row],[2024/25 From - Spending review Topic 1]]+Dataset[[#This Row],[2024/25 From - Spending review Topic 2]]+Dataset[[#This Row],[2024/25 From - Spending review Topic 3]]+Dataset[[#This Row],[2024/25 From - Spending review Topic 4]]+Dataset[[#This Row],[2024/25 From - Other reallocations]]","v":0},{"$f":"Dataset[[#This Row],[2025/26 From - Spending review Topic 1]]+Dataset[[#This Row],[2025/26 From - Spending review Topic 2]]+Dataset[[#This Row],[2025/26 From - Spending review Topic 3]]+Dataset[[#This Row],[2025/26 From - Spending review Topic 4]]+Dataset[[#This Row],[2025/26 From - Other reallocations]]","v":0},{"$f":"Dataset[[#This Row],[2023/24 To - Spending review Topic 1]]+Dataset[[#This Row],[2023/24 To - Spending review Topic 2]]+Dataset[[#This Row],[2023/24 To - Spending review Topic 3]]+Dataset[[#This Row],[2023/24 To - Spending review Topic 4]]+Dataset[[#This Row],[2023/24 To - Other reallocations]]","v":0},{"$f":"Dataset[[#This Row],[2024/25 To - Spending review Topic 1]]+Dataset[[#This Row],[2024/25 To - Spending review Topic 2]]+Dataset[[#This Row],[2024/25 To - Spending review Topic 3]]+Dataset[[#This Row],[2024/25 To - Spending review Topic 4]]+Dataset[[#This Row],[2024/25 To - Other reallocations]]","v":0},{"$f":"Dataset[[#This Row],[2025/26 To - Spending review Topic 1]]+Dataset[[#This Row],[2025/26 To - Spending review Topic 2]]+Dataset[[#This Row],[2025/26 To - Spending review Topic 3]]+Dataset[[#This Row],[2025/26 To - Spending review Topic 4]]+Dataset[[#This Row],[2025/26 To - Other reallocations]]","v":0},{"$f":"Dataset[[#This Row],[2023/24 Baseline]]+Dataset[[#This Row],[2023/24 From - Total]]+Dataset[[#This Row],[2023/24 To - Total]]","v":0},{"$f":"Dataset[[#This Row],[2024/25 Baseline]]+Dataset[[#This Row],[2024/25 From - Total]]+Dataset[[#This Row],[2024/25 To - Total]]","v":0},{"$f":"Dataset[[#This Row],[2025/26 Baseline]]+Dataset[[#This Row],[2025/26 From - Total]]+Dataset[[#This Row],[2025/26 To - Total]]","v":0}]
["NAT|Non-transfer item","2|Other machinery and equipment","2023_24","MTEF2023",2,2,3,1073,456,"02","02","03","001073","000456","02|02|03",2,3,12,57,61,"02|03|12|57|61","National","Parliament","Legislation and Oversight","Public Participation and external relations: Shared Services","Non-transfer item","Capital","Payments for capital assets","Machinery and equipment","Other machinery and equipment","Other machinery and equipment","General public services","Executive and legislative organs","NAT",1332,1406,2047,1571,1571,1571,0,1663,1737,1815,1896,null,null,null,null,null,null,null,null,null,null,null,null,null,null,null,null,null,null,null,null,null,null,null,null,null,null,null,null,null,null,{"$f":"Dataset[[#This Row],[2023/24 From - Spending review Topic 1]]+Dataset[[#This Row],[2023/24 From - Spending review Topic 2]]+Dataset[[#This Row],[2023/24 From - Spending review Topic 3]]+Dataset[[#This Row],[2023/24 From - Spending review Topic 4]]+Dataset[[#This Row],[2023/24 From - Other reallocations]]","v":0},{"$f":"Dataset[[#This Row],[2024/25 From - Spending review Topic 1]]+Dataset[[#This Row],[2024/25 From - Spending review Topic 2]]+Dataset[[#This Row],[2024/25 From - Spending review Topic 3]]+Dataset[[#This Row],[2024/25 From - Spending review Topic 4]]+Dataset[[#This Row],[2024/25 From - Other reallocations]]","v":0},{"$f":"Dataset[[#This Row],[2025/26 From - Spending review Topic 1]]+Dataset[[#This Row],[2025/26 From - Spending review Topic 2]]+Dataset[[#This Row],[2025/26 From - Spending review Topic 3]]+Dataset[[#This Row],[2025/26 From - Spending review Topic 4]]+Dataset[[#This Row],[2025/26 From - Other reallocations]]","v":0},{"$f":"Dataset[[#This Row],[2023/24 To - Spending review Topic 1]]+Dataset[[#This Row],[2023/24 To - Spending review Topic 2]]+Dataset[[#This Row],[2023/24 To - Spending review Topic 3]]+Dataset[[#This Row],[2023/24 To - Spending review Topic 4]]+Dataset[[#This Row],[2023/24 To - Other reallocations]]","v":0},{"$f":"Dataset[[#This Row],[2024/25 To - Spending review Topic 1]]+Dataset[[#This Row],[2024/25 To - Spending review Topic 2]]+Dataset[[#This Row],[2024/25 To - Spending review Topic 3]]+Dataset[[#This Row],[2024/25 To - Spending review Topic 4]]+Dataset[[#This Row],[2024/25 To - Other reallocations]]","v":0},{"$f":"Dataset[[#This Row],[2025/26 To - Spending review Topic 1]]+Dataset[[#This Row],[2025/26 To - Spending review Topic 2]]+Dataset[[#This Row],[2025/26 To - Spending review Topic 3]]+Dataset[[#This Row],[2025/26 To - Spending review Topic 4]]+Dataset[[#This Row],[2025/26 To - Other reallocations]]","v":0},{"$f":"Dataset[[#This Row],[2023/24 Baseline]]+Dataset[[#This Row],[2023/24 From - Total]]+Dataset[[#This Row],[2023/24 To - Total]]","v":1737},{"$f":"Dataset[[#This Row],[2024/25 Baseline]]+Dataset[[#This Row],[2024/25 From - Total]]+Dataset[[#This Row],[2024/25 To - Total]]","v":1815},{"$f":"Dataset[[#This Row],[2025/26 Baseline]]+Dataset[[#This Row],[2025/26 From - Total]]+Dataset[[#This Row],[2025/26 To - Total]]","v":1896}]
["NAT|Non-transfer item","2|Heritage assets","2023_24","MTEF2023",2,2,3,1074,457,"02","02","03","001074","000457","02|02|03",2,3,13,58,62,"02|03|13|58|62","National","Parliament","Legislation and Oversight","Public Participation and external relations: Shared Services","Non-transfer item","Capital","Payments for capital assets","Heritage assets","Heritage assets","Heritage assets","General public services","Executive and legislative organs","NAT",0,0,0,0,0,0,0,0,0,0,0,null,null,null,null,null,null,null,null,null,null,null,null,null,null,null,null,null,null,null,null,null,null,null,null,null,null,null,null,null,null,{"$f":"Dataset[[#This Row],[2023/24 From - Spending review Topic 1]]+Dataset[[#This Row],[2023/24 From - Spending review Topic 2]]+Dataset[[#This Row],[2023/24 From - Spending review Topic 3]]+Dataset[[#This Row],[2023/24 From - Spending review Topic 4]]+Dataset[[#This Row],[2023/24 From - Other reallocations]]","v":0},{"$f":"Dataset[[#This Row],[2024/25 From - Spending review Topic 1]]+Dataset[[#This Row],[2024/25 From - Spending review Topic 2]]+Dataset[[#This Row],[2024/25 From - Spending review Topic 3]]+Dataset[[#This Row],[2024/25 From - Spending review Topic 4]]+Dataset[[#This Row],[2024/25 From - Other reallocations]]","v":0},{"$f":"Dataset[[#This Row],[2025/26 From - Spending review Topic 1]]+Dataset[[#This Row],[2025/26 From - Spending review Topic 2]]+Dataset[[#This Row],[2025/26 From - Spending review Topic 3]]+Dataset[[#This Row],[2025/26 From - Spending review Topic 4]]+Dataset[[#This Row],[2025/26 From - Other reallocations]]","v":0},{"$f":"Dataset[[#This Row],[2023/24 To - Spending review Topic 1]]+Dataset[[#This Row],[2023/24 To - Spending review Topic 2]]+Dataset[[#This Row],[2023/24 To - Spending review Topic 3]]+Dataset[[#This Row],[2023/24 To - Spending review Topic 4]]+Dataset[[#This Row],[2023/24 To - Other reallocations]]","v":0},{"$f":"Dataset[[#This Row],[2024/25 To - Spending review Topic 1]]+Dataset[[#This Row],[2024/25 To - Spending review Topic 2]]+Dataset[[#This Row],[2024/25 To - Spending review Topic 3]]+Dataset[[#This Row],[2024/25 To - Spending review Topic 4]]+Dataset[[#This Row],[2024/25 To - Other reallocations]]","v":0},{"$f":"Dataset[[#This Row],[2025/26 To - Spending review Topic 1]]+Dataset[[#This Row],[2025/26 To - Spending review Topic 2]]+Dataset[[#This Row],[2025/26 To - Spending review Topic 3]]+Dataset[[#This Row],[2025/26 To - Spending review Topic 4]]+Dataset[[#This Row],[2025/26 To - Other reallocations]]","v":0},{"$f":"Dataset[[#This Row],[2023/24 Baseline]]+Dataset[[#This Row],[2023/24 From - Total]]+Dataset[[#This Row],[2023/24 To - Total]]","v":0},{"$f":"Dataset[[#This Row],[2024/25 Baseline]]+Dataset[[#This Row],[2024/25 From - Total]]+Dataset[[#This Row],[2024/25 To - Total]]","v":0},{"$f":"Dataset[[#This Row],[2025/26 Baseline]]+Dataset[[#This Row],[2025/26 From - Total]]+Dataset[[#This Row],[2025/26 To - Total]]","v":0}]
["NAT|Non-transfer item","2|Specialised military assets","2023_24","MTEF2023",2,2,3,1075,458,"02","02","03","001075","000458","02|02|03",2,3,14,59,63,"02|03|14|59|63","National","Parliament","Legislation and Oversight","Public Participation and external relations: Shared Services","Non-transfer item","Capital","Payments for capital assets","Specialised military assets","Specialised military assets","Specialised military assets","General public services","Executive and legislative organs","NAT",0,0,0,0,0,0,0,0,0,0,0,null,null,null,null,null,null,null,null,null,null,null,null,null,null,null,null,null,null,null,null,null,null,null,null,null,null,null,null,null,null,{"$f":"Dataset[[#This Row],[2023/24 From - Spending review Topic 1]]+Dataset[[#This Row],[2023/24 From - Spending review Topic 2]]+Dataset[[#This Row],[2023/24 From - Spending review Topic 3]]+Dataset[[#This Row],[2023/24 From - Spending review Topic 4]]+Dataset[[#This Row],[2023/24 From - Other reallocations]]","v":0},{"$f":"Dataset[[#This Row],[2024/25 From - Spending review Topic 1]]+Dataset[[#This Row],[2024/25 From - Spending review Topic 2]]+Dataset[[#This Row],[2024/25 From - Spending review Topic 3]]+Dataset[[#This Row],[2024/25 From - Spending review Topic 4]]+Dataset[[#This Row],[2024/25 From - Other reallocations]]","v":0},{"$f":"Dataset[[#This Row],[2025/26 From - Spending review Topic 1]]+Dataset[[#This Row],[2025/26 From - Spending review Topic 2]]+Dataset[[#This Row],[2025/26 From - Spending review Topic 3]]+Dataset[[#This Row],[2025/26 From - Spending review Topic 4]]+Dataset[[#This Row],[2025/26 From - Other reallocations]]","v":0},{"$f":"Dataset[[#This Row],[2023/24 To - Spending review Topic 1]]+Dataset[[#This Row],[2023/24 To - Spending review Topic 2]]+Dataset[[#This Row],[2023/24 To - Spending review Topic 3]]+Dataset[[#This Row],[2023/24 To - Spending review Topic 4]]+Dataset[[#This Row],[2023/24 To - Other reallocations]]","v":0},{"$f":"Dataset[[#This Row],[2024/25 To - Spending review Topic 1]]+Dataset[[#This Row],[2024/25 To - Spending review Topic 2]]+Dataset[[#This Row],[2024/25 To - Spending review Topic 3]]+Dataset[[#This Row],[2024/25 To - Spending review Topic 4]]+Dataset[[#This Row],[2024/25 To - Other reallocations]]","v":0},{"$f":"Dataset[[#This Row],[2025/26 To - Spending review Topic 1]]+Dataset[[#This Row],[2025/26 To - Spending review Topic 2]]+Dataset[[#This Row],[2025/26 To - Spending review Topic 3]]+Dataset[[#This Row],[2025/26 To - Spending review Topic 4]]+Dataset[[#This Row],[2025/26 To - Other reallocations]]","v":0},{"$f":"Dataset[[#This Row],[2023/24 Baseline]]+Dataset[[#This Row],[2023/24 From - Total]]+Dataset[[#This Row],[2023/24 To - Total]]","v":0},{"$f":"Dataset[[#This Row],[2024/25 Baseline]]+Dataset[[#This Row],[2024/25 From - Total]]+Dataset[[#This Row],[2024/25 To - Total]]","v":0},{"$f":"Dataset[[#This Row],[2025/26 Baseline]]+Dataset[[#This Row],[2025/26 From - Total]]+Dataset[[#This Row],[2025/26 To - Total]]","v":0}]
["NAT|Non-transfer item","2|Biological assets","2023_24","MTEF2023",2,2,3,1076,459,"02","02","03","001076","000459","02|02|03",2,3,15,60,64,"02|03|15|60|64","National","Parliament","Legislation and Oversight","Public Participation and external relations: Shared Services","Non-transfer item","Capital","Payments for capital assets","Biological assets","Biological assets","Biological assets","General public services","Executive and legislative organs","NAT",0,0,0,0,0,0,0,0,0,0,0,null,null,null,null,null,null,null,null,null,null,null,null,null,null,null,null,null,null,null,null,null,null,null,null,null,null,null,null,null,null,{"$f":"Dataset[[#This Row],[2023/24 From - Spending review Topic 1]]+Dataset[[#This Row],[2023/24 From - Spending review Topic 2]]+Dataset[[#This Row],[2023/24 From - Spending review Topic 3]]+Dataset[[#This Row],[2023/24 From - Spending review Topic 4]]+Dataset[[#This Row],[2023/24 From - Other reallocations]]","v":0},{"$f":"Dataset[[#This Row],[2024/25 From - Spending review Topic 1]]+Dataset[[#This Row],[2024/25 From - Spending review Topic 2]]+Dataset[[#This Row],[2024/25 From - Spending review Topic 3]]+Dataset[[#This Row],[2024/25 From - Spending review Topic 4]]+Dataset[[#This Row],[2024/25 From - Other reallocations]]","v":0},{"$f":"Dataset[[#This Row],[2025/26 From - Spending review Topic 1]]+Dataset[[#This Row],[2025/26 From - Spending review Topic 2]]+Dataset[[#This Row],[2025/26 From - Spending review Topic 3]]+Dataset[[#This Row],[2025/26 From - Spending review Topic 4]]+Dataset[[#This Row],[2025/26 From - Other reallocations]]","v":0},{"$f":"Dataset[[#This Row],[2023/24 To - Spending review Topic 1]]+Dataset[[#This Row],[2023/24 To - Spending review Topic 2]]+Dataset[[#This Row],[2023/24 To - Spending review Topic 3]]+Dataset[[#This Row],[2023/24 To - Spending review Topic 4]]+Dataset[[#This Row],[2023/24 To - Other reallocations]]","v":0},{"$f":"Dataset[[#This Row],[2024/25 To - Spending review Topic 1]]+Dataset[[#This Row],[2024/25 To - Spending review Topic 2]]+Dataset[[#This Row],[2024/25 To - Spending review Topic 3]]+Dataset[[#This Row],[2024/25 To - Spending review Topic 4]]+Dataset[[#This Row],[2024/25 To - Other reallocations]]","v":0},{"$f":"Dataset[[#This Row],[2025/26 To - Spending review Topic 1]]+Dataset[[#This Row],[2025/26 To - Spending review Topic 2]]+Dataset[[#This Row],[2025/26 To - Spending review Topic 3]]+Dataset[[#This Row],[2025/26 To - Spending review Topic 4]]+Dataset[[#This Row],[2025/26 To - Other reallocations]]","v":0},{"$f":"Dataset[[#This Row],[2023/24 Baseline]]+Dataset[[#This Row],[2023/24 From - Total]]+Dataset[[#This Row],[2023/24 To - Total]]","v":0},{"$f":"Dataset[[#This Row],[2024/25 Baseline]]+Dataset[[#This Row],[2024/25 From - Total]]+Dataset[[#This Row],[2024/25 To - Total]]","v":0},{"$f":"Dataset[[#This Row],[2025/26 Baseline]]+Dataset[[#This Row],[2025/26 From - Total]]+Dataset[[#This Row],[2025/26 To - Total]]","v":0}]
["NAT|Non-transfer item","2|Land and sub-soil assets","2023_24","MTEF2023",2,2,3,1077,460,"02","02","03","001077","000460","02|02|03",2,3,16,61,65,"02|03|16|61|65","National","Parliament","Legislation and Oversight","Public Participation and external relations: Shared Services","Non-transfer item","Capital","Payments for capital assets","Land and sub-soil assets","Land and sub-soil assets","Land and sub-soil assets","General public services","Executive and legislative organs","NAT",0,0,0,0,0,0,0,0,0,0,0,null,null,null,null,null,null,null,null,null,null,null,null,null,null,null,null,null,null,null,null,null,null,null,null,null,null,null,null,null,null,{"$f":"Dataset[[#This Row],[2023/24 From - Spending review Topic 1]]+Dataset[[#This Row],[2023/24 From - Spending review Topic 2]]+Dataset[[#This Row],[2023/24 From - Spending review Topic 3]]+Dataset[[#This Row],[2023/24 From - Spending review Topic 4]]+Dataset[[#This Row],[2023/24 From - Other reallocations]]","v":0},{"$f":"Dataset[[#This Row],[2024/25 From - Spending review Topic 1]]+Dataset[[#This Row],[2024/25 From - Spending review Topic 2]]+Dataset[[#This Row],[2024/25 From - Spending review Topic 3]]+Dataset[[#This Row],[2024/25 From - Spending review Topic 4]]+Dataset[[#This Row],[2024/25 From - Other reallocations]]","v":0},{"$f":"Dataset[[#This Row],[2025/26 From - Spending review Topic 1]]+Dataset[[#This Row],[2025/26 From - Spending review Topic 2]]+Dataset[[#This Row],[2025/26 From - Spending review Topic 3]]+Dataset[[#This Row],[2025/26 From - Spending review Topic 4]]+Dataset[[#This Row],[2025/26 From - Other reallocations]]","v":0},{"$f":"Dataset[[#This Row],[2023/24 To - Spending review Topic 1]]+Dataset[[#This Row],[2023/24 To - Spending review Topic 2]]+Dataset[[#This Row],[2023/24 To - Spending review Topic 3]]+Dataset[[#This Row],[2023/24 To - Spending review Topic 4]]+Dataset[[#This Row],[2023/24 To - Other reallocations]]","v":0},{"$f":"Dataset[[#This Row],[2024/25 To - Spending review Topic 1]]+Dataset[[#This Row],[2024/25 To - Spending review Topic 2]]+Dataset[[#This Row],[2024/25 To - Spending review Topic 3]]+Dataset[[#This Row],[2024/25 To - Spending review Topic 4]]+Dataset[[#This Row],[2024/25 To - Other reallocations]]","v":0},{"$f":"Dataset[[#This Row],[2025/26 To - Spending review Topic 1]]+Dataset[[#This Row],[2025/26 To - Spending review Topic 2]]+Dataset[[#This Row],[2025/26 To - Spending review Topic 3]]+Dataset[[#This Row],[2025/26 To - Spending review Topic 4]]+Dataset[[#This Row],[2025/26 To - Other reallocations]]","v":0},{"$f":"Dataset[[#This Row],[2023/24 Baseline]]+Dataset[[#This Row],[2023/24 From - Total]]+Dataset[[#This Row],[2023/24 To - Total]]","v":0},{"$f":"Dataset[[#This Row],[2024/25 Baseline]]+Dataset[[#This Row],[2024/25 From - Total]]+Dataset[[#This Row],[2024/25 To - Total]]","v":0},{"$f":"Dataset[[#This Row],[2025/26 Baseline]]+Dataset[[#This Row],[2025/26 From - Total]]+Dataset[[#This Row],[2025/26 To - Total]]","v":0}]
["NAT|Non-transfer item","2|Software and other intangible assets","2023_24","MTEF2023",2,2,3,1078,461,"02","02","03","001078","000461","02|02|03",2,3,17,62,66,"02|03|17|62|66","National","Parliament","Legislation and Oversight","Public Participation and external relations: Shared Services","Non-transfer item","Capital","Payments for capital assets","Software and other intangible assets","Software and other intangible assets","Software and other intangible assets","General public services","Executive and legislative organs","NAT",0,0,0,0,0,0,0,0,0,0,0,null,null,null,null,null,null,null,null,null,null,null,null,null,null,null,null,null,null,null,null,null,null,null,null,null,null,null,null,null,null,{"$f":"Dataset[[#This Row],[2023/24 From - Spending review Topic 1]]+Dataset[[#This Row],[2023/24 From - Spending review Topic 2]]+Dataset[[#This Row],[2023/24 From - Spending review Topic 3]]+Dataset[[#This Row],[2023/24 From - Spending review Topic 4]]+Dataset[[#This Row],[2023/24 From - Other reallocations]]","v":0},{"$f":"Dataset[[#This Row],[2024/25 From - Spending review Topic 1]]+Dataset[[#This Row],[2024/25 From - Spending review Topic 2]]+Dataset[[#This Row],[2024/25 From - Spending review Topic 3]]+Dataset[[#This Row],[2024/25 From - Spending review Topic 4]]+Dataset[[#This Row],[2024/25 From - Other reallocations]]","v":0},{"$f":"Dataset[[#This Row],[2025/26 From - Spending review Topic 1]]+Dataset[[#This Row],[2025/26 From - Spending review Topic 2]]+Dataset[[#This Row],[2025/26 From - Spending review Topic 3]]+Dataset[[#This Row],[2025/26 From - Spending review Topic 4]]+Dataset[[#This Row],[2025/26 From - Other reallocations]]","v":0},{"$f":"Dataset[[#This Row],[2023/24 To - Spending review Topic 1]]+Dataset[[#This Row],[2023/24 To - Spending review Topic 2]]+Dataset[[#This Row],[2023/24 To - Spending review Topic 3]]+Dataset[[#This Row],[2023/24 To - Spending review Topic 4]]+Dataset[[#This Row],[2023/24 To - Other reallocations]]","v":0},{"$f":"Dataset[[#This Row],[2024/25 To - Spending review Topic 1]]+Dataset[[#This Row],[2024/25 To - Spending review Topic 2]]+Dataset[[#This Row],[2024/25 To - Spending review Topic 3]]+Dataset[[#This Row],[2024/25 To - Spending review Topic 4]]+Dataset[[#This Row],[2024/25 To - Other reallocations]]","v":0},{"$f":"Dataset[[#This Row],[2025/26 To - Spending review Topic 1]]+Dataset[[#This Row],[2025/26 To - Spending review Topic 2]]+Dataset[[#This Row],[2025/26 To - Spending review Topic 3]]+Dataset[[#This Row],[2025/26 To - Spending review Topic 4]]+Dataset[[#This Row],[2025/26 To - Other reallocations]]","v":0},{"$f":"Dataset[[#This Row],[2023/24 Baseline]]+Dataset[[#This Row],[2023/24 From - Total]]+Dataset[[#This Row],[2023/24 To - Total]]","v":0},{"$f":"Dataset[[#This Row],[2024/25 Baseline]]+Dataset[[#This Row],[2024/25 From - Total]]+Dataset[[#This Row],[2024/25 To - Total]]","v":0},{"$f":"Dataset[[#This Row],[2025/26 Baseline]]+Dataset[[#This Row],[2025/26 From - Total]]+Dataset[[#This Row],[2025/26 To - Total]]","v":0}]
["NAT|Non-transfer item","2|Payments for financial assets","2023_24","MTEF2023",2,2,3,1079,462,"02","02","03","001079","000462","02|02|03",3,4,18,63,67,"03|04|18|63|67","National","Parliament","Legislation and Oversight","Public Participation and external relations: Shared Services","Non-transfer item","Payments for financial assets","Payments for financial assets","Payments for financial assets","Payments for financial assets","Payments for financial assets","General public services","Executive and legislative organs","NAT",0,0,0,0,0,0,0,0,0,0,0,null,null,null,null,null,null,null,null,null,null,null,null,null,null,null,null,null,null,null,null,null,null,null,null,null,null,null,null,null,null,{"$f":"Dataset[[#This Row],[2023/24 From - Spending review Topic 1]]+Dataset[[#This Row],[2023/24 From - Spending review Topic 2]]+Dataset[[#This Row],[2023/24 From - Spending review Topic 3]]+Dataset[[#This Row],[2023/24 From - Spending review Topic 4]]+Dataset[[#This Row],[2023/24 From - Other reallocations]]","v":0},{"$f":"Dataset[[#This Row],[2024/25 From - Spending review Topic 1]]+Dataset[[#This Row],[2024/25 From - Spending review Topic 2]]+Dataset[[#This Row],[2024/25 From - Spending review Topic 3]]+Dataset[[#This Row],[2024/25 From - Spending review Topic 4]]+Dataset[[#This Row],[2024/25 From - Other reallocations]]","v":0},{"$f":"Dataset[[#This Row],[2025/26 From - Spending review Topic 1]]+Dataset[[#This Row],[2025/26 From - Spending review Topic 2]]+Dataset[[#This Row],[2025/26 From - Spending review Topic 3]]+Dataset[[#This Row],[2025/26 From - Spending review Topic 4]]+Dataset[[#This Row],[2025/26 From - Other reallocations]]","v":0},{"$f":"Dataset[[#This Row],[2023/24 To - Spending review Topic 1]]+Dataset[[#This Row],[2023/24 To - Spending review Topic 2]]+Dataset[[#This Row],[2023/24 To - Spending review Topic 3]]+Dataset[[#This Row],[2023/24 To - Spending review Topic 4]]+Dataset[[#This Row],[2023/24 To - Other reallocations]]","v":0},{"$f":"Dataset[[#This Row],[2024/25 To - Spending review Topic 1]]+Dataset[[#This Row],[2024/25 To - Spending review Topic 2]]+Dataset[[#This Row],[2024/25 To - Spending review Topic 3]]+Dataset[[#This Row],[2024/25 To - Spending review Topic 4]]+Dataset[[#This Row],[2024/25 To - Other reallocations]]","v":0},{"$f":"Dataset[[#This Row],[2025/26 To - Spending review Topic 1]]+Dataset[[#This Row],[2025/26 To - Spending review Topic 2]]+Dataset[[#This Row],[2025/26 To - Spending review Topic 3]]+Dataset[[#This Row],[2025/26 To - Spending review Topic 4]]+Dataset[[#This Row],[2025/26 To - Other reallocations]]","v":0},{"$f":"Dataset[[#This Row],[2023/24 Baseline]]+Dataset[[#This Row],[2023/24 From - Total]]+Dataset[[#This Row],[2023/24 To - Total]]","v":0},{"$f":"Dataset[[#This Row],[2024/25 Baseline]]+Dataset[[#This Row],[2024/25 From - Total]]+Dataset[[#This Row],[2024/25 To - Total]]","v":0},{"$f":"Dataset[[#This Row],[2025/26 Baseline]]+Dataset[[#This Row],[2025/26 From - Total]]+Dataset[[#This Row],[2025/26 To - Total]]","v":0}]
["NAT|Non-transfer item","2|Salaries and wages","2023_24","MTEF2023",2,3,1,1080,463,"02","03","01","001080","000463","02|03|01",1,1,1,1,1,"01|01|01|01|01","National","Parliament","Associated Services","Members Facilities","Non-transfer item","Current","Current payments","Compensation of employees","Salaries and wages","Salaries and wages","General public services","Executive and legislative organs","NAT",0,0,0,0,0,0,0,0,0,0,0,null,null,null,null,null,null,null,null,null,null,null,null,null,null,null,null,null,null,null,null,null,null,null,null,null,null,null,null,null,null,{"$f":"Dataset[[#This Row],[2023/24 From - Spending review Topic 1]]+Dataset[[#This Row],[2023/24 From - Spending review Topic 2]]+Dataset[[#This Row],[2023/24 From - Spending review Topic 3]]+Dataset[[#This Row],[2023/24 From - Spending review Topic 4]]+Dataset[[#This Row],[2023/24 From - Other reallocations]]","v":0},{"$f":"Dataset[[#This Row],[2024/25 From - Spending review Topic 1]]+Dataset[[#This Row],[2024/25 From - Spending review Topic 2]]+Dataset[[#This Row],[2024/25 From - Spending review Topic 3]]+Dataset[[#This Row],[2024/25 From - Spending review Topic 4]]+Dataset[[#This Row],[2024/25 From - Other reallocations]]","v":0},{"$f":"Dataset[[#This Row],[2025/26 From - Spending review Topic 1]]+Dataset[[#This Row],[2025/26 From - Spending review Topic 2]]+Dataset[[#This Row],[2025/26 From - Spending review Topic 3]]+Dataset[[#This Row],[2025/26 From - Spending review Topic 4]]+Dataset[[#This Row],[2025/26 From - Other reallocations]]","v":0},{"$f":"Dataset[[#This Row],[2023/24 To - Spending review Topic 1]]+Dataset[[#This Row],[2023/24 To - Spending review Topic 2]]+Dataset[[#This Row],[2023/24 To - Spending review Topic 3]]+Dataset[[#This Row],[2023/24 To - Spending review Topic 4]]+Dataset[[#This Row],[2023/24 To - Other reallocations]]","v":0},{"$f":"Dataset[[#This Row],[2024/25 To - Spending review Topic 1]]+Dataset[[#This Row],[2024/25 To - Spending review Topic 2]]+Dataset[[#This Row],[2024/25 To - Spending review Topic 3]]+Dataset[[#This Row],[2024/25 To - Spending review Topic 4]]+Dataset[[#This Row],[2024/25 To - Other reallocations]]","v":0},{"$f":"Dataset[[#This Row],[2025/26 To - Spending review Topic 1]]+Dataset[[#This Row],[2025/26 To - Spending review Topic 2]]+Dataset[[#This Row],[2025/26 To - Spending review Topic 3]]+Dataset[[#This Row],[2025/26 To - Spending review Topic 4]]+Dataset[[#This Row],[2025/26 To - Other reallocations]]","v":0},{"$f":"Dataset[[#This Row],[2023/24 Baseline]]+Dataset[[#This Row],[2023/24 From - Total]]+Dataset[[#This Row],[2023/24 To - Total]]","v":0},{"$f":"Dataset[[#This Row],[2024/25 Baseline]]+Dataset[[#This Row],[2024/25 From - Total]]+Dataset[[#This Row],[2024/25 To - Total]]","v":0},{"$f":"Dataset[[#This Row],[2025/26 Baseline]]+Dataset[[#This Row],[2025/26 From - Total]]+Dataset[[#This Row],[2025/26 To - Total]]","v":0}]
["NAT|Non-transfer item","2|Social contributions","2023_24","MTEF2023",2,3,1,1081,464,"02","03","01","001081","000464","02|03|01",1,1,1,2,2,"01|01|01|02|02","National","Parliament","Associated Services","Members Facilities","Non-transfer item","Current","Current payments","Compensation of employees","Social contributions","Social contributions","General public services","Executive and legislative organs","NAT",56386,62000,67580,62857,62857,62857,0,62830,62842,65650,68591,null,null,null,null,null,null,null,null,null,null,null,null,null,null,null,null,null,null,null,null,null,null,null,null,null,null,null,null,null,null,{"$f":"Dataset[[#This Row],[2023/24 From - Spending review Topic 1]]+Dataset[[#This Row],[2023/24 From - Spending review Topic 2]]+Dataset[[#This Row],[2023/24 From - Spending review Topic 3]]+Dataset[[#This Row],[2023/24 From - Spending review Topic 4]]+Dataset[[#This Row],[2023/24 From - Other reallocations]]","v":0},{"$f":"Dataset[[#This Row],[2024/25 From - Spending review Topic 1]]+Dataset[[#This Row],[2024/25 From - Spending review Topic 2]]+Dataset[[#This Row],[2024/25 From - Spending review Topic 3]]+Dataset[[#This Row],[2024/25 From - Spending review Topic 4]]+Dataset[[#This Row],[2024/25 From - Other reallocations]]","v":0},{"$f":"Dataset[[#This Row],[2025/26 From - Spending review Topic 1]]+Dataset[[#This Row],[2025/26 From - Spending review Topic 2]]+Dataset[[#This Row],[2025/26 From - Spending review Topic 3]]+Dataset[[#This Row],[2025/26 From - Spending review Topic 4]]+Dataset[[#This Row],[2025/26 From - Other reallocations]]","v":0},{"$f":"Dataset[[#This Row],[2023/24 To - Spending review Topic 1]]+Dataset[[#This Row],[2023/24 To - Spending review Topic 2]]+Dataset[[#This Row],[2023/24 To - Spending review Topic 3]]+Dataset[[#This Row],[2023/24 To - Spending review Topic 4]]+Dataset[[#This Row],[2023/24 To - Other reallocations]]","v":0},{"$f":"Dataset[[#This Row],[2024/25 To - Spending review Topic 1]]+Dataset[[#This Row],[2024/25 To - Spending review Topic 2]]+Dataset[[#This Row],[2024/25 To - Spending review Topic 3]]+Dataset[[#This Row],[2024/25 To - Spending review Topic 4]]+Dataset[[#This Row],[2024/25 To - Other reallocations]]","v":0},{"$f":"Dataset[[#This Row],[2025/26 To - Spending review Topic 1]]+Dataset[[#This Row],[2025/26 To - Spending review Topic 2]]+Dataset[[#This Row],[2025/26 To - Spending review Topic 3]]+Dataset[[#This Row],[2025/26 To - Spending review Topic 4]]+Dataset[[#This Row],[2025/26 To - Other reallocations]]","v":0},{"$f":"Dataset[[#This Row],[2023/24 Baseline]]+Dataset[[#This Row],[2023/24 From - Total]]+Dataset[[#This Row],[2023/24 To - Total]]","v":62842},{"$f":"Dataset[[#This Row],[2024/25 Baseline]]+Dataset[[#This Row],[2024/25 From - Total]]+Dataset[[#This Row],[2024/25 To - Total]]","v":65650},{"$f":"Dataset[[#This Row],[2025/26 Baseline]]+Dataset[[#This Row],[2025/26 From - Total]]+Dataset[[#This Row],[2025/26 To - Total]]","v":68591}]
["NAT|Non-transfer item","2|Administrative fees","2023_24","MTEF2023",2,3,1,1082,465,"02","03","01","001082","000465","02|03|01",1,1,2,3,3,"01|01|02|03|03","National","Parliament","Associated Services","Members Facilities","Non-transfer item","Current","Current payments","Goods and services","Administrative fees","Administrative fees","General public services","Executive and legislative organs","NAT",0,0,0,0,0,0,0,0,0,0,0,null,null,null,null,null,null,null,null,null,null,null,null,null,null,null,null,null,null,null,null,null,null,null,null,null,null,null,null,null,null,{"$f":"Dataset[[#This Row],[2023/24 From - Spending review Topic 1]]+Dataset[[#This Row],[2023/24 From - Spending review Topic 2]]+Dataset[[#This Row],[2023/24 From - Spending review Topic 3]]+Dataset[[#This Row],[2023/24 From - Spending review Topic 4]]+Dataset[[#This Row],[2023/24 From - Other reallocations]]","v":0},{"$f":"Dataset[[#This Row],[2024/25 From - Spending review Topic 1]]+Dataset[[#This Row],[2024/25 From - Spending review Topic 2]]+Dataset[[#This Row],[2024/25 From - Spending review Topic 3]]+Dataset[[#This Row],[2024/25 From - Spending review Topic 4]]+Dataset[[#This Row],[2024/25 From - Other reallocations]]","v":0},{"$f":"Dataset[[#This Row],[2025/26 From - Spending review Topic 1]]+Dataset[[#This Row],[2025/26 From - Spending review Topic 2]]+Dataset[[#This Row],[2025/26 From - Spending review Topic 3]]+Dataset[[#This Row],[2025/26 From - Spending review Topic 4]]+Dataset[[#This Row],[2025/26 From - Other reallocations]]","v":0},{"$f":"Dataset[[#This Row],[2023/24 To - Spending review Topic 1]]+Dataset[[#This Row],[2023/24 To - Spending review Topic 2]]+Dataset[[#This Row],[2023/24 To - Spending review Topic 3]]+Dataset[[#This Row],[2023/24 To - Spending review Topic 4]]+Dataset[[#This Row],[2023/24 To - Other reallocations]]","v":0},{"$f":"Dataset[[#This Row],[2024/25 To - Spending review Topic 1]]+Dataset[[#This Row],[2024/25 To - Spending review Topic 2]]+Dataset[[#This Row],[2024/25 To - Spending review Topic 3]]+Dataset[[#This Row],[2024/25 To - Spending review Topic 4]]+Dataset[[#This Row],[2024/25 To - Other reallocations]]","v":0},{"$f":"Dataset[[#This Row],[2025/26 To - Spending review Topic 1]]+Dataset[[#This Row],[2025/26 To - Spending review Topic 2]]+Dataset[[#This Row],[2025/26 To - Spending review Topic 3]]+Dataset[[#This Row],[2025/26 To - Spending review Topic 4]]+Dataset[[#This Row],[2025/26 To - Other reallocations]]","v":0},{"$f":"Dataset[[#This Row],[2023/24 Baseline]]+Dataset[[#This Row],[2023/24 From - Total]]+Dataset[[#This Row],[2023/24 To - Total]]","v":0},{"$f":"Dataset[[#This Row],[2024/25 Baseline]]+Dataset[[#This Row],[2024/25 From - Total]]+Dataset[[#This Row],[2024/25 To - Total]]","v":0},{"$f":"Dataset[[#This Row],[2025/26 Baseline]]+Dataset[[#This Row],[2025/26 From - Total]]+Dataset[[#This Row],[2025/26 To - Total]]","v":0}]
["NAT|Non-transfer item","2|Advertising","2023_24","MTEF2023",2,3,1,1083,466,"02","03","01","001083","000466","02|03|01",1,1,2,4,4,"01|01|02|04|04","National","Parliament","Associated Services","Members Facilities","Non-transfer item","Current","Current payments","Goods and services","Advertising","Advertising","General public services","Executive and legislative organs","NAT",0,0,0,0,0,0,0,0,0,0,0,null,null,null,null,null,null,null,null,null,null,null,null,null,null,null,null,null,null,null,null,null,null,null,null,null,null,null,null,null,null,{"$f":"Dataset[[#This Row],[2023/24 From - Spending review Topic 1]]+Dataset[[#This Row],[2023/24 From - Spending review Topic 2]]+Dataset[[#This Row],[2023/24 From - Spending review Topic 3]]+Dataset[[#This Row],[2023/24 From - Spending review Topic 4]]+Dataset[[#This Row],[2023/24 From - Other reallocations]]","v":0},{"$f":"Dataset[[#This Row],[2024/25 From - Spending review Topic 1]]+Dataset[[#This Row],[2024/25 From - Spending review Topic 2]]+Dataset[[#This Row],[2024/25 From - Spending review Topic 3]]+Dataset[[#This Row],[2024/25 From - Spending review Topic 4]]+Dataset[[#This Row],[2024/25 From - Other reallocations]]","v":0},{"$f":"Dataset[[#This Row],[2025/26 From - Spending review Topic 1]]+Dataset[[#This Row],[2025/26 From - Spending review Topic 2]]+Dataset[[#This Row],[2025/26 From - Spending review Topic 3]]+Dataset[[#This Row],[2025/26 From - Spending review Topic 4]]+Dataset[[#This Row],[2025/26 From - Other reallocations]]","v":0},{"$f":"Dataset[[#This Row],[2023/24 To - Spending review Topic 1]]+Dataset[[#This Row],[2023/24 To - Spending review Topic 2]]+Dataset[[#This Row],[2023/24 To - Spending review Topic 3]]+Dataset[[#This Row],[2023/24 To - Spending review Topic 4]]+Dataset[[#This Row],[2023/24 To - Other reallocations]]","v":0},{"$f":"Dataset[[#This Row],[2024/25 To - Spending review Topic 1]]+Dataset[[#This Row],[2024/25 To - Spending review Topic 2]]+Dataset[[#This Row],[2024/25 To - Spending review Topic 3]]+Dataset[[#This Row],[2024/25 To - Spending review Topic 4]]+Dataset[[#This Row],[2024/25 To - Other reallocations]]","v":0},{"$f":"Dataset[[#This Row],[2025/26 To - Spending review Topic 1]]+Dataset[[#This Row],[2025/26 To - Spending review Topic 2]]+Dataset[[#This Row],[2025/26 To - Spending review Topic 3]]+Dataset[[#This Row],[2025/26 To - Spending review Topic 4]]+Dataset[[#This Row],[2025/26 To - Other reallocations]]","v":0},{"$f":"Dataset[[#This Row],[2023/24 Baseline]]+Dataset[[#This Row],[2023/24 From - Total]]+Dataset[[#This Row],[2023/24 To - Total]]","v":0},{"$f":"Dataset[[#This Row],[2024/25 Baseline]]+Dataset[[#This Row],[2024/25 From - Total]]+Dataset[[#This Row],[2024/25 To - Total]]","v":0},{"$f":"Dataset[[#This Row],[2025/26 Baseline]]+Dataset[[#This Row],[2025/26 From - Total]]+Dataset[[#This Row],[2025/26 To - Total]]","v":0}]
["NAT|Non-transfer item","2|Minor assets","2023_24","MTEF2023",2,3,1,1084,467,"02","03","01","001084","000467","02|03|01",1,1,2,5,5,"01|01|02|05|05","National","Parliament","Associated Services","Members Facilities","Non-transfer item","Current","Current payments","Goods and services","Minor assets","Minor assets","General public services","Executive and legislative organs","NAT",145,153,0,0,0,0,0,0,0,0,0,null,null,null,null,null,null,null,null,null,null,null,null,null,null,null,null,null,null,null,null,null,null,null,null,null,null,null,null,null,null,{"$f":"Dataset[[#This Row],[2023/24 From - Spending review Topic 1]]+Dataset[[#This Row],[2023/24 From - Spending review Topic 2]]+Dataset[[#This Row],[2023/24 From - Spending review Topic 3]]+Dataset[[#This Row],[2023/24 From - Spending review Topic 4]]+Dataset[[#This Row],[2023/24 From - Other reallocations]]","v":0},{"$f":"Dataset[[#This Row],[2024/25 From - Spending review Topic 1]]+Dataset[[#This Row],[2024/25 From - Spending review Topic 2]]+Dataset[[#This Row],[2024/25 From - Spending review Topic 3]]+Dataset[[#This Row],[2024/25 From - Spending review Topic 4]]+Dataset[[#This Row],[2024/25 From - Other reallocations]]","v":0},{"$f":"Dataset[[#This Row],[2025/26 From - Spending review Topic 1]]+Dataset[[#This Row],[2025/26 From - Spending review Topic 2]]+Dataset[[#This Row],[2025/26 From - Spending review Topic 3]]+Dataset[[#This Row],[2025/26 From - Spending review Topic 4]]+Dataset[[#This Row],[2025/26 From - Other reallocations]]","v":0},{"$f":"Dataset[[#This Row],[2023/24 To - Spending review Topic 1]]+Dataset[[#This Row],[2023/24 To - Spending review Topic 2]]+Dataset[[#This Row],[2023/24 To - Spending review Topic 3]]+Dataset[[#This Row],[2023/24 To - Spending review Topic 4]]+Dataset[[#This Row],[2023/24 To - Other reallocations]]","v":0},{"$f":"Dataset[[#This Row],[2024/25 To - Spending review Topic 1]]+Dataset[[#This Row],[2024/25 To - Spending review Topic 2]]+Dataset[[#This Row],[2024/25 To - Spending review Topic 3]]+Dataset[[#This Row],[2024/25 To - Spending review Topic 4]]+Dataset[[#This Row],[2024/25 To - Other reallocations]]","v":0},{"$f":"Dataset[[#This Row],[2025/26 To - Spending review Topic 1]]+Dataset[[#This Row],[2025/26 To - Spending review Topic 2]]+Dataset[[#This Row],[2025/26 To - Spending review Topic 3]]+Dataset[[#This Row],[2025/26 To - Spending review Topic 4]]+Dataset[[#This Row],[2025/26 To - Other reallocations]]","v":0},{"$f":"Dataset[[#This Row],[2023/24 Baseline]]+Dataset[[#This Row],[2023/24 From - Total]]+Dataset[[#This Row],[2023/24 To - Total]]","v":0},{"$f":"Dataset[[#This Row],[2024/25 Baseline]]+Dataset[[#This Row],[2024/25 From - Total]]+Dataset[[#This Row],[2024/25 To - Total]]","v":0},{"$f":"Dataset[[#This Row],[2025/26 Baseline]]+Dataset[[#This Row],[2025/26 From - Total]]+Dataset[[#This Row],[2025/26 To - Total]]","v":0}]
["NAT|Non-transfer item","2|Audit costs: External","2023_24","MTEF2023",2,3,1,1085,468,"02","03","01","001085","000468","02|03|01",1,1,2,6,6,"01|01|02|06|06","National","Parliament","Associated Services","Members Facilities","Non-transfer item","Current","Current payments","Goods and services","Audit costs: External","Audit costs: External","General public services","Executive and legislative organs","NAT",0,0,0,0,0,0,0,0,0,0,0,null,null,null,null,null,null,null,null,null,null,null,null,null,null,null,null,null,null,null,null,null,null,null,null,null,null,null,null,null,null,{"$f":"Dataset[[#This Row],[2023/24 From - Spending review Topic 1]]+Dataset[[#This Row],[2023/24 From - Spending review Topic 2]]+Dataset[[#This Row],[2023/24 From - Spending review Topic 3]]+Dataset[[#This Row],[2023/24 From - Spending review Topic 4]]+Dataset[[#This Row],[2023/24 From - Other reallocations]]","v":0},{"$f":"Dataset[[#This Row],[2024/25 From - Spending review Topic 1]]+Dataset[[#This Row],[2024/25 From - Spending review Topic 2]]+Dataset[[#This Row],[2024/25 From - Spending review Topic 3]]+Dataset[[#This Row],[2024/25 From - Spending review Topic 4]]+Dataset[[#This Row],[2024/25 From - Other reallocations]]","v":0},{"$f":"Dataset[[#This Row],[2025/26 From - Spending review Topic 1]]+Dataset[[#This Row],[2025/26 From - Spending review Topic 2]]+Dataset[[#This Row],[2025/26 From - Spending review Topic 3]]+Dataset[[#This Row],[2025/26 From - Spending review Topic 4]]+Dataset[[#This Row],[2025/26 From - Other reallocations]]","v":0},{"$f":"Dataset[[#This Row],[2023/24 To - Spending review Topic 1]]+Dataset[[#This Row],[2023/24 To - Spending review Topic 2]]+Dataset[[#This Row],[2023/24 To - Spending review Topic 3]]+Dataset[[#This Row],[2023/24 To - Spending review Topic 4]]+Dataset[[#This Row],[2023/24 To - Other reallocations]]","v":0},{"$f":"Dataset[[#This Row],[2024/25 To - Spending review Topic 1]]+Dataset[[#This Row],[2024/25 To - Spending review Topic 2]]+Dataset[[#This Row],[2024/25 To - Spending review Topic 3]]+Dataset[[#This Row],[2024/25 To - Spending review Topic 4]]+Dataset[[#This Row],[2024/25 To - Other reallocations]]","v":0},{"$f":"Dataset[[#This Row],[2025/26 To - Spending review Topic 1]]+Dataset[[#This Row],[2025/26 To - Spending review Topic 2]]+Dataset[[#This Row],[2025/26 To - Spending review Topic 3]]+Dataset[[#This Row],[2025/26 To - Spending review Topic 4]]+Dataset[[#This Row],[2025/26 To - Other reallocations]]","v":0},{"$f":"Dataset[[#This Row],[2023/24 Baseline]]+Dataset[[#This Row],[2023/24 From - Total]]+Dataset[[#This Row],[2023/24 To - Total]]","v":0},{"$f":"Dataset[[#This Row],[2024/25 Baseline]]+Dataset[[#This Row],[2024/25 From - Total]]+Dataset[[#This Row],[2024/25 To - Total]]","v":0},{"$f":"Dataset[[#This Row],[2025/26 Baseline]]+Dataset[[#This Row],[2025/26 From - Total]]+Dataset[[#This Row],[2025/26 To - Total]]","v":0}]
["NAT|Non-transfer item","2|Bursaries: Employees","2023_24","MTEF2023",2,3,1,1086,469,"02","03","01","001086","000469","02|03|01",1,1,2,7,7,"01|01|02|07|07","National","Parliament","Associated Services","Members Facilities","Non-transfer item","Current","Current payments","Goods and services","Bursaries: Employees","Bursaries: Employees","General public services","Executive and legislative organs","NAT",0,0,0,0,0,0,0,0,0,0,0,null,null,null,null,null,null,null,null,null,null,null,null,null,null,null,null,null,null,null,null,null,null,null,null,null,null,null,null,null,null,{"$f":"Dataset[[#This Row],[2023/24 From - Spending review Topic 1]]+Dataset[[#This Row],[2023/24 From - Spending review Topic 2]]+Dataset[[#This Row],[2023/24 From - Spending review Topic 3]]+Dataset[[#This Row],[2023/24 From - Spending review Topic 4]]+Dataset[[#This Row],[2023/24 From - Other reallocations]]","v":0},{"$f":"Dataset[[#This Row],[2024/25 From - Spending review Topic 1]]+Dataset[[#This Row],[2024/25 From - Spending review Topic 2]]+Dataset[[#This Row],[2024/25 From - Spending review Topic 3]]+Dataset[[#This Row],[2024/25 From - Spending review Topic 4]]+Dataset[[#This Row],[2024/25 From - Other reallocations]]","v":0},{"$f":"Dataset[[#This Row],[2025/26 From - Spending review Topic 1]]+Dataset[[#This Row],[2025/26 From - Spending review Topic 2]]+Dataset[[#This Row],[2025/26 From - Spending review Topic 3]]+Dataset[[#This Row],[2025/26 From - Spending review Topic 4]]+Dataset[[#This Row],[2025/26 From - Other reallocations]]","v":0},{"$f":"Dataset[[#This Row],[2023/24 To - Spending review Topic 1]]+Dataset[[#This Row],[2023/24 To - Spending review Topic 2]]+Dataset[[#This Row],[2023/24 To - Spending review Topic 3]]+Dataset[[#This Row],[2023/24 To - Spending review Topic 4]]+Dataset[[#This Row],[2023/24 To - Other reallocations]]","v":0},{"$f":"Dataset[[#This Row],[2024/25 To - Spending review Topic 1]]+Dataset[[#This Row],[2024/25 To - Spending review Topic 2]]+Dataset[[#This Row],[2024/25 To - Spending review Topic 3]]+Dataset[[#This Row],[2024/25 To - Spending review Topic 4]]+Dataset[[#This Row],[2024/25 To - Other reallocations]]","v":0},{"$f":"Dataset[[#This Row],[2025/26 To - Spending review Topic 1]]+Dataset[[#This Row],[2025/26 To - Spending review Topic 2]]+Dataset[[#This Row],[2025/26 To - Spending review Topic 3]]+Dataset[[#This Row],[2025/26 To - Spending review Topic 4]]+Dataset[[#This Row],[2025/26 To - Other reallocations]]","v":0},{"$f":"Dataset[[#This Row],[2023/24 Baseline]]+Dataset[[#This Row],[2023/24 From - Total]]+Dataset[[#This Row],[2023/24 To - Total]]","v":0},{"$f":"Dataset[[#This Row],[2024/25 Baseline]]+Dataset[[#This Row],[2024/25 From - Total]]+Dataset[[#This Row],[2024/25 To - Total]]","v":0},{"$f":"Dataset[[#This Row],[2025/26 Baseline]]+Dataset[[#This Row],[2025/26 From - Total]]+Dataset[[#This Row],[2025/26 To - Total]]","v":0}]
["NAT|Non-transfer item","2|Catering: Departmental activities","2023_24","MTEF2023",2,3,1,1087,470,"02","03","01","001087","000470","02|03|01",1,1,2,8,8,"01|01|02|08|08","National","Parliament","Associated Services","Members Facilities","Non-transfer item","Current","Current payments","Goods and services","Catering: Departmental activities","Catering: Departmental activities","General public services","Executive and legislative organs","NAT",0,867,919,931,931,931,0,956,959,1002,1047,null,null,null,null,null,null,null,null,null,null,null,null,null,null,null,null,null,null,null,null,null,null,null,null,null,null,null,null,null,null,{"$f":"Dataset[[#This Row],[2023/24 From - Spending review Topic 1]]+Dataset[[#This Row],[2023/24 From - Spending review Topic 2]]+Dataset[[#This Row],[2023/24 From - Spending review Topic 3]]+Dataset[[#This Row],[2023/24 From - Spending review Topic 4]]+Dataset[[#This Row],[2023/24 From - Other reallocations]]","v":0},{"$f":"Dataset[[#This Row],[2024/25 From - Spending review Topic 1]]+Dataset[[#This Row],[2024/25 From - Spending review Topic 2]]+Dataset[[#This Row],[2024/25 From - Spending review Topic 3]]+Dataset[[#This Row],[2024/25 From - Spending review Topic 4]]+Dataset[[#This Row],[2024/25 From - Other reallocations]]","v":0},{"$f":"Dataset[[#This Row],[2025/26 From - Spending review Topic 1]]+Dataset[[#This Row],[2025/26 From - Spending review Topic 2]]+Dataset[[#This Row],[2025/26 From - Spending review Topic 3]]+Dataset[[#This Row],[2025/26 From - Spending review Topic 4]]+Dataset[[#This Row],[2025/26 From - Other reallocations]]","v":0},{"$f":"Dataset[[#This Row],[2023/24 To - Spending review Topic 1]]+Dataset[[#This Row],[2023/24 To - Spending review Topic 2]]+Dataset[[#This Row],[2023/24 To - Spending review Topic 3]]+Dataset[[#This Row],[2023/24 To - Spending review Topic 4]]+Dataset[[#This Row],[2023/24 To - Other reallocations]]","v":0},{"$f":"Dataset[[#This Row],[2024/25 To - Spending review Topic 1]]+Dataset[[#This Row],[2024/25 To - Spending review Topic 2]]+Dataset[[#This Row],[2024/25 To - Spending review Topic 3]]+Dataset[[#This Row],[2024/25 To - Spending review Topic 4]]+Dataset[[#This Row],[2024/25 To - Other reallocations]]","v":0},{"$f":"Dataset[[#This Row],[2025/26 To - Spending review Topic 1]]+Dataset[[#This Row],[2025/26 To - Spending review Topic 2]]+Dataset[[#This Row],[2025/26 To - Spending review Topic 3]]+Dataset[[#This Row],[2025/26 To - Spending review Topic 4]]+Dataset[[#This Row],[2025/26 To - Other reallocations]]","v":0},{"$f":"Dataset[[#This Row],[2023/24 Baseline]]+Dataset[[#This Row],[2023/24 From - Total]]+Dataset[[#This Row],[2023/24 To - Total]]","v":959},{"$f":"Dataset[[#This Row],[2024/25 Baseline]]+Dataset[[#This Row],[2024/25 From - Total]]+Dataset[[#This Row],[2024/25 To - Total]]","v":1002},{"$f":"Dataset[[#This Row],[2025/26 Baseline]]+Dataset[[#This Row],[2025/26 From - Total]]+Dataset[[#This Row],[2025/26 To - Total]]","v":1047}]
["NAT|Non-transfer item","2|Communication (G&S)","2023_24","MTEF2023",2,3,1,1088,471,"02","03","01","001088","000471","02|03|01",1,1,2,9,9,"01|01|02|09|09","National","Parliament","Associated Services","Members Facilities","Non-transfer item","Current","Current payments","Goods and services","Communication (G&S)","Communication (G&S)","General public services","Executive and legislative organs","NAT",18107,18309,19685,20035,20035,20035,0,20566,20645,21572,22538,null,null,null,null,null,null,null,null,null,null,null,null,null,null,null,null,null,null,null,null,null,null,null,null,null,null,null,null,null,null,{"$f":"Dataset[[#This Row],[2023/24 From - Spending review Topic 1]]+Dataset[[#This Row],[2023/24 From - Spending review Topic 2]]+Dataset[[#This Row],[2023/24 From - Spending review Topic 3]]+Dataset[[#This Row],[2023/24 From - Spending review Topic 4]]+Dataset[[#This Row],[2023/24 From - Other reallocations]]","v":0},{"$f":"Dataset[[#This Row],[2024/25 From - Spending review Topic 1]]+Dataset[[#This Row],[2024/25 From - Spending review Topic 2]]+Dataset[[#This Row],[2024/25 From - Spending review Topic 3]]+Dataset[[#This Row],[2024/25 From - Spending review Topic 4]]+Dataset[[#This Row],[2024/25 From - Other reallocations]]","v":0},{"$f":"Dataset[[#This Row],[2025/26 From - Spending review Topic 1]]+Dataset[[#This Row],[2025/26 From - Spending review Topic 2]]+Dataset[[#This Row],[2025/26 From - Spending review Topic 3]]+Dataset[[#This Row],[2025/26 From - Spending review Topic 4]]+Dataset[[#This Row],[2025/26 From - Other reallocations]]","v":0},{"$f":"Dataset[[#This Row],[2023/24 To - Spending review Topic 1]]+Dataset[[#This Row],[2023/24 To - Spending review Topic 2]]+Dataset[[#This Row],[2023/24 To - Spending review Topic 3]]+Dataset[[#This Row],[2023/24 To - Spending review Topic 4]]+Dataset[[#This Row],[2023/24 To - Other reallocations]]","v":0},{"$f":"Dataset[[#This Row],[2024/25 To - Spending review Topic 1]]+Dataset[[#This Row],[2024/25 To - Spending review Topic 2]]+Dataset[[#This Row],[2024/25 To - Spending review Topic 3]]+Dataset[[#This Row],[2024/25 To - Spending review Topic 4]]+Dataset[[#This Row],[2024/25 To - Other reallocations]]","v":0},{"$f":"Dataset[[#This Row],[2025/26 To - Spending review Topic 1]]+Dataset[[#This Row],[2025/26 To - Spending review Topic 2]]+Dataset[[#This Row],[2025/26 To - Spending review Topic 3]]+Dataset[[#This Row],[2025/26 To - Spending review Topic 4]]+Dataset[[#This Row],[2025/26 To - Other reallocations]]","v":0},{"$f":"Dataset[[#This Row],[2023/24 Baseline]]+Dataset[[#This Row],[2023/24 From - Total]]+Dataset[[#This Row],[2023/24 To - Total]]","v":20645},{"$f":"Dataset[[#This Row],[2024/25 Baseline]]+Dataset[[#This Row],[2024/25 From - Total]]+Dataset[[#This Row],[2024/25 To - Total]]","v":21572},{"$f":"Dataset[[#This Row],[2025/26 Baseline]]+Dataset[[#This Row],[2025/26 From - Total]]+Dataset[[#This Row],[2025/26 To - Total]]","v":22538}]
["NAT|Non-transfer item","2|Computer services","2023_24","MTEF2023",2,3,1,1089,472,"02","03","01","001089","000472","02|03|01",1,1,2,10,10,"01|01|02|10|10","National","Parliament","Associated Services","Members Facilities","Non-transfer item","Current","Current payments","Goods and services","Computer services","Computer services","General public services","Executive and legislative organs","NAT",6843,7226,7623,7773,7773,7773,0,7980,8010,8370,8745,null,null,null,null,null,null,null,null,null,null,null,null,null,null,null,null,null,null,null,null,null,null,null,null,null,null,null,null,null,null,{"$f":"Dataset[[#This Row],[2023/24 From - Spending review Topic 1]]+Dataset[[#This Row],[2023/24 From - Spending review Topic 2]]+Dataset[[#This Row],[2023/24 From - Spending review Topic 3]]+Dataset[[#This Row],[2023/24 From - Spending review Topic 4]]+Dataset[[#This Row],[2023/24 From - Other reallocations]]","v":0},{"$f":"Dataset[[#This Row],[2024/25 From - Spending review Topic 1]]+Dataset[[#This Row],[2024/25 From - Spending review Topic 2]]+Dataset[[#This Row],[2024/25 From - Spending review Topic 3]]+Dataset[[#This Row],[2024/25 From - Spending review Topic 4]]+Dataset[[#This Row],[2024/25 From - Other reallocations]]","v":0},{"$f":"Dataset[[#This Row],[2025/26 From - Spending review Topic 1]]+Dataset[[#This Row],[2025/26 From - Spending review Topic 2]]+Dataset[[#This Row],[2025/26 From - Spending review Topic 3]]+Dataset[[#This Row],[2025/26 From - Spending review Topic 4]]+Dataset[[#This Row],[2025/26 From - Other reallocations]]","v":0},{"$f":"Dataset[[#This Row],[2023/24 To - Spending review Topic 1]]+Dataset[[#This Row],[2023/24 To - Spending review Topic 2]]+Dataset[[#This Row],[2023/24 To - Spending review Topic 3]]+Dataset[[#This Row],[2023/24 To - Spending review Topic 4]]+Dataset[[#This Row],[2023/24 To - Other reallocations]]","v":0},{"$f":"Dataset[[#This Row],[2024/25 To - Spending review Topic 1]]+Dataset[[#This Row],[2024/25 To - Spending review Topic 2]]+Dataset[[#This Row],[2024/25 To - Spending review Topic 3]]+Dataset[[#This Row],[2024/25 To - Spending review Topic 4]]+Dataset[[#This Row],[2024/25 To - Other reallocations]]","v":0},{"$f":"Dataset[[#This Row],[2025/26 To - Spending review Topic 1]]+Dataset[[#This Row],[2025/26 To - Spending review Topic 2]]+Dataset[[#This Row],[2025/26 To - Spending review Topic 3]]+Dataset[[#This Row],[2025/26 To - Spending review Topic 4]]+Dataset[[#This Row],[2025/26 To - Other reallocations]]","v":0},{"$f":"Dataset[[#This Row],[2023/24 Baseline]]+Dataset[[#This Row],[2023/24 From - Total]]+Dataset[[#This Row],[2023/24 To - Total]]","v":8010},{"$f":"Dataset[[#This Row],[2024/25 Baseline]]+Dataset[[#This Row],[2024/25 From - Total]]+Dataset[[#This Row],[2024/25 To - Total]]","v":8370},{"$f":"Dataset[[#This Row],[2025/26 Baseline]]+Dataset[[#This Row],[2025/26 From - Total]]+Dataset[[#This Row],[2025/26 To - Total]]","v":8745}]
["NAT|Non-transfer item","2|Consultants: Business and advisory services","2023_24","MTEF2023",2,3,1,1090,473,"02","03","01","001090","000473","02|03|01",1,1,2,11,11,"01|01|02|11|11","National","Parliament","Associated Services","Members Facilities","Non-transfer item","Current","Current payments","Goods and services","Consultants: Business and advisory services","Consultants: Business and advisory services","General public services","Executive and legislative organs","NAT",0,0,0,0,0,0,0,0,0,0,0,null,null,null,null,null,null,null,null,null,null,null,null,null,null,null,null,null,null,null,null,null,null,null,null,null,null,null,null,null,null,{"$f":"Dataset[[#This Row],[2023/24 From - Spending review Topic 1]]+Dataset[[#This Row],[2023/24 From - Spending review Topic 2]]+Dataset[[#This Row],[2023/24 From - Spending review Topic 3]]+Dataset[[#This Row],[2023/24 From - Spending review Topic 4]]+Dataset[[#This Row],[2023/24 From - Other reallocations]]","v":0},{"$f":"Dataset[[#This Row],[2024/25 From - Spending review Topic 1]]+Dataset[[#This Row],[2024/25 From - Spending review Topic 2]]+Dataset[[#This Row],[2024/25 From - Spending review Topic 3]]+Dataset[[#This Row],[2024/25 From - Spending review Topic 4]]+Dataset[[#This Row],[2024/25 From - Other reallocations]]","v":0},{"$f":"Dataset[[#This Row],[2025/26 From - Spending review Topic 1]]+Dataset[[#This Row],[2025/26 From - Spending review Topic 2]]+Dataset[[#This Row],[2025/26 From - Spending review Topic 3]]+Dataset[[#This Row],[2025/26 From - Spending review Topic 4]]+Dataset[[#This Row],[2025/26 From - Other reallocations]]","v":0},{"$f":"Dataset[[#This Row],[2023/24 To - Spending review Topic 1]]+Dataset[[#This Row],[2023/24 To - Spending review Topic 2]]+Dataset[[#This Row],[2023/24 To - Spending review Topic 3]]+Dataset[[#This Row],[2023/24 To - Spending review Topic 4]]+Dataset[[#This Row],[2023/24 To - Other reallocations]]","v":0},{"$f":"Dataset[[#This Row],[2024/25 To - Spending review Topic 1]]+Dataset[[#This Row],[2024/25 To - Spending review Topic 2]]+Dataset[[#This Row],[2024/25 To - Spending review Topic 3]]+Dataset[[#This Row],[2024/25 To - Spending review Topic 4]]+Dataset[[#This Row],[2024/25 To - Other reallocations]]","v":0},{"$f":"Dataset[[#This Row],[2025/26 To - Spending review Topic 1]]+Dataset[[#This Row],[2025/26 To - Spending review Topic 2]]+Dataset[[#This Row],[2025/26 To - Spending review Topic 3]]+Dataset[[#This Row],[2025/26 To - Spending review Topic 4]]+Dataset[[#This Row],[2025/26 To - Other reallocations]]","v":0},{"$f":"Dataset[[#This Row],[2023/24 Baseline]]+Dataset[[#This Row],[2023/24 From - Total]]+Dataset[[#This Row],[2023/24 To - Total]]","v":0},{"$f":"Dataset[[#This Row],[2024/25 Baseline]]+Dataset[[#This Row],[2024/25 From - Total]]+Dataset[[#This Row],[2024/25 To - Total]]","v":0},{"$f":"Dataset[[#This Row],[2025/26 Baseline]]+Dataset[[#This Row],[2025/26 From - Total]]+Dataset[[#This Row],[2025/26 To - Total]]","v":0}]
["NAT|Non-transfer item","2|Infrastructure and planning services","2023_24","MTEF2023",2,3,1,1091,474,"02","03","01","001091","000474","02|03|01",1,1,2,12,12,"01|01|02|12|12","National","Parliament","Associated Services","Members Facilities","Non-transfer item","Current","Current payments","Goods and services","Infrastructure and planning services","Infrastructure and planning services","General public services","Executive and legislative organs","NAT",0,0,0,0,0,0,0,0,0,0,0,null,null,null,null,null,null,null,null,null,null,null,null,null,null,null,null,null,null,null,null,null,null,null,null,null,null,null,null,null,null,{"$f":"Dataset[[#This Row],[2023/24 From - Spending review Topic 1]]+Dataset[[#This Row],[2023/24 From - Spending review Topic 2]]+Dataset[[#This Row],[2023/24 From - Spending review Topic 3]]+Dataset[[#This Row],[2023/24 From - Spending review Topic 4]]+Dataset[[#This Row],[2023/24 From - Other reallocations]]","v":0},{"$f":"Dataset[[#This Row],[2024/25 From - Spending review Topic 1]]+Dataset[[#This Row],[2024/25 From - Spending review Topic 2]]+Dataset[[#This Row],[2024/25 From - Spending review Topic 3]]+Dataset[[#This Row],[2024/25 From - Spending review Topic 4]]+Dataset[[#This Row],[2024/25 From - Other reallocations]]","v":0},{"$f":"Dataset[[#This Row],[2025/26 From - Spending review Topic 1]]+Dataset[[#This Row],[2025/26 From - Spending review Topic 2]]+Dataset[[#This Row],[2025/26 From - Spending review Topic 3]]+Dataset[[#This Row],[2025/26 From - Spending review Topic 4]]+Dataset[[#This Row],[2025/26 From - Other reallocations]]","v":0},{"$f":"Dataset[[#This Row],[2023/24 To - Spending review Topic 1]]+Dataset[[#This Row],[2023/24 To - Spending review Topic 2]]+Dataset[[#This Row],[2023/24 To - Spending review Topic 3]]+Dataset[[#This Row],[2023/24 To - Spending review Topic 4]]+Dataset[[#This Row],[2023/24 To - Other reallocations]]","v":0},{"$f":"Dataset[[#This Row],[2024/25 To - Spending review Topic 1]]+Dataset[[#This Row],[2024/25 To - Spending review Topic 2]]+Dataset[[#This Row],[2024/25 To - Spending review Topic 3]]+Dataset[[#This Row],[2024/25 To - Spending review Topic 4]]+Dataset[[#This Row],[2024/25 To - Other reallocations]]","v":0},{"$f":"Dataset[[#This Row],[2025/26 To - Spending review Topic 1]]+Dataset[[#This Row],[2025/26 To - Spending review Topic 2]]+Dataset[[#This Row],[2025/26 To - Spending review Topic 3]]+Dataset[[#This Row],[2025/26 To - Spending review Topic 4]]+Dataset[[#This Row],[2025/26 To - Other reallocations]]","v":0},{"$f":"Dataset[[#This Row],[2023/24 Baseline]]+Dataset[[#This Row],[2023/24 From - Total]]+Dataset[[#This Row],[2023/24 To - Total]]","v":0},{"$f":"Dataset[[#This Row],[2024/25 Baseline]]+Dataset[[#This Row],[2024/25 From - Total]]+Dataset[[#This Row],[2024/25 To - Total]]","v":0},{"$f":"Dataset[[#This Row],[2025/26 Baseline]]+Dataset[[#This Row],[2025/26 From - Total]]+Dataset[[#This Row],[2025/26 To - Total]]","v":0}]
["NAT|Non-transfer item","2|Laboratory services","2023_24","MTEF2023",2,3,1,1092,475,"02","03","01","001092","000475","02|03|01",1,1,2,13,13,"01|01|02|13|13","National","Parliament","Associated Services","Members Facilities","Non-transfer item","Current","Current payments","Goods and services","Laboratory services","Laboratory services","General public services","Executive and legislative organs","NAT",0,0,0,0,0,0,0,0,0,0,0,null,null,null,null,null,null,null,null,null,null,null,null,null,null,null,null,null,null,null,null,null,null,null,null,null,null,null,null,null,null,{"$f":"Dataset[[#This Row],[2023/24 From - Spending review Topic 1]]+Dataset[[#This Row],[2023/24 From - Spending review Topic 2]]+Dataset[[#This Row],[2023/24 From - Spending review Topic 3]]+Dataset[[#This Row],[2023/24 From - Spending review Topic 4]]+Dataset[[#This Row],[2023/24 From - Other reallocations]]","v":0},{"$f":"Dataset[[#This Row],[2024/25 From - Spending review Topic 1]]+Dataset[[#This Row],[2024/25 From - Spending review Topic 2]]+Dataset[[#This Row],[2024/25 From - Spending review Topic 3]]+Dataset[[#This Row],[2024/25 From - Spending review Topic 4]]+Dataset[[#This Row],[2024/25 From - Other reallocations]]","v":0},{"$f":"Dataset[[#This Row],[2025/26 From - Spending review Topic 1]]+Dataset[[#This Row],[2025/26 From - Spending review Topic 2]]+Dataset[[#This Row],[2025/26 From - Spending review Topic 3]]+Dataset[[#This Row],[2025/26 From - Spending review Topic 4]]+Dataset[[#This Row],[2025/26 From - Other reallocations]]","v":0},{"$f":"Dataset[[#This Row],[2023/24 To - Spending review Topic 1]]+Dataset[[#This Row],[2023/24 To - Spending review Topic 2]]+Dataset[[#This Row],[2023/24 To - Spending review Topic 3]]+Dataset[[#This Row],[2023/24 To - Spending review Topic 4]]+Dataset[[#This Row],[2023/24 To - Other reallocations]]","v":0},{"$f":"Dataset[[#This Row],[2024/25 To - Spending review Topic 1]]+Dataset[[#This Row],[2024/25 To - Spending review Topic 2]]+Dataset[[#This Row],[2024/25 To - Spending review Topic 3]]+Dataset[[#This Row],[2024/25 To - Spending review Topic 4]]+Dataset[[#This Row],[2024/25 To - Other reallocations]]","v":0},{"$f":"Dataset[[#This Row],[2025/26 To - Spending review Topic 1]]+Dataset[[#This Row],[2025/26 To - Spending review Topic 2]]+Dataset[[#This Row],[2025/26 To - Spending review Topic 3]]+Dataset[[#This Row],[2025/26 To - Spending review Topic 4]]+Dataset[[#This Row],[2025/26 To - Other reallocations]]","v":0},{"$f":"Dataset[[#This Row],[2023/24 Baseline]]+Dataset[[#This Row],[2023/24 From - Total]]+Dataset[[#This Row],[2023/24 To - Total]]","v":0},{"$f":"Dataset[[#This Row],[2024/25 Baseline]]+Dataset[[#This Row],[2024/25 From - Total]]+Dataset[[#This Row],[2024/25 To - Total]]","v":0},{"$f":"Dataset[[#This Row],[2025/26 Baseline]]+Dataset[[#This Row],[2025/26 From - Total]]+Dataset[[#This Row],[2025/26 To - Total]]","v":0}]
["NAT|Non-transfer item","2|Legal services (G&S)","2023_24","MTEF2023",2,3,1,1093,476,"02","03","01","001093","000476","02|03|01",1,1,2,14,14,"01|01|02|14|14","National","Parliament","Associated Services","Members Facilities","Non-transfer item","Current","Current payments","Goods and services","Legal services (G&S)","Legal services (G&S)","General public services","Executive and legislative organs","NAT",0,0,0,0,0,0,0,0,0,0,0,null,null,null,null,null,null,null,null,null,null,null,null,null,null,null,null,null,null,null,null,null,null,null,null,null,null,null,null,null,null,{"$f":"Dataset[[#This Row],[2023/24 From - Spending review Topic 1]]+Dataset[[#This Row],[2023/24 From - Spending review Topic 2]]+Dataset[[#This Row],[2023/24 From - Spending review Topic 3]]+Dataset[[#This Row],[2023/24 From - Spending review Topic 4]]+Dataset[[#This Row],[2023/24 From - Other reallocations]]","v":0},{"$f":"Dataset[[#This Row],[2024/25 From - Spending review Topic 1]]+Dataset[[#This Row],[2024/25 From - Spending review Topic 2]]+Dataset[[#This Row],[2024/25 From - Spending review Topic 3]]+Dataset[[#This Row],[2024/25 From - Spending review Topic 4]]+Dataset[[#This Row],[2024/25 From - Other reallocations]]","v":0},{"$f":"Dataset[[#This Row],[2025/26 From - Spending review Topic 1]]+Dataset[[#This Row],[2025/26 From - Spending review Topic 2]]+Dataset[[#This Row],[2025/26 From - Spending review Topic 3]]+Dataset[[#This Row],[2025/26 From - Spending review Topic 4]]+Dataset[[#This Row],[2025/26 From - Other reallocations]]","v":0},{"$f":"Dataset[[#This Row],[2023/24 To - Spending review Topic 1]]+Dataset[[#This Row],[2023/24 To - Spending review Topic 2]]+Dataset[[#This Row],[2023/24 To - Spending review Topic 3]]+Dataset[[#This Row],[2023/24 To - Spending review Topic 4]]+Dataset[[#This Row],[2023/24 To - Other reallocations]]","v":0},{"$f":"Dataset[[#This Row],[2024/25 To - Spending review Topic 1]]+Dataset[[#This Row],[2024/25 To - Spending review Topic 2]]+Dataset[[#This Row],[2024/25 To - Spending review Topic 3]]+Dataset[[#This Row],[2024/25 To - Spending review Topic 4]]+Dataset[[#This Row],[2024/25 To - Other reallocations]]","v":0},{"$f":"Dataset[[#This Row],[2025/26 To - Spending review Topic 1]]+Dataset[[#This Row],[2025/26 To - Spending review Topic 2]]+Dataset[[#This Row],[2025/26 To - Spending review Topic 3]]+Dataset[[#This Row],[2025/26 To - Spending review Topic 4]]+Dataset[[#This Row],[2025/26 To - Other reallocations]]","v":0},{"$f":"Dataset[[#This Row],[2023/24 Baseline]]+Dataset[[#This Row],[2023/24 From - Total]]+Dataset[[#This Row],[2023/24 To - Total]]","v":0},{"$f":"Dataset[[#This Row],[2024/25 Baseline]]+Dataset[[#This Row],[2024/25 From - Total]]+Dataset[[#This Row],[2024/25 To - Total]]","v":0},{"$f":"Dataset[[#This Row],[2025/26 Baseline]]+Dataset[[#This Row],[2025/26 From - Total]]+Dataset[[#This Row],[2025/26 To - Total]]","v":0}]
["NAT|Non-transfer item","2|Science and technological services","2023_24","MTEF2023",2,3,1,1094,477,"02","03","01","001094","000477","02|03|01",1,1,2,15,15,"01|01|02|15|15","National","Parliament","Associated Services","Members Facilities","Non-transfer item","Current","Current payments","Goods and services","Science and technological services","Science and technological services","General public services","Executive and legislative organs","NAT",0,0,0,0,0,0,0,0,0,0,0,null,null,null,null,null,null,null,null,null,null,null,null,null,null,null,null,null,null,null,null,null,null,null,null,null,null,null,null,null,null,{"$f":"Dataset[[#This Row],[2023/24 From - Spending review Topic 1]]+Dataset[[#This Row],[2023/24 From - Spending review Topic 2]]+Dataset[[#This Row],[2023/24 From - Spending review Topic 3]]+Dataset[[#This Row],[2023/24 From - Spending review Topic 4]]+Dataset[[#This Row],[2023/24 From - Other reallocations]]","v":0},{"$f":"Dataset[[#This Row],[2024/25 From - Spending review Topic 1]]+Dataset[[#This Row],[2024/25 From - Spending review Topic 2]]+Dataset[[#This Row],[2024/25 From - Spending review Topic 3]]+Dataset[[#This Row],[2024/25 From - Spending review Topic 4]]+Dataset[[#This Row],[2024/25 From - Other reallocations]]","v":0},{"$f":"Dataset[[#This Row],[2025/26 From - Spending review Topic 1]]+Dataset[[#This Row],[2025/26 From - Spending review Topic 2]]+Dataset[[#This Row],[2025/26 From - Spending review Topic 3]]+Dataset[[#This Row],[2025/26 From - Spending review Topic 4]]+Dataset[[#This Row],[2025/26 From - Other reallocations]]","v":0},{"$f":"Dataset[[#This Row],[2023/24 To - Spending review Topic 1]]+Dataset[[#This Row],[2023/24 To - Spending review Topic 2]]+Dataset[[#This Row],[2023/24 To - Spending review Topic 3]]+Dataset[[#This Row],[2023/24 To - Spending review Topic 4]]+Dataset[[#This Row],[2023/24 To - Other reallocations]]","v":0},{"$f":"Dataset[[#This Row],[2024/25 To - Spending review Topic 1]]+Dataset[[#This Row],[2024/25 To - Spending review Topic 2]]+Dataset[[#This Row],[2024/25 To - Spending review Topic 3]]+Dataset[[#This Row],[2024/25 To - Spending review Topic 4]]+Dataset[[#This Row],[2024/25 To - Other reallocations]]","v":0},{"$f":"Dataset[[#This Row],[2025/26 To - Spending review Topic 1]]+Dataset[[#This Row],[2025/26 To - Spending review Topic 2]]+Dataset[[#This Row],[2025/26 To - Spending review Topic 3]]+Dataset[[#This Row],[2025/26 To - Spending review Topic 4]]+Dataset[[#This Row],[2025/26 To - Other reallocations]]","v":0},{"$f":"Dataset[[#This Row],[2023/24 Baseline]]+Dataset[[#This Row],[2023/24 From - Total]]+Dataset[[#This Row],[2023/24 To - Total]]","v":0},{"$f":"Dataset[[#This Row],[2024/25 Baseline]]+Dataset[[#This Row],[2024/25 From - Total]]+Dataset[[#This Row],[2024/25 To - Total]]","v":0},{"$f":"Dataset[[#This Row],[2025/26 Baseline]]+Dataset[[#This Row],[2025/26 From - Total]]+Dataset[[#This Row],[2025/26 To - Total]]","v":0}]
["NAT|Non-transfer item","2|Contractors","2023_24","MTEF2023",2,3,1,1095,478,"02","03","01","001095","000478","02|03|01",1,1,2,16,16,"01|01|02|16|16","National","Parliament","Associated Services","Members Facilities","Non-transfer item","Current","Current payments","Goods and services","Contractors","Contractors","General public services","Executive and legislative organs","NAT",8739,9228,9736,9927,9927,9927,0,10191,10231,10690,11169,null,null,null,null,null,null,null,null,null,null,null,null,null,null,null,null,null,null,null,null,null,null,null,null,null,null,null,null,null,null,{"$f":"Dataset[[#This Row],[2023/24 From - Spending review Topic 1]]+Dataset[[#This Row],[2023/24 From - Spending review Topic 2]]+Dataset[[#This Row],[2023/24 From - Spending review Topic 3]]+Dataset[[#This Row],[2023/24 From - Spending review Topic 4]]+Dataset[[#This Row],[2023/24 From - Other reallocations]]","v":0},{"$f":"Dataset[[#This Row],[2024/25 From - Spending review Topic 1]]+Dataset[[#This Row],[2024/25 From - Spending review Topic 2]]+Dataset[[#This Row],[2024/25 From - Spending review Topic 3]]+Dataset[[#This Row],[2024/25 From - Spending review Topic 4]]+Dataset[[#This Row],[2024/25 From - Other reallocations]]","v":0},{"$f":"Dataset[[#This Row],[2025/26 From - Spending review Topic 1]]+Dataset[[#This Row],[2025/26 From - Spending review Topic 2]]+Dataset[[#This Row],[2025/26 From - Spending review Topic 3]]+Dataset[[#This Row],[2025/26 From - Spending review Topic 4]]+Dataset[[#This Row],[2025/26 From - Other reallocations]]","v":0},{"$f":"Dataset[[#This Row],[2023/24 To - Spending review Topic 1]]+Dataset[[#This Row],[2023/24 To - Spending review Topic 2]]+Dataset[[#This Row],[2023/24 To - Spending review Topic 3]]+Dataset[[#This Row],[2023/24 To - Spending review Topic 4]]+Dataset[[#This Row],[2023/24 To - Other reallocations]]","v":0},{"$f":"Dataset[[#This Row],[2024/25 To - Spending review Topic 1]]+Dataset[[#This Row],[2024/25 To - Spending review Topic 2]]+Dataset[[#This Row],[2024/25 To - Spending review Topic 3]]+Dataset[[#This Row],[2024/25 To - Spending review Topic 4]]+Dataset[[#This Row],[2024/25 To - Other reallocations]]","v":0},{"$f":"Dataset[[#This Row],[2025/26 To - Spending review Topic 1]]+Dataset[[#This Row],[2025/26 To - Spending review Topic 2]]+Dataset[[#This Row],[2025/26 To - Spending review Topic 3]]+Dataset[[#This Row],[2025/26 To - Spending review Topic 4]]+Dataset[[#This Row],[2025/26 To - Other reallocations]]","v":0},{"$f":"Dataset[[#This Row],[2023/24 Baseline]]+Dataset[[#This Row],[2023/24 From - Total]]+Dataset[[#This Row],[2023/24 To - Total]]","v":10231},{"$f":"Dataset[[#This Row],[2024/25 Baseline]]+Dataset[[#This Row],[2024/25 From - Total]]+Dataset[[#This Row],[2024/25 To - Total]]","v":10690},{"$f":"Dataset[[#This Row],[2025/26 Baseline]]+Dataset[[#This Row],[2025/26 From - Total]]+Dataset[[#This Row],[2025/26 To - Total]]","v":11169}]
["NAT|Non-transfer item","2|Agency and support/outsourced services","2023_24","MTEF2023",2,3,1,1096,479,"02","03","01","001096","000479","02|03|01",1,1,2,17,17,"01|01|02|17|17","National","Parliament","Associated Services","Members Facilities","Non-transfer item","Current","Current payments","Goods and services","Agency and support/outsourced services","Agency and support/outsourced services","General public services","Executive and legislative organs","NAT",0,0,0,0,0,0,0,0,0,0,0,null,null,null,null,null,null,null,null,null,null,null,null,null,null,null,null,null,null,null,null,null,null,null,null,null,null,null,null,null,null,{"$f":"Dataset[[#This Row],[2023/24 From - Spending review Topic 1]]+Dataset[[#This Row],[2023/24 From - Spending review Topic 2]]+Dataset[[#This Row],[2023/24 From - Spending review Topic 3]]+Dataset[[#This Row],[2023/24 From - Spending review Topic 4]]+Dataset[[#This Row],[2023/24 From - Other reallocations]]","v":0},{"$f":"Dataset[[#This Row],[2024/25 From - Spending review Topic 1]]+Dataset[[#This Row],[2024/25 From - Spending review Topic 2]]+Dataset[[#This Row],[2024/25 From - Spending review Topic 3]]+Dataset[[#This Row],[2024/25 From - Spending review Topic 4]]+Dataset[[#This Row],[2024/25 From - Other reallocations]]","v":0},{"$f":"Dataset[[#This Row],[2025/26 From - Spending review Topic 1]]+Dataset[[#This Row],[2025/26 From - Spending review Topic 2]]+Dataset[[#This Row],[2025/26 From - Spending review Topic 3]]+Dataset[[#This Row],[2025/26 From - Spending review Topic 4]]+Dataset[[#This Row],[2025/26 From - Other reallocations]]","v":0},{"$f":"Dataset[[#This Row],[2023/24 To - Spending review Topic 1]]+Dataset[[#This Row],[2023/24 To - Spending review Topic 2]]+Dataset[[#This Row],[2023/24 To - Spending review Topic 3]]+Dataset[[#This Row],[2023/24 To - Spending review Topic 4]]+Dataset[[#This Row],[2023/24 To - Other reallocations]]","v":0},{"$f":"Dataset[[#This Row],[2024/25 To - Spending review Topic 1]]+Dataset[[#This Row],[2024/25 To - Spending review Topic 2]]+Dataset[[#This Row],[2024/25 To - Spending review Topic 3]]+Dataset[[#This Row],[2024/25 To - Spending review Topic 4]]+Dataset[[#This Row],[2024/25 To - Other reallocations]]","v":0},{"$f":"Dataset[[#This Row],[2025/26 To - Spending review Topic 1]]+Dataset[[#This Row],[2025/26 To - Spending review Topic 2]]+Dataset[[#This Row],[2025/26 To - Spending review Topic 3]]+Dataset[[#This Row],[2025/26 To - Spending review Topic 4]]+Dataset[[#This Row],[2025/26 To - Other reallocations]]","v":0},{"$f":"Dataset[[#This Row],[2023/24 Baseline]]+Dataset[[#This Row],[2023/24 From - Total]]+Dataset[[#This Row],[2023/24 To - Total]]","v":0},{"$f":"Dataset[[#This Row],[2024/25 Baseline]]+Dataset[[#This Row],[2024/25 From - Total]]+Dataset[[#This Row],[2024/25 To - Total]]","v":0},{"$f":"Dataset[[#This Row],[2025/26 Baseline]]+Dataset[[#This Row],[2025/26 From - Total]]+Dataset[[#This Row],[2025/26 To - Total]]","v":0}]
["NAT|Non-transfer item","2|Entertainment","2023_24","MTEF2023",2,3,1,1097,480,"02","03","01","001097","000480","02|03|01",1,1,2,18,18,"01|01|02|18|18","National","Parliament","Associated Services","Members Facilities","Non-transfer item","Current","Current payments","Goods and services","Entertainment","Entertainment","General public services","Executive and legislative organs","NAT",0,0,0,0,0,0,0,0,0,0,0,null,null,null,null,null,null,null,null,null,null,null,null,null,null,null,null,null,null,null,null,null,null,null,null,null,null,null,null,null,null,{"$f":"Dataset[[#This Row],[2023/24 From - Spending review Topic 1]]+Dataset[[#This Row],[2023/24 From - Spending review Topic 2]]+Dataset[[#This Row],[2023/24 From - Spending review Topic 3]]+Dataset[[#This Row],[2023/24 From - Spending review Topic 4]]+Dataset[[#This Row],[2023/24 From - Other reallocations]]","v":0},{"$f":"Dataset[[#This Row],[2024/25 From - Spending review Topic 1]]+Dataset[[#This Row],[2024/25 From - Spending review Topic 2]]+Dataset[[#This Row],[2024/25 From - Spending review Topic 3]]+Dataset[[#This Row],[2024/25 From - Spending review Topic 4]]+Dataset[[#This Row],[2024/25 From - Other reallocations]]","v":0},{"$f":"Dataset[[#This Row],[2025/26 From - Spending review Topic 1]]+Dataset[[#This Row],[2025/26 From - Spending review Topic 2]]+Dataset[[#This Row],[2025/26 From - Spending review Topic 3]]+Dataset[[#This Row],[2025/26 From - Spending review Topic 4]]+Dataset[[#This Row],[2025/26 From - Other reallocations]]","v":0},{"$f":"Dataset[[#This Row],[2023/24 To - Spending review Topic 1]]+Dataset[[#This Row],[2023/24 To - Spending review Topic 2]]+Dataset[[#This Row],[2023/24 To - Spending review Topic 3]]+Dataset[[#This Row],[2023/24 To - Spending review Topic 4]]+Dataset[[#This Row],[2023/24 To - Other reallocations]]","v":0},{"$f":"Dataset[[#This Row],[2024/25 To - Spending review Topic 1]]+Dataset[[#This Row],[2024/25 To - Spending review Topic 2]]+Dataset[[#This Row],[2024/25 To - Spending review Topic 3]]+Dataset[[#This Row],[2024/25 To - Spending review Topic 4]]+Dataset[[#This Row],[2024/25 To - Other reallocations]]","v":0},{"$f":"Dataset[[#This Row],[2025/26 To - Spending review Topic 1]]+Dataset[[#This Row],[2025/26 To - Spending review Topic 2]]+Dataset[[#This Row],[2025/26 To - Spending review Topic 3]]+Dataset[[#This Row],[2025/26 To - Spending review Topic 4]]+Dataset[[#This Row],[2025/26 To - Other reallocations]]","v":0},{"$f":"Dataset[[#This Row],[2023/24 Baseline]]+Dataset[[#This Row],[2023/24 From - Total]]+Dataset[[#This Row],[2023/24 To - Total]]","v":0},{"$f":"Dataset[[#This Row],[2024/25 Baseline]]+Dataset[[#This Row],[2024/25 From - Total]]+Dataset[[#This Row],[2024/25 To - Total]]","v":0},{"$f":"Dataset[[#This Row],[2025/26 Baseline]]+Dataset[[#This Row],[2025/26 From - Total]]+Dataset[[#This Row],[2025/26 To - Total]]","v":0}]
["NAT|Non-transfer item","2|Fleet services (including government motor transport)","2023_24","MTEF2023",2,3,1,1098,481,"02","03","01","001098","000481","02|03|01",1,1,2,19,19,"01|01|02|19|19","National","Parliament","Associated Services","Members Facilities","Non-transfer item","Current","Current payments","Goods and services","Fleet services (including government motor transport)","Fleet services (including government motor transport)","General public services","Executive and legislative organs","NAT",0,0,0,0,0,0,0,0,0,0,0,null,null,null,null,null,null,null,null,null,null,null,null,null,null,null,null,null,null,null,null,null,null,null,null,null,null,null,null,null,null,{"$f":"Dataset[[#This Row],[2023/24 From - Spending review Topic 1]]+Dataset[[#This Row],[2023/24 From - Spending review Topic 2]]+Dataset[[#This Row],[2023/24 From - Spending review Topic 3]]+Dataset[[#This Row],[2023/24 From - Spending review Topic 4]]+Dataset[[#This Row],[2023/24 From - Other reallocations]]","v":0},{"$f":"Dataset[[#This Row],[2024/25 From - Spending review Topic 1]]+Dataset[[#This Row],[2024/25 From - Spending review Topic 2]]+Dataset[[#This Row],[2024/25 From - Spending review Topic 3]]+Dataset[[#This Row],[2024/25 From - Spending review Topic 4]]+Dataset[[#This Row],[2024/25 From - Other reallocations]]","v":0},{"$f":"Dataset[[#This Row],[2025/26 From - Spending review Topic 1]]+Dataset[[#This Row],[2025/26 From - Spending review Topic 2]]+Dataset[[#This Row],[2025/26 From - Spending review Topic 3]]+Dataset[[#This Row],[2025/26 From - Spending review Topic 4]]+Dataset[[#This Row],[2025/26 From - Other reallocations]]","v":0},{"$f":"Dataset[[#This Row],[2023/24 To - Spending review Topic 1]]+Dataset[[#This Row],[2023/24 To - Spending review Topic 2]]+Dataset[[#This Row],[2023/24 To - Spending review Topic 3]]+Dataset[[#This Row],[2023/24 To - Spending review Topic 4]]+Dataset[[#This Row],[2023/24 To - Other reallocations]]","v":0},{"$f":"Dataset[[#This Row],[2024/25 To - Spending review Topic 1]]+Dataset[[#This Row],[2024/25 To - Spending review Topic 2]]+Dataset[[#This Row],[2024/25 To - Spending review Topic 3]]+Dataset[[#This Row],[2024/25 To - Spending review Topic 4]]+Dataset[[#This Row],[2024/25 To - Other reallocations]]","v":0},{"$f":"Dataset[[#This Row],[2025/26 To - Spending review Topic 1]]+Dataset[[#This Row],[2025/26 To - Spending review Topic 2]]+Dataset[[#This Row],[2025/26 To - Spending review Topic 3]]+Dataset[[#This Row],[2025/26 To - Spending review Topic 4]]+Dataset[[#This Row],[2025/26 To - Other reallocations]]","v":0},{"$f":"Dataset[[#This Row],[2023/24 Baseline]]+Dataset[[#This Row],[2023/24 From - Total]]+Dataset[[#This Row],[2023/24 To - Total]]","v":0},{"$f":"Dataset[[#This Row],[2024/25 Baseline]]+Dataset[[#This Row],[2024/25 From - Total]]+Dataset[[#This Row],[2024/25 To - Total]]","v":0},{"$f":"Dataset[[#This Row],[2025/26 Baseline]]+Dataset[[#This Row],[2025/26 From - Total]]+Dataset[[#This Row],[2025/26 To - Total]]","v":0}]
["NAT|Non-transfer item","2|Housing","2023_24","MTEF2023",2,3,1,1099,482,"02","03","01","001099","000482","02|03|01",1,1,2,20,20,"01|01|02|20|20","National","Parliament","Associated Services","Members Facilities","Non-transfer item","Current","Current payments","Goods and services","Housing","Housing","General public services","Executive and legislative organs","NAT",0,0,0,0,0,0,0,0,0,0,0,null,null,null,null,null,null,null,null,null,null,null,null,null,null,null,null,null,null,null,null,null,null,null,null,null,null,null,null,null,null,{"$f":"Dataset[[#This Row],[2023/24 From - Spending review Topic 1]]+Dataset[[#This Row],[2023/24 From - Spending review Topic 2]]+Dataset[[#This Row],[2023/24 From - Spending review Topic 3]]+Dataset[[#This Row],[2023/24 From - Spending review Topic 4]]+Dataset[[#This Row],[2023/24 From - Other reallocations]]","v":0},{"$f":"Dataset[[#This Row],[2024/25 From - Spending review Topic 1]]+Dataset[[#This Row],[2024/25 From - Spending review Topic 2]]+Dataset[[#This Row],[2024/25 From - Spending review Topic 3]]+Dataset[[#This Row],[2024/25 From - Spending review Topic 4]]+Dataset[[#This Row],[2024/25 From - Other reallocations]]","v":0},{"$f":"Dataset[[#This Row],[2025/26 From - Spending review Topic 1]]+Dataset[[#This Row],[2025/26 From - Spending review Topic 2]]+Dataset[[#This Row],[2025/26 From - Spending review Topic 3]]+Dataset[[#This Row],[2025/26 From - Spending review Topic 4]]+Dataset[[#This Row],[2025/26 From - Other reallocations]]","v":0},{"$f":"Dataset[[#This Row],[2023/24 To - Spending review Topic 1]]+Dataset[[#This Row],[2023/24 To - Spending review Topic 2]]+Dataset[[#This Row],[2023/24 To - Spending review Topic 3]]+Dataset[[#This Row],[2023/24 To - Spending review Topic 4]]+Dataset[[#This Row],[2023/24 To - Other reallocations]]","v":0},{"$f":"Dataset[[#This Row],[2024/25 To - Spending review Topic 1]]+Dataset[[#This Row],[2024/25 To - Spending review Topic 2]]+Dataset[[#This Row],[2024/25 To - Spending review Topic 3]]+Dataset[[#This Row],[2024/25 To - Spending review Topic 4]]+Dataset[[#This Row],[2024/25 To - Other reallocations]]","v":0},{"$f":"Dataset[[#This Row],[2025/26 To - Spending review Topic 1]]+Dataset[[#This Row],[2025/26 To - Spending review Topic 2]]+Dataset[[#This Row],[2025/26 To - Spending review Topic 3]]+Dataset[[#This Row],[2025/26 To - Spending review Topic 4]]+Dataset[[#This Row],[2025/26 To - Other reallocations]]","v":0},{"$f":"Dataset[[#This Row],[2023/24 Baseline]]+Dataset[[#This Row],[2023/24 From - Total]]+Dataset[[#This Row],[2023/24 To - Total]]","v":0},{"$f":"Dataset[[#This Row],[2024/25 Baseline]]+Dataset[[#This Row],[2024/25 From - Total]]+Dataset[[#This Row],[2024/25 To - Total]]","v":0},{"$f":"Dataset[[#This Row],[2025/26 Baseline]]+Dataset[[#This Row],[2025/26 From - Total]]+Dataset[[#This Row],[2025/26 To - Total]]","v":0}]
["NAT|Non-transfer item","2|Inventory: Clothing material and accessories","2023_24","MTEF2023",2,3,1,1100,483,"02","03","01","001100","000483","02|03|01",1,1,2,21,21,"01|01|02|21|21","National","Parliament","Associated Services","Members Facilities","Non-transfer item","Current","Current payments","Goods and services","Inventory: Clothing material and accessories","Inventory: Clothing material and accessories","General public services","Executive and legislative organs","NAT",0,0,0,0,0,0,0,0,0,0,0,null,null,null,null,null,null,null,null,null,null,null,null,null,null,null,null,null,null,null,null,null,null,null,null,null,null,null,null,null,null,{"$f":"Dataset[[#This Row],[2023/24 From - Spending review Topic 1]]+Dataset[[#This Row],[2023/24 From - Spending review Topic 2]]+Dataset[[#This Row],[2023/24 From - Spending review Topic 3]]+Dataset[[#This Row],[2023/24 From - Spending review Topic 4]]+Dataset[[#This Row],[2023/24 From - Other reallocations]]","v":0},{"$f":"Dataset[[#This Row],[2024/25 From - Spending review Topic 1]]+Dataset[[#This Row],[2024/25 From - Spending review Topic 2]]+Dataset[[#This Row],[2024/25 From - Spending review Topic 3]]+Dataset[[#This Row],[2024/25 From - Spending review Topic 4]]+Dataset[[#This Row],[2024/25 From - Other reallocations]]","v":0},{"$f":"Dataset[[#This Row],[2025/26 From - Spending review Topic 1]]+Dataset[[#This Row],[2025/26 From - Spending review Topic 2]]+Dataset[[#This Row],[2025/26 From - Spending review Topic 3]]+Dataset[[#This Row],[2025/26 From - Spending review Topic 4]]+Dataset[[#This Row],[2025/26 From - Other reallocations]]","v":0},{"$f":"Dataset[[#This Row],[2023/24 To - Spending review Topic 1]]+Dataset[[#This Row],[2023/24 To - Spending review Topic 2]]+Dataset[[#This Row],[2023/24 To - Spending review Topic 3]]+Dataset[[#This Row],[2023/24 To - Spending review Topic 4]]+Dataset[[#This Row],[2023/24 To - Other reallocations]]","v":0},{"$f":"Dataset[[#This Row],[2024/25 To - Spending review Topic 1]]+Dataset[[#This Row],[2024/25 To - Spending review Topic 2]]+Dataset[[#This Row],[2024/25 To - Spending review Topic 3]]+Dataset[[#This Row],[2024/25 To - Spending review Topic 4]]+Dataset[[#This Row],[2024/25 To - Other reallocations]]","v":0},{"$f":"Dataset[[#This Row],[2025/26 To - Spending review Topic 1]]+Dataset[[#This Row],[2025/26 To - Spending review Topic 2]]+Dataset[[#This Row],[2025/26 To - Spending review Topic 3]]+Dataset[[#This Row],[2025/26 To - Spending review Topic 4]]+Dataset[[#This Row],[2025/26 To - Other reallocations]]","v":0},{"$f":"Dataset[[#This Row],[2023/24 Baseline]]+Dataset[[#This Row],[2023/24 From - Total]]+Dataset[[#This Row],[2023/24 To - Total]]","v":0},{"$f":"Dataset[[#This Row],[2024/25 Baseline]]+Dataset[[#This Row],[2024/25 From - Total]]+Dataset[[#This Row],[2024/25 To - Total]]","v":0},{"$f":"Dataset[[#This Row],[2025/26 Baseline]]+Dataset[[#This Row],[2025/26 From - Total]]+Dataset[[#This Row],[2025/26 To - Total]]","v":0}]
["NAT|Non-transfer item","2|Inventory: Farming supplies","2023_24","MTEF2023",2,3,1,1101,484,"02","03","01","001101","000484","02|03|01",1,1,2,22,22,"01|01|02|22|22","National","Parliament","Associated Services","Members Facilities","Non-transfer item","Current","Current payments","Goods and services","Inventory: Farming supplies","Inventory: Farming supplies","General public services","Executive and legislative organs","NAT",0,0,0,0,0,0,0,0,0,0,0,null,null,null,null,null,null,null,null,null,null,null,null,null,null,null,null,null,null,null,null,null,null,null,null,null,null,null,null,null,null,{"$f":"Dataset[[#This Row],[2023/24 From - Spending review Topic 1]]+Dataset[[#This Row],[2023/24 From - Spending review Topic 2]]+Dataset[[#This Row],[2023/24 From - Spending review Topic 3]]+Dataset[[#This Row],[2023/24 From - Spending review Topic 4]]+Dataset[[#This Row],[2023/24 From - Other reallocations]]","v":0},{"$f":"Dataset[[#This Row],[2024/25 From - Spending review Topic 1]]+Dataset[[#This Row],[2024/25 From - Spending review Topic 2]]+Dataset[[#This Row],[2024/25 From - Spending review Topic 3]]+Dataset[[#This Row],[2024/25 From - Spending review Topic 4]]+Dataset[[#This Row],[2024/25 From - Other reallocations]]","v":0},{"$f":"Dataset[[#This Row],[2025/26 From - Spending review Topic 1]]+Dataset[[#This Row],[2025/26 From - Spending review Topic 2]]+Dataset[[#This Row],[2025/26 From - Spending review Topic 3]]+Dataset[[#This Row],[2025/26 From - Spending review Topic 4]]+Dataset[[#This Row],[2025/26 From - Other reallocations]]","v":0},{"$f":"Dataset[[#This Row],[2023/24 To - Spending review Topic 1]]+Dataset[[#This Row],[2023/24 To - Spending review Topic 2]]+Dataset[[#This Row],[2023/24 To - Spending review Topic 3]]+Dataset[[#This Row],[2023/24 To - Spending review Topic 4]]+Dataset[[#This Row],[2023/24 To - Other reallocations]]","v":0},{"$f":"Dataset[[#This Row],[2024/25 To - Spending review Topic 1]]+Dataset[[#This Row],[2024/25 To - Spending review Topic 2]]+Dataset[[#This Row],[2024/25 To - Spending review Topic 3]]+Dataset[[#This Row],[2024/25 To - Spending review Topic 4]]+Dataset[[#This Row],[2024/25 To - Other reallocations]]","v":0},{"$f":"Dataset[[#This Row],[2025/26 To - Spending review Topic 1]]+Dataset[[#This Row],[2025/26 To - Spending review Topic 2]]+Dataset[[#This Row],[2025/26 To - Spending review Topic 3]]+Dataset[[#This Row],[2025/26 To - Spending review Topic 4]]+Dataset[[#This Row],[2025/26 To - Other reallocations]]","v":0},{"$f":"Dataset[[#This Row],[2023/24 Baseline]]+Dataset[[#This Row],[2023/24 From - Total]]+Dataset[[#This Row],[2023/24 To - Total]]","v":0},{"$f":"Dataset[[#This Row],[2024/25 Baseline]]+Dataset[[#This Row],[2024/25 From - Total]]+Dataset[[#This Row],[2024/25 To - Total]]","v":0},{"$f":"Dataset[[#This Row],[2025/26 Baseline]]+Dataset[[#This Row],[2025/26 From - Total]]+Dataset[[#This Row],[2025/26 To - Total]]","v":0}]
["NAT|Non-transfer item","2|Inventory: Food and food supplies","2023_24","MTEF2023",2,3,1,1102,485,"02","03","01","001102","000485","02|03|01",1,1,2,23,23,"01|01|02|23|23","National","Parliament","Associated Services","Members Facilities","Non-transfer item","Current","Current payments","Goods and services","Inventory: Food and food supplies","Inventory: Food and food supplies","General public services","Executive and legislative organs","NAT",0,0,0,0,0,0,0,0,0,0,0,null,null,null,null,null,null,null,null,null,null,null,null,null,null,null,null,null,null,null,null,null,null,null,null,null,null,null,null,null,null,{"$f":"Dataset[[#This Row],[2023/24 From - Spending review Topic 1]]+Dataset[[#This Row],[2023/24 From - Spending review Topic 2]]+Dataset[[#This Row],[2023/24 From - Spending review Topic 3]]+Dataset[[#This Row],[2023/24 From - Spending review Topic 4]]+Dataset[[#This Row],[2023/24 From - Other reallocations]]","v":0},{"$f":"Dataset[[#This Row],[2024/25 From - Spending review Topic 1]]+Dataset[[#This Row],[2024/25 From - Spending review Topic 2]]+Dataset[[#This Row],[2024/25 From - Spending review Topic 3]]+Dataset[[#This Row],[2024/25 From - Spending review Topic 4]]+Dataset[[#This Row],[2024/25 From - Other reallocations]]","v":0},{"$f":"Dataset[[#This Row],[2025/26 From - Spending review Topic 1]]+Dataset[[#This Row],[2025/26 From - Spending review Topic 2]]+Dataset[[#This Row],[2025/26 From - Spending review Topic 3]]+Dataset[[#This Row],[2025/26 From - Spending review Topic 4]]+Dataset[[#This Row],[2025/26 From - Other reallocations]]","v":0},{"$f":"Dataset[[#This Row],[2023/24 To - Spending review Topic 1]]+Dataset[[#This Row],[2023/24 To - Spending review Topic 2]]+Dataset[[#This Row],[2023/24 To - Spending review Topic 3]]+Dataset[[#This Row],[2023/24 To - Spending review Topic 4]]+Dataset[[#This Row],[2023/24 To - Other reallocations]]","v":0},{"$f":"Dataset[[#This Row],[2024/25 To - Spending review Topic 1]]+Dataset[[#This Row],[2024/25 To - Spending review Topic 2]]+Dataset[[#This Row],[2024/25 To - Spending review Topic 3]]+Dataset[[#This Row],[2024/25 To - Spending review Topic 4]]+Dataset[[#This Row],[2024/25 To - Other reallocations]]","v":0},{"$f":"Dataset[[#This Row],[2025/26 To - Spending review Topic 1]]+Dataset[[#This Row],[2025/26 To - Spending review Topic 2]]+Dataset[[#This Row],[2025/26 To - Spending review Topic 3]]+Dataset[[#This Row],[2025/26 To - Spending review Topic 4]]+Dataset[[#This Row],[2025/26 To - Other reallocations]]","v":0},{"$f":"Dataset[[#This Row],[2023/24 Baseline]]+Dataset[[#This Row],[2023/24 From - Total]]+Dataset[[#This Row],[2023/24 To - Total]]","v":0},{"$f":"Dataset[[#This Row],[2024/25 Baseline]]+Dataset[[#This Row],[2024/25 From - Total]]+Dataset[[#This Row],[2024/25 To - Total]]","v":0},{"$f":"Dataset[[#This Row],[2025/26 Baseline]]+Dataset[[#This Row],[2025/26 From - Total]]+Dataset[[#This Row],[2025/26 To - Total]]","v":0}]
["NAT|Non-transfer item","2|Inventory: Fuel, oil and gas","2023_24","MTEF2023",2,3,1,1103,486,"02","03","01","001103","000486","02|03|01",1,1,2,24,24,"01|01|02|24|24","National","Parliament","Associated Services","Members Facilities","Non-transfer item","Current","Current payments","Goods and services","Inventory: Fuel, oil and gas","Inventory: Fuel, oil and gas","General public services","Executive and legislative organs","NAT",0,0,0,0,0,0,0,0,0,0,0,null,null,null,null,null,null,null,null,null,null,null,null,null,null,null,null,null,null,null,null,null,null,null,null,null,null,null,null,null,null,{"$f":"Dataset[[#This Row],[2023/24 From - Spending review Topic 1]]+Dataset[[#This Row],[2023/24 From - Spending review Topic 2]]+Dataset[[#This Row],[2023/24 From - Spending review Topic 3]]+Dataset[[#This Row],[2023/24 From - Spending review Topic 4]]+Dataset[[#This Row],[2023/24 From - Other reallocations]]","v":0},{"$f":"Dataset[[#This Row],[2024/25 From - Spending review Topic 1]]+Dataset[[#This Row],[2024/25 From - Spending review Topic 2]]+Dataset[[#This Row],[2024/25 From - Spending review Topic 3]]+Dataset[[#This Row],[2024/25 From - Spending review Topic 4]]+Dataset[[#This Row],[2024/25 From - Other reallocations]]","v":0},{"$f":"Dataset[[#This Row],[2025/26 From - Spending review Topic 1]]+Dataset[[#This Row],[2025/26 From - Spending review Topic 2]]+Dataset[[#This Row],[2025/26 From - Spending review Topic 3]]+Dataset[[#This Row],[2025/26 From - Spending review Topic 4]]+Dataset[[#This Row],[2025/26 From - Other reallocations]]","v":0},{"$f":"Dataset[[#This Row],[2023/24 To - Spending review Topic 1]]+Dataset[[#This Row],[2023/24 To - Spending review Topic 2]]+Dataset[[#This Row],[2023/24 To - Spending review Topic 3]]+Dataset[[#This Row],[2023/24 To - Spending review Topic 4]]+Dataset[[#This Row],[2023/24 To - Other reallocations]]","v":0},{"$f":"Dataset[[#This Row],[2024/25 To - Spending review Topic 1]]+Dataset[[#This Row],[2024/25 To - Spending review Topic 2]]+Dataset[[#This Row],[2024/25 To - Spending review Topic 3]]+Dataset[[#This Row],[2024/25 To - Spending review Topic 4]]+Dataset[[#This Row],[2024/25 To - Other reallocations]]","v":0},{"$f":"Dataset[[#This Row],[2025/26 To - Spending review Topic 1]]+Dataset[[#This Row],[2025/26 To - Spending review Topic 2]]+Dataset[[#This Row],[2025/26 To - Spending review Topic 3]]+Dataset[[#This Row],[2025/26 To - Spending review Topic 4]]+Dataset[[#This Row],[2025/26 To - Other reallocations]]","v":0},{"$f":"Dataset[[#This Row],[2023/24 Baseline]]+Dataset[[#This Row],[2023/24 From - Total]]+Dataset[[#This Row],[2023/24 To - Total]]","v":0},{"$f":"Dataset[[#This Row],[2024/25 Baseline]]+Dataset[[#This Row],[2024/25 From - Total]]+Dataset[[#This Row],[2024/25 To - Total]]","v":0},{"$f":"Dataset[[#This Row],[2025/26 Baseline]]+Dataset[[#This Row],[2025/26 From - Total]]+Dataset[[#This Row],[2025/26 To - Total]]","v":0}]
["NAT|Non-transfer item","2|Inventory: Learner and teacher support material","2023_24","MTEF2023",2,3,1,1104,487,"02","03","01","001104","000487","02|03|01",1,1,2,25,25,"01|01|02|25|25","National","Parliament","Associated Services","Members Facilities","Non-transfer item","Current","Current payments","Goods and services","Inventory: Learner and teacher support material","Inventory: Learner and teacher support material","General public services","Executive and legislative organs","NAT",0,0,0,0,0,0,0,0,0,0,0,null,null,null,null,null,null,null,null,null,null,null,null,null,null,null,null,null,null,null,null,null,null,null,null,null,null,null,null,null,null,{"$f":"Dataset[[#This Row],[2023/24 From - Spending review Topic 1]]+Dataset[[#This Row],[2023/24 From - Spending review Topic 2]]+Dataset[[#This Row],[2023/24 From - Spending review Topic 3]]+Dataset[[#This Row],[2023/24 From - Spending review Topic 4]]+Dataset[[#This Row],[2023/24 From - Other reallocations]]","v":0},{"$f":"Dataset[[#This Row],[2024/25 From - Spending review Topic 1]]+Dataset[[#This Row],[2024/25 From - Spending review Topic 2]]+Dataset[[#This Row],[2024/25 From - Spending review Topic 3]]+Dataset[[#This Row],[2024/25 From - Spending review Topic 4]]+Dataset[[#This Row],[2024/25 From - Other reallocations]]","v":0},{"$f":"Dataset[[#This Row],[2025/26 From - Spending review Topic 1]]+Dataset[[#This Row],[2025/26 From - Spending review Topic 2]]+Dataset[[#This Row],[2025/26 From - Spending review Topic 3]]+Dataset[[#This Row],[2025/26 From - Spending review Topic 4]]+Dataset[[#This Row],[2025/26 From - Other reallocations]]","v":0},{"$f":"Dataset[[#This Row],[2023/24 To - Spending review Topic 1]]+Dataset[[#This Row],[2023/24 To - Spending review Topic 2]]+Dataset[[#This Row],[2023/24 To - Spending review Topic 3]]+Dataset[[#This Row],[2023/24 To - Spending review Topic 4]]+Dataset[[#This Row],[2023/24 To - Other reallocations]]","v":0},{"$f":"Dataset[[#This Row],[2024/25 To - Spending review Topic 1]]+Dataset[[#This Row],[2024/25 To - Spending review Topic 2]]+Dataset[[#This Row],[2024/25 To - Spending review Topic 3]]+Dataset[[#This Row],[2024/25 To - Spending review Topic 4]]+Dataset[[#This Row],[2024/25 To - Other reallocations]]","v":0},{"$f":"Dataset[[#This Row],[2025/26 To - Spending review Topic 1]]+Dataset[[#This Row],[2025/26 To - Spending review Topic 2]]+Dataset[[#This Row],[2025/26 To - Spending review Topic 3]]+Dataset[[#This Row],[2025/26 To - Spending review Topic 4]]+Dataset[[#This Row],[2025/26 To - Other reallocations]]","v":0},{"$f":"Dataset[[#This Row],[2023/24 Baseline]]+Dataset[[#This Row],[2023/24 From - Total]]+Dataset[[#This Row],[2023/24 To - Total]]","v":0},{"$f":"Dataset[[#This Row],[2024/25 Baseline]]+Dataset[[#This Row],[2024/25 From - Total]]+Dataset[[#This Row],[2024/25 To - Total]]","v":0},{"$f":"Dataset[[#This Row],[2025/26 Baseline]]+Dataset[[#This Row],[2025/26 From - Total]]+Dataset[[#This Row],[2025/26 To - Total]]","v":0}]
["NAT|Non-transfer item","2|Inventory: Materials and supplies","2023_24","MTEF2023",2,3,1,1105,488,"02","03","01","001105","000488","02|03|01",1,1,2,26,26,"01|01|02|26|26","National","Parliament","Associated Services","Members Facilities","Non-transfer item","Current","Current payments","Goods and services","Inventory: Materials and supplies","Inventory: Materials and supplies","General public services","Executive and legislative organs","NAT",0,0,0,0,0,0,0,0,0,0,0,null,null,null,null,null,null,null,null,null,null,null,null,null,null,null,null,null,null,null,null,null,null,null,null,null,null,null,null,null,null,{"$f":"Dataset[[#This Row],[2023/24 From - Spending review Topic 1]]+Dataset[[#This Row],[2023/24 From - Spending review Topic 2]]+Dataset[[#This Row],[2023/24 From - Spending review Topic 3]]+Dataset[[#This Row],[2023/24 From - Spending review Topic 4]]+Dataset[[#This Row],[2023/24 From - Other reallocations]]","v":0},{"$f":"Dataset[[#This Row],[2024/25 From - Spending review Topic 1]]+Dataset[[#This Row],[2024/25 From - Spending review Topic 2]]+Dataset[[#This Row],[2024/25 From - Spending review Topic 3]]+Dataset[[#This Row],[2024/25 From - Spending review Topic 4]]+Dataset[[#This Row],[2024/25 From - Other reallocations]]","v":0},{"$f":"Dataset[[#This Row],[2025/26 From - Spending review Topic 1]]+Dataset[[#This Row],[2025/26 From - Spending review Topic 2]]+Dataset[[#This Row],[2025/26 From - Spending review Topic 3]]+Dataset[[#This Row],[2025/26 From - Spending review Topic 4]]+Dataset[[#This Row],[2025/26 From - Other reallocations]]","v":0},{"$f":"Dataset[[#This Row],[2023/24 To - Spending review Topic 1]]+Dataset[[#This Row],[2023/24 To - Spending review Topic 2]]+Dataset[[#This Row],[2023/24 To - Spending review Topic 3]]+Dataset[[#This Row],[2023/24 To - Spending review Topic 4]]+Dataset[[#This Row],[2023/24 To - Other reallocations]]","v":0},{"$f":"Dataset[[#This Row],[2024/25 To - Spending review Topic 1]]+Dataset[[#This Row],[2024/25 To - Spending review Topic 2]]+Dataset[[#This Row],[2024/25 To - Spending review Topic 3]]+Dataset[[#This Row],[2024/25 To - Spending review Topic 4]]+Dataset[[#This Row],[2024/25 To - Other reallocations]]","v":0},{"$f":"Dataset[[#This Row],[2025/26 To - Spending review Topic 1]]+Dataset[[#This Row],[2025/26 To - Spending review Topic 2]]+Dataset[[#This Row],[2025/26 To - Spending review Topic 3]]+Dataset[[#This Row],[2025/26 To - Spending review Topic 4]]+Dataset[[#This Row],[2025/26 To - Other reallocations]]","v":0},{"$f":"Dataset[[#This Row],[2023/24 Baseline]]+Dataset[[#This Row],[2023/24 From - Total]]+Dataset[[#This Row],[2023/24 To - Total]]","v":0},{"$f":"Dataset[[#This Row],[2024/25 Baseline]]+Dataset[[#This Row],[2024/25 From - Total]]+Dataset[[#This Row],[2024/25 To - Total]]","v":0},{"$f":"Dataset[[#This Row],[2025/26 Baseline]]+Dataset[[#This Row],[2025/26 From - Total]]+Dataset[[#This Row],[2025/26 To - Total]]","v":0}]
["NAT|Non-transfer item","2|Inventory: Medical supplies","2023_24","MTEF2023",2,3,1,1106,489,"02","03","01","001106","000489","02|03|01",1,1,2,27,27,"01|01|02|27|27","National","Parliament","Associated Services","Members Facilities","Non-transfer item","Current","Current payments","Goods and services","Inventory: Medical supplies","Inventory: Medical supplies","General public services","Executive and legislative organs","NAT",0,0,0,0,0,0,0,0,0,0,0,null,null,null,null,null,null,null,null,null,null,null,null,null,null,null,null,null,null,null,null,null,null,null,null,null,null,null,null,null,null,{"$f":"Dataset[[#This Row],[2023/24 From - Spending review Topic 1]]+Dataset[[#This Row],[2023/24 From - Spending review Topic 2]]+Dataset[[#This Row],[2023/24 From - Spending review Topic 3]]+Dataset[[#This Row],[2023/24 From - Spending review Topic 4]]+Dataset[[#This Row],[2023/24 From - Other reallocations]]","v":0},{"$f":"Dataset[[#This Row],[2024/25 From - Spending review Topic 1]]+Dataset[[#This Row],[2024/25 From - Spending review Topic 2]]+Dataset[[#This Row],[2024/25 From - Spending review Topic 3]]+Dataset[[#This Row],[2024/25 From - Spending review Topic 4]]+Dataset[[#This Row],[2024/25 From - Other reallocations]]","v":0},{"$f":"Dataset[[#This Row],[2025/26 From - Spending review Topic 1]]+Dataset[[#This Row],[2025/26 From - Spending review Topic 2]]+Dataset[[#This Row],[2025/26 From - Spending review Topic 3]]+Dataset[[#This Row],[2025/26 From - Spending review Topic 4]]+Dataset[[#This Row],[2025/26 From - Other reallocations]]","v":0},{"$f":"Dataset[[#This Row],[2023/24 To - Spending review Topic 1]]+Dataset[[#This Row],[2023/24 To - Spending review Topic 2]]+Dataset[[#This Row],[2023/24 To - Spending review Topic 3]]+Dataset[[#This Row],[2023/24 To - Spending review Topic 4]]+Dataset[[#This Row],[2023/24 To - Other reallocations]]","v":0},{"$f":"Dataset[[#This Row],[2024/25 To - Spending review Topic 1]]+Dataset[[#This Row],[2024/25 To - Spending review Topic 2]]+Dataset[[#This Row],[2024/25 To - Spending review Topic 3]]+Dataset[[#This Row],[2024/25 To - Spending review Topic 4]]+Dataset[[#This Row],[2024/25 To - Other reallocations]]","v":0},{"$f":"Dataset[[#This Row],[2025/26 To - Spending review Topic 1]]+Dataset[[#This Row],[2025/26 To - Spending review Topic 2]]+Dataset[[#This Row],[2025/26 To - Spending review Topic 3]]+Dataset[[#This Row],[2025/26 To - Spending review Topic 4]]+Dataset[[#This Row],[2025/26 To - Other reallocations]]","v":0},{"$f":"Dataset[[#This Row],[2023/24 Baseline]]+Dataset[[#This Row],[2023/24 From - Total]]+Dataset[[#This Row],[2023/24 To - Total]]","v":0},{"$f":"Dataset[[#This Row],[2024/25 Baseline]]+Dataset[[#This Row],[2024/25 From - Total]]+Dataset[[#This Row],[2024/25 To - Total]]","v":0},{"$f":"Dataset[[#This Row],[2025/26 Baseline]]+Dataset[[#This Row],[2025/26 From - Total]]+Dataset[[#This Row],[2025/26 To - Total]]","v":0}]
["NAT|Non-transfer item","2|Inventory: Medicine","2023_24","MTEF2023",2,3,1,1107,490,"02","03","01","001107","000490","02|03|01",1,1,2,28,28,"01|01|02|28|28","National","Parliament","Associated Services","Members Facilities","Non-transfer item","Current","Current payments","Goods and services","Inventory: Medicine","Inventory: Medicine","General public services","Executive and legislative organs","NAT",0,0,0,0,0,0,0,0,0,0,0,null,null,null,null,null,null,null,null,null,null,null,null,null,null,null,null,null,null,null,null,null,null,null,null,null,null,null,null,null,null,{"$f":"Dataset[[#This Row],[2023/24 From - Spending review Topic 1]]+Dataset[[#This Row],[2023/24 From - Spending review Topic 2]]+Dataset[[#This Row],[2023/24 From - Spending review Topic 3]]+Dataset[[#This Row],[2023/24 From - Spending review Topic 4]]+Dataset[[#This Row],[2023/24 From - Other reallocations]]","v":0},{"$f":"Dataset[[#This Row],[2024/25 From - Spending review Topic 1]]+Dataset[[#This Row],[2024/25 From - Spending review Topic 2]]+Dataset[[#This Row],[2024/25 From - Spending review Topic 3]]+Dataset[[#This Row],[2024/25 From - Spending review Topic 4]]+Dataset[[#This Row],[2024/25 From - Other reallocations]]","v":0},{"$f":"Dataset[[#This Row],[2025/26 From - Spending review Topic 1]]+Dataset[[#This Row],[2025/26 From - Spending review Topic 2]]+Dataset[[#This Row],[2025/26 From - Spending review Topic 3]]+Dataset[[#This Row],[2025/26 From - Spending review Topic 4]]+Dataset[[#This Row],[2025/26 From - Other reallocations]]","v":0},{"$f":"Dataset[[#This Row],[2023/24 To - Spending review Topic 1]]+Dataset[[#This Row],[2023/24 To - Spending review Topic 2]]+Dataset[[#This Row],[2023/24 To - Spending review Topic 3]]+Dataset[[#This Row],[2023/24 To - Spending review Topic 4]]+Dataset[[#This Row],[2023/24 To - Other reallocations]]","v":0},{"$f":"Dataset[[#This Row],[2024/25 To - Spending review Topic 1]]+Dataset[[#This Row],[2024/25 To - Spending review Topic 2]]+Dataset[[#This Row],[2024/25 To - Spending review Topic 3]]+Dataset[[#This Row],[2024/25 To - Spending review Topic 4]]+Dataset[[#This Row],[2024/25 To - Other reallocations]]","v":0},{"$f":"Dataset[[#This Row],[2025/26 To - Spending review Topic 1]]+Dataset[[#This Row],[2025/26 To - Spending review Topic 2]]+Dataset[[#This Row],[2025/26 To - Spending review Topic 3]]+Dataset[[#This Row],[2025/26 To - Spending review Topic 4]]+Dataset[[#This Row],[2025/26 To - Other reallocations]]","v":0},{"$f":"Dataset[[#This Row],[2023/24 Baseline]]+Dataset[[#This Row],[2023/24 From - Total]]+Dataset[[#This Row],[2023/24 To - Total]]","v":0},{"$f":"Dataset[[#This Row],[2024/25 Baseline]]+Dataset[[#This Row],[2024/25 From - Total]]+Dataset[[#This Row],[2024/25 To - Total]]","v":0},{"$f":"Dataset[[#This Row],[2025/26 Baseline]]+Dataset[[#This Row],[2025/26 From - Total]]+Dataset[[#This Row],[2025/26 To - Total]]","v":0}]
["NAT|Non-transfer item","2|Medsas inventory interface","2023_24","MTEF2023",2,3,1,1108,491,"02","03","01","001108","000491","02|03|01",1,1,2,29,29,"01|01|02|29|29","National","Parliament","Associated Services","Members Facilities","Non-transfer item","Current","Current payments","Goods and services","Medsas inventory interface","Medsas inventory interface","General public services","Executive and legislative organs","NAT",0,0,0,0,0,0,0,0,0,0,0,null,null,null,null,null,null,null,null,null,null,null,null,null,null,null,null,null,null,null,null,null,null,null,null,null,null,null,null,null,null,{"$f":"Dataset[[#This Row],[2023/24 From - Spending review Topic 1]]+Dataset[[#This Row],[2023/24 From - Spending review Topic 2]]+Dataset[[#This Row],[2023/24 From - Spending review Topic 3]]+Dataset[[#This Row],[2023/24 From - Spending review Topic 4]]+Dataset[[#This Row],[2023/24 From - Other reallocations]]","v":0},{"$f":"Dataset[[#This Row],[2024/25 From - Spending review Topic 1]]+Dataset[[#This Row],[2024/25 From - Spending review Topic 2]]+Dataset[[#This Row],[2024/25 From - Spending review Topic 3]]+Dataset[[#This Row],[2024/25 From - Spending review Topic 4]]+Dataset[[#This Row],[2024/25 From - Other reallocations]]","v":0},{"$f":"Dataset[[#This Row],[2025/26 From - Spending review Topic 1]]+Dataset[[#This Row],[2025/26 From - Spending review Topic 2]]+Dataset[[#This Row],[2025/26 From - Spending review Topic 3]]+Dataset[[#This Row],[2025/26 From - Spending review Topic 4]]+Dataset[[#This Row],[2025/26 From - Other reallocations]]","v":0},{"$f":"Dataset[[#This Row],[2023/24 To - Spending review Topic 1]]+Dataset[[#This Row],[2023/24 To - Spending review Topic 2]]+Dataset[[#This Row],[2023/24 To - Spending review Topic 3]]+Dataset[[#This Row],[2023/24 To - Spending review Topic 4]]+Dataset[[#This Row],[2023/24 To - Other reallocations]]","v":0},{"$f":"Dataset[[#This Row],[2024/25 To - Spending review Topic 1]]+Dataset[[#This Row],[2024/25 To - Spending review Topic 2]]+Dataset[[#This Row],[2024/25 To - Spending review Topic 3]]+Dataset[[#This Row],[2024/25 To - Spending review Topic 4]]+Dataset[[#This Row],[2024/25 To - Other reallocations]]","v":0},{"$f":"Dataset[[#This Row],[2025/26 To - Spending review Topic 1]]+Dataset[[#This Row],[2025/26 To - Spending review Topic 2]]+Dataset[[#This Row],[2025/26 To - Spending review Topic 3]]+Dataset[[#This Row],[2025/26 To - Spending review Topic 4]]+Dataset[[#This Row],[2025/26 To - Other reallocations]]","v":0},{"$f":"Dataset[[#This Row],[2023/24 Baseline]]+Dataset[[#This Row],[2023/24 From - Total]]+Dataset[[#This Row],[2023/24 To - Total]]","v":0},{"$f":"Dataset[[#This Row],[2024/25 Baseline]]+Dataset[[#This Row],[2024/25 From - Total]]+Dataset[[#This Row],[2024/25 To - Total]]","v":0},{"$f":"Dataset[[#This Row],[2025/26 Baseline]]+Dataset[[#This Row],[2025/26 From - Total]]+Dataset[[#This Row],[2025/26 To - Total]]","v":0}]
["NAT|Non-transfer item","2|Inventory: Other supplies","2023_24","MTEF2023",2,3,1,1109,492,"02","03","01","001109","000492","02|03|01",1,1,2,30,30,"01|01|02|30|30","National","Parliament","Associated Services","Members Facilities","Non-transfer item","Current","Current payments","Goods and services","Inventory: Other supplies","Inventory: Other supplies","General public services","Executive and legislative organs","NAT",0,0,0,0,0,0,0,0,0,0,0,null,null,null,null,null,null,null,null,null,null,null,null,null,null,null,null,null,null,null,null,null,null,null,null,null,null,null,null,null,null,{"$f":"Dataset[[#This Row],[2023/24 From - Spending review Topic 1]]+Dataset[[#This Row],[2023/24 From - Spending review Topic 2]]+Dataset[[#This Row],[2023/24 From - Spending review Topic 3]]+Dataset[[#This Row],[2023/24 From - Spending review Topic 4]]+Dataset[[#This Row],[2023/24 From - Other reallocations]]","v":0},{"$f":"Dataset[[#This Row],[2024/25 From - Spending review Topic 1]]+Dataset[[#This Row],[2024/25 From - Spending review Topic 2]]+Dataset[[#This Row],[2024/25 From - Spending review Topic 3]]+Dataset[[#This Row],[2024/25 From - Spending review Topic 4]]+Dataset[[#This Row],[2024/25 From - Other reallocations]]","v":0},{"$f":"Dataset[[#This Row],[2025/26 From - Spending review Topic 1]]+Dataset[[#This Row],[2025/26 From - Spending review Topic 2]]+Dataset[[#This Row],[2025/26 From - Spending review Topic 3]]+Dataset[[#This Row],[2025/26 From - Spending review Topic 4]]+Dataset[[#This Row],[2025/26 From - Other reallocations]]","v":0},{"$f":"Dataset[[#This Row],[2023/24 To - Spending review Topic 1]]+Dataset[[#This Row],[2023/24 To - Spending review Topic 2]]+Dataset[[#This Row],[2023/24 To - Spending review Topic 3]]+Dataset[[#This Row],[2023/24 To - Spending review Topic 4]]+Dataset[[#This Row],[2023/24 To - Other reallocations]]","v":0},{"$f":"Dataset[[#This Row],[2024/25 To - Spending review Topic 1]]+Dataset[[#This Row],[2024/25 To - Spending review Topic 2]]+Dataset[[#This Row],[2024/25 To - Spending review Topic 3]]+Dataset[[#This Row],[2024/25 To - Spending review Topic 4]]+Dataset[[#This Row],[2024/25 To - Other reallocations]]","v":0},{"$f":"Dataset[[#This Row],[2025/26 To - Spending review Topic 1]]+Dataset[[#This Row],[2025/26 To - Spending review Topic 2]]+Dataset[[#This Row],[2025/26 To - Spending review Topic 3]]+Dataset[[#This Row],[2025/26 To - Spending review Topic 4]]+Dataset[[#This Row],[2025/26 To - Other reallocations]]","v":0},{"$f":"Dataset[[#This Row],[2023/24 Baseline]]+Dataset[[#This Row],[2023/24 From - Total]]+Dataset[[#This Row],[2023/24 To - Total]]","v":0},{"$f":"Dataset[[#This Row],[2024/25 Baseline]]+Dataset[[#This Row],[2024/25 From - Total]]+Dataset[[#This Row],[2024/25 To - Total]]","v":0},{"$f":"Dataset[[#This Row],[2025/26 Baseline]]+Dataset[[#This Row],[2025/26 From - Total]]+Dataset[[#This Row],[2025/26 To - Total]]","v":0}]
["NAT|Non-transfer item","2|Consumable supplies","2023_24","MTEF2023",2,3,1,1110,493,"02","03","01","001110","000493","02|03|01",1,1,2,31,31,"01|01|02|31|31","National","Parliament","Associated Services","Members Facilities","Non-transfer item","Current","Current payments","Goods and services","Consumable supplies","Consumable supplies","General public services","Executive and legislative organs","NAT",0,0,0,0,0,0,0,0,0,0,0,null,null,null,null,null,null,null,null,null,null,null,null,null,null,null,null,null,null,null,null,null,null,null,null,null,null,null,null,null,null,{"$f":"Dataset[[#This Row],[2023/24 From - Spending review Topic 1]]+Dataset[[#This Row],[2023/24 From - Spending review Topic 2]]+Dataset[[#This Row],[2023/24 From - Spending review Topic 3]]+Dataset[[#This Row],[2023/24 From - Spending review Topic 4]]+Dataset[[#This Row],[2023/24 From - Other reallocations]]","v":0},{"$f":"Dataset[[#This Row],[2024/25 From - Spending review Topic 1]]+Dataset[[#This Row],[2024/25 From - Spending review Topic 2]]+Dataset[[#This Row],[2024/25 From - Spending review Topic 3]]+Dataset[[#This Row],[2024/25 From - Spending review Topic 4]]+Dataset[[#This Row],[2024/25 From - Other reallocations]]","v":0},{"$f":"Dataset[[#This Row],[2025/26 From - Spending review Topic 1]]+Dataset[[#This Row],[2025/26 From - Spending review Topic 2]]+Dataset[[#This Row],[2025/26 From - Spending review Topic 3]]+Dataset[[#This Row],[2025/26 From - Spending review Topic 4]]+Dataset[[#This Row],[2025/26 From - Other reallocations]]","v":0},{"$f":"Dataset[[#This Row],[2023/24 To - Spending review Topic 1]]+Dataset[[#This Row],[2023/24 To - Spending review Topic 2]]+Dataset[[#This Row],[2023/24 To - Spending review Topic 3]]+Dataset[[#This Row],[2023/24 To - Spending review Topic 4]]+Dataset[[#This Row],[2023/24 To - Other reallocations]]","v":0},{"$f":"Dataset[[#This Row],[2024/25 To - Spending review Topic 1]]+Dataset[[#This Row],[2024/25 To - Spending review Topic 2]]+Dataset[[#This Row],[2024/25 To - Spending review Topic 3]]+Dataset[[#This Row],[2024/25 To - Spending review Topic 4]]+Dataset[[#This Row],[2024/25 To - Other reallocations]]","v":0},{"$f":"Dataset[[#This Row],[2025/26 To - Spending review Topic 1]]+Dataset[[#This Row],[2025/26 To - Spending review Topic 2]]+Dataset[[#This Row],[2025/26 To - Spending review Topic 3]]+Dataset[[#This Row],[2025/26 To - Spending review Topic 4]]+Dataset[[#This Row],[2025/26 To - Other reallocations]]","v":0},{"$f":"Dataset[[#This Row],[2023/24 Baseline]]+Dataset[[#This Row],[2023/24 From - Total]]+Dataset[[#This Row],[2023/24 To - Total]]","v":0},{"$f":"Dataset[[#This Row],[2024/25 Baseline]]+Dataset[[#This Row],[2024/25 From - Total]]+Dataset[[#This Row],[2024/25 To - Total]]","v":0},{"$f":"Dataset[[#This Row],[2025/26 Baseline]]+Dataset[[#This Row],[2025/26 From - Total]]+Dataset[[#This Row],[2025/26 To - Total]]","v":0}]
["NAT|Non-transfer item","2|Consumables: Stationery, printing and office supplies","2023_24","MTEF2023",2,3,1,1111,494,"02","03","01","001111","000494","02|03|01",1,1,2,32,32,"01|01|02|32|32","National","Parliament","Associated Services","Members Facilities","Non-transfer item","Current","Current payments","Goods and services","Consumables: Stationery, printing and office supplies","Consumables: Stationery, printing and office supplies","General public services","Executive and legislative organs","NAT",0,0,0,0,0,0,0,0,0,0,0,null,null,null,null,null,null,null,null,null,null,null,null,null,null,null,null,null,null,null,null,null,null,null,null,null,null,null,null,null,null,{"$f":"Dataset[[#This Row],[2023/24 From - Spending review Topic 1]]+Dataset[[#This Row],[2023/24 From - Spending review Topic 2]]+Dataset[[#This Row],[2023/24 From - Spending review Topic 3]]+Dataset[[#This Row],[2023/24 From - Spending review Topic 4]]+Dataset[[#This Row],[2023/24 From - Other reallocations]]","v":0},{"$f":"Dataset[[#This Row],[2024/25 From - Spending review Topic 1]]+Dataset[[#This Row],[2024/25 From - Spending review Topic 2]]+Dataset[[#This Row],[2024/25 From - Spending review Topic 3]]+Dataset[[#This Row],[2024/25 From - Spending review Topic 4]]+Dataset[[#This Row],[2024/25 From - Other reallocations]]","v":0},{"$f":"Dataset[[#This Row],[2025/26 From - Spending review Topic 1]]+Dataset[[#This Row],[2025/26 From - Spending review Topic 2]]+Dataset[[#This Row],[2025/26 From - Spending review Topic 3]]+Dataset[[#This Row],[2025/26 From - Spending review Topic 4]]+Dataset[[#This Row],[2025/26 From - Other reallocations]]","v":0},{"$f":"Dataset[[#This Row],[2023/24 To - Spending review Topic 1]]+Dataset[[#This Row],[2023/24 To - Spending review Topic 2]]+Dataset[[#This Row],[2023/24 To - Spending review Topic 3]]+Dataset[[#This Row],[2023/24 To - Spending review Topic 4]]+Dataset[[#This Row],[2023/24 To - Other reallocations]]","v":0},{"$f":"Dataset[[#This Row],[2024/25 To - Spending review Topic 1]]+Dataset[[#This Row],[2024/25 To - Spending review Topic 2]]+Dataset[[#This Row],[2024/25 To - Spending review Topic 3]]+Dataset[[#This Row],[2024/25 To - Spending review Topic 4]]+Dataset[[#This Row],[2024/25 To - Other reallocations]]","v":0},{"$f":"Dataset[[#This Row],[2025/26 To - Spending review Topic 1]]+Dataset[[#This Row],[2025/26 To - Spending review Topic 2]]+Dataset[[#This Row],[2025/26 To - Spending review Topic 3]]+Dataset[[#This Row],[2025/26 To - Spending review Topic 4]]+Dataset[[#This Row],[2025/26 To - Other reallocations]]","v":0},{"$f":"Dataset[[#This Row],[2023/24 Baseline]]+Dataset[[#This Row],[2023/24 From - Total]]+Dataset[[#This Row],[2023/24 To - Total]]","v":0},{"$f":"Dataset[[#This Row],[2024/25 Baseline]]+Dataset[[#This Row],[2024/25 From - Total]]+Dataset[[#This Row],[2024/25 To - Total]]","v":0},{"$f":"Dataset[[#This Row],[2025/26 Baseline]]+Dataset[[#This Row],[2025/26 From - Total]]+Dataset[[#This Row],[2025/26 To - Total]]","v":0}]
["NAT|Non-transfer item","2|Operating leases","2023_24","MTEF2023",2,3,1,1112,495,"02","03","01","001112","000495","02|03|01",1,1,2,33,33,"01|01|02|33|33","National","Parliament","Associated Services","Members Facilities","Non-transfer item","Current","Current payments","Goods and services","Operating leases","Operating leases","General public services","Executive and legislative organs","NAT",0,0,0,0,0,0,0,0,0,0,0,null,null,null,null,null,null,null,null,null,null,null,null,null,null,null,null,null,null,null,null,null,null,null,null,null,null,null,null,null,null,{"$f":"Dataset[[#This Row],[2023/24 From - Spending review Topic 1]]+Dataset[[#This Row],[2023/24 From - Spending review Topic 2]]+Dataset[[#This Row],[2023/24 From - Spending review Topic 3]]+Dataset[[#This Row],[2023/24 From - Spending review Topic 4]]+Dataset[[#This Row],[2023/24 From - Other reallocations]]","v":0},{"$f":"Dataset[[#This Row],[2024/25 From - Spending review Topic 1]]+Dataset[[#This Row],[2024/25 From - Spending review Topic 2]]+Dataset[[#This Row],[2024/25 From - Spending review Topic 3]]+Dataset[[#This Row],[2024/25 From - Spending review Topic 4]]+Dataset[[#This Row],[2024/25 From - Other reallocations]]","v":0},{"$f":"Dataset[[#This Row],[2025/26 From - Spending review Topic 1]]+Dataset[[#This Row],[2025/26 From - Spending review Topic 2]]+Dataset[[#This Row],[2025/26 From - Spending review Topic 3]]+Dataset[[#This Row],[2025/26 From - Spending review Topic 4]]+Dataset[[#This Row],[2025/26 From - Other reallocations]]","v":0},{"$f":"Dataset[[#This Row],[2023/24 To - Spending review Topic 1]]+Dataset[[#This Row],[2023/24 To - Spending review Topic 2]]+Dataset[[#This Row],[2023/24 To - Spending review Topic 3]]+Dataset[[#This Row],[2023/24 To - Spending review Topic 4]]+Dataset[[#This Row],[2023/24 To - Other reallocations]]","v":0},{"$f":"Dataset[[#This Row],[2024/25 To - Spending review Topic 1]]+Dataset[[#This Row],[2024/25 To - Spending review Topic 2]]+Dataset[[#This Row],[2024/25 To - Spending review Topic 3]]+Dataset[[#This Row],[2024/25 To - Spending review Topic 4]]+Dataset[[#This Row],[2024/25 To - Other reallocations]]","v":0},{"$f":"Dataset[[#This Row],[2025/26 To - Spending review Topic 1]]+Dataset[[#This Row],[2025/26 To - Spending review Topic 2]]+Dataset[[#This Row],[2025/26 To - Spending review Topic 3]]+Dataset[[#This Row],[2025/26 To - Spending review Topic 4]]+Dataset[[#This Row],[2025/26 To - Other reallocations]]","v":0},{"$f":"Dataset[[#This Row],[2023/24 Baseline]]+Dataset[[#This Row],[2023/24 From - Total]]+Dataset[[#This Row],[2023/24 To - Total]]","v":0},{"$f":"Dataset[[#This Row],[2024/25 Baseline]]+Dataset[[#This Row],[2024/25 From - Total]]+Dataset[[#This Row],[2024/25 To - Total]]","v":0},{"$f":"Dataset[[#This Row],[2025/26 Baseline]]+Dataset[[#This Row],[2025/26 From - Total]]+Dataset[[#This Row],[2025/26 To - Total]]","v":0}]
["NAT|Non-transfer item","2|Rental and hiring","2023_24","MTEF2023",2,3,1,1113,496,"02","03","01","001113","000496","02|03|01",1,1,2,34,34,"01|01|02|34|34","National","Parliament","Associated Services","Members Facilities","Non-transfer item","Current","Current payments","Goods and services","Rental and hiring","Rental and hiring","General public services","Executive and legislative organs","NAT",0,0,0,0,0,0,0,0,0,0,0,null,null,null,null,null,null,null,null,null,null,null,null,null,null,null,null,null,null,null,null,null,null,null,null,null,null,null,null,null,null,{"$f":"Dataset[[#This Row],[2023/24 From - Spending review Topic 1]]+Dataset[[#This Row],[2023/24 From - Spending review Topic 2]]+Dataset[[#This Row],[2023/24 From - Spending review Topic 3]]+Dataset[[#This Row],[2023/24 From - Spending review Topic 4]]+Dataset[[#This Row],[2023/24 From - Other reallocations]]","v":0},{"$f":"Dataset[[#This Row],[2024/25 From - Spending review Topic 1]]+Dataset[[#This Row],[2024/25 From - Spending review Topic 2]]+Dataset[[#This Row],[2024/25 From - Spending review Topic 3]]+Dataset[[#This Row],[2024/25 From - Spending review Topic 4]]+Dataset[[#This Row],[2024/25 From - Other reallocations]]","v":0},{"$f":"Dataset[[#This Row],[2025/26 From - Spending review Topic 1]]+Dataset[[#This Row],[2025/26 From - Spending review Topic 2]]+Dataset[[#This Row],[2025/26 From - Spending review Topic 3]]+Dataset[[#This Row],[2025/26 From - Spending review Topic 4]]+Dataset[[#This Row],[2025/26 From - Other reallocations]]","v":0},{"$f":"Dataset[[#This Row],[2023/24 To - Spending review Topic 1]]+Dataset[[#This Row],[2023/24 To - Spending review Topic 2]]+Dataset[[#This Row],[2023/24 To - Spending review Topic 3]]+Dataset[[#This Row],[2023/24 To - Spending review Topic 4]]+Dataset[[#This Row],[2023/24 To - Other reallocations]]","v":0},{"$f":"Dataset[[#This Row],[2024/25 To - Spending review Topic 1]]+Dataset[[#This Row],[2024/25 To - Spending review Topic 2]]+Dataset[[#This Row],[2024/25 To - Spending review Topic 3]]+Dataset[[#This Row],[2024/25 To - Spending review Topic 4]]+Dataset[[#This Row],[2024/25 To - Other reallocations]]","v":0},{"$f":"Dataset[[#This Row],[2025/26 To - Spending review Topic 1]]+Dataset[[#This Row],[2025/26 To - Spending review Topic 2]]+Dataset[[#This Row],[2025/26 To - Spending review Topic 3]]+Dataset[[#This Row],[2025/26 To - Spending review Topic 4]]+Dataset[[#This Row],[2025/26 To - Other reallocations]]","v":0},{"$f":"Dataset[[#This Row],[2023/24 Baseline]]+Dataset[[#This Row],[2023/24 From - Total]]+Dataset[[#This Row],[2023/24 To - Total]]","v":0},{"$f":"Dataset[[#This Row],[2024/25 Baseline]]+Dataset[[#This Row],[2024/25 From - Total]]+Dataset[[#This Row],[2024/25 To - Total]]","v":0},{"$f":"Dataset[[#This Row],[2025/26 Baseline]]+Dataset[[#This Row],[2025/26 From - Total]]+Dataset[[#This Row],[2025/26 To - Total]]","v":0}]
["NAT|Non-transfer item","2|Property payments","2023_24","MTEF2023",2,3,1,1114,497,"02","03","01","001114","000497","02|03|01",1,1,2,35,35,"01|01|02|35|35","National","Parliament","Associated Services","Members Facilities","Non-transfer item","Current","Current payments","Goods and services","Property payments","Property payments","General public services","Executive and legislative organs","NAT",0,0,0,0,0,0,0,0,0,0,0,null,null,null,null,null,null,null,null,null,null,null,null,null,null,null,null,null,null,null,null,null,null,null,null,null,null,null,null,null,null,{"$f":"Dataset[[#This Row],[2023/24 From - Spending review Topic 1]]+Dataset[[#This Row],[2023/24 From - Spending review Topic 2]]+Dataset[[#This Row],[2023/24 From - Spending review Topic 3]]+Dataset[[#This Row],[2023/24 From - Spending review Topic 4]]+Dataset[[#This Row],[2023/24 From - Other reallocations]]","v":0},{"$f":"Dataset[[#This Row],[2024/25 From - Spending review Topic 1]]+Dataset[[#This Row],[2024/25 From - Spending review Topic 2]]+Dataset[[#This Row],[2024/25 From - Spending review Topic 3]]+Dataset[[#This Row],[2024/25 From - Spending review Topic 4]]+Dataset[[#This Row],[2024/25 From - Other reallocations]]","v":0},{"$f":"Dataset[[#This Row],[2025/26 From - Spending review Topic 1]]+Dataset[[#This Row],[2025/26 From - Spending review Topic 2]]+Dataset[[#This Row],[2025/26 From - Spending review Topic 3]]+Dataset[[#This Row],[2025/26 From - Spending review Topic 4]]+Dataset[[#This Row],[2025/26 From - Other reallocations]]","v":0},{"$f":"Dataset[[#This Row],[2023/24 To - Spending review Topic 1]]+Dataset[[#This Row],[2023/24 To - Spending review Topic 2]]+Dataset[[#This Row],[2023/24 To - Spending review Topic 3]]+Dataset[[#This Row],[2023/24 To - Spending review Topic 4]]+Dataset[[#This Row],[2023/24 To - Other reallocations]]","v":0},{"$f":"Dataset[[#This Row],[2024/25 To - Spending review Topic 1]]+Dataset[[#This Row],[2024/25 To - Spending review Topic 2]]+Dataset[[#This Row],[2024/25 To - Spending review Topic 3]]+Dataset[[#This Row],[2024/25 To - Spending review Topic 4]]+Dataset[[#This Row],[2024/25 To - Other reallocations]]","v":0},{"$f":"Dataset[[#This Row],[2025/26 To - Spending review Topic 1]]+Dataset[[#This Row],[2025/26 To - Spending review Topic 2]]+Dataset[[#This Row],[2025/26 To - Spending review Topic 3]]+Dataset[[#This Row],[2025/26 To - Spending review Topic 4]]+Dataset[[#This Row],[2025/26 To - Other reallocations]]","v":0},{"$f":"Dataset[[#This Row],[2023/24 Baseline]]+Dataset[[#This Row],[2023/24 From - Total]]+Dataset[[#This Row],[2023/24 To - Total]]","v":0},{"$f":"Dataset[[#This Row],[2024/25 Baseline]]+Dataset[[#This Row],[2024/25 From - Total]]+Dataset[[#This Row],[2024/25 To - Total]]","v":0},{"$f":"Dataset[[#This Row],[2025/26 Baseline]]+Dataset[[#This Row],[2025/26 From - Total]]+Dataset[[#This Row],[2025/26 To - Total]]","v":0}]
["NAT|Non-transfer item","2|Transport provided: Departmental activity","2023_24","MTEF2023",2,3,1,1115,498,"02","03","01","001115","000498","02|03|01",1,1,2,36,36,"01|01|02|36|36","National","Parliament","Associated Services","Members Facilities","Non-transfer item","Current","Current payments","Goods and services","Transport provided: Departmental activity","Transport provided: Departmental activity","General public services","Executive and legislative organs","NAT",0,0,0,0,0,0,0,0,0,0,0,null,null,null,null,null,null,null,null,null,null,null,null,null,null,null,null,null,null,null,null,null,null,null,null,null,null,null,null,null,null,{"$f":"Dataset[[#This Row],[2023/24 From - Spending review Topic 1]]+Dataset[[#This Row],[2023/24 From - Spending review Topic 2]]+Dataset[[#This Row],[2023/24 From - Spending review Topic 3]]+Dataset[[#This Row],[2023/24 From - Spending review Topic 4]]+Dataset[[#This Row],[2023/24 From - Other reallocations]]","v":0},{"$f":"Dataset[[#This Row],[2024/25 From - Spending review Topic 1]]+Dataset[[#This Row],[2024/25 From - Spending review Topic 2]]+Dataset[[#This Row],[2024/25 From - Spending review Topic 3]]+Dataset[[#This Row],[2024/25 From - Spending review Topic 4]]+Dataset[[#This Row],[2024/25 From - Other reallocations]]","v":0},{"$f":"Dataset[[#This Row],[2025/26 From - Spending review Topic 1]]+Dataset[[#This Row],[2025/26 From - Spending review Topic 2]]+Dataset[[#This Row],[2025/26 From - Spending review Topic 3]]+Dataset[[#This Row],[2025/26 From - Spending review Topic 4]]+Dataset[[#This Row],[2025/26 From - Other reallocations]]","v":0},{"$f":"Dataset[[#This Row],[2023/24 To - Spending review Topic 1]]+Dataset[[#This Row],[2023/24 To - Spending review Topic 2]]+Dataset[[#This Row],[2023/24 To - Spending review Topic 3]]+Dataset[[#This Row],[2023/24 To - Spending review Topic 4]]+Dataset[[#This Row],[2023/24 To - Other reallocations]]","v":0},{"$f":"Dataset[[#This Row],[2024/25 To - Spending review Topic 1]]+Dataset[[#This Row],[2024/25 To - Spending review Topic 2]]+Dataset[[#This Row],[2024/25 To - Spending review Topic 3]]+Dataset[[#This Row],[2024/25 To - Spending review Topic 4]]+Dataset[[#This Row],[2024/25 To - Other reallocations]]","v":0},{"$f":"Dataset[[#This Row],[2025/26 To - Spending review Topic 1]]+Dataset[[#This Row],[2025/26 To - Spending review Topic 2]]+Dataset[[#This Row],[2025/26 To - Spending review Topic 3]]+Dataset[[#This Row],[2025/26 To - Spending review Topic 4]]+Dataset[[#This Row],[2025/26 To - Other reallocations]]","v":0},{"$f":"Dataset[[#This Row],[2023/24 Baseline]]+Dataset[[#This Row],[2023/24 From - Total]]+Dataset[[#This Row],[2023/24 To - Total]]","v":0},{"$f":"Dataset[[#This Row],[2024/25 Baseline]]+Dataset[[#This Row],[2024/25 From - Total]]+Dataset[[#This Row],[2024/25 To - Total]]","v":0},{"$f":"Dataset[[#This Row],[2025/26 Baseline]]+Dataset[[#This Row],[2025/26 From - Total]]+Dataset[[#This Row],[2025/26 To - Total]]","v":0}]
["NAT|Non-transfer item","2|Travel and subsistence","2023_24","MTEF2023",2,3,1,1116,499,"02","03","01","001116","000499","02|03|01",1,1,2,37,37,"01|01|02|37|37","National","Parliament","Associated Services","Members Facilities","Non-transfer item","Current","Current payments","Goods and services","Travel and subsistence","Travel and subsistence","General public services","Executive and legislative organs","NAT",153824,127127,138052,140498,140498,140498,0,161167,146847,151907,158712,null,null,null,null,null,null,null,null,null,null,null,null,null,null,null,null,null,null,null,null,null,null,null,null,null,null,null,null,null,null,{"$f":"Dataset[[#This Row],[2023/24 From - Spending review Topic 1]]+Dataset[[#This Row],[2023/24 From - Spending review Topic 2]]+Dataset[[#This Row],[2023/24 From - Spending review Topic 3]]+Dataset[[#This Row],[2023/24 From - Spending review Topic 4]]+Dataset[[#This Row],[2023/24 From - Other reallocations]]","v":0},{"$f":"Dataset[[#This Row],[2024/25 From - Spending review Topic 1]]+Dataset[[#This Row],[2024/25 From - Spending review Topic 2]]+Dataset[[#This Row],[2024/25 From - Spending review Topic 3]]+Dataset[[#This Row],[2024/25 From - Spending review Topic 4]]+Dataset[[#This Row],[2024/25 From - Other reallocations]]","v":0},{"$f":"Dataset[[#This Row],[2025/26 From - Spending review Topic 1]]+Dataset[[#This Row],[2025/26 From - Spending review Topic 2]]+Dataset[[#This Row],[2025/26 From - Spending review Topic 3]]+Dataset[[#This Row],[2025/26 From - Spending review Topic 4]]+Dataset[[#This Row],[2025/26 From - Other reallocations]]","v":0},{"$f":"Dataset[[#This Row],[2023/24 To - Spending review Topic 1]]+Dataset[[#This Row],[2023/24 To - Spending review Topic 2]]+Dataset[[#This Row],[2023/24 To - Spending review Topic 3]]+Dataset[[#This Row],[2023/24 To - Spending review Topic 4]]+Dataset[[#This Row],[2023/24 To - Other reallocations]]","v":0},{"$f":"Dataset[[#This Row],[2024/25 To - Spending review Topic 1]]+Dataset[[#This Row],[2024/25 To - Spending review Topic 2]]+Dataset[[#This Row],[2024/25 To - Spending review Topic 3]]+Dataset[[#This Row],[2024/25 To - Spending review Topic 4]]+Dataset[[#This Row],[2024/25 To - Other reallocations]]","v":0},{"$f":"Dataset[[#This Row],[2025/26 To - Spending review Topic 1]]+Dataset[[#This Row],[2025/26 To - Spending review Topic 2]]+Dataset[[#This Row],[2025/26 To - Spending review Topic 3]]+Dataset[[#This Row],[2025/26 To - Spending review Topic 4]]+Dataset[[#This Row],[2025/26 To - Other reallocations]]","v":0},{"$f":"Dataset[[#This Row],[2023/24 Baseline]]+Dataset[[#This Row],[2023/24 From - Total]]+Dataset[[#This Row],[2023/24 To - Total]]","v":146847},{"$f":"Dataset[[#This Row],[2024/25 Baseline]]+Dataset[[#This Row],[2024/25 From - Total]]+Dataset[[#This Row],[2024/25 To - Total]]","v":151907},{"$f":"Dataset[[#This Row],[2025/26 Baseline]]+Dataset[[#This Row],[2025/26 From - Total]]+Dataset[[#This Row],[2025/26 To - Total]]","v":158712}]
["NAT|Non-transfer item","2|Training and development","2023_24","MTEF2023",2,3,1,1117,500,"02","03","01","001117","000500","02|03|01",1,1,2,38,38,"01|01|02|38|38","National","Parliament","Associated Services","Members Facilities","Non-transfer item","Current","Current payments","Goods and services","Training and development","Training and development","General public services","Executive and legislative organs","NAT",4473,4723,4983,5081,5081,5081,0,5216,5236,5471,5716,null,null,null,null,null,null,null,null,null,null,null,null,null,null,null,null,null,null,null,null,null,null,null,null,null,null,null,null,null,null,{"$f":"Dataset[[#This Row],[2023/24 From - Spending review Topic 1]]+Dataset[[#This Row],[2023/24 From - Spending review Topic 2]]+Dataset[[#This Row],[2023/24 From - Spending review Topic 3]]+Dataset[[#This Row],[2023/24 From - Spending review Topic 4]]+Dataset[[#This Row],[2023/24 From - Other reallocations]]","v":0},{"$f":"Dataset[[#This Row],[2024/25 From - Spending review Topic 1]]+Dataset[[#This Row],[2024/25 From - Spending review Topic 2]]+Dataset[[#This Row],[2024/25 From - Spending review Topic 3]]+Dataset[[#This Row],[2024/25 From - Spending review Topic 4]]+Dataset[[#This Row],[2024/25 From - Other reallocations]]","v":0},{"$f":"Dataset[[#This Row],[2025/26 From - Spending review Topic 1]]+Dataset[[#This Row],[2025/26 From - Spending review Topic 2]]+Dataset[[#This Row],[2025/26 From - Spending review Topic 3]]+Dataset[[#This Row],[2025/26 From - Spending review Topic 4]]+Dataset[[#This Row],[2025/26 From - Other reallocations]]","v":0},{"$f":"Dataset[[#This Row],[2023/24 To - Spending review Topic 1]]+Dataset[[#This Row],[2023/24 To - Spending review Topic 2]]+Dataset[[#This Row],[2023/24 To - Spending review Topic 3]]+Dataset[[#This Row],[2023/24 To - Spending review Topic 4]]+Dataset[[#This Row],[2023/24 To - Other reallocations]]","v":0},{"$f":"Dataset[[#This Row],[2024/25 To - Spending review Topic 1]]+Dataset[[#This Row],[2024/25 To - Spending review Topic 2]]+Dataset[[#This Row],[2024/25 To - Spending review Topic 3]]+Dataset[[#This Row],[2024/25 To - Spending review Topic 4]]+Dataset[[#This Row],[2024/25 To - Other reallocations]]","v":0},{"$f":"Dataset[[#This Row],[2025/26 To - Spending review Topic 1]]+Dataset[[#This Row],[2025/26 To - Spending review Topic 2]]+Dataset[[#This Row],[2025/26 To - Spending review Topic 3]]+Dataset[[#This Row],[2025/26 To - Spending review Topic 4]]+Dataset[[#This Row],[2025/26 To - Other reallocations]]","v":0},{"$f":"Dataset[[#This Row],[2023/24 Baseline]]+Dataset[[#This Row],[2023/24 From - Total]]+Dataset[[#This Row],[2023/24 To - Total]]","v":5236},{"$f":"Dataset[[#This Row],[2024/25 Baseline]]+Dataset[[#This Row],[2024/25 From - Total]]+Dataset[[#This Row],[2024/25 To - Total]]","v":5471},{"$f":"Dataset[[#This Row],[2025/26 Baseline]]+Dataset[[#This Row],[2025/26 From - Total]]+Dataset[[#This Row],[2025/26 To - Total]]","v":5716}]
["NAT|Non-transfer item","2|Operating payments","2023_24","MTEF2023",2,3,1,1118,501,"02","03","01","001118","000501","02|03|01",1,1,2,39,39,"01|01|02|39|39","National","Parliament","Associated Services","Members Facilities","Non-transfer item","Current","Current payments","Goods and services","Operating payments","Operating payments","General public services","Executive and legislative organs","NAT",10843,11450,8830,9003,9003,9003,0,9243,9279,9696,10130,null,null,null,null,null,null,null,null,null,null,null,null,null,null,null,null,null,null,null,null,null,null,null,null,null,null,null,null,null,null,{"$f":"Dataset[[#This Row],[2023/24 From - Spending review Topic 1]]+Dataset[[#This Row],[2023/24 From - Spending review Topic 2]]+Dataset[[#This Row],[2023/24 From - Spending review Topic 3]]+Dataset[[#This Row],[2023/24 From - Spending review Topic 4]]+Dataset[[#This Row],[2023/24 From - Other reallocations]]","v":0},{"$f":"Dataset[[#This Row],[2024/25 From - Spending review Topic 1]]+Dataset[[#This Row],[2024/25 From - Spending review Topic 2]]+Dataset[[#This Row],[2024/25 From - Spending review Topic 3]]+Dataset[[#This Row],[2024/25 From - Spending review Topic 4]]+Dataset[[#This Row],[2024/25 From - Other reallocations]]","v":0},{"$f":"Dataset[[#This Row],[2025/26 From - Spending review Topic 1]]+Dataset[[#This Row],[2025/26 From - Spending review Topic 2]]+Dataset[[#This Row],[2025/26 From - Spending review Topic 3]]+Dataset[[#This Row],[2025/26 From - Spending review Topic 4]]+Dataset[[#This Row],[2025/26 From - Other reallocations]]","v":0},{"$f":"Dataset[[#This Row],[2023/24 To - Spending review Topic 1]]+Dataset[[#This Row],[2023/24 To - Spending review Topic 2]]+Dataset[[#This Row],[2023/24 To - Spending review Topic 3]]+Dataset[[#This Row],[2023/24 To - Spending review Topic 4]]+Dataset[[#This Row],[2023/24 To - Other reallocations]]","v":0},{"$f":"Dataset[[#This Row],[2024/25 To - Spending review Topic 1]]+Dataset[[#This Row],[2024/25 To - Spending review Topic 2]]+Dataset[[#This Row],[2024/25 To - Spending review Topic 3]]+Dataset[[#This Row],[2024/25 To - Spending review Topic 4]]+Dataset[[#This Row],[2024/25 To - Other reallocations]]","v":0},{"$f":"Dataset[[#This Row],[2025/26 To - Spending review Topic 1]]+Dataset[[#This Row],[2025/26 To - Spending review Topic 2]]+Dataset[[#This Row],[2025/26 To - Spending review Topic 3]]+Dataset[[#This Row],[2025/26 To - Spending review Topic 4]]+Dataset[[#This Row],[2025/26 To - Other reallocations]]","v":0},{"$f":"Dataset[[#This Row],[2023/24 Baseline]]+Dataset[[#This Row],[2023/24 From - Total]]+Dataset[[#This Row],[2023/24 To - Total]]","v":9279},{"$f":"Dataset[[#This Row],[2024/25 Baseline]]+Dataset[[#This Row],[2024/25 From - Total]]+Dataset[[#This Row],[2024/25 To - Total]]","v":9696},{"$f":"Dataset[[#This Row],[2025/26 Baseline]]+Dataset[[#This Row],[2025/26 From - Total]]+Dataset[[#This Row],[2025/26 To - Total]]","v":10130}]
["NAT|Non-transfer item","2|Venues and facilities","2023_24","MTEF2023",2,3,1,1119,502,"02","03","01","001119","000502","02|03|01",1,1,2,40,40,"01|01|02|40|40","National","Parliament","Associated Services","Members Facilities","Non-transfer item","Current","Current payments","Goods and services","Venues and facilities","Venues and facilities","General public services","Executive and legislative organs","NAT",0,0,0,0,0,0,0,0,0,0,0,null,null,null,null,null,null,null,null,null,null,null,null,null,null,null,null,null,null,null,null,null,null,null,null,null,null,null,null,null,null,{"$f":"Dataset[[#This Row],[2023/24 From - Spending review Topic 1]]+Dataset[[#This Row],[2023/24 From - Spending review Topic 2]]+Dataset[[#This Row],[2023/24 From - Spending review Topic 3]]+Dataset[[#This Row],[2023/24 From - Spending review Topic 4]]+Dataset[[#This Row],[2023/24 From - Other reallocations]]","v":0},{"$f":"Dataset[[#This Row],[2024/25 From - Spending review Topic 1]]+Dataset[[#This Row],[2024/25 From - Spending review Topic 2]]+Dataset[[#This Row],[2024/25 From - Spending review Topic 3]]+Dataset[[#This Row],[2024/25 From - Spending review Topic 4]]+Dataset[[#This Row],[2024/25 From - Other reallocations]]","v":0},{"$f":"Dataset[[#This Row],[2025/26 From - Spending review Topic 1]]+Dataset[[#This Row],[2025/26 From - Spending review Topic 2]]+Dataset[[#This Row],[2025/26 From - Spending review Topic 3]]+Dataset[[#This Row],[2025/26 From - Spending review Topic 4]]+Dataset[[#This Row],[2025/26 From - Other reallocations]]","v":0},{"$f":"Dataset[[#This Row],[2023/24 To - Spending review Topic 1]]+Dataset[[#This Row],[2023/24 To - Spending review Topic 2]]+Dataset[[#This Row],[2023/24 To - Spending review Topic 3]]+Dataset[[#This Row],[2023/24 To - Spending review Topic 4]]+Dataset[[#This Row],[2023/24 To - Other reallocations]]","v":0},{"$f":"Dataset[[#This Row],[2024/25 To - Spending review Topic 1]]+Dataset[[#This Row],[2024/25 To - Spending review Topic 2]]+Dataset[[#This Row],[2024/25 To - Spending review Topic 3]]+Dataset[[#This Row],[2024/25 To - Spending review Topic 4]]+Dataset[[#This Row],[2024/25 To - Other reallocations]]","v":0},{"$f":"Dataset[[#This Row],[2025/26 To - Spending review Topic 1]]+Dataset[[#This Row],[2025/26 To - Spending review Topic 2]]+Dataset[[#This Row],[2025/26 To - Spending review Topic 3]]+Dataset[[#This Row],[2025/26 To - Spending review Topic 4]]+Dataset[[#This Row],[2025/26 To - Other reallocations]]","v":0},{"$f":"Dataset[[#This Row],[2023/24 Baseline]]+Dataset[[#This Row],[2023/24 From - Total]]+Dataset[[#This Row],[2023/24 To - Total]]","v":0},{"$f":"Dataset[[#This Row],[2024/25 Baseline]]+Dataset[[#This Row],[2024/25 From - Total]]+Dataset[[#This Row],[2024/25 To - Total]]","v":0},{"$f":"Dataset[[#This Row],[2025/26 Baseline]]+Dataset[[#This Row],[2025/26 From - Total]]+Dataset[[#This Row],[2025/26 To - Total]]","v":0}]
["NAT|Non-transfer item","2|Interest (Incl. interest on unitary payments (PPP))","2023_24","MTEF2023",2,3,1,1120,503,"02","03","01","001120","000503","02|03|01",1,1,3,41,41,"01|01|03|41|41","National","Parliament","Associated Services","Members Facilities","Non-transfer item","Current","Current payments","Interest and rent on land","Interest (Incl. interest on unitary payments (PPP))","Interest (Incl. interest on unitary payments (PPP))","General public services","Executive and legislative organs","NAT",0,0,0,0,0,0,0,0,0,0,0,null,null,null,null,null,null,null,null,null,null,null,null,null,null,null,null,null,null,null,null,null,null,null,null,null,null,null,null,null,null,{"$f":"Dataset[[#This Row],[2023/24 From - Spending review Topic 1]]+Dataset[[#This Row],[2023/24 From - Spending review Topic 2]]+Dataset[[#This Row],[2023/24 From - Spending review Topic 3]]+Dataset[[#This Row],[2023/24 From - Spending review Topic 4]]+Dataset[[#This Row],[2023/24 From - Other reallocations]]","v":0},{"$f":"Dataset[[#This Row],[2024/25 From - Spending review Topic 1]]+Dataset[[#This Row],[2024/25 From - Spending review Topic 2]]+Dataset[[#This Row],[2024/25 From - Spending review Topic 3]]+Dataset[[#This Row],[2024/25 From - Spending review Topic 4]]+Dataset[[#This Row],[2024/25 From - Other reallocations]]","v":0},{"$f":"Dataset[[#This Row],[2025/26 From - Spending review Topic 1]]+Dataset[[#This Row],[2025/26 From - Spending review Topic 2]]+Dataset[[#This Row],[2025/26 From - Spending review Topic 3]]+Dataset[[#This Row],[2025/26 From - Spending review Topic 4]]+Dataset[[#This Row],[2025/26 From - Other reallocations]]","v":0},{"$f":"Dataset[[#This Row],[2023/24 To - Spending review Topic 1]]+Dataset[[#This Row],[2023/24 To - Spending review Topic 2]]+Dataset[[#This Row],[2023/24 To - Spending review Topic 3]]+Dataset[[#This Row],[2023/24 To - Spending review Topic 4]]+Dataset[[#This Row],[2023/24 To - Other reallocations]]","v":0},{"$f":"Dataset[[#This Row],[2024/25 To - Spending review Topic 1]]+Dataset[[#This Row],[2024/25 To - Spending review Topic 2]]+Dataset[[#This Row],[2024/25 To - Spending review Topic 3]]+Dataset[[#This Row],[2024/25 To - Spending review Topic 4]]+Dataset[[#This Row],[2024/25 To - Other reallocations]]","v":0},{"$f":"Dataset[[#This Row],[2025/26 To - Spending review Topic 1]]+Dataset[[#This Row],[2025/26 To - Spending review Topic 2]]+Dataset[[#This Row],[2025/26 To - Spending review Topic 3]]+Dataset[[#This Row],[2025/26 To - Spending review Topic 4]]+Dataset[[#This Row],[2025/26 To - Other reallocations]]","v":0},{"$f":"Dataset[[#This Row],[2023/24 Baseline]]+Dataset[[#This Row],[2023/24 From - Total]]+Dataset[[#This Row],[2023/24 To - Total]]","v":0},{"$f":"Dataset[[#This Row],[2024/25 Baseline]]+Dataset[[#This Row],[2024/25 From - Total]]+Dataset[[#This Row],[2024/25 To - Total]]","v":0},{"$f":"Dataset[[#This Row],[2025/26 Baseline]]+Dataset[[#This Row],[2025/26 From - Total]]+Dataset[[#This Row],[2025/26 To - Total]]","v":0}]
["NAT|Non-transfer item","2|Rent on land","2023_24","MTEF2023",2,3,1,1121,504,"02","03","01","001121","000504","02|03|01",1,1,3,42,42,"01|01|03|42|42","National","Parliament","Associated Services","Members Facilities","Non-transfer item","Current","Current payments","Interest and rent on land","Rent on land","Rent on land","General public services","Executive and legislative organs","NAT",0,0,0,0,0,0,0,0,0,0,0,null,null,null,null,null,null,null,null,null,null,null,null,null,null,null,null,null,null,null,null,null,null,null,null,null,null,null,null,null,null,{"$f":"Dataset[[#This Row],[2023/24 From - Spending review Topic 1]]+Dataset[[#This Row],[2023/24 From - Spending review Topic 2]]+Dataset[[#This Row],[2023/24 From - Spending review Topic 3]]+Dataset[[#This Row],[2023/24 From - Spending review Topic 4]]+Dataset[[#This Row],[2023/24 From - Other reallocations]]","v":0},{"$f":"Dataset[[#This Row],[2024/25 From - Spending review Topic 1]]+Dataset[[#This Row],[2024/25 From - Spending review Topic 2]]+Dataset[[#This Row],[2024/25 From - Spending review Topic 3]]+Dataset[[#This Row],[2024/25 From - Spending review Topic 4]]+Dataset[[#This Row],[2024/25 From - Other reallocations]]","v":0},{"$f":"Dataset[[#This Row],[2025/26 From - Spending review Topic 1]]+Dataset[[#This Row],[2025/26 From - Spending review Topic 2]]+Dataset[[#This Row],[2025/26 From - Spending review Topic 3]]+Dataset[[#This Row],[2025/26 From - Spending review Topic 4]]+Dataset[[#This Row],[2025/26 From - Other reallocations]]","v":0},{"$f":"Dataset[[#This Row],[2023/24 To - Spending review Topic 1]]+Dataset[[#This Row],[2023/24 To - Spending review Topic 2]]+Dataset[[#This Row],[2023/24 To - Spending review Topic 3]]+Dataset[[#This Row],[2023/24 To - Spending review Topic 4]]+Dataset[[#This Row],[2023/24 To - Other reallocations]]","v":0},{"$f":"Dataset[[#This Row],[2024/25 To - Spending review Topic 1]]+Dataset[[#This Row],[2024/25 To - Spending review Topic 2]]+Dataset[[#This Row],[2024/25 To - Spending review Topic 3]]+Dataset[[#This Row],[2024/25 To - Spending review Topic 4]]+Dataset[[#This Row],[2024/25 To - Other reallocations]]","v":0},{"$f":"Dataset[[#This Row],[2025/26 To - Spending review Topic 1]]+Dataset[[#This Row],[2025/26 To - Spending review Topic 2]]+Dataset[[#This Row],[2025/26 To - Spending review Topic 3]]+Dataset[[#This Row],[2025/26 To - Spending review Topic 4]]+Dataset[[#This Row],[2025/26 To - Other reallocations]]","v":0},{"$f":"Dataset[[#This Row],[2023/24 Baseline]]+Dataset[[#This Row],[2023/24 From - Total]]+Dataset[[#This Row],[2023/24 To - Total]]","v":0},{"$f":"Dataset[[#This Row],[2024/25 Baseline]]+Dataset[[#This Row],[2024/25 From - Total]]+Dataset[[#This Row],[2024/25 To - Total]]","v":0},{"$f":"Dataset[[#This Row],[2025/26 Baseline]]+Dataset[[#This Row],[2025/26 From - Total]]+Dataset[[#This Row],[2025/26 To - Total]]","v":0}]
["NAT|Non-transfer item","2|Provincial Revenue Funds","2023_24","MTEF2023",2,3,1,1122,505,"02","03","01","001122","000505","02|03|01",1,2,4,43,43,"01|02|04|43|43","National","Parliament","Associated Services","Members Facilities","Non-transfer item","Current","Transfers and subsidies","Provinces and municipalities","Provinces","Provincial Revenue Funds","General public services","Executive and legislative organs","NAT",0,0,0,0,0,0,0,0,0,0,0,null,null,null,null,null,null,null,null,null,null,null,null,null,null,null,null,null,null,null,null,null,null,null,null,null,null,null,null,null,null,{"$f":"Dataset[[#This Row],[2023/24 From - Spending review Topic 1]]+Dataset[[#This Row],[2023/24 From - Spending review Topic 2]]+Dataset[[#This Row],[2023/24 From - Spending review Topic 3]]+Dataset[[#This Row],[2023/24 From - Spending review Topic 4]]+Dataset[[#This Row],[2023/24 From - Other reallocations]]","v":0},{"$f":"Dataset[[#This Row],[2024/25 From - Spending review Topic 1]]+Dataset[[#This Row],[2024/25 From - Spending review Topic 2]]+Dataset[[#This Row],[2024/25 From - Spending review Topic 3]]+Dataset[[#This Row],[2024/25 From - Spending review Topic 4]]+Dataset[[#This Row],[2024/25 From - Other reallocations]]","v":0},{"$f":"Dataset[[#This Row],[2025/26 From - Spending review Topic 1]]+Dataset[[#This Row],[2025/26 From - Spending review Topic 2]]+Dataset[[#This Row],[2025/26 From - Spending review Topic 3]]+Dataset[[#This Row],[2025/26 From - Spending review Topic 4]]+Dataset[[#This Row],[2025/26 From - Other reallocations]]","v":0},{"$f":"Dataset[[#This Row],[2023/24 To - Spending review Topic 1]]+Dataset[[#This Row],[2023/24 To - Spending review Topic 2]]+Dataset[[#This Row],[2023/24 To - Spending review Topic 3]]+Dataset[[#This Row],[2023/24 To - Spending review Topic 4]]+Dataset[[#This Row],[2023/24 To - Other reallocations]]","v":0},{"$f":"Dataset[[#This Row],[2024/25 To - Spending review Topic 1]]+Dataset[[#This Row],[2024/25 To - Spending review Topic 2]]+Dataset[[#This Row],[2024/25 To - Spending review Topic 3]]+Dataset[[#This Row],[2024/25 To - Spending review Topic 4]]+Dataset[[#This Row],[2024/25 To - Other reallocations]]","v":0},{"$f":"Dataset[[#This Row],[2025/26 To - Spending review Topic 1]]+Dataset[[#This Row],[2025/26 To - Spending review Topic 2]]+Dataset[[#This Row],[2025/26 To - Spending review Topic 3]]+Dataset[[#This Row],[2025/26 To - Spending review Topic 4]]+Dataset[[#This Row],[2025/26 To - Other reallocations]]","v":0},{"$f":"Dataset[[#This Row],[2023/24 Baseline]]+Dataset[[#This Row],[2023/24 From - Total]]+Dataset[[#This Row],[2023/24 To - Total]]","v":0},{"$f":"Dataset[[#This Row],[2024/25 Baseline]]+Dataset[[#This Row],[2024/25 From - Total]]+Dataset[[#This Row],[2024/25 To - Total]]","v":0},{"$f":"Dataset[[#This Row],[2025/26 Baseline]]+Dataset[[#This Row],[2025/26 From - Total]]+Dataset[[#This Row],[2025/26 To - Total]]","v":0}]
["NAT|Non-transfer item","2|Provincial agencies and funds","2023_24","MTEF2023",2,3,1,1123,506,"02","03","01","001123","000506","02|03|01",1,2,4,43,44,"01|02|04|43|44","National","Parliament","Associated Services","Members Facilities","Non-transfer item","Current","Transfers and subsidies","Provinces and municipalities","Provinces","Provincial agencies and funds","General public services","Executive and legislative organs","NAT",0,0,0,0,0,0,0,0,0,0,0,null,null,null,null,null,null,null,null,null,null,null,null,null,null,null,null,null,null,null,null,null,null,null,null,null,null,null,null,null,null,{"$f":"Dataset[[#This Row],[2023/24 From - Spending review Topic 1]]+Dataset[[#This Row],[2023/24 From - Spending review Topic 2]]+Dataset[[#This Row],[2023/24 From - Spending review Topic 3]]+Dataset[[#This Row],[2023/24 From - Spending review Topic 4]]+Dataset[[#This Row],[2023/24 From - Other reallocations]]","v":0},{"$f":"Dataset[[#This Row],[2024/25 From - Spending review Topic 1]]+Dataset[[#This Row],[2024/25 From - Spending review Topic 2]]+Dataset[[#This Row],[2024/25 From - Spending review Topic 3]]+Dataset[[#This Row],[2024/25 From - Spending review Topic 4]]+Dataset[[#This Row],[2024/25 From - Other reallocations]]","v":0},{"$f":"Dataset[[#This Row],[2025/26 From - Spending review Topic 1]]+Dataset[[#This Row],[2025/26 From - Spending review Topic 2]]+Dataset[[#This Row],[2025/26 From - Spending review Topic 3]]+Dataset[[#This Row],[2025/26 From - Spending review Topic 4]]+Dataset[[#This Row],[2025/26 From - Other reallocations]]","v":0},{"$f":"Dataset[[#This Row],[2023/24 To - Spending review Topic 1]]+Dataset[[#This Row],[2023/24 To - Spending review Topic 2]]+Dataset[[#This Row],[2023/24 To - Spending review Topic 3]]+Dataset[[#This Row],[2023/24 To - Spending review Topic 4]]+Dataset[[#This Row],[2023/24 To - Other reallocations]]","v":0},{"$f":"Dataset[[#This Row],[2024/25 To - Spending review Topic 1]]+Dataset[[#This Row],[2024/25 To - Spending review Topic 2]]+Dataset[[#This Row],[2024/25 To - Spending review Topic 3]]+Dataset[[#This Row],[2024/25 To - Spending review Topic 4]]+Dataset[[#This Row],[2024/25 To - Other reallocations]]","v":0},{"$f":"Dataset[[#This Row],[2025/26 To - Spending review Topic 1]]+Dataset[[#This Row],[2025/26 To - Spending review Topic 2]]+Dataset[[#This Row],[2025/26 To - Spending review Topic 3]]+Dataset[[#This Row],[2025/26 To - Spending review Topic 4]]+Dataset[[#This Row],[2025/26 To - Other reallocations]]","v":0},{"$f":"Dataset[[#This Row],[2023/24 Baseline]]+Dataset[[#This Row],[2023/24 From - Total]]+Dataset[[#This Row],[2023/24 To - Total]]","v":0},{"$f":"Dataset[[#This Row],[2024/25 Baseline]]+Dataset[[#This Row],[2024/25 From - Total]]+Dataset[[#This Row],[2024/25 To - Total]]","v":0},{"$f":"Dataset[[#This Row],[2025/26 Baseline]]+Dataset[[#This Row],[2025/26 From - Total]]+Dataset[[#This Row],[2025/26 To - Total]]","v":0}]
["NAT|Non-transfer item","2|Municipal bank accounts","2023_24","MTEF2023",2,3,1,1124,507,"02","03","01","001124","000507","02|03|01",1,2,4,44,45,"01|02|04|44|45","National","Parliament","Associated Services","Members Facilities","Non-transfer item","Current","Transfers and subsidies","Provinces and municipalities","Municipalities","Municipal bank accounts","General public services","Executive and legislative organs","NAT",0,0,0,0,0,0,0,0,0,0,0,null,null,null,null,null,null,null,null,null,null,null,null,null,null,null,null,null,null,null,null,null,null,null,null,null,null,null,null,null,null,{"$f":"Dataset[[#This Row],[2023/24 From - Spending review Topic 1]]+Dataset[[#This Row],[2023/24 From - Spending review Topic 2]]+Dataset[[#This Row],[2023/24 From - Spending review Topic 3]]+Dataset[[#This Row],[2023/24 From - Spending review Topic 4]]+Dataset[[#This Row],[2023/24 From - Other reallocations]]","v":0},{"$f":"Dataset[[#This Row],[2024/25 From - Spending review Topic 1]]+Dataset[[#This Row],[2024/25 From - Spending review Topic 2]]+Dataset[[#This Row],[2024/25 From - Spending review Topic 3]]+Dataset[[#This Row],[2024/25 From - Spending review Topic 4]]+Dataset[[#This Row],[2024/25 From - Other reallocations]]","v":0},{"$f":"Dataset[[#This Row],[2025/26 From - Spending review Topic 1]]+Dataset[[#This Row],[2025/26 From - Spending review Topic 2]]+Dataset[[#This Row],[2025/26 From - Spending review Topic 3]]+Dataset[[#This Row],[2025/26 From - Spending review Topic 4]]+Dataset[[#This Row],[2025/26 From - Other reallocations]]","v":0},{"$f":"Dataset[[#This Row],[2023/24 To - Spending review Topic 1]]+Dataset[[#This Row],[2023/24 To - Spending review Topic 2]]+Dataset[[#This Row],[2023/24 To - Spending review Topic 3]]+Dataset[[#This Row],[2023/24 To - Spending review Topic 4]]+Dataset[[#This Row],[2023/24 To - Other reallocations]]","v":0},{"$f":"Dataset[[#This Row],[2024/25 To - Spending review Topic 1]]+Dataset[[#This Row],[2024/25 To - Spending review Topic 2]]+Dataset[[#This Row],[2024/25 To - Spending review Topic 3]]+Dataset[[#This Row],[2024/25 To - Spending review Topic 4]]+Dataset[[#This Row],[2024/25 To - Other reallocations]]","v":0},{"$f":"Dataset[[#This Row],[2025/26 To - Spending review Topic 1]]+Dataset[[#This Row],[2025/26 To - Spending review Topic 2]]+Dataset[[#This Row],[2025/26 To - Spending review Topic 3]]+Dataset[[#This Row],[2025/26 To - Spending review Topic 4]]+Dataset[[#This Row],[2025/26 To - Other reallocations]]","v":0},{"$f":"Dataset[[#This Row],[2023/24 Baseline]]+Dataset[[#This Row],[2023/24 From - Total]]+Dataset[[#This Row],[2023/24 To - Total]]","v":0},{"$f":"Dataset[[#This Row],[2024/25 Baseline]]+Dataset[[#This Row],[2024/25 From - Total]]+Dataset[[#This Row],[2024/25 To - Total]]","v":0},{"$f":"Dataset[[#This Row],[2025/26 Baseline]]+Dataset[[#This Row],[2025/26 From - Total]]+Dataset[[#This Row],[2025/26 To - Total]]","v":0}]
["NAT|Non-transfer item","2|Municipal agencies and funds","2023_24","MTEF2023",2,3,1,1125,508,"02","03","01","001125","000508","02|03|01",1,2,4,44,46,"01|02|04|44|46","National","Parliament","Associated Services","Members Facilities","Non-transfer item","Current","Transfers and subsidies","Provinces and municipalities","Municipalities","Municipal agencies and funds","General public services","Executive and legislative organs","NAT",0,0,0,0,0,0,0,0,0,0,0,null,null,null,null,null,null,null,null,null,null,null,null,null,null,null,null,null,null,null,null,null,null,null,null,null,null,null,null,null,null,{"$f":"Dataset[[#This Row],[2023/24 From - Spending review Topic 1]]+Dataset[[#This Row],[2023/24 From - Spending review Topic 2]]+Dataset[[#This Row],[2023/24 From - Spending review Topic 3]]+Dataset[[#This Row],[2023/24 From - Spending review Topic 4]]+Dataset[[#This Row],[2023/24 From - Other reallocations]]","v":0},{"$f":"Dataset[[#This Row],[2024/25 From - Spending review Topic 1]]+Dataset[[#This Row],[2024/25 From - Spending review Topic 2]]+Dataset[[#This Row],[2024/25 From - Spending review Topic 3]]+Dataset[[#This Row],[2024/25 From - Spending review Topic 4]]+Dataset[[#This Row],[2024/25 From - Other reallocations]]","v":0},{"$f":"Dataset[[#This Row],[2025/26 From - Spending review Topic 1]]+Dataset[[#This Row],[2025/26 From - Spending review Topic 2]]+Dataset[[#This Row],[2025/26 From - Spending review Topic 3]]+Dataset[[#This Row],[2025/26 From - Spending review Topic 4]]+Dataset[[#This Row],[2025/26 From - Other reallocations]]","v":0},{"$f":"Dataset[[#This Row],[2023/24 To - Spending review Topic 1]]+Dataset[[#This Row],[2023/24 To - Spending review Topic 2]]+Dataset[[#This Row],[2023/24 To - Spending review Topic 3]]+Dataset[[#This Row],[2023/24 To - Spending review Topic 4]]+Dataset[[#This Row],[2023/24 To - Other reallocations]]","v":0},{"$f":"Dataset[[#This Row],[2024/25 To - Spending review Topic 1]]+Dataset[[#This Row],[2024/25 To - Spending review Topic 2]]+Dataset[[#This Row],[2024/25 To - Spending review Topic 3]]+Dataset[[#This Row],[2024/25 To - Spending review Topic 4]]+Dataset[[#This Row],[2024/25 To - Other reallocations]]","v":0},{"$f":"Dataset[[#This Row],[2025/26 To - Spending review Topic 1]]+Dataset[[#This Row],[2025/26 To - Spending review Topic 2]]+Dataset[[#This Row],[2025/26 To - Spending review Topic 3]]+Dataset[[#This Row],[2025/26 To - Spending review Topic 4]]+Dataset[[#This Row],[2025/26 To - Other reallocations]]","v":0},{"$f":"Dataset[[#This Row],[2023/24 Baseline]]+Dataset[[#This Row],[2023/24 From - Total]]+Dataset[[#This Row],[2023/24 To - Total]]","v":0},{"$f":"Dataset[[#This Row],[2024/25 Baseline]]+Dataset[[#This Row],[2024/25 From - Total]]+Dataset[[#This Row],[2024/25 To - Total]]","v":0},{"$f":"Dataset[[#This Row],[2025/26 Baseline]]+Dataset[[#This Row],[2025/26 From - Total]]+Dataset[[#This Row],[2025/26 To - Total]]","v":0}]
["NAT|Non-transfer item","2|Social security funds","2023_24","MTEF2023",2,3,1,1126,509,"02","03","01","001126","000509","02|03|01",1,2,5,45,47,"01|02|05|45|47","National","Parliament","Associated Services","Members Facilities","Non-transfer item","Current","Transfers and subsidies","Departmental agencies and accounts","Social security funds","Social security funds","General public services","Executive and legislative organs","NAT",0,0,0,0,0,0,0,0,0,0,0,null,null,null,null,null,null,null,null,null,null,null,null,null,null,null,null,null,null,null,null,null,null,null,null,null,null,null,null,null,null,{"$f":"Dataset[[#This Row],[2023/24 From - Spending review Topic 1]]+Dataset[[#This Row],[2023/24 From - Spending review Topic 2]]+Dataset[[#This Row],[2023/24 From - Spending review Topic 3]]+Dataset[[#This Row],[2023/24 From - Spending review Topic 4]]+Dataset[[#This Row],[2023/24 From - Other reallocations]]","v":0},{"$f":"Dataset[[#This Row],[2024/25 From - Spending review Topic 1]]+Dataset[[#This Row],[2024/25 From - Spending review Topic 2]]+Dataset[[#This Row],[2024/25 From - Spending review Topic 3]]+Dataset[[#This Row],[2024/25 From - Spending review Topic 4]]+Dataset[[#This Row],[2024/25 From - Other reallocations]]","v":0},{"$f":"Dataset[[#This Row],[2025/26 From - Spending review Topic 1]]+Dataset[[#This Row],[2025/26 From - Spending review Topic 2]]+Dataset[[#This Row],[2025/26 From - Spending review Topic 3]]+Dataset[[#This Row],[2025/26 From - Spending review Topic 4]]+Dataset[[#This Row],[2025/26 From - Other reallocations]]","v":0},{"$f":"Dataset[[#This Row],[2023/24 To - Spending review Topic 1]]+Dataset[[#This Row],[2023/24 To - Spending review Topic 2]]+Dataset[[#This Row],[2023/24 To - Spending review Topic 3]]+Dataset[[#This Row],[2023/24 To - Spending review Topic 4]]+Dataset[[#This Row],[2023/24 To - Other reallocations]]","v":0},{"$f":"Dataset[[#This Row],[2024/25 To - Spending review Topic 1]]+Dataset[[#This Row],[2024/25 To - Spending review Topic 2]]+Dataset[[#This Row],[2024/25 To - Spending review Topic 3]]+Dataset[[#This Row],[2024/25 To - Spending review Topic 4]]+Dataset[[#This Row],[2024/25 To - Other reallocations]]","v":0},{"$f":"Dataset[[#This Row],[2025/26 To - Spending review Topic 1]]+Dataset[[#This Row],[2025/26 To - Spending review Topic 2]]+Dataset[[#This Row],[2025/26 To - Spending review Topic 3]]+Dataset[[#This Row],[2025/26 To - Spending review Topic 4]]+Dataset[[#This Row],[2025/26 To - Other reallocations]]","v":0},{"$f":"Dataset[[#This Row],[2023/24 Baseline]]+Dataset[[#This Row],[2023/24 From - Total]]+Dataset[[#This Row],[2023/24 To - Total]]","v":0},{"$f":"Dataset[[#This Row],[2024/25 Baseline]]+Dataset[[#This Row],[2024/25 From - Total]]+Dataset[[#This Row],[2024/25 To - Total]]","v":0},{"$f":"Dataset[[#This Row],[2025/26 Baseline]]+Dataset[[#This Row],[2025/26 From - Total]]+Dataset[[#This Row],[2025/26 To - Total]]","v":0}]
["NAT|Non-transfer item","2|Departmental agencies (non-business entities)","2023_24","MTEF2023",2,3,1,1127,510,"02","03","01","001127","000510","02|03|01",1,2,5,46,48,"01|02|05|46|48","National","Parliament","Associated Services","Members Facilities","Non-transfer item","Current","Transfers and subsidies","Departmental agencies and accounts","Departmental agencies (non-business entities)","Departmental agencies (non-business entities)","General public services","Executive and legislative organs","NAT",0,0,0,0,0,0,0,0,0,0,0,null,null,null,null,null,null,null,null,null,null,null,null,null,null,null,null,null,null,null,null,null,null,null,null,null,null,null,null,null,null,{"$f":"Dataset[[#This Row],[2023/24 From - Spending review Topic 1]]+Dataset[[#This Row],[2023/24 From - Spending review Topic 2]]+Dataset[[#This Row],[2023/24 From - Spending review Topic 3]]+Dataset[[#This Row],[2023/24 From - Spending review Topic 4]]+Dataset[[#This Row],[2023/24 From - Other reallocations]]","v":0},{"$f":"Dataset[[#This Row],[2024/25 From - Spending review Topic 1]]+Dataset[[#This Row],[2024/25 From - Spending review Topic 2]]+Dataset[[#This Row],[2024/25 From - Spending review Topic 3]]+Dataset[[#This Row],[2024/25 From - Spending review Topic 4]]+Dataset[[#This Row],[2024/25 From - Other reallocations]]","v":0},{"$f":"Dataset[[#This Row],[2025/26 From - Spending review Topic 1]]+Dataset[[#This Row],[2025/26 From - Spending review Topic 2]]+Dataset[[#This Row],[2025/26 From - Spending review Topic 3]]+Dataset[[#This Row],[2025/26 From - Spending review Topic 4]]+Dataset[[#This Row],[2025/26 From - Other reallocations]]","v":0},{"$f":"Dataset[[#This Row],[2023/24 To - Spending review Topic 1]]+Dataset[[#This Row],[2023/24 To - Spending review Topic 2]]+Dataset[[#This Row],[2023/24 To - Spending review Topic 3]]+Dataset[[#This Row],[2023/24 To - Spending review Topic 4]]+Dataset[[#This Row],[2023/24 To - Other reallocations]]","v":0},{"$f":"Dataset[[#This Row],[2024/25 To - Spending review Topic 1]]+Dataset[[#This Row],[2024/25 To - Spending review Topic 2]]+Dataset[[#This Row],[2024/25 To - Spending review Topic 3]]+Dataset[[#This Row],[2024/25 To - Spending review Topic 4]]+Dataset[[#This Row],[2024/25 To - Other reallocations]]","v":0},{"$f":"Dataset[[#This Row],[2025/26 To - Spending review Topic 1]]+Dataset[[#This Row],[2025/26 To - Spending review Topic 2]]+Dataset[[#This Row],[2025/26 To - Spending review Topic 3]]+Dataset[[#This Row],[2025/26 To - Spending review Topic 4]]+Dataset[[#This Row],[2025/26 To - Other reallocations]]","v":0},{"$f":"Dataset[[#This Row],[2023/24 Baseline]]+Dataset[[#This Row],[2023/24 From - Total]]+Dataset[[#This Row],[2023/24 To - Total]]","v":0},{"$f":"Dataset[[#This Row],[2024/25 Baseline]]+Dataset[[#This Row],[2024/25 From - Total]]+Dataset[[#This Row],[2024/25 To - Total]]","v":0},{"$f":"Dataset[[#This Row],[2025/26 Baseline]]+Dataset[[#This Row],[2025/26 From - Total]]+Dataset[[#This Row],[2025/26 To - Total]]","v":0}]
["NAT|Non-transfer item","2|Higher education institutions","2023_24","MTEF2023",2,3,1,1128,511,"02","03","01","001128","000511","02|03|01",1,2,6,47,49,"01|02|06|47|49","National","Parliament","Associated Services","Members Facilities","Non-transfer item","Current","Transfers and subsidies","Higher education institutions","Higher education institutions","Higher education institutions","General public services","Executive and legislative organs","NAT",0,0,0,0,0,0,0,0,0,0,0,null,null,null,null,null,null,null,null,null,null,null,null,null,null,null,null,null,null,null,null,null,null,null,null,null,null,null,null,null,null,{"$f":"Dataset[[#This Row],[2023/24 From - Spending review Topic 1]]+Dataset[[#This Row],[2023/24 From - Spending review Topic 2]]+Dataset[[#This Row],[2023/24 From - Spending review Topic 3]]+Dataset[[#This Row],[2023/24 From - Spending review Topic 4]]+Dataset[[#This Row],[2023/24 From - Other reallocations]]","v":0},{"$f":"Dataset[[#This Row],[2024/25 From - Spending review Topic 1]]+Dataset[[#This Row],[2024/25 From - Spending review Topic 2]]+Dataset[[#This Row],[2024/25 From - Spending review Topic 3]]+Dataset[[#This Row],[2024/25 From - Spending review Topic 4]]+Dataset[[#This Row],[2024/25 From - Other reallocations]]","v":0},{"$f":"Dataset[[#This Row],[2025/26 From - Spending review Topic 1]]+Dataset[[#This Row],[2025/26 From - Spending review Topic 2]]+Dataset[[#This Row],[2025/26 From - Spending review Topic 3]]+Dataset[[#This Row],[2025/26 From - Spending review Topic 4]]+Dataset[[#This Row],[2025/26 From - Other reallocations]]","v":0},{"$f":"Dataset[[#This Row],[2023/24 To - Spending review Topic 1]]+Dataset[[#This Row],[2023/24 To - Spending review Topic 2]]+Dataset[[#This Row],[2023/24 To - Spending review Topic 3]]+Dataset[[#This Row],[2023/24 To - Spending review Topic 4]]+Dataset[[#This Row],[2023/24 To - Other reallocations]]","v":0},{"$f":"Dataset[[#This Row],[2024/25 To - Spending review Topic 1]]+Dataset[[#This Row],[2024/25 To - Spending review Topic 2]]+Dataset[[#This Row],[2024/25 To - Spending review Topic 3]]+Dataset[[#This Row],[2024/25 To - Spending review Topic 4]]+Dataset[[#This Row],[2024/25 To - Other reallocations]]","v":0},{"$f":"Dataset[[#This Row],[2025/26 To - Spending review Topic 1]]+Dataset[[#This Row],[2025/26 To - Spending review Topic 2]]+Dataset[[#This Row],[2025/26 To - Spending review Topic 3]]+Dataset[[#This Row],[2025/26 To - Spending review Topic 4]]+Dataset[[#This Row],[2025/26 To - Other reallocations]]","v":0},{"$f":"Dataset[[#This Row],[2023/24 Baseline]]+Dataset[[#This Row],[2023/24 From - Total]]+Dataset[[#This Row],[2023/24 To - Total]]","v":0},{"$f":"Dataset[[#This Row],[2024/25 Baseline]]+Dataset[[#This Row],[2024/25 From - Total]]+Dataset[[#This Row],[2024/25 To - Total]]","v":0},{"$f":"Dataset[[#This Row],[2025/26 Baseline]]+Dataset[[#This Row],[2025/26 From - Total]]+Dataset[[#This Row],[2025/26 To - Total]]","v":0}]
["NAT|Non-transfer item","2|Foreign governments and international organisations","2023_24","MTEF2023",2,3,1,1129,512,"02","03","01","001129","000512","02|03|01",1,2,7,48,50,"01|02|07|48|50","National","Parliament","Associated Services","Members Facilities","Non-transfer item","Current","Transfers and subsidies","Foreign governments and international organisations","Foreign governments and international organisations","Foreign governments and international organisations","General public services","Executive and legislative organs","NAT",0,0,0,0,0,0,0,0,0,0,0,null,null,null,null,null,null,null,null,null,null,null,null,null,null,null,null,null,null,null,null,null,null,null,null,null,null,null,null,null,null,{"$f":"Dataset[[#This Row],[2023/24 From - Spending review Topic 1]]+Dataset[[#This Row],[2023/24 From - Spending review Topic 2]]+Dataset[[#This Row],[2023/24 From - Spending review Topic 3]]+Dataset[[#This Row],[2023/24 From - Spending review Topic 4]]+Dataset[[#This Row],[2023/24 From - Other reallocations]]","v":0},{"$f":"Dataset[[#This Row],[2024/25 From - Spending review Topic 1]]+Dataset[[#This Row],[2024/25 From - Spending review Topic 2]]+Dataset[[#This Row],[2024/25 From - Spending review Topic 3]]+Dataset[[#This Row],[2024/25 From - Spending review Topic 4]]+Dataset[[#This Row],[2024/25 From - Other reallocations]]","v":0},{"$f":"Dataset[[#This Row],[2025/26 From - Spending review Topic 1]]+Dataset[[#This Row],[2025/26 From - Spending review Topic 2]]+Dataset[[#This Row],[2025/26 From - Spending review Topic 3]]+Dataset[[#This Row],[2025/26 From - Spending review Topic 4]]+Dataset[[#This Row],[2025/26 From - Other reallocations]]","v":0},{"$f":"Dataset[[#This Row],[2023/24 To - Spending review Topic 1]]+Dataset[[#This Row],[2023/24 To - Spending review Topic 2]]+Dataset[[#This Row],[2023/24 To - Spending review Topic 3]]+Dataset[[#This Row],[2023/24 To - Spending review Topic 4]]+Dataset[[#This Row],[2023/24 To - Other reallocations]]","v":0},{"$f":"Dataset[[#This Row],[2024/25 To - Spending review Topic 1]]+Dataset[[#This Row],[2024/25 To - Spending review Topic 2]]+Dataset[[#This Row],[2024/25 To - Spending review Topic 3]]+Dataset[[#This Row],[2024/25 To - Spending review Topic 4]]+Dataset[[#This Row],[2024/25 To - Other reallocations]]","v":0},{"$f":"Dataset[[#This Row],[2025/26 To - Spending review Topic 1]]+Dataset[[#This Row],[2025/26 To - Spending review Topic 2]]+Dataset[[#This Row],[2025/26 To - Spending review Topic 3]]+Dataset[[#This Row],[2025/26 To - Spending review Topic 4]]+Dataset[[#This Row],[2025/26 To - Other reallocations]]","v":0},{"$f":"Dataset[[#This Row],[2023/24 Baseline]]+Dataset[[#This Row],[2023/24 From - Total]]+Dataset[[#This Row],[2023/24 To - Total]]","v":0},{"$f":"Dataset[[#This Row],[2024/25 Baseline]]+Dataset[[#This Row],[2024/25 From - Total]]+Dataset[[#This Row],[2024/25 To - Total]]","v":0},{"$f":"Dataset[[#This Row],[2025/26 Baseline]]+Dataset[[#This Row],[2025/26 From - Total]]+Dataset[[#This Row],[2025/26 To - Total]]","v":0}]
["NAT|Non-transfer item","2|Subsidies on products and production (pc)","2023_24","MTEF2023",2,3,1,1130,513,"02","03","01","001130","000513","02|03|01",1,2,8,49,51,"01|02|08|49|51","National","Parliament","Associated Services","Members Facilities","Non-transfer item","Current","Transfers and subsidies","Public corporations and private enterprises","Public corporations","Subsidies on products and production (pc)","General public services","Executive and legislative organs","NAT",0,0,0,0,0,0,0,0,0,0,0,null,null,null,null,null,null,null,null,null,null,null,null,null,null,null,null,null,null,null,null,null,null,null,null,null,null,null,null,null,null,{"$f":"Dataset[[#This Row],[2023/24 From - Spending review Topic 1]]+Dataset[[#This Row],[2023/24 From - Spending review Topic 2]]+Dataset[[#This Row],[2023/24 From - Spending review Topic 3]]+Dataset[[#This Row],[2023/24 From - Spending review Topic 4]]+Dataset[[#This Row],[2023/24 From - Other reallocations]]","v":0},{"$f":"Dataset[[#This Row],[2024/25 From - Spending review Topic 1]]+Dataset[[#This Row],[2024/25 From - Spending review Topic 2]]+Dataset[[#This Row],[2024/25 From - Spending review Topic 3]]+Dataset[[#This Row],[2024/25 From - Spending review Topic 4]]+Dataset[[#This Row],[2024/25 From - Other reallocations]]","v":0},{"$f":"Dataset[[#This Row],[2025/26 From - Spending review Topic 1]]+Dataset[[#This Row],[2025/26 From - Spending review Topic 2]]+Dataset[[#This Row],[2025/26 From - Spending review Topic 3]]+Dataset[[#This Row],[2025/26 From - Spending review Topic 4]]+Dataset[[#This Row],[2025/26 From - Other reallocations]]","v":0},{"$f":"Dataset[[#This Row],[2023/24 To - Spending review Topic 1]]+Dataset[[#This Row],[2023/24 To - Spending review Topic 2]]+Dataset[[#This Row],[2023/24 To - Spending review Topic 3]]+Dataset[[#This Row],[2023/24 To - Spending review Topic 4]]+Dataset[[#This Row],[2023/24 To - Other reallocations]]","v":0},{"$f":"Dataset[[#This Row],[2024/25 To - Spending review Topic 1]]+Dataset[[#This Row],[2024/25 To - Spending review Topic 2]]+Dataset[[#This Row],[2024/25 To - Spending review Topic 3]]+Dataset[[#This Row],[2024/25 To - Spending review Topic 4]]+Dataset[[#This Row],[2024/25 To - Other reallocations]]","v":0},{"$f":"Dataset[[#This Row],[2025/26 To - Spending review Topic 1]]+Dataset[[#This Row],[2025/26 To - Spending review Topic 2]]+Dataset[[#This Row],[2025/26 To - Spending review Topic 3]]+Dataset[[#This Row],[2025/26 To - Spending review Topic 4]]+Dataset[[#This Row],[2025/26 To - Other reallocations]]","v":0},{"$f":"Dataset[[#This Row],[2023/24 Baseline]]+Dataset[[#This Row],[2023/24 From - Total]]+Dataset[[#This Row],[2023/24 To - Total]]","v":0},{"$f":"Dataset[[#This Row],[2024/25 Baseline]]+Dataset[[#This Row],[2024/25 From - Total]]+Dataset[[#This Row],[2024/25 To - Total]]","v":0},{"$f":"Dataset[[#This Row],[2025/26 Baseline]]+Dataset[[#This Row],[2025/26 From - Total]]+Dataset[[#This Row],[2025/26 To - Total]]","v":0}]
["NAT|Non-transfer item","2|Other transfers to public corporations","2023_24","MTEF2023",2,3,1,1131,514,"02","03","01","001131","000514","02|03|01",1,2,8,49,52,"01|02|08|49|52","National","Parliament","Associated Services","Members Facilities","Non-transfer item","Current","Transfers and subsidies","Public corporations and private enterprises","Public corporations","Other transfers to public corporations","General public services","Executive and legislative organs","NAT",0,0,0,0,0,0,0,0,0,0,0,null,null,null,null,null,null,null,null,null,null,null,null,null,null,null,null,null,null,null,null,null,null,null,null,null,null,null,null,null,null,{"$f":"Dataset[[#This Row],[2023/24 From - Spending review Topic 1]]+Dataset[[#This Row],[2023/24 From - Spending review Topic 2]]+Dataset[[#This Row],[2023/24 From - Spending review Topic 3]]+Dataset[[#This Row],[2023/24 From - Spending review Topic 4]]+Dataset[[#This Row],[2023/24 From - Other reallocations]]","v":0},{"$f":"Dataset[[#This Row],[2024/25 From - Spending review Topic 1]]+Dataset[[#This Row],[2024/25 From - Spending review Topic 2]]+Dataset[[#This Row],[2024/25 From - Spending review Topic 3]]+Dataset[[#This Row],[2024/25 From - Spending review Topic 4]]+Dataset[[#This Row],[2024/25 From - Other reallocations]]","v":0},{"$f":"Dataset[[#This Row],[2025/26 From - Spending review Topic 1]]+Dataset[[#This Row],[2025/26 From - Spending review Topic 2]]+Dataset[[#This Row],[2025/26 From - Spending review Topic 3]]+Dataset[[#This Row],[2025/26 From - Spending review Topic 4]]+Dataset[[#This Row],[2025/26 From - Other reallocations]]","v":0},{"$f":"Dataset[[#This Row],[2023/24 To - Spending review Topic 1]]+Dataset[[#This Row],[2023/24 To - Spending review Topic 2]]+Dataset[[#This Row],[2023/24 To - Spending review Topic 3]]+Dataset[[#This Row],[2023/24 To - Spending review Topic 4]]+Dataset[[#This Row],[2023/24 To - Other reallocations]]","v":0},{"$f":"Dataset[[#This Row],[2024/25 To - Spending review Topic 1]]+Dataset[[#This Row],[2024/25 To - Spending review Topic 2]]+Dataset[[#This Row],[2024/25 To - Spending review Topic 3]]+Dataset[[#This Row],[2024/25 To - Spending review Topic 4]]+Dataset[[#This Row],[2024/25 To - Other reallocations]]","v":0},{"$f":"Dataset[[#This Row],[2025/26 To - Spending review Topic 1]]+Dataset[[#This Row],[2025/26 To - Spending review Topic 2]]+Dataset[[#This Row],[2025/26 To - Spending review Topic 3]]+Dataset[[#This Row],[2025/26 To - Spending review Topic 4]]+Dataset[[#This Row],[2025/26 To - Other reallocations]]","v":0},{"$f":"Dataset[[#This Row],[2023/24 Baseline]]+Dataset[[#This Row],[2023/24 From - Total]]+Dataset[[#This Row],[2023/24 To - Total]]","v":0},{"$f":"Dataset[[#This Row],[2024/25 Baseline]]+Dataset[[#This Row],[2024/25 From - Total]]+Dataset[[#This Row],[2024/25 To - Total]]","v":0},{"$f":"Dataset[[#This Row],[2025/26 Baseline]]+Dataset[[#This Row],[2025/26 From - Total]]+Dataset[[#This Row],[2025/26 To - Total]]","v":0}]
["NAT|Non-transfer item","2|Subsidies on products and production (pe)","2023_24","MTEF2023",2,3,1,1132,515,"02","03","01","001132","000515","02|03|01",1,2,8,50,53,"01|02|08|50|53","National","Parliament","Associated Services","Members Facilities","Non-transfer item","Current","Transfers and subsidies","Public corporations and private enterprises","Private enterprises","Subsidies on products and production (pe)","General public services","Executive and legislative organs","NAT",0,0,0,0,0,0,0,0,0,0,0,null,null,null,null,null,null,null,null,null,null,null,null,null,null,null,null,null,null,null,null,null,null,null,null,null,null,null,null,null,null,{"$f":"Dataset[[#This Row],[2023/24 From - Spending review Topic 1]]+Dataset[[#This Row],[2023/24 From - Spending review Topic 2]]+Dataset[[#This Row],[2023/24 From - Spending review Topic 3]]+Dataset[[#This Row],[2023/24 From - Spending review Topic 4]]+Dataset[[#This Row],[2023/24 From - Other reallocations]]","v":0},{"$f":"Dataset[[#This Row],[2024/25 From - Spending review Topic 1]]+Dataset[[#This Row],[2024/25 From - Spending review Topic 2]]+Dataset[[#This Row],[2024/25 From - Spending review Topic 3]]+Dataset[[#This Row],[2024/25 From - Spending review Topic 4]]+Dataset[[#This Row],[2024/25 From - Other reallocations]]","v":0},{"$f":"Dataset[[#This Row],[2025/26 From - Spending review Topic 1]]+Dataset[[#This Row],[2025/26 From - Spending review Topic 2]]+Dataset[[#This Row],[2025/26 From - Spending review Topic 3]]+Dataset[[#This Row],[2025/26 From - Spending review Topic 4]]+Dataset[[#This Row],[2025/26 From - Other reallocations]]","v":0},{"$f":"Dataset[[#This Row],[2023/24 To - Spending review Topic 1]]+Dataset[[#This Row],[2023/24 To - Spending review Topic 2]]+Dataset[[#This Row],[2023/24 To - Spending review Topic 3]]+Dataset[[#This Row],[2023/24 To - Spending review Topic 4]]+Dataset[[#This Row],[2023/24 To - Other reallocations]]","v":0},{"$f":"Dataset[[#This Row],[2024/25 To - Spending review Topic 1]]+Dataset[[#This Row],[2024/25 To - Spending review Topic 2]]+Dataset[[#This Row],[2024/25 To - Spending review Topic 3]]+Dataset[[#This Row],[2024/25 To - Spending review Topic 4]]+Dataset[[#This Row],[2024/25 To - Other reallocations]]","v":0},{"$f":"Dataset[[#This Row],[2025/26 To - Spending review Topic 1]]+Dataset[[#This Row],[2025/26 To - Spending review Topic 2]]+Dataset[[#This Row],[2025/26 To - Spending review Topic 3]]+Dataset[[#This Row],[2025/26 To - Spending review Topic 4]]+Dataset[[#This Row],[2025/26 To - Other reallocations]]","v":0},{"$f":"Dataset[[#This Row],[2023/24 Baseline]]+Dataset[[#This Row],[2023/24 From - Total]]+Dataset[[#This Row],[2023/24 To - Total]]","v":0},{"$f":"Dataset[[#This Row],[2024/25 Baseline]]+Dataset[[#This Row],[2024/25 From - Total]]+Dataset[[#This Row],[2024/25 To - Total]]","v":0},{"$f":"Dataset[[#This Row],[2025/26 Baseline]]+Dataset[[#This Row],[2025/26 From - Total]]+Dataset[[#This Row],[2025/26 To - Total]]","v":0}]
["NAT|Non-transfer item","2|Other transfers to private enterprises","2023_24","MTEF2023",2,3,1,1133,516,"02","03","01","001133","000516","02|03|01",1,2,8,50,54,"01|02|08|50|54","National","Parliament","Associated Services","Members Facilities","Non-transfer item","Current","Transfers and subsidies","Public corporations and private enterprises","Private enterprises","Other transfers to private enterprises","General public services","Executive and legislative organs","NAT",0,0,0,0,0,0,0,0,0,0,0,null,null,null,null,null,null,null,null,null,null,null,null,null,null,null,null,null,null,null,null,null,null,null,null,null,null,null,null,null,null,{"$f":"Dataset[[#This Row],[2023/24 From - Spending review Topic 1]]+Dataset[[#This Row],[2023/24 From - Spending review Topic 2]]+Dataset[[#This Row],[2023/24 From - Spending review Topic 3]]+Dataset[[#This Row],[2023/24 From - Spending review Topic 4]]+Dataset[[#This Row],[2023/24 From - Other reallocations]]","v":0},{"$f":"Dataset[[#This Row],[2024/25 From - Spending review Topic 1]]+Dataset[[#This Row],[2024/25 From - Spending review Topic 2]]+Dataset[[#This Row],[2024/25 From - Spending review Topic 3]]+Dataset[[#This Row],[2024/25 From - Spending review Topic 4]]+Dataset[[#This Row],[2024/25 From - Other reallocations]]","v":0},{"$f":"Dataset[[#This Row],[2025/26 From - Spending review Topic 1]]+Dataset[[#This Row],[2025/26 From - Spending review Topic 2]]+Dataset[[#This Row],[2025/26 From - Spending review Topic 3]]+Dataset[[#This Row],[2025/26 From - Spending review Topic 4]]+Dataset[[#This Row],[2025/26 From - Other reallocations]]","v":0},{"$f":"Dataset[[#This Row],[2023/24 To - Spending review Topic 1]]+Dataset[[#This Row],[2023/24 To - Spending review Topic 2]]+Dataset[[#This Row],[2023/24 To - Spending review Topic 3]]+Dataset[[#This Row],[2023/24 To - Spending review Topic 4]]+Dataset[[#This Row],[2023/24 To - Other reallocations]]","v":0},{"$f":"Dataset[[#This Row],[2024/25 To - Spending review Topic 1]]+Dataset[[#This Row],[2024/25 To - Spending review Topic 2]]+Dataset[[#This Row],[2024/25 To - Spending review Topic 3]]+Dataset[[#This Row],[2024/25 To - Spending review Topic 4]]+Dataset[[#This Row],[2024/25 To - Other reallocations]]","v":0},{"$f":"Dataset[[#This Row],[2025/26 To - Spending review Topic 1]]+Dataset[[#This Row],[2025/26 To - Spending review Topic 2]]+Dataset[[#This Row],[2025/26 To - Spending review Topic 3]]+Dataset[[#This Row],[2025/26 To - Spending review Topic 4]]+Dataset[[#This Row],[2025/26 To - Other reallocations]]","v":0},{"$f":"Dataset[[#This Row],[2023/24 Baseline]]+Dataset[[#This Row],[2023/24 From - Total]]+Dataset[[#This Row],[2023/24 To - Total]]","v":0},{"$f":"Dataset[[#This Row],[2024/25 Baseline]]+Dataset[[#This Row],[2024/25 From - Total]]+Dataset[[#This Row],[2024/25 To - Total]]","v":0},{"$f":"Dataset[[#This Row],[2025/26 Baseline]]+Dataset[[#This Row],[2025/26 From - Total]]+Dataset[[#This Row],[2025/26 To - Total]]","v":0}]
["NAT|Non-transfer item","2|Non-profit institutions","2023_24","MTEF2023",2,3,1,1134,517,"02","03","01","001134","000517","02|03|01",1,2,9,51,55,"01|02|09|51|55","National","Parliament","Associated Services","Members Facilities","Non-transfer item","Current","Transfers and subsidies","Non-profit institutions","Non-profit institutions","Non-profit institutions","General public services","Executive and legislative organs","NAT",0,0,0,0,0,0,0,0,0,0,0,null,null,null,null,null,null,null,null,null,null,null,null,null,null,null,null,null,null,null,null,null,null,null,null,null,null,null,null,null,null,{"$f":"Dataset[[#This Row],[2023/24 From - Spending review Topic 1]]+Dataset[[#This Row],[2023/24 From - Spending review Topic 2]]+Dataset[[#This Row],[2023/24 From - Spending review Topic 3]]+Dataset[[#This Row],[2023/24 From - Spending review Topic 4]]+Dataset[[#This Row],[2023/24 From - Other reallocations]]","v":0},{"$f":"Dataset[[#This Row],[2024/25 From - Spending review Topic 1]]+Dataset[[#This Row],[2024/25 From - Spending review Topic 2]]+Dataset[[#This Row],[2024/25 From - Spending review Topic 3]]+Dataset[[#This Row],[2024/25 From - Spending review Topic 4]]+Dataset[[#This Row],[2024/25 From - Other reallocations]]","v":0},{"$f":"Dataset[[#This Row],[2025/26 From - Spending review Topic 1]]+Dataset[[#This Row],[2025/26 From - Spending review Topic 2]]+Dataset[[#This Row],[2025/26 From - Spending review Topic 3]]+Dataset[[#This Row],[2025/26 From - Spending review Topic 4]]+Dataset[[#This Row],[2025/26 From - Other reallocations]]","v":0},{"$f":"Dataset[[#This Row],[2023/24 To - Spending review Topic 1]]+Dataset[[#This Row],[2023/24 To - Spending review Topic 2]]+Dataset[[#This Row],[2023/24 To - Spending review Topic 3]]+Dataset[[#This Row],[2023/24 To - Spending review Topic 4]]+Dataset[[#This Row],[2023/24 To - Other reallocations]]","v":0},{"$f":"Dataset[[#This Row],[2024/25 To - Spending review Topic 1]]+Dataset[[#This Row],[2024/25 To - Spending review Topic 2]]+Dataset[[#This Row],[2024/25 To - Spending review Topic 3]]+Dataset[[#This Row],[2024/25 To - Spending review Topic 4]]+Dataset[[#This Row],[2024/25 To - Other reallocations]]","v":0},{"$f":"Dataset[[#This Row],[2025/26 To - Spending review Topic 1]]+Dataset[[#This Row],[2025/26 To - Spending review Topic 2]]+Dataset[[#This Row],[2025/26 To - Spending review Topic 3]]+Dataset[[#This Row],[2025/26 To - Spending review Topic 4]]+Dataset[[#This Row],[2025/26 To - Other reallocations]]","v":0},{"$f":"Dataset[[#This Row],[2023/24 Baseline]]+Dataset[[#This Row],[2023/24 From - Total]]+Dataset[[#This Row],[2023/24 To - Total]]","v":0},{"$f":"Dataset[[#This Row],[2024/25 Baseline]]+Dataset[[#This Row],[2024/25 From - Total]]+Dataset[[#This Row],[2024/25 To - Total]]","v":0},{"$f":"Dataset[[#This Row],[2025/26 Baseline]]+Dataset[[#This Row],[2025/26 From - Total]]+Dataset[[#This Row],[2025/26 To - Total]]","v":0}]
["NAT|Non-transfer item","2|Social benefits","2023_24","MTEF2023",2,3,1,1135,518,"02","03","01","001135","000518","02|03|01",1,2,10,52,56,"01|02|10|52|56","National","Parliament","Associated Services","Members Facilities","Non-transfer item","Current","Transfers and subsidies","Households","Social benefits","Social benefits","General public services","Executive and legislative organs","NAT",0,0,0,0,0,0,0,0,0,0,0,null,null,null,null,null,null,null,null,null,null,null,null,null,null,null,null,null,null,null,null,null,null,null,null,null,null,null,null,null,null,{"$f":"Dataset[[#This Row],[2023/24 From - Spending review Topic 1]]+Dataset[[#This Row],[2023/24 From - Spending review Topic 2]]+Dataset[[#This Row],[2023/24 From - Spending review Topic 3]]+Dataset[[#This Row],[2023/24 From - Spending review Topic 4]]+Dataset[[#This Row],[2023/24 From - Other reallocations]]","v":0},{"$f":"Dataset[[#This Row],[2024/25 From - Spending review Topic 1]]+Dataset[[#This Row],[2024/25 From - Spending review Topic 2]]+Dataset[[#This Row],[2024/25 From - Spending review Topic 3]]+Dataset[[#This Row],[2024/25 From - Spending review Topic 4]]+Dataset[[#This Row],[2024/25 From - Other reallocations]]","v":0},{"$f":"Dataset[[#This Row],[2025/26 From - Spending review Topic 1]]+Dataset[[#This Row],[2025/26 From - Spending review Topic 2]]+Dataset[[#This Row],[2025/26 From - Spending review Topic 3]]+Dataset[[#This Row],[2025/26 From - Spending review Topic 4]]+Dataset[[#This Row],[2025/26 From - Other reallocations]]","v":0},{"$f":"Dataset[[#This Row],[2023/24 To - Spending review Topic 1]]+Dataset[[#This Row],[2023/24 To - Spending review Topic 2]]+Dataset[[#This Row],[2023/24 To - Spending review Topic 3]]+Dataset[[#This Row],[2023/24 To - Spending review Topic 4]]+Dataset[[#This Row],[2023/24 To - Other reallocations]]","v":0},{"$f":"Dataset[[#This Row],[2024/25 To - Spending review Topic 1]]+Dataset[[#This Row],[2024/25 To - Spending review Topic 2]]+Dataset[[#This Row],[2024/25 To - Spending review Topic 3]]+Dataset[[#This Row],[2024/25 To - Spending review Topic 4]]+Dataset[[#This Row],[2024/25 To - Other reallocations]]","v":0},{"$f":"Dataset[[#This Row],[2025/26 To - Spending review Topic 1]]+Dataset[[#This Row],[2025/26 To - Spending review Topic 2]]+Dataset[[#This Row],[2025/26 To - Spending review Topic 3]]+Dataset[[#This Row],[2025/26 To - Spending review Topic 4]]+Dataset[[#This Row],[2025/26 To - Other reallocations]]","v":0},{"$f":"Dataset[[#This Row],[2023/24 Baseline]]+Dataset[[#This Row],[2023/24 From - Total]]+Dataset[[#This Row],[2023/24 To - Total]]","v":0},{"$f":"Dataset[[#This Row],[2024/25 Baseline]]+Dataset[[#This Row],[2024/25 From - Total]]+Dataset[[#This Row],[2024/25 To - Total]]","v":0},{"$f":"Dataset[[#This Row],[2025/26 Baseline]]+Dataset[[#This Row],[2025/26 From - Total]]+Dataset[[#This Row],[2025/26 To - Total]]","v":0}]
["NAT|Non-transfer item","2|Other transfers to households","2023_24","MTEF2023",2,3,1,1136,519,"02","03","01","001136","000519","02|03|01",1,2,10,53,57,"01|02|10|53|57","National","Parliament","Associated Services","Members Facilities","Non-transfer item","Current","Transfers and subsidies","Households","Other transfers to households","Other transfers to households","General public services","Executive and legislative organs","NAT",0,0,0,0,0,0,0,0,0,0,0,null,null,null,null,null,null,null,null,null,null,null,null,null,null,null,null,null,null,null,null,null,null,null,null,null,null,null,null,null,null,{"$f":"Dataset[[#This Row],[2023/24 From - Spending review Topic 1]]+Dataset[[#This Row],[2023/24 From - Spending review Topic 2]]+Dataset[[#This Row],[2023/24 From - Spending review Topic 3]]+Dataset[[#This Row],[2023/24 From - Spending review Topic 4]]+Dataset[[#This Row],[2023/24 From - Other reallocations]]","v":0},{"$f":"Dataset[[#This Row],[2024/25 From - Spending review Topic 1]]+Dataset[[#This Row],[2024/25 From - Spending review Topic 2]]+Dataset[[#This Row],[2024/25 From - Spending review Topic 3]]+Dataset[[#This Row],[2024/25 From - Spending review Topic 4]]+Dataset[[#This Row],[2024/25 From - Other reallocations]]","v":0},{"$f":"Dataset[[#This Row],[2025/26 From - Spending review Topic 1]]+Dataset[[#This Row],[2025/26 From - Spending review Topic 2]]+Dataset[[#This Row],[2025/26 From - Spending review Topic 3]]+Dataset[[#This Row],[2025/26 From - Spending review Topic 4]]+Dataset[[#This Row],[2025/26 From - Other reallocations]]","v":0},{"$f":"Dataset[[#This Row],[2023/24 To - Spending review Topic 1]]+Dataset[[#This Row],[2023/24 To - Spending review Topic 2]]+Dataset[[#This Row],[2023/24 To - Spending review Topic 3]]+Dataset[[#This Row],[2023/24 To - Spending review Topic 4]]+Dataset[[#This Row],[2023/24 To - Other reallocations]]","v":0},{"$f":"Dataset[[#This Row],[2024/25 To - Spending review Topic 1]]+Dataset[[#This Row],[2024/25 To - Spending review Topic 2]]+Dataset[[#This Row],[2024/25 To - Spending review Topic 3]]+Dataset[[#This Row],[2024/25 To - Spending review Topic 4]]+Dataset[[#This Row],[2024/25 To - Other reallocations]]","v":0},{"$f":"Dataset[[#This Row],[2025/26 To - Spending review Topic 1]]+Dataset[[#This Row],[2025/26 To - Spending review Topic 2]]+Dataset[[#This Row],[2025/26 To - Spending review Topic 3]]+Dataset[[#This Row],[2025/26 To - Spending review Topic 4]]+Dataset[[#This Row],[2025/26 To - Other reallocations]]","v":0},{"$f":"Dataset[[#This Row],[2023/24 Baseline]]+Dataset[[#This Row],[2023/24 From - Total]]+Dataset[[#This Row],[2023/24 To - Total]]","v":0},{"$f":"Dataset[[#This Row],[2024/25 Baseline]]+Dataset[[#This Row],[2024/25 From - Total]]+Dataset[[#This Row],[2024/25 To - Total]]","v":0},{"$f":"Dataset[[#This Row],[2025/26 Baseline]]+Dataset[[#This Row],[2025/26 From - Total]]+Dataset[[#This Row],[2025/26 To - Total]]","v":0}]
["NAT|Non-transfer item","2|Provincial Revenue Funds","2023_24","MTEF2023",2,3,1,1137,520,"02","03","01","001137","000520","02|03|01",2,2,4,43,43,"02|02|04|43|43","National","Parliament","Associated Services","Members Facilities","Non-transfer item","Capital","Transfers and subsidies","Provinces and municipalities","Provinces","Provincial Revenue Funds","General public services","Executive and legislative organs","NAT",0,0,0,0,0,0,0,0,0,0,0,null,null,null,null,null,null,null,null,null,null,null,null,null,null,null,null,null,null,null,null,null,null,null,null,null,null,null,null,null,null,{"$f":"Dataset[[#This Row],[2023/24 From - Spending review Topic 1]]+Dataset[[#This Row],[2023/24 From - Spending review Topic 2]]+Dataset[[#This Row],[2023/24 From - Spending review Topic 3]]+Dataset[[#This Row],[2023/24 From - Spending review Topic 4]]+Dataset[[#This Row],[2023/24 From - Other reallocations]]","v":0},{"$f":"Dataset[[#This Row],[2024/25 From - Spending review Topic 1]]+Dataset[[#This Row],[2024/25 From - Spending review Topic 2]]+Dataset[[#This Row],[2024/25 From - Spending review Topic 3]]+Dataset[[#This Row],[2024/25 From - Spending review Topic 4]]+Dataset[[#This Row],[2024/25 From - Other reallocations]]","v":0},{"$f":"Dataset[[#This Row],[2025/26 From - Spending review Topic 1]]+Dataset[[#This Row],[2025/26 From - Spending review Topic 2]]+Dataset[[#This Row],[2025/26 From - Spending review Topic 3]]+Dataset[[#This Row],[2025/26 From - Spending review Topic 4]]+Dataset[[#This Row],[2025/26 From - Other reallocations]]","v":0},{"$f":"Dataset[[#This Row],[2023/24 To - Spending review Topic 1]]+Dataset[[#This Row],[2023/24 To - Spending review Topic 2]]+Dataset[[#This Row],[2023/24 To - Spending review Topic 3]]+Dataset[[#This Row],[2023/24 To - Spending review Topic 4]]+Dataset[[#This Row],[2023/24 To - Other reallocations]]","v":0},{"$f":"Dataset[[#This Row],[2024/25 To - Spending review Topic 1]]+Dataset[[#This Row],[2024/25 To - Spending review Topic 2]]+Dataset[[#This Row],[2024/25 To - Spending review Topic 3]]+Dataset[[#This Row],[2024/25 To - Spending review Topic 4]]+Dataset[[#This Row],[2024/25 To - Other reallocations]]","v":0},{"$f":"Dataset[[#This Row],[2025/26 To - Spending review Topic 1]]+Dataset[[#This Row],[2025/26 To - Spending review Topic 2]]+Dataset[[#This Row],[2025/26 To - Spending review Topic 3]]+Dataset[[#This Row],[2025/26 To - Spending review Topic 4]]+Dataset[[#This Row],[2025/26 To - Other reallocations]]","v":0},{"$f":"Dataset[[#This Row],[2023/24 Baseline]]+Dataset[[#This Row],[2023/24 From - Total]]+Dataset[[#This Row],[2023/24 To - Total]]","v":0},{"$f":"Dataset[[#This Row],[2024/25 Baseline]]+Dataset[[#This Row],[2024/25 From - Total]]+Dataset[[#This Row],[2024/25 To - Total]]","v":0},{"$f":"Dataset[[#This Row],[2025/26 Baseline]]+Dataset[[#This Row],[2025/26 From - Total]]+Dataset[[#This Row],[2025/26 To - Total]]","v":0}]
["NAT|Non-transfer item","2|Municipal bank accounts","2023_24","MTEF2023",2,3,1,1138,521,"02","03","01","001138","000521","02|03|01",2,2,4,44,45,"02|02|04|44|45","National","Parliament","Associated Services","Members Facilities","Non-transfer item","Capital","Transfers and subsidies","Provinces and municipalities","Municipalities","Municipal bank accounts","General public services","Executive and legislative organs","NAT",0,0,0,0,0,0,0,0,0,0,0,null,null,null,null,null,null,null,null,null,null,null,null,null,null,null,null,null,null,null,null,null,null,null,null,null,null,null,null,null,null,{"$f":"Dataset[[#This Row],[2023/24 From - Spending review Topic 1]]+Dataset[[#This Row],[2023/24 From - Spending review Topic 2]]+Dataset[[#This Row],[2023/24 From - Spending review Topic 3]]+Dataset[[#This Row],[2023/24 From - Spending review Topic 4]]+Dataset[[#This Row],[2023/24 From - Other reallocations]]","v":0},{"$f":"Dataset[[#This Row],[2024/25 From - Spending review Topic 1]]+Dataset[[#This Row],[2024/25 From - Spending review Topic 2]]+Dataset[[#This Row],[2024/25 From - Spending review Topic 3]]+Dataset[[#This Row],[2024/25 From - Spending review Topic 4]]+Dataset[[#This Row],[2024/25 From - Other reallocations]]","v":0},{"$f":"Dataset[[#This Row],[2025/26 From - Spending review Topic 1]]+Dataset[[#This Row],[2025/26 From - Spending review Topic 2]]+Dataset[[#This Row],[2025/26 From - Spending review Topic 3]]+Dataset[[#This Row],[2025/26 From - Spending review Topic 4]]+Dataset[[#This Row],[2025/26 From - Other reallocations]]","v":0},{"$f":"Dataset[[#This Row],[2023/24 To - Spending review Topic 1]]+Dataset[[#This Row],[2023/24 To - Spending review Topic 2]]+Dataset[[#This Row],[2023/24 To - Spending review Topic 3]]+Dataset[[#This Row],[2023/24 To - Spending review Topic 4]]+Dataset[[#This Row],[2023/24 To - Other reallocations]]","v":0},{"$f":"Dataset[[#This Row],[2024/25 To - Spending review Topic 1]]+Dataset[[#This Row],[2024/25 To - Spending review Topic 2]]+Dataset[[#This Row],[2024/25 To - Spending review Topic 3]]+Dataset[[#This Row],[2024/25 To - Spending review Topic 4]]+Dataset[[#This Row],[2024/25 To - Other reallocations]]","v":0},{"$f":"Dataset[[#This Row],[2025/26 To - Spending review Topic 1]]+Dataset[[#This Row],[2025/26 To - Spending review Topic 2]]+Dataset[[#This Row],[2025/26 To - Spending review Topic 3]]+Dataset[[#This Row],[2025/26 To - Spending review Topic 4]]+Dataset[[#This Row],[2025/26 To - Other reallocations]]","v":0},{"$f":"Dataset[[#This Row],[2023/24 Baseline]]+Dataset[[#This Row],[2023/24 From - Total]]+Dataset[[#This Row],[2023/24 To - Total]]","v":0},{"$f":"Dataset[[#This Row],[2024/25 Baseline]]+Dataset[[#This Row],[2024/25 From - Total]]+Dataset[[#This Row],[2024/25 To - Total]]","v":0},{"$f":"Dataset[[#This Row],[2025/26 Baseline]]+Dataset[[#This Row],[2025/26 From - Total]]+Dataset[[#This Row],[2025/26 To - Total]]","v":0}]
["NAT|Non-transfer item","2|Departmental agencies (non-business entities)","2023_24","MTEF2023",2,3,1,1139,522,"02","03","01","001139","000522","02|03|01",2,2,5,46,48,"02|02|05|46|48","National","Parliament","Associated Services","Members Facilities","Non-transfer item","Capital","Transfers and subsidies","Departmental agencies and accounts","Departmental agencies (non-business entities)","Departmental agencies (non-business entities)","General public services","Executive and legislative organs","NAT",0,0,0,0,0,0,0,0,0,0,0,null,null,null,null,null,null,null,null,null,null,null,null,null,null,null,null,null,null,null,null,null,null,null,null,null,null,null,null,null,null,{"$f":"Dataset[[#This Row],[2023/24 From - Spending review Topic 1]]+Dataset[[#This Row],[2023/24 From - Spending review Topic 2]]+Dataset[[#This Row],[2023/24 From - Spending review Topic 3]]+Dataset[[#This Row],[2023/24 From - Spending review Topic 4]]+Dataset[[#This Row],[2023/24 From - Other reallocations]]","v":0},{"$f":"Dataset[[#This Row],[2024/25 From - Spending review Topic 1]]+Dataset[[#This Row],[2024/25 From - Spending review Topic 2]]+Dataset[[#This Row],[2024/25 From - Spending review Topic 3]]+Dataset[[#This Row],[2024/25 From - Spending review Topic 4]]+Dataset[[#This Row],[2024/25 From - Other reallocations]]","v":0},{"$f":"Dataset[[#This Row],[2025/26 From - Spending review Topic 1]]+Dataset[[#This Row],[2025/26 From - Spending review Topic 2]]+Dataset[[#This Row],[2025/26 From - Spending review Topic 3]]+Dataset[[#This Row],[2025/26 From - Spending review Topic 4]]+Dataset[[#This Row],[2025/26 From - Other reallocations]]","v":0},{"$f":"Dataset[[#This Row],[2023/24 To - Spending review Topic 1]]+Dataset[[#This Row],[2023/24 To - Spending review Topic 2]]+Dataset[[#This Row],[2023/24 To - Spending review Topic 3]]+Dataset[[#This Row],[2023/24 To - Spending review Topic 4]]+Dataset[[#This Row],[2023/24 To - Other reallocations]]","v":0},{"$f":"Dataset[[#This Row],[2024/25 To - Spending review Topic 1]]+Dataset[[#This Row],[2024/25 To - Spending review Topic 2]]+Dataset[[#This Row],[2024/25 To - Spending review Topic 3]]+Dataset[[#This Row],[2024/25 To - Spending review Topic 4]]+Dataset[[#This Row],[2024/25 To - Other reallocations]]","v":0},{"$f":"Dataset[[#This Row],[2025/26 To - Spending review Topic 1]]+Dataset[[#This Row],[2025/26 To - Spending review Topic 2]]+Dataset[[#This Row],[2025/26 To - Spending review Topic 3]]+Dataset[[#This Row],[2025/26 To - Spending review Topic 4]]+Dataset[[#This Row],[2025/26 To - Other reallocations]]","v":0},{"$f":"Dataset[[#This Row],[2023/24 Baseline]]+Dataset[[#This Row],[2023/24 From - Total]]+Dataset[[#This Row],[2023/24 To - Total]]","v":0},{"$f":"Dataset[[#This Row],[2024/25 Baseline]]+Dataset[[#This Row],[2024/25 From - Total]]+Dataset[[#This Row],[2024/25 To - Total]]","v":0},{"$f":"Dataset[[#This Row],[2025/26 Baseline]]+Dataset[[#This Row],[2025/26 From - Total]]+Dataset[[#This Row],[2025/26 To - Total]]","v":0}]
["NAT|Non-transfer item","2|Higher education institutions","2023_24","MTEF2023",2,3,1,1140,523,"02","03","01","001140","000523","02|03|01",2,2,6,47,49,"02|02|06|47|49","National","Parliament","Associated Services","Members Facilities","Non-transfer item","Capital","Transfers and subsidies","Higher education institutions","Higher education institutions","Higher education institutions","General public services","Executive and legislative organs","NAT",0,0,0,0,0,0,0,0,0,0,0,null,null,null,null,null,null,null,null,null,null,null,null,null,null,null,null,null,null,null,null,null,null,null,null,null,null,null,null,null,null,{"$f":"Dataset[[#This Row],[2023/24 From - Spending review Topic 1]]+Dataset[[#This Row],[2023/24 From - Spending review Topic 2]]+Dataset[[#This Row],[2023/24 From - Spending review Topic 3]]+Dataset[[#This Row],[2023/24 From - Spending review Topic 4]]+Dataset[[#This Row],[2023/24 From - Other reallocations]]","v":0},{"$f":"Dataset[[#This Row],[2024/25 From - Spending review Topic 1]]+Dataset[[#This Row],[2024/25 From - Spending review Topic 2]]+Dataset[[#This Row],[2024/25 From - Spending review Topic 3]]+Dataset[[#This Row],[2024/25 From - Spending review Topic 4]]+Dataset[[#This Row],[2024/25 From - Other reallocations]]","v":0},{"$f":"Dataset[[#This Row],[2025/26 From - Spending review Topic 1]]+Dataset[[#This Row],[2025/26 From - Spending review Topic 2]]+Dataset[[#This Row],[2025/26 From - Spending review Topic 3]]+Dataset[[#This Row],[2025/26 From - Spending review Topic 4]]+Dataset[[#This Row],[2025/26 From - Other reallocations]]","v":0},{"$f":"Dataset[[#This Row],[2023/24 To - Spending review Topic 1]]+Dataset[[#This Row],[2023/24 To - Spending review Topic 2]]+Dataset[[#This Row],[2023/24 To - Spending review Topic 3]]+Dataset[[#This Row],[2023/24 To - Spending review Topic 4]]+Dataset[[#This Row],[2023/24 To - Other reallocations]]","v":0},{"$f":"Dataset[[#This Row],[2024/25 To - Spending review Topic 1]]+Dataset[[#This Row],[2024/25 To - Spending review Topic 2]]+Dataset[[#This Row],[2024/25 To - Spending review Topic 3]]+Dataset[[#This Row],[2024/25 To - Spending review Topic 4]]+Dataset[[#This Row],[2024/25 To - Other reallocations]]","v":0},{"$f":"Dataset[[#This Row],[2025/26 To - Spending review Topic 1]]+Dataset[[#This Row],[2025/26 To - Spending review Topic 2]]+Dataset[[#This Row],[2025/26 To - Spending review Topic 3]]+Dataset[[#This Row],[2025/26 To - Spending review Topic 4]]+Dataset[[#This Row],[2025/26 To - Other reallocations]]","v":0},{"$f":"Dataset[[#This Row],[2023/24 Baseline]]+Dataset[[#This Row],[2023/24 From - Total]]+Dataset[[#This Row],[2023/24 To - Total]]","v":0},{"$f":"Dataset[[#This Row],[2024/25 Baseline]]+Dataset[[#This Row],[2024/25 From - Total]]+Dataset[[#This Row],[2024/25 To - Total]]","v":0},{"$f":"Dataset[[#This Row],[2025/26 Baseline]]+Dataset[[#This Row],[2025/26 From - Total]]+Dataset[[#This Row],[2025/26 To - Total]]","v":0}]
["NAT|Non-transfer item","2|Foreign governments and international organisations","2023_24","MTEF2023",2,3,1,1141,524,"02","03","01","001141","000524","02|03|01",2,2,7,48,50,"02|02|07|48|50","National","Parliament","Associated Services","Members Facilities","Non-transfer item","Capital","Transfers and subsidies","Foreign governments and international organisations","Foreign governments and international organisations","Foreign governments and international organisations","General public services","Executive and legislative organs","NAT",0,0,0,0,0,0,0,0,0,0,0,null,null,null,null,null,null,null,null,null,null,null,null,null,null,null,null,null,null,null,null,null,null,null,null,null,null,null,null,null,null,{"$f":"Dataset[[#This Row],[2023/24 From - Spending review Topic 1]]+Dataset[[#This Row],[2023/24 From - Spending review Topic 2]]+Dataset[[#This Row],[2023/24 From - Spending review Topic 3]]+Dataset[[#This Row],[2023/24 From - Spending review Topic 4]]+Dataset[[#This Row],[2023/24 From - Other reallocations]]","v":0},{"$f":"Dataset[[#This Row],[2024/25 From - Spending review Topic 1]]+Dataset[[#This Row],[2024/25 From - Spending review Topic 2]]+Dataset[[#This Row],[2024/25 From - Spending review Topic 3]]+Dataset[[#This Row],[2024/25 From - Spending review Topic 4]]+Dataset[[#This Row],[2024/25 From - Other reallocations]]","v":0},{"$f":"Dataset[[#This Row],[2025/26 From - Spending review Topic 1]]+Dataset[[#This Row],[2025/26 From - Spending review Topic 2]]+Dataset[[#This Row],[2025/26 From - Spending review Topic 3]]+Dataset[[#This Row],[2025/26 From - Spending review Topic 4]]+Dataset[[#This Row],[2025/26 From - Other reallocations]]","v":0},{"$f":"Dataset[[#This Row],[2023/24 To - Spending review Topic 1]]+Dataset[[#This Row],[2023/24 To - Spending review Topic 2]]+Dataset[[#This Row],[2023/24 To - Spending review Topic 3]]+Dataset[[#This Row],[2023/24 To - Spending review Topic 4]]+Dataset[[#This Row],[2023/24 To - Other reallocations]]","v":0},{"$f":"Dataset[[#This Row],[2024/25 To - Spending review Topic 1]]+Dataset[[#This Row],[2024/25 To - Spending review Topic 2]]+Dataset[[#This Row],[2024/25 To - Spending review Topic 3]]+Dataset[[#This Row],[2024/25 To - Spending review Topic 4]]+Dataset[[#This Row],[2024/25 To - Other reallocations]]","v":0},{"$f":"Dataset[[#This Row],[2025/26 To - Spending review Topic 1]]+Dataset[[#This Row],[2025/26 To - Spending review Topic 2]]+Dataset[[#This Row],[2025/26 To - Spending review Topic 3]]+Dataset[[#This Row],[2025/26 To - Spending review Topic 4]]+Dataset[[#This Row],[2025/26 To - Other reallocations]]","v":0},{"$f":"Dataset[[#This Row],[2023/24 Baseline]]+Dataset[[#This Row],[2023/24 From - Total]]+Dataset[[#This Row],[2023/24 To - Total]]","v":0},{"$f":"Dataset[[#This Row],[2024/25 Baseline]]+Dataset[[#This Row],[2024/25 From - Total]]+Dataset[[#This Row],[2024/25 To - Total]]","v":0},{"$f":"Dataset[[#This Row],[2025/26 Baseline]]+Dataset[[#This Row],[2025/26 From - Total]]+Dataset[[#This Row],[2025/26 To - Total]]","v":0}]
["NAT|Non-transfer item","2|Subsidies on products and production (pc)","2023_24","MTEF2023",2,3,1,1142,525,"02","03","01","001142","000525","02|03|01",2,2,8,49,51,"02|02|08|49|51","National","Parliament","Associated Services","Members Facilities","Non-transfer item","Capital","Transfers and subsidies","Public corporations and private enterprises","Public corporations","Subsidies on products and production (pc)","General public services","Executive and legislative organs","NAT",0,0,0,0,0,0,0,0,0,0,0,null,null,null,null,null,null,null,null,null,null,null,null,null,null,null,null,null,null,null,null,null,null,null,null,null,null,null,null,null,null,{"$f":"Dataset[[#This Row],[2023/24 From - Spending review Topic 1]]+Dataset[[#This Row],[2023/24 From - Spending review Topic 2]]+Dataset[[#This Row],[2023/24 From - Spending review Topic 3]]+Dataset[[#This Row],[2023/24 From - Spending review Topic 4]]+Dataset[[#This Row],[2023/24 From - Other reallocations]]","v":0},{"$f":"Dataset[[#This Row],[2024/25 From - Spending review Topic 1]]+Dataset[[#This Row],[2024/25 From - Spending review Topic 2]]+Dataset[[#This Row],[2024/25 From - Spending review Topic 3]]+Dataset[[#This Row],[2024/25 From - Spending review Topic 4]]+Dataset[[#This Row],[2024/25 From - Other reallocations]]","v":0},{"$f":"Dataset[[#This Row],[2025/26 From - Spending review Topic 1]]+Dataset[[#This Row],[2025/26 From - Spending review Topic 2]]+Dataset[[#This Row],[2025/26 From - Spending review Topic 3]]+Dataset[[#This Row],[2025/26 From - Spending review Topic 4]]+Dataset[[#This Row],[2025/26 From - Other reallocations]]","v":0},{"$f":"Dataset[[#This Row],[2023/24 To - Spending review Topic 1]]+Dataset[[#This Row],[2023/24 To - Spending review Topic 2]]+Dataset[[#This Row],[2023/24 To - Spending review Topic 3]]+Dataset[[#This Row],[2023/24 To - Spending review Topic 4]]+Dataset[[#This Row],[2023/24 To - Other reallocations]]","v":0},{"$f":"Dataset[[#This Row],[2024/25 To - Spending review Topic 1]]+Dataset[[#This Row],[2024/25 To - Spending review Topic 2]]+Dataset[[#This Row],[2024/25 To - Spending review Topic 3]]+Dataset[[#This Row],[2024/25 To - Spending review Topic 4]]+Dataset[[#This Row],[2024/25 To - Other reallocations]]","v":0},{"$f":"Dataset[[#This Row],[2025/26 To - Spending review Topic 1]]+Dataset[[#This Row],[2025/26 To - Spending review Topic 2]]+Dataset[[#This Row],[2025/26 To - Spending review Topic 3]]+Dataset[[#This Row],[2025/26 To - Spending review Topic 4]]+Dataset[[#This Row],[2025/26 To - Other reallocations]]","v":0},{"$f":"Dataset[[#This Row],[2023/24 Baseline]]+Dataset[[#This Row],[2023/24 From - Total]]+Dataset[[#This Row],[2023/24 To - Total]]","v":0},{"$f":"Dataset[[#This Row],[2024/25 Baseline]]+Dataset[[#This Row],[2024/25 From - Total]]+Dataset[[#This Row],[2024/25 To - Total]]","v":0},{"$f":"Dataset[[#This Row],[2025/26 Baseline]]+Dataset[[#This Row],[2025/26 From - Total]]+Dataset[[#This Row],[2025/26 To - Total]]","v":0}]
["NAT|Non-transfer item","2|Other transfers to public corporations","2023_24","MTEF2023",2,3,1,1143,526,"02","03","01","001143","000526","02|03|01",2,2,8,49,52,"02|02|08|49|52","National","Parliament","Associated Services","Members Facilities","Non-transfer item","Capital","Transfers and subsidies","Public corporations and private enterprises","Public corporations","Other transfers to public corporations","General public services","Executive and legislative organs","NAT",0,0,0,0,0,0,0,0,0,0,0,null,null,null,null,null,null,null,null,null,null,null,null,null,null,null,null,null,null,null,null,null,null,null,null,null,null,null,null,null,null,{"$f":"Dataset[[#This Row],[2023/24 From - Spending review Topic 1]]+Dataset[[#This Row],[2023/24 From - Spending review Topic 2]]+Dataset[[#This Row],[2023/24 From - Spending review Topic 3]]+Dataset[[#This Row],[2023/24 From - Spending review Topic 4]]+Dataset[[#This Row],[2023/24 From - Other reallocations]]","v":0},{"$f":"Dataset[[#This Row],[2024/25 From - Spending review Topic 1]]+Dataset[[#This Row],[2024/25 From - Spending review Topic 2]]+Dataset[[#This Row],[2024/25 From - Spending review Topic 3]]+Dataset[[#This Row],[2024/25 From - Spending review Topic 4]]+Dataset[[#This Row],[2024/25 From - Other reallocations]]","v":0},{"$f":"Dataset[[#This Row],[2025/26 From - Spending review Topic 1]]+Dataset[[#This Row],[2025/26 From - Spending review Topic 2]]+Dataset[[#This Row],[2025/26 From - Spending review Topic 3]]+Dataset[[#This Row],[2025/26 From - Spending review Topic 4]]+Dataset[[#This Row],[2025/26 From - Other reallocations]]","v":0},{"$f":"Dataset[[#This Row],[2023/24 To - Spending review Topic 1]]+Dataset[[#This Row],[2023/24 To - Spending review Topic 2]]+Dataset[[#This Row],[2023/24 To - Spending review Topic 3]]+Dataset[[#This Row],[2023/24 To - Spending review Topic 4]]+Dataset[[#This Row],[2023/24 To - Other reallocations]]","v":0},{"$f":"Dataset[[#This Row],[2024/25 To - Spending review Topic 1]]+Dataset[[#This Row],[2024/25 To - Spending review Topic 2]]+Dataset[[#This Row],[2024/25 To - Spending review Topic 3]]+Dataset[[#This Row],[2024/25 To - Spending review Topic 4]]+Dataset[[#This Row],[2024/25 To - Other reallocations]]","v":0},{"$f":"Dataset[[#This Row],[2025/26 To - Spending review Topic 1]]+Dataset[[#This Row],[2025/26 To - Spending review Topic 2]]+Dataset[[#This Row],[2025/26 To - Spending review Topic 3]]+Dataset[[#This Row],[2025/26 To - Spending review Topic 4]]+Dataset[[#This Row],[2025/26 To - Other reallocations]]","v":0},{"$f":"Dataset[[#This Row],[2023/24 Baseline]]+Dataset[[#This Row],[2023/24 From - Total]]+Dataset[[#This Row],[2023/24 To - Total]]","v":0},{"$f":"Dataset[[#This Row],[2024/25 Baseline]]+Dataset[[#This Row],[2024/25 From - Total]]+Dataset[[#This Row],[2024/25 To - Total]]","v":0},{"$f":"Dataset[[#This Row],[2025/26 Baseline]]+Dataset[[#This Row],[2025/26 From - Total]]+Dataset[[#This Row],[2025/26 To - Total]]","v":0}]
["NAT|Non-transfer item","2|Other transfers to private enterprises","2023_24","MTEF2023",2,3,1,1144,527,"02","03","01","001144","000527","02|03|01",2,2,8,50,54,"02|02|08|50|54","National","Parliament","Associated Services","Members Facilities","Non-transfer item","Capital","Transfers and subsidies","Public corporations and private enterprises","Private enterprises","Other transfers to private enterprises","General public services","Executive and legislative organs","NAT",0,0,0,0,0,0,0,0,0,0,0,null,null,null,null,null,null,null,null,null,null,null,null,null,null,null,null,null,null,null,null,null,null,null,null,null,null,null,null,null,null,{"$f":"Dataset[[#This Row],[2023/24 From - Spending review Topic 1]]+Dataset[[#This Row],[2023/24 From - Spending review Topic 2]]+Dataset[[#This Row],[2023/24 From - Spending review Topic 3]]+Dataset[[#This Row],[2023/24 From - Spending review Topic 4]]+Dataset[[#This Row],[2023/24 From - Other reallocations]]","v":0},{"$f":"Dataset[[#This Row],[2024/25 From - Spending review Topic 1]]+Dataset[[#This Row],[2024/25 From - Spending review Topic 2]]+Dataset[[#This Row],[2024/25 From - Spending review Topic 3]]+Dataset[[#This Row],[2024/25 From - Spending review Topic 4]]+Dataset[[#This Row],[2024/25 From - Other reallocations]]","v":0},{"$f":"Dataset[[#This Row],[2025/26 From - Spending review Topic 1]]+Dataset[[#This Row],[2025/26 From - Spending review Topic 2]]+Dataset[[#This Row],[2025/26 From - Spending review Topic 3]]+Dataset[[#This Row],[2025/26 From - Spending review Topic 4]]+Dataset[[#This Row],[2025/26 From - Other reallocations]]","v":0},{"$f":"Dataset[[#This Row],[2023/24 To - Spending review Topic 1]]+Dataset[[#This Row],[2023/24 To - Spending review Topic 2]]+Dataset[[#This Row],[2023/24 To - Spending review Topic 3]]+Dataset[[#This Row],[2023/24 To - Spending review Topic 4]]+Dataset[[#This Row],[2023/24 To - Other reallocations]]","v":0},{"$f":"Dataset[[#This Row],[2024/25 To - Spending review Topic 1]]+Dataset[[#This Row],[2024/25 To - Spending review Topic 2]]+Dataset[[#This Row],[2024/25 To - Spending review Topic 3]]+Dataset[[#This Row],[2024/25 To - Spending review Topic 4]]+Dataset[[#This Row],[2024/25 To - Other reallocations]]","v":0},{"$f":"Dataset[[#This Row],[2025/26 To - Spending review Topic 1]]+Dataset[[#This Row],[2025/26 To - Spending review Topic 2]]+Dataset[[#This Row],[2025/26 To - Spending review Topic 3]]+Dataset[[#This Row],[2025/26 To - Spending review Topic 4]]+Dataset[[#This Row],[2025/26 To - Other reallocations]]","v":0},{"$f":"Dataset[[#This Row],[2023/24 Baseline]]+Dataset[[#This Row],[2023/24 From - Total]]+Dataset[[#This Row],[2023/24 To - Total]]","v":0},{"$f":"Dataset[[#This Row],[2024/25 Baseline]]+Dataset[[#This Row],[2024/25 From - Total]]+Dataset[[#This Row],[2024/25 To - Total]]","v":0},{"$f":"Dataset[[#This Row],[2025/26 Baseline]]+Dataset[[#This Row],[2025/26 From - Total]]+Dataset[[#This Row],[2025/26 To - Total]]","v":0}]
["NAT|Non-transfer item","2|Non-profit institutions","2023_24","MTEF2023",2,3,1,1145,528,"02","03","01","001145","000528","02|03|01",2,2,9,51,55,"02|02|09|51|55","National","Parliament","Associated Services","Members Facilities","Non-transfer item","Capital","Transfers and subsidies","Non-profit institutions","Non-profit institutions","Non-profit institutions","General public services","Executive and legislative organs","NAT",0,0,0,0,0,0,0,0,0,0,0,null,null,null,null,null,null,null,null,null,null,null,null,null,null,null,null,null,null,null,null,null,null,null,null,null,null,null,null,null,null,{"$f":"Dataset[[#This Row],[2023/24 From - Spending review Topic 1]]+Dataset[[#This Row],[2023/24 From - Spending review Topic 2]]+Dataset[[#This Row],[2023/24 From - Spending review Topic 3]]+Dataset[[#This Row],[2023/24 From - Spending review Topic 4]]+Dataset[[#This Row],[2023/24 From - Other reallocations]]","v":0},{"$f":"Dataset[[#This Row],[2024/25 From - Spending review Topic 1]]+Dataset[[#This Row],[2024/25 From - Spending review Topic 2]]+Dataset[[#This Row],[2024/25 From - Spending review Topic 3]]+Dataset[[#This Row],[2024/25 From - Spending review Topic 4]]+Dataset[[#This Row],[2024/25 From - Other reallocations]]","v":0},{"$f":"Dataset[[#This Row],[2025/26 From - Spending review Topic 1]]+Dataset[[#This Row],[2025/26 From - Spending review Topic 2]]+Dataset[[#This Row],[2025/26 From - Spending review Topic 3]]+Dataset[[#This Row],[2025/26 From - Spending review Topic 4]]+Dataset[[#This Row],[2025/26 From - Other reallocations]]","v":0},{"$f":"Dataset[[#This Row],[2023/24 To - Spending review Topic 1]]+Dataset[[#This Row],[2023/24 To - Spending review Topic 2]]+Dataset[[#This Row],[2023/24 To - Spending review Topic 3]]+Dataset[[#This Row],[2023/24 To - Spending review Topic 4]]+Dataset[[#This Row],[2023/24 To - Other reallocations]]","v":0},{"$f":"Dataset[[#This Row],[2024/25 To - Spending review Topic 1]]+Dataset[[#This Row],[2024/25 To - Spending review Topic 2]]+Dataset[[#This Row],[2024/25 To - Spending review Topic 3]]+Dataset[[#This Row],[2024/25 To - Spending review Topic 4]]+Dataset[[#This Row],[2024/25 To - Other reallocations]]","v":0},{"$f":"Dataset[[#This Row],[2025/26 To - Spending review Topic 1]]+Dataset[[#This Row],[2025/26 To - Spending review Topic 2]]+Dataset[[#This Row],[2025/26 To - Spending review Topic 3]]+Dataset[[#This Row],[2025/26 To - Spending review Topic 4]]+Dataset[[#This Row],[2025/26 To - Other reallocations]]","v":0},{"$f":"Dataset[[#This Row],[2023/24 Baseline]]+Dataset[[#This Row],[2023/24 From - Total]]+Dataset[[#This Row],[2023/24 To - Total]]","v":0},{"$f":"Dataset[[#This Row],[2024/25 Baseline]]+Dataset[[#This Row],[2024/25 From - Total]]+Dataset[[#This Row],[2024/25 To - Total]]","v":0},{"$f":"Dataset[[#This Row],[2025/26 Baseline]]+Dataset[[#This Row],[2025/26 From - Total]]+Dataset[[#This Row],[2025/26 To - Total]]","v":0}]
["NAT|Non-transfer item","2|Other transfers to households","2023_24","MTEF2023",2,3,1,1146,529,"02","03","01","001146","000529","02|03|01",2,2,10,53,57,"02|02|10|53|57","National","Parliament","Associated Services","Members Facilities","Non-transfer item","Capital","Transfers and subsidies","Households","Other transfers to households","Other transfers to households","General public services","Executive and legislative organs","NAT",0,0,0,0,0,0,0,0,0,0,0,null,null,null,null,null,null,null,null,null,null,null,null,null,null,null,null,null,null,null,null,null,null,null,null,null,null,null,null,null,null,{"$f":"Dataset[[#This Row],[2023/24 From - Spending review Topic 1]]+Dataset[[#This Row],[2023/24 From - Spending review Topic 2]]+Dataset[[#This Row],[2023/24 From - Spending review Topic 3]]+Dataset[[#This Row],[2023/24 From - Spending review Topic 4]]+Dataset[[#This Row],[2023/24 From - Other reallocations]]","v":0},{"$f":"Dataset[[#This Row],[2024/25 From - Spending review Topic 1]]+Dataset[[#This Row],[2024/25 From - Spending review Topic 2]]+Dataset[[#This Row],[2024/25 From - Spending review Topic 3]]+Dataset[[#This Row],[2024/25 From - Spending review Topic 4]]+Dataset[[#This Row],[2024/25 From - Other reallocations]]","v":0},{"$f":"Dataset[[#This Row],[2025/26 From - Spending review Topic 1]]+Dataset[[#This Row],[2025/26 From - Spending review Topic 2]]+Dataset[[#This Row],[2025/26 From - Spending review Topic 3]]+Dataset[[#This Row],[2025/26 From - Spending review Topic 4]]+Dataset[[#This Row],[2025/26 From - Other reallocations]]","v":0},{"$f":"Dataset[[#This Row],[2023/24 To - Spending review Topic 1]]+Dataset[[#This Row],[2023/24 To - Spending review Topic 2]]+Dataset[[#This Row],[2023/24 To - Spending review Topic 3]]+Dataset[[#This Row],[2023/24 To - Spending review Topic 4]]+Dataset[[#This Row],[2023/24 To - Other reallocations]]","v":0},{"$f":"Dataset[[#This Row],[2024/25 To - Spending review Topic 1]]+Dataset[[#This Row],[2024/25 To - Spending review Topic 2]]+Dataset[[#This Row],[2024/25 To - Spending review Topic 3]]+Dataset[[#This Row],[2024/25 To - Spending review Topic 4]]+Dataset[[#This Row],[2024/25 To - Other reallocations]]","v":0},{"$f":"Dataset[[#This Row],[2025/26 To - Spending review Topic 1]]+Dataset[[#This Row],[2025/26 To - Spending review Topic 2]]+Dataset[[#This Row],[2025/26 To - Spending review Topic 3]]+Dataset[[#This Row],[2025/26 To - Spending review Topic 4]]+Dataset[[#This Row],[2025/26 To - Other reallocations]]","v":0},{"$f":"Dataset[[#This Row],[2023/24 Baseline]]+Dataset[[#This Row],[2023/24 From - Total]]+Dataset[[#This Row],[2023/24 To - Total]]","v":0},{"$f":"Dataset[[#This Row],[2024/25 Baseline]]+Dataset[[#This Row],[2024/25 From - Total]]+Dataset[[#This Row],[2024/25 To - Total]]","v":0},{"$f":"Dataset[[#This Row],[2025/26 Baseline]]+Dataset[[#This Row],[2025/26 From - Total]]+Dataset[[#This Row],[2025/26 To - Total]]","v":0}]
["NAT|Non-transfer item","2|Buildings","2023_24","MTEF2023",2,3,1,1147,530,"02","03","01","001147","000530","02|03|01",2,3,11,54,58,"02|03|11|54|58","National","Parliament","Associated Services","Members Facilities","Non-transfer item","Capital","Payments for capital assets","Buildings and other fixed structures","Buildings","Buildings","General public services","Executive and legislative organs","NAT",0,0,0,0,0,0,0,0,0,0,0,null,null,null,null,null,null,null,null,null,null,null,null,null,null,null,null,null,null,null,null,null,null,null,null,null,null,null,null,null,null,{"$f":"Dataset[[#This Row],[2023/24 From - Spending review Topic 1]]+Dataset[[#This Row],[2023/24 From - Spending review Topic 2]]+Dataset[[#This Row],[2023/24 From - Spending review Topic 3]]+Dataset[[#This Row],[2023/24 From - Spending review Topic 4]]+Dataset[[#This Row],[2023/24 From - Other reallocations]]","v":0},{"$f":"Dataset[[#This Row],[2024/25 From - Spending review Topic 1]]+Dataset[[#This Row],[2024/25 From - Spending review Topic 2]]+Dataset[[#This Row],[2024/25 From - Spending review Topic 3]]+Dataset[[#This Row],[2024/25 From - Spending review Topic 4]]+Dataset[[#This Row],[2024/25 From - Other reallocations]]","v":0},{"$f":"Dataset[[#This Row],[2025/26 From - Spending review Topic 1]]+Dataset[[#This Row],[2025/26 From - Spending review Topic 2]]+Dataset[[#This Row],[2025/26 From - Spending review Topic 3]]+Dataset[[#This Row],[2025/26 From - Spending review Topic 4]]+Dataset[[#This Row],[2025/26 From - Other reallocations]]","v":0},{"$f":"Dataset[[#This Row],[2023/24 To - Spending review Topic 1]]+Dataset[[#This Row],[2023/24 To - Spending review Topic 2]]+Dataset[[#This Row],[2023/24 To - Spending review Topic 3]]+Dataset[[#This Row],[2023/24 To - Spending review Topic 4]]+Dataset[[#This Row],[2023/24 To - Other reallocations]]","v":0},{"$f":"Dataset[[#This Row],[2024/25 To - Spending review Topic 1]]+Dataset[[#This Row],[2024/25 To - Spending review Topic 2]]+Dataset[[#This Row],[2024/25 To - Spending review Topic 3]]+Dataset[[#This Row],[2024/25 To - Spending review Topic 4]]+Dataset[[#This Row],[2024/25 To - Other reallocations]]","v":0},{"$f":"Dataset[[#This Row],[2025/26 To - Spending review Topic 1]]+Dataset[[#This Row],[2025/26 To - Spending review Topic 2]]+Dataset[[#This Row],[2025/26 To - Spending review Topic 3]]+Dataset[[#This Row],[2025/26 To - Spending review Topic 4]]+Dataset[[#This Row],[2025/26 To - Other reallocations]]","v":0},{"$f":"Dataset[[#This Row],[2023/24 Baseline]]+Dataset[[#This Row],[2023/24 From - Total]]+Dataset[[#This Row],[2023/24 To - Total]]","v":0},{"$f":"Dataset[[#This Row],[2024/25 Baseline]]+Dataset[[#This Row],[2024/25 From - Total]]+Dataset[[#This Row],[2024/25 To - Total]]","v":0},{"$f":"Dataset[[#This Row],[2025/26 Baseline]]+Dataset[[#This Row],[2025/26 From - Total]]+Dataset[[#This Row],[2025/26 To - Total]]","v":0}]
["NAT|Non-transfer item","2|Other fixed structures","2023_24","MTEF2023",2,3,1,1148,531,"02","03","01","001148","000531","02|03|01",2,3,11,55,59,"02|03|11|55|59","National","Parliament","Associated Services","Members Facilities","Non-transfer item","Capital","Payments for capital assets","Buildings and other fixed structures","Other fixed structures","Other fixed structures","General public services","Executive and legislative organs","NAT",0,0,0,0,0,0,0,0,0,0,0,null,null,null,null,null,null,null,null,null,null,null,null,null,null,null,null,null,null,null,null,null,null,null,null,null,null,null,null,null,null,{"$f":"Dataset[[#This Row],[2023/24 From - Spending review Topic 1]]+Dataset[[#This Row],[2023/24 From - Spending review Topic 2]]+Dataset[[#This Row],[2023/24 From - Spending review Topic 3]]+Dataset[[#This Row],[2023/24 From - Spending review Topic 4]]+Dataset[[#This Row],[2023/24 From - Other reallocations]]","v":0},{"$f":"Dataset[[#This Row],[2024/25 From - Spending review Topic 1]]+Dataset[[#This Row],[2024/25 From - Spending review Topic 2]]+Dataset[[#This Row],[2024/25 From - Spending review Topic 3]]+Dataset[[#This Row],[2024/25 From - Spending review Topic 4]]+Dataset[[#This Row],[2024/25 From - Other reallocations]]","v":0},{"$f":"Dataset[[#This Row],[2025/26 From - Spending review Topic 1]]+Dataset[[#This Row],[2025/26 From - Spending review Topic 2]]+Dataset[[#This Row],[2025/26 From - Spending review Topic 3]]+Dataset[[#This Row],[2025/26 From - Spending review Topic 4]]+Dataset[[#This Row],[2025/26 From - Other reallocations]]","v":0},{"$f":"Dataset[[#This Row],[2023/24 To - Spending review Topic 1]]+Dataset[[#This Row],[2023/24 To - Spending review Topic 2]]+Dataset[[#This Row],[2023/24 To - Spending review Topic 3]]+Dataset[[#This Row],[2023/24 To - Spending review Topic 4]]+Dataset[[#This Row],[2023/24 To - Other reallocations]]","v":0},{"$f":"Dataset[[#This Row],[2024/25 To - Spending review Topic 1]]+Dataset[[#This Row],[2024/25 To - Spending review Topic 2]]+Dataset[[#This Row],[2024/25 To - Spending review Topic 3]]+Dataset[[#This Row],[2024/25 To - Spending review Topic 4]]+Dataset[[#This Row],[2024/25 To - Other reallocations]]","v":0},{"$f":"Dataset[[#This Row],[2025/26 To - Spending review Topic 1]]+Dataset[[#This Row],[2025/26 To - Spending review Topic 2]]+Dataset[[#This Row],[2025/26 To - Spending review Topic 3]]+Dataset[[#This Row],[2025/26 To - Spending review Topic 4]]+Dataset[[#This Row],[2025/26 To - Other reallocations]]","v":0},{"$f":"Dataset[[#This Row],[2023/24 Baseline]]+Dataset[[#This Row],[2023/24 From - Total]]+Dataset[[#This Row],[2023/24 To - Total]]","v":0},{"$f":"Dataset[[#This Row],[2024/25 Baseline]]+Dataset[[#This Row],[2024/25 From - Total]]+Dataset[[#This Row],[2024/25 To - Total]]","v":0},{"$f":"Dataset[[#This Row],[2025/26 Baseline]]+Dataset[[#This Row],[2025/26 From - Total]]+Dataset[[#This Row],[2025/26 To - Total]]","v":0}]
["NAT|Non-transfer item","2|Transport equipment","2023_24","MTEF2023",2,3,1,1149,532,"02","03","01","001149","000532","02|03|01",2,3,12,56,60,"02|03|12|56|60","National","Parliament","Associated Services","Members Facilities","Non-transfer item","Capital","Payments for capital assets","Machinery and equipment","Transport equipment","Transport equipment","General public services","Executive and legislative organs","NAT",0,0,0,0,0,0,0,0,0,0,0,null,null,null,null,null,null,null,null,null,null,null,null,null,null,null,null,null,null,null,null,null,null,null,null,null,null,null,null,null,null,{"$f":"Dataset[[#This Row],[2023/24 From - Spending review Topic 1]]+Dataset[[#This Row],[2023/24 From - Spending review Topic 2]]+Dataset[[#This Row],[2023/24 From - Spending review Topic 3]]+Dataset[[#This Row],[2023/24 From - Spending review Topic 4]]+Dataset[[#This Row],[2023/24 From - Other reallocations]]","v":0},{"$f":"Dataset[[#This Row],[2024/25 From - Spending review Topic 1]]+Dataset[[#This Row],[2024/25 From - Spending review Topic 2]]+Dataset[[#This Row],[2024/25 From - Spending review Topic 3]]+Dataset[[#This Row],[2024/25 From - Spending review Topic 4]]+Dataset[[#This Row],[2024/25 From - Other reallocations]]","v":0},{"$f":"Dataset[[#This Row],[2025/26 From - Spending review Topic 1]]+Dataset[[#This Row],[2025/26 From - Spending review Topic 2]]+Dataset[[#This Row],[2025/26 From - Spending review Topic 3]]+Dataset[[#This Row],[2025/26 From - Spending review Topic 4]]+Dataset[[#This Row],[2025/26 From - Other reallocations]]","v":0},{"$f":"Dataset[[#This Row],[2023/24 To - Spending review Topic 1]]+Dataset[[#This Row],[2023/24 To - Spending review Topic 2]]+Dataset[[#This Row],[2023/24 To - Spending review Topic 3]]+Dataset[[#This Row],[2023/24 To - Spending review Topic 4]]+Dataset[[#This Row],[2023/24 To - Other reallocations]]","v":0},{"$f":"Dataset[[#This Row],[2024/25 To - Spending review Topic 1]]+Dataset[[#This Row],[2024/25 To - Spending review Topic 2]]+Dataset[[#This Row],[2024/25 To - Spending review Topic 3]]+Dataset[[#This Row],[2024/25 To - Spending review Topic 4]]+Dataset[[#This Row],[2024/25 To - Other reallocations]]","v":0},{"$f":"Dataset[[#This Row],[2025/26 To - Spending review Topic 1]]+Dataset[[#This Row],[2025/26 To - Spending review Topic 2]]+Dataset[[#This Row],[2025/26 To - Spending review Topic 3]]+Dataset[[#This Row],[2025/26 To - Spending review Topic 4]]+Dataset[[#This Row],[2025/26 To - Other reallocations]]","v":0},{"$f":"Dataset[[#This Row],[2023/24 Baseline]]+Dataset[[#This Row],[2023/24 From - Total]]+Dataset[[#This Row],[2023/24 To - Total]]","v":0},{"$f":"Dataset[[#This Row],[2024/25 Baseline]]+Dataset[[#This Row],[2024/25 From - Total]]+Dataset[[#This Row],[2024/25 To - Total]]","v":0},{"$f":"Dataset[[#This Row],[2025/26 Baseline]]+Dataset[[#This Row],[2025/26 From - Total]]+Dataset[[#This Row],[2025/26 To - Total]]","v":0}]
["NAT|Non-transfer item","2|Other machinery and equipment","2023_24","MTEF2023",2,3,1,1150,533,"02","03","01","001150","000533","02|03|01",2,3,12,57,61,"02|03|12|57|61","National","Parliament","Associated Services","Members Facilities","Non-transfer item","Capital","Payments for capital assets","Machinery and equipment","Other machinery and equipment","Other machinery and equipment","General public services","Executive and legislative organs","NAT",0,0,0,0,0,0,0,0,0,0,0,null,null,null,null,null,null,null,null,null,null,null,null,null,null,null,null,null,null,null,null,null,null,null,null,null,null,null,null,null,null,{"$f":"Dataset[[#This Row],[2023/24 From - Spending review Topic 1]]+Dataset[[#This Row],[2023/24 From - Spending review Topic 2]]+Dataset[[#This Row],[2023/24 From - Spending review Topic 3]]+Dataset[[#This Row],[2023/24 From - Spending review Topic 4]]+Dataset[[#This Row],[2023/24 From - Other reallocations]]","v":0},{"$f":"Dataset[[#This Row],[2024/25 From - Spending review Topic 1]]+Dataset[[#This Row],[2024/25 From - Spending review Topic 2]]+Dataset[[#This Row],[2024/25 From - Spending review Topic 3]]+Dataset[[#This Row],[2024/25 From - Spending review Topic 4]]+Dataset[[#This Row],[2024/25 From - Other reallocations]]","v":0},{"$f":"Dataset[[#This Row],[2025/26 From - Spending review Topic 1]]+Dataset[[#This Row],[2025/26 From - Spending review Topic 2]]+Dataset[[#This Row],[2025/26 From - Spending review Topic 3]]+Dataset[[#This Row],[2025/26 From - Spending review Topic 4]]+Dataset[[#This Row],[2025/26 From - Other reallocations]]","v":0},{"$f":"Dataset[[#This Row],[2023/24 To - Spending review Topic 1]]+Dataset[[#This Row],[2023/24 To - Spending review Topic 2]]+Dataset[[#This Row],[2023/24 To - Spending review Topic 3]]+Dataset[[#This Row],[2023/24 To - Spending review Topic 4]]+Dataset[[#This Row],[2023/24 To - Other reallocations]]","v":0},{"$f":"Dataset[[#This Row],[2024/25 To - Spending review Topic 1]]+Dataset[[#This Row],[2024/25 To - Spending review Topic 2]]+Dataset[[#This Row],[2024/25 To - Spending review Topic 3]]+Dataset[[#This Row],[2024/25 To - Spending review Topic 4]]+Dataset[[#This Row],[2024/25 To - Other reallocations]]","v":0},{"$f":"Dataset[[#This Row],[2025/26 To - Spending review Topic 1]]+Dataset[[#This Row],[2025/26 To - Spending review Topic 2]]+Dataset[[#This Row],[2025/26 To - Spending review Topic 3]]+Dataset[[#This Row],[2025/26 To - Spending review Topic 4]]+Dataset[[#This Row],[2025/26 To - Other reallocations]]","v":0},{"$f":"Dataset[[#This Row],[2023/24 Baseline]]+Dataset[[#This Row],[2023/24 From - Total]]+Dataset[[#This Row],[2023/24 To - Total]]","v":0},{"$f":"Dataset[[#This Row],[2024/25 Baseline]]+Dataset[[#This Row],[2024/25 From - Total]]+Dataset[[#This Row],[2024/25 To - Total]]","v":0},{"$f":"Dataset[[#This Row],[2025/26 Baseline]]+Dataset[[#This Row],[2025/26 From - Total]]+Dataset[[#This Row],[2025/26 To - Total]]","v":0}]
["NAT|Non-transfer item","2|Heritage assets","2023_24","MTEF2023",2,3,1,1151,534,"02","03","01","001151","000534","02|03|01",2,3,13,58,62,"02|03|13|58|62","National","Parliament","Associated Services","Members Facilities","Non-transfer item","Capital","Payments for capital assets","Heritage assets","Heritage assets","Heritage assets","General public services","Executive and legislative organs","NAT",0,0,0,0,0,0,0,0,0,0,0,null,null,null,null,null,null,null,null,null,null,null,null,null,null,null,null,null,null,null,null,null,null,null,null,null,null,null,null,null,null,{"$f":"Dataset[[#This Row],[2023/24 From - Spending review Topic 1]]+Dataset[[#This Row],[2023/24 From - Spending review Topic 2]]+Dataset[[#This Row],[2023/24 From - Spending review Topic 3]]+Dataset[[#This Row],[2023/24 From - Spending review Topic 4]]+Dataset[[#This Row],[2023/24 From - Other reallocations]]","v":0},{"$f":"Dataset[[#This Row],[2024/25 From - Spending review Topic 1]]+Dataset[[#This Row],[2024/25 From - Spending review Topic 2]]+Dataset[[#This Row],[2024/25 From - Spending review Topic 3]]+Dataset[[#This Row],[2024/25 From - Spending review Topic 4]]+Dataset[[#This Row],[2024/25 From - Other reallocations]]","v":0},{"$f":"Dataset[[#This Row],[2025/26 From - Spending review Topic 1]]+Dataset[[#This Row],[2025/26 From - Spending review Topic 2]]+Dataset[[#This Row],[2025/26 From - Spending review Topic 3]]+Dataset[[#This Row],[2025/26 From - Spending review Topic 4]]+Dataset[[#This Row],[2025/26 From - Other reallocations]]","v":0},{"$f":"Dataset[[#This Row],[2023/24 To - Spending review Topic 1]]+Dataset[[#This Row],[2023/24 To - Spending review Topic 2]]+Dataset[[#This Row],[2023/24 To - Spending review Topic 3]]+Dataset[[#This Row],[2023/24 To - Spending review Topic 4]]+Dataset[[#This Row],[2023/24 To - Other reallocations]]","v":0},{"$f":"Dataset[[#This Row],[2024/25 To - Spending review Topic 1]]+Dataset[[#This Row],[2024/25 To - Spending review Topic 2]]+Dataset[[#This Row],[2024/25 To - Spending review Topic 3]]+Dataset[[#This Row],[2024/25 To - Spending review Topic 4]]+Dataset[[#This Row],[2024/25 To - Other reallocations]]","v":0},{"$f":"Dataset[[#This Row],[2025/26 To - Spending review Topic 1]]+Dataset[[#This Row],[2025/26 To - Spending review Topic 2]]+Dataset[[#This Row],[2025/26 To - Spending review Topic 3]]+Dataset[[#This Row],[2025/26 To - Spending review Topic 4]]+Dataset[[#This Row],[2025/26 To - Other reallocations]]","v":0},{"$f":"Dataset[[#This Row],[2023/24 Baseline]]+Dataset[[#This Row],[2023/24 From - Total]]+Dataset[[#This Row],[2023/24 To - Total]]","v":0},{"$f":"Dataset[[#This Row],[2024/25 Baseline]]+Dataset[[#This Row],[2024/25 From - Total]]+Dataset[[#This Row],[2024/25 To - Total]]","v":0},{"$f":"Dataset[[#This Row],[2025/26 Baseline]]+Dataset[[#This Row],[2025/26 From - Total]]+Dataset[[#This Row],[2025/26 To - Total]]","v":0}]
["NAT|Non-transfer item","2|Specialised military assets","2023_24","MTEF2023",2,3,1,1152,535,"02","03","01","001152","000535","02|03|01",2,3,14,59,63,"02|03|14|59|63","National","Parliament","Associated Services","Members Facilities","Non-transfer item","Capital","Payments for capital assets","Specialised military assets","Specialised military assets","Specialised military assets","General public services","Executive and legislative organs","NAT",0,0,0,0,0,0,0,0,0,0,0,null,null,null,null,null,null,null,null,null,null,null,null,null,null,null,null,null,null,null,null,null,null,null,null,null,null,null,null,null,null,{"$f":"Dataset[[#This Row],[2023/24 From - Spending review Topic 1]]+Dataset[[#This Row],[2023/24 From - Spending review Topic 2]]+Dataset[[#This Row],[2023/24 From - Spending review Topic 3]]+Dataset[[#This Row],[2023/24 From - Spending review Topic 4]]+Dataset[[#This Row],[2023/24 From - Other reallocations]]","v":0},{"$f":"Dataset[[#This Row],[2024/25 From - Spending review Topic 1]]+Dataset[[#This Row],[2024/25 From - Spending review Topic 2]]+Dataset[[#This Row],[2024/25 From - Spending review Topic 3]]+Dataset[[#This Row],[2024/25 From - Spending review Topic 4]]+Dataset[[#This Row],[2024/25 From - Other reallocations]]","v":0},{"$f":"Dataset[[#This Row],[2025/26 From - Spending review Topic 1]]+Dataset[[#This Row],[2025/26 From - Spending review Topic 2]]+Dataset[[#This Row],[2025/26 From - Spending review Topic 3]]+Dataset[[#This Row],[2025/26 From - Spending review Topic 4]]+Dataset[[#This Row],[2025/26 From - Other reallocations]]","v":0},{"$f":"Dataset[[#This Row],[2023/24 To - Spending review Topic 1]]+Dataset[[#This Row],[2023/24 To - Spending review Topic 2]]+Dataset[[#This Row],[2023/24 To - Spending review Topic 3]]+Dataset[[#This Row],[2023/24 To - Spending review Topic 4]]+Dataset[[#This Row],[2023/24 To - Other reallocations]]","v":0},{"$f":"Dataset[[#This Row],[2024/25 To - Spending review Topic 1]]+Dataset[[#This Row],[2024/25 To - Spending review Topic 2]]+Dataset[[#This Row],[2024/25 To - Spending review Topic 3]]+Dataset[[#This Row],[2024/25 To - Spending review Topic 4]]+Dataset[[#This Row],[2024/25 To - Other reallocations]]","v":0},{"$f":"Dataset[[#This Row],[2025/26 To - Spending review Topic 1]]+Dataset[[#This Row],[2025/26 To - Spending review Topic 2]]+Dataset[[#This Row],[2025/26 To - Spending review Topic 3]]+Dataset[[#This Row],[2025/26 To - Spending review Topic 4]]+Dataset[[#This Row],[2025/26 To - Other reallocations]]","v":0},{"$f":"Dataset[[#This Row],[2023/24 Baseline]]+Dataset[[#This Row],[2023/24 From - Total]]+Dataset[[#This Row],[2023/24 To - Total]]","v":0},{"$f":"Dataset[[#This Row],[2024/25 Baseline]]+Dataset[[#This Row],[2024/25 From - Total]]+Dataset[[#This Row],[2024/25 To - Total]]","v":0},{"$f":"Dataset[[#This Row],[2025/26 Baseline]]+Dataset[[#This Row],[2025/26 From - Total]]+Dataset[[#This Row],[2025/26 To - Total]]","v":0}]
["NAT|Non-transfer item","2|Biological assets","2023_24","MTEF2023",2,3,1,1153,536,"02","03","01","001153","000536","02|03|01",2,3,15,60,64,"02|03|15|60|64","National","Parliament","Associated Services","Members Facilities","Non-transfer item","Capital","Payments for capital assets","Biological assets","Biological assets","Biological assets","General public services","Executive and legislative organs","NAT",0,0,0,0,0,0,0,0,0,0,0,null,null,null,null,null,null,null,null,null,null,null,null,null,null,null,null,null,null,null,null,null,null,null,null,null,null,null,null,null,null,{"$f":"Dataset[[#This Row],[2023/24 From - Spending review Topic 1]]+Dataset[[#This Row],[2023/24 From - Spending review Topic 2]]+Dataset[[#This Row],[2023/24 From - Spending review Topic 3]]+Dataset[[#This Row],[2023/24 From - Spending review Topic 4]]+Dataset[[#This Row],[2023/24 From - Other reallocations]]","v":0},{"$f":"Dataset[[#This Row],[2024/25 From - Spending review Topic 1]]+Dataset[[#This Row],[2024/25 From - Spending review Topic 2]]+Dataset[[#This Row],[2024/25 From - Spending review Topic 3]]+Dataset[[#This Row],[2024/25 From - Spending review Topic 4]]+Dataset[[#This Row],[2024/25 From - Other reallocations]]","v":0},{"$f":"Dataset[[#This Row],[2025/26 From - Spending review Topic 1]]+Dataset[[#This Row],[2025/26 From - Spending review Topic 2]]+Dataset[[#This Row],[2025/26 From - Spending review Topic 3]]+Dataset[[#This Row],[2025/26 From - Spending review Topic 4]]+Dataset[[#This Row],[2025/26 From - Other reallocations]]","v":0},{"$f":"Dataset[[#This Row],[2023/24 To - Spending review Topic 1]]+Dataset[[#This Row],[2023/24 To - Spending review Topic 2]]+Dataset[[#This Row],[2023/24 To - Spending review Topic 3]]+Dataset[[#This Row],[2023/24 To - Spending review Topic 4]]+Dataset[[#This Row],[2023/24 To - Other reallocations]]","v":0},{"$f":"Dataset[[#This Row],[2024/25 To - Spending review Topic 1]]+Dataset[[#This Row],[2024/25 To - Spending review Topic 2]]+Dataset[[#This Row],[2024/25 To - Spending review Topic 3]]+Dataset[[#This Row],[2024/25 To - Spending review Topic 4]]+Dataset[[#This Row],[2024/25 To - Other reallocations]]","v":0},{"$f":"Dataset[[#This Row],[2025/26 To - Spending review Topic 1]]+Dataset[[#This Row],[2025/26 To - Spending review Topic 2]]+Dataset[[#This Row],[2025/26 To - Spending review Topic 3]]+Dataset[[#This Row],[2025/26 To - Spending review Topic 4]]+Dataset[[#This Row],[2025/26 To - Other reallocations]]","v":0},{"$f":"Dataset[[#This Row],[2023/24 Baseline]]+Dataset[[#This Row],[2023/24 From - Total]]+Dataset[[#This Row],[2023/24 To - Total]]","v":0},{"$f":"Dataset[[#This Row],[2024/25 Baseline]]+Dataset[[#This Row],[2024/25 From - Total]]+Dataset[[#This Row],[2024/25 To - Total]]","v":0},{"$f":"Dataset[[#This Row],[2025/26 Baseline]]+Dataset[[#This Row],[2025/26 From - Total]]+Dataset[[#This Row],[2025/26 To - Total]]","v":0}]
["NAT|Non-transfer item","2|Land and sub-soil assets","2023_24","MTEF2023",2,3,1,1154,537,"02","03","01","001154","000537","02|03|01",2,3,16,61,65,"02|03|16|61|65","National","Parliament","Associated Services","Members Facilities","Non-transfer item","Capital","Payments for capital assets","Land and sub-soil assets","Land and sub-soil assets","Land and sub-soil assets","General public services","Executive and legislative organs","NAT",0,0,0,0,0,0,0,0,0,0,0,null,null,null,null,null,null,null,null,null,null,null,null,null,null,null,null,null,null,null,null,null,null,null,null,null,null,null,null,null,null,{"$f":"Dataset[[#This Row],[2023/24 From - Spending review Topic 1]]+Dataset[[#This Row],[2023/24 From - Spending review Topic 2]]+Dataset[[#This Row],[2023/24 From - Spending review Topic 3]]+Dataset[[#This Row],[2023/24 From - Spending review Topic 4]]+Dataset[[#This Row],[2023/24 From - Other reallocations]]","v":0},{"$f":"Dataset[[#This Row],[2024/25 From - Spending review Topic 1]]+Dataset[[#This Row],[2024/25 From - Spending review Topic 2]]+Dataset[[#This Row],[2024/25 From - Spending review Topic 3]]+Dataset[[#This Row],[2024/25 From - Spending review Topic 4]]+Dataset[[#This Row],[2024/25 From - Other reallocations]]","v":0},{"$f":"Dataset[[#This Row],[2025/26 From - Spending review Topic 1]]+Dataset[[#This Row],[2025/26 From - Spending review Topic 2]]+Dataset[[#This Row],[2025/26 From - Spending review Topic 3]]+Dataset[[#This Row],[2025/26 From - Spending review Topic 4]]+Dataset[[#This Row],[2025/26 From - Other reallocations]]","v":0},{"$f":"Dataset[[#This Row],[2023/24 To - Spending review Topic 1]]+Dataset[[#This Row],[2023/24 To - Spending review Topic 2]]+Dataset[[#This Row],[2023/24 To - Spending review Topic 3]]+Dataset[[#This Row],[2023/24 To - Spending review Topic 4]]+Dataset[[#This Row],[2023/24 To - Other reallocations]]","v":0},{"$f":"Dataset[[#This Row],[2024/25 To - Spending review Topic 1]]+Dataset[[#This Row],[2024/25 To - Spending review Topic 2]]+Dataset[[#This Row],[2024/25 To - Spending review Topic 3]]+Dataset[[#This Row],[2024/25 To - Spending review Topic 4]]+Dataset[[#This Row],[2024/25 To - Other reallocations]]","v":0},{"$f":"Dataset[[#This Row],[2025/26 To - Spending review Topic 1]]+Dataset[[#This Row],[2025/26 To - Spending review Topic 2]]+Dataset[[#This Row],[2025/26 To - Spending review Topic 3]]+Dataset[[#This Row],[2025/26 To - Spending review Topic 4]]+Dataset[[#This Row],[2025/26 To - Other reallocations]]","v":0},{"$f":"Dataset[[#This Row],[2023/24 Baseline]]+Dataset[[#This Row],[2023/24 From - Total]]+Dataset[[#This Row],[2023/24 To - Total]]","v":0},{"$f":"Dataset[[#This Row],[2024/25 Baseline]]+Dataset[[#This Row],[2024/25 From - Total]]+Dataset[[#This Row],[2024/25 To - Total]]","v":0},{"$f":"Dataset[[#This Row],[2025/26 Baseline]]+Dataset[[#This Row],[2025/26 From - Total]]+Dataset[[#This Row],[2025/26 To - Total]]","v":0}]
["NAT|Non-transfer item","2|Software and other intangible assets","2023_24","MTEF2023",2,3,1,1155,538,"02","03","01","001155","000538","02|03|01",2,3,17,62,66,"02|03|17|62|66","National","Parliament","Associated Services","Members Facilities","Non-transfer item","Capital","Payments for capital assets","Software and other intangible assets","Software and other intangible assets","Software and other intangible assets","General public services","Executive and legislative organs","NAT",0,0,0,0,0,0,0,0,0,0,0,null,null,null,null,null,null,null,null,null,null,null,null,null,null,null,null,null,null,null,null,null,null,null,null,null,null,null,null,null,null,{"$f":"Dataset[[#This Row],[2023/24 From - Spending review Topic 1]]+Dataset[[#This Row],[2023/24 From - Spending review Topic 2]]+Dataset[[#This Row],[2023/24 From - Spending review Topic 3]]+Dataset[[#This Row],[2023/24 From - Spending review Topic 4]]+Dataset[[#This Row],[2023/24 From - Other reallocations]]","v":0},{"$f":"Dataset[[#This Row],[2024/25 From - Spending review Topic 1]]+Dataset[[#This Row],[2024/25 From - Spending review Topic 2]]+Dataset[[#This Row],[2024/25 From - Spending review Topic 3]]+Dataset[[#This Row],[2024/25 From - Spending review Topic 4]]+Dataset[[#This Row],[2024/25 From - Other reallocations]]","v":0},{"$f":"Dataset[[#This Row],[2025/26 From - Spending review Topic 1]]+Dataset[[#This Row],[2025/26 From - Spending review Topic 2]]+Dataset[[#This Row],[2025/26 From - Spending review Topic 3]]+Dataset[[#This Row],[2025/26 From - Spending review Topic 4]]+Dataset[[#This Row],[2025/26 From - Other reallocations]]","v":0},{"$f":"Dataset[[#This Row],[2023/24 To - Spending review Topic 1]]+Dataset[[#This Row],[2023/24 To - Spending review Topic 2]]+Dataset[[#This Row],[2023/24 To - Spending review Topic 3]]+Dataset[[#This Row],[2023/24 To - Spending review Topic 4]]+Dataset[[#This Row],[2023/24 To - Other reallocations]]","v":0},{"$f":"Dataset[[#This Row],[2024/25 To - Spending review Topic 1]]+Dataset[[#This Row],[2024/25 To - Spending review Topic 2]]+Dataset[[#This Row],[2024/25 To - Spending review Topic 3]]+Dataset[[#This Row],[2024/25 To - Spending review Topic 4]]+Dataset[[#This Row],[2024/25 To - Other reallocations]]","v":0},{"$f":"Dataset[[#This Row],[2025/26 To - Spending review Topic 1]]+Dataset[[#This Row],[2025/26 To - Spending review Topic 2]]+Dataset[[#This Row],[2025/26 To - Spending review Topic 3]]+Dataset[[#This Row],[2025/26 To - Spending review Topic 4]]+Dataset[[#This Row],[2025/26 To - Other reallocations]]","v":0},{"$f":"Dataset[[#This Row],[2023/24 Baseline]]+Dataset[[#This Row],[2023/24 From - Total]]+Dataset[[#This Row],[2023/24 To - Total]]","v":0},{"$f":"Dataset[[#This Row],[2024/25 Baseline]]+Dataset[[#This Row],[2024/25 From - Total]]+Dataset[[#This Row],[2024/25 To - Total]]","v":0},{"$f":"Dataset[[#This Row],[2025/26 Baseline]]+Dataset[[#This Row],[2025/26 From - Total]]+Dataset[[#This Row],[2025/26 To - Total]]","v":0}]
["NAT|Non-transfer item","2|Payments for financial assets","2023_24","MTEF2023",2,3,1,1156,539,"02","03","01","001156","000539","02|03|01",3,4,18,63,67,"03|04|18|63|67","National","Parliament","Associated Services","Members Facilities","Non-transfer item","Payments for financial assets","Payments for financial assets","Payments for financial assets","Payments for financial assets","Payments for financial assets","General public services","Executive and legislative organs","NAT",0,0,0,0,0,0,0,0,0,0,0,null,null,null,null,null,null,null,null,null,null,null,null,null,null,null,null,null,null,null,null,null,null,null,null,null,null,null,null,null,null,{"$f":"Dataset[[#This Row],[2023/24 From - Spending review Topic 1]]+Dataset[[#This Row],[2023/24 From - Spending review Topic 2]]+Dataset[[#This Row],[2023/24 From - Spending review Topic 3]]+Dataset[[#This Row],[2023/24 From - Spending review Topic 4]]+Dataset[[#This Row],[2023/24 From - Other reallocations]]","v":0},{"$f":"Dataset[[#This Row],[2024/25 From - Spending review Topic 1]]+Dataset[[#This Row],[2024/25 From - Spending review Topic 2]]+Dataset[[#This Row],[2024/25 From - Spending review Topic 3]]+Dataset[[#This Row],[2024/25 From - Spending review Topic 4]]+Dataset[[#This Row],[2024/25 From - Other reallocations]]","v":0},{"$f":"Dataset[[#This Row],[2025/26 From - Spending review Topic 1]]+Dataset[[#This Row],[2025/26 From - Spending review Topic 2]]+Dataset[[#This Row],[2025/26 From - Spending review Topic 3]]+Dataset[[#This Row],[2025/26 From - Spending review Topic 4]]+Dataset[[#This Row],[2025/26 From - Other reallocations]]","v":0},{"$f":"Dataset[[#This Row],[2023/24 To - Spending review Topic 1]]+Dataset[[#This Row],[2023/24 To - Spending review Topic 2]]+Dataset[[#This Row],[2023/24 To - Spending review Topic 3]]+Dataset[[#This Row],[2023/24 To - Spending review Topic 4]]+Dataset[[#This Row],[2023/24 To - Other reallocations]]","v":0},{"$f":"Dataset[[#This Row],[2024/25 To - Spending review Topic 1]]+Dataset[[#This Row],[2024/25 To - Spending review Topic 2]]+Dataset[[#This Row],[2024/25 To - Spending review Topic 3]]+Dataset[[#This Row],[2024/25 To - Spending review Topic 4]]+Dataset[[#This Row],[2024/25 To - Other reallocations]]","v":0},{"$f":"Dataset[[#This Row],[2025/26 To - Spending review Topic 1]]+Dataset[[#This Row],[2025/26 To - Spending review Topic 2]]+Dataset[[#This Row],[2025/26 To - Spending review Topic 3]]+Dataset[[#This Row],[2025/26 To - Spending review Topic 4]]+Dataset[[#This Row],[2025/26 To - Other reallocations]]","v":0},{"$f":"Dataset[[#This Row],[2023/24 Baseline]]+Dataset[[#This Row],[2023/24 From - Total]]+Dataset[[#This Row],[2023/24 To - Total]]","v":0},{"$f":"Dataset[[#This Row],[2024/25 Baseline]]+Dataset[[#This Row],[2024/25 From - Total]]+Dataset[[#This Row],[2024/25 To - Total]]","v":0},{"$f":"Dataset[[#This Row],[2025/26 Baseline]]+Dataset[[#This Row],[2025/26 From - Total]]+Dataset[[#This Row],[2025/26 To - Total]]","v":0}]
["NAT|Non-transfer item","2|Salaries and wages","2023_24","MTEF2023",2,3,2,1157,540,"02","03","02","001157","000540","02|03|02",1,1,1,1,1,"01|01|01|01|01","National","Parliament","Associated Services","Transfer to Political Party Allowances","Non-transfer item","Current","Current payments","Compensation of employees","Salaries and wages","Salaries and wages","General public services","Executive and legislative organs","NAT",0,0,0,0,0,0,0,0,0,0,0,null,null,null,null,null,null,null,null,null,null,null,null,null,null,null,null,null,null,null,null,null,null,null,null,null,null,null,null,null,null,{"$f":"Dataset[[#This Row],[2023/24 From - Spending review Topic 1]]+Dataset[[#This Row],[2023/24 From - Spending review Topic 2]]+Dataset[[#This Row],[2023/24 From - Spending review Topic 3]]+Dataset[[#This Row],[2023/24 From - Spending review Topic 4]]+Dataset[[#This Row],[2023/24 From - Other reallocations]]","v":0},{"$f":"Dataset[[#This Row],[2024/25 From - Spending review Topic 1]]+Dataset[[#This Row],[2024/25 From - Spending review Topic 2]]+Dataset[[#This Row],[2024/25 From - Spending review Topic 3]]+Dataset[[#This Row],[2024/25 From - Spending review Topic 4]]+Dataset[[#This Row],[2024/25 From - Other reallocations]]","v":0},{"$f":"Dataset[[#This Row],[2025/26 From - Spending review Topic 1]]+Dataset[[#This Row],[2025/26 From - Spending review Topic 2]]+Dataset[[#This Row],[2025/26 From - Spending review Topic 3]]+Dataset[[#This Row],[2025/26 From - Spending review Topic 4]]+Dataset[[#This Row],[2025/26 From - Other reallocations]]","v":0},{"$f":"Dataset[[#This Row],[2023/24 To - Spending review Topic 1]]+Dataset[[#This Row],[2023/24 To - Spending review Topic 2]]+Dataset[[#This Row],[2023/24 To - Spending review Topic 3]]+Dataset[[#This Row],[2023/24 To - Spending review Topic 4]]+Dataset[[#This Row],[2023/24 To - Other reallocations]]","v":0},{"$f":"Dataset[[#This Row],[2024/25 To - Spending review Topic 1]]+Dataset[[#This Row],[2024/25 To - Spending review Topic 2]]+Dataset[[#This Row],[2024/25 To - Spending review Topic 3]]+Dataset[[#This Row],[2024/25 To - Spending review Topic 4]]+Dataset[[#This Row],[2024/25 To - Other reallocations]]","v":0},{"$f":"Dataset[[#This Row],[2025/26 To - Spending review Topic 1]]+Dataset[[#This Row],[2025/26 To - Spending review Topic 2]]+Dataset[[#This Row],[2025/26 To - Spending review Topic 3]]+Dataset[[#This Row],[2025/26 To - Spending review Topic 4]]+Dataset[[#This Row],[2025/26 To - Other reallocations]]","v":0},{"$f":"Dataset[[#This Row],[2023/24 Baseline]]+Dataset[[#This Row],[2023/24 From - Total]]+Dataset[[#This Row],[2023/24 To - Total]]","v":0},{"$f":"Dataset[[#This Row],[2024/25 Baseline]]+Dataset[[#This Row],[2024/25 From - Total]]+Dataset[[#This Row],[2024/25 To - Total]]","v":0},{"$f":"Dataset[[#This Row],[2025/26 Baseline]]+Dataset[[#This Row],[2025/26 From - Total]]+Dataset[[#This Row],[2025/26 To - Total]]","v":0}]
["NAT|Non-transfer item","2|Social contributions","2023_24","MTEF2023",2,3,2,1158,541,"02","03","02","001158","000541","02|03|02",1,1,1,2,2,"01|01|01|02|02","National","Parliament","Associated Services","Transfer to Political Party Allowances","Non-transfer item","Current","Current payments","Compensation of employees","Social contributions","Social contributions","General public services","Executive and legislative organs","NAT",0,0,0,0,0,0,0,0,0,0,0,null,null,null,null,null,null,null,null,null,null,null,null,null,null,null,null,null,null,null,null,null,null,null,null,null,null,null,null,null,null,{"$f":"Dataset[[#This Row],[2023/24 From - Spending review Topic 1]]+Dataset[[#This Row],[2023/24 From - Spending review Topic 2]]+Dataset[[#This Row],[2023/24 From - Spending review Topic 3]]+Dataset[[#This Row],[2023/24 From - Spending review Topic 4]]+Dataset[[#This Row],[2023/24 From - Other reallocations]]","v":0},{"$f":"Dataset[[#This Row],[2024/25 From - Spending review Topic 1]]+Dataset[[#This Row],[2024/25 From - Spending review Topic 2]]+Dataset[[#This Row],[2024/25 From - Spending review Topic 3]]+Dataset[[#This Row],[2024/25 From - Spending review Topic 4]]+Dataset[[#This Row],[2024/25 From - Other reallocations]]","v":0},{"$f":"Dataset[[#This Row],[2025/26 From - Spending review Topic 1]]+Dataset[[#This Row],[2025/26 From - Spending review Topic 2]]+Dataset[[#This Row],[2025/26 From - Spending review Topic 3]]+Dataset[[#This Row],[2025/26 From - Spending review Topic 4]]+Dataset[[#This Row],[2025/26 From - Other reallocations]]","v":0},{"$f":"Dataset[[#This Row],[2023/24 To - Spending review Topic 1]]+Dataset[[#This Row],[2023/24 To - Spending review Topic 2]]+Dataset[[#This Row],[2023/24 To - Spending review Topic 3]]+Dataset[[#This Row],[2023/24 To - Spending review Topic 4]]+Dataset[[#This Row],[2023/24 To - Other reallocations]]","v":0},{"$f":"Dataset[[#This Row],[2024/25 To - Spending review Topic 1]]+Dataset[[#This Row],[2024/25 To - Spending review Topic 2]]+Dataset[[#This Row],[2024/25 To - Spending review Topic 3]]+Dataset[[#This Row],[2024/25 To - Spending review Topic 4]]+Dataset[[#This Row],[2024/25 To - Other reallocations]]","v":0},{"$f":"Dataset[[#This Row],[2025/26 To - Spending review Topic 1]]+Dataset[[#This Row],[2025/26 To - Spending review Topic 2]]+Dataset[[#This Row],[2025/26 To - Spending review Topic 3]]+Dataset[[#This Row],[2025/26 To - Spending review Topic 4]]+Dataset[[#This Row],[2025/26 To - Other reallocations]]","v":0},{"$f":"Dataset[[#This Row],[2023/24 Baseline]]+Dataset[[#This Row],[2023/24 From - Total]]+Dataset[[#This Row],[2023/24 To - Total]]","v":0},{"$f":"Dataset[[#This Row],[2024/25 Baseline]]+Dataset[[#This Row],[2024/25 From - Total]]+Dataset[[#This Row],[2024/25 To - Total]]","v":0},{"$f":"Dataset[[#This Row],[2025/26 Baseline]]+Dataset[[#This Row],[2025/26 From - Total]]+Dataset[[#This Row],[2025/26 To - Total]]","v":0}]
["NAT|Non-transfer item","2|Administrative fees","2023_24","MTEF2023",2,3,2,1159,542,"02","03","02","001159","000542","02|03|02",1,1,2,3,3,"01|01|02|03|03","National","Parliament","Associated Services","Transfer to Political Party Allowances","Non-transfer item","Current","Current payments","Goods and services","Administrative fees","Administrative fees","General public services","Executive and legislative organs","NAT",0,0,0,0,0,0,0,0,0,0,0,null,null,null,null,null,null,null,null,null,null,null,null,null,null,null,null,null,null,null,null,null,null,null,null,null,null,null,null,null,null,{"$f":"Dataset[[#This Row],[2023/24 From - Spending review Topic 1]]+Dataset[[#This Row],[2023/24 From - Spending review Topic 2]]+Dataset[[#This Row],[2023/24 From - Spending review Topic 3]]+Dataset[[#This Row],[2023/24 From - Spending review Topic 4]]+Dataset[[#This Row],[2023/24 From - Other reallocations]]","v":0},{"$f":"Dataset[[#This Row],[2024/25 From - Spending review Topic 1]]+Dataset[[#This Row],[2024/25 From - Spending review Topic 2]]+Dataset[[#This Row],[2024/25 From - Spending review Topic 3]]+Dataset[[#This Row],[2024/25 From - Spending review Topic 4]]+Dataset[[#This Row],[2024/25 From - Other reallocations]]","v":0},{"$f":"Dataset[[#This Row],[2025/26 From - Spending review Topic 1]]+Dataset[[#This Row],[2025/26 From - Spending review Topic 2]]+Dataset[[#This Row],[2025/26 From - Spending review Topic 3]]+Dataset[[#This Row],[2025/26 From - Spending review Topic 4]]+Dataset[[#This Row],[2025/26 From - Other reallocations]]","v":0},{"$f":"Dataset[[#This Row],[2023/24 To - Spending review Topic 1]]+Dataset[[#This Row],[2023/24 To - Spending review Topic 2]]+Dataset[[#This Row],[2023/24 To - Spending review Topic 3]]+Dataset[[#This Row],[2023/24 To - Spending review Topic 4]]+Dataset[[#This Row],[2023/24 To - Other reallocations]]","v":0},{"$f":"Dataset[[#This Row],[2024/25 To - Spending review Topic 1]]+Dataset[[#This Row],[2024/25 To - Spending review Topic 2]]+Dataset[[#This Row],[2024/25 To - Spending review Topic 3]]+Dataset[[#This Row],[2024/25 To - Spending review Topic 4]]+Dataset[[#This Row],[2024/25 To - Other reallocations]]","v":0},{"$f":"Dataset[[#This Row],[2025/26 To - Spending review Topic 1]]+Dataset[[#This Row],[2025/26 To - Spending review Topic 2]]+Dataset[[#This Row],[2025/26 To - Spending review Topic 3]]+Dataset[[#This Row],[2025/26 To - Spending review Topic 4]]+Dataset[[#This Row],[2025/26 To - Other reallocations]]","v":0},{"$f":"Dataset[[#This Row],[2023/24 Baseline]]+Dataset[[#This Row],[2023/24 From - Total]]+Dataset[[#This Row],[2023/24 To - Total]]","v":0},{"$f":"Dataset[[#This Row],[2024/25 Baseline]]+Dataset[[#This Row],[2024/25 From - Total]]+Dataset[[#This Row],[2024/25 To - Total]]","v":0},{"$f":"Dataset[[#This Row],[2025/26 Baseline]]+Dataset[[#This Row],[2025/26 From - Total]]+Dataset[[#This Row],[2025/26 To - Total]]","v":0}]
["NAT|Non-transfer item","2|Advertising","2023_24","MTEF2023",2,3,2,1160,543,"02","03","02","001160","000543","02|03|02",1,1,2,4,4,"01|01|02|04|04","National","Parliament","Associated Services","Transfer to Political Party Allowances","Non-transfer item","Current","Current payments","Goods and services","Advertising","Advertising","General public services","Executive and legislative organs","NAT",0,0,0,0,0,0,0,0,0,0,0,null,null,null,null,null,null,null,null,null,null,null,null,null,null,null,null,null,null,null,null,null,null,null,null,null,null,null,null,null,null,{"$f":"Dataset[[#This Row],[2023/24 From - Spending review Topic 1]]+Dataset[[#This Row],[2023/24 From - Spending review Topic 2]]+Dataset[[#This Row],[2023/24 From - Spending review Topic 3]]+Dataset[[#This Row],[2023/24 From - Spending review Topic 4]]+Dataset[[#This Row],[2023/24 From - Other reallocations]]","v":0},{"$f":"Dataset[[#This Row],[2024/25 From - Spending review Topic 1]]+Dataset[[#This Row],[2024/25 From - Spending review Topic 2]]+Dataset[[#This Row],[2024/25 From - Spending review Topic 3]]+Dataset[[#This Row],[2024/25 From - Spending review Topic 4]]+Dataset[[#This Row],[2024/25 From - Other reallocations]]","v":0},{"$f":"Dataset[[#This Row],[2025/26 From - Spending review Topic 1]]+Dataset[[#This Row],[2025/26 From - Spending review Topic 2]]+Dataset[[#This Row],[2025/26 From - Spending review Topic 3]]+Dataset[[#This Row],[2025/26 From - Spending review Topic 4]]+Dataset[[#This Row],[2025/26 From - Other reallocations]]","v":0},{"$f":"Dataset[[#This Row],[2023/24 To - Spending review Topic 1]]+Dataset[[#This Row],[2023/24 To - Spending review Topic 2]]+Dataset[[#This Row],[2023/24 To - Spending review Topic 3]]+Dataset[[#This Row],[2023/24 To - Spending review Topic 4]]+Dataset[[#This Row],[2023/24 To - Other reallocations]]","v":0},{"$f":"Dataset[[#This Row],[2024/25 To - Spending review Topic 1]]+Dataset[[#This Row],[2024/25 To - Spending review Topic 2]]+Dataset[[#This Row],[2024/25 To - Spending review Topic 3]]+Dataset[[#This Row],[2024/25 To - Spending review Topic 4]]+Dataset[[#This Row],[2024/25 To - Other reallocations]]","v":0},{"$f":"Dataset[[#This Row],[2025/26 To - Spending review Topic 1]]+Dataset[[#This Row],[2025/26 To - Spending review Topic 2]]+Dataset[[#This Row],[2025/26 To - Spending review Topic 3]]+Dataset[[#This Row],[2025/26 To - Spending review Topic 4]]+Dataset[[#This Row],[2025/26 To - Other reallocations]]","v":0},{"$f":"Dataset[[#This Row],[2023/24 Baseline]]+Dataset[[#This Row],[2023/24 From - Total]]+Dataset[[#This Row],[2023/24 To - Total]]","v":0},{"$f":"Dataset[[#This Row],[2024/25 Baseline]]+Dataset[[#This Row],[2024/25 From - Total]]+Dataset[[#This Row],[2024/25 To - Total]]","v":0},{"$f":"Dataset[[#This Row],[2025/26 Baseline]]+Dataset[[#This Row],[2025/26 From - Total]]+Dataset[[#This Row],[2025/26 To - Total]]","v":0}]
["NAT|Non-transfer item","2|Minor assets","2023_24","MTEF2023",2,3,2,1161,544,"02","03","02","001161","000544","02|03|02",1,1,2,5,5,"01|01|02|05|05","National","Parliament","Associated Services","Transfer to Political Party Allowances","Non-transfer item","Current","Current payments","Goods and services","Minor assets","Minor assets","General public services","Executive and legislative organs","NAT",0,0,0,0,0,0,0,0,0,0,0,null,null,null,null,null,null,null,null,null,null,null,null,null,null,null,null,null,null,null,null,null,null,null,null,null,null,null,null,null,null,{"$f":"Dataset[[#This Row],[2023/24 From - Spending review Topic 1]]+Dataset[[#This Row],[2023/24 From - Spending review Topic 2]]+Dataset[[#This Row],[2023/24 From - Spending review Topic 3]]+Dataset[[#This Row],[2023/24 From - Spending review Topic 4]]+Dataset[[#This Row],[2023/24 From - Other reallocations]]","v":0},{"$f":"Dataset[[#This Row],[2024/25 From - Spending review Topic 1]]+Dataset[[#This Row],[2024/25 From - Spending review Topic 2]]+Dataset[[#This Row],[2024/25 From - Spending review Topic 3]]+Dataset[[#This Row],[2024/25 From - Spending review Topic 4]]+Dataset[[#This Row],[2024/25 From - Other reallocations]]","v":0},{"$f":"Dataset[[#This Row],[2025/26 From - Spending review Topic 1]]+Dataset[[#This Row],[2025/26 From - Spending review Topic 2]]+Dataset[[#This Row],[2025/26 From - Spending review Topic 3]]+Dataset[[#This Row],[2025/26 From - Spending review Topic 4]]+Dataset[[#This Row],[2025/26 From - Other reallocations]]","v":0},{"$f":"Dataset[[#This Row],[2023/24 To - Spending review Topic 1]]+Dataset[[#This Row],[2023/24 To - Spending review Topic 2]]+Dataset[[#This Row],[2023/24 To - Spending review Topic 3]]+Dataset[[#This Row],[2023/24 To - Spending review Topic 4]]+Dataset[[#This Row],[2023/24 To - Other reallocations]]","v":0},{"$f":"Dataset[[#This Row],[2024/25 To - Spending review Topic 1]]+Dataset[[#This Row],[2024/25 To - Spending review Topic 2]]+Dataset[[#This Row],[2024/25 To - Spending review Topic 3]]+Dataset[[#This Row],[2024/25 To - Spending review Topic 4]]+Dataset[[#This Row],[2024/25 To - Other reallocations]]","v":0},{"$f":"Dataset[[#This Row],[2025/26 To - Spending review Topic 1]]+Dataset[[#This Row],[2025/26 To - Spending review Topic 2]]+Dataset[[#This Row],[2025/26 To - Spending review Topic 3]]+Dataset[[#This Row],[2025/26 To - Spending review Topic 4]]+Dataset[[#This Row],[2025/26 To - Other reallocations]]","v":0},{"$f":"Dataset[[#This Row],[2023/24 Baseline]]+Dataset[[#This Row],[2023/24 From - Total]]+Dataset[[#This Row],[2023/24 To - Total]]","v":0},{"$f":"Dataset[[#This Row],[2024/25 Baseline]]+Dataset[[#This Row],[2024/25 From - Total]]+Dataset[[#This Row],[2024/25 To - Total]]","v":0},{"$f":"Dataset[[#This Row],[2025/26 Baseline]]+Dataset[[#This Row],[2025/26 From - Total]]+Dataset[[#This Row],[2025/26 To - Total]]","v":0}]
["NAT|Non-transfer item","2|Audit costs: External","2023_24","MTEF2023",2,3,2,1162,545,"02","03","02","001162","000545","02|03|02",1,1,2,6,6,"01|01|02|06|06","National","Parliament","Associated Services","Transfer to Political Party Allowances","Non-transfer item","Current","Current payments","Goods and services","Audit costs: External","Audit costs: External","General public services","Executive and legislative organs","NAT",0,0,0,0,0,0,0,0,0,0,0,null,null,null,null,null,null,null,null,null,null,null,null,null,null,null,null,null,null,null,null,null,null,null,null,null,null,null,null,null,null,{"$f":"Dataset[[#This Row],[2023/24 From - Spending review Topic 1]]+Dataset[[#This Row],[2023/24 From - Spending review Topic 2]]+Dataset[[#This Row],[2023/24 From - Spending review Topic 3]]+Dataset[[#This Row],[2023/24 From - Spending review Topic 4]]+Dataset[[#This Row],[2023/24 From - Other reallocations]]","v":0},{"$f":"Dataset[[#This Row],[2024/25 From - Spending review Topic 1]]+Dataset[[#This Row],[2024/25 From - Spending review Topic 2]]+Dataset[[#This Row],[2024/25 From - Spending review Topic 3]]+Dataset[[#This Row],[2024/25 From - Spending review Topic 4]]+Dataset[[#This Row],[2024/25 From - Other reallocations]]","v":0},{"$f":"Dataset[[#This Row],[2025/26 From - Spending review Topic 1]]+Dataset[[#This Row],[2025/26 From - Spending review Topic 2]]+Dataset[[#This Row],[2025/26 From - Spending review Topic 3]]+Dataset[[#This Row],[2025/26 From - Spending review Topic 4]]+Dataset[[#This Row],[2025/26 From - Other reallocations]]","v":0},{"$f":"Dataset[[#This Row],[2023/24 To - Spending review Topic 1]]+Dataset[[#This Row],[2023/24 To - Spending review Topic 2]]+Dataset[[#This Row],[2023/24 To - Spending review Topic 3]]+Dataset[[#This Row],[2023/24 To - Spending review Topic 4]]+Dataset[[#This Row],[2023/24 To - Other reallocations]]","v":0},{"$f":"Dataset[[#This Row],[2024/25 To - Spending review Topic 1]]+Dataset[[#This Row],[2024/25 To - Spending review Topic 2]]+Dataset[[#This Row],[2024/25 To - Spending review Topic 3]]+Dataset[[#This Row],[2024/25 To - Spending review Topic 4]]+Dataset[[#This Row],[2024/25 To - Other reallocations]]","v":0},{"$f":"Dataset[[#This Row],[2025/26 To - Spending review Topic 1]]+Dataset[[#This Row],[2025/26 To - Spending review Topic 2]]+Dataset[[#This Row],[2025/26 To - Spending review Topic 3]]+Dataset[[#This Row],[2025/26 To - Spending review Topic 4]]+Dataset[[#This Row],[2025/26 To - Other reallocations]]","v":0},{"$f":"Dataset[[#This Row],[2023/24 Baseline]]+Dataset[[#This Row],[2023/24 From - Total]]+Dataset[[#This Row],[2023/24 To - Total]]","v":0},{"$f":"Dataset[[#This Row],[2024/25 Baseline]]+Dataset[[#This Row],[2024/25 From - Total]]+Dataset[[#This Row],[2024/25 To - Total]]","v":0},{"$f":"Dataset[[#This Row],[2025/26 Baseline]]+Dataset[[#This Row],[2025/26 From - Total]]+Dataset[[#This Row],[2025/26 To - Total]]","v":0}]
["NAT|Non-transfer item","2|Bursaries: Employees","2023_24","MTEF2023",2,3,2,1163,546,"02","03","02","001163","000546","02|03|02",1,1,2,7,7,"01|01|02|07|07","National","Parliament","Associated Services","Transfer to Political Party Allowances","Non-transfer item","Current","Current payments","Goods and services","Bursaries: Employees","Bursaries: Employees","General public services","Executive and legislative organs","NAT",0,0,0,0,0,0,0,0,0,0,0,null,null,null,null,null,null,null,null,null,null,null,null,null,null,null,null,null,null,null,null,null,null,null,null,null,null,null,null,null,null,{"$f":"Dataset[[#This Row],[2023/24 From - Spending review Topic 1]]+Dataset[[#This Row],[2023/24 From - Spending review Topic 2]]+Dataset[[#This Row],[2023/24 From - Spending review Topic 3]]+Dataset[[#This Row],[2023/24 From - Spending review Topic 4]]+Dataset[[#This Row],[2023/24 From - Other reallocations]]","v":0},{"$f":"Dataset[[#This Row],[2024/25 From - Spending review Topic 1]]+Dataset[[#This Row],[2024/25 From - Spending review Topic 2]]+Dataset[[#This Row],[2024/25 From - Spending review Topic 3]]+Dataset[[#This Row],[2024/25 From - Spending review Topic 4]]+Dataset[[#This Row],[2024/25 From - Other reallocations]]","v":0},{"$f":"Dataset[[#This Row],[2025/26 From - Spending review Topic 1]]+Dataset[[#This Row],[2025/26 From - Spending review Topic 2]]+Dataset[[#This Row],[2025/26 From - Spending review Topic 3]]+Dataset[[#This Row],[2025/26 From - Spending review Topic 4]]+Dataset[[#This Row],[2025/26 From - Other reallocations]]","v":0},{"$f":"Dataset[[#This Row],[2023/24 To - Spending review Topic 1]]+Dataset[[#This Row],[2023/24 To - Spending review Topic 2]]+Dataset[[#This Row],[2023/24 To - Spending review Topic 3]]+Dataset[[#This Row],[2023/24 To - Spending review Topic 4]]+Dataset[[#This Row],[2023/24 To - Other reallocations]]","v":0},{"$f":"Dataset[[#This Row],[2024/25 To - Spending review Topic 1]]+Dataset[[#This Row],[2024/25 To - Spending review Topic 2]]+Dataset[[#This Row],[2024/25 To - Spending review Topic 3]]+Dataset[[#This Row],[2024/25 To - Spending review Topic 4]]+Dataset[[#This Row],[2024/25 To - Other reallocations]]","v":0},{"$f":"Dataset[[#This Row],[2025/26 To - Spending review Topic 1]]+Dataset[[#This Row],[2025/26 To - Spending review Topic 2]]+Dataset[[#This Row],[2025/26 To - Spending review Topic 3]]+Dataset[[#This Row],[2025/26 To - Spending review Topic 4]]+Dataset[[#This Row],[2025/26 To - Other reallocations]]","v":0},{"$f":"Dataset[[#This Row],[2023/24 Baseline]]+Dataset[[#This Row],[2023/24 From - Total]]+Dataset[[#This Row],[2023/24 To - Total]]","v":0},{"$f":"Dataset[[#This Row],[2024/25 Baseline]]+Dataset[[#This Row],[2024/25 From - Total]]+Dataset[[#This Row],[2024/25 To - Total]]","v":0},{"$f":"Dataset[[#This Row],[2025/26 Baseline]]+Dataset[[#This Row],[2025/26 From - Total]]+Dataset[[#This Row],[2025/26 To - Total]]","v":0}]
["NAT|Non-transfer item","2|Catering: Departmental activities","2023_24","MTEF2023",2,3,2,1164,547,"02","03","02","001164","000547","02|03|02",1,1,2,8,8,"01|01|02|08|08","National","Parliament","Associated Services","Transfer to Political Party Allowances","Non-transfer item","Current","Current payments","Goods and services","Catering: Departmental activities","Catering: Departmental activities","General public services","Executive and legislative organs","NAT",0,0,0,0,0,0,0,0,0,0,0,null,null,null,null,null,null,null,null,null,null,null,null,null,null,null,null,null,null,null,null,null,null,null,null,null,null,null,null,null,null,{"$f":"Dataset[[#This Row],[2023/24 From - Spending review Topic 1]]+Dataset[[#This Row],[2023/24 From - Spending review Topic 2]]+Dataset[[#This Row],[2023/24 From - Spending review Topic 3]]+Dataset[[#This Row],[2023/24 From - Spending review Topic 4]]+Dataset[[#This Row],[2023/24 From - Other reallocations]]","v":0},{"$f":"Dataset[[#This Row],[2024/25 From - Spending review Topic 1]]+Dataset[[#This Row],[2024/25 From - Spending review Topic 2]]+Dataset[[#This Row],[2024/25 From - Spending review Topic 3]]+Dataset[[#This Row],[2024/25 From - Spending review Topic 4]]+Dataset[[#This Row],[2024/25 From - Other reallocations]]","v":0},{"$f":"Dataset[[#This Row],[2025/26 From - Spending review Topic 1]]+Dataset[[#This Row],[2025/26 From - Spending review Topic 2]]+Dataset[[#This Row],[2025/26 From - Spending review Topic 3]]+Dataset[[#This Row],[2025/26 From - Spending review Topic 4]]+Dataset[[#This Row],[2025/26 From - Other reallocations]]","v":0},{"$f":"Dataset[[#This Row],[2023/24 To - Spending review Topic 1]]+Dataset[[#This Row],[2023/24 To - Spending review Topic 2]]+Dataset[[#This Row],[2023/24 To - Spending review Topic 3]]+Dataset[[#This Row],[2023/24 To - Spending review Topic 4]]+Dataset[[#This Row],[2023/24 To - Other reallocations]]","v":0},{"$f":"Dataset[[#This Row],[2024/25 To - Spending review Topic 1]]+Dataset[[#This Row],[2024/25 To - Spending review Topic 2]]+Dataset[[#This Row],[2024/25 To - Spending review Topic 3]]+Dataset[[#This Row],[2024/25 To - Spending review Topic 4]]+Dataset[[#This Row],[2024/25 To - Other reallocations]]","v":0},{"$f":"Dataset[[#This Row],[2025/26 To - Spending review Topic 1]]+Dataset[[#This Row],[2025/26 To - Spending review Topic 2]]+Dataset[[#This Row],[2025/26 To - Spending review Topic 3]]+Dataset[[#This Row],[2025/26 To - Spending review Topic 4]]+Dataset[[#This Row],[2025/26 To - Other reallocations]]","v":0},{"$f":"Dataset[[#This Row],[2023/24 Baseline]]+Dataset[[#This Row],[2023/24 From - Total]]+Dataset[[#This Row],[2023/24 To - Total]]","v":0},{"$f":"Dataset[[#This Row],[2024/25 Baseline]]+Dataset[[#This Row],[2024/25 From - Total]]+Dataset[[#This Row],[2024/25 To - Total]]","v":0},{"$f":"Dataset[[#This Row],[2025/26 Baseline]]+Dataset[[#This Row],[2025/26 From - Total]]+Dataset[[#This Row],[2025/26 To - Total]]","v":0}]
["NAT|Non-transfer item","2|Communication (G&S)","2023_24","MTEF2023",2,3,2,1165,548,"02","03","02","001165","000548","02|03|02",1,1,2,9,9,"01|01|02|09|09","National","Parliament","Associated Services","Transfer to Political Party Allowances","Non-transfer item","Current","Current payments","Goods and services","Communication (G&S)","Communication (G&S)","General public services","Executive and legislative organs","NAT",0,0,0,0,0,0,0,0,0,0,0,null,null,null,null,null,null,null,null,null,null,null,null,null,null,null,null,null,null,null,null,null,null,null,null,null,null,null,null,null,null,{"$f":"Dataset[[#This Row],[2023/24 From - Spending review Topic 1]]+Dataset[[#This Row],[2023/24 From - Spending review Topic 2]]+Dataset[[#This Row],[2023/24 From - Spending review Topic 3]]+Dataset[[#This Row],[2023/24 From - Spending review Topic 4]]+Dataset[[#This Row],[2023/24 From - Other reallocations]]","v":0},{"$f":"Dataset[[#This Row],[2024/25 From - Spending review Topic 1]]+Dataset[[#This Row],[2024/25 From - Spending review Topic 2]]+Dataset[[#This Row],[2024/25 From - Spending review Topic 3]]+Dataset[[#This Row],[2024/25 From - Spending review Topic 4]]+Dataset[[#This Row],[2024/25 From - Other reallocations]]","v":0},{"$f":"Dataset[[#This Row],[2025/26 From - Spending review Topic 1]]+Dataset[[#This Row],[2025/26 From - Spending review Topic 2]]+Dataset[[#This Row],[2025/26 From - Spending review Topic 3]]+Dataset[[#This Row],[2025/26 From - Spending review Topic 4]]+Dataset[[#This Row],[2025/26 From - Other reallocations]]","v":0},{"$f":"Dataset[[#This Row],[2023/24 To - Spending review Topic 1]]+Dataset[[#This Row],[2023/24 To - Spending review Topic 2]]+Dataset[[#This Row],[2023/24 To - Spending review Topic 3]]+Dataset[[#This Row],[2023/24 To - Spending review Topic 4]]+Dataset[[#This Row],[2023/24 To - Other reallocations]]","v":0},{"$f":"Dataset[[#This Row],[2024/25 To - Spending review Topic 1]]+Dataset[[#This Row],[2024/25 To - Spending review Topic 2]]+Dataset[[#This Row],[2024/25 To - Spending review Topic 3]]+Dataset[[#This Row],[2024/25 To - Spending review Topic 4]]+Dataset[[#This Row],[2024/25 To - Other reallocations]]","v":0},{"$f":"Dataset[[#This Row],[2025/26 To - Spending review Topic 1]]+Dataset[[#This Row],[2025/26 To - Spending review Topic 2]]+Dataset[[#This Row],[2025/26 To - Spending review Topic 3]]+Dataset[[#This Row],[2025/26 To - Spending review Topic 4]]+Dataset[[#This Row],[2025/26 To - Other reallocations]]","v":0},{"$f":"Dataset[[#This Row],[2023/24 Baseline]]+Dataset[[#This Row],[2023/24 From - Total]]+Dataset[[#This Row],[2023/24 To - Total]]","v":0},{"$f":"Dataset[[#This Row],[2024/25 Baseline]]+Dataset[[#This Row],[2024/25 From - Total]]+Dataset[[#This Row],[2024/25 To - Total]]","v":0},{"$f":"Dataset[[#This Row],[2025/26 Baseline]]+Dataset[[#This Row],[2025/26 From - Total]]+Dataset[[#This Row],[2025/26 To - Total]]","v":0}]
["NAT|Non-transfer item","2|Computer services","2023_24","MTEF2023",2,3,2,1166,549,"02","03","02","001166","000549","02|03|02",1,1,2,10,10,"01|01|02|10|10","National","Parliament","Associated Services","Transfer to Political Party Allowances","Non-transfer item","Current","Current payments","Goods and services","Computer services","Computer services","General public services","Executive and legislative organs","NAT",0,0,0,0,0,0,0,0,0,0,0,null,null,null,null,null,null,null,null,null,null,null,null,null,null,null,null,null,null,null,null,null,null,null,null,null,null,null,null,null,null,{"$f":"Dataset[[#This Row],[2023/24 From - Spending review Topic 1]]+Dataset[[#This Row],[2023/24 From - Spending review Topic 2]]+Dataset[[#This Row],[2023/24 From - Spending review Topic 3]]+Dataset[[#This Row],[2023/24 From - Spending review Topic 4]]+Dataset[[#This Row],[2023/24 From - Other reallocations]]","v":0},{"$f":"Dataset[[#This Row],[2024/25 From - Spending review Topic 1]]+Dataset[[#This Row],[2024/25 From - Spending review Topic 2]]+Dataset[[#This Row],[2024/25 From - Spending review Topic 3]]+Dataset[[#This Row],[2024/25 From - Spending review Topic 4]]+Dataset[[#This Row],[2024/25 From - Other reallocations]]","v":0},{"$f":"Dataset[[#This Row],[2025/26 From - Spending review Topic 1]]+Dataset[[#This Row],[2025/26 From - Spending review Topic 2]]+Dataset[[#This Row],[2025/26 From - Spending review Topic 3]]+Dataset[[#This Row],[2025/26 From - Spending review Topic 4]]+Dataset[[#This Row],[2025/26 From - Other reallocations]]","v":0},{"$f":"Dataset[[#This Row],[2023/24 To - Spending review Topic 1]]+Dataset[[#This Row],[2023/24 To - Spending review Topic 2]]+Dataset[[#This Row],[2023/24 To - Spending review Topic 3]]+Dataset[[#This Row],[2023/24 To - Spending review Topic 4]]+Dataset[[#This Row],[2023/24 To - Other reallocations]]","v":0},{"$f":"Dataset[[#This Row],[2024/25 To - Spending review Topic 1]]+Dataset[[#This Row],[2024/25 To - Spending review Topic 2]]+Dataset[[#This Row],[2024/25 To - Spending review Topic 3]]+Dataset[[#This Row],[2024/25 To - Spending review Topic 4]]+Dataset[[#This Row],[2024/25 To - Other reallocations]]","v":0},{"$f":"Dataset[[#This Row],[2025/26 To - Spending review Topic 1]]+Dataset[[#This Row],[2025/26 To - Spending review Topic 2]]+Dataset[[#This Row],[2025/26 To - Spending review Topic 3]]+Dataset[[#This Row],[2025/26 To - Spending review Topic 4]]+Dataset[[#This Row],[2025/26 To - Other reallocations]]","v":0},{"$f":"Dataset[[#This Row],[2023/24 Baseline]]+Dataset[[#This Row],[2023/24 From - Total]]+Dataset[[#This Row],[2023/24 To - Total]]","v":0},{"$f":"Dataset[[#This Row],[2024/25 Baseline]]+Dataset[[#This Row],[2024/25 From - Total]]+Dataset[[#This Row],[2024/25 To - Total]]","v":0},{"$f":"Dataset[[#This Row],[2025/26 Baseline]]+Dataset[[#This Row],[2025/26 From - Total]]+Dataset[[#This Row],[2025/26 To - Total]]","v":0}]
["NAT|Non-transfer item","2|Consultants: Business and advisory services","2023_24","MTEF2023",2,3,2,1167,550,"02","03","02","001167","000550","02|03|02",1,1,2,11,11,"01|01|02|11|11","National","Parliament","Associated Services","Transfer to Political Party Allowances","Non-transfer item","Current","Current payments","Goods and services","Consultants: Business and advisory services","Consultants: Business and advisory services","General public services","Executive and legislative organs","NAT",0,0,0,0,0,0,0,0,0,0,0,null,null,null,null,null,null,null,null,null,null,null,null,null,null,null,null,null,null,null,null,null,null,null,null,null,null,null,null,null,null,{"$f":"Dataset[[#This Row],[2023/24 From - Spending review Topic 1]]+Dataset[[#This Row],[2023/24 From - Spending review Topic 2]]+Dataset[[#This Row],[2023/24 From - Spending review Topic 3]]+Dataset[[#This Row],[2023/24 From - Spending review Topic 4]]+Dataset[[#This Row],[2023/24 From - Other reallocations]]","v":0},{"$f":"Dataset[[#This Row],[2024/25 From - Spending review Topic 1]]+Dataset[[#This Row],[2024/25 From - Spending review Topic 2]]+Dataset[[#This Row],[2024/25 From - Spending review Topic 3]]+Dataset[[#This Row],[2024/25 From - Spending review Topic 4]]+Dataset[[#This Row],[2024/25 From - Other reallocations]]","v":0},{"$f":"Dataset[[#This Row],[2025/26 From - Spending review Topic 1]]+Dataset[[#This Row],[2025/26 From - Spending review Topic 2]]+Dataset[[#This Row],[2025/26 From - Spending review Topic 3]]+Dataset[[#This Row],[2025/26 From - Spending review Topic 4]]+Dataset[[#This Row],[2025/26 From - Other reallocations]]","v":0},{"$f":"Dataset[[#This Row],[2023/24 To - Spending review Topic 1]]+Dataset[[#This Row],[2023/24 To - Spending review Topic 2]]+Dataset[[#This Row],[2023/24 To - Spending review Topic 3]]+Dataset[[#This Row],[2023/24 To - Spending review Topic 4]]+Dataset[[#This Row],[2023/24 To - Other reallocations]]","v":0},{"$f":"Dataset[[#This Row],[2024/25 To - Spending review Topic 1]]+Dataset[[#This Row],[2024/25 To - Spending review Topic 2]]+Dataset[[#This Row],[2024/25 To - Spending review Topic 3]]+Dataset[[#This Row],[2024/25 To - Spending review Topic 4]]+Dataset[[#This Row],[2024/25 To - Other reallocations]]","v":0},{"$f":"Dataset[[#This Row],[2025/26 To - Spending review Topic 1]]+Dataset[[#This Row],[2025/26 To - Spending review Topic 2]]+Dataset[[#This Row],[2025/26 To - Spending review Topic 3]]+Dataset[[#This Row],[2025/26 To - Spending review Topic 4]]+Dataset[[#This Row],[2025/26 To - Other reallocations]]","v":0},{"$f":"Dataset[[#This Row],[2023/24 Baseline]]+Dataset[[#This Row],[2023/24 From - Total]]+Dataset[[#This Row],[2023/24 To - Total]]","v":0},{"$f":"Dataset[[#This Row],[2024/25 Baseline]]+Dataset[[#This Row],[2024/25 From - Total]]+Dataset[[#This Row],[2024/25 To - Total]]","v":0},{"$f":"Dataset[[#This Row],[2025/26 Baseline]]+Dataset[[#This Row],[2025/26 From - Total]]+Dataset[[#This Row],[2025/26 To - Total]]","v":0}]
["NAT|Non-transfer item","2|Infrastructure and planning services","2023_24","MTEF2023",2,3,2,1168,551,"02","03","02","001168","000551","02|03|02",1,1,2,12,12,"01|01|02|12|12","National","Parliament","Associated Services","Transfer to Political Party Allowances","Non-transfer item","Current","Current payments","Goods and services","Infrastructure and planning services","Infrastructure and planning services","General public services","Executive and legislative organs","NAT",0,0,0,0,0,0,0,0,0,0,0,null,null,null,null,null,null,null,null,null,null,null,null,null,null,null,null,null,null,null,null,null,null,null,null,null,null,null,null,null,null,{"$f":"Dataset[[#This Row],[2023/24 From - Spending review Topic 1]]+Dataset[[#This Row],[2023/24 From - Spending review Topic 2]]+Dataset[[#This Row],[2023/24 From - Spending review Topic 3]]+Dataset[[#This Row],[2023/24 From - Spending review Topic 4]]+Dataset[[#This Row],[2023/24 From - Other reallocations]]","v":0},{"$f":"Dataset[[#This Row],[2024/25 From - Spending review Topic 1]]+Dataset[[#This Row],[2024/25 From - Spending review Topic 2]]+Dataset[[#This Row],[2024/25 From - Spending review Topic 3]]+Dataset[[#This Row],[2024/25 From - Spending review Topic 4]]+Dataset[[#This Row],[2024/25 From - Other reallocations]]","v":0},{"$f":"Dataset[[#This Row],[2025/26 From - Spending review Topic 1]]+Dataset[[#This Row],[2025/26 From - Spending review Topic 2]]+Dataset[[#This Row],[2025/26 From - Spending review Topic 3]]+Dataset[[#This Row],[2025/26 From - Spending review Topic 4]]+Dataset[[#This Row],[2025/26 From - Other reallocations]]","v":0},{"$f":"Dataset[[#This Row],[2023/24 To - Spending review Topic 1]]+Dataset[[#This Row],[2023/24 To - Spending review Topic 2]]+Dataset[[#This Row],[2023/24 To - Spending review Topic 3]]+Dataset[[#This Row],[2023/24 To - Spending review Topic 4]]+Dataset[[#This Row],[2023/24 To - Other reallocations]]","v":0},{"$f":"Dataset[[#This Row],[2024/25 To - Spending review Topic 1]]+Dataset[[#This Row],[2024/25 To - Spending review Topic 2]]+Dataset[[#This Row],[2024/25 To - Spending review Topic 3]]+Dataset[[#This Row],[2024/25 To - Spending review Topic 4]]+Dataset[[#This Row],[2024/25 To - Other reallocations]]","v":0},{"$f":"Dataset[[#This Row],[2025/26 To - Spending review Topic 1]]+Dataset[[#This Row],[2025/26 To - Spending review Topic 2]]+Dataset[[#This Row],[2025/26 To - Spending review Topic 3]]+Dataset[[#This Row],[2025/26 To - Spending review Topic 4]]+Dataset[[#This Row],[2025/26 To - Other reallocations]]","v":0},{"$f":"Dataset[[#This Row],[2023/24 Baseline]]+Dataset[[#This Row],[2023/24 From - Total]]+Dataset[[#This Row],[2023/24 To - Total]]","v":0},{"$f":"Dataset[[#This Row],[2024/25 Baseline]]+Dataset[[#This Row],[2024/25 From - Total]]+Dataset[[#This Row],[2024/25 To - Total]]","v":0},{"$f":"Dataset[[#This Row],[2025/26 Baseline]]+Dataset[[#This Row],[2025/26 From - Total]]+Dataset[[#This Row],[2025/26 To - Total]]","v":0}]
["NAT|Non-transfer item","2|Laboratory services","2023_24","MTEF2023",2,3,2,1169,552,"02","03","02","001169","000552","02|03|02",1,1,2,13,13,"01|01|02|13|13","National","Parliament","Associated Services","Transfer to Political Party Allowances","Non-transfer item","Current","Current payments","Goods and services","Laboratory services","Laboratory services","General public services","Executive and legislative organs","NAT",0,0,0,0,0,0,0,0,0,0,0,null,null,null,null,null,null,null,null,null,null,null,null,null,null,null,null,null,null,null,null,null,null,null,null,null,null,null,null,null,null,{"$f":"Dataset[[#This Row],[2023/24 From - Spending review Topic 1]]+Dataset[[#This Row],[2023/24 From - Spending review Topic 2]]+Dataset[[#This Row],[2023/24 From - Spending review Topic 3]]+Dataset[[#This Row],[2023/24 From - Spending review Topic 4]]+Dataset[[#This Row],[2023/24 From - Other reallocations]]","v":0},{"$f":"Dataset[[#This Row],[2024/25 From - Spending review Topic 1]]+Dataset[[#This Row],[2024/25 From - Spending review Topic 2]]+Dataset[[#This Row],[2024/25 From - Spending review Topic 3]]+Dataset[[#This Row],[2024/25 From - Spending review Topic 4]]+Dataset[[#This Row],[2024/25 From - Other reallocations]]","v":0},{"$f":"Dataset[[#This Row],[2025/26 From - Spending review Topic 1]]+Dataset[[#This Row],[2025/26 From - Spending review Topic 2]]+Dataset[[#This Row],[2025/26 From - Spending review Topic 3]]+Dataset[[#This Row],[2025/26 From - Spending review Topic 4]]+Dataset[[#This Row],[2025/26 From - Other reallocations]]","v":0},{"$f":"Dataset[[#This Row],[2023/24 To - Spending review Topic 1]]+Dataset[[#This Row],[2023/24 To - Spending review Topic 2]]+Dataset[[#This Row],[2023/24 To - Spending review Topic 3]]+Dataset[[#This Row],[2023/24 To - Spending review Topic 4]]+Dataset[[#This Row],[2023/24 To - Other reallocations]]","v":0},{"$f":"Dataset[[#This Row],[2024/25 To - Spending review Topic 1]]+Dataset[[#This Row],[2024/25 To - Spending review Topic 2]]+Dataset[[#This Row],[2024/25 To - Spending review Topic 3]]+Dataset[[#This Row],[2024/25 To - Spending review Topic 4]]+Dataset[[#This Row],[2024/25 To - Other reallocations]]","v":0},{"$f":"Dataset[[#This Row],[2025/26 To - Spending review Topic 1]]+Dataset[[#This Row],[2025/26 To - Spending review Topic 2]]+Dataset[[#This Row],[2025/26 To - Spending review Topic 3]]+Dataset[[#This Row],[2025/26 To - Spending review Topic 4]]+Dataset[[#This Row],[2025/26 To - Other reallocations]]","v":0},{"$f":"Dataset[[#This Row],[2023/24 Baseline]]+Dataset[[#This Row],[2023/24 From - Total]]+Dataset[[#This Row],[2023/24 To - Total]]","v":0},{"$f":"Dataset[[#This Row],[2024/25 Baseline]]+Dataset[[#This Row],[2024/25 From - Total]]+Dataset[[#This Row],[2024/25 To - Total]]","v":0},{"$f":"Dataset[[#This Row],[2025/26 Baseline]]+Dataset[[#This Row],[2025/26 From - Total]]+Dataset[[#This Row],[2025/26 To - Total]]","v":0}]
["NAT|Non-transfer item","2|Legal services (G&S)","2023_24","MTEF2023",2,3,2,1170,553,"02","03","02","001170","000553","02|03|02",1,1,2,14,14,"01|01|02|14|14","National","Parliament","Associated Services","Transfer to Political Party Allowances","Non-transfer item","Current","Current payments","Goods and services","Legal services (G&S)","Legal services (G&S)","General public services","Executive and legislative organs","NAT",0,0,0,0,0,0,0,0,0,0,0,null,null,null,null,null,null,null,null,null,null,null,null,null,null,null,null,null,null,null,null,null,null,null,null,null,null,null,null,null,null,{"$f":"Dataset[[#This Row],[2023/24 From - Spending review Topic 1]]+Dataset[[#This Row],[2023/24 From - Spending review Topic 2]]+Dataset[[#This Row],[2023/24 From - Spending review Topic 3]]+Dataset[[#This Row],[2023/24 From - Spending review Topic 4]]+Dataset[[#This Row],[2023/24 From - Other reallocations]]","v":0},{"$f":"Dataset[[#This Row],[2024/25 From - Spending review Topic 1]]+Dataset[[#This Row],[2024/25 From - Spending review Topic 2]]+Dataset[[#This Row],[2024/25 From - Spending review Topic 3]]+Dataset[[#This Row],[2024/25 From - Spending review Topic 4]]+Dataset[[#This Row],[2024/25 From - Other reallocations]]","v":0},{"$f":"Dataset[[#This Row],[2025/26 From - Spending review Topic 1]]+Dataset[[#This Row],[2025/26 From - Spending review Topic 2]]+Dataset[[#This Row],[2025/26 From - Spending review Topic 3]]+Dataset[[#This Row],[2025/26 From - Spending review Topic 4]]+Dataset[[#This Row],[2025/26 From - Other reallocations]]","v":0},{"$f":"Dataset[[#This Row],[2023/24 To - Spending review Topic 1]]+Dataset[[#This Row],[2023/24 To - Spending review Topic 2]]+Dataset[[#This Row],[2023/24 To - Spending review Topic 3]]+Dataset[[#This Row],[2023/24 To - Spending review Topic 4]]+Dataset[[#This Row],[2023/24 To - Other reallocations]]","v":0},{"$f":"Dataset[[#This Row],[2024/25 To - Spending review Topic 1]]+Dataset[[#This Row],[2024/25 To - Spending review Topic 2]]+Dataset[[#This Row],[2024/25 To - Spending review Topic 3]]+Dataset[[#This Row],[2024/25 To - Spending review Topic 4]]+Dataset[[#This Row],[2024/25 To - Other reallocations]]","v":0},{"$f":"Dataset[[#This Row],[2025/26 To - Spending review Topic 1]]+Dataset[[#This Row],[2025/26 To - Spending review Topic 2]]+Dataset[[#This Row],[2025/26 To - Spending review Topic 3]]+Dataset[[#This Row],[2025/26 To - Spending review Topic 4]]+Dataset[[#This Row],[2025/26 To - Other reallocations]]","v":0},{"$f":"Dataset[[#This Row],[2023/24 Baseline]]+Dataset[[#This Row],[2023/24 From - Total]]+Dataset[[#This Row],[2023/24 To - Total]]","v":0},{"$f":"Dataset[[#This Row],[2024/25 Baseline]]+Dataset[[#This Row],[2024/25 From - Total]]+Dataset[[#This Row],[2024/25 To - Total]]","v":0},{"$f":"Dataset[[#This Row],[2025/26 Baseline]]+Dataset[[#This Row],[2025/26 From - Total]]+Dataset[[#This Row],[2025/26 To - Total]]","v":0}]
["NAT|Non-transfer item","2|Science and technological services","2023_24","MTEF2023",2,3,2,1171,554,"02","03","02","001171","000554","02|03|02",1,1,2,15,15,"01|01|02|15|15","National","Parliament","Associated Services","Transfer to Political Party Allowances","Non-transfer item","Current","Current payments","Goods and services","Science and technological services","Science and technological services","General public services","Executive and legislative organs","NAT",0,0,0,0,0,0,0,0,0,0,0,null,null,null,null,null,null,null,null,null,null,null,null,null,null,null,null,null,null,null,null,null,null,null,null,null,null,null,null,null,null,{"$f":"Dataset[[#This Row],[2023/24 From - Spending review Topic 1]]+Dataset[[#This Row],[2023/24 From - Spending review Topic 2]]+Dataset[[#This Row],[2023/24 From - Spending review Topic 3]]+Dataset[[#This Row],[2023/24 From - Spending review Topic 4]]+Dataset[[#This Row],[2023/24 From - Other reallocations]]","v":0},{"$f":"Dataset[[#This Row],[2024/25 From - Spending review Topic 1]]+Dataset[[#This Row],[2024/25 From - Spending review Topic 2]]+Dataset[[#This Row],[2024/25 From - Spending review Topic 3]]+Dataset[[#This Row],[2024/25 From - Spending review Topic 4]]+Dataset[[#This Row],[2024/25 From - Other reallocations]]","v":0},{"$f":"Dataset[[#This Row],[2025/26 From - Spending review Topic 1]]+Dataset[[#This Row],[2025/26 From - Spending review Topic 2]]+Dataset[[#This Row],[2025/26 From - Spending review Topic 3]]+Dataset[[#This Row],[2025/26 From - Spending review Topic 4]]+Dataset[[#This Row],[2025/26 From - Other reallocations]]","v":0},{"$f":"Dataset[[#This Row],[2023/24 To - Spending review Topic 1]]+Dataset[[#This Row],[2023/24 To - Spending review Topic 2]]+Dataset[[#This Row],[2023/24 To - Spending review Topic 3]]+Dataset[[#This Row],[2023/24 To - Spending review Topic 4]]+Dataset[[#This Row],[2023/24 To - Other reallocations]]","v":0},{"$f":"Dataset[[#This Row],[2024/25 To - Spending review Topic 1]]+Dataset[[#This Row],[2024/25 To - Spending review Topic 2]]+Dataset[[#This Row],[2024/25 To - Spending review Topic 3]]+Dataset[[#This Row],[2024/25 To - Spending review Topic 4]]+Dataset[[#This Row],[2024/25 To - Other reallocations]]","v":0},{"$f":"Dataset[[#This Row],[2025/26 To - Spending review Topic 1]]+Dataset[[#This Row],[2025/26 To - Spending review Topic 2]]+Dataset[[#This Row],[2025/26 To - Spending review Topic 3]]+Dataset[[#This Row],[2025/26 To - Spending review Topic 4]]+Dataset[[#This Row],[2025/26 To - Other reallocations]]","v":0},{"$f":"Dataset[[#This Row],[2023/24 Baseline]]+Dataset[[#This Row],[2023/24 From - Total]]+Dataset[[#This Row],[2023/24 To - Total]]","v":0},{"$f":"Dataset[[#This Row],[2024/25 Baseline]]+Dataset[[#This Row],[2024/25 From - Total]]+Dataset[[#This Row],[2024/25 To - Total]]","v":0},{"$f":"Dataset[[#This Row],[2025/26 Baseline]]+Dataset[[#This Row],[2025/26 From - Total]]+Dataset[[#This Row],[2025/26 To - Total]]","v":0}]
["NAT|Non-transfer item","2|Contractors","2023_24","MTEF2023",2,3,2,1172,555,"02","03","02","001172","000555","02|03|02",1,1,2,16,16,"01|01|02|16|16","National","Parliament","Associated Services","Transfer to Political Party Allowances","Non-transfer item","Current","Current payments","Goods and services","Contractors","Contractors","General public services","Executive and legislative organs","NAT",0,0,0,0,0,0,0,0,0,0,0,null,null,null,null,null,null,null,null,null,null,null,null,null,null,null,null,null,null,null,null,null,null,null,null,null,null,null,null,null,null,{"$f":"Dataset[[#This Row],[2023/24 From - Spending review Topic 1]]+Dataset[[#This Row],[2023/24 From - Spending review Topic 2]]+Dataset[[#This Row],[2023/24 From - Spending review Topic 3]]+Dataset[[#This Row],[2023/24 From - Spending review Topic 4]]+Dataset[[#This Row],[2023/24 From - Other reallocations]]","v":0},{"$f":"Dataset[[#This Row],[2024/25 From - Spending review Topic 1]]+Dataset[[#This Row],[2024/25 From - Spending review Topic 2]]+Dataset[[#This Row],[2024/25 From - Spending review Topic 3]]+Dataset[[#This Row],[2024/25 From - Spending review Topic 4]]+Dataset[[#This Row],[2024/25 From - Other reallocations]]","v":0},{"$f":"Dataset[[#This Row],[2025/26 From - Spending review Topic 1]]+Dataset[[#This Row],[2025/26 From - Spending review Topic 2]]+Dataset[[#This Row],[2025/26 From - Spending review Topic 3]]+Dataset[[#This Row],[2025/26 From - Spending review Topic 4]]+Dataset[[#This Row],[2025/26 From - Other reallocations]]","v":0},{"$f":"Dataset[[#This Row],[2023/24 To - Spending review Topic 1]]+Dataset[[#This Row],[2023/24 To - Spending review Topic 2]]+Dataset[[#This Row],[2023/24 To - Spending review Topic 3]]+Dataset[[#This Row],[2023/24 To - Spending review Topic 4]]+Dataset[[#This Row],[2023/24 To - Other reallocations]]","v":0},{"$f":"Dataset[[#This Row],[2024/25 To - Spending review Topic 1]]+Dataset[[#This Row],[2024/25 To - Spending review Topic 2]]+Dataset[[#This Row],[2024/25 To - Spending review Topic 3]]+Dataset[[#This Row],[2024/25 To - Spending review Topic 4]]+Dataset[[#This Row],[2024/25 To - Other reallocations]]","v":0},{"$f":"Dataset[[#This Row],[2025/26 To - Spending review Topic 1]]+Dataset[[#This Row],[2025/26 To - Spending review Topic 2]]+Dataset[[#This Row],[2025/26 To - Spending review Topic 3]]+Dataset[[#This Row],[2025/26 To - Spending review Topic 4]]+Dataset[[#This Row],[2025/26 To - Other reallocations]]","v":0},{"$f":"Dataset[[#This Row],[2023/24 Baseline]]+Dataset[[#This Row],[2023/24 From - Total]]+Dataset[[#This Row],[2023/24 To - Total]]","v":0},{"$f":"Dataset[[#This Row],[2024/25 Baseline]]+Dataset[[#This Row],[2024/25 From - Total]]+Dataset[[#This Row],[2024/25 To - Total]]","v":0},{"$f":"Dataset[[#This Row],[2025/26 Baseline]]+Dataset[[#This Row],[2025/26 From - Total]]+Dataset[[#This Row],[2025/26 To - Total]]","v":0}]
["NAT|Non-transfer item","2|Agency and support/outsourced services","2023_24","MTEF2023",2,3,2,1173,556,"02","03","02","001173","000556","02|03|02",1,1,2,17,17,"01|01|02|17|17","National","Parliament","Associated Services","Transfer to Political Party Allowances","Non-transfer item","Current","Current payments","Goods and services","Agency and support/outsourced services","Agency and support/outsourced services","General public services","Executive and legislative organs","NAT",0,0,0,0,0,0,0,0,0,0,0,null,null,null,null,null,null,null,null,null,null,null,null,null,null,null,null,null,null,null,null,null,null,null,null,null,null,null,null,null,null,{"$f":"Dataset[[#This Row],[2023/24 From - Spending review Topic 1]]+Dataset[[#This Row],[2023/24 From - Spending review Topic 2]]+Dataset[[#This Row],[2023/24 From - Spending review Topic 3]]+Dataset[[#This Row],[2023/24 From - Spending review Topic 4]]+Dataset[[#This Row],[2023/24 From - Other reallocations]]","v":0},{"$f":"Dataset[[#This Row],[2024/25 From - Spending review Topic 1]]+Dataset[[#This Row],[2024/25 From - Spending review Topic 2]]+Dataset[[#This Row],[2024/25 From - Spending review Topic 3]]+Dataset[[#This Row],[2024/25 From - Spending review Topic 4]]+Dataset[[#This Row],[2024/25 From - Other reallocations]]","v":0},{"$f":"Dataset[[#This Row],[2025/26 From - Spending review Topic 1]]+Dataset[[#This Row],[2025/26 From - Spending review Topic 2]]+Dataset[[#This Row],[2025/26 From - Spending review Topic 3]]+Dataset[[#This Row],[2025/26 From - Spending review Topic 4]]+Dataset[[#This Row],[2025/26 From - Other reallocations]]","v":0},{"$f":"Dataset[[#This Row],[2023/24 To - Spending review Topic 1]]+Dataset[[#This Row],[2023/24 To - Spending review Topic 2]]+Dataset[[#This Row],[2023/24 To - Spending review Topic 3]]+Dataset[[#This Row],[2023/24 To - Spending review Topic 4]]+Dataset[[#This Row],[2023/24 To - Other reallocations]]","v":0},{"$f":"Dataset[[#This Row],[2024/25 To - Spending review Topic 1]]+Dataset[[#This Row],[2024/25 To - Spending review Topic 2]]+Dataset[[#This Row],[2024/25 To - Spending review Topic 3]]+Dataset[[#This Row],[2024/25 To - Spending review Topic 4]]+Dataset[[#This Row],[2024/25 To - Other reallocations]]","v":0},{"$f":"Dataset[[#This Row],[2025/26 To - Spending review Topic 1]]+Dataset[[#This Row],[2025/26 To - Spending review Topic 2]]+Dataset[[#This Row],[2025/26 To - Spending review Topic 3]]+Dataset[[#This Row],[2025/26 To - Spending review Topic 4]]+Dataset[[#This Row],[2025/26 To - Other reallocations]]","v":0},{"$f":"Dataset[[#This Row],[2023/24 Baseline]]+Dataset[[#This Row],[2023/24 From - Total]]+Dataset[[#This Row],[2023/24 To - Total]]","v":0},{"$f":"Dataset[[#This Row],[2024/25 Baseline]]+Dataset[[#This Row],[2024/25 From - Total]]+Dataset[[#This Row],[2024/25 To - Total]]","v":0},{"$f":"Dataset[[#This Row],[2025/26 Baseline]]+Dataset[[#This Row],[2025/26 From - Total]]+Dataset[[#This Row],[2025/26 To - Total]]","v":0}]
["NAT|Non-transfer item","2|Entertainment","2023_24","MTEF2023",2,3,2,1174,557,"02","03","02","001174","000557","02|03|02",1,1,2,18,18,"01|01|02|18|18","National","Parliament","Associated Services","Transfer to Political Party Allowances","Non-transfer item","Current","Current payments","Goods and services","Entertainment","Entertainment","General public services","Executive and legislative organs","NAT",0,0,0,0,0,0,0,0,0,0,0,null,null,null,null,null,null,null,null,null,null,null,null,null,null,null,null,null,null,null,null,null,null,null,null,null,null,null,null,null,null,{"$f":"Dataset[[#This Row],[2023/24 From - Spending review Topic 1]]+Dataset[[#This Row],[2023/24 From - Spending review Topic 2]]+Dataset[[#This Row],[2023/24 From - Spending review Topic 3]]+Dataset[[#This Row],[2023/24 From - Spending review Topic 4]]+Dataset[[#This Row],[2023/24 From - Other reallocations]]","v":0},{"$f":"Dataset[[#This Row],[2024/25 From - Spending review Topic 1]]+Dataset[[#This Row],[2024/25 From - Spending review Topic 2]]+Dataset[[#This Row],[2024/25 From - Spending review Topic 3]]+Dataset[[#This Row],[2024/25 From - Spending review Topic 4]]+Dataset[[#This Row],[2024/25 From - Other reallocations]]","v":0},{"$f":"Dataset[[#This Row],[2025/26 From - Spending review Topic 1]]+Dataset[[#This Row],[2025/26 From - Spending review Topic 2]]+Dataset[[#This Row],[2025/26 From - Spending review Topic 3]]+Dataset[[#This Row],[2025/26 From - Spending review Topic 4]]+Dataset[[#This Row],[2025/26 From - Other reallocations]]","v":0},{"$f":"Dataset[[#This Row],[2023/24 To - Spending review Topic 1]]+Dataset[[#This Row],[2023/24 To - Spending review Topic 2]]+Dataset[[#This Row],[2023/24 To - Spending review Topic 3]]+Dataset[[#This Row],[2023/24 To - Spending review Topic 4]]+Dataset[[#This Row],[2023/24 To - Other reallocations]]","v":0},{"$f":"Dataset[[#This Row],[2024/25 To - Spending review Topic 1]]+Dataset[[#This Row],[2024/25 To - Spending review Topic 2]]+Dataset[[#This Row],[2024/25 To - Spending review Topic 3]]+Dataset[[#This Row],[2024/25 To - Spending review Topic 4]]+Dataset[[#This Row],[2024/25 To - Other reallocations]]","v":0},{"$f":"Dataset[[#This Row],[2025/26 To - Spending review Topic 1]]+Dataset[[#This Row],[2025/26 To - Spending review Topic 2]]+Dataset[[#This Row],[2025/26 To - Spending review Topic 3]]+Dataset[[#This Row],[2025/26 To - Spending review Topic 4]]+Dataset[[#This Row],[2025/26 To - Other reallocations]]","v":0},{"$f":"Dataset[[#This Row],[2023/24 Baseline]]+Dataset[[#This Row],[2023/24 From - Total]]+Dataset[[#This Row],[2023/24 To - Total]]","v":0},{"$f":"Dataset[[#This Row],[2024/25 Baseline]]+Dataset[[#This Row],[2024/25 From - Total]]+Dataset[[#This Row],[2024/25 To - Total]]","v":0},{"$f":"Dataset[[#This Row],[2025/26 Baseline]]+Dataset[[#This Row],[2025/26 From - Total]]+Dataset[[#This Row],[2025/26 To - Total]]","v":0}]
["NAT|Non-transfer item","2|Fleet services (including government motor transport)","2023_24","MTEF2023",2,3,2,1175,558,"02","03","02","001175","000558","02|03|02",1,1,2,19,19,"01|01|02|19|19","National","Parliament","Associated Services","Transfer to Political Party Allowances","Non-transfer item","Current","Current payments","Goods and services","Fleet services (including government motor transport)","Fleet services (including government motor transport)","General public services","Executive and legislative organs","NAT",0,0,0,0,0,0,0,0,0,0,0,null,null,null,null,null,null,null,null,null,null,null,null,null,null,null,null,null,null,null,null,null,null,null,null,null,null,null,null,null,null,{"$f":"Dataset[[#This Row],[2023/24 From - Spending review Topic 1]]+Dataset[[#This Row],[2023/24 From - Spending review Topic 2]]+Dataset[[#This Row],[2023/24 From - Spending review Topic 3]]+Dataset[[#This Row],[2023/24 From - Spending review Topic 4]]+Dataset[[#This Row],[2023/24 From - Other reallocations]]","v":0},{"$f":"Dataset[[#This Row],[2024/25 From - Spending review Topic 1]]+Dataset[[#This Row],[2024/25 From - Spending review Topic 2]]+Dataset[[#This Row],[2024/25 From - Spending review Topic 3]]+Dataset[[#This Row],[2024/25 From - Spending review Topic 4]]+Dataset[[#This Row],[2024/25 From - Other reallocations]]","v":0},{"$f":"Dataset[[#This Row],[2025/26 From - Spending review Topic 1]]+Dataset[[#This Row],[2025/26 From - Spending review Topic 2]]+Dataset[[#This Row],[2025/26 From - Spending review Topic 3]]+Dataset[[#This Row],[2025/26 From - Spending review Topic 4]]+Dataset[[#This Row],[2025/26 From - Other reallocations]]","v":0},{"$f":"Dataset[[#This Row],[2023/24 To - Spending review Topic 1]]+Dataset[[#This Row],[2023/24 To - Spending review Topic 2]]+Dataset[[#This Row],[2023/24 To - Spending review Topic 3]]+Dataset[[#This Row],[2023/24 To - Spending review Topic 4]]+Dataset[[#This Row],[2023/24 To - Other reallocations]]","v":0},{"$f":"Dataset[[#This Row],[2024/25 To - Spending review Topic 1]]+Dataset[[#This Row],[2024/25 To - Spending review Topic 2]]+Dataset[[#This Row],[2024/25 To - Spending review Topic 3]]+Dataset[[#This Row],[2024/25 To - Spending review Topic 4]]+Dataset[[#This Row],[2024/25 To - Other reallocations]]","v":0},{"$f":"Dataset[[#This Row],[2025/26 To - Spending review Topic 1]]+Dataset[[#This Row],[2025/26 To - Spending review Topic 2]]+Dataset[[#This Row],[2025/26 To - Spending review Topic 3]]+Dataset[[#This Row],[2025/26 To - Spending review Topic 4]]+Dataset[[#This Row],[2025/26 To - Other reallocations]]","v":0},{"$f":"Dataset[[#This Row],[2023/24 Baseline]]+Dataset[[#This Row],[2023/24 From - Total]]+Dataset[[#This Row],[2023/24 To - Total]]","v":0},{"$f":"Dataset[[#This Row],[2024/25 Baseline]]+Dataset[[#This Row],[2024/25 From - Total]]+Dataset[[#This Row],[2024/25 To - Total]]","v":0},{"$f":"Dataset[[#This Row],[2025/26 Baseline]]+Dataset[[#This Row],[2025/26 From - Total]]+Dataset[[#This Row],[2025/26 To - Total]]","v":0}]
["NAT|Non-transfer item","2|Housing","2023_24","MTEF2023",2,3,2,1176,559,"02","03","02","001176","000559","02|03|02",1,1,2,20,20,"01|01|02|20|20","National","Parliament","Associated Services","Transfer to Political Party Allowances","Non-transfer item","Current","Current payments","Goods and services","Housing","Housing","General public services","Executive and legislative organs","NAT",0,0,0,0,0,0,0,0,0,0,0,null,null,null,null,null,null,null,null,null,null,null,null,null,null,null,null,null,null,null,null,null,null,null,null,null,null,null,null,null,null,{"$f":"Dataset[[#This Row],[2023/24 From - Spending review Topic 1]]+Dataset[[#This Row],[2023/24 From - Spending review Topic 2]]+Dataset[[#This Row],[2023/24 From - Spending review Topic 3]]+Dataset[[#This Row],[2023/24 From - Spending review Topic 4]]+Dataset[[#This Row],[2023/24 From - Other reallocations]]","v":0},{"$f":"Dataset[[#This Row],[2024/25 From - Spending review Topic 1]]+Dataset[[#This Row],[2024/25 From - Spending review Topic 2]]+Dataset[[#This Row],[2024/25 From - Spending review Topic 3]]+Dataset[[#This Row],[2024/25 From - Spending review Topic 4]]+Dataset[[#This Row],[2024/25 From - Other reallocations]]","v":0},{"$f":"Dataset[[#This Row],[2025/26 From - Spending review Topic 1]]+Dataset[[#This Row],[2025/26 From - Spending review Topic 2]]+Dataset[[#This Row],[2025/26 From - Spending review Topic 3]]+Dataset[[#This Row],[2025/26 From - Spending review Topic 4]]+Dataset[[#This Row],[2025/26 From - Other reallocations]]","v":0},{"$f":"Dataset[[#This Row],[2023/24 To - Spending review Topic 1]]+Dataset[[#This Row],[2023/24 To - Spending review Topic 2]]+Dataset[[#This Row],[2023/24 To - Spending review Topic 3]]+Dataset[[#This Row],[2023/24 To - Spending review Topic 4]]+Dataset[[#This Row],[2023/24 To - Other reallocations]]","v":0},{"$f":"Dataset[[#This Row],[2024/25 To - Spending review Topic 1]]+Dataset[[#This Row],[2024/25 To - Spending review Topic 2]]+Dataset[[#This Row],[2024/25 To - Spending review Topic 3]]+Dataset[[#This Row],[2024/25 To - Spending review Topic 4]]+Dataset[[#This Row],[2024/25 To - Other reallocations]]","v":0},{"$f":"Dataset[[#This Row],[2025/26 To - Spending review Topic 1]]+Dataset[[#This Row],[2025/26 To - Spending review Topic 2]]+Dataset[[#This Row],[2025/26 To - Spending review Topic 3]]+Dataset[[#This Row],[2025/26 To - Spending review Topic 4]]+Dataset[[#This Row],[2025/26 To - Other reallocations]]","v":0},{"$f":"Dataset[[#This Row],[2023/24 Baseline]]+Dataset[[#This Row],[2023/24 From - Total]]+Dataset[[#This Row],[2023/24 To - Total]]","v":0},{"$f":"Dataset[[#This Row],[2024/25 Baseline]]+Dataset[[#This Row],[2024/25 From - Total]]+Dataset[[#This Row],[2024/25 To - Total]]","v":0},{"$f":"Dataset[[#This Row],[2025/26 Baseline]]+Dataset[[#This Row],[2025/26 From - Total]]+Dataset[[#This Row],[2025/26 To - Total]]","v":0}]
["NAT|Non-transfer item","2|Inventory: Clothing material and accessories","2023_24","MTEF2023",2,3,2,1177,560,"02","03","02","001177","000560","02|03|02",1,1,2,21,21,"01|01|02|21|21","National","Parliament","Associated Services","Transfer to Political Party Allowances","Non-transfer item","Current","Current payments","Goods and services","Inventory: Clothing material and accessories","Inventory: Clothing material and accessories","General public services","Executive and legislative organs","NAT",0,0,0,0,0,0,0,0,0,0,0,null,null,null,null,null,null,null,null,null,null,null,null,null,null,null,null,null,null,null,null,null,null,null,null,null,null,null,null,null,null,{"$f":"Dataset[[#This Row],[2023/24 From - Spending review Topic 1]]+Dataset[[#This Row],[2023/24 From - Spending review Topic 2]]+Dataset[[#This Row],[2023/24 From - Spending review Topic 3]]+Dataset[[#This Row],[2023/24 From - Spending review Topic 4]]+Dataset[[#This Row],[2023/24 From - Other reallocations]]","v":0},{"$f":"Dataset[[#This Row],[2024/25 From - Spending review Topic 1]]+Dataset[[#This Row],[2024/25 From - Spending review Topic 2]]+Dataset[[#This Row],[2024/25 From - Spending review Topic 3]]+Dataset[[#This Row],[2024/25 From - Spending review Topic 4]]+Dataset[[#This Row],[2024/25 From - Other reallocations]]","v":0},{"$f":"Dataset[[#This Row],[2025/26 From - Spending review Topic 1]]+Dataset[[#This Row],[2025/26 From - Spending review Topic 2]]+Dataset[[#This Row],[2025/26 From - Spending review Topic 3]]+Dataset[[#This Row],[2025/26 From - Spending review Topic 4]]+Dataset[[#This Row],[2025/26 From - Other reallocations]]","v":0},{"$f":"Dataset[[#This Row],[2023/24 To - Spending review Topic 1]]+Dataset[[#This Row],[2023/24 To - Spending review Topic 2]]+Dataset[[#This Row],[2023/24 To - Spending review Topic 3]]+Dataset[[#This Row],[2023/24 To - Spending review Topic 4]]+Dataset[[#This Row],[2023/24 To - Other reallocations]]","v":0},{"$f":"Dataset[[#This Row],[2024/25 To - Spending review Topic 1]]+Dataset[[#This Row],[2024/25 To - Spending review Topic 2]]+Dataset[[#This Row],[2024/25 To - Spending review Topic 3]]+Dataset[[#This Row],[2024/25 To - Spending review Topic 4]]+Dataset[[#This Row],[2024/25 To - Other reallocations]]","v":0},{"$f":"Dataset[[#This Row],[2025/26 To - Spending review Topic 1]]+Dataset[[#This Row],[2025/26 To - Spending review Topic 2]]+Dataset[[#This Row],[2025/26 To - Spending review Topic 3]]+Dataset[[#This Row],[2025/26 To - Spending review Topic 4]]+Dataset[[#This Row],[2025/26 To - Other reallocations]]","v":0},{"$f":"Dataset[[#This Row],[2023/24 Baseline]]+Dataset[[#This Row],[2023/24 From - Total]]+Dataset[[#This Row],[2023/24 To - Total]]","v":0},{"$f":"Dataset[[#This Row],[2024/25 Baseline]]+Dataset[[#This Row],[2024/25 From - Total]]+Dataset[[#This Row],[2024/25 To - Total]]","v":0},{"$f":"Dataset[[#This Row],[2025/26 Baseline]]+Dataset[[#This Row],[2025/26 From - Total]]+Dataset[[#This Row],[2025/26 To - Total]]","v":0}]
["NAT|Non-transfer item","2|Inventory: Farming supplies","2023_24","MTEF2023",2,3,2,1178,561,"02","03","02","001178","000561","02|03|02",1,1,2,22,22,"01|01|02|22|22","National","Parliament","Associated Services","Transfer to Political Party Allowances","Non-transfer item","Current","Current payments","Goods and services","Inventory: Farming supplies","Inventory: Farming supplies","General public services","Executive and legislative organs","NAT",0,0,0,0,0,0,0,0,0,0,0,null,null,null,null,null,null,null,null,null,null,null,null,null,null,null,null,null,null,null,null,null,null,null,null,null,null,null,null,null,null,{"$f":"Dataset[[#This Row],[2023/24 From - Spending review Topic 1]]+Dataset[[#This Row],[2023/24 From - Spending review Topic 2]]+Dataset[[#This Row],[2023/24 From - Spending review Topic 3]]+Dataset[[#This Row],[2023/24 From - Spending review Topic 4]]+Dataset[[#This Row],[2023/24 From - Other reallocations]]","v":0},{"$f":"Dataset[[#This Row],[2024/25 From - Spending review Topic 1]]+Dataset[[#This Row],[2024/25 From - Spending review Topic 2]]+Dataset[[#This Row],[2024/25 From - Spending review Topic 3]]+Dataset[[#This Row],[2024/25 From - Spending review Topic 4]]+Dataset[[#This Row],[2024/25 From - Other reallocations]]","v":0},{"$f":"Dataset[[#This Row],[2025/26 From - Spending review Topic 1]]+Dataset[[#This Row],[2025/26 From - Spending review Topic 2]]+Dataset[[#This Row],[2025/26 From - Spending review Topic 3]]+Dataset[[#This Row],[2025/26 From - Spending review Topic 4]]+Dataset[[#This Row],[2025/26 From - Other reallocations]]","v":0},{"$f":"Dataset[[#This Row],[2023/24 To - Spending review Topic 1]]+Dataset[[#This Row],[2023/24 To - Spending review Topic 2]]+Dataset[[#This Row],[2023/24 To - Spending review Topic 3]]+Dataset[[#This Row],[2023/24 To - Spending review Topic 4]]+Dataset[[#This Row],[2023/24 To - Other reallocations]]","v":0},{"$f":"Dataset[[#This Row],[2024/25 To - Spending review Topic 1]]+Dataset[[#This Row],[2024/25 To - Spending review Topic 2]]+Dataset[[#This Row],[2024/25 To - Spending review Topic 3]]+Dataset[[#This Row],[2024/25 To - Spending review Topic 4]]+Dataset[[#This Row],[2024/25 To - Other reallocations]]","v":0},{"$f":"Dataset[[#This Row],[2025/26 To - Spending review Topic 1]]+Dataset[[#This Row],[2025/26 To - Spending review Topic 2]]+Dataset[[#This Row],[2025/26 To - Spending review Topic 3]]+Dataset[[#This Row],[2025/26 To - Spending review Topic 4]]+Dataset[[#This Row],[2025/26 To - Other reallocations]]","v":0},{"$f":"Dataset[[#This Row],[2023/24 Baseline]]+Dataset[[#This Row],[2023/24 From - Total]]+Dataset[[#This Row],[2023/24 To - Total]]","v":0},{"$f":"Dataset[[#This Row],[2024/25 Baseline]]+Dataset[[#This Row],[2024/25 From - Total]]+Dataset[[#This Row],[2024/25 To - Total]]","v":0},{"$f":"Dataset[[#This Row],[2025/26 Baseline]]+Dataset[[#This Row],[2025/26 From - Total]]+Dataset[[#This Row],[2025/26 To - Total]]","v":0}]
["NAT|Non-transfer item","2|Inventory: Food and food supplies","2023_24","MTEF2023",2,3,2,1179,562,"02","03","02","001179","000562","02|03|02",1,1,2,23,23,"01|01|02|23|23","National","Parliament","Associated Services","Transfer to Political Party Allowances","Non-transfer item","Current","Current payments","Goods and services","Inventory: Food and food supplies","Inventory: Food and food supplies","General public services","Executive and legislative organs","NAT",0,0,0,0,0,0,0,0,0,0,0,null,null,null,null,null,null,null,null,null,null,null,null,null,null,null,null,null,null,null,null,null,null,null,null,null,null,null,null,null,null,{"$f":"Dataset[[#This Row],[2023/24 From - Spending review Topic 1]]+Dataset[[#This Row],[2023/24 From - Spending review Topic 2]]+Dataset[[#This Row],[2023/24 From - Spending review Topic 3]]+Dataset[[#This Row],[2023/24 From - Spending review Topic 4]]+Dataset[[#This Row],[2023/24 From - Other reallocations]]","v":0},{"$f":"Dataset[[#This Row],[2024/25 From - Spending review Topic 1]]+Dataset[[#This Row],[2024/25 From - Spending review Topic 2]]+Dataset[[#This Row],[2024/25 From - Spending review Topic 3]]+Dataset[[#This Row],[2024/25 From - Spending review Topic 4]]+Dataset[[#This Row],[2024/25 From - Other reallocations]]","v":0},{"$f":"Dataset[[#This Row],[2025/26 From - Spending review Topic 1]]+Dataset[[#This Row],[2025/26 From - Spending review Topic 2]]+Dataset[[#This Row],[2025/26 From - Spending review Topic 3]]+Dataset[[#This Row],[2025/26 From - Spending review Topic 4]]+Dataset[[#This Row],[2025/26 From - Other reallocations]]","v":0},{"$f":"Dataset[[#This Row],[2023/24 To - Spending review Topic 1]]+Dataset[[#This Row],[2023/24 To - Spending review Topic 2]]+Dataset[[#This Row],[2023/24 To - Spending review Topic 3]]+Dataset[[#This Row],[2023/24 To - Spending review Topic 4]]+Dataset[[#This Row],[2023/24 To - Other reallocations]]","v":0},{"$f":"Dataset[[#This Row],[2024/25 To - Spending review Topic 1]]+Dataset[[#This Row],[2024/25 To - Spending review Topic 2]]+Dataset[[#This Row],[2024/25 To - Spending review Topic 3]]+Dataset[[#This Row],[2024/25 To - Spending review Topic 4]]+Dataset[[#This Row],[2024/25 To - Other reallocations]]","v":0},{"$f":"Dataset[[#This Row],[2025/26 To - Spending review Topic 1]]+Dataset[[#This Row],[2025/26 To - Spending review Topic 2]]+Dataset[[#This Row],[2025/26 To - Spending review Topic 3]]+Dataset[[#This Row],[2025/26 To - Spending review Topic 4]]+Dataset[[#This Row],[2025/26 To - Other reallocations]]","v":0},{"$f":"Dataset[[#This Row],[2023/24 Baseline]]+Dataset[[#This Row],[2023/24 From - Total]]+Dataset[[#This Row],[2023/24 To - Total]]","v":0},{"$f":"Dataset[[#This Row],[2024/25 Baseline]]+Dataset[[#This Row],[2024/25 From - Total]]+Dataset[[#This Row],[2024/25 To - Total]]","v":0},{"$f":"Dataset[[#This Row],[2025/26 Baseline]]+Dataset[[#This Row],[2025/26 From - Total]]+Dataset[[#This Row],[2025/26 To - Total]]","v":0}]
["NAT|Non-transfer item","2|Inventory: Fuel, oil and gas","2023_24","MTEF2023",2,3,2,1180,563,"02","03","02","001180","000563","02|03|02",1,1,2,24,24,"01|01|02|24|24","National","Parliament","Associated Services","Transfer to Political Party Allowances","Non-transfer item","Current","Current payments","Goods and services","Inventory: Fuel, oil and gas","Inventory: Fuel, oil and gas","General public services","Executive and legislative organs","NAT",0,0,0,0,0,0,0,0,0,0,0,null,null,null,null,null,null,null,null,null,null,null,null,null,null,null,null,null,null,null,null,null,null,null,null,null,null,null,null,null,null,{"$f":"Dataset[[#This Row],[2023/24 From - Spending review Topic 1]]+Dataset[[#This Row],[2023/24 From - Spending review Topic 2]]+Dataset[[#This Row],[2023/24 From - Spending review Topic 3]]+Dataset[[#This Row],[2023/24 From - Spending review Topic 4]]+Dataset[[#This Row],[2023/24 From - Other reallocations]]","v":0},{"$f":"Dataset[[#This Row],[2024/25 From - Spending review Topic 1]]+Dataset[[#This Row],[2024/25 From - Spending review Topic 2]]+Dataset[[#This Row],[2024/25 From - Spending review Topic 3]]+Dataset[[#This Row],[2024/25 From - Spending review Topic 4]]+Dataset[[#This Row],[2024/25 From - Other reallocations]]","v":0},{"$f":"Dataset[[#This Row],[2025/26 From - Spending review Topic 1]]+Dataset[[#This Row],[2025/26 From - Spending review Topic 2]]+Dataset[[#This Row],[2025/26 From - Spending review Topic 3]]+Dataset[[#This Row],[2025/26 From - Spending review Topic 4]]+Dataset[[#This Row],[2025/26 From - Other reallocations]]","v":0},{"$f":"Dataset[[#This Row],[2023/24 To - Spending review Topic 1]]+Dataset[[#This Row],[2023/24 To - Spending review Topic 2]]+Dataset[[#This Row],[2023/24 To - Spending review Topic 3]]+Dataset[[#This Row],[2023/24 To - Spending review Topic 4]]+Dataset[[#This Row],[2023/24 To - Other reallocations]]","v":0},{"$f":"Dataset[[#This Row],[2024/25 To - Spending review Topic 1]]+Dataset[[#This Row],[2024/25 To - Spending review Topic 2]]+Dataset[[#This Row],[2024/25 To - Spending review Topic 3]]+Dataset[[#This Row],[2024/25 To - Spending review Topic 4]]+Dataset[[#This Row],[2024/25 To - Other reallocations]]","v":0},{"$f":"Dataset[[#This Row],[2025/26 To - Spending review Topic 1]]+Dataset[[#This Row],[2025/26 To - Spending review Topic 2]]+Dataset[[#This Row],[2025/26 To - Spending review Topic 3]]+Dataset[[#This Row],[2025/26 To - Spending review Topic 4]]+Dataset[[#This Row],[2025/26 To - Other reallocations]]","v":0},{"$f":"Dataset[[#This Row],[2023/24 Baseline]]+Dataset[[#This Row],[2023/24 From - Total]]+Dataset[[#This Row],[2023/24 To - Total]]","v":0},{"$f":"Dataset[[#This Row],[2024/25 Baseline]]+Dataset[[#This Row],[2024/25 From - Total]]+Dataset[[#This Row],[2024/25 To - Total]]","v":0},{"$f":"Dataset[[#This Row],[2025/26 Baseline]]+Dataset[[#This Row],[2025/26 From - Total]]+Dataset[[#This Row],[2025/26 To - Total]]","v":0}]
["NAT|Non-transfer item","2|Inventory: Learner and teacher support material","2023_24","MTEF2023",2,3,2,1181,564,"02","03","02","001181","000564","02|03|02",1,1,2,25,25,"01|01|02|25|25","National","Parliament","Associated Services","Transfer to Political Party Allowances","Non-transfer item","Current","Current payments","Goods and services","Inventory: Learner and teacher support material","Inventory: Learner and teacher support material","General public services","Executive and legislative organs","NAT",0,0,0,0,0,0,0,0,0,0,0,null,null,null,null,null,null,null,null,null,null,null,null,null,null,null,null,null,null,null,null,null,null,null,null,null,null,null,null,null,null,{"$f":"Dataset[[#This Row],[2023/24 From - Spending review Topic 1]]+Dataset[[#This Row],[2023/24 From - Spending review Topic 2]]+Dataset[[#This Row],[2023/24 From - Spending review Topic 3]]+Dataset[[#This Row],[2023/24 From - Spending review Topic 4]]+Dataset[[#This Row],[2023/24 From - Other reallocations]]","v":0},{"$f":"Dataset[[#This Row],[2024/25 From - Spending review Topic 1]]+Dataset[[#This Row],[2024/25 From - Spending review Topic 2]]+Dataset[[#This Row],[2024/25 From - Spending review Topic 3]]+Dataset[[#This Row],[2024/25 From - Spending review Topic 4]]+Dataset[[#This Row],[2024/25 From - Other reallocations]]","v":0},{"$f":"Dataset[[#This Row],[2025/26 From - Spending review Topic 1]]+Dataset[[#This Row],[2025/26 From - Spending review Topic 2]]+Dataset[[#This Row],[2025/26 From - Spending review Topic 3]]+Dataset[[#This Row],[2025/26 From - Spending review Topic 4]]+Dataset[[#This Row],[2025/26 From - Other reallocations]]","v":0},{"$f":"Dataset[[#This Row],[2023/24 To - Spending review Topic 1]]+Dataset[[#This Row],[2023/24 To - Spending review Topic 2]]+Dataset[[#This Row],[2023/24 To - Spending review Topic 3]]+Dataset[[#This Row],[2023/24 To - Spending review Topic 4]]+Dataset[[#This Row],[2023/24 To - Other reallocations]]","v":0},{"$f":"Dataset[[#This Row],[2024/25 To - Spending review Topic 1]]+Dataset[[#This Row],[2024/25 To - Spending review Topic 2]]+Dataset[[#This Row],[2024/25 To - Spending review Topic 3]]+Dataset[[#This Row],[2024/25 To - Spending review Topic 4]]+Dataset[[#This Row],[2024/25 To - Other reallocations]]","v":0},{"$f":"Dataset[[#This Row],[2025/26 To - Spending review Topic 1]]+Dataset[[#This Row],[2025/26 To - Spending review Topic 2]]+Dataset[[#This Row],[2025/26 To - Spending review Topic 3]]+Dataset[[#This Row],[2025/26 To - Spending review Topic 4]]+Dataset[[#This Row],[2025/26 To - Other reallocations]]","v":0},{"$f":"Dataset[[#This Row],[2023/24 Baseline]]+Dataset[[#This Row],[2023/24 From - Total]]+Dataset[[#This Row],[2023/24 To - Total]]","v":0},{"$f":"Dataset[[#This Row],[2024/25 Baseline]]+Dataset[[#This Row],[2024/25 From - Total]]+Dataset[[#This Row],[2024/25 To - Total]]","v":0},{"$f":"Dataset[[#This Row],[2025/26 Baseline]]+Dataset[[#This Row],[2025/26 From - Total]]+Dataset[[#This Row],[2025/26 To - Total]]","v":0}]
["NAT|Non-transfer item","2|Inventory: Materials and supplies","2023_24","MTEF2023",2,3,2,1182,565,"02","03","02","001182","000565","02|03|02",1,1,2,26,26,"01|01|02|26|26","National","Parliament","Associated Services","Transfer to Political Party Allowances","Non-transfer item","Current","Current payments","Goods and services","Inventory: Materials and supplies","Inventory: Materials and supplies","General public services","Executive and legislative organs","NAT",0,0,0,0,0,0,0,0,0,0,0,null,null,null,null,null,null,null,null,null,null,null,null,null,null,null,null,null,null,null,null,null,null,null,null,null,null,null,null,null,null,{"$f":"Dataset[[#This Row],[2023/24 From - Spending review Topic 1]]+Dataset[[#This Row],[2023/24 From - Spending review Topic 2]]+Dataset[[#This Row],[2023/24 From - Spending review Topic 3]]+Dataset[[#This Row],[2023/24 From - Spending review Topic 4]]+Dataset[[#This Row],[2023/24 From - Other reallocations]]","v":0},{"$f":"Dataset[[#This Row],[2024/25 From - Spending review Topic 1]]+Dataset[[#This Row],[2024/25 From - Spending review Topic 2]]+Dataset[[#This Row],[2024/25 From - Spending review Topic 3]]+Dataset[[#This Row],[2024/25 From - Spending review Topic 4]]+Dataset[[#This Row],[2024/25 From - Other reallocations]]","v":0},{"$f":"Dataset[[#This Row],[2025/26 From - Spending review Topic 1]]+Dataset[[#This Row],[2025/26 From - Spending review Topic 2]]+Dataset[[#This Row],[2025/26 From - Spending review Topic 3]]+Dataset[[#This Row],[2025/26 From - Spending review Topic 4]]+Dataset[[#This Row],[2025/26 From - Other reallocations]]","v":0},{"$f":"Dataset[[#This Row],[2023/24 To - Spending review Topic 1]]+Dataset[[#This Row],[2023/24 To - Spending review Topic 2]]+Dataset[[#This Row],[2023/24 To - Spending review Topic 3]]+Dataset[[#This Row],[2023/24 To - Spending review Topic 4]]+Dataset[[#This Row],[2023/24 To - Other reallocations]]","v":0},{"$f":"Dataset[[#This Row],[2024/25 To - Spending review Topic 1]]+Dataset[[#This Row],[2024/25 To - Spending review Topic 2]]+Dataset[[#This Row],[2024/25 To - Spending review Topic 3]]+Dataset[[#This Row],[2024/25 To - Spending review Topic 4]]+Dataset[[#This Row],[2024/25 To - Other reallocations]]","v":0},{"$f":"Dataset[[#This Row],[2025/26 To - Spending review Topic 1]]+Dataset[[#This Row],[2025/26 To - Spending review Topic 2]]+Dataset[[#This Row],[2025/26 To - Spending review Topic 3]]+Dataset[[#This Row],[2025/26 To - Spending review Topic 4]]+Dataset[[#This Row],[2025/26 To - Other reallocations]]","v":0},{"$f":"Dataset[[#This Row],[2023/24 Baseline]]+Dataset[[#This Row],[2023/24 From - Total]]+Dataset[[#This Row],[2023/24 To - Total]]","v":0},{"$f":"Dataset[[#This Row],[2024/25 Baseline]]+Dataset[[#This Row],[2024/25 From - Total]]+Dataset[[#This Row],[2024/25 To - Total]]","v":0},{"$f":"Dataset[[#This Row],[2025/26 Baseline]]+Dataset[[#This Row],[2025/26 From - Total]]+Dataset[[#This Row],[2025/26 To - Total]]","v":0}]
["NAT|Non-transfer item","2|Inventory: Medical supplies","2023_24","MTEF2023",2,3,2,1183,566,"02","03","02","001183","000566","02|03|02",1,1,2,27,27,"01|01|02|27|27","National","Parliament","Associated Services","Transfer to Political Party Allowances","Non-transfer item","Current","Current payments","Goods and services","Inventory: Medical supplies","Inventory: Medical supplies","General public services","Executive and legislative organs","NAT",0,0,0,0,0,0,0,0,0,0,0,null,null,null,null,null,null,null,null,null,null,null,null,null,null,null,null,null,null,null,null,null,null,null,null,null,null,null,null,null,null,{"$f":"Dataset[[#This Row],[2023/24 From - Spending review Topic 1]]+Dataset[[#This Row],[2023/24 From - Spending review Topic 2]]+Dataset[[#This Row],[2023/24 From - Spending review Topic 3]]+Dataset[[#This Row],[2023/24 From - Spending review Topic 4]]+Dataset[[#This Row],[2023/24 From - Other reallocations]]","v":0},{"$f":"Dataset[[#This Row],[2024/25 From - Spending review Topic 1]]+Dataset[[#This Row],[2024/25 From - Spending review Topic 2]]+Dataset[[#This Row],[2024/25 From - Spending review Topic 3]]+Dataset[[#This Row],[2024/25 From - Spending review Topic 4]]+Dataset[[#This Row],[2024/25 From - Other reallocations]]","v":0},{"$f":"Dataset[[#This Row],[2025/26 From - Spending review Topic 1]]+Dataset[[#This Row],[2025/26 From - Spending review Topic 2]]+Dataset[[#This Row],[2025/26 From - Spending review Topic 3]]+Dataset[[#This Row],[2025/26 From - Spending review Topic 4]]+Dataset[[#This Row],[2025/26 From - Other reallocations]]","v":0},{"$f":"Dataset[[#This Row],[2023/24 To - Spending review Topic 1]]+Dataset[[#This Row],[2023/24 To - Spending review Topic 2]]+Dataset[[#This Row],[2023/24 To - Spending review Topic 3]]+Dataset[[#This Row],[2023/24 To - Spending review Topic 4]]+Dataset[[#This Row],[2023/24 To - Other reallocations]]","v":0},{"$f":"Dataset[[#This Row],[2024/25 To - Spending review Topic 1]]+Dataset[[#This Row],[2024/25 To - Spending review Topic 2]]+Dataset[[#This Row],[2024/25 To - Spending review Topic 3]]+Dataset[[#This Row],[2024/25 To - Spending review Topic 4]]+Dataset[[#This Row],[2024/25 To - Other reallocations]]","v":0},{"$f":"Dataset[[#This Row],[2025/26 To - Spending review Topic 1]]+Dataset[[#This Row],[2025/26 To - Spending review Topic 2]]+Dataset[[#This Row],[2025/26 To - Spending review Topic 3]]+Dataset[[#This Row],[2025/26 To - Spending review Topic 4]]+Dataset[[#This Row],[2025/26 To - Other reallocations]]","v":0},{"$f":"Dataset[[#This Row],[2023/24 Baseline]]+Dataset[[#This Row],[2023/24 From - Total]]+Dataset[[#This Row],[2023/24 To - Total]]","v":0},{"$f":"Dataset[[#This Row],[2024/25 Baseline]]+Dataset[[#This Row],[2024/25 From - Total]]+Dataset[[#This Row],[2024/25 To - Total]]","v":0},{"$f":"Dataset[[#This Row],[2025/26 Baseline]]+Dataset[[#This Row],[2025/26 From - Total]]+Dataset[[#This Row],[2025/26 To - Total]]","v":0}]
["NAT|Non-transfer item","2|Inventory: Medicine","2023_24","MTEF2023",2,3,2,1184,567,"02","03","02","001184","000567","02|03|02",1,1,2,28,28,"01|01|02|28|28","National","Parliament","Associated Services","Transfer to Political Party Allowances","Non-transfer item","Current","Current payments","Goods and services","Inventory: Medicine","Inventory: Medicine","General public services","Executive and legislative organs","NAT",0,0,0,0,0,0,0,0,0,0,0,null,null,null,null,null,null,null,null,null,null,null,null,null,null,null,null,null,null,null,null,null,null,null,null,null,null,null,null,null,null,{"$f":"Dataset[[#This Row],[2023/24 From - Spending review Topic 1]]+Dataset[[#This Row],[2023/24 From - Spending review Topic 2]]+Dataset[[#This Row],[2023/24 From - Spending review Topic 3]]+Dataset[[#This Row],[2023/24 From - Spending review Topic 4]]+Dataset[[#This Row],[2023/24 From - Other reallocations]]","v":0},{"$f":"Dataset[[#This Row],[2024/25 From - Spending review Topic 1]]+Dataset[[#This Row],[2024/25 From - Spending review Topic 2]]+Dataset[[#This Row],[2024/25 From - Spending review Topic 3]]+Dataset[[#This Row],[2024/25 From - Spending review Topic 4]]+Dataset[[#This Row],[2024/25 From - Other reallocations]]","v":0},{"$f":"Dataset[[#This Row],[2025/26 From - Spending review Topic 1]]+Dataset[[#This Row],[2025/26 From - Spending review Topic 2]]+Dataset[[#This Row],[2025/26 From - Spending review Topic 3]]+Dataset[[#This Row],[2025/26 From - Spending review Topic 4]]+Dataset[[#This Row],[2025/26 From - Other reallocations]]","v":0},{"$f":"Dataset[[#This Row],[2023/24 To - Spending review Topic 1]]+Dataset[[#This Row],[2023/24 To - Spending review Topic 2]]+Dataset[[#This Row],[2023/24 To - Spending review Topic 3]]+Dataset[[#This Row],[2023/24 To - Spending review Topic 4]]+Dataset[[#This Row],[2023/24 To - Other reallocations]]","v":0},{"$f":"Dataset[[#This Row],[2024/25 To - Spending review Topic 1]]+Dataset[[#This Row],[2024/25 To - Spending review Topic 2]]+Dataset[[#This Row],[2024/25 To - Spending review Topic 3]]+Dataset[[#This Row],[2024/25 To - Spending review Topic 4]]+Dataset[[#This Row],[2024/25 To - Other reallocations]]","v":0},{"$f":"Dataset[[#This Row],[2025/26 To - Spending review Topic 1]]+Dataset[[#This Row],[2025/26 To - Spending review Topic 2]]+Dataset[[#This Row],[2025/26 To - Spending review Topic 3]]+Dataset[[#This Row],[2025/26 To - Spending review Topic 4]]+Dataset[[#This Row],[2025/26 To - Other reallocations]]","v":0},{"$f":"Dataset[[#This Row],[2023/24 Baseline]]+Dataset[[#This Row],[2023/24 From - Total]]+Dataset[[#This Row],[2023/24 To - Total]]","v":0},{"$f":"Dataset[[#This Row],[2024/25 Baseline]]+Dataset[[#This Row],[2024/25 From - Total]]+Dataset[[#This Row],[2024/25 To - Total]]","v":0},{"$f":"Dataset[[#This Row],[2025/26 Baseline]]+Dataset[[#This Row],[2025/26 From - Total]]+Dataset[[#This Row],[2025/26 To - Total]]","v":0}]
["NAT|Non-transfer item","2|Medsas inventory interface","2023_24","MTEF2023",2,3,2,1185,568,"02","03","02","001185","000568","02|03|02",1,1,2,29,29,"01|01|02|29|29","National","Parliament","Associated Services","Transfer to Political Party Allowances","Non-transfer item","Current","Current payments","Goods and services","Medsas inventory interface","Medsas inventory interface","General public services","Executive and legislative organs","NAT",0,0,0,0,0,0,0,0,0,0,0,null,null,null,null,null,null,null,null,null,null,null,null,null,null,null,null,null,null,null,null,null,null,null,null,null,null,null,null,null,null,{"$f":"Dataset[[#This Row],[2023/24 From - Spending review Topic 1]]+Dataset[[#This Row],[2023/24 From - Spending review Topic 2]]+Dataset[[#This Row],[2023/24 From - Spending review Topic 3]]+Dataset[[#This Row],[2023/24 From - Spending review Topic 4]]+Dataset[[#This Row],[2023/24 From - Other reallocations]]","v":0},{"$f":"Dataset[[#This Row],[2024/25 From - Spending review Topic 1]]+Dataset[[#This Row],[2024/25 From - Spending review Topic 2]]+Dataset[[#This Row],[2024/25 From - Spending review Topic 3]]+Dataset[[#This Row],[2024/25 From - Spending review Topic 4]]+Dataset[[#This Row],[2024/25 From - Other reallocations]]","v":0},{"$f":"Dataset[[#This Row],[2025/26 From - Spending review Topic 1]]+Dataset[[#This Row],[2025/26 From - Spending review Topic 2]]+Dataset[[#This Row],[2025/26 From - Spending review Topic 3]]+Dataset[[#This Row],[2025/26 From - Spending review Topic 4]]+Dataset[[#This Row],[2025/26 From - Other reallocations]]","v":0},{"$f":"Dataset[[#This Row],[2023/24 To - Spending review Topic 1]]+Dataset[[#This Row],[2023/24 To - Spending review Topic 2]]+Dataset[[#This Row],[2023/24 To - Spending review Topic 3]]+Dataset[[#This Row],[2023/24 To - Spending review Topic 4]]+Dataset[[#This Row],[2023/24 To - Other reallocations]]","v":0},{"$f":"Dataset[[#This Row],[2024/25 To - Spending review Topic 1]]+Dataset[[#This Row],[2024/25 To - Spending review Topic 2]]+Dataset[[#This Row],[2024/25 To - Spending review Topic 3]]+Dataset[[#This Row],[2024/25 To - Spending review Topic 4]]+Dataset[[#This Row],[2024/25 To - Other reallocations]]","v":0},{"$f":"Dataset[[#This Row],[2025/26 To - Spending review Topic 1]]+Dataset[[#This Row],[2025/26 To - Spending review Topic 2]]+Dataset[[#This Row],[2025/26 To - Spending review Topic 3]]+Dataset[[#This Row],[2025/26 To - Spending review Topic 4]]+Dataset[[#This Row],[2025/26 To - Other reallocations]]","v":0},{"$f":"Dataset[[#This Row],[2023/24 Baseline]]+Dataset[[#This Row],[2023/24 From - Total]]+Dataset[[#This Row],[2023/24 To - Total]]","v":0},{"$f":"Dataset[[#This Row],[2024/25 Baseline]]+Dataset[[#This Row],[2024/25 From - Total]]+Dataset[[#This Row],[2024/25 To - Total]]","v":0},{"$f":"Dataset[[#This Row],[2025/26 Baseline]]+Dataset[[#This Row],[2025/26 From - Total]]+Dataset[[#This Row],[2025/26 To - Total]]","v":0}]
["NAT|Non-transfer item","2|Inventory: Other supplies","2023_24","MTEF2023",2,3,2,1186,569,"02","03","02","001186","000569","02|03|02",1,1,2,30,30,"01|01|02|30|30","National","Parliament","Associated Services","Transfer to Political Party Allowances","Non-transfer item","Current","Current payments","Goods and services","Inventory: Other supplies","Inventory: Other supplies","General public services","Executive and legislative organs","NAT",0,0,0,0,0,0,0,0,0,0,0,null,null,null,null,null,null,null,null,null,null,null,null,null,null,null,null,null,null,null,null,null,null,null,null,null,null,null,null,null,null,{"$f":"Dataset[[#This Row],[2023/24 From - Spending review Topic 1]]+Dataset[[#This Row],[2023/24 From - Spending review Topic 2]]+Dataset[[#This Row],[2023/24 From - Spending review Topic 3]]+Dataset[[#This Row],[2023/24 From - Spending review Topic 4]]+Dataset[[#This Row],[2023/24 From - Other reallocations]]","v":0},{"$f":"Dataset[[#This Row],[2024/25 From - Spending review Topic 1]]+Dataset[[#This Row],[2024/25 From - Spending review Topic 2]]+Dataset[[#This Row],[2024/25 From - Spending review Topic 3]]+Dataset[[#This Row],[2024/25 From - Spending review Topic 4]]+Dataset[[#This Row],[2024/25 From - Other reallocations]]","v":0},{"$f":"Dataset[[#This Row],[2025/26 From - Spending review Topic 1]]+Dataset[[#This Row],[2025/26 From - Spending review Topic 2]]+Dataset[[#This Row],[2025/26 From - Spending review Topic 3]]+Dataset[[#This Row],[2025/26 From - Spending review Topic 4]]+Dataset[[#This Row],[2025/26 From - Other reallocations]]","v":0},{"$f":"Dataset[[#This Row],[2023/24 To - Spending review Topic 1]]+Dataset[[#This Row],[2023/24 To - Spending review Topic 2]]+Dataset[[#This Row],[2023/24 To - Spending review Topic 3]]+Dataset[[#This Row],[2023/24 To - Spending review Topic 4]]+Dataset[[#This Row],[2023/24 To - Other reallocations]]","v":0},{"$f":"Dataset[[#This Row],[2024/25 To - Spending review Topic 1]]+Dataset[[#This Row],[2024/25 To - Spending review Topic 2]]+Dataset[[#This Row],[2024/25 To - Spending review Topic 3]]+Dataset[[#This Row],[2024/25 To - Spending review Topic 4]]+Dataset[[#This Row],[2024/25 To - Other reallocations]]","v":0},{"$f":"Dataset[[#This Row],[2025/26 To - Spending review Topic 1]]+Dataset[[#This Row],[2025/26 To - Spending review Topic 2]]+Dataset[[#This Row],[2025/26 To - Spending review Topic 3]]+Dataset[[#This Row],[2025/26 To - Spending review Topic 4]]+Dataset[[#This Row],[2025/26 To - Other reallocations]]","v":0},{"$f":"Dataset[[#This Row],[2023/24 Baseline]]+Dataset[[#This Row],[2023/24 From - Total]]+Dataset[[#This Row],[2023/24 To - Total]]","v":0},{"$f":"Dataset[[#This Row],[2024/25 Baseline]]+Dataset[[#This Row],[2024/25 From - Total]]+Dataset[[#This Row],[2024/25 To - Total]]","v":0},{"$f":"Dataset[[#This Row],[2025/26 Baseline]]+Dataset[[#This Row],[2025/26 From - Total]]+Dataset[[#This Row],[2025/26 To - Total]]","v":0}]
["NAT|Non-transfer item","2|Consumable supplies","2023_24","MTEF2023",2,3,2,1187,570,"02","03","02","001187","000570","02|03|02",1,1,2,31,31,"01|01|02|31|31","National","Parliament","Associated Services","Transfer to Political Party Allowances","Non-transfer item","Current","Current payments","Goods and services","Consumable supplies","Consumable supplies","General public services","Executive and legislative organs","NAT",0,0,0,0,0,0,0,0,0,0,0,null,null,null,null,null,null,null,null,null,null,null,null,null,null,null,null,null,null,null,null,null,null,null,null,null,null,null,null,null,null,{"$f":"Dataset[[#This Row],[2023/24 From - Spending review Topic 1]]+Dataset[[#This Row],[2023/24 From - Spending review Topic 2]]+Dataset[[#This Row],[2023/24 From - Spending review Topic 3]]+Dataset[[#This Row],[2023/24 From - Spending review Topic 4]]+Dataset[[#This Row],[2023/24 From - Other reallocations]]","v":0},{"$f":"Dataset[[#This Row],[2024/25 From - Spending review Topic 1]]+Dataset[[#This Row],[2024/25 From - Spending review Topic 2]]+Dataset[[#This Row],[2024/25 From - Spending review Topic 3]]+Dataset[[#This Row],[2024/25 From - Spending review Topic 4]]+Dataset[[#This Row],[2024/25 From - Other reallocations]]","v":0},{"$f":"Dataset[[#This Row],[2025/26 From - Spending review Topic 1]]+Dataset[[#This Row],[2025/26 From - Spending review Topic 2]]+Dataset[[#This Row],[2025/26 From - Spending review Topic 3]]+Dataset[[#This Row],[2025/26 From - Spending review Topic 4]]+Dataset[[#This Row],[2025/26 From - Other reallocations]]","v":0},{"$f":"Dataset[[#This Row],[2023/24 To - Spending review Topic 1]]+Dataset[[#This Row],[2023/24 To - Spending review Topic 2]]+Dataset[[#This Row],[2023/24 To - Spending review Topic 3]]+Dataset[[#This Row],[2023/24 To - Spending review Topic 4]]+Dataset[[#This Row],[2023/24 To - Other reallocations]]","v":0},{"$f":"Dataset[[#This Row],[2024/25 To - Spending review Topic 1]]+Dataset[[#This Row],[2024/25 To - Spending review Topic 2]]+Dataset[[#This Row],[2024/25 To - Spending review Topic 3]]+Dataset[[#This Row],[2024/25 To - Spending review Topic 4]]+Dataset[[#This Row],[2024/25 To - Other reallocations]]","v":0},{"$f":"Dataset[[#This Row],[2025/26 To - Spending review Topic 1]]+Dataset[[#This Row],[2025/26 To - Spending review Topic 2]]+Dataset[[#This Row],[2025/26 To - Spending review Topic 3]]+Dataset[[#This Row],[2025/26 To - Spending review Topic 4]]+Dataset[[#This Row],[2025/26 To - Other reallocations]]","v":0},{"$f":"Dataset[[#This Row],[2023/24 Baseline]]+Dataset[[#This Row],[2023/24 From - Total]]+Dataset[[#This Row],[2023/24 To - Total]]","v":0},{"$f":"Dataset[[#This Row],[2024/25 Baseline]]+Dataset[[#This Row],[2024/25 From - Total]]+Dataset[[#This Row],[2024/25 To - Total]]","v":0},{"$f":"Dataset[[#This Row],[2025/26 Baseline]]+Dataset[[#This Row],[2025/26 From - Total]]+Dataset[[#This Row],[2025/26 To - Total]]","v":0}]
["NAT|Non-transfer item","2|Consumables: Stationery, printing and office supplies","2023_24","MTEF2023",2,3,2,1188,571,"02","03","02","001188","000571","02|03|02",1,1,2,32,32,"01|01|02|32|32","National","Parliament","Associated Services","Transfer to Political Party Allowances","Non-transfer item","Current","Current payments","Goods and services","Consumables: Stationery, printing and office supplies","Consumables: Stationery, printing and office supplies","General public services","Executive and legislative organs","NAT",0,0,0,0,0,0,0,0,0,0,0,null,null,null,null,null,null,null,null,null,null,null,null,null,null,null,null,null,null,null,null,null,null,null,null,null,null,null,null,null,null,{"$f":"Dataset[[#This Row],[2023/24 From - Spending review Topic 1]]+Dataset[[#This Row],[2023/24 From - Spending review Topic 2]]+Dataset[[#This Row],[2023/24 From - Spending review Topic 3]]+Dataset[[#This Row],[2023/24 From - Spending review Topic 4]]+Dataset[[#This Row],[2023/24 From - Other reallocations]]","v":0},{"$f":"Dataset[[#This Row],[2024/25 From - Spending review Topic 1]]+Dataset[[#This Row],[2024/25 From - Spending review Topic 2]]+Dataset[[#This Row],[2024/25 From - Spending review Topic 3]]+Dataset[[#This Row],[2024/25 From - Spending review Topic 4]]+Dataset[[#This Row],[2024/25 From - Other reallocations]]","v":0},{"$f":"Dataset[[#This Row],[2025/26 From - Spending review Topic 1]]+Dataset[[#This Row],[2025/26 From - Spending review Topic 2]]+Dataset[[#This Row],[2025/26 From - Spending review Topic 3]]+Dataset[[#This Row],[2025/26 From - Spending review Topic 4]]+Dataset[[#This Row],[2025/26 From - Other reallocations]]","v":0},{"$f":"Dataset[[#This Row],[2023/24 To - Spending review Topic 1]]+Dataset[[#This Row],[2023/24 To - Spending review Topic 2]]+Dataset[[#This Row],[2023/24 To - Spending review Topic 3]]+Dataset[[#This Row],[2023/24 To - Spending review Topic 4]]+Dataset[[#This Row],[2023/24 To - Other reallocations]]","v":0},{"$f":"Dataset[[#This Row],[2024/25 To - Spending review Topic 1]]+Dataset[[#This Row],[2024/25 To - Spending review Topic 2]]+Dataset[[#This Row],[2024/25 To - Spending review Topic 3]]+Dataset[[#This Row],[2024/25 To - Spending review Topic 4]]+Dataset[[#This Row],[2024/25 To - Other reallocations]]","v":0},{"$f":"Dataset[[#This Row],[2025/26 To - Spending review Topic 1]]+Dataset[[#This Row],[2025/26 To - Spending review Topic 2]]+Dataset[[#This Row],[2025/26 To - Spending review Topic 3]]+Dataset[[#This Row],[2025/26 To - Spending review Topic 4]]+Dataset[[#This Row],[2025/26 To - Other reallocations]]","v":0},{"$f":"Dataset[[#This Row],[2023/24 Baseline]]+Dataset[[#This Row],[2023/24 From - Total]]+Dataset[[#This Row],[2023/24 To - Total]]","v":0},{"$f":"Dataset[[#This Row],[2024/25 Baseline]]+Dataset[[#This Row],[2024/25 From - Total]]+Dataset[[#This Row],[2024/25 To - Total]]","v":0},{"$f":"Dataset[[#This Row],[2025/26 Baseline]]+Dataset[[#This Row],[2025/26 From - Total]]+Dataset[[#This Row],[2025/26 To - Total]]","v":0}]
["NAT|Non-transfer item","2|Operating leases","2023_24","MTEF2023",2,3,2,1189,572,"02","03","02","001189","000572","02|03|02",1,1,2,33,33,"01|01|02|33|33","National","Parliament","Associated Services","Transfer to Political Party Allowances","Non-transfer item","Current","Current payments","Goods and services","Operating leases","Operating leases","General public services","Executive and legislative organs","NAT",0,0,0,0,0,0,0,0,0,0,0,null,null,null,null,null,null,null,null,null,null,null,null,null,null,null,null,null,null,null,null,null,null,null,null,null,null,null,null,null,null,{"$f":"Dataset[[#This Row],[2023/24 From - Spending review Topic 1]]+Dataset[[#This Row],[2023/24 From - Spending review Topic 2]]+Dataset[[#This Row],[2023/24 From - Spending review Topic 3]]+Dataset[[#This Row],[2023/24 From - Spending review Topic 4]]+Dataset[[#This Row],[2023/24 From - Other reallocations]]","v":0},{"$f":"Dataset[[#This Row],[2024/25 From - Spending review Topic 1]]+Dataset[[#This Row],[2024/25 From - Spending review Topic 2]]+Dataset[[#This Row],[2024/25 From - Spending review Topic 3]]+Dataset[[#This Row],[2024/25 From - Spending review Topic 4]]+Dataset[[#This Row],[2024/25 From - Other reallocations]]","v":0},{"$f":"Dataset[[#This Row],[2025/26 From - Spending review Topic 1]]+Dataset[[#This Row],[2025/26 From - Spending review Topic 2]]+Dataset[[#This Row],[2025/26 From - Spending review Topic 3]]+Dataset[[#This Row],[2025/26 From - Spending review Topic 4]]+Dataset[[#This Row],[2025/26 From - Other reallocations]]","v":0},{"$f":"Dataset[[#This Row],[2023/24 To - Spending review Topic 1]]+Dataset[[#This Row],[2023/24 To - Spending review Topic 2]]+Dataset[[#This Row],[2023/24 To - Spending review Topic 3]]+Dataset[[#This Row],[2023/24 To - Spending review Topic 4]]+Dataset[[#This Row],[2023/24 To - Other reallocations]]","v":0},{"$f":"Dataset[[#This Row],[2024/25 To - Spending review Topic 1]]+Dataset[[#This Row],[2024/25 To - Spending review Topic 2]]+Dataset[[#This Row],[2024/25 To - Spending review Topic 3]]+Dataset[[#This Row],[2024/25 To - Spending review Topic 4]]+Dataset[[#This Row],[2024/25 To - Other reallocations]]","v":0},{"$f":"Dataset[[#This Row],[2025/26 To - Spending review Topic 1]]+Dataset[[#This Row],[2025/26 To - Spending review Topic 2]]+Dataset[[#This Row],[2025/26 To - Spending review Topic 3]]+Dataset[[#This Row],[2025/26 To - Spending review Topic 4]]+Dataset[[#This Row],[2025/26 To - Other reallocations]]","v":0},{"$f":"Dataset[[#This Row],[2023/24 Baseline]]+Dataset[[#This Row],[2023/24 From - Total]]+Dataset[[#This Row],[2023/24 To - Total]]","v":0},{"$f":"Dataset[[#This Row],[2024/25 Baseline]]+Dataset[[#This Row],[2024/25 From - Total]]+Dataset[[#This Row],[2024/25 To - Total]]","v":0},{"$f":"Dataset[[#This Row],[2025/26 Baseline]]+Dataset[[#This Row],[2025/26 From - Total]]+Dataset[[#This Row],[2025/26 To - Total]]","v":0}]
["NAT|Non-transfer item","2|Rental and hiring","2023_24","MTEF2023",2,3,2,1190,573,"02","03","02","001190","000573","02|03|02",1,1,2,34,34,"01|01|02|34|34","National","Parliament","Associated Services","Transfer to Political Party Allowances","Non-transfer item","Current","Current payments","Goods and services","Rental and hiring","Rental and hiring","General public services","Executive and legislative organs","NAT",0,0,0,0,0,0,0,0,0,0,0,null,null,null,null,null,null,null,null,null,null,null,null,null,null,null,null,null,null,null,null,null,null,null,null,null,null,null,null,null,null,{"$f":"Dataset[[#This Row],[2023/24 From - Spending review Topic 1]]+Dataset[[#This Row],[2023/24 From - Spending review Topic 2]]+Dataset[[#This Row],[2023/24 From - Spending review Topic 3]]+Dataset[[#This Row],[2023/24 From - Spending review Topic 4]]+Dataset[[#This Row],[2023/24 From - Other reallocations]]","v":0},{"$f":"Dataset[[#This Row],[2024/25 From - Spending review Topic 1]]+Dataset[[#This Row],[2024/25 From - Spending review Topic 2]]+Dataset[[#This Row],[2024/25 From - Spending review Topic 3]]+Dataset[[#This Row],[2024/25 From - Spending review Topic 4]]+Dataset[[#This Row],[2024/25 From - Other reallocations]]","v":0},{"$f":"Dataset[[#This Row],[2025/26 From - Spending review Topic 1]]+Dataset[[#This Row],[2025/26 From - Spending review Topic 2]]+Dataset[[#This Row],[2025/26 From - Spending review Topic 3]]+Dataset[[#This Row],[2025/26 From - Spending review Topic 4]]+Dataset[[#This Row],[2025/26 From - Other reallocations]]","v":0},{"$f":"Dataset[[#This Row],[2023/24 To - Spending review Topic 1]]+Dataset[[#This Row],[2023/24 To - Spending review Topic 2]]+Dataset[[#This Row],[2023/24 To - Spending review Topic 3]]+Dataset[[#This Row],[2023/24 To - Spending review Topic 4]]+Dataset[[#This Row],[2023/24 To - Other reallocations]]","v":0},{"$f":"Dataset[[#This Row],[2024/25 To - Spending review Topic 1]]+Dataset[[#This Row],[2024/25 To - Spending review Topic 2]]+Dataset[[#This Row],[2024/25 To - Spending review Topic 3]]+Dataset[[#This Row],[2024/25 To - Spending review Topic 4]]+Dataset[[#This Row],[2024/25 To - Other reallocations]]","v":0},{"$f":"Dataset[[#This Row],[2025/26 To - Spending review Topic 1]]+Dataset[[#This Row],[2025/26 To - Spending review Topic 2]]+Dataset[[#This Row],[2025/26 To - Spending review Topic 3]]+Dataset[[#This Row],[2025/26 To - Spending review Topic 4]]+Dataset[[#This Row],[2025/26 To - Other reallocations]]","v":0},{"$f":"Dataset[[#This Row],[2023/24 Baseline]]+Dataset[[#This Row],[2023/24 From - Total]]+Dataset[[#This Row],[2023/24 To - Total]]","v":0},{"$f":"Dataset[[#This Row],[2024/25 Baseline]]+Dataset[[#This Row],[2024/25 From - Total]]+Dataset[[#This Row],[2024/25 To - Total]]","v":0},{"$f":"Dataset[[#This Row],[2025/26 Baseline]]+Dataset[[#This Row],[2025/26 From - Total]]+Dataset[[#This Row],[2025/26 To - Total]]","v":0}]
["NAT|Non-transfer item","2|Property payments","2023_24","MTEF2023",2,3,2,1191,574,"02","03","02","001191","000574","02|03|02",1,1,2,35,35,"01|01|02|35|35","National","Parliament","Associated Services","Transfer to Political Party Allowances","Non-transfer item","Current","Current payments","Goods and services","Property payments","Property payments","General public services","Executive and legislative organs","NAT",0,0,0,0,0,0,0,0,0,0,0,null,null,null,null,null,null,null,null,null,null,null,null,null,null,null,null,null,null,null,null,null,null,null,null,null,null,null,null,null,null,{"$f":"Dataset[[#This Row],[2023/24 From - Spending review Topic 1]]+Dataset[[#This Row],[2023/24 From - Spending review Topic 2]]+Dataset[[#This Row],[2023/24 From - Spending review Topic 3]]+Dataset[[#This Row],[2023/24 From - Spending review Topic 4]]+Dataset[[#This Row],[2023/24 From - Other reallocations]]","v":0},{"$f":"Dataset[[#This Row],[2024/25 From - Spending review Topic 1]]+Dataset[[#This Row],[2024/25 From - Spending review Topic 2]]+Dataset[[#This Row],[2024/25 From - Spending review Topic 3]]+Dataset[[#This Row],[2024/25 From - Spending review Topic 4]]+Dataset[[#This Row],[2024/25 From - Other reallocations]]","v":0},{"$f":"Dataset[[#This Row],[2025/26 From - Spending review Topic 1]]+Dataset[[#This Row],[2025/26 From - Spending review Topic 2]]+Dataset[[#This Row],[2025/26 From - Spending review Topic 3]]+Dataset[[#This Row],[2025/26 From - Spending review Topic 4]]+Dataset[[#This Row],[2025/26 From - Other reallocations]]","v":0},{"$f":"Dataset[[#This Row],[2023/24 To - Spending review Topic 1]]+Dataset[[#This Row],[2023/24 To - Spending review Topic 2]]+Dataset[[#This Row],[2023/24 To - Spending review Topic 3]]+Dataset[[#This Row],[2023/24 To - Spending review Topic 4]]+Dataset[[#This Row],[2023/24 To - Other reallocations]]","v":0},{"$f":"Dataset[[#This Row],[2024/25 To - Spending review Topic 1]]+Dataset[[#This Row],[2024/25 To - Spending review Topic 2]]+Dataset[[#This Row],[2024/25 To - Spending review Topic 3]]+Dataset[[#This Row],[2024/25 To - Spending review Topic 4]]+Dataset[[#This Row],[2024/25 To - Other reallocations]]","v":0},{"$f":"Dataset[[#This Row],[2025/26 To - Spending review Topic 1]]+Dataset[[#This Row],[2025/26 To - Spending review Topic 2]]+Dataset[[#This Row],[2025/26 To - Spending review Topic 3]]+Dataset[[#This Row],[2025/26 To - Spending review Topic 4]]+Dataset[[#This Row],[2025/26 To - Other reallocations]]","v":0},{"$f":"Dataset[[#This Row],[2023/24 Baseline]]+Dataset[[#This Row],[2023/24 From - Total]]+Dataset[[#This Row],[2023/24 To - Total]]","v":0},{"$f":"Dataset[[#This Row],[2024/25 Baseline]]+Dataset[[#This Row],[2024/25 From - Total]]+Dataset[[#This Row],[2024/25 To - Total]]","v":0},{"$f":"Dataset[[#This Row],[2025/26 Baseline]]+Dataset[[#This Row],[2025/26 From - Total]]+Dataset[[#This Row],[2025/26 To - Total]]","v":0}]
["NAT|Non-transfer item","2|Transport provided: Departmental activity","2023_24","MTEF2023",2,3,2,1192,575,"02","03","02","001192","000575","02|03|02",1,1,2,36,36,"01|01|02|36|36","National","Parliament","Associated Services","Transfer to Political Party Allowances","Non-transfer item","Current","Current payments","Goods and services","Transport provided: Departmental activity","Transport provided: Departmental activity","General public services","Executive and legislative organs","NAT",0,0,0,0,0,0,0,0,0,0,0,null,null,null,null,null,null,null,null,null,null,null,null,null,null,null,null,null,null,null,null,null,null,null,null,null,null,null,null,null,null,{"$f":"Dataset[[#This Row],[2023/24 From - Spending review Topic 1]]+Dataset[[#This Row],[2023/24 From - Spending review Topic 2]]+Dataset[[#This Row],[2023/24 From - Spending review Topic 3]]+Dataset[[#This Row],[2023/24 From - Spending review Topic 4]]+Dataset[[#This Row],[2023/24 From - Other reallocations]]","v":0},{"$f":"Dataset[[#This Row],[2024/25 From - Spending review Topic 1]]+Dataset[[#This Row],[2024/25 From - Spending review Topic 2]]+Dataset[[#This Row],[2024/25 From - Spending review Topic 3]]+Dataset[[#This Row],[2024/25 From - Spending review Topic 4]]+Dataset[[#This Row],[2024/25 From - Other reallocations]]","v":0},{"$f":"Dataset[[#This Row],[2025/26 From - Spending review Topic 1]]+Dataset[[#This Row],[2025/26 From - Spending review Topic 2]]+Dataset[[#This Row],[2025/26 From - Spending review Topic 3]]+Dataset[[#This Row],[2025/26 From - Spending review Topic 4]]+Dataset[[#This Row],[2025/26 From - Other reallocations]]","v":0},{"$f":"Dataset[[#This Row],[2023/24 To - Spending review Topic 1]]+Dataset[[#This Row],[2023/24 To - Spending review Topic 2]]+Dataset[[#This Row],[2023/24 To - Spending review Topic 3]]+Dataset[[#This Row],[2023/24 To - Spending review Topic 4]]+Dataset[[#This Row],[2023/24 To - Other reallocations]]","v":0},{"$f":"Dataset[[#This Row],[2024/25 To - Spending review Topic 1]]+Dataset[[#This Row],[2024/25 To - Spending review Topic 2]]+Dataset[[#This Row],[2024/25 To - Spending review Topic 3]]+Dataset[[#This Row],[2024/25 To - Spending review Topic 4]]+Dataset[[#This Row],[2024/25 To - Other reallocations]]","v":0},{"$f":"Dataset[[#This Row],[2025/26 To - Spending review Topic 1]]+Dataset[[#This Row],[2025/26 To - Spending review Topic 2]]+Dataset[[#This Row],[2025/26 To - Spending review Topic 3]]+Dataset[[#This Row],[2025/26 To - Spending review Topic 4]]+Dataset[[#This Row],[2025/26 To - Other reallocations]]","v":0},{"$f":"Dataset[[#This Row],[2023/24 Baseline]]+Dataset[[#This Row],[2023/24 From - Total]]+Dataset[[#This Row],[2023/24 To - Total]]","v":0},{"$f":"Dataset[[#This Row],[2024/25 Baseline]]+Dataset[[#This Row],[2024/25 From - Total]]+Dataset[[#This Row],[2024/25 To - Total]]","v":0},{"$f":"Dataset[[#This Row],[2025/26 Baseline]]+Dataset[[#This Row],[2025/26 From - Total]]+Dataset[[#This Row],[2025/26 To - Total]]","v":0}]
["NAT|Non-transfer item","2|Travel and subsistence","2023_24","MTEF2023",2,3,2,1193,576,"02","03","02","001193","000576","02|03|02",1,1,2,37,37,"01|01|02|37|37","National","Parliament","Associated Services","Transfer to Political Party Allowances","Non-transfer item","Current","Current payments","Goods and services","Travel and subsistence","Travel and subsistence","General public services","Executive and legislative organs","NAT",0,0,0,0,0,0,0,0,0,0,0,null,null,null,null,null,null,null,null,null,null,null,null,null,null,null,null,null,null,null,null,null,null,null,null,null,null,null,null,null,null,{"$f":"Dataset[[#This Row],[2023/24 From - Spending review Topic 1]]+Dataset[[#This Row],[2023/24 From - Spending review Topic 2]]+Dataset[[#This Row],[2023/24 From - Spending review Topic 3]]+Dataset[[#This Row],[2023/24 From - Spending review Topic 4]]+Dataset[[#This Row],[2023/24 From - Other reallocations]]","v":0},{"$f":"Dataset[[#This Row],[2024/25 From - Spending review Topic 1]]+Dataset[[#This Row],[2024/25 From - Spending review Topic 2]]+Dataset[[#This Row],[2024/25 From - Spending review Topic 3]]+Dataset[[#This Row],[2024/25 From - Spending review Topic 4]]+Dataset[[#This Row],[2024/25 From - Other reallocations]]","v":0},{"$f":"Dataset[[#This Row],[2025/26 From - Spending review Topic 1]]+Dataset[[#This Row],[2025/26 From - Spending review Topic 2]]+Dataset[[#This Row],[2025/26 From - Spending review Topic 3]]+Dataset[[#This Row],[2025/26 From - Spending review Topic 4]]+Dataset[[#This Row],[2025/26 From - Other reallocations]]","v":0},{"$f":"Dataset[[#This Row],[2023/24 To - Spending review Topic 1]]+Dataset[[#This Row],[2023/24 To - Spending review Topic 2]]+Dataset[[#This Row],[2023/24 To - Spending review Topic 3]]+Dataset[[#This Row],[2023/24 To - Spending review Topic 4]]+Dataset[[#This Row],[2023/24 To - Other reallocations]]","v":0},{"$f":"Dataset[[#This Row],[2024/25 To - Spending review Topic 1]]+Dataset[[#This Row],[2024/25 To - Spending review Topic 2]]+Dataset[[#This Row],[2024/25 To - Spending review Topic 3]]+Dataset[[#This Row],[2024/25 To - Spending review Topic 4]]+Dataset[[#This Row],[2024/25 To - Other reallocations]]","v":0},{"$f":"Dataset[[#This Row],[2025/26 To - Spending review Topic 1]]+Dataset[[#This Row],[2025/26 To - Spending review Topic 2]]+Dataset[[#This Row],[2025/26 To - Spending review Topic 3]]+Dataset[[#This Row],[2025/26 To - Spending review Topic 4]]+Dataset[[#This Row],[2025/26 To - Other reallocations]]","v":0},{"$f":"Dataset[[#This Row],[2023/24 Baseline]]+Dataset[[#This Row],[2023/24 From - Total]]+Dataset[[#This Row],[2023/24 To - Total]]","v":0},{"$f":"Dataset[[#This Row],[2024/25 Baseline]]+Dataset[[#This Row],[2024/25 From - Total]]+Dataset[[#This Row],[2024/25 To - Total]]","v":0},{"$f":"Dataset[[#This Row],[2025/26 Baseline]]+Dataset[[#This Row],[2025/26 From - Total]]+Dataset[[#This Row],[2025/26 To - Total]]","v":0}]
["NAT|Non-transfer item","2|Training and development","2023_24","MTEF2023",2,3,2,1194,577,"02","03","02","001194","000577","02|03|02",1,1,2,38,38,"01|01|02|38|38","National","Parliament","Associated Services","Transfer to Political Party Allowances","Non-transfer item","Current","Current payments","Goods and services","Training and development","Training and development","General public services","Executive and legislative organs","NAT",0,0,0,0,0,0,0,0,0,0,0,null,null,null,null,null,null,null,null,null,null,null,null,null,null,null,null,null,null,null,null,null,null,null,null,null,null,null,null,null,null,{"$f":"Dataset[[#This Row],[2023/24 From - Spending review Topic 1]]+Dataset[[#This Row],[2023/24 From - Spending review Topic 2]]+Dataset[[#This Row],[2023/24 From - Spending review Topic 3]]+Dataset[[#This Row],[2023/24 From - Spending review Topic 4]]+Dataset[[#This Row],[2023/24 From - Other reallocations]]","v":0},{"$f":"Dataset[[#This Row],[2024/25 From - Spending review Topic 1]]+Dataset[[#This Row],[2024/25 From - Spending review Topic 2]]+Dataset[[#This Row],[2024/25 From - Spending review Topic 3]]+Dataset[[#This Row],[2024/25 From - Spending review Topic 4]]+Dataset[[#This Row],[2024/25 From - Other reallocations]]","v":0},{"$f":"Dataset[[#This Row],[2025/26 From - Spending review Topic 1]]+Dataset[[#This Row],[2025/26 From - Spending review Topic 2]]+Dataset[[#This Row],[2025/26 From - Spending review Topic 3]]+Dataset[[#This Row],[2025/26 From - Spending review Topic 4]]+Dataset[[#This Row],[2025/26 From - Other reallocations]]","v":0},{"$f":"Dataset[[#This Row],[2023/24 To - Spending review Topic 1]]+Dataset[[#This Row],[2023/24 To - Spending review Topic 2]]+Dataset[[#This Row],[2023/24 To - Spending review Topic 3]]+Dataset[[#This Row],[2023/24 To - Spending review Topic 4]]+Dataset[[#This Row],[2023/24 To - Other reallocations]]","v":0},{"$f":"Dataset[[#This Row],[2024/25 To - Spending review Topic 1]]+Dataset[[#This Row],[2024/25 To - Spending review Topic 2]]+Dataset[[#This Row],[2024/25 To - Spending review Topic 3]]+Dataset[[#This Row],[2024/25 To - Spending review Topic 4]]+Dataset[[#This Row],[2024/25 To - Other reallocations]]","v":0},{"$f":"Dataset[[#This Row],[2025/26 To - Spending review Topic 1]]+Dataset[[#This Row],[2025/26 To - Spending review Topic 2]]+Dataset[[#This Row],[2025/26 To - Spending review Topic 3]]+Dataset[[#This Row],[2025/26 To - Spending review Topic 4]]+Dataset[[#This Row],[2025/26 To - Other reallocations]]","v":0},{"$f":"Dataset[[#This Row],[2023/24 Baseline]]+Dataset[[#This Row],[2023/24 From - Total]]+Dataset[[#This Row],[2023/24 To - Total]]","v":0},{"$f":"Dataset[[#This Row],[2024/25 Baseline]]+Dataset[[#This Row],[2024/25 From - Total]]+Dataset[[#This Row],[2024/25 To - Total]]","v":0},{"$f":"Dataset[[#This Row],[2025/26 Baseline]]+Dataset[[#This Row],[2025/26 From - Total]]+Dataset[[#This Row],[2025/26 To - Total]]","v":0}]
["NAT|Non-transfer item","2|Operating payments","2023_24","MTEF2023",2,3,2,1195,578,"02","03","02","001195","000578","02|03|02",1,1,2,39,39,"01|01|02|39|39","National","Parliament","Associated Services","Transfer to Political Party Allowances","Non-transfer item","Current","Current payments","Goods and services","Operating payments","Operating payments","General public services","Executive and legislative organs","NAT",0,0,0,0,0,0,0,0,0,0,0,null,null,null,null,null,null,null,null,null,null,null,null,null,null,null,null,null,null,null,null,null,null,null,null,null,null,null,null,null,null,{"$f":"Dataset[[#This Row],[2023/24 From - Spending review Topic 1]]+Dataset[[#This Row],[2023/24 From - Spending review Topic 2]]+Dataset[[#This Row],[2023/24 From - Spending review Topic 3]]+Dataset[[#This Row],[2023/24 From - Spending review Topic 4]]+Dataset[[#This Row],[2023/24 From - Other reallocations]]","v":0},{"$f":"Dataset[[#This Row],[2024/25 From - Spending review Topic 1]]+Dataset[[#This Row],[2024/25 From - Spending review Topic 2]]+Dataset[[#This Row],[2024/25 From - Spending review Topic 3]]+Dataset[[#This Row],[2024/25 From - Spending review Topic 4]]+Dataset[[#This Row],[2024/25 From - Other reallocations]]","v":0},{"$f":"Dataset[[#This Row],[2025/26 From - Spending review Topic 1]]+Dataset[[#This Row],[2025/26 From - Spending review Topic 2]]+Dataset[[#This Row],[2025/26 From - Spending review Topic 3]]+Dataset[[#This Row],[2025/26 From - Spending review Topic 4]]+Dataset[[#This Row],[2025/26 From - Other reallocations]]","v":0},{"$f":"Dataset[[#This Row],[2023/24 To - Spending review Topic 1]]+Dataset[[#This Row],[2023/24 To - Spending review Topic 2]]+Dataset[[#This Row],[2023/24 To - Spending review Topic 3]]+Dataset[[#This Row],[2023/24 To - Spending review Topic 4]]+Dataset[[#This Row],[2023/24 To - Other reallocations]]","v":0},{"$f":"Dataset[[#This Row],[2024/25 To - Spending review Topic 1]]+Dataset[[#This Row],[2024/25 To - Spending review Topic 2]]+Dataset[[#This Row],[2024/25 To - Spending review Topic 3]]+Dataset[[#This Row],[2024/25 To - Spending review Topic 4]]+Dataset[[#This Row],[2024/25 To - Other reallocations]]","v":0},{"$f":"Dataset[[#This Row],[2025/26 To - Spending review Topic 1]]+Dataset[[#This Row],[2025/26 To - Spending review Topic 2]]+Dataset[[#This Row],[2025/26 To - Spending review Topic 3]]+Dataset[[#This Row],[2025/26 To - Spending review Topic 4]]+Dataset[[#This Row],[2025/26 To - Other reallocations]]","v":0},{"$f":"Dataset[[#This Row],[2023/24 Baseline]]+Dataset[[#This Row],[2023/24 From - Total]]+Dataset[[#This Row],[2023/24 To - Total]]","v":0},{"$f":"Dataset[[#This Row],[2024/25 Baseline]]+Dataset[[#This Row],[2024/25 From - Total]]+Dataset[[#This Row],[2024/25 To - Total]]","v":0},{"$f":"Dataset[[#This Row],[2025/26 Baseline]]+Dataset[[#This Row],[2025/26 From - Total]]+Dataset[[#This Row],[2025/26 To - Total]]","v":0}]
["NAT|Non-transfer item","2|Venues and facilities","2023_24","MTEF2023",2,3,2,1196,579,"02","03","02","001196","000579","02|03|02",1,1,2,40,40,"01|01|02|40|40","National","Parliament","Associated Services","Transfer to Political Party Allowances","Non-transfer item","Current","Current payments","Goods and services","Venues and facilities","Venues and facilities","General public services","Executive and legislative organs","NAT",0,0,0,0,0,0,0,0,0,0,0,null,null,null,null,null,null,null,null,null,null,null,null,null,null,null,null,null,null,null,null,null,null,null,null,null,null,null,null,null,null,{"$f":"Dataset[[#This Row],[2023/24 From - Spending review Topic 1]]+Dataset[[#This Row],[2023/24 From - Spending review Topic 2]]+Dataset[[#This Row],[2023/24 From - Spending review Topic 3]]+Dataset[[#This Row],[2023/24 From - Spending review Topic 4]]+Dataset[[#This Row],[2023/24 From - Other reallocations]]","v":0},{"$f":"Dataset[[#This Row],[2024/25 From - Spending review Topic 1]]+Dataset[[#This Row],[2024/25 From - Spending review Topic 2]]+Dataset[[#This Row],[2024/25 From - Spending review Topic 3]]+Dataset[[#This Row],[2024/25 From - Spending review Topic 4]]+Dataset[[#This Row],[2024/25 From - Other reallocations]]","v":0},{"$f":"Dataset[[#This Row],[2025/26 From - Spending review Topic 1]]+Dataset[[#This Row],[2025/26 From - Spending review Topic 2]]+Dataset[[#This Row],[2025/26 From - Spending review Topic 3]]+Dataset[[#This Row],[2025/26 From - Spending review Topic 4]]+Dataset[[#This Row],[2025/26 From - Other reallocations]]","v":0},{"$f":"Dataset[[#This Row],[2023/24 To - Spending review Topic 1]]+Dataset[[#This Row],[2023/24 To - Spending review Topic 2]]+Dataset[[#This Row],[2023/24 To - Spending review Topic 3]]+Dataset[[#This Row],[2023/24 To - Spending review Topic 4]]+Dataset[[#This Row],[2023/24 To - Other reallocations]]","v":0},{"$f":"Dataset[[#This Row],[2024/25 To - Spending review Topic 1]]+Dataset[[#This Row],[2024/25 To - Spending review Topic 2]]+Dataset[[#This Row],[2024/25 To - Spending review Topic 3]]+Dataset[[#This Row],[2024/25 To - Spending review Topic 4]]+Dataset[[#This Row],[2024/25 To - Other reallocations]]","v":0},{"$f":"Dataset[[#This Row],[2025/26 To - Spending review Topic 1]]+Dataset[[#This Row],[2025/26 To - Spending review Topic 2]]+Dataset[[#This Row],[2025/26 To - Spending review Topic 3]]+Dataset[[#This Row],[2025/26 To - Spending review Topic 4]]+Dataset[[#This Row],[2025/26 To - Other reallocations]]","v":0},{"$f":"Dataset[[#This Row],[2023/24 Baseline]]+Dataset[[#This Row],[2023/24 From - Total]]+Dataset[[#This Row],[2023/24 To - Total]]","v":0},{"$f":"Dataset[[#This Row],[2024/25 Baseline]]+Dataset[[#This Row],[2024/25 From - Total]]+Dataset[[#This Row],[2024/25 To - Total]]","v":0},{"$f":"Dataset[[#This Row],[2025/26 Baseline]]+Dataset[[#This Row],[2025/26 From - Total]]+Dataset[[#This Row],[2025/26 To - Total]]","v":0}]
["NAT|Non-transfer item","2|Interest (Incl. interest on unitary payments (PPP))","2023_24","MTEF2023",2,3,2,1197,580,"02","03","02","001197","000580","02|03|02",1,1,3,41,41,"01|01|03|41|41","National","Parliament","Associated Services","Transfer to Political Party Allowances","Non-transfer item","Current","Current payments","Interest and rent on land","Interest (Incl. interest on unitary payments (PPP))","Interest (Incl. interest on unitary payments (PPP))","General public services","Executive and legislative organs","NAT",0,0,0,0,0,0,0,0,0,0,0,null,null,null,null,null,null,null,null,null,null,null,null,null,null,null,null,null,null,null,null,null,null,null,null,null,null,null,null,null,null,{"$f":"Dataset[[#This Row],[2023/24 From - Spending review Topic 1]]+Dataset[[#This Row],[2023/24 From - Spending review Topic 2]]+Dataset[[#This Row],[2023/24 From - Spending review Topic 3]]+Dataset[[#This Row],[2023/24 From - Spending review Topic 4]]+Dataset[[#This Row],[2023/24 From - Other reallocations]]","v":0},{"$f":"Dataset[[#This Row],[2024/25 From - Spending review Topic 1]]+Dataset[[#This Row],[2024/25 From - Spending review Topic 2]]+Dataset[[#This Row],[2024/25 From - Spending review Topic 3]]+Dataset[[#This Row],[2024/25 From - Spending review Topic 4]]+Dataset[[#This Row],[2024/25 From - Other reallocations]]","v":0},{"$f":"Dataset[[#This Row],[2025/26 From - Spending review Topic 1]]+Dataset[[#This Row],[2025/26 From - Spending review Topic 2]]+Dataset[[#This Row],[2025/26 From - Spending review Topic 3]]+Dataset[[#This Row],[2025/26 From - Spending review Topic 4]]+Dataset[[#This Row],[2025/26 From - Other reallocations]]","v":0},{"$f":"Dataset[[#This Row],[2023/24 To - Spending review Topic 1]]+Dataset[[#This Row],[2023/24 To - Spending review Topic 2]]+Dataset[[#This Row],[2023/24 To - Spending review Topic 3]]+Dataset[[#This Row],[2023/24 To - Spending review Topic 4]]+Dataset[[#This Row],[2023/24 To - Other reallocations]]","v":0},{"$f":"Dataset[[#This Row],[2024/25 To - Spending review Topic 1]]+Dataset[[#This Row],[2024/25 To - Spending review Topic 2]]+Dataset[[#This Row],[2024/25 To - Spending review Topic 3]]+Dataset[[#This Row],[2024/25 To - Spending review Topic 4]]+Dataset[[#This Row],[2024/25 To - Other reallocations]]","v":0},{"$f":"Dataset[[#This Row],[2025/26 To - Spending review Topic 1]]+Dataset[[#This Row],[2025/26 To - Spending review Topic 2]]+Dataset[[#This Row],[2025/26 To - Spending review Topic 3]]+Dataset[[#This Row],[2025/26 To - Spending review Topic 4]]+Dataset[[#This Row],[2025/26 To - Other reallocations]]","v":0},{"$f":"Dataset[[#This Row],[2023/24 Baseline]]+Dataset[[#This Row],[2023/24 From - Total]]+Dataset[[#This Row],[2023/24 To - Total]]","v":0},{"$f":"Dataset[[#This Row],[2024/25 Baseline]]+Dataset[[#This Row],[2024/25 From - Total]]+Dataset[[#This Row],[2024/25 To - Total]]","v":0},{"$f":"Dataset[[#This Row],[2025/26 Baseline]]+Dataset[[#This Row],[2025/26 From - Total]]+Dataset[[#This Row],[2025/26 To - Total]]","v":0}]
["NAT|Non-transfer item","2|Rent on land","2023_24","MTEF2023",2,3,2,1198,581,"02","03","02","001198","000581","02|03|02",1,1,3,42,42,"01|01|03|42|42","National","Parliament","Associated Services","Transfer to Political Party Allowances","Non-transfer item","Current","Current payments","Interest and rent on land","Rent on land","Rent on land","General public services","Executive and legislative organs","NAT",0,0,0,0,0,0,0,0,0,0,0,null,null,null,null,null,null,null,null,null,null,null,null,null,null,null,null,null,null,null,null,null,null,null,null,null,null,null,null,null,null,{"$f":"Dataset[[#This Row],[2023/24 From - Spending review Topic 1]]+Dataset[[#This Row],[2023/24 From - Spending review Topic 2]]+Dataset[[#This Row],[2023/24 From - Spending review Topic 3]]+Dataset[[#This Row],[2023/24 From - Spending review Topic 4]]+Dataset[[#This Row],[2023/24 From - Other reallocations]]","v":0},{"$f":"Dataset[[#This Row],[2024/25 From - Spending review Topic 1]]+Dataset[[#This Row],[2024/25 From - Spending review Topic 2]]+Dataset[[#This Row],[2024/25 From - Spending review Topic 3]]+Dataset[[#This Row],[2024/25 From - Spending review Topic 4]]+Dataset[[#This Row],[2024/25 From - Other reallocations]]","v":0},{"$f":"Dataset[[#This Row],[2025/26 From - Spending review Topic 1]]+Dataset[[#This Row],[2025/26 From - Spending review Topic 2]]+Dataset[[#This Row],[2025/26 From - Spending review Topic 3]]+Dataset[[#This Row],[2025/26 From - Spending review Topic 4]]+Dataset[[#This Row],[2025/26 From - Other reallocations]]","v":0},{"$f":"Dataset[[#This Row],[2023/24 To - Spending review Topic 1]]+Dataset[[#This Row],[2023/24 To - Spending review Topic 2]]+Dataset[[#This Row],[2023/24 To - Spending review Topic 3]]+Dataset[[#This Row],[2023/24 To - Spending review Topic 4]]+Dataset[[#This Row],[2023/24 To - Other reallocations]]","v":0},{"$f":"Dataset[[#This Row],[2024/25 To - Spending review Topic 1]]+Dataset[[#This Row],[2024/25 To - Spending review Topic 2]]+Dataset[[#This Row],[2024/25 To - Spending review Topic 3]]+Dataset[[#This Row],[2024/25 To - Spending review Topic 4]]+Dataset[[#This Row],[2024/25 To - Other reallocations]]","v":0},{"$f":"Dataset[[#This Row],[2025/26 To - Spending review Topic 1]]+Dataset[[#This Row],[2025/26 To - Spending review Topic 2]]+Dataset[[#This Row],[2025/26 To - Spending review Topic 3]]+Dataset[[#This Row],[2025/26 To - Spending review Topic 4]]+Dataset[[#This Row],[2025/26 To - Other reallocations]]","v":0},{"$f":"Dataset[[#This Row],[2023/24 Baseline]]+Dataset[[#This Row],[2023/24 From - Total]]+Dataset[[#This Row],[2023/24 To - Total]]","v":0},{"$f":"Dataset[[#This Row],[2024/25 Baseline]]+Dataset[[#This Row],[2024/25 From - Total]]+Dataset[[#This Row],[2024/25 To - Total]]","v":0},{"$f":"Dataset[[#This Row],[2025/26 Baseline]]+Dataset[[#This Row],[2025/26 From - Total]]+Dataset[[#This Row],[2025/26 To - Total]]","v":0}]
["NAT|Non-transfer item","2|Provincial Revenue Funds","2023_24","MTEF2023",2,3,2,1199,582,"02","03","02","001199","000582","02|03|02",1,2,4,43,43,"01|02|04|43|43","National","Parliament","Associated Services","Transfer to Political Party Allowances","Non-transfer item","Current","Transfers and subsidies","Provinces and municipalities","Provinces","Provincial Revenue Funds","General public services","Executive and legislative organs","NAT",0,0,0,0,0,0,0,0,0,0,0,null,null,null,null,null,null,null,null,null,null,null,null,null,null,null,null,null,null,null,null,null,null,null,null,null,null,null,null,null,null,{"$f":"Dataset[[#This Row],[2023/24 From - Spending review Topic 1]]+Dataset[[#This Row],[2023/24 From - Spending review Topic 2]]+Dataset[[#This Row],[2023/24 From - Spending review Topic 3]]+Dataset[[#This Row],[2023/24 From - Spending review Topic 4]]+Dataset[[#This Row],[2023/24 From - Other reallocations]]","v":0},{"$f":"Dataset[[#This Row],[2024/25 From - Spending review Topic 1]]+Dataset[[#This Row],[2024/25 From - Spending review Topic 2]]+Dataset[[#This Row],[2024/25 From - Spending review Topic 3]]+Dataset[[#This Row],[2024/25 From - Spending review Topic 4]]+Dataset[[#This Row],[2024/25 From - Other reallocations]]","v":0},{"$f":"Dataset[[#This Row],[2025/26 From - Spending review Topic 1]]+Dataset[[#This Row],[2025/26 From - Spending review Topic 2]]+Dataset[[#This Row],[2025/26 From - Spending review Topic 3]]+Dataset[[#This Row],[2025/26 From - Spending review Topic 4]]+Dataset[[#This Row],[2025/26 From - Other reallocations]]","v":0},{"$f":"Dataset[[#This Row],[2023/24 To - Spending review Topic 1]]+Dataset[[#This Row],[2023/24 To - Spending review Topic 2]]+Dataset[[#This Row],[2023/24 To - Spending review Topic 3]]+Dataset[[#This Row],[2023/24 To - Spending review Topic 4]]+Dataset[[#This Row],[2023/24 To - Other reallocations]]","v":0},{"$f":"Dataset[[#This Row],[2024/25 To - Spending review Topic 1]]+Dataset[[#This Row],[2024/25 To - Spending review Topic 2]]+Dataset[[#This Row],[2024/25 To - Spending review Topic 3]]+Dataset[[#This Row],[2024/25 To - Spending review Topic 4]]+Dataset[[#This Row],[2024/25 To - Other reallocations]]","v":0},{"$f":"Dataset[[#This Row],[2025/26 To - Spending review Topic 1]]+Dataset[[#This Row],[2025/26 To - Spending review Topic 2]]+Dataset[[#This Row],[2025/26 To - Spending review Topic 3]]+Dataset[[#This Row],[2025/26 To - Spending review Topic 4]]+Dataset[[#This Row],[2025/26 To - Other reallocations]]","v":0},{"$f":"Dataset[[#This Row],[2023/24 Baseline]]+Dataset[[#This Row],[2023/24 From - Total]]+Dataset[[#This Row],[2023/24 To - Total]]","v":0},{"$f":"Dataset[[#This Row],[2024/25 Baseline]]+Dataset[[#This Row],[2024/25 From - Total]]+Dataset[[#This Row],[2024/25 To - Total]]","v":0},{"$f":"Dataset[[#This Row],[2025/26 Baseline]]+Dataset[[#This Row],[2025/26 From - Total]]+Dataset[[#This Row],[2025/26 To - Total]]","v":0}]
["NAT|Non-transfer item","2|Provincial agencies and funds","2023_24","MTEF2023",2,3,2,1200,583,"02","03","02","001200","000583","02|03|02",1,2,4,43,44,"01|02|04|43|44","National","Parliament","Associated Services","Transfer to Political Party Allowances","Non-transfer item","Current","Transfers and subsidies","Provinces and municipalities","Provinces","Provincial agencies and funds","General public services","Executive and legislative organs","NAT",0,0,0,0,0,0,0,0,0,0,0,null,null,null,null,null,null,null,null,null,null,null,null,null,null,null,null,null,null,null,null,null,null,null,null,null,null,null,null,null,null,{"$f":"Dataset[[#This Row],[2023/24 From - Spending review Topic 1]]+Dataset[[#This Row],[2023/24 From - Spending review Topic 2]]+Dataset[[#This Row],[2023/24 From - Spending review Topic 3]]+Dataset[[#This Row],[2023/24 From - Spending review Topic 4]]+Dataset[[#This Row],[2023/24 From - Other reallocations]]","v":0},{"$f":"Dataset[[#This Row],[2024/25 From - Spending review Topic 1]]+Dataset[[#This Row],[2024/25 From - Spending review Topic 2]]+Dataset[[#This Row],[2024/25 From - Spending review Topic 3]]+Dataset[[#This Row],[2024/25 From - Spending review Topic 4]]+Dataset[[#This Row],[2024/25 From - Other reallocations]]","v":0},{"$f":"Dataset[[#This Row],[2025/26 From - Spending review Topic 1]]+Dataset[[#This Row],[2025/26 From - Spending review Topic 2]]+Dataset[[#This Row],[2025/26 From - Spending review Topic 3]]+Dataset[[#This Row],[2025/26 From - Spending review Topic 4]]+Dataset[[#This Row],[2025/26 From - Other reallocations]]","v":0},{"$f":"Dataset[[#This Row],[2023/24 To - Spending review Topic 1]]+Dataset[[#This Row],[2023/24 To - Spending review Topic 2]]+Dataset[[#This Row],[2023/24 To - Spending review Topic 3]]+Dataset[[#This Row],[2023/24 To - Spending review Topic 4]]+Dataset[[#This Row],[2023/24 To - Other reallocations]]","v":0},{"$f":"Dataset[[#This Row],[2024/25 To - Spending review Topic 1]]+Dataset[[#This Row],[2024/25 To - Spending review Topic 2]]+Dataset[[#This Row],[2024/25 To - Spending review Topic 3]]+Dataset[[#This Row],[2024/25 To - Spending review Topic 4]]+Dataset[[#This Row],[2024/25 To - Other reallocations]]","v":0},{"$f":"Dataset[[#This Row],[2025/26 To - Spending review Topic 1]]+Dataset[[#This Row],[2025/26 To - Spending review Topic 2]]+Dataset[[#This Row],[2025/26 To - Spending review Topic 3]]+Dataset[[#This Row],[2025/26 To - Spending review Topic 4]]+Dataset[[#This Row],[2025/26 To - Other reallocations]]","v":0},{"$f":"Dataset[[#This Row],[2023/24 Baseline]]+Dataset[[#This Row],[2023/24 From - Total]]+Dataset[[#This Row],[2023/24 To - Total]]","v":0},{"$f":"Dataset[[#This Row],[2024/25 Baseline]]+Dataset[[#This Row],[2024/25 From - Total]]+Dataset[[#This Row],[2024/25 To - Total]]","v":0},{"$f":"Dataset[[#This Row],[2025/26 Baseline]]+Dataset[[#This Row],[2025/26 From - Total]]+Dataset[[#This Row],[2025/26 To - Total]]","v":0}]
["NAT|Non-transfer item","2|Municipal bank accounts","2023_24","MTEF2023",2,3,2,1201,584,"02","03","02","001201","000584","02|03|02",1,2,4,44,45,"01|02|04|44|45","National","Parliament","Associated Services","Transfer to Political Party Allowances","Non-transfer item","Current","Transfers and subsidies","Provinces and municipalities","Municipalities","Municipal bank accounts","General public services","Executive and legislative organs","NAT",0,0,0,0,0,0,0,0,0,0,0,null,null,null,null,null,null,null,null,null,null,null,null,null,null,null,null,null,null,null,null,null,null,null,null,null,null,null,null,null,null,{"$f":"Dataset[[#This Row],[2023/24 From - Spending review Topic 1]]+Dataset[[#This Row],[2023/24 From - Spending review Topic 2]]+Dataset[[#This Row],[2023/24 From - Spending review Topic 3]]+Dataset[[#This Row],[2023/24 From - Spending review Topic 4]]+Dataset[[#This Row],[2023/24 From - Other reallocations]]","v":0},{"$f":"Dataset[[#This Row],[2024/25 From - Spending review Topic 1]]+Dataset[[#This Row],[2024/25 From - Spending review Topic 2]]+Dataset[[#This Row],[2024/25 From - Spending review Topic 3]]+Dataset[[#This Row],[2024/25 From - Spending review Topic 4]]+Dataset[[#This Row],[2024/25 From - Other reallocations]]","v":0},{"$f":"Dataset[[#This Row],[2025/26 From - Spending review Topic 1]]+Dataset[[#This Row],[2025/26 From - Spending review Topic 2]]+Dataset[[#This Row],[2025/26 From - Spending review Topic 3]]+Dataset[[#This Row],[2025/26 From - Spending review Topic 4]]+Dataset[[#This Row],[2025/26 From - Other reallocations]]","v":0},{"$f":"Dataset[[#This Row],[2023/24 To - Spending review Topic 1]]+Dataset[[#This Row],[2023/24 To - Spending review Topic 2]]+Dataset[[#This Row],[2023/24 To - Spending review Topic 3]]+Dataset[[#This Row],[2023/24 To - Spending review Topic 4]]+Dataset[[#This Row],[2023/24 To - Other reallocations]]","v":0},{"$f":"Dataset[[#This Row],[2024/25 To - Spending review Topic 1]]+Dataset[[#This Row],[2024/25 To - Spending review Topic 2]]+Dataset[[#This Row],[2024/25 To - Spending review Topic 3]]+Dataset[[#This Row],[2024/25 To - Spending review Topic 4]]+Dataset[[#This Row],[2024/25 To - Other reallocations]]","v":0},{"$f":"Dataset[[#This Row],[2025/26 To - Spending review Topic 1]]+Dataset[[#This Row],[2025/26 To - Spending review Topic 2]]+Dataset[[#This Row],[2025/26 To - Spending review Topic 3]]+Dataset[[#This Row],[2025/26 To - Spending review Topic 4]]+Dataset[[#This Row],[2025/26 To - Other reallocations]]","v":0},{"$f":"Dataset[[#This Row],[2023/24 Baseline]]+Dataset[[#This Row],[2023/24 From - Total]]+Dataset[[#This Row],[2023/24 To - Total]]","v":0},{"$f":"Dataset[[#This Row],[2024/25 Baseline]]+Dataset[[#This Row],[2024/25 From - Total]]+Dataset[[#This Row],[2024/25 To - Total]]","v":0},{"$f":"Dataset[[#This Row],[2025/26 Baseline]]+Dataset[[#This Row],[2025/26 From - Total]]+Dataset[[#This Row],[2025/26 To - Total]]","v":0}]
["NAT|Non-transfer item","2|Municipal agencies and funds","2023_24","MTEF2023",2,3,2,1202,585,"02","03","02","001202","000585","02|03|02",1,2,4,44,46,"01|02|04|44|46","National","Parliament","Associated Services","Transfer to Political Party Allowances","Non-transfer item","Current","Transfers and subsidies","Provinces and municipalities","Municipalities","Municipal agencies and funds","General public services","Executive and legislative organs","NAT",0,0,0,0,0,0,0,0,0,0,0,null,null,null,null,null,null,null,null,null,null,null,null,null,null,null,null,null,null,null,null,null,null,null,null,null,null,null,null,null,null,{"$f":"Dataset[[#This Row],[2023/24 From - Spending review Topic 1]]+Dataset[[#This Row],[2023/24 From - Spending review Topic 2]]+Dataset[[#This Row],[2023/24 From - Spending review Topic 3]]+Dataset[[#This Row],[2023/24 From - Spending review Topic 4]]+Dataset[[#This Row],[2023/24 From - Other reallocations]]","v":0},{"$f":"Dataset[[#This Row],[2024/25 From - Spending review Topic 1]]+Dataset[[#This Row],[2024/25 From - Spending review Topic 2]]+Dataset[[#This Row],[2024/25 From - Spending review Topic 3]]+Dataset[[#This Row],[2024/25 From - Spending review Topic 4]]+Dataset[[#This Row],[2024/25 From - Other reallocations]]","v":0},{"$f":"Dataset[[#This Row],[2025/26 From - Spending review Topic 1]]+Dataset[[#This Row],[2025/26 From - Spending review Topic 2]]+Dataset[[#This Row],[2025/26 From - Spending review Topic 3]]+Dataset[[#This Row],[2025/26 From - Spending review Topic 4]]+Dataset[[#This Row],[2025/26 From - Other reallocations]]","v":0},{"$f":"Dataset[[#This Row],[2023/24 To - Spending review Topic 1]]+Dataset[[#This Row],[2023/24 To - Spending review Topic 2]]+Dataset[[#This Row],[2023/24 To - Spending review Topic 3]]+Dataset[[#This Row],[2023/24 To - Spending review Topic 4]]+Dataset[[#This Row],[2023/24 To - Other reallocations]]","v":0},{"$f":"Dataset[[#This Row],[2024/25 To - Spending review Topic 1]]+Dataset[[#This Row],[2024/25 To - Spending review Topic 2]]+Dataset[[#This Row],[2024/25 To - Spending review Topic 3]]+Dataset[[#This Row],[2024/25 To - Spending review Topic 4]]+Dataset[[#This Row],[2024/25 To - Other reallocations]]","v":0},{"$f":"Dataset[[#This Row],[2025/26 To - Spending review Topic 1]]+Dataset[[#This Row],[2025/26 To - Spending review Topic 2]]+Dataset[[#This Row],[2025/26 To - Spending review Topic 3]]+Dataset[[#This Row],[2025/26 To - Spending review Topic 4]]+Dataset[[#This Row],[2025/26 To - Other reallocations]]","v":0},{"$f":"Dataset[[#This Row],[2023/24 Baseline]]+Dataset[[#This Row],[2023/24 From - Total]]+Dataset[[#This Row],[2023/24 To - Total]]","v":0},{"$f":"Dataset[[#This Row],[2024/25 Baseline]]+Dataset[[#This Row],[2024/25 From - Total]]+Dataset[[#This Row],[2024/25 To - Total]]","v":0},{"$f":"Dataset[[#This Row],[2025/26 Baseline]]+Dataset[[#This Row],[2025/26 From - Total]]+Dataset[[#This Row],[2025/26 To - Total]]","v":0}]
["NAT|Non-transfer item","2|Social security funds","2023_24","MTEF2023",2,3,2,1203,586,"02","03","02","001203","000586","02|03|02",1,2,5,45,47,"01|02|05|45|47","National","Parliament","Associated Services","Transfer to Political Party Allowances","Non-transfer item","Current","Transfers and subsidies","Departmental agencies and accounts","Social security funds","Social security funds","General public services","Executive and legislative organs","NAT",0,0,0,0,0,0,0,0,0,0,0,null,null,null,null,null,null,null,null,null,null,null,null,null,null,null,null,null,null,null,null,null,null,null,null,null,null,null,null,null,null,{"$f":"Dataset[[#This Row],[2023/24 From - Spending review Topic 1]]+Dataset[[#This Row],[2023/24 From - Spending review Topic 2]]+Dataset[[#This Row],[2023/24 From - Spending review Topic 3]]+Dataset[[#This Row],[2023/24 From - Spending review Topic 4]]+Dataset[[#This Row],[2023/24 From - Other reallocations]]","v":0},{"$f":"Dataset[[#This Row],[2024/25 From - Spending review Topic 1]]+Dataset[[#This Row],[2024/25 From - Spending review Topic 2]]+Dataset[[#This Row],[2024/25 From - Spending review Topic 3]]+Dataset[[#This Row],[2024/25 From - Spending review Topic 4]]+Dataset[[#This Row],[2024/25 From - Other reallocations]]","v":0},{"$f":"Dataset[[#This Row],[2025/26 From - Spending review Topic 1]]+Dataset[[#This Row],[2025/26 From - Spending review Topic 2]]+Dataset[[#This Row],[2025/26 From - Spending review Topic 3]]+Dataset[[#This Row],[2025/26 From - Spending review Topic 4]]+Dataset[[#This Row],[2025/26 From - Other reallocations]]","v":0},{"$f":"Dataset[[#This Row],[2023/24 To - Spending review Topic 1]]+Dataset[[#This Row],[2023/24 To - Spending review Topic 2]]+Dataset[[#This Row],[2023/24 To - Spending review Topic 3]]+Dataset[[#This Row],[2023/24 To - Spending review Topic 4]]+Dataset[[#This Row],[2023/24 To - Other reallocations]]","v":0},{"$f":"Dataset[[#This Row],[2024/25 To - Spending review Topic 1]]+Dataset[[#This Row],[2024/25 To - Spending review Topic 2]]+Dataset[[#This Row],[2024/25 To - Spending review Topic 3]]+Dataset[[#This Row],[2024/25 To - Spending review Topic 4]]+Dataset[[#This Row],[2024/25 To - Other reallocations]]","v":0},{"$f":"Dataset[[#This Row],[2025/26 To - Spending review Topic 1]]+Dataset[[#This Row],[2025/26 To - Spending review Topic 2]]+Dataset[[#This Row],[2025/26 To - Spending review Topic 3]]+Dataset[[#This Row],[2025/26 To - Spending review Topic 4]]+Dataset[[#This Row],[2025/26 To - Other reallocations]]","v":0},{"$f":"Dataset[[#This Row],[2023/24 Baseline]]+Dataset[[#This Row],[2023/24 From - Total]]+Dataset[[#This Row],[2023/24 To - Total]]","v":0},{"$f":"Dataset[[#This Row],[2024/25 Baseline]]+Dataset[[#This Row],[2024/25 From - Total]]+Dataset[[#This Row],[2024/25 To - Total]]","v":0},{"$f":"Dataset[[#This Row],[2025/26 Baseline]]+Dataset[[#This Row],[2025/26 From - Total]]+Dataset[[#This Row],[2025/26 To - Total]]","v":0}]
["NAT|Non-transfer item","2|Departmental agencies (non-business entities)","2023_24","MTEF2023",2,3,2,1204,587,"02","03","02","001204","000587","02|03|02",1,2,5,46,48,"01|02|05|46|48","National","Parliament","Associated Services","Transfer to Political Party Allowances","Non-transfer item","Current","Transfers and subsidies","Departmental agencies and accounts","Departmental agencies (non-business entities)","Departmental agencies (non-business entities)","General public services","Executive and legislative organs","NAT",0,0,0,0,0,0,0,0,0,0,0,null,null,null,null,null,null,null,null,null,null,null,null,null,null,null,null,null,null,null,null,null,null,null,null,null,null,null,null,null,null,{"$f":"Dataset[[#This Row],[2023/24 From - Spending review Topic 1]]+Dataset[[#This Row],[2023/24 From - Spending review Topic 2]]+Dataset[[#This Row],[2023/24 From - Spending review Topic 3]]+Dataset[[#This Row],[2023/24 From - Spending review Topic 4]]+Dataset[[#This Row],[2023/24 From - Other reallocations]]","v":0},{"$f":"Dataset[[#This Row],[2024/25 From - Spending review Topic 1]]+Dataset[[#This Row],[2024/25 From - Spending review Topic 2]]+Dataset[[#This Row],[2024/25 From - Spending review Topic 3]]+Dataset[[#This Row],[2024/25 From - Spending review Topic 4]]+Dataset[[#This Row],[2024/25 From - Other reallocations]]","v":0},{"$f":"Dataset[[#This Row],[2025/26 From - Spending review Topic 1]]+Dataset[[#This Row],[2025/26 From - Spending review Topic 2]]+Dataset[[#This Row],[2025/26 From - Spending review Topic 3]]+Dataset[[#This Row],[2025/26 From - Spending review Topic 4]]+Dataset[[#This Row],[2025/26 From - Other reallocations]]","v":0},{"$f":"Dataset[[#This Row],[2023/24 To - Spending review Topic 1]]+Dataset[[#This Row],[2023/24 To - Spending review Topic 2]]+Dataset[[#This Row],[2023/24 To - Spending review Topic 3]]+Dataset[[#This Row],[2023/24 To - Spending review Topic 4]]+Dataset[[#This Row],[2023/24 To - Other reallocations]]","v":0},{"$f":"Dataset[[#This Row],[2024/25 To - Spending review Topic 1]]+Dataset[[#This Row],[2024/25 To - Spending review Topic 2]]+Dataset[[#This Row],[2024/25 To - Spending review Topic 3]]+Dataset[[#This Row],[2024/25 To - Spending review Topic 4]]+Dataset[[#This Row],[2024/25 To - Other reallocations]]","v":0},{"$f":"Dataset[[#This Row],[2025/26 To - Spending review Topic 1]]+Dataset[[#This Row],[2025/26 To - Spending review Topic 2]]+Dataset[[#This Row],[2025/26 To - Spending review Topic 3]]+Dataset[[#This Row],[2025/26 To - Spending review Topic 4]]+Dataset[[#This Row],[2025/26 To - Other reallocations]]","v":0},{"$f":"Dataset[[#This Row],[2023/24 Baseline]]+Dataset[[#This Row],[2023/24 From - Total]]+Dataset[[#This Row],[2023/24 To - Total]]","v":0},{"$f":"Dataset[[#This Row],[2024/25 Baseline]]+Dataset[[#This Row],[2024/25 From - Total]]+Dataset[[#This Row],[2024/25 To - Total]]","v":0},{"$f":"Dataset[[#This Row],[2025/26 Baseline]]+Dataset[[#This Row],[2025/26 From - Total]]+Dataset[[#This Row],[2025/26 To - Total]]","v":0}]
["NAT|Non-transfer item","2|Higher education institutions","2023_24","MTEF2023",2,3,2,1205,588,"02","03","02","001205","000588","02|03|02",1,2,6,47,49,"01|02|06|47|49","National","Parliament","Associated Services","Transfer to Political Party Allowances","Non-transfer item","Current","Transfers and subsidies","Higher education institutions","Higher education institutions","Higher education institutions","General public services","Executive and legislative organs","NAT",0,0,0,0,0,0,0,0,0,0,0,null,null,null,null,null,null,null,null,null,null,null,null,null,null,null,null,null,null,null,null,null,null,null,null,null,null,null,null,null,null,{"$f":"Dataset[[#This Row],[2023/24 From - Spending review Topic 1]]+Dataset[[#This Row],[2023/24 From - Spending review Topic 2]]+Dataset[[#This Row],[2023/24 From - Spending review Topic 3]]+Dataset[[#This Row],[2023/24 From - Spending review Topic 4]]+Dataset[[#This Row],[2023/24 From - Other reallocations]]","v":0},{"$f":"Dataset[[#This Row],[2024/25 From - Spending review Topic 1]]+Dataset[[#This Row],[2024/25 From - Spending review Topic 2]]+Dataset[[#This Row],[2024/25 From - Spending review Topic 3]]+Dataset[[#This Row],[2024/25 From - Spending review Topic 4]]+Dataset[[#This Row],[2024/25 From - Other reallocations]]","v":0},{"$f":"Dataset[[#This Row],[2025/26 From - Spending review Topic 1]]+Dataset[[#This Row],[2025/26 From - Spending review Topic 2]]+Dataset[[#This Row],[2025/26 From - Spending review Topic 3]]+Dataset[[#This Row],[2025/26 From - Spending review Topic 4]]+Dataset[[#This Row],[2025/26 From - Other reallocations]]","v":0},{"$f":"Dataset[[#This Row],[2023/24 To - Spending review Topic 1]]+Dataset[[#This Row],[2023/24 To - Spending review Topic 2]]+Dataset[[#This Row],[2023/24 To - Spending review Topic 3]]+Dataset[[#This Row],[2023/24 To - Spending review Topic 4]]+Dataset[[#This Row],[2023/24 To - Other reallocations]]","v":0},{"$f":"Dataset[[#This Row],[2024/25 To - Spending review Topic 1]]+Dataset[[#This Row],[2024/25 To - Spending review Topic 2]]+Dataset[[#This Row],[2024/25 To - Spending review Topic 3]]+Dataset[[#This Row],[2024/25 To - Spending review Topic 4]]+Dataset[[#This Row],[2024/25 To - Other reallocations]]","v":0},{"$f":"Dataset[[#This Row],[2025/26 To - Spending review Topic 1]]+Dataset[[#This Row],[2025/26 To - Spending review Topic 2]]+Dataset[[#This Row],[2025/26 To - Spending review Topic 3]]+Dataset[[#This Row],[2025/26 To - Spending review Topic 4]]+Dataset[[#This Row],[2025/26 To - Other reallocations]]","v":0},{"$f":"Dataset[[#This Row],[2023/24 Baseline]]+Dataset[[#This Row],[2023/24 From - Total]]+Dataset[[#This Row],[2023/24 To - Total]]","v":0},{"$f":"Dataset[[#This Row],[2024/25 Baseline]]+Dataset[[#This Row],[2024/25 From - Total]]+Dataset[[#This Row],[2024/25 To - Total]]","v":0},{"$f":"Dataset[[#This Row],[2025/26 Baseline]]+Dataset[[#This Row],[2025/26 From - Total]]+Dataset[[#This Row],[2025/26 To - Total]]","v":0}]
["NAT|Non-transfer item","2|Foreign governments and international organisations","2023_24","MTEF2023",2,3,2,1206,589,"02","03","02","001206","000589","02|03|02",1,2,7,48,50,"01|02|07|48|50","National","Parliament","Associated Services","Transfer to Political Party Allowances","Non-transfer item","Current","Transfers and subsidies","Foreign governments and international organisations","Foreign governments and international organisations","Foreign governments and international organisations","General public services","Executive and legislative organs","NAT",0,0,0,0,0,0,0,0,0,0,0,null,null,null,null,null,null,null,null,null,null,null,null,null,null,null,null,null,null,null,null,null,null,null,null,null,null,null,null,null,null,{"$f":"Dataset[[#This Row],[2023/24 From - Spending review Topic 1]]+Dataset[[#This Row],[2023/24 From - Spending review Topic 2]]+Dataset[[#This Row],[2023/24 From - Spending review Topic 3]]+Dataset[[#This Row],[2023/24 From - Spending review Topic 4]]+Dataset[[#This Row],[2023/24 From - Other reallocations]]","v":0},{"$f":"Dataset[[#This Row],[2024/25 From - Spending review Topic 1]]+Dataset[[#This Row],[2024/25 From - Spending review Topic 2]]+Dataset[[#This Row],[2024/25 From - Spending review Topic 3]]+Dataset[[#This Row],[2024/25 From - Spending review Topic 4]]+Dataset[[#This Row],[2024/25 From - Other reallocations]]","v":0},{"$f":"Dataset[[#This Row],[2025/26 From - Spending review Topic 1]]+Dataset[[#This Row],[2025/26 From - Spending review Topic 2]]+Dataset[[#This Row],[2025/26 From - Spending review Topic 3]]+Dataset[[#This Row],[2025/26 From - Spending review Topic 4]]+Dataset[[#This Row],[2025/26 From - Other reallocations]]","v":0},{"$f":"Dataset[[#This Row],[2023/24 To - Spending review Topic 1]]+Dataset[[#This Row],[2023/24 To - Spending review Topic 2]]+Dataset[[#This Row],[2023/24 To - Spending review Topic 3]]+Dataset[[#This Row],[2023/24 To - Spending review Topic 4]]+Dataset[[#This Row],[2023/24 To - Other reallocations]]","v":0},{"$f":"Dataset[[#This Row],[2024/25 To - Spending review Topic 1]]+Dataset[[#This Row],[2024/25 To - Spending review Topic 2]]+Dataset[[#This Row],[2024/25 To - Spending review Topic 3]]+Dataset[[#This Row],[2024/25 To - Spending review Topic 4]]+Dataset[[#This Row],[2024/25 To - Other reallocations]]","v":0},{"$f":"Dataset[[#This Row],[2025/26 To - Spending review Topic 1]]+Dataset[[#This Row],[2025/26 To - Spending review Topic 2]]+Dataset[[#This Row],[2025/26 To - Spending review Topic 3]]+Dataset[[#This Row],[2025/26 To - Spending review Topic 4]]+Dataset[[#This Row],[2025/26 To - Other reallocations]]","v":0},{"$f":"Dataset[[#This Row],[2023/24 Baseline]]+Dataset[[#This Row],[2023/24 From - Total]]+Dataset[[#This Row],[2023/24 To - Total]]","v":0},{"$f":"Dataset[[#This Row],[2024/25 Baseline]]+Dataset[[#This Row],[2024/25 From - Total]]+Dataset[[#This Row],[2024/25 To - Total]]","v":0},{"$f":"Dataset[[#This Row],[2025/26 Baseline]]+Dataset[[#This Row],[2025/26 From - Total]]+Dataset[[#This Row],[2025/26 To - Total]]","v":0}]
["NAT|Non-transfer item","2|Subsidies on products and production (pc)","2023_24","MTEF2023",2,3,2,1207,590,"02","03","02","001207","000590","02|03|02",1,2,8,49,51,"01|02|08|49|51","National","Parliament","Associated Services","Transfer to Political Party Allowances","Non-transfer item","Current","Transfers and subsidies","Public corporations and private enterprises","Public corporations","Subsidies on products and production (pc)","General public services","Executive and legislative organs","NAT",0,0,0,0,0,0,0,0,0,0,0,null,null,null,null,null,null,null,null,null,null,null,null,null,null,null,null,null,null,null,null,null,null,null,null,null,null,null,null,null,null,{"$f":"Dataset[[#This Row],[2023/24 From - Spending review Topic 1]]+Dataset[[#This Row],[2023/24 From - Spending review Topic 2]]+Dataset[[#This Row],[2023/24 From - Spending review Topic 3]]+Dataset[[#This Row],[2023/24 From - Spending review Topic 4]]+Dataset[[#This Row],[2023/24 From - Other reallocations]]","v":0},{"$f":"Dataset[[#This Row],[2024/25 From - Spending review Topic 1]]+Dataset[[#This Row],[2024/25 From - Spending review Topic 2]]+Dataset[[#This Row],[2024/25 From - Spending review Topic 3]]+Dataset[[#This Row],[2024/25 From - Spending review Topic 4]]+Dataset[[#This Row],[2024/25 From - Other reallocations]]","v":0},{"$f":"Dataset[[#This Row],[2025/26 From - Spending review Topic 1]]+Dataset[[#This Row],[2025/26 From - Spending review Topic 2]]+Dataset[[#This Row],[2025/26 From - Spending review Topic 3]]+Dataset[[#This Row],[2025/26 From - Spending review Topic 4]]+Dataset[[#This Row],[2025/26 From - Other reallocations]]","v":0},{"$f":"Dataset[[#This Row],[2023/24 To - Spending review Topic 1]]+Dataset[[#This Row],[2023/24 To - Spending review Topic 2]]+Dataset[[#This Row],[2023/24 To - Spending review Topic 3]]+Dataset[[#This Row],[2023/24 To - Spending review Topic 4]]+Dataset[[#This Row],[2023/24 To - Other reallocations]]","v":0},{"$f":"Dataset[[#This Row],[2024/25 To - Spending review Topic 1]]+Dataset[[#This Row],[2024/25 To - Spending review Topic 2]]+Dataset[[#This Row],[2024/25 To - Spending review Topic 3]]+Dataset[[#This Row],[2024/25 To - Spending review Topic 4]]+Dataset[[#This Row],[2024/25 To - Other reallocations]]","v":0},{"$f":"Dataset[[#This Row],[2025/26 To - Spending review Topic 1]]+Dataset[[#This Row],[2025/26 To - Spending review Topic 2]]+Dataset[[#This Row],[2025/26 To - Spending review Topic 3]]+Dataset[[#This Row],[2025/26 To - Spending review Topic 4]]+Dataset[[#This Row],[2025/26 To - Other reallocations]]","v":0},{"$f":"Dataset[[#This Row],[2023/24 Baseline]]+Dataset[[#This Row],[2023/24 From - Total]]+Dataset[[#This Row],[2023/24 To - Total]]","v":0},{"$f":"Dataset[[#This Row],[2024/25 Baseline]]+Dataset[[#This Row],[2024/25 From - Total]]+Dataset[[#This Row],[2024/25 To - Total]]","v":0},{"$f":"Dataset[[#This Row],[2025/26 Baseline]]+Dataset[[#This Row],[2025/26 From - Total]]+Dataset[[#This Row],[2025/26 To - Total]]","v":0}]
["NAT|Non-transfer item","2|Other transfers to public corporations","2023_24","MTEF2023",2,3,2,1208,591,"02","03","02","001208","000591","02|03|02",1,2,8,49,52,"01|02|08|49|52","National","Parliament","Associated Services","Transfer to Political Party Allowances","Non-transfer item","Current","Transfers and subsidies","Public corporations and private enterprises","Public corporations","Other transfers to public corporations","General public services","Executive and legislative organs","NAT",0,0,0,0,0,0,0,0,0,0,0,null,null,null,null,null,null,null,null,null,null,null,null,null,null,null,null,null,null,null,null,null,null,null,null,null,null,null,null,null,null,{"$f":"Dataset[[#This Row],[2023/24 From - Spending review Topic 1]]+Dataset[[#This Row],[2023/24 From - Spending review Topic 2]]+Dataset[[#This Row],[2023/24 From - Spending review Topic 3]]+Dataset[[#This Row],[2023/24 From - Spending review Topic 4]]+Dataset[[#This Row],[2023/24 From - Other reallocations]]","v":0},{"$f":"Dataset[[#This Row],[2024/25 From - Spending review Topic 1]]+Dataset[[#This Row],[2024/25 From - Spending review Topic 2]]+Dataset[[#This Row],[2024/25 From - Spending review Topic 3]]+Dataset[[#This Row],[2024/25 From - Spending review Topic 4]]+Dataset[[#This Row],[2024/25 From - Other reallocations]]","v":0},{"$f":"Dataset[[#This Row],[2025/26 From - Spending review Topic 1]]+Dataset[[#This Row],[2025/26 From - Spending review Topic 2]]+Dataset[[#This Row],[2025/26 From - Spending review Topic 3]]+Dataset[[#This Row],[2025/26 From - Spending review Topic 4]]+Dataset[[#This Row],[2025/26 From - Other reallocations]]","v":0},{"$f":"Dataset[[#This Row],[2023/24 To - Spending review Topic 1]]+Dataset[[#This Row],[2023/24 To - Spending review Topic 2]]+Dataset[[#This Row],[2023/24 To - Spending review Topic 3]]+Dataset[[#This Row],[2023/24 To - Spending review Topic 4]]+Dataset[[#This Row],[2023/24 To - Other reallocations]]","v":0},{"$f":"Dataset[[#This Row],[2024/25 To - Spending review Topic 1]]+Dataset[[#This Row],[2024/25 To - Spending review Topic 2]]+Dataset[[#This Row],[2024/25 To - Spending review Topic 3]]+Dataset[[#This Row],[2024/25 To - Spending review Topic 4]]+Dataset[[#This Row],[2024/25 To - Other reallocations]]","v":0},{"$f":"Dataset[[#This Row],[2025/26 To - Spending review Topic 1]]+Dataset[[#This Row],[2025/26 To - Spending review Topic 2]]+Dataset[[#This Row],[2025/26 To - Spending review Topic 3]]+Dataset[[#This Row],[2025/26 To - Spending review Topic 4]]+Dataset[[#This Row],[2025/26 To - Other reallocations]]","v":0},{"$f":"Dataset[[#This Row],[2023/24 Baseline]]+Dataset[[#This Row],[2023/24 From - Total]]+Dataset[[#This Row],[2023/24 To - Total]]","v":0},{"$f":"Dataset[[#This Row],[2024/25 Baseline]]+Dataset[[#This Row],[2024/25 From - Total]]+Dataset[[#This Row],[2024/25 To - Total]]","v":0},{"$f":"Dataset[[#This Row],[2025/26 Baseline]]+Dataset[[#This Row],[2025/26 From - Total]]+Dataset[[#This Row],[2025/26 To - Total]]","v":0}]
["NAT|Non-transfer item","2|Subsidies on products and production (pe)","2023_24","MTEF2023",2,3,2,1209,592,"02","03","02","001209","000592","02|03|02",1,2,8,50,53,"01|02|08|50|53","National","Parliament","Associated Services","Transfer to Political Party Allowances","Non-transfer item","Current","Transfers and subsidies","Public corporations and private enterprises","Private enterprises","Subsidies on products and production (pe)","General public services","Executive and legislative organs","NAT",0,0,0,0,0,0,0,0,0,0,0,null,null,null,null,null,null,null,null,null,null,null,null,null,null,null,null,null,null,null,null,null,null,null,null,null,null,null,null,null,null,{"$f":"Dataset[[#This Row],[2023/24 From - Spending review Topic 1]]+Dataset[[#This Row],[2023/24 From - Spending review Topic 2]]+Dataset[[#This Row],[2023/24 From - Spending review Topic 3]]+Dataset[[#This Row],[2023/24 From - Spending review Topic 4]]+Dataset[[#This Row],[2023/24 From - Other reallocations]]","v":0},{"$f":"Dataset[[#This Row],[2024/25 From - Spending review Topic 1]]+Dataset[[#This Row],[2024/25 From - Spending review Topic 2]]+Dataset[[#This Row],[2024/25 From - Spending review Topic 3]]+Dataset[[#This Row],[2024/25 From - Spending review Topic 4]]+Dataset[[#This Row],[2024/25 From - Other reallocations]]","v":0},{"$f":"Dataset[[#This Row],[2025/26 From - Spending review Topic 1]]+Dataset[[#This Row],[2025/26 From - Spending review Topic 2]]+Dataset[[#This Row],[2025/26 From - Spending review Topic 3]]+Dataset[[#This Row],[2025/26 From - Spending review Topic 4]]+Dataset[[#This Row],[2025/26 From - Other reallocations]]","v":0},{"$f":"Dataset[[#This Row],[2023/24 To - Spending review Topic 1]]+Dataset[[#This Row],[2023/24 To - Spending review Topic 2]]+Dataset[[#This Row],[2023/24 To - Spending review Topic 3]]+Dataset[[#This Row],[2023/24 To - Spending review Topic 4]]+Dataset[[#This Row],[2023/24 To - Other reallocations]]","v":0},{"$f":"Dataset[[#This Row],[2024/25 To - Spending review Topic 1]]+Dataset[[#This Row],[2024/25 To - Spending review Topic 2]]+Dataset[[#This Row],[2024/25 To - Spending review Topic 3]]+Dataset[[#This Row],[2024/25 To - Spending review Topic 4]]+Dataset[[#This Row],[2024/25 To - Other reallocations]]","v":0},{"$f":"Dataset[[#This Row],[2025/26 To - Spending review Topic 1]]+Dataset[[#This Row],[2025/26 To - Spending review Topic 2]]+Dataset[[#This Row],[2025/26 To - Spending review Topic 3]]+Dataset[[#This Row],[2025/26 To - Spending review Topic 4]]+Dataset[[#This Row],[2025/26 To - Other reallocations]]","v":0},{"$f":"Dataset[[#This Row],[2023/24 Baseline]]+Dataset[[#This Row],[2023/24 From - Total]]+Dataset[[#This Row],[2023/24 To - Total]]","v":0},{"$f":"Dataset[[#This Row],[2024/25 Baseline]]+Dataset[[#This Row],[2024/25 From - Total]]+Dataset[[#This Row],[2024/25 To - Total]]","v":0},{"$f":"Dataset[[#This Row],[2025/26 Baseline]]+Dataset[[#This Row],[2025/26 From - Total]]+Dataset[[#This Row],[2025/26 To - Total]]","v":0}]
["NAT|Non-transfer item","2|Other transfers to private enterprises","2023_24","MTEF2023",2,3,2,1210,593,"02","03","02","001210","000593","02|03|02",1,2,8,50,54,"01|02|08|50|54","National","Parliament","Associated Services","Transfer to Political Party Allowances","Non-transfer item","Current","Transfers and subsidies","Public corporations and private enterprises","Private enterprises","Other transfers to private enterprises","General public services","Executive and legislative organs","NAT",0,0,0,0,0,0,0,0,0,0,0,null,null,null,null,null,null,null,null,null,null,null,null,null,null,null,null,null,null,null,null,null,null,null,null,null,null,null,null,null,null,{"$f":"Dataset[[#This Row],[2023/24 From - Spending review Topic 1]]+Dataset[[#This Row],[2023/24 From - Spending review Topic 2]]+Dataset[[#This Row],[2023/24 From - Spending review Topic 3]]+Dataset[[#This Row],[2023/24 From - Spending review Topic 4]]+Dataset[[#This Row],[2023/24 From - Other reallocations]]","v":0},{"$f":"Dataset[[#This Row],[2024/25 From - Spending review Topic 1]]+Dataset[[#This Row],[2024/25 From - Spending review Topic 2]]+Dataset[[#This Row],[2024/25 From - Spending review Topic 3]]+Dataset[[#This Row],[2024/25 From - Spending review Topic 4]]+Dataset[[#This Row],[2024/25 From - Other reallocations]]","v":0},{"$f":"Dataset[[#This Row],[2025/26 From - Spending review Topic 1]]+Dataset[[#This Row],[2025/26 From - Spending review Topic 2]]+Dataset[[#This Row],[2025/26 From - Spending review Topic 3]]+Dataset[[#This Row],[2025/26 From - Spending review Topic 4]]+Dataset[[#This Row],[2025/26 From - Other reallocations]]","v":0},{"$f":"Dataset[[#This Row],[2023/24 To - Spending review Topic 1]]+Dataset[[#This Row],[2023/24 To - Spending review Topic 2]]+Dataset[[#This Row],[2023/24 To - Spending review Topic 3]]+Dataset[[#This Row],[2023/24 To - Spending review Topic 4]]+Dataset[[#This Row],[2023/24 To - Other reallocations]]","v":0},{"$f":"Dataset[[#This Row],[2024/25 To - Spending review Topic 1]]+Dataset[[#This Row],[2024/25 To - Spending review Topic 2]]+Dataset[[#This Row],[2024/25 To - Spending review Topic 3]]+Dataset[[#This Row],[2024/25 To - Spending review Topic 4]]+Dataset[[#This Row],[2024/25 To - Other reallocations]]","v":0},{"$f":"Dataset[[#This Row],[2025/26 To - Spending review Topic 1]]+Dataset[[#This Row],[2025/26 To - Spending review Topic 2]]+Dataset[[#This Row],[2025/26 To - Spending review Topic 3]]+Dataset[[#This Row],[2025/26 To - Spending review Topic 4]]+Dataset[[#This Row],[2025/26 To - Other reallocations]]","v":0},{"$f":"Dataset[[#This Row],[2023/24 Baseline]]+Dataset[[#This Row],[2023/24 From - Total]]+Dataset[[#This Row],[2023/24 To - Total]]","v":0},{"$f":"Dataset[[#This Row],[2024/25 Baseline]]+Dataset[[#This Row],[2024/25 From - Total]]+Dataset[[#This Row],[2024/25 To - Total]]","v":0},{"$f":"Dataset[[#This Row],[2025/26 Baseline]]+Dataset[[#This Row],[2025/26 From - Total]]+Dataset[[#This Row],[2025/26 To - Total]]","v":0}]
["NAT|Party Leadership Support","2|Non-profit institutions","2023_24","MTEF2023",2,3,2,1211,594,"02","03","02","001211","000594","02|03|02",1,2,9,51,55,"01|02|09|51|55","National","Parliament","Associated Services","Transfer to Political Party Allowances","Party Leadership Support","Current","Transfers and subsidies","Non-profit institutions","Non-profit institutions","Non-profit institutions","General public services","Executive and legislative organs","NAT",9205,9720,10097,10279,10279,10279,0,12548,12688,13269,13863,null,null,null,null,null,null,null,null,null,null,null,null,null,null,null,null,null,null,null,null,null,null,null,null,null,null,null,null,null,null,{"$f":"Dataset[[#This Row],[2023/24 From - Spending review Topic 1]]+Dataset[[#This Row],[2023/24 From - Spending review Topic 2]]+Dataset[[#This Row],[2023/24 From - Spending review Topic 3]]+Dataset[[#This Row],[2023/24 From - Spending review Topic 4]]+Dataset[[#This Row],[2023/24 From - Other reallocations]]","v":0},{"$f":"Dataset[[#This Row],[2024/25 From - Spending review Topic 1]]+Dataset[[#This Row],[2024/25 From - Spending review Topic 2]]+Dataset[[#This Row],[2024/25 From - Spending review Topic 3]]+Dataset[[#This Row],[2024/25 From - Spending review Topic 4]]+Dataset[[#This Row],[2024/25 From - Other reallocations]]","v":0},{"$f":"Dataset[[#This Row],[2025/26 From - Spending review Topic 1]]+Dataset[[#This Row],[2025/26 From - Spending review Topic 2]]+Dataset[[#This Row],[2025/26 From - Spending review Topic 3]]+Dataset[[#This Row],[2025/26 From - Spending review Topic 4]]+Dataset[[#This Row],[2025/26 From - Other reallocations]]","v":0},{"$f":"Dataset[[#This Row],[2023/24 To - Spending review Topic 1]]+Dataset[[#This Row],[2023/24 To - Spending review Topic 2]]+Dataset[[#This Row],[2023/24 To - Spending review Topic 3]]+Dataset[[#This Row],[2023/24 To - Spending review Topic 4]]+Dataset[[#This Row],[2023/24 To - Other reallocations]]","v":0},{"$f":"Dataset[[#This Row],[2024/25 To - Spending review Topic 1]]+Dataset[[#This Row],[2024/25 To - Spending review Topic 2]]+Dataset[[#This Row],[2024/25 To - Spending review Topic 3]]+Dataset[[#This Row],[2024/25 To - Spending review Topic 4]]+Dataset[[#This Row],[2024/25 To - Other reallocations]]","v":0},{"$f":"Dataset[[#This Row],[2025/26 To - Spending review Topic 1]]+Dataset[[#This Row],[2025/26 To - Spending review Topic 2]]+Dataset[[#This Row],[2025/26 To - Spending review Topic 3]]+Dataset[[#This Row],[2025/26 To - Spending review Topic 4]]+Dataset[[#This Row],[2025/26 To - Other reallocations]]","v":0},{"$f":"Dataset[[#This Row],[2023/24 Baseline]]+Dataset[[#This Row],[2023/24 From - Total]]+Dataset[[#This Row],[2023/24 To - Total]]","v":12688},{"$f":"Dataset[[#This Row],[2024/25 Baseline]]+Dataset[[#This Row],[2024/25 From - Total]]+Dataset[[#This Row],[2024/25 To - Total]]","v":13269},{"$f":"Dataset[[#This Row],[2025/26 Baseline]]+Dataset[[#This Row],[2025/26 From - Total]]+Dataset[[#This Row],[2025/26 To - Total]]","v":13863}]
["NAT|Constituency Support","2|Non-profit institutions","2023_24","MTEF2023",2,3,2,1212,595,"02","03","02","001212","000595","02|03|02",1,2,9,51,55,"01|02|09|51|55","National","Parliament","Associated Services","Transfer to Political Party Allowances","Constituency Support","Current","Transfers and subsidies","Non-profit institutions","Non-profit institutions","Non-profit institutions","General public services","Executive and legislative organs","NAT",327303,345632,359043,365510,365510,365510,0,372131,373572,390484,407978,null,null,null,null,null,null,null,null,null,null,null,null,null,null,null,null,null,null,null,null,null,null,null,null,null,null,null,null,null,null,{"$f":"Dataset[[#This Row],[2023/24 From - Spending review Topic 1]]+Dataset[[#This Row],[2023/24 From - Spending review Topic 2]]+Dataset[[#This Row],[2023/24 From - Spending review Topic 3]]+Dataset[[#This Row],[2023/24 From - Spending review Topic 4]]+Dataset[[#This Row],[2023/24 From - Other reallocations]]","v":0},{"$f":"Dataset[[#This Row],[2024/25 From - Spending review Topic 1]]+Dataset[[#This Row],[2024/25 From - Spending review Topic 2]]+Dataset[[#This Row],[2024/25 From - Spending review Topic 3]]+Dataset[[#This Row],[2024/25 From - Spending review Topic 4]]+Dataset[[#This Row],[2024/25 From - Other reallocations]]","v":0},{"$f":"Dataset[[#This Row],[2025/26 From - Spending review Topic 1]]+Dataset[[#This Row],[2025/26 From - Spending review Topic 2]]+Dataset[[#This Row],[2025/26 From - Spending review Topic 3]]+Dataset[[#This Row],[2025/26 From - Spending review Topic 4]]+Dataset[[#This Row],[2025/26 From - Other reallocations]]","v":0},{"$f":"Dataset[[#This Row],[2023/24 To - Spending review Topic 1]]+Dataset[[#This Row],[2023/24 To - Spending review Topic 2]]+Dataset[[#This Row],[2023/24 To - Spending review Topic 3]]+Dataset[[#This Row],[2023/24 To - Spending review Topic 4]]+Dataset[[#This Row],[2023/24 To - Other reallocations]]","v":0},{"$f":"Dataset[[#This Row],[2024/25 To - Spending review Topic 1]]+Dataset[[#This Row],[2024/25 To - Spending review Topic 2]]+Dataset[[#This Row],[2024/25 To - Spending review Topic 3]]+Dataset[[#This Row],[2024/25 To - Spending review Topic 4]]+Dataset[[#This Row],[2024/25 To - Other reallocations]]","v":0},{"$f":"Dataset[[#This Row],[2025/26 To - Spending review Topic 1]]+Dataset[[#This Row],[2025/26 To - Spending review Topic 2]]+Dataset[[#This Row],[2025/26 To - Spending review Topic 3]]+Dataset[[#This Row],[2025/26 To - Spending review Topic 4]]+Dataset[[#This Row],[2025/26 To - Other reallocations]]","v":0},{"$f":"Dataset[[#This Row],[2023/24 Baseline]]+Dataset[[#This Row],[2023/24 From - Total]]+Dataset[[#This Row],[2023/24 To - Total]]","v":373572},{"$f":"Dataset[[#This Row],[2024/25 Baseline]]+Dataset[[#This Row],[2024/25 From - Total]]+Dataset[[#This Row],[2024/25 To - Total]]","v":390484},{"$f":"Dataset[[#This Row],[2025/26 Baseline]]+Dataset[[#This Row],[2025/26 From - Total]]+Dataset[[#This Row],[2025/26 To - Total]]","v":407978}]
["NAT|Political Party Support","2|Non-profit institutions","2023_24","MTEF2023",2,3,2,1213,596,"02","03","02","001213","000596","02|03|02",1,2,9,51,55,"01|02|09|51|55","National","Parliament","Associated Services","Transfer to Political Party Allowances","Political Party Support","Current","Transfers and subsidies","Non-profit institutions","Non-profit institutions","Non-profit institutions","General public services","Executive and legislative organs","NAT",102235,107960,85046,114170,114170,114170,0,128352,129360,135228,141286,null,null,null,null,null,null,null,null,null,null,null,null,null,null,null,null,null,null,null,null,null,null,null,null,null,null,null,null,null,null,{"$f":"Dataset[[#This Row],[2023/24 From - Spending review Topic 1]]+Dataset[[#This Row],[2023/24 From - Spending review Topic 2]]+Dataset[[#This Row],[2023/24 From - Spending review Topic 3]]+Dataset[[#This Row],[2023/24 From - Spending review Topic 4]]+Dataset[[#This Row],[2023/24 From - Other reallocations]]","v":0},{"$f":"Dataset[[#This Row],[2024/25 From - Spending review Topic 1]]+Dataset[[#This Row],[2024/25 From - Spending review Topic 2]]+Dataset[[#This Row],[2024/25 From - Spending review Topic 3]]+Dataset[[#This Row],[2024/25 From - Spending review Topic 4]]+Dataset[[#This Row],[2024/25 From - Other reallocations]]","v":0},{"$f":"Dataset[[#This Row],[2025/26 From - Spending review Topic 1]]+Dataset[[#This Row],[2025/26 From - Spending review Topic 2]]+Dataset[[#This Row],[2025/26 From - Spending review Topic 3]]+Dataset[[#This Row],[2025/26 From - Spending review Topic 4]]+Dataset[[#This Row],[2025/26 From - Other reallocations]]","v":0},{"$f":"Dataset[[#This Row],[2023/24 To - Spending review Topic 1]]+Dataset[[#This Row],[2023/24 To - Spending review Topic 2]]+Dataset[[#This Row],[2023/24 To - Spending review Topic 3]]+Dataset[[#This Row],[2023/24 To - Spending review Topic 4]]+Dataset[[#This Row],[2023/24 To - Other reallocations]]","v":0},{"$f":"Dataset[[#This Row],[2024/25 To - Spending review Topic 1]]+Dataset[[#This Row],[2024/25 To - Spending review Topic 2]]+Dataset[[#This Row],[2024/25 To - Spending review Topic 3]]+Dataset[[#This Row],[2024/25 To - Spending review Topic 4]]+Dataset[[#This Row],[2024/25 To - Other reallocations]]","v":0},{"$f":"Dataset[[#This Row],[2025/26 To - Spending review Topic 1]]+Dataset[[#This Row],[2025/26 To - Spending review Topic 2]]+Dataset[[#This Row],[2025/26 To - Spending review Topic 3]]+Dataset[[#This Row],[2025/26 To - Spending review Topic 4]]+Dataset[[#This Row],[2025/26 To - Other reallocations]]","v":0},{"$f":"Dataset[[#This Row],[2023/24 Baseline]]+Dataset[[#This Row],[2023/24 From - Total]]+Dataset[[#This Row],[2023/24 To - Total]]","v":129360},{"$f":"Dataset[[#This Row],[2024/25 Baseline]]+Dataset[[#This Row],[2024/25 From - Total]]+Dataset[[#This Row],[2024/25 To - Total]]","v":135228},{"$f":"Dataset[[#This Row],[2025/26 Baseline]]+Dataset[[#This Row],[2025/26 From - Total]]+Dataset[[#This Row],[2025/26 To - Total]]","v":141286}]
["NAT|Non-transfer item","2|Social benefits","2023_24","MTEF2023",2,3,2,1214,597,"02","03","02","001214","000597","02|03|02",1,2,10,52,56,"01|02|10|52|56","National","Parliament","Associated Services","Transfer to Political Party Allowances","Non-transfer item","Current","Transfers and subsidies","Households","Social benefits","Social benefits","General public services","Executive and legislative organs","NAT",0,0,0,0,0,0,0,0,0,0,0,null,null,null,null,null,null,null,null,null,null,null,null,null,null,null,null,null,null,null,null,null,null,null,null,null,null,null,null,null,null,{"$f":"Dataset[[#This Row],[2023/24 From - Spending review Topic 1]]+Dataset[[#This Row],[2023/24 From - Spending review Topic 2]]+Dataset[[#This Row],[2023/24 From - Spending review Topic 3]]+Dataset[[#This Row],[2023/24 From - Spending review Topic 4]]+Dataset[[#This Row],[2023/24 From - Other reallocations]]","v":0},{"$f":"Dataset[[#This Row],[2024/25 From - Spending review Topic 1]]+Dataset[[#This Row],[2024/25 From - Spending review Topic 2]]+Dataset[[#This Row],[2024/25 From - Spending review Topic 3]]+Dataset[[#This Row],[2024/25 From - Spending review Topic 4]]+Dataset[[#This Row],[2024/25 From - Other reallocations]]","v":0},{"$f":"Dataset[[#This Row],[2025/26 From - Spending review Topic 1]]+Dataset[[#This Row],[2025/26 From - Spending review Topic 2]]+Dataset[[#This Row],[2025/26 From - Spending review Topic 3]]+Dataset[[#This Row],[2025/26 From - Spending review Topic 4]]+Dataset[[#This Row],[2025/26 From - Other reallocations]]","v":0},{"$f":"Dataset[[#This Row],[2023/24 To - Spending review Topic 1]]+Dataset[[#This Row],[2023/24 To - Spending review Topic 2]]+Dataset[[#This Row],[2023/24 To - Spending review Topic 3]]+Dataset[[#This Row],[2023/24 To - Spending review Topic 4]]+Dataset[[#This Row],[2023/24 To - Other reallocations]]","v":0},{"$f":"Dataset[[#This Row],[2024/25 To - Spending review Topic 1]]+Dataset[[#This Row],[2024/25 To - Spending review Topic 2]]+Dataset[[#This Row],[2024/25 To - Spending review Topic 3]]+Dataset[[#This Row],[2024/25 To - Spending review Topic 4]]+Dataset[[#This Row],[2024/25 To - Other reallocations]]","v":0},{"$f":"Dataset[[#This Row],[2025/26 To - Spending review Topic 1]]+Dataset[[#This Row],[2025/26 To - Spending review Topic 2]]+Dataset[[#This Row],[2025/26 To - Spending review Topic 3]]+Dataset[[#This Row],[2025/26 To - Spending review Topic 4]]+Dataset[[#This Row],[2025/26 To - Other reallocations]]","v":0},{"$f":"Dataset[[#This Row],[2023/24 Baseline]]+Dataset[[#This Row],[2023/24 From - Total]]+Dataset[[#This Row],[2023/24 To - Total]]","v":0},{"$f":"Dataset[[#This Row],[2024/25 Baseline]]+Dataset[[#This Row],[2024/25 From - Total]]+Dataset[[#This Row],[2024/25 To - Total]]","v":0},{"$f":"Dataset[[#This Row],[2025/26 Baseline]]+Dataset[[#This Row],[2025/26 From - Total]]+Dataset[[#This Row],[2025/26 To - Total]]","v":0}]
["NAT|Non-transfer item","2|Other transfers to households","2023_24","MTEF2023",2,3,2,1215,598,"02","03","02","001215","000598","02|03|02",1,2,10,53,57,"01|02|10|53|57","National","Parliament","Associated Services","Transfer to Political Party Allowances","Non-transfer item","Current","Transfers and subsidies","Households","Other transfers to households","Other transfers to households","General public services","Executive and legislative organs","NAT",0,0,0,0,0,0,0,0,0,0,0,null,null,null,null,null,null,null,null,null,null,null,null,null,null,null,null,null,null,null,null,null,null,null,null,null,null,null,null,null,null,{"$f":"Dataset[[#This Row],[2023/24 From - Spending review Topic 1]]+Dataset[[#This Row],[2023/24 From - Spending review Topic 2]]+Dataset[[#This Row],[2023/24 From - Spending review Topic 3]]+Dataset[[#This Row],[2023/24 From - Spending review Topic 4]]+Dataset[[#This Row],[2023/24 From - Other reallocations]]","v":0},{"$f":"Dataset[[#This Row],[2024/25 From - Spending review Topic 1]]+Dataset[[#This Row],[2024/25 From - Spending review Topic 2]]+Dataset[[#This Row],[2024/25 From - Spending review Topic 3]]+Dataset[[#This Row],[2024/25 From - Spending review Topic 4]]+Dataset[[#This Row],[2024/25 From - Other reallocations]]","v":0},{"$f":"Dataset[[#This Row],[2025/26 From - Spending review Topic 1]]+Dataset[[#This Row],[2025/26 From - Spending review Topic 2]]+Dataset[[#This Row],[2025/26 From - Spending review Topic 3]]+Dataset[[#This Row],[2025/26 From - Spending review Topic 4]]+Dataset[[#This Row],[2025/26 From - Other reallocations]]","v":0},{"$f":"Dataset[[#This Row],[2023/24 To - Spending review Topic 1]]+Dataset[[#This Row],[2023/24 To - Spending review Topic 2]]+Dataset[[#This Row],[2023/24 To - Spending review Topic 3]]+Dataset[[#This Row],[2023/24 To - Spending review Topic 4]]+Dataset[[#This Row],[2023/24 To - Other reallocations]]","v":0},{"$f":"Dataset[[#This Row],[2024/25 To - Spending review Topic 1]]+Dataset[[#This Row],[2024/25 To - Spending review Topic 2]]+Dataset[[#This Row],[2024/25 To - Spending review Topic 3]]+Dataset[[#This Row],[2024/25 To - Spending review Topic 4]]+Dataset[[#This Row],[2024/25 To - Other reallocations]]","v":0},{"$f":"Dataset[[#This Row],[2025/26 To - Spending review Topic 1]]+Dataset[[#This Row],[2025/26 To - Spending review Topic 2]]+Dataset[[#This Row],[2025/26 To - Spending review Topic 3]]+Dataset[[#This Row],[2025/26 To - Spending review Topic 4]]+Dataset[[#This Row],[2025/26 To - Other reallocations]]","v":0},{"$f":"Dataset[[#This Row],[2023/24 Baseline]]+Dataset[[#This Row],[2023/24 From - Total]]+Dataset[[#This Row],[2023/24 To - Total]]","v":0},{"$f":"Dataset[[#This Row],[2024/25 Baseline]]+Dataset[[#This Row],[2024/25 From - Total]]+Dataset[[#This Row],[2024/25 To - Total]]","v":0},{"$f":"Dataset[[#This Row],[2025/26 Baseline]]+Dataset[[#This Row],[2025/26 From - Total]]+Dataset[[#This Row],[2025/26 To - Total]]","v":0}]
["NAT|Non-transfer item","2|Provincial Revenue Funds","2023_24","MTEF2023",2,3,2,1216,599,"02","03","02","001216","000599","02|03|02",2,2,4,43,43,"02|02|04|43|43","National","Parliament","Associated Services","Transfer to Political Party Allowances","Non-transfer item","Capital","Transfers and subsidies","Provinces and municipalities","Provinces","Provincial Revenue Funds","General public services","Executive and legislative organs","NAT",0,0,0,0,0,0,0,0,0,0,0,null,null,null,null,null,null,null,null,null,null,null,null,null,null,null,null,null,null,null,null,null,null,null,null,null,null,null,null,null,null,{"$f":"Dataset[[#This Row],[2023/24 From - Spending review Topic 1]]+Dataset[[#This Row],[2023/24 From - Spending review Topic 2]]+Dataset[[#This Row],[2023/24 From - Spending review Topic 3]]+Dataset[[#This Row],[2023/24 From - Spending review Topic 4]]+Dataset[[#This Row],[2023/24 From - Other reallocations]]","v":0},{"$f":"Dataset[[#This Row],[2024/25 From - Spending review Topic 1]]+Dataset[[#This Row],[2024/25 From - Spending review Topic 2]]+Dataset[[#This Row],[2024/25 From - Spending review Topic 3]]+Dataset[[#This Row],[2024/25 From - Spending review Topic 4]]+Dataset[[#This Row],[2024/25 From - Other reallocations]]","v":0},{"$f":"Dataset[[#This Row],[2025/26 From - Spending review Topic 1]]+Dataset[[#This Row],[2025/26 From - Spending review Topic 2]]+Dataset[[#This Row],[2025/26 From - Spending review Topic 3]]+Dataset[[#This Row],[2025/26 From - Spending review Topic 4]]+Dataset[[#This Row],[2025/26 From - Other reallocations]]","v":0},{"$f":"Dataset[[#This Row],[2023/24 To - Spending review Topic 1]]+Dataset[[#This Row],[2023/24 To - Spending review Topic 2]]+Dataset[[#This Row],[2023/24 To - Spending review Topic 3]]+Dataset[[#This Row],[2023/24 To - Spending review Topic 4]]+Dataset[[#This Row],[2023/24 To - Other reallocations]]","v":0},{"$f":"Dataset[[#This Row],[2024/25 To - Spending review Topic 1]]+Dataset[[#This Row],[2024/25 To - Spending review Topic 2]]+Dataset[[#This Row],[2024/25 To - Spending review Topic 3]]+Dataset[[#This Row],[2024/25 To - Spending review Topic 4]]+Dataset[[#This Row],[2024/25 To - Other reallocations]]","v":0},{"$f":"Dataset[[#This Row],[2025/26 To - Spending review Topic 1]]+Dataset[[#This Row],[2025/26 To - Spending review Topic 2]]+Dataset[[#This Row],[2025/26 To - Spending review Topic 3]]+Dataset[[#This Row],[2025/26 To - Spending review Topic 4]]+Dataset[[#This Row],[2025/26 To - Other reallocations]]","v":0},{"$f":"Dataset[[#This Row],[2023/24 Baseline]]+Dataset[[#This Row],[2023/24 From - Total]]+Dataset[[#This Row],[2023/24 To - Total]]","v":0},{"$f":"Dataset[[#This Row],[2024/25 Baseline]]+Dataset[[#This Row],[2024/25 From - Total]]+Dataset[[#This Row],[2024/25 To - Total]]","v":0},{"$f":"Dataset[[#This Row],[2025/26 Baseline]]+Dataset[[#This Row],[2025/26 From - Total]]+Dataset[[#This Row],[2025/26 To - Total]]","v":0}]
["NAT|Non-transfer item","2|Municipal bank accounts","2023_24","MTEF2023",2,3,2,1217,600,"02","03","02","001217","000600","02|03|02",2,2,4,44,45,"02|02|04|44|45","National","Parliament","Associated Services","Transfer to Political Party Allowances","Non-transfer item","Capital","Transfers and subsidies","Provinces and municipalities","Municipalities","Municipal bank accounts","General public services","Executive and legislative organs","NAT",0,0,0,0,0,0,0,0,0,0,0,null,null,null,null,null,null,null,null,null,null,null,null,null,null,null,null,null,null,null,null,null,null,null,null,null,null,null,null,null,null,{"$f":"Dataset[[#This Row],[2023/24 From - Spending review Topic 1]]+Dataset[[#This Row],[2023/24 From - Spending review Topic 2]]+Dataset[[#This Row],[2023/24 From - Spending review Topic 3]]+Dataset[[#This Row],[2023/24 From - Spending review Topic 4]]+Dataset[[#This Row],[2023/24 From - Other reallocations]]","v":0},{"$f":"Dataset[[#This Row],[2024/25 From - Spending review Topic 1]]+Dataset[[#This Row],[2024/25 From - Spending review Topic 2]]+Dataset[[#This Row],[2024/25 From - Spending review Topic 3]]+Dataset[[#This Row],[2024/25 From - Spending review Topic 4]]+Dataset[[#This Row],[2024/25 From - Other reallocations]]","v":0},{"$f":"Dataset[[#This Row],[2025/26 From - Spending review Topic 1]]+Dataset[[#This Row],[2025/26 From - Spending review Topic 2]]+Dataset[[#This Row],[2025/26 From - Spending review Topic 3]]+Dataset[[#This Row],[2025/26 From - Spending review Topic 4]]+Dataset[[#This Row],[2025/26 From - Other reallocations]]","v":0},{"$f":"Dataset[[#This Row],[2023/24 To - Spending review Topic 1]]+Dataset[[#This Row],[2023/24 To - Spending review Topic 2]]+Dataset[[#This Row],[2023/24 To - Spending review Topic 3]]+Dataset[[#This Row],[2023/24 To - Spending review Topic 4]]+Dataset[[#This Row],[2023/24 To - Other reallocations]]","v":0},{"$f":"Dataset[[#This Row],[2024/25 To - Spending review Topic 1]]+Dataset[[#This Row],[2024/25 To - Spending review Topic 2]]+Dataset[[#This Row],[2024/25 To - Spending review Topic 3]]+Dataset[[#This Row],[2024/25 To - Spending review Topic 4]]+Dataset[[#This Row],[2024/25 To - Other reallocations]]","v":0},{"$f":"Dataset[[#This Row],[2025/26 To - Spending review Topic 1]]+Dataset[[#This Row],[2025/26 To - Spending review Topic 2]]+Dataset[[#This Row],[2025/26 To - Spending review Topic 3]]+Dataset[[#This Row],[2025/26 To - Spending review Topic 4]]+Dataset[[#This Row],[2025/26 To - Other reallocations]]","v":0},{"$f":"Dataset[[#This Row],[2023/24 Baseline]]+Dataset[[#This Row],[2023/24 From - Total]]+Dataset[[#This Row],[2023/24 To - Total]]","v":0},{"$f":"Dataset[[#This Row],[2024/25 Baseline]]+Dataset[[#This Row],[2024/25 From - Total]]+Dataset[[#This Row],[2024/25 To - Total]]","v":0},{"$f":"Dataset[[#This Row],[2025/26 Baseline]]+Dataset[[#This Row],[2025/26 From - Total]]+Dataset[[#This Row],[2025/26 To - Total]]","v":0}]
["NAT|Non-transfer item","2|Departmental agencies (non-business entities)","2023_24","MTEF2023",2,3,2,1218,601,"02","03","02","001218","000601","02|03|02",2,2,5,46,48,"02|02|05|46|48","National","Parliament","Associated Services","Transfer to Political Party Allowances","Non-transfer item","Capital","Transfers and subsidies","Departmental agencies and accounts","Departmental agencies (non-business entities)","Departmental agencies (non-business entities)","General public services","Executive and legislative organs","NAT",0,0,0,0,0,0,0,0,0,0,0,null,null,null,null,null,null,null,null,null,null,null,null,null,null,null,null,null,null,null,null,null,null,null,null,null,null,null,null,null,null,{"$f":"Dataset[[#This Row],[2023/24 From - Spending review Topic 1]]+Dataset[[#This Row],[2023/24 From - Spending review Topic 2]]+Dataset[[#This Row],[2023/24 From - Spending review Topic 3]]+Dataset[[#This Row],[2023/24 From - Spending review Topic 4]]+Dataset[[#This Row],[2023/24 From - Other reallocations]]","v":0},{"$f":"Dataset[[#This Row],[2024/25 From - Spending review Topic 1]]+Dataset[[#This Row],[2024/25 From - Spending review Topic 2]]+Dataset[[#This Row],[2024/25 From - Spending review Topic 3]]+Dataset[[#This Row],[2024/25 From - Spending review Topic 4]]+Dataset[[#This Row],[2024/25 From - Other reallocations]]","v":0},{"$f":"Dataset[[#This Row],[2025/26 From - Spending review Topic 1]]+Dataset[[#This Row],[2025/26 From - Spending review Topic 2]]+Dataset[[#This Row],[2025/26 From - Spending review Topic 3]]+Dataset[[#This Row],[2025/26 From - Spending review Topic 4]]+Dataset[[#This Row],[2025/26 From - Other reallocations]]","v":0},{"$f":"Dataset[[#This Row],[2023/24 To - Spending review Topic 1]]+Dataset[[#This Row],[2023/24 To - Spending review Topic 2]]+Dataset[[#This Row],[2023/24 To - Spending review Topic 3]]+Dataset[[#This Row],[2023/24 To - Spending review Topic 4]]+Dataset[[#This Row],[2023/24 To - Other reallocations]]","v":0},{"$f":"Dataset[[#This Row],[2024/25 To - Spending review Topic 1]]+Dataset[[#This Row],[2024/25 To - Spending review Topic 2]]+Dataset[[#This Row],[2024/25 To - Spending review Topic 3]]+Dataset[[#This Row],[2024/25 To - Spending review Topic 4]]+Dataset[[#This Row],[2024/25 To - Other reallocations]]","v":0},{"$f":"Dataset[[#This Row],[2025/26 To - Spending review Topic 1]]+Dataset[[#This Row],[2025/26 To - Spending review Topic 2]]+Dataset[[#This Row],[2025/26 To - Spending review Topic 3]]+Dataset[[#This Row],[2025/26 To - Spending review Topic 4]]+Dataset[[#This Row],[2025/26 To - Other reallocations]]","v":0},{"$f":"Dataset[[#This Row],[2023/24 Baseline]]+Dataset[[#This Row],[2023/24 From - Total]]+Dataset[[#This Row],[2023/24 To - Total]]","v":0},{"$f":"Dataset[[#This Row],[2024/25 Baseline]]+Dataset[[#This Row],[2024/25 From - Total]]+Dataset[[#This Row],[2024/25 To - Total]]","v":0},{"$f":"Dataset[[#This Row],[2025/26 Baseline]]+Dataset[[#This Row],[2025/26 From - Total]]+Dataset[[#This Row],[2025/26 To - Total]]","v":0}]
["NAT|Non-transfer item","2|Higher education institutions","2023_24","MTEF2023",2,3,2,1219,602,"02","03","02","001219","000602","02|03|02",2,2,6,47,49,"02|02|06|47|49","National","Parliament","Associated Services","Transfer to Political Party Allowances","Non-transfer item","Capital","Transfers and subsidies","Higher education institutions","Higher education institutions","Higher education institutions","General public services","Executive and legislative organs","NAT",0,0,0,0,0,0,0,0,0,0,0,null,null,null,null,null,null,null,null,null,null,null,null,null,null,null,null,null,null,null,null,null,null,null,null,null,null,null,null,null,null,{"$f":"Dataset[[#This Row],[2023/24 From - Spending review Topic 1]]+Dataset[[#This Row],[2023/24 From - Spending review Topic 2]]+Dataset[[#This Row],[2023/24 From - Spending review Topic 3]]+Dataset[[#This Row],[2023/24 From - Spending review Topic 4]]+Dataset[[#This Row],[2023/24 From - Other reallocations]]","v":0},{"$f":"Dataset[[#This Row],[2024/25 From - Spending review Topic 1]]+Dataset[[#This Row],[2024/25 From - Spending review Topic 2]]+Dataset[[#This Row],[2024/25 From - Spending review Topic 3]]+Dataset[[#This Row],[2024/25 From - Spending review Topic 4]]+Dataset[[#This Row],[2024/25 From - Other reallocations]]","v":0},{"$f":"Dataset[[#This Row],[2025/26 From - Spending review Topic 1]]+Dataset[[#This Row],[2025/26 From - Spending review Topic 2]]+Dataset[[#This Row],[2025/26 From - Spending review Topic 3]]+Dataset[[#This Row],[2025/26 From - Spending review Topic 4]]+Dataset[[#This Row],[2025/26 From - Other reallocations]]","v":0},{"$f":"Dataset[[#This Row],[2023/24 To - Spending review Topic 1]]+Dataset[[#This Row],[2023/24 To - Spending review Topic 2]]+Dataset[[#This Row],[2023/24 To - Spending review Topic 3]]+Dataset[[#This Row],[2023/24 To - Spending review Topic 4]]+Dataset[[#This Row],[2023/24 To - Other reallocations]]","v":0},{"$f":"Dataset[[#This Row],[2024/25 To - Spending review Topic 1]]+Dataset[[#This Row],[2024/25 To - Spending review Topic 2]]+Dataset[[#This Row],[2024/25 To - Spending review Topic 3]]+Dataset[[#This Row],[2024/25 To - Spending review Topic 4]]+Dataset[[#This Row],[2024/25 To - Other reallocations]]","v":0},{"$f":"Dataset[[#This Row],[2025/26 To - Spending review Topic 1]]+Dataset[[#This Row],[2025/26 To - Spending review Topic 2]]+Dataset[[#This Row],[2025/26 To - Spending review Topic 3]]+Dataset[[#This Row],[2025/26 To - Spending review Topic 4]]+Dataset[[#This Row],[2025/26 To - Other reallocations]]","v":0},{"$f":"Dataset[[#This Row],[2023/24 Baseline]]+Dataset[[#This Row],[2023/24 From - Total]]+Dataset[[#This Row],[2023/24 To - Total]]","v":0},{"$f":"Dataset[[#This Row],[2024/25 Baseline]]+Dataset[[#This Row],[2024/25 From - Total]]+Dataset[[#This Row],[2024/25 To - Total]]","v":0},{"$f":"Dataset[[#This Row],[2025/26 Baseline]]+Dataset[[#This Row],[2025/26 From - Total]]+Dataset[[#This Row],[2025/26 To - Total]]","v":0}]
["NAT|Non-transfer item","2|Foreign governments and international organisations","2023_24","MTEF2023",2,3,2,1220,603,"02","03","02","001220","000603","02|03|02",2,2,7,48,50,"02|02|07|48|50","National","Parliament","Associated Services","Transfer to Political Party Allowances","Non-transfer item","Capital","Transfers and subsidies","Foreign governments and international organisations","Foreign governments and international organisations","Foreign governments and international organisations","General public services","Executive and legislative organs","NAT",0,0,0,0,0,0,0,0,0,0,0,null,null,null,null,null,null,null,null,null,null,null,null,null,null,null,null,null,null,null,null,null,null,null,null,null,null,null,null,null,null,{"$f":"Dataset[[#This Row],[2023/24 From - Spending review Topic 1]]+Dataset[[#This Row],[2023/24 From - Spending review Topic 2]]+Dataset[[#This Row],[2023/24 From - Spending review Topic 3]]+Dataset[[#This Row],[2023/24 From - Spending review Topic 4]]+Dataset[[#This Row],[2023/24 From - Other reallocations]]","v":0},{"$f":"Dataset[[#This Row],[2024/25 From - Spending review Topic 1]]+Dataset[[#This Row],[2024/25 From - Spending review Topic 2]]+Dataset[[#This Row],[2024/25 From - Spending review Topic 3]]+Dataset[[#This Row],[2024/25 From - Spending review Topic 4]]+Dataset[[#This Row],[2024/25 From - Other reallocations]]","v":0},{"$f":"Dataset[[#This Row],[2025/26 From - Spending review Topic 1]]+Dataset[[#This Row],[2025/26 From - Spending review Topic 2]]+Dataset[[#This Row],[2025/26 From - Spending review Topic 3]]+Dataset[[#This Row],[2025/26 From - Spending review Topic 4]]+Dataset[[#This Row],[2025/26 From - Other reallocations]]","v":0},{"$f":"Dataset[[#This Row],[2023/24 To - Spending review Topic 1]]+Dataset[[#This Row],[2023/24 To - Spending review Topic 2]]+Dataset[[#This Row],[2023/24 To - Spending review Topic 3]]+Dataset[[#This Row],[2023/24 To - Spending review Topic 4]]+Dataset[[#This Row],[2023/24 To - Other reallocations]]","v":0},{"$f":"Dataset[[#This Row],[2024/25 To - Spending review Topic 1]]+Dataset[[#This Row],[2024/25 To - Spending review Topic 2]]+Dataset[[#This Row],[2024/25 To - Spending review Topic 3]]+Dataset[[#This Row],[2024/25 To - Spending review Topic 4]]+Dataset[[#This Row],[2024/25 To - Other reallocations]]","v":0},{"$f":"Dataset[[#This Row],[2025/26 To - Spending review Topic 1]]+Dataset[[#This Row],[2025/26 To - Spending review Topic 2]]+Dataset[[#This Row],[2025/26 To - Spending review Topic 3]]+Dataset[[#This Row],[2025/26 To - Spending review Topic 4]]+Dataset[[#This Row],[2025/26 To - Other reallocations]]","v":0},{"$f":"Dataset[[#This Row],[2023/24 Baseline]]+Dataset[[#This Row],[2023/24 From - Total]]+Dataset[[#This Row],[2023/24 To - Total]]","v":0},{"$f":"Dataset[[#This Row],[2024/25 Baseline]]+Dataset[[#This Row],[2024/25 From - Total]]+Dataset[[#This Row],[2024/25 To - Total]]","v":0},{"$f":"Dataset[[#This Row],[2025/26 Baseline]]+Dataset[[#This Row],[2025/26 From - Total]]+Dataset[[#This Row],[2025/26 To - Total]]","v":0}]
["NAT|Non-transfer item","2|Subsidies on products and production (pc)","2023_24","MTEF2023",2,3,2,1221,604,"02","03","02","001221","000604","02|03|02",2,2,8,49,51,"02|02|08|49|51","National","Parliament","Associated Services","Transfer to Political Party Allowances","Non-transfer item","Capital","Transfers and subsidies","Public corporations and private enterprises","Public corporations","Subsidies on products and production (pc)","General public services","Executive and legislative organs","NAT",0,0,0,0,0,0,0,0,0,0,0,null,null,null,null,null,null,null,null,null,null,null,null,null,null,null,null,null,null,null,null,null,null,null,null,null,null,null,null,null,null,{"$f":"Dataset[[#This Row],[2023/24 From - Spending review Topic 1]]+Dataset[[#This Row],[2023/24 From - Spending review Topic 2]]+Dataset[[#This Row],[2023/24 From - Spending review Topic 3]]+Dataset[[#This Row],[2023/24 From - Spending review Topic 4]]+Dataset[[#This Row],[2023/24 From - Other reallocations]]","v":0},{"$f":"Dataset[[#This Row],[2024/25 From - Spending review Topic 1]]+Dataset[[#This Row],[2024/25 From - Spending review Topic 2]]+Dataset[[#This Row],[2024/25 From - Spending review Topic 3]]+Dataset[[#This Row],[2024/25 From - Spending review Topic 4]]+Dataset[[#This Row],[2024/25 From - Other reallocations]]","v":0},{"$f":"Dataset[[#This Row],[2025/26 From - Spending review Topic 1]]+Dataset[[#This Row],[2025/26 From - Spending review Topic 2]]+Dataset[[#This Row],[2025/26 From - Spending review Topic 3]]+Dataset[[#This Row],[2025/26 From - Spending review Topic 4]]+Dataset[[#This Row],[2025/26 From - Other reallocations]]","v":0},{"$f":"Dataset[[#This Row],[2023/24 To - Spending review Topic 1]]+Dataset[[#This Row],[2023/24 To - Spending review Topic 2]]+Dataset[[#This Row],[2023/24 To - Spending review Topic 3]]+Dataset[[#This Row],[2023/24 To - Spending review Topic 4]]+Dataset[[#This Row],[2023/24 To - Other reallocations]]","v":0},{"$f":"Dataset[[#This Row],[2024/25 To - Spending review Topic 1]]+Dataset[[#This Row],[2024/25 To - Spending review Topic 2]]+Dataset[[#This Row],[2024/25 To - Spending review Topic 3]]+Dataset[[#This Row],[2024/25 To - Spending review Topic 4]]+Dataset[[#This Row],[2024/25 To - Other reallocations]]","v":0},{"$f":"Dataset[[#This Row],[2025/26 To - Spending review Topic 1]]+Dataset[[#This Row],[2025/26 To - Spending review Topic 2]]+Dataset[[#This Row],[2025/26 To - Spending review Topic 3]]+Dataset[[#This Row],[2025/26 To - Spending review Topic 4]]+Dataset[[#This Row],[2025/26 To - Other reallocations]]","v":0},{"$f":"Dataset[[#This Row],[2023/24 Baseline]]+Dataset[[#This Row],[2023/24 From - Total]]+Dataset[[#This Row],[2023/24 To - Total]]","v":0},{"$f":"Dataset[[#This Row],[2024/25 Baseline]]+Dataset[[#This Row],[2024/25 From - Total]]+Dataset[[#This Row],[2024/25 To - Total]]","v":0},{"$f":"Dataset[[#This Row],[2025/26 Baseline]]+Dataset[[#This Row],[2025/26 From - Total]]+Dataset[[#This Row],[2025/26 To - Total]]","v":0}]
["NAT|Non-transfer item","2|Other transfers to public corporations","2023_24","MTEF2023",2,3,2,1222,605,"02","03","02","001222","000605","02|03|02",2,2,8,49,52,"02|02|08|49|52","National","Parliament","Associated Services","Transfer to Political Party Allowances","Non-transfer item","Capital","Transfers and subsidies","Public corporations and private enterprises","Public corporations","Other transfers to public corporations","General public services","Executive and legislative organs","NAT",0,0,0,0,0,0,0,0,0,0,0,null,null,null,null,null,null,null,null,null,null,null,null,null,null,null,null,null,null,null,null,null,null,null,null,null,null,null,null,null,null,{"$f":"Dataset[[#This Row],[2023/24 From - Spending review Topic 1]]+Dataset[[#This Row],[2023/24 From - Spending review Topic 2]]+Dataset[[#This Row],[2023/24 From - Spending review Topic 3]]+Dataset[[#This Row],[2023/24 From - Spending review Topic 4]]+Dataset[[#This Row],[2023/24 From - Other reallocations]]","v":0},{"$f":"Dataset[[#This Row],[2024/25 From - Spending review Topic 1]]+Dataset[[#This Row],[2024/25 From - Spending review Topic 2]]+Dataset[[#This Row],[2024/25 From - Spending review Topic 3]]+Dataset[[#This Row],[2024/25 From - Spending review Topic 4]]+Dataset[[#This Row],[2024/25 From - Other reallocations]]","v":0},{"$f":"Dataset[[#This Row],[2025/26 From - Spending review Topic 1]]+Dataset[[#This Row],[2025/26 From - Spending review Topic 2]]+Dataset[[#This Row],[2025/26 From - Spending review Topic 3]]+Dataset[[#This Row],[2025/26 From - Spending review Topic 4]]+Dataset[[#This Row],[2025/26 From - Other reallocations]]","v":0},{"$f":"Dataset[[#This Row],[2023/24 To - Spending review Topic 1]]+Dataset[[#This Row],[2023/24 To - Spending review Topic 2]]+Dataset[[#This Row],[2023/24 To - Spending review Topic 3]]+Dataset[[#This Row],[2023/24 To - Spending review Topic 4]]+Dataset[[#This Row],[2023/24 To - Other reallocations]]","v":0},{"$f":"Dataset[[#This Row],[2024/25 To - Spending review Topic 1]]+Dataset[[#This Row],[2024/25 To - Spending review Topic 2]]+Dataset[[#This Row],[2024/25 To - Spending review Topic 3]]+Dataset[[#This Row],[2024/25 To - Spending review Topic 4]]+Dataset[[#This Row],[2024/25 To - Other reallocations]]","v":0},{"$f":"Dataset[[#This Row],[2025/26 To - Spending review Topic 1]]+Dataset[[#This Row],[2025/26 To - Spending review Topic 2]]+Dataset[[#This Row],[2025/26 To - Spending review Topic 3]]+Dataset[[#This Row],[2025/26 To - Spending review Topic 4]]+Dataset[[#This Row],[2025/26 To - Other reallocations]]","v":0},{"$f":"Dataset[[#This Row],[2023/24 Baseline]]+Dataset[[#This Row],[2023/24 From - Total]]+Dataset[[#This Row],[2023/24 To - Total]]","v":0},{"$f":"Dataset[[#This Row],[2024/25 Baseline]]+Dataset[[#This Row],[2024/25 From - Total]]+Dataset[[#This Row],[2024/25 To - Total]]","v":0},{"$f":"Dataset[[#This Row],[2025/26 Baseline]]+Dataset[[#This Row],[2025/26 From - Total]]+Dataset[[#This Row],[2025/26 To - Total]]","v":0}]
["NAT|Non-transfer item","2|Other transfers to private enterprises","2023_24","MTEF2023",2,3,2,1223,606,"02","03","02","001223","000606","02|03|02",2,2,8,50,54,"02|02|08|50|54","National","Parliament","Associated Services","Transfer to Political Party Allowances","Non-transfer item","Capital","Transfers and subsidies","Public corporations and private enterprises","Private enterprises","Other transfers to private enterprises","General public services","Executive and legislative organs","NAT",0,0,0,0,0,0,0,0,0,0,0,null,null,null,null,null,null,null,null,null,null,null,null,null,null,null,null,null,null,null,null,null,null,null,null,null,null,null,null,null,null,{"$f":"Dataset[[#This Row],[2023/24 From - Spending review Topic 1]]+Dataset[[#This Row],[2023/24 From - Spending review Topic 2]]+Dataset[[#This Row],[2023/24 From - Spending review Topic 3]]+Dataset[[#This Row],[2023/24 From - Spending review Topic 4]]+Dataset[[#This Row],[2023/24 From - Other reallocations]]","v":0},{"$f":"Dataset[[#This Row],[2024/25 From - Spending review Topic 1]]+Dataset[[#This Row],[2024/25 From - Spending review Topic 2]]+Dataset[[#This Row],[2024/25 From - Spending review Topic 3]]+Dataset[[#This Row],[2024/25 From - Spending review Topic 4]]+Dataset[[#This Row],[2024/25 From - Other reallocations]]","v":0},{"$f":"Dataset[[#This Row],[2025/26 From - Spending review Topic 1]]+Dataset[[#This Row],[2025/26 From - Spending review Topic 2]]+Dataset[[#This Row],[2025/26 From - Spending review Topic 3]]+Dataset[[#This Row],[2025/26 From - Spending review Topic 4]]+Dataset[[#This Row],[2025/26 From - Other reallocations]]","v":0},{"$f":"Dataset[[#This Row],[2023/24 To - Spending review Topic 1]]+Dataset[[#This Row],[2023/24 To - Spending review Topic 2]]+Dataset[[#This Row],[2023/24 To - Spending review Topic 3]]+Dataset[[#This Row],[2023/24 To - Spending review Topic 4]]+Dataset[[#This Row],[2023/24 To - Other reallocations]]","v":0},{"$f":"Dataset[[#This Row],[2024/25 To - Spending review Topic 1]]+Dataset[[#This Row],[2024/25 To - Spending review Topic 2]]+Dataset[[#This Row],[2024/25 To - Spending review Topic 3]]+Dataset[[#This Row],[2024/25 To - Spending review Topic 4]]+Dataset[[#This Row],[2024/25 To - Other reallocations]]","v":0},{"$f":"Dataset[[#This Row],[2025/26 To - Spending review Topic 1]]+Dataset[[#This Row],[2025/26 To - Spending review Topic 2]]+Dataset[[#This Row],[2025/26 To - Spending review Topic 3]]+Dataset[[#This Row],[2025/26 To - Spending review Topic 4]]+Dataset[[#This Row],[2025/26 To - Other reallocations]]","v":0},{"$f":"Dataset[[#This Row],[2023/24 Baseline]]+Dataset[[#This Row],[2023/24 From - Total]]+Dataset[[#This Row],[2023/24 To - Total]]","v":0},{"$f":"Dataset[[#This Row],[2024/25 Baseline]]+Dataset[[#This Row],[2024/25 From - Total]]+Dataset[[#This Row],[2024/25 To - Total]]","v":0},{"$f":"Dataset[[#This Row],[2025/26 Baseline]]+Dataset[[#This Row],[2025/26 From - Total]]+Dataset[[#This Row],[2025/26 To - Total]]","v":0}]
["NAT|Non-transfer item","2|Non-profit institutions","2023_24","MTEF2023",2,3,2,1224,607,"02","03","02","001224","000607","02|03|02",2,2,9,51,55,"02|02|09|51|55","National","Parliament","Associated Services","Transfer to Political Party Allowances","Non-transfer item","Capital","Transfers and subsidies","Non-profit institutions","Non-profit institutions","Non-profit institutions","General public services","Executive and legislative organs","NAT",0,0,0,0,0,0,0,0,0,0,0,null,null,null,null,null,null,null,null,null,null,null,null,null,null,null,null,null,null,null,null,null,null,null,null,null,null,null,null,null,null,{"$f":"Dataset[[#This Row],[2023/24 From - Spending review Topic 1]]+Dataset[[#This Row],[2023/24 From - Spending review Topic 2]]+Dataset[[#This Row],[2023/24 From - Spending review Topic 3]]+Dataset[[#This Row],[2023/24 From - Spending review Topic 4]]+Dataset[[#This Row],[2023/24 From - Other reallocations]]","v":0},{"$f":"Dataset[[#This Row],[2024/25 From - Spending review Topic 1]]+Dataset[[#This Row],[2024/25 From - Spending review Topic 2]]+Dataset[[#This Row],[2024/25 From - Spending review Topic 3]]+Dataset[[#This Row],[2024/25 From - Spending review Topic 4]]+Dataset[[#This Row],[2024/25 From - Other reallocations]]","v":0},{"$f":"Dataset[[#This Row],[2025/26 From - Spending review Topic 1]]+Dataset[[#This Row],[2025/26 From - Spending review Topic 2]]+Dataset[[#This Row],[2025/26 From - Spending review Topic 3]]+Dataset[[#This Row],[2025/26 From - Spending review Topic 4]]+Dataset[[#This Row],[2025/26 From - Other reallocations]]","v":0},{"$f":"Dataset[[#This Row],[2023/24 To - Spending review Topic 1]]+Dataset[[#This Row],[2023/24 To - Spending review Topic 2]]+Dataset[[#This Row],[2023/24 To - Spending review Topic 3]]+Dataset[[#This Row],[2023/24 To - Spending review Topic 4]]+Dataset[[#This Row],[2023/24 To - Other reallocations]]","v":0},{"$f":"Dataset[[#This Row],[2024/25 To - Spending review Topic 1]]+Dataset[[#This Row],[2024/25 To - Spending review Topic 2]]+Dataset[[#This Row],[2024/25 To - Spending review Topic 3]]+Dataset[[#This Row],[2024/25 To - Spending review Topic 4]]+Dataset[[#This Row],[2024/25 To - Other reallocations]]","v":0},{"$f":"Dataset[[#This Row],[2025/26 To - Spending review Topic 1]]+Dataset[[#This Row],[2025/26 To - Spending review Topic 2]]+Dataset[[#This Row],[2025/26 To - Spending review Topic 3]]+Dataset[[#This Row],[2025/26 To - Spending review Topic 4]]+Dataset[[#This Row],[2025/26 To - Other reallocations]]","v":0},{"$f":"Dataset[[#This Row],[2023/24 Baseline]]+Dataset[[#This Row],[2023/24 From - Total]]+Dataset[[#This Row],[2023/24 To - Total]]","v":0},{"$f":"Dataset[[#This Row],[2024/25 Baseline]]+Dataset[[#This Row],[2024/25 From - Total]]+Dataset[[#This Row],[2024/25 To - Total]]","v":0},{"$f":"Dataset[[#This Row],[2025/26 Baseline]]+Dataset[[#This Row],[2025/26 From - Total]]+Dataset[[#This Row],[2025/26 To - Total]]","v":0}]
["NAT|Non-transfer item","2|Other transfers to households","2023_24","MTEF2023",2,3,2,1225,608,"02","03","02","001225","000608","02|03|02",2,2,10,53,57,"02|02|10|53|57","National","Parliament","Associated Services","Transfer to Political Party Allowances","Non-transfer item","Capital","Transfers and subsidies","Households","Other transfers to households","Other transfers to households","General public services","Executive and legislative organs","NAT",0,0,0,0,0,0,0,0,0,0,0,null,null,null,null,null,null,null,null,null,null,null,null,null,null,null,null,null,null,null,null,null,null,null,null,null,null,null,null,null,null,{"$f":"Dataset[[#This Row],[2023/24 From - Spending review Topic 1]]+Dataset[[#This Row],[2023/24 From - Spending review Topic 2]]+Dataset[[#This Row],[2023/24 From - Spending review Topic 3]]+Dataset[[#This Row],[2023/24 From - Spending review Topic 4]]+Dataset[[#This Row],[2023/24 From - Other reallocations]]","v":0},{"$f":"Dataset[[#This Row],[2024/25 From - Spending review Topic 1]]+Dataset[[#This Row],[2024/25 From - Spending review Topic 2]]+Dataset[[#This Row],[2024/25 From - Spending review Topic 3]]+Dataset[[#This Row],[2024/25 From - Spending review Topic 4]]+Dataset[[#This Row],[2024/25 From - Other reallocations]]","v":0},{"$f":"Dataset[[#This Row],[2025/26 From - Spending review Topic 1]]+Dataset[[#This Row],[2025/26 From - Spending review Topic 2]]+Dataset[[#This Row],[2025/26 From - Spending review Topic 3]]+Dataset[[#This Row],[2025/26 From - Spending review Topic 4]]+Dataset[[#This Row],[2025/26 From - Other reallocations]]","v":0},{"$f":"Dataset[[#This Row],[2023/24 To - Spending review Topic 1]]+Dataset[[#This Row],[2023/24 To - Spending review Topic 2]]+Dataset[[#This Row],[2023/24 To - Spending review Topic 3]]+Dataset[[#This Row],[2023/24 To - Spending review Topic 4]]+Dataset[[#This Row],[2023/24 To - Other reallocations]]","v":0},{"$f":"Dataset[[#This Row],[2024/25 To - Spending review Topic 1]]+Dataset[[#This Row],[2024/25 To - Spending review Topic 2]]+Dataset[[#This Row],[2024/25 To - Spending review Topic 3]]+Dataset[[#This Row],[2024/25 To - Spending review Topic 4]]+Dataset[[#This Row],[2024/25 To - Other reallocations]]","v":0},{"$f":"Dataset[[#This Row],[2025/26 To - Spending review Topic 1]]+Dataset[[#This Row],[2025/26 To - Spending review Topic 2]]+Dataset[[#This Row],[2025/26 To - Spending review Topic 3]]+Dataset[[#This Row],[2025/26 To - Spending review Topic 4]]+Dataset[[#This Row],[2025/26 To - Other reallocations]]","v":0},{"$f":"Dataset[[#This Row],[2023/24 Baseline]]+Dataset[[#This Row],[2023/24 From - Total]]+Dataset[[#This Row],[2023/24 To - Total]]","v":0},{"$f":"Dataset[[#This Row],[2024/25 Baseline]]+Dataset[[#This Row],[2024/25 From - Total]]+Dataset[[#This Row],[2024/25 To - Total]]","v":0},{"$f":"Dataset[[#This Row],[2025/26 Baseline]]+Dataset[[#This Row],[2025/26 From - Total]]+Dataset[[#This Row],[2025/26 To - Total]]","v":0}]
["NAT|Non-transfer item","2|Buildings","2023_24","MTEF2023",2,3,2,1226,609,"02","03","02","001226","000609","02|03|02",2,3,11,54,58,"02|03|11|54|58","National","Parliament","Associated Services","Transfer to Political Party Allowances","Non-transfer item","Capital","Payments for capital assets","Buildings and other fixed structures","Buildings","Buildings","General public services","Executive and legislative organs","NAT",0,0,0,0,0,0,0,0,0,0,0,null,null,null,null,null,null,null,null,null,null,null,null,null,null,null,null,null,null,null,null,null,null,null,null,null,null,null,null,null,null,{"$f":"Dataset[[#This Row],[2023/24 From - Spending review Topic 1]]+Dataset[[#This Row],[2023/24 From - Spending review Topic 2]]+Dataset[[#This Row],[2023/24 From - Spending review Topic 3]]+Dataset[[#This Row],[2023/24 From - Spending review Topic 4]]+Dataset[[#This Row],[2023/24 From - Other reallocations]]","v":0},{"$f":"Dataset[[#This Row],[2024/25 From - Spending review Topic 1]]+Dataset[[#This Row],[2024/25 From - Spending review Topic 2]]+Dataset[[#This Row],[2024/25 From - Spending review Topic 3]]+Dataset[[#This Row],[2024/25 From - Spending review Topic 4]]+Dataset[[#This Row],[2024/25 From - Other reallocations]]","v":0},{"$f":"Dataset[[#This Row],[2025/26 From - Spending review Topic 1]]+Dataset[[#This Row],[2025/26 From - Spending review Topic 2]]+Dataset[[#This Row],[2025/26 From - Spending review Topic 3]]+Dataset[[#This Row],[2025/26 From - Spending review Topic 4]]+Dataset[[#This Row],[2025/26 From - Other reallocations]]","v":0},{"$f":"Dataset[[#This Row],[2023/24 To - Spending review Topic 1]]+Dataset[[#This Row],[2023/24 To - Spending review Topic 2]]+Dataset[[#This Row],[2023/24 To - Spending review Topic 3]]+Dataset[[#This Row],[2023/24 To - Spending review Topic 4]]+Dataset[[#This Row],[2023/24 To - Other reallocations]]","v":0},{"$f":"Dataset[[#This Row],[2024/25 To - Spending review Topic 1]]+Dataset[[#This Row],[2024/25 To - Spending review Topic 2]]+Dataset[[#This Row],[2024/25 To - Spending review Topic 3]]+Dataset[[#This Row],[2024/25 To - Spending review Topic 4]]+Dataset[[#This Row],[2024/25 To - Other reallocations]]","v":0},{"$f":"Dataset[[#This Row],[2025/26 To - Spending review Topic 1]]+Dataset[[#This Row],[2025/26 To - Spending review Topic 2]]+Dataset[[#This Row],[2025/26 To - Spending review Topic 3]]+Dataset[[#This Row],[2025/26 To - Spending review Topic 4]]+Dataset[[#This Row],[2025/26 To - Other reallocations]]","v":0},{"$f":"Dataset[[#This Row],[2023/24 Baseline]]+Dataset[[#This Row],[2023/24 From - Total]]+Dataset[[#This Row],[2023/24 To - Total]]","v":0},{"$f":"Dataset[[#This Row],[2024/25 Baseline]]+Dataset[[#This Row],[2024/25 From - Total]]+Dataset[[#This Row],[2024/25 To - Total]]","v":0},{"$f":"Dataset[[#This Row],[2025/26 Baseline]]+Dataset[[#This Row],[2025/26 From - Total]]+Dataset[[#This Row],[2025/26 To - Total]]","v":0}]
["NAT|Non-transfer item","2|Other fixed structures","2023_24","MTEF2023",2,3,2,1227,610,"02","03","02","001227","000610","02|03|02",2,3,11,55,59,"02|03|11|55|59","National","Parliament","Associated Services","Transfer to Political Party Allowances","Non-transfer item","Capital","Payments for capital assets","Buildings and other fixed structures","Other fixed structures","Other fixed structures","General public services","Executive and legislative organs","NAT",0,0,0,0,0,0,0,0,0,0,0,null,null,null,null,null,null,null,null,null,null,null,null,null,null,null,null,null,null,null,null,null,null,null,null,null,null,null,null,null,null,{"$f":"Dataset[[#This Row],[2023/24 From - Spending review Topic 1]]+Dataset[[#This Row],[2023/24 From - Spending review Topic 2]]+Dataset[[#This Row],[2023/24 From - Spending review Topic 3]]+Dataset[[#This Row],[2023/24 From - Spending review Topic 4]]+Dataset[[#This Row],[2023/24 From - Other reallocations]]","v":0},{"$f":"Dataset[[#This Row],[2024/25 From - Spending review Topic 1]]+Dataset[[#This Row],[2024/25 From - Spending review Topic 2]]+Dataset[[#This Row],[2024/25 From - Spending review Topic 3]]+Dataset[[#This Row],[2024/25 From - Spending review Topic 4]]+Dataset[[#This Row],[2024/25 From - Other reallocations]]","v":0},{"$f":"Dataset[[#This Row],[2025/26 From - Spending review Topic 1]]+Dataset[[#This Row],[2025/26 From - Spending review Topic 2]]+Dataset[[#This Row],[2025/26 From - Spending review Topic 3]]+Dataset[[#This Row],[2025/26 From - Spending review Topic 4]]+Dataset[[#This Row],[2025/26 From - Other reallocations]]","v":0},{"$f":"Dataset[[#This Row],[2023/24 To - Spending review Topic 1]]+Dataset[[#This Row],[2023/24 To - Spending review Topic 2]]+Dataset[[#This Row],[2023/24 To - Spending review Topic 3]]+Dataset[[#This Row],[2023/24 To - Spending review Topic 4]]+Dataset[[#This Row],[2023/24 To - Other reallocations]]","v":0},{"$f":"Dataset[[#This Row],[2024/25 To - Spending review Topic 1]]+Dataset[[#This Row],[2024/25 To - Spending review Topic 2]]+Dataset[[#This Row],[2024/25 To - Spending review Topic 3]]+Dataset[[#This Row],[2024/25 To - Spending review Topic 4]]+Dataset[[#This Row],[2024/25 To - Other reallocations]]","v":0},{"$f":"Dataset[[#This Row],[2025/26 To - Spending review Topic 1]]+Dataset[[#This Row],[2025/26 To - Spending review Topic 2]]+Dataset[[#This Row],[2025/26 To - Spending review Topic 3]]+Dataset[[#This Row],[2025/26 To - Spending review Topic 4]]+Dataset[[#This Row],[2025/26 To - Other reallocations]]","v":0},{"$f":"Dataset[[#This Row],[2023/24 Baseline]]+Dataset[[#This Row],[2023/24 From - Total]]+Dataset[[#This Row],[2023/24 To - Total]]","v":0},{"$f":"Dataset[[#This Row],[2024/25 Baseline]]+Dataset[[#This Row],[2024/25 From - Total]]+Dataset[[#This Row],[2024/25 To - Total]]","v":0},{"$f":"Dataset[[#This Row],[2025/26 Baseline]]+Dataset[[#This Row],[2025/26 From - Total]]+Dataset[[#This Row],[2025/26 To - Total]]","v":0}]
["NAT|Non-transfer item","2|Transport equipment","2023_24","MTEF2023",2,3,2,1228,611,"02","03","02","001228","000611","02|03|02",2,3,12,56,60,"02|03|12|56|60","National","Parliament","Associated Services","Transfer to Political Party Allowances","Non-transfer item","Capital","Payments for capital assets","Machinery and equipment","Transport equipment","Transport equipment","General public services","Executive and legislative organs","NAT",0,0,0,0,0,0,0,0,0,0,0,null,null,null,null,null,null,null,null,null,null,null,null,null,null,null,null,null,null,null,null,null,null,null,null,null,null,null,null,null,null,{"$f":"Dataset[[#This Row],[2023/24 From - Spending review Topic 1]]+Dataset[[#This Row],[2023/24 From - Spending review Topic 2]]+Dataset[[#This Row],[2023/24 From - Spending review Topic 3]]+Dataset[[#This Row],[2023/24 From - Spending review Topic 4]]+Dataset[[#This Row],[2023/24 From - Other reallocations]]","v":0},{"$f":"Dataset[[#This Row],[2024/25 From - Spending review Topic 1]]+Dataset[[#This Row],[2024/25 From - Spending review Topic 2]]+Dataset[[#This Row],[2024/25 From - Spending review Topic 3]]+Dataset[[#This Row],[2024/25 From - Spending review Topic 4]]+Dataset[[#This Row],[2024/25 From - Other reallocations]]","v":0},{"$f":"Dataset[[#This Row],[2025/26 From - Spending review Topic 1]]+Dataset[[#This Row],[2025/26 From - Spending review Topic 2]]+Dataset[[#This Row],[2025/26 From - Spending review Topic 3]]+Dataset[[#This Row],[2025/26 From - Spending review Topic 4]]+Dataset[[#This Row],[2025/26 From - Other reallocations]]","v":0},{"$f":"Dataset[[#This Row],[2023/24 To - Spending review Topic 1]]+Dataset[[#This Row],[2023/24 To - Spending review Topic 2]]+Dataset[[#This Row],[2023/24 To - Spending review Topic 3]]+Dataset[[#This Row],[2023/24 To - Spending review Topic 4]]+Dataset[[#This Row],[2023/24 To - Other reallocations]]","v":0},{"$f":"Dataset[[#This Row],[2024/25 To - Spending review Topic 1]]+Dataset[[#This Row],[2024/25 To - Spending review Topic 2]]+Dataset[[#This Row],[2024/25 To - Spending review Topic 3]]+Dataset[[#This Row],[2024/25 To - Spending review Topic 4]]+Dataset[[#This Row],[2024/25 To - Other reallocations]]","v":0},{"$f":"Dataset[[#This Row],[2025/26 To - Spending review Topic 1]]+Dataset[[#This Row],[2025/26 To - Spending review Topic 2]]+Dataset[[#This Row],[2025/26 To - Spending review Topic 3]]+Dataset[[#This Row],[2025/26 To - Spending review Topic 4]]+Dataset[[#This Row],[2025/26 To - Other reallocations]]","v":0},{"$f":"Dataset[[#This Row],[2023/24 Baseline]]+Dataset[[#This Row],[2023/24 From - Total]]+Dataset[[#This Row],[2023/24 To - Total]]","v":0},{"$f":"Dataset[[#This Row],[2024/25 Baseline]]+Dataset[[#This Row],[2024/25 From - Total]]+Dataset[[#This Row],[2024/25 To - Total]]","v":0},{"$f":"Dataset[[#This Row],[2025/26 Baseline]]+Dataset[[#This Row],[2025/26 From - Total]]+Dataset[[#This Row],[2025/26 To - Total]]","v":0}]
["NAT|Non-transfer item","2|Other machinery and equipment","2023_24","MTEF2023",2,3,2,1229,612,"02","03","02","001229","000612","02|03|02",2,3,12,57,61,"02|03|12|57|61","National","Parliament","Associated Services","Transfer to Political Party Allowances","Non-transfer item","Capital","Payments for capital assets","Machinery and equipment","Other machinery and equipment","Other machinery and equipment","General public services","Executive and legislative organs","NAT",0,0,0,0,0,0,0,0,0,0,0,null,null,null,null,null,null,null,null,null,null,null,null,null,null,null,null,null,null,null,null,null,null,null,null,null,null,null,null,null,null,{"$f":"Dataset[[#This Row],[2023/24 From - Spending review Topic 1]]+Dataset[[#This Row],[2023/24 From - Spending review Topic 2]]+Dataset[[#This Row],[2023/24 From - Spending review Topic 3]]+Dataset[[#This Row],[2023/24 From - Spending review Topic 4]]+Dataset[[#This Row],[2023/24 From - Other reallocations]]","v":0},{"$f":"Dataset[[#This Row],[2024/25 From - Spending review Topic 1]]+Dataset[[#This Row],[2024/25 From - Spending review Topic 2]]+Dataset[[#This Row],[2024/25 From - Spending review Topic 3]]+Dataset[[#This Row],[2024/25 From - Spending review Topic 4]]+Dataset[[#This Row],[2024/25 From - Other reallocations]]","v":0},{"$f":"Dataset[[#This Row],[2025/26 From - Spending review Topic 1]]+Dataset[[#This Row],[2025/26 From - Spending review Topic 2]]+Dataset[[#This Row],[2025/26 From - Spending review Topic 3]]+Dataset[[#This Row],[2025/26 From - Spending review Topic 4]]+Dataset[[#This Row],[2025/26 From - Other reallocations]]","v":0},{"$f":"Dataset[[#This Row],[2023/24 To - Spending review Topic 1]]+Dataset[[#This Row],[2023/24 To - Spending review Topic 2]]+Dataset[[#This Row],[2023/24 To - Spending review Topic 3]]+Dataset[[#This Row],[2023/24 To - Spending review Topic 4]]+Dataset[[#This Row],[2023/24 To - Other reallocations]]","v":0},{"$f":"Dataset[[#This Row],[2024/25 To - Spending review Topic 1]]+Dataset[[#This Row],[2024/25 To - Spending review Topic 2]]+Dataset[[#This Row],[2024/25 To - Spending review Topic 3]]+Dataset[[#This Row],[2024/25 To - Spending review Topic 4]]+Dataset[[#This Row],[2024/25 To - Other reallocations]]","v":0},{"$f":"Dataset[[#This Row],[2025/26 To - Spending review Topic 1]]+Dataset[[#This Row],[2025/26 To - Spending review Topic 2]]+Dataset[[#This Row],[2025/26 To - Spending review Topic 3]]+Dataset[[#This Row],[2025/26 To - Spending review Topic 4]]+Dataset[[#This Row],[2025/26 To - Other reallocations]]","v":0},{"$f":"Dataset[[#This Row],[2023/24 Baseline]]+Dataset[[#This Row],[2023/24 From - Total]]+Dataset[[#This Row],[2023/24 To - Total]]","v":0},{"$f":"Dataset[[#This Row],[2024/25 Baseline]]+Dataset[[#This Row],[2024/25 From - Total]]+Dataset[[#This Row],[2024/25 To - Total]]","v":0},{"$f":"Dataset[[#This Row],[2025/26 Baseline]]+Dataset[[#This Row],[2025/26 From - Total]]+Dataset[[#This Row],[2025/26 To - Total]]","v":0}]
["NAT|Non-transfer item","2|Heritage assets","2023_24","MTEF2023",2,3,2,1230,613,"02","03","02","001230","000613","02|03|02",2,3,13,58,62,"02|03|13|58|62","National","Parliament","Associated Services","Transfer to Political Party Allowances","Non-transfer item","Capital","Payments for capital assets","Heritage assets","Heritage assets","Heritage assets","General public services","Executive and legislative organs","NAT",0,0,0,0,0,0,0,0,0,0,0,null,null,null,null,null,null,null,null,null,null,null,null,null,null,null,null,null,null,null,null,null,null,null,null,null,null,null,null,null,null,{"$f":"Dataset[[#This Row],[2023/24 From - Spending review Topic 1]]+Dataset[[#This Row],[2023/24 From - Spending review Topic 2]]+Dataset[[#This Row],[2023/24 From - Spending review Topic 3]]+Dataset[[#This Row],[2023/24 From - Spending review Topic 4]]+Dataset[[#This Row],[2023/24 From - Other reallocations]]","v":0},{"$f":"Dataset[[#This Row],[2024/25 From - Spending review Topic 1]]+Dataset[[#This Row],[2024/25 From - Spending review Topic 2]]+Dataset[[#This Row],[2024/25 From - Spending review Topic 3]]+Dataset[[#This Row],[2024/25 From - Spending review Topic 4]]+Dataset[[#This Row],[2024/25 From - Other reallocations]]","v":0},{"$f":"Dataset[[#This Row],[2025/26 From - Spending review Topic 1]]+Dataset[[#This Row],[2025/26 From - Spending review Topic 2]]+Dataset[[#This Row],[2025/26 From - Spending review Topic 3]]+Dataset[[#This Row],[2025/26 From - Spending review Topic 4]]+Dataset[[#This Row],[2025/26 From - Other reallocations]]","v":0},{"$f":"Dataset[[#This Row],[2023/24 To - Spending review Topic 1]]+Dataset[[#This Row],[2023/24 To - Spending review Topic 2]]+Dataset[[#This Row],[2023/24 To - Spending review Topic 3]]+Dataset[[#This Row],[2023/24 To - Spending review Topic 4]]+Dataset[[#This Row],[2023/24 To - Other reallocations]]","v":0},{"$f":"Dataset[[#This Row],[2024/25 To - Spending review Topic 1]]+Dataset[[#This Row],[2024/25 To - Spending review Topic 2]]+Dataset[[#This Row],[2024/25 To - Spending review Topic 3]]+Dataset[[#This Row],[2024/25 To - Spending review Topic 4]]+Dataset[[#This Row],[2024/25 To - Other reallocations]]","v":0},{"$f":"Dataset[[#This Row],[2025/26 To - Spending review Topic 1]]+Dataset[[#This Row],[2025/26 To - Spending review Topic 2]]+Dataset[[#This Row],[2025/26 To - Spending review Topic 3]]+Dataset[[#This Row],[2025/26 To - Spending review Topic 4]]+Dataset[[#This Row],[2025/26 To - Other reallocations]]","v":0},{"$f":"Dataset[[#This Row],[2023/24 Baseline]]+Dataset[[#This Row],[2023/24 From - Total]]+Dataset[[#This Row],[2023/24 To - Total]]","v":0},{"$f":"Dataset[[#This Row],[2024/25 Baseline]]+Dataset[[#This Row],[2024/25 From - Total]]+Dataset[[#This Row],[2024/25 To - Total]]","v":0},{"$f":"Dataset[[#This Row],[2025/26 Baseline]]+Dataset[[#This Row],[2025/26 From - Total]]+Dataset[[#This Row],[2025/26 To - Total]]","v":0}]
["NAT|Non-transfer item","2|Specialised military assets","2023_24","MTEF2023",2,3,2,1231,614,"02","03","02","001231","000614","02|03|02",2,3,14,59,63,"02|03|14|59|63","National","Parliament","Associated Services","Transfer to Political Party Allowances","Non-transfer item","Capital","Payments for capital assets","Specialised military assets","Specialised military assets","Specialised military assets","General public services","Executive and legislative organs","NAT",0,0,0,0,0,0,0,0,0,0,0,null,null,null,null,null,null,null,null,null,null,null,null,null,null,null,null,null,null,null,null,null,null,null,null,null,null,null,null,null,null,{"$f":"Dataset[[#This Row],[2023/24 From - Spending review Topic 1]]+Dataset[[#This Row],[2023/24 From - Spending review Topic 2]]+Dataset[[#This Row],[2023/24 From - Spending review Topic 3]]+Dataset[[#This Row],[2023/24 From - Spending review Topic 4]]+Dataset[[#This Row],[2023/24 From - Other reallocations]]","v":0},{"$f":"Dataset[[#This Row],[2024/25 From - Spending review Topic 1]]+Dataset[[#This Row],[2024/25 From - Spending review Topic 2]]+Dataset[[#This Row],[2024/25 From - Spending review Topic 3]]+Dataset[[#This Row],[2024/25 From - Spending review Topic 4]]+Dataset[[#This Row],[2024/25 From - Other reallocations]]","v":0},{"$f":"Dataset[[#This Row],[2025/26 From - Spending review Topic 1]]+Dataset[[#This Row],[2025/26 From - Spending review Topic 2]]+Dataset[[#This Row],[2025/26 From - Spending review Topic 3]]+Dataset[[#This Row],[2025/26 From - Spending review Topic 4]]+Dataset[[#This Row],[2025/26 From - Other reallocations]]","v":0},{"$f":"Dataset[[#This Row],[2023/24 To - Spending review Topic 1]]+Dataset[[#This Row],[2023/24 To - Spending review Topic 2]]+Dataset[[#This Row],[2023/24 To - Spending review Topic 3]]+Dataset[[#This Row],[2023/24 To - Spending review Topic 4]]+Dataset[[#This Row],[2023/24 To - Other reallocations]]","v":0},{"$f":"Dataset[[#This Row],[2024/25 To - Spending review Topic 1]]+Dataset[[#This Row],[2024/25 To - Spending review Topic 2]]+Dataset[[#This Row],[2024/25 To - Spending review Topic 3]]+Dataset[[#This Row],[2024/25 To - Spending review Topic 4]]+Dataset[[#This Row],[2024/25 To - Other reallocations]]","v":0},{"$f":"Dataset[[#This Row],[2025/26 To - Spending review Topic 1]]+Dataset[[#This Row],[2025/26 To - Spending review Topic 2]]+Dataset[[#This Row],[2025/26 To - Spending review Topic 3]]+Dataset[[#This Row],[2025/26 To - Spending review Topic 4]]+Dataset[[#This Row],[2025/26 To - Other reallocations]]","v":0},{"$f":"Dataset[[#This Row],[2023/24 Baseline]]+Dataset[[#This Row],[2023/24 From - Total]]+Dataset[[#This Row],[2023/24 To - Total]]","v":0},{"$f":"Dataset[[#This Row],[2024/25 Baseline]]+Dataset[[#This Row],[2024/25 From - Total]]+Dataset[[#This Row],[2024/25 To - Total]]","v":0},{"$f":"Dataset[[#This Row],[2025/26 Baseline]]+Dataset[[#This Row],[2025/26 From - Total]]+Dataset[[#This Row],[2025/26 To - Total]]","v":0}]
["NAT|Non-transfer item","2|Biological assets","2023_24","MTEF2023",2,3,2,1232,615,"02","03","02","001232","000615","02|03|02",2,3,15,60,64,"02|03|15|60|64","National","Parliament","Associated Services","Transfer to Political Party Allowances","Non-transfer item","Capital","Payments for capital assets","Biological assets","Biological assets","Biological assets","General public services","Executive and legislative organs","NAT",0,0,0,0,0,0,0,0,0,0,0,null,null,null,null,null,null,null,null,null,null,null,null,null,null,null,null,null,null,null,null,null,null,null,null,null,null,null,null,null,null,{"$f":"Dataset[[#This Row],[2023/24 From - Spending review Topic 1]]+Dataset[[#This Row],[2023/24 From - Spending review Topic 2]]+Dataset[[#This Row],[2023/24 From - Spending review Topic 3]]+Dataset[[#This Row],[2023/24 From - Spending review Topic 4]]+Dataset[[#This Row],[2023/24 From - Other reallocations]]","v":0},{"$f":"Dataset[[#This Row],[2024/25 From - Spending review Topic 1]]+Dataset[[#This Row],[2024/25 From - Spending review Topic 2]]+Dataset[[#This Row],[2024/25 From - Spending review Topic 3]]+Dataset[[#This Row],[2024/25 From - Spending review Topic 4]]+Dataset[[#This Row],[2024/25 From - Other reallocations]]","v":0},{"$f":"Dataset[[#This Row],[2025/26 From - Spending review Topic 1]]+Dataset[[#This Row],[2025/26 From - Spending review Topic 2]]+Dataset[[#This Row],[2025/26 From - Spending review Topic 3]]+Dataset[[#This Row],[2025/26 From - Spending review Topic 4]]+Dataset[[#This Row],[2025/26 From - Other reallocations]]","v":0},{"$f":"Dataset[[#This Row],[2023/24 To - Spending review Topic 1]]+Dataset[[#This Row],[2023/24 To - Spending review Topic 2]]+Dataset[[#This Row],[2023/24 To - Spending review Topic 3]]+Dataset[[#This Row],[2023/24 To - Spending review Topic 4]]+Dataset[[#This Row],[2023/24 To - Other reallocations]]","v":0},{"$f":"Dataset[[#This Row],[2024/25 To - Spending review Topic 1]]+Dataset[[#This Row],[2024/25 To - Spending review Topic 2]]+Dataset[[#This Row],[2024/25 To - Spending review Topic 3]]+Dataset[[#This Row],[2024/25 To - Spending review Topic 4]]+Dataset[[#This Row],[2024/25 To - Other reallocations]]","v":0},{"$f":"Dataset[[#This Row],[2025/26 To - Spending review Topic 1]]+Dataset[[#This Row],[2025/26 To - Spending review Topic 2]]+Dataset[[#This Row],[2025/26 To - Spending review Topic 3]]+Dataset[[#This Row],[2025/26 To - Spending review Topic 4]]+Dataset[[#This Row],[2025/26 To - Other reallocations]]","v":0},{"$f":"Dataset[[#This Row],[2023/24 Baseline]]+Dataset[[#This Row],[2023/24 From - Total]]+Dataset[[#This Row],[2023/24 To - Total]]","v":0},{"$f":"Dataset[[#This Row],[2024/25 Baseline]]+Dataset[[#This Row],[2024/25 From - Total]]+Dataset[[#This Row],[2024/25 To - Total]]","v":0},{"$f":"Dataset[[#This Row],[2025/26 Baseline]]+Dataset[[#This Row],[2025/26 From - Total]]+Dataset[[#This Row],[2025/26 To - Total]]","v":0}]
["NAT|Non-transfer item","2|Land and sub-soil assets","2023_24","MTEF2023",2,3,2,1233,616,"02","03","02","001233","000616","02|03|02",2,3,16,61,65,"02|03|16|61|65","National","Parliament","Associated Services","Transfer to Political Party Allowances","Non-transfer item","Capital","Payments for capital assets","Land and sub-soil assets","Land and sub-soil assets","Land and sub-soil assets","General public services","Executive and legislative organs","NAT",0,0,0,0,0,0,0,0,0,0,0,null,null,null,null,null,null,null,null,null,null,null,null,null,null,null,null,null,null,null,null,null,null,null,null,null,null,null,null,null,null,{"$f":"Dataset[[#This Row],[2023/24 From - Spending review Topic 1]]+Dataset[[#This Row],[2023/24 From - Spending review Topic 2]]+Dataset[[#This Row],[2023/24 From - Spending review Topic 3]]+Dataset[[#This Row],[2023/24 From - Spending review Topic 4]]+Dataset[[#This Row],[2023/24 From - Other reallocations]]","v":0},{"$f":"Dataset[[#This Row],[2024/25 From - Spending review Topic 1]]+Dataset[[#This Row],[2024/25 From - Spending review Topic 2]]+Dataset[[#This Row],[2024/25 From - Spending review Topic 3]]+Dataset[[#This Row],[2024/25 From - Spending review Topic 4]]+Dataset[[#This Row],[2024/25 From - Other reallocations]]","v":0},{"$f":"Dataset[[#This Row],[2025/26 From - Spending review Topic 1]]+Dataset[[#This Row],[2025/26 From - Spending review Topic 2]]+Dataset[[#This Row],[2025/26 From - Spending review Topic 3]]+Dataset[[#This Row],[2025/26 From - Spending review Topic 4]]+Dataset[[#This Row],[2025/26 From - Other reallocations]]","v":0},{"$f":"Dataset[[#This Row],[2023/24 To - Spending review Topic 1]]+Dataset[[#This Row],[2023/24 To - Spending review Topic 2]]+Dataset[[#This Row],[2023/24 To - Spending review Topic 3]]+Dataset[[#This Row],[2023/24 To - Spending review Topic 4]]+Dataset[[#This Row],[2023/24 To - Other reallocations]]","v":0},{"$f":"Dataset[[#This Row],[2024/25 To - Spending review Topic 1]]+Dataset[[#This Row],[2024/25 To - Spending review Topic 2]]+Dataset[[#This Row],[2024/25 To - Spending review Topic 3]]+Dataset[[#This Row],[2024/25 To - Spending review Topic 4]]+Dataset[[#This Row],[2024/25 To - Other reallocations]]","v":0},{"$f":"Dataset[[#This Row],[2025/26 To - Spending review Topic 1]]+Dataset[[#This Row],[2025/26 To - Spending review Topic 2]]+Dataset[[#This Row],[2025/26 To - Spending review Topic 3]]+Dataset[[#This Row],[2025/26 To - Spending review Topic 4]]+Dataset[[#This Row],[2025/26 To - Other reallocations]]","v":0},{"$f":"Dataset[[#This Row],[2023/24 Baseline]]+Dataset[[#This Row],[2023/24 From - Total]]+Dataset[[#This Row],[2023/24 To - Total]]","v":0},{"$f":"Dataset[[#This Row],[2024/25 Baseline]]+Dataset[[#This Row],[2024/25 From - Total]]+Dataset[[#This Row],[2024/25 To - Total]]","v":0},{"$f":"Dataset[[#This Row],[2025/26 Baseline]]+Dataset[[#This Row],[2025/26 From - Total]]+Dataset[[#This Row],[2025/26 To - Total]]","v":0}]
["NAT|Non-transfer item","2|Software and other intangible assets","2023_24","MTEF2023",2,3,2,1234,617,"02","03","02","001234","000617","02|03|02",2,3,17,62,66,"02|03|17|62|66","National","Parliament","Associated Services","Transfer to Political Party Allowances","Non-transfer item","Capital","Payments for capital assets","Software and other intangible assets","Software and other intangible assets","Software and other intangible assets","General public services","Executive and legislative organs","NAT",0,0,0,0,0,0,0,0,0,0,0,null,null,null,null,null,null,null,null,null,null,null,null,null,null,null,null,null,null,null,null,null,null,null,null,null,null,null,null,null,null,{"$f":"Dataset[[#This Row],[2023/24 From - Spending review Topic 1]]+Dataset[[#This Row],[2023/24 From - Spending review Topic 2]]+Dataset[[#This Row],[2023/24 From - Spending review Topic 3]]+Dataset[[#This Row],[2023/24 From - Spending review Topic 4]]+Dataset[[#This Row],[2023/24 From - Other reallocations]]","v":0},{"$f":"Dataset[[#This Row],[2024/25 From - Spending review Topic 1]]+Dataset[[#This Row],[2024/25 From - Spending review Topic 2]]+Dataset[[#This Row],[2024/25 From - Spending review Topic 3]]+Dataset[[#This Row],[2024/25 From - Spending review Topic 4]]+Dataset[[#This Row],[2024/25 From - Other reallocations]]","v":0},{"$f":"Dataset[[#This Row],[2025/26 From - Spending review Topic 1]]+Dataset[[#This Row],[2025/26 From - Spending review Topic 2]]+Dataset[[#This Row],[2025/26 From - Spending review Topic 3]]+Dataset[[#This Row],[2025/26 From - Spending review Topic 4]]+Dataset[[#This Row],[2025/26 From - Other reallocations]]","v":0},{"$f":"Dataset[[#This Row],[2023/24 To - Spending review Topic 1]]+Dataset[[#This Row],[2023/24 To - Spending review Topic 2]]+Dataset[[#This Row],[2023/24 To - Spending review Topic 3]]+Dataset[[#This Row],[2023/24 To - Spending review Topic 4]]+Dataset[[#This Row],[2023/24 To - Other reallocations]]","v":0},{"$f":"Dataset[[#This Row],[2024/25 To - Spending review Topic 1]]+Dataset[[#This Row],[2024/25 To - Spending review Topic 2]]+Dataset[[#This Row],[2024/25 To - Spending review Topic 3]]+Dataset[[#This Row],[2024/25 To - Spending review Topic 4]]+Dataset[[#This Row],[2024/25 To - Other reallocations]]","v":0},{"$f":"Dataset[[#This Row],[2025/26 To - Spending review Topic 1]]+Dataset[[#This Row],[2025/26 To - Spending review Topic 2]]+Dataset[[#This Row],[2025/26 To - Spending review Topic 3]]+Dataset[[#This Row],[2025/26 To - Spending review Topic 4]]+Dataset[[#This Row],[2025/26 To - Other reallocations]]","v":0},{"$f":"Dataset[[#This Row],[2023/24 Baseline]]+Dataset[[#This Row],[2023/24 From - Total]]+Dataset[[#This Row],[2023/24 To - Total]]","v":0},{"$f":"Dataset[[#This Row],[2024/25 Baseline]]+Dataset[[#This Row],[2024/25 From - Total]]+Dataset[[#This Row],[2024/25 To - Total]]","v":0},{"$f":"Dataset[[#This Row],[2025/26 Baseline]]+Dataset[[#This Row],[2025/26 From - Total]]+Dataset[[#This Row],[2025/26 To - Total]]","v":0}]
["NAT|Non-transfer item","2|Payments for financial assets","2023_24","MTEF2023",2,3,2,1235,618,"02","03","02","001235","000618","02|03|02",3,4,18,63,67,"03|04|18|63|67","National","Parliament","Associated Services","Transfer to Political Party Allowances","Non-transfer item","Payments for financial assets","Payments for financial assets","Payments for financial assets","Payments for financial assets","Payments for financial assets","General public services","Executive and legislative organs","NAT",0,0,0,0,0,0,0,0,0,0,0,null,null,null,null,null,null,null,null,null,null,null,null,null,null,null,null,null,null,null,null,null,null,null,null,null,null,null,null,null,null,{"$f":"Dataset[[#This Row],[2023/24 From - Spending review Topic 1]]+Dataset[[#This Row],[2023/24 From - Spending review Topic 2]]+Dataset[[#This Row],[2023/24 From - Spending review Topic 3]]+Dataset[[#This Row],[2023/24 From - Spending review Topic 4]]+Dataset[[#This Row],[2023/24 From - Other reallocations]]","v":0},{"$f":"Dataset[[#This Row],[2024/25 From - Spending review Topic 1]]+Dataset[[#This Row],[2024/25 From - Spending review Topic 2]]+Dataset[[#This Row],[2024/25 From - Spending review Topic 3]]+Dataset[[#This Row],[2024/25 From - Spending review Topic 4]]+Dataset[[#This Row],[2024/25 From - Other reallocations]]","v":0},{"$f":"Dataset[[#This Row],[2025/26 From - Spending review Topic 1]]+Dataset[[#This Row],[2025/26 From - Spending review Topic 2]]+Dataset[[#This Row],[2025/26 From - Spending review Topic 3]]+Dataset[[#This Row],[2025/26 From - Spending review Topic 4]]+Dataset[[#This Row],[2025/26 From - Other reallocations]]","v":0},{"$f":"Dataset[[#This Row],[2023/24 To - Spending review Topic 1]]+Dataset[[#This Row],[2023/24 To - Spending review Topic 2]]+Dataset[[#This Row],[2023/24 To - Spending review Topic 3]]+Dataset[[#This Row],[2023/24 To - Spending review Topic 4]]+Dataset[[#This Row],[2023/24 To - Other reallocations]]","v":0},{"$f":"Dataset[[#This Row],[2024/25 To - Spending review Topic 1]]+Dataset[[#This Row],[2024/25 To - Spending review Topic 2]]+Dataset[[#This Row],[2024/25 To - Spending review Topic 3]]+Dataset[[#This Row],[2024/25 To - Spending review Topic 4]]+Dataset[[#This Row],[2024/25 To - Other reallocations]]","v":0},{"$f":"Dataset[[#This Row],[2025/26 To - Spending review Topic 1]]+Dataset[[#This Row],[2025/26 To - Spending review Topic 2]]+Dataset[[#This Row],[2025/26 To - Spending review Topic 3]]+Dataset[[#This Row],[2025/26 To - Spending review Topic 4]]+Dataset[[#This Row],[2025/26 To - Other reallocations]]","v":0},{"$f":"Dataset[[#This Row],[2023/24 Baseline]]+Dataset[[#This Row],[2023/24 From - Total]]+Dataset[[#This Row],[2023/24 To - Total]]","v":0},{"$f":"Dataset[[#This Row],[2024/25 Baseline]]+Dataset[[#This Row],[2024/25 From - Total]]+Dataset[[#This Row],[2024/25 To - Total]]","v":0},{"$f":"Dataset[[#This Row],[2025/26 Baseline]]+Dataset[[#This Row],[2025/26 From - Total]]+Dataset[[#This Row],[2025/26 To - Total]]","v":0}]
["NAT|Non-transfer item","2|Salaries and wages","2023_24","MTEF2023",2,3,3,1236,619,"02","03","03","001236","000619","02|03|03",1,1,1,1,1,"01|01|01|01|01","National","Parliament","Associated Services","Transfer: Parliamentary Budget Office","Non-transfer item","Current","Current payments","Compensation of employees","Salaries and wages","Salaries and wages","General public services","Executive and legislative organs","NAT",0,5195,16779,15608,15608,15608,0,15607,15606,16307,17038,null,null,null,null,null,null,null,null,null,null,null,null,null,null,null,null,null,null,null,null,null,null,null,null,null,null,null,null,null,null,{"$f":"Dataset[[#This Row],[2023/24 From - Spending review Topic 1]]+Dataset[[#This Row],[2023/24 From - Spending review Topic 2]]+Dataset[[#This Row],[2023/24 From - Spending review Topic 3]]+Dataset[[#This Row],[2023/24 From - Spending review Topic 4]]+Dataset[[#This Row],[2023/24 From - Other reallocations]]","v":0},{"$f":"Dataset[[#This Row],[2024/25 From - Spending review Topic 1]]+Dataset[[#This Row],[2024/25 From - Spending review Topic 2]]+Dataset[[#This Row],[2024/25 From - Spending review Topic 3]]+Dataset[[#This Row],[2024/25 From - Spending review Topic 4]]+Dataset[[#This Row],[2024/25 From - Other reallocations]]","v":0},{"$f":"Dataset[[#This Row],[2025/26 From - Spending review Topic 1]]+Dataset[[#This Row],[2025/26 From - Spending review Topic 2]]+Dataset[[#This Row],[2025/26 From - Spending review Topic 3]]+Dataset[[#This Row],[2025/26 From - Spending review Topic 4]]+Dataset[[#This Row],[2025/26 From - Other reallocations]]","v":0},{"$f":"Dataset[[#This Row],[2023/24 To - Spending review Topic 1]]+Dataset[[#This Row],[2023/24 To - Spending review Topic 2]]+Dataset[[#This Row],[2023/24 To - Spending review Topic 3]]+Dataset[[#This Row],[2023/24 To - Spending review Topic 4]]+Dataset[[#This Row],[2023/24 To - Other reallocations]]","v":0},{"$f":"Dataset[[#This Row],[2024/25 To - Spending review Topic 1]]+Dataset[[#This Row],[2024/25 To - Spending review Topic 2]]+Dataset[[#This Row],[2024/25 To - Spending review Topic 3]]+Dataset[[#This Row],[2024/25 To - Spending review Topic 4]]+Dataset[[#This Row],[2024/25 To - Other reallocations]]","v":0},{"$f":"Dataset[[#This Row],[2025/26 To - Spending review Topic 1]]+Dataset[[#This Row],[2025/26 To - Spending review Topic 2]]+Dataset[[#This Row],[2025/26 To - Spending review Topic 3]]+Dataset[[#This Row],[2025/26 To - Spending review Topic 4]]+Dataset[[#This Row],[2025/26 To - Other reallocations]]","v":0},{"$f":"Dataset[[#This Row],[2023/24 Baseline]]+Dataset[[#This Row],[2023/24 From - Total]]+Dataset[[#This Row],[2023/24 To - Total]]","v":15606},{"$f":"Dataset[[#This Row],[2024/25 Baseline]]+Dataset[[#This Row],[2024/25 From - Total]]+Dataset[[#This Row],[2024/25 To - Total]]","v":16307},{"$f":"Dataset[[#This Row],[2025/26 Baseline]]+Dataset[[#This Row],[2025/26 From - Total]]+Dataset[[#This Row],[2025/26 To - Total]]","v":17038}]
["NAT|Non-transfer item","2|Social contributions","2023_24","MTEF2023",2,3,3,1237,620,"02","03","03","001237","000620","02|03|03",1,1,1,2,2,"01|01|01|02|02","National","Parliament","Associated Services","Transfer: Parliamentary Budget Office","Non-transfer item","Current","Current payments","Compensation of employees","Social contributions","Social contributions","General public services","Executive and legislative organs","NAT",0,0,0,0,0,0,0,0,0,0,0,null,null,null,null,null,null,null,null,null,null,null,null,null,null,null,null,null,null,null,null,null,null,null,null,null,null,null,null,null,null,{"$f":"Dataset[[#This Row],[2023/24 From - Spending review Topic 1]]+Dataset[[#This Row],[2023/24 From - Spending review Topic 2]]+Dataset[[#This Row],[2023/24 From - Spending review Topic 3]]+Dataset[[#This Row],[2023/24 From - Spending review Topic 4]]+Dataset[[#This Row],[2023/24 From - Other reallocations]]","v":0},{"$f":"Dataset[[#This Row],[2024/25 From - Spending review Topic 1]]+Dataset[[#This Row],[2024/25 From - Spending review Topic 2]]+Dataset[[#This Row],[2024/25 From - Spending review Topic 3]]+Dataset[[#This Row],[2024/25 From - Spending review Topic 4]]+Dataset[[#This Row],[2024/25 From - Other reallocations]]","v":0},{"$f":"Dataset[[#This Row],[2025/26 From - Spending review Topic 1]]+Dataset[[#This Row],[2025/26 From - Spending review Topic 2]]+Dataset[[#This Row],[2025/26 From - Spending review Topic 3]]+Dataset[[#This Row],[2025/26 From - Spending review Topic 4]]+Dataset[[#This Row],[2025/26 From - Other reallocations]]","v":0},{"$f":"Dataset[[#This Row],[2023/24 To - Spending review Topic 1]]+Dataset[[#This Row],[2023/24 To - Spending review Topic 2]]+Dataset[[#This Row],[2023/24 To - Spending review Topic 3]]+Dataset[[#This Row],[2023/24 To - Spending review Topic 4]]+Dataset[[#This Row],[2023/24 To - Other reallocations]]","v":0},{"$f":"Dataset[[#This Row],[2024/25 To - Spending review Topic 1]]+Dataset[[#This Row],[2024/25 To - Spending review Topic 2]]+Dataset[[#This Row],[2024/25 To - Spending review Topic 3]]+Dataset[[#This Row],[2024/25 To - Spending review Topic 4]]+Dataset[[#This Row],[2024/25 To - Other reallocations]]","v":0},{"$f":"Dataset[[#This Row],[2025/26 To - Spending review Topic 1]]+Dataset[[#This Row],[2025/26 To - Spending review Topic 2]]+Dataset[[#This Row],[2025/26 To - Spending review Topic 3]]+Dataset[[#This Row],[2025/26 To - Spending review Topic 4]]+Dataset[[#This Row],[2025/26 To - Other reallocations]]","v":0},{"$f":"Dataset[[#This Row],[2023/24 Baseline]]+Dataset[[#This Row],[2023/24 From - Total]]+Dataset[[#This Row],[2023/24 To - Total]]","v":0},{"$f":"Dataset[[#This Row],[2024/25 Baseline]]+Dataset[[#This Row],[2024/25 From - Total]]+Dataset[[#This Row],[2024/25 To - Total]]","v":0},{"$f":"Dataset[[#This Row],[2025/26 Baseline]]+Dataset[[#This Row],[2025/26 From - Total]]+Dataset[[#This Row],[2025/26 To - Total]]","v":0}]
["NAT|Non-transfer item","2|Administrative fees","2023_24","MTEF2023",2,3,3,1238,621,"02","03","03","001238","000621","02|03|03",1,1,2,3,3,"01|01|02|03|03","National","Parliament","Associated Services","Transfer: Parliamentary Budget Office","Non-transfer item","Current","Current payments","Goods and services","Administrative fees","Administrative fees","General public services","Executive and legislative organs","NAT",0,0,0,0,0,0,0,0,0,0,0,null,null,null,null,null,null,null,null,null,null,null,null,null,null,null,null,null,null,null,null,null,null,null,null,null,null,null,null,null,null,{"$f":"Dataset[[#This Row],[2023/24 From - Spending review Topic 1]]+Dataset[[#This Row],[2023/24 From - Spending review Topic 2]]+Dataset[[#This Row],[2023/24 From - Spending review Topic 3]]+Dataset[[#This Row],[2023/24 From - Spending review Topic 4]]+Dataset[[#This Row],[2023/24 From - Other reallocations]]","v":0},{"$f":"Dataset[[#This Row],[2024/25 From - Spending review Topic 1]]+Dataset[[#This Row],[2024/25 From - Spending review Topic 2]]+Dataset[[#This Row],[2024/25 From - Spending review Topic 3]]+Dataset[[#This Row],[2024/25 From - Spending review Topic 4]]+Dataset[[#This Row],[2024/25 From - Other reallocations]]","v":0},{"$f":"Dataset[[#This Row],[2025/26 From - Spending review Topic 1]]+Dataset[[#This Row],[2025/26 From - Spending review Topic 2]]+Dataset[[#This Row],[2025/26 From - Spending review Topic 3]]+Dataset[[#This Row],[2025/26 From - Spending review Topic 4]]+Dataset[[#This Row],[2025/26 From - Other reallocations]]","v":0},{"$f":"Dataset[[#This Row],[2023/24 To - Spending review Topic 1]]+Dataset[[#This Row],[2023/24 To - Spending review Topic 2]]+Dataset[[#This Row],[2023/24 To - Spending review Topic 3]]+Dataset[[#This Row],[2023/24 To - Spending review Topic 4]]+Dataset[[#This Row],[2023/24 To - Other reallocations]]","v":0},{"$f":"Dataset[[#This Row],[2024/25 To - Spending review Topic 1]]+Dataset[[#This Row],[2024/25 To - Spending review Topic 2]]+Dataset[[#This Row],[2024/25 To - Spending review Topic 3]]+Dataset[[#This Row],[2024/25 To - Spending review Topic 4]]+Dataset[[#This Row],[2024/25 To - Other reallocations]]","v":0},{"$f":"Dataset[[#This Row],[2025/26 To - Spending review Topic 1]]+Dataset[[#This Row],[2025/26 To - Spending review Topic 2]]+Dataset[[#This Row],[2025/26 To - Spending review Topic 3]]+Dataset[[#This Row],[2025/26 To - Spending review Topic 4]]+Dataset[[#This Row],[2025/26 To - Other reallocations]]","v":0},{"$f":"Dataset[[#This Row],[2023/24 Baseline]]+Dataset[[#This Row],[2023/24 From - Total]]+Dataset[[#This Row],[2023/24 To - Total]]","v":0},{"$f":"Dataset[[#This Row],[2024/25 Baseline]]+Dataset[[#This Row],[2024/25 From - Total]]+Dataset[[#This Row],[2024/25 To - Total]]","v":0},{"$f":"Dataset[[#This Row],[2025/26 Baseline]]+Dataset[[#This Row],[2025/26 From - Total]]+Dataset[[#This Row],[2025/26 To - Total]]","v":0}]
["NAT|Non-transfer item","2|Advertising","2023_24","MTEF2023",2,3,3,1239,622,"02","03","03","001239","000622","02|03|03",1,1,2,4,4,"01|01|02|04|04","National","Parliament","Associated Services","Transfer: Parliamentary Budget Office","Non-transfer item","Current","Current payments","Goods and services","Advertising","Advertising","General public services","Executive and legislative organs","NAT",0,0,0,0,0,0,0,0,0,0,0,null,null,null,null,null,null,null,null,null,null,null,null,null,null,null,null,null,null,null,null,null,null,null,null,null,null,null,null,null,null,{"$f":"Dataset[[#This Row],[2023/24 From - Spending review Topic 1]]+Dataset[[#This Row],[2023/24 From - Spending review Topic 2]]+Dataset[[#This Row],[2023/24 From - Spending review Topic 3]]+Dataset[[#This Row],[2023/24 From - Spending review Topic 4]]+Dataset[[#This Row],[2023/24 From - Other reallocations]]","v":0},{"$f":"Dataset[[#This Row],[2024/25 From - Spending review Topic 1]]+Dataset[[#This Row],[2024/25 From - Spending review Topic 2]]+Dataset[[#This Row],[2024/25 From - Spending review Topic 3]]+Dataset[[#This Row],[2024/25 From - Spending review Topic 4]]+Dataset[[#This Row],[2024/25 From - Other reallocations]]","v":0},{"$f":"Dataset[[#This Row],[2025/26 From - Spending review Topic 1]]+Dataset[[#This Row],[2025/26 From - Spending review Topic 2]]+Dataset[[#This Row],[2025/26 From - Spending review Topic 3]]+Dataset[[#This Row],[2025/26 From - Spending review Topic 4]]+Dataset[[#This Row],[2025/26 From - Other reallocations]]","v":0},{"$f":"Dataset[[#This Row],[2023/24 To - Spending review Topic 1]]+Dataset[[#This Row],[2023/24 To - Spending review Topic 2]]+Dataset[[#This Row],[2023/24 To - Spending review Topic 3]]+Dataset[[#This Row],[2023/24 To - Spending review Topic 4]]+Dataset[[#This Row],[2023/24 To - Other reallocations]]","v":0},{"$f":"Dataset[[#This Row],[2024/25 To - Spending review Topic 1]]+Dataset[[#This Row],[2024/25 To - Spending review Topic 2]]+Dataset[[#This Row],[2024/25 To - Spending review Topic 3]]+Dataset[[#This Row],[2024/25 To - Spending review Topic 4]]+Dataset[[#This Row],[2024/25 To - Other reallocations]]","v":0},{"$f":"Dataset[[#This Row],[2025/26 To - Spending review Topic 1]]+Dataset[[#This Row],[2025/26 To - Spending review Topic 2]]+Dataset[[#This Row],[2025/26 To - Spending review Topic 3]]+Dataset[[#This Row],[2025/26 To - Spending review Topic 4]]+Dataset[[#This Row],[2025/26 To - Other reallocations]]","v":0},{"$f":"Dataset[[#This Row],[2023/24 Baseline]]+Dataset[[#This Row],[2023/24 From - Total]]+Dataset[[#This Row],[2023/24 To - Total]]","v":0},{"$f":"Dataset[[#This Row],[2024/25 Baseline]]+Dataset[[#This Row],[2024/25 From - Total]]+Dataset[[#This Row],[2024/25 To - Total]]","v":0},{"$f":"Dataset[[#This Row],[2025/26 Baseline]]+Dataset[[#This Row],[2025/26 From - Total]]+Dataset[[#This Row],[2025/26 To - Total]]","v":0}]
["NAT|Non-transfer item","2|Minor assets","2023_24","MTEF2023",2,3,3,1240,623,"02","03","03","001240","000623","02|03|03",1,1,2,5,5,"01|01|02|05|05","National","Parliament","Associated Services","Transfer: Parliamentary Budget Office","Non-transfer item","Current","Current payments","Goods and services","Minor assets","Minor assets","General public services","Executive and legislative organs","NAT",0,0,0,0,0,0,0,0,0,0,0,null,null,null,null,null,null,null,null,null,null,null,null,null,null,null,null,null,null,null,null,null,null,null,null,null,null,null,null,null,null,{"$f":"Dataset[[#This Row],[2023/24 From - Spending review Topic 1]]+Dataset[[#This Row],[2023/24 From - Spending review Topic 2]]+Dataset[[#This Row],[2023/24 From - Spending review Topic 3]]+Dataset[[#This Row],[2023/24 From - Spending review Topic 4]]+Dataset[[#This Row],[2023/24 From - Other reallocations]]","v":0},{"$f":"Dataset[[#This Row],[2024/25 From - Spending review Topic 1]]+Dataset[[#This Row],[2024/25 From - Spending review Topic 2]]+Dataset[[#This Row],[2024/25 From - Spending review Topic 3]]+Dataset[[#This Row],[2024/25 From - Spending review Topic 4]]+Dataset[[#This Row],[2024/25 From - Other reallocations]]","v":0},{"$f":"Dataset[[#This Row],[2025/26 From - Spending review Topic 1]]+Dataset[[#This Row],[2025/26 From - Spending review Topic 2]]+Dataset[[#This Row],[2025/26 From - Spending review Topic 3]]+Dataset[[#This Row],[2025/26 From - Spending review Topic 4]]+Dataset[[#This Row],[2025/26 From - Other reallocations]]","v":0},{"$f":"Dataset[[#This Row],[2023/24 To - Spending review Topic 1]]+Dataset[[#This Row],[2023/24 To - Spending review Topic 2]]+Dataset[[#This Row],[2023/24 To - Spending review Topic 3]]+Dataset[[#This Row],[2023/24 To - Spending review Topic 4]]+Dataset[[#This Row],[2023/24 To - Other reallocations]]","v":0},{"$f":"Dataset[[#This Row],[2024/25 To - Spending review Topic 1]]+Dataset[[#This Row],[2024/25 To - Spending review Topic 2]]+Dataset[[#This Row],[2024/25 To - Spending review Topic 3]]+Dataset[[#This Row],[2024/25 To - Spending review Topic 4]]+Dataset[[#This Row],[2024/25 To - Other reallocations]]","v":0},{"$f":"Dataset[[#This Row],[2025/26 To - Spending review Topic 1]]+Dataset[[#This Row],[2025/26 To - Spending review Topic 2]]+Dataset[[#This Row],[2025/26 To - Spending review Topic 3]]+Dataset[[#This Row],[2025/26 To - Spending review Topic 4]]+Dataset[[#This Row],[2025/26 To - Other reallocations]]","v":0},{"$f":"Dataset[[#This Row],[2023/24 Baseline]]+Dataset[[#This Row],[2023/24 From - Total]]+Dataset[[#This Row],[2023/24 To - Total]]","v":0},{"$f":"Dataset[[#This Row],[2024/25 Baseline]]+Dataset[[#This Row],[2024/25 From - Total]]+Dataset[[#This Row],[2024/25 To - Total]]","v":0},{"$f":"Dataset[[#This Row],[2025/26 Baseline]]+Dataset[[#This Row],[2025/26 From - Total]]+Dataset[[#This Row],[2025/26 To - Total]]","v":0}]
["NAT|Non-transfer item","2|Audit costs: External","2023_24","MTEF2023",2,3,3,1241,624,"02","03","03","001241","000624","02|03|03",1,1,2,6,6,"01|01|02|06|06","National","Parliament","Associated Services","Transfer: Parliamentary Budget Office","Non-transfer item","Current","Current payments","Goods and services","Audit costs: External","Audit costs: External","General public services","Executive and legislative organs","NAT",0,0,0,0,0,0,0,0,0,0,0,null,null,null,null,null,null,null,null,null,null,null,null,null,null,null,null,null,null,null,null,null,null,null,null,null,null,null,null,null,null,{"$f":"Dataset[[#This Row],[2023/24 From - Spending review Topic 1]]+Dataset[[#This Row],[2023/24 From - Spending review Topic 2]]+Dataset[[#This Row],[2023/24 From - Spending review Topic 3]]+Dataset[[#This Row],[2023/24 From - Spending review Topic 4]]+Dataset[[#This Row],[2023/24 From - Other reallocations]]","v":0},{"$f":"Dataset[[#This Row],[2024/25 From - Spending review Topic 1]]+Dataset[[#This Row],[2024/25 From - Spending review Topic 2]]+Dataset[[#This Row],[2024/25 From - Spending review Topic 3]]+Dataset[[#This Row],[2024/25 From - Spending review Topic 4]]+Dataset[[#This Row],[2024/25 From - Other reallocations]]","v":0},{"$f":"Dataset[[#This Row],[2025/26 From - Spending review Topic 1]]+Dataset[[#This Row],[2025/26 From - Spending review Topic 2]]+Dataset[[#This Row],[2025/26 From - Spending review Topic 3]]+Dataset[[#This Row],[2025/26 From - Spending review Topic 4]]+Dataset[[#This Row],[2025/26 From - Other reallocations]]","v":0},{"$f":"Dataset[[#This Row],[2023/24 To - Spending review Topic 1]]+Dataset[[#This Row],[2023/24 To - Spending review Topic 2]]+Dataset[[#This Row],[2023/24 To - Spending review Topic 3]]+Dataset[[#This Row],[2023/24 To - Spending review Topic 4]]+Dataset[[#This Row],[2023/24 To - Other reallocations]]","v":0},{"$f":"Dataset[[#This Row],[2024/25 To - Spending review Topic 1]]+Dataset[[#This Row],[2024/25 To - Spending review Topic 2]]+Dataset[[#This Row],[2024/25 To - Spending review Topic 3]]+Dataset[[#This Row],[2024/25 To - Spending review Topic 4]]+Dataset[[#This Row],[2024/25 To - Other reallocations]]","v":0},{"$f":"Dataset[[#This Row],[2025/26 To - Spending review Topic 1]]+Dataset[[#This Row],[2025/26 To - Spending review Topic 2]]+Dataset[[#This Row],[2025/26 To - Spending review Topic 3]]+Dataset[[#This Row],[2025/26 To - Spending review Topic 4]]+Dataset[[#This Row],[2025/26 To - Other reallocations]]","v":0},{"$f":"Dataset[[#This Row],[2023/24 Baseline]]+Dataset[[#This Row],[2023/24 From - Total]]+Dataset[[#This Row],[2023/24 To - Total]]","v":0},{"$f":"Dataset[[#This Row],[2024/25 Baseline]]+Dataset[[#This Row],[2024/25 From - Total]]+Dataset[[#This Row],[2024/25 To - Total]]","v":0},{"$f":"Dataset[[#This Row],[2025/26 Baseline]]+Dataset[[#This Row],[2025/26 From - Total]]+Dataset[[#This Row],[2025/26 To - Total]]","v":0}]
["NAT|Non-transfer item","2|Bursaries: Employees","2023_24","MTEF2023",2,3,3,1242,625,"02","03","03","001242","000625","02|03|03",1,1,2,7,7,"01|01|02|07|07","National","Parliament","Associated Services","Transfer: Parliamentary Budget Office","Non-transfer item","Current","Current payments","Goods and services","Bursaries: Employees","Bursaries: Employees","General public services","Executive and legislative organs","NAT",0,0,0,0,0,0,0,0,0,0,0,null,null,null,null,null,null,null,null,null,null,null,null,null,null,null,null,null,null,null,null,null,null,null,null,null,null,null,null,null,null,{"$f":"Dataset[[#This Row],[2023/24 From - Spending review Topic 1]]+Dataset[[#This Row],[2023/24 From - Spending review Topic 2]]+Dataset[[#This Row],[2023/24 From - Spending review Topic 3]]+Dataset[[#This Row],[2023/24 From - Spending review Topic 4]]+Dataset[[#This Row],[2023/24 From - Other reallocations]]","v":0},{"$f":"Dataset[[#This Row],[2024/25 From - Spending review Topic 1]]+Dataset[[#This Row],[2024/25 From - Spending review Topic 2]]+Dataset[[#This Row],[2024/25 From - Spending review Topic 3]]+Dataset[[#This Row],[2024/25 From - Spending review Topic 4]]+Dataset[[#This Row],[2024/25 From - Other reallocations]]","v":0},{"$f":"Dataset[[#This Row],[2025/26 From - Spending review Topic 1]]+Dataset[[#This Row],[2025/26 From - Spending review Topic 2]]+Dataset[[#This Row],[2025/26 From - Spending review Topic 3]]+Dataset[[#This Row],[2025/26 From - Spending review Topic 4]]+Dataset[[#This Row],[2025/26 From - Other reallocations]]","v":0},{"$f":"Dataset[[#This Row],[2023/24 To - Spending review Topic 1]]+Dataset[[#This Row],[2023/24 To - Spending review Topic 2]]+Dataset[[#This Row],[2023/24 To - Spending review Topic 3]]+Dataset[[#This Row],[2023/24 To - Spending review Topic 4]]+Dataset[[#This Row],[2023/24 To - Other reallocations]]","v":0},{"$f":"Dataset[[#This Row],[2024/25 To - Spending review Topic 1]]+Dataset[[#This Row],[2024/25 To - Spending review Topic 2]]+Dataset[[#This Row],[2024/25 To - Spending review Topic 3]]+Dataset[[#This Row],[2024/25 To - Spending review Topic 4]]+Dataset[[#This Row],[2024/25 To - Other reallocations]]","v":0},{"$f":"Dataset[[#This Row],[2025/26 To - Spending review Topic 1]]+Dataset[[#This Row],[2025/26 To - Spending review Topic 2]]+Dataset[[#This Row],[2025/26 To - Spending review Topic 3]]+Dataset[[#This Row],[2025/26 To - Spending review Topic 4]]+Dataset[[#This Row],[2025/26 To - Other reallocations]]","v":0},{"$f":"Dataset[[#This Row],[2023/24 Baseline]]+Dataset[[#This Row],[2023/24 From - Total]]+Dataset[[#This Row],[2023/24 To - Total]]","v":0},{"$f":"Dataset[[#This Row],[2024/25 Baseline]]+Dataset[[#This Row],[2024/25 From - Total]]+Dataset[[#This Row],[2024/25 To - Total]]","v":0},{"$f":"Dataset[[#This Row],[2025/26 Baseline]]+Dataset[[#This Row],[2025/26 From - Total]]+Dataset[[#This Row],[2025/26 To - Total]]","v":0}]
["NAT|Non-transfer item","2|Catering: Departmental activities","2023_24","MTEF2023",2,3,3,1243,626,"02","03","03","001243","000626","02|03|03",1,1,2,8,8,"01|01|02|08|08","National","Parliament","Associated Services","Transfer: Parliamentary Budget Office","Non-transfer item","Current","Current payments","Goods and services","Catering: Departmental activities","Catering: Departmental activities","General public services","Executive and legislative organs","NAT",0,139,147,163,163,163,0,168,169,177,185,null,null,null,null,null,null,null,null,null,null,null,null,null,null,null,null,null,null,null,null,null,null,null,null,null,null,null,null,null,null,{"$f":"Dataset[[#This Row],[2023/24 From - Spending review Topic 1]]+Dataset[[#This Row],[2023/24 From - Spending review Topic 2]]+Dataset[[#This Row],[2023/24 From - Spending review Topic 3]]+Dataset[[#This Row],[2023/24 From - Spending review Topic 4]]+Dataset[[#This Row],[2023/24 From - Other reallocations]]","v":0},{"$f":"Dataset[[#This Row],[2024/25 From - Spending review Topic 1]]+Dataset[[#This Row],[2024/25 From - Spending review Topic 2]]+Dataset[[#This Row],[2024/25 From - Spending review Topic 3]]+Dataset[[#This Row],[2024/25 From - Spending review Topic 4]]+Dataset[[#This Row],[2024/25 From - Other reallocations]]","v":0},{"$f":"Dataset[[#This Row],[2025/26 From - Spending review Topic 1]]+Dataset[[#This Row],[2025/26 From - Spending review Topic 2]]+Dataset[[#This Row],[2025/26 From - Spending review Topic 3]]+Dataset[[#This Row],[2025/26 From - Spending review Topic 4]]+Dataset[[#This Row],[2025/26 From - Other reallocations]]","v":0},{"$f":"Dataset[[#This Row],[2023/24 To - Spending review Topic 1]]+Dataset[[#This Row],[2023/24 To - Spending review Topic 2]]+Dataset[[#This Row],[2023/24 To - Spending review Topic 3]]+Dataset[[#This Row],[2023/24 To - Spending review Topic 4]]+Dataset[[#This Row],[2023/24 To - Other reallocations]]","v":0},{"$f":"Dataset[[#This Row],[2024/25 To - Spending review Topic 1]]+Dataset[[#This Row],[2024/25 To - Spending review Topic 2]]+Dataset[[#This Row],[2024/25 To - Spending review Topic 3]]+Dataset[[#This Row],[2024/25 To - Spending review Topic 4]]+Dataset[[#This Row],[2024/25 To - Other reallocations]]","v":0},{"$f":"Dataset[[#This Row],[2025/26 To - Spending review Topic 1]]+Dataset[[#This Row],[2025/26 To - Spending review Topic 2]]+Dataset[[#This Row],[2025/26 To - Spending review Topic 3]]+Dataset[[#This Row],[2025/26 To - Spending review Topic 4]]+Dataset[[#This Row],[2025/26 To - Other reallocations]]","v":0},{"$f":"Dataset[[#This Row],[2023/24 Baseline]]+Dataset[[#This Row],[2023/24 From - Total]]+Dataset[[#This Row],[2023/24 To - Total]]","v":169},{"$f":"Dataset[[#This Row],[2024/25 Baseline]]+Dataset[[#This Row],[2024/25 From - Total]]+Dataset[[#This Row],[2024/25 To - Total]]","v":177},{"$f":"Dataset[[#This Row],[2025/26 Baseline]]+Dataset[[#This Row],[2025/26 From - Total]]+Dataset[[#This Row],[2025/26 To - Total]]","v":185}]
["NAT|Non-transfer item","2|Communication (G&S)","2023_24","MTEF2023",2,3,3,1244,627,"02","03","03","001244","000627","02|03|03",1,1,2,9,9,"01|01|02|09|09","National","Parliament","Associated Services","Transfer: Parliamentary Budget Office","Non-transfer item","Current","Current payments","Goods and services","Communication (G&S)","Communication (G&S)","General public services","Executive and legislative organs","NAT",0,137,145,161,161,161,0,166,166,173,181,null,null,null,null,null,null,null,null,null,null,null,null,null,null,null,null,null,null,null,null,null,null,null,null,null,null,null,null,null,null,{"$f":"Dataset[[#This Row],[2023/24 From - Spending review Topic 1]]+Dataset[[#This Row],[2023/24 From - Spending review Topic 2]]+Dataset[[#This Row],[2023/24 From - Spending review Topic 3]]+Dataset[[#This Row],[2023/24 From - Spending review Topic 4]]+Dataset[[#This Row],[2023/24 From - Other reallocations]]","v":0},{"$f":"Dataset[[#This Row],[2024/25 From - Spending review Topic 1]]+Dataset[[#This Row],[2024/25 From - Spending review Topic 2]]+Dataset[[#This Row],[2024/25 From - Spending review Topic 3]]+Dataset[[#This Row],[2024/25 From - Spending review Topic 4]]+Dataset[[#This Row],[2024/25 From - Other reallocations]]","v":0},{"$f":"Dataset[[#This Row],[2025/26 From - Spending review Topic 1]]+Dataset[[#This Row],[2025/26 From - Spending review Topic 2]]+Dataset[[#This Row],[2025/26 From - Spending review Topic 3]]+Dataset[[#This Row],[2025/26 From - Spending review Topic 4]]+Dataset[[#This Row],[2025/26 From - Other reallocations]]","v":0},{"$f":"Dataset[[#This Row],[2023/24 To - Spending review Topic 1]]+Dataset[[#This Row],[2023/24 To - Spending review Topic 2]]+Dataset[[#This Row],[2023/24 To - Spending review Topic 3]]+Dataset[[#This Row],[2023/24 To - Spending review Topic 4]]+Dataset[[#This Row],[2023/24 To - Other reallocations]]","v":0},{"$f":"Dataset[[#This Row],[2024/25 To - Spending review Topic 1]]+Dataset[[#This Row],[2024/25 To - Spending review Topic 2]]+Dataset[[#This Row],[2024/25 To - Spending review Topic 3]]+Dataset[[#This Row],[2024/25 To - Spending review Topic 4]]+Dataset[[#This Row],[2024/25 To - Other reallocations]]","v":0},{"$f":"Dataset[[#This Row],[2025/26 To - Spending review Topic 1]]+Dataset[[#This Row],[2025/26 To - Spending review Topic 2]]+Dataset[[#This Row],[2025/26 To - Spending review Topic 3]]+Dataset[[#This Row],[2025/26 To - Spending review Topic 4]]+Dataset[[#This Row],[2025/26 To - Other reallocations]]","v":0},{"$f":"Dataset[[#This Row],[2023/24 Baseline]]+Dataset[[#This Row],[2023/24 From - Total]]+Dataset[[#This Row],[2023/24 To - Total]]","v":166},{"$f":"Dataset[[#This Row],[2024/25 Baseline]]+Dataset[[#This Row],[2024/25 From - Total]]+Dataset[[#This Row],[2024/25 To - Total]]","v":173},{"$f":"Dataset[[#This Row],[2025/26 Baseline]]+Dataset[[#This Row],[2025/26 From - Total]]+Dataset[[#This Row],[2025/26 To - Total]]","v":181}]
["NAT|Non-transfer item","2|Computer services","2023_24","MTEF2023",2,3,3,1245,628,"02","03","03","001245","000628","02|03|03",1,1,2,10,10,"01|01|02|10|10","National","Parliament","Associated Services","Transfer: Parliamentary Budget Office","Non-transfer item","Current","Current payments","Goods and services","Computer services","Computer services","General public services","Executive and legislative organs","NAT",0,105,111,123,123,123,0,127,127,133,139,null,null,null,null,null,null,null,null,null,null,null,null,null,null,null,null,null,null,null,null,null,null,null,null,null,null,null,null,null,null,{"$f":"Dataset[[#This Row],[2023/24 From - Spending review Topic 1]]+Dataset[[#This Row],[2023/24 From - Spending review Topic 2]]+Dataset[[#This Row],[2023/24 From - Spending review Topic 3]]+Dataset[[#This Row],[2023/24 From - Spending review Topic 4]]+Dataset[[#This Row],[2023/24 From - Other reallocations]]","v":0},{"$f":"Dataset[[#This Row],[2024/25 From - Spending review Topic 1]]+Dataset[[#This Row],[2024/25 From - Spending review Topic 2]]+Dataset[[#This Row],[2024/25 From - Spending review Topic 3]]+Dataset[[#This Row],[2024/25 From - Spending review Topic 4]]+Dataset[[#This Row],[2024/25 From - Other reallocations]]","v":0},{"$f":"Dataset[[#This Row],[2025/26 From - Spending review Topic 1]]+Dataset[[#This Row],[2025/26 From - Spending review Topic 2]]+Dataset[[#This Row],[2025/26 From - Spending review Topic 3]]+Dataset[[#This Row],[2025/26 From - Spending review Topic 4]]+Dataset[[#This Row],[2025/26 From - Other reallocations]]","v":0},{"$f":"Dataset[[#This Row],[2023/24 To - Spending review Topic 1]]+Dataset[[#This Row],[2023/24 To - Spending review Topic 2]]+Dataset[[#This Row],[2023/24 To - Spending review Topic 3]]+Dataset[[#This Row],[2023/24 To - Spending review Topic 4]]+Dataset[[#This Row],[2023/24 To - Other reallocations]]","v":0},{"$f":"Dataset[[#This Row],[2024/25 To - Spending review Topic 1]]+Dataset[[#This Row],[2024/25 To - Spending review Topic 2]]+Dataset[[#This Row],[2024/25 To - Spending review Topic 3]]+Dataset[[#This Row],[2024/25 To - Spending review Topic 4]]+Dataset[[#This Row],[2024/25 To - Other reallocations]]","v":0},{"$f":"Dataset[[#This Row],[2025/26 To - Spending review Topic 1]]+Dataset[[#This Row],[2025/26 To - Spending review Topic 2]]+Dataset[[#This Row],[2025/26 To - Spending review Topic 3]]+Dataset[[#This Row],[2025/26 To - Spending review Topic 4]]+Dataset[[#This Row],[2025/26 To - Other reallocations]]","v":0},{"$f":"Dataset[[#This Row],[2023/24 Baseline]]+Dataset[[#This Row],[2023/24 From - Total]]+Dataset[[#This Row],[2023/24 To - Total]]","v":127},{"$f":"Dataset[[#This Row],[2024/25 Baseline]]+Dataset[[#This Row],[2024/25 From - Total]]+Dataset[[#This Row],[2024/25 To - Total]]","v":133},{"$f":"Dataset[[#This Row],[2025/26 Baseline]]+Dataset[[#This Row],[2025/26 From - Total]]+Dataset[[#This Row],[2025/26 To - Total]]","v":139}]
["NAT|Non-transfer item","2|Consultants: Business and advisory services","2023_24","MTEF2023",2,3,3,1246,629,"02","03","03","001246","000629","02|03|03",1,1,2,11,11,"01|01|02|11|11","National","Parliament","Associated Services","Transfer: Parliamentary Budget Office","Non-transfer item","Current","Current payments","Goods and services","Consultants: Business and advisory services","Consultants: Business and advisory services","General public services","Executive and legislative organs","NAT",0,80,85,94,94,94,0,97,98,102,107,null,null,null,null,null,null,null,null,null,null,null,null,null,null,null,null,null,null,null,null,null,null,null,null,null,null,null,null,null,null,{"$f":"Dataset[[#This Row],[2023/24 From - Spending review Topic 1]]+Dataset[[#This Row],[2023/24 From - Spending review Topic 2]]+Dataset[[#This Row],[2023/24 From - Spending review Topic 3]]+Dataset[[#This Row],[2023/24 From - Spending review Topic 4]]+Dataset[[#This Row],[2023/24 From - Other reallocations]]","v":0},{"$f":"Dataset[[#This Row],[2024/25 From - Spending review Topic 1]]+Dataset[[#This Row],[2024/25 From - Spending review Topic 2]]+Dataset[[#This Row],[2024/25 From - Spending review Topic 3]]+Dataset[[#This Row],[2024/25 From - Spending review Topic 4]]+Dataset[[#This Row],[2024/25 From - Other reallocations]]","v":0},{"$f":"Dataset[[#This Row],[2025/26 From - Spending review Topic 1]]+Dataset[[#This Row],[2025/26 From - Spending review Topic 2]]+Dataset[[#This Row],[2025/26 From - Spending review Topic 3]]+Dataset[[#This Row],[2025/26 From - Spending review Topic 4]]+Dataset[[#This Row],[2025/26 From - Other reallocations]]","v":0},{"$f":"Dataset[[#This Row],[2023/24 To - Spending review Topic 1]]+Dataset[[#This Row],[2023/24 To - Spending review Topic 2]]+Dataset[[#This Row],[2023/24 To - Spending review Topic 3]]+Dataset[[#This Row],[2023/24 To - Spending review Topic 4]]+Dataset[[#This Row],[2023/24 To - Other reallocations]]","v":0},{"$f":"Dataset[[#This Row],[2024/25 To - Spending review Topic 1]]+Dataset[[#This Row],[2024/25 To - Spending review Topic 2]]+Dataset[[#This Row],[2024/25 To - Spending review Topic 3]]+Dataset[[#This Row],[2024/25 To - Spending review Topic 4]]+Dataset[[#This Row],[2024/25 To - Other reallocations]]","v":0},{"$f":"Dataset[[#This Row],[2025/26 To - Spending review Topic 1]]+Dataset[[#This Row],[2025/26 To - Spending review Topic 2]]+Dataset[[#This Row],[2025/26 To - Spending review Topic 3]]+Dataset[[#This Row],[2025/26 To - Spending review Topic 4]]+Dataset[[#This Row],[2025/26 To - Other reallocations]]","v":0},{"$f":"Dataset[[#This Row],[2023/24 Baseline]]+Dataset[[#This Row],[2023/24 From - Total]]+Dataset[[#This Row],[2023/24 To - Total]]","v":98},{"$f":"Dataset[[#This Row],[2024/25 Baseline]]+Dataset[[#This Row],[2024/25 From - Total]]+Dataset[[#This Row],[2024/25 To - Total]]","v":102},{"$f":"Dataset[[#This Row],[2025/26 Baseline]]+Dataset[[#This Row],[2025/26 From - Total]]+Dataset[[#This Row],[2025/26 To - Total]]","v":107}]
["NAT|Non-transfer item","2|Infrastructure and planning services","2023_24","MTEF2023",2,3,3,1247,630,"02","03","03","001247","000630","02|03|03",1,1,2,12,12,"01|01|02|12|12","National","Parliament","Associated Services","Transfer: Parliamentary Budget Office","Non-transfer item","Current","Current payments","Goods and services","Infrastructure and planning services","Infrastructure and planning services","General public services","Executive and legislative organs","NAT",0,0,0,0,0,0,0,0,0,0,0,null,null,null,null,null,null,null,null,null,null,null,null,null,null,null,null,null,null,null,null,null,null,null,null,null,null,null,null,null,null,{"$f":"Dataset[[#This Row],[2023/24 From - Spending review Topic 1]]+Dataset[[#This Row],[2023/24 From - Spending review Topic 2]]+Dataset[[#This Row],[2023/24 From - Spending review Topic 3]]+Dataset[[#This Row],[2023/24 From - Spending review Topic 4]]+Dataset[[#This Row],[2023/24 From - Other reallocations]]","v":0},{"$f":"Dataset[[#This Row],[2024/25 From - Spending review Topic 1]]+Dataset[[#This Row],[2024/25 From - Spending review Topic 2]]+Dataset[[#This Row],[2024/25 From - Spending review Topic 3]]+Dataset[[#This Row],[2024/25 From - Spending review Topic 4]]+Dataset[[#This Row],[2024/25 From - Other reallocations]]","v":0},{"$f":"Dataset[[#This Row],[2025/26 From - Spending review Topic 1]]+Dataset[[#This Row],[2025/26 From - Spending review Topic 2]]+Dataset[[#This Row],[2025/26 From - Spending review Topic 3]]+Dataset[[#This Row],[2025/26 From - Spending review Topic 4]]+Dataset[[#This Row],[2025/26 From - Other reallocations]]","v":0},{"$f":"Dataset[[#This Row],[2023/24 To - Spending review Topic 1]]+Dataset[[#This Row],[2023/24 To - Spending review Topic 2]]+Dataset[[#This Row],[2023/24 To - Spending review Topic 3]]+Dataset[[#This Row],[2023/24 To - Spending review Topic 4]]+Dataset[[#This Row],[2023/24 To - Other reallocations]]","v":0},{"$f":"Dataset[[#This Row],[2024/25 To - Spending review Topic 1]]+Dataset[[#This Row],[2024/25 To - Spending review Topic 2]]+Dataset[[#This Row],[2024/25 To - Spending review Topic 3]]+Dataset[[#This Row],[2024/25 To - Spending review Topic 4]]+Dataset[[#This Row],[2024/25 To - Other reallocations]]","v":0},{"$f":"Dataset[[#This Row],[2025/26 To - Spending review Topic 1]]+Dataset[[#This Row],[2025/26 To - Spending review Topic 2]]+Dataset[[#This Row],[2025/26 To - Spending review Topic 3]]+Dataset[[#This Row],[2025/26 To - Spending review Topic 4]]+Dataset[[#This Row],[2025/26 To - Other reallocations]]","v":0},{"$f":"Dataset[[#This Row],[2023/24 Baseline]]+Dataset[[#This Row],[2023/24 From - Total]]+Dataset[[#This Row],[2023/24 To - Total]]","v":0},{"$f":"Dataset[[#This Row],[2024/25 Baseline]]+Dataset[[#This Row],[2024/25 From - Total]]+Dataset[[#This Row],[2024/25 To - Total]]","v":0},{"$f":"Dataset[[#This Row],[2025/26 Baseline]]+Dataset[[#This Row],[2025/26 From - Total]]+Dataset[[#This Row],[2025/26 To - Total]]","v":0}]
["NAT|Non-transfer item","2|Laboratory services","2023_24","MTEF2023",2,3,3,1248,631,"02","03","03","001248","000631","02|03|03",1,1,2,13,13,"01|01|02|13|13","National","Parliament","Associated Services","Transfer: Parliamentary Budget Office","Non-transfer item","Current","Current payments","Goods and services","Laboratory services","Laboratory services","General public services","Executive and legislative organs","NAT",0,0,0,0,0,0,0,0,0,0,0,null,null,null,null,null,null,null,null,null,null,null,null,null,null,null,null,null,null,null,null,null,null,null,null,null,null,null,null,null,null,{"$f":"Dataset[[#This Row],[2023/24 From - Spending review Topic 1]]+Dataset[[#This Row],[2023/24 From - Spending review Topic 2]]+Dataset[[#This Row],[2023/24 From - Spending review Topic 3]]+Dataset[[#This Row],[2023/24 From - Spending review Topic 4]]+Dataset[[#This Row],[2023/24 From - Other reallocations]]","v":0},{"$f":"Dataset[[#This Row],[2024/25 From - Spending review Topic 1]]+Dataset[[#This Row],[2024/25 From - Spending review Topic 2]]+Dataset[[#This Row],[2024/25 From - Spending review Topic 3]]+Dataset[[#This Row],[2024/25 From - Spending review Topic 4]]+Dataset[[#This Row],[2024/25 From - Other reallocations]]","v":0},{"$f":"Dataset[[#This Row],[2025/26 From - Spending review Topic 1]]+Dataset[[#This Row],[2025/26 From - Spending review Topic 2]]+Dataset[[#This Row],[2025/26 From - Spending review Topic 3]]+Dataset[[#This Row],[2025/26 From - Spending review Topic 4]]+Dataset[[#This Row],[2025/26 From - Other reallocations]]","v":0},{"$f":"Dataset[[#This Row],[2023/24 To - Spending review Topic 1]]+Dataset[[#This Row],[2023/24 To - Spending review Topic 2]]+Dataset[[#This Row],[2023/24 To - Spending review Topic 3]]+Dataset[[#This Row],[2023/24 To - Spending review Topic 4]]+Dataset[[#This Row],[2023/24 To - Other reallocations]]","v":0},{"$f":"Dataset[[#This Row],[2024/25 To - Spending review Topic 1]]+Dataset[[#This Row],[2024/25 To - Spending review Topic 2]]+Dataset[[#This Row],[2024/25 To - Spending review Topic 3]]+Dataset[[#This Row],[2024/25 To - Spending review Topic 4]]+Dataset[[#This Row],[2024/25 To - Other reallocations]]","v":0},{"$f":"Dataset[[#This Row],[2025/26 To - Spending review Topic 1]]+Dataset[[#This Row],[2025/26 To - Spending review Topic 2]]+Dataset[[#This Row],[2025/26 To - Spending review Topic 3]]+Dataset[[#This Row],[2025/26 To - Spending review Topic 4]]+Dataset[[#This Row],[2025/26 To - Other reallocations]]","v":0},{"$f":"Dataset[[#This Row],[2023/24 Baseline]]+Dataset[[#This Row],[2023/24 From - Total]]+Dataset[[#This Row],[2023/24 To - Total]]","v":0},{"$f":"Dataset[[#This Row],[2024/25 Baseline]]+Dataset[[#This Row],[2024/25 From - Total]]+Dataset[[#This Row],[2024/25 To - Total]]","v":0},{"$f":"Dataset[[#This Row],[2025/26 Baseline]]+Dataset[[#This Row],[2025/26 From - Total]]+Dataset[[#This Row],[2025/26 To - Total]]","v":0}]
["NAT|Non-transfer item","2|Legal services (G&S)","2023_24","MTEF2023",2,3,3,1249,632,"02","03","03","001249","000632","02|03|03",1,1,2,14,14,"01|01|02|14|14","National","Parliament","Associated Services","Transfer: Parliamentary Budget Office","Non-transfer item","Current","Current payments","Goods and services","Legal services (G&S)","Legal services (G&S)","General public services","Executive and legislative organs","NAT",0,0,0,0,0,0,0,0,0,0,0,null,null,null,null,null,null,null,null,null,null,null,null,null,null,null,null,null,null,null,null,null,null,null,null,null,null,null,null,null,null,{"$f":"Dataset[[#This Row],[2023/24 From - Spending review Topic 1]]+Dataset[[#This Row],[2023/24 From - Spending review Topic 2]]+Dataset[[#This Row],[2023/24 From - Spending review Topic 3]]+Dataset[[#This Row],[2023/24 From - Spending review Topic 4]]+Dataset[[#This Row],[2023/24 From - Other reallocations]]","v":0},{"$f":"Dataset[[#This Row],[2024/25 From - Spending review Topic 1]]+Dataset[[#This Row],[2024/25 From - Spending review Topic 2]]+Dataset[[#This Row],[2024/25 From - Spending review Topic 3]]+Dataset[[#This Row],[2024/25 From - Spending review Topic 4]]+Dataset[[#This Row],[2024/25 From - Other reallocations]]","v":0},{"$f":"Dataset[[#This Row],[2025/26 From - Spending review Topic 1]]+Dataset[[#This Row],[2025/26 From - Spending review Topic 2]]+Dataset[[#This Row],[2025/26 From - Spending review Topic 3]]+Dataset[[#This Row],[2025/26 From - Spending review Topic 4]]+Dataset[[#This Row],[2025/26 From - Other reallocations]]","v":0},{"$f":"Dataset[[#This Row],[2023/24 To - Spending review Topic 1]]+Dataset[[#This Row],[2023/24 To - Spending review Topic 2]]+Dataset[[#This Row],[2023/24 To - Spending review Topic 3]]+Dataset[[#This Row],[2023/24 To - Spending review Topic 4]]+Dataset[[#This Row],[2023/24 To - Other reallocations]]","v":0},{"$f":"Dataset[[#This Row],[2024/25 To - Spending review Topic 1]]+Dataset[[#This Row],[2024/25 To - Spending review Topic 2]]+Dataset[[#This Row],[2024/25 To - Spending review Topic 3]]+Dataset[[#This Row],[2024/25 To - Spending review Topic 4]]+Dataset[[#This Row],[2024/25 To - Other reallocations]]","v":0},{"$f":"Dataset[[#This Row],[2025/26 To - Spending review Topic 1]]+Dataset[[#This Row],[2025/26 To - Spending review Topic 2]]+Dataset[[#This Row],[2025/26 To - Spending review Topic 3]]+Dataset[[#This Row],[2025/26 To - Spending review Topic 4]]+Dataset[[#This Row],[2025/26 To - Other reallocations]]","v":0},{"$f":"Dataset[[#This Row],[2023/24 Baseline]]+Dataset[[#This Row],[2023/24 From - Total]]+Dataset[[#This Row],[2023/24 To - Total]]","v":0},{"$f":"Dataset[[#This Row],[2024/25 Baseline]]+Dataset[[#This Row],[2024/25 From - Total]]+Dataset[[#This Row],[2024/25 To - Total]]","v":0},{"$f":"Dataset[[#This Row],[2025/26 Baseline]]+Dataset[[#This Row],[2025/26 From - Total]]+Dataset[[#This Row],[2025/26 To - Total]]","v":0}]
["NAT|Non-transfer item","2|Science and technological services","2023_24","MTEF2023",2,3,3,1250,633,"02","03","03","001250","000633","02|03|03",1,1,2,15,15,"01|01|02|15|15","National","Parliament","Associated Services","Transfer: Parliamentary Budget Office","Non-transfer item","Current","Current payments","Goods and services","Science and technological services","Science and technological services","General public services","Executive and legislative organs","NAT",0,0,0,0,0,0,0,0,0,0,0,null,null,null,null,null,null,null,null,null,null,null,null,null,null,null,null,null,null,null,null,null,null,null,null,null,null,null,null,null,null,{"$f":"Dataset[[#This Row],[2023/24 From - Spending review Topic 1]]+Dataset[[#This Row],[2023/24 From - Spending review Topic 2]]+Dataset[[#This Row],[2023/24 From - Spending review Topic 3]]+Dataset[[#This Row],[2023/24 From - Spending review Topic 4]]+Dataset[[#This Row],[2023/24 From - Other reallocations]]","v":0},{"$f":"Dataset[[#This Row],[2024/25 From - Spending review Topic 1]]+Dataset[[#This Row],[2024/25 From - Spending review Topic 2]]+Dataset[[#This Row],[2024/25 From - Spending review Topic 3]]+Dataset[[#This Row],[2024/25 From - Spending review Topic 4]]+Dataset[[#This Row],[2024/25 From - Other reallocations]]","v":0},{"$f":"Dataset[[#This Row],[2025/26 From - Spending review Topic 1]]+Dataset[[#This Row],[2025/26 From - Spending review Topic 2]]+Dataset[[#This Row],[2025/26 From - Spending review Topic 3]]+Dataset[[#This Row],[2025/26 From - Spending review Topic 4]]+Dataset[[#This Row],[2025/26 From - Other reallocations]]","v":0},{"$f":"Dataset[[#This Row],[2023/24 To - Spending review Topic 1]]+Dataset[[#This Row],[2023/24 To - Spending review Topic 2]]+Dataset[[#This Row],[2023/24 To - Spending review Topic 3]]+Dataset[[#This Row],[2023/24 To - Spending review Topic 4]]+Dataset[[#This Row],[2023/24 To - Other reallocations]]","v":0},{"$f":"Dataset[[#This Row],[2024/25 To - Spending review Topic 1]]+Dataset[[#This Row],[2024/25 To - Spending review Topic 2]]+Dataset[[#This Row],[2024/25 To - Spending review Topic 3]]+Dataset[[#This Row],[2024/25 To - Spending review Topic 4]]+Dataset[[#This Row],[2024/25 To - Other reallocations]]","v":0},{"$f":"Dataset[[#This Row],[2025/26 To - Spending review Topic 1]]+Dataset[[#This Row],[2025/26 To - Spending review Topic 2]]+Dataset[[#This Row],[2025/26 To - Spending review Topic 3]]+Dataset[[#This Row],[2025/26 To - Spending review Topic 4]]+Dataset[[#This Row],[2025/26 To - Other reallocations]]","v":0},{"$f":"Dataset[[#This Row],[2023/24 Baseline]]+Dataset[[#This Row],[2023/24 From - Total]]+Dataset[[#This Row],[2023/24 To - Total]]","v":0},{"$f":"Dataset[[#This Row],[2024/25 Baseline]]+Dataset[[#This Row],[2024/25 From - Total]]+Dataset[[#This Row],[2024/25 To - Total]]","v":0},{"$f":"Dataset[[#This Row],[2025/26 Baseline]]+Dataset[[#This Row],[2025/26 From - Total]]+Dataset[[#This Row],[2025/26 To - Total]]","v":0}]
["NAT|Non-transfer item","2|Contractors","2023_24","MTEF2023",2,3,3,1251,634,"02","03","03","001251","000634","02|03|03",1,1,2,16,16,"01|01|02|16|16","National","Parliament","Associated Services","Transfer: Parliamentary Budget Office","Non-transfer item","Current","Current payments","Goods and services","Contractors","Contractors","General public services","Executive and legislative organs","NAT",0,0,0,0,0,0,0,0,0,0,0,null,null,null,null,null,null,null,null,null,null,null,null,null,null,null,null,null,null,null,null,null,null,null,null,null,null,null,null,null,null,{"$f":"Dataset[[#This Row],[2023/24 From - Spending review Topic 1]]+Dataset[[#This Row],[2023/24 From - Spending review Topic 2]]+Dataset[[#This Row],[2023/24 From - Spending review Topic 3]]+Dataset[[#This Row],[2023/24 From - Spending review Topic 4]]+Dataset[[#This Row],[2023/24 From - Other reallocations]]","v":0},{"$f":"Dataset[[#This Row],[2024/25 From - Spending review Topic 1]]+Dataset[[#This Row],[2024/25 From - Spending review Topic 2]]+Dataset[[#This Row],[2024/25 From - Spending review Topic 3]]+Dataset[[#This Row],[2024/25 From - Spending review Topic 4]]+Dataset[[#This Row],[2024/25 From - Other reallocations]]","v":0},{"$f":"Dataset[[#This Row],[2025/26 From - Spending review Topic 1]]+Dataset[[#This Row],[2025/26 From - Spending review Topic 2]]+Dataset[[#This Row],[2025/26 From - Spending review Topic 3]]+Dataset[[#This Row],[2025/26 From - Spending review Topic 4]]+Dataset[[#This Row],[2025/26 From - Other reallocations]]","v":0},{"$f":"Dataset[[#This Row],[2023/24 To - Spending review Topic 1]]+Dataset[[#This Row],[2023/24 To - Spending review Topic 2]]+Dataset[[#This Row],[2023/24 To - Spending review Topic 3]]+Dataset[[#This Row],[2023/24 To - Spending review Topic 4]]+Dataset[[#This Row],[2023/24 To - Other reallocations]]","v":0},{"$f":"Dataset[[#This Row],[2024/25 To - Spending review Topic 1]]+Dataset[[#This Row],[2024/25 To - Spending review Topic 2]]+Dataset[[#This Row],[2024/25 To - Spending review Topic 3]]+Dataset[[#This Row],[2024/25 To - Spending review Topic 4]]+Dataset[[#This Row],[2024/25 To - Other reallocations]]","v":0},{"$f":"Dataset[[#This Row],[2025/26 To - Spending review Topic 1]]+Dataset[[#This Row],[2025/26 To - Spending review Topic 2]]+Dataset[[#This Row],[2025/26 To - Spending review Topic 3]]+Dataset[[#This Row],[2025/26 To - Spending review Topic 4]]+Dataset[[#This Row],[2025/26 To - Other reallocations]]","v":0},{"$f":"Dataset[[#This Row],[2023/24 Baseline]]+Dataset[[#This Row],[2023/24 From - Total]]+Dataset[[#This Row],[2023/24 To - Total]]","v":0},{"$f":"Dataset[[#This Row],[2024/25 Baseline]]+Dataset[[#This Row],[2024/25 From - Total]]+Dataset[[#This Row],[2024/25 To - Total]]","v":0},{"$f":"Dataset[[#This Row],[2025/26 Baseline]]+Dataset[[#This Row],[2025/26 From - Total]]+Dataset[[#This Row],[2025/26 To - Total]]","v":0}]
["NAT|Non-transfer item","2|Agency and support/outsourced services","2023_24","MTEF2023",2,3,3,1252,635,"02","03","03","001252","000635","02|03|03",1,1,2,17,17,"01|01|02|17|17","National","Parliament","Associated Services","Transfer: Parliamentary Budget Office","Non-transfer item","Current","Current payments","Goods and services","Agency and support/outsourced services","Agency and support/outsourced services","General public services","Executive and legislative organs","NAT",0,0,0,0,0,0,0,0,0,0,0,null,null,null,null,null,null,null,null,null,null,null,null,null,null,null,null,null,null,null,null,null,null,null,null,null,null,null,null,null,null,{"$f":"Dataset[[#This Row],[2023/24 From - Spending review Topic 1]]+Dataset[[#This Row],[2023/24 From - Spending review Topic 2]]+Dataset[[#This Row],[2023/24 From - Spending review Topic 3]]+Dataset[[#This Row],[2023/24 From - Spending review Topic 4]]+Dataset[[#This Row],[2023/24 From - Other reallocations]]","v":0},{"$f":"Dataset[[#This Row],[2024/25 From - Spending review Topic 1]]+Dataset[[#This Row],[2024/25 From - Spending review Topic 2]]+Dataset[[#This Row],[2024/25 From - Spending review Topic 3]]+Dataset[[#This Row],[2024/25 From - Spending review Topic 4]]+Dataset[[#This Row],[2024/25 From - Other reallocations]]","v":0},{"$f":"Dataset[[#This Row],[2025/26 From - Spending review Topic 1]]+Dataset[[#This Row],[2025/26 From - Spending review Topic 2]]+Dataset[[#This Row],[2025/26 From - Spending review Topic 3]]+Dataset[[#This Row],[2025/26 From - Spending review Topic 4]]+Dataset[[#This Row],[2025/26 From - Other reallocations]]","v":0},{"$f":"Dataset[[#This Row],[2023/24 To - Spending review Topic 1]]+Dataset[[#This Row],[2023/24 To - Spending review Topic 2]]+Dataset[[#This Row],[2023/24 To - Spending review Topic 3]]+Dataset[[#This Row],[2023/24 To - Spending review Topic 4]]+Dataset[[#This Row],[2023/24 To - Other reallocations]]","v":0},{"$f":"Dataset[[#This Row],[2024/25 To - Spending review Topic 1]]+Dataset[[#This Row],[2024/25 To - Spending review Topic 2]]+Dataset[[#This Row],[2024/25 To - Spending review Topic 3]]+Dataset[[#This Row],[2024/25 To - Spending review Topic 4]]+Dataset[[#This Row],[2024/25 To - Other reallocations]]","v":0},{"$f":"Dataset[[#This Row],[2025/26 To - Spending review Topic 1]]+Dataset[[#This Row],[2025/26 To - Spending review Topic 2]]+Dataset[[#This Row],[2025/26 To - Spending review Topic 3]]+Dataset[[#This Row],[2025/26 To - Spending review Topic 4]]+Dataset[[#This Row],[2025/26 To - Other reallocations]]","v":0},{"$f":"Dataset[[#This Row],[2023/24 Baseline]]+Dataset[[#This Row],[2023/24 From - Total]]+Dataset[[#This Row],[2023/24 To - Total]]","v":0},{"$f":"Dataset[[#This Row],[2024/25 Baseline]]+Dataset[[#This Row],[2024/25 From - Total]]+Dataset[[#This Row],[2024/25 To - Total]]","v":0},{"$f":"Dataset[[#This Row],[2025/26 Baseline]]+Dataset[[#This Row],[2025/26 From - Total]]+Dataset[[#This Row],[2025/26 To - Total]]","v":0}]
["NAT|Non-transfer item","2|Entertainment","2023_24","MTEF2023",2,3,3,1253,636,"02","03","03","001253","000636","02|03|03",1,1,2,18,18,"01|01|02|18|18","National","Parliament","Associated Services","Transfer: Parliamentary Budget Office","Non-transfer item","Current","Current payments","Goods and services","Entertainment","Entertainment","General public services","Executive and legislative organs","NAT",0,0,0,0,0,0,0,0,0,0,0,null,null,null,null,null,null,null,null,null,null,null,null,null,null,null,null,null,null,null,null,null,null,null,null,null,null,null,null,null,null,{"$f":"Dataset[[#This Row],[2023/24 From - Spending review Topic 1]]+Dataset[[#This Row],[2023/24 From - Spending review Topic 2]]+Dataset[[#This Row],[2023/24 From - Spending review Topic 3]]+Dataset[[#This Row],[2023/24 From - Spending review Topic 4]]+Dataset[[#This Row],[2023/24 From - Other reallocations]]","v":0},{"$f":"Dataset[[#This Row],[2024/25 From - Spending review Topic 1]]+Dataset[[#This Row],[2024/25 From - Spending review Topic 2]]+Dataset[[#This Row],[2024/25 From - Spending review Topic 3]]+Dataset[[#This Row],[2024/25 From - Spending review Topic 4]]+Dataset[[#This Row],[2024/25 From - Other reallocations]]","v":0},{"$f":"Dataset[[#This Row],[2025/26 From - Spending review Topic 1]]+Dataset[[#This Row],[2025/26 From - Spending review Topic 2]]+Dataset[[#This Row],[2025/26 From - Spending review Topic 3]]+Dataset[[#This Row],[2025/26 From - Spending review Topic 4]]+Dataset[[#This Row],[2025/26 From - Other reallocations]]","v":0},{"$f":"Dataset[[#This Row],[2023/24 To - Spending review Topic 1]]+Dataset[[#This Row],[2023/24 To - Spending review Topic 2]]+Dataset[[#This Row],[2023/24 To - Spending review Topic 3]]+Dataset[[#This Row],[2023/24 To - Spending review Topic 4]]+Dataset[[#This Row],[2023/24 To - Other reallocations]]","v":0},{"$f":"Dataset[[#This Row],[2024/25 To - Spending review Topic 1]]+Dataset[[#This Row],[2024/25 To - Spending review Topic 2]]+Dataset[[#This Row],[2024/25 To - Spending review Topic 3]]+Dataset[[#This Row],[2024/25 To - Spending review Topic 4]]+Dataset[[#This Row],[2024/25 To - Other reallocations]]","v":0},{"$f":"Dataset[[#This Row],[2025/26 To - Spending review Topic 1]]+Dataset[[#This Row],[2025/26 To - Spending review Topic 2]]+Dataset[[#This Row],[2025/26 To - Spending review Topic 3]]+Dataset[[#This Row],[2025/26 To - Spending review Topic 4]]+Dataset[[#This Row],[2025/26 To - Other reallocations]]","v":0},{"$f":"Dataset[[#This Row],[2023/24 Baseline]]+Dataset[[#This Row],[2023/24 From - Total]]+Dataset[[#This Row],[2023/24 To - Total]]","v":0},{"$f":"Dataset[[#This Row],[2024/25 Baseline]]+Dataset[[#This Row],[2024/25 From - Total]]+Dataset[[#This Row],[2024/25 To - Total]]","v":0},{"$f":"Dataset[[#This Row],[2025/26 Baseline]]+Dataset[[#This Row],[2025/26 From - Total]]+Dataset[[#This Row],[2025/26 To - Total]]","v":0}]
["NAT|Non-transfer item","2|Fleet services (including government motor transport)","2023_24","MTEF2023",2,3,3,1254,637,"02","03","03","001254","000637","02|03|03",1,1,2,19,19,"01|01|02|19|19","National","Parliament","Associated Services","Transfer: Parliamentary Budget Office","Non-transfer item","Current","Current payments","Goods and services","Fleet services (including government motor transport)","Fleet services (including government motor transport)","General public services","Executive and legislative organs","NAT",0,0,0,0,0,0,0,0,0,0,0,null,null,null,null,null,null,null,null,null,null,null,null,null,null,null,null,null,null,null,null,null,null,null,null,null,null,null,null,null,null,{"$f":"Dataset[[#This Row],[2023/24 From - Spending review Topic 1]]+Dataset[[#This Row],[2023/24 From - Spending review Topic 2]]+Dataset[[#This Row],[2023/24 From - Spending review Topic 3]]+Dataset[[#This Row],[2023/24 From - Spending review Topic 4]]+Dataset[[#This Row],[2023/24 From - Other reallocations]]","v":0},{"$f":"Dataset[[#This Row],[2024/25 From - Spending review Topic 1]]+Dataset[[#This Row],[2024/25 From - Spending review Topic 2]]+Dataset[[#This Row],[2024/25 From - Spending review Topic 3]]+Dataset[[#This Row],[2024/25 From - Spending review Topic 4]]+Dataset[[#This Row],[2024/25 From - Other reallocations]]","v":0},{"$f":"Dataset[[#This Row],[2025/26 From - Spending review Topic 1]]+Dataset[[#This Row],[2025/26 From - Spending review Topic 2]]+Dataset[[#This Row],[2025/26 From - Spending review Topic 3]]+Dataset[[#This Row],[2025/26 From - Spending review Topic 4]]+Dataset[[#This Row],[2025/26 From - Other reallocations]]","v":0},{"$f":"Dataset[[#This Row],[2023/24 To - Spending review Topic 1]]+Dataset[[#This Row],[2023/24 To - Spending review Topic 2]]+Dataset[[#This Row],[2023/24 To - Spending review Topic 3]]+Dataset[[#This Row],[2023/24 To - Spending review Topic 4]]+Dataset[[#This Row],[2023/24 To - Other reallocations]]","v":0},{"$f":"Dataset[[#This Row],[2024/25 To - Spending review Topic 1]]+Dataset[[#This Row],[2024/25 To - Spending review Topic 2]]+Dataset[[#This Row],[2024/25 To - Spending review Topic 3]]+Dataset[[#This Row],[2024/25 To - Spending review Topic 4]]+Dataset[[#This Row],[2024/25 To - Other reallocations]]","v":0},{"$f":"Dataset[[#This Row],[2025/26 To - Spending review Topic 1]]+Dataset[[#This Row],[2025/26 To - Spending review Topic 2]]+Dataset[[#This Row],[2025/26 To - Spending review Topic 3]]+Dataset[[#This Row],[2025/26 To - Spending review Topic 4]]+Dataset[[#This Row],[2025/26 To - Other reallocations]]","v":0},{"$f":"Dataset[[#This Row],[2023/24 Baseline]]+Dataset[[#This Row],[2023/24 From - Total]]+Dataset[[#This Row],[2023/24 To - Total]]","v":0},{"$f":"Dataset[[#This Row],[2024/25 Baseline]]+Dataset[[#This Row],[2024/25 From - Total]]+Dataset[[#This Row],[2024/25 To - Total]]","v":0},{"$f":"Dataset[[#This Row],[2025/26 Baseline]]+Dataset[[#This Row],[2025/26 From - Total]]+Dataset[[#This Row],[2025/26 To - Total]]","v":0}]
["NAT|Non-transfer item","2|Housing","2023_24","MTEF2023",2,3,3,1255,638,"02","03","03","001255","000638","02|03|03",1,1,2,20,20,"01|01|02|20|20","National","Parliament","Associated Services","Transfer: Parliamentary Budget Office","Non-transfer item","Current","Current payments","Goods and services","Housing","Housing","General public services","Executive and legislative organs","NAT",0,0,0,0,0,0,0,0,0,0,0,null,null,null,null,null,null,null,null,null,null,null,null,null,null,null,null,null,null,null,null,null,null,null,null,null,null,null,null,null,null,{"$f":"Dataset[[#This Row],[2023/24 From - Spending review Topic 1]]+Dataset[[#This Row],[2023/24 From - Spending review Topic 2]]+Dataset[[#This Row],[2023/24 From - Spending review Topic 3]]+Dataset[[#This Row],[2023/24 From - Spending review Topic 4]]+Dataset[[#This Row],[2023/24 From - Other reallocations]]","v":0},{"$f":"Dataset[[#This Row],[2024/25 From - Spending review Topic 1]]+Dataset[[#This Row],[2024/25 From - Spending review Topic 2]]+Dataset[[#This Row],[2024/25 From - Spending review Topic 3]]+Dataset[[#This Row],[2024/25 From - Spending review Topic 4]]+Dataset[[#This Row],[2024/25 From - Other reallocations]]","v":0},{"$f":"Dataset[[#This Row],[2025/26 From - Spending review Topic 1]]+Dataset[[#This Row],[2025/26 From - Spending review Topic 2]]+Dataset[[#This Row],[2025/26 From - Spending review Topic 3]]+Dataset[[#This Row],[2025/26 From - Spending review Topic 4]]+Dataset[[#This Row],[2025/26 From - Other reallocations]]","v":0},{"$f":"Dataset[[#This Row],[2023/24 To - Spending review Topic 1]]+Dataset[[#This Row],[2023/24 To - Spending review Topic 2]]+Dataset[[#This Row],[2023/24 To - Spending review Topic 3]]+Dataset[[#This Row],[2023/24 To - Spending review Topic 4]]+Dataset[[#This Row],[2023/24 To - Other reallocations]]","v":0},{"$f":"Dataset[[#This Row],[2024/25 To - Spending review Topic 1]]+Dataset[[#This Row],[2024/25 To - Spending review Topic 2]]+Dataset[[#This Row],[2024/25 To - Spending review Topic 3]]+Dataset[[#This Row],[2024/25 To - Spending review Topic 4]]+Dataset[[#This Row],[2024/25 To - Other reallocations]]","v":0},{"$f":"Dataset[[#This Row],[2025/26 To - Spending review Topic 1]]+Dataset[[#This Row],[2025/26 To - Spending review Topic 2]]+Dataset[[#This Row],[2025/26 To - Spending review Topic 3]]+Dataset[[#This Row],[2025/26 To - Spending review Topic 4]]+Dataset[[#This Row],[2025/26 To - Other reallocations]]","v":0},{"$f":"Dataset[[#This Row],[2023/24 Baseline]]+Dataset[[#This Row],[2023/24 From - Total]]+Dataset[[#This Row],[2023/24 To - Total]]","v":0},{"$f":"Dataset[[#This Row],[2024/25 Baseline]]+Dataset[[#This Row],[2024/25 From - Total]]+Dataset[[#This Row],[2024/25 To - Total]]","v":0},{"$f":"Dataset[[#This Row],[2025/26 Baseline]]+Dataset[[#This Row],[2025/26 From - Total]]+Dataset[[#This Row],[2025/26 To - Total]]","v":0}]
["NAT|Non-transfer item","2|Inventory: Clothing material and accessories","2023_24","MTEF2023",2,3,3,1256,639,"02","03","03","001256","000639","02|03|03",1,1,2,21,21,"01|01|02|21|21","National","Parliament","Associated Services","Transfer: Parliamentary Budget Office","Non-transfer item","Current","Current payments","Goods and services","Inventory: Clothing material and accessories","Inventory: Clothing material and accessories","General public services","Executive and legislative organs","NAT",0,0,0,0,0,0,0,0,0,0,0,null,null,null,null,null,null,null,null,null,null,null,null,null,null,null,null,null,null,null,null,null,null,null,null,null,null,null,null,null,null,{"$f":"Dataset[[#This Row],[2023/24 From - Spending review Topic 1]]+Dataset[[#This Row],[2023/24 From - Spending review Topic 2]]+Dataset[[#This Row],[2023/24 From - Spending review Topic 3]]+Dataset[[#This Row],[2023/24 From - Spending review Topic 4]]+Dataset[[#This Row],[2023/24 From - Other reallocations]]","v":0},{"$f":"Dataset[[#This Row],[2024/25 From - Spending review Topic 1]]+Dataset[[#This Row],[2024/25 From - Spending review Topic 2]]+Dataset[[#This Row],[2024/25 From - Spending review Topic 3]]+Dataset[[#This Row],[2024/25 From - Spending review Topic 4]]+Dataset[[#This Row],[2024/25 From - Other reallocations]]","v":0},{"$f":"Dataset[[#This Row],[2025/26 From - Spending review Topic 1]]+Dataset[[#This Row],[2025/26 From - Spending review Topic 2]]+Dataset[[#This Row],[2025/26 From - Spending review Topic 3]]+Dataset[[#This Row],[2025/26 From - Spending review Topic 4]]+Dataset[[#This Row],[2025/26 From - Other reallocations]]","v":0},{"$f":"Dataset[[#This Row],[2023/24 To - Spending review Topic 1]]+Dataset[[#This Row],[2023/24 To - Spending review Topic 2]]+Dataset[[#This Row],[2023/24 To - Spending review Topic 3]]+Dataset[[#This Row],[2023/24 To - Spending review Topic 4]]+Dataset[[#This Row],[2023/24 To - Other reallocations]]","v":0},{"$f":"Dataset[[#This Row],[2024/25 To - Spending review Topic 1]]+Dataset[[#This Row],[2024/25 To - Spending review Topic 2]]+Dataset[[#This Row],[2024/25 To - Spending review Topic 3]]+Dataset[[#This Row],[2024/25 To - Spending review Topic 4]]+Dataset[[#This Row],[2024/25 To - Other reallocations]]","v":0},{"$f":"Dataset[[#This Row],[2025/26 To - Spending review Topic 1]]+Dataset[[#This Row],[2025/26 To - Spending review Topic 2]]+Dataset[[#This Row],[2025/26 To - Spending review Topic 3]]+Dataset[[#This Row],[2025/26 To - Spending review Topic 4]]+Dataset[[#This Row],[2025/26 To - Other reallocations]]","v":0},{"$f":"Dataset[[#This Row],[2023/24 Baseline]]+Dataset[[#This Row],[2023/24 From - Total]]+Dataset[[#This Row],[2023/24 To - Total]]","v":0},{"$f":"Dataset[[#This Row],[2024/25 Baseline]]+Dataset[[#This Row],[2024/25 From - Total]]+Dataset[[#This Row],[2024/25 To - Total]]","v":0},{"$f":"Dataset[[#This Row],[2025/26 Baseline]]+Dataset[[#This Row],[2025/26 From - Total]]+Dataset[[#This Row],[2025/26 To - Total]]","v":0}]
["NAT|Non-transfer item","2|Inventory: Farming supplies","2023_24","MTEF2023",2,3,3,1257,640,"02","03","03","001257","000640","02|03|03",1,1,2,22,22,"01|01|02|22|22","National","Parliament","Associated Services","Transfer: Parliamentary Budget Office","Non-transfer item","Current","Current payments","Goods and services","Inventory: Farming supplies","Inventory: Farming supplies","General public services","Executive and legislative organs","NAT",0,0,0,0,0,0,0,0,0,0,0,null,null,null,null,null,null,null,null,null,null,null,null,null,null,null,null,null,null,null,null,null,null,null,null,null,null,null,null,null,null,{"$f":"Dataset[[#This Row],[2023/24 From - Spending review Topic 1]]+Dataset[[#This Row],[2023/24 From - Spending review Topic 2]]+Dataset[[#This Row],[2023/24 From - Spending review Topic 3]]+Dataset[[#This Row],[2023/24 From - Spending review Topic 4]]+Dataset[[#This Row],[2023/24 From - Other reallocations]]","v":0},{"$f":"Dataset[[#This Row],[2024/25 From - Spending review Topic 1]]+Dataset[[#This Row],[2024/25 From - Spending review Topic 2]]+Dataset[[#This Row],[2024/25 From - Spending review Topic 3]]+Dataset[[#This Row],[2024/25 From - Spending review Topic 4]]+Dataset[[#This Row],[2024/25 From - Other reallocations]]","v":0},{"$f":"Dataset[[#This Row],[2025/26 From - Spending review Topic 1]]+Dataset[[#This Row],[2025/26 From - Spending review Topic 2]]+Dataset[[#This Row],[2025/26 From - Spending review Topic 3]]+Dataset[[#This Row],[2025/26 From - Spending review Topic 4]]+Dataset[[#This Row],[2025/26 From - Other reallocations]]","v":0},{"$f":"Dataset[[#This Row],[2023/24 To - Spending review Topic 1]]+Dataset[[#This Row],[2023/24 To - Spending review Topic 2]]+Dataset[[#This Row],[2023/24 To - Spending review Topic 3]]+Dataset[[#This Row],[2023/24 To - Spending review Topic 4]]+Dataset[[#This Row],[2023/24 To - Other reallocations]]","v":0},{"$f":"Dataset[[#This Row],[2024/25 To - Spending review Topic 1]]+Dataset[[#This Row],[2024/25 To - Spending review Topic 2]]+Dataset[[#This Row],[2024/25 To - Spending review Topic 3]]+Dataset[[#This Row],[2024/25 To - Spending review Topic 4]]+Dataset[[#This Row],[2024/25 To - Other reallocations]]","v":0},{"$f":"Dataset[[#This Row],[2025/26 To - Spending review Topic 1]]+Dataset[[#This Row],[2025/26 To - Spending review Topic 2]]+Dataset[[#This Row],[2025/26 To - Spending review Topic 3]]+Dataset[[#This Row],[2025/26 To - Spending review Topic 4]]+Dataset[[#This Row],[2025/26 To - Other reallocations]]","v":0},{"$f":"Dataset[[#This Row],[2023/24 Baseline]]+Dataset[[#This Row],[2023/24 From - Total]]+Dataset[[#This Row],[2023/24 To - Total]]","v":0},{"$f":"Dataset[[#This Row],[2024/25 Baseline]]+Dataset[[#This Row],[2024/25 From - Total]]+Dataset[[#This Row],[2024/25 To - Total]]","v":0},{"$f":"Dataset[[#This Row],[2025/26 Baseline]]+Dataset[[#This Row],[2025/26 From - Total]]+Dataset[[#This Row],[2025/26 To - Total]]","v":0}]
["NAT|Non-transfer item","2|Inventory: Food and food supplies","2023_24","MTEF2023",2,3,3,1258,641,"02","03","03","001258","000641","02|03|03",1,1,2,23,23,"01|01|02|23|23","National","Parliament","Associated Services","Transfer: Parliamentary Budget Office","Non-transfer item","Current","Current payments","Goods and services","Inventory: Food and food supplies","Inventory: Food and food supplies","General public services","Executive and legislative organs","NAT",0,0,0,0,0,0,0,0,0,0,0,null,null,null,null,null,null,null,null,null,null,null,null,null,null,null,null,null,null,null,null,null,null,null,null,null,null,null,null,null,null,{"$f":"Dataset[[#This Row],[2023/24 From - Spending review Topic 1]]+Dataset[[#This Row],[2023/24 From - Spending review Topic 2]]+Dataset[[#This Row],[2023/24 From - Spending review Topic 3]]+Dataset[[#This Row],[2023/24 From - Spending review Topic 4]]+Dataset[[#This Row],[2023/24 From - Other reallocations]]","v":0},{"$f":"Dataset[[#This Row],[2024/25 From - Spending review Topic 1]]+Dataset[[#This Row],[2024/25 From - Spending review Topic 2]]+Dataset[[#This Row],[2024/25 From - Spending review Topic 3]]+Dataset[[#This Row],[2024/25 From - Spending review Topic 4]]+Dataset[[#This Row],[2024/25 From - Other reallocations]]","v":0},{"$f":"Dataset[[#This Row],[2025/26 From - Spending review Topic 1]]+Dataset[[#This Row],[2025/26 From - Spending review Topic 2]]+Dataset[[#This Row],[2025/26 From - Spending review Topic 3]]+Dataset[[#This Row],[2025/26 From - Spending review Topic 4]]+Dataset[[#This Row],[2025/26 From - Other reallocations]]","v":0},{"$f":"Dataset[[#This Row],[2023/24 To - Spending review Topic 1]]+Dataset[[#This Row],[2023/24 To - Spending review Topic 2]]+Dataset[[#This Row],[2023/24 To - Spending review Topic 3]]+Dataset[[#This Row],[2023/24 To - Spending review Topic 4]]+Dataset[[#This Row],[2023/24 To - Other reallocations]]","v":0},{"$f":"Dataset[[#This Row],[2024/25 To - Spending review Topic 1]]+Dataset[[#This Row],[2024/25 To - Spending review Topic 2]]+Dataset[[#This Row],[2024/25 To - Spending review Topic 3]]+Dataset[[#This Row],[2024/25 To - Spending review Topic 4]]+Dataset[[#This Row],[2024/25 To - Other reallocations]]","v":0},{"$f":"Dataset[[#This Row],[2025/26 To - Spending review Topic 1]]+Dataset[[#This Row],[2025/26 To - Spending review Topic 2]]+Dataset[[#This Row],[2025/26 To - Spending review Topic 3]]+Dataset[[#This Row],[2025/26 To - Spending review Topic 4]]+Dataset[[#This Row],[2025/26 To - Other reallocations]]","v":0},{"$f":"Dataset[[#This Row],[2023/24 Baseline]]+Dataset[[#This Row],[2023/24 From - Total]]+Dataset[[#This Row],[2023/24 To - Total]]","v":0},{"$f":"Dataset[[#This Row],[2024/25 Baseline]]+Dataset[[#This Row],[2024/25 From - Total]]+Dataset[[#This Row],[2024/25 To - Total]]","v":0},{"$f":"Dataset[[#This Row],[2025/26 Baseline]]+Dataset[[#This Row],[2025/26 From - Total]]+Dataset[[#This Row],[2025/26 To - Total]]","v":0}]
["NAT|Non-transfer item","2|Inventory: Fuel, oil and gas","2023_24","MTEF2023",2,3,3,1259,642,"02","03","03","001259","000642","02|03|03",1,1,2,24,24,"01|01|02|24|24","National","Parliament","Associated Services","Transfer: Parliamentary Budget Office","Non-transfer item","Current","Current payments","Goods and services","Inventory: Fuel, oil and gas","Inventory: Fuel, oil and gas","General public services","Executive and legislative organs","NAT",0,0,0,0,0,0,0,0,0,0,0,null,null,null,null,null,null,null,null,null,null,null,null,null,null,null,null,null,null,null,null,null,null,null,null,null,null,null,null,null,null,{"$f":"Dataset[[#This Row],[2023/24 From - Spending review Topic 1]]+Dataset[[#This Row],[2023/24 From - Spending review Topic 2]]+Dataset[[#This Row],[2023/24 From - Spending review Topic 3]]+Dataset[[#This Row],[2023/24 From - Spending review Topic 4]]+Dataset[[#This Row],[2023/24 From - Other reallocations]]","v":0},{"$f":"Dataset[[#This Row],[2024/25 From - Spending review Topic 1]]+Dataset[[#This Row],[2024/25 From - Spending review Topic 2]]+Dataset[[#This Row],[2024/25 From - Spending review Topic 3]]+Dataset[[#This Row],[2024/25 From - Spending review Topic 4]]+Dataset[[#This Row],[2024/25 From - Other reallocations]]","v":0},{"$f":"Dataset[[#This Row],[2025/26 From - Spending review Topic 1]]+Dataset[[#This Row],[2025/26 From - Spending review Topic 2]]+Dataset[[#This Row],[2025/26 From - Spending review Topic 3]]+Dataset[[#This Row],[2025/26 From - Spending review Topic 4]]+Dataset[[#This Row],[2025/26 From - Other reallocations]]","v":0},{"$f":"Dataset[[#This Row],[2023/24 To - Spending review Topic 1]]+Dataset[[#This Row],[2023/24 To - Spending review Topic 2]]+Dataset[[#This Row],[2023/24 To - Spending review Topic 3]]+Dataset[[#This Row],[2023/24 To - Spending review Topic 4]]+Dataset[[#This Row],[2023/24 To - Other reallocations]]","v":0},{"$f":"Dataset[[#This Row],[2024/25 To - Spending review Topic 1]]+Dataset[[#This Row],[2024/25 To - Spending review Topic 2]]+Dataset[[#This Row],[2024/25 To - Spending review Topic 3]]+Dataset[[#This Row],[2024/25 To - Spending review Topic 4]]+Dataset[[#This Row],[2024/25 To - Other reallocations]]","v":0},{"$f":"Dataset[[#This Row],[2025/26 To - Spending review Topic 1]]+Dataset[[#This Row],[2025/26 To - Spending review Topic 2]]+Dataset[[#This Row],[2025/26 To - Spending review Topic 3]]+Dataset[[#This Row],[2025/26 To - Spending review Topic 4]]+Dataset[[#This Row],[2025/26 To - Other reallocations]]","v":0},{"$f":"Dataset[[#This Row],[2023/24 Baseline]]+Dataset[[#This Row],[2023/24 From - Total]]+Dataset[[#This Row],[2023/24 To - Total]]","v":0},{"$f":"Dataset[[#This Row],[2024/25 Baseline]]+Dataset[[#This Row],[2024/25 From - Total]]+Dataset[[#This Row],[2024/25 To - Total]]","v":0},{"$f":"Dataset[[#This Row],[2025/26 Baseline]]+Dataset[[#This Row],[2025/26 From - Total]]+Dataset[[#This Row],[2025/26 To - Total]]","v":0}]
["NAT|Non-transfer item","2|Inventory: Learner and teacher support material","2023_24","MTEF2023",2,3,3,1260,643,"02","03","03","001260","000643","02|03|03",1,1,2,25,25,"01|01|02|25|25","National","Parliament","Associated Services","Transfer: Parliamentary Budget Office","Non-transfer item","Current","Current payments","Goods and services","Inventory: Learner and teacher support material","Inventory: Learner and teacher support material","General public services","Executive and legislative organs","NAT",0,0,0,0,0,0,0,0,0,0,0,null,null,null,null,null,null,null,null,null,null,null,null,null,null,null,null,null,null,null,null,null,null,null,null,null,null,null,null,null,null,{"$f":"Dataset[[#This Row],[2023/24 From - Spending review Topic 1]]+Dataset[[#This Row],[2023/24 From - Spending review Topic 2]]+Dataset[[#This Row],[2023/24 From - Spending review Topic 3]]+Dataset[[#This Row],[2023/24 From - Spending review Topic 4]]+Dataset[[#This Row],[2023/24 From - Other reallocations]]","v":0},{"$f":"Dataset[[#This Row],[2024/25 From - Spending review Topic 1]]+Dataset[[#This Row],[2024/25 From - Spending review Topic 2]]+Dataset[[#This Row],[2024/25 From - Spending review Topic 3]]+Dataset[[#This Row],[2024/25 From - Spending review Topic 4]]+Dataset[[#This Row],[2024/25 From - Other reallocations]]","v":0},{"$f":"Dataset[[#This Row],[2025/26 From - Spending review Topic 1]]+Dataset[[#This Row],[2025/26 From - Spending review Topic 2]]+Dataset[[#This Row],[2025/26 From - Spending review Topic 3]]+Dataset[[#This Row],[2025/26 From - Spending review Topic 4]]+Dataset[[#This Row],[2025/26 From - Other reallocations]]","v":0},{"$f":"Dataset[[#This Row],[2023/24 To - Spending review Topic 1]]+Dataset[[#This Row],[2023/24 To - Spending review Topic 2]]+Dataset[[#This Row],[2023/24 To - Spending review Topic 3]]+Dataset[[#This Row],[2023/24 To - Spending review Topic 4]]+Dataset[[#This Row],[2023/24 To - Other reallocations]]","v":0},{"$f":"Dataset[[#This Row],[2024/25 To - Spending review Topic 1]]+Dataset[[#This Row],[2024/25 To - Spending review Topic 2]]+Dataset[[#This Row],[2024/25 To - Spending review Topic 3]]+Dataset[[#This Row],[2024/25 To - Spending review Topic 4]]+Dataset[[#This Row],[2024/25 To - Other reallocations]]","v":0},{"$f":"Dataset[[#This Row],[2025/26 To - Spending review Topic 1]]+Dataset[[#This Row],[2025/26 To - Spending review Topic 2]]+Dataset[[#This Row],[2025/26 To - Spending review Topic 3]]+Dataset[[#This Row],[2025/26 To - Spending review Topic 4]]+Dataset[[#This Row],[2025/26 To - Other reallocations]]","v":0},{"$f":"Dataset[[#This Row],[2023/24 Baseline]]+Dataset[[#This Row],[2023/24 From - Total]]+Dataset[[#This Row],[2023/24 To - Total]]","v":0},{"$f":"Dataset[[#This Row],[2024/25 Baseline]]+Dataset[[#This Row],[2024/25 From - Total]]+Dataset[[#This Row],[2024/25 To - Total]]","v":0},{"$f":"Dataset[[#This Row],[2025/26 Baseline]]+Dataset[[#This Row],[2025/26 From - Total]]+Dataset[[#This Row],[2025/26 To - Total]]","v":0}]
["NAT|Non-transfer item","2|Inventory: Materials and supplies","2023_24","MTEF2023",2,3,3,1261,644,"02","03","03","001261","000644","02|03|03",1,1,2,26,26,"01|01|02|26|26","National","Parliament","Associated Services","Transfer: Parliamentary Budget Office","Non-transfer item","Current","Current payments","Goods and services","Inventory: Materials and supplies","Inventory: Materials and supplies","General public services","Executive and legislative organs","NAT",0,0,0,0,0,0,0,0,0,0,0,null,null,null,null,null,null,null,null,null,null,null,null,null,null,null,null,null,null,null,null,null,null,null,null,null,null,null,null,null,null,{"$f":"Dataset[[#This Row],[2023/24 From - Spending review Topic 1]]+Dataset[[#This Row],[2023/24 From - Spending review Topic 2]]+Dataset[[#This Row],[2023/24 From - Spending review Topic 3]]+Dataset[[#This Row],[2023/24 From - Spending review Topic 4]]+Dataset[[#This Row],[2023/24 From - Other reallocations]]","v":0},{"$f":"Dataset[[#This Row],[2024/25 From - Spending review Topic 1]]+Dataset[[#This Row],[2024/25 From - Spending review Topic 2]]+Dataset[[#This Row],[2024/25 From - Spending review Topic 3]]+Dataset[[#This Row],[2024/25 From - Spending review Topic 4]]+Dataset[[#This Row],[2024/25 From - Other reallocations]]","v":0},{"$f":"Dataset[[#This Row],[2025/26 From - Spending review Topic 1]]+Dataset[[#This Row],[2025/26 From - Spending review Topic 2]]+Dataset[[#This Row],[2025/26 From - Spending review Topic 3]]+Dataset[[#This Row],[2025/26 From - Spending review Topic 4]]+Dataset[[#This Row],[2025/26 From - Other reallocations]]","v":0},{"$f":"Dataset[[#This Row],[2023/24 To - Spending review Topic 1]]+Dataset[[#This Row],[2023/24 To - Spending review Topic 2]]+Dataset[[#This Row],[2023/24 To - Spending review Topic 3]]+Dataset[[#This Row],[2023/24 To - Spending review Topic 4]]+Dataset[[#This Row],[2023/24 To - Other reallocations]]","v":0},{"$f":"Dataset[[#This Row],[2024/25 To - Spending review Topic 1]]+Dataset[[#This Row],[2024/25 To - Spending review Topic 2]]+Dataset[[#This Row],[2024/25 To - Spending review Topic 3]]+Dataset[[#This Row],[2024/25 To - Spending review Topic 4]]+Dataset[[#This Row],[2024/25 To - Other reallocations]]","v":0},{"$f":"Dataset[[#This Row],[2025/26 To - Spending review Topic 1]]+Dataset[[#This Row],[2025/26 To - Spending review Topic 2]]+Dataset[[#This Row],[2025/26 To - Spending review Topic 3]]+Dataset[[#This Row],[2025/26 To - Spending review Topic 4]]+Dataset[[#This Row],[2025/26 To - Other reallocations]]","v":0},{"$f":"Dataset[[#This Row],[2023/24 Baseline]]+Dataset[[#This Row],[2023/24 From - Total]]+Dataset[[#This Row],[2023/24 To - Total]]","v":0},{"$f":"Dataset[[#This Row],[2024/25 Baseline]]+Dataset[[#This Row],[2024/25 From - Total]]+Dataset[[#This Row],[2024/25 To - Total]]","v":0},{"$f":"Dataset[[#This Row],[2025/26 Baseline]]+Dataset[[#This Row],[2025/26 From - Total]]+Dataset[[#This Row],[2025/26 To - Total]]","v":0}]
["NAT|Non-transfer item","2|Inventory: Medical supplies","2023_24","MTEF2023",2,3,3,1262,645,"02","03","03","001262","000645","02|03|03",1,1,2,27,27,"01|01|02|27|27","National","Parliament","Associated Services","Transfer: Parliamentary Budget Office","Non-transfer item","Current","Current payments","Goods and services","Inventory: Medical supplies","Inventory: Medical supplies","General public services","Executive and legislative organs","NAT",0,0,0,0,0,0,0,0,0,0,0,null,null,null,null,null,null,null,null,null,null,null,null,null,null,null,null,null,null,null,null,null,null,null,null,null,null,null,null,null,null,{"$f":"Dataset[[#This Row],[2023/24 From - Spending review Topic 1]]+Dataset[[#This Row],[2023/24 From - Spending review Topic 2]]+Dataset[[#This Row],[2023/24 From - Spending review Topic 3]]+Dataset[[#This Row],[2023/24 From - Spending review Topic 4]]+Dataset[[#This Row],[2023/24 From - Other reallocations]]","v":0},{"$f":"Dataset[[#This Row],[2024/25 From - Spending review Topic 1]]+Dataset[[#This Row],[2024/25 From - Spending review Topic 2]]+Dataset[[#This Row],[2024/25 From - Spending review Topic 3]]+Dataset[[#This Row],[2024/25 From - Spending review Topic 4]]+Dataset[[#This Row],[2024/25 From - Other reallocations]]","v":0},{"$f":"Dataset[[#This Row],[2025/26 From - Spending review Topic 1]]+Dataset[[#This Row],[2025/26 From - Spending review Topic 2]]+Dataset[[#This Row],[2025/26 From - Spending review Topic 3]]+Dataset[[#This Row],[2025/26 From - Spending review Topic 4]]+Dataset[[#This Row],[2025/26 From - Other reallocations]]","v":0},{"$f":"Dataset[[#This Row],[2023/24 To - Spending review Topic 1]]+Dataset[[#This Row],[2023/24 To - Spending review Topic 2]]+Dataset[[#This Row],[2023/24 To - Spending review Topic 3]]+Dataset[[#This Row],[2023/24 To - Spending review Topic 4]]+Dataset[[#This Row],[2023/24 To - Other reallocations]]","v":0},{"$f":"Dataset[[#This Row],[2024/25 To - Spending review Topic 1]]+Dataset[[#This Row],[2024/25 To - Spending review Topic 2]]+Dataset[[#This Row],[2024/25 To - Spending review Topic 3]]+Dataset[[#This Row],[2024/25 To - Spending review Topic 4]]+Dataset[[#This Row],[2024/25 To - Other reallocations]]","v":0},{"$f":"Dataset[[#This Row],[2025/26 To - Spending review Topic 1]]+Dataset[[#This Row],[2025/26 To - Spending review Topic 2]]+Dataset[[#This Row],[2025/26 To - Spending review Topic 3]]+Dataset[[#This Row],[2025/26 To - Spending review Topic 4]]+Dataset[[#This Row],[2025/26 To - Other reallocations]]","v":0},{"$f":"Dataset[[#This Row],[2023/24 Baseline]]+Dataset[[#This Row],[2023/24 From - Total]]+Dataset[[#This Row],[2023/24 To - Total]]","v":0},{"$f":"Dataset[[#This Row],[2024/25 Baseline]]+Dataset[[#This Row],[2024/25 From - Total]]+Dataset[[#This Row],[2024/25 To - Total]]","v":0},{"$f":"Dataset[[#This Row],[2025/26 Baseline]]+Dataset[[#This Row],[2025/26 From - Total]]+Dataset[[#This Row],[2025/26 To - Total]]","v":0}]
["NAT|Non-transfer item","2|Inventory: Medicine","2023_24","MTEF2023",2,3,3,1263,646,"02","03","03","001263","000646","02|03|03",1,1,2,28,28,"01|01|02|28|28","National","Parliament","Associated Services","Transfer: Parliamentary Budget Office","Non-transfer item","Current","Current payments","Goods and services","Inventory: Medicine","Inventory: Medicine","General public services","Executive and legislative organs","NAT",0,0,0,0,0,0,0,0,0,0,0,null,null,null,null,null,null,null,null,null,null,null,null,null,null,null,null,null,null,null,null,null,null,null,null,null,null,null,null,null,null,{"$f":"Dataset[[#This Row],[2023/24 From - Spending review Topic 1]]+Dataset[[#This Row],[2023/24 From - Spending review Topic 2]]+Dataset[[#This Row],[2023/24 From - Spending review Topic 3]]+Dataset[[#This Row],[2023/24 From - Spending review Topic 4]]+Dataset[[#This Row],[2023/24 From - Other reallocations]]","v":0},{"$f":"Dataset[[#This Row],[2024/25 From - Spending review Topic 1]]+Dataset[[#This Row],[2024/25 From - Spending review Topic 2]]+Dataset[[#This Row],[2024/25 From - Spending review Topic 3]]+Dataset[[#This Row],[2024/25 From - Spending review Topic 4]]+Dataset[[#This Row],[2024/25 From - Other reallocations]]","v":0},{"$f":"Dataset[[#This Row],[2025/26 From - Spending review Topic 1]]+Dataset[[#This Row],[2025/26 From - Spending review Topic 2]]+Dataset[[#This Row],[2025/26 From - Spending review Topic 3]]+Dataset[[#This Row],[2025/26 From - Spending review Topic 4]]+Dataset[[#This Row],[2025/26 From - Other reallocations]]","v":0},{"$f":"Dataset[[#This Row],[2023/24 To - Spending review Topic 1]]+Dataset[[#This Row],[2023/24 To - Spending review Topic 2]]+Dataset[[#This Row],[2023/24 To - Spending review Topic 3]]+Dataset[[#This Row],[2023/24 To - Spending review Topic 4]]+Dataset[[#This Row],[2023/24 To - Other reallocations]]","v":0},{"$f":"Dataset[[#This Row],[2024/25 To - Spending review Topic 1]]+Dataset[[#This Row],[2024/25 To - Spending review Topic 2]]+Dataset[[#This Row],[2024/25 To - Spending review Topic 3]]+Dataset[[#This Row],[2024/25 To - Spending review Topic 4]]+Dataset[[#This Row],[2024/25 To - Other reallocations]]","v":0},{"$f":"Dataset[[#This Row],[2025/26 To - Spending review Topic 1]]+Dataset[[#This Row],[2025/26 To - Spending review Topic 2]]+Dataset[[#This Row],[2025/26 To - Spending review Topic 3]]+Dataset[[#This Row],[2025/26 To - Spending review Topic 4]]+Dataset[[#This Row],[2025/26 To - Other reallocations]]","v":0},{"$f":"Dataset[[#This Row],[2023/24 Baseline]]+Dataset[[#This Row],[2023/24 From - Total]]+Dataset[[#This Row],[2023/24 To - Total]]","v":0},{"$f":"Dataset[[#This Row],[2024/25 Baseline]]+Dataset[[#This Row],[2024/25 From - Total]]+Dataset[[#This Row],[2024/25 To - Total]]","v":0},{"$f":"Dataset[[#This Row],[2025/26 Baseline]]+Dataset[[#This Row],[2025/26 From - Total]]+Dataset[[#This Row],[2025/26 To - Total]]","v":0}]
["NAT|Non-transfer item","2|Medsas inventory interface","2023_24","MTEF2023",2,3,3,1264,647,"02","03","03","001264","000647","02|03|03",1,1,2,29,29,"01|01|02|29|29","National","Parliament","Associated Services","Transfer: Parliamentary Budget Office","Non-transfer item","Current","Current payments","Goods and services","Medsas inventory interface","Medsas inventory interface","General public services","Executive and legislative organs","NAT",0,0,0,0,0,0,0,0,0,0,0,null,null,null,null,null,null,null,null,null,null,null,null,null,null,null,null,null,null,null,null,null,null,null,null,null,null,null,null,null,null,{"$f":"Dataset[[#This Row],[2023/24 From - Spending review Topic 1]]+Dataset[[#This Row],[2023/24 From - Spending review Topic 2]]+Dataset[[#This Row],[2023/24 From - Spending review Topic 3]]+Dataset[[#This Row],[2023/24 From - Spending review Topic 4]]+Dataset[[#This Row],[2023/24 From - Other reallocations]]","v":0},{"$f":"Dataset[[#This Row],[2024/25 From - Spending review Topic 1]]+Dataset[[#This Row],[2024/25 From - Spending review Topic 2]]+Dataset[[#This Row],[2024/25 From - Spending review Topic 3]]+Dataset[[#This Row],[2024/25 From - Spending review Topic 4]]+Dataset[[#This Row],[2024/25 From - Other reallocations]]","v":0},{"$f":"Dataset[[#This Row],[2025/26 From - Spending review Topic 1]]+Dataset[[#This Row],[2025/26 From - Spending review Topic 2]]+Dataset[[#This Row],[2025/26 From - Spending review Topic 3]]+Dataset[[#This Row],[2025/26 From - Spending review Topic 4]]+Dataset[[#This Row],[2025/26 From - Other reallocations]]","v":0},{"$f":"Dataset[[#This Row],[2023/24 To - Spending review Topic 1]]+Dataset[[#This Row],[2023/24 To - Spending review Topic 2]]+Dataset[[#This Row],[2023/24 To - Spending review Topic 3]]+Dataset[[#This Row],[2023/24 To - Spending review Topic 4]]+Dataset[[#This Row],[2023/24 To - Other reallocations]]","v":0},{"$f":"Dataset[[#This Row],[2024/25 To - Spending review Topic 1]]+Dataset[[#This Row],[2024/25 To - Spending review Topic 2]]+Dataset[[#This Row],[2024/25 To - Spending review Topic 3]]+Dataset[[#This Row],[2024/25 To - Spending review Topic 4]]+Dataset[[#This Row],[2024/25 To - Other reallocations]]","v":0},{"$f":"Dataset[[#This Row],[2025/26 To - Spending review Topic 1]]+Dataset[[#This Row],[2025/26 To - Spending review Topic 2]]+Dataset[[#This Row],[2025/26 To - Spending review Topic 3]]+Dataset[[#This Row],[2025/26 To - Spending review Topic 4]]+Dataset[[#This Row],[2025/26 To - Other reallocations]]","v":0},{"$f":"Dataset[[#This Row],[2023/24 Baseline]]+Dataset[[#This Row],[2023/24 From - Total]]+Dataset[[#This Row],[2023/24 To - Total]]","v":0},{"$f":"Dataset[[#This Row],[2024/25 Baseline]]+Dataset[[#This Row],[2024/25 From - Total]]+Dataset[[#This Row],[2024/25 To - Total]]","v":0},{"$f":"Dataset[[#This Row],[2025/26 Baseline]]+Dataset[[#This Row],[2025/26 From - Total]]+Dataset[[#This Row],[2025/26 To - Total]]","v":0}]
["NAT|Non-transfer item","2|Inventory: Other supplies","2023_24","MTEF2023",2,3,3,1265,648,"02","03","03","001265","000648","02|03|03",1,1,2,30,30,"01|01|02|30|30","National","Parliament","Associated Services","Transfer: Parliamentary Budget Office","Non-transfer item","Current","Current payments","Goods and services","Inventory: Other supplies","Inventory: Other supplies","General public services","Executive and legislative organs","NAT",0,0,0,0,0,0,0,0,0,0,0,null,null,null,null,null,null,null,null,null,null,null,null,null,null,null,null,null,null,null,null,null,null,null,null,null,null,null,null,null,null,{"$f":"Dataset[[#This Row],[2023/24 From - Spending review Topic 1]]+Dataset[[#This Row],[2023/24 From - Spending review Topic 2]]+Dataset[[#This Row],[2023/24 From - Spending review Topic 3]]+Dataset[[#This Row],[2023/24 From - Spending review Topic 4]]+Dataset[[#This Row],[2023/24 From - Other reallocations]]","v":0},{"$f":"Dataset[[#This Row],[2024/25 From - Spending review Topic 1]]+Dataset[[#This Row],[2024/25 From - Spending review Topic 2]]+Dataset[[#This Row],[2024/25 From - Spending review Topic 3]]+Dataset[[#This Row],[2024/25 From - Spending review Topic 4]]+Dataset[[#This Row],[2024/25 From - Other reallocations]]","v":0},{"$f":"Dataset[[#This Row],[2025/26 From - Spending review Topic 1]]+Dataset[[#This Row],[2025/26 From - Spending review Topic 2]]+Dataset[[#This Row],[2025/26 From - Spending review Topic 3]]+Dataset[[#This Row],[2025/26 From - Spending review Topic 4]]+Dataset[[#This Row],[2025/26 From - Other reallocations]]","v":0},{"$f":"Dataset[[#This Row],[2023/24 To - Spending review Topic 1]]+Dataset[[#This Row],[2023/24 To - Spending review Topic 2]]+Dataset[[#This Row],[2023/24 To - Spending review Topic 3]]+Dataset[[#This Row],[2023/24 To - Spending review Topic 4]]+Dataset[[#This Row],[2023/24 To - Other reallocations]]","v":0},{"$f":"Dataset[[#This Row],[2024/25 To - Spending review Topic 1]]+Dataset[[#This Row],[2024/25 To - Spending review Topic 2]]+Dataset[[#This Row],[2024/25 To - Spending review Topic 3]]+Dataset[[#This Row],[2024/25 To - Spending review Topic 4]]+Dataset[[#This Row],[2024/25 To - Other reallocations]]","v":0},{"$f":"Dataset[[#This Row],[2025/26 To - Spending review Topic 1]]+Dataset[[#This Row],[2025/26 To - Spending review Topic 2]]+Dataset[[#This Row],[2025/26 To - Spending review Topic 3]]+Dataset[[#This Row],[2025/26 To - Spending review Topic 4]]+Dataset[[#This Row],[2025/26 To - Other reallocations]]","v":0},{"$f":"Dataset[[#This Row],[2023/24 Baseline]]+Dataset[[#This Row],[2023/24 From - Total]]+Dataset[[#This Row],[2023/24 To - Total]]","v":0},{"$f":"Dataset[[#This Row],[2024/25 Baseline]]+Dataset[[#This Row],[2024/25 From - Total]]+Dataset[[#This Row],[2024/25 To - Total]]","v":0},{"$f":"Dataset[[#This Row],[2025/26 Baseline]]+Dataset[[#This Row],[2025/26 From - Total]]+Dataset[[#This Row],[2025/26 To - Total]]","v":0}]
["NAT|Non-transfer item","2|Consumable supplies","2023_24","MTEF2023",2,3,3,1266,649,"02","03","03","001266","000649","02|03|03",1,1,2,31,31,"01|01|02|31|31","National","Parliament","Associated Services","Transfer: Parliamentary Budget Office","Non-transfer item","Current","Current payments","Goods and services","Consumable supplies","Consumable supplies","General public services","Executive and legislative organs","NAT",0,0,0,0,0,0,0,0,0,0,0,null,null,null,null,null,null,null,null,null,null,null,null,null,null,null,null,null,null,null,null,null,null,null,null,null,null,null,null,null,null,{"$f":"Dataset[[#This Row],[2023/24 From - Spending review Topic 1]]+Dataset[[#This Row],[2023/24 From - Spending review Topic 2]]+Dataset[[#This Row],[2023/24 From - Spending review Topic 3]]+Dataset[[#This Row],[2023/24 From - Spending review Topic 4]]+Dataset[[#This Row],[2023/24 From - Other reallocations]]","v":0},{"$f":"Dataset[[#This Row],[2024/25 From - Spending review Topic 1]]+Dataset[[#This Row],[2024/25 From - Spending review Topic 2]]+Dataset[[#This Row],[2024/25 From - Spending review Topic 3]]+Dataset[[#This Row],[2024/25 From - Spending review Topic 4]]+Dataset[[#This Row],[2024/25 From - Other reallocations]]","v":0},{"$f":"Dataset[[#This Row],[2025/26 From - Spending review Topic 1]]+Dataset[[#This Row],[2025/26 From - Spending review Topic 2]]+Dataset[[#This Row],[2025/26 From - Spending review Topic 3]]+Dataset[[#This Row],[2025/26 From - Spending review Topic 4]]+Dataset[[#This Row],[2025/26 From - Other reallocations]]","v":0},{"$f":"Dataset[[#This Row],[2023/24 To - Spending review Topic 1]]+Dataset[[#This Row],[2023/24 To - Spending review Topic 2]]+Dataset[[#This Row],[2023/24 To - Spending review Topic 3]]+Dataset[[#This Row],[2023/24 To - Spending review Topic 4]]+Dataset[[#This Row],[2023/24 To - Other reallocations]]","v":0},{"$f":"Dataset[[#This Row],[2024/25 To - Spending review Topic 1]]+Dataset[[#This Row],[2024/25 To - Spending review Topic 2]]+Dataset[[#This Row],[2024/25 To - Spending review Topic 3]]+Dataset[[#This Row],[2024/25 To - Spending review Topic 4]]+Dataset[[#This Row],[2024/25 To - Other reallocations]]","v":0},{"$f":"Dataset[[#This Row],[2025/26 To - Spending review Topic 1]]+Dataset[[#This Row],[2025/26 To - Spending review Topic 2]]+Dataset[[#This Row],[2025/26 To - Spending review Topic 3]]+Dataset[[#This Row],[2025/26 To - Spending review Topic 4]]+Dataset[[#This Row],[2025/26 To - Other reallocations]]","v":0},{"$f":"Dataset[[#This Row],[2023/24 Baseline]]+Dataset[[#This Row],[2023/24 From - Total]]+Dataset[[#This Row],[2023/24 To - Total]]","v":0},{"$f":"Dataset[[#This Row],[2024/25 Baseline]]+Dataset[[#This Row],[2024/25 From - Total]]+Dataset[[#This Row],[2024/25 To - Total]]","v":0},{"$f":"Dataset[[#This Row],[2025/26 Baseline]]+Dataset[[#This Row],[2025/26 From - Total]]+Dataset[[#This Row],[2025/26 To - Total]]","v":0}]
["NAT|Non-transfer item","2|Consumables: Stationery, printing and office supplies","2023_24","MTEF2023",2,3,3,1267,650,"02","03","03","001267","000650","02|03|03",1,1,2,32,32,"01|01|02|32|32","National","Parliament","Associated Services","Transfer: Parliamentary Budget Office","Non-transfer item","Current","Current payments","Goods and services","Consumables: Stationery, printing and office supplies","Consumables: Stationery, printing and office supplies","General public services","Executive and legislative organs","NAT",0,46,50,55,55,55,0,57,57,60,63,null,null,null,null,null,null,null,null,null,null,null,null,null,null,null,null,null,null,null,null,null,null,null,null,null,null,null,null,null,null,{"$f":"Dataset[[#This Row],[2023/24 From - Spending review Topic 1]]+Dataset[[#This Row],[2023/24 From - Spending review Topic 2]]+Dataset[[#This Row],[2023/24 From - Spending review Topic 3]]+Dataset[[#This Row],[2023/24 From - Spending review Topic 4]]+Dataset[[#This Row],[2023/24 From - Other reallocations]]","v":0},{"$f":"Dataset[[#This Row],[2024/25 From - Spending review Topic 1]]+Dataset[[#This Row],[2024/25 From - Spending review Topic 2]]+Dataset[[#This Row],[2024/25 From - Spending review Topic 3]]+Dataset[[#This Row],[2024/25 From - Spending review Topic 4]]+Dataset[[#This Row],[2024/25 From - Other reallocations]]","v":0},{"$f":"Dataset[[#This Row],[2025/26 From - Spending review Topic 1]]+Dataset[[#This Row],[2025/26 From - Spending review Topic 2]]+Dataset[[#This Row],[2025/26 From - Spending review Topic 3]]+Dataset[[#This Row],[2025/26 From - Spending review Topic 4]]+Dataset[[#This Row],[2025/26 From - Other reallocations]]","v":0},{"$f":"Dataset[[#This Row],[2023/24 To - Spending review Topic 1]]+Dataset[[#This Row],[2023/24 To - Spending review Topic 2]]+Dataset[[#This Row],[2023/24 To - Spending review Topic 3]]+Dataset[[#This Row],[2023/24 To - Spending review Topic 4]]+Dataset[[#This Row],[2023/24 To - Other reallocations]]","v":0},{"$f":"Dataset[[#This Row],[2024/25 To - Spending review Topic 1]]+Dataset[[#This Row],[2024/25 To - Spending review Topic 2]]+Dataset[[#This Row],[2024/25 To - Spending review Topic 3]]+Dataset[[#This Row],[2024/25 To - Spending review Topic 4]]+Dataset[[#This Row],[2024/25 To - Other reallocations]]","v":0},{"$f":"Dataset[[#This Row],[2025/26 To - Spending review Topic 1]]+Dataset[[#This Row],[2025/26 To - Spending review Topic 2]]+Dataset[[#This Row],[2025/26 To - Spending review Topic 3]]+Dataset[[#This Row],[2025/26 To - Spending review Topic 4]]+Dataset[[#This Row],[2025/26 To - Other reallocations]]","v":0},{"$f":"Dataset[[#This Row],[2023/24 Baseline]]+Dataset[[#This Row],[2023/24 From - Total]]+Dataset[[#This Row],[2023/24 To - Total]]","v":57},{"$f":"Dataset[[#This Row],[2024/25 Baseline]]+Dataset[[#This Row],[2024/25 From - Total]]+Dataset[[#This Row],[2024/25 To - Total]]","v":60},{"$f":"Dataset[[#This Row],[2025/26 Baseline]]+Dataset[[#This Row],[2025/26 From - Total]]+Dataset[[#This Row],[2025/26 To - Total]]","v":63}]
["NAT|Non-transfer item","2|Operating leases","2023_24","MTEF2023",2,3,3,1268,651,"02","03","03","001268","000651","02|03|03",1,1,2,33,33,"01|01|02|33|33","National","Parliament","Associated Services","Transfer: Parliamentary Budget Office","Non-transfer item","Current","Current payments","Goods and services","Operating leases","Operating leases","General public services","Executive and legislative organs","NAT",0,0,0,0,0,0,0,0,0,0,0,null,null,null,null,null,null,null,null,null,null,null,null,null,null,null,null,null,null,null,null,null,null,null,null,null,null,null,null,null,null,{"$f":"Dataset[[#This Row],[2023/24 From - Spending review Topic 1]]+Dataset[[#This Row],[2023/24 From - Spending review Topic 2]]+Dataset[[#This Row],[2023/24 From - Spending review Topic 3]]+Dataset[[#This Row],[2023/24 From - Spending review Topic 4]]+Dataset[[#This Row],[2023/24 From - Other reallocations]]","v":0},{"$f":"Dataset[[#This Row],[2024/25 From - Spending review Topic 1]]+Dataset[[#This Row],[2024/25 From - Spending review Topic 2]]+Dataset[[#This Row],[2024/25 From - Spending review Topic 3]]+Dataset[[#This Row],[2024/25 From - Spending review Topic 4]]+Dataset[[#This Row],[2024/25 From - Other reallocations]]","v":0},{"$f":"Dataset[[#This Row],[2025/26 From - Spending review Topic 1]]+Dataset[[#This Row],[2025/26 From - Spending review Topic 2]]+Dataset[[#This Row],[2025/26 From - Spending review Topic 3]]+Dataset[[#This Row],[2025/26 From - Spending review Topic 4]]+Dataset[[#This Row],[2025/26 From - Other reallocations]]","v":0},{"$f":"Dataset[[#This Row],[2023/24 To - Spending review Topic 1]]+Dataset[[#This Row],[2023/24 To - Spending review Topic 2]]+Dataset[[#This Row],[2023/24 To - Spending review Topic 3]]+Dataset[[#This Row],[2023/24 To - Spending review Topic 4]]+Dataset[[#This Row],[2023/24 To - Other reallocations]]","v":0},{"$f":"Dataset[[#This Row],[2024/25 To - Spending review Topic 1]]+Dataset[[#This Row],[2024/25 To - Spending review Topic 2]]+Dataset[[#This Row],[2024/25 To - Spending review Topic 3]]+Dataset[[#This Row],[2024/25 To - Spending review Topic 4]]+Dataset[[#This Row],[2024/25 To - Other reallocations]]","v":0},{"$f":"Dataset[[#This Row],[2025/26 To - Spending review Topic 1]]+Dataset[[#This Row],[2025/26 To - Spending review Topic 2]]+Dataset[[#This Row],[2025/26 To - Spending review Topic 3]]+Dataset[[#This Row],[2025/26 To - Spending review Topic 4]]+Dataset[[#This Row],[2025/26 To - Other reallocations]]","v":0},{"$f":"Dataset[[#This Row],[2023/24 Baseline]]+Dataset[[#This Row],[2023/24 From - Total]]+Dataset[[#This Row],[2023/24 To - Total]]","v":0},{"$f":"Dataset[[#This Row],[2024/25 Baseline]]+Dataset[[#This Row],[2024/25 From - Total]]+Dataset[[#This Row],[2024/25 To - Total]]","v":0},{"$f":"Dataset[[#This Row],[2025/26 Baseline]]+Dataset[[#This Row],[2025/26 From - Total]]+Dataset[[#This Row],[2025/26 To - Total]]","v":0}]
["NAT|Non-transfer item","2|Rental and hiring","2023_24","MTEF2023",2,3,3,1269,652,"02","03","03","001269","000652","02|03|03",1,1,2,34,34,"01|01|02|34|34","National","Parliament","Associated Services","Transfer: Parliamentary Budget Office","Non-transfer item","Current","Current payments","Goods and services","Rental and hiring","Rental and hiring","General public services","Executive and legislative organs","NAT",0,45,48,53,53,53,0,55,55,57,60,null,null,null,null,null,null,null,null,null,null,null,null,null,null,null,null,null,null,null,null,null,null,null,null,null,null,null,null,null,null,{"$f":"Dataset[[#This Row],[2023/24 From - Spending review Topic 1]]+Dataset[[#This Row],[2023/24 From - Spending review Topic 2]]+Dataset[[#This Row],[2023/24 From - Spending review Topic 3]]+Dataset[[#This Row],[2023/24 From - Spending review Topic 4]]+Dataset[[#This Row],[2023/24 From - Other reallocations]]","v":0},{"$f":"Dataset[[#This Row],[2024/25 From - Spending review Topic 1]]+Dataset[[#This Row],[2024/25 From - Spending review Topic 2]]+Dataset[[#This Row],[2024/25 From - Spending review Topic 3]]+Dataset[[#This Row],[2024/25 From - Spending review Topic 4]]+Dataset[[#This Row],[2024/25 From - Other reallocations]]","v":0},{"$f":"Dataset[[#This Row],[2025/26 From - Spending review Topic 1]]+Dataset[[#This Row],[2025/26 From - Spending review Topic 2]]+Dataset[[#This Row],[2025/26 From - Spending review Topic 3]]+Dataset[[#This Row],[2025/26 From - Spending review Topic 4]]+Dataset[[#This Row],[2025/26 From - Other reallocations]]","v":0},{"$f":"Dataset[[#This Row],[2023/24 To - Spending review Topic 1]]+Dataset[[#This Row],[2023/24 To - Spending review Topic 2]]+Dataset[[#This Row],[2023/24 To - Spending review Topic 3]]+Dataset[[#This Row],[2023/24 To - Spending review Topic 4]]+Dataset[[#This Row],[2023/24 To - Other reallocations]]","v":0},{"$f":"Dataset[[#This Row],[2024/25 To - Spending review Topic 1]]+Dataset[[#This Row],[2024/25 To - Spending review Topic 2]]+Dataset[[#This Row],[2024/25 To - Spending review Topic 3]]+Dataset[[#This Row],[2024/25 To - Spending review Topic 4]]+Dataset[[#This Row],[2024/25 To - Other reallocations]]","v":0},{"$f":"Dataset[[#This Row],[2025/26 To - Spending review Topic 1]]+Dataset[[#This Row],[2025/26 To - Spending review Topic 2]]+Dataset[[#This Row],[2025/26 To - Spending review Topic 3]]+Dataset[[#This Row],[2025/26 To - Spending review Topic 4]]+Dataset[[#This Row],[2025/26 To - Other reallocations]]","v":0},{"$f":"Dataset[[#This Row],[2023/24 Baseline]]+Dataset[[#This Row],[2023/24 From - Total]]+Dataset[[#This Row],[2023/24 To - Total]]","v":55},{"$f":"Dataset[[#This Row],[2024/25 Baseline]]+Dataset[[#This Row],[2024/25 From - Total]]+Dataset[[#This Row],[2024/25 To - Total]]","v":57},{"$f":"Dataset[[#This Row],[2025/26 Baseline]]+Dataset[[#This Row],[2025/26 From - Total]]+Dataset[[#This Row],[2025/26 To - Total]]","v":60}]
["NAT|Non-transfer item","2|Property payments","2023_24","MTEF2023",2,3,3,1270,653,"02","03","03","001270","000653","02|03|03",1,1,2,35,35,"01|01|02|35|35","National","Parliament","Associated Services","Transfer: Parliamentary Budget Office","Non-transfer item","Current","Current payments","Goods and services","Property payments","Property payments","General public services","Executive and legislative organs","NAT",0,0,0,0,0,0,0,0,0,0,0,null,null,null,null,null,null,null,null,null,null,null,null,null,null,null,null,null,null,null,null,null,null,null,null,null,null,null,null,null,null,{"$f":"Dataset[[#This Row],[2023/24 From - Spending review Topic 1]]+Dataset[[#This Row],[2023/24 From - Spending review Topic 2]]+Dataset[[#This Row],[2023/24 From - Spending review Topic 3]]+Dataset[[#This Row],[2023/24 From - Spending review Topic 4]]+Dataset[[#This Row],[2023/24 From - Other reallocations]]","v":0},{"$f":"Dataset[[#This Row],[2024/25 From - Spending review Topic 1]]+Dataset[[#This Row],[2024/25 From - Spending review Topic 2]]+Dataset[[#This Row],[2024/25 From - Spending review Topic 3]]+Dataset[[#This Row],[2024/25 From - Spending review Topic 4]]+Dataset[[#This Row],[2024/25 From - Other reallocations]]","v":0},{"$f":"Dataset[[#This Row],[2025/26 From - Spending review Topic 1]]+Dataset[[#This Row],[2025/26 From - Spending review Topic 2]]+Dataset[[#This Row],[2025/26 From - Spending review Topic 3]]+Dataset[[#This Row],[2025/26 From - Spending review Topic 4]]+Dataset[[#This Row],[2025/26 From - Other reallocations]]","v":0},{"$f":"Dataset[[#This Row],[2023/24 To - Spending review Topic 1]]+Dataset[[#This Row],[2023/24 To - Spending review Topic 2]]+Dataset[[#This Row],[2023/24 To - Spending review Topic 3]]+Dataset[[#This Row],[2023/24 To - Spending review Topic 4]]+Dataset[[#This Row],[2023/24 To - Other reallocations]]","v":0},{"$f":"Dataset[[#This Row],[2024/25 To - Spending review Topic 1]]+Dataset[[#This Row],[2024/25 To - Spending review Topic 2]]+Dataset[[#This Row],[2024/25 To - Spending review Topic 3]]+Dataset[[#This Row],[2024/25 To - Spending review Topic 4]]+Dataset[[#This Row],[2024/25 To - Other reallocations]]","v":0},{"$f":"Dataset[[#This Row],[2025/26 To - Spending review Topic 1]]+Dataset[[#This Row],[2025/26 To - Spending review Topic 2]]+Dataset[[#This Row],[2025/26 To - Spending review Topic 3]]+Dataset[[#This Row],[2025/26 To - Spending review Topic 4]]+Dataset[[#This Row],[2025/26 To - Other reallocations]]","v":0},{"$f":"Dataset[[#This Row],[2023/24 Baseline]]+Dataset[[#This Row],[2023/24 From - Total]]+Dataset[[#This Row],[2023/24 To - Total]]","v":0},{"$f":"Dataset[[#This Row],[2024/25 Baseline]]+Dataset[[#This Row],[2024/25 From - Total]]+Dataset[[#This Row],[2024/25 To - Total]]","v":0},{"$f":"Dataset[[#This Row],[2025/26 Baseline]]+Dataset[[#This Row],[2025/26 From - Total]]+Dataset[[#This Row],[2025/26 To - Total]]","v":0}]
["NAT|Non-transfer item","2|Transport provided: Departmental activity","2023_24","MTEF2023",2,3,3,1271,654,"02","03","03","001271","000654","02|03|03",1,1,2,36,36,"01|01|02|36|36","National","Parliament","Associated Services","Transfer: Parliamentary Budget Office","Non-transfer item","Current","Current payments","Goods and services","Transport provided: Departmental activity","Transport provided: Departmental activity","General public services","Executive and legislative organs","NAT",0,0,0,0,0,0,0,0,0,0,0,null,null,null,null,null,null,null,null,null,null,null,null,null,null,null,null,null,null,null,null,null,null,null,null,null,null,null,null,null,null,{"$f":"Dataset[[#This Row],[2023/24 From - Spending review Topic 1]]+Dataset[[#This Row],[2023/24 From - Spending review Topic 2]]+Dataset[[#This Row],[2023/24 From - Spending review Topic 3]]+Dataset[[#This Row],[2023/24 From - Spending review Topic 4]]+Dataset[[#This Row],[2023/24 From - Other reallocations]]","v":0},{"$f":"Dataset[[#This Row],[2024/25 From - Spending review Topic 1]]+Dataset[[#This Row],[2024/25 From - Spending review Topic 2]]+Dataset[[#This Row],[2024/25 From - Spending review Topic 3]]+Dataset[[#This Row],[2024/25 From - Spending review Topic 4]]+Dataset[[#This Row],[2024/25 From - Other reallocations]]","v":0},{"$f":"Dataset[[#This Row],[2025/26 From - Spending review Topic 1]]+Dataset[[#This Row],[2025/26 From - Spending review Topic 2]]+Dataset[[#This Row],[2025/26 From - Spending review Topic 3]]+Dataset[[#This Row],[2025/26 From - Spending review Topic 4]]+Dataset[[#This Row],[2025/26 From - Other reallocations]]","v":0},{"$f":"Dataset[[#This Row],[2023/24 To - Spending review Topic 1]]+Dataset[[#This Row],[2023/24 To - Spending review Topic 2]]+Dataset[[#This Row],[2023/24 To - Spending review Topic 3]]+Dataset[[#This Row],[2023/24 To - Spending review Topic 4]]+Dataset[[#This Row],[2023/24 To - Other reallocations]]","v":0},{"$f":"Dataset[[#This Row],[2024/25 To - Spending review Topic 1]]+Dataset[[#This Row],[2024/25 To - Spending review Topic 2]]+Dataset[[#This Row],[2024/25 To - Spending review Topic 3]]+Dataset[[#This Row],[2024/25 To - Spending review Topic 4]]+Dataset[[#This Row],[2024/25 To - Other reallocations]]","v":0},{"$f":"Dataset[[#This Row],[2025/26 To - Spending review Topic 1]]+Dataset[[#This Row],[2025/26 To - Spending review Topic 2]]+Dataset[[#This Row],[2025/26 To - Spending review Topic 3]]+Dataset[[#This Row],[2025/26 To - Spending review Topic 4]]+Dataset[[#This Row],[2025/26 To - Other reallocations]]","v":0},{"$f":"Dataset[[#This Row],[2023/24 Baseline]]+Dataset[[#This Row],[2023/24 From - Total]]+Dataset[[#This Row],[2023/24 To - Total]]","v":0},{"$f":"Dataset[[#This Row],[2024/25 Baseline]]+Dataset[[#This Row],[2024/25 From - Total]]+Dataset[[#This Row],[2024/25 To - Total]]","v":0},{"$f":"Dataset[[#This Row],[2025/26 Baseline]]+Dataset[[#This Row],[2025/26 From - Total]]+Dataset[[#This Row],[2025/26 To - Total]]","v":0}]
["NAT|Non-transfer item","2|Travel and subsistence","2023_24","MTEF2023",2,3,3,1272,655,"02","03","03","001272","000655","02|03|03",1,1,2,37,37,"01|01|02|37|37","National","Parliament","Associated Services","Transfer: Parliamentary Budget Office","Non-transfer item","Current","Current payments","Goods and services","Travel and subsistence","Travel and subsistence","General public services","Executive and legislative organs","NAT",0,1209,2706,3001,3001,3001,0,3093,3106,3245,3390,null,null,null,null,null,null,null,null,null,null,null,null,null,null,null,null,null,null,null,null,null,null,null,null,null,null,null,null,null,null,{"$f":"Dataset[[#This Row],[2023/24 From - Spending review Topic 1]]+Dataset[[#This Row],[2023/24 From - Spending review Topic 2]]+Dataset[[#This Row],[2023/24 From - Spending review Topic 3]]+Dataset[[#This Row],[2023/24 From - Spending review Topic 4]]+Dataset[[#This Row],[2023/24 From - Other reallocations]]","v":0},{"$f":"Dataset[[#This Row],[2024/25 From - Spending review Topic 1]]+Dataset[[#This Row],[2024/25 From - Spending review Topic 2]]+Dataset[[#This Row],[2024/25 From - Spending review Topic 3]]+Dataset[[#This Row],[2024/25 From - Spending review Topic 4]]+Dataset[[#This Row],[2024/25 From - Other reallocations]]","v":0},{"$f":"Dataset[[#This Row],[2025/26 From - Spending review Topic 1]]+Dataset[[#This Row],[2025/26 From - Spending review Topic 2]]+Dataset[[#This Row],[2025/26 From - Spending review Topic 3]]+Dataset[[#This Row],[2025/26 From - Spending review Topic 4]]+Dataset[[#This Row],[2025/26 From - Other reallocations]]","v":0},{"$f":"Dataset[[#This Row],[2023/24 To - Spending review Topic 1]]+Dataset[[#This Row],[2023/24 To - Spending review Topic 2]]+Dataset[[#This Row],[2023/24 To - Spending review Topic 3]]+Dataset[[#This Row],[2023/24 To - Spending review Topic 4]]+Dataset[[#This Row],[2023/24 To - Other reallocations]]","v":0},{"$f":"Dataset[[#This Row],[2024/25 To - Spending review Topic 1]]+Dataset[[#This Row],[2024/25 To - Spending review Topic 2]]+Dataset[[#This Row],[2024/25 To - Spending review Topic 3]]+Dataset[[#This Row],[2024/25 To - Spending review Topic 4]]+Dataset[[#This Row],[2024/25 To - Other reallocations]]","v":0},{"$f":"Dataset[[#This Row],[2025/26 To - Spending review Topic 1]]+Dataset[[#This Row],[2025/26 To - Spending review Topic 2]]+Dataset[[#This Row],[2025/26 To - Spending review Topic 3]]+Dataset[[#This Row],[2025/26 To - Spending review Topic 4]]+Dataset[[#This Row],[2025/26 To - Other reallocations]]","v":0},{"$f":"Dataset[[#This Row],[2023/24 Baseline]]+Dataset[[#This Row],[2023/24 From - Total]]+Dataset[[#This Row],[2023/24 To - Total]]","v":3106},{"$f":"Dataset[[#This Row],[2024/25 Baseline]]+Dataset[[#This Row],[2024/25 From - Total]]+Dataset[[#This Row],[2024/25 To - Total]]","v":3245},{"$f":"Dataset[[#This Row],[2025/26 Baseline]]+Dataset[[#This Row],[2025/26 From - Total]]+Dataset[[#This Row],[2025/26 To - Total]]","v":3390}]
["NAT|Non-transfer item","2|Training and development","2023_24","MTEF2023",2,3,3,1273,656,"02","03","03","001273","000656","02|03|03",1,1,2,38,38,"01|01|02|38|38","National","Parliament","Associated Services","Transfer: Parliamentary Budget Office","Non-transfer item","Current","Current payments","Goods and services","Training and development","Training and development","General public services","Executive and legislative organs","NAT",0,65,69,77,77,77,0,79,79,83,87,null,null,null,null,null,null,null,null,null,null,null,null,null,null,null,null,null,null,null,null,null,null,null,null,null,null,null,null,null,null,{"$f":"Dataset[[#This Row],[2023/24 From - Spending review Topic 1]]+Dataset[[#This Row],[2023/24 From - Spending review Topic 2]]+Dataset[[#This Row],[2023/24 From - Spending review Topic 3]]+Dataset[[#This Row],[2023/24 From - Spending review Topic 4]]+Dataset[[#This Row],[2023/24 From - Other reallocations]]","v":0},{"$f":"Dataset[[#This Row],[2024/25 From - Spending review Topic 1]]+Dataset[[#This Row],[2024/25 From - Spending review Topic 2]]+Dataset[[#This Row],[2024/25 From - Spending review Topic 3]]+Dataset[[#This Row],[2024/25 From - Spending review Topic 4]]+Dataset[[#This Row],[2024/25 From - Other reallocations]]","v":0},{"$f":"Dataset[[#This Row],[2025/26 From - Spending review Topic 1]]+Dataset[[#This Row],[2025/26 From - Spending review Topic 2]]+Dataset[[#This Row],[2025/26 From - Spending review Topic 3]]+Dataset[[#This Row],[2025/26 From - Spending review Topic 4]]+Dataset[[#This Row],[2025/26 From - Other reallocations]]","v":0},{"$f":"Dataset[[#This Row],[2023/24 To - Spending review Topic 1]]+Dataset[[#This Row],[2023/24 To - Spending review Topic 2]]+Dataset[[#This Row],[2023/24 To - Spending review Topic 3]]+Dataset[[#This Row],[2023/24 To - Spending review Topic 4]]+Dataset[[#This Row],[2023/24 To - Other reallocations]]","v":0},{"$f":"Dataset[[#This Row],[2024/25 To - Spending review Topic 1]]+Dataset[[#This Row],[2024/25 To - Spending review Topic 2]]+Dataset[[#This Row],[2024/25 To - Spending review Topic 3]]+Dataset[[#This Row],[2024/25 To - Spending review Topic 4]]+Dataset[[#This Row],[2024/25 To - Other reallocations]]","v":0},{"$f":"Dataset[[#This Row],[2025/26 To - Spending review Topic 1]]+Dataset[[#This Row],[2025/26 To - Spending review Topic 2]]+Dataset[[#This Row],[2025/26 To - Spending review Topic 3]]+Dataset[[#This Row],[2025/26 To - Spending review Topic 4]]+Dataset[[#This Row],[2025/26 To - Other reallocations]]","v":0},{"$f":"Dataset[[#This Row],[2023/24 Baseline]]+Dataset[[#This Row],[2023/24 From - Total]]+Dataset[[#This Row],[2023/24 To - Total]]","v":79},{"$f":"Dataset[[#This Row],[2024/25 Baseline]]+Dataset[[#This Row],[2024/25 From - Total]]+Dataset[[#This Row],[2024/25 To - Total]]","v":83},{"$f":"Dataset[[#This Row],[2025/26 Baseline]]+Dataset[[#This Row],[2025/26 From - Total]]+Dataset[[#This Row],[2025/26 To - Total]]","v":87}]
["NAT|Non-transfer item","2|Operating payments","2023_24","MTEF2023",2,3,3,1274,657,"02","03","03","001274","000657","02|03|03",1,1,2,39,39,"01|01|02|39|39","National","Parliament","Associated Services","Transfer: Parliamentary Budget Office","Non-transfer item","Current","Current payments","Goods and services","Operating payments","Operating payments","General public services","Executive and legislative organs","NAT",0,55,139,154,154,154,0,159,160,167,174,null,null,null,null,null,null,null,null,null,null,null,null,null,null,null,null,null,null,null,null,null,null,null,null,null,null,null,null,null,null,{"$f":"Dataset[[#This Row],[2023/24 From - Spending review Topic 1]]+Dataset[[#This Row],[2023/24 From - Spending review Topic 2]]+Dataset[[#This Row],[2023/24 From - Spending review Topic 3]]+Dataset[[#This Row],[2023/24 From - Spending review Topic 4]]+Dataset[[#This Row],[2023/24 From - Other reallocations]]","v":0},{"$f":"Dataset[[#This Row],[2024/25 From - Spending review Topic 1]]+Dataset[[#This Row],[2024/25 From - Spending review Topic 2]]+Dataset[[#This Row],[2024/25 From - Spending review Topic 3]]+Dataset[[#This Row],[2024/25 From - Spending review Topic 4]]+Dataset[[#This Row],[2024/25 From - Other reallocations]]","v":0},{"$f":"Dataset[[#This Row],[2025/26 From - Spending review Topic 1]]+Dataset[[#This Row],[2025/26 From - Spending review Topic 2]]+Dataset[[#This Row],[2025/26 From - Spending review Topic 3]]+Dataset[[#This Row],[2025/26 From - Spending review Topic 4]]+Dataset[[#This Row],[2025/26 From - Other reallocations]]","v":0},{"$f":"Dataset[[#This Row],[2023/24 To - Spending review Topic 1]]+Dataset[[#This Row],[2023/24 To - Spending review Topic 2]]+Dataset[[#This Row],[2023/24 To - Spending review Topic 3]]+Dataset[[#This Row],[2023/24 To - Spending review Topic 4]]+Dataset[[#This Row],[2023/24 To - Other reallocations]]","v":0},{"$f":"Dataset[[#This Row],[2024/25 To - Spending review Topic 1]]+Dataset[[#This Row],[2024/25 To - Spending review Topic 2]]+Dataset[[#This Row],[2024/25 To - Spending review Topic 3]]+Dataset[[#This Row],[2024/25 To - Spending review Topic 4]]+Dataset[[#This Row],[2024/25 To - Other reallocations]]","v":0},{"$f":"Dataset[[#This Row],[2025/26 To - Spending review Topic 1]]+Dataset[[#This Row],[2025/26 To - Spending review Topic 2]]+Dataset[[#This Row],[2025/26 To - Spending review Topic 3]]+Dataset[[#This Row],[2025/26 To - Spending review Topic 4]]+Dataset[[#This Row],[2025/26 To - Other reallocations]]","v":0},{"$f":"Dataset[[#This Row],[2023/24 Baseline]]+Dataset[[#This Row],[2023/24 From - Total]]+Dataset[[#This Row],[2023/24 To - Total]]","v":160},{"$f":"Dataset[[#This Row],[2024/25 Baseline]]+Dataset[[#This Row],[2024/25 From - Total]]+Dataset[[#This Row],[2024/25 To - Total]]","v":167},{"$f":"Dataset[[#This Row],[2025/26 Baseline]]+Dataset[[#This Row],[2025/26 From - Total]]+Dataset[[#This Row],[2025/26 To - Total]]","v":174}]
["NAT|Non-transfer item","2|Venues and facilities","2023_24","MTEF2023",2,3,3,1275,658,"02","03","03","001275","000658","02|03|03",1,1,2,40,40,"01|01|02|40|40","National","Parliament","Associated Services","Transfer: Parliamentary Budget Office","Non-transfer item","Current","Current payments","Goods and services","Venues and facilities","Venues and facilities","General public services","Executive and legislative organs","NAT",0,0,0,0,0,0,0,0,0,0,0,null,null,null,null,null,null,null,null,null,null,null,null,null,null,null,null,null,null,null,null,null,null,null,null,null,null,null,null,null,null,{"$f":"Dataset[[#This Row],[2023/24 From - Spending review Topic 1]]+Dataset[[#This Row],[2023/24 From - Spending review Topic 2]]+Dataset[[#This Row],[2023/24 From - Spending review Topic 3]]+Dataset[[#This Row],[2023/24 From - Spending review Topic 4]]+Dataset[[#This Row],[2023/24 From - Other reallocations]]","v":0},{"$f":"Dataset[[#This Row],[2024/25 From - Spending review Topic 1]]+Dataset[[#This Row],[2024/25 From - Spending review Topic 2]]+Dataset[[#This Row],[2024/25 From - Spending review Topic 3]]+Dataset[[#This Row],[2024/25 From - Spending review Topic 4]]+Dataset[[#This Row],[2024/25 From - Other reallocations]]","v":0},{"$f":"Dataset[[#This Row],[2025/26 From - Spending review Topic 1]]+Dataset[[#This Row],[2025/26 From - Spending review Topic 2]]+Dataset[[#This Row],[2025/26 From - Spending review Topic 3]]+Dataset[[#This Row],[2025/26 From - Spending review Topic 4]]+Dataset[[#This Row],[2025/26 From - Other reallocations]]","v":0},{"$f":"Dataset[[#This Row],[2023/24 To - Spending review Topic 1]]+Dataset[[#This Row],[2023/24 To - Spending review Topic 2]]+Dataset[[#This Row],[2023/24 To - Spending review Topic 3]]+Dataset[[#This Row],[2023/24 To - Spending review Topic 4]]+Dataset[[#This Row],[2023/24 To - Other reallocations]]","v":0},{"$f":"Dataset[[#This Row],[2024/25 To - Spending review Topic 1]]+Dataset[[#This Row],[2024/25 To - Spending review Topic 2]]+Dataset[[#This Row],[2024/25 To - Spending review Topic 3]]+Dataset[[#This Row],[2024/25 To - Spending review Topic 4]]+Dataset[[#This Row],[2024/25 To - Other reallocations]]","v":0},{"$f":"Dataset[[#This Row],[2025/26 To - Spending review Topic 1]]+Dataset[[#This Row],[2025/26 To - Spending review Topic 2]]+Dataset[[#This Row],[2025/26 To - Spending review Topic 3]]+Dataset[[#This Row],[2025/26 To - Spending review Topic 4]]+Dataset[[#This Row],[2025/26 To - Other reallocations]]","v":0},{"$f":"Dataset[[#This Row],[2023/24 Baseline]]+Dataset[[#This Row],[2023/24 From - Total]]+Dataset[[#This Row],[2023/24 To - Total]]","v":0},{"$f":"Dataset[[#This Row],[2024/25 Baseline]]+Dataset[[#This Row],[2024/25 From - Total]]+Dataset[[#This Row],[2024/25 To - Total]]","v":0},{"$f":"Dataset[[#This Row],[2025/26 Baseline]]+Dataset[[#This Row],[2025/26 From - Total]]+Dataset[[#This Row],[2025/26 To - Total]]","v":0}]
["NAT|Non-transfer item","2|Interest (Incl. interest on unitary payments (PPP))","2023_24","MTEF2023",2,3,3,1276,659,"02","03","03","001276","000659","02|03|03",1,1,3,41,41,"01|01|03|41|41","National","Parliament","Associated Services","Transfer: Parliamentary Budget Office","Non-transfer item","Current","Current payments","Interest and rent on land","Interest (Incl. interest on unitary payments (PPP))","Interest (Incl. interest on unitary payments (PPP))","General public services","Executive and legislative organs","NAT",0,0,0,0,0,0,0,0,0,0,0,null,null,null,null,null,null,null,null,null,null,null,null,null,null,null,null,null,null,null,null,null,null,null,null,null,null,null,null,null,null,{"$f":"Dataset[[#This Row],[2023/24 From - Spending review Topic 1]]+Dataset[[#This Row],[2023/24 From - Spending review Topic 2]]+Dataset[[#This Row],[2023/24 From - Spending review Topic 3]]+Dataset[[#This Row],[2023/24 From - Spending review Topic 4]]+Dataset[[#This Row],[2023/24 From - Other reallocations]]","v":0},{"$f":"Dataset[[#This Row],[2024/25 From - Spending review Topic 1]]+Dataset[[#This Row],[2024/25 From - Spending review Topic 2]]+Dataset[[#This Row],[2024/25 From - Spending review Topic 3]]+Dataset[[#This Row],[2024/25 From - Spending review Topic 4]]+Dataset[[#This Row],[2024/25 From - Other reallocations]]","v":0},{"$f":"Dataset[[#This Row],[2025/26 From - Spending review Topic 1]]+Dataset[[#This Row],[2025/26 From - Spending review Topic 2]]+Dataset[[#This Row],[2025/26 From - Spending review Topic 3]]+Dataset[[#This Row],[2025/26 From - Spending review Topic 4]]+Dataset[[#This Row],[2025/26 From - Other reallocations]]","v":0},{"$f":"Dataset[[#This Row],[2023/24 To - Spending review Topic 1]]+Dataset[[#This Row],[2023/24 To - Spending review Topic 2]]+Dataset[[#This Row],[2023/24 To - Spending review Topic 3]]+Dataset[[#This Row],[2023/24 To - Spending review Topic 4]]+Dataset[[#This Row],[2023/24 To - Other reallocations]]","v":0},{"$f":"Dataset[[#This Row],[2024/25 To - Spending review Topic 1]]+Dataset[[#This Row],[2024/25 To - Spending review Topic 2]]+Dataset[[#This Row],[2024/25 To - Spending review Topic 3]]+Dataset[[#This Row],[2024/25 To - Spending review Topic 4]]+Dataset[[#This Row],[2024/25 To - Other reallocations]]","v":0},{"$f":"Dataset[[#This Row],[2025/26 To - Spending review Topic 1]]+Dataset[[#This Row],[2025/26 To - Spending review Topic 2]]+Dataset[[#This Row],[2025/26 To - Spending review Topic 3]]+Dataset[[#This Row],[2025/26 To - Spending review Topic 4]]+Dataset[[#This Row],[2025/26 To - Other reallocations]]","v":0},{"$f":"Dataset[[#This Row],[2023/24 Baseline]]+Dataset[[#This Row],[2023/24 From - Total]]+Dataset[[#This Row],[2023/24 To - Total]]","v":0},{"$f":"Dataset[[#This Row],[2024/25 Baseline]]+Dataset[[#This Row],[2024/25 From - Total]]+Dataset[[#This Row],[2024/25 To - Total]]","v":0},{"$f":"Dataset[[#This Row],[2025/26 Baseline]]+Dataset[[#This Row],[2025/26 From - Total]]+Dataset[[#This Row],[2025/26 To - Total]]","v":0}]
["NAT|Non-transfer item","2|Rent on land","2023_24","MTEF2023",2,3,3,1277,660,"02","03","03","001277","000660","02|03|03",1,1,3,42,42,"01|01|03|42|42","National","Parliament","Associated Services","Transfer: Parliamentary Budget Office","Non-transfer item","Current","Current payments","Interest and rent on land","Rent on land","Rent on land","General public services","Executive and legislative organs","NAT",0,0,0,0,0,0,0,0,0,0,0,null,null,null,null,null,null,null,null,null,null,null,null,null,null,null,null,null,null,null,null,null,null,null,null,null,null,null,null,null,null,{"$f":"Dataset[[#This Row],[2023/24 From - Spending review Topic 1]]+Dataset[[#This Row],[2023/24 From - Spending review Topic 2]]+Dataset[[#This Row],[2023/24 From - Spending review Topic 3]]+Dataset[[#This Row],[2023/24 From - Spending review Topic 4]]+Dataset[[#This Row],[2023/24 From - Other reallocations]]","v":0},{"$f":"Dataset[[#This Row],[2024/25 From - Spending review Topic 1]]+Dataset[[#This Row],[2024/25 From - Spending review Topic 2]]+Dataset[[#This Row],[2024/25 From - Spending review Topic 3]]+Dataset[[#This Row],[2024/25 From - Spending review Topic 4]]+Dataset[[#This Row],[2024/25 From - Other reallocations]]","v":0},{"$f":"Dataset[[#This Row],[2025/26 From - Spending review Topic 1]]+Dataset[[#This Row],[2025/26 From - Spending review Topic 2]]+Dataset[[#This Row],[2025/26 From - Spending review Topic 3]]+Dataset[[#This Row],[2025/26 From - Spending review Topic 4]]+Dataset[[#This Row],[2025/26 From - Other reallocations]]","v":0},{"$f":"Dataset[[#This Row],[2023/24 To - Spending review Topic 1]]+Dataset[[#This Row],[2023/24 To - Spending review Topic 2]]+Dataset[[#This Row],[2023/24 To - Spending review Topic 3]]+Dataset[[#This Row],[2023/24 To - Spending review Topic 4]]+Dataset[[#This Row],[2023/24 To - Other reallocations]]","v":0},{"$f":"Dataset[[#This Row],[2024/25 To - Spending review Topic 1]]+Dataset[[#This Row],[2024/25 To - Spending review Topic 2]]+Dataset[[#This Row],[2024/25 To - Spending review Topic 3]]+Dataset[[#This Row],[2024/25 To - Spending review Topic 4]]+Dataset[[#This Row],[2024/25 To - Other reallocations]]","v":0},{"$f":"Dataset[[#This Row],[2025/26 To - Spending review Topic 1]]+Dataset[[#This Row],[2025/26 To - Spending review Topic 2]]+Dataset[[#This Row],[2025/26 To - Spending review Topic 3]]+Dataset[[#This Row],[2025/26 To - Spending review Topic 4]]+Dataset[[#This Row],[2025/26 To - Other reallocations]]","v":0},{"$f":"Dataset[[#This Row],[2023/24 Baseline]]+Dataset[[#This Row],[2023/24 From - Total]]+Dataset[[#This Row],[2023/24 To - Total]]","v":0},{"$f":"Dataset[[#This Row],[2024/25 Baseline]]+Dataset[[#This Row],[2024/25 From - Total]]+Dataset[[#This Row],[2024/25 To - Total]]","v":0},{"$f":"Dataset[[#This Row],[2025/26 Baseline]]+Dataset[[#This Row],[2025/26 From - Total]]+Dataset[[#This Row],[2025/26 To - Total]]","v":0}]
["NAT|Non-transfer item","2|Provincial Revenue Funds","2023_24","MTEF2023",2,3,3,1278,661,"02","03","03","001278","000661","02|03|03",1,2,4,43,43,"01|02|04|43|43","National","Parliament","Associated Services","Transfer: Parliamentary Budget Office","Non-transfer item","Current","Transfers and subsidies","Provinces and municipalities","Provinces","Provincial Revenue Funds","General public services","Executive and legislative organs","NAT",0,0,0,0,0,0,0,0,0,0,0,null,null,null,null,null,null,null,null,null,null,null,null,null,null,null,null,null,null,null,null,null,null,null,null,null,null,null,null,null,null,{"$f":"Dataset[[#This Row],[2023/24 From - Spending review Topic 1]]+Dataset[[#This Row],[2023/24 From - Spending review Topic 2]]+Dataset[[#This Row],[2023/24 From - Spending review Topic 3]]+Dataset[[#This Row],[2023/24 From - Spending review Topic 4]]+Dataset[[#This Row],[2023/24 From - Other reallocations]]","v":0},{"$f":"Dataset[[#This Row],[2024/25 From - Spending review Topic 1]]+Dataset[[#This Row],[2024/25 From - Spending review Topic 2]]+Dataset[[#This Row],[2024/25 From - Spending review Topic 3]]+Dataset[[#This Row],[2024/25 From - Spending review Topic 4]]+Dataset[[#This Row],[2024/25 From - Other reallocations]]","v":0},{"$f":"Dataset[[#This Row],[2025/26 From - Spending review Topic 1]]+Dataset[[#This Row],[2025/26 From - Spending review Topic 2]]+Dataset[[#This Row],[2025/26 From - Spending review Topic 3]]+Dataset[[#This Row],[2025/26 From - Spending review Topic 4]]+Dataset[[#This Row],[2025/26 From - Other reallocations]]","v":0},{"$f":"Dataset[[#This Row],[2023/24 To - Spending review Topic 1]]+Dataset[[#This Row],[2023/24 To - Spending review Topic 2]]+Dataset[[#This Row],[2023/24 To - Spending review Topic 3]]+Dataset[[#This Row],[2023/24 To - Spending review Topic 4]]+Dataset[[#This Row],[2023/24 To - Other reallocations]]","v":0},{"$f":"Dataset[[#This Row],[2024/25 To - Spending review Topic 1]]+Dataset[[#This Row],[2024/25 To - Spending review Topic 2]]+Dataset[[#This Row],[2024/25 To - Spending review Topic 3]]+Dataset[[#This Row],[2024/25 To - Spending review Topic 4]]+Dataset[[#This Row],[2024/25 To - Other reallocations]]","v":0},{"$f":"Dataset[[#This Row],[2025/26 To - Spending review Topic 1]]+Dataset[[#This Row],[2025/26 To - Spending review Topic 2]]+Dataset[[#This Row],[2025/26 To - Spending review Topic 3]]+Dataset[[#This Row],[2025/26 To - Spending review Topic 4]]+Dataset[[#This Row],[2025/26 To - Other reallocations]]","v":0},{"$f":"Dataset[[#This Row],[2023/24 Baseline]]+Dataset[[#This Row],[2023/24 From - Total]]+Dataset[[#This Row],[2023/24 To - Total]]","v":0},{"$f":"Dataset[[#This Row],[2024/25 Baseline]]+Dataset[[#This Row],[2024/25 From - Total]]+Dataset[[#This Row],[2024/25 To - Total]]","v":0},{"$f":"Dataset[[#This Row],[2025/26 Baseline]]+Dataset[[#This Row],[2025/26 From - Total]]+Dataset[[#This Row],[2025/26 To - Total]]","v":0}]
["NAT|Non-transfer item","2|Provincial agencies and funds","2023_24","MTEF2023",2,3,3,1279,662,"02","03","03","001279","000662","02|03|03",1,2,4,43,44,"01|02|04|43|44","National","Parliament","Associated Services","Transfer: Parliamentary Budget Office","Non-transfer item","Current","Transfers and subsidies","Provinces and municipalities","Provinces","Provincial agencies and funds","General public services","Executive and legislative organs","NAT",0,0,0,0,0,0,0,0,0,0,0,null,null,null,null,null,null,null,null,null,null,null,null,null,null,null,null,null,null,null,null,null,null,null,null,null,null,null,null,null,null,{"$f":"Dataset[[#This Row],[2023/24 From - Spending review Topic 1]]+Dataset[[#This Row],[2023/24 From - Spending review Topic 2]]+Dataset[[#This Row],[2023/24 From - Spending review Topic 3]]+Dataset[[#This Row],[2023/24 From - Spending review Topic 4]]+Dataset[[#This Row],[2023/24 From - Other reallocations]]","v":0},{"$f":"Dataset[[#This Row],[2024/25 From - Spending review Topic 1]]+Dataset[[#This Row],[2024/25 From - Spending review Topic 2]]+Dataset[[#This Row],[2024/25 From - Spending review Topic 3]]+Dataset[[#This Row],[2024/25 From - Spending review Topic 4]]+Dataset[[#This Row],[2024/25 From - Other reallocations]]","v":0},{"$f":"Dataset[[#This Row],[2025/26 From - Spending review Topic 1]]+Dataset[[#This Row],[2025/26 From - Spending review Topic 2]]+Dataset[[#This Row],[2025/26 From - Spending review Topic 3]]+Dataset[[#This Row],[2025/26 From - Spending review Topic 4]]+Dataset[[#This Row],[2025/26 From - Other reallocations]]","v":0},{"$f":"Dataset[[#This Row],[2023/24 To - Spending review Topic 1]]+Dataset[[#This Row],[2023/24 To - Spending review Topic 2]]+Dataset[[#This Row],[2023/24 To - Spending review Topic 3]]+Dataset[[#This Row],[2023/24 To - Spending review Topic 4]]+Dataset[[#This Row],[2023/24 To - Other reallocations]]","v":0},{"$f":"Dataset[[#This Row],[2024/25 To - Spending review Topic 1]]+Dataset[[#This Row],[2024/25 To - Spending review Topic 2]]+Dataset[[#This Row],[2024/25 To - Spending review Topic 3]]+Dataset[[#This Row],[2024/25 To - Spending review Topic 4]]+Dataset[[#This Row],[2024/25 To - Other reallocations]]","v":0},{"$f":"Dataset[[#This Row],[2025/26 To - Spending review Topic 1]]+Dataset[[#This Row],[2025/26 To - Spending review Topic 2]]+Dataset[[#This Row],[2025/26 To - Spending review Topic 3]]+Dataset[[#This Row],[2025/26 To - Spending review Topic 4]]+Dataset[[#This Row],[2025/26 To - Other reallocations]]","v":0},{"$f":"Dataset[[#This Row],[2023/24 Baseline]]+Dataset[[#This Row],[2023/24 From - Total]]+Dataset[[#This Row],[2023/24 To - Total]]","v":0},{"$f":"Dataset[[#This Row],[2024/25 Baseline]]+Dataset[[#This Row],[2024/25 From - Total]]+Dataset[[#This Row],[2024/25 To - Total]]","v":0},{"$f":"Dataset[[#This Row],[2025/26 Baseline]]+Dataset[[#This Row],[2025/26 From - Total]]+Dataset[[#This Row],[2025/26 To - Total]]","v":0}]
["NAT|Non-transfer item","2|Municipal bank accounts","2023_24","MTEF2023",2,3,3,1280,663,"02","03","03","001280","000663","02|03|03",1,2,4,44,45,"01|02|04|44|45","National","Parliament","Associated Services","Transfer: Parliamentary Budget Office","Non-transfer item","Current","Transfers and subsidies","Provinces and municipalities","Municipalities","Municipal bank accounts","General public services","Executive and legislative organs","NAT",0,0,0,0,0,0,0,0,0,0,0,null,null,null,null,null,null,null,null,null,null,null,null,null,null,null,null,null,null,null,null,null,null,null,null,null,null,null,null,null,null,{"$f":"Dataset[[#This Row],[2023/24 From - Spending review Topic 1]]+Dataset[[#This Row],[2023/24 From - Spending review Topic 2]]+Dataset[[#This Row],[2023/24 From - Spending review Topic 3]]+Dataset[[#This Row],[2023/24 From - Spending review Topic 4]]+Dataset[[#This Row],[2023/24 From - Other reallocations]]","v":0},{"$f":"Dataset[[#This Row],[2024/25 From - Spending review Topic 1]]+Dataset[[#This Row],[2024/25 From - Spending review Topic 2]]+Dataset[[#This Row],[2024/25 From - Spending review Topic 3]]+Dataset[[#This Row],[2024/25 From - Spending review Topic 4]]+Dataset[[#This Row],[2024/25 From - Other reallocations]]","v":0},{"$f":"Dataset[[#This Row],[2025/26 From - Spending review Topic 1]]+Dataset[[#This Row],[2025/26 From - Spending review Topic 2]]+Dataset[[#This Row],[2025/26 From - Spending review Topic 3]]+Dataset[[#This Row],[2025/26 From - Spending review Topic 4]]+Dataset[[#This Row],[2025/26 From - Other reallocations]]","v":0},{"$f":"Dataset[[#This Row],[2023/24 To - Spending review Topic 1]]+Dataset[[#This Row],[2023/24 To - Spending review Topic 2]]+Dataset[[#This Row],[2023/24 To - Spending review Topic 3]]+Dataset[[#This Row],[2023/24 To - Spending review Topic 4]]+Dataset[[#This Row],[2023/24 To - Other reallocations]]","v":0},{"$f":"Dataset[[#This Row],[2024/25 To - Spending review Topic 1]]+Dataset[[#This Row],[2024/25 To - Spending review Topic 2]]+Dataset[[#This Row],[2024/25 To - Spending review Topic 3]]+Dataset[[#This Row],[2024/25 To - Spending review Topic 4]]+Dataset[[#This Row],[2024/25 To - Other reallocations]]","v":0},{"$f":"Dataset[[#This Row],[2025/26 To - Spending review Topic 1]]+Dataset[[#This Row],[2025/26 To - Spending review Topic 2]]+Dataset[[#This Row],[2025/26 To - Spending review Topic 3]]+Dataset[[#This Row],[2025/26 To - Spending review Topic 4]]+Dataset[[#This Row],[2025/26 To - Other reallocations]]","v":0},{"$f":"Dataset[[#This Row],[2023/24 Baseline]]+Dataset[[#This Row],[2023/24 From - Total]]+Dataset[[#This Row],[2023/24 To - Total]]","v":0},{"$f":"Dataset[[#This Row],[2024/25 Baseline]]+Dataset[[#This Row],[2024/25 From - Total]]+Dataset[[#This Row],[2024/25 To - Total]]","v":0},{"$f":"Dataset[[#This Row],[2025/26 Baseline]]+Dataset[[#This Row],[2025/26 From - Total]]+Dataset[[#This Row],[2025/26 To - Total]]","v":0}]
["NAT|Non-transfer item","2|Municipal agencies and funds","2023_24","MTEF2023",2,3,3,1281,664,"02","03","03","001281","000664","02|03|03",1,2,4,44,46,"01|02|04|44|46","National","Parliament","Associated Services","Transfer: Parliamentary Budget Office","Non-transfer item","Current","Transfers and subsidies","Provinces and municipalities","Municipalities","Municipal agencies and funds","General public services","Executive and legislative organs","NAT",0,0,0,0,0,0,0,0,0,0,0,null,null,null,null,null,null,null,null,null,null,null,null,null,null,null,null,null,null,null,null,null,null,null,null,null,null,null,null,null,null,{"$f":"Dataset[[#This Row],[2023/24 From - Spending review Topic 1]]+Dataset[[#This Row],[2023/24 From - Spending review Topic 2]]+Dataset[[#This Row],[2023/24 From - Spending review Topic 3]]+Dataset[[#This Row],[2023/24 From - Spending review Topic 4]]+Dataset[[#This Row],[2023/24 From - Other reallocations]]","v":0},{"$f":"Dataset[[#This Row],[2024/25 From - Spending review Topic 1]]+Dataset[[#This Row],[2024/25 From - Spending review Topic 2]]+Dataset[[#This Row],[2024/25 From - Spending review Topic 3]]+Dataset[[#This Row],[2024/25 From - Spending review Topic 4]]+Dataset[[#This Row],[2024/25 From - Other reallocations]]","v":0},{"$f":"Dataset[[#This Row],[2025/26 From - Spending review Topic 1]]+Dataset[[#This Row],[2025/26 From - Spending review Topic 2]]+Dataset[[#This Row],[2025/26 From - Spending review Topic 3]]+Dataset[[#This Row],[2025/26 From - Spending review Topic 4]]+Dataset[[#This Row],[2025/26 From - Other reallocations]]","v":0},{"$f":"Dataset[[#This Row],[2023/24 To - Spending review Topic 1]]+Dataset[[#This Row],[2023/24 To - Spending review Topic 2]]+Dataset[[#This Row],[2023/24 To - Spending review Topic 3]]+Dataset[[#This Row],[2023/24 To - Spending review Topic 4]]+Dataset[[#This Row],[2023/24 To - Other reallocations]]","v":0},{"$f":"Dataset[[#This Row],[2024/25 To - Spending review Topic 1]]+Dataset[[#This Row],[2024/25 To - Spending review Topic 2]]+Dataset[[#This Row],[2024/25 To - Spending review Topic 3]]+Dataset[[#This Row],[2024/25 To - Spending review Topic 4]]+Dataset[[#This Row],[2024/25 To - Other reallocations]]","v":0},{"$f":"Dataset[[#This Row],[2025/26 To - Spending review Topic 1]]+Dataset[[#This Row],[2025/26 To - Spending review Topic 2]]+Dataset[[#This Row],[2025/26 To - Spending review Topic 3]]+Dataset[[#This Row],[2025/26 To - Spending review Topic 4]]+Dataset[[#This Row],[2025/26 To - Other reallocations]]","v":0},{"$f":"Dataset[[#This Row],[2023/24 Baseline]]+Dataset[[#This Row],[2023/24 From - Total]]+Dataset[[#This Row],[2023/24 To - Total]]","v":0},{"$f":"Dataset[[#This Row],[2024/25 Baseline]]+Dataset[[#This Row],[2024/25 From - Total]]+Dataset[[#This Row],[2024/25 To - Total]]","v":0},{"$f":"Dataset[[#This Row],[2025/26 Baseline]]+Dataset[[#This Row],[2025/26 From - Total]]+Dataset[[#This Row],[2025/26 To - Total]]","v":0}]
["NAT|Non-transfer item","2|Social security funds","2023_24","MTEF2023",2,3,3,1282,665,"02","03","03","001282","000665","02|03|03",1,2,5,45,47,"01|02|05|45|47","National","Parliament","Associated Services","Transfer: Parliamentary Budget Office","Non-transfer item","Current","Transfers and subsidies","Departmental agencies and accounts","Social security funds","Social security funds","General public services","Executive and legislative organs","NAT",0,0,0,0,0,0,0,0,0,0,0,null,null,null,null,null,null,null,null,null,null,null,null,null,null,null,null,null,null,null,null,null,null,null,null,null,null,null,null,null,null,{"$f":"Dataset[[#This Row],[2023/24 From - Spending review Topic 1]]+Dataset[[#This Row],[2023/24 From - Spending review Topic 2]]+Dataset[[#This Row],[2023/24 From - Spending review Topic 3]]+Dataset[[#This Row],[2023/24 From - Spending review Topic 4]]+Dataset[[#This Row],[2023/24 From - Other reallocations]]","v":0},{"$f":"Dataset[[#This Row],[2024/25 From - Spending review Topic 1]]+Dataset[[#This Row],[2024/25 From - Spending review Topic 2]]+Dataset[[#This Row],[2024/25 From - Spending review Topic 3]]+Dataset[[#This Row],[2024/25 From - Spending review Topic 4]]+Dataset[[#This Row],[2024/25 From - Other reallocations]]","v":0},{"$f":"Dataset[[#This Row],[2025/26 From - Spending review Topic 1]]+Dataset[[#This Row],[2025/26 From - Spending review Topic 2]]+Dataset[[#This Row],[2025/26 From - Spending review Topic 3]]+Dataset[[#This Row],[2025/26 From - Spending review Topic 4]]+Dataset[[#This Row],[2025/26 From - Other reallocations]]","v":0},{"$f":"Dataset[[#This Row],[2023/24 To - Spending review Topic 1]]+Dataset[[#This Row],[2023/24 To - Spending review Topic 2]]+Dataset[[#This Row],[2023/24 To - Spending review Topic 3]]+Dataset[[#This Row],[2023/24 To - Spending review Topic 4]]+Dataset[[#This Row],[2023/24 To - Other reallocations]]","v":0},{"$f":"Dataset[[#This Row],[2024/25 To - Spending review Topic 1]]+Dataset[[#This Row],[2024/25 To - Spending review Topic 2]]+Dataset[[#This Row],[2024/25 To - Spending review Topic 3]]+Dataset[[#This Row],[2024/25 To - Spending review Topic 4]]+Dataset[[#This Row],[2024/25 To - Other reallocations]]","v":0},{"$f":"Dataset[[#This Row],[2025/26 To - Spending review Topic 1]]+Dataset[[#This Row],[2025/26 To - Spending review Topic 2]]+Dataset[[#This Row],[2025/26 To - Spending review Topic 3]]+Dataset[[#This Row],[2025/26 To - Spending review Topic 4]]+Dataset[[#This Row],[2025/26 To - Other reallocations]]","v":0},{"$f":"Dataset[[#This Row],[2023/24 Baseline]]+Dataset[[#This Row],[2023/24 From - Total]]+Dataset[[#This Row],[2023/24 To - Total]]","v":0},{"$f":"Dataset[[#This Row],[2024/25 Baseline]]+Dataset[[#This Row],[2024/25 From - Total]]+Dataset[[#This Row],[2024/25 To - Total]]","v":0},{"$f":"Dataset[[#This Row],[2025/26 Baseline]]+Dataset[[#This Row],[2025/26 From - Total]]+Dataset[[#This Row],[2025/26 To - Total]]","v":0}]
["NAT|Non-transfer item","2|Departmental agencies (non-business entities)","2023_24","MTEF2023",2,3,3,1283,666,"02","03","03","001283","000666","02|03|03",1,2,5,46,48,"01|02|05|46|48","National","Parliament","Associated Services","Transfer: Parliamentary Budget Office","Non-transfer item","Current","Transfers and subsidies","Departmental agencies and accounts","Departmental agencies (non-business entities)","Departmental agencies (non-business entities)","General public services","Executive and legislative organs","NAT",0,0,0,0,0,0,0,0,0,0,0,null,null,null,null,null,null,null,null,null,null,null,null,null,null,null,null,null,null,null,null,null,null,null,null,null,null,null,null,null,null,{"$f":"Dataset[[#This Row],[2023/24 From - Spending review Topic 1]]+Dataset[[#This Row],[2023/24 From - Spending review Topic 2]]+Dataset[[#This Row],[2023/24 From - Spending review Topic 3]]+Dataset[[#This Row],[2023/24 From - Spending review Topic 4]]+Dataset[[#This Row],[2023/24 From - Other reallocations]]","v":0},{"$f":"Dataset[[#This Row],[2024/25 From - Spending review Topic 1]]+Dataset[[#This Row],[2024/25 From - Spending review Topic 2]]+Dataset[[#This Row],[2024/25 From - Spending review Topic 3]]+Dataset[[#This Row],[2024/25 From - Spending review Topic 4]]+Dataset[[#This Row],[2024/25 From - Other reallocations]]","v":0},{"$f":"Dataset[[#This Row],[2025/26 From - Spending review Topic 1]]+Dataset[[#This Row],[2025/26 From - Spending review Topic 2]]+Dataset[[#This Row],[2025/26 From - Spending review Topic 3]]+Dataset[[#This Row],[2025/26 From - Spending review Topic 4]]+Dataset[[#This Row],[2025/26 From - Other reallocations]]","v":0},{"$f":"Dataset[[#This Row],[2023/24 To - Spending review Topic 1]]+Dataset[[#This Row],[2023/24 To - Spending review Topic 2]]+Dataset[[#This Row],[2023/24 To - Spending review Topic 3]]+Dataset[[#This Row],[2023/24 To - Spending review Topic 4]]+Dataset[[#This Row],[2023/24 To - Other reallocations]]","v":0},{"$f":"Dataset[[#This Row],[2024/25 To - Spending review Topic 1]]+Dataset[[#This Row],[2024/25 To - Spending review Topic 2]]+Dataset[[#This Row],[2024/25 To - Spending review Topic 3]]+Dataset[[#This Row],[2024/25 To - Spending review Topic 4]]+Dataset[[#This Row],[2024/25 To - Other reallocations]]","v":0},{"$f":"Dataset[[#This Row],[2025/26 To - Spending review Topic 1]]+Dataset[[#This Row],[2025/26 To - Spending review Topic 2]]+Dataset[[#This Row],[2025/26 To - Spending review Topic 3]]+Dataset[[#This Row],[2025/26 To - Spending review Topic 4]]+Dataset[[#This Row],[2025/26 To - Other reallocations]]","v":0},{"$f":"Dataset[[#This Row],[2023/24 Baseline]]+Dataset[[#This Row],[2023/24 From - Total]]+Dataset[[#This Row],[2023/24 To - Total]]","v":0},{"$f":"Dataset[[#This Row],[2024/25 Baseline]]+Dataset[[#This Row],[2024/25 From - Total]]+Dataset[[#This Row],[2024/25 To - Total]]","v":0},{"$f":"Dataset[[#This Row],[2025/26 Baseline]]+Dataset[[#This Row],[2025/26 From - Total]]+Dataset[[#This Row],[2025/26 To - Total]]","v":0}]
["NAT|Non-transfer item","2|Higher education institutions","2023_24","MTEF2023",2,3,3,1284,667,"02","03","03","001284","000667","02|03|03",1,2,6,47,49,"01|02|06|47|49","National","Parliament","Associated Services","Transfer: Parliamentary Budget Office","Non-transfer item","Current","Transfers and subsidies","Higher education institutions","Higher education institutions","Higher education institutions","General public services","Executive and legislative organs","NAT",0,0,0,0,0,0,0,0,0,0,0,null,null,null,null,null,null,null,null,null,null,null,null,null,null,null,null,null,null,null,null,null,null,null,null,null,null,null,null,null,null,{"$f":"Dataset[[#This Row],[2023/24 From - Spending review Topic 1]]+Dataset[[#This Row],[2023/24 From - Spending review Topic 2]]+Dataset[[#This Row],[2023/24 From - Spending review Topic 3]]+Dataset[[#This Row],[2023/24 From - Spending review Topic 4]]+Dataset[[#This Row],[2023/24 From - Other reallocations]]","v":0},{"$f":"Dataset[[#This Row],[2024/25 From - Spending review Topic 1]]+Dataset[[#This Row],[2024/25 From - Spending review Topic 2]]+Dataset[[#This Row],[2024/25 From - Spending review Topic 3]]+Dataset[[#This Row],[2024/25 From - Spending review Topic 4]]+Dataset[[#This Row],[2024/25 From - Other reallocations]]","v":0},{"$f":"Dataset[[#This Row],[2025/26 From - Spending review Topic 1]]+Dataset[[#This Row],[2025/26 From - Spending review Topic 2]]+Dataset[[#This Row],[2025/26 From - Spending review Topic 3]]+Dataset[[#This Row],[2025/26 From - Spending review Topic 4]]+Dataset[[#This Row],[2025/26 From - Other reallocations]]","v":0},{"$f":"Dataset[[#This Row],[2023/24 To - Spending review Topic 1]]+Dataset[[#This Row],[2023/24 To - Spending review Topic 2]]+Dataset[[#This Row],[2023/24 To - Spending review Topic 3]]+Dataset[[#This Row],[2023/24 To - Spending review Topic 4]]+Dataset[[#This Row],[2023/24 To - Other reallocations]]","v":0},{"$f":"Dataset[[#This Row],[2024/25 To - Spending review Topic 1]]+Dataset[[#This Row],[2024/25 To - Spending review Topic 2]]+Dataset[[#This Row],[2024/25 To - Spending review Topic 3]]+Dataset[[#This Row],[2024/25 To - Spending review Topic 4]]+Dataset[[#This Row],[2024/25 To - Other reallocations]]","v":0},{"$f":"Dataset[[#This Row],[2025/26 To - Spending review Topic 1]]+Dataset[[#This Row],[2025/26 To - Spending review Topic 2]]+Dataset[[#This Row],[2025/26 To - Spending review Topic 3]]+Dataset[[#This Row],[2025/26 To - Spending review Topic 4]]+Dataset[[#This Row],[2025/26 To - Other reallocations]]","v":0},{"$f":"Dataset[[#This Row],[2023/24 Baseline]]+Dataset[[#This Row],[2023/24 From - Total]]+Dataset[[#This Row],[2023/24 To - Total]]","v":0},{"$f":"Dataset[[#This Row],[2024/25 Baseline]]+Dataset[[#This Row],[2024/25 From - Total]]+Dataset[[#This Row],[2024/25 To - Total]]","v":0},{"$f":"Dataset[[#This Row],[2025/26 Baseline]]+Dataset[[#This Row],[2025/26 From - Total]]+Dataset[[#This Row],[2025/26 To - Total]]","v":0}]
["NAT|Non-transfer item","2|Foreign governments and international organisations","2023_24","MTEF2023",2,3,3,1285,668,"02","03","03","001285","000668","02|03|03",1,2,7,48,50,"01|02|07|48|50","National","Parliament","Associated Services","Transfer: Parliamentary Budget Office","Non-transfer item","Current","Transfers and subsidies","Foreign governments and international organisations","Foreign governments and international organisations","Foreign governments and international organisations","General public services","Executive and legislative organs","NAT",0,0,0,0,0,0,0,0,0,0,0,null,null,null,null,null,null,null,null,null,null,null,null,null,null,null,null,null,null,null,null,null,null,null,null,null,null,null,null,null,null,{"$f":"Dataset[[#This Row],[2023/24 From - Spending review Topic 1]]+Dataset[[#This Row],[2023/24 From - Spending review Topic 2]]+Dataset[[#This Row],[2023/24 From - Spending review Topic 3]]+Dataset[[#This Row],[2023/24 From - Spending review Topic 4]]+Dataset[[#This Row],[2023/24 From - Other reallocations]]","v":0},{"$f":"Dataset[[#This Row],[2024/25 From - Spending review Topic 1]]+Dataset[[#This Row],[2024/25 From - Spending review Topic 2]]+Dataset[[#This Row],[2024/25 From - Spending review Topic 3]]+Dataset[[#This Row],[2024/25 From - Spending review Topic 4]]+Dataset[[#This Row],[2024/25 From - Other reallocations]]","v":0},{"$f":"Dataset[[#This Row],[2025/26 From - Spending review Topic 1]]+Dataset[[#This Row],[2025/26 From - Spending review Topic 2]]+Dataset[[#This Row],[2025/26 From - Spending review Topic 3]]+Dataset[[#This Row],[2025/26 From - Spending review Topic 4]]+Dataset[[#This Row],[2025/26 From - Other reallocations]]","v":0},{"$f":"Dataset[[#This Row],[2023/24 To - Spending review Topic 1]]+Dataset[[#This Row],[2023/24 To - Spending review Topic 2]]+Dataset[[#This Row],[2023/24 To - Spending review Topic 3]]+Dataset[[#This Row],[2023/24 To - Spending review Topic 4]]+Dataset[[#This Row],[2023/24 To - Other reallocations]]","v":0},{"$f":"Dataset[[#This Row],[2024/25 To - Spending review Topic 1]]+Dataset[[#This Row],[2024/25 To - Spending review Topic 2]]+Dataset[[#This Row],[2024/25 To - Spending review Topic 3]]+Dataset[[#This Row],[2024/25 To - Spending review Topic 4]]+Dataset[[#This Row],[2024/25 To - Other reallocations]]","v":0},{"$f":"Dataset[[#This Row],[2025/26 To - Spending review Topic 1]]+Dataset[[#This Row],[2025/26 To - Spending review Topic 2]]+Dataset[[#This Row],[2025/26 To - Spending review Topic 3]]+Dataset[[#This Row],[2025/26 To - Spending review Topic 4]]+Dataset[[#This Row],[2025/26 To - Other reallocations]]","v":0},{"$f":"Dataset[[#This Row],[2023/24 Baseline]]+Dataset[[#This Row],[2023/24 From - Total]]+Dataset[[#This Row],[2023/24 To - Total]]","v":0},{"$f":"Dataset[[#This Row],[2024/25 Baseline]]+Dataset[[#This Row],[2024/25 From - Total]]+Dataset[[#This Row],[2024/25 To - Total]]","v":0},{"$f":"Dataset[[#This Row],[2025/26 Baseline]]+Dataset[[#This Row],[2025/26 From - Total]]+Dataset[[#This Row],[2025/26 To - Total]]","v":0}]
["NAT|Non-transfer item","2|Subsidies on products and production (pc)","2023_24","MTEF2023",2,3,3,1286,669,"02","03","03","001286","000669","02|03|03",1,2,8,49,51,"01|02|08|49|51","National","Parliament","Associated Services","Transfer: Parliamentary Budget Office","Non-transfer item","Current","Transfers and subsidies","Public corporations and private enterprises","Public corporations","Subsidies on products and production (pc)","General public services","Executive and legislative organs","NAT",0,0,0,0,0,0,0,0,0,0,0,null,null,null,null,null,null,null,null,null,null,null,null,null,null,null,null,null,null,null,null,null,null,null,null,null,null,null,null,null,null,{"$f":"Dataset[[#This Row],[2023/24 From - Spending review Topic 1]]+Dataset[[#This Row],[2023/24 From - Spending review Topic 2]]+Dataset[[#This Row],[2023/24 From - Spending review Topic 3]]+Dataset[[#This Row],[2023/24 From - Spending review Topic 4]]+Dataset[[#This Row],[2023/24 From - Other reallocations]]","v":0},{"$f":"Dataset[[#This Row],[2024/25 From - Spending review Topic 1]]+Dataset[[#This Row],[2024/25 From - Spending review Topic 2]]+Dataset[[#This Row],[2024/25 From - Spending review Topic 3]]+Dataset[[#This Row],[2024/25 From - Spending review Topic 4]]+Dataset[[#This Row],[2024/25 From - Other reallocations]]","v":0},{"$f":"Dataset[[#This Row],[2025/26 From - Spending review Topic 1]]+Dataset[[#This Row],[2025/26 From - Spending review Topic 2]]+Dataset[[#This Row],[2025/26 From - Spending review Topic 3]]+Dataset[[#This Row],[2025/26 From - Spending review Topic 4]]+Dataset[[#This Row],[2025/26 From - Other reallocations]]","v":0},{"$f":"Dataset[[#This Row],[2023/24 To - Spending review Topic 1]]+Dataset[[#This Row],[2023/24 To - Spending review Topic 2]]+Dataset[[#This Row],[2023/24 To - Spending review Topic 3]]+Dataset[[#This Row],[2023/24 To - Spending review Topic 4]]+Dataset[[#This Row],[2023/24 To - Other reallocations]]","v":0},{"$f":"Dataset[[#This Row],[2024/25 To - Spending review Topic 1]]+Dataset[[#This Row],[2024/25 To - Spending review Topic 2]]+Dataset[[#This Row],[2024/25 To - Spending review Topic 3]]+Dataset[[#This Row],[2024/25 To - Spending review Topic 4]]+Dataset[[#This Row],[2024/25 To - Other reallocations]]","v":0},{"$f":"Dataset[[#This Row],[2025/26 To - Spending review Topic 1]]+Dataset[[#This Row],[2025/26 To - Spending review Topic 2]]+Dataset[[#This Row],[2025/26 To - Spending review Topic 3]]+Dataset[[#This Row],[2025/26 To - Spending review Topic 4]]+Dataset[[#This Row],[2025/26 To - Other reallocations]]","v":0},{"$f":"Dataset[[#This Row],[2023/24 Baseline]]+Dataset[[#This Row],[2023/24 From - Total]]+Dataset[[#This Row],[2023/24 To - Total]]","v":0},{"$f":"Dataset[[#This Row],[2024/25 Baseline]]+Dataset[[#This Row],[2024/25 From - Total]]+Dataset[[#This Row],[2024/25 To - Total]]","v":0},{"$f":"Dataset[[#This Row],[2025/26 Baseline]]+Dataset[[#This Row],[2025/26 From - Total]]+Dataset[[#This Row],[2025/26 To - Total]]","v":0}]
["NAT|Non-transfer item","2|Other transfers to public corporations","2023_24","MTEF2023",2,3,3,1287,670,"02","03","03","001287","000670","02|03|03",1,2,8,49,52,"01|02|08|49|52","National","Parliament","Associated Services","Transfer: Parliamentary Budget Office","Non-transfer item","Current","Transfers and subsidies","Public corporations and private enterprises","Public corporations","Other transfers to public corporations","General public services","Executive and legislative organs","NAT",0,0,0,0,0,0,0,0,0,0,0,null,null,null,null,null,null,null,null,null,null,null,null,null,null,null,null,null,null,null,null,null,null,null,null,null,null,null,null,null,null,{"$f":"Dataset[[#This Row],[2023/24 From - Spending review Topic 1]]+Dataset[[#This Row],[2023/24 From - Spending review Topic 2]]+Dataset[[#This Row],[2023/24 From - Spending review Topic 3]]+Dataset[[#This Row],[2023/24 From - Spending review Topic 4]]+Dataset[[#This Row],[2023/24 From - Other reallocations]]","v":0},{"$f":"Dataset[[#This Row],[2024/25 From - Spending review Topic 1]]+Dataset[[#This Row],[2024/25 From - Spending review Topic 2]]+Dataset[[#This Row],[2024/25 From - Spending review Topic 3]]+Dataset[[#This Row],[2024/25 From - Spending review Topic 4]]+Dataset[[#This Row],[2024/25 From - Other reallocations]]","v":0},{"$f":"Dataset[[#This Row],[2025/26 From - Spending review Topic 1]]+Dataset[[#This Row],[2025/26 From - Spending review Topic 2]]+Dataset[[#This Row],[2025/26 From - Spending review Topic 3]]+Dataset[[#This Row],[2025/26 From - Spending review Topic 4]]+Dataset[[#This Row],[2025/26 From - Other reallocations]]","v":0},{"$f":"Dataset[[#This Row],[2023/24 To - Spending review Topic 1]]+Dataset[[#This Row],[2023/24 To - Spending review Topic 2]]+Dataset[[#This Row],[2023/24 To - Spending review Topic 3]]+Dataset[[#This Row],[2023/24 To - Spending review Topic 4]]+Dataset[[#This Row],[2023/24 To - Other reallocations]]","v":0},{"$f":"Dataset[[#This Row],[2024/25 To - Spending review Topic 1]]+Dataset[[#This Row],[2024/25 To - Spending review Topic 2]]+Dataset[[#This Row],[2024/25 To - Spending review Topic 3]]+Dataset[[#This Row],[2024/25 To - Spending review Topic 4]]+Dataset[[#This Row],[2024/25 To - Other reallocations]]","v":0},{"$f":"Dataset[[#This Row],[2025/26 To - Spending review Topic 1]]+Dataset[[#This Row],[2025/26 To - Spending review Topic 2]]+Dataset[[#This Row],[2025/26 To - Spending review Topic 3]]+Dataset[[#This Row],[2025/26 To - Spending review Topic 4]]+Dataset[[#This Row],[2025/26 To - Other reallocations]]","v":0},{"$f":"Dataset[[#This Row],[2023/24 Baseline]]+Dataset[[#This Row],[2023/24 From - Total]]+Dataset[[#This Row],[2023/24 To - Total]]","v":0},{"$f":"Dataset[[#This Row],[2024/25 Baseline]]+Dataset[[#This Row],[2024/25 From - Total]]+Dataset[[#This Row],[2024/25 To - Total]]","v":0},{"$f":"Dataset[[#This Row],[2025/26 Baseline]]+Dataset[[#This Row],[2025/26 From - Total]]+Dataset[[#This Row],[2025/26 To - Total]]","v":0}]
["NAT|Non-transfer item","2|Subsidies on products and production (pe)","2023_24","MTEF2023",2,3,3,1288,671,"02","03","03","001288","000671","02|03|03",1,2,8,50,53,"01|02|08|50|53","National","Parliament","Associated Services","Transfer: Parliamentary Budget Office","Non-transfer item","Current","Transfers and subsidies","Public corporations and private enterprises","Private enterprises","Subsidies on products and production (pe)","General public services","Executive and legislative organs","NAT",0,0,0,0,0,0,0,0,0,0,0,null,null,null,null,null,null,null,null,null,null,null,null,null,null,null,null,null,null,null,null,null,null,null,null,null,null,null,null,null,null,{"$f":"Dataset[[#This Row],[2023/24 From - Spending review Topic 1]]+Dataset[[#This Row],[2023/24 From - Spending review Topic 2]]+Dataset[[#This Row],[2023/24 From - Spending review Topic 3]]+Dataset[[#This Row],[2023/24 From - Spending review Topic 4]]+Dataset[[#This Row],[2023/24 From - Other reallocations]]","v":0},{"$f":"Dataset[[#This Row],[2024/25 From - Spending review Topic 1]]+Dataset[[#This Row],[2024/25 From - Spending review Topic 2]]+Dataset[[#This Row],[2024/25 From - Spending review Topic 3]]+Dataset[[#This Row],[2024/25 From - Spending review Topic 4]]+Dataset[[#This Row],[2024/25 From - Other reallocations]]","v":0},{"$f":"Dataset[[#This Row],[2025/26 From - Spending review Topic 1]]+Dataset[[#This Row],[2025/26 From - Spending review Topic 2]]+Dataset[[#This Row],[2025/26 From - Spending review Topic 3]]+Dataset[[#This Row],[2025/26 From - Spending review Topic 4]]+Dataset[[#This Row],[2025/26 From - Other reallocations]]","v":0},{"$f":"Dataset[[#This Row],[2023/24 To - Spending review Topic 1]]+Dataset[[#This Row],[2023/24 To - Spending review Topic 2]]+Dataset[[#This Row],[2023/24 To - Spending review Topic 3]]+Dataset[[#This Row],[2023/24 To - Spending review Topic 4]]+Dataset[[#This Row],[2023/24 To - Other reallocations]]","v":0},{"$f":"Dataset[[#This Row],[2024/25 To - Spending review Topic 1]]+Dataset[[#This Row],[2024/25 To - Spending review Topic 2]]+Dataset[[#This Row],[2024/25 To - Spending review Topic 3]]+Dataset[[#This Row],[2024/25 To - Spending review Topic 4]]+Dataset[[#This Row],[2024/25 To - Other reallocations]]","v":0},{"$f":"Dataset[[#This Row],[2025/26 To - Spending review Topic 1]]+Dataset[[#This Row],[2025/26 To - Spending review Topic 2]]+Dataset[[#This Row],[2025/26 To - Spending review Topic 3]]+Dataset[[#This Row],[2025/26 To - Spending review Topic 4]]+Dataset[[#This Row],[2025/26 To - Other reallocations]]","v":0},{"$f":"Dataset[[#This Row],[2023/24 Baseline]]+Dataset[[#This Row],[2023/24 From - Total]]+Dataset[[#This Row],[2023/24 To - Total]]","v":0},{"$f":"Dataset[[#This Row],[2024/25 Baseline]]+Dataset[[#This Row],[2024/25 From - Total]]+Dataset[[#This Row],[2024/25 To - Total]]","v":0},{"$f":"Dataset[[#This Row],[2025/26 Baseline]]+Dataset[[#This Row],[2025/26 From - Total]]+Dataset[[#This Row],[2025/26 To - Total]]","v":0}]
["NAT|Non-transfer item","2|Other transfers to private enterprises","2023_24","MTEF2023",2,3,3,1289,672,"02","03","03","001289","000672","02|03|03",1,2,8,50,54,"01|02|08|50|54","National","Parliament","Associated Services","Transfer: Parliamentary Budget Office","Non-transfer item","Current","Transfers and subsidies","Public corporations and private enterprises","Private enterprises","Other transfers to private enterprises","General public services","Executive and legislative organs","NAT",0,0,0,0,0,0,0,0,0,0,0,null,null,null,null,null,null,null,null,null,null,null,null,null,null,null,null,null,null,null,null,null,null,null,null,null,null,null,null,null,null,{"$f":"Dataset[[#This Row],[2023/24 From - Spending review Topic 1]]+Dataset[[#This Row],[2023/24 From - Spending review Topic 2]]+Dataset[[#This Row],[2023/24 From - Spending review Topic 3]]+Dataset[[#This Row],[2023/24 From - Spending review Topic 4]]+Dataset[[#This Row],[2023/24 From - Other reallocations]]","v":0},{"$f":"Dataset[[#This Row],[2024/25 From - Spending review Topic 1]]+Dataset[[#This Row],[2024/25 From - Spending review Topic 2]]+Dataset[[#This Row],[2024/25 From - Spending review Topic 3]]+Dataset[[#This Row],[2024/25 From - Spending review Topic 4]]+Dataset[[#This Row],[2024/25 From - Other reallocations]]","v":0},{"$f":"Dataset[[#This Row],[2025/26 From - Spending review Topic 1]]+Dataset[[#This Row],[2025/26 From - Spending review Topic 2]]+Dataset[[#This Row],[2025/26 From - Spending review Topic 3]]+Dataset[[#This Row],[2025/26 From - Spending review Topic 4]]+Dataset[[#This Row],[2025/26 From - Other reallocations]]","v":0},{"$f":"Dataset[[#This Row],[2023/24 To - Spending review Topic 1]]+Dataset[[#This Row],[2023/24 To - Spending review Topic 2]]+Dataset[[#This Row],[2023/24 To - Spending review Topic 3]]+Dataset[[#This Row],[2023/24 To - Spending review Topic 4]]+Dataset[[#This Row],[2023/24 To - Other reallocations]]","v":0},{"$f":"Dataset[[#This Row],[2024/25 To - Spending review Topic 1]]+Dataset[[#This Row],[2024/25 To - Spending review Topic 2]]+Dataset[[#This Row],[2024/25 To - Spending review Topic 3]]+Dataset[[#This Row],[2024/25 To - Spending review Topic 4]]+Dataset[[#This Row],[2024/25 To - Other reallocations]]","v":0},{"$f":"Dataset[[#This Row],[2025/26 To - Spending review Topic 1]]+Dataset[[#This Row],[2025/26 To - Spending review Topic 2]]+Dataset[[#This Row],[2025/26 To - Spending review Topic 3]]+Dataset[[#This Row],[2025/26 To - Spending review Topic 4]]+Dataset[[#This Row],[2025/26 To - Other reallocations]]","v":0},{"$f":"Dataset[[#This Row],[2023/24 Baseline]]+Dataset[[#This Row],[2023/24 From - Total]]+Dataset[[#This Row],[2023/24 To - Total]]","v":0},{"$f":"Dataset[[#This Row],[2024/25 Baseline]]+Dataset[[#This Row],[2024/25 From - Total]]+Dataset[[#This Row],[2024/25 To - Total]]","v":0},{"$f":"Dataset[[#This Row],[2025/26 Baseline]]+Dataset[[#This Row],[2025/26 From - Total]]+Dataset[[#This Row],[2025/26 To - Total]]","v":0}]
["NAT|Non-transfer item","2|Non-profit institutions","2023_24","MTEF2023",2,3,3,1290,673,"02","03","03","001290","000673","02|03|03",1,2,9,51,55,"01|02|09|51|55","National","Parliament","Associated Services","Transfer: Parliamentary Budget Office","Non-transfer item","Current","Transfers and subsidies","Non-profit institutions","Non-profit institutions","Non-profit institutions","General public services","Executive and legislative organs","NAT",0,0,0,0,0,0,0,0,0,0,0,null,null,null,null,null,null,null,null,null,null,null,null,null,null,null,null,null,null,null,null,null,null,null,null,null,null,null,null,null,null,{"$f":"Dataset[[#This Row],[2023/24 From - Spending review Topic 1]]+Dataset[[#This Row],[2023/24 From - Spending review Topic 2]]+Dataset[[#This Row],[2023/24 From - Spending review Topic 3]]+Dataset[[#This Row],[2023/24 From - Spending review Topic 4]]+Dataset[[#This Row],[2023/24 From - Other reallocations]]","v":0},{"$f":"Dataset[[#This Row],[2024/25 From - Spending review Topic 1]]+Dataset[[#This Row],[2024/25 From - Spending review Topic 2]]+Dataset[[#This Row],[2024/25 From - Spending review Topic 3]]+Dataset[[#This Row],[2024/25 From - Spending review Topic 4]]+Dataset[[#This Row],[2024/25 From - Other reallocations]]","v":0},{"$f":"Dataset[[#This Row],[2025/26 From - Spending review Topic 1]]+Dataset[[#This Row],[2025/26 From - Spending review Topic 2]]+Dataset[[#This Row],[2025/26 From - Spending review Topic 3]]+Dataset[[#This Row],[2025/26 From - Spending review Topic 4]]+Dataset[[#This Row],[2025/26 From - Other reallocations]]","v":0},{"$f":"Dataset[[#This Row],[2023/24 To - Spending review Topic 1]]+Dataset[[#This Row],[2023/24 To - Spending review Topic 2]]+Dataset[[#This Row],[2023/24 To - Spending review Topic 3]]+Dataset[[#This Row],[2023/24 To - Spending review Topic 4]]+Dataset[[#This Row],[2023/24 To - Other reallocations]]","v":0},{"$f":"Dataset[[#This Row],[2024/25 To - Spending review Topic 1]]+Dataset[[#This Row],[2024/25 To - Spending review Topic 2]]+Dataset[[#This Row],[2024/25 To - Spending review Topic 3]]+Dataset[[#This Row],[2024/25 To - Spending review Topic 4]]+Dataset[[#This Row],[2024/25 To - Other reallocations]]","v":0},{"$f":"Dataset[[#This Row],[2025/26 To - Spending review Topic 1]]+Dataset[[#This Row],[2025/26 To - Spending review Topic 2]]+Dataset[[#This Row],[2025/26 To - Spending review Topic 3]]+Dataset[[#This Row],[2025/26 To - Spending review Topic 4]]+Dataset[[#This Row],[2025/26 To - Other reallocations]]","v":0},{"$f":"Dataset[[#This Row],[2023/24 Baseline]]+Dataset[[#This Row],[2023/24 From - Total]]+Dataset[[#This Row],[2023/24 To - Total]]","v":0},{"$f":"Dataset[[#This Row],[2024/25 Baseline]]+Dataset[[#This Row],[2024/25 From - Total]]+Dataset[[#This Row],[2024/25 To - Total]]","v":0},{"$f":"Dataset[[#This Row],[2025/26 Baseline]]+Dataset[[#This Row],[2025/26 From - Total]]+Dataset[[#This Row],[2025/26 To - Total]]","v":0}]
["NAT|Non-transfer item","2|Social benefits","2023_24","MTEF2023",2,3,3,1291,674,"02","03","03","001291","000674","02|03|03",1,2,10,52,56,"01|02|10|52|56","National","Parliament","Associated Services","Transfer: Parliamentary Budget Office","Non-transfer item","Current","Transfers and subsidies","Households","Social benefits","Social benefits","General public services","Executive and legislative organs","NAT",0,0,0,0,0,0,0,0,0,0,0,null,null,null,null,null,null,null,null,null,null,null,null,null,null,null,null,null,null,null,null,null,null,null,null,null,null,null,null,null,null,{"$f":"Dataset[[#This Row],[2023/24 From - Spending review Topic 1]]+Dataset[[#This Row],[2023/24 From - Spending review Topic 2]]+Dataset[[#This Row],[2023/24 From - Spending review Topic 3]]+Dataset[[#This Row],[2023/24 From - Spending review Topic 4]]+Dataset[[#This Row],[2023/24 From - Other reallocations]]","v":0},{"$f":"Dataset[[#This Row],[2024/25 From - Spending review Topic 1]]+Dataset[[#This Row],[2024/25 From - Spending review Topic 2]]+Dataset[[#This Row],[2024/25 From - Spending review Topic 3]]+Dataset[[#This Row],[2024/25 From - Spending review Topic 4]]+Dataset[[#This Row],[2024/25 From - Other reallocations]]","v":0},{"$f":"Dataset[[#This Row],[2025/26 From - Spending review Topic 1]]+Dataset[[#This Row],[2025/26 From - Spending review Topic 2]]+Dataset[[#This Row],[2025/26 From - Spending review Topic 3]]+Dataset[[#This Row],[2025/26 From - Spending review Topic 4]]+Dataset[[#This Row],[2025/26 From - Other reallocations]]","v":0},{"$f":"Dataset[[#This Row],[2023/24 To - Spending review Topic 1]]+Dataset[[#This Row],[2023/24 To - Spending review Topic 2]]+Dataset[[#This Row],[2023/24 To - Spending review Topic 3]]+Dataset[[#This Row],[2023/24 To - Spending review Topic 4]]+Dataset[[#This Row],[2023/24 To - Other reallocations]]","v":0},{"$f":"Dataset[[#This Row],[2024/25 To - Spending review Topic 1]]+Dataset[[#This Row],[2024/25 To - Spending review Topic 2]]+Dataset[[#This Row],[2024/25 To - Spending review Topic 3]]+Dataset[[#This Row],[2024/25 To - Spending review Topic 4]]+Dataset[[#This Row],[2024/25 To - Other reallocations]]","v":0},{"$f":"Dataset[[#This Row],[2025/26 To - Spending review Topic 1]]+Dataset[[#This Row],[2025/26 To - Spending review Topic 2]]+Dataset[[#This Row],[2025/26 To - Spending review Topic 3]]+Dataset[[#This Row],[2025/26 To - Spending review Topic 4]]+Dataset[[#This Row],[2025/26 To - Other reallocations]]","v":0},{"$f":"Dataset[[#This Row],[2023/24 Baseline]]+Dataset[[#This Row],[2023/24 From - Total]]+Dataset[[#This Row],[2023/24 To - Total]]","v":0},{"$f":"Dataset[[#This Row],[2024/25 Baseline]]+Dataset[[#This Row],[2024/25 From - Total]]+Dataset[[#This Row],[2024/25 To - Total]]","v":0},{"$f":"Dataset[[#This Row],[2025/26 Baseline]]+Dataset[[#This Row],[2025/26 From - Total]]+Dataset[[#This Row],[2025/26 To - Total]]","v":0}]
["NAT|Non-transfer item","2|Other transfers to households","2023_24","MTEF2023",2,3,3,1292,675,"02","03","03","001292","000675","02|03|03",1,2,10,53,57,"01|02|10|53|57","National","Parliament","Associated Services","Transfer: Parliamentary Budget Office","Non-transfer item","Current","Transfers and subsidies","Households","Other transfers to households","Other transfers to households","General public services","Executive and legislative organs","NAT",0,0,0,0,0,0,0,0,0,0,0,null,null,null,null,null,null,null,null,null,null,null,null,null,null,null,null,null,null,null,null,null,null,null,null,null,null,null,null,null,null,{"$f":"Dataset[[#This Row],[2023/24 From - Spending review Topic 1]]+Dataset[[#This Row],[2023/24 From - Spending review Topic 2]]+Dataset[[#This Row],[2023/24 From - Spending review Topic 3]]+Dataset[[#This Row],[2023/24 From - Spending review Topic 4]]+Dataset[[#This Row],[2023/24 From - Other reallocations]]","v":0},{"$f":"Dataset[[#This Row],[2024/25 From - Spending review Topic 1]]+Dataset[[#This Row],[2024/25 From - Spending review Topic 2]]+Dataset[[#This Row],[2024/25 From - Spending review Topic 3]]+Dataset[[#This Row],[2024/25 From - Spending review Topic 4]]+Dataset[[#This Row],[2024/25 From - Other reallocations]]","v":0},{"$f":"Dataset[[#This Row],[2025/26 From - Spending review Topic 1]]+Dataset[[#This Row],[2025/26 From - Spending review Topic 2]]+Dataset[[#This Row],[2025/26 From - Spending review Topic 3]]+Dataset[[#This Row],[2025/26 From - Spending review Topic 4]]+Dataset[[#This Row],[2025/26 From - Other reallocations]]","v":0},{"$f":"Dataset[[#This Row],[2023/24 To - Spending review Topic 1]]+Dataset[[#This Row],[2023/24 To - Spending review Topic 2]]+Dataset[[#This Row],[2023/24 To - Spending review Topic 3]]+Dataset[[#This Row],[2023/24 To - Spending review Topic 4]]+Dataset[[#This Row],[2023/24 To - Other reallocations]]","v":0},{"$f":"Dataset[[#This Row],[2024/25 To - Spending review Topic 1]]+Dataset[[#This Row],[2024/25 To - Spending review Topic 2]]+Dataset[[#This Row],[2024/25 To - Spending review Topic 3]]+Dataset[[#This Row],[2024/25 To - Spending review Topic 4]]+Dataset[[#This Row],[2024/25 To - Other reallocations]]","v":0},{"$f":"Dataset[[#This Row],[2025/26 To - Spending review Topic 1]]+Dataset[[#This Row],[2025/26 To - Spending review Topic 2]]+Dataset[[#This Row],[2025/26 To - Spending review Topic 3]]+Dataset[[#This Row],[2025/26 To - Spending review Topic 4]]+Dataset[[#This Row],[2025/26 To - Other reallocations]]","v":0},{"$f":"Dataset[[#This Row],[2023/24 Baseline]]+Dataset[[#This Row],[2023/24 From - Total]]+Dataset[[#This Row],[2023/24 To - Total]]","v":0},{"$f":"Dataset[[#This Row],[2024/25 Baseline]]+Dataset[[#This Row],[2024/25 From - Total]]+Dataset[[#This Row],[2024/25 To - Total]]","v":0},{"$f":"Dataset[[#This Row],[2025/26 Baseline]]+Dataset[[#This Row],[2025/26 From - Total]]+Dataset[[#This Row],[2025/26 To - Total]]","v":0}]
["NAT|Non-transfer item","2|Provincial Revenue Funds","2023_24","MTEF2023",2,3,3,1293,676,"02","03","03","001293","000676","02|03|03",2,2,4,43,43,"02|02|04|43|43","National","Parliament","Associated Services","Transfer: Parliamentary Budget Office","Non-transfer item","Capital","Transfers and subsidies","Provinces and municipalities","Provinces","Provincial Revenue Funds","General public services","Executive and legislative organs","NAT",0,0,0,0,0,0,0,0,0,0,0,null,null,null,null,null,null,null,null,null,null,null,null,null,null,null,null,null,null,null,null,null,null,null,null,null,null,null,null,null,null,{"$f":"Dataset[[#This Row],[2023/24 From - Spending review Topic 1]]+Dataset[[#This Row],[2023/24 From - Spending review Topic 2]]+Dataset[[#This Row],[2023/24 From - Spending review Topic 3]]+Dataset[[#This Row],[2023/24 From - Spending review Topic 4]]+Dataset[[#This Row],[2023/24 From - Other reallocations]]","v":0},{"$f":"Dataset[[#This Row],[2024/25 From - Spending review Topic 1]]+Dataset[[#This Row],[2024/25 From - Spending review Topic 2]]+Dataset[[#This Row],[2024/25 From - Spending review Topic 3]]+Dataset[[#This Row],[2024/25 From - Spending review Topic 4]]+Dataset[[#This Row],[2024/25 From - Other reallocations]]","v":0},{"$f":"Dataset[[#This Row],[2025/26 From - Spending review Topic 1]]+Dataset[[#This Row],[2025/26 From - Spending review Topic 2]]+Dataset[[#This Row],[2025/26 From - Spending review Topic 3]]+Dataset[[#This Row],[2025/26 From - Spending review Topic 4]]+Dataset[[#This Row],[2025/26 From - Other reallocations]]","v":0},{"$f":"Dataset[[#This Row],[2023/24 To - Spending review Topic 1]]+Dataset[[#This Row],[2023/24 To - Spending review Topic 2]]+Dataset[[#This Row],[2023/24 To - Spending review Topic 3]]+Dataset[[#This Row],[2023/24 To - Spending review Topic 4]]+Dataset[[#This Row],[2023/24 To - Other reallocations]]","v":0},{"$f":"Dataset[[#This Row],[2024/25 To - Spending review Topic 1]]+Dataset[[#This Row],[2024/25 To - Spending review Topic 2]]+Dataset[[#This Row],[2024/25 To - Spending review Topic 3]]+Dataset[[#This Row],[2024/25 To - Spending review Topic 4]]+Dataset[[#This Row],[2024/25 To - Other reallocations]]","v":0},{"$f":"Dataset[[#This Row],[2025/26 To - Spending review Topic 1]]+Dataset[[#This Row],[2025/26 To - Spending review Topic 2]]+Dataset[[#This Row],[2025/26 To - Spending review Topic 3]]+Dataset[[#This Row],[2025/26 To - Spending review Topic 4]]+Dataset[[#This Row],[2025/26 To - Other reallocations]]","v":0},{"$f":"Dataset[[#This Row],[2023/24 Baseline]]+Dataset[[#This Row],[2023/24 From - Total]]+Dataset[[#This Row],[2023/24 To - Total]]","v":0},{"$f":"Dataset[[#This Row],[2024/25 Baseline]]+Dataset[[#This Row],[2024/25 From - Total]]+Dataset[[#This Row],[2024/25 To - Total]]","v":0},{"$f":"Dataset[[#This Row],[2025/26 Baseline]]+Dataset[[#This Row],[2025/26 From - Total]]+Dataset[[#This Row],[2025/26 To - Total]]","v":0}]
["NAT|Non-transfer item","2|Municipal bank accounts","2023_24","MTEF2023",2,3,3,1294,677,"02","03","03","001294","000677","02|03|03",2,2,4,44,45,"02|02|04|44|45","National","Parliament","Associated Services","Transfer: Parliamentary Budget Office","Non-transfer item","Capital","Transfers and subsidies","Provinces and municipalities","Municipalities","Municipal bank accounts","General public services","Executive and legislative organs","NAT",0,0,0,0,0,0,0,0,0,0,0,null,null,null,null,null,null,null,null,null,null,null,null,null,null,null,null,null,null,null,null,null,null,null,null,null,null,null,null,null,null,{"$f":"Dataset[[#This Row],[2023/24 From - Spending review Topic 1]]+Dataset[[#This Row],[2023/24 From - Spending review Topic 2]]+Dataset[[#This Row],[2023/24 From - Spending review Topic 3]]+Dataset[[#This Row],[2023/24 From - Spending review Topic 4]]+Dataset[[#This Row],[2023/24 From - Other reallocations]]","v":0},{"$f":"Dataset[[#This Row],[2024/25 From - Spending review Topic 1]]+Dataset[[#This Row],[2024/25 From - Spending review Topic 2]]+Dataset[[#This Row],[2024/25 From - Spending review Topic 3]]+Dataset[[#This Row],[2024/25 From - Spending review Topic 4]]+Dataset[[#This Row],[2024/25 From - Other reallocations]]","v":0},{"$f":"Dataset[[#This Row],[2025/26 From - Spending review Topic 1]]+Dataset[[#This Row],[2025/26 From - Spending review Topic 2]]+Dataset[[#This Row],[2025/26 From - Spending review Topic 3]]+Dataset[[#This Row],[2025/26 From - Spending review Topic 4]]+Dataset[[#This Row],[2025/26 From - Other reallocations]]","v":0},{"$f":"Dataset[[#This Row],[2023/24 To - Spending review Topic 1]]+Dataset[[#This Row],[2023/24 To - Spending review Topic 2]]+Dataset[[#This Row],[2023/24 To - Spending review Topic 3]]+Dataset[[#This Row],[2023/24 To - Spending review Topic 4]]+Dataset[[#This Row],[2023/24 To - Other reallocations]]","v":0},{"$f":"Dataset[[#This Row],[2024/25 To - Spending review Topic 1]]+Dataset[[#This Row],[2024/25 To - Spending review Topic 2]]+Dataset[[#This Row],[2024/25 To - Spending review Topic 3]]+Dataset[[#This Row],[2024/25 To - Spending review Topic 4]]+Dataset[[#This Row],[2024/25 To - Other reallocations]]","v":0},{"$f":"Dataset[[#This Row],[2025/26 To - Spending review Topic 1]]+Dataset[[#This Row],[2025/26 To - Spending review Topic 2]]+Dataset[[#This Row],[2025/26 To - Spending review Topic 3]]+Dataset[[#This Row],[2025/26 To - Spending review Topic 4]]+Dataset[[#This Row],[2025/26 To - Other reallocations]]","v":0},{"$f":"Dataset[[#This Row],[2023/24 Baseline]]+Dataset[[#This Row],[2023/24 From - Total]]+Dataset[[#This Row],[2023/24 To - Total]]","v":0},{"$f":"Dataset[[#This Row],[2024/25 Baseline]]+Dataset[[#This Row],[2024/25 From - Total]]+Dataset[[#This Row],[2024/25 To - Total]]","v":0},{"$f":"Dataset[[#This Row],[2025/26 Baseline]]+Dataset[[#This Row],[2025/26 From - Total]]+Dataset[[#This Row],[2025/26 To - Total]]","v":0}]
["NAT|Non-transfer item","2|Departmental agencies (non-business entities)","2023_24","MTEF2023",2,3,3,1295,678,"02","03","03","001295","000678","02|03|03",2,2,5,46,48,"02|02|05|46|48","National","Parliament","Associated Services","Transfer: Parliamentary Budget Office","Non-transfer item","Capital","Transfers and subsidies","Departmental agencies and accounts","Departmental agencies (non-business entities)","Departmental agencies (non-business entities)","General public services","Executive and legislative organs","NAT",0,0,0,0,0,0,0,0,0,0,0,null,null,null,null,null,null,null,null,null,null,null,null,null,null,null,null,null,null,null,null,null,null,null,null,null,null,null,null,null,null,{"$f":"Dataset[[#This Row],[2023/24 From - Spending review Topic 1]]+Dataset[[#This Row],[2023/24 From - Spending review Topic 2]]+Dataset[[#This Row],[2023/24 From - Spending review Topic 3]]+Dataset[[#This Row],[2023/24 From - Spending review Topic 4]]+Dataset[[#This Row],[2023/24 From - Other reallocations]]","v":0},{"$f":"Dataset[[#This Row],[2024/25 From - Spending review Topic 1]]+Dataset[[#This Row],[2024/25 From - Spending review Topic 2]]+Dataset[[#This Row],[2024/25 From - Spending review Topic 3]]+Dataset[[#This Row],[2024/25 From - Spending review Topic 4]]+Dataset[[#This Row],[2024/25 From - Other reallocations]]","v":0},{"$f":"Dataset[[#This Row],[2025/26 From - Spending review Topic 1]]+Dataset[[#This Row],[2025/26 From - Spending review Topic 2]]+Dataset[[#This Row],[2025/26 From - Spending review Topic 3]]+Dataset[[#This Row],[2025/26 From - Spending review Topic 4]]+Dataset[[#This Row],[2025/26 From - Other reallocations]]","v":0},{"$f":"Dataset[[#This Row],[2023/24 To - Spending review Topic 1]]+Dataset[[#This Row],[2023/24 To - Spending review Topic 2]]+Dataset[[#This Row],[2023/24 To - Spending review Topic 3]]+Dataset[[#This Row],[2023/24 To - Spending review Topic 4]]+Dataset[[#This Row],[2023/24 To - Other reallocations]]","v":0},{"$f":"Dataset[[#This Row],[2024/25 To - Spending review Topic 1]]+Dataset[[#This Row],[2024/25 To - Spending review Topic 2]]+Dataset[[#This Row],[2024/25 To - Spending review Topic 3]]+Dataset[[#This Row],[2024/25 To - Spending review Topic 4]]+Dataset[[#This Row],[2024/25 To - Other reallocations]]","v":0},{"$f":"Dataset[[#This Row],[2025/26 To - Spending review Topic 1]]+Dataset[[#This Row],[2025/26 To - Spending review Topic 2]]+Dataset[[#This Row],[2025/26 To - Spending review Topic 3]]+Dataset[[#This Row],[2025/26 To - Spending review Topic 4]]+Dataset[[#This Row],[2025/26 To - Other reallocations]]","v":0},{"$f":"Dataset[[#This Row],[2023/24 Baseline]]+Dataset[[#This Row],[2023/24 From - Total]]+Dataset[[#This Row],[2023/24 To - Total]]","v":0},{"$f":"Dataset[[#This Row],[2024/25 Baseline]]+Dataset[[#This Row],[2024/25 From - Total]]+Dataset[[#This Row],[2024/25 To - Total]]","v":0},{"$f":"Dataset[[#This Row],[2025/26 Baseline]]+Dataset[[#This Row],[2025/26 From - Total]]+Dataset[[#This Row],[2025/26 To - Total]]","v":0}]
["NAT|Non-transfer item","2|Higher education institutions","2023_24","MTEF2023",2,3,3,1296,679,"02","03","03","001296","000679","02|03|03",2,2,6,47,49,"02|02|06|47|49","National","Parliament","Associated Services","Transfer: Parliamentary Budget Office","Non-transfer item","Capital","Transfers and subsidies","Higher education institutions","Higher education institutions","Higher education institutions","General public services","Executive and legislative organs","NAT",0,0,0,0,0,0,0,0,0,0,0,null,null,null,null,null,null,null,null,null,null,null,null,null,null,null,null,null,null,null,null,null,null,null,null,null,null,null,null,null,null,{"$f":"Dataset[[#This Row],[2023/24 From - Spending review Topic 1]]+Dataset[[#This Row],[2023/24 From - Spending review Topic 2]]+Dataset[[#This Row],[2023/24 From - Spending review Topic 3]]+Dataset[[#This Row],[2023/24 From - Spending review Topic 4]]+Dataset[[#This Row],[2023/24 From - Other reallocations]]","v":0},{"$f":"Dataset[[#This Row],[2024/25 From - Spending review Topic 1]]+Dataset[[#This Row],[2024/25 From - Spending review Topic 2]]+Dataset[[#This Row],[2024/25 From - Spending review Topic 3]]+Dataset[[#This Row],[2024/25 From - Spending review Topic 4]]+Dataset[[#This Row],[2024/25 From - Other reallocations]]","v":0},{"$f":"Dataset[[#This Row],[2025/26 From - Spending review Topic 1]]+Dataset[[#This Row],[2025/26 From - Spending review Topic 2]]+Dataset[[#This Row],[2025/26 From - Spending review Topic 3]]+Dataset[[#This Row],[2025/26 From - Spending review Topic 4]]+Dataset[[#This Row],[2025/26 From - Other reallocations]]","v":0},{"$f":"Dataset[[#This Row],[2023/24 To - Spending review Topic 1]]+Dataset[[#This Row],[2023/24 To - Spending review Topic 2]]+Dataset[[#This Row],[2023/24 To - Spending review Topic 3]]+Dataset[[#This Row],[2023/24 To - Spending review Topic 4]]+Dataset[[#This Row],[2023/24 To - Other reallocations]]","v":0},{"$f":"Dataset[[#This Row],[2024/25 To - Spending review Topic 1]]+Dataset[[#This Row],[2024/25 To - Spending review Topic 2]]+Dataset[[#This Row],[2024/25 To - Spending review Topic 3]]+Dataset[[#This Row],[2024/25 To - Spending review Topic 4]]+Dataset[[#This Row],[2024/25 To - Other reallocations]]","v":0},{"$f":"Dataset[[#This Row],[2025/26 To - Spending review Topic 1]]+Dataset[[#This Row],[2025/26 To - Spending review Topic 2]]+Dataset[[#This Row],[2025/26 To - Spending review Topic 3]]+Dataset[[#This Row],[2025/26 To - Spending review Topic 4]]+Dataset[[#This Row],[2025/26 To - Other reallocations]]","v":0},{"$f":"Dataset[[#This Row],[2023/24 Baseline]]+Dataset[[#This Row],[2023/24 From - Total]]+Dataset[[#This Row],[2023/24 To - Total]]","v":0},{"$f":"Dataset[[#This Row],[2024/25 Baseline]]+Dataset[[#This Row],[2024/25 From - Total]]+Dataset[[#This Row],[2024/25 To - Total]]","v":0},{"$f":"Dataset[[#This Row],[2025/26 Baseline]]+Dataset[[#This Row],[2025/26 From - Total]]+Dataset[[#This Row],[2025/26 To - Total]]","v":0}]
["NAT|Non-transfer item","2|Foreign governments and international organisations","2023_24","MTEF2023",2,3,3,1297,680,"02","03","03","001297","000680","02|03|03",2,2,7,48,50,"02|02|07|48|50","National","Parliament","Associated Services","Transfer: Parliamentary Budget Office","Non-transfer item","Capital","Transfers and subsidies","Foreign governments and international organisations","Foreign governments and international organisations","Foreign governments and international organisations","General public services","Executive and legislative organs","NAT",0,0,0,0,0,0,0,0,0,0,0,null,null,null,null,null,null,null,null,null,null,null,null,null,null,null,null,null,null,null,null,null,null,null,null,null,null,null,null,null,null,{"$f":"Dataset[[#This Row],[2023/24 From - Spending review Topic 1]]+Dataset[[#This Row],[2023/24 From - Spending review Topic 2]]+Dataset[[#This Row],[2023/24 From - Spending review Topic 3]]+Dataset[[#This Row],[2023/24 From - Spending review Topic 4]]+Dataset[[#This Row],[2023/24 From - Other reallocations]]","v":0},{"$f":"Dataset[[#This Row],[2024/25 From - Spending review Topic 1]]+Dataset[[#This Row],[2024/25 From - Spending review Topic 2]]+Dataset[[#This Row],[2024/25 From - Spending review Topic 3]]+Dataset[[#This Row],[2024/25 From - Spending review Topic 4]]+Dataset[[#This Row],[2024/25 From - Other reallocations]]","v":0},{"$f":"Dataset[[#This Row],[2025/26 From - Spending review Topic 1]]+Dataset[[#This Row],[2025/26 From - Spending review Topic 2]]+Dataset[[#This Row],[2025/26 From - Spending review Topic 3]]+Dataset[[#This Row],[2025/26 From - Spending review Topic 4]]+Dataset[[#This Row],[2025/26 From - Other reallocations]]","v":0},{"$f":"Dataset[[#This Row],[2023/24 To - Spending review Topic 1]]+Dataset[[#This Row],[2023/24 To - Spending review Topic 2]]+Dataset[[#This Row],[2023/24 To - Spending review Topic 3]]+Dataset[[#This Row],[2023/24 To - Spending review Topic 4]]+Dataset[[#This Row],[2023/24 To - Other reallocations]]","v":0},{"$f":"Dataset[[#This Row],[2024/25 To - Spending review Topic 1]]+Dataset[[#This Row],[2024/25 To - Spending review Topic 2]]+Dataset[[#This Row],[2024/25 To - Spending review Topic 3]]+Dataset[[#This Row],[2024/25 To - Spending review Topic 4]]+Dataset[[#This Row],[2024/25 To - Other reallocations]]","v":0},{"$f":"Dataset[[#This Row],[2025/26 To - Spending review Topic 1]]+Dataset[[#This Row],[2025/26 To - Spending review Topic 2]]+Dataset[[#This Row],[2025/26 To - Spending review Topic 3]]+Dataset[[#This Row],[2025/26 To - Spending review Topic 4]]+Dataset[[#This Row],[2025/26 To - Other reallocations]]","v":0},{"$f":"Dataset[[#This Row],[2023/24 Baseline]]+Dataset[[#This Row],[2023/24 From - Total]]+Dataset[[#This Row],[2023/24 To - Total]]","v":0},{"$f":"Dataset[[#This Row],[2024/25 Baseline]]+Dataset[[#This Row],[2024/25 From - Total]]+Dataset[[#This Row],[2024/25 To - Total]]","v":0},{"$f":"Dataset[[#This Row],[2025/26 Baseline]]+Dataset[[#This Row],[2025/26 From - Total]]+Dataset[[#This Row],[2025/26 To - Total]]","v":0}]
["NAT|Non-transfer item","2|Subsidies on products and production (pc)","2023_24","MTEF2023",2,3,3,1298,681,"02","03","03","001298","000681","02|03|03",2,2,8,49,51,"02|02|08|49|51","National","Parliament","Associated Services","Transfer: Parliamentary Budget Office","Non-transfer item","Capital","Transfers and subsidies","Public corporations and private enterprises","Public corporations","Subsidies on products and production (pc)","General public services","Executive and legislative organs","NAT",0,0,0,0,0,0,0,0,0,0,0,null,null,null,null,null,null,null,null,null,null,null,null,null,null,null,null,null,null,null,null,null,null,null,null,null,null,null,null,null,null,{"$f":"Dataset[[#This Row],[2023/24 From - Spending review Topic 1]]+Dataset[[#This Row],[2023/24 From - Spending review Topic 2]]+Dataset[[#This Row],[2023/24 From - Spending review Topic 3]]+Dataset[[#This Row],[2023/24 From - Spending review Topic 4]]+Dataset[[#This Row],[2023/24 From - Other reallocations]]","v":0},{"$f":"Dataset[[#This Row],[2024/25 From - Spending review Topic 1]]+Dataset[[#This Row],[2024/25 From - Spending review Topic 2]]+Dataset[[#This Row],[2024/25 From - Spending review Topic 3]]+Dataset[[#This Row],[2024/25 From - Spending review Topic 4]]+Dataset[[#This Row],[2024/25 From - Other reallocations]]","v":0},{"$f":"Dataset[[#This Row],[2025/26 From - Spending review Topic 1]]+Dataset[[#This Row],[2025/26 From - Spending review Topic 2]]+Dataset[[#This Row],[2025/26 From - Spending review Topic 3]]+Dataset[[#This Row],[2025/26 From - Spending review Topic 4]]+Dataset[[#This Row],[2025/26 From - Other reallocations]]","v":0},{"$f":"Dataset[[#This Row],[2023/24 To - Spending review Topic 1]]+Dataset[[#This Row],[2023/24 To - Spending review Topic 2]]+Dataset[[#This Row],[2023/24 To - Spending review Topic 3]]+Dataset[[#This Row],[2023/24 To - Spending review Topic 4]]+Dataset[[#This Row],[2023/24 To - Other reallocations]]","v":0},{"$f":"Dataset[[#This Row],[2024/25 To - Spending review Topic 1]]+Dataset[[#This Row],[2024/25 To - Spending review Topic 2]]+Dataset[[#This Row],[2024/25 To - Spending review Topic 3]]+Dataset[[#This Row],[2024/25 To - Spending review Topic 4]]+Dataset[[#This Row],[2024/25 To - Other reallocations]]","v":0},{"$f":"Dataset[[#This Row],[2025/26 To - Spending review Topic 1]]+Dataset[[#This Row],[2025/26 To - Spending review Topic 2]]+Dataset[[#This Row],[2025/26 To - Spending review Topic 3]]+Dataset[[#This Row],[2025/26 To - Spending review Topic 4]]+Dataset[[#This Row],[2025/26 To - Other reallocations]]","v":0},{"$f":"Dataset[[#This Row],[2023/24 Baseline]]+Dataset[[#This Row],[2023/24 From - Total]]+Dataset[[#This Row],[2023/24 To - Total]]","v":0},{"$f":"Dataset[[#This Row],[2024/25 Baseline]]+Dataset[[#This Row],[2024/25 From - Total]]+Dataset[[#This Row],[2024/25 To - Total]]","v":0},{"$f":"Dataset[[#This Row],[2025/26 Baseline]]+Dataset[[#This Row],[2025/26 From - Total]]+Dataset[[#This Row],[2025/26 To - Total]]","v":0}]
["NAT|Non-transfer item","2|Other transfers to public corporations","2023_24","MTEF2023",2,3,3,1299,682,"02","03","03","001299","000682","02|03|03",2,2,8,49,52,"02|02|08|49|52","National","Parliament","Associated Services","Transfer: Parliamentary Budget Office","Non-transfer item","Capital","Transfers and subsidies","Public corporations and private enterprises","Public corporations","Other transfers to public corporations","General public services","Executive and legislative organs","NAT",0,0,0,0,0,0,0,0,0,0,0,null,null,null,null,null,null,null,null,null,null,null,null,null,null,null,null,null,null,null,null,null,null,null,null,null,null,null,null,null,null,{"$f":"Dataset[[#This Row],[2023/24 From - Spending review Topic 1]]+Dataset[[#This Row],[2023/24 From - Spending review Topic 2]]+Dataset[[#This Row],[2023/24 From - Spending review Topic 3]]+Dataset[[#This Row],[2023/24 From - Spending review Topic 4]]+Dataset[[#This Row],[2023/24 From - Other reallocations]]","v":0},{"$f":"Dataset[[#This Row],[2024/25 From - Spending review Topic 1]]+Dataset[[#This Row],[2024/25 From - Spending review Topic 2]]+Dataset[[#This Row],[2024/25 From - Spending review Topic 3]]+Dataset[[#This Row],[2024/25 From - Spending review Topic 4]]+Dataset[[#This Row],[2024/25 From - Other reallocations]]","v":0},{"$f":"Dataset[[#This Row],[2025/26 From - Spending review Topic 1]]+Dataset[[#This Row],[2025/26 From - Spending review Topic 2]]+Dataset[[#This Row],[2025/26 From - Spending review Topic 3]]+Dataset[[#This Row],[2025/26 From - Spending review Topic 4]]+Dataset[[#This Row],[2025/26 From - Other reallocations]]","v":0},{"$f":"Dataset[[#This Row],[2023/24 To - Spending review Topic 1]]+Dataset[[#This Row],[2023/24 To - Spending review Topic 2]]+Dataset[[#This Row],[2023/24 To - Spending review Topic 3]]+Dataset[[#This Row],[2023/24 To - Spending review Topic 4]]+Dataset[[#This Row],[2023/24 To - Other reallocations]]","v":0},{"$f":"Dataset[[#This Row],[2024/25 To - Spending review Topic 1]]+Dataset[[#This Row],[2024/25 To - Spending review Topic 2]]+Dataset[[#This Row],[2024/25 To - Spending review Topic 3]]+Dataset[[#This Row],[2024/25 To - Spending review Topic 4]]+Dataset[[#This Row],[2024/25 To - Other reallocations]]","v":0},{"$f":"Dataset[[#This Row],[2025/26 To - Spending review Topic 1]]+Dataset[[#This Row],[2025/26 To - Spending review Topic 2]]+Dataset[[#This Row],[2025/26 To - Spending review Topic 3]]+Dataset[[#This Row],[2025/26 To - Spending review Topic 4]]+Dataset[[#This Row],[2025/26 To - Other reallocations]]","v":0},{"$f":"Dataset[[#This Row],[2023/24 Baseline]]+Dataset[[#This Row],[2023/24 From - Total]]+Dataset[[#This Row],[2023/24 To - Total]]","v":0},{"$f":"Dataset[[#This Row],[2024/25 Baseline]]+Dataset[[#This Row],[2024/25 From - Total]]+Dataset[[#This Row],[2024/25 To - Total]]","v":0},{"$f":"Dataset[[#This Row],[2025/26 Baseline]]+Dataset[[#This Row],[2025/26 From - Total]]+Dataset[[#This Row],[2025/26 To - Total]]","v":0}]
["NAT|Non-transfer item","2|Other transfers to private enterprises","2023_24","MTEF2023",2,3,3,1300,683,"02","03","03","001300","000683","02|03|03",2,2,8,50,54,"02|02|08|50|54","National","Parliament","Associated Services","Transfer: Parliamentary Budget Office","Non-transfer item","Capital","Transfers and subsidies","Public corporations and private enterprises","Private enterprises","Other transfers to private enterprises","General public services","Executive and legislative organs","NAT",0,0,0,0,0,0,0,0,0,0,0,null,null,null,null,null,null,null,null,null,null,null,null,null,null,null,null,null,null,null,null,null,null,null,null,null,null,null,null,null,null,{"$f":"Dataset[[#This Row],[2023/24 From - Spending review Topic 1]]+Dataset[[#This Row],[2023/24 From - Spending review Topic 2]]+Dataset[[#This Row],[2023/24 From - Spending review Topic 3]]+Dataset[[#This Row],[2023/24 From - Spending review Topic 4]]+Dataset[[#This Row],[2023/24 From - Other reallocations]]","v":0},{"$f":"Dataset[[#This Row],[2024/25 From - Spending review Topic 1]]+Dataset[[#This Row],[2024/25 From - Spending review Topic 2]]+Dataset[[#This Row],[2024/25 From - Spending review Topic 3]]+Dataset[[#This Row],[2024/25 From - Spending review Topic 4]]+Dataset[[#This Row],[2024/25 From - Other reallocations]]","v":0},{"$f":"Dataset[[#This Row],[2025/26 From - Spending review Topic 1]]+Dataset[[#This Row],[2025/26 From - Spending review Topic 2]]+Dataset[[#This Row],[2025/26 From - Spending review Topic 3]]+Dataset[[#This Row],[2025/26 From - Spending review Topic 4]]+Dataset[[#This Row],[2025/26 From - Other reallocations]]","v":0},{"$f":"Dataset[[#This Row],[2023/24 To - Spending review Topic 1]]+Dataset[[#This Row],[2023/24 To - Spending review Topic 2]]+Dataset[[#This Row],[2023/24 To - Spending review Topic 3]]+Dataset[[#This Row],[2023/24 To - Spending review Topic 4]]+Dataset[[#This Row],[2023/24 To - Other reallocations]]","v":0},{"$f":"Dataset[[#This Row],[2024/25 To - Spending review Topic 1]]+Dataset[[#This Row],[2024/25 To - Spending review Topic 2]]+Dataset[[#This Row],[2024/25 To - Spending review Topic 3]]+Dataset[[#This Row],[2024/25 To - Spending review Topic 4]]+Dataset[[#This Row],[2024/25 To - Other reallocations]]","v":0},{"$f":"Dataset[[#This Row],[2025/26 To - Spending review Topic 1]]+Dataset[[#This Row],[2025/26 To - Spending review Topic 2]]+Dataset[[#This Row],[2025/26 To - Spending review Topic 3]]+Dataset[[#This Row],[2025/26 To - Spending review Topic 4]]+Dataset[[#This Row],[2025/26 To - Other reallocations]]","v":0},{"$f":"Dataset[[#This Row],[2023/24 Baseline]]+Dataset[[#This Row],[2023/24 From - Total]]+Dataset[[#This Row],[2023/24 To - Total]]","v":0},{"$f":"Dataset[[#This Row],[2024/25 Baseline]]+Dataset[[#This Row],[2024/25 From - Total]]+Dataset[[#This Row],[2024/25 To - Total]]","v":0},{"$f":"Dataset[[#This Row],[2025/26 Baseline]]+Dataset[[#This Row],[2025/26 From - Total]]+Dataset[[#This Row],[2025/26 To - Total]]","v":0}]
["NAT|Non-transfer item","2|Non-profit institutions","2023_24","MTEF2023",2,3,3,1301,684,"02","03","03","001301","000684","02|03|03",2,2,9,51,55,"02|02|09|51|55","National","Parliament","Associated Services","Transfer: Parliamentary Budget Office","Non-transfer item","Capital","Transfers and subsidies","Non-profit institutions","Non-profit institutions","Non-profit institutions","General public services","Executive and legislative organs","NAT",0,0,0,0,0,0,0,0,0,0,0,null,null,null,null,null,null,null,null,null,null,null,null,null,null,null,null,null,null,null,null,null,null,null,null,null,null,null,null,null,null,{"$f":"Dataset[[#This Row],[2023/24 From - Spending review Topic 1]]+Dataset[[#This Row],[2023/24 From - Spending review Topic 2]]+Dataset[[#This Row],[2023/24 From - Spending review Topic 3]]+Dataset[[#This Row],[2023/24 From - Spending review Topic 4]]+Dataset[[#This Row],[2023/24 From - Other reallocations]]","v":0},{"$f":"Dataset[[#This Row],[2024/25 From - Spending review Topic 1]]+Dataset[[#This Row],[2024/25 From - Spending review Topic 2]]+Dataset[[#This Row],[2024/25 From - Spending review Topic 3]]+Dataset[[#This Row],[2024/25 From - Spending review Topic 4]]+Dataset[[#This Row],[2024/25 From - Other reallocations]]","v":0},{"$f":"Dataset[[#This Row],[2025/26 From - Spending review Topic 1]]+Dataset[[#This Row],[2025/26 From - Spending review Topic 2]]+Dataset[[#This Row],[2025/26 From - Spending review Topic 3]]+Dataset[[#This Row],[2025/26 From - Spending review Topic 4]]+Dataset[[#This Row],[2025/26 From - Other reallocations]]","v":0},{"$f":"Dataset[[#This Row],[2023/24 To - Spending review Topic 1]]+Dataset[[#This Row],[2023/24 To - Spending review Topic 2]]+Dataset[[#This Row],[2023/24 To - Spending review Topic 3]]+Dataset[[#This Row],[2023/24 To - Spending review Topic 4]]+Dataset[[#This Row],[2023/24 To - Other reallocations]]","v":0},{"$f":"Dataset[[#This Row],[2024/25 To - Spending review Topic 1]]+Dataset[[#This Row],[2024/25 To - Spending review Topic 2]]+Dataset[[#This Row],[2024/25 To - Spending review Topic 3]]+Dataset[[#This Row],[2024/25 To - Spending review Topic 4]]+Dataset[[#This Row],[2024/25 To - Other reallocations]]","v":0},{"$f":"Dataset[[#This Row],[2025/26 To - Spending review Topic 1]]+Dataset[[#This Row],[2025/26 To - Spending review Topic 2]]+Dataset[[#This Row],[2025/26 To - Spending review Topic 3]]+Dataset[[#This Row],[2025/26 To - Spending review Topic 4]]+Dataset[[#This Row],[2025/26 To - Other reallocations]]","v":0},{"$f":"Dataset[[#This Row],[2023/24 Baseline]]+Dataset[[#This Row],[2023/24 From - Total]]+Dataset[[#This Row],[2023/24 To - Total]]","v":0},{"$f":"Dataset[[#This Row],[2024/25 Baseline]]+Dataset[[#This Row],[2024/25 From - Total]]+Dataset[[#This Row],[2024/25 To - Total]]","v":0},{"$f":"Dataset[[#This Row],[2025/26 Baseline]]+Dataset[[#This Row],[2025/26 From - Total]]+Dataset[[#This Row],[2025/26 To - Total]]","v":0}]
["NAT|Non-transfer item","2|Other transfers to households","2023_24","MTEF2023",2,3,3,1302,685,"02","03","03","001302","000685","02|03|03",2,2,10,53,57,"02|02|10|53|57","National","Parliament","Associated Services","Transfer: Parliamentary Budget Office","Non-transfer item","Capital","Transfers and subsidies","Households","Other transfers to households","Other transfers to households","General public services","Executive and legislative organs","NAT",0,0,0,0,0,0,0,0,0,0,0,null,null,null,null,null,null,null,null,null,null,null,null,null,null,null,null,null,null,null,null,null,null,null,null,null,null,null,null,null,null,{"$f":"Dataset[[#This Row],[2023/24 From - Spending review Topic 1]]+Dataset[[#This Row],[2023/24 From - Spending review Topic 2]]+Dataset[[#This Row],[2023/24 From - Spending review Topic 3]]+Dataset[[#This Row],[2023/24 From - Spending review Topic 4]]+Dataset[[#This Row],[2023/24 From - Other reallocations]]","v":0},{"$f":"Dataset[[#This Row],[2024/25 From - Spending review Topic 1]]+Dataset[[#This Row],[2024/25 From - Spending review Topic 2]]+Dataset[[#This Row],[2024/25 From - Spending review Topic 3]]+Dataset[[#This Row],[2024/25 From - Spending review Topic 4]]+Dataset[[#This Row],[2024/25 From - Other reallocations]]","v":0},{"$f":"Dataset[[#This Row],[2025/26 From - Spending review Topic 1]]+Dataset[[#This Row],[2025/26 From - Spending review Topic 2]]+Dataset[[#This Row],[2025/26 From - Spending review Topic 3]]+Dataset[[#This Row],[2025/26 From - Spending review Topic 4]]+Dataset[[#This Row],[2025/26 From - Other reallocations]]","v":0},{"$f":"Dataset[[#This Row],[2023/24 To - Spending review Topic 1]]+Dataset[[#This Row],[2023/24 To - Spending review Topic 2]]+Dataset[[#This Row],[2023/24 To - Spending review Topic 3]]+Dataset[[#This Row],[2023/24 To - Spending review Topic 4]]+Dataset[[#This Row],[2023/24 To - Other reallocations]]","v":0},{"$f":"Dataset[[#This Row],[2024/25 To - Spending review Topic 1]]+Dataset[[#This Row],[2024/25 To - Spending review Topic 2]]+Dataset[[#This Row],[2024/25 To - Spending review Topic 3]]+Dataset[[#This Row],[2024/25 To - Spending review Topic 4]]+Dataset[[#This Row],[2024/25 To - Other reallocations]]","v":0},{"$f":"Dataset[[#This Row],[2025/26 To - Spending review Topic 1]]+Dataset[[#This Row],[2025/26 To - Spending review Topic 2]]+Dataset[[#This Row],[2025/26 To - Spending review Topic 3]]+Dataset[[#This Row],[2025/26 To - Spending review Topic 4]]+Dataset[[#This Row],[2025/26 To - Other reallocations]]","v":0},{"$f":"Dataset[[#This Row],[2023/24 Baseline]]+Dataset[[#This Row],[2023/24 From - Total]]+Dataset[[#This Row],[2023/24 To - Total]]","v":0},{"$f":"Dataset[[#This Row],[2024/25 Baseline]]+Dataset[[#This Row],[2024/25 From - Total]]+Dataset[[#This Row],[2024/25 To - Total]]","v":0},{"$f":"Dataset[[#This Row],[2025/26 Baseline]]+Dataset[[#This Row],[2025/26 From - Total]]+Dataset[[#This Row],[2025/26 To - Total]]","v":0}]
["NAT|Non-transfer item","2|Buildings","2023_24","MTEF2023",2,3,3,1303,686,"02","03","03","001303","000686","02|03|03",2,3,11,54,58,"02|03|11|54|58","National","Parliament","Associated Services","Transfer: Parliamentary Budget Office","Non-transfer item","Capital","Payments for capital assets","Buildings and other fixed structures","Buildings","Buildings","General public services","Executive and legislative organs","NAT",0,0,0,0,0,0,0,0,0,0,0,null,null,null,null,null,null,null,null,null,null,null,null,null,null,null,null,null,null,null,null,null,null,null,null,null,null,null,null,null,null,{"$f":"Dataset[[#This Row],[2023/24 From - Spending review Topic 1]]+Dataset[[#This Row],[2023/24 From - Spending review Topic 2]]+Dataset[[#This Row],[2023/24 From - Spending review Topic 3]]+Dataset[[#This Row],[2023/24 From - Spending review Topic 4]]+Dataset[[#This Row],[2023/24 From - Other reallocations]]","v":0},{"$f":"Dataset[[#This Row],[2024/25 From - Spending review Topic 1]]+Dataset[[#This Row],[2024/25 From - Spending review Topic 2]]+Dataset[[#This Row],[2024/25 From - Spending review Topic 3]]+Dataset[[#This Row],[2024/25 From - Spending review Topic 4]]+Dataset[[#This Row],[2024/25 From - Other reallocations]]","v":0},{"$f":"Dataset[[#This Row],[2025/26 From - Spending review Topic 1]]+Dataset[[#This Row],[2025/26 From - Spending review Topic 2]]+Dataset[[#This Row],[2025/26 From - Spending review Topic 3]]+Dataset[[#This Row],[2025/26 From - Spending review Topic 4]]+Dataset[[#This Row],[2025/26 From - Other reallocations]]","v":0},{"$f":"Dataset[[#This Row],[2023/24 To - Spending review Topic 1]]+Dataset[[#This Row],[2023/24 To - Spending review Topic 2]]+Dataset[[#This Row],[2023/24 To - Spending review Topic 3]]+Dataset[[#This Row],[2023/24 To - Spending review Topic 4]]+Dataset[[#This Row],[2023/24 To - Other reallocations]]","v":0},{"$f":"Dataset[[#This Row],[2024/25 To - Spending review Topic 1]]+Dataset[[#This Row],[2024/25 To - Spending review Topic 2]]+Dataset[[#This Row],[2024/25 To - Spending review Topic 3]]+Dataset[[#This Row],[2024/25 To - Spending review Topic 4]]+Dataset[[#This Row],[2024/25 To - Other reallocations]]","v":0},{"$f":"Dataset[[#This Row],[2025/26 To - Spending review Topic 1]]+Dataset[[#This Row],[2025/26 To - Spending review Topic 2]]+Dataset[[#This Row],[2025/26 To - Spending review Topic 3]]+Dataset[[#This Row],[2025/26 To - Spending review Topic 4]]+Dataset[[#This Row],[2025/26 To - Other reallocations]]","v":0},{"$f":"Dataset[[#This Row],[2023/24 Baseline]]+Dataset[[#This Row],[2023/24 From - Total]]+Dataset[[#This Row],[2023/24 To - Total]]","v":0},{"$f":"Dataset[[#This Row],[2024/25 Baseline]]+Dataset[[#This Row],[2024/25 From - Total]]+Dataset[[#This Row],[2024/25 To - Total]]","v":0},{"$f":"Dataset[[#This Row],[2025/26 Baseline]]+Dataset[[#This Row],[2025/26 From - Total]]+Dataset[[#This Row],[2025/26 To - Total]]","v":0}]
["NAT|Non-transfer item","2|Other fixed structures","2023_24","MTEF2023",2,3,3,1304,687,"02","03","03","001304","000687","02|03|03",2,3,11,55,59,"02|03|11|55|59","National","Parliament","Associated Services","Transfer: Parliamentary Budget Office","Non-transfer item","Capital","Payments for capital assets","Buildings and other fixed structures","Other fixed structures","Other fixed structures","General public services","Executive and legislative organs","NAT",0,0,0,0,0,0,0,0,0,0,0,null,null,null,null,null,null,null,null,null,null,null,null,null,null,null,null,null,null,null,null,null,null,null,null,null,null,null,null,null,null,{"$f":"Dataset[[#This Row],[2023/24 From - Spending review Topic 1]]+Dataset[[#This Row],[2023/24 From - Spending review Topic 2]]+Dataset[[#This Row],[2023/24 From - Spending review Topic 3]]+Dataset[[#This Row],[2023/24 From - Spending review Topic 4]]+Dataset[[#This Row],[2023/24 From - Other reallocations]]","v":0},{"$f":"Dataset[[#This Row],[2024/25 From - Spending review Topic 1]]+Dataset[[#This Row],[2024/25 From - Spending review Topic 2]]+Dataset[[#This Row],[2024/25 From - Spending review Topic 3]]+Dataset[[#This Row],[2024/25 From - Spending review Topic 4]]+Dataset[[#This Row],[2024/25 From - Other reallocations]]","v":0},{"$f":"Dataset[[#This Row],[2025/26 From - Spending review Topic 1]]+Dataset[[#This Row],[2025/26 From - Spending review Topic 2]]+Dataset[[#This Row],[2025/26 From - Spending review Topic 3]]+Dataset[[#This Row],[2025/26 From - Spending review Topic 4]]+Dataset[[#This Row],[2025/26 From - Other reallocations]]","v":0},{"$f":"Dataset[[#This Row],[2023/24 To - Spending review Topic 1]]+Dataset[[#This Row],[2023/24 To - Spending review Topic 2]]+Dataset[[#This Row],[2023/24 To - Spending review Topic 3]]+Dataset[[#This Row],[2023/24 To - Spending review Topic 4]]+Dataset[[#This Row],[2023/24 To - Other reallocations]]","v":0},{"$f":"Dataset[[#This Row],[2024/25 To - Spending review Topic 1]]+Dataset[[#This Row],[2024/25 To - Spending review Topic 2]]+Dataset[[#This Row],[2024/25 To - Spending review Topic 3]]+Dataset[[#This Row],[2024/25 To - Spending review Topic 4]]+Dataset[[#This Row],[2024/25 To - Other reallocations]]","v":0},{"$f":"Dataset[[#This Row],[2025/26 To - Spending review Topic 1]]+Dataset[[#This Row],[2025/26 To - Spending review Topic 2]]+Dataset[[#This Row],[2025/26 To - Spending review Topic 3]]+Dataset[[#This Row],[2025/26 To - Spending review Topic 4]]+Dataset[[#This Row],[2025/26 To - Other reallocations]]","v":0},{"$f":"Dataset[[#This Row],[2023/24 Baseline]]+Dataset[[#This Row],[2023/24 From - Total]]+Dataset[[#This Row],[2023/24 To - Total]]","v":0},{"$f":"Dataset[[#This Row],[2024/25 Baseline]]+Dataset[[#This Row],[2024/25 From - Total]]+Dataset[[#This Row],[2024/25 To - Total]]","v":0},{"$f":"Dataset[[#This Row],[2025/26 Baseline]]+Dataset[[#This Row],[2025/26 From - Total]]+Dataset[[#This Row],[2025/26 To - Total]]","v":0}]
["NAT|Non-transfer item","2|Transport equipment","2023_24","MTEF2023",2,3,3,1305,688,"02","03","03","001305","000688","02|03|03",2,3,12,56,60,"02|03|12|56|60","National","Parliament","Associated Services","Transfer: Parliamentary Budget Office","Non-transfer item","Capital","Payments for capital assets","Machinery and equipment","Transport equipment","Transport equipment","General public services","Executive and legislative organs","NAT",0,0,0,0,0,0,0,0,0,0,0,null,null,null,null,null,null,null,null,null,null,null,null,null,null,null,null,null,null,null,null,null,null,null,null,null,null,null,null,null,null,{"$f":"Dataset[[#This Row],[2023/24 From - Spending review Topic 1]]+Dataset[[#This Row],[2023/24 From - Spending review Topic 2]]+Dataset[[#This Row],[2023/24 From - Spending review Topic 3]]+Dataset[[#This Row],[2023/24 From - Spending review Topic 4]]+Dataset[[#This Row],[2023/24 From - Other reallocations]]","v":0},{"$f":"Dataset[[#This Row],[2024/25 From - Spending review Topic 1]]+Dataset[[#This Row],[2024/25 From - Spending review Topic 2]]+Dataset[[#This Row],[2024/25 From - Spending review Topic 3]]+Dataset[[#This Row],[2024/25 From - Spending review Topic 4]]+Dataset[[#This Row],[2024/25 From - Other reallocations]]","v":0},{"$f":"Dataset[[#This Row],[2025/26 From - Spending review Topic 1]]+Dataset[[#This Row],[2025/26 From - Spending review Topic 2]]+Dataset[[#This Row],[2025/26 From - Spending review Topic 3]]+Dataset[[#This Row],[2025/26 From - Spending review Topic 4]]+Dataset[[#This Row],[2025/26 From - Other reallocations]]","v":0},{"$f":"Dataset[[#This Row],[2023/24 To - Spending review Topic 1]]+Dataset[[#This Row],[2023/24 To - Spending review Topic 2]]+Dataset[[#This Row],[2023/24 To - Spending review Topic 3]]+Dataset[[#This Row],[2023/24 To - Spending review Topic 4]]+Dataset[[#This Row],[2023/24 To - Other reallocations]]","v":0},{"$f":"Dataset[[#This Row],[2024/25 To - Spending review Topic 1]]+Dataset[[#This Row],[2024/25 To - Spending review Topic 2]]+Dataset[[#This Row],[2024/25 To - Spending review Topic 3]]+Dataset[[#This Row],[2024/25 To - Spending review Topic 4]]+Dataset[[#This Row],[2024/25 To - Other reallocations]]","v":0},{"$f":"Dataset[[#This Row],[2025/26 To - Spending review Topic 1]]+Dataset[[#This Row],[2025/26 To - Spending review Topic 2]]+Dataset[[#This Row],[2025/26 To - Spending review Topic 3]]+Dataset[[#This Row],[2025/26 To - Spending review Topic 4]]+Dataset[[#This Row],[2025/26 To - Other reallocations]]","v":0},{"$f":"Dataset[[#This Row],[2023/24 Baseline]]+Dataset[[#This Row],[2023/24 From - Total]]+Dataset[[#This Row],[2023/24 To - Total]]","v":0},{"$f":"Dataset[[#This Row],[2024/25 Baseline]]+Dataset[[#This Row],[2024/25 From - Total]]+Dataset[[#This Row],[2024/25 To - Total]]","v":0},{"$f":"Dataset[[#This Row],[2025/26 Baseline]]+Dataset[[#This Row],[2025/26 From - Total]]+Dataset[[#This Row],[2025/26 To - Total]]","v":0}]
["NAT|Non-transfer item","2|Other machinery and equipment","2023_24","MTEF2023",2,3,3,1306,689,"02","03","03","001306","000689","02|03|03",2,3,12,57,61,"02|03|12|57|61","National","Parliament","Associated Services","Transfer: Parliamentary Budget Office","Non-transfer item","Capital","Payments for capital assets","Machinery and equipment","Other machinery and equipment","Other machinery and equipment","General public services","Executive and legislative organs","NAT",0,0,0,0,0,0,0,0,0,0,0,null,null,null,null,null,null,null,null,null,null,null,null,null,null,null,null,null,null,null,null,null,null,null,null,null,null,null,null,null,null,{"$f":"Dataset[[#This Row],[2023/24 From - Spending review Topic 1]]+Dataset[[#This Row],[2023/24 From - Spending review Topic 2]]+Dataset[[#This Row],[2023/24 From - Spending review Topic 3]]+Dataset[[#This Row],[2023/24 From - Spending review Topic 4]]+Dataset[[#This Row],[2023/24 From - Other reallocations]]","v":0},{"$f":"Dataset[[#This Row],[2024/25 From - Spending review Topic 1]]+Dataset[[#This Row],[2024/25 From - Spending review Topic 2]]+Dataset[[#This Row],[2024/25 From - Spending review Topic 3]]+Dataset[[#This Row],[2024/25 From - Spending review Topic 4]]+Dataset[[#This Row],[2024/25 From - Other reallocations]]","v":0},{"$f":"Dataset[[#This Row],[2025/26 From - Spending review Topic 1]]+Dataset[[#This Row],[2025/26 From - Spending review Topic 2]]+Dataset[[#This Row],[2025/26 From - Spending review Topic 3]]+Dataset[[#This Row],[2025/26 From - Spending review Topic 4]]+Dataset[[#This Row],[2025/26 From - Other reallocations]]","v":0},{"$f":"Dataset[[#This Row],[2023/24 To - Spending review Topic 1]]+Dataset[[#This Row],[2023/24 To - Spending review Topic 2]]+Dataset[[#This Row],[2023/24 To - Spending review Topic 3]]+Dataset[[#This Row],[2023/24 To - Spending review Topic 4]]+Dataset[[#This Row],[2023/24 To - Other reallocations]]","v":0},{"$f":"Dataset[[#This Row],[2024/25 To - Spending review Topic 1]]+Dataset[[#This Row],[2024/25 To - Spending review Topic 2]]+Dataset[[#This Row],[2024/25 To - Spending review Topic 3]]+Dataset[[#This Row],[2024/25 To - Spending review Topic 4]]+Dataset[[#This Row],[2024/25 To - Other reallocations]]","v":0},{"$f":"Dataset[[#This Row],[2025/26 To - Spending review Topic 1]]+Dataset[[#This Row],[2025/26 To - Spending review Topic 2]]+Dataset[[#This Row],[2025/26 To - Spending review Topic 3]]+Dataset[[#This Row],[2025/26 To - Spending review Topic 4]]+Dataset[[#This Row],[2025/26 To - Other reallocations]]","v":0},{"$f":"Dataset[[#This Row],[2023/24 Baseline]]+Dataset[[#This Row],[2023/24 From - Total]]+Dataset[[#This Row],[2023/24 To - Total]]","v":0},{"$f":"Dataset[[#This Row],[2024/25 Baseline]]+Dataset[[#This Row],[2024/25 From - Total]]+Dataset[[#This Row],[2024/25 To - Total]]","v":0},{"$f":"Dataset[[#This Row],[2025/26 Baseline]]+Dataset[[#This Row],[2025/26 From - Total]]+Dataset[[#This Row],[2025/26 To - Total]]","v":0}]
["NAT|Non-transfer item","2|Heritage assets","2023_24","MTEF2023",2,3,3,1307,690,"02","03","03","001307","000690","02|03|03",2,3,13,58,62,"02|03|13|58|62","National","Parliament","Associated Services","Transfer: Parliamentary Budget Office","Non-transfer item","Capital","Payments for capital assets","Heritage assets","Heritage assets","Heritage assets","General public services","Executive and legislative organs","NAT",0,0,0,0,0,0,0,0,0,0,0,null,null,null,null,null,null,null,null,null,null,null,null,null,null,null,null,null,null,null,null,null,null,null,null,null,null,null,null,null,null,{"$f":"Dataset[[#This Row],[2023/24 From - Spending review Topic 1]]+Dataset[[#This Row],[2023/24 From - Spending review Topic 2]]+Dataset[[#This Row],[2023/24 From - Spending review Topic 3]]+Dataset[[#This Row],[2023/24 From - Spending review Topic 4]]+Dataset[[#This Row],[2023/24 From - Other reallocations]]","v":0},{"$f":"Dataset[[#This Row],[2024/25 From - Spending review Topic 1]]+Dataset[[#This Row],[2024/25 From - Spending review Topic 2]]+Dataset[[#This Row],[2024/25 From - Spending review Topic 3]]+Dataset[[#This Row],[2024/25 From - Spending review Topic 4]]+Dataset[[#This Row],[2024/25 From - Other reallocations]]","v":0},{"$f":"Dataset[[#This Row],[2025/26 From - Spending review Topic 1]]+Dataset[[#This Row],[2025/26 From - Spending review Topic 2]]+Dataset[[#This Row],[2025/26 From - Spending review Topic 3]]+Dataset[[#This Row],[2025/26 From - Spending review Topic 4]]+Dataset[[#This Row],[2025/26 From - Other reallocations]]","v":0},{"$f":"Dataset[[#This Row],[2023/24 To - Spending review Topic 1]]+Dataset[[#This Row],[2023/24 To - Spending review Topic 2]]+Dataset[[#This Row],[2023/24 To - Spending review Topic 3]]+Dataset[[#This Row],[2023/24 To - Spending review Topic 4]]+Dataset[[#This Row],[2023/24 To - Other reallocations]]","v":0},{"$f":"Dataset[[#This Row],[2024/25 To - Spending review Topic 1]]+Dataset[[#This Row],[2024/25 To - Spending review Topic 2]]+Dataset[[#This Row],[2024/25 To - Spending review Topic 3]]+Dataset[[#This Row],[2024/25 To - Spending review Topic 4]]+Dataset[[#This Row],[2024/25 To - Other reallocations]]","v":0},{"$f":"Dataset[[#This Row],[2025/26 To - Spending review Topic 1]]+Dataset[[#This Row],[2025/26 To - Spending review Topic 2]]+Dataset[[#This Row],[2025/26 To - Spending review Topic 3]]+Dataset[[#This Row],[2025/26 To - Spending review Topic 4]]+Dataset[[#This Row],[2025/26 To - Other reallocations]]","v":0},{"$f":"Dataset[[#This Row],[2023/24 Baseline]]+Dataset[[#This Row],[2023/24 From - Total]]+Dataset[[#This Row],[2023/24 To - Total]]","v":0},{"$f":"Dataset[[#This Row],[2024/25 Baseline]]+Dataset[[#This Row],[2024/25 From - Total]]+Dataset[[#This Row],[2024/25 To - Total]]","v":0},{"$f":"Dataset[[#This Row],[2025/26 Baseline]]+Dataset[[#This Row],[2025/26 From - Total]]+Dataset[[#This Row],[2025/26 To - Total]]","v":0}]
["NAT|Non-transfer item","2|Specialised military assets","2023_24","MTEF2023",2,3,3,1308,691,"02","03","03","001308","000691","02|03|03",2,3,14,59,63,"02|03|14|59|63","National","Parliament","Associated Services","Transfer: Parliamentary Budget Office","Non-transfer item","Capital","Payments for capital assets","Specialised military assets","Specialised military assets","Specialised military assets","General public services","Executive and legislative organs","NAT",0,0,0,0,0,0,0,0,0,0,0,null,null,null,null,null,null,null,null,null,null,null,null,null,null,null,null,null,null,null,null,null,null,null,null,null,null,null,null,null,null,{"$f":"Dataset[[#This Row],[2023/24 From - Spending review Topic 1]]+Dataset[[#This Row],[2023/24 From - Spending review Topic 2]]+Dataset[[#This Row],[2023/24 From - Spending review Topic 3]]+Dataset[[#This Row],[2023/24 From - Spending review Topic 4]]+Dataset[[#This Row],[2023/24 From - Other reallocations]]","v":0},{"$f":"Dataset[[#This Row],[2024/25 From - Spending review Topic 1]]+Dataset[[#This Row],[2024/25 From - Spending review Topic 2]]+Dataset[[#This Row],[2024/25 From - Spending review Topic 3]]+Dataset[[#This Row],[2024/25 From - Spending review Topic 4]]+Dataset[[#This Row],[2024/25 From - Other reallocations]]","v":0},{"$f":"Dataset[[#This Row],[2025/26 From - Spending review Topic 1]]+Dataset[[#This Row],[2025/26 From - Spending review Topic 2]]+Dataset[[#This Row],[2025/26 From - Spending review Topic 3]]+Dataset[[#This Row],[2025/26 From - Spending review Topic 4]]+Dataset[[#This Row],[2025/26 From - Other reallocations]]","v":0},{"$f":"Dataset[[#This Row],[2023/24 To - Spending review Topic 1]]+Dataset[[#This Row],[2023/24 To - Spending review Topic 2]]+Dataset[[#This Row],[2023/24 To - Spending review Topic 3]]+Dataset[[#This Row],[2023/24 To - Spending review Topic 4]]+Dataset[[#This Row],[2023/24 To - Other reallocations]]","v":0},{"$f":"Dataset[[#This Row],[2024/25 To - Spending review Topic 1]]+Dataset[[#This Row],[2024/25 To - Spending review Topic 2]]+Dataset[[#This Row],[2024/25 To - Spending review Topic 3]]+Dataset[[#This Row],[2024/25 To - Spending review Topic 4]]+Dataset[[#This Row],[2024/25 To - Other reallocations]]","v":0},{"$f":"Dataset[[#This Row],[2025/26 To - Spending review Topic 1]]+Dataset[[#This Row],[2025/26 To - Spending review Topic 2]]+Dataset[[#This Row],[2025/26 To - Spending review Topic 3]]+Dataset[[#This Row],[2025/26 To - Spending review Topic 4]]+Dataset[[#This Row],[2025/26 To - Other reallocations]]","v":0},{"$f":"Dataset[[#This Row],[2023/24 Baseline]]+Dataset[[#This Row],[2023/24 From - Total]]+Dataset[[#This Row],[2023/24 To - Total]]","v":0},{"$f":"Dataset[[#This Row],[2024/25 Baseline]]+Dataset[[#This Row],[2024/25 From - Total]]+Dataset[[#This Row],[2024/25 To - Total]]","v":0},{"$f":"Dataset[[#This Row],[2025/26 Baseline]]+Dataset[[#This Row],[2025/26 From - Total]]+Dataset[[#This Row],[2025/26 To - Total]]","v":0}]
["NAT|Non-transfer item","2|Biological assets","2023_24","MTEF2023",2,3,3,1309,692,"02","03","03","001309","000692","02|03|03",2,3,15,60,64,"02|03|15|60|64","National","Parliament","Associated Services","Transfer: Parliamentary Budget Office","Non-transfer item","Capital","Payments for capital assets","Biological assets","Biological assets","Biological assets","General public services","Executive and legislative organs","NAT",0,0,0,0,0,0,0,0,0,0,0,null,null,null,null,null,null,null,null,null,null,null,null,null,null,null,null,null,null,null,null,null,null,null,null,null,null,null,null,null,null,{"$f":"Dataset[[#This Row],[2023/24 From - Spending review Topic 1]]+Dataset[[#This Row],[2023/24 From - Spending review Topic 2]]+Dataset[[#This Row],[2023/24 From - Spending review Topic 3]]+Dataset[[#This Row],[2023/24 From - Spending review Topic 4]]+Dataset[[#This Row],[2023/24 From - Other reallocations]]","v":0},{"$f":"Dataset[[#This Row],[2024/25 From - Spending review Topic 1]]+Dataset[[#This Row],[2024/25 From - Spending review Topic 2]]+Dataset[[#This Row],[2024/25 From - Spending review Topic 3]]+Dataset[[#This Row],[2024/25 From - Spending review Topic 4]]+Dataset[[#This Row],[2024/25 From - Other reallocations]]","v":0},{"$f":"Dataset[[#This Row],[2025/26 From - Spending review Topic 1]]+Dataset[[#This Row],[2025/26 From - Spending review Topic 2]]+Dataset[[#This Row],[2025/26 From - Spending review Topic 3]]+Dataset[[#This Row],[2025/26 From - Spending review Topic 4]]+Dataset[[#This Row],[2025/26 From - Other reallocations]]","v":0},{"$f":"Dataset[[#This Row],[2023/24 To - Spending review Topic 1]]+Dataset[[#This Row],[2023/24 To - Spending review Topic 2]]+Dataset[[#This Row],[2023/24 To - Spending review Topic 3]]+Dataset[[#This Row],[2023/24 To - Spending review Topic 4]]+Dataset[[#This Row],[2023/24 To - Other reallocations]]","v":0},{"$f":"Dataset[[#This Row],[2024/25 To - Spending review Topic 1]]+Dataset[[#This Row],[2024/25 To - Spending review Topic 2]]+Dataset[[#This Row],[2024/25 To - Spending review Topic 3]]+Dataset[[#This Row],[2024/25 To - Spending review Topic 4]]+Dataset[[#This Row],[2024/25 To - Other reallocations]]","v":0},{"$f":"Dataset[[#This Row],[2025/26 To - Spending review Topic 1]]+Dataset[[#This Row],[2025/26 To - Spending review Topic 2]]+Dataset[[#This Row],[2025/26 To - Spending review Topic 3]]+Dataset[[#This Row],[2025/26 To - Spending review Topic 4]]+Dataset[[#This Row],[2025/26 To - Other reallocations]]","v":0},{"$f":"Dataset[[#This Row],[2023/24 Baseline]]+Dataset[[#This Row],[2023/24 From - Total]]+Dataset[[#This Row],[2023/24 To - Total]]","v":0},{"$f":"Dataset[[#This Row],[2024/25 Baseline]]+Dataset[[#This Row],[2024/25 From - Total]]+Dataset[[#This Row],[2024/25 To - Total]]","v":0},{"$f":"Dataset[[#This Row],[2025/26 Baseline]]+Dataset[[#This Row],[2025/26 From - Total]]+Dataset[[#This Row],[2025/26 To - Total]]","v":0}]
["NAT|Non-transfer item","2|Land and sub-soil assets","2023_24","MTEF2023",2,3,3,1310,693,"02","03","03","001310","000693","02|03|03",2,3,16,61,65,"02|03|16|61|65","National","Parliament","Associated Services","Transfer: Parliamentary Budget Office","Non-transfer item","Capital","Payments for capital assets","Land and sub-soil assets","Land and sub-soil assets","Land and sub-soil assets","General public services","Executive and legislative organs","NAT",0,0,0,0,0,0,0,0,0,0,0,null,null,null,null,null,null,null,null,null,null,null,null,null,null,null,null,null,null,null,null,null,null,null,null,null,null,null,null,null,null,{"$f":"Dataset[[#This Row],[2023/24 From - Spending review Topic 1]]+Dataset[[#This Row],[2023/24 From - Spending review Topic 2]]+Dataset[[#This Row],[2023/24 From - Spending review Topic 3]]+Dataset[[#This Row],[2023/24 From - Spending review Topic 4]]+Dataset[[#This Row],[2023/24 From - Other reallocations]]","v":0},{"$f":"Dataset[[#This Row],[2024/25 From - Spending review Topic 1]]+Dataset[[#This Row],[2024/25 From - Spending review Topic 2]]+Dataset[[#This Row],[2024/25 From - Spending review Topic 3]]+Dataset[[#This Row],[2024/25 From - Spending review Topic 4]]+Dataset[[#This Row],[2024/25 From - Other reallocations]]","v":0},{"$f":"Dataset[[#This Row],[2025/26 From - Spending review Topic 1]]+Dataset[[#This Row],[2025/26 From - Spending review Topic 2]]+Dataset[[#This Row],[2025/26 From - Spending review Topic 3]]+Dataset[[#This Row],[2025/26 From - Spending review Topic 4]]+Dataset[[#This Row],[2025/26 From - Other reallocations]]","v":0},{"$f":"Dataset[[#This Row],[2023/24 To - Spending review Topic 1]]+Dataset[[#This Row],[2023/24 To - Spending review Topic 2]]+Dataset[[#This Row],[2023/24 To - Spending review Topic 3]]+Dataset[[#This Row],[2023/24 To - Spending review Topic 4]]+Dataset[[#This Row],[2023/24 To - Other reallocations]]","v":0},{"$f":"Dataset[[#This Row],[2024/25 To - Spending review Topic 1]]+Dataset[[#This Row],[2024/25 To - Spending review Topic 2]]+Dataset[[#This Row],[2024/25 To - Spending review Topic 3]]+Dataset[[#This Row],[2024/25 To - Spending review Topic 4]]+Dataset[[#This Row],[2024/25 To - Other reallocations]]","v":0},{"$f":"Dataset[[#This Row],[2025/26 To - Spending review Topic 1]]+Dataset[[#This Row],[2025/26 To - Spending review Topic 2]]+Dataset[[#This Row],[2025/26 To - Spending review Topic 3]]+Dataset[[#This Row],[2025/26 To - Spending review Topic 4]]+Dataset[[#This Row],[2025/26 To - Other reallocations]]","v":0},{"$f":"Dataset[[#This Row],[2023/24 Baseline]]+Dataset[[#This Row],[2023/24 From - Total]]+Dataset[[#This Row],[2023/24 To - Total]]","v":0},{"$f":"Dataset[[#This Row],[2024/25 Baseline]]+Dataset[[#This Row],[2024/25 From - Total]]+Dataset[[#This Row],[2024/25 To - Total]]","v":0},{"$f":"Dataset[[#This Row],[2025/26 Baseline]]+Dataset[[#This Row],[2025/26 From - Total]]+Dataset[[#This Row],[2025/26 To - Total]]","v":0}]
["NAT|Non-transfer item","2|Software and other intangible assets","2023_24","MTEF2023",2,3,3,1311,694,"02","03","03","001311","000694","02|03|03",2,3,17,62,66,"02|03|17|62|66","National","Parliament","Associated Services","Transfer: Parliamentary Budget Office","Non-transfer item","Capital","Payments for capital assets","Software and other intangible assets","Software and other intangible assets","Software and other intangible assets","General public services","Executive and legislative organs","NAT",0,0,0,0,0,0,0,0,0,0,0,null,null,null,null,null,null,null,null,null,null,null,null,null,null,null,null,null,null,null,null,null,null,null,null,null,null,null,null,null,null,{"$f":"Dataset[[#This Row],[2023/24 From - Spending review Topic 1]]+Dataset[[#This Row],[2023/24 From - Spending review Topic 2]]+Dataset[[#This Row],[2023/24 From - Spending review Topic 3]]+Dataset[[#This Row],[2023/24 From - Spending review Topic 4]]+Dataset[[#This Row],[2023/24 From - Other reallocations]]","v":0},{"$f":"Dataset[[#This Row],[2024/25 From - Spending review Topic 1]]+Dataset[[#This Row],[2024/25 From - Spending review Topic 2]]+Dataset[[#This Row],[2024/25 From - Spending review Topic 3]]+Dataset[[#This Row],[2024/25 From - Spending review Topic 4]]+Dataset[[#This Row],[2024/25 From - Other reallocations]]","v":0},{"$f":"Dataset[[#This Row],[2025/26 From - Spending review Topic 1]]+Dataset[[#This Row],[2025/26 From - Spending review Topic 2]]+Dataset[[#This Row],[2025/26 From - Spending review Topic 3]]+Dataset[[#This Row],[2025/26 From - Spending review Topic 4]]+Dataset[[#This Row],[2025/26 From - Other reallocations]]","v":0},{"$f":"Dataset[[#This Row],[2023/24 To - Spending review Topic 1]]+Dataset[[#This Row],[2023/24 To - Spending review Topic 2]]+Dataset[[#This Row],[2023/24 To - Spending review Topic 3]]+Dataset[[#This Row],[2023/24 To - Spending review Topic 4]]+Dataset[[#This Row],[2023/24 To - Other reallocations]]","v":0},{"$f":"Dataset[[#This Row],[2024/25 To - Spending review Topic 1]]+Dataset[[#This Row],[2024/25 To - Spending review Topic 2]]+Dataset[[#This Row],[2024/25 To - Spending review Topic 3]]+Dataset[[#This Row],[2024/25 To - Spending review Topic 4]]+Dataset[[#This Row],[2024/25 To - Other reallocations]]","v":0},{"$f":"Dataset[[#This Row],[2025/26 To - Spending review Topic 1]]+Dataset[[#This Row],[2025/26 To - Spending review Topic 2]]+Dataset[[#This Row],[2025/26 To - Spending review Topic 3]]+Dataset[[#This Row],[2025/26 To - Spending review Topic 4]]+Dataset[[#This Row],[2025/26 To - Other reallocations]]","v":0},{"$f":"Dataset[[#This Row],[2023/24 Baseline]]+Dataset[[#This Row],[2023/24 From - Total]]+Dataset[[#This Row],[2023/24 To - Total]]","v":0},{"$f":"Dataset[[#This Row],[2024/25 Baseline]]+Dataset[[#This Row],[2024/25 From - Total]]+Dataset[[#This Row],[2024/25 To - Total]]","v":0},{"$f":"Dataset[[#This Row],[2025/26 Baseline]]+Dataset[[#This Row],[2025/26 From - Total]]+Dataset[[#This Row],[2025/26 To - Total]]","v":0}]
["NAT|Non-transfer item","2|Payments for financial assets","2023_24","MTEF2023",2,3,3,1312,695,"02","03","03","001312","000695","02|03|03",3,4,18,63,67,"03|04|18|63|67","National","Parliament","Associated Services","Transfer: Parliamentary Budget Office","Non-transfer item","Payments for financial assets","Payments for financial assets","Payments for financial assets","Payments for financial assets","Payments for financial assets","General public services","Executive and legislative organs","NAT",0,0,0,0,0,0,0,0,0,0,0,null,null,null,null,null,null,null,null,null,null,null,null,null,null,null,null,null,null,null,null,null,null,null,null,null,null,null,null,null,null,{"$f":"Dataset[[#This Row],[2023/24 From - Spending review Topic 1]]+Dataset[[#This Row],[2023/24 From - Spending review Topic 2]]+Dataset[[#This Row],[2023/24 From - Spending review Topic 3]]+Dataset[[#This Row],[2023/24 From - Spending review Topic 4]]+Dataset[[#This Row],[2023/24 From - Other reallocations]]","v":0},{"$f":"Dataset[[#This Row],[2024/25 From - Spending review Topic 1]]+Dataset[[#This Row],[2024/25 From - Spending review Topic 2]]+Dataset[[#This Row],[2024/25 From - Spending review Topic 3]]+Dataset[[#This Row],[2024/25 From - Spending review Topic 4]]+Dataset[[#This Row],[2024/25 From - Other reallocations]]","v":0},{"$f":"Dataset[[#This Row],[2025/26 From - Spending review Topic 1]]+Dataset[[#This Row],[2025/26 From - Spending review Topic 2]]+Dataset[[#This Row],[2025/26 From - Spending review Topic 3]]+Dataset[[#This Row],[2025/26 From - Spending review Topic 4]]+Dataset[[#This Row],[2025/26 From - Other reallocations]]","v":0},{"$f":"Dataset[[#This Row],[2023/24 To - Spending review Topic 1]]+Dataset[[#This Row],[2023/24 To - Spending review Topic 2]]+Dataset[[#This Row],[2023/24 To - Spending review Topic 3]]+Dataset[[#This Row],[2023/24 To - Spending review Topic 4]]+Dataset[[#This Row],[2023/24 To - Other reallocations]]","v":0},{"$f":"Dataset[[#This Row],[2024/25 To - Spending review Topic 1]]+Dataset[[#This Row],[2024/25 To - Spending review Topic 2]]+Dataset[[#This Row],[2024/25 To - Spending review Topic 3]]+Dataset[[#This Row],[2024/25 To - Spending review Topic 4]]+Dataset[[#This Row],[2024/25 To - Other reallocations]]","v":0},{"$f":"Dataset[[#This Row],[2025/26 To - Spending review Topic 1]]+Dataset[[#This Row],[2025/26 To - Spending review Topic 2]]+Dataset[[#This Row],[2025/26 To - Spending review Topic 3]]+Dataset[[#This Row],[2025/26 To - Spending review Topic 4]]+Dataset[[#This Row],[2025/26 To - Other reallocations]]","v":0},{"$f":"Dataset[[#This Row],[2023/24 Baseline]]+Dataset[[#This Row],[2023/24 From - Total]]+Dataset[[#This Row],[2023/24 To - Total]]","v":0},{"$f":"Dataset[[#This Row],[2024/25 Baseline]]+Dataset[[#This Row],[2024/25 From - Total]]+Dataset[[#This Row],[2024/25 To - Total]]","v":0},{"$f":"Dataset[[#This Row],[2025/26 Baseline]]+Dataset[[#This Row],[2025/26 From - Total]]+Dataset[[#This Row],[2025/26 To - Total]]","v":0}]
["NAT|Non-transfer item","2|Salaries and wages","2023_24","MTEF2023",2,16,1,1313,696,"02","16","01","001313","000696","02|16|01",1,1,1,1,1,"01|01|01|01|01","National","Parliament","Direct charge against the National Revenue Fund","Members' Remuneration","Non-transfer item","Current","Current payments","Compensation of employees","Salaries and wages","Salaries and wages","General public services","Executive and legislative organs","NAT",493161,600518,476474,471710,471710,471710,0,471709,471709,492893,514975,null,null,null,null,null,null,null,null,null,null,null,null,null,null,null,null,null,null,null,null,null,null,null,null,null,null,null,null,null,null,{"$f":"Dataset[[#This Row],[2023/24 From - Spending review Topic 1]]+Dataset[[#This Row],[2023/24 From - Spending review Topic 2]]+Dataset[[#This Row],[2023/24 From - Spending review Topic 3]]+Dataset[[#This Row],[2023/24 From - Spending review Topic 4]]+Dataset[[#This Row],[2023/24 From - Other reallocations]]","v":0},{"$f":"Dataset[[#This Row],[2024/25 From - Spending review Topic 1]]+Dataset[[#This Row],[2024/25 From - Spending review Topic 2]]+Dataset[[#This Row],[2024/25 From - Spending review Topic 3]]+Dataset[[#This Row],[2024/25 From - Spending review Topic 4]]+Dataset[[#This Row],[2024/25 From - Other reallocations]]","v":0},{"$f":"Dataset[[#This Row],[2025/26 From - Spending review Topic 1]]+Dataset[[#This Row],[2025/26 From - Spending review Topic 2]]+Dataset[[#This Row],[2025/26 From - Spending review Topic 3]]+Dataset[[#This Row],[2025/26 From - Spending review Topic 4]]+Dataset[[#This Row],[2025/26 From - Other reallocations]]","v":0},{"$f":"Dataset[[#This Row],[2023/24 To - Spending review Topic 1]]+Dataset[[#This Row],[2023/24 To - Spending review Topic 2]]+Dataset[[#This Row],[2023/24 To - Spending review Topic 3]]+Dataset[[#This Row],[2023/24 To - Spending review Topic 4]]+Dataset[[#This Row],[2023/24 To - Other reallocations]]","v":0},{"$f":"Dataset[[#This Row],[2024/25 To - Spending review Topic 1]]+Dataset[[#This Row],[2024/25 To - Spending review Topic 2]]+Dataset[[#This Row],[2024/25 To - Spending review Topic 3]]+Dataset[[#This Row],[2024/25 To - Spending review Topic 4]]+Dataset[[#This Row],[2024/25 To - Other reallocations]]","v":0},{"$f":"Dataset[[#This Row],[2025/26 To - Spending review Topic 1]]+Dataset[[#This Row],[2025/26 To - Spending review Topic 2]]+Dataset[[#This Row],[2025/26 To - Spending review Topic 3]]+Dataset[[#This Row],[2025/26 To - Spending review Topic 4]]+Dataset[[#This Row],[2025/26 To - Other reallocations]]","v":0},{"$f":"Dataset[[#This Row],[2023/24 Baseline]]+Dataset[[#This Row],[2023/24 From - Total]]+Dataset[[#This Row],[2023/24 To - Total]]","v":471709},{"$f":"Dataset[[#This Row],[2024/25 Baseline]]+Dataset[[#This Row],[2024/25 From - Total]]+Dataset[[#This Row],[2024/25 To - Total]]","v":492893},{"$f":"Dataset[[#This Row],[2025/26 Baseline]]+Dataset[[#This Row],[2025/26 From - Total]]+Dataset[[#This Row],[2025/26 To - Total]]","v":514975}]
["NAT|Non-transfer item","2|Social contributions","2023_24","MTEF2023",2,16,1,1314,697,"02","16","01","001314","000697","02|16|01",1,1,1,2,2,"01|01|01|02|02","National","Parliament","Direct charge against the National Revenue Fund","Members' Remuneration","Non-transfer item","Current","Current payments","Compensation of employees","Social contributions","Social contributions","General public services","Executive and legislative organs","NAT",0,0,0,0,0,0,0,0,0,0,0,null,null,null,null,null,null,null,null,null,null,null,null,null,null,null,null,null,null,null,null,null,null,null,null,null,null,null,null,null,null,{"$f":"Dataset[[#This Row],[2023/24 From - Spending review Topic 1]]+Dataset[[#This Row],[2023/24 From - Spending review Topic 2]]+Dataset[[#This Row],[2023/24 From - Spending review Topic 3]]+Dataset[[#This Row],[2023/24 From - Spending review Topic 4]]+Dataset[[#This Row],[2023/24 From - Other reallocations]]","v":0},{"$f":"Dataset[[#This Row],[2024/25 From - Spending review Topic 1]]+Dataset[[#This Row],[2024/25 From - Spending review Topic 2]]+Dataset[[#This Row],[2024/25 From - Spending review Topic 3]]+Dataset[[#This Row],[2024/25 From - Spending review Topic 4]]+Dataset[[#This Row],[2024/25 From - Other reallocations]]","v":0},{"$f":"Dataset[[#This Row],[2025/26 From - Spending review Topic 1]]+Dataset[[#This Row],[2025/26 From - Spending review Topic 2]]+Dataset[[#This Row],[2025/26 From - Spending review Topic 3]]+Dataset[[#This Row],[2025/26 From - Spending review Topic 4]]+Dataset[[#This Row],[2025/26 From - Other reallocations]]","v":0},{"$f":"Dataset[[#This Row],[2023/24 To - Spending review Topic 1]]+Dataset[[#This Row],[2023/24 To - Spending review Topic 2]]+Dataset[[#This Row],[2023/24 To - Spending review Topic 3]]+Dataset[[#This Row],[2023/24 To - Spending review Topic 4]]+Dataset[[#This Row],[2023/24 To - Other reallocations]]","v":0},{"$f":"Dataset[[#This Row],[2024/25 To - Spending review Topic 1]]+Dataset[[#This Row],[2024/25 To - Spending review Topic 2]]+Dataset[[#This Row],[2024/25 To - Spending review Topic 3]]+Dataset[[#This Row],[2024/25 To - Spending review Topic 4]]+Dataset[[#This Row],[2024/25 To - Other reallocations]]","v":0},{"$f":"Dataset[[#This Row],[2025/26 To - Spending review Topic 1]]+Dataset[[#This Row],[2025/26 To - Spending review Topic 2]]+Dataset[[#This Row],[2025/26 To - Spending review Topic 3]]+Dataset[[#This Row],[2025/26 To - Spending review Topic 4]]+Dataset[[#This Row],[2025/26 To - Other reallocations]]","v":0},{"$f":"Dataset[[#This Row],[2023/24 Baseline]]+Dataset[[#This Row],[2023/24 From - Total]]+Dataset[[#This Row],[2023/24 To - Total]]","v":0},{"$f":"Dataset[[#This Row],[2024/25 Baseline]]+Dataset[[#This Row],[2024/25 From - Total]]+Dataset[[#This Row],[2024/25 To - Total]]","v":0},{"$f":"Dataset[[#This Row],[2025/26 Baseline]]+Dataset[[#This Row],[2025/26 From - Total]]+Dataset[[#This Row],[2025/26 To - Total]]","v":0}]
["NAT|Non-transfer item","2|Administrative fees","2023_24","MTEF2023",2,16,1,1315,698,"02","16","01","001315","000698","02|16|01",1,1,2,3,3,"01|01|02|03|03","National","Parliament","Direct charge against the National Revenue Fund","Members' Remuneration","Non-transfer item","Current","Current payments","Goods and services","Administrative fees","Administrative fees","General public services","Executive and legislative organs","NAT",0,0,0,0,0,0,0,0,0,0,0,null,null,null,null,null,null,null,null,null,null,null,null,null,null,null,null,null,null,null,null,null,null,null,null,null,null,null,null,null,null,{"$f":"Dataset[[#This Row],[2023/24 From - Spending review Topic 1]]+Dataset[[#This Row],[2023/24 From - Spending review Topic 2]]+Dataset[[#This Row],[2023/24 From - Spending review Topic 3]]+Dataset[[#This Row],[2023/24 From - Spending review Topic 4]]+Dataset[[#This Row],[2023/24 From - Other reallocations]]","v":0},{"$f":"Dataset[[#This Row],[2024/25 From - Spending review Topic 1]]+Dataset[[#This Row],[2024/25 From - Spending review Topic 2]]+Dataset[[#This Row],[2024/25 From - Spending review Topic 3]]+Dataset[[#This Row],[2024/25 From - Spending review Topic 4]]+Dataset[[#This Row],[2024/25 From - Other reallocations]]","v":0},{"$f":"Dataset[[#This Row],[2025/26 From - Spending review Topic 1]]+Dataset[[#This Row],[2025/26 From - Spending review Topic 2]]+Dataset[[#This Row],[2025/26 From - Spending review Topic 3]]+Dataset[[#This Row],[2025/26 From - Spending review Topic 4]]+Dataset[[#This Row],[2025/26 From - Other reallocations]]","v":0},{"$f":"Dataset[[#This Row],[2023/24 To - Spending review Topic 1]]+Dataset[[#This Row],[2023/24 To - Spending review Topic 2]]+Dataset[[#This Row],[2023/24 To - Spending review Topic 3]]+Dataset[[#This Row],[2023/24 To - Spending review Topic 4]]+Dataset[[#This Row],[2023/24 To - Other reallocations]]","v":0},{"$f":"Dataset[[#This Row],[2024/25 To - Spending review Topic 1]]+Dataset[[#This Row],[2024/25 To - Spending review Topic 2]]+Dataset[[#This Row],[2024/25 To - Spending review Topic 3]]+Dataset[[#This Row],[2024/25 To - Spending review Topic 4]]+Dataset[[#This Row],[2024/25 To - Other reallocations]]","v":0},{"$f":"Dataset[[#This Row],[2025/26 To - Spending review Topic 1]]+Dataset[[#This Row],[2025/26 To - Spending review Topic 2]]+Dataset[[#This Row],[2025/26 To - Spending review Topic 3]]+Dataset[[#This Row],[2025/26 To - Spending review Topic 4]]+Dataset[[#This Row],[2025/26 To - Other reallocations]]","v":0},{"$f":"Dataset[[#This Row],[2023/24 Baseline]]+Dataset[[#This Row],[2023/24 From - Total]]+Dataset[[#This Row],[2023/24 To - Total]]","v":0},{"$f":"Dataset[[#This Row],[2024/25 Baseline]]+Dataset[[#This Row],[2024/25 From - Total]]+Dataset[[#This Row],[2024/25 To - Total]]","v":0},{"$f":"Dataset[[#This Row],[2025/26 Baseline]]+Dataset[[#This Row],[2025/26 From - Total]]+Dataset[[#This Row],[2025/26 To - Total]]","v":0}]
["NAT|Non-transfer item","2|Advertising","2023_24","MTEF2023",2,16,1,1316,699,"02","16","01","001316","000699","02|16|01",1,1,2,4,4,"01|01|02|04|04","National","Parliament","Direct charge against the National Revenue Fund","Members' Remuneration","Non-transfer item","Current","Current payments","Goods and services","Advertising","Advertising","General public services","Executive and legislative organs","NAT",0,0,0,0,0,0,0,0,0,0,0,null,null,null,null,null,null,null,null,null,null,null,null,null,null,null,null,null,null,null,null,null,null,null,null,null,null,null,null,null,null,{"$f":"Dataset[[#This Row],[2023/24 From - Spending review Topic 1]]+Dataset[[#This Row],[2023/24 From - Spending review Topic 2]]+Dataset[[#This Row],[2023/24 From - Spending review Topic 3]]+Dataset[[#This Row],[2023/24 From - Spending review Topic 4]]+Dataset[[#This Row],[2023/24 From - Other reallocations]]","v":0},{"$f":"Dataset[[#This Row],[2024/25 From - Spending review Topic 1]]+Dataset[[#This Row],[2024/25 From - Spending review Topic 2]]+Dataset[[#This Row],[2024/25 From - Spending review Topic 3]]+Dataset[[#This Row],[2024/25 From - Spending review Topic 4]]+Dataset[[#This Row],[2024/25 From - Other reallocations]]","v":0},{"$f":"Dataset[[#This Row],[2025/26 From - Spending review Topic 1]]+Dataset[[#This Row],[2025/26 From - Spending review Topic 2]]+Dataset[[#This Row],[2025/26 From - Spending review Topic 3]]+Dataset[[#This Row],[2025/26 From - Spending review Topic 4]]+Dataset[[#This Row],[2025/26 From - Other reallocations]]","v":0},{"$f":"Dataset[[#This Row],[2023/24 To - Spending review Topic 1]]+Dataset[[#This Row],[2023/24 To - Spending review Topic 2]]+Dataset[[#This Row],[2023/24 To - Spending review Topic 3]]+Dataset[[#This Row],[2023/24 To - Spending review Topic 4]]+Dataset[[#This Row],[2023/24 To - Other reallocations]]","v":0},{"$f":"Dataset[[#This Row],[2024/25 To - Spending review Topic 1]]+Dataset[[#This Row],[2024/25 To - Spending review Topic 2]]+Dataset[[#This Row],[2024/25 To - Spending review Topic 3]]+Dataset[[#This Row],[2024/25 To - Spending review Topic 4]]+Dataset[[#This Row],[2024/25 To - Other reallocations]]","v":0},{"$f":"Dataset[[#This Row],[2025/26 To - Spending review Topic 1]]+Dataset[[#This Row],[2025/26 To - Spending review Topic 2]]+Dataset[[#This Row],[2025/26 To - Spending review Topic 3]]+Dataset[[#This Row],[2025/26 To - Spending review Topic 4]]+Dataset[[#This Row],[2025/26 To - Other reallocations]]","v":0},{"$f":"Dataset[[#This Row],[2023/24 Baseline]]+Dataset[[#This Row],[2023/24 From - Total]]+Dataset[[#This Row],[2023/24 To - Total]]","v":0},{"$f":"Dataset[[#This Row],[2024/25 Baseline]]+Dataset[[#This Row],[2024/25 From - Total]]+Dataset[[#This Row],[2024/25 To - Total]]","v":0},{"$f":"Dataset[[#This Row],[2025/26 Baseline]]+Dataset[[#This Row],[2025/26 From - Total]]+Dataset[[#This Row],[2025/26 To - Total]]","v":0}]
["NAT|Non-transfer item","2|Minor assets","2023_24","MTEF2023",2,16,1,1317,700,"02","16","01","001317","000700","02|16|01",1,1,2,5,5,"01|01|02|05|05","National","Parliament","Direct charge against the National Revenue Fund","Members' Remuneration","Non-transfer item","Current","Current payments","Goods and services","Minor assets","Minor assets","General public services","Executive and legislative organs","NAT",0,0,0,0,0,0,0,0,0,0,0,null,null,null,null,null,null,null,null,null,null,null,null,null,null,null,null,null,null,null,null,null,null,null,null,null,null,null,null,null,null,{"$f":"Dataset[[#This Row],[2023/24 From - Spending review Topic 1]]+Dataset[[#This Row],[2023/24 From - Spending review Topic 2]]+Dataset[[#This Row],[2023/24 From - Spending review Topic 3]]+Dataset[[#This Row],[2023/24 From - Spending review Topic 4]]+Dataset[[#This Row],[2023/24 From - Other reallocations]]","v":0},{"$f":"Dataset[[#This Row],[2024/25 From - Spending review Topic 1]]+Dataset[[#This Row],[2024/25 From - Spending review Topic 2]]+Dataset[[#This Row],[2024/25 From - Spending review Topic 3]]+Dataset[[#This Row],[2024/25 From - Spending review Topic 4]]+Dataset[[#This Row],[2024/25 From - Other reallocations]]","v":0},{"$f":"Dataset[[#This Row],[2025/26 From - Spending review Topic 1]]+Dataset[[#This Row],[2025/26 From - Spending review Topic 2]]+Dataset[[#This Row],[2025/26 From - Spending review Topic 3]]+Dataset[[#This Row],[2025/26 From - Spending review Topic 4]]+Dataset[[#This Row],[2025/26 From - Other reallocations]]","v":0},{"$f":"Dataset[[#This Row],[2023/24 To - Spending review Topic 1]]+Dataset[[#This Row],[2023/24 To - Spending review Topic 2]]+Dataset[[#This Row],[2023/24 To - Spending review Topic 3]]+Dataset[[#This Row],[2023/24 To - Spending review Topic 4]]+Dataset[[#This Row],[2023/24 To - Other reallocations]]","v":0},{"$f":"Dataset[[#This Row],[2024/25 To - Spending review Topic 1]]+Dataset[[#This Row],[2024/25 To - Spending review Topic 2]]+Dataset[[#This Row],[2024/25 To - Spending review Topic 3]]+Dataset[[#This Row],[2024/25 To - Spending review Topic 4]]+Dataset[[#This Row],[2024/25 To - Other reallocations]]","v":0},{"$f":"Dataset[[#This Row],[2025/26 To - Spending review Topic 1]]+Dataset[[#This Row],[2025/26 To - Spending review Topic 2]]+Dataset[[#This Row],[2025/26 To - Spending review Topic 3]]+Dataset[[#This Row],[2025/26 To - Spending review Topic 4]]+Dataset[[#This Row],[2025/26 To - Other reallocations]]","v":0},{"$f":"Dataset[[#This Row],[2023/24 Baseline]]+Dataset[[#This Row],[2023/24 From - Total]]+Dataset[[#This Row],[2023/24 To - Total]]","v":0},{"$f":"Dataset[[#This Row],[2024/25 Baseline]]+Dataset[[#This Row],[2024/25 From - Total]]+Dataset[[#This Row],[2024/25 To - Total]]","v":0},{"$f":"Dataset[[#This Row],[2025/26 Baseline]]+Dataset[[#This Row],[2025/26 From - Total]]+Dataset[[#This Row],[2025/26 To - Total]]","v":0}]
["NAT|Non-transfer item","2|Audit costs: External","2023_24","MTEF2023",2,16,1,1318,701,"02","16","01","001318","000701","02|16|01",1,1,2,6,6,"01|01|02|06|06","National","Parliament","Direct charge against the National Revenue Fund","Members' Remuneration","Non-transfer item","Current","Current payments","Goods and services","Audit costs: External","Audit costs: External","General public services","Executive and legislative organs","NAT",0,0,0,0,0,0,0,0,0,0,0,null,null,null,null,null,null,null,null,null,null,null,null,null,null,null,null,null,null,null,null,null,null,null,null,null,null,null,null,null,null,{"$f":"Dataset[[#This Row],[2023/24 From - Spending review Topic 1]]+Dataset[[#This Row],[2023/24 From - Spending review Topic 2]]+Dataset[[#This Row],[2023/24 From - Spending review Topic 3]]+Dataset[[#This Row],[2023/24 From - Spending review Topic 4]]+Dataset[[#This Row],[2023/24 From - Other reallocations]]","v":0},{"$f":"Dataset[[#This Row],[2024/25 From - Spending review Topic 1]]+Dataset[[#This Row],[2024/25 From - Spending review Topic 2]]+Dataset[[#This Row],[2024/25 From - Spending review Topic 3]]+Dataset[[#This Row],[2024/25 From - Spending review Topic 4]]+Dataset[[#This Row],[2024/25 From - Other reallocations]]","v":0},{"$f":"Dataset[[#This Row],[2025/26 From - Spending review Topic 1]]+Dataset[[#This Row],[2025/26 From - Spending review Topic 2]]+Dataset[[#This Row],[2025/26 From - Spending review Topic 3]]+Dataset[[#This Row],[2025/26 From - Spending review Topic 4]]+Dataset[[#This Row],[2025/26 From - Other reallocations]]","v":0},{"$f":"Dataset[[#This Row],[2023/24 To - Spending review Topic 1]]+Dataset[[#This Row],[2023/24 To - Spending review Topic 2]]+Dataset[[#This Row],[2023/24 To - Spending review Topic 3]]+Dataset[[#This Row],[2023/24 To - Spending review Topic 4]]+Dataset[[#This Row],[2023/24 To - Other reallocations]]","v":0},{"$f":"Dataset[[#This Row],[2024/25 To - Spending review Topic 1]]+Dataset[[#This Row],[2024/25 To - Spending review Topic 2]]+Dataset[[#This Row],[2024/25 To - Spending review Topic 3]]+Dataset[[#This Row],[2024/25 To - Spending review Topic 4]]+Dataset[[#This Row],[2024/25 To - Other reallocations]]","v":0},{"$f":"Dataset[[#This Row],[2025/26 To - Spending review Topic 1]]+Dataset[[#This Row],[2025/26 To - Spending review Topic 2]]+Dataset[[#This Row],[2025/26 To - Spending review Topic 3]]+Dataset[[#This Row],[2025/26 To - Spending review Topic 4]]+Dataset[[#This Row],[2025/26 To - Other reallocations]]","v":0},{"$f":"Dataset[[#This Row],[2023/24 Baseline]]+Dataset[[#This Row],[2023/24 From - Total]]+Dataset[[#This Row],[2023/24 To - Total]]","v":0},{"$f":"Dataset[[#This Row],[2024/25 Baseline]]+Dataset[[#This Row],[2024/25 From - Total]]+Dataset[[#This Row],[2024/25 To - Total]]","v":0},{"$f":"Dataset[[#This Row],[2025/26 Baseline]]+Dataset[[#This Row],[2025/26 From - Total]]+Dataset[[#This Row],[2025/26 To - Total]]","v":0}]
["NAT|Non-transfer item","2|Bursaries: Employees","2023_24","MTEF2023",2,16,1,1319,702,"02","16","01","001319","000702","02|16|01",1,1,2,7,7,"01|01|02|07|07","National","Parliament","Direct charge against the National Revenue Fund","Members' Remuneration","Non-transfer item","Current","Current payments","Goods and services","Bursaries: Employees","Bursaries: Employees","General public services","Executive and legislative organs","NAT",0,0,0,0,0,0,0,0,0,0,0,null,null,null,null,null,null,null,null,null,null,null,null,null,null,null,null,null,null,null,null,null,null,null,null,null,null,null,null,null,null,{"$f":"Dataset[[#This Row],[2023/24 From - Spending review Topic 1]]+Dataset[[#This Row],[2023/24 From - Spending review Topic 2]]+Dataset[[#This Row],[2023/24 From - Spending review Topic 3]]+Dataset[[#This Row],[2023/24 From - Spending review Topic 4]]+Dataset[[#This Row],[2023/24 From - Other reallocations]]","v":0},{"$f":"Dataset[[#This Row],[2024/25 From - Spending review Topic 1]]+Dataset[[#This Row],[2024/25 From - Spending review Topic 2]]+Dataset[[#This Row],[2024/25 From - Spending review Topic 3]]+Dataset[[#This Row],[2024/25 From - Spending review Topic 4]]+Dataset[[#This Row],[2024/25 From - Other reallocations]]","v":0},{"$f":"Dataset[[#This Row],[2025/26 From - Spending review Topic 1]]+Dataset[[#This Row],[2025/26 From - Spending review Topic 2]]+Dataset[[#This Row],[2025/26 From - Spending review Topic 3]]+Dataset[[#This Row],[2025/26 From - Spending review Topic 4]]+Dataset[[#This Row],[2025/26 From - Other reallocations]]","v":0},{"$f":"Dataset[[#This Row],[2023/24 To - Spending review Topic 1]]+Dataset[[#This Row],[2023/24 To - Spending review Topic 2]]+Dataset[[#This Row],[2023/24 To - Spending review Topic 3]]+Dataset[[#This Row],[2023/24 To - Spending review Topic 4]]+Dataset[[#This Row],[2023/24 To - Other reallocations]]","v":0},{"$f":"Dataset[[#This Row],[2024/25 To - Spending review Topic 1]]+Dataset[[#This Row],[2024/25 To - Spending review Topic 2]]+Dataset[[#This Row],[2024/25 To - Spending review Topic 3]]+Dataset[[#This Row],[2024/25 To - Spending review Topic 4]]+Dataset[[#This Row],[2024/25 To - Other reallocations]]","v":0},{"$f":"Dataset[[#This Row],[2025/26 To - Spending review Topic 1]]+Dataset[[#This Row],[2025/26 To - Spending review Topic 2]]+Dataset[[#This Row],[2025/26 To - Spending review Topic 3]]+Dataset[[#This Row],[2025/26 To - Spending review Topic 4]]+Dataset[[#This Row],[2025/26 To - Other reallocations]]","v":0},{"$f":"Dataset[[#This Row],[2023/24 Baseline]]+Dataset[[#This Row],[2023/24 From - Total]]+Dataset[[#This Row],[2023/24 To - Total]]","v":0},{"$f":"Dataset[[#This Row],[2024/25 Baseline]]+Dataset[[#This Row],[2024/25 From - Total]]+Dataset[[#This Row],[2024/25 To - Total]]","v":0},{"$f":"Dataset[[#This Row],[2025/26 Baseline]]+Dataset[[#This Row],[2025/26 From - Total]]+Dataset[[#This Row],[2025/26 To - Total]]","v":0}]
["NAT|Non-transfer item","2|Catering: Departmental activities","2023_24","MTEF2023",2,16,1,1320,703,"02","16","01","001320","000703","02|16|01",1,1,2,8,8,"01|01|02|08|08","National","Parliament","Direct charge against the National Revenue Fund","Members' Remuneration","Non-transfer item","Current","Current payments","Goods and services","Catering: Departmental activities","Catering: Departmental activities","General public services","Executive and legislative organs","NAT",0,0,0,0,0,0,0,0,0,0,0,null,null,null,null,null,null,null,null,null,null,null,null,null,null,null,null,null,null,null,null,null,null,null,null,null,null,null,null,null,null,{"$f":"Dataset[[#This Row],[2023/24 From - Spending review Topic 1]]+Dataset[[#This Row],[2023/24 From - Spending review Topic 2]]+Dataset[[#This Row],[2023/24 From - Spending review Topic 3]]+Dataset[[#This Row],[2023/24 From - Spending review Topic 4]]+Dataset[[#This Row],[2023/24 From - Other reallocations]]","v":0},{"$f":"Dataset[[#This Row],[2024/25 From - Spending review Topic 1]]+Dataset[[#This Row],[2024/25 From - Spending review Topic 2]]+Dataset[[#This Row],[2024/25 From - Spending review Topic 3]]+Dataset[[#This Row],[2024/25 From - Spending review Topic 4]]+Dataset[[#This Row],[2024/25 From - Other reallocations]]","v":0},{"$f":"Dataset[[#This Row],[2025/26 From - Spending review Topic 1]]+Dataset[[#This Row],[2025/26 From - Spending review Topic 2]]+Dataset[[#This Row],[2025/26 From - Spending review Topic 3]]+Dataset[[#This Row],[2025/26 From - Spending review Topic 4]]+Dataset[[#This Row],[2025/26 From - Other reallocations]]","v":0},{"$f":"Dataset[[#This Row],[2023/24 To - Spending review Topic 1]]+Dataset[[#This Row],[2023/24 To - Spending review Topic 2]]+Dataset[[#This Row],[2023/24 To - Spending review Topic 3]]+Dataset[[#This Row],[2023/24 To - Spending review Topic 4]]+Dataset[[#This Row],[2023/24 To - Other reallocations]]","v":0},{"$f":"Dataset[[#This Row],[2024/25 To - Spending review Topic 1]]+Dataset[[#This Row],[2024/25 To - Spending review Topic 2]]+Dataset[[#This Row],[2024/25 To - Spending review Topic 3]]+Dataset[[#This Row],[2024/25 To - Spending review Topic 4]]+Dataset[[#This Row],[2024/25 To - Other reallocations]]","v":0},{"$f":"Dataset[[#This Row],[2025/26 To - Spending review Topic 1]]+Dataset[[#This Row],[2025/26 To - Spending review Topic 2]]+Dataset[[#This Row],[2025/26 To - Spending review Topic 3]]+Dataset[[#This Row],[2025/26 To - Spending review Topic 4]]+Dataset[[#This Row],[2025/26 To - Other reallocations]]","v":0},{"$f":"Dataset[[#This Row],[2023/24 Baseline]]+Dataset[[#This Row],[2023/24 From - Total]]+Dataset[[#This Row],[2023/24 To - Total]]","v":0},{"$f":"Dataset[[#This Row],[2024/25 Baseline]]+Dataset[[#This Row],[2024/25 From - Total]]+Dataset[[#This Row],[2024/25 To - Total]]","v":0},{"$f":"Dataset[[#This Row],[2025/26 Baseline]]+Dataset[[#This Row],[2025/26 From - Total]]+Dataset[[#This Row],[2025/26 To - Total]]","v":0}]
["NAT|Non-transfer item","2|Communication (G&S)","2023_24","MTEF2023",2,16,1,1321,704,"02","16","01","001321","000704","02|16|01",1,1,2,9,9,"01|01|02|09|09","National","Parliament","Direct charge against the National Revenue Fund","Members' Remuneration","Non-transfer item","Current","Current payments","Goods and services","Communication (G&S)","Communication (G&S)","General public services","Executive and legislative organs","NAT",0,0,0,0,0,0,0,0,0,0,0,null,null,null,null,null,null,null,null,null,null,null,null,null,null,null,null,null,null,null,null,null,null,null,null,null,null,null,null,null,null,{"$f":"Dataset[[#This Row],[2023/24 From - Spending review Topic 1]]+Dataset[[#This Row],[2023/24 From - Spending review Topic 2]]+Dataset[[#This Row],[2023/24 From - Spending review Topic 3]]+Dataset[[#This Row],[2023/24 From - Spending review Topic 4]]+Dataset[[#This Row],[2023/24 From - Other reallocations]]","v":0},{"$f":"Dataset[[#This Row],[2024/25 From - Spending review Topic 1]]+Dataset[[#This Row],[2024/25 From - Spending review Topic 2]]+Dataset[[#This Row],[2024/25 From - Spending review Topic 3]]+Dataset[[#This Row],[2024/25 From - Spending review Topic 4]]+Dataset[[#This Row],[2024/25 From - Other reallocations]]","v":0},{"$f":"Dataset[[#This Row],[2025/26 From - Spending review Topic 1]]+Dataset[[#This Row],[2025/26 From - Spending review Topic 2]]+Dataset[[#This Row],[2025/26 From - Spending review Topic 3]]+Dataset[[#This Row],[2025/26 From - Spending review Topic 4]]+Dataset[[#This Row],[2025/26 From - Other reallocations]]","v":0},{"$f":"Dataset[[#This Row],[2023/24 To - Spending review Topic 1]]+Dataset[[#This Row],[2023/24 To - Spending review Topic 2]]+Dataset[[#This Row],[2023/24 To - Spending review Topic 3]]+Dataset[[#This Row],[2023/24 To - Spending review Topic 4]]+Dataset[[#This Row],[2023/24 To - Other reallocations]]","v":0},{"$f":"Dataset[[#This Row],[2024/25 To - Spending review Topic 1]]+Dataset[[#This Row],[2024/25 To - Spending review Topic 2]]+Dataset[[#This Row],[2024/25 To - Spending review Topic 3]]+Dataset[[#This Row],[2024/25 To - Spending review Topic 4]]+Dataset[[#This Row],[2024/25 To - Other reallocations]]","v":0},{"$f":"Dataset[[#This Row],[2025/26 To - Spending review Topic 1]]+Dataset[[#This Row],[2025/26 To - Spending review Topic 2]]+Dataset[[#This Row],[2025/26 To - Spending review Topic 3]]+Dataset[[#This Row],[2025/26 To - Spending review Topic 4]]+Dataset[[#This Row],[2025/26 To - Other reallocations]]","v":0},{"$f":"Dataset[[#This Row],[2023/24 Baseline]]+Dataset[[#This Row],[2023/24 From - Total]]+Dataset[[#This Row],[2023/24 To - Total]]","v":0},{"$f":"Dataset[[#This Row],[2024/25 Baseline]]+Dataset[[#This Row],[2024/25 From - Total]]+Dataset[[#This Row],[2024/25 To - Total]]","v":0},{"$f":"Dataset[[#This Row],[2025/26 Baseline]]+Dataset[[#This Row],[2025/26 From - Total]]+Dataset[[#This Row],[2025/26 To - Total]]","v":0}]
["NAT|Non-transfer item","2|Computer services","2023_24","MTEF2023",2,16,1,1322,705,"02","16","01","001322","000705","02|16|01",1,1,2,10,10,"01|01|02|10|10","National","Parliament","Direct charge against the National Revenue Fund","Members' Remuneration","Non-transfer item","Current","Current payments","Goods and services","Computer services","Computer services","General public services","Executive and legislative organs","NAT",0,0,0,0,0,0,0,0,0,0,0,null,null,null,null,null,null,null,null,null,null,null,null,null,null,null,null,null,null,null,null,null,null,null,null,null,null,null,null,null,null,{"$f":"Dataset[[#This Row],[2023/24 From - Spending review Topic 1]]+Dataset[[#This Row],[2023/24 From - Spending review Topic 2]]+Dataset[[#This Row],[2023/24 From - Spending review Topic 3]]+Dataset[[#This Row],[2023/24 From - Spending review Topic 4]]+Dataset[[#This Row],[2023/24 From - Other reallocations]]","v":0},{"$f":"Dataset[[#This Row],[2024/25 From - Spending review Topic 1]]+Dataset[[#This Row],[2024/25 From - Spending review Topic 2]]+Dataset[[#This Row],[2024/25 From - Spending review Topic 3]]+Dataset[[#This Row],[2024/25 From - Spending review Topic 4]]+Dataset[[#This Row],[2024/25 From - Other reallocations]]","v":0},{"$f":"Dataset[[#This Row],[2025/26 From - Spending review Topic 1]]+Dataset[[#This Row],[2025/26 From - Spending review Topic 2]]+Dataset[[#This Row],[2025/26 From - Spending review Topic 3]]+Dataset[[#This Row],[2025/26 From - Spending review Topic 4]]+Dataset[[#This Row],[2025/26 From - Other reallocations]]","v":0},{"$f":"Dataset[[#This Row],[2023/24 To - Spending review Topic 1]]+Dataset[[#This Row],[2023/24 To - Spending review Topic 2]]+Dataset[[#This Row],[2023/24 To - Spending review Topic 3]]+Dataset[[#This Row],[2023/24 To - Spending review Topic 4]]+Dataset[[#This Row],[2023/24 To - Other reallocations]]","v":0},{"$f":"Dataset[[#This Row],[2024/25 To - Spending review Topic 1]]+Dataset[[#This Row],[2024/25 To - Spending review Topic 2]]+Dataset[[#This Row],[2024/25 To - Spending review Topic 3]]+Dataset[[#This Row],[2024/25 To - Spending review Topic 4]]+Dataset[[#This Row],[2024/25 To - Other reallocations]]","v":0},{"$f":"Dataset[[#This Row],[2025/26 To - Spending review Topic 1]]+Dataset[[#This Row],[2025/26 To - Spending review Topic 2]]+Dataset[[#This Row],[2025/26 To - Spending review Topic 3]]+Dataset[[#This Row],[2025/26 To - Spending review Topic 4]]+Dataset[[#This Row],[2025/26 To - Other reallocations]]","v":0},{"$f":"Dataset[[#This Row],[2023/24 Baseline]]+Dataset[[#This Row],[2023/24 From - Total]]+Dataset[[#This Row],[2023/24 To - Total]]","v":0},{"$f":"Dataset[[#This Row],[2024/25 Baseline]]+Dataset[[#This Row],[2024/25 From - Total]]+Dataset[[#This Row],[2024/25 To - Total]]","v":0},{"$f":"Dataset[[#This Row],[2025/26 Baseline]]+Dataset[[#This Row],[2025/26 From - Total]]+Dataset[[#This Row],[2025/26 To - Total]]","v":0}]
["NAT|Non-transfer item","2|Consultants: Business and advisory services","2023_24","MTEF2023",2,16,1,1323,706,"02","16","01","001323","000706","02|16|01",1,1,2,11,11,"01|01|02|11|11","National","Parliament","Direct charge against the National Revenue Fund","Members' Remuneration","Non-transfer item","Current","Current payments","Goods and services","Consultants: Business and advisory services","Consultants: Business and advisory services","General public services","Executive and legislative organs","NAT",0,0,0,0,0,0,0,0,0,0,0,null,null,null,null,null,null,null,null,null,null,null,null,null,null,null,null,null,null,null,null,null,null,null,null,null,null,null,null,null,null,{"$f":"Dataset[[#This Row],[2023/24 From - Spending review Topic 1]]+Dataset[[#This Row],[2023/24 From - Spending review Topic 2]]+Dataset[[#This Row],[2023/24 From - Spending review Topic 3]]+Dataset[[#This Row],[2023/24 From - Spending review Topic 4]]+Dataset[[#This Row],[2023/24 From - Other reallocations]]","v":0},{"$f":"Dataset[[#This Row],[2024/25 From - Spending review Topic 1]]+Dataset[[#This Row],[2024/25 From - Spending review Topic 2]]+Dataset[[#This Row],[2024/25 From - Spending review Topic 3]]+Dataset[[#This Row],[2024/25 From - Spending review Topic 4]]+Dataset[[#This Row],[2024/25 From - Other reallocations]]","v":0},{"$f":"Dataset[[#This Row],[2025/26 From - Spending review Topic 1]]+Dataset[[#This Row],[2025/26 From - Spending review Topic 2]]+Dataset[[#This Row],[2025/26 From - Spending review Topic 3]]+Dataset[[#This Row],[2025/26 From - Spending review Topic 4]]+Dataset[[#This Row],[2025/26 From - Other reallocations]]","v":0},{"$f":"Dataset[[#This Row],[2023/24 To - Spending review Topic 1]]+Dataset[[#This Row],[2023/24 To - Spending review Topic 2]]+Dataset[[#This Row],[2023/24 To - Spending review Topic 3]]+Dataset[[#This Row],[2023/24 To - Spending review Topic 4]]+Dataset[[#This Row],[2023/24 To - Other reallocations]]","v":0},{"$f":"Dataset[[#This Row],[2024/25 To - Spending review Topic 1]]+Dataset[[#This Row],[2024/25 To - Spending review Topic 2]]+Dataset[[#This Row],[2024/25 To - Spending review Topic 3]]+Dataset[[#This Row],[2024/25 To - Spending review Topic 4]]+Dataset[[#This Row],[2024/25 To - Other reallocations]]","v":0},{"$f":"Dataset[[#This Row],[2025/26 To - Spending review Topic 1]]+Dataset[[#This Row],[2025/26 To - Spending review Topic 2]]+Dataset[[#This Row],[2025/26 To - Spending review Topic 3]]+Dataset[[#This Row],[2025/26 To - Spending review Topic 4]]+Dataset[[#This Row],[2025/26 To - Other reallocations]]","v":0},{"$f":"Dataset[[#This Row],[2023/24 Baseline]]+Dataset[[#This Row],[2023/24 From - Total]]+Dataset[[#This Row],[2023/24 To - Total]]","v":0},{"$f":"Dataset[[#This Row],[2024/25 Baseline]]+Dataset[[#This Row],[2024/25 From - Total]]+Dataset[[#This Row],[2024/25 To - Total]]","v":0},{"$f":"Dataset[[#This Row],[2025/26 Baseline]]+Dataset[[#This Row],[2025/26 From - Total]]+Dataset[[#This Row],[2025/26 To - Total]]","v":0}]
["NAT|Non-transfer item","2|Infrastructure and planning services","2023_24","MTEF2023",2,16,1,1324,707,"02","16","01","001324","000707","02|16|01",1,1,2,12,12,"01|01|02|12|12","National","Parliament","Direct charge against the National Revenue Fund","Members' Remuneration","Non-transfer item","Current","Current payments","Goods and services","Infrastructure and planning services","Infrastructure and planning services","General public services","Executive and legislative organs","NAT",0,0,0,0,0,0,0,0,0,0,0,null,null,null,null,null,null,null,null,null,null,null,null,null,null,null,null,null,null,null,null,null,null,null,null,null,null,null,null,null,null,{"$f":"Dataset[[#This Row],[2023/24 From - Spending review Topic 1]]+Dataset[[#This Row],[2023/24 From - Spending review Topic 2]]+Dataset[[#This Row],[2023/24 From - Spending review Topic 3]]+Dataset[[#This Row],[2023/24 From - Spending review Topic 4]]+Dataset[[#This Row],[2023/24 From - Other reallocations]]","v":0},{"$f":"Dataset[[#This Row],[2024/25 From - Spending review Topic 1]]+Dataset[[#This Row],[2024/25 From - Spending review Topic 2]]+Dataset[[#This Row],[2024/25 From - Spending review Topic 3]]+Dataset[[#This Row],[2024/25 From - Spending review Topic 4]]+Dataset[[#This Row],[2024/25 From - Other reallocations]]","v":0},{"$f":"Dataset[[#This Row],[2025/26 From - Spending review Topic 1]]+Dataset[[#This Row],[2025/26 From - Spending review Topic 2]]+Dataset[[#This Row],[2025/26 From - Spending review Topic 3]]+Dataset[[#This Row],[2025/26 From - Spending review Topic 4]]+Dataset[[#This Row],[2025/26 From - Other reallocations]]","v":0},{"$f":"Dataset[[#This Row],[2023/24 To - Spending review Topic 1]]+Dataset[[#This Row],[2023/24 To - Spending review Topic 2]]+Dataset[[#This Row],[2023/24 To - Spending review Topic 3]]+Dataset[[#This Row],[2023/24 To - Spending review Topic 4]]+Dataset[[#This Row],[2023/24 To - Other reallocations]]","v":0},{"$f":"Dataset[[#This Row],[2024/25 To - Spending review Topic 1]]+Dataset[[#This Row],[2024/25 To - Spending review Topic 2]]+Dataset[[#This Row],[2024/25 To - Spending review Topic 3]]+Dataset[[#This Row],[2024/25 To - Spending review Topic 4]]+Dataset[[#This Row],[2024/25 To - Other reallocations]]","v":0},{"$f":"Dataset[[#This Row],[2025/26 To - Spending review Topic 1]]+Dataset[[#This Row],[2025/26 To - Spending review Topic 2]]+Dataset[[#This Row],[2025/26 To - Spending review Topic 3]]+Dataset[[#This Row],[2025/26 To - Spending review Topic 4]]+Dataset[[#This Row],[2025/26 To - Other reallocations]]","v":0},{"$f":"Dataset[[#This Row],[2023/24 Baseline]]+Dataset[[#This Row],[2023/24 From - Total]]+Dataset[[#This Row],[2023/24 To - Total]]","v":0},{"$f":"Dataset[[#This Row],[2024/25 Baseline]]+Dataset[[#This Row],[2024/25 From - Total]]+Dataset[[#This Row],[2024/25 To - Total]]","v":0},{"$f":"Dataset[[#This Row],[2025/26 Baseline]]+Dataset[[#This Row],[2025/26 From - Total]]+Dataset[[#This Row],[2025/26 To - Total]]","v":0}]
["NAT|Non-transfer item","2|Laboratory services","2023_24","MTEF2023",2,16,1,1325,708,"02","16","01","001325","000708","02|16|01",1,1,2,13,13,"01|01|02|13|13","National","Parliament","Direct charge against the National Revenue Fund","Members' Remuneration","Non-transfer item","Current","Current payments","Goods and services","Laboratory services","Laboratory services","General public services","Executive and legislative organs","NAT",0,0,0,0,0,0,0,0,0,0,0,null,null,null,null,null,null,null,null,null,null,null,null,null,null,null,null,null,null,null,null,null,null,null,null,null,null,null,null,null,null,{"$f":"Dataset[[#This Row],[2023/24 From - Spending review Topic 1]]+Dataset[[#This Row],[2023/24 From - Spending review Topic 2]]+Dataset[[#This Row],[2023/24 From - Spending review Topic 3]]+Dataset[[#This Row],[2023/24 From - Spending review Topic 4]]+Dataset[[#This Row],[2023/24 From - Other reallocations]]","v":0},{"$f":"Dataset[[#This Row],[2024/25 From - Spending review Topic 1]]+Dataset[[#This Row],[2024/25 From - Spending review Topic 2]]+Dataset[[#This Row],[2024/25 From - Spending review Topic 3]]+Dataset[[#This Row],[2024/25 From - Spending review Topic 4]]+Dataset[[#This Row],[2024/25 From - Other reallocations]]","v":0},{"$f":"Dataset[[#This Row],[2025/26 From - Spending review Topic 1]]+Dataset[[#This Row],[2025/26 From - Spending review Topic 2]]+Dataset[[#This Row],[2025/26 From - Spending review Topic 3]]+Dataset[[#This Row],[2025/26 From - Spending review Topic 4]]+Dataset[[#This Row],[2025/26 From - Other reallocations]]","v":0},{"$f":"Dataset[[#This Row],[2023/24 To - Spending review Topic 1]]+Dataset[[#This Row],[2023/24 To - Spending review Topic 2]]+Dataset[[#This Row],[2023/24 To - Spending review Topic 3]]+Dataset[[#This Row],[2023/24 To - Spending review Topic 4]]+Dataset[[#This Row],[2023/24 To - Other reallocations]]","v":0},{"$f":"Dataset[[#This Row],[2024/25 To - Spending review Topic 1]]+Dataset[[#This Row],[2024/25 To - Spending review Topic 2]]+Dataset[[#This Row],[2024/25 To - Spending review Topic 3]]+Dataset[[#This Row],[2024/25 To - Spending review Topic 4]]+Dataset[[#This Row],[2024/25 To - Other reallocations]]","v":0},{"$f":"Dataset[[#This Row],[2025/26 To - Spending review Topic 1]]+Dataset[[#This Row],[2025/26 To - Spending review Topic 2]]+Dataset[[#This Row],[2025/26 To - Spending review Topic 3]]+Dataset[[#This Row],[2025/26 To - Spending review Topic 4]]+Dataset[[#This Row],[2025/26 To - Other reallocations]]","v":0},{"$f":"Dataset[[#This Row],[2023/24 Baseline]]+Dataset[[#This Row],[2023/24 From - Total]]+Dataset[[#This Row],[2023/24 To - Total]]","v":0},{"$f":"Dataset[[#This Row],[2024/25 Baseline]]+Dataset[[#This Row],[2024/25 From - Total]]+Dataset[[#This Row],[2024/25 To - Total]]","v":0},{"$f":"Dataset[[#This Row],[2025/26 Baseline]]+Dataset[[#This Row],[2025/26 From - Total]]+Dataset[[#This Row],[2025/26 To - Total]]","v":0}]
["NAT|Non-transfer item","2|Legal services (G&S)","2023_24","MTEF2023",2,16,1,1326,709,"02","16","01","001326","000709","02|16|01",1,1,2,14,14,"01|01|02|14|14","National","Parliament","Direct charge against the National Revenue Fund","Members' Remuneration","Non-transfer item","Current","Current payments","Goods and services","Legal services (G&S)","Legal services (G&S)","General public services","Executive and legislative organs","NAT",0,0,0,0,0,0,0,0,0,0,0,null,null,null,null,null,null,null,null,null,null,null,null,null,null,null,null,null,null,null,null,null,null,null,null,null,null,null,null,null,null,{"$f":"Dataset[[#This Row],[2023/24 From - Spending review Topic 1]]+Dataset[[#This Row],[2023/24 From - Spending review Topic 2]]+Dataset[[#This Row],[2023/24 From - Spending review Topic 3]]+Dataset[[#This Row],[2023/24 From - Spending review Topic 4]]+Dataset[[#This Row],[2023/24 From - Other reallocations]]","v":0},{"$f":"Dataset[[#This Row],[2024/25 From - Spending review Topic 1]]+Dataset[[#This Row],[2024/25 From - Spending review Topic 2]]+Dataset[[#This Row],[2024/25 From - Spending review Topic 3]]+Dataset[[#This Row],[2024/25 From - Spending review Topic 4]]+Dataset[[#This Row],[2024/25 From - Other reallocations]]","v":0},{"$f":"Dataset[[#This Row],[2025/26 From - Spending review Topic 1]]+Dataset[[#This Row],[2025/26 From - Spending review Topic 2]]+Dataset[[#This Row],[2025/26 From - Spending review Topic 3]]+Dataset[[#This Row],[2025/26 From - Spending review Topic 4]]+Dataset[[#This Row],[2025/26 From - Other reallocations]]","v":0},{"$f":"Dataset[[#This Row],[2023/24 To - Spending review Topic 1]]+Dataset[[#This Row],[2023/24 To - Spending review Topic 2]]+Dataset[[#This Row],[2023/24 To - Spending review Topic 3]]+Dataset[[#This Row],[2023/24 To - Spending review Topic 4]]+Dataset[[#This Row],[2023/24 To - Other reallocations]]","v":0},{"$f":"Dataset[[#This Row],[2024/25 To - Spending review Topic 1]]+Dataset[[#This Row],[2024/25 To - Spending review Topic 2]]+Dataset[[#This Row],[2024/25 To - Spending review Topic 3]]+Dataset[[#This Row],[2024/25 To - Spending review Topic 4]]+Dataset[[#This Row],[2024/25 To - Other reallocations]]","v":0},{"$f":"Dataset[[#This Row],[2025/26 To - Spending review Topic 1]]+Dataset[[#This Row],[2025/26 To - Spending review Topic 2]]+Dataset[[#This Row],[2025/26 To - Spending review Topic 3]]+Dataset[[#This Row],[2025/26 To - Spending review Topic 4]]+Dataset[[#This Row],[2025/26 To - Other reallocations]]","v":0},{"$f":"Dataset[[#This Row],[2023/24 Baseline]]+Dataset[[#This Row],[2023/24 From - Total]]+Dataset[[#This Row],[2023/24 To - Total]]","v":0},{"$f":"Dataset[[#This Row],[2024/25 Baseline]]+Dataset[[#This Row],[2024/25 From - Total]]+Dataset[[#This Row],[2024/25 To - Total]]","v":0},{"$f":"Dataset[[#This Row],[2025/26 Baseline]]+Dataset[[#This Row],[2025/26 From - Total]]+Dataset[[#This Row],[2025/26 To - Total]]","v":0}]
["NAT|Non-transfer item","2|Science and technological services","2023_24","MTEF2023",2,16,1,1327,710,"02","16","01","001327","000710","02|16|01",1,1,2,15,15,"01|01|02|15|15","National","Parliament","Direct charge against the National Revenue Fund","Members' Remuneration","Non-transfer item","Current","Current payments","Goods and services","Science and technological services","Science and technological services","General public services","Executive and legislative organs","NAT",0,0,0,0,0,0,0,0,0,0,0,null,null,null,null,null,null,null,null,null,null,null,null,null,null,null,null,null,null,null,null,null,null,null,null,null,null,null,null,null,null,{"$f":"Dataset[[#This Row],[2023/24 From - Spending review Topic 1]]+Dataset[[#This Row],[2023/24 From - Spending review Topic 2]]+Dataset[[#This Row],[2023/24 From - Spending review Topic 3]]+Dataset[[#This Row],[2023/24 From - Spending review Topic 4]]+Dataset[[#This Row],[2023/24 From - Other reallocations]]","v":0},{"$f":"Dataset[[#This Row],[2024/25 From - Spending review Topic 1]]+Dataset[[#This Row],[2024/25 From - Spending review Topic 2]]+Dataset[[#This Row],[2024/25 From - Spending review Topic 3]]+Dataset[[#This Row],[2024/25 From - Spending review Topic 4]]+Dataset[[#This Row],[2024/25 From - Other reallocations]]","v":0},{"$f":"Dataset[[#This Row],[2025/26 From - Spending review Topic 1]]+Dataset[[#This Row],[2025/26 From - Spending review Topic 2]]+Dataset[[#This Row],[2025/26 From - Spending review Topic 3]]+Dataset[[#This Row],[2025/26 From - Spending review Topic 4]]+Dataset[[#This Row],[2025/26 From - Other reallocations]]","v":0},{"$f":"Dataset[[#This Row],[2023/24 To - Spending review Topic 1]]+Dataset[[#This Row],[2023/24 To - Spending review Topic 2]]+Dataset[[#This Row],[2023/24 To - Spending review Topic 3]]+Dataset[[#This Row],[2023/24 To - Spending review Topic 4]]+Dataset[[#This Row],[2023/24 To - Other reallocations]]","v":0},{"$f":"Dataset[[#This Row],[2024/25 To - Spending review Topic 1]]+Dataset[[#This Row],[2024/25 To - Spending review Topic 2]]+Dataset[[#This Row],[2024/25 To - Spending review Topic 3]]+Dataset[[#This Row],[2024/25 To - Spending review Topic 4]]+Dataset[[#This Row],[2024/25 To - Other reallocations]]","v":0},{"$f":"Dataset[[#This Row],[2025/26 To - Spending review Topic 1]]+Dataset[[#This Row],[2025/26 To - Spending review Topic 2]]+Dataset[[#This Row],[2025/26 To - Spending review Topic 3]]+Dataset[[#This Row],[2025/26 To - Spending review Topic 4]]+Dataset[[#This Row],[2025/26 To - Other reallocations]]","v":0},{"$f":"Dataset[[#This Row],[2023/24 Baseline]]+Dataset[[#This Row],[2023/24 From - Total]]+Dataset[[#This Row],[2023/24 To - Total]]","v":0},{"$f":"Dataset[[#This Row],[2024/25 Baseline]]+Dataset[[#This Row],[2024/25 From - Total]]+Dataset[[#This Row],[2024/25 To - Total]]","v":0},{"$f":"Dataset[[#This Row],[2025/26 Baseline]]+Dataset[[#This Row],[2025/26 From - Total]]+Dataset[[#This Row],[2025/26 To - Total]]","v":0}]
["NAT|Non-transfer item","2|Contractors","2023_24","MTEF2023",2,16,1,1328,711,"02","16","01","001328","000711","02|16|01",1,1,2,16,16,"01|01|02|16|16","National","Parliament","Direct charge against the National Revenue Fund","Members' Remuneration","Non-transfer item","Current","Current payments","Goods and services","Contractors","Contractors","General public services","Executive and legislative organs","NAT",0,0,0,0,0,0,0,0,0,0,0,null,null,null,null,null,null,null,null,null,null,null,null,null,null,null,null,null,null,null,null,null,null,null,null,null,null,null,null,null,null,{"$f":"Dataset[[#This Row],[2023/24 From - Spending review Topic 1]]+Dataset[[#This Row],[2023/24 From - Spending review Topic 2]]+Dataset[[#This Row],[2023/24 From - Spending review Topic 3]]+Dataset[[#This Row],[2023/24 From - Spending review Topic 4]]+Dataset[[#This Row],[2023/24 From - Other reallocations]]","v":0},{"$f":"Dataset[[#This Row],[2024/25 From - Spending review Topic 1]]+Dataset[[#This Row],[2024/25 From - Spending review Topic 2]]+Dataset[[#This Row],[2024/25 From - Spending review Topic 3]]+Dataset[[#This Row],[2024/25 From - Spending review Topic 4]]+Dataset[[#This Row],[2024/25 From - Other reallocations]]","v":0},{"$f":"Dataset[[#This Row],[2025/26 From - Spending review Topic 1]]+Dataset[[#This Row],[2025/26 From - Spending review Topic 2]]+Dataset[[#This Row],[2025/26 From - Spending review Topic 3]]+Dataset[[#This Row],[2025/26 From - Spending review Topic 4]]+Dataset[[#This Row],[2025/26 From - Other reallocations]]","v":0},{"$f":"Dataset[[#This Row],[2023/24 To - Spending review Topic 1]]+Dataset[[#This Row],[2023/24 To - Spending review Topic 2]]+Dataset[[#This Row],[2023/24 To - Spending review Topic 3]]+Dataset[[#This Row],[2023/24 To - Spending review Topic 4]]+Dataset[[#This Row],[2023/24 To - Other reallocations]]","v":0},{"$f":"Dataset[[#This Row],[2024/25 To - Spending review Topic 1]]+Dataset[[#This Row],[2024/25 To - Spending review Topic 2]]+Dataset[[#This Row],[2024/25 To - Spending review Topic 3]]+Dataset[[#This Row],[2024/25 To - Spending review Topic 4]]+Dataset[[#This Row],[2024/25 To - Other reallocations]]","v":0},{"$f":"Dataset[[#This Row],[2025/26 To - Spending review Topic 1]]+Dataset[[#This Row],[2025/26 To - Spending review Topic 2]]+Dataset[[#This Row],[2025/26 To - Spending review Topic 3]]+Dataset[[#This Row],[2025/26 To - Spending review Topic 4]]+Dataset[[#This Row],[2025/26 To - Other reallocations]]","v":0},{"$f":"Dataset[[#This Row],[2023/24 Baseline]]+Dataset[[#This Row],[2023/24 From - Total]]+Dataset[[#This Row],[2023/24 To - Total]]","v":0},{"$f":"Dataset[[#This Row],[2024/25 Baseline]]+Dataset[[#This Row],[2024/25 From - Total]]+Dataset[[#This Row],[2024/25 To - Total]]","v":0},{"$f":"Dataset[[#This Row],[2025/26 Baseline]]+Dataset[[#This Row],[2025/26 From - Total]]+Dataset[[#This Row],[2025/26 To - Total]]","v":0}]
["NAT|Non-transfer item","2|Agency and support/outsourced services","2023_24","MTEF2023",2,16,1,1329,712,"02","16","01","001329","000712","02|16|01",1,1,2,17,17,"01|01|02|17|17","National","Parliament","Direct charge against the National Revenue Fund","Members' Remuneration","Non-transfer item","Current","Current payments","Goods and services","Agency and support/outsourced services","Agency and support/outsourced services","General public services","Executive and legislative organs","NAT",0,0,0,0,0,0,0,0,0,0,0,null,null,null,null,null,null,null,null,null,null,null,null,null,null,null,null,null,null,null,null,null,null,null,null,null,null,null,null,null,null,{"$f":"Dataset[[#This Row],[2023/24 From - Spending review Topic 1]]+Dataset[[#This Row],[2023/24 From - Spending review Topic 2]]+Dataset[[#This Row],[2023/24 From - Spending review Topic 3]]+Dataset[[#This Row],[2023/24 From - Spending review Topic 4]]+Dataset[[#This Row],[2023/24 From - Other reallocations]]","v":0},{"$f":"Dataset[[#This Row],[2024/25 From - Spending review Topic 1]]+Dataset[[#This Row],[2024/25 From - Spending review Topic 2]]+Dataset[[#This Row],[2024/25 From - Spending review Topic 3]]+Dataset[[#This Row],[2024/25 From - Spending review Topic 4]]+Dataset[[#This Row],[2024/25 From - Other reallocations]]","v":0},{"$f":"Dataset[[#This Row],[2025/26 From - Spending review Topic 1]]+Dataset[[#This Row],[2025/26 From - Spending review Topic 2]]+Dataset[[#This Row],[2025/26 From - Spending review Topic 3]]+Dataset[[#This Row],[2025/26 From - Spending review Topic 4]]+Dataset[[#This Row],[2025/26 From - Other reallocations]]","v":0},{"$f":"Dataset[[#This Row],[2023/24 To - Spending review Topic 1]]+Dataset[[#This Row],[2023/24 To - Spending review Topic 2]]+Dataset[[#This Row],[2023/24 To - Spending review Topic 3]]+Dataset[[#This Row],[2023/24 To - Spending review Topic 4]]+Dataset[[#This Row],[2023/24 To - Other reallocations]]","v":0},{"$f":"Dataset[[#This Row],[2024/25 To - Spending review Topic 1]]+Dataset[[#This Row],[2024/25 To - Spending review Topic 2]]+Dataset[[#This Row],[2024/25 To - Spending review Topic 3]]+Dataset[[#This Row],[2024/25 To - Spending review Topic 4]]+Dataset[[#This Row],[2024/25 To - Other reallocations]]","v":0},{"$f":"Dataset[[#This Row],[2025/26 To - Spending review Topic 1]]+Dataset[[#This Row],[2025/26 To - Spending review Topic 2]]+Dataset[[#This Row],[2025/26 To - Spending review Topic 3]]+Dataset[[#This Row],[2025/26 To - Spending review Topic 4]]+Dataset[[#This Row],[2025/26 To - Other reallocations]]","v":0},{"$f":"Dataset[[#This Row],[2023/24 Baseline]]+Dataset[[#This Row],[2023/24 From - Total]]+Dataset[[#This Row],[2023/24 To - Total]]","v":0},{"$f":"Dataset[[#This Row],[2024/25 Baseline]]+Dataset[[#This Row],[2024/25 From - Total]]+Dataset[[#This Row],[2024/25 To - Total]]","v":0},{"$f":"Dataset[[#This Row],[2025/26 Baseline]]+Dataset[[#This Row],[2025/26 From - Total]]+Dataset[[#This Row],[2025/26 To - Total]]","v":0}]
["NAT|Non-transfer item","2|Entertainment","2023_24","MTEF2023",2,16,1,1330,713,"02","16","01","001330","000713","02|16|01",1,1,2,18,18,"01|01|02|18|18","National","Parliament","Direct charge against the National Revenue Fund","Members' Remuneration","Non-transfer item","Current","Current payments","Goods and services","Entertainment","Entertainment","General public services","Executive and legislative organs","NAT",0,0,0,0,0,0,0,0,0,0,0,null,null,null,null,null,null,null,null,null,null,null,null,null,null,null,null,null,null,null,null,null,null,null,null,null,null,null,null,null,null,{"$f":"Dataset[[#This Row],[2023/24 From - Spending review Topic 1]]+Dataset[[#This Row],[2023/24 From - Spending review Topic 2]]+Dataset[[#This Row],[2023/24 From - Spending review Topic 3]]+Dataset[[#This Row],[2023/24 From - Spending review Topic 4]]+Dataset[[#This Row],[2023/24 From - Other reallocations]]","v":0},{"$f":"Dataset[[#This Row],[2024/25 From - Spending review Topic 1]]+Dataset[[#This Row],[2024/25 From - Spending review Topic 2]]+Dataset[[#This Row],[2024/25 From - Spending review Topic 3]]+Dataset[[#This Row],[2024/25 From - Spending review Topic 4]]+Dataset[[#This Row],[2024/25 From - Other reallocations]]","v":0},{"$f":"Dataset[[#This Row],[2025/26 From - Spending review Topic 1]]+Dataset[[#This Row],[2025/26 From - Spending review Topic 2]]+Dataset[[#This Row],[2025/26 From - Spending review Topic 3]]+Dataset[[#This Row],[2025/26 From - Spending review Topic 4]]+Dataset[[#This Row],[2025/26 From - Other reallocations]]","v":0},{"$f":"Dataset[[#This Row],[2023/24 To - Spending review Topic 1]]+Dataset[[#This Row],[2023/24 To - Spending review Topic 2]]+Dataset[[#This Row],[2023/24 To - Spending review Topic 3]]+Dataset[[#This Row],[2023/24 To - Spending review Topic 4]]+Dataset[[#This Row],[2023/24 To - Other reallocations]]","v":0},{"$f":"Dataset[[#This Row],[2024/25 To - Spending review Topic 1]]+Dataset[[#This Row],[2024/25 To - Spending review Topic 2]]+Dataset[[#This Row],[2024/25 To - Spending review Topic 3]]+Dataset[[#This Row],[2024/25 To - Spending review Topic 4]]+Dataset[[#This Row],[2024/25 To - Other reallocations]]","v":0},{"$f":"Dataset[[#This Row],[2025/26 To - Spending review Topic 1]]+Dataset[[#This Row],[2025/26 To - Spending review Topic 2]]+Dataset[[#This Row],[2025/26 To - Spending review Topic 3]]+Dataset[[#This Row],[2025/26 To - Spending review Topic 4]]+Dataset[[#This Row],[2025/26 To - Other reallocations]]","v":0},{"$f":"Dataset[[#This Row],[2023/24 Baseline]]+Dataset[[#This Row],[2023/24 From - Total]]+Dataset[[#This Row],[2023/24 To - Total]]","v":0},{"$f":"Dataset[[#This Row],[2024/25 Baseline]]+Dataset[[#This Row],[2024/25 From - Total]]+Dataset[[#This Row],[2024/25 To - Total]]","v":0},{"$f":"Dataset[[#This Row],[2025/26 Baseline]]+Dataset[[#This Row],[2025/26 From - Total]]+Dataset[[#This Row],[2025/26 To - Total]]","v":0}]
["NAT|Non-transfer item","2|Fleet services (including government motor transport)","2023_24","MTEF2023",2,16,1,1331,714,"02","16","01","001331","000714","02|16|01",1,1,2,19,19,"01|01|02|19|19","National","Parliament","Direct charge against the National Revenue Fund","Members' Remuneration","Non-transfer item","Current","Current payments","Goods and services","Fleet services (including government motor transport)","Fleet services (including government motor transport)","General public services","Executive and legislative organs","NAT",0,0,0,0,0,0,0,0,0,0,0,null,null,null,null,null,null,null,null,null,null,null,null,null,null,null,null,null,null,null,null,null,null,null,null,null,null,null,null,null,null,{"$f":"Dataset[[#This Row],[2023/24 From - Spending review Topic 1]]+Dataset[[#This Row],[2023/24 From - Spending review Topic 2]]+Dataset[[#This Row],[2023/24 From - Spending review Topic 3]]+Dataset[[#This Row],[2023/24 From - Spending review Topic 4]]+Dataset[[#This Row],[2023/24 From - Other reallocations]]","v":0},{"$f":"Dataset[[#This Row],[2024/25 From - Spending review Topic 1]]+Dataset[[#This Row],[2024/25 From - Spending review Topic 2]]+Dataset[[#This Row],[2024/25 From - Spending review Topic 3]]+Dataset[[#This Row],[2024/25 From - Spending review Topic 4]]+Dataset[[#This Row],[2024/25 From - Other reallocations]]","v":0},{"$f":"Dataset[[#This Row],[2025/26 From - Spending review Topic 1]]+Dataset[[#This Row],[2025/26 From - Spending review Topic 2]]+Dataset[[#This Row],[2025/26 From - Spending review Topic 3]]+Dataset[[#This Row],[2025/26 From - Spending review Topic 4]]+Dataset[[#This Row],[2025/26 From - Other reallocations]]","v":0},{"$f":"Dataset[[#This Row],[2023/24 To - Spending review Topic 1]]+Dataset[[#This Row],[2023/24 To - Spending review Topic 2]]+Dataset[[#This Row],[2023/24 To - Spending review Topic 3]]+Dataset[[#This Row],[2023/24 To - Spending review Topic 4]]+Dataset[[#This Row],[2023/24 To - Other reallocations]]","v":0},{"$f":"Dataset[[#This Row],[2024/25 To - Spending review Topic 1]]+Dataset[[#This Row],[2024/25 To - Spending review Topic 2]]+Dataset[[#This Row],[2024/25 To - Spending review Topic 3]]+Dataset[[#This Row],[2024/25 To - Spending review Topic 4]]+Dataset[[#This Row],[2024/25 To - Other reallocations]]","v":0},{"$f":"Dataset[[#This Row],[2025/26 To - Spending review Topic 1]]+Dataset[[#This Row],[2025/26 To - Spending review Topic 2]]+Dataset[[#This Row],[2025/26 To - Spending review Topic 3]]+Dataset[[#This Row],[2025/26 To - Spending review Topic 4]]+Dataset[[#This Row],[2025/26 To - Other reallocations]]","v":0},{"$f":"Dataset[[#This Row],[2023/24 Baseline]]+Dataset[[#This Row],[2023/24 From - Total]]+Dataset[[#This Row],[2023/24 To - Total]]","v":0},{"$f":"Dataset[[#This Row],[2024/25 Baseline]]+Dataset[[#This Row],[2024/25 From - Total]]+Dataset[[#This Row],[2024/25 To - Total]]","v":0},{"$f":"Dataset[[#This Row],[2025/26 Baseline]]+Dataset[[#This Row],[2025/26 From - Total]]+Dataset[[#This Row],[2025/26 To - Total]]","v":0}]
["NAT|Non-transfer item","2|Housing","2023_24","MTEF2023",2,16,1,1332,715,"02","16","01","001332","000715","02|16|01",1,1,2,20,20,"01|01|02|20|20","National","Parliament","Direct charge against the National Revenue Fund","Members' Remuneration","Non-transfer item","Current","Current payments","Goods and services","Housing","Housing","General public services","Executive and legislative organs","NAT",0,0,0,0,0,0,0,0,0,0,0,null,null,null,null,null,null,null,null,null,null,null,null,null,null,null,null,null,null,null,null,null,null,null,null,null,null,null,null,null,null,{"$f":"Dataset[[#This Row],[2023/24 From - Spending review Topic 1]]+Dataset[[#This Row],[2023/24 From - Spending review Topic 2]]+Dataset[[#This Row],[2023/24 From - Spending review Topic 3]]+Dataset[[#This Row],[2023/24 From - Spending review Topic 4]]+Dataset[[#This Row],[2023/24 From - Other reallocations]]","v":0},{"$f":"Dataset[[#This Row],[2024/25 From - Spending review Topic 1]]+Dataset[[#This Row],[2024/25 From - Spending review Topic 2]]+Dataset[[#This Row],[2024/25 From - Spending review Topic 3]]+Dataset[[#This Row],[2024/25 From - Spending review Topic 4]]+Dataset[[#This Row],[2024/25 From - Other reallocations]]","v":0},{"$f":"Dataset[[#This Row],[2025/26 From - Spending review Topic 1]]+Dataset[[#This Row],[2025/26 From - Spending review Topic 2]]+Dataset[[#This Row],[2025/26 From - Spending review Topic 3]]+Dataset[[#This Row],[2025/26 From - Spending review Topic 4]]+Dataset[[#This Row],[2025/26 From - Other reallocations]]","v":0},{"$f":"Dataset[[#This Row],[2023/24 To - Spending review Topic 1]]+Dataset[[#This Row],[2023/24 To - Spending review Topic 2]]+Dataset[[#This Row],[2023/24 To - Spending review Topic 3]]+Dataset[[#This Row],[2023/24 To - Spending review Topic 4]]+Dataset[[#This Row],[2023/24 To - Other reallocations]]","v":0},{"$f":"Dataset[[#This Row],[2024/25 To - Spending review Topic 1]]+Dataset[[#This Row],[2024/25 To - Spending review Topic 2]]+Dataset[[#This Row],[2024/25 To - Spending review Topic 3]]+Dataset[[#This Row],[2024/25 To - Spending review Topic 4]]+Dataset[[#This Row],[2024/25 To - Other reallocations]]","v":0},{"$f":"Dataset[[#This Row],[2025/26 To - Spending review Topic 1]]+Dataset[[#This Row],[2025/26 To - Spending review Topic 2]]+Dataset[[#This Row],[2025/26 To - Spending review Topic 3]]+Dataset[[#This Row],[2025/26 To - Spending review Topic 4]]+Dataset[[#This Row],[2025/26 To - Other reallocations]]","v":0},{"$f":"Dataset[[#This Row],[2023/24 Baseline]]+Dataset[[#This Row],[2023/24 From - Total]]+Dataset[[#This Row],[2023/24 To - Total]]","v":0},{"$f":"Dataset[[#This Row],[2024/25 Baseline]]+Dataset[[#This Row],[2024/25 From - Total]]+Dataset[[#This Row],[2024/25 To - Total]]","v":0},{"$f":"Dataset[[#This Row],[2025/26 Baseline]]+Dataset[[#This Row],[2025/26 From - Total]]+Dataset[[#This Row],[2025/26 To - Total]]","v":0}]
["NAT|Non-transfer item","2|Inventory: Clothing material and accessories","2023_24","MTEF2023",2,16,1,1333,716,"02","16","01","001333","000716","02|16|01",1,1,2,21,21,"01|01|02|21|21","National","Parliament","Direct charge against the National Revenue Fund","Members' Remuneration","Non-transfer item","Current","Current payments","Goods and services","Inventory: Clothing material and accessories","Inventory: Clothing material and accessories","General public services","Executive and legislative organs","NAT",0,0,0,0,0,0,0,0,0,0,0,null,null,null,null,null,null,null,null,null,null,null,null,null,null,null,null,null,null,null,null,null,null,null,null,null,null,null,null,null,null,{"$f":"Dataset[[#This Row],[2023/24 From - Spending review Topic 1]]+Dataset[[#This Row],[2023/24 From - Spending review Topic 2]]+Dataset[[#This Row],[2023/24 From - Spending review Topic 3]]+Dataset[[#This Row],[2023/24 From - Spending review Topic 4]]+Dataset[[#This Row],[2023/24 From - Other reallocations]]","v":0},{"$f":"Dataset[[#This Row],[2024/25 From - Spending review Topic 1]]+Dataset[[#This Row],[2024/25 From - Spending review Topic 2]]+Dataset[[#This Row],[2024/25 From - Spending review Topic 3]]+Dataset[[#This Row],[2024/25 From - Spending review Topic 4]]+Dataset[[#This Row],[2024/25 From - Other reallocations]]","v":0},{"$f":"Dataset[[#This Row],[2025/26 From - Spending review Topic 1]]+Dataset[[#This Row],[2025/26 From - Spending review Topic 2]]+Dataset[[#This Row],[2025/26 From - Spending review Topic 3]]+Dataset[[#This Row],[2025/26 From - Spending review Topic 4]]+Dataset[[#This Row],[2025/26 From - Other reallocations]]","v":0},{"$f":"Dataset[[#This Row],[2023/24 To - Spending review Topic 1]]+Dataset[[#This Row],[2023/24 To - Spending review Topic 2]]+Dataset[[#This Row],[2023/24 To - Spending review Topic 3]]+Dataset[[#This Row],[2023/24 To - Spending review Topic 4]]+Dataset[[#This Row],[2023/24 To - Other reallocations]]","v":0},{"$f":"Dataset[[#This Row],[2024/25 To - Spending review Topic 1]]+Dataset[[#This Row],[2024/25 To - Spending review Topic 2]]+Dataset[[#This Row],[2024/25 To - Spending review Topic 3]]+Dataset[[#This Row],[2024/25 To - Spending review Topic 4]]+Dataset[[#This Row],[2024/25 To - Other reallocations]]","v":0},{"$f":"Dataset[[#This Row],[2025/26 To - Spending review Topic 1]]+Dataset[[#This Row],[2025/26 To - Spending review Topic 2]]+Dataset[[#This Row],[2025/26 To - Spending review Topic 3]]+Dataset[[#This Row],[2025/26 To - Spending review Topic 4]]+Dataset[[#This Row],[2025/26 To - Other reallocations]]","v":0},{"$f":"Dataset[[#This Row],[2023/24 Baseline]]+Dataset[[#This Row],[2023/24 From - Total]]+Dataset[[#This Row],[2023/24 To - Total]]","v":0},{"$f":"Dataset[[#This Row],[2024/25 Baseline]]+Dataset[[#This Row],[2024/25 From - Total]]+Dataset[[#This Row],[2024/25 To - Total]]","v":0},{"$f":"Dataset[[#This Row],[2025/26 Baseline]]+Dataset[[#This Row],[2025/26 From - Total]]+Dataset[[#This Row],[2025/26 To - Total]]","v":0}]
["NAT|Non-transfer item","2|Inventory: Farming supplies","2023_24","MTEF2023",2,16,1,1334,717,"02","16","01","001334","000717","02|16|01",1,1,2,22,22,"01|01|02|22|22","National","Parliament","Direct charge against the National Revenue Fund","Members' Remuneration","Non-transfer item","Current","Current payments","Goods and services","Inventory: Farming supplies","Inventory: Farming supplies","General public services","Executive and legislative organs","NAT",0,0,0,0,0,0,0,0,0,0,0,null,null,null,null,null,null,null,null,null,null,null,null,null,null,null,null,null,null,null,null,null,null,null,null,null,null,null,null,null,null,{"$f":"Dataset[[#This Row],[2023/24 From - Spending review Topic 1]]+Dataset[[#This Row],[2023/24 From - Spending review Topic 2]]+Dataset[[#This Row],[2023/24 From - Spending review Topic 3]]+Dataset[[#This Row],[2023/24 From - Spending review Topic 4]]+Dataset[[#This Row],[2023/24 From - Other reallocations]]","v":0},{"$f":"Dataset[[#This Row],[2024/25 From - Spending review Topic 1]]+Dataset[[#This Row],[2024/25 From - Spending review Topic 2]]+Dataset[[#This Row],[2024/25 From - Spending review Topic 3]]+Dataset[[#This Row],[2024/25 From - Spending review Topic 4]]+Dataset[[#This Row],[2024/25 From - Other reallocations]]","v":0},{"$f":"Dataset[[#This Row],[2025/26 From - Spending review Topic 1]]+Dataset[[#This Row],[2025/26 From - Spending review Topic 2]]+Dataset[[#This Row],[2025/26 From - Spending review Topic 3]]+Dataset[[#This Row],[2025/26 From - Spending review Topic 4]]+Dataset[[#This Row],[2025/26 From - Other reallocations]]","v":0},{"$f":"Dataset[[#This Row],[2023/24 To - Spending review Topic 1]]+Dataset[[#This Row],[2023/24 To - Spending review Topic 2]]+Dataset[[#This Row],[2023/24 To - Spending review Topic 3]]+Dataset[[#This Row],[2023/24 To - Spending review Topic 4]]+Dataset[[#This Row],[2023/24 To - Other reallocations]]","v":0},{"$f":"Dataset[[#This Row],[2024/25 To - Spending review Topic 1]]+Dataset[[#This Row],[2024/25 To - Spending review Topic 2]]+Dataset[[#This Row],[2024/25 To - Spending review Topic 3]]+Dataset[[#This Row],[2024/25 To - Spending review Topic 4]]+Dataset[[#This Row],[2024/25 To - Other reallocations]]","v":0},{"$f":"Dataset[[#This Row],[2025/26 To - Spending review Topic 1]]+Dataset[[#This Row],[2025/26 To - Spending review Topic 2]]+Dataset[[#This Row],[2025/26 To - Spending review Topic 3]]+Dataset[[#This Row],[2025/26 To - Spending review Topic 4]]+Dataset[[#This Row],[2025/26 To - Other reallocations]]","v":0},{"$f":"Dataset[[#This Row],[2023/24 Baseline]]+Dataset[[#This Row],[2023/24 From - Total]]+Dataset[[#This Row],[2023/24 To - Total]]","v":0},{"$f":"Dataset[[#This Row],[2024/25 Baseline]]+Dataset[[#This Row],[2024/25 From - Total]]+Dataset[[#This Row],[2024/25 To - Total]]","v":0},{"$f":"Dataset[[#This Row],[2025/26 Baseline]]+Dataset[[#This Row],[2025/26 From - Total]]+Dataset[[#This Row],[2025/26 To - Total]]","v":0}]
["NAT|Non-transfer item","2|Inventory: Food and food supplies","2023_24","MTEF2023",2,16,1,1335,718,"02","16","01","001335","000718","02|16|01",1,1,2,23,23,"01|01|02|23|23","National","Parliament","Direct charge against the National Revenue Fund","Members' Remuneration","Non-transfer item","Current","Current payments","Goods and services","Inventory: Food and food supplies","Inventory: Food and food supplies","General public services","Executive and legislative organs","NAT",0,0,0,0,0,0,0,0,0,0,0,null,null,null,null,null,null,null,null,null,null,null,null,null,null,null,null,null,null,null,null,null,null,null,null,null,null,null,null,null,null,{"$f":"Dataset[[#This Row],[2023/24 From - Spending review Topic 1]]+Dataset[[#This Row],[2023/24 From - Spending review Topic 2]]+Dataset[[#This Row],[2023/24 From - Spending review Topic 3]]+Dataset[[#This Row],[2023/24 From - Spending review Topic 4]]+Dataset[[#This Row],[2023/24 From - Other reallocations]]","v":0},{"$f":"Dataset[[#This Row],[2024/25 From - Spending review Topic 1]]+Dataset[[#This Row],[2024/25 From - Spending review Topic 2]]+Dataset[[#This Row],[2024/25 From - Spending review Topic 3]]+Dataset[[#This Row],[2024/25 From - Spending review Topic 4]]+Dataset[[#This Row],[2024/25 From - Other reallocations]]","v":0},{"$f":"Dataset[[#This Row],[2025/26 From - Spending review Topic 1]]+Dataset[[#This Row],[2025/26 From - Spending review Topic 2]]+Dataset[[#This Row],[2025/26 From - Spending review Topic 3]]+Dataset[[#This Row],[2025/26 From - Spending review Topic 4]]+Dataset[[#This Row],[2025/26 From - Other reallocations]]","v":0},{"$f":"Dataset[[#This Row],[2023/24 To - Spending review Topic 1]]+Dataset[[#This Row],[2023/24 To - Spending review Topic 2]]+Dataset[[#This Row],[2023/24 To - Spending review Topic 3]]+Dataset[[#This Row],[2023/24 To - Spending review Topic 4]]+Dataset[[#This Row],[2023/24 To - Other reallocations]]","v":0},{"$f":"Dataset[[#This Row],[2024/25 To - Spending review Topic 1]]+Dataset[[#This Row],[2024/25 To - Spending review Topic 2]]+Dataset[[#This Row],[2024/25 To - Spending review Topic 3]]+Dataset[[#This Row],[2024/25 To - Spending review Topic 4]]+Dataset[[#This Row],[2024/25 To - Other reallocations]]","v":0},{"$f":"Dataset[[#This Row],[2025/26 To - Spending review Topic 1]]+Dataset[[#This Row],[2025/26 To - Spending review Topic 2]]+Dataset[[#This Row],[2025/26 To - Spending review Topic 3]]+Dataset[[#This Row],[2025/26 To - Spending review Topic 4]]+Dataset[[#This Row],[2025/26 To - Other reallocations]]","v":0},{"$f":"Dataset[[#This Row],[2023/24 Baseline]]+Dataset[[#This Row],[2023/24 From - Total]]+Dataset[[#This Row],[2023/24 To - Total]]","v":0},{"$f":"Dataset[[#This Row],[2024/25 Baseline]]+Dataset[[#This Row],[2024/25 From - Total]]+Dataset[[#This Row],[2024/25 To - Total]]","v":0},{"$f":"Dataset[[#This Row],[2025/26 Baseline]]+Dataset[[#This Row],[2025/26 From - Total]]+Dataset[[#This Row],[2025/26 To - Total]]","v":0}]
["NAT|Non-transfer item","2|Inventory: Fuel, oil and gas","2023_24","MTEF2023",2,16,1,1336,719,"02","16","01","001336","000719","02|16|01",1,1,2,24,24,"01|01|02|24|24","National","Parliament","Direct charge against the National Revenue Fund","Members' Remuneration","Non-transfer item","Current","Current payments","Goods and services","Inventory: Fuel, oil and gas","Inventory: Fuel, oil and gas","General public services","Executive and legislative organs","NAT",0,0,0,0,0,0,0,0,0,0,0,null,null,null,null,null,null,null,null,null,null,null,null,null,null,null,null,null,null,null,null,null,null,null,null,null,null,null,null,null,null,{"$f":"Dataset[[#This Row],[2023/24 From - Spending review Topic 1]]+Dataset[[#This Row],[2023/24 From - Spending review Topic 2]]+Dataset[[#This Row],[2023/24 From - Spending review Topic 3]]+Dataset[[#This Row],[2023/24 From - Spending review Topic 4]]+Dataset[[#This Row],[2023/24 From - Other reallocations]]","v":0},{"$f":"Dataset[[#This Row],[2024/25 From - Spending review Topic 1]]+Dataset[[#This Row],[2024/25 From - Spending review Topic 2]]+Dataset[[#This Row],[2024/25 From - Spending review Topic 3]]+Dataset[[#This Row],[2024/25 From - Spending review Topic 4]]+Dataset[[#This Row],[2024/25 From - Other reallocations]]","v":0},{"$f":"Dataset[[#This Row],[2025/26 From - Spending review Topic 1]]+Dataset[[#This Row],[2025/26 From - Spending review Topic 2]]+Dataset[[#This Row],[2025/26 From - Spending review Topic 3]]+Dataset[[#This Row],[2025/26 From - Spending review Topic 4]]+Dataset[[#This Row],[2025/26 From - Other reallocations]]","v":0},{"$f":"Dataset[[#This Row],[2023/24 To - Spending review Topic 1]]+Dataset[[#This Row],[2023/24 To - Spending review Topic 2]]+Dataset[[#This Row],[2023/24 To - Spending review Topic 3]]+Dataset[[#This Row],[2023/24 To - Spending review Topic 4]]+Dataset[[#This Row],[2023/24 To - Other reallocations]]","v":0},{"$f":"Dataset[[#This Row],[2024/25 To - Spending review Topic 1]]+Dataset[[#This Row],[2024/25 To - Spending review Topic 2]]+Dataset[[#This Row],[2024/25 To - Spending review Topic 3]]+Dataset[[#This Row],[2024/25 To - Spending review Topic 4]]+Dataset[[#This Row],[2024/25 To - Other reallocations]]","v":0},{"$f":"Dataset[[#This Row],[2025/26 To - Spending review Topic 1]]+Dataset[[#This Row],[2025/26 To - Spending review Topic 2]]+Dataset[[#This Row],[2025/26 To - Spending review Topic 3]]+Dataset[[#This Row],[2025/26 To - Spending review Topic 4]]+Dataset[[#This Row],[2025/26 To - Other reallocations]]","v":0},{"$f":"Dataset[[#This Row],[2023/24 Baseline]]+Dataset[[#This Row],[2023/24 From - Total]]+Dataset[[#This Row],[2023/24 To - Total]]","v":0},{"$f":"Dataset[[#This Row],[2024/25 Baseline]]+Dataset[[#This Row],[2024/25 From - Total]]+Dataset[[#This Row],[2024/25 To - Total]]","v":0},{"$f":"Dataset[[#This Row],[2025/26 Baseline]]+Dataset[[#This Row],[2025/26 From - Total]]+Dataset[[#This Row],[2025/26 To - Total]]","v":0}]
["NAT|Non-transfer item","2|Inventory: Learner and teacher support material","2023_24","MTEF2023",2,16,1,1337,720,"02","16","01","001337","000720","02|16|01",1,1,2,25,25,"01|01|02|25|25","National","Parliament","Direct charge against the National Revenue Fund","Members' Remuneration","Non-transfer item","Current","Current payments","Goods and services","Inventory: Learner and teacher support material","Inventory: Learner and teacher support material","General public services","Executive and legislative organs","NAT",0,0,0,0,0,0,0,0,0,0,0,null,null,null,null,null,null,null,null,null,null,null,null,null,null,null,null,null,null,null,null,null,null,null,null,null,null,null,null,null,null,{"$f":"Dataset[[#This Row],[2023/24 From - Spending review Topic 1]]+Dataset[[#This Row],[2023/24 From - Spending review Topic 2]]+Dataset[[#This Row],[2023/24 From - Spending review Topic 3]]+Dataset[[#This Row],[2023/24 From - Spending review Topic 4]]+Dataset[[#This Row],[2023/24 From - Other reallocations]]","v":0},{"$f":"Dataset[[#This Row],[2024/25 From - Spending review Topic 1]]+Dataset[[#This Row],[2024/25 From - Spending review Topic 2]]+Dataset[[#This Row],[2024/25 From - Spending review Topic 3]]+Dataset[[#This Row],[2024/25 From - Spending review Topic 4]]+Dataset[[#This Row],[2024/25 From - Other reallocations]]","v":0},{"$f":"Dataset[[#This Row],[2025/26 From - Spending review Topic 1]]+Dataset[[#This Row],[2025/26 From - Spending review Topic 2]]+Dataset[[#This Row],[2025/26 From - Spending review Topic 3]]+Dataset[[#This Row],[2025/26 From - Spending review Topic 4]]+Dataset[[#This Row],[2025/26 From - Other reallocations]]","v":0},{"$f":"Dataset[[#This Row],[2023/24 To - Spending review Topic 1]]+Dataset[[#This Row],[2023/24 To - Spending review Topic 2]]+Dataset[[#This Row],[2023/24 To - Spending review Topic 3]]+Dataset[[#This Row],[2023/24 To - Spending review Topic 4]]+Dataset[[#This Row],[2023/24 To - Other reallocations]]","v":0},{"$f":"Dataset[[#This Row],[2024/25 To - Spending review Topic 1]]+Dataset[[#This Row],[2024/25 To - Spending review Topic 2]]+Dataset[[#This Row],[2024/25 To - Spending review Topic 3]]+Dataset[[#This Row],[2024/25 To - Spending review Topic 4]]+Dataset[[#This Row],[2024/25 To - Other reallocations]]","v":0},{"$f":"Dataset[[#This Row],[2025/26 To - Spending review Topic 1]]+Dataset[[#This Row],[2025/26 To - Spending review Topic 2]]+Dataset[[#This Row],[2025/26 To - Spending review Topic 3]]+Dataset[[#This Row],[2025/26 To - Spending review Topic 4]]+Dataset[[#This Row],[2025/26 To - Other reallocations]]","v":0},{"$f":"Dataset[[#This Row],[2023/24 Baseline]]+Dataset[[#This Row],[2023/24 From - Total]]+Dataset[[#This Row],[2023/24 To - Total]]","v":0},{"$f":"Dataset[[#This Row],[2024/25 Baseline]]+Dataset[[#This Row],[2024/25 From - Total]]+Dataset[[#This Row],[2024/25 To - Total]]","v":0},{"$f":"Dataset[[#This Row],[2025/26 Baseline]]+Dataset[[#This Row],[2025/26 From - Total]]+Dataset[[#This Row],[2025/26 To - Total]]","v":0}]
["NAT|Non-transfer item","2|Inventory: Materials and supplies","2023_24","MTEF2023",2,16,1,1338,721,"02","16","01","001338","000721","02|16|01",1,1,2,26,26,"01|01|02|26|26","National","Parliament","Direct charge against the National Revenue Fund","Members' Remuneration","Non-transfer item","Current","Current payments","Goods and services","Inventory: Materials and supplies","Inventory: Materials and supplies","General public services","Executive and legislative organs","NAT",0,0,0,0,0,0,0,0,0,0,0,null,null,null,null,null,null,null,null,null,null,null,null,null,null,null,null,null,null,null,null,null,null,null,null,null,null,null,null,null,null,{"$f":"Dataset[[#This Row],[2023/24 From - Spending review Topic 1]]+Dataset[[#This Row],[2023/24 From - Spending review Topic 2]]+Dataset[[#This Row],[2023/24 From - Spending review Topic 3]]+Dataset[[#This Row],[2023/24 From - Spending review Topic 4]]+Dataset[[#This Row],[2023/24 From - Other reallocations]]","v":0},{"$f":"Dataset[[#This Row],[2024/25 From - Spending review Topic 1]]+Dataset[[#This Row],[2024/25 From - Spending review Topic 2]]+Dataset[[#This Row],[2024/25 From - Spending review Topic 3]]+Dataset[[#This Row],[2024/25 From - Spending review Topic 4]]+Dataset[[#This Row],[2024/25 From - Other reallocations]]","v":0},{"$f":"Dataset[[#This Row],[2025/26 From - Spending review Topic 1]]+Dataset[[#This Row],[2025/26 From - Spending review Topic 2]]+Dataset[[#This Row],[2025/26 From - Spending review Topic 3]]+Dataset[[#This Row],[2025/26 From - Spending review Topic 4]]+Dataset[[#This Row],[2025/26 From - Other reallocations]]","v":0},{"$f":"Dataset[[#This Row],[2023/24 To - Spending review Topic 1]]+Dataset[[#This Row],[2023/24 To - Spending review Topic 2]]+Dataset[[#This Row],[2023/24 To - Spending review Topic 3]]+Dataset[[#This Row],[2023/24 To - Spending review Topic 4]]+Dataset[[#This Row],[2023/24 To - Other reallocations]]","v":0},{"$f":"Dataset[[#This Row],[2024/25 To - Spending review Topic 1]]+Dataset[[#This Row],[2024/25 To - Spending review Topic 2]]+Dataset[[#This Row],[2024/25 To - Spending review Topic 3]]+Dataset[[#This Row],[2024/25 To - Spending review Topic 4]]+Dataset[[#This Row],[2024/25 To - Other reallocations]]","v":0},{"$f":"Dataset[[#This Row],[2025/26 To - Spending review Topic 1]]+Dataset[[#This Row],[2025/26 To - Spending review Topic 2]]+Dataset[[#This Row],[2025/26 To - Spending review Topic 3]]+Dataset[[#This Row],[2025/26 To - Spending review Topic 4]]+Dataset[[#This Row],[2025/26 To - Other reallocations]]","v":0},{"$f":"Dataset[[#This Row],[2023/24 Baseline]]+Dataset[[#This Row],[2023/24 From - Total]]+Dataset[[#This Row],[2023/24 To - Total]]","v":0},{"$f":"Dataset[[#This Row],[2024/25 Baseline]]+Dataset[[#This Row],[2024/25 From - Total]]+Dataset[[#This Row],[2024/25 To - Total]]","v":0},{"$f":"Dataset[[#This Row],[2025/26 Baseline]]+Dataset[[#This Row],[2025/26 From - Total]]+Dataset[[#This Row],[2025/26 To - Total]]","v":0}]
["NAT|Non-transfer item","2|Inventory: Medical supplies","2023_24","MTEF2023",2,16,1,1339,722,"02","16","01","001339","000722","02|16|01",1,1,2,27,27,"01|01|02|27|27","National","Parliament","Direct charge against the National Revenue Fund","Members' Remuneration","Non-transfer item","Current","Current payments","Goods and services","Inventory: Medical supplies","Inventory: Medical supplies","General public services","Executive and legislative organs","NAT",0,0,0,0,0,0,0,0,0,0,0,null,null,null,null,null,null,null,null,null,null,null,null,null,null,null,null,null,null,null,null,null,null,null,null,null,null,null,null,null,null,{"$f":"Dataset[[#This Row],[2023/24 From - Spending review Topic 1]]+Dataset[[#This Row],[2023/24 From - Spending review Topic 2]]+Dataset[[#This Row],[2023/24 From - Spending review Topic 3]]+Dataset[[#This Row],[2023/24 From - Spending review Topic 4]]+Dataset[[#This Row],[2023/24 From - Other reallocations]]","v":0},{"$f":"Dataset[[#This Row],[2024/25 From - Spending review Topic 1]]+Dataset[[#This Row],[2024/25 From - Spending review Topic 2]]+Dataset[[#This Row],[2024/25 From - Spending review Topic 3]]+Dataset[[#This Row],[2024/25 From - Spending review Topic 4]]+Dataset[[#This Row],[2024/25 From - Other reallocations]]","v":0},{"$f":"Dataset[[#This Row],[2025/26 From - Spending review Topic 1]]+Dataset[[#This Row],[2025/26 From - Spending review Topic 2]]+Dataset[[#This Row],[2025/26 From - Spending review Topic 3]]+Dataset[[#This Row],[2025/26 From - Spending review Topic 4]]+Dataset[[#This Row],[2025/26 From - Other reallocations]]","v":0},{"$f":"Dataset[[#This Row],[2023/24 To - Spending review Topic 1]]+Dataset[[#This Row],[2023/24 To - Spending review Topic 2]]+Dataset[[#This Row],[2023/24 To - Spending review Topic 3]]+Dataset[[#This Row],[2023/24 To - Spending review Topic 4]]+Dataset[[#This Row],[2023/24 To - Other reallocations]]","v":0},{"$f":"Dataset[[#This Row],[2024/25 To - Spending review Topic 1]]+Dataset[[#This Row],[2024/25 To - Spending review Topic 2]]+Dataset[[#This Row],[2024/25 To - Spending review Topic 3]]+Dataset[[#This Row],[2024/25 To - Spending review Topic 4]]+Dataset[[#This Row],[2024/25 To - Other reallocations]]","v":0},{"$f":"Dataset[[#This Row],[2025/26 To - Spending review Topic 1]]+Dataset[[#This Row],[2025/26 To - Spending review Topic 2]]+Dataset[[#This Row],[2025/26 To - Spending review Topic 3]]+Dataset[[#This Row],[2025/26 To - Spending review Topic 4]]+Dataset[[#This Row],[2025/26 To - Other reallocations]]","v":0},{"$f":"Dataset[[#This Row],[2023/24 Baseline]]+Dataset[[#This Row],[2023/24 From - Total]]+Dataset[[#This Row],[2023/24 To - Total]]","v":0},{"$f":"Dataset[[#This Row],[2024/25 Baseline]]+Dataset[[#This Row],[2024/25 From - Total]]+Dataset[[#This Row],[2024/25 To - Total]]","v":0},{"$f":"Dataset[[#This Row],[2025/26 Baseline]]+Dataset[[#This Row],[2025/26 From - Total]]+Dataset[[#This Row],[2025/26 To - Total]]","v":0}]
["NAT|Non-transfer item","2|Inventory: Medicine","2023_24","MTEF2023",2,16,1,1340,723,"02","16","01","001340","000723","02|16|01",1,1,2,28,28,"01|01|02|28|28","National","Parliament","Direct charge against the National Revenue Fund","Members' Remuneration","Non-transfer item","Current","Current payments","Goods and services","Inventory: Medicine","Inventory: Medicine","General public services","Executive and legislative organs","NAT",0,0,0,0,0,0,0,0,0,0,0,null,null,null,null,null,null,null,null,null,null,null,null,null,null,null,null,null,null,null,null,null,null,null,null,null,null,null,null,null,null,{"$f":"Dataset[[#This Row],[2023/24 From - Spending review Topic 1]]+Dataset[[#This Row],[2023/24 From - Spending review Topic 2]]+Dataset[[#This Row],[2023/24 From - Spending review Topic 3]]+Dataset[[#This Row],[2023/24 From - Spending review Topic 4]]+Dataset[[#This Row],[2023/24 From - Other reallocations]]","v":0},{"$f":"Dataset[[#This Row],[2024/25 From - Spending review Topic 1]]+Dataset[[#This Row],[2024/25 From - Spending review Topic 2]]+Dataset[[#This Row],[2024/25 From - Spending review Topic 3]]+Dataset[[#This Row],[2024/25 From - Spending review Topic 4]]+Dataset[[#This Row],[2024/25 From - Other reallocations]]","v":0},{"$f":"Dataset[[#This Row],[2025/26 From - Spending review Topic 1]]+Dataset[[#This Row],[2025/26 From - Spending review Topic 2]]+Dataset[[#This Row],[2025/26 From - Spending review Topic 3]]+Dataset[[#This Row],[2025/26 From - Spending review Topic 4]]+Dataset[[#This Row],[2025/26 From - Other reallocations]]","v":0},{"$f":"Dataset[[#This Row],[2023/24 To - Spending review Topic 1]]+Dataset[[#This Row],[2023/24 To - Spending review Topic 2]]+Dataset[[#This Row],[2023/24 To - Spending review Topic 3]]+Dataset[[#This Row],[2023/24 To - Spending review Topic 4]]+Dataset[[#This Row],[2023/24 To - Other reallocations]]","v":0},{"$f":"Dataset[[#This Row],[2024/25 To - Spending review Topic 1]]+Dataset[[#This Row],[2024/25 To - Spending review Topic 2]]+Dataset[[#This Row],[2024/25 To - Spending review Topic 3]]+Dataset[[#This Row],[2024/25 To - Spending review Topic 4]]+Dataset[[#This Row],[2024/25 To - Other reallocations]]","v":0},{"$f":"Dataset[[#This Row],[2025/26 To - Spending review Topic 1]]+Dataset[[#This Row],[2025/26 To - Spending review Topic 2]]+Dataset[[#This Row],[2025/26 To - Spending review Topic 3]]+Dataset[[#This Row],[2025/26 To - Spending review Topic 4]]+Dataset[[#This Row],[2025/26 To - Other reallocations]]","v":0},{"$f":"Dataset[[#This Row],[2023/24 Baseline]]+Dataset[[#This Row],[2023/24 From - Total]]+Dataset[[#This Row],[2023/24 To - Total]]","v":0},{"$f":"Dataset[[#This Row],[2024/25 Baseline]]+Dataset[[#This Row],[2024/25 From - Total]]+Dataset[[#This Row],[2024/25 To - Total]]","v":0},{"$f":"Dataset[[#This Row],[2025/26 Baseline]]+Dataset[[#This Row],[2025/26 From - Total]]+Dataset[[#This Row],[2025/26 To - Total]]","v":0}]
["NAT|Non-transfer item","2|Medsas inventory interface","2023_24","MTEF2023",2,16,1,1341,724,"02","16","01","001341","000724","02|16|01",1,1,2,29,29,"01|01|02|29|29","National","Parliament","Direct charge against the National Revenue Fund","Members' Remuneration","Non-transfer item","Current","Current payments","Goods and services","Medsas inventory interface","Medsas inventory interface","General public services","Executive and legislative organs","NAT",0,0,0,0,0,0,0,0,0,0,0,null,null,null,null,null,null,null,null,null,null,null,null,null,null,null,null,null,null,null,null,null,null,null,null,null,null,null,null,null,null,{"$f":"Dataset[[#This Row],[2023/24 From - Spending review Topic 1]]+Dataset[[#This Row],[2023/24 From - Spending review Topic 2]]+Dataset[[#This Row],[2023/24 From - Spending review Topic 3]]+Dataset[[#This Row],[2023/24 From - Spending review Topic 4]]+Dataset[[#This Row],[2023/24 From - Other reallocations]]","v":0},{"$f":"Dataset[[#This Row],[2024/25 From - Spending review Topic 1]]+Dataset[[#This Row],[2024/25 From - Spending review Topic 2]]+Dataset[[#This Row],[2024/25 From - Spending review Topic 3]]+Dataset[[#This Row],[2024/25 From - Spending review Topic 4]]+Dataset[[#This Row],[2024/25 From - Other reallocations]]","v":0},{"$f":"Dataset[[#This Row],[2025/26 From - Spending review Topic 1]]+Dataset[[#This Row],[2025/26 From - Spending review Topic 2]]+Dataset[[#This Row],[2025/26 From - Spending review Topic 3]]+Dataset[[#This Row],[2025/26 From - Spending review Topic 4]]+Dataset[[#This Row],[2025/26 From - Other reallocations]]","v":0},{"$f":"Dataset[[#This Row],[2023/24 To - Spending review Topic 1]]+Dataset[[#This Row],[2023/24 To - Spending review Topic 2]]+Dataset[[#This Row],[2023/24 To - Spending review Topic 3]]+Dataset[[#This Row],[2023/24 To - Spending review Topic 4]]+Dataset[[#This Row],[2023/24 To - Other reallocations]]","v":0},{"$f":"Dataset[[#This Row],[2024/25 To - Spending review Topic 1]]+Dataset[[#This Row],[2024/25 To - Spending review Topic 2]]+Dataset[[#This Row],[2024/25 To - Spending review Topic 3]]+Dataset[[#This Row],[2024/25 To - Spending review Topic 4]]+Dataset[[#This Row],[2024/25 To - Other reallocations]]","v":0},{"$f":"Dataset[[#This Row],[2025/26 To - Spending review Topic 1]]+Dataset[[#This Row],[2025/26 To - Spending review Topic 2]]+Dataset[[#This Row],[2025/26 To - Spending review Topic 3]]+Dataset[[#This Row],[2025/26 To - Spending review Topic 4]]+Dataset[[#This Row],[2025/26 To - Other reallocations]]","v":0},{"$f":"Dataset[[#This Row],[2023/24 Baseline]]+Dataset[[#This Row],[2023/24 From - Total]]+Dataset[[#This Row],[2023/24 To - Total]]","v":0},{"$f":"Dataset[[#This Row],[2024/25 Baseline]]+Dataset[[#This Row],[2024/25 From - Total]]+Dataset[[#This Row],[2024/25 To - Total]]","v":0},{"$f":"Dataset[[#This Row],[2025/26 Baseline]]+Dataset[[#This Row],[2025/26 From - Total]]+Dataset[[#This Row],[2025/26 To - Total]]","v":0}]
["NAT|Non-transfer item","2|Inventory: Other supplies","2023_24","MTEF2023",2,16,1,1342,725,"02","16","01","001342","000725","02|16|01",1,1,2,30,30,"01|01|02|30|30","National","Parliament","Direct charge against the National Revenue Fund","Members' Remuneration","Non-transfer item","Current","Current payments","Goods and services","Inventory: Other supplies","Inventory: Other supplies","General public services","Executive and legislative organs","NAT",0,0,0,0,0,0,0,0,0,0,0,null,null,null,null,null,null,null,null,null,null,null,null,null,null,null,null,null,null,null,null,null,null,null,null,null,null,null,null,null,null,{"$f":"Dataset[[#This Row],[2023/24 From - Spending review Topic 1]]+Dataset[[#This Row],[2023/24 From - Spending review Topic 2]]+Dataset[[#This Row],[2023/24 From - Spending review Topic 3]]+Dataset[[#This Row],[2023/24 From - Spending review Topic 4]]+Dataset[[#This Row],[2023/24 From - Other reallocations]]","v":0},{"$f":"Dataset[[#This Row],[2024/25 From - Spending review Topic 1]]+Dataset[[#This Row],[2024/25 From - Spending review Topic 2]]+Dataset[[#This Row],[2024/25 From - Spending review Topic 3]]+Dataset[[#This Row],[2024/25 From - Spending review Topic 4]]+Dataset[[#This Row],[2024/25 From - Other reallocations]]","v":0},{"$f":"Dataset[[#This Row],[2025/26 From - Spending review Topic 1]]+Dataset[[#This Row],[2025/26 From - Spending review Topic 2]]+Dataset[[#This Row],[2025/26 From - Spending review Topic 3]]+Dataset[[#This Row],[2025/26 From - Spending review Topic 4]]+Dataset[[#This Row],[2025/26 From - Other reallocations]]","v":0},{"$f":"Dataset[[#This Row],[2023/24 To - Spending review Topic 1]]+Dataset[[#This Row],[2023/24 To - Spending review Topic 2]]+Dataset[[#This Row],[2023/24 To - Spending review Topic 3]]+Dataset[[#This Row],[2023/24 To - Spending review Topic 4]]+Dataset[[#This Row],[2023/24 To - Other reallocations]]","v":0},{"$f":"Dataset[[#This Row],[2024/25 To - Spending review Topic 1]]+Dataset[[#This Row],[2024/25 To - Spending review Topic 2]]+Dataset[[#This Row],[2024/25 To - Spending review Topic 3]]+Dataset[[#This Row],[2024/25 To - Spending review Topic 4]]+Dataset[[#This Row],[2024/25 To - Other reallocations]]","v":0},{"$f":"Dataset[[#This Row],[2025/26 To - Spending review Topic 1]]+Dataset[[#This Row],[2025/26 To - Spending review Topic 2]]+Dataset[[#This Row],[2025/26 To - Spending review Topic 3]]+Dataset[[#This Row],[2025/26 To - Spending review Topic 4]]+Dataset[[#This Row],[2025/26 To - Other reallocations]]","v":0},{"$f":"Dataset[[#This Row],[2023/24 Baseline]]+Dataset[[#This Row],[2023/24 From - Total]]+Dataset[[#This Row],[2023/24 To - Total]]","v":0},{"$f":"Dataset[[#This Row],[2024/25 Baseline]]+Dataset[[#This Row],[2024/25 From - Total]]+Dataset[[#This Row],[2024/25 To - Total]]","v":0},{"$f":"Dataset[[#This Row],[2025/26 Baseline]]+Dataset[[#This Row],[2025/26 From - Total]]+Dataset[[#This Row],[2025/26 To - Total]]","v":0}]
["NAT|Non-transfer item","2|Consumable supplies","2023_24","MTEF2023",2,16,1,1343,726,"02","16","01","001343","000726","02|16|01",1,1,2,31,31,"01|01|02|31|31","National","Parliament","Direct charge against the National Revenue Fund","Members' Remuneration","Non-transfer item","Current","Current payments","Goods and services","Consumable supplies","Consumable supplies","General public services","Executive and legislative organs","NAT",0,0,0,0,0,0,0,0,0,0,0,null,null,null,null,null,null,null,null,null,null,null,null,null,null,null,null,null,null,null,null,null,null,null,null,null,null,null,null,null,null,{"$f":"Dataset[[#This Row],[2023/24 From - Spending review Topic 1]]+Dataset[[#This Row],[2023/24 From - Spending review Topic 2]]+Dataset[[#This Row],[2023/24 From - Spending review Topic 3]]+Dataset[[#This Row],[2023/24 From - Spending review Topic 4]]+Dataset[[#This Row],[2023/24 From - Other reallocations]]","v":0},{"$f":"Dataset[[#This Row],[2024/25 From - Spending review Topic 1]]+Dataset[[#This Row],[2024/25 From - Spending review Topic 2]]+Dataset[[#This Row],[2024/25 From - Spending review Topic 3]]+Dataset[[#This Row],[2024/25 From - Spending review Topic 4]]+Dataset[[#This Row],[2024/25 From - Other reallocations]]","v":0},{"$f":"Dataset[[#This Row],[2025/26 From - Spending review Topic 1]]+Dataset[[#This Row],[2025/26 From - Spending review Topic 2]]+Dataset[[#This Row],[2025/26 From - Spending review Topic 3]]+Dataset[[#This Row],[2025/26 From - Spending review Topic 4]]+Dataset[[#This Row],[2025/26 From - Other reallocations]]","v":0},{"$f":"Dataset[[#This Row],[2023/24 To - Spending review Topic 1]]+Dataset[[#This Row],[2023/24 To - Spending review Topic 2]]+Dataset[[#This Row],[2023/24 To - Spending review Topic 3]]+Dataset[[#This Row],[2023/24 To - Spending review Topic 4]]+Dataset[[#This Row],[2023/24 To - Other reallocations]]","v":0},{"$f":"Dataset[[#This Row],[2024/25 To - Spending review Topic 1]]+Dataset[[#This Row],[2024/25 To - Spending review Topic 2]]+Dataset[[#This Row],[2024/25 To - Spending review Topic 3]]+Dataset[[#This Row],[2024/25 To - Spending review Topic 4]]+Dataset[[#This Row],[2024/25 To - Other reallocations]]","v":0},{"$f":"Dataset[[#This Row],[2025/26 To - Spending review Topic 1]]+Dataset[[#This Row],[2025/26 To - Spending review Topic 2]]+Dataset[[#This Row],[2025/26 To - Spending review Topic 3]]+Dataset[[#This Row],[2025/26 To - Spending review Topic 4]]+Dataset[[#This Row],[2025/26 To - Other reallocations]]","v":0},{"$f":"Dataset[[#This Row],[2023/24 Baseline]]+Dataset[[#This Row],[2023/24 From - Total]]+Dataset[[#This Row],[2023/24 To - Total]]","v":0},{"$f":"Dataset[[#This Row],[2024/25 Baseline]]+Dataset[[#This Row],[2024/25 From - Total]]+Dataset[[#This Row],[2024/25 To - Total]]","v":0},{"$f":"Dataset[[#This Row],[2025/26 Baseline]]+Dataset[[#This Row],[2025/26 From - Total]]+Dataset[[#This Row],[2025/26 To - Total]]","v":0}]
["NAT|Non-transfer item","2|Consumables: Stationery, printing and office supplies","2023_24","MTEF2023",2,16,1,1344,727,"02","16","01","001344","000727","02|16|01",1,1,2,32,32,"01|01|02|32|32","National","Parliament","Direct charge against the National Revenue Fund","Members' Remuneration","Non-transfer item","Current","Current payments","Goods and services","Consumables: Stationery, printing and office supplies","Consumables: Stationery, printing and office supplies","General public services","Executive and legislative organs","NAT",0,0,0,0,0,0,0,0,0,0,0,null,null,null,null,null,null,null,null,null,null,null,null,null,null,null,null,null,null,null,null,null,null,null,null,null,null,null,null,null,null,{"$f":"Dataset[[#This Row],[2023/24 From - Spending review Topic 1]]+Dataset[[#This Row],[2023/24 From - Spending review Topic 2]]+Dataset[[#This Row],[2023/24 From - Spending review Topic 3]]+Dataset[[#This Row],[2023/24 From - Spending review Topic 4]]+Dataset[[#This Row],[2023/24 From - Other reallocations]]","v":0},{"$f":"Dataset[[#This Row],[2024/25 From - Spending review Topic 1]]+Dataset[[#This Row],[2024/25 From - Spending review Topic 2]]+Dataset[[#This Row],[2024/25 From - Spending review Topic 3]]+Dataset[[#This Row],[2024/25 From - Spending review Topic 4]]+Dataset[[#This Row],[2024/25 From - Other reallocations]]","v":0},{"$f":"Dataset[[#This Row],[2025/26 From - Spending review Topic 1]]+Dataset[[#This Row],[2025/26 From - Spending review Topic 2]]+Dataset[[#This Row],[2025/26 From - Spending review Topic 3]]+Dataset[[#This Row],[2025/26 From - Spending review Topic 4]]+Dataset[[#This Row],[2025/26 From - Other reallocations]]","v":0},{"$f":"Dataset[[#This Row],[2023/24 To - Spending review Topic 1]]+Dataset[[#This Row],[2023/24 To - Spending review Topic 2]]+Dataset[[#This Row],[2023/24 To - Spending review Topic 3]]+Dataset[[#This Row],[2023/24 To - Spending review Topic 4]]+Dataset[[#This Row],[2023/24 To - Other reallocations]]","v":0},{"$f":"Dataset[[#This Row],[2024/25 To - Spending review Topic 1]]+Dataset[[#This Row],[2024/25 To - Spending review Topic 2]]+Dataset[[#This Row],[2024/25 To - Spending review Topic 3]]+Dataset[[#This Row],[2024/25 To - Spending review Topic 4]]+Dataset[[#This Row],[2024/25 To - Other reallocations]]","v":0},{"$f":"Dataset[[#This Row],[2025/26 To - Spending review Topic 1]]+Dataset[[#This Row],[2025/26 To - Spending review Topic 2]]+Dataset[[#This Row],[2025/26 To - Spending review Topic 3]]+Dataset[[#This Row],[2025/26 To - Spending review Topic 4]]+Dataset[[#This Row],[2025/26 To - Other reallocations]]","v":0},{"$f":"Dataset[[#This Row],[2023/24 Baseline]]+Dataset[[#This Row],[2023/24 From - Total]]+Dataset[[#This Row],[2023/24 To - Total]]","v":0},{"$f":"Dataset[[#This Row],[2024/25 Baseline]]+Dataset[[#This Row],[2024/25 From - Total]]+Dataset[[#This Row],[2024/25 To - Total]]","v":0},{"$f":"Dataset[[#This Row],[2025/26 Baseline]]+Dataset[[#This Row],[2025/26 From - Total]]+Dataset[[#This Row],[2025/26 To - Total]]","v":0}]
["NAT|Non-transfer item","2|Operating leases","2023_24","MTEF2023",2,16,1,1345,728,"02","16","01","001345","000728","02|16|01",1,1,2,33,33,"01|01|02|33|33","National","Parliament","Direct charge against the National Revenue Fund","Members' Remuneration","Non-transfer item","Current","Current payments","Goods and services","Operating leases","Operating leases","General public services","Executive and legislative organs","NAT",0,0,0,0,0,0,0,0,0,0,0,null,null,null,null,null,null,null,null,null,null,null,null,null,null,null,null,null,null,null,null,null,null,null,null,null,null,null,null,null,null,{"$f":"Dataset[[#This Row],[2023/24 From - Spending review Topic 1]]+Dataset[[#This Row],[2023/24 From - Spending review Topic 2]]+Dataset[[#This Row],[2023/24 From - Spending review Topic 3]]+Dataset[[#This Row],[2023/24 From - Spending review Topic 4]]+Dataset[[#This Row],[2023/24 From - Other reallocations]]","v":0},{"$f":"Dataset[[#This Row],[2024/25 From - Spending review Topic 1]]+Dataset[[#This Row],[2024/25 From - Spending review Topic 2]]+Dataset[[#This Row],[2024/25 From - Spending review Topic 3]]+Dataset[[#This Row],[2024/25 From - Spending review Topic 4]]+Dataset[[#This Row],[2024/25 From - Other reallocations]]","v":0},{"$f":"Dataset[[#This Row],[2025/26 From - Spending review Topic 1]]+Dataset[[#This Row],[2025/26 From - Spending review Topic 2]]+Dataset[[#This Row],[2025/26 From - Spending review Topic 3]]+Dataset[[#This Row],[2025/26 From - Spending review Topic 4]]+Dataset[[#This Row],[2025/26 From - Other reallocations]]","v":0},{"$f":"Dataset[[#This Row],[2023/24 To - Spending review Topic 1]]+Dataset[[#This Row],[2023/24 To - Spending review Topic 2]]+Dataset[[#This Row],[2023/24 To - Spending review Topic 3]]+Dataset[[#This Row],[2023/24 To - Spending review Topic 4]]+Dataset[[#This Row],[2023/24 To - Other reallocations]]","v":0},{"$f":"Dataset[[#This Row],[2024/25 To - Spending review Topic 1]]+Dataset[[#This Row],[2024/25 To - Spending review Topic 2]]+Dataset[[#This Row],[2024/25 To - Spending review Topic 3]]+Dataset[[#This Row],[2024/25 To - Spending review Topic 4]]+Dataset[[#This Row],[2024/25 To - Other reallocations]]","v":0},{"$f":"Dataset[[#This Row],[2025/26 To - Spending review Topic 1]]+Dataset[[#This Row],[2025/26 To - Spending review Topic 2]]+Dataset[[#This Row],[2025/26 To - Spending review Topic 3]]+Dataset[[#This Row],[2025/26 To - Spending review Topic 4]]+Dataset[[#This Row],[2025/26 To - Other reallocations]]","v":0},{"$f":"Dataset[[#This Row],[2023/24 Baseline]]+Dataset[[#This Row],[2023/24 From - Total]]+Dataset[[#This Row],[2023/24 To - Total]]","v":0},{"$f":"Dataset[[#This Row],[2024/25 Baseline]]+Dataset[[#This Row],[2024/25 From - Total]]+Dataset[[#This Row],[2024/25 To - Total]]","v":0},{"$f":"Dataset[[#This Row],[2025/26 Baseline]]+Dataset[[#This Row],[2025/26 From - Total]]+Dataset[[#This Row],[2025/26 To - Total]]","v":0}]
["NAT|Non-transfer item","2|Rental and hiring","2023_24","MTEF2023",2,16,1,1346,729,"02","16","01","001346","000729","02|16|01",1,1,2,34,34,"01|01|02|34|34","National","Parliament","Direct charge against the National Revenue Fund","Members' Remuneration","Non-transfer item","Current","Current payments","Goods and services","Rental and hiring","Rental and hiring","General public services","Executive and legislative organs","NAT",0,0,0,0,0,0,0,0,0,0,0,null,null,null,null,null,null,null,null,null,null,null,null,null,null,null,null,null,null,null,null,null,null,null,null,null,null,null,null,null,null,{"$f":"Dataset[[#This Row],[2023/24 From - Spending review Topic 1]]+Dataset[[#This Row],[2023/24 From - Spending review Topic 2]]+Dataset[[#This Row],[2023/24 From - Spending review Topic 3]]+Dataset[[#This Row],[2023/24 From - Spending review Topic 4]]+Dataset[[#This Row],[2023/24 From - Other reallocations]]","v":0},{"$f":"Dataset[[#This Row],[2024/25 From - Spending review Topic 1]]+Dataset[[#This Row],[2024/25 From - Spending review Topic 2]]+Dataset[[#This Row],[2024/25 From - Spending review Topic 3]]+Dataset[[#This Row],[2024/25 From - Spending review Topic 4]]+Dataset[[#This Row],[2024/25 From - Other reallocations]]","v":0},{"$f":"Dataset[[#This Row],[2025/26 From - Spending review Topic 1]]+Dataset[[#This Row],[2025/26 From - Spending review Topic 2]]+Dataset[[#This Row],[2025/26 From - Spending review Topic 3]]+Dataset[[#This Row],[2025/26 From - Spending review Topic 4]]+Dataset[[#This Row],[2025/26 From - Other reallocations]]","v":0},{"$f":"Dataset[[#This Row],[2023/24 To - Spending review Topic 1]]+Dataset[[#This Row],[2023/24 To - Spending review Topic 2]]+Dataset[[#This Row],[2023/24 To - Spending review Topic 3]]+Dataset[[#This Row],[2023/24 To - Spending review Topic 4]]+Dataset[[#This Row],[2023/24 To - Other reallocations]]","v":0},{"$f":"Dataset[[#This Row],[2024/25 To - Spending review Topic 1]]+Dataset[[#This Row],[2024/25 To - Spending review Topic 2]]+Dataset[[#This Row],[2024/25 To - Spending review Topic 3]]+Dataset[[#This Row],[2024/25 To - Spending review Topic 4]]+Dataset[[#This Row],[2024/25 To - Other reallocations]]","v":0},{"$f":"Dataset[[#This Row],[2025/26 To - Spending review Topic 1]]+Dataset[[#This Row],[2025/26 To - Spending review Topic 2]]+Dataset[[#This Row],[2025/26 To - Spending review Topic 3]]+Dataset[[#This Row],[2025/26 To - Spending review Topic 4]]+Dataset[[#This Row],[2025/26 To - Other reallocations]]","v":0},{"$f":"Dataset[[#This Row],[2023/24 Baseline]]+Dataset[[#This Row],[2023/24 From - Total]]+Dataset[[#This Row],[2023/24 To - Total]]","v":0},{"$f":"Dataset[[#This Row],[2024/25 Baseline]]+Dataset[[#This Row],[2024/25 From - Total]]+Dataset[[#This Row],[2024/25 To - Total]]","v":0},{"$f":"Dataset[[#This Row],[2025/26 Baseline]]+Dataset[[#This Row],[2025/26 From - Total]]+Dataset[[#This Row],[2025/26 To - Total]]","v":0}]
["NAT|Non-transfer item","2|Property payments","2023_24","MTEF2023",2,16,1,1347,730,"02","16","01","001347","000730","02|16|01",1,1,2,35,35,"01|01|02|35|35","National","Parliament","Direct charge against the National Revenue Fund","Members' Remuneration","Non-transfer item","Current","Current payments","Goods and services","Property payments","Property payments","General public services","Executive and legislative organs","NAT",0,0,0,0,0,0,0,0,0,0,0,null,null,null,null,null,null,null,null,null,null,null,null,null,null,null,null,null,null,null,null,null,null,null,null,null,null,null,null,null,null,{"$f":"Dataset[[#This Row],[2023/24 From - Spending review Topic 1]]+Dataset[[#This Row],[2023/24 From - Spending review Topic 2]]+Dataset[[#This Row],[2023/24 From - Spending review Topic 3]]+Dataset[[#This Row],[2023/24 From - Spending review Topic 4]]+Dataset[[#This Row],[2023/24 From - Other reallocations]]","v":0},{"$f":"Dataset[[#This Row],[2024/25 From - Spending review Topic 1]]+Dataset[[#This Row],[2024/25 From - Spending review Topic 2]]+Dataset[[#This Row],[2024/25 From - Spending review Topic 3]]+Dataset[[#This Row],[2024/25 From - Spending review Topic 4]]+Dataset[[#This Row],[2024/25 From - Other reallocations]]","v":0},{"$f":"Dataset[[#This Row],[2025/26 From - Spending review Topic 1]]+Dataset[[#This Row],[2025/26 From - Spending review Topic 2]]+Dataset[[#This Row],[2025/26 From - Spending review Topic 3]]+Dataset[[#This Row],[2025/26 From - Spending review Topic 4]]+Dataset[[#This Row],[2025/26 From - Other reallocations]]","v":0},{"$f":"Dataset[[#This Row],[2023/24 To - Spending review Topic 1]]+Dataset[[#This Row],[2023/24 To - Spending review Topic 2]]+Dataset[[#This Row],[2023/24 To - Spending review Topic 3]]+Dataset[[#This Row],[2023/24 To - Spending review Topic 4]]+Dataset[[#This Row],[2023/24 To - Other reallocations]]","v":0},{"$f":"Dataset[[#This Row],[2024/25 To - Spending review Topic 1]]+Dataset[[#This Row],[2024/25 To - Spending review Topic 2]]+Dataset[[#This Row],[2024/25 To - Spending review Topic 3]]+Dataset[[#This Row],[2024/25 To - Spending review Topic 4]]+Dataset[[#This Row],[2024/25 To - Other reallocations]]","v":0},{"$f":"Dataset[[#This Row],[2025/26 To - Spending review Topic 1]]+Dataset[[#This Row],[2025/26 To - Spending review Topic 2]]+Dataset[[#This Row],[2025/26 To - Spending review Topic 3]]+Dataset[[#This Row],[2025/26 To - Spending review Topic 4]]+Dataset[[#This Row],[2025/26 To - Other reallocations]]","v":0},{"$f":"Dataset[[#This Row],[2023/24 Baseline]]+Dataset[[#This Row],[2023/24 From - Total]]+Dataset[[#This Row],[2023/24 To - Total]]","v":0},{"$f":"Dataset[[#This Row],[2024/25 Baseline]]+Dataset[[#This Row],[2024/25 From - Total]]+Dataset[[#This Row],[2024/25 To - Total]]","v":0},{"$f":"Dataset[[#This Row],[2025/26 Baseline]]+Dataset[[#This Row],[2025/26 From - Total]]+Dataset[[#This Row],[2025/26 To - Total]]","v":0}]
["NAT|Non-transfer item","2|Transport provided: Departmental activity","2023_24","MTEF2023",2,16,1,1348,731,"02","16","01","001348","000731","02|16|01",1,1,2,36,36,"01|01|02|36|36","National","Parliament","Direct charge against the National Revenue Fund","Members' Remuneration","Non-transfer item","Current","Current payments","Goods and services","Transport provided: Departmental activity","Transport provided: Departmental activity","General public services","Executive and legislative organs","NAT",0,0,0,0,0,0,0,0,0,0,0,null,null,null,null,null,null,null,null,null,null,null,null,null,null,null,null,null,null,null,null,null,null,null,null,null,null,null,null,null,null,{"$f":"Dataset[[#This Row],[2023/24 From - Spending review Topic 1]]+Dataset[[#This Row],[2023/24 From - Spending review Topic 2]]+Dataset[[#This Row],[2023/24 From - Spending review Topic 3]]+Dataset[[#This Row],[2023/24 From - Spending review Topic 4]]+Dataset[[#This Row],[2023/24 From - Other reallocations]]","v":0},{"$f":"Dataset[[#This Row],[2024/25 From - Spending review Topic 1]]+Dataset[[#This Row],[2024/25 From - Spending review Topic 2]]+Dataset[[#This Row],[2024/25 From - Spending review Topic 3]]+Dataset[[#This Row],[2024/25 From - Spending review Topic 4]]+Dataset[[#This Row],[2024/25 From - Other reallocations]]","v":0},{"$f":"Dataset[[#This Row],[2025/26 From - Spending review Topic 1]]+Dataset[[#This Row],[2025/26 From - Spending review Topic 2]]+Dataset[[#This Row],[2025/26 From - Spending review Topic 3]]+Dataset[[#This Row],[2025/26 From - Spending review Topic 4]]+Dataset[[#This Row],[2025/26 From - Other reallocations]]","v":0},{"$f":"Dataset[[#This Row],[2023/24 To - Spending review Topic 1]]+Dataset[[#This Row],[2023/24 To - Spending review Topic 2]]+Dataset[[#This Row],[2023/24 To - Spending review Topic 3]]+Dataset[[#This Row],[2023/24 To - Spending review Topic 4]]+Dataset[[#This Row],[2023/24 To - Other reallocations]]","v":0},{"$f":"Dataset[[#This Row],[2024/25 To - Spending review Topic 1]]+Dataset[[#This Row],[2024/25 To - Spending review Topic 2]]+Dataset[[#This Row],[2024/25 To - Spending review Topic 3]]+Dataset[[#This Row],[2024/25 To - Spending review Topic 4]]+Dataset[[#This Row],[2024/25 To - Other reallocations]]","v":0},{"$f":"Dataset[[#This Row],[2025/26 To - Spending review Topic 1]]+Dataset[[#This Row],[2025/26 To - Spending review Topic 2]]+Dataset[[#This Row],[2025/26 To - Spending review Topic 3]]+Dataset[[#This Row],[2025/26 To - Spending review Topic 4]]+Dataset[[#This Row],[2025/26 To - Other reallocations]]","v":0},{"$f":"Dataset[[#This Row],[2023/24 Baseline]]+Dataset[[#This Row],[2023/24 From - Total]]+Dataset[[#This Row],[2023/24 To - Total]]","v":0},{"$f":"Dataset[[#This Row],[2024/25 Baseline]]+Dataset[[#This Row],[2024/25 From - Total]]+Dataset[[#This Row],[2024/25 To - Total]]","v":0},{"$f":"Dataset[[#This Row],[2025/26 Baseline]]+Dataset[[#This Row],[2025/26 From - Total]]+Dataset[[#This Row],[2025/26 To - Total]]","v":0}]
["NAT|Non-transfer item","2|Travel and subsistence","2023_24","MTEF2023",2,16,1,1349,732,"02","16","01","001349","000732","02|16|01",1,1,2,37,37,"01|01|02|37|37","National","Parliament","Direct charge against the National Revenue Fund","Members' Remuneration","Non-transfer item","Current","Current payments","Goods and services","Travel and subsistence","Travel and subsistence","General public services","Executive and legislative organs","NAT",0,0,0,0,0,0,0,0,0,0,0,null,null,null,null,null,null,null,null,null,null,null,null,null,null,null,null,null,null,null,null,null,null,null,null,null,null,null,null,null,null,{"$f":"Dataset[[#This Row],[2023/24 From - Spending review Topic 1]]+Dataset[[#This Row],[2023/24 From - Spending review Topic 2]]+Dataset[[#This Row],[2023/24 From - Spending review Topic 3]]+Dataset[[#This Row],[2023/24 From - Spending review Topic 4]]+Dataset[[#This Row],[2023/24 From - Other reallocations]]","v":0},{"$f":"Dataset[[#This Row],[2024/25 From - Spending review Topic 1]]+Dataset[[#This Row],[2024/25 From - Spending review Topic 2]]+Dataset[[#This Row],[2024/25 From - Spending review Topic 3]]+Dataset[[#This Row],[2024/25 From - Spending review Topic 4]]+Dataset[[#This Row],[2024/25 From - Other reallocations]]","v":0},{"$f":"Dataset[[#This Row],[2025/26 From - Spending review Topic 1]]+Dataset[[#This Row],[2025/26 From - Spending review Topic 2]]+Dataset[[#This Row],[2025/26 From - Spending review Topic 3]]+Dataset[[#This Row],[2025/26 From - Spending review Topic 4]]+Dataset[[#This Row],[2025/26 From - Other reallocations]]","v":0},{"$f":"Dataset[[#This Row],[2023/24 To - Spending review Topic 1]]+Dataset[[#This Row],[2023/24 To - Spending review Topic 2]]+Dataset[[#This Row],[2023/24 To - Spending review Topic 3]]+Dataset[[#This Row],[2023/24 To - Spending review Topic 4]]+Dataset[[#This Row],[2023/24 To - Other reallocations]]","v":0},{"$f":"Dataset[[#This Row],[2024/25 To - Spending review Topic 1]]+Dataset[[#This Row],[2024/25 To - Spending review Topic 2]]+Dataset[[#This Row],[2024/25 To - Spending review Topic 3]]+Dataset[[#This Row],[2024/25 To - Spending review Topic 4]]+Dataset[[#This Row],[2024/25 To - Other reallocations]]","v":0},{"$f":"Dataset[[#This Row],[2025/26 To - Spending review Topic 1]]+Dataset[[#This Row],[2025/26 To - Spending review Topic 2]]+Dataset[[#This Row],[2025/26 To - Spending review Topic 3]]+Dataset[[#This Row],[2025/26 To - Spending review Topic 4]]+Dataset[[#This Row],[2025/26 To - Other reallocations]]","v":0},{"$f":"Dataset[[#This Row],[2023/24 Baseline]]+Dataset[[#This Row],[2023/24 From - Total]]+Dataset[[#This Row],[2023/24 To - Total]]","v":0},{"$f":"Dataset[[#This Row],[2024/25 Baseline]]+Dataset[[#This Row],[2024/25 From - Total]]+Dataset[[#This Row],[2024/25 To - Total]]","v":0},{"$f":"Dataset[[#This Row],[2025/26 Baseline]]+Dataset[[#This Row],[2025/26 From - Total]]+Dataset[[#This Row],[2025/26 To - Total]]","v":0}]
["NAT|Non-transfer item","2|Training and development","2023_24","MTEF2023",2,16,1,1350,733,"02","16","01","001350","000733","02|16|01",1,1,2,38,38,"01|01|02|38|38","National","Parliament","Direct charge against the National Revenue Fund","Members' Remuneration","Non-transfer item","Current","Current payments","Goods and services","Training and development","Training and development","General public services","Executive and legislative organs","NAT",0,0,0,0,0,0,0,0,0,0,0,null,null,null,null,null,null,null,null,null,null,null,null,null,null,null,null,null,null,null,null,null,null,null,null,null,null,null,null,null,null,{"$f":"Dataset[[#This Row],[2023/24 From - Spending review Topic 1]]+Dataset[[#This Row],[2023/24 From - Spending review Topic 2]]+Dataset[[#This Row],[2023/24 From - Spending review Topic 3]]+Dataset[[#This Row],[2023/24 From - Spending review Topic 4]]+Dataset[[#This Row],[2023/24 From - Other reallocations]]","v":0},{"$f":"Dataset[[#This Row],[2024/25 From - Spending review Topic 1]]+Dataset[[#This Row],[2024/25 From - Spending review Topic 2]]+Dataset[[#This Row],[2024/25 From - Spending review Topic 3]]+Dataset[[#This Row],[2024/25 From - Spending review Topic 4]]+Dataset[[#This Row],[2024/25 From - Other reallocations]]","v":0},{"$f":"Dataset[[#This Row],[2025/26 From - Spending review Topic 1]]+Dataset[[#This Row],[2025/26 From - Spending review Topic 2]]+Dataset[[#This Row],[2025/26 From - Spending review Topic 3]]+Dataset[[#This Row],[2025/26 From - Spending review Topic 4]]+Dataset[[#This Row],[2025/26 From - Other reallocations]]","v":0},{"$f":"Dataset[[#This Row],[2023/24 To - Spending review Topic 1]]+Dataset[[#This Row],[2023/24 To - Spending review Topic 2]]+Dataset[[#This Row],[2023/24 To - Spending review Topic 3]]+Dataset[[#This Row],[2023/24 To - Spending review Topic 4]]+Dataset[[#This Row],[2023/24 To - Other reallocations]]","v":0},{"$f":"Dataset[[#This Row],[2024/25 To - Spending review Topic 1]]+Dataset[[#This Row],[2024/25 To - Spending review Topic 2]]+Dataset[[#This Row],[2024/25 To - Spending review Topic 3]]+Dataset[[#This Row],[2024/25 To - Spending review Topic 4]]+Dataset[[#This Row],[2024/25 To - Other reallocations]]","v":0},{"$f":"Dataset[[#This Row],[2025/26 To - Spending review Topic 1]]+Dataset[[#This Row],[2025/26 To - Spending review Topic 2]]+Dataset[[#This Row],[2025/26 To - Spending review Topic 3]]+Dataset[[#This Row],[2025/26 To - Spending review Topic 4]]+Dataset[[#This Row],[2025/26 To - Other reallocations]]","v":0},{"$f":"Dataset[[#This Row],[2023/24 Baseline]]+Dataset[[#This Row],[2023/24 From - Total]]+Dataset[[#This Row],[2023/24 To - Total]]","v":0},{"$f":"Dataset[[#This Row],[2024/25 Baseline]]+Dataset[[#This Row],[2024/25 From - Total]]+Dataset[[#This Row],[2024/25 To - Total]]","v":0},{"$f":"Dataset[[#This Row],[2025/26 Baseline]]+Dataset[[#This Row],[2025/26 From - Total]]+Dataset[[#This Row],[2025/26 To - Total]]","v":0}]
["NAT|Non-transfer item","2|Operating payments","2023_24","MTEF2023",2,16,1,1351,734,"02","16","01","001351","000734","02|16|01",1,1,2,39,39,"01|01|02|39|39","National","Parliament","Direct charge against the National Revenue Fund","Members' Remuneration","Non-transfer item","Current","Current payments","Goods and services","Operating payments","Operating payments","General public services","Executive and legislative organs","NAT",0,0,0,0,0,0,0,0,0,0,0,null,null,null,null,null,null,null,null,null,null,null,null,null,null,null,null,null,null,null,null,null,null,null,null,null,null,null,null,null,null,{"$f":"Dataset[[#This Row],[2023/24 From - Spending review Topic 1]]+Dataset[[#This Row],[2023/24 From - Spending review Topic 2]]+Dataset[[#This Row],[2023/24 From - Spending review Topic 3]]+Dataset[[#This Row],[2023/24 From - Spending review Topic 4]]+Dataset[[#This Row],[2023/24 From - Other reallocations]]","v":0},{"$f":"Dataset[[#This Row],[2024/25 From - Spending review Topic 1]]+Dataset[[#This Row],[2024/25 From - Spending review Topic 2]]+Dataset[[#This Row],[2024/25 From - Spending review Topic 3]]+Dataset[[#This Row],[2024/25 From - Spending review Topic 4]]+Dataset[[#This Row],[2024/25 From - Other reallocations]]","v":0},{"$f":"Dataset[[#This Row],[2025/26 From - Spending review Topic 1]]+Dataset[[#This Row],[2025/26 From - Spending review Topic 2]]+Dataset[[#This Row],[2025/26 From - Spending review Topic 3]]+Dataset[[#This Row],[2025/26 From - Spending review Topic 4]]+Dataset[[#This Row],[2025/26 From - Other reallocations]]","v":0},{"$f":"Dataset[[#This Row],[2023/24 To - Spending review Topic 1]]+Dataset[[#This Row],[2023/24 To - Spending review Topic 2]]+Dataset[[#This Row],[2023/24 To - Spending review Topic 3]]+Dataset[[#This Row],[2023/24 To - Spending review Topic 4]]+Dataset[[#This Row],[2023/24 To - Other reallocations]]","v":0},{"$f":"Dataset[[#This Row],[2024/25 To - Spending review Topic 1]]+Dataset[[#This Row],[2024/25 To - Spending review Topic 2]]+Dataset[[#This Row],[2024/25 To - Spending review Topic 3]]+Dataset[[#This Row],[2024/25 To - Spending review Topic 4]]+Dataset[[#This Row],[2024/25 To - Other reallocations]]","v":0},{"$f":"Dataset[[#This Row],[2025/26 To - Spending review Topic 1]]+Dataset[[#This Row],[2025/26 To - Spending review Topic 2]]+Dataset[[#This Row],[2025/26 To - Spending review Topic 3]]+Dataset[[#This Row],[2025/26 To - Spending review Topic 4]]+Dataset[[#This Row],[2025/26 To - Other reallocations]]","v":0},{"$f":"Dataset[[#This Row],[2023/24 Baseline]]+Dataset[[#This Row],[2023/24 From - Total]]+Dataset[[#This Row],[2023/24 To - Total]]","v":0},{"$f":"Dataset[[#This Row],[2024/25 Baseline]]+Dataset[[#This Row],[2024/25 From - Total]]+Dataset[[#This Row],[2024/25 To - Total]]","v":0},{"$f":"Dataset[[#This Row],[2025/26 Baseline]]+Dataset[[#This Row],[2025/26 From - Total]]+Dataset[[#This Row],[2025/26 To - Total]]","v":0}]
["NAT|Non-transfer item","2|Venues and facilities","2023_24","MTEF2023",2,16,1,1352,735,"02","16","01","001352","000735","02|16|01",1,1,2,40,40,"01|01|02|40|40","National","Parliament","Direct charge against the National Revenue Fund","Members' Remuneration","Non-transfer item","Current","Current payments","Goods and services","Venues and facilities","Venues and facilities","General public services","Executive and legislative organs","NAT",0,0,0,0,0,0,0,0,0,0,0,null,null,null,null,null,null,null,null,null,null,null,null,null,null,null,null,null,null,null,null,null,null,null,null,null,null,null,null,null,null,{"$f":"Dataset[[#This Row],[2023/24 From - Spending review Topic 1]]+Dataset[[#This Row],[2023/24 From - Spending review Topic 2]]+Dataset[[#This Row],[2023/24 From - Spending review Topic 3]]+Dataset[[#This Row],[2023/24 From - Spending review Topic 4]]+Dataset[[#This Row],[2023/24 From - Other reallocations]]","v":0},{"$f":"Dataset[[#This Row],[2024/25 From - Spending review Topic 1]]+Dataset[[#This Row],[2024/25 From - Spending review Topic 2]]+Dataset[[#This Row],[2024/25 From - Spending review Topic 3]]+Dataset[[#This Row],[2024/25 From - Spending review Topic 4]]+Dataset[[#This Row],[2024/25 From - Other reallocations]]","v":0},{"$f":"Dataset[[#This Row],[2025/26 From - Spending review Topic 1]]+Dataset[[#This Row],[2025/26 From - Spending review Topic 2]]+Dataset[[#This Row],[2025/26 From - Spending review Topic 3]]+Dataset[[#This Row],[2025/26 From - Spending review Topic 4]]+Dataset[[#This Row],[2025/26 From - Other reallocations]]","v":0},{"$f":"Dataset[[#This Row],[2023/24 To - Spending review Topic 1]]+Dataset[[#This Row],[2023/24 To - Spending review Topic 2]]+Dataset[[#This Row],[2023/24 To - Spending review Topic 3]]+Dataset[[#This Row],[2023/24 To - Spending review Topic 4]]+Dataset[[#This Row],[2023/24 To - Other reallocations]]","v":0},{"$f":"Dataset[[#This Row],[2024/25 To - Spending review Topic 1]]+Dataset[[#This Row],[2024/25 To - Spending review Topic 2]]+Dataset[[#This Row],[2024/25 To - Spending review Topic 3]]+Dataset[[#This Row],[2024/25 To - Spending review Topic 4]]+Dataset[[#This Row],[2024/25 To - Other reallocations]]","v":0},{"$f":"Dataset[[#This Row],[2025/26 To - Spending review Topic 1]]+Dataset[[#This Row],[2025/26 To - Spending review Topic 2]]+Dataset[[#This Row],[2025/26 To - Spending review Topic 3]]+Dataset[[#This Row],[2025/26 To - Spending review Topic 4]]+Dataset[[#This Row],[2025/26 To - Other reallocations]]","v":0},{"$f":"Dataset[[#This Row],[2023/24 Baseline]]+Dataset[[#This Row],[2023/24 From - Total]]+Dataset[[#This Row],[2023/24 To - Total]]","v":0},{"$f":"Dataset[[#This Row],[2024/25 Baseline]]+Dataset[[#This Row],[2024/25 From - Total]]+Dataset[[#This Row],[2024/25 To - Total]]","v":0},{"$f":"Dataset[[#This Row],[2025/26 Baseline]]+Dataset[[#This Row],[2025/26 From - Total]]+Dataset[[#This Row],[2025/26 To - Total]]","v":0}]
["NAT|Non-transfer item","2|Interest (Incl. interest on unitary payments (PPP))","2023_24","MTEF2023",2,16,1,1353,736,"02","16","01","001353","000736","02|16|01",1,1,3,41,41,"01|01|03|41|41","National","Parliament","Direct charge against the National Revenue Fund","Members' Remuneration","Non-transfer item","Current","Current payments","Interest and rent on land","Interest (Incl. interest on unitary payments (PPP))","Interest (Incl. interest on unitary payments (PPP))","General public services","Executive and legislative organs","NAT",0,0,0,0,0,0,0,0,0,0,0,null,null,null,null,null,null,null,null,null,null,null,null,null,null,null,null,null,null,null,null,null,null,null,null,null,null,null,null,null,null,{"$f":"Dataset[[#This Row],[2023/24 From - Spending review Topic 1]]+Dataset[[#This Row],[2023/24 From - Spending review Topic 2]]+Dataset[[#This Row],[2023/24 From - Spending review Topic 3]]+Dataset[[#This Row],[2023/24 From - Spending review Topic 4]]+Dataset[[#This Row],[2023/24 From - Other reallocations]]","v":0},{"$f":"Dataset[[#This Row],[2024/25 From - Spending review Topic 1]]+Dataset[[#This Row],[2024/25 From - Spending review Topic 2]]+Dataset[[#This Row],[2024/25 From - Spending review Topic 3]]+Dataset[[#This Row],[2024/25 From - Spending review Topic 4]]+Dataset[[#This Row],[2024/25 From - Other reallocations]]","v":0},{"$f":"Dataset[[#This Row],[2025/26 From - Spending review Topic 1]]+Dataset[[#This Row],[2025/26 From - Spending review Topic 2]]+Dataset[[#This Row],[2025/26 From - Spending review Topic 3]]+Dataset[[#This Row],[2025/26 From - Spending review Topic 4]]+Dataset[[#This Row],[2025/26 From - Other reallocations]]","v":0},{"$f":"Dataset[[#This Row],[2023/24 To - Spending review Topic 1]]+Dataset[[#This Row],[2023/24 To - Spending review Topic 2]]+Dataset[[#This Row],[2023/24 To - Spending review Topic 3]]+Dataset[[#This Row],[2023/24 To - Spending review Topic 4]]+Dataset[[#This Row],[2023/24 To - Other reallocations]]","v":0},{"$f":"Dataset[[#This Row],[2024/25 To - Spending review Topic 1]]+Dataset[[#This Row],[2024/25 To - Spending review Topic 2]]+Dataset[[#This Row],[2024/25 To - Spending review Topic 3]]+Dataset[[#This Row],[2024/25 To - Spending review Topic 4]]+Dataset[[#This Row],[2024/25 To - Other reallocations]]","v":0},{"$f":"Dataset[[#This Row],[2025/26 To - Spending review Topic 1]]+Dataset[[#This Row],[2025/26 To - Spending review Topic 2]]+Dataset[[#This Row],[2025/26 To - Spending review Topic 3]]+Dataset[[#This Row],[2025/26 To - Spending review Topic 4]]+Dataset[[#This Row],[2025/26 To - Other reallocations]]","v":0},{"$f":"Dataset[[#This Row],[2023/24 Baseline]]+Dataset[[#This Row],[2023/24 From - Total]]+Dataset[[#This Row],[2023/24 To - Total]]","v":0},{"$f":"Dataset[[#This Row],[2024/25 Baseline]]+Dataset[[#This Row],[2024/25 From - Total]]+Dataset[[#This Row],[2024/25 To - Total]]","v":0},{"$f":"Dataset[[#This Row],[2025/26 Baseline]]+Dataset[[#This Row],[2025/26 From - Total]]+Dataset[[#This Row],[2025/26 To - Total]]","v":0}]
["NAT|Non-transfer item","2|Rent on land","2023_24","MTEF2023",2,16,1,1354,737,"02","16","01","001354","000737","02|16|01",1,1,3,42,42,"01|01|03|42|42","National","Parliament","Direct charge against the National Revenue Fund","Members' Remuneration","Non-transfer item","Current","Current payments","Interest and rent on land","Rent on land","Rent on land","General public services","Executive and legislative organs","NAT",0,0,0,0,0,0,0,0,0,0,0,null,null,null,null,null,null,null,null,null,null,null,null,null,null,null,null,null,null,null,null,null,null,null,null,null,null,null,null,null,null,{"$f":"Dataset[[#This Row],[2023/24 From - Spending review Topic 1]]+Dataset[[#This Row],[2023/24 From - Spending review Topic 2]]+Dataset[[#This Row],[2023/24 From - Spending review Topic 3]]+Dataset[[#This Row],[2023/24 From - Spending review Topic 4]]+Dataset[[#This Row],[2023/24 From - Other reallocations]]","v":0},{"$f":"Dataset[[#This Row],[2024/25 From - Spending review Topic 1]]+Dataset[[#This Row],[2024/25 From - Spending review Topic 2]]+Dataset[[#This Row],[2024/25 From - Spending review Topic 3]]+Dataset[[#This Row],[2024/25 From - Spending review Topic 4]]+Dataset[[#This Row],[2024/25 From - Other reallocations]]","v":0},{"$f":"Dataset[[#This Row],[2025/26 From - Spending review Topic 1]]+Dataset[[#This Row],[2025/26 From - Spending review Topic 2]]+Dataset[[#This Row],[2025/26 From - Spending review Topic 3]]+Dataset[[#This Row],[2025/26 From - Spending review Topic 4]]+Dataset[[#This Row],[2025/26 From - Other reallocations]]","v":0},{"$f":"Dataset[[#This Row],[2023/24 To - Spending review Topic 1]]+Dataset[[#This Row],[2023/24 To - Spending review Topic 2]]+Dataset[[#This Row],[2023/24 To - Spending review Topic 3]]+Dataset[[#This Row],[2023/24 To - Spending review Topic 4]]+Dataset[[#This Row],[2023/24 To - Other reallocations]]","v":0},{"$f":"Dataset[[#This Row],[2024/25 To - Spending review Topic 1]]+Dataset[[#This Row],[2024/25 To - Spending review Topic 2]]+Dataset[[#This Row],[2024/25 To - Spending review Topic 3]]+Dataset[[#This Row],[2024/25 To - Spending review Topic 4]]+Dataset[[#This Row],[2024/25 To - Other reallocations]]","v":0},{"$f":"Dataset[[#This Row],[2025/26 To - Spending review Topic 1]]+Dataset[[#This Row],[2025/26 To - Spending review Topic 2]]+Dataset[[#This Row],[2025/26 To - Spending review Topic 3]]+Dataset[[#This Row],[2025/26 To - Spending review Topic 4]]+Dataset[[#This Row],[2025/26 To - Other reallocations]]","v":0},{"$f":"Dataset[[#This Row],[2023/24 Baseline]]+Dataset[[#This Row],[2023/24 From - Total]]+Dataset[[#This Row],[2023/24 To - Total]]","v":0},{"$f":"Dataset[[#This Row],[2024/25 Baseline]]+Dataset[[#This Row],[2024/25 From - Total]]+Dataset[[#This Row],[2024/25 To - Total]]","v":0},{"$f":"Dataset[[#This Row],[2025/26 Baseline]]+Dataset[[#This Row],[2025/26 From - Total]]+Dataset[[#This Row],[2025/26 To - Total]]","v":0}]
["NAT|Non-transfer item","2|Provincial Revenue Funds","2023_24","MTEF2023",2,16,1,1355,738,"02","16","01","001355","000738","02|16|01",1,2,4,43,43,"01|02|04|43|43","National","Parliament","Direct charge against the National Revenue Fund","Members' Remuneration","Non-transfer item","Current","Transfers and subsidies","Provinces and municipalities","Provinces","Provincial Revenue Funds","General public services","Executive and legislative organs","NAT",0,0,0,0,0,0,0,0,0,0,0,null,null,null,null,null,null,null,null,null,null,null,null,null,null,null,null,null,null,null,null,null,null,null,null,null,null,null,null,null,null,{"$f":"Dataset[[#This Row],[2023/24 From - Spending review Topic 1]]+Dataset[[#This Row],[2023/24 From - Spending review Topic 2]]+Dataset[[#This Row],[2023/24 From - Spending review Topic 3]]+Dataset[[#This Row],[2023/24 From - Spending review Topic 4]]+Dataset[[#This Row],[2023/24 From - Other reallocations]]","v":0},{"$f":"Dataset[[#This Row],[2024/25 From - Spending review Topic 1]]+Dataset[[#This Row],[2024/25 From - Spending review Topic 2]]+Dataset[[#This Row],[2024/25 From - Spending review Topic 3]]+Dataset[[#This Row],[2024/25 From - Spending review Topic 4]]+Dataset[[#This Row],[2024/25 From - Other reallocations]]","v":0},{"$f":"Dataset[[#This Row],[2025/26 From - Spending review Topic 1]]+Dataset[[#This Row],[2025/26 From - Spending review Topic 2]]+Dataset[[#This Row],[2025/26 From - Spending review Topic 3]]+Dataset[[#This Row],[2025/26 From - Spending review Topic 4]]+Dataset[[#This Row],[2025/26 From - Other reallocations]]","v":0},{"$f":"Dataset[[#This Row],[2023/24 To - Spending review Topic 1]]+Dataset[[#This Row],[2023/24 To - Spending review Topic 2]]+Dataset[[#This Row],[2023/24 To - Spending review Topic 3]]+Dataset[[#This Row],[2023/24 To - Spending review Topic 4]]+Dataset[[#This Row],[2023/24 To - Other reallocations]]","v":0},{"$f":"Dataset[[#This Row],[2024/25 To - Spending review Topic 1]]+Dataset[[#This Row],[2024/25 To - Spending review Topic 2]]+Dataset[[#This Row],[2024/25 To - Spending review Topic 3]]+Dataset[[#This Row],[2024/25 To - Spending review Topic 4]]+Dataset[[#This Row],[2024/25 To - Other reallocations]]","v":0},{"$f":"Dataset[[#This Row],[2025/26 To - Spending review Topic 1]]+Dataset[[#This Row],[2025/26 To - Spending review Topic 2]]+Dataset[[#This Row],[2025/26 To - Spending review Topic 3]]+Dataset[[#This Row],[2025/26 To - Spending review Topic 4]]+Dataset[[#This Row],[2025/26 To - Other reallocations]]","v":0},{"$f":"Dataset[[#This Row],[2023/24 Baseline]]+Dataset[[#This Row],[2023/24 From - Total]]+Dataset[[#This Row],[2023/24 To - Total]]","v":0},{"$f":"Dataset[[#This Row],[2024/25 Baseline]]+Dataset[[#This Row],[2024/25 From - Total]]+Dataset[[#This Row],[2024/25 To - Total]]","v":0},{"$f":"Dataset[[#This Row],[2025/26 Baseline]]+Dataset[[#This Row],[2025/26 From - Total]]+Dataset[[#This Row],[2025/26 To - Total]]","v":0}]
["NAT|Non-transfer item","2|Provincial agencies and funds","2023_24","MTEF2023",2,16,1,1356,739,"02","16","01","001356","000739","02|16|01",1,2,4,43,44,"01|02|04|43|44","National","Parliament","Direct charge against the National Revenue Fund","Members' Remuneration","Non-transfer item","Current","Transfers and subsidies","Provinces and municipalities","Provinces","Provincial agencies and funds","General public services","Executive and legislative organs","NAT",0,0,0,0,0,0,0,0,0,0,0,null,null,null,null,null,null,null,null,null,null,null,null,null,null,null,null,null,null,null,null,null,null,null,null,null,null,null,null,null,null,{"$f":"Dataset[[#This Row],[2023/24 From - Spending review Topic 1]]+Dataset[[#This Row],[2023/24 From - Spending review Topic 2]]+Dataset[[#This Row],[2023/24 From - Spending review Topic 3]]+Dataset[[#This Row],[2023/24 From - Spending review Topic 4]]+Dataset[[#This Row],[2023/24 From - Other reallocations]]","v":0},{"$f":"Dataset[[#This Row],[2024/25 From - Spending review Topic 1]]+Dataset[[#This Row],[2024/25 From - Spending review Topic 2]]+Dataset[[#This Row],[2024/25 From - Spending review Topic 3]]+Dataset[[#This Row],[2024/25 From - Spending review Topic 4]]+Dataset[[#This Row],[2024/25 From - Other reallocations]]","v":0},{"$f":"Dataset[[#This Row],[2025/26 From - Spending review Topic 1]]+Dataset[[#This Row],[2025/26 From - Spending review Topic 2]]+Dataset[[#This Row],[2025/26 From - Spending review Topic 3]]+Dataset[[#This Row],[2025/26 From - Spending review Topic 4]]+Dataset[[#This Row],[2025/26 From - Other reallocations]]","v":0},{"$f":"Dataset[[#This Row],[2023/24 To - Spending review Topic 1]]+Dataset[[#This Row],[2023/24 To - Spending review Topic 2]]+Dataset[[#This Row],[2023/24 To - Spending review Topic 3]]+Dataset[[#This Row],[2023/24 To - Spending review Topic 4]]+Dataset[[#This Row],[2023/24 To - Other reallocations]]","v":0},{"$f":"Dataset[[#This Row],[2024/25 To - Spending review Topic 1]]+Dataset[[#This Row],[2024/25 To - Spending review Topic 2]]+Dataset[[#This Row],[2024/25 To - Spending review Topic 3]]+Dataset[[#This Row],[2024/25 To - Spending review Topic 4]]+Dataset[[#This Row],[2024/25 To - Other reallocations]]","v":0},{"$f":"Dataset[[#This Row],[2025/26 To - Spending review Topic 1]]+Dataset[[#This Row],[2025/26 To - Spending review Topic 2]]+Dataset[[#This Row],[2025/26 To - Spending review Topic 3]]+Dataset[[#This Row],[2025/26 To - Spending review Topic 4]]+Dataset[[#This Row],[2025/26 To - Other reallocations]]","v":0},{"$f":"Dataset[[#This Row],[2023/24 Baseline]]+Dataset[[#This Row],[2023/24 From - Total]]+Dataset[[#This Row],[2023/24 To - Total]]","v":0},{"$f":"Dataset[[#This Row],[2024/25 Baseline]]+Dataset[[#This Row],[2024/25 From - Total]]+Dataset[[#This Row],[2024/25 To - Total]]","v":0},{"$f":"Dataset[[#This Row],[2025/26 Baseline]]+Dataset[[#This Row],[2025/26 From - Total]]+Dataset[[#This Row],[2025/26 To - Total]]","v":0}]
["NAT|Non-transfer item","2|Municipal bank accounts","2023_24","MTEF2023",2,16,1,1357,740,"02","16","01","001357","000740","02|16|01",1,2,4,44,45,"01|02|04|44|45","National","Parliament","Direct charge against the National Revenue Fund","Members' Remuneration","Non-transfer item","Current","Transfers and subsidies","Provinces and municipalities","Municipalities","Municipal bank accounts","General public services","Executive and legislative organs","NAT",0,0,0,0,0,0,0,0,0,0,0,null,null,null,null,null,null,null,null,null,null,null,null,null,null,null,null,null,null,null,null,null,null,null,null,null,null,null,null,null,null,{"$f":"Dataset[[#This Row],[2023/24 From - Spending review Topic 1]]+Dataset[[#This Row],[2023/24 From - Spending review Topic 2]]+Dataset[[#This Row],[2023/24 From - Spending review Topic 3]]+Dataset[[#This Row],[2023/24 From - Spending review Topic 4]]+Dataset[[#This Row],[2023/24 From - Other reallocations]]","v":0},{"$f":"Dataset[[#This Row],[2024/25 From - Spending review Topic 1]]+Dataset[[#This Row],[2024/25 From - Spending review Topic 2]]+Dataset[[#This Row],[2024/25 From - Spending review Topic 3]]+Dataset[[#This Row],[2024/25 From - Spending review Topic 4]]+Dataset[[#This Row],[2024/25 From - Other reallocations]]","v":0},{"$f":"Dataset[[#This Row],[2025/26 From - Spending review Topic 1]]+Dataset[[#This Row],[2025/26 From - Spending review Topic 2]]+Dataset[[#This Row],[2025/26 From - Spending review Topic 3]]+Dataset[[#This Row],[2025/26 From - Spending review Topic 4]]+Dataset[[#This Row],[2025/26 From - Other reallocations]]","v":0},{"$f":"Dataset[[#This Row],[2023/24 To - Spending review Topic 1]]+Dataset[[#This Row],[2023/24 To - Spending review Topic 2]]+Dataset[[#This Row],[2023/24 To - Spending review Topic 3]]+Dataset[[#This Row],[2023/24 To - Spending review Topic 4]]+Dataset[[#This Row],[2023/24 To - Other reallocations]]","v":0},{"$f":"Dataset[[#This Row],[2024/25 To - Spending review Topic 1]]+Dataset[[#This Row],[2024/25 To - Spending review Topic 2]]+Dataset[[#This Row],[2024/25 To - Spending review Topic 3]]+Dataset[[#This Row],[2024/25 To - Spending review Topic 4]]+Dataset[[#This Row],[2024/25 To - Other reallocations]]","v":0},{"$f":"Dataset[[#This Row],[2025/26 To - Spending review Topic 1]]+Dataset[[#This Row],[2025/26 To - Spending review Topic 2]]+Dataset[[#This Row],[2025/26 To - Spending review Topic 3]]+Dataset[[#This Row],[2025/26 To - Spending review Topic 4]]+Dataset[[#This Row],[2025/26 To - Other reallocations]]","v":0},{"$f":"Dataset[[#This Row],[2023/24 Baseline]]+Dataset[[#This Row],[2023/24 From - Total]]+Dataset[[#This Row],[2023/24 To - Total]]","v":0},{"$f":"Dataset[[#This Row],[2024/25 Baseline]]+Dataset[[#This Row],[2024/25 From - Total]]+Dataset[[#This Row],[2024/25 To - Total]]","v":0},{"$f":"Dataset[[#This Row],[2025/26 Baseline]]+Dataset[[#This Row],[2025/26 From - Total]]+Dataset[[#This Row],[2025/26 To - Total]]","v":0}]
["NAT|Non-transfer item","2|Municipal agencies and funds","2023_24","MTEF2023",2,16,1,1358,741,"02","16","01","001358","000741","02|16|01",1,2,4,44,46,"01|02|04|44|46","National","Parliament","Direct charge against the National Revenue Fund","Members' Remuneration","Non-transfer item","Current","Transfers and subsidies","Provinces and municipalities","Municipalities","Municipal agencies and funds","General public services","Executive and legislative organs","NAT",0,0,0,0,0,0,0,0,0,0,0,null,null,null,null,null,null,null,null,null,null,null,null,null,null,null,null,null,null,null,null,null,null,null,null,null,null,null,null,null,null,{"$f":"Dataset[[#This Row],[2023/24 From - Spending review Topic 1]]+Dataset[[#This Row],[2023/24 From - Spending review Topic 2]]+Dataset[[#This Row],[2023/24 From - Spending review Topic 3]]+Dataset[[#This Row],[2023/24 From - Spending review Topic 4]]+Dataset[[#This Row],[2023/24 From - Other reallocations]]","v":0},{"$f":"Dataset[[#This Row],[2024/25 From - Spending review Topic 1]]+Dataset[[#This Row],[2024/25 From - Spending review Topic 2]]+Dataset[[#This Row],[2024/25 From - Spending review Topic 3]]+Dataset[[#This Row],[2024/25 From - Spending review Topic 4]]+Dataset[[#This Row],[2024/25 From - Other reallocations]]","v":0},{"$f":"Dataset[[#This Row],[2025/26 From - Spending review Topic 1]]+Dataset[[#This Row],[2025/26 From - Spending review Topic 2]]+Dataset[[#This Row],[2025/26 From - Spending review Topic 3]]+Dataset[[#This Row],[2025/26 From - Spending review Topic 4]]+Dataset[[#This Row],[2025/26 From - Other reallocations]]","v":0},{"$f":"Dataset[[#This Row],[2023/24 To - Spending review Topic 1]]+Dataset[[#This Row],[2023/24 To - Spending review Topic 2]]+Dataset[[#This Row],[2023/24 To - Spending review Topic 3]]+Dataset[[#This Row],[2023/24 To - Spending review Topic 4]]+Dataset[[#This Row],[2023/24 To - Other reallocations]]","v":0},{"$f":"Dataset[[#This Row],[2024/25 To - Spending review Topic 1]]+Dataset[[#This Row],[2024/25 To - Spending review Topic 2]]+Dataset[[#This Row],[2024/25 To - Spending review Topic 3]]+Dataset[[#This Row],[2024/25 To - Spending review Topic 4]]+Dataset[[#This Row],[2024/25 To - Other reallocations]]","v":0},{"$f":"Dataset[[#This Row],[2025/26 To - Spending review Topic 1]]+Dataset[[#This Row],[2025/26 To - Spending review Topic 2]]+Dataset[[#This Row],[2025/26 To - Spending review Topic 3]]+Dataset[[#This Row],[2025/26 To - Spending review Topic 4]]+Dataset[[#This Row],[2025/26 To - Other reallocations]]","v":0},{"$f":"Dataset[[#This Row],[2023/24 Baseline]]+Dataset[[#This Row],[2023/24 From - Total]]+Dataset[[#This Row],[2023/24 To - Total]]","v":0},{"$f":"Dataset[[#This Row],[2024/25 Baseline]]+Dataset[[#This Row],[2024/25 From - Total]]+Dataset[[#This Row],[2024/25 To - Total]]","v":0},{"$f":"Dataset[[#This Row],[2025/26 Baseline]]+Dataset[[#This Row],[2025/26 From - Total]]+Dataset[[#This Row],[2025/26 To - Total]]","v":0}]
["NAT|Non-transfer item","2|Social security funds","2023_24","MTEF2023",2,16,1,1359,742,"02","16","01","001359","000742","02|16|01",1,2,5,45,47,"01|02|05|45|47","National","Parliament","Direct charge against the National Revenue Fund","Members' Remuneration","Non-transfer item","Current","Transfers and subsidies","Departmental agencies and accounts","Social security funds","Social security funds","General public services","Executive and legislative organs","NAT",0,0,0,0,0,0,0,0,0,0,0,null,null,null,null,null,null,null,null,null,null,null,null,null,null,null,null,null,null,null,null,null,null,null,null,null,null,null,null,null,null,{"$f":"Dataset[[#This Row],[2023/24 From - Spending review Topic 1]]+Dataset[[#This Row],[2023/24 From - Spending review Topic 2]]+Dataset[[#This Row],[2023/24 From - Spending review Topic 3]]+Dataset[[#This Row],[2023/24 From - Spending review Topic 4]]+Dataset[[#This Row],[2023/24 From - Other reallocations]]","v":0},{"$f":"Dataset[[#This Row],[2024/25 From - Spending review Topic 1]]+Dataset[[#This Row],[2024/25 From - Spending review Topic 2]]+Dataset[[#This Row],[2024/25 From - Spending review Topic 3]]+Dataset[[#This Row],[2024/25 From - Spending review Topic 4]]+Dataset[[#This Row],[2024/25 From - Other reallocations]]","v":0},{"$f":"Dataset[[#This Row],[2025/26 From - Spending review Topic 1]]+Dataset[[#This Row],[2025/26 From - Spending review Topic 2]]+Dataset[[#This Row],[2025/26 From - Spending review Topic 3]]+Dataset[[#This Row],[2025/26 From - Spending review Topic 4]]+Dataset[[#This Row],[2025/26 From - Other reallocations]]","v":0},{"$f":"Dataset[[#This Row],[2023/24 To - Spending review Topic 1]]+Dataset[[#This Row],[2023/24 To - Spending review Topic 2]]+Dataset[[#This Row],[2023/24 To - Spending review Topic 3]]+Dataset[[#This Row],[2023/24 To - Spending review Topic 4]]+Dataset[[#This Row],[2023/24 To - Other reallocations]]","v":0},{"$f":"Dataset[[#This Row],[2024/25 To - Spending review Topic 1]]+Dataset[[#This Row],[2024/25 To - Spending review Topic 2]]+Dataset[[#This Row],[2024/25 To - Spending review Topic 3]]+Dataset[[#This Row],[2024/25 To - Spending review Topic 4]]+Dataset[[#This Row],[2024/25 To - Other reallocations]]","v":0},{"$f":"Dataset[[#This Row],[2025/26 To - Spending review Topic 1]]+Dataset[[#This Row],[2025/26 To - Spending review Topic 2]]+Dataset[[#This Row],[2025/26 To - Spending review Topic 3]]+Dataset[[#This Row],[2025/26 To - Spending review Topic 4]]+Dataset[[#This Row],[2025/26 To - Other reallocations]]","v":0},{"$f":"Dataset[[#This Row],[2023/24 Baseline]]+Dataset[[#This Row],[2023/24 From - Total]]+Dataset[[#This Row],[2023/24 To - Total]]","v":0},{"$f":"Dataset[[#This Row],[2024/25 Baseline]]+Dataset[[#This Row],[2024/25 From - Total]]+Dataset[[#This Row],[2024/25 To - Total]]","v":0},{"$f":"Dataset[[#This Row],[2025/26 Baseline]]+Dataset[[#This Row],[2025/26 From - Total]]+Dataset[[#This Row],[2025/26 To - Total]]","v":0}]
["NAT|Non-transfer item","2|Departmental agencies (non-business entities)","2023_24","MTEF2023",2,16,1,1360,743,"02","16","01","001360","000743","02|16|01",1,2,5,46,48,"01|02|05|46|48","National","Parliament","Direct charge against the National Revenue Fund","Members' Remuneration","Non-transfer item","Current","Transfers and subsidies","Departmental agencies and accounts","Departmental agencies (non-business entities)","Departmental agencies (non-business entities)","General public services","Executive and legislative organs","NAT",0,0,0,0,0,0,0,0,0,0,0,null,null,null,null,null,null,null,null,null,null,null,null,null,null,null,null,null,null,null,null,null,null,null,null,null,null,null,null,null,null,{"$f":"Dataset[[#This Row],[2023/24 From - Spending review Topic 1]]+Dataset[[#This Row],[2023/24 From - Spending review Topic 2]]+Dataset[[#This Row],[2023/24 From - Spending review Topic 3]]+Dataset[[#This Row],[2023/24 From - Spending review Topic 4]]+Dataset[[#This Row],[2023/24 From - Other reallocations]]","v":0},{"$f":"Dataset[[#This Row],[2024/25 From - Spending review Topic 1]]+Dataset[[#This Row],[2024/25 From - Spending review Topic 2]]+Dataset[[#This Row],[2024/25 From - Spending review Topic 3]]+Dataset[[#This Row],[2024/25 From - Spending review Topic 4]]+Dataset[[#This Row],[2024/25 From - Other reallocations]]","v":0},{"$f":"Dataset[[#This Row],[2025/26 From - Spending review Topic 1]]+Dataset[[#This Row],[2025/26 From - Spending review Topic 2]]+Dataset[[#This Row],[2025/26 From - Spending review Topic 3]]+Dataset[[#This Row],[2025/26 From - Spending review Topic 4]]+Dataset[[#This Row],[2025/26 From - Other reallocations]]","v":0},{"$f":"Dataset[[#This Row],[2023/24 To - Spending review Topic 1]]+Dataset[[#This Row],[2023/24 To - Spending review Topic 2]]+Dataset[[#This Row],[2023/24 To - Spending review Topic 3]]+Dataset[[#This Row],[2023/24 To - Spending review Topic 4]]+Dataset[[#This Row],[2023/24 To - Other reallocations]]","v":0},{"$f":"Dataset[[#This Row],[2024/25 To - Spending review Topic 1]]+Dataset[[#This Row],[2024/25 To - Spending review Topic 2]]+Dataset[[#This Row],[2024/25 To - Spending review Topic 3]]+Dataset[[#This Row],[2024/25 To - Spending review Topic 4]]+Dataset[[#This Row],[2024/25 To - Other reallocations]]","v":0},{"$f":"Dataset[[#This Row],[2025/26 To - Spending review Topic 1]]+Dataset[[#This Row],[2025/26 To - Spending review Topic 2]]+Dataset[[#This Row],[2025/26 To - Spending review Topic 3]]+Dataset[[#This Row],[2025/26 To - Spending review Topic 4]]+Dataset[[#This Row],[2025/26 To - Other reallocations]]","v":0},{"$f":"Dataset[[#This Row],[2023/24 Baseline]]+Dataset[[#This Row],[2023/24 From - Total]]+Dataset[[#This Row],[2023/24 To - Total]]","v":0},{"$f":"Dataset[[#This Row],[2024/25 Baseline]]+Dataset[[#This Row],[2024/25 From - Total]]+Dataset[[#This Row],[2024/25 To - Total]]","v":0},{"$f":"Dataset[[#This Row],[2025/26 Baseline]]+Dataset[[#This Row],[2025/26 From - Total]]+Dataset[[#This Row],[2025/26 To - Total]]","v":0}]
["NAT|Non-transfer item","2|Higher education institutions","2023_24","MTEF2023",2,16,1,1361,744,"02","16","01","001361","000744","02|16|01",1,2,6,47,49,"01|02|06|47|49","National","Parliament","Direct charge against the National Revenue Fund","Members' Remuneration","Non-transfer item","Current","Transfers and subsidies","Higher education institutions","Higher education institutions","Higher education institutions","General public services","Executive and legislative organs","NAT",0,0,0,0,0,0,0,0,0,0,0,null,null,null,null,null,null,null,null,null,null,null,null,null,null,null,null,null,null,null,null,null,null,null,null,null,null,null,null,null,null,{"$f":"Dataset[[#This Row],[2023/24 From - Spending review Topic 1]]+Dataset[[#This Row],[2023/24 From - Spending review Topic 2]]+Dataset[[#This Row],[2023/24 From - Spending review Topic 3]]+Dataset[[#This Row],[2023/24 From - Spending review Topic 4]]+Dataset[[#This Row],[2023/24 From - Other reallocations]]","v":0},{"$f":"Dataset[[#This Row],[2024/25 From - Spending review Topic 1]]+Dataset[[#This Row],[2024/25 From - Spending review Topic 2]]+Dataset[[#This Row],[2024/25 From - Spending review Topic 3]]+Dataset[[#This Row],[2024/25 From - Spending review Topic 4]]+Dataset[[#This Row],[2024/25 From - Other reallocations]]","v":0},{"$f":"Dataset[[#This Row],[2025/26 From - Spending review Topic 1]]+Dataset[[#This Row],[2025/26 From - Spending review Topic 2]]+Dataset[[#This Row],[2025/26 From - Spending review Topic 3]]+Dataset[[#This Row],[2025/26 From - Spending review Topic 4]]+Dataset[[#This Row],[2025/26 From - Other reallocations]]","v":0},{"$f":"Dataset[[#This Row],[2023/24 To - Spending review Topic 1]]+Dataset[[#This Row],[2023/24 To - Spending review Topic 2]]+Dataset[[#This Row],[2023/24 To - Spending review Topic 3]]+Dataset[[#This Row],[2023/24 To - Spending review Topic 4]]+Dataset[[#This Row],[2023/24 To - Other reallocations]]","v":0},{"$f":"Dataset[[#This Row],[2024/25 To - Spending review Topic 1]]+Dataset[[#This Row],[2024/25 To - Spending review Topic 2]]+Dataset[[#This Row],[2024/25 To - Spending review Topic 3]]+Dataset[[#This Row],[2024/25 To - Spending review Topic 4]]+Dataset[[#This Row],[2024/25 To - Other reallocations]]","v":0},{"$f":"Dataset[[#This Row],[2025/26 To - Spending review Topic 1]]+Dataset[[#This Row],[2025/26 To - Spending review Topic 2]]+Dataset[[#This Row],[2025/26 To - Spending review Topic 3]]+Dataset[[#This Row],[2025/26 To - Spending review Topic 4]]+Dataset[[#This Row],[2025/26 To - Other reallocations]]","v":0},{"$f":"Dataset[[#This Row],[2023/24 Baseline]]+Dataset[[#This Row],[2023/24 From - Total]]+Dataset[[#This Row],[2023/24 To - Total]]","v":0},{"$f":"Dataset[[#This Row],[2024/25 Baseline]]+Dataset[[#This Row],[2024/25 From - Total]]+Dataset[[#This Row],[2024/25 To - Total]]","v":0},{"$f":"Dataset[[#This Row],[2025/26 Baseline]]+Dataset[[#This Row],[2025/26 From - Total]]+Dataset[[#This Row],[2025/26 To - Total]]","v":0}]
["NAT|Non-transfer item","2|Foreign governments and international organisations","2023_24","MTEF2023",2,16,1,1362,745,"02","16","01","001362","000745","02|16|01",1,2,7,48,50,"01|02|07|48|50","National","Parliament","Direct charge against the National Revenue Fund","Members' Remuneration","Non-transfer item","Current","Transfers and subsidies","Foreign governments and international organisations","Foreign governments and international organisations","Foreign governments and international organisations","General public services","Executive and legislative organs","NAT",0,0,0,0,0,0,0,0,0,0,0,null,null,null,null,null,null,null,null,null,null,null,null,null,null,null,null,null,null,null,null,null,null,null,null,null,null,null,null,null,null,{"$f":"Dataset[[#This Row],[2023/24 From - Spending review Topic 1]]+Dataset[[#This Row],[2023/24 From - Spending review Topic 2]]+Dataset[[#This Row],[2023/24 From - Spending review Topic 3]]+Dataset[[#This Row],[2023/24 From - Spending review Topic 4]]+Dataset[[#This Row],[2023/24 From - Other reallocations]]","v":0},{"$f":"Dataset[[#This Row],[2024/25 From - Spending review Topic 1]]+Dataset[[#This Row],[2024/25 From - Spending review Topic 2]]+Dataset[[#This Row],[2024/25 From - Spending review Topic 3]]+Dataset[[#This Row],[2024/25 From - Spending review Topic 4]]+Dataset[[#This Row],[2024/25 From - Other reallocations]]","v":0},{"$f":"Dataset[[#This Row],[2025/26 From - Spending review Topic 1]]+Dataset[[#This Row],[2025/26 From - Spending review Topic 2]]+Dataset[[#This Row],[2025/26 From - Spending review Topic 3]]+Dataset[[#This Row],[2025/26 From - Spending review Topic 4]]+Dataset[[#This Row],[2025/26 From - Other reallocations]]","v":0},{"$f":"Dataset[[#This Row],[2023/24 To - Spending review Topic 1]]+Dataset[[#This Row],[2023/24 To - Spending review Topic 2]]+Dataset[[#This Row],[2023/24 To - Spending review Topic 3]]+Dataset[[#This Row],[2023/24 To - Spending review Topic 4]]+Dataset[[#This Row],[2023/24 To - Other reallocations]]","v":0},{"$f":"Dataset[[#This Row],[2024/25 To - Spending review Topic 1]]+Dataset[[#This Row],[2024/25 To - Spending review Topic 2]]+Dataset[[#This Row],[2024/25 To - Spending review Topic 3]]+Dataset[[#This Row],[2024/25 To - Spending review Topic 4]]+Dataset[[#This Row],[2024/25 To - Other reallocations]]","v":0},{"$f":"Dataset[[#This Row],[2025/26 To - Spending review Topic 1]]+Dataset[[#This Row],[2025/26 To - Spending review Topic 2]]+Dataset[[#This Row],[2025/26 To - Spending review Topic 3]]+Dataset[[#This Row],[2025/26 To - Spending review Topic 4]]+Dataset[[#This Row],[2025/26 To - Other reallocations]]","v":0},{"$f":"Dataset[[#This Row],[2023/24 Baseline]]+Dataset[[#This Row],[2023/24 From - Total]]+Dataset[[#This Row],[2023/24 To - Total]]","v":0},{"$f":"Dataset[[#This Row],[2024/25 Baseline]]+Dataset[[#This Row],[2024/25 From - Total]]+Dataset[[#This Row],[2024/25 To - Total]]","v":0},{"$f":"Dataset[[#This Row],[2025/26 Baseline]]+Dataset[[#This Row],[2025/26 From - Total]]+Dataset[[#This Row],[2025/26 To - Total]]","v":0}]
["NAT|Non-transfer item","2|Subsidies on products and production (pc)","2023_24","MTEF2023",2,16,1,1363,746,"02","16","01","001363","000746","02|16|01",1,2,8,49,51,"01|02|08|49|51","National","Parliament","Direct charge against the National Revenue Fund","Members' Remuneration","Non-transfer item","Current","Transfers and subsidies","Public corporations and private enterprises","Public corporations","Subsidies on products and production (pc)","General public services","Executive and legislative organs","NAT",0,0,0,0,0,0,0,0,0,0,0,null,null,null,null,null,null,null,null,null,null,null,null,null,null,null,null,null,null,null,null,null,null,null,null,null,null,null,null,null,null,{"$f":"Dataset[[#This Row],[2023/24 From - Spending review Topic 1]]+Dataset[[#This Row],[2023/24 From - Spending review Topic 2]]+Dataset[[#This Row],[2023/24 From - Spending review Topic 3]]+Dataset[[#This Row],[2023/24 From - Spending review Topic 4]]+Dataset[[#This Row],[2023/24 From - Other reallocations]]","v":0},{"$f":"Dataset[[#This Row],[2024/25 From - Spending review Topic 1]]+Dataset[[#This Row],[2024/25 From - Spending review Topic 2]]+Dataset[[#This Row],[2024/25 From - Spending review Topic 3]]+Dataset[[#This Row],[2024/25 From - Spending review Topic 4]]+Dataset[[#This Row],[2024/25 From - Other reallocations]]","v":0},{"$f":"Dataset[[#This Row],[2025/26 From - Spending review Topic 1]]+Dataset[[#This Row],[2025/26 From - Spending review Topic 2]]+Dataset[[#This Row],[2025/26 From - Spending review Topic 3]]+Dataset[[#This Row],[2025/26 From - Spending review Topic 4]]+Dataset[[#This Row],[2025/26 From - Other reallocations]]","v":0},{"$f":"Dataset[[#This Row],[2023/24 To - Spending review Topic 1]]+Dataset[[#This Row],[2023/24 To - Spending review Topic 2]]+Dataset[[#This Row],[2023/24 To - Spending review Topic 3]]+Dataset[[#This Row],[2023/24 To - Spending review Topic 4]]+Dataset[[#This Row],[2023/24 To - Other reallocations]]","v":0},{"$f":"Dataset[[#This Row],[2024/25 To - Spending review Topic 1]]+Dataset[[#This Row],[2024/25 To - Spending review Topic 2]]+Dataset[[#This Row],[2024/25 To - Spending review Topic 3]]+Dataset[[#This Row],[2024/25 To - Spending review Topic 4]]+Dataset[[#This Row],[2024/25 To - Other reallocations]]","v":0},{"$f":"Dataset[[#This Row],[2025/26 To - Spending review Topic 1]]+Dataset[[#This Row],[2025/26 To - Spending review Topic 2]]+Dataset[[#This Row],[2025/26 To - Spending review Topic 3]]+Dataset[[#This Row],[2025/26 To - Spending review Topic 4]]+Dataset[[#This Row],[2025/26 To - Other reallocations]]","v":0},{"$f":"Dataset[[#This Row],[2023/24 Baseline]]+Dataset[[#This Row],[2023/24 From - Total]]+Dataset[[#This Row],[2023/24 To - Total]]","v":0},{"$f":"Dataset[[#This Row],[2024/25 Baseline]]+Dataset[[#This Row],[2024/25 From - Total]]+Dataset[[#This Row],[2024/25 To - Total]]","v":0},{"$f":"Dataset[[#This Row],[2025/26 Baseline]]+Dataset[[#This Row],[2025/26 From - Total]]+Dataset[[#This Row],[2025/26 To - Total]]","v":0}]
["NAT|Non-transfer item","2|Other transfers to public corporations","2023_24","MTEF2023",2,16,1,1364,747,"02","16","01","001364","000747","02|16|01",1,2,8,49,52,"01|02|08|49|52","National","Parliament","Direct charge against the National Revenue Fund","Members' Remuneration","Non-transfer item","Current","Transfers and subsidies","Public corporations and private enterprises","Public corporations","Other transfers to public corporations","General public services","Executive and legislative organs","NAT",0,0,0,0,0,0,0,0,0,0,0,null,null,null,null,null,null,null,null,null,null,null,null,null,null,null,null,null,null,null,null,null,null,null,null,null,null,null,null,null,null,{"$f":"Dataset[[#This Row],[2023/24 From - Spending review Topic 1]]+Dataset[[#This Row],[2023/24 From - Spending review Topic 2]]+Dataset[[#This Row],[2023/24 From - Spending review Topic 3]]+Dataset[[#This Row],[2023/24 From - Spending review Topic 4]]+Dataset[[#This Row],[2023/24 From - Other reallocations]]","v":0},{"$f":"Dataset[[#This Row],[2024/25 From - Spending review Topic 1]]+Dataset[[#This Row],[2024/25 From - Spending review Topic 2]]+Dataset[[#This Row],[2024/25 From - Spending review Topic 3]]+Dataset[[#This Row],[2024/25 From - Spending review Topic 4]]+Dataset[[#This Row],[2024/25 From - Other reallocations]]","v":0},{"$f":"Dataset[[#This Row],[2025/26 From - Spending review Topic 1]]+Dataset[[#This Row],[2025/26 From - Spending review Topic 2]]+Dataset[[#This Row],[2025/26 From - Spending review Topic 3]]+Dataset[[#This Row],[2025/26 From - Spending review Topic 4]]+Dataset[[#This Row],[2025/26 From - Other reallocations]]","v":0},{"$f":"Dataset[[#This Row],[2023/24 To - Spending review Topic 1]]+Dataset[[#This Row],[2023/24 To - Spending review Topic 2]]+Dataset[[#This Row],[2023/24 To - Spending review Topic 3]]+Dataset[[#This Row],[2023/24 To - Spending review Topic 4]]+Dataset[[#This Row],[2023/24 To - Other reallocations]]","v":0},{"$f":"Dataset[[#This Row],[2024/25 To - Spending review Topic 1]]+Dataset[[#This Row],[2024/25 To - Spending review Topic 2]]+Dataset[[#This Row],[2024/25 To - Spending review Topic 3]]+Dataset[[#This Row],[2024/25 To - Spending review Topic 4]]+Dataset[[#This Row],[2024/25 To - Other reallocations]]","v":0},{"$f":"Dataset[[#This Row],[2025/26 To - Spending review Topic 1]]+Dataset[[#This Row],[2025/26 To - Spending review Topic 2]]+Dataset[[#This Row],[2025/26 To - Spending review Topic 3]]+Dataset[[#This Row],[2025/26 To - Spending review Topic 4]]+Dataset[[#This Row],[2025/26 To - Other reallocations]]","v":0},{"$f":"Dataset[[#This Row],[2023/24 Baseline]]+Dataset[[#This Row],[2023/24 From - Total]]+Dataset[[#This Row],[2023/24 To - Total]]","v":0},{"$f":"Dataset[[#This Row],[2024/25 Baseline]]+Dataset[[#This Row],[2024/25 From - Total]]+Dataset[[#This Row],[2024/25 To - Total]]","v":0},{"$f":"Dataset[[#This Row],[2025/26 Baseline]]+Dataset[[#This Row],[2025/26 From - Total]]+Dataset[[#This Row],[2025/26 To - Total]]","v":0}]
["NAT|Non-transfer item","2|Subsidies on products and production (pe)","2023_24","MTEF2023",2,16,1,1365,748,"02","16","01","001365","000748","02|16|01",1,2,8,50,53,"01|02|08|50|53","National","Parliament","Direct charge against the National Revenue Fund","Members' Remuneration","Non-transfer item","Current","Transfers and subsidies","Public corporations and private enterprises","Private enterprises","Subsidies on products and production (pe)","General public services","Executive and legislative organs","NAT",0,0,0,0,0,0,0,0,0,0,0,null,null,null,null,null,null,null,null,null,null,null,null,null,null,null,null,null,null,null,null,null,null,null,null,null,null,null,null,null,null,{"$f":"Dataset[[#This Row],[2023/24 From - Spending review Topic 1]]+Dataset[[#This Row],[2023/24 From - Spending review Topic 2]]+Dataset[[#This Row],[2023/24 From - Spending review Topic 3]]+Dataset[[#This Row],[2023/24 From - Spending review Topic 4]]+Dataset[[#This Row],[2023/24 From - Other reallocations]]","v":0},{"$f":"Dataset[[#This Row],[2024/25 From - Spending review Topic 1]]+Dataset[[#This Row],[2024/25 From - Spending review Topic 2]]+Dataset[[#This Row],[2024/25 From - Spending review Topic 3]]+Dataset[[#This Row],[2024/25 From - Spending review Topic 4]]+Dataset[[#This Row],[2024/25 From - Other reallocations]]","v":0},{"$f":"Dataset[[#This Row],[2025/26 From - Spending review Topic 1]]+Dataset[[#This Row],[2025/26 From - Spending review Topic 2]]+Dataset[[#This Row],[2025/26 From - Spending review Topic 3]]+Dataset[[#This Row],[2025/26 From - Spending review Topic 4]]+Dataset[[#This Row],[2025/26 From - Other reallocations]]","v":0},{"$f":"Dataset[[#This Row],[2023/24 To - Spending review Topic 1]]+Dataset[[#This Row],[2023/24 To - Spending review Topic 2]]+Dataset[[#This Row],[2023/24 To - Spending review Topic 3]]+Dataset[[#This Row],[2023/24 To - Spending review Topic 4]]+Dataset[[#This Row],[2023/24 To - Other reallocations]]","v":0},{"$f":"Dataset[[#This Row],[2024/25 To - Spending review Topic 1]]+Dataset[[#This Row],[2024/25 To - Spending review Topic 2]]+Dataset[[#This Row],[2024/25 To - Spending review Topic 3]]+Dataset[[#This Row],[2024/25 To - Spending review Topic 4]]+Dataset[[#This Row],[2024/25 To - Other reallocations]]","v":0},{"$f":"Dataset[[#This Row],[2025/26 To - Spending review Topic 1]]+Dataset[[#This Row],[2025/26 To - Spending review Topic 2]]+Dataset[[#This Row],[2025/26 To - Spending review Topic 3]]+Dataset[[#This Row],[2025/26 To - Spending review Topic 4]]+Dataset[[#This Row],[2025/26 To - Other reallocations]]","v":0},{"$f":"Dataset[[#This Row],[2023/24 Baseline]]+Dataset[[#This Row],[2023/24 From - Total]]+Dataset[[#This Row],[2023/24 To - Total]]","v":0},{"$f":"Dataset[[#This Row],[2024/25 Baseline]]+Dataset[[#This Row],[2024/25 From - Total]]+Dataset[[#This Row],[2024/25 To - Total]]","v":0},{"$f":"Dataset[[#This Row],[2025/26 Baseline]]+Dataset[[#This Row],[2025/26 From - Total]]+Dataset[[#This Row],[2025/26 To - Total]]","v":0}]
["NAT|Non-transfer item","2|Other transfers to private enterprises","2023_24","MTEF2023",2,16,1,1366,749,"02","16","01","001366","000749","02|16|01",1,2,8,50,54,"01|02|08|50|54","National","Parliament","Direct charge against the National Revenue Fund","Members' Remuneration","Non-transfer item","Current","Transfers and subsidies","Public corporations and private enterprises","Private enterprises","Other transfers to private enterprises","General public services","Executive and legislative organs","NAT",0,0,0,0,0,0,0,0,0,0,0,null,null,null,null,null,null,null,null,null,null,null,null,null,null,null,null,null,null,null,null,null,null,null,null,null,null,null,null,null,null,{"$f":"Dataset[[#This Row],[2023/24 From - Spending review Topic 1]]+Dataset[[#This Row],[2023/24 From - Spending review Topic 2]]+Dataset[[#This Row],[2023/24 From - Spending review Topic 3]]+Dataset[[#This Row],[2023/24 From - Spending review Topic 4]]+Dataset[[#This Row],[2023/24 From - Other reallocations]]","v":0},{"$f":"Dataset[[#This Row],[2024/25 From - Spending review Topic 1]]+Dataset[[#This Row],[2024/25 From - Spending review Topic 2]]+Dataset[[#This Row],[2024/25 From - Spending review Topic 3]]+Dataset[[#This Row],[2024/25 From - Spending review Topic 4]]+Dataset[[#This Row],[2024/25 From - Other reallocations]]","v":0},{"$f":"Dataset[[#This Row],[2025/26 From - Spending review Topic 1]]+Dataset[[#This Row],[2025/26 From - Spending review Topic 2]]+Dataset[[#This Row],[2025/26 From - Spending review Topic 3]]+Dataset[[#This Row],[2025/26 From - Spending review Topic 4]]+Dataset[[#This Row],[2025/26 From - Other reallocations]]","v":0},{"$f":"Dataset[[#This Row],[2023/24 To - Spending review Topic 1]]+Dataset[[#This Row],[2023/24 To - Spending review Topic 2]]+Dataset[[#This Row],[2023/24 To - Spending review Topic 3]]+Dataset[[#This Row],[2023/24 To - Spending review Topic 4]]+Dataset[[#This Row],[2023/24 To - Other reallocations]]","v":0},{"$f":"Dataset[[#This Row],[2024/25 To - Spending review Topic 1]]+Dataset[[#This Row],[2024/25 To - Spending review Topic 2]]+Dataset[[#This Row],[2024/25 To - Spending review Topic 3]]+Dataset[[#This Row],[2024/25 To - Spending review Topic 4]]+Dataset[[#This Row],[2024/25 To - Other reallocations]]","v":0},{"$f":"Dataset[[#This Row],[2025/26 To - Spending review Topic 1]]+Dataset[[#This Row],[2025/26 To - Spending review Topic 2]]+Dataset[[#This Row],[2025/26 To - Spending review Topic 3]]+Dataset[[#This Row],[2025/26 To - Spending review Topic 4]]+Dataset[[#This Row],[2025/26 To - Other reallocations]]","v":0},{"$f":"Dataset[[#This Row],[2023/24 Baseline]]+Dataset[[#This Row],[2023/24 From - Total]]+Dataset[[#This Row],[2023/24 To - Total]]","v":0},{"$f":"Dataset[[#This Row],[2024/25 Baseline]]+Dataset[[#This Row],[2024/25 From - Total]]+Dataset[[#This Row],[2024/25 To - Total]]","v":0},{"$f":"Dataset[[#This Row],[2025/26 Baseline]]+Dataset[[#This Row],[2025/26 From - Total]]+Dataset[[#This Row],[2025/26 To - Total]]","v":0}]
["NAT|Non-transfer item","2|Non-profit institutions","2023_24","MTEF2023",2,16,1,1367,750,"02","16","01","001367","000750","02|16|01",1,2,9,51,55,"01|02|09|51|55","National","Parliament","Direct charge against the National Revenue Fund","Members' Remuneration","Non-transfer item","Current","Transfers and subsidies","Non-profit institutions","Non-profit institutions","Non-profit institutions","General public services","Executive and legislative organs","NAT",0,0,0,0,0,0,0,0,0,0,0,null,null,null,null,null,null,null,null,null,null,null,null,null,null,null,null,null,null,null,null,null,null,null,null,null,null,null,null,null,null,{"$f":"Dataset[[#This Row],[2023/24 From - Spending review Topic 1]]+Dataset[[#This Row],[2023/24 From - Spending review Topic 2]]+Dataset[[#This Row],[2023/24 From - Spending review Topic 3]]+Dataset[[#This Row],[2023/24 From - Spending review Topic 4]]+Dataset[[#This Row],[2023/24 From - Other reallocations]]","v":0},{"$f":"Dataset[[#This Row],[2024/25 From - Spending review Topic 1]]+Dataset[[#This Row],[2024/25 From - Spending review Topic 2]]+Dataset[[#This Row],[2024/25 From - Spending review Topic 3]]+Dataset[[#This Row],[2024/25 From - Spending review Topic 4]]+Dataset[[#This Row],[2024/25 From - Other reallocations]]","v":0},{"$f":"Dataset[[#This Row],[2025/26 From - Spending review Topic 1]]+Dataset[[#This Row],[2025/26 From - Spending review Topic 2]]+Dataset[[#This Row],[2025/26 From - Spending review Topic 3]]+Dataset[[#This Row],[2025/26 From - Spending review Topic 4]]+Dataset[[#This Row],[2025/26 From - Other reallocations]]","v":0},{"$f":"Dataset[[#This Row],[2023/24 To - Spending review Topic 1]]+Dataset[[#This Row],[2023/24 To - Spending review Topic 2]]+Dataset[[#This Row],[2023/24 To - Spending review Topic 3]]+Dataset[[#This Row],[2023/24 To - Spending review Topic 4]]+Dataset[[#This Row],[2023/24 To - Other reallocations]]","v":0},{"$f":"Dataset[[#This Row],[2024/25 To - Spending review Topic 1]]+Dataset[[#This Row],[2024/25 To - Spending review Topic 2]]+Dataset[[#This Row],[2024/25 To - Spending review Topic 3]]+Dataset[[#This Row],[2024/25 To - Spending review Topic 4]]+Dataset[[#This Row],[2024/25 To - Other reallocations]]","v":0},{"$f":"Dataset[[#This Row],[2025/26 To - Spending review Topic 1]]+Dataset[[#This Row],[2025/26 To - Spending review Topic 2]]+Dataset[[#This Row],[2025/26 To - Spending review Topic 3]]+Dataset[[#This Row],[2025/26 To - Spending review Topic 4]]+Dataset[[#This Row],[2025/26 To - Other reallocations]]","v":0},{"$f":"Dataset[[#This Row],[2023/24 Baseline]]+Dataset[[#This Row],[2023/24 From - Total]]+Dataset[[#This Row],[2023/24 To - Total]]","v":0},{"$f":"Dataset[[#This Row],[2024/25 Baseline]]+Dataset[[#This Row],[2024/25 From - Total]]+Dataset[[#This Row],[2024/25 To - Total]]","v":0},{"$f":"Dataset[[#This Row],[2025/26 Baseline]]+Dataset[[#This Row],[2025/26 From - Total]]+Dataset[[#This Row],[2025/26 To - Total]]","v":0}]
["NAT|Non-transfer item","2|Social benefits","2023_24","MTEF2023",2,16,1,1368,751,"02","16","01","001368","000751","02|16|01",1,2,10,52,56,"01|02|10|52|56","National","Parliament","Direct charge against the National Revenue Fund","Members' Remuneration","Non-transfer item","Current","Transfers and subsidies","Households","Social benefits","Social benefits","General public services","Executive and legislative organs","NAT",0,0,0,0,0,0,0,0,0,0,0,null,null,null,null,null,null,null,null,null,null,null,null,null,null,null,null,null,null,null,null,null,null,null,null,null,null,null,null,null,null,{"$f":"Dataset[[#This Row],[2023/24 From - Spending review Topic 1]]+Dataset[[#This Row],[2023/24 From - Spending review Topic 2]]+Dataset[[#This Row],[2023/24 From - Spending review Topic 3]]+Dataset[[#This Row],[2023/24 From - Spending review Topic 4]]+Dataset[[#This Row],[2023/24 From - Other reallocations]]","v":0},{"$f":"Dataset[[#This Row],[2024/25 From - Spending review Topic 1]]+Dataset[[#This Row],[2024/25 From - Spending review Topic 2]]+Dataset[[#This Row],[2024/25 From - Spending review Topic 3]]+Dataset[[#This Row],[2024/25 From - Spending review Topic 4]]+Dataset[[#This Row],[2024/25 From - Other reallocations]]","v":0},{"$f":"Dataset[[#This Row],[2025/26 From - Spending review Topic 1]]+Dataset[[#This Row],[2025/26 From - Spending review Topic 2]]+Dataset[[#This Row],[2025/26 From - Spending review Topic 3]]+Dataset[[#This Row],[2025/26 From - Spending review Topic 4]]+Dataset[[#This Row],[2025/26 From - Other reallocations]]","v":0},{"$f":"Dataset[[#This Row],[2023/24 To - Spending review Topic 1]]+Dataset[[#This Row],[2023/24 To - Spending review Topic 2]]+Dataset[[#This Row],[2023/24 To - Spending review Topic 3]]+Dataset[[#This Row],[2023/24 To - Spending review Topic 4]]+Dataset[[#This Row],[2023/24 To - Other reallocations]]","v":0},{"$f":"Dataset[[#This Row],[2024/25 To - Spending review Topic 1]]+Dataset[[#This Row],[2024/25 To - Spending review Topic 2]]+Dataset[[#This Row],[2024/25 To - Spending review Topic 3]]+Dataset[[#This Row],[2024/25 To - Spending review Topic 4]]+Dataset[[#This Row],[2024/25 To - Other reallocations]]","v":0},{"$f":"Dataset[[#This Row],[2025/26 To - Spending review Topic 1]]+Dataset[[#This Row],[2025/26 To - Spending review Topic 2]]+Dataset[[#This Row],[2025/26 To - Spending review Topic 3]]+Dataset[[#This Row],[2025/26 To - Spending review Topic 4]]+Dataset[[#This Row],[2025/26 To - Other reallocations]]","v":0},{"$f":"Dataset[[#This Row],[2023/24 Baseline]]+Dataset[[#This Row],[2023/24 From - Total]]+Dataset[[#This Row],[2023/24 To - Total]]","v":0},{"$f":"Dataset[[#This Row],[2024/25 Baseline]]+Dataset[[#This Row],[2024/25 From - Total]]+Dataset[[#This Row],[2024/25 To - Total]]","v":0},{"$f":"Dataset[[#This Row],[2025/26 Baseline]]+Dataset[[#This Row],[2025/26 From - Total]]+Dataset[[#This Row],[2025/26 To - Total]]","v":0}]
["NAT|Non-transfer item","2|Other transfers to households","2023_24","MTEF2023",2,16,1,1369,752,"02","16","01","001369","000752","02|16|01",1,2,10,53,57,"01|02|10|53|57","National","Parliament","Direct charge against the National Revenue Fund","Members' Remuneration","Non-transfer item","Current","Transfers and subsidies","Households","Other transfers to households","Other transfers to households","General public services","Executive and legislative organs","NAT",0,0,0,0,0,0,0,0,0,0,0,null,null,null,null,null,null,null,null,null,null,null,null,null,null,null,null,null,null,null,null,null,null,null,null,null,null,null,null,null,null,{"$f":"Dataset[[#This Row],[2023/24 From - Spending review Topic 1]]+Dataset[[#This Row],[2023/24 From - Spending review Topic 2]]+Dataset[[#This Row],[2023/24 From - Spending review Topic 3]]+Dataset[[#This Row],[2023/24 From - Spending review Topic 4]]+Dataset[[#This Row],[2023/24 From - Other reallocations]]","v":0},{"$f":"Dataset[[#This Row],[2024/25 From - Spending review Topic 1]]+Dataset[[#This Row],[2024/25 From - Spending review Topic 2]]+Dataset[[#This Row],[2024/25 From - Spending review Topic 3]]+Dataset[[#This Row],[2024/25 From - Spending review Topic 4]]+Dataset[[#This Row],[2024/25 From - Other reallocations]]","v":0},{"$f":"Dataset[[#This Row],[2025/26 From - Spending review Topic 1]]+Dataset[[#This Row],[2025/26 From - Spending review Topic 2]]+Dataset[[#This Row],[2025/26 From - Spending review Topic 3]]+Dataset[[#This Row],[2025/26 From - Spending review Topic 4]]+Dataset[[#This Row],[2025/26 From - Other reallocations]]","v":0},{"$f":"Dataset[[#This Row],[2023/24 To - Spending review Topic 1]]+Dataset[[#This Row],[2023/24 To - Spending review Topic 2]]+Dataset[[#This Row],[2023/24 To - Spending review Topic 3]]+Dataset[[#This Row],[2023/24 To - Spending review Topic 4]]+Dataset[[#This Row],[2023/24 To - Other reallocations]]","v":0},{"$f":"Dataset[[#This Row],[2024/25 To - Spending review Topic 1]]+Dataset[[#This Row],[2024/25 To - Spending review Topic 2]]+Dataset[[#This Row],[2024/25 To - Spending review Topic 3]]+Dataset[[#This Row],[2024/25 To - Spending review Topic 4]]+Dataset[[#This Row],[2024/25 To - Other reallocations]]","v":0},{"$f":"Dataset[[#This Row],[2025/26 To - Spending review Topic 1]]+Dataset[[#This Row],[2025/26 To - Spending review Topic 2]]+Dataset[[#This Row],[2025/26 To - Spending review Topic 3]]+Dataset[[#This Row],[2025/26 To - Spending review Topic 4]]+Dataset[[#This Row],[2025/26 To - Other reallocations]]","v":0},{"$f":"Dataset[[#This Row],[2023/24 Baseline]]+Dataset[[#This Row],[2023/24 From - Total]]+Dataset[[#This Row],[2023/24 To - Total]]","v":0},{"$f":"Dataset[[#This Row],[2024/25 Baseline]]+Dataset[[#This Row],[2024/25 From - Total]]+Dataset[[#This Row],[2024/25 To - Total]]","v":0},{"$f":"Dataset[[#This Row],[2025/26 Baseline]]+Dataset[[#This Row],[2025/26 From - Total]]+Dataset[[#This Row],[2025/26 To - Total]]","v":0}]
["NAT|Non-transfer item","2|Provincial Revenue Funds","2023_24","MTEF2023",2,16,1,1370,753,"02","16","01","001370","000753","02|16|01",2,2,4,43,43,"02|02|04|43|43","National","Parliament","Direct charge against the National Revenue Fund","Members' Remuneration","Non-transfer item","Capital","Transfers and subsidies","Provinces and municipalities","Provinces","Provincial Revenue Funds","General public services","Executive and legislative organs","NAT",0,0,0,0,0,0,0,0,0,0,0,null,null,null,null,null,null,null,null,null,null,null,null,null,null,null,null,null,null,null,null,null,null,null,null,null,null,null,null,null,null,{"$f":"Dataset[[#This Row],[2023/24 From - Spending review Topic 1]]+Dataset[[#This Row],[2023/24 From - Spending review Topic 2]]+Dataset[[#This Row],[2023/24 From - Spending review Topic 3]]+Dataset[[#This Row],[2023/24 From - Spending review Topic 4]]+Dataset[[#This Row],[2023/24 From - Other reallocations]]","v":0},{"$f":"Dataset[[#This Row],[2024/25 From - Spending review Topic 1]]+Dataset[[#This Row],[2024/25 From - Spending review Topic 2]]+Dataset[[#This Row],[2024/25 From - Spending review Topic 3]]+Dataset[[#This Row],[2024/25 From - Spending review Topic 4]]+Dataset[[#This Row],[2024/25 From - Other reallocations]]","v":0},{"$f":"Dataset[[#This Row],[2025/26 From - Spending review Topic 1]]+Dataset[[#This Row],[2025/26 From - Spending review Topic 2]]+Dataset[[#This Row],[2025/26 From - Spending review Topic 3]]+Dataset[[#This Row],[2025/26 From - Spending review Topic 4]]+Dataset[[#This Row],[2025/26 From - Other reallocations]]","v":0},{"$f":"Dataset[[#This Row],[2023/24 To - Spending review Topic 1]]+Dataset[[#This Row],[2023/24 To - Spending review Topic 2]]+Dataset[[#This Row],[2023/24 To - Spending review Topic 3]]+Dataset[[#This Row],[2023/24 To - Spending review Topic 4]]+Dataset[[#This Row],[2023/24 To - Other reallocations]]","v":0},{"$f":"Dataset[[#This Row],[2024/25 To - Spending review Topic 1]]+Dataset[[#This Row],[2024/25 To - Spending review Topic 2]]+Dataset[[#This Row],[2024/25 To - Spending review Topic 3]]+Dataset[[#This Row],[2024/25 To - Spending review Topic 4]]+Dataset[[#This Row],[2024/25 To - Other reallocations]]","v":0},{"$f":"Dataset[[#This Row],[2025/26 To - Spending review Topic 1]]+Dataset[[#This Row],[2025/26 To - Spending review Topic 2]]+Dataset[[#This Row],[2025/26 To - Spending review Topic 3]]+Dataset[[#This Row],[2025/26 To - Spending review Topic 4]]+Dataset[[#This Row],[2025/26 To - Other reallocations]]","v":0},{"$f":"Dataset[[#This Row],[2023/24 Baseline]]+Dataset[[#This Row],[2023/24 From - Total]]+Dataset[[#This Row],[2023/24 To - Total]]","v":0},{"$f":"Dataset[[#This Row],[2024/25 Baseline]]+Dataset[[#This Row],[2024/25 From - Total]]+Dataset[[#This Row],[2024/25 To - Total]]","v":0},{"$f":"Dataset[[#This Row],[2025/26 Baseline]]+Dataset[[#This Row],[2025/26 From - Total]]+Dataset[[#This Row],[2025/26 To - Total]]","v":0}]
["NAT|Non-transfer item","2|Municipal bank accounts","2023_24","MTEF2023",2,16,1,1371,754,"02","16","01","001371","000754","02|16|01",2,2,4,44,45,"02|02|04|44|45","National","Parliament","Direct charge against the National Revenue Fund","Members' Remuneration","Non-transfer item","Capital","Transfers and subsidies","Provinces and municipalities","Municipalities","Municipal bank accounts","General public services","Executive and legislative organs","NAT",0,0,0,0,0,0,0,0,0,0,0,null,null,null,null,null,null,null,null,null,null,null,null,null,null,null,null,null,null,null,null,null,null,null,null,null,null,null,null,null,null,{"$f":"Dataset[[#This Row],[2023/24 From - Spending review Topic 1]]+Dataset[[#This Row],[2023/24 From - Spending review Topic 2]]+Dataset[[#This Row],[2023/24 From - Spending review Topic 3]]+Dataset[[#This Row],[2023/24 From - Spending review Topic 4]]+Dataset[[#This Row],[2023/24 From - Other reallocations]]","v":0},{"$f":"Dataset[[#This Row],[2024/25 From - Spending review Topic 1]]+Dataset[[#This Row],[2024/25 From - Spending review Topic 2]]+Dataset[[#This Row],[2024/25 From - Spending review Topic 3]]+Dataset[[#This Row],[2024/25 From - Spending review Topic 4]]+Dataset[[#This Row],[2024/25 From - Other reallocations]]","v":0},{"$f":"Dataset[[#This Row],[2025/26 From - Spending review Topic 1]]+Dataset[[#This Row],[2025/26 From - Spending review Topic 2]]+Dataset[[#This Row],[2025/26 From - Spending review Topic 3]]+Dataset[[#This Row],[2025/26 From - Spending review Topic 4]]+Dataset[[#This Row],[2025/26 From - Other reallocations]]","v":0},{"$f":"Dataset[[#This Row],[2023/24 To - Spending review Topic 1]]+Dataset[[#This Row],[2023/24 To - Spending review Topic 2]]+Dataset[[#This Row],[2023/24 To - Spending review Topic 3]]+Dataset[[#This Row],[2023/24 To - Spending review Topic 4]]+Dataset[[#This Row],[2023/24 To - Other reallocations]]","v":0},{"$f":"Dataset[[#This Row],[2024/25 To - Spending review Topic 1]]+Dataset[[#This Row],[2024/25 To - Spending review Topic 2]]+Dataset[[#This Row],[2024/25 To - Spending review Topic 3]]+Dataset[[#This Row],[2024/25 To - Spending review Topic 4]]+Dataset[[#This Row],[2024/25 To - Other reallocations]]","v":0},{"$f":"Dataset[[#This Row],[2025/26 To - Spending review Topic 1]]+Dataset[[#This Row],[2025/26 To - Spending review Topic 2]]+Dataset[[#This Row],[2025/26 To - Spending review Topic 3]]+Dataset[[#This Row],[2025/26 To - Spending review Topic 4]]+Dataset[[#This Row],[2025/26 To - Other reallocations]]","v":0},{"$f":"Dataset[[#This Row],[2023/24 Baseline]]+Dataset[[#This Row],[2023/24 From - Total]]+Dataset[[#This Row],[2023/24 To - Total]]","v":0},{"$f":"Dataset[[#This Row],[2024/25 Baseline]]+Dataset[[#This Row],[2024/25 From - Total]]+Dataset[[#This Row],[2024/25 To - Total]]","v":0},{"$f":"Dataset[[#This Row],[2025/26 Baseline]]+Dataset[[#This Row],[2025/26 From - Total]]+Dataset[[#This Row],[2025/26 To - Total]]","v":0}]
["NAT|Non-transfer item","2|Departmental agencies (non-business entities)","2023_24","MTEF2023",2,16,1,1372,755,"02","16","01","001372","000755","02|16|01",2,2,5,46,48,"02|02|05|46|48","National","Parliament","Direct charge against the National Revenue Fund","Members' Remuneration","Non-transfer item","Capital","Transfers and subsidies","Departmental agencies and accounts","Departmental agencies (non-business entities)","Departmental agencies (non-business entities)","General public services","Executive and legislative organs","NAT",0,0,0,0,0,0,0,0,0,0,0,null,null,null,null,null,null,null,null,null,null,null,null,null,null,null,null,null,null,null,null,null,null,null,null,null,null,null,null,null,null,{"$f":"Dataset[[#This Row],[2023/24 From - Spending review Topic 1]]+Dataset[[#This Row],[2023/24 From - Spending review Topic 2]]+Dataset[[#This Row],[2023/24 From - Spending review Topic 3]]+Dataset[[#This Row],[2023/24 From - Spending review Topic 4]]+Dataset[[#This Row],[2023/24 From - Other reallocations]]","v":0},{"$f":"Dataset[[#This Row],[2024/25 From - Spending review Topic 1]]+Dataset[[#This Row],[2024/25 From - Spending review Topic 2]]+Dataset[[#This Row],[2024/25 From - Spending review Topic 3]]+Dataset[[#This Row],[2024/25 From - Spending review Topic 4]]+Dataset[[#This Row],[2024/25 From - Other reallocations]]","v":0},{"$f":"Dataset[[#This Row],[2025/26 From - Spending review Topic 1]]+Dataset[[#This Row],[2025/26 From - Spending review Topic 2]]+Dataset[[#This Row],[2025/26 From - Spending review Topic 3]]+Dataset[[#This Row],[2025/26 From - Spending review Topic 4]]+Dataset[[#This Row],[2025/26 From - Other reallocations]]","v":0},{"$f":"Dataset[[#This Row],[2023/24 To - Spending review Topic 1]]+Dataset[[#This Row],[2023/24 To - Spending review Topic 2]]+Dataset[[#This Row],[2023/24 To - Spending review Topic 3]]+Dataset[[#This Row],[2023/24 To - Spending review Topic 4]]+Dataset[[#This Row],[2023/24 To - Other reallocations]]","v":0},{"$f":"Dataset[[#This Row],[2024/25 To - Spending review Topic 1]]+Dataset[[#This Row],[2024/25 To - Spending review Topic 2]]+Dataset[[#This Row],[2024/25 To - Spending review Topic 3]]+Dataset[[#This Row],[2024/25 To - Spending review Topic 4]]+Dataset[[#This Row],[2024/25 To - Other reallocations]]","v":0},{"$f":"Dataset[[#This Row],[2025/26 To - Spending review Topic 1]]+Dataset[[#This Row],[2025/26 To - Spending review Topic 2]]+Dataset[[#This Row],[2025/26 To - Spending review Topic 3]]+Dataset[[#This Row],[2025/26 To - Spending review Topic 4]]+Dataset[[#This Row],[2025/26 To - Other reallocations]]","v":0},{"$f":"Dataset[[#This Row],[2023/24 Baseline]]+Dataset[[#This Row],[2023/24 From - Total]]+Dataset[[#This Row],[2023/24 To - Total]]","v":0},{"$f":"Dataset[[#This Row],[2024/25 Baseline]]+Dataset[[#This Row],[2024/25 From - Total]]+Dataset[[#This Row],[2024/25 To - Total]]","v":0},{"$f":"Dataset[[#This Row],[2025/26 Baseline]]+Dataset[[#This Row],[2025/26 From - Total]]+Dataset[[#This Row],[2025/26 To - Total]]","v":0}]
["NAT|Non-transfer item","2|Higher education institutions","2023_24","MTEF2023",2,16,1,1373,756,"02","16","01","001373","000756","02|16|01",2,2,6,47,49,"02|02|06|47|49","National","Parliament","Direct charge against the National Revenue Fund","Members' Remuneration","Non-transfer item","Capital","Transfers and subsidies","Higher education institutions","Higher education institutions","Higher education institutions","General public services","Executive and legislative organs","NAT",0,0,0,0,0,0,0,0,0,0,0,null,null,null,null,null,null,null,null,null,null,null,null,null,null,null,null,null,null,null,null,null,null,null,null,null,null,null,null,null,null,{"$f":"Dataset[[#This Row],[2023/24 From - Spending review Topic 1]]+Dataset[[#This Row],[2023/24 From - Spending review Topic 2]]+Dataset[[#This Row],[2023/24 From - Spending review Topic 3]]+Dataset[[#This Row],[2023/24 From - Spending review Topic 4]]+Dataset[[#This Row],[2023/24 From - Other reallocations]]","v":0},{"$f":"Dataset[[#This Row],[2024/25 From - Spending review Topic 1]]+Dataset[[#This Row],[2024/25 From - Spending review Topic 2]]+Dataset[[#This Row],[2024/25 From - Spending review Topic 3]]+Dataset[[#This Row],[2024/25 From - Spending review Topic 4]]+Dataset[[#This Row],[2024/25 From - Other reallocations]]","v":0},{"$f":"Dataset[[#This Row],[2025/26 From - Spending review Topic 1]]+Dataset[[#This Row],[2025/26 From - Spending review Topic 2]]+Dataset[[#This Row],[2025/26 From - Spending review Topic 3]]+Dataset[[#This Row],[2025/26 From - Spending review Topic 4]]+Dataset[[#This Row],[2025/26 From - Other reallocations]]","v":0},{"$f":"Dataset[[#This Row],[2023/24 To - Spending review Topic 1]]+Dataset[[#This Row],[2023/24 To - Spending review Topic 2]]+Dataset[[#This Row],[2023/24 To - Spending review Topic 3]]+Dataset[[#This Row],[2023/24 To - Spending review Topic 4]]+Dataset[[#This Row],[2023/24 To - Other reallocations]]","v":0},{"$f":"Dataset[[#This Row],[2024/25 To - Spending review Topic 1]]+Dataset[[#This Row],[2024/25 To - Spending review Topic 2]]+Dataset[[#This Row],[2024/25 To - Spending review Topic 3]]+Dataset[[#This Row],[2024/25 To - Spending review Topic 4]]+Dataset[[#This Row],[2024/25 To - Other reallocations]]","v":0},{"$f":"Dataset[[#This Row],[2025/26 To - Spending review Topic 1]]+Dataset[[#This Row],[2025/26 To - Spending review Topic 2]]+Dataset[[#This Row],[2025/26 To - Spending review Topic 3]]+Dataset[[#This Row],[2025/26 To - Spending review Topic 4]]+Dataset[[#This Row],[2025/26 To - Other reallocations]]","v":0},{"$f":"Dataset[[#This Row],[2023/24 Baseline]]+Dataset[[#This Row],[2023/24 From - Total]]+Dataset[[#This Row],[2023/24 To - Total]]","v":0},{"$f":"Dataset[[#This Row],[2024/25 Baseline]]+Dataset[[#This Row],[2024/25 From - Total]]+Dataset[[#This Row],[2024/25 To - Total]]","v":0},{"$f":"Dataset[[#This Row],[2025/26 Baseline]]+Dataset[[#This Row],[2025/26 From - Total]]+Dataset[[#This Row],[2025/26 To - Total]]","v":0}]
["NAT|Non-transfer item","2|Foreign governments and international organisations","2023_24","MTEF2023",2,16,1,1374,757,"02","16","01","001374","000757","02|16|01",2,2,7,48,50,"02|02|07|48|50","National","Parliament","Direct charge against the National Revenue Fund","Members' Remuneration","Non-transfer item","Capital","Transfers and subsidies","Foreign governments and international organisations","Foreign governments and international organisations","Foreign governments and international organisations","General public services","Executive and legislative organs","NAT",0,0,0,0,0,0,0,0,0,0,0,null,null,null,null,null,null,null,null,null,null,null,null,null,null,null,null,null,null,null,null,null,null,null,null,null,null,null,null,null,null,{"$f":"Dataset[[#This Row],[2023/24 From - Spending review Topic 1]]+Dataset[[#This Row],[2023/24 From - Spending review Topic 2]]+Dataset[[#This Row],[2023/24 From - Spending review Topic 3]]+Dataset[[#This Row],[2023/24 From - Spending review Topic 4]]+Dataset[[#This Row],[2023/24 From - Other reallocations]]","v":0},{"$f":"Dataset[[#This Row],[2024/25 From - Spending review Topic 1]]+Dataset[[#This Row],[2024/25 From - Spending review Topic 2]]+Dataset[[#This Row],[2024/25 From - Spending review Topic 3]]+Dataset[[#This Row],[2024/25 From - Spending review Topic 4]]+Dataset[[#This Row],[2024/25 From - Other reallocations]]","v":0},{"$f":"Dataset[[#This Row],[2025/26 From - Spending review Topic 1]]+Dataset[[#This Row],[2025/26 From - Spending review Topic 2]]+Dataset[[#This Row],[2025/26 From - Spending review Topic 3]]+Dataset[[#This Row],[2025/26 From - Spending review Topic 4]]+Dataset[[#This Row],[2025/26 From - Other reallocations]]","v":0},{"$f":"Dataset[[#This Row],[2023/24 To - Spending review Topic 1]]+Dataset[[#This Row],[2023/24 To - Spending review Topic 2]]+Dataset[[#This Row],[2023/24 To - Spending review Topic 3]]+Dataset[[#This Row],[2023/24 To - Spending review Topic 4]]+Dataset[[#This Row],[2023/24 To - Other reallocations]]","v":0},{"$f":"Dataset[[#This Row],[2024/25 To - Spending review Topic 1]]+Dataset[[#This Row],[2024/25 To - Spending review Topic 2]]+Dataset[[#This Row],[2024/25 To - Spending review Topic 3]]+Dataset[[#This Row],[2024/25 To - Spending review Topic 4]]+Dataset[[#This Row],[2024/25 To - Other reallocations]]","v":0},{"$f":"Dataset[[#This Row],[2025/26 To - Spending review Topic 1]]+Dataset[[#This Row],[2025/26 To - Spending review Topic 2]]+Dataset[[#This Row],[2025/26 To - Spending review Topic 3]]+Dataset[[#This Row],[2025/26 To - Spending review Topic 4]]+Dataset[[#This Row],[2025/26 To - Other reallocations]]","v":0},{"$f":"Dataset[[#This Row],[2023/24 Baseline]]+Dataset[[#This Row],[2023/24 From - Total]]+Dataset[[#This Row],[2023/24 To - Total]]","v":0},{"$f":"Dataset[[#This Row],[2024/25 Baseline]]+Dataset[[#This Row],[2024/25 From - Total]]+Dataset[[#This Row],[2024/25 To - Total]]","v":0},{"$f":"Dataset[[#This Row],[2025/26 Baseline]]+Dataset[[#This Row],[2025/26 From - Total]]+Dataset[[#This Row],[2025/26 To - Total]]","v":0}]
["NAT|Non-transfer item","2|Subsidies on products and production (pc)","2023_24","MTEF2023",2,16,1,1375,758,"02","16","01","001375","000758","02|16|01",2,2,8,49,51,"02|02|08|49|51","National","Parliament","Direct charge against the National Revenue Fund","Members' Remuneration","Non-transfer item","Capital","Transfers and subsidies","Public corporations and private enterprises","Public corporations","Subsidies on products and production (pc)","General public services","Executive and legislative organs","NAT",0,0,0,0,0,0,0,0,0,0,0,null,null,null,null,null,null,null,null,null,null,null,null,null,null,null,null,null,null,null,null,null,null,null,null,null,null,null,null,null,null,{"$f":"Dataset[[#This Row],[2023/24 From - Spending review Topic 1]]+Dataset[[#This Row],[2023/24 From - Spending review Topic 2]]+Dataset[[#This Row],[2023/24 From - Spending review Topic 3]]+Dataset[[#This Row],[2023/24 From - Spending review Topic 4]]+Dataset[[#This Row],[2023/24 From - Other reallocations]]","v":0},{"$f":"Dataset[[#This Row],[2024/25 From - Spending review Topic 1]]+Dataset[[#This Row],[2024/25 From - Spending review Topic 2]]+Dataset[[#This Row],[2024/25 From - Spending review Topic 3]]+Dataset[[#This Row],[2024/25 From - Spending review Topic 4]]+Dataset[[#This Row],[2024/25 From - Other reallocations]]","v":0},{"$f":"Dataset[[#This Row],[2025/26 From - Spending review Topic 1]]+Dataset[[#This Row],[2025/26 From - Spending review Topic 2]]+Dataset[[#This Row],[2025/26 From - Spending review Topic 3]]+Dataset[[#This Row],[2025/26 From - Spending review Topic 4]]+Dataset[[#This Row],[2025/26 From - Other reallocations]]","v":0},{"$f":"Dataset[[#This Row],[2023/24 To - Spending review Topic 1]]+Dataset[[#This Row],[2023/24 To - Spending review Topic 2]]+Dataset[[#This Row],[2023/24 To - Spending review Topic 3]]+Dataset[[#This Row],[2023/24 To - Spending review Topic 4]]+Dataset[[#This Row],[2023/24 To - Other reallocations]]","v":0},{"$f":"Dataset[[#This Row],[2024/25 To - Spending review Topic 1]]+Dataset[[#This Row],[2024/25 To - Spending review Topic 2]]+Dataset[[#This Row],[2024/25 To - Spending review Topic 3]]+Dataset[[#This Row],[2024/25 To - Spending review Topic 4]]+Dataset[[#This Row],[2024/25 To - Other reallocations]]","v":0},{"$f":"Dataset[[#This Row],[2025/26 To - Spending review Topic 1]]+Dataset[[#This Row],[2025/26 To - Spending review Topic 2]]+Dataset[[#This Row],[2025/26 To - Spending review Topic 3]]+Dataset[[#This Row],[2025/26 To - Spending review Topic 4]]+Dataset[[#This Row],[2025/26 To - Other reallocations]]","v":0},{"$f":"Dataset[[#This Row],[2023/24 Baseline]]+Dataset[[#This Row],[2023/24 From - Total]]+Dataset[[#This Row],[2023/24 To - Total]]","v":0},{"$f":"Dataset[[#This Row],[2024/25 Baseline]]+Dataset[[#This Row],[2024/25 From - Total]]+Dataset[[#This Row],[2024/25 To - Total]]","v":0},{"$f":"Dataset[[#This Row],[2025/26 Baseline]]+Dataset[[#This Row],[2025/26 From - Total]]+Dataset[[#This Row],[2025/26 To - Total]]","v":0}]
["NAT|Non-transfer item","2|Other transfers to public corporations","2023_24","MTEF2023",2,16,1,1376,759,"02","16","01","001376","000759","02|16|01",2,2,8,49,52,"02|02|08|49|52","National","Parliament","Direct charge against the National Revenue Fund","Members' Remuneration","Non-transfer item","Capital","Transfers and subsidies","Public corporations and private enterprises","Public corporations","Other transfers to public corporations","General public services","Executive and legislative organs","NAT",0,0,0,0,0,0,0,0,0,0,0,null,null,null,null,null,null,null,null,null,null,null,null,null,null,null,null,null,null,null,null,null,null,null,null,null,null,null,null,null,null,{"$f":"Dataset[[#This Row],[2023/24 From - Spending review Topic 1]]+Dataset[[#This Row],[2023/24 From - Spending review Topic 2]]+Dataset[[#This Row],[2023/24 From - Spending review Topic 3]]+Dataset[[#This Row],[2023/24 From - Spending review Topic 4]]+Dataset[[#This Row],[2023/24 From - Other reallocations]]","v":0},{"$f":"Dataset[[#This Row],[2024/25 From - Spending review Topic 1]]+Dataset[[#This Row],[2024/25 From - Spending review Topic 2]]+Dataset[[#This Row],[2024/25 From - Spending review Topic 3]]+Dataset[[#This Row],[2024/25 From - Spending review Topic 4]]+Dataset[[#This Row],[2024/25 From - Other reallocations]]","v":0},{"$f":"Dataset[[#This Row],[2025/26 From - Spending review Topic 1]]+Dataset[[#This Row],[2025/26 From - Spending review Topic 2]]+Dataset[[#This Row],[2025/26 From - Spending review Topic 3]]+Dataset[[#This Row],[2025/26 From - Spending review Topic 4]]+Dataset[[#This Row],[2025/26 From - Other reallocations]]","v":0},{"$f":"Dataset[[#This Row],[2023/24 To - Spending review Topic 1]]+Dataset[[#This Row],[2023/24 To - Spending review Topic 2]]+Dataset[[#This Row],[2023/24 To - Spending review Topic 3]]+Dataset[[#This Row],[2023/24 To - Spending review Topic 4]]+Dataset[[#This Row],[2023/24 To - Other reallocations]]","v":0},{"$f":"Dataset[[#This Row],[2024/25 To - Spending review Topic 1]]+Dataset[[#This Row],[2024/25 To - Spending review Topic 2]]+Dataset[[#This Row],[2024/25 To - Spending review Topic 3]]+Dataset[[#This Row],[2024/25 To - Spending review Topic 4]]+Dataset[[#This Row],[2024/25 To - Other reallocations]]","v":0},{"$f":"Dataset[[#This Row],[2025/26 To - Spending review Topic 1]]+Dataset[[#This Row],[2025/26 To - Spending review Topic 2]]+Dataset[[#This Row],[2025/26 To - Spending review Topic 3]]+Dataset[[#This Row],[2025/26 To - Spending review Topic 4]]+Dataset[[#This Row],[2025/26 To - Other reallocations]]","v":0},{"$f":"Dataset[[#This Row],[2023/24 Baseline]]+Dataset[[#This Row],[2023/24 From - Total]]+Dataset[[#This Row],[2023/24 To - Total]]","v":0},{"$f":"Dataset[[#This Row],[2024/25 Baseline]]+Dataset[[#This Row],[2024/25 From - Total]]+Dataset[[#This Row],[2024/25 To - Total]]","v":0},{"$f":"Dataset[[#This Row],[2025/26 Baseline]]+Dataset[[#This Row],[2025/26 From - Total]]+Dataset[[#This Row],[2025/26 To - Total]]","v":0}]
["NAT|Non-transfer item","2|Other transfers to private enterprises","2023_24","MTEF2023",2,16,1,1377,760,"02","16","01","001377","000760","02|16|01",2,2,8,50,54,"02|02|08|50|54","National","Parliament","Direct charge against the National Revenue Fund","Members' Remuneration","Non-transfer item","Capital","Transfers and subsidies","Public corporations and private enterprises","Private enterprises","Other transfers to private enterprises","General public services","Executive and legislative organs","NAT",0,0,0,0,0,0,0,0,0,0,0,null,null,null,null,null,null,null,null,null,null,null,null,null,null,null,null,null,null,null,null,null,null,null,null,null,null,null,null,null,null,{"$f":"Dataset[[#This Row],[2023/24 From - Spending review Topic 1]]+Dataset[[#This Row],[2023/24 From - Spending review Topic 2]]+Dataset[[#This Row],[2023/24 From - Spending review Topic 3]]+Dataset[[#This Row],[2023/24 From - Spending review Topic 4]]+Dataset[[#This Row],[2023/24 From - Other reallocations]]","v":0},{"$f":"Dataset[[#This Row],[2024/25 From - Spending review Topic 1]]+Dataset[[#This Row],[2024/25 From - Spending review Topic 2]]+Dataset[[#This Row],[2024/25 From - Spending review Topic 3]]+Dataset[[#This Row],[2024/25 From - Spending review Topic 4]]+Dataset[[#This Row],[2024/25 From - Other reallocations]]","v":0},{"$f":"Dataset[[#This Row],[2025/26 From - Spending review Topic 1]]+Dataset[[#This Row],[2025/26 From - Spending review Topic 2]]+Dataset[[#This Row],[2025/26 From - Spending review Topic 3]]+Dataset[[#This Row],[2025/26 From - Spending review Topic 4]]+Dataset[[#This Row],[2025/26 From - Other reallocations]]","v":0},{"$f":"Dataset[[#This Row],[2023/24 To - Spending review Topic 1]]+Dataset[[#This Row],[2023/24 To - Spending review Topic 2]]+Dataset[[#This Row],[2023/24 To - Spending review Topic 3]]+Dataset[[#This Row],[2023/24 To - Spending review Topic 4]]+Dataset[[#This Row],[2023/24 To - Other reallocations]]","v":0},{"$f":"Dataset[[#This Row],[2024/25 To - Spending review Topic 1]]+Dataset[[#This Row],[2024/25 To - Spending review Topic 2]]+Dataset[[#This Row],[2024/25 To - Spending review Topic 3]]+Dataset[[#This Row],[2024/25 To - Spending review Topic 4]]+Dataset[[#This Row],[2024/25 To - Other reallocations]]","v":0},{"$f":"Dataset[[#This Row],[2025/26 To - Spending review Topic 1]]+Dataset[[#This Row],[2025/26 To - Spending review Topic 2]]+Dataset[[#This Row],[2025/26 To - Spending review Topic 3]]+Dataset[[#This Row],[2025/26 To - Spending review Topic 4]]+Dataset[[#This Row],[2025/26 To - Other reallocations]]","v":0},{"$f":"Dataset[[#This Row],[2023/24 Baseline]]+Dataset[[#This Row],[2023/24 From - Total]]+Dataset[[#This Row],[2023/24 To - Total]]","v":0},{"$f":"Dataset[[#This Row],[2024/25 Baseline]]+Dataset[[#This Row],[2024/25 From - Total]]+Dataset[[#This Row],[2024/25 To - Total]]","v":0},{"$f":"Dataset[[#This Row],[2025/26 Baseline]]+Dataset[[#This Row],[2025/26 From - Total]]+Dataset[[#This Row],[2025/26 To - Total]]","v":0}]
["NAT|Non-transfer item","2|Non-profit institutions","2023_24","MTEF2023",2,16,1,1378,761,"02","16","01","001378","000761","02|16|01",2,2,9,51,55,"02|02|09|51|55","National","Parliament","Direct charge against the National Revenue Fund","Members' Remuneration","Non-transfer item","Capital","Transfers and subsidies","Non-profit institutions","Non-profit institutions","Non-profit institutions","General public services","Executive and legislative organs","NAT",0,0,0,0,0,0,0,0,0,0,0,null,null,null,null,null,null,null,null,null,null,null,null,null,null,null,null,null,null,null,null,null,null,null,null,null,null,null,null,null,null,{"$f":"Dataset[[#This Row],[2023/24 From - Spending review Topic 1]]+Dataset[[#This Row],[2023/24 From - Spending review Topic 2]]+Dataset[[#This Row],[2023/24 From - Spending review Topic 3]]+Dataset[[#This Row],[2023/24 From - Spending review Topic 4]]+Dataset[[#This Row],[2023/24 From - Other reallocations]]","v":0},{"$f":"Dataset[[#This Row],[2024/25 From - Spending review Topic 1]]+Dataset[[#This Row],[2024/25 From - Spending review Topic 2]]+Dataset[[#This Row],[2024/25 From - Spending review Topic 3]]+Dataset[[#This Row],[2024/25 From - Spending review Topic 4]]+Dataset[[#This Row],[2024/25 From - Other reallocations]]","v":0},{"$f":"Dataset[[#This Row],[2025/26 From - Spending review Topic 1]]+Dataset[[#This Row],[2025/26 From - Spending review Topic 2]]+Dataset[[#This Row],[2025/26 From - Spending review Topic 3]]+Dataset[[#This Row],[2025/26 From - Spending review Topic 4]]+Dataset[[#This Row],[2025/26 From - Other reallocations]]","v":0},{"$f":"Dataset[[#This Row],[2023/24 To - Spending review Topic 1]]+Dataset[[#This Row],[2023/24 To - Spending review Topic 2]]+Dataset[[#This Row],[2023/24 To - Spending review Topic 3]]+Dataset[[#This Row],[2023/24 To - Spending review Topic 4]]+Dataset[[#This Row],[2023/24 To - Other reallocations]]","v":0},{"$f":"Dataset[[#This Row],[2024/25 To - Spending review Topic 1]]+Dataset[[#This Row],[2024/25 To - Spending review Topic 2]]+Dataset[[#This Row],[2024/25 To - Spending review Topic 3]]+Dataset[[#This Row],[2024/25 To - Spending review Topic 4]]+Dataset[[#This Row],[2024/25 To - Other reallocations]]","v":0},{"$f":"Dataset[[#This Row],[2025/26 To - Spending review Topic 1]]+Dataset[[#This Row],[2025/26 To - Spending review Topic 2]]+Dataset[[#This Row],[2025/26 To - Spending review Topic 3]]+Dataset[[#This Row],[2025/26 To - Spending review Topic 4]]+Dataset[[#This Row],[2025/26 To - Other reallocations]]","v":0},{"$f":"Dataset[[#This Row],[2023/24 Baseline]]+Dataset[[#This Row],[2023/24 From - Total]]+Dataset[[#This Row],[2023/24 To - Total]]","v":0},{"$f":"Dataset[[#This Row],[2024/25 Baseline]]+Dataset[[#This Row],[2024/25 From - Total]]+Dataset[[#This Row],[2024/25 To - Total]]","v":0},{"$f":"Dataset[[#This Row],[2025/26 Baseline]]+Dataset[[#This Row],[2025/26 From - Total]]+Dataset[[#This Row],[2025/26 To - Total]]","v":0}]
["NAT|Non-transfer item","2|Other transfers to households","2023_24","MTEF2023",2,16,1,1379,762,"02","16","01","001379","000762","02|16|01",2,2,10,53,57,"02|02|10|53|57","National","Parliament","Direct charge against the National Revenue Fund","Members' Remuneration","Non-transfer item","Capital","Transfers and subsidies","Households","Other transfers to households","Other transfers to households","General public services","Executive and legislative organs","NAT",0,0,0,0,0,0,0,0,0,0,0,null,null,null,null,null,null,null,null,null,null,null,null,null,null,null,null,null,null,null,null,null,null,null,null,null,null,null,null,null,null,{"$f":"Dataset[[#This Row],[2023/24 From - Spending review Topic 1]]+Dataset[[#This Row],[2023/24 From - Spending review Topic 2]]+Dataset[[#This Row],[2023/24 From - Spending review Topic 3]]+Dataset[[#This Row],[2023/24 From - Spending review Topic 4]]+Dataset[[#This Row],[2023/24 From - Other reallocations]]","v":0},{"$f":"Dataset[[#This Row],[2024/25 From - Spending review Topic 1]]+Dataset[[#This Row],[2024/25 From - Spending review Topic 2]]+Dataset[[#This Row],[2024/25 From - Spending review Topic 3]]+Dataset[[#This Row],[2024/25 From - Spending review Topic 4]]+Dataset[[#This Row],[2024/25 From - Other reallocations]]","v":0},{"$f":"Dataset[[#This Row],[2025/26 From - Spending review Topic 1]]+Dataset[[#This Row],[2025/26 From - Spending review Topic 2]]+Dataset[[#This Row],[2025/26 From - Spending review Topic 3]]+Dataset[[#This Row],[2025/26 From - Spending review Topic 4]]+Dataset[[#This Row],[2025/26 From - Other reallocations]]","v":0},{"$f":"Dataset[[#This Row],[2023/24 To - Spending review Topic 1]]+Dataset[[#This Row],[2023/24 To - Spending review Topic 2]]+Dataset[[#This Row],[2023/24 To - Spending review Topic 3]]+Dataset[[#This Row],[2023/24 To - Spending review Topic 4]]+Dataset[[#This Row],[2023/24 To - Other reallocations]]","v":0},{"$f":"Dataset[[#This Row],[2024/25 To - Spending review Topic 1]]+Dataset[[#This Row],[2024/25 To - Spending review Topic 2]]+Dataset[[#This Row],[2024/25 To - Spending review Topic 3]]+Dataset[[#This Row],[2024/25 To - Spending review Topic 4]]+Dataset[[#This Row],[2024/25 To - Other reallocations]]","v":0},{"$f":"Dataset[[#This Row],[2025/26 To - Spending review Topic 1]]+Dataset[[#This Row],[2025/26 To - Spending review Topic 2]]+Dataset[[#This Row],[2025/26 To - Spending review Topic 3]]+Dataset[[#This Row],[2025/26 To - Spending review Topic 4]]+Dataset[[#This Row],[2025/26 To - Other reallocations]]","v":0},{"$f":"Dataset[[#This Row],[2023/24 Baseline]]+Dataset[[#This Row],[2023/24 From - Total]]+Dataset[[#This Row],[2023/24 To - Total]]","v":0},{"$f":"Dataset[[#This Row],[2024/25 Baseline]]+Dataset[[#This Row],[2024/25 From - Total]]+Dataset[[#This Row],[2024/25 To - Total]]","v":0},{"$f":"Dataset[[#This Row],[2025/26 Baseline]]+Dataset[[#This Row],[2025/26 From - Total]]+Dataset[[#This Row],[2025/26 To - Total]]","v":0}]
["NAT|Non-transfer item","2|Buildings","2023_24","MTEF2023",2,16,1,1380,763,"02","16","01","001380","000763","02|16|01",2,3,11,54,58,"02|03|11|54|58","National","Parliament","Direct charge against the National Revenue Fund","Members' Remuneration","Non-transfer item","Capital","Payments for capital assets","Buildings and other fixed structures","Buildings","Buildings","General public services","Executive and legislative organs","NAT",0,0,0,0,0,0,0,0,0,0,0,null,null,null,null,null,null,null,null,null,null,null,null,null,null,null,null,null,null,null,null,null,null,null,null,null,null,null,null,null,null,{"$f":"Dataset[[#This Row],[2023/24 From - Spending review Topic 1]]+Dataset[[#This Row],[2023/24 From - Spending review Topic 2]]+Dataset[[#This Row],[2023/24 From - Spending review Topic 3]]+Dataset[[#This Row],[2023/24 From - Spending review Topic 4]]+Dataset[[#This Row],[2023/24 From - Other reallocations]]","v":0},{"$f":"Dataset[[#This Row],[2024/25 From - Spending review Topic 1]]+Dataset[[#This Row],[2024/25 From - Spending review Topic 2]]+Dataset[[#This Row],[2024/25 From - Spending review Topic 3]]+Dataset[[#This Row],[2024/25 From - Spending review Topic 4]]+Dataset[[#This Row],[2024/25 From - Other reallocations]]","v":0},{"$f":"Dataset[[#This Row],[2025/26 From - Spending review Topic 1]]+Dataset[[#This Row],[2025/26 From - Spending review Topic 2]]+Dataset[[#This Row],[2025/26 From - Spending review Topic 3]]+Dataset[[#This Row],[2025/26 From - Spending review Topic 4]]+Dataset[[#This Row],[2025/26 From - Other reallocations]]","v":0},{"$f":"Dataset[[#This Row],[2023/24 To - Spending review Topic 1]]+Dataset[[#This Row],[2023/24 To - Spending review Topic 2]]+Dataset[[#This Row],[2023/24 To - Spending review Topic 3]]+Dataset[[#This Row],[2023/24 To - Spending review Topic 4]]+Dataset[[#This Row],[2023/24 To - Other reallocations]]","v":0},{"$f":"Dataset[[#This Row],[2024/25 To - Spending review Topic 1]]+Dataset[[#This Row],[2024/25 To - Spending review Topic 2]]+Dataset[[#This Row],[2024/25 To - Spending review Topic 3]]+Dataset[[#This Row],[2024/25 To - Spending review Topic 4]]+Dataset[[#This Row],[2024/25 To - Other reallocations]]","v":0},{"$f":"Dataset[[#This Row],[2025/26 To - Spending review Topic 1]]+Dataset[[#This Row],[2025/26 To - Spending review Topic 2]]+Dataset[[#This Row],[2025/26 To - Spending review Topic 3]]+Dataset[[#This Row],[2025/26 To - Spending review Topic 4]]+Dataset[[#This Row],[2025/26 To - Other reallocations]]","v":0},{"$f":"Dataset[[#This Row],[2023/24 Baseline]]+Dataset[[#This Row],[2023/24 From - Total]]+Dataset[[#This Row],[2023/24 To - Total]]","v":0},{"$f":"Dataset[[#This Row],[2024/25 Baseline]]+Dataset[[#This Row],[2024/25 From - Total]]+Dataset[[#This Row],[2024/25 To - Total]]","v":0},{"$f":"Dataset[[#This Row],[2025/26 Baseline]]+Dataset[[#This Row],[2025/26 From - Total]]+Dataset[[#This Row],[2025/26 To - Total]]","v":0}]
["NAT|Non-transfer item","2|Other fixed structures","2023_24","MTEF2023",2,16,1,1381,764,"02","16","01","001381","000764","02|16|01",2,3,11,55,59,"02|03|11|55|59","National","Parliament","Direct charge against the National Revenue Fund","Members' Remuneration","Non-transfer item","Capital","Payments for capital assets","Buildings and other fixed structures","Other fixed structures","Other fixed structures","General public services","Executive and legislative organs","NAT",0,0,0,0,0,0,0,0,0,0,0,null,null,null,null,null,null,null,null,null,null,null,null,null,null,null,null,null,null,null,null,null,null,null,null,null,null,null,null,null,null,{"$f":"Dataset[[#This Row],[2023/24 From - Spending review Topic 1]]+Dataset[[#This Row],[2023/24 From - Spending review Topic 2]]+Dataset[[#This Row],[2023/24 From - Spending review Topic 3]]+Dataset[[#This Row],[2023/24 From - Spending review Topic 4]]+Dataset[[#This Row],[2023/24 From - Other reallocations]]","v":0},{"$f":"Dataset[[#This Row],[2024/25 From - Spending review Topic 1]]+Dataset[[#This Row],[2024/25 From - Spending review Topic 2]]+Dataset[[#This Row],[2024/25 From - Spending review Topic 3]]+Dataset[[#This Row],[2024/25 From - Spending review Topic 4]]+Dataset[[#This Row],[2024/25 From - Other reallocations]]","v":0},{"$f":"Dataset[[#This Row],[2025/26 From - Spending review Topic 1]]+Dataset[[#This Row],[2025/26 From - Spending review Topic 2]]+Dataset[[#This Row],[2025/26 From - Spending review Topic 3]]+Dataset[[#This Row],[2025/26 From - Spending review Topic 4]]+Dataset[[#This Row],[2025/26 From - Other reallocations]]","v":0},{"$f":"Dataset[[#This Row],[2023/24 To - Spending review Topic 1]]+Dataset[[#This Row],[2023/24 To - Spending review Topic 2]]+Dataset[[#This Row],[2023/24 To - Spending review Topic 3]]+Dataset[[#This Row],[2023/24 To - Spending review Topic 4]]+Dataset[[#This Row],[2023/24 To - Other reallocations]]","v":0},{"$f":"Dataset[[#This Row],[2024/25 To - Spending review Topic 1]]+Dataset[[#This Row],[2024/25 To - Spending review Topic 2]]+Dataset[[#This Row],[2024/25 To - Spending review Topic 3]]+Dataset[[#This Row],[2024/25 To - Spending review Topic 4]]+Dataset[[#This Row],[2024/25 To - Other reallocations]]","v":0},{"$f":"Dataset[[#This Row],[2025/26 To - Spending review Topic 1]]+Dataset[[#This Row],[2025/26 To - Spending review Topic 2]]+Dataset[[#This Row],[2025/26 To - Spending review Topic 3]]+Dataset[[#This Row],[2025/26 To - Spending review Topic 4]]+Dataset[[#This Row],[2025/26 To - Other reallocations]]","v":0},{"$f":"Dataset[[#This Row],[2023/24 Baseline]]+Dataset[[#This Row],[2023/24 From - Total]]+Dataset[[#This Row],[2023/24 To - Total]]","v":0},{"$f":"Dataset[[#This Row],[2024/25 Baseline]]+Dataset[[#This Row],[2024/25 From - Total]]+Dataset[[#This Row],[2024/25 To - Total]]","v":0},{"$f":"Dataset[[#This Row],[2025/26 Baseline]]+Dataset[[#This Row],[2025/26 From - Total]]+Dataset[[#This Row],[2025/26 To - Total]]","v":0}]
["NAT|Non-transfer item","2|Transport equipment","2023_24","MTEF2023",2,16,1,1382,765,"02","16","01","001382","000765","02|16|01",2,3,12,56,60,"02|03|12|56|60","National","Parliament","Direct charge against the National Revenue Fund","Members' Remuneration","Non-transfer item","Capital","Payments for capital assets","Machinery and equipment","Transport equipment","Transport equipment","General public services","Executive and legislative organs","NAT",0,0,0,0,0,0,0,0,0,0,0,null,null,null,null,null,null,null,null,null,null,null,null,null,null,null,null,null,null,null,null,null,null,null,null,null,null,null,null,null,null,{"$f":"Dataset[[#This Row],[2023/24 From - Spending review Topic 1]]+Dataset[[#This Row],[2023/24 From - Spending review Topic 2]]+Dataset[[#This Row],[2023/24 From - Spending review Topic 3]]+Dataset[[#This Row],[2023/24 From - Spending review Topic 4]]+Dataset[[#This Row],[2023/24 From - Other reallocations]]","v":0},{"$f":"Dataset[[#This Row],[2024/25 From - Spending review Topic 1]]+Dataset[[#This Row],[2024/25 From - Spending review Topic 2]]+Dataset[[#This Row],[2024/25 From - Spending review Topic 3]]+Dataset[[#This Row],[2024/25 From - Spending review Topic 4]]+Dataset[[#This Row],[2024/25 From - Other reallocations]]","v":0},{"$f":"Dataset[[#This Row],[2025/26 From - Spending review Topic 1]]+Dataset[[#This Row],[2025/26 From - Spending review Topic 2]]+Dataset[[#This Row],[2025/26 From - Spending review Topic 3]]+Dataset[[#This Row],[2025/26 From - Spending review Topic 4]]+Dataset[[#This Row],[2025/26 From - Other reallocations]]","v":0},{"$f":"Dataset[[#This Row],[2023/24 To - Spending review Topic 1]]+Dataset[[#This Row],[2023/24 To - Spending review Topic 2]]+Dataset[[#This Row],[2023/24 To - Spending review Topic 3]]+Dataset[[#This Row],[2023/24 To - Spending review Topic 4]]+Dataset[[#This Row],[2023/24 To - Other reallocations]]","v":0},{"$f":"Dataset[[#This Row],[2024/25 To - Spending review Topic 1]]+Dataset[[#This Row],[2024/25 To - Spending review Topic 2]]+Dataset[[#This Row],[2024/25 To - Spending review Topic 3]]+Dataset[[#This Row],[2024/25 To - Spending review Topic 4]]+Dataset[[#This Row],[2024/25 To - Other reallocations]]","v":0},{"$f":"Dataset[[#This Row],[2025/26 To - Spending review Topic 1]]+Dataset[[#This Row],[2025/26 To - Spending review Topic 2]]+Dataset[[#This Row],[2025/26 To - Spending review Topic 3]]+Dataset[[#This Row],[2025/26 To - Spending review Topic 4]]+Dataset[[#This Row],[2025/26 To - Other reallocations]]","v":0},{"$f":"Dataset[[#This Row],[2023/24 Baseline]]+Dataset[[#This Row],[2023/24 From - Total]]+Dataset[[#This Row],[2023/24 To - Total]]","v":0},{"$f":"Dataset[[#This Row],[2024/25 Baseline]]+Dataset[[#This Row],[2024/25 From - Total]]+Dataset[[#This Row],[2024/25 To - Total]]","v":0},{"$f":"Dataset[[#This Row],[2025/26 Baseline]]+Dataset[[#This Row],[2025/26 From - Total]]+Dataset[[#This Row],[2025/26 To - Total]]","v":0}]
["NAT|Non-transfer item","2|Other machinery and equipment","2023_24","MTEF2023",2,16,1,1383,766,"02","16","01","001383","000766","02|16|01",2,3,12,57,61,"02|03|12|57|61","National","Parliament","Direct charge against the National Revenue Fund","Members' Remuneration","Non-transfer item","Capital","Payments for capital assets","Machinery and equipment","Other machinery and equipment","Other machinery and equipment","General public services","Executive and legislative organs","NAT",0,0,0,0,0,0,0,0,0,0,0,null,null,null,null,null,null,null,null,null,null,null,null,null,null,null,null,null,null,null,null,null,null,null,null,null,null,null,null,null,null,{"$f":"Dataset[[#This Row],[2023/24 From - Spending review Topic 1]]+Dataset[[#This Row],[2023/24 From - Spending review Topic 2]]+Dataset[[#This Row],[2023/24 From - Spending review Topic 3]]+Dataset[[#This Row],[2023/24 From - Spending review Topic 4]]+Dataset[[#This Row],[2023/24 From - Other reallocations]]","v":0},{"$f":"Dataset[[#This Row],[2024/25 From - Spending review Topic 1]]+Dataset[[#This Row],[2024/25 From - Spending review Topic 2]]+Dataset[[#This Row],[2024/25 From - Spending review Topic 3]]+Dataset[[#This Row],[2024/25 From - Spending review Topic 4]]+Dataset[[#This Row],[2024/25 From - Other reallocations]]","v":0},{"$f":"Dataset[[#This Row],[2025/26 From - Spending review Topic 1]]+Dataset[[#This Row],[2025/26 From - Spending review Topic 2]]+Dataset[[#This Row],[2025/26 From - Spending review Topic 3]]+Dataset[[#This Row],[2025/26 From - Spending review Topic 4]]+Dataset[[#This Row],[2025/26 From - Other reallocations]]","v":0},{"$f":"Dataset[[#This Row],[2023/24 To - Spending review Topic 1]]+Dataset[[#This Row],[2023/24 To - Spending review Topic 2]]+Dataset[[#This Row],[2023/24 To - Spending review Topic 3]]+Dataset[[#This Row],[2023/24 To - Spending review Topic 4]]+Dataset[[#This Row],[2023/24 To - Other reallocations]]","v":0},{"$f":"Dataset[[#This Row],[2024/25 To - Spending review Topic 1]]+Dataset[[#This Row],[2024/25 To - Spending review Topic 2]]+Dataset[[#This Row],[2024/25 To - Spending review Topic 3]]+Dataset[[#This Row],[2024/25 To - Spending review Topic 4]]+Dataset[[#This Row],[2024/25 To - Other reallocations]]","v":0},{"$f":"Dataset[[#This Row],[2025/26 To - Spending review Topic 1]]+Dataset[[#This Row],[2025/26 To - Spending review Topic 2]]+Dataset[[#This Row],[2025/26 To - Spending review Topic 3]]+Dataset[[#This Row],[2025/26 To - Spending review Topic 4]]+Dataset[[#This Row],[2025/26 To - Other reallocations]]","v":0},{"$f":"Dataset[[#This Row],[2023/24 Baseline]]+Dataset[[#This Row],[2023/24 From - Total]]+Dataset[[#This Row],[2023/24 To - Total]]","v":0},{"$f":"Dataset[[#This Row],[2024/25 Baseline]]+Dataset[[#This Row],[2024/25 From - Total]]+Dataset[[#This Row],[2024/25 To - Total]]","v":0},{"$f":"Dataset[[#This Row],[2025/26 Baseline]]+Dataset[[#This Row],[2025/26 From - Total]]+Dataset[[#This Row],[2025/26 To - Total]]","v":0}]
["NAT|Non-transfer item","2|Heritage assets","2023_24","MTEF2023",2,16,1,1384,767,"02","16","01","001384","000767","02|16|01",2,3,13,58,62,"02|03|13|58|62","National","Parliament","Direct charge against the National Revenue Fund","Members' Remuneration","Non-transfer item","Capital","Payments for capital assets","Heritage assets","Heritage assets","Heritage assets","General public services","Executive and legislative organs","NAT",0,0,0,0,0,0,0,0,0,0,0,null,null,null,null,null,null,null,null,null,null,null,null,null,null,null,null,null,null,null,null,null,null,null,null,null,null,null,null,null,null,{"$f":"Dataset[[#This Row],[2023/24 From - Spending review Topic 1]]+Dataset[[#This Row],[2023/24 From - Spending review Topic 2]]+Dataset[[#This Row],[2023/24 From - Spending review Topic 3]]+Dataset[[#This Row],[2023/24 From - Spending review Topic 4]]+Dataset[[#This Row],[2023/24 From - Other reallocations]]","v":0},{"$f":"Dataset[[#This Row],[2024/25 From - Spending review Topic 1]]+Dataset[[#This Row],[2024/25 From - Spending review Topic 2]]+Dataset[[#This Row],[2024/25 From - Spending review Topic 3]]+Dataset[[#This Row],[2024/25 From - Spending review Topic 4]]+Dataset[[#This Row],[2024/25 From - Other reallocations]]","v":0},{"$f":"Dataset[[#This Row],[2025/26 From - Spending review Topic 1]]+Dataset[[#This Row],[2025/26 From - Spending review Topic 2]]+Dataset[[#This Row],[2025/26 From - Spending review Topic 3]]+Dataset[[#This Row],[2025/26 From - Spending review Topic 4]]+Dataset[[#This Row],[2025/26 From - Other reallocations]]","v":0},{"$f":"Dataset[[#This Row],[2023/24 To - Spending review Topic 1]]+Dataset[[#This Row],[2023/24 To - Spending review Topic 2]]+Dataset[[#This Row],[2023/24 To - Spending review Topic 3]]+Dataset[[#This Row],[2023/24 To - Spending review Topic 4]]+Dataset[[#This Row],[2023/24 To - Other reallocations]]","v":0},{"$f":"Dataset[[#This Row],[2024/25 To - Spending review Topic 1]]+Dataset[[#This Row],[2024/25 To - Spending review Topic 2]]+Dataset[[#This Row],[2024/25 To - Spending review Topic 3]]+Dataset[[#This Row],[2024/25 To - Spending review Topic 4]]+Dataset[[#This Row],[2024/25 To - Other reallocations]]","v":0},{"$f":"Dataset[[#This Row],[2025/26 To - Spending review Topic 1]]+Dataset[[#This Row],[2025/26 To - Spending review Topic 2]]+Dataset[[#This Row],[2025/26 To - Spending review Topic 3]]+Dataset[[#This Row],[2025/26 To - Spending review Topic 4]]+Dataset[[#This Row],[2025/26 To - Other reallocations]]","v":0},{"$f":"Dataset[[#This Row],[2023/24 Baseline]]+Dataset[[#This Row],[2023/24 From - Total]]+Dataset[[#This Row],[2023/24 To - Total]]","v":0},{"$f":"Dataset[[#This Row],[2024/25 Baseline]]+Dataset[[#This Row],[2024/25 From - Total]]+Dataset[[#This Row],[2024/25 To - Total]]","v":0},{"$f":"Dataset[[#This Row],[2025/26 Baseline]]+Dataset[[#This Row],[2025/26 From - Total]]+Dataset[[#This Row],[2025/26 To - Total]]","v":0}]
["NAT|Non-transfer item","2|Specialised military assets","2023_24","MTEF2023",2,16,1,1385,768,"02","16","01","001385","000768","02|16|01",2,3,14,59,63,"02|03|14|59|63","National","Parliament","Direct charge against the National Revenue Fund","Members' Remuneration","Non-transfer item","Capital","Payments for capital assets","Specialised military assets","Specialised military assets","Specialised military assets","General public services","Executive and legislative organs","NAT",0,0,0,0,0,0,0,0,0,0,0,null,null,null,null,null,null,null,null,null,null,null,null,null,null,null,null,null,null,null,null,null,null,null,null,null,null,null,null,null,null,{"$f":"Dataset[[#This Row],[2023/24 From - Spending review Topic 1]]+Dataset[[#This Row],[2023/24 From - Spending review Topic 2]]+Dataset[[#This Row],[2023/24 From - Spending review Topic 3]]+Dataset[[#This Row],[2023/24 From - Spending review Topic 4]]+Dataset[[#This Row],[2023/24 From - Other reallocations]]","v":0},{"$f":"Dataset[[#This Row],[2024/25 From - Spending review Topic 1]]+Dataset[[#This Row],[2024/25 From - Spending review Topic 2]]+Dataset[[#This Row],[2024/25 From - Spending review Topic 3]]+Dataset[[#This Row],[2024/25 From - Spending review Topic 4]]+Dataset[[#This Row],[2024/25 From - Other reallocations]]","v":0},{"$f":"Dataset[[#This Row],[2025/26 From - Spending review Topic 1]]+Dataset[[#This Row],[2025/26 From - Spending review Topic 2]]+Dataset[[#This Row],[2025/26 From - Spending review Topic 3]]+Dataset[[#This Row],[2025/26 From - Spending review Topic 4]]+Dataset[[#This Row],[2025/26 From - Other reallocations]]","v":0},{"$f":"Dataset[[#This Row],[2023/24 To - Spending review Topic 1]]+Dataset[[#This Row],[2023/24 To - Spending review Topic 2]]+Dataset[[#This Row],[2023/24 To - Spending review Topic 3]]+Dataset[[#This Row],[2023/24 To - Spending review Topic 4]]+Dataset[[#This Row],[2023/24 To - Other reallocations]]","v":0},{"$f":"Dataset[[#This Row],[2024/25 To - Spending review Topic 1]]+Dataset[[#This Row],[2024/25 To - Spending review Topic 2]]+Dataset[[#This Row],[2024/25 To - Spending review Topic 3]]+Dataset[[#This Row],[2024/25 To - Spending review Topic 4]]+Dataset[[#This Row],[2024/25 To - Other reallocations]]","v":0},{"$f":"Dataset[[#This Row],[2025/26 To - Spending review Topic 1]]+Dataset[[#This Row],[2025/26 To - Spending review Topic 2]]+Dataset[[#This Row],[2025/26 To - Spending review Topic 3]]+Dataset[[#This Row],[2025/26 To - Spending review Topic 4]]+Dataset[[#This Row],[2025/26 To - Other reallocations]]","v":0},{"$f":"Dataset[[#This Row],[2023/24 Baseline]]+Dataset[[#This Row],[2023/24 From - Total]]+Dataset[[#This Row],[2023/24 To - Total]]","v":0},{"$f":"Dataset[[#This Row],[2024/25 Baseline]]+Dataset[[#This Row],[2024/25 From - Total]]+Dataset[[#This Row],[2024/25 To - Total]]","v":0},{"$f":"Dataset[[#This Row],[2025/26 Baseline]]+Dataset[[#This Row],[2025/26 From - Total]]+Dataset[[#This Row],[2025/26 To - Total]]","v":0}]
["NAT|Non-transfer item","2|Biological assets","2023_24","MTEF2023",2,16,1,1386,769,"02","16","01","001386","000769","02|16|01",2,3,15,60,64,"02|03|15|60|64","National","Parliament","Direct charge against the National Revenue Fund","Members' Remuneration","Non-transfer item","Capital","Payments for capital assets","Biological assets","Biological assets","Biological assets","General public services","Executive and legislative organs","NAT",0,0,0,0,0,0,0,0,0,0,0,null,null,null,null,null,null,null,null,null,null,null,null,null,null,null,null,null,null,null,null,null,null,null,null,null,null,null,null,null,null,{"$f":"Dataset[[#This Row],[2023/24 From - Spending review Topic 1]]+Dataset[[#This Row],[2023/24 From - Spending review Topic 2]]+Dataset[[#This Row],[2023/24 From - Spending review Topic 3]]+Dataset[[#This Row],[2023/24 From - Spending review Topic 4]]+Dataset[[#This Row],[2023/24 From - Other reallocations]]","v":0},{"$f":"Dataset[[#This Row],[2024/25 From - Spending review Topic 1]]+Dataset[[#This Row],[2024/25 From - Spending review Topic 2]]+Dataset[[#This Row],[2024/25 From - Spending review Topic 3]]+Dataset[[#This Row],[2024/25 From - Spending review Topic 4]]+Dataset[[#This Row],[2024/25 From - Other reallocations]]","v":0},{"$f":"Dataset[[#This Row],[2025/26 From - Spending review Topic 1]]+Dataset[[#This Row],[2025/26 From - Spending review Topic 2]]+Dataset[[#This Row],[2025/26 From - Spending review Topic 3]]+Dataset[[#This Row],[2025/26 From - Spending review Topic 4]]+Dataset[[#This Row],[2025/26 From - Other reallocations]]","v":0},{"$f":"Dataset[[#This Row],[2023/24 To - Spending review Topic 1]]+Dataset[[#This Row],[2023/24 To - Spending review Topic 2]]+Dataset[[#This Row],[2023/24 To - Spending review Topic 3]]+Dataset[[#This Row],[2023/24 To - Spending review Topic 4]]+Dataset[[#This Row],[2023/24 To - Other reallocations]]","v":0},{"$f":"Dataset[[#This Row],[2024/25 To - Spending review Topic 1]]+Dataset[[#This Row],[2024/25 To - Spending review Topic 2]]+Dataset[[#This Row],[2024/25 To - Spending review Topic 3]]+Dataset[[#This Row],[2024/25 To - Spending review Topic 4]]+Dataset[[#This Row],[2024/25 To - Other reallocations]]","v":0},{"$f":"Dataset[[#This Row],[2025/26 To - Spending review Topic 1]]+Dataset[[#This Row],[2025/26 To - Spending review Topic 2]]+Dataset[[#This Row],[2025/26 To - Spending review Topic 3]]+Dataset[[#This Row],[2025/26 To - Spending review Topic 4]]+Dataset[[#This Row],[2025/26 To - Other reallocations]]","v":0},{"$f":"Dataset[[#This Row],[2023/24 Baseline]]+Dataset[[#This Row],[2023/24 From - Total]]+Dataset[[#This Row],[2023/24 To - Total]]","v":0},{"$f":"Dataset[[#This Row],[2024/25 Baseline]]+Dataset[[#This Row],[2024/25 From - Total]]+Dataset[[#This Row],[2024/25 To - Total]]","v":0},{"$f":"Dataset[[#This Row],[2025/26 Baseline]]+Dataset[[#This Row],[2025/26 From - Total]]+Dataset[[#This Row],[2025/26 To - Total]]","v":0}]
["NAT|Non-transfer item","2|Land and sub-soil assets","2023_24","MTEF2023",2,16,1,1387,770,"02","16","01","001387","000770","02|16|01",2,3,16,61,65,"02|03|16|61|65","National","Parliament","Direct charge against the National Revenue Fund","Members' Remuneration","Non-transfer item","Capital","Payments for capital assets","Land and sub-soil assets","Land and sub-soil assets","Land and sub-soil assets","General public services","Executive and legislative organs","NAT",0,0,0,0,0,0,0,0,0,0,0,null,null,null,null,null,null,null,null,null,null,null,null,null,null,null,null,null,null,null,null,null,null,null,null,null,null,null,null,null,null,{"$f":"Dataset[[#This Row],[2023/24 From - Spending review Topic 1]]+Dataset[[#This Row],[2023/24 From - Spending review Topic 2]]+Dataset[[#This Row],[2023/24 From - Spending review Topic 3]]+Dataset[[#This Row],[2023/24 From - Spending review Topic 4]]+Dataset[[#This Row],[2023/24 From - Other reallocations]]","v":0},{"$f":"Dataset[[#This Row],[2024/25 From - Spending review Topic 1]]+Dataset[[#This Row],[2024/25 From - Spending review Topic 2]]+Dataset[[#This Row],[2024/25 From - Spending review Topic 3]]+Dataset[[#This Row],[2024/25 From - Spending review Topic 4]]+Dataset[[#This Row],[2024/25 From - Other reallocations]]","v":0},{"$f":"Dataset[[#This Row],[2025/26 From - Spending review Topic 1]]+Dataset[[#This Row],[2025/26 From - Spending review Topic 2]]+Dataset[[#This Row],[2025/26 From - Spending review Topic 3]]+Dataset[[#This Row],[2025/26 From - Spending review Topic 4]]+Dataset[[#This Row],[2025/26 From - Other reallocations]]","v":0},{"$f":"Dataset[[#This Row],[2023/24 To - Spending review Topic 1]]+Dataset[[#This Row],[2023/24 To - Spending review Topic 2]]+Dataset[[#This Row],[2023/24 To - Spending review Topic 3]]+Dataset[[#This Row],[2023/24 To - Spending review Topic 4]]+Dataset[[#This Row],[2023/24 To - Other reallocations]]","v":0},{"$f":"Dataset[[#This Row],[2024/25 To - Spending review Topic 1]]+Dataset[[#This Row],[2024/25 To - Spending review Topic 2]]+Dataset[[#This Row],[2024/25 To - Spending review Topic 3]]+Dataset[[#This Row],[2024/25 To - Spending review Topic 4]]+Dataset[[#This Row],[2024/25 To - Other reallocations]]","v":0},{"$f":"Dataset[[#This Row],[2025/26 To - Spending review Topic 1]]+Dataset[[#This Row],[2025/26 To - Spending review Topic 2]]+Dataset[[#This Row],[2025/26 To - Spending review Topic 3]]+Dataset[[#This Row],[2025/26 To - Spending review Topic 4]]+Dataset[[#This Row],[2025/26 To - Other reallocations]]","v":0},{"$f":"Dataset[[#This Row],[2023/24 Baseline]]+Dataset[[#This Row],[2023/24 From - Total]]+Dataset[[#This Row],[2023/24 To - Total]]","v":0},{"$f":"Dataset[[#This Row],[2024/25 Baseline]]+Dataset[[#This Row],[2024/25 From - Total]]+Dataset[[#This Row],[2024/25 To - Total]]","v":0},{"$f":"Dataset[[#This Row],[2025/26 Baseline]]+Dataset[[#This Row],[2025/26 From - Total]]+Dataset[[#This Row],[2025/26 To - Total]]","v":0}]
["NAT|Non-transfer item","2|Software and other intangible assets","2023_24","MTEF2023",2,16,1,1388,771,"02","16","01","001388","000771","02|16|01",2,3,17,62,66,"02|03|17|62|66","National","Parliament","Direct charge against the National Revenue Fund","Members' Remuneration","Non-transfer item","Capital","Payments for capital assets","Software and other intangible assets","Software and other intangible assets","Software and other intangible assets","General public services","Executive and legislative organs","NAT",0,0,0,0,0,0,0,0,0,0,0,null,null,null,null,null,null,null,null,null,null,null,null,null,null,null,null,null,null,null,null,null,null,null,null,null,null,null,null,null,null,{"$f":"Dataset[[#This Row],[2023/24 From - Spending review Topic 1]]+Dataset[[#This Row],[2023/24 From - Spending review Topic 2]]+Dataset[[#This Row],[2023/24 From - Spending review Topic 3]]+Dataset[[#This Row],[2023/24 From - Spending review Topic 4]]+Dataset[[#This Row],[2023/24 From - Other reallocations]]","v":0},{"$f":"Dataset[[#This Row],[2024/25 From - Spending review Topic 1]]+Dataset[[#This Row],[2024/25 From - Spending review Topic 2]]+Dataset[[#This Row],[2024/25 From - Spending review Topic 3]]+Dataset[[#This Row],[2024/25 From - Spending review Topic 4]]+Dataset[[#This Row],[2024/25 From - Other reallocations]]","v":0},{"$f":"Dataset[[#This Row],[2025/26 From - Spending review Topic 1]]+Dataset[[#This Row],[2025/26 From - Spending review Topic 2]]+Dataset[[#This Row],[2025/26 From - Spending review Topic 3]]+Dataset[[#This Row],[2025/26 From - Spending review Topic 4]]+Dataset[[#This Row],[2025/26 From - Other reallocations]]","v":0},{"$f":"Dataset[[#This Row],[2023/24 To - Spending review Topic 1]]+Dataset[[#This Row],[2023/24 To - Spending review Topic 2]]+Dataset[[#This Row],[2023/24 To - Spending review Topic 3]]+Dataset[[#This Row],[2023/24 To - Spending review Topic 4]]+Dataset[[#This Row],[2023/24 To - Other reallocations]]","v":0},{"$f":"Dataset[[#This Row],[2024/25 To - Spending review Topic 1]]+Dataset[[#This Row],[2024/25 To - Spending review Topic 2]]+Dataset[[#This Row],[2024/25 To - Spending review Topic 3]]+Dataset[[#This Row],[2024/25 To - Spending review Topic 4]]+Dataset[[#This Row],[2024/25 To - Other reallocations]]","v":0},{"$f":"Dataset[[#This Row],[2025/26 To - Spending review Topic 1]]+Dataset[[#This Row],[2025/26 To - Spending review Topic 2]]+Dataset[[#This Row],[2025/26 To - Spending review Topic 3]]+Dataset[[#This Row],[2025/26 To - Spending review Topic 4]]+Dataset[[#This Row],[2025/26 To - Other reallocations]]","v":0},{"$f":"Dataset[[#This Row],[2023/24 Baseline]]+Dataset[[#This Row],[2023/24 From - Total]]+Dataset[[#This Row],[2023/24 To - Total]]","v":0},{"$f":"Dataset[[#This Row],[2024/25 Baseline]]+Dataset[[#This Row],[2024/25 From - Total]]+Dataset[[#This Row],[2024/25 To - Total]]","v":0},{"$f":"Dataset[[#This Row],[2025/26 Baseline]]+Dataset[[#This Row],[2025/26 From - Total]]+Dataset[[#This Row],[2025/26 To - Total]]","v":0}]
["NAT|Non-transfer item","2|Payments for financial assets","2023_24","MTEF2023",2,16,1,1389,772,"02","16","01","001389","000772","02|16|01",3,4,18,63,67,"03|04|18|63|67","National","Parliament","Direct charge against the National Revenue Fund","Members' Remuneration","Non-transfer item","Payments for financial assets","Payments for financial assets","Payments for financial assets","Payments for financial assets","Payments for financial assets","General public services","Executive and legislative organs","NAT",0,0,0,0,0,0,0,0,0,0,0,null,null,null,null,null,null,null,null,null,null,null,null,null,null,null,null,null,null,null,null,null,null,null,null,null,null,null,null,null,null,{"$f":"Dataset[[#This Row],[2023/24 From - Spending review Topic 1]]+Dataset[[#This Row],[2023/24 From - Spending review Topic 2]]+Dataset[[#This Row],[2023/24 From - Spending review Topic 3]]+Dataset[[#This Row],[2023/24 From - Spending review Topic 4]]+Dataset[[#This Row],[2023/24 From - Other reallocations]]","v":0},{"$f":"Dataset[[#This Row],[2024/25 From - Spending review Topic 1]]+Dataset[[#This Row],[2024/25 From - Spending review Topic 2]]+Dataset[[#This Row],[2024/25 From - Spending review Topic 3]]+Dataset[[#This Row],[2024/25 From - Spending review Topic 4]]+Dataset[[#This Row],[2024/25 From - Other reallocations]]","v":0},{"$f":"Dataset[[#This Row],[2025/26 From - Spending review Topic 1]]+Dataset[[#This Row],[2025/26 From - Spending review Topic 2]]+Dataset[[#This Row],[2025/26 From - Spending review Topic 3]]+Dataset[[#This Row],[2025/26 From - Spending review Topic 4]]+Dataset[[#This Row],[2025/26 From - Other reallocations]]","v":0},{"$f":"Dataset[[#This Row],[2023/24 To - Spending review Topic 1]]+Dataset[[#This Row],[2023/24 To - Spending review Topic 2]]+Dataset[[#This Row],[2023/24 To - Spending review Topic 3]]+Dataset[[#This Row],[2023/24 To - Spending review Topic 4]]+Dataset[[#This Row],[2023/24 To - Other reallocations]]","v":0},{"$f":"Dataset[[#This Row],[2024/25 To - Spending review Topic 1]]+Dataset[[#This Row],[2024/25 To - Spending review Topic 2]]+Dataset[[#This Row],[2024/25 To - Spending review Topic 3]]+Dataset[[#This Row],[2024/25 To - Spending review Topic 4]]+Dataset[[#This Row],[2024/25 To - Other reallocations]]","v":0},{"$f":"Dataset[[#This Row],[2025/26 To - Spending review Topic 1]]+Dataset[[#This Row],[2025/26 To - Spending review Topic 2]]+Dataset[[#This Row],[2025/26 To - Spending review Topic 3]]+Dataset[[#This Row],[2025/26 To - Spending review Topic 4]]+Dataset[[#This Row],[2025/26 To - Other reallocations]]","v":0},{"$f":"Dataset[[#This Row],[2023/24 Baseline]]+Dataset[[#This Row],[2023/24 From - Total]]+Dataset[[#This Row],[2023/24 To - Total]]","v":0},{"$f":"Dataset[[#This Row],[2024/25 Baseline]]+Dataset[[#This Row],[2024/25 From - Total]]+Dataset[[#This Row],[2024/25 To - Total]]","v":0},{"$f":"Dataset[[#This Row],[2025/26 Baseline]]+Dataset[[#This Row],[2025/26 From - Total]]+Dataset[[#This Row],[2025/26 To - Total]]","v":0}]

{"sheet":"Summary","index":10,"n_rows":104,"n_cols":26,"rows_kept":104,"cut":false,"hidden":false,"merged":[]}
[]
[]
[null,null,null,null,null,null,{"$f":"Welcome!$B$7&\" \"& MyDeptName","v":"VOTE 2:  Parliament"}]
[null,null,null,null,null,null,null,null,null,null,null,null,"Growth"]
[null,null,null,null,null,null,"Quick view",{"$f":"MyYear4","v":"2022/23"},{"$f":"MyYear5","v":"2023/24"},{"$f":"MyYear6","v":"2024/25"},{"$f":"MyYear7","v":"2025/26"},"Trend",{"$f":"MyYear5","v":"2023/24"},{"$f":"MyYear6","v":"2024/25"},{"$f":"MyYear7","v":"2025/26"},"Ave Ann"]
[null,null,null,null,null,null,"Compensation of employees",{"$f":"SUMPRODUCT(($G$56:$G$89=$G6)*($K$56:$K$89))","v":1430889},{"$f":"SUMPRODUCT(($G$56:$G$89=$G6)*($O$56:$O$89))","v":1399164},{"$f":"SUMPRODUCT(($G$56:$G$89=$G6)*($S$56:$S$89))","v":1461998},{"$f":"SUMPRODUCT(($G$56:$G$89=$G6)*($W$56:$W$89))","v":1527497},null,{"$f":"IFERROR(I6/H6-1,0)","v":-2.2171531125055877E-2},4.490824520928216E-2,4.4801018879642829E-2,{"$f":"IFERROR(((K6/H6)^(1/3)-1),0)","v":2.201704822370476E-2}]
[null,null,null,null,null,null,"Goods and services",{"$f":"SUMPRODUCT(($G$56:$G$89=$G7)*($K$56:$K$89))","v":726787},{"$f":"SUMPRODUCT(($G$56:$G$89=$G7)*($O$56:$O$89))","v":728968},{"$f":"SUMPRODUCT(($G$56:$G$89=$G7)*($S$56:$S$89))","v":761498},{"$f":"SUMPRODUCT(($G$56:$G$89=$G7)*($W$56:$W$89))","v":795613},null,3.0008792122038219E-3,4.4624729754941139E-2,4.4799855022600088E-2,3.0619226449659864E-2,null,null,{"$f":"X8","v":"2023/24"},{"$f":"Y8","v":"2024/25"},{"$f":"Z8","v":"2025/26"}]
[null,null,null,null,null,null,"Transfers and subsidies",{"$f":"SUMPRODUCT(($G$56:$G$89=$G8)*($K$56:$K$89))","v":513031},{"$f":"SUMPRODUCT(($G$56:$G$89=$G8)*($O$56:$O$89))","v":515620},{"$f":"SUMPRODUCT(($G$56:$G$89=$G8)*($S$56:$S$89))","v":538981},{"$f":"SUMPRODUCT(($G$56:$G$89=$G8)*($W$56:$W$89))","v":563127},null,5.0464786728288136E-3,4.5306621155114302E-2,4.479935285288339E-2,3.1543580827103845E-2,"CoE","Compensation of employees",{"$f":"SUMIF($G$56:$G$89,$R8,$M$56:$M$89)+SUMIF($G$56:$G$89,$R8,$N$56:$N$89)","v":0},{"$f":"SUMIF($G$56:$G$89,$R8,$Q$56:$Q$89)+SUMIF($G$56:$G$89,$R8,$R$56:$R$89)","v":0},{"$f":"SUMIF($G$56:$G$89,$R8,$U$56:$U$89)+SUMIF($G$56:$G$89,$R8,$V$56:$V$89)","v":0},null,{"$f":"MyYear4","v":"2022/23"},{"$f":"MyYear5","v":"2023/24"},{"$f":"MyYear6","v":"2024/25"},{"$f":"MyYear7","v":"2025/26"}]
[null,null,null,null,null,null,"Payments for capital assets",{"$f":"SUMPRODUCT(($G$56:$G$89=$G9)*($K$56:$K$89))","v":13245},{"$f":"SUMPRODUCT(($G$56:$G$89=$G9)*($O$56:$O$89))","v":13818},{"$f":"SUMPRODUCT(($G$56:$G$89=$G9)*($S$56:$S$89))","v":14439},{"$f":"SUMPRODUCT(($G$56:$G$89=$G9)*($W$56:$W$89))","v":15086},null,4.326160815402047E-2,4.4941380807642206E-2,4.4809197312833282E-2,4.4337116890778461E-2,"G&S","Goods and services",{"$f":"SUMIF($G$56:$G$89,$R9,$M$56:$M$89)+SUMIF($G$56:$G$89,$R9,$N$56:$N$89)","v":0},{"$f":"SUMIF($G$56:$G$89,$R9,$Q$56:$Q$89)+SUMIF($G$56:$G$89,$R9,$R$56:$R$89)","v":0},{"$f":"SUMIF($G$56:$G$89,$R9,$U$56:$U$89)+SUMIF($G$56:$G$89,$R9,$V$56:$V$89)","v":0}]
[null,null,null,null,null,null,"Total",{"$f":"SUMPRODUCT(($G$56:$G$89=$G10)*($K$56:$K$89))","v":2683952},{"$f":"SUMPRODUCT(($G$56:$G$89=$G10)*($O$56:$O$89))","v":2657570},{"$f":"SUMPRODUCT(($G$56:$G$89=$G10)*($S$56:$S$89))","v":2776916},{"$f":"SUMPRODUCT(($G$56:$G$89=$G10)*($W$56:$W$89))","v":2901323},null,-9.8295349544254007E-3,4.4907942217890851E-2,4.4800418881953963E-2,2.6298699903047673E-2,"T&S","Transfers and subsidies",{"$f":"SUMIF($G$56:$G$89,$R10,$M$56:$M$89)+SUMIF($G$56:$G$89,$R10,$N$56:$N$89)","v":0},{"$f":"SUMIF($G$56:$G$89,$R10,$Q$56:$Q$89)+SUMIF($G$56:$G$89,$R10,$R$56:$R$89)","v":0},{"$f":"SUMIF($G$56:$G$89,$R10,$U$56:$U$89)+SUMIF($G$56:$G$89,$R10,$V$56:$V$89)","v":0}]
[null,null,null,null,null,null,"Composition of spending (% of Total)",null,null,null,null,null,null,null,null,null,"Capital","Payments for capital assets",{"$f":"SUMIF($G$56:$G$89,$R11,$M$56:$M$89)+SUMIF($G$56:$G$89,$R11,$N$56:$N$89)","v":0},{"$f":"SUMIF($G$56:$G$89,$R11,$Q$56:$Q$89)+SUMIF($G$56:$G$89,$R11,$R$56:$R$89)","v":0},{"$f":"SUMIF($G$56:$G$89,$R11,$U$56:$U$89)+SUMIF($G$56:$G$89,$R11,$V$56:$V$89)","v":0}]
[null,null,null,null,null,null,"Compensation of employees",{"$f":"H6/H$10","v":0.5331276416269739},0.52648246330294213,0.52648261596677748,0.52648291831002614,null,null,null,null,null,"Total","Total",{"$f":"SUMIF($G$56:$G$89,$R12,$M$56:$M$89)+SUMIF($G$56:$G$89,$R12,$N$56:$N$89)","v":0},{"$f":"SUMIF($G$56:$G$89,$R12,$Q$56:$Q$89)+SUMIF($G$56:$G$89,$R12,$R$56:$R$89)","v":0},{"$f":"SUMIF($G$56:$G$89,$R12,$U$56:$U$89)+SUMIF($G$56:$G$89,$R12,$V$56:$V$89)","v":0}]
[null,null,null,null,null,null,"Goods and services",0.27078986509445774,0.27429870144530527,0.27422435536400813,0.27422420737022385]
[null,null,null,null,null,null,"Transfers and subsidies",0.19114760621650462,0.19401934850257943,0.19409337552882405,0.19409317749178565]
[null,null,null,null,null,null,"Payments for capital assets",4.9348870620637029E-3,5.1994867491731165E-3,5.1996531403902743E-3,5.1996968279643457E-3,null,null,null,null,null,null,null,null,null,null,null,{"$f":"IF(H12>0.0595,H12,\"\")","v":0.5331276416269739},0.52648246330294213,0.52648261596677748,0.52648291831002614]
[null,null,null,null,null,null,null,null,null,null,null,null,null,null,null,null,null,null,null,null,null,null,0.27078986509445774,0.27429870144530527,0.27422435536400813,0.27422420737022385]
[null,null,null,null,null,null,"Division of Revenue",{"$f":"MyYear4","v":"2022/23"},{"$f":"MyYear5","v":"2023/24"},{"$f":"MyYear6","v":"2024/25"},{"$f":"MyYear7","v":"2025/26"},"Trend",{"$f":"MyYear5","v":"2023/24"},{"$f":"MyYear6","v":"2024/25"},{"$f":"MyYear7","v":"2025/26"},"Ave Ann",null,null,null,null,null,null,0.19114760621650462,0.19401934850257943,0.19409337552882405,0.19409317749178565]
[null,null,null,null,null,null,"National",{"$f":"SUM(H19:H21)","v":2683952},2657570,2776916,2901323,null,{"$f":"IFERROR(I18/H18-1,0)","v":-9.8295349544254007E-3},{"$f":"IFERROR(J18/I18-1,0)","v":4.4907942217890851E-2},{"$f":"IFERROR(K18/J18-1,0)","v":4.4800418881953963E-2},{"$f":"IFERROR(((K18/H18)^(1/3)-1),0)","v":2.6298699903047673E-2},null,null,null,null,null,null,"","","",""]
[null,"NAT",null,null,null,null,"National (excl. indirect grants)",{"$f":"SUMPRODUCT(((Dataset[DOR]=$B19))*Dataset[2022/23 Baseline])","v":2683952},{"$f":"SUMPRODUCT(((Dataset[DOR]=$B19))*Dataset[2023/24 Revised baseline])","v":2657570},{"$f":"SUMPRODUCT(((Dataset[DOR]=$B19))*Dataset[2024/25 Revised baseline])","v":2776916},{"$f":"SUMPRODUCT(((Dataset[DOR]=$B19))*Dataset[2025/26 Revised baseline])","v":2901323},null,-9.8295349544254007E-3,4.4907942217890851E-2,4.4800418881953963E-2,2.6298699903047673E-2]
[null,"IGP",null,null,null,null,"Provincial indirect grants",{"$f":"SUMPRODUCT(((Dataset[DOR]=$B20))*Dataset[2022/23 Baseline])","v":0},{"$f":"SUMPRODUCT(((Dataset[DOR]=$B20))*Dataset[2023/24 Revised baseline])","v":0},{"$f":"SUMPRODUCT(((Dataset[DOR]=$B20))*Dataset[2024/25 Revised baseline])","v":0},{"$f":"SUMPRODUCT(((Dataset[DOR]=$B20))*Dataset[2025/26 Revised baseline])","v":0},null,{"$f":"IFERROR(I20/H20-1,0)","v":0},{"$f":"IFERROR(J20/I20-1,0)","v":0},{"$f":"IFERROR(K20/J20-1,0)","v":0},{"$f":"IFERROR(((K20/H20)^(1/3)-1),0)","v":0}]
[null,"IGM",null,null,null,null,"Local indirect grants",{"$f":"SUMPRODUCT(((Dataset[DOR]=$B21))*Dataset[2022/23 Baseline])","v":0},{"$f":"SUMPRODUCT(((Dataset[DOR]=$B21))*Dataset[2023/24 Revised baseline])","v":0},{"$f":"SUMPRODUCT(((Dataset[DOR]=$B21))*Dataset[2024/25 Revised baseline])","v":0},{"$f":"SUMPRODUCT(((Dataset[DOR]=$B21))*Dataset[2025/26 Revised baseline])","v":0},null,{"$f":"IFERROR(I21/H21-1,0)","v":0},{"$f":"IFERROR(J21/I21-1,0)","v":0},{"$f":"IFERROR(K21/J21-1,0)","v":0},{"$f":"IFERROR(((K21/H21)^(1/3)-1),0)","v":0}]
[null,null,null,null,null,null,"Provincial",{"$f":"SUM(H23:H24)","v":0},0,0,0,null,0,0,0,0]
[null,"PES",null,null,null,null,"Provincial equitable share",{"$f":"SUMPRODUCT(((Dataset[DOR]=$B23))*Dataset[2022/23 Baseline])","v":0},{"$f":"SUMPRODUCT(((Dataset[DOR]=$B23))*Dataset[2023/24 Revised baseline])","v":0},{"$f":"SUMPRODUCT(((Dataset[DOR]=$B23))*Dataset[2024/25 Revised baseline])","v":0},{"$f":"SUMPRODUCT(((Dataset[DOR]=$B23))*Dataset[2025/26 Revised baseline])","v":0},null,{"$f":"IFERROR(I23/H23-1,0)","v":0},0,0,{"$f":"IFERROR(((K23/H23)^(1/3)-1),0)","v":0}]
[null,"PCG",null,null,null,null,"Provincial conditional grants",{"$f":"SUMPRODUCT(((Dataset[DOR]=$B24))*Dataset[2022/23 Baseline])","v":0},{"$f":"SUMPRODUCT(((Dataset[DOR]=$B24))*Dataset[2023/24 Revised baseline])","v":0},{"$f":"SUMPRODUCT(((Dataset[DOR]=$B24))*Dataset[2024/25 Revised baseline])","v":0},{"$f":"SUMPRODUCT(((Dataset[DOR]=$B24))*Dataset[2025/26 Revised baseline])","v":0},null,0,0,0,0]
[null,null,null,null,null,null,"Local government",{"$f":"SUM(H26:H28)","v":0},0,0,0,null,{"$f":"IFERROR(I25/H25-1,0)","v":0},{"$f":"IFERROR(J25/I25-1,0)","v":0},{"$f":"IFERROR(K25/J25-1,0)","v":0},{"$f":"IFERROR(((K25/H25)^(1/3)-1),0)","v":0}]
[null,"LES",null,null,null,null,"Local equitable share",{"$f":"SUMPRODUCT(((Dataset[DOR]=$B26))*Dataset[2022/23 Baseline])","v":0},{"$f":"SUMPRODUCT(((Dataset[DOR]=$B26))*Dataset[2023/24 Revised baseline])","v":0},{"$f":"SUMPRODUCT(((Dataset[DOR]=$B26))*Dataset[2024/25 Revised baseline])","v":0},{"$f":"SUMPRODUCT(((Dataset[DOR]=$B26))*Dataset[2025/26 Revised baseline])","v":0},null,{"$f":"IFERROR(I26/H26-1,0)","v":0},0,0,{"$f":"IFERROR(((K26/H26)^(1/3)-1),0)","v":0}]
[null,"LCG",null,null,null,null,"Local conditional grants",{"$f":"SUMPRODUCT(((Dataset[DOR]=$B27))*Dataset[2022/23 Baseline])","v":0},{"$f":"SUMPRODUCT(((Dataset[DOR]=$B27))*Dataset[2023/24 Revised baseline])","v":0},{"$f":"SUMPRODUCT(((Dataset[DOR]=$B27))*Dataset[2024/25 Revised baseline])","v":0},{"$f":"SUMPRODUCT(((Dataset[DOR]=$B27))*Dataset[2025/26 Revised baseline])","v":0},null,0,0,0,0]
[null,"GFL",null,null,null,null,"General fuel levy ",{"$f":"SUMPRODUCT(((Dataset[DOR]=$B28))*Dataset[2022/23 Baseline])","v":0},{"$f":"SUMPRODUCT(((Dataset[DOR]=$B28))*Dataset[2023/24 Revised baseline])","v":0},{"$f":"SUMPRODUCT(((Dataset[DOR]=$B28))*Dataset[2024/25 Revised baseline])","v":0},{"$f":"SUMPRODUCT(((Dataset[DOR]=$B28))*Dataset[2025/26 Revised baseline])","v":0},null,0,0,0,0]
[]
[null,null,null,null,null,null,"Personnel numbers (HRBP)",{"$f":"MyYear4","v":"2022/23"},{"$f":"MyYear5","v":"2023/24"},{"$f":"MyYear6","v":"2024/25"},{"$f":"MyYear7","v":"2025/26"}]
[null,null,null,null,null,null,"Initial headcount",{"$f":"SUM(t_HRBP[2021/22 Total Annual Cost])","v":0},{"$f":"SUM(t_HRBP[2022/23 Projected Annual Cost])","v":0},{"$f":"SUM(t_HRBP[2023/24 Projected Annual Cost])","v":0},{"$f":"SUM(t_HRBP[2024/25 Projected Annual Cost])","v":0},null,null,null,null,null,null,{"$f":"W8","v":"2022/23"},"2023/24","2024/25","2025/26"]
[null,null,null,null,null,null,"Vacant funded posts to be filled",{"$f":"SUM(t_HRBP[2022/23 \nOnce-off Payments per person])","v":0},{"$f":"SUM(t_HRBP[2023/24 \nOnce-off Payments per person])","v":0},{"$f":"SUM(t_HRBP[2024/25 \nOnce-off Payments per person])","v":0},{"$f":"SUM(t_HRBP[2025/26 \nOnce-off Payments per person])","v":0},null,null,null,null,null,"Revised head count",{"$f":"IF(H34=0,\"\",H34)","v":""},"","",""]
[null,null,null,null,null,null,"Headcount reductions to be made",{"$f":"SUM(t_HRBP[2022/23 Vacant funded posts to be filled])","v":0},{"$f":"SUM(t_HRBP[2023/24 Vacant funded posts to be filled])","v":0},{"$f":"SUM(t_HRBP[2024/25 Vacant funded posts to be filled])","v":0},{"$f":"SUM(t_HRBP[2025/26 Vacant funded posts to be filled])","v":0},null,null,null,null,null,"Additions",{"$f":"IF(H32=0,\"\",H32)","v":""},{"$f":"IF(I32=0,\"\",I32)","v":""},{"$f":"IF(J32=0,\"\",J32)","v":""},{"$f":"IF(K32=0,\"\",K32)","v":""}]
[null,null,null,null,null,null,"Revised headcount",{"$f":"SUM(t_HRBP[2022/23 Headcount reductions to be made])","v":0},{"$f":"SUM(t_HRBP[2023/24 Headcount reductions to be made])","v":0},{"$f":"SUM(t_HRBP[2024/25 Headcount reductions to be made])","v":0},{"$f":"SUM(t_HRBP[2025/26 Headcount reductions to be made])","v":0},null,null,null,null,null,"Reductions","","","",""]
[null,null,null,null,null,null,"Change in headcount",{"$f":"H34-H31","v":0},{"$f":"I34-I31","v":0},{"$f":"J34-J31","v":0},{"$f":"K34-K31","v":0}]
[null,null,null,null,null,null,"Cost of vacant posts to be filled",{"$f":"SUM(t_HRBP[2022/23 Revised Headcount])","v":0},{"$f":"SUM(t_HRBP[2023/24 Revised Headcount])","v":0},{"$f":"SUM(t_HRBP[2024/25 Revised Headcount])","v":0},{"$f":"SUM(t_HRBP[2025/26 Revised Headcount])","v":0}]
[null,null,null,null,null,null,"Savings from headcount reductions",{"$f":"SUM(t_HRBP[2022/23 Cost of vacant posts to be filled])","v":0},{"$f":"SUM(t_HRBP[2023/24 Cost of vacant posts to be filled])","v":0},{"$f":"SUM(t_HRBP[2024/25 Cost of vacant posts to be filled])","v":0},{"$f":"SUM(t_HRBP[2025/26 Cost of vacant posts to be filled])","v":0}]
[]
[null,null,null,null,null,null,"Check: CoE (economic) less HRBP annual cost",{"$f":"SUMIFS(Dataset[2022/23 Baseline],Dataset[Econ3],\"Compensation of employees\")-SUM(t_HRBP[2022/23 Savings from headcount reductions])","v":1430889},{"$f":"SUMIFS(Dataset[2023/24 Baseline],Dataset[Econ3],\"Compensation of employees\")-SUM(t_HRBP[2023/24 Savings from headcount reductions])","v":1399164},{"$f":"SUMIFS(Dataset[2024/25 Baseline],Dataset[Econ3],\"Compensation of employees\")-SUM(t_HRBP[2024/25 Savings from headcount reductions])","v":1461998},{"$f":"SUMIFS(Dataset[2025/26 Baseline],Dataset[Econ3],\"Compensation of employees\")-SUM(t_HRBP[2025/26 Savings from headcount reductions])","v":1527497}]
[]
[null,null,null,null,null,null,"Strategies to reduce headcounts (Indicators)",{"$f":"MyYear4","v":"2022/23"},{"$f":"MyYear5","v":"2023/24"},{"$f":"MyYear6","v":"2024/25"},{"$f":"MyYear7","v":"2025/26"},null,null,null,null,null,null,{"$f":"W8 & \" to \" & Z8","v":"2022/23 to 2025/26"}]
[null,null,null,null,null,null,"1. Employee initiated severance package",{"$f":"HRBP_Data!BA3","v":0},{"$f":"HRBP_Data!BB3","v":0},{"$f":"HRBP_Data!BC3","v":0},{"$f":"HRBP_Data!BD3","v":0},null,null,null,null,null,"Severance",{"$f":"IF(SUM(H42:K42)=0,\"\",SUM(H42:K42))","v":""}]
[null,null,null,null,null,null,"2. Early retirement",{"$f":"HRBP_Data!BA4","v":0},{"$f":"HRBP_Data!BB4","v":0},{"$f":"HRBP_Data!BC4","v":0},{"$f":"HRBP_Data!BD4","v":0},null,null,null,null,null,"Early retirement",""]
[null,null,null,null,null,null,"3. Natural attrition",{"$f":"HRBP_Data!BA5","v":0},{"$f":"HRBP_Data!BB5","v":0},{"$f":"HRBP_Data!BC5","v":0},{"$f":"HRBP_Data!BD5","v":0},null,null,null,null,null,"Natural attrition",""]
[null,null,null,null,null,null,"4. Retirement",{"$f":"HRBP_Data!BA6","v":0},{"$f":"HRBP_Data!BB6","v":0},{"$f":"HRBP_Data!BC6","v":0},{"$f":"HRBP_Data!BD6","v":0},null,null,null,null,null,"Retirement",""]
[null,null,null,null,null,null,"5. Contract termination",{"$f":"HRBP_Data!BA7","v":0},{"$f":"HRBP_Data!BB7","v":0},{"$f":"HRBP_Data!BC7","v":0},{"$f":"HRBP_Data!BD7","v":0},null,null,null,null,null,"Contract termination",""]
[null,null,null,null,null,null,"6. Redeployments (transfers to other departments)",{"$f":"HRBP_Data!BA8","v":0},{"$f":"HRBP_Data!BB8","v":0},{"$f":"HRBP_Data!BC8","v":0},{"$f":"HRBP_Data!BD8","v":0},null,null,null,null,null,"Redeployments",""]
[null,null,null,null,null,null,"Total",{"$f":"SUM(H42:H47)","v":0},0,0,0]
[]
[]
[]
[null,null,null,null,null,null,{"$f":"G3","v":"VOTE 2:  Parliament"}]
[null,null,null,null,null,null,null,{"$f":"MyYear1","v":"2019/20"},{"$f":"MyYear2","v":"2020/21"},{"$f":"MyYear3","v":"2021/22"},{"$f":"MyYear4","v":"2022/23"},{"$f":"MyYear5","v":"2023/24"},null,null,null,{"$f":"MyYear6","v":"2024/25"},null,null,null,{"$f":"MyYear7","v":"2025/26"}]
[null,null,null,null,null,null,"Rand thousand","Audited outcome","Audited outcome","Pre-audited outcome","Budget","Baseline","Decrease","Increase","Revised baseline","Baseline","Decrease","Increase","Revised baseline","Baseline","Decrease","Increase","Revised baseline"]
[null,null,null,null,null,null,"Economic classification"]
[null,null,null,null,null,null,"Current payments",{"$f":"SUM(H57:H59)","v":2119307},2024345,0,2157676,2128132,0,0,2128132,2223496,0,0,2223496,2323110,0,0,2323110]
[null,null,null,null,null,null,"Compensation of employees",{"$f":"SUMPRODUCT(((Dataset[Econ3]=$G57))*Dataset[2019/20])","v":1461255},{"$f":"SUMPRODUCT(((Dataset[Econ3]=$G57))*Dataset[2020/21])","v":1413297},{"$f":"SUMPRODUCT(((Dataset[Econ3]=$G57))*Dataset[2021/22 Preliminary outcome])","v":0},{"$f":"SUMPRODUCT(((Dataset[Econ3]=$G57))*Dataset[2022/23 Baseline])","v":1430889},{"$f":"SUMPRODUCT(((Dataset[Econ3]=$G57))*Dataset[2023/24 Baseline])","v":1399164},{"$f":"SUMPRODUCT(((Dataset[Econ3]=$G57))*Dataset[2023/24 From - Total])","v":0},{"$f":"SUMPRODUCT(((Dataset[Econ3]=$G57))*Dataset[2023/24 To - Total])","v":0},{"$f":"L57+M57+N57","v":1399164},{"$f":"SUMPRODUCT(((Dataset[Econ3]=$G57))*Dataset[2024/25 Baseline])","v":1461998},{"$f":"SUMPRODUCT(((Dataset[Econ3]=$G57))*Dataset[2024/25 From - Total])","v":0},{"$f":"SUMPRODUCT(((Dataset[Econ3]=$G57))*Dataset[2024/25 To - Total])","v":0},{"$f":"P57+Q57+R57","v":1461998},{"$f":"SUMPRODUCT(((Dataset[Econ3]=$G57))*Dataset[2025/26 Baseline])","v":1527497},{"$f":"SUMPRODUCT(((Dataset[Econ3]=$G57))*Dataset[2025/26 From - Total])","v":0},{"$f":"SUMPRODUCT(((Dataset[Econ3]=$G57))*Dataset[2025/26 To - Total])","v":0},{"$f":"T57+U57+V57","v":1527497}]
[null,null,null,null,null,null,"Goods and services",{"$f":"SUMPRODUCT(((Dataset[Econ3]=$G58))*Dataset[2019/20])","v":658052},{"$f":"SUMPRODUCT(((Dataset[Econ3]=$G58))*Dataset[2020/21])","v":611048},{"$f":"SUMPRODUCT(((Dataset[Econ3]=$G58))*Dataset[2021/22 Preliminary outcome])","v":0},{"$f":"SUMPRODUCT(((Dataset[Econ3]=$G58))*Dataset[2022/23 Baseline])","v":726787},{"$f":"SUMPRODUCT(((Dataset[Econ3]=$G58))*Dataset[2023/24 Baseline])","v":728968},{"$f":"SUMPRODUCT(((Dataset[Econ3]=$G58))*Dataset[2023/24 From - Total])","v":0},{"$f":"SUMPRODUCT(((Dataset[Econ3]=$G58))*Dataset[2023/24 To - Total])","v":0},{"$f":"L58+M58+N58","v":728968},{"$f":"SUMPRODUCT(((Dataset[Econ3]=$G58))*Dataset[2024/25 Baseline])","v":761498},{"$f":"SUMPRODUCT(((Dataset[Econ3]=$G58))*Dataset[2024/25 From - Total])","v":0},{"$f":"SUMPRODUCT(((Dataset[Econ3]=$G58))*Dataset[2024/25 To - Total])","v":0},{"$f":"P58+Q58+R58","v":761498},{"$f":"SUMPRODUCT(((Dataset[Econ3]=$G58))*Dataset[2025/26 Baseline])","v":795613},{"$f":"SUMPRODUCT(((Dataset[Econ3]=$G58))*Dataset[2025/26 From - Total])","v":0},{"$f":"SUMPRODUCT(((Dataset[Econ3]=$G58))*Dataset[2025/26 To - Total])","v":0},{"$f":"T58+U58+V58","v":795613}]
[null,null,null,null,null,null,"Interest and rent on land",{"$f":"SUMPRODUCT(((Dataset[Econ3]=$G59))*Dataset[2019/20])","v":0},{"$f":"SUMPRODUCT(((Dataset[Econ3]=$G59))*Dataset[2020/21])","v":0},{"$f":"SUMPRODUCT(((Dataset[Econ3]=$G59))*Dataset[2021/22 Preliminary outcome])","v":0},{"$f":"SUMPRODUCT(((Dataset[Econ3]=$G59))*Dataset[2022/23 Baseline])","v":0},{"$f":"SUMPRODUCT(((Dataset[Econ3]=$G59))*Dataset[2023/24 Baseline])","v":0},{"$f":"SUMPRODUCT(((Dataset[Econ3]=$G59))*Dataset[2023/24 From - Total])","v":0},{"$f":"SUMPRODUCT(((Dataset[Econ3]=$G59))*Dataset[2023/24 To - Total])","v":0},0,{"$f":"SUMPRODUCT(((Dataset[Econ3]=$G59))*Dataset[2024/25 Baseline])","v":0},{"$f":"SUMPRODUCT(((Dataset[Econ3]=$G59))*Dataset[2024/25 From - Total])","v":0},{"$f":"SUMPRODUCT(((Dataset[Econ3]=$G59))*Dataset[2024/25 To - Total])","v":0},0,{"$f":"SUMPRODUCT(((Dataset[Econ3]=$G59))*Dataset[2025/26 Baseline])","v":0},{"$f":"SUMPRODUCT(((Dataset[Econ3]=$G59))*Dataset[2025/26 From - Total])","v":0},{"$f":"SUMPRODUCT(((Dataset[Econ3]=$G59))*Dataset[2025/26 To - Total])","v":0},0]
[null,null,null,null,null,null,"Transfers and subsidies",{"$f":"SUM(H61,H64,H67:H69,H72:H73)","v":463312},454186,0,513031,515620,0,0,515620,538981,0,0,538981,563127,0,0,563127]
[null,null,null,null,null,null,"Provinces and municipalities",{"$f":"SUM(H62:H63)","v":0},0,0,0,0,0,0,0,0,0,0,0,0,0,0,0]
[null,null,null,null,null,null,"Provinces",{"$f":"SUMPRODUCT(((Dataset[Econ4]=$G62))*Dataset[2019/20])","v":0},{"$f":"SUMPRODUCT(((Dataset[Econ4]=$G62))*Dataset[2020/21])","v":0},{"$f":"SUMPRODUCT(((Dataset[Econ4]=$G62))*Dataset[2021/22 Preliminary outcome])","v":0},{"$f":"SUMPRODUCT(((Dataset[Econ4]=$G62))*Dataset[2022/23 Baseline])","v":0},{"$f":"SUMPRODUCT(((Dataset[Econ4]=$G62))*Dataset[2023/24 Baseline])","v":0},{"$f":"SUMPRODUCT(((Dataset[Econ4]=$G62))*Dataset[2023/24 From - Total])","v":0},{"$f":"SUMPRODUCT(((Dataset[Econ4]=$G62))*Dataset[2023/24 To - Total])","v":0},{"$f":"L62+M62+N62","v":0},{"$f":"SUMPRODUCT(((Dataset[Econ4]=$G62))*Dataset[2024/25 Baseline])","v":0},{"$f":"SUMPRODUCT(((Dataset[Econ4]=$G62))*Dataset[2024/25 From - Total])","v":0},{"$f":"SUMPRODUCT(((Dataset[Econ4]=$G62))*Dataset[2024/25 To - Total])","v":0},{"$f":"P62+Q62+R62","v":0},{"$f":"SUMPRODUCT(((Dataset[Econ4]=$G62))*Dataset[2025/26 Baseline])","v":0},{"$f":"SUMPRODUCT(((Dataset[Econ4]=$G62))*Dataset[2025/26 From - Total])","v":0},{"$f":"SUMPRODUCT(((Dataset[Econ4]=$G62))*Dataset[2025/26 To - Total])","v":0},{"$f":"T62+U62+V62","v":0}]
[null,null,null,null,null,null,"Municipalities",{"$f":"SUMPRODUCT(((Dataset[Econ4]=$G63))*Dataset[2019/20])","v":0},{"$f":"SUMPRODUCT(((Dataset[Econ4]=$G63))*Dataset[2020/21])","v":0},{"$f":"SUMPRODUCT(((Dataset[Econ4]=$G63))*Dataset[2021/22 Preliminary outcome])","v":0},{"$f":"SUMPRODUCT(((Dataset[Econ4]=$G63))*Dataset[2022/23 Baseline])","v":0},{"$f":"SUMPRODUCT(((Dataset[Econ4]=$G63))*Dataset[2023/24 Baseline])","v":0},{"$f":"SUMPRODUCT(((Dataset[Econ4]=$G63))*Dataset[2023/24 From - Total])","v":0},{"$f":"SUMPRODUCT(((Dataset[Econ4]=$G63))*Dataset[2023/24 To - Total])","v":0},0,{"$f":"SUMPRODUCT(((Dataset[Econ4]=$G63))*Dataset[2024/25 Baseline])","v":0},{"$f":"SUMPRODUCT(((Dataset[Econ4]=$G63))*Dataset[2024/25 From - Total])","v":0},{"$f":"SUMPRODUCT(((Dataset[Econ4]=$G63))*Dataset[2024/25 To - Total])","v":0},0,{"$f":"SUMPRODUCT(((Dataset[Econ4]=$G63))*Dataset[2025/26 Baseline])","v":0},{"$f":"SUMPRODUCT(((Dataset[Econ4]=$G63))*Dataset[2025/26 From - Total])","v":0},{"$f":"SUMPRODUCT(((Dataset[Econ4]=$G63))*Dataset[2025/26 To - Total])","v":0},0]
[null,null,null,null,null,null,"Departmental agencies and accounts",{"$f":"SUM(H65:H66)","v":0},0,0,0,0,0,0,0,0,0,0,0,0,0,0,0]
[null,null,null,null,null,null,"Social security funds",{"$f":"SUMPRODUCT(((Dataset[Econ4]=$G65))*Dataset[2019/20])","v":0},{"$f":"SUMPRODUCT(((Dataset[Econ4]=$G65))*Dataset[2020/21])","v":0},{"$f":"SUMPRODUCT(((Dataset[Econ4]=$G65))*Dataset[2021/22 Preliminary outcome])","v":0},{"$f":"SUMPRODUCT(((Dataset[Econ4]=$G65))*Dataset[2022/23 Baseline])","v":0},{"$f":"SUMPRODUCT(((Dataset[Econ4]=$G65))*Dataset[2023/24 Baseline])","v":0},{"$f":"SUMPRODUCT(((Dataset[Econ4]=$G65))*Dataset[2023/24 From - Total])","v":0},{"$f":"SUMPRODUCT(((Dataset[Econ4]=$G65))*Dataset[2023/24 To - Total])","v":0},{"$f":"L65+M65+N65","v":0},{"$f":"SUMPRODUCT(((Dataset[Econ4]=$G65))*Dataset[2024/25 Baseline])","v":0},{"$f":"SUMPRODUCT(((Dataset[Econ4]=$G65))*Dataset[2024/25 From - Total])","v":0},{"$f":"SUMPRODUCT(((Dataset[Econ4]=$G65))*Dataset[2024/25 To - Total])","v":0},{"$f":"P65+Q65+R65","v":0},{"$f":"SUMPRODUCT(((Dataset[Econ4]=$G65))*Dataset[2025/26 Baseline])","v":0},{"$f":"SUMPRODUCT(((Dataset[Econ4]=$G65))*Dataset[2025/26 From - Total])","v":0},{"$f":"SUMPRODUCT(((Dataset[Econ4]=$G65))*Dataset[2025/26 To - Total])","v":0},{"$f":"T65+U65+V65","v":0}]
[null,null,null,null,null,null,"Departmental agencies (non-business entities)",{"$f":"SUMPRODUCT(((Dataset[Econ4]=$G66))*Dataset[2019/20])","v":0},{"$f":"SUMPRODUCT(((Dataset[Econ4]=$G66))*Dataset[2020/21])","v":0},{"$f":"SUMPRODUCT(((Dataset[Econ4]=$G66))*Dataset[2021/22 Preliminary outcome])","v":0},{"$f":"SUMPRODUCT(((Dataset[Econ4]=$G66))*Dataset[2022/23 Baseline])","v":0},{"$f":"SUMPRODUCT(((Dataset[Econ4]=$G66))*Dataset[2023/24 Baseline])","v":0},{"$f":"SUMPRODUCT(((Dataset[Econ4]=$G66))*Dataset[2023/24 From - Total])","v":0},{"$f":"SUMPRODUCT(((Dataset[Econ4]=$G66))*Dataset[2023/24 To - Total])","v":0},0,{"$f":"SUMPRODUCT(((Dataset[Econ4]=$G66))*Dataset[2024/25 Baseline])","v":0},{"$f":"SUMPRODUCT(((Dataset[Econ4]=$G66))*Dataset[2024/25 From - Total])","v":0},{"$f":"SUMPRODUCT(((Dataset[Econ4]=$G66))*Dataset[2024/25 To - Total])","v":0},0,{"$f":"SUMPRODUCT(((Dataset[Econ4]=$G66))*Dataset[2025/26 Baseline])","v":0},{"$f":"SUMPRODUCT(((Dataset[Econ4]=$G66))*Dataset[2025/26 From - Total])","v":0},{"$f":"SUMPRODUCT(((Dataset[Econ4]=$G66))*Dataset[2025/26 To - Total])","v":0},0]
[null,null,null,null,null,null,"Higher education institutions",{"$f":"SUMPRODUCT(((Dataset[Econ3]=$G67))*Dataset[2019/20])","v":0},{"$f":"SUMPRODUCT(((Dataset[Econ3]=$G67))*Dataset[2020/21])","v":0},{"$f":"SUMPRODUCT(((Dataset[Econ3]=$G67))*Dataset[2021/22 Preliminary outcome])","v":0},{"$f":"SUMPRODUCT(((Dataset[Econ3]=$G67))*Dataset[2022/23 Baseline])","v":0},{"$f":"SUMPRODUCT(((Dataset[Econ3]=$G67))*Dataset[2023/24 Baseline])","v":0},{"$f":"SUMPRODUCT(((Dataset[Econ3]=$G67))*Dataset[2023/24 From - Total])","v":0},{"$f":"SUMPRODUCT(((Dataset[Econ3]=$G67))*Dataset[2023/24 To - Total])","v":0},0,{"$f":"SUMPRODUCT(((Dataset[Econ3]=$G67))*Dataset[2024/25 Baseline])","v":0},{"$f":"SUMPRODUCT(((Dataset[Econ3]=$G67))*Dataset[2024/25 From - Total])","v":0},{"$f":"SUMPRODUCT(((Dataset[Econ3]=$G67))*Dataset[2024/25 To - Total])","v":0},0,{"$f":"SUMPRODUCT(((Dataset[Econ3]=$G67))*Dataset[2025/26 Baseline])","v":0},{"$f":"SUMPRODUCT(((Dataset[Econ3]=$G67))*Dataset[2025/26 From - Total])","v":0},{"$f":"SUMPRODUCT(((Dataset[Econ3]=$G67))*Dataset[2025/26 To - Total])","v":0},0]
[null,null,null,null,null,null,"Foreign governments and international organisations",{"$f":"SUMPRODUCT(((Dataset[Econ3]=$G68))*Dataset[2019/20])","v":0},{"$f":"SUMPRODUCT(((Dataset[Econ3]=$G68))*Dataset[2020/21])","v":0},{"$f":"SUMPRODUCT(((Dataset[Econ3]=$G68))*Dataset[2021/22 Preliminary outcome])","v":0},{"$f":"SUMPRODUCT(((Dataset[Econ3]=$G68))*Dataset[2022/23 Baseline])","v":0},{"$f":"SUMPRODUCT(((Dataset[Econ3]=$G68))*Dataset[2023/24 Baseline])","v":0},{"$f":"SUMPRODUCT(((Dataset[Econ3]=$G68))*Dataset[2023/24 From - Total])","v":0},{"$f":"SUMPRODUCT(((Dataset[Econ3]=$G68))*Dataset[2023/24 To - Total])","v":0},0,{"$f":"SUMPRODUCT(((Dataset[Econ3]=$G68))*Dataset[2024/25 Baseline])","v":0},{"$f":"SUMPRODUCT(((Dataset[Econ3]=$G68))*Dataset[2024/25 From - Total])","v":0},{"$f":"SUMPRODUCT(((Dataset[Econ3]=$G68))*Dataset[2024/25 To - Total])","v":0},0,{"$f":"SUMPRODUCT(((Dataset[Econ3]=$G68))*Dataset[2025/26 Baseline])","v":0},{"$f":"SUMPRODUCT(((Dataset[Econ3]=$G68))*Dataset[2025/26 From - Total])","v":0},{"$f":"SUMPRODUCT(((Dataset[Econ3]=$G68))*Dataset[2025/26 To - Total])","v":0},0]
[null,null,null,null,null,null,"Public corporations and private enterprises",{"$f":"SUM(H70:H71)","v":0},0,0,0,0,0,0,0,0,0,0,0,0,0,0,0]
[null,null,null,null,null,null,"Public corporations",{"$f":"SUMPRODUCT(((Dataset[Econ4]=$G70))*Dataset[2019/20])","v":0},{"$f":"SUMPRODUCT(((Dataset[Econ4]=$G70))*Dataset[2020/21])","v":0},{"$f":"SUMPRODUCT(((Dataset[Econ4]=$G70))*Dataset[2021/22 Preliminary outcome])","v":0},{"$f":"SUMPRODUCT(((Dataset[Econ4]=$G70))*Dataset[2022/23 Baseline])","v":0},{"$f":"SUMPRODUCT(((Dataset[Econ4]=$G70))*Dataset[2023/24 Baseline])","v":0},{"$f":"SUMPRODUCT(((Dataset[Econ4]=$G70))*Dataset[2023/24 From - Total])","v":0},{"$f":"SUMPRODUCT(((Dataset[Econ4]=$G70))*Dataset[2023/24 To - Total])","v":0},{"$f":"L70+M70+N70","v":0},{"$f":"SUMPRODUCT(((Dataset[Econ4]=$G70))*Dataset[2024/25 Baseline])","v":0},{"$f":"SUMPRODUCT(((Dataset[Econ4]=$G70))*Dataset[2024/25 From - Total])","v":0},{"$f":"SUMPRODUCT(((Dataset[Econ4]=$G70))*Dataset[2024/25 To - Total])","v":0},{"$f":"P70+Q70+R70","v":0},{"$f":"SUMPRODUCT(((Dataset[Econ4]=$G70))*Dataset[2025/26 Baseline])","v":0},{"$f":"SUMPRODUCT(((Dataset[Econ4]=$G70))*Dataset[2025/26 From - Total])","v":0},{"$f":"SUMPRODUCT(((Dataset[Econ4]=$G70))*Dataset[2025/26 To - Total])","v":0},{"$f":"T70+U70+V70","v":0}]
[null,null,null,null,null,null,"Private enterprises",{"$f":"SUMPRODUCT(((Dataset[Econ4]=$G71))*Dataset[2019/20])","v":0},{"$f":"SUMPRODUCT(((Dataset[Econ4]=$G71))*Dataset[2020/21])","v":0},{"$f":"SUMPRODUCT(((Dataset[Econ4]=$G71))*Dataset[2021/22 Preliminary outcome])","v":0},{"$f":"SUMPRODUCT(((Dataset[Econ4]=$G71))*Dataset[2022/23 Baseline])","v":0},{"$f":"SUMPRODUCT(((Dataset[Econ4]=$G71))*Dataset[2023/24 Baseline])","v":0},{"$f":"SUMPRODUCT(((Dataset[Econ4]=$G71))*Dataset[2023/24 From - Total])","v":0},{"$f":"SUMPRODUCT(((Dataset[Econ4]=$G71))*Dataset[2023/24 To - Total])","v":0},0,{"$f":"SUMPRODUCT(((Dataset[Econ4]=$G71))*Dataset[2024/25 Baseline])","v":0},{"$f":"SUMPRODUCT(((Dataset[Econ4]=$G71))*Dataset[2024/25 From - Total])","v":0},{"$f":"SUMPRODUCT(((Dataset[Econ4]=$G71))*Dataset[2024/25 To - Total])","v":0},0,{"$f":"SUMPRODUCT(((Dataset[Econ4]=$G71))*Dataset[2025/26 Baseline])","v":0},{"$f":"SUMPRODUCT(((Dataset[Econ4]=$G71))*Dataset[2025/26 From - Total])","v":0},{"$f":"SUMPRODUCT(((Dataset[Econ4]=$G71))*Dataset[2025/26 To - Total])","v":0},0]
[null,null,null,null,null,null,"Non-profit institutions",{"$f":"SUMPRODUCT(((Dataset[Econ3]=$G72))*Dataset[2019/20])","v":463312},{"$f":"SUMPRODUCT(((Dataset[Econ3]=$G72))*Dataset[2020/21])","v":454186},{"$f":"SUMPRODUCT(((Dataset[Econ3]=$G72))*Dataset[2021/22 Preliminary outcome])","v":0},{"$f":"SUMPRODUCT(((Dataset[Econ3]=$G72))*Dataset[2022/23 Baseline])","v":513031},{"$f":"SUMPRODUCT(((Dataset[Econ3]=$G72))*Dataset[2023/24 Baseline])","v":515620},{"$f":"SUMPRODUCT(((Dataset[Econ3]=$G72))*Dataset[2023/24 From - Total])","v":0},{"$f":"SUMPRODUCT(((Dataset[Econ3]=$G72))*Dataset[2023/24 To - Total])","v":0},515620,{"$f":"SUMPRODUCT(((Dataset[Econ3]=$G72))*Dataset[2024/25 Baseline])","v":538981},{"$f":"SUMPRODUCT(((Dataset[Econ3]=$G72))*Dataset[2024/25 From - Total])","v":0},{"$f":"SUMPRODUCT(((Dataset[Econ3]=$G72))*Dataset[2024/25 To - Total])","v":0},538981,{"$f":"SUMPRODUCT(((Dataset[Econ3]=$G72))*Dataset[2025/26 Baseline])","v":563127},{"$f":"SUMPRODUCT(((Dataset[Econ3]=$G72))*Dataset[2025/26 From - Total])","v":0},{"$f":"SUMPRODUCT(((Dataset[Econ3]=$G72))*Dataset[2025/26 To - Total])","v":0},563127]
[null,null,null,null,null,null,"Households",{"$f":"SUM(H74:H75)","v":0},0,0,0,0,0,0,0,0,0,0,0,0,0,0,0]
[null,null,null,null,null,null,"Social benefits",{"$f":"SUMPRODUCT(((Dataset[Econ4]=$G74))*Dataset[2019/20])","v":0},{"$f":"SUMPRODUCT(((Dataset[Econ4]=$G74))*Dataset[2020/21])","v":0},{"$f":"SUMPRODUCT(((Dataset[Econ4]=$G74))*Dataset[2021/22 Preliminary outcome])","v":0},{"$f":"SUMPRODUCT(((Dataset[Econ4]=$G74))*Dataset[2022/23 Baseline])","v":0},{"$f":"SUMPRODUCT(((Dataset[Econ4]=$G74))*Dataset[2023/24 Baseline])","v":0},{"$f":"SUMPRODUCT(((Dataset[Econ4]=$G74))*Dataset[2023/24 From - Total])","v":0},{"$f":"SUMPRODUCT(((Dataset[Econ4]=$G74))*Dataset[2023/24 To - Total])","v":0},{"$f":"L74+M74+N74","v":0},{"$f":"SUMPRODUCT(((Dataset[Econ4]=$G74))*Dataset[2024/25 Baseline])","v":0},{"$f":"SUMPRODUCT(((Dataset[Econ4]=$G74))*Dataset[2024/25 From - Total])","v":0},{"$f":"SUMPRODUCT(((Dataset[Econ4]=$G74))*Dataset[2024/25 To - Total])","v":0},{"$f":"P74+Q74+R74","v":0},{"$f":"SUMPRODUCT(((Dataset[Econ4]=$G74))*Dataset[2025/26 Baseline])","v":0},{"$f":"SUMPRODUCT(((Dataset[Econ4]=$G74))*Dataset[2025/26 From - Total])","v":0},{"$f":"SUMPRODUCT(((Dataset[Econ4]=$G74))*Dataset[2025/26 To - Total])","v":0},{"$f":"T74+U74+V74","v":0}]
[null,null,null,null,null,null,"Other transfers to households",{"$f":"SUMPRODUCT(((Dataset[Econ4]=$G75))*Dataset[2019/20])","v":0},{"$f":"SUMPRODUCT(((Dataset[Econ4]=$G75))*Dataset[2020/21])","v":0},{"$f":"SUMPRODUCT(((Dataset[Econ4]=$G75))*Dataset[2021/22 Preliminary outcome])","v":0},{"$f":"SUMPRODUCT(((Dataset[Econ4]=$G75))*Dataset[2022/23 Baseline])","v":0},{"$f":"SUMPRODUCT(((Dataset[Econ4]=$G75))*Dataset[2023/24 Baseline])","v":0},{"$f":"SUMPRODUCT(((Dataset[Econ4]=$G75))*Dataset[2023/24 From - Total])","v":0},{"$f":"SUMPRODUCT(((Dataset[Econ4]=$G75))*Dataset[2023/24 To - Total])","v":0},0,{"$f":"SUMPRODUCT(((Dataset[Econ4]=$G75))*Dataset[2024/25 Baseline])","v":0},{"$f":"SUMPRODUCT(((Dataset[Econ4]=$G75))*Dataset[2024/25 From - Total])","v":0},{"$f":"SUMPRODUCT(((Dataset[Econ4]=$G75))*Dataset[2024/25 To - Total])","v":0},0,{"$f":"SUMPRODUCT(((Dataset[Econ4]=$G75))*Dataset[2025/26 Baseline])","v":0},{"$f":"SUMPRODUCT(((Dataset[Econ4]=$G75))*Dataset[2025/26 From - Total])","v":0},{"$f":"SUMPRODUCT(((Dataset[Econ4]=$G75))*Dataset[2025/26 To - Total])","v":0},0]
[null,null,null,null,null,null,"Payments for capital assets",{"$f":"SUM(H77,H80,H83:H87)","v":11359},13788,0,13245,13818,0,0,13818,14439,0,0,14439,15086,0,0,15086]
[null,null,null,null,null,null,"Buildings and other fixed structures",{"$f":"SUM(H78:H79)","v":0},0,0,0,0,0,0,0,0,0,0,0,0,0,0,0]
[null,null,null,null,null,null,"Buildings",{"$f":"SUMPRODUCT(((Dataset[Econ4]=$G78))*Dataset[2019/20])","v":0},{"$f":"SUMPRODUCT(((Dataset[Econ4]=$G78))*Dataset[2020/21])","v":0},{"$f":"SUMPRODUCT(((Dataset[Econ4]=$G78))*Dataset[2021/22 Preliminary outcome])","v":0},{"$f":"SUMPRODUCT(((Dataset[Econ4]=$G78))*Dataset[2022/23 Baseline])","v":0},{"$f":"SUMPRODUCT(((Dataset[Econ4]=$G78))*Dataset[2023/24 Baseline])","v":0},{"$f":"SUMPRODUCT(((Dataset[Econ4]=$G78))*Dataset[2023/24 From - Total])","v":0},{"$f":"SUMPRODUCT(((Dataset[Econ4]=$G78))*Dataset[2023/24 To - Total])","v":0},{"$f":"L78+M78+N78","v":0},{"$f":"SUMPRODUCT(((Dataset[Econ4]=$G78))*Dataset[2024/25 Baseline])","v":0},{"$f":"SUMPRODUCT(((Dataset[Econ4]=$G78))*Dataset[2024/25 From - Total])","v":0},{"$f":"SUMPRODUCT(((Dataset[Econ4]=$G78))*Dataset[2024/25 To - Total])","v":0},{"$f":"P78+Q78+R78","v":0},{"$f":"SUMPRODUCT(((Dataset[Econ4]=$G78))*Dataset[2025/26 Baseline])","v":0},{"$f":"SUMPRODUCT(((Dataset[Econ4]=$G78))*Dataset[2025/26 From - Total])","v":0},{"$f":"SUMPRODUCT(((Dataset[Econ4]=$G78))*Dataset[2025/26 To - Total])","v":0},{"$f":"T78+U78+V78","v":0}]
[null,null,null,null,null,null,"Other fixed structures",{"$f":"SUMPRODUCT(((Dataset[Econ4]=$G79))*Dataset[2019/20])","v":0},{"$f":"SUMPRODUCT(((Dataset[Econ4]=$G79))*Dataset[2020/21])","v":0},{"$f":"SUMPRODUCT(((Dataset[Econ4]=$G79))*Dataset[2021/22 Preliminary outcome])","v":0},{"$f":"SUMPRODUCT(((Dataset[Econ4]=$G79))*Dataset[2022/23 Baseline])","v":0},{"$f":"SUMPRODUCT(((Dataset[Econ4]=$G79))*Dataset[2023/24 Baseline])","v":0},{"$f":"SUMPRODUCT(((Dataset[Econ4]=$G79))*Dataset[2023/24 From - Total])","v":0},{"$f":"SUMPRODUCT(((Dataset[Econ4]=$G79))*Dataset[2023/24 To - Total])","v":0},0,{"$f":"SUMPRODUCT(((Dataset[Econ4]=$G79))*Dataset[2024/25 Baseline])","v":0},{"$f":"SUMPRODUCT(((Dataset[Econ4]=$G79))*Dataset[2024/25 From - Total])","v":0},{"$f":"SUMPRODUCT(((Dataset[Econ4]=$G79))*Dataset[2024/25 To - Total])","v":0},0,{"$f":"SUMPRODUCT(((Dataset[Econ4]=$G79))*Dataset[2025/26 Baseline])","v":0},{"$f":"SUMPRODUCT(((Dataset[Econ4]=$G79))*Dataset[2025/26 From - Total])","v":0},{"$f":"SUMPRODUCT(((Dataset[Econ4]=$G79))*Dataset[2025/26 To - Total])","v":0},0]
[null,null,null,null,null,null,"Machinery and equipment",{"$f":"SUM(H81:H82)","v":11359},13788,0,13245,13818,0,0,13818,14439,0,0,14439,15086,0,0,15086]
[null,null,null,null,null,null,"Transport equipment",{"$f":"SUMPRODUCT(((Dataset[Econ4]=$G81))*Dataset[2019/20])","v":0},{"$f":"SUMPRODUCT(((Dataset[Econ4]=$G81))*Dataset[2020/21])","v":0},{"$f":"SUMPRODUCT(((Dataset[Econ4]=$G81))*Dataset[2021/22 Preliminary outcome])","v":0},{"$f":"SUMPRODUCT(((Dataset[Econ4]=$G81))*Dataset[2022/23 Baseline])","v":0},{"$f":"SUMPRODUCT(((Dataset[Econ4]=$G81))*Dataset[2023/24 Baseline])","v":0},{"$f":"SUMPRODUCT(((Dataset[Econ4]=$G81))*Dataset[2023/24 From - Total])","v":0},{"$f":"SUMPRODUCT(((Dataset[Econ4]=$G81))*Dataset[2023/24 To - Total])","v":0},{"$f":"L81+M81+N81","v":0},{"$f":"SUMPRODUCT(((Dataset[Econ4]=$G81))*Dataset[2024/25 Baseline])","v":0},{"$f":"SUMPRODUCT(((Dataset[Econ4]=$G81))*Dataset[2024/25 From - Total])","v":0},{"$f":"SUMPRODUCT(((Dataset[Econ4]=$G81))*Dataset[2024/25 To - Total])","v":0},{"$f":"P81+Q81+R81","v":0},{"$f":"SUMPRODUCT(((Dataset[Econ4]=$G81))*Dataset[2025/26 Baseline])","v":0},{"$f":"SUMPRODUCT(((Dataset[Econ4]=$G81))*Dataset[2025/26 From - Total])","v":0},{"$f":"SUMPRODUCT(((Dataset[Econ4]=$G81))*Dataset[2025/26 To - Total])","v":0},{"$f":"T81+U81+V81","v":0}]
[null,null,null,null,null,null,"Other machinery and equipment",{"$f":"SUMPRODUCT(((Dataset[Econ4]=$G82))*Dataset[2019/20])","v":11359},{"$f":"SUMPRODUCT(((Dataset[Econ4]=$G82))*Dataset[2020/21])","v":13788},{"$f":"SUMPRODUCT(((Dataset[Econ4]=$G82))*Dataset[2021/22 Preliminary outcome])","v":0},{"$f":"SUMPRODUCT(((Dataset[Econ4]=$G82))*Dataset[2022/23 Baseline])","v":13245},{"$f":"SUMPRODUCT(((Dataset[Econ4]=$G82))*Dataset[2023/24 Baseline])","v":13818},{"$f":"SUMPRODUCT(((Dataset[Econ4]=$G82))*Dataset[2023/24 From - Total])","v":0},{"$f":"SUMPRODUCT(((Dataset[Econ4]=$G82))*Dataset[2023/24 To - Total])","v":0},13818,{"$f":"SUMPRODUCT(((Dataset[Econ4]=$G82))*Dataset[2024/25 Baseline])","v":14439},{"$f":"SUMPRODUCT(((Dataset[Econ4]=$G82))*Dataset[2024/25 From - Total])","v":0},{"$f":"SUMPRODUCT(((Dataset[Econ4]=$G82))*Dataset[2024/25 To - Total])","v":0},14439,{"$f":"SUMPRODUCT(((Dataset[Econ4]=$G82))*Dataset[2025/26 Baseline])","v":15086},{"$f":"SUMPRODUCT(((Dataset[Econ4]=$G82))*Dataset[2025/26 From - Total])","v":0},{"$f":"SUMPRODUCT(((Dataset[Econ4]=$G82))*Dataset[2025/26 To - Total])","v":0},15086]
[null,null,null,null,null,null,"Heritage assets",{"$f":"SUMPRODUCT(((Dataset[Econ3]=$G83))*Dataset[2019/20])","v":0},{"$f":"SUMPRODUCT(((Dataset[Econ3]=$G83))*Dataset[2020/21])","v":0},{"$f":"SUMPRODUCT(((Dataset[Econ3]=$G83))*Dataset[2021/22 Preliminary outcome])","v":0},{"$f":"SUMPRODUCT(((Dataset[Econ3]=$G83))*Dataset[2022/23 Baseline])","v":0},{"$f":"SUMPRODUCT(((Dataset[Econ3]=$G83))*Dataset[2023/24 Baseline])","v":0},{"$f":"SUMPRODUCT(((Dataset[Econ3]=$G83))*Dataset[2023/24 From - Total])","v":0},{"$f":"SUMPRODUCT(((Dataset[Econ3]=$G83))*Dataset[2023/24 To - Total])","v":0},0,{"$f":"SUMPRODUCT(((Dataset[Econ3]=$G83))*Dataset[2024/25 Baseline])","v":0},{"$f":"SUMPRODUCT(((Dataset[Econ3]=$G83))*Dataset[2024/25 From - Total])","v":0},{"$f":"SUMPRODUCT(((Dataset[Econ3]=$G83))*Dataset[2024/25 To - Total])","v":0},0,{"$f":"SUMPRODUCT(((Dataset[Econ3]=$G83))*Dataset[2025/26 Baseline])","v":0},{"$f":"SUMPRODUCT(((Dataset[Econ3]=$G83))*Dataset[2025/26 From - Total])","v":0},{"$f":"SUMPRODUCT(((Dataset[Econ3]=$G83))*Dataset[2025/26 To - Total])","v":0},0]
[null,null,null,null,null,null,"Specialised military assets",{"$f":"SUMPRODUCT(((Dataset[Econ3]=$G84))*Dataset[2019/20])","v":0},{"$f":"SUMPRODUCT(((Dataset[Econ3]=$G84))*Dataset[2020/21])","v":0},{"$f":"SUMPRODUCT(((Dataset[Econ3]=$G84))*Dataset[2021/22 Preliminary outcome])","v":0},{"$f":"SUMPRODUCT(((Dataset[Econ3]=$G84))*Dataset[2022/23 Baseline])","v":0},{"$f":"SUMPRODUCT(((Dataset[Econ3]=$G84))*Dataset[2023/24 Baseline])","v":0},{"$f":"SUMPRODUCT(((Dataset[Econ3]=$G84))*Dataset[2023/24 From - Total])","v":0},{"$f":"SUMPRODUCT(((Dataset[Econ3]=$G84))*Dataset[2023/24 To - Total])","v":0},0,{"$f":"SUMPRODUCT(((Dataset[Econ3]=$G84))*Dataset[2024/25 Baseline])","v":0},{"$f":"SUMPRODUCT(((Dataset[Econ3]=$G84))*Dataset[2024/25 From - Total])","v":0},{"$f":"SUMPRODUCT(((Dataset[Econ3]=$G84))*Dataset[2024/25 To - Total])","v":0},0,{"$f":"SUMPRODUCT(((Dataset[Econ3]=$G84))*Dataset[2025/26 Baseline])","v":0},{"$f":"SUMPRODUCT(((Dataset[Econ3]=$G84))*Dataset[2025/26 From - Total])","v":0},{"$f":"SUMPRODUCT(((Dataset[Econ3]=$G84))*Dataset[2025/26 To - Total])","v":0},0]
[null,null,null,null,null,null,"Biological assets",{"$f":"SUMPRODUCT(((Dataset[Econ3]=$G85))*Dataset[2019/20])","v":0},{"$f":"SUMPRODUCT(((Dataset[Econ3]=$G85))*Dataset[2020/21])","v":0},{"$f":"SUMPRODUCT(((Dataset[Econ3]=$G85))*Dataset[2021/22 Preliminary outcome])","v":0},{"$f":"SUMPRODUCT(((Dataset[Econ3]=$G85))*Dataset[2022/23 Baseline])","v":0},{"$f":"SUMPRODUCT(((Dataset[Econ3]=$G85))*Dataset[2023/24 Baseline])","v":0},{"$f":"SUMPRODUCT(((Dataset[Econ3]=$G85))*Dataset[2023/24 From - Total])","v":0},{"$f":"SUMPRODUCT(((Dataset[Econ3]=$G85))*Dataset[2023/24 To - Total])","v":0},0,{"$f":"SUMPRODUCT(((Dataset[Econ3]=$G85))*Dataset[2024/25 Baseline])","v":0},{"$f":"SUMPRODUCT(((Dataset[Econ3]=$G85))*Dataset[2024/25 From - Total])","v":0},{"$f":"SUMPRODUCT(((Dataset[Econ3]=$G85))*Dataset[2024/25 To - Total])","v":0},0,{"$f":"SUMPRODUCT(((Dataset[Econ3]=$G85))*Dataset[2025/26 Baseline])","v":0},{"$f":"SUMPRODUCT(((Dataset[Econ3]=$G85))*Dataset[2025/26 From - Total])","v":0},{"$f":"SUMPRODUCT(((Dataset[Econ3]=$G85))*Dataset[2025/26 To - Total])","v":0},0]
[null,null,null,null,null,null,"Land and sub-soil assets",{"$f":"SUMPRODUCT(((Dataset[Econ3]=$G86))*Dataset[2019/20])","v":0},{"$f":"SUMPRODUCT(((Dataset[Econ3]=$G86))*Dataset[2020/21])","v":0},{"$f":"SUMPRODUCT(((Dataset[Econ3]=$G86))*Dataset[2021/22 Preliminary outcome])","v":0},{"$f":"SUMPRODUCT(((Dataset[Econ3]=$G86))*Dataset[2022/23 Baseline])","v":0},{"$f":"SUMPRODUCT(((Dataset[Econ3]=$G86))*Dataset[2023/24 Baseline])","v":0},{"$f":"SUMPRODUCT(((Dataset[Econ3]=$G86))*Dataset[2023/24 From - Total])","v":0},{"$f":"SUMPRODUCT(((Dataset[Econ3]=$G86))*Dataset[2023/24 To - Total])","v":0},0,{"$f":"SUMPRODUCT(((Dataset[Econ3]=$G86))*Dataset[2024/25 Baseline])","v":0},{"$f":"SUMPRODUCT(((Dataset[Econ3]=$G86))*Dataset[2024/25 From - Total])","v":0},{"$f":"SUMPRODUCT(((Dataset[Econ3]=$G86))*Dataset[2024/25 To - Total])","v":0},0,{"$f":"SUMPRODUCT(((Dataset[Econ3]=$G86))*Dataset[2025/26 Baseline])","v":0},{"$f":"SUMPRODUCT(((Dataset[Econ3]=$G86))*Dataset[2025/26 From - Total])","v":0},{"$f":"SUMPRODUCT(((Dataset[Econ3]=$G86))*Dataset[2025/26 To - Total])","v":0},0]
[null,null,null,null,null,null,"Software and other intangible assets",{"$f":"SUMPRODUCT(((Dataset[Econ3]=$G87))*Dataset[2019/20])","v":0},{"$f":"SUMPRODUCT(((Dataset[Econ3]=$G87))*Dataset[2020/21])","v":0},{"$f":"SUMPRODUCT(((Dataset[Econ3]=$G87))*Dataset[2021/22 Preliminary outcome])","v":0},{"$f":"SUMPRODUCT(((Dataset[Econ3]=$G87))*Dataset[2022/23 Baseline])","v":0},{"$f":"SUMPRODUCT(((Dataset[Econ3]=$G87))*Dataset[2023/24 Baseline])","v":0},{"$f":"SUMPRODUCT(((Dataset[Econ3]=$G87))*Dataset[2023/24 From - Total])","v":0},{"$f":"SUMPRODUCT(((Dataset[Econ3]=$G87))*Dataset[2023/24 To - Total])","v":0},0,{"$f":"SUMPRODUCT(((Dataset[Econ3]=$G87))*Dataset[2024/25 Baseline])","v":0},{"$f":"SUMPRODUCT(((Dataset[Econ3]=$G87))*Dataset[2024/25 From - Total])","v":0},{"$f":"SUMPRODUCT(((Dataset[Econ3]=$G87))*Dataset[2024/25 To - Total])","v":0},0,{"$f":"SUMPRODUCT(((Dataset[Econ3]=$G87))*Dataset[2025/26 Baseline])","v":0},{"$f":"SUMPRODUCT(((Dataset[Econ3]=$G87))*Dataset[2025/26 From - Total])","v":0},{"$f":"SUMPRODUCT(((Dataset[Econ3]=$G87))*Dataset[2025/26 To - Total])","v":0},0]
[null,null,null,null,null,null,"Payments for financial assets",{"$f":"SUMPRODUCT(((Dataset[Econ3]=$G88))*Dataset[2019/20])","v":0},{"$f":"SUMPRODUCT(((Dataset[Econ3]=$G88))*Dataset[2020/21])","v":0},{"$f":"SUMPRODUCT(((Dataset[Econ3]=$G88))*Dataset[2021/22 Preliminary outcome])","v":0},{"$f":"SUMPRODUCT(((Dataset[Econ3]=$G88))*Dataset[2022/23 Baseline])","v":0},{"$f":"SUMPRODUCT(((Dataset[Econ3]=$G88))*Dataset[2023/24 Baseline])","v":0},{"$f":"SUMPRODUCT(((Dataset[Econ3]=$G88))*Dataset[2023/24 From - Total])","v":0},{"$f":"SUMPRODUCT(((Dataset[Econ3]=$G88))*Dataset[2023/24 To - Total])","v":0},0,{"$f":"SUMPRODUCT(((Dataset[Econ3]=$G88))*Dataset[2024/25 Baseline])","v":0},{"$f":"SUMPRODUCT(((Dataset[Econ3]=$G88))*Dataset[2024/25 From - Total])","v":0},{"$f":"SUMPRODUCT(((Dataset[Econ3]=$G88))*Dataset[2024/25 To - Total])","v":0},0,{"$f":"SUMPRODUCT(((Dataset[Econ3]=$G88))*Dataset[2025/26 Baseline])","v":0},{"$f":"SUMPRODUCT(((Dataset[Econ3]=$G88))*Dataset[2025/26 From - Total])","v":0},{"$f":"SUMPRODUCT(((Dataset[Econ3]=$G88))*Dataset[2025/26 To - Total])","v":0},0]
[null,null,null,null,null,null,"Total",{"$f":"SUM(H56,H60,H76,H88)","v":2593978},2492319,0,2683952,2657570,0,0,2657570,2776916,0,0,2776916,2901323,0,0,2901323]
[]
[]
[]
[]
[]
[]
[null,null,null,null,null,null,"I, ……………………………………………………..………………………………………., certify that the information in this template is complete, true and accurate, and has been compiled in line with the requirements in the 2023 MTEF Technical Guidelines."]
[]
[]
[]
[]
[null,null,null,null,null,null,"……………….………………………….."]
[null,null,null,null,null,null,{"$f":"\"Chief Financial Officer\"","v":"Chief Financial Officer"}]
[]
[null,null,null,null,null,null,"…………......./……........….../……...….....…..."]

{"sheet":"SRT1","index":11,"n_rows":210,"n_cols":25,"rows_kept":210,"cut":false,"hidden":false,"merged":[[119,24,119,26],[120,24,120,26],[121,24,121,26],[105,24,105,26],[106,24,106,26],[107,24,107,26],[108,24,108,26],[109,24,109,26],[110,24,110,26],[111,24,111,26],[112,24,112,26],[113,24,113,26],[114,24,114,26],[115,24,115,26],[116,24,116,26],[117,24,117,26],[118,24,118,26],[205,19,205,23],[206,19,206,23],[207,19,207,23],[208,19,208,23],[199,19,199,23],[200,19,200,23],[201,19,201,23],[202,19,202,23],[203,19,203,23],[173,19,173,23],[174,19,174,23],[175,19,175,23],[176,19,176,23],[195,19,195,23],[178,19,178,23],[84,6,98,18],[194,19,194,23],[128,19,128,23],[129,19,129,23],[204,19,204,23],[159,19,159,23],[160,19,160,23],[196,19,196,23],[107,19,107,23],[108,19,108,23],[109,19,109,23],[197,19,197,23],[198,19,198,23],[120,19,120,23],[121,19,121,23],[105,19,105,23],[114,19,114,23],[106,19,106,23],[157,19,157,23],[158,19,158,23],[115,19,115,23],[116,19,116,23],[117,19,117,23],[118,19,118,23],[119,19,119,23],[110,19,110,23],[111,19,111,23],[112,19,112,23],[113,19,113,23],[130,19,149,23],[72,6,72,18],[161,19,161,23],[177,19,177,23],[188,19,188,23],[189,19,189,23],[162,19,162,23],[163,19,163,23],[164,19,164,23],[165,19,165,23],[166,19,166,23],[167,19,167,23],[168,19,168,23],[169,19,169,23],[170,19,170,23],[171,19,171,23],[172,19,172,23],[179,19,179,23],[180,19,180,23],[181,19,181,23],[182,19,182,23],[183,19,183,23],[191,19,191,23],[192,19,192,23],[193,19,193,23],[184,19,184,23],[185,19,185,23],[186,19,186,23],[187,19,187,23],[190,19,190,23]]}
[]
[null,null,null,null,null,null,"Spending review topic…"]
[null,{"$f":"IF(G3=\"\",0,1)","v":1},null,null,null,1,{"$f":"SRTopic1","v":"afas dfsfds"}]
[]
[null,null,null,null,null,null,"Quick view…(Total change)",{"$f":"MyYear5","v":"2023/24"},{"$f":"MyYear6","v":"2024/25"},{"$f":"MyYear7","v":"2025/26"},"MTEF total","Trend"]
[null,null,null,null,null,null,"Compensation of employees",{"$f":"SUMPRODUCT(($G$35:$G$68=$G6)*($J$35:$J$68))","v":0},{"$f":"SUMPRODUCT(($G$35:$G$68=$G6)*($M$35:$M$68))","v":0},{"$f":"SUMPRODUCT(($G$35:$G$68=$G6)*($P$35:$P$68))","v":0},{"$f":"SUM(H6:J6)","v":0},null,null,"CoE"]
[null,null,null,null,null,null,"Goods and services",{"$f":"SUMPRODUCT(($G$35:$G$68=$G7)*($J$35:$J$68))","v":0},{"$f":"SUMPRODUCT(($G$35:$G$68=$G7)*($M$35:$M$68))","v":0},{"$f":"SUMPRODUCT(($G$35:$G$68=$G7)*($P$35:$P$68))","v":0},0,null,null,"G&S"]
[null,null,null,null,null,null,"Transfers and subsidies",{"$f":"SUMPRODUCT(($G$35:$G$68=$G8)*($J$35:$J$68))","v":0},{"$f":"SUMPRODUCT(($G$35:$G$68=$G8)*($M$35:$M$68))","v":0},{"$f":"SUMPRODUCT(($G$35:$G$68=$G8)*($P$35:$P$68))","v":0},0,null,null,"T&S"]
[null,null,null,null,null,null,"Payments for capital assets",{"$f":"SUMPRODUCT(($G$35:$G$68=$G9)*($J$35:$J$68))","v":0},{"$f":"SUMPRODUCT(($G$35:$G$68=$G9)*($M$35:$M$68))","v":0},{"$f":"SUMPRODUCT(($G$35:$G$68=$G9)*($P$35:$P$68))","v":0},0,null,null,"Capital"]
[null,null,null,null,null,null,"Total",{"$f":"SUMPRODUCT(($G$35:$G$68=$G10)*($J$35:$J$68))","v":0},{"$f":"SUMPRODUCT(($G$35:$G$68=$G10)*($M$35:$M$68))","v":0},{"$f":"SUMPRODUCT(($G$35:$G$68=$G10)*($P$35:$P$68))","v":0},0,null,null,"Total"]
[null,null,null,null,null,null,"% of MTEF total",null,null,null,null,null,null,null,null,null,null,null,{"$f":"MyYear5","v":"2023/24"},{"$f":"MyYear6","v":"2024/25"},{"$f":"MyYear7","v":"2025/26"}]
[null,null,null,null,null,null,"Compensation of employees",{"$f":"IFERROR(H6/$K6,\"\")","v":""},"","",null,null,null,null,null,null,null,{"$f":"G12","v":"Compensation of employees"},{"$f":"IF(H12>0.0595,H12,\"\")","v":""},"",""]
[null,null,null,null,null,null,"Goods and services","","","",null,null,null,null,null,null,null,{"$f":"G13","v":"Goods and services"},"","",""]
[null,null,null,null,null,null,"Transfers and subsidies","","","",null,null,null,null,null,null,null,{"$f":"G14","v":"Transfers and subsidies"},"","",""]
[null,null,null,null,null,null,"Payments for capital assets","","","",null,null,null,null,null,null,null,{"$f":"G15","v":"Payments for capital assets"},"","",""]
[]
[null,null,null,null,null,null,"Division of Revenue",{"$f":"MyYear5","v":"2023/24"},{"$f":"MyYear6","v":"2024/25"},{"$f":"MyYear7","v":"2025/26"},"MTEF total","Trend"]
[null,null,null,null,null,null,"National",{"$f":"SUM(H19:H21)","v":0},0,0,{"$f":"SUM(H18:J18)","v":0}]
[{"$f":"$G$3","v":"afas dfsfds"},"NAT",null,null,null,null,"National (excl. indirect grants)",{"$f":"SUMPRODUCT(((Dataset[DOR]=$B19))*Dataset[2023/24 From - Spending review Topic 1])+SUMPRODUCT(((Dataset[DOR]=$B19))*Dataset[2023/24 To - Spending review Topic 1])","v":0},{"$f":"SUMPRODUCT(((Dataset[DOR]=$B19))*Dataset[2024/25 From - Spending review Topic 1])+SUMPRODUCT(((Dataset[DOR]=$B19))*Dataset[2024/25 To - Spending review Topic 1])","v":0},{"$f":"SUMPRODUCT(((Dataset[DOR]=$B19))*Dataset[2025/26 From - Spending review Topic 1])+SUMPRODUCT(((Dataset[DOR]=$B19))*Dataset[2025/26 To - Spending review Topic 1])","v":0},0]
["afas dfsfds","IGP",null,null,null,null,"Provincial indirect grants",{"$f":"SUMPRODUCT(((Dataset[DOR]=$B20))*Dataset[2023/24 From - Spending review Topic 1])+SUMPRODUCT(((Dataset[DOR]=$B20))*Dataset[2023/24 To - Spending review Topic 1])","v":0},{"$f":"SUMPRODUCT(((Dataset[DOR]=$B20))*Dataset[2024/25 From - Spending review Topic 1])+SUMPRODUCT(((Dataset[DOR]=$B20))*Dataset[2024/25 To - Spending review Topic 1])","v":0},{"$f":"SUMPRODUCT(((Dataset[DOR]=$B20))*Dataset[2025/26 From - Spending review Topic 1])+SUMPRODUCT(((Dataset[DOR]=$B20))*Dataset[2025/26 To - Spending review Topic 1])","v":0},{"$f":"SUM(H20:J20)","v":0}]
["afas dfsfds","IGM",null,null,null,null,"Local indirect grants",{"$f":"SUMPRODUCT(((Dataset[DOR]=$B21))*Dataset[2023/24 From - Spending review Topic 1])+SUMPRODUCT(((Dataset[DOR]=$B21))*Dataset[2023/24 To - Spending review Topic 1])","v":0},{"$f":"SUMPRODUCT(((Dataset[DOR]=$B21))*Dataset[2024/25 From - Spending review Topic 1])+SUMPRODUCT(((Dataset[DOR]=$B21))*Dataset[2024/25 To - Spending review Topic 1])","v":0},{"$f":"SUMPRODUCT(((Dataset[DOR]=$B21))*Dataset[2025/26 From - Spending review Topic 1])+SUMPRODUCT(((Dataset[DOR]=$B21))*Dataset[2025/26 To - Spending review Topic 1])","v":0},0]
["afas dfsfds",null,null,null,null,null,"Provincial",{"$f":"SUMPRODUCT(((Dataset[DOR]=$B22))*Dataset[2023/24 From - Spending review Topic 1])+SUMPRODUCT(((Dataset[DOR]=$B22))*Dataset[2023/24 To - Spending review Topic 1])","v":0},{"$f":"SUMPRODUCT(((Dataset[DOR]=$B22))*Dataset[2024/25 From - Spending review Topic 1])+SUMPRODUCT(((Dataset[DOR]=$B22))*Dataset[2024/25 To - Spending review Topic 1])","v":0},{"$f":"SUMPRODUCT(((Dataset[DOR]=$B22))*Dataset[2025/26 From - Spending review Topic 1])+SUMPRODUCT(((Dataset[DOR]=$B22))*Dataset[2025/26 To - Spending review Topic 1])","v":0},0]
["afas dfsfds","PES",null,null,null,null,"Provincial equitable share",{"$f":"SUMPRODUCT(((Dataset[DOR]=$B23))*Dataset[2023/24 From - Spending review Topic 1])+SUMPRODUCT(((Dataset[DOR]=$B23))*Dataset[2023/24 To - Spending review Topic 1])","v":0},{"$f":"SUMPRODUCT(((Dataset[DOR]=$B23))*Dataset[2024/25 From - Spending review Topic 1])+SUMPRODUCT(((Dataset[DOR]=$B23))*Dataset[2024/25 To - Spending review Topic 1])","v":0},{"$f":"SUMPRODUCT(((Dataset[DOR]=$B23))*Dataset[2025/26 From - Spending review Topic 1])+SUMPRODUCT(((Dataset[DOR]=$B23))*Dataset[2025/26 To - Spending review Topic 1])","v":0},0]
[{"$f":"$G$3","v":"afas dfsfds"},"PCG",null,null,null,null,"Provincial conditional grants",{"$f":"SUMPRODUCT(((Dataset[DOR]=$B24))*Dataset[2023/24 From - Spending review Topic 1])+SUMPRODUCT(((Dataset[DOR]=$B24))*Dataset[2023/24 To - Spending review Topic 1])","v":0},{"$f":"SUMPRODUCT(((Dataset[DOR]=$B24))*Dataset[2024/25 From - Spending review Topic 1])+SUMPRODUCT(((Dataset[DOR]=$B24))*Dataset[2024/25 To - Spending review Topic 1])","v":0},{"$f":"SUMPRODUCT(((Dataset[DOR]=$B24))*Dataset[2025/26 From - Spending review Topic 1])+SUMPRODUCT(((Dataset[DOR]=$B24))*Dataset[2025/26 To - Spending review Topic 1])","v":0},0]
["afas dfsfds",null,null,null,null,null,"Local government",{"$f":"SUMPRODUCT(((Dataset[DOR]=$B25))*Dataset[2023/24 From - Spending review Topic 1])+SUMPRODUCT(((Dataset[DOR]=$B25))*Dataset[2023/24 To - Spending review Topic 1])","v":0},{"$f":"SUMPRODUCT(((Dataset[DOR]=$B25))*Dataset[2024/25 From - Spending review Topic 1])+SUMPRODUCT(((Dataset[DOR]=$B25))*Dataset[2024/25 To - Spending review Topic 1])","v":0},{"$f":"SUMPRODUCT(((Dataset[DOR]=$B25))*Dataset[2025/26 From - Spending review Topic 1])+SUMPRODUCT(((Dataset[DOR]=$B25))*Dataset[2025/26 To - Spending review Topic 1])","v":0},0]
["afas dfsfds","LES",null,null,null,null,"Local equitable share",{"$f":"SUMPRODUCT(((Dataset[DOR]=$B26))*Dataset[2023/24 From - Spending review Topic 1])+SUMPRODUCT(((Dataset[DOR]=$B26))*Dataset[2023/24 To - Spending review Topic 1])","v":0},{"$f":"SUMPRODUCT(((Dataset[DOR]=$B26))*Dataset[2024/25 From - Spending review Topic 1])+SUMPRODUCT(((Dataset[DOR]=$B26))*Dataset[2024/25 To - Spending review Topic 1])","v":0},{"$f":"SUMPRODUCT(((Dataset[DOR]=$B26))*Dataset[2025/26 From - Spending review Topic 1])+SUMPRODUCT(((Dataset[DOR]=$B26))*Dataset[2025/26 To - Spending review Topic 1])","v":0},0]
["afas dfsfds","LCG",null,null,null,null,"Local conditional grants",{"$f":"SUMPRODUCT(((Dataset[DOR]=$B27))*Dataset[2023/24 From - Spending review Topic 1])+SUMPRODUCT(((Dataset[DOR]=$B27))*Dataset[2023/24 To - Spending review Topic 1])","v":0},{"$f":"SUMPRODUCT(((Dataset[DOR]=$B27))*Dataset[2024/25 From - Spending review Topic 1])+SUMPRODUCT(((Dataset[DOR]=$B27))*Dataset[2024/25 To - Spending review Topic 1])","v":0},{"$f":"SUMPRODUCT(((Dataset[DOR]=$B27))*Dataset[2025/26 From - Spending review Topic 1])+SUMPRODUCT(((Dataset[DOR]=$B27))*Dataset[2025/26 To - Spending review Topic 1])","v":0},0]
["afas dfsfds","GFL",null,null,null,null,"General fuel levy ",{"$f":"SUMPRODUCT(((Dataset[DOR]=$B28))*Dataset[2023/24 From - Spending review Topic 1])+SUMPRODUCT(((Dataset[DOR]=$B28))*Dataset[2023/24 To - Spending review Topic 1])","v":0},{"$f":"SUMPRODUCT(((Dataset[DOR]=$B28))*Dataset[2024/25 From - Spending review Topic 1])+SUMPRODUCT(((Dataset[DOR]=$B28))*Dataset[2024/25 To - Spending review Topic 1])","v":0},{"$f":"SUMPRODUCT(((Dataset[DOR]=$B28))*Dataset[2025/26 From - Spending review Topic 1])+SUMPRODUCT(((Dataset[DOR]=$B28))*Dataset[2025/26 To - Spending review Topic 1])","v":0},0]
[]
[]
[null,null,null,null,null,null,{"$f":"G3","v":"afas dfsfds"}]
[{"$f":"$G$3","v":"afas dfsfds"},0,null,null,null,null,null,{"$f":"MyYear5","v":"2023/24"},null,null,{"$f":"MyYear6","v":"2024/25"},null,null,{"$f":"MyYear7","v":"2025/26"},null,null,"Total over MTEF"]
[{"$f":"$G$3","v":"afas dfsfds"},0,null,null,null,null,"Rand thousand","From","To","Total change","From","To","Total change","From","To","Total change","From","To","Total change"]
["afas dfsfds",0,null,null,null,null,"Economic classification"]
["afas dfsfds",0,null,null,null,null,"Current payments",{"$f":"SUM(H36:H38)","v":0},{"$f":"SUM(I36:I38)","v":0},0,0,0,{"$f":"SUM(M36:M38)","v":0},0,0,{"$f":"SUM(P36:P38)","v":0},0,0,{"$f":"SUM(S36:S38)","v":0}]
["afas dfsfds",0,null,null,null,null,"Compensation of employees",{"$f":"SUMPRODUCT(((Dataset[Econ3]=$G36))*Dataset[2023/24 From - Spending review Topic 1]*$B$3)","v":0},{"$f":"SUMPRODUCT(((Dataset[Econ3]=$G36))*Dataset[2023/24 To - Spending review Topic 1]*$B$3)","v":0},{"$f":"H36+I36","v":0},{"$f":"SUMPRODUCT(((Dataset[Econ3]=$G36))*Dataset[2024/25 From - Spending review Topic 1]*$B$3)","v":0},{"$f":"SUMPRODUCT(((Dataset[Econ3]=$G36))*Dataset[2024/25 To - Spending review Topic 1]*$B$3)","v":0},{"$f":"K36+L36","v":0},{"$f":"SUMPRODUCT(((Dataset[Econ3]=$G36))*Dataset[2025/26 From - Spending review Topic 1]*$B$3)","v":0},{"$f":"SUMPRODUCT(((Dataset[Econ3]=$G36))*Dataset[2025/26 To - Spending review Topic 1]*$B$3)","v":0},{"$f":"N36+O36","v":0},{"$f":"SUM(H36,K36,N36)","v":0},0,0]
["afas dfsfds",0,null,null,null,null,"Goods and services",{"$f":"SUMPRODUCT(((Dataset[Econ3]=$G37))*Dataset[2023/24 From - Spending review Topic 1]*$B$3)","v":0},{"$f":"SUMPRODUCT(((Dataset[Econ3]=$G37))*Dataset[2023/24 To - Spending review Topic 1]*$B$3)","v":0},0,{"$f":"SUMPRODUCT(((Dataset[Econ3]=$G37))*Dataset[2024/25 From - Spending review Topic 1]*$B$3)","v":0},{"$f":"SUMPRODUCT(((Dataset[Econ3]=$G37))*Dataset[2024/25 To - Spending review Topic 1]*$B$3)","v":0},0,{"$f":"SUMPRODUCT(((Dataset[Econ3]=$G37))*Dataset[2025/26 From - Spending review Topic 1]*$B$3)","v":0},{"$f":"SUMPRODUCT(((Dataset[Econ3]=$G37))*Dataset[2025/26 To - Spending review Topic 1]*$B$3)","v":0},0,{"$f":"SUM(H37,K37,N37)","v":0},{"$f":"SUM(I37,L37,O37)","v":0},{"$f":"SUM(J37,M37,P37)","v":0}]
["afas dfsfds",0,null,null,null,null,"Interest and rent on land",{"$f":"SUMPRODUCT(((Dataset[Econ3]=$G38))*Dataset[2023/24 From - Spending review Topic 1]*$B$3)","v":0},{"$f":"SUMPRODUCT(((Dataset[Econ3]=$G38))*Dataset[2023/24 To - Spending review Topic 1]*$B$3)","v":0},0,{"$f":"SUMPRODUCT(((Dataset[Econ3]=$G38))*Dataset[2024/25 From - Spending review Topic 1]*$B$3)","v":0},{"$f":"SUMPRODUCT(((Dataset[Econ3]=$G38))*Dataset[2024/25 To - Spending review Topic 1]*$B$3)","v":0},0,{"$f":"SUMPRODUCT(((Dataset[Econ3]=$G38))*Dataset[2025/26 From - Spending review Topic 1]*$B$3)","v":0},{"$f":"SUMPRODUCT(((Dataset[Econ3]=$G38))*Dataset[2025/26 To - Spending review Topic 1]*$B$3)","v":0},0,0,0,0]
["afas dfsfds",0,null,null,null,null,"Transfers and subsidies",{"$f":"SUM(H40,H43,H46:H48,H51:H52)","v":0},{"$f":"SUM(I40,I43,I46:I48,I51:I52)","v":0},0,{"$f":"SUM(K40,K43,K46:K48,K51:K52)","v":0},0,0,0,0,{"$f":"SUM(P40,P43,P46:P48,P51:P52)","v":0},0,0,{"$f":"SUM(S40,S43,S46:S48,S51:S52)","v":0}]
["afas dfsfds",0,null,null,null,null,"Provinces and municipalities",{"$f":"SUM(H41:H42)","v":0},{"$f":"SUM(I41:I42)","v":0},0,{"$f":"SUM(K41:K42)","v":0},0,0,0,0,{"$f":"SUM(P41:P42)","v":0},0,0,{"$f":"SUM(S41:S42)","v":0}]
["afas dfsfds",0,null,null,null,null,"Provinces",{"$f":"SUMPRODUCT(((Dataset[Econ4]=$G41))*Dataset[2023/24 From - Spending review Topic 1]*$B$3)","v":0},{"$f":"SUMPRODUCT(((Dataset[Econ4]=$G41))*Dataset[2023/24 To - Spending review Topic 1]*$B$3)","v":0},{"$f":"H41+I41","v":0},{"$f":"SUMPRODUCT(((Dataset[Econ4]=$G41))*Dataset[2024/25 From - Spending review Topic 1]*$B$3)","v":0},{"$f":"SUMPRODUCT(((Dataset[Econ4]=$G41))*Dataset[2024/25 To - Spending review Topic 1]*$B$3)","v":0},{"$f":"K41+L41","v":0},{"$f":"SUMPRODUCT(((Dataset[Econ4]=$G41))*Dataset[2025/26 From - Spending review Topic 1]*$B$3)","v":0},{"$f":"SUMPRODUCT(((Dataset[Econ4]=$G41))*Dataset[2025/26 To - Spending review Topic 1]*$B$3)","v":0},{"$f":"N41+O41","v":0},{"$f":"SUM(H41,K41,N41)","v":0},{"$f":"SUM(I41,L41,O41)","v":0},{"$f":"SUM(J41,M41,P41)","v":0}]
["afas dfsfds",0,null,null,null,null,"Municipalities",{"$f":"SUMPRODUCT(((Dataset[Econ4]=$G42))*Dataset[2023/24 From - Spending review Topic 1]*$B$3)","v":0},{"$f":"SUMPRODUCT(((Dataset[Econ4]=$G42))*Dataset[2023/24 To - Spending review Topic 1]*$B$3)","v":0},0,{"$f":"SUMPRODUCT(((Dataset[Econ4]=$G42))*Dataset[2024/25 From - Spending review Topic 1]*$B$3)","v":0},{"$f":"SUMPRODUCT(((Dataset[Econ4]=$G42))*Dataset[2024/25 To - Spending review Topic 1]*$B$3)","v":0},0,{"$f":"SUMPRODUCT(((Dataset[Econ4]=$G42))*Dataset[2025/26 From - Spending review Topic 1]*$B$3)","v":0},{"$f":"SUMPRODUCT(((Dataset[Econ4]=$G42))*Dataset[2025/26 To - Spending review Topic 1]*$B$3)","v":0},0,0,0,0]
["afas dfsfds",0,null,null,null,null,"Departmental agencies and accounts",{"$f":"SUM(H44:H45)","v":0},{"$f":"SUM(I44:I45)","v":0},0,{"$f":"SUM(K44:K45)","v":0},0,0,0,0,{"$f":"SUM(P44:P45)","v":0},0,0,{"$f":"SUM(S44:S45)","v":0}]
["afas dfsfds",0,null,null,null,null,"Social security funds",{"$f":"SUMPRODUCT(((Dataset[Econ4]=$G44))*Dataset[2023/24 From - Spending review Topic 1]*$B$3)","v":0},{"$f":"SUMPRODUCT(((Dataset[Econ4]=$G44))*Dataset[2023/24 To - Spending review Topic 1]*$B$3)","v":0},{"$f":"H44+I44","v":0},{"$f":"SUMPRODUCT(((Dataset[Econ4]=$G44))*Dataset[2024/25 From - Spending review Topic 1]*$B$3)","v":0},{"$f":"SUMPRODUCT(((Dataset[Econ4]=$G44))*Dataset[2024/25 To - Spending review Topic 1]*$B$3)","v":0},{"$f":"K44+L44","v":0},{"$f":"SUMPRODUCT(((Dataset[Econ4]=$G44))*Dataset[2025/26 From - Spending review Topic 1]*$B$3)","v":0},{"$f":"SUMPRODUCT(((Dataset[Econ4]=$G44))*Dataset[2025/26 To - Spending review Topic 1]*$B$3)","v":0},{"$f":"N44+O44","v":0},{"$f":"SUM(H44,K44,N44)","v":0},{"$f":"SUM(I44,L44,O44)","v":0},{"$f":"SUM(J44,M44,P44)","v":0}]
["afas dfsfds",0,null,null,null,null,"Departmental agencies (non-business entities)",{"$f":"SUMPRODUCT(((Dataset[Econ4]=$G45))*Dataset[2023/24 From - Spending review Topic 1]*$B$3)","v":0},{"$f":"SUMPRODUCT(((Dataset[Econ4]=$G45))*Dataset[2023/24 To - Spending review Topic 1]*$B$3)","v":0},0,{"$f":"SUMPRODUCT(((Dataset[Econ4]=$G45))*Dataset[2024/25 From - Spending review Topic 1]*$B$3)","v":0},{"$f":"SUMPRODUCT(((Dataset[Econ4]=$G45))*Dataset[2024/25 To - Spending review Topic 1]*$B$3)","v":0},0,{"$f":"SUMPRODUCT(((Dataset[Econ4]=$G45))*Dataset[2025/26 From - Spending review Topic 1]*$B$3)","v":0},{"$f":"SUMPRODUCT(((Dataset[Econ4]=$G45))*Dataset[2025/26 To - Spending review Topic 1]*$B$3)","v":0},0,0,0,0]
["afas dfsfds",0,null,null,null,null,"Higher education institutions",{"$f":"SUMPRODUCT(((Dataset[Econ3]=$G46))*Dataset[2023/24 From - Spending review Topic 1]*$B$3)","v":0},{"$f":"SUMPRODUCT(((Dataset[Econ3]=$G46))*Dataset[2023/24 To - Spending review Topic 1]*$B$3)","v":0},0,{"$f":"SUMPRODUCT(((Dataset[Econ3]=$G46))*Dataset[2024/25 From - Spending review Topic 1]*$B$3)","v":0},{"$f":"SUMPRODUCT(((Dataset[Econ3]=$G46))*Dataset[2024/25 To - Spending review Topic 1]*$B$3)","v":0},0,{"$f":"SUMPRODUCT(((Dataset[Econ3]=$G46))*Dataset[2025/26 From - Spending review Topic 1]*$B$3)","v":0},{"$f":"SUMPRODUCT(((Dataset[Econ3]=$G46))*Dataset[2025/26 To - Spending review Topic 1]*$B$3)","v":0},0,0,0,0]
["afas dfsfds",0,null,null,null,null,"Foreign governments and international organisations",{"$f":"SUMPRODUCT(((Dataset[Econ3]=$G47))*Dataset[2023/24 From - Spending review Topic 1]*$B$3)","v":0},{"$f":"SUMPRODUCT(((Dataset[Econ3]=$G47))*Dataset[2023/24 To - Spending review Topic 1]*$B$3)","v":0},0,{"$f":"SUMPRODUCT(((Dataset[Econ3]=$G47))*Dataset[2024/25 From - Spending review Topic 1]*$B$3)","v":0},{"$f":"SUMPRODUCT(((Dataset[Econ3]=$G47))*Dataset[2024/25 To - Spending review Topic 1]*$B$3)","v":0},0,{"$f":"SUMPRODUCT(((Dataset[Econ3]=$G47))*Dataset[2025/26 From - Spending review Topic 1]*$B$3)","v":0},{"$f":"SUMPRODUCT(((Dataset[Econ3]=$G47))*Dataset[2025/26 To - Spending review Topic 1]*$B$3)","v":0},0,0,0,0]
["afas dfsfds",0,null,null,null,null,"Public corporations and private enterprises",{"$f":"SUM(H49:H50)","v":0},{"$f":"SUM(I49:I50)","v":0},0,{"$f":"SUM(K49:K50)","v":0},0,0,0,0,{"$f":"SUM(P49:P50)","v":0},0,0,{"$f":"SUM(S49:S50)","v":0}]
["afas dfsfds",0,null,null,null,null,"Public corporations",{"$f":"SUMPRODUCT(((Dataset[Econ4]=$G49))*Dataset[2023/24 From - Spending review Topic 1]*$B$3)","v":0},{"$f":"SUMPRODUCT(((Dataset[Econ4]=$G49))*Dataset[2023/24 To - Spending review Topic 1]*$B$3)","v":0},{"$f":"H49+I49","v":0},{"$f":"SUMPRODUCT(((Dataset[Econ4]=$G49))*Dataset[2024/25 From - Spending review Topic 1]*$B$3)","v":0},{"$f":"SUMPRODUCT(((Dataset[Econ4]=$G49))*Dataset[2024/25 To - Spending review Topic 1]*$B$3)","v":0},{"$f":"K49+L49","v":0},{"$f":"SUMPRODUCT(((Dataset[Econ4]=$G49))*Dataset[2025/26 From - Spending review Topic 1]*$B$3)","v":0},{"$f":"SUMPRODUCT(((Dataset[Econ4]=$G49))*Dataset[2025/26 To - Spending review Topic 1]*$B$3)","v":0},{"$f":"N49+O49","v":0},{"$f":"SUM(H49,K49,N49)","v":0},{"$f":"SUM(I49,L49,O49)","v":0},{"$f":"SUM(J49,M49,P49)","v":0}]
["afas dfsfds",0,null,null,null,null,"Private enterprises",{"$f":"SUMPRODUCT(((Dataset[Econ4]=$G50))*Dataset[2023/24 From - Spending review Topic 1]*$B$3)","v":0},{"$f":"SUMPRODUCT(((Dataset[Econ4]=$G50))*Dataset[2023/24 To - Spending review Topic 1]*$B$3)","v":0},0,{"$f":"SUMPRODUCT(((Dataset[Econ4]=$G50))*Dataset[2024/25 From - Spending review Topic 1]*$B$3)","v":0},{"$f":"SUMPRODUCT(((Dataset[Econ4]=$G50))*Dataset[2024/25 To - Spending review Topic 1]*$B$3)","v":0},0,{"$f":"SUMPRODUCT(((Dataset[Econ4]=$G50))*Dataset[2025/26 From - Spending review Topic 1]*$B$3)","v":0},{"$f":"SUMPRODUCT(((Dataset[Econ4]=$G50))*Dataset[2025/26 To - Spending review Topic 1]*$B$3)","v":0},0,0,0,0]
["afas dfsfds",0,null,null,null,null,"Non-profit institutions",{"$f":"SUMPRODUCT(((Dataset[Econ3]=$G51))*Dataset[2023/24 From - Spending review Topic 1]*$B$3)","v":0},{"$f":"SUMPRODUCT(((Dataset[Econ3]=$G51))*Dataset[2023/24 To - Spending review Topic 1]*$B$3)","v":0},0,{"$f":"SUMPRODUCT(((Dataset[Econ3]=$G51))*Dataset[2024/25 From - Spending review Topic 1]*$B$3)","v":0},{"$f":"SUMPRODUCT(((Dataset[Econ3]=$G51))*Dataset[2024/25 To - Spending review Topic 1]*$B$3)","v":0},0,{"$f":"SUMPRODUCT(((Dataset[Econ3]=$G51))*Dataset[2025/26 From - Spending review Topic 1]*$B$3)","v":0},{"$f":"SUMPRODUCT(((Dataset[Econ3]=$G51))*Dataset[2025/26 To - Spending review Topic 1]*$B$3)","v":0},0,0,0,0]
["afas dfsfds",0,null,null,null,null,"Households",{"$f":"SUM(H53:H54)","v":0},{"$f":"SUM(I53:I54)","v":0},0,{"$f":"SUM(K53:K54)","v":0},0,0,0,0,{"$f":"SUM(P53:P54)","v":0},0,0,{"$f":"SUM(S53:S54)","v":0}]
["afas dfsfds",0,null,null,null,null,"Social benefits",{"$f":"SUMPRODUCT(((Dataset[Econ4]=$G53))*Dataset[2023/24 From - Spending review Topic 1]*$B$3)","v":0},{"$f":"SUMPRODUCT(((Dataset[Econ4]=$G53))*Dataset[2023/24 To - Spending review Topic 1]*$B$3)","v":0},{"$f":"H53+I53","v":0},{"$f":"SUMPRODUCT(((Dataset[Econ4]=$G53))*Dataset[2024/25 From - Spending review Topic 1]*$B$3)","v":0},{"$f":"SUMPRODUCT(((Dataset[Econ4]=$G53))*Dataset[2024/25 To - Spending review Topic 1]*$B$3)","v":0},{"$f":"K53+L53","v":0},{"$f":"SUMPRODUCT(((Dataset[Econ4]=$G53))*Dataset[2025/26 From - Spending review Topic 1]*$B$3)","v":0},{"$f":"SUMPRODUCT(((Dataset[Econ4]=$G53))*Dataset[2025/26 To - Spending review Topic 1]*$B$3)","v":0},{"$f":"N53+O53","v":0},{"$f":"SUM(H53,K53,N53)","v":0},{"$f":"SUM(I53,L53,O53)","v":0},{"$f":"SUM(J53,M53,P53)","v":0}]
["afas dfsfds",0,null,null,null,null,"Other transfers to households",{"$f":"SUMPRODUCT(((Dataset[Econ4]=$G54))*Dataset[2023/24 From - Spending review Topic 1]*$B$3)","v":0},{"$f":"SUMPRODUCT(((Dataset[Econ4]=$G54))*Dataset[2023/24 To - Spending review Topic 1]*$B$3)","v":0},0,{"$f":"SUMPRODUCT(((Dataset[Econ4]=$G54))*Dataset[2024/25 From - Spending review Topic 1]*$B$3)","v":0},{"$f":"SUMPRODUCT(((Dataset[Econ4]=$G54))*Dataset[2024/25 To - Spending review Topic 1]*$B$3)","v":0},0,{"$f":"SUMPRODUCT(((Dataset[Econ4]=$G54))*Dataset[2025/26 From - Spending review Topic 1]*$B$3)","v":0},{"$f":"SUMPRODUCT(((Dataset[Econ4]=$G54))*Dataset[2025/26 To - Spending review Topic 1]*$B$3)","v":0},0,0,0,0]
["afas dfsfds",0,null,null,null,null,"Payments for capital assets",{"$f":"SUM(H56,H59,H62:H66)","v":0},{"$f":"SUM(I56,I59,I62:I66)","v":0},0,{"$f":"SUM(K56,K59,K62:K66)","v":0},0,0,0,0,{"$f":"SUM(P56,P59,P62:P66)","v":0},0,0,{"$f":"SUM(S56,S59,S62:S66)","v":0}]
["afas dfsfds",0,null,null,null,null,"Buildings and other fixed structures",{"$f":"SUM(H57:H58)","v":0},{"$f":"SUM(I57:I58)","v":0},0,{"$f":"SUM(K57:K58)","v":0},0,0,0,0,{"$f":"SUM(P57:P58)","v":0},0,0,{"$f":"SUM(S57:S58)","v":0}]
["afas dfsfds",0,null,null,null,null,"Buildings",{"$f":"SUMPRODUCT(((Dataset[Econ4]=$G57))*Dataset[2023/24 From - Spending review Topic 1]*$B$3)","v":0},{"$f":"SUMPRODUCT(((Dataset[Econ4]=$G57))*Dataset[2023/24 To - Spending review Topic 1]*$B$3)","v":0},{"$f":"H57+I57","v":0},{"$f":"SUMPRODUCT(((Dataset[Econ4]=$G57))*Dataset[2024/25 From - Spending review Topic 1]*$B$3)","v":0},{"$f":"SUMPRODUCT(((Dataset[Econ4]=$G57))*Dataset[2024/25 To - Spending review Topic 1]*$B$3)","v":0},{"$f":"K57+L57","v":0},{"$f":"SUMPRODUCT(((Dataset[Econ4]=$G57))*Dataset[2025/26 From - Spending review Topic 1]*$B$3)","v":0},{"$f":"SUMPRODUCT(((Dataset[Econ4]=$G57))*Dataset[2025/26 To - Spending review Topic 1]*$B$3)","v":0},{"$f":"N57+O57","v":0},{"$f":"SUM(H57,K57,N57)","v":0},{"$f":"SUM(I57,L57,O57)","v":0},{"$f":"SUM(J57,M57,P57)","v":0}]
["afas dfsfds",0,null,null,null,null,"Other fixed structures",{"$f":"SUMPRODUCT(((Dataset[Econ4]=$G58))*Dataset[2023/24 From - Spending review Topic 1]*$B$3)","v":0},{"$f":"SUMPRODUCT(((Dataset[Econ4]=$G58))*Dataset[2023/24 To - Spending review Topic 1]*$B$3)","v":0},0,{"$f":"SUMPRODUCT(((Dataset[Econ4]=$G58))*Dataset[2024/25 From - Spending review Topic 1]*$B$3)","v":0},{"$f":"SUMPRODUCT(((Dataset[Econ4]=$G58))*Dataset[2024/25 To - Spending review Topic 1]*$B$3)","v":0},0,{"$f":"SUMPRODUCT(((Dataset[Econ4]=$G58))*Dataset[2025/26 From - Spending review Topic 1]*$B$3)","v":0},{"$f":"SUMPRODUCT(((Dataset[Econ4]=$G58))*Dataset[2025/26 To - Spending review Topic 1]*$B$3)","v":0},0,0,0,0]
["afas dfsfds",0,null,null,null,null,"Machinery and equipment",{"$f":"SUM(H60:H61)","v":0},{"$f":"SUM(I60:I61)","v":0},0,{"$f":"SUM(K60:K61)","v":0},0,0,0,0,{"$f":"SUM(P60:P61)","v":0},0,0,{"$f":"SUM(S60:S61)","v":0}]
["afas dfsfds",0,null,null,null,null,"Transport equipment",{"$f":"SUMPRODUCT(((Dataset[Econ4]=$G60))*Dataset[2023/24 From - Spending review Topic 1]*$B$3)","v":0},{"$f":"SUMPRODUCT(((Dataset[Econ4]=$G60))*Dataset[2023/24 To - Spending review Topic 1]*$B$3)","v":0},{"$f":"H60+I60","v":0},{"$f":"SUMPRODUCT(((Dataset[Econ4]=$G60))*Dataset[2024/25 From - Spending review Topic 1]*$B$3)","v":0},{"$f":"SUMPRODUCT(((Dataset[Econ4]=$G60))*Dataset[2024/25 To - Spending review Topic 1]*$B$3)","v":0},{"$f":"K60+L60","v":0},{"$f":"SUMPRODUCT(((Dataset[Econ4]=$G60))*Dataset[2025/26 From - Spending review Topic 1]*$B$3)","v":0},{"$f":"SUMPRODUCT(((Dataset[Econ4]=$G60))*Dataset[2025/26 To - Spending review Topic 1]*$B$3)","v":0},{"$f":"N60+O60","v":0},{"$f":"SUM(H60,K60,N60)","v":0},{"$f":"SUM(I60,L60,O60)","v":0},{"$f":"SUM(J60,M60,P60)","v":0}]
["afas dfsfds",0,null,null,null,null,"Other machinery and equipment",{"$f":"SUMPRODUCT(((Dataset[Econ4]=$G61))*Dataset[2023/24 From - Spending review Topic 1]*$B$3)","v":0},{"$f":"SUMPRODUCT(((Dataset[Econ4]=$G61))*Dataset[2023/24 To - Spending review Topic 1]*$B$3)","v":0},0,{"$f":"SUMPRODUCT(((Dataset[Econ4]=$G61))*Dataset[2024/25 From - Spending review Topic 1]*$B$3)","v":0},{"$f":"SUMPRODUCT(((Dataset[Econ4]=$G61))*Dataset[2024/25 To - Spending review Topic 1]*$B$3)","v":0},0,{"$f":"SUMPRODUCT(((Dataset[Econ4]=$G61))*Dataset[2025/26 From - Spending review Topic 1]*$B$3)","v":0},{"$f":"SUMPRODUCT(((Dataset[Econ4]=$G61))*Dataset[2025/26 To - Spending review Topic 1]*$B$3)","v":0},0,0,0,0]
["afas dfsfds",0,null,null,null,null,"Heritage assets",{"$f":"SUMPRODUCT(((Dataset[Econ3]=$G62))*Dataset[2023/24 From - Spending review Topic 1]*$B$3)","v":0},{"$f":"SUMPRODUCT(((Dataset[Econ3]=$G62))*Dataset[2023/24 To - Spending review Topic 1]*$B$3)","v":0},0,{"$f":"SUMPRODUCT(((Dataset[Econ3]=$G62))*Dataset[2024/25 From - Spending review Topic 1]*$B$3)","v":0},{"$f":"SUMPRODUCT(((Dataset[Econ3]=$G62))*Dataset[2024/25 To - Spending review Topic 1]*$B$3)","v":0},0,{"$f":"SUMPRODUCT(((Dataset[Econ3]=$G62))*Dataset[2025/26 From - Spending review Topic 1]*$B$3)","v":0},{"$f":"SUMPRODUCT(((Dataset[Econ3]=$G62))*Dataset[2025/26 To - Spending review Topic 1]*$B$3)","v":0},0,0,0,0]
["afas dfsfds",0,null,null,null,null,"Specialised military assets",{"$f":"SUMPRODUCT(((Dataset[Econ3]=$G63))*Dataset[2023/24 From - Spending review Topic 1]*$B$3)","v":0},{"$f":"SUMPRODUCT(((Dataset[Econ3]=$G63))*Dataset[2023/24 To - Spending review Topic 1]*$B$3)","v":0},0,{"$f":"SUMPRODUCT(((Dataset[Econ3]=$G63))*Dataset[2024/25 From - Spending review Topic 1]*$B$3)","v":0},{"$f":"SUMPRODUCT(((Dataset[Econ3]=$G63))*Dataset[2024/25 To - Spending review Topic 1]*$B$3)","v":0},0,{"$f":"SUMPRODUCT(((Dataset[Econ3]=$G63))*Dataset[2025/26 From - Spending review Topic 1]*$B$3)","v":0},{"$f":"SUMPRODUCT(((Dataset[Econ3]=$G63))*Dataset[2025/26 To - Spending review Topic 1]*$B$3)","v":0},0,0,0,0]
["afas dfsfds",0,null,null,null,null,"Biological assets",{"$f":"SUMPRODUCT(((Dataset[Econ3]=$G64))*Dataset[2023/24 From - Spending review Topic 1]*$B$3)","v":0},{"$f":"SUMPRODUCT(((Dataset[Econ3]=$G64))*Dataset[2023/24 To - Spending review Topic 1]*$B$3)","v":0},0,{"$f":"SUMPRODUCT(((Dataset[Econ3]=$G64))*Dataset[2024/25 From - Spending review Topic 1]*$B$3)","v":0},{"$f":"SUMPRODUCT(((Dataset[Econ3]=$G64))*Dataset[2024/25 To - Spending review Topic 1]*$B$3)","v":0},0,{"$f":"SUMPRODUCT(((Dataset[Econ3]=$G64))*Dataset[2025/26 From - Spending review Topic 1]*$B$3)","v":0},{"$f":"SUMPRODUCT(((Dataset[Econ3]=$G64))*Dataset[2025/26 To - Spending review Topic 1]*$B$3)","v":0},0,0,0,0]
["afas dfsfds",0,null,null,null,null,"Land and sub-soil assets",{"$f":"SUMPRODUCT(((Dataset[Econ3]=$G65))*Dataset[2023/24 From - Spending review Topic 1]*$B$3)","v":0},{"$f":"SUMPRODUCT(((Dataset[Econ3]=$G65))*Dataset[2023/24 To - Spending review Topic 1]*$B$3)","v":0},0,{"$f":"SUMPRODUCT(((Dataset[Econ3]=$G65))*Dataset[2024/25 From - Spending review Topic 1]*$B$3)","v":0},{"$f":"SUMPRODUCT(((Dataset[Econ3]=$G65))*Dataset[2024/25 To - Spending review Topic 1]*$B$3)","v":0},0,{"$f":"SUMPRODUCT(((Dataset[Econ3]=$G65))*Dataset[2025/26 From - Spending review Topic 1]*$B$3)","v":0},{"$f":"SUMPRODUCT(((Dataset[Econ3]=$G65))*Dataset[2025/26 To - Spending review Topic 1]*$B$3)","v":0},0,0,0,0]
["afas dfsfds",0,null,null,null,null,"Software and other intangible assets",{"$f":"SUMPRODUCT(((Dataset[Econ3]=$G66))*Dataset[2023/24 From - Spending review Topic 1]*$B$3)","v":0},{"$f":"SUMPRODUCT(((Dataset[Econ3]=$G66))*Dataset[2023/24 To - Spending review Topic 1]*$B$3)","v":0},0,{"$f":"SUMPRODUCT(((Dataset[Econ3]=$G66))*Dataset[2024/25 From - Spending review Topic 1]*$B$3)","v":0},{"$f":"SUMPRODUCT(((Dataset[Econ3]=$G66))*Dataset[2024/25 To - Spending review Topic 1]*$B$3)","v":0},0,{"$f":"SUMPRODUCT(((Dataset[Econ3]=$G66))*Dataset[2025/26 From - Spending review Topic 1]*$B$3)","v":0},{"$f":"SUMPRODUCT(((Dataset[Econ3]=$G66))*Dataset[2025/26 To - Spending review Topic 1]*$B$3)","v":0},0,0,0,0]
["afas dfsfds",0,null,null,null,null,"Payments for financial assets",{"$f":"SUMPRODUCT(((Dataset[Econ3]=$G67))*Dataset[2023/24 From - Spending review Topic 1]*$B$3)","v":0},{"$f":"SUMPRODUCT(((Dataset[Econ3]=$G67))*Dataset[2023/24 To - Spending review Topic 1]*$B$3)","v":0},0,{"$f":"SUMPRODUCT(((Dataset[Econ3]=$G67))*Dataset[2024/25 From - Spending review Topic 1]*$B$3)","v":0},{"$f":"SUMPRODUCT(((Dataset[Econ3]=$G67))*Dataset[2024/25 To - Spending review Topic 1]*$B$3)","v":0},0,{"$f":"SUMPRODUCT(((Dataset[Econ3]=$G67))*Dataset[2025/26 From - Spending review Topic 1]*$B$3)","v":0},{"$f":"SUMPRODUCT(((Dataset[Econ3]=$G67))*Dataset[2025/26 To - Spending review Topic 1]*$B$3)","v":0},0,0,0,0]
["afas dfsfds",0,null,null,null,null,"Total",{"$f":"SUM(H35,H39,H55,H67)","v":0},{"$f":"SUM(I35,I39,I55,I67)","v":0},0,0,0,{"$f":"SUM(M35,M39,M55,M67)","v":0},0,0,{"$f":"SUM(P35,P39,P55,P67)","v":0},0,0,{"$f":"SUM(S35,S39,S55,S67)","v":0}]
[]
[]
[]
[]
[null,null,null,null,null,null,{"$f":"\"IMPACT OF ADJUSTMENTS: \" &UPPER($G$3)","v":"IMPACT OF ADJUSTMENTS: AFAS DFSFDS"}]
[]
[null,null,null,null,null,1,"Impact of adjustments on expenditure"]
[{"$f":"$G$3","v":"afas dfsfds"},5,null,null,null,null,null,{"$f":"MyYear4","v":"2022/23"},null,null,{"$f":"MyYear5","v":"2023/24"},null,null,{"$f":"MyYear6","v":"2024/25"},null,null,{"$f":"MyYear7","v":"2025/26"}]
["afas dfsfds",5,null,null,null,null,null,"Current expenditure","Potential expenditure @ benchmark level","% Savings if benchmark is achieved","Original number","Change in expenditure","Saving as % of original number","Original number","Change in expenditure","Saving as % of original number","Original number","Change in expenditure","Saving as % of original number"]
["afas dfsfds",5,null,null,null,null,"Total",null,null,{"$f":"IFERROR((H78-I78)/-H78,\"\")","v":""},null,null,{"$f":"IFERROR((K78-L78)/-K78,\"\")","v":""},null,null,{"$f":"IFERROR((N78-O78)/-N78,\"\")","v":""},null,null,{"$f":"IFERROR((Q78-R78)/-Q78,\"\")","v":""}]
[]
[]
[]
[]
[]
[null,null,null,null,null,2,"Summary of impact on service delivery/policy area due to adjustments"]
[{"$f":"$G$3","v":"afas dfsfds"},1]
["afas dfsfds",1]
["afas dfsfds",1]
["afas dfsfds",1]
["afas dfsfds",1]
["afas dfsfds",1]
["afas dfsfds",1]
["afas dfsfds",1]
["afas dfsfds",1]
["afas dfsfds",1]
["afas dfsfds",1]
["afas dfsfds",1]
["afas dfsfds",1]
["afas dfsfds",1]
["afas dfsfds",1]
[]
[]
[]
[]
[]
[null,null,null,null,null,3,"Impact of adjustments on performance indicators"]
[{"$f":"$G$3","v":"afas dfsfds"},2,null,null,null,null,null,{"$f":"MyYear4","v":"2022/23"},null,null,{"$f":"MyYear5","v":"2023/24"},null,null,{"$f":"MyYear6","v":"2024/25"},null,null,{"$f":"MyYear7","v":"2025/26"},null,null," Comment",null,null,null,null,"Related MTSF Priority"]
["afas dfsfds",2,null,null,null,null,"Performance indicator","Current performance","Performance @ benchmark level","Change","Original target","Revised target","Change","Original target","Revised target","Change","Original target","Revised target","Change"]
["afas dfsfds",2]
["afas dfsfds",2]
["afas dfsfds",2]
["afas dfsfds",2]
["afas dfsfds",2]
["afas dfsfds",2]
["afas dfsfds",2]
["afas dfsfds",2]
["afas dfsfds",2]
["afas dfsfds",2]
["afas dfsfds",2]
["afas dfsfds",2]
["afas dfsfds",2]
["afas dfsfds",2]
["afas dfsfds",2]
[]
[]
[]
[]
[]
[null,null,null,null,null,4,"Impact of adjustments on personnel headcount numbers"]
[{"$f":"$G$3","v":"afas dfsfds"},4,null,null,null,null,null,{"$f":"MyYear4","v":"2022/23"},null,null,{"$f":"MyYear5","v":"2023/24"},null,null,{"$f":"MyYear6","v":"2024/25"},null,null,{"$f":"MyYear7","v":"2025/26"},null,null," Comment"]
["afas dfsfds",4,null,null,null,null,"Salary level","Current number","Potential number if benchmark is achieved","Change in number","Original number","Revised number","Change in number","Original number","Revised number","Change in number","Original number","Revised number","Change in number"]
["afas dfsfds",4,null,null,null,null,1,null,null,{"$f":"I131-H131","v":0},null,null,{"$f":"L131-K131","v":0},null,null,{"$f":"O131-N131","v":0},null,null,{"$f":"R131-Q131","v":0}]
["afas dfsfds",4,null,null,null,null,2,null,null,0,null,null,0,null,null,0,null,null,0]
["afas dfsfds",4,null,null,null,null,3,null,null,0,null,null,0,null,null,0,null,null,0]
["afas dfsfds",4,null,null,null,null,4,null,null,0,null,null,0,null,null,0,null,null,0]
["afas dfsfds",4,null,null,null,null,5,null,null,0,null,null,0,null,null,0,null,null,0]
["afas dfsfds",4,null,null,null,null,6,null,null,0,null,null,0,null,null,0,null,null,0]
["afas dfsfds",4,null,null,null,null,7,null,null,0,null,null,0,null,null,0,null,null,0]
["afas dfsfds",4,null,null,null,null,8,null,null,0,null,null,0,null,null,0,null,null,0]
["afas dfsfds",4,null,null,null,null,9,null,null,0,null,null,0,null,null,0,null,null,0]
["afas dfsfds",4,null,null,null,null,10,null,null,0,null,null,0,null,null,0,null,null,0]
["afas dfsfds",4,null,null,null,null,11,null,null,0,null,null,0,null,null,0,null,null,0]
["afas dfsfds",4,null,null,null,null,12,null,null,0,null,null,0,null,null,0,null,null,0]
["afas dfsfds",4,null,null,null,null,13,null,null,0,null,null,0,null,null,0,null,null,0]
["afas dfsfds",4,null,null,null,null,14,null,null,0,null,null,0,null,null,0,null,null,0]
["afas dfsfds",4,null,null,null,null,15,null,null,0,null,null,0,null,null,0,null,null,0]
["afas dfsfds",4,null,null,null,null,16,null,null,0,null,null,0,null,null,0,null,null,0]
["afas dfsfds",4,null,null,null,null,"Other",null,null,0,null,null,0,null,null,0,null,null,0]
["afas dfsfds",4,null,null,null,null,"Other",null,null,0,null,null,0,null,null,0,null,null,0]
["afas dfsfds",4,null,null,null,null,"Other",null,null,0,null,null,0,null,null,0,null,null,0]
["afas dfsfds",4,null,null,null,null,"Other",null,null,0,null,null,0,null,null,0,null,null,0]
["afas dfsfds",4,null,null,null,null,"Total",{"$f":"SUM(H131:H150)","v":0},0,0,{"$f":"SUM(K131:K150)","v":0},0,0,0,0,0,0,0,0]
[]
[]
[]
[]
[]
[null,null,null,null,null,5,"Impact of adjustments on infrastructure projects"]
[{"$f":"$G$3","v":"afas dfsfds"},3,null,null,null,null,null,{"$f":"MyYear4","v":"2022/23"},null,null,{"$f":"MyYear5","v":"2023/24"},null,null,{"$f":"MyYear6","v":"2024/25"},null,null,{"$f":"MyYear7","v":"2025/26"},null,null," Comment"]
["afas dfsfds",3,null,null,null,null,"Project name","Current number","Market or best in class benchmark","Change","Original amount","Revised amount","Change","Original amount","Revised amount","Change","Original amount","Revised amount","Change"]
["afas dfsfds",3,null,null,null,null,null,null,null,{"$f":"I160-H160","v":0},null,null,{"$f":"L160-K160","v":0},null,null,{"$f":"O160-N160","v":0},null,null,{"$f":"R160-Q160","v":0}]
["afas dfsfds",3,null,null,null,null,null,null,null,0,null,null,0,null,null,0,null,null,0]
["afas dfsfds",3,null,null,null,null,null,null,null,{"$f":"I162-H162","v":0},null,null,{"$f":"L162-K162","v":0},null,null,{"$f":"O162-N162","v":0},null,null,{"$f":"R162-Q162","v":0}]
["afas dfsfds",3,null,null,null,null,null,null,null,0,null,null,0,null,null,0,null,null,0]
["afas dfsfds",3,null,null,null,null,null,null,null,0,null,null,0,null,null,0,null,null,0]
["afas dfsfds",3,null,null,null,null,null,null,null,0,null,null,0,null,null,0,null,null,0]
["afas dfsfds",3,null,null,null,null,null,null,null,0,null,null,0,null,null,0,null,null,0]
["afas dfsfds",3,null,null,null,null,null,null,null,0,null,null,0,null,null,0,null,null,0]
["afas dfsfds",3,null,null,null,null,null,null,null,0,null,null,0,null,null,0,null,null,0]
["afas dfsfds",3,null,null,null,null,null,null,null,0,null,null,0,null,null,0,null,null,0]
["afas dfsfds",3,null,null,null,null,null,null,null,0,null,null,0,null,null,0,null,null,0]
["afas dfsfds",3,null,null,null,null,null,null,null,0,null,null,0,null,null,0,null,null,0]
["afas dfsfds",3,null,null,null,null,null,null,null,0,null,null,0,null,null,0,null,null,0]
["afas dfsfds",3,null,null,null,null,null,null,null,{"$f":"I173-H173","v":0},null,null,{"$f":"L173-K173","v":0},null,null,{"$f":"O173-N173","v":0},null,null,{"$f":"R173-Q173","v":0}]
["afas dfsfds",3,null,null,null,null,null,null,null,0,null,null,0,null,null,0,null,null,0]
["afas dfsfds",3,null,null,null,null,null,null,null,0,null,null,0,null,null,0,null,null,0]
["afas dfsfds",3,null,null,null,null,null,null,null,0,null,null,0,null,null,0,null,null,0]
["afas dfsfds",3,null,null,null,null,null,null,null,0,null,null,0,null,null,0,null,null,0]
["afas dfsfds",3,null,null,null,null,null,null,null,0,null,null,0,null,null,0,null,null,0]
["afas dfsfds",3,null,null,null,null,null,null,null,{"$f":"I179-H179","v":0},null,null,{"$f":"L179-K179","v":0},null,null,{"$f":"O179-N179","v":0},null,null,{"$f":"R179-Q179","v":0}]
["afas dfsfds",3,null,null,null,null,null,null,null,0,null,null,0,null,null,0,null,null,0]
["afas dfsfds",3,null,null,null,null,null,null,null,0,null,null,0,null,null,0,null,null,0]
["afas dfsfds",3,null,null,null,null,null,null,null,0,null,null,0,null,null,0,null,null,0]
["afas dfsfds",3,null,null,null,null,null,null,null,0,null,null,0,null,null,0,null,null,0]
["afas dfsfds",3,null,null,null,null,null,null,null,0,null,null,0,null,null,0,null,null,0]
["afas dfsfds",3,null,null,null,null,null,null,null,0,null,null,0,null,null,0,null,null,0]
["afas dfsfds",3,null,null,null,null,null,null,null,0,null,null,0,null,null,0,null,null,0]
["afas dfsfds",3,null,null,null,null,null,null,null,0,null,null,0,null,null,0,null,null,0]
["afas dfsfds",3,null,null,null,null,null,null,null,0,null,null,0,null,null,0,null,null,0]
["afas dfsfds",3,null,null,null,null,null,null,null,0,null,null,0,null,null,0,null,null,0]
["afas dfsfds",3,null,null,null,null,null,null,null,0,null,null,0,null,null,0,null,null,0]
["afas dfsfds",3,null,null,null,null,null,null,null,0,null,null,0,null,null,0,null,null,0]
["afas dfsfds",3,null,null,null,null,null,null,null,0,null,null,0,null,null,0,null,null,0]
["afas dfsfds",3,null,null,null,null,null,null,null,0,null,null,0,null,null,0,null,null,0]
["afas dfsfds",3,null,null,null,null,null,null,null,0,null,null,0,null,null,0,null,null,0]
["afas dfsfds",3,null,null,null,null,null,null,null,0,null,null,0,null,null,0,null,null,0]
["afas dfsfds",3,null,null,null,null,null,null,null,0,null,null,0,null,null,0,null,null,0]
["afas dfsfds",3,null,null,null,null,null,null,null,0,null,null,0,null,null,0,null,null,0]
["afas dfsfds",3,null,null,null,null,null,null,null,0,null,null,0,null,null,0,null,null,0]
["afas dfsfds",3,null,null,null,null,null,null,null,0,null,null,0,null,null,0,null,null,0]
["afas dfsfds",3,null,null,null,null,null,null,null,0,null,null,0,null,null,0,null,null,0]
["afas dfsfds",3,null,null,null,null,null,null,null,0,null,null,0,null,null,0,null,null,0]
["afas dfsfds",3,null,null,null,null,null,null,null,0,null,null,0,null,null,0,null,null,0]
["afas dfsfds",3,null,null,null,null,null,null,null,0,null,null,0,null,null,0,null,null,0]
["afas dfsfds",3,null,null,null,null,null,null,null,0,null,null,0,null,null,0,null,null,0]
["afas dfsfds",3,null,null,null,null,null,null,null,0,null,null,0,null,null,0,null,null,0]
["afas dfsfds",3,null,null,null,null,null,null,null,0,null,null,0,null,null,0,null,null,0]
["afas dfsfds",3,null,null,null,null,null,null,null,0,null,null,0,null,null,0,null,null,0]
["afas dfsfds",3,null,null,null,null,null,null,null,0,null,null,0,null,null,0,null,null,0]
["afas dfsfds",3,null,null,null,null,null,null,null,0,null,null,0,null,null,0,null,null,0]
["afas dfsfds",3,null,null,null,null,"Total",{"$f":"SUM(H160:H209)","v":0},0,0,{"$f":"SUM(K160:K209)","v":0},0,0,0,0,0,0,0,0]

{"sheet":"SRT2","index":12,"n_rows":210,"n_cols":25,"rows_kept":210,"cut":false,"hidden":false,"merged":[[72,6,72,18],[84,6,98,18],[105,19,105,23],[105,24,105,26],[106,19,106,23],[106,24,106,26],[107,19,107,23],[107,24,107,26],[108,19,108,23],[108,24,108,26],[109,19,109,23],[109,24,109,26],[110,19,110,23],[110,24,110,26],[111,19,111,23],[111,24,111,26],[112,19,112,23],[112,24,112,26],[113,19,113,23],[113,24,113,26],[114,19,114,23],[114,24,114,26],[115,19,115,23],[115,24,115,26],[116,19,116,23],[116,24,116,26],[117,19,117,23],[117,24,117,26],[118,19,118,23],[118,24,118,26],[119,19,119,23],[119,24,119,26],[120,19,120,23],[120,24,120,26],[121,19,121,23],[121,24,121,26],[165,19,165,23],[128,19,128,23],[129,19,129,23],[130,19,149,23],[157,19,157,23],[158,19,158,23],[159,19,159,23],[160,19,160,23],[161,19,161,23],[162,19,162,23],[163,19,163,23],[164,19,164,23],[177,19,177,23],[166,19,166,23],[167,19,167,23],[168,19,168,23],[169,19,169,23],[170,19,170,23],[171,19,171,23],[172,19,172,23],[173,19,173,23],[174,19,174,23],[175,19,175,23],[176,19,176,23],[189,19,189,23],[178,19,178,23],[179,19,179,23],[180,19,180,23],[181,19,181,23],[182,19,182,23],[183,19,183,23],[184,19,184,23],[185,19,185,23],[186,19,186,23],[187,19,187,23],[188,19,188,23],[201,19,201,23],[190,19,190,23],[191,19,191,23],[192,19,192,23],[193,19,193,23],[194,19,194,23],[195,19,195,23],[196,19,196,23],[197,19,197,23],[198,19,198,23],[199,19,199,23],[200,19,200,23],[208,19,208,23],[202,19,202,23],[203,19,203,23],[204,19,204,23],[205,19,205,23],[206,19,206,23],[207,19,207,23]]}
[]
[null,null,null,null,null,null,"Spending review topic…"]
[null,{"$f":"IF(G3=\"\",0,1)","v":1},null,null,null,2,{"$f":"SRTopic2","v":"Spending review topic 2"}]
[]
[null,null,null,null,null,null,"Quick view…(Total change)",{"$f":"MyYear5","v":"2023/24"},{"$f":"MyYear6","v":"2024/25"},{"$f":"MyYear7","v":"2025/26"},"MTEF total","Trend"]
[null,null,null,null,null,null,"Compensation of employees",{"$f":"SUMPRODUCT(($G$35:$G$68=$G6)*($J$35:$J$68))","v":0},{"$f":"SUMPRODUCT(($G$35:$G$68=$G6)*($M$35:$M$68))","v":0},{"$f":"SUMPRODUCT(($G$35:$G$68=$G6)*($P$35:$P$68))","v":0},{"$f":"SUM(H6:J6)","v":0},null,null,"CoE"]
[null,null,null,null,null,null,"Goods and services",{"$f":"SUMPRODUCT(($G$35:$G$68=$G7)*($J$35:$J$68))","v":0},{"$f":"SUMPRODUCT(($G$35:$G$68=$G7)*($M$35:$M$68))","v":0},{"$f":"SUMPRODUCT(($G$35:$G$68=$G7)*($P$35:$P$68))","v":0},0,null,null,"G&S"]
[null,null,null,null,null,null,"Transfers and subsidies",{"$f":"SUMPRODUCT(($G$35:$G$68=$G8)*($J$35:$J$68))","v":0},{"$f":"SUMPRODUCT(($G$35:$G$68=$G8)*($M$35:$M$68))","v":0},{"$f":"SUMPRODUCT(($G$35:$G$68=$G8)*($P$35:$P$68))","v":0},0,null,null,"T&S"]
[null,null,null,null,null,null,"Payments for capital assets",{"$f":"SUMPRODUCT(($G$35:$G$68=$G9)*($J$35:$J$68))","v":0},{"$f":"SUMPRODUCT(($G$35:$G$68=$G9)*($M$35:$M$68))","v":0},{"$f":"SUMPRODUCT(($G$35:$G$68=$G9)*($P$35:$P$68))","v":0},0,null,null,"Capital"]
[null,null,null,null,null,null,"Total",{"$f":"SUMPRODUCT(($G$35:$G$68=$G10)*($J$35:$J$68))","v":0},{"$f":"SUMPRODUCT(($G$35:$G$68=$G10)*($M$35:$M$68))","v":0},{"$f":"SUMPRODUCT(($G$35:$G$68=$G10)*($P$35:$P$68))","v":0},0,null,null,"Total"]
[null,null,null,null,null,null,"% of MTEF total",null,null,null,null,null,null,null,null,null,null,null,{"$f":"MyYear5","v":"2023/24"},{"$f":"MyYear6","v":"2024/25"},{"$f":"MyYear7","v":"2025/26"}]
[null,null,null,null,null,null,"Compensation of employees",{"$f":"IFERROR(H6/$K6,\"\")","v":""},"","",null,null,null,null,null,null,null,{"$f":"G12","v":"Compensation of employees"},{"$f":"IF(H12>0.0595,H12,\"\")","v":""},"",""]
[null,null,null,null,null,null,"Goods and services","","","",null,null,null,null,null,null,null,{"$f":"G13","v":"Goods and services"},"","",""]
[null,null,null,null,null,null,"Transfers and subsidies","","","",null,null,null,null,null,null,null,{"$f":"G14","v":"Transfers and subsidies"},"","",""]
[null,null,null,null,null,null,"Payments for capital assets","","","",null,null,null,null,null,null,null,{"$f":"G15","v":"Payments for capital assets"},"","",""]
[]
[null,null,null,null,null,null,"Division of Revenue",{"$f":"MyYear5","v":"2023/24"},{"$f":"MyYear6","v":"2024/25"},{"$f":"MyYear7","v":"2025/26"},"MTEF total","Trend"]
[null,null,null,null,null,null,"National",{"$f":"SUM(H19:H21)","v":0},0,0,{"$f":"SUM(H18:J18)","v":0}]
[{"$f":"$G$3","v":"Spending review topic 2"},"NAT",null,null,null,null,"National (excl. indirect grants)",{"$f":"SUMPRODUCT(((Dataset[DOR]=$B19))*Dataset[2023/24 From - Spending review Topic 2])+SUMPRODUCT(((Dataset[DOR]=$B19))*Dataset[2023/24 To - Spending review Topic 2])","v":0},{"$f":"SUMPRODUCT(((Dataset[DOR]=$B19))*Dataset[2024/25 From - Spending review Topic 2])+SUMPRODUCT(((Dataset[DOR]=$B19))*Dataset[2024/25 To - Spending review Topic 2])","v":0},{"$f":"SUMPRODUCT(((Dataset[DOR]=$B19))*Dataset[2025/26 From - Spending review Topic 2])+SUMPRODUCT(((Dataset[DOR]=$B19))*Dataset[2025/26 To - Spending review Topic 2])","v":0},0]
["Spending review topic 2","IGP",null,null,null,null,"Provincial indirect grants",{"$f":"SUMPRODUCT(((Dataset[DOR]=$B20))*Dataset[2023/24 From - Spending review Topic 2])+SUMPRODUCT(((Dataset[DOR]=$B20))*Dataset[2023/24 To - Spending review Topic 2])","v":0},{"$f":"SUMPRODUCT(((Dataset[DOR]=$B20))*Dataset[2024/25 From - Spending review Topic 2])+SUMPRODUCT(((Dataset[DOR]=$B20))*Dataset[2024/25 To - Spending review Topic 2])","v":0},{"$f":"SUMPRODUCT(((Dataset[DOR]=$B20))*Dataset[2025/26 From - Spending review Topic 2])+SUMPRODUCT(((Dataset[DOR]=$B20))*Dataset[2025/26 To - Spending review Topic 2])","v":0},0]
["Spending review topic 2","IGM",null,null,null,null,"Local indirect grants",{"$f":"SUMPRODUCT(((Dataset[DOR]=$B21))*Dataset[2023/24 From - Spending review Topic 2])+SUMPRODUCT(((Dataset[DOR]=$B21))*Dataset[2023/24 To - Spending review Topic 2])","v":0},{"$f":"SUMPRODUCT(((Dataset[DOR]=$B21))*Dataset[2024/25 From - Spending review Topic 2])+SUMPRODUCT(((Dataset[DOR]=$B21))*Dataset[2024/25 To - Spending review Topic 2])","v":0},{"$f":"SUMPRODUCT(((Dataset[DOR]=$B21))*Dataset[2025/26 From - Spending review Topic 2])+SUMPRODUCT(((Dataset[DOR]=$B21))*Dataset[2025/26 To - Spending review Topic 2])","v":0},0]
["Spending review topic 2",null,null,null,null,null,"Provincial",{"$f":"SUMPRODUCT(((Dataset[DOR]=$B22))*Dataset[2023/24 From - Spending review Topic 2])+SUMPRODUCT(((Dataset[DOR]=$B22))*Dataset[2023/24 To - Spending review Topic 2])","v":0},{"$f":"SUMPRODUCT(((Dataset[DOR]=$B22))*Dataset[2024/25 From - Spending review Topic 2])+SUMPRODUCT(((Dataset[DOR]=$B22))*Dataset[2024/25 To - Spending review Topic 2])","v":0},{"$f":"SUMPRODUCT(((Dataset[DOR]=$B22))*Dataset[2025/26 From - Spending review Topic 2])+SUMPRODUCT(((Dataset[DOR]=$B22))*Dataset[2025/26 To - Spending review Topic 2])","v":0},0]
["Spending review topic 2","PES",null,null,null,null,"Provincial equitable share",{"$f":"SUMPRODUCT(((Dataset[DOR]=$B23))*Dataset[2023/24 From - Spending review Topic 2])+SUMPRODUCT(((Dataset[DOR]=$B23))*Dataset[2023/24 To - Spending review Topic 2])","v":0},{"$f":"SUMPRODUCT(((Dataset[DOR]=$B23))*Dataset[2024/25 From - Spending review Topic 2])+SUMPRODUCT(((Dataset[DOR]=$B23))*Dataset[2024/25 To - Spending review Topic 2])","v":0},{"$f":"SUMPRODUCT(((Dataset[DOR]=$B23))*Dataset[2025/26 From - Spending review Topic 2])+SUMPRODUCT(((Dataset[DOR]=$B23))*Dataset[2025/26 To - Spending review Topic 2])","v":0},0]
["Spending review topic 2","PCG",null,null,null,null,"Provincial conditional grants",{"$f":"SUMPRODUCT(((Dataset[DOR]=$B24))*Dataset[2023/24 From - Spending review Topic 2])+SUMPRODUCT(((Dataset[DOR]=$B24))*Dataset[2023/24 To - Spending review Topic 2])","v":0},{"$f":"SUMPRODUCT(((Dataset[DOR]=$B24))*Dataset[2024/25 From - Spending review Topic 2])+SUMPRODUCT(((Dataset[DOR]=$B24))*Dataset[2024/25 To - Spending review Topic 2])","v":0},{"$f":"SUMPRODUCT(((Dataset[DOR]=$B24))*Dataset[2025/26 From - Spending review Topic 2])+SUMPRODUCT(((Dataset[DOR]=$B24))*Dataset[2025/26 To - Spending review Topic 2])","v":0},0]
["Spending review topic 2",null,null,null,null,null,"Local government",{"$f":"SUMPRODUCT(((Dataset[DOR]=$B25))*Dataset[2023/24 From - Spending review Topic 2])+SUMPRODUCT(((Dataset[DOR]=$B25))*Dataset[2023/24 To - Spending review Topic 2])","v":0},{"$f":"SUMPRODUCT(((Dataset[DOR]=$B25))*Dataset[2024/25 From - Spending review Topic 2])+SUMPRODUCT(((Dataset[DOR]=$B25))*Dataset[2024/25 To - Spending review Topic 2])","v":0},{"$f":"SUMPRODUCT(((Dataset[DOR]=$B25))*Dataset[2025/26 From - Spending review Topic 2])+SUMPRODUCT(((Dataset[DOR]=$B25))*Dataset[2025/26 To - Spending review Topic 2])","v":0},0]
["Spending review topic 2","LES",null,null,null,null,"Local equitable share",{"$f":"SUMPRODUCT(((Dataset[DOR]=$B26))*Dataset[2023/24 From - Spending review Topic 2])+SUMPRODUCT(((Dataset[DOR]=$B26))*Dataset[2023/24 To - Spending review Topic 2])","v":0},{"$f":"SUMPRODUCT(((Dataset[DOR]=$B26))*Dataset[2024/25 From - Spending review Topic 2])+SUMPRODUCT(((Dataset[DOR]=$B26))*Dataset[2024/25 To - Spending review Topic 2])","v":0},{"$f":"SUMPRODUCT(((Dataset[DOR]=$B26))*Dataset[2025/26 From - Spending review Topic 2])+SUMPRODUCT(((Dataset[DOR]=$B26))*Dataset[2025/26 To - Spending review Topic 2])","v":0},0]
["Spending review topic 2","LCG",null,null,null,null,"Local conditional grants",{"$f":"SUMPRODUCT(((Dataset[DOR]=$B27))*Dataset[2023/24 From - Spending review Topic 2])+SUMPRODUCT(((Dataset[DOR]=$B27))*Dataset[2023/24 To - Spending review Topic 2])","v":0},{"$f":"SUMPRODUCT(((Dataset[DOR]=$B27))*Dataset[2024/25 From - Spending review Topic 2])+SUMPRODUCT(((Dataset[DOR]=$B27))*Dataset[2024/25 To - Spending review Topic 2])","v":0},{"$f":"SUMPRODUCT(((Dataset[DOR]=$B27))*Dataset[2025/26 From - Spending review Topic 2])+SUMPRODUCT(((Dataset[DOR]=$B27))*Dataset[2025/26 To - Spending review Topic 2])","v":0},0]
["Spending review topic 2","GFL",null,null,null,null,"General fuel levy ",{"$f":"SUMPRODUCT(((Dataset[DOR]=$B28))*Dataset[2023/24 From - Spending review Topic 2])+SUMPRODUCT(((Dataset[DOR]=$B28))*Dataset[2023/24 To - Spending review Topic 2])","v":0},{"$f":"SUMPRODUCT(((Dataset[DOR]=$B28))*Dataset[2024/25 From - Spending review Topic 2])+SUMPRODUCT(((Dataset[DOR]=$B28))*Dataset[2024/25 To - Spending review Topic 2])","v":0},{"$f":"SUMPRODUCT(((Dataset[DOR]=$B28))*Dataset[2025/26 From - Spending review Topic 2])+SUMPRODUCT(((Dataset[DOR]=$B28))*Dataset[2025/26 To - Spending review Topic 2])","v":0},0]
[]
[]
[null,null,null,null,null,null,{"$f":"G3","v":"Spending review topic 2"}]
[{"$f":"$G$3","v":"Spending review topic 2"},0,null,null,null,null,null,{"$f":"MyYear5","v":"2023/24"},null,null,{"$f":"MyYear6","v":"2024/25"},null,null,{"$f":"MyYear7","v":"2025/26"},null,null,"Total over MTEF"]
[{"$f":"$G$3","v":"Spending review topic 2"},0,null,null,null,null,"Rand thousand","From","To","Total change","From","To","Total change","From","To","Total change","From","To","Total change"]
["Spending review topic 2",0,null,null,null,null,"Economic classification"]
["Spending review topic 2",0,null,null,null,null,"Current payments",{"$f":"SUM(H36:H38)","v":0},0,0,0,0,0,0,0,0,0,0,0]
["Spending review topic 2",0,null,null,null,null,"Compensation of employees",{"$f":"SUMPRODUCT(((Dataset[Econ3]=$G36))*Dataset[2023/24 From - Spending review Topic 2]*$B$3)","v":0},{"$f":"SUMPRODUCT(((Dataset[Econ3]=$G36))*Dataset[2023/24 To - Spending review Topic 2]*$B$3)","v":0},{"$f":"H36+I36","v":0},{"$f":"SUMPRODUCT(((Dataset[Econ3]=$G36))*Dataset[2024/25 From - Spending review Topic 2]*$B$3)","v":0},{"$f":"SUMPRODUCT(((Dataset[Econ3]=$G36))*Dataset[2024/25 To - Spending review Topic 2]*$B$3)","v":0},{"$f":"K36+L36","v":0},{"$f":"SUMPRODUCT(((Dataset[Econ3]=$G36))*Dataset[2025/26 From - Spending review Topic 2]*$B$3)","v":0},{"$f":"SUMPRODUCT(((Dataset[Econ3]=$G36))*Dataset[2025/26 To - Spending review Topic 2]*$B$3)","v":0},{"$f":"N36+O36","v":0},{"$f":"SUM(H36,K36,N36)","v":0},0,0]
["Spending review topic 2",0,null,null,null,null,"Goods and services",{"$f":"SUMPRODUCT(((Dataset[Econ3]=$G37))*Dataset[2023/24 From - Spending review Topic 2]*$B$3)","v":0},{"$f":"SUMPRODUCT(((Dataset[Econ3]=$G37))*Dataset[2023/24 To - Spending review Topic 2]*$B$3)","v":0},0,{"$f":"SUMPRODUCT(((Dataset[Econ3]=$G37))*Dataset[2024/25 From - Spending review Topic 2]*$B$3)","v":0},{"$f":"SUMPRODUCT(((Dataset[Econ3]=$G37))*Dataset[2024/25 To - Spending review Topic 2]*$B$3)","v":0},0,{"$f":"SUMPRODUCT(((Dataset[Econ3]=$G37))*Dataset[2025/26 From - Spending review Topic 2]*$B$3)","v":0},{"$f":"SUMPRODUCT(((Dataset[Econ3]=$G37))*Dataset[2025/26 To - Spending review Topic 2]*$B$3)","v":0},0,0,0,0]
["Spending review topic 2",0,null,null,null,null,"Interest and rent on land",{"$f":"SUMPRODUCT(((Dataset[Econ3]=$G38))*Dataset[2023/24 From - Spending review Topic 2]*$B$3)","v":0},{"$f":"SUMPRODUCT(((Dataset[Econ3]=$G38))*Dataset[2023/24 To - Spending review Topic 2]*$B$3)","v":0},0,{"$f":"SUMPRODUCT(((Dataset[Econ3]=$G38))*Dataset[2024/25 From - Spending review Topic 2]*$B$3)","v":0},{"$f":"SUMPRODUCT(((Dataset[Econ3]=$G38))*Dataset[2024/25 To - Spending review Topic 2]*$B$3)","v":0},0,{"$f":"SUMPRODUCT(((Dataset[Econ3]=$G38))*Dataset[2025/26 From - Spending review Topic 2]*$B$3)","v":0},{"$f":"SUMPRODUCT(((Dataset[Econ3]=$G38))*Dataset[2025/26 To - Spending review Topic 2]*$B$3)","v":0},0,0,0,0]
["Spending review topic 2",0,null,null,null,null,"Transfers and subsidies",{"$f":"SUM(H40,H43,H46:H48,H51:H52)","v":0},0,0,0,0,0,0,0,0,0,0,0]
["Spending review topic 2",0,null,null,null,null,"Provinces and municipalities",{"$f":"SUM(H41:H42)","v":0},0,0,0,0,0,0,0,0,0,0,0]
["Spending review topic 2",0,null,null,null,null,"Provinces",{"$f":"SUMPRODUCT(((Dataset[Econ4]=$G41))*Dataset[2023/24 From - Spending review Topic 2]*$B$3)","v":0},{"$f":"SUMPRODUCT(((Dataset[Econ4]=$G41))*Dataset[2023/24 To - Spending review Topic 2]*$B$3)","v":0},{"$f":"H41+I41","v":0},{"$f":"SUMPRODUCT(((Dataset[Econ4]=$G41))*Dataset[2024/25 From - Spending review Topic 2]*$B$3)","v":0},{"$f":"SUMPRODUCT(((Dataset[Econ4]=$G41))*Dataset[2024/25 To - Spending review Topic 2]*$B$3)","v":0},{"$f":"K41+L41","v":0},{"$f":"SUMPRODUCT(((Dataset[Econ4]=$G41))*Dataset[2025/26 From - Spending review Topic 2]*$B$3)","v":0},{"$f":"SUMPRODUCT(((Dataset[Econ4]=$G41))*Dataset[2025/26 To - Spending review Topic 2]*$B$3)","v":0},{"$f":"N41+O41","v":0},{"$f":"SUM(H41,K41,N41)","v":0},0,0]
["Spending review topic 2",0,null,null,null,null,"Municipalities",{"$f":"SUMPRODUCT(((Dataset[Econ4]=$G42))*Dataset[2023/24 From - Spending review Topic 2]*$B$3)","v":0},{"$f":"SUMPRODUCT(((Dataset[Econ4]=$G42))*Dataset[2023/24 To - Spending review Topic 2]*$B$3)","v":0},0,{"$f":"SUMPRODUCT(((Dataset[Econ4]=$G42))*Dataset[2024/25 From - Spending review Topic 2]*$B$3)","v":0},{"$f":"SUMPRODUCT(((Dataset[Econ4]=$G42))*Dataset[2024/25 To - Spending review Topic 2]*$B$3)","v":0},0,{"$f":"SUMPRODUCT(((Dataset[Econ4]=$G42))*Dataset[2025/26 From - Spending review Topic 2]*$B$3)","v":0},{"$f":"SUMPRODUCT(((Dataset[Econ4]=$G42))*Dataset[2025/26 To - Spending review Topic 2]*$B$3)","v":0},0,0,0,0]
["Spending review topic 2",0,null,null,null,null,"Departmental agencies and accounts",{"$f":"SUM(H44:H45)","v":0},0,0,0,0,0,0,0,0,0,0,0]
["Spending review topic 2",0,null,null,null,null,"Social security funds",{"$f":"SUMPRODUCT(((Dataset[Econ4]=$G44))*Dataset[2023/24 From - Spending review Topic 2]*$B$3)","v":0},{"$f":"SUMPRODUCT(((Dataset[Econ4]=$G44))*Dataset[2023/24 To - Spending review Topic 2]*$B$3)","v":0},{"$f":"H44+I44","v":0},{"$f":"SUMPRODUCT(((Dataset[Econ4]=$G44))*Dataset[2024/25 From - Spending review Topic 2]*$B$3)","v":0},{"$f":"SUMPRODUCT(((Dataset[Econ4]=$G44))*Dataset[2024/25 To - Spending review Topic 2]*$B$3)","v":0},{"$f":"K44+L44","v":0},{"$f":"SUMPRODUCT(((Dataset[Econ4]=$G44))*Dataset[2025/26 From - Spending review Topic 2]*$B$3)","v":0},{"$f":"SUMPRODUCT(((Dataset[Econ4]=$G44))*Dataset[2025/26 To - Spending review Topic 2]*$B$3)","v":0},{"$f":"N44+O44","v":0},{"$f":"SUM(H44,K44,N44)","v":0},0,0]
["Spending review topic 2",0,null,null,null,null,"Departmental agencies (non-business entities)",{"$f":"SUMPRODUCT(((Dataset[Econ4]=$G45))*Dataset[2023/24 From - Spending review Topic 2]*$B$3)","v":0},{"$f":"SUMPRODUCT(((Dataset[Econ4]=$G45))*Dataset[2023/24 To - Spending review Topic 2]*$B$3)","v":0},0,{"$f":"SUMPRODUCT(((Dataset[Econ4]=$G45))*Dataset[2024/25 From - Spending review Topic 2]*$B$3)","v":0},{"$f":"SUMPRODUCT(((Dataset[Econ4]=$G45))*Dataset[2024/25 To - Spending review Topic 2]*$B$3)","v":0},0,{"$f":"SUMPRODUCT(((Dataset[Econ4]=$G45))*Dataset[2025/26 From - Spending review Topic 2]*$B$3)","v":0},{"$f":"SUMPRODUCT(((Dataset[Econ4]=$G45))*Dataset[2025/26 To - Spending review Topic 2]*$B$3)","v":0},0,0,0,0]
["Spending review topic 2",0,null,null,null,null,"Higher education institutions",{"$f":"SUMPRODUCT(((Dataset[Econ3]=$G46))*Dataset[2023/24 From - Spending review Topic 2]*$B$3)","v":0},{"$f":"SUMPRODUCT(((Dataset[Econ3]=$G46))*Dataset[2023/24 To - Spending review Topic 2]*$B$3)","v":0},0,{"$f":"SUMPRODUCT(((Dataset[Econ3]=$G46))*Dataset[2024/25 From - Spending review Topic 2]*$B$3)","v":0},{"$f":"SUMPRODUCT(((Dataset[Econ3]=$G46))*Dataset[2024/25 To - Spending review Topic 2]*$B$3)","v":0},0,{"$f":"SUMPRODUCT(((Dataset[Econ3]=$G46))*Dataset[2025/26 From - Spending review Topic 2]*$B$3)","v":0},{"$f":"SUMPRODUCT(((Dataset[Econ3]=$G46))*Dataset[2025/26 To - Spending review Topic 2]*$B$3)","v":0},0,0,0,0]
["Spending review topic 2",0,null,null,null,null,"Foreign governments and international organisations",{"$f":"SUMPRODUCT(((Dataset[Econ3]=$G47))*Dataset[2023/24 From - Spending review Topic 2]*$B$3)","v":0},{"$f":"SUMPRODUCT(((Dataset[Econ3]=$G47))*Dataset[2023/24 To - Spending review Topic 2]*$B$3)","v":0},0,{"$f":"SUMPRODUCT(((Dataset[Econ3]=$G47))*Dataset[2024/25 From - Spending review Topic 2]*$B$3)","v":0},{"$f":"SUMPRODUCT(((Dataset[Econ3]=$G47))*Dataset[2024/25 To - Spending review Topic 2]*$B$3)","v":0},0,{"$f":"SUMPRODUCT(((Dataset[Econ3]=$G47))*Dataset[2025/26 From - Spending review Topic 2]*$B$3)","v":0},{"$f":"SUMPRODUCT(((Dataset[Econ3]=$G47))*Dataset[2025/26 To - Spending review Topic 2]*$B$3)","v":0},0,0,0,0]
["Spending review topic 2",0,null,null,null,null,"Public corporations and private enterprises",{"$f":"SUM(H49:H50)","v":0},0,0,0,0,0,0,0,0,0,0,0]
["Spending review topic 2",0,null,null,null,null,"Public corporations",{"$f":"SUMPRODUCT(((Dataset[Econ4]=$G49))*Dataset[2023/24 From - Spending review Topic 2]*$B$3)","v":0},{"$f":"SUMPRODUCT(((Dataset[Econ4]=$G49))*Dataset[2023/24 To - Spending review Topic 2]*$B$3)","v":0},{"$f":"H49+I49","v":0},{"$f":"SUMPRODUCT(((Dataset[Econ4]=$G49))*Dataset[2024/25 From - Spending review Topic 2]*$B$3)","v":0},{"$f":"SUMPRODUCT(((Dataset[Econ4]=$G49))*Dataset[2024/25 To - Spending review Topic 2]*$B$3)","v":0},{"$f":"K49+L49","v":0},{"$f":"SUMPRODUCT(((Dataset[Econ4]=$G49))*Dataset[2025/26 From - Spending review Topic 2]*$B$3)","v":0},{"$f":"SUMPRODUCT(((Dataset[Econ4]=$G49))*Dataset[2025/26 To - Spending review Topic 2]*$B$3)","v":0},{"$f":"N49+O49","v":0},{"$f":"SUM(H49,K49,N49)","v":0},0,0]
["Spending review topic 2",0,null,null,null,null,"Private enterprises",{"$f":"SUMPRODUCT(((Dataset[Econ4]=$G50))*Dataset[2023/24 From - Spending review Topic 2]*$B$3)","v":0},{"$f":"SUMPRODUCT(((Dataset[Econ4]=$G50))*Dataset[2023/24 To - Spending review Topic 2]*$B$3)","v":0},0,{"$f":"SUMPRODUCT(((Dataset[Econ4]=$G50))*Dataset[2024/25 From - Spending review Topic 2]*$B$3)","v":0},{"$f":"SUMPRODUCT(((Dataset[Econ4]=$G50))*Dataset[2024/25 To - Spending review Topic 2]*$B$3)","v":0},0,{"$f":"SUMPRODUCT(((Dataset[Econ4]=$G50))*Dataset[2025/26 From - Spending review Topic 2]*$B$3)","v":0},{"$f":"SUMPRODUCT(((Dataset[Econ4]=$G50))*Dataset[2025/26 To - Spending review Topic 2]*$B$3)","v":0},0,0,0,0]
["Spending review topic 2",0,null,null,null,null,"Non-profit institutions",{"$f":"SUMPRODUCT(((Dataset[Econ3]=$G51))*Dataset[2023/24 From - Spending review Topic 2]*$B$3)","v":0},{"$f":"SUMPRODUCT(((Dataset[Econ3]=$G51))*Dataset[2023/24 To - Spending review Topic 2]*$B$3)","v":0},0,{"$f":"SUMPRODUCT(((Dataset[Econ3]=$G51))*Dataset[2024/25 From - Spending review Topic 2]*$B$3)","v":0},{"$f":"SUMPRODUCT(((Dataset[Econ3]=$G51))*Dataset[2024/25 To - Spending review Topic 2]*$B$3)","v":0},0,{"$f":"SUMPRODUCT(((Dataset[Econ3]=$G51))*Dataset[2025/26 From - Spending review Topic 2]*$B$3)","v":0},{"$f":"SUMPRODUCT(((Dataset[Econ3]=$G51))*Dataset[2025/26 To - Spending review Topic 2]*$B$3)","v":0},0,0,0,0]
["Spending review topic 2",0,null,null,null,null,"Households",{"$f":"SUM(H53:H54)","v":0},0,0,0,0,0,0,0,0,0,0,0]
["Spending review topic 2",0,null,null,null,null,"Social benefits",{"$f":"SUMPRODUCT(((Dataset[Econ4]=$G53))*Dataset[2023/24 From - Spending review Topic 2]*$B$3)","v":0},{"$f":"SUMPRODUCT(((Dataset[Econ4]=$G53))*Dataset[2023/24 To - Spending review Topic 2]*$B$3)","v":0},{"$f":"H53+I53","v":0},{"$f":"SUMPRODUCT(((Dataset[Econ4]=$G53))*Dataset[2024/25 From - Spending review Topic 2]*$B$3)","v":0},{"$f":"SUMPRODUCT(((Dataset[Econ4]=$G53))*Dataset[2024/25 To - Spending review Topic 2]*$B$3)","v":0},{"$f":"K53+L53","v":0},{"$f":"SUMPRODUCT(((Dataset[Econ4]=$G53))*Dataset[2025/26 From - Spending review Topic 2]*$B$3)","v":0},{"$f":"SUMPRODUCT(((Dataset[Econ4]=$G53))*Dataset[2025/26 To - Spending review Topic 2]*$B$3)","v":0},{"$f":"N53+O53","v":0},{"$f":"SUM(H53,K53,N53)","v":0},0,0]
["Spending review topic 2",0,null,null,null,null,"Other transfers to households",{"$f":"SUMPRODUCT(((Dataset[Econ4]=$G54))*Dataset[2023/24 From - Spending review Topic 2]*$B$3)","v":0},{"$f":"SUMPRODUCT(((Dataset[Econ4]=$G54))*Dataset[2023/24 To - Spending review Topic 2]*$B$3)","v":0},0,{"$f":"SUMPRODUCT(((Dataset[Econ4]=$G54))*Dataset[2024/25 From - Spending review Topic 2]*$B$3)","v":0},{"$f":"SUMPRODUCT(((Dataset[Econ4]=$G54))*Dataset[2024/25 To - Spending review Topic 2]*$B$3)","v":0},0,{"$f":"SUMPRODUCT(((Dataset[Econ4]=$G54))*Dataset[2025/26 From - Spending review Topic 2]*$B$3)","v":0},{"$f":"SUMPRODUCT(((Dataset[Econ4]=$G54))*Dataset[2025/26 To - Spending review Topic 2]*$B$3)","v":0},0,0,0,0]
["Spending review topic 2",0,null,null,null,null,"Payments for capital assets",{"$f":"SUM(H56,H59,H62:H66)","v":0},0,0,0,0,0,0,0,0,0,0,0]
["Spending review topic 2",0,null,null,null,null,"Buildings and other fixed structures",{"$f":"SUM(H57:H58)","v":0},0,0,0,0,0,0,0,0,0,0,0]
["Spending review topic 2",0,null,null,null,null,"Buildings",{"$f":"SUMPRODUCT(((Dataset[Econ4]=$G57))*Dataset[2023/24 From - Spending review Topic 2]*$B$3)","v":0},{"$f":"SUMPRODUCT(((Dataset[Econ4]=$G57))*Dataset[2023/24 To - Spending review Topic 2]*$B$3)","v":0},{"$f":"H57+I57","v":0},{"$f":"SUMPRODUCT(((Dataset[Econ4]=$G57))*Dataset[2024/25 From - Spending review Topic 2]*$B$3)","v":0},{"$f":"SUMPRODUCT(((Dataset[Econ4]=$G57))*Dataset[2024/25 To - Spending review Topic 2]*$B$3)","v":0},{"$f":"K57+L57","v":0},{"$f":"SUMPRODUCT(((Dataset[Econ4]=$G57))*Dataset[2025/26 From - Spending review Topic 2]*$B$3)","v":0},{"$f":"SUMPRODUCT(((Dataset[Econ4]=$G57))*Dataset[2025/26 To - Spending review Topic 2]*$B$3)","v":0},{"$f":"N57+O57","v":0},{"$f":"SUM(H57,K57,N57)","v":0},0,0]
["Spending review topic 2",0,null,null,null,null,"Other fixed structures",{"$f":"SUMPRODUCT(((Dataset[Econ4]=$G58))*Dataset[2023/24 From - Spending review Topic 2]*$B$3)","v":0},{"$f":"SUMPRODUCT(((Dataset[Econ4]=$G58))*Dataset[2023/24 To - Spending review Topic 2]*$B$3)","v":0},0,{"$f":"SUMPRODUCT(((Dataset[Econ4]=$G58))*Dataset[2024/25 From - Spending review Topic 2]*$B$3)","v":0},{"$f":"SUMPRODUCT(((Dataset[Econ4]=$G58))*Dataset[2024/25 To - Spending review Topic 2]*$B$3)","v":0},0,{"$f":"SUMPRODUCT(((Dataset[Econ4]=$G58))*Dataset[2025/26 From - Spending review Topic 2]*$B$3)","v":0},{"$f":"SUMPRODUCT(((Dataset[Econ4]=$G58))*Dataset[2025/26 To - Spending review Topic 2]*$B$3)","v":0},0,0,0,0]
["Spending review topic 2",0,null,null,null,null,"Machinery and equipment",{"$f":"SUM(H60:H61)","v":0},0,0,0,0,0,0,0,0,0,0,0]
["Spending review topic 2",0,null,null,null,null,"Transport equipment",{"$f":"SUMPRODUCT(((Dataset[Econ4]=$G60))*Dataset[2023/24 From - Spending review Topic 2]*$B$3)","v":0},{"$f":"SUMPRODUCT(((Dataset[Econ4]=$G60))*Dataset[2023/24 To - Spending review Topic 2]*$B$3)","v":0},{"$f":"H60+I60","v":0},{"$f":"SUMPRODUCT(((Dataset[Econ4]=$G60))*Dataset[2024/25 From - Spending review Topic 2]*$B$3)","v":0},{"$f":"SUMPRODUCT(((Dataset[Econ4]=$G60))*Dataset[2024/25 To - Spending review Topic 2]*$B$3)","v":0},{"$f":"K60+L60","v":0},{"$f":"SUMPRODUCT(((Dataset[Econ4]=$G60))*Dataset[2025/26 From - Spending review Topic 2]*$B$3)","v":0},{"$f":"SUMPRODUCT(((Dataset[Econ4]=$G60))*Dataset[2025/26 To - Spending review Topic 2]*$B$3)","v":0},{"$f":"N60+O60","v":0},{"$f":"SUM(H60,K60,N60)","v":0},0,0]
["Spending review topic 2",0,null,null,null,null,"Other machinery and equipment",{"$f":"SUMPRODUCT(((Dataset[Econ4]=$G61))*Dataset[2023/24 From - Spending review Topic 2]*$B$3)","v":0},{"$f":"SUMPRODUCT(((Dataset[Econ4]=$G61))*Dataset[2023/24 To - Spending review Topic 2]*$B$3)","v":0},0,{"$f":"SUMPRODUCT(((Dataset[Econ4]=$G61))*Dataset[2024/25 From - Spending review Topic 2]*$B$3)","v":0},{"$f":"SUMPRODUCT(((Dataset[Econ4]=$G61))*Dataset[2024/25 To - Spending review Topic 2]*$B$3)","v":0},0,{"$f":"SUMPRODUCT(((Dataset[Econ4]=$G61))*Dataset[2025/26 From - Spending review Topic 2]*$B$3)","v":0},{"$f":"SUMPRODUCT(((Dataset[Econ4]=$G61))*Dataset[2025/26 To - Spending review Topic 2]*$B$3)","v":0},0,0,0,0]
["Spending review topic 2",0,null,null,null,null,"Heritage assets",{"$f":"SUMPRODUCT(((Dataset[Econ3]=$G62))*Dataset[2023/24 From - Spending review Topic 2]*$B$3)","v":0},{"$f":"SUMPRODUCT(((Dataset[Econ3]=$G62))*Dataset[2023/24 To - Spending review Topic 2]*$B$3)","v":0},0,{"$f":"SUMPRODUCT(((Dataset[Econ3]=$G62))*Dataset[2024/25 From - Spending review Topic 2]*$B$3)","v":0},{"$f":"SUMPRODUCT(((Dataset[Econ3]=$G62))*Dataset[2024/25 To - Spending review Topic 2]*$B$3)","v":0},0,{"$f":"SUMPRODUCT(((Dataset[Econ3]=$G62))*Dataset[2025/26 From - Spending review Topic 2]*$B$3)","v":0},{"$f":"SUMPRODUCT(((Dataset[Econ3]=$G62))*Dataset[2025/26 To - Spending review Topic 2]*$B$3)","v":0},0,0,0,0]
["Spending review topic 2",0,null,null,null,null,"Specialised military assets",{"$f":"SUMPRODUCT(((Dataset[Econ3]=$G63))*Dataset[2023/24 From - Spending review Topic 2]*$B$3)","v":0},{"$f":"SUMPRODUCT(((Dataset[Econ3]=$G63))*Dataset[2023/24 To - Spending review Topic 2]*$B$3)","v":0},0,{"$f":"SUMPRODUCT(((Dataset[Econ3]=$G63))*Dataset[2024/25 From - Spending review Topic 2]*$B$3)","v":0},{"$f":"SUMPRODUCT(((Dataset[Econ3]=$G63))*Dataset[2024/25 To - Spending review Topic 2]*$B$3)","v":0},0,{"$f":"SUMPRODUCT(((Dataset[Econ3]=$G63))*Dataset[2025/26 From - Spending review Topic 2]*$B$3)","v":0},{"$f":"SUMPRODUCT(((Dataset[Econ3]=$G63))*Dataset[2025/26 To - Spending review Topic 2]*$B$3)","v":0},0,0,0,0]
["Spending review topic 2",0,null,null,null,null,"Biological assets",{"$f":"SUMPRODUCT(((Dataset[Econ3]=$G64))*Dataset[2023/24 From - Spending review Topic 2]*$B$3)","v":0},{"$f":"SUMPRODUCT(((Dataset[Econ3]=$G64))*Dataset[2023/24 To - Spending review Topic 2]*$B$3)","v":0},0,{"$f":"SUMPRODUCT(((Dataset[Econ3]=$G64))*Dataset[2024/25 From - Spending review Topic 2]*$B$3)","v":0},{"$f":"SUMPRODUCT(((Dataset[Econ3]=$G64))*Dataset[2024/25 To - Spending review Topic 2]*$B$3)","v":0},0,{"$f":"SUMPRODUCT(((Dataset[Econ3]=$G64))*Dataset[2025/26 From - Spending review Topic 2]*$B$3)","v":0},{"$f":"SUMPRODUCT(((Dataset[Econ3]=$G64))*Dataset[2025/26 To - Spending review Topic 2]*$B$3)","v":0},0,0,0,0]
["Spending review topic 2",0,null,null,null,null,"Land and sub-soil assets",{"$f":"SUMPRODUCT(((Dataset[Econ3]=$G65))*Dataset[2023/24 From - Spending review Topic 2]*$B$3)","v":0},{"$f":"SUMPRODUCT(((Dataset[Econ3]=$G65))*Dataset[2023/24 To - Spending review Topic 2]*$B$3)","v":0},0,{"$f":"SUMPRODUCT(((Dataset[Econ3]=$G65))*Dataset[2024/25 From - Spending review Topic 2]*$B$3)","v":0},{"$f":"SUMPRODUCT(((Dataset[Econ3]=$G65))*Dataset[2024/25 To - Spending review Topic 2]*$B$3)","v":0},0,{"$f":"SUMPRODUCT(((Dataset[Econ3]=$G65))*Dataset[2025/26 From - Spending review Topic 2]*$B$3)","v":0},{"$f":"SUMPRODUCT(((Dataset[Econ3]=$G65))*Dataset[2025/26 To - Spending review Topic 2]*$B$3)","v":0},0,0,0,0]
["Spending review topic 2",0,null,null,null,null,"Software and other intangible assets",{"$f":"SUMPRODUCT(((Dataset[Econ3]=$G66))*Dataset[2023/24 From - Spending review Topic 2]*$B$3)","v":0},{"$f":"SUMPRODUCT(((Dataset[Econ3]=$G66))*Dataset[2023/24 To - Spending review Topic 2]*$B$3)","v":0},0,{"$f":"SUMPRODUCT(((Dataset[Econ3]=$G66))*Dataset[2024/25 From - Spending review Topic 2]*$B$3)","v":0},{"$f":"SUMPRODUCT(((Dataset[Econ3]=$G66))*Dataset[2024/25 To - Spending review Topic 2]*$B$3)","v":0},0,{"$f":"SUMPRODUCT(((Dataset[Econ3]=$G66))*Dataset[2025/26 From - Spending review Topic 2]*$B$3)","v":0},{"$f":"SUMPRODUCT(((Dataset[Econ3]=$G66))*Dataset[2025/26 To - Spending review Topic 2]*$B$3)","v":0},0,0,0,0]
["Spending review topic 2",0,null,null,null,null,"Payments for financial assets",{"$f":"SUMPRODUCT(((Dataset[Econ3]=$G67))*Dataset[2023/24 From - Spending review Topic 2]*$B$3)","v":0},{"$f":"SUMPRODUCT(((Dataset[Econ3]=$G67))*Dataset[2023/24 To - Spending review Topic 2]*$B$3)","v":0},0,{"$f":"SUMPRODUCT(((Dataset[Econ3]=$G67))*Dataset[2024/25 From - Spending review Topic 2]*$B$3)","v":0},{"$f":"SUMPRODUCT(((Dataset[Econ3]=$G67))*Dataset[2024/25 To - Spending review Topic 2]*$B$3)","v":0},0,{"$f":"SUMPRODUCT(((Dataset[Econ3]=$G67))*Dataset[2025/26 From - Spending review Topic 2]*$B$3)","v":0},{"$f":"SUMPRODUCT(((Dataset[Econ3]=$G67))*Dataset[2025/26 To - Spending review Topic 2]*$B$3)","v":0},0,0,0,0]
["Spending review topic 2",0,null,null,null,null,"Total",{"$f":"SUM(H35,H39,H55,H67)","v":0},0,0,0,0,0,0,0,0,0,0,0]
[]
[]
[]
[]
[null,null,null,null,null,null,{"$f":"\"IMPACT OF ADJUSTMENTS: \" &UPPER($G$3)","v":"IMPACT OF ADJUSTMENTS: SPENDING REVIEW TOPIC 2"}]
[]
[null,null,null,null,null,1,"Impact of adjustments on expenditure"]
[{"$f":"$G$3","v":"Spending review topic 2"},5,null,null,null,null,null,{"$f":"MyYear4","v":"2022/23"},null,null,{"$f":"MyYear5","v":"2023/24"},null,null,{"$f":"MyYear6","v":"2024/25"},null,null,{"$f":"MyYear7","v":"2025/26"}]
["Spending review topic 2",5,null,null,null,null,"Salary level","Current expenditure","Potential expenditure @ benchmark level","% Savings if benchmark is achieved","Original number","Change in expenditure","Saving as % of original number","Original number","Change in expenditure","Saving as % of original number","Original number","Change in expenditure","Saving as % of original number"]
["Spending review topic 2",5,null,null,null,null,"Total",null,null,{"$f":"IFERROR((H78-I78)/-H78,\"\")","v":""},null,null,{"$f":"IFERROR((K78-L78)/-K78,\"\")","v":""},null,null,{"$f":"IFERROR((N78-O78)/-N78,\"\")","v":""},null,null,{"$f":"IFERROR((Q78-R78)/-Q78,\"\")","v":""}]
[]
[]
[]
[]
[]
[null,null,null,null,null,2,"Summary of impact on service delivery/policy area due to adjustments"]
[{"$f":"$G$3","v":"Spending review topic 2"},1]
["Spending review topic 2",1]
["Spending review topic 2",1]
["Spending review topic 2",1]
["Spending review topic 2",1]
["Spending review topic 2",1]
["Spending review topic 2",1]
["Spending review topic 2",1]
["Spending review topic 2",1]
["Spending review topic 2",1]
["Spending review topic 2",1]
["Spending review topic 2",1]
["Spending review topic 2",1]
["Spending review topic 2",1]
["Spending review topic 2",1]
[]
[]
[]
[]
[]
[null,null,null,null,null,3,"Impact of adjustments on performance indicators"]
[{"$f":"$G$3","v":"Spending review topic 2"},2,null,null,null,null,null,{"$f":"MyYear4","v":"2022/23"},null,null,{"$f":"MyYear5","v":"2023/24"},null,null,{"$f":"MyYear6","v":"2024/25"},null,null,{"$f":"MyYear7","v":"2025/26"},null,null," Comment",null,null,null,null,"Related MTSF Priority"]
["Spending review topic 2",2,null,null,null,null,"Performance indicator","Current performance","Performance @ benchmark level","Change","Original target","Revised target","Change","Original target","Revised target","Change","Original target","Revised target","Change"]
["Spending review topic 2",2]
["Spending review topic 2",2]
["Spending review topic 2",2]
["Spending review topic 2",2]
["Spending review topic 2",2]
["Spending review topic 2",2]
["Spending review topic 2",2]
["Spending review topic 2",2]
["Spending review topic 2",2]
["Spending review topic 2",2]
["Spending review topic 2",2]
["Spending review topic 2",2]
["Spending review topic 2",2]
["Spending review topic 2",2]
["Spending review topic 2",2]
[]
[]
[]
[]
[]
[null,null,null,null,null,4,"Impact of adjustments on personnel headcount numbers"]
[{"$f":"$G$3","v":"Spending review topic 2"},4,null,null,null,null,null,{"$f":"MyYear4","v":"2022/23"},null,null,{"$f":"MyYear5","v":"2023/24"},null,null,{"$f":"MyYear6","v":"2024/25"},null,null,{"$f":"MyYear7","v":"2025/26"},null,null," Comment"]
["Spending review topic 2",4,null,null,null,null,"Salary level","Current number","Potential number if benchmark is achieved","Change in number","Original number","Revised number","Change in number","Original number","Revised number","Change in number","Original number","Revised number","Change in number"]
["Spending review topic 2",4,null,null,null,null,1,null,null,{"$f":"I131-H131","v":0},null,null,{"$f":"L131-K131","v":0},null,null,{"$f":"O131-N131","v":0},null,null,{"$f":"R131-Q131","v":0}]
["Spending review topic 2",4,null,null,null,null,2,null,null,0,null,null,0,null,null,0,null,null,0]
["Spending review topic 2",4,null,null,null,null,3,null,null,0,null,null,0,null,null,0,null,null,0]
["Spending review topic 2",4,null,null,null,null,4,null,null,0,null,null,0,null,null,0,null,null,0]
["Spending review topic 2",4,null,null,null,null,5,null,null,0,null,null,0,null,null,0,null,null,0]
["Spending review topic 2",4,null,null,null,null,6,null,null,0,null,null,0,null,null,0,null,null,0]
["Spending review topic 2",4,null,null,null,null,7,null,null,0,null,null,0,null,null,0,null,null,0]
["Spending review topic 2",4,null,null,null,null,8,null,null,0,null,null,0,null,null,0,null,null,0]
["Spending review topic 2",4,null,null,null,null,9,null,null,0,null,null,0,null,null,0,null,null,0]
["Spending review topic 2",4,null,null,null,null,10,null,null,0,null,null,0,null,null,0,null,null,0]
["Spending review topic 2",4,null,null,null,null,11,null,null,0,null,null,0,null,null,0,null,null,0]
["Spending review topic 2",4,null,null,null,null,12,null,null,0,null,null,0,null,null,0,null,null,0]
["Spending review topic 2",4,null,null,null,null,13,null,null,0,null,null,0,null,null,0,null,null,0]
["Spending review topic 2",4,null,null,null,null,14,null,null,0,null,null,0,null,null,0,null,null,0]
["Spending review topic 2",4,null,null,null,null,15,null,null,0,null,null,0,null,null,0,null,null,0]
["Spending review topic 2",4,null,null,null,null,16,null,null,0,null,null,0,null,null,0,null,null,0]
["Spending review topic 2",4,null,null,null,null,"Other",null,null,0,null,null,0,null,null,0,null,null,0]
["Spending review topic 2",4,null,null,null,null,"Other",null,null,0,null,null,0,null,null,0,null,null,0]
["Spending review topic 2",4,null,null,null,null,"Other",null,null,0,null,null,0,null,null,0,null,null,0]
["Spending review topic 2",4,null,null,null,null,"Other",null,null,0,null,null,0,null,null,0,null,null,0]
["Spending review topic 2",4,null,null,null,null,"Total",{"$f":"SUM(H131:H150)","v":0},0,0,{"$f":"SUM(K131:K150)","v":0},0,0,0,0,0,0,0,0]
[]
[]
[]
[]
[]
[null,null,null,null,null,5,"Impact of adjustments on infrastructure projects"]
[{"$f":"$G$3","v":"Spending review topic 2"},3,null,null,null,null,null,{"$f":"MyYear4","v":"2022/23"},null,null,{"$f":"MyYear5","v":"2023/24"},null,null,{"$f":"MyYear6","v":"2024/25"},null,null,{"$f":"MyYear7","v":"2025/26"},null,null," Comment"]
["Spending review topic 2",3,null,null,null,null,"Project name","Current number","Market or best in class benchmark","Change","Original amount","Revised amount","Change","Original amount","Revised amount","Change","Original amount","Revised amount","Change"]
["Spending review topic 2",3,null,null,null,null,null,null,null,{"$f":"I160-H160","v":0},null,null,{"$f":"L160-K160","v":0},null,null,{"$f":"O160-N160","v":0},null,null,{"$f":"R160-Q160","v":0}]
["Spending review topic 2",3,null,null,null,null,null,null,null,0,null,null,0,null,null,0,null,null,0]
["Spending review topic 2",3,null,null,null,null,null,null,null,0,null,null,0,null,null,0,null,null,0]
["Spending review topic 2",3,null,null,null,null,null,null,null,0,null,null,0,null,null,0,null,null,0]
["Spending review topic 2",3,null,null,null,null,null,null,null,0,null,null,0,null,null,0,null,null,0]
["Spending review topic 2",3,null,null,null,null,null,null,null,0,null,null,0,null,null,0,null,null,0]
["Spending review topic 2",3,null,null,null,null,null,null,null,0,null,null,0,null,null,0,null,null,0]
["Spending review topic 2",3,null,null,null,null,null,null,null,0,null,null,0,null,null,0,null,null,0]
["Spending review topic 2",3,null,null,null,null,null,null,null,0,null,null,0,null,null,0,null,null,0]
["Spending review topic 2",3,null,null,null,null,null,null,null,0,null,null,0,null,null,0,null,null,0]
["Spending review topic 2",3,null,null,null,null,null,null,null,0,null,null,0,null,null,0,null,null,0]
["Spending review topic 2",3,null,null,null,null,null,null,null,0,null,null,0,null,null,0,null,null,0]
["Spending review topic 2",3,null,null,null,null,null,null,null,0,null,null,0,null,null,0,null,null,0]
["Spending review topic 2",3,null,null,null,null,null,null,null,0,null,null,0,null,null,0,null,null,0]
["Spending review topic 2",3,null,null,null,null,null,null,null,0,null,null,0,null,null,0,null,null,0]
["Spending review topic 2",3,null,null,null,null,null,null,null,0,null,null,0,null,null,0,null,null,0]
["Spending review topic 2",3,null,null,null,null,null,null,null,0,null,null,0,null,null,0,null,null,0]
["Spending review topic 2",3,null,null,null,null,null,null,null,0,null,null,0,null,null,0,null,null,0]
["Spending review topic 2",3,null,null,null,null,null,null,null,0,null,null,0,null,null,0,null,null,0]
["Spending review topic 2",3,null,null,null,null,null,null,null,0,null,null,0,null,null,0,null,null,0]
["Spending review topic 2",3,null,null,null,null,null,null,null,0,null,null,0,null,null,0,null,null,0]
["Spending review topic 2",3,null,null,null,null,null,null,null,0,null,null,0,null,null,0,null,null,0]
["Spending review topic 2",3,null,null,null,null,null,null,null,0,null,null,0,null,null,0,null,null,0]
["Spending review topic 2",3,null,null,null,null,null,null,null,0,null,null,0,null,null,0,null,null,0]
["Spending review topic 2",3,null,null,null,null,null,null,null,0,null,null,0,null,null,0,null,null,0]
["Spending review topic 2",3,null,null,null,null,null,null,null,0,null,null,0,null,null,0,null,null,0]
["Spending review topic 2",3,null,null,null,null,null,null,null,0,null,null,0,null,null,0,null,null,0]
["Spending review topic 2",3,null,null,null,null,null,null,null,0,null,null,0,null,null,0,null,null,0]
["Spending review topic 2",3,null,null,null,null,null,null,null,0,null,null,0,null,null,0,null,null,0]
["Spending review topic 2",3,null,null,null,null,null,null,null,0,null,null,0,null,null,0,null,null,0]
["Spending review topic 2",3,null,null,null,null,null,null,null,0,null,null,0,null,null,0,null,null,0]
["Spending review topic 2",3,null,null,null,null,null,null,null,0,null,null,0,null,null,0,null,null,0]
["Spending review topic 2",3,null,null,null,null,null,null,null,0,null,null,0,null,null,0,null,null,0]
["Spending review topic 2",3,null,null,null,null,null,null,null,0,null,null,0,null,null,0,null,null,0]
["Spending review topic 2",3,null,null,null,null,null,null,null,0,null,null,0,null,null,0,null,null,0]
["Spending review topic 2",3,null,null,null,null,null,null,null,0,null,null,0,null,null,0,null,null,0]
["Spending review topic 2",3,null,null,null,null,null,null,null,0,null,null,0,null,null,0,null,null,0]
["Spending review topic 2",3,null,null,null,null,null,null,null,0,null,null,0,null,null,0,null,null,0]
["Spending review topic 2",3,null,null,null,null,null,null,null,0,null,null,0,null,null,0,null,null,0]
["Spending review topic 2",3,null,null,null,null,null,null,null,0,null,null,0,null,null,0,null,null,0]
["Spending review topic 2",3,null,null,null,null,null,null,null,0,null,null,0,null,null,0,null,null,0]
["Spending review topic 2",3,null,null,null,null,null,null,null,0,null,null,0,null,null,0,null,null,0]
["Spending review topic 2",3,null,null,null,null,null,null,null,0,null,null,0,null,null,0,null,null,0]
["Spending review topic 2",3,null,null,null,null,null,null,null,0,null,null,0,null,null,0,null,null,0]
["Spending review topic 2",3,null,null,null,null,null,null,null,0,null,null,0,null,null,0,null,null,0]
["Spending review topic 2",3,null,null,null,null,null,null,null,0,null,null,0,null,null,0,null,null,0]
["Spending review topic 2",3,null,null,null,null,null,null,null,0,null,null,0,null,null,0,null,null,0]
["Spending review topic 2",3,null,null,null,null,null,null,null,0,null,null,0,null,null,0,null,null,0]
["Spending review topic 2",3,null,null,null,null,null,null,null,0,null,null,0,null,null,0,null,null,0]
["Spending review topic 2",3,null,null,null,null,null,null,null,0,null,null,0,null,null,0,null,null,0]
["Spending review topic 2",3,null,null,null,null,"Total",{"$f":"SUM(H160:H209)","v":0},0,0,0,0,0,0,0,0,0,0,0]

{"sheet":"SRT3","index":13,"n_rows":210,"n_cols":25,"rows_kept":210,"cut":false,"hidden":false,"merged":[[72,6,72,18],[84,6,98,18],[105,19,105,23],[105,24,105,26],[106,19,106,23],[106,24,106,26],[107,19,107,23],[107,24,107,26],[108,19,108,23],[108,24,108,26],[109,19,109,23],[109,24,109,26],[110,19,110,23],[110,24,110,26],[111,19,111,23],[111,24,111,26],[112,19,112,23],[112,24,112,26],[113,19,113,23],[113,24,113,26],[114,19,114,23],[114,24,114,26],[115,19,115,23],[115,24,115,26],[116,19,116,23],[116,24,116,26],[117,19,117,23],[117,24,117,26],[118,19,118,23],[118,24,118,26],[119,19,119,23],[119,24,119,26],[120,19,120,23],[120,24,120,26],[121,19,121,23],[121,24,121,26],[165,19,165,23],[128,19,128,23],[129,19,129,23],[130,19,149,23],[157,19,157,23],[158,19,158,23],[159,19,159,23],[160,19,160,23],[161,19,161,23],[162,19,162,23],[163,19,163,23],[164,19,164,23],[177,19,177,23],[166,19,166,23],[167,19,167,23],[168,19,168,23],[169,19,169,23],[170,19,170,23],[171,19,171,23],[172,19,172,23],[173,19,173,23],[174,19,174,23],[175,19,175,23],[176,19,176,23],[189,19,189,23],[178,19,178,23],[179,19,179,23],[180,19,180,23],[181,19,181,23],[182,19,182,23],[183,19,183,23],[184,19,184,23],[185,19,185,23],[186,19,186,23],[187,19,187,23],[188,19,188,23],[201,19,201,23],[190,19,190,23],[191,19,191,23],[192,19,192,23],[193,19,193,23],[194,19,194,23],[195,19,195,23],[196,19,196,23],[197,19,197,23],[198,19,198,23],[199,19,199,23],[200,19,200,23],[208,19,208,23],[202,19,202,23],[203,19,203,23],[204,19,204,23],[205,19,205,23],[206,19,206,23],[207,19,207,23]]}
[]
[null,null,null,null,null,null,"Spending review topic…"]
[null,{"$f":"IF(G3=\"\",0,1)","v":1},null,null,null,3,{"$f":"SRTopic3","v":"Spending review topic 3"}]
[]
[null,null,null,null,null,null,"Quick view…(Total change)",{"$f":"MyYear5","v":"2023/24"},{"$f":"MyYear6","v":"2024/25"},{"$f":"MyYear7","v":"2025/26"},"MTEF total","Trend"]
[null,null,null,null,null,null,"Compensation of employees",{"$f":"SUMPRODUCT(($G$35:$G$68=$G6)*($J$35:$J$68))","v":0},{"$f":"SUMPRODUCT(($G$35:$G$68=$G6)*($M$35:$M$68))","v":0},{"$f":"SUMPRODUCT(($G$35:$G$68=$G6)*($P$35:$P$68))","v":0},{"$f":"SUM(H6:J6)","v":0},null,null,"CoE"]
[null,null,null,null,null,null,"Goods and services",{"$f":"SUMPRODUCT(($G$35:$G$68=$G7)*($J$35:$J$68))","v":0},{"$f":"SUMPRODUCT(($G$35:$G$68=$G7)*($M$35:$M$68))","v":0},{"$f":"SUMPRODUCT(($G$35:$G$68=$G7)*($P$35:$P$68))","v":0},0,null,null,"G&S"]
[null,null,null,null,null,null,"Transfers and subsidies",{"$f":"SUMPRODUCT(($G$35:$G$68=$G8)*($J$35:$J$68))","v":0},{"$f":"SUMPRODUCT(($G$35:$G$68=$G8)*($M$35:$M$68))","v":0},{"$f":"SUMPRODUCT(($G$35:$G$68=$G8)*($P$35:$P$68))","v":0},0,null,null,"T&S"]
[null,null,null,null,null,null,"Payments for capital assets",{"$f":"SUMPRODUCT(($G$35:$G$68=$G9)*($J$35:$J$68))","v":0},{"$f":"SUMPRODUCT(($G$35:$G$68=$G9)*($M$35:$M$68))","v":0},{"$f":"SUMPRODUCT(($G$35:$G$68=$G9)*($P$35:$P$68))","v":0},0,null,null,"Capital"]
[null,null,null,null,null,null,"Total",{"$f":"SUMPRODUCT(($G$35:$G$68=$G10)*($J$35:$J$68))","v":0},{"$f":"SUMPRODUCT(($G$35:$G$68=$G10)*($M$35:$M$68))","v":0},{"$f":"SUMPRODUCT(($G$35:$G$68=$G10)*($P$35:$P$68))","v":0},0,null,null,"Total"]
[null,null,null,null,null,null,"% of MTEF total",null,null,null,null,null,null,null,null,null,null,null,{"$f":"MyYear5","v":"2023/24"},{"$f":"MyYear6","v":"2024/25"},{"$f":"MyYear7","v":"2025/26"}]
[null,null,null,null,null,null,"Compensation of employees",{"$f":"IFERROR(H6/$K6,\"\")","v":""},"","",null,null,null,null,null,null,null,{"$f":"G12","v":"Compensation of employees"},{"$f":"IF(H12>0.0595,H12,\"\")","v":""},"",""]
[null,null,null,null,null,null,"Goods and services","","","",null,null,null,null,null,null,null,{"$f":"G13","v":"Goods and services"},"","",""]
[null,null,null,null,null,null,"Transfers and subsidies","","","",null,null,null,null,null,null,null,{"$f":"G14","v":"Transfers and subsidies"},"","",""]
[null,null,null,null,null,null,"Payments for capital assets","","","",null,null,null,null,null,null,null,{"$f":"G15","v":"Payments for capital assets"},"","",""]
[]
[null,null,null,null,null,null,"Division of Revenue",{"$f":"MyYear5","v":"2023/24"},{"$f":"MyYear6","v":"2024/25"},{"$f":"MyYear7","v":"2025/26"},"MTEF total","Trend"]
[null,null,null,null,null,null,"National",{"$f":"SUM(H19:H21)","v":0},0,0,{"$f":"SUM(H18:J18)","v":0}]
[{"$f":"$G$3","v":"Spending review topic 3"},"NAT",null,null,null,null,"National (excl. indirect grants)",{"$f":"SUMPRODUCT(((Dataset[DOR]=$B19))*Dataset[2023/24 From - Spending review Topic 3])+SUMPRODUCT(((Dataset[DOR]=$B19))*Dataset[2023/24 To - Spending review Topic 3])","v":0},{"$f":"SUMPRODUCT(((Dataset[DOR]=$B19))*Dataset[2024/25 From - Spending review Topic 3])+SUMPRODUCT(((Dataset[DOR]=$B19))*Dataset[2024/25 To - Spending review Topic 3])","v":0},{"$f":"SUMPRODUCT(((Dataset[DOR]=$B19))*Dataset[2025/26 From - Spending review Topic 3])+SUMPRODUCT(((Dataset[DOR]=$B19))*Dataset[2025/26 To - Spending review Topic 3])","v":0},0]
["Spending review topic 3","IGP",null,null,null,null,"Provincial indirect grants",{"$f":"SUMPRODUCT(((Dataset[DOR]=$B20))*Dataset[2023/24 From - Spending review Topic 3])+SUMPRODUCT(((Dataset[DOR]=$B20))*Dataset[2023/24 To - Spending review Topic 3])","v":0},{"$f":"SUMPRODUCT(((Dataset[DOR]=$B20))*Dataset[2024/25 From - Spending review Topic 3])+SUMPRODUCT(((Dataset[DOR]=$B20))*Dataset[2024/25 To - Spending review Topic 3])","v":0},{"$f":"SUMPRODUCT(((Dataset[DOR]=$B20))*Dataset[2025/26 From - Spending review Topic 3])+SUMPRODUCT(((Dataset[DOR]=$B20))*Dataset[2025/26 To - Spending review Topic 3])","v":0},0]
["Spending review topic 3","IGM",null,null,null,null,"Local indirect grants",{"$f":"SUMPRODUCT(((Dataset[DOR]=$B21))*Dataset[2023/24 From - Spending review Topic 3])+SUMPRODUCT(((Dataset[DOR]=$B21))*Dataset[2023/24 To - Spending review Topic 3])","v":0},{"$f":"SUMPRODUCT(((Dataset[DOR]=$B21))*Dataset[2024/25 From - Spending review Topic 3])+SUMPRODUCT(((Dataset[DOR]=$B21))*Dataset[2024/25 To - Spending review Topic 3])","v":0},{"$f":"SUMPRODUCT(((Dataset[DOR]=$B21))*Dataset[2025/26 From - Spending review Topic 3])+SUMPRODUCT(((Dataset[DOR]=$B21))*Dataset[2025/26 To - Spending review Topic 3])","v":0},0]
["Spending review topic 3",null,null,null,null,null,"Provincial",{"$f":"SUMPRODUCT(((Dataset[DOR]=$B22))*Dataset[2023/24 From - Spending review Topic 3])+SUMPRODUCT(((Dataset[DOR]=$B22))*Dataset[2023/24 To - Spending review Topic 3])","v":0},{"$f":"SUMPRODUCT(((Dataset[DOR]=$B22))*Dataset[2024/25 From - Spending review Topic 3])+SUMPRODUCT(((Dataset[DOR]=$B22))*Dataset[2024/25 To - Spending review Topic 3])","v":0},{"$f":"SUMPRODUCT(((Dataset[DOR]=$B22))*Dataset[2025/26 From - Spending review Topic 3])+SUMPRODUCT(((Dataset[DOR]=$B22))*Dataset[2025/26 To - Spending review Topic 3])","v":0},0]
["Spending review topic 3","PES",null,null,null,null,"Provincial equitable share",{"$f":"SUMPRODUCT(((Dataset[DOR]=$B23))*Dataset[2023/24 From - Spending review Topic 3])+SUMPRODUCT(((Dataset[DOR]=$B23))*Dataset[2023/24 To - Spending review Topic 3])","v":0},{"$f":"SUMPRODUCT(((Dataset[DOR]=$B23))*Dataset[2024/25 From - Spending review Topic 3])+SUMPRODUCT(((Dataset[DOR]=$B23))*Dataset[2024/25 To - Spending review Topic 3])","v":0},{"$f":"SUMPRODUCT(((Dataset[DOR]=$B23))*Dataset[2025/26 From - Spending review Topic 3])+SUMPRODUCT(((Dataset[DOR]=$B23))*Dataset[2025/26 To - Spending review Topic 3])","v":0},0]
["Spending review topic 3","PCG",null,null,null,null,"Provincial conditional grants",{"$f":"SUMPRODUCT(((Dataset[DOR]=$B24))*Dataset[2023/24 From - Spending review Topic 3])+SUMPRODUCT(((Dataset[DOR]=$B24))*Dataset[2023/24 To - Spending review Topic 3])","v":0},{"$f":"SUMPRODUCT(((Dataset[DOR]=$B24))*Dataset[2024/25 From - Spending review Topic 3])+SUMPRODUCT(((Dataset[DOR]=$B24))*Dataset[2024/25 To - Spending review Topic 3])","v":0},{"$f":"SUMPRODUCT(((Dataset[DOR]=$B24))*Dataset[2025/26 From - Spending review Topic 3])+SUMPRODUCT(((Dataset[DOR]=$B24))*Dataset[2025/26 To - Spending review Topic 3])","v":0},0]
["Spending review topic 3",null,null,null,null,null,"Local government",{"$f":"SUMPRODUCT(((Dataset[DOR]=$B25))*Dataset[2023/24 From - Spending review Topic 3])+SUMPRODUCT(((Dataset[DOR]=$B25))*Dataset[2023/24 To - Spending review Topic 3])","v":0},{"$f":"SUMPRODUCT(((Dataset[DOR]=$B25))*Dataset[2024/25 From - Spending review Topic 3])+SUMPRODUCT(((Dataset[DOR]=$B25))*Dataset[2024/25 To - Spending review Topic 3])","v":0},{"$f":"SUMPRODUCT(((Dataset[DOR]=$B25))*Dataset[2025/26 From - Spending review Topic 3])+SUMPRODUCT(((Dataset[DOR]=$B25))*Dataset[2025/26 To - Spending review Topic 3])","v":0},0]
["Spending review topic 3","LES",null,null,null,null,"Local equitable share",{"$f":"SUMPRODUCT(((Dataset[DOR]=$B26))*Dataset[2023/24 From - Spending review Topic 3])+SUMPRODUCT(((Dataset[DOR]=$B26))*Dataset[2023/24 To - Spending review Topic 3])","v":0},{"$f":"SUMPRODUCT(((Dataset[DOR]=$B26))*Dataset[2024/25 From - Spending review Topic 3])+SUMPRODUCT(((Dataset[DOR]=$B26))*Dataset[2024/25 To - Spending review Topic 3])","v":0},{"$f":"SUMPRODUCT(((Dataset[DOR]=$B26))*Dataset[2025/26 From - Spending review Topic 3])+SUMPRODUCT(((Dataset[DOR]=$B26))*Dataset[2025/26 To - Spending review Topic 3])","v":0},0]
["Spending review topic 3","LCG",null,null,null,null,"Local conditional grants",{"$f":"SUMPRODUCT(((Dataset[DOR]=$B27))*Dataset[2023/24 From - Spending review Topic 3])+SUMPRODUCT(((Dataset[DOR]=$B27))*Dataset[2023/24 To - Spending review Topic 3])","v":0},{"$f":"SUMPRODUCT(((Dataset[DOR]=$B27))*Dataset[2024/25 From - Spending review Topic 3])+SUMPRODUCT(((Dataset[DOR]=$B27))*Dataset[2024/25 To - Spending review Topic 3])","v":0},{"$f":"SUMPRODUCT(((Dataset[DOR]=$B27))*Dataset[2025/26 From - Spending review Topic 3])+SUMPRODUCT(((Dataset[DOR]=$B27))*Dataset[2025/26 To - Spending review Topic 3])","v":0},0]
["Spending review topic 3","GFL",null,null,null,null,"General fuel levy ",{"$f":"SUMPRODUCT(((Dataset[DOR]=$B28))*Dataset[2023/24 From - Spending review Topic 3])+SUMPRODUCT(((Dataset[DOR]=$B28))*Dataset[2023/24 To - Spending review Topic 3])","v":0},{"$f":"SUMPRODUCT(((Dataset[DOR]=$B28))*Dataset[2024/25 From - Spending review Topic 3])+SUMPRODUCT(((Dataset[DOR]=$B28))*Dataset[2024/25 To - Spending review Topic 3])","v":0},{"$f":"SUMPRODUCT(((Dataset[DOR]=$B28))*Dataset[2025/26 From - Spending review Topic 3])+SUMPRODUCT(((Dataset[DOR]=$B28))*Dataset[2025/26 To - Spending review Topic 3])","v":0},0]
[]
[]
[null,null,null,null,null,null,{"$f":"G3","v":"Spending review topic 3"}]
[{"$f":"$G$3","v":"Spending review topic 3"},0,null,null,null,null,null,{"$f":"MyYear5","v":"2023/24"},null,null,{"$f":"MyYear6","v":"2024/25"},null,null,{"$f":"MyYear7","v":"2025/26"},null,null,"Total over MTEF"]
[{"$f":"$G$3","v":"Spending review topic 3"},0,null,null,null,null,"Rand thousand","From","To","Total change","From","To","Total change","From","To","Total change","From","To","Total change"]
["Spending review topic 3",0,null,null,null,null,"Economic classification"]
["Spending review topic 3",0,null,null,null,null,"Current payments",{"$f":"SUM(H36:H38)","v":0},0,0,0,0,0,0,0,0,0,0,0]
["Spending review topic 3",0,null,null,null,null,"Compensation of employees",{"$f":"SUMPRODUCT(((Dataset[Econ3]=$G36))*Dataset[2023/24 From - Spending review Topic 3]*$B$3)","v":0},{"$f":"SUMPRODUCT(((Dataset[Econ3]=$G36))*Dataset[2023/24 To - Spending review Topic 3]*$B$3)","v":0},{"$f":"H36+I36","v":0},{"$f":"SUMPRODUCT(((Dataset[Econ3]=$G36))*Dataset[2024/25 From - Spending review Topic 3]*$B$3)","v":0},{"$f":"SUMPRODUCT(((Dataset[Econ3]=$G36))*Dataset[2024/25 To - Spending review Topic 3]*$B$3)","v":0},{"$f":"K36+L36","v":0},{"$f":"SUMPRODUCT(((Dataset[Econ3]=$G36))*Dataset[2025/26 From - Spending review Topic 3]*$B$3)","v":0},{"$f":"SUMPRODUCT(((Dataset[Econ3]=$G36))*Dataset[2025/26 To - Spending review Topic 3]*$B$3)","v":0},{"$f":"N36+O36","v":0},{"$f":"SUM(H36,K36,N36)","v":0},0,0]
["Spending review topic 3",0,null,null,null,null,"Goods and services",{"$f":"SUMPRODUCT(((Dataset[Econ3]=$G37))*Dataset[2023/24 From - Spending review Topic 3]*$B$3)","v":0},{"$f":"SUMPRODUCT(((Dataset[Econ3]=$G37))*Dataset[2023/24 To - Spending review Topic 3]*$B$3)","v":0},0,{"$f":"SUMPRODUCT(((Dataset[Econ3]=$G37))*Dataset[2024/25 From - Spending review Topic 3]*$B$3)","v":0},{"$f":"SUMPRODUCT(((Dataset[Econ3]=$G37))*Dataset[2024/25 To - Spending review Topic 3]*$B$3)","v":0},0,{"$f":"SUMPRODUCT(((Dataset[Econ3]=$G37))*Dataset[2025/26 From - Spending review Topic 3]*$B$3)","v":0},{"$f":"SUMPRODUCT(((Dataset[Econ3]=$G37))*Dataset[2025/26 To - Spending review Topic 3]*$B$3)","v":0},0,0,0,0]
["Spending review topic 3",0,null,null,null,null,"Interest and rent on land",{"$f":"SUMPRODUCT(((Dataset[Econ3]=$G38))*Dataset[2023/24 From - Spending review Topic 3]*$B$3)","v":0},{"$f":"SUMPRODUCT(((Dataset[Econ3]=$G38))*Dataset[2023/24 To - Spending review Topic 3]*$B$3)","v":0},0,{"$f":"SUMPRODUCT(((Dataset[Econ3]=$G38))*Dataset[2024/25 From - Spending review Topic 3]*$B$3)","v":0},{"$f":"SUMPRODUCT(((Dataset[Econ3]=$G38))*Dataset[2024/25 To - Spending review Topic 3]*$B$3)","v":0},0,{"$f":"SUMPRODUCT(((Dataset[Econ3]=$G38))*Dataset[2025/26 From - Spending review Topic 3]*$B$3)","v":0},{"$f":"SUMPRODUCT(((Dataset[Econ3]=$G38))*Dataset[2025/26 To - Spending review Topic 3]*$B$3)","v":0},0,0,0,0]
["Spending review topic 3",0,null,null,null,null,"Transfers and subsidies",{"$f":"SUM(H40,H43,H46:H48,H51:H52)","v":0},0,0,0,0,0,0,0,0,0,0,0]
["Spending review topic 3",0,null,null,null,null,"Provinces and municipalities",{"$f":"SUM(H41:H42)","v":0},0,0,0,0,0,0,0,0,0,0,0]
["Spending review topic 3",0,null,null,null,null,"Provinces",{"$f":"SUMPRODUCT(((Dataset[Econ4]=$G41))*Dataset[2023/24 From - Spending review Topic 3]*$B$3)","v":0},{"$f":"SUMPRODUCT(((Dataset[Econ4]=$G41))*Dataset[2023/24 To - Spending review Topic 3]*$B$3)","v":0},{"$f":"H41+I41","v":0},{"$f":"SUMPRODUCT(((Dataset[Econ4]=$G41))*Dataset[2024/25 From - Spending review Topic 3]*$B$3)","v":0},{"$f":"SUMPRODUCT(((Dataset[Econ4]=$G41))*Dataset[2024/25 To - Spending review Topic 3]*$B$3)","v":0},{"$f":"K41+L41","v":0},{"$f":"SUMPRODUCT(((Dataset[Econ4]=$G41))*Dataset[2025/26 From - Spending review Topic 3]*$B$3)","v":0},{"$f":"SUMPRODUCT(((Dataset[Econ4]=$G41))*Dataset[2025/26 To - Spending review Topic 3]*$B$3)","v":0},{"$f":"N41+O41","v":0},{"$f":"SUM(H41,K41,N41)","v":0},0,0]
["Spending review topic 3",0,null,null,null,null,"Municipalities",{"$f":"SUMPRODUCT(((Dataset[Econ4]=$G42))*Dataset[2023/24 From - Spending review Topic 3]*$B$3)","v":0},{"$f":"SUMPRODUCT(((Dataset[Econ4]=$G42))*Dataset[2023/24 To - Spending review Topic 3]*$B$3)","v":0},0,{"$f":"SUMPRODUCT(((Dataset[Econ4]=$G42))*Dataset[2024/25 From - Spending review Topic 3]*$B$3)","v":0},{"$f":"SUMPRODUCT(((Dataset[Econ4]=$G42))*Dataset[2024/25 To - Spending review Topic 3]*$B$3)","v":0},0,{"$f":"SUMPRODUCT(((Dataset[Econ4]=$G42))*Dataset[2025/26 From - Spending review Topic 3]*$B$3)","v":0},{"$f":"SUMPRODUCT(((Dataset[Econ4]=$G42))*Dataset[2025/26 To - Spending review Topic 3]*$B$3)","v":0},0,0,0,0]
["Spending review topic 3",0,null,null,null,null,"Departmental agencies and accounts",{"$f":"SUM(H44:H45)","v":0},0,0,0,0,0,0,0,0,0,0,0]
["Spending review topic 3",0,null,null,null,null,"Social security funds",{"$f":"SUMPRODUCT(((Dataset[Econ4]=$G44))*Dataset[2023/24 From - Spending review Topic 3]*$B$3)","v":0},{"$f":"SUMPRODUCT(((Dataset[Econ4]=$G44))*Dataset[2023/24 To - Spending review Topic 3]*$B$3)","v":0},{"$f":"H44+I44","v":0},{"$f":"SUMPRODUCT(((Dataset[Econ4]=$G44))*Dataset[2024/25 From - Spending review Topic 3]*$B$3)","v":0},{"$f":"SUMPRODUCT(((Dataset[Econ4]=$G44))*Dataset[2024/25 To - Spending review Topic 3]*$B$3)","v":0},{"$f":"K44+L44","v":0},{"$f":"SUMPRODUCT(((Dataset[Econ4]=$G44))*Dataset[2025/26 From - Spending review Topic 3]*$B$3)","v":0},{"$f":"SUMPRODUCT(((Dataset[Econ4]=$G44))*Dataset[2025/26 To - Spending review Topic 3]*$B$3)","v":0},{"$f":"N44+O44","v":0},{"$f":"SUM(H44,K44,N44)","v":0},0,0]
["Spending review topic 3",0,null,null,null,null,"Departmental agencies (non-business entities)",{"$f":"SUMPRODUCT(((Dataset[Econ4]=$G45))*Dataset[2023/24 From - Spending review Topic 3]*$B$3)","v":0},{"$f":"SUMPRODUCT(((Dataset[Econ4]=$G45))*Dataset[2023/24 To - Spending review Topic 3]*$B$3)","v":0},0,{"$f":"SUMPRODUCT(((Dataset[Econ4]=$G45))*Dataset[2024/25 From - Spending review Topic 3]*$B$3)","v":0},{"$f":"SUMPRODUCT(((Dataset[Econ4]=$G45))*Dataset[2024/25 To - Spending review Topic 3]*$B$3)","v":0},0,{"$f":"SUMPRODUCT(((Dataset[Econ4]=$G45))*Dataset[2025/26 From - Spending review Topic 3]*$B$3)","v":0},{"$f":"SUMPRODUCT(((Dataset[Econ4]=$G45))*Dataset[2025/26 To - Spending review Topic 3]*$B$3)","v":0},0,0,0,0]
["Spending review topic 3",0,null,null,null,null,"Higher education institutions",{"$f":"SUMPRODUCT(((Dataset[Econ3]=$G46))*Dataset[2023/24 From - Spending review Topic 3]*$B$3)","v":0},{"$f":"SUMPRODUCT(((Dataset[Econ3]=$G46))*Dataset[2023/24 To - Spending review Topic 3]*$B$3)","v":0},0,{"$f":"SUMPRODUCT(((Dataset[Econ3]=$G46))*Dataset[2024/25 From - Spending review Topic 3]*$B$3)","v":0},{"$f":"SUMPRODUCT(((Dataset[Econ3]=$G46))*Dataset[2024/25 To - Spending review Topic 3]*$B$3)","v":0},0,{"$f":"SUMPRODUCT(((Dataset[Econ3]=$G46))*Dataset[2025/26 From - Spending review Topic 3]*$B$3)","v":0},{"$f":"SUMPRODUCT(((Dataset[Econ3]=$G46))*Dataset[2025/26 To - Spending review Topic 3]*$B$3)","v":0},0,0,0,0]
["Spending review topic 3",0,null,null,null,null,"Foreign governments and international organisations",{"$f":"SUMPRODUCT(((Dataset[Econ3]=$G47))*Dataset[2023/24 From - Spending review Topic 3]*$B$3)","v":0},{"$f":"SUMPRODUCT(((Dataset[Econ3]=$G47))*Dataset[2023/24 To - Spending review Topic 3]*$B$3)","v":0},0,{"$f":"SUMPRODUCT(((Dataset[Econ3]=$G47))*Dataset[2024/25 From - Spending review Topic 3]*$B$3)","v":0},{"$f":"SUMPRODUCT(((Dataset[Econ3]=$G47))*Dataset[2024/25 To - Spending review Topic 3]*$B$3)","v":0},0,{"$f":"SUMPRODUCT(((Dataset[Econ3]=$G47))*Dataset[2025/26 From - Spending review Topic 3]*$B$3)","v":0},{"$f":"SUMPRODUCT(((Dataset[Econ3]=$G47))*Dataset[2025/26 To - Spending review Topic 3]*$B$3)","v":0},0,0,0,0]
["Spending review topic 3",0,null,null,null,null,"Public corporations and private enterprises",{"$f":"SUM(H49:H50)","v":0},0,0,0,0,0,0,0,0,0,0,0]
["Spending review topic 3",0,null,null,null,null,"Public corporations",{"$f":"SUMPRODUCT(((Dataset[Econ4]=$G49))*Dataset[2023/24 From - Spending review Topic 3]*$B$3)","v":0},{"$f":"SUMPRODUCT(((Dataset[Econ4]=$G49))*Dataset[2023/24 To - Spending review Topic 3]*$B$3)","v":0},{"$f":"H49+I49","v":0},{"$f":"SUMPRODUCT(((Dataset[Econ4]=$G49))*Dataset[2024/25 From - Spending review Topic 3]*$B$3)","v":0},{"$f":"SUMPRODUCT(((Dataset[Econ4]=$G49))*Dataset[2024/25 To - Spending review Topic 3]*$B$3)","v":0},{"$f":"K49+L49","v":0},{"$f":"SUMPRODUCT(((Dataset[Econ4]=$G49))*Dataset[2025/26 From - Spending review Topic 3]*$B$3)","v":0},{"$f":"SUMPRODUCT(((Dataset[Econ4]=$G49))*Dataset[2025/26 To - Spending review Topic 3]*$B$3)","v":0},{"$f":"N49+O49","v":0},{"$f":"SUM(H49,K49,N49)","v":0},0,0]
["Spending review topic 3",0,null,null,null,null,"Private enterprises",{"$f":"SUMPRODUCT(((Dataset[Econ4]=$G50))*Dataset[2023/24 From - Spending review Topic 3]*$B$3)","v":0},{"$f":"SUMPRODUCT(((Dataset[Econ4]=$G50))*Dataset[2023/24 To - Spending review Topic 3]*$B$3)","v":0},0,{"$f":"SUMPRODUCT(((Dataset[Econ4]=$G50))*Dataset[2024/25 From - Spending review Topic 3]*$B$3)","v":0},{"$f":"SUMPRODUCT(((Dataset[Econ4]=$G50))*Dataset[2024/25 To - Spending review Topic 3]*$B$3)","v":0},0,{"$f":"SUMPRODUCT(((Dataset[Econ4]=$G50))*Dataset[2025/26 From - Spending review Topic 3]*$B$3)","v":0},{"$f":"SUMPRODUCT(((Dataset[Econ4]=$G50))*Dataset[2025/26 To - Spending review Topic 3]*$B$3)","v":0},0,0,0,0]
["Spending review topic 3",0,null,null,null,null,"Non-profit institutions",{"$f":"SUMPRODUCT(((Dataset[Econ3]=$G51))*Dataset[2023/24 From - Spending review Topic 3]*$B$3)","v":0},{"$f":"SUMPRODUCT(((Dataset[Econ3]=$G51))*Dataset[2023/24 To - Spending review Topic 3]*$B$3)","v":0},0,{"$f":"SUMPRODUCT(((Dataset[Econ3]=$G51))*Dataset[2024/25 From - Spending review Topic 3]*$B$3)","v":0},{"$f":"SUMPRODUCT(((Dataset[Econ3]=$G51))*Dataset[2024/25 To - Spending review Topic 3]*$B$3)","v":0},0,{"$f":"SUMPRODUCT(((Dataset[Econ3]=$G51))*Dataset[2025/26 From - Spending review Topic 3]*$B$3)","v":0},{"$f":"SUMPRODUCT(((Dataset[Econ3]=$G51))*Dataset[2025/26 To - Spending review Topic 3]*$B$3)","v":0},0,0,0,0]
["Spending review topic 3",0,null,null,null,null,"Households",{"$f":"SUM(H53:H54)","v":0},0,0,0,0,0,0,0,0,0,0,0]
["Spending review topic 3",0,null,null,null,null,"Social benefits",{"$f":"SUMPRODUCT(((Dataset[Econ4]=$G53))*Dataset[2023/24 From - Spending review Topic 3]*$B$3)","v":0},{"$f":"SUMPRODUCT(((Dataset[Econ4]=$G53))*Dataset[2023/24 To - Spending review Topic 3]*$B$3)","v":0},{"$f":"H53+I53","v":0},{"$f":"SUMPRODUCT(((Dataset[Econ4]=$G53))*Dataset[2024/25 From - Spending review Topic 3]*$B$3)","v":0},{"$f":"SUMPRODUCT(((Dataset[Econ4]=$G53))*Dataset[2024/25 To - Spending review Topic 3]*$B$3)","v":0},{"$f":"K53+L53","v":0},{"$f":"SUMPRODUCT(((Dataset[Econ4]=$G53))*Dataset[2025/26 From - Spending review Topic 3]*$B$3)","v":0},{"$f":"SUMPRODUCT(((Dataset[Econ4]=$G53))*Dataset[2025/26 To - Spending review Topic 3]*$B$3)","v":0},{"$f":"N53+O53","v":0},{"$f":"SUM(H53,K53,N53)","v":0},0,0]
["Spending review topic 3",0,null,null,null,null,"Other transfers to households",{"$f":"SUMPRODUCT(((Dataset[Econ4]=$G54))*Dataset[2023/24 From - Spending review Topic 3]*$B$3)","v":0},{"$f":"SUMPRODUCT(((Dataset[Econ4]=$G54))*Dataset[2023/24 To - Spending review Topic 3]*$B$3)","v":0},0,{"$f":"SUMPRODUCT(((Dataset[Econ4]=$G54))*Dataset[2024/25 From - Spending review Topic 3]*$B$3)","v":0},{"$f":"SUMPRODUCT(((Dataset[Econ4]=$G54))*Dataset[2024/25 To - Spending review Topic 3]*$B$3)","v":0},0,{"$f":"SUMPRODUCT(((Dataset[Econ4]=$G54))*Dataset[2025/26 From - Spending review Topic 3]*$B$3)","v":0},{"$f":"SUMPRODUCT(((Dataset[Econ4]=$G54))*Dataset[2025/26 To - Spending review Topic 3]*$B$3)","v":0},0,0,0,0]
["Spending review topic 3",0,null,null,null,null,"Payments for capital assets",{"$f":"SUM(H56,H59,H62:H66)","v":0},0,0,0,0,0,0,0,0,0,0,0]
["Spending review topic 3",0,null,null,null,null,"Buildings and other fixed structures",{"$f":"SUM(H57:H58)","v":0},0,0,0,0,0,0,0,0,0,0,0]
["Spending review topic 3",0,null,null,null,null,"Buildings",{"$f":"SUMPRODUCT(((Dataset[Econ4]=$G57))*Dataset[2023/24 From - Spending review Topic 3]*$B$3)","v":0},{"$f":"SUMPRODUCT(((Dataset[Econ4]=$G57))*Dataset[2023/24 To - Spending review Topic 3]*$B$3)","v":0},{"$f":"H57+I57","v":0},{"$f":"SUMPRODUCT(((Dataset[Econ4]=$G57))*Dataset[2024/25 From - Spending review Topic 3]*$B$3)","v":0},{"$f":"SUMPRODUCT(((Dataset[Econ4]=$G57))*Dataset[2024/25 To - Spending review Topic 3]*$B$3)","v":0},{"$f":"K57+L57","v":0},{"$f":"SUMPRODUCT(((Dataset[Econ4]=$G57))*Dataset[2025/26 From - Spending review Topic 3]*$B$3)","v":0},{"$f":"SUMPRODUCT(((Dataset[Econ4]=$G57))*Dataset[2025/26 To - Spending review Topic 3]*$B$3)","v":0},{"$f":"N57+O57","v":0},{"$f":"SUM(H57,K57,N57)","v":0},0,0]
["Spending review topic 3",0,null,null,null,null,"Other fixed structures",{"$f":"SUMPRODUCT(((Dataset[Econ4]=$G58))*Dataset[2023/24 From - Spending review Topic 3]*$B$3)","v":0},{"$f":"SUMPRODUCT(((Dataset[Econ4]=$G58))*Dataset[2023/24 To - Spending review Topic 3]*$B$3)","v":0},0,{"$f":"SUMPRODUCT(((Dataset[Econ4]=$G58))*Dataset[2024/25 From - Spending review Topic 3]*$B$3)","v":0},{"$f":"SUMPRODUCT(((Dataset[Econ4]=$G58))*Dataset[2024/25 To - Spending review Topic 3]*$B$3)","v":0},0,{"$f":"SUMPRODUCT(((Dataset[Econ4]=$G58))*Dataset[2025/26 From - Spending review Topic 3]*$B$3)","v":0},{"$f":"SUMPRODUCT(((Dataset[Econ4]=$G58))*Dataset[2025/26 To - Spending review Topic 3]*$B$3)","v":0},0,0,0,0]
["Spending review topic 3",0,null,null,null,null,"Machinery and equipment",{"$f":"SUM(H60:H61)","v":0},0,0,0,0,0,0,0,0,0,0,0]
["Spending review topic 3",0,null,null,null,null,"Transport equipment",{"$f":"SUMPRODUCT(((Dataset[Econ4]=$G60))*Dataset[2023/24 From - Spending review Topic 3]*$B$3)","v":0},{"$f":"SUMPRODUCT(((Dataset[Econ4]=$G60))*Dataset[2023/24 To - Spending review Topic 3]*$B$3)","v":0},{"$f":"H60+I60","v":0},{"$f":"SUMPRODUCT(((Dataset[Econ4]=$G60))*Dataset[2024/25 From - Spending review Topic 3]*$B$3)","v":0},{"$f":"SUMPRODUCT(((Dataset[Econ4]=$G60))*Dataset[2024/25 To - Spending review Topic 3]*$B$3)","v":0},{"$f":"K60+L60","v":0},{"$f":"SUMPRODUCT(((Dataset[Econ4]=$G60))*Dataset[2025/26 From - Spending review Topic 3]*$B$3)","v":0},{"$f":"SUMPRODUCT(((Dataset[Econ4]=$G60))*Dataset[2025/26 To - Spending review Topic 3]*$B$3)","v":0},{"$f":"N60+O60","v":0},{"$f":"SUM(H60,K60,N60)","v":0},0,0]
["Spending review topic 3",0,null,null,null,null,"Other machinery and equipment",{"$f":"SUMPRODUCT(((Dataset[Econ4]=$G61))*Dataset[2023/24 From - Spending review Topic 3]*$B$3)","v":0},{"$f":"SUMPRODUCT(((Dataset[Econ4]=$G61))*Dataset[2023/24 To - Spending review Topic 3]*$B$3)","v":0},0,{"$f":"SUMPRODUCT(((Dataset[Econ4]=$G61))*Dataset[2024/25 From - Spending review Topic 3]*$B$3)","v":0},{"$f":"SUMPRODUCT(((Dataset[Econ4]=$G61))*Dataset[2024/25 To - Spending review Topic 3]*$B$3)","v":0},0,{"$f":"SUMPRODUCT(((Dataset[Econ4]=$G61))*Dataset[2025/26 From - Spending review Topic 3]*$B$3)","v":0},{"$f":"SUMPRODUCT(((Dataset[Econ4]=$G61))*Dataset[2025/26 To - Spending review Topic 3]*$B$3)","v":0},0,0,0,0]
["Spending review topic 3",0,null,null,null,null,"Heritage assets",{"$f":"SUMPRODUCT(((Dataset[Econ3]=$G62))*Dataset[2023/24 From - Spending review Topic 3]*$B$3)","v":0},{"$f":"SUMPRODUCT(((Dataset[Econ3]=$G62))*Dataset[2023/24 To - Spending review Topic 3]*$B$3)","v":0},0,{"$f":"SUMPRODUCT(((Dataset[Econ3]=$G62))*Dataset[2024/25 From - Spending review Topic 3]*$B$3)","v":0},{"$f":"SUMPRODUCT(((Dataset[Econ3]=$G62))*Dataset[2024/25 To - Spending review Topic 3]*$B$3)","v":0},0,{"$f":"SUMPRODUCT(((Dataset[Econ3]=$G62))*Dataset[2025/26 From - Spending review Topic 3]*$B$3)","v":0},{"$f":"SUMPRODUCT(((Dataset[Econ3]=$G62))*Dataset[2025/26 To - Spending review Topic 3]*$B$3)","v":0},0,0,0,0]
["Spending review topic 3",0,null,null,null,null,"Specialised military assets",{"$f":"SUMPRODUCT(((Dataset[Econ3]=$G63))*Dataset[2023/24 From - Spending review Topic 3]*$B$3)","v":0},{"$f":"SUMPRODUCT(((Dataset[Econ3]=$G63))*Dataset[2023/24 To - Spending review Topic 3]*$B$3)","v":0},0,{"$f":"SUMPRODUCT(((Dataset[Econ3]=$G63))*Dataset[2024/25 From - Spending review Topic 3]*$B$3)","v":0},{"$f":"SUMPRODUCT(((Dataset[Econ3]=$G63))*Dataset[2024/25 To - Spending review Topic 3]*$B$3)","v":0},0,{"$f":"SUMPRODUCT(((Dataset[Econ3]=$G63))*Dataset[2025/26 From - Spending review Topic 3]*$B$3)","v":0},{"$f":"SUMPRODUCT(((Dataset[Econ3]=$G63))*Dataset[2025/26 To - Spending review Topic 3]*$B$3)","v":0},0,0,0,0]
["Spending review topic 3",0,null,null,null,null,"Biological assets",{"$f":"SUMPRODUCT(((Dataset[Econ3]=$G64))*Dataset[2023/24 From - Spending review Topic 3]*$B$3)","v":0},{"$f":"SUMPRODUCT(((Dataset[Econ3]=$G64))*Dataset[2023/24 To - Spending review Topic 3]*$B$3)","v":0},0,{"$f":"SUMPRODUCT(((Dataset[Econ3]=$G64))*Dataset[2024/25 From - Spending review Topic 3]*$B$3)","v":0},{"$f":"SUMPRODUCT(((Dataset[Econ3]=$G64))*Dataset[2024/25 To - Spending review Topic 3]*$B$3)","v":0},0,{"$f":"SUMPRODUCT(((Dataset[Econ3]=$G64))*Dataset[2025/26 From - Spending review Topic 3]*$B$3)","v":0},{"$f":"SUMPRODUCT(((Dataset[Econ3]=$G64))*Dataset[2025/26 To - Spending review Topic 3]*$B$3)","v":0},0,0,0,0]
["Spending review topic 3",0,null,null,null,null,"Land and sub-soil assets",{"$f":"SUMPRODUCT(((Dataset[Econ3]=$G65))*Dataset[2023/24 From - Spending review Topic 3]*$B$3)","v":0},{"$f":"SUMPRODUCT(((Dataset[Econ3]=$G65))*Dataset[2023/24 To - Spending review Topic 3]*$B$3)","v":0},0,{"$f":"SUMPRODUCT(((Dataset[Econ3]=$G65))*Dataset[2024/25 From - Spending review Topic 3]*$B$3)","v":0},{"$f":"SUMPRODUCT(((Dataset[Econ3]=$G65))*Dataset[2024/25 To - Spending review Topic 3]*$B$3)","v":0},0,{"$f":"SUMPRODUCT(((Dataset[Econ3]=$G65))*Dataset[2025/26 From - Spending review Topic 3]*$B$3)","v":0},{"$f":"SUMPRODUCT(((Dataset[Econ3]=$G65))*Dataset[2025/26 To - Spending review Topic 3]*$B$3)","v":0},0,0,0,0]
["Spending review topic 3",0,null,null,null,null,"Software and other intangible assets",{"$f":"SUMPRODUCT(((Dataset[Econ3]=$G66))*Dataset[2023/24 From - Spending review Topic 3]*$B$3)","v":0},{"$f":"SUMPRODUCT(((Dataset[Econ3]=$G66))*Dataset[2023/24 To - Spending review Topic 3]*$B$3)","v":0},0,{"$f":"SUMPRODUCT(((Dataset[Econ3]=$G66))*Dataset[2024/25 From - Spending review Topic 3]*$B$3)","v":0},{"$f":"SUMPRODUCT(((Dataset[Econ3]=$G66))*Dataset[2024/25 To - Spending review Topic 3]*$B$3)","v":0},0,{"$f":"SUMPRODUCT(((Dataset[Econ3]=$G66))*Dataset[2025/26 From - Spending review Topic 3]*$B$3)","v":0},{"$f":"SUMPRODUCT(((Dataset[Econ3]=$G66))*Dataset[2025/26 To - Spending review Topic 3]*$B$3)","v":0},0,0,0,0]
["Spending review topic 3",0,null,null,null,null,"Payments for financial assets",{"$f":"SUMPRODUCT(((Dataset[Econ3]=$G67))*Dataset[2023/24 From - Spending review Topic 3]*$B$3)","v":0},{"$f":"SUMPRODUCT(((Dataset[Econ3]=$G67))*Dataset[2023/24 To - Spending review Topic 3]*$B$3)","v":0},0,{"$f":"SUMPRODUCT(((Dataset[Econ3]=$G67))*Dataset[2024/25 From - Spending review Topic 3]*$B$3)","v":0},{"$f":"SUMPRODUCT(((Dataset[Econ3]=$G67))*Dataset[2024/25 To - Spending review Topic 3]*$B$3)","v":0},0,{"$f":"SUMPRODUCT(((Dataset[Econ3]=$G67))*Dataset[2025/26 From - Spending review Topic 3]*$B$3)","v":0},{"$f":"SUMPRODUCT(((Dataset[Econ3]=$G67))*Dataset[2025/26 To - Spending review Topic 3]*$B$3)","v":0},0,0,0,0]
["Spending review topic 3",0,null,null,null,null,"Total",{"$f":"SUM(H35,H39,H55,H67)","v":0},0,0,0,0,0,0,0,0,0,0,0]
[]
[]
[]
[]
[null,null,null,null,null,null,{"$f":"\"IMPACT OF ADJUSTMENTS: \" &UPPER($G$3)","v":"IMPACT OF ADJUSTMENTS: SPENDING REVIEW TOPIC 3"}]
[]
[null,null,null,null,null,1,"Impact of adjustments on expenditure"]
[{"$f":"$G$3","v":"Spending review topic 3"},5,null,null,null,null,null,{"$f":"MyYear4","v":"2022/23"},null,null,{"$f":"MyYear5","v":"2023/24"},null,null,{"$f":"MyYear6","v":"2024/25"},null,null,{"$f":"MyYear7","v":"2025/26"}]
["Spending review topic 3",5,null,null,null,null,"Salary level","Current expenditure","Potential expenditure @ benchmark level","% Savings if benchmark is achieved","Original number","Change in expenditure","Saving as % of original number","Original number","Change in expenditure","Saving as % of original number","Original number","Change in expenditure","Saving as % of original number"]
["Spending review topic 3",5,null,null,null,null,"Total",null,null,{"$f":"IFERROR((H78-I78)/-H78,\"\")","v":""},null,null,{"$f":"IFERROR((K78-L78)/-K78,\"\")","v":""},null,null,{"$f":"IFERROR((N78-O78)/-N78,\"\")","v":""},null,null,{"$f":"IFERROR((Q78-R78)/-Q78,\"\")","v":""}]
[]
[]
[]
[]
[]
[null,null,null,null,null,2,"Summary of impact on service delivery/policy area due to adjustments"]
[{"$f":"$G$3","v":"Spending review topic 3"},1]
["Spending review topic 3",1]
["Spending review topic 3",1]
["Spending review topic 3",1]
["Spending review topic 3",1]
["Spending review topic 3",1]
["Spending review topic 3",1]
["Spending review topic 3",1]
["Spending review topic 3",1]
["Spending review topic 3",1]
["Spending review topic 3",1]
["Spending review topic 3",1]
["Spending review topic 3",1]
["Spending review topic 3",1]
["Spending review topic 3",1]
[]
[]
[]
[]
[]
[null,null,null,null,null,3,"Impact of adjustments on performance indicators"]
[{"$f":"$G$3","v":"Spending review topic 3"},2,null,null,null,null,null,{"$f":"MyYear4","v":"2022/23"},null,null,{"$f":"MyYear5","v":"2023/24"},null,null,{"$f":"MyYear6","v":"2024/25"},null,null,{"$f":"MyYear7","v":"2025/26"},null,null," Comment",null,null,null,null,"Related MTSF Priority"]
["Spending review topic 3",2,null,null,null,null,"Performance indicator","Current performance","Performance @ benchmark level","Change","Original target","Revised target","Change","Original target","Revised target","Change","Original target","Revised target","Change"]
["Spending review topic 3",2]
["Spending review topic 3",2]
["Spending review topic 3",2]
["Spending review topic 3",2]
["Spending review topic 3",2]
["Spending review topic 3",2]
["Spending review topic 3",2]
["Spending review topic 3",2]
["Spending review topic 3",2]
["Spending review topic 3",2]
["Spending review topic 3",2]
["Spending review topic 3",2]
["Spending review topic 3",2]
["Spending review topic 3",2]
["Spending review topic 3",2]
[]
[]
[]
[]
[]
[null,null,null,null,null,4,"Impact of adjustments on personnel headcount numbers"]
[{"$f":"$G$3","v":"Spending review topic 3"},4,null,null,null,null,null,{"$f":"MyYear4","v":"2022/23"},null,null,{"$f":"MyYear5","v":"2023/24"},null,null,{"$f":"MyYear6","v":"2024/25"},null,null,{"$f":"MyYear7","v":"2025/26"},null,null," Comment"]
["Spending review topic 3",4,null,null,null,null,"Salary level","Current number","Potential number if benchmark is achieved","Change in number","Original number","Revised number","Change in number","Original number","Revised number","Change in number","Original number","Revised number","Change in number"]
["Spending review topic 3",4,null,null,null,null,1,null,null,{"$f":"I131-H131","v":0},null,null,{"$f":"L131-K131","v":0},null,null,{"$f":"O131-N131","v":0},null,null,{"$f":"R131-Q131","v":0}]
["Spending review topic 3",4,null,null,null,null,2,null,null,0,null,null,0,null,null,0,null,null,0]
["Spending review topic 3",4,null,null,null,null,3,null,null,0,null,null,0,null,null,0,null,null,0]
["Spending review topic 3",4,null,null,null,null,4,null,null,0,null,null,0,null,null,0,null,null,0]
["Spending review topic 3",4,null,null,null,null,5,null,null,0,null,null,0,null,null,0,null,null,0]
["Spending review topic 3",4,null,null,null,null,6,null,null,0,null,null,0,null,null,0,null,null,0]
["Spending review topic 3",4,null,null,null,null,7,null,null,0,null,null,0,null,null,0,null,null,0]
["Spending review topic 3",4,null,null,null,null,8,null,null,0,null,null,0,null,null,0,null,null,0]
["Spending review topic 3",4,null,null,null,null,9,null,null,0,null,null,0,null,null,0,null,null,0]
["Spending review topic 3",4,null,null,null,null,10,null,null,0,null,null,0,null,null,0,null,null,0]
["Spending review topic 3",4,null,null,null,null,11,null,null,0,null,null,0,null,null,0,null,null,0]
["Spending review topic 3",4,null,null,null,null,12,null,null,0,null,null,0,null,null,0,null,null,0]
["Spending review topic 3",4,null,null,null,null,13,null,null,0,null,null,0,null,null,0,null,null,0]
["Spending review topic 3",4,null,null,null,null,14,null,null,0,null,null,0,null,null,0,null,null,0]
["Spending review topic 3",4,null,null,null,null,15,null,null,0,null,null,0,null,null,0,null,null,0]
["Spending review topic 3",4,null,null,null,null,16,null,null,0,null,null,0,null,null,0,null,null,0]
["Spending review topic 3",4,null,null,null,null,"Other",null,null,0,null,null,0,null,null,0,null,null,0]
["Spending review topic 3",4,null,null,null,null,"Other",null,null,0,null,null,0,null,null,0,null,null,0]
["Spending review topic 3",4,null,null,null,null,"Other",null,null,0,null,null,0,null,null,0,null,null,0]
["Spending review topic 3",4,null,null,null,null,"Other",null,null,0,null,null,0,null,null,0,null,null,0]
["Spending review topic 3",4,null,null,null,null,"Total",{"$f":"SUM(H131:H150)","v":0},0,0,{"$f":"SUM(K131:K150)","v":0},0,0,0,0,0,0,0,0]
[]
[]
[]
[]
[]
[null,null,null,null,null,5,"Impact of adjustments on infrastructure projects"]
[{"$f":"$G$3","v":"Spending review topic 3"},3,null,null,null,null,null,{"$f":"MyYear4","v":"2022/23"},null,null,{"$f":"MyYear5","v":"2023/24"},null,null,{"$f":"MyYear6","v":"2024/25"},null,null,{"$f":"MyYear7","v":"2025/26"},null,null," Comment"]
["Spending review topic 3",3,null,null,null,null,"Project name","Current number","Market or best in class benchmark","Change","Original amount","Revised amount","Change","Original amount","Revised amount","Change","Original amount","Revised amount","Change"]
["Spending review topic 3",3,null,null,null,null,null,null,null,{"$f":"I160-H160","v":0},null,null,{"$f":"L160-K160","v":0},null,null,{"$f":"O160-N160","v":0},null,null,{"$f":"R160-Q160","v":0}]
["Spending review topic 3",3,null,null,null,null,null,null,null,0,null,null,0,null,null,0,null,null,0]
["Spending review topic 3",3,null,null,null,null,null,null,null,0,null,null,0,null,null,0,null,null,0]
["Spending review topic 3",3,null,null,null,null,null,null,null,0,null,null,0,null,null,0,null,null,0]
["Spending review topic 3",3,null,null,null,null,null,null,null,0,null,null,0,null,null,0,null,null,0]
["Spending review topic 3",3,null,null,null,null,null,null,null,0,null,null,0,null,null,0,null,null,0]
["Spending review topic 3",3,null,null,null,null,null,null,null,0,null,null,0,null,null,0,null,null,0]
["Spending review topic 3",3,null,null,null,null,null,null,null,0,null,null,0,null,null,0,null,null,0]
["Spending review topic 3",3,null,null,null,null,null,null,null,0,null,null,0,null,null,0,null,null,0]
["Spending review topic 3",3,null,null,null,null,null,null,null,0,null,null,0,null,null,0,null,null,0]
["Spending review topic 3",3,null,null,null,null,null,null,null,0,null,null,0,null,null,0,null,null,0]
["Spending review topic 3",3,null,null,null,null,null,null,null,0,null,null,0,null,null,0,null,null,0]
["Spending review topic 3",3,null,null,null,null,null,null,null,0,null,null,0,null,null,0,null,null,0]
["Spending review topic 3",3,null,null,null,null,null,null,null,0,null,null,0,null,null,0,null,null,0]
["Spending review topic 3",3,null,null,null,null,null,null,null,0,null,null,0,null,null,0,null,null,0]
["Spending review topic 3",3,null,null,null,null,null,null,null,0,null,null,0,null,null,0,null,null,0]
["Spending review topic 3",3,null,null,null,null,null,null,null,0,null,null,0,null,null,0,null,null,0]
["Spending review topic 3",3,null,null,null,null,null,null,null,0,null,null,0,null,null,0,null,null,0]
["Spending review topic 3",3,null,null,null,null,null,null,null,0,null,null,0,null,null,0,null,null,0]
["Spending review topic 3",3,null,null,null,null,null,null,null,0,null,null,0,null,null,0,null,null,0]
["Spending review topic 3",3,null,null,null,null,null,null,null,0,null,null,0,null,null,0,null,null,0]
["Spending review topic 3",3,null,null,null,null,null,null,null,0,null,null,0,null,null,0,null,null,0]
["Spending review topic 3",3,null,null,null,null,null,null,null,0,null,null,0,null,null,0,null,null,0]
["Spending review topic 3",3,null,null,null,null,null,null,null,0,null,null,0,null,null,0,null,null,0]
["Spending review topic 3",3,null,null,null,null,null,null,null,0,null,null,0,null,null,0,null,null,0]
["Spending review topic 3",3,null,null,null,null,null,null,null,0,null,null,0,null,null,0,null,null,0]
["Spending review topic 3",3,null,null,null,null,null,null,null,0,null,null,0,null,null,0,null,null,0]
["Spending review topic 3",3,null,null,null,null,null,null,null,0,null,null,0,null,null,0,null,null,0]
["Spending review topic 3",3,null,null,null,null,null,null,null,0,null,null,0,null,null,0,null,null,0]
["Spending review topic 3",3,null,null,null,null,null,null,null,0,null,null,0,null,null,0,null,null,0]
["Spending review topic 3",3,null,null,null,null,null,null,null,0,null,null,0,null,null,0,null,null,0]
["Spending review topic 3",3,null,null,null,null,null,null,null,0,null,null,0,null,null,0,null,null,0]
["Spending review topic 3",3,null,null,null,null,null,null,null,0,null,null,0,null,null,0,null,null,0]
["Spending review topic 3",3,null,null,null,null,null,null,null,0,null,null,0,null,null,0,null,null,0]
["Spending review topic 3",3,null,null,null,null,null,null,null,0,null,null,0,null,null,0,null,null,0]
["Spending review topic 3",3,null,null,null,null,null,null,null,0,null,null,0,null,null,0,null,null,0]
["Spending review topic 3",3,null,null,null,null,null,null,null,0,null,null,0,null,null,0,null,null,0]
["Spending review topic 3",3,null,null,null,null,null,null,null,0,null,null,0,null,null,0,null,null,0]
["Spending review topic 3",3,null,null,null,null,null,null,null,0,null,null,0,null,null,0,null,null,0]
["Spending review topic 3",3,null,null,null,null,null,null,null,0,null,null,0,null,null,0,null,null,0]
["Spending review topic 3",3,null,null,null,null,null,null,null,0,null,null,0,null,null,0,null,null,0]
["Spending review topic 3",3,null,null,null,null,null,null,null,0,null,null,0,null,null,0,null,null,0]
["Spending review topic 3",3,null,null,null,null,null,null,null,0,null,null,0,null,null,0,null,null,0]
["Spending review topic 3",3,null,null,null,null,null,null,null,0,null,null,0,null,null,0,null,null,0]
["Spending review topic 3",3,null,null,null,null,null,null,null,0,null,null,0,null,null,0,null,null,0]
["Spending review topic 3",3,null,null,null,null,null,null,null,0,null,null,0,null,null,0,null,null,0]
["Spending review topic 3",3,null,null,null,null,null,null,null,0,null,null,0,null,null,0,null,null,0]
["Spending review topic 3",3,null,null,null,null,null,null,null,0,null,null,0,null,null,0,null,null,0]
["Spending review topic 3",3,null,null,null,null,null,null,null,0,null,null,0,null,null,0,null,null,0]
["Spending review topic 3",3,null,null,null,null,null,null,null,0,null,null,0,null,null,0,null,null,0]
["Spending review topic 3",3,null,null,null,null,"Total",{"$f":"SUM(H160:H209)","v":0},0,0,0,0,0,0,0,0,0,0,0]

{"sheet":"SRT4","index":14,"n_rows":210,"n_cols":25,"rows_kept":210,"cut":false,"hidden":false,"merged":[[72,6,72,18],[84,6,98,18],[105,19,105,23],[105,24,105,26],[106,19,106,23],[106,24,106,26],[107,19,107,23],[107,24,107,26],[108,19,108,23],[108,24,108,26],[109,19,109,23],[109,24,109,26],[110,19,110,23],[110,24,110,26],[111,19,111,23],[111,24,111,26],[112,19,112,23],[112,24,112,26],[113,19,113,23],[113,24,113,26],[114,19,114,23],[114,24,114,26],[115,19,115,23],[115,24,115,26],[116,19,116,23],[116,24,116,26],[117,19,117,23],[117,24,117,26],[118,19,118,23],[118,24,118,26],[119,19,119,23],[119,24,119,26],[120,19,120,23],[120,24,120,26],[121,19,121,23],[121,24,121,26],[165,19,165,23],[128,19,128,23],[129,19,129,23],[130,19,149,23],[157,19,157,23],[158,19,158,23],[159,19,159,23],[160,19,160,23],[161,19,161,23],[162,19,162,23],[163,19,163,23],[164,19,164,23],[177,19,177,23],[166,19,166,23],[167,19,167,23],[168,19,168,23],[169,19,169,23],[170,19,170,23],[171,19,171,23],[172,19,172,23],[173,19,173,23],[174,19,174,23],[175,19,175,23],[176,19,176,23],[189,19,189,23],[178,19,178,23],[179,19,179,23],[180,19,180,23],[181,19,181,23],[182,19,182,23],[183,19,183,23],[184,19,184,23],[185,19,185,23],[186,19,186,23],[187,19,187,23],[188,19,188,23],[201,19,201,23],[190,19,190,23],[191,19,191,23],[192,19,192,23],[193,19,193,23],[194,19,194,23],[195,19,195,23],[196,19,196,23],[197,19,197,23],[198,19,198,23],[199,19,199,23],[200,19,200,23],[208,19,208,23],[202,19,202,23],[203,19,203,23],[204,19,204,23],[205,19,205,23],[206,19,206,23],[207,19,207,23]]}
[]
[null,null,null,null,null,null,"Spending review topic…"]
[null,{"$f":"IF(G3=\"\",0,1)","v":1},null,null,null,4,{"$f":"SRTopic4","v":"Spending review topic 4"}]
[]
[null,null,null,null,null,null,"Quick view…(Total change)",{"$f":"MyYear5","v":"2023/24"},{"$f":"MyYear6","v":"2024/25"},{"$f":"MyYear7","v":"2025/26"},"MTEF total","Trend"]
[null,null,null,null,null,null,"Compensation of employees",{"$f":"SUMPRODUCT(($G$35:$G$68=$G6)*($J$35:$J$68))","v":0},{"$f":"SUMPRODUCT(($G$35:$G$68=$G6)*($M$35:$M$68))","v":0},{"$f":"SUMPRODUCT(($G$35:$G$68=$G6)*($P$35:$P$68))","v":0},{"$f":"SUM(H6:J6)","v":0},null,null,"CoE"]
[null,null,null,null,null,null,"Goods and services",{"$f":"SUMPRODUCT(($G$35:$G$68=$G7)*($J$35:$J$68))","v":0},{"$f":"SUMPRODUCT(($G$35:$G$68=$G7)*($M$35:$M$68))","v":0},{"$f":"SUMPRODUCT(($G$35:$G$68=$G7)*($P$35:$P$68))","v":0},0,null,null,"G&S"]
[null,null,null,null,null,null,"Transfers and subsidies",{"$f":"SUMPRODUCT(($G$35:$G$68=$G8)*($J$35:$J$68))","v":0},{"$f":"SUMPRODUCT(($G$35:$G$68=$G8)*($M$35:$M$68))","v":0},{"$f":"SUMPRODUCT(($G$35:$G$68=$G8)*($P$35:$P$68))","v":0},0,null,null,"T&S"]
[null,null,null,null,null,null,"Payments for capital assets",{"$f":"SUMPRODUCT(($G$35:$G$68=$G9)*($J$35:$J$68))","v":0},{"$f":"SUMPRODUCT(($G$35:$G$68=$G9)*($M$35:$M$68))","v":0},{"$f":"SUMPRODUCT(($G$35:$G$68=$G9)*($P$35:$P$68))","v":0},0,null,null,"Capital"]
[null,null,null,null,null,null,"Total",{"$f":"SUMPRODUCT(($G$35:$G$68=$G10)*($J$35:$J$68))","v":0},{"$f":"SUMPRODUCT(($G$35:$G$68=$G10)*($M$35:$M$68))","v":0},{"$f":"SUMPRODUCT(($G$35:$G$68=$G10)*($P$35:$P$68))","v":0},0,null,null,"Total"]
[null,null,null,null,null,null,"% of MTEF total",null,null,null,null,null,null,null,null,null,null,null,{"$f":"MyYear5","v":"2023/24"},{"$f":"MyYear6","v":"2024/25"},{"$f":"MyYear7","v":"2025/26"}]
[null,null,null,null,null,null,"Compensation of employees",{"$f":"IFERROR(H6/$K6,\"\")","v":""},"","",null,null,null,null,null,null,null,{"$f":"G12","v":"Compensation of employees"},{"$f":"IF(H12>0.0595,H12,\"\")","v":""},"",""]
[null,null,null,null,null,null,"Goods and services","","","",null,null,null,null,null,null,null,{"$f":"G13","v":"Goods and services"},"","",""]
[null,null,null,null,null,null,"Transfers and subsidies","","","",null,null,null,null,null,null,null,{"$f":"G14","v":"Transfers and subsidies"},"","",""]
[null,null,null,null,null,null,"Payments for capital assets","","","",null,null,null,null,null,null,null,{"$f":"G15","v":"Payments for capital assets"},"","",""]
[]
[null,null,null,null,null,null,"Division of Revenue",{"$f":"MyYear5","v":"2023/24"},{"$f":"MyYear6","v":"2024/25"},{"$f":"MyYear7","v":"2025/26"},"MTEF total","Trend"]
[null,null,null,null,null,null,"National",{"$f":"SUM(H19:H21)","v":0},0,0,{"$f":"SUM(H18:J18)","v":0}]
[{"$f":"$G$3","v":"Spending review topic 4"},"NAT",null,null,null,null,"National (excl. indirect grants)",{"$f":"SUMPRODUCT(((Dataset[DOR]=$B19))*Dataset[2023/24 From - Spending review Topic 4])+SUMPRODUCT(((Dataset[DOR]=$B19))*Dataset[2023/24 To - Spending review Topic 4])","v":0},{"$f":"SUMPRODUCT(((Dataset[DOR]=$B19))*Dataset[2024/25 From - Spending review Topic 4])+SUMPRODUCT(((Dataset[DOR]=$B19))*Dataset[2024/25 To - Spending review Topic 4])","v":0},{"$f":"SUMPRODUCT(((Dataset[DOR]=$B19))*Dataset[2025/26 From - Spending review Topic 4])+SUMPRODUCT(((Dataset[DOR]=$B19))*Dataset[2025/26 To - Spending review Topic 4])","v":0},0]
["Spending review topic 4","IGP",null,null,null,null,"Provincial indirect grants",{"$f":"SUMPRODUCT(((Dataset[DOR]=$B20))*Dataset[2023/24 From - Spending review Topic 4])+SUMPRODUCT(((Dataset[DOR]=$B20))*Dataset[2023/24 To - Spending review Topic 4])","v":0},{"$f":"SUMPRODUCT(((Dataset[DOR]=$B20))*Dataset[2024/25 From - Spending review Topic 4])+SUMPRODUCT(((Dataset[DOR]=$B20))*Dataset[2024/25 To - Spending review Topic 4])","v":0},{"$f":"SUMPRODUCT(((Dataset[DOR]=$B20))*Dataset[2025/26 From - Spending review Topic 4])+SUMPRODUCT(((Dataset[DOR]=$B20))*Dataset[2025/26 To - Spending review Topic 4])","v":0},0]
["Spending review topic 4","IGM",null,null,null,null,"Local indirect grants",{"$f":"SUMPRODUCT(((Dataset[DOR]=$B21))*Dataset[2023/24 From - Spending review Topic 4])+SUMPRODUCT(((Dataset[DOR]=$B21))*Dataset[2023/24 To - Spending review Topic 4])","v":0},{"$f":"SUMPRODUCT(((Dataset[DOR]=$B21))*Dataset[2024/25 From - Spending review Topic 4])+SUMPRODUCT(((Dataset[DOR]=$B21))*Dataset[2024/25 To - Spending review Topic 4])","v":0},{"$f":"SUMPRODUCT(((Dataset[DOR]=$B21))*Dataset[2025/26 From - Spending review Topic 4])+SUMPRODUCT(((Dataset[DOR]=$B21))*Dataset[2025/26 To - Spending review Topic 4])","v":0},0]
["Spending review topic 4",null,null,null,null,null,"Provincial",{"$f":"SUMPRODUCT(((Dataset[DOR]=$B22))*Dataset[2023/24 From - Spending review Topic 4])+SUMPRODUCT(((Dataset[DOR]=$B22))*Dataset[2023/24 To - Spending review Topic 4])","v":0},{"$f":"SUMPRODUCT(((Dataset[DOR]=$B22))*Dataset[2024/25 From - Spending review Topic 4])+SUMPRODUCT(((Dataset[DOR]=$B22))*Dataset[2024/25 To - Spending review Topic 4])","v":0},{"$f":"SUMPRODUCT(((Dataset[DOR]=$B22))*Dataset[2025/26 From - Spending review Topic 4])+SUMPRODUCT(((Dataset[DOR]=$B22))*Dataset[2025/26 To - Spending review Topic 4])","v":0},0]
["Spending review topic 4","PES",null,null,null,null,"Provincial equitable share",{"$f":"SUMPRODUCT(((Dataset[DOR]=$B23))*Dataset[2023/24 From - Spending review Topic 4])+SUMPRODUCT(((Dataset[DOR]=$B23))*Dataset[2023/24 To - Spending review Topic 4])","v":0},{"$f":"SUMPRODUCT(((Dataset[DOR]=$B23))*Dataset[2024/25 From - Spending review Topic 4])+SUMPRODUCT(((Dataset[DOR]=$B23))*Dataset[2024/25 To - Spending review Topic 4])","v":0},{"$f":"SUMPRODUCT(((Dataset[DOR]=$B23))*Dataset[2025/26 From - Spending review Topic 4])+SUMPRODUCT(((Dataset[DOR]=$B23))*Dataset[2025/26 To - Spending review Topic 4])","v":0},0]
["Spending review topic 4","PCG",null,null,null,null,"Provincial conditional grants",{"$f":"SUMPRODUCT(((Dataset[DOR]=$B24))*Dataset[2023/24 From - Spending review Topic 4])+SUMPRODUCT(((Dataset[DOR]=$B24))*Dataset[2023/24 To - Spending review Topic 4])","v":0},{"$f":"SUMPRODUCT(((Dataset[DOR]=$B24))*Dataset[2024/25 From - Spending review Topic 4])+SUMPRODUCT(((Dataset[DOR]=$B24))*Dataset[2024/25 To - Spending review Topic 4])","v":0},{"$f":"SUMPRODUCT(((Dataset[DOR]=$B24))*Dataset[2025/26 From - Spending review Topic 4])+SUMPRODUCT(((Dataset[DOR]=$B24))*Dataset[2025/26 To - Spending review Topic 4])","v":0},0]
["Spending review topic 4",null,null,null,null,null,"Local government",{"$f":"SUMPRODUCT(((Dataset[DOR]=$B25))*Dataset[2023/24 From - Spending review Topic 4])+SUMPRODUCT(((Dataset[DOR]=$B25))*Dataset[2023/24 To - Spending review Topic 4])","v":0},{"$f":"SUMPRODUCT(((Dataset[DOR]=$B25))*Dataset[2024/25 From - Spending review Topic 4])+SUMPRODUCT(((Dataset[DOR]=$B25))*Dataset[2024/25 To - Spending review Topic 4])","v":0},{"$f":"SUMPRODUCT(((Dataset[DOR]=$B25))*Dataset[2025/26 From - Spending review Topic 4])+SUMPRODUCT(((Dataset[DOR]=$B25))*Dataset[2025/26 To - Spending review Topic 4])","v":0},0]
["Spending review topic 4","LES",null,null,null,null,"Local equitable share",{"$f":"SUMPRODUCT(((Dataset[DOR]=$B26))*Dataset[2023/24 From - Spending review Topic 4])+SUMPRODUCT(((Dataset[DOR]=$B26))*Dataset[2023/24 To - Spending review Topic 4])","v":0},{"$f":"SUMPRODUCT(((Dataset[DOR]=$B26))*Dataset[2024/25 From - Spending review Topic 4])+SUMPRODUCT(((Dataset[DOR]=$B26))*Dataset[2024/25 To - Spending review Topic 4])","v":0},{"$f":"SUMPRODUCT(((Dataset[DOR]=$B26))*Dataset[2025/26 From - Spending review Topic 4])+SUMPRODUCT(((Dataset[DOR]=$B26))*Dataset[2025/26 To - Spending review Topic 4])","v":0},0]
["Spending review topic 4","LCG",null,null,null,null,"Local conditional grants",{"$f":"SUMPRODUCT(((Dataset[DOR]=$B27))*Dataset[2023/24 From - Spending review Topic 4])+SUMPRODUCT(((Dataset[DOR]=$B27))*Dataset[2023/24 To - Spending review Topic 4])","v":0},{"$f":"SUMPRODUCT(((Dataset[DOR]=$B27))*Dataset[2024/25 From - Spending review Topic 4])+SUMPRODUCT(((Dataset[DOR]=$B27))*Dataset[2024/25 To - Spending review Topic 4])","v":0},{"$f":"SUMPRODUCT(((Dataset[DOR]=$B27))*Dataset[2025/26 From - Spending review Topic 4])+SUMPRODUCT(((Dataset[DOR]=$B27))*Dataset[2025/26 To - Spending review Topic 4])","v":0},0]
["Spending review topic 4","GFL",null,null,null,null,"General fuel levy ",{"$f":"SUMPRODUCT(((Dataset[DOR]=$B28))*Dataset[2023/24 From - Spending review Topic 4])+SUMPRODUCT(((Dataset[DOR]=$B28))*Dataset[2023/24 To - Spending review Topic 4])","v":0},{"$f":"SUMPRODUCT(((Dataset[DOR]=$B28))*Dataset[2024/25 From - Spending review Topic 4])+SUMPRODUCT(((Dataset[DOR]=$B28))*Dataset[2024/25 To - Spending review Topic 4])","v":0},{"$f":"SUMPRODUCT(((Dataset[DOR]=$B28))*Dataset[2025/26 From - Spending review Topic 4])+SUMPRODUCT(((Dataset[DOR]=$B28))*Dataset[2025/26 To - Spending review Topic 4])","v":0},0]
[]
[]
[null,null,null,null,null,null,{"$f":"G3","v":"Spending review topic 4"}]
[{"$f":"$G$3","v":"Spending review topic 4"},0,null,null,null,null,null,{"$f":"MyYear5","v":"2023/24"},null,null,{"$f":"MyYear6","v":"2024/25"},null,null,{"$f":"MyYear7","v":"2025/26"},null,null,"Total over MTEF"]
[{"$f":"$G$3","v":"Spending review topic 4"},0,null,null,null,null,"Rand thousand","From","To","Total change","From","To","Total change","From","To","Total change","From","To","Total change"]
["Spending review topic 4",0,null,null,null,null,"Economic classification"]
["Spending review topic 4",0,null,null,null,null,"Current payments",{"$f":"SUM(H36:H38)","v":0},0,0,0,0,0,0,0,0,0,0,0]
["Spending review topic 4",0,null,null,null,null,"Compensation of employees",{"$f":"SUMPRODUCT(((Dataset[Econ3]=$G36))*Dataset[2023/24 From - Spending review Topic 4]*$B$3)","v":0},{"$f":"SUMPRODUCT(((Dataset[Econ3]=$G36))*Dataset[2023/24 To - Spending review Topic 4]*$B$3)","v":0},{"$f":"H36+I36","v":0},{"$f":"SUMPRODUCT(((Dataset[Econ3]=$G36))*Dataset[2024/25 From - Spending review Topic 4]*$B$3)","v":0},{"$f":"SUMPRODUCT(((Dataset[Econ3]=$G36))*Dataset[2024/25 To - Spending review Topic 4]*$B$3)","v":0},{"$f":"K36+L36","v":0},{"$f":"SUMPRODUCT(((Dataset[Econ3]=$G36))*Dataset[2025/26 From - Spending review Topic 4]*$B$3)","v":0},{"$f":"SUMPRODUCT(((Dataset[Econ3]=$G36))*Dataset[2025/26 To - Spending review Topic 4]*$B$3)","v":0},{"$f":"N36+O36","v":0},{"$f":"SUM(H36,K36,N36)","v":0},0,0]
["Spending review topic 4",0,null,null,null,null,"Goods and services",{"$f":"SUMPRODUCT(((Dataset[Econ3]=$G37))*Dataset[2023/24 From - Spending review Topic 4]*$B$3)","v":0},{"$f":"SUMPRODUCT(((Dataset[Econ3]=$G37))*Dataset[2023/24 To - Spending review Topic 4]*$B$3)","v":0},0,{"$f":"SUMPRODUCT(((Dataset[Econ3]=$G37))*Dataset[2024/25 From - Spending review Topic 4]*$B$3)","v":0},{"$f":"SUMPRODUCT(((Dataset[Econ3]=$G37))*Dataset[2024/25 To - Spending review Topic 4]*$B$3)","v":0},0,{"$f":"SUMPRODUCT(((Dataset[Econ3]=$G37))*Dataset[2025/26 From - Spending review Topic 4]*$B$3)","v":0},{"$f":"SUMPRODUCT(((Dataset[Econ3]=$G37))*Dataset[2025/26 To - Spending review Topic 4]*$B$3)","v":0},0,0,0,0]
["Spending review topic 4",0,null,null,null,null,"Interest and rent on land",{"$f":"SUMPRODUCT(((Dataset[Econ3]=$G38))*Dataset[2023/24 From - Spending review Topic 4]*$B$3)","v":0},{"$f":"SUMPRODUCT(((Dataset[Econ3]=$G38))*Dataset[2023/24 To - Spending review Topic 4]*$B$3)","v":0},0,{"$f":"SUMPRODUCT(((Dataset[Econ3]=$G38))*Dataset[2024/25 From - Spending review Topic 4]*$B$3)","v":0},{"$f":"SUMPRODUCT(((Dataset[Econ3]=$G38))*Dataset[2024/25 To - Spending review Topic 4]*$B$3)","v":0},0,{"$f":"SUMPRODUCT(((Dataset[Econ3]=$G38))*Dataset[2025/26 From - Spending review Topic 4]*$B$3)","v":0},{"$f":"SUMPRODUCT(((Dataset[Econ3]=$G38))*Dataset[2025/26 To - Spending review Topic 4]*$B$3)","v":0},0,0,0,0]
["Spending review topic 4",0,null,null,null,null,"Transfers and subsidies",{"$f":"SUM(H40,H43,H46:H48,H51:H52)","v":0},0,0,0,0,0,0,0,0,0,0,0]
["Spending review topic 4",0,null,null,null,null,"Provinces and municipalities",{"$f":"SUM(H41:H42)","v":0},0,0,0,0,0,0,0,0,0,0,0]
["Spending review topic 4",0,null,null,null,null,"Provinces",{"$f":"SUMPRODUCT(((Dataset[Econ4]=$G41))*Dataset[2023/24 From - Spending review Topic 4]*$B$3)","v":0},{"$f":"SUMPRODUCT(((Dataset[Econ4]=$G41))*Dataset[2023/24 To - Spending review Topic 4]*$B$3)","v":0},{"$f":"H41+I41","v":0},{"$f":"SUMPRODUCT(((Dataset[Econ4]=$G41))*Dataset[2024/25 From - Spending review Topic 4]*$B$3)","v":0},{"$f":"SUMPRODUCT(((Dataset[Econ4]=$G41))*Dataset[2024/25 To - Spending review Topic 4]*$B$3)","v":0},{"$f":"K41+L41","v":0},{"$f":"SUMPRODUCT(((Dataset[Econ4]=$G41))*Dataset[2025/26 From - Spending review Topic 4]*$B$3)","v":0},{"$f":"SUMPRODUCT(((Dataset[Econ4]=$G41))*Dataset[2025/26 To - Spending review Topic 4]*$B$3)","v":0},{"$f":"N41+O41","v":0},{"$f":"SUM(H41,K41,N41)","v":0},0,0]
["Spending review topic 4",0,null,null,null,null,"Municipalities",{"$f":"SUMPRODUCT(((Dataset[Econ4]=$G42))*Dataset[2023/24 From - Spending review Topic 4]*$B$3)","v":0},{"$f":"SUMPRODUCT(((Dataset[Econ4]=$G42))*Dataset[2023/24 To - Spending review Topic 4]*$B$3)","v":0},0,{"$f":"SUMPRODUCT(((Dataset[Econ4]=$G42))*Dataset[2024/25 From - Spending review Topic 4]*$B$3)","v":0},{"$f":"SUMPRODUCT(((Dataset[Econ4]=$G42))*Dataset[2024/25 To - Spending review Topic 4]*$B$3)","v":0},0,{"$f":"SUMPRODUCT(((Dataset[Econ4]=$G42))*Dataset[2025/26 From - Spending review Topic 4]*$B$3)","v":0},{"$f":"SUMPRODUCT(((Dataset[Econ4]=$G42))*Dataset[2025/26 To - Spending review Topic 4]*$B$3)","v":0},0,0,0,0]
["Spending review topic 4",0,null,null,null,null,"Departmental agencies and accounts",{"$f":"SUM(H44:H45)","v":0},0,0,0,0,0,0,0,0,0,0,0]
["Spending review topic 4",0,null,null,null,null,"Social security funds",{"$f":"SUMPRODUCT(((Dataset[Econ4]=$G44))*Dataset[2023/24 From - Spending review Topic 4]*$B$3)","v":0},{"$f":"SUMPRODUCT(((Dataset[Econ4]=$G44))*Dataset[2023/24 To - Spending review Topic 4]*$B$3)","v":0},{"$f":"H44+I44","v":0},{"$f":"SUMPRODUCT(((Dataset[Econ4]=$G44))*Dataset[2024/25 From - Spending review Topic 4]*$B$3)","v":0},{"$f":"SUMPRODUCT(((Dataset[Econ4]=$G44))*Dataset[2024/25 To - Spending review Topic 4]*$B$3)","v":0},{"$f":"K44+L44","v":0},{"$f":"SUMPRODUCT(((Dataset[Econ4]=$G44))*Dataset[2025/26 From - Spending review Topic 4]*$B$3)","v":0},{"$f":"SUMPRODUCT(((Dataset[Econ4]=$G44))*Dataset[2025/26 To - Spending review Topic 4]*$B$3)","v":0},{"$f":"N44+O44","v":0},{"$f":"SUM(H44,K44,N44)","v":0},0,0]
["Spending review topic 4",0,null,null,null,null,"Departmental agencies (non-business entities)",{"$f":"SUMPRODUCT(((Dataset[Econ4]=$G45))*Dataset[2023/24 From - Spending review Topic 4]*$B$3)","v":0},{"$f":"SUMPRODUCT(((Dataset[Econ4]=$G45))*Dataset[2023/24 To - Spending review Topic 4]*$B$3)","v":0},0,{"$f":"SUMPRODUCT(((Dataset[Econ4]=$G45))*Dataset[2024/25 From - Spending review Topic 4]*$B$3)","v":0},{"$f":"SUMPRODUCT(((Dataset[Econ4]=$G45))*Dataset[2024/25 To - Spending review Topic 4]*$B$3)","v":0},0,{"$f":"SUMPRODUCT(((Dataset[Econ4]=$G45))*Dataset[2025/26 From - Spending review Topic 4]*$B$3)","v":0},{"$f":"SUMPRODUCT(((Dataset[Econ4]=$G45))*Dataset[2025/26 To - Spending review Topic 4]*$B$3)","v":0},0,0,0,0]
["Spending review topic 4",0,null,null,null,null,"Higher education institutions",{"$f":"SUMPRODUCT(((Dataset[Econ3]=$G46))*Dataset[2023/24 From - Spending review Topic 4]*$B$3)","v":0},{"$f":"SUMPRODUCT(((Dataset[Econ3]=$G46))*Dataset[2023/24 To - Spending review Topic 4]*$B$3)","v":0},0,{"$f":"SUMPRODUCT(((Dataset[Econ3]=$G46))*Dataset[2024/25 From - Spending review Topic 4]*$B$3)","v":0},{"$f":"SUMPRODUCT(((Dataset[Econ3]=$G46))*Dataset[2024/25 To - Spending review Topic 4]*$B$3)","v":0},0,{"$f":"SUMPRODUCT(((Dataset[Econ3]=$G46))*Dataset[2025/26 From - Spending review Topic 4]*$B$3)","v":0},{"$f":"SUMPRODUCT(((Dataset[Econ3]=$G46))*Dataset[2025/26 To - Spending review Topic 4]*$B$3)","v":0},0,0,0,0]
["Spending review topic 4",0,null,null,null,null,"Foreign governments and international organisations",{"$f":"SUMPRODUCT(((Dataset[Econ3]=$G47))*Dataset[2023/24 From - Spending review Topic 4]*$B$3)","v":0},{"$f":"SUMPRODUCT(((Dataset[Econ3]=$G47))*Dataset[2023/24 To - Spending review Topic 4]*$B$3)","v":0},0,{"$f":"SUMPRODUCT(((Dataset[Econ3]=$G47))*Dataset[2024/25 From - Spending review Topic 4]*$B$3)","v":0},{"$f":"SUMPRODUCT(((Dataset[Econ3]=$G47))*Dataset[2024/25 To - Spending review Topic 4]*$B$3)","v":0},0,{"$f":"SUMPRODUCT(((Dataset[Econ3]=$G47))*Dataset[2025/26 From - Spending review Topic 4]*$B$3)","v":0},{"$f":"SUMPRODUCT(((Dataset[Econ3]=$G47))*Dataset[2025/26 To - Spending review Topic 4]*$B$3)","v":0},0,0,0,0]
["Spending review topic 4",0,null,null,null,null,"Public corporations and private enterprises",{"$f":"SUM(H49:H50)","v":0},0,0,0,0,0,0,0,0,0,0,0]
["Spending review topic 4",0,null,null,null,null,"Public corporations",{"$f":"SUMPRODUCT(((Dataset[Econ4]=$G49))*Dataset[2023/24 From - Spending review Topic 4]*$B$3)","v":0},{"$f":"SUMPRODUCT(((Dataset[Econ4]=$G49))*Dataset[2023/24 To - Spending review Topic 4]*$B$3)","v":0},{"$f":"H49+I49","v":0},{"$f":"SUMPRODUCT(((Dataset[Econ4]=$G49))*Dataset[2024/25 From - Spending review Topic 4]*$B$3)","v":0},{"$f":"SUMPRODUCT(((Dataset[Econ4]=$G49))*Dataset[2024/25 To - Spending review Topic 4]*$B$3)","v":0},{"$f":"K49+L49","v":0},{"$f":"SUMPRODUCT(((Dataset[Econ4]=$G49))*Dataset[2025/26 From - Spending review Topic 4]*$B$3)","v":0},{"$f":"SUMPRODUCT(((Dataset[Econ4]=$G49))*Dataset[2025/26 To - Spending review Topic 4]*$B$3)","v":0},{"$f":"N49+O49","v":0},{"$f":"SUM(H49,K49,N49)","v":0},0,0]
["Spending review topic 4",0,null,null,null,null,"Private enterprises",{"$f":"SUMPRODUCT(((Dataset[Econ4]=$G50))*Dataset[2023/24 From - Spending review Topic 4]*$B$3)","v":0},{"$f":"SUMPRODUCT(((Dataset[Econ4]=$G50))*Dataset[2023/24 To - Spending review Topic 4]*$B$3)","v":0},0,{"$f":"SUMPRODUCT(((Dataset[Econ4]=$G50))*Dataset[2024/25 From - Spending review Topic 4]*$B$3)","v":0},{"$f":"SUMPRODUCT(((Dataset[Econ4]=$G50))*Dataset[2024/25 To - Spending review Topic 4]*$B$3)","v":0},0,{"$f":"SUMPRODUCT(((Dataset[Econ4]=$G50))*Dataset[2025/26 From - Spending review Topic 4]*$B$3)","v":0},{"$f":"SUMPRODUCT(((Dataset[Econ4]=$G50))*Dataset[2025/26 To - Spending review Topic 4]*$B$3)","v":0},0,0,0,0]
["Spending review topic 4",0,null,null,null,null,"Non-profit institutions",{"$f":"SUMPRODUCT(((Dataset[Econ3]=$G51))*Dataset[2023/24 From - Spending review Topic 4]*$B$3)","v":0},{"$f":"SUMPRODUCT(((Dataset[Econ3]=$G51))*Dataset[2023/24 To - Spending review Topic 4]*$B$3)","v":0},0,{"$f":"SUMPRODUCT(((Dataset[Econ3]=$G51))*Dataset[2024/25 From - Spending review Topic 4]*$B$3)","v":0},{"$f":"SUMPRODUCT(((Dataset[Econ3]=$G51))*Dataset[2024/25 To - Spending review Topic 4]*$B$3)","v":0},0,{"$f":"SUMPRODUCT(((Dataset[Econ3]=$G51))*Dataset[2025/26 From - Spending review Topic 4]*$B$3)","v":0},{"$f":"SUMPRODUCT(((Dataset[Econ3]=$G51))*Dataset[2025/26 To - Spending review Topic 4]*$B$3)","v":0},0,0,0,0]
["Spending review topic 4",0,null,null,null,null,"Households",{"$f":"SUM(H53:H54)","v":0},0,0,0,0,0,0,0,0,0,0,0]
["Spending review topic 4",0,null,null,null,null,"Social benefits",{"$f":"SUMPRODUCT(((Dataset[Econ4]=$G53))*Dataset[2023/24 From - Spending review Topic 4]*$B$3)","v":0},{"$f":"SUMPRODUCT(((Dataset[Econ4]=$G53))*Dataset[2023/24 To - Spending review Topic 4]*$B$3)","v":0},{"$f":"H53+I53","v":0},{"$f":"SUMPRODUCT(((Dataset[Econ4]=$G53))*Dataset[2024/25 From - Spending review Topic 4]*$B$3)","v":0},{"$f":"SUMPRODUCT(((Dataset[Econ4]=$G53))*Dataset[2024/25 To - Spending review Topic 4]*$B$3)","v":0},{"$f":"K53+L53","v":0},{"$f":"SUMPRODUCT(((Dataset[Econ4]=$G53))*Dataset[2025/26 From - Spending review Topic 4]*$B$3)","v":0},{"$f":"SUMPRODUCT(((Dataset[Econ4]=$G53))*Dataset[2025/26 To - Spending review Topic 4]*$B$3)","v":0},{"$f":"N53+O53","v":0},{"$f":"SUM(H53,K53,N53)","v":0},0,0]
["Spending review topic 4",0,null,null,null,null,"Other transfers to households",{"$f":"SUMPRODUCT(((Dataset[Econ4]=$G54))*Dataset[2023/24 From - Spending review Topic 4]*$B$3)","v":0},{"$f":"SUMPRODUCT(((Dataset[Econ4]=$G54))*Dataset[2023/24 To - Spending review Topic 4]*$B$3)","v":0},0,{"$f":"SUMPRODUCT(((Dataset[Econ4]=$G54))*Dataset[2024/25 From - Spending review Topic 4]*$B$3)","v":0},{"$f":"SUMPRODUCT(((Dataset[Econ4]=$G54))*Dataset[2024/25 To - Spending review Topic 4]*$B$3)","v":0},0,{"$f":"SUMPRODUCT(((Dataset[Econ4]=$G54))*Dataset[2025/26 From - Spending review Topic 4]*$B$3)","v":0},{"$f":"SUMPRODUCT(((Dataset[Econ4]=$G54))*Dataset[2025/26 To - Spending review Topic 4]*$B$3)","v":0},0,0,0,0]
["Spending review topic 4",0,null,null,null,null,"Payments for capital assets",{"$f":"SUM(H56,H59,H62:H66)","v":0},0,0,0,0,0,0,0,0,0,0,0]
["Spending review topic 4",0,null,null,null,null,"Buildings and other fixed structures",{"$f":"SUM(H57:H58)","v":0},0,0,0,0,0,0,0,0,0,0,0]
["Spending review topic 4",0,null,null,null,null,"Buildings",{"$f":"SUMPRODUCT(((Dataset[Econ4]=$G57))*Dataset[2023/24 From - Spending review Topic 4]*$B$3)","v":0},{"$f":"SUMPRODUCT(((Dataset[Econ4]=$G57))*Dataset[2023/24 To - Spending review Topic 4]*$B$3)","v":0},{"$f":"H57+I57","v":0},{"$f":"SUMPRODUCT(((Dataset[Econ4]=$G57))*Dataset[2024/25 From - Spending review Topic 4]*$B$3)","v":0},{"$f":"SUMPRODUCT(((Dataset[Econ4]=$G57))*Dataset[2024/25 To - Spending review Topic 4]*$B$3)","v":0},{"$f":"K57+L57","v":0},{"$f":"SUMPRODUCT(((Dataset[Econ4]=$G57))*Dataset[2025/26 From - Spending review Topic 4]*$B$3)","v":0},{"$f":"SUMPRODUCT(((Dataset[Econ4]=$G57))*Dataset[2025/26 To - Spending review Topic 4]*$B$3)","v":0},{"$f":"N57+O57","v":0},{"$f":"SUM(H57,K57,N57)","v":0},0,0]
["Spending review topic 4",0,null,null,null,null,"Other fixed structures",{"$f":"SUMPRODUCT(((Dataset[Econ4]=$G58))*Dataset[2023/24 From - Spending review Topic 4]*$B$3)","v":0},{"$f":"SUMPRODUCT(((Dataset[Econ4]=$G58))*Dataset[2023/24 To - Spending review Topic 4]*$B$3)","v":0},0,{"$f":"SUMPRODUCT(((Dataset[Econ4]=$G58))*Dataset[2024/25 From - Spending review Topic 4]*$B$3)","v":0},{"$f":"SUMPRODUCT(((Dataset[Econ4]=$G58))*Dataset[2024/25 To - Spending review Topic 4]*$B$3)","v":0},0,{"$f":"SUMPRODUCT(((Dataset[Econ4]=$G58))*Dataset[2025/26 From - Spending review Topic 4]*$B$3)","v":0},{"$f":"SUMPRODUCT(((Dataset[Econ4]=$G58))*Dataset[2025/26 To - Spending review Topic 4]*$B$3)","v":0},0,0,0,0]
["Spending review topic 4",0,null,null,null,null,"Machinery and equipment",{"$f":"SUM(H60:H61)","v":0},0,0,0,0,0,0,0,0,0,0,0]
["Spending review topic 4",0,null,null,null,null,"Transport equipment",{"$f":"SUMPRODUCT(((Dataset[Econ4]=$G60))*Dataset[2023/24 From - Spending review Topic 4]*$B$3)","v":0},{"$f":"SUMPRODUCT(((Dataset[Econ4]=$G60))*Dataset[2023/24 To - Spending review Topic 4]*$B$3)","v":0},{"$f":"H60+I60","v":0},{"$f":"SUMPRODUCT(((Dataset[Econ4]=$G60))*Dataset[2024/25 From - Spending review Topic 4]*$B$3)","v":0},{"$f":"SUMPRODUCT(((Dataset[Econ4]=$G60))*Dataset[2024/25 To - Spending review Topic 4]*$B$3)","v":0},{"$f":"K60+L60","v":0},{"$f":"SUMPRODUCT(((Dataset[Econ4]=$G60))*Dataset[2025/26 From - Spending review Topic 4]*$B$3)","v":0},{"$f":"SUMPRODUCT(((Dataset[Econ4]=$G60))*Dataset[2025/26 To - Spending review Topic 4]*$B$3)","v":0},{"$f":"N60+O60","v":0},{"$f":"SUM(H60,K60,N60)","v":0},0,0]
["Spending review topic 4",0,null,null,null,null,"Other machinery and equipment",{"$f":"SUMPRODUCT(((Dataset[Econ4]=$G61))*Dataset[2023/24 From - Spending review Topic 4]*$B$3)","v":0},{"$f":"SUMPRODUCT(((Dataset[Econ4]=$G61))*Dataset[2023/24 To - Spending review Topic 4]*$B$3)","v":0},0,{"$f":"SUMPRODUCT(((Dataset[Econ4]=$G61))*Dataset[2024/25 From - Spending review Topic 4]*$B$3)","v":0},{"$f":"SUMPRODUCT(((Dataset[Econ4]=$G61))*Dataset[2024/25 To - Spending review Topic 4]*$B$3)","v":0},0,{"$f":"SUMPRODUCT(((Dataset[Econ4]=$G61))*Dataset[2025/26 From - Spending review Topic 4]*$B$3)","v":0},{"$f":"SUMPRODUCT(((Dataset[Econ4]=$G61))*Dataset[2025/26 To - Spending review Topic 4]*$B$3)","v":0},0,0,0,0]
["Spending review topic 4",0,null,null,null,null,"Heritage assets",{"$f":"SUMPRODUCT(((Dataset[Econ3]=$G62))*Dataset[2023/24 From - Spending review Topic 4]*$B$3)","v":0},{"$f":"SUMPRODUCT(((Dataset[Econ3]=$G62))*Dataset[2023/24 To - Spending review Topic 4]*$B$3)","v":0},0,{"$f":"SUMPRODUCT(((Dataset[Econ3]=$G62))*Dataset[2024/25 From - Spending review Topic 4]*$B$3)","v":0},{"$f":"SUMPRODUCT(((Dataset[Econ3]=$G62))*Dataset[2024/25 To - Spending review Topic 4]*$B$3)","v":0},0,{"$f":"SUMPRODUCT(((Dataset[Econ3]=$G62))*Dataset[2025/26 From - Spending review Topic 4]*$B$3)","v":0},{"$f":"SUMPRODUCT(((Dataset[Econ3]=$G62))*Dataset[2025/26 To - Spending review Topic 4]*$B$3)","v":0},0,0,0,0]
["Spending review topic 4",0,null,null,null,null,"Specialised military assets",{"$f":"SUMPRODUCT(((Dataset[Econ3]=$G63))*Dataset[2023/24 From - Spending review Topic 4]*$B$3)","v":0},{"$f":"SUMPRODUCT(((Dataset[Econ3]=$G63))*Dataset[2023/24 To - Spending review Topic 4]*$B$3)","v":0},0,{"$f":"SUMPRODUCT(((Dataset[Econ3]=$G63))*Dataset[2024/25 From - Spending review Topic 4]*$B$3)","v":0},{"$f":"SUMPRODUCT(((Dataset[Econ3]=$G63))*Dataset[2024/25 To - Spending review Topic 4]*$B$3)","v":0},0,{"$f":"SUMPRODUCT(((Dataset[Econ3]=$G63))*Dataset[2025/26 From - Spending review Topic 4]*$B$3)","v":0},{"$f":"SUMPRODUCT(((Dataset[Econ3]=$G63))*Dataset[2025/26 To - Spending review Topic 4]*$B$3)","v":0},0,0,0,0]
["Spending review topic 4",0,null,null,null,null,"Biological assets",{"$f":"SUMPRODUCT(((Dataset[Econ3]=$G64))*Dataset[2023/24 From - Spending review Topic 4]*$B$3)","v":0},{"$f":"SUMPRODUCT(((Dataset[Econ3]=$G64))*Dataset[2023/24 To - Spending review Topic 4]*$B$3)","v":0},0,{"$f":"SUMPRODUCT(((Dataset[Econ3]=$G64))*Dataset[2024/25 From - Spending review Topic 4]*$B$3)","v":0},{"$f":"SUMPRODUCT(((Dataset[Econ3]=$G64))*Dataset[2024/25 To - Spending review Topic 4]*$B$3)","v":0},0,{"$f":"SUMPRODUCT(((Dataset[Econ3]=$G64))*Dataset[2025/26 From - Spending review Topic 4]*$B$3)","v":0},{"$f":"SUMPRODUCT(((Dataset[Econ3]=$G64))*Dataset[2025/26 To - Spending review Topic 4]*$B$3)","v":0},0,0,0,0]
["Spending review topic 4",0,null,null,null,null,"Land and sub-soil assets",{"$f":"SUMPRODUCT(((Dataset[Econ3]=$G65))*Dataset[2023/24 From - Spending review Topic 4]*$B$3)","v":0},{"$f":"SUMPRODUCT(((Dataset[Econ3]=$G65))*Dataset[2023/24 To - Spending review Topic 4]*$B$3)","v":0},0,{"$f":"SUMPRODUCT(((Dataset[Econ3]=$G65))*Dataset[2024/25 From - Spending review Topic 4]*$B$3)","v":0},{"$f":"SUMPRODUCT(((Dataset[Econ3]=$G65))*Dataset[2024/25 To - Spending review Topic 4]*$B$3)","v":0},0,{"$f":"SUMPRODUCT(((Dataset[Econ3]=$G65))*Dataset[2025/26 From - Spending review Topic 4]*$B$3)","v":0},{"$f":"SUMPRODUCT(((Dataset[Econ3]=$G65))*Dataset[2025/26 To - Spending review Topic 4]*$B$3)","v":0},0,0,0,0]
["Spending review topic 4",0,null,null,null,null,"Software and other intangible assets",{"$f":"SUMPRODUCT(((Dataset[Econ3]=$G66))*Dataset[2023/24 From - Spending review Topic 4]*$B$3)","v":0},{"$f":"SUMPRODUCT(((Dataset[Econ3]=$G66))*Dataset[2023/24 To - Spending review Topic 4]*$B$3)","v":0},0,{"$f":"SUMPRODUCT(((Dataset[Econ3]=$G66))*Dataset[2024/25 From - Spending review Topic 4]*$B$3)","v":0},{"$f":"SUMPRODUCT(((Dataset[Econ3]=$G66))*Dataset[2024/25 To - Spending review Topic 4]*$B$3)","v":0},0,{"$f":"SUMPRODUCT(((Dataset[Econ3]=$G66))*Dataset[2025/26 From - Spending review Topic 4]*$B$3)","v":0},{"$f":"SUMPRODUCT(((Dataset[Econ3]=$G66))*Dataset[2025/26 To - Spending review Topic 4]*$B$3)","v":0},0,0,0,0]
["Spending review topic 4",0,null,null,null,null,"Payments for financial assets",{"$f":"SUMPRODUCT(((Dataset[Econ3]=$G67))*Dataset[2023/24 From - Spending review Topic 4]*$B$3)","v":0},{"$f":"SUMPRODUCT(((Dataset[Econ3]=$G67))*Dataset[2023/24 To - Spending review Topic 4]*$B$3)","v":0},0,{"$f":"SUMPRODUCT(((Dataset[Econ3]=$G67))*Dataset[2024/25 From - Spending review Topic 4]*$B$3)","v":0},{"$f":"SUMPRODUCT(((Dataset[Econ3]=$G67))*Dataset[2024/25 To - Spending review Topic 4]*$B$3)","v":0},0,{"$f":"SUMPRODUCT(((Dataset[Econ3]=$G67))*Dataset[2025/26 From - Spending review Topic 4]*$B$3)","v":0},{"$f":"SUMPRODUCT(((Dataset[Econ3]=$G67))*Dataset[2025/26 To - Spending review Topic 4]*$B$3)","v":0},0,0,0,0]
["Spending review topic 4",0,null,null,null,null,"Total",{"$f":"SUM(H35,H39,H55,H67)","v":0},0,0,0,0,0,0,0,0,0,0,0]
[]
[]
[]
[]
[null,null,null,null,null,null,{"$f":"\"IMPACT OF ADJUSTMENTS: \" &UPPER($G$3)","v":"IMPACT OF ADJUSTMENTS: SPENDING REVIEW TOPIC 4"}]
[]
[null,null,null,null,null,1,"Impact of adjustments on expenditure"]
[{"$f":"$G$3","v":"Spending review topic 4"},5,null,null,null,null,null,{"$f":"MyYear4","v":"2022/23"},null,null,{"$f":"MyYear5","v":"2023/24"},null,null,{"$f":"MyYear6","v":"2024/25"},null,null,{"$f":"MyYear7","v":"2025/26"}]
["Spending review topic 4",5,null,null,null,null,"Salary level","Current expenditure","Potential expenditure @ benchmark level","% Savings if benchmark is achieved","Original number","Change in expenditure","Saving as % of original number","Original number","Change in expenditure","Saving as % of original number","Original number","Change in expenditure","Saving as % of original number"]
["Spending review topic 4",5,null,null,null,null,"Total",null,null,{"$f":"IFERROR((H78-I78)/-H78,\"\")","v":""},null,null,{"$f":"IFERROR((K78-L78)/-K78,\"\")","v":""},null,null,{"$f":"IFERROR((N78-O78)/-N78,\"\")","v":""},null,null,{"$f":"IFERROR((Q78-R78)/-Q78,\"\")","v":""}]
[]
[]
[]
[]
[]
[null,null,null,null,null,2,"Summary of impact on service delivery/policy area due to adjustments"]
[{"$f":"$G$3","v":"Spending review topic 4"},1]
["Spending review topic 4",1]
["Spending review topic 4",1]
["Spending review topic 4",1]
["Spending review topic 4",1]
["Spending review topic 4",1]
["Spending review topic 4",1]
["Spending review topic 4",1]
["Spending review topic 4",1]
["Spending review topic 4",1]
["Spending review topic 4",1]
["Spending review topic 4",1]
["Spending review topic 4",1]
["Spending review topic 4",1]
["Spending review topic 4",1]
[]
[]
[]
[]
[]
[null,null,null,null,null,3,"Impact of adjustments on performance indicators"]
[{"$f":"$G$3","v":"Spending review topic 4"},2,null,null,null,null,null,{"$f":"MyYear4","v":"2022/23"},null,null,{"$f":"MyYear5","v":"2023/24"},null,null,{"$f":"MyYear6","v":"2024/25"},null,null,{"$f":"MyYear7","v":"2025/26"},null,null," Comment",null,null,null,null,"Related MTSF Priority"]
["Spending review topic 4",2,null,null,null,null,"Performance indicator","Current performance","Performance @ benchmark level","Change","Original target","Revised target","Change","Original target","Revised target","Change","Original target","Revised target","Change"]
["Spending review topic 4",2]
["Spending review topic 4",2]
["Spending review topic 4",2]
["Spending review topic 4",2]
["Spending review topic 4",2]
["Spending review topic 4",2]
["Spending review topic 4",2]
["Spending review topic 4",2]
["Spending review topic 4",2]
["Spending review topic 4",2]
["Spending review topic 4",2]
["Spending review topic 4",2]
["Spending review topic 4",2]
["Spending review topic 4",2]
["Spending review topic 4",2]
[]
[]
[]
[]
[]
[null,null,null,null,null,4,"Impact of adjustments on personnel headcount numbers"]
[{"$f":"$G$3","v":"Spending review topic 4"},4,null,null,null,null,null,{"$f":"MyYear4","v":"2022/23"},null,null,{"$f":"MyYear5","v":"2023/24"},null,null,{"$f":"MyYear6","v":"2024/25"},null,null,{"$f":"MyYear7","v":"2025/26"},null,null," Comment"]
["Spending review topic 4",4,null,null,null,null,"Salary level","Current number","Potential number if benchmark is achieved","Change in number","Original number","Revised number","Change in number","Original number","Revised number","Change in number","Original number","Revised number","Change in number"]
["Spending review topic 4",4,null,null,null,null,1,null,null,{"$f":"I131-H131","v":0},null,null,{"$f":"L131-K131","v":0},null,null,{"$f":"O131-N131","v":0},null,null,{"$f":"R131-Q131","v":0}]
["Spending review topic 4",4,null,null,null,null,2,null,null,0,null,null,0,null,null,0,null,null,0]
["Spending review topic 4",4,null,null,null,null,3,null,null,0,null,null,0,null,null,0,null,null,0]
["Spending review topic 4",4,null,null,null,null,4,null,null,0,null,null,0,null,null,0,null,null,0]
["Spending review topic 4",4,null,null,null,null,5,null,null,0,null,null,0,null,null,0,null,null,0]
["Spending review topic 4",4,null,null,null,null,6,null,null,0,null,null,0,null,null,0,null,null,0]
["Spending review topic 4",4,null,null,null,null,7,null,null,0,null,null,0,null,null,0,null,null,0]
["Spending review topic 4",4,null,null,null,null,8,null,null,0,null,null,0,null,null,0,null,null,0]
["Spending review topic 4",4,null,null,null,null,9,null,null,0,null,null,0,null,null,0,null,null,0]
["Spending review topic 4",4,null,null,null,null,10,null,null,0,null,null,0,null,null,0,null,null,0]
["Spending review topic 4",4,null,null,null,null,11,null,null,0,null,null,0,null,null,0,null,null,0]
["Spending review topic 4",4,null,null,null,null,12,null,null,0,null,null,0,null,null,0,null,null,0]
["Spending review topic 4",4,null,null,null,null,13,null,null,0,null,null,0,null,null,0,null,null,0]
["Spending review topic 4",4,null,null,null,null,14,null,null,0,null,null,0,null,null,0,null,null,0]
["Spending review topic 4",4,null,null,null,null,15,null,null,0,null,null,0,null,null,0,null,null,0]
["Spending review topic 4",4,null,null,null,null,16,null,null,0,null,null,0,null,null,0,null,null,0]
["Spending review topic 4",4,null,null,null,null,"Other",null,null,0,null,null,0,null,null,0,null,null,0]
["Spending review topic 4",4,null,null,null,null,"Other",null,null,0,null,null,0,null,null,0,null,null,0]
["Spending review topic 4",4,null,null,null,null,"Other",null,null,0,null,null,0,null,null,0,null,null,0]
["Spending review topic 4",4,null,null,null,null,"Other",null,null,0,null,null,0,null,null,0,null,null,0]
["Spending review topic 4",4,null,null,null,null,"Total",{"$f":"SUM(H131:H150)","v":0},0,0,{"$f":"SUM(K131:K150)","v":0},0,0,0,0,0,0,0,0]
[]
[]
[]
[]
[]
[null,null,null,null,null,5,"Impact of adjustments on infrastructure projects"]
[{"$f":"$G$3","v":"Spending review topic 4"},3,null,null,null,null,null,{"$f":"MyYear4","v":"2022/23"},null,null,{"$f":"MyYear5","v":"2023/24"},null,null,{"$f":"MyYear6","v":"2024/25"},null,null,{"$f":"MyYear7","v":"2025/26"},null,null," Comment"]
["Spending review topic 4",3,null,null,null,null,"Project name","Current number","Market or best in class benchmark","Change","Original amount","Revised amount","Change","Original amount","Revised amount","Change","Original amount","Revised amount","Change"]
["Spending review topic 4",3,null,null,null,null,null,null,null,{"$f":"I160-H160","v":0},null,null,{"$f":"L160-K160","v":0},null,null,{"$f":"O160-N160","v":0},null,null,{"$f":"R160-Q160","v":0}]
["Spending review topic 4",3,null,null,null,null,null,null,null,0,null,null,0,null,null,0,null,null,0]
["Spending review topic 4",3,null,null,null,null,null,null,null,0,null,null,0,null,null,0,null,null,0]
["Spending review topic 4",3,null,null,null,null,null,null,null,0,null,null,0,null,null,0,null,null,0]
["Spending review topic 4",3,null,null,null,null,null,null,null,0,null,null,0,null,null,0,null,null,0]
["Spending review topic 4",3,null,null,null,null,null,null,null,0,null,null,0,null,null,0,null,null,0]
["Spending review topic 4",3,null,null,null,null,null,null,null,0,null,null,0,null,null,0,null,null,0]
["Spending review topic 4",3,null,null,null,null,null,null,null,0,null,null,0,null,null,0,null,null,0]
["Spending review topic 4",3,null,null,null,null,null,null,null,0,null,null,0,null,null,0,null,null,0]
["Spending review topic 4",3,null,null,null,null,null,null,null,0,null,null,0,null,null,0,null,null,0]
["Spending review topic 4",3,null,null,null,null,null,null,null,0,null,null,0,null,null,0,null,null,0]
["Spending review topic 4",3,null,null,null,null,null,null,null,0,null,null,0,null,null,0,null,null,0]
["Spending review topic 4",3,null,null,null,null,null,null,null,0,null,null,0,null,null,0,null,null,0]
["Spending review topic 4",3,null,null,null,null,null,null,null,0,null,null,0,null,null,0,null,null,0]
["Spending review topic 4",3,null,null,null,null,null,null,null,0,null,null,0,null,null,0,null,null,0]
["Spending review topic 4",3,null,null,null,null,null,null,null,0,null,null,0,null,null,0,null,null,0]
["Spending review topic 4",3,null,null,null,null,null,null,null,0,null,null,0,null,null,0,null,null,0]
["Spending review topic 4",3,null,null,null,null,null,null,null,0,null,null,0,null,null,0,null,null,0]
["Spending review topic 4",3,null,null,null,null,null,null,null,0,null,null,0,null,null,0,null,null,0]
["Spending review topic 4",3,null,null,null,null,null,null,null,0,null,null,0,null,null,0,null,null,0]
["Spending review topic 4",3,null,null,null,null,null,null,null,0,null,null,0,null,null,0,null,null,0]
["Spending review topic 4",3,null,null,null,null,null,null,null,0,null,null,0,null,null,0,null,null,0]
["Spending review topic 4",3,null,null,null,null,null,null,null,0,null,null,0,null,null,0,null,null,0]
["Spending review topic 4",3,null,null,null,null,null,null,null,0,null,null,0,null,null,0,null,null,0]
["Spending review topic 4",3,null,null,null,null,null,null,null,0,null,null,0,null,null,0,null,null,0]
["Spending review topic 4",3,null,null,null,null,null,null,null,0,null,null,0,null,null,0,null,null,0]
["Spending review topic 4",3,null,null,null,null,null,null,null,0,null,null,0,null,null,0,null,null,0]
["Spending review topic 4",3,null,null,null,null,null,null,null,0,null,null,0,null,null,0,null,null,0]
["Spending review topic 4",3,null,null,null,null,null,null,null,0,null,null,0,null,null,0,null,null,0]
["Spending review topic 4",3,null,null,null,null,null,null,null,0,null,null,0,null,null,0,null,null,0]
["Spending review topic 4",3,null,null,null,null,null,null,null,0,null,null,0,null,null,0,null,null,0]
["Spending review topic 4",3,null,null,null,null,null,null,null,0,null,null,0,null,null,0,null,null,0]
["Spending review topic 4",3,null,null,null,null,null,null,null,0,null,null,0,null,null,0,null,null,0]
["Spending review topic 4",3,null,null,null,null,null,null,null,0,null,null,0,null,null,0,null,null,0]
["Spending review topic 4",3,null,null,null,null,null,null,null,0,null,null,0,null,null,0,null,null,0]
["Spending review topic 4",3,null,null,null,null,null,null,null,0,null,null,0,null,null,0,null,null,0]
["Spending review topic 4",3,null,null,null,null,null,null,null,0,null,null,0,null,null,0,null,null,0]
["Spending review topic 4",3,null,null,null,null,null,null,null,0,null,null,0,null,null,0,null,null,0]
["Spending review topic 4",3,null,null,null,null,null,null,null,0,null,null,0,null,null,0,null,null,0]
["Spending review topic 4",3,null,null,null,null,null,null,null,0,null,null,0,null,null,0,null,null,0]
["Spending review topic 4",3,null,null,null,null,null,null,null,0,null,null,0,null,null,0,null,null,0]
["Spending review topic 4",3,null,null,null,null,null,null,null,0,null,null,0,null,null,0,null,null,0]
["Spending review topic 4",3,null,null,null,null,null,null,null,0,null,null,0,null,null,0,null,null,0]
["Spending review topic 4",3,null,null,null,null,null,null,null,0,null,null,0,null,null,0,null,null,0]
["Spending review topic 4",3,null,null,null,null,null,null,null,0,null,null,0,null,null,0,null,null,0]
["Spending review topic 4",3,null,null,null,null,null,null,null,0,null,null,0,null,null,0,null,null,0]
["Spending review topic 4",3,null,null,null,null,null,null,null,0,null,null,0,null,null,0,null,null,0]
["Spending review topic 4",3,null,null,null,null,null,null,null,0,null,null,0,null,null,0,null,null,0]
["Spending review topic 4",3,null,null,null,null,null,null,null,0,null,null,0,null,null,0,null,null,0]
["Spending review topic 4",3,null,null,null,null,null,null,null,0,null,null,0,null,null,0,null,null,0]
["Spending review topic 4",3,null,null,null,null,"Total",{"$f":"SUM(H160:H209)","v":0},0,0,0,0,0,0,0,0,0,0,0]

{"sheet":"Other reallocations","index":15,"n_rows":210,"n_cols":25,"rows_kept":210,"cut":false,"hidden":false,"merged":[[72,6,72,18],[84,6,98,18],[105,19,105,23],[105,24,105,26],[106,19,106,23],[106,24,106,26],[107,19,107,23],[107,24,107,26],[108,19,108,23],[108,24,108,26],[109,19,109,23],[109,24,109,26],[110,19,110,23],[110,24,110,26],[111,19,111,23],[111,24,111,26],[112,19,112,23],[112,24,112,26],[113,19,113,23],[113,24,113,26],[114,19,114,23],[114,24,114,26],[115,19,115,23],[115,24,115,26],[116,19,116,23],[116,24,116,26],[117,19,117,23],[117,24,117,26],[118,19,118,23],[118,24,118,26],[119,19,119,23],[119,24,119,26],[120,19,120,23],[120,24,120,26],[121,19,121,23],[121,24,121,26],[165,19,165,23],[128,19,128,23],[129,19,129,23],[130,19,149,23],[157,19,157,23],[158,19,158,23],[159,19,159,23],[160,19,160,23],[161,19,161,23],[162,19,162,23],[163,19,163,23],[164,19,164,23],[177,19,177,23],[166,19,166,23],[167,19,167,23],[168,19,168,23],[169,19,169,23],[170,19,170,23],[171,19,171,23],[172,19,172,23],[173,19,173,23],[174,19,174,23],[175,19,175,23],[176,19,176,23],[189,19,189,23],[178,19,178,23],[179,19,179,23],[180,19,180,23],[181,19,181,23],[182,19,182,23],[183,19,183,23],[184,19,184,23],[185,19,185,23],[186,19,186,23],[187,19,187,23],[188,19,188,23],[201,19,201,23],[190,19,190,23],[191,19,191,23],[192,19,192,23],[193,19,193,23],[194,19,194,23],[195,19,195,23],[196,19,196,23],[197,19,197,23],[198,19,198,23],[199,19,199,23],[200,19,200,23],[208,19,208,23],[202,19,202,23],[203,19,203,23],[204,19,204,23],[205,19,205,23],[206,19,206,23],[207,19,207,23]]}
[]
[]
[null,{"$f":"IF(G3=\"\",0,1)","v":1},null,null,null,5,{"$f":"\"Other reallocations\"","v":"Other reallocations"}]
[]
[null,null,null,null,null,null,"Quick view…(Total change)",{"$f":"MyYear5","v":"2023/24"},{"$f":"MyYear6","v":"2024/25"},{"$f":"MyYear7","v":"2025/26"},"MTEF total","Trend"]
[null,null,null,null,null,null,"Compensation of employees",{"$f":"SUMPRODUCT(($G$35:$G$68=$G6)*($J$35:$J$68))","v":0},{"$f":"SUMPRODUCT(($G$35:$G$68=$G6)*($M$35:$M$68))","v":0},{"$f":"SUMPRODUCT(($G$35:$G$68=$G6)*($P$35:$P$68))","v":0},{"$f":"SUM(H6:J6)","v":0},null,null,"CoE"]
[null,null,null,null,null,null,"Goods and services",{"$f":"SUMPRODUCT(($G$35:$G$68=$G7)*($J$35:$J$68))","v":0},{"$f":"SUMPRODUCT(($G$35:$G$68=$G7)*($M$35:$M$68))","v":0},{"$f":"SUMPRODUCT(($G$35:$G$68=$G7)*($P$35:$P$68))","v":0},0,null,null,"G&S"]
[null,null,null,null,null,null,"Transfers and subsidies",{"$f":"SUMPRODUCT(($G$35:$G$68=$G8)*($J$35:$J$68))","v":0},{"$f":"SUMPRODUCT(($G$35:$G$68=$G8)*($M$35:$M$68))","v":0},{"$f":"SUMPRODUCT(($G$35:$G$68=$G8)*($P$35:$P$68))","v":0},0,null,null,"T&S"]
[null,null,null,null,null,null,"Payments for capital assets",{"$f":"SUMPRODUCT(($G$35:$G$68=$G9)*($J$35:$J$68))","v":0},{"$f":"SUMPRODUCT(($G$35:$G$68=$G9)*($M$35:$M$68))","v":0},{"$f":"SUMPRODUCT(($G$35:$G$68=$G9)*($P$35:$P$68))","v":0},0,null,null,"Capital"]
[null,null,null,null,null,null,"Total",{"$f":"SUMPRODUCT(($G$35:$G$68=$G10)*($J$35:$J$68))","v":0},{"$f":"SUMPRODUCT(($G$35:$G$68=$G10)*($M$35:$M$68))","v":0},{"$f":"SUMPRODUCT(($G$35:$G$68=$G10)*($P$35:$P$68))","v":0},0,null,null,"Total"]
[null,null,null,null,null,null,"% of MTEF total",null,null,null,null,null,null,null,null,null,null,null,{"$f":"MyYear5","v":"2023/24"},{"$f":"MyYear6","v":"2024/25"},{"$f":"MyYear7","v":"2025/26"}]
[null,null,null,null,null,null,"Compensation of employees",{"$f":"IFERROR(H6/$K6,\"\")","v":""},"","",null,null,null,null,null,null,null,{"$f":"G12","v":"Compensation of employees"},{"$f":"IF(H12>0.0595,H12,\"\")","v":""},"",""]
[null,null,null,null,null,null,"Goods and services","","","",null,null,null,null,null,null,null,{"$f":"G13","v":"Goods and services"},"","",""]
[null,null,null,null,null,null,"Transfers and subsidies","","","",null,null,null,null,null,null,null,{"$f":"G14","v":"Transfers and subsidies"},"","",""]
[null,null,null,null,null,null,"Payments for capital assets","","","",null,null,null,null,null,null,null,{"$f":"G15","v":"Payments for capital assets"},"","",""]
[]
[null,null,null,null,null,null,"Division of Revenue",{"$f":"MyYear5","v":"2023/24"},{"$f":"MyYear6","v":"2024/25"},{"$f":"MyYear7","v":"2025/26"},"MTEF total","Trend"]
[null,null,null,null,null,null,"National",{"$f":"SUM(H19:H21)","v":0},0,0,{"$f":"SUM(H18:J18)","v":0}]
[{"$f":"$G$3","v":"Other reallocations"},"NAT",null,null,null,null,"National (excl. indirect grants)",{"$f":"SUMPRODUCT(((Dataset[DOR]=$B19))*Dataset[2023/24 From - Other reallocations])+SUMPRODUCT(((Dataset[DOR]=$B19))*Dataset[2023/24 To - Other reallocations])","v":0},{"$f":"SUMPRODUCT(((Dataset[DOR]=$B19))*Dataset[2024/25 From - Other reallocations])+SUMPRODUCT(((Dataset[DOR]=$B19))*Dataset[2024/25 To - Other reallocations])","v":0},{"$f":"SUMPRODUCT(((Dataset[DOR]=$B19))*Dataset[2025/26 From - Other reallocations])+SUMPRODUCT(((Dataset[DOR]=$B19))*Dataset[2025/26 To - Other reallocations])","v":0},0]
["Other reallocations","IGP",null,null,null,null,"Provincial indirect grants",{"$f":"SUMPRODUCT(((Dataset[DOR]=$B20))*Dataset[2023/24 From - Other reallocations])+SUMPRODUCT(((Dataset[DOR]=$B20))*Dataset[2023/24 To - Other reallocations])","v":0},{"$f":"SUMPRODUCT(((Dataset[DOR]=$B20))*Dataset[2024/25 From - Other reallocations])+SUMPRODUCT(((Dataset[DOR]=$B20))*Dataset[2024/25 To - Other reallocations])","v":0},{"$f":"SUMPRODUCT(((Dataset[DOR]=$B20))*Dataset[2025/26 From - Other reallocations])+SUMPRODUCT(((Dataset[DOR]=$B20))*Dataset[2025/26 To - Other reallocations])","v":0},0]
["Other reallocations","IGM",null,null,null,null,"Local indirect grants",{"$f":"SUMPRODUCT(((Dataset[DOR]=$B21))*Dataset[2023/24 From - Other reallocations])+SUMPRODUCT(((Dataset[DOR]=$B21))*Dataset[2023/24 To - Other reallocations])","v":0},{"$f":"SUMPRODUCT(((Dataset[DOR]=$B21))*Dataset[2024/25 From - Other reallocations])+SUMPRODUCT(((Dataset[DOR]=$B21))*Dataset[2024/25 To - Other reallocations])","v":0},{"$f":"SUMPRODUCT(((Dataset[DOR]=$B21))*Dataset[2025/26 From - Other reallocations])+SUMPRODUCT(((Dataset[DOR]=$B21))*Dataset[2025/26 To - Other reallocations])","v":0},0]
["Other reallocations",null,null,null,null,null,"Provincial",{"$f":"SUMPRODUCT(((Dataset[DOR]=$B22))*Dataset[2023/24 From - Other reallocations])+SUMPRODUCT(((Dataset[DOR]=$B22))*Dataset[2023/24 To - Other reallocations])","v":0},{"$f":"SUMPRODUCT(((Dataset[DOR]=$B22))*Dataset[2024/25 From - Other reallocations])+SUMPRODUCT(((Dataset[DOR]=$B22))*Dataset[2024/25 To - Other reallocations])","v":0},{"$f":"SUMPRODUCT(((Dataset[DOR]=$B22))*Dataset[2025/26 From - Other reallocations])+SUMPRODUCT(((Dataset[DOR]=$B22))*Dataset[2025/26 To - Other reallocations])","v":0},0]
["Other reallocations","PES",null,null,null,null,"Provincial equitable share",{"$f":"SUMPRODUCT(((Dataset[DOR]=$B23))*Dataset[2023/24 From - Other reallocations])+SUMPRODUCT(((Dataset[DOR]=$B23))*Dataset[2023/24 To - Other reallocations])","v":0},{"$f":"SUMPRODUCT(((Dataset[DOR]=$B23))*Dataset[2024/25 From - Other reallocations])+SUMPRODUCT(((Dataset[DOR]=$B23))*Dataset[2024/25 To - Other reallocations])","v":0},{"$f":"SUMPRODUCT(((Dataset[DOR]=$B23))*Dataset[2025/26 From - Other reallocations])+SUMPRODUCT(((Dataset[DOR]=$B23))*Dataset[2025/26 To - Other reallocations])","v":0},0]
["Other reallocations","PCG",null,null,null,null,"Provincial conditional grants",{"$f":"SUMPRODUCT(((Dataset[DOR]=$B24))*Dataset[2023/24 From - Other reallocations])+SUMPRODUCT(((Dataset[DOR]=$B24))*Dataset[2023/24 To - Other reallocations])","v":0},{"$f":"SUMPRODUCT(((Dataset[DOR]=$B24))*Dataset[2024/25 From - Other reallocations])+SUMPRODUCT(((Dataset[DOR]=$B24))*Dataset[2024/25 To - Other reallocations])","v":0},{"$f":"SUMPRODUCT(((Dataset[DOR]=$B24))*Dataset[2025/26 From - Other reallocations])+SUMPRODUCT(((Dataset[DOR]=$B24))*Dataset[2025/26 To - Other reallocations])","v":0},0]
["Other reallocations",null,null,null,null,null,"Local government",{"$f":"SUMPRODUCT(((Dataset[DOR]=$B25))*Dataset[2023/24 From - Other reallocations])+SUMPRODUCT(((Dataset[DOR]=$B25))*Dataset[2023/24 To - Other reallocations])","v":0},{"$f":"SUMPRODUCT(((Dataset[DOR]=$B25))*Dataset[2024/25 From - Other reallocations])+SUMPRODUCT(((Dataset[DOR]=$B25))*Dataset[2024/25 To - Other reallocations])","v":0},{"$f":"SUMPRODUCT(((Dataset[DOR]=$B25))*Dataset[2025/26 From - Other reallocations])+SUMPRODUCT(((Dataset[DOR]=$B25))*Dataset[2025/26 To - Other reallocations])","v":0},0]
["Other reallocations","LES",null,null,null,null,"Local equitable share",{"$f":"SUMPRODUCT(((Dataset[DOR]=$B26))*Dataset[2023/24 From - Other reallocations])+SUMPRODUCT(((Dataset[DOR]=$B26))*Dataset[2023/24 To - Other reallocations])","v":0},{"$f":"SUMPRODUCT(((Dataset[DOR]=$B26))*Dataset[2024/25 From - Other reallocations])+SUMPRODUCT(((Dataset[DOR]=$B26))*Dataset[2024/25 To - Other reallocations])","v":0},{"$f":"SUMPRODUCT(((Dataset[DOR]=$B26))*Dataset[2025/26 From - Other reallocations])+SUMPRODUCT(((Dataset[DOR]=$B26))*Dataset[2025/26 To - Other reallocations])","v":0},0]
["Other reallocations","LCG",null,null,null,null,"Local conditional grants",{"$f":"SUMPRODUCT(((Dataset[DOR]=$B27))*Dataset[2023/24 From - Other reallocations])+SUMPRODUCT(((Dataset[DOR]=$B27))*Dataset[2023/24 To - Other reallocations])","v":0},{"$f":"SUMPRODUCT(((Dataset[DOR]=$B27))*Dataset[2024/25 From - Other reallocations])+SUMPRODUCT(((Dataset[DOR]=$B27))*Dataset[2024/25 To - Other reallocations])","v":0},{"$f":"SUMPRODUCT(((Dataset[DOR]=$B27))*Dataset[2025/26 From - Other reallocations])+SUMPRODUCT(((Dataset[DOR]=$B27))*Dataset[2025/26 To - Other reallocations])","v":0},0]
["Other reallocations","GFL",null,null,null,null,"General fuel levy ",{"$f":"SUMPRODUCT(((Dataset[DOR]=$B28))*Dataset[2023/24 From - Other reallocations])+SUMPRODUCT(((Dataset[DOR]=$B28))*Dataset[2023/24 To - Other reallocations])","v":0},{"$f":"SUMPRODUCT(((Dataset[DOR]=$B28))*Dataset[2024/25 From - Other reallocations])+SUMPRODUCT(((Dataset[DOR]=$B28))*Dataset[2024/25 To - Other reallocations])","v":0},{"$f":"SUMPRODUCT(((Dataset[DOR]=$B28))*Dataset[2025/26 From - Other reallocations])+SUMPRODUCT(((Dataset[DOR]=$B28))*Dataset[2025/26 To - Other reallocations])","v":0},0]
[]
[]
[null,null,null,null,null,null,{"$f":"G3","v":"Other reallocations"}]
[{"$f":"$G$3","v":"Other reallocations"},0,null,null,null,null,null,{"$f":"MyYear5","v":"2023/24"},null,null,{"$f":"MyYear6","v":"2024/25"},null,null,{"$f":"MyYear7","v":"2025/26"},null,null,"Total over MTEF"]
[{"$f":"$G$3","v":"Other reallocations"},0,null,null,null,null,"Rand thousand","From","To","Total change","From","To","Total change","From","To","Total change","From","To","Total change"]
["Other reallocations",0,null,null,null,null,"Economic classification"]
["Other reallocations",0,null,null,null,null,"Current payments",{"$f":"SUM(H36:H38)","v":0},0,0,0,0,0,0,0,0,0,0,0]
["Other reallocations",0,null,null,null,null,"Compensation of employees",{"$f":"SUMPRODUCT(((Dataset[Econ3]=$G36))*Dataset[2023/24 From - Other reallocations]*$B$3)","v":0},{"$f":"SUMPRODUCT(((Dataset[Econ3]=$G36))*Dataset[2023/24 To - Other reallocations]*$B$3)","v":0},{"$f":"H36+I36","v":0},{"$f":"SUMPRODUCT(((Dataset[Econ3]=$G36))*Dataset[2024/25 From - Other reallocations]*$B$3)","v":0},{"$f":"SUMPRODUCT(((Dataset[Econ3]=$G36))*Dataset[2024/25 To - Other reallocations]*$B$3)","v":0},{"$f":"K36+L36","v":0},{"$f":"SUMPRODUCT(((Dataset[Econ3]=$G36))*Dataset[2025/26 From - Other reallocations]*$B$3)","v":0},{"$f":"SUMPRODUCT(((Dataset[Econ3]=$G36))*Dataset[2025/26 To - Other reallocations]*$B$3)","v":0},{"$f":"N36+O36","v":0},{"$f":"SUM(H36,K36,N36)","v":0},0,0]
["Other reallocations",0,null,null,null,null,"Goods and services",{"$f":"SUMPRODUCT(((Dataset[Econ3]=$G37))*Dataset[2023/24 From - Other reallocations]*$B$3)","v":0},{"$f":"SUMPRODUCT(((Dataset[Econ3]=$G37))*Dataset[2023/24 To - Other reallocations]*$B$3)","v":0},0,{"$f":"SUMPRODUCT(((Dataset[Econ3]=$G37))*Dataset[2024/25 From - Other reallocations]*$B$3)","v":0},{"$f":"SUMPRODUCT(((Dataset[Econ3]=$G37))*Dataset[2024/25 To - Other reallocations]*$B$3)","v":0},0,{"$f":"SUMPRODUCT(((Dataset[Econ3]=$G37))*Dataset[2025/26 From - Other reallocations]*$B$3)","v":0},{"$f":"SUMPRODUCT(((Dataset[Econ3]=$G37))*Dataset[2025/26 To - Other reallocations]*$B$3)","v":0},0,0,0,0]
["Other reallocations",0,null,null,null,null,"Interest and rent on land",{"$f":"SUMPRODUCT(((Dataset[Econ3]=$G38))*Dataset[2023/24 From - Other reallocations]*$B$3)","v":0},{"$f":"SUMPRODUCT(((Dataset[Econ3]=$G38))*Dataset[2023/24 To - Other reallocations]*$B$3)","v":0},0,{"$f":"SUMPRODUCT(((Dataset[Econ3]=$G38))*Dataset[2024/25 From - Other reallocations]*$B$3)","v":0},{"$f":"SUMPRODUCT(((Dataset[Econ3]=$G38))*Dataset[2024/25 To - Other reallocations]*$B$3)","v":0},0,{"$f":"SUMPRODUCT(((Dataset[Econ3]=$G38))*Dataset[2025/26 From - Other reallocations]*$B$3)","v":0},{"$f":"SUMPRODUCT(((Dataset[Econ3]=$G38))*Dataset[2025/26 To - Other reallocations]*$B$3)","v":0},0,0,0,0]
["Other reallocations",0,null,null,null,null,"Transfers and subsidies",{"$f":"SUM(H40,H43,H46:H48,H51:H52)","v":0},0,0,0,0,0,0,0,0,0,0,0]
["Other reallocations",0,null,null,null,null,"Provinces and municipalities",{"$f":"SUM(H41:H42)","v":0},0,0,0,0,0,0,0,0,0,0,0]
["Other reallocations",0,null,null,null,null,"Provinces",{"$f":"SUMPRODUCT(((Dataset[Econ4]=$G41))*Dataset[2023/24 From - Other reallocations]*$B$3)","v":0},{"$f":"SUMPRODUCT(((Dataset[Econ4]=$G41))*Dataset[2023/24 To - Other reallocations]*$B$3)","v":0},{"$f":"H41+I41","v":0},{"$f":"SUMPRODUCT(((Dataset[Econ4]=$G41))*Dataset[2024/25 From - Other reallocations]*$B$3)","v":0},{"$f":"SUMPRODUCT(((Dataset[Econ4]=$G41))*Dataset[2024/25 To - Other reallocations]*$B$3)","v":0},{"$f":"K41+L41","v":0},{"$f":"SUMPRODUCT(((Dataset[Econ4]=$G41))*Dataset[2025/26 From - Other reallocations]*$B$3)","v":0},{"$f":"SUMPRODUCT(((Dataset[Econ4]=$G41))*Dataset[2025/26 To - Other reallocations]*$B$3)","v":0},{"$f":"N41+O41","v":0},{"$f":"SUM(H41,K41,N41)","v":0},0,0]
["Other reallocations",0,null,null,null,null,"Municipalities",{"$f":"SUMPRODUCT(((Dataset[Econ4]=$G42))*Dataset[2023/24 From - Other reallocations]*$B$3)","v":0},{"$f":"SUMPRODUCT(((Dataset[Econ4]=$G42))*Dataset[2023/24 To - Other reallocations]*$B$3)","v":0},0,{"$f":"SUMPRODUCT(((Dataset[Econ4]=$G42))*Dataset[2024/25 From - Other reallocations]*$B$3)","v":0},{"$f":"SUMPRODUCT(((Dataset[Econ4]=$G42))*Dataset[2024/25 To - Other reallocations]*$B$3)","v":0},0,{"$f":"SUMPRODUCT(((Dataset[Econ4]=$G42))*Dataset[2025/26 From - Other reallocations]*$B$3)","v":0},{"$f":"SUMPRODUCT(((Dataset[Econ4]=$G42))*Dataset[2025/26 To - Other reallocations]*$B$3)","v":0},0,0,0,0]
["Other reallocations",0,null,null,null,null,"Departmental agencies and accounts",{"$f":"SUM(H44:H45)","v":0},0,0,0,0,0,0,0,0,0,0,0]
["Other reallocations",0,null,null,null,null,"Social security funds",{"$f":"SUMPRODUCT(((Dataset[Econ4]=$G44))*Dataset[2023/24 From - Other reallocations]*$B$3)","v":0},{"$f":"SUMPRODUCT(((Dataset[Econ4]=$G44))*Dataset[2023/24 To - Other reallocations]*$B$3)","v":0},{"$f":"H44+I44","v":0},{"$f":"SUMPRODUCT(((Dataset[Econ4]=$G44))*Dataset[2024/25 From - Other reallocations]*$B$3)","v":0},{"$f":"SUMPRODUCT(((Dataset[Econ4]=$G44))*Dataset[2024/25 To - Other reallocations]*$B$3)","v":0},{"$f":"K44+L44","v":0},{"$f":"SUMPRODUCT(((Dataset[Econ4]=$G44))*Dataset[2025/26 From - Other reallocations]*$B$3)","v":0},{"$f":"SUMPRODUCT(((Dataset[Econ4]=$G44))*Dataset[2025/26 To - Other reallocations]*$B$3)","v":0},{"$f":"N44+O44","v":0},{"$f":"SUM(H44,K44,N44)","v":0},0,0]
["Other reallocations",0,null,null,null,null,"Departmental agencies (non-business entities)",{"$f":"SUMPRODUCT(((Dataset[Econ4]=$G45))*Dataset[2023/24 From - Other reallocations]*$B$3)","v":0},{"$f":"SUMPRODUCT(((Dataset[Econ4]=$G45))*Dataset[2023/24 To - Other reallocations]*$B$3)","v":0},0,{"$f":"SUMPRODUCT(((Dataset[Econ4]=$G45))*Dataset[2024/25 From - Other reallocations]*$B$3)","v":0},{"$f":"SUMPRODUCT(((Dataset[Econ4]=$G45))*Dataset[2024/25 To - Other reallocations]*$B$3)","v":0},0,{"$f":"SUMPRODUCT(((Dataset[Econ4]=$G45))*Dataset[2025/26 From - Other reallocations]*$B$3)","v":0},{"$f":"SUMPRODUCT(((Dataset[Econ4]=$G45))*Dataset[2025/26 To - Other reallocations]*$B$3)","v":0},0,0,0,0]
["Other reallocations",0,null,null,null,null,"Higher education institutions",{"$f":"SUMPRODUCT(((Dataset[Econ3]=$G46))*Dataset[2023/24 From - Other reallocations]*$B$3)","v":0},{"$f":"SUMPRODUCT(((Dataset[Econ3]=$G46))*Dataset[2023/24 To - Other reallocations]*$B$3)","v":0},0,{"$f":"SUMPRODUCT(((Dataset[Econ3]=$G46))*Dataset[2024/25 From - Other reallocations]*$B$3)","v":0},{"$f":"SUMPRODUCT(((Dataset[Econ3]=$G46))*Dataset[2024/25 To - Other reallocations]*$B$3)","v":0},0,{"$f":"SUMPRODUCT(((Dataset[Econ3]=$G46))*Dataset[2025/26 From - Other reallocations]*$B$3)","v":0},{"$f":"SUMPRODUCT(((Dataset[Econ3]=$G46))*Dataset[2025/26 To - Other reallocations]*$B$3)","v":0},0,0,0,0]
["Other reallocations",0,null,null,null,null,"Foreign governments and international organisations",{"$f":"SUMPRODUCT(((Dataset[Econ3]=$G47))*Dataset[2023/24 From - Other reallocations]*$B$3)","v":0},{"$f":"SUMPRODUCT(((Dataset[Econ3]=$G47))*Dataset[2023/24 To - Other reallocations]*$B$3)","v":0},0,{"$f":"SUMPRODUCT(((Dataset[Econ3]=$G47))*Dataset[2024/25 From - Other reallocations]*$B$3)","v":0},{"$f":"SUMPRODUCT(((Dataset[Econ3]=$G47))*Dataset[2024/25 To - Other reallocations]*$B$3)","v":0},0,{"$f":"SUMPRODUCT(((Dataset[Econ3]=$G47))*Dataset[2025/26 From - Other reallocations]*$B$3)","v":0},{"$f":"SUMPRODUCT(((Dataset[Econ3]=$G47))*Dataset[2025/26 To - Other reallocations]*$B$3)","v":0},0,0,0,0]
["Other reallocations",0,null,null,null,null,"Public corporations and private enterprises",{"$f":"SUM(H49:H50)","v":0},0,0,0,0,0,0,0,0,0,0,0]
["Other reallocations",0,null,null,null,null,"Public corporations",{"$f":"SUMPRODUCT(((Dataset[Econ4]=$G49))*Dataset[2023/24 From - Other reallocations]*$B$3)","v":0},{"$f":"SUMPRODUCT(((Dataset[Econ4]=$G49))*Dataset[2023/24 To - Other reallocations]*$B$3)","v":0},{"$f":"H49+I49","v":0},{"$f":"SUMPRODUCT(((Dataset[Econ4]=$G49))*Dataset[2024/25 From - Other reallocations]*$B$3)","v":0},{"$f":"SUMPRODUCT(((Dataset[Econ4]=$G49))*Dataset[2024/25 To - Other reallocations]*$B$3)","v":0},{"$f":"K49+L49","v":0},{"$f":"SUMPRODUCT(((Dataset[Econ4]=$G49))*Dataset[2025/26 From - Other reallocations]*$B$3)","v":0},{"$f":"SUMPRODUCT(((Dataset[Econ4]=$G49))*Dataset[2025/26 To - Other reallocations]*$B$3)","v":0},{"$f":"N49+O49","v":0},{"$f":"SUM(H49,K49,N49)","v":0},0,0]
["Other reallocations",0,null,null,null,null,"Private enterprises",{"$f":"SUMPRODUCT(((Dataset[Econ4]=$G50))*Dataset[2023/24 From - Other reallocations]*$B$3)","v":0},{"$f":"SUMPRODUCT(((Dataset[Econ4]=$G50))*Dataset[2023/24 To - Other reallocations]*$B$3)","v":0},0,{"$f":"SUMPRODUCT(((Dataset[Econ4]=$G50))*Dataset[2024/25 From - Other reallocations]*$B$3)","v":0},{"$f":"SUMPRODUCT(((Dataset[Econ4]=$G50))*Dataset[2024/25 To - Other reallocations]*$B$3)","v":0},0,{"$f":"SUMPRODUCT(((Dataset[Econ4]=$G50))*Dataset[2025/26 From - Other reallocations]*$B$3)","v":0},{"$f":"SUMPRODUCT(((Dataset[Econ4]=$G50))*Dataset[2025/26 To - Other reallocations]*$B$3)","v":0},0,0,0,0]
["Other reallocations",0,null,null,null,null,"Non-profit institutions",{"$f":"SUMPRODUCT(((Dataset[Econ3]=$G51))*Dataset[2023/24 From - Other reallocations]*$B$3)","v":0},{"$f":"SUMPRODUCT(((Dataset[Econ3]=$G51))*Dataset[2023/24 To - Other reallocations]*$B$3)","v":0},0,{"$f":"SUMPRODUCT(((Dataset[Econ3]=$G51))*Dataset[2024/25 From - Other reallocations]*$B$3)","v":0},{"$f":"SUMPRODUCT(((Dataset[Econ3]=$G51))*Dataset[2024/25 To - Other reallocations]*$B$3)","v":0},0,{"$f":"SUMPRODUCT(((Dataset[Econ3]=$G51))*Dataset[2025/26 From - Other reallocations]*$B$3)","v":0},{"$f":"SUMPRODUCT(((Dataset[Econ3]=$G51))*Dataset[2025/26 To - Other reallocations]*$B$3)","v":0},0,0,0,0]
["Other reallocations",0,null,null,null,null,"Households",{"$f":"SUM(H53:H54)","v":0},0,0,0,0,0,0,0,0,0,0,0]
["Other reallocations",0,null,null,null,null,"Social benefits",{"$f":"SUMPRODUCT(((Dataset[Econ4]=$G53))*Dataset[2023/24 From - Other reallocations]*$B$3)","v":0},{"$f":"SUMPRODUCT(((Dataset[Econ4]=$G53))*Dataset[2023/24 To - Other reallocations]*$B$3)","v":0},{"$f":"H53+I53","v":0},{"$f":"SUMPRODUCT(((Dataset[Econ4]=$G53))*Dataset[2024/25 From - Other reallocations]*$B$3)","v":0},{"$f":"SUMPRODUCT(((Dataset[Econ4]=$G53))*Dataset[2024/25 To - Other reallocations]*$B$3)","v":0},{"$f":"K53+L53","v":0},{"$f":"SUMPRODUCT(((Dataset[Econ4]=$G53))*Dataset[2025/26 From - Other reallocations]*$B$3)","v":0},{"$f":"SUMPRODUCT(((Dataset[Econ4]=$G53))*Dataset[2025/26 To - Other reallocations]*$B$3)","v":0},{"$f":"N53+O53","v":0},{"$f":"SUM(H53,K53,N53)","v":0},0,0]
["Other reallocations",0,null,null,null,null,"Other transfers to households",{"$f":"SUMPRODUCT(((Dataset[Econ4]=$G54))*Dataset[2023/24 From - Other reallocations]*$B$3)","v":0},{"$f":"SUMPRODUCT(((Dataset[Econ4]=$G54))*Dataset[2023/24 To - Other reallocations]*$B$3)","v":0},0,{"$f":"SUMPRODUCT(((Dataset[Econ4]=$G54))*Dataset[2024/25 From - Other reallocations]*$B$3)","v":0},{"$f":"SUMPRODUCT(((Dataset[Econ4]=$G54))*Dataset[2024/25 To - Other reallocations]*$B$3)","v":0},0,{"$f":"SUMPRODUCT(((Dataset[Econ4]=$G54))*Dataset[2025/26 From - Other reallocations]*$B$3)","v":0},{"$f":"SUMPRODUCT(((Dataset[Econ4]=$G54))*Dataset[2025/26 To - Other reallocations]*$B$3)","v":0},0,0,0,0]
["Other reallocations",0,null,null,null,null,"Payments for capital assets",{"$f":"SUM(H56,H59,H62:H66)","v":0},0,0,0,0,0,0,0,0,0,0,0]
["Other reallocations",0,null,null,null,null,"Buildings and other fixed structures",{"$f":"SUM(H57:H58)","v":0},0,0,0,0,0,0,0,0,0,0,0]
["Other reallocations",0,null,null,null,null,"Buildings",{"$f":"SUMPRODUCT(((Dataset[Econ4]=$G57))*Dataset[2023/24 From - Other reallocations]*$B$3)","v":0},{"$f":"SUMPRODUCT(((Dataset[Econ4]=$G57))*Dataset[2023/24 To - Other reallocations]*$B$3)","v":0},{"$f":"H57+I57","v":0},{"$f":"SUMPRODUCT(((Dataset[Econ4]=$G57))*Dataset[2024/25 From - Other reallocations]*$B$3)","v":0},{"$f":"SUMPRODUCT(((Dataset[Econ4]=$G57))*Dataset[2024/25 To - Other reallocations]*$B$3)","v":0},{"$f":"K57+L57","v":0},{"$f":"SUMPRODUCT(((Dataset[Econ4]=$G57))*Dataset[2025/26 From - Other reallocations]*$B$3)","v":0},{"$f":"SUMPRODUCT(((Dataset[Econ4]=$G57))*Dataset[2025/26 To - Other reallocations]*$B$3)","v":0},{"$f":"N57+O57","v":0},{"$f":"SUM(H57,K57,N57)","v":0},0,0]
["Other reallocations",0,null,null,null,null,"Other fixed structures",{"$f":"SUMPRODUCT(((Dataset[Econ4]=$G58))*Dataset[2023/24 From - Other reallocations]*$B$3)","v":0},{"$f":"SUMPRODUCT(((Dataset[Econ4]=$G58))*Dataset[2023/24 To - Other reallocations]*$B$3)","v":0},0,{"$f":"SUMPRODUCT(((Dataset[Econ4]=$G58))*Dataset[2024/25 From - Other reallocations]*$B$3)","v":0},{"$f":"SUMPRODUCT(((Dataset[Econ4]=$G58))*Dataset[2024/25 To - Other reallocations]*$B$3)","v":0},0,{"$f":"SUMPRODUCT(((Dataset[Econ4]=$G58))*Dataset[2025/26 From - Other reallocations]*$B$3)","v":0},{"$f":"SUMPRODUCT(((Dataset[Econ4]=$G58))*Dataset[2025/26 To - Other reallocations]*$B$3)","v":0},0,0,0,0]
["Other reallocations",0,null,null,null,null,"Machinery and equipment",{"$f":"SUM(H60:H61)","v":0},0,0,0,0,0,0,0,0,0,0,0]
["Other reallocations",0,null,null,null,null,"Transport equipment",{"$f":"SUMPRODUCT(((Dataset[Econ4]=$G60))*Dataset[2023/24 From - Other reallocations]*$B$3)","v":0},{"$f":"SUMPRODUCT(((Dataset[Econ4]=$G60))*Dataset[2023/24 To - Other reallocations]*$B$3)","v":0},{"$f":"H60+I60","v":0},{"$f":"SUMPRODUCT(((Dataset[Econ4]=$G60))*Dataset[2024/25 From - Other reallocations]*$B$3)","v":0},{"$f":"SUMPRODUCT(((Dataset[Econ4]=$G60))*Dataset[2024/25 To - Other reallocations]*$B$3)","v":0},{"$f":"K60+L60","v":0},{"$f":"SUMPRODUCT(((Dataset[Econ4]=$G60))*Dataset[2025/26 From - Other reallocations]*$B$3)","v":0},{"$f":"SUMPRODUCT(((Dataset[Econ4]=$G60))*Dataset[2025/26 To - Other reallocations]*$B$3)","v":0},{"$f":"N60+O60","v":0},{"$f":"SUM(H60,K60,N60)","v":0},0,0]
["Other reallocations",0,null,null,null,null,"Other machinery and equipment",{"$f":"SUMPRODUCT(((Dataset[Econ4]=$G61))*Dataset[2023/24 From - Other reallocations]*$B$3)","v":0},{"$f":"SUMPRODUCT(((Dataset[Econ4]=$G61))*Dataset[2023/24 To - Other reallocations]*$B$3)","v":0},0,{"$f":"SUMPRODUCT(((Dataset[Econ4]=$G61))*Dataset[2024/25 From - Other reallocations]*$B$3)","v":0},{"$f":"SUMPRODUCT(((Dataset[Econ4]=$G61))*Dataset[2024/25 To - Other reallocations]*$B$3)","v":0},0,{"$f":"SUMPRODUCT(((Dataset[Econ4]=$G61))*Dataset[2025/26 From - Other reallocations]*$B$3)","v":0},{"$f":"SUMPRODUCT(((Dataset[Econ4]=$G61))*Dataset[2025/26 To - Other reallocations]*$B$3)","v":0},0,0,0,0]
["Other reallocations",0,null,null,null,null,"Heritage assets",{"$f":"SUMPRODUCT(((Dataset[Econ3]=$G62))*Dataset[2023/24 From - Other reallocations]*$B$3)","v":0},{"$f":"SUMPRODUCT(((Dataset[Econ3]=$G62))*Dataset[2023/24 To - Other reallocations]*$B$3)","v":0},0,{"$f":"SUMPRODUCT(((Dataset[Econ3]=$G62))*Dataset[2024/25 From - Other reallocations]*$B$3)","v":0},{"$f":"SUMPRODUCT(((Dataset[Econ3]=$G62))*Dataset[2024/25 To - Other reallocations]*$B$3)","v":0},0,{"$f":"SUMPRODUCT(((Dataset[Econ3]=$G62))*Dataset[2025/26 From - Other reallocations]*$B$3)","v":0},{"$f":"SUMPRODUCT(((Dataset[Econ3]=$G62))*Dataset[2025/26 To - Other reallocations]*$B$3)","v":0},0,0,0,0]
["Other reallocations",0,null,null,null,null,"Specialised military assets",{"$f":"SUMPRODUCT(((Dataset[Econ3]=$G63))*Dataset[2023/24 From - Other reallocations]*$B$3)","v":0},{"$f":"SUMPRODUCT(((Dataset[Econ3]=$G63))*Dataset[2023/24 To - Other reallocations]*$B$3)","v":0},0,{"$f":"SUMPRODUCT(((Dataset[Econ3]=$G63))*Dataset[2024/25 From - Other reallocations]*$B$3)","v":0},{"$f":"SUMPRODUCT(((Dataset[Econ3]=$G63))*Dataset[2024/25 To - Other reallocations]*$B$3)","v":0},0,{"$f":"SUMPRODUCT(((Dataset[Econ3]=$G63))*Dataset[2025/26 From - Other reallocations]*$B$3)","v":0},{"$f":"SUMPRODUCT(((Dataset[Econ3]=$G63))*Dataset[2025/26 To - Other reallocations]*$B$3)","v":0},0,0,0,0]
["Other reallocations",0,null,null,null,null,"Biological assets",{"$f":"SUMPRODUCT(((Dataset[Econ3]=$G64))*Dataset[2023/24 From - Other reallocations]*$B$3)","v":0},{"$f":"SUMPRODUCT(((Dataset[Econ3]=$G64))*Dataset[2023/24 To - Other reallocations]*$B$3)","v":0},0,{"$f":"SUMPRODUCT(((Dataset[Econ3]=$G64))*Dataset[2024/25 From - Other reallocations]*$B$3)","v":0},{"$f":"SUMPRODUCT(((Dataset[Econ3]=$G64))*Dataset[2024/25 To - Other reallocations]*$B$3)","v":0},0,{"$f":"SUMPRODUCT(((Dataset[Econ3]=$G64))*Dataset[2025/26 From - Other reallocations]*$B$3)","v":0},{"$f":"SUMPRODUCT(((Dataset[Econ3]=$G64))*Dataset[2025/26 To - Other reallocations]*$B$3)","v":0},0,0,0,0]
["Other reallocations",0,null,null,null,null,"Land and sub-soil assets",{"$f":"SUMPRODUCT(((Dataset[Econ3]=$G65))*Dataset[2023/24 From - Other reallocations]*$B$3)","v":0},{"$f":"SUMPRODUCT(((Dataset[Econ3]=$G65))*Dataset[2023/24 To - Other reallocations]*$B$3)","v":0},0,{"$f":"SUMPRODUCT(((Dataset[Econ3]=$G65))*Dataset[2024/25 From - Other reallocations]*$B$3)","v":0},{"$f":"SUMPRODUCT(((Dataset[Econ3]=$G65))*Dataset[2024/25 To - Other reallocations]*$B$3)","v":0},0,{"$f":"SUMPRODUCT(((Dataset[Econ3]=$G65))*Dataset[2025/26 From - Other reallocations]*$B$3)","v":0},{"$f":"SUMPRODUCT(((Dataset[Econ3]=$G65))*Dataset[2025/26 To - Other reallocations]*$B$3)","v":0},0,0,0,0]
["Other reallocations",0,null,null,null,null,"Software and other intangible assets",{"$f":"SUMPRODUCT(((Dataset[Econ3]=$G66))*Dataset[2023/24 From - Other reallocations]*$B$3)","v":0},{"$f":"SUMPRODUCT(((Dataset[Econ3]=$G66))*Dataset[2023/24 To - Other reallocations]*$B$3)","v":0},0,{"$f":"SUMPRODUCT(((Dataset[Econ3]=$G66))*Dataset[2024/25 From - Other reallocations]*$B$3)","v":0},{"$f":"SUMPRODUCT(((Dataset[Econ3]=$G66))*Dataset[2024/25 To - Other reallocations]*$B$3)","v":0},0,{"$f":"SUMPRODUCT(((Dataset[Econ3]=$G66))*Dataset[2025/26 From - Other reallocations]*$B$3)","v":0},{"$f":"SUMPRODUCT(((Dataset[Econ3]=$G66))*Dataset[2025/26 To - Other reallocations]*$B$3)","v":0},0,0,0,0]
["Other reallocations",0,null,null,null,null,"Payments for financial assets",{"$f":"SUMPRODUCT(((Dataset[Econ3]=$G67))*Dataset[2023/24 From - Other reallocations]*$B$3)","v":0},{"$f":"SUMPRODUCT(((Dataset[Econ3]=$G67))*Dataset[2023/24 To - Other reallocations]*$B$3)","v":0},0,{"$f":"SUMPRODUCT(((Dataset[Econ3]=$G67))*Dataset[2024/25 From - Other reallocations]*$B$3)","v":0},{"$f":"SUMPRODUCT(((Dataset[Econ3]=$G67))*Dataset[2024/25 To - Other reallocations]*$B$3)","v":0},0,{"$f":"SUMPRODUCT(((Dataset[Econ3]=$G67))*Dataset[2025/26 From - Other reallocations]*$B$3)","v":0},{"$f":"SUMPRODUCT(((Dataset[Econ3]=$G67))*Dataset[2025/26 To - Other reallocations]*$B$3)","v":0},0,0,0,0]
["Other reallocations",0,null,null,null,null,"Total",{"$f":"SUM(H35,H39,H55,H67)","v":0},0,0,0,0,0,0,0,0,0,0,0]
[]
[]
[]
[]
[null,null,null,null,null,null,{"$f":"\"IMPACT OF ADJUSTMENTS: \" &UPPER($G$3)","v":"IMPACT OF ADJUSTMENTS: OTHER REALLOCATIONS"}]
[]
[null,null,null,null,null,1,"Impact of adjustments on expenditure"]
[{"$f":"$G$3","v":"Other reallocations"},5,null,null,null,null,null,{"$f":"MyYear4","v":"2022/23"},null,null,{"$f":"MyYear5","v":"2023/24"},null,null,{"$f":"MyYear6","v":"2024/25"},null,null,{"$f":"MyYear7","v":"2025/26"}]
["Other reallocations",5,null,null,null,null,"Salary level","Current expenditure","Potential expenditure @ benchmark level","% Savings if benchmark is achieved","Original number","Change in expenditure","Saving as % of original number","Original number","Change in expenditure","Saving as % of original number","Original number","Change in expenditure","Saving as % of original number"]
["Other reallocations",5,null,null,null,null,"Total",null,null,{"$f":"IFERROR((H78-I78)/H78,\"\")","v":""},null,null,{"$f":"IFERROR(L78/K78,\"\")","v":""},null,null,{"$f":"IFERROR(O78/N78,\"\")","v":""},null,null,{"$f":"IFERROR(R78/Q78,\"\")","v":""}]
[]
[]
[]
[]
[]
[null,null,null,null,null,2,"Summary of impact on service delivery/policy area due to adjustments"]
[{"$f":"$G$3","v":"Other reallocations"},1]
["Other reallocations",1]
["Other reallocations",1]
["Other reallocations",1]
["Other reallocations",1]
["Other reallocations",1]
["Other reallocations",1]
["Other reallocations",1]
["Other reallocations",1]
["Other reallocations",1]
["Other reallocations",1]
["Other reallocations",1]
["Other reallocations",1]
["Other reallocations",1]
["Other reallocations",1]
[]
[]
[]
[]
[]
[null,null,null,null,null,3,"Impact of adjustments on performance indicators"]
[{"$f":"$G$3","v":"Other reallocations"},2,null,null,null,null,null,{"$f":"MyYear4","v":"2022/23"},null,null,{"$f":"MyYear5","v":"2023/24"},null,null,{"$f":"MyYear6","v":"2024/25"},null,null,{"$f":"MyYear7","v":"2025/26"},null,null," Comment",null,null,null,null,"Related MTSF Priority"]
["Other reallocations",2,null,null,null,null,"Performance indicator","Current performance","Performance @ benchmark level","Change","Original target","Revised target","Change","Original target","Revised target","Change","Original target","Revised target","Change"]
["Other reallocations",2]
["Other reallocations",2]
["Other reallocations",2]
["Other reallocations",2]
["Other reallocations",2]
["Other reallocations",2]
["Other reallocations",2]
["Other reallocations",2]
["Other reallocations",2]
["Other reallocations",2]
["Other reallocations",2]
["Other reallocations",2]
["Other reallocations",2]
["Other reallocations",2]
["Other reallocations",2]
[]
[]
[]
[]
[]
[null,null,null,null,null,4,"Impact of adjustments on personnel headcount numbers"]
[{"$f":"$G$3","v":"Other reallocations"},4,null,null,null,null,null,{"$f":"MyYear4","v":"2022/23"},null,null,{"$f":"MyYear5","v":"2023/24"},null,null,{"$f":"MyYear6","v":"2024/25"},null,null,{"$f":"MyYear7","v":"2025/26"},null,null," Comment"]
["Other reallocations",4,null,null,null,null,"Salary level","Current number","Potential number if benchmark is achieved","Change in number","Original number","Revised number","Change in number","Original number","Revised number","Change in number","Original number","Revised number","Change in number"]
["Other reallocations",4,null,null,null,null,1,null,null,{"$f":"I131-H131","v":0},null,null,{"$f":"L131-K131","v":0},null,null,{"$f":"O131-N131","v":0},null,null,{"$f":"R131-Q131","v":0}]
["Other reallocations",4,null,null,null,null,2,null,null,0,null,null,0,null,null,0,null,null,0]
["Other reallocations",4,null,null,null,null,3,null,null,0,null,null,0,null,null,0,null,null,0]
["Other reallocations",4,null,null,null,null,4,null,null,0,null,null,0,null,null,0,null,null,0]
["Other reallocations",4,null,null,null,null,5,null,null,0,null,null,0,null,null,0,null,null,0]
["Other reallocations",4,null,null,null,null,6,null,null,0,null,null,0,null,null,0,null,null,0]
["Other reallocations",4,null,null,null,null,7,null,null,0,null,null,0,null,null,0,null,null,0]
["Other reallocations",4,null,null,null,null,8,null,null,0,null,null,0,null,null,0,null,null,0]
["Other reallocations",4,null,null,null,null,9,null,null,0,null,null,0,null,null,0,null,null,0]
["Other reallocations",4,null,null,null,null,10,null,null,0,null,null,0,null,null,0,null,null,0]
["Other reallocations",4,null,null,null,null,11,null,null,0,null,null,0,null,null,0,null,null,0]
["Other reallocations",4,null,null,null,null,12,null,null,0,null,null,0,null,null,0,null,null,0]
["Other reallocations",4,null,null,null,null,13,null,null,0,null,null,0,null,null,0,null,null,0]
["Other reallocations",4,null,null,null,null,14,null,null,0,null,null,0,null,null,0,null,null,0]
["Other reallocations",4,null,null,null,null,15,null,null,0,null,null,0,null,null,0,null,null,0]
["Other reallocations",4,null,null,null,null,16,null,null,0,null,null,0,null,null,0,null,null,0]
["Other reallocations",4,null,null,null,null,"Other",null,null,0,null,null,0,null,null,0,null,null,0]
["Other reallocations",4,null,null,null,null,"Other",null,null,0,null,null,0,null,null,0,null,null,0]
["Other reallocations",4,null,null,null,null,"Other",null,null,0,null,null,0,null,null,0,null,null,0]
["Other reallocations",4,null,null,null,null,"Other",null,null,0,null,null,0,null,null,0,null,null,0]
["Other reallocations",4,null,null,null,null,"Total",{"$f":"SUM(H131:H150)","v":0},0,0,{"$f":"SUM(K131:K150)","v":0},0,0,0,0,0,0,0,0]
[]
[]
[]
[]
[]
[null,null,null,null,null,5,"Impact of adjustments on infrastructure projects"]
[{"$f":"$G$3","v":"Other reallocations"},3,null,null,null,null,null,{"$f":"MyYear4","v":"2022/23"},null,null,{"$f":"MyYear5","v":"2023/24"},null,null,{"$f":"MyYear6","v":"2024/25"},null,null,{"$f":"MyYear7","v":"2025/26"},null,null," Comment"]
["Other reallocations",3,null,null,null,null,"Project name","Current number","Market or best in class benchmark","Change","Original amount","Revised amount","Change","Original amount","Revised amount","Change","Original amount","Revised amount","Change"]
["Other reallocations",3,null,null,null,null,null,null,null,{"$f":"I160-H160","v":0},null,null,{"$f":"L160-K160","v":0},null,null,{"$f":"O160-N160","v":0},null,null,{"$f":"R160-Q160","v":0}]
["Other reallocations",3,null,null,null,null,null,null,null,0,null,null,0,null,null,0,null,null,0]
["Other reallocations",3,null,null,null,null,null,null,null,0,null,null,0,null,null,0,null,null,0]
["Other reallocations",3,null,null,null,null,null,null,null,0,null,null,0,null,null,0,null,null,0]
["Other reallocations",3,null,null,null,null,null,null,null,0,null,null,0,null,null,0,null,null,0]
["Other reallocations",3,null,null,null,null,null,null,null,0,null,null,0,null,null,0,null,null,0]
["Other reallocations",3,null,null,null,null,null,null,null,0,null,null,0,null,null,0,null,null,0]
["Other reallocations",3,null,null,null,null,null,null,null,0,null,null,0,null,null,0,null,null,0]
["Other reallocations",3,null,null,null,null,null,null,null,0,null,null,0,null,null,0,null,null,0]
["Other reallocations",3,null,null,null,null,null,null,null,0,null,null,0,null,null,0,null,null,0]
["Other reallocations",3,null,null,null,null,null,null,null,0,null,null,0,null,null,0,null,null,0]
["Other reallocations",3,null,null,null,null,null,null,null,0,null,null,0,null,null,0,null,null,0]
["Other reallocations",3,null,null,null,null,null,null,null,0,null,null,0,null,null,0,null,null,0]
["Other reallocations",3,null,null,null,null,null,null,null,0,null,null,0,null,null,0,null,null,0]
["Other reallocations",3,null,null,null,null,null,null,null,0,null,null,0,null,null,0,null,null,0]
["Other reallocations",3,null,null,null,null,null,null,null,0,null,null,0,null,null,0,null,null,0]
["Other reallocations",3,null,null,null,null,null,null,null,0,null,null,0,null,null,0,null,null,0]
["Other reallocations",3,null,null,null,null,null,null,null,0,null,null,0,null,null,0,null,null,0]
["Other reallocations",3,null,null,null,null,null,null,null,0,null,null,0,null,null,0,null,null,0]
["Other reallocations",3,null,null,null,null,null,null,null,0,null,null,0,null,null,0,null,null,0]
["Other reallocations",3,null,null,null,null,null,null,null,0,null,null,0,null,null,0,null,null,0]
["Other reallocations",3,null,null,null,null,null,null,null,0,null,null,0,null,null,0,null,null,0]
["Other reallocations",3,null,null,null,null,null,null,null,0,null,null,0,null,null,0,null,null,0]
["Other reallocations",3,null,null,null,null,null,null,null,0,null,null,0,null,null,0,null,null,0]
["Other reallocations",3,null,null,null,null,null,null,null,0,null,null,0,null,null,0,null,null,0]
["Other reallocations",3,null,null,null,null,null,null,null,0,null,null,0,null,null,0,null,null,0]
["Other reallocations",3,null,null,null,null,null,null,null,0,null,null,0,null,null,0,null,null,0]
["Other reallocations",3,null,null,null,null,null,null,null,0,null,null,0,null,null,0,null,null,0]
["Other reallocations",3,null,null,null,null,null,null,null,0,null,null,0,null,null,0,null,null,0]
["Other reallocations",3,null,null,null,null,null,null,null,0,null,null,0,null,null,0,null,null,0]
["Other reallocations",3,null,null,null,null,null,null,null,0,null,null,0,null,null,0,null,null,0]
["Other reallocations",3,null,null,null,null,null,null,null,0,null,null,0,null,null,0,null,null,0]
["Other reallocations",3,null,null,null,null,null,null,null,0,null,null,0,null,null,0,null,null,0]
["Other reallocations",3,null,null,null,null,null,null,null,0,null,null,0,null,null,0,null,null,0]
["Other reallocations",3,null,null,null,null,null,null,null,0,null,null,0,null,null,0,null,null,0]
["Other reallocations",3,null,null,null,null,null,null,null,0,null,null,0,null,null,0,null,null,0]
["Other reallocations",3,null,null,null,null,null,null,null,0,null,null,0,null,null,0,null,null,0]
["Other reallocations",3,null,null,null,null,null,null,null,0,null,null,0,null,null,0,null,null,0]
["Other reallocations",3,null,null,null,null,null,null,null,0,null,null,0,null,null,0,null,null,0]
["Other reallocations",3,null,null,null,null,null,null,null,0,null,null,0,null,null,0,null,null,0]
["Other reallocations",3,null,null,null,null,null,null,null,0,null,null,0,null,null,0,null,null,0]
["Other reallocations",3,null,null,null,null,null,null,null,0,null,null,0,null,null,0,null,null,0]
["Other reallocations",3,null,null,null,null,null,null,null,0,null,null,0,null,null,0,null,null,0]
["Other reallocations",3,null,null,null,null,null,null,null,0,null,null,0,null,null,0,null,null,0]
["Other reallocations",3,null,null,null,null,null,null,null,0,null,null,0,null,null,0,null,null,0]
["Other reallocations",3,null,null,null,null,null,null,null,0,null,null,0,null,null,0,null,null,0]
["Other reallocations",3,null,null,null,null,null,null,null,0,null,null,0,null,null,0,null,null,0]
["Other reallocations",3,null,null,null,null,null,null,null,0,null,null,0,null,null,0,null,null,0]
["Other reallocations",3,null,null,null,null,null,null,null,0,null,null,0,null,null,0,null,null,0]
["Other reallocations",3,null,null,null,null,null,null,null,0,null,null,0,null,null,0,null,null,0]
["Other reallocations",3,null,null,null,null,"Total",{"$f":"SUM(H160:H209)","v":0},0,0,0,0,0,0,0,0,0,0,0]

{"sheet":"Metadata","index":16,"n_rows":26,"n_cols":4,"rows_kept":26,"cut":false,"hidden":true,"merged":[]}
[]
[null,"Metadata"]
[null,"ContextData","ProcessActivity","NAT_MTEC"]
[null,null,"Province","National"]
[null,null,"Department",{"$f":"MyDeptName","v":"Parliament"}]
[null,null,"Month"]
[null,null,"Fin Year","2023/24"]
[null,null,"VoteNo",{"$f":"MyVoteNo","v":2}]
[null,null,"Identifier"]
[null,null,"ProgSectionCount"]
[null,null,"SubprogSectionCount"]
[null,"SourceRef","name",{"$f":"Welcome!G11","v":0}]
[null,null,"email",{"$f":"Welcome!G12","v":0}]
[null,null,"telephone",{"$f":"Welcome!G13","v":0}]
[null,null,"mobile",{"$f":"Welcome!G14","v":0}]
[null,"Platform","file modified",{"$f":"NOW()","v":44719.719731249999}]
[null,null,"OS version",{"$f":"INFO(\"OSVERSION\")","v":"Windows (64-bit) NT 10.00"}]
[null,null,"Excel version",{"$f":"INFO(\"RELEASE\")","v":"16.0"}]
[null,"SourceControl","SourceIdentifier",{"$f":"CONCATENATE(D3,\"_\",D9,\"_\",D16)","v":"NAT_MTEC__44719.71973125"}]
[null,null,"Filename",{"$f":"MID(CELL(\"filename\",A1),FIND(\"[\",CELL(\"filename\",A1))+1,FIND(\"]\",CELL(\"filename\",A1))-FIND(\"[\",CELL(\"filename\",A1))-1)","v":"MTEC2023-Vote 02.xlsm"}]
[null,null,"FilePath",{"$f":"LEFT(CELL(\"filename\",A1),FIND(\"[\",CELL(\"filename\",A1),1)-1)","v":"\\\\cenvf03.treasury.gov.za\\Publications\\1. Budget\\2023\\1. MTEC\\MTEC Workbook\\Master Workbook file\\Model\\Rollout\\New folder\\"}]
[null,null,"template_versionDate",{"$f":"DATE(2015,6,26)","v":42181}]
[null,null,"LockDate1",{"$f":"DATE(2015,2,8)","v":42043}]
[null,null,"lockDate2",{"$f":"DATE(2015,2,8)","v":42043}]
[null,null,"LockStatus1",1]
[null,null,"LockStatus2",1]

{"sheet":"Sheet1","index":17,"n_rows":50,"n_cols":45,"rows_kept":50,"cut":false,"hidden":true,"merged":[]}
[]
[null,"Department:","Cooperative Governance"]
[null,null,null,null,null,null,null,null,null,null,null,null,null,null,null,null,null,null,null,null,null,null,null,null,null,null,null,null,null,null,null,null,null,"Ceiling Dept",null,null,null,null,null,null,"Ceiling CoE"]
[null,null,null,null,null,null,null,null,null,null,null,null,null,null,null,null,null,null,null,null,"Check Ceilings"]
[null,null,null,null,null,null,null,null,{"$f":"20-COUNTIF(J7:J26,\"\")","v":0},null,null,null,null,null,null,null,null,null,null,null,{"$f":"MyYear5","v":"2023/24"},{"$f":"MyYear6","v":"2024/25"},{"$f":"MyYear7","v":"2025/26"},"Check","Message",null,null,"ShtNames","Lock","Hide",null,null,null,"Vote No. - N","Department","2023/24","2024/25","2025/26",null,null,"Vote No. - N","Department","2023/24","2024/25","2025/26"]
[null,"UID_Org","Department","Programme","Subprogramme","Implementation programme","IP No",null,"IP No","Implementation programme",null,null,"ShtName",null,null,null,"Gov_Priority",null,null,"Dept",{"$f":"Data!CD9","v":0},{"$f":"Data!CE9","v":0},{"$f":"Data!CF9","v":0},{"$f":"IF(OR(U6<0,V6<0,W6<0),1,0)","v":0},{"$f":"IF(X6=1,\"Departmental baseline ceiling exceeded!\")","v":false},null,null,"Welcome",1,0,null,null,null,29,"Agriculture, Land Reform and Rural Development",17387702,18168574,18982512,null,null,29,"Agriculture, Land Reform and Rural Development",3856499,4029693,4210223]
[null,"03|01|01","Cooperative Governance","Administration","Ministry",null,null,null,1,{"$f":"IFERROR(INDEX(#REF!,MATCH(0,COUNTIF(Sheet1!$J$6:J6,#REF!),0)),\"\")","v":""},null,null,"IP1",null,{"$f":"IFERROR(INDEX((t_PolicyMap[Implementation programme]),MATCH(I7,t_PolicyMap[IP No],0)),\"\")","v":""},null,"Priority 1: A Capable, Ethical and Developmental State",null,null,"CoE",{"$f":"Data!CD12","v":0},{"$f":"Data!CE12","v":0},{"$f":"Data!CF12","v":0},{"$f":"IF(OR(U7<0,V7<0,W7<0),1,0)","v":0},{"$f":"IF(X7=1,\"Compensation baseline ceiling exceeded!\")","v":false},null,null,"Notes",1,0,null,null,null,16,"Basic Education",30388009,31406684,32813705,null,null,16,"Basic Education",541065,565363,590690]
[null,"03|01|02","Cooperative Governance","Administration","Management",null,null,null,2,{"$f":"IFERROR(INDEX(#REF!,MATCH(0,COUNTIF(Sheet1!$J$6:J7,#REF!),0)),\"\")","v":""},null,null,"IP2",null,{"$f":"IFERROR(INDEX((t_PolicyMap[Implementation programme]),MATCH(I8,t_PolicyMap[IP No],0)),\"\")","v":""},null,"Priority 2: Economic Transformation and Job Creation",null,null,null,null,null,null,{"$f":"SUM(X6:X7)","v":0},null,null,null,"Pivot % growth",0,0,null,null,null,42,"Centre for Public Service Innovation",45363,47400,49526,null,null,42,"Centre for Public Service Innovation",24869,25985,27150]
[null,"03|01|03","Cooperative Governance","Administration","Corporate Services",null,null,null,3,{"$f":"IFERROR(INDEX(#REF!,MATCH(0,COUNTIF(Sheet1!$J$6:J8,#REF!),0)),\"\")","v":""},null,null,"IP3",null,{"$f":"IFERROR(INDEX((t_PolicyMap[Implementation programme]),MATCH(I9,t_PolicyMap[IP No],0)),\"\")","v":""},null,"Priority 3: Education, Skills and Health",null,null,null,null,null,null,null,null,null,null,"Pivot_T",0,0,null,null,null,21,"Civilian Secretariat for the Police Service",150489,157245,164284,null,null,21,"Civilian Secretariat for the Police Service",105189,109906,114831]
[null,"03|01|04","Cooperative Governance","Administration","Financial Services",null,null,null,4,{"$f":"IFERROR(INDEX(#REF!,MATCH(0,COUNTIF(Sheet1!$J$6:J9,#REF!),0)),\"\")","v":""},null,null,null,null,{"$f":"IFERROR(INDEX((t_PolicyMap[Implementation programme]),MATCH(I10,t_PolicyMap[IP No],0)),\"\")","v":""},null,"Priority 4: Consolidating the Social Wage through Reliable and Quality Basic Services",null,null,null,null,null,null,null,null,null,null,"Service delivery impact",0,0,null,null,null,30,"Communications and Digital Technologies",2426409,2535360,2583461,null,null,30,"Communications and Digital Technologies",291288,304366,318003]
[null,"03|01|05","Cooperative Governance","Administration","Internal Audit and Risk Management",null,null,null,5,{"$f":"IFERROR(INDEX(#REF!,MATCH(0,COUNTIF(Sheet1!$J$6:J10,#REF!),0)),\"\")","v":""},null,null,null,null,{"$f":"IFERROR(INDEX((t_PolicyMap[Implementation programme]),MATCH(I11,t_PolicyMap[IP No],0)),\"\")","v":""},null,"Priority 5: Spatial Integration, Human Settlements and Local Government",null,null,null,null,null,null,null,null,null,null,"Performance impact",0,0,null,null,null,3,"Cooperative Governance",119225831,127419419,133127805,null,null,3,"Cooperative Governance",333973,348968,364600]
[null,"03|01|06","Cooperative Governance","Administration","Office Accommodation",null,null,null,6,{"$f":"IFERROR(INDEX(#REF!,MATCH(0,COUNTIF(Sheet1!$J$6:J11,#REF!),0)),\"\")","v":""},null,null,null,null,{"$f":"IFERROR(INDEX((t_PolicyMap[Implementation programme]),MATCH(I12,t_PolicyMap[IP No],0)),\"\")","v":""},null,"Priority 6: Social Cohesion and Safer Communities",null,null,null,null,null,null,null,null,null,null,"Pivot Infra impact",0,0,null,null,null,22,"Correctional Services",25593909,26743311,27941397,null,null,22,"Correctional Services",16928739,17689000,18481466]
[null,"03|02|01","Cooperative Governance","Regional and Urban Development and Legislative Support","Management: Regional and Urban Development and Legislative Support",null,null,null,7,{"$f":"IFERROR(INDEX(#REF!,MATCH(0,COUNTIF(Sheet1!$J$6:J12,#REF!),0)),\"\")","v":""},null,null,null,null,{"$f":"IFERROR(INDEX((t_PolicyMap[Implementation programme]),MATCH(I13,t_PolicyMap[IP No],0)),\"\")","v":""},null,"Priority 7: A Better Africa and World",null,null,null,null,null,null,null,null,null,null,"Pivot Personnel impact",0,0,null,null,null,23,"Defence",47959805,49277735,51485360,null,null,23,"Defence",29649010,30980536,32368468]
[null,"03|02|02","Cooperative Governance","Regional and Urban Development and Legislative Support","Local Government Legislative Support and Institutional Establishment",null,null,null,8,{"$f":"IFERROR(INDEX(#REF!,MATCH(0,COUNTIF(Sheet1!$J$6:J13,#REF!),0)),\"\")","v":""},null,null,null,null,{"$f":"IFERROR(INDEX((t_PolicyMap[Implementation programme]),MATCH(I14,t_PolicyMap[IP No],0)),\"\")","v":""},null,"Departmental mandate",null,null,null,null,null,null,null,null,null,null,"Pivot HRBP",0,0,null,null,null,31,"Employment and Labour",3983468,3772616,3941622,null,null,31,"Employment and Labour",1378647,1440561,1505099]
[null,"03|02|03","Cooperative Governance","Regional and Urban Development and Legislative Support","Urban Development Planning",null,null,null,9,{"$f":"IFERROR(INDEX(#REF!,MATCH(0,COUNTIF(Sheet1!$J$6:J14,#REF!),0)),\"\")","v":""},null,null,null,null,{"$f":"IFERROR(INDEX((t_PolicyMap[Implementation programme]),MATCH(I15,t_PolicyMap[IP No],0)),\"\")","v":""},null,null,null,null,null,null,null,null,null,null,null,null,"Data",1,0,null,null,null,32,"Forestry, Fisheries and the Environment",8947150,9348937,9767746,null,null,32,"Forestry, Fisheries and the Environment",1889993,1974872,2063344]
[null,"03|02|04","Cooperative Governance","Regional and Urban Development and Legislative Support","Spatial Planning Districts and Regions",null,null,null,10,{"$f":"IFERROR(INDEX(#REF!,MATCH(0,COUNTIF(Sheet1!$J$6:J15,#REF!),0)),\"\")","v":""},null,null,null,null,{"$f":"IFERROR(INDEX((t_PolicyMap[Implementation programme]),MATCH(I16,t_PolicyMap[IP No],0)),\"\")","v":""},null,null,null,null,null,null,null,null,null,null,null,null,"Summary",1,0,null,null,null,4,"Government Communication and Information System",714862,746830,780277,null,null,4,"Government Communication and Information System",275218,287579,300460]
[null,"03|02|05","Cooperative Governance","Regional and Urban Development and Legislative Support","Intergovernmental Policy and Practice",null,null,null,11,{"$f":"IFERROR(INDEX(#REF!,MATCH(0,COUNTIF(Sheet1!$J$6:J16,#REF!),0)),\"\")","v":""},null,null,null,null,{"$f":"IFERROR(INDEX((t_PolicyMap[Implementation programme]),MATCH(I17,t_PolicyMap[IP No],0)),\"\")","v":""},null,null,null,null,null,null,null,null,null,null,null,null,"SRT1",1,0,null,null,null,18,"Health",60620455,62157612,64942267,null,null,18,"Health",760135,794290,829876]
[null,"03|02|06","Cooperative Governance","Regional and Urban Development and Legislative Support","Municipal Demarcation Transition Grant",null,null,null,12,{"$f":"IFERROR(INDEX(#REF!,MATCH(0,COUNTIF(Sheet1!$J$6:J17,#REF!),0)),\"\")","v":""},null,null,null,null,{"$f":"IFERROR(INDEX((t_PolicyMap[Implementation programme]),MATCH(I18,t_PolicyMap[IP No],0)),\"\")","v":""},null,null,null,null,null,null,null,null,null,null,null,null,"SRT2",1,0,null,null,null,17,"Higher Education and Training",136190371,144509123,151981819,null,null,17,"Higher Education and Training",10962604,11454929,11968107]
[null,"03|02|07","Cooperative Governance","Regional and Urban Development and Legislative Support","Municipal Demarcation Board",null,null,null,13,{"$f":"IFERROR(INDEX(#REF!,MATCH(0,COUNTIF(Sheet1!$J$6:J18,#REF!),0)),\"\")","v":""},null,null,null,null,{"$f":"IFERROR(INDEX((t_PolicyMap[Implementation programme]),MATCH(I19,t_PolicyMap[IP No],0)),\"\")","v":""},null,null,null,null,null,null,null,null,null,null,null,null,"SRT3",1,0,null,null,null,5,"Home Affairs",9332567,9751680,10188556,null,null,5,"Home Affairs",3781770,3951607,4128639]
[null,"03|02|08","Cooperative Governance","Regional and Urban Development and Legislative Support","South African Cities Network",null,null,null,14,{"$f":"IFERROR(INDEX(#REF!,MATCH(0,COUNTIF(Sheet1!$J$6:J19,#REF!),0)),\"\")","v":""},null,null,null,null,{"$f":"IFERROR(INDEX((t_PolicyMap[Implementation programme]),MATCH(I20,t_PolicyMap[IP No],0)),\"\")","v":""},null,null,null,null,null,null,null,null,null,null,null,null,"SRT4",1,0,null,null,null,33,"Human Settlements",34457574,35508742,37099532,null,null,33,"Human Settlements",403176,421283,440156]
[null,"03|02|09","Cooperative Governance","Regional and Urban Development and Legislative Support","Integrated Urban Development Grant",null,null,null,15,{"$f":"IFERROR(INDEX(#REF!,MATCH(0,COUNTIF(Sheet1!$J$6:J20,#REF!),0)),\"\")","v":""},null,null,null,null,{"$f":"IFERROR(INDEX((t_PolicyMap[Implementation programme]),MATCH(I21,t_PolicyMap[IP No],0)),\"\")","v":""},null,null,null,null,null,null,null,null,null,null,null,null,"Other reallocations",1,0,null,null,null,24,"Independent Police Investigative Directorate",357989,374064,390822,null,null,24,"Independent Police Investigative Directorate",239613,250376,261591]
[null,"03|03|01","Cooperative Governance","Institutional Development","Management: Institutional Development",null,null,null,16,{"$f":"IFERROR(INDEX(#REF!,MATCH(0,COUNTIF(Sheet1!$J$6:J21,#REF!),0)),\"\")","v":""},null,null,null,null,{"$f":"IFERROR(INDEX((t_PolicyMap[Implementation programme]),MATCH(I22,t_PolicyMap[IP No],0)),\"\")","v":""},null,null,null,null,null,null,null,null,null,null,null,null,"Metadata",1,1,null,null,null,6,"International Relations and Cooperation",6611037,6907933,7217415,null,null,6,"International Relations and Cooperation",2839854,2967390,3100331]
[null,"03|03|02","Cooperative Governance","Institutional Development","Municipal Human Resources Management Systems",null,null,null,17,{"$f":"IFERROR(INDEX(#REF!,MATCH(0,COUNTIF(Sheet1!$J$6:J22,#REF!),0)),\"\")","v":""},null,null,null,null,{"$f":"IFERROR(INDEX((t_PolicyMap[Implementation programme]),MATCH(I23,t_PolicyMap[IP No],0)),\"\")","v":""},null,null,null,null,null,null,null,null,null,null,null,null,"Sheet1",0,1,null,null,null,25,"Justice and Constitutional Development",22210993,23209291,24249060,null,null,25,"Justice and Constitutional Development",12522222,13086101,13672358]
[null,"03|03|03","Cooperative Governance","Institutional Development","Municipal Finance",null,null,null,18,{"$f":"IFERROR(INDEX(#REF!,MATCH(0,COUNTIF(Sheet1!$J$6:J23,#REF!),0)),\"\")","v":""},null,null,null,null,{"$f":"IFERROR(INDEX((t_PolicyMap[Implementation programme]),MATCH(I24,t_PolicyMap[IP No],0)),\"\")","v":""},null,null,null,null,null,null,null,null,null,null,null,null,"HRBP_Data",1,1,null,null,null,26,"Military Veterans",662993,692764,723793,null,null,26,"Military Veterans",130736,136607,142727]
[null,"03|03|04","Cooperative Governance","Institutional Development","Citizen Engagement",null,null,null,19,{"$f":"IFERROR(INDEX(#REF!,MATCH(0,COUNTIF(Sheet1!$J$6:J24,#REF!),0)),\"\")","v":""},null,null,null,null,{"$f":"IFERROR(INDEX((t_PolicyMap[Implementation programme]),MATCH(I25,t_PolicyMap[IP No],0)),\"\")","v":""},null,null,null,null,null,null,null,null,null,null,null,null,"Tables",0,1,null,null,null,34,"Mineral Resources and Energy",10653456,11205147,11707142,null,null,34,"Mineral Resources and Energy",1037131,1083709,1132261]
[null,"03|03|05","Cooperative Governance","Institutional Development","Anti-Corruption and Good Governance",null,null,null,20,{"$f":"IFERROR(INDEX(#REF!,MATCH(0,COUNTIF(Sheet1!$J$6:J25,#REF!),0)),\"\")","v":""},null,null,null,null,{"$f":"IFERROR(INDEX((t_PolicyMap[Implementation programme]),MATCH(I26,t_PolicyMap[IP No],0)),\"\")","v":""},null,null,null,null,null,null,null,null,null,null,null,null,null,null,null,null,null,null,7,"National School of Government",225944,235642,246196,null,null,7,"National School of Government",59309,61974,64750]
[null,"03|03|06","Cooperative Governance","Institutional Development","Municipal Property Rates",null,null,null,null,null,null,null,null,null,null,null,null,null,null,null,null,null,null,null,null,null,null,null,null,null,null,null,null,8,"National Treasury",930737811,977634759,1039728978,null,null,8,"National Treasury",890023,902007,942414]
[null,"03|03|07","Cooperative Governance","Institutional Development","Local Government Equitable Share ",null,null,null,null,null,null,null,null,null,null,null,null,null,null,null,null,null,null,null,null,null,null,null,null,null,null,null,null,27,"Office of the Chief Justice",2357611,2463491,2573851,null,null,27,"Office of the Chief Justice",1740705,1818880,1900371]
[null,"03|03|08","Cooperative Governance","Institutional Development","South African Local Government Association",null,null,null,null,null,null,null,null,null,null,null,null,null,null,null,null,null,null,null,null,null,null,null,null,null,null,null,null,2,"Parliament",2657570,2776916,2901323,null,null,2,"Parliament",1399164,1461998,1527497]
[null,"03|03|09","Cooperative Governance","Institutional Development","Municipal Systems Improvement Grant ",null,null,null,null,null,null,null,null,null,null,null,null,null,null,null,null,null,null,null,null,null,null,null,null,null,null,null,null,9,"Planning, Monitoring and Evaluation",466812,487769,509615,null,null,9,"Planning, Monitoring and Evaluation",311990,326003,340607]
[null,"03|03|11","Cooperative Governance","Institutional Development","United Cities and Local Government of Africa",null,null,null,null,null,null,null,null,null,null,null,null,null,null,null,null,null,null,null,null,null,null,null,null,null,null,null,null,28,"Police",99018831,104373725,109049663,null,null,28,"Police",77232311,81608782,85264855]
[null,"03|04|01","Cooperative Governance","National Disaster Management Centre","Management: Head of the National Disaster Management Centre",null,null,null,null,null,null,null,null,null,null,null,null,null,null,null,null,null,null,null,null,null,null,null,null,null,null,null,null,10,"Public Enterprises",297553,310915,324839,null,null,10,"Public Enterprises",179974,188057,196481]
[null,"03|04|02","Cooperative Governance","National Disaster Management Centre","Disaster Risk Reduction, Capacity Building and Intervention",null,null,null,null,null,null,null,null,null,null,null,null,null,null,null,null,null,null,null,null,null,null,null,null,null,null,null,null,12,"Public Service Commission",284921,297715,311054,null,null,12,"Public Service Commission",212877,222437,232403]
[null,"03|04|03","Cooperative Governance","National Disaster Management Centre","Legislation and Policy Management",null,null,null,null,null,null,null,null,null,null,null,null,null,null,null,null,null,null,null,null,null,null,null,null,null,null,null,null,11,"Public Service and Administration",543462,567875,593307,null,null,11,"Public Service and Administration",290747,303804,317415]
[null,"03|04|04","Cooperative Governance","National Disaster Management Centre","Integrated Provincial Disaster Management Support, Monitoring and Evaluation Systems",null,null,null,null,null,null,null,null,null,null,null,null,null,null,null,null,null,null,null,null,null,null,null,null,null,null,null,null,13,"Public Works and Infrastructure",8568946,8954214,9355359,null,null,13,"Public Works and Infrastructure",571442,597104,623854]
[null,"03|04|05","Cooperative Governance","National Disaster Management Centre","Fire Services",null,null,null,null,null,null,null,null,null,null,null,null,null,null,null,null,null,null,null,null,null,null,null,null,null,null,null,null,35,"Science and Innovation",9244581,9659756,10092514,null,null,35,"Science and Innovation",358376,374470,391249]
[null,"03|04|06","Cooperative Governance","National Disaster Management Centre","Information Technology, Intelligence and Information Management Systems",null,null,null,null,null,null,null,null,null,null,null,null,null,null,null,null,null,null,null,null,null,null,null,null,null,null,null,null,36,"Small Business Development",2569927,2685340,2805646,null,null,36,"Small Business Development",220264,246706,257760]
[null,"03|04|07","Cooperative Governance","National Disaster Management Centre","Disaster Relief Grant",null,null,null,null,null,null,null,null,null,null,null,null,null,null,null,null,null,null,null,null,null,null,null,null,null,null,null,null,19,"Social Development",221041972,232974986,243412261,null,null,19,"Social Development",498009,520374,543688]
[null,"03|04|08","Cooperative Governance","National Disaster Management Centre","Municipal Disaster Recovery Grant",null,null,null,null,null,null,null,null,null,null,null,null,null,null,null,null,null,null,null,null,null,null,null,null,null,null,null,null,37,"Sport, Arts and Culture",6347204,6149504,6425006,null,null,37,"Sport, Arts and Culture",376422,393325,410947]
[null,"03|04|09","Cooperative Governance","National Disaster Management Centre","Provincial Disaster Recovery Grant",null,null,null,null,null,null,null,null,null,null,null,null,null,null,null,null,null,null,null,null,null,null,null,null,null,null,null,null,14,"Statistics South Africa",2644134,2774713,2899018,null,null,14,"Statistics South Africa",1600931,1684662,1760135]
[null,"03|05|01","Cooperative Governance","Local Government Support and Intervention Management","Management: Local Government Support and Interventions",null,null,null,null,null,null,null,null,null,null,null,null,null,null,null,null,null,null,null,null,null,null,null,null,null,null,null,null,1,"The Presidency",610485,637903,666479,null,null,1,"The Presidency",376377,393280,410898]
[null,"03|05|02","Cooperative Governance","Local Government Support and Intervention Management","Municipal Performance Monitoring",null,null,null,null,null,null,null,null,null,null,null,null,null,null,null,null,null,null,null,null,null,null,null,null,null,null,null,null,38,"Tourism",2492307,2604237,2720908,null,null,38,"Tourism",363524,379846,396864]
[null,"03|05|03","Cooperative Governance","Local Government Support and Intervention Management","Local Government Improvement Programme",null,null,null,null,null,null,null,null,null,null,null,null,null,null,null,null,null,null,null,null,null,null,null,null,null,null,null,null,39,"Trade, Industry and Competition",10887653,10553269,11026040,null,null,39,"Trade, Industry and Competition",1031246,1045762,1092612]
[null,"03|05|04","Cooperative Governance","Local Government Support and Intervention Management","Litigations and Interventions",null,null,null,null,null,null,null,null,null,null,null,null,null,null,null,null,null,null,null,null,null,null,null,null,null,null,null,null,15,"Traditional Affairs",179962,188044,196465,null,null,15,"Traditional Affairs",89020,93018,97185]
[null,"03|05|05","Cooperative Governance","Local Government Support and Intervention Management","Municipal Infrastructure Administration",null,null,null,null,null,null,null,null,null,null,null,null,null,null,null,null,null,null,null,null,null,null,null,null,null,null,null,null,40,"Transport",76907174,81658177,85316464,null,null,40,"Transport",531457,555328,580210]
[null,"03|05|06","Cooperative Governance","Local Government Support and Intervention Management","Municipal Infrastructure Grant",null,null,null,null,null,null,null,null,null,null,null,null,null,null,null,null,null,null,null,null,null,null,null,null,null,null,null,null,41,"Water and Sanitation",20155237,20913287,19624487,null,null,41,"Water and Sanitation",1741701,1819924,1901455]
[null,"03|05|07","Cooperative Governance","Local Government Support and Intervention Management","Municipal Infrastructure Support Agent",null,null,null,null,null,null,null,null,null,null,null,null,null,null,null,null,null,null,null,null,null,null,null,null,null,null,null,null,20,"Women, Youth and Persons with Disabilities",1031916,817034,853637,null,null,20,"Women, Youth and Persons with Disabilities",111943,116976,122218]
[null,"03|06|01","Cooperative Governance","Community Work Programme","Management: Community Work Programme"]
[null,"03|06|02","Cooperative Governance","Community Work Programme","Programme Coordination"]
[null,"03|06|03","Cooperative Governance","Community Work Programme","Partnerships, Norms, Standards and Innovation"]

{"sheet":"HRBP_Data","index":18,"n_rows":321,"n_cols":56,"rows_kept":321,"cut":false,"hidden":true,"merged":[]}
["VoteNo","Department","Programme No","Salary level","2021/22 Establishment: Number of funded posts as at 31 March 2022","2021/22 Establishment: Number of funded posts additional to the establishment","2021/22 FTE\nHeadcount","2021/22 Unit Costs","2021/22 \nOnce-off Payments per person","2021/22 Total Annual Cost","2022/23 Initial Headcount","2022/23 Unit Costs","2022/23 \nOnce-off Payments per person","2022/23 Vacant funded posts to be filled","2022/23 Headcount reductions to be made","2022/23 Revised Headcount","2022/23 Cost of vacant posts to be filled","2022/23 Savings from headcount reductions","2022/23 Projected Annual Cost","2023/24 Initial Headcount","2023/24 Unit Costs","2023/24 \nOnce-off Payments per person","2023/24 Vacant funded posts to be filled","2023/24 Headcount reductions to be made","2023/24 Revised Headcount","2023/24 Cost of vacant posts to be filled","2023/24 Savings from headcount reductions","2023/24 Projected Annual Cost","2024/25 Initial Headcount","2024/25 Unit Costs","2024/25 \nOnce-off Payments per person","2024/25 Vacant funded posts to be filled","2024/25 Headcount reductions to be made","2024/25 Revised Headcount","2024/25 Cost of vacant posts to be filled","2024/25 Savings from headcount reductions","2024/25 Projected Annual Cost","2025/26 Initial Headcount","2025/26 Unit Costs","2025/26 \nOnce-off Payments per person","2025/26 Vacant funded posts to be filled","2025/26 Headcount reductions to be made","2025/26 Revised Headcount","2025/26 Cost of vacant posts to be filled","2025/26 Savings from headcount reductions","2025/26 Projected Annual Cost","ValueIndi",null,null,null,null,"Strategies to Reduce Headcounts"]
["Vote 01","The Presidency",1,1,0,0,0,0,0,0,0,0,0,0,0,0,0,0,0,0,0,0,0,0,0,0,0,0,0,0,0,0,0,0,0,0,0,0,0,0,0,0,0,0,0,0,0,null,null,null,null,"Indicators","2022/23","2023/24","2024/25","2025/26"]
["Vote 01","The Presidency",1,2,0,0,0,0,0,0,0,0,0,0,0,0,0,0,0,0,0,0,0,0,0,0,0,0,0,0,0,0,0,0,0,0,0,0,0,0,0,0,0,0,0,0,0,null,null,null,null,"1. Employee initiated severance package"]
["Vote 01","The Presidency",1,3,0,0,0,0,0,0,0,0,0,0,0,0,0,0,0,0,0,0,0,0,0,0,0,0,0,0,0,0,0,0,0,0,0,0,0,0,0,0,0,0,0,0,0,null,null,null,null,"2. Early retirement"]
["Vote 01","The Presidency",1,4,0,0,0,0,0,0,0,0,0,0,0,0,0,0,0,0,0,0,0,0,0,0,0,0,0,0,0,0,0,0,0,0,0,0,0,0,0,0,0,0,0,0,0,null,null,null,null,"3. Natural attrition"]
["Vote 01","The Presidency",1,5,0,0,0,0,0,0,0,0,0,0,0,0,0,0,0,0,0,0,0,0,0,0,0,0,0,0,0,0,0,0,0,0,0,0,0,0,0,0,0,0,0,0,0,null,null,null,null,"4. Retirement"]
["Vote 01","The Presidency",1,6,0,0,0,0,0,0,0,0,0,0,0,0,0,0,0,0,0,0,0,0,0,0,0,0,0,0,0,0,0,0,0,0,0,0,0,0,0,0,0,0,0,0,0,null,null,null,null,"5. Contract termination"]
["Vote 01","The Presidency",1,7,0,0,0,0,0,0,0,0,0,0,0,0,0,0,0,0,0,0,0,0,0,0,0,0,0,0,0,0,0,0,0,0,0,0,0,0,0,0,0,0,0,0,0,null,null,null,null,"6. Redeployments (transfers to other departments)"]
["Vote 01","The Presidency",1,8,0,0,0,0,0,0,0,0,0,0,0,0,0,0,0,0,0,0,0,0,0,0,0,0,0,0,0,0,0,0,0,0,0,0,0,0,0,0,0,0,0,0,0,null,null,null,null,"Total",0,0,0,0]
["Vote 01","The Presidency",1,9,0,0,0,0,0,0,0,0,0,0,0,0,0,0,0,0,0,0,0,0,0,0,0,0,0,0,0,0,0,0,0,0,0,0,0,0,0,0,0,0,0,0,0]
["Vote 01","The Presidency",1,10,0,0,0,0,0,0,0,0,0,0,0,0,0,0,0,0,0,0,0,0,0,0,0,0,0,0,0,0,0,0,0,0,0,0,0,0,0,0,0,0,0,0,0]
["Vote 01","The Presidency",1,11,0,0,0,0,0,0,0,0,0,0,0,0,0,0,0,0,0,0,0,0,0,0,0,0,0,0,0,0,0,0,0,0,0,0,0,0,0,0,0,0,0,0,0]
["Vote 01","The Presidency",1,12,0,0,0,0,0,0,0,0,0,0,0,0,0,0,0,0,0,0,0,0,0,0,0,0,0,0,0,0,0,0,0,0,0,0,0,0,0,0,0,0,0,0,0]
["Vote 01","The Presidency",1,13,0,0,0,0,0,0,0,0,0,0,0,0,0,0,0,0,0,0,0,0,0,0,0,0,0,0,0,0,0,0,0,0,0,0,0,0,0,0,0,0,0,0,0]
["Vote 01","The Presidency",1,14,0,0,0,0,0,0,0,0,0,0,0,0,0,0,0,0,0,0,0,0,0,0,0,0,0,0,0,0,0,0,0,0,0,0,0,0,0,0,0,0,0,0,0]
["Vote 01","The Presidency",1,15,0,0,0,0,0,0,0,0,0,0,0,0,0,0,0,0,0,0,0,0,0,0,0,0,0,0,0,0,0,0,0,0,0,0,0,0,0,0,0,0,0,0,0]
["Vote 01","The Presidency",1,16,0,0,0,0,0,0,0,0,0,0,0,0,0,0,0,0,0,0,0,0,0,0,0,0,0,0,0,0,0,0,0,0,0,0,0,0,0,0,0,0,0,0,0]
["Vote 01","The Presidency",1,"Deputy Minister",0,0,0,0,0,0,0,0,0,0,0,0,0,0,0,0,0,0,0,0,0,0,0,0,0,0,0,0,0,0,0,0,0,0,0,0,0,0,0,0,0,0,0]
["Vote 01","The Presidency",1,"Minister",0,0,0,0,0,0,0,0,0,0,0,0,0,0,0,0,0,0,0,0,0,0,0,0,0,0,0,0,0,0,0,0,0,0,0,0,0,0,0,0,0,0,0]
["Vote 01","The Presidency",1,"Intern",0,0,0,0,0,0,0,0,0,0,0,0,0,0,0,0,0,0,0,0,0,0,0,0,0,0,0,0,0,0,0,0,0,0,0,0,0,0,0,0,0,0,0]
["Vote 01","The Presidency",1,"Other",0,0,0,0,0,0,0,0,0,0,0,0,0,0,0,0,0,0,0,0,0,0,0,0,0,0,0,0,0,0,0,0,0,0,0,0,0,0,0,0,0,0,0]
["Vote 01","The Presidency",2,1,0,0,0,0,0,0,0,0,0,0,0,0,0,0,0,0,0,0,0,0,0,0,0,0,0,0,0,0,0,0,0,0,0,0,0,0,0,0,0,0,0,0,0]
["Vote 01","The Presidency",2,2,0,0,0,0,0,0,0,0,0,0,0,0,0,0,0,0,0,0,0,0,0,0,0,0,0,0,0,0,0,0,0,0,0,0,0,0,0,0,0,0,0,0,0]
["Vote 01","The Presidency",2,3,0,0,0,0,0,0,0,0,0,0,0,0,0,0,0,0,0,0,0,0,0,0,0,0,0,0,0,0,0,0,0,0,0,0,0,0,0,0,0,0,0,0,0]
["Vote 01","The Presidency",2,4,0,0,0,0,0,0,0,0,0,0,0,0,0,0,0,0,0,0,0,0,0,0,0,0,0,0,0,0,0,0,0,0,0,0,0,0,0,0,0,0,0,0,0]
["Vote 01","The Presidency",2,5,0,0,0,0,0,0,0,0,0,0,0,0,0,0,0,0,0,0,0,0,0,0,0,0,0,0,0,0,0,0,0,0,0,0,0,0,0,0,0,0,0,0,0]
["Vote 01","The Presidency",2,6,0,0,0,0,0,0,0,0,0,0,0,0,0,0,0,0,0,0,0,0,0,0,0,0,0,0,0,0,0,0,0,0,0,0,0,0,0,0,0,0,0,0,0]
["Vote 01","The Presidency",2,7,0,0,0,0,0,0,0,0,0,0,0,0,0,0,0,0,0,0,0,0,0,0,0,0,0,0,0,0,0,0,0,0,0,0,0,0,0,0,0,0,0,0,0]
["Vote 01","The Presidency",2,8,0,0,0,0,0,0,0,0,0,0,0,0,0,0,0,0,0,0,0,0,0,0,0,0,0,0,0,0,0,0,0,0,0,0,0,0,0,0,0,0,0,0,0]
["Vote 01","The Presidency",2,9,0,0,0,0,0,0,0,0,0,0,0,0,0,0,0,0,0,0,0,0,0,0,0,0,0,0,0,0,0,0,0,0,0,0,0,0,0,0,0,0,0,0,0]
["Vote 01","The Presidency",2,10,0,0,0,0,0,0,0,0,0,0,0,0,0,0,0,0,0,0,0,0,0,0,0,0,0,0,0,0,0,0,0,0,0,0,0,0,0,0,0,0,0,0,0]
["Vote 01","The Presidency",2,11,0,0,0,0,0,0,0,0,0,0,0,0,0,0,0,0,0,0,0,0,0,0,0,0,0,0,0,0,0,0,0,0,0,0,0,0,0,0,0,0,0,0,0]
["Vote 01","The Presidency",2,12,0,0,0,0,0,0,0,0,0,0,0,0,0,0,0,0,0,0,0,0,0,0,0,0,0,0,0,0,0,0,0,0,0,0,0,0,0,0,0,0,0,0,0]
["Vote 01","The Presidency",2,13,0,0,0,0,0,0,0,0,0,0,0,0,0,0,0,0,0,0,0,0,0,0,0,0,0,0,0,0,0,0,0,0,0,0,0,0,0,0,0,0,0,0,0]
["Vote 01","The Presidency",2,14,0,0,0,0,0,0,0,0,0,0,0,0,0,0,0,0,0,0,0,0,0,0,0,0,0,0,0,0,0,0,0,0,0,0,0,0,0,0,0,0,0,0,0]
["Vote 01","The Presidency",2,15,0,0,0,0,0,0,0,0,0,0,0,0,0,0,0,0,0,0,0,0,0,0,0,0,0,0,0,0,0,0,0,0,0,0,0,0,0,0,0,0,0,0,0]
["Vote 01","The Presidency",2,16,0,0,0,0,0,0,0,0,0,0,0,0,0,0,0,0,0,0,0,0,0,0,0,0,0,0,0,0,0,0,0,0,0,0,0,0,0,0,0,0,0,0,0]
["Vote 01","The Presidency",2,"Deputy Minister",0,0,0,0,0,0,0,0,0,0,0,0,0,0,0,0,0,0,0,0,0,0,0,0,0,0,0,0,0,0,0,0,0,0,0,0,0,0,0,0,0,0,0]
["Vote 01","The Presidency",2,"Minister",0,0,0,0,0,0,0,0,0,0,0,0,0,0,0,0,0,0,0,0,0,0,0,0,0,0,0,0,0,0,0,0,0,0,0,0,0,0,0,0,0,0,0]
["Vote 01","The Presidency",2,"Intern",0,0,0,0,0,0,0,0,0,0,0,0,0,0,0,0,0,0,0,0,0,0,0,0,0,0,0,0,0,0,0,0,0,0,0,0,0,0,0,0,0,0,0]
["Vote 01","The Presidency",2,"Other",0,0,0,0,0,0,0,0,0,0,0,0,0,0,0,0,0,0,0,0,0,0,0,0,0,0,0,0,0,0,0,0,0,0,0,0,0,0,0,0,0,0,0]
["Vote 01","The Presidency",3,1,0,0,0,0,0,0,0,0,0,0,0,0,0,0,0,0,0,0,0,0,0,0,0,0,0,0,0,0,0,0,0,0,0,0,0,0,0,0,0,0,0,0,0]
["Vote 01","The Presidency",3,2,0,0,0,0,0,0,0,0,0,0,0,0,0,0,0,0,0,0,0,0,0,0,0,0,0,0,0,0,0,0,0,0,0,0,0,0,0,0,0,0,0,0,0]
["Vote 01","The Presidency",3,3,0,0,0,0,0,0,0,0,0,0,0,0,0,0,0,0,0,0,0,0,0,0,0,0,0,0,0,0,0,0,0,0,0,0,0,0,0,0,0,0,0,0,0]
["Vote 01","The Presidency",3,4,0,0,0,0,0,0,0,0,0,0,0,0,0,0,0,0,0,0,0,0,0,0,0,0,0,0,0,0,0,0,0,0,0,0,0,0,0,0,0,0,0,0,0]
["Vote 01","The Presidency",3,5,0,0,0,0,0,0,0,0,0,0,0,0,0,0,0,0,0,0,0,0,0,0,0,0,0,0,0,0,0,0,0,0,0,0,0,0,0,0,0,0,0,0,0]
["Vote 01","The Presidency",3,6,0,0,0,0,0,0,0,0,0,0,0,0,0,0,0,0,0,0,0,0,0,0,0,0,0,0,0,0,0,0,0,0,0,0,0,0,0,0,0,0,0,0,0]
["Vote 01","The Presidency",3,7,0,0,0,0,0,0,0,0,0,0,0,0,0,0,0,0,0,0,0,0,0,0,0,0,0,0,0,0,0,0,0,0,0,0,0,0,0,0,0,0,0,0,0]
["Vote 01","The Presidency",3,8,0,0,0,0,0,0,0,0,0,0,0,0,0,0,0,0,0,0,0,0,0,0,0,0,0,0,0,0,0,0,0,0,0,0,0,0,0,0,0,0,0,0,0]
["Vote 01","The Presidency",3,9,0,0,0,0,0,0,0,0,0,0,0,0,0,0,0,0,0,0,0,0,0,0,0,0,0,0,0,0,0,0,0,0,0,0,0,0,0,0,0,0,0,0,0]
["Vote 01","The Presidency",3,10,0,0,0,0,0,0,0,0,0,0,0,0,0,0,0,0,0,0,0,0,0,0,0,0,0,0,0,0,0,0,0,0,0,0,0,0,0,0,0,0,0,0,0]
["Vote 01","The Presidency",3,11,0,0,0,0,0,0,0,0,0,0,0,0,0,0,0,0,0,0,0,0,0,0,0,0,0,0,0,0,0,0,0,0,0,0,0,0,0,0,0,0,0,0,0]
["Vote 01","The Presidency",3,12,0,0,0,0,0,0,0,0,0,0,0,0,0,0,0,0,0,0,0,0,0,0,0,0,0,0,0,0,0,0,0,0,0,0,0,0,0,0,0,0,0,0,0]
["Vote 01","The Presidency",3,13,0,0,0,0,0,0,0,0,0,0,0,0,0,0,0,0,0,0,0,0,0,0,0,0,0,0,0,0,0,0,0,0,0,0,0,0,0,0,0,0,0,0,0]
["Vote 01","The Presidency",3,14,0,0,0,0,0,0,0,0,0,0,0,0,0,0,0,0,0,0,0,0,0,0,0,0,0,0,0,0,0,0,0,0,0,0,0,0,0,0,0,0,0,0,0]
["Vote 01","The Presidency",3,15,0,0,0,0,0,0,0,0,0,0,0,0,0,0,0,0,0,0,0,0,0,0,0,0,0,0,0,0,0,0,0,0,0,0,0,0,0,0,0,0,0,0,0]
["Vote 01","The Presidency",3,16,0,0,0,0,0,0,0,0,0,0,0,0,0,0,0,0,0,0,0,0,0,0,0,0,0,0,0,0,0,0,0,0,0,0,0,0,0,0,0,0,0,0,0]
["Vote 01","The Presidency",3,"Deputy Minister",0,0,0,0,0,0,0,0,0,0,0,0,0,0,0,0,0,0,0,0,0,0,0,0,0,0,0,0,0,0,0,0,0,0,0,0,0,0,0,0,0,0,0]
["Vote 01","The Presidency",3,"Minister",0,0,0,0,0,0,0,0,0,0,0,0,0,0,0,0,0,0,0,0,0,0,0,0,0,0,0,0,0,0,0,0,0,0,0,0,0,0,0,0,0,0,0]
["Vote 01","The Presidency",3,"Intern",0,0,0,0,0,0,0,0,0,0,0,0,0,0,0,0,0,0,0,0,0,0,0,0,0,0,0,0,0,0,0,0,0,0,0,0,0,0,0,0,0,0,0]
["Vote 01","The Presidency",3,"Other",0,0,0,0,0,0,0,0,0,0,0,0,0,0,0,0,0,0,0,0,0,0,0,0,0,0,0,0,0,0,0,0,0,0,0,0,0,0,0,0,0,0,0]
["Vote 01","The Presidency",4,1,0,0,0,0,0,0,0,0,0,0,0,0,0,0,0,0,0,0,0,0,0,0,0,0,0,0,0,0,0,0,0,0,0,0,0,0,0,0,0,0,0,0,0]
["Vote 01","The Presidency",4,2,0,0,0,0,0,0,0,0,0,0,0,0,0,0,0,0,0,0,0,0,0,0,0,0,0,0,0,0,0,0,0,0,0,0,0,0,0,0,0,0,0,0,0]
["Vote 01","The Presidency",4,3,0,0,0,0,0,0,0,0,0,0,0,0,0,0,0,0,0,0,0,0,0,0,0,0,0,0,0,0,0,0,0,0,0,0,0,0,0,0,0,0,0,0,0]
["Vote 01","The Presidency",4,4,0,0,0,0,0,0,0,0,0,0,0,0,0,0,0,0,0,0,0,0,0,0,0,0,0,0,0,0,0,0,0,0,0,0,0,0,0,0,0,0,0,0,0]
["Vote 01","The Presidency",4,5,0,0,0,0,0,0,0,0,0,0,0,0,0,0,0,0,0,0,0,0,0,0,0,0,0,0,0,0,0,0,0,0,0,0,0,0,0,0,0,0,0,0,0]
["Vote 01","The Presidency",4,6,0,0,0,0,0,0,0,0,0,0,0,0,0,0,0,0,0,0,0,0,0,0,0,0,0,0,0,0,0,0,0,0,0,0,0,0,0,0,0,0,0,0,0]
["Vote 01","The Presidency",4,7,0,0,0,0,0,0,0,0,0,0,0,0,0,0,0,0,0,0,0,0,0,0,0,0,0,0,0,0,0,0,0,0,0,0,0,0,0,0,0,0,0,0,0]
["Vote 01","The Presidency",4,8,0,0,0,0,0,0,0,0,0,0,0,0,0,0,0,0,0,0,0,0,0,0,0,0,0,0,0,0,0,0,0,0,0,0,0,0,0,0,0,0,0,0,0]
["Vote 01","The Presidency",4,9,0,0,0,0,0,0,0,0,0,0,0,0,0,0,0,0,0,0,0,0,0,0,0,0,0,0,0,0,0,0,0,0,0,0,0,0,0,0,0,0,0,0,0]
["Vote 01","The Presidency",4,10,0,0,0,0,0,0,0,0,0,0,0,0,0,0,0,0,0,0,0,0,0,0,0,0,0,0,0,0,0,0,0,0,0,0,0,0,0,0,0,0,0,0,0]
["Vote 01","The Presidency",4,11,0,0,0,0,0,0,0,0,0,0,0,0,0,0,0,0,0,0,0,0,0,0,0,0,0,0,0,0,0,0,0,0,0,0,0,0,0,0,0,0,0,0,0]
["Vote 01","The Presidency",4,12,0,0,0,0,0,0,0,0,0,0,0,0,0,0,0,0,0,0,0,0,0,0,0,0,0,0,0,0,0,0,0,0,0,0,0,0,0,0,0,0,0,0,0]
["Vote 01","The Presidency",4,13,0,0,0,0,0,0,0,0,0,0,0,0,0,0,0,0,0,0,0,0,0,0,0,0,0,0,0,0,0,0,0,0,0,0,0,0,0,0,0,0,0,0,0]
["Vote 01","The Presidency",4,14,0,0,0,0,0,0,0,0,0,0,0,0,0,0,0,0,0,0,0,0,0,0,0,0,0,0,0,0,0,0,0,0,0,0,0,0,0,0,0,0,0,0,0]
["Vote 01","The Presidency",4,15,0,0,0,0,0,0,0,0,0,0,0,0,0,0,0,0,0,0,0,0,0,0,0,0,0,0,0,0,0,0,0,0,0,0,0,0,0,0,0,0,0,0,0]
["Vote 01","The Presidency",4,16,0,0,0,0,0,0,0,0,0,0,0,0,0,0,0,0,0,0,0,0,0,0,0,0,0,0,0,0,0,0,0,0,0,0,0,0,0,0,0,0,0,0,0]
["Vote 01","The Presidency",4,"Deputy Minister",0,0,0,0,0,0,0,0,0,0,0,0,0,0,0,0,0,0,0,0,0,0,0,0,0,0,0,0,0,0,0,0,0,0,0,0,0,0,0,0,0,0,0]
["Vote 01","The Presidency",4,"Minister",0,0,0,0,0,0,0,0,0,0,0,0,0,0,0,0,0,0,0,0,0,0,0,0,0,0,0,0,0,0,0,0,0,0,0,0,0,0,0,0,0,0,0]
["Vote 01","The Presidency",4,"Intern",0,0,0,0,0,0,0,0,0,0,0,0,0,0,0,0,0,0,0,0,0,0,0,0,0,0,0,0,0,0,0,0,0,0,0,0,0,0,0,0,0,0,0]
["Vote 01","The Presidency",4,"Other",0,0,0,0,0,0,0,0,0,0,0,0,0,0,0,0,0,0,0,0,0,0,0,0,0,0,0,0,0,0,0,0,0,0,0,0,0,0,0,0,0,0,0]
["Vote 01","The Presidency",5,1,0,0,0,0,0,0,0,0,0,0,0,0,0,0,0,0,0,0,0,0,0,0,0,0,0,0,0,0,0,0,0,0,0,0,0,0,0,0,0,0,0,0,0]
["Vote 01","The Presidency",5,2,0,0,0,0,0,0,0,0,0,0,0,0,0,0,0,0,0,0,0,0,0,0,0,0,0,0,0,0,0,0,0,0,0,0,0,0,0,0,0,0,0,0,0]
["Vote 01","The Presidency",5,3,0,0,0,0,0,0,0,0,0,0,0,0,0,0,0,0,0,0,0,0,0,0,0,0,0,0,0,0,0,0,0,0,0,0,0,0,0,0,0,0,0,0,0]
["Vote 01","The Presidency",5,4,0,0,0,0,0,0,0,0,0,0,0,0,0,0,0,0,0,0,0,0,0,0,0,0,0,0,0,0,0,0,0,0,0,0,0,0,0,0,0,0,0,0,0]
["Vote 01","The Presidency",5,5,0,0,0,0,0,0,0,0,0,0,0,0,0,0,0,0,0,0,0,0,0,0,0,0,0,0,0,0,0,0,0,0,0,0,0,0,0,0,0,0,0,0,0]
["Vote 01","The Presidency",5,6,0,0,0,0,0,0,0,0,0,0,0,0,0,0,0,0,0,0,0,0,0,0,0,0,0,0,0,0,0,0,0,0,0,0,0,0,0,0,0,0,0,0,0]
["Vote 01","The Presidency",5,7,0,0,0,0,0,0,0,0,0,0,0,0,0,0,0,0,0,0,0,0,0,0,0,0,0,0,0,0,0,0,0,0,0,0,0,0,0,0,0,0,0,0,0]
["Vote 01","The Presidency",5,8,0,0,0,0,0,0,0,0,0,0,0,0,0,0,0,0,0,0,0,0,0,0,0,0,0,0,0,0,0,0,0,0,0,0,0,0,0,0,0,0,0,0,0]
["Vote 01","The Presidency",5,9,0,0,0,0,0,0,0,0,0,0,0,0,0,0,0,0,0,0,0,0,0,0,0,0,0,0,0,0,0,0,0,0,0,0,0,0,0,0,0,0,0,0,0]
["Vote 01","The Presidency",5,10,0,0,0,0,0,0,0,0,0,0,0,0,0,0,0,0,0,0,0,0,0,0,0,0,0,0,0,0,0,0,0,0,0,0,0,0,0,0,0,0,0,0,0]
["Vote 01","The Presidency",5,11,0,0,0,0,0,0,0,0,0,0,0,0,0,0,0,0,0,0,0,0,0,0,0,0,0,0,0,0,0,0,0,0,0,0,0,0,0,0,0,0,0,0,0]
["Vote 01","The Presidency",5,12,0,0,0,0,0,0,0,0,0,0,0,0,0,0,0,0,0,0,0,0,0,0,0,0,0,0,0,0,0,0,0,0,0,0,0,0,0,0,0,0,0,0,0]
["Vote 01","The Presidency",5,13,0,0,0,0,0,0,0,0,0,0,0,0,0,0,0,0,0,0,0,0,0,0,0,0,0,0,0,0,0,0,0,0,0,0,0,0,0,0,0,0,0,0,0]
["Vote 01","The Presidency",5,14,0,0,0,0,0,0,0,0,0,0,0,0,0,0,0,0,0,0,0,0,0,0,0,0,0,0,0,0,0,0,0,0,0,0,0,0,0,0,0,0,0,0,0]
["Vote 01","The Presidency",5,15,0,0,0,0,0,0,0,0,0,0,0,0,0,0,0,0,0,0,0,0,0,0,0,0,0,0,0,0,0,0,0,0,0,0,0,0,0,0,0,0,0,0,0]
["Vote 01","The Presidency",5,16,0,0,0,0,0,0,0,0,0,0,0,0,0,0,0,0,0,0,0,0,0,0,0,0,0,0,0,0,0,0,0,0,0,0,0,0,0,0,0,0,0,0,0]
["Vote 01","The Presidency",5,"Deputy Minister",0,0,0,0,0,0,0,0,0,0,0,0,0,0,0,0,0,0,0,0,0,0,0,0,0,0,0,0,0,0,0,0,0,0,0,0,0,0,0,0,0,0,0]
["Vote 01","The Presidency",5,"Minister",0,0,0,0,0,0,0,0,0,0,0,0,0,0,0,0,0,0,0,0,0,0,0,0,0,0,0,0,0,0,0,0,0,0,0,0,0,0,0,0,0,0,0]
["Vote 01","The Presidency",5,"Intern",0,0,0,0,0,0,0,0,0,0,0,0,0,0,0,0,0,0,0,0,0,0,0,0,0,0,0,0,0,0,0,0,0,0,0,0,0,0,0,0,0,0,0]
["Vote 01","The Presidency",5,"Other",0,0,0,0,0,0,0,0,0,0,0,0,0,0,0,0,0,0,0,0,0,0,0,0,0,0,0,0,0,0,0,0,0,0,0,0,0,0,0,0,0,0,0]
["Vote 01","The Presidency",6,1,0,0,0,0,0,0,0,0,0,0,0,0,0,0,0,0,0,0,0,0,0,0,0,0,0,0,0,0,0,0,0,0,0,0,0,0,0,0,0,0,0,0,0]
["Vote 01","The Presidency",6,2,0,0,0,0,0,0,0,0,0,0,0,0,0,0,0,0,0,0,0,0,0,0,0,0,0,0,0,0,0,0,0,0,0,0,0,0,0,0,0,0,0,0,0]
["Vote 01","The Presidency",6,3,0,0,0,0,0,0,0,0,0,0,0,0,0,0,0,0,0,0,0,0,0,0,0,0,0,0,0,0,0,0,0,0,0,0,0,0,0,0,0,0,0,0,0]
["Vote 01","The Presidency",6,4,0,0,0,0,0,0,0,0,0,0,0,0,0,0,0,0,0,0,0,0,0,0,0,0,0,0,0,0,0,0,0,0,0,0,0,0,0,0,0,0,0,0,0]
["Vote 01","The Presidency",6,5,0,0,0,0,0,0,0,0,0,0,0,0,0,0,0,0,0,0,0,0,0,0,0,0,0,0,0,0,0,0,0,0,0,0,0,0,0,0,0,0,0,0,0]
["Vote 01","The Presidency",6,6,0,0,0,0,0,0,0,0,0,0,0,0,0,0,0,0,0,0,0,0,0,0,0,0,0,0,0,0,0,0,0,0,0,0,0,0,0,0,0,0,0,0,0]
["Vote 01","The Presidency",6,7,0,0,0,0,0,0,0,0,0,0,0,0,0,0,0,0,0,0,0,0,0,0,0,0,0,0,0,0,0,0,0,0,0,0,0,0,0,0,0,0,0,0,0]
["Vote 01","The Presidency",6,8,0,0,0,0,0,0,0,0,0,0,0,0,0,0,0,0,0,0,0,0,0,0,0,0,0,0,0,0,0,0,0,0,0,0,0,0,0,0,0,0,0,0,0]
["Vote 01","The Presidency",6,9,0,0,0,0,0,0,0,0,0,0,0,0,0,0,0,0,0,0,0,0,0,0,0,0,0,0,0,0,0,0,0,0,0,0,0,0,0,0,0,0,0,0,0]
["Vote 01","The Presidency",6,10,0,0,0,0,0,0,0,0,0,0,0,0,0,0,0,0,0,0,0,0,0,0,0,0,0,0,0,0,0,0,0,0,0,0,0,0,0,0,0,0,0,0,0]
["Vote 01","The Presidency",6,11,0,0,0,0,0,0,0,0,0,0,0,0,0,0,0,0,0,0,0,0,0,0,0,0,0,0,0,0,0,0,0,0,0,0,0,0,0,0,0,0,0,0,0]
["Vote 01","The Presidency",6,12,0,0,0,0,0,0,0,0,0,0,0,0,0,0,0,0,0,0,0,0,0,0,0,0,0,0,0,0,0,0,0,0,0,0,0,0,0,0,0,0,0,0,0]
["Vote 01","The Presidency",6,13,0,0,0,0,0,0,0,0,0,0,0,0,0,0,0,0,0,0,0,0,0,0,0,0,0,0,0,0,0,0,0,0,0,0,0,0,0,0,0,0,0,0,0]
["Vote 01","The Presidency",6,14,0,0,0,0,0,0,0,0,0,0,0,0,0,0,0,0,0,0,0,0,0,0,0,0,0,0,0,0,0,0,0,0,0,0,0,0,0,0,0,0,0,0,0]
["Vote 01","The Presidency",6,15,0,0,0,0,0,0,0,0,0,0,0,0,0,0,0,0,0,0,0,0,0,0,0,0,0,0,0,0,0,0,0,0,0,0,0,0,0,0,0,0,0,0,0]
["Vote 01","The Presidency",6,16,0,0,0,0,0,0,0,0,0,0,0,0,0,0,0,0,0,0,0,0,0,0,0,0,0,0,0,0,0,0,0,0,0,0,0,0,0,0,0,0,0,0,0]
["Vote 01","The Presidency",6,"Deputy Minister",0,0,0,0,0,0,0,0,0,0,0,0,0,0,0,0,0,0,0,0,0,0,0,0,0,0,0,0,0,0,0,0,0,0,0,0,0,0,0,0,0,0,0]
["Vote 01","The Presidency",6,"Minister",0,0,0,0,0,0,0,0,0,0,0,0,0,0,0,0,0,0,0,0,0,0,0,0,0,0,0,0,0,0,0,0,0,0,0,0,0,0,0,0,0,0,0]
["Vote 01","The Presidency",6,"Intern",0,0,0,0,0,0,0,0,0,0,0,0,0,0,0,0,0,0,0,0,0,0,0,0,0,0,0,0,0,0,0,0,0,0,0,0,0,0,0,0,0,0,0]
["Vote 01","The Presidency",6,"Other",0,0,0,0,0,0,0,0,0,0,0,0,0,0,0,0,0,0,0,0,0,0,0,0,0,0,0,0,0,0,0,0,0,0,0,0,0,0,0,0,0,0,0]
["Vote 01","The Presidency",7,1,0,0,0,0,0,0,0,0,0,0,0,0,0,0,0,0,0,0,0,0,0,0,0,0,0,0,0,0,0,0,0,0,0,0,0,0,0,0,0,0,0,0,0]
["Vote 01","The Presidency",7,2,0,0,0,0,0,0,0,0,0,0,0,0,0,0,0,0,0,0,0,0,0,0,0,0,0,0,0,0,0,0,0,0,0,0,0,0,0,0,0,0,0,0,0]
["Vote 01","The Presidency",7,3,0,0,0,0,0,0,0,0,0,0,0,0,0,0,0,0,0,0,0,0,0,0,0,0,0,0,0,0,0,0,0,0,0,0,0,0,0,0,0,0,0,0,0]
["Vote 01","The Presidency",7,4,0,0,0,0,0,0,0,0,0,0,0,0,0,0,0,0,0,0,0,0,0,0,0,0,0,0,0,0,0,0,0,0,0,0,0,0,0,0,0,0,0,0,0]
["Vote 01","The Presidency",7,5,0,0,0,0,0,0,0,0,0,0,0,0,0,0,0,0,0,0,0,0,0,0,0,0,0,0,0,0,0,0,0,0,0,0,0,0,0,0,0,0,0,0,0]
["Vote 01","The Presidency",7,6,0,0,0,0,0,0,0,0,0,0,0,0,0,0,0,0,0,0,0,0,0,0,0,0,0,0,0,0,0,0,0,0,0,0,0,0,0,0,0,0,0,0,0]
["Vote 01","The Presidency",7,7,0,0,0,0,0,0,0,0,0,0,0,0,0,0,0,0,0,0,0,0,0,0,0,0,0,0,0,0,0,0,0,0,0,0,0,0,0,0,0,0,0,0,0]
["Vote 01","The Presidency",7,8,0,0,0,0,0,0,0,0,0,0,0,0,0,0,0,0,0,0,0,0,0,0,0,0,0,0,0,0,0,0,0,0,0,0,0,0,0,0,0,0,0,0,0]
["Vote 01","The Presidency",7,9,0,0,0,0,0,0,0,0,0,0,0,0,0,0,0,0,0,0,0,0,0,0,0,0,0,0,0,0,0,0,0,0,0,0,0,0,0,0,0,0,0,0,0]
["Vote 01","The Presidency",7,10,0,0,0,0,0,0,0,0,0,0,0,0,0,0,0,0,0,0,0,0,0,0,0,0,0,0,0,0,0,0,0,0,0,0,0,0,0,0,0,0,0,0,0]
["Vote 01","The Presidency",7,11,0,0,0,0,0,0,0,0,0,0,0,0,0,0,0,0,0,0,0,0,0,0,0,0,0,0,0,0,0,0,0,0,0,0,0,0,0,0,0,0,0,0,0]
["Vote 01","The Presidency",7,12,0,0,0,0,0,0,0,0,0,0,0,0,0,0,0,0,0,0,0,0,0,0,0,0,0,0,0,0,0,0,0,0,0,0,0,0,0,0,0,0,0,0,0]
["Vote 01","The Presidency",7,13,0,0,0,0,0,0,0,0,0,0,0,0,0,0,0,0,0,0,0,0,0,0,0,0,0,0,0,0,0,0,0,0,0,0,0,0,0,0,0,0,0,0,0]
["Vote 01","The Presidency",7,14,0,0,0,0,0,0,0,0,0,0,0,0,0,0,0,0,0,0,0,0,0,0,0,0,0,0,0,0,0,0,0,0,0,0,0,0,0,0,0,0,0,0,0]
["Vote 01","The Presidency",7,15,0,0,0,0,0,0,0,0,0,0,0,0,0,0,0,0,0,0,0,0,0,0,0,0,0,0,0,0,0,0,0,0,0,0,0,0,0,0,0,0,0,0,0]
["Vote 01","The Presidency",7,16,0,0,0,0,0,0,0,0,0,0,0,0,0,0,0,0,0,0,0,0,0,0,0,0,0,0,0,0,0,0,0,0,0,0,0,0,0,0,0,0,0,0,0]
["Vote 01","The Presidency",7,"Deputy Minister",0,0,0,0,0,0,0,0,0,0,0,0,0,0,0,0,0,0,0,0,0,0,0,0,0,0,0,0,0,0,0,0,0,0,0,0,0,0,0,0,0,0,0]
["Vote 01","The Presidency",7,"Minister",0,0,0,0,0,0,0,0,0,0,0,0,0,0,0,0,0,0,0,0,0,0,0,0,0,0,0,0,0,0,0,0,0,0,0,0,0,0,0,0,0,0,0]
["Vote 01","The Presidency",7,"Intern",0,0,0,0,0,0,0,0,0,0,0,0,0,0,0,0,0,0,0,0,0,0,0,0,0,0,0,0,0,0,0,0,0,0,0,0,0,0,0,0,0,0,0]
["Vote 01","The Presidency",7,"Other",0,0,0,0,0,0,0,0,0,0,0,0,0,0,0,0,0,0,0,0,0,0,0,0,0,0,0,0,0,0,0,0,0,0,0,0,0,0,0,0,0,0,0]
["Vote 01","The Presidency",8,1,0,0,0,0,0,0,0,0,0,0,0,0,0,0,0,0,0,0,0,0,0,0,0,0,0,0,0,0,0,0,0,0,0,0,0,0,0,0,0,0,0,0,0]
["Vote 01","The Presidency",8,2,0,0,0,0,0,0,0,0,0,0,0,0,0,0,0,0,0,0,0,0,0,0,0,0,0,0,0,0,0,0,0,0,0,0,0,0,0,0,0,0,0,0,0]
["Vote 01","The Presidency",8,3,0,0,0,0,0,0,0,0,0,0,0,0,0,0,0,0,0,0,0,0,0,0,0,0,0,0,0,0,0,0,0,0,0,0,0,0,0,0,0,0,0,0,0]
["Vote 01","The Presidency",8,4,0,0,0,0,0,0,0,0,0,0,0,0,0,0,0,0,0,0,0,0,0,0,0,0,0,0,0,0,0,0,0,0,0,0,0,0,0,0,0,0,0,0,0]
["Vote 01","The Presidency",8,5,0,0,0,0,0,0,0,0,0,0,0,0,0,0,0,0,0,0,0,0,0,0,0,0,0,0,0,0,0,0,0,0,0,0,0,0,0,0,0,0,0,0,0]
["Vote 01","The Presidency",8,6,0,0,0,0,0,0,0,0,0,0,0,0,0,0,0,0,0,0,0,0,0,0,0,0,0,0,0,0,0,0,0,0,0,0,0,0,0,0,0,0,0,0,0]
["Vote 01","The Presidency",8,7,0,0,0,0,0,0,0,0,0,0,0,0,0,0,0,0,0,0,0,0,0,0,0,0,0,0,0,0,0,0,0,0,0,0,0,0,0,0,0,0,0,0,0]
["Vote 01","The Presidency",8,8,0,0,0,0,0,0,0,0,0,0,0,0,0,0,0,0,0,0,0,0,0,0,0,0,0,0,0,0,0,0,0,0,0,0,0,0,0,0,0,0,0,0,0]
["Vote 01","The Presidency",8,9,0,0,0,0,0,0,0,0,0,0,0,0,0,0,0,0,0,0,0,0,0,0,0,0,0,0,0,0,0,0,0,0,0,0,0,0,0,0,0,0,0,0,0]
["Vote 01","The Presidency",8,10,0,0,0,0,0,0,0,0,0,0,0,0,0,0,0,0,0,0,0,0,0,0,0,0,0,0,0,0,0,0,0,0,0,0,0,0,0,0,0,0,0,0,0]
["Vote 01","The Presidency",8,11,0,0,0,0,0,0,0,0,0,0,0,0,0,0,0,0,0,0,0,0,0,0,0,0,0,0,0,0,0,0,0,0,0,0,0,0,0,0,0,0,0,0,0]
["Vote 01","The Presidency",8,12,0,0,0,0,0,0,0,0,0,0,0,0,0,0,0,0,0,0,0,0,0,0,0,0,0,0,0,0,0,0,0,0,0,0,0,0,0,0,0,0,0,0,0]
["Vote 01","The Presidency",8,13,0,0,0,0,0,0,0,0,0,0,0,0,0,0,0,0,0,0,0,0,0,0,0,0,0,0,0,0,0,0,0,0,0,0,0,0,0,0,0,0,0,0,0]
["Vote 01","The Presidency",8,14,0,0,0,0,0,0,0,0,0,0,0,0,0,0,0,0,0,0,0,0,0,0,0,0,0,0,0,0,0,0,0,0,0,0,0,0,0,0,0,0,0,0,0]
["Vote 01","The Presidency",8,15,0,0,0,0,0,0,0,0,0,0,0,0,0,0,0,0,0,0,0,0,0,0,0,0,0,0,0,0,0,0,0,0,0,0,0,0,0,0,0,0,0,0,0]
["Vote 01","The Presidency",8,16,0,0,0,0,0,0,0,0,0,0,0,0,0,0,0,0,0,0,0,0,0,0,0,0,0,0,0,0,0,0,0,0,0,0,0,0,0,0,0,0,0,0,0]
["Vote 01","The Presidency",8,"Deputy Minister",0,0,0,0,0,0,0,0,0,0,0,0,0,0,0,0,0,0,0,0,0,0,0,0,0,0,0,0,0,0,0,0,0,0,0,0,0,0,0,0,0,0,0]
["Vote 01","The Presidency",8,"Minister",0,0,0,0,0,0,0,0,0,0,0,0,0,0,0,0,0,0,0,0,0,0,0,0,0,0,0,0,0,0,0,0,0,0,0,0,0,0,0,0,0,0,0]
["Vote 01","The Presidency",8,"Intern",0,0,0,0,0,0,0,0,0,0,0,0,0,0,0,0,0,0,0,0,0,0,0,0,0,0,0,0,0,0,0,0,0,0,0,0,0,0,0,0,0,0,0]
["Vote 01","The Presidency",8,"Other",0,0,0,0,0,0,0,0,0,0,0,0,0,0,0,0,0,0,0,0,0,0,0,0,0,0,0,0,0,0,0,0,0,0,0,0,0,0,0,0,0,0,0]
["Vote 01","The Presidency",9,1,0,0,0,0,0,0,0,0,0,0,0,0,0,0,0,0,0,0,0,0,0,0,0,0,0,0,0,0,0,0,0,0,0,0,0,0,0,0,0,0,0,0,0]
["Vote 01","The Presidency",9,2,0,0,0,0,0,0,0,0,0,0,0,0,0,0,0,0,0,0,0,0,0,0,0,0,0,0,0,0,0,0,0,0,0,0,0,0,0,0,0,0,0,0,0]
["Vote 01","The Presidency",9,3,0,0,0,0,0,0,0,0,0,0,0,0,0,0,0,0,0,0,0,0,0,0,0,0,0,0,0,0,0,0,0,0,0,0,0,0,0,0,0,0,0,0,0]
["Vote 01","The Presidency",9,4,0,0,0,0,0,0,0,0,0,0,0,0,0,0,0,0,0,0,0,0,0,0,0,0,0,0,0,0,0,0,0,0,0,0,0,0,0,0,0,0,0,0,0]
["Vote 01","The Presidency",9,5,0,0,0,0,0,0,0,0,0,0,0,0,0,0,0,0,0,0,0,0,0,0,0,0,0,0,0,0,0,0,0,0,0,0,0,0,0,0,0,0,0,0,0]
["Vote 01","The Presidency",9,6,0,0,0,0,0,0,0,0,0,0,0,0,0,0,0,0,0,0,0,0,0,0,0,0,0,0,0,0,0,0,0,0,0,0,0,0,0,0,0,0,0,0,0]
["Vote 01","The Presidency",9,7,0,0,0,0,0,0,0,0,0,0,0,0,0,0,0,0,0,0,0,0,0,0,0,0,0,0,0,0,0,0,0,0,0,0,0,0,0,0,0,0,0,0,0]
["Vote 01","The Presidency",9,8,0,0,0,0,0,0,0,0,0,0,0,0,0,0,0,0,0,0,0,0,0,0,0,0,0,0,0,0,0,0,0,0,0,0,0,0,0,0,0,0,0,0,0]
["Vote 01","The Presidency",9,9,0,0,0,0,0,0,0,0,0,0,0,0,0,0,0,0,0,0,0,0,0,0,0,0,0,0,0,0,0,0,0,0,0,0,0,0,0,0,0,0,0,0,0]
["Vote 01","The Presidency",9,10,0,0,0,0,0,0,0,0,0,0,0,0,0,0,0,0,0,0,0,0,0,0,0,0,0,0,0,0,0,0,0,0,0,0,0,0,0,0,0,0,0,0,0]
["Vote 01","The Presidency",9,11,0,0,0,0,0,0,0,0,0,0,0,0,0,0,0,0,0,0,0,0,0,0,0,0,0,0,0,0,0,0,0,0,0,0,0,0,0,0,0,0,0,0,0]
["Vote 01","The Presidency",9,12,0,0,0,0,0,0,0,0,0,0,0,0,0,0,0,0,0,0,0,0,0,0,0,0,0,0,0,0,0,0,0,0,0,0,0,0,0,0,0,0,0,0,0]
["Vote 01","The Presidency",9,13,0,0,0,0,0,0,0,0,0,0,0,0,0,0,0,0,0,0,0,0,0,0,0,0,0,0,0,0,0,0,0,0,0,0,0,0,0,0,0,0,0,0,0]
["Vote 01","The Presidency",9,14,0,0,0,0,0,0,0,0,0,0,0,0,0,0,0,0,0,0,0,0,0,0,0,0,0,0,0,0,0,0,0,0,0,0,0,0,0,0,0,0,0,0,0]
["Vote 01","The Presidency",9,15,0,0,0,0,0,0,0,0,0,0,0,0,0,0,0,0,0,0,0,0,0,0,0,0,0,0,0,0,0,0,0,0,0,0,0,0,0,0,0,0,0,0,0]
["Vote 01","The Presidency",9,16,0,0,0,0,0,0,0,0,0,0,0,0,0,0,0,0,0,0,0,0,0,0,0,0,0,0,0,0,0,0,0,0,0,0,0,0,0,0,0,0,0,0,0]
["Vote 01","The Presidency",9,"Deputy Minister",0,0,0,0,0,0,0,0,0,0,0,0,0,0,0,0,0,0,0,0,0,0,0,0,0,0,0,0,0,0,0,0,0,0,0,0,0,0,0,0,0,0,0]
["Vote 01","The Presidency",9,"Minister",0,0,0,0,0,0,0,0,0,0,0,0,0,0,0,0,0,0,0,0,0,0,0,0,0,0,0,0,0,0,0,0,0,0,0,0,0,0,0,0,0,0,0]
["Vote 01","The Presidency",9,"Intern",0,0,0,0,0,0,0,0,0,0,0,0,0,0,0,0,0,0,0,0,0,0,0,0,0,0,0,0,0,0,0,0,0,0,0,0,0,0,0,0,0,0,0]
["Vote 01","The Presidency",9,"Other",0,0,0,0,0,0,0,0,0,0,0,0,0,0,0,0,0,0,0,0,0,0,0,0,0,0,0,0,0,0,0,0,0,0,0,0,0,0,0,0,0,0,0]
["Vote 01","The Presidency",10,1,0,0,0,0,0,0,0,0,0,0,0,0,0,0,0,0,0,0,0,0,0,0,0,0,0,0,0,0,0,0,0,0,0,0,0,0,0,0,0,0,0,0,0]
["Vote 01","The Presidency",10,2,0,0,0,0,0,0,0,0,0,0,0,0,0,0,0,0,0,0,0,0,0,0,0,0,0,0,0,0,0,0,0,0,0,0,0,0,0,0,0,0,0,0,0]
["Vote 01","The Presidency",10,3,0,0,0,0,0,0,0,0,0,0,0,0,0,0,0,0,0,0,0,0,0,0,0,0,0,0,0,0,0,0,0,0,0,0,0,0,0,0,0,0,0,0,0]
["Vote 01","The Presidency",10,4,0,0,0,0,0,0,0,0,0,0,0,0,0,0,0,0,0,0,0,0,0,0,0,0,0,0,0,0,0,0,0,0,0,0,0,0,0,0,0,0,0,0,0]
["Vote 01","The Presidency",10,5,0,0,0,0,0,0,0,0,0,0,0,0,0,0,0,0,0,0,0,0,0,0,0,0,0,0,0,0,0,0,0,0,0,0,0,0,0,0,0,0,0,0,0]
["Vote 01","The Presidency",10,6,0,0,0,0,0,0,0,0,0,0,0,0,0,0,0,0,0,0,0,0,0,0,0,0,0,0,0,0,0,0,0,0,0,0,0,0,0,0,0,0,0,0,0]
["Vote 01","The Presidency",10,7,0,0,0,0,0,0,0,0,0,0,0,0,0,0,0,0,0,0,0,0,0,0,0,0,0,0,0,0,0,0,0,0,0,0,0,0,0,0,0,0,0,0,0]
["Vote 01","The Presidency",10,8,0,0,0,0,0,0,0,0,0,0,0,0,0,0,0,0,0,0,0,0,0,0,0,0,0,0,0,0,0,0,0,0,0,0,0,0,0,0,0,0,0,0,0]
["Vote 01","The Presidency",10,9,0,0,0,0,0,0,0,0,0,0,0,0,0,0,0,0,0,0,0,0,0,0,0,0,0,0,0,0,0,0,0,0,0,0,0,0,0,0,0,0,0,0,0]
["Vote 01","The Presidency",10,10,0,0,0,0,0,0,0,0,0,0,0,0,0,0,0,0,0,0,0,0,0,0,0,0,0,0,0,0,0,0,0,0,0,0,0,0,0,0,0,0,0,0,0]
["Vote 01","The Presidency",10,11,0,0,0,0,0,0,0,0,0,0,0,0,0,0,0,0,0,0,0,0,0,0,0,0,0,0,0,0,0,0,0,0,0,0,0,0,0,0,0,0,0,0,0]
["Vote 01","The Presidency",10,12,0,0,0,0,0,0,0,0,0,0,0,0,0,0,0,0,0,0,0,0,0,0,0,0,0,0,0,0,0,0,0,0,0,0,0,0,0,0,0,0,0,0,0]
["Vote 01","The Presidency",10,13,0,0,0,0,0,0,0,0,0,0,0,0,0,0,0,0,0,0,0,0,0,0,0,0,0,0,0,0,0,0,0,0,0,0,0,0,0,0,0,0,0,0,0]
["Vote 01","The Presidency",10,14,0,0,0,0,0,0,0,0,0,0,0,0,0,0,0,0,0,0,0,0,0,0,0,0,0,0,0,0,0,0,0,0,0,0,0,0,0,0,0,0,0,0,0]
["Vote 01","The Presidency",10,15,0,0,0,0,0,0,0,0,0,0,0,0,0,0,0,0,0,0,0,0,0,0,0,0,0,0,0,0,0,0,0,0,0,0,0,0,0,0,0,0,0,0,0]
["Vote 01","The Presidency",10,16,0,0,0,0,0,0,0,0,0,0,0,0,0,0,0,0,0,0,0,0,0,0,0,0,0,0,0,0,0,0,0,0,0,0,0,0,0,0,0,0,0,0,0]
["Vote 01","The Presidency",10,"Deputy Minister",0,0,0,0,0,0,0,0,0,0,0,0,0,0,0,0,0,0,0,0,0,0,0,0,0,0,0,0,0,0,0,0,0,0,0,0,0,0,0,0,0,0,0]
["Vote 01","The Presidency",10,"Minister",0,0,0,0,0,0,0,0,0,0,0,0,0,0,0,0,0,0,0,0,0,0,0,0,0,0,0,0,0,0,0,0,0,0,0,0,0,0,0,0,0,0,0]
["Vote 01","The Presidency",10,"Intern",0,0,0,0,0,0,0,0,0,0,0,0,0,0,0,0,0,0,0,0,0,0,0,0,0,0,0,0,0,0,0,0,0,0,0,0,0,0,0,0,0,0,0]
["Vote 01","The Presidency",10,"Other",0,0,0,0,0,0,0,0,0,0,0,0,0,0,0,0,0,0,0,0,0,0,0,0,0,0,0,0,0,0,0,0,0,0,0,0,0,0,0,0,0,0,0]
["Vote 01","The Presidency",11,1,0,0,0,0,0,0,0,0,0,0,0,0,0,0,0,0,0,0,0,0,0,0,0,0,0,0,0,0,0,0,0,0,0,0,0,0,0,0,0,0,0,0,0]
["Vote 01","The Presidency",11,2,0,0,0,0,0,0,0,0,0,0,0,0,0,0,0,0,0,0,0,0,0,0,0,0,0,0,0,0,0,0,0,0,0,0,0,0,0,0,0,0,0,0,0]
["Vote 01","The Presidency",11,3,0,0,0,0,0,0,0,0,0,0,0,0,0,0,0,0,0,0,0,0,0,0,0,0,0,0,0,0,0,0,0,0,0,0,0,0,0,0,0,0,0,0,0]
["Vote 01","The Presidency",11,4,0,0,0,0,0,0,0,0,0,0,0,0,0,0,0,0,0,0,0,0,0,0,0,0,0,0,0,0,0,0,0,0,0,0,0,0,0,0,0,0,0,0,0]
["Vote 01","The Presidency",11,5,0,0,0,0,0,0,0,0,0,0,0,0,0,0,0,0,0,0,0,0,0,0,0,0,0,0,0,0,0,0,0,0,0,0,0,0,0,0,0,0,0,0,0]
["Vote 01","The Presidency",11,6,0,0,0,0,0,0,0,0,0,0,0,0,0,0,0,0,0,0,0,0,0,0,0,0,0,0,0,0,0,0,0,0,0,0,0,0,0,0,0,0,0,0,0]
["Vote 01","The Presidency",11,7,0,0,0,0,0,0,0,0,0,0,0,0,0,0,0,0,0,0,0,0,0,0,0,0,0,0,0,0,0,0,0,0,0,0,0,0,0,0,0,0,0,0,0]
["Vote 01","The Presidency",11,8,0,0,0,0,0,0,0,0,0,0,0,0,0,0,0,0,0,0,0,0,0,0,0,0,0,0,0,0,0,0,0,0,0,0,0,0,0,0,0,0,0,0,0]
["Vote 01","The Presidency",11,9,0,0,0,0,0,0,0,0,0,0,0,0,0,0,0,0,0,0,0,0,0,0,0,0,0,0,0,0,0,0,0,0,0,0,0,0,0,0,0,0,0,0,0]
["Vote 01","The Presidency",11,10,0,0,0,0,0,0,0,0,0,0,0,0,0,0,0,0,0,0,0,0,0,0,0,0,0,0,0,0,0,0,0,0,0,0,0,0,0,0,0,0,0,0,0]
["Vote 01","The Presidency",11,11,0,0,0,0,0,0,0,0,0,0,0,0,0,0,0,0,0,0,0,0,0,0,0,0,0,0,0,0,0,0,0,0,0,0,0,0,0,0,0,0,0,0,0]
["Vote 01","The Presidency",11,12,0,0,0,0,0,0,0,0,0,0,0,0,0,0,0,0,0,0,0,0,0,0,0,0,0,0,0,0,0,0,0,0,0,0,0,0,0,0,0,0,0,0,0]
["Vote 01","The Presidency",11,13,0,0,0,0,0,0,0,0,0,0,0,0,0,0,0,0,0,0,0,0,0,0,0,0,0,0,0,0,0,0,0,0,0,0,0,0,0,0,0,0,0,0,0]
["Vote 01","The Presidency",11,14,0,0,0,0,0,0,0,0,0,0,0,0,0,0,0,0,0,0,0,0,0,0,0,0,0,0,0,0,0,0,0,0,0,0,0,0,0,0,0,0,0,0,0]
["Vote 01","The Presidency",11,15,0,0,0,0,0,0,0,0,0,0,0,0,0,0,0,0,0,0,0,0,0,0,0,0,0,0,0,0,0,0,0,0,0,0,0,0,0,0,0,0,0,0,0]
["Vote 01","The Presidency",11,16,0,0,0,0,0,0,0,0,0,0,0,0,0,0,0,0,0,0,0,0,0,0,0,0,0,0,0,0,0,0,0,0,0,0,0,0,0,0,0,0,0,0,0]
["Vote 01","The Presidency",11,"Deputy Minister",0,0,0,0,0,0,0,0,0,0,0,0,0,0,0,0,0,0,0,0,0,0,0,0,0,0,0,0,0,0,0,0,0,0,0,0,0,0,0,0,0,0,0]
["Vote 01","The Presidency",11,"Minister",0,0,0,0,0,0,0,0,0,0,0,0,0,0,0,0,0,0,0,0,0,0,0,0,0,0,0,0,0,0,0,0,0,0,0,0,0,0,0,0,0,0,0]
["Vote 01","The Presidency",11,"Intern",0,0,0,0,0,0,0,0,0,0,0,0,0,0,0,0,0,0,0,0,0,0,0,0,0,0,0,0,0,0,0,0,0,0,0,0,0,0,0,0,0,0,0]
["Vote 01","The Presidency",11,"Other",0,0,0,0,0,0,0,0,0,0,0,0,0,0,0,0,0,0,0,0,0,0,0,0,0,0,0,0,0,0,0,0,0,0,0,0,0,0,0,0,0,0,0]
["Vote 01","The Presidency",12,1,0,0,0,0,0,0,0,0,0,0,0,0,0,0,0,0,0,0,0,0,0,0,0,0,0,0,0,0,0,0,0,0,0,0,0,0,0,0,0,0,0,0,0]
["Vote 01","The Presidency",12,2,0,0,0,0,0,0,0,0,0,0,0,0,0,0,0,0,0,0,0,0,0,0,0,0,0,0,0,0,0,0,0,0,0,0,0,0,0,0,0,0,0,0,0]
["Vote 01","The Presidency",12,3,0,0,0,0,0,0,0,0,0,0,0,0,0,0,0,0,0,0,0,0,0,0,0,0,0,0,0,0,0,0,0,0,0,0,0,0,0,0,0,0,0,0,0]
["Vote 01","The Presidency",12,4,0,0,0,0,0,0,0,0,0,0,0,0,0,0,0,0,0,0,0,0,0,0,0,0,0,0,0,0,0,0,0,0,0,0,0,0,0,0,0,0,0,0,0]
["Vote 01","The Presidency",12,5,0,0,0,0,0,0,0,0,0,0,0,0,0,0,0,0,0,0,0,0,0,0,0,0,0,0,0,0,0,0,0,0,0,0,0,0,0,0,0,0,0,0,0]
["Vote 01","The Presidency",12,6,0,0,0,0,0,0,0,0,0,0,0,0,0,0,0,0,0,0,0,0,0,0,0,0,0,0,0,0,0,0,0,0,0,0,0,0,0,0,0,0,0,0,0]
["Vote 01","The Presidency",12,7,0,0,0,0,0,0,0,0,0,0,0,0,0,0,0,0,0,0,0,0,0,0,0,0,0,0,0,0,0,0,0,0,0,0,0,0,0,0,0,0,0,0,0]
["Vote 01","The Presidency",12,8,0,0,0,0,0,0,0,0,0,0,0,0,0,0,0,0,0,0,0,0,0,0,0,0,0,0,0,0,0,0,0,0,0,0,0,0,0,0,0,0,0,0,0]
["Vote 01","The Presidency",12,9,0,0,0,0,0,0,0,0,0,0,0,0,0,0,0,0,0,0,0,0,0,0,0,0,0,0,0,0,0,0,0,0,0,0,0,0,0,0,0,0,0,0,0]
["Vote 01","The Presidency",12,10,0,0,0,0,0,0,0,0,0,0,0,0,0,0,0,0,0,0,0,0,0,0,0,0,0,0,0,0,0,0,0,0,0,0,0,0,0,0,0,0,0,0,0]
["Vote 01","The Presidency",12,11,0,0,0,0,0,0,0,0,0,0,0,0,0,0,0,0,0,0,0,0,0,0,0,0,0,0,0,0,0,0,0,0,0,0,0,0,0,0,0,0,0,0,0]
["Vote 01","The Presidency",12,12,0,0,0,0,0,0,0,0,0,0,0,0,0,0,0,0,0,0,0,0,0,0,0,0,0,0,0,0,0,0,0,0,0,0,0,0,0,0,0,0,0,0,0]
["Vote 01","The Presidency",12,13,0,0,0,0,0,0,0,0,0,0,0,0,0,0,0,0,0,0,0,0,0,0,0,0,0,0,0,0,0,0,0,0,0,0,0,0,0,0,0,0,0,0,0]
["Vote 01","The Presidency",12,14,0,0,0,0,0,0,0,0,0,0,0,0,0,0,0,0,0,0,0,0,0,0,0,0,0,0,0,0,0,0,0,0,0,0,0,0,0,0,0,0,0,0,0]
["Vote 01","The Presidency",12,15,0,0,0,0,0,0,0,0,0,0,0,0,0,0,0,0,0,0,0,0,0,0,0,0,0,0,0,0,0,0,0,0,0,0,0,0,0,0,0,0,0,0,0]
["Vote 01","The Presidency",12,16,0,0,0,0,0,0,0,0,0,0,0,0,0,0,0,0,0,0,0,0,0,0,0,0,0,0,0,0,0,0,0,0,0,0,0,0,0,0,0,0,0,0,0]
["Vote 01","The Presidency",12,"Deputy Minister",0,0,0,0,0,0,0,0,0,0,0,0,0,0,0,0,0,0,0,0,0,0,0,0,0,0,0,0,0,0,0,0,0,0,0,0,0,0,0,0,0,0,0]
["Vote 01","The Presidency",12,"Minister",0,0,0,0,0,0,0,0,0,0,0,0,0,0,0,0,0,0,0,0,0,0,0,0,0,0,0,0,0,0,0,0,0,0,0,0,0,0,0,0,0,0,0]
["Vote 01","The Presidency",12,"Intern",0,0,0,0,0,0,0,0,0,0,0,0,0,0,0,0,0,0,0,0,0,0,0,0,0,0,0,0,0,0,0,0,0,0,0,0,0,0,0,0,0,0,0]
["Vote 01","The Presidency",12,"Other",0,0,0,0,0,0,0,0,0,0,0,0,0,0,0,0,0,0,0,0,0,0,0,0,0,0,0,0,0,0,0,0,0,0,0,0,0,0,0,0,0,0,0]
["Vote 01","The Presidency",13,1,0,0,0,0,0,0,0,0,0,0,0,0,0,0,0,0,0,0,0,0,0,0,0,0,0,0,0,0,0,0,0,0,0,0,0,0,0,0,0,0,0,0,0]
["Vote 01","The Presidency",13,2,0,0,0,0,0,0,0,0,0,0,0,0,0,0,0,0,0,0,0,0,0,0,0,0,0,0,0,0,0,0,0,0,0,0,0,0,0,0,0,0,0,0,0]
["Vote 01","The Presidency",13,3,0,0,0,0,0,0,0,0,0,0,0,0,0,0,0,0,0,0,0,0,0,0,0,0,0,0,0,0,0,0,0,0,0,0,0,0,0,0,0,0,0,0,0]
["Vote 01","The Presidency",13,4,0,0,0,0,0,0,0,0,0,0,0,0,0,0,0,0,0,0,0,0,0,0,0,0,0,0,0,0,0,0,0,0,0,0,0,0,0,0,0,0,0,0,0]
["Vote 01","The Presidency",13,5,0,0,0,0,0,0,0,0,0,0,0,0,0,0,0,0,0,0,0,0,0,0,0,0,0,0,0,0,0,0,0,0,0,0,0,0,0,0,0,0,0,0,0]
["Vote 01","The Presidency",13,6,0,0,0,0,0,0,0,0,0,0,0,0,0,0,0,0,0,0,0,0,0,0,0,0,0,0,0,0,0,0,0,0,0,0,0,0,0,0,0,0,0,0,0]
["Vote 01","The Presidency",13,7,0,0,0,0,0,0,0,0,0,0,0,0,0,0,0,0,0,0,0,0,0,0,0,0,0,0,0,0,0,0,0,0,0,0,0,0,0,0,0,0,0,0,0]
["Vote 01","The Presidency",13,8,0,0,0,0,0,0,0,0,0,0,0,0,0,0,0,0,0,0,0,0,0,0,0,0,0,0,0,0,0,0,0,0,0,0,0,0,0,0,0,0,0,0,0]
["Vote 01","The Presidency",13,9,0,0,0,0,0,0,0,0,0,0,0,0,0,0,0,0,0,0,0,0,0,0,0,0,0,0,0,0,0,0,0,0,0,0,0,0,0,0,0,0,0,0,0]
["Vote 01","The Presidency",13,10,0,0,0,0,0,0,0,0,0,0,0,0,0,0,0,0,0,0,0,0,0,0,0,0,0,0,0,0,0,0,0,0,0,0,0,0,0,0,0,0,0,0,0]
["Vote 01","The Presidency",13,11,0,0,0,0,0,0,0,0,0,0,0,0,0,0,0,0,0,0,0,0,0,0,0,0,0,0,0,0,0,0,0,0,0,0,0,0,0,0,0,0,0,0,0]
["Vote 01","The Presidency",13,12,0,0,0,0,0,0,0,0,0,0,0,0,0,0,0,0,0,0,0,0,0,0,0,0,0,0,0,0,0,0,0,0,0,0,0,0,0,0,0,0,0,0,0]
["Vote 01","The Presidency",13,13,0,0,0,0,0,0,0,0,0,0,0,0,0,0,0,0,0,0,0,0,0,0,0,0,0,0,0,0,0,0,0,0,0,0,0,0,0,0,0,0,0,0,0]
["Vote 01","The Presidency",13,14,0,0,0,0,0,0,0,0,0,0,0,0,0,0,0,0,0,0,0,0,0,0,0,0,0,0,0,0,0,0,0,0,0,0,0,0,0,0,0,0,0,0,0]
["Vote 01","The Presidency",13,15,0,0,0,0,0,0,0,0,0,0,0,0,0,0,0,0,0,0,0,0,0,0,0,0,0,0,0,0,0,0,0,0,0,0,0,0,0,0,0,0,0,0,0]
["Vote 01","The Presidency",13,16,0,0,0,0,0,0,0,0,0,0,0,0,0,0,0,0,0,0,0,0,0,0,0,0,0,0,0,0,0,0,0,0,0,0,0,0,0,0,0,0,0,0,0]
["Vote 01","The Presidency",13,"Deputy Minister",0,0,0,0,0,0,0,0,0,0,0,0,0,0,0,0,0,0,0,0,0,0,0,0,0,0,0,0,0,0,0,0,0,0,0,0,0,0,0,0,0,0,0]
["Vote 01","The Presidency",13,"Minister",0,0,0,0,0,0,0,0,0,0,0,0,0,0,0,0,0,0,0,0,0,0,0,0,0,0,0,0,0,0,0,0,0,0,0,0,0,0,0,0,0,0,0]
["Vote 01","The Presidency",13,"Intern",0,0,0,0,0,0,0,0,0,0,0,0,0,0,0,0,0,0,0,0,0,0,0,0,0,0,0,0,0,0,0,0,0,0,0,0,0,0,0,0,0,0,0]
["Vote 01","The Presidency",13,"Other",0,0,0,0,0,0,0,0,0,0,0,0,0,0,0,0,0,0,0,0,0,0,0,0,0,0,0,0,0,0,0,0,0,0,0,0,0,0,0,0,0,0,0]
["Vote 01","The Presidency",14,1,0,0,0,0,0,0,0,0,0,0,0,0,0,0,0,0,0,0,0,0,0,0,0,0,0,0,0,0,0,0,0,0,0,0,0,0,0,0,0,0,0,0,0]
["Vote 01","The Presidency",14,2,0,0,0,0,0,0,0,0,0,0,0,0,0,0,0,0,0,0,0,0,0,0,0,0,0,0,0,0,0,0,0,0,0,0,0,0,0,0,0,0,0,0,0]
["Vote 01","The Presidency",14,3,0,0,0,0,0,0,0,0,0,0,0,0,0,0,0,0,0,0,0,0,0,0,0,0,0,0,0,0,0,0,0,0,0,0,0,0,0,0,0,0,0,0,0]
["Vote 01","The Presidency",14,4,0,0,0,0,0,0,0,0,0,0,0,0,0,0,0,0,0,0,0,0,0,0,0,0,0,0,0,0,0,0,0,0,0,0,0,0,0,0,0,0,0,0,0]
["Vote 01","The Presidency",14,5,0,0,0,0,0,0,0,0,0,0,0,0,0,0,0,0,0,0,0,0,0,0,0,0,0,0,0,0,0,0,0,0,0,0,0,0,0,0,0,0,0,0,0]
["Vote 01","The Presidency",14,6,0,0,0,0,0,0,0,0,0,0,0,0,0,0,0,0,0,0,0,0,0,0,0,0,0,0,0,0,0,0,0,0,0,0,0,0,0,0,0,0,0,0,0]
["Vote 01","The Presidency",14,7,0,0,0,0,0,0,0,0,0,0,0,0,0,0,0,0,0,0,0,0,0,0,0,0,0,0,0,0,0,0,0,0,0,0,0,0,0,0,0,0,0,0,0]
["Vote 01","The Presidency",14,8,0,0,0,0,0,0,0,0,0,0,0,0,0,0,0,0,0,0,0,0,0,0,0,0,0,0,0,0,0,0,0,0,0,0,0,0,0,0,0,0,0,0,0]
["Vote 01","The Presidency",14,9,0,0,0,0,0,0,0,0,0,0,0,0,0,0,0,0,0,0,0,0,0,0,0,0,0,0,0,0,0,0,0,0,0,0,0,0,0,0,0,0,0,0,0]
["Vote 01","The Presidency",14,10,0,0,0,0,0,0,0,0,0,0,0,0,0,0,0,0,0,0,0,0,0,0,0,0,0,0,0,0,0,0,0,0,0,0,0,0,0,0,0,0,0,0,0]
["Vote 01","The Presidency",14,11,0,0,0,0,0,0,0,0,0,0,0,0,0,0,0,0,0,0,0,0,0,0,0,0,0,0,0,0,0,0,0,0,0,0,0,0,0,0,0,0,0,0,0]
["Vote 01","The Presidency",14,12,0,0,0,0,0,0,0,0,0,0,0,0,0,0,0,0,0,0,0,0,0,0,0,0,0,0,0,0,0,0,0,0,0,0,0,0,0,0,0,0,0,0,0]
["Vote 01","The Presidency",14,13,0,0,0,0,0,0,0,0,0,0,0,0,0,0,0,0,0,0,0,0,0,0,0,0,0,0,0,0,0,0,0,0,0,0,0,0,0,0,0,0,0,0,0]
["Vote 01","The Presidency",14,14,0,0,0,0,0,0,0,0,0,0,0,0,0,0,0,0,0,0,0,0,0,0,0,0,0,0,0,0,0,0,0,0,0,0,0,0,0,0,0,0,0,0,0]
["Vote 01","The Presidency",14,15,0,0,0,0,0,0,0,0,0,0,0,0,0,0,0,0,0,0,0,0,0,0,0,0,0,0,0,0,0,0,0,0,0,0,0,0,0,0,0,0,0,0,0]
["Vote 01","The Presidency",14,16,0,0,0,0,0,0,0,0,0,0,0,0,0,0,0,0,0,0,0,0,0,0,0,0,0,0,0,0,0,0,0,0,0,0,0,0,0,0,0,0,0,0,0]
["Vote 01","The Presidency",14,"Deputy Minister",0,0,0,0,0,0,0,0,0,0,0,0,0,0,0,0,0,0,0,0,0,0,0,0,0,0,0,0,0,0,0,0,0,0,0,0,0,0,0,0,0,0,0]
["Vote 01","The Presidency",14,"Minister",0,0,0,0,0,0,0,0,0,0,0,0,0,0,0,0,0,0,0,0,0,0,0,0,0,0,0,0,0,0,0,0,0,0,0,0,0,0,0,0,0,0,0]
["Vote 01","The Presidency",14,"Intern",0,0,0,0,0,0,0,0,0,0,0,0,0,0,0,0,0,0,0,0,0,0,0,0,0,0,0,0,0,0,0,0,0,0,0,0,0,0,0,0,0,0,0]
["Vote 01","The Presidency",14,"Other",0,0,0,0,0,0,0,0,0,0,0,0,0,0,0,0,0,0,0,0,0,0,0,0,0,0,0,0,0,0,0,0,0,0,0,0,0,0,0,0,0,0,0]
["Vote 01","The Presidency",15,1,0,0,0,0,0,0,0,0,0,0,0,0,0,0,0,0,0,0,0,0,0,0,0,0,0,0,0,0,0,0,0,0,0,0,0,0,0,0,0,0,0,0,0]
["Vote 01","The Presidency",15,2,0,0,0,0,0,0,0,0,0,0,0,0,0,0,0,0,0,0,0,0,0,0,0,0,0,0,0,0,0,0,0,0,0,0,0,0,0,0,0,0,0,0,0]
["Vote 01","The Presidency",15,3,0,0,0,0,0,0,0,0,0,0,0,0,0,0,0,0,0,0,0,0,0,0,0,0,0,0,0,0,0,0,0,0,0,0,0,0,0,0,0,0,0,0,0]
["Vote 01","The Presidency",15,4,0,0,0,0,0,0,0,0,0,0,0,0,0,0,0,0,0,0,0,0,0,0,0,0,0,0,0,0,0,0,0,0,0,0,0,0,0,0,0,0,0,0,0]
["Vote 01","The Presidency",15,5,0,0,0,0,0,0,0,0,0,0,0,0,0,0,0,0,0,0,0,0,0,0,0,0,0,0,0,0,0,0,0,0,0,0,0,0,0,0,0,0,0,0,0]
["Vote 01","The Presidency",15,6,0,0,0,0,0,0,0,0,0,0,0,0,0,0,0,0,0,0,0,0,0,0,0,0,0,0,0,0,0,0,0,0,0,0,0,0,0,0,0,0,0,0,0]
["Vote 01","The Presidency",15,7,0,0,0,0,0,0,0,0,0,0,0,0,0,0,0,0,0,0,0,0,0,0,0,0,0,0,0,0,0,0,0,0,0,0,0,0,0,0,0,0,0,0,0]
["Vote 01","The Presidency",15,8,0,0,0,0,0,0,0,0,0,0,0,0,0,0,0,0,0,0,0,0,0,0,0,0,0,0,0,0,0,0,0,0,0,0,0,0,0,0,0,0,0,0,0]
["Vote 01","The Presidency",15,9,0,0,0,0,0,0,0,0,0,0,0,0,0,0,0,0,0,0,0,0,0,0,0,0,0,0,0,0,0,0,0,0,0,0,0,0,0,0,0,0,0,0,0]
["Vote 01","The Presidency",15,10,0,0,0,0,0,0,0,0,0,0,0,0,0,0,0,0,0,0,0,0,0,0,0,0,0,0,0,0,0,0,0,0,0,0,0,0,0,0,0,0,0,0,0]
["Vote 01","The Presidency",15,11,0,0,0,0,0,0,0,0,0,0,0,0,0,0,0,0,0,0,0,0,0,0,0,0,0,0,0,0,0,0,0,0,0,0,0,0,0,0,0,0,0,0,0]
["Vote 01","The Presidency",15,12,0,0,0,0,0,0,0,0,0,0,0,0,0,0,0,0,0,0,0,0,0,0,0,0,0,0,0,0,0,0,0,0,0,0,0,0,0,0,0,0,0,0,0]
["Vote 01","The Presidency",15,13,0,0,0,0,0,0,0,0,0,0,0,0,0,0,0,0,0,0,0,0,0,0,0,0,0,0,0,0,0,0,0,0,0,0,0,0,0,0,0,0,0,0,0]
["Vote 01","The Presidency",15,14,0,0,0,0,0,0,0,0,0,0,0,0,0,0,0,0,0,0,0,0,0,0,0,0,0,0,0,0,0,0,0,0,0,0,0,0,0,0,0,0,0,0,0]
["Vote 01","The Presidency",15,15,0,0,0,0,0,0,0,0,0,0,0,0,0,0,0,0,0,0,0,0,0,0,0,0,0,0,0,0,0,0,0,0,0,0,0,0,0,0,0,0,0,0,0]
["Vote 01","The Presidency",15,16,0,0,0,0,0,0,0,0,0,0,0,0,0,0,0,0,0,0,0,0,0,0,0,0,0,0,0,0,0,0,0,0,0,0,0,0,0,0,0,0,0,0,0]
["Vote 01","The Presidency",15,"Deputy Minister",0,0,0,0,0,0,0,0,0,0,0,0,0,0,0,0,0,0,0,0,0,0,0,0,0,0,0,0,0,0,0,0,0,0,0,0,0,0,0,0,0,0,0]
["Vote 01","The Presidency",15,"Minister",0,0,0,0,0,0,0,0,0,0,0,0,0,0,0,0,0,0,0,0,0,0,0,0,0,0,0,0,0,0,0,0,0,0,0,0,0,0,0,0,0,0,0]
["Vote 01","The Presidency",15,"Intern",0,0,0,0,0,0,0,0,0,0,0,0,0,0,0,0,0,0,0,0,0,0,0,0,0,0,0,0,0,0,0,0,0,0,0,0,0,0,0,0,0,0,0]
["Vote 01","The Presidency",15,"Other",0,0,0,0,0,0,0,0,0,0,0,0,0,0,0,0,0,0,0,0,0,0,0,0,0,0,0,0,0,0,0,0,0,0,0,0,0,0,0,0,0,0,0]
["Vote 01","The Presidency",16,1,0,0,0,0,0,0,0,0,0,0,0,0,0,0,0,0,0,0,0,0,0,0,0,0,0,0,0,0,0,0,0,0,0,0,0,0,0,0,0,0,0,0,0]
["Vote 01","The Presidency",16,2,0,0,0,0,0,0,0,0,0,0,0,0,0,0,0,0,0,0,0,0,0,0,0,0,0,0,0,0,0,0,0,0,0,0,0,0,0,0,0,0,0,0,0]
["Vote 01","The Presidency",16,3,0,0,0,0,0,0,0,0,0,0,0,0,0,0,0,0,0,0,0,0,0,0,0,0,0,0,0,0,0,0,0,0,0,0,0,0,0,0,0,0,0,0,0]
["Vote 01","The Presidency",16,4,0,0,0,0,0,0,0,0,0,0,0,0,0,0,0,0,0,0,0,0,0,0,0,0,0,0,0,0,0,0,0,0,0,0,0,0,0,0,0,0,0,0,0]
["Vote 01","The Presidency",16,5,0,0,0,0,0,0,0,0,0,0,0,0,0,0,0,0,0,0,0,0,0,0,0,0,0,0,0,0,0,0,0,0,0,0,0,0,0,0,0,0,0,0,0]
["Vote 01","The Presidency",16,6,0,0,0,0,0,0,0,0,0,0,0,0,0,0,0,0,0,0,0,0,0,0,0,0,0,0,0,0,0,0,0,0,0,0,0,0,0,0,0,0,0,0,0]
["Vote 01","The Presidency",16,7,0,0,0,0,0,0,0,0,0,0,0,0,0,0,0,0,0,0,0,0,0,0,0,0,0,0,0,0,0,0,0,0,0,0,0,0,0,0,0,0,0,0,0]
["Vote 01","The Presidency",16,8,0,0,0,0,0,0,0,0,0,0,0,0,0,0,0,0,0,0,0,0,0,0,0,0,0,0,0,0,0,0,0,0,0,0,0,0,0,0,0,0,0,0,0]
["Vote 01","The Presidency",16,9,0,0,0,0,0,0,0,0,0,0,0,0,0,0,0,0,0,0,0,0,0,0,0,0,0,0,0,0,0,0,0,0,0,0,0,0,0,0,0,0,0,0,0]
["Vote 01","The Presidency",16,10,0,0,0,0,0,0,0,0,0,0,0,0,0,0,0,0,0,0,0,0,0,0,0,0,0,0,0,0,0,0,0,0,0,0,0,0,0,0,0,0,0,0,0]
["Vote 01","The Presidency",16,11,0,0,0,0,0,0,0,0,0,0,0,0,0,0,0,0,0,0,0,0,0,0,0,0,0,0,0,0,0,0,0,0,0,0,0,0,0,0,0,0,0,0,0]
["Vote 01","The Presidency",16,12,0,0,0,0,0,0,0,0,0,0,0,0,0,0,0,0,0,0,0,0,0,0,0,0,0,0,0,0,0,0,0,0,0,0,0,0,0,0,0,0,0,0,0]
["Vote 01","The Presidency",16,13,0,0,0,0,0,0,0,0,0,0,0,0,0,0,0,0,0,0,0,0,0,0,0,0,0,0,0,0,0,0,0,0,0,0,0,0,0,0,0,0,0,0,0]
["Vote 01","The Presidency",16,14,0,0,0,0,0,0,0,0,0,0,0,0,0,0,0,0,0,0,0,0,0,0,0,0,0,0,0,0,0,0,0,0,0,0,0,0,0,0,0,0,0,0,0]
["Vote 01","The Presidency",16,15,0,0,0,0,0,0,0,0,0,0,0,0,0,0,0,0,0,0,0,0,0,0,0,0,0,0,0,0,0,0,0,0,0,0,0,0,0,0,0,0,0,0,0]
["Vote 01","The Presidency",16,16,0,0,0,0,0,0,0,0,0,0,0,0,0,0,0,0,0,0,0,0,0,0,0,0,0,0,0,0,0,0,0,0,0,0,0,0,0,0,0,0,0,0,0]
["Vote 01","The Presidency",16,"Deputy Minister",0,0,0,0,0,0,0,0,0,0,0,0,0,0,0,0,0,0,0,0,0,0,0,0,0,0,0,0,0,0,0,0,0,0,0,0,0,0,0,0,0,0,0]
["Vote 01","The Presidency",16,"Minister",0,0,0,0,0,0,0,0,0,0,0,0,0,0,0,0,0,0,0,0,0,0,0,0,0,0,0,0,0,0,0,0,0,0,0,0,0,0,0,0,0,0,0]
["Vote 01","The Presidency",16,"Intern",0,0,0,0,0,0,0,0,0,0,0,0,0,0,0,0,0,0,0,0,0,0,0,0,0,0,0,0,0,0,0,0,0,0,0,0,0,0,0,0,0,0,0]
["Vote 01","The Presidency",16,"Other",0,0,0,0,0,0,0,0,0,0,0,0,0,0,0,0,0,0,0,0,0,0,0,0,0,0,0,0,0,0,0,0,0,0,0,0,0,0,0,0,0,0,0]

{"sheet":"Tables","index":19,"n_rows":1039,"n_cols":43,"rows_kept":1039,"cut":false,"hidden":true,"merged":[]}
[null,null,null,null,null,null,null,null,null,null,null,null,null,null,null,null,null,"Headers: Performance",null,null,null,"Headers: Infrastructure",null,null,null,"Headers: Personnel",null,null,null,null,null,null,null,"Reporting level Indi"]
["Vote No. - N","Vote No.","Department",null,null,"Vote No. - N","Programme No. - N","Subprogramme No. - N","Vote No.","Programme No.","Subprogramme No.","UID_Org","Department","Programme","Subprogramme",null,null,"CurCol","NewCol",null,null,"CurCol","NewCol",null,null,"CurCol","NewCol",null,null,"YearNo","Year",null,null,"Econ2","Econ3","Econ4","Level 3","Level 4",null,null,"Salary level","Salary level2","Salary level grouping"]
[1,"01","The Presidency",null,null,1,1,1,"01","01","01","01|01|01","The Presidency","Administration","Management",null,null,"Column1","Unit no",null,null,"Column1","Unit no",null,null,"Column1","Unit no",null,null,1,"2019/20",null,null,"Current payments","Compensation of employees","Compensation of employees",1,0,null,null,1,"01","Levels 01 - 06"]
[2,"02","Parliament",null,null,1,1,2,"01","01","02","01|01|02","The Presidency","Administration","Support Services to the President",null,null,"Column2","Impact area",null,null,"Column2","Impact area",null,null,"Column2","Impact area",null,null,2,"2020/21",null,null,"Current payments","Compensation of employees","Salaries and wages",0,1,null,null,2,"02","Levels 01 - 06"]
[3,"03","Cooperative Governance",null,null,1,1,3,"01","01","03","01|01|03","The Presidency","Administration","Support Services to the Deputy President",null,null,"Column3","Unit name",null,null,"Column3","Unit name",null,null,"Column3","Unit name",null,null,3,"2021/22",null,null,"Current payments","Compensation of employees","Social contributions",0,1,null,null,3,"03","Levels 01 - 06"]
[4,"04","Government Communication and Information System",null,null,1,2,1,"01","02","01","01|02|01","The Presidency","Executive Support","Cabinet Services",null,null,"Column4","Performance indicator",null,null,"Column4","Project",null,null,"Column4","Salary level",null,null,4,"2022/23",null,null,"Current payments","Goods and services","Goods and services",1,0,null,null,4,"04","Levels 01 - 06"]
[5,"05","Home Affairs",null,null,1,3,1,"01","03","01","01|03|01","The Presidency","Policy and Research Services","Economy, Trade and Investment",null,null,"Column5","2022/23 Current performance",null,null,"Column5","2022/23 Current Number",null,null,"Column5","2022/23 Original number",null,null,5,"2023/24",null,null,"Current payments","Goods and services","Administrative fees",0,1,null,null,5,"05","Levels 01 - 06"]
[6,"06","International Relations and Cooperation",null,null,1,3,2,"01","03","02","01|03|02","The Presidency","Policy and Research Services","Socioeconomic Impact Assessment System",null,null,"Column6","2022/23 Performance @ benchmark level",null,null,"Column6","2022/23 Market or best in class benchmark",null,null,"Column6","2022/23 Revised number",null,null,6,"2024/25",null,null,"Current payments","Goods and services","Advertising",0,1,null,null,6,"06","Levels 01 - 06"]
[7,"07","National School of Government",null,null,1,16,1,"01","16","01","01|16|01","The Presidency","Direct charge against the National Revenue Fund","Salary of the president",null,null,"Column7","2022/23 Change",null,null,"Column7","2022/23 Change",null,null,"Column7","2022/23 Change in number",null,null,7,"2025/26",null,null,"Current payments","Goods and services","Agency and support/outsourced services",0,1,null,null,7,"07","Levels 07 - 12"]
[8,"08","National Treasury",null,null,1,16,2,"01","16","02","01|16|02","The Presidency","Direct charge against the National Revenue Fund","Salary of the deputy president",null,null,"Column8","2023/24 Original target",null,null,"Column8","2023/24 Original amount",null,null,"Column8","2023/24 Original number",null,null,null,null,null,null,"Current payments","Goods and services","Audit costs: External",0,1,null,null,8,"08","Levels 07 - 12"]
[9,"09","Planning, Monitoring and Evaluation",null,null,2,1,1,"02","01","01","02|01|01","Parliament","Administration","Executive Authority",null,null,"Column9","2023/24 Revised target",null,null,"Column9","2023/24 Revised amount",null,null,"Column9","2023/24 Revised number",null,null,null,null,null,null,"Current payments","Goods and services","Bursaries: Employees",0,1,null,null,9,"09","Levels 07 - 12"]
[10,"10","Public Enterprises",null,null,2,1,2,"02","01","02","02|01|02","Parliament","Administration","Office of the Secretary",null,null,"Column10","2023/24 Change",null,null,"Column10","2023/24 Change",null,null,"Column10","2023/24 Change in number",null,null,null,null,null,null,"Current payments","Goods and services","Catering: Departmental activities",0,1,null,null,10,"10","Levels 07 - 12"]
[11,"11","Public Service and Administration",null,null,2,1,3,"02","01","03","02|01|03","Parliament","Administration","Corporate and Support Services",null,null,"Column11","2024/25 Original target",null,null,"Column11","2024/25 Original amount",null,null,"Column11","2024/25 Original number",null,null,null,null,null,null,"Current payments","Goods and services","Communication (G&S)",0,1,null,null,11,"11","Levels 07 - 12"]
[12,"12","Public Service Commission",null,null,2,2,1,"02","02","01","02|02|01","Parliament","Legislation and Oversight","National Assembly",null,null,"Column12","2024/25 Revised target",null,null,"Column12","2024/25 Revised amount",null,null,"Column12","2024/25 Revised number",null,null,null,null,null,null,"Current payments","Goods and services","Computer services",0,1,null,null,12,"12","Levels 07 - 12"]
[13,"13","Public Works and Infrastructure",null,null,2,2,2,"02","02","02","02|02|02","Parliament","Legislation and Oversight","National Council of Provinces",null,null,"Column13","2024/25 Change",null,null,"Column13","2024/25 Change",null,null,"Column13","2024/25 Change in number",null,null,null,null,null,null,"Current payments","Goods and services","Consultants: Business and advisory services",0,1,null,null,13,"13","Levels 13 - 16"]
[14,"14","Statistics South Africa",null,null,2,2,3,"02","02","03","02|02|03","Parliament","Legislation and Oversight","Public Participation and external relations: Shared Services",null,null,"Column14","2025/26 Original target",null,null,"Column14","2025/26 Original amount",null,null,"Column14","2025/26 Original number",null,null,null,null,null,null,"Current payments","Goods and services","Consumable supplies",0,1,null,null,14,"14","Levels 13 - 16"]
[15,"15","Traditional Affairs",null,null,2,3,1,"02","03","01","02|03|01","Parliament","Associated Services","Members Facilities",null,null,"Column15","2025/26 Revised target",null,null,"Column15","2025/26 Revised amount",null,null,"Column15","2025/26 Revised number",null,null,null,null,null,null,"Current payments","Goods and services","Consumables: Stationery, printing and office supplies",0,1,null,null,15,"15","Levels 13 - 16"]
[16,"16","Basic Education",null,null,2,3,2,"02","03","02","02|03|02","Parliament","Associated Services","Transfer to Political Party Allowances",null,null,"Column16","2025/26 Change",null,null,"Column16","2025/26 Change",null,null,"Column16","2025/26 Change in number",null,null,null,null,null,null,"Current payments","Goods and services","Contractors",0,1,null,null,16,"16","Levels 13 - 16"]
[17,"17","Higher Education and Training",null,null,2,3,3,"02","03","03","02|03|03","Parliament","Associated Services","Transfer: Parliamentary Budget Office",null,null,"Column17","Comment",null,null,"Column17","Comment",null,null,"Column17","Comment",null,null,null,null,null,null,"Current payments","Goods and services","Entertainment",0,1,null,null,"Deputy Minister","Deputy Minister","Other"]
[18,"18","Health",null,null,2,16,1,"02","16","01","02|16|01","Parliament","Direct charge against the National Revenue Fund","Members' Remuneration",null,null,"Column18","Gov Priority",null,null,null,null,null,null,null,null,null,null,null,null,null,null,"Current payments","Goods and services","Fleet services (including government motor transport)",0,1,null,null,"Minister","Minister","Other"]
[19,"19","Social Development",null,null,3,1,1,"03","01","01","03|01|01","Cooperative Governance","Administration","Ministry",null,null,null,null,null,null,null,null,null,null,null,null,null,null,null,null,null,null,"Current payments","Goods and services","Housing",0,1,null,null,"Intern","Intern","Other"]
[20,"20","Women, Youth and Persons with Disabilities",null,null,3,1,2,"03","01","02","03|01|02","Cooperative Governance","Administration","Management",null,null,null,null,null,null,null,null,null,null,null,null,null,null,null,null,null,null,"Current payments","Goods and services","Infrastructure and planning services",0,1,null,null,"Other","Other","Other"]
[21,"21","Civilian Secretariat for the Police Service",null,null,3,1,3,"03","01","03","03|01|03","Cooperative Governance","Administration","Corporate Services",null,null,null,null,null,null,null,null,null,null,null,null,null,null,null,null,null,null,"Current payments","Goods and services","Inventory: Clothing material and accessories",0,1]
[22,"22","Correctional Services",null,null,3,1,4,"03","01","04","03|01|04","Cooperative Governance","Administration","Financial Services",null,null,null,null,null,null,null,null,null,null,null,null,null,null,null,null,null,null,"Current payments","Goods and services","Inventory: Farming supplies",0,1]
[23,"23","Defence",null,null,3,1,5,"03","01","05","03|01|05","Cooperative Governance","Administration","Internal Audit and Risk management",null,null,null,null,null,null,null,null,null,null,null,null,null,null,null,null,null,null,"Current payments","Goods and services","Inventory: Food and food supplies",0,1]
[24,"24","Independent Police Investigative Directorate",null,null,3,1,6,"03","01","06","03|01|06","Cooperative Governance","Administration","Office Accommodation",null,null,null,null,null,null,null,null,null,null,null,null,null,null,null,null,null,null,"Current payments","Goods and services","Inventory: Fuel, oil and gas",0,1]
[25,"25","Justice and Constitutional Development",null,null,3,2,1,"03","02","01","03|02|01","Cooperative Governance","Local Government Support and Intervention Management","Management: Local Government Support and Intervention Management",null,null,null,null,null,null,null,null,null,null,null,null,null,null,null,null,null,null,"Current payments","Goods and services","Inventory: Learner and teacher support material",0,1]
[26,"26","Military Veterans",null,null,3,2,2,"03","02","02","03|02|02","Cooperative Governance","Local Government Support and Intervention Management","Performance Monitoring",null,null,null,null,null,null,null,null,null,null,null,null,null,null,null,null,null,null,"Current payments","Goods and services","Inventory: Materials and supplies",0,1]
[27,"27","Office of the Chief Justice",null,null,3,2,3,"03","02","03","03|02|03","Cooperative Governance","Local Government Support and Intervention Management","Local Government Improvement Programme",null,null,null,null,null,null,null,null,null,null,null,null,null,null,null,null,null,null,"Current payments","Goods and services","Inventory: Medical supplies",0,1]
[28,"28","Police",null,null,3,2,4,"03","02","04","03|02|04","Cooperative Governance","Local Government Support and Intervention Management","Municipal Infrastructure Grant Administration",null,null,null,null,null,null,null,null,null,null,null,null,null,null,null,null,null,null,"Current payments","Goods and services","Inventory: Medicine",0,1]
[29,"29","Agriculture, Land Reform and Rural Development",null,null,3,2,5,"03","02","05","03|02|05","Cooperative Governance","Local Government Support and Intervention Management","Urban Development Planning",null,null,null,null,null,null,null,null,null,null,null,"Comment",null,null,null,null,null,null,"Current payments","Goods and services","Inventory: Other supplies",0,1]
[30,"30","Communications and Digital Technologies",null,null,3,2,6,"03","02","06","03|02|06","Cooperative Governance","Local Government Support and Intervention Management","Integrated Districts and Regional Spatial Planning",null,null,null,null,null,null,null,null,null,null,null,null,null,null,null,null,null,null,"Current payments","Goods and services","Laboratory services",0,1]
[31,"31","Employment and Labour",null,null,3,2,7,"03","02","07","03|02|07","Cooperative Governance","Local Government Support and Intervention Management","Intergovernmental Policy and Practice",null,null,null,null,null,null,null,null,null,null,null,null,null,null,null,null,null,null,"Current payments","Goods and services","Legal services (G&S)",0,1]
[32,"32","Forestry, Fisheries and the Environment",null,null,3,2,8,"03","02","08","03|02|08","Cooperative Governance","Local Government Support and Intervention Management","Integrated urban development grant",null,null,null,null,null,null,null,null,null,null,null,null,"Comment",null,null,null,null,null,"Current payments","Goods and services","Medsas inventory interface",0,1]
[33,"33","Human Settlements",null,null,3,2,9,"03","02","09","03|02|09","Cooperative Governance","Local Government Support and Intervention Management","Municipal Demarcation Board",null,null,null,null,null,null,null,null,null,null,null,null,null,null,null,null,null,null,"Current payments","Goods and services","Minor assets",0,1]
[34,"34","Mineral Resources and Energy",null,null,3,2,10,"03","02","10","03|02|10","Cooperative Governance","Local Government Support and Intervention Management","South African Cities Network",null,null,null,null,null,null,null,null,null,null,null,null,null,null,null,null,null,null,"Current payments","Goods and services","Operating leases",0,1]
[35,"35","Science and Innovation",null,null,3,2,11,"03","02","11","03|02|11","Cooperative Governance","Local Government Support and Intervention Management","Municipal Infrastructure Grant",null,null,null,null,null,null,null,null,null,null,null,null,null,null,null,null,null,null,"Current payments","Goods and services","Operating payments",0,1]
[36,"36","Small Business Development",null,null,3,2,12,"03","02","12","03|02|12","Cooperative Governance","Local Government Support and Intervention Management","Municipal Infrastructure Support Agent",null,null,null,null,null,null,null,null,null,null,null,null,null,null,null,null,null,null,"Current payments","Goods and services","Property payments",0,1]
[37,"37","Sport, Arts and Culture",null,null,3,3,1,"03","03","01","03|03|01","Cooperative Governance","Institutional Development","Management: Institutional Development",null,null,null,null,null,null,null,null,null,null,null,null,null,null,null,null,null,null,"Current payments","Goods and services","Rental and hiring",0,1]
[38,"38","Tourism",null,null,3,3,2,"03","03","02","03|03|02","Cooperative Governance","Institutional Development","Municipal Human Resource Management System",null,null,null,null,null,null,null,null,null,null,null,null,null,null,null,null,null,null,"Current payments","Goods and services","Science and technological services",0,1]
[39,"39","Trade, Industry and Competition",null,null,3,3,3,"03","03","03","03|03|03","Cooperative Governance","Institutional Development","Municipal Revenue Enhancement and Audit Outcomes",null,null,null,null,null,null,null,null,null,null,null,null,null,null,null,null,null,null,"Current payments","Goods and services","Training and development",0,1]
[40,"40","Transport",null,null,3,3,4,"03","03","04","03|03|04","Cooperative Governance","Institutional Development","Citizen Engagement",null,null,null,null,null,null,null,null,null,null,null,null,null,null,null,null,null,null,"Current payments","Goods and services","Transport provided: Departmental activity",0,1]
[41,"41","Water and Sanitation",null,null,3,3,5,"03","03","05","03|03|05","Cooperative Governance","Institutional Development","Anti-Corruption and Good Governance",null,null,null,null,null,null,null,null,null,null,null,null,null,null,null,null,null,null,"Current payments","Goods and services","Travel and subsistence",0,1]
[42,"42","Centre for Public Service Innovation",null,null,3,3,6,"03","03","06","03|03|06","Cooperative Governance","Institutional Development","Municipal Property Rates",null,null,null,null,null,null,null,null,null,null,null,null,null,null,null,null,null,null,"Current payments","Goods and services","Venues and facilities",0,1]
[50,"50","Below the line items",null,null,3,3,7,"03","03","07","03|03|07","Cooperative Governance","Institutional Development","Municipal Governance",null,null,null,null,null,null,null,null,null,null,null,null,null,null,null,null,null,null,"Current payments","Interest and rent on land","Interest (Incl. interest on unitary payments (PPP))",1,1]
[null,null,null,null,null,3,3,8,"03","03","08","03|03|08","Cooperative Governance","Institutional Development","Local Government Equitable Share",null,null,null,null,null,null,null,null,null,null,null,null,null,null,null,null,null,null,"Current payments","Interest and rent on land","Rent on land",1,1]
[null,null,null,null,null,3,3,9,"03","03","09","03|03|09","Cooperative Governance","Institutional Development","South African Local Government Association",null,null,null,null,null,null,null,null,null,null,null,null,null,null,null,null,null,null,"Transfers and subsidies","Provinces and municipalities","Municipalities",1,1]
[null,null,null,null,null,3,3,10,"03","03","10","03|03|10","Cooperative Governance","Institutional Development","United Cities and Local Government of Africa",null,null,null,null,null,null,null,null,null,null,null,null,null,null,null,null,null,null,"Transfers and subsidies","Provinces and municipalities","Provinces",1,1]
[null,null,null,null,null,3,3,11,"03","03","11","03|03|11","Cooperative Governance","Institutional Development","Municipal Systems Improvement Grant",null,null,null,null,null,null,null,null,null,null,null,null,null,null,null,null,null,null,"Transfers and subsidies","Departmental agencies and accounts","Social security funds",1,1]
[null,null,null,null,null,3,4,1,"03","04","01","03|04|01","Cooperative Governance","National Disaster Management Centre","Management: Head of the National Disaster Management Centre",null,null,null,null,null,null,null,null,null,null,null,null,null,null,null,null,null,null,"Transfers and subsidies","Departmental agencies and accounts","Departmental agencies (non-business entities)",1,1]
[null,null,null,null,null,3,4,2,"03","04","02","03|04|02","Cooperative Governance","National Disaster Management Centre","Disaster Risk Reduction, Capacity Building and Intervention",null,null,null,null,null,null,null,null,null,null,null,null,null,null,null,null,null,null,"Transfers and subsidies","Higher education institutions","Higher education institutions",1,1]
[null,null,null,null,null,3,4,3,"03","04","03","03|04|03","Cooperative Governance","National Disaster Management Centre","Legislation and Policy Management",null,null,null,null,null,null,null,null,null,null,null,null,null,null,null,null,null,null,"Transfers and subsidies","Foreign governments and international organisations","Foreign governments and international organisations",1,1]
[null,null,null,null,null,3,4,4,"03","04","04","03|04|04","Cooperative Governance","National Disaster Management Centre","Integrated Provincial Disaster Management Support, Monitoring and Evaluation Systems",null,null,null,null,null,null,null,null,null,null,null,null,null,null,null,null,null,null,"Transfers and subsidies","Public corporations and private enterprises","Private enterprises",1,1]
[null,null,null,null,null,3,4,5,"03","04","05","03|04|05","Cooperative Governance","National Disaster Management Centre","Fire Services",null,null,null,null,null,null,null,null,null,null,null,null,null,null,null,null,null,null,"Transfers and subsidies","Public corporations and private enterprises","Public corporations",1,1]
[null,null,null,null,null,3,4,6,"03","04","06","03|04|06","Cooperative Governance","National Disaster Management Centre","Information Technology, Intelligence and Information Management Systems",null,null,null,null,null,null,null,null,null,null,null,null,null,null,null,null,null,null,"Transfers and subsidies","Non-profit institutions","Non-profit institutions",1,1]
[null,null,null,null,null,3,4,7,"03","04","07","03|04|07","Cooperative Governance","National Disaster Management Centre","Disaster Response Grant",null,null,null,null,null,null,null,null,null,null,null,null,null,null,null,null,null,null,"Transfers and subsidies","Households","Other transfers to households",1,1]
[null,null,null,null,null,3,4,8,"03","04","08","03|04|08","Cooperative Governance","National Disaster Management Centre","Municipal disaster recovery grant",null,null,null,null,null,null,null,null,null,null,null,null,null,null,null,null,null,null,"Transfers and subsidies","Households","Social benefits",1,1]
[null,null,null,null,null,3,4,9,"03","04","09","03|04|09","Cooperative Governance","National Disaster Management Centre","Provincial Disaster Response Grant",null,null,null,null,null,null,null,null,null,null,null,null,null,null,null,null,null,null,"Payments for capital assets","Buildings and other fixed structures","Buildings",1,1]
[null,null,null,null,null,3,5,1,"03","05","01","03|05|01","Cooperative Governance","Community Work Programme","Management: Community Work Programme",null,null,null,null,null,null,null,null,null,null,null,null,null,null,null,null,null,null,"Payments for capital assets","Buildings and other fixed structures","Other fixed structures",1,1]
[null,null,null,null,null,3,5,2,"03","05","02","03|05|02","Cooperative Governance","Community Work Programme","Programme Coordination",null,null,null,null,null,null,null,null,null,null,null,null,null,null,null,null,null,null,"Payments for capital assets","Machinery and equipment","Other machinery and equipment",1,1]
[null,null,null,null,null,3,5,3,"03","05","03","03|05|03","Cooperative Governance","Community Work Programme","Partnerships, Norms, Standards and Innovation",null,null,null,null,null,null,null,null,null,null,null,null,null,null,null,null,null,null,"Payments for capital assets","Machinery and equipment","Transport equipment",1,1]
[null,null,null,null,null,4,1,1,"04","01","01","04|01|01","Government Communication and Information System","Administration","Departmental Management",null,null,null,null,null,null,null,null,null,null,null,null,null,null,null,null,null,null,"Payments for capital assets","Heritage assets","Heritage assets",1,1]
[null,null,null,null,null,4,1,2,"04","01","02","04|01|02","Government Communication and Information System","Administration","Corporate Services",null,null,null,null,null,null,null,null,null,null,null,null,null,null,null,null,null,null,"Payments for capital assets","Specialised military assets","Specialised military assets",1,1]
[null,null,null,null,null,4,1,3,"04","01","03","04|01|03","Government Communication and Information System","Administration","Financial Administration",null,null,null,null,null,null,null,null,null,null,null,null,null,null,null,null,null,null,"Payments for capital assets","Biological assets","Biological assets",1,1]
[null,null,null,null,null,4,1,4,"04","01","04","04|01|04","Government Communication and Information System","Administration","Internal Audit",null,null,null,null,null,null,null,null,null,null,null,null,null,null,null,null,null,null,"Payments for capital assets","Land and sub-soil assets","Land and sub-soil assets",1,1]
[null,null,null,null,null,4,1,6,"04","01","06","04|01|06","Government Communication and Information System","Administration","Office Accommodation",null,null,null,null,null,null,null,null,null,null,null,null,null,null,null,null,null,null,"Payments for capital assets","Software and other intangible assets","Software and other intangible assets",1,1]
[null,null,null,null,null,4,2,1,"04","02","01","04|02|01","Government Communication and Information System","Content Processing and Dissemination","Programme Management for Content Processing and Dissemination",null,null,null,null,null,null,null,null,null,null,null,null,null,null,null,null,null,null,"Payments for financial assets","Payments for financial assets","Payments for financial assets",1,1]
[null,null,null,null,null,4,2,2,"04","02","02","04|02|02","Government Communication and Information System","Content Processing and Dissemination","Policy and Research"]
[null,null,null,null,null,4,2,3,"04","02","03","04|02|03","Government Communication and Information System","Content Processing and Dissemination","Products and Platforms"]
[null,null,null,null,null,4,2,4,"04","02","04","04|02|04","Government Communication and Information System","Content Processing and Dissemination","Communication Service Agency"]
[null,null,null,null,null,4,2,5,"04","02","05","04|02|05","Government Communication and Information System","Content Processing and Dissemination","Entity Oversight"]
[null,null,null,null,null,4,2,6,"04","02","06","04|02|06","Government Communication and Information System","Content Processing and Dissemination","Media Policy"]
[null,null,null,null,null,4,3,1,"04","03","01","04|03|01","Government Communication and Information System","Intergovernmental Coordination and Stakeholder Management","Programme Management for Intergovernmental Coordination and Stakeholder Management"]
[null,null,null,null,null,4,3,2,"04","03","02","04|03|02","Government Communication and Information System","Intergovernmental Coordination and Stakeholder Management","Provincial and Local Liaison"]
[null,null,null,null,null,4,3,3,"04","03","03","04|03|03","Government Communication and Information System","Intergovernmental Coordination and Stakeholder Management","Media Engagement"]
[null,null,null,null,null,4,3,4,"04","03","04","04|03|04","Government Communication and Information System","Intergovernmental Coordination and Stakeholder Management","Cluster Supervision (Human Development, Social Protection, and Governance and Administration)"]
[null,null,null,null,null,4,3,5,"04","03","05","04|03|05","Government Communication and Information System","Intergovernmental Coordination and Stakeholder Management","Cluster Supervision (Economic and Infrastructure, Justice and International)"]
[null,null,null,null,null,5,1,1,"05","01","01","05|01|01","Home Affairs","Administration","Ministry"]
[null,null,null,null,null,5,1,2,"05","01","02","05|01|02","Home Affairs","Administration","Management Support Services"]
[null,null,null,null,null,5,1,3,"05","01","03","05|01|03","Home Affairs","Administration","Corporate Services"]
[null,null,null,null,null,5,1,4,"05","01","04","05|01|04","Home Affairs","Administration","Transversal Information Technology Management"]
[null,null,null,null,null,5,1,5,"05","01","05","05|01|05","Home Affairs","Administration","Office Accommodation"]
[null,null,null,null,null,5,2,1,"05","02","01","05|02|01","Home Affairs","Citizen Affairs","Citizen Affairs Management"]
[null,null,null,null,null,5,2,2,"05","02","02","05|02|02","Home Affairs","Citizen Affairs","Status Services"]
[null,null,null,null,null,5,2,3,"05","02","03","05|02|03","Home Affairs","Citizen Affairs","Identification Services"]
[null,null,null,null,null,5,2,4,"05","02","04","05|02|04","Home Affairs","Citizen Affairs","Service Delivery to Provinces"]
[null,null,null,null,null,5,3,1,"05","03","01","05|03|01","Home Affairs","Immigration Affairs","Immigration Affairs Management"]
[null,null,null,null,null,5,3,2,"05","03","02","05|03|02","Home Affairs","Immigration Affairs","Admission Services"]
[null,null,null,null,null,5,3,3,"05","03","03","05|03|03","Home Affairs","Immigration Affairs","Immigration Services"]
[null,null,null,null,null,5,3,4,"05","03","04","05|03|04","Home Affairs","Immigration Affairs","Asylum Seekers"]
[null,null,null,null,null,5,4,1,"05","04","01","05|04|01","Home Affairs","Institutional Support and Transfers","Border Management Authority"]
[null,null,null,null,null,5,4,2,"05","04","02","05|04|02","Home Affairs","Institutional Support and Transfers","Electoral Commission"]
[null,null,null,null,null,5,4,3,"05","04","03","05|04|03","Home Affairs","Institutional Support and Transfers","Represented Political Parties' Fund"]
[null,null,null,null,null,6,1,1,"06","01","01","06|01|01","International Relations and Cooperation","Administration","Ministry"]
[null,null,null,null,null,6,1,2,"06","01","02","06|01|02","International Relations and Cooperation","Administration","Departmental Management"]
[null,null,null,null,null,6,1,3,"06","01","03","06|01|03","International Relations and Cooperation","Administration","Audit Services"]
[null,null,null,null,null,6,1,4,"06","01","04","06|01|04","International Relations and Cooperation","Administration","Financial Management"]
[null,null,null,null,null,6,1,5,"06","01","05","06|01|05","International Relations and Cooperation","Administration","Corporate Services"]
[null,null,null,null,null,6,1,6,"06","01","06","06|01|06","International Relations and Cooperation","Administration","Diplomatic Training, Research and Development"]
[null,null,null,null,null,6,1,7,"06","01","07","06|01|07","International Relations and Cooperation","Administration","Foreign Fixed Assets Management"]
[null,null,null,null,null,6,1,8,"06","01","08","06|01|08","International Relations and Cooperation","Administration","Office Accommodation"]
[null,null,null,null,null,6,2,1,"06","02","01","06|02|01","International Relations and Cooperation","International Relations","Africa"]
[null,null,null,null,null,6,2,2,"06","02","02","06|02|02","International Relations and Cooperation","International Relations","Asia and Middle East"]
[null,null,null,null,null,6,2,3,"06","02","03","06|02|03","International Relations and Cooperation","International Relations","Americas and Caribbean"]
[null,null,null,null,null,6,2,4,"06","02","04","06|02|04","International Relations and Cooperation","International Relations","Europe"]
[null,null,null,null,null,6,3,1,"06","03","01","06|03|01","International Relations and Cooperation","International Cooperation","Global System of Governance"]
[null,null,null,null,null,6,3,2,"06","03","02","06|03|02","International Relations and Cooperation","International Cooperation","Continental Cooperation"]
[null,null,null,null,null,6,3,3,"06","03","03","06|03|03","International Relations and Cooperation","International Cooperation","South-South Cooperation"]
[null,null,null,null,null,6,3,4,"06","03","04","06|03|04","International Relations and Cooperation","International Cooperation","North-South Dialogue"]
[null,null,null,null,null,6,4,1,"06","04","01","06|04|01","International Relations and Cooperation","Public Diplomacy and Protocol Services","Public Diplomacy"]
[null,null,null,null,null,6,4,2,"06","04","02","06|04|02","International Relations and Cooperation","Public Diplomacy and Protocol Services","Protocol Services"]
[null,null,null,null,null,6,5,1,"06","05","01","06|05|01","International Relations and Cooperation","International Transfers","Departmental Agencies"]
[null,null,null,null,null,6,5,2,"06","05","02","06|05|02","International Relations and Cooperation","International Transfers","Membership contribution"]
[null,null,null,null,null,7,1,1,"07","01","01","07|01|01","National School of Government","Administration","Management"]
[null,null,null,null,null,7,1,2,"07","01","02","07|01|02","National School of Government","Administration","Corporate Services"]
[null,null,null,null,null,7,1,3,"07","01","03","07|01|03","National School of Government","Administration","Property Management"]
[null,null,null,null,null,7,2,1,"07","02","01","07|02|01","National School of Government","Public Sector Organisational and Staff Development","National School of Government Training Trading Account"]
[null,null,null,null,null,8,1,1,"08","01","01","08|01|01","National Treasury","Administration","Ministry"]
[null,null,null,null,null,8,1,2,"08","01","02","08|01|02","National Treasury","Administration","Departmental Management"]
[null,null,null,null,null,8,1,3,"08","01","03","08|01|03","National Treasury","Administration","Corporate Services"]
[null,null,null,null,null,8,1,4,"08","01","04","08|01|04","National Treasury","Administration","Enterprise-wide Risk Management"]
[null,null,null,null,null,8,1,5,"08","01","05","08|01|05","National Treasury","Administration","Financial Administration"]
[null,null,null,null,null,8,1,6,"08","01","06","08|01|06","National Treasury","Administration","Legal Services"]
[null,null,null,null,null,8,1,7,"08","01","07","08|01|07","National Treasury","Administration","Internal Audit"]
[null,null,null,null,null,8,1,8,"08","01","08","08|01|08","National Treasury","Administration","Communications"]
[null,null,null,null,null,8,1,9,"08","01","09","08|01|09","National Treasury","Administration","Office Accommodation"]
[null,null,null,null,null,8,2,1,"08","02","01","08|02|01","National Treasury","Economic Policy, Tax, Financial Regulation and Research","Programme Management for Economic Policy, Tax, Financial Regulation and Research"]
[null,null,null,null,null,8,2,3,"08","02","03","08|02|03","National Treasury","Economic Policy, Tax, Financial Regulation and Research","Financial Sector Policy"]
[null,null,null,null,null,8,2,4,"08","02","04","08|02|04","National Treasury","Economic Policy, Tax, Financial Regulation and Research","Tax Policy"]
[null,null,null,null,null,8,2,5,"08","02","05","08|02|05","National Treasury","Economic Policy, Tax, Financial Regulation and Research","Economic Policy"]
[null,null,null,null,null,8,2,6,"08","02","06","08|02|06","National Treasury","Economic Policy, Tax, Financial Regulation and Research","Cooperative Banks Development Agency"]
[null,null,null,null,null,8,3,1,"08","03","01","08|03|01","National Treasury","Public Finance and Budget Management","Programme Management for Public Finance and Budget Management"]
[null,null,null,null,null,8,3,2,"08","03","02","08|03|02","National Treasury","Public Finance and Budget Management","Public Finance"]
[null,null,null,null,null,8,3,3,"08","03","03","08|03|03","National Treasury","Public Finance and Budget Management","Budget Office and Coordination"]
[null,null,null,null,null,8,3,4,"08","03","04","08|03|04","National Treasury","Public Finance and Budget Management","Intergovernmental Relations"]
[null,null,null,null,null,8,3,5,"08","03","05","08|03|05","National Treasury","Public Finance and Budget Management","Financial and Fiscal Commission"]
[null,null,null,null,null,8,3,6,"08","03","06","08|03|06","National Treasury","Public Finance and Budget Management","Facilitation of Conditional Grants"]
[null,null,null,null,null,8,3,7,"08","03","07","08|03|07","National Treasury","Public Finance and Budget Management","Catalytic Infrastructure and Development Support Programme"]
[null,null,null,null,null,8,3,8,"08","03","08","08|03|08","National Treasury","Public Finance and Budget Management","Government Technical Advisory Centre"]
[null,null,null,null,null,8,4,1,"08","04","01","08|04|01","National Treasury","Asset and Liability Management","Programme Management for Asset and Liability Management"]
[null,null,null,null,null,8,4,2,"08","04","02","08|04|02","National Treasury","Asset and Liability Management","State-owned Entity Financial Management and Governance"]
[null,null,null,null,null,8,4,3,"08","04","03","08|04|03","National Treasury","Asset and Liability Management","Government Debt Management"]
[null,null,null,null,null,8,4,4,"08","04","04","08|04|04","National Treasury","Asset and Liability Management","Financial Operations"]
[null,null,null,null,null,8,4,5,"08","04","05","08|04|05","National Treasury","Asset and Liability Management","Strategy and Risk Management"]
[null,null,null,null,null,8,5,1,"08","05","01","08|05|01","National Treasury","Financial Accounting and Supply Chain Management Systems","Programme Management for Financial Accounting and Supply Chain Management Systems"]
[null,null,null,null,null,8,5,2,"08","05","02","08|05|02","National Treasury","Financial Accounting and Supply Chain Management Systems","Office of the Chief Procurement Officer"]
[null,null,null,null,null,8,5,3,"08","05","03","08|05|03","National Treasury","Financial Accounting and Supply Chain Management Systems","Financial Systems"]
[null,null,null,null,null,8,5,4,"08","05","04","08|05|04","National Treasury","Financial Accounting and Supply Chain Management Systems","Financial Reporting for National Accounts"]
[null,null,null,null,null,8,5,5,"08","05","05","08|05|05","National Treasury","Financial Accounting and Supply Chain Management Systems","Financial Management Policy and Compliance Improvement"]
[null,null,null,null,null,8,5,6,"08","05","06","08|05|06","National Treasury","Financial Accounting and Supply Chain Management Systems","Audit Statutory Bodies"]
[null,null,null,null,null,8,5,7,"08","05","07","08|05|07","National Treasury","Financial Accounting and Supply Chain Management Systems","Service Charges: Commercial Banks"]
[null,null,null,null,null,8,6,1,"08","06","01","08|06|01","National Treasury","International Financial Relations","Programme Management for International Financial Relations"]
[null,null,null,null,null,8,6,2,"08","06","02","08|06|02","National Treasury","International Financial Relations","International Economic Cooperation"]
[null,null,null,null,null,8,6,3,"08","06","03","08|06|03","National Treasury","International Financial Relations","African Integration and Support"]
[null,null,null,null,null,8,6,4,"08","06","04","08|06|04","National Treasury","International Financial Relations","International Development Funding Institutions"]
[null,null,null,null,null,8,6,5,"08","06","05","08|06|05","National Treasury","International Financial Relations","International Projects"]
[null,null,null,null,null,8,7,1,"08","07","01","08|07|01","National Treasury","Civil and Military Pensions, Contributions to Funds and Other Benefits","Government Pensions Administration Agency"]
[null,null,null,null,null,8,7,2,"08","07","02","08|07|02","National Treasury","Civil and Military Pensions, Contributions to Funds and Other Benefits","Civil Pensions and Contributions to Funds"]
[null,null,null,null,null,8,7,3,"08","07","03","08|07|03","National Treasury","Civil and Military Pensions, Contributions to Funds and Other Benefits","Military Pensions and Other Benefits"]
[null,null,null,null,null,8,8,1,"08","08","01","08|08|01","National Treasury","Revenue Administration","South African Revenue Service"]
[null,null,null,null,null,8,9,1,"08","09","01","08|09|01","National Treasury","Financial Intelligence and State Security","Financial Intelligence Centre"]
[null,null,null,null,null,8,9,2,"08","09","02","08|09|02","National Treasury","Financial Intelligence and State Security","Secret Services"]
[null,null,null,null,null,8,16,1,"08","16","01","08|16|01","National Treasury","Direct charge against the National Revenue Fund","Provincial Equitable Share"]
[null,null,null,null,null,8,16,2,"08","16","02","08|16|02","National Treasury","Direct charge against the National Revenue Fund","Debt-service costs"]
[null,null,null,null,null,8,16,3,"08","16","03","08|16|03","National Treasury","Direct charge against the National Revenue Fund","General Fuel Levy Sharing with Metropolitan Municipalities"]
[null,null,null,null,null,8,16,4,"08","16","04","08|16|04","National Treasury","Direct charge against the National Revenue Fund","National Revenue Fund payments"]
[null,null,null,null,null,8,16,5,"08","16","05","08|16|05","National Treasury","Direct charge against the National Revenue Fund","Auditor-General of South Africa"]
[null,null,null,null,null,8,16,6,"08","16","06","08|16|06","National Treasury","Direct charge against the National Revenue Fund","Public Finance Management Act (1999) section 70 payment: Land and Agricultural Development Bank of South Africa"]
[null,null,null,null,null,8,16,7,"08","16","07","08|16|07","National Treasury","Direct charge against the National Revenue Fund","Section 6 of the Appropriation Act no. 10 of 2021: South African Special Risks Insurance Association (SASRIA)"]
[null,null,null,null,null,8,16,8,"08","16","08","08|16|08","National Treasury","Direct charge against the National Revenue Fund","Section 16 of the PFMA payment: South African Special Risks Insurance Association (SASRIA)."]
[null,null,null,null,null,9,1,1,"09","01","01","09|01|01","Planning, Monitoring and Evaluation","Administration","Ministerial Support"]
[null,null,null,null,null,9,1,2,"09","01","02","09|01|02","Planning, Monitoring and Evaluation","Administration","Departmental Management"]
[null,null,null,null,null,9,1,3,"09","01","03","09|01|03","Planning, Monitoring and Evaluation","Administration","Corporate and Financial Services"]
[null,null,null,null,null,9,2,1,"09","02","01","09|02|01","Planning, Monitoring and Evaluation","National Planning Coordination","Management: National Planning Coordination"]
[null,null,null,null,null,9,2,2,"09","02","02","09|02|02","Planning, Monitoring and Evaluation","National Planning Coordination","Planning Coordination"]
[null,null,null,null,null,9,3,1,"09","03","01","09|03|01","Planning, Monitoring and Evaluation","Sector Monitoring Services","Management: Sector Monitoring Services"]
[null,null,null,null,null,9,3,2,"09","03","02","09|03|02","Planning, Monitoring and Evaluation","Sector Monitoring Services","Outcomes Monitoring and Support"]
[null,null,null,null,null,9,3,3,"09","03","03","09|03|03","Planning, Monitoring and Evaluation","Sector Monitoring Services","Intervention Support"]
[null,null,null,null,null,9,4,1,"09","04","01","09|04|01","Planning, Monitoring and Evaluation","Public Sector Monitoring and Capacity Development","Management: Public Sector Monitoring and Capacity Development"]
[null,null,null,null,null,9,4,2,"09","04","02","09|04|02","Planning, Monitoring and Evaluation","Public Sector Monitoring and Capacity Development","Public Service Monitoring and Capacity Development"]
[null,null,null,null,null,9,5,1,"09","05","01","09|05|01","Planning, Monitoring and Evaluation","Evidence and Knowledge Systems","Management: Evidence and Knowledge Systems"]
[null,null,null,null,null,9,5,2,"09","05","02","09|05|02","Planning, Monitoring and Evaluation","Evidence and Knowledge Systems","Evaluation, Research, Knowledge and Data Systems"]
[null,null,null,null,null,10,1,1,"10","01","01","10|01|01","Public Enterprises","Administration","Ministry"]
[null,null,null,null,null,10,1,2,"10","01","02","10|01|02","Public Enterprises","Administration","Management"]
[null,null,null,null,null,10,1,3,"10","01","03","10|01|03","Public Enterprises","Administration","Communications"]
[null,null,null,null,null,10,1,4,"10","01","04","10|01|04","Public Enterprises","Administration","Chief Financial Officer"]
[null,null,null,null,null,10,1,5,"10","01","05","10|01|05","Public Enterprises","Administration","Human Resources"]
[null,null,null,null,null,10,1,6,"10","01","06","10|01|06","Public Enterprises","Administration","Internal Audit"]
[null,null,null,null,null,10,1,7,"10","01","07","10|01|07","Public Enterprises","Administration","Corporate Services"]
[null,null,null,null,null,10,1,8,"10","01","08","10|01|08","Public Enterprises","Administration","Office Accommodation"]
[null,null,null,null,null,10,2,1,"10","02","01","10|02|01","Public Enterprises","State-owned Companies Governance Assurance and Performance","Management"]
[null,null,null,null,null,10,2,2,"10","02","02","10|02|02","Public Enterprises","State-owned Companies Governance Assurance and Performance","Legal"]
[null,null,null,null,null,10,2,3,"10","02","03","10|02|03","Public Enterprises","State-owned Companies Governance Assurance and Performance","Governance"]
[null,null,null,null,null,10,2,4,"10","02","04","10|02|04","Public Enterprises","State-owned Companies Governance Assurance and Performance","Financial Assessment and Investment Support"]
[null,null,null,null,null,10,3,1,"10","03","01","10|03|01","Public Enterprises","Business Enhancement, Transformation and Industrialisation","Energy Resources"]
[null,null,null,null,null,10,3,2,"10","03","02","10|03|02","Public Enterprises","Business Enhancement, Transformation and Industrialisation","Research and Economic Modelling"]
[null,null,null,null,null,10,3,3,"10","03","03","10|03|03","Public Enterprises","Business Enhancement, Transformation and Industrialisation","Transport and Defence"]
[null,null,null,null,null,10,3,4,"10","03","04","10|03|04","Public Enterprises","Business Enhancement, Transformation and Industrialisation","Business Enhancement Services"]
[null,null,null,null,null,10,16,1,"10","16","01","10|16|01","Public Enterprises","Direct charge against the National Revenue Fund","Section 70 of the Public Finance Management Act (1999) payment: South African Express Airways SOC Ltd"]
[null,null,null,null,null,10,16,2,"10","16","02","10|16|02","Public Enterprises","Direct charge against the National Revenue Fund","Section 70 of the Public Finance Management Act (1999) payment: South African Airways SOC Ltd"]
[null,null,null,null,null,10,16,3,"10","16","03","10|16|03","Public Enterprises","Direct charge against the National Revenue Fund","Section 70 of the Public Finance Management Act (1999) payment: Denel SOC Ltd"]
[null,null,null,null,null,11,1,1,"11","01","01","11|01|01","Public Service and Administration","Administration","Ministry"]
[null,null,null,null,null,11,1,2,"11","01","02","11|01|02","Public Service and Administration","Administration","Departmental Management"]
[null,null,null,null,null,11,1,3,"11","01","03","11|01|03","Public Service and Administration","Administration","Corporate Services"]
[null,null,null,null,null,11,1,4,"11","01","04","11|01|04","Public Service and Administration","Administration","Finance Administration"]
[null,null,null,null,null,11,1,5,"11","01","05","11|01|05","Public Service and Administration","Administration","Internal Audit"]
[null,null,null,null,null,11,1,6,"11","01","06","11|01|06","Public Service and Administration","Administration","Legal Services"]
[null,null,null,null,null,11,1,7,"11","01","07","11|01|07","Public Service and Administration","Administration","International Relations and Donor Funding"]
[null,null,null,null,null,11,1,8,"11","01","08","11|01|08","Public Service and Administration","Administration","Office Accommodation"]
[null,null,null,null,null,11,2,1,"11","02","01","11|02|01","Public Service and Administration","Human Resource Management and Development","Management: Human Resource Management and Development"]
[null,null,null,null,null,11,2,2,"11","02","02","11|02|02","Public Service and Administration","Human Resource Management and Development","Office of Standards and Compliance"]
[null,null,null,null,null,11,2,3,"11","02","03","11|02|03","Public Service and Administration","Human Resource Management and Development","Human Resource Planning, Employment and Performance Management"]
[null,null,null,null,null,11,2,4,"11","02","04","11|02|04","Public Service and Administration","Human Resource Management and Development","Human Resource Development"]
[null,null,null,null,null,11,2,5,"11","02","05","11|02|05","Public Service and Administration","Human Resource Management and Development","Transformation and Workplace Environment Management"]
[null,null,null,null,null,11,3,1,"11","03","01","11|03|01","Public Service and Administration","Negotiations, Labour Relations and Remuneration Management","Management: Negotiations, Labour Relations and Remuneration Management"]
[null,null,null,null,null,11,3,2,"11","03","02","11|03|02","Public Service and Administration","Negotiations, Labour Relations and Remuneration Management","Negotiations, Labour Relations and Dispute Management"]
[null,null,null,null,null,11,3,3,"11","03","03","11|03|03","Public Service and Administration","Negotiations, Labour Relations and Remuneration Management","Remuneration, Employment Conditions and Human Resource Systems"]
[null,null,null,null,null,11,3,4,"11","03","04","11|03|04","Public Service and Administration","Negotiations, Labour Relations and Remuneration Management","Government Employees Housing Scheme, Project Management Office"]
[null,null,null,null,null,11,3,5,"11","03","05","11|03|05","Public Service and Administration","Negotiations, Labour Relations and Remuneration Management","Organisational Development, Job Grading and Macro Organisation of the State"]
[null,null,null,null,null,11,3,6,"11","03","06","11|03|06","Public Service and Administration","Negotiations, Labour Relations and Remuneration Management","Public Administration Ethics, Integrity and Disciplinary Technical Assistance Unit"]
[null,null,null,null,null,11,4,1,"11","04","01","11|04|01","Public Service and Administration","e-Government Services and Information Management","Management: e-Government Services and Information Management"]
[null,null,null,null,null,11,4,2,"11","04","02","11|04|02","Public Service and Administration","e-Government Services and Information Management","e-Enablement and ICT Service Infrastructure Management"]
[null,null,null,null,null,11,4,3,"11","04","03","11|04|03","Public Service and Administration","e-Government Services and Information Management","Information and Stakeholder Management"]
[null,null,null,null,null,11,4,4,"11","04","04","11|04|04","Public Service and Administration","e-Government Services and Information Management","ICT Governance and Management"]
[null,null,null,null,null,11,4,5,"11","04","05","11|04|05","Public Service and Administration","e-Government Services and Information Management","Knowledge Management and Innovation"]
[null,null,null,null,null,11,5,1,"11","05","01","11|05|01","Public Service and Administration","Government Service Access and Improvement","Management: Government Service Access and Improvement"]
[null,null,null,null,null,11,5,2,"11","05","02","11|05|02","Public Service and Administration","Government Service Access and Improvement","Operations Management"]
[null,null,null,null,null,11,5,3,"11","05","03","11|05|03","Public Service and Administration","Government Service Access and Improvement","Service Delivery Improvement, Citizen Relations and Public Participation"]
[null,null,null,null,null,11,5,4,"11","05","04","11|05|04","Public Service and Administration","Government Service Access and Improvement","Service Access"]
[null,null,null,null,null,11,5,5,"11","05","05","11|05|05","Public Service and Administration","Government Service Access and Improvement","International Cooperation and Stakeholder Relations"]
[null,null,null,null,null,11,5,6,"11","05","06","11|05|06","Public Service and Administration","Government Service Access and Improvement","Centre for Public Service Innovation"]
[null,null,null,null,null,12,1,1,"12","01","01","12|01|01","Public Service Commission","Administration","Public Service Commission"]
[null,null,null,null,null,12,1,2,"12","01","02","12|01|02","Public Service Commission","Administration","Management"]
[null,null,null,null,null,12,1,3,"12","01","03","12|01|03","Public Service Commission","Administration","Corporate Services"]
[null,null,null,null,null,12,1,4,"12","01","04","12|01|04","Public Service Commission","Administration","Property Management"]
[null,null,null,null,null,12,1,5,"12","01","05","12|01|05","Public Service Commission","Administration","Chief Financial Officer"]
[null,null,null,null,null,12,2,1,"12","02","01","12|02|01","Public Service Commission","Leadership and Management Practices","Labour Relations Improvement"]
[null,null,null,null,null,12,2,2,"12","02","02","12|02|02","Public Service Commission","Leadership and Management Practices","Leadership and Human Resource Reviews"]
[null,null,null,null,null,12,2,3,"12","02","03","12|02|03","Public Service Commission","Leadership and Management Practices","Programme Management: Leadership and Management Practices"]
[null,null,null,null,null,12,3,1,"12","03","01","12|03|01","Public Service Commission","Monitoring and Evaluation","Governance Monitoring"]
[null,null,null,null,null,12,3,2,"12","03","02","12|03|02","Public Service Commission","Monitoring and Evaluation","Service Delivery and Compliance Evaluations"]
[null,null,null,null,null,12,3,3,"12","03","03","12|03|03","Public Service Commission","Monitoring and Evaluation","Programme Management: Monitoring and Evaluation"]
[null,null,null,null,null,12,4,1,"12","04","01","12|04|01","Public Service Commission","Integrity and Anti-corruption","Public Administration Investigations"]
[null,null,null,null,null,12,4,2,"12","04","02","12|04|02","Public Service Commission","Integrity and Anti-corruption","Professional Ethics"]
[null,null,null,null,null,12,4,3,"12","04","03","12|04|03","Public Service Commission","Integrity and Anti-corruption","Programme Management: Integrity and Anti-corruption"]
[null,null,null,null,null,13,1,1,"13","01","01","13|01|01","Public Works and Infrastructure","Administration","Ministry"]
[null,null,null,null,null,13,1,2,"13","01","02","13|01|02","Public Works and Infrastructure","Administration","Management"]
[null,null,null,null,null,13,1,3,"13","01","03","13|01|03","Public Works and Infrastructure","Administration","Corporate Services"]
[null,null,null,null,null,13,1,4,"13","01","04","13|01|04","Public Works and Infrastructure","Administration","Finance and Supply Chain Management"]
[null,null,null,null,null,13,1,5,"13","01","05","13|01|05","Public Works and Infrastructure","Administration","Office Accommodation"]
[null,null,null,null,null,13,2,1,"13","02","01","13|02|01","Public Works and Infrastructure","Intergovernmental Coordination","Monitoring, Evaluation and Reporting"]
[null,null,null,null,null,13,2,2,"13","02","02","13|02|02","Public Works and Infrastructure","Intergovernmental Coordination","Intergovernmental Relations and Coordination"]
[null,null,null,null,null,13,2,3,"13","02","03","13|02|03","Public Works and Infrastructure","Intergovernmental Coordination","Professional Services"]
[null,null,null,null,null,13,3,1,"13","03","01","13|03|01","Public Works and Infrastructure","Expanded Public Works Programme","Expanded Public Works Programme: Monitoring and Evaluation"]
[null,null,null,null,null,13,3,2,"13","03","02","13|03|02","Public Works and Infrastructure","Expanded Public Works Programme","Expanded Public Works Programme: Infrastructure"]
[null,null,null,null,null,13,3,3,"13","03","03","13|03|03","Public Works and Infrastructure","Expanded Public Works Programme","Expanded Public Works Programme: Operations"]
[null,null,null,null,null,13,3,4,"13","03","04","13|03|04","Public Works and Infrastructure","Expanded Public Works Programme","Expanded Public Works Programme: Partnership Support"]
[null,null,null,null,null,13,3,5,"13","03","05","13|03|05","Public Works and Infrastructure","Expanded Public Works Programme","Expanded Public Works Programme: Public Employment Coordinating Commission"]
[null,null,null,null,null,13,4,1,"13","04","01","13|04|01","Public Works and Infrastructure","Property and Construction Industry Policy and Research","Construction Policy Development Programme"]
[null,null,null,null,null,13,4,2,"13","04","02","13|04|02","Public Works and Infrastructure","Property and Construction Industry Policy and Research","Property Policy Development Programme"]
[null,null,null,null,null,13,4,4,"13","04","04","13|04|04","Public Works and Infrastructure","Property and Construction Industry Policy and Research","Construction Industry Development Board"]
[null,null,null,null,null,13,4,5,"13","04","05","13|04|05","Public Works and Infrastructure","Property and Construction Industry Policy and Research","Council for the Built Environment"]
[null,null,null,null,null,13,4,6,"13","04","06","13|04|06","Public Works and Infrastructure","Property and Construction Industry Policy and Research","Independent Development Trust"]
[null,null,null,null,null,13,4,7,"13","04","07","13|04|07","Public Works and Infrastructure","Property and Construction Industry Policy and Research","Construction Education and Training Authority"]
[null,null,null,null,null,13,4,8,"13","04","08","13|04|08","Public Works and Infrastructure","Property and Construction Industry Policy and Research","Property Management Trading Entity"]
[null,null,null,null,null,13,4,9,"13","04","09","13|04|09","Public Works and Infrastructure","Property and Construction Industry Policy and Research","Assistance to Organisations for the Preservation of National Memorials"]
[null,null,null,null,null,13,4,10,"13","04","10","13|04|10","Public Works and Infrastructure","Property and Construction Industry Policy and Research","Infrastructure Development Coordination"]
[null,null,null,null,null,13,5,1,"13","05","01","13|05|01","Public Works and Infrastructure","Prestige Policy","Prestige Accommodation and State Functions"]
[null,null,null,null,null,13,5,2,"13","05","02","13|05|02","Public Works and Infrastructure","Prestige Policy","Parliamentary Villages Management Board"]
[null,null,null,null,null,14,1,1,"14","01","01","14|01|01","Statistics South Africa","Administration","Departmental Management"]
[null,null,null,null,null,14,1,2,"14","01","02","14|01|02","Statistics South Africa","Administration","Corporate Services"]
[null,null,null,null,null,14,1,3,"14","01","03","14|01|03","Statistics South Africa","Administration","Financial Administration"]
[null,null,null,null,null,14,1,4,"14","01","04","14|01|04","Statistics South Africa","Administration","Internal Audit"]
[null,null,null,null,null,14,1,5,"14","01","05","14|01|05","Statistics South Africa","Administration","Office Accommodation"]
[null,null,null,null,null,14,2,1,"14","02","01","14|02|01","Statistics South Africa","Economic Statistics","Programme Management for Economic Statistics"]
[null,null,null,null,null,14,2,2,"14","02","02","14|02|02","Statistics South Africa","Economic Statistics","Business Cycle Indicators"]
[null,null,null,null,null,14,2,3,"14","02","03","14|02|03","Statistics South Africa","Economic Statistics","Structural Industry Statistics"]
[null,null,null,null,null,14,2,4,"14","02","04","14|02|04","Statistics South Africa","Economic Statistics","Price Statistics"]
[null,null,null,null,null,14,2,5,"14","02","05","14|02|05","Statistics South Africa","Economic Statistics","Private Sector Finance Statistics"]
[null,null,null,null,null,14,2,6,"14","02","06","14|02|06","Statistics South Africa","Economic Statistics","Government Finance Statistics"]
[null,null,null,null,null,14,2,7,"14","02","07","14|02|07","Statistics South Africa","Economic Statistics","National Accounts"]
[null,null,null,null,null,14,3,1,"14","03","01","14|03|01","Statistics South Africa","Population and Social Statistics","Programme Management for Population and Social Statistics"]
[null,null,null,null,null,14,3,2,"14","03","02","14|03|02","Statistics South Africa","Population and Social Statistics","Demographic and Population Statistics"]
[null,null,null,null,null,14,3,3,"14","03","03","14|03|03","Statistics South Africa","Population and Social Statistics","Health and Vital Statistics"]
[null,null,null,null,null,14,3,4,"14","03","04","14|03|04","Statistics South Africa","Population and Social Statistics","Social Statistics"]
[null,null,null,null,null,14,3,5,"14","03","05","14|03|05","Statistics South Africa","Population and Social Statistics","Labour Statistics"]
[null,null,null,null,null,14,3,6,"14","03","06","14|03|06","Statistics South Africa","Population and Social Statistics","Poverty and Inequality Statistics"]
[null,null,null,null,null,14,4,1,"14","04","01","14|04|01","Statistics South Africa","Methodology and Statistical Infrastructure","Programme Management for Methodology and Statistical Infrastructure"]
[null,null,null,null,null,14,4,2,"14","04","02","14|04|02","Statistics South Africa","Methodology and Statistical Infrastructure","Statistical Methods"]
[null,null,null,null,null,14,4,3,"14","04","03","14|04|03","Statistics South Africa","Methodology and Statistical Infrastructure","Statistical Standards"]
[null,null,null,null,null,14,4,4,"14","04","04","14|04|04","Statistics South Africa","Methodology and Statistical Infrastructure","Business Register"]
[null,null,null,null,null,14,4,5,"14","04","05","14|04|05","Statistics South Africa","Methodology and Statistical Infrastructure","Geography Frames and Services"]
[null,null,null,null,null,14,4,6,"14","04","06","14|04|06","Statistics South Africa","Methodology and Statistical Infrastructure","Survey Monitoring and Evaluation"]
[null,null,null,null,null,14,4,7,"14","04","07","14|04|07","Statistics South Africa","Methodology and Statistical Infrastructure","Innovation and Research"]
[null,null,null,null,null,14,5,1,"14","05","01","14|05|01","Statistics South Africa","Statistical Support and Informatics","Programme Management for Statistical Support and Informatics"]
[null,null,null,null,null,14,5,2,"14","05","02","14|05|02","Statistics South Africa","Statistical Support and Informatics","Communication and Marketing"]
[null,null,null,null,null,14,5,3,"14","05","03","14|05|03","Statistics South Africa","Statistical Support and Informatics","Business Modernisation"]
[null,null,null,null,null,14,5,4,"14","05","04","14|05|04","Statistics South Africa","Statistical Support and Informatics","Publication Services"]
[null,null,null,null,null,14,5,5,"14","05","05","14|05|05","Statistics South Africa","Statistical Support and Informatics","Information, Communication and Technology"]
[null,null,null,null,null,14,5,6,"14","05","06","14|05|06","Statistics South Africa","Statistical Support and Informatics","Analytical Studies"]
[null,null,null,null,null,14,6,1,"14","06","01","14|06|01","Statistics South Africa","Statistical Operations and Provincial Coordination","Programme Management for Statistical Operations and Provincial Coordination"]
[null,null,null,null,null,14,6,2,"14","06","02","14|06|02","Statistics South Africa","Statistical Operations and Provincial Coordination","Provincial and District Offices"]
[null,null,null,null,null,14,6,3,"14","06","03","14|06|03","Statistics South Africa","Statistical Operations and Provincial Coordination","Data Operations"]
[null,null,null,null,null,14,6,4,"14","06","04","14|06|04","Statistics South Africa","Statistical Operations and Provincial Coordination","Household Survey and Censuses"]
[null,null,null,null,null,14,7,1,"14","07","01","14|07|01","Statistics South Africa","South African National Statistics System","Programme Management for South African National Statistics System"]
[null,null,null,null,null,14,7,2,"14","07","02","14|07|02","Statistics South Africa","South African National Statistics System","Economic Subsystem"]
[null,null,null,null,null,14,7,3,"14","07","03","14|07|03","Statistics South Africa","South African National Statistics System","Social Subsystem"]
[null,null,null,null,null,14,7,4,"14","07","04","14|07|04","Statistics South Africa","South African National Statistics System","Independent Quality Assessment"]
[null,null,null,null,null,14,7,5,"14","07","05","14|07|05","Statistics South Africa","South African National Statistics System","Statistical Reporting"]
[null,null,null,null,null,14,7,6,"14","07","06","14|07|06","Statistics South Africa","South African National Statistics System","Data and Information Management"]
[null,null,null,null,null,15,1,1,"15","01","01","15|01|01","Traditional Affairs","Administration","Ministry"]
[null,null,null,null,null,15,1,2,"15","01","02","15|01|02","Traditional Affairs","Administration","Management of Traditional Affairs"]
[null,null,null,null,null,15,1,3,"15","01","03","15|01|03","Traditional Affairs","Administration","Corporate Services"]
[null,null,null,null,null,15,1,4,"15","01","04","15|01|04","Traditional Affairs","Administration","Internal Audit"]
[null,null,null,null,null,15,2,1,"15","02","01","15|02|01","Traditional Affairs","Research, Policy and Legislation","Management"]
[null,null,null,null,null,15,2,2,"15","02","02","15|02|02","Traditional Affairs","Research, Policy and Legislation","Policy and Legislation"]
[null,null,null,null,null,15,2,3,"15","02","03","15|02|03","Traditional Affairs","Research, Policy and Legislation","Research and Information Management"]
[null,null,null,null,null,15,3,1,"15","03","01","15|03|01","Traditional Affairs","Institutional Support and Coordination","Management"]
[null,null,null,null,null,15,3,2,"15","03","02","15|03|02","Traditional Affairs","Institutional Support and Coordination","Institutional Development and Capacity Building"]
[null,null,null,null,null,15,3,3,"15","03","03","15|03|03","Traditional Affairs","Institutional Support and Coordination","Intergovernmental Relations and Partnerships"]
[null,null,null,null,null,15,3,4,"15","03","04","15|03|04","Traditional Affairs","Institutional Support and Coordination","National House of Traditional Leaders"]
[null,null,null,null,null,15,3,5,"15","03","05","15|03|05","Traditional Affairs","Institutional Support and Coordination","Commission for the Promotion and Protection of the Rights of Cultural, Religious and Linguistic Communities"]
[null,null,null,null,null,15,3,6,"15","03","06","15|03|06","Traditional Affairs","Institutional Support and Coordination","Disputes and Claims Resolution"]
[null,null,null,null,null,16,1,1,"16","01","01","16|01|01","Basic Education","Administration","Ministry"]
[null,null,null,null,null,16,1,2,"16","01","02","16|01|02","Basic Education","Administration","Department Management"]
[null,null,null,null,null,16,1,3,"16","01","03","16|01|03","Basic Education","Administration","Corporate Services"]
[null,null,null,null,null,16,1,4,"16","01","04","16|01|04","Basic Education","Administration","Office of the Chief Financial Officer"]
[null,null,null,null,null,16,1,5,"16","01","05","16|01|05","Basic Education","Administration","Internal Audit"]
[null,null,null,null,null,16,1,6,"16","01","06","16|01|06","Basic Education","Administration","Office Accommodation"]
[null,null,null,null,null,16,2,1,"16","02","01","16|02|01","Basic Education","Curriculum Policy, Support and Monitoring","Programme Management: Curriculum Policy, Support and Monitoring"]
[null,null,null,null,null,16,2,2,"16","02","02","16|02|02","Basic Education","Curriculum Policy, Support and Monitoring","Curriculum Implementation and Monitoring"]
[null,null,null,null,null,16,2,3,"16","02","03","16|02|03","Basic Education","Curriculum Policy, Support and Monitoring","Curriculum and Quality Enhancement Programmes"]
[null,null,null,null,null,16,3,1,"16","03","01","16|03|01","Basic Education","Teachers, Education Human Resources and Institutional Development","Programme Management: Teachers, Education Human Resources and Institutional Development"]
[null,null,null,null,null,16,3,2,"16","03","02","16|03|02","Basic Education","Teachers, Education Human Resources and Institutional Development","Education Human Resources Management"]
[null,null,null,null,null,16,3,3,"16","03","03","16|03|03","Basic Education","Teachers, Education Human Resources and Institutional Development","Education Human Resources Development"]
[null,null,null,null,null,16,3,4,"16","03","04","16|03|04","Basic Education","Teachers, Education Human Resources and Institutional Development","Curriculum and Professional Development Unit"]
[null,null,null,null,null,16,4,1,"16","04","01","16|04|01","Basic Education","Planning, Information and Assessment","Programme Management: Planning, Information and Assessment"]
[null,null,null,null,null,16,4,2,"16","04","02","16|04|02","Basic Education","Planning, Information and Assessment","Financial Planning, Information and Management Systems"]
[null,null,null,null,null,16,4,3,"16","04","03","16|04|03","Basic Education","Planning, Information and Assessment","School Infrastructure"]
[null,null,null,null,null,16,4,4,"16","04","04","16|04|04","Basic Education","Planning, Information and Assessment","National Assessments and Public Examinations"]
[null,null,null,null,null,16,4,5,"16","04","05","16|04|05","Basic Education","Planning, Information and Assessment","National Education Evaluation and Development Unit"]
[null,null,null,null,null,16,4,6,"16","04","06","16|04|06","Basic Education","Planning, Information and Assessment","Planning and Delivery Oversight Unit"]
[null,null,null,null,null,16,5,1,"16","05","01","16|05|01","Basic Education","Educational Enrichment Services","Programme Management: Educational Enrichment Services"]
[null,null,null,null,null,16,5,2,"16","05","02","16|05|02","Basic Education","Educational Enrichment Services","Partnerships in Education"]
[null,null,null,null,null,16,5,3,"16","05","03","16|05|03","Basic Education","Educational Enrichment Services","Care and Support in Schools"]
[null,null,null,null,null,17,1,1,"17","01","01","17|01|01","Higher Education and Training","Administration","Department Management"]
[null,null,null,null,null,17,1,2,"17","01","02","17|01|02","Higher Education and Training","Administration","Corporate Management Services"]
[null,null,null,null,null,17,1,3,"17","01","03","17|01|03","Higher Education and Training","Administration","Office of the Chief Financial Officer"]
[null,null,null,null,null,17,1,4,"17","01","04","17|01|04","Higher Education and Training","Administration","Internal Audit"]
[null,null,null,null,null,17,1,5,"17","01","05","17|01|05","Higher Education and Training","Administration","Office Accommodation"]
[null,null,null,null,null,17,2,1,"17","02","01","17|02|01","Higher Education and Training","Planning, Policy and Strategy","Programme Management: Planning, Policy and Strategy"]
[null,null,null,null,null,17,2,2,"17","02","02","17|02|02","Higher Education and Training","Planning, Policy and Strategy","Human Resource Development Council of South Africa"]
[null,null,null,null,null,17,2,3,"17","02","03","17|02|03","Higher Education and Training","Planning, Policy and Strategy","Policy, Planning, Monitoring and Evaluation"]
[null,null,null,null,null,17,2,4,"17","02","04","17|02|04","Higher Education and Training","Planning, Policy and Strategy","International Relations"]
[null,null,null,null,null,17,2,5,"17","02","05","17|02|05","Higher Education and Training","Planning, Policy and Strategy","Legal and Legislative Services"]
[null,null,null,null,null,17,2,6,"17","02","06","17|02|06","Higher Education and Training","Planning, Policy and Strategy","Social Inclusion and Quality"]
[null,null,null,null,null,17,3,1,"17","03","01","17|03|01","Higher Education and Training","University Education","Programme Management: University Education"]
[null,null,null,null,null,17,3,2,"17","03","02","17|03|02","Higher Education and Training","University Education","University Planning and Institutional Funding"]
[null,null,null,null,null,17,3,3,"17","03","03","17|03|03","Higher Education and Training","University Education","Institutional Governance and Management Support"]
[null,null,null,null,null,17,3,4,"17","03","04","17|03|04","Higher Education and Training","University Education","Higher Education Policy Development and Research"]
[null,null,null,null,null,17,3,5,"17","03","05","17|03|05","Higher Education and Training","University Education","Teaching, Learning and Research Development"]
[null,null,null,null,null,17,3,6,"17","03","06","17|03|06","Higher Education and Training","University Education","University Subsidies"]
[null,null,null,null,null,17,4,1,"17","04","01","17|04|01","Higher Education and Training","Technical and Vocational Education and Training","Programme Management: Technical and Vocational Education and Training"]
[null,null,null,null,null,17,4,2,"17","04","02","17|04|02","Higher Education and Training","Technical and Vocational Education and Training","Technical and Vocational Education and Training System Planning and Institutional Support"]
[null,null,null,null,null,17,4,3,"17","04","03","17|04|03","Higher Education and Training","Technical and Vocational Education and Training","Programmes and Qualifications"]
[null,null,null,null,null,17,4,4,"17","04","04","17|04|04","Higher Education and Training","Technical and Vocational Education and Training","National Examinations and Assessment"]
[null,null,null,null,null,17,4,5,"17","04","05","17|04|05","Higher Education and Training","Technical and Vocational Education and Training","Technical and Vocational Education and Training Financial Planning"]
[null,null,null,null,null,17,4,6,"17","04","06","17|04|06","Higher Education and Training","Technical and Vocational Education and Training","Regional Offices"]
[null,null,null,null,null,17,5,1,"17","05","01","17|05|01","Higher Education and Training","Skills Development","Programme Management: Skills Development"]
[null,null,null,null,null,17,5,2,"17","05","02","17|05|02","Higher Education and Training","Skills Development","Sector Education and Training Authority Coordination"]
[null,null,null,null,null,17,5,3,"17","05","03","17|05|03","Higher Education and Training","Skills Development","National Skills Authority Secretariat"]
[null,null,null,null,null,17,5,4,"17","05","04","17|05|04","Higher Education and Training","Skills Development","Quality Development and Promotion"]
[null,null,null,null,null,17,5,5,"17","05","05","17|05|05","Higher Education and Training","Skills Development","National Artisan Development"]
[null,null,null,null,null,17,6,1,"17","06","01","17|06|01","Higher Education and Training","Community Education and Training","Programme Management: Community Education and Training"]
[null,null,null,null,null,17,6,2,"17","06","02","17|06|02","Higher Education and Training","Community Education and Training","Community Education and Training System Planning, Institutional Development and Support"]
[null,null,null,null,null,17,6,3,"17","06","03","17|06|03","Higher Education and Training","Community Education and Training","Community Education and Training Colleges Financial Planning and Management"]
[null,null,null,null,null,17,6,4,"17","06","04","17|06|04","Higher Education and Training","Community Education and Training","Education, Training and Development Assessment"]
[null,null,null,null,null,17,16,1,"17","16","01","17|16|01","Higher Education and Training","Direct charge against the National Revenue Fund","Sector education and training authorities"]
[null,null,null,null,null,17,16,2,"17","16","02","17|16|02","Higher Education and Training","Direct charge against the National Revenue Fund","National Skills Fund"]
[null,null,null,null,null,18,1,1,"18","01","01","18|01|01","Health","Administration","Ministry"]
[null,null,null,null,null,18,1,2,"18","01","02","18|01|02","Health","Administration","Management"]
[null,null,null,null,null,18,1,3,"18","01","03","18|01|03","Health","Administration","Corporate Services"]
[null,null,null,null,null,18,1,4,"18","01","04","18|01|04","Health","Administration","Property Management"]
[null,null,null,null,null,18,1,5,"18","01","05","18|01|05","Health","Administration","Financial Management"]
[null,null,null,null,null,18,2,1,"18","02","01","18|02|01","Health","National Health Insurance","Programme Management"]
[null,null,null,null,null,18,2,2,"18","02","02","18|02|02","Health","National Health Insurance","Affordable Medicine"]
[null,null,null,null,null,18,2,3,"18","02","03","18|02|03","Health","National Health Insurance","Health Financing and National Health Insurance"]
[null,null,null,null,null,18,3,1,"18","03","01","18|03|01","Health","Communicable and Non-communicable Diseases","Programme Management"]
[null,null,null,null,null,18,3,2,"18","03","02","18|03|02","Health","Communicable and Non-communicable Diseases","HIV, AIDS and STIs"]
[null,null,null,null,null,18,3,3,"18","03","03","18|03|03","Health","Communicable and Non-communicable Diseases","Tuberculosis Management"]
[null,null,null,null,null,18,3,4,"18","03","04","18|03|04","Health","Communicable and Non-communicable Diseases","Women's Maternal and Reproductive Health"]
[null,null,null,null,null,18,3,5,"18","03","05","18|03|05","Health","Communicable and Non-communicable Diseases","Child, Youth and School Health"]
[null,null,null,null,null,18,3,6,"18","03","06","18|03|06","Health","Communicable and Non-communicable Diseases","Communicable Diseases"]
[null,null,null,null,null,18,3,7,"18","03","07","18|03|07","Health","Communicable and Non-communicable Diseases","Non-communicable Diseases"]
[null,null,null,null,null,18,3,8,"18","03","08","18|03|08","Health","Communicable and Non-communicable Diseases","Health Promotion and Nutrition"]
[null,null,null,null,null,18,4,1,"18","04","01","18|04|01","Health","Primary Health Care","Programme Management"]
[null,null,null,null,null,18,4,2,"18","04","02","18|04|02","Health","Primary Health Care","District Health Services"]
[null,null,null,null,null,18,4,3,"18","04","03","18|04|03","Health","Primary Health Care","Environmental and Port Health Services"]
[null,null,null,null,null,18,4,4,"18","04","04","18|04|04","Health","Primary Health Care","Emergency Medical Services and Trauma"]
[null,null,null,null,null,18,5,1,"18","05","01","18|05|01","Health","Hospital Systems","Programme Management"]
[null,null,null,null,null,18,5,2,"18","05","02","18|05|02","Health","Hospital Systems","Health Facilities Infrastructure Management"]
[null,null,null,null,null,18,5,3,"18","05","03","18|05|03","Health","Hospital Systems","Hospital Systems"]
[null,null,null,null,null,18,6,1,"18","06","01","18|06|01","Health","Health System Governance and Human Resources","Programme Management"]
[null,null,null,null,null,18,6,2,"18","06","02","18|06|02","Health","Health System Governance and Human Resources","Policy and Planning"]
[null,null,null,null,null,18,6,3,"18","06","03","18|06|03","Health","Health System Governance and Human Resources","Public Entities Management and Laboratories"]
[null,null,null,null,null,18,6,4,"18","06","04","18|06|04","Health","Health System Governance and Human Resources","Nursing Services"]
[null,null,null,null,null,18,6,5,"18","06","05","18|06|05","Health","Health System Governance and Human Resources","Health Information, Monitoring and Evaluation"]
[null,null,null,null,null,18,6,6,"18","06","06","18|06|06","Health","Health System Governance and Human Resources","Human Resources for Health"]
[null,null,null,null,null,18,16,1,"18","16","01","18|16|01","Health","Direct charge against the National Revenue Fund","Section 6(1)(b) of the Appropriation Act, 2021 (Act No. 10 of 2021): Covid-19 vaccine programme"]
[null,null,null,null,null,19,1,1,"19","01","01","19|01|01","Social Development","Administration","Ministry"]
[null,null,null,null,null,19,1,2,"19","01","02","19|01|02","Social Development","Administration","Department Management"]
[null,null,null,null,null,19,1,3,"19","01","03","19|01|03","Social Development","Administration","Corporate Management"]
[null,null,null,null,null,19,1,4,"19","01","04","19|01|04","Social Development","Administration","Finance"]
[null,null,null,null,null,19,1,5,"19","01","05","19|01|05","Social Development","Administration","Internal Audit"]
[null,null,null,null,null,19,1,6,"19","01","06","19|01|06","Social Development","Administration","Office Accommodation"]
[null,null,null,null,null,19,2,1,"19","02","01","19|02|01","Social Development","Social Assistance","Old Age"]
[null,null,null,null,null,19,2,2,"19","02","02","19|02|02","Social Development","Social Assistance","War Veterans"]
[null,null,null,null,null,19,2,3,"19","02","03","19|02|03","Social Development","Social Assistance","Disability"]
[null,null,null,null,null,19,2,4,"19","02","04","19|02|04","Social Development","Social Assistance","Foster Care"]
[null,null,null,null,null,19,2,5,"19","02","05","19|02|05","Social Development","Social Assistance","Care Dependency"]
[null,null,null,null,null,19,2,6,"19","02","06","19|02|06","Social Development","Social Assistance","Child Support"]
[null,null,null,null,null,19,2,7,"19","02","07","19|02|07","Social Development","Social Assistance","Grant-in-aid"]
[null,null,null,null,null,19,2,8,"19","02","08","19|02|08","Social Development","Social Assistance","Social Relief of Distress"]
[null,null,null,null,null,19,3,1,"19","03","01","19|03|01","Social Development","Social Security Policy and Administration","Social Security Policy Development"]
[null,null,null,null,null,19,3,2,"19","03","02","19|03|02","Social Development","Social Security Policy and Administration","Appeals Adjudication"]
[null,null,null,null,null,19,3,3,"19","03","03","19|03|03","Social Development","Social Security Policy and Administration","Social Grants Administration"]
[null,null,null,null,null,19,3,4,"19","03","04","19|03|04","Social Development","Social Security Policy and Administration","Social Grants Fraud Investigations"]
[null,null,null,null,null,19,3,5,"19","03","05","19|03|05","Social Development","Social Security Policy and Administration","Programme Management"]
[null,null,null,null,null,19,4,1,"19","04","01","19|04|01","Social Development","Welfare Services Policy Development and Implementation Support","Service Standards"]
[null,null,null,null,null,19,4,2,"19","04","02","19|04|02","Social Development","Welfare Services Policy Development and Implementation Support","Substance Abuse"]
[null,null,null,null,null,19,4,3,"19","04","03","19|04|03","Social Development","Welfare Services Policy Development and Implementation Support","Older Persons"]
[null,null,null,null,null,19,4,4,"19","04","04","19|04|04","Social Development","Welfare Services Policy Development and Implementation Support","People with Disabilities"]
[null,null,null,null,null,19,4,5,"19","04","05","19|04|05","Social Development","Welfare Services Policy Development and Implementation Support","Children"]
[null,null,null,null,null,19,4,6,"19","04","06","19|04|06","Social Development","Welfare Services Policy Development and Implementation Support","Families"]
[null,null,null,null,null,19,4,7,"19","04","07","19|04|07","Social Development","Welfare Services Policy Development and Implementation Support","Social Crime Prevention and Victim Empowerment"]
[null,null,null,null,null,19,4,8,"19","04","08","19|04|08","Social Development","Welfare Services Policy Development and Implementation Support","Youth"]
[null,null,null,null,null,19,4,9,"19","04","09","19|04|09","Social Development","Welfare Services Policy Development and Implementation Support","HIV and AIDS"]
[null,null,null,null,null,19,4,10,"19","04","10","19|04|10","Social Development","Welfare Services Policy Development and Implementation Support","Social Worker Scholarships"]
[null,null,null,null,null,19,4,11,"19","04","11","19|04|11","Social Development","Welfare Services Policy Development and Implementation Support","Programme Management"]
[null,null,null,null,null,19,5,1,"19","05","01","19|05|01","Social Development","Social Policy and Integrated Service Delivery","Social Policy Research and Development"]
[null,null,null,null,null,19,5,2,"19","05","02","19|05|02","Social Development","Social Policy and Integrated Service Delivery","Special Projects and Innovation"]
[null,null,null,null,null,19,5,3,"19","05","03","19|05|03","Social Development","Social Policy and Integrated Service Delivery","Population Policy Promotion"]
[null,null,null,null,null,19,5,4,"19","05","04","19|05|04","Social Development","Social Policy and Integrated Service Delivery","Registration and Monitoring of Non-profit Organisations"]
[null,null,null,null,null,19,5,5,"19","05","05","19|05|05","Social Development","Social Policy and Integrated Service Delivery","Substance Abuse Advisory Services and Oversight"]
[null,null,null,null,null,19,5,6,"19","05","06","19|05|06","Social Development","Social Policy and Integrated Service Delivery","Community Development"]
[null,null,null,null,null,19,5,7,"19","05","07","19|05|07","Social Development","Social Policy and Integrated Service Delivery","National Development Agency"]
[null,null,null,null,null,19,5,8,"19","05","08","19|05|08","Social Development","Social Policy and Integrated Service Delivery","Programme Management"]
[null,null,null,null,null,20,1,1,"20","01","01","20|01|01","Women, Youth and Persons with Disabilities","Administration","Ministry"]
[null,null,null,null,null,20,1,2,"20","01","02","20|01|02","Women, Youth and Persons with Disabilities","Administration","Departmental Management"]
[null,null,null,null,null,20,1,3,"20","01","03","20|01|03","Women, Youth and Persons with Disabilities","Administration","Corporate Services"]
[null,null,null,null,null,20,1,4,"20","01","04","20|01|04","Women, Youth and Persons with Disabilities","Administration","Financial Management"]
[null,null,null,null,null,20,1,5,"20","01","05","20|01|05","Women, Youth and Persons with Disabilities","Administration","Office Accommodation"]
[null,null,null,null,null,20,2,1,"20","02","01","20|02|01","Women, Youth and Persons with Disabilities","Mainstreaming Women’s Rights and Advocacy","Management: Advocacy and Mainstreaming for the Rights of Women"]
[null,null,null,null,null,20,2,2,"20","02","02","20|02|02","Women, Youth and Persons with Disabilities","Mainstreaming Women’s Rights and Advocacy","Social Empowerment of Women"]
[null,null,null,null,null,20,2,3,"20","02","03","20|02|03","Women, Youth and Persons with Disabilities","Mainstreaming Women’s Rights and Advocacy","Economic Empowerment of Women"]
[null,null,null,null,null,20,2,4,"20","02","04","20|02|04","Women, Youth and Persons with Disabilities","Mainstreaming Women’s Rights and Advocacy","Commission for Gender Equality"]
[null,null,null,null,null,20,3,1,"20","03","01","20|03|01","Women, Youth and Persons with Disabilities","Monitoring, Evaluation, Research and Coordination","Management: Monitoring, Evaluation, Research and Coordination"]
[null,null,null,null,null,20,3,2,"20","03","02","20|03|02","Women, Youth and Persons with Disabilities","Monitoring, Evaluation, Research and Coordination","Research and Knowledge Management"]
[null,null,null,null,null,20,3,3,"20","03","03","20|03|03","Women, Youth and Persons with Disabilities","Monitoring, Evaluation, Research and Coordination","International Relations, Stakeholder Management and Capacity Building"]
[null,null,null,null,null,20,3,4,"20","03","04","20|03|04","Women, Youth and Persons with Disabilities","Monitoring, Evaluation, Research and Coordination","Monitoring and Evaluation: Women,Youth and Persons with Disabilities"]
[null,null,null,null,null,20,4,1,"20","04","01","20|04|01","Women, Youth and Persons with Disabilities","Mainstreaming Youth and Persons with Disabilities Rights and Advocacy","Management: Advocacy and Mainstreaming for the Rights of Youth and Persons with Disabilities"]
[null,null,null,null,null,20,4,2,"20","04","02","20|04|02","Women, Youth and Persons with Disabilities","Mainstreaming Youth and Persons with Disabilities Rights and Advocacy","Advocacy and Mainstreaming for the Rights of Youth"]
[null,null,null,null,null,20,4,3,"20","04","03","20|04|03","Women, Youth and Persons with Disabilities","Mainstreaming Youth and Persons with Disabilities Rights and Advocacy","Advocacy and Mainstreaming for the Rights of Persons with Disabilities"]
[null,null,null,null,null,20,4,4,"20","04","04","20|04|04","Women, Youth and Persons with Disabilities","Mainstreaming Youth and Persons with Disabilities Rights and Advocacy","National Youth Development Agency"]
[null,null,null,null,null,21,1,1,"21","01","01","21|01|01","Civilian Secretariat for the Police Service","Administration","Department Management"]
[null,null,null,null,null,21,1,2,"21","01","02","21|01|02","Civilian Secretariat for the Police Service","Administration","Corporate Services"]
[null,null,null,null,null,21,1,3,"21","01","03","21|01|03","Civilian Secretariat for the Police Service","Administration","Finance Administration"]
[null,null,null,null,null,21,1,4,"21","01","04","21|01|04","Civilian Secretariat for the Police Service","Administration","Office Accommodation"]
[null,null,null,null,null,21,1,5,"21","01","05","21|01|05","Civilian Secretariat for the Police Service","Administration","Internal Audit"]
[null,null,null,null,null,21,2,1,"21","02","01","21|02|01","Civilian Secretariat for the Police Service","Intersectoral Coordination and Strategic Partnerships","Intergovernmental, Civil Society and Public-Private Partnerships"]
[null,null,null,null,null,21,2,2,"21","02","02","21|02|02","Civilian Secretariat for the Police Service","Intersectoral Coordination and Strategic Partnerships","Community Outreach"]
[null,null,null,null,null,21,3,1,"21","03","01","21|03|01","Civilian Secretariat for the Police Service","Legislation and Policy Development","Policy Development and Research"]
[null,null,null,null,null,21,3,2,"21","03","02","21|03|02","Civilian Secretariat for the Police Service","Legislation and Policy Development","Legislation"]
[null,null,null,null,null,21,4,1,"21","04","01","21|04|01","Civilian Secretariat for the Police Service","Civilian Oversight, Monitoring and Evaluations","Police Performance, Conduct and Compliance"]
[null,null,null,null,null,21,4,2,"21","04","02","21|04|02","Civilian Secretariat for the Police Service","Civilian Oversight, Monitoring and Evaluations","Policy and Programme Evaluations"]
[null,null,null,null,null,21,4,3,"21","04","03","21|04|03","Civilian Secretariat for the Police Service","Civilian Oversight, Monitoring and Evaluations","Office of the Directorate for Priority Crime Investigation Judge"]
[null,null,null,null,null,21,4,4,"21","04","04","21|04|04","Civilian Secretariat for the Police Service","Civilian Oversight, Monitoring and Evaluations","National Forensic Oversight and Ethics Board"]
[null,null,null,null,null,22,1,1,"22","01","01","22|01|01","Correctional Services","Administration","Ministry"]
[null,null,null,null,null,22,1,2,"22","01","02","22|01|02","Correctional Services","Administration","Judicial Inspectorate for Correctional Services"]
[null,null,null,null,null,22,1,3,"22","01","03","22|01|03","Correctional Services","Administration","Management"]
[null,null,null,null,null,22,1,4,"22","01","04","22|01|04","Correctional Services","Administration","Human Resources"]
[null,null,null,null,null,22,1,5,"22","01","05","22|01|05","Correctional Services","Administration","Finance"]
[null,null,null,null,null,22,1,6,"22","01","06","22|01|06","Correctional Services","Administration","Assurance Services"]
[null,null,null,null,null,22,1,7,"22","01","07","22|01|07","Correctional Services","Administration","Information Technology"]
[null,null,null,null,null,22,1,8,"22","01","08","22|01|08","Correctional Services","Administration","Office Accommodation"]
[null,null,null,null,null,22,2,1,"22","02","01","22|02|01","Correctional Services","Incarceration","Security Operations"]
[null,null,null,null,null,22,2,2,"22","02","02","22|02|02","Correctional Services","Incarceration","Facilities"]
[null,null,null,null,null,22,2,3,"22","02","03","22|02|03","Correctional Services","Incarceration","Remand Detention"]
[null,null,null,null,null,22,2,4,"22","02","04","22|02|04","Correctional Services","Incarceration","Offender Management"]
[null,null,null,null,null,22,3,1,"22","03","01","22|03|01","Correctional Services","Rehabilitation","Correctional Programmes"]
[null,null,null,null,null,22,3,2,"22","03","02","22|03|02","Correctional Services","Rehabilitation","Offender Development"]
[null,null,null,null,null,22,3,3,"22","03","03","22|03|03","Correctional Services","Rehabilitation","Psychological, Social and Spiritual Services"]
[null,null,null,null,null,22,4,1,"22","04","01","22|04|01","Correctional Services","Care","Nutritional Services"]
[null,null,null,null,null,22,4,2,"22","04","02","22|04|02","Correctional Services","Care","Health and Hygiene Services"]
[null,null,null,null,null,22,5,1,"22","05","01","22|05|01","Correctional Services","Social Reintegration","Supervision"]
[null,null,null,null,null,22,5,2,"22","05","02","22|05|02","Correctional Services","Social Reintegration","Community Reintegration"]
[null,null,null,null,null,22,5,3,"22","05","03","22|05|03","Correctional Services","Social Reintegration","Office Accommodation: Community Corrections"]
[null,null,null,null,null,23,1,1,"23","01","01","23|01|01","Defence","Administration","Ministry"]
[null,null,null,null,null,23,1,2,"23","01","02","23|01|02","Defence","Administration","Departmental Direction"]
[null,null,null,null,null,23,1,3,"23","01","03","23|01|03","Defence","Administration","Policy and Planning"]
[null,null,null,null,null,23,1,4,"23","01","04","23|01|04","Defence","Administration","Financial Services"]
[null,null,null,null,null,23,1,5,"23","01","05","23|01|05","Defence","Administration","Human Resources Support Services"]
[null,null,null,null,null,23,1,6,"23","01","06","23|01|06","Defence","Administration","Legal Services"]
[null,null,null,null,null,23,1,7,"23","01","07","23|01|07","Defence","Administration","Inspection and Audit Services"]
[null,null,null,null,null,23,1,8,"23","01","08","23|01|08","Defence","Administration","Acquisition Services"]
[null,null,null,null,null,23,1,9,"23","01","09","23|01|09","Defence","Administration","Communication Services"]
[null,null,null,null,null,23,1,10,"23","01","10","23|01|10","Defence","Administration","South African National Defence Force Command and Control"]
[null,null,null,null,null,23,1,11,"23","01","11","23|01|11","Defence","Administration","Religious Services"]
[null,null,null,null,null,23,1,12,"23","01","12","23|01|12","Defence","Administration","Defence Reserve Direction"]
[null,null,null,null,null,23,1,13,"23","01","13","23|01|13","Defence","Administration","Defence Foreign Relations"]
[null,null,null,null,null,23,1,14,"23","01","14","23|01|14","Defence","Administration","Office Accommodation"]
[null,null,null,null,null,23,2,1,"23","02","01","23|02|01","Defence","Force Employment","Strategic Direction"]
[null,null,null,null,null,23,2,2,"23","02","02","23|02|02","Defence","Force Employment","Operational Direction"]
[null,null,null,null,null,23,2,3,"23","02","03","23|02|03","Defence","Force Employment","Special Operations"]
[null,null,null,null,null,23,2,4,"23","02","04","23|02|04","Defence","Force Employment","Regional Security"]
[null,null,null,null,null,23,2,5,"23","02","05","23|02|05","Defence","Force Employment","Support to the People"]
[null,null,null,null,null,23,3,1,"23","03","01","23|03|01","Defence","Landward Defence","Strategic Direction"]
[null,null,null,null,null,23,3,2,"23","03","02","23|03|02","Defence","Landward Defence","Infantry Capability"]
[null,null,null,null,null,23,3,3,"23","03","03","23|03|03","Defence","Landward Defence","Armour Capability"]
[null,null,null,null,null,23,3,4,"23","03","04","23|03|04","Defence","Landward Defence","Artillery Capability"]
[null,null,null,null,null,23,3,5,"23","03","05","23|03|05","Defence","Landward Defence","Air Defence Artillery Capability"]
[null,null,null,null,null,23,3,6,"23","03","06","23|03|06","Defence","Landward Defence","Engineering Capability"]
[null,null,null,null,null,23,3,7,"23","03","07","23|03|07","Defence","Landward Defence","Operational Intelligence"]
[null,null,null,null,null,23,3,8,"23","03","08","23|03|08","Defence","Landward Defence","Command and Control Capability"]
[null,null,null,null,null,23,3,9,"23","03","09","23|03|09","Defence","Landward Defence","Support Capability"]
[null,null,null,null,null,23,3,10,"23","03","10","23|03|10","Defence","Landward Defence","General Training Capability"]
[null,null,null,null,null,23,3,11,"23","03","11","23|03|11","Defence","Landward Defence","Signal Capability"]
[null,null,null,null,null,23,4,1,"23","04","01","23|04|01","Defence","Air Defence","Strategic Direction"]
[null,null,null,null,null,23,4,2,"23","04","02","23|04|02","Defence","Air Defence","Operational Direction"]
[null,null,null,null,null,23,4,3,"23","04","03","23|04|03","Defence","Air Defence","Helicopter Capability"]
[null,null,null,null,null,23,4,4,"23","04","04","23|04|04","Defence","Air Defence","Transport and Maritime Capability"]
[null,null,null,null,null,23,4,5,"23","04","05","23|04|05","Defence","Air Defence","Air Combat Capability"]
[null,null,null,null,null,23,4,6,"23","04","06","23|04|06","Defence","Air Defence","Operational Support and Intelligence Capability"]
[null,null,null,null,null,23,4,7,"23","04","07","23|04|07","Defence","Air Defence","Command and Control Capability"]
[null,null,null,null,null,23,4,8,"23","04","08","23|04|08","Defence","Air Defence","Base Support Capability"]
[null,null,null,null,null,23,4,9,"23","04","09","23|04|09","Defence","Air Defence","Command Post"]
[null,null,null,null,null,23,4,10,"23","04","10","23|04|10","Defence","Air Defence","Training Capability"]
[null,null,null,null,null,23,4,11,"23","04","11","23|04|11","Defence","Air Defence","Technical Support Services"]
[null,null,null,null,null,23,5,1,"23","05","01","23|05|01","Defence","Maritime Defence","Maritime Direction"]
[null,null,null,null,null,23,5,2,"23","05","02","23|05|02","Defence","Maritime Defence","Maritime Combat Capability"]
[null,null,null,null,null,23,5,3,"23","05","03","23|05|03","Defence","Maritime Defence","Maritime Logistic Support Capability"]
[null,null,null,null,null,23,5,4,"23","05","04","23|05|04","Defence","Maritime Defence","Maritime Human Resources and Training Capability"]
[null,null,null,null,null,23,5,5,"23","05","05","23|05|05","Defence","Maritime Defence","Base Support Capability"]
[null,null,null,null,null,23,6,1,"23","06","01","23|06|01","Defence","Military Health Support","Strategic Direction"]
[null,null,null,null,null,23,6,2,"23","06","02","23|06|02","Defence","Military Health Support","Mobile Military Health Support"]
[null,null,null,null,null,23,6,3,"23","06","03","23|06|03","Defence","Military Health Support","Area Military Health Service"]
[null,null,null,null,null,23,6,4,"23","06","04","23|06|04","Defence","Military Health Support","Specialist/Tertiary Health Service"]
[null,null,null,null,null,23,6,5,"23","06","05","23|06|05","Defence","Military Health Support","Military Health Product Support Capability"]
[null,null,null,null,null,23,6,6,"23","06","06","23|06|06","Defence","Military Health Support","Military Health Maintenance Capability"]
[null,null,null,null,null,23,6,7,"23","06","07","23|06|07","Defence","Military Health Support","Military Health Training Capability"]
[null,null,null,null,null,23,7,1,"23","07","01","23|07|01","Defence","Defence Intelligence","Operations"]
[null,null,null,null,null,23,7,2,"23","07","02","23|07|02","Defence","Defence Intelligence","Defence Intelligence Support Services"]
[null,null,null,null,null,23,8,1,"23","08","01","23|08|01","Defence","General Support","Joint Logistic Services"]
[null,null,null,null,null,23,8,2,"23","08","02","23|08|02","Defence","General Support","Command and Management Information Systems"]
[null,null,null,null,null,23,8,3,"23","08","03","23|08|03","Defence","General Support","Military Police"]
[null,null,null,null,null,23,8,4,"23","08","04","23|08|04","Defence","General Support","Technology Development"]
[null,null,null,null,null,23,8,5,"23","08","05","23|08|05","Defence","General Support","Departmental Support"]
[null,null,null,null,null,24,1,1,"24","01","01","24|01|01","Independent Police Investigative Directorate","Administration","Department Management"]
[null,null,null,null,null,24,1,2,"24","01","02","24|01|02","Independent Police Investigative Directorate","Administration","Corporate Services"]
[null,null,null,null,null,24,1,3,"24","01","03","24|01|03","Independent Police Investigative Directorate","Administration","Office Accommodation"]
[null,null,null,null,null,24,1,4,"24","01","04","24|01|04","Independent Police Investigative Directorate","Administration","Internal Audit"]
[null,null,null,null,null,24,1,5,"24","01","05","24|01|05","Independent Police Investigative Directorate","Administration","Finance Services"]
[null,null,null,null,null,24,2,1,"24","02","01","24|02|01","Independent Police Investigative Directorate","Investigation and Information Management","Investigation Management"]
[null,null,null,null,null,24,2,2,"24","02","02","24|02|02","Independent Police Investigative Directorate","Investigation and Information Management","Investigation Services"]
[null,null,null,null,null,24,2,3,"24","02","03","24|02|03","Independent Police Investigative Directorate","Investigation and Information Management","Information Management"]
[null,null,null,null,null,24,3,1,"24","03","01","24|03|01","Independent Police Investigative Directorate","Legal and Investigation Advisory Services","Legal Support and Administration"]
[null,null,null,null,null,24,3,2,"24","03","02","24|03|02","Independent Police Investigative Directorate","Legal and Investigation Advisory Services","Litigation Advisory Services"]
[null,null,null,null,null,24,3,3,"24","03","03","24|03|03","Independent Police Investigative Directorate","Legal and Investigation Advisory Services","Investigation Advisory Services"]
[null,null,null,null,null,24,4,1,"24","04","01","24|04|01","Independent Police Investigative Directorate","Compliance Monitoring and Stakeholder Management","Compliance Monitoring"]
[null,null,null,null,null,24,4,2,"24","04","02","24|04|02","Independent Police Investigative Directorate","Compliance Monitoring and Stakeholder Management","Stakeholder Management"]
[null,null,null,null,null,25,1,1,"25","01","01","25|01|01","Justice and Constitutional Development","Administration","Ministry"]
[null,null,null,null,null,25,1,2,"25","01","02","25|01|02","Justice and Constitutional Development","Administration","Management"]
[null,null,null,null,null,25,1,3,"25","01","03","25|01|03","Justice and Constitutional Development","Administration","Corporate Services"]
[null,null,null,null,null,25,1,4,"25","01","04","25|01|04","Justice and Constitutional Development","Administration","Financial Administration"]
[null,null,null,null,null,25,1,5,"25","01","05","25|01|05","Justice and Constitutional Development","Administration","Internal Audit"]
[null,null,null,null,null,25,1,6,"25","01","06","25|01|06","Justice and Constitutional Development","Administration","Office Accommodation"]
[null,null,null,null,null,25,2,1,"25","02","01","25|02|01","Justice and Constitutional Development","Court Services","Lower Courts"]
[null,null,null,null,null,25,2,2,"25","02","02","25|02|02","Justice and Constitutional Development","Court Services","Family Advocate"]
[null,null,null,null,null,25,2,3,"25","02","03","25|02|03","Justice and Constitutional Development","Court Services","Magistrate's Commission"]
[null,null,null,null,null,25,2,4,"25","02","04","25|02|04","Justice and Constitutional Development","Court Services","Facilities Management"]
[null,null,null,null,null,25,2,5,"25","02","05","25|02|05","Justice and Constitutional Development","Court Services","Administration of Lower Courts"]
[null,null,null,null,null,25,3,1,"25","03","01","25|03|01","Justice and Constitutional Development","State Legal Services","State Law Advisors"]
[null,null,null,null,null,25,3,2,"25","03","02","25|03|02","Justice and Constitutional Development","State Legal Services","Litigation and Legal Services"]
[null,null,null,null,null,25,3,3,"25","03","03","25|03|03","Justice and Constitutional Development","State Legal Services","Legislative Development and Law Reform"]
[null,null,null,null,null,25,3,4,"25","03","04","25|03|04","Justice and Constitutional Development","State Legal Services","Master of the High Court"]
[null,null,null,null,null,25,3,5,"25","03","05","25|03|05","Justice and Constitutional Development","State Legal Services","Constitutional Development"]
[null,null,null,null,null,25,4,1,"25","04","01","25|04|01","Justice and Constitutional Development","National Prosecuting Authority","National Prosecutions Service"]
[null,null,null,null,null,25,4,2,"25","04","02","25|04|02","Justice and Constitutional Development","National Prosecuting Authority","Investigating Directorate"]
[null,null,null,null,null,25,4,3,"25","04","03","25|04|03","Justice and Constitutional Development","National Prosecuting Authority","Asset Forfeiture Unit"]
[null,null,null,null,null,25,4,4,"25","04","04","25|04|04","Justice and Constitutional Development","National Prosecuting Authority","Office for Witness Protection"]
[null,null,null,null,null,25,4,5,"25","04","05","25|04|05","Justice and Constitutional Development","National Prosecuting Authority","Support Services"]
[null,null,null,null,null,25,5,1,"25","05","01","25|05|01","Justice and Constitutional Development","Auxiliary and Associated Services","Legal Aid South Africa"]
[null,null,null,null,null,25,5,2,"25","05","02","25|05|02","Justice and Constitutional Development","Auxiliary and Associated Services","Special Investigating Unit"]
[null,null,null,null,null,25,5,3,"25","05","03","25|05|03","Justice and Constitutional Development","Auxiliary and Associated Services","Public Protector of South Africa"]
[null,null,null,null,null,25,5,4,"25","05","04","25|05|04","Justice and Constitutional Development","Auxiliary and Associated Services","South African Human Rights Commission"]
[null,null,null,null,null,25,5,5,"25","05","05","25|05|05","Justice and Constitutional Development","Auxiliary and Associated Services","Justice Modernisation"]
[null,null,null,null,null,25,5,6,"25","05","06","25|05|06","Justice and Constitutional Development","Auxiliary and Associated Services","President's Fund"]
[null,null,null,null,null,25,5,7,"25","05","07","25|05|07","Justice and Constitutional Development","Auxiliary and Associated Services","Information Regulator"]
[null,null,null,null,null,25,16,1,"25","16","01","25|16|01","Justice and Constitutional Development","Direct charge against the National Revenue Fund","Magistrates' salaries"]
[null,null,null,null,null,26,1,1,"26","01","01","26|01|01","Military Veterans","Administration","Management"]
[null,null,null,null,null,26,1,2,"26","01","02","26|01|02","Military Veterans","Administration","Corporate Services"]
[null,null,null,null,null,26,1,3,"26","01","03","26|01|03","Military Veterans","Administration","Financial Administration"]
[null,null,null,null,null,26,1,4,"26","01","04","26|01|04","Military Veterans","Administration","Internal Audit"]
[null,null,null,null,null,26,1,5,"26","01","05","26|01|05","Military Veterans","Administration","Strategic Planning, Policy Development, and Monitoring and Evaluation"]
[null,null,null,null,null,26,1,6,"26","01","06","26|01|06","Military Veterans","Administration","Office Accommodation"]
[null,null,null,null,null,26,2,1,"26","02","01","26|02|01","Military Veterans","Socioeconomic Support","Database and Benefits Management"]
[null,null,null,null,null,26,2,2,"26","02","02","26|02|02","Military Veterans","Socioeconomic Support","Health Care and Wellbeing Support"]
[null,null,null,null,null,26,2,3,"26","02","03","26|02|03","Military Veterans","Socioeconomic Support","Socioeconomic Support Management"]
[null,null,null,null,null,26,3,1,"26","03","01","26|03|01","Military Veterans","Empowerment and Stakeholder Management","Provincial Offices and Stakeholder Relations"]
[null,null,null,null,null,26,3,2,"26","03","02","26|03|02","Military Veterans","Empowerment and Stakeholder Management","Empowerment and Skills Development"]
[null,null,null,null,null,26,3,3,"26","03","03","26|03|03","Military Veterans","Empowerment and Stakeholder Management","Heritage, Memorials, Burials and Honours"]
[null,null,null,null,null,27,1,1,"27","01","01","27|01|01","Office of the Chief Justice","Administration","Management"]
[null,null,null,null,null,27,1,2,"27","01","02","27|01|02","Office of the Chief Justice","Administration","Corporate Services"]
[null,null,null,null,null,27,1,3,"27","01","03","27|01|03","Office of the Chief Justice","Administration","Financial Administration"]
[null,null,null,null,null,27,1,4,"27","01","04","27|01|04","Office of the Chief Justice","Administration","Internal Audit"]
[null,null,null,null,null,27,1,5,"27","01","05","27|01|05","Office of the Chief Justice","Administration","Office Accommodation"]
[null,null,null,null,null,27,2,1,"27","02","01","27|02|01","Office of the Chief Justice","Superior Court Services","Administration of Superior Courts"]
[null,null,null,null,null,27,2,2,"27","02","02","27|02|02","Office of the Chief Justice","Superior Court Services","Constitutional Court"]
[null,null,null,null,null,27,2,3,"27","02","03","27|02|03","Office of the Chief Justice","Superior Court Services","Supreme Court of Appeal"]
[null,null,null,null,null,27,2,4,"27","02","04","27|02|04","Office of the Chief Justice","Superior Court Services","High Courts"]
[null,null,null,null,null,27,2,5,"27","02","05","27|02|05","Office of the Chief Justice","Superior Court Services","Specialised Courts"]
[null,null,null,null,null,27,3,1,"27","03","01","27|03|01","Office of the Chief Justice","Judicial Education and Support","South African Judicial Education Institute"]
[null,null,null,null,null,27,3,2,"27","03","02","27|03|02","Office of the Chief Justice","Judicial Education and Support","Judicial Policy, Research and Support"]
[null,null,null,null,null,27,3,3,"27","03","03","27|03|03","Office of the Chief Justice","Judicial Education and Support","Judicial Service Commission"]
[null,null,null,null,null,27,16,1,"27","16","01","27|16|01","Office of the Chief Justice","Direct charge against the National Revenue Fund","Judges' salaries"]
[null,null,null,null,null,28,1,1,"28","01","01","28|01|01","Police","Administration","Ministry"]
[null,null,null,null,null,28,1,2,"28","01","02","28|01|02","Police","Administration","Management"]
[null,null,null,null,null,28,1,3,"28","01","03","28|01|03","Police","Administration","Corporate Services"]
[null,null,null,null,null,28,2,1,"28","02","01","28|02|01","Police","Visible Policing","Crime Prevention"]
[null,null,null,null,null,28,2,2,"28","02","02","28|02|02","Police","Visible Policing","Border Security"]
[null,null,null,null,null,28,2,3,"28","02","03","28|02|03","Police","Visible Policing","Specialised Interventions"]
[null,null,null,null,null,28,2,4,"28","02","04","28|02|04","Police","Visible Policing","Facilities"]
[null,null,null,null,null,28,3,1,"28","03","01","28|03|01","Police","Detective Services","Crime Investigations"]
[null,null,null,null,null,28,3,2,"28","03","02","28|03|02","Police","Detective Services","Criminal Record Centre"]
[null,null,null,null,null,28,3,3,"28","03","03","28|03|03","Police","Detective Services","Forensic Science Laboratory"]
[null,null,null,null,null,28,3,4,"28","03","04","28|03|04","Police","Detective Services","Specialised Investigations"]
[null,null,null,null,null,28,4,1,"28","04","01","28|04|01","Police","Crime Intelligence","Crime Intelligence Operations"]
[null,null,null,null,null,28,4,2,"28","04","02","28|04|02","Police","Crime Intelligence","Intelligence and Information Management"]
[null,null,null,null,null,28,5,1,"28","05","01","28|05|01","Police","Protection and Security Services","VIP Protection Services"]
[null,null,null,null,null,28,5,2,"28","05","02","28|05|02","Police","Protection and Security Services","Static Protection"]
[null,null,null,null,null,28,5,3,"28","05","03","28|05|03","Police","Protection and Security Services","Government Security Regulator"]
[null,null,null,null,null,28,5,4,"28","05","04","28|05|04","Police","Protection and Security Services","Operational Support"]
[null,null,null,null,null,29,1,1,"29","01","01","29|01|01","Agriculture, Land Reform and Rural Development","Administration","Ministry"]
[null,null,null,null,null,29,1,2,"29","01","02","29|01|02","Agriculture, Land Reform and Rural Development","Administration","Department Management"]
[null,null,null,null,null,29,1,3,"29","01","03","29|01|03","Agriculture, Land Reform and Rural Development","Administration","Internal Audit"]
[null,null,null,null,null,29,1,4,"29","01","04","29|01|04","Agriculture, Land Reform and Rural Development","Administration","Financial Management Services"]
[null,null,null,null,null,29,1,5,"29","01","05","29|01|05","Agriculture, Land Reform and Rural Development","Administration","Corporate Support Services"]
[null,null,null,null,null,29,1,6,"29","01","06","29|01|06","Agriculture, Land Reform and Rural Development","Administration","Provincial Operations"]
[null,null,null,null,null,29,1,7,"29","01","07","29|01|07","Agriculture, Land Reform and Rural Development","Administration","Office Accommodation"]
[null,null,null,null,null,29,2,1,"29","02","01","29|02|01","Agriculture, Land Reform and Rural Development","Agricultural Production, Biosecurity and Resources Management","Inspection and Quarantine Services"]
[null,null,null,null,null,29,2,2,"29","02","02","29|02|02","Agriculture, Land Reform and Rural Development","Agricultural Production, Biosecurity and Resources Management","Plant Production and Health"]
[null,null,null,null,null,29,2,3,"29","02","03","29|02|03","Agriculture, Land Reform and Rural Development","Agricultural Production, Biosecurity and Resources Management","Animal Production and Health"]
[null,null,null,null,null,29,2,4,"29","02","04","29|02|04","Agriculture, Land Reform and Rural Development","Agricultural Production, Biosecurity and Resources Management","Natural Resources and Disaster Management"]
[null,null,null,null,null,29,2,5,"29","02","05","29|02|05","Agriculture, Land Reform and Rural Development","Agricultural Production, Biosecurity and Resources Management","Biosecurity"]
[null,null,null,null,null,29,2,6,"29","02","06","29|02|06","Agriculture, Land Reform and Rural Development","Agricultural Production, Biosecurity and Resources Management","Agricultural Research Council"]
[null,null,null,null,null,29,3,1,"29","03","01","29|03|01","Agriculture, Land Reform and Rural Development","Food Security, Land Reform and Restitution","Food Security and Agrarian Reform"]
[null,null,null,null,null,29,3,2,"29","03","02","29|03|02","Agriculture, Land Reform and Rural Development","Food Security, Land Reform and Restitution","Land Redistribution and Tenure Reform"]
[null,null,null,null,null,29,3,3,"29","03","03","29|03|03","Agriculture, Land Reform and Rural Development","Food Security, Land Reform and Restitution","National Extension Support Services and Sector Capacity Development"]
[null,null,null,null,null,29,3,4,"29","03","04","29|03|04","Agriculture, Land Reform and Rural Development","Food Security, Land Reform and Restitution","Land Development and Post-settlement Support"]
[null,null,null,null,null,29,3,5,"29","03","05","29|03|05","Agriculture, Land Reform and Rural Development","Food Security, Land Reform and Restitution","Commission on the Restitution of Land Rights"]
[null,null,null,null,null,29,3,6,"29","03","06","29|03|06","Agriculture, Land Reform and Rural Development","Food Security, Land Reform and Restitution","Restitution"]
[null,null,null,null,null,29,3,7,"29","03","07","29|03|07","Agriculture, Land Reform and Rural Development","Food Security, Land Reform and Restitution","Agricultural Land Holding Account"]
[null,null,null,null,null,29,3,8,"29","03","08","29|03|08","Agriculture, Land Reform and Rural Development","Food Security, Land Reform and Restitution","Ingonyama Trust Board"]
[null,null,null,null,null,29,3,9,"29","03","09","29|03|09","Agriculture, Land Reform and Rural Development","Food Security, Land Reform and Restitution","Office of the Valuer-General"]
[null,null,null,null,null,29,4,1,"29","04","01","29|04|01","Agriculture, Land Reform and Rural Development","Rural Development","National Rural Youth Service Corps"]
[null,null,null,null,null,29,4,2,"29","04","02","29|04|02","Agriculture, Land Reform and Rural Development","Rural Development","Rural Infrastructure Development"]
[null,null,null,null,null,29,4,3,"29","04","03","29|04|03","Agriculture, Land Reform and Rural Development","Rural Development","Technology Research and Development"]
[null,null,null,null,null,29,5,1,"29","05","01","29|05|01","Agriculture, Land Reform and Rural Development","Economic Development, Trade and Marketing","International Relations and Trade"]
[null,null,null,null,null,29,5,2,"29","05","02","29|05|02","Agriculture, Land Reform and Rural Development","Economic Development, Trade and Marketing","Cooperatives Development"]
[null,null,null,null,null,29,5,3,"29","05","03","29|05|03","Agriculture, Land Reform and Rural Development","Economic Development, Trade and Marketing","Agro-Processing, Marketing and Rural Industrial Development"]
[null,null,null,null,null,29,5,4,"29","05","04","29|05|04","Agriculture, Land Reform and Rural Development","Economic Development, Trade and Marketing","National Agricultural Marketing Council"]
[null,null,null,null,null,29,6,1,"29","06","01","29|06|01","Agriculture, Land Reform and Rural Development","Land Administration","National Geomatics Management Services"]
[null,null,null,null,null,29,6,2,"29","06","02","29|06|02","Agriculture, Land Reform and Rural Development","Land Administration","Spatial Planning and Land Use"]
[null,null,null,null,null,29,6,3,"29","06","03","29|06|03","Agriculture, Land Reform and Rural Development","Land Administration","Deeds Registration"]
[null,null,null,null,null,29,6,4,"29","06","04","29|06|04","Agriculture, Land Reform and Rural Development","Land Administration","South African Council of Planners"]
[null,null,null,null,null,29,6,5,"29","06","05","29|06|05","Agriculture, Land Reform and Rural Development","Land Administration","South African Geomatics Council"]
[null,null,null,null,null,29,6,6,"29","06","06","29|06|06","Agriculture, Land Reform and Rural Development","Land Administration","Integrated Land Administration"]
[null,null,null,null,null,30,1,1,"30","01","01","30|01|01","Communications and Digital Technologies","Administration","Ministry"]
[null,null,null,null,null,30,1,2,"30","01","02","30|01|02","Communications and Digital Technologies","Administration","Departmental Management"]
[null,null,null,null,null,30,1,3,"30","01","03","30|01|03","Communications and Digital Technologies","Administration","Internal Audit"]
[null,null,null,null,null,30,1,4,"30","01","04","30|01|04","Communications and Digital Technologies","Administration","Corporate Services"]
[null,null,null,null,null,30,1,5,"30","01","05","30|01|05","Communications and Digital Technologies","Administration","Financial Management"]
[null,null,null,null,null,30,1,6,"30","01","06","30|01|06","Communications and Digital Technologies","Administration","Office Accommodation"]
[null,null,null,null,null,30,2,1,"30","02","01","30|02|01","Communications and Digital Technologies","ICT International Relations and Affairs","Programme Management for International Relations and Affairs"]
[null,null,null,null,null,30,2,2,"30","02","02","30|02|02","Communications and Digital Technologies","ICT International Relations and Affairs","International Affairs"]
[null,null,null,null,null,30,2,3,"30","02","03","30|02|03","Communications and Digital Technologies","ICT International Relations and Affairs","ICT Trade/Partnership"]
[null,null,null,null,null,30,3,1,"30","03","01","30|03|01","Communications and Digital Technologies","ICT Policy Development and Research","Programme Management for ICT Policy Development and Research"]
[null,null,null,null,null,30,3,2,"30","03","02","30|03|02","Communications and Digital Technologies","ICT Policy Development and Research","ICT Policy Development"]
[null,null,null,null,null,30,3,3,"30","03","03","30|03|03","Communications and Digital Technologies","ICT Policy Development and Research","Economic and Market Analysis"]
[null,null,null,null,null,30,3,4,"30","03","04","30|03|04","Communications and Digital Technologies","ICT Policy Development and Research","Research"]
[null,null,null,null,null,30,3,5,"30","03","05","30|03|05","Communications and Digital Technologies","ICT Policy Development and Research","Small, Medium and Micro Enterprise"]
[null,null,null,null,null,30,3,6,"30","03","06","30|03|06","Communications and Digital Technologies","ICT Policy Development and Research","Broadcasting Policy"]
[null,null,null,null,null,30,3,7,"30","03","07","30|03|07","Communications and Digital Technologies","ICT Policy Development and Research","Presidential Commission on 4IR"]
[null,null,null,null,null,30,4,1,"30","04","01","30|04|01","Communications and Digital Technologies","ICT Enterprise and Public Entity Oversight","Programme Management for ICT Enterprise and Public Entity Oversight"]
[null,null,null,null,null,30,4,2,"30","04","02","30|04|02","Communications and Digital Technologies","ICT Enterprise and Public Entity Oversight","Regulatory Institutions"]
[null,null,null,null,null,30,4,3,"30","04","03","30|04|03","Communications and Digital Technologies","ICT Enterprise and Public Entity Oversight","Universal Service and Access"]
[null,null,null,null,null,30,4,4,"30","04","04","30|04|04","Communications and Digital Technologies","ICT Enterprise and Public Entity Oversight","ICT Skills Development"]
[null,null,null,null,null,30,4,5,"30","04","05","30|04|05","Communications and Digital Technologies","ICT Enterprise and Public Entity Oversight","State Owned Enterprise Governance and Support"]
[null,null,null,null,null,30,5,1,"30","05","01","30|05|01","Communications and Digital Technologies","ICT Infrastructure Development and Support","Programme Management for ICT Infrastructure Development and Support"]
[null,null,null,null,null,30,5,2,"30","05","02","30|05|02","Communications and Digital Technologies","ICT Infrastructure Development and Support","Broadband"]
[null,null,null,null,null,30,5,3,"30","05","03","30|05|03","Communications and Digital Technologies","ICT Infrastructure Development and Support","ICT Support"]
[null,null,null,null,null,30,5,4,"30","05","04","30|05|04","Communications and Digital Technologies","ICT Infrastructure Development and Support","Broadcasting Digital Migration"]
[null,null,null,null,null,30,6,1,"30","06","01","30|06|01","Communications and Digital Technologies","ICT Information Society and Capacity Development","Programme Management for ICT Information Society and Capacity Development"]
[null,null,null,null,null,30,6,2,"30","06","02","30|06|02","Communications and Digital Technologies","ICT Information Society and Capacity Development","Information Society Development"]
[null,null,null,null,null,30,6,3,"30","06","03","30|06|03","Communications and Digital Technologies","ICT Information Society and Capacity Development","Capacity Development"]
[null,null,null,null,null,31,1,1,"31","01","01","31|01|01","Employment and Labour","Administration","Ministry"]
[null,null,null,null,null,31,1,2,"31","01","02","31|01|02","Employment and Labour","Administration","Management"]
[null,null,null,null,null,31,1,3,"31","01","03","31|01|03","Employment and Labour","Administration","Corporate Services"]
[null,null,null,null,null,31,1,4,"31","01","04","31|01|04","Employment and Labour","Administration","Office of the Chief Financial Officer"]
[null,null,null,null,null,31,1,5,"31","01","05","31|01|05","Employment and Labour","Administration","Office Accommodation"]
[null,null,null,null,null,31,2,1,"31","02","01","31|02|01","Employment and Labour","Inspection and Enforcement Services","Management and Support Services: Inspection and Enforcement Services"]
[null,null,null,null,null,31,2,2,"31","02","02","31|02|02","Employment and Labour","Inspection and Enforcement Services","Occupational Health and Safety"]
[null,null,null,null,null,31,2,3,"31","02","03","31|02|03","Employment and Labour","Inspection and Enforcement Services","Registration: Inspection and Enforcement Services"]
[null,null,null,null,null,31,2,4,"31","02","04","31|02|04","Employment and Labour","Inspection and Enforcement Services","Compliance, Monitoring and Enforcement Services"]
[null,null,null,null,null,31,2,5,"31","02","05","31|02|05","Employment and Labour","Inspection and Enforcement Services","Training of Staff: Inspection and Enforcement Services"]
[null,null,null,null,null,31,2,6,"31","02","06","31|02|06","Employment and Labour","Inspection and Enforcement Services","Statutory and Advocacy Services"]
[null,null,null,null,null,31,3,1,"31","03","01","31|03|01","Employment and Labour","Public Employment Services","Management and Support Services: Public Employment Services"]
[null,null,null,null,null,31,3,2,"31","03","02","31|03|02","Employment and Labour","Public Employment Services","Employer Services"]
[null,null,null,null,null,31,3,3,"31","03","03","31|03|03","Employment and Labour","Public Employment Services","Work Seeker Services"]
[null,null,null,null,null,31,3,4,"31","03","04","31|03|04","Employment and Labour","Public Employment Services","Designated Groups Special Services"]
[null,null,null,null,null,31,3,5,"31","03","05","31|03|05","Employment and Labour","Public Employment Services","Supported Employment Enterprises"]
[null,null,null,null,null,31,3,6,"31","03","06","31|03|06","Employment and Labour","Public Employment Services","Productivity South Africa"]
[null,null,null,null,null,31,3,7,"31","03","07","31|03|07","Employment and Labour","Public Employment Services","Unemployment Insurance Fund"]
[null,null,null,null,null,31,3,8,"31","03","08","31|03|08","Employment and Labour","Public Employment Services","Compensation Fund"]
[null,null,null,null,null,31,3,9,"31","03","09","31|03|09","Employment and Labour","Public Employment Services","Training of Staff: Public Employment Services"]
[null,null,null,null,null,31,4,1,"31","04","01","31|04|01","Employment and Labour","Labour Policy and Industrial Relations","Management and Support Services: Labour Policy and Industrial Relations"]
[null,null,null,null,null,31,4,2,"31","04","02","31|04|02","Employment and Labour","Labour Policy and Industrial Relations","Strengthen Civil Society"]
[null,null,null,null,null,31,4,3,"31","04","03","31|04|03","Employment and Labour","Labour Policy and Industrial Relations","Collective Bargaining"]
[null,null,null,null,null,31,4,4,"31","04","04","31|04|04","Employment and Labour","Labour Policy and Industrial Relations","Employment Equity"]
[null,null,null,null,null,31,4,5,"31","04","05","31|04|05","Employment and Labour","Labour Policy and Industrial Relations","Employment Standards"]
[null,null,null,null,null,31,4,6,"31","04","06","31|04|06","Employment and Labour","Labour Policy and Industrial Relations","Commission for Conciliation, Mediation and Arbitration"]
[null,null,null,null,null,31,4,7,"31","04","07","31|04|07","Employment and Labour","Labour Policy and Industrial Relations","Research, Policy and Planning"]
[null,null,null,null,null,31,4,8,"31","04","08","31|04|08","Employment and Labour","Labour Policy and Industrial Relations","Labour Market Information and Statistics"]
[null,null,null,null,null,31,4,9,"31","04","09","31|04|09","Employment and Labour","Labour Policy and Industrial Relations","International Labour Matters"]
[null,null,null,null,null,31,4,10,"31","04","10","31|04|10","Employment and Labour","Labour Policy and Industrial Relations","National Economic Development and Labour Council"]
[null,null,null,null,null,32,1,1,"32","01","01","32|01|01","Forestry, Fisheries and the Environment","Administration","Management"]
[null,null,null,null,null,32,1,2,"32","01","02","32|01|02","Forestry, Fisheries and the Environment","Administration","Corporate Management Services"]
[null,null,null,null,null,32,1,4,"32","01","04","32|01|04","Forestry, Fisheries and the Environment","Administration","Financial Management Services"]
[null,null,null,null,null,32,1,5,"32","01","05","32|01|05","Forestry, Fisheries and the Environment","Administration","Office Accommodation"]
[null,null,null,null,null,32,2,1,"32","02","01","32|02|01","Forestry, Fisheries and the Environment","Regulatory Compliance and Sector Monitoring","Regulatory Compliance and Sector Monitoring Management"]
[null,null,null,null,null,32,2,2,"32","02","02","32|02|02","Forestry, Fisheries and the Environment","Regulatory Compliance and Sector Monitoring","Compliance"]
[null,null,null,null,null,32,2,3,"32","02","03","32|02|03","Forestry, Fisheries and the Environment","Regulatory Compliance and Sector Monitoring","Integrated Environmental Authorisations"]
[null,null,null,null,null,32,2,4,"32","02","04","32|02|04","Forestry, Fisheries and the Environment","Regulatory Compliance and Sector Monitoring","Enforcement"]
[null,null,null,null,null,32,2,5,"32","02","05","32|02|05","Forestry, Fisheries and the Environment","Regulatory Compliance and Sector Monitoring","Litigation and Legal Support"]
[null,null,null,null,null,32,2,6,"32","02","06","32|02|06","Forestry, Fisheries and the Environment","Regulatory Compliance and Sector Monitoring","Law Reform and Appeals"]
[null,null,null,null,null,32,3,1,"32","03","01","32|03|01","Forestry, Fisheries and the Environment","Oceans and Coasts","Oceans and Coasts Management"]
[null,null,null,null,null,32,3,2,"32","03","02","32|03|02","Forestry, Fisheries and the Environment","Oceans and Coasts","Integrated Coastal Management and Coastal Conservation"]
[null,null,null,null,null,32,3,3,"32","03","03","32|03|03","Forestry, Fisheries and the Environment","Oceans and Coasts","Oceans and Coastal Research"]
[null,null,null,null,null,32,3,4,"32","03","04","32|03|04","Forestry, Fisheries and the Environment","Oceans and Coasts","Oceans Economy and Project Management"]
[null,null,null,null,null,32,3,5,"32","03","05","32|03|05","Forestry, Fisheries and the Environment","Oceans and Coasts","Specialist Monitoring Services"]
[null,null,null,null,null,32,4,1,"32","04","01","32|04|01","Forestry, Fisheries and the Environment","Climate Change, Air Quality and Sustainable Development","Climate Change, Air Quality and Sustainable Development Management"]
[null,null,null,null,null,32,4,2,"32","04","02","32|04|02","Forestry, Fisheries and the Environment","Climate Change, Air Quality and Sustainable Development","Climate Change Mitigation"]
[null,null,null,null,null,32,4,3,"32","04","03","32|04|03","Forestry, Fisheries and the Environment","Climate Change, Air Quality and Sustainable Development","Climate Change Adaptation"]
[null,null,null,null,null,32,4,4,"32","04","04","32|04|04","Forestry, Fisheries and the Environment","Climate Change, Air Quality and Sustainable Development","Air Quality Management"]
[null,null,null,null,null,32,4,5,"32","04","05","32|04|05","Forestry, Fisheries and the Environment","Climate Change, Air Quality and Sustainable Development","South African Weather Service"]
[null,null,null,null,null,32,4,6,"32","04","06","32|04|06","Forestry, Fisheries and the Environment","Climate Change, Air Quality and Sustainable Development","International Climate Change Relations and Reporting"]
[null,null,null,null,null,32,4,7,"32","04","07","32|04|07","Forestry, Fisheries and the Environment","Climate Change, Air Quality and Sustainable Development","Climate Change Monitoring and Evaluation"]
[null,null,null,null,null,32,4,8,"32","04","08","32|04|08","Forestry, Fisheries and the Environment","Climate Change, Air Quality and Sustainable Development","International Governance and Resource Mobilisation"]
[null,null,null,null,null,32,4,9,"32","04","09","32|04|09","Forestry, Fisheries and the Environment","Climate Change, Air Quality and Sustainable Development","Knowledge and Information Management"]
[null,null,null,null,null,32,4,10,"32","04","10","32|04|10","Forestry, Fisheries and the Environment","Climate Change, Air Quality and Sustainable Development","Environmental Sector Performance"]
[null,null,null,null,null,32,5,1,"32","05","01","32|05|01","Forestry, Fisheries and the Environment","Biodiversity and Conservation","Biodiversity and Conservation Management"]
[null,null,null,null,null,32,5,2,"32","05","02","32|05|02","Forestry, Fisheries and the Environment","Biodiversity and Conservation","Biodiversity Management and Permitting"]
[null,null,null,null,null,32,5,3,"32","05","03","32|05|03","Forestry, Fisheries and the Environment","Biodiversity and Conservation","Protected Areas Systems Management"]
[null,null,null,null,null,32,5,4,"32","05","04","32|05|04","Forestry, Fisheries and the Environment","Biodiversity and Conservation","iSimangaliso Wetland Park Authority"]
[null,null,null,null,null,32,5,5,"32","05","05","32|05|05","Forestry, Fisheries and the Environment","Biodiversity and Conservation","South African National Parks"]
[null,null,null,null,null,32,5,6,"32","05","06","32|05|06","Forestry, Fisheries and the Environment","Biodiversity and Conservation","South African National Biodiversity Institute"]
[null,null,null,null,null,32,5,7,"32","05","07","32|05|07","Forestry, Fisheries and the Environment","Biodiversity and Conservation","Biodiversity Monitoring Specialist Services"]
[null,null,null,null,null,32,5,8,"32","05","08","32|05|08","Forestry, Fisheries and the Environment","Biodiversity and Conservation","Biodiversity Economy and Sustainable Use"]
[null,null,null,null,null,32,6,1,"32","06","01","32|06|01","Forestry, Fisheries and the Environment","Environmental Programmes","Environmental Protection and Infrastructure Programme"]
[null,null,null,null,null,32,6,2,"32","06","02","32|06|02","Forestry, Fisheries and the Environment","Environmental Programmes","Natural Resource Management"]
[null,null,null,null,null,32,6,3,"32","06","03","32|06|03","Forestry, Fisheries and the Environment","Environmental Programmes","Green Fund"]
[null,null,null,null,null,32,6,4,"32","06","04","32|06|04","Forestry, Fisheries and the Environment","Environmental Programmes","Environmental Programmes Management"]
[null,null,null,null,null,32,6,5,"32","06","05","32|06|05","Forestry, Fisheries and the Environment","Environmental Programmes","Information Management and Sector Coordination"]
[null,null,null,null,null,32,7,1,"32","07","01","32|07|01","Forestry, Fisheries and the Environment","Chemicals and Waste Management","Chemicals and Waste Management"]
[null,null,null,null,null,32,7,2,"32","07","02","32|07|02","Forestry, Fisheries and the Environment","Chemicals and Waste Management","Hazardous Waste Management and Licensing"]
[null,null,null,null,null,32,7,3,"32","07","03","32|07|03","Forestry, Fisheries and the Environment","Chemicals and Waste Management","Integrated Waste Management and Strategic Support"]
[null,null,null,null,null,32,7,4,"32","07","04","32|07|04","Forestry, Fisheries and the Environment","Chemicals and Waste Management","Chemicals and Waste Policy, Evaluation and Monitoring"]
[null,null,null,null,null,32,7,5,"32","07","05","32|07|05","Forestry, Fisheries and the Environment","Chemicals and Waste Management","Chemicals Management"]
[null,null,null,null,null,32,7,6,"32","07","06","32|07|06","Forestry, Fisheries and the Environment","Chemicals and Waste Management","Waste Bureau"]
[null,null,null,null,null,32,8,1,"32","08","01","32|08|01","Forestry, Fisheries and the Environment","Forestry Management","Forestry Management"]
[null,null,null,null,null,32,8,2,"32","08","02","32|08|02","Forestry, Fisheries and the Environment","Forestry Management","Forestry Operations"]
[null,null,null,null,null,32,8,3,"32","08","03","32|08|03","Forestry, Fisheries and the Environment","Forestry Management","Forestry Development and Regulation"]
[null,null,null,null,null,32,9,1,"32","09","01","32|09|01","Forestry, Fisheries and the Environment","Fisheries Management","Fisheries Management"]
[null,null,null,null,null,32,9,2,"32","09","02","32|09|02","Forestry, Fisheries and the Environment","Fisheries Management","Aquaculture and Economic Development"]
[null,null,null,null,null,32,9,3,"32","09","03","32|09|03","Forestry, Fisheries and the Environment","Fisheries Management","Monitoring, Control and Surveillance"]
[null,null,null,null,null,32,9,4,"32","09","04","32|09|04","Forestry, Fisheries and the Environment","Fisheries Management","Marine Resources Management"]
[null,null,null,null,null,32,9,5,"32","09","05","32|09|05","Forestry, Fisheries and the Environment","Fisheries Management","Fisheries Research and Development"]
[null,null,null,null,null,32,9,6,"32","09","06","32|09|06","Forestry, Fisheries and the Environment","Fisheries Management","Marine Living Resources Fund"]
[null,null,null,null,null,33,1,1,"33","01","01","33|01|01","Human Settlements","Administration","Ministry"]
[null,null,null,null,null,33,1,2,"33","01","02","33|01|02","Human Settlements","Administration","Departmental Management"]
[null,null,null,null,null,33,1,3,"33","01","03","33|01|03","Human Settlements","Administration","Corporate Services"]
[null,null,null,null,null,33,1,4,"33","01","04","33|01|04","Human Settlements","Administration","Property Management"]
[null,null,null,null,null,33,1,5,"33","01","05","33|01|05","Human Settlements","Administration","Financial Management"]
[null,null,null,null,null,33,2,1,"33","02","01","33|02|01","Human Settlements","Integrated Human Settlements Planning and Development","Management for Integrated Human Settlements Planning and Development"]
[null,null,null,null,null,33,2,2,"33","02","02","33|02|02","Human Settlements","Integrated Human Settlements Planning and Development","Macro Sector Planning"]
[null,null,null,null,null,33,2,3,"33","02","03","33|02|03","Human Settlements","Integrated Human Settlements Planning and Development","Macro Policy and Research"]
[null,null,null,null,null,33,2,4,"33","02","04","33|02|04","Human Settlements","Integrated Human Settlements Planning and Development","Monitoring and Evaluation"]
[null,null,null,null,null,33,2,5,"33","02","05","33|02|05","Human Settlements","Integrated Human Settlements Planning and Development","Public Entity Oversight"]
[null,null,null,null,null,33,2,6,"33","02","06","33|02|06","Human Settlements","Integrated Human Settlements Planning and Development","Grant Management"]
[null,null,null,null,null,33,2,7,"33","02","07","33|02|07","Human Settlements","Integrated Human Settlements Planning and Development","Capacity Building and Sector Support"]
[null,null,null,null,null,33,3,1,"33","03","01","33|03|01","Human Settlements","Informal Settlements","Management for Informal Settlements"]
[null,null,null,null,null,33,3,4,"33","03","04","33|03|04","Human Settlements","Informal Settlements","Grant Management"]
[null,null,null,null,null,33,3,5,"33","03","05","33|03|05","Human Settlements","Informal Settlements","Capacity Building and Sector Support"]
[null,null,null,null,null,33,4,1,"33","04","01","33|04|01","Human Settlements","Rental and Social Housing","Management for Rental and Social Housing"]
[null,null,null,null,null,33,4,4,"33","04","04","33|04|04","Human Settlements","Rental and Social Housing","Public Entity Oversight"]
[null,null,null,null,null,33,4,5,"33","04","05","33|04|05","Human Settlements","Rental and Social Housing","Capacity Building and Sector Support"]
[null,null,null,null,null,33,5,1,"33","05","01","33|05|01","Human Settlements","Affordable Housing","Management for Affordable Housing"]
[null,null,null,null,null,33,5,4,"33","05","04","33|05|04","Human Settlements","Affordable Housing","Public Entity Oversight"]
[null,null,null,null,null,33,5,6,"33","05","06","33|05|06","Human Settlements","Affordable Housing","Capacity Building and Sector Support"]
[null,null,null,null,null,34,1,1,"34","01","01","34|01|01","Mineral Resources and Energy","Administration","Ministry"]
[null,null,null,null,null,34,1,2,"34","01","02","34|01|02","Mineral Resources and Energy","Administration","Departmental Management"]
[null,null,null,null,null,34,1,3,"34","01","03","34|01|03","Mineral Resources and Energy","Administration","Audit Services"]
[null,null,null,null,null,34,1,4,"34","01","04","34|01|04","Mineral Resources and Energy","Administration","Financial Administration"]
[null,null,null,null,null,34,1,5,"34","01","05","34|01|05","Mineral Resources and Energy","Administration","Corporate Services"]
[null,null,null,null,null,34,1,6,"34","01","06","34|01|06","Mineral Resources and Energy","Administration","Office Accommodation"]
[null,null,null,null,null,34,2,1,"34","02","01","34|02|01","Mineral Resources and Energy","Minerals and Petroleum Regulation","Minerals and Petroleum Management"]
[null,null,null,null,null,34,2,2,"34","02","02","34|02|02","Mineral Resources and Energy","Minerals and Petroleum Regulation","Mineral Regulation and Administration"]
[null,null,null,null,null,34,2,3,"34","02","03","34|02|03","Mineral Resources and Energy","Minerals and Petroleum Regulation","Environmental Enforcement and Compliance"]
[null,null,null,null,null,34,2,4,"34","02","04","34|02|04","Mineral Resources and Energy","Minerals and Petroleum Regulation","Petroleum Compliance Monitoring, Enforcement and Fuel Pricing"]
[null,null,null,null,null,34,2,5,"34","02","05","34|02|05","Mineral Resources and Energy","Minerals and Petroleum Regulation","Petroleum Licensing and Fuel Supply"]
[null,null,null,null,null,34,3,1,"34","03","01","34|03|01","Mineral Resources and Energy","Mining, Minerals and Energy Policy Development","Mining, Minerals and Energy Policy Development Management"]
[null,null,null,null,null,34,3,2,"34","03","02","34|03|02","Mineral Resources and Energy","Mining, Minerals and Energy Policy Development","Minerals and Petroleum Policy"]
[null,null,null,null,null,34,3,3,"34","03","03","34|03|03","Mineral Resources and Energy","Mining, Minerals and Energy Policy Development","Nuclear, Electricity and Gas Policy"]
[null,null,null,null,null,34,3,4,"34","03","04","34|03|04","Mineral Resources and Energy","Mining, Minerals and Energy Policy Development","Economic Analysis and Statistics"]
[null,null,null,null,null,34,3,5,"34","03","05","34|03|05","Mineral Resources and Energy","Mining, Minerals and Energy Policy Development","Economic Growth, Promotion and Global Relations"]
[null,null,null,null,null,34,3,6,"34","03","06","34|03|06","Mineral Resources and Energy","Mining, Minerals and Energy Policy Development","Mineral and Energy Planning"]
[null,null,null,null,null,34,4,1,"34","04","01","34|04|01","Mineral Resources and Energy","Mine Health and Safety Inspectorate","Mine Health and Safety Management"]
[null,null,null,null,null,34,4,2,"34","04","02","34|04|02","Mineral Resources and Energy","Mine Health and Safety Inspectorate","Mine Health and Safety Regions"]
[null,null,null,null,null,34,4,3,"34","04","03","34|04|03","Mineral Resources and Energy","Mine Health and Safety Inspectorate","Occupational Health"]
[null,null,null,null,null,34,5,1,"34","05","01","34|05|01","Mineral Resources and Energy","Mineral and Energy Resources Programmes and Projects","Programmes and Projects Management"]
[null,null,null,null,null,34,5,2,"34","05","02","34|05|02","Mineral Resources and Energy","Mineral and Energy Resources Programmes and Projects","Integrated National Electrification Programme"]
[null,null,null,null,null,34,5,3,"34","05","03","34|05|03","Mineral Resources and Energy","Mineral and Energy Resources Programmes and Projects","Programmes and Projects Management Office"]
[null,null,null,null,null,34,5,4,"34","05","04","34|05|04","Mineral Resources and Energy","Mineral and Energy Resources Programmes and Projects","Regional Programmes and Projects Management Office"]
[null,null,null,null,null,34,5,5,"34","05","05","34|05|05","Mineral Resources and Energy","Mineral and Energy Resources Programmes and Projects","Electricity Infrastructure and Industry Transformation"]
[null,null,null,null,null,34,5,6,"34","05","06","34|05|06","Mineral Resources and Energy","Mineral and Energy Resources Programmes and Projects","Energy Efficiency Projects"]
[null,null,null,null,null,34,5,7,"34","05","07","34|05|07","Mineral Resources and Energy","Mineral and Energy Resources Programmes and Projects","Renewable Energy Projects"]
[null,null,null,null,null,34,5,8,"34","05","08","34|05|08","Mineral Resources and Energy","Mineral and Energy Resources Programmes and Projects","Environmental Management Projects"]
[null,null,null,null,null,34,6,1,"34","06","01","34|06|01","Mineral Resources and Energy","Nuclear Energy Regulation and Management","Nuclear Energy Management"]
[null,null,null,null,null,34,6,2,"34","06","02","34|06|02","Mineral Resources and Energy","Nuclear Energy Regulation and Management","Nuclear Safety and Technology"]
[null,null,null,null,null,34,6,3,"34","06","03","34|06|03","Mineral Resources and Energy","Nuclear Energy Regulation and Management","Nuclear Non-proliferation and Radiation Security"]
[null,null,null,null,null,35,1,1,"35","01","01","35|01|01","Science and Innovation","Administration","Ministry"]
[null,null,null,null,null,35,1,2,"35","01","02","35|01|02","Science and Innovation","Administration","Institutional Planning and Support"]
[null,null,null,null,null,35,1,3,"35","01","03","35|01|03","Science and Innovation","Administration","Corporate Services"]
[null,null,null,null,null,35,1,4,"35","01","04","35|01|04","Science and Innovation","Administration","Office Accommodation"]
[null,null,null,null,null,35,2,1,"35","02","01","35|02|01","Science and Innovation","Technology Innovation","Space Science"]
[null,null,null,null,null,35,2,2,"35","02","02","35|02|02","Science and Innovation","Technology Innovation","Hydrogen and Energy"]
[null,null,null,null,null,35,2,3,"35","02","03","35|02|03","Science and Innovation","Technology Innovation","Bio-innovation"]
[null,null,null,null,null,35,2,4,"35","02","04","35|02|04","Science and Innovation","Technology Innovation","Innovation Priorities and Instruments"]
[null,null,null,null,null,35,2,5,"35","02","05","35|02|05","Science and Innovation","Technology Innovation","National Intellectual Property Management Office"]
[null,null,null,null,null,35,2,6,"35","02","06","35|02|06","Science and Innovation","Technology Innovation","Office of the Deputy Director-General: Technology Innovation"]
[null,null,null,null,null,35,3,1,"35","03","01","35|03|01","Science and Innovation","International Cooperation and Resources","Multilateral Cooperation and Africa"]
[null,null,null,null,null,35,3,2,"35","03","02","35|03|02","Science and Innovation","International Cooperation and Resources","International Resources"]
[null,null,null,null,null,35,3,3,"35","03","03","35|03|03","Science and Innovation","International Cooperation and Resources","Overseas Bilateral Cooperation"]
[null,null,null,null,null,35,3,4,"35","03","04","35|03|04","Science and Innovation","International Cooperation and Resources","Office of the Deputy Director-General: International Cooperation and Resources"]
[null,null,null,null,null,35,4,1,"35","04","01","35|04|01","Science and Innovation","Research, Development and Support","Human Capital and Science Promotions"]
[null,null,null,null,null,35,4,2,"35","04","02","35|04|02","Science and Innovation","Research, Development and Support","Science Missions"]
[null,null,null,null,null,35,4,3,"35","04","03","35|04|03","Science and Innovation","Research, Development and Support","Basic Science and Infrastructure"]
[null,null,null,null,null,35,4,4,"35","04","04","35|04|04","Science and Innovation","Research, Development and Support","Astronomy"]
[null,null,null,null,null,35,4,5,"35","04","05","35|04|05","Science and Innovation","Research, Development and Support","Office of the Deputy Director-General: Research, Development and Support"]
[null,null,null,null,null,35,5,1,"35","05","01","35|05|01","Science and Innovation","Socioeconomic Innovation Partnerships","Sector Innovation and Green Economy"]
[null,null,null,null,null,35,5,2,"35","05","02","35|05|02","Science and Innovation","Socioeconomic Innovation Partnerships","Innovation for Inclusive Development"]
[null,null,null,null,null,35,5,3,"35","05","03","35|05|03","Science and Innovation","Socioeconomic Innovation Partnerships","Science and Technology Investment"]
[null,null,null,null,null,35,5,4,"35","05","04","35|05|04","Science and Innovation","Socioeconomic Innovation Partnerships","Technology Localisation, Beneficiation and Advanced Manufacturing"]
[null,null,null,null,null,35,5,5,"35","05","05","35|05|05","Science and Innovation","Socioeconomic Innovation Partnerships","Office of the Deputy Director-General: Socioeconomic Innovation Partnership"]
[null,null,null,null,null,36,1,1,"36","01","01","36|01|01","Small Business Development","Administration","Ministry"]
[null,null,null,null,null,36,1,2,"36","01","02","36|01|02","Small Business Development","Administration","Departmental Management"]
[null,null,null,null,null,36,1,3,"36","01","03","36|01|03","Small Business Development","Administration","Corporate Services"]
[null,null,null,null,null,36,1,4,"36","01","04","36|01|04","Small Business Development","Administration","Financial Management"]
[null,null,null,null,null,36,2,1,"36","02","01","36|02|01","Small Business Development","Sector and Market Development","Sector and Market Development Management"]
[null,null,null,null,null,36,2,2,"36","02","02","36|02|02","Small Business Development","Sector and Market Development","Business Intelligence and Knowledge Management"]
[null,null,null,null,null,36,2,3,"36","02","03","36|02|03","Small Business Development","Sector and Market Development","Ease of Doing Business"]
[null,null,null,null,null,36,2,4,"36","02","04","36|02|04","Small Business Development","Sector and Market Development","Access to Market Support"]
[null,null,null,null,null,36,3,1,"36","03","01","36|03|01","Small Business Development","Development Finance","Development Finance Management"]
[null,null,null,null,null,36,3,2,"36","03","02","36|03|02","Small Business Development","Development Finance","Model Funding Collaboration"]
[null,null,null,null,null,36,3,3,"36","03","03","36|03|03","Small Business Development","Development Finance","Blended Finance"]
[null,null,null,null,null,36,3,4,"36","03","04","36|03|04","Small Business Development","Development Finance","Business Viability"]
[null,null,null,null,null,36,4,1,"36","04","01","36|04|01","Small Business Development","Enterprise Development","Enterprise Development Management"]
[null,null,null,null,null,36,4,2,"36","04","02","36|04|02","Small Business Development","Enterprise Development","Enterprise and Supplier Development"]
[null,null,null,null,null,36,4,3,"36","04","03","36|04|03","Small Business Development","Enterprise Development","SMME Competitiveness"]
[null,null,null,null,null,37,1,1,"37","01","01","37|01|01","Sport, Arts and Culture","Administration","Ministry"]
[null,null,null,null,null,37,1,2,"37","01","02","37|01|02","Sport, Arts and Culture","Administration","Management"]
[null,null,null,null,null,37,1,3,"37","01","03","37|01|03","Sport, Arts and Culture","Administration","Strategic Management and Planning"]
[null,null,null,null,null,37,1,4,"37","01","04","37|01|04","Sport, Arts and Culture","Administration","Corporate Services"]
[null,null,null,null,null,37,1,5,"37","01","05","37|01|05","Sport, Arts and Culture","Administration","Office of the Chief Financial Officer"]
[null,null,null,null,null,37,1,6,"37","01","06","37|01|06","Sport, Arts and Culture","Administration","Office Accommodation"]
[null,null,null,null,null,37,2,1,"37","02","01","37|02|01","Sport, Arts and Culture","Recreation Development and Sport Promotion","Winning Nation"]
[null,null,null,null,null,37,2,2,"37","02","02","37|02|02","Sport, Arts and Culture","Recreation Development and Sport Promotion","Active Nation"]
[null,null,null,null,null,37,2,3,"37","02","03","37|02|03","Sport, Arts and Culture","Recreation Development and Sport Promotion","Infrastructure Support"]
[null,null,null,null,null,37,3,1,"37","03","01","37|03|01","Sport, Arts and Culture","Arts and Culture Promotion and Development","National Language Services"]
[null,null,null,null,null,37,3,2,"37","03","02","37|03|02","Sport, Arts and Culture","Arts and Culture Promotion and Development","Pan South African Language Board"]
[null,null,null,null,null,37,3,3,"37","03","03","37|03|03","Sport, Arts and Culture","Arts and Culture Promotion and Development","Cultural and Creative Industries Development"]
[null,null,null,null,null,37,3,4,"37","03","04","37|03|04","Sport, Arts and Culture","Arts and Culture Promotion and Development","International Cooperation"]
[null,null,null,null,null,37,3,5,"37","03","05","37|03|05","Sport, Arts and Culture","Arts and Culture Promotion and Development","Social Cohesion and Nation Building"]
[null,null,null,null,null,37,3,6,"37","03","06","37|03|06","Sport, Arts and Culture","Arts and Culture Promotion and Development","Mzansi Golden Economy"]
[null,null,null,null,null,37,3,7,"37","03","07","37|03|07","Sport, Arts and Culture","Arts and Culture Promotion and Development","Performing Arts Institutions"]
[null,null,null,null,null,37,3,8,"37","03","08","37|03|08","Sport, Arts and Culture","Arts and Culture Promotion and Development","National Film and Video Foundation"]
[null,null,null,null,null,37,3,9,"37","03","09","37|03|09","Sport, Arts and Culture","Arts and Culture Promotion and Development","National Arts Council"]
[null,null,null,null,null,37,4,1,"37","04","01","37|04|01","Sport, Arts and Culture","Heritage Promotion and Preservation","Heritage Promotion"]
[null,null,null,null,null,37,4,2,"37","04","02","37|04|02","Sport, Arts and Culture","Heritage Promotion and Preservation","National Archive Services"]
[null,null,null,null,null,37,4,3,"37","04","03","37|04|03","Sport, Arts and Culture","Heritage Promotion and Preservation","Heritage Institutions"]
[null,null,null,null,null,37,4,4,"37","04","04","37|04|04","Sport, Arts and Culture","Heritage Promotion and Preservation","National Library Services"]
[null,null,null,null,null,37,4,5,"37","04","05","37|04|05","Sport, Arts and Culture","Heritage Promotion and Preservation","Public Library Services"]
[null,null,null,null,null,37,4,6,"37","04","06","37|04|06","Sport, Arts and Culture","Heritage Promotion and Preservation","South African Heritage Resources Agency"]
[null,null,null,null,null,37,4,7,"37","04","07","37|04|07","Sport, Arts and Culture","Heritage Promotion and Preservation","South African Geographical Names Council"]
[null,null,null,null,null,37,4,8,"37","04","08","37|04|08","Sport, Arts and Culture","Heritage Promotion and Preservation","National Heritage Council"]
[null,null,null,null,null,38,1,1,"38","01","01","38|01|01","Tourism","Administration","Ministry"]
[null,null,null,null,null,38,1,2,"38","01","02","38|01|02","Tourism","Administration","Management"]
[null,null,null,null,null,38,1,3,"38","01","03","38|01|03","Tourism","Administration","Corporate Management"]
[null,null,null,null,null,38,1,4,"38","01","04","38|01|04","Tourism","Administration","Financial Management"]
[null,null,null,null,null,38,1,5,"38","01","05","38|01|05","Tourism","Administration","Office Accommodation"]
[null,null,null,null,null,38,2,1,"38","02","01","38|02|01","Tourism","Tourism Research, Policy and International Relations","Tourism Research, Policy and International Relations Management"]
[null,null,null,null,null,38,2,2,"38","02","02","38|02|02","Tourism","Tourism Research, Policy and International Relations","Research and Knowledge Management"]
[null,null,null,null,null,38,2,3,"38","02","03","38|02|03","Tourism","Tourism Research, Policy and International Relations","Policy Planning and Strategy"]
[null,null,null,null,null,38,2,4,"38","02","04","38|02|04","Tourism","Tourism Research, Policy and International Relations","South African Tourism"]
[null,null,null,null,null,38,2,5,"38","02","05","38|02|05","Tourism","Tourism Research, Policy and International Relations","International Relations and Cooperation"]
[null,null,null,null,null,38,3,1,"38","03","01","38|03|01","Tourism","Destination Development","Destination Development Management"]
[null,null,null,null,null,38,3,2,"38","03","02","38|03|02","Tourism","Destination Development","Tourism Enhancement"]
[null,null,null,null,null,38,3,3,"38","03","03","38|03|03","Tourism","Destination Development","Destination Planning and Investment Coordination"]
[null,null,null,null,null,38,3,4,"38","03","04","38|03|04","Tourism","Destination Development","Working for Tourism"]
[null,null,null,null,null,38,4,1,"38","04","01","38|04|01","Tourism","Tourism Sector Support Services","Tourism Sector Support Services Management"]
[null,null,null,null,null,38,4,2,"38","04","02","38|04|02","Tourism","Tourism Sector Support Services","Tourism Human Resource Development"]
[null,null,null,null,null,38,4,3,"38","04","03","38|04|03","Tourism","Tourism Sector Support Services","Enterprise Development and Transformation"]
[null,null,null,null,null,38,4,4,"38","04","04","38|04|04","Tourism","Tourism Sector Support Services","Tourism Visitor Services"]
[null,null,null,null,null,38,4,5,"38","04","05","38|04|05","Tourism","Tourism Sector Support Services","Tourism incentive programme"]
[null,null,null,null,null,39,1,1,"39","01","01","39|01|01","Trade, Industry and Competition","Administration","Ministry"]
[null,null,null,null,null,39,1,2,"39","01","02","39|01|02","Trade, Industry and Competition","Administration","Office of the Director-General"]
[null,null,null,null,null,39,1,3,"39","01","03","39|01|03","Trade, Industry and Competition","Administration","Corporate Management Services"]
[null,null,null,null,null,39,1,4,"39","01","04","39|01|04","Trade, Industry and Competition","Administration","Office Accommodation"]
[null,null,null,null,null,39,1,5,"39","01","05","39|01|05","Trade, Industry and Competition","Administration","Financial Management"]
[null,null,null,null,null,39,1,6,"39","01","06","39|01|06","Trade, Industry and Competition","Administration","Marketing Communication and Media Relations"]
[null,null,null,null,null,39,2,1,"39","02","01","39|02|01","Trade, Industry and Competition","Trade Policy","International Trade Development"]
[null,null,null,null,null,39,2,2,"39","02","02","39|02|02","Trade, Industry and Competition","Trade Policy","African Multilateral Economic Development"]
[null,null,null,null,null,39,3,1,"39","03","01","39|03|01","Trade, Industry and Competition","Spatial Industrial Development","Enterprise Competitiveness"]
[null,null,null,null,null,39,3,2,"39","03","02","39|03|02","Trade, Industry and Competition","Spatial Industrial Development","Equity and Empowerment"]
[null,null,null,null,null,39,3,3,"39","03","03","39|03|03","Trade, Industry and Competition","Spatial Industrial Development","Regional Industrial Development"]
[null,null,null,null,null,39,4,1,"39","04","01","39|04|01","Trade, Industry and Competition","Industrial Policy","Industrial Competitiveness"]
[null,null,null,null,null,39,4,2,"39","04","02","39|04|02","Trade, Industry and Competition","Industrial Policy","Customised Sector Programmes"]
[null,null,null,null,null,39,5,1,"39","05","01","39|05|01","Trade, Industry and Competition","Consumer and Corporate Regulation","Policy and Legislative Development"]
[null,null,null,null,null,39,5,2,"39","05","02","39|05|02","Trade, Industry and Competition","Consumer and Corporate Regulation","Enforcement and Compliance"]
[null,null,null,null,null,39,5,3,"39","05","03","39|05|03","Trade, Industry and Competition","Consumer and Corporate Regulation","Regulatory Services"]
[null,null,null,null,null,39,6,1,"39","06","01","39|06|01","Trade, Industry and Competition","Industrial Financing","Broadening Participation and Industrial Incentives"]
[null,null,null,null,null,39,6,2,"39","06","02","39|06|02","Trade, Industry and Competition","Industrial Financing","Manufacturing Incentives"]
[null,null,null,null,null,39,6,3,"39","06","03","39|06|03","Trade, Industry and Competition","Industrial Financing","Services Investment Incentives"]
[null,null,null,null,null,39,6,4,"39","06","04","39|06|04","Trade, Industry and Competition","Industrial Financing","Infrastructure Investment Support"]
[null,null,null,null,null,39,6,5,"39","06","05","39|06|05","Trade, Industry and Competition","Industrial Financing","Product and Systems Development"]
[null,null,null,null,null,39,6,6,"39","06","06","39|06|06","Trade, Industry and Competition","Industrial Financing","Strategic Partnership and Customer Care"]
[null,null,null,null,null,39,7,1,"39","07","01","39|07|01","Trade, Industry and Competition","Trade and Investment South Africa","Trade Invest Africa"]
[null,null,null,null,null,39,7,2,"39","07","02","39|07|02","Trade, Industry and Competition","Trade and Investment South Africa","Export Promotion and Marketing"]
[null,null,null,null,null,39,7,3,"39","07","03","39|07|03","Trade, Industry and Competition","Trade and Investment South Africa","Trade and Investment Foreign Services Management Unit"]
[null,null,null,null,null,39,7,4,"39","07","04","39|07|04","Trade, Industry and Competition","Trade and Investment South Africa","Export Development and Support"]
[null,null,null,null,null,39,8,1,"39","08","01","39|08|01","Trade, Industry and Competition","Invest South Africa","Investment Promotion"]
[null,null,null,null,null,39,8,2,"39","08","02","39|08|02","Trade, Industry and Competition","Invest South Africa","Investment and Interdepartmental Clearing House"]
[null,null,null,null,null,39,8,3,"39","08","03","39|08|03","Trade, Industry and Competition","Invest South Africa","Investor Support and Aftercare"]
[null,null,null,null,null,39,9,1,"39","09","01","39|09|01","Trade, Industry and Competition","Competition Policy","Economic Planning and Advisory"]
[null,null,null,null,null,39,9,2,"39","09","02","39|09|02","Trade, Industry and Competition","Competition Policy","Implementation and Coordination"]
[null,null,null,null,null,39,9,3,"39","09","03","39|09|03","Trade, Industry and Competition","Competition Policy","Investment and Development"]
[null,null,null,null,null,39,9,4,"39","09","04","39|09|04","Trade, Industry and Competition","Competition Policy","Competition Oversight"]
[null,null,null,null,null,39,10,1,"39","10","01","39|10|01","Trade, Industry and Competition","Economic Research","Economic Research and Policy Coordination"]
[null,null,null,null,null,39,10,2,"39","10","02","39|10|02","Trade, Industry and Competition","Economic Research","Macroeconomic and Microeconomic Policy"]
[null,null,null,null,null,39,10,3,"39","10","03","39|10|03","Trade, Industry and Competition","Economic Research","Growth Path and Decent Work"]
[null,null,null,null,null,40,1,1,"40","01","01","40|01|01","Transport","Administration","Ministry"]
[null,null,null,null,null,40,1,2,"40","01","02","40|01|02","Transport","Administration","Management"]
[null,null,null,null,null,40,1,3,"40","01","03","40|01|03","Transport","Administration","Corporate Services"]
[null,null,null,null,null,40,1,4,"40","01","04","40|01|04","Transport","Administration","Communications"]
[null,null,null,null,null,40,1,5,"40","01","05","40|01|05","Transport","Administration","Office Accommodation"]
[null,null,null,null,null,40,2,1,"40","02","01","40|02|01","Transport","Integrated Transport Planning","Macro Sector Planning"]
[null,null,null,null,null,40,2,2,"40","02","02","40|02|02","Transport","Integrated Transport Planning","Freight Logistics"]
[null,null,null,null,null,40,2,3,"40","02","03","40|02|03","Transport","Integrated Transport Planning","Modelling and Economic Analysis"]
[null,null,null,null,null,40,2,4,"40","02","04","40|02|04","Transport","Integrated Transport Planning","Regional Integration"]
[null,null,null,null,null,40,2,5,"40","02","05","40|02|05","Transport","Integrated Transport Planning","Research and Innovation"]
[null,null,null,null,null,40,2,6,"40","02","06","40|02|06","Transport","Integrated Transport Planning","Integrated Transport Planning Administration Support"]
[null,null,null,null,null,40,3,1,"40","03","01","40|03|01","Transport","Rail Transport","Rail Regulation"]
[null,null,null,null,null,40,3,2,"40","03","02","40|03|02","Transport","Rail Transport","Rail Infrastructure and Industry Development"]
[null,null,null,null,null,40,3,3,"40","03","03","40|03|03","Transport","Rail Transport","Rail Operations"]
[null,null,null,null,null,40,3,4,"40","03","04","40|03|04","Transport","Rail Transport","Rail Oversight"]
[null,null,null,null,null,40,3,5,"40","03","05","40|03|05","Transport","Rail Transport","Rail Administration Support"]
[null,null,null,null,null,40,4,1,"40","04","01","40|04|01","Transport","Road Transport","Road Regulation"]
[null,null,null,null,null,40,4,2,"40","04","02","40|04|02","Transport","Road Transport","Road Infrastructure and Industry Development"]
[null,null,null,null,null,40,4,3,"40","04","03","40|04|03","Transport","Road Transport","Road Oversight"]
[null,null,null,null,null,40,4,4,"40","04","04","40|04|04","Transport","Road Transport","Road Administration Support"]
[null,null,null,null,null,40,4,5,"40","04","05","40|04|05","Transport","Road Transport","Road Engineering Standards"]
[null,null,null,null,null,40,5,1,"40","05","01","40|05|01","Transport","Civil Aviation","Aviation Policy and Regulations"]
[null,null,null,null,null,40,5,2,"40","05","02","40|05|02","Transport","Civil Aviation","Aviation Economic Analysis and Industry Development"]
[null,null,null,null,null,40,5,3,"40","05","03","40|05|03","Transport","Civil Aviation","Aviation Safety, Security, Environment, and Search and Rescue"]
[null,null,null,null,null,40,5,4,"40","05","04","40|05|04","Transport","Civil Aviation","Aviation Oversight"]
[null,null,null,null,null,40,5,5,"40","05","05","40|05|05","Transport","Civil Aviation","Aviation Administration Support"]
[null,null,null,null,null,40,6,1,"40","06","01","40|06|01","Transport","Maritime Transport","Maritime Policy Development"]
[null,null,null,null,null,40,6,2,"40","06","02","40|06|02","Transport","Maritime Transport","Maritime Infrastructure and Industry Development"]
[null,null,null,null,null,40,6,3,"40","06","03","40|06|03","Transport","Maritime Transport","Implementation, Monitoring and Evaluation"]
[null,null,null,null,null,40,6,4,"40","06","04","40|06|04","Transport","Maritime Transport","Maritime Oversight"]
[null,null,null,null,null,40,6,5,"40","06","05","40|06|05","Transport","Maritime Transport","Maritime Administration Support"]
[null,null,null,null,null,40,7,1,"40","07","01","40|07|01","Transport","Public Transport","Public Transport Regulation"]
[null,null,null,null,null,40,7,2,"40","07","02","40|07|02","Transport","Public Transport","Rural and Scholar Transport"]
[null,null,null,null,null,40,7,3,"40","07","03","40|07|03","Transport","Public Transport","Public Transport Industry Development"]
[null,null,null,null,null,40,7,4,"40","07","04","40|07|04","Transport","Public Transport","Public Transport Oversight"]
[null,null,null,null,null,40,7,5,"40","07","05","40|07|05","Transport","Public Transport","Public Transport Administration Support"]
[null,null,null,null,null,40,7,6,"40","07","06","40|07|06","Transport","Public Transport","Public Transport Network Development"]
[null,null,null,null,null,40,16,1,"40","16","01","40|16|01","Transport","Direct charge against the National Revenue Fund","International Oil Pollution Compensation Funds"]
[null,null,null,null,null,41,1,1,"41","01","01","41|01|01","Water and Sanitation","Administration","Ministry"]
[null,null,null,null,null,41,1,2,"41","01","02","41|01|02","Water and Sanitation","Administration","Departmental Management"]
[null,null,null,null,null,41,1,3,"41","01","03","41|01|03","Water and Sanitation","Administration","Corporate Services"]
[null,null,null,null,null,41,1,4,"41","01","04","41|01|04","Water and Sanitation","Administration","Financial Management"]
[null,null,null,null,null,41,1,5,"41","01","05","41|01|05","Water and Sanitation","Administration","Office Accommodation"]
[null,null,null,null,null,41,1,6,"41","01","06","41|01|06","Water and Sanitation","Administration","Provincial and International Coordination"]
[null,null,null,null,null,41,2,1,"41","02","01","41|02|01","Water and Sanitation","Water Resources Management","Water Resources Management Support"]
[null,null,null,null,null,41,2,2,"41","02","02","41|02|02","Water and Sanitation","Water Resources Management","Integrated Water Resources Planning"]
[null,null,null,null,null,41,2,3,"41","02","03","41|02|03","Water and Sanitation","Water Resources Management","Water Ecosystems Management"]
[null,null,null,null,null,41,2,4,"41","02","04","41|02|04","Water and Sanitation","Water Resources Management","Water Resources Information and Management"]
[null,null,null,null,null,41,2,5,"41","02","05","41|02|05","Water and Sanitation","Water Resources Management","Water Resources Infrastructure Management"]
[null,null,null,null,null,41,2,6,"41","02","06","41|02|06","Water and Sanitation","Water Resources Management","Water Resources Policy and Strategy"]
[null,null,null,null,null,41,2,7,"41","02","07","41|02|07","Water and Sanitation","Water Resources Management","Water Resources Regulation"]
[null,null,null,null,null,41,2,8,"41","02","08","41|02|08","Water and Sanitation","Water Resources Management","Water Resources Institutional Oversight"]
[null,null,null,null,null,41,3,1,"41","03","01","41|03|01","Water and Sanitation","Water Services Management","Water Services Management Support"]
[null,null,null,null,null,41,3,2,"41","03","02","41|03|02","Water and Sanitation","Water Services Management","Water Services and Local Management"]
[null,null,null,null,null,41,3,3,"41","03","03","41|03|03","Water and Sanitation","Water Services Management","Regional Bulk Infrastructure Grant"]
[null,null,null,null,null,41,3,4,"41","03","04","41|03|04","Water and Sanitation","Water Services Management","Water Services Regulation"]
[null,null,null,null,null,41,3,5,"41","03","05","41|03|05","Water and Sanitation","Water Services Management","Water Services Policy and Strategy"]
[null,null,null,null,null,41,3,6,"41","03","06","41|03|06","Water and Sanitation","Water Services Management","Water Services Infrastructure Grant"]
[null,null,null,null,null,41,3,7,"41","03","07","41|03|07","Water and Sanitation","Water Services Management","Water Services Institutional Oversight"]
[null,null,null,null,null,42,1,1,"42","01","01","42|01|01","Centre for Public Service Innovation","Administration","Executive Support"]
[null,null,null,null,null,42,1,2,"42","01","02","42|01|02","Centre for Public Service Innovation","Administration","Corporate Services"]
[null,null,null,null,null,42,1,3,"42","01","03","42|01|03","Centre for Public Service Innovation","Administration","Office of the Chief Financial Officer"]
[null,null,null,null,null,42,2,1,"42","02","01","42|02|01","Centre for Public Service Innovation","Public Sector Innovation","Research and Development"]
[null,null,null,null,null,42,2,2,"42","02","02","42|02|02","Centre for Public Service Innovation","Public Sector Innovation","Institutional Support and Replication"]
[null,null,null,null,null,42,2,3,"42","02","03","42|02|03","Centre for Public Service Innovation","Public Sector Innovation","Enabling Environment and Stakeholder Management"]
[null,null,null,null,null,50,0,0,"50","01","01","50|01|01","Below the line items","Contingency reserve","Contingency reserve"]
[null,null,null,null,null,50,0,0,"50","02","01","50|02|01","Below the line items","Provisional allocation","Provisional allocation"]
[null,null,null,null,null,50,0,0,"50","03","01","50|03|01","Below the line items","Provisional allocation","Provisional allocation"]
[null,null,null,null,null,50,0,0,"50","04","01","50|04|01","Below the line items","Provisional allocation","Provisional allocation"]
[null,null,null,null,null,50,0,0,"50","05","01","50|05|01","Below the line items","Provisional allocation","Provisional allocation"]
[null,null,null,null,null,50,0,0,"50","06","01","50|06|01","Below the line items","Provisional allocation","Provisional allocation"]
[null,null,null,null,null,50,0,0,"50","07","01","50|07|01","Below the line items","Provisional allocation","Provisional allocation"]
[null,null,null,null,null,50,0,0,"50","08","01","50|08|01","Below the line items","Provisional allocation","Provisional allocation"]
[null,null,null,null,null,50,0,0,"50","10","01","50|10|01","Below the line items","Provisional allocation","Provisional allocation"]
[null,null,null,null,null,50,0,0,"50","11","01","50|11|01","Below the line items","Provisional allocation","Provisional allocation"]
[null,null,null,null,null,50,0,0,"50","12","01","50|12|01","Below the line items","Provisional allocation","Provisional allocation"]
[null,null,null,null,null,50,0,0,"50","13","01","50|13|01","Below the line items","Provisional allocation","Provisional allocation"]
[null,null,null,null,null,50,0,0,"50","14","01","50|14|01","Below the line items","Provisional allocation","Provisional allocation"]
[null,null,null,null,null,50,0,0,"50","16","01","50|16|01","Below the line items","Unallocated reserve","Unallocated reserve"]